{"text_format":"1","workbook":"xlsx","n_sheets":45,"sheets":["CoverSheet","Version history","Coversheet Import-Export","Admin Sheet","Translations","Impact Outcome Indicators_1A","ImpactOutcome_Import-Export","Disaggregation_1A","Disagg.1A_import-export","Coverage Indicators_1B","Coverage Indicator_Import-Expor","Disaggregation_1B","Disaggregation1B_Import-Export","WPTM_1C","WPTM_1C  Import-Export","PR Cash Reconciliation_2A,B,C,D","Commitments_Obligations","PR Cash Recon Import-Export","SR_Cash Reconciliation_2E","SR Cash Recon Import Export","Budget Variance_2F","Budget Variance Import-Export","Procurement_3","Grant Management_4","Grant Management_4 imp-exp","MitigationAction","RiskData","PR-LFA Evaluation_5","LFA_Findings&Recommendations_6","LFA_Findings&Recom export","PR Expenditure_7A","PR Expenditure_7A import-export","LFA Expenditure_7B","LFA Expenditure_7B imp-exp","Cash Forecast_8A","Cash Forecast_8A import-export","Request and Recommendation_8B","Reference Records","PR Authorization_9A","LFA Authorization_9B","Financial Triggers_10","Free Sheet 1","Free Sheet 2","Free Sheet 3","apttusmetadata"],"not_rendered":{"charts":0,"images":4,"macros":0,"external_links":1,"defined_names":781,"comments":0,"pivot_tables":0},"unopened":[],"bounds":{"document_bytes":16777216,"sheet_cells":100000,"rows_first":2000,"rows_last":500,"rows_between":2000,"halvings":0,"cell_chars":16384,"cell_head_chars":4096},"cells_cut":1,"cells_raw":0,"read":"whole","date_system":"1900"}

{"sheet":"CoverSheet","index":0,"n_rows":16,"n_cols":13,"rows_kept":16,"cut":false,"hidden":false,"merged":[[1,0,2,14],[0,0,0,11],[0,12,0,14],[7,0,7,2],[8,0,8,2],[8,5,8,7],[15,5,15,7],[7,5,7,8],[13,5,13,9],[14,0,14,2],[11,0,11,2],[9,0,9,2],[10,0,10,2],[10,5,10,11],[12,0,12,2],[13,0,13,2],[11,5,11,7],[14,5,14,7]]}
[{"$f":"VLOOKUP(Translations!B3,Translations!B3:H508,4,0)","v":"Rapport périodique sur les résultats actuels et demande de décaissement"},null,null,null,null,null,null,null,null,null,null,null,"Version 3 - 20July 2018"]
[{"$f":"VLOOKUP(Translations!B4,Translations!B3:H508,4,0)","v":"Page de garde : Instructions\n\n•Ce modèle est compatible avec MS Excel 2013 et les versions ultérieures. Certaines listes déroulantes et formules ne fonctionnent pas avec les versions antérieures et spécifiquement avec MS Excel 2010. De ce fait, les récipiendaires principaux qui possèdent des versions antérieures de MS sont priés de se doter de MS Excel 2013 pour avoir les fonctionnalités du modèle.\n\n• Les bénéficiaires principaux doivent d'abord confirmer les informations figurant sur la page de garde, y compris les renseignements généraux sur la subvention énumérés dans les cases ci-dessous. Les bénéficiaires principaux sont encourages de se reporter à la feuille de présentation de la subvention/Confirmation de la subvention pour confirmer une partie de ces renseignements.\n\n• Les bénéficiaires principaux sont tenus de confirmer les informations relatives aux périodes couvertes par le rapport sur les résultats actuels et la demande de décaissement."}]
[]
[]
[null,null,"Language"]
[null,null,"French"]
[]
["Country:",null,null,{"$f":"IFERROR(VLOOKUP(A8,'Coversheet Import-Export'!$A$5:$B$12,2,0),\"\")","v":"Burundi"},null,{"$f":"VLOOKUP(Translations!B14,Translations!B3:H508,4,0)","v":"PÉRIODE COUVERTE PAR LES RÉSULTATS ACTUELS PROGRAMMATIQUES"}]
["(Disease) Component",null,null,{"$f":"IFERROR(VLOOKUP(A9,'Coversheet Import-Export'!$A$5:$B$12,2,0),\"\")","v":"Multi"},null,{"$f":"VLOOKUP(Translations!B15,Translations!B3:H508,4,0)","v":"Période couverte par le rapport sur les résultats actuels :"},null,null,{"$f":"VLOOKUP(Translations!B16,Translations!B3:H508,4,0)","v":"Date de début :"},{"$f":"IFERROR(_7b228704_0b7d_4fb6_ad6d_ec11fd6ca43e,\"\")","v":"2018-01-01"},{"$f":"VLOOKUP(Translations!B17,Translations!B3:H508,4,0)","v":"Date de fin :"},{"$f":"IFERROR(_bbfbd99a_1ffd_42e5_b449_9d7101abff3f,\"\")","v":"2018-06-30"}]
["Grant Name:",null,null,{"$f":"IFERROR(VLOOKUP(A10,'Coversheet Import-Export'!$A$5:$B$12,2,0),\"\")","v":"BDI-C-UNDP"}]
["Principal Recipient:",null,null,{"$f":"IFERROR(VLOOKUP(A11,'Coversheet Import-Export'!$A$5:$B$12,2,0),\"\")","v":"United Nations Development Programme"},null,"Period of Financial Reporting"]
["LFA Name:",null,null,null,null,{"$f":"VLOOKUP(Translations!B19,Translations!B3:H508,4,0)","v":"Période couverte par le rapport sur les information financière"},null,null,{"$f":"VLOOKUP(Translations!B16,Translations!B3:H508,4,0)","v":"Date de début :"},{"$f":"IF(_6ecf7e83_bf38_48ce_9f75_06e710f915b2=\"\",\"n/a\",_6ecf7e83_bf38_48ce_9f75_06e710f915b2)","v":"2018-01-01"},{"$f":"VLOOKUP(Translations!B17,Translations!B3:H508,4,0)","v":"Date de fin :"},{"$f":"IF(_bbfbd99a_1ffd_42e5_b449_9d7101abff3f=\"\",\"n/a\",_bbfbd99a_1ffd_42e5_b449_9d7101abff3f)","v":"2018-06-30"}]
["Program Start Date:",null,null,{"$f":"IFERROR(VLOOKUP(A13,'Coversheet Import-Export'!$A$5:$B$12,2,0),\"\")","v":"2018-01-01"}]
["Grant Currency:",null,null,{"$f":"IFERROR(VLOOKUP(A14,'Coversheet Import-Export'!$A$5:$B$12,2,0),\"\")","v":"USD"},null,{"$f":"VLOOKUP(Translations!B22,Translations!B3:H508,4,0)","v":"DEMANDE DE DÉCAISSEMENT "}]
["Local Currency:",null,null,{"$f":"IFERROR(VLOOKUP(A15,'Coversheet Import-Export'!$A$5:$B$12,2,0),\"\")","v":"BIF"},null,{"$f":"VLOOKUP(Translations!B23,Translations!B3:H508,4,0)","v":"Demande de décaissement  - période de prévision:"},null,null,{"$f":"VLOOKUP(Translations!B16,Translations!B3:H508,4,0)","v":"Date de début :"},{"$f":"IF(_43bc67ab_a2dd_4a32_a150_b7acc6e5ffaf=\"\",\"n/a\",_43bc67ab_a2dd_4a32_a150_b7acc6e5ffaf)","v":"2018-07-01"},{"$f":"VLOOKUP(Translations!B17,Translations!B3:H508,4,0)","v":"Date de fin :"},{"$f":"IF(_44d37288_5e43_48e6_a9cc_80a3f02fc40f=\"\",\"n/a\",_44d37288_5e43_48e6_a9cc_80a3f02fc40f)","v":"2018-12-31"}]
[null,null,null,null,null,{"$f":"VLOOKUP(Translations!B26,Translations!B3:H508,4,0)","v":"Demande de décaissement  - Période additionnelle convenue:"},null,null,{"$f":"VLOOKUP(Translations!B16,Translations!B3:H508,4,0)","v":"Date de début :"},{"$f":"IF(_78bfad15_335d_4773_9ea3_22dbf845ec19=\"\",\"n/a\",_78bfad15_335d_4773_9ea3_22dbf845ec19)","v":"2019-01-01"},{"$f":"VLOOKUP(Translations!B17,Translations!B3:H508,4,0)","v":"Date de fin :"},{"$f":"IF(_d0e80b24_abb1_49ca_98e8_e4a4f83d98c3=\"\",\"n/a\",_d0e80b24_abb1_49ca_98e8_e4a4f83d98c3)","v":"2019-03-31"}]

{"sheet":"Version history","index":1,"n_rows":4,"n_cols":5,"rows_kept":4,"cut":false,"hidden":true,"merged":[]}
["Version number","Date","Changes made","Made by","At request of"]
[1,"2018-07-16","• First version of PR Reporting Template\n","Tanaka Ndowa","Tanaka Ndowa"]
[2,"2018-07-16","• updated excel mapping of financial start date\n• updated mapping of coverage indicator country column\n• corrected formulas for PR expenditure and LFA expenditure for cost input","Tanaka Ndowa","Tanaka Ndowa"]
[3,"2018-07-20","• Corrected PR expenditure Implementer formula for total cumulative\n• Made disaggregation for impact,outcome, coverage filter out blank disaggregations\n• Added Country field for impact, outcome, coverage and their disaggregations\n• Correct buffer start date on the Cash Forecast page","Tanaka Ndowa","Tanaka Ndowa"]

{"sheet":"Coversheet Import-Export","index":2,"n_rows":32,"n_cols":11,"rows_kept":32,"cut":false,"hidden":true,"merged":[]}
[null,null,null,null,null,null,"IRT_Mitigating_actions_status","Year_of_result","Source","Verification_Method","WPTM_Progress"]
[null,null,null,null,null,null,"In Progress",2002,"HMIS","Not Verified","Not Started"]
["COVER SHEET",null,null,null,null,null,"Delayed",2003,"Patient records","Desk Review","Started"]
[null,null,null,null,null,null,"Not Started",2004,"Training records","Other","Advancing"]
["Country:","Burundi",null,null,null,null,"Met",2005,"MICS (Multiple Indicator Cluster Survey)",null,"Completed"]
["(Disease) Component","Multi",null,null,null,null,null,2006,"DHS/DHS+ (Demographic and Health Survey)"]
["Grant Name:","BDI-C-UNDP",null,null,null,null,null,2007,"AIS (AIDS Indicator Survey)"]
["Principal Recipient:","United Nations Development Programme",null,null,null,null,null,2008,"BSS (Behavioral Surveillance Survey)"]
["LFA Name:",null,null,null,null,null,null,2009,"Health Facility survey"]
["Program Start Date:","2018-01-01",null,null,null,null,null,2010,"SAMS (Service Availability Mapping Survey)"]
["Grant Currency:","USD",null,null,null,null,null,2011,"Households survey"]
["Local Currency:","BIF",null,null,null,null,null,2012,"Specific surveys and research (specify)"]
[null,null,null,null,null,null,null,2013,"Reports (specify)"]
["Reporting Period Start Date","2018-01-01",null,null,null,null,null,2014,"Vital and disease-specific registry"]
["Reporting Period End Date","2018-06-30",null,null,null,null,null,2015,"Operational Research"]
["Financial Period Start Date","2018-01-01",null,null,null,null,null,2016,"Health Provider survey"]
["Disbursement Execution Start Date","2018-07-01",null,null,null,null,null,2017,"National Health Account"]
["Disbursement Execution End Date","2018-12-31",null,null,null,null,null,2018,"Administrative records"]
["Disbursement Buffer Start Date","2019-01-01",null,null,null,null,null,2019,"R&R TB system, quarterly reports"]
["Disbursement Buffer End Date","2019-03-31",null,null,null,null,null,2020,"R&R TB system, yearly management report "]
[null,null,null,null,null,null,null,2021,"TB prevalence survey"]
[null,null,null,null,null,null,null,2022,"TB patient register"]
["PR Import Date",{"$f":"IF('PR Authorization_9A'!F17=\"\",\"\",'PR Authorization_9A'!F17)","v":"2018-08-29"},null,null,null,null,null,2023,"TB laboratory register"]
["LFA Import date",{"$f":"IF('LFA Authorization_9B'!D21=\"\",\"\",'LFA Authorization_9B'!D21)","v":""},null,null,null,null,null,2024,"TB treatment card"]
[null,null,null,null,null,null,null,2025,"Specify- Reports, Surveys, Questionnaires etc."]
["Being Uploaded from PR Template",{"$f":"IFERROR(\"TRUE\",\"FALSE\")","v":"TRUE"},null,null,null,null,null,null,"MIS (Malaria Indicator Survey)"]
[null,null,null,null,null,null,null,null,"Situation Analysis"]
[null,null,null,null,null,null,null,null,"Key informant survey"]
[null,null,null,null,null,null,null,null,"Surveillance systems"]
[null,null,null,null,null,null,null,null,"Modelled"]
[null,null,null,null,null,null,null,null,"Other survey, specify"]
[null,null,null,null,null,null,null,null,"IBBS"]

{"sheet":"Admin Sheet","index":3,"n_rows":55,"n_cols":4,"rows_kept":55,"cut":false,"hidden":true,"merged":[]}
["Progress Update",true,"Grant Name","BDI-C-UNDP"]
["Disbursement Request",false,"Reporting Period End Date","2018-06-30"]
["Last PR of Implementation Period",false,"Version",10]
["Tab Name","Opt-In/Opt-out Progress Report","Opt-In/Opt-out Disbursement Request","Opt-In/Opt-Out Last Progress Rep. of IP"]
["[Tab Name]","[Opt-In/Opt-out Progress Report]","[Opt-In/Opt-out Disbursement Request]","[Opt-In/Opt-Out Last Progress Rep. of IP]"]
["Impact Outcome Indicators_1A",true,true,true]
["Coverage Indicators_1B",true,true,true]
["LFA_Findings&Recommendations_6",true,true,true]
["Disaggregation_1A",true,true,true]
["Grant Management_4",true,true,true]
["PR Cash Reconciliation_2A,B,C,D",false,true,true]
["Semi-Annual Cash Forecast_8AA",false,false,false]
["LFA Expenditure_7B",true,true,true]
["Procurement_3",true,true,true]
["Request and Recommendation_8B",false,true,false]
["Budget Variance_2F",false,true,true]
["PR Authorization_9A",true,true,true]
["PR-LFA Evaluation_5",true,true,true]
["PR Expenditure_7A",true,true,true]
["WPTM_1C",true,true,true]
["SR_Cash Reconciliation_2E",false,true,true]
["Annual Cash Forecast_8A",false,true,false]
["Financial Triggers_10",false,false,false]
["Disaggregation_1B",true,true,true]
["LFA Authorization_9B",true,true,true]
[]
[]
[]
[]
[]
[]
[]
[]
[]
["Sheet LFA_Findings&Recommendations_6"]
["Record Type Id"]
["Record Type ID","01236000000OMQ7AAO"]
[]
[]
["IP Id"]
["Record ID","a1K36000006Uv9HEAS"]
[]
[]
["Record ID","a1Y36000002HsCfEAK"]
[]
[]
[]
[]
[]
["Fetching RP Dates to filter out Grant Requirements"]
["Reporting Period Start Date","2018-01-01"]
["Reporting Period End Date","2018-06-30"]
[]
[]
["Sheet Name",{"$f":"CONCATENATE(CoverSheet!D7,\"_Progress Report_Imported_\",TEXT(TODAY(),\"dd-mmm-yy\"))","v":"_Progress Report_Imported_dd-oct-yy"}]

{"sheet":"Translations","index":4,"n_rows":587,"n_cols":8,"rows_kept":587,"cut":false,"hidden":true,"merged":[]}
["Translations",null,null,{"$f":"IF(Language=\"English\",0,IF(Language=\"French\",1,IF(Language=\"Spanish\",2)))","v":1}]
["Tab name",null,"Key",null,null,"English Value ","French Value ","Spanish Value "]
["Cover Sheet",1,"Cover Sheet 1",{"$f":"\"=Vlookup(\"\"\"&B3&\"\"\",Translations!F3:H508,1,0)\"","v":"=Vlookup(\"1\",Translations!F3:H508,1,0)"},{"$f":"IF(LangOffset=0,F3,IF(LangOffset=1,G3,IF(LangOffset=2,H3)))","v":"Rapport périodique sur les résultats actuels et demande de décaissement"},"Progress Report with Disbursement Request","Rapport périodique sur les résultats actuels et demande de décaissement","Informe de progreso y solicitud de desembolso"]
["Cover Sheet",2,"Cover Sheet 2",{"$f":"\"=Vlookup(\"\"\"&B4&\"\"\",Translations!F3:H508,1,0)\"","v":"=Vlookup(\"2\",Translations!F3:H508,1,0)"},"Page de garde : Instructions\n\n•Ce modèle est compatible avec MS Excel 2013 et les versions ultérieures. Certaines listes déroulantes et formules ne fonctionnent pas avec les versions antérieures et spécifiquement avec MS Excel 2010. De ce fait, les récipiendaires principaux qui possèdent des versions antérieures de MS sont priés de se doter de MS Excel 2013 pour avoir les fonctionnalités du modèle.\n\n• Les bénéficiaires principaux doivent d'abord confirmer les informations figurant sur la page de garde, y compris les renseignements généraux sur la subvention énumérés dans les cases ci-dessous. Les bénéficiaires principaux sont encourages de se reporter à la feuille de présentation de la subvention/Confirmation de la subvention pour confirmer une partie de ces renseignements.\n\n• Les bénéficiaires principaux sont tenus de confirmer les informations relatives aux périodes couvertes par le rapport sur les résultats actuels et la demande de décaissement.","Cover Sheet: Instructions\n\n• This template is compatible with MS Excel 2013 and later versions. Some drop-downs and formulae may not work with earlier versions and specifically MS Excel 2010. Hence, Principal Recipients with earlier MS versions are requested to upgrade to MS Excel 2013 to have the full functionalities of this tool.\n\n• Principal Recipients are first required to confirm the information on the Cover Sheet with the General Grant Information listed in the boxes below. They can refer to their Grant Face Sheet/Grant Confirmation to confirm part of this information.\n\n• Principal Recipients are required to confirm the information related to the periods covered by the progress update and disbursement request.","Page de garde : Instructions\n\n•Ce modèle est compatible avec MS Excel 2013 et les versions ultérieures. Certaines listes déroulantes et formules ne fonctionnent pas avec les versions antérieures et spécifiquement avec MS Excel 2010. De ce fait, les récipiendaires principaux qui possèdent des versions antérieures de MS sont priés de se doter de MS Excel 2013 pour avoir les fonctionnalités du modèle.\n\n• Les bénéficiaires principaux doivent d'abord confirmer les informations figurant sur la page de garde, y compris les renseignements généraux sur la subvention énumérés dans les cases ci-dessous. Les bénéficiaires principaux sont encourages de se reporter à la feuille de présentation de la subvention/Confirmation de la subvention pour confirmer une partie de ces renseignements.\n\n• Les bénéficiaires principaux sont tenus de confirmer les informations relatives aux périodes couvertes par le rapport sur les résultats actuels et la demande de décaissement.","Portada: Instrucciones\n\n• El formulario es compatible con MS Excel 2013 y versiones posteriores. Algunos menús desplegables y fórmulas pueden no funcionar con versiones anteriores y, específicamente, MS Excel 2010. Por lo tanto , se solicita a los Receptores principlas con versiones anteriores de actualizarlas a MS Excel 2013 para poder tener todas las funcionalidades de la plantilla.\n\n• Se solicita a los Receptores principales de primero confirmar la información de la hoja de portada (“CoverSheet”) con la Información general sobre la subvención listada en las tablas abajo. Pueden referirse a sus acuerdos de subvención (“Grant Face Sheet”/”Grant Confirmation”) para confirmar una parte de esta información.\n\n• Se requiere que los Receptores principales confirmen la información relacionada a los periodos cubiertos por el informe de progreso y la solicitud de desembolso."]
["Cover Sheet",3,"Cover Sheet 3","=Vlookup(\"3\",Translations!F3:H508,1,0)","RENSEIGNEMENTS GÉNÉRAUX SUR LA SUBVENTION","GENERAL GRANT INFORMATION","RENSEIGNEMENTS GÉNÉRAUX SUR LA SUBVENTION","INFORMACIÓN GENERAL SOBRE LA SUBVENCIÓN"]
["Cover Sheet",4,"Cover Sheet 4","=Vlookup(\"4\",Translations!F3:H508,1,0)","Pays :","Country:","Pays :","País:"]
["Cover Sheet",5,"Cover Sheet 5","=Vlookup(\"5\",Translations!F3:H508,1,0)","Composante (maladie)","(Disease) Component","Composante (maladie)","Componente (enfermedad):"]
["Cover Sheet",6,"Cover Sheet 6","=Vlookup(\"6\",Translations!F3:H508,1,0)","Nom/numéro de la subvention :","Grant Name/Number:","Nom/numéro de la subvention :","Nombre o número de la subvención:"]
["Cover Sheet",7,"Cover Sheet 7","=Vlookup(\"7\",Translations!F3:H508,1,0)","Récipiendaire principal :","Principal Recipient:","Récipiendaire principal :","Receptor principal:"]
["Cover Sheet",8,"Cover Sheet 8","=Vlookup(\"8\",Translations!F3:H508,1,0)","Nom de l'agent local du Fonds :","LFA Name:","Nom de l'agent local du Fonds :","Nombre del ALF:"]
["Cover Sheet",9,"Cover Sheet 9","=Vlookup(\"9\",Translations!F3:H508,1,0)","Date de début du programme :","Program Start Date:","Date de début du programme :","Fecha de inicio del programa:"]
["Cover Sheet",10,"Cover Sheet 10","=Vlookup(\"10\",Translations!F3:H508,1,0)","Monnaie Subvention :","Grant Currency:","Monnaie Subvention :","Moneda de la subvención:"]
["Cover Sheet",11,"Cover Sheet 11","=Vlookup(\"11\",Translations!F3:H508,1,0)","Monnaie Locale:","Local Currency:","Monnaie Locale:","Moneda local:"]
["Cover Sheet",12,"Cover Sheet 12","=Vlookup(\"12\",Translations!F3:H508,1,0)","PÉRIODE COUVERTE PAR LES RÉSULTATS ACTUELS PROGRAMMATIQUES","REPORTING PERIOD FOR PROGRAMMATIC REPORTING","PÉRIODE COUVERTE PAR LES RÉSULTATS ACTUELS PROGRAMMATIQUES","PERIODO DE INFORME DE ACTUALIZACIÓN DE AVANCES PROGRAMÁTICOS"]
["Cover Sheet",13,"Cover Sheet 13","=Vlookup(\"13\",Translations!F3:H508,1,0)","Période couverte par le rapport sur les résultats actuels :","Period of Programmatic Reporting","Période couverte par le rapport sur les résultats actuels :","Periodo de avances programáticos:"]
["Cover Sheet",14,"Cover Sheet 14","=Vlookup(\"14\",Translations!F3:H508,1,0)","Date de début :","Beginning Date:","Date de début :","Fecha de inicio:"]
["Cover Sheet",15,"Cover Sheet 15","=Vlookup(\"15\",Translations!F3:H508,1,0)","Date de fin :","End Date:","Date de fin :","Fecha final:"]
["Cover Sheet",16,"Cover Sheet 16","=Vlookup(\"16\",Translations!F3:H508,1,0)","PÉRIODE COUVERTE PAR LES RÉSULTATS ACTUELS FINANCIERS","REPORTING PERIOD FOR FINANCIAL REPORTING","PÉRIODE COUVERTE PAR LES RÉSULTATS ACTUELS FINANCIERS","PERIODO DE INFORME DE ACTUALIZACIÓN DE AVANCES FINANCIEROS"]
["Cover Sheet",17,"Cover Sheet 17","=Vlookup(\"17\",Translations!F3:H508,1,0)","Période couverte par le rapport sur les information financière","Period of Financial Reporting","Période couverte par le rapport sur les information financière","Periodo de avances financieros"]
["Cover Sheet",18,"Cover Sheet 18","=Vlookup(\"18\",Translations!F3:H508,1,0)","Date de début :","Beginning Date:","Date de début :","Fecha de inicio:"]
["Cover Sheet",19,"Cover Sheet 19","=Vlookup(\"19\",Translations!F3:H508,1,0)","Date de fin :","End Date:","Date de fin :","Fecha final:"]
["Cover Sheet",20,"Cover Sheet 20","=Vlookup(\"20\",Translations!F3:H508,1,0)","DEMANDE DE DÉCAISSEMENT ","DISBURSEMENT REQUEST ","DEMANDE DE DÉCAISSEMENT ","SOLICITUD DE DESEMBOLSO"]
["Cover Sheet",21,"Cover Sheet 21","=Vlookup(\"21\",Translations!F3:H508,1,0)","Demande de décaissement  - période de prévision:","Disbursement Request Execution Period","Demande de décaissement  - période de prévision:","Solicitud de desembolso – Periodo de ejecución:"]
["Cover Sheet",22,"Cover Sheet 22","=Vlookup(\"22\",Translations!F3:H508,1,0)","Date de début :","Beginning Date:","Date de début :","Fecha de inicio:"]
["Cover Sheet",23,"Cover Sheet 23","=Vlookup(\"23\",Translations!F3:H508,1,0)","Date de fin :","End Date:","Date de fin :","Fecha final:"]
["Cover Sheet",24,"Cover Sheet 24","=Vlookup(\"24\",Translations!F3:H508,1,0)","Demande de décaissement  - Période additionnelle convenue:","Disbursement Request Buffer Period","Demande de décaissement  - Période additionnelle convenue:","Solicitud de desembolso – Periodo de reserva (colchón) :"]
["Cover Sheet",25,"Cover Sheet 25","=Vlookup(\"25\",Translations!F3:H508,1,0)","Date de début :","Beginning Date:","Date de début :","Fecha de inicio:"]
["Cover Sheet",26,"Cover Sheet 26","=Vlookup(\"26\",Translations!F3:H508,1,0)","Date de fin :","End Date:","Date de fin :","Fecha final:"]
[null,27,null,"=Vlookup(\"27\",Translations!F3:H508,1,0)",0]
["Impact Outcome Indicators_1A",28,null,"=Vlookup(\"28\",Translations!F3:H508,1,0)","Rapport périodique sur les résultats actuels et demande de décaissement","Progress Report with Disbursement Request","Rapport périodique sur les résultats actuels et demande de décaissement","Informe de progreso y solicitud de desembolso"]
["Impact Outcome Indicators_1A",29,null,"=Vlookup(\"29\",Translations!F3:H508,1,0)","Section 1 : Information programmatique","Section 1:  Programmatic Information","Section 1 : Information programmatique","Sección 1: Información programática"]
["Impact Outcome Indicators_1A",30,null,"=Vlookup(\"30\",Translations!F3:H508,1,0)","Remarque : Le tableau ci-dessous doit contenir les indicateurs d'impact/d'effet 1) dont il doit être fait rapport pendant l'année en cours de la subvention et 2) ceux dont la communication de l'information est en suspens depuis les périodes précédentes.","Note: The table contains those Impact/Outcome indicators that are (1) due for reporting in the current reporting period and (2) those reporting on which is overdue from the previous periods.","Remarque : Le tableau ci-dessous doit contenir les indicateurs d'impact/d'effet 1) dont il doit être fait rapport pendant l'année en cours de la subvention et 2) ceux dont la communication de l'information est en suspens depuis les périodes précédentes.","Nota: la siguiente tabla debe incluir los indicadores de impacto y resultados (1) sobre los que debe informarse durante el año actual de la subvención y (2) aquellos que hayan quedado pendientes de periodos anteriores."]
["Impact Outcome Indicators_1A",31,null,"=Vlookup(\"31\",Translations!F3:H508,1,0)","A- Impact/Outcome Indicators","A- Impact/Outcome Indicators","A- Impact/Outcome Indicators","A- Indicadores de impacto y resultados"]
["Impact Outcome Indicators_1A",32,null,"=Vlookup(\"32\",Translations!F3:H508,1,0)","Impact / Effet ","Impact / Outcome ","Impact / Effet ","Impacto/Resultados"]
["Impact Outcome Indicators_1A",33,null,"=Vlookup(\"33\",Translations!F3:H508,1,0)","Indicateurs","Impact/Outcome Indicator","Indicateurs","Indicador "]
["Impact Outcome Indicators_1A",34,null,"=Vlookup(\"34\",Translations!F3:H508,1,0)","L'indicateur personnalisé","Custom Impact/Outcome Indicator","L'indicateur personnalisé","Indicador personalizado"]
["Impact Outcome Indicators_1A",35,null,"=Vlookup(\"35\",Translations!F3:H508,1,0)","Référence \n(le cas échéant)","Baseline \n(if applicable)","Référence \n(le cas échéant)","Linea de base\n(si corresponde)"]
["Impact Outcome Indicators_1A",36,null,"=Vlookup(\"36\",Translations!F3:H508,1,0)","Valeur","Value","Valeur","Valor"]
["Impact Outcome Indicators_1A",37,null,"=Vlookup(\"37\",Translations!F3:H508,1,0)","Année","Year","Année","Año"]
["Impact Outcome Indicators_1A",38,null,"=Vlookup(\"38\",Translations!F3:H508,1,0)","Cible","Target","Cible","Meta"]
["Impact Outcome Indicators_1A",39,null,"=Vlookup(\"39\",Translations!F3:H508,1,0)","N#","N#","N#","N#"]
["Impact Outcome Indicators_1A",40,null,"=Vlookup(\"40\",Translations!F3:H508,1,0)","D#","D#","D#","D#"]
["Impact Outcome Indicators_1A",41,null,"=Vlookup(\"41\",Translations!F3:H508,1,0)","%","%","%","%"]
["Impact Outcome Indicators_1A",42,null,"=Vlookup(\"42\",Translations!F3:H508,1,0)","Year of Target","Year of Target","Year of Target","Year of Target"]
["Impact Outcome Indicators_1A",43,null,"=Vlookup(\"43\",Translations!F3:H508,1,0)","Échéance de rapport","Report Due Date","Échéance de rapport","Fecha de presentación del informe"]
["Impact Outcome Indicators_1A",44,null,"=Vlookup(\"44\",Translations!F3:H508,1,0)","Résultat","Result","Résultat","Resultado "]
["Impact Outcome Indicators_1A",45,null,"=Vlookup(\"45\",Translations!F3:H508,1,0)","N#","N#","N#","N#"]
["Impact Outcome Indicators_1A",46,null,"=Vlookup(\"46\",Translations!F3:H508,1,0)","D#","D#","D#","D#"]
["Impact Outcome Indicators_1A",47,null,"=Vlookup(\"47\",Translations!F3:H508,1,0)","%","%","%","%"]
["Impact Outcome Indicators_1A",48,null,"=Vlookup(\"48\",Translations!F3:H508,1,0)","Année du résultat","Year of Result","Année du résultat","Año de resultado"]
["Impact Outcome Indicators_1A",49,null,"=Vlookup(\"49\",Translations!F3:H508,1,0)","Source de données des résultats","Source","Source de données des résultats","Fuente de datos de los resultados"]
["Impact Outcome Indicators_1A",50,null,"=Vlookup(\"50\",Translations!F3:H508,1,0)","Commentaires sur les résultats concernant les indicateurs d'impact/d'effet et les sources de données, ainsi que tout autre commentaire","Comments on results on Impact/Outcome indicators and data sources, and any other comments","Commentaires sur les résultats concernant les indicateurs d'impact/d'effet et les sources de données, ainsi que tout autre commentaire","Comentarios sobre los resultados de los indicadores de impacto y resultados, fuentes de los datos, y otros comentarios"]
["Impact Outcome Indicators_1A",51,null,"=Vlookup(\"51\",Translations!F3:H508,1,0)","Verification Method","Verification Method","Verification Method","Verification Method"]
["Impact Outcome Indicators_1A",52,null,"=Vlookup(\"52\",Translations!F3:H508,1,0)","Verified Result","Verified Result","Verified Result","Verified Result"]
["Impact Outcome Indicators_1A",53,null,"=Vlookup(\"53\",Translations!F3:H508,1,0)","N#","N#","N#","N#"]
["Impact Outcome Indicators_1A",54,null,"=Vlookup(\"54\",Translations!F3:H508,1,0)","D#","D#","D#","D#"]
["Impact Outcome Indicators_1A",55,null,"=Vlookup(\"55\",Translations!F3:H508,1,0)","%","%","%","%"]
["Impact Outcome Indicators_1A",56,null,"=Vlookup(\"56\",Translations!F3:H508,1,0)","Year of Result","Year of Result","Year of Result","Year of Result"]
["Impact Outcome Indicators_1A",57,null,"=Vlookup(\"57\",Translations!F3:H508,1,0)","Source","Source","Source","Source"]
["Impact Outcome Indicators_1A",58,null,"=Vlookup(\"58\",Translations!F3:H508,1,0)","LFA comments on (a) verified result, (b) source of information used by the PR to report results, including the status of completion of surveys and other methods to measure Impact/Outcome, as applicable,  ","LFA comments on (a) verified result, (b) source of information used by the PR to report results, including the status of completion of surveys and other methods to measure Impact/Outcome, as applicable,  ","LFA comments on (a) verified result, (b) source of information used by the PR to report results, including the status of completion of surveys and other methods to measure Impact/Outcome, as applicable,  ","LFA comments on (a) verified result, (b) source of information used by the PR to report results, including the status of completion of surveys and other methods to measure Impact/Outcome, as applicable,  "]
["Disaggregation_1A",59,null,"=Vlookup(\"59\",Translations!F3:H508,1,0)","Rapport périodique sur les résultats actuels et demande de décaissement","Progress Report with Disbursement Request","Rapport périodique sur les résultats actuels et demande de décaissement","Informe de progreso y solicitud de desembolso"]
["Disaggregation_1A",60,null,"=Vlookup(\"60\",Translations!F3:H508,1,0)","Section 1 : Information programmatique","Section 1: Programmatic Information","Section 1 : Information programmatique","Sección 1: Información programática"]
["Disaggregation_1A",61,null,"=Vlookup(\"61\",Translations!F3:H508,1,0)","A- Indicateurs d'impact / d'effet - Ventilation","A- Impact/Outcome Indicators - Disaggregation","A- Indicateurs d'impact / d'effet - Ventilation","A- Indicadores de repercusión y resultados: desglose"]
["Disaggregation_1A",62,null,"=Vlookup(\"62\",Translations!F3:H508,1,0)","Impact/Outcome","Impact/Outcome","Impact/Outcome","Impacto/Resultados"]
["Disaggregation_1A",63,null,"=Vlookup(\"63\",Translations!F3:H508,1,0)","Indicateurs standard","Standard Impact/Outcome Indicator","Indicateurs standard","Indicador estándar "]
["Disaggregation_1A",64,null,"=Vlookup(\"64\",Translations!F3:H508,1,0)","Ventilation","Disaggregation","Ventilation","Desglose"]
["Disaggregation_1A",65,null,"=Vlookup(\"65\",Translations!F3:H508,1,0)",{"$f":"IF(LangOffset=0,F67,IF(LangOffset=1,G67,IF(LangOffset=2,H67)))","v":"Catégorie "},"Category","Catégorie ","Categoría"]
["Disaggregation_1A",66,null,{"$f":"\"=Vlookup(\"\"\"&B68&\"\"\",Translations!F3:H508,1,0)\"","v":"=Vlookup(\"66\",Translations!F3:H508,1,0)"},"Valeur","Value","Valeur","Valor"]
["Disaggregation_1A",67,null,"=Vlookup(\"67\",Translations!F3:H508,1,0)","Référence","Baseline","Référence","Linea de base"]
["Disaggregation_1A",68,null,"=Vlookup(\"68\",Translations!F3:H508,1,0)","Année","Year","Année","Año"]
["Disaggregation_1A",69,null,"=Vlookup(\"69\",Translations!F3:H508,1,0)","Source","Source","Source","Fuente"]
["Disaggregation_1A",70,null,"=Vlookup(\"70\",Translations!F3:H508,1,0)","Ventilation Année de la cible","Disaggregation Report Year","Ventilation Année de la cible","Fecha de presentación del informe"]
["Disaggregation_1A",71,null,"=Vlookup(\"71\",Translations!F3:H508,1,0)","Résultats","Result","Résultats","Resultados"]
["Disaggregation_1A",72,null,"=Vlookup(\"72\",Translations!F3:H508,1,0)","Valeur","Value","Valeur","Valor"]
["Disaggregation_1A",73,null,"=Vlookup(\"73\",Translations!F3:H508,1,0)","Source","Source","Source","Fuente"]
["Disaggregation_1A",74,null,"=Vlookup(\"74\",Translations!F3:H508,1,0)","Commentaires","Comments","Commentaires","Comentarios"]
["Disaggregation_1A",75,null,"=Vlookup(\"75\",Translations!F3:H508,1,0)","Verified Result","Verified Result","Verified Result","Verified Result"]
["Disaggregation_1A",76,null,"=Vlookup(\"76\",Translations!F3:H508,1,0)","Value","Value","Value","Value"]
["Disaggregation_1A",77,null,"=Vlookup(\"77\",Translations!F3:H508,1,0)","Verified Result","Verified Result","Verified Result","Verified Result"]
["Disaggregation_1A",78,null,"=Vlookup(\"78\",Translations!F3:H508,1,0)","Value","Value","Value","Value"]
["Disaggregation_1A",79,null,"=Vlookup(\"79\",Translations!F3:H508,1,0)","Source","Source","Source","Source"]
["Disaggregation_1A",80,null,"=Vlookup(\"80\",Translations!F3:H508,1,0)","LFA Comments","LFA Comments","LFA Comments","LFA Comments"]
["Coverage Inidcators_1B",81,null,"=Vlookup(\"81\",Translations!F3:H508,1,0)","Rapport périodique sur les résultats actuels et demande de décaissement","Progress Report with Disbursement Request","Rapport périodique sur les résultats actuels et demande de décaissement","Informe de progreso y solicitud de desembolso"]
["Coverage Inidcators_1B",82,null,"=Vlookup(\"82\",Translations!F3:H508,1,0)","Section 1 :  Information programmatique","Section 1:  Programmatic Information","Section 1 :  Information programmatique","Sección 1: Progresos programáticos"]
["Coverage Inidcators_1B",83,null,"=Vlookup(\"83\",Translations!F3:H508,1,0)","Remarque : Tous les indicateurs de couverture figurant dans le cadre de résultats actuel doivent être répertoriés, que les cibles aient été atteintes ou non pendant les périodes précédentes.  ","Note: All coverage indicators contained in the current Performance Framework should be listed, regardless of whether the targets have been met in previous periods.  ","Remarque : Tous les indicateurs de couverture figurant dans le cadre de résultats actuel doivent être répertoriés, que les cibles aient été atteintes ou non pendant les périodes précédentes.  ","Nota: en esta sección deben enumerarse todos los indicadores de cobertura incluidos en el actual Marco de Desempeño, con independencia de que  de metas alcanzadas en periodos anteriores."]
["Coverage Inidcators_1B",84,null,"=Vlookup(\"84\",Translations!F3:H508,1,0)","B- Indicateurs de couverture","B- Coverage Indicators","B- Indicateurs de couverture","B- Indicadores de cobertura"]
["Coverage Inidcators_1B",85,null,"=Vlookup(\"85\",Translations!F3:H508,1,0)","Module","Module","Module","Módulo"]
["Coverage Inidcators_1B",86,null,"=Vlookup(\"86\",Translations!F3:H508,1,0)","Indicateurs","Coverage Indicator","Indicateurs","Indicador "]
["Coverage Inidcators_1B",87,null,"=Vlookup(\"87\",Translations!F3:H508,1,0)","L'indicateur personnalisé","Custom Coverage Indicator","L'indicateur personnalisé","Indicador personalizado"]
["Coverage Inidcators_1B",88,null,"=Vlookup(\"88\",Translations!F3:H508,1,0)","Si infranationale, veuillez préciser dans la colonne des commentaires","If sub-national, please specify under the \"Comments\" Column","Si infranationale, veuillez préciser dans la colonne des commentaires","Si es subnacional, especifíquelo en el columna de comentarios"]
["Coverage Inidcators_1B",89,null,"=Vlookup(\"89\",Translations!F3:H508,1,0)","Cibles cumulatives ?\n","Targets cumulative?\n","Cibles cumulatives ?\n","¿Metas acumulativas?\n"]
["Coverage Inidcators_1B",90,null,"=Vlookup(\"90\",Translations!F3:H508,1,0)","N#","N#","N#","N#"]
["Coverage Inidcators_1B",91,null,"=Vlookup(\"91\",Translations!F3:H508,1,0)","D#","D#","D#","D#"]
["Coverage Inidcators_1B",92,null,"=Vlookup(\"92\",Translations!F3:H508,1,0)","%","%","%","%"]
["Coverage Inidcators_1B",93,null,"=Vlookup(\"93\",Translations!F3:H508,1,0)","Source","Source","Source","Fuente"]
["Coverage Inidcators_1B",94,null,"=Vlookup(\"94\",Translations!F3:H508,1,0)","Cible","Target","Cible","Meta"]
["Coverage Inidcators_1B",95,null,"=Vlookup(\"95\",Translations!F3:H508,1,0)","N#","N#","N#","N#"]
["Coverage Inidcators_1B",96,null,"=Vlookup(\"96\",Translations!F3:H508,1,0)","D#","D#","D#","D#"]
["Coverage Inidcators_1B",97,null,"=Vlookup(\"97\",Translations!F3:H508,1,0)","%","%","%","%"]
["Coverage Inidcators_1B",98,null,"=Vlookup(\"98\",Translations!F3:H508,1,0)","Résultats","Result","Résultats","Resultados"]
["Coverage Inidcators_1B",99,null,"=Vlookup(\"99\",Translations!F3:H508,1,0)","N#","N#","N#","N#"]
["Coverage Inidcators_1B",100,null,"=Vlookup(\"100\",Translations!F3:H508,1,0)","D#","D#","D#","D#"]
["Coverage Inidcators_1B",101,null,"=Vlookup(\"101\",Translations!F3:H508,1,0)","%","%","%","%"]
["Coverage Inidcators_1B",102,null,"=Vlookup(\"102\",Translations!F3:H508,1,0)","Source","Source","Source","Fuente"]
["Coverage Inidcators_1B",103,null,"=Vlookup(\"103\",Translations!F3:H508,1,0)","Taux d'accomplissement","Achievement Ratio","Taux d'accomplissement","Relación de logro"]
["Coverage Inidcators_1B",104,null,"=Vlookup(\"104\",Translations!F3:H508,1,0)","Commentaires:\nMotifs de l'écart programmatique par rapport à la cible visée et des écarts par rapport aux activités connexes du plan de travail","Comments:\nReasons for programmatic deviation from intended target and deviations from the related workplan activities","Commentaires:\nMotifs de l'écart programmatique par rapport à la cible visée et des écarts par rapport aux activités connexes du plan de travail","Causas de la variación programática con respecto a la meta fijada y de las varianzas en relación con las actividades del plan de trabajo"]
["Coverage Inidcators_1B",105,null,"=Vlookup(\"105\",Translations!F3:H508,1,0)","Verified Result","Verified Result","Verified Result","Verified Result"]
["Coverage Inidcators_1B",106,null,"=Vlookup(\"106\",Translations!F3:H508,1,0)","N#","N#","N#","N#"]
["Coverage Inidcators_1B",107,null,"=Vlookup(\"107\",Translations!F3:H508,1,0)","D#","D#","D#","D#"]
["Coverage Inidcators_1B",108,null,"=Vlookup(\"108\",Translations!F3:H508,1,0)","%","%","%","%"]
["Coverage Inidcators_1B",109,null,"=Vlookup(\"109\",Translations!F3:H508,1,0)","Source","Source","Source","Source"]
["Coverage Inidcators_1B",110,null,"=Vlookup(\"110\",Translations!F3:H508,1,0)","Achievement Ratio","Achievement Ratio","Achievement Ratio","Achievement Ratio"]
["Coverage Inidcators_1B",111,null,"=Vlookup(\"111\",Translations!F3:H508,1,0)","Verification Method","Verification Method","Verification Method","Verification Method"]
["Coverage Inidcators_1B",112,null,"=Vlookup(\"112\",Translations!F3:H508,1,0)","Comments:\nLFA analysis on progress to date and any variance between targets and results, and any other comments\n(this should not be a “Copy and Paste” of the reasons provided by the PR)","Comments:\nLFA analysis on progress to date and any variance between targets and results, and any other comments\n(this should not be a “Copy and Paste” of the reasons provided by the PR)","Comments:\nLFA analysis on progress to date and any variance between targets and results, and any other comments\n(this should not be a “Copy and Paste” of the reasons provided by the PR)","Comments:\nLFA analysis on progress to date and any variance between targets and results, and any other comments\n(this should not be a “Copy and Paste” of the reasons provided by the PR)"]
["Disaggregation_1B",113,null,"=Vlookup(\"113\",Translations!F3:H508,1,0)","Rapport périodique sur les résultats actuels et demande de décaissement","Progress Report with Disbursement Request","Rapport périodique sur les résultats actuels et demande de décaissement","Informe de progreso y solicitud de desembolso"]
["Disaggregation_1B",114,null,"=Vlookup(\"114\",Translations!F3:H508,1,0)","Section 1 : Information programmatique","Section 1:  Programmatic Information","Section 1 : Information programmatique","Sección 1: Información programática"]
["Disaggregation_1B",115,null,"=Vlookup(\"115\",Translations!F3:H508,1,0)","B- Indicateurs de couverture - Ventilation","B- Coverage Indicators - Disaggregation","B- Indicateurs de couverture - Ventilation","B- Indicadores de cobertura: desglose"]
["Disaggregation_1B",116,null,"=Vlookup(\"116\",Translations!F3:H508,1,0)","Module","Module","Module","Módulo"]
["Disaggregation_1B",117,null,"=Vlookup(\"117\",Translations!F3:H508,1,0)","Indicateurs","Coverage Indicator","Indicateurs","Indicadores"]
["Disaggregation_1B",118,null,"=Vlookup(\"118\",Translations!F3:H508,1,0)","Ventilation","Disaggregation","Ventilation","Desglose"]
["Disaggregation_1B",119,null,"=Vlookup(\"119\",Translations!F3:H508,1,0)","Catégorie","Category","Catégorie","Categoría"]
["Disaggregation_1B",120,null,"=Vlookup(\"120\",Translations!F3:H508,1,0)","Référence","Baseline","Référence","Base de referencia"]
["Disaggregation_1B",121,null,"=Vlookup(\"121\",Translations!F3:H508,1,0)","N#","N#","N#","N#"]
["Disaggregation_1B",122,null,"=Vlookup(\"122\",Translations!F3:H508,1,0)","D#","D#","D#","D#"]
["Disaggregation_1B",123,null,"=Vlookup(\"123\",Translations!F3:H508,1,0)","%","%","%","%"]
["Disaggregation_1B",124,null,"=Vlookup(\"124\",Translations!F3:H508,1,0)","Année","Year","Année","Año"]
["Disaggregation_1B",125,null,"=Vlookup(\"125\",Translations!F3:H508,1,0)","Source","Source","Source","Fuente"]
["Disaggregation_1B",126,null,"=Vlookup(\"126\",Translations!F3:H508,1,0)","Résultats","Results","Résultats","Resultados"]
["Disaggregation_1B",127,null,"=Vlookup(\"127\",Translations!F3:H508,1,0)","N#","N#","N#","N#"]
["Disaggregation_1B",128,null,"=Vlookup(\"128\",Translations!F3:H508,1,0)","D#","D#","D#","D#"]
["Disaggregation_1B",129,null,"=Vlookup(\"129\",Translations!F3:H508,1,0)",{"$f":"IF(LangOffset=0,F131,IF(LangOffset=1,G131,IF(LangOffset=2,H131)))","v":"%"},"%","%","%"]
["Disaggregation_1B",130,null,{"$f":"\"=Vlookup(\"\"\"&B132&\"\"\",Translations!F3:H508,1,0)\"","v":"=Vlookup(\"130\",Translations!F3:H508,1,0)"},"Source","Source","Source","Fuente"]
["Disaggregation_1B",131,null,"=Vlookup(\"131\",Translations!F3:H508,1,0)","Commentaires","Comments","Commentaires","Comentarios"]
["Disaggregation_1B",132,null,"=Vlookup(\"132\",Translations!F3:H508,1,0)","Verified Results","Verified Results","Verified Results","Verified Results"]
["Disaggregation_1B",133,null,"=Vlookup(\"133\",Translations!F3:H508,1,0)","N#","N#","N#","N#"]
["Disaggregation_1B",134,null,"=Vlookup(\"134\",Translations!F3:H508,1,0)","D#","D#","D#","D#"]
["Disaggregation_1B",135,null,"=Vlookup(\"135\",Translations!F3:H508,1,0)","%","%","%","%"]
["Disaggregation_1B",136,null,"=Vlookup(\"136\",Translations!F3:H508,1,0)","Source","Source","Source","Source"]
["Disaggregation_1B",137,null,"=Vlookup(\"137\",Translations!F3:H508,1,0)","Comments","Comments","Comments","Comments"]
["WPTM_1C",138,null,"=Vlookup(\"138\",Translations!F3:H508,1,0)","Rapport périodique sur les résultats actuels et demande de décaissement","Progress Report with Disbursement Request","Rapport périodique sur les résultats actuels et demande de décaissement","Informe de progreso y solicitud de desembolso"]
["WPTM_1C",139,null,"=Vlookup(\"139\",Translations!F3:H508,1,0)","Section 1 :  information programmatique","Section 1:  Programmatic Information","Section 1 :  information programmatique","Sección 1: Información programática"]
["WPTM_1C",140,null,"=Vlookup(\"140\",Translations!F3:H508,1,0)","Remarque : Saisissez uniquement les mesures de suivi du plan de travail dont il doit être fait rapport pendant la période concernée ","Note: Only the Workplan Tracking Measures that are due for the reporting period have been captured","Remarque : Saisissez uniquement les mesures de suivi du plan de travail dont il doit être fait rapport pendant la période concernée ","Nota: introduzca únicamente las medidas de seguimiento del plan de trabajo sobre las que debe informarse en el periodo de notificación."]
["WPTM_1C",141,null,"=Vlookup(\"141\",Translations!F3:H508,1,0)","C- Mesures de suivi du plan de travail","C- Workplan Tracking Measures","C- Mesures de suivi du plan de travail","C- Medidas de seguimiento del plan de trabajo"]
["WPTM_1C",142,null,"=Vlookup(\"142\",Translations!F3:H508,1,0)","Module","Module Name","Module","Módulo"]
["WPTM_1C",143,null,"=Vlookup(\"143\",Translations!F3:H508,1,0)","Intervention","Intervention","Intervention","Intervención"]
["WPTM_1C",144,null,"=Vlookup(\"144\",Translations!F3:H508,1,0)","Activité","Custom Intervention","Activité","Intervención personalizado"]
["WPTM_1C",145,null,"=Vlookup(\"145\",Translations!F3:H508,1,0)","Détails de l'activité- étapes clés/cibles","Activity","Détails de l'activité- étapes clés/cibles","Actividad"]
["WPTM_1C",146,null,"=Vlookup(\"146\",Translations!F3:H508,1,0)","Critère de réalisation","Activity details- milestones/ targets","Critère de réalisation","Detalles de la actividad: objetivos/metas"]
["WPTM_1C",147,null,"=Vlookup(\"147\",Translations!F3:H508,1,0)","Étapes clés/cible pour la période actuelle","Criterion for Completion","Étapes clés/cible pour la période actuelle","Criterios para la realización"]
["WPTM_1C",148,null,"=Vlookup(\"148\",Translations!F3:H508,1,0)","Pays (pour les subventions multipays)","Country (relevant for multi-country grants)","Pays (pour les subventions multipays)","País (pertinente en las subvenciones multipaís)"]
["WPTM_1C",149,null,"=Vlookup(\"149\",Translations!F3:H508,1,0)","Note","Progress Status","Note","Situación de los progresos"]
["WPTM_1C",150,null,"=Vlookup(\"150\",Translations!F3:H508,1,0)","Motifs de l'écart par rapport aux activités et étapes clés du plan de travail","Score","Motifs de l'écart par rapport aux activités et étapes clés du plan de travail","Calificación"]
["WPTM_1C",151,null,"=Vlookup(\"151\",Translations!F3:H508,1,0)","Progress Status","Reasons for deviation from workplan activities and milestones","Progress Status","Causas de la variación con respecto a las actividades y los objetivos del plan de trabajo"]
["WPTM_1C",152,null,"=Vlookup(\"152\",Translations!F3:H508,1,0)","Verified Score","Progress Status","Verified Score","Progress Status"]
["WPTM_1C",153,null,"=Vlookup(\"153\",Translations!F3:H508,1,0)","LFA analysis of progress and any variance between targets and results, and any other comments\n(this should not be a “Copy and Paste” of the reasons provided by the PR)","Verified Score","LFA analysis of progress and any variance between targets and results, and any other comments\n(this should not be a “Copy and Paste” of the reasons provided by the PR)","Verified Score"]
["WPTM_1C",154,null,"=Vlookup(\"154\",Translations!F3:H508,1,0)",0,"LFA analysis of progress and any variance between targets and results, and any other comments\n(this should not be a “Copy and Paste” of the reasons provided by the PR)",0,"LFA analysis of progress and any variance between targets and results, and any other comments\n(this should not be a “Copy and Paste” of the reasons provided by the PR)"]
["SR Cash Reconciliation_2A,B,C,D",155,null,"=Vlookup(\"155\",Translations!F3:H508,1,0)","Rapport périodique sur les résultats actuels et demande de décaissement","Progress Report with Disbursement Request","Rapport périodique sur les résultats actuels et demande de décaissement","Informe de progreso y solicitud de desembolso"]
["SR Cash Reconciliation_2A,B,C,D",156,null,"=Vlookup(\"156\",Translations!F3:H508,1,0)","Section 2 : Information financière","Section 2: Financial Information","Section 2 : Information financière","Sección 2: Información financiera"]
["SR Cash Reconciliation_2A,B,C,D",157,null,"=Vlookup(\"157\",Translations!F3:H508,1,0)","Période couverte par le rapport sur les information financière","Period of Financial Reporting","Période couverte par le rapport sur les information financière","Periodo de avances financieros"]
["SR Cash Reconciliation_2A,B,C,D",158,null,"=Vlookup(\"158\",Translations!F3:H508,1,0)","Date de début :","Beginning Date:","Date de début :","Fecha de inicio:"]
["SR Cash Reconciliation_2A,B,C,D",159,null,"=Vlookup(\"159\",Translations!F3:H508,1,0)","Date de fin :","End Date:","Date de fin :","Fecha final:"]
["SR Cash Reconciliation_2A,B,C,D",160,null,"=Vlookup(\"160\",Translations!F3:H508,1,0)","Cumulative Period of Financial Reporting","Cumulative Period of Financial Reporting","Cumulative Period of Financial Reporting","Periodo acumulativo de avances financieros"]
["SR Cash Reconciliation_2A,B,C,D",161,null,"=Vlookup(\"161\",Translations!F3:H508,1,0)","Date de début :","Beginning Date:","Date de début :","Fecha de inicio:"]
["SR Cash Reconciliation_2A,B,C,D",162,null,"=Vlookup(\"162\",Translations!F3:H508,1,0)","Date de fin :","End Date:","Date de fin :","Fecha final:"]
["SR Cash Reconciliation_2A,B,C,D",163,null,"=Vlookup(\"163\",Translations!F3:H508,1,0)","Rapprochement du récipiendaire principal concernant les fonds fournis aux sous-récipiendaires pour la période actuelle de mise en œuvre","Principal Recipient Reconciliation of funds provided to Sub-Recipients for the Current Implementation Period","Rapprochement du récipiendaire principal concernant les fonds fournis aux sous-récipiendaires pour la période actuelle de mise en œuvre","Principal Recipient Reconciliation of funds provided to Sub-Recipients for the Current Implementation Period"]
["SR Cash Reconciliation_2A,B,C,D",164,null,"=Vlookup(\"164\",Translations!F3:H508,1,0)","Principal Recipient","Principal Recipient","Principal Recipient","Principal Recipient"]
["SR Cash Reconciliation_2A,B,C,D",165,null,"=Vlookup(\"165\",Translations!F3:H508,1,0)","(1) \nNom du sous-récipiendaire","(1) \nSub-Recipient Name","(1) \nNom du sous-récipiendaire","(1) \nNombre del SR"]
["SR Cash Reconciliation_2A,B,C,D",166,null,"=Vlookup(\"166\",Translations!F3:H508,1,0)","(2) \n Dépenses cumulées du sous-récipiendaire pour les périodes précédentes au niveau du récipiendaire principal","(2) \n Cumulative Sub-Recipient expenses for prior periods at Principal Recipient level","(2) \n Dépenses cumulées du sous-récipiendaire pour les périodes précédentes au niveau du récipiendaire principal","(2) \n Gastos acumulativos del SR en periodos anteriores a nivel del RP"]
["SR Cash Reconciliation_2A,B,C,D",167,null,"=Vlookup(\"167\",Translations!F3:H508,1,0)","(3) \nAvances ouvertes au sous-récipiendaire au niveau du récipiendaire principal","(3) \nSub-Recipient Open Advances at Principal Recipient Level","(3) \nAvances ouvertes au sous-récipiendaire au niveau du récipiendaire principal","(3) \nAnticipos pendientes al SR a nivel del RP"]
["SR Cash Reconciliation_2A,B,C,D",168,null,"=Vlookup(\"168\",Translations!F3:H508,1,0)","(4) \nDécaissements réalisés par le récipiendaire principal","(4) \nDisbursements made by Principal Recipient during the Reporting Period","(4) \nDécaissements réalisés par le récipiendaire principal","(4) \nDesembolsos realizados por el RP"]
["SR Cash Reconciliation_2A,B,C,D",169,null,"=Vlookup(\"169\",Translations!F3:H508,1,0)","(5) \nAutres revenus*","(5) \nOther Income* during the Reporting Period ","(5) \nAutres revenus*","(5) \nOtros ingresos*"]
["SR Cash Reconciliation_2A,B,C,D",170,null,"=Vlookup(\"170\",Translations!F3:H508,1,0)","(6) \nDépenses validées par le récipiendaire principal","(6) \nExpenditure validated by Principal Recipient during the Reporting Period","(6) \nDépenses validées par le récipiendaire principal","(6) \nGastos validados por el RP"]
["SR Cash Reconciliation_2A,B,C,D",171,null,"=Vlookup(\"171\",Translations!F3:H508,1,0)","(7)\nRefunds received  from the Sub-Recipient","(7)\nRefunds received  from the Sub-Recipient","(7)\nRefunds received  from the Sub-Recipient","(7)\nReembolsos recibidos por los subreceptores"]
["SR Cash Reconciliation_2A,B,C,D",172,null,"=Vlookup(\"172\",Translations!F3:H508,1,0)","(8) \nSolde de trésorerie de clôture du sous-récipiendaire au niveau du récipiendaire principal","(8) \nSub-Recipient Closing Balance at Principal Recipient Level","(8) \nSolde de trésorerie de clôture du sous-récipiendaire au niveau du récipiendaire principal","(8) \nSaldo de cierre del SR a nivel del RP"]
["SR Cash Reconciliation_2A,B,C,D",173,null,"=Vlookup(\"173\",Translations!F3:H508,1,0)","(9) \nSolde de trésorerie réel du sous-récipiendaire (le cas échéant)","(9) \nActual Sub-Recipient Cash Balance (if applicable)","(9) \nSolde de trésorerie réel du sous-récipiendaire (le cas échéant)","(9) \nSaldo de caja real del SR (si corresponde)"]
["SR Cash Reconciliation_2A,B,C,D",174,null,"=Vlookup(\"174\",Translations!F3:H508,1,0)"," (10)\nÉcarts par rapport aux soldes des sous-récipiendaires"," (10)\nVariances on Sub-Recipient Balances"," (10)\nÉcarts par rapport aux soldes des sous-récipiendaires"," (10)\nVariaciones en los saldos del SR"]
["SR Cash Reconciliation_2A,B,C,D",175,null,"=Vlookup(\"175\",Translations!F3:H508,1,0)","Commentaires","Comments","Commentaires","Comentarios"]
["SR Cash Reconciliation_2A,B,C,D",176,null,"=Vlookup(\"176\",Translations!F3:H508,1,0)","For Local Fund Agent Use Only ","For Local Fund Agent Use Only ","For Local Fund Agent Use Only ","For Local Fund Agent Use Only "]
["SR Cash Reconciliation_2A,B,C,D",177,null,"=Vlookup(\"177\",Translations!F3:H508,1,0)","LFA Adjustments","LFA Adjustments","LFA Adjustments","LFA Adjustments"]
["SR Cash Reconciliation_2A,B,C,D",178,null,"=Vlookup(\"178\",Translations!F3:H508,1,0)","As verified by LFA","As verified by LFA","As verified by LFA","As verified by LFA"]
["SR Cash Reconciliation_2A,B,C,D",179,null,"=Vlookup(\"179\",Translations!F3:H508,1,0)","Comments","Comments","Comments","Comments"]
["SR Cash Reconciliation_2A,B,C,D",180,null,"=Vlookup(\"180\",Translations!F3:H508,1,0)","Total pour la période de rapport","Total for the Reporting Period","Total pour la période de rapport","Total para el periodo del informe"]
["SR Cash Reconciliation_2A,B,C,D",181,null,"=Vlookup(\"181\",Translations!F3:H508,1,0)","* Inclut les intérêts, les activités génératrices de revenu, etc.","* Includes interest income, income generating activites etc.","* Inclut les intérêts, les activités génératrices de revenu, etc.","*Incluye ingresos derivados de intereses, actividades generadores de ingresos, etc."]
["Budget Variance_2F",182,null,"=Vlookup(\"182\",Translations!F3:H508,1,0)","Rapport périodique sur les résultats actuels et demande de décaissement","Progress Report with Disbursement Request","Rapport périodique sur les résultats actuels et demande de décaissement","Informe de progreso y solicitud de desembolso"]
["Budget Variance_2F",183,null,"=Vlookup(\"183\",Translations!F3:H508,1,0)","Section 2 : Information financière","Section 2: Financial Information","Section 2 : Information financière","Sección 2: Información financiera"]
["Budget Variance_2F",184,null,"=Vlookup(\"184\",Translations!F3:H508,1,0)","Période couverte par le rapport sur les information financière","Period of Financial Reporting","Période couverte par le rapport sur les information financière","Periodo de avances financieros"]
["Budget Variance_2F",185,null,"=Vlookup(\"185\",Translations!F3:H508,1,0)","Date de début :","Beginning Date:","Date de début :","Fecha de inicio:"]
["Budget Variance_2F",186,null,"=Vlookup(\"186\",Translations!F3:H508,1,0)","Date de fin :","End Date:","Date de fin :","Fecha final:"]
["Budget Variance_2F",187,null,"=Vlookup(\"187\",Translations!F3:H508,1,0)","Cumulative Period of Financial Reporting","Cumulative Period of Financial Reporting","Cumulative Period of Financial Reporting","Periodo acumulativo de avances financieros"]
["Budget Variance_2F",188,null,"=Vlookup(\"188\",Translations!F3:H508,1,0)","Date de début :","Beginning Date:","Date de début :","Fecha de inicio:"]
["Budget Variance_2F",189,null,"=Vlookup(\"189\",Translations!F3:H508,1,0)","Date de fin :","End Date:","Date de fin :","Fecha final:"]
["Budget Variance_2F",190,null,"=Vlookup(\"190\",Translations!F3:H508,1,0)","Écart budgétaire total du récipiendaire principal et analyse de l'absorption des fonds","Total Principal Recipient Budget Variance and Funding Absorption Analysis","Écart budgétaire total du récipiendaire principal et analyse de l'absorption des fonds","Variación total del presupuesto del RP y análisis de absorción del financiamiento"]
["Budget Variance_2F",191,null,"=Vlookup(\"191\",Translations!F3:H508,1,0)","Récipiendaire principal","Principal Recipient","Récipiendaire principal","Receptor principal"]
["Budget Variance_2F",192,null,"=Vlookup(\"192\",Translations!F3:H508,1,0)","Budget pour la période de rapport","Budget for Reporting Period","Budget pour la période de rapport","Presupuesto del periodo de avances financieros"]
["Budget Variance_2F",193,null,"=Vlookup(\"193\",Translations!F3:H508,1,0)",{"$f":"IF(LangOffset=0,F195,IF(LangOffset=1,G195,IF(LangOffset=2,H195)))","v":"Sorties de fonds réelles de la subvention - Comptabilité de trésorerie pour la période de rapport"},"Actual Grant Cash Out-Flow - Cash Basis for Reporting Period","Sorties de fonds réelles de la subvention - Comptabilité de trésorerie pour la période de rapport","Salidas de efectivo de la subvención (base de efectivo) para el periodo de avances financieros"]
["Budget Variance_2F",194,null,{"$f":"\"=Vlookup(\"\"\"&B196&\"\"\",Translations!F3:H508,1,0)\"","v":"=Vlookup(\"194\",Translations!F3:H508,1,0)"},"Écarts budget - dép. réelles","Budget Vs Actual Variances","Écarts budget - dép. réelles","Presupuesto frente a variaciones reales"]
["Budget Variance_2F",195,null,"=Vlookup(\"195\",Translations!F3:H508,1,0)","Capacité d'absorption","Absorption Capacity","Capacité d'absorption","Capacidad de absorción"]
["Budget Variance_2F",196,null,"=Vlookup(\"196\",Translations!F3:H508,1,0)","Motifs de l'écart","Reasons for Variance","Motifs de l'écart","Causas de la variación"]
["Budget Variance_2F",197,null,"=Vlookup(\"197\",Translations!F3:H508,1,0)","Budget cumulé jusqu'à la fin de la période du rapport","Cumulative Budget through period of Progress Update","Budget cumulé jusqu'à la fin de la période du rapport","Presupuesto acumulativo hasta el final del perodo de avances financieros"]
["Budget Variance_2F",198,null,"=Vlookup(\"198\",Translations!F3:H508,1,0)","Sorties de fonds réelles cumulées de la subvention - comptabilité de trésorerie - jusqu’à la fin de la période du rapport","Cumulative Actual Grant Cash-Outflow - Cash Basis through period of Progress Update","Sorties de fonds réelles cumulées de la subvention - comptabilité de trésorerie - jusqu’à la fin de la période du rapport","Salidas de efectivo de la subvención (base de efectivo) acumulado hasta el final del perodo de avances financieros"]
["Budget Variance_2F",199,null,"=Vlookup(\"199\",Translations!F3:H508,1,0)","Écarts cumulés budget - dép. réelles","Cumulative Budget Vs Actuals Variances","Écarts cumulés budget - dép. réelles","Presupuesto acumulativo frente a variaciones reales "]
["Budget Variance_2F",200,null,"=Vlookup(\"200\",Translations!F3:H508,1,0)","Capacité d'absorption","Absorption Capacity","Capacité d'absorption","Capacidad de absorción"]
["Budget Variance_2F",201,null,"=Vlookup(\"201\",Translations!F3:H508,1,0)","Motifs de l'écart","Reasons for Variance","Motifs de l'écart","Causas de la variación"]
["Budget Variance_2F",202,null,"=Vlookup(\"202\",Translations!F3:H508,1,0)","1. Sorties de fonds totales du récipiendaire principal par rapport au budget","1. Total Principal Recipient cash outflow vs. budget","1. Sorties de fonds totales du récipiendaire principal par rapport au budget","1. Salidas totales de efectivo del RP frente al presupuesto"]
["Budget Variance_2F",203,null,"=Vlookup(\"203\",Translations!F3:H508,1,0)","    1a. Dépenses totales du récipiendaire principal (y compris tout décaissement direct à des tiers)","    1a. Principal Recipient's total expenditures (including any direct-disbursements to third-parties)","    1a. Dépenses totales du récipiendaire principal (y compris tout décaissement direct à des tiers)","    1a. Gastos totales del RP (incluidos desembolsos directos a terceros)"]
["Budget Variance_2F",204,null,"=Vlookup(\"204\",Translations!F3:H508,1,0)","    1b. Décaissements aux sous-récipiendaires","    1b. Disbursements to sub-recipients","    1b. Décaissements aux sous-récipiendaires","    1b. Desembolsos a los subreceptores"]
["Budget Variance_2F",205,null,"=Vlookup(\"205\",Translations!F3:H508,1,0)","Données d'achats à des fins d'analyse","Procurement data for analytical purposes","Données d'achats à des fins d'analyse","Datos sobre adquisiciones con fines analíticos"]
["Budget Variance_2F",206,null,"=Vlookup(\"206\",Translations!F3:H508,1,0)","Budget pour la période de rapport","Budget for Reporting Period","Budget pour la période de rapport","Presupuesto del periodo de avances financieros"]
["Budget Variance_2F",207,null,"=Vlookup(\"207\",Translations!F3:H508,1,0)","Sorties de fonds réelles de la subvention - Comptabilité de trésorerie pour la période de rapport","Actual Grant Cash Out-Flow - Cash Basis for Reporting Period","Sorties de fonds réelles de la subvention - Comptabilité de trésorerie pour la période de rapport","Salidas de efectivo de la subvención (base de efectivo) para el periodo de avances financieros"]
["Budget Variance_2F",208,null,"=Vlookup(\"208\",Translations!F3:H508,1,0)","Écarts budget - dép. réelles","Budget Vs Actual Variances","Écarts budget - dép. réelles","Presupuesto frente a variaciones reales"]
["Budget Variance_2F",209,null,"=Vlookup(\"209\",Translations!F3:H508,1,0)","Capacité d'absorption","Absorption Capacity","Capacité d'absorption","Capacidad de absorción"]
["Budget Variance_2F",210,null,"=Vlookup(\"210\",Translations!F3:H508,1,0)","Motifs de l'écart","Reasons for Variance","Motifs de l'écart","Causas de la variación"]
["Budget Variance_2F",211,null,"=Vlookup(\"211\",Translations!F3:H508,1,0)","Budget cumulé jusqu'à la fin de la période du rapport","Cumulative Budget through period of Progress Update","Budget cumulé jusqu'à la fin de la période du rapport","Presupuesto acumulativo hasta el final del perodo de avances financieros"]
["Budget Variance_2F",212,null,"=Vlookup(\"212\",Translations!F3:H508,1,0)","Sorties de fonds réelles cumulées de la subvention - comptabilité de trésorerie - jusqu’à la fin de la période du rapport","Cumulative Actual Grant Cash-Outflow - Cash Basis through period of Progress Update","Sorties de fonds réelles cumulées de la subvention - comptabilité de trésorerie - jusqu’à la fin de la période du rapport","Salidas de efectivo de la subvención (base de efectivo) acumulado hasta el final del perodo de avances financieros"]
["Budget Variance_2F",213,null,"=Vlookup(\"213\",Translations!F3:H508,1,0)","Écarts cumulés budget - dép. réelles","Cumulative Budget Vs Actuals Variances","Écarts cumulés budget - dép. réelles","Presupuesto acumulativo frente a variaciones reales "]
["Budget Variance_2F",214,null,"=Vlookup(\"214\",Translations!F3:H508,1,0)","Capacité d'absorption","Absorption Capacity","Capacité d'absorption","Capacidad de absorción"]
["Budget Variance_2F",215,null,"=Vlookup(\"215\",Translations!F3:H508,1,0)","Motifs de l'écart","Reasons for Variance","Motifs de l'écart","Causas de la variación"]
["Budget Variance_2F",216,null,"=Vlookup(\"216\",Translations!F3:H508,1,0)","2. Dépenses pharmaceutiques et non pharmaceutiques (y compris équipements) totales par rapport au budget","2. Total pharmaceutical & non-pharmaceutical incl. equipment expenditures vs.    budget","2. Dépenses pharmaceutiques et non pharmaceutiques (y compris équipements) totales par rapport au budget","2. Gastos totales en productos farmacéuticos y no farmacéuticos, incluido equipamiento, frente al presupuesto"]
["Budget Variance_2F",217,null,"=Vlookup(\"217\",Translations!F3:H508,1,0)","    2a.  Produits de santé - Produits pharmaceutiques","    2a.  Health Products- Pharmaceutical Products","    2a.  Produits de santé - Produits pharmaceutiques","    2a.  Productos sanitarios: productos farmacéuticos"]
["Budget Variance_2F",218,null,"=Vlookup(\"218\",Translations!F3:H508,1,0)","    2b.  Produits de santé - Produits non pharmaceutiques et équipements","    2b.  Health Products - Non-Pharmaceuticals & Equipment","    2b.  Produits de santé - Produits non pharmaceutiques et équipements","    2b.  Productos sanitarios: productos no farmacéuticos y equipamiento"]
["Budget Variance_2F",219,null,"=Vlookup(\"219\",Translations!F3:H508,1,0)","For LFA Use Only","For LFA Use Only","For LFA Use Only","For LFA Use Only"]
["Budget Variance_2F",220,null,"=Vlookup(\"220\",Translations!F3:H508,1,0)","E. Total Principal Recipient Budget Variance and Absorption Analysis","E. Total Principal Recipient Budget Variance and Absorption Analysis","E. Total Principal Recipient Budget Variance and Absorption Analysis","E. Total Principal Recipient Budget Variance and Absorption Analysis"]
["Budget Variance_2F",221,null,"=Vlookup(\"221\",Translations!F3:H508,1,0)","Local Fund Agent (LFA)","Local Fund Agent (LFA)","Local Fund Agent (LFA)","Local Fund Agent (LFA)"]
["Budget Variance_2F",222,null,"=Vlookup(\"222\",Translations!F3:H508,1,0)","Budget for Reporting Period","Budget for Reporting Period","Budget for Reporting Period","Budget for Reporting Period"]
["Budget Variance_2F",223,null,"=Vlookup(\"223\",Translations!F3:H508,1,0)","Actual Grant Expenditure - Cash Basis for Reporting Period","Actual Grant Expenditure - Cash Basis for Reporting Period","Actual Grant Expenditure - Cash Basis for Reporting Period","Actual Grant Expenditure - Cash Basis for Reporting Period"]
["Budget Variance_2F",224,null,"=Vlookup(\"224\",Translations!F3:H508,1,0)","Budget Vs Actual Variances","Budget Vs Actual Variances","Budget Vs Actual Variances","Budget Vs Actual Variances"]
["Budget Variance_2F",225,null,"=Vlookup(\"225\",Translations!F3:H508,1,0)","Absorption Capacity","Absorption Capacity","Absorption Capacity","Absorption Capacity"]
["Budget Variance_2F",226,null,"=Vlookup(\"226\",Translations!F3:H508,1,0)","LFA comments on thePrincipal Recipient's explanation of variances ","LFA comments on thePrincipal Recipient's explanation of variances ","LFA comments on thePrincipal Recipient's explanation of variances ","LFA comments on thePrincipal Recipient's explanation of variances "]
["Budget Variance_2F",227,null,"=Vlookup(\"227\",Translations!F3:H508,1,0)","Cumulative Budget through period of Progress Update","Cumulative Budget through period of Progress Update","Cumulative Budget through period of Progress Update","Cumulative Budget through period of Progress Update"]
["Budget Variance_2F",228,null,"=Vlookup(\"228\",Translations!F3:H508,1,0)","Cumulative Actual Grant Expenditure - Cash Basis through period of Progress Update","Cumulative Actual Grant Expenditure - Cash Basis through period of Progress Update","Cumulative Actual Grant Expenditure - Cash Basis through period of Progress Update","Cumulative Actual Grant Expenditure - Cash Basis through period of Progress Update"]
["Budget Variance_2F",229,null,"=Vlookup(\"229\",Translations!F3:H508,1,0)","Cumulative Budget Vs Actuals Variances","Cumulative Budget Vs Actuals Variances","Cumulative Budget Vs Actuals Variances","Cumulative Budget Vs Actuals Variances"]
["Budget Variance_2F",230,null,"=Vlookup(\"230\",Translations!F3:H508,1,0)","Absorption Capacity","Absorption Capacity","Absorption Capacity","Absorption Capacity"]
["Budget Variance_2F",231,null,"=Vlookup(\"231\",Translations!F3:H508,1,0)","LFA comments on the Principal Recipient's explanation of variances ","LFA comments on the Principal Recipient's explanation of variances ","LFA comments on the Principal Recipient's explanation of variances ","LFA comments on the Principal Recipient's explanation of variances "]
["Budget Variance_2F",232,null,"=Vlookup(\"232\",Translations!F3:H508,1,0)","1. Total Principal Recipient cash outflow vs. budget","1. Total Principal Recipient cash outflow vs. budget","1. Total Principal Recipient cash outflow vs. budget","1. Total Principal Recipient cash outflow vs. budget"]
["Budget Variance_2F",233,null,"=Vlookup(\"233\",Translations!F3:H508,1,0)","    1a. Principal Recipient's total expenditures (including any direct-disbursements to third-parties)","    1a. Principal Recipient's total expenditures (including any direct-disbursements to third-parties)","    1a. Principal Recipient's total expenditures (including any direct-disbursements to third-parties)","    1a. Principal Recipient's total expenditures (including any direct-disbursements to third-parties)"]
["Budget Variance_2F",234,null,"=Vlookup(\"234\",Translations!F3:H508,1,0)","    1b. Disbursements to sub-recipients","    1b. Disbursements to sub-recipients","    1b. Disbursements to sub-recipients","    1b. Disbursements to sub-recipients"]
["Budget Variance_2F",235,null,"=Vlookup(\"235\",Translations!F3:H508,1,0)","Procurement data for analytical purposes","Procurement data for analytical purposes","Procurement data for analytical purposes","Procurement data for analytical purposes"]
["Budget Variance_2F",236,null,"=Vlookup(\"236\",Translations!F3:H508,1,0)","Budget for Reporting Period","Budget for Reporting Period","Budget for Reporting Period","Budget for Reporting Period"]
["Budget Variance_2F",237,null,"=Vlookup(\"237\",Translations!F3:H508,1,0)","Actual Grant Expenditure - Cash Basis for Reporting Period","Actual Grant Expenditure - Cash Basis for Reporting Period","Actual Grant Expenditure - Cash Basis for Reporting Period","Actual Grant Expenditure - Cash Basis for Reporting Period"]
["Budget Variance_2F",238,null,"=Vlookup(\"238\",Translations!F3:H508,1,0)","Budget Vs Actual Variances","Budget Vs Actual Variances","Budget Vs Actual Variances","Budget Vs Actual Variances"]
["Budget Variance_2F",239,null,"=Vlookup(\"239\",Translations!F3:H508,1,0)","Absorption Capacity","Absorption Capacity","Absorption Capacity","Absorption Capacity"]
["Budget Variance_2F",240,null,"=Vlookup(\"240\",Translations!F3:H508,1,0)","LFA comments on the Principal Recipient's explanation of variances ","LFA comments on the Principal Recipient's explanation of variances ","LFA comments on the Principal Recipient's explanation of variances ","LFA comments on the Principal Recipient's explanation of variances "]
["Budget Variance_2F",241,null,"=Vlookup(\"241\",Translations!F3:H508,1,0)","Cumulative Budget through period of Progress Update","Cumulative Budget through period of Progress Update","Cumulative Budget through period of Progress Update","Cumulative Budget through period of Progress Update"]
["Budget Variance_2F",242,null,"=Vlookup(\"242\",Translations!F3:H508,1,0)","Cumulative Actual Grant Expenditure - Cash Basis through period of Progress Update","Cumulative Actual Grant Expenditure - Cash Basis through period of Progress Update","Cumulative Actual Grant Expenditure - Cash Basis through period of Progress Update","Cumulative Actual Grant Expenditure - Cash Basis through period of Progress Update"]
["Budget Variance_2F",243,null,"=Vlookup(\"243\",Translations!F3:H508,1,0)","Cumulative Budget Vs Actuals Variances","Cumulative Budget Vs Actuals Variances","Cumulative Budget Vs Actuals Variances","Cumulative Budget Vs Actuals Variances"]
["Budget Variance_2F",244,null,"=Vlookup(\"244\",Translations!F3:H508,1,0)","Absorption Capacity","Absorption Capacity","Absorption Capacity","Absorption Capacity"]
["Budget Variance_2F",245,null,"=Vlookup(\"245\",Translations!F3:H508,1,0)","LFA comments on the Principal Recipient's explanation of variances ","LFA comments on the Principal Recipient's explanation of variances ","LFA comments on the Principal Recipient's explanation of variances ","LFA comments on the Principal Recipient's explanation of variances "]
["Budget Variance_2F",246,null,"=Vlookup(\"246\",Translations!F3:H508,1,0)","2. Total pharmaceutical & non-pharmaceutical incl. equipment expenditures vs. budget","2. Total pharmaceutical & non-pharmaceutical incl. equipment expenditures vs. budget","2. Total pharmaceutical & non-pharmaceutical incl. equipment expenditures vs. budget","2. Total pharmaceutical & non-pharmaceutical incl. equipment expenditures vs. budget"]
["Budget Variance_2F",247,null,"=Vlookup(\"247\",Translations!F3:H508,1,0)","    2a.  Health Products- Pharmaceutical Products","    2a.  Health Products- Pharmaceutical Products","    2a.  Health Products- Pharmaceutical Products","    2a.  Health Products- Pharmaceutical Products"]
["Budget Variance_2F",248,null,"=Vlookup(\"248\",Translations!F3:H508,1,0)","    2b.  Health Products - Non-Pharmaceuticals & Equipment","    2b.  Health Products - Non-Pharmaceuticals & Equipment","    2b.  Health Products - Non-Pharmaceuticals & Equipment","    2b.  Health Products - Non-Pharmaceuticals & Equipment"]
["Procurement_3",249,null,"=Vlookup(\"249\",Translations!F3:H508,1,0)","Rapport périodique sur les résultats actuels et demande de décaissement","Progress Report with Disbursement Request","Rapport périodique sur les résultats actuels et demande de décaissement","Informe de progreso y solicitud de desembolso"]
["Procurement_3",250,null,"=Vlookup(\"250\",Translations!F3:H508,1,0)","Section 3A :  RP - Gestion des achats et des stocks","Section 3A:  Principal Recipient - Procurement and Supply Management","Section 3A :  RP - Gestion des achats et des stocks","Sección 3A:  Gestión de adquisiciones y suministros a nivel del RP"]
["Procurement_3",251,null,"=Vlookup(\"251\",Translations!F3:H508,1,0)","1. Avez-vous enregistré dans le système d'information sur les prix et la qualité (PQR) l'information actualisée requise sur les produits pharmaceutiques et de santé reçus pendant la période couverte par ce RA/DD (le cas échéant) ? Si l'information relative aux achats de produits de santé n'a pas été saisie dans le système, veuillez expliquer pourquoi.\n\n! Pour des recommandations plus détaillées sur la saisie de données dans le système PQR, veuillez vous reporter aux directives.","1.  Have you updated the Price Quality Reporting (PQR) with the required information on the pharmaceuticals and health products received during the period covered by this PU/DR’ (if applicable)?  If health products procurement information has not been entered into the PQR, please explain why.\n\n!  For further guidance on PQR data entry, please refer to the guidelines.","1. Avez-vous enregistré dans le système d'information sur les prix et la qualité (PQR) l'information actualisée requise sur les produits pharmaceutiques et de santé reçus pendant la période couverte par ce RA/DD (le cas échéant) ? Si l'information relative aux achats de produits de santé n'a pas été saisie dans le système, veuillez expliquer pourquoi.\n\n! Pour des recommandations plus détaillées sur la saisie de données dans le système PQR, veuillez vous reporter aux directives.","1.  ¿Ha actualizado el Sistema de Información de Precios y Calidad (PQR) con los datos necesarios sobre los productos farmacéuticos y sanitarios recibidos durante el periodo que abarca el presente PU/DR (si corresponde)? Si no se ha incluido información sobre las adquisiciones de productos sanitarios en el sistema PQR indique por qué.\n\n!  Para obtener más información sobre la introducción de datos en el sistema PQR, consulte las directrices."]
["Procurement_3",252,null,"=Vlookup(\"252\",Translations!F3:H508,1,0)","Commentaires","Comments","Commentaires","Comentarios"]
["Procurement_3",253,null,"=Vlookup(\"253\",Translations!F3:H508,1,0)"," 2. Selon l'état des stocks le plus récent, y a-t-il des risques de rupture de stock ou de péremption des produits pharmaceutiques et de santé clés répertoriés ci-dessous au niveau central au cours de la période de mise en œuvre suivante ? Dans l'affirmative, veuillez commenter."," 2. Based on the most up-to-date stock situation, are there any risks of stock-outs or expiries for the key pharmaceuticals & health products, listed below, at the central level in the next Reporting Period?  If yes, please comment."," 2. Selon l'état des stocks le plus récent, y a-t-il des risques de rupture de stock ou de péremption des produits pharmaceutiques et de santé clés répertoriés ci-dessous au niveau central au cours de la période de mise en œuvre suivante ? Dans l'affirmative, veuillez commenter."," 2. A tenor de los niveles de existencias más recientes, ¿hay riesgo de que las existencias de productos farmacéuticos y sanitarios básicos enumerados a continuación se agoten o alcancen el final de su periodo de validez a nivel central durante el siguiente período de ejecución? En caso afirmativo, explíquelo."]
["Procurement_3",254,null,"=Vlookup(\"254\",Translations!F3:H508,1,0)","Produits pharmaceutiques et de santé clés","Key Pharmaceuticals & Health Products","Produits pharmaceutiques et de santé clés","Productos farmacéuticos y sanitarios básicos"]
["Procurement_3",255,null,"=Vlookup(\"255\",Translations!F3:H508,1,0)","Risque de rupture de stock","Risk of Stock-Out","Risque de rupture de stock","Riesgo de desabastecimiento"]
["Procurement_3",256,null,"=Vlookup(\"256\",Translations!F3:H508,1,0)","Risque de péremption","Risk of Expiry","Risque de péremption","Riesgo de vencimiento"]
["Procurement_3",257,null,"=Vlookup(\"257\",Translations!F3:H508,1,0)",{"$f":"IF(LangOffset=0,F259,IF(LangOffset=1,G259,IF(LangOffset=2,H259)))","v":"Commentaire (si oui, veuillez fournir des informations sur les articles spécifiques présentant un risque de rupture de stock ou de péremption ainsi que les mesures d’atténuation en place ou à mettre en œuvre)"},"Comment (if yes, please provide information on the specific items that are at risk of stock-out or expiry and the mitigation measures in place or to be implemented)","Commentaire (si oui, veuillez fournir des informations sur les articles spécifiques présentant un risque de rupture de stock ou de péremption ainsi que les mesures d’atténuation en place ou à mettre en œuvre)","Comentarios (si existen riesgos, incluya información sobre los artículos concretos cuyas existencias pueden agotarse o alcanzar el final de su periodo de validez y las medidas de mitigación en el lugar o para ser implementado)"]
["Procurement_3",258,null,{"$f":"\"=Vlookup(\"\"\"&B260&\"\"\",Translations!F3:H508,1,0)\"","v":"=Vlookup(\"258\",Translations!F3:H508,1,0)"},"1. Antipaludéens","1. Anti-malaria medicines","1. Antipaludéens","1. Antimaláricos"]
["Procurement_3",259,null,"=Vlookup(\"259\",Translations!F3:H508,1,0)","2. Moustiquaires","2. Bed nets","2. Moustiquaires","2. Mosquiteros"]
["Procurement_3",260,null,"=Vlookup(\"260\",Translations!F3:H508,1,0)","3. Produits de diagnostic in-vitro ","3. In-Vitro Diagnostic Products","3. Produits de diagnostic in-vitro ","3. Productos de diagnóstico in vitro"]
["Procurement_3",261,null,"=Vlookup(\"261\",Translations!F3:H508,1,0)","4. Préservatifs","4. Condoms","4. Préservatifs","4. Preservativos"]
["Procurement_3",262,null,"=Vlookup(\"262\",Translations!F3:H508,1,0)","5. Antirétroviraux","5. Anti-retrovirals","5. Antirétroviraux","5. Antirretrovirales"]
["Procurement_3",263,null,"=Vlookup(\"263\",Translations!F3:H508,1,0)","6. Antituberuculeux","6. Anti-TB medicines","6. Antituberuculeux","6. Antituberculosos"]
["Procurement_3",264,null,"=Vlookup(\"264\",Translations!F3:H508,1,0)","7. Fournitures de laboratoire (par ex. CD4, charge virales, cartouches…)","7. Lab supplies (e.g. CD4, Viral Load, Cartridges…)","7. Fournitures de laboratoire (par ex. CD4, charge virales, cartouches…)","7. Suministros de laboratorio (CD4, carga vírica, cartuchos…)"]
["Procurement_3",265,null,"=Vlookup(\"265\",Translations!F3:H508,1,0)","8. Autres (veuillez préciser dans la colonne des commentaires)","8. Other (Please specify in the \"Comment\" column)","8. Autres (veuillez préciser dans la colonne des commentaires)","8. Otros (Especifique cuáles en la columna de comentarios)"]
["Procurement_3",266,null,"=Vlookup(\"266\",Translations!F3:H508,1,0)","3.  Veuillez commenter tout problème supplémentaire lié à la gestion des achats et des stocks de produits pharmaceutiques et de santé.","3.  Comment on additional issues related to the procurement and supply management of pharmaceuticals and health products.","3.  Veuillez commenter tout problème supplémentaire lié à la gestion des achats et des stocks de produits pharmaceutiques et de santé.","3.  Comentarios sobre otras cuestiones relacionados con la gestión de adquisiciones y suministros de productos farmacéuticos y sanitarios."]
["Procurement_3",267,null,"=Vlookup(\"267\",Translations!F3:H508,1,0)","For LFA Use Only","For LFA Use Only","For LFA Use Only","For LFA Use Only"]
["Procurement_3",268,null,"=Vlookup(\"268\",Translations!F3:H508,1,0)","Section 3B: LFA-Verified Procurement and Supply Management Information","Section 3B: LFA-Verified Procurement and Supply Management Information","Section 3B: LFA-Verified Procurement and Supply Management Information","Section 3B: LFA-Verified Procurement and Supply Management Information"]
["Procurement_3",269,null,"=Vlookup(\"269\",Translations!F3:H508,1,0)","PR's response","PR's response","PR's response","PR's response"]
["Procurement_3",270,null,"=Vlookup(\"270\",Translations!F3:H508,1,0)","LFA's response","LFA's response","LFA's response","LFA's response"]
["Procurement_3",271,null,"=Vlookup(\"271\",Translations!F3:H508,1,0)","LFA Comments/Analysis ","LFA Comments/Analysis ","LFA Comments/Analysis ","LFA Comments/Analysis "]
["Procurement_3",272,null,"=Vlookup(\"272\",Translations!F3:H508,1,0)","1a.  Has the PR updated the Price Quality Reporting (PQR) with the required information on the pharmaceuticals and health products received during the period covered by this PU/DR’ (if applicable)?  (If health products procurement information has not been entered into the PQR, please explain why in comments box)    ","1a.  Has the PR updated the Price Quality Reporting (PQR) with the required information on the pharmaceuticals and health products received during the period covered by this PU/DR’ (if applicable)?  (If health products procurement information has not been entered into the PQR, please explain why in comments box)    ","1a.  Has the PR updated the Price Quality Reporting (PQR) with the required information on the pharmaceuticals and health products received during the period covered by this PU/DR’ (if applicable)?  (If health products procurement information has not been entered into the PQR, please explain why in comments box)    ","1a.  Has the PR updated the Price Quality Reporting (PQR) with the required information on the pharmaceuticals and health products received during the period covered by this PU/DR’ (if applicable)?  (If health products procurement information has not been entered into the PQR, please explain why in comments box)    "]
["Procurement_3",273,null,"=Vlookup(\"273\",Translations!F3:H508,1,0)","1b.  Value of Pharmaceuticals and Health Products in the PQR (7 categories only)","1b.  Value of Pharmaceuticals and Health Products in the PQR (7 categories only)","1b.  Value of Pharmaceuticals and Health Products in the PQR (7 categories only)","1b.  Value of Pharmaceuticals and Health Products in the PQR (7 categories only)"]
["Procurement_3",274,null,"=Vlookup(\"274\",Translations!F3:H508,1,0)","(!) This table is included in the PU/DR form with the aim to improve completeness of information in the PQR system and not for comparing PQR amounts vis-à-vis expenditure per se. NB: PQR and expenditure amounts on health products may not be equal due to a timelag between payments and delivery of pharmaceuticals/health products.\n(!)  For further guidance on PQR data entry, please refer to the guidelines.","(!) This table is included in the PU/DR form with the aim to improve completeness of information in the PQR system and not for comparing PQR amounts vis-à-vis expenditure per se. NB: PQR and expenditure amounts on health products may not be equal due to a timelag between payments and delivery of pharmaceuticals/health products.\n(!)  For further guidance on PQR data entry, please refer to the guidelines.","(!) This table is included in the PU/DR form with the aim to improve completeness of information in the PQR system and not for comparing PQR amounts vis-à-vis expenditure per se. NB: PQR and expenditure amounts on health products may not be equal due to a timelag between payments and delivery of pharmaceuticals/health products.\n(!)  For further guidance on PQR data entry, please refer to the guidelines.","(!) This table is included in the PU/DR form with the aim to improve completeness of information in the PQR system and not for comparing PQR amounts vis-à-vis expenditure per se. NB: PQR and expenditure amounts on health products may not be equal due to a timelag between payments and delivery of pharmaceuticals/health products.\n(!)  For further guidance on PQR data entry, please refer to the guidelines."]
["Procurement_3",275,null,"=Vlookup(\"275\",Translations!F3:H508,1,0)","Reporting Currency","Reporting Currency","Reporting Currency","Reporting Currency"]
["Procurement_3",276,null,"=Vlookup(\"276\",Translations!F3:H508,1,0)","PQR Product Categories","PQR Product Categories","PQR Product Categories","PQR Product Categories"]
["Procurement_3",277,null,"=Vlookup(\"277\",Translations!F3:H508,1,0)","Value of  products received during reporting period","Value of  products received during reporting period","Value of  products received during reporting period","Value of  products received during reporting period"]
["Procurement_3",278,null,"=Vlookup(\"278\",Translations!F3:H508,1,0)","Value of products entered by the PR and verified as correct by the LFA in the PQR during reporting period","Value of products entered by the PR and verified as correct by the LFA in the PQR during reporting period","Value of products entered by the PR and verified as correct by the LFA in the PQR during reporting period","Value of products entered by the PR and verified as correct by the LFA in the PQR during reporting period"]
["Procurement_3",279,null,"=Vlookup(\"279\",Translations!F3:H508,1,0)","Variance","Variance","Variance","Variance"]
["Procurement_3",280,null,"=Vlookup(\"280\",Translations!F3:H508,1,0)","Reason for Variance","Reason for Variance","Reason for Variance","Reason for Variance"]
["Procurement_3",281,null,"=Vlookup(\"281\",Translations!F3:H508,1,0)","Cumulative value of  products received since the start of the Implementation Period","Cumulative value of  products received since the start of the Implementation Period","Cumulative value of  products received since the start of the Implementation Period","Cumulative value of  products received since the start of the Implementation Period"]
["Procurement_3",282,null,"=Vlookup(\"282\",Translations!F3:H508,1,0)","Cumulative value of products verified as correct by the LFA in the PQR since the start of the Implementation Period","Cumulative value of products verified as correct by the LFA in the PQR since the start of the Implementation Period","Cumulative value of products verified as correct by the LFA in the PQR since the start of the Implementation Period","Cumulative value of products verified as correct by the LFA in the PQR since the start of the Implementation Period"]
["Procurement_3",283,null,"=Vlookup(\"283\",Translations!F3:H508,1,0)","Variance","Variance","Variance","Variance"]
["Procurement_3",284,null,"=Vlookup(\"284\",Translations!F3:H508,1,0)","Reason for Variance","Reason for Variance","Reason for Variance","Reason for Variance"]
["Procurement_3",285,null,"=Vlookup(\"285\",Translations!F3:H508,1,0)","1. Anti-malaria medicines","1. Anti-malaria medicines","1. Anti-malaria medicines","1. Anti-malaria medicines"]
["Procurement_3",286,null,"=Vlookup(\"286\",Translations!F3:H508,1,0)","2. Bed nets","2. Bed nets","2. Bed nets","2. Bed nets"]
["Procurement_3",287,null,"=Vlookup(\"287\",Translations!F3:H508,1,0)","3. In-Vitro Diagnostic Products","3. In-Vitro Diagnostic Products","3. In-Vitro Diagnostic Products","3. In-Vitro Diagnostic Products"]
["Procurement_3",288,null,"=Vlookup(\"288\",Translations!F3:H508,1,0)","4. Condoms","4. Condoms","4. Condoms","4. Condoms"]
["Procurement_3",289,null,"=Vlookup(\"289\",Translations!F3:H508,1,0)","5. Anti-retrovirals","5. Anti-retrovirals","5. Anti-retrovirals","5. Anti-retrovirals"]
["Procurement_3",290,null,"=Vlookup(\"290\",Translations!F3:H508,1,0)","6. Anti-TB medicines","6. Anti-TB medicines","6. Anti-TB medicines","6. Anti-TB medicines"]
["Procurement_3",291,null,"=Vlookup(\"291\",Translations!F3:H508,1,0)","7. Indoor Residual Spraying (IRS)","7. Indoor Residual Spraying (IRS)","7. Indoor Residual Spraying (IRS)","7. Indoor Residual Spraying (IRS)"]
["Procurement_3",292,null,"=Vlookup(\"292\",Translations!F3:H508,1,0)","Total","Total","Total","Total"]
["Procurement_3",293,null,"=Vlookup(\"293\",Translations!F3:H508,1,0)"," 2. Based on best information available to the LFA, are there any risks of drug stock-out or expiries at the central level in the next period of implementation?  (If yes, please explain in comments box)\n! This section should be completed by the LFA based on best information on stock at the central level available to the LFA and should not require dedicated visits for on-site checks of stocks."," 2. Based on best information available to the LFA, are there any risks of drug stock-out or expiries at the central level in the next period of implementation?  (If yes, please explain in comments box)\n! This section should be completed by the LFA based on best information on stock at the central level available to the LFA and should not require dedicated visits for on-site checks of stocks."," 2. Based on best information available to the LFA, are there any risks of drug stock-out or expiries at the central level in the next period of implementation?  (If yes, please explain in comments box)\n! This section should be completed by the LFA based on best information on stock at the central level available to the LFA and should not require dedicated visits for on-site checks of stocks."," 2. Based on best information available to the LFA, are there any risks of drug stock-out or expiries at the central level in the next period of implementation?  (If yes, please explain in comments box)\n! This section should be completed by the LFA based on best information on stock at the central level available to the LFA and should not require dedicated visits for on-site checks of stocks."]
["Procurement_3",294,null,"=Vlookup(\"294\",Translations!F3:H508,1,0)","Key Pharmaceuticals & Health Products","Key Pharmaceuticals & Health Products","Key Pharmaceuticals & Health Products","Key Pharmaceuticals & Health Products"]
["Procurement_3",295,null,"=Vlookup(\"295\",Translations!F3:H508,1,0)","Risk of Stock-Out","Risk of Stock-Out","Risk of Stock-Out","Risk of Stock-Out"]
["Procurement_3",296,null,"=Vlookup(\"296\",Translations!F3:H508,1,0)","Risk of Expiry","Risk of Expiry","Risk of Expiry","Risk of Expiry"]
["Procurement_3",297,null,"=Vlookup(\"297\",Translations!F3:H508,1,0)","Comment (if yes, please provide information on the specific items that are at risk of stock-out or expiry and the mitigation measures in place or to be implemented)","Comment (if yes, please provide information on the specific items that are at risk of stock-out or expiry and the mitigation measures in place or to be implemented)","Comment (if yes, please provide information on the specific items that are at risk of stock-out or expiry and the mitigation measures in place or to be implemented)","Comment (if yes, please provide information on the specific items that are at risk of stock-out or expiry and the mitigation measures in place or to be implemented)"]
["Procurement_3",298,null,"=Vlookup(\"298\",Translations!F3:H508,1,0)","1. Anti-malaria medicines","1. Anti-malaria medicines","1. Anti-malaria medicines","1. Anti-malaria medicines"]
["Procurement_3",299,null,"=Vlookup(\"299\",Translations!F3:H508,1,0)","2. Bed nets","2. Bed nets","2. Bed nets","2. Bed nets"]
["Procurement_3",300,null,"=Vlookup(\"300\",Translations!F3:H508,1,0)","3. In-Vitro Diagnostic Products","3. In-Vitro Diagnostic Products","3. In-Vitro Diagnostic Products","3. In-Vitro Diagnostic Products"]
["Procurement_3",301,null,"=Vlookup(\"301\",Translations!F3:H508,1,0)","4. Condoms","4. Condoms","4. Condoms","4. Condoms"]
["Procurement_3",302,null,"=Vlookup(\"302\",Translations!F3:H508,1,0)","5. Anti-retrovirals","5. Anti-retrovirals","5. Anti-retrovirals","5. Anti-retrovirals"]
["Procurement_3",303,null,"=Vlookup(\"303\",Translations!F3:H508,1,0)","6. Anti-TB medicines","6. Anti-TB medicines","6. Anti-TB medicines","6. Anti-TB medicines"]
["Procurement_3",304,null,"=Vlookup(\"304\",Translations!F3:H508,1,0)","7. Lab supplies (e.g. CD4, Viral Load, Cartridges…)","7. Lab supplies (e.g. CD4, Viral Load, Cartridges…)","7. Lab supplies (e.g. CD4, Viral Load, Cartridges…)","7. Lab supplies (e.g. CD4, Viral Load, Cartridges…)"]
["Procurement_3",305,null,"=Vlookup(\"305\",Translations!F3:H508,1,0)","8. Other (Please specify in the \"Comment\" column)","8. Other (Please specify in the \"Comment\" column)","8. Other (Please specify in the \"Comment\" column)","8. Other (Please specify in the \"Comment\" column)"]
["Procurement_3",306,null,"=Vlookup(\"306\",Translations!F3:H508,1,0)","3. LFA analysis of issues related to the procurement and supply management of pharmaceuticals and health products","3. LFA analysis of issues related to the procurement and supply management of pharmaceuticals and health products","3. LFA analysis of issues related to the procurement and supply management of pharmaceuticals and health products","3. LFA analysis of issues related to the procurement and supply management of pharmaceuticals and health products"]
["Grant Mangement_4",307,null,"=Vlookup(\"307\",Translations!F3:H508,1,0)","Rapport périodique sur les résultats actuels et demande de décaissement","Progress Report with Disbursement Request","Rapport périodique sur les résultats actuels et demande de décaissement","Informe de progreso y solicitud de desembolso"]
["Grant Mangement_4",308,null,"=Vlookup(\"308\",Translations!F3:H508,1,0)","Section 4 : Gestion de subvention","Section 4:  Grant Management","Section 4 : Gestion de subvention","Sección 4:  Gestión de subvenciones"]
["Grant Mangement_4",309,null,"=Vlookup(\"309\",Translations!F3:H508,1,0)","A. Commentaires du récipiendaire principal et de l'agent local du Fonds sur la réalisation des exigences de la subvention conformément à l'accord de subvention","A.  PR and LFA Comments on the Fulfilment of Grant Requirements","A. Commentaires du récipiendaire principal et de l'agent local du Fonds sur la réalisation des exigences de la subvention conformément à l'accord de subvention","A.  Comentarios del RP y el ALF sobre el cumplimiento de las condiciones previas y/o especiales en el marco del Acuerdo de Subvención"]
["Grant Mangement_4",310,null,"=Vlookup(\"310\",Translations!F3:H508,1,0)","! Veuillez inclure dans ce tableau le numéro des exigences conformément à l'accord de subvention et l'énoncé complet des exigences de la subvention devant être réalisées pendant cette période ou en suspens depuis les périodes précédentes. \n! Certaines exigences peuvent s'appliquer à plusieurs périodes de mise en œuvre de la subvention. Leur réalisation pendant une période ne suppose pas automatiquement leur réalisation pendant les périodes ultérieures. L'agent local du Fonds doit vérifier que le récipiendaire principal fait rapport sur l'état de ces exigences pour chaque période concernée.","! Please include in this table the Grant Requirement number as per Grant Confirmation and full text of the requirement due for fulfilment during this period or outstanding from previous periods. \n! Some may apply to more than one period of grant implementation.  Their fulfilment during one period does not automatically imply fulfilment in subsequent periods.  The LFA should verify that the status of such Grant Requirements is reported by the Principal Recipient during each period concerned.","! Veuillez inclure dans ce tableau le numéro des exigences conformément à l'accord de subvention et l'énoncé complet des exigences de la subvention devant être réalisées pendant cette période ou en suspens depuis les périodes précédentes. \n! Certaines exigences peuvent s'appliquer à plusieurs périodes de mise en œuvre de la subvention. Leur réalisation pendant une période ne suppose pas automatiquement leur réalisation pendant les périodes ultérieures. L'agent local du Fonds doit vérifier que le récipiendaire principal fait rapport sur l'état de ces exigences pour chaque période concernée.","! Incluya en esta tabla el número de condición previa conforme al establecido en el Acuerdo de Subvención y el texto completo de las condiciones previas y/o condiciones especiales cuyo cumplimiento esté previsto durante el periodo en curso o que esté pendiente de periodos anteriores.\n! Es posible que ciertas condiciones especiales se apliquen a más de un periodo de ejecución de la subvención. Su cumplimiento durante un periodo no exime automáticamente de cumplirlas en periodos posteriores. El ALF verificará que el RP informe sobre el estado de esas condiciones en cada periodo pertinente."]
["Grant Mangement_4",311,null,"=Vlookup(\"311\",Translations!F3:H508,1,0)","Exigences de la Subvention","Grant Requirements","Exigences de la Subvention","Condiciones previas y/u otras condiciones especiales"]
["Grant Mangement_4",312,null,"=Vlookup(\"312\",Translations!F3:H508,1,0)","État","Status","État","Estado"]
["Grant Mangement_4",313,null,"=Vlookup(\"313\",Translations!F3:H508,1,0)","Commentaires du récipiendaire principal sur l'avancement de la mise en œuvre","PR Comments on Progress of Implementation","Commentaires du récipiendaire principal sur l'avancement de la mise en œuvre","Comentarios del RP sobre los progresos en su aplicación"]
["Grant Mangement_4",314,null,"=Vlookup(\"314\",Translations!F3:H508,1,0)","For LFA Use Only","For LFA Use Only","For LFA Use Only","For LFA Use Only"]
["Grant Mangement_4",315,null,"=Vlookup(\"315\",Translations!F3:H508,1,0)","Status","Status","Status","Status"]
["Grant Mangement_4",316,null,"=Vlookup(\"316\",Translations!F3:H508,1,0)","LFA Analysis\n(this should not be a \"\"Copy and Paste\"\" of the comments provided by the PR)","LFA Analysis\n(this should not be a \"\"Copy and Paste\"\" of the comments provided by the PR)","LFA Analysis\n(this should not be a \"\"Copy and Paste\"\" of the comments provided by the PR)","Analysis (LFA)"]
["Grant Mangement_4",317,null,"=Vlookup(\"317\",Translations!F3:H508,1,0)","B.  Examen par le RP et l'ALF de l'état d'avancement de la mise en œuvre des mesures de gestion en suspens depuis les décaissements précédents","B.  PR & LFA Review of Progress on Implementation of Outstanding Management Actions from Previous Disbursements","B.  Examen par le RP et l'ALF de l'état d'avancement de la mise en œuvre des mesures de gestion en suspens depuis les décaissements précédents","B.  Revisión del RP y el ALF de los progresos realizados en la aplicación de las medidas de gestión pendientes de periodos de desembolso anteriores"]
["Grant Mangement_4",318,null,"=Vlookup(\"318\",Translations!F3:H508,1,0)","! Veuillez répertorier tous les problèmes soulevés dans la dernière lettre de résultats du Fonds mondial ou en suspens depuis des lettres de résultats antérieures, et commenter leur avancement. Veuillez inclure la date de la lettre de résultats et le numéro de la mesure de gestion.","! Please list all issues raised in the last Performance Letter from the Global Fund or outstanding from previous Performance Letters, and comment on the progress. Please include the date of the Performance Letter and the item number.","! Veuillez répertorier tous les problèmes soulevés dans la dernière lettre de résultats du Fonds mondial ou en suspens depuis des lettres de résultats antérieures, et commenter leur avancement. Veuillez inclure la date de la lettre de résultats et le numéro de la mesure de gestion.","! Enumere todas las cuestiones señaladas en la última carta de desempeño del Fondo Mundial o que estén pendientes de cartas de desempeño anteriores, y comente los progresos realizados al respecto. Incluya la fecha de la carta de desempeño y el número de artículo."]
["Grant Mangement_4",319,null,"=Vlookup(\"319\",Translations!F3:H508,1,0)","Mesures de gestion recommandées par le Fonds mondial","Global Fund Management Actions","Mesures de gestion recommandées par le Fonds mondial","Medidas de gestión del Fondo Mundial"]
["Grant Mangement_4",320,null,"=Vlookup(\"320\",Translations!F3:H508,1,0)","État","Status","État","Estado"]
["Grant Mangement_4",321,null,"=Vlookup(\"321\",Translations!F3:H508,1,0)",{"$f":"IF(LangOffset=0,F323,IF(LangOffset=1,G323,IF(LangOffset=2,H323)))","v":"^Commentaires du RP sur l'avancement de la mise en œuvre"},"PR Comments on Progress of Implementation","^Commentaires du RP sur l'avancement de la mise en œuvre","Comentarios del RP sobre los progresos en su aplicación"]
["Grant Mangement_4",322,null,{"$f":"\"=Vlookup(\"\"\"&B324&\"\"\",Translations!F3:H508,1,0)\"","v":"=Vlookup(\"322\",Translations!F3:H508,1,0)"},"For LFA Use Only","For LFA Use Only","For LFA Use Only","For LFA Use Only"]
["Grant Mangement_4",323,null,"=Vlookup(\"323\",Translations!F3:H508,1,0)","Status","Status","Status","Status"]
["Grant Mangement_4",324,null,"=Vlookup(\"324\",Translations!F3:H508,1,0)","LFA Review of PR Progress on Global Fund Management Actions ","LFA Review of PR Progress on Global Fund Management Actions ","LFA Review of PR Progress on Global Fund Management Actions ","LFA Review of PR Progress on Global Fund Management Actions "]
["Grant Mangement_4",325,null,"=Vlookup(\"325\",Translations!F3:H508,1,0)","C.  Commentaires sur les exigences de rapport annuel concernant la subvention","C.  Comments on Annual Grant Reporting Requirements","C.  Commentaires sur les exigences de rapport annuel concernant la subvention","'C.  Comentarios sobre los requisitos para la presentación de informes anuales sobre la subvención"]
["Grant Mangement_4",326,null,"=Vlookup(\"326\",Translations!F3:H508,1,0)","! Veuillez indiquer l'échéance du rapport à présenter. Si un rapport est en retard, indiquez l'échéance originale et le motif du retard.","! Please indicate a date for the report due for submission.  If a report is overdue, indicate the original due date and explain the reason for delay.","! Veuillez indiquer l'échéance du rapport à présenter. Si un rapport est en retard, indiquez l'échéance originale et le motif du retard.","! Indique una fecha para el informe pendiente. Si el plazo de entrega del informe ha vencido, indique la fecha límite original y explique las causas del retraso."]
["Grant Mangement_4",327,null,"=Vlookup(\"327\",Translations!F3:H508,1,0)","Documentation requise","Required Documentation","Documentation requise","Documentación solicitada"]
["Grant Mangement_4",328,null,"=Vlookup(\"328\",Translations!F3:H508,1,0)","Échéance \n(jj-mmm-aa)","Due date \n(dd-mmm-yy)","Échéance \n(jj-mmm-aa)","Fecha límite\n(dd-mm-aa)"]
["Grant Mangement_4",329,null,"=Vlookup(\"329\",Translations!F3:H508,1,0)","État","Status","État","Estado"]
["Grant Mangement_4",330,null,"=Vlookup(\"330\",Translations!F3:H508,1,0)","Commentaires","Comments","Commentaires","Comentarios"]
["Grant Mangement_4",331,null,"=Vlookup(\"331\",Translations!F3:H508,1,0)","For LFA Use Only","For LFA Use Only","For LFA Use Only","For LFA Use Only"]
["Grant Mangement_4",332,null,"=Vlookup(\"332\",Translations!F3:H508,1,0)","Due date\n(dd-mmm-yy)","Due date\n(dd-mmm-yy)","Due date\n(dd-mmm-yy)","Due date\n(dd-mmm-yy)"]
["Grant Mangement_4",333,null,"=Vlookup(\"333\",Translations!F3:H508,1,0)","Status","Status","Status","Status"]
["Grant Mangement_4",334,null,"=Vlookup(\"334\",Translations!F3:H508,1,0)","Comments","Comments","Comments","Comments"]
["Grant Mangement_4",335,null,"=Vlookup(\"335\",Translations!F3:H508,1,0)","Rapport d'audit du RP","PR Audit Report","Rapport d'audit du RP","Informe de Auditoría del RP"]
["Grant Mangement_4",336,null,"=Vlookup(\"336\",Translations!F3:H508,1,0)","Rapport financier annuel / Rapport financier renforcé","Annual Financial Report (AFR) / Enhanced Financial Report (EFR)","Rapport financier annuel / Rapport financier renforcé","Informe financiero anual (AFR) / Informe financiero detallado  (EFR)"]
["PR-LFA Evaluation_5",337,null,"=Vlookup(\"337\",Translations!F3:H508,1,0)","Rapport périodique sur les résultats actuels et demande de décaissement","Progress Report with Disbursement Request","Rapport périodique sur les résultats actuels et demande de décaissement","Informe de progreso y solicitud de desembolso"]
["PR-LFA Evaluation_5",338,null,"=Vlookup(\"338\",Translations!F3:H508,1,0)","Section 5 : Évaluation des résultats globaux par le récipiendaire principal et l'agent local du Fonds","Section 5: Principal Recipient and LFA Evaluation of Overall Performance","Section 5 : Évaluation des résultats globaux par le récipiendaire principal et l'agent local du Fonds","Sección 5: Evaluación del RP y el ALF del desempeño general"]
["PR-LFA Evaluation_5",339,null,"=Vlookup(\"339\",Translations!F3:H508,1,0)","A. Autoévaluation globale des résultats de la subvention par le RP (y compris un résumé des liens entre les résultats financiers et programmatiques)","A.  Principal Recipient's Overall Self-Evaluation of Grant Performance (including a summary of how financial performance is linked to programmatic achievements)","A. Autoévaluation globale des résultats de la subvention par le RP (y compris un résumé des liens entre les résultats financiers et programmatiques)","A.  Autoevaluación general del RP del desempeño de la subvención (incluido un resumen sobre los vínculos entre el desempeño financiero y los logros programáticos)"]
["PR-LFA Evaluation_5",340,null,"=Vlookup(\"340\",Translations!F3:H508,1,0)","! L'autoévaluation doit prendre en compte les résultats programmatiques et financiers, ainsi que les problèmes rencontrés dans les différents domaines fonctionnels du programme (S&É, Finances, Achats et Gestion de programme, notamment la gestion des sous-récipiendaires). Voir les directives pour des orientations détaillées.","!  The self-evaluation should be undertaken by taking into account programmatic achievements, financial performance and program issues in various functional areas (M&E, Finance, Procurement, and Program Management, including management of Sub-Recipients).  See Guidelines for more detailed guidance.","! L'autoévaluation doit prendre en compte les résultats programmatiques et financiers, ainsi que les problèmes rencontrés dans les différents domaines fonctionnels du programme (S&É, Finances, Achats et Gestion de programme, notamment la gestion des sous-récipiendaires). Voir les directives pour des orientations détaillées.","!  La autoevaluación debe realizarse teniendo en cuenta los logros programáticos, el desempeño financiero y cuestiones relativas a diversas áreas funcionales del programa (seguimiento y evaluación, finanzas, adquisiciones y gestión de programas, incluida la gestión de los subreceptores). Para obtener orientación más detallada, consulte las Directrices."]
["PR-LFA Evaluation_5",341,null,"=Vlookup(\"341\",Translations!F3:H508,1,0)","B. Modifications prévues du programme, le cas échéant","B.  Planned Changes in the Program, if any","B. Modifications prévues du programme, le cas échéant","B.  Modificaciones previstas en el programa, si las hubiera"]
["PR-LFA Evaluation_5",342,null,"=Vlookup(\"342\",Translations!F3:H508,1,0)","C.  Facteurs externes échappant au contrôle du récipiendaire principal et ayant eu ou étant susceptibles d’avoir une incidence sur le programme","C.  External factors beyond the control of the Principal Recipient that have impacted or may impact the Program","C.  Facteurs externes échappant au contrôle du récipiendaire principal et ayant eu ou étant susceptibles d’avoir une incidence sur le programme","C.  Factores externos fuera del control de los RP que hayan afectado o puedan afectar al programa"]
["PR-LFA Evaluation_5",343,null,"=Vlookup(\"343\",Translations!F3:H508,1,0)","C.  Facteurs externes échappant au contrôle du récipiendaire principal et ayant eu ou étant susceptibles d’avoir une incidence sur le programme","C.  External factors beyond the control of the Principal Recipient that have impacted or may impact the Program","C.  Facteurs externes échappant au contrôle du récipiendaire principal et ayant eu ou étant susceptibles d’avoir une incidence sur le programme","C.  Factores externos fuera del control de los RP que hayan afectado o puedan afectar al programa"]
["PR-LFA Evaluation_5",344,null,"=Vlookup(\"344\",Translations!F3:H508,1,0)","For LFA Use Only","For LFA Use Only","For LFA Use Only","For LFA Use Only"]
["PR-LFA Evaluation_5",345,null,"=Vlookup(\"345\",Translations!F3:H508,1,0)","A. LFA  Overall Evaluation and Rating of Grant Performance (including a summary of how financial performance is linked to programmatic achievements)","A. LFA  Overall Evaluation and Rating of Grant Performance (including a summary of how financial performance is linked to programmatic achievements)","A. LFA  Overall Evaluation and Rating of Grant Performance (including a summary of how financial performance is linked to programmatic achievements)","A. LFA  Overall Evaluation and Rating of Grant Performance (including a summary of how financial performance is linked to programmatic achievements)"]
["PR-LFA Evaluation_5",346,null,"=Vlookup(\"346\",Translations!F3:H508,1,0)","!  The evaluation should be undertaken by taking into account programmatic achievements, financial performance and program issues in various functional areas (M&E, Finance, Procurement, and Program Management, including management of Sub-Recipients).  See Guidelines for more detailed guidance on the completion of this section.","!  The evaluation should be undertaken by taking into account programmatic achievements, financial performance and program issues in various functional areas (M&E, Finance, Procurement, and Program Management, including management of Sub-Recipients).  See Guidelines for more detailed guidance on the completion of this section.","!  The evaluation should be undertaken by taking into account programmatic achievements, financial performance and program issues in various functional areas (M&E, Finance, Procurement, and Program Management, including management of Sub-Recipients).  See Guidelines for more detailed guidance on the completion of this section.","!  The evaluation should be undertaken by taking into account programmatic achievements, financial performance and program issues in various functional areas (M&E, Finance, Procurement, and Program Management, including management of Sub-Recipients).  See Guidelines for more detailed guidance on the completion of this section."]
["PR-LFA Evaluation_5",347,null,"=Vlookup(\"347\",Translations!F3:H508,1,0)","Indicator rating","Indicator rating","Indicator rating","Indicator rating"]
["PR-LFA Evaluation_5",348,null,"=Vlookup(\"348\",Translations!F3:H508,1,0)","Any major management issues resulting in downgrade?","Any major management issues resulting in downgrade?","Any major management issues resulting in downgrade?","Any major management issues resulting in downgrade?"]
["PR-LFA Evaluation_5",349,null,"=Vlookup(\"349\",Translations!F3:H508,1,0)","Overall Grant Rating","Overall Grant Rating","Overall Grant Rating","Overall Grant Rating"]
["PR-LFA Evaluation_5",350,null,"=Vlookup(\"350\",Translations!F3:H508,1,0)","B.  LFA comments on the Principal Recipient planned changes in the program, if any","B.  LFA comments on the Principal Recipient planned changes in the program, if any","B.  LFA comments on the Principal Recipient planned changes in the program, if any","B.  LFA comments on the Principal Recipient planned changes in the program, if any"]
["PR-LFA Evaluation_5",351,null,"=Vlookup(\"351\",Translations!F3:H508,1,0)","C.  LFA Comments on External Factors Beyond Control of the Principal Recipients that have impacted or may impact program","C.  LFA Comments on External Factors Beyond Control of the Principal Recipients that have impacted or may impact program","C.  LFA Comments on External Factors Beyond Control of the Principal Recipients that have impacted or may impact program","C.  LFA Comments on External Factors Beyond Control of the Principal Recipients that have impacted or may impact program"]
["LFA_Findings&Recommendations_6",352,null,"=Vlookup(\"352\",Translations!F3:H508,1,0)","Rapport périodique sur les résultats actuels et demande de décaissement","Progress Report with Disbursement Request","Rapport périodique sur les résultats actuels et demande de décaissement","Progress Report with Disbursement Request"]
["LFA_Findings&Recommendations_6",353,null,"=Vlookup(\"353\",Translations!F3:H508,1,0)","For LFA Use Only","For LFA Use Only","For LFA Use Only","For LFA Use Only"]
["LFA_Findings&Recommendations_6",354,null,"=Vlookup(\"354\",Translations!F3:H508,1,0)","Section 6: LFA Findings & Recommendations  ","Section 6: LFA Findings & Recommendations  ","Section 6: LFA Findings & Recommendations  ","Section 6: LFA Findings & Recommendations  "]
["LFA_Findings&Recommendations_6",355,null,"=Vlookup(\"355\",Translations!F3:H508,1,0)","! Based on the information provided in the previous sections and your understanding of the grant, please summarise any important management issues, proposing a recommendation for each.\nNB: an issue is considered as 'important' if it impacts or is likely to impact program implementation and results.                                                                                                                                                                                                          ! Instead of repeating detailed descriptions of issues covered in other sections, it is acceptable to state the issue and reference the section containing the details.","! Based on the information provided in the previous sections and your understanding of the grant, please summarise any important management issues, proposing a recommendation for each.\nNB: an issue is considered as 'important' if it impacts or is likely to impact program implementation and results.                                                                                                                                                                                                          ! Instead of repeating detailed descriptions of issues covered in other sections, it is acceptable to state the issue and reference the section containing the details.","! Based on the information provided in the previous sections and your understanding of the grant, please summarise any important management issues, proposing a recommendation for each.\nNB: an issue is considered as 'important' if it impacts or is likely to impact program implementation and results.                                                                                                                                                                                                          ! Instead of repeating detailed descriptions of issues covered in other sections, it is acceptable to state the issue and reference the section containing the details.","! Based on the information provided in the previous sections and your understanding of the grant, please summarise any important management issues, proposing a recommendation for each.\nNB: an issue is considered as 'important' if it impacts or is likely to impact program implementation and results.                                                                                                                                                                                                          ! Instead of repeating detailed descriptions of issues covered in other sections, it is acceptable to state the issue and reference the section containing the details."]
["LFA_Findings&Recommendations_6",356,null,"=Vlookup(\"356\",Translations!F3:H508,1,0)","Functional Areas","Functional Areas","Functional Areas","Functional Areas"]
["LFA_Findings&Recommendations_6",357,null,"=Vlookup(\"357\",Translations!F3:H508,1,0)","Description of Identified Issues \n(in order of importance)","Description of Identified Issues \n(in order of importance)","Description of Identified Issues \n(in order of importance)","Description of Identified Issues \n(in order of importance)"]
["LFA_Findings&Recommendations_6",358,null,"=Vlookup(\"358\",Translations!F3:H508,1,0)","LFA Recommendations \n(in order of importance)","LFA Recommendations \n(in order of importance)","LFA Recommendations \n(in order of importance)","LFA Recommendations \n(in order of importance)"]
["Cash Forecast_8A",359,null,"=Vlookup(\"359\",Translations!F3:H508,1,0)","Rapport périodique sur les résultats actuels et demande de décaissement","Progress Report with Disbursement Request","Rapport périodique sur les résultats actuels et demande de décaissement","Informe de progreso y solicitud de desembolso"]
["Cash Forecast_8A",360,null,"=Vlookup(\"360\",Translations!F3:H508,1,0)","Section 8A : Modèle de prévision annuelle du Fonds mondial","Section 8A: The Global Fund  Forecast Template","Section 8A : Modèle de prévision annuelle du Fonds mondial","Sección 8A: Plantilla de previsión anual del Fondo Mundial"]
["Cash Forecast_8A",361,null,"=Vlookup(\"361\",Translations!F3:H508,1,0)","Demande de décaissement  - période de prévision:","Disbursement Request Execution Period","Demande de décaissement  - période de prévision:","Solicitud de desembolso – Periodo de ejecución:"]
["Cash Forecast_8A",362,null,"=Vlookup(\"362\",Translations!F3:H508,1,0)","Date de fin :","End Date:","Date de fin :","Fecha final:"]
["Cash Forecast_8A",363,null,"=Vlookup(\"363\",Translations!F3:H508,1,0)","Demande de décaissement  - Période additionnelle convenue:","Disbursement Request Buffer Period","Demande de décaissement  - Période additionnelle convenue:","Solicitud de desembolso – Periodo de reserva (colchón) :"]
["Cash Forecast_8A",364,null,"=Vlookup(\"364\",Translations!F3:H508,1,0)","Date de fin :","End Date:","Date de fin :","Fecha final:"]
["Cash Forecast_8A",365,null,"=Vlookup(\"365\",Translations!F3:H508,1,0)","Has the LFA Verified the Principal Recipient Forecast?","Has the LFA Verified the Principal Recipient Forecast?","Has the LFA Verified the Principal Recipient Forecast?","Has the LFA Verified the Principal Recipient Forecast?"]
["Cash Forecast_8A",366,null,"=Vlookup(\"366\",Translations!F3:H508,1,0)","Ventilation récapitulative par groupes de coûts","Summary Breakdown by Cost Grouping","Ventilation récapitulative par groupes de coûts","Resumen desglosado por grupo de costos"]
["Cash Forecast_8A",367,null,"=Vlookup(\"367\",Translations!F3:H508,1,0)","'Évaluation des coûts (groupes de coûts)","Costing Dimension (Cost Grouping)","'Évaluation des coûts (groupes de coûts)","Dimensión de cálculo de costos (grupos de costos)"]
["Cash Forecast_8A",368,null,"=Vlookup(\"368\",Translations!F3:H508,1,0)","Budget pour la période de prévision","Budget for Forecast Period","Budget pour la période de prévision","Presupuesto para el periodo de previsión"]
["Cash Forecast_8A",369,null,"=Vlookup(\"369\",Translations!F3:H508,1,0)","Montant prévu pour la période de prévision","Principal Recipient Forecast for the period (not including the Buffer)","Montant prévu pour la période de prévision","Previsión del RP para el periodo (excluida el periodo de reserva - colchón)"]
["Cash Forecast_8A",370,null,"=Vlookup(\"370\",Translations!F3:H508,1,0)","Budget pour la période additionnelle","Budget for the Buffer Period","Budget pour la période additionnelle","Presupuesto para el periodo de reserva (colchón)"]
["Cash Forecast_8A",371,null,"=Vlookup(\"371\",Translations!F3:H508,1,0)","Montant prévu pour la période additionnelle","Principal Recipient Forecast for the Buffer Period","Montant prévu pour la période additionnelle","Previsión para el periodo de reserva (colchón)"]
["Cash Forecast_8A",372,null,"=Vlookup(\"372\",Translations!F3:H508,1,0)","Budget total disponible (période additionnelle comprise)","Total Principal Recipient Forecast (including Buffer)","Budget total disponible (période additionnelle comprise)","Previsión total del RP (incluida la estabilización)"]
["Cash Forecast_8A",373,null,"=Vlookup(\"373\",Translations!F3:H508,1,0)","Commentaires","Comments","Commentaires","Comentarios"]
["Cash Forecast_8A",374,null,"=Vlookup(\"374\",Translations!F3:H508,1,0)","Total général","Grand Total","Total général","Total general"]
["Cash Forecast_8A",375,null,"=Vlookup(\"375\",Translations!F3:H508,1,0)","Local Fund Agent Adjusted Principal Recipient Forecast for the period (not including the Buffer)","Local Fund Agent Adjusted Principal Recipient Forecast for the period (not including the Buffer)","Local Fund Agent Adjusted Principal Recipient Forecast for the period (not including the Buffer)","Local Fund Agent Adjusted Principal Recipient Forecast for the period (not including the Buffer)"]
["Cash Forecast_8A",376,null,"=Vlookup(\"376\",Translations!F3:H508,1,0)","Local Fund Agent Adjusted Principal Recipient Forecast for the Buffer Period","Local Fund Agent Adjusted Principal Recipient Forecast for the Buffer Period","Local Fund Agent Adjusted Principal Recipient Forecast for the Buffer Period","Local Fund Agent Adjusted Principal Recipient Forecast for the Buffer Period"]
["Cash Forecast_8A",377,null,"=Vlookup(\"377\",Translations!F3:H508,1,0)","Local Fund Agent - Adjusted Forecast (including the buffer)","Local Fund Agent - Adjusted Forecast (including the buffer)","Local Fund Agent - Adjusted Forecast (including the buffer)","Local Fund Agent - Adjusted Forecast (including the buffer)"]
["Cash Forecast_8A",378,null,"=Vlookup(\"378\",Translations!F3:H508,1,0)","LFA Comments","Comments","LFA Comments","Comments"]
["Cash Forecast_8A",379,null,"=Vlookup(\"379\",Translations!F3:H508,1,0)","B. RFA RÉCAPITULATIF - VENTILATION PAR INTERVENTIONS","Summary Breakdown by Interventions","B. RFA RÉCAPITULATIF - VENTILATION PAR INTERVENTIONS","RESUMEN DESGLOSADO DEL INFORME FINANCIERO ANUAL POR INTERVENCIONESs"]
["Cash Forecast_8A",380,null,"=Vlookup(\"380\",Translations!F3:H508,1,0)","Démarche modulaire - Modules","Modular Approach - Modules","Démarche modulaire - Modules","Enfoque modular: módulos"]
["Cash Forecast_8A",381,null,"=Vlookup(\"381\",Translations!F3:H508,1,0)","Démarche modulaire - Interventions","Modular Approach - Interventions","Démarche modulaire - Interventions","Enfoque modular: intervenciones"]
["Cash Forecast_8A",382,null,"=Vlookup(\"382\",Translations!F3:H508,1,0)","Budget pour la période de prévision","Budget for Forecast Period","Budget pour la période de prévision","Presupuesto para el periodo de previsión"]
["Cash Forecast_8A",383,null,"=Vlookup(\"383\",Translations!F3:H508,1,0)","Montant prévu pour la période de prévision","Principal Recipient Forecast for the period (not including the Buffer)","Montant prévu pour la période de prévision","Previsión del RP para el periodo (excluida el periodo de reserva - colchón)"]
["Cash Forecast_8A",384,null,"=Vlookup(\"384\",Translations!F3:H508,1,0)","Budget pour la période additionnelle","Budget for the Buffer Period","Budget pour la période additionnelle","Presupuesto para el periodo de reserva (colchón)"]
["Cash Forecast_8A",385,null,"=Vlookup(\"385\",Translations!F3:H508,1,0)",{"$f":"IF(LangOffset=0,F387,IF(LangOffset=1,G387,IF(LangOffset=2,H387)))","v":"Montant prévu pour la période additionnelle"},"Principal Recipient Forecast for the Buffer Period","Montant prévu pour la période additionnelle","Previsión para el periodo de reserva (colchón)"]
["Cash Forecast_8A",386,null,{"$f":"\"=Vlookup(\"\"\"&B388&\"\"\",Translations!F3:H508,1,0)\"","v":"=Vlookup(\"386\",Translations!F3:H508,1,0)"},"Budget total disponible (période additionnelle comprise)","Total Principal Recipient Forecast (including Buffer)","Budget total disponible (période additionnelle comprise)","Previsión total del RP (incluida la estabilización)"]
["Cash Forecast_8A",387,null,"=Vlookup(\"387\",Translations!F3:H508,1,0)","Commentaires","Comments","Commentaires","Comentarios"]
["Cash Forecast_8A",388,null,"=Vlookup(\"388\",Translations!F3:H508,1,0)","Local Fund Agent Adjusted Principal Recipient Forecast for the period (not including the Buffer)","Local Fund Agent Adjusted Principal Recipient Forecast for the period (not including the Buffer)","Local Fund Agent Adjusted Principal Recipient Forecast for the period (not including the Buffer)","Local Fund Agent Adjusted Principal Recipient Forecast for the period (not including the Buffer)"]
["Cash Forecast_8A",389,null,"=Vlookup(\"389\",Translations!F3:H508,1,0)","Local Fund Agent Adjusted Principal Recipient Forecast for the Buffer Period","Local Fund Agent Adjusted Principal Recipient Forecast for the Buffer Period","Local Fund Agent Adjusted Principal Recipient Forecast for the Buffer Period","Local Fund Agent Adjusted Principal Recipient Forecast for the Buffer Period"]
["Cash Forecast_8A",390,null,"=Vlookup(\"390\",Translations!F3:H508,1,0)","Local Fund Agent - Adjusted Forecast (including the buffer)","Local Fund Agent - Adjusted Forecast (including the buffer)","Local Fund Agent - Adjusted Forecast (including the buffer)","Local Fund Agent - Adjusted Forecast (including the buffer)"]
["Cash Forecast_8A",391,null,"=Vlookup(\"391\",Translations!F3:H508,1,0)","LFA Comments","Comments","LFA Comments","Comments"]
["Cash Forecast_8A",392,null,"=Vlookup(\"392\",Translations!F3:H508,1,0)","C. RFA RÉCAPITULATIF - VENTILATION PAR ENTITÉ DE MISE EN ŒUVRE","Summary Breakdown by Implementing Entity","C. RFA RÉCAPITULATIF - VENTILATION PAR ENTITÉ DE MISE EN ŒUVRE","RESUMEN DESGLOSADO DEL INFORME FINANCIERO ANUAL POR ENTIDAD EJECUTORA DE PROGRAMAS"]
["Cash Forecast_8A",393,null,"=Vlookup(\"393\",Translations!F3:H508,1,0)","Entité de mise en œuvre","Implementing Entity","Entité de mise en œuvre","Entidad ejecutora"]
["Cash Forecast_8A",394,null,"=Vlookup(\"394\",Translations!F3:H508,1,0)","Budget pour la période de prévision","Budget for Forecast Period","Budget pour la période de prévision","Presupuesto para el periodo de previsión"]
["Cash Forecast_8A",395,null,"=Vlookup(\"395\",Translations!F3:H508,1,0)","Montant prévu pour la période de prévision","Principal Recipient Forecast for the period (not including the Buffer)","Montant prévu pour la période de prévision","Previsión del RP para el periodo (excluida el periodo de reserva - colchón)"]
["Cash Forecast_8A",396,null,"=Vlookup(\"396\",Translations!F3:H508,1,0)","Budget pour la période additionnelle","Budget for the Buffer Period","Budget pour la période additionnelle","Presupuesto para el periodo de reserva (colchón)"]
["Cash Forecast_8A",397,null,"=Vlookup(\"397\",Translations!F3:H508,1,0)","Montant prévu pour la période additionnelle","Principal Recipient Forecast for the Buffer Period","Montant prévu pour la période additionnelle","Previsión para el periodo de reserva (colchón)"]
["Cash Forecast_8A",398,null,"=Vlookup(\"398\",Translations!F3:H508,1,0)","Budget total disponible (période additionnelle comprise)","Total Principal Recipient Forecast (including Buffer)","Budget total disponible (période additionnelle comprise)","Previsión total del RP (incluida la estabilización)"]
["Cash Forecast_8A",399,null,"=Vlookup(\"399\",Translations!F3:H508,1,0)","Commentaires","Comments","Commentaires","Comentarios"]
["Cash Forecast_8A",400,null,"=Vlookup(\"400\",Translations!F3:H508,1,0)","Local Fund Agent Adjusted Principal Recipient Forecast for the period (not including the Buffer)","Local Fund Agent Adjusted Principal Recipient Forecast for the period (not including the Buffer)","Local Fund Agent Adjusted Principal Recipient Forecast for the period (not including the Buffer)","Local Fund Agent Adjusted Principal Recipient Forecast for the period (not including the Buffer)"]
["Cash Forecast_8A",401,null,"=Vlookup(\"401\",Translations!F3:H508,1,0)","Local Fund Agent Adjusted Principal Recipient Forecast for the Buffer Period","Local Fund Agent Adjusted Principal Recipient Forecast for the Buffer Period","Local Fund Agent Adjusted Principal Recipient Forecast for the Buffer Period","Local Fund Agent Adjusted Principal Recipient Forecast for the Buffer Period"]
["Cash Forecast_8A",402,null,"=Vlookup(\"402\",Translations!F3:H508,1,0)","Local Fund Agent - Adjusted Forecast (including the buffer)","Local Fund Agent - Adjusted Forecast (including the buffer)","Local Fund Agent - Adjusted Forecast (including the buffer)","Local Fund Agent - Adjusted Forecast (including the buffer)"]
["Cash Forecast_8A",403,null,"=Vlookup(\"403\",Translations!F3:H508,1,0)","LFA Comments","Comments","LFA Comments","Comments"]
["Cash Forecast_8A",404,null,"=Vlookup(\"404\",Translations!F3:H508,1,0)","Validation du total général ","Validation of Grand Total ","Validation du total général ","Validation of Grand Total "]
["Cash Forecast_8A",405,null,"=Vlookup(\"405\",Translations!F3:H508,1,0)","Summary Breakdown by Quarter","Summary Breakdown by Quarter","Summary Breakdown by Quarter","Summary Breakdown by Quarter"]
["Cash Forecast_8A",406,null,"=Vlookup(\"406\",Translations!F3:H508,1,0)","Calendar Period ","Calendar Period ","Calendar Period ","Calendar Period "]
["Cash Forecast_8A",407,null,"=Vlookup(\"407\",Translations!F3:H508,1,0)","Principal Recipient","Principal Recipient","Principal Recipient","Principal Recipient"]
["Cash Forecast_8A",408,null,"=Vlookup(\"408\",Translations!F3:H508,1,0)","Total","Total","Total","Total"]
["Cash Forecast_8A",409,null,"=Vlookup(\"409\",Translations!F3:H508,1,0)","Local Fund Agent","Local Fund Agent","Local Fund Agent","Local Fund Agent"]
["Cash Forecast_8A",410,null,"=Vlookup(\"410\",Translations!F3:H508,1,0)","Total","Total","Total","Total"]
["Cash Forecast_8A",411,null,"=Vlookup(\"411\",Translations!F3:H508,1,0)","Validation du total général ","Validation of Principal Recipient Grand Total ","Validation du total général ","Validación del total general"]
["Cash Forecast_8A",412,null,"=Vlookup(\"412\",Translations!F3:H508,1,0)","Validation of Local Fund Agent Grand Total ","Validation of Local Fund Agent Grand Total ","Validation of Local Fund Agent Grand Total ","Validation of Local Fund Agent Grand Total "]
["Request and Recommendation_8B",413,null,"=Vlookup(\"413\",Translations!F3:H508,1,0)","Progress Report with Disbursement Request","Progress Report with Disbursement Request","Progress Report with Disbursement Request","Progress Report with Disbursement Request"]
["Request and Recommendation_8B",414,null,"=Vlookup(\"414\",Translations!F3:H508,1,0)","Section 8B.  Disbursement Request and Recommendation","Section 8B.  Disbursement Request and Recommendation","Section 8B.  Disbursement Request and Recommendation","Section 8B.  Disbursement Request and Recommendation"]
["Request and Recommendation_8B",415,null,"=Vlookup(\"415\",Translations!F3:H508,1,0)","Disbursement Request Execution Period","Disbursement Request Execution Period","Disbursement Request Execution Period","Disbursement Request Execution Period"]
["Request and Recommendation_8B",416,null,"=Vlookup(\"416\",Translations!F3:H508,1,0)","End Date:","End Date:","End Date:","End Date:"]
["Request and Recommendation_8B",417,null,"=Vlookup(\"417\",Translations!F3:H508,1,0)","Disbursement Request Buffer Period","Disbursement Request Buffer Period","Disbursement Request Buffer Period","Disbursement Request Buffer Period"]
["Request and Recommendation_8B",418,null,"=Vlookup(\"418\",Translations!F3:H508,1,0)","End Date:","End Date:","End Date:","End Date:"]
["Request and Recommendation_8B",419,null,"=Vlookup(\"419\",Translations!F3:H508,1,0)","Total forecasted net cash expenditures by the Principal Recipient for the period immediately following the period covered by the Progress Update:","Total forecasted net cash expenditures by the Principal Recipient for the period immediately following the period covered by the Progress Update:","Total forecasted net cash expenditures by the Principal Recipient for the period immediately following the period covered by the Progress Update:","Total forecasted net cash expenditures by the Principal Recipient for the period immediately following the period covered by the Progress Update:"]
["Request and Recommendation_8B",420,null,"=Vlookup(\"420\",Translations!F3:H508,1,0)","Principal RECIPIENT","Principal RECIPIENT","Principal RECIPIENT","Principal RECIPIENT"]
["Request and Recommendation_8B",421,null,"=Vlookup(\"421\",Translations!F3:H508,1,0)","Explanation of any significant variance between forecasted amounts and amounts as originally budgeted.  Please explain any significant variance (based on your judgment) between the forecasted amounts and the amounts as per approved budgets.  Please specify the main factors and related amounts that are the major drivers of the variance. ","Explanation of any significant variance between forecasted amounts and amounts as originally budgeted.  Please explain any significant variance (based on your judgment) between the forecasted amounts and the amounts as per approved budgets.  Please specify the main factors and related amounts that are the major drivers of the variance. ","Explanation of any significant variance between forecasted amounts and amounts as originally budgeted.  Please explain any significant variance (based on your judgment) between the forecasted amounts and the amounts as per approved budgets.  Please specify the main factors and related amounts that are the major drivers of the variance. ","Explanation of any significant variance between forecasted amounts and amounts as originally budgeted.  Please explain any significant variance (based on your judgment) between the forecasted amounts and the amounts as per approved budgets.  Please specify the main factors and related amounts that are the major drivers of the variance. "]
["Request and Recommendation_8B",422,null,"=Vlookup(\"422\",Translations!F3:H508,1,0)","Execution Period","Execution Period","Execution Period","Execution Period"]
["Request and Recommendation_8B",423,null,"=Vlookup(\"423\",Translations!F3:H508,1,0)","Total","Total","Total","Total"]
["Request and Recommendation_8B",424,null,"=Vlookup(\"424\",Translations!F3:H508,1,0)","Buffer Period","Buffer Period","Buffer Period","Buffer Period"]
["Request and Recommendation_8B",425,null,"=Vlookup(\"425\",Translations!F3:H508,1,0)","Total","Total","Total","Total"]
["Request and Recommendation_8B",426,null,"=Vlookup(\"426\",Translations!F3:H508,1,0)","Calendar Period","Calendar Period","Calendar Period","Calendar Period"]
["Request and Recommendation_8B",427,null,"=Vlookup(\"427\",Translations!F3:H508,1,0)","Approved Budget","Approved Budget","Approved Budget","Approved Budget"]
["Request and Recommendation_8B",428,null,"=Vlookup(\"428\",Translations!F3:H508,1,0)","Principal Recipient Forecast","Principal Recipient Forecast","Principal Recipient Forecast","Principal Recipient Forecast"]
["Request and Recommendation_8B",429,null,"=Vlookup(\"429\",Translations!F3:H508,1,0)","Solde de trésorerie : fin de la période couverte par le rapport sur les résultats actuels (ligne 5.3 du rapprochement de la trésorerie du récipiendaire principal).","Cash Balance: End of period covered by Progress Update (Item 5.3 in PRLFA Cash Reconciliation):","Solde de trésorerie : fin de la période couverte par le rapport sur les résultats actuels (ligne 5.3 du rapprochement de la trésorerie du récipiendaire principal).","Saldos de caja de cierre totales: final del periodo del informe (Item 5.3 in PRLFA Cash Reconciliation):"]
["Request and Recommendation_8B",430,null,"=Vlookup(\"430\",Translations!F3:H508,1,0)","Fonds en transit pour la période de rapport (décaissements  effectués en faveur du récipiendaire principal). ","Cash in Transit for the reporting period (Disbursements to PR:","Fonds en transit pour la période de rapport (décaissements  effectués en faveur du récipiendaire principal). ","Efectivo en tránsito durante el periodo del informe (Desembolso al Receptor Principal)"]
["Request and Recommendation_8B",431,null,"=Vlookup(\"431\",Translations!F3:H508,1,0)","Fonds en transit pour la période de rapport (décaissements effectués a un tiers). ","Cash in Transit for the reporting period (Third party disbursements):","Fonds en transit pour la période de rapport (décaissements effectués a un tiers). ","Efectivo en tránsito durante el periodo del informe (Desembolso a terceros)"]
["Request and Recommendation_8B",432,null,"=Vlookup(\"432\",Translations!F3:H508,1,0)","Fonds en transit après la période de rapport en cours : (décaissements  effectués en faveur du récipiendaire principal).","Cash in Transit after the current reporting period (Disbursements to PR","Fonds en transit après la période de rapport en cours : (décaissements  effectués en faveur du récipiendaire principal).","Efectivo en tránsito tras el periodo del informe en curso (desembolsos a Receptores principales) "]
["Request and Recommendation_8B",433,null,"=Vlookup(\"433\",Translations!F3:H508,1,0)","Fonds en transit après la période de rapport en cours » : (décaissements effectués en faveur d’un tiers au nom du récipiendaire principal).","Cash in Transit after the current reporting period (Third party disbursements) :","Fonds en transit après la période de rapport en cours » : (décaissements effectués en faveur d’un tiers au nom du récipiendaire principal).","Efectivo en tránsito tras el periodo del informe en curso  (desembolsos a terceros):"]
["Request and Recommendation_8B",434,null,"=Vlookup(\"434\",Translations!F3:H508,1,0)","Demande de décaissement","Disbursement Request","Demande de décaissement","Solicitud de desembolso"]
["Request and Recommendation_8B",435,null,"=Vlookup(\"435\",Translations!F3:H508,1,0)","Forecasted Disbursement to Principal Recipient","Forecasted Disbursement to Principal Recipient","Forecasted Disbursement to Principal Recipient","Forecasted Disbursement to Principal Recipient"]
["Request and Recommendation_8B",436,null,"=Vlookup(\"436\",Translations!F3:H508,1,0)","Forecasted Direct Disbursement","Forecasted Direct Disbursement","Forecasted Direct Disbursement","Forecasted Direct Disbursement"]
["Request and Recommendation_8B",437,null,"=Vlookup(\"437\",Translations!F3:H508,1,0)","PPM/Wambo.org  forecasted disbursement","PPM/Wambo.org  forecasted disbursement","PPM/Wambo.org  forecasted disbursement","PPM/Wambo.org  forecasted disbursement"]
["Request and Recommendation_8B",438,null,"=Vlookup(\"438\",Translations!F3:H508,1,0)","Disbursement Request","Disbursement Request","Disbursement Request","Disbursement Request"]
["Request and Recommendation_8B",439,null,"=Vlookup(\"439\",Translations!F3:H508,1,0)","For LFA Use Only","For LFA Use Only","For LFA Use Only","For LFA Use Only"]
["Request and Recommendation_8B",440,null,"=Vlookup(\"440\",Translations!F3:H508,1,0)","LFA comments on PR's explanation of any significant variance between forecasted amounts and amounts as originally budgeted.","LFA comments on PR's explanation of any significant variance between forecasted amounts and amounts as originally budgeted.","LFA comments on PR's explanation of any significant variance between forecasted amounts and amounts as originally budgeted.","LFA comments on PR's explanation of any significant variance between forecasted amounts and amounts as originally budgeted."]
["Request and Recommendation_8B",441,null,"=Vlookup(\"441\",Translations!F3:H508,1,0)","Execution Period","Execution Period","Execution Period","Execution Period"]
["Request and Recommendation_8B",442,null,"=Vlookup(\"442\",Translations!F3:H508,1,0)","Total","Total","Total","Total"]
["Request and Recommendation_8B",443,null,"=Vlookup(\"443\",Translations!F3:H508,1,0)","Buffer Period","Buffer Period","Buffer Period","Buffer Period"]
["Request and Recommendation_8B",444,null,"=Vlookup(\"444\",Translations!F3:H508,1,0)","Total","Total","Total","Total"]
["Request and Recommendation_8B",445,null,"=Vlookup(\"445\",Translations!F3:H508,1,0)","Calendar Period","Calendar Period","Calendar Period","Calendar Period"]
["Request and Recommendation_8B",446,null,"=Vlookup(\"446\",Translations!F3:H508,1,0)","Approved Budget","Approved Budget","Approved Budget","Approved Budget"]
["Request and Recommendation_8B",447,null,"=Vlookup(\"447\",Translations!F3:H508,1,0)","Local Fund Agent  Forecast","Local Fund Agent  Forecast","Local Fund Agent  Forecast","Local Fund Agent  Forecast"]
["Request and Recommendation_8B",448,null,"=Vlookup(\"448\",Translations!F3:H508,1,0)","Cash Balance: End of period covered by Progress Update (Item 5.3 in PRLFA Cash Reconciliation):","Cash Balance: End of period covered by Progress Update (Item 5.3 in PRLFA Cash Reconciliation):","Cash Balance: End of period covered by Progress Update (Item 5.3 in PRLFA Cash Reconciliation):","Cash Balance: End of period covered by Progress Update (Item 5.3 in PRLFA Cash Reconciliation):"]
["Request and Recommendation_8B",449,null,"=Vlookup(\"449\",Translations!F3:H508,1,0)",{"$f":"IF(LangOffset=0,F451,IF(LangOffset=1,G451,IF(LangOffset=2,H451)))","v":"Cash in Transit for the reporting period (Disbursements to PR:"},"Cash in Transit for the reporting period (Disbursements to PR:","Cash in Transit for the reporting period (Disbursements to PR:","Cash in Transit for the reporting period (Disbursements to PR:"]
["Request and Recommendation_8B",450,null,{"$f":"\"=Vlookup(\"\"\"&B452&\"\"\",Translations!F3:H508,1,0)\"","v":"=Vlookup(\"450\",Translations!F3:H508,1,0)"},"Cash in Transit for the reporting period (Third party disbursements):","Cash in Transit for the reporting period (Third party disbursements):","Cash in Transit for the reporting period (Third party disbursements):","Cash in Transit for the reporting period (Third party disbursements):"]
["Request and Recommendation_8B",451,null,"=Vlookup(\"451\",Translations!F3:H508,1,0)","Cash in Transit after the current reporting period (Disbursements to PR:","Cash in Transit after the current reporting period (Disbursements to PR:","Cash in Transit after the current reporting period (Disbursements to PR:","Cash in Transit after the current reporting period (Disbursements to PR"]
["Request and Recommendation_8B",452,null,"=Vlookup(\"452\",Translations!F3:H508,1,0)","Cash in Transit after the current reporting period (Third party disbursements) :","Cash in Transit after the current reporting period (Third party disbursements) :","Cash in Transit after the current reporting period (Third party disbursements) :","Cash in Transit after the current reporting period (Third party disbursements) :"]
["Request and Recommendation_8B",453,null,"=Vlookup(\"453\",Translations!F3:H508,1,0)","Disbursement Request","Disbursement Request","Disbursement Request","Disbursement Request"]
["Request and Recommendation_8B",454,null,"=Vlookup(\"454\",Translations!F3:H508,1,0)","Forecasted Disbursement to Principal Recipient","Forecasted Disbursement to Principal Recipient","Forecasted Disbursement to Principal Recipient","Forecasted Disbursement to Principal Recipient"]
["Request and Recommendation_8B",455,null,"=Vlookup(\"455\",Translations!F3:H508,1,0)","Forecasted Direct Disbursement","Forecasted Direct Disbursement","Forecasted Direct Disbursement","Forecasted Direct Disbursement"]
["Request and Recommendation_8B",456,null,"=Vlookup(\"456\",Translations!F3:H508,1,0)","PPM/Wambo.org  forecasted disbursement","PPM/Wambo.org  forecasted disbursement","PPM/Wambo.org  forecasted disbursement","PPM/Wambo.org  forecasted disbursement"]
["Request and Recommendation_8B",457,null,"=Vlookup(\"457\",Translations!F3:H508,1,0)","Disbursement Request","Disbursement Request","Disbursement Request","Disbursement Request"]
["Request and Recommendation_8B",458,null,"=Vlookup(\"458\",Translations!F3:H508,1,0)","Exchange Rate","Exchange Rate","Exchange Rate","Exchange Rate"]
["Request and Recommendation_8B",459,null,"=Vlookup(\"459\",Translations!F3:H508,1,0)","Rates used by the PR","Rates used by the PR","Rates used by the PR","Rates used by the PR"]
["Request and Recommendation_8B",460,null,"=Vlookup(\"460\",Translations!F3:H508,1,0)","LFA-verified rates","LFA-verified rates","LFA-verified rates","LFA-verified rates"]
["Request and Recommendation_8B",461,null,"=Vlookup(\"461\",Translations!F3:H508,1,0)","Name of local currency, date and source of the exchange rate, and other comments (if appropriate) ","Name of local currency, date and source of the exchange rate, and other comments (if appropriate) ","Name of local currency, date and source of the exchange rate, and other comments (if appropriate) ","Name of local currency, date and source of the exchange rate, and other comments (if appropriate) "]
["Request and Recommendation_8B",462,null,"=Vlookup(\"462\",Translations!F3:H508,1,0)","LFA comments on the exchange rates used by the PR","LFA comments on the exchange rates used by the PR","LFA comments on the exchange rates used by the PR","LFA comments on the exchange rates used by the PR"]
["Request and Recommendation_8B",463,null,"=Vlookup(\"463\",Translations!F3:H508,1,0)","'- used to convert Opening Cash Balance","'- used to convert Opening Cash Balance","'- used to convert Opening Cash Balance","'- used to convert Opening Cash Balance"]
["Request and Recommendation_8B",464,null,"=Vlookup(\"464\",Translations!F3:H508,1,0)",{"$error":"#NAME?"},{"$f":"- used to convert Closing Cash Balance","v":{"$error":"#NAME?"}},{"$f":"- used to convert Closing Cash Balance","v":{"$error":"#NAME?"}},{"$f":"- used to convert Closing Cash Balance","v":{"$error":"#NAME?"}}]
["Request and Recommendation_8B",465,null,"=Vlookup(\"465\",Translations!F3:H508,1,0)",{"$error":"#NAME?"},{"$f":"- used to convert Total PR Cash Outflow for the Progress Update Period","v":{"$error":"#NAME?"}},{"$f":"- used to convert Total PR Cash Outflow for the Progress Update Period","v":{"$error":"#NAME?"}},{"$f":"- used to convert Total PR Cash Outflow for the Progress Update Period","v":{"$error":"#NAME?"}}]
["PR Authorisation_9A",466,null,"=Vlookup(\"466\",Translations!F3:H508,1,0)","Rapport périodique sur les résultats actuels et demande de décaissement","Progress Report with Disbursement Request","Rapport périodique sur les résultats actuels et demande de décaissement","Progress Report with Disbursement Request"]
["PR Authorisation_9A",467,null,"=Vlookup(\"467\",Translations!F3:H508,1,0)","Section 9A.  Principal Recipient Authorization","Section 9A.  Principal Recipient Authorization","Section 9A.  Principal Recipient Authorization","Sección 9A: Autorización del RP"]
["PR Authorisation_9A",468,null,"=Vlookup(\"468\",Translations!F3:H508,1,0)","Nom/numéro de la subvention :","Grant Name:","Nom/numéro de la subvention :","Nombre o número de la subvención:"]
["PR Authorisation_9A",469,null,"=Vlookup(\"469\",Translations!F3:H508,1,0)","Période couverte par le rapport sur les résultats actuels :","Principal Recipient Reporting - Period Covered:","Période couverte par le rapport sur les résultats actuels :","Periodo de avances programáticos:"]
["PR Authorisation_9A",470,null,"=Vlookup(\"470\",Translations!F3:H508,1,0)","Date de début :","Beginning Date:","Date de début :","Fecha de inicio:"]
["PR Authorisation_9A",471,null,"=Vlookup(\"471\",Translations!F3:H508,1,0)","Date de fin :","End Date:","Date de fin :","Fecha final:"]
["PR Authorisation_9A",472,null,"=Vlookup(\"472\",Translations!F3:H508,1,0)","Demande de décaissement  - période de prévision:","Disbursement Request Execution Period","Demande de décaissement  - période de prévision:","Solicitud de desembolso – Periodo de ejecución:"]
["PR Authorisation_9A",473,null,"=Vlookup(\"473\",Translations!F3:H508,1,0)","Date de début :","Beginning Date:","Date de début :","Fecha de inicio:"]
["PR Authorisation_9A",474,null,"=Vlookup(\"474\",Translations!F3:H508,1,0)","Date de fin :","End Date:","Date de fin :","Fecha final:"]
["PR Authorisation_9A",475,null,"=Vlookup(\"475\",Translations!F3:H508,1,0)","Demande de décaissement  - Période additionnelle convenue:","Disbursement Request Buffer Period","Demande de décaissement  - Période additionnelle convenue:","Solicitud de desembolso – Periodo de reserva (colchón) :"]
["PR Authorisation_9A",476,null,"=Vlookup(\"476\",Translations!F3:H508,1,0)","Date de début :","Beginning Date:","Date de début :","Fecha de inicio:"]
["PR Authorisation_9A",477,null,"=Vlookup(\"477\",Translations!F3:H508,1,0)","Date de fin :","End Date:","Date de fin :","Fecha final:"]
["PR Authorisation_9A",478,null,"=Vlookup(\"478\",Translations!F3:H508,1,0)","Monnaie Subvention :","Currency:","Monnaie Subvention :","Moneda de la subvención:"]
["PR Authorisation_9A",479,null,"=Vlookup(\"479\",Translations!F3:H508,1,0)","Fonds en transit après la période de rapport en cours : (décaissements  effectués en faveur du récipiendaire principal).","Disbursement Request Amount:","Fonds en transit après la période de rapport en cours : (décaissements  effectués en faveur du récipiendaire principal).","Solicitud de desembolso:"]
["PR Authorisation_9A",480,null,"=Vlookup(\"480\",Translations!F3:H508,1,0)","Le(la) soussigné(e) déclare : i) que tous les renseignements (programmatiques, financiers et autres) fournis dans le présent rapport sur les résultats actuels/demande de décaissement sont complets et exacts ; ii) que les fonds décaissés conformément à la présente demande seront déposés dans le compte bancaire visé dans les formulaires sur les données de base, et iii) que les fonds décaissés au titre de l'accord de subvention seront utilisés conformément à celui-ci.","The undersigned acknowledges that: (i) all the information (programmatic, financial, or otherwise) provided in this Progress Update and Disbursement Request is complete and accurate; (ii) funds disbursed in accordance with this request shall be deposited in the bank account specified in the Core Data Forms; and (iii) funds disbursed under the Grant Agreement shall be used in accordance with the Grant Agreement.","Le(la) soussigné(e) déclare : i) que tous les renseignements (programmatiques, financiers et autres) fournis dans le présent rapport sur les résultats actuels/demande de décaissement sont complets et exacts ; ii) que les fonds décaissés conformément à la présente demande seront déposés dans le compte bancaire visé dans les formulaires sur les données de base, et iii) que les fonds décaissés au titre de l'accord de subvention seront utilisés conformément à celui-ci.","El abajo firmante reconoce que: (i) toda la información (programática, financiera o de otro tipo) facilitada en el presente informe progreso y solicitud de desembolso es completa y precisa; (ii) los fondos desembolsados conforme a esta solicitud se depositarán en la cuenta bancaria que se detalla en los formularios de datos básicos, y (iii) los fondos desembolsados en el marco del Acuerdo de Subvención se utilizarán con arreglo al mismo."]
["PR Authorisation_9A",481,null,"=Vlookup(\"481\",Translations!F3:H508,1,0)","Signé au nom du récipiendaire principal :\n(signature du représentant désigné dûment autorisé)","Signed on behalf of the Principal Recipient:\n(signature of Authorized Designated Representative)","Signé au nom du récipiendaire principal :\n(signature du représentant désigné dûment autorisé)","Firmado en representación del Receptor principal:\n(firma del representante autorizado designado)"]
["PR Authorisation_9A",482,null,"=Vlookup(\"482\",Translations!F3:H508,1,0)","Nom :","Name:","Nom :","Nombre:"]
["PR Authorisation_9A",483,null,"=Vlookup(\"483\",Translations!F3:H508,1,0)","Titre :","Title:","Titre :","Título:"]
["PR Authorisation_9A",484,null,"=Vlookup(\"484\",Translations!F3:H508,1,0)","Lieu et date :","Date and Place:","Lieu et date :","Fecha y lugar:"]
["LFA Authorisation_9B",485,null,"=Vlookup(\"485\",Translations!F3:H508,1,0)","Rapport périodique sur les résultats actuels et demande de décaissement","Progress Report with Disbursement Request","Rapport périodique sur les résultats actuels et demande de décaissement","Progress Report with Disbursement Request"]
["LFA Authorisation_9B",486,null,"=Vlookup(\"486\",Translations!F3:H508,1,0)","For LFA Use Only","For LFA Use Only","For LFA Use Only","For LFA Use Only"]
["LFA Authorisation_9B",487,null,"=Vlookup(\"487\",Translations!F3:H508,1,0)","Section 9B.  LFA Authorization","Section 9B.  LFA Authorization","Section 9B.  LFA Authorization","Section 9B.  LFA Authorization"]
["LFA Authorisation_9B",488,null,"=Vlookup(\"488\",Translations!F3:H508,1,0)","Grant Name:","Grant Name:","Grant Name:","Grant Name:"]
["LFA Authorisation_9B",489,null,"=Vlookup(\"489\",Translations!F3:H508,1,0)","Principal Recipient Reporting - Period Covered:","Principal Recipient Reporting - Period Covered:","Principal Recipient Reporting - Period Covered:","Principal Recipient Reporting - Period Covered:"]
["LFA Authorisation_9B",490,null,"=Vlookup(\"490\",Translations!F3:H508,1,0)","Beginning Date:","Beginning Date:","Beginning Date:","Beginning Date:"]
["LFA Authorisation_9B",491,null,"=Vlookup(\"491\",Translations!F3:H508,1,0)","End Date:","End Date:","End Date:","End Date:"]
["LFA Authorisation_9B",492,null,"=Vlookup(\"492\",Translations!F3:H508,1,0)","Disbursement Request  - Period Covered:","Disbursement Request  - Period Covered:","Disbursement Request  - Period Covered:","Disbursement Request  - Period Covered:"]
["LFA Authorisation_9B",493,null,"=Vlookup(\"493\",Translations!F3:H508,1,0)","Beginning Date:","Beginning Date:","Beginning Date:","Beginning Date:"]
["LFA Authorisation_9B",494,null,"=Vlookup(\"494\",Translations!F3:H508,1,0)","End Date:","End Date:","End Date:","End Date:"]
["LFA Authorisation_9B",495,null,"=Vlookup(\"495\",Translations!F3:H508,1,0)","Demande de décaissement  - Période additionnelle convenue:","Disbursement Request Buffer Period","Demande de décaissement  - Période additionnelle convenue:","Solicitud de desembolso – Periodo de reserva (colchón) :"]
["LFA Authorisation_9B",496,null,"=Vlookup(\"496\",Translations!F3:H508,1,0)","Beginning Date:","Beginning Date:","Beginning Date:","Beginning Date:"]
["LFA Authorisation_9B",497,null,"=Vlookup(\"497\",Translations!F3:H508,1,0)","End Date:","End Date:","End Date:","End Date:"]
["LFA Authorisation_9B",498,null,"=Vlookup(\"498\",Translations!F3:H508,1,0)","Currency:","Currency:","Currency:","Currency:"]
["LFA Authorisation_9B",499,null,"=Vlookup(\"499\",Translations!F3:H508,1,0)","Disbursement Recommendation Amount:","Disbursement Recommendation Amount:","Disbursement Recommendation Amount:","Disbursement Recommendation Amount:"]
["LFA Authorisation_9B",500,null,"=Vlookup(\"500\",Translations!F3:H508,1,0)","Summary of the LFA's approach used for verification of financial, programmatic and procurement data and Quality Assurance undertaken by the LFA","Summary of the LFA's approach used for verification of financial, programmatic and procurement data and Quality Assurance undertaken by the LFA","Summary of the LFA's approach used for verification of financial, programmatic and procurement data and Quality Assurance undertaken by the LFA","Summary of the LFA's approach used for verification of financial, programmatic and procurement data and Quality Assurance undertaken by the LFA"]
["LFA Authorisation_9B",501,null,"=Vlookup(\"501\",Translations!F3:H508,1,0)","In this section the LFA should indicate, as applicable, what percentage of expenditures was verified at PR level, if any expenditures were verified at SR level, how many site visits were made, what tender documentation was verified, and any other material parts of verification procedures in line with the verification approach agreed upfront between the LFA and the Global Fund's Secretariat based on country/grant risks.  As a good practice, the verification approach needs to be reviewed jointly by the LFA and the Secretariat annually.","In this section the LFA should indicate, as applicable, what percentage of expenditures was verified at PR level, if any expenditures were verified at SR level, how many site visits were made, what tender documentation was verified, and any other material parts of verification procedures in line with the verification approach agreed upfront between the LFA and the Global Fund's Secretariat based on country/grant risks.  As a good practice, the verification approach needs to be reviewed jointly by the LFA and the Secretariat annually.","In this section the LFA should indicate, as applicable, what percentage of expenditures was verified at PR level, if any expenditures were verified at SR level, how many site visits were made, what tender documentation was verified, and any other material parts of verification procedures in line with the verification approach agreed upfront between the LFA and the Global Fund's Secretariat based on country/grant risks.  As a good practice, the verification approach needs to be reviewed jointly by the LFA and the Secretariat annually.","In this section the LFA should indicate, as applicable, what percentage of expenditures was verified at PR level, if any expenditures were verified at SR level, how many site visits were made, what tender documentation was verified, and any other material parts of verification procedures in line with the verification approach agreed upfront between the LFA and the Global Fund's Secretariat based on country/grant risks.  As a good practice, the verification approach needs to be reviewed jointly by the LFA and the Secretariat annually."]
["LFA Authorisation_9B",502,null,"=Vlookup(\"502\",Translations!F3:H508,1,0)","The LFA should sign a printed version of the verified PU/DR and send it to the Secretariat as a pdf file by email, or include an electronic signature in the Excel file to be submitted to the Global Fund.","The LFA should sign a printed version of the verified PU/DR and send it to the Secretariat as a pdf file by email, or include an electronic signature in the Excel file to be submitted to the Global Fund.","The LFA should sign a printed version of the verified PU/DR and send it to the Secretariat as a pdf file by email, or include an electronic signature in the Excel file to be submitted to the Global Fund.","The LFA should sign a printed version of the verified PU/DR and send it to the Secretariat as a pdf file by email, or include an electronic signature in the Excel file to be submitted to the Global Fund."]
["LFA Authorisation_9B",503,null,"=Vlookup(\"503\",Translations!F3:H508,1,0)","Signed on behalf of the LFA:","Signed on behalf of the LFA:","Signed on behalf of the LFA:","Signed on behalf of the LFA:"]
["LFA Authorisation_9B",504,null,"=Vlookup(\"504\",Translations!F3:H508,1,0)","Name:","Name:","Name:","Name:"]
["LFA Authorisation_9B",505,null,"=Vlookup(\"505\",Translations!F3:H508,1,0)","Title:","Title:","Title:","Title:"]
["LFA Authorisation_9B",506,null,"=Vlookup(\"506\",Translations!F3:H508,1,0)","Title:","Title:","Title:","Title:"]
[null,507,null,{"$f":"\"=Vlookup(\"\"\"&B509&\"\"\",Translations!F3:H508,1,0)\"","v":"=Vlookup(\"507\",Translations!F3:H508,1,0)"},{"$f":"IF(LangOffset=0,F509,IF(LangOffset=1,G509,IF(LangOffset=2,H509)))","v":"État de rapprochement du solde de trésorerie"},"Cash Balance Reconciliation Report","État de rapprochement du solde de trésorerie","Informe de conciliación de saldos de caja"]
[null,508,null,"=Vlookup(\"508\",Translations!F3:H508,1,0)"," Section 1. Rapprochement par le récipiendaire principal du solde de trésorerie final dans la monnaie de la subvention"," Section 1. Principal Recipient Reconciliation of Final Cash Balance in Grant Currency"," Section 1. Rapprochement par le récipiendaire principal du solde de trésorerie final dans la monnaie de la subvention","Sección 1. Conciliación del saldos de caja finales en la moneda de la subvención."]
[null,509,null,"=Vlookup(\"509\",Translations!F3:H508,1,0)","PÉRIODE DE COMMUNICATION DE L’INFORMATION FINANCIÈRE","REPORTING PERIOD FOR FINANCIAL REPORTING","PÉRIODE DE COMMUNICATION DE L’INFORMATION FINANCIÈRE","PERIODO DE PRESENTACIÓN DE INFORMES FINANCIEROS"]
[null,510,null,"=Vlookup(\"510\",Translations!F3:H508,1,0)","Période de communication de l’information financière","Period of Financial Reporting","Période de communication de l’information financière","Periodo de presentación de informes financieros"]
[null,511,null,"=Vlookup(\"511\",Translations!F3:H508,1,0)","Date de début :","Beginning Date:","Date de début :","Fecha de inicio:"]
[null,512,null,"=Vlookup(\"512\",Translations!F3:H508,1,0)","Date de fin :","End Date:","Date de fin :","Fecha de finalización:"]
[null,513,null,"=Vlookup(\"513\",Translations!F3:H508,1,0)","Récipiendaire principal","Principal Recipient","Récipiendaire principal","Receptor Principal"]
[null,514,null,"=Vlookup(\"514\",Translations!F3:H508,1,0)","Réservé à l’agent local du Fonds ","For LFA Use Only ","Réservé à l’agent local du Fonds ","Solo para uso del ALF"]
[null,515,null,"=Vlookup(\"515\",Translations!F3:H508,1,0)","Réservé au Fonds mondial","For the Global Fund Use Only","Réservé au Fonds mondial","Solo para uso del Fondo Mundial"]
[null,516,null,"=Vlookup(\"516\",Translations!F3:H508,1,0)","Période visée par le rapport","Current Reporting Period","Période visée par le rapport","Periodo actual de presentación de informes"]
[null,517,null,"=Vlookup(\"517\",Translations!F3:H508,1,0)","Commentaires","Comments","Commentaires","Comentarios"]
[null,518,null,"=Vlookup(\"518\",Translations!F3:H508,1,0)","Ajustements par l’agent local du Fonds pour la période visée par le rapport","LFA Adjustments on Current Reporting Period","Ajustements par l’agent local du Fonds pour la période visée par le rapport","Ajustes del ALF para el periodo actual de presentación de informes"]
[null,519,null,"=Vlookup(\"519\",Translations!F3:H508,1,0)","Vérifié par l’agent local du Fonds","As verified by LFA","Vérifié par l’agent local du Fonds","Verificado por el ALF"]
[null,520,null,"=Vlookup(\"520\",Translations!F3:H508,1,0)","Commentaires","Comments","Commentaires","Comentarios"]
[null,521,null,"=Vlookup(\"521\",Translations!F3:H508,1,0)","Ajustements par l’équipe de pays","CT Adjustments","Ajustements par l’équipe de pays","Ajustes del equipo de país"]
[null,522,null,"=Vlookup(\"522\",Translations!F3:H508,1,0)","Chiffres validés par le Fonds mondial","The Global Fund Validated Figures","Chiffres validés par le Fonds mondial","Cifras validadas por el Fondo Mundial"]
[null,523,null,"=Vlookup(\"523\",Translations!F3:H508,1,0)","Commentaires","Comments","Commentaires","Comentarios"]
[null,524,null,"=Vlookup(\"524\",Translations!F3:H508,1,0)","Total du solde de trésorerie figurant dans le dernier rapport sur les résultats actuels","Total Cash Balance  as reported in the last Progress Update","Total du solde de trésorerie figurant dans le dernier rapport sur les résultats actuels","Saldos de caja totales según la última actualización de avances a la fecha"]
[null,525,null,"=Vlookup(\"525\",Translations!F3:H508,1,0)","2. Recettes de la subvention","2. Grant Income","2. Recettes de la subvention","2. Ingresos de la subvención"]
[null,526,null,"=Vlookup(\"526\",Translations!F3:H508,1,0)","Décaissement au récipiendaire principal","Disbursement made to the Principal Recipient","Décaissement au récipiendaire principal","Desembolsos destinados al Receptor Principal"]
[null,527,null,"=Vlookup(\"527\",Translations!F3:H508,1,0)","Décaissements à des tiers par le Fonds mondial au nom du récipiendaire principal","Disbursement to third parties by the Global Fund on behalf of the Principal Recipient","Décaissements à des tiers par le Fonds mondial au nom du récipiendaire principal","Desembolsos a terceros realizados por el Fondo Mundial en nombre del Receptor Principal"]
[null,528,null,"=Vlookup(\"528\",Translations!F3:H508,1,0)","Autres recettes, le cas échéant (par ex. remboursements de TVA/d’autres impôts, produit de la cession d’actifs, etc.)","Other income, if applicable (e.g. VAT/Other Tax returns, income from disposal of assets etc.)","Autres recettes, le cas échéant (par ex. remboursements de TVA/d’autres impôts, produit de la cession d’actifs, etc.)","Otros ingresos, si corresponde (por ejemplo, devoluciones tributarias de IVA o de otros impuestos, ingresos derivados de la enajenación de activos, etc.)"]
[null,529,null,{"$f":"\"=Vlookup(\"\"\"&B531&\"\"\",Translations!F3:H508,1,0)\"","v":"=Vlookup(\"529\",Translations!F3:H508,1,0)"},{"$f":"IF(LangOffset=0,F531,IF(LangOffset=1,G531,IF(LangOffset=2,H531)))","v":"Rapport sur les dépenses de clôture"},"Closure Expenditure Report","Rapport sur les dépenses de clôture","Informe de cierre sobre gastos"]
[null,530,null,"=Vlookup(\"530\",Translations!F3:H508,1,0)","Section 3A. Rapport sur les dépenses du récipiendaire principal rempli par ce dernier","Section 3A.The Principal Recipient Expenditure Report Completed by the Principal Recipient","Section 3A. Rapport sur les dépenses du récipiendaire principal rempli par ce dernier","Sección 3A. El informe sobre gastos del Receptor Principal elaborado por el Receptor Principal"]
[null,531,null,"=Vlookup(\"531\",Translations!F3:H508,1,0)","Période couverte par le rapport sur les information financière","Period of Financial Reporting","Période couverte par le rapport sur les information financière","Periodo de avances financieros"]
[null,532,null,"=Vlookup(\"532\",Translations!F3:H508,1,0)","Date de début :","Beginning Date:","Date de début :","Fecha de inicio:"]
[null,533,null,"=Vlookup(\"533\",Translations!F3:H508,1,0)","Date de fin :","End Date:","Date de fin :","Fecha de finalización:"]
[null,534,null,"=Vlookup(\"534\",Translations!F3:H508,1,0)","Période cumulative de rapport sur les dépenses","Cumulative Period of Expenditure Reporting","Période cumulative de rapport sur les dépenses","Período acumulativo de presentación de informes sobre gastos"]
[null,535,null,"=Vlookup(\"535\",Translations!F3:H508,1,0)","Date de début :","Beginning Date:","Date de début :","Fecha de inicio:"]
[null,536,null,"=Vlookup(\"536\",Translations!F3:H508,1,0)","Date de fin :","End Date:","Date de fin :","Fecha de finalización:"]
[null,537,null,"=Vlookup(\"537\",Translations!F3:H508,1,0)","B. VENTILATION PAR GROUPES DE COÛTS","A. BREAKDOWN BY COST GROUPING","B. VENTILATION PAR GROUPES DE COÛTS","DESGLOSE POR AGRUPACIÓN DE COSTOS"]
[null,538,null,"=Vlookup(\"538\",Translations!F3:H508,1,0)","Période de rapport en cours","Current Reporting Period","Période de rapport en cours","Periodo de notificación en curso"]
[null,539,null,"=Vlookup(\"539\",Translations!F3:H508,1,0)","Données cumulées pour la période de mise en œuvre","Cumulative for the Implementation Period","Données cumulées pour la période de mise en œuvre","Acumulativo para el periodo de ejecución"]
[null,540,null,"=Vlookup(\"540\",Translations!F3:H508,1,0)","'Évaluation des coûts (groupes de coûts)","Costing Dimension (Cost Grouping)","'Évaluation des coûts (groupes de coûts)","Dimensión de cálculo de costos (grupos de costos)"]
[null,541,null,"=Vlookup(\"541\",Translations!F3:H508,1,0)","Budget pour la période de rapport","Budget for Reporting Period","Budget pour la période de rapport","Presupuesto para el periodo que abarca el informe"]
[null,542,null,"=Vlookup(\"542\",Translations!F3:H508,1,0)","Dépenses réelles","Actual Expenditure","Dépenses réelles","Gastos reales"]
[null,543,null,"=Vlookup(\"543\",Translations!F3:H508,1,0)","Écarts budget - dépenses réelles","Budget Vs Actual Variances","Écarts budget - dépenses réelles","Presupuesto frente a variaciones reales"]
[null,544,null,"=Vlookup(\"544\",Translations!F3:H508,1,0)","Taux d’absorption","Absorption Rate","Taux d’absorption","Índice de absorción"]
[null,545,null,"=Vlookup(\"545\",Translations!F3:H508,1,0)","Explication des écarts (obligatoire si les dépenses sont inférieures ou supérieures au budget de plus de 5 %)","Explanation of Variances (mandatory for all percentages below 95% & above 105%)","Explication des écarts (obligatoire si les dépenses sont inférieures ou supérieures au budget de plus de 5 %)","Explicación de las variaciones (obligatorio para los porcentajes por debajo del 95% y por encima del 105%)"]
[null,546,null,"=Vlookup(\"546\",Translations!F3:H508,1,0)","Budget cumulé","Cumulative Budget","Budget cumulé","Presupuesto acumulativo"]
[null,547,null,"=Vlookup(\"547\",Translations!F3:H508,1,0)","Dépenses réelles cumulées","Cumulative Actual Expenditure","Dépenses réelles cumulées","Gasto real acumulativo"]
[null,548,null,"=Vlookup(\"548\",Translations!F3:H508,1,0)","Écarts budget cumulé - dép. réelles cumulées","Cumulative Budget Vs Actuals Variances","Écarts budget cumulé - dép. réelles cumulées","Presupuesto acumulativo frente a variaciones reales"]
[null,549,null,"=Vlookup(\"549\",Translations!F3:H508,1,0)","Taux d’absorption","Absorption Rate","Taux d’absorption","Índice de absorción"]
[null,550,null,"=Vlookup(\"550\",Translations!F3:H508,1,0)","Total Général","Grand Total","Total Général","Total General"]
[null,551,null,null,"Recettes totales de la subvention","Total Grant Income","Recettes totales de la subvention","Ingresos totales de la subvención"]
[null,552,null,null,"3. Engagements financiers","3. Financial Commitments","3. Engagements financiers","3. Compromisos financieros"]
[null,553,null,null,"Engagements financiers figurant dans le dernier rapport sur les résultats actuels","Financial Commitments as reported in the last Progress Update","Engagements financiers figurant dans le dernier rapport sur les résultats actuels","Compromisos financieros según la última actualización de avances a la fecha"]
[null,554,null,null,"Ajustements aux engagements financiers","Adjustments to the Financial Commitments","Ajustements aux engagements financiers","Ajustes de los compromisos financieros"]
[null,555,null,null,"Total des engagements financiers","Total Financial Commitments","Total des engagements financiers","Compromisos financieros totales"]
[null,556,null,null,"4. Sorties de fonds de la subvention","4. Grant Cash Outflows","4. Sorties de fonds de la subvention","4. Salida de efectivo de la subvención"]
[null,557,null,null,"Dépenses du récipiendaire principal et des sous-récipiendaires (y compris les paiements effectués au regard des engagements financiers)","Principal Recipient and Sub-Recipient Expenditure (including payments made against the prior implementation period Financial Commitments)","Dépenses du récipiendaire principal et des sous-récipiendaires (y compris les paiements effectués au regard des engagements financiers)","Gastos del Receptor Principal y del Subreceptor (que incluyen pagos realizados contra los compromisos financieros)"]
[null,558,null,null,"Sorties de fonds totales de la subvention","Total Grant Cash Outflows","Sorties de fonds totales de la subvention","Salidas totales de efectivo de la subvención"]
[null,559,null,null,"5. Ajustements de rapprochement","5. Reconciling Adjustments","5. Ajustements de rapprochement","5. Ajustes de conciliación"]
[null,560,null,null,"Autres ajustements de rapprochement (y compris pour les périodes précédentes)","Other reconciliation adjustments (including for prior periods)","Autres ajustements de rapprochement (y compris pour les périodes précédentes)","Otros ajustes de conciliación (incluidos periodos anteriores"]
[null,561,null,null,"Transactions non recevables de périodes précédentes dont la justification a été approuvée par le Fonds mondial","Ineligible transactions from previous periods for which justification was approved by the Global Fund","Transactions non recevables de périodes précédentes dont la justification a été approuvée par le Fonds mondial","Transacciones no elegibles de periodos anteriores cuya justificación ha sido aprobada por el Fondo Mundial"]
[null,562,null,null,"Remboursement de transactions non recevables des périodes précédentes","Reimbursement of ineligible transaction from previous periods","Remboursement de transactions non recevables des périodes précédentes","Reembolso de transacciones no elegibles de periodos anteriores"]
[null,563,null,null,"6. Solde de trésorerie","6. Cash Balance","6. Solde de trésorerie","6. Saldo de caja"]
[null,564,null,null,"Total du solde de trésorerie pour la période de mise en œuvre","Total Cash Balance from the implementation period","Total du solde de trésorerie pour la période de mise en œuvre","Salto de caja total del periodo de ejecución"]
[null,565,null,null,"Paiement anticipé pour la prochaine période de mise en œuvre","Advance payment made for the next implementation period","Paiement anticipé pour la prochaine période de mise en œuvre","Pago anticipado para el siguiente periodo de ejecución"]
[null,566,null,null,"Solde final de trésorerie à la clôture de la période de mise en œuvre","Final Closing Cash Balance of the implementation period","Solde final de trésorerie à la clôture de la période de mise en œuvre","Saldo de caja de cierre final del periodo de ejecución"]
[null,567,null,null,"Transactions non recevables du récipiendaire principal dans la monnaie de la subvention ","Principal Recipient Ineligible Transactions in Grant Currency ","Transactions non recevables du récipiendaire principal dans la monnaie de la subvention ","Transacciones no elegibles del Receptor Principal en la moneda de la subvención"]
[null,568,null,null,"Récipiendaire principal","Principal Recipient","Récipiendaire principal","Receptor Principal"]
[null,569,null,null,"Réservé à l’agent local du Fonds ","For LFA Use Only ","Réservé à l’agent local du Fonds ","Solo para uso del ALF"]
[null,570,null,null,"Réservé au Fonds mondial","For the Global Fund Use Only","Réservé au Fonds mondial","Solo para uso del Fondo Mundial"]
[null,571,null,null,"Montant cumulé pour les périodes précédentes","Cumulative for Previous Periods","Montant cumulé pour les périodes précédentes","Acumulativo para periodos previos"]
[null,572,null,null,"Période visée par le rapport","Current Reporting Period","Période visée par le rapport","Periodo actual de presentación de informes"]
[null,573,null,null,"Commentaires","Comments","Commentaires","Comentarios"]
[null,574,null,null,"Montant cumulé pour les périodes précédentes validé par le Fonds mondial","Cumulative for Previous Periods as validated by Global Fund","Montant cumulé pour les périodes précédentes validé par le Fonds mondial","Acumulativo para periodos previos validado por el Fondo Mundial"]
[null,575,null,null,"Ajustements par l’agent local du Fonds pour la période visée par le rapport","LFA Adjustments on Current Reporting Period","Ajustements par l’agent local du Fonds pour la période visée par le rapport","Ajustes realizados por el ALF del periodo actual de presentación de informes"]
[null,576,null,null,"Vérifié par l’agent local du Fonds","As verified by LFA","Vérifié par l’agent local du Fonds","Verificado por el ALF"]
[null,577,null,null,"Commentaires","Comments","Commentaires","Comentarios"]
[null,578,null,null,"Ajustements par l’équipe de pays","CT Adjustments","Ajustements par l’équipe de pays","Ajustes del equipo de país"]
[null,579,null,null,"Chiffres validés par le Fonds mondial","The Global Fund Validated Figures","Chiffres validés par le Fonds mondial","Cifras validadas por el Fondo Mundial"]
[null,580,null,null,"Commentaires","Comments","Commentaires","Comentarios"]
[null,581,null,null,"Transactions non recevables validées pour la période de rapport","Ineligible transactions validated for the reporting period","Transactions non recevables validées pour la période de rapport","Transacciones no elegibles validadas para el periodo del informe"]
[null,582,null,null,"Transactions non recevables des périodes précédentes dont la justification a été approuvée par le Fonds mondial","Ineligible transactions from previous periods for which justification was approved by the Global Fund","Transactions non recevables des périodes précédentes dont la justification a été approuvée par le Fonds mondial","Transacciones no elegibles de periodos anteriores cuya justificación ha sido aprobada por el Fondo Mundial"]
[null,583,null,null,"Remboursement de transactions non recevables des périodes précédentes","Reimbursement of ineligible transactions from previous periods","Remboursement de transactions non recevables des périodes précédentes","Reembolso de transacciones no elegibles de periodos anteriores"]
[null,584,null,null,"Transactions non recevables cumulées pour la période de mise en œuvre","Cumulative ineligible transactions for the implementation period","Transactions non recevables cumulées pour la période de mise en œuvre","Transacciones no elegibles acumulativas del periodo de ejecución"]
[null,585,null,null,"Transactions non recevables ouvertes à justifier et/ou rembourser","Open ineligible transactions to be justified and/or reimbursed","Transactions non recevables ouvertes à justifier et/ou rembourser","Transacciones no elegibles pendientes de justificar y/o reembolsar"]

{"sheet":"Impact Outcome Indicators_1A","index":5,"n_rows":80,"n_cols":31,"rows_kept":80,"cut":false,"hidden":false,"merged":[[8,17,9,17],[8,25,9,25],[8,29,9,29],[8,26,8,28],[4,1,4,24],[8,3,8,4],[8,5,8,7],[8,8,9,8],[8,9,9,9],[8,11,8,13],[8,14,9,14],[8,15,9,15],[8,16,9,16],[8,10,9,10],[8,2,9,2],[8,1,9,1],[8,30,9,30],[8,18,9,18],[8,19,8,21],[8,22,9,22],[8,23,9,23],[8,24,9,24]]}
[null,{"$f":"VLOOKUP(Translations!B30,Translations!B3:H508,4,0)","v":"Rapport périodique sur les résultats actuels et demande de décaissement"}]
[]
[null,{"$f":"VLOOKUP(Translations!B31,Translations!B3:H508,4,0)","v":"Section 1 : Information programmatique"}]
[]
[null,"Guidance: The table contains those Impact/Outcome indicators that are:\n1. Included in the Grant Confirmation/Agreement through the latest signed Performance Framework\n2. Are due for reporting in the current reporting period; and\n3. Were due for reporting in previous periods but were never reported on\n4. Data validation checks are being performed on entered data in the columns. Any issues identified that are not resolved should be explained"]
[]
[null,{"$f":"VLOOKUP(Translations!B33,Translations!B3:H508,4,0)","v":"A- Impact/Outcome Indicators"}]
[]
["Mapping",{"$f":"VLOOKUP(Translations!B34,Translations!B3:H508,4,0)","v":"Impact / Effet "},{"$f":"VLOOKUP(Translations!B35,Translations!B3:H508,4,0)","v":"Indicateurs"},{"$f":"VLOOKUP(Translations!B37,Translations!B3:H508,4,0)","v":"Référence \n(le cas échéant)"},null,{"$f":"VLOOKUP(Translations!B40,Translations!B3:H508,4,0)","v":"Cible"},null,null,{"$f":"VLOOKUP(Translations!B44,Translations!B3:H508,4,0)","v":"Year of Target"},{"$f":"VLOOKUP(Translations!B45,Translations!B3:H508,4,0)","v":"Échéance de rapport"},"Geography",{"$f":"VLOOKUP(Translations!B46,Translations!B3:H508,4,0)","v":"Résultat"},null,null,{"$f":"VLOOKUP(Translations!B50,Translations!B3:H508,4,0)","v":"Année du résultat"},{"$f":"VLOOKUP(Translations!B51,Translations!B3:H508,4,0)","v":"Source de données des résultats"},{"$f":"VLOOKUP(Translations!B52,Translations!B3:H508,4,0)","v":"Commentaires sur les résultats concernant les indicateurs d'impact/d'effet et les sources de données, ainsi que tout autre commentaire"},"Data validation checks on PR data",{"$f":"VLOOKUP(Translations!B53,Translations!B3:H508,4,0)","v":"Verification Method"},{"$f":"VLOOKUP(Translations!B54,Translations!B3:H508,4,0)","v":"Verified Result"},null,null,{"$f":"VLOOKUP(Translations!B58,Translations!B3:H508,4,0)","v":"Year of Result"},{"$f":"VLOOKUP(Translations!B59,Translations!B3:H508,4,0)","v":"Source"},{"$f":"VLOOKUP(Translations!B60,Translations!B3:H508,4,0)","v":"LFA comments on (a) verified result, (b) source of information used by the PR to report results, including the status of completion of surveys and other methods to measure Impact/Outcome, as applicable,  "},"Data Validation checks on LFA data","Global Fund Validated Result",null,null,"Global Fund comments","Data validation checks on GF data"]
[null,null,null,{"$f":"VLOOKUP(Translations!B38,Translations!B3:H508,4,0)","v":"Valeur"},{"$f":"VLOOKUP(Translations!B38,Translations!B3:H508,4,0)","v":"Valeur"},{"$f":"VLOOKUP(Translations!B41,Translations!B3:H508,4,0)","v":"N#"},"D#","%",null,null,null,"N#","D#","%",null,null,null,null,null,"N#","D#","%",null,null,null,null,"N#","D#","%"]
[{"$f":"IFERROR(IF(INDEX(Impactlist,MATCH(0,INDEX(COUNTIF(A$10:A10,Impactlist),0,0),0))<>\"\",INDEX(Impactlist,MATCH(0,INDEX(COUNTIF(A$10:A10,Impactlist),0,0),0)),INDEX(Outcomelist,MATCH(0,INDEX(COUNTIF(A$10:A10,Outcomelist),0,0),0))),\"\")","v":0},{"$f":"IFERROR(INDEX('ImpactOutcome_Import-Export'!D$7:D$200,MATCH($A11,'ImpactOutcome_Import-Export'!$B$7:$B$200,0)),\"\")","v":""},{"$f":"IF(B11=\"\",\"\",IFERROR(INDEX('ImpactOutcome_Import-Export'!F$7:F$13,MATCH($A11,'ImpactOutcome_Import-Export'!$B$7:$B$13,0)),\"\"))","v":""},{"$f":"IF(B11=\"\",\"\",IFERROR(IF(INDEX('ImpactOutcome_Import-Export'!K$7:K$13,MATCH($A11,'ImpactOutcome_Import-Export'!$B$7:$B$13,0))=\"\",\"\",INDEX('ImpactOutcome_Import-Export'!K$7:K$13,MATCH($A11,'ImpactOutcome_Import-Export'!$B$7:$B$13,0))),\"\"))","v":""},{"$f":"IF(B11=\"\",\"\",IFERROR(IF(INDEX('ImpactOutcome_Import-Export'!L$7:L$13,MATCH($A11,'ImpactOutcome_Import-Export'!$B$7:$B$13,0))=\"\",\"\",INDEX('ImpactOutcome_Import-Export'!L$7:L$13,MATCH($A11,'ImpactOutcome_Import-Export'!$B$7:$B$13,0))),\"\"))","v":""},{"$f":"IF(B11=\"\",\"\",IFERROR(IF(INDEX('ImpactOutcome_Import-Export'!M$7:M$13,MATCH($A11,'ImpactOutcome_Import-Export'!$B$7:$B$13,0))=\"\",\"\",INDEX('ImpactOutcome_Import-Export'!M$7:M$13,MATCH($A11,'ImpactOutcome_Import-Export'!$B$7:$B$13,0))),\"\"))","v":""},{"$f":"IF(B11=\"\",\"\",IFERROR(IF(INDEX('ImpactOutcome_Import-Export'!N$7:N$13,MATCH($A11,'ImpactOutcome_Import-Export'!$B$7:$B$13,0))=\"\",\"\",INDEX('ImpactOutcome_Import-Export'!N$7:N$13,MATCH($A11,'ImpactOutcome_Import-Export'!$B$7:$B$13,0))),\"\"))","v":""},{"$f":"IF(B11=\"\",\"\",IFERROR(IF(INDEX('ImpactOutcome_Import-Export'!O$7:O$13,MATCH($A11,'ImpactOutcome_Import-Export'!$B$7:$B$13,0))=\"\",\"\",INDEX('ImpactOutcome_Import-Export'!O$7:O$13,MATCH($A11,'ImpactOutcome_Import-Export'!$B$7:$B$13,0))),\"\"))","v":""},{"$f":"IF(B11=\"\",\"\",IFERROR(IF(INDEX('ImpactOutcome_Import-Export'!P$7:P$13,MATCH($A11,'ImpactOutcome_Import-Export'!$B$7:$B$13,0))=\"\",\"\",INDEX('ImpactOutcome_Import-Export'!P$7:P$13,MATCH($A11,'ImpactOutcome_Import-Export'!$B$7:$B$13,0))),\"\"))","v":""},{"$f":"IF(B11=\"\",\"\",IFERROR(IF(INDEX('ImpactOutcome_Import-Export'!Q$7:Q$13,MATCH($A11,'ImpactOutcome_Import-Export'!$B$7:$B$13,0))=\"\",\"\",INDEX('ImpactOutcome_Import-Export'!Q$7:Q$13,MATCH($A11,'ImpactOutcome_Import-Export'!$B$7:$B$13,0))),\"\"))","v":""},{"$f":"IF(B11=\"\",\"\",IFERROR(IF(INDEX('ImpactOutcome_Import-Export'!R$7:R$13,MATCH($A11,'ImpactOutcome_Import-Export'!$B$7:$B$13,0))=\"\",\"\",INDEX('ImpactOutcome_Import-Export'!R$7:R$13,MATCH($A11,'ImpactOutcome_Import-Export'!$B$7:$B$13,0))),\"\"))","v":""},null,null,{"$f":"IFERROR((L11/M11)*100,\"\")","v":""},null,null,null,{"$f":"IF(AND(F11=\"\",G11=\"\",H11=\"\"),\"\",IF(AND(L11=\"\",M11=\"\",N11=\"\"),\"No Results Reported\",IF(AND(F11<>\"\",G11=\"\",H11=\"\",OR(M11<>\"\",N11<>\"\")),\"Target contains only a numerator. Please Report only a numerator for the result\",\"Continue\")))","v":""},null,null,null,{"$f":"IFERROR((T11/U11)*100,\"\")","v":""},null,null,null,{"$f":"IF(AND(L11=\"\",M11=\"\",N11=\"\"),\"\",IF(AND(T11=\"\",U11=\"\",V11=\"\"),\"No Results Reported\",IF(AND(L11<>\"\",M11=\"\",N11=\"\",OR(U11<>\"\",V11<>\"\")),\"Target contains only a numerator. Please Report only a numerator for the result\",\"Continue\")))","v":""},null,null,{"$f":"IFERROR((AA11/AB11)*100,\"\")","v":""},null,{"$f":"IF(AND(F11=\"\",G11=\"\",H11=\"\"),\"\",IF(AND(AA11=\"\",AB11=\"\",AC11=\"\"),\"No Results Reported\",IF(AND(F11<>\"\",G11=\"\",H11=\"\",OR(AB11<>\"\",AC11<>\"\")),\"Target contains only a numerator. Please Report only a numerator for the result\",\"Continue\")))","v":""}]
[{"$f":"IFERROR(IF(INDEX(Impactlist,MATCH(0,INDEX(COUNTIF(A$10:A11,Impactlist),0,0),0))<>\"\",INDEX(Impactlist,MATCH(0,INDEX(COUNTIF(A$10:A11,Impactlist),0,0),0)),INDEX(Outcomelist,MATCH(0,INDEX(COUNTIF(A$10:A11,Outcomelist),0,0),0))),\"\")","v":""},{"$f":"IFERROR(INDEX('ImpactOutcome_Import-Export'!D$7:D$200,MATCH($A12,'ImpactOutcome_Import-Export'!$B$7:$B$200,0)),\"\")","v":""},{"$f":"IF(B12=\"\",\"\",IFERROR(INDEX('ImpactOutcome_Import-Export'!F$7:F$13,MATCH($A12,'ImpactOutcome_Import-Export'!$B$7:$B$13,0)),\"\"))","v":""},{"$f":"IF(B12=\"\",\"\",IFERROR(IF(INDEX('ImpactOutcome_Import-Export'!K$7:K$13,MATCH($A12,'ImpactOutcome_Import-Export'!$B$7:$B$13,0))=\"\",\"\",INDEX('ImpactOutcome_Import-Export'!K$7:K$13,MATCH($A12,'ImpactOutcome_Import-Export'!$B$7:$B$13,0))),\"\"))","v":""},{"$f":"IF(B12=\"\",\"\",IFERROR(IF(INDEX('ImpactOutcome_Import-Export'!L$7:L$13,MATCH($A12,'ImpactOutcome_Import-Export'!$B$7:$B$13,0))=\"\",\"\",INDEX('ImpactOutcome_Import-Export'!L$7:L$13,MATCH($A12,'ImpactOutcome_Import-Export'!$B$7:$B$13,0))),\"\"))","v":""},{"$f":"IF(B12=\"\",\"\",IFERROR(IF(INDEX('ImpactOutcome_Import-Export'!M$7:M$13,MATCH($A12,'ImpactOutcome_Import-Export'!$B$7:$B$13,0))=\"\",\"\",INDEX('ImpactOutcome_Import-Export'!M$7:M$13,MATCH($A12,'ImpactOutcome_Import-Export'!$B$7:$B$13,0))),\"\"))","v":""},{"$f":"IF(B12=\"\",\"\",IFERROR(IF(INDEX('ImpactOutcome_Import-Export'!N$7:N$13,MATCH($A12,'ImpactOutcome_Import-Export'!$B$7:$B$13,0))=\"\",\"\",INDEX('ImpactOutcome_Import-Export'!N$7:N$13,MATCH($A12,'ImpactOutcome_Import-Export'!$B$7:$B$13,0))),\"\"))","v":""},{"$f":"IF(B12=\"\",\"\",IFERROR(IF(INDEX('ImpactOutcome_Import-Export'!O$7:O$13,MATCH($A12,'ImpactOutcome_Import-Export'!$B$7:$B$13,0))=\"\",\"\",INDEX('ImpactOutcome_Import-Export'!O$7:O$13,MATCH($A12,'ImpactOutcome_Import-Export'!$B$7:$B$13,0))),\"\"))","v":""},{"$f":"IF(B12=\"\",\"\",IFERROR(IF(INDEX('ImpactOutcome_Import-Export'!P$7:P$13,MATCH($A12,'ImpactOutcome_Import-Export'!$B$7:$B$13,0))=\"\",\"\",INDEX('ImpactOutcome_Import-Export'!P$7:P$13,MATCH($A12,'ImpactOutcome_Import-Export'!$B$7:$B$13,0))),\"\"))","v":""},{"$f":"IF(B12=\"\",\"\",IFERROR(IF(INDEX('ImpactOutcome_Import-Export'!Q$7:Q$13,MATCH($A12,'ImpactOutcome_Import-Export'!$B$7:$B$13,0))=\"\",\"\",INDEX('ImpactOutcome_Import-Export'!Q$7:Q$13,MATCH($A12,'ImpactOutcome_Import-Export'!$B$7:$B$13,0))),\"\"))","v":""},{"$f":"IF(B12=\"\",\"\",IFERROR(IF(INDEX('ImpactOutcome_Import-Export'!R$7:R$13,MATCH($A12,'ImpactOutcome_Import-Export'!$B$7:$B$13,0))=\"\",\"\",INDEX('ImpactOutcome_Import-Export'!R$7:R$13,MATCH($A12,'ImpactOutcome_Import-Export'!$B$7:$B$13,0))),\"\"))","v":""},null,null,{"$f":"IFERROR((L12/M12)*100,\"\")","v":""},null,null,null,"",null,null,null,{"$f":"IFERROR((T12/U12)*100,\"\")","v":""},null,null,null,{"$f":"IF(AND(L12=\"\",M12=\"\",N12=\"\"),\"\",IF(AND(T12=\"\",U12=\"\",V12=\"\"),\"No Results Reported\",IF(AND(L12<>\"\",M12=\"\",N12=\"\",OR(U12<>\"\",V12<>\"\")),\"Target contains only a numerator. Please Report only a numerator for the result\",\"Continue\")))","v":""},null,null,{"$f":"IFERROR((AA12/AB12)*100,\"\")","v":""},null,{"$f":"IF(AND(F12=\"\",G12=\"\",H12=\"\"),\"\",IF(AND(AA12=\"\",AB12=\"\",AC12=\"\"),\"No Results Reported\",IF(AND(F12<>\"\",G12=\"\",H12=\"\",OR(AB12<>\"\",AC12<>\"\")),\"Target contains only a numerator. Please Report only a numerator for the result\",\"Continue\")))","v":""}]
[{"$f":"IFERROR(IF(INDEX(Impactlist,MATCH(0,INDEX(COUNTIF(A$10:A12,Impactlist),0,0),0))<>\"\",INDEX(Impactlist,MATCH(0,INDEX(COUNTIF(A$10:A12,Impactlist),0,0),0)),INDEX(Outcomelist,MATCH(0,INDEX(COUNTIF(A$10:A12,Outcomelist),0,0),0))),\"\")","v":""},{"$f":"IFERROR(INDEX('ImpactOutcome_Import-Export'!D$7:D$200,MATCH($A13,'ImpactOutcome_Import-Export'!$B$7:$B$200,0)),\"\")","v":""},{"$f":"IF(B13=\"\",\"\",IFERROR(INDEX('ImpactOutcome_Import-Export'!F$7:F$13,MATCH($A13,'ImpactOutcome_Import-Export'!$B$7:$B$13,0)),\"\"))","v":""},{"$f":"IF(B13=\"\",\"\",IFERROR(IF(INDEX('ImpactOutcome_Import-Export'!K$7:K$13,MATCH($A13,'ImpactOutcome_Import-Export'!$B$7:$B$13,0))=\"\",\"\",INDEX('ImpactOutcome_Import-Export'!K$7:K$13,MATCH($A13,'ImpactOutcome_Import-Export'!$B$7:$B$13,0))),\"\"))","v":""},{"$f":"IF(B13=\"\",\"\",IFERROR(IF(INDEX('ImpactOutcome_Import-Export'!L$7:L$13,MATCH($A13,'ImpactOutcome_Import-Export'!$B$7:$B$13,0))=\"\",\"\",INDEX('ImpactOutcome_Import-Export'!L$7:L$13,MATCH($A13,'ImpactOutcome_Import-Export'!$B$7:$B$13,0))),\"\"))","v":""},{"$f":"IF(B13=\"\",\"\",IFERROR(IF(INDEX('ImpactOutcome_Import-Export'!M$7:M$13,MATCH($A13,'ImpactOutcome_Import-Export'!$B$7:$B$13,0))=\"\",\"\",INDEX('ImpactOutcome_Import-Export'!M$7:M$13,MATCH($A13,'ImpactOutcome_Import-Export'!$B$7:$B$13,0))),\"\"))","v":""},{"$f":"IF(B13=\"\",\"\",IFERROR(IF(INDEX('ImpactOutcome_Import-Export'!N$7:N$13,MATCH($A13,'ImpactOutcome_Import-Export'!$B$7:$B$13,0))=\"\",\"\",INDEX('ImpactOutcome_Import-Export'!N$7:N$13,MATCH($A13,'ImpactOutcome_Import-Export'!$B$7:$B$13,0))),\"\"))","v":""},{"$f":"IF(B13=\"\",\"\",IFERROR(IF(INDEX('ImpactOutcome_Import-Export'!O$7:O$13,MATCH($A13,'ImpactOutcome_Import-Export'!$B$7:$B$13,0))=\"\",\"\",INDEX('ImpactOutcome_Import-Export'!O$7:O$13,MATCH($A13,'ImpactOutcome_Import-Export'!$B$7:$B$13,0))),\"\"))","v":""},{"$f":"IF(B13=\"\",\"\",IFERROR(IF(INDEX('ImpactOutcome_Import-Export'!P$7:P$13,MATCH($A13,'ImpactOutcome_Import-Export'!$B$7:$B$13,0))=\"\",\"\",INDEX('ImpactOutcome_Import-Export'!P$7:P$13,MATCH($A13,'ImpactOutcome_Import-Export'!$B$7:$B$13,0))),\"\"))","v":""},{"$f":"IF(B13=\"\",\"\",IFERROR(IF(INDEX('ImpactOutcome_Import-Export'!Q$7:Q$13,MATCH($A13,'ImpactOutcome_Import-Export'!$B$7:$B$13,0))=\"\",\"\",INDEX('ImpactOutcome_Import-Export'!Q$7:Q$13,MATCH($A13,'ImpactOutcome_Import-Export'!$B$7:$B$13,0))),\"\"))","v":""},{"$f":"IF(B13=\"\",\"\",IFERROR(IF(INDEX('ImpactOutcome_Import-Export'!R$7:R$13,MATCH($A13,'ImpactOutcome_Import-Export'!$B$7:$B$13,0))=\"\",\"\",INDEX('ImpactOutcome_Import-Export'!R$7:R$13,MATCH($A13,'ImpactOutcome_Import-Export'!$B$7:$B$13,0))),\"\"))","v":""},null,null,"",null,null,null,"",null,null,null,"",null,null,null,"",null,null,"",null,""]
[{"$f":"IFERROR(IF(INDEX(Impactlist,MATCH(0,INDEX(COUNTIF(A$10:A13,Impactlist),0,0),0))<>\"\",INDEX(Impactlist,MATCH(0,INDEX(COUNTIF(A$10:A13,Impactlist),0,0),0)),INDEX(Outcomelist,MATCH(0,INDEX(COUNTIF(A$10:A13,Outcomelist),0,0),0))),\"\")","v":""},{"$f":"IFERROR(INDEX('ImpactOutcome_Import-Export'!D$7:D$200,MATCH($A14,'ImpactOutcome_Import-Export'!$B$7:$B$200,0)),\"\")","v":""},{"$f":"IF(B14=\"\",\"\",IFERROR(INDEX('ImpactOutcome_Import-Export'!F$7:F$13,MATCH($A14,'ImpactOutcome_Import-Export'!$B$7:$B$13,0)),\"\"))","v":""},{"$f":"IF(B14=\"\",\"\",IFERROR(IF(INDEX('ImpactOutcome_Import-Export'!K$7:K$13,MATCH($A14,'ImpactOutcome_Import-Export'!$B$7:$B$13,0))=\"\",\"\",INDEX('ImpactOutcome_Import-Export'!K$7:K$13,MATCH($A14,'ImpactOutcome_Import-Export'!$B$7:$B$13,0))),\"\"))","v":""},{"$f":"IF(B14=\"\",\"\",IFERROR(IF(INDEX('ImpactOutcome_Import-Export'!L$7:L$13,MATCH($A14,'ImpactOutcome_Import-Export'!$B$7:$B$13,0))=\"\",\"\",INDEX('ImpactOutcome_Import-Export'!L$7:L$13,MATCH($A14,'ImpactOutcome_Import-Export'!$B$7:$B$13,0))),\"\"))","v":""},{"$f":"IF(B14=\"\",\"\",IFERROR(IF(INDEX('ImpactOutcome_Import-Export'!M$7:M$13,MATCH($A14,'ImpactOutcome_Import-Export'!$B$7:$B$13,0))=\"\",\"\",INDEX('ImpactOutcome_Import-Export'!M$7:M$13,MATCH($A14,'ImpactOutcome_Import-Export'!$B$7:$B$13,0))),\"\"))","v":""},{"$f":"IF(B14=\"\",\"\",IFERROR(IF(INDEX('ImpactOutcome_Import-Export'!N$7:N$13,MATCH($A14,'ImpactOutcome_Import-Export'!$B$7:$B$13,0))=\"\",\"\",INDEX('ImpactOutcome_Import-Export'!N$7:N$13,MATCH($A14,'ImpactOutcome_Import-Export'!$B$7:$B$13,0))),\"\"))","v":""},{"$f":"IF(B14=\"\",\"\",IFERROR(IF(INDEX('ImpactOutcome_Import-Export'!O$7:O$13,MATCH($A14,'ImpactOutcome_Import-Export'!$B$7:$B$13,0))=\"\",\"\",INDEX('ImpactOutcome_Import-Export'!O$7:O$13,MATCH($A14,'ImpactOutcome_Import-Export'!$B$7:$B$13,0))),\"\"))","v":""},{"$f":"IF(B14=\"\",\"\",IFERROR(IF(INDEX('ImpactOutcome_Import-Export'!P$7:P$13,MATCH($A14,'ImpactOutcome_Import-Export'!$B$7:$B$13,0))=\"\",\"\",INDEX('ImpactOutcome_Import-Export'!P$7:P$13,MATCH($A14,'ImpactOutcome_Import-Export'!$B$7:$B$13,0))),\"\"))","v":""},{"$f":"IF(B14=\"\",\"\",IFERROR(IF(INDEX('ImpactOutcome_Import-Export'!Q$7:Q$13,MATCH($A14,'ImpactOutcome_Import-Export'!$B$7:$B$13,0))=\"\",\"\",INDEX('ImpactOutcome_Import-Export'!Q$7:Q$13,MATCH($A14,'ImpactOutcome_Import-Export'!$B$7:$B$13,0))),\"\"))","v":""},{"$f":"IF(B14=\"\",\"\",IFERROR(IF(INDEX('ImpactOutcome_Import-Export'!R$7:R$13,MATCH($A14,'ImpactOutcome_Import-Export'!$B$7:$B$13,0))=\"\",\"\",INDEX('ImpactOutcome_Import-Export'!R$7:R$13,MATCH($A14,'ImpactOutcome_Import-Export'!$B$7:$B$13,0))),\"\"))","v":""},null,null,"",null,null,null,"",null,null,null,"",null,null,null,"",null,null,"",null,""]
[{"$f":"IFERROR(IF(INDEX(Impactlist,MATCH(0,INDEX(COUNTIF(A$10:A14,Impactlist),0,0),0))<>\"\",INDEX(Impactlist,MATCH(0,INDEX(COUNTIF(A$10:A14,Impactlist),0,0),0)),INDEX(Outcomelist,MATCH(0,INDEX(COUNTIF(A$10:A14,Outcomelist),0,0),0))),\"\")","v":""},{"$f":"IFERROR(INDEX('ImpactOutcome_Import-Export'!D$7:D$200,MATCH($A15,'ImpactOutcome_Import-Export'!$B$7:$B$200,0)),\"\")","v":""},{"$f":"IF(B15=\"\",\"\",IFERROR(INDEX('ImpactOutcome_Import-Export'!F$7:F$13,MATCH($A15,'ImpactOutcome_Import-Export'!$B$7:$B$13,0)),\"\"))","v":""},{"$f":"IF(B15=\"\",\"\",IFERROR(IF(INDEX('ImpactOutcome_Import-Export'!K$7:K$13,MATCH($A15,'ImpactOutcome_Import-Export'!$B$7:$B$13,0))=\"\",\"\",INDEX('ImpactOutcome_Import-Export'!K$7:K$13,MATCH($A15,'ImpactOutcome_Import-Export'!$B$7:$B$13,0))),\"\"))","v":""},{"$f":"IF(B15=\"\",\"\",IFERROR(IF(INDEX('ImpactOutcome_Import-Export'!L$7:L$13,MATCH($A15,'ImpactOutcome_Import-Export'!$B$7:$B$13,0))=\"\",\"\",INDEX('ImpactOutcome_Import-Export'!L$7:L$13,MATCH($A15,'ImpactOutcome_Import-Export'!$B$7:$B$13,0))),\"\"))","v":""},{"$f":"IF(B15=\"\",\"\",IFERROR(IF(INDEX('ImpactOutcome_Import-Export'!M$7:M$13,MATCH($A15,'ImpactOutcome_Import-Export'!$B$7:$B$13,0))=\"\",\"\",INDEX('ImpactOutcome_Import-Export'!M$7:M$13,MATCH($A15,'ImpactOutcome_Import-Export'!$B$7:$B$13,0))),\"\"))","v":""},{"$f":"IF(B15=\"\",\"\",IFERROR(IF(INDEX('ImpactOutcome_Import-Export'!N$7:N$13,MATCH($A15,'ImpactOutcome_Import-Export'!$B$7:$B$13,0))=\"\",\"\",INDEX('ImpactOutcome_Import-Export'!N$7:N$13,MATCH($A15,'ImpactOutcome_Import-Export'!$B$7:$B$13,0))),\"\"))","v":""},{"$f":"IF(B15=\"\",\"\",IFERROR(IF(INDEX('ImpactOutcome_Import-Export'!O$7:O$13,MATCH($A15,'ImpactOutcome_Import-Export'!$B$7:$B$13,0))=\"\",\"\",INDEX('ImpactOutcome_Import-Export'!O$7:O$13,MATCH($A15,'ImpactOutcome_Import-Export'!$B$7:$B$13,0))),\"\"))","v":""},{"$f":"IF(B15=\"\",\"\",IFERROR(IF(INDEX('ImpactOutcome_Import-Export'!P$7:P$13,MATCH($A15,'ImpactOutcome_Import-Export'!$B$7:$B$13,0))=\"\",\"\",INDEX('ImpactOutcome_Import-Export'!P$7:P$13,MATCH($A15,'ImpactOutcome_Import-Export'!$B$7:$B$13,0))),\"\"))","v":""},{"$f":"IF(B15=\"\",\"\",IFERROR(IF(INDEX('ImpactOutcome_Import-Export'!Q$7:Q$13,MATCH($A15,'ImpactOutcome_Import-Export'!$B$7:$B$13,0))=\"\",\"\",INDEX('ImpactOutcome_Import-Export'!Q$7:Q$13,MATCH($A15,'ImpactOutcome_Import-Export'!$B$7:$B$13,0))),\"\"))","v":""},{"$f":"IF(B15=\"\",\"\",IFERROR(IF(INDEX('ImpactOutcome_Import-Export'!R$7:R$13,MATCH($A15,'ImpactOutcome_Import-Export'!$B$7:$B$13,0))=\"\",\"\",INDEX('ImpactOutcome_Import-Export'!R$7:R$13,MATCH($A15,'ImpactOutcome_Import-Export'!$B$7:$B$13,0))),\"\"))","v":""},null,null,"",null,null,null,"",null,null,null,"",null,null,null,"",null,null,"",null,""]
[{"$f":"IFERROR(IF(INDEX(Impactlist,MATCH(0,INDEX(COUNTIF(A$10:A15,Impactlist),0,0),0))<>\"\",INDEX(Impactlist,MATCH(0,INDEX(COUNTIF(A$10:A15,Impactlist),0,0),0)),INDEX(Outcomelist,MATCH(0,INDEX(COUNTIF(A$10:A15,Outcomelist),0,0),0))),\"\")","v":""},{"$f":"IFERROR(INDEX('ImpactOutcome_Import-Export'!D$7:D$200,MATCH($A16,'ImpactOutcome_Import-Export'!$B$7:$B$200,0)),\"\")","v":""},{"$f":"IF(B16=\"\",\"\",IFERROR(INDEX('ImpactOutcome_Import-Export'!F$7:F$13,MATCH($A16,'ImpactOutcome_Import-Export'!$B$7:$B$13,0)),\"\"))","v":""},{"$f":"IF(B16=\"\",\"\",IFERROR(IF(INDEX('ImpactOutcome_Import-Export'!K$7:K$13,MATCH($A16,'ImpactOutcome_Import-Export'!$B$7:$B$13,0))=\"\",\"\",INDEX('ImpactOutcome_Import-Export'!K$7:K$13,MATCH($A16,'ImpactOutcome_Import-Export'!$B$7:$B$13,0))),\"\"))","v":""},{"$f":"IF(B16=\"\",\"\",IFERROR(IF(INDEX('ImpactOutcome_Import-Export'!L$7:L$13,MATCH($A16,'ImpactOutcome_Import-Export'!$B$7:$B$13,0))=\"\",\"\",INDEX('ImpactOutcome_Import-Export'!L$7:L$13,MATCH($A16,'ImpactOutcome_Import-Export'!$B$7:$B$13,0))),\"\"))","v":""},{"$f":"IF(B16=\"\",\"\",IFERROR(IF(INDEX('ImpactOutcome_Import-Export'!M$7:M$13,MATCH($A16,'ImpactOutcome_Import-Export'!$B$7:$B$13,0))=\"\",\"\",INDEX('ImpactOutcome_Import-Export'!M$7:M$13,MATCH($A16,'ImpactOutcome_Import-Export'!$B$7:$B$13,0))),\"\"))","v":""},{"$f":"IF(B16=\"\",\"\",IFERROR(IF(INDEX('ImpactOutcome_Import-Export'!N$7:N$13,MATCH($A16,'ImpactOutcome_Import-Export'!$B$7:$B$13,0))=\"\",\"\",INDEX('ImpactOutcome_Import-Export'!N$7:N$13,MATCH($A16,'ImpactOutcome_Import-Export'!$B$7:$B$13,0))),\"\"))","v":""},{"$f":"IF(B16=\"\",\"\",IFERROR(IF(INDEX('ImpactOutcome_Import-Export'!O$7:O$13,MATCH($A16,'ImpactOutcome_Import-Export'!$B$7:$B$13,0))=\"\",\"\",INDEX('ImpactOutcome_Import-Export'!O$7:O$13,MATCH($A16,'ImpactOutcome_Import-Export'!$B$7:$B$13,0))),\"\"))","v":""},{"$f":"IF(B16=\"\",\"\",IFERROR(IF(INDEX('ImpactOutcome_Import-Export'!P$7:P$13,MATCH($A16,'ImpactOutcome_Import-Export'!$B$7:$B$13,0))=\"\",\"\",INDEX('ImpactOutcome_Import-Export'!P$7:P$13,MATCH($A16,'ImpactOutcome_Import-Export'!$B$7:$B$13,0))),\"\"))","v":""},{"$f":"IF(B16=\"\",\"\",IFERROR(IF(INDEX('ImpactOutcome_Import-Export'!Q$7:Q$13,MATCH($A16,'ImpactOutcome_Import-Export'!$B$7:$B$13,0))=\"\",\"\",INDEX('ImpactOutcome_Import-Export'!Q$7:Q$13,MATCH($A16,'ImpactOutcome_Import-Export'!$B$7:$B$13,0))),\"\"))","v":""},{"$f":"IF(B16=\"\",\"\",IFERROR(IF(INDEX('ImpactOutcome_Import-Export'!R$7:R$13,MATCH($A16,'ImpactOutcome_Import-Export'!$B$7:$B$13,0))=\"\",\"\",INDEX('ImpactOutcome_Import-Export'!R$7:R$13,MATCH($A16,'ImpactOutcome_Import-Export'!$B$7:$B$13,0))),\"\"))","v":""},null,null,"",null,null,null,"",null,null,null,"",null,null,null,"",null,null,"",null,""]
[{"$f":"IFERROR(IF(INDEX(Impactlist,MATCH(0,INDEX(COUNTIF(A$10:A16,Impactlist),0,0),0))<>\"\",INDEX(Impactlist,MATCH(0,INDEX(COUNTIF(A$10:A16,Impactlist),0,0),0)),INDEX(Outcomelist,MATCH(0,INDEX(COUNTIF(A$10:A16,Outcomelist),0,0),0))),\"\")","v":""},{"$f":"IFERROR(INDEX('ImpactOutcome_Import-Export'!D$7:D$200,MATCH($A17,'ImpactOutcome_Import-Export'!$B$7:$B$200,0)),\"\")","v":""},{"$f":"IF(B17=\"\",\"\",IFERROR(INDEX('ImpactOutcome_Import-Export'!F$7:F$13,MATCH($A17,'ImpactOutcome_Import-Export'!$B$7:$B$13,0)),\"\"))","v":""},{"$f":"IF(B17=\"\",\"\",IFERROR(IF(INDEX('ImpactOutcome_Import-Export'!K$7:K$13,MATCH($A17,'ImpactOutcome_Import-Export'!$B$7:$B$13,0))=\"\",\"\",INDEX('ImpactOutcome_Import-Export'!K$7:K$13,MATCH($A17,'ImpactOutcome_Import-Export'!$B$7:$B$13,0))),\"\"))","v":""},{"$f":"IF(B17=\"\",\"\",IFERROR(IF(INDEX('ImpactOutcome_Import-Export'!L$7:L$13,MATCH($A17,'ImpactOutcome_Import-Export'!$B$7:$B$13,0))=\"\",\"\",INDEX('ImpactOutcome_Import-Export'!L$7:L$13,MATCH($A17,'ImpactOutcome_Import-Export'!$B$7:$B$13,0))),\"\"))","v":""},{"$f":"IF(B17=\"\",\"\",IFERROR(IF(INDEX('ImpactOutcome_Import-Export'!M$7:M$13,MATCH($A17,'ImpactOutcome_Import-Export'!$B$7:$B$13,0))=\"\",\"\",INDEX('ImpactOutcome_Import-Export'!M$7:M$13,MATCH($A17,'ImpactOutcome_Import-Export'!$B$7:$B$13,0))),\"\"))","v":""},{"$f":"IF(B17=\"\",\"\",IFERROR(IF(INDEX('ImpactOutcome_Import-Export'!N$7:N$13,MATCH($A17,'ImpactOutcome_Import-Export'!$B$7:$B$13,0))=\"\",\"\",INDEX('ImpactOutcome_Import-Export'!N$7:N$13,MATCH($A17,'ImpactOutcome_Import-Export'!$B$7:$B$13,0))),\"\"))","v":""},{"$f":"IF(B17=\"\",\"\",IFERROR(IF(INDEX('ImpactOutcome_Import-Export'!O$7:O$13,MATCH($A17,'ImpactOutcome_Import-Export'!$B$7:$B$13,0))=\"\",\"\",INDEX('ImpactOutcome_Import-Export'!O$7:O$13,MATCH($A17,'ImpactOutcome_Import-Export'!$B$7:$B$13,0))),\"\"))","v":""},{"$f":"IF(B17=\"\",\"\",IFERROR(IF(INDEX('ImpactOutcome_Import-Export'!P$7:P$13,MATCH($A17,'ImpactOutcome_Import-Export'!$B$7:$B$13,0))=\"\",\"\",INDEX('ImpactOutcome_Import-Export'!P$7:P$13,MATCH($A17,'ImpactOutcome_Import-Export'!$B$7:$B$13,0))),\"\"))","v":""},{"$f":"IF(B17=\"\",\"\",IFERROR(IF(INDEX('ImpactOutcome_Import-Export'!Q$7:Q$13,MATCH($A17,'ImpactOutcome_Import-Export'!$B$7:$B$13,0))=\"\",\"\",INDEX('ImpactOutcome_Import-Export'!Q$7:Q$13,MATCH($A17,'ImpactOutcome_Import-Export'!$B$7:$B$13,0))),\"\"))","v":""},{"$f":"IF(B17=\"\",\"\",IFERROR(IF(INDEX('ImpactOutcome_Import-Export'!R$7:R$13,MATCH($A17,'ImpactOutcome_Import-Export'!$B$7:$B$13,0))=\"\",\"\",INDEX('ImpactOutcome_Import-Export'!R$7:R$13,MATCH($A17,'ImpactOutcome_Import-Export'!$B$7:$B$13,0))),\"\"))","v":""},null,null,"",null,null,null,"",null,null,null,"",null,null,null,"",null,null,"",null,""]
[{"$f":"IFERROR(IF(INDEX(Impactlist,MATCH(0,INDEX(COUNTIF(A$10:A17,Impactlist),0,0),0))<>\"\",INDEX(Impactlist,MATCH(0,INDEX(COUNTIF(A$10:A17,Impactlist),0,0),0)),INDEX(Outcomelist,MATCH(0,INDEX(COUNTIF(A$10:A17,Outcomelist),0,0),0))),\"\")","v":""},{"$f":"IFERROR(INDEX('ImpactOutcome_Import-Export'!D$7:D$200,MATCH($A18,'ImpactOutcome_Import-Export'!$B$7:$B$200,0)),\"\")","v":""},{"$f":"IF(B18=\"\",\"\",IFERROR(INDEX('ImpactOutcome_Import-Export'!F$7:F$13,MATCH($A18,'ImpactOutcome_Import-Export'!$B$7:$B$13,0)),\"\"))","v":""},{"$f":"IF(B18=\"\",\"\",IFERROR(IF(INDEX('ImpactOutcome_Import-Export'!K$7:K$13,MATCH($A18,'ImpactOutcome_Import-Export'!$B$7:$B$13,0))=\"\",\"\",INDEX('ImpactOutcome_Import-Export'!K$7:K$13,MATCH($A18,'ImpactOutcome_Import-Export'!$B$7:$B$13,0))),\"\"))","v":""},{"$f":"IF(B18=\"\",\"\",IFERROR(IF(INDEX('ImpactOutcome_Import-Export'!L$7:L$13,MATCH($A18,'ImpactOutcome_Import-Export'!$B$7:$B$13,0))=\"\",\"\",INDEX('ImpactOutcome_Import-Export'!L$7:L$13,MATCH($A18,'ImpactOutcome_Import-Export'!$B$7:$B$13,0))),\"\"))","v":""},{"$f":"IF(B18=\"\",\"\",IFERROR(IF(INDEX('ImpactOutcome_Import-Export'!M$7:M$13,MATCH($A18,'ImpactOutcome_Import-Export'!$B$7:$B$13,0))=\"\",\"\",INDEX('ImpactOutcome_Import-Export'!M$7:M$13,MATCH($A18,'ImpactOutcome_Import-Export'!$B$7:$B$13,0))),\"\"))","v":""},{"$f":"IF(B18=\"\",\"\",IFERROR(IF(INDEX('ImpactOutcome_Import-Export'!N$7:N$13,MATCH($A18,'ImpactOutcome_Import-Export'!$B$7:$B$13,0))=\"\",\"\",INDEX('ImpactOutcome_Import-Export'!N$7:N$13,MATCH($A18,'ImpactOutcome_Import-Export'!$B$7:$B$13,0))),\"\"))","v":""},{"$f":"IF(B18=\"\",\"\",IFERROR(IF(INDEX('ImpactOutcome_Import-Export'!O$7:O$13,MATCH($A18,'ImpactOutcome_Import-Export'!$B$7:$B$13,0))=\"\",\"\",INDEX('ImpactOutcome_Import-Export'!O$7:O$13,MATCH($A18,'ImpactOutcome_Import-Export'!$B$7:$B$13,0))),\"\"))","v":""},{"$f":"IF(B18=\"\",\"\",IFERROR(IF(INDEX('ImpactOutcome_Import-Export'!P$7:P$13,MATCH($A18,'ImpactOutcome_Import-Export'!$B$7:$B$13,0))=\"\",\"\",INDEX('ImpactOutcome_Import-Export'!P$7:P$13,MATCH($A18,'ImpactOutcome_Import-Export'!$B$7:$B$13,0))),\"\"))","v":""},{"$f":"IF(B18=\"\",\"\",IFERROR(IF(INDEX('ImpactOutcome_Import-Export'!Q$7:Q$13,MATCH($A18,'ImpactOutcome_Import-Export'!$B$7:$B$13,0))=\"\",\"\",INDEX('ImpactOutcome_Import-Export'!Q$7:Q$13,MATCH($A18,'ImpactOutcome_Import-Export'!$B$7:$B$13,0))),\"\"))","v":""},{"$f":"IF(B18=\"\",\"\",IFERROR(IF(INDEX('ImpactOutcome_Import-Export'!R$7:R$13,MATCH($A18,'ImpactOutcome_Import-Export'!$B$7:$B$13,0))=\"\",\"\",INDEX('ImpactOutcome_Import-Export'!R$7:R$13,MATCH($A18,'ImpactOutcome_Import-Export'!$B$7:$B$13,0))),\"\"))","v":""},null,null,"",null,null,null,"",null,null,null,"",null,null,null,"",null,null,"",null,""]
[{"$f":"IFERROR(IF(INDEX(Impactlist,MATCH(0,INDEX(COUNTIF(A$10:A18,Impactlist),0,0),0))<>\"\",INDEX(Impactlist,MATCH(0,INDEX(COUNTIF(A$10:A18,Impactlist),0,0),0)),INDEX(Outcomelist,MATCH(0,INDEX(COUNTIF(A$10:A18,Outcomelist),0,0),0))),\"\")","v":""},{"$f":"IFERROR(INDEX('ImpactOutcome_Import-Export'!D$7:D$200,MATCH($A19,'ImpactOutcome_Import-Export'!$B$7:$B$200,0)),\"\")","v":""},{"$f":"IF(B19=\"\",\"\",IFERROR(INDEX('ImpactOutcome_Import-Export'!F$7:F$13,MATCH($A19,'ImpactOutcome_Import-Export'!$B$7:$B$13,0)),\"\"))","v":""},{"$f":"IF(B19=\"\",\"\",IFERROR(IF(INDEX('ImpactOutcome_Import-Export'!K$7:K$13,MATCH($A19,'ImpactOutcome_Import-Export'!$B$7:$B$13,0))=\"\",\"\",INDEX('ImpactOutcome_Import-Export'!K$7:K$13,MATCH($A19,'ImpactOutcome_Import-Export'!$B$7:$B$13,0))),\"\"))","v":""},{"$f":"IF(B19=\"\",\"\",IFERROR(IF(INDEX('ImpactOutcome_Import-Export'!L$7:L$13,MATCH($A19,'ImpactOutcome_Import-Export'!$B$7:$B$13,0))=\"\",\"\",INDEX('ImpactOutcome_Import-Export'!L$7:L$13,MATCH($A19,'ImpactOutcome_Import-Export'!$B$7:$B$13,0))),\"\"))","v":""},{"$f":"IF(B19=\"\",\"\",IFERROR(IF(INDEX('ImpactOutcome_Import-Export'!M$7:M$13,MATCH($A19,'ImpactOutcome_Import-Export'!$B$7:$B$13,0))=\"\",\"\",INDEX('ImpactOutcome_Import-Export'!M$7:M$13,MATCH($A19,'ImpactOutcome_Import-Export'!$B$7:$B$13,0))),\"\"))","v":""},{"$f":"IF(B19=\"\",\"\",IFERROR(IF(INDEX('ImpactOutcome_Import-Export'!N$7:N$13,MATCH($A19,'ImpactOutcome_Import-Export'!$B$7:$B$13,0))=\"\",\"\",INDEX('ImpactOutcome_Import-Export'!N$7:N$13,MATCH($A19,'ImpactOutcome_Import-Export'!$B$7:$B$13,0))),\"\"))","v":""},{"$f":"IF(B19=\"\",\"\",IFERROR(IF(INDEX('ImpactOutcome_Import-Export'!O$7:O$13,MATCH($A19,'ImpactOutcome_Import-Export'!$B$7:$B$13,0))=\"\",\"\",INDEX('ImpactOutcome_Import-Export'!O$7:O$13,MATCH($A19,'ImpactOutcome_Import-Export'!$B$7:$B$13,0))),\"\"))","v":""},{"$f":"IF(B19=\"\",\"\",IFERROR(IF(INDEX('ImpactOutcome_Import-Export'!P$7:P$13,MATCH($A19,'ImpactOutcome_Import-Export'!$B$7:$B$13,0))=\"\",\"\",INDEX('ImpactOutcome_Import-Export'!P$7:P$13,MATCH($A19,'ImpactOutcome_Import-Export'!$B$7:$B$13,0))),\"\"))","v":""},{"$f":"IF(B19=\"\",\"\",IFERROR(IF(INDEX('ImpactOutcome_Import-Export'!Q$7:Q$13,MATCH($A19,'ImpactOutcome_Import-Export'!$B$7:$B$13,0))=\"\",\"\",INDEX('ImpactOutcome_Import-Export'!Q$7:Q$13,MATCH($A19,'ImpactOutcome_Import-Export'!$B$7:$B$13,0))),\"\"))","v":""},{"$f":"IF(B19=\"\",\"\",IFERROR(IF(INDEX('ImpactOutcome_Import-Export'!R$7:R$13,MATCH($A19,'ImpactOutcome_Import-Export'!$B$7:$B$13,0))=\"\",\"\",INDEX('ImpactOutcome_Import-Export'!R$7:R$13,MATCH($A19,'ImpactOutcome_Import-Export'!$B$7:$B$13,0))),\"\"))","v":""},null,null,"",null,null,null,"",null,null,null,"",null,null,null,"",null,null,"",null,""]
[{"$f":"IFERROR(IF(INDEX(Impactlist,MATCH(0,INDEX(COUNTIF(A$10:A19,Impactlist),0,0),0))<>\"\",INDEX(Impactlist,MATCH(0,INDEX(COUNTIF(A$10:A19,Impactlist),0,0),0)),INDEX(Outcomelist,MATCH(0,INDEX(COUNTIF(A$10:A19,Outcomelist),0,0),0))),\"\")","v":""},{"$f":"IFERROR(INDEX('ImpactOutcome_Import-Export'!D$7:D$200,MATCH($A20,'ImpactOutcome_Import-Export'!$B$7:$B$200,0)),\"\")","v":""},{"$f":"IF(B20=\"\",\"\",IFERROR(INDEX('ImpactOutcome_Import-Export'!F$7:F$13,MATCH($A20,'ImpactOutcome_Import-Export'!$B$7:$B$13,0)),\"\"))","v":""},{"$f":"IF(B20=\"\",\"\",IFERROR(IF(INDEX('ImpactOutcome_Import-Export'!K$7:K$13,MATCH($A20,'ImpactOutcome_Import-Export'!$B$7:$B$13,0))=\"\",\"\",INDEX('ImpactOutcome_Import-Export'!K$7:K$13,MATCH($A20,'ImpactOutcome_Import-Export'!$B$7:$B$13,0))),\"\"))","v":""},{"$f":"IF(B20=\"\",\"\",IFERROR(IF(INDEX('ImpactOutcome_Import-Export'!L$7:L$13,MATCH($A20,'ImpactOutcome_Import-Export'!$B$7:$B$13,0))=\"\",\"\",INDEX('ImpactOutcome_Import-Export'!L$7:L$13,MATCH($A20,'ImpactOutcome_Import-Export'!$B$7:$B$13,0))),\"\"))","v":""},{"$f":"IF(B20=\"\",\"\",IFERROR(IF(INDEX('ImpactOutcome_Import-Export'!M$7:M$13,MATCH($A20,'ImpactOutcome_Import-Export'!$B$7:$B$13,0))=\"\",\"\",INDEX('ImpactOutcome_Import-Export'!M$7:M$13,MATCH($A20,'ImpactOutcome_Import-Export'!$B$7:$B$13,0))),\"\"))","v":""},{"$f":"IF(B20=\"\",\"\",IFERROR(IF(INDEX('ImpactOutcome_Import-Export'!N$7:N$13,MATCH($A20,'ImpactOutcome_Import-Export'!$B$7:$B$13,0))=\"\",\"\",INDEX('ImpactOutcome_Import-Export'!N$7:N$13,MATCH($A20,'ImpactOutcome_Import-Export'!$B$7:$B$13,0))),\"\"))","v":""},{"$f":"IF(B20=\"\",\"\",IFERROR(IF(INDEX('ImpactOutcome_Import-Export'!O$7:O$13,MATCH($A20,'ImpactOutcome_Import-Export'!$B$7:$B$13,0))=\"\",\"\",INDEX('ImpactOutcome_Import-Export'!O$7:O$13,MATCH($A20,'ImpactOutcome_Import-Export'!$B$7:$B$13,0))),\"\"))","v":""},{"$f":"IF(B20=\"\",\"\",IFERROR(IF(INDEX('ImpactOutcome_Import-Export'!P$7:P$13,MATCH($A20,'ImpactOutcome_Import-Export'!$B$7:$B$13,0))=\"\",\"\",INDEX('ImpactOutcome_Import-Export'!P$7:P$13,MATCH($A20,'ImpactOutcome_Import-Export'!$B$7:$B$13,0))),\"\"))","v":""},{"$f":"IF(B20=\"\",\"\",IFERROR(IF(INDEX('ImpactOutcome_Import-Export'!Q$7:Q$13,MATCH($A20,'ImpactOutcome_Import-Export'!$B$7:$B$13,0))=\"\",\"\",INDEX('ImpactOutcome_Import-Export'!Q$7:Q$13,MATCH($A20,'ImpactOutcome_Import-Export'!$B$7:$B$13,0))),\"\"))","v":""},{"$f":"IF(B20=\"\",\"\",IFERROR(IF(INDEX('ImpactOutcome_Import-Export'!R$7:R$13,MATCH($A20,'ImpactOutcome_Import-Export'!$B$7:$B$13,0))=\"\",\"\",INDEX('ImpactOutcome_Import-Export'!R$7:R$13,MATCH($A20,'ImpactOutcome_Import-Export'!$B$7:$B$13,0))),\"\"))","v":""},null,null,"",null,null,null,"",null,null,null,"",null,null,null,"",null,null,"",null,""]
[{"$f":"IFERROR(IF(INDEX(Impactlist,MATCH(0,INDEX(COUNTIF(A$10:A20,Impactlist),0,0),0))<>\"\",INDEX(Impactlist,MATCH(0,INDEX(COUNTIF(A$10:A20,Impactlist),0,0),0)),INDEX(Outcomelist,MATCH(0,INDEX(COUNTIF(A$10:A20,Outcomelist),0,0),0))),\"\")","v":""},{"$f":"IFERROR(INDEX('ImpactOutcome_Import-Export'!D$7:D$200,MATCH($A21,'ImpactOutcome_Import-Export'!$B$7:$B$200,0)),\"\")","v":""},{"$f":"IF(B21=\"\",\"\",IFERROR(INDEX('ImpactOutcome_Import-Export'!F$7:F$13,MATCH($A21,'ImpactOutcome_Import-Export'!$B$7:$B$13,0)),\"\"))","v":""},{"$f":"IF(B21=\"\",\"\",IFERROR(IF(INDEX('ImpactOutcome_Import-Export'!K$7:K$13,MATCH($A21,'ImpactOutcome_Import-Export'!$B$7:$B$13,0))=\"\",\"\",INDEX('ImpactOutcome_Import-Export'!K$7:K$13,MATCH($A21,'ImpactOutcome_Import-Export'!$B$7:$B$13,0))),\"\"))","v":""},{"$f":"IF(B21=\"\",\"\",IFERROR(IF(INDEX('ImpactOutcome_Import-Export'!L$7:L$13,MATCH($A21,'ImpactOutcome_Import-Export'!$B$7:$B$13,0))=\"\",\"\",INDEX('ImpactOutcome_Import-Export'!L$7:L$13,MATCH($A21,'ImpactOutcome_Import-Export'!$B$7:$B$13,0))),\"\"))","v":""},{"$f":"IF(B21=\"\",\"\",IFERROR(IF(INDEX('ImpactOutcome_Import-Export'!M$7:M$13,MATCH($A21,'ImpactOutcome_Import-Export'!$B$7:$B$13,0))=\"\",\"\",INDEX('ImpactOutcome_Import-Export'!M$7:M$13,MATCH($A21,'ImpactOutcome_Import-Export'!$B$7:$B$13,0))),\"\"))","v":""},{"$f":"IF(B21=\"\",\"\",IFERROR(IF(INDEX('ImpactOutcome_Import-Export'!N$7:N$13,MATCH($A21,'ImpactOutcome_Import-Export'!$B$7:$B$13,0))=\"\",\"\",INDEX('ImpactOutcome_Import-Export'!N$7:N$13,MATCH($A21,'ImpactOutcome_Import-Export'!$B$7:$B$13,0))),\"\"))","v":""},{"$f":"IF(B21=\"\",\"\",IFERROR(IF(INDEX('ImpactOutcome_Import-Export'!O$7:O$13,MATCH($A21,'ImpactOutcome_Import-Export'!$B$7:$B$13,0))=\"\",\"\",INDEX('ImpactOutcome_Import-Export'!O$7:O$13,MATCH($A21,'ImpactOutcome_Import-Export'!$B$7:$B$13,0))),\"\"))","v":""},{"$f":"IF(B21=\"\",\"\",IFERROR(IF(INDEX('ImpactOutcome_Import-Export'!P$7:P$13,MATCH($A21,'ImpactOutcome_Import-Export'!$B$7:$B$13,0))=\"\",\"\",INDEX('ImpactOutcome_Import-Export'!P$7:P$13,MATCH($A21,'ImpactOutcome_Import-Export'!$B$7:$B$13,0))),\"\"))","v":""},{"$f":"IF(B21=\"\",\"\",IFERROR(IF(INDEX('ImpactOutcome_Import-Export'!Q$7:Q$13,MATCH($A21,'ImpactOutcome_Import-Export'!$B$7:$B$13,0))=\"\",\"\",INDEX('ImpactOutcome_Import-Export'!Q$7:Q$13,MATCH($A21,'ImpactOutcome_Import-Export'!$B$7:$B$13,0))),\"\"))","v":""},{"$f":"IF(B21=\"\",\"\",IFERROR(IF(INDEX('ImpactOutcome_Import-Export'!R$7:R$13,MATCH($A21,'ImpactOutcome_Import-Export'!$B$7:$B$13,0))=\"\",\"\",INDEX('ImpactOutcome_Import-Export'!R$7:R$13,MATCH($A21,'ImpactOutcome_Import-Export'!$B$7:$B$13,0))),\"\"))","v":""},null,null,"",null,null,null,"",null,null,null,"",null,null,null,"",null,null,"",null,""]
[{"$f":"IFERROR(IF(INDEX(Impactlist,MATCH(0,INDEX(COUNTIF(A$10:A21,Impactlist),0,0),0))<>\"\",INDEX(Impactlist,MATCH(0,INDEX(COUNTIF(A$10:A21,Impactlist),0,0),0)),INDEX(Outcomelist,MATCH(0,INDEX(COUNTIF(A$10:A21,Outcomelist),0,0),0))),\"\")","v":""},{"$f":"IFERROR(INDEX('ImpactOutcome_Import-Export'!D$7:D$200,MATCH($A22,'ImpactOutcome_Import-Export'!$B$7:$B$200,0)),\"\")","v":""},{"$f":"IF(B22=\"\",\"\",IFERROR(INDEX('ImpactOutcome_Import-Export'!F$7:F$13,MATCH($A22,'ImpactOutcome_Import-Export'!$B$7:$B$13,0)),\"\"))","v":""},{"$f":"IF(B22=\"\",\"\",IFERROR(IF(INDEX('ImpactOutcome_Import-Export'!K$7:K$13,MATCH($A22,'ImpactOutcome_Import-Export'!$B$7:$B$13,0))=\"\",\"\",INDEX('ImpactOutcome_Import-Export'!K$7:K$13,MATCH($A22,'ImpactOutcome_Import-Export'!$B$7:$B$13,0))),\"\"))","v":""},{"$f":"IF(B22=\"\",\"\",IFERROR(IF(INDEX('ImpactOutcome_Import-Export'!L$7:L$13,MATCH($A22,'ImpactOutcome_Import-Export'!$B$7:$B$13,0))=\"\",\"\",INDEX('ImpactOutcome_Import-Export'!L$7:L$13,MATCH($A22,'ImpactOutcome_Import-Export'!$B$7:$B$13,0))),\"\"))","v":""},{"$f":"IF(B22=\"\",\"\",IFERROR(IF(INDEX('ImpactOutcome_Import-Export'!M$7:M$13,MATCH($A22,'ImpactOutcome_Import-Export'!$B$7:$B$13,0))=\"\",\"\",INDEX('ImpactOutcome_Import-Export'!M$7:M$13,MATCH($A22,'ImpactOutcome_Import-Export'!$B$7:$B$13,0))),\"\"))","v":""},{"$f":"IF(B22=\"\",\"\",IFERROR(IF(INDEX('ImpactOutcome_Import-Export'!N$7:N$13,MATCH($A22,'ImpactOutcome_Import-Export'!$B$7:$B$13,0))=\"\",\"\",INDEX('ImpactOutcome_Import-Export'!N$7:N$13,MATCH($A22,'ImpactOutcome_Import-Export'!$B$7:$B$13,0))),\"\"))","v":""},{"$f":"IF(B22=\"\",\"\",IFERROR(IF(INDEX('ImpactOutcome_Import-Export'!O$7:O$13,MATCH($A22,'ImpactOutcome_Import-Export'!$B$7:$B$13,0))=\"\",\"\",INDEX('ImpactOutcome_Import-Export'!O$7:O$13,MATCH($A22,'ImpactOutcome_Import-Export'!$B$7:$B$13,0))),\"\"))","v":""},{"$f":"IF(B22=\"\",\"\",IFERROR(IF(INDEX('ImpactOutcome_Import-Export'!P$7:P$13,MATCH($A22,'ImpactOutcome_Import-Export'!$B$7:$B$13,0))=\"\",\"\",INDEX('ImpactOutcome_Import-Export'!P$7:P$13,MATCH($A22,'ImpactOutcome_Import-Export'!$B$7:$B$13,0))),\"\"))","v":""},{"$f":"IF(B22=\"\",\"\",IFERROR(IF(INDEX('ImpactOutcome_Import-Export'!Q$7:Q$13,MATCH($A22,'ImpactOutcome_Import-Export'!$B$7:$B$13,0))=\"\",\"\",INDEX('ImpactOutcome_Import-Export'!Q$7:Q$13,MATCH($A22,'ImpactOutcome_Import-Export'!$B$7:$B$13,0))),\"\"))","v":""},{"$f":"IF(B22=\"\",\"\",IFERROR(IF(INDEX('ImpactOutcome_Import-Export'!R$7:R$13,MATCH($A22,'ImpactOutcome_Import-Export'!$B$7:$B$13,0))=\"\",\"\",INDEX('ImpactOutcome_Import-Export'!R$7:R$13,MATCH($A22,'ImpactOutcome_Import-Export'!$B$7:$B$13,0))),\"\"))","v":""},null,null,"",null,null,null,"",null,null,null,"",null,null,null,"",null,null,"",null,""]
[{"$f":"IFERROR(IF(INDEX(Impactlist,MATCH(0,INDEX(COUNTIF(A$10:A22,Impactlist),0,0),0))<>\"\",INDEX(Impactlist,MATCH(0,INDEX(COUNTIF(A$10:A22,Impactlist),0,0),0)),INDEX(Outcomelist,MATCH(0,INDEX(COUNTIF(A$10:A22,Outcomelist),0,0),0))),\"\")","v":""},{"$f":"IFERROR(INDEX('ImpactOutcome_Import-Export'!D$7:D$200,MATCH($A23,'ImpactOutcome_Import-Export'!$B$7:$B$200,0)),\"\")","v":""},{"$f":"IF(B23=\"\",\"\",IFERROR(INDEX('ImpactOutcome_Import-Export'!F$7:F$13,MATCH($A23,'ImpactOutcome_Import-Export'!$B$7:$B$13,0)),\"\"))","v":""},{"$f":"IF(B23=\"\",\"\",IFERROR(IF(INDEX('ImpactOutcome_Import-Export'!K$7:K$13,MATCH($A23,'ImpactOutcome_Import-Export'!$B$7:$B$13,0))=\"\",\"\",INDEX('ImpactOutcome_Import-Export'!K$7:K$13,MATCH($A23,'ImpactOutcome_Import-Export'!$B$7:$B$13,0))),\"\"))","v":""},{"$f":"IF(B23=\"\",\"\",IFERROR(IF(INDEX('ImpactOutcome_Import-Export'!L$7:L$13,MATCH($A23,'ImpactOutcome_Import-Export'!$B$7:$B$13,0))=\"\",\"\",INDEX('ImpactOutcome_Import-Export'!L$7:L$13,MATCH($A23,'ImpactOutcome_Import-Export'!$B$7:$B$13,0))),\"\"))","v":""},{"$f":"IF(B23=\"\",\"\",IFERROR(IF(INDEX('ImpactOutcome_Import-Export'!M$7:M$13,MATCH($A23,'ImpactOutcome_Import-Export'!$B$7:$B$13,0))=\"\",\"\",INDEX('ImpactOutcome_Import-Export'!M$7:M$13,MATCH($A23,'ImpactOutcome_Import-Export'!$B$7:$B$13,0))),\"\"))","v":""},{"$f":"IF(B23=\"\",\"\",IFERROR(IF(INDEX('ImpactOutcome_Import-Export'!N$7:N$13,MATCH($A23,'ImpactOutcome_Import-Export'!$B$7:$B$13,0))=\"\",\"\",INDEX('ImpactOutcome_Import-Export'!N$7:N$13,MATCH($A23,'ImpactOutcome_Import-Export'!$B$7:$B$13,0))),\"\"))","v":""},{"$f":"IF(B23=\"\",\"\",IFERROR(IF(INDEX('ImpactOutcome_Import-Export'!O$7:O$13,MATCH($A23,'ImpactOutcome_Import-Export'!$B$7:$B$13,0))=\"\",\"\",INDEX('ImpactOutcome_Import-Export'!O$7:O$13,MATCH($A23,'ImpactOutcome_Import-Export'!$B$7:$B$13,0))),\"\"))","v":""},{"$f":"IF(B23=\"\",\"\",IFERROR(IF(INDEX('ImpactOutcome_Import-Export'!P$7:P$13,MATCH($A23,'ImpactOutcome_Import-Export'!$B$7:$B$13,0))=\"\",\"\",INDEX('ImpactOutcome_Import-Export'!P$7:P$13,MATCH($A23,'ImpactOutcome_Import-Export'!$B$7:$B$13,0))),\"\"))","v":""},{"$f":"IF(B23=\"\",\"\",IFERROR(IF(INDEX('ImpactOutcome_Import-Export'!Q$7:Q$13,MATCH($A23,'ImpactOutcome_Import-Export'!$B$7:$B$13,0))=\"\",\"\",INDEX('ImpactOutcome_Import-Export'!Q$7:Q$13,MATCH($A23,'ImpactOutcome_Import-Export'!$B$7:$B$13,0))),\"\"))","v":""},{"$f":"IF(B23=\"\",\"\",IFERROR(IF(INDEX('ImpactOutcome_Import-Export'!R$7:R$13,MATCH($A23,'ImpactOutcome_Import-Export'!$B$7:$B$13,0))=\"\",\"\",INDEX('ImpactOutcome_Import-Export'!R$7:R$13,MATCH($A23,'ImpactOutcome_Import-Export'!$B$7:$B$13,0))),\"\"))","v":""},null,null,"",null,null,null,"",null,null,null,"",null,null,null,"",null,null,"",null,""]
[{"$f":"IFERROR(IF(INDEX(Impactlist,MATCH(0,INDEX(COUNTIF(A$10:A23,Impactlist),0,0),0))<>\"\",INDEX(Impactlist,MATCH(0,INDEX(COUNTIF(A$10:A23,Impactlist),0,0),0)),INDEX(Outcomelist,MATCH(0,INDEX(COUNTIF(A$10:A23,Outcomelist),0,0),0))),\"\")","v":""},{"$f":"IFERROR(INDEX('ImpactOutcome_Import-Export'!D$7:D$200,MATCH($A24,'ImpactOutcome_Import-Export'!$B$7:$B$200,0)),\"\")","v":""},{"$f":"IF(B24=\"\",\"\",IFERROR(INDEX('ImpactOutcome_Import-Export'!F$7:F$13,MATCH($A24,'ImpactOutcome_Import-Export'!$B$7:$B$13,0)),\"\"))","v":""},{"$f":"IF(B24=\"\",\"\",IFERROR(IF(INDEX('ImpactOutcome_Import-Export'!K$7:K$13,MATCH($A24,'ImpactOutcome_Import-Export'!$B$7:$B$13,0))=\"\",\"\",INDEX('ImpactOutcome_Import-Export'!K$7:K$13,MATCH($A24,'ImpactOutcome_Import-Export'!$B$7:$B$13,0))),\"\"))","v":""},{"$f":"IF(B24=\"\",\"\",IFERROR(IF(INDEX('ImpactOutcome_Import-Export'!L$7:L$13,MATCH($A24,'ImpactOutcome_Import-Export'!$B$7:$B$13,0))=\"\",\"\",INDEX('ImpactOutcome_Import-Export'!L$7:L$13,MATCH($A24,'ImpactOutcome_Import-Export'!$B$7:$B$13,0))),\"\"))","v":""},{"$f":"IF(B24=\"\",\"\",IFERROR(IF(INDEX('ImpactOutcome_Import-Export'!M$7:M$13,MATCH($A24,'ImpactOutcome_Import-Export'!$B$7:$B$13,0))=\"\",\"\",INDEX('ImpactOutcome_Import-Export'!M$7:M$13,MATCH($A24,'ImpactOutcome_Import-Export'!$B$7:$B$13,0))),\"\"))","v":""},{"$f":"IF(B24=\"\",\"\",IFERROR(IF(INDEX('ImpactOutcome_Import-Export'!N$7:N$13,MATCH($A24,'ImpactOutcome_Import-Export'!$B$7:$B$13,0))=\"\",\"\",INDEX('ImpactOutcome_Import-Export'!N$7:N$13,MATCH($A24,'ImpactOutcome_Import-Export'!$B$7:$B$13,0))),\"\"))","v":""},{"$f":"IF(B24=\"\",\"\",IFERROR(IF(INDEX('ImpactOutcome_Import-Export'!O$7:O$13,MATCH($A24,'ImpactOutcome_Import-Export'!$B$7:$B$13,0))=\"\",\"\",INDEX('ImpactOutcome_Import-Export'!O$7:O$13,MATCH($A24,'ImpactOutcome_Import-Export'!$B$7:$B$13,0))),\"\"))","v":""},{"$f":"IF(B24=\"\",\"\",IFERROR(IF(INDEX('ImpactOutcome_Import-Export'!P$7:P$13,MATCH($A24,'ImpactOutcome_Import-Export'!$B$7:$B$13,0))=\"\",\"\",INDEX('ImpactOutcome_Import-Export'!P$7:P$13,MATCH($A24,'ImpactOutcome_Import-Export'!$B$7:$B$13,0))),\"\"))","v":""},{"$f":"IF(B24=\"\",\"\",IFERROR(IF(INDEX('ImpactOutcome_Import-Export'!Q$7:Q$13,MATCH($A24,'ImpactOutcome_Import-Export'!$B$7:$B$13,0))=\"\",\"\",INDEX('ImpactOutcome_Import-Export'!Q$7:Q$13,MATCH($A24,'ImpactOutcome_Import-Export'!$B$7:$B$13,0))),\"\"))","v":""},{"$f":"IF(B24=\"\",\"\",IFERROR(IF(INDEX('ImpactOutcome_Import-Export'!R$7:R$13,MATCH($A24,'ImpactOutcome_Import-Export'!$B$7:$B$13,0))=\"\",\"\",INDEX('ImpactOutcome_Import-Export'!R$7:R$13,MATCH($A24,'ImpactOutcome_Import-Export'!$B$7:$B$13,0))),\"\"))","v":""},null,null,"",null,null,null,"",null,null,null,"",null,null,null,"",null,null,"",null,""]
[{"$f":"IFERROR(IF(INDEX(Impactlist,MATCH(0,INDEX(COUNTIF(A$10:A24,Impactlist),0,0),0))<>\"\",INDEX(Impactlist,MATCH(0,INDEX(COUNTIF(A$10:A24,Impactlist),0,0),0)),INDEX(Outcomelist,MATCH(0,INDEX(COUNTIF(A$10:A24,Outcomelist),0,0),0))),\"\")","v":""},{"$f":"IFERROR(INDEX('ImpactOutcome_Import-Export'!D$7:D$200,MATCH($A25,'ImpactOutcome_Import-Export'!$B$7:$B$200,0)),\"\")","v":""},{"$f":"IF(B25=\"\",\"\",IFERROR(INDEX('ImpactOutcome_Import-Export'!F$7:F$13,MATCH($A25,'ImpactOutcome_Import-Export'!$B$7:$B$13,0)),\"\"))","v":""},{"$f":"IF(B25=\"\",\"\",IFERROR(IF(INDEX('ImpactOutcome_Import-Export'!K$7:K$13,MATCH($A25,'ImpactOutcome_Import-Export'!$B$7:$B$13,0))=\"\",\"\",INDEX('ImpactOutcome_Import-Export'!K$7:K$13,MATCH($A25,'ImpactOutcome_Import-Export'!$B$7:$B$13,0))),\"\"))","v":""},{"$f":"IF(B25=\"\",\"\",IFERROR(IF(INDEX('ImpactOutcome_Import-Export'!L$7:L$13,MATCH($A25,'ImpactOutcome_Import-Export'!$B$7:$B$13,0))=\"\",\"\",INDEX('ImpactOutcome_Import-Export'!L$7:L$13,MATCH($A25,'ImpactOutcome_Import-Export'!$B$7:$B$13,0))),\"\"))","v":""},{"$f":"IF(B25=\"\",\"\",IFERROR(IF(INDEX('ImpactOutcome_Import-Export'!M$7:M$13,MATCH($A25,'ImpactOutcome_Import-Export'!$B$7:$B$13,0))=\"\",\"\",INDEX('ImpactOutcome_Import-Export'!M$7:M$13,MATCH($A25,'ImpactOutcome_Import-Export'!$B$7:$B$13,0))),\"\"))","v":""},{"$f":"IF(B25=\"\",\"\",IFERROR(IF(INDEX('ImpactOutcome_Import-Export'!N$7:N$13,MATCH($A25,'ImpactOutcome_Import-Export'!$B$7:$B$13,0))=\"\",\"\",INDEX('ImpactOutcome_Import-Export'!N$7:N$13,MATCH($A25,'ImpactOutcome_Import-Export'!$B$7:$B$13,0))),\"\"))","v":""},{"$f":"IF(B25=\"\",\"\",IFERROR(IF(INDEX('ImpactOutcome_Import-Export'!O$7:O$13,MATCH($A25,'ImpactOutcome_Import-Export'!$B$7:$B$13,0))=\"\",\"\",INDEX('ImpactOutcome_Import-Export'!O$7:O$13,MATCH($A25,'ImpactOutcome_Import-Export'!$B$7:$B$13,0))),\"\"))","v":""},{"$f":"IF(B25=\"\",\"\",IFERROR(IF(INDEX('ImpactOutcome_Import-Export'!P$7:P$13,MATCH($A25,'ImpactOutcome_Import-Export'!$B$7:$B$13,0))=\"\",\"\",INDEX('ImpactOutcome_Import-Export'!P$7:P$13,MATCH($A25,'ImpactOutcome_Import-Export'!$B$7:$B$13,0))),\"\"))","v":""},{"$f":"IF(B25=\"\",\"\",IFERROR(IF(INDEX('ImpactOutcome_Import-Export'!Q$7:Q$13,MATCH($A25,'ImpactOutcome_Import-Export'!$B$7:$B$13,0))=\"\",\"\",INDEX('ImpactOutcome_Import-Export'!Q$7:Q$13,MATCH($A25,'ImpactOutcome_Import-Export'!$B$7:$B$13,0))),\"\"))","v":""},{"$f":"IF(B25=\"\",\"\",IFERROR(IF(INDEX('ImpactOutcome_Import-Export'!R$7:R$13,MATCH($A25,'ImpactOutcome_Import-Export'!$B$7:$B$13,0))=\"\",\"\",INDEX('ImpactOutcome_Import-Export'!R$7:R$13,MATCH($A25,'ImpactOutcome_Import-Export'!$B$7:$B$13,0))),\"\"))","v":""},null,null,"",null,null,null,"",null,null,null,"",null,null,null,"",null,null,"",null,""]
[{"$f":"IFERROR(IF(INDEX(Impactlist,MATCH(0,INDEX(COUNTIF(A$10:A25,Impactlist),0,0),0))<>\"\",INDEX(Impactlist,MATCH(0,INDEX(COUNTIF(A$10:A25,Impactlist),0,0),0)),INDEX(Outcomelist,MATCH(0,INDEX(COUNTIF(A$10:A25,Outcomelist),0,0),0))),\"\")","v":""},{"$f":"IFERROR(INDEX('ImpactOutcome_Import-Export'!D$7:D$200,MATCH($A26,'ImpactOutcome_Import-Export'!$B$7:$B$200,0)),\"\")","v":""},{"$f":"IF(B26=\"\",\"\",IFERROR(INDEX('ImpactOutcome_Import-Export'!F$7:F$13,MATCH($A26,'ImpactOutcome_Import-Export'!$B$7:$B$13,0)),\"\"))","v":""},{"$f":"IF(B26=\"\",\"\",IFERROR(IF(INDEX('ImpactOutcome_Import-Export'!K$7:K$13,MATCH($A26,'ImpactOutcome_Import-Export'!$B$7:$B$13,0))=\"\",\"\",INDEX('ImpactOutcome_Import-Export'!K$7:K$13,MATCH($A26,'ImpactOutcome_Import-Export'!$B$7:$B$13,0))),\"\"))","v":""},{"$f":"IF(B26=\"\",\"\",IFERROR(IF(INDEX('ImpactOutcome_Import-Export'!L$7:L$13,MATCH($A26,'ImpactOutcome_Import-Export'!$B$7:$B$13,0))=\"\",\"\",INDEX('ImpactOutcome_Import-Export'!L$7:L$13,MATCH($A26,'ImpactOutcome_Import-Export'!$B$7:$B$13,0))),\"\"))","v":""},{"$f":"IF(B26=\"\",\"\",IFERROR(IF(INDEX('ImpactOutcome_Import-Export'!M$7:M$13,MATCH($A26,'ImpactOutcome_Import-Export'!$B$7:$B$13,0))=\"\",\"\",INDEX('ImpactOutcome_Import-Export'!M$7:M$13,MATCH($A26,'ImpactOutcome_Import-Export'!$B$7:$B$13,0))),\"\"))","v":""},{"$f":"IF(B26=\"\",\"\",IFERROR(IF(INDEX('ImpactOutcome_Import-Export'!N$7:N$13,MATCH($A26,'ImpactOutcome_Import-Export'!$B$7:$B$13,0))=\"\",\"\",INDEX('ImpactOutcome_Import-Export'!N$7:N$13,MATCH($A26,'ImpactOutcome_Import-Export'!$B$7:$B$13,0))),\"\"))","v":""},{"$f":"IF(B26=\"\",\"\",IFERROR(IF(INDEX('ImpactOutcome_Import-Export'!O$7:O$13,MATCH($A26,'ImpactOutcome_Import-Export'!$B$7:$B$13,0))=\"\",\"\",INDEX('ImpactOutcome_Import-Export'!O$7:O$13,MATCH($A26,'ImpactOutcome_Import-Export'!$B$7:$B$13,0))),\"\"))","v":""},{"$f":"IF(B26=\"\",\"\",IFERROR(IF(INDEX('ImpactOutcome_Import-Export'!P$7:P$13,MATCH($A26,'ImpactOutcome_Import-Export'!$B$7:$B$13,0))=\"\",\"\",INDEX('ImpactOutcome_Import-Export'!P$7:P$13,MATCH($A26,'ImpactOutcome_Import-Export'!$B$7:$B$13,0))),\"\"))","v":""},{"$f":"IF(B26=\"\",\"\",IFERROR(IF(INDEX('ImpactOutcome_Import-Export'!Q$7:Q$13,MATCH($A26,'ImpactOutcome_Import-Export'!$B$7:$B$13,0))=\"\",\"\",INDEX('ImpactOutcome_Import-Export'!Q$7:Q$13,MATCH($A26,'ImpactOutcome_Import-Export'!$B$7:$B$13,0))),\"\"))","v":""},{"$f":"IF(B26=\"\",\"\",IFERROR(IF(INDEX('ImpactOutcome_Import-Export'!R$7:R$13,MATCH($A26,'ImpactOutcome_Import-Export'!$B$7:$B$13,0))=\"\",\"\",INDEX('ImpactOutcome_Import-Export'!R$7:R$13,MATCH($A26,'ImpactOutcome_Import-Export'!$B$7:$B$13,0))),\"\"))","v":""},null,null,"",null,null,null,"",null,null,null,"",null,null,null,"",null,null,"",null,""]
[{"$f":"IFERROR(IF(INDEX(Impactlist,MATCH(0,INDEX(COUNTIF(A$10:A26,Impactlist),0,0),0))<>\"\",INDEX(Impactlist,MATCH(0,INDEX(COUNTIF(A$10:A26,Impactlist),0,0),0)),INDEX(Outcomelist,MATCH(0,INDEX(COUNTIF(A$10:A26,Outcomelist),0,0),0))),\"\")","v":""},{"$f":"IFERROR(INDEX('ImpactOutcome_Import-Export'!D$7:D$200,MATCH($A27,'ImpactOutcome_Import-Export'!$B$7:$B$200,0)),\"\")","v":""},{"$f":"IF(B27=\"\",\"\",IFERROR(INDEX('ImpactOutcome_Import-Export'!F$7:F$13,MATCH($A27,'ImpactOutcome_Import-Export'!$B$7:$B$13,0)),\"\"))","v":""},{"$f":"IF(B27=\"\",\"\",IFERROR(IF(INDEX('ImpactOutcome_Import-Export'!K$7:K$13,MATCH($A27,'ImpactOutcome_Import-Export'!$B$7:$B$13,0))=\"\",\"\",INDEX('ImpactOutcome_Import-Export'!K$7:K$13,MATCH($A27,'ImpactOutcome_Import-Export'!$B$7:$B$13,0))),\"\"))","v":""},{"$f":"IF(B27=\"\",\"\",IFERROR(IF(INDEX('ImpactOutcome_Import-Export'!L$7:L$13,MATCH($A27,'ImpactOutcome_Import-Export'!$B$7:$B$13,0))=\"\",\"\",INDEX('ImpactOutcome_Import-Export'!L$7:L$13,MATCH($A27,'ImpactOutcome_Import-Export'!$B$7:$B$13,0))),\"\"))","v":""},{"$f":"IF(B27=\"\",\"\",IFERROR(IF(INDEX('ImpactOutcome_Import-Export'!M$7:M$13,MATCH($A27,'ImpactOutcome_Import-Export'!$B$7:$B$13,0))=\"\",\"\",INDEX('ImpactOutcome_Import-Export'!M$7:M$13,MATCH($A27,'ImpactOutcome_Import-Export'!$B$7:$B$13,0))),\"\"))","v":""},{"$f":"IF(B27=\"\",\"\",IFERROR(IF(INDEX('ImpactOutcome_Import-Export'!N$7:N$13,MATCH($A27,'ImpactOutcome_Import-Export'!$B$7:$B$13,0))=\"\",\"\",INDEX('ImpactOutcome_Import-Export'!N$7:N$13,MATCH($A27,'ImpactOutcome_Import-Export'!$B$7:$B$13,0))),\"\"))","v":""},{"$f":"IF(B27=\"\",\"\",IFERROR(IF(INDEX('ImpactOutcome_Import-Export'!O$7:O$13,MATCH($A27,'ImpactOutcome_Import-Export'!$B$7:$B$13,0))=\"\",\"\",INDEX('ImpactOutcome_Import-Export'!O$7:O$13,MATCH($A27,'ImpactOutcome_Import-Export'!$B$7:$B$13,0))),\"\"))","v":""},{"$f":"IF(B27=\"\",\"\",IFERROR(IF(INDEX('ImpactOutcome_Import-Export'!P$7:P$13,MATCH($A27,'ImpactOutcome_Import-Export'!$B$7:$B$13,0))=\"\",\"\",INDEX('ImpactOutcome_Import-Export'!P$7:P$13,MATCH($A27,'ImpactOutcome_Import-Export'!$B$7:$B$13,0))),\"\"))","v":""},{"$f":"IF(B27=\"\",\"\",IFERROR(IF(INDEX('ImpactOutcome_Import-Export'!Q$7:Q$13,MATCH($A27,'ImpactOutcome_Import-Export'!$B$7:$B$13,0))=\"\",\"\",INDEX('ImpactOutcome_Import-Export'!Q$7:Q$13,MATCH($A27,'ImpactOutcome_Import-Export'!$B$7:$B$13,0))),\"\"))","v":""},{"$f":"IF(B27=\"\",\"\",IFERROR(IF(INDEX('ImpactOutcome_Import-Export'!R$7:R$13,MATCH($A27,'ImpactOutcome_Import-Export'!$B$7:$B$13,0))=\"\",\"\",INDEX('ImpactOutcome_Import-Export'!R$7:R$13,MATCH($A27,'ImpactOutcome_Import-Export'!$B$7:$B$13,0))),\"\"))","v":""},null,null,"",null,null,null,"",null,null,null,"",null,null,null,"",null,null,"",null,""]
[{"$f":"IFERROR(IF(INDEX(Impactlist,MATCH(0,INDEX(COUNTIF(A$10:A27,Impactlist),0,0),0))<>\"\",INDEX(Impactlist,MATCH(0,INDEX(COUNTIF(A$10:A27,Impactlist),0,0),0)),INDEX(Outcomelist,MATCH(0,INDEX(COUNTIF(A$10:A27,Outcomelist),0,0),0))),\"\")","v":""},{"$f":"IFERROR(INDEX('ImpactOutcome_Import-Export'!D$7:D$200,MATCH($A28,'ImpactOutcome_Import-Export'!$B$7:$B$200,0)),\"\")","v":""},{"$f":"IF(B28=\"\",\"\",IFERROR(INDEX('ImpactOutcome_Import-Export'!F$7:F$13,MATCH($A28,'ImpactOutcome_Import-Export'!$B$7:$B$13,0)),\"\"))","v":""},{"$f":"IF(B28=\"\",\"\",IFERROR(IF(INDEX('ImpactOutcome_Import-Export'!K$7:K$13,MATCH($A28,'ImpactOutcome_Import-Export'!$B$7:$B$13,0))=\"\",\"\",INDEX('ImpactOutcome_Import-Export'!K$7:K$13,MATCH($A28,'ImpactOutcome_Import-Export'!$B$7:$B$13,0))),\"\"))","v":""},{"$f":"IF(B28=\"\",\"\",IFERROR(IF(INDEX('ImpactOutcome_Import-Export'!L$7:L$13,MATCH($A28,'ImpactOutcome_Import-Export'!$B$7:$B$13,0))=\"\",\"\",INDEX('ImpactOutcome_Import-Export'!L$7:L$13,MATCH($A28,'ImpactOutcome_Import-Export'!$B$7:$B$13,0))),\"\"))","v":""},{"$f":"IF(B28=\"\",\"\",IFERROR(IF(INDEX('ImpactOutcome_Import-Export'!M$7:M$13,MATCH($A28,'ImpactOutcome_Import-Export'!$B$7:$B$13,0))=\"\",\"\",INDEX('ImpactOutcome_Import-Export'!M$7:M$13,MATCH($A28,'ImpactOutcome_Import-Export'!$B$7:$B$13,0))),\"\"))","v":""},{"$f":"IF(B28=\"\",\"\",IFERROR(IF(INDEX('ImpactOutcome_Import-Export'!N$7:N$13,MATCH($A28,'ImpactOutcome_Import-Export'!$B$7:$B$13,0))=\"\",\"\",INDEX('ImpactOutcome_Import-Export'!N$7:N$13,MATCH($A28,'ImpactOutcome_Import-Export'!$B$7:$B$13,0))),\"\"))","v":""},{"$f":"IF(B28=\"\",\"\",IFERROR(IF(INDEX('ImpactOutcome_Import-Export'!O$7:O$13,MATCH($A28,'ImpactOutcome_Import-Export'!$B$7:$B$13,0))=\"\",\"\",INDEX('ImpactOutcome_Import-Export'!O$7:O$13,MATCH($A28,'ImpactOutcome_Import-Export'!$B$7:$B$13,0))),\"\"))","v":""},{"$f":"IF(B28=\"\",\"\",IFERROR(IF(INDEX('ImpactOutcome_Import-Export'!P$7:P$13,MATCH($A28,'ImpactOutcome_Import-Export'!$B$7:$B$13,0))=\"\",\"\",INDEX('ImpactOutcome_Import-Export'!P$7:P$13,MATCH($A28,'ImpactOutcome_Import-Export'!$B$7:$B$13,0))),\"\"))","v":""},{"$f":"IF(B28=\"\",\"\",IFERROR(IF(INDEX('ImpactOutcome_Import-Export'!Q$7:Q$13,MATCH($A28,'ImpactOutcome_Import-Export'!$B$7:$B$13,0))=\"\",\"\",INDEX('ImpactOutcome_Import-Export'!Q$7:Q$13,MATCH($A28,'ImpactOutcome_Import-Export'!$B$7:$B$13,0))),\"\"))","v":""},{"$f":"IF(B28=\"\",\"\",IFERROR(IF(INDEX('ImpactOutcome_Import-Export'!R$7:R$13,MATCH($A28,'ImpactOutcome_Import-Export'!$B$7:$B$13,0))=\"\",\"\",INDEX('ImpactOutcome_Import-Export'!R$7:R$13,MATCH($A28,'ImpactOutcome_Import-Export'!$B$7:$B$13,0))),\"\"))","v":""},null,null,"",null,null,null,"",null,null,null,"",null,null,null,"",null,null,"",null,""]
[{"$f":"IFERROR(IF(INDEX(Impactlist,MATCH(0,INDEX(COUNTIF(A$10:A28,Impactlist),0,0),0))<>\"\",INDEX(Impactlist,MATCH(0,INDEX(COUNTIF(A$10:A28,Impactlist),0,0),0)),INDEX(Outcomelist,MATCH(0,INDEX(COUNTIF(A$10:A28,Outcomelist),0,0),0))),\"\")","v":""},{"$f":"IFERROR(INDEX('ImpactOutcome_Import-Export'!D$7:D$200,MATCH($A29,'ImpactOutcome_Import-Export'!$B$7:$B$200,0)),\"\")","v":""},{"$f":"IF(B29=\"\",\"\",IFERROR(INDEX('ImpactOutcome_Import-Export'!F$7:F$13,MATCH($A29,'ImpactOutcome_Import-Export'!$B$7:$B$13,0)),\"\"))","v":""},{"$f":"IF(B29=\"\",\"\",IFERROR(IF(INDEX('ImpactOutcome_Import-Export'!K$7:K$13,MATCH($A29,'ImpactOutcome_Import-Export'!$B$7:$B$13,0))=\"\",\"\",INDEX('ImpactOutcome_Import-Export'!K$7:K$13,MATCH($A29,'ImpactOutcome_Import-Export'!$B$7:$B$13,0))),\"\"))","v":""},{"$f":"IF(B29=\"\",\"\",IFERROR(IF(INDEX('ImpactOutcome_Import-Export'!L$7:L$13,MATCH($A29,'ImpactOutcome_Import-Export'!$B$7:$B$13,0))=\"\",\"\",INDEX('ImpactOutcome_Import-Export'!L$7:L$13,MATCH($A29,'ImpactOutcome_Import-Export'!$B$7:$B$13,0))),\"\"))","v":""},{"$f":"IF(B29=\"\",\"\",IFERROR(IF(INDEX('ImpactOutcome_Import-Export'!M$7:M$13,MATCH($A29,'ImpactOutcome_Import-Export'!$B$7:$B$13,0))=\"\",\"\",INDEX('ImpactOutcome_Import-Export'!M$7:M$13,MATCH($A29,'ImpactOutcome_Import-Export'!$B$7:$B$13,0))),\"\"))","v":""},{"$f":"IF(B29=\"\",\"\",IFERROR(IF(INDEX('ImpactOutcome_Import-Export'!N$7:N$13,MATCH($A29,'ImpactOutcome_Import-Export'!$B$7:$B$13,0))=\"\",\"\",INDEX('ImpactOutcome_Import-Export'!N$7:N$13,MATCH($A29,'ImpactOutcome_Import-Export'!$B$7:$B$13,0))),\"\"))","v":""},{"$f":"IF(B29=\"\",\"\",IFERROR(IF(INDEX('ImpactOutcome_Import-Export'!O$7:O$13,MATCH($A29,'ImpactOutcome_Import-Export'!$B$7:$B$13,0))=\"\",\"\",INDEX('ImpactOutcome_Import-Export'!O$7:O$13,MATCH($A29,'ImpactOutcome_Import-Export'!$B$7:$B$13,0))),\"\"))","v":""},{"$f":"IF(B29=\"\",\"\",IFERROR(IF(INDEX('ImpactOutcome_Import-Export'!P$7:P$13,MATCH($A29,'ImpactOutcome_Import-Export'!$B$7:$B$13,0))=\"\",\"\",INDEX('ImpactOutcome_Import-Export'!P$7:P$13,MATCH($A29,'ImpactOutcome_Import-Export'!$B$7:$B$13,0))),\"\"))","v":""},{"$f":"IF(B29=\"\",\"\",IFERROR(IF(INDEX('ImpactOutcome_Import-Export'!Q$7:Q$13,MATCH($A29,'ImpactOutcome_Import-Export'!$B$7:$B$13,0))=\"\",\"\",INDEX('ImpactOutcome_Import-Export'!Q$7:Q$13,MATCH($A29,'ImpactOutcome_Import-Export'!$B$7:$B$13,0))),\"\"))","v":""},{"$f":"IF(B29=\"\",\"\",IFERROR(IF(INDEX('ImpactOutcome_Import-Export'!R$7:R$13,MATCH($A29,'ImpactOutcome_Import-Export'!$B$7:$B$13,0))=\"\",\"\",INDEX('ImpactOutcome_Import-Export'!R$7:R$13,MATCH($A29,'ImpactOutcome_Import-Export'!$B$7:$B$13,0))),\"\"))","v":""},null,null,"",null,null,null,"",null,null,null,"",null,null,null,"",null,null,"",null,""]
[{"$f":"IFERROR(IF(INDEX(Impactlist,MATCH(0,INDEX(COUNTIF(A$10:A29,Impactlist),0,0),0))<>\"\",INDEX(Impactlist,MATCH(0,INDEX(COUNTIF(A$10:A29,Impactlist),0,0),0)),INDEX(Outcomelist,MATCH(0,INDEX(COUNTIF(A$10:A29,Outcomelist),0,0),0))),\"\")","v":""},{"$f":"IFERROR(INDEX('ImpactOutcome_Import-Export'!D$7:D$200,MATCH($A30,'ImpactOutcome_Import-Export'!$B$7:$B$200,0)),\"\")","v":""},{"$f":"IF(B30=\"\",\"\",IFERROR(INDEX('ImpactOutcome_Import-Export'!F$7:F$13,MATCH($A30,'ImpactOutcome_Import-Export'!$B$7:$B$13,0)),\"\"))","v":""},{"$f":"IF(B30=\"\",\"\",IFERROR(IF(INDEX('ImpactOutcome_Import-Export'!K$7:K$13,MATCH($A30,'ImpactOutcome_Import-Export'!$B$7:$B$13,0))=\"\",\"\",INDEX('ImpactOutcome_Import-Export'!K$7:K$13,MATCH($A30,'ImpactOutcome_Import-Export'!$B$7:$B$13,0))),\"\"))","v":""},{"$f":"IF(B30=\"\",\"\",IFERROR(IF(INDEX('ImpactOutcome_Import-Export'!L$7:L$13,MATCH($A30,'ImpactOutcome_Import-Export'!$B$7:$B$13,0))=\"\",\"\",INDEX('ImpactOutcome_Import-Export'!L$7:L$13,MATCH($A30,'ImpactOutcome_Import-Export'!$B$7:$B$13,0))),\"\"))","v":""},{"$f":"IF(B30=\"\",\"\",IFERROR(IF(INDEX('ImpactOutcome_Import-Export'!M$7:M$13,MATCH($A30,'ImpactOutcome_Import-Export'!$B$7:$B$13,0))=\"\",\"\",INDEX('ImpactOutcome_Import-Export'!M$7:M$13,MATCH($A30,'ImpactOutcome_Import-Export'!$B$7:$B$13,0))),\"\"))","v":""},{"$f":"IF(B30=\"\",\"\",IFERROR(IF(INDEX('ImpactOutcome_Import-Export'!N$7:N$13,MATCH($A30,'ImpactOutcome_Import-Export'!$B$7:$B$13,0))=\"\",\"\",INDEX('ImpactOutcome_Import-Export'!N$7:N$13,MATCH($A30,'ImpactOutcome_Import-Export'!$B$7:$B$13,0))),\"\"))","v":""},{"$f":"IF(B30=\"\",\"\",IFERROR(IF(INDEX('ImpactOutcome_Import-Export'!O$7:O$13,MATCH($A30,'ImpactOutcome_Import-Export'!$B$7:$B$13,0))=\"\",\"\",INDEX('ImpactOutcome_Import-Export'!O$7:O$13,MATCH($A30,'ImpactOutcome_Import-Export'!$B$7:$B$13,0))),\"\"))","v":""},{"$f":"IF(B30=\"\",\"\",IFERROR(IF(INDEX('ImpactOutcome_Import-Export'!P$7:P$13,MATCH($A30,'ImpactOutcome_Import-Export'!$B$7:$B$13,0))=\"\",\"\",INDEX('ImpactOutcome_Import-Export'!P$7:P$13,MATCH($A30,'ImpactOutcome_Import-Export'!$B$7:$B$13,0))),\"\"))","v":""},{"$f":"IF(B30=\"\",\"\",IFERROR(IF(INDEX('ImpactOutcome_Import-Export'!Q$7:Q$13,MATCH($A30,'ImpactOutcome_Import-Export'!$B$7:$B$13,0))=\"\",\"\",INDEX('ImpactOutcome_Import-Export'!Q$7:Q$13,MATCH($A30,'ImpactOutcome_Import-Export'!$B$7:$B$13,0))),\"\"))","v":""},{"$f":"IF(B30=\"\",\"\",IFERROR(IF(INDEX('ImpactOutcome_Import-Export'!R$7:R$13,MATCH($A30,'ImpactOutcome_Import-Export'!$B$7:$B$13,0))=\"\",\"\",INDEX('ImpactOutcome_Import-Export'!R$7:R$13,MATCH($A30,'ImpactOutcome_Import-Export'!$B$7:$B$13,0))),\"\"))","v":""},null,null,"",null,null,null,"",null,null,null,"",null,null,null,"",null,null,"",null,""]
[{"$f":"IFERROR(IF(INDEX(Impactlist,MATCH(0,INDEX(COUNTIF(A$10:A30,Impactlist),0,0),0))<>\"\",INDEX(Impactlist,MATCH(0,INDEX(COUNTIF(A$10:A30,Impactlist),0,0),0)),INDEX(Outcomelist,MATCH(0,INDEX(COUNTIF(A$10:A30,Outcomelist),0,0),0))),\"\")","v":""},{"$f":"IFERROR(INDEX('ImpactOutcome_Import-Export'!D$7:D$200,MATCH($A31,'ImpactOutcome_Import-Export'!$B$7:$B$200,0)),\"\")","v":""},{"$f":"IF(B31=\"\",\"\",IFERROR(INDEX('ImpactOutcome_Import-Export'!F$7:F$13,MATCH($A31,'ImpactOutcome_Import-Export'!$B$7:$B$13,0)),\"\"))","v":""},{"$f":"IF(B31=\"\",\"\",IFERROR(IF(INDEX('ImpactOutcome_Import-Export'!K$7:K$13,MATCH($A31,'ImpactOutcome_Import-Export'!$B$7:$B$13,0))=\"\",\"\",INDEX('ImpactOutcome_Import-Export'!K$7:K$13,MATCH($A31,'ImpactOutcome_Import-Export'!$B$7:$B$13,0))),\"\"))","v":""},{"$f":"IF(B31=\"\",\"\",IFERROR(IF(INDEX('ImpactOutcome_Import-Export'!L$7:L$13,MATCH($A31,'ImpactOutcome_Import-Export'!$B$7:$B$13,0))=\"\",\"\",INDEX('ImpactOutcome_Import-Export'!L$7:L$13,MATCH($A31,'ImpactOutcome_Import-Export'!$B$7:$B$13,0))),\"\"))","v":""},{"$f":"IF(B31=\"\",\"\",IFERROR(IF(INDEX('ImpactOutcome_Import-Export'!M$7:M$13,MATCH($A31,'ImpactOutcome_Import-Export'!$B$7:$B$13,0))=\"\",\"\",INDEX('ImpactOutcome_Import-Export'!M$7:M$13,MATCH($A31,'ImpactOutcome_Import-Export'!$B$7:$B$13,0))),\"\"))","v":""},{"$f":"IF(B31=\"\",\"\",IFERROR(IF(INDEX('ImpactOutcome_Import-Export'!N$7:N$13,MATCH($A31,'ImpactOutcome_Import-Export'!$B$7:$B$13,0))=\"\",\"\",INDEX('ImpactOutcome_Import-Export'!N$7:N$13,MATCH($A31,'ImpactOutcome_Import-Export'!$B$7:$B$13,0))),\"\"))","v":""},{"$f":"IF(B31=\"\",\"\",IFERROR(IF(INDEX('ImpactOutcome_Import-Export'!O$7:O$13,MATCH($A31,'ImpactOutcome_Import-Export'!$B$7:$B$13,0))=\"\",\"\",INDEX('ImpactOutcome_Import-Export'!O$7:O$13,MATCH($A31,'ImpactOutcome_Import-Export'!$B$7:$B$13,0))),\"\"))","v":""},{"$f":"IF(B31=\"\",\"\",IFERROR(IF(INDEX('ImpactOutcome_Import-Export'!P$7:P$13,MATCH($A31,'ImpactOutcome_Import-Export'!$B$7:$B$13,0))=\"\",\"\",INDEX('ImpactOutcome_Import-Export'!P$7:P$13,MATCH($A31,'ImpactOutcome_Import-Export'!$B$7:$B$13,0))),\"\"))","v":""},{"$f":"IF(B31=\"\",\"\",IFERROR(IF(INDEX('ImpactOutcome_Import-Export'!Q$7:Q$13,MATCH($A31,'ImpactOutcome_Import-Export'!$B$7:$B$13,0))=\"\",\"\",INDEX('ImpactOutcome_Import-Export'!Q$7:Q$13,MATCH($A31,'ImpactOutcome_Import-Export'!$B$7:$B$13,0))),\"\"))","v":""},{"$f":"IF(B31=\"\",\"\",IFERROR(IF(INDEX('ImpactOutcome_Import-Export'!R$7:R$13,MATCH($A31,'ImpactOutcome_Import-Export'!$B$7:$B$13,0))=\"\",\"\",INDEX('ImpactOutcome_Import-Export'!R$7:R$13,MATCH($A31,'ImpactOutcome_Import-Export'!$B$7:$B$13,0))),\"\"))","v":""},null,null,"",null,null,null,"",null,null,null,"",null,null,null,"",null,null,"",null,""]
[{"$f":"IFERROR(IF(INDEX(Impactlist,MATCH(0,INDEX(COUNTIF(A$10:A31,Impactlist),0,0),0))<>\"\",INDEX(Impactlist,MATCH(0,INDEX(COUNTIF(A$10:A31,Impactlist),0,0),0)),INDEX(Outcomelist,MATCH(0,INDEX(COUNTIF(A$10:A31,Outcomelist),0,0),0))),\"\")","v":""},{"$f":"IFERROR(INDEX('ImpactOutcome_Import-Export'!D$7:D$200,MATCH($A32,'ImpactOutcome_Import-Export'!$B$7:$B$200,0)),\"\")","v":""},{"$f":"IF(B32=\"\",\"\",IFERROR(INDEX('ImpactOutcome_Import-Export'!F$7:F$13,MATCH($A32,'ImpactOutcome_Import-Export'!$B$7:$B$13,0)),\"\"))","v":""},{"$f":"IF(B32=\"\",\"\",IFERROR(IF(INDEX('ImpactOutcome_Import-Export'!K$7:K$13,MATCH($A32,'ImpactOutcome_Import-Export'!$B$7:$B$13,0))=\"\",\"\",INDEX('ImpactOutcome_Import-Export'!K$7:K$13,MATCH($A32,'ImpactOutcome_Import-Export'!$B$7:$B$13,0))),\"\"))","v":""},{"$f":"IF(B32=\"\",\"\",IFERROR(IF(INDEX('ImpactOutcome_Import-Export'!L$7:L$13,MATCH($A32,'ImpactOutcome_Import-Export'!$B$7:$B$13,0))=\"\",\"\",INDEX('ImpactOutcome_Import-Export'!L$7:L$13,MATCH($A32,'ImpactOutcome_Import-Export'!$B$7:$B$13,0))),\"\"))","v":""},{"$f":"IF(B32=\"\",\"\",IFERROR(IF(INDEX('ImpactOutcome_Import-Export'!M$7:M$13,MATCH($A32,'ImpactOutcome_Import-Export'!$B$7:$B$13,0))=\"\",\"\",INDEX('ImpactOutcome_Import-Export'!M$7:M$13,MATCH($A32,'ImpactOutcome_Import-Export'!$B$7:$B$13,0))),\"\"))","v":""},{"$f":"IF(B32=\"\",\"\",IFERROR(IF(INDEX('ImpactOutcome_Import-Export'!N$7:N$13,MATCH($A32,'ImpactOutcome_Import-Export'!$B$7:$B$13,0))=\"\",\"\",INDEX('ImpactOutcome_Import-Export'!N$7:N$13,MATCH($A32,'ImpactOutcome_Import-Export'!$B$7:$B$13,0))),\"\"))","v":""},{"$f":"IF(B32=\"\",\"\",IFERROR(IF(INDEX('ImpactOutcome_Import-Export'!O$7:O$13,MATCH($A32,'ImpactOutcome_Import-Export'!$B$7:$B$13,0))=\"\",\"\",INDEX('ImpactOutcome_Import-Export'!O$7:O$13,MATCH($A32,'ImpactOutcome_Import-Export'!$B$7:$B$13,0))),\"\"))","v":""},{"$f":"IF(B32=\"\",\"\",IFERROR(IF(INDEX('ImpactOutcome_Import-Export'!P$7:P$13,MATCH($A32,'ImpactOutcome_Import-Export'!$B$7:$B$13,0))=\"\",\"\",INDEX('ImpactOutcome_Import-Export'!P$7:P$13,MATCH($A32,'ImpactOutcome_Import-Export'!$B$7:$B$13,0))),\"\"))","v":""},{"$f":"IF(B32=\"\",\"\",IFERROR(IF(INDEX('ImpactOutcome_Import-Export'!Q$7:Q$13,MATCH($A32,'ImpactOutcome_Import-Export'!$B$7:$B$13,0))=\"\",\"\",INDEX('ImpactOutcome_Import-Export'!Q$7:Q$13,MATCH($A32,'ImpactOutcome_Import-Export'!$B$7:$B$13,0))),\"\"))","v":""},{"$f":"IF(B32=\"\",\"\",IFERROR(IF(INDEX('ImpactOutcome_Import-Export'!R$7:R$13,MATCH($A32,'ImpactOutcome_Import-Export'!$B$7:$B$13,0))=\"\",\"\",INDEX('ImpactOutcome_Import-Export'!R$7:R$13,MATCH($A32,'ImpactOutcome_Import-Export'!$B$7:$B$13,0))),\"\"))","v":""},null,null,"",null,null,null,"",null,null,null,"",null,null,null,"",null,null,"",null,""]
[{"$f":"IFERROR(IF(INDEX(Impactlist,MATCH(0,INDEX(COUNTIF(A$10:A32,Impactlist),0,0),0))<>\"\",INDEX(Impactlist,MATCH(0,INDEX(COUNTIF(A$10:A32,Impactlist),0,0),0)),INDEX(Outcomelist,MATCH(0,INDEX(COUNTIF(A$10:A32,Outcomelist),0,0),0))),\"\")","v":""},{"$f":"IFERROR(INDEX('ImpactOutcome_Import-Export'!D$7:D$200,MATCH($A33,'ImpactOutcome_Import-Export'!$B$7:$B$200,0)),\"\")","v":""},{"$f":"IF(B33=\"\",\"\",IFERROR(INDEX('ImpactOutcome_Import-Export'!F$7:F$13,MATCH($A33,'ImpactOutcome_Import-Export'!$B$7:$B$13,0)),\"\"))","v":""},{"$f":"IF(B33=\"\",\"\",IFERROR(IF(INDEX('ImpactOutcome_Import-Export'!K$7:K$13,MATCH($A33,'ImpactOutcome_Import-Export'!$B$7:$B$13,0))=\"\",\"\",INDEX('ImpactOutcome_Import-Export'!K$7:K$13,MATCH($A33,'ImpactOutcome_Import-Export'!$B$7:$B$13,0))),\"\"))","v":""},{"$f":"IF(B33=\"\",\"\",IFERROR(IF(INDEX('ImpactOutcome_Import-Export'!L$7:L$13,MATCH($A33,'ImpactOutcome_Import-Export'!$B$7:$B$13,0))=\"\",\"\",INDEX('ImpactOutcome_Import-Export'!L$7:L$13,MATCH($A33,'ImpactOutcome_Import-Export'!$B$7:$B$13,0))),\"\"))","v":""},{"$f":"IF(B33=\"\",\"\",IFERROR(IF(INDEX('ImpactOutcome_Import-Export'!M$7:M$13,MATCH($A33,'ImpactOutcome_Import-Export'!$B$7:$B$13,0))=\"\",\"\",INDEX('ImpactOutcome_Import-Export'!M$7:M$13,MATCH($A33,'ImpactOutcome_Import-Export'!$B$7:$B$13,0))),\"\"))","v":""},{"$f":"IF(B33=\"\",\"\",IFERROR(IF(INDEX('ImpactOutcome_Import-Export'!N$7:N$13,MATCH($A33,'ImpactOutcome_Import-Export'!$B$7:$B$13,0))=\"\",\"\",INDEX('ImpactOutcome_Import-Export'!N$7:N$13,MATCH($A33,'ImpactOutcome_Import-Export'!$B$7:$B$13,0))),\"\"))","v":""},{"$f":"IF(B33=\"\",\"\",IFERROR(IF(INDEX('ImpactOutcome_Import-Export'!O$7:O$13,MATCH($A33,'ImpactOutcome_Import-Export'!$B$7:$B$13,0))=\"\",\"\",INDEX('ImpactOutcome_Import-Export'!O$7:O$13,MATCH($A33,'ImpactOutcome_Import-Export'!$B$7:$B$13,0))),\"\"))","v":""},{"$f":"IF(B33=\"\",\"\",IFERROR(IF(INDEX('ImpactOutcome_Import-Export'!P$7:P$13,MATCH($A33,'ImpactOutcome_Import-Export'!$B$7:$B$13,0))=\"\",\"\",INDEX('ImpactOutcome_Import-Export'!P$7:P$13,MATCH($A33,'ImpactOutcome_Import-Export'!$B$7:$B$13,0))),\"\"))","v":""},{"$f":"IF(B33=\"\",\"\",IFERROR(IF(INDEX('ImpactOutcome_Import-Export'!Q$7:Q$13,MATCH($A33,'ImpactOutcome_Import-Export'!$B$7:$B$13,0))=\"\",\"\",INDEX('ImpactOutcome_Import-Export'!Q$7:Q$13,MATCH($A33,'ImpactOutcome_Import-Export'!$B$7:$B$13,0))),\"\"))","v":""},{"$f":"IF(B33=\"\",\"\",IFERROR(IF(INDEX('ImpactOutcome_Import-Export'!R$7:R$13,MATCH($A33,'ImpactOutcome_Import-Export'!$B$7:$B$13,0))=\"\",\"\",INDEX('ImpactOutcome_Import-Export'!R$7:R$13,MATCH($A33,'ImpactOutcome_Import-Export'!$B$7:$B$13,0))),\"\"))","v":""},null,null,"",null,null,null,"",null,null,null,"",null,null,null,"",null,null,"",null,""]
[{"$f":"IFERROR(IF(INDEX(Impactlist,MATCH(0,INDEX(COUNTIF(A$10:A33,Impactlist),0,0),0))<>\"\",INDEX(Impactlist,MATCH(0,INDEX(COUNTIF(A$10:A33,Impactlist),0,0),0)),INDEX(Outcomelist,MATCH(0,INDEX(COUNTIF(A$10:A33,Outcomelist),0,0),0))),\"\")","v":""},{"$f":"IFERROR(INDEX('ImpactOutcome_Import-Export'!D$7:D$200,MATCH($A34,'ImpactOutcome_Import-Export'!$B$7:$B$200,0)),\"\")","v":""},{"$f":"IF(B34=\"\",\"\",IFERROR(INDEX('ImpactOutcome_Import-Export'!F$7:F$13,MATCH($A34,'ImpactOutcome_Import-Export'!$B$7:$B$13,0)),\"\"))","v":""},{"$f":"IF(B34=\"\",\"\",IFERROR(IF(INDEX('ImpactOutcome_Import-Export'!K$7:K$13,MATCH($A34,'ImpactOutcome_Import-Export'!$B$7:$B$13,0))=\"\",\"\",INDEX('ImpactOutcome_Import-Export'!K$7:K$13,MATCH($A34,'ImpactOutcome_Import-Export'!$B$7:$B$13,0))),\"\"))","v":""},{"$f":"IF(B34=\"\",\"\",IFERROR(IF(INDEX('ImpactOutcome_Import-Export'!L$7:L$13,MATCH($A34,'ImpactOutcome_Import-Export'!$B$7:$B$13,0))=\"\",\"\",INDEX('ImpactOutcome_Import-Export'!L$7:L$13,MATCH($A34,'ImpactOutcome_Import-Export'!$B$7:$B$13,0))),\"\"))","v":""},{"$f":"IF(B34=\"\",\"\",IFERROR(IF(INDEX('ImpactOutcome_Import-Export'!M$7:M$13,MATCH($A34,'ImpactOutcome_Import-Export'!$B$7:$B$13,0))=\"\",\"\",INDEX('ImpactOutcome_Import-Export'!M$7:M$13,MATCH($A34,'ImpactOutcome_Import-Export'!$B$7:$B$13,0))),\"\"))","v":""},{"$f":"IF(B34=\"\",\"\",IFERROR(IF(INDEX('ImpactOutcome_Import-Export'!N$7:N$13,MATCH($A34,'ImpactOutcome_Import-Export'!$B$7:$B$13,0))=\"\",\"\",INDEX('ImpactOutcome_Import-Export'!N$7:N$13,MATCH($A34,'ImpactOutcome_Import-Export'!$B$7:$B$13,0))),\"\"))","v":""},{"$f":"IF(B34=\"\",\"\",IFERROR(IF(INDEX('ImpactOutcome_Import-Export'!O$7:O$13,MATCH($A34,'ImpactOutcome_Import-Export'!$B$7:$B$13,0))=\"\",\"\",INDEX('ImpactOutcome_Import-Export'!O$7:O$13,MATCH($A34,'ImpactOutcome_Import-Export'!$B$7:$B$13,0))),\"\"))","v":""},{"$f":"IF(B34=\"\",\"\",IFERROR(IF(INDEX('ImpactOutcome_Import-Export'!P$7:P$13,MATCH($A34,'ImpactOutcome_Import-Export'!$B$7:$B$13,0))=\"\",\"\",INDEX('ImpactOutcome_Import-Export'!P$7:P$13,MATCH($A34,'ImpactOutcome_Import-Export'!$B$7:$B$13,0))),\"\"))","v":""},{"$f":"IF(B34=\"\",\"\",IFERROR(IF(INDEX('ImpactOutcome_Import-Export'!Q$7:Q$13,MATCH($A34,'ImpactOutcome_Import-Export'!$B$7:$B$13,0))=\"\",\"\",INDEX('ImpactOutcome_Import-Export'!Q$7:Q$13,MATCH($A34,'ImpactOutcome_Import-Export'!$B$7:$B$13,0))),\"\"))","v":""},{"$f":"IF(B34=\"\",\"\",IFERROR(IF(INDEX('ImpactOutcome_Import-Export'!R$7:R$13,MATCH($A34,'ImpactOutcome_Import-Export'!$B$7:$B$13,0))=\"\",\"\",INDEX('ImpactOutcome_Import-Export'!R$7:R$13,MATCH($A34,'ImpactOutcome_Import-Export'!$B$7:$B$13,0))),\"\"))","v":""},null,null,"",null,null,null,"",null,null,null,"",null,null,null,"",null,null,"",null,""]
[{"$f":"IFERROR(IF(INDEX(Impactlist,MATCH(0,INDEX(COUNTIF(A$10:A34,Impactlist),0,0),0))<>\"\",INDEX(Impactlist,MATCH(0,INDEX(COUNTIF(A$10:A34,Impactlist),0,0),0)),INDEX(Outcomelist,MATCH(0,INDEX(COUNTIF(A$10:A34,Outcomelist),0,0),0))),\"\")","v":""},{"$f":"IFERROR(INDEX('ImpactOutcome_Import-Export'!D$7:D$200,MATCH($A35,'ImpactOutcome_Import-Export'!$B$7:$B$200,0)),\"\")","v":""},{"$f":"IF(B35=\"\",\"\",IFERROR(INDEX('ImpactOutcome_Import-Export'!F$7:F$13,MATCH($A35,'ImpactOutcome_Import-Export'!$B$7:$B$13,0)),\"\"))","v":""},{"$f":"IF(B35=\"\",\"\",IFERROR(IF(INDEX('ImpactOutcome_Import-Export'!K$7:K$13,MATCH($A35,'ImpactOutcome_Import-Export'!$B$7:$B$13,0))=\"\",\"\",INDEX('ImpactOutcome_Import-Export'!K$7:K$13,MATCH($A35,'ImpactOutcome_Import-Export'!$B$7:$B$13,0))),\"\"))","v":""},{"$f":"IF(B35=\"\",\"\",IFERROR(IF(INDEX('ImpactOutcome_Import-Export'!L$7:L$13,MATCH($A35,'ImpactOutcome_Import-Export'!$B$7:$B$13,0))=\"\",\"\",INDEX('ImpactOutcome_Import-Export'!L$7:L$13,MATCH($A35,'ImpactOutcome_Import-Export'!$B$7:$B$13,0))),\"\"))","v":""},{"$f":"IF(B35=\"\",\"\",IFERROR(IF(INDEX('ImpactOutcome_Import-Export'!M$7:M$13,MATCH($A35,'ImpactOutcome_Import-Export'!$B$7:$B$13,0))=\"\",\"\",INDEX('ImpactOutcome_Import-Export'!M$7:M$13,MATCH($A35,'ImpactOutcome_Import-Export'!$B$7:$B$13,0))),\"\"))","v":""},{"$f":"IF(B35=\"\",\"\",IFERROR(IF(INDEX('ImpactOutcome_Import-Export'!N$7:N$13,MATCH($A35,'ImpactOutcome_Import-Export'!$B$7:$B$13,0))=\"\",\"\",INDEX('ImpactOutcome_Import-Export'!N$7:N$13,MATCH($A35,'ImpactOutcome_Import-Export'!$B$7:$B$13,0))),\"\"))","v":""},{"$f":"IF(B35=\"\",\"\",IFERROR(IF(INDEX('ImpactOutcome_Import-Export'!O$7:O$13,MATCH($A35,'ImpactOutcome_Import-Export'!$B$7:$B$13,0))=\"\",\"\",INDEX('ImpactOutcome_Import-Export'!O$7:O$13,MATCH($A35,'ImpactOutcome_Import-Export'!$B$7:$B$13,0))),\"\"))","v":""},{"$f":"IF(B35=\"\",\"\",IFERROR(IF(INDEX('ImpactOutcome_Import-Export'!P$7:P$13,MATCH($A35,'ImpactOutcome_Import-Export'!$B$7:$B$13,0))=\"\",\"\",INDEX('ImpactOutcome_Import-Export'!P$7:P$13,MATCH($A35,'ImpactOutcome_Import-Export'!$B$7:$B$13,0))),\"\"))","v":""},{"$f":"IF(B35=\"\",\"\",IFERROR(IF(INDEX('ImpactOutcome_Import-Export'!Q$7:Q$13,MATCH($A35,'ImpactOutcome_Import-Export'!$B$7:$B$13,0))=\"\",\"\",INDEX('ImpactOutcome_Import-Export'!Q$7:Q$13,MATCH($A35,'ImpactOutcome_Import-Export'!$B$7:$B$13,0))),\"\"))","v":""},{"$f":"IF(B35=\"\",\"\",IFERROR(IF(INDEX('ImpactOutcome_Import-Export'!R$7:R$13,MATCH($A35,'ImpactOutcome_Import-Export'!$B$7:$B$13,0))=\"\",\"\",INDEX('ImpactOutcome_Import-Export'!R$7:R$13,MATCH($A35,'ImpactOutcome_Import-Export'!$B$7:$B$13,0))),\"\"))","v":""},null,null,"",null,null,null,"",null,null,null,"",null,null,null,"",null,null,"",null,""]
[{"$f":"IFERROR(IF(INDEX(Impactlist,MATCH(0,INDEX(COUNTIF(A$10:A35,Impactlist),0,0),0))<>\"\",INDEX(Impactlist,MATCH(0,INDEX(COUNTIF(A$10:A35,Impactlist),0,0),0)),INDEX(Outcomelist,MATCH(0,INDEX(COUNTIF(A$10:A35,Outcomelist),0,0),0))),\"\")","v":""},{"$f":"IFERROR(INDEX('ImpactOutcome_Import-Export'!D$7:D$200,MATCH($A36,'ImpactOutcome_Import-Export'!$B$7:$B$200,0)),\"\")","v":""},{"$f":"IF(B36=\"\",\"\",IFERROR(INDEX('ImpactOutcome_Import-Export'!F$7:F$13,MATCH($A36,'ImpactOutcome_Import-Export'!$B$7:$B$13,0)),\"\"))","v":""},{"$f":"IF(B36=\"\",\"\",IFERROR(IF(INDEX('ImpactOutcome_Import-Export'!K$7:K$13,MATCH($A36,'ImpactOutcome_Import-Export'!$B$7:$B$13,0))=\"\",\"\",INDEX('ImpactOutcome_Import-Export'!K$7:K$13,MATCH($A36,'ImpactOutcome_Import-Export'!$B$7:$B$13,0))),\"\"))","v":""},{"$f":"IF(B36=\"\",\"\",IFERROR(IF(INDEX('ImpactOutcome_Import-Export'!L$7:L$13,MATCH($A36,'ImpactOutcome_Import-Export'!$B$7:$B$13,0))=\"\",\"\",INDEX('ImpactOutcome_Import-Export'!L$7:L$13,MATCH($A36,'ImpactOutcome_Import-Export'!$B$7:$B$13,0))),\"\"))","v":""},{"$f":"IF(B36=\"\",\"\",IFERROR(IF(INDEX('ImpactOutcome_Import-Export'!M$7:M$13,MATCH($A36,'ImpactOutcome_Import-Export'!$B$7:$B$13,0))=\"\",\"\",INDEX('ImpactOutcome_Import-Export'!M$7:M$13,MATCH($A36,'ImpactOutcome_Import-Export'!$B$7:$B$13,0))),\"\"))","v":""},{"$f":"IF(B36=\"\",\"\",IFERROR(IF(INDEX('ImpactOutcome_Import-Export'!N$7:N$13,MATCH($A36,'ImpactOutcome_Import-Export'!$B$7:$B$13,0))=\"\",\"\",INDEX('ImpactOutcome_Import-Export'!N$7:N$13,MATCH($A36,'ImpactOutcome_Import-Export'!$B$7:$B$13,0))),\"\"))","v":""},{"$f":"IF(B36=\"\",\"\",IFERROR(IF(INDEX('ImpactOutcome_Import-Export'!O$7:O$13,MATCH($A36,'ImpactOutcome_Import-Export'!$B$7:$B$13,0))=\"\",\"\",INDEX('ImpactOutcome_Import-Export'!O$7:O$13,MATCH($A36,'ImpactOutcome_Import-Export'!$B$7:$B$13,0))),\"\"))","v":""},{"$f":"IF(B36=\"\",\"\",IFERROR(IF(INDEX('ImpactOutcome_Import-Export'!P$7:P$13,MATCH($A36,'ImpactOutcome_Import-Export'!$B$7:$B$13,0))=\"\",\"\",INDEX('ImpactOutcome_Import-Export'!P$7:P$13,MATCH($A36,'ImpactOutcome_Import-Export'!$B$7:$B$13,0))),\"\"))","v":""},{"$f":"IF(B36=\"\",\"\",IFERROR(IF(INDEX('ImpactOutcome_Import-Export'!Q$7:Q$13,MATCH($A36,'ImpactOutcome_Import-Export'!$B$7:$B$13,0))=\"\",\"\",INDEX('ImpactOutcome_Import-Export'!Q$7:Q$13,MATCH($A36,'ImpactOutcome_Import-Export'!$B$7:$B$13,0))),\"\"))","v":""},{"$f":"IF(B36=\"\",\"\",IFERROR(IF(INDEX('ImpactOutcome_Import-Export'!R$7:R$13,MATCH($A36,'ImpactOutcome_Import-Export'!$B$7:$B$13,0))=\"\",\"\",INDEX('ImpactOutcome_Import-Export'!R$7:R$13,MATCH($A36,'ImpactOutcome_Import-Export'!$B$7:$B$13,0))),\"\"))","v":""},null,null,"",null,null,null,"",null,null,null,"",null,null,null,"",null,null,"",null,""]
[{"$f":"IFERROR(IF(INDEX(Impactlist,MATCH(0,INDEX(COUNTIF(A$10:A36,Impactlist),0,0),0))<>\"\",INDEX(Impactlist,MATCH(0,INDEX(COUNTIF(A$10:A36,Impactlist),0,0),0)),INDEX(Outcomelist,MATCH(0,INDEX(COUNTIF(A$10:A36,Outcomelist),0,0),0))),\"\")","v":""},{"$f":"IFERROR(INDEX('ImpactOutcome_Import-Export'!D$7:D$200,MATCH($A37,'ImpactOutcome_Import-Export'!$B$7:$B$200,0)),\"\")","v":""},{"$f":"IF(B37=\"\",\"\",IFERROR(INDEX('ImpactOutcome_Import-Export'!F$7:F$13,MATCH($A37,'ImpactOutcome_Import-Export'!$B$7:$B$13,0)),\"\"))","v":""},{"$f":"IF(B37=\"\",\"\",IFERROR(IF(INDEX('ImpactOutcome_Import-Export'!K$7:K$13,MATCH($A37,'ImpactOutcome_Import-Export'!$B$7:$B$13,0))=\"\",\"\",INDEX('ImpactOutcome_Import-Export'!K$7:K$13,MATCH($A37,'ImpactOutcome_Import-Export'!$B$7:$B$13,0))),\"\"))","v":""},{"$f":"IF(B37=\"\",\"\",IFERROR(IF(INDEX('ImpactOutcome_Import-Export'!L$7:L$13,MATCH($A37,'ImpactOutcome_Import-Export'!$B$7:$B$13,0))=\"\",\"\",INDEX('ImpactOutcome_Import-Export'!L$7:L$13,MATCH($A37,'ImpactOutcome_Import-Export'!$B$7:$B$13,0))),\"\"))","v":""},{"$f":"IF(B37=\"\",\"\",IFERROR(IF(INDEX('ImpactOutcome_Import-Export'!M$7:M$13,MATCH($A37,'ImpactOutcome_Import-Export'!$B$7:$B$13,0))=\"\",\"\",INDEX('ImpactOutcome_Import-Export'!M$7:M$13,MATCH($A37,'ImpactOutcome_Import-Export'!$B$7:$B$13,0))),\"\"))","v":""},{"$f":"IF(B37=\"\",\"\",IFERROR(IF(INDEX('ImpactOutcome_Import-Export'!N$7:N$13,MATCH($A37,'ImpactOutcome_Import-Export'!$B$7:$B$13,0))=\"\",\"\",INDEX('ImpactOutcome_Import-Export'!N$7:N$13,MATCH($A37,'ImpactOutcome_Import-Export'!$B$7:$B$13,0))),\"\"))","v":""},{"$f":"IF(B37=\"\",\"\",IFERROR(IF(INDEX('ImpactOutcome_Import-Export'!O$7:O$13,MATCH($A37,'ImpactOutcome_Import-Export'!$B$7:$B$13,0))=\"\",\"\",INDEX('ImpactOutcome_Import-Export'!O$7:O$13,MATCH($A37,'ImpactOutcome_Import-Export'!$B$7:$B$13,0))),\"\"))","v":""},{"$f":"IF(B37=\"\",\"\",IFERROR(IF(INDEX('ImpactOutcome_Import-Export'!P$7:P$13,MATCH($A37,'ImpactOutcome_Import-Export'!$B$7:$B$13,0))=\"\",\"\",INDEX('ImpactOutcome_Import-Export'!P$7:P$13,MATCH($A37,'ImpactOutcome_Import-Export'!$B$7:$B$13,0))),\"\"))","v":""},{"$f":"IF(B37=\"\",\"\",IFERROR(IF(INDEX('ImpactOutcome_Import-Export'!Q$7:Q$13,MATCH($A37,'ImpactOutcome_Import-Export'!$B$7:$B$13,0))=\"\",\"\",INDEX('ImpactOutcome_Import-Export'!Q$7:Q$13,MATCH($A37,'ImpactOutcome_Import-Export'!$B$7:$B$13,0))),\"\"))","v":""},{"$f":"IF(B37=\"\",\"\",IFERROR(IF(INDEX('ImpactOutcome_Import-Export'!R$7:R$13,MATCH($A37,'ImpactOutcome_Import-Export'!$B$7:$B$13,0))=\"\",\"\",INDEX('ImpactOutcome_Import-Export'!R$7:R$13,MATCH($A37,'ImpactOutcome_Import-Export'!$B$7:$B$13,0))),\"\"))","v":""},null,null,"",null,null,null,"",null,null,null,"",null,null,null,"",null,null,"",null,""]
[{"$f":"IFERROR(IF(INDEX(Impactlist,MATCH(0,INDEX(COUNTIF(A$10:A37,Impactlist),0,0),0))<>\"\",INDEX(Impactlist,MATCH(0,INDEX(COUNTIF(A$10:A37,Impactlist),0,0),0)),INDEX(Outcomelist,MATCH(0,INDEX(COUNTIF(A$10:A37,Outcomelist),0,0),0))),\"\")","v":""},{"$f":"IFERROR(INDEX('ImpactOutcome_Import-Export'!D$7:D$200,MATCH($A38,'ImpactOutcome_Import-Export'!$B$7:$B$200,0)),\"\")","v":""},{"$f":"IF(B38=\"\",\"\",IFERROR(INDEX('ImpactOutcome_Import-Export'!F$7:F$13,MATCH($A38,'ImpactOutcome_Import-Export'!$B$7:$B$13,0)),\"\"))","v":""},{"$f":"IF(B38=\"\",\"\",IFERROR(IF(INDEX('ImpactOutcome_Import-Export'!K$7:K$13,MATCH($A38,'ImpactOutcome_Import-Export'!$B$7:$B$13,0))=\"\",\"\",INDEX('ImpactOutcome_Import-Export'!K$7:K$13,MATCH($A38,'ImpactOutcome_Import-Export'!$B$7:$B$13,0))),\"\"))","v":""},{"$f":"IF(B38=\"\",\"\",IFERROR(IF(INDEX('ImpactOutcome_Import-Export'!L$7:L$13,MATCH($A38,'ImpactOutcome_Import-Export'!$B$7:$B$13,0))=\"\",\"\",INDEX('ImpactOutcome_Import-Export'!L$7:L$13,MATCH($A38,'ImpactOutcome_Import-Export'!$B$7:$B$13,0))),\"\"))","v":""},{"$f":"IF(B38=\"\",\"\",IFERROR(IF(INDEX('ImpactOutcome_Import-Export'!M$7:M$13,MATCH($A38,'ImpactOutcome_Import-Export'!$B$7:$B$13,0))=\"\",\"\",INDEX('ImpactOutcome_Import-Export'!M$7:M$13,MATCH($A38,'ImpactOutcome_Import-Export'!$B$7:$B$13,0))),\"\"))","v":""},{"$f":"IF(B38=\"\",\"\",IFERROR(IF(INDEX('ImpactOutcome_Import-Export'!N$7:N$13,MATCH($A38,'ImpactOutcome_Import-Export'!$B$7:$B$13,0))=\"\",\"\",INDEX('ImpactOutcome_Import-Export'!N$7:N$13,MATCH($A38,'ImpactOutcome_Import-Export'!$B$7:$B$13,0))),\"\"))","v":""},{"$f":"IF(B38=\"\",\"\",IFERROR(IF(INDEX('ImpactOutcome_Import-Export'!O$7:O$13,MATCH($A38,'ImpactOutcome_Import-Export'!$B$7:$B$13,0))=\"\",\"\",INDEX('ImpactOutcome_Import-Export'!O$7:O$13,MATCH($A38,'ImpactOutcome_Import-Export'!$B$7:$B$13,0))),\"\"))","v":""},{"$f":"IF(B38=\"\",\"\",IFERROR(IF(INDEX('ImpactOutcome_Import-Export'!P$7:P$13,MATCH($A38,'ImpactOutcome_Import-Export'!$B$7:$B$13,0))=\"\",\"\",INDEX('ImpactOutcome_Import-Export'!P$7:P$13,MATCH($A38,'ImpactOutcome_Import-Export'!$B$7:$B$13,0))),\"\"))","v":""},{"$f":"IF(B38=\"\",\"\",IFERROR(IF(INDEX('ImpactOutcome_Import-Export'!Q$7:Q$13,MATCH($A38,'ImpactOutcome_Import-Export'!$B$7:$B$13,0))=\"\",\"\",INDEX('ImpactOutcome_Import-Export'!Q$7:Q$13,MATCH($A38,'ImpactOutcome_Import-Export'!$B$7:$B$13,0))),\"\"))","v":""},{"$f":"IF(B38=\"\",\"\",IFERROR(IF(INDEX('ImpactOutcome_Import-Export'!R$7:R$13,MATCH($A38,'ImpactOutcome_Import-Export'!$B$7:$B$13,0))=\"\",\"\",INDEX('ImpactOutcome_Import-Export'!R$7:R$13,MATCH($A38,'ImpactOutcome_Import-Export'!$B$7:$B$13,0))),\"\"))","v":""},null,null,"",null,null,null,"",null,null,null,"",null,null,null,"",null,null,"",null,""]
[{"$f":"IFERROR(IF(INDEX(Impactlist,MATCH(0,INDEX(COUNTIF(A$10:A38,Impactlist),0,0),0))<>\"\",INDEX(Impactlist,MATCH(0,INDEX(COUNTIF(A$10:A38,Impactlist),0,0),0)),INDEX(Outcomelist,MATCH(0,INDEX(COUNTIF(A$10:A38,Outcomelist),0,0),0))),\"\")","v":""},{"$f":"IFERROR(INDEX('ImpactOutcome_Import-Export'!D$7:D$200,MATCH($A39,'ImpactOutcome_Import-Export'!$B$7:$B$200,0)),\"\")","v":""},{"$f":"IF(B39=\"\",\"\",IFERROR(INDEX('ImpactOutcome_Import-Export'!F$7:F$13,MATCH($A39,'ImpactOutcome_Import-Export'!$B$7:$B$13,0)),\"\"))","v":""},{"$f":"IF(B39=\"\",\"\",IFERROR(IF(INDEX('ImpactOutcome_Import-Export'!K$7:K$13,MATCH($A39,'ImpactOutcome_Import-Export'!$B$7:$B$13,0))=\"\",\"\",INDEX('ImpactOutcome_Import-Export'!K$7:K$13,MATCH($A39,'ImpactOutcome_Import-Export'!$B$7:$B$13,0))),\"\"))","v":""},{"$f":"IF(B39=\"\",\"\",IFERROR(IF(INDEX('ImpactOutcome_Import-Export'!L$7:L$13,MATCH($A39,'ImpactOutcome_Import-Export'!$B$7:$B$13,0))=\"\",\"\",INDEX('ImpactOutcome_Import-Export'!L$7:L$13,MATCH($A39,'ImpactOutcome_Import-Export'!$B$7:$B$13,0))),\"\"))","v":""},{"$f":"IF(B39=\"\",\"\",IFERROR(IF(INDEX('ImpactOutcome_Import-Export'!M$7:M$13,MATCH($A39,'ImpactOutcome_Import-Export'!$B$7:$B$13,0))=\"\",\"\",INDEX('ImpactOutcome_Import-Export'!M$7:M$13,MATCH($A39,'ImpactOutcome_Import-Export'!$B$7:$B$13,0))),\"\"))","v":""},{"$f":"IF(B39=\"\",\"\",IFERROR(IF(INDEX('ImpactOutcome_Import-Export'!N$7:N$13,MATCH($A39,'ImpactOutcome_Import-Export'!$B$7:$B$13,0))=\"\",\"\",INDEX('ImpactOutcome_Import-Export'!N$7:N$13,MATCH($A39,'ImpactOutcome_Import-Export'!$B$7:$B$13,0))),\"\"))","v":""},{"$f":"IF(B39=\"\",\"\",IFERROR(IF(INDEX('ImpactOutcome_Import-Export'!O$7:O$13,MATCH($A39,'ImpactOutcome_Import-Export'!$B$7:$B$13,0))=\"\",\"\",INDEX('ImpactOutcome_Import-Export'!O$7:O$13,MATCH($A39,'ImpactOutcome_Import-Export'!$B$7:$B$13,0))),\"\"))","v":""},{"$f":"IF(B39=\"\",\"\",IFERROR(IF(INDEX('ImpactOutcome_Import-Export'!P$7:P$13,MATCH($A39,'ImpactOutcome_Import-Export'!$B$7:$B$13,0))=\"\",\"\",INDEX('ImpactOutcome_Import-Export'!P$7:P$13,MATCH($A39,'ImpactOutcome_Import-Export'!$B$7:$B$13,0))),\"\"))","v":""},{"$f":"IF(B39=\"\",\"\",IFERROR(IF(INDEX('ImpactOutcome_Import-Export'!Q$7:Q$13,MATCH($A39,'ImpactOutcome_Import-Export'!$B$7:$B$13,0))=\"\",\"\",INDEX('ImpactOutcome_Import-Export'!Q$7:Q$13,MATCH($A39,'ImpactOutcome_Import-Export'!$B$7:$B$13,0))),\"\"))","v":""},{"$f":"IF(B39=\"\",\"\",IFERROR(IF(INDEX('ImpactOutcome_Import-Export'!R$7:R$13,MATCH($A39,'ImpactOutcome_Import-Export'!$B$7:$B$13,0))=\"\",\"\",INDEX('ImpactOutcome_Import-Export'!R$7:R$13,MATCH($A39,'ImpactOutcome_Import-Export'!$B$7:$B$13,0))),\"\"))","v":""},null,null,"",null,null,null,"",null,null,null,"",null,null,null,"",null,null,"",null,""]
[{"$f":"IFERROR(IF(INDEX(Impactlist,MATCH(0,INDEX(COUNTIF(A$10:A39,Impactlist),0,0),0))<>\"\",INDEX(Impactlist,MATCH(0,INDEX(COUNTIF(A$10:A39,Impactlist),0,0),0)),INDEX(Outcomelist,MATCH(0,INDEX(COUNTIF(A$10:A39,Outcomelist),0,0),0))),\"\")","v":""},{"$f":"IFERROR(INDEX('ImpactOutcome_Import-Export'!D$7:D$200,MATCH($A40,'ImpactOutcome_Import-Export'!$B$7:$B$200,0)),\"\")","v":""},{"$f":"IF(B40=\"\",\"\",IFERROR(INDEX('ImpactOutcome_Import-Export'!F$7:F$13,MATCH($A40,'ImpactOutcome_Import-Export'!$B$7:$B$13,0)),\"\"))","v":""},{"$f":"IF(B40=\"\",\"\",IFERROR(IF(INDEX('ImpactOutcome_Import-Export'!K$7:K$13,MATCH($A40,'ImpactOutcome_Import-Export'!$B$7:$B$13,0))=\"\",\"\",INDEX('ImpactOutcome_Import-Export'!K$7:K$13,MATCH($A40,'ImpactOutcome_Import-Export'!$B$7:$B$13,0))),\"\"))","v":""},{"$f":"IF(B40=\"\",\"\",IFERROR(IF(INDEX('ImpactOutcome_Import-Export'!L$7:L$13,MATCH($A40,'ImpactOutcome_Import-Export'!$B$7:$B$13,0))=\"\",\"\",INDEX('ImpactOutcome_Import-Export'!L$7:L$13,MATCH($A40,'ImpactOutcome_Import-Export'!$B$7:$B$13,0))),\"\"))","v":""},{"$f":"IF(B40=\"\",\"\",IFERROR(IF(INDEX('ImpactOutcome_Import-Export'!M$7:M$13,MATCH($A40,'ImpactOutcome_Import-Export'!$B$7:$B$13,0))=\"\",\"\",INDEX('ImpactOutcome_Import-Export'!M$7:M$13,MATCH($A40,'ImpactOutcome_Import-Export'!$B$7:$B$13,0))),\"\"))","v":""},{"$f":"IF(B40=\"\",\"\",IFERROR(IF(INDEX('ImpactOutcome_Import-Export'!N$7:N$13,MATCH($A40,'ImpactOutcome_Import-Export'!$B$7:$B$13,0))=\"\",\"\",INDEX('ImpactOutcome_Import-Export'!N$7:N$13,MATCH($A40,'ImpactOutcome_Import-Export'!$B$7:$B$13,0))),\"\"))","v":""},{"$f":"IF(B40=\"\",\"\",IFERROR(IF(INDEX('ImpactOutcome_Import-Export'!O$7:O$13,MATCH($A40,'ImpactOutcome_Import-Export'!$B$7:$B$13,0))=\"\",\"\",INDEX('ImpactOutcome_Import-Export'!O$7:O$13,MATCH($A40,'ImpactOutcome_Import-Export'!$B$7:$B$13,0))),\"\"))","v":""},{"$f":"IF(B40=\"\",\"\",IFERROR(IF(INDEX('ImpactOutcome_Import-Export'!P$7:P$13,MATCH($A40,'ImpactOutcome_Import-Export'!$B$7:$B$13,0))=\"\",\"\",INDEX('ImpactOutcome_Import-Export'!P$7:P$13,MATCH($A40,'ImpactOutcome_Import-Export'!$B$7:$B$13,0))),\"\"))","v":""},{"$f":"IF(B40=\"\",\"\",IFERROR(IF(INDEX('ImpactOutcome_Import-Export'!Q$7:Q$13,MATCH($A40,'ImpactOutcome_Import-Export'!$B$7:$B$13,0))=\"\",\"\",INDEX('ImpactOutcome_Import-Export'!Q$7:Q$13,MATCH($A40,'ImpactOutcome_Import-Export'!$B$7:$B$13,0))),\"\"))","v":""},{"$f":"IF(B40=\"\",\"\",IFERROR(IF(INDEX('ImpactOutcome_Import-Export'!R$7:R$13,MATCH($A40,'ImpactOutcome_Import-Export'!$B$7:$B$13,0))=\"\",\"\",INDEX('ImpactOutcome_Import-Export'!R$7:R$13,MATCH($A40,'ImpactOutcome_Import-Export'!$B$7:$B$13,0))),\"\"))","v":""},null,null,"",null,null,null,"",null,null,null,"",null,null,null,"",null,null,"",null,""]
[{"$f":"IFERROR(IF(INDEX(Impactlist,MATCH(0,INDEX(COUNTIF(A$10:A40,Impactlist),0,0),0))<>\"\",INDEX(Impactlist,MATCH(0,INDEX(COUNTIF(A$10:A40,Impactlist),0,0),0)),INDEX(Outcomelist,MATCH(0,INDEX(COUNTIF(A$10:A40,Outcomelist),0,0),0))),\"\")","v":""},{"$f":"IFERROR(INDEX('ImpactOutcome_Import-Export'!D$7:D$200,MATCH($A41,'ImpactOutcome_Import-Export'!$B$7:$B$200,0)),\"\")","v":""},{"$f":"IF(B41=\"\",\"\",IFERROR(INDEX('ImpactOutcome_Import-Export'!F$7:F$13,MATCH($A41,'ImpactOutcome_Import-Export'!$B$7:$B$13,0)),\"\"))","v":""},{"$f":"IF(B41=\"\",\"\",IFERROR(IF(INDEX('ImpactOutcome_Import-Export'!K$7:K$13,MATCH($A41,'ImpactOutcome_Import-Export'!$B$7:$B$13,0))=\"\",\"\",INDEX('ImpactOutcome_Import-Export'!K$7:K$13,MATCH($A41,'ImpactOutcome_Import-Export'!$B$7:$B$13,0))),\"\"))","v":""},{"$f":"IF(B41=\"\",\"\",IFERROR(IF(INDEX('ImpactOutcome_Import-Export'!L$7:L$13,MATCH($A41,'ImpactOutcome_Import-Export'!$B$7:$B$13,0))=\"\",\"\",INDEX('ImpactOutcome_Import-Export'!L$7:L$13,MATCH($A41,'ImpactOutcome_Import-Export'!$B$7:$B$13,0))),\"\"))","v":""},{"$f":"IF(B41=\"\",\"\",IFERROR(IF(INDEX('ImpactOutcome_Import-Export'!M$7:M$13,MATCH($A41,'ImpactOutcome_Import-Export'!$B$7:$B$13,0))=\"\",\"\",INDEX('ImpactOutcome_Import-Export'!M$7:M$13,MATCH($A41,'ImpactOutcome_Import-Export'!$B$7:$B$13,0))),\"\"))","v":""},{"$f":"IF(B41=\"\",\"\",IFERROR(IF(INDEX('ImpactOutcome_Import-Export'!N$7:N$13,MATCH($A41,'ImpactOutcome_Import-Export'!$B$7:$B$13,0))=\"\",\"\",INDEX('ImpactOutcome_Import-Export'!N$7:N$13,MATCH($A41,'ImpactOutcome_Import-Export'!$B$7:$B$13,0))),\"\"))","v":""},{"$f":"IF(B41=\"\",\"\",IFERROR(IF(INDEX('ImpactOutcome_Import-Export'!O$7:O$13,MATCH($A41,'ImpactOutcome_Import-Export'!$B$7:$B$13,0))=\"\",\"\",INDEX('ImpactOutcome_Import-Export'!O$7:O$13,MATCH($A41,'ImpactOutcome_Import-Export'!$B$7:$B$13,0))),\"\"))","v":""},{"$f":"IF(B41=\"\",\"\",IFERROR(IF(INDEX('ImpactOutcome_Import-Export'!P$7:P$13,MATCH($A41,'ImpactOutcome_Import-Export'!$B$7:$B$13,0))=\"\",\"\",INDEX('ImpactOutcome_Import-Export'!P$7:P$13,MATCH($A41,'ImpactOutcome_Import-Export'!$B$7:$B$13,0))),\"\"))","v":""},{"$f":"IF(B41=\"\",\"\",IFERROR(IF(INDEX('ImpactOutcome_Import-Export'!Q$7:Q$13,MATCH($A41,'ImpactOutcome_Import-Export'!$B$7:$B$13,0))=\"\",\"\",INDEX('ImpactOutcome_Import-Export'!Q$7:Q$13,MATCH($A41,'ImpactOutcome_Import-Export'!$B$7:$B$13,0))),\"\"))","v":""},{"$f":"IF(B41=\"\",\"\",IFERROR(IF(INDEX('ImpactOutcome_Import-Export'!R$7:R$13,MATCH($A41,'ImpactOutcome_Import-Export'!$B$7:$B$13,0))=\"\",\"\",INDEX('ImpactOutcome_Import-Export'!R$7:R$13,MATCH($A41,'ImpactOutcome_Import-Export'!$B$7:$B$13,0))),\"\"))","v":""},null,null,"",null,null,null,"",null,null,null,"",null,null,null,"",null,null,"",null,""]
[{"$f":"IFERROR(IF(INDEX(Impactlist,MATCH(0,INDEX(COUNTIF(A$10:A41,Impactlist),0,0),0))<>\"\",INDEX(Impactlist,MATCH(0,INDEX(COUNTIF(A$10:A41,Impactlist),0,0),0)),INDEX(Outcomelist,MATCH(0,INDEX(COUNTIF(A$10:A41,Outcomelist),0,0),0))),\"\")","v":""},{"$f":"IFERROR(INDEX('ImpactOutcome_Import-Export'!D$7:D$200,MATCH($A42,'ImpactOutcome_Import-Export'!$B$7:$B$200,0)),\"\")","v":""},{"$f":"IF(B42=\"\",\"\",IFERROR(INDEX('ImpactOutcome_Import-Export'!F$7:F$13,MATCH($A42,'ImpactOutcome_Import-Export'!$B$7:$B$13,0)),\"\"))","v":""},{"$f":"IF(B42=\"\",\"\",IFERROR(IF(INDEX('ImpactOutcome_Import-Export'!K$7:K$13,MATCH($A42,'ImpactOutcome_Import-Export'!$B$7:$B$13,0))=\"\",\"\",INDEX('ImpactOutcome_Import-Export'!K$7:K$13,MATCH($A42,'ImpactOutcome_Import-Export'!$B$7:$B$13,0))),\"\"))","v":""},{"$f":"IF(B42=\"\",\"\",IFERROR(IF(INDEX('ImpactOutcome_Import-Export'!L$7:L$13,MATCH($A42,'ImpactOutcome_Import-Export'!$B$7:$B$13,0))=\"\",\"\",INDEX('ImpactOutcome_Import-Export'!L$7:L$13,MATCH($A42,'ImpactOutcome_Import-Export'!$B$7:$B$13,0))),\"\"))","v":""},{"$f":"IF(B42=\"\",\"\",IFERROR(IF(INDEX('ImpactOutcome_Import-Export'!M$7:M$13,MATCH($A42,'ImpactOutcome_Import-Export'!$B$7:$B$13,0))=\"\",\"\",INDEX('ImpactOutcome_Import-Export'!M$7:M$13,MATCH($A42,'ImpactOutcome_Import-Export'!$B$7:$B$13,0))),\"\"))","v":""},{"$f":"IF(B42=\"\",\"\",IFERROR(IF(INDEX('ImpactOutcome_Import-Export'!N$7:N$13,MATCH($A42,'ImpactOutcome_Import-Export'!$B$7:$B$13,0))=\"\",\"\",INDEX('ImpactOutcome_Import-Export'!N$7:N$13,MATCH($A42,'ImpactOutcome_Import-Export'!$B$7:$B$13,0))),\"\"))","v":""},{"$f":"IF(B42=\"\",\"\",IFERROR(IF(INDEX('ImpactOutcome_Import-Export'!O$7:O$13,MATCH($A42,'ImpactOutcome_Import-Export'!$B$7:$B$13,0))=\"\",\"\",INDEX('ImpactOutcome_Import-Export'!O$7:O$13,MATCH($A42,'ImpactOutcome_Import-Export'!$B$7:$B$13,0))),\"\"))","v":""},{"$f":"IF(B42=\"\",\"\",IFERROR(IF(INDEX('ImpactOutcome_Import-Export'!P$7:P$13,MATCH($A42,'ImpactOutcome_Import-Export'!$B$7:$B$13,0))=\"\",\"\",INDEX('ImpactOutcome_Import-Export'!P$7:P$13,MATCH($A42,'ImpactOutcome_Import-Export'!$B$7:$B$13,0))),\"\"))","v":""},{"$f":"IF(B42=\"\",\"\",IFERROR(IF(INDEX('ImpactOutcome_Import-Export'!Q$7:Q$13,MATCH($A42,'ImpactOutcome_Import-Export'!$B$7:$B$13,0))=\"\",\"\",INDEX('ImpactOutcome_Import-Export'!Q$7:Q$13,MATCH($A42,'ImpactOutcome_Import-Export'!$B$7:$B$13,0))),\"\"))","v":""},{"$f":"IF(B42=\"\",\"\",IFERROR(IF(INDEX('ImpactOutcome_Import-Export'!R$7:R$13,MATCH($A42,'ImpactOutcome_Import-Export'!$B$7:$B$13,0))=\"\",\"\",INDEX('ImpactOutcome_Import-Export'!R$7:R$13,MATCH($A42,'ImpactOutcome_Import-Export'!$B$7:$B$13,0))),\"\"))","v":""},null,null,"",null,null,null,"",null,null,null,"",null,null,null,"",null,null,"",null,""]
[{"$f":"IFERROR(IF(INDEX(Impactlist,MATCH(0,INDEX(COUNTIF(A$10:A42,Impactlist),0,0),0))<>\"\",INDEX(Impactlist,MATCH(0,INDEX(COUNTIF(A$10:A42,Impactlist),0,0),0)),INDEX(Outcomelist,MATCH(0,INDEX(COUNTIF(A$10:A42,Outcomelist),0,0),0))),\"\")","v":""},{"$f":"IFERROR(INDEX('ImpactOutcome_Import-Export'!D$7:D$200,MATCH($A43,'ImpactOutcome_Import-Export'!$B$7:$B$200,0)),\"\")","v":""},{"$f":"IF(B43=\"\",\"\",IFERROR(INDEX('ImpactOutcome_Import-Export'!F$7:F$13,MATCH($A43,'ImpactOutcome_Import-Export'!$B$7:$B$13,0)),\"\"))","v":""},{"$f":"IF(B43=\"\",\"\",IFERROR(IF(INDEX('ImpactOutcome_Import-Export'!K$7:K$13,MATCH($A43,'ImpactOutcome_Import-Export'!$B$7:$B$13,0))=\"\",\"\",INDEX('ImpactOutcome_Import-Export'!K$7:K$13,MATCH($A43,'ImpactOutcome_Import-Export'!$B$7:$B$13,0))),\"\"))","v":""},{"$f":"IF(B43=\"\",\"\",IFERROR(IF(INDEX('ImpactOutcome_Import-Export'!L$7:L$13,MATCH($A43,'ImpactOutcome_Import-Export'!$B$7:$B$13,0))=\"\",\"\",INDEX('ImpactOutcome_Import-Export'!L$7:L$13,MATCH($A43,'ImpactOutcome_Import-Export'!$B$7:$B$13,0))),\"\"))","v":""},{"$f":"IF(B43=\"\",\"\",IFERROR(IF(INDEX('ImpactOutcome_Import-Export'!M$7:M$13,MATCH($A43,'ImpactOutcome_Import-Export'!$B$7:$B$13,0))=\"\",\"\",INDEX('ImpactOutcome_Import-Export'!M$7:M$13,MATCH($A43,'ImpactOutcome_Import-Export'!$B$7:$B$13,0))),\"\"))","v":""},{"$f":"IF(B43=\"\",\"\",IFERROR(IF(INDEX('ImpactOutcome_Import-Export'!N$7:N$13,MATCH($A43,'ImpactOutcome_Import-Export'!$B$7:$B$13,0))=\"\",\"\",INDEX('ImpactOutcome_Import-Export'!N$7:N$13,MATCH($A43,'ImpactOutcome_Import-Export'!$B$7:$B$13,0))),\"\"))","v":""},{"$f":"IF(B43=\"\",\"\",IFERROR(IF(INDEX('ImpactOutcome_Import-Export'!O$7:O$13,MATCH($A43,'ImpactOutcome_Import-Export'!$B$7:$B$13,0))=\"\",\"\",INDEX('ImpactOutcome_Import-Export'!O$7:O$13,MATCH($A43,'ImpactOutcome_Import-Export'!$B$7:$B$13,0))),\"\"))","v":""},{"$f":"IF(B43=\"\",\"\",IFERROR(IF(INDEX('ImpactOutcome_Import-Export'!P$7:P$13,MATCH($A43,'ImpactOutcome_Import-Export'!$B$7:$B$13,0))=\"\",\"\",INDEX('ImpactOutcome_Import-Export'!P$7:P$13,MATCH($A43,'ImpactOutcome_Import-Export'!$B$7:$B$13,0))),\"\"))","v":""},{"$f":"IF(B43=\"\",\"\",IFERROR(IF(INDEX('ImpactOutcome_Import-Export'!Q$7:Q$13,MATCH($A43,'ImpactOutcome_Import-Export'!$B$7:$B$13,0))=\"\",\"\",INDEX('ImpactOutcome_Import-Export'!Q$7:Q$13,MATCH($A43,'ImpactOutcome_Import-Export'!$B$7:$B$13,0))),\"\"))","v":""},{"$f":"IF(B43=\"\",\"\",IFERROR(IF(INDEX('ImpactOutcome_Import-Export'!R$7:R$13,MATCH($A43,'ImpactOutcome_Import-Export'!$B$7:$B$13,0))=\"\",\"\",INDEX('ImpactOutcome_Import-Export'!R$7:R$13,MATCH($A43,'ImpactOutcome_Import-Export'!$B$7:$B$13,0))),\"\"))","v":""},null,null,"",null,null,null,"",null,null,null,"",null,null,null,"",null,null,"",null,""]
[{"$f":"IFERROR(IF(INDEX(Impactlist,MATCH(0,INDEX(COUNTIF(A$10:A43,Impactlist),0,0),0))<>\"\",INDEX(Impactlist,MATCH(0,INDEX(COUNTIF(A$10:A43,Impactlist),0,0),0)),INDEX(Outcomelist,MATCH(0,INDEX(COUNTIF(A$10:A43,Outcomelist),0,0),0))),\"\")","v":""},{"$f":"IFERROR(INDEX('ImpactOutcome_Import-Export'!D$7:D$200,MATCH($A44,'ImpactOutcome_Import-Export'!$B$7:$B$200,0)),\"\")","v":""},{"$f":"IF(B44=\"\",\"\",IFERROR(INDEX('ImpactOutcome_Import-Export'!F$7:F$13,MATCH($A44,'ImpactOutcome_Import-Export'!$B$7:$B$13,0)),\"\"))","v":""},{"$f":"IF(B44=\"\",\"\",IFERROR(IF(INDEX('ImpactOutcome_Import-Export'!K$7:K$13,MATCH($A44,'ImpactOutcome_Import-Export'!$B$7:$B$13,0))=\"\",\"\",INDEX('ImpactOutcome_Import-Export'!K$7:K$13,MATCH($A44,'ImpactOutcome_Import-Export'!$B$7:$B$13,0))),\"\"))","v":""},{"$f":"IF(B44=\"\",\"\",IFERROR(IF(INDEX('ImpactOutcome_Import-Export'!L$7:L$13,MATCH($A44,'ImpactOutcome_Import-Export'!$B$7:$B$13,0))=\"\",\"\",INDEX('ImpactOutcome_Import-Export'!L$7:L$13,MATCH($A44,'ImpactOutcome_Import-Export'!$B$7:$B$13,0))),\"\"))","v":""},{"$f":"IF(B44=\"\",\"\",IFERROR(IF(INDEX('ImpactOutcome_Import-Export'!M$7:M$13,MATCH($A44,'ImpactOutcome_Import-Export'!$B$7:$B$13,0))=\"\",\"\",INDEX('ImpactOutcome_Import-Export'!M$7:M$13,MATCH($A44,'ImpactOutcome_Import-Export'!$B$7:$B$13,0))),\"\"))","v":""},{"$f":"IF(B44=\"\",\"\",IFERROR(IF(INDEX('ImpactOutcome_Import-Export'!N$7:N$13,MATCH($A44,'ImpactOutcome_Import-Export'!$B$7:$B$13,0))=\"\",\"\",INDEX('ImpactOutcome_Import-Export'!N$7:N$13,MATCH($A44,'ImpactOutcome_Import-Export'!$B$7:$B$13,0))),\"\"))","v":""},{"$f":"IF(B44=\"\",\"\",IFERROR(IF(INDEX('ImpactOutcome_Import-Export'!O$7:O$13,MATCH($A44,'ImpactOutcome_Import-Export'!$B$7:$B$13,0))=\"\",\"\",INDEX('ImpactOutcome_Import-Export'!O$7:O$13,MATCH($A44,'ImpactOutcome_Import-Export'!$B$7:$B$13,0))),\"\"))","v":""},{"$f":"IF(B44=\"\",\"\",IFERROR(IF(INDEX('ImpactOutcome_Import-Export'!P$7:P$13,MATCH($A44,'ImpactOutcome_Import-Export'!$B$7:$B$13,0))=\"\",\"\",INDEX('ImpactOutcome_Import-Export'!P$7:P$13,MATCH($A44,'ImpactOutcome_Import-Export'!$B$7:$B$13,0))),\"\"))","v":""},{"$f":"IF(B44=\"\",\"\",IFERROR(IF(INDEX('ImpactOutcome_Import-Export'!Q$7:Q$13,MATCH($A44,'ImpactOutcome_Import-Export'!$B$7:$B$13,0))=\"\",\"\",INDEX('ImpactOutcome_Import-Export'!Q$7:Q$13,MATCH($A44,'ImpactOutcome_Import-Export'!$B$7:$B$13,0))),\"\"))","v":""},{"$f":"IF(B44=\"\",\"\",IFERROR(IF(INDEX('ImpactOutcome_Import-Export'!R$7:R$13,MATCH($A44,'ImpactOutcome_Import-Export'!$B$7:$B$13,0))=\"\",\"\",INDEX('ImpactOutcome_Import-Export'!R$7:R$13,MATCH($A44,'ImpactOutcome_Import-Export'!$B$7:$B$13,0))),\"\"))","v":""},null,null,"",null,null,null,"",null,null,null,"",null,null,null,"",null,null,"",null,""]
[{"$f":"IFERROR(IF(INDEX(Impactlist,MATCH(0,INDEX(COUNTIF(A$10:A44,Impactlist),0,0),0))<>\"\",INDEX(Impactlist,MATCH(0,INDEX(COUNTIF(A$10:A44,Impactlist),0,0),0)),INDEX(Outcomelist,MATCH(0,INDEX(COUNTIF(A$10:A44,Outcomelist),0,0),0))),\"\")","v":""},{"$f":"IFERROR(INDEX('ImpactOutcome_Import-Export'!D$7:D$200,MATCH($A45,'ImpactOutcome_Import-Export'!$B$7:$B$200,0)),\"\")","v":""},{"$f":"IF(B45=\"\",\"\",IFERROR(INDEX('ImpactOutcome_Import-Export'!F$7:F$13,MATCH($A45,'ImpactOutcome_Import-Export'!$B$7:$B$13,0)),\"\"))","v":""},{"$f":"IF(B45=\"\",\"\",IFERROR(IF(INDEX('ImpactOutcome_Import-Export'!K$7:K$13,MATCH($A45,'ImpactOutcome_Import-Export'!$B$7:$B$13,0))=\"\",\"\",INDEX('ImpactOutcome_Import-Export'!K$7:K$13,MATCH($A45,'ImpactOutcome_Import-Export'!$B$7:$B$13,0))),\"\"))","v":""},{"$f":"IF(B45=\"\",\"\",IFERROR(IF(INDEX('ImpactOutcome_Import-Export'!L$7:L$13,MATCH($A45,'ImpactOutcome_Import-Export'!$B$7:$B$13,0))=\"\",\"\",INDEX('ImpactOutcome_Import-Export'!L$7:L$13,MATCH($A45,'ImpactOutcome_Import-Export'!$B$7:$B$13,0))),\"\"))","v":""},{"$f":"IF(B45=\"\",\"\",IFERROR(IF(INDEX('ImpactOutcome_Import-Export'!M$7:M$13,MATCH($A45,'ImpactOutcome_Import-Export'!$B$7:$B$13,0))=\"\",\"\",INDEX('ImpactOutcome_Import-Export'!M$7:M$13,MATCH($A45,'ImpactOutcome_Import-Export'!$B$7:$B$13,0))),\"\"))","v":""},{"$f":"IF(B45=\"\",\"\",IFERROR(IF(INDEX('ImpactOutcome_Import-Export'!N$7:N$13,MATCH($A45,'ImpactOutcome_Import-Export'!$B$7:$B$13,0))=\"\",\"\",INDEX('ImpactOutcome_Import-Export'!N$7:N$13,MATCH($A45,'ImpactOutcome_Import-Export'!$B$7:$B$13,0))),\"\"))","v":""},{"$f":"IF(B45=\"\",\"\",IFERROR(IF(INDEX('ImpactOutcome_Import-Export'!O$7:O$13,MATCH($A45,'ImpactOutcome_Import-Export'!$B$7:$B$13,0))=\"\",\"\",INDEX('ImpactOutcome_Import-Export'!O$7:O$13,MATCH($A45,'ImpactOutcome_Import-Export'!$B$7:$B$13,0))),\"\"))","v":""},{"$f":"IF(B45=\"\",\"\",IFERROR(IF(INDEX('ImpactOutcome_Import-Export'!P$7:P$13,MATCH($A45,'ImpactOutcome_Import-Export'!$B$7:$B$13,0))=\"\",\"\",INDEX('ImpactOutcome_Import-Export'!P$7:P$13,MATCH($A45,'ImpactOutcome_Import-Export'!$B$7:$B$13,0))),\"\"))","v":""},{"$f":"IF(B45=\"\",\"\",IFERROR(IF(INDEX('ImpactOutcome_Import-Export'!Q$7:Q$13,MATCH($A45,'ImpactOutcome_Import-Export'!$B$7:$B$13,0))=\"\",\"\",INDEX('ImpactOutcome_Import-Export'!Q$7:Q$13,MATCH($A45,'ImpactOutcome_Import-Export'!$B$7:$B$13,0))),\"\"))","v":""},{"$f":"IF(B45=\"\",\"\",IFERROR(IF(INDEX('ImpactOutcome_Import-Export'!R$7:R$13,MATCH($A45,'ImpactOutcome_Import-Export'!$B$7:$B$13,0))=\"\",\"\",INDEX('ImpactOutcome_Import-Export'!R$7:R$13,MATCH($A45,'ImpactOutcome_Import-Export'!$B$7:$B$13,0))),\"\"))","v":""},null,null,"",null,null,null,"",null,null,null,"",null,null,null,"",null,null,"",null,""]
[{"$f":"IFERROR(IF(INDEX(Impactlist,MATCH(0,INDEX(COUNTIF(A$10:A45,Impactlist),0,0),0))<>\"\",INDEX(Impactlist,MATCH(0,INDEX(COUNTIF(A$10:A45,Impactlist),0,0),0)),INDEX(Outcomelist,MATCH(0,INDEX(COUNTIF(A$10:A45,Outcomelist),0,0),0))),\"\")","v":""},{"$f":"IFERROR(INDEX('ImpactOutcome_Import-Export'!D$7:D$200,MATCH($A46,'ImpactOutcome_Import-Export'!$B$7:$B$200,0)),\"\")","v":""},{"$f":"IF(B46=\"\",\"\",IFERROR(INDEX('ImpactOutcome_Import-Export'!F$7:F$13,MATCH($A46,'ImpactOutcome_Import-Export'!$B$7:$B$13,0)),\"\"))","v":""},{"$f":"IF(B46=\"\",\"\",IFERROR(IF(INDEX('ImpactOutcome_Import-Export'!K$7:K$13,MATCH($A46,'ImpactOutcome_Import-Export'!$B$7:$B$13,0))=\"\",\"\",INDEX('ImpactOutcome_Import-Export'!K$7:K$13,MATCH($A46,'ImpactOutcome_Import-Export'!$B$7:$B$13,0))),\"\"))","v":""},{"$f":"IF(B46=\"\",\"\",IFERROR(IF(INDEX('ImpactOutcome_Import-Export'!L$7:L$13,MATCH($A46,'ImpactOutcome_Import-Export'!$B$7:$B$13,0))=\"\",\"\",INDEX('ImpactOutcome_Import-Export'!L$7:L$13,MATCH($A46,'ImpactOutcome_Import-Export'!$B$7:$B$13,0))),\"\"))","v":""},{"$f":"IF(B46=\"\",\"\",IFERROR(IF(INDEX('ImpactOutcome_Import-Export'!M$7:M$13,MATCH($A46,'ImpactOutcome_Import-Export'!$B$7:$B$13,0))=\"\",\"\",INDEX('ImpactOutcome_Import-Export'!M$7:M$13,MATCH($A46,'ImpactOutcome_Import-Export'!$B$7:$B$13,0))),\"\"))","v":""},{"$f":"IF(B46=\"\",\"\",IFERROR(IF(INDEX('ImpactOutcome_Import-Export'!N$7:N$13,MATCH($A46,'ImpactOutcome_Import-Export'!$B$7:$B$13,0))=\"\",\"\",INDEX('ImpactOutcome_Import-Export'!N$7:N$13,MATCH($A46,'ImpactOutcome_Import-Export'!$B$7:$B$13,0))),\"\"))","v":""},{"$f":"IF(B46=\"\",\"\",IFERROR(IF(INDEX('ImpactOutcome_Import-Export'!O$7:O$13,MATCH($A46,'ImpactOutcome_Import-Export'!$B$7:$B$13,0))=\"\",\"\",INDEX('ImpactOutcome_Import-Export'!O$7:O$13,MATCH($A46,'ImpactOutcome_Import-Export'!$B$7:$B$13,0))),\"\"))","v":""},{"$f":"IF(B46=\"\",\"\",IFERROR(IF(INDEX('ImpactOutcome_Import-Export'!P$7:P$13,MATCH($A46,'ImpactOutcome_Import-Export'!$B$7:$B$13,0))=\"\",\"\",INDEX('ImpactOutcome_Import-Export'!P$7:P$13,MATCH($A46,'ImpactOutcome_Import-Export'!$B$7:$B$13,0))),\"\"))","v":""},{"$f":"IF(B46=\"\",\"\",IFERROR(IF(INDEX('ImpactOutcome_Import-Export'!Q$7:Q$13,MATCH($A46,'ImpactOutcome_Import-Export'!$B$7:$B$13,0))=\"\",\"\",INDEX('ImpactOutcome_Import-Export'!Q$7:Q$13,MATCH($A46,'ImpactOutcome_Import-Export'!$B$7:$B$13,0))),\"\"))","v":""},{"$f":"IF(B46=\"\",\"\",IFERROR(IF(INDEX('ImpactOutcome_Import-Export'!R$7:R$13,MATCH($A46,'ImpactOutcome_Import-Export'!$B$7:$B$13,0))=\"\",\"\",INDEX('ImpactOutcome_Import-Export'!R$7:R$13,MATCH($A46,'ImpactOutcome_Import-Export'!$B$7:$B$13,0))),\"\"))","v":""},null,null,"",null,null,null,"",null,null,null,"",null,null,null,"",null,null,"",null,""]
[{"$f":"IFERROR(IF(INDEX(Impactlist,MATCH(0,INDEX(COUNTIF(A$10:A46,Impactlist),0,0),0))<>\"\",INDEX(Impactlist,MATCH(0,INDEX(COUNTIF(A$10:A46,Impactlist),0,0),0)),INDEX(Outcomelist,MATCH(0,INDEX(COUNTIF(A$10:A46,Outcomelist),0,0),0))),\"\")","v":""},{"$f":"IFERROR(INDEX('ImpactOutcome_Import-Export'!D$7:D$200,MATCH($A47,'ImpactOutcome_Import-Export'!$B$7:$B$200,0)),\"\")","v":""},{"$f":"IF(B47=\"\",\"\",IFERROR(INDEX('ImpactOutcome_Import-Export'!F$7:F$13,MATCH($A47,'ImpactOutcome_Import-Export'!$B$7:$B$13,0)),\"\"))","v":""},{"$f":"IF(B47=\"\",\"\",IFERROR(IF(INDEX('ImpactOutcome_Import-Export'!K$7:K$13,MATCH($A47,'ImpactOutcome_Import-Export'!$B$7:$B$13,0))=\"\",\"\",INDEX('ImpactOutcome_Import-Export'!K$7:K$13,MATCH($A47,'ImpactOutcome_Import-Export'!$B$7:$B$13,0))),\"\"))","v":""},{"$f":"IF(B47=\"\",\"\",IFERROR(IF(INDEX('ImpactOutcome_Import-Export'!L$7:L$13,MATCH($A47,'ImpactOutcome_Import-Export'!$B$7:$B$13,0))=\"\",\"\",INDEX('ImpactOutcome_Import-Export'!L$7:L$13,MATCH($A47,'ImpactOutcome_Import-Export'!$B$7:$B$13,0))),\"\"))","v":""},{"$f":"IF(B47=\"\",\"\",IFERROR(IF(INDEX('ImpactOutcome_Import-Export'!M$7:M$13,MATCH($A47,'ImpactOutcome_Import-Export'!$B$7:$B$13,0))=\"\",\"\",INDEX('ImpactOutcome_Import-Export'!M$7:M$13,MATCH($A47,'ImpactOutcome_Import-Export'!$B$7:$B$13,0))),\"\"))","v":""},{"$f":"IF(B47=\"\",\"\",IFERROR(IF(INDEX('ImpactOutcome_Import-Export'!N$7:N$13,MATCH($A47,'ImpactOutcome_Import-Export'!$B$7:$B$13,0))=\"\",\"\",INDEX('ImpactOutcome_Import-Export'!N$7:N$13,MATCH($A47,'ImpactOutcome_Import-Export'!$B$7:$B$13,0))),\"\"))","v":""},{"$f":"IF(B47=\"\",\"\",IFERROR(IF(INDEX('ImpactOutcome_Import-Export'!O$7:O$13,MATCH($A47,'ImpactOutcome_Import-Export'!$B$7:$B$13,0))=\"\",\"\",INDEX('ImpactOutcome_Import-Export'!O$7:O$13,MATCH($A47,'ImpactOutcome_Import-Export'!$B$7:$B$13,0))),\"\"))","v":""},{"$f":"IF(B47=\"\",\"\",IFERROR(IF(INDEX('ImpactOutcome_Import-Export'!P$7:P$13,MATCH($A47,'ImpactOutcome_Import-Export'!$B$7:$B$13,0))=\"\",\"\",INDEX('ImpactOutcome_Import-Export'!P$7:P$13,MATCH($A47,'ImpactOutcome_Import-Export'!$B$7:$B$13,0))),\"\"))","v":""},{"$f":"IF(B47=\"\",\"\",IFERROR(IF(INDEX('ImpactOutcome_Import-Export'!Q$7:Q$13,MATCH($A47,'ImpactOutcome_Import-Export'!$B$7:$B$13,0))=\"\",\"\",INDEX('ImpactOutcome_Import-Export'!Q$7:Q$13,MATCH($A47,'ImpactOutcome_Import-Export'!$B$7:$B$13,0))),\"\"))","v":""},{"$f":"IF(B47=\"\",\"\",IFERROR(IF(INDEX('ImpactOutcome_Import-Export'!R$7:R$13,MATCH($A47,'ImpactOutcome_Import-Export'!$B$7:$B$13,0))=\"\",\"\",INDEX('ImpactOutcome_Import-Export'!R$7:R$13,MATCH($A47,'ImpactOutcome_Import-Export'!$B$7:$B$13,0))),\"\"))","v":""},null,null,"",null,null,null,"",null,null,null,"",null,null,null,"",null,null,"",null,""]
[{"$f":"IFERROR(IF(INDEX(Impactlist,MATCH(0,INDEX(COUNTIF(A$10:A47,Impactlist),0,0),0))<>\"\",INDEX(Impactlist,MATCH(0,INDEX(COUNTIF(A$10:A47,Impactlist),0,0),0)),INDEX(Outcomelist,MATCH(0,INDEX(COUNTIF(A$10:A47,Outcomelist),0,0),0))),\"\")","v":""},{"$f":"IFERROR(INDEX('ImpactOutcome_Import-Export'!D$7:D$200,MATCH($A48,'ImpactOutcome_Import-Export'!$B$7:$B$200,0)),\"\")","v":""},{"$f":"IF(B48=\"\",\"\",IFERROR(INDEX('ImpactOutcome_Import-Export'!F$7:F$13,MATCH($A48,'ImpactOutcome_Import-Export'!$B$7:$B$13,0)),\"\"))","v":""},{"$f":"IF(B48=\"\",\"\",IFERROR(IF(INDEX('ImpactOutcome_Import-Export'!K$7:K$13,MATCH($A48,'ImpactOutcome_Import-Export'!$B$7:$B$13,0))=\"\",\"\",INDEX('ImpactOutcome_Import-Export'!K$7:K$13,MATCH($A48,'ImpactOutcome_Import-Export'!$B$7:$B$13,0))),\"\"))","v":""},{"$f":"IF(B48=\"\",\"\",IFERROR(IF(INDEX('ImpactOutcome_Import-Export'!L$7:L$13,MATCH($A48,'ImpactOutcome_Import-Export'!$B$7:$B$13,0))=\"\",\"\",INDEX('ImpactOutcome_Import-Export'!L$7:L$13,MATCH($A48,'ImpactOutcome_Import-Export'!$B$7:$B$13,0))),\"\"))","v":""},{"$f":"IF(B48=\"\",\"\",IFERROR(IF(INDEX('ImpactOutcome_Import-Export'!M$7:M$13,MATCH($A48,'ImpactOutcome_Import-Export'!$B$7:$B$13,0))=\"\",\"\",INDEX('ImpactOutcome_Import-Export'!M$7:M$13,MATCH($A48,'ImpactOutcome_Import-Export'!$B$7:$B$13,0))),\"\"))","v":""},{"$f":"IF(B48=\"\",\"\",IFERROR(IF(INDEX('ImpactOutcome_Import-Export'!N$7:N$13,MATCH($A48,'ImpactOutcome_Import-Export'!$B$7:$B$13,0))=\"\",\"\",INDEX('ImpactOutcome_Import-Export'!N$7:N$13,MATCH($A48,'ImpactOutcome_Import-Export'!$B$7:$B$13,0))),\"\"))","v":""},{"$f":"IF(B48=\"\",\"\",IFERROR(IF(INDEX('ImpactOutcome_Import-Export'!O$7:O$13,MATCH($A48,'ImpactOutcome_Import-Export'!$B$7:$B$13,0))=\"\",\"\",INDEX('ImpactOutcome_Import-Export'!O$7:O$13,MATCH($A48,'ImpactOutcome_Import-Export'!$B$7:$B$13,0))),\"\"))","v":""},{"$f":"IF(B48=\"\",\"\",IFERROR(IF(INDEX('ImpactOutcome_Import-Export'!P$7:P$13,MATCH($A48,'ImpactOutcome_Import-Export'!$B$7:$B$13,0))=\"\",\"\",INDEX('ImpactOutcome_Import-Export'!P$7:P$13,MATCH($A48,'ImpactOutcome_Import-Export'!$B$7:$B$13,0))),\"\"))","v":""},{"$f":"IF(B48=\"\",\"\",IFERROR(IF(INDEX('ImpactOutcome_Import-Export'!Q$7:Q$13,MATCH($A48,'ImpactOutcome_Import-Export'!$B$7:$B$13,0))=\"\",\"\",INDEX('ImpactOutcome_Import-Export'!Q$7:Q$13,MATCH($A48,'ImpactOutcome_Import-Export'!$B$7:$B$13,0))),\"\"))","v":""},{"$f":"IF(B48=\"\",\"\",IFERROR(IF(INDEX('ImpactOutcome_Import-Export'!R$7:R$13,MATCH($A48,'ImpactOutcome_Import-Export'!$B$7:$B$13,0))=\"\",\"\",INDEX('ImpactOutcome_Import-Export'!R$7:R$13,MATCH($A48,'ImpactOutcome_Import-Export'!$B$7:$B$13,0))),\"\"))","v":""},null,null,"",null,null,null,"",null,null,null,"",null,null,null,"",null,null,"",null,""]
[{"$f":"IFERROR(IF(INDEX(Impactlist,MATCH(0,INDEX(COUNTIF(A$10:A48,Impactlist),0,0),0))<>\"\",INDEX(Impactlist,MATCH(0,INDEX(COUNTIF(A$10:A48,Impactlist),0,0),0)),INDEX(Outcomelist,MATCH(0,INDEX(COUNTIF(A$10:A48,Outcomelist),0,0),0))),\"\")","v":""},{"$f":"IFERROR(INDEX('ImpactOutcome_Import-Export'!D$7:D$200,MATCH($A49,'ImpactOutcome_Import-Export'!$B$7:$B$200,0)),\"\")","v":""},{"$f":"IF(B49=\"\",\"\",IFERROR(INDEX('ImpactOutcome_Import-Export'!F$7:F$13,MATCH($A49,'ImpactOutcome_Import-Export'!$B$7:$B$13,0)),\"\"))","v":""},{"$f":"IF(B49=\"\",\"\",IFERROR(IF(INDEX('ImpactOutcome_Import-Export'!K$7:K$13,MATCH($A49,'ImpactOutcome_Import-Export'!$B$7:$B$13,0))=\"\",\"\",INDEX('ImpactOutcome_Import-Export'!K$7:K$13,MATCH($A49,'ImpactOutcome_Import-Export'!$B$7:$B$13,0))),\"\"))","v":""},{"$f":"IF(B49=\"\",\"\",IFERROR(IF(INDEX('ImpactOutcome_Import-Export'!L$7:L$13,MATCH($A49,'ImpactOutcome_Import-Export'!$B$7:$B$13,0))=\"\",\"\",INDEX('ImpactOutcome_Import-Export'!L$7:L$13,MATCH($A49,'ImpactOutcome_Import-Export'!$B$7:$B$13,0))),\"\"))","v":""},{"$f":"IF(B49=\"\",\"\",IFERROR(IF(INDEX('ImpactOutcome_Import-Export'!M$7:M$13,MATCH($A49,'ImpactOutcome_Import-Export'!$B$7:$B$13,0))=\"\",\"\",INDEX('ImpactOutcome_Import-Export'!M$7:M$13,MATCH($A49,'ImpactOutcome_Import-Export'!$B$7:$B$13,0))),\"\"))","v":""},{"$f":"IF(B49=\"\",\"\",IFERROR(IF(INDEX('ImpactOutcome_Import-Export'!N$7:N$13,MATCH($A49,'ImpactOutcome_Import-Export'!$B$7:$B$13,0))=\"\",\"\",INDEX('ImpactOutcome_Import-Export'!N$7:N$13,MATCH($A49,'ImpactOutcome_Import-Export'!$B$7:$B$13,0))),\"\"))","v":""},{"$f":"IF(B49=\"\",\"\",IFERROR(IF(INDEX('ImpactOutcome_Import-Export'!O$7:O$13,MATCH($A49,'ImpactOutcome_Import-Export'!$B$7:$B$13,0))=\"\",\"\",INDEX('ImpactOutcome_Import-Export'!O$7:O$13,MATCH($A49,'ImpactOutcome_Import-Export'!$B$7:$B$13,0))),\"\"))","v":""},{"$f":"IF(B49=\"\",\"\",IFERROR(IF(INDEX('ImpactOutcome_Import-Export'!P$7:P$13,MATCH($A49,'ImpactOutcome_Import-Export'!$B$7:$B$13,0))=\"\",\"\",INDEX('ImpactOutcome_Import-Export'!P$7:P$13,MATCH($A49,'ImpactOutcome_Import-Export'!$B$7:$B$13,0))),\"\"))","v":""},{"$f":"IF(B49=\"\",\"\",IFERROR(IF(INDEX('ImpactOutcome_Import-Export'!Q$7:Q$13,MATCH($A49,'ImpactOutcome_Import-Export'!$B$7:$B$13,0))=\"\",\"\",INDEX('ImpactOutcome_Import-Export'!Q$7:Q$13,MATCH($A49,'ImpactOutcome_Import-Export'!$B$7:$B$13,0))),\"\"))","v":""},{"$f":"IF(B49=\"\",\"\",IFERROR(IF(INDEX('ImpactOutcome_Import-Export'!R$7:R$13,MATCH($A49,'ImpactOutcome_Import-Export'!$B$7:$B$13,0))=\"\",\"\",INDEX('ImpactOutcome_Import-Export'!R$7:R$13,MATCH($A49,'ImpactOutcome_Import-Export'!$B$7:$B$13,0))),\"\"))","v":""},null,null,"",null,null,null,"",null,null,null,"",null,null,null,"",null,null,"",null,""]
[{"$f":"IFERROR(IF(INDEX(Impactlist,MATCH(0,INDEX(COUNTIF(A$10:A49,Impactlist),0,0),0))<>\"\",INDEX(Impactlist,MATCH(0,INDEX(COUNTIF(A$10:A49,Impactlist),0,0),0)),INDEX(Outcomelist,MATCH(0,INDEX(COUNTIF(A$10:A49,Outcomelist),0,0),0))),\"\")","v":""},{"$f":"IFERROR(INDEX('ImpactOutcome_Import-Export'!D$7:D$200,MATCH($A50,'ImpactOutcome_Import-Export'!$B$7:$B$200,0)),\"\")","v":""},{"$f":"IF(B50=\"\",\"\",IFERROR(INDEX('ImpactOutcome_Import-Export'!F$7:F$13,MATCH($A50,'ImpactOutcome_Import-Export'!$B$7:$B$13,0)),\"\"))","v":""},{"$f":"IF(B50=\"\",\"\",IFERROR(IF(INDEX('ImpactOutcome_Import-Export'!K$7:K$13,MATCH($A50,'ImpactOutcome_Import-Export'!$B$7:$B$13,0))=\"\",\"\",INDEX('ImpactOutcome_Import-Export'!K$7:K$13,MATCH($A50,'ImpactOutcome_Import-Export'!$B$7:$B$13,0))),\"\"))","v":""},{"$f":"IF(B50=\"\",\"\",IFERROR(IF(INDEX('ImpactOutcome_Import-Export'!L$7:L$13,MATCH($A50,'ImpactOutcome_Import-Export'!$B$7:$B$13,0))=\"\",\"\",INDEX('ImpactOutcome_Import-Export'!L$7:L$13,MATCH($A50,'ImpactOutcome_Import-Export'!$B$7:$B$13,0))),\"\"))","v":""},{"$f":"IF(B50=\"\",\"\",IFERROR(IF(INDEX('ImpactOutcome_Import-Export'!M$7:M$13,MATCH($A50,'ImpactOutcome_Import-Export'!$B$7:$B$13,0))=\"\",\"\",INDEX('ImpactOutcome_Import-Export'!M$7:M$13,MATCH($A50,'ImpactOutcome_Import-Export'!$B$7:$B$13,0))),\"\"))","v":""},{"$f":"IF(B50=\"\",\"\",IFERROR(IF(INDEX('ImpactOutcome_Import-Export'!N$7:N$13,MATCH($A50,'ImpactOutcome_Import-Export'!$B$7:$B$13,0))=\"\",\"\",INDEX('ImpactOutcome_Import-Export'!N$7:N$13,MATCH($A50,'ImpactOutcome_Import-Export'!$B$7:$B$13,0))),\"\"))","v":""},{"$f":"IF(B50=\"\",\"\",IFERROR(IF(INDEX('ImpactOutcome_Import-Export'!O$7:O$13,MATCH($A50,'ImpactOutcome_Import-Export'!$B$7:$B$13,0))=\"\",\"\",INDEX('ImpactOutcome_Import-Export'!O$7:O$13,MATCH($A50,'ImpactOutcome_Import-Export'!$B$7:$B$13,0))),\"\"))","v":""},{"$f":"IF(B50=\"\",\"\",IFERROR(IF(INDEX('ImpactOutcome_Import-Export'!P$7:P$13,MATCH($A50,'ImpactOutcome_Import-Export'!$B$7:$B$13,0))=\"\",\"\",INDEX('ImpactOutcome_Import-Export'!P$7:P$13,MATCH($A50,'ImpactOutcome_Import-Export'!$B$7:$B$13,0))),\"\"))","v":""},{"$f":"IF(B50=\"\",\"\",IFERROR(IF(INDEX('ImpactOutcome_Import-Export'!Q$7:Q$13,MATCH($A50,'ImpactOutcome_Import-Export'!$B$7:$B$13,0))=\"\",\"\",INDEX('ImpactOutcome_Import-Export'!Q$7:Q$13,MATCH($A50,'ImpactOutcome_Import-Export'!$B$7:$B$13,0))),\"\"))","v":""},{"$f":"IF(B50=\"\",\"\",IFERROR(IF(INDEX('ImpactOutcome_Import-Export'!R$7:R$13,MATCH($A50,'ImpactOutcome_Import-Export'!$B$7:$B$13,0))=\"\",\"\",INDEX('ImpactOutcome_Import-Export'!R$7:R$13,MATCH($A50,'ImpactOutcome_Import-Export'!$B$7:$B$13,0))),\"\"))","v":""},null,null,"",null,null,null,"",null,null,null,"",null,null,null,"",null,null,"",null,""]
[{"$f":"IFERROR(IF(INDEX(Impactlist,MATCH(0,INDEX(COUNTIF(A$10:A50,Impactlist),0,0),0))<>\"\",INDEX(Impactlist,MATCH(0,INDEX(COUNTIF(A$10:A50,Impactlist),0,0),0)),INDEX(Outcomelist,MATCH(0,INDEX(COUNTIF(A$10:A50,Outcomelist),0,0),0))),\"\")","v":""},{"$f":"IFERROR(INDEX('ImpactOutcome_Import-Export'!D$7:D$200,MATCH($A51,'ImpactOutcome_Import-Export'!$B$7:$B$200,0)),\"\")","v":""},{"$f":"IF(B51=\"\",\"\",IFERROR(INDEX('ImpactOutcome_Import-Export'!F$7:F$13,MATCH($A51,'ImpactOutcome_Import-Export'!$B$7:$B$13,0)),\"\"))","v":""},{"$f":"IF(B51=\"\",\"\",IFERROR(IF(INDEX('ImpactOutcome_Import-Export'!K$7:K$13,MATCH($A51,'ImpactOutcome_Import-Export'!$B$7:$B$13,0))=\"\",\"\",INDEX('ImpactOutcome_Import-Export'!K$7:K$13,MATCH($A51,'ImpactOutcome_Import-Export'!$B$7:$B$13,0))),\"\"))","v":""},{"$f":"IF(B51=\"\",\"\",IFERROR(IF(INDEX('ImpactOutcome_Import-Export'!L$7:L$13,MATCH($A51,'ImpactOutcome_Import-Export'!$B$7:$B$13,0))=\"\",\"\",INDEX('ImpactOutcome_Import-Export'!L$7:L$13,MATCH($A51,'ImpactOutcome_Import-Export'!$B$7:$B$13,0))),\"\"))","v":""},{"$f":"IF(B51=\"\",\"\",IFERROR(IF(INDEX('ImpactOutcome_Import-Export'!M$7:M$13,MATCH($A51,'ImpactOutcome_Import-Export'!$B$7:$B$13,0))=\"\",\"\",INDEX('ImpactOutcome_Import-Export'!M$7:M$13,MATCH($A51,'ImpactOutcome_Import-Export'!$B$7:$B$13,0))),\"\"))","v":""},{"$f":"IF(B51=\"\",\"\",IFERROR(IF(INDEX('ImpactOutcome_Import-Export'!N$7:N$13,MATCH($A51,'ImpactOutcome_Import-Export'!$B$7:$B$13,0))=\"\",\"\",INDEX('ImpactOutcome_Import-Export'!N$7:N$13,MATCH($A51,'ImpactOutcome_Import-Export'!$B$7:$B$13,0))),\"\"))","v":""},{"$f":"IF(B51=\"\",\"\",IFERROR(IF(INDEX('ImpactOutcome_Import-Export'!O$7:O$13,MATCH($A51,'ImpactOutcome_Import-Export'!$B$7:$B$13,0))=\"\",\"\",INDEX('ImpactOutcome_Import-Export'!O$7:O$13,MATCH($A51,'ImpactOutcome_Import-Export'!$B$7:$B$13,0))),\"\"))","v":""},{"$f":"IF(B51=\"\",\"\",IFERROR(IF(INDEX('ImpactOutcome_Import-Export'!P$7:P$13,MATCH($A51,'ImpactOutcome_Import-Export'!$B$7:$B$13,0))=\"\",\"\",INDEX('ImpactOutcome_Import-Export'!P$7:P$13,MATCH($A51,'ImpactOutcome_Import-Export'!$B$7:$B$13,0))),\"\"))","v":""},{"$f":"IF(B51=\"\",\"\",IFERROR(IF(INDEX('ImpactOutcome_Import-Export'!Q$7:Q$13,MATCH($A51,'ImpactOutcome_Import-Export'!$B$7:$B$13,0))=\"\",\"\",INDEX('ImpactOutcome_Import-Export'!Q$7:Q$13,MATCH($A51,'ImpactOutcome_Import-Export'!$B$7:$B$13,0))),\"\"))","v":""},{"$f":"IF(B51=\"\",\"\",IFERROR(IF(INDEX('ImpactOutcome_Import-Export'!R$7:R$13,MATCH($A51,'ImpactOutcome_Import-Export'!$B$7:$B$13,0))=\"\",\"\",INDEX('ImpactOutcome_Import-Export'!R$7:R$13,MATCH($A51,'ImpactOutcome_Import-Export'!$B$7:$B$13,0))),\"\"))","v":""},null,null,{"$f":"IFERROR((L51/M51)*100,\"\")","v":""},null,null,null,{"$f":"IF(AND(F51=\"\",G51=\"\",H51=\"\"),\"\",IF(AND(L51=\"\",M51=\"\",N51=\"\"),\"No Results Reported\",IF(AND(F51<>\"\",G51=\"\",H51=\"\",OR(M51<>\"\",N51<>\"\")),\"Target contains only a numerator. Please Report only a numerator for the result\",\"Continue\")))","v":""},null,null,null,{"$f":"IFERROR((T51/U51)*100,\"\")","v":""},null,null,null,{"$f":"IF(AND(L51=\"\",M51=\"\",N51=\"\"),\"\",IF(AND(T51=\"\",U51=\"\",V51=\"\"),\"No Results Reported\",IF(AND(L51<>\"\",M51=\"\",N51=\"\",OR(U51<>\"\",V51<>\"\")),\"Target contains only a numerator. Please Report only a numerator for the result\",\"Continue\")))","v":""},null,null,{"$f":"IFERROR((AA51/AB51)*100,\"\")","v":""},null,{"$f":"IF(AND(F51=\"\",G51=\"\",H51=\"\"),\"\",IF(AND(AA51=\"\",AB51=\"\",AC51=\"\"),\"No Results Reported\",IF(AND(F51<>\"\",G51=\"\",H51=\"\",OR(AB51<>\"\",AC51<>\"\")),\"Target contains only a numerator. Please Report only a numerator for the result\",\"Continue\")))","v":""}]
[{"$f":"IFERROR(IF(INDEX(Impactlist,MATCH(0,INDEX(COUNTIF(A$10:A51,Impactlist),0,0),0))<>\"\",INDEX(Impactlist,MATCH(0,INDEX(COUNTIF(A$10:A51,Impactlist),0,0),0)),INDEX(Outcomelist,MATCH(0,INDEX(COUNTIF(A$10:A51,Outcomelist),0,0),0))),\"\")","v":""},{"$f":"IFERROR(INDEX('ImpactOutcome_Import-Export'!D$7:D$200,MATCH($A52,'ImpactOutcome_Import-Export'!$B$7:$B$200,0)),\"\")","v":""},{"$f":"IF(B52=\"\",\"\",IFERROR(INDEX('ImpactOutcome_Import-Export'!F$7:F$13,MATCH($A52,'ImpactOutcome_Import-Export'!$B$7:$B$13,0)),\"\"))","v":""},{"$f":"IF(B52=\"\",\"\",IFERROR(IF(INDEX('ImpactOutcome_Import-Export'!K$7:K$13,MATCH($A52,'ImpactOutcome_Import-Export'!$B$7:$B$13,0))=\"\",\"\",INDEX('ImpactOutcome_Import-Export'!K$7:K$13,MATCH($A52,'ImpactOutcome_Import-Export'!$B$7:$B$13,0))),\"\"))","v":""},{"$f":"IF(B52=\"\",\"\",IFERROR(IF(INDEX('ImpactOutcome_Import-Export'!L$7:L$13,MATCH($A52,'ImpactOutcome_Import-Export'!$B$7:$B$13,0))=\"\",\"\",INDEX('ImpactOutcome_Import-Export'!L$7:L$13,MATCH($A52,'ImpactOutcome_Import-Export'!$B$7:$B$13,0))),\"\"))","v":""},{"$f":"IF(B52=\"\",\"\",IFERROR(IF(INDEX('ImpactOutcome_Import-Export'!M$7:M$13,MATCH($A52,'ImpactOutcome_Import-Export'!$B$7:$B$13,0))=\"\",\"\",INDEX('ImpactOutcome_Import-Export'!M$7:M$13,MATCH($A52,'ImpactOutcome_Import-Export'!$B$7:$B$13,0))),\"\"))","v":""},{"$f":"IF(B52=\"\",\"\",IFERROR(IF(INDEX('ImpactOutcome_Import-Export'!N$7:N$13,MATCH($A52,'ImpactOutcome_Import-Export'!$B$7:$B$13,0))=\"\",\"\",INDEX('ImpactOutcome_Import-Export'!N$7:N$13,MATCH($A52,'ImpactOutcome_Import-Export'!$B$7:$B$13,0))),\"\"))","v":""},{"$f":"IF(B52=\"\",\"\",IFERROR(IF(INDEX('ImpactOutcome_Import-Export'!O$7:O$13,MATCH($A52,'ImpactOutcome_Import-Export'!$B$7:$B$13,0))=\"\",\"\",INDEX('ImpactOutcome_Import-Export'!O$7:O$13,MATCH($A52,'ImpactOutcome_Import-Export'!$B$7:$B$13,0))),\"\"))","v":""},{"$f":"IF(B52=\"\",\"\",IFERROR(IF(INDEX('ImpactOutcome_Import-Export'!P$7:P$13,MATCH($A52,'ImpactOutcome_Import-Export'!$B$7:$B$13,0))=\"\",\"\",INDEX('ImpactOutcome_Import-Export'!P$7:P$13,MATCH($A52,'ImpactOutcome_Import-Export'!$B$7:$B$13,0))),\"\"))","v":""},{"$f":"IF(B52=\"\",\"\",IFERROR(IF(INDEX('ImpactOutcome_Import-Export'!Q$7:Q$13,MATCH($A52,'ImpactOutcome_Import-Export'!$B$7:$B$13,0))=\"\",\"\",INDEX('ImpactOutcome_Import-Export'!Q$7:Q$13,MATCH($A52,'ImpactOutcome_Import-Export'!$B$7:$B$13,0))),\"\"))","v":""},{"$f":"IF(B52=\"\",\"\",IFERROR(IF(INDEX('ImpactOutcome_Import-Export'!R$7:R$13,MATCH($A52,'ImpactOutcome_Import-Export'!$B$7:$B$13,0))=\"\",\"\",INDEX('ImpactOutcome_Import-Export'!R$7:R$13,MATCH($A52,'ImpactOutcome_Import-Export'!$B$7:$B$13,0))),\"\"))","v":""},null,null,"",null,null,null,"",null,null,null,"",null,null,null,"",null,null,"",null,""]
[{"$f":"IFERROR(IF(INDEX(Impactlist,MATCH(0,INDEX(COUNTIF(A$10:A52,Impactlist),0,0),0))<>\"\",INDEX(Impactlist,MATCH(0,INDEX(COUNTIF(A$10:A52,Impactlist),0,0),0)),INDEX(Outcomelist,MATCH(0,INDEX(COUNTIF(A$10:A52,Outcomelist),0,0),0))),\"\")","v":""},{"$f":"IFERROR(INDEX('ImpactOutcome_Import-Export'!D$7:D$200,MATCH($A53,'ImpactOutcome_Import-Export'!$B$7:$B$200,0)),\"\")","v":""},{"$f":"IF(B53=\"\",\"\",IFERROR(INDEX('ImpactOutcome_Import-Export'!F$7:F$13,MATCH($A53,'ImpactOutcome_Import-Export'!$B$7:$B$13,0)),\"\"))","v":""},{"$f":"IF(B53=\"\",\"\",IFERROR(IF(INDEX('ImpactOutcome_Import-Export'!K$7:K$13,MATCH($A53,'ImpactOutcome_Import-Export'!$B$7:$B$13,0))=\"\",\"\",INDEX('ImpactOutcome_Import-Export'!K$7:K$13,MATCH($A53,'ImpactOutcome_Import-Export'!$B$7:$B$13,0))),\"\"))","v":""},{"$f":"IF(B53=\"\",\"\",IFERROR(IF(INDEX('ImpactOutcome_Import-Export'!L$7:L$13,MATCH($A53,'ImpactOutcome_Import-Export'!$B$7:$B$13,0))=\"\",\"\",INDEX('ImpactOutcome_Import-Export'!L$7:L$13,MATCH($A53,'ImpactOutcome_Import-Export'!$B$7:$B$13,0))),\"\"))","v":""},{"$f":"IF(B53=\"\",\"\",IFERROR(IF(INDEX('ImpactOutcome_Import-Export'!M$7:M$13,MATCH($A53,'ImpactOutcome_Import-Export'!$B$7:$B$13,0))=\"\",\"\",INDEX('ImpactOutcome_Import-Export'!M$7:M$13,MATCH($A53,'ImpactOutcome_Import-Export'!$B$7:$B$13,0))),\"\"))","v":""},{"$f":"IF(B53=\"\",\"\",IFERROR(IF(INDEX('ImpactOutcome_Import-Export'!N$7:N$13,MATCH($A53,'ImpactOutcome_Import-Export'!$B$7:$B$13,0))=\"\",\"\",INDEX('ImpactOutcome_Import-Export'!N$7:N$13,MATCH($A53,'ImpactOutcome_Import-Export'!$B$7:$B$13,0))),\"\"))","v":""},{"$f":"IF(B53=\"\",\"\",IFERROR(IF(INDEX('ImpactOutcome_Import-Export'!O$7:O$13,MATCH($A53,'ImpactOutcome_Import-Export'!$B$7:$B$13,0))=\"\",\"\",INDEX('ImpactOutcome_Import-Export'!O$7:O$13,MATCH($A53,'ImpactOutcome_Import-Export'!$B$7:$B$13,0))),\"\"))","v":""},{"$f":"IF(B53=\"\",\"\",IFERROR(IF(INDEX('ImpactOutcome_Import-Export'!P$7:P$13,MATCH($A53,'ImpactOutcome_Import-Export'!$B$7:$B$13,0))=\"\",\"\",INDEX('ImpactOutcome_Import-Export'!P$7:P$13,MATCH($A53,'ImpactOutcome_Import-Export'!$B$7:$B$13,0))),\"\"))","v":""},{"$f":"IF(B53=\"\",\"\",IFERROR(IF(INDEX('ImpactOutcome_Import-Export'!Q$7:Q$13,MATCH($A53,'ImpactOutcome_Import-Export'!$B$7:$B$13,0))=\"\",\"\",INDEX('ImpactOutcome_Import-Export'!Q$7:Q$13,MATCH($A53,'ImpactOutcome_Import-Export'!$B$7:$B$13,0))),\"\"))","v":""},{"$f":"IF(B53=\"\",\"\",IFERROR(IF(INDEX('ImpactOutcome_Import-Export'!R$7:R$13,MATCH($A53,'ImpactOutcome_Import-Export'!$B$7:$B$13,0))=\"\",\"\",INDEX('ImpactOutcome_Import-Export'!R$7:R$13,MATCH($A53,'ImpactOutcome_Import-Export'!$B$7:$B$13,0))),\"\"))","v":""},null,null,"",null,null,null,"",null,null,null,"",null,null,null,"",null,null,"",null,""]
[{"$f":"IFERROR(IF(INDEX(Impactlist,MATCH(0,INDEX(COUNTIF(A$10:A53,Impactlist),0,0),0))<>\"\",INDEX(Impactlist,MATCH(0,INDEX(COUNTIF(A$10:A53,Impactlist),0,0),0)),INDEX(Outcomelist,MATCH(0,INDEX(COUNTIF(A$10:A53,Outcomelist),0,0),0))),\"\")","v":""},{"$f":"IFERROR(INDEX('ImpactOutcome_Import-Export'!D$7:D$200,MATCH($A54,'ImpactOutcome_Import-Export'!$B$7:$B$200,0)),\"\")","v":""},{"$f":"IF(B54=\"\",\"\",IFERROR(INDEX('ImpactOutcome_Import-Export'!F$7:F$13,MATCH($A54,'ImpactOutcome_Import-Export'!$B$7:$B$13,0)),\"\"))","v":""},{"$f":"IF(B54=\"\",\"\",IFERROR(IF(INDEX('ImpactOutcome_Import-Export'!K$7:K$13,MATCH($A54,'ImpactOutcome_Import-Export'!$B$7:$B$13,0))=\"\",\"\",INDEX('ImpactOutcome_Import-Export'!K$7:K$13,MATCH($A54,'ImpactOutcome_Import-Export'!$B$7:$B$13,0))),\"\"))","v":""},{"$f":"IF(B54=\"\",\"\",IFERROR(IF(INDEX('ImpactOutcome_Import-Export'!L$7:L$13,MATCH($A54,'ImpactOutcome_Import-Export'!$B$7:$B$13,0))=\"\",\"\",INDEX('ImpactOutcome_Import-Export'!L$7:L$13,MATCH($A54,'ImpactOutcome_Import-Export'!$B$7:$B$13,0))),\"\"))","v":""},{"$f":"IF(B54=\"\",\"\",IFERROR(IF(INDEX('ImpactOutcome_Import-Export'!M$7:M$13,MATCH($A54,'ImpactOutcome_Import-Export'!$B$7:$B$13,0))=\"\",\"\",INDEX('ImpactOutcome_Import-Export'!M$7:M$13,MATCH($A54,'ImpactOutcome_Import-Export'!$B$7:$B$13,0))),\"\"))","v":""},{"$f":"IF(B54=\"\",\"\",IFERROR(IF(INDEX('ImpactOutcome_Import-Export'!N$7:N$13,MATCH($A54,'ImpactOutcome_Import-Export'!$B$7:$B$13,0))=\"\",\"\",INDEX('ImpactOutcome_Import-Export'!N$7:N$13,MATCH($A54,'ImpactOutcome_Import-Export'!$B$7:$B$13,0))),\"\"))","v":""},{"$f":"IF(B54=\"\",\"\",IFERROR(IF(INDEX('ImpactOutcome_Import-Export'!O$7:O$13,MATCH($A54,'ImpactOutcome_Import-Export'!$B$7:$B$13,0))=\"\",\"\",INDEX('ImpactOutcome_Import-Export'!O$7:O$13,MATCH($A54,'ImpactOutcome_Import-Export'!$B$7:$B$13,0))),\"\"))","v":""},{"$f":"IF(B54=\"\",\"\",IFERROR(IF(INDEX('ImpactOutcome_Import-Export'!P$7:P$13,MATCH($A54,'ImpactOutcome_Import-Export'!$B$7:$B$13,0))=\"\",\"\",INDEX('ImpactOutcome_Import-Export'!P$7:P$13,MATCH($A54,'ImpactOutcome_Import-Export'!$B$7:$B$13,0))),\"\"))","v":""},{"$f":"IF(B54=\"\",\"\",IFERROR(IF(INDEX('ImpactOutcome_Import-Export'!Q$7:Q$13,MATCH($A54,'ImpactOutcome_Import-Export'!$B$7:$B$13,0))=\"\",\"\",INDEX('ImpactOutcome_Import-Export'!Q$7:Q$13,MATCH($A54,'ImpactOutcome_Import-Export'!$B$7:$B$13,0))),\"\"))","v":""},{"$f":"IF(B54=\"\",\"\",IFERROR(IF(INDEX('ImpactOutcome_Import-Export'!R$7:R$13,MATCH($A54,'ImpactOutcome_Import-Export'!$B$7:$B$13,0))=\"\",\"\",INDEX('ImpactOutcome_Import-Export'!R$7:R$13,MATCH($A54,'ImpactOutcome_Import-Export'!$B$7:$B$13,0))),\"\"))","v":""},null,null,"",null,null,null,"",null,null,null,"",null,null,null,"",null,null,"",null,""]
[{"$f":"IFERROR(IF(INDEX(Impactlist,MATCH(0,INDEX(COUNTIF(A$10:A54,Impactlist),0,0),0))<>\"\",INDEX(Impactlist,MATCH(0,INDEX(COUNTIF(A$10:A54,Impactlist),0,0),0)),INDEX(Outcomelist,MATCH(0,INDEX(COUNTIF(A$10:A54,Outcomelist),0,0),0))),\"\")","v":""},{"$f":"IFERROR(INDEX('ImpactOutcome_Import-Export'!D$7:D$200,MATCH($A55,'ImpactOutcome_Import-Export'!$B$7:$B$200,0)),\"\")","v":""},{"$f":"IF(B55=\"\",\"\",IFERROR(INDEX('ImpactOutcome_Import-Export'!F$7:F$13,MATCH($A55,'ImpactOutcome_Import-Export'!$B$7:$B$13,0)),\"\"))","v":""},{"$f":"IF(B55=\"\",\"\",IFERROR(IF(INDEX('ImpactOutcome_Import-Export'!K$7:K$13,MATCH($A55,'ImpactOutcome_Import-Export'!$B$7:$B$13,0))=\"\",\"\",INDEX('ImpactOutcome_Import-Export'!K$7:K$13,MATCH($A55,'ImpactOutcome_Import-Export'!$B$7:$B$13,0))),\"\"))","v":""},{"$f":"IF(B55=\"\",\"\",IFERROR(IF(INDEX('ImpactOutcome_Import-Export'!L$7:L$13,MATCH($A55,'ImpactOutcome_Import-Export'!$B$7:$B$13,0))=\"\",\"\",INDEX('ImpactOutcome_Import-Export'!L$7:L$13,MATCH($A55,'ImpactOutcome_Import-Export'!$B$7:$B$13,0))),\"\"))","v":""},{"$f":"IF(B55=\"\",\"\",IFERROR(IF(INDEX('ImpactOutcome_Import-Export'!M$7:M$13,MATCH($A55,'ImpactOutcome_Import-Export'!$B$7:$B$13,0))=\"\",\"\",INDEX('ImpactOutcome_Import-Export'!M$7:M$13,MATCH($A55,'ImpactOutcome_Import-Export'!$B$7:$B$13,0))),\"\"))","v":""},{"$f":"IF(B55=\"\",\"\",IFERROR(IF(INDEX('ImpactOutcome_Import-Export'!N$7:N$13,MATCH($A55,'ImpactOutcome_Import-Export'!$B$7:$B$13,0))=\"\",\"\",INDEX('ImpactOutcome_Import-Export'!N$7:N$13,MATCH($A55,'ImpactOutcome_Import-Export'!$B$7:$B$13,0))),\"\"))","v":""},{"$f":"IF(B55=\"\",\"\",IFERROR(IF(INDEX('ImpactOutcome_Import-Export'!O$7:O$13,MATCH($A55,'ImpactOutcome_Import-Export'!$B$7:$B$13,0))=\"\",\"\",INDEX('ImpactOutcome_Import-Export'!O$7:O$13,MATCH($A55,'ImpactOutcome_Import-Export'!$B$7:$B$13,0))),\"\"))","v":""},{"$f":"IF(B55=\"\",\"\",IFERROR(IF(INDEX('ImpactOutcome_Import-Export'!P$7:P$13,MATCH($A55,'ImpactOutcome_Import-Export'!$B$7:$B$13,0))=\"\",\"\",INDEX('ImpactOutcome_Import-Export'!P$7:P$13,MATCH($A55,'ImpactOutcome_Import-Export'!$B$7:$B$13,0))),\"\"))","v":""},{"$f":"IF(B55=\"\",\"\",IFERROR(IF(INDEX('ImpactOutcome_Import-Export'!Q$7:Q$13,MATCH($A55,'ImpactOutcome_Import-Export'!$B$7:$B$13,0))=\"\",\"\",INDEX('ImpactOutcome_Import-Export'!Q$7:Q$13,MATCH($A55,'ImpactOutcome_Import-Export'!$B$7:$B$13,0))),\"\"))","v":""},{"$f":"IF(B55=\"\",\"\",IFERROR(IF(INDEX('ImpactOutcome_Import-Export'!R$7:R$13,MATCH($A55,'ImpactOutcome_Import-Export'!$B$7:$B$13,0))=\"\",\"\",INDEX('ImpactOutcome_Import-Export'!R$7:R$13,MATCH($A55,'ImpactOutcome_Import-Export'!$B$7:$B$13,0))),\"\"))","v":""},null,null,"",null,null,null,"",null,null,null,"",null,null,null,"",null,null,"",null,""]
[{"$f":"IFERROR(IF(INDEX(Impactlist,MATCH(0,INDEX(COUNTIF(A$10:A55,Impactlist),0,0),0))<>\"\",INDEX(Impactlist,MATCH(0,INDEX(COUNTIF(A$10:A55,Impactlist),0,0),0)),INDEX(Outcomelist,MATCH(0,INDEX(COUNTIF(A$10:A55,Outcomelist),0,0),0))),\"\")","v":""},{"$f":"IFERROR(INDEX('ImpactOutcome_Import-Export'!D$7:D$200,MATCH($A56,'ImpactOutcome_Import-Export'!$B$7:$B$200,0)),\"\")","v":""},{"$f":"IF(B56=\"\",\"\",IFERROR(INDEX('ImpactOutcome_Import-Export'!F$7:F$13,MATCH($A56,'ImpactOutcome_Import-Export'!$B$7:$B$13,0)),\"\"))","v":""},{"$f":"IF(B56=\"\",\"\",IFERROR(IF(INDEX('ImpactOutcome_Import-Export'!K$7:K$13,MATCH($A56,'ImpactOutcome_Import-Export'!$B$7:$B$13,0))=\"\",\"\",INDEX('ImpactOutcome_Import-Export'!K$7:K$13,MATCH($A56,'ImpactOutcome_Import-Export'!$B$7:$B$13,0))),\"\"))","v":""},{"$f":"IF(B56=\"\",\"\",IFERROR(IF(INDEX('ImpactOutcome_Import-Export'!L$7:L$13,MATCH($A56,'ImpactOutcome_Import-Export'!$B$7:$B$13,0))=\"\",\"\",INDEX('ImpactOutcome_Import-Export'!L$7:L$13,MATCH($A56,'ImpactOutcome_Import-Export'!$B$7:$B$13,0))),\"\"))","v":""},{"$f":"IF(B56=\"\",\"\",IFERROR(IF(INDEX('ImpactOutcome_Import-Export'!M$7:M$13,MATCH($A56,'ImpactOutcome_Import-Export'!$B$7:$B$13,0))=\"\",\"\",INDEX('ImpactOutcome_Import-Export'!M$7:M$13,MATCH($A56,'ImpactOutcome_Import-Export'!$B$7:$B$13,0))),\"\"))","v":""},{"$f":"IF(B56=\"\",\"\",IFERROR(IF(INDEX('ImpactOutcome_Import-Export'!N$7:N$13,MATCH($A56,'ImpactOutcome_Import-Export'!$B$7:$B$13,0))=\"\",\"\",INDEX('ImpactOutcome_Import-Export'!N$7:N$13,MATCH($A56,'ImpactOutcome_Import-Export'!$B$7:$B$13,0))),\"\"))","v":""},{"$f":"IF(B56=\"\",\"\",IFERROR(IF(INDEX('ImpactOutcome_Import-Export'!O$7:O$13,MATCH($A56,'ImpactOutcome_Import-Export'!$B$7:$B$13,0))=\"\",\"\",INDEX('ImpactOutcome_Import-Export'!O$7:O$13,MATCH($A56,'ImpactOutcome_Import-Export'!$B$7:$B$13,0))),\"\"))","v":""},{"$f":"IF(B56=\"\",\"\",IFERROR(IF(INDEX('ImpactOutcome_Import-Export'!P$7:P$13,MATCH($A56,'ImpactOutcome_Import-Export'!$B$7:$B$13,0))=\"\",\"\",INDEX('ImpactOutcome_Import-Export'!P$7:P$13,MATCH($A56,'ImpactOutcome_Import-Export'!$B$7:$B$13,0))),\"\"))","v":""},{"$f":"IF(B56=\"\",\"\",IFERROR(IF(INDEX('ImpactOutcome_Import-Export'!Q$7:Q$13,MATCH($A56,'ImpactOutcome_Import-Export'!$B$7:$B$13,0))=\"\",\"\",INDEX('ImpactOutcome_Import-Export'!Q$7:Q$13,MATCH($A56,'ImpactOutcome_Import-Export'!$B$7:$B$13,0))),\"\"))","v":""},{"$f":"IF(B56=\"\",\"\",IFERROR(IF(INDEX('ImpactOutcome_Import-Export'!R$7:R$13,MATCH($A56,'ImpactOutcome_Import-Export'!$B$7:$B$13,0))=\"\",\"\",INDEX('ImpactOutcome_Import-Export'!R$7:R$13,MATCH($A56,'ImpactOutcome_Import-Export'!$B$7:$B$13,0))),\"\"))","v":""},null,null,"",null,null,null,"",null,null,null,"",null,null,null,"",null,null,"",null,""]
[{"$f":"IFERROR(IF(INDEX(Impactlist,MATCH(0,INDEX(COUNTIF(A$10:A56,Impactlist),0,0),0))<>\"\",INDEX(Impactlist,MATCH(0,INDEX(COUNTIF(A$10:A56,Impactlist),0,0),0)),INDEX(Outcomelist,MATCH(0,INDEX(COUNTIF(A$10:A56,Outcomelist),0,0),0))),\"\")","v":""},{"$f":"IFERROR(INDEX('ImpactOutcome_Import-Export'!D$7:D$200,MATCH($A57,'ImpactOutcome_Import-Export'!$B$7:$B$200,0)),\"\")","v":""},{"$f":"IF(B57=\"\",\"\",IFERROR(INDEX('ImpactOutcome_Import-Export'!F$7:F$13,MATCH($A57,'ImpactOutcome_Import-Export'!$B$7:$B$13,0)),\"\"))","v":""},{"$f":"IF(B57=\"\",\"\",IFERROR(IF(INDEX('ImpactOutcome_Import-Export'!K$7:K$13,MATCH($A57,'ImpactOutcome_Import-Export'!$B$7:$B$13,0))=\"\",\"\",INDEX('ImpactOutcome_Import-Export'!K$7:K$13,MATCH($A57,'ImpactOutcome_Import-Export'!$B$7:$B$13,0))),\"\"))","v":""},{"$f":"IF(B57=\"\",\"\",IFERROR(IF(INDEX('ImpactOutcome_Import-Export'!L$7:L$13,MATCH($A57,'ImpactOutcome_Import-Export'!$B$7:$B$13,0))=\"\",\"\",INDEX('ImpactOutcome_Import-Export'!L$7:L$13,MATCH($A57,'ImpactOutcome_Import-Export'!$B$7:$B$13,0))),\"\"))","v":""},{"$f":"IF(B57=\"\",\"\",IFERROR(IF(INDEX('ImpactOutcome_Import-Export'!M$7:M$13,MATCH($A57,'ImpactOutcome_Import-Export'!$B$7:$B$13,0))=\"\",\"\",INDEX('ImpactOutcome_Import-Export'!M$7:M$13,MATCH($A57,'ImpactOutcome_Import-Export'!$B$7:$B$13,0))),\"\"))","v":""},{"$f":"IF(B57=\"\",\"\",IFERROR(IF(INDEX('ImpactOutcome_Import-Export'!N$7:N$13,MATCH($A57,'ImpactOutcome_Import-Export'!$B$7:$B$13,0))=\"\",\"\",INDEX('ImpactOutcome_Import-Export'!N$7:N$13,MATCH($A57,'ImpactOutcome_Import-Export'!$B$7:$B$13,0))),\"\"))","v":""},{"$f":"IF(B57=\"\",\"\",IFERROR(IF(INDEX('ImpactOutcome_Import-Export'!O$7:O$13,MATCH($A57,'ImpactOutcome_Import-Export'!$B$7:$B$13,0))=\"\",\"\",INDEX('ImpactOutcome_Import-Export'!O$7:O$13,MATCH($A57,'ImpactOutcome_Import-Export'!$B$7:$B$13,0))),\"\"))","v":""},{"$f":"IF(B57=\"\",\"\",IFERROR(IF(INDEX('ImpactOutcome_Import-Export'!P$7:P$13,MATCH($A57,'ImpactOutcome_Import-Export'!$B$7:$B$13,0))=\"\",\"\",INDEX('ImpactOutcome_Import-Export'!P$7:P$13,MATCH($A57,'ImpactOutcome_Import-Export'!$B$7:$B$13,0))),\"\"))","v":""},{"$f":"IF(B57=\"\",\"\",IFERROR(IF(INDEX('ImpactOutcome_Import-Export'!Q$7:Q$13,MATCH($A57,'ImpactOutcome_Import-Export'!$B$7:$B$13,0))=\"\",\"\",INDEX('ImpactOutcome_Import-Export'!Q$7:Q$13,MATCH($A57,'ImpactOutcome_Import-Export'!$B$7:$B$13,0))),\"\"))","v":""},{"$f":"IF(B57=\"\",\"\",IFERROR(IF(INDEX('ImpactOutcome_Import-Export'!R$7:R$13,MATCH($A57,'ImpactOutcome_Import-Export'!$B$7:$B$13,0))=\"\",\"\",INDEX('ImpactOutcome_Import-Export'!R$7:R$13,MATCH($A57,'ImpactOutcome_Import-Export'!$B$7:$B$13,0))),\"\"))","v":""},null,null,"",null,null,null,"",null,null,null,"",null,null,null,"",null,null,"",null,""]
[{"$f":"IFERROR(IF(INDEX(Impactlist,MATCH(0,INDEX(COUNTIF(A$10:A57,Impactlist),0,0),0))<>\"\",INDEX(Impactlist,MATCH(0,INDEX(COUNTIF(A$10:A57,Impactlist),0,0),0)),INDEX(Outcomelist,MATCH(0,INDEX(COUNTIF(A$10:A57,Outcomelist),0,0),0))),\"\")","v":""},{"$f":"IFERROR(INDEX('ImpactOutcome_Import-Export'!D$7:D$200,MATCH($A58,'ImpactOutcome_Import-Export'!$B$7:$B$200,0)),\"\")","v":""},{"$f":"IF(B58=\"\",\"\",IFERROR(INDEX('ImpactOutcome_Import-Export'!F$7:F$13,MATCH($A58,'ImpactOutcome_Import-Export'!$B$7:$B$13,0)),\"\"))","v":""},{"$f":"IF(B58=\"\",\"\",IFERROR(IF(INDEX('ImpactOutcome_Import-Export'!K$7:K$13,MATCH($A58,'ImpactOutcome_Import-Export'!$B$7:$B$13,0))=\"\",\"\",INDEX('ImpactOutcome_Import-Export'!K$7:K$13,MATCH($A58,'ImpactOutcome_Import-Export'!$B$7:$B$13,0))),\"\"))","v":""},{"$f":"IF(B58=\"\",\"\",IFERROR(IF(INDEX('ImpactOutcome_Import-Export'!L$7:L$13,MATCH($A58,'ImpactOutcome_Import-Export'!$B$7:$B$13,0))=\"\",\"\",INDEX('ImpactOutcome_Import-Export'!L$7:L$13,MATCH($A58,'ImpactOutcome_Import-Export'!$B$7:$B$13,0))),\"\"))","v":""},{"$f":"IF(B58=\"\",\"\",IFERROR(IF(INDEX('ImpactOutcome_Import-Export'!M$7:M$13,MATCH($A58,'ImpactOutcome_Import-Export'!$B$7:$B$13,0))=\"\",\"\",INDEX('ImpactOutcome_Import-Export'!M$7:M$13,MATCH($A58,'ImpactOutcome_Import-Export'!$B$7:$B$13,0))),\"\"))","v":""},{"$f":"IF(B58=\"\",\"\",IFERROR(IF(INDEX('ImpactOutcome_Import-Export'!N$7:N$13,MATCH($A58,'ImpactOutcome_Import-Export'!$B$7:$B$13,0))=\"\",\"\",INDEX('ImpactOutcome_Import-Export'!N$7:N$13,MATCH($A58,'ImpactOutcome_Import-Export'!$B$7:$B$13,0))),\"\"))","v":""},{"$f":"IF(B58=\"\",\"\",IFERROR(IF(INDEX('ImpactOutcome_Import-Export'!O$7:O$13,MATCH($A58,'ImpactOutcome_Import-Export'!$B$7:$B$13,0))=\"\",\"\",INDEX('ImpactOutcome_Import-Export'!O$7:O$13,MATCH($A58,'ImpactOutcome_Import-Export'!$B$7:$B$13,0))),\"\"))","v":""},{"$f":"IF(B58=\"\",\"\",IFERROR(IF(INDEX('ImpactOutcome_Import-Export'!P$7:P$13,MATCH($A58,'ImpactOutcome_Import-Export'!$B$7:$B$13,0))=\"\",\"\",INDEX('ImpactOutcome_Import-Export'!P$7:P$13,MATCH($A58,'ImpactOutcome_Import-Export'!$B$7:$B$13,0))),\"\"))","v":""},{"$f":"IF(B58=\"\",\"\",IFERROR(IF(INDEX('ImpactOutcome_Import-Export'!Q$7:Q$13,MATCH($A58,'ImpactOutcome_Import-Export'!$B$7:$B$13,0))=\"\",\"\",INDEX('ImpactOutcome_Import-Export'!Q$7:Q$13,MATCH($A58,'ImpactOutcome_Import-Export'!$B$7:$B$13,0))),\"\"))","v":""},{"$f":"IF(B58=\"\",\"\",IFERROR(IF(INDEX('ImpactOutcome_Import-Export'!R$7:R$13,MATCH($A58,'ImpactOutcome_Import-Export'!$B$7:$B$13,0))=\"\",\"\",INDEX('ImpactOutcome_Import-Export'!R$7:R$13,MATCH($A58,'ImpactOutcome_Import-Export'!$B$7:$B$13,0))),\"\"))","v":""},null,null,"",null,null,null,"",null,null,null,"",null,null,null,"",null,null,"",null,""]
[{"$f":"IFERROR(IF(INDEX(Impactlist,MATCH(0,INDEX(COUNTIF(A$10:A58,Impactlist),0,0),0))<>\"\",INDEX(Impactlist,MATCH(0,INDEX(COUNTIF(A$10:A58,Impactlist),0,0),0)),INDEX(Outcomelist,MATCH(0,INDEX(COUNTIF(A$10:A58,Outcomelist),0,0),0))),\"\")","v":""},{"$f":"IFERROR(INDEX('ImpactOutcome_Import-Export'!D$7:D$200,MATCH($A59,'ImpactOutcome_Import-Export'!$B$7:$B$200,0)),\"\")","v":""},{"$f":"IF(B59=\"\",\"\",IFERROR(INDEX('ImpactOutcome_Import-Export'!F$7:F$13,MATCH($A59,'ImpactOutcome_Import-Export'!$B$7:$B$13,0)),\"\"))","v":""},{"$f":"IF(B59=\"\",\"\",IFERROR(IF(INDEX('ImpactOutcome_Import-Export'!K$7:K$13,MATCH($A59,'ImpactOutcome_Import-Export'!$B$7:$B$13,0))=\"\",\"\",INDEX('ImpactOutcome_Import-Export'!K$7:K$13,MATCH($A59,'ImpactOutcome_Import-Export'!$B$7:$B$13,0))),\"\"))","v":""},{"$f":"IF(B59=\"\",\"\",IFERROR(IF(INDEX('ImpactOutcome_Import-Export'!L$7:L$13,MATCH($A59,'ImpactOutcome_Import-Export'!$B$7:$B$13,0))=\"\",\"\",INDEX('ImpactOutcome_Import-Export'!L$7:L$13,MATCH($A59,'ImpactOutcome_Import-Export'!$B$7:$B$13,0))),\"\"))","v":""},{"$f":"IF(B59=\"\",\"\",IFERROR(IF(INDEX('ImpactOutcome_Import-Export'!M$7:M$13,MATCH($A59,'ImpactOutcome_Import-Export'!$B$7:$B$13,0))=\"\",\"\",INDEX('ImpactOutcome_Import-Export'!M$7:M$13,MATCH($A59,'ImpactOutcome_Import-Export'!$B$7:$B$13,0))),\"\"))","v":""},{"$f":"IF(B59=\"\",\"\",IFERROR(IF(INDEX('ImpactOutcome_Import-Export'!N$7:N$13,MATCH($A59,'ImpactOutcome_Import-Export'!$B$7:$B$13,0))=\"\",\"\",INDEX('ImpactOutcome_Import-Export'!N$7:N$13,MATCH($A59,'ImpactOutcome_Import-Export'!$B$7:$B$13,0))),\"\"))","v":""},{"$f":"IF(B59=\"\",\"\",IFERROR(IF(INDEX('ImpactOutcome_Import-Export'!O$7:O$13,MATCH($A59,'ImpactOutcome_Import-Export'!$B$7:$B$13,0))=\"\",\"\",INDEX('ImpactOutcome_Import-Export'!O$7:O$13,MATCH($A59,'ImpactOutcome_Import-Export'!$B$7:$B$13,0))),\"\"))","v":""},{"$f":"IF(B59=\"\",\"\",IFERROR(IF(INDEX('ImpactOutcome_Import-Export'!P$7:P$13,MATCH($A59,'ImpactOutcome_Import-Export'!$B$7:$B$13,0))=\"\",\"\",INDEX('ImpactOutcome_Import-Export'!P$7:P$13,MATCH($A59,'ImpactOutcome_Import-Export'!$B$7:$B$13,0))),\"\"))","v":""},{"$f":"IF(B59=\"\",\"\",IFERROR(IF(INDEX('ImpactOutcome_Import-Export'!Q$7:Q$13,MATCH($A59,'ImpactOutcome_Import-Export'!$B$7:$B$13,0))=\"\",\"\",INDEX('ImpactOutcome_Import-Export'!Q$7:Q$13,MATCH($A59,'ImpactOutcome_Import-Export'!$B$7:$B$13,0))),\"\"))","v":""},{"$f":"IF(B59=\"\",\"\",IFERROR(IF(INDEX('ImpactOutcome_Import-Export'!R$7:R$13,MATCH($A59,'ImpactOutcome_Import-Export'!$B$7:$B$13,0))=\"\",\"\",INDEX('ImpactOutcome_Import-Export'!R$7:R$13,MATCH($A59,'ImpactOutcome_Import-Export'!$B$7:$B$13,0))),\"\"))","v":""},null,null,"",null,null,null,"",null,null,null,"",null,null,null,"",null,null,"",null,""]
[{"$f":"IFERROR(IF(INDEX(Impactlist,MATCH(0,INDEX(COUNTIF(A$10:A59,Impactlist),0,0),0))<>\"\",INDEX(Impactlist,MATCH(0,INDEX(COUNTIF(A$10:A59,Impactlist),0,0),0)),INDEX(Outcomelist,MATCH(0,INDEX(COUNTIF(A$10:A59,Outcomelist),0,0),0))),\"\")","v":""},{"$f":"IFERROR(INDEX('ImpactOutcome_Import-Export'!D$7:D$200,MATCH($A60,'ImpactOutcome_Import-Export'!$B$7:$B$200,0)),\"\")","v":""},{"$f":"IF(B60=\"\",\"\",IFERROR(INDEX('ImpactOutcome_Import-Export'!F$7:F$13,MATCH($A60,'ImpactOutcome_Import-Export'!$B$7:$B$13,0)),\"\"))","v":""},{"$f":"IF(B60=\"\",\"\",IFERROR(IF(INDEX('ImpactOutcome_Import-Export'!K$7:K$13,MATCH($A60,'ImpactOutcome_Import-Export'!$B$7:$B$13,0))=\"\",\"\",INDEX('ImpactOutcome_Import-Export'!K$7:K$13,MATCH($A60,'ImpactOutcome_Import-Export'!$B$7:$B$13,0))),\"\"))","v":""},{"$f":"IF(B60=\"\",\"\",IFERROR(IF(INDEX('ImpactOutcome_Import-Export'!L$7:L$13,MATCH($A60,'ImpactOutcome_Import-Export'!$B$7:$B$13,0))=\"\",\"\",INDEX('ImpactOutcome_Import-Export'!L$7:L$13,MATCH($A60,'ImpactOutcome_Import-Export'!$B$7:$B$13,0))),\"\"))","v":""},{"$f":"IF(B60=\"\",\"\",IFERROR(IF(INDEX('ImpactOutcome_Import-Export'!M$7:M$13,MATCH($A60,'ImpactOutcome_Import-Export'!$B$7:$B$13,0))=\"\",\"\",INDEX('ImpactOutcome_Import-Export'!M$7:M$13,MATCH($A60,'ImpactOutcome_Import-Export'!$B$7:$B$13,0))),\"\"))","v":""},{"$f":"IF(B60=\"\",\"\",IFERROR(IF(INDEX('ImpactOutcome_Import-Export'!N$7:N$13,MATCH($A60,'ImpactOutcome_Import-Export'!$B$7:$B$13,0))=\"\",\"\",INDEX('ImpactOutcome_Import-Export'!N$7:N$13,MATCH($A60,'ImpactOutcome_Import-Export'!$B$7:$B$13,0))),\"\"))","v":""},{"$f":"IF(B60=\"\",\"\",IFERROR(IF(INDEX('ImpactOutcome_Import-Export'!O$7:O$13,MATCH($A60,'ImpactOutcome_Import-Export'!$B$7:$B$13,0))=\"\",\"\",INDEX('ImpactOutcome_Import-Export'!O$7:O$13,MATCH($A60,'ImpactOutcome_Import-Export'!$B$7:$B$13,0))),\"\"))","v":""},{"$f":"IF(B60=\"\",\"\",IFERROR(IF(INDEX('ImpactOutcome_Import-Export'!P$7:P$13,MATCH($A60,'ImpactOutcome_Import-Export'!$B$7:$B$13,0))=\"\",\"\",INDEX('ImpactOutcome_Import-Export'!P$7:P$13,MATCH($A60,'ImpactOutcome_Import-Export'!$B$7:$B$13,0))),\"\"))","v":""},{"$f":"IF(B60=\"\",\"\",IFERROR(IF(INDEX('ImpactOutcome_Import-Export'!Q$7:Q$13,MATCH($A60,'ImpactOutcome_Import-Export'!$B$7:$B$13,0))=\"\",\"\",INDEX('ImpactOutcome_Import-Export'!Q$7:Q$13,MATCH($A60,'ImpactOutcome_Import-Export'!$B$7:$B$13,0))),\"\"))","v":""},{"$f":"IF(B60=\"\",\"\",IFERROR(IF(INDEX('ImpactOutcome_Import-Export'!R$7:R$13,MATCH($A60,'ImpactOutcome_Import-Export'!$B$7:$B$13,0))=\"\",\"\",INDEX('ImpactOutcome_Import-Export'!R$7:R$13,MATCH($A60,'ImpactOutcome_Import-Export'!$B$7:$B$13,0))),\"\"))","v":""},null,null,"",null,null,null,"",null,null,null,"",null,null,null,"",null,null,"",null,""]
[{"$f":"IFERROR(IF(INDEX(Impactlist,MATCH(0,INDEX(COUNTIF(A$10:A60,Impactlist),0,0),0))<>\"\",INDEX(Impactlist,MATCH(0,INDEX(COUNTIF(A$10:A60,Impactlist),0,0),0)),INDEX(Outcomelist,MATCH(0,INDEX(COUNTIF(A$10:A60,Outcomelist),0,0),0))),\"\")","v":""},{"$f":"IFERROR(INDEX('ImpactOutcome_Import-Export'!D$7:D$200,MATCH($A61,'ImpactOutcome_Import-Export'!$B$7:$B$200,0)),\"\")","v":""},{"$f":"IF(B61=\"\",\"\",IFERROR(INDEX('ImpactOutcome_Import-Export'!F$7:F$13,MATCH($A61,'ImpactOutcome_Import-Export'!$B$7:$B$13,0)),\"\"))","v":""},{"$f":"IF(B61=\"\",\"\",IFERROR(IF(INDEX('ImpactOutcome_Import-Export'!K$7:K$13,MATCH($A61,'ImpactOutcome_Import-Export'!$B$7:$B$13,0))=\"\",\"\",INDEX('ImpactOutcome_Import-Export'!K$7:K$13,MATCH($A61,'ImpactOutcome_Import-Export'!$B$7:$B$13,0))),\"\"))","v":""},{"$f":"IF(B61=\"\",\"\",IFERROR(IF(INDEX('ImpactOutcome_Import-Export'!L$7:L$13,MATCH($A61,'ImpactOutcome_Import-Export'!$B$7:$B$13,0))=\"\",\"\",INDEX('ImpactOutcome_Import-Export'!L$7:L$13,MATCH($A61,'ImpactOutcome_Import-Export'!$B$7:$B$13,0))),\"\"))","v":""},{"$f":"IF(B61=\"\",\"\",IFERROR(IF(INDEX('ImpactOutcome_Import-Export'!M$7:M$13,MATCH($A61,'ImpactOutcome_Import-Export'!$B$7:$B$13,0))=\"\",\"\",INDEX('ImpactOutcome_Import-Export'!M$7:M$13,MATCH($A61,'ImpactOutcome_Import-Export'!$B$7:$B$13,0))),\"\"))","v":""},{"$f":"IF(B61=\"\",\"\",IFERROR(IF(INDEX('ImpactOutcome_Import-Export'!N$7:N$13,MATCH($A61,'ImpactOutcome_Import-Export'!$B$7:$B$13,0))=\"\",\"\",INDEX('ImpactOutcome_Import-Export'!N$7:N$13,MATCH($A61,'ImpactOutcome_Import-Export'!$B$7:$B$13,0))),\"\"))","v":""},{"$f":"IF(B61=\"\",\"\",IFERROR(IF(INDEX('ImpactOutcome_Import-Export'!O$7:O$13,MATCH($A61,'ImpactOutcome_Import-Export'!$B$7:$B$13,0))=\"\",\"\",INDEX('ImpactOutcome_Import-Export'!O$7:O$13,MATCH($A61,'ImpactOutcome_Import-Export'!$B$7:$B$13,0))),\"\"))","v":""},{"$f":"IF(B61=\"\",\"\",IFERROR(IF(INDEX('ImpactOutcome_Import-Export'!P$7:P$13,MATCH($A61,'ImpactOutcome_Import-Export'!$B$7:$B$13,0))=\"\",\"\",INDEX('ImpactOutcome_Import-Export'!P$7:P$13,MATCH($A61,'ImpactOutcome_Import-Export'!$B$7:$B$13,0))),\"\"))","v":""},{"$f":"IF(B61=\"\",\"\",IFERROR(IF(INDEX('ImpactOutcome_Import-Export'!Q$7:Q$13,MATCH($A61,'ImpactOutcome_Import-Export'!$B$7:$B$13,0))=\"\",\"\",INDEX('ImpactOutcome_Import-Export'!Q$7:Q$13,MATCH($A61,'ImpactOutcome_Import-Export'!$B$7:$B$13,0))),\"\"))","v":""},{"$f":"IF(B61=\"\",\"\",IFERROR(IF(INDEX('ImpactOutcome_Import-Export'!R$7:R$13,MATCH($A61,'ImpactOutcome_Import-Export'!$B$7:$B$13,0))=\"\",\"\",INDEX('ImpactOutcome_Import-Export'!R$7:R$13,MATCH($A61,'ImpactOutcome_Import-Export'!$B$7:$B$13,0))),\"\"))","v":""},null,null,"",null,null,null,"",null,null,null,"",null,null,null,"",null,null,"",null,""]
[{"$f":"IFERROR(IF(INDEX(Impactlist,MATCH(0,INDEX(COUNTIF(A$10:A61,Impactlist),0,0),0))<>\"\",INDEX(Impactlist,MATCH(0,INDEX(COUNTIF(A$10:A61,Impactlist),0,0),0)),INDEX(Outcomelist,MATCH(0,INDEX(COUNTIF(A$10:A61,Outcomelist),0,0),0))),\"\")","v":""},{"$f":"IFERROR(INDEX('ImpactOutcome_Import-Export'!D$7:D$200,MATCH($A62,'ImpactOutcome_Import-Export'!$B$7:$B$200,0)),\"\")","v":""},{"$f":"IF(B62=\"\",\"\",IFERROR(INDEX('ImpactOutcome_Import-Export'!F$7:F$13,MATCH($A62,'ImpactOutcome_Import-Export'!$B$7:$B$13,0)),\"\"))","v":""},{"$f":"IF(B62=\"\",\"\",IFERROR(IF(INDEX('ImpactOutcome_Import-Export'!K$7:K$13,MATCH($A62,'ImpactOutcome_Import-Export'!$B$7:$B$13,0))=\"\",\"\",INDEX('ImpactOutcome_Import-Export'!K$7:K$13,MATCH($A62,'ImpactOutcome_Import-Export'!$B$7:$B$13,0))),\"\"))","v":""},{"$f":"IF(B62=\"\",\"\",IFERROR(IF(INDEX('ImpactOutcome_Import-Export'!L$7:L$13,MATCH($A62,'ImpactOutcome_Import-Export'!$B$7:$B$13,0))=\"\",\"\",INDEX('ImpactOutcome_Import-Export'!L$7:L$13,MATCH($A62,'ImpactOutcome_Import-Export'!$B$7:$B$13,0))),\"\"))","v":""},{"$f":"IF(B62=\"\",\"\",IFERROR(IF(INDEX('ImpactOutcome_Import-Export'!M$7:M$13,MATCH($A62,'ImpactOutcome_Import-Export'!$B$7:$B$13,0))=\"\",\"\",INDEX('ImpactOutcome_Import-Export'!M$7:M$13,MATCH($A62,'ImpactOutcome_Import-Export'!$B$7:$B$13,0))),\"\"))","v":""},{"$f":"IF(B62=\"\",\"\",IFERROR(IF(INDEX('ImpactOutcome_Import-Export'!N$7:N$13,MATCH($A62,'ImpactOutcome_Import-Export'!$B$7:$B$13,0))=\"\",\"\",INDEX('ImpactOutcome_Import-Export'!N$7:N$13,MATCH($A62,'ImpactOutcome_Import-Export'!$B$7:$B$13,0))),\"\"))","v":""},{"$f":"IF(B62=\"\",\"\",IFERROR(IF(INDEX('ImpactOutcome_Import-Export'!O$7:O$13,MATCH($A62,'ImpactOutcome_Import-Export'!$B$7:$B$13,0))=\"\",\"\",INDEX('ImpactOutcome_Import-Export'!O$7:O$13,MATCH($A62,'ImpactOutcome_Import-Export'!$B$7:$B$13,0))),\"\"))","v":""},{"$f":"IF(B62=\"\",\"\",IFERROR(IF(INDEX('ImpactOutcome_Import-Export'!P$7:P$13,MATCH($A62,'ImpactOutcome_Import-Export'!$B$7:$B$13,0))=\"\",\"\",INDEX('ImpactOutcome_Import-Export'!P$7:P$13,MATCH($A62,'ImpactOutcome_Import-Export'!$B$7:$B$13,0))),\"\"))","v":""},{"$f":"IF(B62=\"\",\"\",IFERROR(IF(INDEX('ImpactOutcome_Import-Export'!Q$7:Q$13,MATCH($A62,'ImpactOutcome_Import-Export'!$B$7:$B$13,0))=\"\",\"\",INDEX('ImpactOutcome_Import-Export'!Q$7:Q$13,MATCH($A62,'ImpactOutcome_Import-Export'!$B$7:$B$13,0))),\"\"))","v":""},{"$f":"IF(B62=\"\",\"\",IFERROR(IF(INDEX('ImpactOutcome_Import-Export'!R$7:R$13,MATCH($A62,'ImpactOutcome_Import-Export'!$B$7:$B$13,0))=\"\",\"\",INDEX('ImpactOutcome_Import-Export'!R$7:R$13,MATCH($A62,'ImpactOutcome_Import-Export'!$B$7:$B$13,0))),\"\"))","v":""},null,null,"",null,null,null,"",null,null,null,"",null,null,null,"",null,null,"",null,""]
[{"$f":"IFERROR(IF(INDEX(Impactlist,MATCH(0,INDEX(COUNTIF(A$10:A62,Impactlist),0,0),0))<>\"\",INDEX(Impactlist,MATCH(0,INDEX(COUNTIF(A$10:A62,Impactlist),0,0),0)),INDEX(Outcomelist,MATCH(0,INDEX(COUNTIF(A$10:A62,Outcomelist),0,0),0))),\"\")","v":""},{"$f":"IFERROR(INDEX('ImpactOutcome_Import-Export'!D$7:D$200,MATCH($A63,'ImpactOutcome_Import-Export'!$B$7:$B$200,0)),\"\")","v":""},{"$f":"IF(B63=\"\",\"\",IFERROR(INDEX('ImpactOutcome_Import-Export'!F$7:F$13,MATCH($A63,'ImpactOutcome_Import-Export'!$B$7:$B$13,0)),\"\"))","v":""},{"$f":"IF(B63=\"\",\"\",IFERROR(IF(INDEX('ImpactOutcome_Import-Export'!K$7:K$13,MATCH($A63,'ImpactOutcome_Import-Export'!$B$7:$B$13,0))=\"\",\"\",INDEX('ImpactOutcome_Import-Export'!K$7:K$13,MATCH($A63,'ImpactOutcome_Import-Export'!$B$7:$B$13,0))),\"\"))","v":""},{"$f":"IF(B63=\"\",\"\",IFERROR(IF(INDEX('ImpactOutcome_Import-Export'!L$7:L$13,MATCH($A63,'ImpactOutcome_Import-Export'!$B$7:$B$13,0))=\"\",\"\",INDEX('ImpactOutcome_Import-Export'!L$7:L$13,MATCH($A63,'ImpactOutcome_Import-Export'!$B$7:$B$13,0))),\"\"))","v":""},{"$f":"IF(B63=\"\",\"\",IFERROR(IF(INDEX('ImpactOutcome_Import-Export'!M$7:M$13,MATCH($A63,'ImpactOutcome_Import-Export'!$B$7:$B$13,0))=\"\",\"\",INDEX('ImpactOutcome_Import-Export'!M$7:M$13,MATCH($A63,'ImpactOutcome_Import-Export'!$B$7:$B$13,0))),\"\"))","v":""},{"$f":"IF(B63=\"\",\"\",IFERROR(IF(INDEX('ImpactOutcome_Import-Export'!N$7:N$13,MATCH($A63,'ImpactOutcome_Import-Export'!$B$7:$B$13,0))=\"\",\"\",INDEX('ImpactOutcome_Import-Export'!N$7:N$13,MATCH($A63,'ImpactOutcome_Import-Export'!$B$7:$B$13,0))),\"\"))","v":""},{"$f":"IF(B63=\"\",\"\",IFERROR(IF(INDEX('ImpactOutcome_Import-Export'!O$7:O$13,MATCH($A63,'ImpactOutcome_Import-Export'!$B$7:$B$13,0))=\"\",\"\",INDEX('ImpactOutcome_Import-Export'!O$7:O$13,MATCH($A63,'ImpactOutcome_Import-Export'!$B$7:$B$13,0))),\"\"))","v":""},{"$f":"IF(B63=\"\",\"\",IFERROR(IF(INDEX('ImpactOutcome_Import-Export'!P$7:P$13,MATCH($A63,'ImpactOutcome_Import-Export'!$B$7:$B$13,0))=\"\",\"\",INDEX('ImpactOutcome_Import-Export'!P$7:P$13,MATCH($A63,'ImpactOutcome_Import-Export'!$B$7:$B$13,0))),\"\"))","v":""},{"$f":"IF(B63=\"\",\"\",IFERROR(IF(INDEX('ImpactOutcome_Import-Export'!Q$7:Q$13,MATCH($A63,'ImpactOutcome_Import-Export'!$B$7:$B$13,0))=\"\",\"\",INDEX('ImpactOutcome_Import-Export'!Q$7:Q$13,MATCH($A63,'ImpactOutcome_Import-Export'!$B$7:$B$13,0))),\"\"))","v":""},{"$f":"IF(B63=\"\",\"\",IFERROR(IF(INDEX('ImpactOutcome_Import-Export'!R$7:R$13,MATCH($A63,'ImpactOutcome_Import-Export'!$B$7:$B$13,0))=\"\",\"\",INDEX('ImpactOutcome_Import-Export'!R$7:R$13,MATCH($A63,'ImpactOutcome_Import-Export'!$B$7:$B$13,0))),\"\"))","v":""},null,null,"",null,null,null,"",null,null,null,"",null,null,null,"",null,null,"",null,""]
[{"$f":"IFERROR(IF(INDEX(Impactlist,MATCH(0,INDEX(COUNTIF(A$10:A63,Impactlist),0,0),0))<>\"\",INDEX(Impactlist,MATCH(0,INDEX(COUNTIF(A$10:A63,Impactlist),0,0),0)),INDEX(Outcomelist,MATCH(0,INDEX(COUNTIF(A$10:A63,Outcomelist),0,0),0))),\"\")","v":""},{"$f":"IFERROR(INDEX('ImpactOutcome_Import-Export'!D$7:D$200,MATCH($A64,'ImpactOutcome_Import-Export'!$B$7:$B$200,0)),\"\")","v":""},{"$f":"IF(B64=\"\",\"\",IFERROR(INDEX('ImpactOutcome_Import-Export'!F$7:F$13,MATCH($A64,'ImpactOutcome_Import-Export'!$B$7:$B$13,0)),\"\"))","v":""},{"$f":"IF(B64=\"\",\"\",IFERROR(IF(INDEX('ImpactOutcome_Import-Export'!K$7:K$13,MATCH($A64,'ImpactOutcome_Import-Export'!$B$7:$B$13,0))=\"\",\"\",INDEX('ImpactOutcome_Import-Export'!K$7:K$13,MATCH($A64,'ImpactOutcome_Import-Export'!$B$7:$B$13,0))),\"\"))","v":""},{"$f":"IF(B64=\"\",\"\",IFERROR(IF(INDEX('ImpactOutcome_Import-Export'!L$7:L$13,MATCH($A64,'ImpactOutcome_Import-Export'!$B$7:$B$13,0))=\"\",\"\",INDEX('ImpactOutcome_Import-Export'!L$7:L$13,MATCH($A64,'ImpactOutcome_Import-Export'!$B$7:$B$13,0))),\"\"))","v":""},{"$f":"IF(B64=\"\",\"\",IFERROR(IF(INDEX('ImpactOutcome_Import-Export'!M$7:M$13,MATCH($A64,'ImpactOutcome_Import-Export'!$B$7:$B$13,0))=\"\",\"\",INDEX('ImpactOutcome_Import-Export'!M$7:M$13,MATCH($A64,'ImpactOutcome_Import-Export'!$B$7:$B$13,0))),\"\"))","v":""},{"$f":"IF(B64=\"\",\"\",IFERROR(IF(INDEX('ImpactOutcome_Import-Export'!N$7:N$13,MATCH($A64,'ImpactOutcome_Import-Export'!$B$7:$B$13,0))=\"\",\"\",INDEX('ImpactOutcome_Import-Export'!N$7:N$13,MATCH($A64,'ImpactOutcome_Import-Export'!$B$7:$B$13,0))),\"\"))","v":""},{"$f":"IF(B64=\"\",\"\",IFERROR(IF(INDEX('ImpactOutcome_Import-Export'!O$7:O$13,MATCH($A64,'ImpactOutcome_Import-Export'!$B$7:$B$13,0))=\"\",\"\",INDEX('ImpactOutcome_Import-Export'!O$7:O$13,MATCH($A64,'ImpactOutcome_Import-Export'!$B$7:$B$13,0))),\"\"))","v":""},{"$f":"IF(B64=\"\",\"\",IFERROR(IF(INDEX('ImpactOutcome_Import-Export'!P$7:P$13,MATCH($A64,'ImpactOutcome_Import-Export'!$B$7:$B$13,0))=\"\",\"\",INDEX('ImpactOutcome_Import-Export'!P$7:P$13,MATCH($A64,'ImpactOutcome_Import-Export'!$B$7:$B$13,0))),\"\"))","v":""},{"$f":"IF(B64=\"\",\"\",IFERROR(IF(INDEX('ImpactOutcome_Import-Export'!Q$7:Q$13,MATCH($A64,'ImpactOutcome_Import-Export'!$B$7:$B$13,0))=\"\",\"\",INDEX('ImpactOutcome_Import-Export'!Q$7:Q$13,MATCH($A64,'ImpactOutcome_Import-Export'!$B$7:$B$13,0))),\"\"))","v":""},{"$f":"IF(B64=\"\",\"\",IFERROR(IF(INDEX('ImpactOutcome_Import-Export'!R$7:R$13,MATCH($A64,'ImpactOutcome_Import-Export'!$B$7:$B$13,0))=\"\",\"\",INDEX('ImpactOutcome_Import-Export'!R$7:R$13,MATCH($A64,'ImpactOutcome_Import-Export'!$B$7:$B$13,0))),\"\"))","v":""},null,null,"",null,null,null,"",null,null,null,"",null,null,null,"",null,null,"",null,""]
[{"$f":"IFERROR(IF(INDEX(Impactlist,MATCH(0,INDEX(COUNTIF(A$10:A64,Impactlist),0,0),0))<>\"\",INDEX(Impactlist,MATCH(0,INDEX(COUNTIF(A$10:A64,Impactlist),0,0),0)),INDEX(Outcomelist,MATCH(0,INDEX(COUNTIF(A$10:A64,Outcomelist),0,0),0))),\"\")","v":""},{"$f":"IFERROR(INDEX('ImpactOutcome_Import-Export'!D$7:D$200,MATCH($A65,'ImpactOutcome_Import-Export'!$B$7:$B$200,0)),\"\")","v":""},{"$f":"IF(B65=\"\",\"\",IFERROR(INDEX('ImpactOutcome_Import-Export'!F$7:F$13,MATCH($A65,'ImpactOutcome_Import-Export'!$B$7:$B$13,0)),\"\"))","v":""},{"$f":"IF(B65=\"\",\"\",IFERROR(IF(INDEX('ImpactOutcome_Import-Export'!K$7:K$13,MATCH($A65,'ImpactOutcome_Import-Export'!$B$7:$B$13,0))=\"\",\"\",INDEX('ImpactOutcome_Import-Export'!K$7:K$13,MATCH($A65,'ImpactOutcome_Import-Export'!$B$7:$B$13,0))),\"\"))","v":""},{"$f":"IF(B65=\"\",\"\",IFERROR(IF(INDEX('ImpactOutcome_Import-Export'!L$7:L$13,MATCH($A65,'ImpactOutcome_Import-Export'!$B$7:$B$13,0))=\"\",\"\",INDEX('ImpactOutcome_Import-Export'!L$7:L$13,MATCH($A65,'ImpactOutcome_Import-Export'!$B$7:$B$13,0))),\"\"))","v":""},{"$f":"IF(B65=\"\",\"\",IFERROR(IF(INDEX('ImpactOutcome_Import-Export'!M$7:M$13,MATCH($A65,'ImpactOutcome_Import-Export'!$B$7:$B$13,0))=\"\",\"\",INDEX('ImpactOutcome_Import-Export'!M$7:M$13,MATCH($A65,'ImpactOutcome_Import-Export'!$B$7:$B$13,0))),\"\"))","v":""},{"$f":"IF(B65=\"\",\"\",IFERROR(IF(INDEX('ImpactOutcome_Import-Export'!N$7:N$13,MATCH($A65,'ImpactOutcome_Import-Export'!$B$7:$B$13,0))=\"\",\"\",INDEX('ImpactOutcome_Import-Export'!N$7:N$13,MATCH($A65,'ImpactOutcome_Import-Export'!$B$7:$B$13,0))),\"\"))","v":""},{"$f":"IF(B65=\"\",\"\",IFERROR(IF(INDEX('ImpactOutcome_Import-Export'!O$7:O$13,MATCH($A65,'ImpactOutcome_Import-Export'!$B$7:$B$13,0))=\"\",\"\",INDEX('ImpactOutcome_Import-Export'!O$7:O$13,MATCH($A65,'ImpactOutcome_Import-Export'!$B$7:$B$13,0))),\"\"))","v":""},{"$f":"IF(B65=\"\",\"\",IFERROR(IF(INDEX('ImpactOutcome_Import-Export'!P$7:P$13,MATCH($A65,'ImpactOutcome_Import-Export'!$B$7:$B$13,0))=\"\",\"\",INDEX('ImpactOutcome_Import-Export'!P$7:P$13,MATCH($A65,'ImpactOutcome_Import-Export'!$B$7:$B$13,0))),\"\"))","v":""},{"$f":"IF(B65=\"\",\"\",IFERROR(IF(INDEX('ImpactOutcome_Import-Export'!Q$7:Q$13,MATCH($A65,'ImpactOutcome_Import-Export'!$B$7:$B$13,0))=\"\",\"\",INDEX('ImpactOutcome_Import-Export'!Q$7:Q$13,MATCH($A65,'ImpactOutcome_Import-Export'!$B$7:$B$13,0))),\"\"))","v":""},{"$f":"IF(B65=\"\",\"\",IFERROR(IF(INDEX('ImpactOutcome_Import-Export'!R$7:R$13,MATCH($A65,'ImpactOutcome_Import-Export'!$B$7:$B$13,0))=\"\",\"\",INDEX('ImpactOutcome_Import-Export'!R$7:R$13,MATCH($A65,'ImpactOutcome_Import-Export'!$B$7:$B$13,0))),\"\"))","v":""},null,null,"",null,null,null,"",null,null,null,"",null,null,null,"",null,null,"",null,""]
[{"$f":"IFERROR(IF(INDEX(Impactlist,MATCH(0,INDEX(COUNTIF(A$10:A65,Impactlist),0,0),0))<>\"\",INDEX(Impactlist,MATCH(0,INDEX(COUNTIF(A$10:A65,Impactlist),0,0),0)),INDEX(Outcomelist,MATCH(0,INDEX(COUNTIF(A$10:A65,Outcomelist),0,0),0))),\"\")","v":""},{"$f":"IFERROR(INDEX('ImpactOutcome_Import-Export'!D$7:D$200,MATCH($A66,'ImpactOutcome_Import-Export'!$B$7:$B$200,0)),\"\")","v":""},{"$f":"IF(B66=\"\",\"\",IFERROR(INDEX('ImpactOutcome_Import-Export'!F$7:F$13,MATCH($A66,'ImpactOutcome_Import-Export'!$B$7:$B$13,0)),\"\"))","v":""},{"$f":"IF(B66=\"\",\"\",IFERROR(IF(INDEX('ImpactOutcome_Import-Export'!K$7:K$13,MATCH($A66,'ImpactOutcome_Import-Export'!$B$7:$B$13,0))=\"\",\"\",INDEX('ImpactOutcome_Import-Export'!K$7:K$13,MATCH($A66,'ImpactOutcome_Import-Export'!$B$7:$B$13,0))),\"\"))","v":""},{"$f":"IF(B66=\"\",\"\",IFERROR(IF(INDEX('ImpactOutcome_Import-Export'!L$7:L$13,MATCH($A66,'ImpactOutcome_Import-Export'!$B$7:$B$13,0))=\"\",\"\",INDEX('ImpactOutcome_Import-Export'!L$7:L$13,MATCH($A66,'ImpactOutcome_Import-Export'!$B$7:$B$13,0))),\"\"))","v":""},{"$f":"IF(B66=\"\",\"\",IFERROR(IF(INDEX('ImpactOutcome_Import-Export'!M$7:M$13,MATCH($A66,'ImpactOutcome_Import-Export'!$B$7:$B$13,0))=\"\",\"\",INDEX('ImpactOutcome_Import-Export'!M$7:M$13,MATCH($A66,'ImpactOutcome_Import-Export'!$B$7:$B$13,0))),\"\"))","v":""},{"$f":"IF(B66=\"\",\"\",IFERROR(IF(INDEX('ImpactOutcome_Import-Export'!N$7:N$13,MATCH($A66,'ImpactOutcome_Import-Export'!$B$7:$B$13,0))=\"\",\"\",INDEX('ImpactOutcome_Import-Export'!N$7:N$13,MATCH($A66,'ImpactOutcome_Import-Export'!$B$7:$B$13,0))),\"\"))","v":""},{"$f":"IF(B66=\"\",\"\",IFERROR(IF(INDEX('ImpactOutcome_Import-Export'!O$7:O$13,MATCH($A66,'ImpactOutcome_Import-Export'!$B$7:$B$13,0))=\"\",\"\",INDEX('ImpactOutcome_Import-Export'!O$7:O$13,MATCH($A66,'ImpactOutcome_Import-Export'!$B$7:$B$13,0))),\"\"))","v":""},{"$f":"IF(B66=\"\",\"\",IFERROR(IF(INDEX('ImpactOutcome_Import-Export'!P$7:P$13,MATCH($A66,'ImpactOutcome_Import-Export'!$B$7:$B$13,0))=\"\",\"\",INDEX('ImpactOutcome_Import-Export'!P$7:P$13,MATCH($A66,'ImpactOutcome_Import-Export'!$B$7:$B$13,0))),\"\"))","v":""},{"$f":"IF(B66=\"\",\"\",IFERROR(IF(INDEX('ImpactOutcome_Import-Export'!Q$7:Q$13,MATCH($A66,'ImpactOutcome_Import-Export'!$B$7:$B$13,0))=\"\",\"\",INDEX('ImpactOutcome_Import-Export'!Q$7:Q$13,MATCH($A66,'ImpactOutcome_Import-Export'!$B$7:$B$13,0))),\"\"))","v":""},{"$f":"IF(B66=\"\",\"\",IFERROR(IF(INDEX('ImpactOutcome_Import-Export'!R$7:R$13,MATCH($A66,'ImpactOutcome_Import-Export'!$B$7:$B$13,0))=\"\",\"\",INDEX('ImpactOutcome_Import-Export'!R$7:R$13,MATCH($A66,'ImpactOutcome_Import-Export'!$B$7:$B$13,0))),\"\"))","v":""},null,null,"",null,null,null,"",null,null,null,"",null,null,null,"",null,null,"",null,""]
[{"$f":"IFERROR(IF(INDEX(Impactlist,MATCH(0,INDEX(COUNTIF(A$10:A66,Impactlist),0,0),0))<>\"\",INDEX(Impactlist,MATCH(0,INDEX(COUNTIF(A$10:A66,Impactlist),0,0),0)),INDEX(Outcomelist,MATCH(0,INDEX(COUNTIF(A$10:A66,Outcomelist),0,0),0))),\"\")","v":""},{"$f":"IFERROR(INDEX('ImpactOutcome_Import-Export'!D$7:D$200,MATCH($A67,'ImpactOutcome_Import-Export'!$B$7:$B$200,0)),\"\")","v":""},{"$f":"IF(B67=\"\",\"\",IFERROR(INDEX('ImpactOutcome_Import-Export'!F$7:F$13,MATCH($A67,'ImpactOutcome_Import-Export'!$B$7:$B$13,0)),\"\"))","v":""},{"$f":"IF(B67=\"\",\"\",IFERROR(IF(INDEX('ImpactOutcome_Import-Export'!K$7:K$13,MATCH($A67,'ImpactOutcome_Import-Export'!$B$7:$B$13,0))=\"\",\"\",INDEX('ImpactOutcome_Import-Export'!K$7:K$13,MATCH($A67,'ImpactOutcome_Import-Export'!$B$7:$B$13,0))),\"\"))","v":""},{"$f":"IF(B67=\"\",\"\",IFERROR(IF(INDEX('ImpactOutcome_Import-Export'!L$7:L$13,MATCH($A67,'ImpactOutcome_Import-Export'!$B$7:$B$13,0))=\"\",\"\",INDEX('ImpactOutcome_Import-Export'!L$7:L$13,MATCH($A67,'ImpactOutcome_Import-Export'!$B$7:$B$13,0))),\"\"))","v":""},{"$f":"IF(B67=\"\",\"\",IFERROR(IF(INDEX('ImpactOutcome_Import-Export'!M$7:M$13,MATCH($A67,'ImpactOutcome_Import-Export'!$B$7:$B$13,0))=\"\",\"\",INDEX('ImpactOutcome_Import-Export'!M$7:M$13,MATCH($A67,'ImpactOutcome_Import-Export'!$B$7:$B$13,0))),\"\"))","v":""},{"$f":"IF(B67=\"\",\"\",IFERROR(IF(INDEX('ImpactOutcome_Import-Export'!N$7:N$13,MATCH($A67,'ImpactOutcome_Import-Export'!$B$7:$B$13,0))=\"\",\"\",INDEX('ImpactOutcome_Import-Export'!N$7:N$13,MATCH($A67,'ImpactOutcome_Import-Export'!$B$7:$B$13,0))),\"\"))","v":""},{"$f":"IF(B67=\"\",\"\",IFERROR(IF(INDEX('ImpactOutcome_Import-Export'!O$7:O$13,MATCH($A67,'ImpactOutcome_Import-Export'!$B$7:$B$13,0))=\"\",\"\",INDEX('ImpactOutcome_Import-Export'!O$7:O$13,MATCH($A67,'ImpactOutcome_Import-Export'!$B$7:$B$13,0))),\"\"))","v":""},{"$f":"IF(B67=\"\",\"\",IFERROR(IF(INDEX('ImpactOutcome_Import-Export'!P$7:P$13,MATCH($A67,'ImpactOutcome_Import-Export'!$B$7:$B$13,0))=\"\",\"\",INDEX('ImpactOutcome_Import-Export'!P$7:P$13,MATCH($A67,'ImpactOutcome_Import-Export'!$B$7:$B$13,0))),\"\"))","v":""},{"$f":"IF(B67=\"\",\"\",IFERROR(IF(INDEX('ImpactOutcome_Import-Export'!Q$7:Q$13,MATCH($A67,'ImpactOutcome_Import-Export'!$B$7:$B$13,0))=\"\",\"\",INDEX('ImpactOutcome_Import-Export'!Q$7:Q$13,MATCH($A67,'ImpactOutcome_Import-Export'!$B$7:$B$13,0))),\"\"))","v":""},{"$f":"IF(B67=\"\",\"\",IFERROR(IF(INDEX('ImpactOutcome_Import-Export'!R$7:R$13,MATCH($A67,'ImpactOutcome_Import-Export'!$B$7:$B$13,0))=\"\",\"\",INDEX('ImpactOutcome_Import-Export'!R$7:R$13,MATCH($A67,'ImpactOutcome_Import-Export'!$B$7:$B$13,0))),\"\"))","v":""},null,null,"",null,null,null,"",null,null,null,"",null,null,null,"",null,null,"",null,""]
[{"$f":"IFERROR(IF(INDEX(Impactlist,MATCH(0,INDEX(COUNTIF(A$10:A67,Impactlist),0,0),0))<>\"\",INDEX(Impactlist,MATCH(0,INDEX(COUNTIF(A$10:A67,Impactlist),0,0),0)),INDEX(Outcomelist,MATCH(0,INDEX(COUNTIF(A$10:A67,Outcomelist),0,0),0))),\"\")","v":""},{"$f":"IFERROR(INDEX('ImpactOutcome_Import-Export'!D$7:D$200,MATCH($A68,'ImpactOutcome_Import-Export'!$B$7:$B$200,0)),\"\")","v":""},{"$f":"IF(B68=\"\",\"\",IFERROR(INDEX('ImpactOutcome_Import-Export'!F$7:F$13,MATCH($A68,'ImpactOutcome_Import-Export'!$B$7:$B$13,0)),\"\"))","v":""},{"$f":"IF(B68=\"\",\"\",IFERROR(IF(INDEX('ImpactOutcome_Import-Export'!K$7:K$13,MATCH($A68,'ImpactOutcome_Import-Export'!$B$7:$B$13,0))=\"\",\"\",INDEX('ImpactOutcome_Import-Export'!K$7:K$13,MATCH($A68,'ImpactOutcome_Import-Export'!$B$7:$B$13,0))),\"\"))","v":""},{"$f":"IF(B68=\"\",\"\",IFERROR(IF(INDEX('ImpactOutcome_Import-Export'!L$7:L$13,MATCH($A68,'ImpactOutcome_Import-Export'!$B$7:$B$13,0))=\"\",\"\",INDEX('ImpactOutcome_Import-Export'!L$7:L$13,MATCH($A68,'ImpactOutcome_Import-Export'!$B$7:$B$13,0))),\"\"))","v":""},{"$f":"IF(B68=\"\",\"\",IFERROR(IF(INDEX('ImpactOutcome_Import-Export'!M$7:M$13,MATCH($A68,'ImpactOutcome_Import-Export'!$B$7:$B$13,0))=\"\",\"\",INDEX('ImpactOutcome_Import-Export'!M$7:M$13,MATCH($A68,'ImpactOutcome_Import-Export'!$B$7:$B$13,0))),\"\"))","v":""},{"$f":"IF(B68=\"\",\"\",IFERROR(IF(INDEX('ImpactOutcome_Import-Export'!N$7:N$13,MATCH($A68,'ImpactOutcome_Import-Export'!$B$7:$B$13,0))=\"\",\"\",INDEX('ImpactOutcome_Import-Export'!N$7:N$13,MATCH($A68,'ImpactOutcome_Import-Export'!$B$7:$B$13,0))),\"\"))","v":""},{"$f":"IF(B68=\"\",\"\",IFERROR(IF(INDEX('ImpactOutcome_Import-Export'!O$7:O$13,MATCH($A68,'ImpactOutcome_Import-Export'!$B$7:$B$13,0))=\"\",\"\",INDEX('ImpactOutcome_Import-Export'!O$7:O$13,MATCH($A68,'ImpactOutcome_Import-Export'!$B$7:$B$13,0))),\"\"))","v":""},{"$f":"IF(B68=\"\",\"\",IFERROR(IF(INDEX('ImpactOutcome_Import-Export'!P$7:P$13,MATCH($A68,'ImpactOutcome_Import-Export'!$B$7:$B$13,0))=\"\",\"\",INDEX('ImpactOutcome_Import-Export'!P$7:P$13,MATCH($A68,'ImpactOutcome_Import-Export'!$B$7:$B$13,0))),\"\"))","v":""},{"$f":"IF(B68=\"\",\"\",IFERROR(IF(INDEX('ImpactOutcome_Import-Export'!Q$7:Q$13,MATCH($A68,'ImpactOutcome_Import-Export'!$B$7:$B$13,0))=\"\",\"\",INDEX('ImpactOutcome_Import-Export'!Q$7:Q$13,MATCH($A68,'ImpactOutcome_Import-Export'!$B$7:$B$13,0))),\"\"))","v":""},{"$f":"IF(B68=\"\",\"\",IFERROR(IF(INDEX('ImpactOutcome_Import-Export'!R$7:R$13,MATCH($A68,'ImpactOutcome_Import-Export'!$B$7:$B$13,0))=\"\",\"\",INDEX('ImpactOutcome_Import-Export'!R$7:R$13,MATCH($A68,'ImpactOutcome_Import-Export'!$B$7:$B$13,0))),\"\"))","v":""},null,null,"",null,null,null,"",null,null,null,"",null,null,null,"",null,null,"",null,""]
[{"$f":"IFERROR(IF(INDEX(Impactlist,MATCH(0,INDEX(COUNTIF(A$10:A68,Impactlist),0,0),0))<>\"\",INDEX(Impactlist,MATCH(0,INDEX(COUNTIF(A$10:A68,Impactlist),0,0),0)),INDEX(Outcomelist,MATCH(0,INDEX(COUNTIF(A$10:A68,Outcomelist),0,0),0))),\"\")","v":""},{"$f":"IFERROR(INDEX('ImpactOutcome_Import-Export'!D$7:D$200,MATCH($A69,'ImpactOutcome_Import-Export'!$B$7:$B$200,0)),\"\")","v":""},{"$f":"IF(B69=\"\",\"\",IFERROR(INDEX('ImpactOutcome_Import-Export'!F$7:F$13,MATCH($A69,'ImpactOutcome_Import-Export'!$B$7:$B$13,0)),\"\"))","v":""},{"$f":"IF(B69=\"\",\"\",IFERROR(IF(INDEX('ImpactOutcome_Import-Export'!K$7:K$13,MATCH($A69,'ImpactOutcome_Import-Export'!$B$7:$B$13,0))=\"\",\"\",INDEX('ImpactOutcome_Import-Export'!K$7:K$13,MATCH($A69,'ImpactOutcome_Import-Export'!$B$7:$B$13,0))),\"\"))","v":""},{"$f":"IF(B69=\"\",\"\",IFERROR(IF(INDEX('ImpactOutcome_Import-Export'!L$7:L$13,MATCH($A69,'ImpactOutcome_Import-Export'!$B$7:$B$13,0))=\"\",\"\",INDEX('ImpactOutcome_Import-Export'!L$7:L$13,MATCH($A69,'ImpactOutcome_Import-Export'!$B$7:$B$13,0))),\"\"))","v":""},{"$f":"IF(B69=\"\",\"\",IFERROR(IF(INDEX('ImpactOutcome_Import-Export'!M$7:M$13,MATCH($A69,'ImpactOutcome_Import-Export'!$B$7:$B$13,0))=\"\",\"\",INDEX('ImpactOutcome_Import-Export'!M$7:M$13,MATCH($A69,'ImpactOutcome_Import-Export'!$B$7:$B$13,0))),\"\"))","v":""},{"$f":"IF(B69=\"\",\"\",IFERROR(IF(INDEX('ImpactOutcome_Import-Export'!N$7:N$13,MATCH($A69,'ImpactOutcome_Import-Export'!$B$7:$B$13,0))=\"\",\"\",INDEX('ImpactOutcome_Import-Export'!N$7:N$13,MATCH($A69,'ImpactOutcome_Import-Export'!$B$7:$B$13,0))),\"\"))","v":""},{"$f":"IF(B69=\"\",\"\",IFERROR(IF(INDEX('ImpactOutcome_Import-Export'!O$7:O$13,MATCH($A69,'ImpactOutcome_Import-Export'!$B$7:$B$13,0))=\"\",\"\",INDEX('ImpactOutcome_Import-Export'!O$7:O$13,MATCH($A69,'ImpactOutcome_Import-Export'!$B$7:$B$13,0))),\"\"))","v":""},{"$f":"IF(B69=\"\",\"\",IFERROR(IF(INDEX('ImpactOutcome_Import-Export'!P$7:P$13,MATCH($A69,'ImpactOutcome_Import-Export'!$B$7:$B$13,0))=\"\",\"\",INDEX('ImpactOutcome_Import-Export'!P$7:P$13,MATCH($A69,'ImpactOutcome_Import-Export'!$B$7:$B$13,0))),\"\"))","v":""},{"$f":"IF(B69=\"\",\"\",IFERROR(IF(INDEX('ImpactOutcome_Import-Export'!Q$7:Q$13,MATCH($A69,'ImpactOutcome_Import-Export'!$B$7:$B$13,0))=\"\",\"\",INDEX('ImpactOutcome_Import-Export'!Q$7:Q$13,MATCH($A69,'ImpactOutcome_Import-Export'!$B$7:$B$13,0))),\"\"))","v":""},{"$f":"IF(B69=\"\",\"\",IFERROR(IF(INDEX('ImpactOutcome_Import-Export'!R$7:R$13,MATCH($A69,'ImpactOutcome_Import-Export'!$B$7:$B$13,0))=\"\",\"\",INDEX('ImpactOutcome_Import-Export'!R$7:R$13,MATCH($A69,'ImpactOutcome_Import-Export'!$B$7:$B$13,0))),\"\"))","v":""},null,null,"",null,null,null,"",null,null,null,"",null,null,null,"",null,null,"",null,""]
[{"$f":"IFERROR(IF(INDEX(Impactlist,MATCH(0,INDEX(COUNTIF(A$10:A69,Impactlist),0,0),0))<>\"\",INDEX(Impactlist,MATCH(0,INDEX(COUNTIF(A$10:A69,Impactlist),0,0),0)),INDEX(Outcomelist,MATCH(0,INDEX(COUNTIF(A$10:A69,Outcomelist),0,0),0))),\"\")","v":""},{"$f":"IFERROR(INDEX('ImpactOutcome_Import-Export'!D$7:D$200,MATCH($A70,'ImpactOutcome_Import-Export'!$B$7:$B$200,0)),\"\")","v":""},{"$f":"IF(B70=\"\",\"\",IFERROR(INDEX('ImpactOutcome_Import-Export'!F$7:F$13,MATCH($A70,'ImpactOutcome_Import-Export'!$B$7:$B$13,0)),\"\"))","v":""},{"$f":"IF(B70=\"\",\"\",IFERROR(IF(INDEX('ImpactOutcome_Import-Export'!K$7:K$13,MATCH($A70,'ImpactOutcome_Import-Export'!$B$7:$B$13,0))=\"\",\"\",INDEX('ImpactOutcome_Import-Export'!K$7:K$13,MATCH($A70,'ImpactOutcome_Import-Export'!$B$7:$B$13,0))),\"\"))","v":""},{"$f":"IF(B70=\"\",\"\",IFERROR(IF(INDEX('ImpactOutcome_Import-Export'!L$7:L$13,MATCH($A70,'ImpactOutcome_Import-Export'!$B$7:$B$13,0))=\"\",\"\",INDEX('ImpactOutcome_Import-Export'!L$7:L$13,MATCH($A70,'ImpactOutcome_Import-Export'!$B$7:$B$13,0))),\"\"))","v":""},{"$f":"IF(B70=\"\",\"\",IFERROR(IF(INDEX('ImpactOutcome_Import-Export'!M$7:M$13,MATCH($A70,'ImpactOutcome_Import-Export'!$B$7:$B$13,0))=\"\",\"\",INDEX('ImpactOutcome_Import-Export'!M$7:M$13,MATCH($A70,'ImpactOutcome_Import-Export'!$B$7:$B$13,0))),\"\"))","v":""},{"$f":"IF(B70=\"\",\"\",IFERROR(IF(INDEX('ImpactOutcome_Import-Export'!N$7:N$13,MATCH($A70,'ImpactOutcome_Import-Export'!$B$7:$B$13,0))=\"\",\"\",INDEX('ImpactOutcome_Import-Export'!N$7:N$13,MATCH($A70,'ImpactOutcome_Import-Export'!$B$7:$B$13,0))),\"\"))","v":""},{"$f":"IF(B70=\"\",\"\",IFERROR(IF(INDEX('ImpactOutcome_Import-Export'!O$7:O$13,MATCH($A70,'ImpactOutcome_Import-Export'!$B$7:$B$13,0))=\"\",\"\",INDEX('ImpactOutcome_Import-Export'!O$7:O$13,MATCH($A70,'ImpactOutcome_Import-Export'!$B$7:$B$13,0))),\"\"))","v":""},{"$f":"IF(B70=\"\",\"\",IFERROR(IF(INDEX('ImpactOutcome_Import-Export'!P$7:P$13,MATCH($A70,'ImpactOutcome_Import-Export'!$B$7:$B$13,0))=\"\",\"\",INDEX('ImpactOutcome_Import-Export'!P$7:P$13,MATCH($A70,'ImpactOutcome_Import-Export'!$B$7:$B$13,0))),\"\"))","v":""},{"$f":"IF(B70=\"\",\"\",IFERROR(IF(INDEX('ImpactOutcome_Import-Export'!Q$7:Q$13,MATCH($A70,'ImpactOutcome_Import-Export'!$B$7:$B$13,0))=\"\",\"\",INDEX('ImpactOutcome_Import-Export'!Q$7:Q$13,MATCH($A70,'ImpactOutcome_Import-Export'!$B$7:$B$13,0))),\"\"))","v":""},{"$f":"IF(B70=\"\",\"\",IFERROR(IF(INDEX('ImpactOutcome_Import-Export'!R$7:R$13,MATCH($A70,'ImpactOutcome_Import-Export'!$B$7:$B$13,0))=\"\",\"\",INDEX('ImpactOutcome_Import-Export'!R$7:R$13,MATCH($A70,'ImpactOutcome_Import-Export'!$B$7:$B$13,0))),\"\"))","v":""},null,null,"",null,null,null,"",null,null,null,"",null,null,null,"",null,null,"",null,""]
[{"$f":"IFERROR(IF(INDEX(Impactlist,MATCH(0,INDEX(COUNTIF(A$10:A70,Impactlist),0,0),0))<>\"\",INDEX(Impactlist,MATCH(0,INDEX(COUNTIF(A$10:A70,Impactlist),0,0),0)),INDEX(Outcomelist,MATCH(0,INDEX(COUNTIF(A$10:A70,Outcomelist),0,0),0))),\"\")","v":""},{"$f":"IFERROR(INDEX('ImpactOutcome_Import-Export'!D$7:D$200,MATCH($A71,'ImpactOutcome_Import-Export'!$B$7:$B$200,0)),\"\")","v":""},{"$f":"IF(B71=\"\",\"\",IFERROR(INDEX('ImpactOutcome_Import-Export'!F$7:F$13,MATCH($A71,'ImpactOutcome_Import-Export'!$B$7:$B$13,0)),\"\"))","v":""},{"$f":"IF(B71=\"\",\"\",IFERROR(IF(INDEX('ImpactOutcome_Import-Export'!K$7:K$13,MATCH($A71,'ImpactOutcome_Import-Export'!$B$7:$B$13,0))=\"\",\"\",INDEX('ImpactOutcome_Import-Export'!K$7:K$13,MATCH($A71,'ImpactOutcome_Import-Export'!$B$7:$B$13,0))),\"\"))","v":""},{"$f":"IF(B71=\"\",\"\",IFERROR(IF(INDEX('ImpactOutcome_Import-Export'!L$7:L$13,MATCH($A71,'ImpactOutcome_Import-Export'!$B$7:$B$13,0))=\"\",\"\",INDEX('ImpactOutcome_Import-Export'!L$7:L$13,MATCH($A71,'ImpactOutcome_Import-Export'!$B$7:$B$13,0))),\"\"))","v":""},{"$f":"IF(B71=\"\",\"\",IFERROR(IF(INDEX('ImpactOutcome_Import-Export'!M$7:M$13,MATCH($A71,'ImpactOutcome_Import-Export'!$B$7:$B$13,0))=\"\",\"\",INDEX('ImpactOutcome_Import-Export'!M$7:M$13,MATCH($A71,'ImpactOutcome_Import-Export'!$B$7:$B$13,0))),\"\"))","v":""},{"$f":"IF(B71=\"\",\"\",IFERROR(IF(INDEX('ImpactOutcome_Import-Export'!N$7:N$13,MATCH($A71,'ImpactOutcome_Import-Export'!$B$7:$B$13,0))=\"\",\"\",INDEX('ImpactOutcome_Import-Export'!N$7:N$13,MATCH($A71,'ImpactOutcome_Import-Export'!$B$7:$B$13,0))),\"\"))","v":""},{"$f":"IF(B71=\"\",\"\",IFERROR(IF(INDEX('ImpactOutcome_Import-Export'!O$7:O$13,MATCH($A71,'ImpactOutcome_Import-Export'!$B$7:$B$13,0))=\"\",\"\",INDEX('ImpactOutcome_Import-Export'!O$7:O$13,MATCH($A71,'ImpactOutcome_Import-Export'!$B$7:$B$13,0))),\"\"))","v":""},{"$f":"IF(B71=\"\",\"\",IFERROR(IF(INDEX('ImpactOutcome_Import-Export'!P$7:P$13,MATCH($A71,'ImpactOutcome_Import-Export'!$B$7:$B$13,0))=\"\",\"\",INDEX('ImpactOutcome_Import-Export'!P$7:P$13,MATCH($A71,'ImpactOutcome_Import-Export'!$B$7:$B$13,0))),\"\"))","v":""},{"$f":"IF(B71=\"\",\"\",IFERROR(IF(INDEX('ImpactOutcome_Import-Export'!Q$7:Q$13,MATCH($A71,'ImpactOutcome_Import-Export'!$B$7:$B$13,0))=\"\",\"\",INDEX('ImpactOutcome_Import-Export'!Q$7:Q$13,MATCH($A71,'ImpactOutcome_Import-Export'!$B$7:$B$13,0))),\"\"))","v":""},{"$f":"IF(B71=\"\",\"\",IFERROR(IF(INDEX('ImpactOutcome_Import-Export'!R$7:R$13,MATCH($A71,'ImpactOutcome_Import-Export'!$B$7:$B$13,0))=\"\",\"\",INDEX('ImpactOutcome_Import-Export'!R$7:R$13,MATCH($A71,'ImpactOutcome_Import-Export'!$B$7:$B$13,0))),\"\"))","v":""},null,null,"",null,null,null,"",null,null,null,"",null,null,null,"",null,null,"",null,""]
[{"$f":"IFERROR(IF(INDEX(Impactlist,MATCH(0,INDEX(COUNTIF(A$10:A71,Impactlist),0,0),0))<>\"\",INDEX(Impactlist,MATCH(0,INDEX(COUNTIF(A$10:A71,Impactlist),0,0),0)),INDEX(Outcomelist,MATCH(0,INDEX(COUNTIF(A$10:A71,Outcomelist),0,0),0))),\"\")","v":""},{"$f":"IFERROR(INDEX('ImpactOutcome_Import-Export'!D$7:D$200,MATCH($A72,'ImpactOutcome_Import-Export'!$B$7:$B$200,0)),\"\")","v":""},{"$f":"IF(B72=\"\",\"\",IFERROR(INDEX('ImpactOutcome_Import-Export'!F$7:F$13,MATCH($A72,'ImpactOutcome_Import-Export'!$B$7:$B$13,0)),\"\"))","v":""},{"$f":"IF(B72=\"\",\"\",IFERROR(IF(INDEX('ImpactOutcome_Import-Export'!K$7:K$13,MATCH($A72,'ImpactOutcome_Import-Export'!$B$7:$B$13,0))=\"\",\"\",INDEX('ImpactOutcome_Import-Export'!K$7:K$13,MATCH($A72,'ImpactOutcome_Import-Export'!$B$7:$B$13,0))),\"\"))","v":""},{"$f":"IF(B72=\"\",\"\",IFERROR(IF(INDEX('ImpactOutcome_Import-Export'!L$7:L$13,MATCH($A72,'ImpactOutcome_Import-Export'!$B$7:$B$13,0))=\"\",\"\",INDEX('ImpactOutcome_Import-Export'!L$7:L$13,MATCH($A72,'ImpactOutcome_Import-Export'!$B$7:$B$13,0))),\"\"))","v":""},{"$f":"IF(B72=\"\",\"\",IFERROR(IF(INDEX('ImpactOutcome_Import-Export'!M$7:M$13,MATCH($A72,'ImpactOutcome_Import-Export'!$B$7:$B$13,0))=\"\",\"\",INDEX('ImpactOutcome_Import-Export'!M$7:M$13,MATCH($A72,'ImpactOutcome_Import-Export'!$B$7:$B$13,0))),\"\"))","v":""},{"$f":"IF(B72=\"\",\"\",IFERROR(IF(INDEX('ImpactOutcome_Import-Export'!N$7:N$13,MATCH($A72,'ImpactOutcome_Import-Export'!$B$7:$B$13,0))=\"\",\"\",INDEX('ImpactOutcome_Import-Export'!N$7:N$13,MATCH($A72,'ImpactOutcome_Import-Export'!$B$7:$B$13,0))),\"\"))","v":""},{"$f":"IF(B72=\"\",\"\",IFERROR(IF(INDEX('ImpactOutcome_Import-Export'!O$7:O$13,MATCH($A72,'ImpactOutcome_Import-Export'!$B$7:$B$13,0))=\"\",\"\",INDEX('ImpactOutcome_Import-Export'!O$7:O$13,MATCH($A72,'ImpactOutcome_Import-Export'!$B$7:$B$13,0))),\"\"))","v":""},{"$f":"IF(B72=\"\",\"\",IFERROR(IF(INDEX('ImpactOutcome_Import-Export'!P$7:P$13,MATCH($A72,'ImpactOutcome_Import-Export'!$B$7:$B$13,0))=\"\",\"\",INDEX('ImpactOutcome_Import-Export'!P$7:P$13,MATCH($A72,'ImpactOutcome_Import-Export'!$B$7:$B$13,0))),\"\"))","v":""},{"$f":"IF(B72=\"\",\"\",IFERROR(IF(INDEX('ImpactOutcome_Import-Export'!Q$7:Q$13,MATCH($A72,'ImpactOutcome_Import-Export'!$B$7:$B$13,0))=\"\",\"\",INDEX('ImpactOutcome_Import-Export'!Q$7:Q$13,MATCH($A72,'ImpactOutcome_Import-Export'!$B$7:$B$13,0))),\"\"))","v":""},{"$f":"IF(B72=\"\",\"\",IFERROR(IF(INDEX('ImpactOutcome_Import-Export'!R$7:R$13,MATCH($A72,'ImpactOutcome_Import-Export'!$B$7:$B$13,0))=\"\",\"\",INDEX('ImpactOutcome_Import-Export'!R$7:R$13,MATCH($A72,'ImpactOutcome_Import-Export'!$B$7:$B$13,0))),\"\"))","v":""},null,null,"",null,null,null,"",null,null,null,"",null,null,null,"",null,null,"",null,""]
[{"$f":"IFERROR(IF(INDEX(Impactlist,MATCH(0,INDEX(COUNTIF(A$10:A72,Impactlist),0,0),0))<>\"\",INDEX(Impactlist,MATCH(0,INDEX(COUNTIF(A$10:A72,Impactlist),0,0),0)),INDEX(Outcomelist,MATCH(0,INDEX(COUNTIF(A$10:A72,Outcomelist),0,0),0))),\"\")","v":""},{"$f":"IFERROR(INDEX('ImpactOutcome_Import-Export'!D$7:D$200,MATCH($A73,'ImpactOutcome_Import-Export'!$B$7:$B$200,0)),\"\")","v":""},{"$f":"IF(B73=\"\",\"\",IFERROR(INDEX('ImpactOutcome_Import-Export'!F$7:F$13,MATCH($A73,'ImpactOutcome_Import-Export'!$B$7:$B$13,0)),\"\"))","v":""},{"$f":"IF(B73=\"\",\"\",IFERROR(IF(INDEX('ImpactOutcome_Import-Export'!K$7:K$13,MATCH($A73,'ImpactOutcome_Import-Export'!$B$7:$B$13,0))=\"\",\"\",INDEX('ImpactOutcome_Import-Export'!K$7:K$13,MATCH($A73,'ImpactOutcome_Import-Export'!$B$7:$B$13,0))),\"\"))","v":""},{"$f":"IF(B73=\"\",\"\",IFERROR(IF(INDEX('ImpactOutcome_Import-Export'!L$7:L$13,MATCH($A73,'ImpactOutcome_Import-Export'!$B$7:$B$13,0))=\"\",\"\",INDEX('ImpactOutcome_Import-Export'!L$7:L$13,MATCH($A73,'ImpactOutcome_Import-Export'!$B$7:$B$13,0))),\"\"))","v":""},{"$f":"IF(B73=\"\",\"\",IFERROR(IF(INDEX('ImpactOutcome_Import-Export'!M$7:M$13,MATCH($A73,'ImpactOutcome_Import-Export'!$B$7:$B$13,0))=\"\",\"\",INDEX('ImpactOutcome_Import-Export'!M$7:M$13,MATCH($A73,'ImpactOutcome_Import-Export'!$B$7:$B$13,0))),\"\"))","v":""},{"$f":"IF(B73=\"\",\"\",IFERROR(IF(INDEX('ImpactOutcome_Import-Export'!N$7:N$13,MATCH($A73,'ImpactOutcome_Import-Export'!$B$7:$B$13,0))=\"\",\"\",INDEX('ImpactOutcome_Import-Export'!N$7:N$13,MATCH($A73,'ImpactOutcome_Import-Export'!$B$7:$B$13,0))),\"\"))","v":""},{"$f":"IF(B73=\"\",\"\",IFERROR(IF(INDEX('ImpactOutcome_Import-Export'!O$7:O$13,MATCH($A73,'ImpactOutcome_Import-Export'!$B$7:$B$13,0))=\"\",\"\",INDEX('ImpactOutcome_Import-Export'!O$7:O$13,MATCH($A73,'ImpactOutcome_Import-Export'!$B$7:$B$13,0))),\"\"))","v":""},{"$f":"IF(B73=\"\",\"\",IFERROR(IF(INDEX('ImpactOutcome_Import-Export'!P$7:P$13,MATCH($A73,'ImpactOutcome_Import-Export'!$B$7:$B$13,0))=\"\",\"\",INDEX('ImpactOutcome_Import-Export'!P$7:P$13,MATCH($A73,'ImpactOutcome_Import-Export'!$B$7:$B$13,0))),\"\"))","v":""},{"$f":"IF(B73=\"\",\"\",IFERROR(IF(INDEX('ImpactOutcome_Import-Export'!Q$7:Q$13,MATCH($A73,'ImpactOutcome_Import-Export'!$B$7:$B$13,0))=\"\",\"\",INDEX('ImpactOutcome_Import-Export'!Q$7:Q$13,MATCH($A73,'ImpactOutcome_Import-Export'!$B$7:$B$13,0))),\"\"))","v":""},{"$f":"IF(B73=\"\",\"\",IFERROR(IF(INDEX('ImpactOutcome_Import-Export'!R$7:R$13,MATCH($A73,'ImpactOutcome_Import-Export'!$B$7:$B$13,0))=\"\",\"\",INDEX('ImpactOutcome_Import-Export'!R$7:R$13,MATCH($A73,'ImpactOutcome_Import-Export'!$B$7:$B$13,0))),\"\"))","v":""},null,null,"",null,null,null,"",null,null,null,"",null,null,null,"",null,null,"",null,""]
[{"$f":"IFERROR(IF(INDEX(Impactlist,MATCH(0,INDEX(COUNTIF(A$10:A73,Impactlist),0,0),0))<>\"\",INDEX(Impactlist,MATCH(0,INDEX(COUNTIF(A$10:A73,Impactlist),0,0),0)),INDEX(Outcomelist,MATCH(0,INDEX(COUNTIF(A$10:A73,Outcomelist),0,0),0))),\"\")","v":""},{"$f":"IFERROR(INDEX('ImpactOutcome_Import-Export'!D$7:D$200,MATCH($A74,'ImpactOutcome_Import-Export'!$B$7:$B$200,0)),\"\")","v":""},{"$f":"IF(B74=\"\",\"\",IFERROR(INDEX('ImpactOutcome_Import-Export'!F$7:F$13,MATCH($A74,'ImpactOutcome_Import-Export'!$B$7:$B$13,0)),\"\"))","v":""},{"$f":"IF(B74=\"\",\"\",IFERROR(IF(INDEX('ImpactOutcome_Import-Export'!K$7:K$13,MATCH($A74,'ImpactOutcome_Import-Export'!$B$7:$B$13,0))=\"\",\"\",INDEX('ImpactOutcome_Import-Export'!K$7:K$13,MATCH($A74,'ImpactOutcome_Import-Export'!$B$7:$B$13,0))),\"\"))","v":""},{"$f":"IF(B74=\"\",\"\",IFERROR(IF(INDEX('ImpactOutcome_Import-Export'!L$7:L$13,MATCH($A74,'ImpactOutcome_Import-Export'!$B$7:$B$13,0))=\"\",\"\",INDEX('ImpactOutcome_Import-Export'!L$7:L$13,MATCH($A74,'ImpactOutcome_Import-Export'!$B$7:$B$13,0))),\"\"))","v":""},{"$f":"IF(B74=\"\",\"\",IFERROR(IF(INDEX('ImpactOutcome_Import-Export'!M$7:M$13,MATCH($A74,'ImpactOutcome_Import-Export'!$B$7:$B$13,0))=\"\",\"\",INDEX('ImpactOutcome_Import-Export'!M$7:M$13,MATCH($A74,'ImpactOutcome_Import-Export'!$B$7:$B$13,0))),\"\"))","v":""},{"$f":"IF(B74=\"\",\"\",IFERROR(IF(INDEX('ImpactOutcome_Import-Export'!N$7:N$13,MATCH($A74,'ImpactOutcome_Import-Export'!$B$7:$B$13,0))=\"\",\"\",INDEX('ImpactOutcome_Import-Export'!N$7:N$13,MATCH($A74,'ImpactOutcome_Import-Export'!$B$7:$B$13,0))),\"\"))","v":""},{"$f":"IF(B74=\"\",\"\",IFERROR(IF(INDEX('ImpactOutcome_Import-Export'!O$7:O$13,MATCH($A74,'ImpactOutcome_Import-Export'!$B$7:$B$13,0))=\"\",\"\",INDEX('ImpactOutcome_Import-Export'!O$7:O$13,MATCH($A74,'ImpactOutcome_Import-Export'!$B$7:$B$13,0))),\"\"))","v":""},{"$f":"IF(B74=\"\",\"\",IFERROR(IF(INDEX('ImpactOutcome_Import-Export'!P$7:P$13,MATCH($A74,'ImpactOutcome_Import-Export'!$B$7:$B$13,0))=\"\",\"\",INDEX('ImpactOutcome_Import-Export'!P$7:P$13,MATCH($A74,'ImpactOutcome_Import-Export'!$B$7:$B$13,0))),\"\"))","v":""},{"$f":"IF(B74=\"\",\"\",IFERROR(IF(INDEX('ImpactOutcome_Import-Export'!Q$7:Q$13,MATCH($A74,'ImpactOutcome_Import-Export'!$B$7:$B$13,0))=\"\",\"\",INDEX('ImpactOutcome_Import-Export'!Q$7:Q$13,MATCH($A74,'ImpactOutcome_Import-Export'!$B$7:$B$13,0))),\"\"))","v":""},{"$f":"IF(B74=\"\",\"\",IFERROR(IF(INDEX('ImpactOutcome_Import-Export'!R$7:R$13,MATCH($A74,'ImpactOutcome_Import-Export'!$B$7:$B$13,0))=\"\",\"\",INDEX('ImpactOutcome_Import-Export'!R$7:R$13,MATCH($A74,'ImpactOutcome_Import-Export'!$B$7:$B$13,0))),\"\"))","v":""},null,null,"",null,null,null,"",null,null,null,"",null,null,null,"",null,null,"",null,""]
[{"$f":"IFERROR(IF(INDEX(Impactlist,MATCH(0,INDEX(COUNTIF(A$10:A74,Impactlist),0,0),0))<>\"\",INDEX(Impactlist,MATCH(0,INDEX(COUNTIF(A$10:A74,Impactlist),0,0),0)),INDEX(Outcomelist,MATCH(0,INDEX(COUNTIF(A$10:A74,Outcomelist),0,0),0))),\"\")","v":""},{"$f":"IFERROR(INDEX('ImpactOutcome_Import-Export'!D$7:D$200,MATCH($A75,'ImpactOutcome_Import-Export'!$B$7:$B$200,0)),\"\")","v":""},{"$f":"IF(B75=\"\",\"\",IFERROR(INDEX('ImpactOutcome_Import-Export'!F$7:F$13,MATCH($A75,'ImpactOutcome_Import-Export'!$B$7:$B$13,0)),\"\"))","v":""},{"$f":"IF(B75=\"\",\"\",IFERROR(IF(INDEX('ImpactOutcome_Import-Export'!K$7:K$13,MATCH($A75,'ImpactOutcome_Import-Export'!$B$7:$B$13,0))=\"\",\"\",INDEX('ImpactOutcome_Import-Export'!K$7:K$13,MATCH($A75,'ImpactOutcome_Import-Export'!$B$7:$B$13,0))),\"\"))","v":""},{"$f":"IF(B75=\"\",\"\",IFERROR(IF(INDEX('ImpactOutcome_Import-Export'!L$7:L$13,MATCH($A75,'ImpactOutcome_Import-Export'!$B$7:$B$13,0))=\"\",\"\",INDEX('ImpactOutcome_Import-Export'!L$7:L$13,MATCH($A75,'ImpactOutcome_Import-Export'!$B$7:$B$13,0))),\"\"))","v":""},{"$f":"IF(B75=\"\",\"\",IFERROR(IF(INDEX('ImpactOutcome_Import-Export'!M$7:M$13,MATCH($A75,'ImpactOutcome_Import-Export'!$B$7:$B$13,0))=\"\",\"\",INDEX('ImpactOutcome_Import-Export'!M$7:M$13,MATCH($A75,'ImpactOutcome_Import-Export'!$B$7:$B$13,0))),\"\"))","v":""},{"$f":"IF(B75=\"\",\"\",IFERROR(IF(INDEX('ImpactOutcome_Import-Export'!N$7:N$13,MATCH($A75,'ImpactOutcome_Import-Export'!$B$7:$B$13,0))=\"\",\"\",INDEX('ImpactOutcome_Import-Export'!N$7:N$13,MATCH($A75,'ImpactOutcome_Import-Export'!$B$7:$B$13,0))),\"\"))","v":""},{"$f":"IF(B75=\"\",\"\",IFERROR(IF(INDEX('ImpactOutcome_Import-Export'!O$7:O$13,MATCH($A75,'ImpactOutcome_Import-Export'!$B$7:$B$13,0))=\"\",\"\",INDEX('ImpactOutcome_Import-Export'!O$7:O$13,MATCH($A75,'ImpactOutcome_Import-Export'!$B$7:$B$13,0))),\"\"))","v":""},{"$f":"IF(B75=\"\",\"\",IFERROR(IF(INDEX('ImpactOutcome_Import-Export'!P$7:P$13,MATCH($A75,'ImpactOutcome_Import-Export'!$B$7:$B$13,0))=\"\",\"\",INDEX('ImpactOutcome_Import-Export'!P$7:P$13,MATCH($A75,'ImpactOutcome_Import-Export'!$B$7:$B$13,0))),\"\"))","v":""},{"$f":"IF(B75=\"\",\"\",IFERROR(IF(INDEX('ImpactOutcome_Import-Export'!Q$7:Q$13,MATCH($A75,'ImpactOutcome_Import-Export'!$B$7:$B$13,0))=\"\",\"\",INDEX('ImpactOutcome_Import-Export'!Q$7:Q$13,MATCH($A75,'ImpactOutcome_Import-Export'!$B$7:$B$13,0))),\"\"))","v":""},{"$f":"IF(B75=\"\",\"\",IFERROR(IF(INDEX('ImpactOutcome_Import-Export'!R$7:R$13,MATCH($A75,'ImpactOutcome_Import-Export'!$B$7:$B$13,0))=\"\",\"\",INDEX('ImpactOutcome_Import-Export'!R$7:R$13,MATCH($A75,'ImpactOutcome_Import-Export'!$B$7:$B$13,0))),\"\"))","v":""},null,null,"",null,null,null,"",null,null,null,"",null,null,null,"",null,null,"",null,""]
[{"$f":"IFERROR(IF(INDEX(Impactlist,MATCH(0,INDEX(COUNTIF(A$10:A75,Impactlist),0,0),0))<>\"\",INDEX(Impactlist,MATCH(0,INDEX(COUNTIF(A$10:A75,Impactlist),0,0),0)),INDEX(Outcomelist,MATCH(0,INDEX(COUNTIF(A$10:A75,Outcomelist),0,0),0))),\"\")","v":""},{"$f":"IFERROR(INDEX('ImpactOutcome_Import-Export'!D$7:D$200,MATCH($A76,'ImpactOutcome_Import-Export'!$B$7:$B$200,0)),\"\")","v":""},{"$f":"IF(B76=\"\",\"\",IFERROR(INDEX('ImpactOutcome_Import-Export'!F$7:F$13,MATCH($A76,'ImpactOutcome_Import-Export'!$B$7:$B$13,0)),\"\"))","v":""},{"$f":"IF(B76=\"\",\"\",IFERROR(IF(INDEX('ImpactOutcome_Import-Export'!K$7:K$13,MATCH($A76,'ImpactOutcome_Import-Export'!$B$7:$B$13,0))=\"\",\"\",INDEX('ImpactOutcome_Import-Export'!K$7:K$13,MATCH($A76,'ImpactOutcome_Import-Export'!$B$7:$B$13,0))),\"\"))","v":""},{"$f":"IF(B76=\"\",\"\",IFERROR(IF(INDEX('ImpactOutcome_Import-Export'!L$7:L$13,MATCH($A76,'ImpactOutcome_Import-Export'!$B$7:$B$13,0))=\"\",\"\",INDEX('ImpactOutcome_Import-Export'!L$7:L$13,MATCH($A76,'ImpactOutcome_Import-Export'!$B$7:$B$13,0))),\"\"))","v":""},{"$f":"IF(B76=\"\",\"\",IFERROR(IF(INDEX('ImpactOutcome_Import-Export'!M$7:M$13,MATCH($A76,'ImpactOutcome_Import-Export'!$B$7:$B$13,0))=\"\",\"\",INDEX('ImpactOutcome_Import-Export'!M$7:M$13,MATCH($A76,'ImpactOutcome_Import-Export'!$B$7:$B$13,0))),\"\"))","v":""},{"$f":"IF(B76=\"\",\"\",IFERROR(IF(INDEX('ImpactOutcome_Import-Export'!N$7:N$13,MATCH($A76,'ImpactOutcome_Import-Export'!$B$7:$B$13,0))=\"\",\"\",INDEX('ImpactOutcome_Import-Export'!N$7:N$13,MATCH($A76,'ImpactOutcome_Import-Export'!$B$7:$B$13,0))),\"\"))","v":""},{"$f":"IF(B76=\"\",\"\",IFERROR(IF(INDEX('ImpactOutcome_Import-Export'!O$7:O$13,MATCH($A76,'ImpactOutcome_Import-Export'!$B$7:$B$13,0))=\"\",\"\",INDEX('ImpactOutcome_Import-Export'!O$7:O$13,MATCH($A76,'ImpactOutcome_Import-Export'!$B$7:$B$13,0))),\"\"))","v":""},{"$f":"IF(B76=\"\",\"\",IFERROR(IF(INDEX('ImpactOutcome_Import-Export'!P$7:P$13,MATCH($A76,'ImpactOutcome_Import-Export'!$B$7:$B$13,0))=\"\",\"\",INDEX('ImpactOutcome_Import-Export'!P$7:P$13,MATCH($A76,'ImpactOutcome_Import-Export'!$B$7:$B$13,0))),\"\"))","v":""},{"$f":"IF(B76=\"\",\"\",IFERROR(IF(INDEX('ImpactOutcome_Import-Export'!Q$7:Q$13,MATCH($A76,'ImpactOutcome_Import-Export'!$B$7:$B$13,0))=\"\",\"\",INDEX('ImpactOutcome_Import-Export'!Q$7:Q$13,MATCH($A76,'ImpactOutcome_Import-Export'!$B$7:$B$13,0))),\"\"))","v":""},{"$f":"IF(B76=\"\",\"\",IFERROR(IF(INDEX('ImpactOutcome_Import-Export'!R$7:R$13,MATCH($A76,'ImpactOutcome_Import-Export'!$B$7:$B$13,0))=\"\",\"\",INDEX('ImpactOutcome_Import-Export'!R$7:R$13,MATCH($A76,'ImpactOutcome_Import-Export'!$B$7:$B$13,0))),\"\"))","v":""},null,null,"",null,null,null,"",null,null,null,"",null,null,null,"",null,null,"",null,""]
[{"$f":"IFERROR(IF(INDEX(Impactlist,MATCH(0,INDEX(COUNTIF(A$10:A76,Impactlist),0,0),0))<>\"\",INDEX(Impactlist,MATCH(0,INDEX(COUNTIF(A$10:A76,Impactlist),0,0),0)),INDEX(Outcomelist,MATCH(0,INDEX(COUNTIF(A$10:A76,Outcomelist),0,0),0))),\"\")","v":""},{"$f":"IFERROR(INDEX('ImpactOutcome_Import-Export'!D$7:D$200,MATCH($A77,'ImpactOutcome_Import-Export'!$B$7:$B$200,0)),\"\")","v":""},{"$f":"IF(B77=\"\",\"\",IFERROR(INDEX('ImpactOutcome_Import-Export'!F$7:F$13,MATCH($A77,'ImpactOutcome_Import-Export'!$B$7:$B$13,0)),\"\"))","v":""},{"$f":"IF(B77=\"\",\"\",IFERROR(IF(INDEX('ImpactOutcome_Import-Export'!K$7:K$13,MATCH($A77,'ImpactOutcome_Import-Export'!$B$7:$B$13,0))=\"\",\"\",INDEX('ImpactOutcome_Import-Export'!K$7:K$13,MATCH($A77,'ImpactOutcome_Import-Export'!$B$7:$B$13,0))),\"\"))","v":""},{"$f":"IF(B77=\"\",\"\",IFERROR(IF(INDEX('ImpactOutcome_Import-Export'!L$7:L$13,MATCH($A77,'ImpactOutcome_Import-Export'!$B$7:$B$13,0))=\"\",\"\",INDEX('ImpactOutcome_Import-Export'!L$7:L$13,MATCH($A77,'ImpactOutcome_Import-Export'!$B$7:$B$13,0))),\"\"))","v":""},{"$f":"IF(B77=\"\",\"\",IFERROR(IF(INDEX('ImpactOutcome_Import-Export'!M$7:M$13,MATCH($A77,'ImpactOutcome_Import-Export'!$B$7:$B$13,0))=\"\",\"\",INDEX('ImpactOutcome_Import-Export'!M$7:M$13,MATCH($A77,'ImpactOutcome_Import-Export'!$B$7:$B$13,0))),\"\"))","v":""},{"$f":"IF(B77=\"\",\"\",IFERROR(IF(INDEX('ImpactOutcome_Import-Export'!N$7:N$13,MATCH($A77,'ImpactOutcome_Import-Export'!$B$7:$B$13,0))=\"\",\"\",INDEX('ImpactOutcome_Import-Export'!N$7:N$13,MATCH($A77,'ImpactOutcome_Import-Export'!$B$7:$B$13,0))),\"\"))","v":""},{"$f":"IF(B77=\"\",\"\",IFERROR(IF(INDEX('ImpactOutcome_Import-Export'!O$7:O$13,MATCH($A77,'ImpactOutcome_Import-Export'!$B$7:$B$13,0))=\"\",\"\",INDEX('ImpactOutcome_Import-Export'!O$7:O$13,MATCH($A77,'ImpactOutcome_Import-Export'!$B$7:$B$13,0))),\"\"))","v":""},{"$f":"IF(B77=\"\",\"\",IFERROR(IF(INDEX('ImpactOutcome_Import-Export'!P$7:P$13,MATCH($A77,'ImpactOutcome_Import-Export'!$B$7:$B$13,0))=\"\",\"\",INDEX('ImpactOutcome_Import-Export'!P$7:P$13,MATCH($A77,'ImpactOutcome_Import-Export'!$B$7:$B$13,0))),\"\"))","v":""},{"$f":"IF(B77=\"\",\"\",IFERROR(IF(INDEX('ImpactOutcome_Import-Export'!Q$7:Q$13,MATCH($A77,'ImpactOutcome_Import-Export'!$B$7:$B$13,0))=\"\",\"\",INDEX('ImpactOutcome_Import-Export'!Q$7:Q$13,MATCH($A77,'ImpactOutcome_Import-Export'!$B$7:$B$13,0))),\"\"))","v":""},{"$f":"IF(B77=\"\",\"\",IFERROR(IF(INDEX('ImpactOutcome_Import-Export'!R$7:R$13,MATCH($A77,'ImpactOutcome_Import-Export'!$B$7:$B$13,0))=\"\",\"\",INDEX('ImpactOutcome_Import-Export'!R$7:R$13,MATCH($A77,'ImpactOutcome_Import-Export'!$B$7:$B$13,0))),\"\"))","v":""},null,null,"",null,null,null,"",null,null,null,"",null,null,null,"",null,null,"",null,""]
[{"$f":"IFERROR(IF(INDEX(Impactlist,MATCH(0,INDEX(COUNTIF(A$10:A77,Impactlist),0,0),0))<>\"\",INDEX(Impactlist,MATCH(0,INDEX(COUNTIF(A$10:A77,Impactlist),0,0),0)),INDEX(Outcomelist,MATCH(0,INDEX(COUNTIF(A$10:A77,Outcomelist),0,0),0))),\"\")","v":""},{"$f":"IFERROR(INDEX('ImpactOutcome_Import-Export'!D$7:D$200,MATCH($A78,'ImpactOutcome_Import-Export'!$B$7:$B$200,0)),\"\")","v":""},{"$f":"IF(B78=\"\",\"\",IFERROR(INDEX('ImpactOutcome_Import-Export'!F$7:F$13,MATCH($A78,'ImpactOutcome_Import-Export'!$B$7:$B$13,0)),\"\"))","v":""},{"$f":"IF(B78=\"\",\"\",IFERROR(IF(INDEX('ImpactOutcome_Import-Export'!K$7:K$13,MATCH($A78,'ImpactOutcome_Import-Export'!$B$7:$B$13,0))=\"\",\"\",INDEX('ImpactOutcome_Import-Export'!K$7:K$13,MATCH($A78,'ImpactOutcome_Import-Export'!$B$7:$B$13,0))),\"\"))","v":""},{"$f":"IF(B78=\"\",\"\",IFERROR(IF(INDEX('ImpactOutcome_Import-Export'!L$7:L$13,MATCH($A78,'ImpactOutcome_Import-Export'!$B$7:$B$13,0))=\"\",\"\",INDEX('ImpactOutcome_Import-Export'!L$7:L$13,MATCH($A78,'ImpactOutcome_Import-Export'!$B$7:$B$13,0))),\"\"))","v":""},{"$f":"IF(B78=\"\",\"\",IFERROR(IF(INDEX('ImpactOutcome_Import-Export'!M$7:M$13,MATCH($A78,'ImpactOutcome_Import-Export'!$B$7:$B$13,0))=\"\",\"\",INDEX('ImpactOutcome_Import-Export'!M$7:M$13,MATCH($A78,'ImpactOutcome_Import-Export'!$B$7:$B$13,0))),\"\"))","v":""},{"$f":"IF(B78=\"\",\"\",IFERROR(IF(INDEX('ImpactOutcome_Import-Export'!N$7:N$13,MATCH($A78,'ImpactOutcome_Import-Export'!$B$7:$B$13,0))=\"\",\"\",INDEX('ImpactOutcome_Import-Export'!N$7:N$13,MATCH($A78,'ImpactOutcome_Import-Export'!$B$7:$B$13,0))),\"\"))","v":""},{"$f":"IF(B78=\"\",\"\",IFERROR(IF(INDEX('ImpactOutcome_Import-Export'!O$7:O$13,MATCH($A78,'ImpactOutcome_Import-Export'!$B$7:$B$13,0))=\"\",\"\",INDEX('ImpactOutcome_Import-Export'!O$7:O$13,MATCH($A78,'ImpactOutcome_Import-Export'!$B$7:$B$13,0))),\"\"))","v":""},{"$f":"IF(B78=\"\",\"\",IFERROR(IF(INDEX('ImpactOutcome_Import-Export'!P$7:P$13,MATCH($A78,'ImpactOutcome_Import-Export'!$B$7:$B$13,0))=\"\",\"\",INDEX('ImpactOutcome_Import-Export'!P$7:P$13,MATCH($A78,'ImpactOutcome_Import-Export'!$B$7:$B$13,0))),\"\"))","v":""},{"$f":"IF(B78=\"\",\"\",IFERROR(IF(INDEX('ImpactOutcome_Import-Export'!Q$7:Q$13,MATCH($A78,'ImpactOutcome_Import-Export'!$B$7:$B$13,0))=\"\",\"\",INDEX('ImpactOutcome_Import-Export'!Q$7:Q$13,MATCH($A78,'ImpactOutcome_Import-Export'!$B$7:$B$13,0))),\"\"))","v":""},{"$f":"IF(B78=\"\",\"\",IFERROR(IF(INDEX('ImpactOutcome_Import-Export'!R$7:R$13,MATCH($A78,'ImpactOutcome_Import-Export'!$B$7:$B$13,0))=\"\",\"\",INDEX('ImpactOutcome_Import-Export'!R$7:R$13,MATCH($A78,'ImpactOutcome_Import-Export'!$B$7:$B$13,0))),\"\"))","v":""},null,null,"",null,null,null,"",null,null,null,"",null,null,null,"",null,null,"",null,""]
[{"$f":"IFERROR(IF(INDEX(Impactlist,MATCH(0,INDEX(COUNTIF(A$10:A78,Impactlist),0,0),0))<>\"\",INDEX(Impactlist,MATCH(0,INDEX(COUNTIF(A$10:A78,Impactlist),0,0),0)),INDEX(Outcomelist,MATCH(0,INDEX(COUNTIF(A$10:A78,Outcomelist),0,0),0))),\"\")","v":""},{"$f":"IFERROR(INDEX('ImpactOutcome_Import-Export'!D$7:D$200,MATCH($A79,'ImpactOutcome_Import-Export'!$B$7:$B$200,0)),\"\")","v":""},{"$f":"IF(B79=\"\",\"\",IFERROR(INDEX('ImpactOutcome_Import-Export'!F$7:F$13,MATCH($A79,'ImpactOutcome_Import-Export'!$B$7:$B$13,0)),\"\"))","v":""},{"$f":"IF(B79=\"\",\"\",IFERROR(IF(INDEX('ImpactOutcome_Import-Export'!K$7:K$13,MATCH($A79,'ImpactOutcome_Import-Export'!$B$7:$B$13,0))=\"\",\"\",INDEX('ImpactOutcome_Import-Export'!K$7:K$13,MATCH($A79,'ImpactOutcome_Import-Export'!$B$7:$B$13,0))),\"\"))","v":""},{"$f":"IF(B79=\"\",\"\",IFERROR(IF(INDEX('ImpactOutcome_Import-Export'!L$7:L$13,MATCH($A79,'ImpactOutcome_Import-Export'!$B$7:$B$13,0))=\"\",\"\",INDEX('ImpactOutcome_Import-Export'!L$7:L$13,MATCH($A79,'ImpactOutcome_Import-Export'!$B$7:$B$13,0))),\"\"))","v":""},{"$f":"IF(B79=\"\",\"\",IFERROR(IF(INDEX('ImpactOutcome_Import-Export'!M$7:M$13,MATCH($A79,'ImpactOutcome_Import-Export'!$B$7:$B$13,0))=\"\",\"\",INDEX('ImpactOutcome_Import-Export'!M$7:M$13,MATCH($A79,'ImpactOutcome_Import-Export'!$B$7:$B$13,0))),\"\"))","v":""},{"$f":"IF(B79=\"\",\"\",IFERROR(IF(INDEX('ImpactOutcome_Import-Export'!N$7:N$13,MATCH($A79,'ImpactOutcome_Import-Export'!$B$7:$B$13,0))=\"\",\"\",INDEX('ImpactOutcome_Import-Export'!N$7:N$13,MATCH($A79,'ImpactOutcome_Import-Export'!$B$7:$B$13,0))),\"\"))","v":""},{"$f":"IF(B79=\"\",\"\",IFERROR(IF(INDEX('ImpactOutcome_Import-Export'!O$7:O$13,MATCH($A79,'ImpactOutcome_Import-Export'!$B$7:$B$13,0))=\"\",\"\",INDEX('ImpactOutcome_Import-Export'!O$7:O$13,MATCH($A79,'ImpactOutcome_Import-Export'!$B$7:$B$13,0))),\"\"))","v":""},{"$f":"IF(B79=\"\",\"\",IFERROR(IF(INDEX('ImpactOutcome_Import-Export'!P$7:P$13,MATCH($A79,'ImpactOutcome_Import-Export'!$B$7:$B$13,0))=\"\",\"\",INDEX('ImpactOutcome_Import-Export'!P$7:P$13,MATCH($A79,'ImpactOutcome_Import-Export'!$B$7:$B$13,0))),\"\"))","v":""},{"$f":"IF(B79=\"\",\"\",IFERROR(IF(INDEX('ImpactOutcome_Import-Export'!Q$7:Q$13,MATCH($A79,'ImpactOutcome_Import-Export'!$B$7:$B$13,0))=\"\",\"\",INDEX('ImpactOutcome_Import-Export'!Q$7:Q$13,MATCH($A79,'ImpactOutcome_Import-Export'!$B$7:$B$13,0))),\"\"))","v":""},{"$f":"IF(B79=\"\",\"\",IFERROR(IF(INDEX('ImpactOutcome_Import-Export'!R$7:R$13,MATCH($A79,'ImpactOutcome_Import-Export'!$B$7:$B$13,0))=\"\",\"\",INDEX('ImpactOutcome_Import-Export'!R$7:R$13,MATCH($A79,'ImpactOutcome_Import-Export'!$B$7:$B$13,0))),\"\"))","v":""},null,null,"",null,null,null,"",null,null,null,"",null,null,null,"",null,null,"",null,""]
[{"$f":"IFERROR(IF(INDEX(Impactlist,MATCH(0,INDEX(COUNTIF(A$10:A79,Impactlist),0,0),0))<>\"\",INDEX(Impactlist,MATCH(0,INDEX(COUNTIF(A$10:A79,Impactlist),0,0),0)),INDEX(Outcomelist,MATCH(0,INDEX(COUNTIF(A$10:A79,Outcomelist),0,0),0))),\"\")","v":""},{"$f":"IFERROR(INDEX('ImpactOutcome_Import-Export'!D$7:D$200,MATCH($A80,'ImpactOutcome_Import-Export'!$B$7:$B$200,0)),\"\")","v":""},{"$f":"IF(B80=\"\",\"\",IFERROR(INDEX('ImpactOutcome_Import-Export'!F$7:F$13,MATCH($A80,'ImpactOutcome_Import-Export'!$B$7:$B$13,0)),\"\"))","v":""},{"$f":"IF(B80=\"\",\"\",IFERROR(IF(INDEX('ImpactOutcome_Import-Export'!K$7:K$13,MATCH($A80,'ImpactOutcome_Import-Export'!$B$7:$B$13,0))=\"\",\"\",INDEX('ImpactOutcome_Import-Export'!K$7:K$13,MATCH($A80,'ImpactOutcome_Import-Export'!$B$7:$B$13,0))),\"\"))","v":""},{"$f":"IF(B80=\"\",\"\",IFERROR(IF(INDEX('ImpactOutcome_Import-Export'!L$7:L$13,MATCH($A80,'ImpactOutcome_Import-Export'!$B$7:$B$13,0))=\"\",\"\",INDEX('ImpactOutcome_Import-Export'!L$7:L$13,MATCH($A80,'ImpactOutcome_Import-Export'!$B$7:$B$13,0))),\"\"))","v":""},{"$f":"IF(B80=\"\",\"\",IFERROR(IF(INDEX('ImpactOutcome_Import-Export'!M$7:M$13,MATCH($A80,'ImpactOutcome_Import-Export'!$B$7:$B$13,0))=\"\",\"\",INDEX('ImpactOutcome_Import-Export'!M$7:M$13,MATCH($A80,'ImpactOutcome_Import-Export'!$B$7:$B$13,0))),\"\"))","v":""},{"$f":"IF(B80=\"\",\"\",IFERROR(IF(INDEX('ImpactOutcome_Import-Export'!N$7:N$13,MATCH($A80,'ImpactOutcome_Import-Export'!$B$7:$B$13,0))=\"\",\"\",INDEX('ImpactOutcome_Import-Export'!N$7:N$13,MATCH($A80,'ImpactOutcome_Import-Export'!$B$7:$B$13,0))),\"\"))","v":""},{"$f":"IF(B80=\"\",\"\",IFERROR(IF(INDEX('ImpactOutcome_Import-Export'!O$7:O$13,MATCH($A80,'ImpactOutcome_Import-Export'!$B$7:$B$13,0))=\"\",\"\",INDEX('ImpactOutcome_Import-Export'!O$7:O$13,MATCH($A80,'ImpactOutcome_Import-Export'!$B$7:$B$13,0))),\"\"))","v":""},{"$f":"IF(B80=\"\",\"\",IFERROR(IF(INDEX('ImpactOutcome_Import-Export'!P$7:P$13,MATCH($A80,'ImpactOutcome_Import-Export'!$B$7:$B$13,0))=\"\",\"\",INDEX('ImpactOutcome_Import-Export'!P$7:P$13,MATCH($A80,'ImpactOutcome_Import-Export'!$B$7:$B$13,0))),\"\"))","v":""},{"$f":"IF(B80=\"\",\"\",IFERROR(IF(INDEX('ImpactOutcome_Import-Export'!Q$7:Q$13,MATCH($A80,'ImpactOutcome_Import-Export'!$B$7:$B$13,0))=\"\",\"\",INDEX('ImpactOutcome_Import-Export'!Q$7:Q$13,MATCH($A80,'ImpactOutcome_Import-Export'!$B$7:$B$13,0))),\"\"))","v":""},{"$f":"IF(B80=\"\",\"\",IFERROR(IF(INDEX('ImpactOutcome_Import-Export'!R$7:R$13,MATCH($A80,'ImpactOutcome_Import-Export'!$B$7:$B$13,0))=\"\",\"\",INDEX('ImpactOutcome_Import-Export'!R$7:R$13,MATCH($A80,'ImpactOutcome_Import-Export'!$B$7:$B$13,0))),\"\"))","v":""},null,null,"",null,null,null,"",null,null,null,"",null,null,null,"",null,null,"",null,""]

{"sheet":"ImpactOutcome_Import-Export","index":6,"n_rows":11,"n_cols":38,"rows_kept":11,"cut":false,"hidden":true,"merged":[[0,3,0,5],[2,22,3,22],[2,23,3,23],[2,24,3,24],[2,25,3,25],[2,1,3,1],[2,5,3,5],[2,37,3,37],[2,36,3,36],[2,26,2,28],[2,29,3,29],[2,30,3,30],[2,31,3,31],[2,32,2,34],[2,35,3,35],[2,19,2,21]]}
[null,null,null,"Instructions for population:\n1. Columns C to M should be mapped for download only\n2. Columns N to Z should be mapped for import only\n3. Population should follow same rules as in tab Impact Outcome Indicators_1A of current template with exception that:\na. population should be 1st sorted by field \"Impact Indicator Number\" on the parent record Impact Indicator \nb. It should then be sorted by field \"Year of Target\" on the Impact Indicator Target Result record (e.g. 2016->2017->2018)\n"]
[]
[null,"Mapping ID",null,"Impact / Outcome ","Standard Impact/Outcome Indicator","Name to display","Standard Indicator (English)","Standard Indicator (French)","Standard Indicator (Spanish)","Custom Impact/Outcome Indicator","Baseline\n(ifapplicable)",null,"Target",null,null,"Year of target","Report Due Date","Geography","Comments","Result",null,null,"Year of Result","Source","Comments on results on Impact/Outcome indicators and data sources, and any other comments","Verification Method","Verified Result",null,null,"Year of Result","Source","LFA comments on (a) verified result, (b) source of information used by the PR to report results, including the status of completion of surveys and other methods to measure Impact/Outcome, as applicable,  ","Global Fund Validated Result",null,null,"Global Fund comments","Data validation checks on GF data","Impact Indicator Number"]
["Salesforce ID",null,null,null,null,null,null,null,null,null,"Value","Year","N#","D#","%",null,null,null,null,"N#","D#","%",null,null,null,null,"N#","D#","%",null,null,null,"N#","D#","%",null,null,"Impact Indicator Number"]
[]
["Record ID",null,-1,null,"Impact Indicator Name",null,"Custom Impact Indicator","Impact Indicator Name FR","Impact Indicator Name ES","Custom Impact Indicator Local","Baseline Value","Baseline Year","Target N#","Target D#","Target %","Year of Target","Report Due Date","Country (Name)","Comment","Result N#  (PR)","Result D# (PR)","Result % (PR)","Year of Result (PR)","Data Source Result (PR)","Comments (PR)","Verification Method (LFA)","Verified Result N#  (LFA)","Verified Result D# (LFA)","Verified Result % (LFA)","Year of Result (LFA)","Data Source Result (LFA)","Comments (LFA)",null,null,null,null,null,"Impact Indicator Number"]
[null,{"$f":"IF(D7=\"\",\"\",C7&D7)","v":""},{"$f":"C6+1","v":0},{"$f":"IF(A7<>\"\",\"Impact\",\"\")","v":""},"[Impact Indicator Name]",{"$f":"IF(LangOffset=0,CONCATENATE(E7&G7),IF(LangOffset=1,CONCATENATE(H7&J7),IF(LangOffset=2,I7&J7)))","v":"[Impact Indicator Name FR][Custom Impact Indicator Local]"},"[Custom Impact Indicator]","[Impact Indicator Name FR]","[Impact Indicator Name ES]","[Custom Impact Indicator Local]","[Baseline Value]","[Baseline Year]","[Target N#]","[Target D#]","[Target %]","[Year of Target]","[Report Due Date]","[Country (Name)]","[Comment]",{"$f":"IFERROR(IF(INDEX('Impact Outcome Indicators_1A'!L$11:L$80,MATCH('ImpactOutcome_Import-Export'!$B7,'Impact Outcome Indicators_1A'!$A$11:$A$80,0))=\"\",\"\",INDEX('Impact Outcome Indicators_1A'!L$11:L$80,MATCH('ImpactOutcome_Import-Export'!$B7,'Impact Outcome Indicators_1A'!$A$11:$A$80,0))),\"\")","v":""},{"$f":"IFERROR(IF(INDEX('Impact Outcome Indicators_1A'!M$11:M$80,MATCH('ImpactOutcome_Import-Export'!$B7,'Impact Outcome Indicators_1A'!$A$11:$A$80,0))=\"\",\"\",INDEX('Impact Outcome Indicators_1A'!M$11:M$80,MATCH('ImpactOutcome_Import-Export'!$B7,'Impact Outcome Indicators_1A'!$A$11:$A$80,0))),\"\")","v":""},{"$f":"IFERROR(IF(INDEX('Impact Outcome Indicators_1A'!N$11:N$80,MATCH('ImpactOutcome_Import-Export'!$B7,'Impact Outcome Indicators_1A'!$A$11:$A$80,0))=\"\",\"\",INDEX('Impact Outcome Indicators_1A'!N$11:N$80,MATCH('ImpactOutcome_Import-Export'!$B7,'Impact Outcome Indicators_1A'!$A$11:$A$80,0))),\"\")","v":""},{"$f":"IFERROR(IF(INDEX('Impact Outcome Indicators_1A'!O$11:O$80,MATCH('ImpactOutcome_Import-Export'!$B7,'Impact Outcome Indicators_1A'!$A$11:$A$80,0))=\"\",\"\",INDEX('Impact Outcome Indicators_1A'!O$11:O$80,MATCH('ImpactOutcome_Import-Export'!$B7,'Impact Outcome Indicators_1A'!$A$11:$A$80,0))),\"\")","v":""},{"$f":"IFERROR(IF(INDEX('Impact Outcome Indicators_1A'!P$11:P$80,MATCH('ImpactOutcome_Import-Export'!$B7,'Impact Outcome Indicators_1A'!$A$11:$A$80,0))=\"\",\"\",INDEX('Impact Outcome Indicators_1A'!P$11:P$80,MATCH('ImpactOutcome_Import-Export'!$B7,'Impact Outcome Indicators_1A'!$A$11:$A$80,0))),\"\")","v":""},{"$f":"IFERROR(IF(INDEX('Impact Outcome Indicators_1A'!Q$11:Q$80,MATCH('ImpactOutcome_Import-Export'!$B7,'Impact Outcome Indicators_1A'!$A$11:$A$80,0))=\"\",\"\",INDEX('Impact Outcome Indicators_1A'!Q$11:Q$80,MATCH('ImpactOutcome_Import-Export'!$B7,'Impact Outcome Indicators_1A'!$A$11:$A$80,0))),\"\")","v":""},{"$f":"IFERROR(IF(INDEX('Impact Outcome Indicators_1A'!S$11:S$80,MATCH('ImpactOutcome_Import-Export'!$B7,'Impact Outcome Indicators_1A'!$A$11:$A$80,0))=\"\",\"\",INDEX('Impact Outcome Indicators_1A'!S$11:S$80,MATCH('ImpactOutcome_Import-Export'!$B7,'Impact Outcome Indicators_1A'!$A$11:$A$80,0))),\"\")","v":""},{"$f":"IFERROR(IF(INDEX('Impact Outcome Indicators_1A'!T$11:T$80,MATCH('ImpactOutcome_Import-Export'!$B7,'Impact Outcome Indicators_1A'!$A$11:$A$80,0))=\"\",\"\",INDEX('Impact Outcome Indicators_1A'!T$11:T$80,MATCH('ImpactOutcome_Import-Export'!$B7,'Impact Outcome Indicators_1A'!$A$11:$A$80,0))),\"\")","v":""},{"$f":"IFERROR(IF(INDEX('Impact Outcome Indicators_1A'!U$11:U$80,MATCH('ImpactOutcome_Import-Export'!$B7,'Impact Outcome Indicators_1A'!$A$11:$A$80,0))=\"\",\"\",INDEX('Impact Outcome Indicators_1A'!U$11:U$80,MATCH('ImpactOutcome_Import-Export'!$B7,'Impact Outcome Indicators_1A'!$A$11:$A$80,0))),\"\")","v":""},{"$f":"IFERROR(IF(INDEX('Impact Outcome Indicators_1A'!V$11:V$80,MATCH('ImpactOutcome_Import-Export'!$B7,'Impact Outcome Indicators_1A'!$A$11:$A$80,0))=\"\",\"\",INDEX('Impact Outcome Indicators_1A'!V$11:V$80,MATCH('ImpactOutcome_Import-Export'!$B7,'Impact Outcome Indicators_1A'!$A$11:$A$80,0))),\"\")","v":""},{"$f":"IFERROR(IF(INDEX('Impact Outcome Indicators_1A'!W$11:W$80,MATCH('ImpactOutcome_Import-Export'!$B7,'Impact Outcome Indicators_1A'!$A$11:$A$80,0))=\"\",\"\",INDEX('Impact Outcome Indicators_1A'!W$11:W$80,MATCH('ImpactOutcome_Import-Export'!$B7,'Impact Outcome Indicators_1A'!$A$11:$A$80,0))),\"\")","v":""},{"$f":"IFERROR(IF(INDEX('Impact Outcome Indicators_1A'!X$11:X$80,MATCH('ImpactOutcome_Import-Export'!$B7,'Impact Outcome Indicators_1A'!$A$11:$A$80,0))=\"\",\"\",INDEX('Impact Outcome Indicators_1A'!X$11:X$80,MATCH('ImpactOutcome_Import-Export'!$B7,'Impact Outcome Indicators_1A'!$A$11:$A$80,0))),\"\")","v":""},{"$f":"IFERROR(IF(INDEX('Impact Outcome Indicators_1A'!Y$11:Y$80,MATCH('ImpactOutcome_Import-Export'!$B7,'Impact Outcome Indicators_1A'!$A$11:$A$80,0))=\"\",\"\",INDEX('Impact Outcome Indicators_1A'!Y$11:Y$80,MATCH('ImpactOutcome_Import-Export'!$B7,'Impact Outcome Indicators_1A'!$A$11:$A$80,0))),\"\")","v":""},null,null,null,null,{"$f":"IFERROR(INDEX('Impact Outcome Indicators_1A'!AE$11:AE$80,MATCH('ImpactOutcome_Import-Export'!$B7,'Impact Outcome Indicators_1A'!$A$11:$A$80,0)),\"\")","v":""},"[Impact Indicator Number]"]
[]
[]
["Record ID",null,-1,null,"Outcome Indicator Name",null,"Custom Outcome Indicator","Outcome Indicator Name FR","Outcome Indicator Name ES","Custom Outcome Indicator Local","Baseline Value","Baseline Year","Target N#","Target D#","Target %","Year of Target","Report Due Date","Country (Name)","Comment","Result N#  (PR)","Result D# (PR)","Result % (PR)","Year of Result (PR)","Data Source Result (PR)","Comments (PR)","Verification Method (LFA)","Verified Result N#  (LFA)","Verified Result D# (LFA)","Verified Result % (LFA)","Year of Result (LFA)","Data Source Result (LFA)","Comments (LFA)",null,null,null,null,null,"Outcome Indicator Number"]
[null,{"$f":"IF(D11=\"\",\"\",C11&D11)","v":""},{"$f":"C10+1","v":0},{"$f":"IF(A11<>\"\",\"Outcome\",\"\")","v":""},"[Outcome Indicator Name]",{"$f":"IF(LangOffset=0,CONCATENATE(E11&G11),IF(LangOffset=1,CONCATENATE(H11&J11),IF(LangOffset=2,I11&J11)))","v":"[Outcome Indicator Name FR][Custom Outcome Indicator Local]"},"[Custom Outcome Indicator]","[Outcome Indicator Name FR]","[Outcome Indicator Name ES]","[Custom Outcome Indicator Local]","[Baseline Value]","[Baseline Year]","[Target N#]","[Target D#]","[Target %]","[Year of Target]","[Report Due Date]","[Country (Name)]","[Comment]",{"$f":"IFERROR(IF(INDEX('Impact Outcome Indicators_1A'!L$11:L$80,MATCH('ImpactOutcome_Import-Export'!$B11,'Impact Outcome Indicators_1A'!$A$11:$A$80,0))=\"\",\"\",INDEX('Impact Outcome Indicators_1A'!L$11:L$80,MATCH('ImpactOutcome_Import-Export'!$B11,'Impact Outcome Indicators_1A'!$A$11:$A$80,0))),\"\")","v":""},{"$f":"IFERROR(IF(INDEX('Impact Outcome Indicators_1A'!M$11:M$80,MATCH('ImpactOutcome_Import-Export'!$B11,'Impact Outcome Indicators_1A'!$A$11:$A$80,0))=\"\",\"\",INDEX('Impact Outcome Indicators_1A'!M$11:M$80,MATCH('ImpactOutcome_Import-Export'!$B11,'Impact Outcome Indicators_1A'!$A$11:$A$80,0))),\"\")","v":""},{"$f":"IFERROR(IF(INDEX('Impact Outcome Indicators_1A'!N$11:N$80,MATCH('ImpactOutcome_Import-Export'!$B11,'Impact Outcome Indicators_1A'!$A$11:$A$80,0))=\"\",\"\",INDEX('Impact Outcome Indicators_1A'!N$11:N$80,MATCH('ImpactOutcome_Import-Export'!$B11,'Impact Outcome Indicators_1A'!$A$11:$A$80,0))),\"\")","v":""},{"$f":"IFERROR(IF(INDEX('Impact Outcome Indicators_1A'!O$11:O$80,MATCH('ImpactOutcome_Import-Export'!$B11,'Impact Outcome Indicators_1A'!$A$11:$A$80,0))=\"\",\"\",INDEX('Impact Outcome Indicators_1A'!O$11:O$80,MATCH('ImpactOutcome_Import-Export'!$B11,'Impact Outcome Indicators_1A'!$A$11:$A$80,0))),\"\")","v":""},{"$f":"IFERROR(IF(INDEX('Impact Outcome Indicators_1A'!P$11:P$80,MATCH('ImpactOutcome_Import-Export'!$B11,'Impact Outcome Indicators_1A'!$A$11:$A$80,0))=\"\",\"\",INDEX('Impact Outcome Indicators_1A'!P$11:P$80,MATCH('ImpactOutcome_Import-Export'!$B11,'Impact Outcome Indicators_1A'!$A$11:$A$80,0))),\"\")","v":""},{"$f":"IFERROR(IF(INDEX('Impact Outcome Indicators_1A'!Q$11:Q$80,MATCH('ImpactOutcome_Import-Export'!$B11,'Impact Outcome Indicators_1A'!$A$11:$A$80,0))=\"\",\"\",INDEX('Impact Outcome Indicators_1A'!Q$11:Q$80,MATCH('ImpactOutcome_Import-Export'!$B11,'Impact Outcome Indicators_1A'!$A$11:$A$80,0))),\"\")","v":""},{"$f":"IFERROR(IF(INDEX('Impact Outcome Indicators_1A'!S$11:S$80,MATCH('ImpactOutcome_Import-Export'!$B11,'Impact Outcome Indicators_1A'!$A$11:$A$80,0))=\"\",\"\",INDEX('Impact Outcome Indicators_1A'!S$11:S$80,MATCH('ImpactOutcome_Import-Export'!$B11,'Impact Outcome Indicators_1A'!$A$11:$A$80,0))),\"\")","v":""},{"$f":"IFERROR(IF(INDEX('Impact Outcome Indicators_1A'!T$11:T$80,MATCH('ImpactOutcome_Import-Export'!$B11,'Impact Outcome Indicators_1A'!$A$11:$A$80,0))=\"\",\"\",INDEX('Impact Outcome Indicators_1A'!T$11:T$80,MATCH('ImpactOutcome_Import-Export'!$B11,'Impact Outcome Indicators_1A'!$A$11:$A$80,0))),\"\")","v":""},{"$f":"IFERROR(IF(INDEX('Impact Outcome Indicators_1A'!U$11:U$80,MATCH('ImpactOutcome_Import-Export'!$B11,'Impact Outcome Indicators_1A'!$A$11:$A$80,0))=\"\",\"\",INDEX('Impact Outcome Indicators_1A'!U$11:U$80,MATCH('ImpactOutcome_Import-Export'!$B11,'Impact Outcome Indicators_1A'!$A$11:$A$80,0))),\"\")","v":""},{"$f":"IFERROR(IF(INDEX('Impact Outcome Indicators_1A'!V$11:V$80,MATCH('ImpactOutcome_Import-Export'!$B11,'Impact Outcome Indicators_1A'!$A$11:$A$80,0))=\"\",\"\",INDEX('Impact Outcome Indicators_1A'!V$11:V$80,MATCH('ImpactOutcome_Import-Export'!$B11,'Impact Outcome Indicators_1A'!$A$11:$A$80,0))),\"\")","v":""},{"$f":"IFERROR(IF(INDEX('Impact Outcome Indicators_1A'!W$11:W$80,MATCH('ImpactOutcome_Import-Export'!$B11,'Impact Outcome Indicators_1A'!$A$11:$A$80,0))=\"\",\"\",INDEX('Impact Outcome Indicators_1A'!W$11:W$80,MATCH('ImpactOutcome_Import-Export'!$B11,'Impact Outcome Indicators_1A'!$A$11:$A$80,0))),\"\")","v":""},{"$f":"IFERROR(IF(INDEX('Impact Outcome Indicators_1A'!X$11:X$80,MATCH('ImpactOutcome_Import-Export'!$B11,'Impact Outcome Indicators_1A'!$A$11:$A$80,0))=\"\",\"\",INDEX('Impact Outcome Indicators_1A'!X$11:X$80,MATCH('ImpactOutcome_Import-Export'!$B11,'Impact Outcome Indicators_1A'!$A$11:$A$80,0))),\"\")","v":""},{"$f":"IFERROR(IF(INDEX('Impact Outcome Indicators_1A'!Y$11:Y$80,MATCH('ImpactOutcome_Import-Export'!$B11,'Impact Outcome Indicators_1A'!$A$11:$A$80,0))=\"\",\"\",INDEX('Impact Outcome Indicators_1A'!Y$11:Y$80,MATCH('ImpactOutcome_Import-Export'!$B11,'Impact Outcome Indicators_1A'!$A$11:$A$80,0))),\"\")","v":""},null,null,null,null,{"$f":"IFERROR(INDEX('Impact Outcome Indicators_1A'!AE$11:AE$80,MATCH('ImpactOutcome_Import-Export'!$B11,'Impact Outcome Indicators_1A'!$A$11:$A$80,0)),\"\")","v":""},"[Outcome Indicator Number]"]

{"sheet":"Disaggregation_1A","index":7,"n_rows":100,"n_cols":21,"rows_kept":100,"cut":false,"hidden":false,"merged":[[8,9,9,9],[4,1,4,16],[8,1,9,1],[8,2,9,2],[8,3,9,3],[8,21,9,21],[8,4,9,4],[8,5,8,7],[8,8,9,8],[8,14,8,15],[8,16,9,16],[8,17,9,17],[8,18,8,19],[8,10,8,11],[8,12,9,12],[8,20,9,20],[8,13,9,13]]}
[null,"Progress Report with Disbursement Request"]
[]
[null,"Section 1:  Programmatic Information"]
[]
[null,"Guidance: The table contains those Impact/Outcome indicators that are:\n1. Included in the Grant Confirmation/Agreement through the latest signed Performance Framework\n2. According to the Global Fund Modular Framework require disaggregation\n3. Were due for reporting in previous periods but were never reported on\n4. Data validation checks are being performed on entered data in the columns. Any issues identified that are not resolved should be explained"]
[]
[null,"A- Impact/Outcome Indicators - Disaggregation"]
[]
["ID",{"$f":"VLOOKUP(Translations!B64,Translations!B3:H508,4,0)","v":"Impact/Outcome"},{"$f":"VLOOKUP(Translations!B65,Translations!B3:H508,4,0)","v":"Indicateurs standard"},{"$f":"VLOOKUP(Translations!B66,Translations!B3:H508,4,0)","v":"Ventilation"},{"$f":"VLOOKUP(Translations!B67,Translations!B3:H508,4,0)","v":"Catégorie "},{"$f":"VLOOKUP(Translations!B69,Translations!B3:H508,4,0)","v":"Référence"},null,null,{"$f":"VLOOKUP(Translations!B72,Translations!B3:H508,4,0)","v":"Ventilation Année de la cible"},"Geography",{"$f":"VLOOKUP(Translations!B73,Translations!B3:H508,4,0)","v":"Résultats"},null,{"$f":"VLOOKUP(Translations!B76,Translations!B3:H508,4,0)","v":"Commentaires"},null,"Verified Result",null,"LFA comments",null,"Global Fund Validated Result",null,"Global Fund comments"]
[null,null,null,null,null,{"$f":"VLOOKUP(Translations!B68,Translations!B3:H508,4,0)","v":"Valeur"},{"$f":"VLOOKUP(Translations!B70,Translations!B3:H508,4,0)","v":"Année"},{"$f":"VLOOKUP(Translations!B71,Translations!B3:H508,4,0)","v":"Source"},null,null,{"$f":"VLOOKUP(Translations!B68,Translations!B3:H508,4,0)","v":"Valeur"},{"$f":"VLOOKUP(Translations!B71,Translations!B3:H508,4,0)","v":"Source"},null,null,"Value","Source",null,null,"Value","Source"]
[{"$f":"IFERROR(IF(INDEX(ImpactDisaglist,MATCH(0,INDEX(COUNTIF(A$10:A10,ImpactDisaglist),0,0),0))<>\"\",INDEX(ImpactDisaglist,MATCH(0,INDEX(COUNTIF(A$10:A10,ImpactDisaglist),0,0),0)),INDEX(OutcomeDisaglist,MATCH(0,INDEX(COUNTIF(A$10:A10,OutcomeDisaglist),0,0),0))),\"\")","v":0},{"$f":"IFERROR(INDEX('Disagg.1A_import-export'!D$7:D$200,MATCH($A11,'Disagg.1A_import-export'!$B$7:$B$200,0)),\"\")","v":""},{"$f":"IF(B11=\"\",\"\",IFERROR(INDEX('Disagg.1A_import-export'!E$7:E$13,MATCH($A11,'Disagg.1A_import-export'!$B$7:$B$13,0)),\"\"))","v":""},{"$f":"IF(B11=\"\",\"\",IFERROR(IF(INDEX('Disagg.1A_import-export'!I$7:I$13,MATCH($A11,'Disagg.1A_import-export'!$B$7:$B$13,0))=\"\",\"\",INDEX('Disagg.1A_import-export'!I$7:I$13,MATCH($A11,'Disagg.1A_import-export'!$B$7:$B$13,0))),\"\"))","v":""},{"$f":"IF(B11=\"\",\"\",IFERROR(IF(INDEX('Disagg.1A_import-export'!J$7:J$13,MATCH($A11,'Disagg.1A_import-export'!$B$7:$B$13,0))=\"\",\"\",INDEX('Disagg.1A_import-export'!J$7:J$13,MATCH($A11,'Disagg.1A_import-export'!$B$7:$B$13,0))),\"\"))","v":""},{"$f":"IF(B11=\"\",\"\",IFERROR(IF(INDEX('Disagg.1A_import-export'!K$7:K$13,MATCH($A11,'Disagg.1A_import-export'!$B$7:$B$13,0))=\"\",\"\",INDEX('Disagg.1A_import-export'!K$7:K$13,MATCH($A11,'Disagg.1A_import-export'!$B$7:$B$13,0))),\"\"))","v":""},{"$f":"IF(B11=\"\",\"\",IFERROR(IF(INDEX('Disagg.1A_import-export'!L$7:L$13,MATCH($A11,'Disagg.1A_import-export'!$B$7:$B$13,0))=\"\",\"\",INDEX('Disagg.1A_import-export'!L$7:L$13,MATCH($A11,'Disagg.1A_import-export'!$B$7:$B$13,0))),\"\"))","v":""},{"$f":"IF(B11=\"\",\"\",IFERROR(IF(INDEX('Disagg.1A_import-export'!M$7:M$13,MATCH($A11,'Disagg.1A_import-export'!$B$7:$B$13,0))=\"\",\"\",INDEX('Disagg.1A_import-export'!M$7:M$13,MATCH($A11,'Disagg.1A_import-export'!$B$7:$B$13,0))),\"\"))","v":""},{"$f":"IF(B11=\"\",\"\",IFERROR(IF(INDEX('Disagg.1A_import-export'!N$7:N$13,MATCH($A11,'Disagg.1A_import-export'!$B$7:$B$13,0))=\"\",\"\",INDEX('Disagg.1A_import-export'!N$7:N$13,MATCH($A11,'Disagg.1A_import-export'!$B$7:$B$13,0))),\"\"))","v":""},{"$f":"IF(B11=\"\",\"\",IFERROR(IF(INDEX('Disagg.1A_import-export'!AC$7:AC$13,MATCH($A11,'Disagg.1A_import-export'!$B$7:$B$13,0))=\"\",\"\",INDEX('Disagg.1A_import-export'!AC$7:AC$13,MATCH($A11,'Disagg.1A_import-export'!$B$7:$B$13,0))),\"\"))","v":""}]
[{"$f":"IFERROR(IF(INDEX(ImpactDisaglist,MATCH(0,INDEX(COUNTIF(A$10:A11,ImpactDisaglist),0,0),0))<>\"\",INDEX(ImpactDisaglist,MATCH(0,INDEX(COUNTIF(A$10:A11,ImpactDisaglist),0,0),0)),INDEX(OutcomeDisaglist,MATCH(0,INDEX(COUNTIF(A$10:A11,OutcomeDisaglist),0,0),0))),\"\")","v":""},{"$f":"IFERROR(INDEX('Disagg.1A_import-export'!D$7:D$200,MATCH($A12,'Disagg.1A_import-export'!$B$7:$B$200,0)),\"\")","v":""},{"$f":"IF(B12=\"\",\"\",IFERROR(INDEX('Disagg.1A_import-export'!E$7:E$13,MATCH($A12,'Disagg.1A_import-export'!$B$7:$B$13,0)),\"\"))","v":""},{"$f":"IF(B12=\"\",\"\",IFERROR(IF(INDEX('Disagg.1A_import-export'!I$7:I$13,MATCH($A12,'Disagg.1A_import-export'!$B$7:$B$13,0))=\"\",\"\",INDEX('Disagg.1A_import-export'!I$7:I$13,MATCH($A12,'Disagg.1A_import-export'!$B$7:$B$13,0))),\"\"))","v":""},{"$f":"IF(B12=\"\",\"\",IFERROR(IF(INDEX('Disagg.1A_import-export'!J$7:J$13,MATCH($A12,'Disagg.1A_import-export'!$B$7:$B$13,0))=\"\",\"\",INDEX('Disagg.1A_import-export'!J$7:J$13,MATCH($A12,'Disagg.1A_import-export'!$B$7:$B$13,0))),\"\"))","v":""},{"$f":"IF(B12=\"\",\"\",IFERROR(IF(INDEX('Disagg.1A_import-export'!K$7:K$13,MATCH($A12,'Disagg.1A_import-export'!$B$7:$B$13,0))=\"\",\"\",INDEX('Disagg.1A_import-export'!K$7:K$13,MATCH($A12,'Disagg.1A_import-export'!$B$7:$B$13,0))),\"\"))","v":""},{"$f":"IF(B12=\"\",\"\",IFERROR(IF(INDEX('Disagg.1A_import-export'!L$7:L$13,MATCH($A12,'Disagg.1A_import-export'!$B$7:$B$13,0))=\"\",\"\",INDEX('Disagg.1A_import-export'!L$7:L$13,MATCH($A12,'Disagg.1A_import-export'!$B$7:$B$13,0))),\"\"))","v":""},{"$f":"IF(B12=\"\",\"\",IFERROR(IF(INDEX('Disagg.1A_import-export'!M$7:M$13,MATCH($A12,'Disagg.1A_import-export'!$B$7:$B$13,0))=\"\",\"\",INDEX('Disagg.1A_import-export'!M$7:M$13,MATCH($A12,'Disagg.1A_import-export'!$B$7:$B$13,0))),\"\"))","v":""},{"$f":"IF(B12=\"\",\"\",IFERROR(IF(INDEX('Disagg.1A_import-export'!N$7:N$13,MATCH($A12,'Disagg.1A_import-export'!$B$7:$B$13,0))=\"\",\"\",INDEX('Disagg.1A_import-export'!N$7:N$13,MATCH($A12,'Disagg.1A_import-export'!$B$7:$B$13,0))),\"\"))","v":""},{"$f":"IF(B12=\"\",\"\",IFERROR(IF(INDEX('Disagg.1A_import-export'!AC$7:AC$13,MATCH($A12,'Disagg.1A_import-export'!$B$7:$B$13,0))=\"\",\"\",INDEX('Disagg.1A_import-export'!AC$7:AC$13,MATCH($A12,'Disagg.1A_import-export'!$B$7:$B$13,0))),\"\"))","v":""}]
[{"$f":"IFERROR(IF(INDEX(ImpactDisaglist,MATCH(0,INDEX(COUNTIF(A$10:A12,ImpactDisaglist),0,0),0))<>\"\",INDEX(ImpactDisaglist,MATCH(0,INDEX(COUNTIF(A$10:A12,ImpactDisaglist),0,0),0)),INDEX(OutcomeDisaglist,MATCH(0,INDEX(COUNTIF(A$10:A12,OutcomeDisaglist),0,0),0))),\"\")","v":""},{"$f":"IFERROR(INDEX('Disagg.1A_import-export'!D$7:D$200,MATCH($A13,'Disagg.1A_import-export'!$B$7:$B$200,0)),\"\")","v":""},{"$f":"IF(B13=\"\",\"\",IFERROR(INDEX('Disagg.1A_import-export'!E$7:E$13,MATCH($A13,'Disagg.1A_import-export'!$B$7:$B$13,0)),\"\"))","v":""},{"$f":"IF(B13=\"\",\"\",IFERROR(IF(INDEX('Disagg.1A_import-export'!I$7:I$13,MATCH($A13,'Disagg.1A_import-export'!$B$7:$B$13,0))=\"\",\"\",INDEX('Disagg.1A_import-export'!I$7:I$13,MATCH($A13,'Disagg.1A_import-export'!$B$7:$B$13,0))),\"\"))","v":""},{"$f":"IF(B13=\"\",\"\",IFERROR(IF(INDEX('Disagg.1A_import-export'!J$7:J$13,MATCH($A13,'Disagg.1A_import-export'!$B$7:$B$13,0))=\"\",\"\",INDEX('Disagg.1A_import-export'!J$7:J$13,MATCH($A13,'Disagg.1A_import-export'!$B$7:$B$13,0))),\"\"))","v":""},{"$f":"IF(B13=\"\",\"\",IFERROR(IF(INDEX('Disagg.1A_import-export'!K$7:K$13,MATCH($A13,'Disagg.1A_import-export'!$B$7:$B$13,0))=\"\",\"\",INDEX('Disagg.1A_import-export'!K$7:K$13,MATCH($A13,'Disagg.1A_import-export'!$B$7:$B$13,0))),\"\"))","v":""},{"$f":"IF(B13=\"\",\"\",IFERROR(IF(INDEX('Disagg.1A_import-export'!L$7:L$13,MATCH($A13,'Disagg.1A_import-export'!$B$7:$B$13,0))=\"\",\"\",INDEX('Disagg.1A_import-export'!L$7:L$13,MATCH($A13,'Disagg.1A_import-export'!$B$7:$B$13,0))),\"\"))","v":""},{"$f":"IF(B13=\"\",\"\",IFERROR(IF(INDEX('Disagg.1A_import-export'!M$7:M$13,MATCH($A13,'Disagg.1A_import-export'!$B$7:$B$13,0))=\"\",\"\",INDEX('Disagg.1A_import-export'!M$7:M$13,MATCH($A13,'Disagg.1A_import-export'!$B$7:$B$13,0))),\"\"))","v":""},{"$f":"IF(B13=\"\",\"\",IFERROR(IF(INDEX('Disagg.1A_import-export'!N$7:N$13,MATCH($A13,'Disagg.1A_import-export'!$B$7:$B$13,0))=\"\",\"\",INDEX('Disagg.1A_import-export'!N$7:N$13,MATCH($A13,'Disagg.1A_import-export'!$B$7:$B$13,0))),\"\"))","v":""},{"$f":"IF(B13=\"\",\"\",IFERROR(IF(INDEX('Disagg.1A_import-export'!AC$7:AC$13,MATCH($A13,'Disagg.1A_import-export'!$B$7:$B$13,0))=\"\",\"\",INDEX('Disagg.1A_import-export'!AC$7:AC$13,MATCH($A13,'Disagg.1A_import-export'!$B$7:$B$13,0))),\"\"))","v":""}]
[{"$f":"IFERROR(IF(INDEX(ImpactDisaglist,MATCH(0,INDEX(COUNTIF(A$10:A13,ImpactDisaglist),0,0),0))<>\"\",INDEX(ImpactDisaglist,MATCH(0,INDEX(COUNTIF(A$10:A13,ImpactDisaglist),0,0),0)),INDEX(OutcomeDisaglist,MATCH(0,INDEX(COUNTIF(A$10:A13,OutcomeDisaglist),0,0),0))),\"\")","v":""},{"$f":"IFERROR(INDEX('Disagg.1A_import-export'!D$7:D$200,MATCH($A14,'Disagg.1A_import-export'!$B$7:$B$200,0)),\"\")","v":""},{"$f":"IF(B14=\"\",\"\",IFERROR(INDEX('Disagg.1A_import-export'!E$7:E$13,MATCH($A14,'Disagg.1A_import-export'!$B$7:$B$13,0)),\"\"))","v":""},{"$f":"IF(B14=\"\",\"\",IFERROR(IF(INDEX('Disagg.1A_import-export'!I$7:I$13,MATCH($A14,'Disagg.1A_import-export'!$B$7:$B$13,0))=\"\",\"\",INDEX('Disagg.1A_import-export'!I$7:I$13,MATCH($A14,'Disagg.1A_import-export'!$B$7:$B$13,0))),\"\"))","v":""},{"$f":"IF(B14=\"\",\"\",IFERROR(IF(INDEX('Disagg.1A_import-export'!J$7:J$13,MATCH($A14,'Disagg.1A_import-export'!$B$7:$B$13,0))=\"\",\"\",INDEX('Disagg.1A_import-export'!J$7:J$13,MATCH($A14,'Disagg.1A_import-export'!$B$7:$B$13,0))),\"\"))","v":""},{"$f":"IF(B14=\"\",\"\",IFERROR(IF(INDEX('Disagg.1A_import-export'!K$7:K$13,MATCH($A14,'Disagg.1A_import-export'!$B$7:$B$13,0))=\"\",\"\",INDEX('Disagg.1A_import-export'!K$7:K$13,MATCH($A14,'Disagg.1A_import-export'!$B$7:$B$13,0))),\"\"))","v":""},{"$f":"IF(B14=\"\",\"\",IFERROR(IF(INDEX('Disagg.1A_import-export'!L$7:L$13,MATCH($A14,'Disagg.1A_import-export'!$B$7:$B$13,0))=\"\",\"\",INDEX('Disagg.1A_import-export'!L$7:L$13,MATCH($A14,'Disagg.1A_import-export'!$B$7:$B$13,0))),\"\"))","v":""},{"$f":"IF(B14=\"\",\"\",IFERROR(IF(INDEX('Disagg.1A_import-export'!M$7:M$13,MATCH($A14,'Disagg.1A_import-export'!$B$7:$B$13,0))=\"\",\"\",INDEX('Disagg.1A_import-export'!M$7:M$13,MATCH($A14,'Disagg.1A_import-export'!$B$7:$B$13,0))),\"\"))","v":""},{"$f":"IF(B14=\"\",\"\",IFERROR(IF(INDEX('Disagg.1A_import-export'!N$7:N$13,MATCH($A14,'Disagg.1A_import-export'!$B$7:$B$13,0))=\"\",\"\",INDEX('Disagg.1A_import-export'!N$7:N$13,MATCH($A14,'Disagg.1A_import-export'!$B$7:$B$13,0))),\"\"))","v":""},{"$f":"IF(B14=\"\",\"\",IFERROR(IF(INDEX('Disagg.1A_import-export'!AC$7:AC$13,MATCH($A14,'Disagg.1A_import-export'!$B$7:$B$13,0))=\"\",\"\",INDEX('Disagg.1A_import-export'!AC$7:AC$13,MATCH($A14,'Disagg.1A_import-export'!$B$7:$B$13,0))),\"\"))","v":""}]
[{"$f":"IFERROR(IF(INDEX(ImpactDisaglist,MATCH(0,INDEX(COUNTIF(A$10:A14,ImpactDisaglist),0,0),0))<>\"\",INDEX(ImpactDisaglist,MATCH(0,INDEX(COUNTIF(A$10:A14,ImpactDisaglist),0,0),0)),INDEX(OutcomeDisaglist,MATCH(0,INDEX(COUNTIF(A$10:A14,OutcomeDisaglist),0,0),0))),\"\")","v":""},{"$f":"IFERROR(INDEX('Disagg.1A_import-export'!D$7:D$200,MATCH($A15,'Disagg.1A_import-export'!$B$7:$B$200,0)),\"\")","v":""},{"$f":"IF(B15=\"\",\"\",IFERROR(INDEX('Disagg.1A_import-export'!E$7:E$13,MATCH($A15,'Disagg.1A_import-export'!$B$7:$B$13,0)),\"\"))","v":""},{"$f":"IF(B15=\"\",\"\",IFERROR(IF(INDEX('Disagg.1A_import-export'!I$7:I$13,MATCH($A15,'Disagg.1A_import-export'!$B$7:$B$13,0))=\"\",\"\",INDEX('Disagg.1A_import-export'!I$7:I$13,MATCH($A15,'Disagg.1A_import-export'!$B$7:$B$13,0))),\"\"))","v":""},{"$f":"IF(B15=\"\",\"\",IFERROR(IF(INDEX('Disagg.1A_import-export'!J$7:J$13,MATCH($A15,'Disagg.1A_import-export'!$B$7:$B$13,0))=\"\",\"\",INDEX('Disagg.1A_import-export'!J$7:J$13,MATCH($A15,'Disagg.1A_import-export'!$B$7:$B$13,0))),\"\"))","v":""},{"$f":"IF(B15=\"\",\"\",IFERROR(IF(INDEX('Disagg.1A_import-export'!K$7:K$13,MATCH($A15,'Disagg.1A_import-export'!$B$7:$B$13,0))=\"\",\"\",INDEX('Disagg.1A_import-export'!K$7:K$13,MATCH($A15,'Disagg.1A_import-export'!$B$7:$B$13,0))),\"\"))","v":""},{"$f":"IF(B15=\"\",\"\",IFERROR(IF(INDEX('Disagg.1A_import-export'!L$7:L$13,MATCH($A15,'Disagg.1A_import-export'!$B$7:$B$13,0))=\"\",\"\",INDEX('Disagg.1A_import-export'!L$7:L$13,MATCH($A15,'Disagg.1A_import-export'!$B$7:$B$13,0))),\"\"))","v":""},{"$f":"IF(B15=\"\",\"\",IFERROR(IF(INDEX('Disagg.1A_import-export'!M$7:M$13,MATCH($A15,'Disagg.1A_import-export'!$B$7:$B$13,0))=\"\",\"\",INDEX('Disagg.1A_import-export'!M$7:M$13,MATCH($A15,'Disagg.1A_import-export'!$B$7:$B$13,0))),\"\"))","v":""},{"$f":"IF(B15=\"\",\"\",IFERROR(IF(INDEX('Disagg.1A_import-export'!N$7:N$13,MATCH($A15,'Disagg.1A_import-export'!$B$7:$B$13,0))=\"\",\"\",INDEX('Disagg.1A_import-export'!N$7:N$13,MATCH($A15,'Disagg.1A_import-export'!$B$7:$B$13,0))),\"\"))","v":""},{"$f":"IF(B15=\"\",\"\",IFERROR(IF(INDEX('Disagg.1A_import-export'!AC$7:AC$13,MATCH($A15,'Disagg.1A_import-export'!$B$7:$B$13,0))=\"\",\"\",INDEX('Disagg.1A_import-export'!AC$7:AC$13,MATCH($A15,'Disagg.1A_import-export'!$B$7:$B$13,0))),\"\"))","v":""}]
[{"$f":"IFERROR(IF(INDEX(ImpactDisaglist,MATCH(0,INDEX(COUNTIF(A$10:A15,ImpactDisaglist),0,0),0))<>\"\",INDEX(ImpactDisaglist,MATCH(0,INDEX(COUNTIF(A$10:A15,ImpactDisaglist),0,0),0)),INDEX(OutcomeDisaglist,MATCH(0,INDEX(COUNTIF(A$10:A15,OutcomeDisaglist),0,0),0))),\"\")","v":""},{"$f":"IFERROR(INDEX('Disagg.1A_import-export'!D$7:D$200,MATCH($A16,'Disagg.1A_import-export'!$B$7:$B$200,0)),\"\")","v":""},{"$f":"IF(B16=\"\",\"\",IFERROR(INDEX('Disagg.1A_import-export'!E$7:E$13,MATCH($A16,'Disagg.1A_import-export'!$B$7:$B$13,0)),\"\"))","v":""},{"$f":"IF(B16=\"\",\"\",IFERROR(IF(INDEX('Disagg.1A_import-export'!I$7:I$13,MATCH($A16,'Disagg.1A_import-export'!$B$7:$B$13,0))=\"\",\"\",INDEX('Disagg.1A_import-export'!I$7:I$13,MATCH($A16,'Disagg.1A_import-export'!$B$7:$B$13,0))),\"\"))","v":""},{"$f":"IF(B16=\"\",\"\",IFERROR(IF(INDEX('Disagg.1A_import-export'!J$7:J$13,MATCH($A16,'Disagg.1A_import-export'!$B$7:$B$13,0))=\"\",\"\",INDEX('Disagg.1A_import-export'!J$7:J$13,MATCH($A16,'Disagg.1A_import-export'!$B$7:$B$13,0))),\"\"))","v":""},{"$f":"IF(B16=\"\",\"\",IFERROR(IF(INDEX('Disagg.1A_import-export'!K$7:K$13,MATCH($A16,'Disagg.1A_import-export'!$B$7:$B$13,0))=\"\",\"\",INDEX('Disagg.1A_import-export'!K$7:K$13,MATCH($A16,'Disagg.1A_import-export'!$B$7:$B$13,0))),\"\"))","v":""},{"$f":"IF(B16=\"\",\"\",IFERROR(IF(INDEX('Disagg.1A_import-export'!L$7:L$13,MATCH($A16,'Disagg.1A_import-export'!$B$7:$B$13,0))=\"\",\"\",INDEX('Disagg.1A_import-export'!L$7:L$13,MATCH($A16,'Disagg.1A_import-export'!$B$7:$B$13,0))),\"\"))","v":""},{"$f":"IF(B16=\"\",\"\",IFERROR(IF(INDEX('Disagg.1A_import-export'!M$7:M$13,MATCH($A16,'Disagg.1A_import-export'!$B$7:$B$13,0))=\"\",\"\",INDEX('Disagg.1A_import-export'!M$7:M$13,MATCH($A16,'Disagg.1A_import-export'!$B$7:$B$13,0))),\"\"))","v":""},{"$f":"IF(B16=\"\",\"\",IFERROR(IF(INDEX('Disagg.1A_import-export'!N$7:N$13,MATCH($A16,'Disagg.1A_import-export'!$B$7:$B$13,0))=\"\",\"\",INDEX('Disagg.1A_import-export'!N$7:N$13,MATCH($A16,'Disagg.1A_import-export'!$B$7:$B$13,0))),\"\"))","v":""},{"$f":"IF(B16=\"\",\"\",IFERROR(IF(INDEX('Disagg.1A_import-export'!AC$7:AC$13,MATCH($A16,'Disagg.1A_import-export'!$B$7:$B$13,0))=\"\",\"\",INDEX('Disagg.1A_import-export'!AC$7:AC$13,MATCH($A16,'Disagg.1A_import-export'!$B$7:$B$13,0))),\"\"))","v":""}]
[{"$f":"IFERROR(IF(INDEX(ImpactDisaglist,MATCH(0,INDEX(COUNTIF(A$10:A16,ImpactDisaglist),0,0),0))<>\"\",INDEX(ImpactDisaglist,MATCH(0,INDEX(COUNTIF(A$10:A16,ImpactDisaglist),0,0),0)),INDEX(OutcomeDisaglist,MATCH(0,INDEX(COUNTIF(A$10:A16,OutcomeDisaglist),0,0),0))),\"\")","v":""},{"$f":"IFERROR(INDEX('Disagg.1A_import-export'!D$7:D$200,MATCH($A17,'Disagg.1A_import-export'!$B$7:$B$200,0)),\"\")","v":""},{"$f":"IF(B17=\"\",\"\",IFERROR(INDEX('Disagg.1A_import-export'!E$7:E$13,MATCH($A17,'Disagg.1A_import-export'!$B$7:$B$13,0)),\"\"))","v":""},{"$f":"IF(B17=\"\",\"\",IFERROR(IF(INDEX('Disagg.1A_import-export'!I$7:I$13,MATCH($A17,'Disagg.1A_import-export'!$B$7:$B$13,0))=\"\",\"\",INDEX('Disagg.1A_import-export'!I$7:I$13,MATCH($A17,'Disagg.1A_import-export'!$B$7:$B$13,0))),\"\"))","v":""},{"$f":"IF(B17=\"\",\"\",IFERROR(IF(INDEX('Disagg.1A_import-export'!J$7:J$13,MATCH($A17,'Disagg.1A_import-export'!$B$7:$B$13,0))=\"\",\"\",INDEX('Disagg.1A_import-export'!J$7:J$13,MATCH($A17,'Disagg.1A_import-export'!$B$7:$B$13,0))),\"\"))","v":""},{"$f":"IF(B17=\"\",\"\",IFERROR(IF(INDEX('Disagg.1A_import-export'!K$7:K$13,MATCH($A17,'Disagg.1A_import-export'!$B$7:$B$13,0))=\"\",\"\",INDEX('Disagg.1A_import-export'!K$7:K$13,MATCH($A17,'Disagg.1A_import-export'!$B$7:$B$13,0))),\"\"))","v":""},{"$f":"IF(B17=\"\",\"\",IFERROR(IF(INDEX('Disagg.1A_import-export'!L$7:L$13,MATCH($A17,'Disagg.1A_import-export'!$B$7:$B$13,0))=\"\",\"\",INDEX('Disagg.1A_import-export'!L$7:L$13,MATCH($A17,'Disagg.1A_import-export'!$B$7:$B$13,0))),\"\"))","v":""},{"$f":"IF(B17=\"\",\"\",IFERROR(IF(INDEX('Disagg.1A_import-export'!M$7:M$13,MATCH($A17,'Disagg.1A_import-export'!$B$7:$B$13,0))=\"\",\"\",INDEX('Disagg.1A_import-export'!M$7:M$13,MATCH($A17,'Disagg.1A_import-export'!$B$7:$B$13,0))),\"\"))","v":""},{"$f":"IF(B17=\"\",\"\",IFERROR(IF(INDEX('Disagg.1A_import-export'!N$7:N$13,MATCH($A17,'Disagg.1A_import-export'!$B$7:$B$13,0))=\"\",\"\",INDEX('Disagg.1A_import-export'!N$7:N$13,MATCH($A17,'Disagg.1A_import-export'!$B$7:$B$13,0))),\"\"))","v":""},{"$f":"IF(B17=\"\",\"\",IFERROR(IF(INDEX('Disagg.1A_import-export'!AC$7:AC$13,MATCH($A17,'Disagg.1A_import-export'!$B$7:$B$13,0))=\"\",\"\",INDEX('Disagg.1A_import-export'!AC$7:AC$13,MATCH($A17,'Disagg.1A_import-export'!$B$7:$B$13,0))),\"\"))","v":""}]
[{"$f":"IFERROR(IF(INDEX(ImpactDisaglist,MATCH(0,INDEX(COUNTIF(A$10:A17,ImpactDisaglist),0,0),0))<>\"\",INDEX(ImpactDisaglist,MATCH(0,INDEX(COUNTIF(A$10:A17,ImpactDisaglist),0,0),0)),INDEX(OutcomeDisaglist,MATCH(0,INDEX(COUNTIF(A$10:A17,OutcomeDisaglist),0,0),0))),\"\")","v":""},{"$f":"IFERROR(INDEX('Disagg.1A_import-export'!D$7:D$200,MATCH($A18,'Disagg.1A_import-export'!$B$7:$B$200,0)),\"\")","v":""},{"$f":"IF(B18=\"\",\"\",IFERROR(INDEX('Disagg.1A_import-export'!E$7:E$13,MATCH($A18,'Disagg.1A_import-export'!$B$7:$B$13,0)),\"\"))","v":""},{"$f":"IF(B18=\"\",\"\",IFERROR(IF(INDEX('Disagg.1A_import-export'!I$7:I$13,MATCH($A18,'Disagg.1A_import-export'!$B$7:$B$13,0))=\"\",\"\",INDEX('Disagg.1A_import-export'!I$7:I$13,MATCH($A18,'Disagg.1A_import-export'!$B$7:$B$13,0))),\"\"))","v":""},{"$f":"IF(B18=\"\",\"\",IFERROR(IF(INDEX('Disagg.1A_import-export'!J$7:J$13,MATCH($A18,'Disagg.1A_import-export'!$B$7:$B$13,0))=\"\",\"\",INDEX('Disagg.1A_import-export'!J$7:J$13,MATCH($A18,'Disagg.1A_import-export'!$B$7:$B$13,0))),\"\"))","v":""},{"$f":"IF(B18=\"\",\"\",IFERROR(IF(INDEX('Disagg.1A_import-export'!K$7:K$13,MATCH($A18,'Disagg.1A_import-export'!$B$7:$B$13,0))=\"\",\"\",INDEX('Disagg.1A_import-export'!K$7:K$13,MATCH($A18,'Disagg.1A_import-export'!$B$7:$B$13,0))),\"\"))","v":""},{"$f":"IF(B18=\"\",\"\",IFERROR(IF(INDEX('Disagg.1A_import-export'!L$7:L$13,MATCH($A18,'Disagg.1A_import-export'!$B$7:$B$13,0))=\"\",\"\",INDEX('Disagg.1A_import-export'!L$7:L$13,MATCH($A18,'Disagg.1A_import-export'!$B$7:$B$13,0))),\"\"))","v":""},{"$f":"IF(B18=\"\",\"\",IFERROR(IF(INDEX('Disagg.1A_import-export'!M$7:M$13,MATCH($A18,'Disagg.1A_import-export'!$B$7:$B$13,0))=\"\",\"\",INDEX('Disagg.1A_import-export'!M$7:M$13,MATCH($A18,'Disagg.1A_import-export'!$B$7:$B$13,0))),\"\"))","v":""},{"$f":"IF(B18=\"\",\"\",IFERROR(IF(INDEX('Disagg.1A_import-export'!N$7:N$13,MATCH($A18,'Disagg.1A_import-export'!$B$7:$B$13,0))=\"\",\"\",INDEX('Disagg.1A_import-export'!N$7:N$13,MATCH($A18,'Disagg.1A_import-export'!$B$7:$B$13,0))),\"\"))","v":""},{"$f":"IF(B18=\"\",\"\",IFERROR(IF(INDEX('Disagg.1A_import-export'!AC$7:AC$13,MATCH($A18,'Disagg.1A_import-export'!$B$7:$B$13,0))=\"\",\"\",INDEX('Disagg.1A_import-export'!AC$7:AC$13,MATCH($A18,'Disagg.1A_import-export'!$B$7:$B$13,0))),\"\"))","v":""}]
[{"$f":"IFERROR(IF(INDEX(ImpactDisaglist,MATCH(0,INDEX(COUNTIF(A$10:A18,ImpactDisaglist),0,0),0))<>\"\",INDEX(ImpactDisaglist,MATCH(0,INDEX(COUNTIF(A$10:A18,ImpactDisaglist),0,0),0)),INDEX(OutcomeDisaglist,MATCH(0,INDEX(COUNTIF(A$10:A18,OutcomeDisaglist),0,0),0))),\"\")","v":""},{"$f":"IFERROR(INDEX('Disagg.1A_import-export'!D$7:D$200,MATCH($A19,'Disagg.1A_import-export'!$B$7:$B$200,0)),\"\")","v":""},{"$f":"IF(B19=\"\",\"\",IFERROR(INDEX('Disagg.1A_import-export'!E$7:E$13,MATCH($A19,'Disagg.1A_import-export'!$B$7:$B$13,0)),\"\"))","v":""},{"$f":"IF(B19=\"\",\"\",IFERROR(IF(INDEX('Disagg.1A_import-export'!I$7:I$13,MATCH($A19,'Disagg.1A_import-export'!$B$7:$B$13,0))=\"\",\"\",INDEX('Disagg.1A_import-export'!I$7:I$13,MATCH($A19,'Disagg.1A_import-export'!$B$7:$B$13,0))),\"\"))","v":""},{"$f":"IF(B19=\"\",\"\",IFERROR(IF(INDEX('Disagg.1A_import-export'!J$7:J$13,MATCH($A19,'Disagg.1A_import-export'!$B$7:$B$13,0))=\"\",\"\",INDEX('Disagg.1A_import-export'!J$7:J$13,MATCH($A19,'Disagg.1A_import-export'!$B$7:$B$13,0))),\"\"))","v":""},{"$f":"IF(B19=\"\",\"\",IFERROR(IF(INDEX('Disagg.1A_import-export'!K$7:K$13,MATCH($A19,'Disagg.1A_import-export'!$B$7:$B$13,0))=\"\",\"\",INDEX('Disagg.1A_import-export'!K$7:K$13,MATCH($A19,'Disagg.1A_import-export'!$B$7:$B$13,0))),\"\"))","v":""},{"$f":"IF(B19=\"\",\"\",IFERROR(IF(INDEX('Disagg.1A_import-export'!L$7:L$13,MATCH($A19,'Disagg.1A_import-export'!$B$7:$B$13,0))=\"\",\"\",INDEX('Disagg.1A_import-export'!L$7:L$13,MATCH($A19,'Disagg.1A_import-export'!$B$7:$B$13,0))),\"\"))","v":""},{"$f":"IF(B19=\"\",\"\",IFERROR(IF(INDEX('Disagg.1A_import-export'!M$7:M$13,MATCH($A19,'Disagg.1A_import-export'!$B$7:$B$13,0))=\"\",\"\",INDEX('Disagg.1A_import-export'!M$7:M$13,MATCH($A19,'Disagg.1A_import-export'!$B$7:$B$13,0))),\"\"))","v":""},{"$f":"IF(B19=\"\",\"\",IFERROR(IF(INDEX('Disagg.1A_import-export'!N$7:N$13,MATCH($A19,'Disagg.1A_import-export'!$B$7:$B$13,0))=\"\",\"\",INDEX('Disagg.1A_import-export'!N$7:N$13,MATCH($A19,'Disagg.1A_import-export'!$B$7:$B$13,0))),\"\"))","v":""},{"$f":"IF(B19=\"\",\"\",IFERROR(IF(INDEX('Disagg.1A_import-export'!AC$7:AC$13,MATCH($A19,'Disagg.1A_import-export'!$B$7:$B$13,0))=\"\",\"\",INDEX('Disagg.1A_import-export'!AC$7:AC$13,MATCH($A19,'Disagg.1A_import-export'!$B$7:$B$13,0))),\"\"))","v":""}]
[{"$f":"IFERROR(IF(INDEX(ImpactDisaglist,MATCH(0,INDEX(COUNTIF(A$10:A19,ImpactDisaglist),0,0),0))<>\"\",INDEX(ImpactDisaglist,MATCH(0,INDEX(COUNTIF(A$10:A19,ImpactDisaglist),0,0),0)),INDEX(OutcomeDisaglist,MATCH(0,INDEX(COUNTIF(A$10:A19,OutcomeDisaglist),0,0),0))),\"\")","v":""},{"$f":"IFERROR(INDEX('Disagg.1A_import-export'!D$7:D$200,MATCH($A20,'Disagg.1A_import-export'!$B$7:$B$200,0)),\"\")","v":""},{"$f":"IF(B20=\"\",\"\",IFERROR(INDEX('Disagg.1A_import-export'!E$7:E$13,MATCH($A20,'Disagg.1A_import-export'!$B$7:$B$13,0)),\"\"))","v":""},{"$f":"IF(B20=\"\",\"\",IFERROR(IF(INDEX('Disagg.1A_import-export'!I$7:I$13,MATCH($A20,'Disagg.1A_import-export'!$B$7:$B$13,0))=\"\",\"\",INDEX('Disagg.1A_import-export'!I$7:I$13,MATCH($A20,'Disagg.1A_import-export'!$B$7:$B$13,0))),\"\"))","v":""},{"$f":"IF(B20=\"\",\"\",IFERROR(IF(INDEX('Disagg.1A_import-export'!J$7:J$13,MATCH($A20,'Disagg.1A_import-export'!$B$7:$B$13,0))=\"\",\"\",INDEX('Disagg.1A_import-export'!J$7:J$13,MATCH($A20,'Disagg.1A_import-export'!$B$7:$B$13,0))),\"\"))","v":""},{"$f":"IF(B20=\"\",\"\",IFERROR(IF(INDEX('Disagg.1A_import-export'!K$7:K$13,MATCH($A20,'Disagg.1A_import-export'!$B$7:$B$13,0))=\"\",\"\",INDEX('Disagg.1A_import-export'!K$7:K$13,MATCH($A20,'Disagg.1A_import-export'!$B$7:$B$13,0))),\"\"))","v":""},{"$f":"IF(B20=\"\",\"\",IFERROR(IF(INDEX('Disagg.1A_import-export'!L$7:L$13,MATCH($A20,'Disagg.1A_import-export'!$B$7:$B$13,0))=\"\",\"\",INDEX('Disagg.1A_import-export'!L$7:L$13,MATCH($A20,'Disagg.1A_import-export'!$B$7:$B$13,0))),\"\"))","v":""},{"$f":"IF(B20=\"\",\"\",IFERROR(IF(INDEX('Disagg.1A_import-export'!M$7:M$13,MATCH($A20,'Disagg.1A_import-export'!$B$7:$B$13,0))=\"\",\"\",INDEX('Disagg.1A_import-export'!M$7:M$13,MATCH($A20,'Disagg.1A_import-export'!$B$7:$B$13,0))),\"\"))","v":""},{"$f":"IF(B20=\"\",\"\",IFERROR(IF(INDEX('Disagg.1A_import-export'!N$7:N$13,MATCH($A20,'Disagg.1A_import-export'!$B$7:$B$13,0))=\"\",\"\",INDEX('Disagg.1A_import-export'!N$7:N$13,MATCH($A20,'Disagg.1A_import-export'!$B$7:$B$13,0))),\"\"))","v":""},{"$f":"IF(B20=\"\",\"\",IFERROR(IF(INDEX('Disagg.1A_import-export'!AC$7:AC$13,MATCH($A20,'Disagg.1A_import-export'!$B$7:$B$13,0))=\"\",\"\",INDEX('Disagg.1A_import-export'!AC$7:AC$13,MATCH($A20,'Disagg.1A_import-export'!$B$7:$B$13,0))),\"\"))","v":""}]
[{"$f":"IFERROR(IF(INDEX(ImpactDisaglist,MATCH(0,INDEX(COUNTIF(A$10:A20,ImpactDisaglist),0,0),0))<>\"\",INDEX(ImpactDisaglist,MATCH(0,INDEX(COUNTIF(A$10:A20,ImpactDisaglist),0,0),0)),INDEX(OutcomeDisaglist,MATCH(0,INDEX(COUNTIF(A$10:A20,OutcomeDisaglist),0,0),0))),\"\")","v":""},{"$f":"IFERROR(INDEX('Disagg.1A_import-export'!D$7:D$200,MATCH($A21,'Disagg.1A_import-export'!$B$7:$B$200,0)),\"\")","v":""},{"$f":"IF(B21=\"\",\"\",IFERROR(INDEX('Disagg.1A_import-export'!E$7:E$13,MATCH($A21,'Disagg.1A_import-export'!$B$7:$B$13,0)),\"\"))","v":""},{"$f":"IF(B21=\"\",\"\",IFERROR(IF(INDEX('Disagg.1A_import-export'!I$7:I$13,MATCH($A21,'Disagg.1A_import-export'!$B$7:$B$13,0))=\"\",\"\",INDEX('Disagg.1A_import-export'!I$7:I$13,MATCH($A21,'Disagg.1A_import-export'!$B$7:$B$13,0))),\"\"))","v":""},{"$f":"IF(B21=\"\",\"\",IFERROR(IF(INDEX('Disagg.1A_import-export'!J$7:J$13,MATCH($A21,'Disagg.1A_import-export'!$B$7:$B$13,0))=\"\",\"\",INDEX('Disagg.1A_import-export'!J$7:J$13,MATCH($A21,'Disagg.1A_import-export'!$B$7:$B$13,0))),\"\"))","v":""},{"$f":"IF(B21=\"\",\"\",IFERROR(IF(INDEX('Disagg.1A_import-export'!K$7:K$13,MATCH($A21,'Disagg.1A_import-export'!$B$7:$B$13,0))=\"\",\"\",INDEX('Disagg.1A_import-export'!K$7:K$13,MATCH($A21,'Disagg.1A_import-export'!$B$7:$B$13,0))),\"\"))","v":""},{"$f":"IF(B21=\"\",\"\",IFERROR(IF(INDEX('Disagg.1A_import-export'!L$7:L$13,MATCH($A21,'Disagg.1A_import-export'!$B$7:$B$13,0))=\"\",\"\",INDEX('Disagg.1A_import-export'!L$7:L$13,MATCH($A21,'Disagg.1A_import-export'!$B$7:$B$13,0))),\"\"))","v":""},{"$f":"IF(B21=\"\",\"\",IFERROR(IF(INDEX('Disagg.1A_import-export'!M$7:M$13,MATCH($A21,'Disagg.1A_import-export'!$B$7:$B$13,0))=\"\",\"\",INDEX('Disagg.1A_import-export'!M$7:M$13,MATCH($A21,'Disagg.1A_import-export'!$B$7:$B$13,0))),\"\"))","v":""},{"$f":"IF(B21=\"\",\"\",IFERROR(IF(INDEX('Disagg.1A_import-export'!N$7:N$13,MATCH($A21,'Disagg.1A_import-export'!$B$7:$B$13,0))=\"\",\"\",INDEX('Disagg.1A_import-export'!N$7:N$13,MATCH($A21,'Disagg.1A_import-export'!$B$7:$B$13,0))),\"\"))","v":""},{"$f":"IF(B21=\"\",\"\",IFERROR(IF(INDEX('Disagg.1A_import-export'!AC$7:AC$13,MATCH($A21,'Disagg.1A_import-export'!$B$7:$B$13,0))=\"\",\"\",INDEX('Disagg.1A_import-export'!AC$7:AC$13,MATCH($A21,'Disagg.1A_import-export'!$B$7:$B$13,0))),\"\"))","v":""}]
[{"$f":"IFERROR(IF(INDEX(ImpactDisaglist,MATCH(0,INDEX(COUNTIF(A$10:A21,ImpactDisaglist),0,0),0))<>\"\",INDEX(ImpactDisaglist,MATCH(0,INDEX(COUNTIF(A$10:A21,ImpactDisaglist),0,0),0)),INDEX(OutcomeDisaglist,MATCH(0,INDEX(COUNTIF(A$10:A21,OutcomeDisaglist),0,0),0))),\"\")","v":""},{"$f":"IFERROR(INDEX('Disagg.1A_import-export'!D$7:D$200,MATCH($A22,'Disagg.1A_import-export'!$B$7:$B$200,0)),\"\")","v":""},{"$f":"IF(B22=\"\",\"\",IFERROR(INDEX('Disagg.1A_import-export'!E$7:E$13,MATCH($A22,'Disagg.1A_import-export'!$B$7:$B$13,0)),\"\"))","v":""},{"$f":"IF(B22=\"\",\"\",IFERROR(IF(INDEX('Disagg.1A_import-export'!I$7:I$13,MATCH($A22,'Disagg.1A_import-export'!$B$7:$B$13,0))=\"\",\"\",INDEX('Disagg.1A_import-export'!I$7:I$13,MATCH($A22,'Disagg.1A_import-export'!$B$7:$B$13,0))),\"\"))","v":""},{"$f":"IF(B22=\"\",\"\",IFERROR(IF(INDEX('Disagg.1A_import-export'!J$7:J$13,MATCH($A22,'Disagg.1A_import-export'!$B$7:$B$13,0))=\"\",\"\",INDEX('Disagg.1A_import-export'!J$7:J$13,MATCH($A22,'Disagg.1A_import-export'!$B$7:$B$13,0))),\"\"))","v":""},{"$f":"IF(B22=\"\",\"\",IFERROR(IF(INDEX('Disagg.1A_import-export'!K$7:K$13,MATCH($A22,'Disagg.1A_import-export'!$B$7:$B$13,0))=\"\",\"\",INDEX('Disagg.1A_import-export'!K$7:K$13,MATCH($A22,'Disagg.1A_import-export'!$B$7:$B$13,0))),\"\"))","v":""},{"$f":"IF(B22=\"\",\"\",IFERROR(IF(INDEX('Disagg.1A_import-export'!L$7:L$13,MATCH($A22,'Disagg.1A_import-export'!$B$7:$B$13,0))=\"\",\"\",INDEX('Disagg.1A_import-export'!L$7:L$13,MATCH($A22,'Disagg.1A_import-export'!$B$7:$B$13,0))),\"\"))","v":""},{"$f":"IF(B22=\"\",\"\",IFERROR(IF(INDEX('Disagg.1A_import-export'!M$7:M$13,MATCH($A22,'Disagg.1A_import-export'!$B$7:$B$13,0))=\"\",\"\",INDEX('Disagg.1A_import-export'!M$7:M$13,MATCH($A22,'Disagg.1A_import-export'!$B$7:$B$13,0))),\"\"))","v":""},{"$f":"IF(B22=\"\",\"\",IFERROR(IF(INDEX('Disagg.1A_import-export'!N$7:N$13,MATCH($A22,'Disagg.1A_import-export'!$B$7:$B$13,0))=\"\",\"\",INDEX('Disagg.1A_import-export'!N$7:N$13,MATCH($A22,'Disagg.1A_import-export'!$B$7:$B$13,0))),\"\"))","v":""},{"$f":"IF(B22=\"\",\"\",IFERROR(IF(INDEX('Disagg.1A_import-export'!AC$7:AC$13,MATCH($A22,'Disagg.1A_import-export'!$B$7:$B$13,0))=\"\",\"\",INDEX('Disagg.1A_import-export'!AC$7:AC$13,MATCH($A22,'Disagg.1A_import-export'!$B$7:$B$13,0))),\"\"))","v":""}]
[{"$f":"IFERROR(IF(INDEX(ImpactDisaglist,MATCH(0,INDEX(COUNTIF(A$10:A22,ImpactDisaglist),0,0),0))<>\"\",INDEX(ImpactDisaglist,MATCH(0,INDEX(COUNTIF(A$10:A22,ImpactDisaglist),0,0),0)),INDEX(OutcomeDisaglist,MATCH(0,INDEX(COUNTIF(A$10:A22,OutcomeDisaglist),0,0),0))),\"\")","v":""},{"$f":"IFERROR(INDEX('Disagg.1A_import-export'!D$7:D$200,MATCH($A23,'Disagg.1A_import-export'!$B$7:$B$200,0)),\"\")","v":""},{"$f":"IF(B23=\"\",\"\",IFERROR(INDEX('Disagg.1A_import-export'!E$7:E$13,MATCH($A23,'Disagg.1A_import-export'!$B$7:$B$13,0)),\"\"))","v":""},{"$f":"IF(B23=\"\",\"\",IFERROR(IF(INDEX('Disagg.1A_import-export'!I$7:I$13,MATCH($A23,'Disagg.1A_import-export'!$B$7:$B$13,0))=\"\",\"\",INDEX('Disagg.1A_import-export'!I$7:I$13,MATCH($A23,'Disagg.1A_import-export'!$B$7:$B$13,0))),\"\"))","v":""},{"$f":"IF(B23=\"\",\"\",IFERROR(IF(INDEX('Disagg.1A_import-export'!J$7:J$13,MATCH($A23,'Disagg.1A_import-export'!$B$7:$B$13,0))=\"\",\"\",INDEX('Disagg.1A_import-export'!J$7:J$13,MATCH($A23,'Disagg.1A_import-export'!$B$7:$B$13,0))),\"\"))","v":""},{"$f":"IF(B23=\"\",\"\",IFERROR(IF(INDEX('Disagg.1A_import-export'!K$7:K$13,MATCH($A23,'Disagg.1A_import-export'!$B$7:$B$13,0))=\"\",\"\",INDEX('Disagg.1A_import-export'!K$7:K$13,MATCH($A23,'Disagg.1A_import-export'!$B$7:$B$13,0))),\"\"))","v":""},{"$f":"IF(B23=\"\",\"\",IFERROR(IF(INDEX('Disagg.1A_import-export'!L$7:L$13,MATCH($A23,'Disagg.1A_import-export'!$B$7:$B$13,0))=\"\",\"\",INDEX('Disagg.1A_import-export'!L$7:L$13,MATCH($A23,'Disagg.1A_import-export'!$B$7:$B$13,0))),\"\"))","v":""},{"$f":"IF(B23=\"\",\"\",IFERROR(IF(INDEX('Disagg.1A_import-export'!M$7:M$13,MATCH($A23,'Disagg.1A_import-export'!$B$7:$B$13,0))=\"\",\"\",INDEX('Disagg.1A_import-export'!M$7:M$13,MATCH($A23,'Disagg.1A_import-export'!$B$7:$B$13,0))),\"\"))","v":""},{"$f":"IF(B23=\"\",\"\",IFERROR(IF(INDEX('Disagg.1A_import-export'!N$7:N$13,MATCH($A23,'Disagg.1A_import-export'!$B$7:$B$13,0))=\"\",\"\",INDEX('Disagg.1A_import-export'!N$7:N$13,MATCH($A23,'Disagg.1A_import-export'!$B$7:$B$13,0))),\"\"))","v":""},{"$f":"IF(B23=\"\",\"\",IFERROR(IF(INDEX('Disagg.1A_import-export'!AC$7:AC$13,MATCH($A23,'Disagg.1A_import-export'!$B$7:$B$13,0))=\"\",\"\",INDEX('Disagg.1A_import-export'!AC$7:AC$13,MATCH($A23,'Disagg.1A_import-export'!$B$7:$B$13,0))),\"\"))","v":""}]
[{"$f":"IFERROR(IF(INDEX(ImpactDisaglist,MATCH(0,INDEX(COUNTIF(A$10:A23,ImpactDisaglist),0,0),0))<>\"\",INDEX(ImpactDisaglist,MATCH(0,INDEX(COUNTIF(A$10:A23,ImpactDisaglist),0,0),0)),INDEX(OutcomeDisaglist,MATCH(0,INDEX(COUNTIF(A$10:A23,OutcomeDisaglist),0,0),0))),\"\")","v":""},{"$f":"IFERROR(INDEX('Disagg.1A_import-export'!D$7:D$200,MATCH($A24,'Disagg.1A_import-export'!$B$7:$B$200,0)),\"\")","v":""},{"$f":"IF(B24=\"\",\"\",IFERROR(INDEX('Disagg.1A_import-export'!E$7:E$13,MATCH($A24,'Disagg.1A_import-export'!$B$7:$B$13,0)),\"\"))","v":""},{"$f":"IF(B24=\"\",\"\",IFERROR(IF(INDEX('Disagg.1A_import-export'!I$7:I$13,MATCH($A24,'Disagg.1A_import-export'!$B$7:$B$13,0))=\"\",\"\",INDEX('Disagg.1A_import-export'!I$7:I$13,MATCH($A24,'Disagg.1A_import-export'!$B$7:$B$13,0))),\"\"))","v":""},{"$f":"IF(B24=\"\",\"\",IFERROR(IF(INDEX('Disagg.1A_import-export'!J$7:J$13,MATCH($A24,'Disagg.1A_import-export'!$B$7:$B$13,0))=\"\",\"\",INDEX('Disagg.1A_import-export'!J$7:J$13,MATCH($A24,'Disagg.1A_import-export'!$B$7:$B$13,0))),\"\"))","v":""},{"$f":"IF(B24=\"\",\"\",IFERROR(IF(INDEX('Disagg.1A_import-export'!K$7:K$13,MATCH($A24,'Disagg.1A_import-export'!$B$7:$B$13,0))=\"\",\"\",INDEX('Disagg.1A_import-export'!K$7:K$13,MATCH($A24,'Disagg.1A_import-export'!$B$7:$B$13,0))),\"\"))","v":""},{"$f":"IF(B24=\"\",\"\",IFERROR(IF(INDEX('Disagg.1A_import-export'!L$7:L$13,MATCH($A24,'Disagg.1A_import-export'!$B$7:$B$13,0))=\"\",\"\",INDEX('Disagg.1A_import-export'!L$7:L$13,MATCH($A24,'Disagg.1A_import-export'!$B$7:$B$13,0))),\"\"))","v":""},{"$f":"IF(B24=\"\",\"\",IFERROR(IF(INDEX('Disagg.1A_import-export'!M$7:M$13,MATCH($A24,'Disagg.1A_import-export'!$B$7:$B$13,0))=\"\",\"\",INDEX('Disagg.1A_import-export'!M$7:M$13,MATCH($A24,'Disagg.1A_import-export'!$B$7:$B$13,0))),\"\"))","v":""},{"$f":"IF(B24=\"\",\"\",IFERROR(IF(INDEX('Disagg.1A_import-export'!N$7:N$13,MATCH($A24,'Disagg.1A_import-export'!$B$7:$B$13,0))=\"\",\"\",INDEX('Disagg.1A_import-export'!N$7:N$13,MATCH($A24,'Disagg.1A_import-export'!$B$7:$B$13,0))),\"\"))","v":""},{"$f":"IF(B24=\"\",\"\",IFERROR(IF(INDEX('Disagg.1A_import-export'!AC$7:AC$13,MATCH($A24,'Disagg.1A_import-export'!$B$7:$B$13,0))=\"\",\"\",INDEX('Disagg.1A_import-export'!AC$7:AC$13,MATCH($A24,'Disagg.1A_import-export'!$B$7:$B$13,0))),\"\"))","v":""}]
[{"$f":"IFERROR(IF(INDEX(ImpactDisaglist,MATCH(0,INDEX(COUNTIF(A$10:A24,ImpactDisaglist),0,0),0))<>\"\",INDEX(ImpactDisaglist,MATCH(0,INDEX(COUNTIF(A$10:A24,ImpactDisaglist),0,0),0)),INDEX(OutcomeDisaglist,MATCH(0,INDEX(COUNTIF(A$10:A24,OutcomeDisaglist),0,0),0))),\"\")","v":""},{"$f":"IFERROR(INDEX('Disagg.1A_import-export'!D$7:D$200,MATCH($A25,'Disagg.1A_import-export'!$B$7:$B$200,0)),\"\")","v":""},{"$f":"IF(B25=\"\",\"\",IFERROR(INDEX('Disagg.1A_import-export'!E$7:E$13,MATCH($A25,'Disagg.1A_import-export'!$B$7:$B$13,0)),\"\"))","v":""},{"$f":"IF(B25=\"\",\"\",IFERROR(IF(INDEX('Disagg.1A_import-export'!I$7:I$13,MATCH($A25,'Disagg.1A_import-export'!$B$7:$B$13,0))=\"\",\"\",INDEX('Disagg.1A_import-export'!I$7:I$13,MATCH($A25,'Disagg.1A_import-export'!$B$7:$B$13,0))),\"\"))","v":""},{"$f":"IF(B25=\"\",\"\",IFERROR(IF(INDEX('Disagg.1A_import-export'!J$7:J$13,MATCH($A25,'Disagg.1A_import-export'!$B$7:$B$13,0))=\"\",\"\",INDEX('Disagg.1A_import-export'!J$7:J$13,MATCH($A25,'Disagg.1A_import-export'!$B$7:$B$13,0))),\"\"))","v":""},{"$f":"IF(B25=\"\",\"\",IFERROR(IF(INDEX('Disagg.1A_import-export'!K$7:K$13,MATCH($A25,'Disagg.1A_import-export'!$B$7:$B$13,0))=\"\",\"\",INDEX('Disagg.1A_import-export'!K$7:K$13,MATCH($A25,'Disagg.1A_import-export'!$B$7:$B$13,0))),\"\"))","v":""},{"$f":"IF(B25=\"\",\"\",IFERROR(IF(INDEX('Disagg.1A_import-export'!L$7:L$13,MATCH($A25,'Disagg.1A_import-export'!$B$7:$B$13,0))=\"\",\"\",INDEX('Disagg.1A_import-export'!L$7:L$13,MATCH($A25,'Disagg.1A_import-export'!$B$7:$B$13,0))),\"\"))","v":""},{"$f":"IF(B25=\"\",\"\",IFERROR(IF(INDEX('Disagg.1A_import-export'!M$7:M$13,MATCH($A25,'Disagg.1A_import-export'!$B$7:$B$13,0))=\"\",\"\",INDEX('Disagg.1A_import-export'!M$7:M$13,MATCH($A25,'Disagg.1A_import-export'!$B$7:$B$13,0))),\"\"))","v":""},{"$f":"IF(B25=\"\",\"\",IFERROR(IF(INDEX('Disagg.1A_import-export'!N$7:N$13,MATCH($A25,'Disagg.1A_import-export'!$B$7:$B$13,0))=\"\",\"\",INDEX('Disagg.1A_import-export'!N$7:N$13,MATCH($A25,'Disagg.1A_import-export'!$B$7:$B$13,0))),\"\"))","v":""},{"$f":"IF(B25=\"\",\"\",IFERROR(IF(INDEX('Disagg.1A_import-export'!AC$7:AC$13,MATCH($A25,'Disagg.1A_import-export'!$B$7:$B$13,0))=\"\",\"\",INDEX('Disagg.1A_import-export'!AC$7:AC$13,MATCH($A25,'Disagg.1A_import-export'!$B$7:$B$13,0))),\"\"))","v":""}]
[{"$f":"IFERROR(IF(INDEX(ImpactDisaglist,MATCH(0,INDEX(COUNTIF(A$10:A25,ImpactDisaglist),0,0),0))<>\"\",INDEX(ImpactDisaglist,MATCH(0,INDEX(COUNTIF(A$10:A25,ImpactDisaglist),0,0),0)),INDEX(OutcomeDisaglist,MATCH(0,INDEX(COUNTIF(A$10:A25,OutcomeDisaglist),0,0),0))),\"\")","v":""},{"$f":"IFERROR(INDEX('Disagg.1A_import-export'!D$7:D$200,MATCH($A26,'Disagg.1A_import-export'!$B$7:$B$200,0)),\"\")","v":""},{"$f":"IF(B26=\"\",\"\",IFERROR(INDEX('Disagg.1A_import-export'!E$7:E$13,MATCH($A26,'Disagg.1A_import-export'!$B$7:$B$13,0)),\"\"))","v":""},{"$f":"IF(B26=\"\",\"\",IFERROR(IF(INDEX('Disagg.1A_import-export'!I$7:I$13,MATCH($A26,'Disagg.1A_import-export'!$B$7:$B$13,0))=\"\",\"\",INDEX('Disagg.1A_import-export'!I$7:I$13,MATCH($A26,'Disagg.1A_import-export'!$B$7:$B$13,0))),\"\"))","v":""},{"$f":"IF(B26=\"\",\"\",IFERROR(IF(INDEX('Disagg.1A_import-export'!J$7:J$13,MATCH($A26,'Disagg.1A_import-export'!$B$7:$B$13,0))=\"\",\"\",INDEX('Disagg.1A_import-export'!J$7:J$13,MATCH($A26,'Disagg.1A_import-export'!$B$7:$B$13,0))),\"\"))","v":""},{"$f":"IF(B26=\"\",\"\",IFERROR(IF(INDEX('Disagg.1A_import-export'!K$7:K$13,MATCH($A26,'Disagg.1A_import-export'!$B$7:$B$13,0))=\"\",\"\",INDEX('Disagg.1A_import-export'!K$7:K$13,MATCH($A26,'Disagg.1A_import-export'!$B$7:$B$13,0))),\"\"))","v":""},{"$f":"IF(B26=\"\",\"\",IFERROR(IF(INDEX('Disagg.1A_import-export'!L$7:L$13,MATCH($A26,'Disagg.1A_import-export'!$B$7:$B$13,0))=\"\",\"\",INDEX('Disagg.1A_import-export'!L$7:L$13,MATCH($A26,'Disagg.1A_import-export'!$B$7:$B$13,0))),\"\"))","v":""},{"$f":"IF(B26=\"\",\"\",IFERROR(IF(INDEX('Disagg.1A_import-export'!M$7:M$13,MATCH($A26,'Disagg.1A_import-export'!$B$7:$B$13,0))=\"\",\"\",INDEX('Disagg.1A_import-export'!M$7:M$13,MATCH($A26,'Disagg.1A_import-export'!$B$7:$B$13,0))),\"\"))","v":""},{"$f":"IF(B26=\"\",\"\",IFERROR(IF(INDEX('Disagg.1A_import-export'!N$7:N$13,MATCH($A26,'Disagg.1A_import-export'!$B$7:$B$13,0))=\"\",\"\",INDEX('Disagg.1A_import-export'!N$7:N$13,MATCH($A26,'Disagg.1A_import-export'!$B$7:$B$13,0))),\"\"))","v":""},{"$f":"IF(B26=\"\",\"\",IFERROR(IF(INDEX('Disagg.1A_import-export'!AC$7:AC$13,MATCH($A26,'Disagg.1A_import-export'!$B$7:$B$13,0))=\"\",\"\",INDEX('Disagg.1A_import-export'!AC$7:AC$13,MATCH($A26,'Disagg.1A_import-export'!$B$7:$B$13,0))),\"\"))","v":""}]
[{"$f":"IFERROR(IF(INDEX(ImpactDisaglist,MATCH(0,INDEX(COUNTIF(A$10:A26,ImpactDisaglist),0,0),0))<>\"\",INDEX(ImpactDisaglist,MATCH(0,INDEX(COUNTIF(A$10:A26,ImpactDisaglist),0,0),0)),INDEX(OutcomeDisaglist,MATCH(0,INDEX(COUNTIF(A$10:A26,OutcomeDisaglist),0,0),0))),\"\")","v":""},{"$f":"IFERROR(INDEX('Disagg.1A_import-export'!D$7:D$200,MATCH($A27,'Disagg.1A_import-export'!$B$7:$B$200,0)),\"\")","v":""},{"$f":"IF(B27=\"\",\"\",IFERROR(INDEX('Disagg.1A_import-export'!E$7:E$13,MATCH($A27,'Disagg.1A_import-export'!$B$7:$B$13,0)),\"\"))","v":""},{"$f":"IF(B27=\"\",\"\",IFERROR(IF(INDEX('Disagg.1A_import-export'!I$7:I$13,MATCH($A27,'Disagg.1A_import-export'!$B$7:$B$13,0))=\"\",\"\",INDEX('Disagg.1A_import-export'!I$7:I$13,MATCH($A27,'Disagg.1A_import-export'!$B$7:$B$13,0))),\"\"))","v":""},{"$f":"IF(B27=\"\",\"\",IFERROR(IF(INDEX('Disagg.1A_import-export'!J$7:J$13,MATCH($A27,'Disagg.1A_import-export'!$B$7:$B$13,0))=\"\",\"\",INDEX('Disagg.1A_import-export'!J$7:J$13,MATCH($A27,'Disagg.1A_import-export'!$B$7:$B$13,0))),\"\"))","v":""},{"$f":"IF(B27=\"\",\"\",IFERROR(IF(INDEX('Disagg.1A_import-export'!K$7:K$13,MATCH($A27,'Disagg.1A_import-export'!$B$7:$B$13,0))=\"\",\"\",INDEX('Disagg.1A_import-export'!K$7:K$13,MATCH($A27,'Disagg.1A_import-export'!$B$7:$B$13,0))),\"\"))","v":""},{"$f":"IF(B27=\"\",\"\",IFERROR(IF(INDEX('Disagg.1A_import-export'!L$7:L$13,MATCH($A27,'Disagg.1A_import-export'!$B$7:$B$13,0))=\"\",\"\",INDEX('Disagg.1A_import-export'!L$7:L$13,MATCH($A27,'Disagg.1A_import-export'!$B$7:$B$13,0))),\"\"))","v":""},{"$f":"IF(B27=\"\",\"\",IFERROR(IF(INDEX('Disagg.1A_import-export'!M$7:M$13,MATCH($A27,'Disagg.1A_import-export'!$B$7:$B$13,0))=\"\",\"\",INDEX('Disagg.1A_import-export'!M$7:M$13,MATCH($A27,'Disagg.1A_import-export'!$B$7:$B$13,0))),\"\"))","v":""},{"$f":"IF(B27=\"\",\"\",IFERROR(IF(INDEX('Disagg.1A_import-export'!N$7:N$13,MATCH($A27,'Disagg.1A_import-export'!$B$7:$B$13,0))=\"\",\"\",INDEX('Disagg.1A_import-export'!N$7:N$13,MATCH($A27,'Disagg.1A_import-export'!$B$7:$B$13,0))),\"\"))","v":""},{"$f":"IF(B27=\"\",\"\",IFERROR(IF(INDEX('Disagg.1A_import-export'!AC$7:AC$13,MATCH($A27,'Disagg.1A_import-export'!$B$7:$B$13,0))=\"\",\"\",INDEX('Disagg.1A_import-export'!AC$7:AC$13,MATCH($A27,'Disagg.1A_import-export'!$B$7:$B$13,0))),\"\"))","v":""}]
[{"$f":"IFERROR(IF(INDEX(ImpactDisaglist,MATCH(0,INDEX(COUNTIF(A$10:A27,ImpactDisaglist),0,0),0))<>\"\",INDEX(ImpactDisaglist,MATCH(0,INDEX(COUNTIF(A$10:A27,ImpactDisaglist),0,0),0)),INDEX(OutcomeDisaglist,MATCH(0,INDEX(COUNTIF(A$10:A27,OutcomeDisaglist),0,0),0))),\"\")","v":""},{"$f":"IFERROR(INDEX('Disagg.1A_import-export'!D$7:D$200,MATCH($A28,'Disagg.1A_import-export'!$B$7:$B$200,0)),\"\")","v":""},{"$f":"IF(B28=\"\",\"\",IFERROR(INDEX('Disagg.1A_import-export'!E$7:E$13,MATCH($A28,'Disagg.1A_import-export'!$B$7:$B$13,0)),\"\"))","v":""},{"$f":"IF(B28=\"\",\"\",IFERROR(IF(INDEX('Disagg.1A_import-export'!I$7:I$13,MATCH($A28,'Disagg.1A_import-export'!$B$7:$B$13,0))=\"\",\"\",INDEX('Disagg.1A_import-export'!I$7:I$13,MATCH($A28,'Disagg.1A_import-export'!$B$7:$B$13,0))),\"\"))","v":""},{"$f":"IF(B28=\"\",\"\",IFERROR(IF(INDEX('Disagg.1A_import-export'!J$7:J$13,MATCH($A28,'Disagg.1A_import-export'!$B$7:$B$13,0))=\"\",\"\",INDEX('Disagg.1A_import-export'!J$7:J$13,MATCH($A28,'Disagg.1A_import-export'!$B$7:$B$13,0))),\"\"))","v":""},{"$f":"IF(B28=\"\",\"\",IFERROR(IF(INDEX('Disagg.1A_import-export'!K$7:K$13,MATCH($A28,'Disagg.1A_import-export'!$B$7:$B$13,0))=\"\",\"\",INDEX('Disagg.1A_import-export'!K$7:K$13,MATCH($A28,'Disagg.1A_import-export'!$B$7:$B$13,0))),\"\"))","v":""},{"$f":"IF(B28=\"\",\"\",IFERROR(IF(INDEX('Disagg.1A_import-export'!L$7:L$13,MATCH($A28,'Disagg.1A_import-export'!$B$7:$B$13,0))=\"\",\"\",INDEX('Disagg.1A_import-export'!L$7:L$13,MATCH($A28,'Disagg.1A_import-export'!$B$7:$B$13,0))),\"\"))","v":""},{"$f":"IF(B28=\"\",\"\",IFERROR(IF(INDEX('Disagg.1A_import-export'!M$7:M$13,MATCH($A28,'Disagg.1A_import-export'!$B$7:$B$13,0))=\"\",\"\",INDEX('Disagg.1A_import-export'!M$7:M$13,MATCH($A28,'Disagg.1A_import-export'!$B$7:$B$13,0))),\"\"))","v":""},{"$f":"IF(B28=\"\",\"\",IFERROR(IF(INDEX('Disagg.1A_import-export'!N$7:N$13,MATCH($A28,'Disagg.1A_import-export'!$B$7:$B$13,0))=\"\",\"\",INDEX('Disagg.1A_import-export'!N$7:N$13,MATCH($A28,'Disagg.1A_import-export'!$B$7:$B$13,0))),\"\"))","v":""},{"$f":"IF(B28=\"\",\"\",IFERROR(IF(INDEX('Disagg.1A_import-export'!AC$7:AC$13,MATCH($A28,'Disagg.1A_import-export'!$B$7:$B$13,0))=\"\",\"\",INDEX('Disagg.1A_import-export'!AC$7:AC$13,MATCH($A28,'Disagg.1A_import-export'!$B$7:$B$13,0))),\"\"))","v":""}]
[{"$f":"IFERROR(IF(INDEX(ImpactDisaglist,MATCH(0,INDEX(COUNTIF(A$10:A28,ImpactDisaglist),0,0),0))<>\"\",INDEX(ImpactDisaglist,MATCH(0,INDEX(COUNTIF(A$10:A28,ImpactDisaglist),0,0),0)),INDEX(OutcomeDisaglist,MATCH(0,INDEX(COUNTIF(A$10:A28,OutcomeDisaglist),0,0),0))),\"\")","v":""},{"$f":"IFERROR(INDEX('Disagg.1A_import-export'!D$7:D$200,MATCH($A29,'Disagg.1A_import-export'!$B$7:$B$200,0)),\"\")","v":""},{"$f":"IF(B29=\"\",\"\",IFERROR(INDEX('Disagg.1A_import-export'!E$7:E$13,MATCH($A29,'Disagg.1A_import-export'!$B$7:$B$13,0)),\"\"))","v":""},{"$f":"IF(B29=\"\",\"\",IFERROR(IF(INDEX('Disagg.1A_import-export'!I$7:I$13,MATCH($A29,'Disagg.1A_import-export'!$B$7:$B$13,0))=\"\",\"\",INDEX('Disagg.1A_import-export'!I$7:I$13,MATCH($A29,'Disagg.1A_import-export'!$B$7:$B$13,0))),\"\"))","v":""},{"$f":"IF(B29=\"\",\"\",IFERROR(IF(INDEX('Disagg.1A_import-export'!J$7:J$13,MATCH($A29,'Disagg.1A_import-export'!$B$7:$B$13,0))=\"\",\"\",INDEX('Disagg.1A_import-export'!J$7:J$13,MATCH($A29,'Disagg.1A_import-export'!$B$7:$B$13,0))),\"\"))","v":""},{"$f":"IF(B29=\"\",\"\",IFERROR(IF(INDEX('Disagg.1A_import-export'!K$7:K$13,MATCH($A29,'Disagg.1A_import-export'!$B$7:$B$13,0))=\"\",\"\",INDEX('Disagg.1A_import-export'!K$7:K$13,MATCH($A29,'Disagg.1A_import-export'!$B$7:$B$13,0))),\"\"))","v":""},{"$f":"IF(B29=\"\",\"\",IFERROR(IF(INDEX('Disagg.1A_import-export'!L$7:L$13,MATCH($A29,'Disagg.1A_import-export'!$B$7:$B$13,0))=\"\",\"\",INDEX('Disagg.1A_import-export'!L$7:L$13,MATCH($A29,'Disagg.1A_import-export'!$B$7:$B$13,0))),\"\"))","v":""},{"$f":"IF(B29=\"\",\"\",IFERROR(IF(INDEX('Disagg.1A_import-export'!M$7:M$13,MATCH($A29,'Disagg.1A_import-export'!$B$7:$B$13,0))=\"\",\"\",INDEX('Disagg.1A_import-export'!M$7:M$13,MATCH($A29,'Disagg.1A_import-export'!$B$7:$B$13,0))),\"\"))","v":""},{"$f":"IF(B29=\"\",\"\",IFERROR(IF(INDEX('Disagg.1A_import-export'!N$7:N$13,MATCH($A29,'Disagg.1A_import-export'!$B$7:$B$13,0))=\"\",\"\",INDEX('Disagg.1A_import-export'!N$7:N$13,MATCH($A29,'Disagg.1A_import-export'!$B$7:$B$13,0))),\"\"))","v":""},{"$f":"IF(B29=\"\",\"\",IFERROR(IF(INDEX('Disagg.1A_import-export'!AC$7:AC$13,MATCH($A29,'Disagg.1A_import-export'!$B$7:$B$13,0))=\"\",\"\",INDEX('Disagg.1A_import-export'!AC$7:AC$13,MATCH($A29,'Disagg.1A_import-export'!$B$7:$B$13,0))),\"\"))","v":""}]
[{"$f":"IFERROR(IF(INDEX(ImpactDisaglist,MATCH(0,INDEX(COUNTIF(A$10:A29,ImpactDisaglist),0,0),0))<>\"\",INDEX(ImpactDisaglist,MATCH(0,INDEX(COUNTIF(A$10:A29,ImpactDisaglist),0,0),0)),INDEX(OutcomeDisaglist,MATCH(0,INDEX(COUNTIF(A$10:A29,OutcomeDisaglist),0,0),0))),\"\")","v":""},{"$f":"IFERROR(INDEX('Disagg.1A_import-export'!D$7:D$200,MATCH($A30,'Disagg.1A_import-export'!$B$7:$B$200,0)),\"\")","v":""},{"$f":"IF(B30=\"\",\"\",IFERROR(INDEX('Disagg.1A_import-export'!E$7:E$13,MATCH($A30,'Disagg.1A_import-export'!$B$7:$B$13,0)),\"\"))","v":""},{"$f":"IF(B30=\"\",\"\",IFERROR(IF(INDEX('Disagg.1A_import-export'!I$7:I$13,MATCH($A30,'Disagg.1A_import-export'!$B$7:$B$13,0))=\"\",\"\",INDEX('Disagg.1A_import-export'!I$7:I$13,MATCH($A30,'Disagg.1A_import-export'!$B$7:$B$13,0))),\"\"))","v":""},{"$f":"IF(B30=\"\",\"\",IFERROR(IF(INDEX('Disagg.1A_import-export'!J$7:J$13,MATCH($A30,'Disagg.1A_import-export'!$B$7:$B$13,0))=\"\",\"\",INDEX('Disagg.1A_import-export'!J$7:J$13,MATCH($A30,'Disagg.1A_import-export'!$B$7:$B$13,0))),\"\"))","v":""},{"$f":"IF(B30=\"\",\"\",IFERROR(IF(INDEX('Disagg.1A_import-export'!K$7:K$13,MATCH($A30,'Disagg.1A_import-export'!$B$7:$B$13,0))=\"\",\"\",INDEX('Disagg.1A_import-export'!K$7:K$13,MATCH($A30,'Disagg.1A_import-export'!$B$7:$B$13,0))),\"\"))","v":""},{"$f":"IF(B30=\"\",\"\",IFERROR(IF(INDEX('Disagg.1A_import-export'!L$7:L$13,MATCH($A30,'Disagg.1A_import-export'!$B$7:$B$13,0))=\"\",\"\",INDEX('Disagg.1A_import-export'!L$7:L$13,MATCH($A30,'Disagg.1A_import-export'!$B$7:$B$13,0))),\"\"))","v":""},{"$f":"IF(B30=\"\",\"\",IFERROR(IF(INDEX('Disagg.1A_import-export'!M$7:M$13,MATCH($A30,'Disagg.1A_import-export'!$B$7:$B$13,0))=\"\",\"\",INDEX('Disagg.1A_import-export'!M$7:M$13,MATCH($A30,'Disagg.1A_import-export'!$B$7:$B$13,0))),\"\"))","v":""},{"$f":"IF(B30=\"\",\"\",IFERROR(IF(INDEX('Disagg.1A_import-export'!N$7:N$13,MATCH($A30,'Disagg.1A_import-export'!$B$7:$B$13,0))=\"\",\"\",INDEX('Disagg.1A_import-export'!N$7:N$13,MATCH($A30,'Disagg.1A_import-export'!$B$7:$B$13,0))),\"\"))","v":""},{"$f":"IF(B30=\"\",\"\",IFERROR(IF(INDEX('Disagg.1A_import-export'!AC$7:AC$13,MATCH($A30,'Disagg.1A_import-export'!$B$7:$B$13,0))=\"\",\"\",INDEX('Disagg.1A_import-export'!AC$7:AC$13,MATCH($A30,'Disagg.1A_import-export'!$B$7:$B$13,0))),\"\"))","v":""}]
[{"$f":"IFERROR(IF(INDEX(ImpactDisaglist,MATCH(0,INDEX(COUNTIF(A$10:A30,ImpactDisaglist),0,0),0))<>\"\",INDEX(ImpactDisaglist,MATCH(0,INDEX(COUNTIF(A$10:A30,ImpactDisaglist),0,0),0)),INDEX(OutcomeDisaglist,MATCH(0,INDEX(COUNTIF(A$10:A30,OutcomeDisaglist),0,0),0))),\"\")","v":""},{"$f":"IFERROR(INDEX('Disagg.1A_import-export'!D$7:D$200,MATCH($A31,'Disagg.1A_import-export'!$B$7:$B$200,0)),\"\")","v":""},{"$f":"IF(B31=\"\",\"\",IFERROR(INDEX('Disagg.1A_import-export'!E$7:E$13,MATCH($A31,'Disagg.1A_import-export'!$B$7:$B$13,0)),\"\"))","v":""},{"$f":"IF(B31=\"\",\"\",IFERROR(IF(INDEX('Disagg.1A_import-export'!I$7:I$13,MATCH($A31,'Disagg.1A_import-export'!$B$7:$B$13,0))=\"\",\"\",INDEX('Disagg.1A_import-export'!I$7:I$13,MATCH($A31,'Disagg.1A_import-export'!$B$7:$B$13,0))),\"\"))","v":""},{"$f":"IF(B31=\"\",\"\",IFERROR(IF(INDEX('Disagg.1A_import-export'!J$7:J$13,MATCH($A31,'Disagg.1A_import-export'!$B$7:$B$13,0))=\"\",\"\",INDEX('Disagg.1A_import-export'!J$7:J$13,MATCH($A31,'Disagg.1A_import-export'!$B$7:$B$13,0))),\"\"))","v":""},{"$f":"IF(B31=\"\",\"\",IFERROR(IF(INDEX('Disagg.1A_import-export'!K$7:K$13,MATCH($A31,'Disagg.1A_import-export'!$B$7:$B$13,0))=\"\",\"\",INDEX('Disagg.1A_import-export'!K$7:K$13,MATCH($A31,'Disagg.1A_import-export'!$B$7:$B$13,0))),\"\"))","v":""},{"$f":"IF(B31=\"\",\"\",IFERROR(IF(INDEX('Disagg.1A_import-export'!L$7:L$13,MATCH($A31,'Disagg.1A_import-export'!$B$7:$B$13,0))=\"\",\"\",INDEX('Disagg.1A_import-export'!L$7:L$13,MATCH($A31,'Disagg.1A_import-export'!$B$7:$B$13,0))),\"\"))","v":""},{"$f":"IF(B31=\"\",\"\",IFERROR(IF(INDEX('Disagg.1A_import-export'!M$7:M$13,MATCH($A31,'Disagg.1A_import-export'!$B$7:$B$13,0))=\"\",\"\",INDEX('Disagg.1A_import-export'!M$7:M$13,MATCH($A31,'Disagg.1A_import-export'!$B$7:$B$13,0))),\"\"))","v":""},{"$f":"IF(B31=\"\",\"\",IFERROR(IF(INDEX('Disagg.1A_import-export'!N$7:N$13,MATCH($A31,'Disagg.1A_import-export'!$B$7:$B$13,0))=\"\",\"\",INDEX('Disagg.1A_import-export'!N$7:N$13,MATCH($A31,'Disagg.1A_import-export'!$B$7:$B$13,0))),\"\"))","v":""},{"$f":"IF(B31=\"\",\"\",IFERROR(IF(INDEX('Disagg.1A_import-export'!AC$7:AC$13,MATCH($A31,'Disagg.1A_import-export'!$B$7:$B$13,0))=\"\",\"\",INDEX('Disagg.1A_import-export'!AC$7:AC$13,MATCH($A31,'Disagg.1A_import-export'!$B$7:$B$13,0))),\"\"))","v":""}]
[{"$f":"IFERROR(IF(INDEX(ImpactDisaglist,MATCH(0,INDEX(COUNTIF(A$10:A31,ImpactDisaglist),0,0),0))<>\"\",INDEX(ImpactDisaglist,MATCH(0,INDEX(COUNTIF(A$10:A31,ImpactDisaglist),0,0),0)),INDEX(OutcomeDisaglist,MATCH(0,INDEX(COUNTIF(A$10:A31,OutcomeDisaglist),0,0),0))),\"\")","v":""},{"$f":"IFERROR(INDEX('Disagg.1A_import-export'!D$7:D$200,MATCH($A32,'Disagg.1A_import-export'!$B$7:$B$200,0)),\"\")","v":""},{"$f":"IF(B32=\"\",\"\",IFERROR(INDEX('Disagg.1A_import-export'!E$7:E$13,MATCH($A32,'Disagg.1A_import-export'!$B$7:$B$13,0)),\"\"))","v":""},{"$f":"IF(B32=\"\",\"\",IFERROR(IF(INDEX('Disagg.1A_import-export'!I$7:I$13,MATCH($A32,'Disagg.1A_import-export'!$B$7:$B$13,0))=\"\",\"\",INDEX('Disagg.1A_import-export'!I$7:I$13,MATCH($A32,'Disagg.1A_import-export'!$B$7:$B$13,0))),\"\"))","v":""},{"$f":"IF(B32=\"\",\"\",IFERROR(IF(INDEX('Disagg.1A_import-export'!J$7:J$13,MATCH($A32,'Disagg.1A_import-export'!$B$7:$B$13,0))=\"\",\"\",INDEX('Disagg.1A_import-export'!J$7:J$13,MATCH($A32,'Disagg.1A_import-export'!$B$7:$B$13,0))),\"\"))","v":""},{"$f":"IF(B32=\"\",\"\",IFERROR(IF(INDEX('Disagg.1A_import-export'!K$7:K$13,MATCH($A32,'Disagg.1A_import-export'!$B$7:$B$13,0))=\"\",\"\",INDEX('Disagg.1A_import-export'!K$7:K$13,MATCH($A32,'Disagg.1A_import-export'!$B$7:$B$13,0))),\"\"))","v":""},{"$f":"IF(B32=\"\",\"\",IFERROR(IF(INDEX('Disagg.1A_import-export'!L$7:L$13,MATCH($A32,'Disagg.1A_import-export'!$B$7:$B$13,0))=\"\",\"\",INDEX('Disagg.1A_import-export'!L$7:L$13,MATCH($A32,'Disagg.1A_import-export'!$B$7:$B$13,0))),\"\"))","v":""},{"$f":"IF(B32=\"\",\"\",IFERROR(IF(INDEX('Disagg.1A_import-export'!M$7:M$13,MATCH($A32,'Disagg.1A_import-export'!$B$7:$B$13,0))=\"\",\"\",INDEX('Disagg.1A_import-export'!M$7:M$13,MATCH($A32,'Disagg.1A_import-export'!$B$7:$B$13,0))),\"\"))","v":""},{"$f":"IF(B32=\"\",\"\",IFERROR(IF(INDEX('Disagg.1A_import-export'!N$7:N$13,MATCH($A32,'Disagg.1A_import-export'!$B$7:$B$13,0))=\"\",\"\",INDEX('Disagg.1A_import-export'!N$7:N$13,MATCH($A32,'Disagg.1A_import-export'!$B$7:$B$13,0))),\"\"))","v":""},{"$f":"IF(B32=\"\",\"\",IFERROR(IF(INDEX('Disagg.1A_import-export'!AC$7:AC$13,MATCH($A32,'Disagg.1A_import-export'!$B$7:$B$13,0))=\"\",\"\",INDEX('Disagg.1A_import-export'!AC$7:AC$13,MATCH($A32,'Disagg.1A_import-export'!$B$7:$B$13,0))),\"\"))","v":""}]
[{"$f":"IFERROR(IF(INDEX(ImpactDisaglist,MATCH(0,INDEX(COUNTIF(A$10:A32,ImpactDisaglist),0,0),0))<>\"\",INDEX(ImpactDisaglist,MATCH(0,INDEX(COUNTIF(A$10:A32,ImpactDisaglist),0,0),0)),INDEX(OutcomeDisaglist,MATCH(0,INDEX(COUNTIF(A$10:A32,OutcomeDisaglist),0,0),0))),\"\")","v":""},{"$f":"IFERROR(INDEX('Disagg.1A_import-export'!D$7:D$200,MATCH($A33,'Disagg.1A_import-export'!$B$7:$B$200,0)),\"\")","v":""},{"$f":"IF(B33=\"\",\"\",IFERROR(INDEX('Disagg.1A_import-export'!E$7:E$13,MATCH($A33,'Disagg.1A_import-export'!$B$7:$B$13,0)),\"\"))","v":""},{"$f":"IF(B33=\"\",\"\",IFERROR(IF(INDEX('Disagg.1A_import-export'!I$7:I$13,MATCH($A33,'Disagg.1A_import-export'!$B$7:$B$13,0))=\"\",\"\",INDEX('Disagg.1A_import-export'!I$7:I$13,MATCH($A33,'Disagg.1A_import-export'!$B$7:$B$13,0))),\"\"))","v":""},{"$f":"IF(B33=\"\",\"\",IFERROR(IF(INDEX('Disagg.1A_import-export'!J$7:J$13,MATCH($A33,'Disagg.1A_import-export'!$B$7:$B$13,0))=\"\",\"\",INDEX('Disagg.1A_import-export'!J$7:J$13,MATCH($A33,'Disagg.1A_import-export'!$B$7:$B$13,0))),\"\"))","v":""},{"$f":"IF(B33=\"\",\"\",IFERROR(IF(INDEX('Disagg.1A_import-export'!K$7:K$13,MATCH($A33,'Disagg.1A_import-export'!$B$7:$B$13,0))=\"\",\"\",INDEX('Disagg.1A_import-export'!K$7:K$13,MATCH($A33,'Disagg.1A_import-export'!$B$7:$B$13,0))),\"\"))","v":""},{"$f":"IF(B33=\"\",\"\",IFERROR(IF(INDEX('Disagg.1A_import-export'!L$7:L$13,MATCH($A33,'Disagg.1A_import-export'!$B$7:$B$13,0))=\"\",\"\",INDEX('Disagg.1A_import-export'!L$7:L$13,MATCH($A33,'Disagg.1A_import-export'!$B$7:$B$13,0))),\"\"))","v":""},{"$f":"IF(B33=\"\",\"\",IFERROR(IF(INDEX('Disagg.1A_import-export'!M$7:M$13,MATCH($A33,'Disagg.1A_import-export'!$B$7:$B$13,0))=\"\",\"\",INDEX('Disagg.1A_import-export'!M$7:M$13,MATCH($A33,'Disagg.1A_import-export'!$B$7:$B$13,0))),\"\"))","v":""},{"$f":"IF(B33=\"\",\"\",IFERROR(IF(INDEX('Disagg.1A_import-export'!N$7:N$13,MATCH($A33,'Disagg.1A_import-export'!$B$7:$B$13,0))=\"\",\"\",INDEX('Disagg.1A_import-export'!N$7:N$13,MATCH($A33,'Disagg.1A_import-export'!$B$7:$B$13,0))),\"\"))","v":""},{"$f":"IF(B33=\"\",\"\",IFERROR(IF(INDEX('Disagg.1A_import-export'!AC$7:AC$13,MATCH($A33,'Disagg.1A_import-export'!$B$7:$B$13,0))=\"\",\"\",INDEX('Disagg.1A_import-export'!AC$7:AC$13,MATCH($A33,'Disagg.1A_import-export'!$B$7:$B$13,0))),\"\"))","v":""}]
[{"$f":"IFERROR(IF(INDEX(ImpactDisaglist,MATCH(0,INDEX(COUNTIF(A$10:A33,ImpactDisaglist),0,0),0))<>\"\",INDEX(ImpactDisaglist,MATCH(0,INDEX(COUNTIF(A$10:A33,ImpactDisaglist),0,0),0)),INDEX(OutcomeDisaglist,MATCH(0,INDEX(COUNTIF(A$10:A33,OutcomeDisaglist),0,0),0))),\"\")","v":""},{"$f":"IFERROR(INDEX('Disagg.1A_import-export'!D$7:D$200,MATCH($A34,'Disagg.1A_import-export'!$B$7:$B$200,0)),\"\")","v":""},{"$f":"IF(B34=\"\",\"\",IFERROR(INDEX('Disagg.1A_import-export'!E$7:E$13,MATCH($A34,'Disagg.1A_import-export'!$B$7:$B$13,0)),\"\"))","v":""},{"$f":"IF(B34=\"\",\"\",IFERROR(IF(INDEX('Disagg.1A_import-export'!I$7:I$13,MATCH($A34,'Disagg.1A_import-export'!$B$7:$B$13,0))=\"\",\"\",INDEX('Disagg.1A_import-export'!I$7:I$13,MATCH($A34,'Disagg.1A_import-export'!$B$7:$B$13,0))),\"\"))","v":""},{"$f":"IF(B34=\"\",\"\",IFERROR(IF(INDEX('Disagg.1A_import-export'!J$7:J$13,MATCH($A34,'Disagg.1A_import-export'!$B$7:$B$13,0))=\"\",\"\",INDEX('Disagg.1A_import-export'!J$7:J$13,MATCH($A34,'Disagg.1A_import-export'!$B$7:$B$13,0))),\"\"))","v":""},{"$f":"IF(B34=\"\",\"\",IFERROR(IF(INDEX('Disagg.1A_import-export'!K$7:K$13,MATCH($A34,'Disagg.1A_import-export'!$B$7:$B$13,0))=\"\",\"\",INDEX('Disagg.1A_import-export'!K$7:K$13,MATCH($A34,'Disagg.1A_import-export'!$B$7:$B$13,0))),\"\"))","v":""},{"$f":"IF(B34=\"\",\"\",IFERROR(IF(INDEX('Disagg.1A_import-export'!L$7:L$13,MATCH($A34,'Disagg.1A_import-export'!$B$7:$B$13,0))=\"\",\"\",INDEX('Disagg.1A_import-export'!L$7:L$13,MATCH($A34,'Disagg.1A_import-export'!$B$7:$B$13,0))),\"\"))","v":""},{"$f":"IF(B34=\"\",\"\",IFERROR(IF(INDEX('Disagg.1A_import-export'!M$7:M$13,MATCH($A34,'Disagg.1A_import-export'!$B$7:$B$13,0))=\"\",\"\",INDEX('Disagg.1A_import-export'!M$7:M$13,MATCH($A34,'Disagg.1A_import-export'!$B$7:$B$13,0))),\"\"))","v":""},{"$f":"IF(B34=\"\",\"\",IFERROR(IF(INDEX('Disagg.1A_import-export'!N$7:N$13,MATCH($A34,'Disagg.1A_import-export'!$B$7:$B$13,0))=\"\",\"\",INDEX('Disagg.1A_import-export'!N$7:N$13,MATCH($A34,'Disagg.1A_import-export'!$B$7:$B$13,0))),\"\"))","v":""},{"$f":"IF(B34=\"\",\"\",IFERROR(IF(INDEX('Disagg.1A_import-export'!AC$7:AC$13,MATCH($A34,'Disagg.1A_import-export'!$B$7:$B$13,0))=\"\",\"\",INDEX('Disagg.1A_import-export'!AC$7:AC$13,MATCH($A34,'Disagg.1A_import-export'!$B$7:$B$13,0))),\"\"))","v":""}]
[{"$f":"IFERROR(IF(INDEX(ImpactDisaglist,MATCH(0,INDEX(COUNTIF(A$10:A34,ImpactDisaglist),0,0),0))<>\"\",INDEX(ImpactDisaglist,MATCH(0,INDEX(COUNTIF(A$10:A34,ImpactDisaglist),0,0),0)),INDEX(OutcomeDisaglist,MATCH(0,INDEX(COUNTIF(A$10:A34,OutcomeDisaglist),0,0),0))),\"\")","v":""},{"$f":"IFERROR(INDEX('Disagg.1A_import-export'!D$7:D$200,MATCH($A35,'Disagg.1A_import-export'!$B$7:$B$200,0)),\"\")","v":""},{"$f":"IF(B35=\"\",\"\",IFERROR(INDEX('Disagg.1A_import-export'!E$7:E$13,MATCH($A35,'Disagg.1A_import-export'!$B$7:$B$13,0)),\"\"))","v":""},{"$f":"IF(B35=\"\",\"\",IFERROR(IF(INDEX('Disagg.1A_import-export'!I$7:I$13,MATCH($A35,'Disagg.1A_import-export'!$B$7:$B$13,0))=\"\",\"\",INDEX('Disagg.1A_import-export'!I$7:I$13,MATCH($A35,'Disagg.1A_import-export'!$B$7:$B$13,0))),\"\"))","v":""},{"$f":"IF(B35=\"\",\"\",IFERROR(IF(INDEX('Disagg.1A_import-export'!J$7:J$13,MATCH($A35,'Disagg.1A_import-export'!$B$7:$B$13,0))=\"\",\"\",INDEX('Disagg.1A_import-export'!J$7:J$13,MATCH($A35,'Disagg.1A_import-export'!$B$7:$B$13,0))),\"\"))","v":""},{"$f":"IF(B35=\"\",\"\",IFERROR(IF(INDEX('Disagg.1A_import-export'!K$7:K$13,MATCH($A35,'Disagg.1A_import-export'!$B$7:$B$13,0))=\"\",\"\",INDEX('Disagg.1A_import-export'!K$7:K$13,MATCH($A35,'Disagg.1A_import-export'!$B$7:$B$13,0))),\"\"))","v":""},{"$f":"IF(B35=\"\",\"\",IFERROR(IF(INDEX('Disagg.1A_import-export'!L$7:L$13,MATCH($A35,'Disagg.1A_import-export'!$B$7:$B$13,0))=\"\",\"\",INDEX('Disagg.1A_import-export'!L$7:L$13,MATCH($A35,'Disagg.1A_import-export'!$B$7:$B$13,0))),\"\"))","v":""},{"$f":"IF(B35=\"\",\"\",IFERROR(IF(INDEX('Disagg.1A_import-export'!M$7:M$13,MATCH($A35,'Disagg.1A_import-export'!$B$7:$B$13,0))=\"\",\"\",INDEX('Disagg.1A_import-export'!M$7:M$13,MATCH($A35,'Disagg.1A_import-export'!$B$7:$B$13,0))),\"\"))","v":""},{"$f":"IF(B35=\"\",\"\",IFERROR(IF(INDEX('Disagg.1A_import-export'!N$7:N$13,MATCH($A35,'Disagg.1A_import-export'!$B$7:$B$13,0))=\"\",\"\",INDEX('Disagg.1A_import-export'!N$7:N$13,MATCH($A35,'Disagg.1A_import-export'!$B$7:$B$13,0))),\"\"))","v":""},{"$f":"IF(B35=\"\",\"\",IFERROR(IF(INDEX('Disagg.1A_import-export'!AC$7:AC$13,MATCH($A35,'Disagg.1A_import-export'!$B$7:$B$13,0))=\"\",\"\",INDEX('Disagg.1A_import-export'!AC$7:AC$13,MATCH($A35,'Disagg.1A_import-export'!$B$7:$B$13,0))),\"\"))","v":""}]
[{"$f":"IFERROR(IF(INDEX(ImpactDisaglist,MATCH(0,INDEX(COUNTIF(A$10:A35,ImpactDisaglist),0,0),0))<>\"\",INDEX(ImpactDisaglist,MATCH(0,INDEX(COUNTIF(A$10:A35,ImpactDisaglist),0,0),0)),INDEX(OutcomeDisaglist,MATCH(0,INDEX(COUNTIF(A$10:A35,OutcomeDisaglist),0,0),0))),\"\")","v":""},{"$f":"IFERROR(INDEX('Disagg.1A_import-export'!D$7:D$200,MATCH($A36,'Disagg.1A_import-export'!$B$7:$B$200,0)),\"\")","v":""},{"$f":"IF(B36=\"\",\"\",IFERROR(INDEX('Disagg.1A_import-export'!E$7:E$13,MATCH($A36,'Disagg.1A_import-export'!$B$7:$B$13,0)),\"\"))","v":""},{"$f":"IF(B36=\"\",\"\",IFERROR(IF(INDEX('Disagg.1A_import-export'!I$7:I$13,MATCH($A36,'Disagg.1A_import-export'!$B$7:$B$13,0))=\"\",\"\",INDEX('Disagg.1A_import-export'!I$7:I$13,MATCH($A36,'Disagg.1A_import-export'!$B$7:$B$13,0))),\"\"))","v":""},{"$f":"IF(B36=\"\",\"\",IFERROR(IF(INDEX('Disagg.1A_import-export'!J$7:J$13,MATCH($A36,'Disagg.1A_import-export'!$B$7:$B$13,0))=\"\",\"\",INDEX('Disagg.1A_import-export'!J$7:J$13,MATCH($A36,'Disagg.1A_import-export'!$B$7:$B$13,0))),\"\"))","v":""},{"$f":"IF(B36=\"\",\"\",IFERROR(IF(INDEX('Disagg.1A_import-export'!K$7:K$13,MATCH($A36,'Disagg.1A_import-export'!$B$7:$B$13,0))=\"\",\"\",INDEX('Disagg.1A_import-export'!K$7:K$13,MATCH($A36,'Disagg.1A_import-export'!$B$7:$B$13,0))),\"\"))","v":""},{"$f":"IF(B36=\"\",\"\",IFERROR(IF(INDEX('Disagg.1A_import-export'!L$7:L$13,MATCH($A36,'Disagg.1A_import-export'!$B$7:$B$13,0))=\"\",\"\",INDEX('Disagg.1A_import-export'!L$7:L$13,MATCH($A36,'Disagg.1A_import-export'!$B$7:$B$13,0))),\"\"))","v":""},{"$f":"IF(B36=\"\",\"\",IFERROR(IF(INDEX('Disagg.1A_import-export'!M$7:M$13,MATCH($A36,'Disagg.1A_import-export'!$B$7:$B$13,0))=\"\",\"\",INDEX('Disagg.1A_import-export'!M$7:M$13,MATCH($A36,'Disagg.1A_import-export'!$B$7:$B$13,0))),\"\"))","v":""},{"$f":"IF(B36=\"\",\"\",IFERROR(IF(INDEX('Disagg.1A_import-export'!N$7:N$13,MATCH($A36,'Disagg.1A_import-export'!$B$7:$B$13,0))=\"\",\"\",INDEX('Disagg.1A_import-export'!N$7:N$13,MATCH($A36,'Disagg.1A_import-export'!$B$7:$B$13,0))),\"\"))","v":""},{"$f":"IF(B36=\"\",\"\",IFERROR(IF(INDEX('Disagg.1A_import-export'!AC$7:AC$13,MATCH($A36,'Disagg.1A_import-export'!$B$7:$B$13,0))=\"\",\"\",INDEX('Disagg.1A_import-export'!AC$7:AC$13,MATCH($A36,'Disagg.1A_import-export'!$B$7:$B$13,0))),\"\"))","v":""}]
[{"$f":"IFERROR(IF(INDEX(ImpactDisaglist,MATCH(0,INDEX(COUNTIF(A$10:A36,ImpactDisaglist),0,0),0))<>\"\",INDEX(ImpactDisaglist,MATCH(0,INDEX(COUNTIF(A$10:A36,ImpactDisaglist),0,0),0)),INDEX(OutcomeDisaglist,MATCH(0,INDEX(COUNTIF(A$10:A36,OutcomeDisaglist),0,0),0))),\"\")","v":""},{"$f":"IFERROR(INDEX('Disagg.1A_import-export'!D$7:D$200,MATCH($A37,'Disagg.1A_import-export'!$B$7:$B$200,0)),\"\")","v":""},{"$f":"IF(B37=\"\",\"\",IFERROR(INDEX('Disagg.1A_import-export'!E$7:E$13,MATCH($A37,'Disagg.1A_import-export'!$B$7:$B$13,0)),\"\"))","v":""},{"$f":"IF(B37=\"\",\"\",IFERROR(IF(INDEX('Disagg.1A_import-export'!I$7:I$13,MATCH($A37,'Disagg.1A_import-export'!$B$7:$B$13,0))=\"\",\"\",INDEX('Disagg.1A_import-export'!I$7:I$13,MATCH($A37,'Disagg.1A_import-export'!$B$7:$B$13,0))),\"\"))","v":""},{"$f":"IF(B37=\"\",\"\",IFERROR(IF(INDEX('Disagg.1A_import-export'!J$7:J$13,MATCH($A37,'Disagg.1A_import-export'!$B$7:$B$13,0))=\"\",\"\",INDEX('Disagg.1A_import-export'!J$7:J$13,MATCH($A37,'Disagg.1A_import-export'!$B$7:$B$13,0))),\"\"))","v":""},{"$f":"IF(B37=\"\",\"\",IFERROR(IF(INDEX('Disagg.1A_import-export'!K$7:K$13,MATCH($A37,'Disagg.1A_import-export'!$B$7:$B$13,0))=\"\",\"\",INDEX('Disagg.1A_import-export'!K$7:K$13,MATCH($A37,'Disagg.1A_import-export'!$B$7:$B$13,0))),\"\"))","v":""},{"$f":"IF(B37=\"\",\"\",IFERROR(IF(INDEX('Disagg.1A_import-export'!L$7:L$13,MATCH($A37,'Disagg.1A_import-export'!$B$7:$B$13,0))=\"\",\"\",INDEX('Disagg.1A_import-export'!L$7:L$13,MATCH($A37,'Disagg.1A_import-export'!$B$7:$B$13,0))),\"\"))","v":""},{"$f":"IF(B37=\"\",\"\",IFERROR(IF(INDEX('Disagg.1A_import-export'!M$7:M$13,MATCH($A37,'Disagg.1A_import-export'!$B$7:$B$13,0))=\"\",\"\",INDEX('Disagg.1A_import-export'!M$7:M$13,MATCH($A37,'Disagg.1A_import-export'!$B$7:$B$13,0))),\"\"))","v":""},{"$f":"IF(B37=\"\",\"\",IFERROR(IF(INDEX('Disagg.1A_import-export'!N$7:N$13,MATCH($A37,'Disagg.1A_import-export'!$B$7:$B$13,0))=\"\",\"\",INDEX('Disagg.1A_import-export'!N$7:N$13,MATCH($A37,'Disagg.1A_import-export'!$B$7:$B$13,0))),\"\"))","v":""},{"$f":"IF(B37=\"\",\"\",IFERROR(IF(INDEX('Disagg.1A_import-export'!AC$7:AC$13,MATCH($A37,'Disagg.1A_import-export'!$B$7:$B$13,0))=\"\",\"\",INDEX('Disagg.1A_import-export'!AC$7:AC$13,MATCH($A37,'Disagg.1A_import-export'!$B$7:$B$13,0))),\"\"))","v":""}]
[{"$f":"IFERROR(IF(INDEX(ImpactDisaglist,MATCH(0,INDEX(COUNTIF(A$10:A37,ImpactDisaglist),0,0),0))<>\"\",INDEX(ImpactDisaglist,MATCH(0,INDEX(COUNTIF(A$10:A37,ImpactDisaglist),0,0),0)),INDEX(OutcomeDisaglist,MATCH(0,INDEX(COUNTIF(A$10:A37,OutcomeDisaglist),0,0),0))),\"\")","v":""},{"$f":"IFERROR(INDEX('Disagg.1A_import-export'!D$7:D$200,MATCH($A38,'Disagg.1A_import-export'!$B$7:$B$200,0)),\"\")","v":""},{"$f":"IF(B38=\"\",\"\",IFERROR(INDEX('Disagg.1A_import-export'!E$7:E$13,MATCH($A38,'Disagg.1A_import-export'!$B$7:$B$13,0)),\"\"))","v":""},{"$f":"IF(B38=\"\",\"\",IFERROR(IF(INDEX('Disagg.1A_import-export'!I$7:I$13,MATCH($A38,'Disagg.1A_import-export'!$B$7:$B$13,0))=\"\",\"\",INDEX('Disagg.1A_import-export'!I$7:I$13,MATCH($A38,'Disagg.1A_import-export'!$B$7:$B$13,0))),\"\"))","v":""},{"$f":"IF(B38=\"\",\"\",IFERROR(IF(INDEX('Disagg.1A_import-export'!J$7:J$13,MATCH($A38,'Disagg.1A_import-export'!$B$7:$B$13,0))=\"\",\"\",INDEX('Disagg.1A_import-export'!J$7:J$13,MATCH($A38,'Disagg.1A_import-export'!$B$7:$B$13,0))),\"\"))","v":""},{"$f":"IF(B38=\"\",\"\",IFERROR(IF(INDEX('Disagg.1A_import-export'!K$7:K$13,MATCH($A38,'Disagg.1A_import-export'!$B$7:$B$13,0))=\"\",\"\",INDEX('Disagg.1A_import-export'!K$7:K$13,MATCH($A38,'Disagg.1A_import-export'!$B$7:$B$13,0))),\"\"))","v":""},{"$f":"IF(B38=\"\",\"\",IFERROR(IF(INDEX('Disagg.1A_import-export'!L$7:L$13,MATCH($A38,'Disagg.1A_import-export'!$B$7:$B$13,0))=\"\",\"\",INDEX('Disagg.1A_import-export'!L$7:L$13,MATCH($A38,'Disagg.1A_import-export'!$B$7:$B$13,0))),\"\"))","v":""},{"$f":"IF(B38=\"\",\"\",IFERROR(IF(INDEX('Disagg.1A_import-export'!M$7:M$13,MATCH($A38,'Disagg.1A_import-export'!$B$7:$B$13,0))=\"\",\"\",INDEX('Disagg.1A_import-export'!M$7:M$13,MATCH($A38,'Disagg.1A_import-export'!$B$7:$B$13,0))),\"\"))","v":""},{"$f":"IF(B38=\"\",\"\",IFERROR(IF(INDEX('Disagg.1A_import-export'!N$7:N$13,MATCH($A38,'Disagg.1A_import-export'!$B$7:$B$13,0))=\"\",\"\",INDEX('Disagg.1A_import-export'!N$7:N$13,MATCH($A38,'Disagg.1A_import-export'!$B$7:$B$13,0))),\"\"))","v":""},{"$f":"IF(B38=\"\",\"\",IFERROR(IF(INDEX('Disagg.1A_import-export'!AC$7:AC$13,MATCH($A38,'Disagg.1A_import-export'!$B$7:$B$13,0))=\"\",\"\",INDEX('Disagg.1A_import-export'!AC$7:AC$13,MATCH($A38,'Disagg.1A_import-export'!$B$7:$B$13,0))),\"\"))","v":""}]
[{"$f":"IFERROR(IF(INDEX(ImpactDisaglist,MATCH(0,INDEX(COUNTIF(A$10:A38,ImpactDisaglist),0,0),0))<>\"\",INDEX(ImpactDisaglist,MATCH(0,INDEX(COUNTIF(A$10:A38,ImpactDisaglist),0,0),0)),INDEX(OutcomeDisaglist,MATCH(0,INDEX(COUNTIF(A$10:A38,OutcomeDisaglist),0,0),0))),\"\")","v":""},{"$f":"IFERROR(INDEX('Disagg.1A_import-export'!D$7:D$200,MATCH($A39,'Disagg.1A_import-export'!$B$7:$B$200,0)),\"\")","v":""},{"$f":"IF(B39=\"\",\"\",IFERROR(INDEX('Disagg.1A_import-export'!E$7:E$13,MATCH($A39,'Disagg.1A_import-export'!$B$7:$B$13,0)),\"\"))","v":""},{"$f":"IF(B39=\"\",\"\",IFERROR(IF(INDEX('Disagg.1A_import-export'!I$7:I$13,MATCH($A39,'Disagg.1A_import-export'!$B$7:$B$13,0))=\"\",\"\",INDEX('Disagg.1A_import-export'!I$7:I$13,MATCH($A39,'Disagg.1A_import-export'!$B$7:$B$13,0))),\"\"))","v":""},{"$f":"IF(B39=\"\",\"\",IFERROR(IF(INDEX('Disagg.1A_import-export'!J$7:J$13,MATCH($A39,'Disagg.1A_import-export'!$B$7:$B$13,0))=\"\",\"\",INDEX('Disagg.1A_import-export'!J$7:J$13,MATCH($A39,'Disagg.1A_import-export'!$B$7:$B$13,0))),\"\"))","v":""},{"$f":"IF(B39=\"\",\"\",IFERROR(IF(INDEX('Disagg.1A_import-export'!K$7:K$13,MATCH($A39,'Disagg.1A_import-export'!$B$7:$B$13,0))=\"\",\"\",INDEX('Disagg.1A_import-export'!K$7:K$13,MATCH($A39,'Disagg.1A_import-export'!$B$7:$B$13,0))),\"\"))","v":""},{"$f":"IF(B39=\"\",\"\",IFERROR(IF(INDEX('Disagg.1A_import-export'!L$7:L$13,MATCH($A39,'Disagg.1A_import-export'!$B$7:$B$13,0))=\"\",\"\",INDEX('Disagg.1A_import-export'!L$7:L$13,MATCH($A39,'Disagg.1A_import-export'!$B$7:$B$13,0))),\"\"))","v":""},{"$f":"IF(B39=\"\",\"\",IFERROR(IF(INDEX('Disagg.1A_import-export'!M$7:M$13,MATCH($A39,'Disagg.1A_import-export'!$B$7:$B$13,0))=\"\",\"\",INDEX('Disagg.1A_import-export'!M$7:M$13,MATCH($A39,'Disagg.1A_import-export'!$B$7:$B$13,0))),\"\"))","v":""},{"$f":"IF(B39=\"\",\"\",IFERROR(IF(INDEX('Disagg.1A_import-export'!N$7:N$13,MATCH($A39,'Disagg.1A_import-export'!$B$7:$B$13,0))=\"\",\"\",INDEX('Disagg.1A_import-export'!N$7:N$13,MATCH($A39,'Disagg.1A_import-export'!$B$7:$B$13,0))),\"\"))","v":""},{"$f":"IF(B39=\"\",\"\",IFERROR(IF(INDEX('Disagg.1A_import-export'!AC$7:AC$13,MATCH($A39,'Disagg.1A_import-export'!$B$7:$B$13,0))=\"\",\"\",INDEX('Disagg.1A_import-export'!AC$7:AC$13,MATCH($A39,'Disagg.1A_import-export'!$B$7:$B$13,0))),\"\"))","v":""}]
[{"$f":"IFERROR(IF(INDEX(ImpactDisaglist,MATCH(0,INDEX(COUNTIF(A$10:A39,ImpactDisaglist),0,0),0))<>\"\",INDEX(ImpactDisaglist,MATCH(0,INDEX(COUNTIF(A$10:A39,ImpactDisaglist),0,0),0)),INDEX(OutcomeDisaglist,MATCH(0,INDEX(COUNTIF(A$10:A39,OutcomeDisaglist),0,0),0))),\"\")","v":""},{"$f":"IFERROR(INDEX('Disagg.1A_import-export'!D$7:D$200,MATCH($A40,'Disagg.1A_import-export'!$B$7:$B$200,0)),\"\")","v":""},{"$f":"IF(B40=\"\",\"\",IFERROR(INDEX('Disagg.1A_import-export'!E$7:E$13,MATCH($A40,'Disagg.1A_import-export'!$B$7:$B$13,0)),\"\"))","v":""},{"$f":"IF(B40=\"\",\"\",IFERROR(IF(INDEX('Disagg.1A_import-export'!I$7:I$13,MATCH($A40,'Disagg.1A_import-export'!$B$7:$B$13,0))=\"\",\"\",INDEX('Disagg.1A_import-export'!I$7:I$13,MATCH($A40,'Disagg.1A_import-export'!$B$7:$B$13,0))),\"\"))","v":""},{"$f":"IF(B40=\"\",\"\",IFERROR(IF(INDEX('Disagg.1A_import-export'!J$7:J$13,MATCH($A40,'Disagg.1A_import-export'!$B$7:$B$13,0))=\"\",\"\",INDEX('Disagg.1A_import-export'!J$7:J$13,MATCH($A40,'Disagg.1A_import-export'!$B$7:$B$13,0))),\"\"))","v":""},{"$f":"IF(B40=\"\",\"\",IFERROR(IF(INDEX('Disagg.1A_import-export'!K$7:K$13,MATCH($A40,'Disagg.1A_import-export'!$B$7:$B$13,0))=\"\",\"\",INDEX('Disagg.1A_import-export'!K$7:K$13,MATCH($A40,'Disagg.1A_import-export'!$B$7:$B$13,0))),\"\"))","v":""},{"$f":"IF(B40=\"\",\"\",IFERROR(IF(INDEX('Disagg.1A_import-export'!L$7:L$13,MATCH($A40,'Disagg.1A_import-export'!$B$7:$B$13,0))=\"\",\"\",INDEX('Disagg.1A_import-export'!L$7:L$13,MATCH($A40,'Disagg.1A_import-export'!$B$7:$B$13,0))),\"\"))","v":""},{"$f":"IF(B40=\"\",\"\",IFERROR(IF(INDEX('Disagg.1A_import-export'!M$7:M$13,MATCH($A40,'Disagg.1A_import-export'!$B$7:$B$13,0))=\"\",\"\",INDEX('Disagg.1A_import-export'!M$7:M$13,MATCH($A40,'Disagg.1A_import-export'!$B$7:$B$13,0))),\"\"))","v":""},{"$f":"IF(B40=\"\",\"\",IFERROR(IF(INDEX('Disagg.1A_import-export'!N$7:N$13,MATCH($A40,'Disagg.1A_import-export'!$B$7:$B$13,0))=\"\",\"\",INDEX('Disagg.1A_import-export'!N$7:N$13,MATCH($A40,'Disagg.1A_import-export'!$B$7:$B$13,0))),\"\"))","v":""},{"$f":"IF(B40=\"\",\"\",IFERROR(IF(INDEX('Disagg.1A_import-export'!AC$7:AC$13,MATCH($A40,'Disagg.1A_import-export'!$B$7:$B$13,0))=\"\",\"\",INDEX('Disagg.1A_import-export'!AC$7:AC$13,MATCH($A40,'Disagg.1A_import-export'!$B$7:$B$13,0))),\"\"))","v":""}]
[{"$f":"IFERROR(IF(INDEX(ImpactDisaglist,MATCH(0,INDEX(COUNTIF(A$10:A40,ImpactDisaglist),0,0),0))<>\"\",INDEX(ImpactDisaglist,MATCH(0,INDEX(COUNTIF(A$10:A40,ImpactDisaglist),0,0),0)),INDEX(OutcomeDisaglist,MATCH(0,INDEX(COUNTIF(A$10:A40,OutcomeDisaglist),0,0),0))),\"\")","v":""},{"$f":"IFERROR(INDEX('Disagg.1A_import-export'!D$7:D$200,MATCH($A41,'Disagg.1A_import-export'!$B$7:$B$200,0)),\"\")","v":""},{"$f":"IF(B41=\"\",\"\",IFERROR(INDEX('Disagg.1A_import-export'!E$7:E$13,MATCH($A41,'Disagg.1A_import-export'!$B$7:$B$13,0)),\"\"))","v":""},{"$f":"IF(B41=\"\",\"\",IFERROR(IF(INDEX('Disagg.1A_import-export'!I$7:I$13,MATCH($A41,'Disagg.1A_import-export'!$B$7:$B$13,0))=\"\",\"\",INDEX('Disagg.1A_import-export'!I$7:I$13,MATCH($A41,'Disagg.1A_import-export'!$B$7:$B$13,0))),\"\"))","v":""},{"$f":"IF(B41=\"\",\"\",IFERROR(IF(INDEX('Disagg.1A_import-export'!J$7:J$13,MATCH($A41,'Disagg.1A_import-export'!$B$7:$B$13,0))=\"\",\"\",INDEX('Disagg.1A_import-export'!J$7:J$13,MATCH($A41,'Disagg.1A_import-export'!$B$7:$B$13,0))),\"\"))","v":""},{"$f":"IF(B41=\"\",\"\",IFERROR(IF(INDEX('Disagg.1A_import-export'!K$7:K$13,MATCH($A41,'Disagg.1A_import-export'!$B$7:$B$13,0))=\"\",\"\",INDEX('Disagg.1A_import-export'!K$7:K$13,MATCH($A41,'Disagg.1A_import-export'!$B$7:$B$13,0))),\"\"))","v":""},{"$f":"IF(B41=\"\",\"\",IFERROR(IF(INDEX('Disagg.1A_import-export'!L$7:L$13,MATCH($A41,'Disagg.1A_import-export'!$B$7:$B$13,0))=\"\",\"\",INDEX('Disagg.1A_import-export'!L$7:L$13,MATCH($A41,'Disagg.1A_import-export'!$B$7:$B$13,0))),\"\"))","v":""},{"$f":"IF(B41=\"\",\"\",IFERROR(IF(INDEX('Disagg.1A_import-export'!M$7:M$13,MATCH($A41,'Disagg.1A_import-export'!$B$7:$B$13,0))=\"\",\"\",INDEX('Disagg.1A_import-export'!M$7:M$13,MATCH($A41,'Disagg.1A_import-export'!$B$7:$B$13,0))),\"\"))","v":""},{"$f":"IF(B41=\"\",\"\",IFERROR(IF(INDEX('Disagg.1A_import-export'!N$7:N$13,MATCH($A41,'Disagg.1A_import-export'!$B$7:$B$13,0))=\"\",\"\",INDEX('Disagg.1A_import-export'!N$7:N$13,MATCH($A41,'Disagg.1A_import-export'!$B$7:$B$13,0))),\"\"))","v":""},{"$f":"IF(B41=\"\",\"\",IFERROR(IF(INDEX('Disagg.1A_import-export'!AC$7:AC$13,MATCH($A41,'Disagg.1A_import-export'!$B$7:$B$13,0))=\"\",\"\",INDEX('Disagg.1A_import-export'!AC$7:AC$13,MATCH($A41,'Disagg.1A_import-export'!$B$7:$B$13,0))),\"\"))","v":""}]
[{"$f":"IFERROR(IF(INDEX(ImpactDisaglist,MATCH(0,INDEX(COUNTIF(A$10:A41,ImpactDisaglist),0,0),0))<>\"\",INDEX(ImpactDisaglist,MATCH(0,INDEX(COUNTIF(A$10:A41,ImpactDisaglist),0,0),0)),INDEX(OutcomeDisaglist,MATCH(0,INDEX(COUNTIF(A$10:A41,OutcomeDisaglist),0,0),0))),\"\")","v":""},{"$f":"IFERROR(INDEX('Disagg.1A_import-export'!D$7:D$200,MATCH($A42,'Disagg.1A_import-export'!$B$7:$B$200,0)),\"\")","v":""},{"$f":"IF(B42=\"\",\"\",IFERROR(INDEX('Disagg.1A_import-export'!E$7:E$13,MATCH($A42,'Disagg.1A_import-export'!$B$7:$B$13,0)),\"\"))","v":""},{"$f":"IF(B42=\"\",\"\",IFERROR(IF(INDEX('Disagg.1A_import-export'!I$7:I$13,MATCH($A42,'Disagg.1A_import-export'!$B$7:$B$13,0))=\"\",\"\",INDEX('Disagg.1A_import-export'!I$7:I$13,MATCH($A42,'Disagg.1A_import-export'!$B$7:$B$13,0))),\"\"))","v":""},{"$f":"IF(B42=\"\",\"\",IFERROR(IF(INDEX('Disagg.1A_import-export'!J$7:J$13,MATCH($A42,'Disagg.1A_import-export'!$B$7:$B$13,0))=\"\",\"\",INDEX('Disagg.1A_import-export'!J$7:J$13,MATCH($A42,'Disagg.1A_import-export'!$B$7:$B$13,0))),\"\"))","v":""},{"$f":"IF(B42=\"\",\"\",IFERROR(IF(INDEX('Disagg.1A_import-export'!K$7:K$13,MATCH($A42,'Disagg.1A_import-export'!$B$7:$B$13,0))=\"\",\"\",INDEX('Disagg.1A_import-export'!K$7:K$13,MATCH($A42,'Disagg.1A_import-export'!$B$7:$B$13,0))),\"\"))","v":""},{"$f":"IF(B42=\"\",\"\",IFERROR(IF(INDEX('Disagg.1A_import-export'!L$7:L$13,MATCH($A42,'Disagg.1A_import-export'!$B$7:$B$13,0))=\"\",\"\",INDEX('Disagg.1A_import-export'!L$7:L$13,MATCH($A42,'Disagg.1A_import-export'!$B$7:$B$13,0))),\"\"))","v":""},{"$f":"IF(B42=\"\",\"\",IFERROR(IF(INDEX('Disagg.1A_import-export'!M$7:M$13,MATCH($A42,'Disagg.1A_import-export'!$B$7:$B$13,0))=\"\",\"\",INDEX('Disagg.1A_import-export'!M$7:M$13,MATCH($A42,'Disagg.1A_import-export'!$B$7:$B$13,0))),\"\"))","v":""},{"$f":"IF(B42=\"\",\"\",IFERROR(IF(INDEX('Disagg.1A_import-export'!N$7:N$13,MATCH($A42,'Disagg.1A_import-export'!$B$7:$B$13,0))=\"\",\"\",INDEX('Disagg.1A_import-export'!N$7:N$13,MATCH($A42,'Disagg.1A_import-export'!$B$7:$B$13,0))),\"\"))","v":""},{"$f":"IF(B42=\"\",\"\",IFERROR(IF(INDEX('Disagg.1A_import-export'!AC$7:AC$13,MATCH($A42,'Disagg.1A_import-export'!$B$7:$B$13,0))=\"\",\"\",INDEX('Disagg.1A_import-export'!AC$7:AC$13,MATCH($A42,'Disagg.1A_import-export'!$B$7:$B$13,0))),\"\"))","v":""}]
[{"$f":"IFERROR(IF(INDEX(ImpactDisaglist,MATCH(0,INDEX(COUNTIF(A$10:A42,ImpactDisaglist),0,0),0))<>\"\",INDEX(ImpactDisaglist,MATCH(0,INDEX(COUNTIF(A$10:A42,ImpactDisaglist),0,0),0)),INDEX(OutcomeDisaglist,MATCH(0,INDEX(COUNTIF(A$10:A42,OutcomeDisaglist),0,0),0))),\"\")","v":""},{"$f":"IFERROR(INDEX('Disagg.1A_import-export'!D$7:D$200,MATCH($A43,'Disagg.1A_import-export'!$B$7:$B$200,0)),\"\")","v":""},{"$f":"IF(B43=\"\",\"\",IFERROR(INDEX('Disagg.1A_import-export'!E$7:E$13,MATCH($A43,'Disagg.1A_import-export'!$B$7:$B$13,0)),\"\"))","v":""},{"$f":"IF(B43=\"\",\"\",IFERROR(IF(INDEX('Disagg.1A_import-export'!I$7:I$13,MATCH($A43,'Disagg.1A_import-export'!$B$7:$B$13,0))=\"\",\"\",INDEX('Disagg.1A_import-export'!I$7:I$13,MATCH($A43,'Disagg.1A_import-export'!$B$7:$B$13,0))),\"\"))","v":""},{"$f":"IF(B43=\"\",\"\",IFERROR(IF(INDEX('Disagg.1A_import-export'!J$7:J$13,MATCH($A43,'Disagg.1A_import-export'!$B$7:$B$13,0))=\"\",\"\",INDEX('Disagg.1A_import-export'!J$7:J$13,MATCH($A43,'Disagg.1A_import-export'!$B$7:$B$13,0))),\"\"))","v":""},{"$f":"IF(B43=\"\",\"\",IFERROR(IF(INDEX('Disagg.1A_import-export'!K$7:K$13,MATCH($A43,'Disagg.1A_import-export'!$B$7:$B$13,0))=\"\",\"\",INDEX('Disagg.1A_import-export'!K$7:K$13,MATCH($A43,'Disagg.1A_import-export'!$B$7:$B$13,0))),\"\"))","v":""},{"$f":"IF(B43=\"\",\"\",IFERROR(IF(INDEX('Disagg.1A_import-export'!L$7:L$13,MATCH($A43,'Disagg.1A_import-export'!$B$7:$B$13,0))=\"\",\"\",INDEX('Disagg.1A_import-export'!L$7:L$13,MATCH($A43,'Disagg.1A_import-export'!$B$7:$B$13,0))),\"\"))","v":""},{"$f":"IF(B43=\"\",\"\",IFERROR(IF(INDEX('Disagg.1A_import-export'!M$7:M$13,MATCH($A43,'Disagg.1A_import-export'!$B$7:$B$13,0))=\"\",\"\",INDEX('Disagg.1A_import-export'!M$7:M$13,MATCH($A43,'Disagg.1A_import-export'!$B$7:$B$13,0))),\"\"))","v":""},{"$f":"IF(B43=\"\",\"\",IFERROR(IF(INDEX('Disagg.1A_import-export'!N$7:N$13,MATCH($A43,'Disagg.1A_import-export'!$B$7:$B$13,0))=\"\",\"\",INDEX('Disagg.1A_import-export'!N$7:N$13,MATCH($A43,'Disagg.1A_import-export'!$B$7:$B$13,0))),\"\"))","v":""},{"$f":"IF(B43=\"\",\"\",IFERROR(IF(INDEX('Disagg.1A_import-export'!AC$7:AC$13,MATCH($A43,'Disagg.1A_import-export'!$B$7:$B$13,0))=\"\",\"\",INDEX('Disagg.1A_import-export'!AC$7:AC$13,MATCH($A43,'Disagg.1A_import-export'!$B$7:$B$13,0))),\"\"))","v":""}]
[{"$f":"IFERROR(IF(INDEX(ImpactDisaglist,MATCH(0,INDEX(COUNTIF(A$10:A43,ImpactDisaglist),0,0),0))<>\"\",INDEX(ImpactDisaglist,MATCH(0,INDEX(COUNTIF(A$10:A43,ImpactDisaglist),0,0),0)),INDEX(OutcomeDisaglist,MATCH(0,INDEX(COUNTIF(A$10:A43,OutcomeDisaglist),0,0),0))),\"\")","v":""},{"$f":"IFERROR(INDEX('Disagg.1A_import-export'!D$7:D$200,MATCH($A44,'Disagg.1A_import-export'!$B$7:$B$200,0)),\"\")","v":""},{"$f":"IF(B44=\"\",\"\",IFERROR(INDEX('Disagg.1A_import-export'!E$7:E$13,MATCH($A44,'Disagg.1A_import-export'!$B$7:$B$13,0)),\"\"))","v":""},{"$f":"IF(B44=\"\",\"\",IFERROR(IF(INDEX('Disagg.1A_import-export'!I$7:I$13,MATCH($A44,'Disagg.1A_import-export'!$B$7:$B$13,0))=\"\",\"\",INDEX('Disagg.1A_import-export'!I$7:I$13,MATCH($A44,'Disagg.1A_import-export'!$B$7:$B$13,0))),\"\"))","v":""},{"$f":"IF(B44=\"\",\"\",IFERROR(IF(INDEX('Disagg.1A_import-export'!J$7:J$13,MATCH($A44,'Disagg.1A_import-export'!$B$7:$B$13,0))=\"\",\"\",INDEX('Disagg.1A_import-export'!J$7:J$13,MATCH($A44,'Disagg.1A_import-export'!$B$7:$B$13,0))),\"\"))","v":""},{"$f":"IF(B44=\"\",\"\",IFERROR(IF(INDEX('Disagg.1A_import-export'!K$7:K$13,MATCH($A44,'Disagg.1A_import-export'!$B$7:$B$13,0))=\"\",\"\",INDEX('Disagg.1A_import-export'!K$7:K$13,MATCH($A44,'Disagg.1A_import-export'!$B$7:$B$13,0))),\"\"))","v":""},{"$f":"IF(B44=\"\",\"\",IFERROR(IF(INDEX('Disagg.1A_import-export'!L$7:L$13,MATCH($A44,'Disagg.1A_import-export'!$B$7:$B$13,0))=\"\",\"\",INDEX('Disagg.1A_import-export'!L$7:L$13,MATCH($A44,'Disagg.1A_import-export'!$B$7:$B$13,0))),\"\"))","v":""},{"$f":"IF(B44=\"\",\"\",IFERROR(IF(INDEX('Disagg.1A_import-export'!M$7:M$13,MATCH($A44,'Disagg.1A_import-export'!$B$7:$B$13,0))=\"\",\"\",INDEX('Disagg.1A_import-export'!M$7:M$13,MATCH($A44,'Disagg.1A_import-export'!$B$7:$B$13,0))),\"\"))","v":""},{"$f":"IF(B44=\"\",\"\",IFERROR(IF(INDEX('Disagg.1A_import-export'!N$7:N$13,MATCH($A44,'Disagg.1A_import-export'!$B$7:$B$13,0))=\"\",\"\",INDEX('Disagg.1A_import-export'!N$7:N$13,MATCH($A44,'Disagg.1A_import-export'!$B$7:$B$13,0))),\"\"))","v":""},{"$f":"IF(B44=\"\",\"\",IFERROR(IF(INDEX('Disagg.1A_import-export'!AC$7:AC$13,MATCH($A44,'Disagg.1A_import-export'!$B$7:$B$13,0))=\"\",\"\",INDEX('Disagg.1A_import-export'!AC$7:AC$13,MATCH($A44,'Disagg.1A_import-export'!$B$7:$B$13,0))),\"\"))","v":""}]
[{"$f":"IFERROR(IF(INDEX(ImpactDisaglist,MATCH(0,INDEX(COUNTIF(A$10:A44,ImpactDisaglist),0,0),0))<>\"\",INDEX(ImpactDisaglist,MATCH(0,INDEX(COUNTIF(A$10:A44,ImpactDisaglist),0,0),0)),INDEX(OutcomeDisaglist,MATCH(0,INDEX(COUNTIF(A$10:A44,OutcomeDisaglist),0,0),0))),\"\")","v":""},{"$f":"IFERROR(INDEX('Disagg.1A_import-export'!D$7:D$200,MATCH($A45,'Disagg.1A_import-export'!$B$7:$B$200,0)),\"\")","v":""},{"$f":"IF(B45=\"\",\"\",IFERROR(INDEX('Disagg.1A_import-export'!E$7:E$13,MATCH($A45,'Disagg.1A_import-export'!$B$7:$B$13,0)),\"\"))","v":""},{"$f":"IF(B45=\"\",\"\",IFERROR(IF(INDEX('Disagg.1A_import-export'!I$7:I$13,MATCH($A45,'Disagg.1A_import-export'!$B$7:$B$13,0))=\"\",\"\",INDEX('Disagg.1A_import-export'!I$7:I$13,MATCH($A45,'Disagg.1A_import-export'!$B$7:$B$13,0))),\"\"))","v":""},{"$f":"IF(B45=\"\",\"\",IFERROR(IF(INDEX('Disagg.1A_import-export'!J$7:J$13,MATCH($A45,'Disagg.1A_import-export'!$B$7:$B$13,0))=\"\",\"\",INDEX('Disagg.1A_import-export'!J$7:J$13,MATCH($A45,'Disagg.1A_import-export'!$B$7:$B$13,0))),\"\"))","v":""},{"$f":"IF(B45=\"\",\"\",IFERROR(IF(INDEX('Disagg.1A_import-export'!K$7:K$13,MATCH($A45,'Disagg.1A_import-export'!$B$7:$B$13,0))=\"\",\"\",INDEX('Disagg.1A_import-export'!K$7:K$13,MATCH($A45,'Disagg.1A_import-export'!$B$7:$B$13,0))),\"\"))","v":""},{"$f":"IF(B45=\"\",\"\",IFERROR(IF(INDEX('Disagg.1A_import-export'!L$7:L$13,MATCH($A45,'Disagg.1A_import-export'!$B$7:$B$13,0))=\"\",\"\",INDEX('Disagg.1A_import-export'!L$7:L$13,MATCH($A45,'Disagg.1A_import-export'!$B$7:$B$13,0))),\"\"))","v":""},{"$f":"IF(B45=\"\",\"\",IFERROR(IF(INDEX('Disagg.1A_import-export'!M$7:M$13,MATCH($A45,'Disagg.1A_import-export'!$B$7:$B$13,0))=\"\",\"\",INDEX('Disagg.1A_import-export'!M$7:M$13,MATCH($A45,'Disagg.1A_import-export'!$B$7:$B$13,0))),\"\"))","v":""},{"$f":"IF(B45=\"\",\"\",IFERROR(IF(INDEX('Disagg.1A_import-export'!N$7:N$13,MATCH($A45,'Disagg.1A_import-export'!$B$7:$B$13,0))=\"\",\"\",INDEX('Disagg.1A_import-export'!N$7:N$13,MATCH($A45,'Disagg.1A_import-export'!$B$7:$B$13,0))),\"\"))","v":""},{"$f":"IF(B45=\"\",\"\",IFERROR(IF(INDEX('Disagg.1A_import-export'!AC$7:AC$13,MATCH($A45,'Disagg.1A_import-export'!$B$7:$B$13,0))=\"\",\"\",INDEX('Disagg.1A_import-export'!AC$7:AC$13,MATCH($A45,'Disagg.1A_import-export'!$B$7:$B$13,0))),\"\"))","v":""}]
[{"$f":"IFERROR(IF(INDEX(ImpactDisaglist,MATCH(0,INDEX(COUNTIF(A$10:A45,ImpactDisaglist),0,0),0))<>\"\",INDEX(ImpactDisaglist,MATCH(0,INDEX(COUNTIF(A$10:A45,ImpactDisaglist),0,0),0)),INDEX(OutcomeDisaglist,MATCH(0,INDEX(COUNTIF(A$10:A45,OutcomeDisaglist),0,0),0))),\"\")","v":""},{"$f":"IFERROR(INDEX('Disagg.1A_import-export'!D$7:D$200,MATCH($A46,'Disagg.1A_import-export'!$B$7:$B$200,0)),\"\")","v":""},{"$f":"IF(B46=\"\",\"\",IFERROR(INDEX('Disagg.1A_import-export'!E$7:E$13,MATCH($A46,'Disagg.1A_import-export'!$B$7:$B$13,0)),\"\"))","v":""},{"$f":"IF(B46=\"\",\"\",IFERROR(IF(INDEX('Disagg.1A_import-export'!I$7:I$13,MATCH($A46,'Disagg.1A_import-export'!$B$7:$B$13,0))=\"\",\"\",INDEX('Disagg.1A_import-export'!I$7:I$13,MATCH($A46,'Disagg.1A_import-export'!$B$7:$B$13,0))),\"\"))","v":""},{"$f":"IF(B46=\"\",\"\",IFERROR(IF(INDEX('Disagg.1A_import-export'!J$7:J$13,MATCH($A46,'Disagg.1A_import-export'!$B$7:$B$13,0))=\"\",\"\",INDEX('Disagg.1A_import-export'!J$7:J$13,MATCH($A46,'Disagg.1A_import-export'!$B$7:$B$13,0))),\"\"))","v":""},{"$f":"IF(B46=\"\",\"\",IFERROR(IF(INDEX('Disagg.1A_import-export'!K$7:K$13,MATCH($A46,'Disagg.1A_import-export'!$B$7:$B$13,0))=\"\",\"\",INDEX('Disagg.1A_import-export'!K$7:K$13,MATCH($A46,'Disagg.1A_import-export'!$B$7:$B$13,0))),\"\"))","v":""},{"$f":"IF(B46=\"\",\"\",IFERROR(IF(INDEX('Disagg.1A_import-export'!L$7:L$13,MATCH($A46,'Disagg.1A_import-export'!$B$7:$B$13,0))=\"\",\"\",INDEX('Disagg.1A_import-export'!L$7:L$13,MATCH($A46,'Disagg.1A_import-export'!$B$7:$B$13,0))),\"\"))","v":""},{"$f":"IF(B46=\"\",\"\",IFERROR(IF(INDEX('Disagg.1A_import-export'!M$7:M$13,MATCH($A46,'Disagg.1A_import-export'!$B$7:$B$13,0))=\"\",\"\",INDEX('Disagg.1A_import-export'!M$7:M$13,MATCH($A46,'Disagg.1A_import-export'!$B$7:$B$13,0))),\"\"))","v":""},{"$f":"IF(B46=\"\",\"\",IFERROR(IF(INDEX('Disagg.1A_import-export'!N$7:N$13,MATCH($A46,'Disagg.1A_import-export'!$B$7:$B$13,0))=\"\",\"\",INDEX('Disagg.1A_import-export'!N$7:N$13,MATCH($A46,'Disagg.1A_import-export'!$B$7:$B$13,0))),\"\"))","v":""},{"$f":"IF(B46=\"\",\"\",IFERROR(IF(INDEX('Disagg.1A_import-export'!AC$7:AC$13,MATCH($A46,'Disagg.1A_import-export'!$B$7:$B$13,0))=\"\",\"\",INDEX('Disagg.1A_import-export'!AC$7:AC$13,MATCH($A46,'Disagg.1A_import-export'!$B$7:$B$13,0))),\"\"))","v":""}]
[{"$f":"IFERROR(IF(INDEX(ImpactDisaglist,MATCH(0,INDEX(COUNTIF(A$10:A46,ImpactDisaglist),0,0),0))<>\"\",INDEX(ImpactDisaglist,MATCH(0,INDEX(COUNTIF(A$10:A46,ImpactDisaglist),0,0),0)),INDEX(OutcomeDisaglist,MATCH(0,INDEX(COUNTIF(A$10:A46,OutcomeDisaglist),0,0),0))),\"\")","v":""},{"$f":"IFERROR(INDEX('Disagg.1A_import-export'!D$7:D$200,MATCH($A47,'Disagg.1A_import-export'!$B$7:$B$200,0)),\"\")","v":""},{"$f":"IF(B47=\"\",\"\",IFERROR(INDEX('Disagg.1A_import-export'!E$7:E$13,MATCH($A47,'Disagg.1A_import-export'!$B$7:$B$13,0)),\"\"))","v":""},{"$f":"IF(B47=\"\",\"\",IFERROR(IF(INDEX('Disagg.1A_import-export'!I$7:I$13,MATCH($A47,'Disagg.1A_import-export'!$B$7:$B$13,0))=\"\",\"\",INDEX('Disagg.1A_import-export'!I$7:I$13,MATCH($A47,'Disagg.1A_import-export'!$B$7:$B$13,0))),\"\"))","v":""},{"$f":"IF(B47=\"\",\"\",IFERROR(IF(INDEX('Disagg.1A_import-export'!J$7:J$13,MATCH($A47,'Disagg.1A_import-export'!$B$7:$B$13,0))=\"\",\"\",INDEX('Disagg.1A_import-export'!J$7:J$13,MATCH($A47,'Disagg.1A_import-export'!$B$7:$B$13,0))),\"\"))","v":""},{"$f":"IF(B47=\"\",\"\",IFERROR(IF(INDEX('Disagg.1A_import-export'!K$7:K$13,MATCH($A47,'Disagg.1A_import-export'!$B$7:$B$13,0))=\"\",\"\",INDEX('Disagg.1A_import-export'!K$7:K$13,MATCH($A47,'Disagg.1A_import-export'!$B$7:$B$13,0))),\"\"))","v":""},{"$f":"IF(B47=\"\",\"\",IFERROR(IF(INDEX('Disagg.1A_import-export'!L$7:L$13,MATCH($A47,'Disagg.1A_import-export'!$B$7:$B$13,0))=\"\",\"\",INDEX('Disagg.1A_import-export'!L$7:L$13,MATCH($A47,'Disagg.1A_import-export'!$B$7:$B$13,0))),\"\"))","v":""},{"$f":"IF(B47=\"\",\"\",IFERROR(IF(INDEX('Disagg.1A_import-export'!M$7:M$13,MATCH($A47,'Disagg.1A_import-export'!$B$7:$B$13,0))=\"\",\"\",INDEX('Disagg.1A_import-export'!M$7:M$13,MATCH($A47,'Disagg.1A_import-export'!$B$7:$B$13,0))),\"\"))","v":""},{"$f":"IF(B47=\"\",\"\",IFERROR(IF(INDEX('Disagg.1A_import-export'!N$7:N$13,MATCH($A47,'Disagg.1A_import-export'!$B$7:$B$13,0))=\"\",\"\",INDEX('Disagg.1A_import-export'!N$7:N$13,MATCH($A47,'Disagg.1A_import-export'!$B$7:$B$13,0))),\"\"))","v":""},{"$f":"IF(B47=\"\",\"\",IFERROR(IF(INDEX('Disagg.1A_import-export'!AC$7:AC$13,MATCH($A47,'Disagg.1A_import-export'!$B$7:$B$13,0))=\"\",\"\",INDEX('Disagg.1A_import-export'!AC$7:AC$13,MATCH($A47,'Disagg.1A_import-export'!$B$7:$B$13,0))),\"\"))","v":""}]
[{"$f":"IFERROR(IF(INDEX(ImpactDisaglist,MATCH(0,INDEX(COUNTIF(A$10:A47,ImpactDisaglist),0,0),0))<>\"\",INDEX(ImpactDisaglist,MATCH(0,INDEX(COUNTIF(A$10:A47,ImpactDisaglist),0,0),0)),INDEX(OutcomeDisaglist,MATCH(0,INDEX(COUNTIF(A$10:A47,OutcomeDisaglist),0,0),0))),\"\")","v":""},{"$f":"IFERROR(INDEX('Disagg.1A_import-export'!D$7:D$200,MATCH($A48,'Disagg.1A_import-export'!$B$7:$B$200,0)),\"\")","v":""},{"$f":"IF(B48=\"\",\"\",IFERROR(INDEX('Disagg.1A_import-export'!E$7:E$13,MATCH($A48,'Disagg.1A_import-export'!$B$7:$B$13,0)),\"\"))","v":""},{"$f":"IF(B48=\"\",\"\",IFERROR(IF(INDEX('Disagg.1A_import-export'!I$7:I$13,MATCH($A48,'Disagg.1A_import-export'!$B$7:$B$13,0))=\"\",\"\",INDEX('Disagg.1A_import-export'!I$7:I$13,MATCH($A48,'Disagg.1A_import-export'!$B$7:$B$13,0))),\"\"))","v":""},{"$f":"IF(B48=\"\",\"\",IFERROR(IF(INDEX('Disagg.1A_import-export'!J$7:J$13,MATCH($A48,'Disagg.1A_import-export'!$B$7:$B$13,0))=\"\",\"\",INDEX('Disagg.1A_import-export'!J$7:J$13,MATCH($A48,'Disagg.1A_import-export'!$B$7:$B$13,0))),\"\"))","v":""},{"$f":"IF(B48=\"\",\"\",IFERROR(IF(INDEX('Disagg.1A_import-export'!K$7:K$13,MATCH($A48,'Disagg.1A_import-export'!$B$7:$B$13,0))=\"\",\"\",INDEX('Disagg.1A_import-export'!K$7:K$13,MATCH($A48,'Disagg.1A_import-export'!$B$7:$B$13,0))),\"\"))","v":""},{"$f":"IF(B48=\"\",\"\",IFERROR(IF(INDEX('Disagg.1A_import-export'!L$7:L$13,MATCH($A48,'Disagg.1A_import-export'!$B$7:$B$13,0))=\"\",\"\",INDEX('Disagg.1A_import-export'!L$7:L$13,MATCH($A48,'Disagg.1A_import-export'!$B$7:$B$13,0))),\"\"))","v":""},{"$f":"IF(B48=\"\",\"\",IFERROR(IF(INDEX('Disagg.1A_import-export'!M$7:M$13,MATCH($A48,'Disagg.1A_import-export'!$B$7:$B$13,0))=\"\",\"\",INDEX('Disagg.1A_import-export'!M$7:M$13,MATCH($A48,'Disagg.1A_import-export'!$B$7:$B$13,0))),\"\"))","v":""},{"$f":"IF(B48=\"\",\"\",IFERROR(IF(INDEX('Disagg.1A_import-export'!N$7:N$13,MATCH($A48,'Disagg.1A_import-export'!$B$7:$B$13,0))=\"\",\"\",INDEX('Disagg.1A_import-export'!N$7:N$13,MATCH($A48,'Disagg.1A_import-export'!$B$7:$B$13,0))),\"\"))","v":""},{"$f":"IF(B48=\"\",\"\",IFERROR(IF(INDEX('Disagg.1A_import-export'!AC$7:AC$13,MATCH($A48,'Disagg.1A_import-export'!$B$7:$B$13,0))=\"\",\"\",INDEX('Disagg.1A_import-export'!AC$7:AC$13,MATCH($A48,'Disagg.1A_import-export'!$B$7:$B$13,0))),\"\"))","v":""}]
[{"$f":"IFERROR(IF(INDEX(ImpactDisaglist,MATCH(0,INDEX(COUNTIF(A$10:A48,ImpactDisaglist),0,0),0))<>\"\",INDEX(ImpactDisaglist,MATCH(0,INDEX(COUNTIF(A$10:A48,ImpactDisaglist),0,0),0)),INDEX(OutcomeDisaglist,MATCH(0,INDEX(COUNTIF(A$10:A48,OutcomeDisaglist),0,0),0))),\"\")","v":""},{"$f":"IFERROR(INDEX('Disagg.1A_import-export'!D$7:D$200,MATCH($A49,'Disagg.1A_import-export'!$B$7:$B$200,0)),\"\")","v":""},{"$f":"IF(B49=\"\",\"\",IFERROR(INDEX('Disagg.1A_import-export'!E$7:E$13,MATCH($A49,'Disagg.1A_import-export'!$B$7:$B$13,0)),\"\"))","v":""},{"$f":"IF(B49=\"\",\"\",IFERROR(IF(INDEX('Disagg.1A_import-export'!I$7:I$13,MATCH($A49,'Disagg.1A_import-export'!$B$7:$B$13,0))=\"\",\"\",INDEX('Disagg.1A_import-export'!I$7:I$13,MATCH($A49,'Disagg.1A_import-export'!$B$7:$B$13,0))),\"\"))","v":""},{"$f":"IF(B49=\"\",\"\",IFERROR(IF(INDEX('Disagg.1A_import-export'!J$7:J$13,MATCH($A49,'Disagg.1A_import-export'!$B$7:$B$13,0))=\"\",\"\",INDEX('Disagg.1A_import-export'!J$7:J$13,MATCH($A49,'Disagg.1A_import-export'!$B$7:$B$13,0))),\"\"))","v":""},{"$f":"IF(B49=\"\",\"\",IFERROR(IF(INDEX('Disagg.1A_import-export'!K$7:K$13,MATCH($A49,'Disagg.1A_import-export'!$B$7:$B$13,0))=\"\",\"\",INDEX('Disagg.1A_import-export'!K$7:K$13,MATCH($A49,'Disagg.1A_import-export'!$B$7:$B$13,0))),\"\"))","v":""},{"$f":"IF(B49=\"\",\"\",IFERROR(IF(INDEX('Disagg.1A_import-export'!L$7:L$13,MATCH($A49,'Disagg.1A_import-export'!$B$7:$B$13,0))=\"\",\"\",INDEX('Disagg.1A_import-export'!L$7:L$13,MATCH($A49,'Disagg.1A_import-export'!$B$7:$B$13,0))),\"\"))","v":""},{"$f":"IF(B49=\"\",\"\",IFERROR(IF(INDEX('Disagg.1A_import-export'!M$7:M$13,MATCH($A49,'Disagg.1A_import-export'!$B$7:$B$13,0))=\"\",\"\",INDEX('Disagg.1A_import-export'!M$7:M$13,MATCH($A49,'Disagg.1A_import-export'!$B$7:$B$13,0))),\"\"))","v":""},{"$f":"IF(B49=\"\",\"\",IFERROR(IF(INDEX('Disagg.1A_import-export'!N$7:N$13,MATCH($A49,'Disagg.1A_import-export'!$B$7:$B$13,0))=\"\",\"\",INDEX('Disagg.1A_import-export'!N$7:N$13,MATCH($A49,'Disagg.1A_import-export'!$B$7:$B$13,0))),\"\"))","v":""},{"$f":"IF(B49=\"\",\"\",IFERROR(IF(INDEX('Disagg.1A_import-export'!AC$7:AC$13,MATCH($A49,'Disagg.1A_import-export'!$B$7:$B$13,0))=\"\",\"\",INDEX('Disagg.1A_import-export'!AC$7:AC$13,MATCH($A49,'Disagg.1A_import-export'!$B$7:$B$13,0))),\"\"))","v":""}]
[{"$f":"IFERROR(IF(INDEX(ImpactDisaglist,MATCH(0,INDEX(COUNTIF(A$10:A49,ImpactDisaglist),0,0),0))<>\"\",INDEX(ImpactDisaglist,MATCH(0,INDEX(COUNTIF(A$10:A49,ImpactDisaglist),0,0),0)),INDEX(OutcomeDisaglist,MATCH(0,INDEX(COUNTIF(A$10:A49,OutcomeDisaglist),0,0),0))),\"\")","v":""},{"$f":"IFERROR(INDEX('Disagg.1A_import-export'!D$7:D$200,MATCH($A50,'Disagg.1A_import-export'!$B$7:$B$200,0)),\"\")","v":""},{"$f":"IF(B50=\"\",\"\",IFERROR(INDEX('Disagg.1A_import-export'!E$7:E$13,MATCH($A50,'Disagg.1A_import-export'!$B$7:$B$13,0)),\"\"))","v":""},{"$f":"IF(B50=\"\",\"\",IFERROR(IF(INDEX('Disagg.1A_import-export'!I$7:I$13,MATCH($A50,'Disagg.1A_import-export'!$B$7:$B$13,0))=\"\",\"\",INDEX('Disagg.1A_import-export'!I$7:I$13,MATCH($A50,'Disagg.1A_import-export'!$B$7:$B$13,0))),\"\"))","v":""},{"$f":"IF(B50=\"\",\"\",IFERROR(IF(INDEX('Disagg.1A_import-export'!J$7:J$13,MATCH($A50,'Disagg.1A_import-export'!$B$7:$B$13,0))=\"\",\"\",INDEX('Disagg.1A_import-export'!J$7:J$13,MATCH($A50,'Disagg.1A_import-export'!$B$7:$B$13,0))),\"\"))","v":""},{"$f":"IF(B50=\"\",\"\",IFERROR(IF(INDEX('Disagg.1A_import-export'!K$7:K$13,MATCH($A50,'Disagg.1A_import-export'!$B$7:$B$13,0))=\"\",\"\",INDEX('Disagg.1A_import-export'!K$7:K$13,MATCH($A50,'Disagg.1A_import-export'!$B$7:$B$13,0))),\"\"))","v":""},{"$f":"IF(B50=\"\",\"\",IFERROR(IF(INDEX('Disagg.1A_import-export'!L$7:L$13,MATCH($A50,'Disagg.1A_import-export'!$B$7:$B$13,0))=\"\",\"\",INDEX('Disagg.1A_import-export'!L$7:L$13,MATCH($A50,'Disagg.1A_import-export'!$B$7:$B$13,0))),\"\"))","v":""},{"$f":"IF(B50=\"\",\"\",IFERROR(IF(INDEX('Disagg.1A_import-export'!M$7:M$13,MATCH($A50,'Disagg.1A_import-export'!$B$7:$B$13,0))=\"\",\"\",INDEX('Disagg.1A_import-export'!M$7:M$13,MATCH($A50,'Disagg.1A_import-export'!$B$7:$B$13,0))),\"\"))","v":""},{"$f":"IF(B50=\"\",\"\",IFERROR(IF(INDEX('Disagg.1A_import-export'!N$7:N$13,MATCH($A50,'Disagg.1A_import-export'!$B$7:$B$13,0))=\"\",\"\",INDEX('Disagg.1A_import-export'!N$7:N$13,MATCH($A50,'Disagg.1A_import-export'!$B$7:$B$13,0))),\"\"))","v":""},{"$f":"IF(B50=\"\",\"\",IFERROR(IF(INDEX('Disagg.1A_import-export'!AC$7:AC$13,MATCH($A50,'Disagg.1A_import-export'!$B$7:$B$13,0))=\"\",\"\",INDEX('Disagg.1A_import-export'!AC$7:AC$13,MATCH($A50,'Disagg.1A_import-export'!$B$7:$B$13,0))),\"\"))","v":""}]
[{"$f":"IFERROR(IF(INDEX(ImpactDisaglist,MATCH(0,INDEX(COUNTIF(A$10:A50,ImpactDisaglist),0,0),0))<>\"\",INDEX(ImpactDisaglist,MATCH(0,INDEX(COUNTIF(A$10:A50,ImpactDisaglist),0,0),0)),INDEX(OutcomeDisaglist,MATCH(0,INDEX(COUNTIF(A$10:A50,OutcomeDisaglist),0,0),0))),\"\")","v":""},{"$f":"IFERROR(INDEX('Disagg.1A_import-export'!D$7:D$200,MATCH($A51,'Disagg.1A_import-export'!$B$7:$B$200,0)),\"\")","v":""},{"$f":"IF(B51=\"\",\"\",IFERROR(INDEX('Disagg.1A_import-export'!E$7:E$13,MATCH($A51,'Disagg.1A_import-export'!$B$7:$B$13,0)),\"\"))","v":""},{"$f":"IF(B51=\"\",\"\",IFERROR(IF(INDEX('Disagg.1A_import-export'!I$7:I$13,MATCH($A51,'Disagg.1A_import-export'!$B$7:$B$13,0))=\"\",\"\",INDEX('Disagg.1A_import-export'!I$7:I$13,MATCH($A51,'Disagg.1A_import-export'!$B$7:$B$13,0))),\"\"))","v":""},{"$f":"IF(B51=\"\",\"\",IFERROR(IF(INDEX('Disagg.1A_import-export'!J$7:J$13,MATCH($A51,'Disagg.1A_import-export'!$B$7:$B$13,0))=\"\",\"\",INDEX('Disagg.1A_import-export'!J$7:J$13,MATCH($A51,'Disagg.1A_import-export'!$B$7:$B$13,0))),\"\"))","v":""},{"$f":"IF(B51=\"\",\"\",IFERROR(IF(INDEX('Disagg.1A_import-export'!K$7:K$13,MATCH($A51,'Disagg.1A_import-export'!$B$7:$B$13,0))=\"\",\"\",INDEX('Disagg.1A_import-export'!K$7:K$13,MATCH($A51,'Disagg.1A_import-export'!$B$7:$B$13,0))),\"\"))","v":""},{"$f":"IF(B51=\"\",\"\",IFERROR(IF(INDEX('Disagg.1A_import-export'!L$7:L$13,MATCH($A51,'Disagg.1A_import-export'!$B$7:$B$13,0))=\"\",\"\",INDEX('Disagg.1A_import-export'!L$7:L$13,MATCH($A51,'Disagg.1A_import-export'!$B$7:$B$13,0))),\"\"))","v":""},{"$f":"IF(B51=\"\",\"\",IFERROR(IF(INDEX('Disagg.1A_import-export'!M$7:M$13,MATCH($A51,'Disagg.1A_import-export'!$B$7:$B$13,0))=\"\",\"\",INDEX('Disagg.1A_import-export'!M$7:M$13,MATCH($A51,'Disagg.1A_import-export'!$B$7:$B$13,0))),\"\"))","v":""},{"$f":"IF(B51=\"\",\"\",IFERROR(IF(INDEX('Disagg.1A_import-export'!N$7:N$13,MATCH($A51,'Disagg.1A_import-export'!$B$7:$B$13,0))=\"\",\"\",INDEX('Disagg.1A_import-export'!N$7:N$13,MATCH($A51,'Disagg.1A_import-export'!$B$7:$B$13,0))),\"\"))","v":""},{"$f":"IF(B51=\"\",\"\",IFERROR(IF(INDEX('Disagg.1A_import-export'!AC$7:AC$13,MATCH($A51,'Disagg.1A_import-export'!$B$7:$B$13,0))=\"\",\"\",INDEX('Disagg.1A_import-export'!AC$7:AC$13,MATCH($A51,'Disagg.1A_import-export'!$B$7:$B$13,0))),\"\"))","v":""}]
[{"$f":"IFERROR(IF(INDEX(ImpactDisaglist,MATCH(0,INDEX(COUNTIF(A$10:A51,ImpactDisaglist),0,0),0))<>\"\",INDEX(ImpactDisaglist,MATCH(0,INDEX(COUNTIF(A$10:A51,ImpactDisaglist),0,0),0)),INDEX(OutcomeDisaglist,MATCH(0,INDEX(COUNTIF(A$10:A51,OutcomeDisaglist),0,0),0))),\"\")","v":""},{"$f":"IFERROR(INDEX('Disagg.1A_import-export'!D$7:D$200,MATCH($A52,'Disagg.1A_import-export'!$B$7:$B$200,0)),\"\")","v":""},{"$f":"IF(B52=\"\",\"\",IFERROR(INDEX('Disagg.1A_import-export'!E$7:E$13,MATCH($A52,'Disagg.1A_import-export'!$B$7:$B$13,0)),\"\"))","v":""},{"$f":"IF(B52=\"\",\"\",IFERROR(IF(INDEX('Disagg.1A_import-export'!I$7:I$13,MATCH($A52,'Disagg.1A_import-export'!$B$7:$B$13,0))=\"\",\"\",INDEX('Disagg.1A_import-export'!I$7:I$13,MATCH($A52,'Disagg.1A_import-export'!$B$7:$B$13,0))),\"\"))","v":""},{"$f":"IF(B52=\"\",\"\",IFERROR(IF(INDEX('Disagg.1A_import-export'!J$7:J$13,MATCH($A52,'Disagg.1A_import-export'!$B$7:$B$13,0))=\"\",\"\",INDEX('Disagg.1A_import-export'!J$7:J$13,MATCH($A52,'Disagg.1A_import-export'!$B$7:$B$13,0))),\"\"))","v":""},{"$f":"IF(B52=\"\",\"\",IFERROR(IF(INDEX('Disagg.1A_import-export'!K$7:K$13,MATCH($A52,'Disagg.1A_import-export'!$B$7:$B$13,0))=\"\",\"\",INDEX('Disagg.1A_import-export'!K$7:K$13,MATCH($A52,'Disagg.1A_import-export'!$B$7:$B$13,0))),\"\"))","v":""},{"$f":"IF(B52=\"\",\"\",IFERROR(IF(INDEX('Disagg.1A_import-export'!L$7:L$13,MATCH($A52,'Disagg.1A_import-export'!$B$7:$B$13,0))=\"\",\"\",INDEX('Disagg.1A_import-export'!L$7:L$13,MATCH($A52,'Disagg.1A_import-export'!$B$7:$B$13,0))),\"\"))","v":""},{"$f":"IF(B52=\"\",\"\",IFERROR(IF(INDEX('Disagg.1A_import-export'!M$7:M$13,MATCH($A52,'Disagg.1A_import-export'!$B$7:$B$13,0))=\"\",\"\",INDEX('Disagg.1A_import-export'!M$7:M$13,MATCH($A52,'Disagg.1A_import-export'!$B$7:$B$13,0))),\"\"))","v":""},{"$f":"IF(B52=\"\",\"\",IFERROR(IF(INDEX('Disagg.1A_import-export'!N$7:N$13,MATCH($A52,'Disagg.1A_import-export'!$B$7:$B$13,0))=\"\",\"\",INDEX('Disagg.1A_import-export'!N$7:N$13,MATCH($A52,'Disagg.1A_import-export'!$B$7:$B$13,0))),\"\"))","v":""},{"$f":"IF(B52=\"\",\"\",IFERROR(IF(INDEX('Disagg.1A_import-export'!AC$7:AC$13,MATCH($A52,'Disagg.1A_import-export'!$B$7:$B$13,0))=\"\",\"\",INDEX('Disagg.1A_import-export'!AC$7:AC$13,MATCH($A52,'Disagg.1A_import-export'!$B$7:$B$13,0))),\"\"))","v":""}]
[{"$f":"IFERROR(IF(INDEX(ImpactDisaglist,MATCH(0,INDEX(COUNTIF(A$10:A52,ImpactDisaglist),0,0),0))<>\"\",INDEX(ImpactDisaglist,MATCH(0,INDEX(COUNTIF(A$10:A52,ImpactDisaglist),0,0),0)),INDEX(OutcomeDisaglist,MATCH(0,INDEX(COUNTIF(A$10:A52,OutcomeDisaglist),0,0),0))),\"\")","v":""},{"$f":"IFERROR(INDEX('Disagg.1A_import-export'!D$7:D$200,MATCH($A53,'Disagg.1A_import-export'!$B$7:$B$200,0)),\"\")","v":""},{"$f":"IF(B53=\"\",\"\",IFERROR(INDEX('Disagg.1A_import-export'!E$7:E$13,MATCH($A53,'Disagg.1A_import-export'!$B$7:$B$13,0)),\"\"))","v":""},{"$f":"IF(B53=\"\",\"\",IFERROR(IF(INDEX('Disagg.1A_import-export'!I$7:I$13,MATCH($A53,'Disagg.1A_import-export'!$B$7:$B$13,0))=\"\",\"\",INDEX('Disagg.1A_import-export'!I$7:I$13,MATCH($A53,'Disagg.1A_import-export'!$B$7:$B$13,0))),\"\"))","v":""},{"$f":"IF(B53=\"\",\"\",IFERROR(IF(INDEX('Disagg.1A_import-export'!J$7:J$13,MATCH($A53,'Disagg.1A_import-export'!$B$7:$B$13,0))=\"\",\"\",INDEX('Disagg.1A_import-export'!J$7:J$13,MATCH($A53,'Disagg.1A_import-export'!$B$7:$B$13,0))),\"\"))","v":""},{"$f":"IF(B53=\"\",\"\",IFERROR(IF(INDEX('Disagg.1A_import-export'!K$7:K$13,MATCH($A53,'Disagg.1A_import-export'!$B$7:$B$13,0))=\"\",\"\",INDEX('Disagg.1A_import-export'!K$7:K$13,MATCH($A53,'Disagg.1A_import-export'!$B$7:$B$13,0))),\"\"))","v":""},{"$f":"IF(B53=\"\",\"\",IFERROR(IF(INDEX('Disagg.1A_import-export'!L$7:L$13,MATCH($A53,'Disagg.1A_import-export'!$B$7:$B$13,0))=\"\",\"\",INDEX('Disagg.1A_import-export'!L$7:L$13,MATCH($A53,'Disagg.1A_import-export'!$B$7:$B$13,0))),\"\"))","v":""},{"$f":"IF(B53=\"\",\"\",IFERROR(IF(INDEX('Disagg.1A_import-export'!M$7:M$13,MATCH($A53,'Disagg.1A_import-export'!$B$7:$B$13,0))=\"\",\"\",INDEX('Disagg.1A_import-export'!M$7:M$13,MATCH($A53,'Disagg.1A_import-export'!$B$7:$B$13,0))),\"\"))","v":""},{"$f":"IF(B53=\"\",\"\",IFERROR(IF(INDEX('Disagg.1A_import-export'!N$7:N$13,MATCH($A53,'Disagg.1A_import-export'!$B$7:$B$13,0))=\"\",\"\",INDEX('Disagg.1A_import-export'!N$7:N$13,MATCH($A53,'Disagg.1A_import-export'!$B$7:$B$13,0))),\"\"))","v":""},{"$f":"IF(B53=\"\",\"\",IFERROR(IF(INDEX('Disagg.1A_import-export'!AC$7:AC$13,MATCH($A53,'Disagg.1A_import-export'!$B$7:$B$13,0))=\"\",\"\",INDEX('Disagg.1A_import-export'!AC$7:AC$13,MATCH($A53,'Disagg.1A_import-export'!$B$7:$B$13,0))),\"\"))","v":""}]
[{"$f":"IFERROR(IF(INDEX(ImpactDisaglist,MATCH(0,INDEX(COUNTIF(A$10:A53,ImpactDisaglist),0,0),0))<>\"\",INDEX(ImpactDisaglist,MATCH(0,INDEX(COUNTIF(A$10:A53,ImpactDisaglist),0,0),0)),INDEX(OutcomeDisaglist,MATCH(0,INDEX(COUNTIF(A$10:A53,OutcomeDisaglist),0,0),0))),\"\")","v":""},{"$f":"IFERROR(INDEX('Disagg.1A_import-export'!D$7:D$200,MATCH($A54,'Disagg.1A_import-export'!$B$7:$B$200,0)),\"\")","v":""},{"$f":"IF(B54=\"\",\"\",IFERROR(INDEX('Disagg.1A_import-export'!E$7:E$13,MATCH($A54,'Disagg.1A_import-export'!$B$7:$B$13,0)),\"\"))","v":""},{"$f":"IF(B54=\"\",\"\",IFERROR(IF(INDEX('Disagg.1A_import-export'!I$7:I$13,MATCH($A54,'Disagg.1A_import-export'!$B$7:$B$13,0))=\"\",\"\",INDEX('Disagg.1A_import-export'!I$7:I$13,MATCH($A54,'Disagg.1A_import-export'!$B$7:$B$13,0))),\"\"))","v":""},{"$f":"IF(B54=\"\",\"\",IFERROR(IF(INDEX('Disagg.1A_import-export'!J$7:J$13,MATCH($A54,'Disagg.1A_import-export'!$B$7:$B$13,0))=\"\",\"\",INDEX('Disagg.1A_import-export'!J$7:J$13,MATCH($A54,'Disagg.1A_import-export'!$B$7:$B$13,0))),\"\"))","v":""},{"$f":"IF(B54=\"\",\"\",IFERROR(IF(INDEX('Disagg.1A_import-export'!K$7:K$13,MATCH($A54,'Disagg.1A_import-export'!$B$7:$B$13,0))=\"\",\"\",INDEX('Disagg.1A_import-export'!K$7:K$13,MATCH($A54,'Disagg.1A_import-export'!$B$7:$B$13,0))),\"\"))","v":""},{"$f":"IF(B54=\"\",\"\",IFERROR(IF(INDEX('Disagg.1A_import-export'!L$7:L$13,MATCH($A54,'Disagg.1A_import-export'!$B$7:$B$13,0))=\"\",\"\",INDEX('Disagg.1A_import-export'!L$7:L$13,MATCH($A54,'Disagg.1A_import-export'!$B$7:$B$13,0))),\"\"))","v":""},{"$f":"IF(B54=\"\",\"\",IFERROR(IF(INDEX('Disagg.1A_import-export'!M$7:M$13,MATCH($A54,'Disagg.1A_import-export'!$B$7:$B$13,0))=\"\",\"\",INDEX('Disagg.1A_import-export'!M$7:M$13,MATCH($A54,'Disagg.1A_import-export'!$B$7:$B$13,0))),\"\"))","v":""},{"$f":"IF(B54=\"\",\"\",IFERROR(IF(INDEX('Disagg.1A_import-export'!N$7:N$13,MATCH($A54,'Disagg.1A_import-export'!$B$7:$B$13,0))=\"\",\"\",INDEX('Disagg.1A_import-export'!N$7:N$13,MATCH($A54,'Disagg.1A_import-export'!$B$7:$B$13,0))),\"\"))","v":""},{"$f":"IF(B54=\"\",\"\",IFERROR(IF(INDEX('Disagg.1A_import-export'!AC$7:AC$13,MATCH($A54,'Disagg.1A_import-export'!$B$7:$B$13,0))=\"\",\"\",INDEX('Disagg.1A_import-export'!AC$7:AC$13,MATCH($A54,'Disagg.1A_import-export'!$B$7:$B$13,0))),\"\"))","v":""}]
[{"$f":"IFERROR(IF(INDEX(ImpactDisaglist,MATCH(0,INDEX(COUNTIF(A$10:A54,ImpactDisaglist),0,0),0))<>\"\",INDEX(ImpactDisaglist,MATCH(0,INDEX(COUNTIF(A$10:A54,ImpactDisaglist),0,0),0)),INDEX(OutcomeDisaglist,MATCH(0,INDEX(COUNTIF(A$10:A54,OutcomeDisaglist),0,0),0))),\"\")","v":""},{"$f":"IFERROR(INDEX('Disagg.1A_import-export'!D$7:D$200,MATCH($A55,'Disagg.1A_import-export'!$B$7:$B$200,0)),\"\")","v":""},{"$f":"IF(B55=\"\",\"\",IFERROR(INDEX('Disagg.1A_import-export'!E$7:E$13,MATCH($A55,'Disagg.1A_import-export'!$B$7:$B$13,0)),\"\"))","v":""},{"$f":"IF(B55=\"\",\"\",IFERROR(IF(INDEX('Disagg.1A_import-export'!I$7:I$13,MATCH($A55,'Disagg.1A_import-export'!$B$7:$B$13,0))=\"\",\"\",INDEX('Disagg.1A_import-export'!I$7:I$13,MATCH($A55,'Disagg.1A_import-export'!$B$7:$B$13,0))),\"\"))","v":""},{"$f":"IF(B55=\"\",\"\",IFERROR(IF(INDEX('Disagg.1A_import-export'!J$7:J$13,MATCH($A55,'Disagg.1A_import-export'!$B$7:$B$13,0))=\"\",\"\",INDEX('Disagg.1A_import-export'!J$7:J$13,MATCH($A55,'Disagg.1A_import-export'!$B$7:$B$13,0))),\"\"))","v":""},{"$f":"IF(B55=\"\",\"\",IFERROR(IF(INDEX('Disagg.1A_import-export'!K$7:K$13,MATCH($A55,'Disagg.1A_import-export'!$B$7:$B$13,0))=\"\",\"\",INDEX('Disagg.1A_import-export'!K$7:K$13,MATCH($A55,'Disagg.1A_import-export'!$B$7:$B$13,0))),\"\"))","v":""},{"$f":"IF(B55=\"\",\"\",IFERROR(IF(INDEX('Disagg.1A_import-export'!L$7:L$13,MATCH($A55,'Disagg.1A_import-export'!$B$7:$B$13,0))=\"\",\"\",INDEX('Disagg.1A_import-export'!L$7:L$13,MATCH($A55,'Disagg.1A_import-export'!$B$7:$B$13,0))),\"\"))","v":""},{"$f":"IF(B55=\"\",\"\",IFERROR(IF(INDEX('Disagg.1A_import-export'!M$7:M$13,MATCH($A55,'Disagg.1A_import-export'!$B$7:$B$13,0))=\"\",\"\",INDEX('Disagg.1A_import-export'!M$7:M$13,MATCH($A55,'Disagg.1A_import-export'!$B$7:$B$13,0))),\"\"))","v":""},{"$f":"IF(B55=\"\",\"\",IFERROR(IF(INDEX('Disagg.1A_import-export'!N$7:N$13,MATCH($A55,'Disagg.1A_import-export'!$B$7:$B$13,0))=\"\",\"\",INDEX('Disagg.1A_import-export'!N$7:N$13,MATCH($A55,'Disagg.1A_import-export'!$B$7:$B$13,0))),\"\"))","v":""},{"$f":"IF(B55=\"\",\"\",IFERROR(IF(INDEX('Disagg.1A_import-export'!AC$7:AC$13,MATCH($A55,'Disagg.1A_import-export'!$B$7:$B$13,0))=\"\",\"\",INDEX('Disagg.1A_import-export'!AC$7:AC$13,MATCH($A55,'Disagg.1A_import-export'!$B$7:$B$13,0))),\"\"))","v":""}]
[{"$f":"IFERROR(IF(INDEX(ImpactDisaglist,MATCH(0,INDEX(COUNTIF(A$10:A55,ImpactDisaglist),0,0),0))<>\"\",INDEX(ImpactDisaglist,MATCH(0,INDEX(COUNTIF(A$10:A55,ImpactDisaglist),0,0),0)),INDEX(OutcomeDisaglist,MATCH(0,INDEX(COUNTIF(A$10:A55,OutcomeDisaglist),0,0),0))),\"\")","v":""},{"$f":"IFERROR(INDEX('Disagg.1A_import-export'!D$7:D$200,MATCH($A56,'Disagg.1A_import-export'!$B$7:$B$200,0)),\"\")","v":""},{"$f":"IF(B56=\"\",\"\",IFERROR(INDEX('Disagg.1A_import-export'!E$7:E$13,MATCH($A56,'Disagg.1A_import-export'!$B$7:$B$13,0)),\"\"))","v":""},{"$f":"IF(B56=\"\",\"\",IFERROR(IF(INDEX('Disagg.1A_import-export'!I$7:I$13,MATCH($A56,'Disagg.1A_import-export'!$B$7:$B$13,0))=\"\",\"\",INDEX('Disagg.1A_import-export'!I$7:I$13,MATCH($A56,'Disagg.1A_import-export'!$B$7:$B$13,0))),\"\"))","v":""},{"$f":"IF(B56=\"\",\"\",IFERROR(IF(INDEX('Disagg.1A_import-export'!J$7:J$13,MATCH($A56,'Disagg.1A_import-export'!$B$7:$B$13,0))=\"\",\"\",INDEX('Disagg.1A_import-export'!J$7:J$13,MATCH($A56,'Disagg.1A_import-export'!$B$7:$B$13,0))),\"\"))","v":""},{"$f":"IF(B56=\"\",\"\",IFERROR(IF(INDEX('Disagg.1A_import-export'!K$7:K$13,MATCH($A56,'Disagg.1A_import-export'!$B$7:$B$13,0))=\"\",\"\",INDEX('Disagg.1A_import-export'!K$7:K$13,MATCH($A56,'Disagg.1A_import-export'!$B$7:$B$13,0))),\"\"))","v":""},{"$f":"IF(B56=\"\",\"\",IFERROR(IF(INDEX('Disagg.1A_import-export'!L$7:L$13,MATCH($A56,'Disagg.1A_import-export'!$B$7:$B$13,0))=\"\",\"\",INDEX('Disagg.1A_import-export'!L$7:L$13,MATCH($A56,'Disagg.1A_import-export'!$B$7:$B$13,0))),\"\"))","v":""},{"$f":"IF(B56=\"\",\"\",IFERROR(IF(INDEX('Disagg.1A_import-export'!M$7:M$13,MATCH($A56,'Disagg.1A_import-export'!$B$7:$B$13,0))=\"\",\"\",INDEX('Disagg.1A_import-export'!M$7:M$13,MATCH($A56,'Disagg.1A_import-export'!$B$7:$B$13,0))),\"\"))","v":""},{"$f":"IF(B56=\"\",\"\",IFERROR(IF(INDEX('Disagg.1A_import-export'!N$7:N$13,MATCH($A56,'Disagg.1A_import-export'!$B$7:$B$13,0))=\"\",\"\",INDEX('Disagg.1A_import-export'!N$7:N$13,MATCH($A56,'Disagg.1A_import-export'!$B$7:$B$13,0))),\"\"))","v":""},{"$f":"IF(B56=\"\",\"\",IFERROR(IF(INDEX('Disagg.1A_import-export'!AC$7:AC$13,MATCH($A56,'Disagg.1A_import-export'!$B$7:$B$13,0))=\"\",\"\",INDEX('Disagg.1A_import-export'!AC$7:AC$13,MATCH($A56,'Disagg.1A_import-export'!$B$7:$B$13,0))),\"\"))","v":""}]
[{"$f":"IFERROR(IF(INDEX(ImpactDisaglist,MATCH(0,INDEX(COUNTIF(A$10:A56,ImpactDisaglist),0,0),0))<>\"\",INDEX(ImpactDisaglist,MATCH(0,INDEX(COUNTIF(A$10:A56,ImpactDisaglist),0,0),0)),INDEX(OutcomeDisaglist,MATCH(0,INDEX(COUNTIF(A$10:A56,OutcomeDisaglist),0,0),0))),\"\")","v":""},{"$f":"IFERROR(INDEX('Disagg.1A_import-export'!D$7:D$200,MATCH($A57,'Disagg.1A_import-export'!$B$7:$B$200,0)),\"\")","v":""},{"$f":"IF(B57=\"\",\"\",IFERROR(INDEX('Disagg.1A_import-export'!E$7:E$13,MATCH($A57,'Disagg.1A_import-export'!$B$7:$B$13,0)),\"\"))","v":""},{"$f":"IF(B57=\"\",\"\",IFERROR(IF(INDEX('Disagg.1A_import-export'!I$7:I$13,MATCH($A57,'Disagg.1A_import-export'!$B$7:$B$13,0))=\"\",\"\",INDEX('Disagg.1A_import-export'!I$7:I$13,MATCH($A57,'Disagg.1A_import-export'!$B$7:$B$13,0))),\"\"))","v":""},{"$f":"IF(B57=\"\",\"\",IFERROR(IF(INDEX('Disagg.1A_import-export'!J$7:J$13,MATCH($A57,'Disagg.1A_import-export'!$B$7:$B$13,0))=\"\",\"\",INDEX('Disagg.1A_import-export'!J$7:J$13,MATCH($A57,'Disagg.1A_import-export'!$B$7:$B$13,0))),\"\"))","v":""},{"$f":"IF(B57=\"\",\"\",IFERROR(IF(INDEX('Disagg.1A_import-export'!K$7:K$13,MATCH($A57,'Disagg.1A_import-export'!$B$7:$B$13,0))=\"\",\"\",INDEX('Disagg.1A_import-export'!K$7:K$13,MATCH($A57,'Disagg.1A_import-export'!$B$7:$B$13,0))),\"\"))","v":""},{"$f":"IF(B57=\"\",\"\",IFERROR(IF(INDEX('Disagg.1A_import-export'!L$7:L$13,MATCH($A57,'Disagg.1A_import-export'!$B$7:$B$13,0))=\"\",\"\",INDEX('Disagg.1A_import-export'!L$7:L$13,MATCH($A57,'Disagg.1A_import-export'!$B$7:$B$13,0))),\"\"))","v":""},{"$f":"IF(B57=\"\",\"\",IFERROR(IF(INDEX('Disagg.1A_import-export'!M$7:M$13,MATCH($A57,'Disagg.1A_import-export'!$B$7:$B$13,0))=\"\",\"\",INDEX('Disagg.1A_import-export'!M$7:M$13,MATCH($A57,'Disagg.1A_import-export'!$B$7:$B$13,0))),\"\"))","v":""},{"$f":"IF(B57=\"\",\"\",IFERROR(IF(INDEX('Disagg.1A_import-export'!N$7:N$13,MATCH($A57,'Disagg.1A_import-export'!$B$7:$B$13,0))=\"\",\"\",INDEX('Disagg.1A_import-export'!N$7:N$13,MATCH($A57,'Disagg.1A_import-export'!$B$7:$B$13,0))),\"\"))","v":""},{"$f":"IF(B57=\"\",\"\",IFERROR(IF(INDEX('Disagg.1A_import-export'!AC$7:AC$13,MATCH($A57,'Disagg.1A_import-export'!$B$7:$B$13,0))=\"\",\"\",INDEX('Disagg.1A_import-export'!AC$7:AC$13,MATCH($A57,'Disagg.1A_import-export'!$B$7:$B$13,0))),\"\"))","v":""}]
[{"$f":"IFERROR(IF(INDEX(ImpactDisaglist,MATCH(0,INDEX(COUNTIF(A$10:A57,ImpactDisaglist),0,0),0))<>\"\",INDEX(ImpactDisaglist,MATCH(0,INDEX(COUNTIF(A$10:A57,ImpactDisaglist),0,0),0)),INDEX(OutcomeDisaglist,MATCH(0,INDEX(COUNTIF(A$10:A57,OutcomeDisaglist),0,0),0))),\"\")","v":""},{"$f":"IFERROR(INDEX('Disagg.1A_import-export'!D$7:D$200,MATCH($A58,'Disagg.1A_import-export'!$B$7:$B$200,0)),\"\")","v":""},{"$f":"IF(B58=\"\",\"\",IFERROR(INDEX('Disagg.1A_import-export'!E$7:E$13,MATCH($A58,'Disagg.1A_import-export'!$B$7:$B$13,0)),\"\"))","v":""},{"$f":"IF(B58=\"\",\"\",IFERROR(IF(INDEX('Disagg.1A_import-export'!I$7:I$13,MATCH($A58,'Disagg.1A_import-export'!$B$7:$B$13,0))=\"\",\"\",INDEX('Disagg.1A_import-export'!I$7:I$13,MATCH($A58,'Disagg.1A_import-export'!$B$7:$B$13,0))),\"\"))","v":""},{"$f":"IF(B58=\"\",\"\",IFERROR(IF(INDEX('Disagg.1A_import-export'!J$7:J$13,MATCH($A58,'Disagg.1A_import-export'!$B$7:$B$13,0))=\"\",\"\",INDEX('Disagg.1A_import-export'!J$7:J$13,MATCH($A58,'Disagg.1A_import-export'!$B$7:$B$13,0))),\"\"))","v":""},{"$f":"IF(B58=\"\",\"\",IFERROR(IF(INDEX('Disagg.1A_import-export'!K$7:K$13,MATCH($A58,'Disagg.1A_import-export'!$B$7:$B$13,0))=\"\",\"\",INDEX('Disagg.1A_import-export'!K$7:K$13,MATCH($A58,'Disagg.1A_import-export'!$B$7:$B$13,0))),\"\"))","v":""},{"$f":"IF(B58=\"\",\"\",IFERROR(IF(INDEX('Disagg.1A_import-export'!L$7:L$13,MATCH($A58,'Disagg.1A_import-export'!$B$7:$B$13,0))=\"\",\"\",INDEX('Disagg.1A_import-export'!L$7:L$13,MATCH($A58,'Disagg.1A_import-export'!$B$7:$B$13,0))),\"\"))","v":""},{"$f":"IF(B58=\"\",\"\",IFERROR(IF(INDEX('Disagg.1A_import-export'!M$7:M$13,MATCH($A58,'Disagg.1A_import-export'!$B$7:$B$13,0))=\"\",\"\",INDEX('Disagg.1A_import-export'!M$7:M$13,MATCH($A58,'Disagg.1A_import-export'!$B$7:$B$13,0))),\"\"))","v":""},{"$f":"IF(B58=\"\",\"\",IFERROR(IF(INDEX('Disagg.1A_import-export'!N$7:N$13,MATCH($A58,'Disagg.1A_import-export'!$B$7:$B$13,0))=\"\",\"\",INDEX('Disagg.1A_import-export'!N$7:N$13,MATCH($A58,'Disagg.1A_import-export'!$B$7:$B$13,0))),\"\"))","v":""},{"$f":"IF(B58=\"\",\"\",IFERROR(IF(INDEX('Disagg.1A_import-export'!AC$7:AC$13,MATCH($A58,'Disagg.1A_import-export'!$B$7:$B$13,0))=\"\",\"\",INDEX('Disagg.1A_import-export'!AC$7:AC$13,MATCH($A58,'Disagg.1A_import-export'!$B$7:$B$13,0))),\"\"))","v":""}]
[{"$f":"IFERROR(IF(INDEX(ImpactDisaglist,MATCH(0,INDEX(COUNTIF(A$10:A58,ImpactDisaglist),0,0),0))<>\"\",INDEX(ImpactDisaglist,MATCH(0,INDEX(COUNTIF(A$10:A58,ImpactDisaglist),0,0),0)),INDEX(OutcomeDisaglist,MATCH(0,INDEX(COUNTIF(A$10:A58,OutcomeDisaglist),0,0),0))),\"\")","v":""},{"$f":"IFERROR(INDEX('Disagg.1A_import-export'!D$7:D$200,MATCH($A59,'Disagg.1A_import-export'!$B$7:$B$200,0)),\"\")","v":""},{"$f":"IF(B59=\"\",\"\",IFERROR(INDEX('Disagg.1A_import-export'!E$7:E$13,MATCH($A59,'Disagg.1A_import-export'!$B$7:$B$13,0)),\"\"))","v":""},{"$f":"IF(B59=\"\",\"\",IFERROR(IF(INDEX('Disagg.1A_import-export'!I$7:I$13,MATCH($A59,'Disagg.1A_import-export'!$B$7:$B$13,0))=\"\",\"\",INDEX('Disagg.1A_import-export'!I$7:I$13,MATCH($A59,'Disagg.1A_import-export'!$B$7:$B$13,0))),\"\"))","v":""},{"$f":"IF(B59=\"\",\"\",IFERROR(IF(INDEX('Disagg.1A_import-export'!J$7:J$13,MATCH($A59,'Disagg.1A_import-export'!$B$7:$B$13,0))=\"\",\"\",INDEX('Disagg.1A_import-export'!J$7:J$13,MATCH($A59,'Disagg.1A_import-export'!$B$7:$B$13,0))),\"\"))","v":""},{"$f":"IF(B59=\"\",\"\",IFERROR(IF(INDEX('Disagg.1A_import-export'!K$7:K$13,MATCH($A59,'Disagg.1A_import-export'!$B$7:$B$13,0))=\"\",\"\",INDEX('Disagg.1A_import-export'!K$7:K$13,MATCH($A59,'Disagg.1A_import-export'!$B$7:$B$13,0))),\"\"))","v":""},{"$f":"IF(B59=\"\",\"\",IFERROR(IF(INDEX('Disagg.1A_import-export'!L$7:L$13,MATCH($A59,'Disagg.1A_import-export'!$B$7:$B$13,0))=\"\",\"\",INDEX('Disagg.1A_import-export'!L$7:L$13,MATCH($A59,'Disagg.1A_import-export'!$B$7:$B$13,0))),\"\"))","v":""},{"$f":"IF(B59=\"\",\"\",IFERROR(IF(INDEX('Disagg.1A_import-export'!M$7:M$13,MATCH($A59,'Disagg.1A_import-export'!$B$7:$B$13,0))=\"\",\"\",INDEX('Disagg.1A_import-export'!M$7:M$13,MATCH($A59,'Disagg.1A_import-export'!$B$7:$B$13,0))),\"\"))","v":""},{"$f":"IF(B59=\"\",\"\",IFERROR(IF(INDEX('Disagg.1A_import-export'!N$7:N$13,MATCH($A59,'Disagg.1A_import-export'!$B$7:$B$13,0))=\"\",\"\",INDEX('Disagg.1A_import-export'!N$7:N$13,MATCH($A59,'Disagg.1A_import-export'!$B$7:$B$13,0))),\"\"))","v":""},{"$f":"IF(B59=\"\",\"\",IFERROR(IF(INDEX('Disagg.1A_import-export'!AC$7:AC$13,MATCH($A59,'Disagg.1A_import-export'!$B$7:$B$13,0))=\"\",\"\",INDEX('Disagg.1A_import-export'!AC$7:AC$13,MATCH($A59,'Disagg.1A_import-export'!$B$7:$B$13,0))),\"\"))","v":""}]
[{"$f":"IFERROR(IF(INDEX(ImpactDisaglist,MATCH(0,INDEX(COUNTIF(A$10:A59,ImpactDisaglist),0,0),0))<>\"\",INDEX(ImpactDisaglist,MATCH(0,INDEX(COUNTIF(A$10:A59,ImpactDisaglist),0,0),0)),INDEX(OutcomeDisaglist,MATCH(0,INDEX(COUNTIF(A$10:A59,OutcomeDisaglist),0,0),0))),\"\")","v":""},{"$f":"IFERROR(INDEX('Disagg.1A_import-export'!D$7:D$200,MATCH($A60,'Disagg.1A_import-export'!$B$7:$B$200,0)),\"\")","v":""},{"$f":"IF(B60=\"\",\"\",IFERROR(INDEX('Disagg.1A_import-export'!E$7:E$13,MATCH($A60,'Disagg.1A_import-export'!$B$7:$B$13,0)),\"\"))","v":""},{"$f":"IF(B60=\"\",\"\",IFERROR(IF(INDEX('Disagg.1A_import-export'!I$7:I$13,MATCH($A60,'Disagg.1A_import-export'!$B$7:$B$13,0))=\"\",\"\",INDEX('Disagg.1A_import-export'!I$7:I$13,MATCH($A60,'Disagg.1A_import-export'!$B$7:$B$13,0))),\"\"))","v":""},{"$f":"IF(B60=\"\",\"\",IFERROR(IF(INDEX('Disagg.1A_import-export'!J$7:J$13,MATCH($A60,'Disagg.1A_import-export'!$B$7:$B$13,0))=\"\",\"\",INDEX('Disagg.1A_import-export'!J$7:J$13,MATCH($A60,'Disagg.1A_import-export'!$B$7:$B$13,0))),\"\"))","v":""},{"$f":"IF(B60=\"\",\"\",IFERROR(IF(INDEX('Disagg.1A_import-export'!K$7:K$13,MATCH($A60,'Disagg.1A_import-export'!$B$7:$B$13,0))=\"\",\"\",INDEX('Disagg.1A_import-export'!K$7:K$13,MATCH($A60,'Disagg.1A_import-export'!$B$7:$B$13,0))),\"\"))","v":""},{"$f":"IF(B60=\"\",\"\",IFERROR(IF(INDEX('Disagg.1A_import-export'!L$7:L$13,MATCH($A60,'Disagg.1A_import-export'!$B$7:$B$13,0))=\"\",\"\",INDEX('Disagg.1A_import-export'!L$7:L$13,MATCH($A60,'Disagg.1A_import-export'!$B$7:$B$13,0))),\"\"))","v":""},{"$f":"IF(B60=\"\",\"\",IFERROR(IF(INDEX('Disagg.1A_import-export'!M$7:M$13,MATCH($A60,'Disagg.1A_import-export'!$B$7:$B$13,0))=\"\",\"\",INDEX('Disagg.1A_import-export'!M$7:M$13,MATCH($A60,'Disagg.1A_import-export'!$B$7:$B$13,0))),\"\"))","v":""},{"$f":"IF(B60=\"\",\"\",IFERROR(IF(INDEX('Disagg.1A_import-export'!N$7:N$13,MATCH($A60,'Disagg.1A_import-export'!$B$7:$B$13,0))=\"\",\"\",INDEX('Disagg.1A_import-export'!N$7:N$13,MATCH($A60,'Disagg.1A_import-export'!$B$7:$B$13,0))),\"\"))","v":""},{"$f":"IF(B60=\"\",\"\",IFERROR(IF(INDEX('Disagg.1A_import-export'!AC$7:AC$13,MATCH($A60,'Disagg.1A_import-export'!$B$7:$B$13,0))=\"\",\"\",INDEX('Disagg.1A_import-export'!AC$7:AC$13,MATCH($A60,'Disagg.1A_import-export'!$B$7:$B$13,0))),\"\"))","v":""}]
[{"$f":"IFERROR(IF(INDEX(ImpactDisaglist,MATCH(0,INDEX(COUNTIF(A$10:A60,ImpactDisaglist),0,0),0))<>\"\",INDEX(ImpactDisaglist,MATCH(0,INDEX(COUNTIF(A$10:A60,ImpactDisaglist),0,0),0)),INDEX(OutcomeDisaglist,MATCH(0,INDEX(COUNTIF(A$10:A60,OutcomeDisaglist),0,0),0))),\"\")","v":""},{"$f":"IFERROR(INDEX('Disagg.1A_import-export'!D$7:D$200,MATCH($A61,'Disagg.1A_import-export'!$B$7:$B$200,0)),\"\")","v":""},{"$f":"IF(B61=\"\",\"\",IFERROR(INDEX('Disagg.1A_import-export'!E$7:E$13,MATCH($A61,'Disagg.1A_import-export'!$B$7:$B$13,0)),\"\"))","v":""},{"$f":"IF(B61=\"\",\"\",IFERROR(IF(INDEX('Disagg.1A_import-export'!I$7:I$13,MATCH($A61,'Disagg.1A_import-export'!$B$7:$B$13,0))=\"\",\"\",INDEX('Disagg.1A_import-export'!I$7:I$13,MATCH($A61,'Disagg.1A_import-export'!$B$7:$B$13,0))),\"\"))","v":""},{"$f":"IF(B61=\"\",\"\",IFERROR(IF(INDEX('Disagg.1A_import-export'!J$7:J$13,MATCH($A61,'Disagg.1A_import-export'!$B$7:$B$13,0))=\"\",\"\",INDEX('Disagg.1A_import-export'!J$7:J$13,MATCH($A61,'Disagg.1A_import-export'!$B$7:$B$13,0))),\"\"))","v":""},{"$f":"IF(B61=\"\",\"\",IFERROR(IF(INDEX('Disagg.1A_import-export'!K$7:K$13,MATCH($A61,'Disagg.1A_import-export'!$B$7:$B$13,0))=\"\",\"\",INDEX('Disagg.1A_import-export'!K$7:K$13,MATCH($A61,'Disagg.1A_import-export'!$B$7:$B$13,0))),\"\"))","v":""},{"$f":"IF(B61=\"\",\"\",IFERROR(IF(INDEX('Disagg.1A_import-export'!L$7:L$13,MATCH($A61,'Disagg.1A_import-export'!$B$7:$B$13,0))=\"\",\"\",INDEX('Disagg.1A_import-export'!L$7:L$13,MATCH($A61,'Disagg.1A_import-export'!$B$7:$B$13,0))),\"\"))","v":""},{"$f":"IF(B61=\"\",\"\",IFERROR(IF(INDEX('Disagg.1A_import-export'!M$7:M$13,MATCH($A61,'Disagg.1A_import-export'!$B$7:$B$13,0))=\"\",\"\",INDEX('Disagg.1A_import-export'!M$7:M$13,MATCH($A61,'Disagg.1A_import-export'!$B$7:$B$13,0))),\"\"))","v":""},{"$f":"IF(B61=\"\",\"\",IFERROR(IF(INDEX('Disagg.1A_import-export'!N$7:N$13,MATCH($A61,'Disagg.1A_import-export'!$B$7:$B$13,0))=\"\",\"\",INDEX('Disagg.1A_import-export'!N$7:N$13,MATCH($A61,'Disagg.1A_import-export'!$B$7:$B$13,0))),\"\"))","v":""},{"$f":"IF(B61=\"\",\"\",IFERROR(IF(INDEX('Disagg.1A_import-export'!AC$7:AC$13,MATCH($A61,'Disagg.1A_import-export'!$B$7:$B$13,0))=\"\",\"\",INDEX('Disagg.1A_import-export'!AC$7:AC$13,MATCH($A61,'Disagg.1A_import-export'!$B$7:$B$13,0))),\"\"))","v":""}]
[{"$f":"IFERROR(IF(INDEX(ImpactDisaglist,MATCH(0,INDEX(COUNTIF(A$10:A61,ImpactDisaglist),0,0),0))<>\"\",INDEX(ImpactDisaglist,MATCH(0,INDEX(COUNTIF(A$10:A61,ImpactDisaglist),0,0),0)),INDEX(OutcomeDisaglist,MATCH(0,INDEX(COUNTIF(A$10:A61,OutcomeDisaglist),0,0),0))),\"\")","v":""},{"$f":"IFERROR(INDEX('Disagg.1A_import-export'!D$7:D$200,MATCH($A62,'Disagg.1A_import-export'!$B$7:$B$200,0)),\"\")","v":""},{"$f":"IF(B62=\"\",\"\",IFERROR(INDEX('Disagg.1A_import-export'!E$7:E$13,MATCH($A62,'Disagg.1A_import-export'!$B$7:$B$13,0)),\"\"))","v":""},{"$f":"IF(B62=\"\",\"\",IFERROR(IF(INDEX('Disagg.1A_import-export'!I$7:I$13,MATCH($A62,'Disagg.1A_import-export'!$B$7:$B$13,0))=\"\",\"\",INDEX('Disagg.1A_import-export'!I$7:I$13,MATCH($A62,'Disagg.1A_import-export'!$B$7:$B$13,0))),\"\"))","v":""},{"$f":"IF(B62=\"\",\"\",IFERROR(IF(INDEX('Disagg.1A_import-export'!J$7:J$13,MATCH($A62,'Disagg.1A_import-export'!$B$7:$B$13,0))=\"\",\"\",INDEX('Disagg.1A_import-export'!J$7:J$13,MATCH($A62,'Disagg.1A_import-export'!$B$7:$B$13,0))),\"\"))","v":""},{"$f":"IF(B62=\"\",\"\",IFERROR(IF(INDEX('Disagg.1A_import-export'!K$7:K$13,MATCH($A62,'Disagg.1A_import-export'!$B$7:$B$13,0))=\"\",\"\",INDEX('Disagg.1A_import-export'!K$7:K$13,MATCH($A62,'Disagg.1A_import-export'!$B$7:$B$13,0))),\"\"))","v":""},{"$f":"IF(B62=\"\",\"\",IFERROR(IF(INDEX('Disagg.1A_import-export'!L$7:L$13,MATCH($A62,'Disagg.1A_import-export'!$B$7:$B$13,0))=\"\",\"\",INDEX('Disagg.1A_import-export'!L$7:L$13,MATCH($A62,'Disagg.1A_import-export'!$B$7:$B$13,0))),\"\"))","v":""},{"$f":"IF(B62=\"\",\"\",IFERROR(IF(INDEX('Disagg.1A_import-export'!M$7:M$13,MATCH($A62,'Disagg.1A_import-export'!$B$7:$B$13,0))=\"\",\"\",INDEX('Disagg.1A_import-export'!M$7:M$13,MATCH($A62,'Disagg.1A_import-export'!$B$7:$B$13,0))),\"\"))","v":""},{"$f":"IF(B62=\"\",\"\",IFERROR(IF(INDEX('Disagg.1A_import-export'!N$7:N$13,MATCH($A62,'Disagg.1A_import-export'!$B$7:$B$13,0))=\"\",\"\",INDEX('Disagg.1A_import-export'!N$7:N$13,MATCH($A62,'Disagg.1A_import-export'!$B$7:$B$13,0))),\"\"))","v":""},{"$f":"IF(B62=\"\",\"\",IFERROR(IF(INDEX('Disagg.1A_import-export'!AC$7:AC$13,MATCH($A62,'Disagg.1A_import-export'!$B$7:$B$13,0))=\"\",\"\",INDEX('Disagg.1A_import-export'!AC$7:AC$13,MATCH($A62,'Disagg.1A_import-export'!$B$7:$B$13,0))),\"\"))","v":""}]
[{"$f":"IFERROR(IF(INDEX(ImpactDisaglist,MATCH(0,INDEX(COUNTIF(A$10:A62,ImpactDisaglist),0,0),0))<>\"\",INDEX(ImpactDisaglist,MATCH(0,INDEX(COUNTIF(A$10:A62,ImpactDisaglist),0,0),0)),INDEX(OutcomeDisaglist,MATCH(0,INDEX(COUNTIF(A$10:A62,OutcomeDisaglist),0,0),0))),\"\")","v":""},{"$f":"IFERROR(INDEX('Disagg.1A_import-export'!D$7:D$200,MATCH($A63,'Disagg.1A_import-export'!$B$7:$B$200,0)),\"\")","v":""},{"$f":"IF(B63=\"\",\"\",IFERROR(INDEX('Disagg.1A_import-export'!E$7:E$13,MATCH($A63,'Disagg.1A_import-export'!$B$7:$B$13,0)),\"\"))","v":""},{"$f":"IF(B63=\"\",\"\",IFERROR(IF(INDEX('Disagg.1A_import-export'!I$7:I$13,MATCH($A63,'Disagg.1A_import-export'!$B$7:$B$13,0))=\"\",\"\",INDEX('Disagg.1A_import-export'!I$7:I$13,MATCH($A63,'Disagg.1A_import-export'!$B$7:$B$13,0))),\"\"))","v":""},{"$f":"IF(B63=\"\",\"\",IFERROR(IF(INDEX('Disagg.1A_import-export'!J$7:J$13,MATCH($A63,'Disagg.1A_import-export'!$B$7:$B$13,0))=\"\",\"\",INDEX('Disagg.1A_import-export'!J$7:J$13,MATCH($A63,'Disagg.1A_import-export'!$B$7:$B$13,0))),\"\"))","v":""},{"$f":"IF(B63=\"\",\"\",IFERROR(IF(INDEX('Disagg.1A_import-export'!K$7:K$13,MATCH($A63,'Disagg.1A_import-export'!$B$7:$B$13,0))=\"\",\"\",INDEX('Disagg.1A_import-export'!K$7:K$13,MATCH($A63,'Disagg.1A_import-export'!$B$7:$B$13,0))),\"\"))","v":""},{"$f":"IF(B63=\"\",\"\",IFERROR(IF(INDEX('Disagg.1A_import-export'!L$7:L$13,MATCH($A63,'Disagg.1A_import-export'!$B$7:$B$13,0))=\"\",\"\",INDEX('Disagg.1A_import-export'!L$7:L$13,MATCH($A63,'Disagg.1A_import-export'!$B$7:$B$13,0))),\"\"))","v":""},{"$f":"IF(B63=\"\",\"\",IFERROR(IF(INDEX('Disagg.1A_import-export'!M$7:M$13,MATCH($A63,'Disagg.1A_import-export'!$B$7:$B$13,0))=\"\",\"\",INDEX('Disagg.1A_import-export'!M$7:M$13,MATCH($A63,'Disagg.1A_import-export'!$B$7:$B$13,0))),\"\"))","v":""},{"$f":"IF(B63=\"\",\"\",IFERROR(IF(INDEX('Disagg.1A_import-export'!N$7:N$13,MATCH($A63,'Disagg.1A_import-export'!$B$7:$B$13,0))=\"\",\"\",INDEX('Disagg.1A_import-export'!N$7:N$13,MATCH($A63,'Disagg.1A_import-export'!$B$7:$B$13,0))),\"\"))","v":""},{"$f":"IF(B63=\"\",\"\",IFERROR(IF(INDEX('Disagg.1A_import-export'!AC$7:AC$13,MATCH($A63,'Disagg.1A_import-export'!$B$7:$B$13,0))=\"\",\"\",INDEX('Disagg.1A_import-export'!AC$7:AC$13,MATCH($A63,'Disagg.1A_import-export'!$B$7:$B$13,0))),\"\"))","v":""}]
[{"$f":"IFERROR(IF(INDEX(ImpactDisaglist,MATCH(0,INDEX(COUNTIF(A$10:A63,ImpactDisaglist),0,0),0))<>\"\",INDEX(ImpactDisaglist,MATCH(0,INDEX(COUNTIF(A$10:A63,ImpactDisaglist),0,0),0)),INDEX(OutcomeDisaglist,MATCH(0,INDEX(COUNTIF(A$10:A63,OutcomeDisaglist),0,0),0))),\"\")","v":""},{"$f":"IFERROR(INDEX('Disagg.1A_import-export'!D$7:D$200,MATCH($A64,'Disagg.1A_import-export'!$B$7:$B$200,0)),\"\")","v":""},{"$f":"IF(B64=\"\",\"\",IFERROR(INDEX('Disagg.1A_import-export'!E$7:E$13,MATCH($A64,'Disagg.1A_import-export'!$B$7:$B$13,0)),\"\"))","v":""},{"$f":"IF(B64=\"\",\"\",IFERROR(IF(INDEX('Disagg.1A_import-export'!I$7:I$13,MATCH($A64,'Disagg.1A_import-export'!$B$7:$B$13,0))=\"\",\"\",INDEX('Disagg.1A_import-export'!I$7:I$13,MATCH($A64,'Disagg.1A_import-export'!$B$7:$B$13,0))),\"\"))","v":""},{"$f":"IF(B64=\"\",\"\",IFERROR(IF(INDEX('Disagg.1A_import-export'!J$7:J$13,MATCH($A64,'Disagg.1A_import-export'!$B$7:$B$13,0))=\"\",\"\",INDEX('Disagg.1A_import-export'!J$7:J$13,MATCH($A64,'Disagg.1A_import-export'!$B$7:$B$13,0))),\"\"))","v":""},{"$f":"IF(B64=\"\",\"\",IFERROR(IF(INDEX('Disagg.1A_import-export'!K$7:K$13,MATCH($A64,'Disagg.1A_import-export'!$B$7:$B$13,0))=\"\",\"\",INDEX('Disagg.1A_import-export'!K$7:K$13,MATCH($A64,'Disagg.1A_import-export'!$B$7:$B$13,0))),\"\"))","v":""},{"$f":"IF(B64=\"\",\"\",IFERROR(IF(INDEX('Disagg.1A_import-export'!L$7:L$13,MATCH($A64,'Disagg.1A_import-export'!$B$7:$B$13,0))=\"\",\"\",INDEX('Disagg.1A_import-export'!L$7:L$13,MATCH($A64,'Disagg.1A_import-export'!$B$7:$B$13,0))),\"\"))","v":""},{"$f":"IF(B64=\"\",\"\",IFERROR(IF(INDEX('Disagg.1A_import-export'!M$7:M$13,MATCH($A64,'Disagg.1A_import-export'!$B$7:$B$13,0))=\"\",\"\",INDEX('Disagg.1A_import-export'!M$7:M$13,MATCH($A64,'Disagg.1A_import-export'!$B$7:$B$13,0))),\"\"))","v":""},{"$f":"IF(B64=\"\",\"\",IFERROR(IF(INDEX('Disagg.1A_import-export'!N$7:N$13,MATCH($A64,'Disagg.1A_import-export'!$B$7:$B$13,0))=\"\",\"\",INDEX('Disagg.1A_import-export'!N$7:N$13,MATCH($A64,'Disagg.1A_import-export'!$B$7:$B$13,0))),\"\"))","v":""},{"$f":"IF(B64=\"\",\"\",IFERROR(IF(INDEX('Disagg.1A_import-export'!AC$7:AC$13,MATCH($A64,'Disagg.1A_import-export'!$B$7:$B$13,0))=\"\",\"\",INDEX('Disagg.1A_import-export'!AC$7:AC$13,MATCH($A64,'Disagg.1A_import-export'!$B$7:$B$13,0))),\"\"))","v":""}]
[{"$f":"IFERROR(IF(INDEX(ImpactDisaglist,MATCH(0,INDEX(COUNTIF(A$10:A64,ImpactDisaglist),0,0),0))<>\"\",INDEX(ImpactDisaglist,MATCH(0,INDEX(COUNTIF(A$10:A64,ImpactDisaglist),0,0),0)),INDEX(OutcomeDisaglist,MATCH(0,INDEX(COUNTIF(A$10:A64,OutcomeDisaglist),0,0),0))),\"\")","v":""},{"$f":"IFERROR(INDEX('Disagg.1A_import-export'!D$7:D$200,MATCH($A65,'Disagg.1A_import-export'!$B$7:$B$200,0)),\"\")","v":""},{"$f":"IF(B65=\"\",\"\",IFERROR(INDEX('Disagg.1A_import-export'!E$7:E$13,MATCH($A65,'Disagg.1A_import-export'!$B$7:$B$13,0)),\"\"))","v":""},{"$f":"IF(B65=\"\",\"\",IFERROR(IF(INDEX('Disagg.1A_import-export'!I$7:I$13,MATCH($A65,'Disagg.1A_import-export'!$B$7:$B$13,0))=\"\",\"\",INDEX('Disagg.1A_import-export'!I$7:I$13,MATCH($A65,'Disagg.1A_import-export'!$B$7:$B$13,0))),\"\"))","v":""},{"$f":"IF(B65=\"\",\"\",IFERROR(IF(INDEX('Disagg.1A_import-export'!J$7:J$13,MATCH($A65,'Disagg.1A_import-export'!$B$7:$B$13,0))=\"\",\"\",INDEX('Disagg.1A_import-export'!J$7:J$13,MATCH($A65,'Disagg.1A_import-export'!$B$7:$B$13,0))),\"\"))","v":""},{"$f":"IF(B65=\"\",\"\",IFERROR(IF(INDEX('Disagg.1A_import-export'!K$7:K$13,MATCH($A65,'Disagg.1A_import-export'!$B$7:$B$13,0))=\"\",\"\",INDEX('Disagg.1A_import-export'!K$7:K$13,MATCH($A65,'Disagg.1A_import-export'!$B$7:$B$13,0))),\"\"))","v":""},{"$f":"IF(B65=\"\",\"\",IFERROR(IF(INDEX('Disagg.1A_import-export'!L$7:L$13,MATCH($A65,'Disagg.1A_import-export'!$B$7:$B$13,0))=\"\",\"\",INDEX('Disagg.1A_import-export'!L$7:L$13,MATCH($A65,'Disagg.1A_import-export'!$B$7:$B$13,0))),\"\"))","v":""},{"$f":"IF(B65=\"\",\"\",IFERROR(IF(INDEX('Disagg.1A_import-export'!M$7:M$13,MATCH($A65,'Disagg.1A_import-export'!$B$7:$B$13,0))=\"\",\"\",INDEX('Disagg.1A_import-export'!M$7:M$13,MATCH($A65,'Disagg.1A_import-export'!$B$7:$B$13,0))),\"\"))","v":""},{"$f":"IF(B65=\"\",\"\",IFERROR(IF(INDEX('Disagg.1A_import-export'!N$7:N$13,MATCH($A65,'Disagg.1A_import-export'!$B$7:$B$13,0))=\"\",\"\",INDEX('Disagg.1A_import-export'!N$7:N$13,MATCH($A65,'Disagg.1A_import-export'!$B$7:$B$13,0))),\"\"))","v":""},{"$f":"IF(B65=\"\",\"\",IFERROR(IF(INDEX('Disagg.1A_import-export'!AC$7:AC$13,MATCH($A65,'Disagg.1A_import-export'!$B$7:$B$13,0))=\"\",\"\",INDEX('Disagg.1A_import-export'!AC$7:AC$13,MATCH($A65,'Disagg.1A_import-export'!$B$7:$B$13,0))),\"\"))","v":""}]
[{"$f":"IFERROR(IF(INDEX(ImpactDisaglist,MATCH(0,INDEX(COUNTIF(A$10:A65,ImpactDisaglist),0,0),0))<>\"\",INDEX(ImpactDisaglist,MATCH(0,INDEX(COUNTIF(A$10:A65,ImpactDisaglist),0,0),0)),INDEX(OutcomeDisaglist,MATCH(0,INDEX(COUNTIF(A$10:A65,OutcomeDisaglist),0,0),0))),\"\")","v":""},{"$f":"IFERROR(INDEX('Disagg.1A_import-export'!D$7:D$200,MATCH($A66,'Disagg.1A_import-export'!$B$7:$B$200,0)),\"\")","v":""},{"$f":"IF(B66=\"\",\"\",IFERROR(INDEX('Disagg.1A_import-export'!E$7:E$13,MATCH($A66,'Disagg.1A_import-export'!$B$7:$B$13,0)),\"\"))","v":""},{"$f":"IF(B66=\"\",\"\",IFERROR(IF(INDEX('Disagg.1A_import-export'!I$7:I$13,MATCH($A66,'Disagg.1A_import-export'!$B$7:$B$13,0))=\"\",\"\",INDEX('Disagg.1A_import-export'!I$7:I$13,MATCH($A66,'Disagg.1A_import-export'!$B$7:$B$13,0))),\"\"))","v":""},{"$f":"IF(B66=\"\",\"\",IFERROR(IF(INDEX('Disagg.1A_import-export'!J$7:J$13,MATCH($A66,'Disagg.1A_import-export'!$B$7:$B$13,0))=\"\",\"\",INDEX('Disagg.1A_import-export'!J$7:J$13,MATCH($A66,'Disagg.1A_import-export'!$B$7:$B$13,0))),\"\"))","v":""},{"$f":"IF(B66=\"\",\"\",IFERROR(IF(INDEX('Disagg.1A_import-export'!K$7:K$13,MATCH($A66,'Disagg.1A_import-export'!$B$7:$B$13,0))=\"\",\"\",INDEX('Disagg.1A_import-export'!K$7:K$13,MATCH($A66,'Disagg.1A_import-export'!$B$7:$B$13,0))),\"\"))","v":""},{"$f":"IF(B66=\"\",\"\",IFERROR(IF(INDEX('Disagg.1A_import-export'!L$7:L$13,MATCH($A66,'Disagg.1A_import-export'!$B$7:$B$13,0))=\"\",\"\",INDEX('Disagg.1A_import-export'!L$7:L$13,MATCH($A66,'Disagg.1A_import-export'!$B$7:$B$13,0))),\"\"))","v":""},{"$f":"IF(B66=\"\",\"\",IFERROR(IF(INDEX('Disagg.1A_import-export'!M$7:M$13,MATCH($A66,'Disagg.1A_import-export'!$B$7:$B$13,0))=\"\",\"\",INDEX('Disagg.1A_import-export'!M$7:M$13,MATCH($A66,'Disagg.1A_import-export'!$B$7:$B$13,0))),\"\"))","v":""},{"$f":"IF(B66=\"\",\"\",IFERROR(IF(INDEX('Disagg.1A_import-export'!N$7:N$13,MATCH($A66,'Disagg.1A_import-export'!$B$7:$B$13,0))=\"\",\"\",INDEX('Disagg.1A_import-export'!N$7:N$13,MATCH($A66,'Disagg.1A_import-export'!$B$7:$B$13,0))),\"\"))","v":""},{"$f":"IF(B66=\"\",\"\",IFERROR(IF(INDEX('Disagg.1A_import-export'!AC$7:AC$13,MATCH($A66,'Disagg.1A_import-export'!$B$7:$B$13,0))=\"\",\"\",INDEX('Disagg.1A_import-export'!AC$7:AC$13,MATCH($A66,'Disagg.1A_import-export'!$B$7:$B$13,0))),\"\"))","v":""}]
[{"$f":"IFERROR(IF(INDEX(ImpactDisaglist,MATCH(0,INDEX(COUNTIF(A$10:A66,ImpactDisaglist),0,0),0))<>\"\",INDEX(ImpactDisaglist,MATCH(0,INDEX(COUNTIF(A$10:A66,ImpactDisaglist),0,0),0)),INDEX(OutcomeDisaglist,MATCH(0,INDEX(COUNTIF(A$10:A66,OutcomeDisaglist),0,0),0))),\"\")","v":""},{"$f":"IFERROR(INDEX('Disagg.1A_import-export'!D$7:D$200,MATCH($A67,'Disagg.1A_import-export'!$B$7:$B$200,0)),\"\")","v":""},{"$f":"IF(B67=\"\",\"\",IFERROR(INDEX('Disagg.1A_import-export'!E$7:E$13,MATCH($A67,'Disagg.1A_import-export'!$B$7:$B$13,0)),\"\"))","v":""},{"$f":"IF(B67=\"\",\"\",IFERROR(IF(INDEX('Disagg.1A_import-export'!I$7:I$13,MATCH($A67,'Disagg.1A_import-export'!$B$7:$B$13,0))=\"\",\"\",INDEX('Disagg.1A_import-export'!I$7:I$13,MATCH($A67,'Disagg.1A_import-export'!$B$7:$B$13,0))),\"\"))","v":""},{"$f":"IF(B67=\"\",\"\",IFERROR(IF(INDEX('Disagg.1A_import-export'!J$7:J$13,MATCH($A67,'Disagg.1A_import-export'!$B$7:$B$13,0))=\"\",\"\",INDEX('Disagg.1A_import-export'!J$7:J$13,MATCH($A67,'Disagg.1A_import-export'!$B$7:$B$13,0))),\"\"))","v":""},{"$f":"IF(B67=\"\",\"\",IFERROR(IF(INDEX('Disagg.1A_import-export'!K$7:K$13,MATCH($A67,'Disagg.1A_import-export'!$B$7:$B$13,0))=\"\",\"\",INDEX('Disagg.1A_import-export'!K$7:K$13,MATCH($A67,'Disagg.1A_import-export'!$B$7:$B$13,0))),\"\"))","v":""},{"$f":"IF(B67=\"\",\"\",IFERROR(IF(INDEX('Disagg.1A_import-export'!L$7:L$13,MATCH($A67,'Disagg.1A_import-export'!$B$7:$B$13,0))=\"\",\"\",INDEX('Disagg.1A_import-export'!L$7:L$13,MATCH($A67,'Disagg.1A_import-export'!$B$7:$B$13,0))),\"\"))","v":""},{"$f":"IF(B67=\"\",\"\",IFERROR(IF(INDEX('Disagg.1A_import-export'!M$7:M$13,MATCH($A67,'Disagg.1A_import-export'!$B$7:$B$13,0))=\"\",\"\",INDEX('Disagg.1A_import-export'!M$7:M$13,MATCH($A67,'Disagg.1A_import-export'!$B$7:$B$13,0))),\"\"))","v":""},{"$f":"IF(B67=\"\",\"\",IFERROR(IF(INDEX('Disagg.1A_import-export'!N$7:N$13,MATCH($A67,'Disagg.1A_import-export'!$B$7:$B$13,0))=\"\",\"\",INDEX('Disagg.1A_import-export'!N$7:N$13,MATCH($A67,'Disagg.1A_import-export'!$B$7:$B$13,0))),\"\"))","v":""},{"$f":"IF(B67=\"\",\"\",IFERROR(IF(INDEX('Disagg.1A_import-export'!AC$7:AC$13,MATCH($A67,'Disagg.1A_import-export'!$B$7:$B$13,0))=\"\",\"\",INDEX('Disagg.1A_import-export'!AC$7:AC$13,MATCH($A67,'Disagg.1A_import-export'!$B$7:$B$13,0))),\"\"))","v":""}]
[{"$f":"IFERROR(IF(INDEX(ImpactDisaglist,MATCH(0,INDEX(COUNTIF(A$10:A67,ImpactDisaglist),0,0),0))<>\"\",INDEX(ImpactDisaglist,MATCH(0,INDEX(COUNTIF(A$10:A67,ImpactDisaglist),0,0),0)),INDEX(OutcomeDisaglist,MATCH(0,INDEX(COUNTIF(A$10:A67,OutcomeDisaglist),0,0),0))),\"\")","v":""},{"$f":"IFERROR(INDEX('Disagg.1A_import-export'!D$7:D$200,MATCH($A68,'Disagg.1A_import-export'!$B$7:$B$200,0)),\"\")","v":""},{"$f":"IF(B68=\"\",\"\",IFERROR(INDEX('Disagg.1A_import-export'!E$7:E$13,MATCH($A68,'Disagg.1A_import-export'!$B$7:$B$13,0)),\"\"))","v":""},{"$f":"IF(B68=\"\",\"\",IFERROR(IF(INDEX('Disagg.1A_import-export'!I$7:I$13,MATCH($A68,'Disagg.1A_import-export'!$B$7:$B$13,0))=\"\",\"\",INDEX('Disagg.1A_import-export'!I$7:I$13,MATCH($A68,'Disagg.1A_import-export'!$B$7:$B$13,0))),\"\"))","v":""},{"$f":"IF(B68=\"\",\"\",IFERROR(IF(INDEX('Disagg.1A_import-export'!J$7:J$13,MATCH($A68,'Disagg.1A_import-export'!$B$7:$B$13,0))=\"\",\"\",INDEX('Disagg.1A_import-export'!J$7:J$13,MATCH($A68,'Disagg.1A_import-export'!$B$7:$B$13,0))),\"\"))","v":""},{"$f":"IF(B68=\"\",\"\",IFERROR(IF(INDEX('Disagg.1A_import-export'!K$7:K$13,MATCH($A68,'Disagg.1A_import-export'!$B$7:$B$13,0))=\"\",\"\",INDEX('Disagg.1A_import-export'!K$7:K$13,MATCH($A68,'Disagg.1A_import-export'!$B$7:$B$13,0))),\"\"))","v":""},{"$f":"IF(B68=\"\",\"\",IFERROR(IF(INDEX('Disagg.1A_import-export'!L$7:L$13,MATCH($A68,'Disagg.1A_import-export'!$B$7:$B$13,0))=\"\",\"\",INDEX('Disagg.1A_import-export'!L$7:L$13,MATCH($A68,'Disagg.1A_import-export'!$B$7:$B$13,0))),\"\"))","v":""},{"$f":"IF(B68=\"\",\"\",IFERROR(IF(INDEX('Disagg.1A_import-export'!M$7:M$13,MATCH($A68,'Disagg.1A_import-export'!$B$7:$B$13,0))=\"\",\"\",INDEX('Disagg.1A_import-export'!M$7:M$13,MATCH($A68,'Disagg.1A_import-export'!$B$7:$B$13,0))),\"\"))","v":""},{"$f":"IF(B68=\"\",\"\",IFERROR(IF(INDEX('Disagg.1A_import-export'!N$7:N$13,MATCH($A68,'Disagg.1A_import-export'!$B$7:$B$13,0))=\"\",\"\",INDEX('Disagg.1A_import-export'!N$7:N$13,MATCH($A68,'Disagg.1A_import-export'!$B$7:$B$13,0))),\"\"))","v":""},{"$f":"IF(B68=\"\",\"\",IFERROR(IF(INDEX('Disagg.1A_import-export'!AC$7:AC$13,MATCH($A68,'Disagg.1A_import-export'!$B$7:$B$13,0))=\"\",\"\",INDEX('Disagg.1A_import-export'!AC$7:AC$13,MATCH($A68,'Disagg.1A_import-export'!$B$7:$B$13,0))),\"\"))","v":""}]
[{"$f":"IFERROR(IF(INDEX(ImpactDisaglist,MATCH(0,INDEX(COUNTIF(A$10:A68,ImpactDisaglist),0,0),0))<>\"\",INDEX(ImpactDisaglist,MATCH(0,INDEX(COUNTIF(A$10:A68,ImpactDisaglist),0,0),0)),INDEX(OutcomeDisaglist,MATCH(0,INDEX(COUNTIF(A$10:A68,OutcomeDisaglist),0,0),0))),\"\")","v":""},{"$f":"IFERROR(INDEX('Disagg.1A_import-export'!D$7:D$200,MATCH($A69,'Disagg.1A_import-export'!$B$7:$B$200,0)),\"\")","v":""},{"$f":"IF(B69=\"\",\"\",IFERROR(INDEX('Disagg.1A_import-export'!E$7:E$13,MATCH($A69,'Disagg.1A_import-export'!$B$7:$B$13,0)),\"\"))","v":""},{"$f":"IF(B69=\"\",\"\",IFERROR(IF(INDEX('Disagg.1A_import-export'!I$7:I$13,MATCH($A69,'Disagg.1A_import-export'!$B$7:$B$13,0))=\"\",\"\",INDEX('Disagg.1A_import-export'!I$7:I$13,MATCH($A69,'Disagg.1A_import-export'!$B$7:$B$13,0))),\"\"))","v":""},{"$f":"IF(B69=\"\",\"\",IFERROR(IF(INDEX('Disagg.1A_import-export'!J$7:J$13,MATCH($A69,'Disagg.1A_import-export'!$B$7:$B$13,0))=\"\",\"\",INDEX('Disagg.1A_import-export'!J$7:J$13,MATCH($A69,'Disagg.1A_import-export'!$B$7:$B$13,0))),\"\"))","v":""},{"$f":"IF(B69=\"\",\"\",IFERROR(IF(INDEX('Disagg.1A_import-export'!K$7:K$13,MATCH($A69,'Disagg.1A_import-export'!$B$7:$B$13,0))=\"\",\"\",INDEX('Disagg.1A_import-export'!K$7:K$13,MATCH($A69,'Disagg.1A_import-export'!$B$7:$B$13,0))),\"\"))","v":""},{"$f":"IF(B69=\"\",\"\",IFERROR(IF(INDEX('Disagg.1A_import-export'!L$7:L$13,MATCH($A69,'Disagg.1A_import-export'!$B$7:$B$13,0))=\"\",\"\",INDEX('Disagg.1A_import-export'!L$7:L$13,MATCH($A69,'Disagg.1A_import-export'!$B$7:$B$13,0))),\"\"))","v":""},{"$f":"IF(B69=\"\",\"\",IFERROR(IF(INDEX('Disagg.1A_import-export'!M$7:M$13,MATCH($A69,'Disagg.1A_import-export'!$B$7:$B$13,0))=\"\",\"\",INDEX('Disagg.1A_import-export'!M$7:M$13,MATCH($A69,'Disagg.1A_import-export'!$B$7:$B$13,0))),\"\"))","v":""},{"$f":"IF(B69=\"\",\"\",IFERROR(IF(INDEX('Disagg.1A_import-export'!N$7:N$13,MATCH($A69,'Disagg.1A_import-export'!$B$7:$B$13,0))=\"\",\"\",INDEX('Disagg.1A_import-export'!N$7:N$13,MATCH($A69,'Disagg.1A_import-export'!$B$7:$B$13,0))),\"\"))","v":""},{"$f":"IF(B69=\"\",\"\",IFERROR(IF(INDEX('Disagg.1A_import-export'!AC$7:AC$13,MATCH($A69,'Disagg.1A_import-export'!$B$7:$B$13,0))=\"\",\"\",INDEX('Disagg.1A_import-export'!AC$7:AC$13,MATCH($A69,'Disagg.1A_import-export'!$B$7:$B$13,0))),\"\"))","v":""}]
[{"$f":"IFERROR(IF(INDEX(ImpactDisaglist,MATCH(0,INDEX(COUNTIF(A$10:A69,ImpactDisaglist),0,0),0))<>\"\",INDEX(ImpactDisaglist,MATCH(0,INDEX(COUNTIF(A$10:A69,ImpactDisaglist),0,0),0)),INDEX(OutcomeDisaglist,MATCH(0,INDEX(COUNTIF(A$10:A69,OutcomeDisaglist),0,0),0))),\"\")","v":""},{"$f":"IFERROR(INDEX('Disagg.1A_import-export'!D$7:D$200,MATCH($A70,'Disagg.1A_import-export'!$B$7:$B$200,0)),\"\")","v":""},{"$f":"IF(B70=\"\",\"\",IFERROR(INDEX('Disagg.1A_import-export'!E$7:E$13,MATCH($A70,'Disagg.1A_import-export'!$B$7:$B$13,0)),\"\"))","v":""},{"$f":"IF(B70=\"\",\"\",IFERROR(IF(INDEX('Disagg.1A_import-export'!I$7:I$13,MATCH($A70,'Disagg.1A_import-export'!$B$7:$B$13,0))=\"\",\"\",INDEX('Disagg.1A_import-export'!I$7:I$13,MATCH($A70,'Disagg.1A_import-export'!$B$7:$B$13,0))),\"\"))","v":""},{"$f":"IF(B70=\"\",\"\",IFERROR(IF(INDEX('Disagg.1A_import-export'!J$7:J$13,MATCH($A70,'Disagg.1A_import-export'!$B$7:$B$13,0))=\"\",\"\",INDEX('Disagg.1A_import-export'!J$7:J$13,MATCH($A70,'Disagg.1A_import-export'!$B$7:$B$13,0))),\"\"))","v":""},{"$f":"IF(B70=\"\",\"\",IFERROR(IF(INDEX('Disagg.1A_import-export'!K$7:K$13,MATCH($A70,'Disagg.1A_import-export'!$B$7:$B$13,0))=\"\",\"\",INDEX('Disagg.1A_import-export'!K$7:K$13,MATCH($A70,'Disagg.1A_import-export'!$B$7:$B$13,0))),\"\"))","v":""},{"$f":"IF(B70=\"\",\"\",IFERROR(IF(INDEX('Disagg.1A_import-export'!L$7:L$13,MATCH($A70,'Disagg.1A_import-export'!$B$7:$B$13,0))=\"\",\"\",INDEX('Disagg.1A_import-export'!L$7:L$13,MATCH($A70,'Disagg.1A_import-export'!$B$7:$B$13,0))),\"\"))","v":""},{"$f":"IF(B70=\"\",\"\",IFERROR(IF(INDEX('Disagg.1A_import-export'!M$7:M$13,MATCH($A70,'Disagg.1A_import-export'!$B$7:$B$13,0))=\"\",\"\",INDEX('Disagg.1A_import-export'!M$7:M$13,MATCH($A70,'Disagg.1A_import-export'!$B$7:$B$13,0))),\"\"))","v":""},{"$f":"IF(B70=\"\",\"\",IFERROR(IF(INDEX('Disagg.1A_import-export'!N$7:N$13,MATCH($A70,'Disagg.1A_import-export'!$B$7:$B$13,0))=\"\",\"\",INDEX('Disagg.1A_import-export'!N$7:N$13,MATCH($A70,'Disagg.1A_import-export'!$B$7:$B$13,0))),\"\"))","v":""},{"$f":"IF(B70=\"\",\"\",IFERROR(IF(INDEX('Disagg.1A_import-export'!AC$7:AC$13,MATCH($A70,'Disagg.1A_import-export'!$B$7:$B$13,0))=\"\",\"\",INDEX('Disagg.1A_import-export'!AC$7:AC$13,MATCH($A70,'Disagg.1A_import-export'!$B$7:$B$13,0))),\"\"))","v":""}]
[{"$f":"IFERROR(IF(INDEX(ImpactDisaglist,MATCH(0,INDEX(COUNTIF(A$10:A70,ImpactDisaglist),0,0),0))<>\"\",INDEX(ImpactDisaglist,MATCH(0,INDEX(COUNTIF(A$10:A70,ImpactDisaglist),0,0),0)),INDEX(OutcomeDisaglist,MATCH(0,INDEX(COUNTIF(A$10:A70,OutcomeDisaglist),0,0),0))),\"\")","v":""},{"$f":"IFERROR(INDEX('Disagg.1A_import-export'!D$7:D$200,MATCH($A71,'Disagg.1A_import-export'!$B$7:$B$200,0)),\"\")","v":""},{"$f":"IF(B71=\"\",\"\",IFERROR(INDEX('Disagg.1A_import-export'!E$7:E$13,MATCH($A71,'Disagg.1A_import-export'!$B$7:$B$13,0)),\"\"))","v":""},{"$f":"IF(B71=\"\",\"\",IFERROR(IF(INDEX('Disagg.1A_import-export'!I$7:I$13,MATCH($A71,'Disagg.1A_import-export'!$B$7:$B$13,0))=\"\",\"\",INDEX('Disagg.1A_import-export'!I$7:I$13,MATCH($A71,'Disagg.1A_import-export'!$B$7:$B$13,0))),\"\"))","v":""},{"$f":"IF(B71=\"\",\"\",IFERROR(IF(INDEX('Disagg.1A_import-export'!J$7:J$13,MATCH($A71,'Disagg.1A_import-export'!$B$7:$B$13,0))=\"\",\"\",INDEX('Disagg.1A_import-export'!J$7:J$13,MATCH($A71,'Disagg.1A_import-export'!$B$7:$B$13,0))),\"\"))","v":""},{"$f":"IF(B71=\"\",\"\",IFERROR(IF(INDEX('Disagg.1A_import-export'!K$7:K$13,MATCH($A71,'Disagg.1A_import-export'!$B$7:$B$13,0))=\"\",\"\",INDEX('Disagg.1A_import-export'!K$7:K$13,MATCH($A71,'Disagg.1A_import-export'!$B$7:$B$13,0))),\"\"))","v":""},{"$f":"IF(B71=\"\",\"\",IFERROR(IF(INDEX('Disagg.1A_import-export'!L$7:L$13,MATCH($A71,'Disagg.1A_import-export'!$B$7:$B$13,0))=\"\",\"\",INDEX('Disagg.1A_import-export'!L$7:L$13,MATCH($A71,'Disagg.1A_import-export'!$B$7:$B$13,0))),\"\"))","v":""},{"$f":"IF(B71=\"\",\"\",IFERROR(IF(INDEX('Disagg.1A_import-export'!M$7:M$13,MATCH($A71,'Disagg.1A_import-export'!$B$7:$B$13,0))=\"\",\"\",INDEX('Disagg.1A_import-export'!M$7:M$13,MATCH($A71,'Disagg.1A_import-export'!$B$7:$B$13,0))),\"\"))","v":""},{"$f":"IF(B71=\"\",\"\",IFERROR(IF(INDEX('Disagg.1A_import-export'!N$7:N$13,MATCH($A71,'Disagg.1A_import-export'!$B$7:$B$13,0))=\"\",\"\",INDEX('Disagg.1A_import-export'!N$7:N$13,MATCH($A71,'Disagg.1A_import-export'!$B$7:$B$13,0))),\"\"))","v":""},{"$f":"IF(B71=\"\",\"\",IFERROR(IF(INDEX('Disagg.1A_import-export'!AC$7:AC$13,MATCH($A71,'Disagg.1A_import-export'!$B$7:$B$13,0))=\"\",\"\",INDEX('Disagg.1A_import-export'!AC$7:AC$13,MATCH($A71,'Disagg.1A_import-export'!$B$7:$B$13,0))),\"\"))","v":""}]
[{"$f":"IFERROR(IF(INDEX(ImpactDisaglist,MATCH(0,INDEX(COUNTIF(A$10:A71,ImpactDisaglist),0,0),0))<>\"\",INDEX(ImpactDisaglist,MATCH(0,INDEX(COUNTIF(A$10:A71,ImpactDisaglist),0,0),0)),INDEX(OutcomeDisaglist,MATCH(0,INDEX(COUNTIF(A$10:A71,OutcomeDisaglist),0,0),0))),\"\")","v":""},{"$f":"IFERROR(INDEX('Disagg.1A_import-export'!D$7:D$200,MATCH($A72,'Disagg.1A_import-export'!$B$7:$B$200,0)),\"\")","v":""},{"$f":"IF(B72=\"\",\"\",IFERROR(INDEX('Disagg.1A_import-export'!E$7:E$13,MATCH($A72,'Disagg.1A_import-export'!$B$7:$B$13,0)),\"\"))","v":""},{"$f":"IF(B72=\"\",\"\",IFERROR(IF(INDEX('Disagg.1A_import-export'!I$7:I$13,MATCH($A72,'Disagg.1A_import-export'!$B$7:$B$13,0))=\"\",\"\",INDEX('Disagg.1A_import-export'!I$7:I$13,MATCH($A72,'Disagg.1A_import-export'!$B$7:$B$13,0))),\"\"))","v":""},{"$f":"IF(B72=\"\",\"\",IFERROR(IF(INDEX('Disagg.1A_import-export'!J$7:J$13,MATCH($A72,'Disagg.1A_import-export'!$B$7:$B$13,0))=\"\",\"\",INDEX('Disagg.1A_import-export'!J$7:J$13,MATCH($A72,'Disagg.1A_import-export'!$B$7:$B$13,0))),\"\"))","v":""},{"$f":"IF(B72=\"\",\"\",IFERROR(IF(INDEX('Disagg.1A_import-export'!K$7:K$13,MATCH($A72,'Disagg.1A_import-export'!$B$7:$B$13,0))=\"\",\"\",INDEX('Disagg.1A_import-export'!K$7:K$13,MATCH($A72,'Disagg.1A_import-export'!$B$7:$B$13,0))),\"\"))","v":""},{"$f":"IF(B72=\"\",\"\",IFERROR(IF(INDEX('Disagg.1A_import-export'!L$7:L$13,MATCH($A72,'Disagg.1A_import-export'!$B$7:$B$13,0))=\"\",\"\",INDEX('Disagg.1A_import-export'!L$7:L$13,MATCH($A72,'Disagg.1A_import-export'!$B$7:$B$13,0))),\"\"))","v":""},{"$f":"IF(B72=\"\",\"\",IFERROR(IF(INDEX('Disagg.1A_import-export'!M$7:M$13,MATCH($A72,'Disagg.1A_import-export'!$B$7:$B$13,0))=\"\",\"\",INDEX('Disagg.1A_import-export'!M$7:M$13,MATCH($A72,'Disagg.1A_import-export'!$B$7:$B$13,0))),\"\"))","v":""},{"$f":"IF(B72=\"\",\"\",IFERROR(IF(INDEX('Disagg.1A_import-export'!N$7:N$13,MATCH($A72,'Disagg.1A_import-export'!$B$7:$B$13,0))=\"\",\"\",INDEX('Disagg.1A_import-export'!N$7:N$13,MATCH($A72,'Disagg.1A_import-export'!$B$7:$B$13,0))),\"\"))","v":""},{"$f":"IF(B72=\"\",\"\",IFERROR(IF(INDEX('Disagg.1A_import-export'!AC$7:AC$13,MATCH($A72,'Disagg.1A_import-export'!$B$7:$B$13,0))=\"\",\"\",INDEX('Disagg.1A_import-export'!AC$7:AC$13,MATCH($A72,'Disagg.1A_import-export'!$B$7:$B$13,0))),\"\"))","v":""}]
[{"$f":"IFERROR(IF(INDEX(ImpactDisaglist,MATCH(0,INDEX(COUNTIF(A$10:A72,ImpactDisaglist),0,0),0))<>\"\",INDEX(ImpactDisaglist,MATCH(0,INDEX(COUNTIF(A$10:A72,ImpactDisaglist),0,0),0)),INDEX(OutcomeDisaglist,MATCH(0,INDEX(COUNTIF(A$10:A72,OutcomeDisaglist),0,0),0))),\"\")","v":""},{"$f":"IFERROR(INDEX('Disagg.1A_import-export'!D$7:D$200,MATCH($A73,'Disagg.1A_import-export'!$B$7:$B$200,0)),\"\")","v":""},{"$f":"IF(B73=\"\",\"\",IFERROR(INDEX('Disagg.1A_import-export'!E$7:E$13,MATCH($A73,'Disagg.1A_import-export'!$B$7:$B$13,0)),\"\"))","v":""},{"$f":"IF(B73=\"\",\"\",IFERROR(IF(INDEX('Disagg.1A_import-export'!I$7:I$13,MATCH($A73,'Disagg.1A_import-export'!$B$7:$B$13,0))=\"\",\"\",INDEX('Disagg.1A_import-export'!I$7:I$13,MATCH($A73,'Disagg.1A_import-export'!$B$7:$B$13,0))),\"\"))","v":""},{"$f":"IF(B73=\"\",\"\",IFERROR(IF(INDEX('Disagg.1A_import-export'!J$7:J$13,MATCH($A73,'Disagg.1A_import-export'!$B$7:$B$13,0))=\"\",\"\",INDEX('Disagg.1A_import-export'!J$7:J$13,MATCH($A73,'Disagg.1A_import-export'!$B$7:$B$13,0))),\"\"))","v":""},{"$f":"IF(B73=\"\",\"\",IFERROR(IF(INDEX('Disagg.1A_import-export'!K$7:K$13,MATCH($A73,'Disagg.1A_import-export'!$B$7:$B$13,0))=\"\",\"\",INDEX('Disagg.1A_import-export'!K$7:K$13,MATCH($A73,'Disagg.1A_import-export'!$B$7:$B$13,0))),\"\"))","v":""},{"$f":"IF(B73=\"\",\"\",IFERROR(IF(INDEX('Disagg.1A_import-export'!L$7:L$13,MATCH($A73,'Disagg.1A_import-export'!$B$7:$B$13,0))=\"\",\"\",INDEX('Disagg.1A_import-export'!L$7:L$13,MATCH($A73,'Disagg.1A_import-export'!$B$7:$B$13,0))),\"\"))","v":""},{"$f":"IF(B73=\"\",\"\",IFERROR(IF(INDEX('Disagg.1A_import-export'!M$7:M$13,MATCH($A73,'Disagg.1A_import-export'!$B$7:$B$13,0))=\"\",\"\",INDEX('Disagg.1A_import-export'!M$7:M$13,MATCH($A73,'Disagg.1A_import-export'!$B$7:$B$13,0))),\"\"))","v":""},{"$f":"IF(B73=\"\",\"\",IFERROR(IF(INDEX('Disagg.1A_import-export'!N$7:N$13,MATCH($A73,'Disagg.1A_import-export'!$B$7:$B$13,0))=\"\",\"\",INDEX('Disagg.1A_import-export'!N$7:N$13,MATCH($A73,'Disagg.1A_import-export'!$B$7:$B$13,0))),\"\"))","v":""},{"$f":"IF(B73=\"\",\"\",IFERROR(IF(INDEX('Disagg.1A_import-export'!AC$7:AC$13,MATCH($A73,'Disagg.1A_import-export'!$B$7:$B$13,0))=\"\",\"\",INDEX('Disagg.1A_import-export'!AC$7:AC$13,MATCH($A73,'Disagg.1A_import-export'!$B$7:$B$13,0))),\"\"))","v":""}]
[{"$f":"IFERROR(IF(INDEX(ImpactDisaglist,MATCH(0,INDEX(COUNTIF(A$10:A73,ImpactDisaglist),0,0),0))<>\"\",INDEX(ImpactDisaglist,MATCH(0,INDEX(COUNTIF(A$10:A73,ImpactDisaglist),0,0),0)),INDEX(OutcomeDisaglist,MATCH(0,INDEX(COUNTIF(A$10:A73,OutcomeDisaglist),0,0),0))),\"\")","v":""},{"$f":"IFERROR(INDEX('Disagg.1A_import-export'!D$7:D$200,MATCH($A74,'Disagg.1A_import-export'!$B$7:$B$200,0)),\"\")","v":""},{"$f":"IF(B74=\"\",\"\",IFERROR(INDEX('Disagg.1A_import-export'!E$7:E$13,MATCH($A74,'Disagg.1A_import-export'!$B$7:$B$13,0)),\"\"))","v":""},{"$f":"IF(B74=\"\",\"\",IFERROR(IF(INDEX('Disagg.1A_import-export'!I$7:I$13,MATCH($A74,'Disagg.1A_import-export'!$B$7:$B$13,0))=\"\",\"\",INDEX('Disagg.1A_import-export'!I$7:I$13,MATCH($A74,'Disagg.1A_import-export'!$B$7:$B$13,0))),\"\"))","v":""},{"$f":"IF(B74=\"\",\"\",IFERROR(IF(INDEX('Disagg.1A_import-export'!J$7:J$13,MATCH($A74,'Disagg.1A_import-export'!$B$7:$B$13,0))=\"\",\"\",INDEX('Disagg.1A_import-export'!J$7:J$13,MATCH($A74,'Disagg.1A_import-export'!$B$7:$B$13,0))),\"\"))","v":""},{"$f":"IF(B74=\"\",\"\",IFERROR(IF(INDEX('Disagg.1A_import-export'!K$7:K$13,MATCH($A74,'Disagg.1A_import-export'!$B$7:$B$13,0))=\"\",\"\",INDEX('Disagg.1A_import-export'!K$7:K$13,MATCH($A74,'Disagg.1A_import-export'!$B$7:$B$13,0))),\"\"))","v":""},{"$f":"IF(B74=\"\",\"\",IFERROR(IF(INDEX('Disagg.1A_import-export'!L$7:L$13,MATCH($A74,'Disagg.1A_import-export'!$B$7:$B$13,0))=\"\",\"\",INDEX('Disagg.1A_import-export'!L$7:L$13,MATCH($A74,'Disagg.1A_import-export'!$B$7:$B$13,0))),\"\"))","v":""},{"$f":"IF(B74=\"\",\"\",IFERROR(IF(INDEX('Disagg.1A_import-export'!M$7:M$13,MATCH($A74,'Disagg.1A_import-export'!$B$7:$B$13,0))=\"\",\"\",INDEX('Disagg.1A_import-export'!M$7:M$13,MATCH($A74,'Disagg.1A_import-export'!$B$7:$B$13,0))),\"\"))","v":""},{"$f":"IF(B74=\"\",\"\",IFERROR(IF(INDEX('Disagg.1A_import-export'!N$7:N$13,MATCH($A74,'Disagg.1A_import-export'!$B$7:$B$13,0))=\"\",\"\",INDEX('Disagg.1A_import-export'!N$7:N$13,MATCH($A74,'Disagg.1A_import-export'!$B$7:$B$13,0))),\"\"))","v":""},{"$f":"IF(B74=\"\",\"\",IFERROR(IF(INDEX('Disagg.1A_import-export'!AC$7:AC$13,MATCH($A74,'Disagg.1A_import-export'!$B$7:$B$13,0))=\"\",\"\",INDEX('Disagg.1A_import-export'!AC$7:AC$13,MATCH($A74,'Disagg.1A_import-export'!$B$7:$B$13,0))),\"\"))","v":""}]
[{"$f":"IFERROR(IF(INDEX(ImpactDisaglist,MATCH(0,INDEX(COUNTIF(A$10:A74,ImpactDisaglist),0,0),0))<>\"\",INDEX(ImpactDisaglist,MATCH(0,INDEX(COUNTIF(A$10:A74,ImpactDisaglist),0,0),0)),INDEX(OutcomeDisaglist,MATCH(0,INDEX(COUNTIF(A$10:A74,OutcomeDisaglist),0,0),0))),\"\")","v":""},{"$f":"IFERROR(INDEX('Disagg.1A_import-export'!D$7:D$200,MATCH($A75,'Disagg.1A_import-export'!$B$7:$B$200,0)),\"\")","v":""},{"$f":"IF(B75=\"\",\"\",IFERROR(INDEX('Disagg.1A_import-export'!E$7:E$13,MATCH($A75,'Disagg.1A_import-export'!$B$7:$B$13,0)),\"\"))","v":""},{"$f":"IF(B75=\"\",\"\",IFERROR(IF(INDEX('Disagg.1A_import-export'!I$7:I$13,MATCH($A75,'Disagg.1A_import-export'!$B$7:$B$13,0))=\"\",\"\",INDEX('Disagg.1A_import-export'!I$7:I$13,MATCH($A75,'Disagg.1A_import-export'!$B$7:$B$13,0))),\"\"))","v":""},{"$f":"IF(B75=\"\",\"\",IFERROR(IF(INDEX('Disagg.1A_import-export'!J$7:J$13,MATCH($A75,'Disagg.1A_import-export'!$B$7:$B$13,0))=\"\",\"\",INDEX('Disagg.1A_import-export'!J$7:J$13,MATCH($A75,'Disagg.1A_import-export'!$B$7:$B$13,0))),\"\"))","v":""},{"$f":"IF(B75=\"\",\"\",IFERROR(IF(INDEX('Disagg.1A_import-export'!K$7:K$13,MATCH($A75,'Disagg.1A_import-export'!$B$7:$B$13,0))=\"\",\"\",INDEX('Disagg.1A_import-export'!K$7:K$13,MATCH($A75,'Disagg.1A_import-export'!$B$7:$B$13,0))),\"\"))","v":""},{"$f":"IF(B75=\"\",\"\",IFERROR(IF(INDEX('Disagg.1A_import-export'!L$7:L$13,MATCH($A75,'Disagg.1A_import-export'!$B$7:$B$13,0))=\"\",\"\",INDEX('Disagg.1A_import-export'!L$7:L$13,MATCH($A75,'Disagg.1A_import-export'!$B$7:$B$13,0))),\"\"))","v":""},{"$f":"IF(B75=\"\",\"\",IFERROR(IF(INDEX('Disagg.1A_import-export'!M$7:M$13,MATCH($A75,'Disagg.1A_import-export'!$B$7:$B$13,0))=\"\",\"\",INDEX('Disagg.1A_import-export'!M$7:M$13,MATCH($A75,'Disagg.1A_import-export'!$B$7:$B$13,0))),\"\"))","v":""},{"$f":"IF(B75=\"\",\"\",IFERROR(IF(INDEX('Disagg.1A_import-export'!N$7:N$13,MATCH($A75,'Disagg.1A_import-export'!$B$7:$B$13,0))=\"\",\"\",INDEX('Disagg.1A_import-export'!N$7:N$13,MATCH($A75,'Disagg.1A_import-export'!$B$7:$B$13,0))),\"\"))","v":""},{"$f":"IF(B75=\"\",\"\",IFERROR(IF(INDEX('Disagg.1A_import-export'!AC$7:AC$13,MATCH($A75,'Disagg.1A_import-export'!$B$7:$B$13,0))=\"\",\"\",INDEX('Disagg.1A_import-export'!AC$7:AC$13,MATCH($A75,'Disagg.1A_import-export'!$B$7:$B$13,0))),\"\"))","v":""}]
[{"$f":"IFERROR(IF(INDEX(ImpactDisaglist,MATCH(0,INDEX(COUNTIF(A$10:A75,ImpactDisaglist),0,0),0))<>\"\",INDEX(ImpactDisaglist,MATCH(0,INDEX(COUNTIF(A$10:A75,ImpactDisaglist),0,0),0)),INDEX(OutcomeDisaglist,MATCH(0,INDEX(COUNTIF(A$10:A75,OutcomeDisaglist),0,0),0))),\"\")","v":""},{"$f":"IFERROR(INDEX('Disagg.1A_import-export'!D$7:D$200,MATCH($A76,'Disagg.1A_import-export'!$B$7:$B$200,0)),\"\")","v":""},{"$f":"IF(B76=\"\",\"\",IFERROR(INDEX('Disagg.1A_import-export'!E$7:E$13,MATCH($A76,'Disagg.1A_import-export'!$B$7:$B$13,0)),\"\"))","v":""},{"$f":"IF(B76=\"\",\"\",IFERROR(IF(INDEX('Disagg.1A_import-export'!I$7:I$13,MATCH($A76,'Disagg.1A_import-export'!$B$7:$B$13,0))=\"\",\"\",INDEX('Disagg.1A_import-export'!I$7:I$13,MATCH($A76,'Disagg.1A_import-export'!$B$7:$B$13,0))),\"\"))","v":""},{"$f":"IF(B76=\"\",\"\",IFERROR(IF(INDEX('Disagg.1A_import-export'!J$7:J$13,MATCH($A76,'Disagg.1A_import-export'!$B$7:$B$13,0))=\"\",\"\",INDEX('Disagg.1A_import-export'!J$7:J$13,MATCH($A76,'Disagg.1A_import-export'!$B$7:$B$13,0))),\"\"))","v":""},{"$f":"IF(B76=\"\",\"\",IFERROR(IF(INDEX('Disagg.1A_import-export'!K$7:K$13,MATCH($A76,'Disagg.1A_import-export'!$B$7:$B$13,0))=\"\",\"\",INDEX('Disagg.1A_import-export'!K$7:K$13,MATCH($A76,'Disagg.1A_import-export'!$B$7:$B$13,0))),\"\"))","v":""},{"$f":"IF(B76=\"\",\"\",IFERROR(IF(INDEX('Disagg.1A_import-export'!L$7:L$13,MATCH($A76,'Disagg.1A_import-export'!$B$7:$B$13,0))=\"\",\"\",INDEX('Disagg.1A_import-export'!L$7:L$13,MATCH($A76,'Disagg.1A_import-export'!$B$7:$B$13,0))),\"\"))","v":""},{"$f":"IF(B76=\"\",\"\",IFERROR(IF(INDEX('Disagg.1A_import-export'!M$7:M$13,MATCH($A76,'Disagg.1A_import-export'!$B$7:$B$13,0))=\"\",\"\",INDEX('Disagg.1A_import-export'!M$7:M$13,MATCH($A76,'Disagg.1A_import-export'!$B$7:$B$13,0))),\"\"))","v":""},{"$f":"IF(B76=\"\",\"\",IFERROR(IF(INDEX('Disagg.1A_import-export'!N$7:N$13,MATCH($A76,'Disagg.1A_import-export'!$B$7:$B$13,0))=\"\",\"\",INDEX('Disagg.1A_import-export'!N$7:N$13,MATCH($A76,'Disagg.1A_import-export'!$B$7:$B$13,0))),\"\"))","v":""},{"$f":"IF(B76=\"\",\"\",IFERROR(IF(INDEX('Disagg.1A_import-export'!AC$7:AC$13,MATCH($A76,'Disagg.1A_import-export'!$B$7:$B$13,0))=\"\",\"\",INDEX('Disagg.1A_import-export'!AC$7:AC$13,MATCH($A76,'Disagg.1A_import-export'!$B$7:$B$13,0))),\"\"))","v":""}]
[{"$f":"IFERROR(IF(INDEX(ImpactDisaglist,MATCH(0,INDEX(COUNTIF(A$10:A76,ImpactDisaglist),0,0),0))<>\"\",INDEX(ImpactDisaglist,MATCH(0,INDEX(COUNTIF(A$10:A76,ImpactDisaglist),0,0),0)),INDEX(OutcomeDisaglist,MATCH(0,INDEX(COUNTIF(A$10:A76,OutcomeDisaglist),0,0),0))),\"\")","v":""},{"$f":"IFERROR(INDEX('Disagg.1A_import-export'!D$7:D$200,MATCH($A77,'Disagg.1A_import-export'!$B$7:$B$200,0)),\"\")","v":""},{"$f":"IF(B77=\"\",\"\",IFERROR(INDEX('Disagg.1A_import-export'!E$7:E$13,MATCH($A77,'Disagg.1A_import-export'!$B$7:$B$13,0)),\"\"))","v":""},{"$f":"IF(B77=\"\",\"\",IFERROR(IF(INDEX('Disagg.1A_import-export'!I$7:I$13,MATCH($A77,'Disagg.1A_import-export'!$B$7:$B$13,0))=\"\",\"\",INDEX('Disagg.1A_import-export'!I$7:I$13,MATCH($A77,'Disagg.1A_import-export'!$B$7:$B$13,0))),\"\"))","v":""},{"$f":"IF(B77=\"\",\"\",IFERROR(IF(INDEX('Disagg.1A_import-export'!J$7:J$13,MATCH($A77,'Disagg.1A_import-export'!$B$7:$B$13,0))=\"\",\"\",INDEX('Disagg.1A_import-export'!J$7:J$13,MATCH($A77,'Disagg.1A_import-export'!$B$7:$B$13,0))),\"\"))","v":""},{"$f":"IF(B77=\"\",\"\",IFERROR(IF(INDEX('Disagg.1A_import-export'!K$7:K$13,MATCH($A77,'Disagg.1A_import-export'!$B$7:$B$13,0))=\"\",\"\",INDEX('Disagg.1A_import-export'!K$7:K$13,MATCH($A77,'Disagg.1A_import-export'!$B$7:$B$13,0))),\"\"))","v":""},{"$f":"IF(B77=\"\",\"\",IFERROR(IF(INDEX('Disagg.1A_import-export'!L$7:L$13,MATCH($A77,'Disagg.1A_import-export'!$B$7:$B$13,0))=\"\",\"\",INDEX('Disagg.1A_import-export'!L$7:L$13,MATCH($A77,'Disagg.1A_import-export'!$B$7:$B$13,0))),\"\"))","v":""},{"$f":"IF(B77=\"\",\"\",IFERROR(IF(INDEX('Disagg.1A_import-export'!M$7:M$13,MATCH($A77,'Disagg.1A_import-export'!$B$7:$B$13,0))=\"\",\"\",INDEX('Disagg.1A_import-export'!M$7:M$13,MATCH($A77,'Disagg.1A_import-export'!$B$7:$B$13,0))),\"\"))","v":""},{"$f":"IF(B77=\"\",\"\",IFERROR(IF(INDEX('Disagg.1A_import-export'!N$7:N$13,MATCH($A77,'Disagg.1A_import-export'!$B$7:$B$13,0))=\"\",\"\",INDEX('Disagg.1A_import-export'!N$7:N$13,MATCH($A77,'Disagg.1A_import-export'!$B$7:$B$13,0))),\"\"))","v":""},{"$f":"IF(B77=\"\",\"\",IFERROR(IF(INDEX('Disagg.1A_import-export'!AC$7:AC$13,MATCH($A77,'Disagg.1A_import-export'!$B$7:$B$13,0))=\"\",\"\",INDEX('Disagg.1A_import-export'!AC$7:AC$13,MATCH($A77,'Disagg.1A_import-export'!$B$7:$B$13,0))),\"\"))","v":""}]
[{"$f":"IFERROR(IF(INDEX(ImpactDisaglist,MATCH(0,INDEX(COUNTIF(A$10:A77,ImpactDisaglist),0,0),0))<>\"\",INDEX(ImpactDisaglist,MATCH(0,INDEX(COUNTIF(A$10:A77,ImpactDisaglist),0,0),0)),INDEX(OutcomeDisaglist,MATCH(0,INDEX(COUNTIF(A$10:A77,OutcomeDisaglist),0,0),0))),\"\")","v":""},{"$f":"IFERROR(INDEX('Disagg.1A_import-export'!D$7:D$200,MATCH($A78,'Disagg.1A_import-export'!$B$7:$B$200,0)),\"\")","v":""},{"$f":"IF(B78=\"\",\"\",IFERROR(INDEX('Disagg.1A_import-export'!E$7:E$13,MATCH($A78,'Disagg.1A_import-export'!$B$7:$B$13,0)),\"\"))","v":""},{"$f":"IF(B78=\"\",\"\",IFERROR(IF(INDEX('Disagg.1A_import-export'!I$7:I$13,MATCH($A78,'Disagg.1A_import-export'!$B$7:$B$13,0))=\"\",\"\",INDEX('Disagg.1A_import-export'!I$7:I$13,MATCH($A78,'Disagg.1A_import-export'!$B$7:$B$13,0))),\"\"))","v":""},{"$f":"IF(B78=\"\",\"\",IFERROR(IF(INDEX('Disagg.1A_import-export'!J$7:J$13,MATCH($A78,'Disagg.1A_import-export'!$B$7:$B$13,0))=\"\",\"\",INDEX('Disagg.1A_import-export'!J$7:J$13,MATCH($A78,'Disagg.1A_import-export'!$B$7:$B$13,0))),\"\"))","v":""},{"$f":"IF(B78=\"\",\"\",IFERROR(IF(INDEX('Disagg.1A_import-export'!K$7:K$13,MATCH($A78,'Disagg.1A_import-export'!$B$7:$B$13,0))=\"\",\"\",INDEX('Disagg.1A_import-export'!K$7:K$13,MATCH($A78,'Disagg.1A_import-export'!$B$7:$B$13,0))),\"\"))","v":""},{"$f":"IF(B78=\"\",\"\",IFERROR(IF(INDEX('Disagg.1A_import-export'!L$7:L$13,MATCH($A78,'Disagg.1A_import-export'!$B$7:$B$13,0))=\"\",\"\",INDEX('Disagg.1A_import-export'!L$7:L$13,MATCH($A78,'Disagg.1A_import-export'!$B$7:$B$13,0))),\"\"))","v":""},{"$f":"IF(B78=\"\",\"\",IFERROR(IF(INDEX('Disagg.1A_import-export'!M$7:M$13,MATCH($A78,'Disagg.1A_import-export'!$B$7:$B$13,0))=\"\",\"\",INDEX('Disagg.1A_import-export'!M$7:M$13,MATCH($A78,'Disagg.1A_import-export'!$B$7:$B$13,0))),\"\"))","v":""},{"$f":"IF(B78=\"\",\"\",IFERROR(IF(INDEX('Disagg.1A_import-export'!N$7:N$13,MATCH($A78,'Disagg.1A_import-export'!$B$7:$B$13,0))=\"\",\"\",INDEX('Disagg.1A_import-export'!N$7:N$13,MATCH($A78,'Disagg.1A_import-export'!$B$7:$B$13,0))),\"\"))","v":""},{"$f":"IF(B78=\"\",\"\",IFERROR(IF(INDEX('Disagg.1A_import-export'!AC$7:AC$13,MATCH($A78,'Disagg.1A_import-export'!$B$7:$B$13,0))=\"\",\"\",INDEX('Disagg.1A_import-export'!AC$7:AC$13,MATCH($A78,'Disagg.1A_import-export'!$B$7:$B$13,0))),\"\"))","v":""}]
[{"$f":"IFERROR(IF(INDEX(ImpactDisaglist,MATCH(0,INDEX(COUNTIF(A$10:A78,ImpactDisaglist),0,0),0))<>\"\",INDEX(ImpactDisaglist,MATCH(0,INDEX(COUNTIF(A$10:A78,ImpactDisaglist),0,0),0)),INDEX(OutcomeDisaglist,MATCH(0,INDEX(COUNTIF(A$10:A78,OutcomeDisaglist),0,0),0))),\"\")","v":""},{"$f":"IFERROR(INDEX('Disagg.1A_import-export'!D$7:D$200,MATCH($A79,'Disagg.1A_import-export'!$B$7:$B$200,0)),\"\")","v":""},{"$f":"IF(B79=\"\",\"\",IFERROR(INDEX('Disagg.1A_import-export'!E$7:E$13,MATCH($A79,'Disagg.1A_import-export'!$B$7:$B$13,0)),\"\"))","v":""},{"$f":"IF(B79=\"\",\"\",IFERROR(IF(INDEX('Disagg.1A_import-export'!I$7:I$13,MATCH($A79,'Disagg.1A_import-export'!$B$7:$B$13,0))=\"\",\"\",INDEX('Disagg.1A_import-export'!I$7:I$13,MATCH($A79,'Disagg.1A_import-export'!$B$7:$B$13,0))),\"\"))","v":""},{"$f":"IF(B79=\"\",\"\",IFERROR(IF(INDEX('Disagg.1A_import-export'!J$7:J$13,MATCH($A79,'Disagg.1A_import-export'!$B$7:$B$13,0))=\"\",\"\",INDEX('Disagg.1A_import-export'!J$7:J$13,MATCH($A79,'Disagg.1A_import-export'!$B$7:$B$13,0))),\"\"))","v":""},{"$f":"IF(B79=\"\",\"\",IFERROR(IF(INDEX('Disagg.1A_import-export'!K$7:K$13,MATCH($A79,'Disagg.1A_import-export'!$B$7:$B$13,0))=\"\",\"\",INDEX('Disagg.1A_import-export'!K$7:K$13,MATCH($A79,'Disagg.1A_import-export'!$B$7:$B$13,0))),\"\"))","v":""},{"$f":"IF(B79=\"\",\"\",IFERROR(IF(INDEX('Disagg.1A_import-export'!L$7:L$13,MATCH($A79,'Disagg.1A_import-export'!$B$7:$B$13,0))=\"\",\"\",INDEX('Disagg.1A_import-export'!L$7:L$13,MATCH($A79,'Disagg.1A_import-export'!$B$7:$B$13,0))),\"\"))","v":""},{"$f":"IF(B79=\"\",\"\",IFERROR(IF(INDEX('Disagg.1A_import-export'!M$7:M$13,MATCH($A79,'Disagg.1A_import-export'!$B$7:$B$13,0))=\"\",\"\",INDEX('Disagg.1A_import-export'!M$7:M$13,MATCH($A79,'Disagg.1A_import-export'!$B$7:$B$13,0))),\"\"))","v":""},{"$f":"IF(B79=\"\",\"\",IFERROR(IF(INDEX('Disagg.1A_import-export'!N$7:N$13,MATCH($A79,'Disagg.1A_import-export'!$B$7:$B$13,0))=\"\",\"\",INDEX('Disagg.1A_import-export'!N$7:N$13,MATCH($A79,'Disagg.1A_import-export'!$B$7:$B$13,0))),\"\"))","v":""},{"$f":"IF(B79=\"\",\"\",IFERROR(IF(INDEX('Disagg.1A_import-export'!AC$7:AC$13,MATCH($A79,'Disagg.1A_import-export'!$B$7:$B$13,0))=\"\",\"\",INDEX('Disagg.1A_import-export'!AC$7:AC$13,MATCH($A79,'Disagg.1A_import-export'!$B$7:$B$13,0))),\"\"))","v":""}]
[{"$f":"IFERROR(IF(INDEX(ImpactDisaglist,MATCH(0,INDEX(COUNTIF(A$10:A79,ImpactDisaglist),0,0),0))<>\"\",INDEX(ImpactDisaglist,MATCH(0,INDEX(COUNTIF(A$10:A79,ImpactDisaglist),0,0),0)),INDEX(OutcomeDisaglist,MATCH(0,INDEX(COUNTIF(A$10:A79,OutcomeDisaglist),0,0),0))),\"\")","v":""},{"$f":"IFERROR(INDEX('Disagg.1A_import-export'!D$7:D$200,MATCH($A80,'Disagg.1A_import-export'!$B$7:$B$200,0)),\"\")","v":""},{"$f":"IF(B80=\"\",\"\",IFERROR(INDEX('Disagg.1A_import-export'!E$7:E$13,MATCH($A80,'Disagg.1A_import-export'!$B$7:$B$13,0)),\"\"))","v":""},{"$f":"IF(B80=\"\",\"\",IFERROR(IF(INDEX('Disagg.1A_import-export'!I$7:I$13,MATCH($A80,'Disagg.1A_import-export'!$B$7:$B$13,0))=\"\",\"\",INDEX('Disagg.1A_import-export'!I$7:I$13,MATCH($A80,'Disagg.1A_import-export'!$B$7:$B$13,0))),\"\"))","v":""},{"$f":"IF(B80=\"\",\"\",IFERROR(IF(INDEX('Disagg.1A_import-export'!J$7:J$13,MATCH($A80,'Disagg.1A_import-export'!$B$7:$B$13,0))=\"\",\"\",INDEX('Disagg.1A_import-export'!J$7:J$13,MATCH($A80,'Disagg.1A_import-export'!$B$7:$B$13,0))),\"\"))","v":""},{"$f":"IF(B80=\"\",\"\",IFERROR(IF(INDEX('Disagg.1A_import-export'!K$7:K$13,MATCH($A80,'Disagg.1A_import-export'!$B$7:$B$13,0))=\"\",\"\",INDEX('Disagg.1A_import-export'!K$7:K$13,MATCH($A80,'Disagg.1A_import-export'!$B$7:$B$13,0))),\"\"))","v":""},{"$f":"IF(B80=\"\",\"\",IFERROR(IF(INDEX('Disagg.1A_import-export'!L$7:L$13,MATCH($A80,'Disagg.1A_import-export'!$B$7:$B$13,0))=\"\",\"\",INDEX('Disagg.1A_import-export'!L$7:L$13,MATCH($A80,'Disagg.1A_import-export'!$B$7:$B$13,0))),\"\"))","v":""},{"$f":"IF(B80=\"\",\"\",IFERROR(IF(INDEX('Disagg.1A_import-export'!M$7:M$13,MATCH($A80,'Disagg.1A_import-export'!$B$7:$B$13,0))=\"\",\"\",INDEX('Disagg.1A_import-export'!M$7:M$13,MATCH($A80,'Disagg.1A_import-export'!$B$7:$B$13,0))),\"\"))","v":""},{"$f":"IF(B80=\"\",\"\",IFERROR(IF(INDEX('Disagg.1A_import-export'!N$7:N$13,MATCH($A80,'Disagg.1A_import-export'!$B$7:$B$13,0))=\"\",\"\",INDEX('Disagg.1A_import-export'!N$7:N$13,MATCH($A80,'Disagg.1A_import-export'!$B$7:$B$13,0))),\"\"))","v":""},{"$f":"IF(B80=\"\",\"\",IFERROR(IF(INDEX('Disagg.1A_import-export'!AC$7:AC$13,MATCH($A80,'Disagg.1A_import-export'!$B$7:$B$13,0))=\"\",\"\",INDEX('Disagg.1A_import-export'!AC$7:AC$13,MATCH($A80,'Disagg.1A_import-export'!$B$7:$B$13,0))),\"\"))","v":""}]
[{"$f":"IFERROR(IF(INDEX(ImpactDisaglist,MATCH(0,INDEX(COUNTIF(A$10:A80,ImpactDisaglist),0,0),0))<>\"\",INDEX(ImpactDisaglist,MATCH(0,INDEX(COUNTIF(A$10:A80,ImpactDisaglist),0,0),0)),INDEX(OutcomeDisaglist,MATCH(0,INDEX(COUNTIF(A$10:A80,OutcomeDisaglist),0,0),0))),\"\")","v":""},{"$f":"IFERROR(INDEX('Disagg.1A_import-export'!D$7:D$200,MATCH($A81,'Disagg.1A_import-export'!$B$7:$B$200,0)),\"\")","v":""},{"$f":"IF(B81=\"\",\"\",IFERROR(INDEX('Disagg.1A_import-export'!E$7:E$13,MATCH($A81,'Disagg.1A_import-export'!$B$7:$B$13,0)),\"\"))","v":""},{"$f":"IF(B81=\"\",\"\",IFERROR(IF(INDEX('Disagg.1A_import-export'!I$7:I$13,MATCH($A81,'Disagg.1A_import-export'!$B$7:$B$13,0))=\"\",\"\",INDEX('Disagg.1A_import-export'!I$7:I$13,MATCH($A81,'Disagg.1A_import-export'!$B$7:$B$13,0))),\"\"))","v":""},{"$f":"IF(B81=\"\",\"\",IFERROR(IF(INDEX('Disagg.1A_import-export'!J$7:J$13,MATCH($A81,'Disagg.1A_import-export'!$B$7:$B$13,0))=\"\",\"\",INDEX('Disagg.1A_import-export'!J$7:J$13,MATCH($A81,'Disagg.1A_import-export'!$B$7:$B$13,0))),\"\"))","v":""},{"$f":"IF(B81=\"\",\"\",IFERROR(IF(INDEX('Disagg.1A_import-export'!K$7:K$13,MATCH($A81,'Disagg.1A_import-export'!$B$7:$B$13,0))=\"\",\"\",INDEX('Disagg.1A_import-export'!K$7:K$13,MATCH($A81,'Disagg.1A_import-export'!$B$7:$B$13,0))),\"\"))","v":""},{"$f":"IF(B81=\"\",\"\",IFERROR(IF(INDEX('Disagg.1A_import-export'!L$7:L$13,MATCH($A81,'Disagg.1A_import-export'!$B$7:$B$13,0))=\"\",\"\",INDEX('Disagg.1A_import-export'!L$7:L$13,MATCH($A81,'Disagg.1A_import-export'!$B$7:$B$13,0))),\"\"))","v":""},{"$f":"IF(B81=\"\",\"\",IFERROR(IF(INDEX('Disagg.1A_import-export'!M$7:M$13,MATCH($A81,'Disagg.1A_import-export'!$B$7:$B$13,0))=\"\",\"\",INDEX('Disagg.1A_import-export'!M$7:M$13,MATCH($A81,'Disagg.1A_import-export'!$B$7:$B$13,0))),\"\"))","v":""},{"$f":"IF(B81=\"\",\"\",IFERROR(IF(INDEX('Disagg.1A_import-export'!N$7:N$13,MATCH($A81,'Disagg.1A_import-export'!$B$7:$B$13,0))=\"\",\"\",INDEX('Disagg.1A_import-export'!N$7:N$13,MATCH($A81,'Disagg.1A_import-export'!$B$7:$B$13,0))),\"\"))","v":""},{"$f":"IF(B81=\"\",\"\",IFERROR(IF(INDEX('Disagg.1A_import-export'!AC$7:AC$13,MATCH($A81,'Disagg.1A_import-export'!$B$7:$B$13,0))=\"\",\"\",INDEX('Disagg.1A_import-export'!AC$7:AC$13,MATCH($A81,'Disagg.1A_import-export'!$B$7:$B$13,0))),\"\"))","v":""}]
[{"$f":"IFERROR(IF(INDEX(ImpactDisaglist,MATCH(0,INDEX(COUNTIF(A$10:A81,ImpactDisaglist),0,0),0))<>\"\",INDEX(ImpactDisaglist,MATCH(0,INDEX(COUNTIF(A$10:A81,ImpactDisaglist),0,0),0)),INDEX(OutcomeDisaglist,MATCH(0,INDEX(COUNTIF(A$10:A81,OutcomeDisaglist),0,0),0))),\"\")","v":""},{"$f":"IFERROR(INDEX('Disagg.1A_import-export'!D$7:D$200,MATCH($A82,'Disagg.1A_import-export'!$B$7:$B$200,0)),\"\")","v":""},{"$f":"IF(B82=\"\",\"\",IFERROR(INDEX('Disagg.1A_import-export'!E$7:E$13,MATCH($A82,'Disagg.1A_import-export'!$B$7:$B$13,0)),\"\"))","v":""},{"$f":"IF(B82=\"\",\"\",IFERROR(IF(INDEX('Disagg.1A_import-export'!I$7:I$13,MATCH($A82,'Disagg.1A_import-export'!$B$7:$B$13,0))=\"\",\"\",INDEX('Disagg.1A_import-export'!I$7:I$13,MATCH($A82,'Disagg.1A_import-export'!$B$7:$B$13,0))),\"\"))","v":""},{"$f":"IF(B82=\"\",\"\",IFERROR(IF(INDEX('Disagg.1A_import-export'!J$7:J$13,MATCH($A82,'Disagg.1A_import-export'!$B$7:$B$13,0))=\"\",\"\",INDEX('Disagg.1A_import-export'!J$7:J$13,MATCH($A82,'Disagg.1A_import-export'!$B$7:$B$13,0))),\"\"))","v":""},{"$f":"IF(B82=\"\",\"\",IFERROR(IF(INDEX('Disagg.1A_import-export'!K$7:K$13,MATCH($A82,'Disagg.1A_import-export'!$B$7:$B$13,0))=\"\",\"\",INDEX('Disagg.1A_import-export'!K$7:K$13,MATCH($A82,'Disagg.1A_import-export'!$B$7:$B$13,0))),\"\"))","v":""},{"$f":"IF(B82=\"\",\"\",IFERROR(IF(INDEX('Disagg.1A_import-export'!L$7:L$13,MATCH($A82,'Disagg.1A_import-export'!$B$7:$B$13,0))=\"\",\"\",INDEX('Disagg.1A_import-export'!L$7:L$13,MATCH($A82,'Disagg.1A_import-export'!$B$7:$B$13,0))),\"\"))","v":""},{"$f":"IF(B82=\"\",\"\",IFERROR(IF(INDEX('Disagg.1A_import-export'!M$7:M$13,MATCH($A82,'Disagg.1A_import-export'!$B$7:$B$13,0))=\"\",\"\",INDEX('Disagg.1A_import-export'!M$7:M$13,MATCH($A82,'Disagg.1A_import-export'!$B$7:$B$13,0))),\"\"))","v":""},{"$f":"IF(B82=\"\",\"\",IFERROR(IF(INDEX('Disagg.1A_import-export'!N$7:N$13,MATCH($A82,'Disagg.1A_import-export'!$B$7:$B$13,0))=\"\",\"\",INDEX('Disagg.1A_import-export'!N$7:N$13,MATCH($A82,'Disagg.1A_import-export'!$B$7:$B$13,0))),\"\"))","v":""},{"$f":"IF(B82=\"\",\"\",IFERROR(IF(INDEX('Disagg.1A_import-export'!AC$7:AC$13,MATCH($A82,'Disagg.1A_import-export'!$B$7:$B$13,0))=\"\",\"\",INDEX('Disagg.1A_import-export'!AC$7:AC$13,MATCH($A82,'Disagg.1A_import-export'!$B$7:$B$13,0))),\"\"))","v":""}]
[{"$f":"IFERROR(IF(INDEX(ImpactDisaglist,MATCH(0,INDEX(COUNTIF(A$10:A82,ImpactDisaglist),0,0),0))<>\"\",INDEX(ImpactDisaglist,MATCH(0,INDEX(COUNTIF(A$10:A82,ImpactDisaglist),0,0),0)),INDEX(OutcomeDisaglist,MATCH(0,INDEX(COUNTIF(A$10:A82,OutcomeDisaglist),0,0),0))),\"\")","v":""},{"$f":"IFERROR(INDEX('Disagg.1A_import-export'!D$7:D$200,MATCH($A83,'Disagg.1A_import-export'!$B$7:$B$200,0)),\"\")","v":""},{"$f":"IF(B83=\"\",\"\",IFERROR(INDEX('Disagg.1A_import-export'!E$7:E$13,MATCH($A83,'Disagg.1A_import-export'!$B$7:$B$13,0)),\"\"))","v":""},{"$f":"IF(B83=\"\",\"\",IFERROR(IF(INDEX('Disagg.1A_import-export'!I$7:I$13,MATCH($A83,'Disagg.1A_import-export'!$B$7:$B$13,0))=\"\",\"\",INDEX('Disagg.1A_import-export'!I$7:I$13,MATCH($A83,'Disagg.1A_import-export'!$B$7:$B$13,0))),\"\"))","v":""},{"$f":"IF(B83=\"\",\"\",IFERROR(IF(INDEX('Disagg.1A_import-export'!J$7:J$13,MATCH($A83,'Disagg.1A_import-export'!$B$7:$B$13,0))=\"\",\"\",INDEX('Disagg.1A_import-export'!J$7:J$13,MATCH($A83,'Disagg.1A_import-export'!$B$7:$B$13,0))),\"\"))","v":""},{"$f":"IF(B83=\"\",\"\",IFERROR(IF(INDEX('Disagg.1A_import-export'!K$7:K$13,MATCH($A83,'Disagg.1A_import-export'!$B$7:$B$13,0))=\"\",\"\",INDEX('Disagg.1A_import-export'!K$7:K$13,MATCH($A83,'Disagg.1A_import-export'!$B$7:$B$13,0))),\"\"))","v":""},{"$f":"IF(B83=\"\",\"\",IFERROR(IF(INDEX('Disagg.1A_import-export'!L$7:L$13,MATCH($A83,'Disagg.1A_import-export'!$B$7:$B$13,0))=\"\",\"\",INDEX('Disagg.1A_import-export'!L$7:L$13,MATCH($A83,'Disagg.1A_import-export'!$B$7:$B$13,0))),\"\"))","v":""},{"$f":"IF(B83=\"\",\"\",IFERROR(IF(INDEX('Disagg.1A_import-export'!M$7:M$13,MATCH($A83,'Disagg.1A_import-export'!$B$7:$B$13,0))=\"\",\"\",INDEX('Disagg.1A_import-export'!M$7:M$13,MATCH($A83,'Disagg.1A_import-export'!$B$7:$B$13,0))),\"\"))","v":""},{"$f":"IF(B83=\"\",\"\",IFERROR(IF(INDEX('Disagg.1A_import-export'!N$7:N$13,MATCH($A83,'Disagg.1A_import-export'!$B$7:$B$13,0))=\"\",\"\",INDEX('Disagg.1A_import-export'!N$7:N$13,MATCH($A83,'Disagg.1A_import-export'!$B$7:$B$13,0))),\"\"))","v":""},{"$f":"IF(B83=\"\",\"\",IFERROR(IF(INDEX('Disagg.1A_import-export'!AC$7:AC$13,MATCH($A83,'Disagg.1A_import-export'!$B$7:$B$13,0))=\"\",\"\",INDEX('Disagg.1A_import-export'!AC$7:AC$13,MATCH($A83,'Disagg.1A_import-export'!$B$7:$B$13,0))),\"\"))","v":""}]
[{"$f":"IFERROR(IF(INDEX(ImpactDisaglist,MATCH(0,INDEX(COUNTIF(A$10:A83,ImpactDisaglist),0,0),0))<>\"\",INDEX(ImpactDisaglist,MATCH(0,INDEX(COUNTIF(A$10:A83,ImpactDisaglist),0,0),0)),INDEX(OutcomeDisaglist,MATCH(0,INDEX(COUNTIF(A$10:A83,OutcomeDisaglist),0,0),0))),\"\")","v":""},{"$f":"IFERROR(INDEX('Disagg.1A_import-export'!D$7:D$200,MATCH($A84,'Disagg.1A_import-export'!$B$7:$B$200,0)),\"\")","v":""},{"$f":"IF(B84=\"\",\"\",IFERROR(INDEX('Disagg.1A_import-export'!E$7:E$13,MATCH($A84,'Disagg.1A_import-export'!$B$7:$B$13,0)),\"\"))","v":""},{"$f":"IF(B84=\"\",\"\",IFERROR(IF(INDEX('Disagg.1A_import-export'!I$7:I$13,MATCH($A84,'Disagg.1A_import-export'!$B$7:$B$13,0))=\"\",\"\",INDEX('Disagg.1A_import-export'!I$7:I$13,MATCH($A84,'Disagg.1A_import-export'!$B$7:$B$13,0))),\"\"))","v":""},{"$f":"IF(B84=\"\",\"\",IFERROR(IF(INDEX('Disagg.1A_import-export'!J$7:J$13,MATCH($A84,'Disagg.1A_import-export'!$B$7:$B$13,0))=\"\",\"\",INDEX('Disagg.1A_import-export'!J$7:J$13,MATCH($A84,'Disagg.1A_import-export'!$B$7:$B$13,0))),\"\"))","v":""},{"$f":"IF(B84=\"\",\"\",IFERROR(IF(INDEX('Disagg.1A_import-export'!K$7:K$13,MATCH($A84,'Disagg.1A_import-export'!$B$7:$B$13,0))=\"\",\"\",INDEX('Disagg.1A_import-export'!K$7:K$13,MATCH($A84,'Disagg.1A_import-export'!$B$7:$B$13,0))),\"\"))","v":""},{"$f":"IF(B84=\"\",\"\",IFERROR(IF(INDEX('Disagg.1A_import-export'!L$7:L$13,MATCH($A84,'Disagg.1A_import-export'!$B$7:$B$13,0))=\"\",\"\",INDEX('Disagg.1A_import-export'!L$7:L$13,MATCH($A84,'Disagg.1A_import-export'!$B$7:$B$13,0))),\"\"))","v":""},{"$f":"IF(B84=\"\",\"\",IFERROR(IF(INDEX('Disagg.1A_import-export'!M$7:M$13,MATCH($A84,'Disagg.1A_import-export'!$B$7:$B$13,0))=\"\",\"\",INDEX('Disagg.1A_import-export'!M$7:M$13,MATCH($A84,'Disagg.1A_import-export'!$B$7:$B$13,0))),\"\"))","v":""},{"$f":"IF(B84=\"\",\"\",IFERROR(IF(INDEX('Disagg.1A_import-export'!N$7:N$13,MATCH($A84,'Disagg.1A_import-export'!$B$7:$B$13,0))=\"\",\"\",INDEX('Disagg.1A_import-export'!N$7:N$13,MATCH($A84,'Disagg.1A_import-export'!$B$7:$B$13,0))),\"\"))","v":""},{"$f":"IF(B84=\"\",\"\",IFERROR(IF(INDEX('Disagg.1A_import-export'!AC$7:AC$13,MATCH($A84,'Disagg.1A_import-export'!$B$7:$B$13,0))=\"\",\"\",INDEX('Disagg.1A_import-export'!AC$7:AC$13,MATCH($A84,'Disagg.1A_import-export'!$B$7:$B$13,0))),\"\"))","v":""}]
[{"$f":"IFERROR(IF(INDEX(ImpactDisaglist,MATCH(0,INDEX(COUNTIF(A$10:A84,ImpactDisaglist),0,0),0))<>\"\",INDEX(ImpactDisaglist,MATCH(0,INDEX(COUNTIF(A$10:A84,ImpactDisaglist),0,0),0)),INDEX(OutcomeDisaglist,MATCH(0,INDEX(COUNTIF(A$10:A84,OutcomeDisaglist),0,0),0))),\"\")","v":""},{"$f":"IFERROR(INDEX('Disagg.1A_import-export'!D$7:D$200,MATCH($A85,'Disagg.1A_import-export'!$B$7:$B$200,0)),\"\")","v":""},{"$f":"IF(B85=\"\",\"\",IFERROR(INDEX('Disagg.1A_import-export'!E$7:E$13,MATCH($A85,'Disagg.1A_import-export'!$B$7:$B$13,0)),\"\"))","v":""},{"$f":"IF(B85=\"\",\"\",IFERROR(IF(INDEX('Disagg.1A_import-export'!I$7:I$13,MATCH($A85,'Disagg.1A_import-export'!$B$7:$B$13,0))=\"\",\"\",INDEX('Disagg.1A_import-export'!I$7:I$13,MATCH($A85,'Disagg.1A_import-export'!$B$7:$B$13,0))),\"\"))","v":""},{"$f":"IF(B85=\"\",\"\",IFERROR(IF(INDEX('Disagg.1A_import-export'!J$7:J$13,MATCH($A85,'Disagg.1A_import-export'!$B$7:$B$13,0))=\"\",\"\",INDEX('Disagg.1A_import-export'!J$7:J$13,MATCH($A85,'Disagg.1A_import-export'!$B$7:$B$13,0))),\"\"))","v":""},{"$f":"IF(B85=\"\",\"\",IFERROR(IF(INDEX('Disagg.1A_import-export'!K$7:K$13,MATCH($A85,'Disagg.1A_import-export'!$B$7:$B$13,0))=\"\",\"\",INDEX('Disagg.1A_import-export'!K$7:K$13,MATCH($A85,'Disagg.1A_import-export'!$B$7:$B$13,0))),\"\"))","v":""},{"$f":"IF(B85=\"\",\"\",IFERROR(IF(INDEX('Disagg.1A_import-export'!L$7:L$13,MATCH($A85,'Disagg.1A_import-export'!$B$7:$B$13,0))=\"\",\"\",INDEX('Disagg.1A_import-export'!L$7:L$13,MATCH($A85,'Disagg.1A_import-export'!$B$7:$B$13,0))),\"\"))","v":""},{"$f":"IF(B85=\"\",\"\",IFERROR(IF(INDEX('Disagg.1A_import-export'!M$7:M$13,MATCH($A85,'Disagg.1A_import-export'!$B$7:$B$13,0))=\"\",\"\",INDEX('Disagg.1A_import-export'!M$7:M$13,MATCH($A85,'Disagg.1A_import-export'!$B$7:$B$13,0))),\"\"))","v":""},{"$f":"IF(B85=\"\",\"\",IFERROR(IF(INDEX('Disagg.1A_import-export'!N$7:N$13,MATCH($A85,'Disagg.1A_import-export'!$B$7:$B$13,0))=\"\",\"\",INDEX('Disagg.1A_import-export'!N$7:N$13,MATCH($A85,'Disagg.1A_import-export'!$B$7:$B$13,0))),\"\"))","v":""},{"$f":"IF(B85=\"\",\"\",IFERROR(IF(INDEX('Disagg.1A_import-export'!AC$7:AC$13,MATCH($A85,'Disagg.1A_import-export'!$B$7:$B$13,0))=\"\",\"\",INDEX('Disagg.1A_import-export'!AC$7:AC$13,MATCH($A85,'Disagg.1A_import-export'!$B$7:$B$13,0))),\"\"))","v":""}]
[{"$f":"IFERROR(IF(INDEX(ImpactDisaglist,MATCH(0,INDEX(COUNTIF(A$10:A85,ImpactDisaglist),0,0),0))<>\"\",INDEX(ImpactDisaglist,MATCH(0,INDEX(COUNTIF(A$10:A85,ImpactDisaglist),0,0),0)),INDEX(OutcomeDisaglist,MATCH(0,INDEX(COUNTIF(A$10:A85,OutcomeDisaglist),0,0),0))),\"\")","v":""},{"$f":"IFERROR(INDEX('Disagg.1A_import-export'!D$7:D$200,MATCH($A86,'Disagg.1A_import-export'!$B$7:$B$200,0)),\"\")","v":""},{"$f":"IF(B86=\"\",\"\",IFERROR(INDEX('Disagg.1A_import-export'!E$7:E$13,MATCH($A86,'Disagg.1A_import-export'!$B$7:$B$13,0)),\"\"))","v":""},{"$f":"IF(B86=\"\",\"\",IFERROR(IF(INDEX('Disagg.1A_import-export'!I$7:I$13,MATCH($A86,'Disagg.1A_import-export'!$B$7:$B$13,0))=\"\",\"\",INDEX('Disagg.1A_import-export'!I$7:I$13,MATCH($A86,'Disagg.1A_import-export'!$B$7:$B$13,0))),\"\"))","v":""},{"$f":"IF(B86=\"\",\"\",IFERROR(IF(INDEX('Disagg.1A_import-export'!J$7:J$13,MATCH($A86,'Disagg.1A_import-export'!$B$7:$B$13,0))=\"\",\"\",INDEX('Disagg.1A_import-export'!J$7:J$13,MATCH($A86,'Disagg.1A_import-export'!$B$7:$B$13,0))),\"\"))","v":""},{"$f":"IF(B86=\"\",\"\",IFERROR(IF(INDEX('Disagg.1A_import-export'!K$7:K$13,MATCH($A86,'Disagg.1A_import-export'!$B$7:$B$13,0))=\"\",\"\",INDEX('Disagg.1A_import-export'!K$7:K$13,MATCH($A86,'Disagg.1A_import-export'!$B$7:$B$13,0))),\"\"))","v":""},{"$f":"IF(B86=\"\",\"\",IFERROR(IF(INDEX('Disagg.1A_import-export'!L$7:L$13,MATCH($A86,'Disagg.1A_import-export'!$B$7:$B$13,0))=\"\",\"\",INDEX('Disagg.1A_import-export'!L$7:L$13,MATCH($A86,'Disagg.1A_import-export'!$B$7:$B$13,0))),\"\"))","v":""},{"$f":"IF(B86=\"\",\"\",IFERROR(IF(INDEX('Disagg.1A_import-export'!M$7:M$13,MATCH($A86,'Disagg.1A_import-export'!$B$7:$B$13,0))=\"\",\"\",INDEX('Disagg.1A_import-export'!M$7:M$13,MATCH($A86,'Disagg.1A_import-export'!$B$7:$B$13,0))),\"\"))","v":""},{"$f":"IF(B86=\"\",\"\",IFERROR(IF(INDEX('Disagg.1A_import-export'!N$7:N$13,MATCH($A86,'Disagg.1A_import-export'!$B$7:$B$13,0))=\"\",\"\",INDEX('Disagg.1A_import-export'!N$7:N$13,MATCH($A86,'Disagg.1A_import-export'!$B$7:$B$13,0))),\"\"))","v":""},{"$f":"IF(B86=\"\",\"\",IFERROR(IF(INDEX('Disagg.1A_import-export'!AC$7:AC$13,MATCH($A86,'Disagg.1A_import-export'!$B$7:$B$13,0))=\"\",\"\",INDEX('Disagg.1A_import-export'!AC$7:AC$13,MATCH($A86,'Disagg.1A_import-export'!$B$7:$B$13,0))),\"\"))","v":""}]
[{"$f":"IFERROR(IF(INDEX(ImpactDisaglist,MATCH(0,INDEX(COUNTIF(A$10:A86,ImpactDisaglist),0,0),0))<>\"\",INDEX(ImpactDisaglist,MATCH(0,INDEX(COUNTIF(A$10:A86,ImpactDisaglist),0,0),0)),INDEX(OutcomeDisaglist,MATCH(0,INDEX(COUNTIF(A$10:A86,OutcomeDisaglist),0,0),0))),\"\")","v":""},{"$f":"IFERROR(INDEX('Disagg.1A_import-export'!D$7:D$200,MATCH($A87,'Disagg.1A_import-export'!$B$7:$B$200,0)),\"\")","v":""},{"$f":"IF(B87=\"\",\"\",IFERROR(INDEX('Disagg.1A_import-export'!E$7:E$13,MATCH($A87,'Disagg.1A_import-export'!$B$7:$B$13,0)),\"\"))","v":""},{"$f":"IF(B87=\"\",\"\",IFERROR(IF(INDEX('Disagg.1A_import-export'!I$7:I$13,MATCH($A87,'Disagg.1A_import-export'!$B$7:$B$13,0))=\"\",\"\",INDEX('Disagg.1A_import-export'!I$7:I$13,MATCH($A87,'Disagg.1A_import-export'!$B$7:$B$13,0))),\"\"))","v":""},{"$f":"IF(B87=\"\",\"\",IFERROR(IF(INDEX('Disagg.1A_import-export'!J$7:J$13,MATCH($A87,'Disagg.1A_import-export'!$B$7:$B$13,0))=\"\",\"\",INDEX('Disagg.1A_import-export'!J$7:J$13,MATCH($A87,'Disagg.1A_import-export'!$B$7:$B$13,0))),\"\"))","v":""},{"$f":"IF(B87=\"\",\"\",IFERROR(IF(INDEX('Disagg.1A_import-export'!K$7:K$13,MATCH($A87,'Disagg.1A_import-export'!$B$7:$B$13,0))=\"\",\"\",INDEX('Disagg.1A_import-export'!K$7:K$13,MATCH($A87,'Disagg.1A_import-export'!$B$7:$B$13,0))),\"\"))","v":""},{"$f":"IF(B87=\"\",\"\",IFERROR(IF(INDEX('Disagg.1A_import-export'!L$7:L$13,MATCH($A87,'Disagg.1A_import-export'!$B$7:$B$13,0))=\"\",\"\",INDEX('Disagg.1A_import-export'!L$7:L$13,MATCH($A87,'Disagg.1A_import-export'!$B$7:$B$13,0))),\"\"))","v":""},{"$f":"IF(B87=\"\",\"\",IFERROR(IF(INDEX('Disagg.1A_import-export'!M$7:M$13,MATCH($A87,'Disagg.1A_import-export'!$B$7:$B$13,0))=\"\",\"\",INDEX('Disagg.1A_import-export'!M$7:M$13,MATCH($A87,'Disagg.1A_import-export'!$B$7:$B$13,0))),\"\"))","v":""},{"$f":"IF(B87=\"\",\"\",IFERROR(IF(INDEX('Disagg.1A_import-export'!N$7:N$13,MATCH($A87,'Disagg.1A_import-export'!$B$7:$B$13,0))=\"\",\"\",INDEX('Disagg.1A_import-export'!N$7:N$13,MATCH($A87,'Disagg.1A_import-export'!$B$7:$B$13,0))),\"\"))","v":""},{"$f":"IF(B87=\"\",\"\",IFERROR(IF(INDEX('Disagg.1A_import-export'!AC$7:AC$13,MATCH($A87,'Disagg.1A_import-export'!$B$7:$B$13,0))=\"\",\"\",INDEX('Disagg.1A_import-export'!AC$7:AC$13,MATCH($A87,'Disagg.1A_import-export'!$B$7:$B$13,0))),\"\"))","v":""}]
[{"$f":"IFERROR(IF(INDEX(ImpactDisaglist,MATCH(0,INDEX(COUNTIF(A$10:A87,ImpactDisaglist),0,0),0))<>\"\",INDEX(ImpactDisaglist,MATCH(0,INDEX(COUNTIF(A$10:A87,ImpactDisaglist),0,0),0)),INDEX(OutcomeDisaglist,MATCH(0,INDEX(COUNTIF(A$10:A87,OutcomeDisaglist),0,0),0))),\"\")","v":""},{"$f":"IFERROR(INDEX('Disagg.1A_import-export'!D$7:D$200,MATCH($A88,'Disagg.1A_import-export'!$B$7:$B$200,0)),\"\")","v":""},{"$f":"IF(B88=\"\",\"\",IFERROR(INDEX('Disagg.1A_import-export'!E$7:E$13,MATCH($A88,'Disagg.1A_import-export'!$B$7:$B$13,0)),\"\"))","v":""},{"$f":"IF(B88=\"\",\"\",IFERROR(IF(INDEX('Disagg.1A_import-export'!I$7:I$13,MATCH($A88,'Disagg.1A_import-export'!$B$7:$B$13,0))=\"\",\"\",INDEX('Disagg.1A_import-export'!I$7:I$13,MATCH($A88,'Disagg.1A_import-export'!$B$7:$B$13,0))),\"\"))","v":""},{"$f":"IF(B88=\"\",\"\",IFERROR(IF(INDEX('Disagg.1A_import-export'!J$7:J$13,MATCH($A88,'Disagg.1A_import-export'!$B$7:$B$13,0))=\"\",\"\",INDEX('Disagg.1A_import-export'!J$7:J$13,MATCH($A88,'Disagg.1A_import-export'!$B$7:$B$13,0))),\"\"))","v":""},{"$f":"IF(B88=\"\",\"\",IFERROR(IF(INDEX('Disagg.1A_import-export'!K$7:K$13,MATCH($A88,'Disagg.1A_import-export'!$B$7:$B$13,0))=\"\",\"\",INDEX('Disagg.1A_import-export'!K$7:K$13,MATCH($A88,'Disagg.1A_import-export'!$B$7:$B$13,0))),\"\"))","v":""},{"$f":"IF(B88=\"\",\"\",IFERROR(IF(INDEX('Disagg.1A_import-export'!L$7:L$13,MATCH($A88,'Disagg.1A_import-export'!$B$7:$B$13,0))=\"\",\"\",INDEX('Disagg.1A_import-export'!L$7:L$13,MATCH($A88,'Disagg.1A_import-export'!$B$7:$B$13,0))),\"\"))","v":""},{"$f":"IF(B88=\"\",\"\",IFERROR(IF(INDEX('Disagg.1A_import-export'!M$7:M$13,MATCH($A88,'Disagg.1A_import-export'!$B$7:$B$13,0))=\"\",\"\",INDEX('Disagg.1A_import-export'!M$7:M$13,MATCH($A88,'Disagg.1A_import-export'!$B$7:$B$13,0))),\"\"))","v":""},{"$f":"IF(B88=\"\",\"\",IFERROR(IF(INDEX('Disagg.1A_import-export'!N$7:N$13,MATCH($A88,'Disagg.1A_import-export'!$B$7:$B$13,0))=\"\",\"\",INDEX('Disagg.1A_import-export'!N$7:N$13,MATCH($A88,'Disagg.1A_import-export'!$B$7:$B$13,0))),\"\"))","v":""},{"$f":"IF(B88=\"\",\"\",IFERROR(IF(INDEX('Disagg.1A_import-export'!AC$7:AC$13,MATCH($A88,'Disagg.1A_import-export'!$B$7:$B$13,0))=\"\",\"\",INDEX('Disagg.1A_import-export'!AC$7:AC$13,MATCH($A88,'Disagg.1A_import-export'!$B$7:$B$13,0))),\"\"))","v":""}]
[{"$f":"IFERROR(IF(INDEX(ImpactDisaglist,MATCH(0,INDEX(COUNTIF(A$10:A88,ImpactDisaglist),0,0),0))<>\"\",INDEX(ImpactDisaglist,MATCH(0,INDEX(COUNTIF(A$10:A88,ImpactDisaglist),0,0),0)),INDEX(OutcomeDisaglist,MATCH(0,INDEX(COUNTIF(A$10:A88,OutcomeDisaglist),0,0),0))),\"\")","v":""},{"$f":"IFERROR(INDEX('Disagg.1A_import-export'!D$7:D$200,MATCH($A89,'Disagg.1A_import-export'!$B$7:$B$200,0)),\"\")","v":""},{"$f":"IF(B89=\"\",\"\",IFERROR(INDEX('Disagg.1A_import-export'!E$7:E$13,MATCH($A89,'Disagg.1A_import-export'!$B$7:$B$13,0)),\"\"))","v":""},{"$f":"IF(B89=\"\",\"\",IFERROR(IF(INDEX('Disagg.1A_import-export'!I$7:I$13,MATCH($A89,'Disagg.1A_import-export'!$B$7:$B$13,0))=\"\",\"\",INDEX('Disagg.1A_import-export'!I$7:I$13,MATCH($A89,'Disagg.1A_import-export'!$B$7:$B$13,0))),\"\"))","v":""},{"$f":"IF(B89=\"\",\"\",IFERROR(IF(INDEX('Disagg.1A_import-export'!J$7:J$13,MATCH($A89,'Disagg.1A_import-export'!$B$7:$B$13,0))=\"\",\"\",INDEX('Disagg.1A_import-export'!J$7:J$13,MATCH($A89,'Disagg.1A_import-export'!$B$7:$B$13,0))),\"\"))","v":""},{"$f":"IF(B89=\"\",\"\",IFERROR(IF(INDEX('Disagg.1A_import-export'!K$7:K$13,MATCH($A89,'Disagg.1A_import-export'!$B$7:$B$13,0))=\"\",\"\",INDEX('Disagg.1A_import-export'!K$7:K$13,MATCH($A89,'Disagg.1A_import-export'!$B$7:$B$13,0))),\"\"))","v":""},{"$f":"IF(B89=\"\",\"\",IFERROR(IF(INDEX('Disagg.1A_import-export'!L$7:L$13,MATCH($A89,'Disagg.1A_import-export'!$B$7:$B$13,0))=\"\",\"\",INDEX('Disagg.1A_import-export'!L$7:L$13,MATCH($A89,'Disagg.1A_import-export'!$B$7:$B$13,0))),\"\"))","v":""},{"$f":"IF(B89=\"\",\"\",IFERROR(IF(INDEX('Disagg.1A_import-export'!M$7:M$13,MATCH($A89,'Disagg.1A_import-export'!$B$7:$B$13,0))=\"\",\"\",INDEX('Disagg.1A_import-export'!M$7:M$13,MATCH($A89,'Disagg.1A_import-export'!$B$7:$B$13,0))),\"\"))","v":""},{"$f":"IF(B89=\"\",\"\",IFERROR(IF(INDEX('Disagg.1A_import-export'!N$7:N$13,MATCH($A89,'Disagg.1A_import-export'!$B$7:$B$13,0))=\"\",\"\",INDEX('Disagg.1A_import-export'!N$7:N$13,MATCH($A89,'Disagg.1A_import-export'!$B$7:$B$13,0))),\"\"))","v":""},{"$f":"IF(B89=\"\",\"\",IFERROR(IF(INDEX('Disagg.1A_import-export'!AC$7:AC$13,MATCH($A89,'Disagg.1A_import-export'!$B$7:$B$13,0))=\"\",\"\",INDEX('Disagg.1A_import-export'!AC$7:AC$13,MATCH($A89,'Disagg.1A_import-export'!$B$7:$B$13,0))),\"\"))","v":""}]
[{"$f":"IFERROR(IF(INDEX(ImpactDisaglist,MATCH(0,INDEX(COUNTIF(A$10:A89,ImpactDisaglist),0,0),0))<>\"\",INDEX(ImpactDisaglist,MATCH(0,INDEX(COUNTIF(A$10:A89,ImpactDisaglist),0,0),0)),INDEX(OutcomeDisaglist,MATCH(0,INDEX(COUNTIF(A$10:A89,OutcomeDisaglist),0,0),0))),\"\")","v":""},{"$f":"IFERROR(INDEX('Disagg.1A_import-export'!D$7:D$200,MATCH($A90,'Disagg.1A_import-export'!$B$7:$B$200,0)),\"\")","v":""},{"$f":"IF(B90=\"\",\"\",IFERROR(INDEX('Disagg.1A_import-export'!E$7:E$13,MATCH($A90,'Disagg.1A_import-export'!$B$7:$B$13,0)),\"\"))","v":""},{"$f":"IF(B90=\"\",\"\",IFERROR(IF(INDEX('Disagg.1A_import-export'!I$7:I$13,MATCH($A90,'Disagg.1A_import-export'!$B$7:$B$13,0))=\"\",\"\",INDEX('Disagg.1A_import-export'!I$7:I$13,MATCH($A90,'Disagg.1A_import-export'!$B$7:$B$13,0))),\"\"))","v":""},{"$f":"IF(B90=\"\",\"\",IFERROR(IF(INDEX('Disagg.1A_import-export'!J$7:J$13,MATCH($A90,'Disagg.1A_import-export'!$B$7:$B$13,0))=\"\",\"\",INDEX('Disagg.1A_import-export'!J$7:J$13,MATCH($A90,'Disagg.1A_import-export'!$B$7:$B$13,0))),\"\"))","v":""},{"$f":"IF(B90=\"\",\"\",IFERROR(IF(INDEX('Disagg.1A_import-export'!K$7:K$13,MATCH($A90,'Disagg.1A_import-export'!$B$7:$B$13,0))=\"\",\"\",INDEX('Disagg.1A_import-export'!K$7:K$13,MATCH($A90,'Disagg.1A_import-export'!$B$7:$B$13,0))),\"\"))","v":""},{"$f":"IF(B90=\"\",\"\",IFERROR(IF(INDEX('Disagg.1A_import-export'!L$7:L$13,MATCH($A90,'Disagg.1A_import-export'!$B$7:$B$13,0))=\"\",\"\",INDEX('Disagg.1A_import-export'!L$7:L$13,MATCH($A90,'Disagg.1A_import-export'!$B$7:$B$13,0))),\"\"))","v":""},{"$f":"IF(B90=\"\",\"\",IFERROR(IF(INDEX('Disagg.1A_import-export'!M$7:M$13,MATCH($A90,'Disagg.1A_import-export'!$B$7:$B$13,0))=\"\",\"\",INDEX('Disagg.1A_import-export'!M$7:M$13,MATCH($A90,'Disagg.1A_import-export'!$B$7:$B$13,0))),\"\"))","v":""},{"$f":"IF(B90=\"\",\"\",IFERROR(IF(INDEX('Disagg.1A_import-export'!N$7:N$13,MATCH($A90,'Disagg.1A_import-export'!$B$7:$B$13,0))=\"\",\"\",INDEX('Disagg.1A_import-export'!N$7:N$13,MATCH($A90,'Disagg.1A_import-export'!$B$7:$B$13,0))),\"\"))","v":""},{"$f":"IF(B90=\"\",\"\",IFERROR(IF(INDEX('Disagg.1A_import-export'!AC$7:AC$13,MATCH($A90,'Disagg.1A_import-export'!$B$7:$B$13,0))=\"\",\"\",INDEX('Disagg.1A_import-export'!AC$7:AC$13,MATCH($A90,'Disagg.1A_import-export'!$B$7:$B$13,0))),\"\"))","v":""}]
[{"$f":"IFERROR(IF(INDEX(ImpactDisaglist,MATCH(0,INDEX(COUNTIF(A$10:A90,ImpactDisaglist),0,0),0))<>\"\",INDEX(ImpactDisaglist,MATCH(0,INDEX(COUNTIF(A$10:A90,ImpactDisaglist),0,0),0)),INDEX(OutcomeDisaglist,MATCH(0,INDEX(COUNTIF(A$10:A90,OutcomeDisaglist),0,0),0))),\"\")","v":""},{"$f":"IFERROR(INDEX('Disagg.1A_import-export'!D$7:D$200,MATCH($A91,'Disagg.1A_import-export'!$B$7:$B$200,0)),\"\")","v":""},{"$f":"IF(B91=\"\",\"\",IFERROR(INDEX('Disagg.1A_import-export'!E$7:E$13,MATCH($A91,'Disagg.1A_import-export'!$B$7:$B$13,0)),\"\"))","v":""},{"$f":"IF(B91=\"\",\"\",IFERROR(IF(INDEX('Disagg.1A_import-export'!I$7:I$13,MATCH($A91,'Disagg.1A_import-export'!$B$7:$B$13,0))=\"\",\"\",INDEX('Disagg.1A_import-export'!I$7:I$13,MATCH($A91,'Disagg.1A_import-export'!$B$7:$B$13,0))),\"\"))","v":""},{"$f":"IF(B91=\"\",\"\",IFERROR(IF(INDEX('Disagg.1A_import-export'!J$7:J$13,MATCH($A91,'Disagg.1A_import-export'!$B$7:$B$13,0))=\"\",\"\",INDEX('Disagg.1A_import-export'!J$7:J$13,MATCH($A91,'Disagg.1A_import-export'!$B$7:$B$13,0))),\"\"))","v":""},{"$f":"IF(B91=\"\",\"\",IFERROR(IF(INDEX('Disagg.1A_import-export'!K$7:K$13,MATCH($A91,'Disagg.1A_import-export'!$B$7:$B$13,0))=\"\",\"\",INDEX('Disagg.1A_import-export'!K$7:K$13,MATCH($A91,'Disagg.1A_import-export'!$B$7:$B$13,0))),\"\"))","v":""},{"$f":"IF(B91=\"\",\"\",IFERROR(IF(INDEX('Disagg.1A_import-export'!L$7:L$13,MATCH($A91,'Disagg.1A_import-export'!$B$7:$B$13,0))=\"\",\"\",INDEX('Disagg.1A_import-export'!L$7:L$13,MATCH($A91,'Disagg.1A_import-export'!$B$7:$B$13,0))),\"\"))","v":""},{"$f":"IF(B91=\"\",\"\",IFERROR(IF(INDEX('Disagg.1A_import-export'!M$7:M$13,MATCH($A91,'Disagg.1A_import-export'!$B$7:$B$13,0))=\"\",\"\",INDEX('Disagg.1A_import-export'!M$7:M$13,MATCH($A91,'Disagg.1A_import-export'!$B$7:$B$13,0))),\"\"))","v":""},{"$f":"IF(B91=\"\",\"\",IFERROR(IF(INDEX('Disagg.1A_import-export'!N$7:N$13,MATCH($A91,'Disagg.1A_import-export'!$B$7:$B$13,0))=\"\",\"\",INDEX('Disagg.1A_import-export'!N$7:N$13,MATCH($A91,'Disagg.1A_import-export'!$B$7:$B$13,0))),\"\"))","v":""},{"$f":"IF(B91=\"\",\"\",IFERROR(IF(INDEX('Disagg.1A_import-export'!AC$7:AC$13,MATCH($A91,'Disagg.1A_import-export'!$B$7:$B$13,0))=\"\",\"\",INDEX('Disagg.1A_import-export'!AC$7:AC$13,MATCH($A91,'Disagg.1A_import-export'!$B$7:$B$13,0))),\"\"))","v":""}]
[{"$f":"IFERROR(IF(INDEX(ImpactDisaglist,MATCH(0,INDEX(COUNTIF(A$10:A91,ImpactDisaglist),0,0),0))<>\"\",INDEX(ImpactDisaglist,MATCH(0,INDEX(COUNTIF(A$10:A91,ImpactDisaglist),0,0),0)),INDEX(OutcomeDisaglist,MATCH(0,INDEX(COUNTIF(A$10:A91,OutcomeDisaglist),0,0),0))),\"\")","v":""},{"$f":"IFERROR(INDEX('Disagg.1A_import-export'!D$7:D$200,MATCH($A92,'Disagg.1A_import-export'!$B$7:$B$200,0)),\"\")","v":""},{"$f":"IF(B92=\"\",\"\",IFERROR(INDEX('Disagg.1A_import-export'!E$7:E$13,MATCH($A92,'Disagg.1A_import-export'!$B$7:$B$13,0)),\"\"))","v":""},{"$f":"IF(B92=\"\",\"\",IFERROR(IF(INDEX('Disagg.1A_import-export'!I$7:I$13,MATCH($A92,'Disagg.1A_import-export'!$B$7:$B$13,0))=\"\",\"\",INDEX('Disagg.1A_import-export'!I$7:I$13,MATCH($A92,'Disagg.1A_import-export'!$B$7:$B$13,0))),\"\"))","v":""},{"$f":"IF(B92=\"\",\"\",IFERROR(IF(INDEX('Disagg.1A_import-export'!J$7:J$13,MATCH($A92,'Disagg.1A_import-export'!$B$7:$B$13,0))=\"\",\"\",INDEX('Disagg.1A_import-export'!J$7:J$13,MATCH($A92,'Disagg.1A_import-export'!$B$7:$B$13,0))),\"\"))","v":""},{"$f":"IF(B92=\"\",\"\",IFERROR(IF(INDEX('Disagg.1A_import-export'!K$7:K$13,MATCH($A92,'Disagg.1A_import-export'!$B$7:$B$13,0))=\"\",\"\",INDEX('Disagg.1A_import-export'!K$7:K$13,MATCH($A92,'Disagg.1A_import-export'!$B$7:$B$13,0))),\"\"))","v":""},{"$f":"IF(B92=\"\",\"\",IFERROR(IF(INDEX('Disagg.1A_import-export'!L$7:L$13,MATCH($A92,'Disagg.1A_import-export'!$B$7:$B$13,0))=\"\",\"\",INDEX('Disagg.1A_import-export'!L$7:L$13,MATCH($A92,'Disagg.1A_import-export'!$B$7:$B$13,0))),\"\"))","v":""},{"$f":"IF(B92=\"\",\"\",IFERROR(IF(INDEX('Disagg.1A_import-export'!M$7:M$13,MATCH($A92,'Disagg.1A_import-export'!$B$7:$B$13,0))=\"\",\"\",INDEX('Disagg.1A_import-export'!M$7:M$13,MATCH($A92,'Disagg.1A_import-export'!$B$7:$B$13,0))),\"\"))","v":""},{"$f":"IF(B92=\"\",\"\",IFERROR(IF(INDEX('Disagg.1A_import-export'!N$7:N$13,MATCH($A92,'Disagg.1A_import-export'!$B$7:$B$13,0))=\"\",\"\",INDEX('Disagg.1A_import-export'!N$7:N$13,MATCH($A92,'Disagg.1A_import-export'!$B$7:$B$13,0))),\"\"))","v":""},{"$f":"IF(B92=\"\",\"\",IFERROR(IF(INDEX('Disagg.1A_import-export'!AC$7:AC$13,MATCH($A92,'Disagg.1A_import-export'!$B$7:$B$13,0))=\"\",\"\",INDEX('Disagg.1A_import-export'!AC$7:AC$13,MATCH($A92,'Disagg.1A_import-export'!$B$7:$B$13,0))),\"\"))","v":""}]
[{"$f":"IFERROR(IF(INDEX(ImpactDisaglist,MATCH(0,INDEX(COUNTIF(A$10:A92,ImpactDisaglist),0,0),0))<>\"\",INDEX(ImpactDisaglist,MATCH(0,INDEX(COUNTIF(A$10:A92,ImpactDisaglist),0,0),0)),INDEX(OutcomeDisaglist,MATCH(0,INDEX(COUNTIF(A$10:A92,OutcomeDisaglist),0,0),0))),\"\")","v":""},{"$f":"IFERROR(INDEX('Disagg.1A_import-export'!D$7:D$200,MATCH($A93,'Disagg.1A_import-export'!$B$7:$B$200,0)),\"\")","v":""},{"$f":"IF(B93=\"\",\"\",IFERROR(INDEX('Disagg.1A_import-export'!E$7:E$13,MATCH($A93,'Disagg.1A_import-export'!$B$7:$B$13,0)),\"\"))","v":""},{"$f":"IF(B93=\"\",\"\",IFERROR(IF(INDEX('Disagg.1A_import-export'!I$7:I$13,MATCH($A93,'Disagg.1A_import-export'!$B$7:$B$13,0))=\"\",\"\",INDEX('Disagg.1A_import-export'!I$7:I$13,MATCH($A93,'Disagg.1A_import-export'!$B$7:$B$13,0))),\"\"))","v":""},{"$f":"IF(B93=\"\",\"\",IFERROR(IF(INDEX('Disagg.1A_import-export'!J$7:J$13,MATCH($A93,'Disagg.1A_import-export'!$B$7:$B$13,0))=\"\",\"\",INDEX('Disagg.1A_import-export'!J$7:J$13,MATCH($A93,'Disagg.1A_import-export'!$B$7:$B$13,0))),\"\"))","v":""},{"$f":"IF(B93=\"\",\"\",IFERROR(IF(INDEX('Disagg.1A_import-export'!K$7:K$13,MATCH($A93,'Disagg.1A_import-export'!$B$7:$B$13,0))=\"\",\"\",INDEX('Disagg.1A_import-export'!K$7:K$13,MATCH($A93,'Disagg.1A_import-export'!$B$7:$B$13,0))),\"\"))","v":""},{"$f":"IF(B93=\"\",\"\",IFERROR(IF(INDEX('Disagg.1A_import-export'!L$7:L$13,MATCH($A93,'Disagg.1A_import-export'!$B$7:$B$13,0))=\"\",\"\",INDEX('Disagg.1A_import-export'!L$7:L$13,MATCH($A93,'Disagg.1A_import-export'!$B$7:$B$13,0))),\"\"))","v":""},{"$f":"IF(B93=\"\",\"\",IFERROR(IF(INDEX('Disagg.1A_import-export'!M$7:M$13,MATCH($A93,'Disagg.1A_import-export'!$B$7:$B$13,0))=\"\",\"\",INDEX('Disagg.1A_import-export'!M$7:M$13,MATCH($A93,'Disagg.1A_import-export'!$B$7:$B$13,0))),\"\"))","v":""},{"$f":"IF(B93=\"\",\"\",IFERROR(IF(INDEX('Disagg.1A_import-export'!N$7:N$13,MATCH($A93,'Disagg.1A_import-export'!$B$7:$B$13,0))=\"\",\"\",INDEX('Disagg.1A_import-export'!N$7:N$13,MATCH($A93,'Disagg.1A_import-export'!$B$7:$B$13,0))),\"\"))","v":""},{"$f":"IF(B93=\"\",\"\",IFERROR(IF(INDEX('Disagg.1A_import-export'!AC$7:AC$13,MATCH($A93,'Disagg.1A_import-export'!$B$7:$B$13,0))=\"\",\"\",INDEX('Disagg.1A_import-export'!AC$7:AC$13,MATCH($A93,'Disagg.1A_import-export'!$B$7:$B$13,0))),\"\"))","v":""}]
[{"$f":"IFERROR(IF(INDEX(ImpactDisaglist,MATCH(0,INDEX(COUNTIF(A$10:A93,ImpactDisaglist),0,0),0))<>\"\",INDEX(ImpactDisaglist,MATCH(0,INDEX(COUNTIF(A$10:A93,ImpactDisaglist),0,0),0)),INDEX(OutcomeDisaglist,MATCH(0,INDEX(COUNTIF(A$10:A93,OutcomeDisaglist),0,0),0))),\"\")","v":""},{"$f":"IFERROR(INDEX('Disagg.1A_import-export'!D$7:D$200,MATCH($A94,'Disagg.1A_import-export'!$B$7:$B$200,0)),\"\")","v":""},{"$f":"IF(B94=\"\",\"\",IFERROR(INDEX('Disagg.1A_import-export'!E$7:E$13,MATCH($A94,'Disagg.1A_import-export'!$B$7:$B$13,0)),\"\"))","v":""},{"$f":"IF(B94=\"\",\"\",IFERROR(IF(INDEX('Disagg.1A_import-export'!I$7:I$13,MATCH($A94,'Disagg.1A_import-export'!$B$7:$B$13,0))=\"\",\"\",INDEX('Disagg.1A_import-export'!I$7:I$13,MATCH($A94,'Disagg.1A_import-export'!$B$7:$B$13,0))),\"\"))","v":""},{"$f":"IF(B94=\"\",\"\",IFERROR(IF(INDEX('Disagg.1A_import-export'!J$7:J$13,MATCH($A94,'Disagg.1A_import-export'!$B$7:$B$13,0))=\"\",\"\",INDEX('Disagg.1A_import-export'!J$7:J$13,MATCH($A94,'Disagg.1A_import-export'!$B$7:$B$13,0))),\"\"))","v":""},{"$f":"IF(B94=\"\",\"\",IFERROR(IF(INDEX('Disagg.1A_import-export'!K$7:K$13,MATCH($A94,'Disagg.1A_import-export'!$B$7:$B$13,0))=\"\",\"\",INDEX('Disagg.1A_import-export'!K$7:K$13,MATCH($A94,'Disagg.1A_import-export'!$B$7:$B$13,0))),\"\"))","v":""},{"$f":"IF(B94=\"\",\"\",IFERROR(IF(INDEX('Disagg.1A_import-export'!L$7:L$13,MATCH($A94,'Disagg.1A_import-export'!$B$7:$B$13,0))=\"\",\"\",INDEX('Disagg.1A_import-export'!L$7:L$13,MATCH($A94,'Disagg.1A_import-export'!$B$7:$B$13,0))),\"\"))","v":""},{"$f":"IF(B94=\"\",\"\",IFERROR(IF(INDEX('Disagg.1A_import-export'!M$7:M$13,MATCH($A94,'Disagg.1A_import-export'!$B$7:$B$13,0))=\"\",\"\",INDEX('Disagg.1A_import-export'!M$7:M$13,MATCH($A94,'Disagg.1A_import-export'!$B$7:$B$13,0))),\"\"))","v":""},{"$f":"IF(B94=\"\",\"\",IFERROR(IF(INDEX('Disagg.1A_import-export'!N$7:N$13,MATCH($A94,'Disagg.1A_import-export'!$B$7:$B$13,0))=\"\",\"\",INDEX('Disagg.1A_import-export'!N$7:N$13,MATCH($A94,'Disagg.1A_import-export'!$B$7:$B$13,0))),\"\"))","v":""},{"$f":"IF(B94=\"\",\"\",IFERROR(IF(INDEX('Disagg.1A_import-export'!AC$7:AC$13,MATCH($A94,'Disagg.1A_import-export'!$B$7:$B$13,0))=\"\",\"\",INDEX('Disagg.1A_import-export'!AC$7:AC$13,MATCH($A94,'Disagg.1A_import-export'!$B$7:$B$13,0))),\"\"))","v":""}]
[{"$f":"IFERROR(IF(INDEX(ImpactDisaglist,MATCH(0,INDEX(COUNTIF(A$10:A94,ImpactDisaglist),0,0),0))<>\"\",INDEX(ImpactDisaglist,MATCH(0,INDEX(COUNTIF(A$10:A94,ImpactDisaglist),0,0),0)),INDEX(OutcomeDisaglist,MATCH(0,INDEX(COUNTIF(A$10:A94,OutcomeDisaglist),0,0),0))),\"\")","v":""},{"$f":"IFERROR(INDEX('Disagg.1A_import-export'!D$7:D$200,MATCH($A95,'Disagg.1A_import-export'!$B$7:$B$200,0)),\"\")","v":""},{"$f":"IF(B95=\"\",\"\",IFERROR(INDEX('Disagg.1A_import-export'!E$7:E$13,MATCH($A95,'Disagg.1A_import-export'!$B$7:$B$13,0)),\"\"))","v":""},{"$f":"IF(B95=\"\",\"\",IFERROR(IF(INDEX('Disagg.1A_import-export'!I$7:I$13,MATCH($A95,'Disagg.1A_import-export'!$B$7:$B$13,0))=\"\",\"\",INDEX('Disagg.1A_import-export'!I$7:I$13,MATCH($A95,'Disagg.1A_import-export'!$B$7:$B$13,0))),\"\"))","v":""},{"$f":"IF(B95=\"\",\"\",IFERROR(IF(INDEX('Disagg.1A_import-export'!J$7:J$13,MATCH($A95,'Disagg.1A_import-export'!$B$7:$B$13,0))=\"\",\"\",INDEX('Disagg.1A_import-export'!J$7:J$13,MATCH($A95,'Disagg.1A_import-export'!$B$7:$B$13,0))),\"\"))","v":""},{"$f":"IF(B95=\"\",\"\",IFERROR(IF(INDEX('Disagg.1A_import-export'!K$7:K$13,MATCH($A95,'Disagg.1A_import-export'!$B$7:$B$13,0))=\"\",\"\",INDEX('Disagg.1A_import-export'!K$7:K$13,MATCH($A95,'Disagg.1A_import-export'!$B$7:$B$13,0))),\"\"))","v":""},{"$f":"IF(B95=\"\",\"\",IFERROR(IF(INDEX('Disagg.1A_import-export'!L$7:L$13,MATCH($A95,'Disagg.1A_import-export'!$B$7:$B$13,0))=\"\",\"\",INDEX('Disagg.1A_import-export'!L$7:L$13,MATCH($A95,'Disagg.1A_import-export'!$B$7:$B$13,0))),\"\"))","v":""},{"$f":"IF(B95=\"\",\"\",IFERROR(IF(INDEX('Disagg.1A_import-export'!M$7:M$13,MATCH($A95,'Disagg.1A_import-export'!$B$7:$B$13,0))=\"\",\"\",INDEX('Disagg.1A_import-export'!M$7:M$13,MATCH($A95,'Disagg.1A_import-export'!$B$7:$B$13,0))),\"\"))","v":""},{"$f":"IF(B95=\"\",\"\",IFERROR(IF(INDEX('Disagg.1A_import-export'!N$7:N$13,MATCH($A95,'Disagg.1A_import-export'!$B$7:$B$13,0))=\"\",\"\",INDEX('Disagg.1A_import-export'!N$7:N$13,MATCH($A95,'Disagg.1A_import-export'!$B$7:$B$13,0))),\"\"))","v":""},{"$f":"IF(B95=\"\",\"\",IFERROR(IF(INDEX('Disagg.1A_import-export'!AC$7:AC$13,MATCH($A95,'Disagg.1A_import-export'!$B$7:$B$13,0))=\"\",\"\",INDEX('Disagg.1A_import-export'!AC$7:AC$13,MATCH($A95,'Disagg.1A_import-export'!$B$7:$B$13,0))),\"\"))","v":""}]
[{"$f":"IFERROR(IF(INDEX(ImpactDisaglist,MATCH(0,INDEX(COUNTIF(A$10:A95,ImpactDisaglist),0,0),0))<>\"\",INDEX(ImpactDisaglist,MATCH(0,INDEX(COUNTIF(A$10:A95,ImpactDisaglist),0,0),0)),INDEX(OutcomeDisaglist,MATCH(0,INDEX(COUNTIF(A$10:A95,OutcomeDisaglist),0,0),0))),\"\")","v":""},{"$f":"IFERROR(INDEX('Disagg.1A_import-export'!D$7:D$200,MATCH($A96,'Disagg.1A_import-export'!$B$7:$B$200,0)),\"\")","v":""},{"$f":"IF(B96=\"\",\"\",IFERROR(INDEX('Disagg.1A_import-export'!E$7:E$13,MATCH($A96,'Disagg.1A_import-export'!$B$7:$B$13,0)),\"\"))","v":""},{"$f":"IF(B96=\"\",\"\",IFERROR(IF(INDEX('Disagg.1A_import-export'!I$7:I$13,MATCH($A96,'Disagg.1A_import-export'!$B$7:$B$13,0))=\"\",\"\",INDEX('Disagg.1A_import-export'!I$7:I$13,MATCH($A96,'Disagg.1A_import-export'!$B$7:$B$13,0))),\"\"))","v":""},{"$f":"IF(B96=\"\",\"\",IFERROR(IF(INDEX('Disagg.1A_import-export'!J$7:J$13,MATCH($A96,'Disagg.1A_import-export'!$B$7:$B$13,0))=\"\",\"\",INDEX('Disagg.1A_import-export'!J$7:J$13,MATCH($A96,'Disagg.1A_import-export'!$B$7:$B$13,0))),\"\"))","v":""},{"$f":"IF(B96=\"\",\"\",IFERROR(IF(INDEX('Disagg.1A_import-export'!K$7:K$13,MATCH($A96,'Disagg.1A_import-export'!$B$7:$B$13,0))=\"\",\"\",INDEX('Disagg.1A_import-export'!K$7:K$13,MATCH($A96,'Disagg.1A_import-export'!$B$7:$B$13,0))),\"\"))","v":""},{"$f":"IF(B96=\"\",\"\",IFERROR(IF(INDEX('Disagg.1A_import-export'!L$7:L$13,MATCH($A96,'Disagg.1A_import-export'!$B$7:$B$13,0))=\"\",\"\",INDEX('Disagg.1A_import-export'!L$7:L$13,MATCH($A96,'Disagg.1A_import-export'!$B$7:$B$13,0))),\"\"))","v":""},{"$f":"IF(B96=\"\",\"\",IFERROR(IF(INDEX('Disagg.1A_import-export'!M$7:M$13,MATCH($A96,'Disagg.1A_import-export'!$B$7:$B$13,0))=\"\",\"\",INDEX('Disagg.1A_import-export'!M$7:M$13,MATCH($A96,'Disagg.1A_import-export'!$B$7:$B$13,0))),\"\"))","v":""},{"$f":"IF(B96=\"\",\"\",IFERROR(IF(INDEX('Disagg.1A_import-export'!N$7:N$13,MATCH($A96,'Disagg.1A_import-export'!$B$7:$B$13,0))=\"\",\"\",INDEX('Disagg.1A_import-export'!N$7:N$13,MATCH($A96,'Disagg.1A_import-export'!$B$7:$B$13,0))),\"\"))","v":""},{"$f":"IF(B96=\"\",\"\",IFERROR(IF(INDEX('Disagg.1A_import-export'!AC$7:AC$13,MATCH($A96,'Disagg.1A_import-export'!$B$7:$B$13,0))=\"\",\"\",INDEX('Disagg.1A_import-export'!AC$7:AC$13,MATCH($A96,'Disagg.1A_import-export'!$B$7:$B$13,0))),\"\"))","v":""}]
[{"$f":"IFERROR(IF(INDEX(ImpactDisaglist,MATCH(0,INDEX(COUNTIF(A$10:A96,ImpactDisaglist),0,0),0))<>\"\",INDEX(ImpactDisaglist,MATCH(0,INDEX(COUNTIF(A$10:A96,ImpactDisaglist),0,0),0)),INDEX(OutcomeDisaglist,MATCH(0,INDEX(COUNTIF(A$10:A96,OutcomeDisaglist),0,0),0))),\"\")","v":""},{"$f":"IFERROR(INDEX('Disagg.1A_import-export'!D$7:D$200,MATCH($A97,'Disagg.1A_import-export'!$B$7:$B$200,0)),\"\")","v":""},{"$f":"IF(B97=\"\",\"\",IFERROR(INDEX('Disagg.1A_import-export'!E$7:E$13,MATCH($A97,'Disagg.1A_import-export'!$B$7:$B$13,0)),\"\"))","v":""},{"$f":"IF(B97=\"\",\"\",IFERROR(IF(INDEX('Disagg.1A_import-export'!I$7:I$13,MATCH($A97,'Disagg.1A_import-export'!$B$7:$B$13,0))=\"\",\"\",INDEX('Disagg.1A_import-export'!I$7:I$13,MATCH($A97,'Disagg.1A_import-export'!$B$7:$B$13,0))),\"\"))","v":""},{"$f":"IF(B97=\"\",\"\",IFERROR(IF(INDEX('Disagg.1A_import-export'!J$7:J$13,MATCH($A97,'Disagg.1A_import-export'!$B$7:$B$13,0))=\"\",\"\",INDEX('Disagg.1A_import-export'!J$7:J$13,MATCH($A97,'Disagg.1A_import-export'!$B$7:$B$13,0))),\"\"))","v":""},{"$f":"IF(B97=\"\",\"\",IFERROR(IF(INDEX('Disagg.1A_import-export'!K$7:K$13,MATCH($A97,'Disagg.1A_import-export'!$B$7:$B$13,0))=\"\",\"\",INDEX('Disagg.1A_import-export'!K$7:K$13,MATCH($A97,'Disagg.1A_import-export'!$B$7:$B$13,0))),\"\"))","v":""},{"$f":"IF(B97=\"\",\"\",IFERROR(IF(INDEX('Disagg.1A_import-export'!L$7:L$13,MATCH($A97,'Disagg.1A_import-export'!$B$7:$B$13,0))=\"\",\"\",INDEX('Disagg.1A_import-export'!L$7:L$13,MATCH($A97,'Disagg.1A_import-export'!$B$7:$B$13,0))),\"\"))","v":""},{"$f":"IF(B97=\"\",\"\",IFERROR(IF(INDEX('Disagg.1A_import-export'!M$7:M$13,MATCH($A97,'Disagg.1A_import-export'!$B$7:$B$13,0))=\"\",\"\",INDEX('Disagg.1A_import-export'!M$7:M$13,MATCH($A97,'Disagg.1A_import-export'!$B$7:$B$13,0))),\"\"))","v":""},{"$f":"IF(B97=\"\",\"\",IFERROR(IF(INDEX('Disagg.1A_import-export'!N$7:N$13,MATCH($A97,'Disagg.1A_import-export'!$B$7:$B$13,0))=\"\",\"\",INDEX('Disagg.1A_import-export'!N$7:N$13,MATCH($A97,'Disagg.1A_import-export'!$B$7:$B$13,0))),\"\"))","v":""},{"$f":"IF(B97=\"\",\"\",IFERROR(IF(INDEX('Disagg.1A_import-export'!AC$7:AC$13,MATCH($A97,'Disagg.1A_import-export'!$B$7:$B$13,0))=\"\",\"\",INDEX('Disagg.1A_import-export'!AC$7:AC$13,MATCH($A97,'Disagg.1A_import-export'!$B$7:$B$13,0))),\"\"))","v":""}]
[{"$f":"IFERROR(IF(INDEX(ImpactDisaglist,MATCH(0,INDEX(COUNTIF(A$10:A97,ImpactDisaglist),0,0),0))<>\"\",INDEX(ImpactDisaglist,MATCH(0,INDEX(COUNTIF(A$10:A97,ImpactDisaglist),0,0),0)),INDEX(OutcomeDisaglist,MATCH(0,INDEX(COUNTIF(A$10:A97,OutcomeDisaglist),0,0),0))),\"\")","v":""},{"$f":"IFERROR(INDEX('Disagg.1A_import-export'!D$7:D$200,MATCH($A98,'Disagg.1A_import-export'!$B$7:$B$200,0)),\"\")","v":""},{"$f":"IF(B98=\"\",\"\",IFERROR(INDEX('Disagg.1A_import-export'!E$7:E$13,MATCH($A98,'Disagg.1A_import-export'!$B$7:$B$13,0)),\"\"))","v":""},{"$f":"IF(B98=\"\",\"\",IFERROR(IF(INDEX('Disagg.1A_import-export'!I$7:I$13,MATCH($A98,'Disagg.1A_import-export'!$B$7:$B$13,0))=\"\",\"\",INDEX('Disagg.1A_import-export'!I$7:I$13,MATCH($A98,'Disagg.1A_import-export'!$B$7:$B$13,0))),\"\"))","v":""},{"$f":"IF(B98=\"\",\"\",IFERROR(IF(INDEX('Disagg.1A_import-export'!J$7:J$13,MATCH($A98,'Disagg.1A_import-export'!$B$7:$B$13,0))=\"\",\"\",INDEX('Disagg.1A_import-export'!J$7:J$13,MATCH($A98,'Disagg.1A_import-export'!$B$7:$B$13,0))),\"\"))","v":""},{"$f":"IF(B98=\"\",\"\",IFERROR(IF(INDEX('Disagg.1A_import-export'!K$7:K$13,MATCH($A98,'Disagg.1A_import-export'!$B$7:$B$13,0))=\"\",\"\",INDEX('Disagg.1A_import-export'!K$7:K$13,MATCH($A98,'Disagg.1A_import-export'!$B$7:$B$13,0))),\"\"))","v":""},{"$f":"IF(B98=\"\",\"\",IFERROR(IF(INDEX('Disagg.1A_import-export'!L$7:L$13,MATCH($A98,'Disagg.1A_import-export'!$B$7:$B$13,0))=\"\",\"\",INDEX('Disagg.1A_import-export'!L$7:L$13,MATCH($A98,'Disagg.1A_import-export'!$B$7:$B$13,0))),\"\"))","v":""},{"$f":"IF(B98=\"\",\"\",IFERROR(IF(INDEX('Disagg.1A_import-export'!M$7:M$13,MATCH($A98,'Disagg.1A_import-export'!$B$7:$B$13,0))=\"\",\"\",INDEX('Disagg.1A_import-export'!M$7:M$13,MATCH($A98,'Disagg.1A_import-export'!$B$7:$B$13,0))),\"\"))","v":""},{"$f":"IF(B98=\"\",\"\",IFERROR(IF(INDEX('Disagg.1A_import-export'!N$7:N$13,MATCH($A98,'Disagg.1A_import-export'!$B$7:$B$13,0))=\"\",\"\",INDEX('Disagg.1A_import-export'!N$7:N$13,MATCH($A98,'Disagg.1A_import-export'!$B$7:$B$13,0))),\"\"))","v":""},{"$f":"IF(B98=\"\",\"\",IFERROR(IF(INDEX('Disagg.1A_import-export'!AC$7:AC$13,MATCH($A98,'Disagg.1A_import-export'!$B$7:$B$13,0))=\"\",\"\",INDEX('Disagg.1A_import-export'!AC$7:AC$13,MATCH($A98,'Disagg.1A_import-export'!$B$7:$B$13,0))),\"\"))","v":""}]
[{"$f":"IFERROR(IF(INDEX(ImpactDisaglist,MATCH(0,INDEX(COUNTIF(A$10:A98,ImpactDisaglist),0,0),0))<>\"\",INDEX(ImpactDisaglist,MATCH(0,INDEX(COUNTIF(A$10:A98,ImpactDisaglist),0,0),0)),INDEX(OutcomeDisaglist,MATCH(0,INDEX(COUNTIF(A$10:A98,OutcomeDisaglist),0,0),0))),\"\")","v":""},{"$f":"IFERROR(INDEX('Disagg.1A_import-export'!D$7:D$200,MATCH($A99,'Disagg.1A_import-export'!$B$7:$B$200,0)),\"\")","v":""},{"$f":"IF(B99=\"\",\"\",IFERROR(INDEX('Disagg.1A_import-export'!E$7:E$13,MATCH($A99,'Disagg.1A_import-export'!$B$7:$B$13,0)),\"\"))","v":""},{"$f":"IF(B99=\"\",\"\",IFERROR(IF(INDEX('Disagg.1A_import-export'!I$7:I$13,MATCH($A99,'Disagg.1A_import-export'!$B$7:$B$13,0))=\"\",\"\",INDEX('Disagg.1A_import-export'!I$7:I$13,MATCH($A99,'Disagg.1A_import-export'!$B$7:$B$13,0))),\"\"))","v":""},{"$f":"IF(B99=\"\",\"\",IFERROR(IF(INDEX('Disagg.1A_import-export'!J$7:J$13,MATCH($A99,'Disagg.1A_import-export'!$B$7:$B$13,0))=\"\",\"\",INDEX('Disagg.1A_import-export'!J$7:J$13,MATCH($A99,'Disagg.1A_import-export'!$B$7:$B$13,0))),\"\"))","v":""},{"$f":"IF(B99=\"\",\"\",IFERROR(IF(INDEX('Disagg.1A_import-export'!K$7:K$13,MATCH($A99,'Disagg.1A_import-export'!$B$7:$B$13,0))=\"\",\"\",INDEX('Disagg.1A_import-export'!K$7:K$13,MATCH($A99,'Disagg.1A_import-export'!$B$7:$B$13,0))),\"\"))","v":""},{"$f":"IF(B99=\"\",\"\",IFERROR(IF(INDEX('Disagg.1A_import-export'!L$7:L$13,MATCH($A99,'Disagg.1A_import-export'!$B$7:$B$13,0))=\"\",\"\",INDEX('Disagg.1A_import-export'!L$7:L$13,MATCH($A99,'Disagg.1A_import-export'!$B$7:$B$13,0))),\"\"))","v":""},{"$f":"IF(B99=\"\",\"\",IFERROR(IF(INDEX('Disagg.1A_import-export'!M$7:M$13,MATCH($A99,'Disagg.1A_import-export'!$B$7:$B$13,0))=\"\",\"\",INDEX('Disagg.1A_import-export'!M$7:M$13,MATCH($A99,'Disagg.1A_import-export'!$B$7:$B$13,0))),\"\"))","v":""},{"$f":"IF(B99=\"\",\"\",IFERROR(IF(INDEX('Disagg.1A_import-export'!N$7:N$13,MATCH($A99,'Disagg.1A_import-export'!$B$7:$B$13,0))=\"\",\"\",INDEX('Disagg.1A_import-export'!N$7:N$13,MATCH($A99,'Disagg.1A_import-export'!$B$7:$B$13,0))),\"\"))","v":""},{"$f":"IF(B99=\"\",\"\",IFERROR(IF(INDEX('Disagg.1A_import-export'!AC$7:AC$13,MATCH($A99,'Disagg.1A_import-export'!$B$7:$B$13,0))=\"\",\"\",INDEX('Disagg.1A_import-export'!AC$7:AC$13,MATCH($A99,'Disagg.1A_import-export'!$B$7:$B$13,0))),\"\"))","v":""}]
[{"$f":"IFERROR(IF(INDEX(ImpactDisaglist,MATCH(0,INDEX(COUNTIF(A$10:A99,ImpactDisaglist),0,0),0))<>\"\",INDEX(ImpactDisaglist,MATCH(0,INDEX(COUNTIF(A$10:A99,ImpactDisaglist),0,0),0)),INDEX(OutcomeDisaglist,MATCH(0,INDEX(COUNTIF(A$10:A99,OutcomeDisaglist),0,0),0))),\"\")","v":""},{"$f":"IFERROR(INDEX('Disagg.1A_import-export'!D$7:D$200,MATCH($A100,'Disagg.1A_import-export'!$B$7:$B$200,0)),\"\")","v":""},{"$f":"IF(B100=\"\",\"\",IFERROR(INDEX('Disagg.1A_import-export'!E$7:E$13,MATCH($A100,'Disagg.1A_import-export'!$B$7:$B$13,0)),\"\"))","v":""},{"$f":"IF(B100=\"\",\"\",IFERROR(IF(INDEX('Disagg.1A_import-export'!I$7:I$13,MATCH($A100,'Disagg.1A_import-export'!$B$7:$B$13,0))=\"\",\"\",INDEX('Disagg.1A_import-export'!I$7:I$13,MATCH($A100,'Disagg.1A_import-export'!$B$7:$B$13,0))),\"\"))","v":""},{"$f":"IF(B100=\"\",\"\",IFERROR(IF(INDEX('Disagg.1A_import-export'!J$7:J$13,MATCH($A100,'Disagg.1A_import-export'!$B$7:$B$13,0))=\"\",\"\",INDEX('Disagg.1A_import-export'!J$7:J$13,MATCH($A100,'Disagg.1A_import-export'!$B$7:$B$13,0))),\"\"))","v":""},{"$f":"IF(B100=\"\",\"\",IFERROR(IF(INDEX('Disagg.1A_import-export'!K$7:K$13,MATCH($A100,'Disagg.1A_import-export'!$B$7:$B$13,0))=\"\",\"\",INDEX('Disagg.1A_import-export'!K$7:K$13,MATCH($A100,'Disagg.1A_import-export'!$B$7:$B$13,0))),\"\"))","v":""},{"$f":"IF(B100=\"\",\"\",IFERROR(IF(INDEX('Disagg.1A_import-export'!L$7:L$13,MATCH($A100,'Disagg.1A_import-export'!$B$7:$B$13,0))=\"\",\"\",INDEX('Disagg.1A_import-export'!L$7:L$13,MATCH($A100,'Disagg.1A_import-export'!$B$7:$B$13,0))),\"\"))","v":""},{"$f":"IF(B100=\"\",\"\",IFERROR(IF(INDEX('Disagg.1A_import-export'!M$7:M$13,MATCH($A100,'Disagg.1A_import-export'!$B$7:$B$13,0))=\"\",\"\",INDEX('Disagg.1A_import-export'!M$7:M$13,MATCH($A100,'Disagg.1A_import-export'!$B$7:$B$13,0))),\"\"))","v":""},{"$f":"IF(B100=\"\",\"\",IFERROR(IF(INDEX('Disagg.1A_import-export'!N$7:N$13,MATCH($A100,'Disagg.1A_import-export'!$B$7:$B$13,0))=\"\",\"\",INDEX('Disagg.1A_import-export'!N$7:N$13,MATCH($A100,'Disagg.1A_import-export'!$B$7:$B$13,0))),\"\"))","v":""},{"$f":"IF(B100=\"\",\"\",IFERROR(IF(INDEX('Disagg.1A_import-export'!AC$7:AC$13,MATCH($A100,'Disagg.1A_import-export'!$B$7:$B$13,0))=\"\",\"\",INDEX('Disagg.1A_import-export'!AC$7:AC$13,MATCH($A100,'Disagg.1A_import-export'!$B$7:$B$13,0))),\"\"))","v":""}]

{"sheet":"Disagg.1A_import-export","index":8,"n_rows":21,"n_cols":39,"rows_kept":21,"cut":false,"hidden":true,"merged":[[4,37,5,37],[4,38,5,38],[4,32,5,32],[4,33,5,33],[4,34,5,34],[4,35,5,35],[4,36,5,36],[4,27,5,27],[4,28,5,28],[4,29,5,29],[4,30,5,30],[4,31,5,31],[1,3,1,21],[4,3,5,3],[4,4,5,4],[4,8,5,8],[4,9,5,9],[4,10,4,12],[4,13,5,13],[4,14,5,14],[4,15,4,16],[4,17,5,17],[4,1,5,1],[4,26,5,26],[4,5,5,5],[4,6,5,6],[4,7,5,7],[4,18,5,18],[4,19,4,20],[4,21,5,21],[4,22,5,22],[4,23,4,24],[4,25,5,25]]}
[]
[null,null,null,"Instructions for population:\n1. Columns D to M should be mapped for download only\n2. Columns N to T should be mapped for import only\n3. Population should follow same rules as in tab Disaggregation_1A of current template with exception that:\na. population should be 1st sorted by field \"Impact Indicator Number\" on the parent record Impact Indicator \nb. It should then be sorted by field \"Year of Target\" on the Impact Indicator Target Result record (e.g. 2016->2017->2018)\nc. It should then be sorted by field Disaggregation\n"]
[]
[]
[null,null,null,"Impact / Outcome ","Name to display","Standard Impact Indicator Name","Standard Impact Indicator Name - French","Standard Impact Indicator Name - Spanish","Disaggregation","Category","Baseline",null,null,"Disaggregation Report Year","Comments","Result",null,"Comments ","Data validation checks on PR data","Verified Result",null,"LFA comments","Data Validation checks on LFA data","Global Fund Validated Result",null,"Global Fund comments","Data validation checks on GF data","Impact Indicator Number",null,null,null,null,null,"Disaggregation ES","Disaggregation FR","Category ES","Category FR","Comments Local","Baseline Source Local"]
["Record ID",null,-1,null,null,null,null,null,null,null,"Baseline Value","Baseline Year","Baseline Source",null,null,"Result Value (PR)","Result Source (PR)",null,null,"Verified Result Value (LFA)","Source",null,null,"Value","Source",null,null,null,null,null,null,null,null,"Disaggregation ES","Disaggregation FR","Category ES","Category FR","Comments Local","Baseline Source Local"]
[null,{"$f":"IF(D7=\"\",\"\",C7&D7)","v":""},{"$f":"C6+1","v":0},{"$f":"IF(A7<>\"\",\"Impact\",\"\")","v":""},{"$f":"IF(LangOffset=0,F7,IF(LangOffset=1,G7,IF(LangOffset=2,H7)))","v":"[Impact Indicator Name FR]"},"[Impact Indicator Name]","[Impact Indicator Name FR]","[Impact Indicator Name ES]","[Disaggregation]","[Category]","[Baseline Value]","[Baseline Year]","[Baseline Source]","[Report Year]","[Comments]",{"$f":"IFERROR(IF(INDEX(Disaggregation_1A!K$11:K$80,MATCH('Disagg.1A_import-export'!$B7,Disaggregation_1A!$A$11:$A$80,0))=\"\",\"\",INDEX(Disaggregation_1A!K$11:K$80,MATCH('Disagg.1A_import-export'!$B7,Disaggregation_1A!$A$11:$A$80,0))),\"\")","v":""},{"$f":"IFERROR(IF(INDEX(Disaggregation_1A!L$11:L$80,MATCH('Disagg.1A_import-export'!$B7,Disaggregation_1A!$A$11:$A$80,0))=\"\",\"\",INDEX(Disaggregation_1A!L$11:L$80,MATCH('Disagg.1A_import-export'!$B7,Disaggregation_1A!$A$11:$A$80,0))),\"\")","v":""},{"$f":"IFERROR(IF(INDEX(Disaggregation_1A!M$11:M$80,MATCH('Disagg.1A_import-export'!$B7,Disaggregation_1A!$A$11:$A$80,0))=\"\",\"\",INDEX(Disaggregation_1A!M$11:M$80,MATCH('Disagg.1A_import-export'!$B7,Disaggregation_1A!$A$11:$A$80,0))),\"\")","v":""},{"$f":"IFERROR(INDEX(Disaggregation_1A!N$11:N$80,MATCH('Disagg.1A_import-export'!$B7,Disaggregation_1A!$A$11:$A$80,0)),\"\")","v":0},{"$f":"IFERROR(IF(INDEX(Disaggregation_1A!O$11:O$80,MATCH('Disagg.1A_import-export'!$B7,Disaggregation_1A!$A$11:$A$80,0))=\"\",\"\",INDEX(Disaggregation_1A!O$11:O$80,MATCH('Disagg.1A_import-export'!$B7,Disaggregation_1A!$A$11:$A$80,0))),\"\")","v":""},{"$f":"IFERROR(IF(INDEX(Disaggregation_1A!P$11:P$80,MATCH('Disagg.1A_import-export'!$B7,Disaggregation_1A!$A$11:$A$80,0))=\"\",\"\",INDEX(Disaggregation_1A!P$11:P$80,MATCH('Disagg.1A_import-export'!$B7,Disaggregation_1A!$A$11:$A$80,0))),\"\")","v":""},{"$f":"IFERROR(IF(INDEX(Disaggregation_1A!Q$11:Q$80,MATCH('Disagg.1A_import-export'!$B7,Disaggregation_1A!$A$11:$A$80,0))=\"\",INDEX(Disaggregation_1A!Q$11:Q$80,MATCH('Disagg.1A_import-export'!$B7,Disaggregation_1A!$A$11:$A$80,0)),\"\"),\"\")","v":0},{"$f":"IFERROR(INDEX(Disaggregation_1A!R$11:R$80,MATCH('Disagg.1A_import-export'!$B7,Disaggregation_1A!$A$11:$A$80,0)),\"\")","v":0},{"$f":"IFERROR(INDEX(Disaggregation_1A!S$11:S$80,MATCH('Disagg.1A_import-export'!$B7,Disaggregation_1A!$A$11:$A$80,0)),\"\")","v":0},{"$f":"IFERROR(INDEX(Disaggregation_1A!T$11:T$80,MATCH('Disagg.1A_import-export'!$B7,Disaggregation_1A!$A$11:$A$80,0)),\"\")","v":0},{"$f":"IFERROR(INDEX(Disaggregation_1A!U$11:U$80,MATCH('Disagg.1A_import-export'!$B7,Disaggregation_1A!$A$11:$A$80,0)),\"\")","v":0},{"$f":"IFERROR(INDEX(Disaggregation_1A!V$11:V$80,MATCH('Disagg.1A_import-export'!$B7,Disaggregation_1A!$A$11:$A$80,0)),\"\")","v":0},"[Impact Indicator Number]","[Country (Name)]",null,null,null,null,"[Disaggregation ES]","[Disaggregation FR]","[Category ES]","[Category FR]","[Comments Local]","[Baseline Source Local]"]
[null,null,null,null,null,null,null,null,null,null,null,null,null,null,null,null,null,null,null,null,{"$f":"IFERROR(IF(INDEX(Disaggregation_1A!P$11:P$80,MATCH('Disagg.1A_import-export'!$B8,Disaggregation_1A!$A$11:$A$80,0))=\"\",\"\",INDEX(Disaggregation_1A!P$11:P$80,MATCH('Disagg.1A_import-export'!$B8,Disaggregation_1A!$A$11:$A$80,0))),\"\")","v":""}]
[null,null,null,null,null,null,"outcome indicator "]
["Record ID",null,-1,null,null,"Outcome Indicator Name","Outcome Indicator Name FR","Outcome Indicator Name ES","Disaggregation","Category","Baseline Value","Baseline Year","Baseline Source","Report Year","Comments","Result Value (PR)","Result Source (PR)","Result Comments (PR)",null,"Verified Result Value (LFA)","Verified Result Source (LFA)","Verified Result Comments (LFA)",null,null,null,"Comments (GF)",null,"Outcome Indicator Number","Country (Name)",null,null,null,null,"Disaggregation ES","Disaggregation FR","Category ES","Category FR","Comments Local","Baseline Source Local"]
[null,{"$f":"IF(D11=\"\",\"\",C11&D11)","v":""},{"$f":"C10+1","v":0},{"$f":"IF(A11<>\"\",\"Outcome\",\"\")","v":""},{"$f":"IF(LangOffset=0,F11,IF(LangOffset=1,G11,IF(LangOffset=2,H11)))","v":"[Outcome Indicator Name FR]"},"[Outcome Indicator Name]","[Outcome Indicator Name FR]","[Outcome Indicator Name ES]","[Disaggregation]","[Category]","[Baseline Value]","[Baseline Year]","[Baseline Source]","[Report Year]","[Comments]",{"$f":"IFERROR(IF(INDEX(Disaggregation_1A!K$11:K$80,MATCH('Disagg.1A_import-export'!$B11,Disaggregation_1A!$A$11:$A$80,0))=\"\",\"\",INDEX(Disaggregation_1A!K$11:K$80,MATCH('Disagg.1A_import-export'!$B11,Disaggregation_1A!$A$11:$A$80,0))),\"\")","v":""},{"$f":"IFERROR(IF(INDEX(Disaggregation_1A!L$11:L$80,MATCH('Disagg.1A_import-export'!$B11,Disaggregation_1A!$A$11:$A$80,0))=\"\",\"\",INDEX(Disaggregation_1A!L$11:L$80,MATCH('Disagg.1A_import-export'!$B11,Disaggregation_1A!$A$11:$A$80,0))),\"\")","v":""},{"$f":"IFERROR(IF(INDEX(Disaggregation_1A!M$11:M$80,MATCH('Disagg.1A_import-export'!$B11,Disaggregation_1A!$A$11:$A$80,0))=\"\",\"\",INDEX(Disaggregation_1A!M$11:M$80,MATCH('Disagg.1A_import-export'!$B11,Disaggregation_1A!$A$11:$A$80,0))),\"\")","v":""},{"$f":"IFERROR(IF(INDEX(Disaggregation_1A!N$11:N$80,MATCH('Disagg.1A_import-export'!$B11,Disaggregation_1A!$A$11:$A$80,0))=\"\",INDEX(Disaggregation_1A!N$11:N$80,MATCH('Disagg.1A_import-export'!$B11,Disaggregation_1A!$A$11:$A$80,0)),\"\"),\"\")","v":0},{"$f":"IFERROR(IF(INDEX(Disaggregation_1A!O$11:O$80,MATCH('Disagg.1A_import-export'!$B11,Disaggregation_1A!$A$11:$A$80,0))=\"\",\"\",INDEX(Disaggregation_1A!O$11:O$80,MATCH('Disagg.1A_import-export'!$B11,Disaggregation_1A!$A$11:$A$80,0))),\"\")","v":""},{"$f":"IFERROR(IF(INDEX(Disaggregation_1A!P$11:P$80,MATCH('Disagg.1A_import-export'!$B11,Disaggregation_1A!$A$11:$A$80,0))=\"\",\"\",INDEX(Disaggregation_1A!P$11:P$80,MATCH('Disagg.1A_import-export'!$B11,Disaggregation_1A!$A$11:$A$80,0))),\"\")","v":""},{"$f":"IFERROR(IF(INDEX(Disaggregation_1A!Q$11:Q$80,MATCH('Disagg.1A_import-export'!$B11,Disaggregation_1A!$A$11:$A$80,0))=\"\",\"\",INDEX(Disaggregation_1A!Q$11:Q$80,MATCH('Disagg.1A_import-export'!$B11,Disaggregation_1A!$A$11:$A$80,0))),\"\")","v":""},{"$f":"IFERROR(INDEX(Disaggregation_1A!R$11:R$80,MATCH('Disagg.1A_import-export'!$B11,Disaggregation_1A!$A$11:$A$80,0)),\"\")","v":0},{"$f":"IFERROR(INDEX(Disaggregation_1A!S$11:S$80,MATCH('Disagg.1A_import-export'!$B11,Disaggregation_1A!$A$11:$A$80,0)),\"\")","v":0},{"$f":"IFERROR(INDEX(Disaggregation_1A!T$11:T$80,MATCH('Disagg.1A_import-export'!$B11,Disaggregation_1A!$A$11:$A$80,0)),\"\")","v":0},{"$f":"IFERROR(INDEX(Disaggregation_1A!U$11:U$80,MATCH('Disagg.1A_import-export'!$B11,Disaggregation_1A!$A$11:$A$80,0)),\"\")","v":0},{"$f":"IFERROR(INDEX(Disaggregation_1A!V$11:V$80,MATCH('Disagg.1A_import-export'!$B11,Disaggregation_1A!$A$11:$A$80,0)),\"\")","v":0},"[Outcome Indicator Number]","[Country (Name)]",null,null,null,null,"[Disaggregation ES]","[Disaggregation FR]","[Category ES]","[Category FR]","[Comments Local]","[Baseline Source Local]"]
[]
[]
[]
[]
[]
[]
[]
[]
[]
[null,null,null,null," "]

{"sheet":"Coverage Indicators_1B","index":9,"n_rows":100,"n_cols":37,"rows_kept":100,"cut":false,"hidden":false,"merged":[[8,22,9,22],[4,2,4,29],[8,2,9,2],[8,3,9,3],[8,7,9,7],[8,28,9,28],[8,29,9,29],[8,35,9,35],[8,36,9,36],[8,5,9,5],[8,6,9,6],[8,13,8,15],[8,26,9,26],[8,34,9,34],[8,8,8,12],[8,23,8,25],[8,27,9,27],[8,30,9,30],[8,31,8,33],[8,16,8,18],[8,19,9,19],[8,20,9,20],[8,21,9,21]]}
[null,null,{"$f":"VLOOKUP(Translations!B83,Translations!B3:H508,4,0)","v":"Rapport périodique sur les résultats actuels et demande de décaissement"}]
[]
[null,null,{"$f":"VLOOKUP(Translations!B84,Translations!B3:H508,4,0)","v":"Section 1 :  Information programmatique"}]
[]
[null,null,"• Guidance: The table contains those Coverage indicators that are:\n1. Included in the Grant Confirmation/Agreement through the latest signed Performance Framework\n2. Are due for reporting in the current reporting period;\n\n\n• Data validation checks are being performed on entered data in the columns. Any issues identified that are not resolved should be explained"]
[]
[null,null,{"$f":"VLOOKUP(Translations!B86,Translations!B3:H508,4,0)","v":"B- Indicateurs de couverture"}]
[]
[null,null,{"$f":"VLOOKUP(Translations!B87,Translations!B3:H508,4,0)","v":"Module"},{"$f":"VLOOKUP(Translations!B88,Translations!B3:H508,4,0)","v":"Indicateurs"},"Geographic Area",{"$f":"VLOOKUP(Translations!B91,Translations!B3:H508,4,0)","v":"Cibles cumulatives ?\n"},"Reverse Indicator?","Geography",{"$f":"VLOOKUP(Translations!B69,Translations!B3:H508,4,0)","v":"Référence"},null,null,null,null,{"$f":"VLOOKUP(Translations!B96,Translations!B3:H508,4,0)","v":"Cible"},null,null,{"$f":"VLOOKUP(Translations!B100,Translations!B3:H508,4,0)","v":"Résultats"},null,null,{"$f":"VLOOKUP(Translations!B95,Translations!B3:H508,4,0)","v":"Source"},{"$f":"VLOOKUP(Translations!B105,Translations!B3:H508,4,0)","v":"Taux d'accomplissement"},"Comments:\nReasons for programmatic deviation from intended target and deviations from the related workplan activities","Data validation checks on PR data","Verified Result",null,null,"Source","Achivement Ratio","Verification Method","Comments:\nLFA analysis on progress to date and any variance between targets and results, and any other comments\n(this should not be a “Copy and Paste” of the reasons provided by the PR)","Data Validation checks on LFA data","Global Fund Validated Result",null,null,"Achivement Ratio\n(final one is calculated by GOS)","Country Team comments on validated results","Data validation checks on GF data"]
[null,null,null,null,{"$f":"VLOOKUP(Translations!B90,Translations!B3:H508,4,0)","v":"Si infranationale, veuillez préciser dans la colonne des commentaires"},null,null,null,"N#","D#","%",{"$f":"VLOOKUP(Translations!B70,Translations!B3:H508,4,0)","v":"Année"},{"$f":"VLOOKUP(Translations!B75,Translations!B3:H508,4,0)","v":"Source"},"N#","D#","%","N#","D#","%",null,null,null,null,"N#","D#","%",null,null,null,null,null,"N#","D#","%"]
[{"$f":"A10+1","v":1},{"$f":"\"Coverage\"&A11","v":"Coverage1"},{"$f":"IFERROR(INDEX('Coverage Indicator_Import-Expor'!$D$7:$D$223,MATCH(B11,'Coverage Indicator_Import-Expor'!$C$7:$C$223,0)),\"\")","v":"TB care and prevention"},{"$f":"IFERROR(INDEX('Coverage Indicator_Import-Expor'!$E$7:$E$223,MATCH(B11,'Coverage Indicator_Import-Expor'!$C$7:$C$223,0)),\"\")","v":"TCP-1(M): Nombre de cas déclarés de tuberculose, toutes formes confondues, bactériologiquement confirmés et cliniquement diagnostiqués, nouveaux cas et récidives"},{"$f":"IFERROR(IF(INDEX('Coverage Indicator_Import-Expor'!K$7:K$223,MATCH($B11,'Coverage Indicator_Import-Expor'!$C$7:$C$223,0))=\"\",\"\",INDEX('Coverage Indicator_Import-Expor'!K$7:K$223,MATCH($B11,'Coverage Indicator_Import-Expor'!$C$7:$C$223,0))),\"\")","v":"National"},{"$f":"IFERROR(IF(INDEX('Coverage Indicator_Import-Expor'!L$7:L$223,MATCH($B11,'Coverage Indicator_Import-Expor'!$C$7:$C$223,0))=\"\",\"\",INDEX('Coverage Indicator_Import-Expor'!L$7:L$223,MATCH($B11,'Coverage Indicator_Import-Expor'!$C$7:$C$223,0))),\"\")","v":"N-Non-cumulative"},{"$f":"IFERROR(IF(INDEX('Coverage Indicator_Import-Expor'!AR$7:AR$223,MATCH($B11,'Coverage Indicator_Import-Expor'!$C$7:$C$223,0))=\"\",\"\",INDEX('Coverage Indicator_Import-Expor'!AR$7:AR$223,MATCH($B11,'Coverage Indicator_Import-Expor'!$C$7:$C$223,0))),\"\")","v":"No"},{"$f":"IFERROR(IF(INDEX('Coverage Indicator_Import-Expor'!AS$7:AS$223,MATCH($B11,'Coverage Indicator_Import-Expor'!$C$7:$C$223,0))=\"\",\"\",INDEX('Coverage Indicator_Import-Expor'!AS$7:AS$223,MATCH($B11,'Coverage Indicator_Import-Expor'!$C$7:$C$223,0))),\"\")","v":"Burundi"},{"$f":"IFERROR(IF(INDEX('Coverage Indicator_Import-Expor'!N$7:N$223,MATCH($B11,'Coverage Indicator_Import-Expor'!$C$7:$C$223,0))=\"\",\"\",INDEX('Coverage Indicator_Import-Expor'!N$7:N$223,MATCH($B11,'Coverage Indicator_Import-Expor'!$C$7:$C$223,0))),\"\")","v":7662},{"$f":"IFERROR(IF(INDEX('Coverage Indicator_Import-Expor'!O$7:O$223,MATCH($B11,'Coverage Indicator_Import-Expor'!$C$7:$C$223,0))=\"\",\"\",INDEX('Coverage Indicator_Import-Expor'!O$7:O$223,MATCH($B11,'Coverage Indicator_Import-Expor'!$C$7:$C$223,0))),\"\")","v":""},{"$f":"IFERROR(IF(INDEX('Coverage Indicator_Import-Expor'!P$7:P$223,MATCH($B11,'Coverage Indicator_Import-Expor'!$C$7:$C$223,0))=\"\",\"\",INDEX('Coverage Indicator_Import-Expor'!P$7:P$223,MATCH($B11,'Coverage Indicator_Import-Expor'!$C$7:$C$223,0))),\"\")","v":""},{"$f":"IFERROR(IF(INDEX('Coverage Indicator_Import-Expor'!Q$7:Q$223,MATCH($B11,'Coverage Indicator_Import-Expor'!$C$7:$C$223,0))=\"\",\"\",INDEX('Coverage Indicator_Import-Expor'!Q$7:Q$223,MATCH($B11,'Coverage Indicator_Import-Expor'!$C$7:$C$223,0))),\"\")","v":"2016"},{"$f":"IFERROR(IF(INDEX('Coverage Indicator_Import-Expor'!R$7:R$223,MATCH($B11,'Coverage Indicator_Import-Expor'!$C$7:$C$223,0))=\"\",\"\",INDEX('Coverage Indicator_Import-Expor'!R$7:R$223,MATCH($B11,'Coverage Indicator_Import-Expor'!$C$7:$C$223,0))),\"\")","v":"PNILT Annual Report"},{"$f":"IFERROR(IF(INDEX('Coverage Indicator_Import-Expor'!S$7:S$223,MATCH($B11,'Coverage Indicator_Import-Expor'!$C$7:$C$223,0))=\"\",\"\",INDEX('Coverage Indicator_Import-Expor'!S$7:S$223,MATCH($B11,'Coverage Indicator_Import-Expor'!$C$7:$C$223,0))),\"\")","v":4223.5},{"$f":"IFERROR(IF(INDEX('Coverage Indicator_Import-Expor'!T$7:T$223,MATCH($B11,'Coverage Indicator_Import-Expor'!$C$7:$C$223,0))=\"\",\"\",INDEX('Coverage Indicator_Import-Expor'!T$7:T$223,MATCH($B11,'Coverage Indicator_Import-Expor'!$C$7:$C$223,0))),\"\")","v":""},{"$f":"IFERROR(IF(INDEX('Coverage Indicator_Import-Expor'!U$7:U$223,MATCH($B11,'Coverage Indicator_Import-Expor'!$C$7:$C$223,0))=\"\",\"\",INDEX('Coverage Indicator_Import-Expor'!U$7:U$223,MATCH($B11,'Coverage Indicator_Import-Expor'!$C$7:$C$223,0))),\"\")","v":""},3827,null,{"$f":"IFERROR((Q11/R11)*100,\"\")","v":""},"R&R TB system, quarterly reports",{"$f":"IFERROR(IF(AND(N11<>\"\",O11=\"\",Q11<>\"\",R11=\"\"),IF((Q11/N11)>120%,120%,(Q11/N11)),IF((S11/P11)>120%,120%,(S11/P11))),\" \")","v":0.90612051615958333},"Le taux d'accomplissement pour la période évaluée (1er semestre 2018) est de 91%. \nLa cible n'a pas été atteinte pour la période, mais il y a progression par rapport à 2017 qui était de 81%. \nNombre de nouveaux cas 3646 pendant le semestre. Rechutes, Retours apres Abandon, Echec thérapeutique 181 cas. \nPour cette période l’écart s’explique par:\n (i) la non-acquisition sur les subventions précédentes du matériel de diagnostic précoce des cas présumés de tuberculose dans certains sites qui auraient pu augmenter le taux de la détection de la TB (Radiologie, Échographe). \n(ii) Il y a eu rupture de stock momentanée de consommables et réactifs de laboratoire en raison de l’absence de stock de sécurité à la clôture de la subvention précédente\n(iii) un relâchement dans l’implication des ASC dans la recherche active et la référence communautaire dû à l’absence de leur motivation financière. \n(iv) La faible couverture de screening TB chez les PVVIH au niveau des sites de traitement ARV. \nEn vue d'améliorer la situation, en collaboration avec le PNUD, le PNILT envisage les mesures suivantes:\n- Renforcement de la collaboration avec la CRB en vue d'un suivi rapproché de la composante Tuberculose communautaire. \nMission de terrain de suivi conjointe prévue (PNUD, PNLT et la CRB). Recherche de financement sur les efficiences\n- Motivation financière prévue pour les ASC dans le plan de travail de CARITAS.\n Le principe est déjà acquis pour les motiver à travers les GASC (contrats signés entre CARITAS et GASC).\n- Suivi de la demande de financement additionnel en vue d’acquérir le matériel de diagnostic performant (Appareil Radio, échographes). \n7 appareils GeneXpert restants seront installés, réalisation de formation pour les prestataires et utilisateurs prévus au T3. Suivi de l'installation des microscopes LED.\n- Renforcement de capacités des prestataires publics et privés afin qu'ils s'impliquent davantage dans la collecte et le transport des échantillons de crachat a travers des missions de supervision.\n- Plaidoyer auprès du comité national co-infection TB-VIH pour qu’il prenne des actions permettant que le screening soit systématique dans les centres PVVIH. Suivi pour l’élaboration du plan conjoint TB-VIH.\n- Les mesures ont été prises pour rendre disponible dans un court délais les réactifs et consommables de laboratoire réceptionnés. \n\nSource des données: cet indicateur a été renseigné par le rapport semestriel du PNILT après consultations des registres patients lors des ateliers de validation trimestrielle.\n\nPour ce qui concerne le nombre de cas parmi les refugiés et prisonniers et selon les données transmises par la CRB au 1er semestre 2018, il a été enregistré  76 cas au niveau des prisons soit un taux d'accomplissement de 76% par rapport à la cible annuelle. Par rapport aux réfugés, 32 cas ont été rapportés par la CRB soit un taux d'accomplissement par rapport à la cible annuelle .",{"$f":"IF(AND(Q11=\"\",R11=\"\",S11=\"\"),\"No Results Reported\",IF(AND(N11<>\"\",O11=\"\",P11=\"\",OR(R11<>\"\",S11<>\"\")),\"Target contains only a numerator. Please Report only a numerator for the result\",\"Continue\"))","v":"Continue"},null,null,{"$f":"IFERROR((X11/Y11)*100,\"\")","v":""},null,{"$f":"IFERROR(IF(AND(N11<>\"\",O11=\"\",X11<>\"\",Y11=\"\"),IF((X11/N11)>120%,120%,(X11/N11)),IF((Z11/P11)>120%,120%,(Z11/P11))),\" \")","v":" "},null,null,{"$f":"IF(AND(X11=\"\",Y11=\"\",Z11=\"\"),\"No Results Reported\",IF(AND(Q11<>\"\",R11=\"\",S11=\"\",OR(Y11<>\"\",Z11<>\"\")),\"Target contains only a numerator. Please Report only a numerator for the result\",\"Continue\"))","v":"No Results Reported"},null,null,{"$f":"IFERROR((AF11/AG11)*100,\"\")","v":""},{"$f":"IFERROR(IF(AND(N11<>\"\",O11=\"\",AF11<>\"\",AG11=\"\"),IF((AF11/N11)>120%,120%,(AF11/N11)),IF((AH11/P11)>120%,120%,(AH11/P11))),\" \")","v":" "},null,{"$f":"IF(AND(AF11=\"\",AG11=\"\",AH11=\"\"),\"No Results Reported\",IF(AND(I11<>\"\",J11=\"\",K11=\"\",OR(AG11<>\"\",AH11<>\"\")),\"Target contains only a numerator. Please Report only a numerator for the result\",\"Continue\"))","v":"No Results Reported"}]
[{"$f":"A11+1","v":2},{"$f":"\"Coverage\"&A12","v":"Coverage2"},{"$f":"IFERROR(INDEX('Coverage Indicator_Import-Expor'!$D$7:$D$223,MATCH(B12,'Coverage Indicator_Import-Expor'!$C$7:$C$223,0)),\"\")","v":"TB care and prevention"},{"$f":"IFERROR(INDEX('Coverage Indicator_Import-Expor'!$E$7:$E$223,MATCH(B12,'Coverage Indicator_Import-Expor'!$C$7:$C$223,0)),\"\")","v":"TCP-2(M): Taux de succès thérapeutique- toutes formes confondue: Pourcentage de cas de TB, toutes formes confondue, bactériologiquement confirmés et diagnostiqués cliniquement, traités avec succès (guéris et traitement terminé) parmi tous les cas de TB ayant commencé le traitement pendant une période déterminée, nouveaux cas et récidives"},{"$f":"IFERROR(IF(INDEX('Coverage Indicator_Import-Expor'!K$7:K$223,MATCH($B12,'Coverage Indicator_Import-Expor'!$C$7:$C$223,0))=\"\",\"\",INDEX('Coverage Indicator_Import-Expor'!K$7:K$223,MATCH($B12,'Coverage Indicator_Import-Expor'!$C$7:$C$223,0))),\"\")","v":"National"},{"$f":"IFERROR(IF(INDEX('Coverage Indicator_Import-Expor'!L$7:L$223,MATCH($B12,'Coverage Indicator_Import-Expor'!$C$7:$C$223,0))=\"\",\"\",INDEX('Coverage Indicator_Import-Expor'!L$7:L$223,MATCH($B12,'Coverage Indicator_Import-Expor'!$C$7:$C$223,0))),\"\")","v":"N-Non-cumulative"},{"$f":"IFERROR(IF(INDEX('Coverage Indicator_Import-Expor'!AR$7:AR$223,MATCH($B12,'Coverage Indicator_Import-Expor'!$C$7:$C$223,0))=\"\",\"\",INDEX('Coverage Indicator_Import-Expor'!AR$7:AR$223,MATCH($B12,'Coverage Indicator_Import-Expor'!$C$7:$C$223,0))),\"\")","v":"No"},{"$f":"IFERROR(IF(INDEX('Coverage Indicator_Import-Expor'!AS$7:AS$223,MATCH($B12,'Coverage Indicator_Import-Expor'!$C$7:$C$223,0))=\"\",\"\",INDEX('Coverage Indicator_Import-Expor'!AS$7:AS$223,MATCH($B12,'Coverage Indicator_Import-Expor'!$C$7:$C$223,0))),\"\")","v":"Burundi"},{"$f":"IFERROR(IF(INDEX('Coverage Indicator_Import-Expor'!N$7:N$223,MATCH($B12,'Coverage Indicator_Import-Expor'!$C$7:$C$223,0))=\"\",\"\",INDEX('Coverage Indicator_Import-Expor'!N$7:N$223,MATCH($B12,'Coverage Indicator_Import-Expor'!$C$7:$C$223,0))),\"\")","v":6429},{"$f":"IFERROR(IF(INDEX('Coverage Indicator_Import-Expor'!O$7:O$223,MATCH($B12,'Coverage Indicator_Import-Expor'!$C$7:$C$223,0))=\"\",\"\",INDEX('Coverage Indicator_Import-Expor'!O$7:O$223,MATCH($B12,'Coverage Indicator_Import-Expor'!$C$7:$C$223,0))),\"\")","v":6969},{"$f":"IFERROR(IF(INDEX('Coverage Indicator_Import-Expor'!P$7:P$223,MATCH($B12,'Coverage Indicator_Import-Expor'!$C$7:$C$223,0))=\"\",\"\",INDEX('Coverage Indicator_Import-Expor'!P$7:P$223,MATCH($B12,'Coverage Indicator_Import-Expor'!$C$7:$C$223,0))),\"\")","v":92.3},{"$f":"IFERROR(IF(INDEX('Coverage Indicator_Import-Expor'!Q$7:Q$223,MATCH($B12,'Coverage Indicator_Import-Expor'!$C$7:$C$223,0))=\"\",\"\",INDEX('Coverage Indicator_Import-Expor'!Q$7:Q$223,MATCH($B12,'Coverage Indicator_Import-Expor'!$C$7:$C$223,0))),\"\")","v":"2016"},{"$f":"IFERROR(IF(INDEX('Coverage Indicator_Import-Expor'!R$7:R$223,MATCH($B12,'Coverage Indicator_Import-Expor'!$C$7:$C$223,0))=\"\",\"\",INDEX('Coverage Indicator_Import-Expor'!R$7:R$223,MATCH($B12,'Coverage Indicator_Import-Expor'!$C$7:$C$223,0))),\"\")","v":"PNILT Annual Report"},{"$f":"IFERROR(IF(INDEX('Coverage Indicator_Import-Expor'!S$7:S$223,MATCH($B12,'Coverage Indicator_Import-Expor'!$C$7:$C$223,0))=\"\",\"\",INDEX('Coverage Indicator_Import-Expor'!S$7:S$223,MATCH($B12,'Coverage Indicator_Import-Expor'!$C$7:$C$223,0))),\"\")","v":3712.7674999999999},{"$f":"IFERROR(IF(INDEX('Coverage Indicator_Import-Expor'!T$7:T$223,MATCH($B12,'Coverage Indicator_Import-Expor'!$C$7:$C$223,0))=\"\",\"\",INDEX('Coverage Indicator_Import-Expor'!T$7:T$223,MATCH($B12,'Coverage Indicator_Import-Expor'!$C$7:$C$223,0))),\"\")","v":4022.5},{"$f":"IFERROR(IF(INDEX('Coverage Indicator_Import-Expor'!U$7:U$223,MATCH($B12,'Coverage Indicator_Import-Expor'!$C$7:$C$223,0))=\"\",\"\",INDEX('Coverage Indicator_Import-Expor'!U$7:U$223,MATCH($B12,'Coverage Indicator_Import-Expor'!$C$7:$C$223,0))),\"\")","v":92.3},2342,2484,{"$f":"IFERROR((Q12/R12)*100,\"\")","v":94.283413848631241},"R&R TB system, quarterly reports",{"$f":"IFERROR(IF(AND(N12<>\"\",O12=\"\",Q12<>\"\",R12=\"\"),IF((Q12/N12)>120%,120%,(Q12/N12)),IF((S12/P12)>120%,120%,(S12/P12))),\" \")","v":1.0214887740913461},"Numerateur : nombre de cas de tuberculose bacteriologiquement confirméeset traitées declarés guéris ou traitement terminés. soit 2342\nDenominateur : nombre de\" cas de Tb bacteriologiquement confirmées enregistrés dans la cohorte de traitement au cours de la periode. soit 2444. \n Le taux de réalisation de cet indicateur est de 94,28%. Ceci se traduit par un   taux d’accomplissemen de 102%.\nCette bonne performance s'expliquerait par:\n (i) le suivi rigoureux des patients mis sous traitement antituberculeux;\n(ii)  la disponibilité des médicaments à tous les niveaux de la pyramide sanitaire,\n(iii) le Traitement Directement Observé (TDO),\n(iv) la supervision régulière du niveau opérationnel par le niveau central du PNILT\n(v)  le renforcement des capacités des prestataires/techniciens de promotion de la santé \nLe PNILT entend renforcer cette performance par la mise à contribution de la communauté dans le soutien et le suivi des patients sous traitement antituberculeux et aussi le réseau Flotte permettant d'évaluer les cas transférés et de réduire les perdus de vue.\n\nSource des données: cet indicateur a été renseigné par le rapport semestriel du PNILT après consultations des registres patients lors des ateliers de validation trimestrielle.",{"$f":"IF(AND(Q12=\"\",R12=\"\",S12=\"\"),\"No Results Reported\",IF(AND(N12<>\"\",O12=\"\",P12=\"\",OR(R12<>\"\",S12<>\"\")),\"Target contains only a numerator. Please Report only a numerator for the result\",\"Continue\"))","v":"Continue"},null,null,{"$f":"IFERROR((X12/Y12)*100,\"\")","v":""},null,{"$f":"IFERROR(IF(AND(N12<>\"\",O12=\"\",X12<>\"\",Y12=\"\"),IF((X12/N12)>120%,120%,(X12/N12)),IF((Z12/P12)>120%,120%,(Z12/P12))),\" \")","v":" "},null,null,{"$f":"IF(AND(X12=\"\",Y12=\"\",Z12=\"\"),\"No Results Reported\",IF(AND(Q12<>\"\",R12=\"\",S12=\"\",OR(Y12<>\"\",Z12<>\"\")),\"Target contains only a numerator. Please Report only a numerator for the result\",\"Continue\"))","v":"No Results Reported"},null,null,{"$f":"IFERROR((AF12/AG12)*100,\"\")","v":""},{"$f":"IFERROR(IF(AND(N12<>\"\",O12=\"\",AF12<>\"\",AG12=\"\"),IF((AF12/N12)>120%,120%,(AF12/N12)),IF((AH12/P12)>120%,120%,(AH12/P12))),\" \")","v":" "},null,{"$f":"IF(AND(AF12=\"\",AG12=\"\",AH12=\"\"),\"No Results Reported\",IF(AND(I12<>\"\",J12=\"\",K12=\"\",OR(AG12<>\"\",AH12<>\"\")),\"Target contains only a numerator. Please Report only a numerator for the result\",\"Continue\"))","v":"No Results Reported"}]
[3,"Coverage3",{"$f":"IFERROR(INDEX('Coverage Indicator_Import-Expor'!$D$7:$D$223,MATCH(B13,'Coverage Indicator_Import-Expor'!$C$7:$C$223,0)),\"\")","v":"TB care and prevention"},{"$f":"IFERROR(INDEX('Coverage Indicator_Import-Expor'!$E$7:$E$223,MATCH(B13,'Coverage Indicator_Import-Expor'!$C$7:$C$223,0)),\"\")","v":"TCP-3: Pourcentage de laboratoires présentant des performances satisfaisantes d’assurance qualité externe pour la microscopie de frottis, parmi le nombre total de laboratoires effectuant des analyses par microscopie de frottis pendant la période"},{"$f":"IFERROR(IF(INDEX('Coverage Indicator_Import-Expor'!K$7:K$223,MATCH($B13,'Coverage Indicator_Import-Expor'!$C$7:$C$223,0))=\"\",\"\",INDEX('Coverage Indicator_Import-Expor'!K$7:K$223,MATCH($B13,'Coverage Indicator_Import-Expor'!$C$7:$C$223,0))),\"\")","v":"National"},{"$f":"IFERROR(IF(INDEX('Coverage Indicator_Import-Expor'!L$7:L$223,MATCH($B13,'Coverage Indicator_Import-Expor'!$C$7:$C$223,0))=\"\",\"\",INDEX('Coverage Indicator_Import-Expor'!L$7:L$223,MATCH($B13,'Coverage Indicator_Import-Expor'!$C$7:$C$223,0))),\"\")","v":"N-Non-cumulative"},{"$f":"IFERROR(IF(INDEX('Coverage Indicator_Import-Expor'!AR$7:AR$223,MATCH($B13,'Coverage Indicator_Import-Expor'!$C$7:$C$223,0))=\"\",\"\",INDEX('Coverage Indicator_Import-Expor'!AR$7:AR$223,MATCH($B13,'Coverage Indicator_Import-Expor'!$C$7:$C$223,0))),\"\")","v":"No"},{"$f":"IFERROR(IF(INDEX('Coverage Indicator_Import-Expor'!AS$7:AS$223,MATCH($B13,'Coverage Indicator_Import-Expor'!$C$7:$C$223,0))=\"\",\"\",INDEX('Coverage Indicator_Import-Expor'!AS$7:AS$223,MATCH($B13,'Coverage Indicator_Import-Expor'!$C$7:$C$223,0))),\"\")","v":"Burundi"},{"$f":"IFERROR(IF(INDEX('Coverage Indicator_Import-Expor'!N$7:N$223,MATCH($B13,'Coverage Indicator_Import-Expor'!$C$7:$C$223,0))=\"\",\"\",INDEX('Coverage Indicator_Import-Expor'!N$7:N$223,MATCH($B13,'Coverage Indicator_Import-Expor'!$C$7:$C$223,0))),\"\")","v":169},{"$f":"IFERROR(IF(INDEX('Coverage Indicator_Import-Expor'!O$7:O$223,MATCH($B13,'Coverage Indicator_Import-Expor'!$C$7:$C$223,0))=\"\",\"\",INDEX('Coverage Indicator_Import-Expor'!O$7:O$223,MATCH($B13,'Coverage Indicator_Import-Expor'!$C$7:$C$223,0))),\"\")","v":171},{"$f":"IFERROR(IF(INDEX('Coverage Indicator_Import-Expor'!P$7:P$223,MATCH($B13,'Coverage Indicator_Import-Expor'!$C$7:$C$223,0))=\"\",\"\",INDEX('Coverage Indicator_Import-Expor'!P$7:P$223,MATCH($B13,'Coverage Indicator_Import-Expor'!$C$7:$C$223,0))),\"\")","v":98.8},{"$f":"IFERROR(IF(INDEX('Coverage Indicator_Import-Expor'!Q$7:Q$223,MATCH($B13,'Coverage Indicator_Import-Expor'!$C$7:$C$223,0))=\"\",\"\",INDEX('Coverage Indicator_Import-Expor'!Q$7:Q$223,MATCH($B13,'Coverage Indicator_Import-Expor'!$C$7:$C$223,0))),\"\")","v":"2016"},{"$f":"IFERROR(IF(INDEX('Coverage Indicator_Import-Expor'!R$7:R$223,MATCH($B13,'Coverage Indicator_Import-Expor'!$C$7:$C$223,0))=\"\",\"\",INDEX('Coverage Indicator_Import-Expor'!R$7:R$223,MATCH($B13,'Coverage Indicator_Import-Expor'!$C$7:$C$223,0))),\"\")","v":"PNILT Annual Report"},{"$f":"IFERROR(IF(INDEX('Coverage Indicator_Import-Expor'!S$7:S$223,MATCH($B13,'Coverage Indicator_Import-Expor'!$C$7:$C$223,0))=\"\",\"\",INDEX('Coverage Indicator_Import-Expor'!S$7:S$223,MATCH($B13,'Coverage Indicator_Import-Expor'!$C$7:$C$223,0))),\"\")","v":171},{"$f":"IFERROR(IF(INDEX('Coverage Indicator_Import-Expor'!T$7:T$223,MATCH($B13,'Coverage Indicator_Import-Expor'!$C$7:$C$223,0))=\"\",\"\",INDEX('Coverage Indicator_Import-Expor'!T$7:T$223,MATCH($B13,'Coverage Indicator_Import-Expor'!$C$7:$C$223,0))),\"\")","v":171},{"$f":"IFERROR(IF(INDEX('Coverage Indicator_Import-Expor'!U$7:U$223,MATCH($B13,'Coverage Indicator_Import-Expor'!$C$7:$C$223,0))=\"\",\"\",INDEX('Coverage Indicator_Import-Expor'!U$7:U$223,MATCH($B13,'Coverage Indicator_Import-Expor'!$C$7:$C$223,0))),\"\")","v":100},0,171,0,"Reports (specify)",0,"Au cours du premier semestre 2018, le contrôle de qualité des lames n’a pas été effectué suite à la rupture de stock en consommables et intrants de laboratoire . Toutefois, les lames pour le contrôle de qualité ont été collectées et seront analysées dès que lesdits consommables et intrants de laboratoire seront disponibles, ce qui est le cas pendant la période de rédaction de ce rapport. Ainsi, l’indicateur pourra être renseigné. \n","Continue",null,null,"",null," ",null,null,"No Results Reported",null,null,""," ",null,"No Results Reported"]
[4,"Coverage4",{"$f":"IFERROR(INDEX('Coverage Indicator_Import-Expor'!$D$7:$D$223,MATCH(B14,'Coverage Indicator_Import-Expor'!$C$7:$C$223,0)),\"\")","v":"TB care and prevention"},{"$f":"IFERROR(INDEX('Coverage Indicator_Import-Expor'!$E$7:$E$223,MATCH(B14,'Coverage Indicator_Import-Expor'!$C$7:$C$223,0)),\"\")","v":"TCP-4: Pourcentage d'entités déclarantes (districts ou unités de gestion de base) n’ayant communiqué aucune rupture de stocks des médicaments antituberculeux de première intention au dernier jour du trimestre"},{"$f":"IFERROR(IF(INDEX('Coverage Indicator_Import-Expor'!K$7:K$223,MATCH($B14,'Coverage Indicator_Import-Expor'!$C$7:$C$223,0))=\"\",\"\",INDEX('Coverage Indicator_Import-Expor'!K$7:K$223,MATCH($B14,'Coverage Indicator_Import-Expor'!$C$7:$C$223,0))),\"\")","v":"National"},{"$f":"IFERROR(IF(INDEX('Coverage Indicator_Import-Expor'!L$7:L$223,MATCH($B14,'Coverage Indicator_Import-Expor'!$C$7:$C$223,0))=\"\",\"\",INDEX('Coverage Indicator_Import-Expor'!L$7:L$223,MATCH($B14,'Coverage Indicator_Import-Expor'!$C$7:$C$223,0))),\"\")","v":"N-Non-cumulative"},{"$f":"IFERROR(IF(INDEX('Coverage Indicator_Import-Expor'!AR$7:AR$223,MATCH($B14,'Coverage Indicator_Import-Expor'!$C$7:$C$223,0))=\"\",\"\",INDEX('Coverage Indicator_Import-Expor'!AR$7:AR$223,MATCH($B14,'Coverage Indicator_Import-Expor'!$C$7:$C$223,0))),\"\")","v":"No"},{"$f":"IFERROR(IF(INDEX('Coverage Indicator_Import-Expor'!AS$7:AS$223,MATCH($B14,'Coverage Indicator_Import-Expor'!$C$7:$C$223,0))=\"\",\"\",INDEX('Coverage Indicator_Import-Expor'!AS$7:AS$223,MATCH($B14,'Coverage Indicator_Import-Expor'!$C$7:$C$223,0))),\"\")","v":"Burundi"},{"$f":"IFERROR(IF(INDEX('Coverage Indicator_Import-Expor'!N$7:N$223,MATCH($B14,'Coverage Indicator_Import-Expor'!$C$7:$C$223,0))=\"\",\"\",INDEX('Coverage Indicator_Import-Expor'!N$7:N$223,MATCH($B14,'Coverage Indicator_Import-Expor'!$C$7:$C$223,0))),\"\")","v":170},{"$f":"IFERROR(IF(INDEX('Coverage Indicator_Import-Expor'!O$7:O$223,MATCH($B14,'Coverage Indicator_Import-Expor'!$C$7:$C$223,0))=\"\",\"\",INDEX('Coverage Indicator_Import-Expor'!O$7:O$223,MATCH($B14,'Coverage Indicator_Import-Expor'!$C$7:$C$223,0))),\"\")","v":170},{"$f":"IFERROR(IF(INDEX('Coverage Indicator_Import-Expor'!P$7:P$223,MATCH($B14,'Coverage Indicator_Import-Expor'!$C$7:$C$223,0))=\"\",\"\",INDEX('Coverage Indicator_Import-Expor'!P$7:P$223,MATCH($B14,'Coverage Indicator_Import-Expor'!$C$7:$C$223,0))),\"\")","v":100},{"$f":"IFERROR(IF(INDEX('Coverage Indicator_Import-Expor'!Q$7:Q$223,MATCH($B14,'Coverage Indicator_Import-Expor'!$C$7:$C$223,0))=\"\",\"\",INDEX('Coverage Indicator_Import-Expor'!Q$7:Q$223,MATCH($B14,'Coverage Indicator_Import-Expor'!$C$7:$C$223,0))),\"\")","v":"2016"},{"$f":"IFERROR(IF(INDEX('Coverage Indicator_Import-Expor'!R$7:R$223,MATCH($B14,'Coverage Indicator_Import-Expor'!$C$7:$C$223,0))=\"\",\"\",INDEX('Coverage Indicator_Import-Expor'!R$7:R$223,MATCH($B14,'Coverage Indicator_Import-Expor'!$C$7:$C$223,0))),\"\")","v":"PNILT Annual Report"},{"$f":"IFERROR(IF(INDEX('Coverage Indicator_Import-Expor'!S$7:S$223,MATCH($B14,'Coverage Indicator_Import-Expor'!$C$7:$C$223,0))=\"\",\"\",INDEX('Coverage Indicator_Import-Expor'!S$7:S$223,MATCH($B14,'Coverage Indicator_Import-Expor'!$C$7:$C$223,0))),\"\")","v":170},{"$f":"IFERROR(IF(INDEX('Coverage Indicator_Import-Expor'!T$7:T$223,MATCH($B14,'Coverage Indicator_Import-Expor'!$C$7:$C$223,0))=\"\",\"\",INDEX('Coverage Indicator_Import-Expor'!T$7:T$223,MATCH($B14,'Coverage Indicator_Import-Expor'!$C$7:$C$223,0))),\"\")","v":170},{"$f":"IFERROR(IF(INDEX('Coverage Indicator_Import-Expor'!U$7:U$223,MATCH($B14,'Coverage Indicator_Import-Expor'!$C$7:$C$223,0))=\"\",\"\",INDEX('Coverage Indicator_Import-Expor'!U$7:U$223,MATCH($B14,'Coverage Indicator_Import-Expor'!$C$7:$C$223,0))),\"\")","v":100},170,170,100,"R&R TB system, quarterly reports",1,"Aucune rupture de stock en médicaments anti tuberculeux n'a été signalée au cours de la période évaluée (1er Semestre 2018), grâce: \n(i) à l’existence d’un stock de médicaments achetés par le Fonds Mondial \n(ii) à la planification des approvisionnements, \n(iii) à la supervision régulière du PNILT sur la gestion des intrants,\n(iv) à l’organisation des ateliers de validation et de diffusion des données. \nCes ateliers permettent de connaitre les besoins en médicaments antituberculeux et de faire la quantification.\n\nSource des données: cet indicateur a été renseigné par le rapport semestriel du PNILT après consultations des fiches de stock   lors des ateliers de validation trimestrielle.","Continue",null,null,"",null," ",null,null,"No Results Reported",null,null,""," ",null,"No Results Reported"]
[5,"Coverage5",{"$f":"IFERROR(INDEX('Coverage Indicator_Import-Expor'!$D$7:$D$223,MATCH(B15,'Coverage Indicator_Import-Expor'!$C$7:$C$223,0)),\"\")","v":"TB care and prevention"},{"$f":"IFERROR(INDEX('Coverage Indicator_Import-Expor'!$E$7:$E$223,MATCH(B15,'Coverage Indicator_Import-Expor'!$C$7:$C$223,0)),\"\")","v":"TCP-5: Nombre d'enfants âgés de moins de 5 en contact avec des patients tuberculeux qui ont commencé un traitement préventif à l'isoniazide"},{"$f":"IFERROR(IF(INDEX('Coverage Indicator_Import-Expor'!K$7:K$223,MATCH($B15,'Coverage Indicator_Import-Expor'!$C$7:$C$223,0))=\"\",\"\",INDEX('Coverage Indicator_Import-Expor'!K$7:K$223,MATCH($B15,'Coverage Indicator_Import-Expor'!$C$7:$C$223,0))),\"\")","v":"National"},{"$f":"IFERROR(IF(INDEX('Coverage Indicator_Import-Expor'!L$7:L$223,MATCH($B15,'Coverage Indicator_Import-Expor'!$C$7:$C$223,0))=\"\",\"\",INDEX('Coverage Indicator_Import-Expor'!L$7:L$223,MATCH($B15,'Coverage Indicator_Import-Expor'!$C$7:$C$223,0))),\"\")","v":"N-Non-cumulative"},{"$f":"IFERROR(IF(INDEX('Coverage Indicator_Import-Expor'!AR$7:AR$223,MATCH($B15,'Coverage Indicator_Import-Expor'!$C$7:$C$223,0))=\"\",\"\",INDEX('Coverage Indicator_Import-Expor'!AR$7:AR$223,MATCH($B15,'Coverage Indicator_Import-Expor'!$C$7:$C$223,0))),\"\")","v":"No"},{"$f":"IFERROR(IF(INDEX('Coverage Indicator_Import-Expor'!AS$7:AS$223,MATCH($B15,'Coverage Indicator_Import-Expor'!$C$7:$C$223,0))=\"\",\"\",INDEX('Coverage Indicator_Import-Expor'!AS$7:AS$223,MATCH($B15,'Coverage Indicator_Import-Expor'!$C$7:$C$223,0))),\"\")","v":"Burundi"},{"$f":"IFERROR(IF(INDEX('Coverage Indicator_Import-Expor'!N$7:N$223,MATCH($B15,'Coverage Indicator_Import-Expor'!$C$7:$C$223,0))=\"\",\"\",INDEX('Coverage Indicator_Import-Expor'!N$7:N$223,MATCH($B15,'Coverage Indicator_Import-Expor'!$C$7:$C$223,0))),\"\")","v":1171},{"$f":"IFERROR(IF(INDEX('Coverage Indicator_Import-Expor'!O$7:O$223,MATCH($B15,'Coverage Indicator_Import-Expor'!$C$7:$C$223,0))=\"\",\"\",INDEX('Coverage Indicator_Import-Expor'!O$7:O$223,MATCH($B15,'Coverage Indicator_Import-Expor'!$C$7:$C$223,0))),\"\")","v":""},{"$f":"IFERROR(IF(INDEX('Coverage Indicator_Import-Expor'!P$7:P$223,MATCH($B15,'Coverage Indicator_Import-Expor'!$C$7:$C$223,0))=\"\",\"\",INDEX('Coverage Indicator_Import-Expor'!P$7:P$223,MATCH($B15,'Coverage Indicator_Import-Expor'!$C$7:$C$223,0))),\"\")","v":""},{"$f":"IFERROR(IF(INDEX('Coverage Indicator_Import-Expor'!Q$7:Q$223,MATCH($B15,'Coverage Indicator_Import-Expor'!$C$7:$C$223,0))=\"\",\"\",INDEX('Coverage Indicator_Import-Expor'!Q$7:Q$223,MATCH($B15,'Coverage Indicator_Import-Expor'!$C$7:$C$223,0))),\"\")","v":"2016"},{"$f":"IFERROR(IF(INDEX('Coverage Indicator_Import-Expor'!R$7:R$223,MATCH($B15,'Coverage Indicator_Import-Expor'!$C$7:$C$223,0))=\"\",\"\",INDEX('Coverage Indicator_Import-Expor'!R$7:R$223,MATCH($B15,'Coverage Indicator_Import-Expor'!$C$7:$C$223,0))),\"\")","v":"PNILT Annual Report"},{"$f":"IFERROR(IF(INDEX('Coverage Indicator_Import-Expor'!S$7:S$223,MATCH($B15,'Coverage Indicator_Import-Expor'!$C$7:$C$223,0))=\"\",\"\",INDEX('Coverage Indicator_Import-Expor'!S$7:S$223,MATCH($B15,'Coverage Indicator_Import-Expor'!$C$7:$C$223,0))),\"\")","v":670.5},{"$f":"IFERROR(IF(INDEX('Coverage Indicator_Import-Expor'!T$7:T$223,MATCH($B15,'Coverage Indicator_Import-Expor'!$C$7:$C$223,0))=\"\",\"\",INDEX('Coverage Indicator_Import-Expor'!T$7:T$223,MATCH($B15,'Coverage Indicator_Import-Expor'!$C$7:$C$223,0))),\"\")","v":""},{"$f":"IFERROR(IF(INDEX('Coverage Indicator_Import-Expor'!U$7:U$223,MATCH($B15,'Coverage Indicator_Import-Expor'!$C$7:$C$223,0))=\"\",\"\",INDEX('Coverage Indicator_Import-Expor'!U$7:U$223,MATCH($B15,'Coverage Indicator_Import-Expor'!$C$7:$C$223,0))),\"\")","v":""},501,null,"","R&R TB system, quarterly reports",0.74720357941834448,"Le nombre d’enfants âgés de moins de (5) cinq ans en contact avec les patients tuberculeux qui ont commencé un traitement a l’INH est de 501 sur 670 attendus (taux d’accomplissement de 75% au lieu de 100%).\nLa cible n’a pas été atteinte s’explique par\n • Retard dans la mise en oeuvre des missions de recherche des enfants de moins de 5 ans en contact avec les patients tuberculeux dans leur famille. Cela a été  dû au  décaissement tardif lié au retard dans la signature des accords avec les SRs.\n• Recrutement tardif des coordonnateurs provinciaux qui assurent et facilitent la recherche des cas contacts dans les familles des tuberculeux, les enfants exposés compris.\nLe PR et le PNLT ont identifié plusieurs activités à mettre en œuvre de manière intensive notamment : \ni) la sensibilisation des ménages au cours des descentes sur la recherche des cas contacts TB et TB/MR.  \n(ii) la supervision par les niveaux central et périphérique\n(iii) l'implication de la communauté \n(iv) déploiement des coordonnateurs provinciaux  en juillet 2018\n(v)  approvisionnement régulier en INH \n\nSource des données: cet indicateur a été renseigné par le rapport semestriel du PNILT après consultations des registres patients lors des ateliers de validation trimestrielle.","Continue",null,null,"",null," ",null,null,"No Results Reported",null,null,""," ",null,"No Results Reported"]
[6,"Coverage6",{"$f":"IFERROR(INDEX('Coverage Indicator_Import-Expor'!$D$7:$D$223,MATCH(B16,'Coverage Indicator_Import-Expor'!$C$7:$C$223,0)),\"\")","v":"TB care and prevention"},{"$f":"IFERROR(INDEX('Coverage Indicator_Import-Expor'!$E$7:$E$223,MATCH(B16,'Coverage Indicator_Import-Expor'!$C$7:$C$223,0)),\"\")","v":"TCP-7c: Nombre de cas déclarés de tuberculose (toutes formes confondues) par les prestataires extérieurs au programme national de lutte contre la tuberculose — services communautaires"},{"$f":"IFERROR(IF(INDEX('Coverage Indicator_Import-Expor'!K$7:K$223,MATCH($B16,'Coverage Indicator_Import-Expor'!$C$7:$C$223,0))=\"\",\"\",INDEX('Coverage Indicator_Import-Expor'!K$7:K$223,MATCH($B16,'Coverage Indicator_Import-Expor'!$C$7:$C$223,0))),\"\")","v":"National"},{"$f":"IFERROR(IF(INDEX('Coverage Indicator_Import-Expor'!L$7:L$223,MATCH($B16,'Coverage Indicator_Import-Expor'!$C$7:$C$223,0))=\"\",\"\",INDEX('Coverage Indicator_Import-Expor'!L$7:L$223,MATCH($B16,'Coverage Indicator_Import-Expor'!$C$7:$C$223,0))),\"\")","v":"N-Non-cumulative"},{"$f":"IFERROR(IF(INDEX('Coverage Indicator_Import-Expor'!AR$7:AR$223,MATCH($B16,'Coverage Indicator_Import-Expor'!$C$7:$C$223,0))=\"\",\"\",INDEX('Coverage Indicator_Import-Expor'!AR$7:AR$223,MATCH($B16,'Coverage Indicator_Import-Expor'!$C$7:$C$223,0))),\"\")","v":"No"},{"$f":"IFERROR(IF(INDEX('Coverage Indicator_Import-Expor'!AS$7:AS$223,MATCH($B16,'Coverage Indicator_Import-Expor'!$C$7:$C$223,0))=\"\",\"\",INDEX('Coverage Indicator_Import-Expor'!AS$7:AS$223,MATCH($B16,'Coverage Indicator_Import-Expor'!$C$7:$C$223,0))),\"\")","v":"Burundi"},{"$f":"IFERROR(IF(INDEX('Coverage Indicator_Import-Expor'!N$7:N$223,MATCH($B16,'Coverage Indicator_Import-Expor'!$C$7:$C$223,0))=\"\",\"\",INDEX('Coverage Indicator_Import-Expor'!N$7:N$223,MATCH($B16,'Coverage Indicator_Import-Expor'!$C$7:$C$223,0))),\"\")","v":382},{"$f":"IFERROR(IF(INDEX('Coverage Indicator_Import-Expor'!O$7:O$223,MATCH($B16,'Coverage Indicator_Import-Expor'!$C$7:$C$223,0))=\"\",\"\",INDEX('Coverage Indicator_Import-Expor'!O$7:O$223,MATCH($B16,'Coverage Indicator_Import-Expor'!$C$7:$C$223,0))),\"\")","v":""},{"$f":"IFERROR(IF(INDEX('Coverage Indicator_Import-Expor'!P$7:P$223,MATCH($B16,'Coverage Indicator_Import-Expor'!$C$7:$C$223,0))=\"\",\"\",INDEX('Coverage Indicator_Import-Expor'!P$7:P$223,MATCH($B16,'Coverage Indicator_Import-Expor'!$C$7:$C$223,0))),\"\")","v":""},{"$f":"IFERROR(IF(INDEX('Coverage Indicator_Import-Expor'!Q$7:Q$223,MATCH($B16,'Coverage Indicator_Import-Expor'!$C$7:$C$223,0))=\"\",\"\",INDEX('Coverage Indicator_Import-Expor'!Q$7:Q$223,MATCH($B16,'Coverage Indicator_Import-Expor'!$C$7:$C$223,0))),\"\")","v":"2016"},{"$f":"IFERROR(IF(INDEX('Coverage Indicator_Import-Expor'!R$7:R$223,MATCH($B16,'Coverage Indicator_Import-Expor'!$C$7:$C$223,0))=\"\",\"\",INDEX('Coverage Indicator_Import-Expor'!R$7:R$223,MATCH($B16,'Coverage Indicator_Import-Expor'!$C$7:$C$223,0))),\"\")","v":"PNILT Annual Report"},{"$f":"IFERROR(IF(INDEX('Coverage Indicator_Import-Expor'!S$7:S$223,MATCH($B16,'Coverage Indicator_Import-Expor'!$C$7:$C$223,0))=\"\",\"\",INDEX('Coverage Indicator_Import-Expor'!S$7:S$223,MATCH($B16,'Coverage Indicator_Import-Expor'!$C$7:$C$223,0))),\"\")","v":1267},{"$f":"IFERROR(IF(INDEX('Coverage Indicator_Import-Expor'!T$7:T$223,MATCH($B16,'Coverage Indicator_Import-Expor'!$C$7:$C$223,0))=\"\",\"\",INDEX('Coverage Indicator_Import-Expor'!T$7:T$223,MATCH($B16,'Coverage Indicator_Import-Expor'!$C$7:$C$223,0))),\"\")","v":""},{"$f":"IFERROR(IF(INDEX('Coverage Indicator_Import-Expor'!U$7:U$223,MATCH($B16,'Coverage Indicator_Import-Expor'!$C$7:$C$223,0))=\"\",\"\",INDEX('Coverage Indicator_Import-Expor'!U$7:U$223,MATCH($B16,'Coverage Indicator_Import-Expor'!$C$7:$C$223,0))),\"\")","v":""},754,null,"","Reports (specify)",0.59510655090765585,"Le nombre de cas déclarés de TB toutes formes confondues par les prestataires extérieurs du PNLT (ASC) est de 754 cas.   (source communautaire) CRB .\nNous avons considéré  les données rapportées par la CRB car cet indicateur concerne les activités communautaires qui sont mises en oeuvre par la CRB à travers les ASC et les médiateurs de santé.\nSignalons que les cas référés par les ASC ne sont pas toujours mentionnés dans les registres de dépistage de la TB au niveau des CDT, du à la non standardisation des outils et la collecte parallèle des données par rapport au cas référés par les médiateurs. \nLe taux d'accomplissement est de 60%. Cette  performance moyenne s’expliquerait par :\n• Démotivation des ASC suite au  retard dans le paiement des subsides liées à leurs performances  pour les prestations de l’ancienne subvention.\nLe paiement a été effectué entre juin et juillet 2018. \n• Absence de médiateurs dans certains CDT, ce qui serait à l’origine de la non complétude des données.\nPour y remédier, le PR et le PNLT ont identifié plusieurs activités à mettre en œuvre de manière intensive notamment :\n• Séances de travail et mission de terrain conjointe (CRB, PNLT, PNUD)\n• Utilisation des outils standardisés\n• Validation des prestations des ASCs par CRB et PNLT. \n• Suivi régulier du paiement des ASCs \n• Plaidoyer pour que les CDTs puissent partager l’information des cas référés dépistés positifs aux médiateurs et vice versa.\n\nSource des données: cet indicateur a été renseigné par le rapport semestriel de la CRB  ","Continue",null,null,"",null," ",null,null,"No Results Reported",null,null,""," ",null,"No Results Reported"]
[7,"Coverage7",{"$f":"IFERROR(INDEX('Coverage Indicator_Import-Expor'!$D$7:$D$223,MATCH(B17,'Coverage Indicator_Import-Expor'!$C$7:$C$223,0)),\"\")","v":"TB/HIV"},{"$f":"IFERROR(INDEX('Coverage Indicator_Import-Expor'!$E$7:$E$223,MATCH(B17,'Coverage Indicator_Import-Expor'!$C$7:$C$223,0)),\"\")","v":"TB/HIV-5: Pourcentage de nouveaux patients TB et de rechute enregistrés dont le statut VIH est documenté"},{"$f":"IFERROR(IF(INDEX('Coverage Indicator_Import-Expor'!K$7:K$223,MATCH($B17,'Coverage Indicator_Import-Expor'!$C$7:$C$223,0))=\"\",\"\",INDEX('Coverage Indicator_Import-Expor'!K$7:K$223,MATCH($B17,'Coverage Indicator_Import-Expor'!$C$7:$C$223,0))),\"\")","v":"National"},{"$f":"IFERROR(IF(INDEX('Coverage Indicator_Import-Expor'!L$7:L$223,MATCH($B17,'Coverage Indicator_Import-Expor'!$C$7:$C$223,0))=\"\",\"\",INDEX('Coverage Indicator_Import-Expor'!L$7:L$223,MATCH($B17,'Coverage Indicator_Import-Expor'!$C$7:$C$223,0))),\"\")","v":"N-Non-cumulative"},{"$f":"IFERROR(IF(INDEX('Coverage Indicator_Import-Expor'!AR$7:AR$223,MATCH($B17,'Coverage Indicator_Import-Expor'!$C$7:$C$223,0))=\"\",\"\",INDEX('Coverage Indicator_Import-Expor'!AR$7:AR$223,MATCH($B17,'Coverage Indicator_Import-Expor'!$C$7:$C$223,0))),\"\")","v":"No"},{"$f":"IFERROR(IF(INDEX('Coverage Indicator_Import-Expor'!AS$7:AS$223,MATCH($B17,'Coverage Indicator_Import-Expor'!$C$7:$C$223,0))=\"\",\"\",INDEX('Coverage Indicator_Import-Expor'!AS$7:AS$223,MATCH($B17,'Coverage Indicator_Import-Expor'!$C$7:$C$223,0))),\"\")","v":"Burundi"},{"$f":"IFERROR(IF(INDEX('Coverage Indicator_Import-Expor'!N$7:N$223,MATCH($B17,'Coverage Indicator_Import-Expor'!$C$7:$C$223,0))=\"\",\"\",INDEX('Coverage Indicator_Import-Expor'!N$7:N$223,MATCH($B17,'Coverage Indicator_Import-Expor'!$C$7:$C$223,0))),\"\")","v":7345},{"$f":"IFERROR(IF(INDEX('Coverage Indicator_Import-Expor'!O$7:O$223,MATCH($B17,'Coverage Indicator_Import-Expor'!$C$7:$C$223,0))=\"\",\"\",INDEX('Coverage Indicator_Import-Expor'!O$7:O$223,MATCH($B17,'Coverage Indicator_Import-Expor'!$C$7:$C$223,0))),\"\")","v":7662},{"$f":"IFERROR(IF(INDEX('Coverage Indicator_Import-Expor'!P$7:P$223,MATCH($B17,'Coverage Indicator_Import-Expor'!$C$7:$C$223,0))=\"\",\"\",INDEX('Coverage Indicator_Import-Expor'!P$7:P$223,MATCH($B17,'Coverage Indicator_Import-Expor'!$C$7:$C$223,0))),\"\")","v":95.9},{"$f":"IFERROR(IF(INDEX('Coverage Indicator_Import-Expor'!Q$7:Q$223,MATCH($B17,'Coverage Indicator_Import-Expor'!$C$7:$C$223,0))=\"\",\"\",INDEX('Coverage Indicator_Import-Expor'!Q$7:Q$223,MATCH($B17,'Coverage Indicator_Import-Expor'!$C$7:$C$223,0))),\"\")","v":"2016"},{"$f":"IFERROR(IF(INDEX('Coverage Indicator_Import-Expor'!R$7:R$223,MATCH($B17,'Coverage Indicator_Import-Expor'!$C$7:$C$223,0))=\"\",\"\",INDEX('Coverage Indicator_Import-Expor'!R$7:R$223,MATCH($B17,'Coverage Indicator_Import-Expor'!$C$7:$C$223,0))),\"\")","v":"PNILT Annual Report"},{"$f":"IFERROR(IF(INDEX('Coverage Indicator_Import-Expor'!S$7:S$223,MATCH($B17,'Coverage Indicator_Import-Expor'!$C$7:$C$223,0))=\"\",\"\",INDEX('Coverage Indicator_Import-Expor'!S$7:S$223,MATCH($B17,'Coverage Indicator_Import-Expor'!$C$7:$C$223,0))),\"\")","v":4054.56},{"$f":"IFERROR(IF(INDEX('Coverage Indicator_Import-Expor'!T$7:T$223,MATCH($B17,'Coverage Indicator_Import-Expor'!$C$7:$C$223,0))=\"\",\"\",INDEX('Coverage Indicator_Import-Expor'!T$7:T$223,MATCH($B17,'Coverage Indicator_Import-Expor'!$C$7:$C$223,0))),\"\")","v":4223.5},{"$f":"IFERROR(IF(INDEX('Coverage Indicator_Import-Expor'!U$7:U$223,MATCH($B17,'Coverage Indicator_Import-Expor'!$C$7:$C$223,0))=\"\",\"\",INDEX('Coverage Indicator_Import-Expor'!U$7:U$223,MATCH($B17,'Coverage Indicator_Import-Expor'!$C$7:$C$223,0))),\"\")","v":96},3727,3827,97.386987196237257,"R&R TB system, quarterly reports",1.0144477832941381,"Le taux de réalisation est de 97.38 % pour la période évaluée (1er semestre 2018). Cette performance s'explique par: \n(i) les activités de  renforcement des capacités des prestataires de soins dans les CDT en matière de Counseling et dépistage du VIH \n(ii) la disponibilité des tests VIH au cours de la période évaluée\n(iii) la supervision effectuée par le niveau central du PNILT\n\nSource des données: cet indicateur a été renseigné par le rapport semestriel de la CRB  après consultation des registres médiateurs de santé.\n","Continue",null,null,"",null," ",null,null,"No Results Reported",null,null,""," ",null,"No Results Reported"]
[8,"Coverage8",{"$f":"IFERROR(INDEX('Coverage Indicator_Import-Expor'!$D$7:$D$223,MATCH(B18,'Coverage Indicator_Import-Expor'!$C$7:$C$223,0)),\"\")","v":"TB/HIV"},{"$f":"IFERROR(INDEX('Coverage Indicator_Import-Expor'!$E$7:$E$223,MATCH(B18,'Coverage Indicator_Import-Expor'!$C$7:$C$223,0)),\"\")","v":"TB/HIV-6(M): Pourcentage de nouveaux patients  tuberculeux et de rechutes, séropositifs au VIH, sous traitement antirétroviral au cours du traitement de la tuberculose"},{"$f":"IFERROR(IF(INDEX('Coverage Indicator_Import-Expor'!K$7:K$223,MATCH($B18,'Coverage Indicator_Import-Expor'!$C$7:$C$223,0))=\"\",\"\",INDEX('Coverage Indicator_Import-Expor'!K$7:K$223,MATCH($B18,'Coverage Indicator_Import-Expor'!$C$7:$C$223,0))),\"\")","v":"National"},{"$f":"IFERROR(IF(INDEX('Coverage Indicator_Import-Expor'!L$7:L$223,MATCH($B18,'Coverage Indicator_Import-Expor'!$C$7:$C$223,0))=\"\",\"\",INDEX('Coverage Indicator_Import-Expor'!L$7:L$223,MATCH($B18,'Coverage Indicator_Import-Expor'!$C$7:$C$223,0))),\"\")","v":"N-Non-cumulative"},{"$f":"IFERROR(IF(INDEX('Coverage Indicator_Import-Expor'!AR$7:AR$223,MATCH($B18,'Coverage Indicator_Import-Expor'!$C$7:$C$223,0))=\"\",\"\",INDEX('Coverage Indicator_Import-Expor'!AR$7:AR$223,MATCH($B18,'Coverage Indicator_Import-Expor'!$C$7:$C$223,0))),\"\")","v":"No"},{"$f":"IFERROR(IF(INDEX('Coverage Indicator_Import-Expor'!AS$7:AS$223,MATCH($B18,'Coverage Indicator_Import-Expor'!$C$7:$C$223,0))=\"\",\"\",INDEX('Coverage Indicator_Import-Expor'!AS$7:AS$223,MATCH($B18,'Coverage Indicator_Import-Expor'!$C$7:$C$223,0))),\"\")","v":"Burundi"},{"$f":"IFERROR(IF(INDEX('Coverage Indicator_Import-Expor'!N$7:N$223,MATCH($B18,'Coverage Indicator_Import-Expor'!$C$7:$C$223,0))=\"\",\"\",INDEX('Coverage Indicator_Import-Expor'!N$7:N$223,MATCH($B18,'Coverage Indicator_Import-Expor'!$C$7:$C$223,0))),\"\")","v":795},{"$f":"IFERROR(IF(INDEX('Coverage Indicator_Import-Expor'!O$7:O$223,MATCH($B18,'Coverage Indicator_Import-Expor'!$C$7:$C$223,0))=\"\",\"\",INDEX('Coverage Indicator_Import-Expor'!O$7:O$223,MATCH($B18,'Coverage Indicator_Import-Expor'!$C$7:$C$223,0))),\"\")","v":877},{"$f":"IFERROR(IF(INDEX('Coverage Indicator_Import-Expor'!P$7:P$223,MATCH($B18,'Coverage Indicator_Import-Expor'!$C$7:$C$223,0))=\"\",\"\",INDEX('Coverage Indicator_Import-Expor'!P$7:P$223,MATCH($B18,'Coverage Indicator_Import-Expor'!$C$7:$C$223,0))),\"\")","v":90.6},{"$f":"IFERROR(IF(INDEX('Coverage Indicator_Import-Expor'!Q$7:Q$223,MATCH($B18,'Coverage Indicator_Import-Expor'!$C$7:$C$223,0))=\"\",\"\",INDEX('Coverage Indicator_Import-Expor'!Q$7:Q$223,MATCH($B18,'Coverage Indicator_Import-Expor'!$C$7:$C$223,0))),\"\")","v":"2016"},{"$f":"IFERROR(IF(INDEX('Coverage Indicator_Import-Expor'!R$7:R$223,MATCH($B18,'Coverage Indicator_Import-Expor'!$C$7:$C$223,0))=\"\",\"\",INDEX('Coverage Indicator_Import-Expor'!R$7:R$223,MATCH($B18,'Coverage Indicator_Import-Expor'!$C$7:$C$223,0))),\"\")","v":"PNILT Annual Report"},{"$f":"IFERROR(IF(INDEX('Coverage Indicator_Import-Expor'!S$7:S$223,MATCH($B18,'Coverage Indicator_Import-Expor'!$C$7:$C$223,0))=\"\",\"\",INDEX('Coverage Indicator_Import-Expor'!S$7:S$223,MATCH($B18,'Coverage Indicator_Import-Expor'!$C$7:$C$223,0))),\"\")","v":661.92},{"$f":"IFERROR(IF(INDEX('Coverage Indicator_Import-Expor'!T$7:T$223,MATCH($B18,'Coverage Indicator_Import-Expor'!$C$7:$C$223,0))=\"\",\"\",INDEX('Coverage Indicator_Import-Expor'!T$7:T$223,MATCH($B18,'Coverage Indicator_Import-Expor'!$C$7:$C$223,0))),\"\")","v":689.5},{"$f":"IFERROR(IF(INDEX('Coverage Indicator_Import-Expor'!U$7:U$223,MATCH($B18,'Coverage Indicator_Import-Expor'!$C$7:$C$223,0))=\"\",\"\",INDEX('Coverage Indicator_Import-Expor'!U$7:U$223,MATCH($B18,'Coverage Indicator_Import-Expor'!$C$7:$C$223,0))),\"\")","v":96},406,410,99.024390243902445,"R&R TB system, quarterly reports",1.0315040650406504,"Pour la période évaluée (1er semestre 2018), le taux de réalisation est de 99.024% . C'est à dire un  taux d'accomplissement de 103%. \nCette performance s'explique par:\n(i) le renforcement des capacités des prestataires de soins dans les CDT en matière de Counselling et dépistage du VIH\n(ii) la disponibilité des antirétroviraux au cours de la période évaluée\n(iii) la supervision effectuée par le niveau central du PNILT\n\nSource des données: cet indicateur a été renseigné par le rapport semestriel du PNILT après consultations des registres patients lors des ateliers de validation trimestrielle.\n\n\n","Continue",null,null,"",null," ",null,null,"No Results Reported",null,null,""," ",null,"No Results Reported"]
[9,"Coverage9",{"$f":"IFERROR(INDEX('Coverage Indicator_Import-Expor'!$D$7:$D$223,MATCH(B19,'Coverage Indicator_Import-Expor'!$C$7:$C$223,0)),\"\")","v":"MDR-TB"},{"$f":"IFERROR(INDEX('Coverage Indicator_Import-Expor'!$E$7:$E$223,MATCH(B19,'Coverage Indicator_Import-Expor'!$C$7:$C$223,0)),\"\")","v":"MDR TB-2(M): Nombre de cas de tuberculose, résistante à la rifampicine et/ou tuberculose multirésistante confirmés"},{"$f":"IFERROR(IF(INDEX('Coverage Indicator_Import-Expor'!K$7:K$223,MATCH($B19,'Coverage Indicator_Import-Expor'!$C$7:$C$223,0))=\"\",\"\",INDEX('Coverage Indicator_Import-Expor'!K$7:K$223,MATCH($B19,'Coverage Indicator_Import-Expor'!$C$7:$C$223,0))),\"\")","v":"National"},{"$f":"IFERROR(IF(INDEX('Coverage Indicator_Import-Expor'!L$7:L$223,MATCH($B19,'Coverage Indicator_Import-Expor'!$C$7:$C$223,0))=\"\",\"\",INDEX('Coverage Indicator_Import-Expor'!L$7:L$223,MATCH($B19,'Coverage Indicator_Import-Expor'!$C$7:$C$223,0))),\"\")","v":"N-Non-cumulative"},{"$f":"IFERROR(IF(INDEX('Coverage Indicator_Import-Expor'!AR$7:AR$223,MATCH($B19,'Coverage Indicator_Import-Expor'!$C$7:$C$223,0))=\"\",\"\",INDEX('Coverage Indicator_Import-Expor'!AR$7:AR$223,MATCH($B19,'Coverage Indicator_Import-Expor'!$C$7:$C$223,0))),\"\")","v":"No"},{"$f":"IFERROR(IF(INDEX('Coverage Indicator_Import-Expor'!AS$7:AS$223,MATCH($B19,'Coverage Indicator_Import-Expor'!$C$7:$C$223,0))=\"\",\"\",INDEX('Coverage Indicator_Import-Expor'!AS$7:AS$223,MATCH($B19,'Coverage Indicator_Import-Expor'!$C$7:$C$223,0))),\"\")","v":"Burundi"},{"$f":"IFERROR(IF(INDEX('Coverage Indicator_Import-Expor'!N$7:N$223,MATCH($B19,'Coverage Indicator_Import-Expor'!$C$7:$C$223,0))=\"\",\"\",INDEX('Coverage Indicator_Import-Expor'!N$7:N$223,MATCH($B19,'Coverage Indicator_Import-Expor'!$C$7:$C$223,0))),\"\")","v":80},{"$f":"IFERROR(IF(INDEX('Coverage Indicator_Import-Expor'!O$7:O$223,MATCH($B19,'Coverage Indicator_Import-Expor'!$C$7:$C$223,0))=\"\",\"\",INDEX('Coverage Indicator_Import-Expor'!O$7:O$223,MATCH($B19,'Coverage Indicator_Import-Expor'!$C$7:$C$223,0))),\"\")","v":""},{"$f":"IFERROR(IF(INDEX('Coverage Indicator_Import-Expor'!P$7:P$223,MATCH($B19,'Coverage Indicator_Import-Expor'!$C$7:$C$223,0))=\"\",\"\",INDEX('Coverage Indicator_Import-Expor'!P$7:P$223,MATCH($B19,'Coverage Indicator_Import-Expor'!$C$7:$C$223,0))),\"\")","v":""},{"$f":"IFERROR(IF(INDEX('Coverage Indicator_Import-Expor'!Q$7:Q$223,MATCH($B19,'Coverage Indicator_Import-Expor'!$C$7:$C$223,0))=\"\",\"\",INDEX('Coverage Indicator_Import-Expor'!Q$7:Q$223,MATCH($B19,'Coverage Indicator_Import-Expor'!$C$7:$C$223,0))),\"\")","v":"2016"},{"$f":"IFERROR(IF(INDEX('Coverage Indicator_Import-Expor'!R$7:R$223,MATCH($B19,'Coverage Indicator_Import-Expor'!$C$7:$C$223,0))=\"\",\"\",INDEX('Coverage Indicator_Import-Expor'!R$7:R$223,MATCH($B19,'Coverage Indicator_Import-Expor'!$C$7:$C$223,0))),\"\")","v":"PNILT Annual Report"},{"$f":"IFERROR(IF(INDEX('Coverage Indicator_Import-Expor'!S$7:S$223,MATCH($B19,'Coverage Indicator_Import-Expor'!$C$7:$C$223,0))=\"\",\"\",INDEX('Coverage Indicator_Import-Expor'!S$7:S$223,MATCH($B19,'Coverage Indicator_Import-Expor'!$C$7:$C$223,0))),\"\")","v":73.5},{"$f":"IFERROR(IF(INDEX('Coverage Indicator_Import-Expor'!T$7:T$223,MATCH($B19,'Coverage Indicator_Import-Expor'!$C$7:$C$223,0))=\"\",\"\",INDEX('Coverage Indicator_Import-Expor'!T$7:T$223,MATCH($B19,'Coverage Indicator_Import-Expor'!$C$7:$C$223,0))),\"\")","v":""},{"$f":"IFERROR(IF(INDEX('Coverage Indicator_Import-Expor'!U$7:U$223,MATCH($B19,'Coverage Indicator_Import-Expor'!$C$7:$C$223,0))=\"\",\"\",INDEX('Coverage Indicator_Import-Expor'!U$7:U$223,MATCH($B19,'Coverage Indicator_Import-Expor'!$C$7:$C$223,0))),\"\")","v":""},20,null,"","R&R TB system, quarterly reports",0.27210884353741499,"Le taux d'accomplissement est  de 27%. Au cours de la période seulement 20 cas de TBMDR ont été enregistrés ce qui conduit à l'interrogation suivante: La baisse des TB-MR est elle reelle ou le systeme de suivi des rechutes et des abandons au traitement est moins performant? \nLes faits suivants sont en faveur de la réduction du nombre de cas TB/MR :\n(i) Une très bonne performance en matière de succès thérapeutique > 90% pour les cas de tuberculose sensible et tuberculose multi résistance. \n(ii) La mise en route précoce d’un traitement antituberculeux chez les cas contacts diagnostiqués positifs permet de couper la chaine de transmission. \n(iii) La réduction sensible des cas de perdus de vue (environ 1%)\n(iv) Bonne observance thérapeutique suite a l’octroi des frais de déplacement pour l’examen de suivi biologique aux malades MDR.\nPour les raisons ci-dessus, les cas TB/MR ne devraient pas être nombreux. \nUne discussion entre le FM, le RP et le PNILT devrait être envisagée pour la révision des  cibles.    \nParallèlement, le PNILT envisage :\n- Poursuivre la recherche des cas contacts TB et TB/MR, \n- Renforcer la recherche de la résistance chez tous les cas en indication (retraitement, contacts TB/MR, etc),\n- Débuter l’étude sur la résistance aux médicaments qui pourrait aider dans la fixation des cibles réalistes et orienter les stratégies de prévention et de lutte contre la TB en général et la TB/MR en particulier,\n- Renforcer le Traitement Directement Observé (TDO),\n- Poursuivre l’utilisation de la flotte de communication en vue de réduire les perdus de vue.\n- Installer et rendre opérationnelle les 7 autres appareils GeneXpert \n- Former les prestataires sur l’utilisation des appareils GeneXpert\nSource des données: cet indicateur a été renseigné par le rapport semestriel du PNILT après consultations des registres patients TB/MDR du centre de prise en charge des cas de KIBUMBU.","Continue",null,null,"",null," ",null,null,"No Results Reported",null,null,""," ",null,"No Results Reported"]
[10,"Coverage10",{"$f":"IFERROR(INDEX('Coverage Indicator_Import-Expor'!$D$7:$D$223,MATCH(B20,'Coverage Indicator_Import-Expor'!$C$7:$C$223,0)),\"\")","v":"MDR-TB"},{"$f":"IFERROR(INDEX('Coverage Indicator_Import-Expor'!$E$7:$E$223,MATCH(B20,'Coverage Indicator_Import-Expor'!$C$7:$C$223,0)),\"\")","v":"MDR TB-3(M): Nombre de cas de tuberculose résistante à la rifampicine et/ou tuberculose multirésistante qui ont commencé un traitement de deuxième intention"},{"$f":"IFERROR(IF(INDEX('Coverage Indicator_Import-Expor'!K$7:K$223,MATCH($B20,'Coverage Indicator_Import-Expor'!$C$7:$C$223,0))=\"\",\"\",INDEX('Coverage Indicator_Import-Expor'!K$7:K$223,MATCH($B20,'Coverage Indicator_Import-Expor'!$C$7:$C$223,0))),\"\")","v":"National"},{"$f":"IFERROR(IF(INDEX('Coverage Indicator_Import-Expor'!L$7:L$223,MATCH($B20,'Coverage Indicator_Import-Expor'!$C$7:$C$223,0))=\"\",\"\",INDEX('Coverage Indicator_Import-Expor'!L$7:L$223,MATCH($B20,'Coverage Indicator_Import-Expor'!$C$7:$C$223,0))),\"\")","v":"N-Non-cumulative"},{"$f":"IFERROR(IF(INDEX('Coverage Indicator_Import-Expor'!AR$7:AR$223,MATCH($B20,'Coverage Indicator_Import-Expor'!$C$7:$C$223,0))=\"\",\"\",INDEX('Coverage Indicator_Import-Expor'!AR$7:AR$223,MATCH($B20,'Coverage Indicator_Import-Expor'!$C$7:$C$223,0))),\"\")","v":"No"},{"$f":"IFERROR(IF(INDEX('Coverage Indicator_Import-Expor'!AS$7:AS$223,MATCH($B20,'Coverage Indicator_Import-Expor'!$C$7:$C$223,0))=\"\",\"\",INDEX('Coverage Indicator_Import-Expor'!AS$7:AS$223,MATCH($B20,'Coverage Indicator_Import-Expor'!$C$7:$C$223,0))),\"\")","v":"Burundi"},{"$f":"IFERROR(IF(INDEX('Coverage Indicator_Import-Expor'!N$7:N$223,MATCH($B20,'Coverage Indicator_Import-Expor'!$C$7:$C$223,0))=\"\",\"\",INDEX('Coverage Indicator_Import-Expor'!N$7:N$223,MATCH($B20,'Coverage Indicator_Import-Expor'!$C$7:$C$223,0))),\"\")","v":80},{"$f":"IFERROR(IF(INDEX('Coverage Indicator_Import-Expor'!O$7:O$223,MATCH($B20,'Coverage Indicator_Import-Expor'!$C$7:$C$223,0))=\"\",\"\",INDEX('Coverage Indicator_Import-Expor'!O$7:O$223,MATCH($B20,'Coverage Indicator_Import-Expor'!$C$7:$C$223,0))),\"\")","v":""},{"$f":"IFERROR(IF(INDEX('Coverage Indicator_Import-Expor'!P$7:P$223,MATCH($B20,'Coverage Indicator_Import-Expor'!$C$7:$C$223,0))=\"\",\"\",INDEX('Coverage Indicator_Import-Expor'!P$7:P$223,MATCH($B20,'Coverage Indicator_Import-Expor'!$C$7:$C$223,0))),\"\")","v":""},{"$f":"IFERROR(IF(INDEX('Coverage Indicator_Import-Expor'!Q$7:Q$223,MATCH($B20,'Coverage Indicator_Import-Expor'!$C$7:$C$223,0))=\"\",\"\",INDEX('Coverage Indicator_Import-Expor'!Q$7:Q$223,MATCH($B20,'Coverage Indicator_Import-Expor'!$C$7:$C$223,0))),\"\")","v":"2016"},{"$f":"IFERROR(IF(INDEX('Coverage Indicator_Import-Expor'!R$7:R$223,MATCH($B20,'Coverage Indicator_Import-Expor'!$C$7:$C$223,0))=\"\",\"\",INDEX('Coverage Indicator_Import-Expor'!R$7:R$223,MATCH($B20,'Coverage Indicator_Import-Expor'!$C$7:$C$223,0))),\"\")","v":"PNILT Annual Report"},{"$f":"IFERROR(IF(INDEX('Coverage Indicator_Import-Expor'!S$7:S$223,MATCH($B20,'Coverage Indicator_Import-Expor'!$C$7:$C$223,0))=\"\",\"\",INDEX('Coverage Indicator_Import-Expor'!S$7:S$223,MATCH($B20,'Coverage Indicator_Import-Expor'!$C$7:$C$223,0))),\"\")","v":73.5},{"$f":"IFERROR(IF(INDEX('Coverage Indicator_Import-Expor'!T$7:T$223,MATCH($B20,'Coverage Indicator_Import-Expor'!$C$7:$C$223,0))=\"\",\"\",INDEX('Coverage Indicator_Import-Expor'!T$7:T$223,MATCH($B20,'Coverage Indicator_Import-Expor'!$C$7:$C$223,0))),\"\")","v":""},{"$f":"IFERROR(IF(INDEX('Coverage Indicator_Import-Expor'!U$7:U$223,MATCH($B20,'Coverage Indicator_Import-Expor'!$C$7:$C$223,0))=\"\",\"\",INDEX('Coverage Indicator_Import-Expor'!U$7:U$223,MATCH($B20,'Coverage Indicator_Import-Expor'!$C$7:$C$223,0))),\"\")","v":""},20,null,"","R&R TB system, quarterly reports",0.27210884353741499,"Au cours de la période évaluée (1er semestre 2018), 100%  des  cas TB/MR diagnostiqués ont été mis sous traitement. Ceci a été possible grâce à la disponibilité des médicaments de 2ème ligne achetés par le Fonds Mondial sur la subvention et l’engagement des prestataires à mettre systématiquement sous traitement tout cas de multirésistance. \nComme indiqué au niveau de l'indicateur précedent (MDR-TB-2), le RP et le PNILT suggère une révision des cibles. Ici il s'agira d'exprimer le % de TB-MR mis en traitement de 2eme ligne.\n\nSource des données: cet indicateur a été renseigné par le rapport semestriel du PNILT après consultations des registres patients TB/MDR du centre de prise en charge des cas de KIBUMBU.","Continue",null,null,"",null," ",null,null,"No Results Reported",null,null,""," ",null,"No Results Reported"]
[11,"Coverage11",{"$f":"IFERROR(INDEX('Coverage Indicator_Import-Expor'!$D$7:$D$223,MATCH(B21,'Coverage Indicator_Import-Expor'!$C$7:$C$223,0)),\"\")","v":"RSSH: Health management information systems and M&E"},{"$f":"IFERROR(INDEX('Coverage Indicator_Import-Expor'!$E$7:$E$223,MATCH(B21,'Coverage Indicator_Import-Expor'!$C$7:$C$223,0)),\"\")","v":"M&E-1: Pourcentage d’entités déclarantes présentant leurs rapports dans les délais selon les directives nationales"},{"$f":"IFERROR(IF(INDEX('Coverage Indicator_Import-Expor'!K$7:K$223,MATCH($B21,'Coverage Indicator_Import-Expor'!$C$7:$C$223,0))=\"\",\"\",INDEX('Coverage Indicator_Import-Expor'!K$7:K$223,MATCH($B21,'Coverage Indicator_Import-Expor'!$C$7:$C$223,0))),\"\")","v":"National"},{"$f":"IFERROR(IF(INDEX('Coverage Indicator_Import-Expor'!L$7:L$223,MATCH($B21,'Coverage Indicator_Import-Expor'!$C$7:$C$223,0))=\"\",\"\",INDEX('Coverage Indicator_Import-Expor'!L$7:L$223,MATCH($B21,'Coverage Indicator_Import-Expor'!$C$7:$C$223,0))),\"\")","v":"N-Non-cumulative"},{"$f":"IFERROR(IF(INDEX('Coverage Indicator_Import-Expor'!AR$7:AR$223,MATCH($B21,'Coverage Indicator_Import-Expor'!$C$7:$C$223,0))=\"\",\"\",INDEX('Coverage Indicator_Import-Expor'!AR$7:AR$223,MATCH($B21,'Coverage Indicator_Import-Expor'!$C$7:$C$223,0))),\"\")","v":"No"},{"$f":"IFERROR(IF(INDEX('Coverage Indicator_Import-Expor'!AS$7:AS$223,MATCH($B21,'Coverage Indicator_Import-Expor'!$C$7:$C$223,0))=\"\",\"\",INDEX('Coverage Indicator_Import-Expor'!AS$7:AS$223,MATCH($B21,'Coverage Indicator_Import-Expor'!$C$7:$C$223,0))),\"\")","v":"Burundi"},{"$f":"IFERROR(IF(INDEX('Coverage Indicator_Import-Expor'!N$7:N$223,MATCH($B21,'Coverage Indicator_Import-Expor'!$C$7:$C$223,0))=\"\",\"\",INDEX('Coverage Indicator_Import-Expor'!N$7:N$223,MATCH($B21,'Coverage Indicator_Import-Expor'!$C$7:$C$223,0))),\"\")","v":170},{"$f":"IFERROR(IF(INDEX('Coverage Indicator_Import-Expor'!O$7:O$223,MATCH($B21,'Coverage Indicator_Import-Expor'!$C$7:$C$223,0))=\"\",\"\",INDEX('Coverage Indicator_Import-Expor'!O$7:O$223,MATCH($B21,'Coverage Indicator_Import-Expor'!$C$7:$C$223,0))),\"\")","v":170},{"$f":"IFERROR(IF(INDEX('Coverage Indicator_Import-Expor'!P$7:P$223,MATCH($B21,'Coverage Indicator_Import-Expor'!$C$7:$C$223,0))=\"\",\"\",INDEX('Coverage Indicator_Import-Expor'!P$7:P$223,MATCH($B21,'Coverage Indicator_Import-Expor'!$C$7:$C$223,0))),\"\")","v":100},{"$f":"IFERROR(IF(INDEX('Coverage Indicator_Import-Expor'!Q$7:Q$223,MATCH($B21,'Coverage Indicator_Import-Expor'!$C$7:$C$223,0))=\"\",\"\",INDEX('Coverage Indicator_Import-Expor'!Q$7:Q$223,MATCH($B21,'Coverage Indicator_Import-Expor'!$C$7:$C$223,0))),\"\")","v":"2016"},{"$f":"IFERROR(IF(INDEX('Coverage Indicator_Import-Expor'!R$7:R$223,MATCH($B21,'Coverage Indicator_Import-Expor'!$C$7:$C$223,0))=\"\",\"\",INDEX('Coverage Indicator_Import-Expor'!R$7:R$223,MATCH($B21,'Coverage Indicator_Import-Expor'!$C$7:$C$223,0))),\"\")","v":"PNILT Annual Report"},{"$f":"IFERROR(IF(INDEX('Coverage Indicator_Import-Expor'!S$7:S$223,MATCH($B21,'Coverage Indicator_Import-Expor'!$C$7:$C$223,0))=\"\",\"\",INDEX('Coverage Indicator_Import-Expor'!S$7:S$223,MATCH($B21,'Coverage Indicator_Import-Expor'!$C$7:$C$223,0))),\"\")","v":170},{"$f":"IFERROR(IF(INDEX('Coverage Indicator_Import-Expor'!T$7:T$223,MATCH($B21,'Coverage Indicator_Import-Expor'!$C$7:$C$223,0))=\"\",\"\",INDEX('Coverage Indicator_Import-Expor'!T$7:T$223,MATCH($B21,'Coverage Indicator_Import-Expor'!$C$7:$C$223,0))),\"\")","v":170},{"$f":"IFERROR(IF(INDEX('Coverage Indicator_Import-Expor'!U$7:U$223,MATCH($B21,'Coverage Indicator_Import-Expor'!$C$7:$C$223,0))=\"\",\"\",INDEX('Coverage Indicator_Import-Expor'!U$7:U$223,MATCH($B21,'Coverage Indicator_Import-Expor'!$C$7:$C$223,0))),\"\")","v":100},170,170,100,"R&R TB system, quarterly reports",1,"Tous les CDT (100%) ont rendu disponibles les rapports des activités au moment des ateliers de vérification,  de validation et de diffusion des données organisées  par le PNILT. \nLe système d'information mis en place par le PNILT ne  permet pas de renseigner le nombre de formations sanitaires (non CDT) ayant rapportés au CDT.\n\nSource des données: cet indicateur a été renseigné par le rapport semestriel du PNILT. ","Continue",null,null,"",null," ",null,null,"No Results Reported",null,null,""," ",null,"No Results Reported"]
[12,"Coverage12",{"$f":"IFERROR(INDEX('Coverage Indicator_Import-Expor'!$D$7:$D$223,MATCH(B22,'Coverage Indicator_Import-Expor'!$C$7:$C$223,0)),\"\")","v":"Treatment, care and support"},{"$f":"IFERROR(INDEX('Coverage Indicator_Import-Expor'!$E$7:$E$223,MATCH(B22,'Coverage Indicator_Import-Expor'!$C$7:$C$223,0)),\"\")","v":"TCS-1(M): Pourcentage de personnes vivant avec le VIH bénéficiant actuellement d'un traitement antirétroviral"},{"$f":"IFERROR(IF(INDEX('Coverage Indicator_Import-Expor'!K$7:K$223,MATCH($B22,'Coverage Indicator_Import-Expor'!$C$7:$C$223,0))=\"\",\"\",INDEX('Coverage Indicator_Import-Expor'!K$7:K$223,MATCH($B22,'Coverage Indicator_Import-Expor'!$C$7:$C$223,0))),\"\")","v":"National"},{"$f":"IFERROR(IF(INDEX('Coverage Indicator_Import-Expor'!L$7:L$223,MATCH($B22,'Coverage Indicator_Import-Expor'!$C$7:$C$223,0))=\"\",\"\",INDEX('Coverage Indicator_Import-Expor'!L$7:L$223,MATCH($B22,'Coverage Indicator_Import-Expor'!$C$7:$C$223,0))),\"\")","v":"N-Non -cumulative (other)"},{"$f":"IFERROR(IF(INDEX('Coverage Indicator_Import-Expor'!AR$7:AR$223,MATCH($B22,'Coverage Indicator_Import-Expor'!$C$7:$C$223,0))=\"\",\"\",INDEX('Coverage Indicator_Import-Expor'!AR$7:AR$223,MATCH($B22,'Coverage Indicator_Import-Expor'!$C$7:$C$223,0))),\"\")","v":"No"},{"$f":"IFERROR(IF(INDEX('Coverage Indicator_Import-Expor'!AS$7:AS$223,MATCH($B22,'Coverage Indicator_Import-Expor'!$C$7:$C$223,0))=\"\",\"\",INDEX('Coverage Indicator_Import-Expor'!AS$7:AS$223,MATCH($B22,'Coverage Indicator_Import-Expor'!$C$7:$C$223,0))),\"\")","v":"Burundi"},{"$f":"IFERROR(IF(INDEX('Coverage Indicator_Import-Expor'!N$7:N$223,MATCH($B22,'Coverage Indicator_Import-Expor'!$C$7:$C$223,0))=\"\",\"\",INDEX('Coverage Indicator_Import-Expor'!N$7:N$223,MATCH($B22,'Coverage Indicator_Import-Expor'!$C$7:$C$223,0))),\"\")","v":57121},{"$f":"IFERROR(IF(INDEX('Coverage Indicator_Import-Expor'!O$7:O$223,MATCH($B22,'Coverage Indicator_Import-Expor'!$C$7:$C$223,0))=\"\",\"\",INDEX('Coverage Indicator_Import-Expor'!O$7:O$223,MATCH($B22,'Coverage Indicator_Import-Expor'!$C$7:$C$223,0))),\"\")","v":82664},{"$f":"IFERROR(IF(INDEX('Coverage Indicator_Import-Expor'!P$7:P$223,MATCH($B22,'Coverage Indicator_Import-Expor'!$C$7:$C$223,0))=\"\",\"\",INDEX('Coverage Indicator_Import-Expor'!P$7:P$223,MATCH($B22,'Coverage Indicator_Import-Expor'!$C$7:$C$223,0))),\"\")","v":69.099999999999994},{"$f":"IFERROR(IF(INDEX('Coverage Indicator_Import-Expor'!Q$7:Q$223,MATCH($B22,'Coverage Indicator_Import-Expor'!$C$7:$C$223,0))=\"\",\"\",INDEX('Coverage Indicator_Import-Expor'!Q$7:Q$223,MATCH($B22,'Coverage Indicator_Import-Expor'!$C$7:$C$223,0))),\"\")","v":"2017"},{"$f":"IFERROR(IF(INDEX('Coverage Indicator_Import-Expor'!R$7:R$223,MATCH($B22,'Coverage Indicator_Import-Expor'!$C$7:$C$223,0))=\"\",\"\",INDEX('Coverage Indicator_Import-Expor'!R$7:R$223,MATCH($B22,'Coverage Indicator_Import-Expor'!$C$7:$C$223,0))),\"\")","v":"PNLS/IST Programme Data, Sem 1"},{"$f":"IFERROR(IF(INDEX('Coverage Indicator_Import-Expor'!S$7:S$223,MATCH($B22,'Coverage Indicator_Import-Expor'!$C$7:$C$223,0))=\"\",\"\",INDEX('Coverage Indicator_Import-Expor'!S$7:S$223,MATCH($B22,'Coverage Indicator_Import-Expor'!$C$7:$C$223,0))),\"\")","v":60685},{"$f":"IFERROR(IF(INDEX('Coverage Indicator_Import-Expor'!T$7:T$223,MATCH($B22,'Coverage Indicator_Import-Expor'!$C$7:$C$223,0))=\"\",\"\",INDEX('Coverage Indicator_Import-Expor'!T$7:T$223,MATCH($B22,'Coverage Indicator_Import-Expor'!$C$7:$C$223,0))),\"\")","v":82045},{"$f":"IFERROR(IF(INDEX('Coverage Indicator_Import-Expor'!U$7:U$223,MATCH($B22,'Coverage Indicator_Import-Expor'!$C$7:$C$223,0))=\"\",\"\",INDEX('Coverage Indicator_Import-Expor'!U$7:U$223,MATCH($B22,'Coverage Indicator_Import-Expor'!$C$7:$C$223,0))),\"\")","v":74},64419,82045,78.51666768236943,"HMIS",1.061036049761749,"Numerateur: nombre de PVVIH sous traitement antiretroviral. \nSur un total estimé par projection spectrum pour 2018 de 82045 des PVVIH adultes et enfants (denominateur), 64416 (79%) des PVVIH sont sous traitement ARV au 30 juin 2018 comme capturé dans DHIS2 ajusté après les ateliers de validation. La cible fixée pour le semestre étant de 74%, cela donne un taux d’accomplissement de 106%.  \nParmi les 64419 PVVIH sous ARV , il y a 42 341 femmes et 22078 hommes qui ont effectivement recu leur traitement.\nCette performance s’explique par :\n• La rétention des patients PVVIH aux traitements grâce aux activités de sensibilisations pour le maintien du traitement\n• La stratégie Test and Treat mise en place dans certaines provinces.\n• La décentralisation et délégation de tache pour la prise en charge du VIH pédiatrique au niveau des sites de prise en charge autres que des hôpitaux.\n\nSource des données: cet indicateur a été renseigné par le rapport semestriel du PNLS  après consultation  de DHIS2","Continue",null,null,"",null," ",null,null,"No Results Reported",null,null,""," ",null,"No Results Reported"]
[13,"Coverage13",{"$f":"IFERROR(INDEX('Coverage Indicator_Import-Expor'!$D$7:$D$223,MATCH(B23,'Coverage Indicator_Import-Expor'!$C$7:$C$223,0)),\"\")","v":"Treatment, care and support"},{"$f":"IFERROR(INDEX('Coverage Indicator_Import-Expor'!$E$7:$E$223,MATCH(B23,'Coverage Indicator_Import-Expor'!$C$7:$C$223,0)),\"\")","v":"TCS-6: Pourcentage de sites ARV qui ont connu une rupture de stock de médicaments antirétroviraux durant la période de rapportage"},{"$f":"IFERROR(IF(INDEX('Coverage Indicator_Import-Expor'!K$7:K$223,MATCH($B23,'Coverage Indicator_Import-Expor'!$C$7:$C$223,0))=\"\",\"\",INDEX('Coverage Indicator_Import-Expor'!K$7:K$223,MATCH($B23,'Coverage Indicator_Import-Expor'!$C$7:$C$223,0))),\"\")","v":"National"},{"$f":"IFERROR(IF(INDEX('Coverage Indicator_Import-Expor'!L$7:L$223,MATCH($B23,'Coverage Indicator_Import-Expor'!$C$7:$C$223,0))=\"\",\"\",INDEX('Coverage Indicator_Import-Expor'!L$7:L$223,MATCH($B23,'Coverage Indicator_Import-Expor'!$C$7:$C$223,0))),\"\")","v":"N-Non-cumulative"},{"$f":"IFERROR(IF(INDEX('Coverage Indicator_Import-Expor'!AR$7:AR$223,MATCH($B23,'Coverage Indicator_Import-Expor'!$C$7:$C$223,0))=\"\",\"\",INDEX('Coverage Indicator_Import-Expor'!AR$7:AR$223,MATCH($B23,'Coverage Indicator_Import-Expor'!$C$7:$C$223,0))),\"\")","v":"No"},{"$f":"IFERROR(IF(INDEX('Coverage Indicator_Import-Expor'!AS$7:AS$223,MATCH($B23,'Coverage Indicator_Import-Expor'!$C$7:$C$223,0))=\"\",\"\",INDEX('Coverage Indicator_Import-Expor'!AS$7:AS$223,MATCH($B23,'Coverage Indicator_Import-Expor'!$C$7:$C$223,0))),\"\")","v":"Burundi"},{"$f":"IFERROR(IF(INDEX('Coverage Indicator_Import-Expor'!N$7:N$223,MATCH($B23,'Coverage Indicator_Import-Expor'!$C$7:$C$223,0))=\"\",\"\",INDEX('Coverage Indicator_Import-Expor'!N$7:N$223,MATCH($B23,'Coverage Indicator_Import-Expor'!$C$7:$C$223,0))),\"\")","v":211},{"$f":"IFERROR(IF(INDEX('Coverage Indicator_Import-Expor'!O$7:O$223,MATCH($B23,'Coverage Indicator_Import-Expor'!$C$7:$C$223,0))=\"\",\"\",INDEX('Coverage Indicator_Import-Expor'!O$7:O$223,MATCH($B23,'Coverage Indicator_Import-Expor'!$C$7:$C$223,0))),\"\")","v":678},{"$f":"IFERROR(IF(INDEX('Coverage Indicator_Import-Expor'!P$7:P$223,MATCH($B23,'Coverage Indicator_Import-Expor'!$C$7:$C$223,0))=\"\",\"\",INDEX('Coverage Indicator_Import-Expor'!P$7:P$223,MATCH($B23,'Coverage Indicator_Import-Expor'!$C$7:$C$223,0))),\"\")","v":31.1},{"$f":"IFERROR(IF(INDEX('Coverage Indicator_Import-Expor'!Q$7:Q$223,MATCH($B23,'Coverage Indicator_Import-Expor'!$C$7:$C$223,0))=\"\",\"\",INDEX('Coverage Indicator_Import-Expor'!Q$7:Q$223,MATCH($B23,'Coverage Indicator_Import-Expor'!$C$7:$C$223,0))),\"\")","v":"2017"},{"$f":"IFERROR(IF(INDEX('Coverage Indicator_Import-Expor'!R$7:R$223,MATCH($B23,'Coverage Indicator_Import-Expor'!$C$7:$C$223,0))=\"\",\"\",INDEX('Coverage Indicator_Import-Expor'!R$7:R$223,MATCH($B23,'Coverage Indicator_Import-Expor'!$C$7:$C$223,0))),\"\")","v":"PNLS/IST Programme Data, Sem 1"},{"$f":"IFERROR(IF(INDEX('Coverage Indicator_Import-Expor'!S$7:S$223,MATCH($B23,'Coverage Indicator_Import-Expor'!$C$7:$C$223,0))=\"\",\"\",INDEX('Coverage Indicator_Import-Expor'!S$7:S$223,MATCH($B23,'Coverage Indicator_Import-Expor'!$C$7:$C$223,0))),\"\")","v":33.9},{"$f":"IFERROR(IF(INDEX('Coverage Indicator_Import-Expor'!T$7:T$223,MATCH($B23,'Coverage Indicator_Import-Expor'!$C$7:$C$223,0))=\"\",\"\",INDEX('Coverage Indicator_Import-Expor'!T$7:T$223,MATCH($B23,'Coverage Indicator_Import-Expor'!$C$7:$C$223,0))),\"\")","v":678},{"$f":"IFERROR(IF(INDEX('Coverage Indicator_Import-Expor'!U$7:U$223,MATCH($B23,'Coverage Indicator_Import-Expor'!$C$7:$C$223,0))=\"\",\"\",INDEX('Coverage Indicator_Import-Expor'!U$7:U$223,MATCH($B23,'Coverage Indicator_Import-Expor'!$C$7:$C$223,0))),\"\")","v":5},167,750,22.266666666666669,"HMIS",1.2,"le PNLS n’a pas connu de rupture en intrants VIH durant la période de rapportage (de janvier à juin 2018). La compréhension de l'indicateur pose probleme aux utilisateurs.\nIl a été constaté une erreur dans la formule qui donne les taux d'accomplissement dans le PU. Le taux réel d'accomplissement est de 45% \nAu moment de la négociation du cadre de performance , 678 sites  ARV étaient fonctionnels. Cependant, au moment du rapportage, le nombre de sites ARV est de 750. \nLe nombre total de sites ayant connu une rupture de stock en ARV au moins 14 jours pour l'un des médicaments antirétroviraux requis est de 167 sur un total de 750, soit 22%.  \nCependant, en analysant ces données du DHIS2, on constate qu'il y a eu une rupture de stock pour certains centres pendant toute l’année en depit du l'existence de stock à la Camebu. \nAinsi l'ecart s'explique par:\n- les erreurs de compréhension (les prestataires considèrent les jours de rupture pour les molécules dela liste alors qu’ils ne doivent pas en avoir chez eux car ils n’ont pas de malades sous ce schéma thérapeutique);\n- les erreurs dans la saisie des données dans DHIS2;  \n - les retards dans les commandes des ARV des sites de prise en charge au district et du district à la CAMEBU. \nEn vue de résoudre ces problèmes, le PR  et le PNLS  vont entreprendre les mesures suivantes:\n- revoir l'operationnalité de cet indicateur \n-organiser les missions de supervisions formatives;\n-Encadrement des prestataires lors des ateliers de validation des données;\n\n\n\nSource des données: cet indicateur a été renseigné par le rapport semestriel du PNLS  après consultation  de DHIS2","Continue",null,null,"",null," ",null,null,"No Results Reported",null,null,""," ",null,"No Results Reported"]
[14,"Coverage14",{"$f":"IFERROR(INDEX('Coverage Indicator_Import-Expor'!$D$7:$D$223,MATCH(B24,'Coverage Indicator_Import-Expor'!$C$7:$C$223,0)),\"\")","v":"PMTCT"},{"$f":"IFERROR(INDEX('Coverage Indicator_Import-Expor'!$E$7:$E$223,MATCH(B24,'Coverage Indicator_Import-Expor'!$C$7:$C$223,0)),\"\")","v":"PMTCT-1: Pourcentage de femmes enceintes qui connaissent leur statut sérologique à l'égard du VIH"},{"$f":"IFERROR(IF(INDEX('Coverage Indicator_Import-Expor'!K$7:K$223,MATCH($B24,'Coverage Indicator_Import-Expor'!$C$7:$C$223,0))=\"\",\"\",INDEX('Coverage Indicator_Import-Expor'!K$7:K$223,MATCH($B24,'Coverage Indicator_Import-Expor'!$C$7:$C$223,0))),\"\")","v":"National"},{"$f":"IFERROR(IF(INDEX('Coverage Indicator_Import-Expor'!L$7:L$223,MATCH($B24,'Coverage Indicator_Import-Expor'!$C$7:$C$223,0))=\"\",\"\",INDEX('Coverage Indicator_Import-Expor'!L$7:L$223,MATCH($B24,'Coverage Indicator_Import-Expor'!$C$7:$C$223,0))),\"\")","v":"Y- Cumulative annually"},{"$f":"IFERROR(IF(INDEX('Coverage Indicator_Import-Expor'!AR$7:AR$223,MATCH($B24,'Coverage Indicator_Import-Expor'!$C$7:$C$223,0))=\"\",\"\",INDEX('Coverage Indicator_Import-Expor'!AR$7:AR$223,MATCH($B24,'Coverage Indicator_Import-Expor'!$C$7:$C$223,0))),\"\")","v":"No"},{"$f":"IFERROR(IF(INDEX('Coverage Indicator_Import-Expor'!AS$7:AS$223,MATCH($B24,'Coverage Indicator_Import-Expor'!$C$7:$C$223,0))=\"\",\"\",INDEX('Coverage Indicator_Import-Expor'!AS$7:AS$223,MATCH($B24,'Coverage Indicator_Import-Expor'!$C$7:$C$223,0))),\"\")","v":"Burundi"},{"$f":"IFERROR(IF(INDEX('Coverage Indicator_Import-Expor'!N$7:N$223,MATCH($B24,'Coverage Indicator_Import-Expor'!$C$7:$C$223,0))=\"\",\"\",INDEX('Coverage Indicator_Import-Expor'!N$7:N$223,MATCH($B24,'Coverage Indicator_Import-Expor'!$C$7:$C$223,0))),\"\")","v":171057},{"$f":"IFERROR(IF(INDEX('Coverage Indicator_Import-Expor'!O$7:O$223,MATCH($B24,'Coverage Indicator_Import-Expor'!$C$7:$C$223,0))=\"\",\"\",INDEX('Coverage Indicator_Import-Expor'!O$7:O$223,MATCH($B24,'Coverage Indicator_Import-Expor'!$C$7:$C$223,0))),\"\")","v":260024},{"$f":"IFERROR(IF(INDEX('Coverage Indicator_Import-Expor'!P$7:P$223,MATCH($B24,'Coverage Indicator_Import-Expor'!$C$7:$C$223,0))=\"\",\"\",INDEX('Coverage Indicator_Import-Expor'!P$7:P$223,MATCH($B24,'Coverage Indicator_Import-Expor'!$C$7:$C$223,0))),\"\")","v":65.8},{"$f":"IFERROR(IF(INDEX('Coverage Indicator_Import-Expor'!Q$7:Q$223,MATCH($B24,'Coverage Indicator_Import-Expor'!$C$7:$C$223,0))=\"\",\"\",INDEX('Coverage Indicator_Import-Expor'!Q$7:Q$223,MATCH($B24,'Coverage Indicator_Import-Expor'!$C$7:$C$223,0))),\"\")","v":"2017"},{"$f":"IFERROR(IF(INDEX('Coverage Indicator_Import-Expor'!R$7:R$223,MATCH($B24,'Coverage Indicator_Import-Expor'!$C$7:$C$223,0))=\"\",\"\",INDEX('Coverage Indicator_Import-Expor'!R$7:R$223,MATCH($B24,'Coverage Indicator_Import-Expor'!$C$7:$C$223,0))),\"\")","v":"PNLS/IST Programme Data, Sem 1"},{"$f":"IFERROR(IF(INDEX('Coverage Indicator_Import-Expor'!S$7:S$223,MATCH($B24,'Coverage Indicator_Import-Expor'!$C$7:$C$223,0))=\"\",\"\",INDEX('Coverage Indicator_Import-Expor'!S$7:S$223,MATCH($B24,'Coverage Indicator_Import-Expor'!$C$7:$C$223,0))),\"\")","v":213843.20000000001},{"$f":"IFERROR(IF(INDEX('Coverage Indicator_Import-Expor'!T$7:T$223,MATCH($B24,'Coverage Indicator_Import-Expor'!$C$7:$C$223,0))=\"\",\"\",INDEX('Coverage Indicator_Import-Expor'!T$7:T$223,MATCH($B24,'Coverage Indicator_Import-Expor'!$C$7:$C$223,0))),\"\")","v":267304},{"$f":"IFERROR(IF(INDEX('Coverage Indicator_Import-Expor'!U$7:U$223,MATCH($B24,'Coverage Indicator_Import-Expor'!$C$7:$C$223,0))=\"\",\"\",INDEX('Coverage Indicator_Import-Expor'!U$7:U$223,MATCH($B24,'Coverage Indicator_Import-Expor'!$C$7:$C$223,0))),\"\")","v":80},193020,267304,72.209918295274292,"HMIS",0.9026239786909287,"Au cours de la période janvier-Juin 2018, 219093 femmes enceintes sont venues en CPN1 dont 193020 ont réalisé le test de dépistage au VIH soit 88 %. \n100% de femmes venues en CPN1 dépistées (193020), connaissent leur statut sérologique. \nLe taux de réalisation est de 72,2%, soit une performance de 90,26%. \nParmi les femmes dépistées, les résultats du test montrent que  854 sont séropositives au VIH (soit 0,44% de séropositivité).  \nPour améliorer la performance de cet indicateur le PNLS prévoit: \n- renforcer la concertation avec la CRB pour continuer la réalisation des activités de mobilisation sociale et sensibilisation des femmes enceintes à travers les ASC (FBP) pour CPN et dépistage précoce du VIH. \n- continuer la sensibilisation et la conscientisation des prestataires sur la mise en application de la politique et stratégie de dépistage systématique au VIH pour toutes les femmes venues en CPN1 et à la récupération des résultats. \n- Réaliser les activités de supervision dans les CPN.\n\nSource des données: cet indicateur a été renseigné par le rapport semestriel du PNLS  après consultation  de DHIS2","Continue",null,null,"",null," ",null,null,"No Results Reported",null,null,""," ",null,"No Results Reported"]
[15,"Coverage15",{"$f":"IFERROR(INDEX('Coverage Indicator_Import-Expor'!$D$7:$D$223,MATCH(B25,'Coverage Indicator_Import-Expor'!$C$7:$C$223,0)),\"\")","v":"PMTCT"},{"$f":"IFERROR(INDEX('Coverage Indicator_Import-Expor'!$E$7:$E$223,MATCH(B25,'Coverage Indicator_Import-Expor'!$C$7:$C$223,0)),\"\")","v":"PMTCT-2.1: Pourcentage de femmes enceintes séropositives au VIH ayant reçu des antirétroviraux durant leur grossesse"},{"$f":"IFERROR(IF(INDEX('Coverage Indicator_Import-Expor'!K$7:K$223,MATCH($B25,'Coverage Indicator_Import-Expor'!$C$7:$C$223,0))=\"\",\"\",INDEX('Coverage Indicator_Import-Expor'!K$7:K$223,MATCH($B25,'Coverage Indicator_Import-Expor'!$C$7:$C$223,0))),\"\")","v":"National"},{"$f":"IFERROR(IF(INDEX('Coverage Indicator_Import-Expor'!L$7:L$223,MATCH($B25,'Coverage Indicator_Import-Expor'!$C$7:$C$223,0))=\"\",\"\",INDEX('Coverage Indicator_Import-Expor'!L$7:L$223,MATCH($B25,'Coverage Indicator_Import-Expor'!$C$7:$C$223,0))),\"\")","v":"Y- Cumulative annually"},{"$f":"IFERROR(IF(INDEX('Coverage Indicator_Import-Expor'!AR$7:AR$223,MATCH($B25,'Coverage Indicator_Import-Expor'!$C$7:$C$223,0))=\"\",\"\",INDEX('Coverage Indicator_Import-Expor'!AR$7:AR$223,MATCH($B25,'Coverage Indicator_Import-Expor'!$C$7:$C$223,0))),\"\")","v":"No"},{"$f":"IFERROR(IF(INDEX('Coverage Indicator_Import-Expor'!AS$7:AS$223,MATCH($B25,'Coverage Indicator_Import-Expor'!$C$7:$C$223,0))=\"\",\"\",INDEX('Coverage Indicator_Import-Expor'!AS$7:AS$223,MATCH($B25,'Coverage Indicator_Import-Expor'!$C$7:$C$223,0))),\"\")","v":"Burundi"},{"$f":"IFERROR(IF(INDEX('Coverage Indicator_Import-Expor'!N$7:N$223,MATCH($B25,'Coverage Indicator_Import-Expor'!$C$7:$C$223,0))=\"\",\"\",INDEX('Coverage Indicator_Import-Expor'!N$7:N$223,MATCH($B25,'Coverage Indicator_Import-Expor'!$C$7:$C$223,0))),\"\")","v":2215},{"$f":"IFERROR(IF(INDEX('Coverage Indicator_Import-Expor'!O$7:O$223,MATCH($B25,'Coverage Indicator_Import-Expor'!$C$7:$C$223,0))=\"\",\"\",INDEX('Coverage Indicator_Import-Expor'!O$7:O$223,MATCH($B25,'Coverage Indicator_Import-Expor'!$C$7:$C$223,0))),\"\")","v":2600},{"$f":"IFERROR(IF(INDEX('Coverage Indicator_Import-Expor'!P$7:P$223,MATCH($B25,'Coverage Indicator_Import-Expor'!$C$7:$C$223,0))=\"\",\"\",INDEX('Coverage Indicator_Import-Expor'!P$7:P$223,MATCH($B25,'Coverage Indicator_Import-Expor'!$C$7:$C$223,0))),\"\")","v":85.2},{"$f":"IFERROR(IF(INDEX('Coverage Indicator_Import-Expor'!Q$7:Q$223,MATCH($B25,'Coverage Indicator_Import-Expor'!$C$7:$C$223,0))=\"\",\"\",INDEX('Coverage Indicator_Import-Expor'!Q$7:Q$223,MATCH($B25,'Coverage Indicator_Import-Expor'!$C$7:$C$223,0))),\"\")","v":"2017"},{"$f":"IFERROR(IF(INDEX('Coverage Indicator_Import-Expor'!R$7:R$223,MATCH($B25,'Coverage Indicator_Import-Expor'!$C$7:$C$223,0))=\"\",\"\",INDEX('Coverage Indicator_Import-Expor'!R$7:R$223,MATCH($B25,'Coverage Indicator_Import-Expor'!$C$7:$C$223,0))),\"\")","v":"PNLS/IST Programme Data, Sem 1"},{"$f":"IFERROR(IF(INDEX('Coverage Indicator_Import-Expor'!S$7:S$223,MATCH($B25,'Coverage Indicator_Import-Expor'!$C$7:$C$223,0))=\"\",\"\",INDEX('Coverage Indicator_Import-Expor'!S$7:S$223,MATCH($B25,'Coverage Indicator_Import-Expor'!$C$7:$C$223,0))),\"\")","v":2666.1750000000002},{"$f":"IFERROR(IF(INDEX('Coverage Indicator_Import-Expor'!T$7:T$223,MATCH($B25,'Coverage Indicator_Import-Expor'!$C$7:$C$223,0))=\"\",\"\",INDEX('Coverage Indicator_Import-Expor'!T$7:T$223,MATCH($B25,'Coverage Indicator_Import-Expor'!$C$7:$C$223,0))),\"\")","v":2806.5},{"$f":"IFERROR(IF(INDEX('Coverage Indicator_Import-Expor'!U$7:U$223,MATCH($B25,'Coverage Indicator_Import-Expor'!$C$7:$C$223,0))=\"\",\"\",INDEX('Coverage Indicator_Import-Expor'!U$7:U$223,MATCH($B25,'Coverage Indicator_Import-Expor'!$C$7:$C$223,0))),\"\")","v":95},2110,2806.5,75.182611794049521,"HMIS",0.79139591362157391,"Un total de 2110 femmes enceintes séropositives au VIH étaient sous traitement antirétroviral pour réduire le risque de transmission du VIH de la mère à l’enfant sur un total prévu de 2806.50, soit un taux de réalisation de 75% c'est à dire un taux d'accomplissement de  79%.\nParmi les 2110 femmes enceintes qui sont sous traitement ARV, 1068 étaient déjà sous ARV et 1042 sont des nouveaux cas. \nPour améliorer la performance, le PR, le PNLS et la CRB vont renforcer les mesures suivantes:\n-la mobilisation sociale, la sensibilisation communautaire, sensibilisation des hommes afin qu’ils accompagnent leurs épouses au cours des visites de CPN.\n-réalisation d'un monitorage des goulots d'étranglement pour la demande et l'offre des services PTME\nD’autre part, nous allons continuer la sensibilisation des prestataires pour le dépistage, la remise des résultats et la mise sous ARV des femmes dont le test est positif.\n\nSource des données: cet indicateur a été renseigné par le rapport semestriel du PNLS  après consultation  de DHIS2","Continue",null,null,"",null," ",null,null,"No Results Reported",null,null,""," ",null,"No Results Reported"]
[16,"Coverage16",{"$f":"IFERROR(INDEX('Coverage Indicator_Import-Expor'!$D$7:$D$223,MATCH(B26,'Coverage Indicator_Import-Expor'!$C$7:$C$223,0)),\"\")","v":"PMTCT"},{"$f":"IFERROR(INDEX('Coverage Indicator_Import-Expor'!$E$7:$E$223,MATCH(B26,'Coverage Indicator_Import-Expor'!$C$7:$C$223,0)),\"\")","v":"PMTCT-3.1: Pourcentage de nourrissons exposés au VIH ayant bénéficié d'un dépistage du VIH dans les 2 mois qui ont suivi leur naissance"},{"$f":"IFERROR(IF(INDEX('Coverage Indicator_Import-Expor'!K$7:K$223,MATCH($B26,'Coverage Indicator_Import-Expor'!$C$7:$C$223,0))=\"\",\"\",INDEX('Coverage Indicator_Import-Expor'!K$7:K$223,MATCH($B26,'Coverage Indicator_Import-Expor'!$C$7:$C$223,0))),\"\")","v":"National"},{"$f":"IFERROR(IF(INDEX('Coverage Indicator_Import-Expor'!L$7:L$223,MATCH($B26,'Coverage Indicator_Import-Expor'!$C$7:$C$223,0))=\"\",\"\",INDEX('Coverage Indicator_Import-Expor'!L$7:L$223,MATCH($B26,'Coverage Indicator_Import-Expor'!$C$7:$C$223,0))),\"\")","v":"Y- Cumulative annually"},{"$f":"IFERROR(IF(INDEX('Coverage Indicator_Import-Expor'!AR$7:AR$223,MATCH($B26,'Coverage Indicator_Import-Expor'!$C$7:$C$223,0))=\"\",\"\",INDEX('Coverage Indicator_Import-Expor'!AR$7:AR$223,MATCH($B26,'Coverage Indicator_Import-Expor'!$C$7:$C$223,0))),\"\")","v":"No"},{"$f":"IFERROR(IF(INDEX('Coverage Indicator_Import-Expor'!AS$7:AS$223,MATCH($B26,'Coverage Indicator_Import-Expor'!$C$7:$C$223,0))=\"\",\"\",INDEX('Coverage Indicator_Import-Expor'!AS$7:AS$223,MATCH($B26,'Coverage Indicator_Import-Expor'!$C$7:$C$223,0))),\"\")","v":"Burundi"},{"$f":"IFERROR(IF(INDEX('Coverage Indicator_Import-Expor'!N$7:N$223,MATCH($B26,'Coverage Indicator_Import-Expor'!$C$7:$C$223,0))=\"\",\"\",INDEX('Coverage Indicator_Import-Expor'!N$7:N$223,MATCH($B26,'Coverage Indicator_Import-Expor'!$C$7:$C$223,0))),\"\")","v":704},{"$f":"IFERROR(IF(INDEX('Coverage Indicator_Import-Expor'!O$7:O$223,MATCH($B26,'Coverage Indicator_Import-Expor'!$C$7:$C$223,0))=\"\",\"\",INDEX('Coverage Indicator_Import-Expor'!O$7:O$223,MATCH($B26,'Coverage Indicator_Import-Expor'!$C$7:$C$223,0))),\"\")","v":2600},{"$f":"IFERROR(IF(INDEX('Coverage Indicator_Import-Expor'!P$7:P$223,MATCH($B26,'Coverage Indicator_Import-Expor'!$C$7:$C$223,0))=\"\",\"\",INDEX('Coverage Indicator_Import-Expor'!P$7:P$223,MATCH($B26,'Coverage Indicator_Import-Expor'!$C$7:$C$223,0))),\"\")","v":27.1},{"$f":"IFERROR(IF(INDEX('Coverage Indicator_Import-Expor'!Q$7:Q$223,MATCH($B26,'Coverage Indicator_Import-Expor'!$C$7:$C$223,0))=\"\",\"\",INDEX('Coverage Indicator_Import-Expor'!Q$7:Q$223,MATCH($B26,'Coverage Indicator_Import-Expor'!$C$7:$C$223,0))),\"\")","v":"2017"},{"$f":"IFERROR(IF(INDEX('Coverage Indicator_Import-Expor'!R$7:R$223,MATCH($B26,'Coverage Indicator_Import-Expor'!$C$7:$C$223,0))=\"\",\"\",INDEX('Coverage Indicator_Import-Expor'!R$7:R$223,MATCH($B26,'Coverage Indicator_Import-Expor'!$C$7:$C$223,0))),\"\")","v":"PNLS/IST Programme Data, Sem 1"},{"$f":"IFERROR(IF(INDEX('Coverage Indicator_Import-Expor'!S$7:S$223,MATCH($B26,'Coverage Indicator_Import-Expor'!$C$7:$C$223,0))=\"\",\"\",INDEX('Coverage Indicator_Import-Expor'!S$7:S$223,MATCH($B26,'Coverage Indicator_Import-Expor'!$C$7:$C$223,0))),\"\")","v":2021},{"$f":"IFERROR(IF(INDEX('Coverage Indicator_Import-Expor'!T$7:T$223,MATCH($B26,'Coverage Indicator_Import-Expor'!$C$7:$C$223,0))=\"\",\"\",INDEX('Coverage Indicator_Import-Expor'!T$7:T$223,MATCH($B26,'Coverage Indicator_Import-Expor'!$C$7:$C$223,0))),\"\")","v":2806.5},{"$f":"IFERROR(IF(INDEX('Coverage Indicator_Import-Expor'!U$7:U$223,MATCH($B26,'Coverage Indicator_Import-Expor'!$C$7:$C$223,0))=\"\",\"\",INDEX('Coverage Indicator_Import-Expor'!U$7:U$223,MATCH($B26,'Coverage Indicator_Import-Expor'!$C$7:$C$223,0))),\"\")","v":72},506,1042,48.560460652591168,"HMIS",0.67445084239709951,"Pendant la période de janvier à juin 2018, 1161 enfants ont bénéficié du test PCR, 506 l’ont réalisé dans les 2 mois après leur naissance (45,45%) dont 8 cas positifs.\nLe système d'information sanitaire DHIS2 ne permet pas d'avoir le nombre de femmes enceintes séropositives ayant accouché au cours des 12 derniers mois. Le dénominateur n'a pas pu être mis à jour sur la base des valeurs réelles. Une estimation de ce dénominateur est le nombre de nouvelles femmes enceintes qui sont sous traitement ARV, 1068 étaient déjà sous ARV et 1042 sont des nouveaux cas. Nous estimons que le nombre des femmes enceintes séropositives au VIH ayant accouché au cours des 12 derniers mois est inférieur. Par conséquent, cela a un impact négatif sur la performance de l'indicateur.\nEgalement, le nombre de nourrissons ayant bénéficié de dépistage est réduit du fait qu'il y a eu des pannes itératives de certains appareils dans quelques sites comme l’appareil Abbott de l’INSP, la mauvaise répartition des appareils disponible (3 appareils sur 4 à Bujumbura), l’absence de la stratégie de transport des échantillons et la faible implication des prestataires dans le dépistage précoce chez les nouveaux nés.\nEn vue d’améliorer cette situation, le PR et PNLS/IST sont en train de :\n• Recruter un consultant international pour l’élaboration du plan opérationnel de laboratoire pour la charge virale, le dépistage précoce, le CD4 et la stratégie de transport des échantillons. \n• Octroyer les frais de mission et rembourser les carburant aux prestataires qui transportent les échantillons PCR vers les sites d’analyse comme prévu dans le plan d’activité du PNLS.\n• Sensibiliser les prestataires sur l’importance de la collecte des échantillons dans les 2 mois qui suivent la naissance.\n• Prévoir les kits de collecte de l’échantillon à la naissance pour réduire les prélèvements tardifs \n\nSource des données: cet indicateur a été renseigné par le rapport semestriel du PNLS  après consultation  de DHIS2","Continue",null,null,"",null," ",null,null,"No Results Reported",null,null,""," ",null,"No Results Reported"]
[17,"Coverage17",{"$f":"IFERROR(INDEX('Coverage Indicator_Import-Expor'!$D$7:$D$223,MATCH(B27,'Coverage Indicator_Import-Expor'!$C$7:$C$223,0)),\"\")","v":"TB/HIV"},{"$f":"IFERROR(INDEX('Coverage Indicator_Import-Expor'!$E$7:$E$223,MATCH(B27,'Coverage Indicator_Import-Expor'!$C$7:$C$223,0)),\"\")","v":"TB/HIV-3.1: Pourcentage de personnes vivant avec le VIH pris en charge  (y compris soins PTME) chez qui les signes de la tuberculose ont été recherchés au sein des structures de soins ou traitement du VIH"},{"$f":"IFERROR(IF(INDEX('Coverage Indicator_Import-Expor'!K$7:K$223,MATCH($B27,'Coverage Indicator_Import-Expor'!$C$7:$C$223,0))=\"\",\"\",INDEX('Coverage Indicator_Import-Expor'!K$7:K$223,MATCH($B27,'Coverage Indicator_Import-Expor'!$C$7:$C$223,0))),\"\")","v":"National"},{"$f":"IFERROR(IF(INDEX('Coverage Indicator_Import-Expor'!L$7:L$223,MATCH($B27,'Coverage Indicator_Import-Expor'!$C$7:$C$223,0))=\"\",\"\",INDEX('Coverage Indicator_Import-Expor'!L$7:L$223,MATCH($B27,'Coverage Indicator_Import-Expor'!$C$7:$C$223,0))),\"\")","v":"N-Non-cumulative"},{"$f":"IFERROR(IF(INDEX('Coverage Indicator_Import-Expor'!AR$7:AR$223,MATCH($B27,'Coverage Indicator_Import-Expor'!$C$7:$C$223,0))=\"\",\"\",INDEX('Coverage Indicator_Import-Expor'!AR$7:AR$223,MATCH($B27,'Coverage Indicator_Import-Expor'!$C$7:$C$223,0))),\"\")","v":"No"},{"$f":"IFERROR(IF(INDEX('Coverage Indicator_Import-Expor'!AS$7:AS$223,MATCH($B27,'Coverage Indicator_Import-Expor'!$C$7:$C$223,0))=\"\",\"\",INDEX('Coverage Indicator_Import-Expor'!AS$7:AS$223,MATCH($B27,'Coverage Indicator_Import-Expor'!$C$7:$C$223,0))),\"\")","v":"Burundi"},{"$f":"IFERROR(IF(INDEX('Coverage Indicator_Import-Expor'!N$7:N$223,MATCH($B27,'Coverage Indicator_Import-Expor'!$C$7:$C$223,0))=\"\",\"\",INDEX('Coverage Indicator_Import-Expor'!N$7:N$223,MATCH($B27,'Coverage Indicator_Import-Expor'!$C$7:$C$223,0))),\"\")","v":27472},{"$f":"IFERROR(IF(INDEX('Coverage Indicator_Import-Expor'!O$7:O$223,MATCH($B27,'Coverage Indicator_Import-Expor'!$C$7:$C$223,0))=\"\",\"\",INDEX('Coverage Indicator_Import-Expor'!O$7:O$223,MATCH($B27,'Coverage Indicator_Import-Expor'!$C$7:$C$223,0))),\"\")","v":61538},{"$f":"IFERROR(IF(INDEX('Coverage Indicator_Import-Expor'!P$7:P$223,MATCH($B27,'Coverage Indicator_Import-Expor'!$C$7:$C$223,0))=\"\",\"\",INDEX('Coverage Indicator_Import-Expor'!P$7:P$223,MATCH($B27,'Coverage Indicator_Import-Expor'!$C$7:$C$223,0))),\"\")","v":44.6},{"$f":"IFERROR(IF(INDEX('Coverage Indicator_Import-Expor'!Q$7:Q$223,MATCH($B27,'Coverage Indicator_Import-Expor'!$C$7:$C$223,0))=\"\",\"\",INDEX('Coverage Indicator_Import-Expor'!Q$7:Q$223,MATCH($B27,'Coverage Indicator_Import-Expor'!$C$7:$C$223,0))),\"\")","v":"2016"},{"$f":"IFERROR(IF(INDEX('Coverage Indicator_Import-Expor'!R$7:R$223,MATCH($B27,'Coverage Indicator_Import-Expor'!$C$7:$C$223,0))=\"\",\"\",INDEX('Coverage Indicator_Import-Expor'!R$7:R$223,MATCH($B27,'Coverage Indicator_Import-Expor'!$C$7:$C$223,0))),\"\")","v":"PNLS/IST Annual Report"},{"$f":"IFERROR(IF(INDEX('Coverage Indicator_Import-Expor'!S$7:S$223,MATCH($B27,'Coverage Indicator_Import-Expor'!$C$7:$C$223,0))=\"\",\"\",INDEX('Coverage Indicator_Import-Expor'!S$7:S$223,MATCH($B27,'Coverage Indicator_Import-Expor'!$C$7:$C$223,0))),\"\")","v":38211},{"$f":"IFERROR(IF(INDEX('Coverage Indicator_Import-Expor'!T$7:T$223,MATCH($B27,'Coverage Indicator_Import-Expor'!$C$7:$C$223,0))=\"\",\"\",INDEX('Coverage Indicator_Import-Expor'!T$7:T$223,MATCH($B27,'Coverage Indicator_Import-Expor'!$C$7:$C$223,0))),\"\")","v":63685},{"$f":"IFERROR(IF(INDEX('Coverage Indicator_Import-Expor'!U$7:U$223,MATCH($B27,'Coverage Indicator_Import-Expor'!$C$7:$C$223,0))=\"\",\"\",INDEX('Coverage Indicator_Import-Expor'!U$7:U$223,MATCH($B27,'Coverage Indicator_Import-Expor'!$C$7:$C$223,0))),\"\")","v":60},29841,64419,46.323289712662415,"HMIS",0.77205482854437357,"Les résultats montrent qu'au cours de la période de janvier à juin 2018, 29841 PVVIH ont bénéficié d’un screening pour la TB ce qui correspond à 46.3% de réalisation.\nPar rapport à la cible (60%), le taux de performance est de 77%. \nComme accordé dans le cadre de performance, le dénominateur a été mis à jour (64419) sur la base des valeurs réelles.\nParmi les 29 841 PVVIH testés pour la tuberculose, 287 ont été testés positifs soit 0,9%.  \nCette performance s’explique par : \n• Une insuffisance en INH a été constatée depuis le mois de novembre 2017 ce qui a entraîné la diminution du nombre de screening. \nEn vue d'analyser toutes ces situations et  prendre des mesures appropriées pour améliorer la performance de cet indicateur, il est prévu un atelier du comité national de coinfection TB/VIH en date du 31 Juillet 2018. \nLe PNLS et le PNILT étant chargés de la mise en œuvre des recommandations formulées lors de différentes rencontres pour augmenter la couverture en screening, ils sont appelés à faire un suivi rapproché des prestations de coïnfection TB-VIH.    \n\nSource des données: cet indicateur a été renseigné par le rapport semestriel du PNLS  après consultation  de DHIS2","Continue",null,null,"",null," ",null,null,"No Results Reported",null,null,""," ",null,"No Results Reported"]
[18,"Coverage18",{"$f":"IFERROR(INDEX('Coverage Indicator_Import-Expor'!$D$7:$D$223,MATCH(B28,'Coverage Indicator_Import-Expor'!$C$7:$C$223,0)),\"\")","v":"TB/HIV"},{"$f":"IFERROR(INDEX('Coverage Indicator_Import-Expor'!$E$7:$E$223,MATCH(B28,'Coverage Indicator_Import-Expor'!$C$7:$C$223,0)),\"\")","v":"TB/HIV-4.1: Pourcentage de personnes vivant avec le VIH nouvellement enrollées dans les soins du VIH qui ont commencé le traitement préventif de la TB"},{"$f":"IFERROR(IF(INDEX('Coverage Indicator_Import-Expor'!K$7:K$223,MATCH($B28,'Coverage Indicator_Import-Expor'!$C$7:$C$223,0))=\"\",\"\",INDEX('Coverage Indicator_Import-Expor'!K$7:K$223,MATCH($B28,'Coverage Indicator_Import-Expor'!$C$7:$C$223,0))),\"\")","v":"National"},{"$f":"IFERROR(IF(INDEX('Coverage Indicator_Import-Expor'!L$7:L$223,MATCH($B28,'Coverage Indicator_Import-Expor'!$C$7:$C$223,0))=\"\",\"\",INDEX('Coverage Indicator_Import-Expor'!L$7:L$223,MATCH($B28,'Coverage Indicator_Import-Expor'!$C$7:$C$223,0))),\"\")","v":"N-Non-cumulative"},{"$f":"IFERROR(IF(INDEX('Coverage Indicator_Import-Expor'!AR$7:AR$223,MATCH($B28,'Coverage Indicator_Import-Expor'!$C$7:$C$223,0))=\"\",\"\",INDEX('Coverage Indicator_Import-Expor'!AR$7:AR$223,MATCH($B28,'Coverage Indicator_Import-Expor'!$C$7:$C$223,0))),\"\")","v":"No"},{"$f":"IFERROR(IF(INDEX('Coverage Indicator_Import-Expor'!AS$7:AS$223,MATCH($B28,'Coverage Indicator_Import-Expor'!$C$7:$C$223,0))=\"\",\"\",INDEX('Coverage Indicator_Import-Expor'!AS$7:AS$223,MATCH($B28,'Coverage Indicator_Import-Expor'!$C$7:$C$223,0))),\"\")","v":"Burundi"},{"$f":"IFERROR(IF(INDEX('Coverage Indicator_Import-Expor'!N$7:N$223,MATCH($B28,'Coverage Indicator_Import-Expor'!$C$7:$C$223,0))=\"\",\"\",INDEX('Coverage Indicator_Import-Expor'!N$7:N$223,MATCH($B28,'Coverage Indicator_Import-Expor'!$C$7:$C$223,0))),\"\")","v":198},{"$f":"IFERROR(IF(INDEX('Coverage Indicator_Import-Expor'!O$7:O$223,MATCH($B28,'Coverage Indicator_Import-Expor'!$C$7:$C$223,0))=\"\",\"\",INDEX('Coverage Indicator_Import-Expor'!O$7:O$223,MATCH($B28,'Coverage Indicator_Import-Expor'!$C$7:$C$223,0))),\"\")","v":6166},{"$f":"IFERROR(IF(INDEX('Coverage Indicator_Import-Expor'!P$7:P$223,MATCH($B28,'Coverage Indicator_Import-Expor'!$C$7:$C$223,0))=\"\",\"\",INDEX('Coverage Indicator_Import-Expor'!P$7:P$223,MATCH($B28,'Coverage Indicator_Import-Expor'!$C$7:$C$223,0))),\"\")","v":3.2},{"$f":"IFERROR(IF(INDEX('Coverage Indicator_Import-Expor'!Q$7:Q$223,MATCH($B28,'Coverage Indicator_Import-Expor'!$C$7:$C$223,0))=\"\",\"\",INDEX('Coverage Indicator_Import-Expor'!Q$7:Q$223,MATCH($B28,'Coverage Indicator_Import-Expor'!$C$7:$C$223,0))),\"\")","v":"2017"},{"$f":"IFERROR(IF(INDEX('Coverage Indicator_Import-Expor'!R$7:R$223,MATCH($B28,'Coverage Indicator_Import-Expor'!$C$7:$C$223,0))=\"\",\"\",INDEX('Coverage Indicator_Import-Expor'!R$7:R$223,MATCH($B28,'Coverage Indicator_Import-Expor'!$C$7:$C$223,0))),\"\")","v":"PNLS/IST Programme Data, Sem 1"},{"$f":"IFERROR(IF(INDEX('Coverage Indicator_Import-Expor'!S$7:S$223,MATCH($B28,'Coverage Indicator_Import-Expor'!$C$7:$C$223,0))=\"\",\"\",INDEX('Coverage Indicator_Import-Expor'!S$7:S$223,MATCH($B28,'Coverage Indicator_Import-Expor'!$C$7:$C$223,0))),\"\")","v":646.1},{"$f":"IFERROR(IF(INDEX('Coverage Indicator_Import-Expor'!T$7:T$223,MATCH($B28,'Coverage Indicator_Import-Expor'!$C$7:$C$223,0))=\"\",\"\",INDEX('Coverage Indicator_Import-Expor'!T$7:T$223,MATCH($B28,'Coverage Indicator_Import-Expor'!$C$7:$C$223,0))),\"\")","v":1846},{"$f":"IFERROR(IF(INDEX('Coverage Indicator_Import-Expor'!U$7:U$223,MATCH($B28,'Coverage Indicator_Import-Expor'!$C$7:$C$223,0))=\"\",\"\",INDEX('Coverage Indicator_Import-Expor'!U$7:U$223,MATCH($B28,'Coverage Indicator_Import-Expor'!$C$7:$C$223,0))),\"\")","v":35},184,1846,9.967497291440953,null,0.28478563689831293,"Sur un total de 29841 patients ayant bénéficié du screening de la TB pour la période de janvier-juin 2018, 184 ont bénéficié la prophylaxie à l’INH sur un total de 1846 attendus selon le Cadre de Performance. Cependant, dans le cadre de performance, il était convenu que le dénominateur soit mis à jour lors du rapportage avec des données réelles. Cette donnée n’est pas vérifiable dans DHIS2. Elle est estimée selon le calcul suivant : \nConformément à la définition de l’indicateur dont le dénominateur est le nombre total d’adultes et d’enfants nouvellement pris en charge pour le VIH au cours de la période de rapportage, le nombre de nouveaux cas pris en charge au cours de la période devrait etre calculé comme suit : \n64419 (PVVIH sous ARV au 30 juin 2018) - 60115 (PVVIH sous ARV au 31 décembre 2017 selon le PUDR) =4304 cas. \nUne insuffisance en INH a été constatée depuis le mois de novembre 2017 ce qui a entraîné la diminution du nombre de screening et a impacté négativement la performance de cet indicateur. \nCompte tenu des manquements constatés , le PNUD se propose d'appuyer le PNLS dans son plaidoyer auprès  de la DSNIS pour intégrer dans DHIS2 l’indicateur en rapport avec les PVVIH screenés négatif parmi les nouveaux cas enrôlés au traitement ARV. D’autre part, l’indicateur en rapport avec les nouveaux PVVIH enrôlés au traitement ARV devrait figurer parmi les indicateurs à renseigner au FM. Il est important que le PNILT et PNLS renforce leurs supervisions formatives conjointes afin de redynamiser les interventions conjointes de lutte  contre la confection TBVIH(screenining de la TB et la prophylaxie à l'INH des PVVIH screenés négatifs).\n\nSource des données: cet indicateur a été renseigné par le rapport semestriel du PNLS ","Continue",null,null,"",null," ",null,null,"No Results Reported",null,null,""," ",null,"No Results Reported"]
[19,"Coverage19",{"$f":"IFERROR(INDEX('Coverage Indicator_Import-Expor'!$D$7:$D$223,MATCH(B29,'Coverage Indicator_Import-Expor'!$C$7:$C$223,0)),\"\")","v":"HIV Testing Services"},{"$f":"IFERROR(INDEX('Coverage Indicator_Import-Expor'!$E$7:$E$223,MATCH(B29,'Coverage Indicator_Import-Expor'!$C$7:$C$223,0)),\"\")","v":"HTS-1: Nombre de personnes dépistées pour le VIH et ayant reçu leurs résultats durant la période de rapportage"},{"$f":"IFERROR(IF(INDEX('Coverage Indicator_Import-Expor'!K$7:K$223,MATCH($B29,'Coverage Indicator_Import-Expor'!$C$7:$C$223,0))=\"\",\"\",INDEX('Coverage Indicator_Import-Expor'!K$7:K$223,MATCH($B29,'Coverage Indicator_Import-Expor'!$C$7:$C$223,0))),\"\")","v":"National"},{"$f":"IFERROR(IF(INDEX('Coverage Indicator_Import-Expor'!L$7:L$223,MATCH($B29,'Coverage Indicator_Import-Expor'!$C$7:$C$223,0))=\"\",\"\",INDEX('Coverage Indicator_Import-Expor'!L$7:L$223,MATCH($B29,'Coverage Indicator_Import-Expor'!$C$7:$C$223,0))),\"\")","v":"Y- Cumulative annually"},{"$f":"IFERROR(IF(INDEX('Coverage Indicator_Import-Expor'!AR$7:AR$223,MATCH($B29,'Coverage Indicator_Import-Expor'!$C$7:$C$223,0))=\"\",\"\",INDEX('Coverage Indicator_Import-Expor'!AR$7:AR$223,MATCH($B29,'Coverage Indicator_Import-Expor'!$C$7:$C$223,0))),\"\")","v":"No"},{"$f":"IFERROR(IF(INDEX('Coverage Indicator_Import-Expor'!AS$7:AS$223,MATCH($B29,'Coverage Indicator_Import-Expor'!$C$7:$C$223,0))=\"\",\"\",INDEX('Coverage Indicator_Import-Expor'!AS$7:AS$223,MATCH($B29,'Coverage Indicator_Import-Expor'!$C$7:$C$223,0))),\"\")","v":"Burundi"},{"$f":"IFERROR(IF(INDEX('Coverage Indicator_Import-Expor'!N$7:N$223,MATCH($B29,'Coverage Indicator_Import-Expor'!$C$7:$C$223,0))=\"\",\"\",INDEX('Coverage Indicator_Import-Expor'!N$7:N$223,MATCH($B29,'Coverage Indicator_Import-Expor'!$C$7:$C$223,0))),\"\")","v":704199},{"$f":"IFERROR(IF(INDEX('Coverage Indicator_Import-Expor'!O$7:O$223,MATCH($B29,'Coverage Indicator_Import-Expor'!$C$7:$C$223,0))=\"\",\"\",INDEX('Coverage Indicator_Import-Expor'!O$7:O$223,MATCH($B29,'Coverage Indicator_Import-Expor'!$C$7:$C$223,0))),\"\")","v":""},{"$f":"IFERROR(IF(INDEX('Coverage Indicator_Import-Expor'!P$7:P$223,MATCH($B29,'Coverage Indicator_Import-Expor'!$C$7:$C$223,0))=\"\",\"\",INDEX('Coverage Indicator_Import-Expor'!P$7:P$223,MATCH($B29,'Coverage Indicator_Import-Expor'!$C$7:$C$223,0))),\"\")","v":""},{"$f":"IFERROR(IF(INDEX('Coverage Indicator_Import-Expor'!Q$7:Q$223,MATCH($B29,'Coverage Indicator_Import-Expor'!$C$7:$C$223,0))=\"\",\"\",INDEX('Coverage Indicator_Import-Expor'!Q$7:Q$223,MATCH($B29,'Coverage Indicator_Import-Expor'!$C$7:$C$223,0))),\"\")","v":"2017"},{"$f":"IFERROR(IF(INDEX('Coverage Indicator_Import-Expor'!R$7:R$223,MATCH($B29,'Coverage Indicator_Import-Expor'!$C$7:$C$223,0))=\"\",\"\",INDEX('Coverage Indicator_Import-Expor'!R$7:R$223,MATCH($B29,'Coverage Indicator_Import-Expor'!$C$7:$C$223,0))),\"\")","v":"PNLS/IST Programme Data, Sem 1"},{"$f":"IFERROR(IF(INDEX('Coverage Indicator_Import-Expor'!S$7:S$223,MATCH($B29,'Coverage Indicator_Import-Expor'!$C$7:$C$223,0))=\"\",\"\",INDEX('Coverage Indicator_Import-Expor'!S$7:S$223,MATCH($B29,'Coverage Indicator_Import-Expor'!$C$7:$C$223,0))),\"\")","v":537675},{"$f":"IFERROR(IF(INDEX('Coverage Indicator_Import-Expor'!T$7:T$223,MATCH($B29,'Coverage Indicator_Import-Expor'!$C$7:$C$223,0))=\"\",\"\",INDEX('Coverage Indicator_Import-Expor'!T$7:T$223,MATCH($B29,'Coverage Indicator_Import-Expor'!$C$7:$C$223,0))),\"\")","v":""},{"$f":"IFERROR(IF(INDEX('Coverage Indicator_Import-Expor'!U$7:U$223,MATCH($B29,'Coverage Indicator_Import-Expor'!$C$7:$C$223,0))=\"\",\"\",INDEX('Coverage Indicator_Import-Expor'!U$7:U$223,MATCH($B29,'Coverage Indicator_Import-Expor'!$C$7:$C$223,0))),\"\")","v":""},938645,null,"","HMIS",1.2,"Pour la période de janvier à Juin 2018, 951 074 personnes ont réalisé le test de dépistage contre 537675 qui étaient attendus dans le cadre de performance. Parmi eux, 33,5% étaient des hommes et 66,5% des femmes. Parmi ceux qui ont réalisé le test,  938 645 (98,7%) ont récupéré les résultats. \n\nCette performance s'explique par:\n- Les activités de dépistage en stratégies avancées qui ont été réalisées dans toutes les provinces du pays\n- Les ateliers de formation sur le dépistage initié par le prestataire qui auraient amenés les prestataires à réaliser plus de dépistages ciblés;\n- Le fait que les séances de counseling sont systématiques et que les résultats sont remis le même jour (juste après le dépistage),  augmenterait le nombre de personnes qui récupèrent les résultats.\n\nSource des données: cet indicateur a été renseigné par le rapport semestriel du PNLS  après consultation  de DHIS2\nSignalons que parmi les personnes testées, 5984 ont été positives soit une séroprévalence de 0,6%.\n","Continue",null,null,"",null," ",null,null,"No Results Reported",null,null,""," ",null,"No Results Reported"]
[20,"Coverage20",{"$f":"IFERROR(INDEX('Coverage Indicator_Import-Expor'!$D$7:$D$223,MATCH(B30,'Coverage Indicator_Import-Expor'!$C$7:$C$223,0)),\"\")","v":"Comprehensive prevention programs for MSM"},{"$f":"IFERROR(INDEX('Coverage Indicator_Import-Expor'!$E$7:$E$223,MATCH(B30,'Coverage Indicator_Import-Expor'!$C$7:$C$223,0)),\"\")","v":"KP-1a(M): Pourcentage d'hommes ayant des rapports sexuels avec des hommes qui ont bénéficié de programmes de prévention du VIH (paquet de services définis)"},{"$f":"IFERROR(IF(INDEX('Coverage Indicator_Import-Expor'!K$7:K$223,MATCH($B30,'Coverage Indicator_Import-Expor'!$C$7:$C$223,0))=\"\",\"\",INDEX('Coverage Indicator_Import-Expor'!K$7:K$223,MATCH($B30,'Coverage Indicator_Import-Expor'!$C$7:$C$223,0))),\"\")","v":"National"},{"$f":"IFERROR(IF(INDEX('Coverage Indicator_Import-Expor'!L$7:L$223,MATCH($B30,'Coverage Indicator_Import-Expor'!$C$7:$C$223,0))=\"\",\"\",INDEX('Coverage Indicator_Import-Expor'!L$7:L$223,MATCH($B30,'Coverage Indicator_Import-Expor'!$C$7:$C$223,0))),\"\")","v":"Y- Cumulative annually"},{"$f":"IFERROR(IF(INDEX('Coverage Indicator_Import-Expor'!AR$7:AR$223,MATCH($B30,'Coverage Indicator_Import-Expor'!$C$7:$C$223,0))=\"\",\"\",INDEX('Coverage Indicator_Import-Expor'!AR$7:AR$223,MATCH($B30,'Coverage Indicator_Import-Expor'!$C$7:$C$223,0))),\"\")","v":"No"},{"$f":"IFERROR(IF(INDEX('Coverage Indicator_Import-Expor'!AS$7:AS$223,MATCH($B30,'Coverage Indicator_Import-Expor'!$C$7:$C$223,0))=\"\",\"\",INDEX('Coverage Indicator_Import-Expor'!AS$7:AS$223,MATCH($B30,'Coverage Indicator_Import-Expor'!$C$7:$C$223,0))),\"\")","v":"Burundi"},{"$f":"IFERROR(IF(INDEX('Coverage Indicator_Import-Expor'!N$7:N$223,MATCH($B30,'Coverage Indicator_Import-Expor'!$C$7:$C$223,0))=\"\",\"\",INDEX('Coverage Indicator_Import-Expor'!N$7:N$223,MATCH($B30,'Coverage Indicator_Import-Expor'!$C$7:$C$223,0))),\"\")","v":1833},{"$f":"IFERROR(IF(INDEX('Coverage Indicator_Import-Expor'!O$7:O$223,MATCH($B30,'Coverage Indicator_Import-Expor'!$C$7:$C$223,0))=\"\",\"\",INDEX('Coverage Indicator_Import-Expor'!O$7:O$223,MATCH($B30,'Coverage Indicator_Import-Expor'!$C$7:$C$223,0))),\"\")","v":10035},{"$f":"IFERROR(IF(INDEX('Coverage Indicator_Import-Expor'!P$7:P$223,MATCH($B30,'Coverage Indicator_Import-Expor'!$C$7:$C$223,0))=\"\",\"\",INDEX('Coverage Indicator_Import-Expor'!P$7:P$223,MATCH($B30,'Coverage Indicator_Import-Expor'!$C$7:$C$223,0))),\"\")","v":18.3},{"$f":"IFERROR(IF(INDEX('Coverage Indicator_Import-Expor'!Q$7:Q$223,MATCH($B30,'Coverage Indicator_Import-Expor'!$C$7:$C$223,0))=\"\",\"\",INDEX('Coverage Indicator_Import-Expor'!Q$7:Q$223,MATCH($B30,'Coverage Indicator_Import-Expor'!$C$7:$C$223,0))),\"\")","v":"2016"},{"$f":"IFERROR(IF(INDEX('Coverage Indicator_Import-Expor'!R$7:R$223,MATCH($B30,'Coverage Indicator_Import-Expor'!$C$7:$C$223,0))=\"\",\"\",INDEX('Coverage Indicator_Import-Expor'!R$7:R$223,MATCH($B30,'Coverage Indicator_Import-Expor'!$C$7:$C$223,0))),\"\")","v":"CRB Programme Data, Sem 2"},{"$f":"IFERROR(IF(INDEX('Coverage Indicator_Import-Expor'!S$7:S$223,MATCH($B30,'Coverage Indicator_Import-Expor'!$C$7:$C$223,0))=\"\",\"\",INDEX('Coverage Indicator_Import-Expor'!S$7:S$223,MATCH($B30,'Coverage Indicator_Import-Expor'!$C$7:$C$223,0))),\"\")","v":4156.5},{"$f":"IFERROR(IF(INDEX('Coverage Indicator_Import-Expor'!T$7:T$223,MATCH($B30,'Coverage Indicator_Import-Expor'!$C$7:$C$223,0))=\"\",\"\",INDEX('Coverage Indicator_Import-Expor'!T$7:T$223,MATCH($B30,'Coverage Indicator_Import-Expor'!$C$7:$C$223,0))),\"\")","v":10522},{"$f":"IFERROR(IF(INDEX('Coverage Indicator_Import-Expor'!U$7:U$223,MATCH($B30,'Coverage Indicator_Import-Expor'!$C$7:$C$223,0))=\"\",\"\",INDEX('Coverage Indicator_Import-Expor'!U$7:U$223,MATCH($B30,'Coverage Indicator_Import-Expor'!$C$7:$C$223,0))),\"\")","v":39.5},4351,10522,41.351454096179438,"Reports (specify)",1.0468722555994794,"Sur un nombre de HSH estimé à 10522 au niveau national, la CRB et ses partenaires comptaient toucher 4156 (soit 39.5%) pour la période de Janvier à Juin 2018. Cependant, le paquet de service de prévention a été offert à 4351 HSH soit   2 552 issus des Pairs Éducateurs (PE) HSH des provinces d’intervention de la CRB et 1799 encadré par Le projet Linkages financé par PEPFAR. \nLe taux de réalisation est de 41,3% soit une performance de 105%. Nous constatons que les HSH ont répondu favorablement aux services de prévention au cours de la période de rapportage. \nSignalons que la CRB intervient dans les Provinces de Makamba, Rumonge, Cibitoke et Gitega tandis que le Projet Linkages intervient dans Bujumbura Mairie, Kayanza, Ngozi Bujumbura (Rural) et Kirundo. Ces zones d’interventions étant séparées, la probabilité de doublons dans le rapportage est minime.  \n\nSource: Rappport CRB","Continue",null,null,"",null," ",null,null,"No Results Reported",null,null,""," ",null,"No Results Reported"]
[21,"Coverage21",{"$f":"IFERROR(INDEX('Coverage Indicator_Import-Expor'!$D$7:$D$223,MATCH(B31,'Coverage Indicator_Import-Expor'!$C$7:$C$223,0)),\"\")","v":"Comprehensive prevention programs for MSM"},{"$f":"IFERROR(INDEX('Coverage Indicator_Import-Expor'!$E$7:$E$223,MATCH(B31,'Coverage Indicator_Import-Expor'!$C$7:$C$223,0)),\"\")","v":"KP-3a(M): Nombre et pourcentage d'hommes ayant des rapports sexuels avec des hommes qui ont fait un test VIH et connaissent les résultats"},{"$f":"IFERROR(IF(INDEX('Coverage Indicator_Import-Expor'!K$7:K$223,MATCH($B31,'Coverage Indicator_Import-Expor'!$C$7:$C$223,0))=\"\",\"\",INDEX('Coverage Indicator_Import-Expor'!K$7:K$223,MATCH($B31,'Coverage Indicator_Import-Expor'!$C$7:$C$223,0))),\"\")","v":"National"},{"$f":"IFERROR(IF(INDEX('Coverage Indicator_Import-Expor'!L$7:L$223,MATCH($B31,'Coverage Indicator_Import-Expor'!$C$7:$C$223,0))=\"\",\"\",INDEX('Coverage Indicator_Import-Expor'!L$7:L$223,MATCH($B31,'Coverage Indicator_Import-Expor'!$C$7:$C$223,0))),\"\")","v":"Y- Cumulative annually"},{"$f":"IFERROR(IF(INDEX('Coverage Indicator_Import-Expor'!AR$7:AR$223,MATCH($B31,'Coverage Indicator_Import-Expor'!$C$7:$C$223,0))=\"\",\"\",INDEX('Coverage Indicator_Import-Expor'!AR$7:AR$223,MATCH($B31,'Coverage Indicator_Import-Expor'!$C$7:$C$223,0))),\"\")","v":"No"},{"$f":"IFERROR(IF(INDEX('Coverage Indicator_Import-Expor'!AS$7:AS$223,MATCH($B31,'Coverage Indicator_Import-Expor'!$C$7:$C$223,0))=\"\",\"\",INDEX('Coverage Indicator_Import-Expor'!AS$7:AS$223,MATCH($B31,'Coverage Indicator_Import-Expor'!$C$7:$C$223,0))),\"\")","v":"Burundi"},{"$f":"IFERROR(IF(INDEX('Coverage Indicator_Import-Expor'!N$7:N$223,MATCH($B31,'Coverage Indicator_Import-Expor'!$C$7:$C$223,0))=\"\",\"\",INDEX('Coverage Indicator_Import-Expor'!N$7:N$223,MATCH($B31,'Coverage Indicator_Import-Expor'!$C$7:$C$223,0))),\"\")","v":975},{"$f":"IFERROR(IF(INDEX('Coverage Indicator_Import-Expor'!O$7:O$223,MATCH($B31,'Coverage Indicator_Import-Expor'!$C$7:$C$223,0))=\"\",\"\",INDEX('Coverage Indicator_Import-Expor'!O$7:O$223,MATCH($B31,'Coverage Indicator_Import-Expor'!$C$7:$C$223,0))),\"\")","v":10035},{"$f":"IFERROR(IF(INDEX('Coverage Indicator_Import-Expor'!P$7:P$223,MATCH($B31,'Coverage Indicator_Import-Expor'!$C$7:$C$223,0))=\"\",\"\",INDEX('Coverage Indicator_Import-Expor'!P$7:P$223,MATCH($B31,'Coverage Indicator_Import-Expor'!$C$7:$C$223,0))),\"\")","v":9.6999999999999993},{"$f":"IFERROR(IF(INDEX('Coverage Indicator_Import-Expor'!Q$7:Q$223,MATCH($B31,'Coverage Indicator_Import-Expor'!$C$7:$C$223,0))=\"\",\"\",INDEX('Coverage Indicator_Import-Expor'!Q$7:Q$223,MATCH($B31,'Coverage Indicator_Import-Expor'!$C$7:$C$223,0))),\"\")","v":"2016"},{"$f":"IFERROR(IF(INDEX('Coverage Indicator_Import-Expor'!R$7:R$223,MATCH($B31,'Coverage Indicator_Import-Expor'!$C$7:$C$223,0))=\"\",\"\",INDEX('Coverage Indicator_Import-Expor'!R$7:R$223,MATCH($B31,'Coverage Indicator_Import-Expor'!$C$7:$C$223,0))),\"\")","v":"CRB Programme Data, Sem 2"},{"$f":"IFERROR(IF(INDEX('Coverage Indicator_Import-Expor'!S$7:S$223,MATCH($B31,'Coverage Indicator_Import-Expor'!$C$7:$C$223,0))=\"\",\"\",INDEX('Coverage Indicator_Import-Expor'!S$7:S$223,MATCH($B31,'Coverage Indicator_Import-Expor'!$C$7:$C$223,0))),\"\")","v":3524.87},{"$f":"IFERROR(IF(INDEX('Coverage Indicator_Import-Expor'!T$7:T$223,MATCH($B31,'Coverage Indicator_Import-Expor'!$C$7:$C$223,0))=\"\",\"\",INDEX('Coverage Indicator_Import-Expor'!T$7:T$223,MATCH($B31,'Coverage Indicator_Import-Expor'!$C$7:$C$223,0))),\"\")","v":10522},{"$f":"IFERROR(IF(INDEX('Coverage Indicator_Import-Expor'!U$7:U$223,MATCH($B31,'Coverage Indicator_Import-Expor'!$C$7:$C$223,0))=\"\",\"\",INDEX('Coverage Indicator_Import-Expor'!U$7:U$223,MATCH($B31,'Coverage Indicator_Import-Expor'!$C$7:$C$223,0))),\"\")","v":33.5},2594,10522,24.653107774187415,"Reports (specify)",0.73591366490111687,"Sur un nombre d'hommes ayant des rapports sexuels avec les hommes (HSH) estimé à 10522 au niveau national, la CRB et ses partenaires comptaient dépister 3524 (soit 33.5%) pour la période de Janvier à Juin 2018. Cependant, seuls 2594 HSH ont été dépisté et connaissent leur statut sérologique. Le taux de réalisation est alors de 24,6% soit une performance de 74% \nCette performance  s’explique par une réticence des HSH à utiliser les services de santé pour le dépistage au VIH. Pour y remédier il est nécessaire qu’il soit créés des centres de dépistage qui offrent plus d’intimité pour cette categorie de personnes (services de dépistage au niveau des centres de convivialité, le dépistage en stratégie mobile etc). D’autre part, l’adoption de la stratégie autotest pour le dépistage du VIH pourrait permettre de dépister les HSH qui auraient peur d’utiliser les services de santé.   \n\nSource: rapport CRB","Continue",null,null,"",null," ",null,null,"No Results Reported",null,null,""," ",null,"No Results Reported"]
[22,"Coverage22",{"$f":"IFERROR(INDEX('Coverage Indicator_Import-Expor'!$D$7:$D$223,MATCH(B32,'Coverage Indicator_Import-Expor'!$C$7:$C$223,0)),\"\")","v":"Comprehensive prevention programs for sex workers and their clients"},{"$f":"IFERROR(INDEX('Coverage Indicator_Import-Expor'!$E$7:$E$223,MATCH(B32,'Coverage Indicator_Import-Expor'!$C$7:$C$223,0)),\"\")","v":"KP-1c(M): Pourcentage de professionnels du sexe ayant bénéficié de programmes de prévention du VIH- paquet de services définis"},{"$f":"IFERROR(IF(INDEX('Coverage Indicator_Import-Expor'!K$7:K$223,MATCH($B32,'Coverage Indicator_Import-Expor'!$C$7:$C$223,0))=\"\",\"\",INDEX('Coverage Indicator_Import-Expor'!K$7:K$223,MATCH($B32,'Coverage Indicator_Import-Expor'!$C$7:$C$223,0))),\"\")","v":"National"},{"$f":"IFERROR(IF(INDEX('Coverage Indicator_Import-Expor'!L$7:L$223,MATCH($B32,'Coverage Indicator_Import-Expor'!$C$7:$C$223,0))=\"\",\"\",INDEX('Coverage Indicator_Import-Expor'!L$7:L$223,MATCH($B32,'Coverage Indicator_Import-Expor'!$C$7:$C$223,0))),\"\")","v":"Y- Cumulative annually"},{"$f":"IFERROR(IF(INDEX('Coverage Indicator_Import-Expor'!AR$7:AR$223,MATCH($B32,'Coverage Indicator_Import-Expor'!$C$7:$C$223,0))=\"\",\"\",INDEX('Coverage Indicator_Import-Expor'!AR$7:AR$223,MATCH($B32,'Coverage Indicator_Import-Expor'!$C$7:$C$223,0))),\"\")","v":"No"},{"$f":"IFERROR(IF(INDEX('Coverage Indicator_Import-Expor'!AS$7:AS$223,MATCH($B32,'Coverage Indicator_Import-Expor'!$C$7:$C$223,0))=\"\",\"\",INDEX('Coverage Indicator_Import-Expor'!AS$7:AS$223,MATCH($B32,'Coverage Indicator_Import-Expor'!$C$7:$C$223,0))),\"\")","v":"Burundi"},{"$f":"IFERROR(IF(INDEX('Coverage Indicator_Import-Expor'!N$7:N$223,MATCH($B32,'Coverage Indicator_Import-Expor'!$C$7:$C$223,0))=\"\",\"\",INDEX('Coverage Indicator_Import-Expor'!N$7:N$223,MATCH($B32,'Coverage Indicator_Import-Expor'!$C$7:$C$223,0))),\"\")","v":14364},{"$f":"IFERROR(IF(INDEX('Coverage Indicator_Import-Expor'!O$7:O$223,MATCH($B32,'Coverage Indicator_Import-Expor'!$C$7:$C$223,0))=\"\",\"\",INDEX('Coverage Indicator_Import-Expor'!O$7:O$223,MATCH($B32,'Coverage Indicator_Import-Expor'!$C$7:$C$223,0))),\"\")","v":55278},{"$f":"IFERROR(IF(INDEX('Coverage Indicator_Import-Expor'!P$7:P$223,MATCH($B32,'Coverage Indicator_Import-Expor'!$C$7:$C$223,0))=\"\",\"\",INDEX('Coverage Indicator_Import-Expor'!P$7:P$223,MATCH($B32,'Coverage Indicator_Import-Expor'!$C$7:$C$223,0))),\"\")","v":26},{"$f":"IFERROR(IF(INDEX('Coverage Indicator_Import-Expor'!Q$7:Q$223,MATCH($B32,'Coverage Indicator_Import-Expor'!$C$7:$C$223,0))=\"\",\"\",INDEX('Coverage Indicator_Import-Expor'!Q$7:Q$223,MATCH($B32,'Coverage Indicator_Import-Expor'!$C$7:$C$223,0))),\"\")","v":"2016"},{"$f":"IFERROR(IF(INDEX('Coverage Indicator_Import-Expor'!R$7:R$223,MATCH($B32,'Coverage Indicator_Import-Expor'!$C$7:$C$223,0))=\"\",\"\",INDEX('Coverage Indicator_Import-Expor'!R$7:R$223,MATCH($B32,'Coverage Indicator_Import-Expor'!$C$7:$C$223,0))),\"\")","v":"CRB Programme Data, Sem 2"},{"$f":"IFERROR(IF(INDEX('Coverage Indicator_Import-Expor'!S$7:S$223,MATCH($B32,'Coverage Indicator_Import-Expor'!$C$7:$C$223,0))=\"\",\"\",INDEX('Coverage Indicator_Import-Expor'!S$7:S$223,MATCH($B32,'Coverage Indicator_Import-Expor'!$C$7:$C$223,0))),\"\")","v":24054.5},{"$f":"IFERROR(IF(INDEX('Coverage Indicator_Import-Expor'!T$7:T$223,MATCH($B32,'Coverage Indicator_Import-Expor'!$C$7:$C$223,0))=\"\",\"\",INDEX('Coverage Indicator_Import-Expor'!T$7:T$223,MATCH($B32,'Coverage Indicator_Import-Expor'!$C$7:$C$223,0))),\"\")","v":57963},{"$f":"IFERROR(IF(INDEX('Coverage Indicator_Import-Expor'!U$7:U$223,MATCH($B32,'Coverage Indicator_Import-Expor'!$C$7:$C$223,0))=\"\",\"\",INDEX('Coverage Indicator_Import-Expor'!U$7:U$223,MATCH($B32,'Coverage Indicator_Import-Expor'!$C$7:$C$223,0))),\"\")","v":41.5},26589,57963,45.872366854717669,"Reports (specify)",1.1053582374630764,"Sur un nombre de professionnelles de sexe (PS)  estimé à 57963 au niveau national, la CRB et ses partenaires comptaient toucher 24054 (soit 41.5%) pour la période de Janvier à Juin 2018. Cependant, le paquet de service de prévention a été offert à 26589 PS soit   15672 issus des Pairs Éducateurs (PE) PS des provinces d’intervention de la CRB et 11036 encadré par Le projet Linkages financé par PEPFAR. \nLe taux de réalisation est de 45,8% soit une performance de 111%. Nous constatons que les PS ont répondu favorablement aux services de prévention au cours de la période de rapportage. \nSignalons que la CRB intervient dans les Provinces de Makamba, Rumonge, Muyinga et Gitega tandis que le Projet Linkages intervient dans Bujumbura Mairie, Kayanza, Ngozi Bujumbura (Rural) et Kirundo. Ces zones d’interventions étant séparées, la probabilité de doublons dans le rapportage est minime.  \nSource: Rapport CRB","Continue",null,null,"",null," ",null,null,"No Results Reported",null,null,""," ",null,"No Results Reported"]
[23,"Coverage23",{"$f":"IFERROR(INDEX('Coverage Indicator_Import-Expor'!$D$7:$D$223,MATCH(B33,'Coverage Indicator_Import-Expor'!$C$7:$C$223,0)),\"\")","v":"Comprehensive prevention programs for sex workers and their clients"},{"$f":"IFERROR(INDEX('Coverage Indicator_Import-Expor'!$E$7:$E$223,MATCH(B33,'Coverage Indicator_Import-Expor'!$C$7:$C$223,0)),\"\")","v":"KP-3c(M): Pourcentage de professionnels de sexe qui ont fait un test VIH au cours de la période de rapportage et qui connaissent les résultats"},{"$f":"IFERROR(IF(INDEX('Coverage Indicator_Import-Expor'!K$7:K$223,MATCH($B33,'Coverage Indicator_Import-Expor'!$C$7:$C$223,0))=\"\",\"\",INDEX('Coverage Indicator_Import-Expor'!K$7:K$223,MATCH($B33,'Coverage Indicator_Import-Expor'!$C$7:$C$223,0))),\"\")","v":"National"},{"$f":"IFERROR(IF(INDEX('Coverage Indicator_Import-Expor'!L$7:L$223,MATCH($B33,'Coverage Indicator_Import-Expor'!$C$7:$C$223,0))=\"\",\"\",INDEX('Coverage Indicator_Import-Expor'!L$7:L$223,MATCH($B33,'Coverage Indicator_Import-Expor'!$C$7:$C$223,0))),\"\")","v":"Y- Cumulative annually"},{"$f":"IFERROR(IF(INDEX('Coverage Indicator_Import-Expor'!AR$7:AR$223,MATCH($B33,'Coverage Indicator_Import-Expor'!$C$7:$C$223,0))=\"\",\"\",INDEX('Coverage Indicator_Import-Expor'!AR$7:AR$223,MATCH($B33,'Coverage Indicator_Import-Expor'!$C$7:$C$223,0))),\"\")","v":"No"},{"$f":"IFERROR(IF(INDEX('Coverage Indicator_Import-Expor'!AS$7:AS$223,MATCH($B33,'Coverage Indicator_Import-Expor'!$C$7:$C$223,0))=\"\",\"\",INDEX('Coverage Indicator_Import-Expor'!AS$7:AS$223,MATCH($B33,'Coverage Indicator_Import-Expor'!$C$7:$C$223,0))),\"\")","v":"Burundi"},{"$f":"IFERROR(IF(INDEX('Coverage Indicator_Import-Expor'!N$7:N$223,MATCH($B33,'Coverage Indicator_Import-Expor'!$C$7:$C$223,0))=\"\",\"\",INDEX('Coverage Indicator_Import-Expor'!N$7:N$223,MATCH($B33,'Coverage Indicator_Import-Expor'!$C$7:$C$223,0))),\"\")","v":6393},{"$f":"IFERROR(IF(INDEX('Coverage Indicator_Import-Expor'!O$7:O$223,MATCH($B33,'Coverage Indicator_Import-Expor'!$C$7:$C$223,0))=\"\",\"\",INDEX('Coverage Indicator_Import-Expor'!O$7:O$223,MATCH($B33,'Coverage Indicator_Import-Expor'!$C$7:$C$223,0))),\"\")","v":55278},{"$f":"IFERROR(IF(INDEX('Coverage Indicator_Import-Expor'!P$7:P$223,MATCH($B33,'Coverage Indicator_Import-Expor'!$C$7:$C$223,0))=\"\",\"\",INDEX('Coverage Indicator_Import-Expor'!P$7:P$223,MATCH($B33,'Coverage Indicator_Import-Expor'!$C$7:$C$223,0))),\"\")","v":11.6},{"$f":"IFERROR(IF(INDEX('Coverage Indicator_Import-Expor'!Q$7:Q$223,MATCH($B33,'Coverage Indicator_Import-Expor'!$C$7:$C$223,0))=\"\",\"\",INDEX('Coverage Indicator_Import-Expor'!Q$7:Q$223,MATCH($B33,'Coverage Indicator_Import-Expor'!$C$7:$C$223,0))),\"\")","v":"2016"},{"$f":"IFERROR(IF(INDEX('Coverage Indicator_Import-Expor'!R$7:R$223,MATCH($B33,'Coverage Indicator_Import-Expor'!$C$7:$C$223,0))=\"\",\"\",INDEX('Coverage Indicator_Import-Expor'!R$7:R$223,MATCH($B33,'Coverage Indicator_Import-Expor'!$C$7:$C$223,0))),\"\")","v":"CRB Programme Data, Sem 2"},{"$f":"IFERROR(IF(INDEX('Coverage Indicator_Import-Expor'!S$7:S$223,MATCH($B33,'Coverage Indicator_Import-Expor'!$C$7:$C$223,0))=\"\",\"\",INDEX('Coverage Indicator_Import-Expor'!S$7:S$223,MATCH($B33,'Coverage Indicator_Import-Expor'!$C$7:$C$223,0))),\"\")","v":20287.05},{"$f":"IFERROR(IF(INDEX('Coverage Indicator_Import-Expor'!T$7:T$223,MATCH($B33,'Coverage Indicator_Import-Expor'!$C$7:$C$223,0))=\"\",\"\",INDEX('Coverage Indicator_Import-Expor'!T$7:T$223,MATCH($B33,'Coverage Indicator_Import-Expor'!$C$7:$C$223,0))),\"\")","v":57963},{"$f":"IFERROR(IF(INDEX('Coverage Indicator_Import-Expor'!U$7:U$223,MATCH($B33,'Coverage Indicator_Import-Expor'!$C$7:$C$223,0))=\"\",\"\",INDEX('Coverage Indicator_Import-Expor'!U$7:U$223,MATCH($B33,'Coverage Indicator_Import-Expor'!$C$7:$C$223,0))),\"\")","v":35},16459,57963,28.395700705622552,"Reports (specify)",0.81130573444635867,"Sur un nombre de professionnelles  de sexe (PS) estimé à 57963 au niveau national, la CRB et ses partenaires comptaient dépister 20287(soit 35%) pour la période de Janvier à Juin 2018. Cependant, seuls 16459 PS ont été dépistées et connaissent leur statut sérologique. Le taux de réalisation est alors de 28,4% soit une performance de 81% \nCette performance s'explique par une réticence des PS à utiliser les services de santé pour le dépistage au VIH. Pour y remédier il est nécessaire qu’il soit créés des centres de dépistage qui offrent plus d’intimité pour cette catégorie de personnes (services de dépistage au niveau des centres de convivialité, le dépistage en stratégie mobile etc). D’autre part, l’adoption de la stratégie autotest pour le dépistage du VIH pourrait permettre de dépister les PS qui auraient peur d’utiliser les services de santé.   \n\nSource: Rapport CRB","Continue",null,null,"",null," ",null,null,"No Results Reported",null,null,""," ",null,"No Results Reported"]
[24,"Coverage24",{"$f":"IFERROR(INDEX('Coverage Indicator_Import-Expor'!$D$7:$D$223,MATCH(B34,'Coverage Indicator_Import-Expor'!$C$7:$C$223,0)),\"\")","v":""},{"$f":"IFERROR(INDEX('Coverage Indicator_Import-Expor'!$E$7:$E$223,MATCH(B34,'Coverage Indicator_Import-Expor'!$C$7:$C$223,0)),\"\")","v":""},{"$f":"IFERROR(IF(INDEX('Coverage Indicator_Import-Expor'!K$7:K$223,MATCH($B34,'Coverage Indicator_Import-Expor'!$C$7:$C$223,0))=\"\",\"\",INDEX('Coverage Indicator_Import-Expor'!K$7:K$223,MATCH($B34,'Coverage Indicator_Import-Expor'!$C$7:$C$223,0))),\"\")","v":""},{"$f":"IFERROR(IF(INDEX('Coverage Indicator_Import-Expor'!L$7:L$223,MATCH($B34,'Coverage Indicator_Import-Expor'!$C$7:$C$223,0))=\"\",\"\",INDEX('Coverage Indicator_Import-Expor'!L$7:L$223,MATCH($B34,'Coverage Indicator_Import-Expor'!$C$7:$C$223,0))),\"\")","v":""},{"$f":"IFERROR(IF(INDEX('Coverage Indicator_Import-Expor'!AR$7:AR$223,MATCH($B34,'Coverage Indicator_Import-Expor'!$C$7:$C$223,0))=\"\",\"\",INDEX('Coverage Indicator_Import-Expor'!AR$7:AR$223,MATCH($B34,'Coverage Indicator_Import-Expor'!$C$7:$C$223,0))),\"\")","v":""},{"$f":"IFERROR(IF(INDEX('Coverage Indicator_Import-Expor'!AS$7:AS$223,MATCH($B34,'Coverage Indicator_Import-Expor'!$C$7:$C$223,0))=\"\",\"\",INDEX('Coverage Indicator_Import-Expor'!AS$7:AS$223,MATCH($B34,'Coverage Indicator_Import-Expor'!$C$7:$C$223,0))),\"\")","v":""},{"$f":"IFERROR(IF(INDEX('Coverage Indicator_Import-Expor'!N$7:N$223,MATCH($B34,'Coverage Indicator_Import-Expor'!$C$7:$C$223,0))=\"\",\"\",INDEX('Coverage Indicator_Import-Expor'!N$7:N$223,MATCH($B34,'Coverage Indicator_Import-Expor'!$C$7:$C$223,0))),\"\")","v":""},{"$f":"IFERROR(IF(INDEX('Coverage Indicator_Import-Expor'!O$7:O$223,MATCH($B34,'Coverage Indicator_Import-Expor'!$C$7:$C$223,0))=\"\",\"\",INDEX('Coverage Indicator_Import-Expor'!O$7:O$223,MATCH($B34,'Coverage Indicator_Import-Expor'!$C$7:$C$223,0))),\"\")","v":""},{"$f":"IFERROR(IF(INDEX('Coverage Indicator_Import-Expor'!P$7:P$223,MATCH($B34,'Coverage Indicator_Import-Expor'!$C$7:$C$223,0))=\"\",\"\",INDEX('Coverage Indicator_Import-Expor'!P$7:P$223,MATCH($B34,'Coverage Indicator_Import-Expor'!$C$7:$C$223,0))),\"\")","v":""},{"$f":"IFERROR(IF(INDEX('Coverage Indicator_Import-Expor'!Q$7:Q$223,MATCH($B34,'Coverage Indicator_Import-Expor'!$C$7:$C$223,0))=\"\",\"\",INDEX('Coverage Indicator_Import-Expor'!Q$7:Q$223,MATCH($B34,'Coverage Indicator_Import-Expor'!$C$7:$C$223,0))),\"\")","v":""},{"$f":"IFERROR(IF(INDEX('Coverage Indicator_Import-Expor'!R$7:R$223,MATCH($B34,'Coverage Indicator_Import-Expor'!$C$7:$C$223,0))=\"\",\"\",INDEX('Coverage Indicator_Import-Expor'!R$7:R$223,MATCH($B34,'Coverage Indicator_Import-Expor'!$C$7:$C$223,0))),\"\")","v":""},{"$f":"IFERROR(IF(INDEX('Coverage Indicator_Import-Expor'!S$7:S$223,MATCH($B34,'Coverage Indicator_Import-Expor'!$C$7:$C$223,0))=\"\",\"\",INDEX('Coverage Indicator_Import-Expor'!S$7:S$223,MATCH($B34,'Coverage Indicator_Import-Expor'!$C$7:$C$223,0))),\"\")","v":""},{"$f":"IFERROR(IF(INDEX('Coverage Indicator_Import-Expor'!T$7:T$223,MATCH($B34,'Coverage Indicator_Import-Expor'!$C$7:$C$223,0))=\"\",\"\",INDEX('Coverage Indicator_Import-Expor'!T$7:T$223,MATCH($B34,'Coverage Indicator_Import-Expor'!$C$7:$C$223,0))),\"\")","v":""},{"$f":"IFERROR(IF(INDEX('Coverage Indicator_Import-Expor'!U$7:U$223,MATCH($B34,'Coverage Indicator_Import-Expor'!$C$7:$C$223,0))=\"\",\"\",INDEX('Coverage Indicator_Import-Expor'!U$7:U$223,MATCH($B34,'Coverage Indicator_Import-Expor'!$C$7:$C$223,0))),\"\")","v":""},null,null,"",null," ",null,"No Results Reported",null,null,"",null," ",null,null,"No Results Reported",null,null,""," ",null,"No Results Reported"]
[25,"Coverage25",{"$f":"IFERROR(INDEX('Coverage Indicator_Import-Expor'!$D$7:$D$223,MATCH(B35,'Coverage Indicator_Import-Expor'!$C$7:$C$223,0)),\"\")","v":""},{"$f":"IFERROR(INDEX('Coverage Indicator_Import-Expor'!$E$7:$E$223,MATCH(B35,'Coverage Indicator_Import-Expor'!$C$7:$C$223,0)),\"\")","v":""},{"$f":"IFERROR(IF(INDEX('Coverage Indicator_Import-Expor'!K$7:K$223,MATCH($B35,'Coverage Indicator_Import-Expor'!$C$7:$C$223,0))=\"\",\"\",INDEX('Coverage Indicator_Import-Expor'!K$7:K$223,MATCH($B35,'Coverage Indicator_Import-Expor'!$C$7:$C$223,0))),\"\")","v":""},{"$f":"IFERROR(IF(INDEX('Coverage Indicator_Import-Expor'!L$7:L$223,MATCH($B35,'Coverage Indicator_Import-Expor'!$C$7:$C$223,0))=\"\",\"\",INDEX('Coverage Indicator_Import-Expor'!L$7:L$223,MATCH($B35,'Coverage Indicator_Import-Expor'!$C$7:$C$223,0))),\"\")","v":""},{"$f":"IFERROR(IF(INDEX('Coverage Indicator_Import-Expor'!AR$7:AR$223,MATCH($B35,'Coverage Indicator_Import-Expor'!$C$7:$C$223,0))=\"\",\"\",INDEX('Coverage Indicator_Import-Expor'!AR$7:AR$223,MATCH($B35,'Coverage Indicator_Import-Expor'!$C$7:$C$223,0))),\"\")","v":""},{"$f":"IFERROR(IF(INDEX('Coverage Indicator_Import-Expor'!AS$7:AS$223,MATCH($B35,'Coverage Indicator_Import-Expor'!$C$7:$C$223,0))=\"\",\"\",INDEX('Coverage Indicator_Import-Expor'!AS$7:AS$223,MATCH($B35,'Coverage Indicator_Import-Expor'!$C$7:$C$223,0))),\"\")","v":""},{"$f":"IFERROR(IF(INDEX('Coverage Indicator_Import-Expor'!N$7:N$223,MATCH($B35,'Coverage Indicator_Import-Expor'!$C$7:$C$223,0))=\"\",\"\",INDEX('Coverage Indicator_Import-Expor'!N$7:N$223,MATCH($B35,'Coverage Indicator_Import-Expor'!$C$7:$C$223,0))),\"\")","v":""},{"$f":"IFERROR(IF(INDEX('Coverage Indicator_Import-Expor'!O$7:O$223,MATCH($B35,'Coverage Indicator_Import-Expor'!$C$7:$C$223,0))=\"\",\"\",INDEX('Coverage Indicator_Import-Expor'!O$7:O$223,MATCH($B35,'Coverage Indicator_Import-Expor'!$C$7:$C$223,0))),\"\")","v":""},{"$f":"IFERROR(IF(INDEX('Coverage Indicator_Import-Expor'!P$7:P$223,MATCH($B35,'Coverage Indicator_Import-Expor'!$C$7:$C$223,0))=\"\",\"\",INDEX('Coverage Indicator_Import-Expor'!P$7:P$223,MATCH($B35,'Coverage Indicator_Import-Expor'!$C$7:$C$223,0))),\"\")","v":""},{"$f":"IFERROR(IF(INDEX('Coverage Indicator_Import-Expor'!Q$7:Q$223,MATCH($B35,'Coverage Indicator_Import-Expor'!$C$7:$C$223,0))=\"\",\"\",INDEX('Coverage Indicator_Import-Expor'!Q$7:Q$223,MATCH($B35,'Coverage Indicator_Import-Expor'!$C$7:$C$223,0))),\"\")","v":""},{"$f":"IFERROR(IF(INDEX('Coverage Indicator_Import-Expor'!R$7:R$223,MATCH($B35,'Coverage Indicator_Import-Expor'!$C$7:$C$223,0))=\"\",\"\",INDEX('Coverage Indicator_Import-Expor'!R$7:R$223,MATCH($B35,'Coverage Indicator_Import-Expor'!$C$7:$C$223,0))),\"\")","v":""},{"$f":"IFERROR(IF(INDEX('Coverage Indicator_Import-Expor'!S$7:S$223,MATCH($B35,'Coverage Indicator_Import-Expor'!$C$7:$C$223,0))=\"\",\"\",INDEX('Coverage Indicator_Import-Expor'!S$7:S$223,MATCH($B35,'Coverage Indicator_Import-Expor'!$C$7:$C$223,0))),\"\")","v":""},{"$f":"IFERROR(IF(INDEX('Coverage Indicator_Import-Expor'!T$7:T$223,MATCH($B35,'Coverage Indicator_Import-Expor'!$C$7:$C$223,0))=\"\",\"\",INDEX('Coverage Indicator_Import-Expor'!T$7:T$223,MATCH($B35,'Coverage Indicator_Import-Expor'!$C$7:$C$223,0))),\"\")","v":""},{"$f":"IFERROR(IF(INDEX('Coverage Indicator_Import-Expor'!U$7:U$223,MATCH($B35,'Coverage Indicator_Import-Expor'!$C$7:$C$223,0))=\"\",\"\",INDEX('Coverage Indicator_Import-Expor'!U$7:U$223,MATCH($B35,'Coverage Indicator_Import-Expor'!$C$7:$C$223,0))),\"\")","v":""},null,null,"",null," ",null,"No Results Reported",null,null,"",null," ",null,null,"No Results Reported",null,null,""," ",null,"No Results Reported"]
[26,"Coverage26",{"$f":"IFERROR(INDEX('Coverage Indicator_Import-Expor'!$D$7:$D$223,MATCH(B36,'Coverage Indicator_Import-Expor'!$C$7:$C$223,0)),\"\")","v":""},{"$f":"IFERROR(INDEX('Coverage Indicator_Import-Expor'!$E$7:$E$223,MATCH(B36,'Coverage Indicator_Import-Expor'!$C$7:$C$223,0)),\"\")","v":""},{"$f":"IFERROR(IF(INDEX('Coverage Indicator_Import-Expor'!K$7:K$223,MATCH($B36,'Coverage Indicator_Import-Expor'!$C$7:$C$223,0))=\"\",\"\",INDEX('Coverage Indicator_Import-Expor'!K$7:K$223,MATCH($B36,'Coverage Indicator_Import-Expor'!$C$7:$C$223,0))),\"\")","v":""},{"$f":"IFERROR(IF(INDEX('Coverage Indicator_Import-Expor'!L$7:L$223,MATCH($B36,'Coverage Indicator_Import-Expor'!$C$7:$C$223,0))=\"\",\"\",INDEX('Coverage Indicator_Import-Expor'!L$7:L$223,MATCH($B36,'Coverage Indicator_Import-Expor'!$C$7:$C$223,0))),\"\")","v":""},{"$f":"IFERROR(IF(INDEX('Coverage Indicator_Import-Expor'!AR$7:AR$223,MATCH($B36,'Coverage Indicator_Import-Expor'!$C$7:$C$223,0))=\"\",\"\",INDEX('Coverage Indicator_Import-Expor'!AR$7:AR$223,MATCH($B36,'Coverage Indicator_Import-Expor'!$C$7:$C$223,0))),\"\")","v":""},{"$f":"IFERROR(IF(INDEX('Coverage Indicator_Import-Expor'!AS$7:AS$223,MATCH($B36,'Coverage Indicator_Import-Expor'!$C$7:$C$223,0))=\"\",\"\",INDEX('Coverage Indicator_Import-Expor'!AS$7:AS$223,MATCH($B36,'Coverage Indicator_Import-Expor'!$C$7:$C$223,0))),\"\")","v":""},{"$f":"IFERROR(IF(INDEX('Coverage Indicator_Import-Expor'!N$7:N$223,MATCH($B36,'Coverage Indicator_Import-Expor'!$C$7:$C$223,0))=\"\",\"\",INDEX('Coverage Indicator_Import-Expor'!N$7:N$223,MATCH($B36,'Coverage Indicator_Import-Expor'!$C$7:$C$223,0))),\"\")","v":""},{"$f":"IFERROR(IF(INDEX('Coverage Indicator_Import-Expor'!O$7:O$223,MATCH($B36,'Coverage Indicator_Import-Expor'!$C$7:$C$223,0))=\"\",\"\",INDEX('Coverage Indicator_Import-Expor'!O$7:O$223,MATCH($B36,'Coverage Indicator_Import-Expor'!$C$7:$C$223,0))),\"\")","v":""},{"$f":"IFERROR(IF(INDEX('Coverage Indicator_Import-Expor'!P$7:P$223,MATCH($B36,'Coverage Indicator_Import-Expor'!$C$7:$C$223,0))=\"\",\"\",INDEX('Coverage Indicator_Import-Expor'!P$7:P$223,MATCH($B36,'Coverage Indicator_Import-Expor'!$C$7:$C$223,0))),\"\")","v":""},{"$f":"IFERROR(IF(INDEX('Coverage Indicator_Import-Expor'!Q$7:Q$223,MATCH($B36,'Coverage Indicator_Import-Expor'!$C$7:$C$223,0))=\"\",\"\",INDEX('Coverage Indicator_Import-Expor'!Q$7:Q$223,MATCH($B36,'Coverage Indicator_Import-Expor'!$C$7:$C$223,0))),\"\")","v":""},{"$f":"IFERROR(IF(INDEX('Coverage Indicator_Import-Expor'!R$7:R$223,MATCH($B36,'Coverage Indicator_Import-Expor'!$C$7:$C$223,0))=\"\",\"\",INDEX('Coverage Indicator_Import-Expor'!R$7:R$223,MATCH($B36,'Coverage Indicator_Import-Expor'!$C$7:$C$223,0))),\"\")","v":""},{"$f":"IFERROR(IF(INDEX('Coverage Indicator_Import-Expor'!S$7:S$223,MATCH($B36,'Coverage Indicator_Import-Expor'!$C$7:$C$223,0))=\"\",\"\",INDEX('Coverage Indicator_Import-Expor'!S$7:S$223,MATCH($B36,'Coverage Indicator_Import-Expor'!$C$7:$C$223,0))),\"\")","v":""},{"$f":"IFERROR(IF(INDEX('Coverage Indicator_Import-Expor'!T$7:T$223,MATCH($B36,'Coverage Indicator_Import-Expor'!$C$7:$C$223,0))=\"\",\"\",INDEX('Coverage Indicator_Import-Expor'!T$7:T$223,MATCH($B36,'Coverage Indicator_Import-Expor'!$C$7:$C$223,0))),\"\")","v":""},{"$f":"IFERROR(IF(INDEX('Coverage Indicator_Import-Expor'!U$7:U$223,MATCH($B36,'Coverage Indicator_Import-Expor'!$C$7:$C$223,0))=\"\",\"\",INDEX('Coverage Indicator_Import-Expor'!U$7:U$223,MATCH($B36,'Coverage Indicator_Import-Expor'!$C$7:$C$223,0))),\"\")","v":""},null,null,"",null," ",null,"No Results Reported",null,null,"",null," ",null,null,"No Results Reported",null,null,""," ",null,"No Results Reported"]
[27,"Coverage27",{"$f":"IFERROR(INDEX('Coverage Indicator_Import-Expor'!$D$7:$D$223,MATCH(B37,'Coverage Indicator_Import-Expor'!$C$7:$C$223,0)),\"\")","v":""},{"$f":"IFERROR(INDEX('Coverage Indicator_Import-Expor'!$E$7:$E$223,MATCH(B37,'Coverage Indicator_Import-Expor'!$C$7:$C$223,0)),\"\")","v":""},{"$f":"IFERROR(IF(INDEX('Coverage Indicator_Import-Expor'!K$7:K$223,MATCH($B37,'Coverage Indicator_Import-Expor'!$C$7:$C$223,0))=\"\",\"\",INDEX('Coverage Indicator_Import-Expor'!K$7:K$223,MATCH($B37,'Coverage Indicator_Import-Expor'!$C$7:$C$223,0))),\"\")","v":""},{"$f":"IFERROR(IF(INDEX('Coverage Indicator_Import-Expor'!L$7:L$223,MATCH($B37,'Coverage Indicator_Import-Expor'!$C$7:$C$223,0))=\"\",\"\",INDEX('Coverage Indicator_Import-Expor'!L$7:L$223,MATCH($B37,'Coverage Indicator_Import-Expor'!$C$7:$C$223,0))),\"\")","v":""},{"$f":"IFERROR(IF(INDEX('Coverage Indicator_Import-Expor'!AR$7:AR$223,MATCH($B37,'Coverage Indicator_Import-Expor'!$C$7:$C$223,0))=\"\",\"\",INDEX('Coverage Indicator_Import-Expor'!AR$7:AR$223,MATCH($B37,'Coverage Indicator_Import-Expor'!$C$7:$C$223,0))),\"\")","v":""},{"$f":"IFERROR(IF(INDEX('Coverage Indicator_Import-Expor'!AS$7:AS$223,MATCH($B37,'Coverage Indicator_Import-Expor'!$C$7:$C$223,0))=\"\",\"\",INDEX('Coverage Indicator_Import-Expor'!AS$7:AS$223,MATCH($B37,'Coverage Indicator_Import-Expor'!$C$7:$C$223,0))),\"\")","v":""},{"$f":"IFERROR(IF(INDEX('Coverage Indicator_Import-Expor'!N$7:N$223,MATCH($B37,'Coverage Indicator_Import-Expor'!$C$7:$C$223,0))=\"\",\"\",INDEX('Coverage Indicator_Import-Expor'!N$7:N$223,MATCH($B37,'Coverage Indicator_Import-Expor'!$C$7:$C$223,0))),\"\")","v":""},{"$f":"IFERROR(IF(INDEX('Coverage Indicator_Import-Expor'!O$7:O$223,MATCH($B37,'Coverage Indicator_Import-Expor'!$C$7:$C$223,0))=\"\",\"\",INDEX('Coverage Indicator_Import-Expor'!O$7:O$223,MATCH($B37,'Coverage Indicator_Import-Expor'!$C$7:$C$223,0))),\"\")","v":""},{"$f":"IFERROR(IF(INDEX('Coverage Indicator_Import-Expor'!P$7:P$223,MATCH($B37,'Coverage Indicator_Import-Expor'!$C$7:$C$223,0))=\"\",\"\",INDEX('Coverage Indicator_Import-Expor'!P$7:P$223,MATCH($B37,'Coverage Indicator_Import-Expor'!$C$7:$C$223,0))),\"\")","v":""},{"$f":"IFERROR(IF(INDEX('Coverage Indicator_Import-Expor'!Q$7:Q$223,MATCH($B37,'Coverage Indicator_Import-Expor'!$C$7:$C$223,0))=\"\",\"\",INDEX('Coverage Indicator_Import-Expor'!Q$7:Q$223,MATCH($B37,'Coverage Indicator_Import-Expor'!$C$7:$C$223,0))),\"\")","v":""},{"$f":"IFERROR(IF(INDEX('Coverage Indicator_Import-Expor'!R$7:R$223,MATCH($B37,'Coverage Indicator_Import-Expor'!$C$7:$C$223,0))=\"\",\"\",INDEX('Coverage Indicator_Import-Expor'!R$7:R$223,MATCH($B37,'Coverage Indicator_Import-Expor'!$C$7:$C$223,0))),\"\")","v":""},{"$f":"IFERROR(IF(INDEX('Coverage Indicator_Import-Expor'!S$7:S$223,MATCH($B37,'Coverage Indicator_Import-Expor'!$C$7:$C$223,0))=\"\",\"\",INDEX('Coverage Indicator_Import-Expor'!S$7:S$223,MATCH($B37,'Coverage Indicator_Import-Expor'!$C$7:$C$223,0))),\"\")","v":""},{"$f":"IFERROR(IF(INDEX('Coverage Indicator_Import-Expor'!T$7:T$223,MATCH($B37,'Coverage Indicator_Import-Expor'!$C$7:$C$223,0))=\"\",\"\",INDEX('Coverage Indicator_Import-Expor'!T$7:T$223,MATCH($B37,'Coverage Indicator_Import-Expor'!$C$7:$C$223,0))),\"\")","v":""},{"$f":"IFERROR(IF(INDEX('Coverage Indicator_Import-Expor'!U$7:U$223,MATCH($B37,'Coverage Indicator_Import-Expor'!$C$7:$C$223,0))=\"\",\"\",INDEX('Coverage Indicator_Import-Expor'!U$7:U$223,MATCH($B37,'Coverage Indicator_Import-Expor'!$C$7:$C$223,0))),\"\")","v":""},null,null,"",null," ",null,"No Results Reported",null,null,"",null," ",null,null,"No Results Reported",null,null,""," ",null,"No Results Reported"]
[28,"Coverage28",{"$f":"IFERROR(INDEX('Coverage Indicator_Import-Expor'!$D$7:$D$223,MATCH(B38,'Coverage Indicator_Import-Expor'!$C$7:$C$223,0)),\"\")","v":""},{"$f":"IFERROR(INDEX('Coverage Indicator_Import-Expor'!$E$7:$E$223,MATCH(B38,'Coverage Indicator_Import-Expor'!$C$7:$C$223,0)),\"\")","v":""},{"$f":"IFERROR(IF(INDEX('Coverage Indicator_Import-Expor'!K$7:K$223,MATCH($B38,'Coverage Indicator_Import-Expor'!$C$7:$C$223,0))=\"\",\"\",INDEX('Coverage Indicator_Import-Expor'!K$7:K$223,MATCH($B38,'Coverage Indicator_Import-Expor'!$C$7:$C$223,0))),\"\")","v":""},{"$f":"IFERROR(IF(INDEX('Coverage Indicator_Import-Expor'!L$7:L$223,MATCH($B38,'Coverage Indicator_Import-Expor'!$C$7:$C$223,0))=\"\",\"\",INDEX('Coverage Indicator_Import-Expor'!L$7:L$223,MATCH($B38,'Coverage Indicator_Import-Expor'!$C$7:$C$223,0))),\"\")","v":""},{"$f":"IFERROR(IF(INDEX('Coverage Indicator_Import-Expor'!AR$7:AR$223,MATCH($B38,'Coverage Indicator_Import-Expor'!$C$7:$C$223,0))=\"\",\"\",INDEX('Coverage Indicator_Import-Expor'!AR$7:AR$223,MATCH($B38,'Coverage Indicator_Import-Expor'!$C$7:$C$223,0))),\"\")","v":""},{"$f":"IFERROR(IF(INDEX('Coverage Indicator_Import-Expor'!AS$7:AS$223,MATCH($B38,'Coverage Indicator_Import-Expor'!$C$7:$C$223,0))=\"\",\"\",INDEX('Coverage Indicator_Import-Expor'!AS$7:AS$223,MATCH($B38,'Coverage Indicator_Import-Expor'!$C$7:$C$223,0))),\"\")","v":""},{"$f":"IFERROR(IF(INDEX('Coverage Indicator_Import-Expor'!N$7:N$223,MATCH($B38,'Coverage Indicator_Import-Expor'!$C$7:$C$223,0))=\"\",\"\",INDEX('Coverage Indicator_Import-Expor'!N$7:N$223,MATCH($B38,'Coverage Indicator_Import-Expor'!$C$7:$C$223,0))),\"\")","v":""},{"$f":"IFERROR(IF(INDEX('Coverage Indicator_Import-Expor'!O$7:O$223,MATCH($B38,'Coverage Indicator_Import-Expor'!$C$7:$C$223,0))=\"\",\"\",INDEX('Coverage Indicator_Import-Expor'!O$7:O$223,MATCH($B38,'Coverage Indicator_Import-Expor'!$C$7:$C$223,0))),\"\")","v":""},{"$f":"IFERROR(IF(INDEX('Coverage Indicator_Import-Expor'!P$7:P$223,MATCH($B38,'Coverage Indicator_Import-Expor'!$C$7:$C$223,0))=\"\",\"\",INDEX('Coverage Indicator_Import-Expor'!P$7:P$223,MATCH($B38,'Coverage Indicator_Import-Expor'!$C$7:$C$223,0))),\"\")","v":""},{"$f":"IFERROR(IF(INDEX('Coverage Indicator_Import-Expor'!Q$7:Q$223,MATCH($B38,'Coverage Indicator_Import-Expor'!$C$7:$C$223,0))=\"\",\"\",INDEX('Coverage Indicator_Import-Expor'!Q$7:Q$223,MATCH($B38,'Coverage Indicator_Import-Expor'!$C$7:$C$223,0))),\"\")","v":""},{"$f":"IFERROR(IF(INDEX('Coverage Indicator_Import-Expor'!R$7:R$223,MATCH($B38,'Coverage Indicator_Import-Expor'!$C$7:$C$223,0))=\"\",\"\",INDEX('Coverage Indicator_Import-Expor'!R$7:R$223,MATCH($B38,'Coverage Indicator_Import-Expor'!$C$7:$C$223,0))),\"\")","v":""},{"$f":"IFERROR(IF(INDEX('Coverage Indicator_Import-Expor'!S$7:S$223,MATCH($B38,'Coverage Indicator_Import-Expor'!$C$7:$C$223,0))=\"\",\"\",INDEX('Coverage Indicator_Import-Expor'!S$7:S$223,MATCH($B38,'Coverage Indicator_Import-Expor'!$C$7:$C$223,0))),\"\")","v":""},{"$f":"IFERROR(IF(INDEX('Coverage Indicator_Import-Expor'!T$7:T$223,MATCH($B38,'Coverage Indicator_Import-Expor'!$C$7:$C$223,0))=\"\",\"\",INDEX('Coverage Indicator_Import-Expor'!T$7:T$223,MATCH($B38,'Coverage Indicator_Import-Expor'!$C$7:$C$223,0))),\"\")","v":""},{"$f":"IFERROR(IF(INDEX('Coverage Indicator_Import-Expor'!U$7:U$223,MATCH($B38,'Coverage Indicator_Import-Expor'!$C$7:$C$223,0))=\"\",\"\",INDEX('Coverage Indicator_Import-Expor'!U$7:U$223,MATCH($B38,'Coverage Indicator_Import-Expor'!$C$7:$C$223,0))),\"\")","v":""},null,null,"",null," ",null,"No Results Reported",null,null,"",null," ",null,null,"No Results Reported",null,null,""," ",null,"No Results Reported"]
[29,"Coverage29",{"$f":"IFERROR(INDEX('Coverage Indicator_Import-Expor'!$D$7:$D$223,MATCH(B39,'Coverage Indicator_Import-Expor'!$C$7:$C$223,0)),\"\")","v":""},{"$f":"IFERROR(INDEX('Coverage Indicator_Import-Expor'!$E$7:$E$223,MATCH(B39,'Coverage Indicator_Import-Expor'!$C$7:$C$223,0)),\"\")","v":""},{"$f":"IFERROR(IF(INDEX('Coverage Indicator_Import-Expor'!K$7:K$223,MATCH($B39,'Coverage Indicator_Import-Expor'!$C$7:$C$223,0))=\"\",\"\",INDEX('Coverage Indicator_Import-Expor'!K$7:K$223,MATCH($B39,'Coverage Indicator_Import-Expor'!$C$7:$C$223,0))),\"\")","v":""},{"$f":"IFERROR(IF(INDEX('Coverage Indicator_Import-Expor'!L$7:L$223,MATCH($B39,'Coverage Indicator_Import-Expor'!$C$7:$C$223,0))=\"\",\"\",INDEX('Coverage Indicator_Import-Expor'!L$7:L$223,MATCH($B39,'Coverage Indicator_Import-Expor'!$C$7:$C$223,0))),\"\")","v":""},{"$f":"IFERROR(IF(INDEX('Coverage Indicator_Import-Expor'!AR$7:AR$223,MATCH($B39,'Coverage Indicator_Import-Expor'!$C$7:$C$223,0))=\"\",\"\",INDEX('Coverage Indicator_Import-Expor'!AR$7:AR$223,MATCH($B39,'Coverage Indicator_Import-Expor'!$C$7:$C$223,0))),\"\")","v":""},{"$f":"IFERROR(IF(INDEX('Coverage Indicator_Import-Expor'!AS$7:AS$223,MATCH($B39,'Coverage Indicator_Import-Expor'!$C$7:$C$223,0))=\"\",\"\",INDEX('Coverage Indicator_Import-Expor'!AS$7:AS$223,MATCH($B39,'Coverage Indicator_Import-Expor'!$C$7:$C$223,0))),\"\")","v":""},{"$f":"IFERROR(IF(INDEX('Coverage Indicator_Import-Expor'!N$7:N$223,MATCH($B39,'Coverage Indicator_Import-Expor'!$C$7:$C$223,0))=\"\",\"\",INDEX('Coverage Indicator_Import-Expor'!N$7:N$223,MATCH($B39,'Coverage Indicator_Import-Expor'!$C$7:$C$223,0))),\"\")","v":""},{"$f":"IFERROR(IF(INDEX('Coverage Indicator_Import-Expor'!O$7:O$223,MATCH($B39,'Coverage Indicator_Import-Expor'!$C$7:$C$223,0))=\"\",\"\",INDEX('Coverage Indicator_Import-Expor'!O$7:O$223,MATCH($B39,'Coverage Indicator_Import-Expor'!$C$7:$C$223,0))),\"\")","v":""},{"$f":"IFERROR(IF(INDEX('Coverage Indicator_Import-Expor'!P$7:P$223,MATCH($B39,'Coverage Indicator_Import-Expor'!$C$7:$C$223,0))=\"\",\"\",INDEX('Coverage Indicator_Import-Expor'!P$7:P$223,MATCH($B39,'Coverage Indicator_Import-Expor'!$C$7:$C$223,0))),\"\")","v":""},{"$f":"IFERROR(IF(INDEX('Coverage Indicator_Import-Expor'!Q$7:Q$223,MATCH($B39,'Coverage Indicator_Import-Expor'!$C$7:$C$223,0))=\"\",\"\",INDEX('Coverage Indicator_Import-Expor'!Q$7:Q$223,MATCH($B39,'Coverage Indicator_Import-Expor'!$C$7:$C$223,0))),\"\")","v":""},{"$f":"IFERROR(IF(INDEX('Coverage Indicator_Import-Expor'!R$7:R$223,MATCH($B39,'Coverage Indicator_Import-Expor'!$C$7:$C$223,0))=\"\",\"\",INDEX('Coverage Indicator_Import-Expor'!R$7:R$223,MATCH($B39,'Coverage Indicator_Import-Expor'!$C$7:$C$223,0))),\"\")","v":""},{"$f":"IFERROR(IF(INDEX('Coverage Indicator_Import-Expor'!S$7:S$223,MATCH($B39,'Coverage Indicator_Import-Expor'!$C$7:$C$223,0))=\"\",\"\",INDEX('Coverage Indicator_Import-Expor'!S$7:S$223,MATCH($B39,'Coverage Indicator_Import-Expor'!$C$7:$C$223,0))),\"\")","v":""},{"$f":"IFERROR(IF(INDEX('Coverage Indicator_Import-Expor'!T$7:T$223,MATCH($B39,'Coverage Indicator_Import-Expor'!$C$7:$C$223,0))=\"\",\"\",INDEX('Coverage Indicator_Import-Expor'!T$7:T$223,MATCH($B39,'Coverage Indicator_Import-Expor'!$C$7:$C$223,0))),\"\")","v":""},{"$f":"IFERROR(IF(INDEX('Coverage Indicator_Import-Expor'!U$7:U$223,MATCH($B39,'Coverage Indicator_Import-Expor'!$C$7:$C$223,0))=\"\",\"\",INDEX('Coverage Indicator_Import-Expor'!U$7:U$223,MATCH($B39,'Coverage Indicator_Import-Expor'!$C$7:$C$223,0))),\"\")","v":""},null,null,"",null," ",null,"No Results Reported",null,null,"",null," ",null,null,"No Results Reported",null,null,""," ",null,"No Results Reported"]
[30,"Coverage30",{"$f":"IFERROR(INDEX('Coverage Indicator_Import-Expor'!$D$7:$D$223,MATCH(B40,'Coverage Indicator_Import-Expor'!$C$7:$C$223,0)),\"\")","v":""},{"$f":"IFERROR(INDEX('Coverage Indicator_Import-Expor'!$E$7:$E$223,MATCH(B40,'Coverage Indicator_Import-Expor'!$C$7:$C$223,0)),\"\")","v":""},{"$f":"IFERROR(IF(INDEX('Coverage Indicator_Import-Expor'!K$7:K$223,MATCH($B40,'Coverage Indicator_Import-Expor'!$C$7:$C$223,0))=\"\",\"\",INDEX('Coverage Indicator_Import-Expor'!K$7:K$223,MATCH($B40,'Coverage Indicator_Import-Expor'!$C$7:$C$223,0))),\"\")","v":""},{"$f":"IFERROR(IF(INDEX('Coverage Indicator_Import-Expor'!L$7:L$223,MATCH($B40,'Coverage Indicator_Import-Expor'!$C$7:$C$223,0))=\"\",\"\",INDEX('Coverage Indicator_Import-Expor'!L$7:L$223,MATCH($B40,'Coverage Indicator_Import-Expor'!$C$7:$C$223,0))),\"\")","v":""},{"$f":"IFERROR(IF(INDEX('Coverage Indicator_Import-Expor'!AR$7:AR$223,MATCH($B40,'Coverage Indicator_Import-Expor'!$C$7:$C$223,0))=\"\",\"\",INDEX('Coverage Indicator_Import-Expor'!AR$7:AR$223,MATCH($B40,'Coverage Indicator_Import-Expor'!$C$7:$C$223,0))),\"\")","v":""},{"$f":"IFERROR(IF(INDEX('Coverage Indicator_Import-Expor'!AS$7:AS$223,MATCH($B40,'Coverage Indicator_Import-Expor'!$C$7:$C$223,0))=\"\",\"\",INDEX('Coverage Indicator_Import-Expor'!AS$7:AS$223,MATCH($B40,'Coverage Indicator_Import-Expor'!$C$7:$C$223,0))),\"\")","v":""},{"$f":"IFERROR(IF(INDEX('Coverage Indicator_Import-Expor'!N$7:N$223,MATCH($B40,'Coverage Indicator_Import-Expor'!$C$7:$C$223,0))=\"\",\"\",INDEX('Coverage Indicator_Import-Expor'!N$7:N$223,MATCH($B40,'Coverage Indicator_Import-Expor'!$C$7:$C$223,0))),\"\")","v":""},{"$f":"IFERROR(IF(INDEX('Coverage Indicator_Import-Expor'!O$7:O$223,MATCH($B40,'Coverage Indicator_Import-Expor'!$C$7:$C$223,0))=\"\",\"\",INDEX('Coverage Indicator_Import-Expor'!O$7:O$223,MATCH($B40,'Coverage Indicator_Import-Expor'!$C$7:$C$223,0))),\"\")","v":""},{"$f":"IFERROR(IF(INDEX('Coverage Indicator_Import-Expor'!P$7:P$223,MATCH($B40,'Coverage Indicator_Import-Expor'!$C$7:$C$223,0))=\"\",\"\",INDEX('Coverage Indicator_Import-Expor'!P$7:P$223,MATCH($B40,'Coverage Indicator_Import-Expor'!$C$7:$C$223,0))),\"\")","v":""},{"$f":"IFERROR(IF(INDEX('Coverage Indicator_Import-Expor'!Q$7:Q$223,MATCH($B40,'Coverage Indicator_Import-Expor'!$C$7:$C$223,0))=\"\",\"\",INDEX('Coverage Indicator_Import-Expor'!Q$7:Q$223,MATCH($B40,'Coverage Indicator_Import-Expor'!$C$7:$C$223,0))),\"\")","v":""},{"$f":"IFERROR(IF(INDEX('Coverage Indicator_Import-Expor'!R$7:R$223,MATCH($B40,'Coverage Indicator_Import-Expor'!$C$7:$C$223,0))=\"\",\"\",INDEX('Coverage Indicator_Import-Expor'!R$7:R$223,MATCH($B40,'Coverage Indicator_Import-Expor'!$C$7:$C$223,0))),\"\")","v":""},{"$f":"IFERROR(IF(INDEX('Coverage Indicator_Import-Expor'!S$7:S$223,MATCH($B40,'Coverage Indicator_Import-Expor'!$C$7:$C$223,0))=\"\",\"\",INDEX('Coverage Indicator_Import-Expor'!S$7:S$223,MATCH($B40,'Coverage Indicator_Import-Expor'!$C$7:$C$223,0))),\"\")","v":""},{"$f":"IFERROR(IF(INDEX('Coverage Indicator_Import-Expor'!T$7:T$223,MATCH($B40,'Coverage Indicator_Import-Expor'!$C$7:$C$223,0))=\"\",\"\",INDEX('Coverage Indicator_Import-Expor'!T$7:T$223,MATCH($B40,'Coverage Indicator_Import-Expor'!$C$7:$C$223,0))),\"\")","v":""},{"$f":"IFERROR(IF(INDEX('Coverage Indicator_Import-Expor'!U$7:U$223,MATCH($B40,'Coverage Indicator_Import-Expor'!$C$7:$C$223,0))=\"\",\"\",INDEX('Coverage Indicator_Import-Expor'!U$7:U$223,MATCH($B40,'Coverage Indicator_Import-Expor'!$C$7:$C$223,0))),\"\")","v":""},null,null,"",null," ",null,"No Results Reported",null,null,"",null," ",null,null,"No Results Reported",null,null,""," ",null,"No Results Reported"]
[31,"Coverage31",{"$f":"IFERROR(INDEX('Coverage Indicator_Import-Expor'!$D$7:$D$223,MATCH(B41,'Coverage Indicator_Import-Expor'!$C$7:$C$223,0)),\"\")","v":""},{"$f":"IFERROR(INDEX('Coverage Indicator_Import-Expor'!$E$7:$E$223,MATCH(B41,'Coverage Indicator_Import-Expor'!$C$7:$C$223,0)),\"\")","v":""},{"$f":"IFERROR(IF(INDEX('Coverage Indicator_Import-Expor'!K$7:K$223,MATCH($B41,'Coverage Indicator_Import-Expor'!$C$7:$C$223,0))=\"\",\"\",INDEX('Coverage Indicator_Import-Expor'!K$7:K$223,MATCH($B41,'Coverage Indicator_Import-Expor'!$C$7:$C$223,0))),\"\")","v":""},{"$f":"IFERROR(IF(INDEX('Coverage Indicator_Import-Expor'!L$7:L$223,MATCH($B41,'Coverage Indicator_Import-Expor'!$C$7:$C$223,0))=\"\",\"\",INDEX('Coverage Indicator_Import-Expor'!L$7:L$223,MATCH($B41,'Coverage Indicator_Import-Expor'!$C$7:$C$223,0))),\"\")","v":""},{"$f":"IFERROR(IF(INDEX('Coverage Indicator_Import-Expor'!AR$7:AR$223,MATCH($B41,'Coverage Indicator_Import-Expor'!$C$7:$C$223,0))=\"\",\"\",INDEX('Coverage Indicator_Import-Expor'!AR$7:AR$223,MATCH($B41,'Coverage Indicator_Import-Expor'!$C$7:$C$223,0))),\"\")","v":""},{"$f":"IFERROR(IF(INDEX('Coverage Indicator_Import-Expor'!AS$7:AS$223,MATCH($B41,'Coverage Indicator_Import-Expor'!$C$7:$C$223,0))=\"\",\"\",INDEX('Coverage Indicator_Import-Expor'!AS$7:AS$223,MATCH($B41,'Coverage Indicator_Import-Expor'!$C$7:$C$223,0))),\"\")","v":""},{"$f":"IFERROR(IF(INDEX('Coverage Indicator_Import-Expor'!N$7:N$223,MATCH($B41,'Coverage Indicator_Import-Expor'!$C$7:$C$223,0))=\"\",\"\",INDEX('Coverage Indicator_Import-Expor'!N$7:N$223,MATCH($B41,'Coverage Indicator_Import-Expor'!$C$7:$C$223,0))),\"\")","v":""},{"$f":"IFERROR(IF(INDEX('Coverage Indicator_Import-Expor'!O$7:O$223,MATCH($B41,'Coverage Indicator_Import-Expor'!$C$7:$C$223,0))=\"\",\"\",INDEX('Coverage Indicator_Import-Expor'!O$7:O$223,MATCH($B41,'Coverage Indicator_Import-Expor'!$C$7:$C$223,0))),\"\")","v":""},{"$f":"IFERROR(IF(INDEX('Coverage Indicator_Import-Expor'!P$7:P$223,MATCH($B41,'Coverage Indicator_Import-Expor'!$C$7:$C$223,0))=\"\",\"\",INDEX('Coverage Indicator_Import-Expor'!P$7:P$223,MATCH($B41,'Coverage Indicator_Import-Expor'!$C$7:$C$223,0))),\"\")","v":""},{"$f":"IFERROR(IF(INDEX('Coverage Indicator_Import-Expor'!Q$7:Q$223,MATCH($B41,'Coverage Indicator_Import-Expor'!$C$7:$C$223,0))=\"\",\"\",INDEX('Coverage Indicator_Import-Expor'!Q$7:Q$223,MATCH($B41,'Coverage Indicator_Import-Expor'!$C$7:$C$223,0))),\"\")","v":""},{"$f":"IFERROR(IF(INDEX('Coverage Indicator_Import-Expor'!R$7:R$223,MATCH($B41,'Coverage Indicator_Import-Expor'!$C$7:$C$223,0))=\"\",\"\",INDEX('Coverage Indicator_Import-Expor'!R$7:R$223,MATCH($B41,'Coverage Indicator_Import-Expor'!$C$7:$C$223,0))),\"\")","v":""},{"$f":"IFERROR(IF(INDEX('Coverage Indicator_Import-Expor'!S$7:S$223,MATCH($B41,'Coverage Indicator_Import-Expor'!$C$7:$C$223,0))=\"\",\"\",INDEX('Coverage Indicator_Import-Expor'!S$7:S$223,MATCH($B41,'Coverage Indicator_Import-Expor'!$C$7:$C$223,0))),\"\")","v":""},{"$f":"IFERROR(IF(INDEX('Coverage Indicator_Import-Expor'!T$7:T$223,MATCH($B41,'Coverage Indicator_Import-Expor'!$C$7:$C$223,0))=\"\",\"\",INDEX('Coverage Indicator_Import-Expor'!T$7:T$223,MATCH($B41,'Coverage Indicator_Import-Expor'!$C$7:$C$223,0))),\"\")","v":""},{"$f":"IFERROR(IF(INDEX('Coverage Indicator_Import-Expor'!U$7:U$223,MATCH($B41,'Coverage Indicator_Import-Expor'!$C$7:$C$223,0))=\"\",\"\",INDEX('Coverage Indicator_Import-Expor'!U$7:U$223,MATCH($B41,'Coverage Indicator_Import-Expor'!$C$7:$C$223,0))),\"\")","v":""},null,null,"",null," ",null,"No Results Reported",null,null,"",null," ",null,null,"No Results Reported",null,null,""," ",null,"No Results Reported"]
[32,"Coverage32",{"$f":"IFERROR(INDEX('Coverage Indicator_Import-Expor'!$D$7:$D$223,MATCH(B42,'Coverage Indicator_Import-Expor'!$C$7:$C$223,0)),\"\")","v":""},{"$f":"IFERROR(INDEX('Coverage Indicator_Import-Expor'!$E$7:$E$223,MATCH(B42,'Coverage Indicator_Import-Expor'!$C$7:$C$223,0)),\"\")","v":""},{"$f":"IFERROR(IF(INDEX('Coverage Indicator_Import-Expor'!K$7:K$223,MATCH($B42,'Coverage Indicator_Import-Expor'!$C$7:$C$223,0))=\"\",\"\",INDEX('Coverage Indicator_Import-Expor'!K$7:K$223,MATCH($B42,'Coverage Indicator_Import-Expor'!$C$7:$C$223,0))),\"\")","v":""},{"$f":"IFERROR(IF(INDEX('Coverage Indicator_Import-Expor'!L$7:L$223,MATCH($B42,'Coverage Indicator_Import-Expor'!$C$7:$C$223,0))=\"\",\"\",INDEX('Coverage Indicator_Import-Expor'!L$7:L$223,MATCH($B42,'Coverage Indicator_Import-Expor'!$C$7:$C$223,0))),\"\")","v":""},{"$f":"IFERROR(IF(INDEX('Coverage Indicator_Import-Expor'!AR$7:AR$223,MATCH($B42,'Coverage Indicator_Import-Expor'!$C$7:$C$223,0))=\"\",\"\",INDEX('Coverage Indicator_Import-Expor'!AR$7:AR$223,MATCH($B42,'Coverage Indicator_Import-Expor'!$C$7:$C$223,0))),\"\")","v":""},{"$f":"IFERROR(IF(INDEX('Coverage Indicator_Import-Expor'!AS$7:AS$223,MATCH($B42,'Coverage Indicator_Import-Expor'!$C$7:$C$223,0))=\"\",\"\",INDEX('Coverage Indicator_Import-Expor'!AS$7:AS$223,MATCH($B42,'Coverage Indicator_Import-Expor'!$C$7:$C$223,0))),\"\")","v":""},{"$f":"IFERROR(IF(INDEX('Coverage Indicator_Import-Expor'!N$7:N$223,MATCH($B42,'Coverage Indicator_Import-Expor'!$C$7:$C$223,0))=\"\",\"\",INDEX('Coverage Indicator_Import-Expor'!N$7:N$223,MATCH($B42,'Coverage Indicator_Import-Expor'!$C$7:$C$223,0))),\"\")","v":""},{"$f":"IFERROR(IF(INDEX('Coverage Indicator_Import-Expor'!O$7:O$223,MATCH($B42,'Coverage Indicator_Import-Expor'!$C$7:$C$223,0))=\"\",\"\",INDEX('Coverage Indicator_Import-Expor'!O$7:O$223,MATCH($B42,'Coverage Indicator_Import-Expor'!$C$7:$C$223,0))),\"\")","v":""},{"$f":"IFERROR(IF(INDEX('Coverage Indicator_Import-Expor'!P$7:P$223,MATCH($B42,'Coverage Indicator_Import-Expor'!$C$7:$C$223,0))=\"\",\"\",INDEX('Coverage Indicator_Import-Expor'!P$7:P$223,MATCH($B42,'Coverage Indicator_Import-Expor'!$C$7:$C$223,0))),\"\")","v":""},{"$f":"IFERROR(IF(INDEX('Coverage Indicator_Import-Expor'!Q$7:Q$223,MATCH($B42,'Coverage Indicator_Import-Expor'!$C$7:$C$223,0))=\"\",\"\",INDEX('Coverage Indicator_Import-Expor'!Q$7:Q$223,MATCH($B42,'Coverage Indicator_Import-Expor'!$C$7:$C$223,0))),\"\")","v":""},{"$f":"IFERROR(IF(INDEX('Coverage Indicator_Import-Expor'!R$7:R$223,MATCH($B42,'Coverage Indicator_Import-Expor'!$C$7:$C$223,0))=\"\",\"\",INDEX('Coverage Indicator_Import-Expor'!R$7:R$223,MATCH($B42,'Coverage Indicator_Import-Expor'!$C$7:$C$223,0))),\"\")","v":""},{"$f":"IFERROR(IF(INDEX('Coverage Indicator_Import-Expor'!S$7:S$223,MATCH($B42,'Coverage Indicator_Import-Expor'!$C$7:$C$223,0))=\"\",\"\",INDEX('Coverage Indicator_Import-Expor'!S$7:S$223,MATCH($B42,'Coverage Indicator_Import-Expor'!$C$7:$C$223,0))),\"\")","v":""},{"$f":"IFERROR(IF(INDEX('Coverage Indicator_Import-Expor'!T$7:T$223,MATCH($B42,'Coverage Indicator_Import-Expor'!$C$7:$C$223,0))=\"\",\"\",INDEX('Coverage Indicator_Import-Expor'!T$7:T$223,MATCH($B42,'Coverage Indicator_Import-Expor'!$C$7:$C$223,0))),\"\")","v":""},{"$f":"IFERROR(IF(INDEX('Coverage Indicator_Import-Expor'!U$7:U$223,MATCH($B42,'Coverage Indicator_Import-Expor'!$C$7:$C$223,0))=\"\",\"\",INDEX('Coverage Indicator_Import-Expor'!U$7:U$223,MATCH($B42,'Coverage Indicator_Import-Expor'!$C$7:$C$223,0))),\"\")","v":""},null,null,"",null," ",null,"No Results Reported",null,null,"",null," ",null,null,"No Results Reported",null,null,""," ",null,"No Results Reported"]
[33,"Coverage33",{"$f":"IFERROR(INDEX('Coverage Indicator_Import-Expor'!$D$7:$D$223,MATCH(B43,'Coverage Indicator_Import-Expor'!$C$7:$C$223,0)),\"\")","v":""},{"$f":"IFERROR(INDEX('Coverage Indicator_Import-Expor'!$E$7:$E$223,MATCH(B43,'Coverage Indicator_Import-Expor'!$C$7:$C$223,0)),\"\")","v":""},{"$f":"IFERROR(IF(INDEX('Coverage Indicator_Import-Expor'!K$7:K$223,MATCH($B43,'Coverage Indicator_Import-Expor'!$C$7:$C$223,0))=\"\",\"\",INDEX('Coverage Indicator_Import-Expor'!K$7:K$223,MATCH($B43,'Coverage Indicator_Import-Expor'!$C$7:$C$223,0))),\"\")","v":""},{"$f":"IFERROR(IF(INDEX('Coverage Indicator_Import-Expor'!L$7:L$223,MATCH($B43,'Coverage Indicator_Import-Expor'!$C$7:$C$223,0))=\"\",\"\",INDEX('Coverage Indicator_Import-Expor'!L$7:L$223,MATCH($B43,'Coverage Indicator_Import-Expor'!$C$7:$C$223,0))),\"\")","v":""},{"$f":"IFERROR(IF(INDEX('Coverage Indicator_Import-Expor'!AR$7:AR$223,MATCH($B43,'Coverage Indicator_Import-Expor'!$C$7:$C$223,0))=\"\",\"\",INDEX('Coverage Indicator_Import-Expor'!AR$7:AR$223,MATCH($B43,'Coverage Indicator_Import-Expor'!$C$7:$C$223,0))),\"\")","v":""},{"$f":"IFERROR(IF(INDEX('Coverage Indicator_Import-Expor'!AS$7:AS$223,MATCH($B43,'Coverage Indicator_Import-Expor'!$C$7:$C$223,0))=\"\",\"\",INDEX('Coverage Indicator_Import-Expor'!AS$7:AS$223,MATCH($B43,'Coverage Indicator_Import-Expor'!$C$7:$C$223,0))),\"\")","v":""},{"$f":"IFERROR(IF(INDEX('Coverage Indicator_Import-Expor'!N$7:N$223,MATCH($B43,'Coverage Indicator_Import-Expor'!$C$7:$C$223,0))=\"\",\"\",INDEX('Coverage Indicator_Import-Expor'!N$7:N$223,MATCH($B43,'Coverage Indicator_Import-Expor'!$C$7:$C$223,0))),\"\")","v":""},{"$f":"IFERROR(IF(INDEX('Coverage Indicator_Import-Expor'!O$7:O$223,MATCH($B43,'Coverage Indicator_Import-Expor'!$C$7:$C$223,0))=\"\",\"\",INDEX('Coverage Indicator_Import-Expor'!O$7:O$223,MATCH($B43,'Coverage Indicator_Import-Expor'!$C$7:$C$223,0))),\"\")","v":""},{"$f":"IFERROR(IF(INDEX('Coverage Indicator_Import-Expor'!P$7:P$223,MATCH($B43,'Coverage Indicator_Import-Expor'!$C$7:$C$223,0))=\"\",\"\",INDEX('Coverage Indicator_Import-Expor'!P$7:P$223,MATCH($B43,'Coverage Indicator_Import-Expor'!$C$7:$C$223,0))),\"\")","v":""},{"$f":"IFERROR(IF(INDEX('Coverage Indicator_Import-Expor'!Q$7:Q$223,MATCH($B43,'Coverage Indicator_Import-Expor'!$C$7:$C$223,0))=\"\",\"\",INDEX('Coverage Indicator_Import-Expor'!Q$7:Q$223,MATCH($B43,'Coverage Indicator_Import-Expor'!$C$7:$C$223,0))),\"\")","v":""},{"$f":"IFERROR(IF(INDEX('Coverage Indicator_Import-Expor'!R$7:R$223,MATCH($B43,'Coverage Indicator_Import-Expor'!$C$7:$C$223,0))=\"\",\"\",INDEX('Coverage Indicator_Import-Expor'!R$7:R$223,MATCH($B43,'Coverage Indicator_Import-Expor'!$C$7:$C$223,0))),\"\")","v":""},{"$f":"IFERROR(IF(INDEX('Coverage Indicator_Import-Expor'!S$7:S$223,MATCH($B43,'Coverage Indicator_Import-Expor'!$C$7:$C$223,0))=\"\",\"\",INDEX('Coverage Indicator_Import-Expor'!S$7:S$223,MATCH($B43,'Coverage Indicator_Import-Expor'!$C$7:$C$223,0))),\"\")","v":""},{"$f":"IFERROR(IF(INDEX('Coverage Indicator_Import-Expor'!T$7:T$223,MATCH($B43,'Coverage Indicator_Import-Expor'!$C$7:$C$223,0))=\"\",\"\",INDEX('Coverage Indicator_Import-Expor'!T$7:T$223,MATCH($B43,'Coverage Indicator_Import-Expor'!$C$7:$C$223,0))),\"\")","v":""},{"$f":"IFERROR(IF(INDEX('Coverage Indicator_Import-Expor'!U$7:U$223,MATCH($B43,'Coverage Indicator_Import-Expor'!$C$7:$C$223,0))=\"\",\"\",INDEX('Coverage Indicator_Import-Expor'!U$7:U$223,MATCH($B43,'Coverage Indicator_Import-Expor'!$C$7:$C$223,0))),\"\")","v":""},null,null,"",null," ",null,"No Results Reported",null,null,"",null," ",null,null,"No Results Reported",null,null,""," ",null,"No Results Reported"]
[34,"Coverage34",{"$f":"IFERROR(INDEX('Coverage Indicator_Import-Expor'!$D$7:$D$223,MATCH(B44,'Coverage Indicator_Import-Expor'!$C$7:$C$223,0)),\"\")","v":""},{"$f":"IFERROR(INDEX('Coverage Indicator_Import-Expor'!$E$7:$E$223,MATCH(B44,'Coverage Indicator_Import-Expor'!$C$7:$C$223,0)),\"\")","v":""},{"$f":"IFERROR(IF(INDEX('Coverage Indicator_Import-Expor'!K$7:K$223,MATCH($B44,'Coverage Indicator_Import-Expor'!$C$7:$C$223,0))=\"\",\"\",INDEX('Coverage Indicator_Import-Expor'!K$7:K$223,MATCH($B44,'Coverage Indicator_Import-Expor'!$C$7:$C$223,0))),\"\")","v":""},{"$f":"IFERROR(IF(INDEX('Coverage Indicator_Import-Expor'!L$7:L$223,MATCH($B44,'Coverage Indicator_Import-Expor'!$C$7:$C$223,0))=\"\",\"\",INDEX('Coverage Indicator_Import-Expor'!L$7:L$223,MATCH($B44,'Coverage Indicator_Import-Expor'!$C$7:$C$223,0))),\"\")","v":""},{"$f":"IFERROR(IF(INDEX('Coverage Indicator_Import-Expor'!AR$7:AR$223,MATCH($B44,'Coverage Indicator_Import-Expor'!$C$7:$C$223,0))=\"\",\"\",INDEX('Coverage Indicator_Import-Expor'!AR$7:AR$223,MATCH($B44,'Coverage Indicator_Import-Expor'!$C$7:$C$223,0))),\"\")","v":""},{"$f":"IFERROR(IF(INDEX('Coverage Indicator_Import-Expor'!AS$7:AS$223,MATCH($B44,'Coverage Indicator_Import-Expor'!$C$7:$C$223,0))=\"\",\"\",INDEX('Coverage Indicator_Import-Expor'!AS$7:AS$223,MATCH($B44,'Coverage Indicator_Import-Expor'!$C$7:$C$223,0))),\"\")","v":""},{"$f":"IFERROR(IF(INDEX('Coverage Indicator_Import-Expor'!N$7:N$223,MATCH($B44,'Coverage Indicator_Import-Expor'!$C$7:$C$223,0))=\"\",\"\",INDEX('Coverage Indicator_Import-Expor'!N$7:N$223,MATCH($B44,'Coverage Indicator_Import-Expor'!$C$7:$C$223,0))),\"\")","v":""},{"$f":"IFERROR(IF(INDEX('Coverage Indicator_Import-Expor'!O$7:O$223,MATCH($B44,'Coverage Indicator_Import-Expor'!$C$7:$C$223,0))=\"\",\"\",INDEX('Coverage Indicator_Import-Expor'!O$7:O$223,MATCH($B44,'Coverage Indicator_Import-Expor'!$C$7:$C$223,0))),\"\")","v":""},{"$f":"IFERROR(IF(INDEX('Coverage Indicator_Import-Expor'!P$7:P$223,MATCH($B44,'Coverage Indicator_Import-Expor'!$C$7:$C$223,0))=\"\",\"\",INDEX('Coverage Indicator_Import-Expor'!P$7:P$223,MATCH($B44,'Coverage Indicator_Import-Expor'!$C$7:$C$223,0))),\"\")","v":""},{"$f":"IFERROR(IF(INDEX('Coverage Indicator_Import-Expor'!Q$7:Q$223,MATCH($B44,'Coverage Indicator_Import-Expor'!$C$7:$C$223,0))=\"\",\"\",INDEX('Coverage Indicator_Import-Expor'!Q$7:Q$223,MATCH($B44,'Coverage Indicator_Import-Expor'!$C$7:$C$223,0))),\"\")","v":""},{"$f":"IFERROR(IF(INDEX('Coverage Indicator_Import-Expor'!R$7:R$223,MATCH($B44,'Coverage Indicator_Import-Expor'!$C$7:$C$223,0))=\"\",\"\",INDEX('Coverage Indicator_Import-Expor'!R$7:R$223,MATCH($B44,'Coverage Indicator_Import-Expor'!$C$7:$C$223,0))),\"\")","v":""},{"$f":"IFERROR(IF(INDEX('Coverage Indicator_Import-Expor'!S$7:S$223,MATCH($B44,'Coverage Indicator_Import-Expor'!$C$7:$C$223,0))=\"\",\"\",INDEX('Coverage Indicator_Import-Expor'!S$7:S$223,MATCH($B44,'Coverage Indicator_Import-Expor'!$C$7:$C$223,0))),\"\")","v":""},{"$f":"IFERROR(IF(INDEX('Coverage Indicator_Import-Expor'!T$7:T$223,MATCH($B44,'Coverage Indicator_Import-Expor'!$C$7:$C$223,0))=\"\",\"\",INDEX('Coverage Indicator_Import-Expor'!T$7:T$223,MATCH($B44,'Coverage Indicator_Import-Expor'!$C$7:$C$223,0))),\"\")","v":""},{"$f":"IFERROR(IF(INDEX('Coverage Indicator_Import-Expor'!U$7:U$223,MATCH($B44,'Coverage Indicator_Import-Expor'!$C$7:$C$223,0))=\"\",\"\",INDEX('Coverage Indicator_Import-Expor'!U$7:U$223,MATCH($B44,'Coverage Indicator_Import-Expor'!$C$7:$C$223,0))),\"\")","v":""},null,null,"",null," ",null,"No Results Reported",null,null,"",null," ",null,null,"No Results Reported",null,null,""," ",null,"No Results Reported"]
[35,"Coverage35",{"$f":"IFERROR(INDEX('Coverage Indicator_Import-Expor'!$D$7:$D$223,MATCH(B45,'Coverage Indicator_Import-Expor'!$C$7:$C$223,0)),\"\")","v":""},{"$f":"IFERROR(INDEX('Coverage Indicator_Import-Expor'!$E$7:$E$223,MATCH(B45,'Coverage Indicator_Import-Expor'!$C$7:$C$223,0)),\"\")","v":""},{"$f":"IFERROR(IF(INDEX('Coverage Indicator_Import-Expor'!K$7:K$223,MATCH($B45,'Coverage Indicator_Import-Expor'!$C$7:$C$223,0))=\"\",\"\",INDEX('Coverage Indicator_Import-Expor'!K$7:K$223,MATCH($B45,'Coverage Indicator_Import-Expor'!$C$7:$C$223,0))),\"\")","v":""},{"$f":"IFERROR(IF(INDEX('Coverage Indicator_Import-Expor'!L$7:L$223,MATCH($B45,'Coverage Indicator_Import-Expor'!$C$7:$C$223,0))=\"\",\"\",INDEX('Coverage Indicator_Import-Expor'!L$7:L$223,MATCH($B45,'Coverage Indicator_Import-Expor'!$C$7:$C$223,0))),\"\")","v":""},{"$f":"IFERROR(IF(INDEX('Coverage Indicator_Import-Expor'!AR$7:AR$223,MATCH($B45,'Coverage Indicator_Import-Expor'!$C$7:$C$223,0))=\"\",\"\",INDEX('Coverage Indicator_Import-Expor'!AR$7:AR$223,MATCH($B45,'Coverage Indicator_Import-Expor'!$C$7:$C$223,0))),\"\")","v":""},{"$f":"IFERROR(IF(INDEX('Coverage Indicator_Import-Expor'!AS$7:AS$223,MATCH($B45,'Coverage Indicator_Import-Expor'!$C$7:$C$223,0))=\"\",\"\",INDEX('Coverage Indicator_Import-Expor'!AS$7:AS$223,MATCH($B45,'Coverage Indicator_Import-Expor'!$C$7:$C$223,0))),\"\")","v":""},{"$f":"IFERROR(IF(INDEX('Coverage Indicator_Import-Expor'!N$7:N$223,MATCH($B45,'Coverage Indicator_Import-Expor'!$C$7:$C$223,0))=\"\",\"\",INDEX('Coverage Indicator_Import-Expor'!N$7:N$223,MATCH($B45,'Coverage Indicator_Import-Expor'!$C$7:$C$223,0))),\"\")","v":""},{"$f":"IFERROR(IF(INDEX('Coverage Indicator_Import-Expor'!O$7:O$223,MATCH($B45,'Coverage Indicator_Import-Expor'!$C$7:$C$223,0))=\"\",\"\",INDEX('Coverage Indicator_Import-Expor'!O$7:O$223,MATCH($B45,'Coverage Indicator_Import-Expor'!$C$7:$C$223,0))),\"\")","v":""},{"$f":"IFERROR(IF(INDEX('Coverage Indicator_Import-Expor'!P$7:P$223,MATCH($B45,'Coverage Indicator_Import-Expor'!$C$7:$C$223,0))=\"\",\"\",INDEX('Coverage Indicator_Import-Expor'!P$7:P$223,MATCH($B45,'Coverage Indicator_Import-Expor'!$C$7:$C$223,0))),\"\")","v":""},{"$f":"IFERROR(IF(INDEX('Coverage Indicator_Import-Expor'!Q$7:Q$223,MATCH($B45,'Coverage Indicator_Import-Expor'!$C$7:$C$223,0))=\"\",\"\",INDEX('Coverage Indicator_Import-Expor'!Q$7:Q$223,MATCH($B45,'Coverage Indicator_Import-Expor'!$C$7:$C$223,0))),\"\")","v":""},{"$f":"IFERROR(IF(INDEX('Coverage Indicator_Import-Expor'!R$7:R$223,MATCH($B45,'Coverage Indicator_Import-Expor'!$C$7:$C$223,0))=\"\",\"\",INDEX('Coverage Indicator_Import-Expor'!R$7:R$223,MATCH($B45,'Coverage Indicator_Import-Expor'!$C$7:$C$223,0))),\"\")","v":""},{"$f":"IFERROR(IF(INDEX('Coverage Indicator_Import-Expor'!S$7:S$223,MATCH($B45,'Coverage Indicator_Import-Expor'!$C$7:$C$223,0))=\"\",\"\",INDEX('Coverage Indicator_Import-Expor'!S$7:S$223,MATCH($B45,'Coverage Indicator_Import-Expor'!$C$7:$C$223,0))),\"\")","v":""},{"$f":"IFERROR(IF(INDEX('Coverage Indicator_Import-Expor'!T$7:T$223,MATCH($B45,'Coverage Indicator_Import-Expor'!$C$7:$C$223,0))=\"\",\"\",INDEX('Coverage Indicator_Import-Expor'!T$7:T$223,MATCH($B45,'Coverage Indicator_Import-Expor'!$C$7:$C$223,0))),\"\")","v":""},{"$f":"IFERROR(IF(INDEX('Coverage Indicator_Import-Expor'!U$7:U$223,MATCH($B45,'Coverage Indicator_Import-Expor'!$C$7:$C$223,0))=\"\",\"\",INDEX('Coverage Indicator_Import-Expor'!U$7:U$223,MATCH($B45,'Coverage Indicator_Import-Expor'!$C$7:$C$223,0))),\"\")","v":""},null,null,"",null," ",null,"No Results Reported",null,null,"",null," ",null,null,"No Results Reported",null,null,""," ",null,"No Results Reported"]
[36,"Coverage36",{"$f":"IFERROR(INDEX('Coverage Indicator_Import-Expor'!$D$7:$D$223,MATCH(B46,'Coverage Indicator_Import-Expor'!$C$7:$C$223,0)),\"\")","v":""},{"$f":"IFERROR(INDEX('Coverage Indicator_Import-Expor'!$E$7:$E$223,MATCH(B46,'Coverage Indicator_Import-Expor'!$C$7:$C$223,0)),\"\")","v":""},{"$f":"IFERROR(IF(INDEX('Coverage Indicator_Import-Expor'!K$7:K$223,MATCH($B46,'Coverage Indicator_Import-Expor'!$C$7:$C$223,0))=\"\",\"\",INDEX('Coverage Indicator_Import-Expor'!K$7:K$223,MATCH($B46,'Coverage Indicator_Import-Expor'!$C$7:$C$223,0))),\"\")","v":""},{"$f":"IFERROR(IF(INDEX('Coverage Indicator_Import-Expor'!L$7:L$223,MATCH($B46,'Coverage Indicator_Import-Expor'!$C$7:$C$223,0))=\"\",\"\",INDEX('Coverage Indicator_Import-Expor'!L$7:L$223,MATCH($B46,'Coverage Indicator_Import-Expor'!$C$7:$C$223,0))),\"\")","v":""},{"$f":"IFERROR(IF(INDEX('Coverage Indicator_Import-Expor'!AR$7:AR$223,MATCH($B46,'Coverage Indicator_Import-Expor'!$C$7:$C$223,0))=\"\",\"\",INDEX('Coverage Indicator_Import-Expor'!AR$7:AR$223,MATCH($B46,'Coverage Indicator_Import-Expor'!$C$7:$C$223,0))),\"\")","v":""},{"$f":"IFERROR(IF(INDEX('Coverage Indicator_Import-Expor'!AS$7:AS$223,MATCH($B46,'Coverage Indicator_Import-Expor'!$C$7:$C$223,0))=\"\",\"\",INDEX('Coverage Indicator_Import-Expor'!AS$7:AS$223,MATCH($B46,'Coverage Indicator_Import-Expor'!$C$7:$C$223,0))),\"\")","v":""},{"$f":"IFERROR(IF(INDEX('Coverage Indicator_Import-Expor'!N$7:N$223,MATCH($B46,'Coverage Indicator_Import-Expor'!$C$7:$C$223,0))=\"\",\"\",INDEX('Coverage Indicator_Import-Expor'!N$7:N$223,MATCH($B46,'Coverage Indicator_Import-Expor'!$C$7:$C$223,0))),\"\")","v":""},{"$f":"IFERROR(IF(INDEX('Coverage Indicator_Import-Expor'!O$7:O$223,MATCH($B46,'Coverage Indicator_Import-Expor'!$C$7:$C$223,0))=\"\",\"\",INDEX('Coverage Indicator_Import-Expor'!O$7:O$223,MATCH($B46,'Coverage Indicator_Import-Expor'!$C$7:$C$223,0))),\"\")","v":""},{"$f":"IFERROR(IF(INDEX('Coverage Indicator_Import-Expor'!P$7:P$223,MATCH($B46,'Coverage Indicator_Import-Expor'!$C$7:$C$223,0))=\"\",\"\",INDEX('Coverage Indicator_Import-Expor'!P$7:P$223,MATCH($B46,'Coverage Indicator_Import-Expor'!$C$7:$C$223,0))),\"\")","v":""},{"$f":"IFERROR(IF(INDEX('Coverage Indicator_Import-Expor'!Q$7:Q$223,MATCH($B46,'Coverage Indicator_Import-Expor'!$C$7:$C$223,0))=\"\",\"\",INDEX('Coverage Indicator_Import-Expor'!Q$7:Q$223,MATCH($B46,'Coverage Indicator_Import-Expor'!$C$7:$C$223,0))),\"\")","v":""},{"$f":"IFERROR(IF(INDEX('Coverage Indicator_Import-Expor'!R$7:R$223,MATCH($B46,'Coverage Indicator_Import-Expor'!$C$7:$C$223,0))=\"\",\"\",INDEX('Coverage Indicator_Import-Expor'!R$7:R$223,MATCH($B46,'Coverage Indicator_Import-Expor'!$C$7:$C$223,0))),\"\")","v":""},{"$f":"IFERROR(IF(INDEX('Coverage Indicator_Import-Expor'!S$7:S$223,MATCH($B46,'Coverage Indicator_Import-Expor'!$C$7:$C$223,0))=\"\",\"\",INDEX('Coverage Indicator_Import-Expor'!S$7:S$223,MATCH($B46,'Coverage Indicator_Import-Expor'!$C$7:$C$223,0))),\"\")","v":""},{"$f":"IFERROR(IF(INDEX('Coverage Indicator_Import-Expor'!T$7:T$223,MATCH($B46,'Coverage Indicator_Import-Expor'!$C$7:$C$223,0))=\"\",\"\",INDEX('Coverage Indicator_Import-Expor'!T$7:T$223,MATCH($B46,'Coverage Indicator_Import-Expor'!$C$7:$C$223,0))),\"\")","v":""},{"$f":"IFERROR(IF(INDEX('Coverage Indicator_Import-Expor'!U$7:U$223,MATCH($B46,'Coverage Indicator_Import-Expor'!$C$7:$C$223,0))=\"\",\"\",INDEX('Coverage Indicator_Import-Expor'!U$7:U$223,MATCH($B46,'Coverage Indicator_Import-Expor'!$C$7:$C$223,0))),\"\")","v":""},null,null,"",null," ",null,"No Results Reported",null,null,"",null," ",null,null,"No Results Reported",null,null,""," ",null,"No Results Reported"]
[37,"Coverage37",{"$f":"IFERROR(INDEX('Coverage Indicator_Import-Expor'!$D$7:$D$223,MATCH(B47,'Coverage Indicator_Import-Expor'!$C$7:$C$223,0)),\"\")","v":""},{"$f":"IFERROR(INDEX('Coverage Indicator_Import-Expor'!$E$7:$E$223,MATCH(B47,'Coverage Indicator_Import-Expor'!$C$7:$C$223,0)),\"\")","v":""},{"$f":"IFERROR(IF(INDEX('Coverage Indicator_Import-Expor'!K$7:K$223,MATCH($B47,'Coverage Indicator_Import-Expor'!$C$7:$C$223,0))=\"\",\"\",INDEX('Coverage Indicator_Import-Expor'!K$7:K$223,MATCH($B47,'Coverage Indicator_Import-Expor'!$C$7:$C$223,0))),\"\")","v":""},{"$f":"IFERROR(IF(INDEX('Coverage Indicator_Import-Expor'!L$7:L$223,MATCH($B47,'Coverage Indicator_Import-Expor'!$C$7:$C$223,0))=\"\",\"\",INDEX('Coverage Indicator_Import-Expor'!L$7:L$223,MATCH($B47,'Coverage Indicator_Import-Expor'!$C$7:$C$223,0))),\"\")","v":""},{"$f":"IFERROR(IF(INDEX('Coverage Indicator_Import-Expor'!AR$7:AR$223,MATCH($B47,'Coverage Indicator_Import-Expor'!$C$7:$C$223,0))=\"\",\"\",INDEX('Coverage Indicator_Import-Expor'!AR$7:AR$223,MATCH($B47,'Coverage Indicator_Import-Expor'!$C$7:$C$223,0))),\"\")","v":""},{"$f":"IFERROR(IF(INDEX('Coverage Indicator_Import-Expor'!AS$7:AS$223,MATCH($B47,'Coverage Indicator_Import-Expor'!$C$7:$C$223,0))=\"\",\"\",INDEX('Coverage Indicator_Import-Expor'!AS$7:AS$223,MATCH($B47,'Coverage Indicator_Import-Expor'!$C$7:$C$223,0))),\"\")","v":""},{"$f":"IFERROR(IF(INDEX('Coverage Indicator_Import-Expor'!N$7:N$223,MATCH($B47,'Coverage Indicator_Import-Expor'!$C$7:$C$223,0))=\"\",\"\",INDEX('Coverage Indicator_Import-Expor'!N$7:N$223,MATCH($B47,'Coverage Indicator_Import-Expor'!$C$7:$C$223,0))),\"\")","v":""},{"$f":"IFERROR(IF(INDEX('Coverage Indicator_Import-Expor'!O$7:O$223,MATCH($B47,'Coverage Indicator_Import-Expor'!$C$7:$C$223,0))=\"\",\"\",INDEX('Coverage Indicator_Import-Expor'!O$7:O$223,MATCH($B47,'Coverage Indicator_Import-Expor'!$C$7:$C$223,0))),\"\")","v":""},{"$f":"IFERROR(IF(INDEX('Coverage Indicator_Import-Expor'!P$7:P$223,MATCH($B47,'Coverage Indicator_Import-Expor'!$C$7:$C$223,0))=\"\",\"\",INDEX('Coverage Indicator_Import-Expor'!P$7:P$223,MATCH($B47,'Coverage Indicator_Import-Expor'!$C$7:$C$223,0))),\"\")","v":""},{"$f":"IFERROR(IF(INDEX('Coverage Indicator_Import-Expor'!Q$7:Q$223,MATCH($B47,'Coverage Indicator_Import-Expor'!$C$7:$C$223,0))=\"\",\"\",INDEX('Coverage Indicator_Import-Expor'!Q$7:Q$223,MATCH($B47,'Coverage Indicator_Import-Expor'!$C$7:$C$223,0))),\"\")","v":""},{"$f":"IFERROR(IF(INDEX('Coverage Indicator_Import-Expor'!R$7:R$223,MATCH($B47,'Coverage Indicator_Import-Expor'!$C$7:$C$223,0))=\"\",\"\",INDEX('Coverage Indicator_Import-Expor'!R$7:R$223,MATCH($B47,'Coverage Indicator_Import-Expor'!$C$7:$C$223,0))),\"\")","v":""},{"$f":"IFERROR(IF(INDEX('Coverage Indicator_Import-Expor'!S$7:S$223,MATCH($B47,'Coverage Indicator_Import-Expor'!$C$7:$C$223,0))=\"\",\"\",INDEX('Coverage Indicator_Import-Expor'!S$7:S$223,MATCH($B47,'Coverage Indicator_Import-Expor'!$C$7:$C$223,0))),\"\")","v":""},{"$f":"IFERROR(IF(INDEX('Coverage Indicator_Import-Expor'!T$7:T$223,MATCH($B47,'Coverage Indicator_Import-Expor'!$C$7:$C$223,0))=\"\",\"\",INDEX('Coverage Indicator_Import-Expor'!T$7:T$223,MATCH($B47,'Coverage Indicator_Import-Expor'!$C$7:$C$223,0))),\"\")","v":""},{"$f":"IFERROR(IF(INDEX('Coverage Indicator_Import-Expor'!U$7:U$223,MATCH($B47,'Coverage Indicator_Import-Expor'!$C$7:$C$223,0))=\"\",\"\",INDEX('Coverage Indicator_Import-Expor'!U$7:U$223,MATCH($B47,'Coverage Indicator_Import-Expor'!$C$7:$C$223,0))),\"\")","v":""},null,null,"",null," ",null,"No Results Reported",null,null,"",null," ",null,null,"No Results Reported",null,null,""," ",null,"No Results Reported"]
[38,"Coverage38",{"$f":"IFERROR(INDEX('Coverage Indicator_Import-Expor'!$D$7:$D$223,MATCH(B48,'Coverage Indicator_Import-Expor'!$C$7:$C$223,0)),\"\")","v":""},{"$f":"IFERROR(INDEX('Coverage Indicator_Import-Expor'!$E$7:$E$223,MATCH(B48,'Coverage Indicator_Import-Expor'!$C$7:$C$223,0)),\"\")","v":""},{"$f":"IFERROR(IF(INDEX('Coverage Indicator_Import-Expor'!K$7:K$223,MATCH($B48,'Coverage Indicator_Import-Expor'!$C$7:$C$223,0))=\"\",\"\",INDEX('Coverage Indicator_Import-Expor'!K$7:K$223,MATCH($B48,'Coverage Indicator_Import-Expor'!$C$7:$C$223,0))),\"\")","v":""},{"$f":"IFERROR(IF(INDEX('Coverage Indicator_Import-Expor'!L$7:L$223,MATCH($B48,'Coverage Indicator_Import-Expor'!$C$7:$C$223,0))=\"\",\"\",INDEX('Coverage Indicator_Import-Expor'!L$7:L$223,MATCH($B48,'Coverage Indicator_Import-Expor'!$C$7:$C$223,0))),\"\")","v":""},{"$f":"IFERROR(IF(INDEX('Coverage Indicator_Import-Expor'!AR$7:AR$223,MATCH($B48,'Coverage Indicator_Import-Expor'!$C$7:$C$223,0))=\"\",\"\",INDEX('Coverage Indicator_Import-Expor'!AR$7:AR$223,MATCH($B48,'Coverage Indicator_Import-Expor'!$C$7:$C$223,0))),\"\")","v":""},{"$f":"IFERROR(IF(INDEX('Coverage Indicator_Import-Expor'!AS$7:AS$223,MATCH($B48,'Coverage Indicator_Import-Expor'!$C$7:$C$223,0))=\"\",\"\",INDEX('Coverage Indicator_Import-Expor'!AS$7:AS$223,MATCH($B48,'Coverage Indicator_Import-Expor'!$C$7:$C$223,0))),\"\")","v":""},{"$f":"IFERROR(IF(INDEX('Coverage Indicator_Import-Expor'!N$7:N$223,MATCH($B48,'Coverage Indicator_Import-Expor'!$C$7:$C$223,0))=\"\",\"\",INDEX('Coverage Indicator_Import-Expor'!N$7:N$223,MATCH($B48,'Coverage Indicator_Import-Expor'!$C$7:$C$223,0))),\"\")","v":""},{"$f":"IFERROR(IF(INDEX('Coverage Indicator_Import-Expor'!O$7:O$223,MATCH($B48,'Coverage Indicator_Import-Expor'!$C$7:$C$223,0))=\"\",\"\",INDEX('Coverage Indicator_Import-Expor'!O$7:O$223,MATCH($B48,'Coverage Indicator_Import-Expor'!$C$7:$C$223,0))),\"\")","v":""},{"$f":"IFERROR(IF(INDEX('Coverage Indicator_Import-Expor'!P$7:P$223,MATCH($B48,'Coverage Indicator_Import-Expor'!$C$7:$C$223,0))=\"\",\"\",INDEX('Coverage Indicator_Import-Expor'!P$7:P$223,MATCH($B48,'Coverage Indicator_Import-Expor'!$C$7:$C$223,0))),\"\")","v":""},{"$f":"IFERROR(IF(INDEX('Coverage Indicator_Import-Expor'!Q$7:Q$223,MATCH($B48,'Coverage Indicator_Import-Expor'!$C$7:$C$223,0))=\"\",\"\",INDEX('Coverage Indicator_Import-Expor'!Q$7:Q$223,MATCH($B48,'Coverage Indicator_Import-Expor'!$C$7:$C$223,0))),\"\")","v":""},{"$f":"IFERROR(IF(INDEX('Coverage Indicator_Import-Expor'!R$7:R$223,MATCH($B48,'Coverage Indicator_Import-Expor'!$C$7:$C$223,0))=\"\",\"\",INDEX('Coverage Indicator_Import-Expor'!R$7:R$223,MATCH($B48,'Coverage Indicator_Import-Expor'!$C$7:$C$223,0))),\"\")","v":""},{"$f":"IFERROR(IF(INDEX('Coverage Indicator_Import-Expor'!S$7:S$223,MATCH($B48,'Coverage Indicator_Import-Expor'!$C$7:$C$223,0))=\"\",\"\",INDEX('Coverage Indicator_Import-Expor'!S$7:S$223,MATCH($B48,'Coverage Indicator_Import-Expor'!$C$7:$C$223,0))),\"\")","v":""},{"$f":"IFERROR(IF(INDEX('Coverage Indicator_Import-Expor'!T$7:T$223,MATCH($B48,'Coverage Indicator_Import-Expor'!$C$7:$C$223,0))=\"\",\"\",INDEX('Coverage Indicator_Import-Expor'!T$7:T$223,MATCH($B48,'Coverage Indicator_Import-Expor'!$C$7:$C$223,0))),\"\")","v":""},{"$f":"IFERROR(IF(INDEX('Coverage Indicator_Import-Expor'!U$7:U$223,MATCH($B48,'Coverage Indicator_Import-Expor'!$C$7:$C$223,0))=\"\",\"\",INDEX('Coverage Indicator_Import-Expor'!U$7:U$223,MATCH($B48,'Coverage Indicator_Import-Expor'!$C$7:$C$223,0))),\"\")","v":""},null,null,"",null," ",null,"No Results Reported",null,null,"",null," ",null,null,"No Results Reported",null,null,""," ",null,"No Results Reported"]
[39,"Coverage39",{"$f":"IFERROR(INDEX('Coverage Indicator_Import-Expor'!$D$7:$D$223,MATCH(B49,'Coverage Indicator_Import-Expor'!$C$7:$C$223,0)),\"\")","v":""},{"$f":"IFERROR(INDEX('Coverage Indicator_Import-Expor'!$E$7:$E$223,MATCH(B49,'Coverage Indicator_Import-Expor'!$C$7:$C$223,0)),\"\")","v":""},{"$f":"IFERROR(IF(INDEX('Coverage Indicator_Import-Expor'!K$7:K$223,MATCH($B49,'Coverage Indicator_Import-Expor'!$C$7:$C$223,0))=\"\",\"\",INDEX('Coverage Indicator_Import-Expor'!K$7:K$223,MATCH($B49,'Coverage Indicator_Import-Expor'!$C$7:$C$223,0))),\"\")","v":""},{"$f":"IFERROR(IF(INDEX('Coverage Indicator_Import-Expor'!L$7:L$223,MATCH($B49,'Coverage Indicator_Import-Expor'!$C$7:$C$223,0))=\"\",\"\",INDEX('Coverage Indicator_Import-Expor'!L$7:L$223,MATCH($B49,'Coverage Indicator_Import-Expor'!$C$7:$C$223,0))),\"\")","v":""},{"$f":"IFERROR(IF(INDEX('Coverage Indicator_Import-Expor'!AR$7:AR$223,MATCH($B49,'Coverage Indicator_Import-Expor'!$C$7:$C$223,0))=\"\",\"\",INDEX('Coverage Indicator_Import-Expor'!AR$7:AR$223,MATCH($B49,'Coverage Indicator_Import-Expor'!$C$7:$C$223,0))),\"\")","v":""},{"$f":"IFERROR(IF(INDEX('Coverage Indicator_Import-Expor'!AS$7:AS$223,MATCH($B49,'Coverage Indicator_Import-Expor'!$C$7:$C$223,0))=\"\",\"\",INDEX('Coverage Indicator_Import-Expor'!AS$7:AS$223,MATCH($B49,'Coverage Indicator_Import-Expor'!$C$7:$C$223,0))),\"\")","v":""},{"$f":"IFERROR(IF(INDEX('Coverage Indicator_Import-Expor'!N$7:N$223,MATCH($B49,'Coverage Indicator_Import-Expor'!$C$7:$C$223,0))=\"\",\"\",INDEX('Coverage Indicator_Import-Expor'!N$7:N$223,MATCH($B49,'Coverage Indicator_Import-Expor'!$C$7:$C$223,0))),\"\")","v":""},{"$f":"IFERROR(IF(INDEX('Coverage Indicator_Import-Expor'!O$7:O$223,MATCH($B49,'Coverage Indicator_Import-Expor'!$C$7:$C$223,0))=\"\",\"\",INDEX('Coverage Indicator_Import-Expor'!O$7:O$223,MATCH($B49,'Coverage Indicator_Import-Expor'!$C$7:$C$223,0))),\"\")","v":""},{"$f":"IFERROR(IF(INDEX('Coverage Indicator_Import-Expor'!P$7:P$223,MATCH($B49,'Coverage Indicator_Import-Expor'!$C$7:$C$223,0))=\"\",\"\",INDEX('Coverage Indicator_Import-Expor'!P$7:P$223,MATCH($B49,'Coverage Indicator_Import-Expor'!$C$7:$C$223,0))),\"\")","v":""},{"$f":"IFERROR(IF(INDEX('Coverage Indicator_Import-Expor'!Q$7:Q$223,MATCH($B49,'Coverage Indicator_Import-Expor'!$C$7:$C$223,0))=\"\",\"\",INDEX('Coverage Indicator_Import-Expor'!Q$7:Q$223,MATCH($B49,'Coverage Indicator_Import-Expor'!$C$7:$C$223,0))),\"\")","v":""},{"$f":"IFERROR(IF(INDEX('Coverage Indicator_Import-Expor'!R$7:R$223,MATCH($B49,'Coverage Indicator_Import-Expor'!$C$7:$C$223,0))=\"\",\"\",INDEX('Coverage Indicator_Import-Expor'!R$7:R$223,MATCH($B49,'Coverage Indicator_Import-Expor'!$C$7:$C$223,0))),\"\")","v":""},{"$f":"IFERROR(IF(INDEX('Coverage Indicator_Import-Expor'!S$7:S$223,MATCH($B49,'Coverage Indicator_Import-Expor'!$C$7:$C$223,0))=\"\",\"\",INDEX('Coverage Indicator_Import-Expor'!S$7:S$223,MATCH($B49,'Coverage Indicator_Import-Expor'!$C$7:$C$223,0))),\"\")","v":""},{"$f":"IFERROR(IF(INDEX('Coverage Indicator_Import-Expor'!T$7:T$223,MATCH($B49,'Coverage Indicator_Import-Expor'!$C$7:$C$223,0))=\"\",\"\",INDEX('Coverage Indicator_Import-Expor'!T$7:T$223,MATCH($B49,'Coverage Indicator_Import-Expor'!$C$7:$C$223,0))),\"\")","v":""},{"$f":"IFERROR(IF(INDEX('Coverage Indicator_Import-Expor'!U$7:U$223,MATCH($B49,'Coverage Indicator_Import-Expor'!$C$7:$C$223,0))=\"\",\"\",INDEX('Coverage Indicator_Import-Expor'!U$7:U$223,MATCH($B49,'Coverage Indicator_Import-Expor'!$C$7:$C$223,0))),\"\")","v":""},null,null,"",null," ",null,"No Results Reported",null,null,"",null," ",null,null,"No Results Reported",null,null,""," ",null,"No Results Reported"]
[40,{"$f":"\"Coverage\"&A50","v":"Coverage40"},{"$f":"IFERROR(INDEX('Coverage Indicator_Import-Expor'!$D$7:$D$223,MATCH(B50,'Coverage Indicator_Import-Expor'!$C$7:$C$223,0)),\"\")","v":""},{"$f":"IFERROR(INDEX('Coverage Indicator_Import-Expor'!$E$7:$E$223,MATCH(B50,'Coverage Indicator_Import-Expor'!$C$7:$C$223,0)),\"\")","v":""},{"$f":"IFERROR(IF(INDEX('Coverage Indicator_Import-Expor'!K$7:K$223,MATCH($B50,'Coverage Indicator_Import-Expor'!$C$7:$C$223,0))=\"\",\"\",INDEX('Coverage Indicator_Import-Expor'!K$7:K$223,MATCH($B50,'Coverage Indicator_Import-Expor'!$C$7:$C$223,0))),\"\")","v":""},{"$f":"IFERROR(IF(INDEX('Coverage Indicator_Import-Expor'!L$7:L$223,MATCH($B50,'Coverage Indicator_Import-Expor'!$C$7:$C$223,0))=\"\",\"\",INDEX('Coverage Indicator_Import-Expor'!L$7:L$223,MATCH($B50,'Coverage Indicator_Import-Expor'!$C$7:$C$223,0))),\"\")","v":""},{"$f":"IFERROR(IF(INDEX('Coverage Indicator_Import-Expor'!AR$7:AR$223,MATCH($B50,'Coverage Indicator_Import-Expor'!$C$7:$C$223,0))=\"\",\"\",INDEX('Coverage Indicator_Import-Expor'!AR$7:AR$223,MATCH($B50,'Coverage Indicator_Import-Expor'!$C$7:$C$223,0))),\"\")","v":""},{"$f":"IFERROR(IF(INDEX('Coverage Indicator_Import-Expor'!AS$7:AS$223,MATCH($B50,'Coverage Indicator_Import-Expor'!$C$7:$C$223,0))=\"\",\"\",INDEX('Coverage Indicator_Import-Expor'!AS$7:AS$223,MATCH($B50,'Coverage Indicator_Import-Expor'!$C$7:$C$223,0))),\"\")","v":""},{"$f":"IFERROR(IF(INDEX('Coverage Indicator_Import-Expor'!N$7:N$223,MATCH($B50,'Coverage Indicator_Import-Expor'!$C$7:$C$223,0))=\"\",\"\",INDEX('Coverage Indicator_Import-Expor'!N$7:N$223,MATCH($B50,'Coverage Indicator_Import-Expor'!$C$7:$C$223,0))),\"\")","v":""},{"$f":"IFERROR(IF(INDEX('Coverage Indicator_Import-Expor'!O$7:O$223,MATCH($B50,'Coverage Indicator_Import-Expor'!$C$7:$C$223,0))=\"\",\"\",INDEX('Coverage Indicator_Import-Expor'!O$7:O$223,MATCH($B50,'Coverage Indicator_Import-Expor'!$C$7:$C$223,0))),\"\")","v":""},{"$f":"IFERROR(IF(INDEX('Coverage Indicator_Import-Expor'!P$7:P$223,MATCH($B50,'Coverage Indicator_Import-Expor'!$C$7:$C$223,0))=\"\",\"\",INDEX('Coverage Indicator_Import-Expor'!P$7:P$223,MATCH($B50,'Coverage Indicator_Import-Expor'!$C$7:$C$223,0))),\"\")","v":""},{"$f":"IFERROR(IF(INDEX('Coverage Indicator_Import-Expor'!Q$7:Q$223,MATCH($B50,'Coverage Indicator_Import-Expor'!$C$7:$C$223,0))=\"\",\"\",INDEX('Coverage Indicator_Import-Expor'!Q$7:Q$223,MATCH($B50,'Coverage Indicator_Import-Expor'!$C$7:$C$223,0))),\"\")","v":""},{"$f":"IFERROR(IF(INDEX('Coverage Indicator_Import-Expor'!R$7:R$223,MATCH($B50,'Coverage Indicator_Import-Expor'!$C$7:$C$223,0))=\"\",\"\",INDEX('Coverage Indicator_Import-Expor'!R$7:R$223,MATCH($B50,'Coverage Indicator_Import-Expor'!$C$7:$C$223,0))),\"\")","v":""},{"$f":"IFERROR(IF(INDEX('Coverage Indicator_Import-Expor'!S$7:S$223,MATCH($B50,'Coverage Indicator_Import-Expor'!$C$7:$C$223,0))=\"\",\"\",INDEX('Coverage Indicator_Import-Expor'!S$7:S$223,MATCH($B50,'Coverage Indicator_Import-Expor'!$C$7:$C$223,0))),\"\")","v":""},{"$f":"IFERROR(IF(INDEX('Coverage Indicator_Import-Expor'!T$7:T$223,MATCH($B50,'Coverage Indicator_Import-Expor'!$C$7:$C$223,0))=\"\",\"\",INDEX('Coverage Indicator_Import-Expor'!T$7:T$223,MATCH($B50,'Coverage Indicator_Import-Expor'!$C$7:$C$223,0))),\"\")","v":""},{"$f":"IFERROR(IF(INDEX('Coverage Indicator_Import-Expor'!U$7:U$223,MATCH($B50,'Coverage Indicator_Import-Expor'!$C$7:$C$223,0))=\"\",\"\",INDEX('Coverage Indicator_Import-Expor'!U$7:U$223,MATCH($B50,'Coverage Indicator_Import-Expor'!$C$7:$C$223,0))),\"\")","v":""},null,null,{"$f":"IFERROR((Q50/R50)*100,\"\")","v":""},null,{"$f":"IFERROR(IF(AND(N50<>\"\",O50=\"\",Q50<>\"\",R50=\"\"),IF((Q50/N50)>120%,120%,(Q50/N50)),IF((S50/P50)>120%,120%,(S50/P50))),\" \")","v":" "},null,{"$f":"IF(AND(Q50=\"\",R50=\"\",S50=\"\"),\"No Results Reported\",IF(AND(N50<>\"\",O50=\"\",P50=\"\",OR(R50<>\"\",S50<>\"\")),\"Target contains only a numerator. Please Report only a numerator for the result\",\"Continue\"))","v":"No Results Reported"},null,null,{"$f":"IFERROR((X50/Y50)*100,\"\")","v":""},null,{"$f":"IFERROR(IF(AND(N50<>\"\",O50=\"\",X50<>\"\",Y50=\"\"),IF((X50/N50)>120%,120%,(X50/N50)),IF((Z50/P50)>120%,120%,(Z50/P50))),\" \")","v":" "},null,null,{"$f":"IF(AND(X50=\"\",Y50=\"\",Z50=\"\"),\"No Results Reported\",IF(AND(Q50<>\"\",R50=\"\",S50=\"\",OR(Y50<>\"\",Z50<>\"\")),\"Target contains only a numerator. Please Report only a numerator for the result\",\"Continue\"))","v":"No Results Reported"},null,null,{"$f":"IFERROR((AF50/AG50)*100,\"\")","v":""},{"$f":"IFERROR(IF(AND(N50<>\"\",O50=\"\",AF50<>\"\",AG50=\"\"),IF((AF50/N50)>120%,120%,(AF50/N50)),IF((AH50/P50)>120%,120%,(AH50/P50))),\" \")","v":" "},null,{"$f":"IF(AND(AF50=\"\",AG50=\"\",AH50=\"\"),\"No Results Reported\",IF(AND(I50<>\"\",J50=\"\",K50=\"\",OR(AG50<>\"\",AH50<>\"\")),\"Target contains only a numerator. Please Report only a numerator for the result\",\"Continue\"))","v":"No Results Reported"}]
[41,"Coverage41",{"$f":"IFERROR(INDEX('Coverage Indicator_Import-Expor'!$D$7:$D$223,MATCH(B51,'Coverage Indicator_Import-Expor'!$C$7:$C$223,0)),\"\")","v":""},{"$f":"IFERROR(INDEX('Coverage Indicator_Import-Expor'!$E$7:$E$223,MATCH(B51,'Coverage Indicator_Import-Expor'!$C$7:$C$223,0)),\"\")","v":""},{"$f":"IFERROR(IF(INDEX('Coverage Indicator_Import-Expor'!K$7:K$223,MATCH($B51,'Coverage Indicator_Import-Expor'!$C$7:$C$223,0))=\"\",\"\",INDEX('Coverage Indicator_Import-Expor'!K$7:K$223,MATCH($B51,'Coverage Indicator_Import-Expor'!$C$7:$C$223,0))),\"\")","v":""},{"$f":"IFERROR(IF(INDEX('Coverage Indicator_Import-Expor'!L$7:L$223,MATCH($B51,'Coverage Indicator_Import-Expor'!$C$7:$C$223,0))=\"\",\"\",INDEX('Coverage Indicator_Import-Expor'!L$7:L$223,MATCH($B51,'Coverage Indicator_Import-Expor'!$C$7:$C$223,0))),\"\")","v":""},{"$f":"IFERROR(IF(INDEX('Coverage Indicator_Import-Expor'!AR$7:AR$223,MATCH($B51,'Coverage Indicator_Import-Expor'!$C$7:$C$223,0))=\"\",\"\",INDEX('Coverage Indicator_Import-Expor'!AR$7:AR$223,MATCH($B51,'Coverage Indicator_Import-Expor'!$C$7:$C$223,0))),\"\")","v":""},{"$f":"IFERROR(IF(INDEX('Coverage Indicator_Import-Expor'!AS$7:AS$223,MATCH($B51,'Coverage Indicator_Import-Expor'!$C$7:$C$223,0))=\"\",\"\",INDEX('Coverage Indicator_Import-Expor'!AS$7:AS$223,MATCH($B51,'Coverage Indicator_Import-Expor'!$C$7:$C$223,0))),\"\")","v":""},{"$f":"IFERROR(IF(INDEX('Coverage Indicator_Import-Expor'!N$7:N$223,MATCH($B51,'Coverage Indicator_Import-Expor'!$C$7:$C$223,0))=\"\",\"\",INDEX('Coverage Indicator_Import-Expor'!N$7:N$223,MATCH($B51,'Coverage Indicator_Import-Expor'!$C$7:$C$223,0))),\"\")","v":""},{"$f":"IFERROR(IF(INDEX('Coverage Indicator_Import-Expor'!O$7:O$223,MATCH($B51,'Coverage Indicator_Import-Expor'!$C$7:$C$223,0))=\"\",\"\",INDEX('Coverage Indicator_Import-Expor'!O$7:O$223,MATCH($B51,'Coverage Indicator_Import-Expor'!$C$7:$C$223,0))),\"\")","v":""},{"$f":"IFERROR(IF(INDEX('Coverage Indicator_Import-Expor'!P$7:P$223,MATCH($B51,'Coverage Indicator_Import-Expor'!$C$7:$C$223,0))=\"\",\"\",INDEX('Coverage Indicator_Import-Expor'!P$7:P$223,MATCH($B51,'Coverage Indicator_Import-Expor'!$C$7:$C$223,0))),\"\")","v":""},{"$f":"IFERROR(IF(INDEX('Coverage Indicator_Import-Expor'!Q$7:Q$223,MATCH($B51,'Coverage Indicator_Import-Expor'!$C$7:$C$223,0))=\"\",\"\",INDEX('Coverage Indicator_Import-Expor'!Q$7:Q$223,MATCH($B51,'Coverage Indicator_Import-Expor'!$C$7:$C$223,0))),\"\")","v":""},{"$f":"IFERROR(IF(INDEX('Coverage Indicator_Import-Expor'!R$7:R$223,MATCH($B51,'Coverage Indicator_Import-Expor'!$C$7:$C$223,0))=\"\",\"\",INDEX('Coverage Indicator_Import-Expor'!R$7:R$223,MATCH($B51,'Coverage Indicator_Import-Expor'!$C$7:$C$223,0))),\"\")","v":""},{"$f":"IFERROR(IF(INDEX('Coverage Indicator_Import-Expor'!S$7:S$223,MATCH($B51,'Coverage Indicator_Import-Expor'!$C$7:$C$223,0))=\"\",\"\",INDEX('Coverage Indicator_Import-Expor'!S$7:S$223,MATCH($B51,'Coverage Indicator_Import-Expor'!$C$7:$C$223,0))),\"\")","v":""},{"$f":"IFERROR(IF(INDEX('Coverage Indicator_Import-Expor'!T$7:T$223,MATCH($B51,'Coverage Indicator_Import-Expor'!$C$7:$C$223,0))=\"\",\"\",INDEX('Coverage Indicator_Import-Expor'!T$7:T$223,MATCH($B51,'Coverage Indicator_Import-Expor'!$C$7:$C$223,0))),\"\")","v":""},{"$f":"IFERROR(IF(INDEX('Coverage Indicator_Import-Expor'!U$7:U$223,MATCH($B51,'Coverage Indicator_Import-Expor'!$C$7:$C$223,0))=\"\",\"\",INDEX('Coverage Indicator_Import-Expor'!U$7:U$223,MATCH($B51,'Coverage Indicator_Import-Expor'!$C$7:$C$223,0))),\"\")","v":""},null,null,"",null," ",null,"No Results Reported",null,null,"",null," ",null,null,"No Results Reported",null,null,""," ",null,"No Results Reported"]
[42,"Coverage42",{"$f":"IFERROR(INDEX('Coverage Indicator_Import-Expor'!$D$7:$D$223,MATCH(B52,'Coverage Indicator_Import-Expor'!$C$7:$C$223,0)),\"\")","v":""},{"$f":"IFERROR(INDEX('Coverage Indicator_Import-Expor'!$E$7:$E$223,MATCH(B52,'Coverage Indicator_Import-Expor'!$C$7:$C$223,0)),\"\")","v":""},{"$f":"IFERROR(IF(INDEX('Coverage Indicator_Import-Expor'!K$7:K$223,MATCH($B52,'Coverage Indicator_Import-Expor'!$C$7:$C$223,0))=\"\",\"\",INDEX('Coverage Indicator_Import-Expor'!K$7:K$223,MATCH($B52,'Coverage Indicator_Import-Expor'!$C$7:$C$223,0))),\"\")","v":""},{"$f":"IFERROR(IF(INDEX('Coverage Indicator_Import-Expor'!L$7:L$223,MATCH($B52,'Coverage Indicator_Import-Expor'!$C$7:$C$223,0))=\"\",\"\",INDEX('Coverage Indicator_Import-Expor'!L$7:L$223,MATCH($B52,'Coverage Indicator_Import-Expor'!$C$7:$C$223,0))),\"\")","v":""},{"$f":"IFERROR(IF(INDEX('Coverage Indicator_Import-Expor'!AR$7:AR$223,MATCH($B52,'Coverage Indicator_Import-Expor'!$C$7:$C$223,0))=\"\",\"\",INDEX('Coverage Indicator_Import-Expor'!AR$7:AR$223,MATCH($B52,'Coverage Indicator_Import-Expor'!$C$7:$C$223,0))),\"\")","v":""},{"$f":"IFERROR(IF(INDEX('Coverage Indicator_Import-Expor'!AS$7:AS$223,MATCH($B52,'Coverage Indicator_Import-Expor'!$C$7:$C$223,0))=\"\",\"\",INDEX('Coverage Indicator_Import-Expor'!AS$7:AS$223,MATCH($B52,'Coverage Indicator_Import-Expor'!$C$7:$C$223,0))),\"\")","v":""},{"$f":"IFERROR(IF(INDEX('Coverage Indicator_Import-Expor'!N$7:N$223,MATCH($B52,'Coverage Indicator_Import-Expor'!$C$7:$C$223,0))=\"\",\"\",INDEX('Coverage Indicator_Import-Expor'!N$7:N$223,MATCH($B52,'Coverage Indicator_Import-Expor'!$C$7:$C$223,0))),\"\")","v":""},{"$f":"IFERROR(IF(INDEX('Coverage Indicator_Import-Expor'!O$7:O$223,MATCH($B52,'Coverage Indicator_Import-Expor'!$C$7:$C$223,0))=\"\",\"\",INDEX('Coverage Indicator_Import-Expor'!O$7:O$223,MATCH($B52,'Coverage Indicator_Import-Expor'!$C$7:$C$223,0))),\"\")","v":""},{"$f":"IFERROR(IF(INDEX('Coverage Indicator_Import-Expor'!P$7:P$223,MATCH($B52,'Coverage Indicator_Import-Expor'!$C$7:$C$223,0))=\"\",\"\",INDEX('Coverage Indicator_Import-Expor'!P$7:P$223,MATCH($B52,'Coverage Indicator_Import-Expor'!$C$7:$C$223,0))),\"\")","v":""},{"$f":"IFERROR(IF(INDEX('Coverage Indicator_Import-Expor'!Q$7:Q$223,MATCH($B52,'Coverage Indicator_Import-Expor'!$C$7:$C$223,0))=\"\",\"\",INDEX('Coverage Indicator_Import-Expor'!Q$7:Q$223,MATCH($B52,'Coverage Indicator_Import-Expor'!$C$7:$C$223,0))),\"\")","v":""},{"$f":"IFERROR(IF(INDEX('Coverage Indicator_Import-Expor'!R$7:R$223,MATCH($B52,'Coverage Indicator_Import-Expor'!$C$7:$C$223,0))=\"\",\"\",INDEX('Coverage Indicator_Import-Expor'!R$7:R$223,MATCH($B52,'Coverage Indicator_Import-Expor'!$C$7:$C$223,0))),\"\")","v":""},{"$f":"IFERROR(IF(INDEX('Coverage Indicator_Import-Expor'!S$7:S$223,MATCH($B52,'Coverage Indicator_Import-Expor'!$C$7:$C$223,0))=\"\",\"\",INDEX('Coverage Indicator_Import-Expor'!S$7:S$223,MATCH($B52,'Coverage Indicator_Import-Expor'!$C$7:$C$223,0))),\"\")","v":""},{"$f":"IFERROR(IF(INDEX('Coverage Indicator_Import-Expor'!T$7:T$223,MATCH($B52,'Coverage Indicator_Import-Expor'!$C$7:$C$223,0))=\"\",\"\",INDEX('Coverage Indicator_Import-Expor'!T$7:T$223,MATCH($B52,'Coverage Indicator_Import-Expor'!$C$7:$C$223,0))),\"\")","v":""},{"$f":"IFERROR(IF(INDEX('Coverage Indicator_Import-Expor'!U$7:U$223,MATCH($B52,'Coverage Indicator_Import-Expor'!$C$7:$C$223,0))=\"\",\"\",INDEX('Coverage Indicator_Import-Expor'!U$7:U$223,MATCH($B52,'Coverage Indicator_Import-Expor'!$C$7:$C$223,0))),\"\")","v":""},null,null,"",null," ",null,"No Results Reported",null,null,"",null," ",null,null,"No Results Reported",null,null,""," ",null,"No Results Reported"]
[43,"Coverage43",{"$f":"IFERROR(INDEX('Coverage Indicator_Import-Expor'!$D$7:$D$223,MATCH(B53,'Coverage Indicator_Import-Expor'!$C$7:$C$223,0)),\"\")","v":""},{"$f":"IFERROR(INDEX('Coverage Indicator_Import-Expor'!$E$7:$E$223,MATCH(B53,'Coverage Indicator_Import-Expor'!$C$7:$C$223,0)),\"\")","v":""},{"$f":"IFERROR(IF(INDEX('Coverage Indicator_Import-Expor'!K$7:K$223,MATCH($B53,'Coverage Indicator_Import-Expor'!$C$7:$C$223,0))=\"\",\"\",INDEX('Coverage Indicator_Import-Expor'!K$7:K$223,MATCH($B53,'Coverage Indicator_Import-Expor'!$C$7:$C$223,0))),\"\")","v":""},{"$f":"IFERROR(IF(INDEX('Coverage Indicator_Import-Expor'!L$7:L$223,MATCH($B53,'Coverage Indicator_Import-Expor'!$C$7:$C$223,0))=\"\",\"\",INDEX('Coverage Indicator_Import-Expor'!L$7:L$223,MATCH($B53,'Coverage Indicator_Import-Expor'!$C$7:$C$223,0))),\"\")","v":""},{"$f":"IFERROR(IF(INDEX('Coverage Indicator_Import-Expor'!AR$7:AR$223,MATCH($B53,'Coverage Indicator_Import-Expor'!$C$7:$C$223,0))=\"\",\"\",INDEX('Coverage Indicator_Import-Expor'!AR$7:AR$223,MATCH($B53,'Coverage Indicator_Import-Expor'!$C$7:$C$223,0))),\"\")","v":""},{"$f":"IFERROR(IF(INDEX('Coverage Indicator_Import-Expor'!AS$7:AS$223,MATCH($B53,'Coverage Indicator_Import-Expor'!$C$7:$C$223,0))=\"\",\"\",INDEX('Coverage Indicator_Import-Expor'!AS$7:AS$223,MATCH($B53,'Coverage Indicator_Import-Expor'!$C$7:$C$223,0))),\"\")","v":""},{"$f":"IFERROR(IF(INDEX('Coverage Indicator_Import-Expor'!N$7:N$223,MATCH($B53,'Coverage Indicator_Import-Expor'!$C$7:$C$223,0))=\"\",\"\",INDEX('Coverage Indicator_Import-Expor'!N$7:N$223,MATCH($B53,'Coverage Indicator_Import-Expor'!$C$7:$C$223,0))),\"\")","v":""},{"$f":"IFERROR(IF(INDEX('Coverage Indicator_Import-Expor'!O$7:O$223,MATCH($B53,'Coverage Indicator_Import-Expor'!$C$7:$C$223,0))=\"\",\"\",INDEX('Coverage Indicator_Import-Expor'!O$7:O$223,MATCH($B53,'Coverage Indicator_Import-Expor'!$C$7:$C$223,0))),\"\")","v":""},{"$f":"IFERROR(IF(INDEX('Coverage Indicator_Import-Expor'!P$7:P$223,MATCH($B53,'Coverage Indicator_Import-Expor'!$C$7:$C$223,0))=\"\",\"\",INDEX('Coverage Indicator_Import-Expor'!P$7:P$223,MATCH($B53,'Coverage Indicator_Import-Expor'!$C$7:$C$223,0))),\"\")","v":""},{"$f":"IFERROR(IF(INDEX('Coverage Indicator_Import-Expor'!Q$7:Q$223,MATCH($B53,'Coverage Indicator_Import-Expor'!$C$7:$C$223,0))=\"\",\"\",INDEX('Coverage Indicator_Import-Expor'!Q$7:Q$223,MATCH($B53,'Coverage Indicator_Import-Expor'!$C$7:$C$223,0))),\"\")","v":""},{"$f":"IFERROR(IF(INDEX('Coverage Indicator_Import-Expor'!R$7:R$223,MATCH($B53,'Coverage Indicator_Import-Expor'!$C$7:$C$223,0))=\"\",\"\",INDEX('Coverage Indicator_Import-Expor'!R$7:R$223,MATCH($B53,'Coverage Indicator_Import-Expor'!$C$7:$C$223,0))),\"\")","v":""},{"$f":"IFERROR(IF(INDEX('Coverage Indicator_Import-Expor'!S$7:S$223,MATCH($B53,'Coverage Indicator_Import-Expor'!$C$7:$C$223,0))=\"\",\"\",INDEX('Coverage Indicator_Import-Expor'!S$7:S$223,MATCH($B53,'Coverage Indicator_Import-Expor'!$C$7:$C$223,0))),\"\")","v":""},{"$f":"IFERROR(IF(INDEX('Coverage Indicator_Import-Expor'!T$7:T$223,MATCH($B53,'Coverage Indicator_Import-Expor'!$C$7:$C$223,0))=\"\",\"\",INDEX('Coverage Indicator_Import-Expor'!T$7:T$223,MATCH($B53,'Coverage Indicator_Import-Expor'!$C$7:$C$223,0))),\"\")","v":""},{"$f":"IFERROR(IF(INDEX('Coverage Indicator_Import-Expor'!U$7:U$223,MATCH($B53,'Coverage Indicator_Import-Expor'!$C$7:$C$223,0))=\"\",\"\",INDEX('Coverage Indicator_Import-Expor'!U$7:U$223,MATCH($B53,'Coverage Indicator_Import-Expor'!$C$7:$C$223,0))),\"\")","v":""},null,null,"",null," ",null,"No Results Reported",null,null,"",null," ",null,null,"No Results Reported",null,null,""," ",null,"No Results Reported"]
[44,"Coverage44",{"$f":"IFERROR(INDEX('Coverage Indicator_Import-Expor'!$D$7:$D$223,MATCH(B54,'Coverage Indicator_Import-Expor'!$C$7:$C$223,0)),\"\")","v":""},{"$f":"IFERROR(INDEX('Coverage Indicator_Import-Expor'!$E$7:$E$223,MATCH(B54,'Coverage Indicator_Import-Expor'!$C$7:$C$223,0)),\"\")","v":""},{"$f":"IFERROR(IF(INDEX('Coverage Indicator_Import-Expor'!K$7:K$223,MATCH($B54,'Coverage Indicator_Import-Expor'!$C$7:$C$223,0))=\"\",\"\",INDEX('Coverage Indicator_Import-Expor'!K$7:K$223,MATCH($B54,'Coverage Indicator_Import-Expor'!$C$7:$C$223,0))),\"\")","v":""},{"$f":"IFERROR(IF(INDEX('Coverage Indicator_Import-Expor'!L$7:L$223,MATCH($B54,'Coverage Indicator_Import-Expor'!$C$7:$C$223,0))=\"\",\"\",INDEX('Coverage Indicator_Import-Expor'!L$7:L$223,MATCH($B54,'Coverage Indicator_Import-Expor'!$C$7:$C$223,0))),\"\")","v":""},{"$f":"IFERROR(IF(INDEX('Coverage Indicator_Import-Expor'!AR$7:AR$223,MATCH($B54,'Coverage Indicator_Import-Expor'!$C$7:$C$223,0))=\"\",\"\",INDEX('Coverage Indicator_Import-Expor'!AR$7:AR$223,MATCH($B54,'Coverage Indicator_Import-Expor'!$C$7:$C$223,0))),\"\")","v":""},{"$f":"IFERROR(IF(INDEX('Coverage Indicator_Import-Expor'!AS$7:AS$223,MATCH($B54,'Coverage Indicator_Import-Expor'!$C$7:$C$223,0))=\"\",\"\",INDEX('Coverage Indicator_Import-Expor'!AS$7:AS$223,MATCH($B54,'Coverage Indicator_Import-Expor'!$C$7:$C$223,0))),\"\")","v":""},{"$f":"IFERROR(IF(INDEX('Coverage Indicator_Import-Expor'!N$7:N$223,MATCH($B54,'Coverage Indicator_Import-Expor'!$C$7:$C$223,0))=\"\",\"\",INDEX('Coverage Indicator_Import-Expor'!N$7:N$223,MATCH($B54,'Coverage Indicator_Import-Expor'!$C$7:$C$223,0))),\"\")","v":""},{"$f":"IFERROR(IF(INDEX('Coverage Indicator_Import-Expor'!O$7:O$223,MATCH($B54,'Coverage Indicator_Import-Expor'!$C$7:$C$223,0))=\"\",\"\",INDEX('Coverage Indicator_Import-Expor'!O$7:O$223,MATCH($B54,'Coverage Indicator_Import-Expor'!$C$7:$C$223,0))),\"\")","v":""},{"$f":"IFERROR(IF(INDEX('Coverage Indicator_Import-Expor'!P$7:P$223,MATCH($B54,'Coverage Indicator_Import-Expor'!$C$7:$C$223,0))=\"\",\"\",INDEX('Coverage Indicator_Import-Expor'!P$7:P$223,MATCH($B54,'Coverage Indicator_Import-Expor'!$C$7:$C$223,0))),\"\")","v":""},{"$f":"IFERROR(IF(INDEX('Coverage Indicator_Import-Expor'!Q$7:Q$223,MATCH($B54,'Coverage Indicator_Import-Expor'!$C$7:$C$223,0))=\"\",\"\",INDEX('Coverage Indicator_Import-Expor'!Q$7:Q$223,MATCH($B54,'Coverage Indicator_Import-Expor'!$C$7:$C$223,0))),\"\")","v":""},{"$f":"IFERROR(IF(INDEX('Coverage Indicator_Import-Expor'!R$7:R$223,MATCH($B54,'Coverage Indicator_Import-Expor'!$C$7:$C$223,0))=\"\",\"\",INDEX('Coverage Indicator_Import-Expor'!R$7:R$223,MATCH($B54,'Coverage Indicator_Import-Expor'!$C$7:$C$223,0))),\"\")","v":""},{"$f":"IFERROR(IF(INDEX('Coverage Indicator_Import-Expor'!S$7:S$223,MATCH($B54,'Coverage Indicator_Import-Expor'!$C$7:$C$223,0))=\"\",\"\",INDEX('Coverage Indicator_Import-Expor'!S$7:S$223,MATCH($B54,'Coverage Indicator_Import-Expor'!$C$7:$C$223,0))),\"\")","v":""},{"$f":"IFERROR(IF(INDEX('Coverage Indicator_Import-Expor'!T$7:T$223,MATCH($B54,'Coverage Indicator_Import-Expor'!$C$7:$C$223,0))=\"\",\"\",INDEX('Coverage Indicator_Import-Expor'!T$7:T$223,MATCH($B54,'Coverage Indicator_Import-Expor'!$C$7:$C$223,0))),\"\")","v":""},{"$f":"IFERROR(IF(INDEX('Coverage Indicator_Import-Expor'!U$7:U$223,MATCH($B54,'Coverage Indicator_Import-Expor'!$C$7:$C$223,0))=\"\",\"\",INDEX('Coverage Indicator_Import-Expor'!U$7:U$223,MATCH($B54,'Coverage Indicator_Import-Expor'!$C$7:$C$223,0))),\"\")","v":""},null,null,"",null," ",null,"No Results Reported",null,null,"",null," ",null,null,"No Results Reported",null,null,""," ",null,"No Results Reported"]
[45,"Coverage45",{"$f":"IFERROR(INDEX('Coverage Indicator_Import-Expor'!$D$7:$D$223,MATCH(B55,'Coverage Indicator_Import-Expor'!$C$7:$C$223,0)),\"\")","v":""},{"$f":"IFERROR(INDEX('Coverage Indicator_Import-Expor'!$E$7:$E$223,MATCH(B55,'Coverage Indicator_Import-Expor'!$C$7:$C$223,0)),\"\")","v":""},{"$f":"IFERROR(IF(INDEX('Coverage Indicator_Import-Expor'!K$7:K$223,MATCH($B55,'Coverage Indicator_Import-Expor'!$C$7:$C$223,0))=\"\",\"\",INDEX('Coverage Indicator_Import-Expor'!K$7:K$223,MATCH($B55,'Coverage Indicator_Import-Expor'!$C$7:$C$223,0))),\"\")","v":""},{"$f":"IFERROR(IF(INDEX('Coverage Indicator_Import-Expor'!L$7:L$223,MATCH($B55,'Coverage Indicator_Import-Expor'!$C$7:$C$223,0))=\"\",\"\",INDEX('Coverage Indicator_Import-Expor'!L$7:L$223,MATCH($B55,'Coverage Indicator_Import-Expor'!$C$7:$C$223,0))),\"\")","v":""},{"$f":"IFERROR(IF(INDEX('Coverage Indicator_Import-Expor'!AR$7:AR$223,MATCH($B55,'Coverage Indicator_Import-Expor'!$C$7:$C$223,0))=\"\",\"\",INDEX('Coverage Indicator_Import-Expor'!AR$7:AR$223,MATCH($B55,'Coverage Indicator_Import-Expor'!$C$7:$C$223,0))),\"\")","v":""},{"$f":"IFERROR(IF(INDEX('Coverage Indicator_Import-Expor'!AS$7:AS$223,MATCH($B55,'Coverage Indicator_Import-Expor'!$C$7:$C$223,0))=\"\",\"\",INDEX('Coverage Indicator_Import-Expor'!AS$7:AS$223,MATCH($B55,'Coverage Indicator_Import-Expor'!$C$7:$C$223,0))),\"\")","v":""},{"$f":"IFERROR(IF(INDEX('Coverage Indicator_Import-Expor'!N$7:N$223,MATCH($B55,'Coverage Indicator_Import-Expor'!$C$7:$C$223,0))=\"\",\"\",INDEX('Coverage Indicator_Import-Expor'!N$7:N$223,MATCH($B55,'Coverage Indicator_Import-Expor'!$C$7:$C$223,0))),\"\")","v":""},{"$f":"IFERROR(IF(INDEX('Coverage Indicator_Import-Expor'!O$7:O$223,MATCH($B55,'Coverage Indicator_Import-Expor'!$C$7:$C$223,0))=\"\",\"\",INDEX('Coverage Indicator_Import-Expor'!O$7:O$223,MATCH($B55,'Coverage Indicator_Import-Expor'!$C$7:$C$223,0))),\"\")","v":""},{"$f":"IFERROR(IF(INDEX('Coverage Indicator_Import-Expor'!P$7:P$223,MATCH($B55,'Coverage Indicator_Import-Expor'!$C$7:$C$223,0))=\"\",\"\",INDEX('Coverage Indicator_Import-Expor'!P$7:P$223,MATCH($B55,'Coverage Indicator_Import-Expor'!$C$7:$C$223,0))),\"\")","v":""},{"$f":"IFERROR(IF(INDEX('Coverage Indicator_Import-Expor'!Q$7:Q$223,MATCH($B55,'Coverage Indicator_Import-Expor'!$C$7:$C$223,0))=\"\",\"\",INDEX('Coverage Indicator_Import-Expor'!Q$7:Q$223,MATCH($B55,'Coverage Indicator_Import-Expor'!$C$7:$C$223,0))),\"\")","v":""},{"$f":"IFERROR(IF(INDEX('Coverage Indicator_Import-Expor'!R$7:R$223,MATCH($B55,'Coverage Indicator_Import-Expor'!$C$7:$C$223,0))=\"\",\"\",INDEX('Coverage Indicator_Import-Expor'!R$7:R$223,MATCH($B55,'Coverage Indicator_Import-Expor'!$C$7:$C$223,0))),\"\")","v":""},{"$f":"IFERROR(IF(INDEX('Coverage Indicator_Import-Expor'!S$7:S$223,MATCH($B55,'Coverage Indicator_Import-Expor'!$C$7:$C$223,0))=\"\",\"\",INDEX('Coverage Indicator_Import-Expor'!S$7:S$223,MATCH($B55,'Coverage Indicator_Import-Expor'!$C$7:$C$223,0))),\"\")","v":""},{"$f":"IFERROR(IF(INDEX('Coverage Indicator_Import-Expor'!T$7:T$223,MATCH($B55,'Coverage Indicator_Import-Expor'!$C$7:$C$223,0))=\"\",\"\",INDEX('Coverage Indicator_Import-Expor'!T$7:T$223,MATCH($B55,'Coverage Indicator_Import-Expor'!$C$7:$C$223,0))),\"\")","v":""},{"$f":"IFERROR(IF(INDEX('Coverage Indicator_Import-Expor'!U$7:U$223,MATCH($B55,'Coverage Indicator_Import-Expor'!$C$7:$C$223,0))=\"\",\"\",INDEX('Coverage Indicator_Import-Expor'!U$7:U$223,MATCH($B55,'Coverage Indicator_Import-Expor'!$C$7:$C$223,0))),\"\")","v":""},null,null,"",null," ",null,"No Results Reported",null,null,"",null," ",null,null,"No Results Reported",null,null,""," ",null,"No Results Reported"]
[46,"Coverage46",{"$f":"IFERROR(INDEX('Coverage Indicator_Import-Expor'!$D$7:$D$223,MATCH(B56,'Coverage Indicator_Import-Expor'!$C$7:$C$223,0)),\"\")","v":""},{"$f":"IFERROR(INDEX('Coverage Indicator_Import-Expor'!$E$7:$E$223,MATCH(B56,'Coverage Indicator_Import-Expor'!$C$7:$C$223,0)),\"\")","v":""},{"$f":"IFERROR(IF(INDEX('Coverage Indicator_Import-Expor'!K$7:K$223,MATCH($B56,'Coverage Indicator_Import-Expor'!$C$7:$C$223,0))=\"\",\"\",INDEX('Coverage Indicator_Import-Expor'!K$7:K$223,MATCH($B56,'Coverage Indicator_Import-Expor'!$C$7:$C$223,0))),\"\")","v":""},{"$f":"IFERROR(IF(INDEX('Coverage Indicator_Import-Expor'!L$7:L$223,MATCH($B56,'Coverage Indicator_Import-Expor'!$C$7:$C$223,0))=\"\",\"\",INDEX('Coverage Indicator_Import-Expor'!L$7:L$223,MATCH($B56,'Coverage Indicator_Import-Expor'!$C$7:$C$223,0))),\"\")","v":""},{"$f":"IFERROR(IF(INDEX('Coverage Indicator_Import-Expor'!AR$7:AR$223,MATCH($B56,'Coverage Indicator_Import-Expor'!$C$7:$C$223,0))=\"\",\"\",INDEX('Coverage Indicator_Import-Expor'!AR$7:AR$223,MATCH($B56,'Coverage Indicator_Import-Expor'!$C$7:$C$223,0))),\"\")","v":""},{"$f":"IFERROR(IF(INDEX('Coverage Indicator_Import-Expor'!AS$7:AS$223,MATCH($B56,'Coverage Indicator_Import-Expor'!$C$7:$C$223,0))=\"\",\"\",INDEX('Coverage Indicator_Import-Expor'!AS$7:AS$223,MATCH($B56,'Coverage Indicator_Import-Expor'!$C$7:$C$223,0))),\"\")","v":""},{"$f":"IFERROR(IF(INDEX('Coverage Indicator_Import-Expor'!N$7:N$223,MATCH($B56,'Coverage Indicator_Import-Expor'!$C$7:$C$223,0))=\"\",\"\",INDEX('Coverage Indicator_Import-Expor'!N$7:N$223,MATCH($B56,'Coverage Indicator_Import-Expor'!$C$7:$C$223,0))),\"\")","v":""},{"$f":"IFERROR(IF(INDEX('Coverage Indicator_Import-Expor'!O$7:O$223,MATCH($B56,'Coverage Indicator_Import-Expor'!$C$7:$C$223,0))=\"\",\"\",INDEX('Coverage Indicator_Import-Expor'!O$7:O$223,MATCH($B56,'Coverage Indicator_Import-Expor'!$C$7:$C$223,0))),\"\")","v":""},{"$f":"IFERROR(IF(INDEX('Coverage Indicator_Import-Expor'!P$7:P$223,MATCH($B56,'Coverage Indicator_Import-Expor'!$C$7:$C$223,0))=\"\",\"\",INDEX('Coverage Indicator_Import-Expor'!P$7:P$223,MATCH($B56,'Coverage Indicator_Import-Expor'!$C$7:$C$223,0))),\"\")","v":""},{"$f":"IFERROR(IF(INDEX('Coverage Indicator_Import-Expor'!Q$7:Q$223,MATCH($B56,'Coverage Indicator_Import-Expor'!$C$7:$C$223,0))=\"\",\"\",INDEX('Coverage Indicator_Import-Expor'!Q$7:Q$223,MATCH($B56,'Coverage Indicator_Import-Expor'!$C$7:$C$223,0))),\"\")","v":""},{"$f":"IFERROR(IF(INDEX('Coverage Indicator_Import-Expor'!R$7:R$223,MATCH($B56,'Coverage Indicator_Import-Expor'!$C$7:$C$223,0))=\"\",\"\",INDEX('Coverage Indicator_Import-Expor'!R$7:R$223,MATCH($B56,'Coverage Indicator_Import-Expor'!$C$7:$C$223,0))),\"\")","v":""},{"$f":"IFERROR(IF(INDEX('Coverage Indicator_Import-Expor'!S$7:S$223,MATCH($B56,'Coverage Indicator_Import-Expor'!$C$7:$C$223,0))=\"\",\"\",INDEX('Coverage Indicator_Import-Expor'!S$7:S$223,MATCH($B56,'Coverage Indicator_Import-Expor'!$C$7:$C$223,0))),\"\")","v":""},{"$f":"IFERROR(IF(INDEX('Coverage Indicator_Import-Expor'!T$7:T$223,MATCH($B56,'Coverage Indicator_Import-Expor'!$C$7:$C$223,0))=\"\",\"\",INDEX('Coverage Indicator_Import-Expor'!T$7:T$223,MATCH($B56,'Coverage Indicator_Import-Expor'!$C$7:$C$223,0))),\"\")","v":""},{"$f":"IFERROR(IF(INDEX('Coverage Indicator_Import-Expor'!U$7:U$223,MATCH($B56,'Coverage Indicator_Import-Expor'!$C$7:$C$223,0))=\"\",\"\",INDEX('Coverage Indicator_Import-Expor'!U$7:U$223,MATCH($B56,'Coverage Indicator_Import-Expor'!$C$7:$C$223,0))),\"\")","v":""},null,null,"",null," ",null,"No Results Reported",null,null,"",null," ",null,null,"No Results Reported",null,null,""," ",null,"No Results Reported"]
[47,"Coverage47",{"$f":"IFERROR(INDEX('Coverage Indicator_Import-Expor'!$D$7:$D$223,MATCH(B57,'Coverage Indicator_Import-Expor'!$C$7:$C$223,0)),\"\")","v":""},{"$f":"IFERROR(INDEX('Coverage Indicator_Import-Expor'!$E$7:$E$223,MATCH(B57,'Coverage Indicator_Import-Expor'!$C$7:$C$223,0)),\"\")","v":""},{"$f":"IFERROR(IF(INDEX('Coverage Indicator_Import-Expor'!K$7:K$223,MATCH($B57,'Coverage Indicator_Import-Expor'!$C$7:$C$223,0))=\"\",\"\",INDEX('Coverage Indicator_Import-Expor'!K$7:K$223,MATCH($B57,'Coverage Indicator_Import-Expor'!$C$7:$C$223,0))),\"\")","v":""},{"$f":"IFERROR(IF(INDEX('Coverage Indicator_Import-Expor'!L$7:L$223,MATCH($B57,'Coverage Indicator_Import-Expor'!$C$7:$C$223,0))=\"\",\"\",INDEX('Coverage Indicator_Import-Expor'!L$7:L$223,MATCH($B57,'Coverage Indicator_Import-Expor'!$C$7:$C$223,0))),\"\")","v":""},{"$f":"IFERROR(IF(INDEX('Coverage Indicator_Import-Expor'!AR$7:AR$223,MATCH($B57,'Coverage Indicator_Import-Expor'!$C$7:$C$223,0))=\"\",\"\",INDEX('Coverage Indicator_Import-Expor'!AR$7:AR$223,MATCH($B57,'Coverage Indicator_Import-Expor'!$C$7:$C$223,0))),\"\")","v":""},{"$f":"IFERROR(IF(INDEX('Coverage Indicator_Import-Expor'!AS$7:AS$223,MATCH($B57,'Coverage Indicator_Import-Expor'!$C$7:$C$223,0))=\"\",\"\",INDEX('Coverage Indicator_Import-Expor'!AS$7:AS$223,MATCH($B57,'Coverage Indicator_Import-Expor'!$C$7:$C$223,0))),\"\")","v":""},{"$f":"IFERROR(IF(INDEX('Coverage Indicator_Import-Expor'!N$7:N$223,MATCH($B57,'Coverage Indicator_Import-Expor'!$C$7:$C$223,0))=\"\",\"\",INDEX('Coverage Indicator_Import-Expor'!N$7:N$223,MATCH($B57,'Coverage Indicator_Import-Expor'!$C$7:$C$223,0))),\"\")","v":""},{"$f":"IFERROR(IF(INDEX('Coverage Indicator_Import-Expor'!O$7:O$223,MATCH($B57,'Coverage Indicator_Import-Expor'!$C$7:$C$223,0))=\"\",\"\",INDEX('Coverage Indicator_Import-Expor'!O$7:O$223,MATCH($B57,'Coverage Indicator_Import-Expor'!$C$7:$C$223,0))),\"\")","v":""},{"$f":"IFERROR(IF(INDEX('Coverage Indicator_Import-Expor'!P$7:P$223,MATCH($B57,'Coverage Indicator_Import-Expor'!$C$7:$C$223,0))=\"\",\"\",INDEX('Coverage Indicator_Import-Expor'!P$7:P$223,MATCH($B57,'Coverage Indicator_Import-Expor'!$C$7:$C$223,0))),\"\")","v":""},{"$f":"IFERROR(IF(INDEX('Coverage Indicator_Import-Expor'!Q$7:Q$223,MATCH($B57,'Coverage Indicator_Import-Expor'!$C$7:$C$223,0))=\"\",\"\",INDEX('Coverage Indicator_Import-Expor'!Q$7:Q$223,MATCH($B57,'Coverage Indicator_Import-Expor'!$C$7:$C$223,0))),\"\")","v":""},{"$f":"IFERROR(IF(INDEX('Coverage Indicator_Import-Expor'!R$7:R$223,MATCH($B57,'Coverage Indicator_Import-Expor'!$C$7:$C$223,0))=\"\",\"\",INDEX('Coverage Indicator_Import-Expor'!R$7:R$223,MATCH($B57,'Coverage Indicator_Import-Expor'!$C$7:$C$223,0))),\"\")","v":""},{"$f":"IFERROR(IF(INDEX('Coverage Indicator_Import-Expor'!S$7:S$223,MATCH($B57,'Coverage Indicator_Import-Expor'!$C$7:$C$223,0))=\"\",\"\",INDEX('Coverage Indicator_Import-Expor'!S$7:S$223,MATCH($B57,'Coverage Indicator_Import-Expor'!$C$7:$C$223,0))),\"\")","v":""},{"$f":"IFERROR(IF(INDEX('Coverage Indicator_Import-Expor'!T$7:T$223,MATCH($B57,'Coverage Indicator_Import-Expor'!$C$7:$C$223,0))=\"\",\"\",INDEX('Coverage Indicator_Import-Expor'!T$7:T$223,MATCH($B57,'Coverage Indicator_Import-Expor'!$C$7:$C$223,0))),\"\")","v":""},{"$f":"IFERROR(IF(INDEX('Coverage Indicator_Import-Expor'!U$7:U$223,MATCH($B57,'Coverage Indicator_Import-Expor'!$C$7:$C$223,0))=\"\",\"\",INDEX('Coverage Indicator_Import-Expor'!U$7:U$223,MATCH($B57,'Coverage Indicator_Import-Expor'!$C$7:$C$223,0))),\"\")","v":""},null,null,"",null," ",null,"No Results Reported",null,null,"",null," ",null,null,"No Results Reported",null,null,""," ",null,"No Results Reported"]
[48,"Coverage48",{"$f":"IFERROR(INDEX('Coverage Indicator_Import-Expor'!$D$7:$D$223,MATCH(B58,'Coverage Indicator_Import-Expor'!$C$7:$C$223,0)),\"\")","v":""},{"$f":"IFERROR(INDEX('Coverage Indicator_Import-Expor'!$E$7:$E$223,MATCH(B58,'Coverage Indicator_Import-Expor'!$C$7:$C$223,0)),\"\")","v":""},{"$f":"IFERROR(IF(INDEX('Coverage Indicator_Import-Expor'!K$7:K$223,MATCH($B58,'Coverage Indicator_Import-Expor'!$C$7:$C$223,0))=\"\",\"\",INDEX('Coverage Indicator_Import-Expor'!K$7:K$223,MATCH($B58,'Coverage Indicator_Import-Expor'!$C$7:$C$223,0))),\"\")","v":""},{"$f":"IFERROR(IF(INDEX('Coverage Indicator_Import-Expor'!L$7:L$223,MATCH($B58,'Coverage Indicator_Import-Expor'!$C$7:$C$223,0))=\"\",\"\",INDEX('Coverage Indicator_Import-Expor'!L$7:L$223,MATCH($B58,'Coverage Indicator_Import-Expor'!$C$7:$C$223,0))),\"\")","v":""},{"$f":"IFERROR(IF(INDEX('Coverage Indicator_Import-Expor'!AR$7:AR$223,MATCH($B58,'Coverage Indicator_Import-Expor'!$C$7:$C$223,0))=\"\",\"\",INDEX('Coverage Indicator_Import-Expor'!AR$7:AR$223,MATCH($B58,'Coverage Indicator_Import-Expor'!$C$7:$C$223,0))),\"\")","v":""},{"$f":"IFERROR(IF(INDEX('Coverage Indicator_Import-Expor'!AS$7:AS$223,MATCH($B58,'Coverage Indicator_Import-Expor'!$C$7:$C$223,0))=\"\",\"\",INDEX('Coverage Indicator_Import-Expor'!AS$7:AS$223,MATCH($B58,'Coverage Indicator_Import-Expor'!$C$7:$C$223,0))),\"\")","v":""},{"$f":"IFERROR(IF(INDEX('Coverage Indicator_Import-Expor'!N$7:N$223,MATCH($B58,'Coverage Indicator_Import-Expor'!$C$7:$C$223,0))=\"\",\"\",INDEX('Coverage Indicator_Import-Expor'!N$7:N$223,MATCH($B58,'Coverage Indicator_Import-Expor'!$C$7:$C$223,0))),\"\")","v":""},{"$f":"IFERROR(IF(INDEX('Coverage Indicator_Import-Expor'!O$7:O$223,MATCH($B58,'Coverage Indicator_Import-Expor'!$C$7:$C$223,0))=\"\",\"\",INDEX('Coverage Indicator_Import-Expor'!O$7:O$223,MATCH($B58,'Coverage Indicator_Import-Expor'!$C$7:$C$223,0))),\"\")","v":""},{"$f":"IFERROR(IF(INDEX('Coverage Indicator_Import-Expor'!P$7:P$223,MATCH($B58,'Coverage Indicator_Import-Expor'!$C$7:$C$223,0))=\"\",\"\",INDEX('Coverage Indicator_Import-Expor'!P$7:P$223,MATCH($B58,'Coverage Indicator_Import-Expor'!$C$7:$C$223,0))),\"\")","v":""},{"$f":"IFERROR(IF(INDEX('Coverage Indicator_Import-Expor'!Q$7:Q$223,MATCH($B58,'Coverage Indicator_Import-Expor'!$C$7:$C$223,0))=\"\",\"\",INDEX('Coverage Indicator_Import-Expor'!Q$7:Q$223,MATCH($B58,'Coverage Indicator_Import-Expor'!$C$7:$C$223,0))),\"\")","v":""},{"$f":"IFERROR(IF(INDEX('Coverage Indicator_Import-Expor'!R$7:R$223,MATCH($B58,'Coverage Indicator_Import-Expor'!$C$7:$C$223,0))=\"\",\"\",INDEX('Coverage Indicator_Import-Expor'!R$7:R$223,MATCH($B58,'Coverage Indicator_Import-Expor'!$C$7:$C$223,0))),\"\")","v":""},{"$f":"IFERROR(IF(INDEX('Coverage Indicator_Import-Expor'!S$7:S$223,MATCH($B58,'Coverage Indicator_Import-Expor'!$C$7:$C$223,0))=\"\",\"\",INDEX('Coverage Indicator_Import-Expor'!S$7:S$223,MATCH($B58,'Coverage Indicator_Import-Expor'!$C$7:$C$223,0))),\"\")","v":""},{"$f":"IFERROR(IF(INDEX('Coverage Indicator_Import-Expor'!T$7:T$223,MATCH($B58,'Coverage Indicator_Import-Expor'!$C$7:$C$223,0))=\"\",\"\",INDEX('Coverage Indicator_Import-Expor'!T$7:T$223,MATCH($B58,'Coverage Indicator_Import-Expor'!$C$7:$C$223,0))),\"\")","v":""},{"$f":"IFERROR(IF(INDEX('Coverage Indicator_Import-Expor'!U$7:U$223,MATCH($B58,'Coverage Indicator_Import-Expor'!$C$7:$C$223,0))=\"\",\"\",INDEX('Coverage Indicator_Import-Expor'!U$7:U$223,MATCH($B58,'Coverage Indicator_Import-Expor'!$C$7:$C$223,0))),\"\")","v":""},null,null,"",null," ",null,"No Results Reported",null,null,"",null," ",null,null,"No Results Reported",null,null,""," ",null,"No Results Reported"]
[49,"Coverage49",{"$f":"IFERROR(INDEX('Coverage Indicator_Import-Expor'!$D$7:$D$223,MATCH(B59,'Coverage Indicator_Import-Expor'!$C$7:$C$223,0)),\"\")","v":""},{"$f":"IFERROR(INDEX('Coverage Indicator_Import-Expor'!$E$7:$E$223,MATCH(B59,'Coverage Indicator_Import-Expor'!$C$7:$C$223,0)),\"\")","v":""},{"$f":"IFERROR(IF(INDEX('Coverage Indicator_Import-Expor'!K$7:K$223,MATCH($B59,'Coverage Indicator_Import-Expor'!$C$7:$C$223,0))=\"\",\"\",INDEX('Coverage Indicator_Import-Expor'!K$7:K$223,MATCH($B59,'Coverage Indicator_Import-Expor'!$C$7:$C$223,0))),\"\")","v":""},{"$f":"IFERROR(IF(INDEX('Coverage Indicator_Import-Expor'!L$7:L$223,MATCH($B59,'Coverage Indicator_Import-Expor'!$C$7:$C$223,0))=\"\",\"\",INDEX('Coverage Indicator_Import-Expor'!L$7:L$223,MATCH($B59,'Coverage Indicator_Import-Expor'!$C$7:$C$223,0))),\"\")","v":""},{"$f":"IFERROR(IF(INDEX('Coverage Indicator_Import-Expor'!AR$7:AR$223,MATCH($B59,'Coverage Indicator_Import-Expor'!$C$7:$C$223,0))=\"\",\"\",INDEX('Coverage Indicator_Import-Expor'!AR$7:AR$223,MATCH($B59,'Coverage Indicator_Import-Expor'!$C$7:$C$223,0))),\"\")","v":""},{"$f":"IFERROR(IF(INDEX('Coverage Indicator_Import-Expor'!AS$7:AS$223,MATCH($B59,'Coverage Indicator_Import-Expor'!$C$7:$C$223,0))=\"\",\"\",INDEX('Coverage Indicator_Import-Expor'!AS$7:AS$223,MATCH($B59,'Coverage Indicator_Import-Expor'!$C$7:$C$223,0))),\"\")","v":""},{"$f":"IFERROR(IF(INDEX('Coverage Indicator_Import-Expor'!N$7:N$223,MATCH($B59,'Coverage Indicator_Import-Expor'!$C$7:$C$223,0))=\"\",\"\",INDEX('Coverage Indicator_Import-Expor'!N$7:N$223,MATCH($B59,'Coverage Indicator_Import-Expor'!$C$7:$C$223,0))),\"\")","v":""},{"$f":"IFERROR(IF(INDEX('Coverage Indicator_Import-Expor'!O$7:O$223,MATCH($B59,'Coverage Indicator_Import-Expor'!$C$7:$C$223,0))=\"\",\"\",INDEX('Coverage Indicator_Import-Expor'!O$7:O$223,MATCH($B59,'Coverage Indicator_Import-Expor'!$C$7:$C$223,0))),\"\")","v":""},{"$f":"IFERROR(IF(INDEX('Coverage Indicator_Import-Expor'!P$7:P$223,MATCH($B59,'Coverage Indicator_Import-Expor'!$C$7:$C$223,0))=\"\",\"\",INDEX('Coverage Indicator_Import-Expor'!P$7:P$223,MATCH($B59,'Coverage Indicator_Import-Expor'!$C$7:$C$223,0))),\"\")","v":""},{"$f":"IFERROR(IF(INDEX('Coverage Indicator_Import-Expor'!Q$7:Q$223,MATCH($B59,'Coverage Indicator_Import-Expor'!$C$7:$C$223,0))=\"\",\"\",INDEX('Coverage Indicator_Import-Expor'!Q$7:Q$223,MATCH($B59,'Coverage Indicator_Import-Expor'!$C$7:$C$223,0))),\"\")","v":""},{"$f":"IFERROR(IF(INDEX('Coverage Indicator_Import-Expor'!R$7:R$223,MATCH($B59,'Coverage Indicator_Import-Expor'!$C$7:$C$223,0))=\"\",\"\",INDEX('Coverage Indicator_Import-Expor'!R$7:R$223,MATCH($B59,'Coverage Indicator_Import-Expor'!$C$7:$C$223,0))),\"\")","v":""},{"$f":"IFERROR(IF(INDEX('Coverage Indicator_Import-Expor'!S$7:S$223,MATCH($B59,'Coverage Indicator_Import-Expor'!$C$7:$C$223,0))=\"\",\"\",INDEX('Coverage Indicator_Import-Expor'!S$7:S$223,MATCH($B59,'Coverage Indicator_Import-Expor'!$C$7:$C$223,0))),\"\")","v":""},{"$f":"IFERROR(IF(INDEX('Coverage Indicator_Import-Expor'!T$7:T$223,MATCH($B59,'Coverage Indicator_Import-Expor'!$C$7:$C$223,0))=\"\",\"\",INDEX('Coverage Indicator_Import-Expor'!T$7:T$223,MATCH($B59,'Coverage Indicator_Import-Expor'!$C$7:$C$223,0))),\"\")","v":""},{"$f":"IFERROR(IF(INDEX('Coverage Indicator_Import-Expor'!U$7:U$223,MATCH($B59,'Coverage Indicator_Import-Expor'!$C$7:$C$223,0))=\"\",\"\",INDEX('Coverage Indicator_Import-Expor'!U$7:U$223,MATCH($B59,'Coverage Indicator_Import-Expor'!$C$7:$C$223,0))),\"\")","v":""},null,null,"",null," ",null,"No Results Reported",null,null,"",null," ",null,null,"No Results Reported",null,null,""," ",null,"No Results Reported"]
[50,"Coverage50",{"$f":"IFERROR(INDEX('Coverage Indicator_Import-Expor'!$D$7:$D$223,MATCH(B60,'Coverage Indicator_Import-Expor'!$C$7:$C$223,0)),\"\")","v":""},{"$f":"IFERROR(INDEX('Coverage Indicator_Import-Expor'!$E$7:$E$223,MATCH(B60,'Coverage Indicator_Import-Expor'!$C$7:$C$223,0)),\"\")","v":""},{"$f":"IFERROR(IF(INDEX('Coverage Indicator_Import-Expor'!K$7:K$223,MATCH($B60,'Coverage Indicator_Import-Expor'!$C$7:$C$223,0))=\"\",\"\",INDEX('Coverage Indicator_Import-Expor'!K$7:K$223,MATCH($B60,'Coverage Indicator_Import-Expor'!$C$7:$C$223,0))),\"\")","v":""},{"$f":"IFERROR(IF(INDEX('Coverage Indicator_Import-Expor'!L$7:L$223,MATCH($B60,'Coverage Indicator_Import-Expor'!$C$7:$C$223,0))=\"\",\"\",INDEX('Coverage Indicator_Import-Expor'!L$7:L$223,MATCH($B60,'Coverage Indicator_Import-Expor'!$C$7:$C$223,0))),\"\")","v":""},{"$f":"IFERROR(IF(INDEX('Coverage Indicator_Import-Expor'!AR$7:AR$223,MATCH($B60,'Coverage Indicator_Import-Expor'!$C$7:$C$223,0))=\"\",\"\",INDEX('Coverage Indicator_Import-Expor'!AR$7:AR$223,MATCH($B60,'Coverage Indicator_Import-Expor'!$C$7:$C$223,0))),\"\")","v":""},{"$f":"IFERROR(IF(INDEX('Coverage Indicator_Import-Expor'!AS$7:AS$223,MATCH($B60,'Coverage Indicator_Import-Expor'!$C$7:$C$223,0))=\"\",\"\",INDEX('Coverage Indicator_Import-Expor'!AS$7:AS$223,MATCH($B60,'Coverage Indicator_Import-Expor'!$C$7:$C$223,0))),\"\")","v":""},{"$f":"IFERROR(IF(INDEX('Coverage Indicator_Import-Expor'!N$7:N$223,MATCH($B60,'Coverage Indicator_Import-Expor'!$C$7:$C$223,0))=\"\",\"\",INDEX('Coverage Indicator_Import-Expor'!N$7:N$223,MATCH($B60,'Coverage Indicator_Import-Expor'!$C$7:$C$223,0))),\"\")","v":""},{"$f":"IFERROR(IF(INDEX('Coverage Indicator_Import-Expor'!O$7:O$223,MATCH($B60,'Coverage Indicator_Import-Expor'!$C$7:$C$223,0))=\"\",\"\",INDEX('Coverage Indicator_Import-Expor'!O$7:O$223,MATCH($B60,'Coverage Indicator_Import-Expor'!$C$7:$C$223,0))),\"\")","v":""},{"$f":"IFERROR(IF(INDEX('Coverage Indicator_Import-Expor'!P$7:P$223,MATCH($B60,'Coverage Indicator_Import-Expor'!$C$7:$C$223,0))=\"\",\"\",INDEX('Coverage Indicator_Import-Expor'!P$7:P$223,MATCH($B60,'Coverage Indicator_Import-Expor'!$C$7:$C$223,0))),\"\")","v":""},{"$f":"IFERROR(IF(INDEX('Coverage Indicator_Import-Expor'!Q$7:Q$223,MATCH($B60,'Coverage Indicator_Import-Expor'!$C$7:$C$223,0))=\"\",\"\",INDEX('Coverage Indicator_Import-Expor'!Q$7:Q$223,MATCH($B60,'Coverage Indicator_Import-Expor'!$C$7:$C$223,0))),\"\")","v":""},{"$f":"IFERROR(IF(INDEX('Coverage Indicator_Import-Expor'!R$7:R$223,MATCH($B60,'Coverage Indicator_Import-Expor'!$C$7:$C$223,0))=\"\",\"\",INDEX('Coverage Indicator_Import-Expor'!R$7:R$223,MATCH($B60,'Coverage Indicator_Import-Expor'!$C$7:$C$223,0))),\"\")","v":""},{"$f":"IFERROR(IF(INDEX('Coverage Indicator_Import-Expor'!S$7:S$223,MATCH($B60,'Coverage Indicator_Import-Expor'!$C$7:$C$223,0))=\"\",\"\",INDEX('Coverage Indicator_Import-Expor'!S$7:S$223,MATCH($B60,'Coverage Indicator_Import-Expor'!$C$7:$C$223,0))),\"\")","v":""},{"$f":"IFERROR(IF(INDEX('Coverage Indicator_Import-Expor'!T$7:T$223,MATCH($B60,'Coverage Indicator_Import-Expor'!$C$7:$C$223,0))=\"\",\"\",INDEX('Coverage Indicator_Import-Expor'!T$7:T$223,MATCH($B60,'Coverage Indicator_Import-Expor'!$C$7:$C$223,0))),\"\")","v":""},{"$f":"IFERROR(IF(INDEX('Coverage Indicator_Import-Expor'!U$7:U$223,MATCH($B60,'Coverage Indicator_Import-Expor'!$C$7:$C$223,0))=\"\",\"\",INDEX('Coverage Indicator_Import-Expor'!U$7:U$223,MATCH($B60,'Coverage Indicator_Import-Expor'!$C$7:$C$223,0))),\"\")","v":""},null,null,"",null," ",null,"No Results Reported",null,null,"",null," ",null,null,"No Results Reported",null,null,""," ",null,"No Results Reported"]
[51,"Coverage51",{"$f":"IFERROR(INDEX('Coverage Indicator_Import-Expor'!$D$7:$D$223,MATCH(B61,'Coverage Indicator_Import-Expor'!$C$7:$C$223,0)),\"\")","v":""},{"$f":"IFERROR(INDEX('Coverage Indicator_Import-Expor'!$E$7:$E$223,MATCH(B61,'Coverage Indicator_Import-Expor'!$C$7:$C$223,0)),\"\")","v":""},{"$f":"IFERROR(IF(INDEX('Coverage Indicator_Import-Expor'!K$7:K$223,MATCH($B61,'Coverage Indicator_Import-Expor'!$C$7:$C$223,0))=\"\",\"\",INDEX('Coverage Indicator_Import-Expor'!K$7:K$223,MATCH($B61,'Coverage Indicator_Import-Expor'!$C$7:$C$223,0))),\"\")","v":""},{"$f":"IFERROR(IF(INDEX('Coverage Indicator_Import-Expor'!L$7:L$223,MATCH($B61,'Coverage Indicator_Import-Expor'!$C$7:$C$223,0))=\"\",\"\",INDEX('Coverage Indicator_Import-Expor'!L$7:L$223,MATCH($B61,'Coverage Indicator_Import-Expor'!$C$7:$C$223,0))),\"\")","v":""},{"$f":"IFERROR(IF(INDEX('Coverage Indicator_Import-Expor'!AR$7:AR$223,MATCH($B61,'Coverage Indicator_Import-Expor'!$C$7:$C$223,0))=\"\",\"\",INDEX('Coverage Indicator_Import-Expor'!AR$7:AR$223,MATCH($B61,'Coverage Indicator_Import-Expor'!$C$7:$C$223,0))),\"\")","v":""},{"$f":"IFERROR(IF(INDEX('Coverage Indicator_Import-Expor'!AS$7:AS$223,MATCH($B61,'Coverage Indicator_Import-Expor'!$C$7:$C$223,0))=\"\",\"\",INDEX('Coverage Indicator_Import-Expor'!AS$7:AS$223,MATCH($B61,'Coverage Indicator_Import-Expor'!$C$7:$C$223,0))),\"\")","v":""},{"$f":"IFERROR(IF(INDEX('Coverage Indicator_Import-Expor'!N$7:N$223,MATCH($B61,'Coverage Indicator_Import-Expor'!$C$7:$C$223,0))=\"\",\"\",INDEX('Coverage Indicator_Import-Expor'!N$7:N$223,MATCH($B61,'Coverage Indicator_Import-Expor'!$C$7:$C$223,0))),\"\")","v":""},{"$f":"IFERROR(IF(INDEX('Coverage Indicator_Import-Expor'!O$7:O$223,MATCH($B61,'Coverage Indicator_Import-Expor'!$C$7:$C$223,0))=\"\",\"\",INDEX('Coverage Indicator_Import-Expor'!O$7:O$223,MATCH($B61,'Coverage Indicator_Import-Expor'!$C$7:$C$223,0))),\"\")","v":""},{"$f":"IFERROR(IF(INDEX('Coverage Indicator_Import-Expor'!P$7:P$223,MATCH($B61,'Coverage Indicator_Import-Expor'!$C$7:$C$223,0))=\"\",\"\",INDEX('Coverage Indicator_Import-Expor'!P$7:P$223,MATCH($B61,'Coverage Indicator_Import-Expor'!$C$7:$C$223,0))),\"\")","v":""},{"$f":"IFERROR(IF(INDEX('Coverage Indicator_Import-Expor'!Q$7:Q$223,MATCH($B61,'Coverage Indicator_Import-Expor'!$C$7:$C$223,0))=\"\",\"\",INDEX('Coverage Indicator_Import-Expor'!Q$7:Q$223,MATCH($B61,'Coverage Indicator_Import-Expor'!$C$7:$C$223,0))),\"\")","v":""},{"$f":"IFERROR(IF(INDEX('Coverage Indicator_Import-Expor'!R$7:R$223,MATCH($B61,'Coverage Indicator_Import-Expor'!$C$7:$C$223,0))=\"\",\"\",INDEX('Coverage Indicator_Import-Expor'!R$7:R$223,MATCH($B61,'Coverage Indicator_Import-Expor'!$C$7:$C$223,0))),\"\")","v":""},{"$f":"IFERROR(IF(INDEX('Coverage Indicator_Import-Expor'!S$7:S$223,MATCH($B61,'Coverage Indicator_Import-Expor'!$C$7:$C$223,0))=\"\",\"\",INDEX('Coverage Indicator_Import-Expor'!S$7:S$223,MATCH($B61,'Coverage Indicator_Import-Expor'!$C$7:$C$223,0))),\"\")","v":""},{"$f":"IFERROR(IF(INDEX('Coverage Indicator_Import-Expor'!T$7:T$223,MATCH($B61,'Coverage Indicator_Import-Expor'!$C$7:$C$223,0))=\"\",\"\",INDEX('Coverage Indicator_Import-Expor'!T$7:T$223,MATCH($B61,'Coverage Indicator_Import-Expor'!$C$7:$C$223,0))),\"\")","v":""},{"$f":"IFERROR(IF(INDEX('Coverage Indicator_Import-Expor'!U$7:U$223,MATCH($B61,'Coverage Indicator_Import-Expor'!$C$7:$C$223,0))=\"\",\"\",INDEX('Coverage Indicator_Import-Expor'!U$7:U$223,MATCH($B61,'Coverage Indicator_Import-Expor'!$C$7:$C$223,0))),\"\")","v":""},null,null,"",null," ",null,"No Results Reported",null,null,"",null," ",null,null,"No Results Reported",null,null,""," ",null,"No Results Reported"]
[52,"Coverage52",{"$f":"IFERROR(INDEX('Coverage Indicator_Import-Expor'!$D$7:$D$223,MATCH(B62,'Coverage Indicator_Import-Expor'!$C$7:$C$223,0)),\"\")","v":""},{"$f":"IFERROR(INDEX('Coverage Indicator_Import-Expor'!$E$7:$E$223,MATCH(B62,'Coverage Indicator_Import-Expor'!$C$7:$C$223,0)),\"\")","v":""},{"$f":"IFERROR(IF(INDEX('Coverage Indicator_Import-Expor'!K$7:K$223,MATCH($B62,'Coverage Indicator_Import-Expor'!$C$7:$C$223,0))=\"\",\"\",INDEX('Coverage Indicator_Import-Expor'!K$7:K$223,MATCH($B62,'Coverage Indicator_Import-Expor'!$C$7:$C$223,0))),\"\")","v":""},{"$f":"IFERROR(IF(INDEX('Coverage Indicator_Import-Expor'!L$7:L$223,MATCH($B62,'Coverage Indicator_Import-Expor'!$C$7:$C$223,0))=\"\",\"\",INDEX('Coverage Indicator_Import-Expor'!L$7:L$223,MATCH($B62,'Coverage Indicator_Import-Expor'!$C$7:$C$223,0))),\"\")","v":""},{"$f":"IFERROR(IF(INDEX('Coverage Indicator_Import-Expor'!AR$7:AR$223,MATCH($B62,'Coverage Indicator_Import-Expor'!$C$7:$C$223,0))=\"\",\"\",INDEX('Coverage Indicator_Import-Expor'!AR$7:AR$223,MATCH($B62,'Coverage Indicator_Import-Expor'!$C$7:$C$223,0))),\"\")","v":""},{"$f":"IFERROR(IF(INDEX('Coverage Indicator_Import-Expor'!AS$7:AS$223,MATCH($B62,'Coverage Indicator_Import-Expor'!$C$7:$C$223,0))=\"\",\"\",INDEX('Coverage Indicator_Import-Expor'!AS$7:AS$223,MATCH($B62,'Coverage Indicator_Import-Expor'!$C$7:$C$223,0))),\"\")","v":""},{"$f":"IFERROR(IF(INDEX('Coverage Indicator_Import-Expor'!N$7:N$223,MATCH($B62,'Coverage Indicator_Import-Expor'!$C$7:$C$223,0))=\"\",\"\",INDEX('Coverage Indicator_Import-Expor'!N$7:N$223,MATCH($B62,'Coverage Indicator_Import-Expor'!$C$7:$C$223,0))),\"\")","v":""},{"$f":"IFERROR(IF(INDEX('Coverage Indicator_Import-Expor'!O$7:O$223,MATCH($B62,'Coverage Indicator_Import-Expor'!$C$7:$C$223,0))=\"\",\"\",INDEX('Coverage Indicator_Import-Expor'!O$7:O$223,MATCH($B62,'Coverage Indicator_Import-Expor'!$C$7:$C$223,0))),\"\")","v":""},{"$f":"IFERROR(IF(INDEX('Coverage Indicator_Import-Expor'!P$7:P$223,MATCH($B62,'Coverage Indicator_Import-Expor'!$C$7:$C$223,0))=\"\",\"\",INDEX('Coverage Indicator_Import-Expor'!P$7:P$223,MATCH($B62,'Coverage Indicator_Import-Expor'!$C$7:$C$223,0))),\"\")","v":""},{"$f":"IFERROR(IF(INDEX('Coverage Indicator_Import-Expor'!Q$7:Q$223,MATCH($B62,'Coverage Indicator_Import-Expor'!$C$7:$C$223,0))=\"\",\"\",INDEX('Coverage Indicator_Import-Expor'!Q$7:Q$223,MATCH($B62,'Coverage Indicator_Import-Expor'!$C$7:$C$223,0))),\"\")","v":""},{"$f":"IFERROR(IF(INDEX('Coverage Indicator_Import-Expor'!R$7:R$223,MATCH($B62,'Coverage Indicator_Import-Expor'!$C$7:$C$223,0))=\"\",\"\",INDEX('Coverage Indicator_Import-Expor'!R$7:R$223,MATCH($B62,'Coverage Indicator_Import-Expor'!$C$7:$C$223,0))),\"\")","v":""},{"$f":"IFERROR(IF(INDEX('Coverage Indicator_Import-Expor'!S$7:S$223,MATCH($B62,'Coverage Indicator_Import-Expor'!$C$7:$C$223,0))=\"\",\"\",INDEX('Coverage Indicator_Import-Expor'!S$7:S$223,MATCH($B62,'Coverage Indicator_Import-Expor'!$C$7:$C$223,0))),\"\")","v":""},{"$f":"IFERROR(IF(INDEX('Coverage Indicator_Import-Expor'!T$7:T$223,MATCH($B62,'Coverage Indicator_Import-Expor'!$C$7:$C$223,0))=\"\",\"\",INDEX('Coverage Indicator_Import-Expor'!T$7:T$223,MATCH($B62,'Coverage Indicator_Import-Expor'!$C$7:$C$223,0))),\"\")","v":""},{"$f":"IFERROR(IF(INDEX('Coverage Indicator_Import-Expor'!U$7:U$223,MATCH($B62,'Coverage Indicator_Import-Expor'!$C$7:$C$223,0))=\"\",\"\",INDEX('Coverage Indicator_Import-Expor'!U$7:U$223,MATCH($B62,'Coverage Indicator_Import-Expor'!$C$7:$C$223,0))),\"\")","v":""},null,null,"",null," ",null,"No Results Reported",null,null,"",null," ",null,null,"No Results Reported",null,null,""," ",null,"No Results Reported"]
[53,"Coverage53",{"$f":"IFERROR(INDEX('Coverage Indicator_Import-Expor'!$D$7:$D$223,MATCH(B63,'Coverage Indicator_Import-Expor'!$C$7:$C$223,0)),\"\")","v":""},{"$f":"IFERROR(INDEX('Coverage Indicator_Import-Expor'!$E$7:$E$223,MATCH(B63,'Coverage Indicator_Import-Expor'!$C$7:$C$223,0)),\"\")","v":""},{"$f":"IFERROR(IF(INDEX('Coverage Indicator_Import-Expor'!K$7:K$223,MATCH($B63,'Coverage Indicator_Import-Expor'!$C$7:$C$223,0))=\"\",\"\",INDEX('Coverage Indicator_Import-Expor'!K$7:K$223,MATCH($B63,'Coverage Indicator_Import-Expor'!$C$7:$C$223,0))),\"\")","v":""},{"$f":"IFERROR(IF(INDEX('Coverage Indicator_Import-Expor'!L$7:L$223,MATCH($B63,'Coverage Indicator_Import-Expor'!$C$7:$C$223,0))=\"\",\"\",INDEX('Coverage Indicator_Import-Expor'!L$7:L$223,MATCH($B63,'Coverage Indicator_Import-Expor'!$C$7:$C$223,0))),\"\")","v":""},{"$f":"IFERROR(IF(INDEX('Coverage Indicator_Import-Expor'!AR$7:AR$223,MATCH($B63,'Coverage Indicator_Import-Expor'!$C$7:$C$223,0))=\"\",\"\",INDEX('Coverage Indicator_Import-Expor'!AR$7:AR$223,MATCH($B63,'Coverage Indicator_Import-Expor'!$C$7:$C$223,0))),\"\")","v":""},{"$f":"IFERROR(IF(INDEX('Coverage Indicator_Import-Expor'!AS$7:AS$223,MATCH($B63,'Coverage Indicator_Import-Expor'!$C$7:$C$223,0))=\"\",\"\",INDEX('Coverage Indicator_Import-Expor'!AS$7:AS$223,MATCH($B63,'Coverage Indicator_Import-Expor'!$C$7:$C$223,0))),\"\")","v":""},{"$f":"IFERROR(IF(INDEX('Coverage Indicator_Import-Expor'!N$7:N$223,MATCH($B63,'Coverage Indicator_Import-Expor'!$C$7:$C$223,0))=\"\",\"\",INDEX('Coverage Indicator_Import-Expor'!N$7:N$223,MATCH($B63,'Coverage Indicator_Import-Expor'!$C$7:$C$223,0))),\"\")","v":""},{"$f":"IFERROR(IF(INDEX('Coverage Indicator_Import-Expor'!O$7:O$223,MATCH($B63,'Coverage Indicator_Import-Expor'!$C$7:$C$223,0))=\"\",\"\",INDEX('Coverage Indicator_Import-Expor'!O$7:O$223,MATCH($B63,'Coverage Indicator_Import-Expor'!$C$7:$C$223,0))),\"\")","v":""},{"$f":"IFERROR(IF(INDEX('Coverage Indicator_Import-Expor'!P$7:P$223,MATCH($B63,'Coverage Indicator_Import-Expor'!$C$7:$C$223,0))=\"\",\"\",INDEX('Coverage Indicator_Import-Expor'!P$7:P$223,MATCH($B63,'Coverage Indicator_Import-Expor'!$C$7:$C$223,0))),\"\")","v":""},{"$f":"IFERROR(IF(INDEX('Coverage Indicator_Import-Expor'!Q$7:Q$223,MATCH($B63,'Coverage Indicator_Import-Expor'!$C$7:$C$223,0))=\"\",\"\",INDEX('Coverage Indicator_Import-Expor'!Q$7:Q$223,MATCH($B63,'Coverage Indicator_Import-Expor'!$C$7:$C$223,0))),\"\")","v":""},{"$f":"IFERROR(IF(INDEX('Coverage Indicator_Import-Expor'!R$7:R$223,MATCH($B63,'Coverage Indicator_Import-Expor'!$C$7:$C$223,0))=\"\",\"\",INDEX('Coverage Indicator_Import-Expor'!R$7:R$223,MATCH($B63,'Coverage Indicator_Import-Expor'!$C$7:$C$223,0))),\"\")","v":""},{"$f":"IFERROR(IF(INDEX('Coverage Indicator_Import-Expor'!S$7:S$223,MATCH($B63,'Coverage Indicator_Import-Expor'!$C$7:$C$223,0))=\"\",\"\",INDEX('Coverage Indicator_Import-Expor'!S$7:S$223,MATCH($B63,'Coverage Indicator_Import-Expor'!$C$7:$C$223,0))),\"\")","v":""},{"$f":"IFERROR(IF(INDEX('Coverage Indicator_Import-Expor'!T$7:T$223,MATCH($B63,'Coverage Indicator_Import-Expor'!$C$7:$C$223,0))=\"\",\"\",INDEX('Coverage Indicator_Import-Expor'!T$7:T$223,MATCH($B63,'Coverage Indicator_Import-Expor'!$C$7:$C$223,0))),\"\")","v":""},{"$f":"IFERROR(IF(INDEX('Coverage Indicator_Import-Expor'!U$7:U$223,MATCH($B63,'Coverage Indicator_Import-Expor'!$C$7:$C$223,0))=\"\",\"\",INDEX('Coverage Indicator_Import-Expor'!U$7:U$223,MATCH($B63,'Coverage Indicator_Import-Expor'!$C$7:$C$223,0))),\"\")","v":""},null,null,"",null," ",null,"No Results Reported",null,null,"",null," ",null,null,"No Results Reported",null,null,""," ",null,"No Results Reported"]
[54,"Coverage54",{"$f":"IFERROR(INDEX('Coverage Indicator_Import-Expor'!$D$7:$D$223,MATCH(B64,'Coverage Indicator_Import-Expor'!$C$7:$C$223,0)),\"\")","v":""},{"$f":"IFERROR(INDEX('Coverage Indicator_Import-Expor'!$E$7:$E$223,MATCH(B64,'Coverage Indicator_Import-Expor'!$C$7:$C$223,0)),\"\")","v":""},{"$f":"IFERROR(IF(INDEX('Coverage Indicator_Import-Expor'!K$7:K$223,MATCH($B64,'Coverage Indicator_Import-Expor'!$C$7:$C$223,0))=\"\",\"\",INDEX('Coverage Indicator_Import-Expor'!K$7:K$223,MATCH($B64,'Coverage Indicator_Import-Expor'!$C$7:$C$223,0))),\"\")","v":""},{"$f":"IFERROR(IF(INDEX('Coverage Indicator_Import-Expor'!L$7:L$223,MATCH($B64,'Coverage Indicator_Import-Expor'!$C$7:$C$223,0))=\"\",\"\",INDEX('Coverage Indicator_Import-Expor'!L$7:L$223,MATCH($B64,'Coverage Indicator_Import-Expor'!$C$7:$C$223,0))),\"\")","v":""},{"$f":"IFERROR(IF(INDEX('Coverage Indicator_Import-Expor'!AR$7:AR$223,MATCH($B64,'Coverage Indicator_Import-Expor'!$C$7:$C$223,0))=\"\",\"\",INDEX('Coverage Indicator_Import-Expor'!AR$7:AR$223,MATCH($B64,'Coverage Indicator_Import-Expor'!$C$7:$C$223,0))),\"\")","v":""},{"$f":"IFERROR(IF(INDEX('Coverage Indicator_Import-Expor'!AS$7:AS$223,MATCH($B64,'Coverage Indicator_Import-Expor'!$C$7:$C$223,0))=\"\",\"\",INDEX('Coverage Indicator_Import-Expor'!AS$7:AS$223,MATCH($B64,'Coverage Indicator_Import-Expor'!$C$7:$C$223,0))),\"\")","v":""},{"$f":"IFERROR(IF(INDEX('Coverage Indicator_Import-Expor'!N$7:N$223,MATCH($B64,'Coverage Indicator_Import-Expor'!$C$7:$C$223,0))=\"\",\"\",INDEX('Coverage Indicator_Import-Expor'!N$7:N$223,MATCH($B64,'Coverage Indicator_Import-Expor'!$C$7:$C$223,0))),\"\")","v":""},{"$f":"IFERROR(IF(INDEX('Coverage Indicator_Import-Expor'!O$7:O$223,MATCH($B64,'Coverage Indicator_Import-Expor'!$C$7:$C$223,0))=\"\",\"\",INDEX('Coverage Indicator_Import-Expor'!O$7:O$223,MATCH($B64,'Coverage Indicator_Import-Expor'!$C$7:$C$223,0))),\"\")","v":""},{"$f":"IFERROR(IF(INDEX('Coverage Indicator_Import-Expor'!P$7:P$223,MATCH($B64,'Coverage Indicator_Import-Expor'!$C$7:$C$223,0))=\"\",\"\",INDEX('Coverage Indicator_Import-Expor'!P$7:P$223,MATCH($B64,'Coverage Indicator_Import-Expor'!$C$7:$C$223,0))),\"\")","v":""},{"$f":"IFERROR(IF(INDEX('Coverage Indicator_Import-Expor'!Q$7:Q$223,MATCH($B64,'Coverage Indicator_Import-Expor'!$C$7:$C$223,0))=\"\",\"\",INDEX('Coverage Indicator_Import-Expor'!Q$7:Q$223,MATCH($B64,'Coverage Indicator_Import-Expor'!$C$7:$C$223,0))),\"\")","v":""},{"$f":"IFERROR(IF(INDEX('Coverage Indicator_Import-Expor'!R$7:R$223,MATCH($B64,'Coverage Indicator_Import-Expor'!$C$7:$C$223,0))=\"\",\"\",INDEX('Coverage Indicator_Import-Expor'!R$7:R$223,MATCH($B64,'Coverage Indicator_Import-Expor'!$C$7:$C$223,0))),\"\")","v":""},{"$f":"IFERROR(IF(INDEX('Coverage Indicator_Import-Expor'!S$7:S$223,MATCH($B64,'Coverage Indicator_Import-Expor'!$C$7:$C$223,0))=\"\",\"\",INDEX('Coverage Indicator_Import-Expor'!S$7:S$223,MATCH($B64,'Coverage Indicator_Import-Expor'!$C$7:$C$223,0))),\"\")","v":""},{"$f":"IFERROR(IF(INDEX('Coverage Indicator_Import-Expor'!T$7:T$223,MATCH($B64,'Coverage Indicator_Import-Expor'!$C$7:$C$223,0))=\"\",\"\",INDEX('Coverage Indicator_Import-Expor'!T$7:T$223,MATCH($B64,'Coverage Indicator_Import-Expor'!$C$7:$C$223,0))),\"\")","v":""},{"$f":"IFERROR(IF(INDEX('Coverage Indicator_Import-Expor'!U$7:U$223,MATCH($B64,'Coverage Indicator_Import-Expor'!$C$7:$C$223,0))=\"\",\"\",INDEX('Coverage Indicator_Import-Expor'!U$7:U$223,MATCH($B64,'Coverage Indicator_Import-Expor'!$C$7:$C$223,0))),\"\")","v":""},null,null,"",null," ",null,"No Results Reported",null,null,"",null," ",null,null,"No Results Reported",null,null,""," ",null,"No Results Reported"]
[55,"Coverage55",{"$f":"IFERROR(INDEX('Coverage Indicator_Import-Expor'!$D$7:$D$223,MATCH(B65,'Coverage Indicator_Import-Expor'!$C$7:$C$223,0)),\"\")","v":""},{"$f":"IFERROR(INDEX('Coverage Indicator_Import-Expor'!$E$7:$E$223,MATCH(B65,'Coverage Indicator_Import-Expor'!$C$7:$C$223,0)),\"\")","v":""},{"$f":"IFERROR(IF(INDEX('Coverage Indicator_Import-Expor'!K$7:K$223,MATCH($B65,'Coverage Indicator_Import-Expor'!$C$7:$C$223,0))=\"\",\"\",INDEX('Coverage Indicator_Import-Expor'!K$7:K$223,MATCH($B65,'Coverage Indicator_Import-Expor'!$C$7:$C$223,0))),\"\")","v":""},{"$f":"IFERROR(IF(INDEX('Coverage Indicator_Import-Expor'!L$7:L$223,MATCH($B65,'Coverage Indicator_Import-Expor'!$C$7:$C$223,0))=\"\",\"\",INDEX('Coverage Indicator_Import-Expor'!L$7:L$223,MATCH($B65,'Coverage Indicator_Import-Expor'!$C$7:$C$223,0))),\"\")","v":""},{"$f":"IFERROR(IF(INDEX('Coverage Indicator_Import-Expor'!AR$7:AR$223,MATCH($B65,'Coverage Indicator_Import-Expor'!$C$7:$C$223,0))=\"\",\"\",INDEX('Coverage Indicator_Import-Expor'!AR$7:AR$223,MATCH($B65,'Coverage Indicator_Import-Expor'!$C$7:$C$223,0))),\"\")","v":""},{"$f":"IFERROR(IF(INDEX('Coverage Indicator_Import-Expor'!AS$7:AS$223,MATCH($B65,'Coverage Indicator_Import-Expor'!$C$7:$C$223,0))=\"\",\"\",INDEX('Coverage Indicator_Import-Expor'!AS$7:AS$223,MATCH($B65,'Coverage Indicator_Import-Expor'!$C$7:$C$223,0))),\"\")","v":""},{"$f":"IFERROR(IF(INDEX('Coverage Indicator_Import-Expor'!N$7:N$223,MATCH($B65,'Coverage Indicator_Import-Expor'!$C$7:$C$223,0))=\"\",\"\",INDEX('Coverage Indicator_Import-Expor'!N$7:N$223,MATCH($B65,'Coverage Indicator_Import-Expor'!$C$7:$C$223,0))),\"\")","v":""},{"$f":"IFERROR(IF(INDEX('Coverage Indicator_Import-Expor'!O$7:O$223,MATCH($B65,'Coverage Indicator_Import-Expor'!$C$7:$C$223,0))=\"\",\"\",INDEX('Coverage Indicator_Import-Expor'!O$7:O$223,MATCH($B65,'Coverage Indicator_Import-Expor'!$C$7:$C$223,0))),\"\")","v":""},{"$f":"IFERROR(IF(INDEX('Coverage Indicator_Import-Expor'!P$7:P$223,MATCH($B65,'Coverage Indicator_Import-Expor'!$C$7:$C$223,0))=\"\",\"\",INDEX('Coverage Indicator_Import-Expor'!P$7:P$223,MATCH($B65,'Coverage Indicator_Import-Expor'!$C$7:$C$223,0))),\"\")","v":""},{"$f":"IFERROR(IF(INDEX('Coverage Indicator_Import-Expor'!Q$7:Q$223,MATCH($B65,'Coverage Indicator_Import-Expor'!$C$7:$C$223,0))=\"\",\"\",INDEX('Coverage Indicator_Import-Expor'!Q$7:Q$223,MATCH($B65,'Coverage Indicator_Import-Expor'!$C$7:$C$223,0))),\"\")","v":""},{"$f":"IFERROR(IF(INDEX('Coverage Indicator_Import-Expor'!R$7:R$223,MATCH($B65,'Coverage Indicator_Import-Expor'!$C$7:$C$223,0))=\"\",\"\",INDEX('Coverage Indicator_Import-Expor'!R$7:R$223,MATCH($B65,'Coverage Indicator_Import-Expor'!$C$7:$C$223,0))),\"\")","v":""},{"$f":"IFERROR(IF(INDEX('Coverage Indicator_Import-Expor'!S$7:S$223,MATCH($B65,'Coverage Indicator_Import-Expor'!$C$7:$C$223,0))=\"\",\"\",INDEX('Coverage Indicator_Import-Expor'!S$7:S$223,MATCH($B65,'Coverage Indicator_Import-Expor'!$C$7:$C$223,0))),\"\")","v":""},{"$f":"IFERROR(IF(INDEX('Coverage Indicator_Import-Expor'!T$7:T$223,MATCH($B65,'Coverage Indicator_Import-Expor'!$C$7:$C$223,0))=\"\",\"\",INDEX('Coverage Indicator_Import-Expor'!T$7:T$223,MATCH($B65,'Coverage Indicator_Import-Expor'!$C$7:$C$223,0))),\"\")","v":""},{"$f":"IFERROR(IF(INDEX('Coverage Indicator_Import-Expor'!U$7:U$223,MATCH($B65,'Coverage Indicator_Import-Expor'!$C$7:$C$223,0))=\"\",\"\",INDEX('Coverage Indicator_Import-Expor'!U$7:U$223,MATCH($B65,'Coverage Indicator_Import-Expor'!$C$7:$C$223,0))),\"\")","v":""},null,null,"",null," ",null,"No Results Reported",null,null,"",null," ",null,null,"No Results Reported",null,null,""," ",null,"No Results Reported"]
[56,"Coverage56",{"$f":"IFERROR(INDEX('Coverage Indicator_Import-Expor'!$D$7:$D$223,MATCH(B66,'Coverage Indicator_Import-Expor'!$C$7:$C$223,0)),\"\")","v":""},{"$f":"IFERROR(INDEX('Coverage Indicator_Import-Expor'!$E$7:$E$223,MATCH(B66,'Coverage Indicator_Import-Expor'!$C$7:$C$223,0)),\"\")","v":""},{"$f":"IFERROR(IF(INDEX('Coverage Indicator_Import-Expor'!K$7:K$223,MATCH($B66,'Coverage Indicator_Import-Expor'!$C$7:$C$223,0))=\"\",\"\",INDEX('Coverage Indicator_Import-Expor'!K$7:K$223,MATCH($B66,'Coverage Indicator_Import-Expor'!$C$7:$C$223,0))),\"\")","v":""},{"$f":"IFERROR(IF(INDEX('Coverage Indicator_Import-Expor'!L$7:L$223,MATCH($B66,'Coverage Indicator_Import-Expor'!$C$7:$C$223,0))=\"\",\"\",INDEX('Coverage Indicator_Import-Expor'!L$7:L$223,MATCH($B66,'Coverage Indicator_Import-Expor'!$C$7:$C$223,0))),\"\")","v":""},{"$f":"IFERROR(IF(INDEX('Coverage Indicator_Import-Expor'!AR$7:AR$223,MATCH($B66,'Coverage Indicator_Import-Expor'!$C$7:$C$223,0))=\"\",\"\",INDEX('Coverage Indicator_Import-Expor'!AR$7:AR$223,MATCH($B66,'Coverage Indicator_Import-Expor'!$C$7:$C$223,0))),\"\")","v":""},{"$f":"IFERROR(IF(INDEX('Coverage Indicator_Import-Expor'!AS$7:AS$223,MATCH($B66,'Coverage Indicator_Import-Expor'!$C$7:$C$223,0))=\"\",\"\",INDEX('Coverage Indicator_Import-Expor'!AS$7:AS$223,MATCH($B66,'Coverage Indicator_Import-Expor'!$C$7:$C$223,0))),\"\")","v":""},{"$f":"IFERROR(IF(INDEX('Coverage Indicator_Import-Expor'!N$7:N$223,MATCH($B66,'Coverage Indicator_Import-Expor'!$C$7:$C$223,0))=\"\",\"\",INDEX('Coverage Indicator_Import-Expor'!N$7:N$223,MATCH($B66,'Coverage Indicator_Import-Expor'!$C$7:$C$223,0))),\"\")","v":""},{"$f":"IFERROR(IF(INDEX('Coverage Indicator_Import-Expor'!O$7:O$223,MATCH($B66,'Coverage Indicator_Import-Expor'!$C$7:$C$223,0))=\"\",\"\",INDEX('Coverage Indicator_Import-Expor'!O$7:O$223,MATCH($B66,'Coverage Indicator_Import-Expor'!$C$7:$C$223,0))),\"\")","v":""},{"$f":"IFERROR(IF(INDEX('Coverage Indicator_Import-Expor'!P$7:P$223,MATCH($B66,'Coverage Indicator_Import-Expor'!$C$7:$C$223,0))=\"\",\"\",INDEX('Coverage Indicator_Import-Expor'!P$7:P$223,MATCH($B66,'Coverage Indicator_Import-Expor'!$C$7:$C$223,0))),\"\")","v":""},{"$f":"IFERROR(IF(INDEX('Coverage Indicator_Import-Expor'!Q$7:Q$223,MATCH($B66,'Coverage Indicator_Import-Expor'!$C$7:$C$223,0))=\"\",\"\",INDEX('Coverage Indicator_Import-Expor'!Q$7:Q$223,MATCH($B66,'Coverage Indicator_Import-Expor'!$C$7:$C$223,0))),\"\")","v":""},{"$f":"IFERROR(IF(INDEX('Coverage Indicator_Import-Expor'!R$7:R$223,MATCH($B66,'Coverage Indicator_Import-Expor'!$C$7:$C$223,0))=\"\",\"\",INDEX('Coverage Indicator_Import-Expor'!R$7:R$223,MATCH($B66,'Coverage Indicator_Import-Expor'!$C$7:$C$223,0))),\"\")","v":""},{"$f":"IFERROR(IF(INDEX('Coverage Indicator_Import-Expor'!S$7:S$223,MATCH($B66,'Coverage Indicator_Import-Expor'!$C$7:$C$223,0))=\"\",\"\",INDEX('Coverage Indicator_Import-Expor'!S$7:S$223,MATCH($B66,'Coverage Indicator_Import-Expor'!$C$7:$C$223,0))),\"\")","v":""},{"$f":"IFERROR(IF(INDEX('Coverage Indicator_Import-Expor'!T$7:T$223,MATCH($B66,'Coverage Indicator_Import-Expor'!$C$7:$C$223,0))=\"\",\"\",INDEX('Coverage Indicator_Import-Expor'!T$7:T$223,MATCH($B66,'Coverage Indicator_Import-Expor'!$C$7:$C$223,0))),\"\")","v":""},{"$f":"IFERROR(IF(INDEX('Coverage Indicator_Import-Expor'!U$7:U$223,MATCH($B66,'Coverage Indicator_Import-Expor'!$C$7:$C$223,0))=\"\",\"\",INDEX('Coverage Indicator_Import-Expor'!U$7:U$223,MATCH($B66,'Coverage Indicator_Import-Expor'!$C$7:$C$223,0))),\"\")","v":""},null,null,"",null," ",null,"No Results Reported",null,null,"",null," ",null,null,"No Results Reported",null,null,""," ",null,"No Results Reported"]
[57,"Coverage57",{"$f":"IFERROR(INDEX('Coverage Indicator_Import-Expor'!$D$7:$D$223,MATCH(B67,'Coverage Indicator_Import-Expor'!$C$7:$C$223,0)),\"\")","v":""},{"$f":"IFERROR(INDEX('Coverage Indicator_Import-Expor'!$E$7:$E$223,MATCH(B67,'Coverage Indicator_Import-Expor'!$C$7:$C$223,0)),\"\")","v":""},{"$f":"IFERROR(IF(INDEX('Coverage Indicator_Import-Expor'!K$7:K$223,MATCH($B67,'Coverage Indicator_Import-Expor'!$C$7:$C$223,0))=\"\",\"\",INDEX('Coverage Indicator_Import-Expor'!K$7:K$223,MATCH($B67,'Coverage Indicator_Import-Expor'!$C$7:$C$223,0))),\"\")","v":""},{"$f":"IFERROR(IF(INDEX('Coverage Indicator_Import-Expor'!L$7:L$223,MATCH($B67,'Coverage Indicator_Import-Expor'!$C$7:$C$223,0))=\"\",\"\",INDEX('Coverage Indicator_Import-Expor'!L$7:L$223,MATCH($B67,'Coverage Indicator_Import-Expor'!$C$7:$C$223,0))),\"\")","v":""},{"$f":"IFERROR(IF(INDEX('Coverage Indicator_Import-Expor'!AR$7:AR$223,MATCH($B67,'Coverage Indicator_Import-Expor'!$C$7:$C$223,0))=\"\",\"\",INDEX('Coverage Indicator_Import-Expor'!AR$7:AR$223,MATCH($B67,'Coverage Indicator_Import-Expor'!$C$7:$C$223,0))),\"\")","v":""},{"$f":"IFERROR(IF(INDEX('Coverage Indicator_Import-Expor'!AS$7:AS$223,MATCH($B67,'Coverage Indicator_Import-Expor'!$C$7:$C$223,0))=\"\",\"\",INDEX('Coverage Indicator_Import-Expor'!AS$7:AS$223,MATCH($B67,'Coverage Indicator_Import-Expor'!$C$7:$C$223,0))),\"\")","v":""},{"$f":"IFERROR(IF(INDEX('Coverage Indicator_Import-Expor'!N$7:N$223,MATCH($B67,'Coverage Indicator_Import-Expor'!$C$7:$C$223,0))=\"\",\"\",INDEX('Coverage Indicator_Import-Expor'!N$7:N$223,MATCH($B67,'Coverage Indicator_Import-Expor'!$C$7:$C$223,0))),\"\")","v":""},{"$f":"IFERROR(IF(INDEX('Coverage Indicator_Import-Expor'!O$7:O$223,MATCH($B67,'Coverage Indicator_Import-Expor'!$C$7:$C$223,0))=\"\",\"\",INDEX('Coverage Indicator_Import-Expor'!O$7:O$223,MATCH($B67,'Coverage Indicator_Import-Expor'!$C$7:$C$223,0))),\"\")","v":""},{"$f":"IFERROR(IF(INDEX('Coverage Indicator_Import-Expor'!P$7:P$223,MATCH($B67,'Coverage Indicator_Import-Expor'!$C$7:$C$223,0))=\"\",\"\",INDEX('Coverage Indicator_Import-Expor'!P$7:P$223,MATCH($B67,'Coverage Indicator_Import-Expor'!$C$7:$C$223,0))),\"\")","v":""},{"$f":"IFERROR(IF(INDEX('Coverage Indicator_Import-Expor'!Q$7:Q$223,MATCH($B67,'Coverage Indicator_Import-Expor'!$C$7:$C$223,0))=\"\",\"\",INDEX('Coverage Indicator_Import-Expor'!Q$7:Q$223,MATCH($B67,'Coverage Indicator_Import-Expor'!$C$7:$C$223,0))),\"\")","v":""},{"$f":"IFERROR(IF(INDEX('Coverage Indicator_Import-Expor'!R$7:R$223,MATCH($B67,'Coverage Indicator_Import-Expor'!$C$7:$C$223,0))=\"\",\"\",INDEX('Coverage Indicator_Import-Expor'!R$7:R$223,MATCH($B67,'Coverage Indicator_Import-Expor'!$C$7:$C$223,0))),\"\")","v":""},{"$f":"IFERROR(IF(INDEX('Coverage Indicator_Import-Expor'!S$7:S$223,MATCH($B67,'Coverage Indicator_Import-Expor'!$C$7:$C$223,0))=\"\",\"\",INDEX('Coverage Indicator_Import-Expor'!S$7:S$223,MATCH($B67,'Coverage Indicator_Import-Expor'!$C$7:$C$223,0))),\"\")","v":""},{"$f":"IFERROR(IF(INDEX('Coverage Indicator_Import-Expor'!T$7:T$223,MATCH($B67,'Coverage Indicator_Import-Expor'!$C$7:$C$223,0))=\"\",\"\",INDEX('Coverage Indicator_Import-Expor'!T$7:T$223,MATCH($B67,'Coverage Indicator_Import-Expor'!$C$7:$C$223,0))),\"\")","v":""},{"$f":"IFERROR(IF(INDEX('Coverage Indicator_Import-Expor'!U$7:U$223,MATCH($B67,'Coverage Indicator_Import-Expor'!$C$7:$C$223,0))=\"\",\"\",INDEX('Coverage Indicator_Import-Expor'!U$7:U$223,MATCH($B67,'Coverage Indicator_Import-Expor'!$C$7:$C$223,0))),\"\")","v":""},null,null,"",null," ",null,"No Results Reported",null,null,"",null," ",null,null,"No Results Reported",null,null,""," ",null,"No Results Reported"]
[58,"Coverage58",{"$f":"IFERROR(INDEX('Coverage Indicator_Import-Expor'!$D$7:$D$223,MATCH(B68,'Coverage Indicator_Import-Expor'!$C$7:$C$223,0)),\"\")","v":""},{"$f":"IFERROR(INDEX('Coverage Indicator_Import-Expor'!$E$7:$E$223,MATCH(B68,'Coverage Indicator_Import-Expor'!$C$7:$C$223,0)),\"\")","v":""},{"$f":"IFERROR(IF(INDEX('Coverage Indicator_Import-Expor'!K$7:K$223,MATCH($B68,'Coverage Indicator_Import-Expor'!$C$7:$C$223,0))=\"\",\"\",INDEX('Coverage Indicator_Import-Expor'!K$7:K$223,MATCH($B68,'Coverage Indicator_Import-Expor'!$C$7:$C$223,0))),\"\")","v":""},{"$f":"IFERROR(IF(INDEX('Coverage Indicator_Import-Expor'!L$7:L$223,MATCH($B68,'Coverage Indicator_Import-Expor'!$C$7:$C$223,0))=\"\",\"\",INDEX('Coverage Indicator_Import-Expor'!L$7:L$223,MATCH($B68,'Coverage Indicator_Import-Expor'!$C$7:$C$223,0))),\"\")","v":""},{"$f":"IFERROR(IF(INDEX('Coverage Indicator_Import-Expor'!AR$7:AR$223,MATCH($B68,'Coverage Indicator_Import-Expor'!$C$7:$C$223,0))=\"\",\"\",INDEX('Coverage Indicator_Import-Expor'!AR$7:AR$223,MATCH($B68,'Coverage Indicator_Import-Expor'!$C$7:$C$223,0))),\"\")","v":""},{"$f":"IFERROR(IF(INDEX('Coverage Indicator_Import-Expor'!AS$7:AS$223,MATCH($B68,'Coverage Indicator_Import-Expor'!$C$7:$C$223,0))=\"\",\"\",INDEX('Coverage Indicator_Import-Expor'!AS$7:AS$223,MATCH($B68,'Coverage Indicator_Import-Expor'!$C$7:$C$223,0))),\"\")","v":""},{"$f":"IFERROR(IF(INDEX('Coverage Indicator_Import-Expor'!N$7:N$223,MATCH($B68,'Coverage Indicator_Import-Expor'!$C$7:$C$223,0))=\"\",\"\",INDEX('Coverage Indicator_Import-Expor'!N$7:N$223,MATCH($B68,'Coverage Indicator_Import-Expor'!$C$7:$C$223,0))),\"\")","v":""},{"$f":"IFERROR(IF(INDEX('Coverage Indicator_Import-Expor'!O$7:O$223,MATCH($B68,'Coverage Indicator_Import-Expor'!$C$7:$C$223,0))=\"\",\"\",INDEX('Coverage Indicator_Import-Expor'!O$7:O$223,MATCH($B68,'Coverage Indicator_Import-Expor'!$C$7:$C$223,0))),\"\")","v":""},{"$f":"IFERROR(IF(INDEX('Coverage Indicator_Import-Expor'!P$7:P$223,MATCH($B68,'Coverage Indicator_Import-Expor'!$C$7:$C$223,0))=\"\",\"\",INDEX('Coverage Indicator_Import-Expor'!P$7:P$223,MATCH($B68,'Coverage Indicator_Import-Expor'!$C$7:$C$223,0))),\"\")","v":""},{"$f":"IFERROR(IF(INDEX('Coverage Indicator_Import-Expor'!Q$7:Q$223,MATCH($B68,'Coverage Indicator_Import-Expor'!$C$7:$C$223,0))=\"\",\"\",INDEX('Coverage Indicator_Import-Expor'!Q$7:Q$223,MATCH($B68,'Coverage Indicator_Import-Expor'!$C$7:$C$223,0))),\"\")","v":""},{"$f":"IFERROR(IF(INDEX('Coverage Indicator_Import-Expor'!R$7:R$223,MATCH($B68,'Coverage Indicator_Import-Expor'!$C$7:$C$223,0))=\"\",\"\",INDEX('Coverage Indicator_Import-Expor'!R$7:R$223,MATCH($B68,'Coverage Indicator_Import-Expor'!$C$7:$C$223,0))),\"\")","v":""},{"$f":"IFERROR(IF(INDEX('Coverage Indicator_Import-Expor'!S$7:S$223,MATCH($B68,'Coverage Indicator_Import-Expor'!$C$7:$C$223,0))=\"\",\"\",INDEX('Coverage Indicator_Import-Expor'!S$7:S$223,MATCH($B68,'Coverage Indicator_Import-Expor'!$C$7:$C$223,0))),\"\")","v":""},{"$f":"IFERROR(IF(INDEX('Coverage Indicator_Import-Expor'!T$7:T$223,MATCH($B68,'Coverage Indicator_Import-Expor'!$C$7:$C$223,0))=\"\",\"\",INDEX('Coverage Indicator_Import-Expor'!T$7:T$223,MATCH($B68,'Coverage Indicator_Import-Expor'!$C$7:$C$223,0))),\"\")","v":""},{"$f":"IFERROR(IF(INDEX('Coverage Indicator_Import-Expor'!U$7:U$223,MATCH($B68,'Coverage Indicator_Import-Expor'!$C$7:$C$223,0))=\"\",\"\",INDEX('Coverage Indicator_Import-Expor'!U$7:U$223,MATCH($B68,'Coverage Indicator_Import-Expor'!$C$7:$C$223,0))),\"\")","v":""},null,null,"",null," ",null,"No Results Reported",null,null,"",null," ",null,null,"No Results Reported",null,null,""," ",null,"No Results Reported"]
[59,"Coverage59",{"$f":"IFERROR(INDEX('Coverage Indicator_Import-Expor'!$D$7:$D$223,MATCH(B69,'Coverage Indicator_Import-Expor'!$C$7:$C$223,0)),\"\")","v":""},{"$f":"IFERROR(INDEX('Coverage Indicator_Import-Expor'!$E$7:$E$223,MATCH(B69,'Coverage Indicator_Import-Expor'!$C$7:$C$223,0)),\"\")","v":""},{"$f":"IFERROR(IF(INDEX('Coverage Indicator_Import-Expor'!K$7:K$223,MATCH($B69,'Coverage Indicator_Import-Expor'!$C$7:$C$223,0))=\"\",\"\",INDEX('Coverage Indicator_Import-Expor'!K$7:K$223,MATCH($B69,'Coverage Indicator_Import-Expor'!$C$7:$C$223,0))),\"\")","v":""},{"$f":"IFERROR(IF(INDEX('Coverage Indicator_Import-Expor'!L$7:L$223,MATCH($B69,'Coverage Indicator_Import-Expor'!$C$7:$C$223,0))=\"\",\"\",INDEX('Coverage Indicator_Import-Expor'!L$7:L$223,MATCH($B69,'Coverage Indicator_Import-Expor'!$C$7:$C$223,0))),\"\")","v":""},{"$f":"IFERROR(IF(INDEX('Coverage Indicator_Import-Expor'!AR$7:AR$223,MATCH($B69,'Coverage Indicator_Import-Expor'!$C$7:$C$223,0))=\"\",\"\",INDEX('Coverage Indicator_Import-Expor'!AR$7:AR$223,MATCH($B69,'Coverage Indicator_Import-Expor'!$C$7:$C$223,0))),\"\")","v":""},{"$f":"IFERROR(IF(INDEX('Coverage Indicator_Import-Expor'!AS$7:AS$223,MATCH($B69,'Coverage Indicator_Import-Expor'!$C$7:$C$223,0))=\"\",\"\",INDEX('Coverage Indicator_Import-Expor'!AS$7:AS$223,MATCH($B69,'Coverage Indicator_Import-Expor'!$C$7:$C$223,0))),\"\")","v":""},{"$f":"IFERROR(IF(INDEX('Coverage Indicator_Import-Expor'!N$7:N$223,MATCH($B69,'Coverage Indicator_Import-Expor'!$C$7:$C$223,0))=\"\",\"\",INDEX('Coverage Indicator_Import-Expor'!N$7:N$223,MATCH($B69,'Coverage Indicator_Import-Expor'!$C$7:$C$223,0))),\"\")","v":""},{"$f":"IFERROR(IF(INDEX('Coverage Indicator_Import-Expor'!O$7:O$223,MATCH($B69,'Coverage Indicator_Import-Expor'!$C$7:$C$223,0))=\"\",\"\",INDEX('Coverage Indicator_Import-Expor'!O$7:O$223,MATCH($B69,'Coverage Indicator_Import-Expor'!$C$7:$C$223,0))),\"\")","v":""},{"$f":"IFERROR(IF(INDEX('Coverage Indicator_Import-Expor'!P$7:P$223,MATCH($B69,'Coverage Indicator_Import-Expor'!$C$7:$C$223,0))=\"\",\"\",INDEX('Coverage Indicator_Import-Expor'!P$7:P$223,MATCH($B69,'Coverage Indicator_Import-Expor'!$C$7:$C$223,0))),\"\")","v":""},{"$f":"IFERROR(IF(INDEX('Coverage Indicator_Import-Expor'!Q$7:Q$223,MATCH($B69,'Coverage Indicator_Import-Expor'!$C$7:$C$223,0))=\"\",\"\",INDEX('Coverage Indicator_Import-Expor'!Q$7:Q$223,MATCH($B69,'Coverage Indicator_Import-Expor'!$C$7:$C$223,0))),\"\")","v":""},{"$f":"IFERROR(IF(INDEX('Coverage Indicator_Import-Expor'!R$7:R$223,MATCH($B69,'Coverage Indicator_Import-Expor'!$C$7:$C$223,0))=\"\",\"\",INDEX('Coverage Indicator_Import-Expor'!R$7:R$223,MATCH($B69,'Coverage Indicator_Import-Expor'!$C$7:$C$223,0))),\"\")","v":""},{"$f":"IFERROR(IF(INDEX('Coverage Indicator_Import-Expor'!S$7:S$223,MATCH($B69,'Coverage Indicator_Import-Expor'!$C$7:$C$223,0))=\"\",\"\",INDEX('Coverage Indicator_Import-Expor'!S$7:S$223,MATCH($B69,'Coverage Indicator_Import-Expor'!$C$7:$C$223,0))),\"\")","v":""},{"$f":"IFERROR(IF(INDEX('Coverage Indicator_Import-Expor'!T$7:T$223,MATCH($B69,'Coverage Indicator_Import-Expor'!$C$7:$C$223,0))=\"\",\"\",INDEX('Coverage Indicator_Import-Expor'!T$7:T$223,MATCH($B69,'Coverage Indicator_Import-Expor'!$C$7:$C$223,0))),\"\")","v":""},{"$f":"IFERROR(IF(INDEX('Coverage Indicator_Import-Expor'!U$7:U$223,MATCH($B69,'Coverage Indicator_Import-Expor'!$C$7:$C$223,0))=\"\",\"\",INDEX('Coverage Indicator_Import-Expor'!U$7:U$223,MATCH($B69,'Coverage Indicator_Import-Expor'!$C$7:$C$223,0))),\"\")","v":""},null,null,"",null," ",null,"No Results Reported",null,null,"",null," ",null,null,"No Results Reported",null,null,""," ",null,"No Results Reported"]
[60,"Coverage60",{"$f":"IFERROR(INDEX('Coverage Indicator_Import-Expor'!$D$7:$D$223,MATCH(B70,'Coverage Indicator_Import-Expor'!$C$7:$C$223,0)),\"\")","v":""},{"$f":"IFERROR(INDEX('Coverage Indicator_Import-Expor'!$E$7:$E$223,MATCH(B70,'Coverage Indicator_Import-Expor'!$C$7:$C$223,0)),\"\")","v":""},{"$f":"IFERROR(IF(INDEX('Coverage Indicator_Import-Expor'!K$7:K$223,MATCH($B70,'Coverage Indicator_Import-Expor'!$C$7:$C$223,0))=\"\",\"\",INDEX('Coverage Indicator_Import-Expor'!K$7:K$223,MATCH($B70,'Coverage Indicator_Import-Expor'!$C$7:$C$223,0))),\"\")","v":""},{"$f":"IFERROR(IF(INDEX('Coverage Indicator_Import-Expor'!L$7:L$223,MATCH($B70,'Coverage Indicator_Import-Expor'!$C$7:$C$223,0))=\"\",\"\",INDEX('Coverage Indicator_Import-Expor'!L$7:L$223,MATCH($B70,'Coverage Indicator_Import-Expor'!$C$7:$C$223,0))),\"\")","v":""},{"$f":"IFERROR(IF(INDEX('Coverage Indicator_Import-Expor'!AR$7:AR$223,MATCH($B70,'Coverage Indicator_Import-Expor'!$C$7:$C$223,0))=\"\",\"\",INDEX('Coverage Indicator_Import-Expor'!AR$7:AR$223,MATCH($B70,'Coverage Indicator_Import-Expor'!$C$7:$C$223,0))),\"\")","v":""},{"$f":"IFERROR(IF(INDEX('Coverage Indicator_Import-Expor'!AS$7:AS$223,MATCH($B70,'Coverage Indicator_Import-Expor'!$C$7:$C$223,0))=\"\",\"\",INDEX('Coverage Indicator_Import-Expor'!AS$7:AS$223,MATCH($B70,'Coverage Indicator_Import-Expor'!$C$7:$C$223,0))),\"\")","v":""},{"$f":"IFERROR(IF(INDEX('Coverage Indicator_Import-Expor'!N$7:N$223,MATCH($B70,'Coverage Indicator_Import-Expor'!$C$7:$C$223,0))=\"\",\"\",INDEX('Coverage Indicator_Import-Expor'!N$7:N$223,MATCH($B70,'Coverage Indicator_Import-Expor'!$C$7:$C$223,0))),\"\")","v":""},{"$f":"IFERROR(IF(INDEX('Coverage Indicator_Import-Expor'!O$7:O$223,MATCH($B70,'Coverage Indicator_Import-Expor'!$C$7:$C$223,0))=\"\",\"\",INDEX('Coverage Indicator_Import-Expor'!O$7:O$223,MATCH($B70,'Coverage Indicator_Import-Expor'!$C$7:$C$223,0))),\"\")","v":""},{"$f":"IFERROR(IF(INDEX('Coverage Indicator_Import-Expor'!P$7:P$223,MATCH($B70,'Coverage Indicator_Import-Expor'!$C$7:$C$223,0))=\"\",\"\",INDEX('Coverage Indicator_Import-Expor'!P$7:P$223,MATCH($B70,'Coverage Indicator_Import-Expor'!$C$7:$C$223,0))),\"\")","v":""},{"$f":"IFERROR(IF(INDEX('Coverage Indicator_Import-Expor'!Q$7:Q$223,MATCH($B70,'Coverage Indicator_Import-Expor'!$C$7:$C$223,0))=\"\",\"\",INDEX('Coverage Indicator_Import-Expor'!Q$7:Q$223,MATCH($B70,'Coverage Indicator_Import-Expor'!$C$7:$C$223,0))),\"\")","v":""},{"$f":"IFERROR(IF(INDEX('Coverage Indicator_Import-Expor'!R$7:R$223,MATCH($B70,'Coverage Indicator_Import-Expor'!$C$7:$C$223,0))=\"\",\"\",INDEX('Coverage Indicator_Import-Expor'!R$7:R$223,MATCH($B70,'Coverage Indicator_Import-Expor'!$C$7:$C$223,0))),\"\")","v":""},{"$f":"IFERROR(IF(INDEX('Coverage Indicator_Import-Expor'!S$7:S$223,MATCH($B70,'Coverage Indicator_Import-Expor'!$C$7:$C$223,0))=\"\",\"\",INDEX('Coverage Indicator_Import-Expor'!S$7:S$223,MATCH($B70,'Coverage Indicator_Import-Expor'!$C$7:$C$223,0))),\"\")","v":""},{"$f":"IFERROR(IF(INDEX('Coverage Indicator_Import-Expor'!T$7:T$223,MATCH($B70,'Coverage Indicator_Import-Expor'!$C$7:$C$223,0))=\"\",\"\",INDEX('Coverage Indicator_Import-Expor'!T$7:T$223,MATCH($B70,'Coverage Indicator_Import-Expor'!$C$7:$C$223,0))),\"\")","v":""},{"$f":"IFERROR(IF(INDEX('Coverage Indicator_Import-Expor'!U$7:U$223,MATCH($B70,'Coverage Indicator_Import-Expor'!$C$7:$C$223,0))=\"\",\"\",INDEX('Coverage Indicator_Import-Expor'!U$7:U$223,MATCH($B70,'Coverage Indicator_Import-Expor'!$C$7:$C$223,0))),\"\")","v":""},null,null,"",null," ",null,"No Results Reported",null,null,"",null," ",null,null,"No Results Reported",null,null,""," ",null,"No Results Reported"]
[61,"Coverage61",{"$f":"IFERROR(INDEX('Coverage Indicator_Import-Expor'!$D$7:$D$223,MATCH(B71,'Coverage Indicator_Import-Expor'!$C$7:$C$223,0)),\"\")","v":""},{"$f":"IFERROR(INDEX('Coverage Indicator_Import-Expor'!$E$7:$E$223,MATCH(B71,'Coverage Indicator_Import-Expor'!$C$7:$C$223,0)),\"\")","v":""},{"$f":"IFERROR(IF(INDEX('Coverage Indicator_Import-Expor'!K$7:K$223,MATCH($B71,'Coverage Indicator_Import-Expor'!$C$7:$C$223,0))=\"\",\"\",INDEX('Coverage Indicator_Import-Expor'!K$7:K$223,MATCH($B71,'Coverage Indicator_Import-Expor'!$C$7:$C$223,0))),\"\")","v":""},{"$f":"IFERROR(IF(INDEX('Coverage Indicator_Import-Expor'!L$7:L$223,MATCH($B71,'Coverage Indicator_Import-Expor'!$C$7:$C$223,0))=\"\",\"\",INDEX('Coverage Indicator_Import-Expor'!L$7:L$223,MATCH($B71,'Coverage Indicator_Import-Expor'!$C$7:$C$223,0))),\"\")","v":""},{"$f":"IFERROR(IF(INDEX('Coverage Indicator_Import-Expor'!AR$7:AR$223,MATCH($B71,'Coverage Indicator_Import-Expor'!$C$7:$C$223,0))=\"\",\"\",INDEX('Coverage Indicator_Import-Expor'!AR$7:AR$223,MATCH($B71,'Coverage Indicator_Import-Expor'!$C$7:$C$223,0))),\"\")","v":""},{"$f":"IFERROR(IF(INDEX('Coverage Indicator_Import-Expor'!AS$7:AS$223,MATCH($B71,'Coverage Indicator_Import-Expor'!$C$7:$C$223,0))=\"\",\"\",INDEX('Coverage Indicator_Import-Expor'!AS$7:AS$223,MATCH($B71,'Coverage Indicator_Import-Expor'!$C$7:$C$223,0))),\"\")","v":""},{"$f":"IFERROR(IF(INDEX('Coverage Indicator_Import-Expor'!N$7:N$223,MATCH($B71,'Coverage Indicator_Import-Expor'!$C$7:$C$223,0))=\"\",\"\",INDEX('Coverage Indicator_Import-Expor'!N$7:N$223,MATCH($B71,'Coverage Indicator_Import-Expor'!$C$7:$C$223,0))),\"\")","v":""},{"$f":"IFERROR(IF(INDEX('Coverage Indicator_Import-Expor'!O$7:O$223,MATCH($B71,'Coverage Indicator_Import-Expor'!$C$7:$C$223,0))=\"\",\"\",INDEX('Coverage Indicator_Import-Expor'!O$7:O$223,MATCH($B71,'Coverage Indicator_Import-Expor'!$C$7:$C$223,0))),\"\")","v":""},{"$f":"IFERROR(IF(INDEX('Coverage Indicator_Import-Expor'!P$7:P$223,MATCH($B71,'Coverage Indicator_Import-Expor'!$C$7:$C$223,0))=\"\",\"\",INDEX('Coverage Indicator_Import-Expor'!P$7:P$223,MATCH($B71,'Coverage Indicator_Import-Expor'!$C$7:$C$223,0))),\"\")","v":""},{"$f":"IFERROR(IF(INDEX('Coverage Indicator_Import-Expor'!Q$7:Q$223,MATCH($B71,'Coverage Indicator_Import-Expor'!$C$7:$C$223,0))=\"\",\"\",INDEX('Coverage Indicator_Import-Expor'!Q$7:Q$223,MATCH($B71,'Coverage Indicator_Import-Expor'!$C$7:$C$223,0))),\"\")","v":""},{"$f":"IFERROR(IF(INDEX('Coverage Indicator_Import-Expor'!R$7:R$223,MATCH($B71,'Coverage Indicator_Import-Expor'!$C$7:$C$223,0))=\"\",\"\",INDEX('Coverage Indicator_Import-Expor'!R$7:R$223,MATCH($B71,'Coverage Indicator_Import-Expor'!$C$7:$C$223,0))),\"\")","v":""},{"$f":"IFERROR(IF(INDEX('Coverage Indicator_Import-Expor'!S$7:S$223,MATCH($B71,'Coverage Indicator_Import-Expor'!$C$7:$C$223,0))=\"\",\"\",INDEX('Coverage Indicator_Import-Expor'!S$7:S$223,MATCH($B71,'Coverage Indicator_Import-Expor'!$C$7:$C$223,0))),\"\")","v":""},{"$f":"IFERROR(IF(INDEX('Coverage Indicator_Import-Expor'!T$7:T$223,MATCH($B71,'Coverage Indicator_Import-Expor'!$C$7:$C$223,0))=\"\",\"\",INDEX('Coverage Indicator_Import-Expor'!T$7:T$223,MATCH($B71,'Coverage Indicator_Import-Expor'!$C$7:$C$223,0))),\"\")","v":""},{"$f":"IFERROR(IF(INDEX('Coverage Indicator_Import-Expor'!U$7:U$223,MATCH($B71,'Coverage Indicator_Import-Expor'!$C$7:$C$223,0))=\"\",\"\",INDEX('Coverage Indicator_Import-Expor'!U$7:U$223,MATCH($B71,'Coverage Indicator_Import-Expor'!$C$7:$C$223,0))),\"\")","v":""},null,null,"",null," ",null,"No Results Reported",null,null,"",null," ",null,null,"No Results Reported",null,null,""," ",null,"No Results Reported"]
[62,"Coverage62",{"$f":"IFERROR(INDEX('Coverage Indicator_Import-Expor'!$D$7:$D$223,MATCH(B72,'Coverage Indicator_Import-Expor'!$C$7:$C$223,0)),\"\")","v":""},{"$f":"IFERROR(INDEX('Coverage Indicator_Import-Expor'!$E$7:$E$223,MATCH(B72,'Coverage Indicator_Import-Expor'!$C$7:$C$223,0)),\"\")","v":""},{"$f":"IFERROR(IF(INDEX('Coverage Indicator_Import-Expor'!K$7:K$223,MATCH($B72,'Coverage Indicator_Import-Expor'!$C$7:$C$223,0))=\"\",\"\",INDEX('Coverage Indicator_Import-Expor'!K$7:K$223,MATCH($B72,'Coverage Indicator_Import-Expor'!$C$7:$C$223,0))),\"\")","v":""},{"$f":"IFERROR(IF(INDEX('Coverage Indicator_Import-Expor'!L$7:L$223,MATCH($B72,'Coverage Indicator_Import-Expor'!$C$7:$C$223,0))=\"\",\"\",INDEX('Coverage Indicator_Import-Expor'!L$7:L$223,MATCH($B72,'Coverage Indicator_Import-Expor'!$C$7:$C$223,0))),\"\")","v":""},{"$f":"IFERROR(IF(INDEX('Coverage Indicator_Import-Expor'!AR$7:AR$223,MATCH($B72,'Coverage Indicator_Import-Expor'!$C$7:$C$223,0))=\"\",\"\",INDEX('Coverage Indicator_Import-Expor'!AR$7:AR$223,MATCH($B72,'Coverage Indicator_Import-Expor'!$C$7:$C$223,0))),\"\")","v":""},{"$f":"IFERROR(IF(INDEX('Coverage Indicator_Import-Expor'!AS$7:AS$223,MATCH($B72,'Coverage Indicator_Import-Expor'!$C$7:$C$223,0))=\"\",\"\",INDEX('Coverage Indicator_Import-Expor'!AS$7:AS$223,MATCH($B72,'Coverage Indicator_Import-Expor'!$C$7:$C$223,0))),\"\")","v":""},{"$f":"IFERROR(IF(INDEX('Coverage Indicator_Import-Expor'!N$7:N$223,MATCH($B72,'Coverage Indicator_Import-Expor'!$C$7:$C$223,0))=\"\",\"\",INDEX('Coverage Indicator_Import-Expor'!N$7:N$223,MATCH($B72,'Coverage Indicator_Import-Expor'!$C$7:$C$223,0))),\"\")","v":""},{"$f":"IFERROR(IF(INDEX('Coverage Indicator_Import-Expor'!O$7:O$223,MATCH($B72,'Coverage Indicator_Import-Expor'!$C$7:$C$223,0))=\"\",\"\",INDEX('Coverage Indicator_Import-Expor'!O$7:O$223,MATCH($B72,'Coverage Indicator_Import-Expor'!$C$7:$C$223,0))),\"\")","v":""},{"$f":"IFERROR(IF(INDEX('Coverage Indicator_Import-Expor'!P$7:P$223,MATCH($B72,'Coverage Indicator_Import-Expor'!$C$7:$C$223,0))=\"\",\"\",INDEX('Coverage Indicator_Import-Expor'!P$7:P$223,MATCH($B72,'Coverage Indicator_Import-Expor'!$C$7:$C$223,0))),\"\")","v":""},{"$f":"IFERROR(IF(INDEX('Coverage Indicator_Import-Expor'!Q$7:Q$223,MATCH($B72,'Coverage Indicator_Import-Expor'!$C$7:$C$223,0))=\"\",\"\",INDEX('Coverage Indicator_Import-Expor'!Q$7:Q$223,MATCH($B72,'Coverage Indicator_Import-Expor'!$C$7:$C$223,0))),\"\")","v":""},{"$f":"IFERROR(IF(INDEX('Coverage Indicator_Import-Expor'!R$7:R$223,MATCH($B72,'Coverage Indicator_Import-Expor'!$C$7:$C$223,0))=\"\",\"\",INDEX('Coverage Indicator_Import-Expor'!R$7:R$223,MATCH($B72,'Coverage Indicator_Import-Expor'!$C$7:$C$223,0))),\"\")","v":""},{"$f":"IFERROR(IF(INDEX('Coverage Indicator_Import-Expor'!S$7:S$223,MATCH($B72,'Coverage Indicator_Import-Expor'!$C$7:$C$223,0))=\"\",\"\",INDEX('Coverage Indicator_Import-Expor'!S$7:S$223,MATCH($B72,'Coverage Indicator_Import-Expor'!$C$7:$C$223,0))),\"\")","v":""},{"$f":"IFERROR(IF(INDEX('Coverage Indicator_Import-Expor'!T$7:T$223,MATCH($B72,'Coverage Indicator_Import-Expor'!$C$7:$C$223,0))=\"\",\"\",INDEX('Coverage Indicator_Import-Expor'!T$7:T$223,MATCH($B72,'Coverage Indicator_Import-Expor'!$C$7:$C$223,0))),\"\")","v":""},{"$f":"IFERROR(IF(INDEX('Coverage Indicator_Import-Expor'!U$7:U$223,MATCH($B72,'Coverage Indicator_Import-Expor'!$C$7:$C$223,0))=\"\",\"\",INDEX('Coverage Indicator_Import-Expor'!U$7:U$223,MATCH($B72,'Coverage Indicator_Import-Expor'!$C$7:$C$223,0))),\"\")","v":""},null,null,"",null," ",null,"No Results Reported",null,null,"",null," ",null,null,"No Results Reported",null,null,""," ",null,"No Results Reported"]
[63,"Coverage63",{"$f":"IFERROR(INDEX('Coverage Indicator_Import-Expor'!$D$7:$D$223,MATCH(B73,'Coverage Indicator_Import-Expor'!$C$7:$C$223,0)),\"\")","v":""},{"$f":"IFERROR(INDEX('Coverage Indicator_Import-Expor'!$E$7:$E$223,MATCH(B73,'Coverage Indicator_Import-Expor'!$C$7:$C$223,0)),\"\")","v":""},{"$f":"IFERROR(IF(INDEX('Coverage Indicator_Import-Expor'!K$7:K$223,MATCH($B73,'Coverage Indicator_Import-Expor'!$C$7:$C$223,0))=\"\",\"\",INDEX('Coverage Indicator_Import-Expor'!K$7:K$223,MATCH($B73,'Coverage Indicator_Import-Expor'!$C$7:$C$223,0))),\"\")","v":""},{"$f":"IFERROR(IF(INDEX('Coverage Indicator_Import-Expor'!L$7:L$223,MATCH($B73,'Coverage Indicator_Import-Expor'!$C$7:$C$223,0))=\"\",\"\",INDEX('Coverage Indicator_Import-Expor'!L$7:L$223,MATCH($B73,'Coverage Indicator_Import-Expor'!$C$7:$C$223,0))),\"\")","v":""},{"$f":"IFERROR(IF(INDEX('Coverage Indicator_Import-Expor'!AR$7:AR$223,MATCH($B73,'Coverage Indicator_Import-Expor'!$C$7:$C$223,0))=\"\",\"\",INDEX('Coverage Indicator_Import-Expor'!AR$7:AR$223,MATCH($B73,'Coverage Indicator_Import-Expor'!$C$7:$C$223,0))),\"\")","v":""},{"$f":"IFERROR(IF(INDEX('Coverage Indicator_Import-Expor'!AS$7:AS$223,MATCH($B73,'Coverage Indicator_Import-Expor'!$C$7:$C$223,0))=\"\",\"\",INDEX('Coverage Indicator_Import-Expor'!AS$7:AS$223,MATCH($B73,'Coverage Indicator_Import-Expor'!$C$7:$C$223,0))),\"\")","v":""},{"$f":"IFERROR(IF(INDEX('Coverage Indicator_Import-Expor'!N$7:N$223,MATCH($B73,'Coverage Indicator_Import-Expor'!$C$7:$C$223,0))=\"\",\"\",INDEX('Coverage Indicator_Import-Expor'!N$7:N$223,MATCH($B73,'Coverage Indicator_Import-Expor'!$C$7:$C$223,0))),\"\")","v":""},{"$f":"IFERROR(IF(INDEX('Coverage Indicator_Import-Expor'!O$7:O$223,MATCH($B73,'Coverage Indicator_Import-Expor'!$C$7:$C$223,0))=\"\",\"\",INDEX('Coverage Indicator_Import-Expor'!O$7:O$223,MATCH($B73,'Coverage Indicator_Import-Expor'!$C$7:$C$223,0))),\"\")","v":""},{"$f":"IFERROR(IF(INDEX('Coverage Indicator_Import-Expor'!P$7:P$223,MATCH($B73,'Coverage Indicator_Import-Expor'!$C$7:$C$223,0))=\"\",\"\",INDEX('Coverage Indicator_Import-Expor'!P$7:P$223,MATCH($B73,'Coverage Indicator_Import-Expor'!$C$7:$C$223,0))),\"\")","v":""},{"$f":"IFERROR(IF(INDEX('Coverage Indicator_Import-Expor'!Q$7:Q$223,MATCH($B73,'Coverage Indicator_Import-Expor'!$C$7:$C$223,0))=\"\",\"\",INDEX('Coverage Indicator_Import-Expor'!Q$7:Q$223,MATCH($B73,'Coverage Indicator_Import-Expor'!$C$7:$C$223,0))),\"\")","v":""},{"$f":"IFERROR(IF(INDEX('Coverage Indicator_Import-Expor'!R$7:R$223,MATCH($B73,'Coverage Indicator_Import-Expor'!$C$7:$C$223,0))=\"\",\"\",INDEX('Coverage Indicator_Import-Expor'!R$7:R$223,MATCH($B73,'Coverage Indicator_Import-Expor'!$C$7:$C$223,0))),\"\")","v":""},{"$f":"IFERROR(IF(INDEX('Coverage Indicator_Import-Expor'!S$7:S$223,MATCH($B73,'Coverage Indicator_Import-Expor'!$C$7:$C$223,0))=\"\",\"\",INDEX('Coverage Indicator_Import-Expor'!S$7:S$223,MATCH($B73,'Coverage Indicator_Import-Expor'!$C$7:$C$223,0))),\"\")","v":""},{"$f":"IFERROR(IF(INDEX('Coverage Indicator_Import-Expor'!T$7:T$223,MATCH($B73,'Coverage Indicator_Import-Expor'!$C$7:$C$223,0))=\"\",\"\",INDEX('Coverage Indicator_Import-Expor'!T$7:T$223,MATCH($B73,'Coverage Indicator_Import-Expor'!$C$7:$C$223,0))),\"\")","v":""},{"$f":"IFERROR(IF(INDEX('Coverage Indicator_Import-Expor'!U$7:U$223,MATCH($B73,'Coverage Indicator_Import-Expor'!$C$7:$C$223,0))=\"\",\"\",INDEX('Coverage Indicator_Import-Expor'!U$7:U$223,MATCH($B73,'Coverage Indicator_Import-Expor'!$C$7:$C$223,0))),\"\")","v":""},null,null,"",null," ",null,"No Results Reported",null,null,"",null," ",null,null,"No Results Reported",null,null,""," ",null,"No Results Reported"]
[64,"Coverage64",{"$f":"IFERROR(INDEX('Coverage Indicator_Import-Expor'!$D$7:$D$223,MATCH(B74,'Coverage Indicator_Import-Expor'!$C$7:$C$223,0)),\"\")","v":""},{"$f":"IFERROR(INDEX('Coverage Indicator_Import-Expor'!$E$7:$E$223,MATCH(B74,'Coverage Indicator_Import-Expor'!$C$7:$C$223,0)),\"\")","v":""},{"$f":"IFERROR(IF(INDEX('Coverage Indicator_Import-Expor'!K$7:K$223,MATCH($B74,'Coverage Indicator_Import-Expor'!$C$7:$C$223,0))=\"\",\"\",INDEX('Coverage Indicator_Import-Expor'!K$7:K$223,MATCH($B74,'Coverage Indicator_Import-Expor'!$C$7:$C$223,0))),\"\")","v":""},{"$f":"IFERROR(IF(INDEX('Coverage Indicator_Import-Expor'!L$7:L$223,MATCH($B74,'Coverage Indicator_Import-Expor'!$C$7:$C$223,0))=\"\",\"\",INDEX('Coverage Indicator_Import-Expor'!L$7:L$223,MATCH($B74,'Coverage Indicator_Import-Expor'!$C$7:$C$223,0))),\"\")","v":""},{"$f":"IFERROR(IF(INDEX('Coverage Indicator_Import-Expor'!AR$7:AR$223,MATCH($B74,'Coverage Indicator_Import-Expor'!$C$7:$C$223,0))=\"\",\"\",INDEX('Coverage Indicator_Import-Expor'!AR$7:AR$223,MATCH($B74,'Coverage Indicator_Import-Expor'!$C$7:$C$223,0))),\"\")","v":""},{"$f":"IFERROR(IF(INDEX('Coverage Indicator_Import-Expor'!AS$7:AS$223,MATCH($B74,'Coverage Indicator_Import-Expor'!$C$7:$C$223,0))=\"\",\"\",INDEX('Coverage Indicator_Import-Expor'!AS$7:AS$223,MATCH($B74,'Coverage Indicator_Import-Expor'!$C$7:$C$223,0))),\"\")","v":""},{"$f":"IFERROR(IF(INDEX('Coverage Indicator_Import-Expor'!N$7:N$223,MATCH($B74,'Coverage Indicator_Import-Expor'!$C$7:$C$223,0))=\"\",\"\",INDEX('Coverage Indicator_Import-Expor'!N$7:N$223,MATCH($B74,'Coverage Indicator_Import-Expor'!$C$7:$C$223,0))),\"\")","v":""},{"$f":"IFERROR(IF(INDEX('Coverage Indicator_Import-Expor'!O$7:O$223,MATCH($B74,'Coverage Indicator_Import-Expor'!$C$7:$C$223,0))=\"\",\"\",INDEX('Coverage Indicator_Import-Expor'!O$7:O$223,MATCH($B74,'Coverage Indicator_Import-Expor'!$C$7:$C$223,0))),\"\")","v":""},{"$f":"IFERROR(IF(INDEX('Coverage Indicator_Import-Expor'!P$7:P$223,MATCH($B74,'Coverage Indicator_Import-Expor'!$C$7:$C$223,0))=\"\",\"\",INDEX('Coverage Indicator_Import-Expor'!P$7:P$223,MATCH($B74,'Coverage Indicator_Import-Expor'!$C$7:$C$223,0))),\"\")","v":""},{"$f":"IFERROR(IF(INDEX('Coverage Indicator_Import-Expor'!Q$7:Q$223,MATCH($B74,'Coverage Indicator_Import-Expor'!$C$7:$C$223,0))=\"\",\"\",INDEX('Coverage Indicator_Import-Expor'!Q$7:Q$223,MATCH($B74,'Coverage Indicator_Import-Expor'!$C$7:$C$223,0))),\"\")","v":""},{"$f":"IFERROR(IF(INDEX('Coverage Indicator_Import-Expor'!R$7:R$223,MATCH($B74,'Coverage Indicator_Import-Expor'!$C$7:$C$223,0))=\"\",\"\",INDEX('Coverage Indicator_Import-Expor'!R$7:R$223,MATCH($B74,'Coverage Indicator_Import-Expor'!$C$7:$C$223,0))),\"\")","v":""},{"$f":"IFERROR(IF(INDEX('Coverage Indicator_Import-Expor'!S$7:S$223,MATCH($B74,'Coverage Indicator_Import-Expor'!$C$7:$C$223,0))=\"\",\"\",INDEX('Coverage Indicator_Import-Expor'!S$7:S$223,MATCH($B74,'Coverage Indicator_Import-Expor'!$C$7:$C$223,0))),\"\")","v":""},{"$f":"IFERROR(IF(INDEX('Coverage Indicator_Import-Expor'!T$7:T$223,MATCH($B74,'Coverage Indicator_Import-Expor'!$C$7:$C$223,0))=\"\",\"\",INDEX('Coverage Indicator_Import-Expor'!T$7:T$223,MATCH($B74,'Coverage Indicator_Import-Expor'!$C$7:$C$223,0))),\"\")","v":""},{"$f":"IFERROR(IF(INDEX('Coverage Indicator_Import-Expor'!U$7:U$223,MATCH($B74,'Coverage Indicator_Import-Expor'!$C$7:$C$223,0))=\"\",\"\",INDEX('Coverage Indicator_Import-Expor'!U$7:U$223,MATCH($B74,'Coverage Indicator_Import-Expor'!$C$7:$C$223,0))),\"\")","v":""},null,null,"",null," ",null,"No Results Reported",null,null,"",null," ",null,null,"No Results Reported",null,null,""," ",null,"No Results Reported"]
[65,"Coverage65",{"$f":"IFERROR(INDEX('Coverage Indicator_Import-Expor'!$D$7:$D$223,MATCH(B75,'Coverage Indicator_Import-Expor'!$C$7:$C$223,0)),\"\")","v":""},{"$f":"IFERROR(INDEX('Coverage Indicator_Import-Expor'!$E$7:$E$223,MATCH(B75,'Coverage Indicator_Import-Expor'!$C$7:$C$223,0)),\"\")","v":""},{"$f":"IFERROR(IF(INDEX('Coverage Indicator_Import-Expor'!K$7:K$223,MATCH($B75,'Coverage Indicator_Import-Expor'!$C$7:$C$223,0))=\"\",\"\",INDEX('Coverage Indicator_Import-Expor'!K$7:K$223,MATCH($B75,'Coverage Indicator_Import-Expor'!$C$7:$C$223,0))),\"\")","v":""},{"$f":"IFERROR(IF(INDEX('Coverage Indicator_Import-Expor'!L$7:L$223,MATCH($B75,'Coverage Indicator_Import-Expor'!$C$7:$C$223,0))=\"\",\"\",INDEX('Coverage Indicator_Import-Expor'!L$7:L$223,MATCH($B75,'Coverage Indicator_Import-Expor'!$C$7:$C$223,0))),\"\")","v":""},{"$f":"IFERROR(IF(INDEX('Coverage Indicator_Import-Expor'!AR$7:AR$223,MATCH($B75,'Coverage Indicator_Import-Expor'!$C$7:$C$223,0))=\"\",\"\",INDEX('Coverage Indicator_Import-Expor'!AR$7:AR$223,MATCH($B75,'Coverage Indicator_Import-Expor'!$C$7:$C$223,0))),\"\")","v":""},{"$f":"IFERROR(IF(INDEX('Coverage Indicator_Import-Expor'!AS$7:AS$223,MATCH($B75,'Coverage Indicator_Import-Expor'!$C$7:$C$223,0))=\"\",\"\",INDEX('Coverage Indicator_Import-Expor'!AS$7:AS$223,MATCH($B75,'Coverage Indicator_Import-Expor'!$C$7:$C$223,0))),\"\")","v":""},{"$f":"IFERROR(IF(INDEX('Coverage Indicator_Import-Expor'!N$7:N$223,MATCH($B75,'Coverage Indicator_Import-Expor'!$C$7:$C$223,0))=\"\",\"\",INDEX('Coverage Indicator_Import-Expor'!N$7:N$223,MATCH($B75,'Coverage Indicator_Import-Expor'!$C$7:$C$223,0))),\"\")","v":""},{"$f":"IFERROR(IF(INDEX('Coverage Indicator_Import-Expor'!O$7:O$223,MATCH($B75,'Coverage Indicator_Import-Expor'!$C$7:$C$223,0))=\"\",\"\",INDEX('Coverage Indicator_Import-Expor'!O$7:O$223,MATCH($B75,'Coverage Indicator_Import-Expor'!$C$7:$C$223,0))),\"\")","v":""},{"$f":"IFERROR(IF(INDEX('Coverage Indicator_Import-Expor'!P$7:P$223,MATCH($B75,'Coverage Indicator_Import-Expor'!$C$7:$C$223,0))=\"\",\"\",INDEX('Coverage Indicator_Import-Expor'!P$7:P$223,MATCH($B75,'Coverage Indicator_Import-Expor'!$C$7:$C$223,0))),\"\")","v":""},{"$f":"IFERROR(IF(INDEX('Coverage Indicator_Import-Expor'!Q$7:Q$223,MATCH($B75,'Coverage Indicator_Import-Expor'!$C$7:$C$223,0))=\"\",\"\",INDEX('Coverage Indicator_Import-Expor'!Q$7:Q$223,MATCH($B75,'Coverage Indicator_Import-Expor'!$C$7:$C$223,0))),\"\")","v":""},{"$f":"IFERROR(IF(INDEX('Coverage Indicator_Import-Expor'!R$7:R$223,MATCH($B75,'Coverage Indicator_Import-Expor'!$C$7:$C$223,0))=\"\",\"\",INDEX('Coverage Indicator_Import-Expor'!R$7:R$223,MATCH($B75,'Coverage Indicator_Import-Expor'!$C$7:$C$223,0))),\"\")","v":""},{"$f":"IFERROR(IF(INDEX('Coverage Indicator_Import-Expor'!S$7:S$223,MATCH($B75,'Coverage Indicator_Import-Expor'!$C$7:$C$223,0))=\"\",\"\",INDEX('Coverage Indicator_Import-Expor'!S$7:S$223,MATCH($B75,'Coverage Indicator_Import-Expor'!$C$7:$C$223,0))),\"\")","v":""},{"$f":"IFERROR(IF(INDEX('Coverage Indicator_Import-Expor'!T$7:T$223,MATCH($B75,'Coverage Indicator_Import-Expor'!$C$7:$C$223,0))=\"\",\"\",INDEX('Coverage Indicator_Import-Expor'!T$7:T$223,MATCH($B75,'Coverage Indicator_Import-Expor'!$C$7:$C$223,0))),\"\")","v":""},{"$f":"IFERROR(IF(INDEX('Coverage Indicator_Import-Expor'!U$7:U$223,MATCH($B75,'Coverage Indicator_Import-Expor'!$C$7:$C$223,0))=\"\",\"\",INDEX('Coverage Indicator_Import-Expor'!U$7:U$223,MATCH($B75,'Coverage Indicator_Import-Expor'!$C$7:$C$223,0))),\"\")","v":""},null,null,"",null," ",null,"No Results Reported",null,null,"",null," ",null,null,"No Results Reported",null,null,""," ",null,"No Results Reported"]
[{"$f":"A75+1","v":66},"Coverage66",{"$f":"IFERROR(INDEX('Coverage Indicator_Import-Expor'!$D$7:$D$223,MATCH(B76,'Coverage Indicator_Import-Expor'!$C$7:$C$223,0)),\"\")","v":""},{"$f":"IFERROR(INDEX('Coverage Indicator_Import-Expor'!$E$7:$E$223,MATCH(B76,'Coverage Indicator_Import-Expor'!$C$7:$C$223,0)),\"\")","v":""},{"$f":"IFERROR(IF(INDEX('Coverage Indicator_Import-Expor'!K$7:K$223,MATCH($B76,'Coverage Indicator_Import-Expor'!$C$7:$C$223,0))=\"\",\"\",INDEX('Coverage Indicator_Import-Expor'!K$7:K$223,MATCH($B76,'Coverage Indicator_Import-Expor'!$C$7:$C$223,0))),\"\")","v":""},{"$f":"IFERROR(IF(INDEX('Coverage Indicator_Import-Expor'!L$7:L$223,MATCH($B76,'Coverage Indicator_Import-Expor'!$C$7:$C$223,0))=\"\",\"\",INDEX('Coverage Indicator_Import-Expor'!L$7:L$223,MATCH($B76,'Coverage Indicator_Import-Expor'!$C$7:$C$223,0))),\"\")","v":""},{"$f":"IFERROR(IF(INDEX('Coverage Indicator_Import-Expor'!AR$7:AR$223,MATCH($B76,'Coverage Indicator_Import-Expor'!$C$7:$C$223,0))=\"\",\"\",INDEX('Coverage Indicator_Import-Expor'!AR$7:AR$223,MATCH($B76,'Coverage Indicator_Import-Expor'!$C$7:$C$223,0))),\"\")","v":""},{"$f":"IFERROR(IF(INDEX('Coverage Indicator_Import-Expor'!AS$7:AS$223,MATCH($B76,'Coverage Indicator_Import-Expor'!$C$7:$C$223,0))=\"\",\"\",INDEX('Coverage Indicator_Import-Expor'!AS$7:AS$223,MATCH($B76,'Coverage Indicator_Import-Expor'!$C$7:$C$223,0))),\"\")","v":""},{"$f":"IFERROR(IF(INDEX('Coverage Indicator_Import-Expor'!N$7:N$223,MATCH($B76,'Coverage Indicator_Import-Expor'!$C$7:$C$223,0))=\"\",\"\",INDEX('Coverage Indicator_Import-Expor'!N$7:N$223,MATCH($B76,'Coverage Indicator_Import-Expor'!$C$7:$C$223,0))),\"\")","v":""},{"$f":"IFERROR(IF(INDEX('Coverage Indicator_Import-Expor'!O$7:O$223,MATCH($B76,'Coverage Indicator_Import-Expor'!$C$7:$C$223,0))=\"\",\"\",INDEX('Coverage Indicator_Import-Expor'!O$7:O$223,MATCH($B76,'Coverage Indicator_Import-Expor'!$C$7:$C$223,0))),\"\")","v":""},{"$f":"IFERROR(IF(INDEX('Coverage Indicator_Import-Expor'!P$7:P$223,MATCH($B76,'Coverage Indicator_Import-Expor'!$C$7:$C$223,0))=\"\",\"\",INDEX('Coverage Indicator_Import-Expor'!P$7:P$223,MATCH($B76,'Coverage Indicator_Import-Expor'!$C$7:$C$223,0))),\"\")","v":""},{"$f":"IFERROR(IF(INDEX('Coverage Indicator_Import-Expor'!Q$7:Q$223,MATCH($B76,'Coverage Indicator_Import-Expor'!$C$7:$C$223,0))=\"\",\"\",INDEX('Coverage Indicator_Import-Expor'!Q$7:Q$223,MATCH($B76,'Coverage Indicator_Import-Expor'!$C$7:$C$223,0))),\"\")","v":""},{"$f":"IFERROR(IF(INDEX('Coverage Indicator_Import-Expor'!R$7:R$223,MATCH($B76,'Coverage Indicator_Import-Expor'!$C$7:$C$223,0))=\"\",\"\",INDEX('Coverage Indicator_Import-Expor'!R$7:R$223,MATCH($B76,'Coverage Indicator_Import-Expor'!$C$7:$C$223,0))),\"\")","v":""},{"$f":"IFERROR(IF(INDEX('Coverage Indicator_Import-Expor'!S$7:S$223,MATCH($B76,'Coverage Indicator_Import-Expor'!$C$7:$C$223,0))=\"\",\"\",INDEX('Coverage Indicator_Import-Expor'!S$7:S$223,MATCH($B76,'Coverage Indicator_Import-Expor'!$C$7:$C$223,0))),\"\")","v":""},{"$f":"IFERROR(IF(INDEX('Coverage Indicator_Import-Expor'!T$7:T$223,MATCH($B76,'Coverage Indicator_Import-Expor'!$C$7:$C$223,0))=\"\",\"\",INDEX('Coverage Indicator_Import-Expor'!T$7:T$223,MATCH($B76,'Coverage Indicator_Import-Expor'!$C$7:$C$223,0))),\"\")","v":""},{"$f":"IFERROR(IF(INDEX('Coverage Indicator_Import-Expor'!U$7:U$223,MATCH($B76,'Coverage Indicator_Import-Expor'!$C$7:$C$223,0))=\"\",\"\",INDEX('Coverage Indicator_Import-Expor'!U$7:U$223,MATCH($B76,'Coverage Indicator_Import-Expor'!$C$7:$C$223,0))),\"\")","v":""},null,null,"",null," ",null,"No Results Reported",null,null,"",null," ",null,null,"No Results Reported",null,null,""," ",null,"No Results Reported"]
[67,"Coverage67",{"$f":"IFERROR(INDEX('Coverage Indicator_Import-Expor'!$D$7:$D$223,MATCH(B77,'Coverage Indicator_Import-Expor'!$C$7:$C$223,0)),\"\")","v":""},{"$f":"IFERROR(INDEX('Coverage Indicator_Import-Expor'!$E$7:$E$223,MATCH(B77,'Coverage Indicator_Import-Expor'!$C$7:$C$223,0)),\"\")","v":""},{"$f":"IFERROR(IF(INDEX('Coverage Indicator_Import-Expor'!K$7:K$223,MATCH($B77,'Coverage Indicator_Import-Expor'!$C$7:$C$223,0))=\"\",\"\",INDEX('Coverage Indicator_Import-Expor'!K$7:K$223,MATCH($B77,'Coverage Indicator_Import-Expor'!$C$7:$C$223,0))),\"\")","v":""},{"$f":"IFERROR(IF(INDEX('Coverage Indicator_Import-Expor'!L$7:L$223,MATCH($B77,'Coverage Indicator_Import-Expor'!$C$7:$C$223,0))=\"\",\"\",INDEX('Coverage Indicator_Import-Expor'!L$7:L$223,MATCH($B77,'Coverage Indicator_Import-Expor'!$C$7:$C$223,0))),\"\")","v":""},{"$f":"IFERROR(IF(INDEX('Coverage Indicator_Import-Expor'!AR$7:AR$223,MATCH($B77,'Coverage Indicator_Import-Expor'!$C$7:$C$223,0))=\"\",\"\",INDEX('Coverage Indicator_Import-Expor'!AR$7:AR$223,MATCH($B77,'Coverage Indicator_Import-Expor'!$C$7:$C$223,0))),\"\")","v":""},{"$f":"IFERROR(IF(INDEX('Coverage Indicator_Import-Expor'!AS$7:AS$223,MATCH($B77,'Coverage Indicator_Import-Expor'!$C$7:$C$223,0))=\"\",\"\",INDEX('Coverage Indicator_Import-Expor'!AS$7:AS$223,MATCH($B77,'Coverage Indicator_Import-Expor'!$C$7:$C$223,0))),\"\")","v":""},{"$f":"IFERROR(IF(INDEX('Coverage Indicator_Import-Expor'!N$7:N$223,MATCH($B77,'Coverage Indicator_Import-Expor'!$C$7:$C$223,0))=\"\",\"\",INDEX('Coverage Indicator_Import-Expor'!N$7:N$223,MATCH($B77,'Coverage Indicator_Import-Expor'!$C$7:$C$223,0))),\"\")","v":""},{"$f":"IFERROR(IF(INDEX('Coverage Indicator_Import-Expor'!O$7:O$223,MATCH($B77,'Coverage Indicator_Import-Expor'!$C$7:$C$223,0))=\"\",\"\",INDEX('Coverage Indicator_Import-Expor'!O$7:O$223,MATCH($B77,'Coverage Indicator_Import-Expor'!$C$7:$C$223,0))),\"\")","v":""},{"$f":"IFERROR(IF(INDEX('Coverage Indicator_Import-Expor'!P$7:P$223,MATCH($B77,'Coverage Indicator_Import-Expor'!$C$7:$C$223,0))=\"\",\"\",INDEX('Coverage Indicator_Import-Expor'!P$7:P$223,MATCH($B77,'Coverage Indicator_Import-Expor'!$C$7:$C$223,0))),\"\")","v":""},{"$f":"IFERROR(IF(INDEX('Coverage Indicator_Import-Expor'!Q$7:Q$223,MATCH($B77,'Coverage Indicator_Import-Expor'!$C$7:$C$223,0))=\"\",\"\",INDEX('Coverage Indicator_Import-Expor'!Q$7:Q$223,MATCH($B77,'Coverage Indicator_Import-Expor'!$C$7:$C$223,0))),\"\")","v":""},{"$f":"IFERROR(IF(INDEX('Coverage Indicator_Import-Expor'!R$7:R$223,MATCH($B77,'Coverage Indicator_Import-Expor'!$C$7:$C$223,0))=\"\",\"\",INDEX('Coverage Indicator_Import-Expor'!R$7:R$223,MATCH($B77,'Coverage Indicator_Import-Expor'!$C$7:$C$223,0))),\"\")","v":""},{"$f":"IFERROR(IF(INDEX('Coverage Indicator_Import-Expor'!S$7:S$223,MATCH($B77,'Coverage Indicator_Import-Expor'!$C$7:$C$223,0))=\"\",\"\",INDEX('Coverage Indicator_Import-Expor'!S$7:S$223,MATCH($B77,'Coverage Indicator_Import-Expor'!$C$7:$C$223,0))),\"\")","v":""},{"$f":"IFERROR(IF(INDEX('Coverage Indicator_Import-Expor'!T$7:T$223,MATCH($B77,'Coverage Indicator_Import-Expor'!$C$7:$C$223,0))=\"\",\"\",INDEX('Coverage Indicator_Import-Expor'!T$7:T$223,MATCH($B77,'Coverage Indicator_Import-Expor'!$C$7:$C$223,0))),\"\")","v":""},{"$f":"IFERROR(IF(INDEX('Coverage Indicator_Import-Expor'!U$7:U$223,MATCH($B77,'Coverage Indicator_Import-Expor'!$C$7:$C$223,0))=\"\",\"\",INDEX('Coverage Indicator_Import-Expor'!U$7:U$223,MATCH($B77,'Coverage Indicator_Import-Expor'!$C$7:$C$223,0))),\"\")","v":""},null,null,"",null," ",null,"No Results Reported",null,null,"",null," ",null,null,"No Results Reported",null,null,""," ",null,"No Results Reported"]
[68,"Coverage68",{"$f":"IFERROR(INDEX('Coverage Indicator_Import-Expor'!$D$7:$D$223,MATCH(B78,'Coverage Indicator_Import-Expor'!$C$7:$C$223,0)),\"\")","v":""},{"$f":"IFERROR(INDEX('Coverage Indicator_Import-Expor'!$E$7:$E$223,MATCH(B78,'Coverage Indicator_Import-Expor'!$C$7:$C$223,0)),\"\")","v":""},{"$f":"IFERROR(IF(INDEX('Coverage Indicator_Import-Expor'!K$7:K$223,MATCH($B78,'Coverage Indicator_Import-Expor'!$C$7:$C$223,0))=\"\",\"\",INDEX('Coverage Indicator_Import-Expor'!K$7:K$223,MATCH($B78,'Coverage Indicator_Import-Expor'!$C$7:$C$223,0))),\"\")","v":""},{"$f":"IFERROR(IF(INDEX('Coverage Indicator_Import-Expor'!L$7:L$223,MATCH($B78,'Coverage Indicator_Import-Expor'!$C$7:$C$223,0))=\"\",\"\",INDEX('Coverage Indicator_Import-Expor'!L$7:L$223,MATCH($B78,'Coverage Indicator_Import-Expor'!$C$7:$C$223,0))),\"\")","v":""},{"$f":"IFERROR(IF(INDEX('Coverage Indicator_Import-Expor'!AR$7:AR$223,MATCH($B78,'Coverage Indicator_Import-Expor'!$C$7:$C$223,0))=\"\",\"\",INDEX('Coverage Indicator_Import-Expor'!AR$7:AR$223,MATCH($B78,'Coverage Indicator_Import-Expor'!$C$7:$C$223,0))),\"\")","v":""},{"$f":"IFERROR(IF(INDEX('Coverage Indicator_Import-Expor'!AS$7:AS$223,MATCH($B78,'Coverage Indicator_Import-Expor'!$C$7:$C$223,0))=\"\",\"\",INDEX('Coverage Indicator_Import-Expor'!AS$7:AS$223,MATCH($B78,'Coverage Indicator_Import-Expor'!$C$7:$C$223,0))),\"\")","v":""},{"$f":"IFERROR(IF(INDEX('Coverage Indicator_Import-Expor'!N$7:N$223,MATCH($B78,'Coverage Indicator_Import-Expor'!$C$7:$C$223,0))=\"\",\"\",INDEX('Coverage Indicator_Import-Expor'!N$7:N$223,MATCH($B78,'Coverage Indicator_Import-Expor'!$C$7:$C$223,0))),\"\")","v":""},{"$f":"IFERROR(IF(INDEX('Coverage Indicator_Import-Expor'!O$7:O$223,MATCH($B78,'Coverage Indicator_Import-Expor'!$C$7:$C$223,0))=\"\",\"\",INDEX('Coverage Indicator_Import-Expor'!O$7:O$223,MATCH($B78,'Coverage Indicator_Import-Expor'!$C$7:$C$223,0))),\"\")","v":""},{"$f":"IFERROR(IF(INDEX('Coverage Indicator_Import-Expor'!P$7:P$223,MATCH($B78,'Coverage Indicator_Import-Expor'!$C$7:$C$223,0))=\"\",\"\",INDEX('Coverage Indicator_Import-Expor'!P$7:P$223,MATCH($B78,'Coverage Indicator_Import-Expor'!$C$7:$C$223,0))),\"\")","v":""},{"$f":"IFERROR(IF(INDEX('Coverage Indicator_Import-Expor'!Q$7:Q$223,MATCH($B78,'Coverage Indicator_Import-Expor'!$C$7:$C$223,0))=\"\",\"\",INDEX('Coverage Indicator_Import-Expor'!Q$7:Q$223,MATCH($B78,'Coverage Indicator_Import-Expor'!$C$7:$C$223,0))),\"\")","v":""},{"$f":"IFERROR(IF(INDEX('Coverage Indicator_Import-Expor'!R$7:R$223,MATCH($B78,'Coverage Indicator_Import-Expor'!$C$7:$C$223,0))=\"\",\"\",INDEX('Coverage Indicator_Import-Expor'!R$7:R$223,MATCH($B78,'Coverage Indicator_Import-Expor'!$C$7:$C$223,0))),\"\")","v":""},{"$f":"IFERROR(IF(INDEX('Coverage Indicator_Import-Expor'!S$7:S$223,MATCH($B78,'Coverage Indicator_Import-Expor'!$C$7:$C$223,0))=\"\",\"\",INDEX('Coverage Indicator_Import-Expor'!S$7:S$223,MATCH($B78,'Coverage Indicator_Import-Expor'!$C$7:$C$223,0))),\"\")","v":""},{"$f":"IFERROR(IF(INDEX('Coverage Indicator_Import-Expor'!T$7:T$223,MATCH($B78,'Coverage Indicator_Import-Expor'!$C$7:$C$223,0))=\"\",\"\",INDEX('Coverage Indicator_Import-Expor'!T$7:T$223,MATCH($B78,'Coverage Indicator_Import-Expor'!$C$7:$C$223,0))),\"\")","v":""},{"$f":"IFERROR(IF(INDEX('Coverage Indicator_Import-Expor'!U$7:U$223,MATCH($B78,'Coverage Indicator_Import-Expor'!$C$7:$C$223,0))=\"\",\"\",INDEX('Coverage Indicator_Import-Expor'!U$7:U$223,MATCH($B78,'Coverage Indicator_Import-Expor'!$C$7:$C$223,0))),\"\")","v":""},null,null,"",null," ",null,"No Results Reported",null,null,"",null," ",null,null,"No Results Reported",null,null,""," ",null,"No Results Reported"]
[69,"Coverage69",{"$f":"IFERROR(INDEX('Coverage Indicator_Import-Expor'!$D$7:$D$223,MATCH(B79,'Coverage Indicator_Import-Expor'!$C$7:$C$223,0)),\"\")","v":""},{"$f":"IFERROR(INDEX('Coverage Indicator_Import-Expor'!$E$7:$E$223,MATCH(B79,'Coverage Indicator_Import-Expor'!$C$7:$C$223,0)),\"\")","v":""},{"$f":"IFERROR(IF(INDEX('Coverage Indicator_Import-Expor'!K$7:K$223,MATCH($B79,'Coverage Indicator_Import-Expor'!$C$7:$C$223,0))=\"\",\"\",INDEX('Coverage Indicator_Import-Expor'!K$7:K$223,MATCH($B79,'Coverage Indicator_Import-Expor'!$C$7:$C$223,0))),\"\")","v":""},{"$f":"IFERROR(IF(INDEX('Coverage Indicator_Import-Expor'!L$7:L$223,MATCH($B79,'Coverage Indicator_Import-Expor'!$C$7:$C$223,0))=\"\",\"\",INDEX('Coverage Indicator_Import-Expor'!L$7:L$223,MATCH($B79,'Coverage Indicator_Import-Expor'!$C$7:$C$223,0))),\"\")","v":""},{"$f":"IFERROR(IF(INDEX('Coverage Indicator_Import-Expor'!AR$7:AR$223,MATCH($B79,'Coverage Indicator_Import-Expor'!$C$7:$C$223,0))=\"\",\"\",INDEX('Coverage Indicator_Import-Expor'!AR$7:AR$223,MATCH($B79,'Coverage Indicator_Import-Expor'!$C$7:$C$223,0))),\"\")","v":""},{"$f":"IFERROR(IF(INDEX('Coverage Indicator_Import-Expor'!AS$7:AS$223,MATCH($B79,'Coverage Indicator_Import-Expor'!$C$7:$C$223,0))=\"\",\"\",INDEX('Coverage Indicator_Import-Expor'!AS$7:AS$223,MATCH($B79,'Coverage Indicator_Import-Expor'!$C$7:$C$223,0))),\"\")","v":""},{"$f":"IFERROR(IF(INDEX('Coverage Indicator_Import-Expor'!N$7:N$223,MATCH($B79,'Coverage Indicator_Import-Expor'!$C$7:$C$223,0))=\"\",\"\",INDEX('Coverage Indicator_Import-Expor'!N$7:N$223,MATCH($B79,'Coverage Indicator_Import-Expor'!$C$7:$C$223,0))),\"\")","v":""},{"$f":"IFERROR(IF(INDEX('Coverage Indicator_Import-Expor'!O$7:O$223,MATCH($B79,'Coverage Indicator_Import-Expor'!$C$7:$C$223,0))=\"\",\"\",INDEX('Coverage Indicator_Import-Expor'!O$7:O$223,MATCH($B79,'Coverage Indicator_Import-Expor'!$C$7:$C$223,0))),\"\")","v":""},{"$f":"IFERROR(IF(INDEX('Coverage Indicator_Import-Expor'!P$7:P$223,MATCH($B79,'Coverage Indicator_Import-Expor'!$C$7:$C$223,0))=\"\",\"\",INDEX('Coverage Indicator_Import-Expor'!P$7:P$223,MATCH($B79,'Coverage Indicator_Import-Expor'!$C$7:$C$223,0))),\"\")","v":""},{"$f":"IFERROR(IF(INDEX('Coverage Indicator_Import-Expor'!Q$7:Q$223,MATCH($B79,'Coverage Indicator_Import-Expor'!$C$7:$C$223,0))=\"\",\"\",INDEX('Coverage Indicator_Import-Expor'!Q$7:Q$223,MATCH($B79,'Coverage Indicator_Import-Expor'!$C$7:$C$223,0))),\"\")","v":""},{"$f":"IFERROR(IF(INDEX('Coverage Indicator_Import-Expor'!R$7:R$223,MATCH($B79,'Coverage Indicator_Import-Expor'!$C$7:$C$223,0))=\"\",\"\",INDEX('Coverage Indicator_Import-Expor'!R$7:R$223,MATCH($B79,'Coverage Indicator_Import-Expor'!$C$7:$C$223,0))),\"\")","v":""},{"$f":"IFERROR(IF(INDEX('Coverage Indicator_Import-Expor'!S$7:S$223,MATCH($B79,'Coverage Indicator_Import-Expor'!$C$7:$C$223,0))=\"\",\"\",INDEX('Coverage Indicator_Import-Expor'!S$7:S$223,MATCH($B79,'Coverage Indicator_Import-Expor'!$C$7:$C$223,0))),\"\")","v":""},{"$f":"IFERROR(IF(INDEX('Coverage Indicator_Import-Expor'!T$7:T$223,MATCH($B79,'Coverage Indicator_Import-Expor'!$C$7:$C$223,0))=\"\",\"\",INDEX('Coverage Indicator_Import-Expor'!T$7:T$223,MATCH($B79,'Coverage Indicator_Import-Expor'!$C$7:$C$223,0))),\"\")","v":""},{"$f":"IFERROR(IF(INDEX('Coverage Indicator_Import-Expor'!U$7:U$223,MATCH($B79,'Coverage Indicator_Import-Expor'!$C$7:$C$223,0))=\"\",\"\",INDEX('Coverage Indicator_Import-Expor'!U$7:U$223,MATCH($B79,'Coverage Indicator_Import-Expor'!$C$7:$C$223,0))),\"\")","v":""},null,null,"",null," ",null,"No Results Reported",null,null,"",null," ",null,null,"No Results Reported",null,null,""," ",null,"No Results Reported"]
[70,"Coverage70",{"$f":"IFERROR(INDEX('Coverage Indicator_Import-Expor'!$D$7:$D$223,MATCH(B80,'Coverage Indicator_Import-Expor'!$C$7:$C$223,0)),\"\")","v":""},{"$f":"IFERROR(INDEX('Coverage Indicator_Import-Expor'!$E$7:$E$223,MATCH(B80,'Coverage Indicator_Import-Expor'!$C$7:$C$223,0)),\"\")","v":""},{"$f":"IFERROR(IF(INDEX('Coverage Indicator_Import-Expor'!K$7:K$223,MATCH($B80,'Coverage Indicator_Import-Expor'!$C$7:$C$223,0))=\"\",\"\",INDEX('Coverage Indicator_Import-Expor'!K$7:K$223,MATCH($B80,'Coverage Indicator_Import-Expor'!$C$7:$C$223,0))),\"\")","v":""},{"$f":"IFERROR(IF(INDEX('Coverage Indicator_Import-Expor'!L$7:L$223,MATCH($B80,'Coverage Indicator_Import-Expor'!$C$7:$C$223,0))=\"\",\"\",INDEX('Coverage Indicator_Import-Expor'!L$7:L$223,MATCH($B80,'Coverage Indicator_Import-Expor'!$C$7:$C$223,0))),\"\")","v":""},{"$f":"IFERROR(IF(INDEX('Coverage Indicator_Import-Expor'!AR$7:AR$223,MATCH($B80,'Coverage Indicator_Import-Expor'!$C$7:$C$223,0))=\"\",\"\",INDEX('Coverage Indicator_Import-Expor'!AR$7:AR$223,MATCH($B80,'Coverage Indicator_Import-Expor'!$C$7:$C$223,0))),\"\")","v":""},{"$f":"IFERROR(IF(INDEX('Coverage Indicator_Import-Expor'!AS$7:AS$223,MATCH($B80,'Coverage Indicator_Import-Expor'!$C$7:$C$223,0))=\"\",\"\",INDEX('Coverage Indicator_Import-Expor'!AS$7:AS$223,MATCH($B80,'Coverage Indicator_Import-Expor'!$C$7:$C$223,0))),\"\")","v":""},{"$f":"IFERROR(IF(INDEX('Coverage Indicator_Import-Expor'!N$7:N$223,MATCH($B80,'Coverage Indicator_Import-Expor'!$C$7:$C$223,0))=\"\",\"\",INDEX('Coverage Indicator_Import-Expor'!N$7:N$223,MATCH($B80,'Coverage Indicator_Import-Expor'!$C$7:$C$223,0))),\"\")","v":""},{"$f":"IFERROR(IF(INDEX('Coverage Indicator_Import-Expor'!O$7:O$223,MATCH($B80,'Coverage Indicator_Import-Expor'!$C$7:$C$223,0))=\"\",\"\",INDEX('Coverage Indicator_Import-Expor'!O$7:O$223,MATCH($B80,'Coverage Indicator_Import-Expor'!$C$7:$C$223,0))),\"\")","v":""},{"$f":"IFERROR(IF(INDEX('Coverage Indicator_Import-Expor'!P$7:P$223,MATCH($B80,'Coverage Indicator_Import-Expor'!$C$7:$C$223,0))=\"\",\"\",INDEX('Coverage Indicator_Import-Expor'!P$7:P$223,MATCH($B80,'Coverage Indicator_Import-Expor'!$C$7:$C$223,0))),\"\")","v":""},{"$f":"IFERROR(IF(INDEX('Coverage Indicator_Import-Expor'!Q$7:Q$223,MATCH($B80,'Coverage Indicator_Import-Expor'!$C$7:$C$223,0))=\"\",\"\",INDEX('Coverage Indicator_Import-Expor'!Q$7:Q$223,MATCH($B80,'Coverage Indicator_Import-Expor'!$C$7:$C$223,0))),\"\")","v":""},{"$f":"IFERROR(IF(INDEX('Coverage Indicator_Import-Expor'!R$7:R$223,MATCH($B80,'Coverage Indicator_Import-Expor'!$C$7:$C$223,0))=\"\",\"\",INDEX('Coverage Indicator_Import-Expor'!R$7:R$223,MATCH($B80,'Coverage Indicator_Import-Expor'!$C$7:$C$223,0))),\"\")","v":""},{"$f":"IFERROR(IF(INDEX('Coverage Indicator_Import-Expor'!S$7:S$223,MATCH($B80,'Coverage Indicator_Import-Expor'!$C$7:$C$223,0))=\"\",\"\",INDEX('Coverage Indicator_Import-Expor'!S$7:S$223,MATCH($B80,'Coverage Indicator_Import-Expor'!$C$7:$C$223,0))),\"\")","v":""},{"$f":"IFERROR(IF(INDEX('Coverage Indicator_Import-Expor'!T$7:T$223,MATCH($B80,'Coverage Indicator_Import-Expor'!$C$7:$C$223,0))=\"\",\"\",INDEX('Coverage Indicator_Import-Expor'!T$7:T$223,MATCH($B80,'Coverage Indicator_Import-Expor'!$C$7:$C$223,0))),\"\")","v":""},{"$f":"IFERROR(IF(INDEX('Coverage Indicator_Import-Expor'!U$7:U$223,MATCH($B80,'Coverage Indicator_Import-Expor'!$C$7:$C$223,0))=\"\",\"\",INDEX('Coverage Indicator_Import-Expor'!U$7:U$223,MATCH($B80,'Coverage Indicator_Import-Expor'!$C$7:$C$223,0))),\"\")","v":""},null,null,"",null," ",null,"No Results Reported",null,null,"",null," ",null,null,"No Results Reported",null,null,""," ",null,"No Results Reported"]
[71,"Coverage71",{"$f":"IFERROR(INDEX('Coverage Indicator_Import-Expor'!$D$7:$D$223,MATCH(B81,'Coverage Indicator_Import-Expor'!$C$7:$C$223,0)),\"\")","v":""},{"$f":"IFERROR(INDEX('Coverage Indicator_Import-Expor'!$E$7:$E$223,MATCH(B81,'Coverage Indicator_Import-Expor'!$C$7:$C$223,0)),\"\")","v":""},{"$f":"IFERROR(IF(INDEX('Coverage Indicator_Import-Expor'!K$7:K$223,MATCH($B81,'Coverage Indicator_Import-Expor'!$C$7:$C$223,0))=\"\",\"\",INDEX('Coverage Indicator_Import-Expor'!K$7:K$223,MATCH($B81,'Coverage Indicator_Import-Expor'!$C$7:$C$223,0))),\"\")","v":""},{"$f":"IFERROR(IF(INDEX('Coverage Indicator_Import-Expor'!L$7:L$223,MATCH($B81,'Coverage Indicator_Import-Expor'!$C$7:$C$223,0))=\"\",\"\",INDEX('Coverage Indicator_Import-Expor'!L$7:L$223,MATCH($B81,'Coverage Indicator_Import-Expor'!$C$7:$C$223,0))),\"\")","v":""},{"$f":"IFERROR(IF(INDEX('Coverage Indicator_Import-Expor'!AR$7:AR$223,MATCH($B81,'Coverage Indicator_Import-Expor'!$C$7:$C$223,0))=\"\",\"\",INDEX('Coverage Indicator_Import-Expor'!AR$7:AR$223,MATCH($B81,'Coverage Indicator_Import-Expor'!$C$7:$C$223,0))),\"\")","v":""},{"$f":"IFERROR(IF(INDEX('Coverage Indicator_Import-Expor'!AS$7:AS$223,MATCH($B81,'Coverage Indicator_Import-Expor'!$C$7:$C$223,0))=\"\",\"\",INDEX('Coverage Indicator_Import-Expor'!AS$7:AS$223,MATCH($B81,'Coverage Indicator_Import-Expor'!$C$7:$C$223,0))),\"\")","v":""},{"$f":"IFERROR(IF(INDEX('Coverage Indicator_Import-Expor'!N$7:N$223,MATCH($B81,'Coverage Indicator_Import-Expor'!$C$7:$C$223,0))=\"\",\"\",INDEX('Coverage Indicator_Import-Expor'!N$7:N$223,MATCH($B81,'Coverage Indicator_Import-Expor'!$C$7:$C$223,0))),\"\")","v":""},{"$f":"IFERROR(IF(INDEX('Coverage Indicator_Import-Expor'!O$7:O$223,MATCH($B81,'Coverage Indicator_Import-Expor'!$C$7:$C$223,0))=\"\",\"\",INDEX('Coverage Indicator_Import-Expor'!O$7:O$223,MATCH($B81,'Coverage Indicator_Import-Expor'!$C$7:$C$223,0))),\"\")","v":""},{"$f":"IFERROR(IF(INDEX('Coverage Indicator_Import-Expor'!P$7:P$223,MATCH($B81,'Coverage Indicator_Import-Expor'!$C$7:$C$223,0))=\"\",\"\",INDEX('Coverage Indicator_Import-Expor'!P$7:P$223,MATCH($B81,'Coverage Indicator_Import-Expor'!$C$7:$C$223,0))),\"\")","v":""},{"$f":"IFERROR(IF(INDEX('Coverage Indicator_Import-Expor'!Q$7:Q$223,MATCH($B81,'Coverage Indicator_Import-Expor'!$C$7:$C$223,0))=\"\",\"\",INDEX('Coverage Indicator_Import-Expor'!Q$7:Q$223,MATCH($B81,'Coverage Indicator_Import-Expor'!$C$7:$C$223,0))),\"\")","v":""},{"$f":"IFERROR(IF(INDEX('Coverage Indicator_Import-Expor'!R$7:R$223,MATCH($B81,'Coverage Indicator_Import-Expor'!$C$7:$C$223,0))=\"\",\"\",INDEX('Coverage Indicator_Import-Expor'!R$7:R$223,MATCH($B81,'Coverage Indicator_Import-Expor'!$C$7:$C$223,0))),\"\")","v":""},{"$f":"IFERROR(IF(INDEX('Coverage Indicator_Import-Expor'!S$7:S$223,MATCH($B81,'Coverage Indicator_Import-Expor'!$C$7:$C$223,0))=\"\",\"\",INDEX('Coverage Indicator_Import-Expor'!S$7:S$223,MATCH($B81,'Coverage Indicator_Import-Expor'!$C$7:$C$223,0))),\"\")","v":""},{"$f":"IFERROR(IF(INDEX('Coverage Indicator_Import-Expor'!T$7:T$223,MATCH($B81,'Coverage Indicator_Import-Expor'!$C$7:$C$223,0))=\"\",\"\",INDEX('Coverage Indicator_Import-Expor'!T$7:T$223,MATCH($B81,'Coverage Indicator_Import-Expor'!$C$7:$C$223,0))),\"\")","v":""},{"$f":"IFERROR(IF(INDEX('Coverage Indicator_Import-Expor'!U$7:U$223,MATCH($B81,'Coverage Indicator_Import-Expor'!$C$7:$C$223,0))=\"\",\"\",INDEX('Coverage Indicator_Import-Expor'!U$7:U$223,MATCH($B81,'Coverage Indicator_Import-Expor'!$C$7:$C$223,0))),\"\")","v":""},null,null,"",null," ",null,"No Results Reported",null,null,"",null," ",null,null,"No Results Reported",null,null,""," ",null,"No Results Reported"]
[72,"Coverage72",{"$f":"IFERROR(INDEX('Coverage Indicator_Import-Expor'!$D$7:$D$223,MATCH(B82,'Coverage Indicator_Import-Expor'!$C$7:$C$223,0)),\"\")","v":""},{"$f":"IFERROR(INDEX('Coverage Indicator_Import-Expor'!$E$7:$E$223,MATCH(B82,'Coverage Indicator_Import-Expor'!$C$7:$C$223,0)),\"\")","v":""},{"$f":"IFERROR(IF(INDEX('Coverage Indicator_Import-Expor'!K$7:K$223,MATCH($B82,'Coverage Indicator_Import-Expor'!$C$7:$C$223,0))=\"\",\"\",INDEX('Coverage Indicator_Import-Expor'!K$7:K$223,MATCH($B82,'Coverage Indicator_Import-Expor'!$C$7:$C$223,0))),\"\")","v":""},{"$f":"IFERROR(IF(INDEX('Coverage Indicator_Import-Expor'!L$7:L$223,MATCH($B82,'Coverage Indicator_Import-Expor'!$C$7:$C$223,0))=\"\",\"\",INDEX('Coverage Indicator_Import-Expor'!L$7:L$223,MATCH($B82,'Coverage Indicator_Import-Expor'!$C$7:$C$223,0))),\"\")","v":""},{"$f":"IFERROR(IF(INDEX('Coverage Indicator_Import-Expor'!AR$7:AR$223,MATCH($B82,'Coverage Indicator_Import-Expor'!$C$7:$C$223,0))=\"\",\"\",INDEX('Coverage Indicator_Import-Expor'!AR$7:AR$223,MATCH($B82,'Coverage Indicator_Import-Expor'!$C$7:$C$223,0))),\"\")","v":""},{"$f":"IFERROR(IF(INDEX('Coverage Indicator_Import-Expor'!AS$7:AS$223,MATCH($B82,'Coverage Indicator_Import-Expor'!$C$7:$C$223,0))=\"\",\"\",INDEX('Coverage Indicator_Import-Expor'!AS$7:AS$223,MATCH($B82,'Coverage Indicator_Import-Expor'!$C$7:$C$223,0))),\"\")","v":""},{"$f":"IFERROR(IF(INDEX('Coverage Indicator_Import-Expor'!N$7:N$223,MATCH($B82,'Coverage Indicator_Import-Expor'!$C$7:$C$223,0))=\"\",\"\",INDEX('Coverage Indicator_Import-Expor'!N$7:N$223,MATCH($B82,'Coverage Indicator_Import-Expor'!$C$7:$C$223,0))),\"\")","v":""},{"$f":"IFERROR(IF(INDEX('Coverage Indicator_Import-Expor'!O$7:O$223,MATCH($B82,'Coverage Indicator_Import-Expor'!$C$7:$C$223,0))=\"\",\"\",INDEX('Coverage Indicator_Import-Expor'!O$7:O$223,MATCH($B82,'Coverage Indicator_Import-Expor'!$C$7:$C$223,0))),\"\")","v":""},{"$f":"IFERROR(IF(INDEX('Coverage Indicator_Import-Expor'!P$7:P$223,MATCH($B82,'Coverage Indicator_Import-Expor'!$C$7:$C$223,0))=\"\",\"\",INDEX('Coverage Indicator_Import-Expor'!P$7:P$223,MATCH($B82,'Coverage Indicator_Import-Expor'!$C$7:$C$223,0))),\"\")","v":""},{"$f":"IFERROR(IF(INDEX('Coverage Indicator_Import-Expor'!Q$7:Q$223,MATCH($B82,'Coverage Indicator_Import-Expor'!$C$7:$C$223,0))=\"\",\"\",INDEX('Coverage Indicator_Import-Expor'!Q$7:Q$223,MATCH($B82,'Coverage Indicator_Import-Expor'!$C$7:$C$223,0))),\"\")","v":""},{"$f":"IFERROR(IF(INDEX('Coverage Indicator_Import-Expor'!R$7:R$223,MATCH($B82,'Coverage Indicator_Import-Expor'!$C$7:$C$223,0))=\"\",\"\",INDEX('Coverage Indicator_Import-Expor'!R$7:R$223,MATCH($B82,'Coverage Indicator_Import-Expor'!$C$7:$C$223,0))),\"\")","v":""},{"$f":"IFERROR(IF(INDEX('Coverage Indicator_Import-Expor'!S$7:S$223,MATCH($B82,'Coverage Indicator_Import-Expor'!$C$7:$C$223,0))=\"\",\"\",INDEX('Coverage Indicator_Import-Expor'!S$7:S$223,MATCH($B82,'Coverage Indicator_Import-Expor'!$C$7:$C$223,0))),\"\")","v":""},{"$f":"IFERROR(IF(INDEX('Coverage Indicator_Import-Expor'!T$7:T$223,MATCH($B82,'Coverage Indicator_Import-Expor'!$C$7:$C$223,0))=\"\",\"\",INDEX('Coverage Indicator_Import-Expor'!T$7:T$223,MATCH($B82,'Coverage Indicator_Import-Expor'!$C$7:$C$223,0))),\"\")","v":""},{"$f":"IFERROR(IF(INDEX('Coverage Indicator_Import-Expor'!U$7:U$223,MATCH($B82,'Coverage Indicator_Import-Expor'!$C$7:$C$223,0))=\"\",\"\",INDEX('Coverage Indicator_Import-Expor'!U$7:U$223,MATCH($B82,'Coverage Indicator_Import-Expor'!$C$7:$C$223,0))),\"\")","v":""},null,null,"",null," ",null,"No Results Reported",null,null,"",null," ",null,null,"No Results Reported",null,null,""," ",null,"No Results Reported"]
[73,"Coverage73",{"$f":"IFERROR(INDEX('Coverage Indicator_Import-Expor'!$D$7:$D$223,MATCH(B83,'Coverage Indicator_Import-Expor'!$C$7:$C$223,0)),\"\")","v":""},{"$f":"IFERROR(INDEX('Coverage Indicator_Import-Expor'!$E$7:$E$223,MATCH(B83,'Coverage Indicator_Import-Expor'!$C$7:$C$223,0)),\"\")","v":""},{"$f":"IFERROR(IF(INDEX('Coverage Indicator_Import-Expor'!K$7:K$223,MATCH($B83,'Coverage Indicator_Import-Expor'!$C$7:$C$223,0))=\"\",\"\",INDEX('Coverage Indicator_Import-Expor'!K$7:K$223,MATCH($B83,'Coverage Indicator_Import-Expor'!$C$7:$C$223,0))),\"\")","v":""},{"$f":"IFERROR(IF(INDEX('Coverage Indicator_Import-Expor'!L$7:L$223,MATCH($B83,'Coverage Indicator_Import-Expor'!$C$7:$C$223,0))=\"\",\"\",INDEX('Coverage Indicator_Import-Expor'!L$7:L$223,MATCH($B83,'Coverage Indicator_Import-Expor'!$C$7:$C$223,0))),\"\")","v":""},{"$f":"IFERROR(IF(INDEX('Coverage Indicator_Import-Expor'!AR$7:AR$223,MATCH($B83,'Coverage Indicator_Import-Expor'!$C$7:$C$223,0))=\"\",\"\",INDEX('Coverage Indicator_Import-Expor'!AR$7:AR$223,MATCH($B83,'Coverage Indicator_Import-Expor'!$C$7:$C$223,0))),\"\")","v":""},{"$f":"IFERROR(IF(INDEX('Coverage Indicator_Import-Expor'!AS$7:AS$223,MATCH($B83,'Coverage Indicator_Import-Expor'!$C$7:$C$223,0))=\"\",\"\",INDEX('Coverage Indicator_Import-Expor'!AS$7:AS$223,MATCH($B83,'Coverage Indicator_Import-Expor'!$C$7:$C$223,0))),\"\")","v":""},{"$f":"IFERROR(IF(INDEX('Coverage Indicator_Import-Expor'!N$7:N$223,MATCH($B83,'Coverage Indicator_Import-Expor'!$C$7:$C$223,0))=\"\",\"\",INDEX('Coverage Indicator_Import-Expor'!N$7:N$223,MATCH($B83,'Coverage Indicator_Import-Expor'!$C$7:$C$223,0))),\"\")","v":""},{"$f":"IFERROR(IF(INDEX('Coverage Indicator_Import-Expor'!O$7:O$223,MATCH($B83,'Coverage Indicator_Import-Expor'!$C$7:$C$223,0))=\"\",\"\",INDEX('Coverage Indicator_Import-Expor'!O$7:O$223,MATCH($B83,'Coverage Indicator_Import-Expor'!$C$7:$C$223,0))),\"\")","v":""},{"$f":"IFERROR(IF(INDEX('Coverage Indicator_Import-Expor'!P$7:P$223,MATCH($B83,'Coverage Indicator_Import-Expor'!$C$7:$C$223,0))=\"\",\"\",INDEX('Coverage Indicator_Import-Expor'!P$7:P$223,MATCH($B83,'Coverage Indicator_Import-Expor'!$C$7:$C$223,0))),\"\")","v":""},{"$f":"IFERROR(IF(INDEX('Coverage Indicator_Import-Expor'!Q$7:Q$223,MATCH($B83,'Coverage Indicator_Import-Expor'!$C$7:$C$223,0))=\"\",\"\",INDEX('Coverage Indicator_Import-Expor'!Q$7:Q$223,MATCH($B83,'Coverage Indicator_Import-Expor'!$C$7:$C$223,0))),\"\")","v":""},{"$f":"IFERROR(IF(INDEX('Coverage Indicator_Import-Expor'!R$7:R$223,MATCH($B83,'Coverage Indicator_Import-Expor'!$C$7:$C$223,0))=\"\",\"\",INDEX('Coverage Indicator_Import-Expor'!R$7:R$223,MATCH($B83,'Coverage Indicator_Import-Expor'!$C$7:$C$223,0))),\"\")","v":""},{"$f":"IFERROR(IF(INDEX('Coverage Indicator_Import-Expor'!S$7:S$223,MATCH($B83,'Coverage Indicator_Import-Expor'!$C$7:$C$223,0))=\"\",\"\",INDEX('Coverage Indicator_Import-Expor'!S$7:S$223,MATCH($B83,'Coverage Indicator_Import-Expor'!$C$7:$C$223,0))),\"\")","v":""},{"$f":"IFERROR(IF(INDEX('Coverage Indicator_Import-Expor'!T$7:T$223,MATCH($B83,'Coverage Indicator_Import-Expor'!$C$7:$C$223,0))=\"\",\"\",INDEX('Coverage Indicator_Import-Expor'!T$7:T$223,MATCH($B83,'Coverage Indicator_Import-Expor'!$C$7:$C$223,0))),\"\")","v":""},{"$f":"IFERROR(IF(INDEX('Coverage Indicator_Import-Expor'!U$7:U$223,MATCH($B83,'Coverage Indicator_Import-Expor'!$C$7:$C$223,0))=\"\",\"\",INDEX('Coverage Indicator_Import-Expor'!U$7:U$223,MATCH($B83,'Coverage Indicator_Import-Expor'!$C$7:$C$223,0))),\"\")","v":""},null,null,"",null," ",null,"No Results Reported",null,null,"",null," ",null,null,"No Results Reported",null,null,""," ",null,"No Results Reported"]
[74,"Coverage74",{"$f":"IFERROR(INDEX('Coverage Indicator_Import-Expor'!$D$7:$D$223,MATCH(B84,'Coverage Indicator_Import-Expor'!$C$7:$C$223,0)),\"\")","v":""},{"$f":"IFERROR(INDEX('Coverage Indicator_Import-Expor'!$E$7:$E$223,MATCH(B84,'Coverage Indicator_Import-Expor'!$C$7:$C$223,0)),\"\")","v":""},{"$f":"IFERROR(IF(INDEX('Coverage Indicator_Import-Expor'!K$7:K$223,MATCH($B84,'Coverage Indicator_Import-Expor'!$C$7:$C$223,0))=\"\",\"\",INDEX('Coverage Indicator_Import-Expor'!K$7:K$223,MATCH($B84,'Coverage Indicator_Import-Expor'!$C$7:$C$223,0))),\"\")","v":""},{"$f":"IFERROR(IF(INDEX('Coverage Indicator_Import-Expor'!L$7:L$223,MATCH($B84,'Coverage Indicator_Import-Expor'!$C$7:$C$223,0))=\"\",\"\",INDEX('Coverage Indicator_Import-Expor'!L$7:L$223,MATCH($B84,'Coverage Indicator_Import-Expor'!$C$7:$C$223,0))),\"\")","v":""},{"$f":"IFERROR(IF(INDEX('Coverage Indicator_Import-Expor'!AR$7:AR$223,MATCH($B84,'Coverage Indicator_Import-Expor'!$C$7:$C$223,0))=\"\",\"\",INDEX('Coverage Indicator_Import-Expor'!AR$7:AR$223,MATCH($B84,'Coverage Indicator_Import-Expor'!$C$7:$C$223,0))),\"\")","v":""},{"$f":"IFERROR(IF(INDEX('Coverage Indicator_Import-Expor'!AS$7:AS$223,MATCH($B84,'Coverage Indicator_Import-Expor'!$C$7:$C$223,0))=\"\",\"\",INDEX('Coverage Indicator_Import-Expor'!AS$7:AS$223,MATCH($B84,'Coverage Indicator_Import-Expor'!$C$7:$C$223,0))),\"\")","v":""},{"$f":"IFERROR(IF(INDEX('Coverage Indicator_Import-Expor'!N$7:N$223,MATCH($B84,'Coverage Indicator_Import-Expor'!$C$7:$C$223,0))=\"\",\"\",INDEX('Coverage Indicator_Import-Expor'!N$7:N$223,MATCH($B84,'Coverage Indicator_Import-Expor'!$C$7:$C$223,0))),\"\")","v":""},{"$f":"IFERROR(IF(INDEX('Coverage Indicator_Import-Expor'!O$7:O$223,MATCH($B84,'Coverage Indicator_Import-Expor'!$C$7:$C$223,0))=\"\",\"\",INDEX('Coverage Indicator_Import-Expor'!O$7:O$223,MATCH($B84,'Coverage Indicator_Import-Expor'!$C$7:$C$223,0))),\"\")","v":""},{"$f":"IFERROR(IF(INDEX('Coverage Indicator_Import-Expor'!P$7:P$223,MATCH($B84,'Coverage Indicator_Import-Expor'!$C$7:$C$223,0))=\"\",\"\",INDEX('Coverage Indicator_Import-Expor'!P$7:P$223,MATCH($B84,'Coverage Indicator_Import-Expor'!$C$7:$C$223,0))),\"\")","v":""},{"$f":"IFERROR(IF(INDEX('Coverage Indicator_Import-Expor'!Q$7:Q$223,MATCH($B84,'Coverage Indicator_Import-Expor'!$C$7:$C$223,0))=\"\",\"\",INDEX('Coverage Indicator_Import-Expor'!Q$7:Q$223,MATCH($B84,'Coverage Indicator_Import-Expor'!$C$7:$C$223,0))),\"\")","v":""},{"$f":"IFERROR(IF(INDEX('Coverage Indicator_Import-Expor'!R$7:R$223,MATCH($B84,'Coverage Indicator_Import-Expor'!$C$7:$C$223,0))=\"\",\"\",INDEX('Coverage Indicator_Import-Expor'!R$7:R$223,MATCH($B84,'Coverage Indicator_Import-Expor'!$C$7:$C$223,0))),\"\")","v":""},{"$f":"IFERROR(IF(INDEX('Coverage Indicator_Import-Expor'!S$7:S$223,MATCH($B84,'Coverage Indicator_Import-Expor'!$C$7:$C$223,0))=\"\",\"\",INDEX('Coverage Indicator_Import-Expor'!S$7:S$223,MATCH($B84,'Coverage Indicator_Import-Expor'!$C$7:$C$223,0))),\"\")","v":""},{"$f":"IFERROR(IF(INDEX('Coverage Indicator_Import-Expor'!T$7:T$223,MATCH($B84,'Coverage Indicator_Import-Expor'!$C$7:$C$223,0))=\"\",\"\",INDEX('Coverage Indicator_Import-Expor'!T$7:T$223,MATCH($B84,'Coverage Indicator_Import-Expor'!$C$7:$C$223,0))),\"\")","v":""},{"$f":"IFERROR(IF(INDEX('Coverage Indicator_Import-Expor'!U$7:U$223,MATCH($B84,'Coverage Indicator_Import-Expor'!$C$7:$C$223,0))=\"\",\"\",INDEX('Coverage Indicator_Import-Expor'!U$7:U$223,MATCH($B84,'Coverage Indicator_Import-Expor'!$C$7:$C$223,0))),\"\")","v":""},null,null,"",null," ",null,"No Results Reported",null,null,"",null," ",null,null,"No Results Reported",null,null,""," ",null,"No Results Reported"]
[75,"Coverage75",{"$f":"IFERROR(INDEX('Coverage Indicator_Import-Expor'!$D$7:$D$223,MATCH(B85,'Coverage Indicator_Import-Expor'!$C$7:$C$223,0)),\"\")","v":""},{"$f":"IFERROR(INDEX('Coverage Indicator_Import-Expor'!$E$7:$E$223,MATCH(B85,'Coverage Indicator_Import-Expor'!$C$7:$C$223,0)),\"\")","v":""},{"$f":"IFERROR(IF(INDEX('Coverage Indicator_Import-Expor'!K$7:K$223,MATCH($B85,'Coverage Indicator_Import-Expor'!$C$7:$C$223,0))=\"\",\"\",INDEX('Coverage Indicator_Import-Expor'!K$7:K$223,MATCH($B85,'Coverage Indicator_Import-Expor'!$C$7:$C$223,0))),\"\")","v":""},{"$f":"IFERROR(IF(INDEX('Coverage Indicator_Import-Expor'!L$7:L$223,MATCH($B85,'Coverage Indicator_Import-Expor'!$C$7:$C$223,0))=\"\",\"\",INDEX('Coverage Indicator_Import-Expor'!L$7:L$223,MATCH($B85,'Coverage Indicator_Import-Expor'!$C$7:$C$223,0))),\"\")","v":""},{"$f":"IFERROR(IF(INDEX('Coverage Indicator_Import-Expor'!AR$7:AR$223,MATCH($B85,'Coverage Indicator_Import-Expor'!$C$7:$C$223,0))=\"\",\"\",INDEX('Coverage Indicator_Import-Expor'!AR$7:AR$223,MATCH($B85,'Coverage Indicator_Import-Expor'!$C$7:$C$223,0))),\"\")","v":""},{"$f":"IFERROR(IF(INDEX('Coverage Indicator_Import-Expor'!AS$7:AS$223,MATCH($B85,'Coverage Indicator_Import-Expor'!$C$7:$C$223,0))=\"\",\"\",INDEX('Coverage Indicator_Import-Expor'!AS$7:AS$223,MATCH($B85,'Coverage Indicator_Import-Expor'!$C$7:$C$223,0))),\"\")","v":""},{"$f":"IFERROR(IF(INDEX('Coverage Indicator_Import-Expor'!N$7:N$223,MATCH($B85,'Coverage Indicator_Import-Expor'!$C$7:$C$223,0))=\"\",\"\",INDEX('Coverage Indicator_Import-Expor'!N$7:N$223,MATCH($B85,'Coverage Indicator_Import-Expor'!$C$7:$C$223,0))),\"\")","v":""},{"$f":"IFERROR(IF(INDEX('Coverage Indicator_Import-Expor'!O$7:O$223,MATCH($B85,'Coverage Indicator_Import-Expor'!$C$7:$C$223,0))=\"\",\"\",INDEX('Coverage Indicator_Import-Expor'!O$7:O$223,MATCH($B85,'Coverage Indicator_Import-Expor'!$C$7:$C$223,0))),\"\")","v":""},{"$f":"IFERROR(IF(INDEX('Coverage Indicator_Import-Expor'!P$7:P$223,MATCH($B85,'Coverage Indicator_Import-Expor'!$C$7:$C$223,0))=\"\",\"\",INDEX('Coverage Indicator_Import-Expor'!P$7:P$223,MATCH($B85,'Coverage Indicator_Import-Expor'!$C$7:$C$223,0))),\"\")","v":""},{"$f":"IFERROR(IF(INDEX('Coverage Indicator_Import-Expor'!Q$7:Q$223,MATCH($B85,'Coverage Indicator_Import-Expor'!$C$7:$C$223,0))=\"\",\"\",INDEX('Coverage Indicator_Import-Expor'!Q$7:Q$223,MATCH($B85,'Coverage Indicator_Import-Expor'!$C$7:$C$223,0))),\"\")","v":""},{"$f":"IFERROR(IF(INDEX('Coverage Indicator_Import-Expor'!R$7:R$223,MATCH($B85,'Coverage Indicator_Import-Expor'!$C$7:$C$223,0))=\"\",\"\",INDEX('Coverage Indicator_Import-Expor'!R$7:R$223,MATCH($B85,'Coverage Indicator_Import-Expor'!$C$7:$C$223,0))),\"\")","v":""},{"$f":"IFERROR(IF(INDEX('Coverage Indicator_Import-Expor'!S$7:S$223,MATCH($B85,'Coverage Indicator_Import-Expor'!$C$7:$C$223,0))=\"\",\"\",INDEX('Coverage Indicator_Import-Expor'!S$7:S$223,MATCH($B85,'Coverage Indicator_Import-Expor'!$C$7:$C$223,0))),\"\")","v":""},{"$f":"IFERROR(IF(INDEX('Coverage Indicator_Import-Expor'!T$7:T$223,MATCH($B85,'Coverage Indicator_Import-Expor'!$C$7:$C$223,0))=\"\",\"\",INDEX('Coverage Indicator_Import-Expor'!T$7:T$223,MATCH($B85,'Coverage Indicator_Import-Expor'!$C$7:$C$223,0))),\"\")","v":""},{"$f":"IFERROR(IF(INDEX('Coverage Indicator_Import-Expor'!U$7:U$223,MATCH($B85,'Coverage Indicator_Import-Expor'!$C$7:$C$223,0))=\"\",\"\",INDEX('Coverage Indicator_Import-Expor'!U$7:U$223,MATCH($B85,'Coverage Indicator_Import-Expor'!$C$7:$C$223,0))),\"\")","v":""},null,null,"",null," ",null,"No Results Reported",null,null,"",null," ",null,null,"No Results Reported",null,null,""," ",null,"No Results Reported"]
[76,"Coverage76",{"$f":"IFERROR(INDEX('Coverage Indicator_Import-Expor'!$D$7:$D$223,MATCH(B86,'Coverage Indicator_Import-Expor'!$C$7:$C$223,0)),\"\")","v":""},{"$f":"IFERROR(INDEX('Coverage Indicator_Import-Expor'!$E$7:$E$223,MATCH(B86,'Coverage Indicator_Import-Expor'!$C$7:$C$223,0)),\"\")","v":""},{"$f":"IFERROR(IF(INDEX('Coverage Indicator_Import-Expor'!K$7:K$223,MATCH($B86,'Coverage Indicator_Import-Expor'!$C$7:$C$223,0))=\"\",\"\",INDEX('Coverage Indicator_Import-Expor'!K$7:K$223,MATCH($B86,'Coverage Indicator_Import-Expor'!$C$7:$C$223,0))),\"\")","v":""},{"$f":"IFERROR(IF(INDEX('Coverage Indicator_Import-Expor'!L$7:L$223,MATCH($B86,'Coverage Indicator_Import-Expor'!$C$7:$C$223,0))=\"\",\"\",INDEX('Coverage Indicator_Import-Expor'!L$7:L$223,MATCH($B86,'Coverage Indicator_Import-Expor'!$C$7:$C$223,0))),\"\")","v":""},{"$f":"IFERROR(IF(INDEX('Coverage Indicator_Import-Expor'!AR$7:AR$223,MATCH($B86,'Coverage Indicator_Import-Expor'!$C$7:$C$223,0))=\"\",\"\",INDEX('Coverage Indicator_Import-Expor'!AR$7:AR$223,MATCH($B86,'Coverage Indicator_Import-Expor'!$C$7:$C$223,0))),\"\")","v":""},{"$f":"IFERROR(IF(INDEX('Coverage Indicator_Import-Expor'!AS$7:AS$223,MATCH($B86,'Coverage Indicator_Import-Expor'!$C$7:$C$223,0))=\"\",\"\",INDEX('Coverage Indicator_Import-Expor'!AS$7:AS$223,MATCH($B86,'Coverage Indicator_Import-Expor'!$C$7:$C$223,0))),\"\")","v":""},{"$f":"IFERROR(IF(INDEX('Coverage Indicator_Import-Expor'!N$7:N$223,MATCH($B86,'Coverage Indicator_Import-Expor'!$C$7:$C$223,0))=\"\",\"\",INDEX('Coverage Indicator_Import-Expor'!N$7:N$223,MATCH($B86,'Coverage Indicator_Import-Expor'!$C$7:$C$223,0))),\"\")","v":""},{"$f":"IFERROR(IF(INDEX('Coverage Indicator_Import-Expor'!O$7:O$223,MATCH($B86,'Coverage Indicator_Import-Expor'!$C$7:$C$223,0))=\"\",\"\",INDEX('Coverage Indicator_Import-Expor'!O$7:O$223,MATCH($B86,'Coverage Indicator_Import-Expor'!$C$7:$C$223,0))),\"\")","v":""},{"$f":"IFERROR(IF(INDEX('Coverage Indicator_Import-Expor'!P$7:P$223,MATCH($B86,'Coverage Indicator_Import-Expor'!$C$7:$C$223,0))=\"\",\"\",INDEX('Coverage Indicator_Import-Expor'!P$7:P$223,MATCH($B86,'Coverage Indicator_Import-Expor'!$C$7:$C$223,0))),\"\")","v":""},{"$f":"IFERROR(IF(INDEX('Coverage Indicator_Import-Expor'!Q$7:Q$223,MATCH($B86,'Coverage Indicator_Import-Expor'!$C$7:$C$223,0))=\"\",\"\",INDEX('Coverage Indicator_Import-Expor'!Q$7:Q$223,MATCH($B86,'Coverage Indicator_Import-Expor'!$C$7:$C$223,0))),\"\")","v":""},{"$f":"IFERROR(IF(INDEX('Coverage Indicator_Import-Expor'!R$7:R$223,MATCH($B86,'Coverage Indicator_Import-Expor'!$C$7:$C$223,0))=\"\",\"\",INDEX('Coverage Indicator_Import-Expor'!R$7:R$223,MATCH($B86,'Coverage Indicator_Import-Expor'!$C$7:$C$223,0))),\"\")","v":""},{"$f":"IFERROR(IF(INDEX('Coverage Indicator_Import-Expor'!S$7:S$223,MATCH($B86,'Coverage Indicator_Import-Expor'!$C$7:$C$223,0))=\"\",\"\",INDEX('Coverage Indicator_Import-Expor'!S$7:S$223,MATCH($B86,'Coverage Indicator_Import-Expor'!$C$7:$C$223,0))),\"\")","v":""},{"$f":"IFERROR(IF(INDEX('Coverage Indicator_Import-Expor'!T$7:T$223,MATCH($B86,'Coverage Indicator_Import-Expor'!$C$7:$C$223,0))=\"\",\"\",INDEX('Coverage Indicator_Import-Expor'!T$7:T$223,MATCH($B86,'Coverage Indicator_Import-Expor'!$C$7:$C$223,0))),\"\")","v":""},{"$f":"IFERROR(IF(INDEX('Coverage Indicator_Import-Expor'!U$7:U$223,MATCH($B86,'Coverage Indicator_Import-Expor'!$C$7:$C$223,0))=\"\",\"\",INDEX('Coverage Indicator_Import-Expor'!U$7:U$223,MATCH($B86,'Coverage Indicator_Import-Expor'!$C$7:$C$223,0))),\"\")","v":""},null,null,"",null," ",null,"No Results Reported",null,null,"",null," ",null,null,"No Results Reported",null,null,""," ",null,"No Results Reported"]
[77,"Coverage77",{"$f":"IFERROR(INDEX('Coverage Indicator_Import-Expor'!$D$7:$D$223,MATCH(B87,'Coverage Indicator_Import-Expor'!$C$7:$C$223,0)),\"\")","v":""},{"$f":"IFERROR(INDEX('Coverage Indicator_Import-Expor'!$E$7:$E$223,MATCH(B87,'Coverage Indicator_Import-Expor'!$C$7:$C$223,0)),\"\")","v":""},{"$f":"IFERROR(IF(INDEX('Coverage Indicator_Import-Expor'!K$7:K$223,MATCH($B87,'Coverage Indicator_Import-Expor'!$C$7:$C$223,0))=\"\",\"\",INDEX('Coverage Indicator_Import-Expor'!K$7:K$223,MATCH($B87,'Coverage Indicator_Import-Expor'!$C$7:$C$223,0))),\"\")","v":""},{"$f":"IFERROR(IF(INDEX('Coverage Indicator_Import-Expor'!L$7:L$223,MATCH($B87,'Coverage Indicator_Import-Expor'!$C$7:$C$223,0))=\"\",\"\",INDEX('Coverage Indicator_Import-Expor'!L$7:L$223,MATCH($B87,'Coverage Indicator_Import-Expor'!$C$7:$C$223,0))),\"\")","v":""},{"$f":"IFERROR(IF(INDEX('Coverage Indicator_Import-Expor'!AR$7:AR$223,MATCH($B87,'Coverage Indicator_Import-Expor'!$C$7:$C$223,0))=\"\",\"\",INDEX('Coverage Indicator_Import-Expor'!AR$7:AR$223,MATCH($B87,'Coverage Indicator_Import-Expor'!$C$7:$C$223,0))),\"\")","v":""},{"$f":"IFERROR(IF(INDEX('Coverage Indicator_Import-Expor'!AS$7:AS$223,MATCH($B87,'Coverage Indicator_Import-Expor'!$C$7:$C$223,0))=\"\",\"\",INDEX('Coverage Indicator_Import-Expor'!AS$7:AS$223,MATCH($B87,'Coverage Indicator_Import-Expor'!$C$7:$C$223,0))),\"\")","v":""},{"$f":"IFERROR(IF(INDEX('Coverage Indicator_Import-Expor'!N$7:N$223,MATCH($B87,'Coverage Indicator_Import-Expor'!$C$7:$C$223,0))=\"\",\"\",INDEX('Coverage Indicator_Import-Expor'!N$7:N$223,MATCH($B87,'Coverage Indicator_Import-Expor'!$C$7:$C$223,0))),\"\")","v":""},{"$f":"IFERROR(IF(INDEX('Coverage Indicator_Import-Expor'!O$7:O$223,MATCH($B87,'Coverage Indicator_Import-Expor'!$C$7:$C$223,0))=\"\",\"\",INDEX('Coverage Indicator_Import-Expor'!O$7:O$223,MATCH($B87,'Coverage Indicator_Import-Expor'!$C$7:$C$223,0))),\"\")","v":""},{"$f":"IFERROR(IF(INDEX('Coverage Indicator_Import-Expor'!P$7:P$223,MATCH($B87,'Coverage Indicator_Import-Expor'!$C$7:$C$223,0))=\"\",\"\",INDEX('Coverage Indicator_Import-Expor'!P$7:P$223,MATCH($B87,'Coverage Indicator_Import-Expor'!$C$7:$C$223,0))),\"\")","v":""},{"$f":"IFERROR(IF(INDEX('Coverage Indicator_Import-Expor'!Q$7:Q$223,MATCH($B87,'Coverage Indicator_Import-Expor'!$C$7:$C$223,0))=\"\",\"\",INDEX('Coverage Indicator_Import-Expor'!Q$7:Q$223,MATCH($B87,'Coverage Indicator_Import-Expor'!$C$7:$C$223,0))),\"\")","v":""},{"$f":"IFERROR(IF(INDEX('Coverage Indicator_Import-Expor'!R$7:R$223,MATCH($B87,'Coverage Indicator_Import-Expor'!$C$7:$C$223,0))=\"\",\"\",INDEX('Coverage Indicator_Import-Expor'!R$7:R$223,MATCH($B87,'Coverage Indicator_Import-Expor'!$C$7:$C$223,0))),\"\")","v":""},{"$f":"IFERROR(IF(INDEX('Coverage Indicator_Import-Expor'!S$7:S$223,MATCH($B87,'Coverage Indicator_Import-Expor'!$C$7:$C$223,0))=\"\",\"\",INDEX('Coverage Indicator_Import-Expor'!S$7:S$223,MATCH($B87,'Coverage Indicator_Import-Expor'!$C$7:$C$223,0))),\"\")","v":""},{"$f":"IFERROR(IF(INDEX('Coverage Indicator_Import-Expor'!T$7:T$223,MATCH($B87,'Coverage Indicator_Import-Expor'!$C$7:$C$223,0))=\"\",\"\",INDEX('Coverage Indicator_Import-Expor'!T$7:T$223,MATCH($B87,'Coverage Indicator_Import-Expor'!$C$7:$C$223,0))),\"\")","v":""},{"$f":"IFERROR(IF(INDEX('Coverage Indicator_Import-Expor'!U$7:U$223,MATCH($B87,'Coverage Indicator_Import-Expor'!$C$7:$C$223,0))=\"\",\"\",INDEX('Coverage Indicator_Import-Expor'!U$7:U$223,MATCH($B87,'Coverage Indicator_Import-Expor'!$C$7:$C$223,0))),\"\")","v":""},null,null,"",null," ",null,"No Results Reported",null,null,"",null," ",null,null,"No Results Reported",null,null,""," ",null,"No Results Reported"]
[78,"Coverage78",{"$f":"IFERROR(INDEX('Coverage Indicator_Import-Expor'!$D$7:$D$223,MATCH(B88,'Coverage Indicator_Import-Expor'!$C$7:$C$223,0)),\"\")","v":""},{"$f":"IFERROR(INDEX('Coverage Indicator_Import-Expor'!$E$7:$E$223,MATCH(B88,'Coverage Indicator_Import-Expor'!$C$7:$C$223,0)),\"\")","v":""},{"$f":"IFERROR(IF(INDEX('Coverage Indicator_Import-Expor'!K$7:K$223,MATCH($B88,'Coverage Indicator_Import-Expor'!$C$7:$C$223,0))=\"\",\"\",INDEX('Coverage Indicator_Import-Expor'!K$7:K$223,MATCH($B88,'Coverage Indicator_Import-Expor'!$C$7:$C$223,0))),\"\")","v":""},{"$f":"IFERROR(IF(INDEX('Coverage Indicator_Import-Expor'!L$7:L$223,MATCH($B88,'Coverage Indicator_Import-Expor'!$C$7:$C$223,0))=\"\",\"\",INDEX('Coverage Indicator_Import-Expor'!L$7:L$223,MATCH($B88,'Coverage Indicator_Import-Expor'!$C$7:$C$223,0))),\"\")","v":""},{"$f":"IFERROR(IF(INDEX('Coverage Indicator_Import-Expor'!AR$7:AR$223,MATCH($B88,'Coverage Indicator_Import-Expor'!$C$7:$C$223,0))=\"\",\"\",INDEX('Coverage Indicator_Import-Expor'!AR$7:AR$223,MATCH($B88,'Coverage Indicator_Import-Expor'!$C$7:$C$223,0))),\"\")","v":""},{"$f":"IFERROR(IF(INDEX('Coverage Indicator_Import-Expor'!AS$7:AS$223,MATCH($B88,'Coverage Indicator_Import-Expor'!$C$7:$C$223,0))=\"\",\"\",INDEX('Coverage Indicator_Import-Expor'!AS$7:AS$223,MATCH($B88,'Coverage Indicator_Import-Expor'!$C$7:$C$223,0))),\"\")","v":""},{"$f":"IFERROR(IF(INDEX('Coverage Indicator_Import-Expor'!N$7:N$223,MATCH($B88,'Coverage Indicator_Import-Expor'!$C$7:$C$223,0))=\"\",\"\",INDEX('Coverage Indicator_Import-Expor'!N$7:N$223,MATCH($B88,'Coverage Indicator_Import-Expor'!$C$7:$C$223,0))),\"\")","v":""},{"$f":"IFERROR(IF(INDEX('Coverage Indicator_Import-Expor'!O$7:O$223,MATCH($B88,'Coverage Indicator_Import-Expor'!$C$7:$C$223,0))=\"\",\"\",INDEX('Coverage Indicator_Import-Expor'!O$7:O$223,MATCH($B88,'Coverage Indicator_Import-Expor'!$C$7:$C$223,0))),\"\")","v":""},{"$f":"IFERROR(IF(INDEX('Coverage Indicator_Import-Expor'!P$7:P$223,MATCH($B88,'Coverage Indicator_Import-Expor'!$C$7:$C$223,0))=\"\",\"\",INDEX('Coverage Indicator_Import-Expor'!P$7:P$223,MATCH($B88,'Coverage Indicator_Import-Expor'!$C$7:$C$223,0))),\"\")","v":""},{"$f":"IFERROR(IF(INDEX('Coverage Indicator_Import-Expor'!Q$7:Q$223,MATCH($B88,'Coverage Indicator_Import-Expor'!$C$7:$C$223,0))=\"\",\"\",INDEX('Coverage Indicator_Import-Expor'!Q$7:Q$223,MATCH($B88,'Coverage Indicator_Import-Expor'!$C$7:$C$223,0))),\"\")","v":""},{"$f":"IFERROR(IF(INDEX('Coverage Indicator_Import-Expor'!R$7:R$223,MATCH($B88,'Coverage Indicator_Import-Expor'!$C$7:$C$223,0))=\"\",\"\",INDEX('Coverage Indicator_Import-Expor'!R$7:R$223,MATCH($B88,'Coverage Indicator_Import-Expor'!$C$7:$C$223,0))),\"\")","v":""},{"$f":"IFERROR(IF(INDEX('Coverage Indicator_Import-Expor'!S$7:S$223,MATCH($B88,'Coverage Indicator_Import-Expor'!$C$7:$C$223,0))=\"\",\"\",INDEX('Coverage Indicator_Import-Expor'!S$7:S$223,MATCH($B88,'Coverage Indicator_Import-Expor'!$C$7:$C$223,0))),\"\")","v":""},{"$f":"IFERROR(IF(INDEX('Coverage Indicator_Import-Expor'!T$7:T$223,MATCH($B88,'Coverage Indicator_Import-Expor'!$C$7:$C$223,0))=\"\",\"\",INDEX('Coverage Indicator_Import-Expor'!T$7:T$223,MATCH($B88,'Coverage Indicator_Import-Expor'!$C$7:$C$223,0))),\"\")","v":""},{"$f":"IFERROR(IF(INDEX('Coverage Indicator_Import-Expor'!U$7:U$223,MATCH($B88,'Coverage Indicator_Import-Expor'!$C$7:$C$223,0))=\"\",\"\",INDEX('Coverage Indicator_Import-Expor'!U$7:U$223,MATCH($B88,'Coverage Indicator_Import-Expor'!$C$7:$C$223,0))),\"\")","v":""},null,null,"",null," ",null,"No Results Reported",null,null,"",null," ",null,null,"No Results Reported",null,null,""," ",null,"No Results Reported"]
[79,"Coverage79",{"$f":"IFERROR(INDEX('Coverage Indicator_Import-Expor'!$D$7:$D$223,MATCH(B89,'Coverage Indicator_Import-Expor'!$C$7:$C$223,0)),\"\")","v":""},{"$f":"IFERROR(INDEX('Coverage Indicator_Import-Expor'!$E$7:$E$223,MATCH(B89,'Coverage Indicator_Import-Expor'!$C$7:$C$223,0)),\"\")","v":""},{"$f":"IFERROR(IF(INDEX('Coverage Indicator_Import-Expor'!K$7:K$223,MATCH($B89,'Coverage Indicator_Import-Expor'!$C$7:$C$223,0))=\"\",\"\",INDEX('Coverage Indicator_Import-Expor'!K$7:K$223,MATCH($B89,'Coverage Indicator_Import-Expor'!$C$7:$C$223,0))),\"\")","v":""},{"$f":"IFERROR(IF(INDEX('Coverage Indicator_Import-Expor'!L$7:L$223,MATCH($B89,'Coverage Indicator_Import-Expor'!$C$7:$C$223,0))=\"\",\"\",INDEX('Coverage Indicator_Import-Expor'!L$7:L$223,MATCH($B89,'Coverage Indicator_Import-Expor'!$C$7:$C$223,0))),\"\")","v":""},{"$f":"IFERROR(IF(INDEX('Coverage Indicator_Import-Expor'!AR$7:AR$223,MATCH($B89,'Coverage Indicator_Import-Expor'!$C$7:$C$223,0))=\"\",\"\",INDEX('Coverage Indicator_Import-Expor'!AR$7:AR$223,MATCH($B89,'Coverage Indicator_Import-Expor'!$C$7:$C$223,0))),\"\")","v":""},{"$f":"IFERROR(IF(INDEX('Coverage Indicator_Import-Expor'!AS$7:AS$223,MATCH($B89,'Coverage Indicator_Import-Expor'!$C$7:$C$223,0))=\"\",\"\",INDEX('Coverage Indicator_Import-Expor'!AS$7:AS$223,MATCH($B89,'Coverage Indicator_Import-Expor'!$C$7:$C$223,0))),\"\")","v":""},{"$f":"IFERROR(IF(INDEX('Coverage Indicator_Import-Expor'!N$7:N$223,MATCH($B89,'Coverage Indicator_Import-Expor'!$C$7:$C$223,0))=\"\",\"\",INDEX('Coverage Indicator_Import-Expor'!N$7:N$223,MATCH($B89,'Coverage Indicator_Import-Expor'!$C$7:$C$223,0))),\"\")","v":""},{"$f":"IFERROR(IF(INDEX('Coverage Indicator_Import-Expor'!O$7:O$223,MATCH($B89,'Coverage Indicator_Import-Expor'!$C$7:$C$223,0))=\"\",\"\",INDEX('Coverage Indicator_Import-Expor'!O$7:O$223,MATCH($B89,'Coverage Indicator_Import-Expor'!$C$7:$C$223,0))),\"\")","v":""},{"$f":"IFERROR(IF(INDEX('Coverage Indicator_Import-Expor'!P$7:P$223,MATCH($B89,'Coverage Indicator_Import-Expor'!$C$7:$C$223,0))=\"\",\"\",INDEX('Coverage Indicator_Import-Expor'!P$7:P$223,MATCH($B89,'Coverage Indicator_Import-Expor'!$C$7:$C$223,0))),\"\")","v":""},{"$f":"IFERROR(IF(INDEX('Coverage Indicator_Import-Expor'!Q$7:Q$223,MATCH($B89,'Coverage Indicator_Import-Expor'!$C$7:$C$223,0))=\"\",\"\",INDEX('Coverage Indicator_Import-Expor'!Q$7:Q$223,MATCH($B89,'Coverage Indicator_Import-Expor'!$C$7:$C$223,0))),\"\")","v":""},{"$f":"IFERROR(IF(INDEX('Coverage Indicator_Import-Expor'!R$7:R$223,MATCH($B89,'Coverage Indicator_Import-Expor'!$C$7:$C$223,0))=\"\",\"\",INDEX('Coverage Indicator_Import-Expor'!R$7:R$223,MATCH($B89,'Coverage Indicator_Import-Expor'!$C$7:$C$223,0))),\"\")","v":""},{"$f":"IFERROR(IF(INDEX('Coverage Indicator_Import-Expor'!S$7:S$223,MATCH($B89,'Coverage Indicator_Import-Expor'!$C$7:$C$223,0))=\"\",\"\",INDEX('Coverage Indicator_Import-Expor'!S$7:S$223,MATCH($B89,'Coverage Indicator_Import-Expor'!$C$7:$C$223,0))),\"\")","v":""},{"$f":"IFERROR(IF(INDEX('Coverage Indicator_Import-Expor'!T$7:T$223,MATCH($B89,'Coverage Indicator_Import-Expor'!$C$7:$C$223,0))=\"\",\"\",INDEX('Coverage Indicator_Import-Expor'!T$7:T$223,MATCH($B89,'Coverage Indicator_Import-Expor'!$C$7:$C$223,0))),\"\")","v":""},{"$f":"IFERROR(IF(INDEX('Coverage Indicator_Import-Expor'!U$7:U$223,MATCH($B89,'Coverage Indicator_Import-Expor'!$C$7:$C$223,0))=\"\",\"\",INDEX('Coverage Indicator_Import-Expor'!U$7:U$223,MATCH($B89,'Coverage Indicator_Import-Expor'!$C$7:$C$223,0))),\"\")","v":""},null,null,"",null," ",null,"No Results Reported",null,null,"",null," ",null,null,"No Results Reported",null,null,""," ",null,"No Results Reported"]
[80,"Coverage80",{"$f":"IFERROR(INDEX('Coverage Indicator_Import-Expor'!$D$7:$D$223,MATCH(B90,'Coverage Indicator_Import-Expor'!$C$7:$C$223,0)),\"\")","v":""},{"$f":"IFERROR(INDEX('Coverage Indicator_Import-Expor'!$E$7:$E$223,MATCH(B90,'Coverage Indicator_Import-Expor'!$C$7:$C$223,0)),\"\")","v":""},{"$f":"IFERROR(IF(INDEX('Coverage Indicator_Import-Expor'!K$7:K$223,MATCH($B90,'Coverage Indicator_Import-Expor'!$C$7:$C$223,0))=\"\",\"\",INDEX('Coverage Indicator_Import-Expor'!K$7:K$223,MATCH($B90,'Coverage Indicator_Import-Expor'!$C$7:$C$223,0))),\"\")","v":""},{"$f":"IFERROR(IF(INDEX('Coverage Indicator_Import-Expor'!L$7:L$223,MATCH($B90,'Coverage Indicator_Import-Expor'!$C$7:$C$223,0))=\"\",\"\",INDEX('Coverage Indicator_Import-Expor'!L$7:L$223,MATCH($B90,'Coverage Indicator_Import-Expor'!$C$7:$C$223,0))),\"\")","v":""},{"$f":"IFERROR(IF(INDEX('Coverage Indicator_Import-Expor'!AR$7:AR$223,MATCH($B90,'Coverage Indicator_Import-Expor'!$C$7:$C$223,0))=\"\",\"\",INDEX('Coverage Indicator_Import-Expor'!AR$7:AR$223,MATCH($B90,'Coverage Indicator_Import-Expor'!$C$7:$C$223,0))),\"\")","v":""},{"$f":"IFERROR(IF(INDEX('Coverage Indicator_Import-Expor'!AS$7:AS$223,MATCH($B90,'Coverage Indicator_Import-Expor'!$C$7:$C$223,0))=\"\",\"\",INDEX('Coverage Indicator_Import-Expor'!AS$7:AS$223,MATCH($B90,'Coverage Indicator_Import-Expor'!$C$7:$C$223,0))),\"\")","v":""},{"$f":"IFERROR(IF(INDEX('Coverage Indicator_Import-Expor'!N$7:N$223,MATCH($B90,'Coverage Indicator_Import-Expor'!$C$7:$C$223,0))=\"\",\"\",INDEX('Coverage Indicator_Import-Expor'!N$7:N$223,MATCH($B90,'Coverage Indicator_Import-Expor'!$C$7:$C$223,0))),\"\")","v":""},{"$f":"IFERROR(IF(INDEX('Coverage Indicator_Import-Expor'!O$7:O$223,MATCH($B90,'Coverage Indicator_Import-Expor'!$C$7:$C$223,0))=\"\",\"\",INDEX('Coverage Indicator_Import-Expor'!O$7:O$223,MATCH($B90,'Coverage Indicator_Import-Expor'!$C$7:$C$223,0))),\"\")","v":""},{"$f":"IFERROR(IF(INDEX('Coverage Indicator_Import-Expor'!P$7:P$223,MATCH($B90,'Coverage Indicator_Import-Expor'!$C$7:$C$223,0))=\"\",\"\",INDEX('Coverage Indicator_Import-Expor'!P$7:P$223,MATCH($B90,'Coverage Indicator_Import-Expor'!$C$7:$C$223,0))),\"\")","v":""},{"$f":"IFERROR(IF(INDEX('Coverage Indicator_Import-Expor'!Q$7:Q$223,MATCH($B90,'Coverage Indicator_Import-Expor'!$C$7:$C$223,0))=\"\",\"\",INDEX('Coverage Indicator_Import-Expor'!Q$7:Q$223,MATCH($B90,'Coverage Indicator_Import-Expor'!$C$7:$C$223,0))),\"\")","v":""},{"$f":"IFERROR(IF(INDEX('Coverage Indicator_Import-Expor'!R$7:R$223,MATCH($B90,'Coverage Indicator_Import-Expor'!$C$7:$C$223,0))=\"\",\"\",INDEX('Coverage Indicator_Import-Expor'!R$7:R$223,MATCH($B90,'Coverage Indicator_Import-Expor'!$C$7:$C$223,0))),\"\")","v":""},{"$f":"IFERROR(IF(INDEX('Coverage Indicator_Import-Expor'!S$7:S$223,MATCH($B90,'Coverage Indicator_Import-Expor'!$C$7:$C$223,0))=\"\",\"\",INDEX('Coverage Indicator_Import-Expor'!S$7:S$223,MATCH($B90,'Coverage Indicator_Import-Expor'!$C$7:$C$223,0))),\"\")","v":""},{"$f":"IFERROR(IF(INDEX('Coverage Indicator_Import-Expor'!T$7:T$223,MATCH($B90,'Coverage Indicator_Import-Expor'!$C$7:$C$223,0))=\"\",\"\",INDEX('Coverage Indicator_Import-Expor'!T$7:T$223,MATCH($B90,'Coverage Indicator_Import-Expor'!$C$7:$C$223,0))),\"\")","v":""},{"$f":"IFERROR(IF(INDEX('Coverage Indicator_Import-Expor'!U$7:U$223,MATCH($B90,'Coverage Indicator_Import-Expor'!$C$7:$C$223,0))=\"\",\"\",INDEX('Coverage Indicator_Import-Expor'!U$7:U$223,MATCH($B90,'Coverage Indicator_Import-Expor'!$C$7:$C$223,0))),\"\")","v":""},null,null,"",null," ",null,"No Results Reported",null,null,"",null," ",null,null,"No Results Reported",null,null,""," ",null,"No Results Reported"]
[81,"Coverage81",{"$f":"IFERROR(INDEX('Coverage Indicator_Import-Expor'!$D$7:$D$223,MATCH(B91,'Coverage Indicator_Import-Expor'!$C$7:$C$223,0)),\"\")","v":""},{"$f":"IFERROR(INDEX('Coverage Indicator_Import-Expor'!$E$7:$E$223,MATCH(B91,'Coverage Indicator_Import-Expor'!$C$7:$C$223,0)),\"\")","v":""},{"$f":"IFERROR(IF(INDEX('Coverage Indicator_Import-Expor'!K$7:K$223,MATCH($B91,'Coverage Indicator_Import-Expor'!$C$7:$C$223,0))=\"\",\"\",INDEX('Coverage Indicator_Import-Expor'!K$7:K$223,MATCH($B91,'Coverage Indicator_Import-Expor'!$C$7:$C$223,0))),\"\")","v":""},{"$f":"IFERROR(IF(INDEX('Coverage Indicator_Import-Expor'!L$7:L$223,MATCH($B91,'Coverage Indicator_Import-Expor'!$C$7:$C$223,0))=\"\",\"\",INDEX('Coverage Indicator_Import-Expor'!L$7:L$223,MATCH($B91,'Coverage Indicator_Import-Expor'!$C$7:$C$223,0))),\"\")","v":""},{"$f":"IFERROR(IF(INDEX('Coverage Indicator_Import-Expor'!AR$7:AR$223,MATCH($B91,'Coverage Indicator_Import-Expor'!$C$7:$C$223,0))=\"\",\"\",INDEX('Coverage Indicator_Import-Expor'!AR$7:AR$223,MATCH($B91,'Coverage Indicator_Import-Expor'!$C$7:$C$223,0))),\"\")","v":""},{"$f":"IFERROR(IF(INDEX('Coverage Indicator_Import-Expor'!AS$7:AS$223,MATCH($B91,'Coverage Indicator_Import-Expor'!$C$7:$C$223,0))=\"\",\"\",INDEX('Coverage Indicator_Import-Expor'!AS$7:AS$223,MATCH($B91,'Coverage Indicator_Import-Expor'!$C$7:$C$223,0))),\"\")","v":""},{"$f":"IFERROR(IF(INDEX('Coverage Indicator_Import-Expor'!N$7:N$223,MATCH($B91,'Coverage Indicator_Import-Expor'!$C$7:$C$223,0))=\"\",\"\",INDEX('Coverage Indicator_Import-Expor'!N$7:N$223,MATCH($B91,'Coverage Indicator_Import-Expor'!$C$7:$C$223,0))),\"\")","v":""},{"$f":"IFERROR(IF(INDEX('Coverage Indicator_Import-Expor'!O$7:O$223,MATCH($B91,'Coverage Indicator_Import-Expor'!$C$7:$C$223,0))=\"\",\"\",INDEX('Coverage Indicator_Import-Expor'!O$7:O$223,MATCH($B91,'Coverage Indicator_Import-Expor'!$C$7:$C$223,0))),\"\")","v":""},{"$f":"IFERROR(IF(INDEX('Coverage Indicator_Import-Expor'!P$7:P$223,MATCH($B91,'Coverage Indicator_Import-Expor'!$C$7:$C$223,0))=\"\",\"\",INDEX('Coverage Indicator_Import-Expor'!P$7:P$223,MATCH($B91,'Coverage Indicator_Import-Expor'!$C$7:$C$223,0))),\"\")","v":""},{"$f":"IFERROR(IF(INDEX('Coverage Indicator_Import-Expor'!Q$7:Q$223,MATCH($B91,'Coverage Indicator_Import-Expor'!$C$7:$C$223,0))=\"\",\"\",INDEX('Coverage Indicator_Import-Expor'!Q$7:Q$223,MATCH($B91,'Coverage Indicator_Import-Expor'!$C$7:$C$223,0))),\"\")","v":""},{"$f":"IFERROR(IF(INDEX('Coverage Indicator_Import-Expor'!R$7:R$223,MATCH($B91,'Coverage Indicator_Import-Expor'!$C$7:$C$223,0))=\"\",\"\",INDEX('Coverage Indicator_Import-Expor'!R$7:R$223,MATCH($B91,'Coverage Indicator_Import-Expor'!$C$7:$C$223,0))),\"\")","v":""},{"$f":"IFERROR(IF(INDEX('Coverage Indicator_Import-Expor'!S$7:S$223,MATCH($B91,'Coverage Indicator_Import-Expor'!$C$7:$C$223,0))=\"\",\"\",INDEX('Coverage Indicator_Import-Expor'!S$7:S$223,MATCH($B91,'Coverage Indicator_Import-Expor'!$C$7:$C$223,0))),\"\")","v":""},{"$f":"IFERROR(IF(INDEX('Coverage Indicator_Import-Expor'!T$7:T$223,MATCH($B91,'Coverage Indicator_Import-Expor'!$C$7:$C$223,0))=\"\",\"\",INDEX('Coverage Indicator_Import-Expor'!T$7:T$223,MATCH($B91,'Coverage Indicator_Import-Expor'!$C$7:$C$223,0))),\"\")","v":""},{"$f":"IFERROR(IF(INDEX('Coverage Indicator_Import-Expor'!U$7:U$223,MATCH($B91,'Coverage Indicator_Import-Expor'!$C$7:$C$223,0))=\"\",\"\",INDEX('Coverage Indicator_Import-Expor'!U$7:U$223,MATCH($B91,'Coverage Indicator_Import-Expor'!$C$7:$C$223,0))),\"\")","v":""},null,null,"",null," ",null,"No Results Reported",null,null,"",null," ",null,null,"No Results Reported",null,null,""," ",null,"No Results Reported"]
[82,"Coverage82",{"$f":"IFERROR(INDEX('Coverage Indicator_Import-Expor'!$D$7:$D$223,MATCH(B92,'Coverage Indicator_Import-Expor'!$C$7:$C$223,0)),\"\")","v":""},{"$f":"IFERROR(INDEX('Coverage Indicator_Import-Expor'!$E$7:$E$223,MATCH(B92,'Coverage Indicator_Import-Expor'!$C$7:$C$223,0)),\"\")","v":""},{"$f":"IFERROR(IF(INDEX('Coverage Indicator_Import-Expor'!K$7:K$223,MATCH($B92,'Coverage Indicator_Import-Expor'!$C$7:$C$223,0))=\"\",\"\",INDEX('Coverage Indicator_Import-Expor'!K$7:K$223,MATCH($B92,'Coverage Indicator_Import-Expor'!$C$7:$C$223,0))),\"\")","v":""},{"$f":"IFERROR(IF(INDEX('Coverage Indicator_Import-Expor'!L$7:L$223,MATCH($B92,'Coverage Indicator_Import-Expor'!$C$7:$C$223,0))=\"\",\"\",INDEX('Coverage Indicator_Import-Expor'!L$7:L$223,MATCH($B92,'Coverage Indicator_Import-Expor'!$C$7:$C$223,0))),\"\")","v":""},{"$f":"IFERROR(IF(INDEX('Coverage Indicator_Import-Expor'!AR$7:AR$223,MATCH($B92,'Coverage Indicator_Import-Expor'!$C$7:$C$223,0))=\"\",\"\",INDEX('Coverage Indicator_Import-Expor'!AR$7:AR$223,MATCH($B92,'Coverage Indicator_Import-Expor'!$C$7:$C$223,0))),\"\")","v":""},{"$f":"IFERROR(IF(INDEX('Coverage Indicator_Import-Expor'!AS$7:AS$223,MATCH($B92,'Coverage Indicator_Import-Expor'!$C$7:$C$223,0))=\"\",\"\",INDEX('Coverage Indicator_Import-Expor'!AS$7:AS$223,MATCH($B92,'Coverage Indicator_Import-Expor'!$C$7:$C$223,0))),\"\")","v":""},{"$f":"IFERROR(IF(INDEX('Coverage Indicator_Import-Expor'!N$7:N$223,MATCH($B92,'Coverage Indicator_Import-Expor'!$C$7:$C$223,0))=\"\",\"\",INDEX('Coverage Indicator_Import-Expor'!N$7:N$223,MATCH($B92,'Coverage Indicator_Import-Expor'!$C$7:$C$223,0))),\"\")","v":""},{"$f":"IFERROR(IF(INDEX('Coverage Indicator_Import-Expor'!O$7:O$223,MATCH($B92,'Coverage Indicator_Import-Expor'!$C$7:$C$223,0))=\"\",\"\",INDEX('Coverage Indicator_Import-Expor'!O$7:O$223,MATCH($B92,'Coverage Indicator_Import-Expor'!$C$7:$C$223,0))),\"\")","v":""},{"$f":"IFERROR(IF(INDEX('Coverage Indicator_Import-Expor'!P$7:P$223,MATCH($B92,'Coverage Indicator_Import-Expor'!$C$7:$C$223,0))=\"\",\"\",INDEX('Coverage Indicator_Import-Expor'!P$7:P$223,MATCH($B92,'Coverage Indicator_Import-Expor'!$C$7:$C$223,0))),\"\")","v":""},{"$f":"IFERROR(IF(INDEX('Coverage Indicator_Import-Expor'!Q$7:Q$223,MATCH($B92,'Coverage Indicator_Import-Expor'!$C$7:$C$223,0))=\"\",\"\",INDEX('Coverage Indicator_Import-Expor'!Q$7:Q$223,MATCH($B92,'Coverage Indicator_Import-Expor'!$C$7:$C$223,0))),\"\")","v":""},{"$f":"IFERROR(IF(INDEX('Coverage Indicator_Import-Expor'!R$7:R$223,MATCH($B92,'Coverage Indicator_Import-Expor'!$C$7:$C$223,0))=\"\",\"\",INDEX('Coverage Indicator_Import-Expor'!R$7:R$223,MATCH($B92,'Coverage Indicator_Import-Expor'!$C$7:$C$223,0))),\"\")","v":""},{"$f":"IFERROR(IF(INDEX('Coverage Indicator_Import-Expor'!S$7:S$223,MATCH($B92,'Coverage Indicator_Import-Expor'!$C$7:$C$223,0))=\"\",\"\",INDEX('Coverage Indicator_Import-Expor'!S$7:S$223,MATCH($B92,'Coverage Indicator_Import-Expor'!$C$7:$C$223,0))),\"\")","v":""},{"$f":"IFERROR(IF(INDEX('Coverage Indicator_Import-Expor'!T$7:T$223,MATCH($B92,'Coverage Indicator_Import-Expor'!$C$7:$C$223,0))=\"\",\"\",INDEX('Coverage Indicator_Import-Expor'!T$7:T$223,MATCH($B92,'Coverage Indicator_Import-Expor'!$C$7:$C$223,0))),\"\")","v":""},{"$f":"IFERROR(IF(INDEX('Coverage Indicator_Import-Expor'!U$7:U$223,MATCH($B92,'Coverage Indicator_Import-Expor'!$C$7:$C$223,0))=\"\",\"\",INDEX('Coverage Indicator_Import-Expor'!U$7:U$223,MATCH($B92,'Coverage Indicator_Import-Expor'!$C$7:$C$223,0))),\"\")","v":""},null,null,"",null," ",null,"No Results Reported",null,null,"",null," ",null,null,"No Results Reported",null,null,""," ",null,"No Results Reported"]
[83,"Coverage83",{"$f":"IFERROR(INDEX('Coverage Indicator_Import-Expor'!$D$7:$D$223,MATCH(B93,'Coverage Indicator_Import-Expor'!$C$7:$C$223,0)),\"\")","v":""},{"$f":"IFERROR(INDEX('Coverage Indicator_Import-Expor'!$E$7:$E$223,MATCH(B93,'Coverage Indicator_Import-Expor'!$C$7:$C$223,0)),\"\")","v":""},{"$f":"IFERROR(IF(INDEX('Coverage Indicator_Import-Expor'!K$7:K$223,MATCH($B93,'Coverage Indicator_Import-Expor'!$C$7:$C$223,0))=\"\",\"\",INDEX('Coverage Indicator_Import-Expor'!K$7:K$223,MATCH($B93,'Coverage Indicator_Import-Expor'!$C$7:$C$223,0))),\"\")","v":""},{"$f":"IFERROR(IF(INDEX('Coverage Indicator_Import-Expor'!L$7:L$223,MATCH($B93,'Coverage Indicator_Import-Expor'!$C$7:$C$223,0))=\"\",\"\",INDEX('Coverage Indicator_Import-Expor'!L$7:L$223,MATCH($B93,'Coverage Indicator_Import-Expor'!$C$7:$C$223,0))),\"\")","v":""},{"$f":"IFERROR(IF(INDEX('Coverage Indicator_Import-Expor'!AR$7:AR$223,MATCH($B93,'Coverage Indicator_Import-Expor'!$C$7:$C$223,0))=\"\",\"\",INDEX('Coverage Indicator_Import-Expor'!AR$7:AR$223,MATCH($B93,'Coverage Indicator_Import-Expor'!$C$7:$C$223,0))),\"\")","v":""},{"$f":"IFERROR(IF(INDEX('Coverage Indicator_Import-Expor'!AS$7:AS$223,MATCH($B93,'Coverage Indicator_Import-Expor'!$C$7:$C$223,0))=\"\",\"\",INDEX('Coverage Indicator_Import-Expor'!AS$7:AS$223,MATCH($B93,'Coverage Indicator_Import-Expor'!$C$7:$C$223,0))),\"\")","v":""},{"$f":"IFERROR(IF(INDEX('Coverage Indicator_Import-Expor'!N$7:N$223,MATCH($B93,'Coverage Indicator_Import-Expor'!$C$7:$C$223,0))=\"\",\"\",INDEX('Coverage Indicator_Import-Expor'!N$7:N$223,MATCH($B93,'Coverage Indicator_Import-Expor'!$C$7:$C$223,0))),\"\")","v":""},{"$f":"IFERROR(IF(INDEX('Coverage Indicator_Import-Expor'!O$7:O$223,MATCH($B93,'Coverage Indicator_Import-Expor'!$C$7:$C$223,0))=\"\",\"\",INDEX('Coverage Indicator_Import-Expor'!O$7:O$223,MATCH($B93,'Coverage Indicator_Import-Expor'!$C$7:$C$223,0))),\"\")","v":""},{"$f":"IFERROR(IF(INDEX('Coverage Indicator_Import-Expor'!P$7:P$223,MATCH($B93,'Coverage Indicator_Import-Expor'!$C$7:$C$223,0))=\"\",\"\",INDEX('Coverage Indicator_Import-Expor'!P$7:P$223,MATCH($B93,'Coverage Indicator_Import-Expor'!$C$7:$C$223,0))),\"\")","v":""},{"$f":"IFERROR(IF(INDEX('Coverage Indicator_Import-Expor'!Q$7:Q$223,MATCH($B93,'Coverage Indicator_Import-Expor'!$C$7:$C$223,0))=\"\",\"\",INDEX('Coverage Indicator_Import-Expor'!Q$7:Q$223,MATCH($B93,'Coverage Indicator_Import-Expor'!$C$7:$C$223,0))),\"\")","v":""},{"$f":"IFERROR(IF(INDEX('Coverage Indicator_Import-Expor'!R$7:R$223,MATCH($B93,'Coverage Indicator_Import-Expor'!$C$7:$C$223,0))=\"\",\"\",INDEX('Coverage Indicator_Import-Expor'!R$7:R$223,MATCH($B93,'Coverage Indicator_Import-Expor'!$C$7:$C$223,0))),\"\")","v":""},{"$f":"IFERROR(IF(INDEX('Coverage Indicator_Import-Expor'!S$7:S$223,MATCH($B93,'Coverage Indicator_Import-Expor'!$C$7:$C$223,0))=\"\",\"\",INDEX('Coverage Indicator_Import-Expor'!S$7:S$223,MATCH($B93,'Coverage Indicator_Import-Expor'!$C$7:$C$223,0))),\"\")","v":""},{"$f":"IFERROR(IF(INDEX('Coverage Indicator_Import-Expor'!T$7:T$223,MATCH($B93,'Coverage Indicator_Import-Expor'!$C$7:$C$223,0))=\"\",\"\",INDEX('Coverage Indicator_Import-Expor'!T$7:T$223,MATCH($B93,'Coverage Indicator_Import-Expor'!$C$7:$C$223,0))),\"\")","v":""},{"$f":"IFERROR(IF(INDEX('Coverage Indicator_Import-Expor'!U$7:U$223,MATCH($B93,'Coverage Indicator_Import-Expor'!$C$7:$C$223,0))=\"\",\"\",INDEX('Coverage Indicator_Import-Expor'!U$7:U$223,MATCH($B93,'Coverage Indicator_Import-Expor'!$C$7:$C$223,0))),\"\")","v":""},null,null,"",null," ",null,"No Results Reported",null,null,"",null," ",null,null,"No Results Reported",null,null,""," ",null,"No Results Reported"]
[84,"Coverage84",{"$f":"IFERROR(INDEX('Coverage Indicator_Import-Expor'!$D$7:$D$223,MATCH(B94,'Coverage Indicator_Import-Expor'!$C$7:$C$223,0)),\"\")","v":""},{"$f":"IFERROR(INDEX('Coverage Indicator_Import-Expor'!$E$7:$E$223,MATCH(B94,'Coverage Indicator_Import-Expor'!$C$7:$C$223,0)),\"\")","v":""},{"$f":"IFERROR(IF(INDEX('Coverage Indicator_Import-Expor'!K$7:K$223,MATCH($B94,'Coverage Indicator_Import-Expor'!$C$7:$C$223,0))=\"\",\"\",INDEX('Coverage Indicator_Import-Expor'!K$7:K$223,MATCH($B94,'Coverage Indicator_Import-Expor'!$C$7:$C$223,0))),\"\")","v":""},{"$f":"IFERROR(IF(INDEX('Coverage Indicator_Import-Expor'!L$7:L$223,MATCH($B94,'Coverage Indicator_Import-Expor'!$C$7:$C$223,0))=\"\",\"\",INDEX('Coverage Indicator_Import-Expor'!L$7:L$223,MATCH($B94,'Coverage Indicator_Import-Expor'!$C$7:$C$223,0))),\"\")","v":""},{"$f":"IFERROR(IF(INDEX('Coverage Indicator_Import-Expor'!AR$7:AR$223,MATCH($B94,'Coverage Indicator_Import-Expor'!$C$7:$C$223,0))=\"\",\"\",INDEX('Coverage Indicator_Import-Expor'!AR$7:AR$223,MATCH($B94,'Coverage Indicator_Import-Expor'!$C$7:$C$223,0))),\"\")","v":""},{"$f":"IFERROR(IF(INDEX('Coverage Indicator_Import-Expor'!AS$7:AS$223,MATCH($B94,'Coverage Indicator_Import-Expor'!$C$7:$C$223,0))=\"\",\"\",INDEX('Coverage Indicator_Import-Expor'!AS$7:AS$223,MATCH($B94,'Coverage Indicator_Import-Expor'!$C$7:$C$223,0))),\"\")","v":""},{"$f":"IFERROR(IF(INDEX('Coverage Indicator_Import-Expor'!N$7:N$223,MATCH($B94,'Coverage Indicator_Import-Expor'!$C$7:$C$223,0))=\"\",\"\",INDEX('Coverage Indicator_Import-Expor'!N$7:N$223,MATCH($B94,'Coverage Indicator_Import-Expor'!$C$7:$C$223,0))),\"\")","v":""},{"$f":"IFERROR(IF(INDEX('Coverage Indicator_Import-Expor'!O$7:O$223,MATCH($B94,'Coverage Indicator_Import-Expor'!$C$7:$C$223,0))=\"\",\"\",INDEX('Coverage Indicator_Import-Expor'!O$7:O$223,MATCH($B94,'Coverage Indicator_Import-Expor'!$C$7:$C$223,0))),\"\")","v":""},{"$f":"IFERROR(IF(INDEX('Coverage Indicator_Import-Expor'!P$7:P$223,MATCH($B94,'Coverage Indicator_Import-Expor'!$C$7:$C$223,0))=\"\",\"\",INDEX('Coverage Indicator_Import-Expor'!P$7:P$223,MATCH($B94,'Coverage Indicator_Import-Expor'!$C$7:$C$223,0))),\"\")","v":""},{"$f":"IFERROR(IF(INDEX('Coverage Indicator_Import-Expor'!Q$7:Q$223,MATCH($B94,'Coverage Indicator_Import-Expor'!$C$7:$C$223,0))=\"\",\"\",INDEX('Coverage Indicator_Import-Expor'!Q$7:Q$223,MATCH($B94,'Coverage Indicator_Import-Expor'!$C$7:$C$223,0))),\"\")","v":""},{"$f":"IFERROR(IF(INDEX('Coverage Indicator_Import-Expor'!R$7:R$223,MATCH($B94,'Coverage Indicator_Import-Expor'!$C$7:$C$223,0))=\"\",\"\",INDEX('Coverage Indicator_Import-Expor'!R$7:R$223,MATCH($B94,'Coverage Indicator_Import-Expor'!$C$7:$C$223,0))),\"\")","v":""},{"$f":"IFERROR(IF(INDEX('Coverage Indicator_Import-Expor'!S$7:S$223,MATCH($B94,'Coverage Indicator_Import-Expor'!$C$7:$C$223,0))=\"\",\"\",INDEX('Coverage Indicator_Import-Expor'!S$7:S$223,MATCH($B94,'Coverage Indicator_Import-Expor'!$C$7:$C$223,0))),\"\")","v":""},{"$f":"IFERROR(IF(INDEX('Coverage Indicator_Import-Expor'!T$7:T$223,MATCH($B94,'Coverage Indicator_Import-Expor'!$C$7:$C$223,0))=\"\",\"\",INDEX('Coverage Indicator_Import-Expor'!T$7:T$223,MATCH($B94,'Coverage Indicator_Import-Expor'!$C$7:$C$223,0))),\"\")","v":""},{"$f":"IFERROR(IF(INDEX('Coverage Indicator_Import-Expor'!U$7:U$223,MATCH($B94,'Coverage Indicator_Import-Expor'!$C$7:$C$223,0))=\"\",\"\",INDEX('Coverage Indicator_Import-Expor'!U$7:U$223,MATCH($B94,'Coverage Indicator_Import-Expor'!$C$7:$C$223,0))),\"\")","v":""},null,null,"",null," ",null,"No Results Reported",null,null,"",null," ",null,null,"No Results Reported",null,null,""," ",null,"No Results Reported"]
[85,"Coverage85",{"$f":"IFERROR(INDEX('Coverage Indicator_Import-Expor'!$D$7:$D$223,MATCH(B95,'Coverage Indicator_Import-Expor'!$C$7:$C$223,0)),\"\")","v":""},{"$f":"IFERROR(INDEX('Coverage Indicator_Import-Expor'!$E$7:$E$223,MATCH(B95,'Coverage Indicator_Import-Expor'!$C$7:$C$223,0)),\"\")","v":""},{"$f":"IFERROR(IF(INDEX('Coverage Indicator_Import-Expor'!K$7:K$223,MATCH($B95,'Coverage Indicator_Import-Expor'!$C$7:$C$223,0))=\"\",\"\",INDEX('Coverage Indicator_Import-Expor'!K$7:K$223,MATCH($B95,'Coverage Indicator_Import-Expor'!$C$7:$C$223,0))),\"\")","v":""},{"$f":"IFERROR(IF(INDEX('Coverage Indicator_Import-Expor'!L$7:L$223,MATCH($B95,'Coverage Indicator_Import-Expor'!$C$7:$C$223,0))=\"\",\"\",INDEX('Coverage Indicator_Import-Expor'!L$7:L$223,MATCH($B95,'Coverage Indicator_Import-Expor'!$C$7:$C$223,0))),\"\")","v":""},{"$f":"IFERROR(IF(INDEX('Coverage Indicator_Import-Expor'!AR$7:AR$223,MATCH($B95,'Coverage Indicator_Import-Expor'!$C$7:$C$223,0))=\"\",\"\",INDEX('Coverage Indicator_Import-Expor'!AR$7:AR$223,MATCH($B95,'Coverage Indicator_Import-Expor'!$C$7:$C$223,0))),\"\")","v":""},{"$f":"IFERROR(IF(INDEX('Coverage Indicator_Import-Expor'!AS$7:AS$223,MATCH($B95,'Coverage Indicator_Import-Expor'!$C$7:$C$223,0))=\"\",\"\",INDEX('Coverage Indicator_Import-Expor'!AS$7:AS$223,MATCH($B95,'Coverage Indicator_Import-Expor'!$C$7:$C$223,0))),\"\")","v":""},{"$f":"IFERROR(IF(INDEX('Coverage Indicator_Import-Expor'!N$7:N$223,MATCH($B95,'Coverage Indicator_Import-Expor'!$C$7:$C$223,0))=\"\",\"\",INDEX('Coverage Indicator_Import-Expor'!N$7:N$223,MATCH($B95,'Coverage Indicator_Import-Expor'!$C$7:$C$223,0))),\"\")","v":""},{"$f":"IFERROR(IF(INDEX('Coverage Indicator_Import-Expor'!O$7:O$223,MATCH($B95,'Coverage Indicator_Import-Expor'!$C$7:$C$223,0))=\"\",\"\",INDEX('Coverage Indicator_Import-Expor'!O$7:O$223,MATCH($B95,'Coverage Indicator_Import-Expor'!$C$7:$C$223,0))),\"\")","v":""},{"$f":"IFERROR(IF(INDEX('Coverage Indicator_Import-Expor'!P$7:P$223,MATCH($B95,'Coverage Indicator_Import-Expor'!$C$7:$C$223,0))=\"\",\"\",INDEX('Coverage Indicator_Import-Expor'!P$7:P$223,MATCH($B95,'Coverage Indicator_Import-Expor'!$C$7:$C$223,0))),\"\")","v":""},{"$f":"IFERROR(IF(INDEX('Coverage Indicator_Import-Expor'!Q$7:Q$223,MATCH($B95,'Coverage Indicator_Import-Expor'!$C$7:$C$223,0))=\"\",\"\",INDEX('Coverage Indicator_Import-Expor'!Q$7:Q$223,MATCH($B95,'Coverage Indicator_Import-Expor'!$C$7:$C$223,0))),\"\")","v":""},{"$f":"IFERROR(IF(INDEX('Coverage Indicator_Import-Expor'!R$7:R$223,MATCH($B95,'Coverage Indicator_Import-Expor'!$C$7:$C$223,0))=\"\",\"\",INDEX('Coverage Indicator_Import-Expor'!R$7:R$223,MATCH($B95,'Coverage Indicator_Import-Expor'!$C$7:$C$223,0))),\"\")","v":""},{"$f":"IFERROR(IF(INDEX('Coverage Indicator_Import-Expor'!S$7:S$223,MATCH($B95,'Coverage Indicator_Import-Expor'!$C$7:$C$223,0))=\"\",\"\",INDEX('Coverage Indicator_Import-Expor'!S$7:S$223,MATCH($B95,'Coverage Indicator_Import-Expor'!$C$7:$C$223,0))),\"\")","v":""},{"$f":"IFERROR(IF(INDEX('Coverage Indicator_Import-Expor'!T$7:T$223,MATCH($B95,'Coverage Indicator_Import-Expor'!$C$7:$C$223,0))=\"\",\"\",INDEX('Coverage Indicator_Import-Expor'!T$7:T$223,MATCH($B95,'Coverage Indicator_Import-Expor'!$C$7:$C$223,0))),\"\")","v":""},{"$f":"IFERROR(IF(INDEX('Coverage Indicator_Import-Expor'!U$7:U$223,MATCH($B95,'Coverage Indicator_Import-Expor'!$C$7:$C$223,0))=\"\",\"\",INDEX('Coverage Indicator_Import-Expor'!U$7:U$223,MATCH($B95,'Coverage Indicator_Import-Expor'!$C$7:$C$223,0))),\"\")","v":""},null,null,"",null," ",null,"No Results Reported",null,null,"",null," ",null,null,"No Results Reported",null,null,""," ",null,"No Results Reported"]
[86,"Coverage86",{"$f":"IFERROR(INDEX('Coverage Indicator_Import-Expor'!$D$7:$D$223,MATCH(B96,'Coverage Indicator_Import-Expor'!$C$7:$C$223,0)),\"\")","v":""},{"$f":"IFERROR(INDEX('Coverage Indicator_Import-Expor'!$E$7:$E$223,MATCH(B96,'Coverage Indicator_Import-Expor'!$C$7:$C$223,0)),\"\")","v":""},{"$f":"IFERROR(IF(INDEX('Coverage Indicator_Import-Expor'!K$7:K$223,MATCH($B96,'Coverage Indicator_Import-Expor'!$C$7:$C$223,0))=\"\",\"\",INDEX('Coverage Indicator_Import-Expor'!K$7:K$223,MATCH($B96,'Coverage Indicator_Import-Expor'!$C$7:$C$223,0))),\"\")","v":""},{"$f":"IFERROR(IF(INDEX('Coverage Indicator_Import-Expor'!L$7:L$223,MATCH($B96,'Coverage Indicator_Import-Expor'!$C$7:$C$223,0))=\"\",\"\",INDEX('Coverage Indicator_Import-Expor'!L$7:L$223,MATCH($B96,'Coverage Indicator_Import-Expor'!$C$7:$C$223,0))),\"\")","v":""},{"$f":"IFERROR(IF(INDEX('Coverage Indicator_Import-Expor'!AR$7:AR$223,MATCH($B96,'Coverage Indicator_Import-Expor'!$C$7:$C$223,0))=\"\",\"\",INDEX('Coverage Indicator_Import-Expor'!AR$7:AR$223,MATCH($B96,'Coverage Indicator_Import-Expor'!$C$7:$C$223,0))),\"\")","v":""},{"$f":"IFERROR(IF(INDEX('Coverage Indicator_Import-Expor'!AS$7:AS$223,MATCH($B96,'Coverage Indicator_Import-Expor'!$C$7:$C$223,0))=\"\",\"\",INDEX('Coverage Indicator_Import-Expor'!AS$7:AS$223,MATCH($B96,'Coverage Indicator_Import-Expor'!$C$7:$C$223,0))),\"\")","v":""},{"$f":"IFERROR(IF(INDEX('Coverage Indicator_Import-Expor'!N$7:N$223,MATCH($B96,'Coverage Indicator_Import-Expor'!$C$7:$C$223,0))=\"\",\"\",INDEX('Coverage Indicator_Import-Expor'!N$7:N$223,MATCH($B96,'Coverage Indicator_Import-Expor'!$C$7:$C$223,0))),\"\")","v":""},{"$f":"IFERROR(IF(INDEX('Coverage Indicator_Import-Expor'!O$7:O$223,MATCH($B96,'Coverage Indicator_Import-Expor'!$C$7:$C$223,0))=\"\",\"\",INDEX('Coverage Indicator_Import-Expor'!O$7:O$223,MATCH($B96,'Coverage Indicator_Import-Expor'!$C$7:$C$223,0))),\"\")","v":""},{"$f":"IFERROR(IF(INDEX('Coverage Indicator_Import-Expor'!P$7:P$223,MATCH($B96,'Coverage Indicator_Import-Expor'!$C$7:$C$223,0))=\"\",\"\",INDEX('Coverage Indicator_Import-Expor'!P$7:P$223,MATCH($B96,'Coverage Indicator_Import-Expor'!$C$7:$C$223,0))),\"\")","v":""},{"$f":"IFERROR(IF(INDEX('Coverage Indicator_Import-Expor'!Q$7:Q$223,MATCH($B96,'Coverage Indicator_Import-Expor'!$C$7:$C$223,0))=\"\",\"\",INDEX('Coverage Indicator_Import-Expor'!Q$7:Q$223,MATCH($B96,'Coverage Indicator_Import-Expor'!$C$7:$C$223,0))),\"\")","v":""},{"$f":"IFERROR(IF(INDEX('Coverage Indicator_Import-Expor'!R$7:R$223,MATCH($B96,'Coverage Indicator_Import-Expor'!$C$7:$C$223,0))=\"\",\"\",INDEX('Coverage Indicator_Import-Expor'!R$7:R$223,MATCH($B96,'Coverage Indicator_Import-Expor'!$C$7:$C$223,0))),\"\")","v":""},{"$f":"IFERROR(IF(INDEX('Coverage Indicator_Import-Expor'!S$7:S$223,MATCH($B96,'Coverage Indicator_Import-Expor'!$C$7:$C$223,0))=\"\",\"\",INDEX('Coverage Indicator_Import-Expor'!S$7:S$223,MATCH($B96,'Coverage Indicator_Import-Expor'!$C$7:$C$223,0))),\"\")","v":""},{"$f":"IFERROR(IF(INDEX('Coverage Indicator_Import-Expor'!T$7:T$223,MATCH($B96,'Coverage Indicator_Import-Expor'!$C$7:$C$223,0))=\"\",\"\",INDEX('Coverage Indicator_Import-Expor'!T$7:T$223,MATCH($B96,'Coverage Indicator_Import-Expor'!$C$7:$C$223,0))),\"\")","v":""},{"$f":"IFERROR(IF(INDEX('Coverage Indicator_Import-Expor'!U$7:U$223,MATCH($B96,'Coverage Indicator_Import-Expor'!$C$7:$C$223,0))=\"\",\"\",INDEX('Coverage Indicator_Import-Expor'!U$7:U$223,MATCH($B96,'Coverage Indicator_Import-Expor'!$C$7:$C$223,0))),\"\")","v":""},null,null,"",null," ",null,"No Results Reported",null,null,"",null," ",null,null,"No Results Reported",null,null,""," ",null,"No Results Reported"]
[87,"Coverage87",{"$f":"IFERROR(INDEX('Coverage Indicator_Import-Expor'!$D$7:$D$223,MATCH(B97,'Coverage Indicator_Import-Expor'!$C$7:$C$223,0)),\"\")","v":""},{"$f":"IFERROR(INDEX('Coverage Indicator_Import-Expor'!$E$7:$E$223,MATCH(B97,'Coverage Indicator_Import-Expor'!$C$7:$C$223,0)),\"\")","v":""},{"$f":"IFERROR(IF(INDEX('Coverage Indicator_Import-Expor'!K$7:K$223,MATCH($B97,'Coverage Indicator_Import-Expor'!$C$7:$C$223,0))=\"\",\"\",INDEX('Coverage Indicator_Import-Expor'!K$7:K$223,MATCH($B97,'Coverage Indicator_Import-Expor'!$C$7:$C$223,0))),\"\")","v":""},{"$f":"IFERROR(IF(INDEX('Coverage Indicator_Import-Expor'!L$7:L$223,MATCH($B97,'Coverage Indicator_Import-Expor'!$C$7:$C$223,0))=\"\",\"\",INDEX('Coverage Indicator_Import-Expor'!L$7:L$223,MATCH($B97,'Coverage Indicator_Import-Expor'!$C$7:$C$223,0))),\"\")","v":""},{"$f":"IFERROR(IF(INDEX('Coverage Indicator_Import-Expor'!AR$7:AR$223,MATCH($B97,'Coverage Indicator_Import-Expor'!$C$7:$C$223,0))=\"\",\"\",INDEX('Coverage Indicator_Import-Expor'!AR$7:AR$223,MATCH($B97,'Coverage Indicator_Import-Expor'!$C$7:$C$223,0))),\"\")","v":""},{"$f":"IFERROR(IF(INDEX('Coverage Indicator_Import-Expor'!AS$7:AS$223,MATCH($B97,'Coverage Indicator_Import-Expor'!$C$7:$C$223,0))=\"\",\"\",INDEX('Coverage Indicator_Import-Expor'!AS$7:AS$223,MATCH($B97,'Coverage Indicator_Import-Expor'!$C$7:$C$223,0))),\"\")","v":""},{"$f":"IFERROR(IF(INDEX('Coverage Indicator_Import-Expor'!N$7:N$223,MATCH($B97,'Coverage Indicator_Import-Expor'!$C$7:$C$223,0))=\"\",\"\",INDEX('Coverage Indicator_Import-Expor'!N$7:N$223,MATCH($B97,'Coverage Indicator_Import-Expor'!$C$7:$C$223,0))),\"\")","v":""},{"$f":"IFERROR(IF(INDEX('Coverage Indicator_Import-Expor'!O$7:O$223,MATCH($B97,'Coverage Indicator_Import-Expor'!$C$7:$C$223,0))=\"\",\"\",INDEX('Coverage Indicator_Import-Expor'!O$7:O$223,MATCH($B97,'Coverage Indicator_Import-Expor'!$C$7:$C$223,0))),\"\")","v":""},{"$f":"IFERROR(IF(INDEX('Coverage Indicator_Import-Expor'!P$7:P$223,MATCH($B97,'Coverage Indicator_Import-Expor'!$C$7:$C$223,0))=\"\",\"\",INDEX('Coverage Indicator_Import-Expor'!P$7:P$223,MATCH($B97,'Coverage Indicator_Import-Expor'!$C$7:$C$223,0))),\"\")","v":""},{"$f":"IFERROR(IF(INDEX('Coverage Indicator_Import-Expor'!Q$7:Q$223,MATCH($B97,'Coverage Indicator_Import-Expor'!$C$7:$C$223,0))=\"\",\"\",INDEX('Coverage Indicator_Import-Expor'!Q$7:Q$223,MATCH($B97,'Coverage Indicator_Import-Expor'!$C$7:$C$223,0))),\"\")","v":""},{"$f":"IFERROR(IF(INDEX('Coverage Indicator_Import-Expor'!R$7:R$223,MATCH($B97,'Coverage Indicator_Import-Expor'!$C$7:$C$223,0))=\"\",\"\",INDEX('Coverage Indicator_Import-Expor'!R$7:R$223,MATCH($B97,'Coverage Indicator_Import-Expor'!$C$7:$C$223,0))),\"\")","v":""},{"$f":"IFERROR(IF(INDEX('Coverage Indicator_Import-Expor'!S$7:S$223,MATCH($B97,'Coverage Indicator_Import-Expor'!$C$7:$C$223,0))=\"\",\"\",INDEX('Coverage Indicator_Import-Expor'!S$7:S$223,MATCH($B97,'Coverage Indicator_Import-Expor'!$C$7:$C$223,0))),\"\")","v":""},{"$f":"IFERROR(IF(INDEX('Coverage Indicator_Import-Expor'!T$7:T$223,MATCH($B97,'Coverage Indicator_Import-Expor'!$C$7:$C$223,0))=\"\",\"\",INDEX('Coverage Indicator_Import-Expor'!T$7:T$223,MATCH($B97,'Coverage Indicator_Import-Expor'!$C$7:$C$223,0))),\"\")","v":""},{"$f":"IFERROR(IF(INDEX('Coverage Indicator_Import-Expor'!U$7:U$223,MATCH($B97,'Coverage Indicator_Import-Expor'!$C$7:$C$223,0))=\"\",\"\",INDEX('Coverage Indicator_Import-Expor'!U$7:U$223,MATCH($B97,'Coverage Indicator_Import-Expor'!$C$7:$C$223,0))),\"\")","v":""},null,null,"",null," ",null,"No Results Reported",null,null,"",null," ",null,null,"No Results Reported",null,null,""," ",null,"No Results Reported"]
[88,"Coverage88",{"$f":"IFERROR(INDEX('Coverage Indicator_Import-Expor'!$D$7:$D$223,MATCH(B98,'Coverage Indicator_Import-Expor'!$C$7:$C$223,0)),\"\")","v":""},{"$f":"IFERROR(INDEX('Coverage Indicator_Import-Expor'!$E$7:$E$223,MATCH(B98,'Coverage Indicator_Import-Expor'!$C$7:$C$223,0)),\"\")","v":""},{"$f":"IFERROR(IF(INDEX('Coverage Indicator_Import-Expor'!K$7:K$223,MATCH($B98,'Coverage Indicator_Import-Expor'!$C$7:$C$223,0))=\"\",\"\",INDEX('Coverage Indicator_Import-Expor'!K$7:K$223,MATCH($B98,'Coverage Indicator_Import-Expor'!$C$7:$C$223,0))),\"\")","v":""},{"$f":"IFERROR(IF(INDEX('Coverage Indicator_Import-Expor'!L$7:L$223,MATCH($B98,'Coverage Indicator_Import-Expor'!$C$7:$C$223,0))=\"\",\"\",INDEX('Coverage Indicator_Import-Expor'!L$7:L$223,MATCH($B98,'Coverage Indicator_Import-Expor'!$C$7:$C$223,0))),\"\")","v":""},{"$f":"IFERROR(IF(INDEX('Coverage Indicator_Import-Expor'!AR$7:AR$223,MATCH($B98,'Coverage Indicator_Import-Expor'!$C$7:$C$223,0))=\"\",\"\",INDEX('Coverage Indicator_Import-Expor'!AR$7:AR$223,MATCH($B98,'Coverage Indicator_Import-Expor'!$C$7:$C$223,0))),\"\")","v":""},{"$f":"IFERROR(IF(INDEX('Coverage Indicator_Import-Expor'!AS$7:AS$223,MATCH($B98,'Coverage Indicator_Import-Expor'!$C$7:$C$223,0))=\"\",\"\",INDEX('Coverage Indicator_Import-Expor'!AS$7:AS$223,MATCH($B98,'Coverage Indicator_Import-Expor'!$C$7:$C$223,0))),\"\")","v":""},{"$f":"IFERROR(IF(INDEX('Coverage Indicator_Import-Expor'!N$7:N$223,MATCH($B98,'Coverage Indicator_Import-Expor'!$C$7:$C$223,0))=\"\",\"\",INDEX('Coverage Indicator_Import-Expor'!N$7:N$223,MATCH($B98,'Coverage Indicator_Import-Expor'!$C$7:$C$223,0))),\"\")","v":""},{"$f":"IFERROR(IF(INDEX('Coverage Indicator_Import-Expor'!O$7:O$223,MATCH($B98,'Coverage Indicator_Import-Expor'!$C$7:$C$223,0))=\"\",\"\",INDEX('Coverage Indicator_Import-Expor'!O$7:O$223,MATCH($B98,'Coverage Indicator_Import-Expor'!$C$7:$C$223,0))),\"\")","v":""},{"$f":"IFERROR(IF(INDEX('Coverage Indicator_Import-Expor'!P$7:P$223,MATCH($B98,'Coverage Indicator_Import-Expor'!$C$7:$C$223,0))=\"\",\"\",INDEX('Coverage Indicator_Import-Expor'!P$7:P$223,MATCH($B98,'Coverage Indicator_Import-Expor'!$C$7:$C$223,0))),\"\")","v":""},{"$f":"IFERROR(IF(INDEX('Coverage Indicator_Import-Expor'!Q$7:Q$223,MATCH($B98,'Coverage Indicator_Import-Expor'!$C$7:$C$223,0))=\"\",\"\",INDEX('Coverage Indicator_Import-Expor'!Q$7:Q$223,MATCH($B98,'Coverage Indicator_Import-Expor'!$C$7:$C$223,0))),\"\")","v":""},{"$f":"IFERROR(IF(INDEX('Coverage Indicator_Import-Expor'!R$7:R$223,MATCH($B98,'Coverage Indicator_Import-Expor'!$C$7:$C$223,0))=\"\",\"\",INDEX('Coverage Indicator_Import-Expor'!R$7:R$223,MATCH($B98,'Coverage Indicator_Import-Expor'!$C$7:$C$223,0))),\"\")","v":""},{"$f":"IFERROR(IF(INDEX('Coverage Indicator_Import-Expor'!S$7:S$223,MATCH($B98,'Coverage Indicator_Import-Expor'!$C$7:$C$223,0))=\"\",\"\",INDEX('Coverage Indicator_Import-Expor'!S$7:S$223,MATCH($B98,'Coverage Indicator_Import-Expor'!$C$7:$C$223,0))),\"\")","v":""},{"$f":"IFERROR(IF(INDEX('Coverage Indicator_Import-Expor'!T$7:T$223,MATCH($B98,'Coverage Indicator_Import-Expor'!$C$7:$C$223,0))=\"\",\"\",INDEX('Coverage Indicator_Import-Expor'!T$7:T$223,MATCH($B98,'Coverage Indicator_Import-Expor'!$C$7:$C$223,0))),\"\")","v":""},{"$f":"IFERROR(IF(INDEX('Coverage Indicator_Import-Expor'!U$7:U$223,MATCH($B98,'Coverage Indicator_Import-Expor'!$C$7:$C$223,0))=\"\",\"\",INDEX('Coverage Indicator_Import-Expor'!U$7:U$223,MATCH($B98,'Coverage Indicator_Import-Expor'!$C$7:$C$223,0))),\"\")","v":""},null,null,"",null," ",null,"No Results Reported",null,null,"",null," ",null,null,"No Results Reported",null,null,""," ",null,"No Results Reported"]
[89,"Coverage89",{"$f":"IFERROR(INDEX('Coverage Indicator_Import-Expor'!$D$7:$D$223,MATCH(B99,'Coverage Indicator_Import-Expor'!$C$7:$C$223,0)),\"\")","v":""},{"$f":"IFERROR(INDEX('Coverage Indicator_Import-Expor'!$E$7:$E$223,MATCH(B99,'Coverage Indicator_Import-Expor'!$C$7:$C$223,0)),\"\")","v":""},{"$f":"IFERROR(IF(INDEX('Coverage Indicator_Import-Expor'!K$7:K$223,MATCH($B99,'Coverage Indicator_Import-Expor'!$C$7:$C$223,0))=\"\",\"\",INDEX('Coverage Indicator_Import-Expor'!K$7:K$223,MATCH($B99,'Coverage Indicator_Import-Expor'!$C$7:$C$223,0))),\"\")","v":""},{"$f":"IFERROR(IF(INDEX('Coverage Indicator_Import-Expor'!L$7:L$223,MATCH($B99,'Coverage Indicator_Import-Expor'!$C$7:$C$223,0))=\"\",\"\",INDEX('Coverage Indicator_Import-Expor'!L$7:L$223,MATCH($B99,'Coverage Indicator_Import-Expor'!$C$7:$C$223,0))),\"\")","v":""},{"$f":"IFERROR(IF(INDEX('Coverage Indicator_Import-Expor'!AR$7:AR$223,MATCH($B99,'Coverage Indicator_Import-Expor'!$C$7:$C$223,0))=\"\",\"\",INDEX('Coverage Indicator_Import-Expor'!AR$7:AR$223,MATCH($B99,'Coverage Indicator_Import-Expor'!$C$7:$C$223,0))),\"\")","v":""},{"$f":"IFERROR(IF(INDEX('Coverage Indicator_Import-Expor'!AS$7:AS$223,MATCH($B99,'Coverage Indicator_Import-Expor'!$C$7:$C$223,0))=\"\",\"\",INDEX('Coverage Indicator_Import-Expor'!AS$7:AS$223,MATCH($B99,'Coverage Indicator_Import-Expor'!$C$7:$C$223,0))),\"\")","v":""},{"$f":"IFERROR(IF(INDEX('Coverage Indicator_Import-Expor'!N$7:N$223,MATCH($B99,'Coverage Indicator_Import-Expor'!$C$7:$C$223,0))=\"\",\"\",INDEX('Coverage Indicator_Import-Expor'!N$7:N$223,MATCH($B99,'Coverage Indicator_Import-Expor'!$C$7:$C$223,0))),\"\")","v":""},{"$f":"IFERROR(IF(INDEX('Coverage Indicator_Import-Expor'!O$7:O$223,MATCH($B99,'Coverage Indicator_Import-Expor'!$C$7:$C$223,0))=\"\",\"\",INDEX('Coverage Indicator_Import-Expor'!O$7:O$223,MATCH($B99,'Coverage Indicator_Import-Expor'!$C$7:$C$223,0))),\"\")","v":""},{"$f":"IFERROR(IF(INDEX('Coverage Indicator_Import-Expor'!P$7:P$223,MATCH($B99,'Coverage Indicator_Import-Expor'!$C$7:$C$223,0))=\"\",\"\",INDEX('Coverage Indicator_Import-Expor'!P$7:P$223,MATCH($B99,'Coverage Indicator_Import-Expor'!$C$7:$C$223,0))),\"\")","v":""},{"$f":"IFERROR(IF(INDEX('Coverage Indicator_Import-Expor'!Q$7:Q$223,MATCH($B99,'Coverage Indicator_Import-Expor'!$C$7:$C$223,0))=\"\",\"\",INDEX('Coverage Indicator_Import-Expor'!Q$7:Q$223,MATCH($B99,'Coverage Indicator_Import-Expor'!$C$7:$C$223,0))),\"\")","v":""},{"$f":"IFERROR(IF(INDEX('Coverage Indicator_Import-Expor'!R$7:R$223,MATCH($B99,'Coverage Indicator_Import-Expor'!$C$7:$C$223,0))=\"\",\"\",INDEX('Coverage Indicator_Import-Expor'!R$7:R$223,MATCH($B99,'Coverage Indicator_Import-Expor'!$C$7:$C$223,0))),\"\")","v":""},{"$f":"IFERROR(IF(INDEX('Coverage Indicator_Import-Expor'!S$7:S$223,MATCH($B99,'Coverage Indicator_Import-Expor'!$C$7:$C$223,0))=\"\",\"\",INDEX('Coverage Indicator_Import-Expor'!S$7:S$223,MATCH($B99,'Coverage Indicator_Import-Expor'!$C$7:$C$223,0))),\"\")","v":""},{"$f":"IFERROR(IF(INDEX('Coverage Indicator_Import-Expor'!T$7:T$223,MATCH($B99,'Coverage Indicator_Import-Expor'!$C$7:$C$223,0))=\"\",\"\",INDEX('Coverage Indicator_Import-Expor'!T$7:T$223,MATCH($B99,'Coverage Indicator_Import-Expor'!$C$7:$C$223,0))),\"\")","v":""},{"$f":"IFERROR(IF(INDEX('Coverage Indicator_Import-Expor'!U$7:U$223,MATCH($B99,'Coverage Indicator_Import-Expor'!$C$7:$C$223,0))=\"\",\"\",INDEX('Coverage Indicator_Import-Expor'!U$7:U$223,MATCH($B99,'Coverage Indicator_Import-Expor'!$C$7:$C$223,0))),\"\")","v":""},null,null,"",null," ",null,"No Results Reported",null,null,"",null," ",null,null,"No Results Reported",null,null,""," ",null,"No Results Reported"]
[90,"Coverage90",{"$f":"IFERROR(INDEX('Coverage Indicator_Import-Expor'!$D$7:$D$223,MATCH(B100,'Coverage Indicator_Import-Expor'!$C$7:$C$223,0)),\"\")","v":""},{"$f":"IFERROR(INDEX('Coverage Indicator_Import-Expor'!$E$7:$E$223,MATCH(B100,'Coverage Indicator_Import-Expor'!$C$7:$C$223,0)),\"\")","v":""},{"$f":"IFERROR(IF(INDEX('Coverage Indicator_Import-Expor'!K$7:K$223,MATCH($B100,'Coverage Indicator_Import-Expor'!$C$7:$C$223,0))=\"\",\"\",INDEX('Coverage Indicator_Import-Expor'!K$7:K$223,MATCH($B100,'Coverage Indicator_Import-Expor'!$C$7:$C$223,0))),\"\")","v":""},{"$f":"IFERROR(IF(INDEX('Coverage Indicator_Import-Expor'!L$7:L$223,MATCH($B100,'Coverage Indicator_Import-Expor'!$C$7:$C$223,0))=\"\",\"\",INDEX('Coverage Indicator_Import-Expor'!L$7:L$223,MATCH($B100,'Coverage Indicator_Import-Expor'!$C$7:$C$223,0))),\"\")","v":""},{"$f":"IFERROR(IF(INDEX('Coverage Indicator_Import-Expor'!AR$7:AR$223,MATCH($B100,'Coverage Indicator_Import-Expor'!$C$7:$C$223,0))=\"\",\"\",INDEX('Coverage Indicator_Import-Expor'!AR$7:AR$223,MATCH($B100,'Coverage Indicator_Import-Expor'!$C$7:$C$223,0))),\"\")","v":""},{"$f":"IFERROR(IF(INDEX('Coverage Indicator_Import-Expor'!AS$7:AS$223,MATCH($B100,'Coverage Indicator_Import-Expor'!$C$7:$C$223,0))=\"\",\"\",INDEX('Coverage Indicator_Import-Expor'!AS$7:AS$223,MATCH($B100,'Coverage Indicator_Import-Expor'!$C$7:$C$223,0))),\"\")","v":""},{"$f":"IFERROR(IF(INDEX('Coverage Indicator_Import-Expor'!N$7:N$223,MATCH($B100,'Coverage Indicator_Import-Expor'!$C$7:$C$223,0))=\"\",\"\",INDEX('Coverage Indicator_Import-Expor'!N$7:N$223,MATCH($B100,'Coverage Indicator_Import-Expor'!$C$7:$C$223,0))),\"\")","v":""},{"$f":"IFERROR(IF(INDEX('Coverage Indicator_Import-Expor'!O$7:O$223,MATCH($B100,'Coverage Indicator_Import-Expor'!$C$7:$C$223,0))=\"\",\"\",INDEX('Coverage Indicator_Import-Expor'!O$7:O$223,MATCH($B100,'Coverage Indicator_Import-Expor'!$C$7:$C$223,0))),\"\")","v":""},{"$f":"IFERROR(IF(INDEX('Coverage Indicator_Import-Expor'!P$7:P$223,MATCH($B100,'Coverage Indicator_Import-Expor'!$C$7:$C$223,0))=\"\",\"\",INDEX('Coverage Indicator_Import-Expor'!P$7:P$223,MATCH($B100,'Coverage Indicator_Import-Expor'!$C$7:$C$223,0))),\"\")","v":""},{"$f":"IFERROR(IF(INDEX('Coverage Indicator_Import-Expor'!Q$7:Q$223,MATCH($B100,'Coverage Indicator_Import-Expor'!$C$7:$C$223,0))=\"\",\"\",INDEX('Coverage Indicator_Import-Expor'!Q$7:Q$223,MATCH($B100,'Coverage Indicator_Import-Expor'!$C$7:$C$223,0))),\"\")","v":""},{"$f":"IFERROR(IF(INDEX('Coverage Indicator_Import-Expor'!R$7:R$223,MATCH($B100,'Coverage Indicator_Import-Expor'!$C$7:$C$223,0))=\"\",\"\",INDEX('Coverage Indicator_Import-Expor'!R$7:R$223,MATCH($B100,'Coverage Indicator_Import-Expor'!$C$7:$C$223,0))),\"\")","v":""},{"$f":"IFERROR(IF(INDEX('Coverage Indicator_Import-Expor'!S$7:S$223,MATCH($B100,'Coverage Indicator_Import-Expor'!$C$7:$C$223,0))=\"\",\"\",INDEX('Coverage Indicator_Import-Expor'!S$7:S$223,MATCH($B100,'Coverage Indicator_Import-Expor'!$C$7:$C$223,0))),\"\")","v":""},{"$f":"IFERROR(IF(INDEX('Coverage Indicator_Import-Expor'!T$7:T$223,MATCH($B100,'Coverage Indicator_Import-Expor'!$C$7:$C$223,0))=\"\",\"\",INDEX('Coverage Indicator_Import-Expor'!T$7:T$223,MATCH($B100,'Coverage Indicator_Import-Expor'!$C$7:$C$223,0))),\"\")","v":""},{"$f":"IFERROR(IF(INDEX('Coverage Indicator_Import-Expor'!U$7:U$223,MATCH($B100,'Coverage Indicator_Import-Expor'!$C$7:$C$223,0))=\"\",\"\",INDEX('Coverage Indicator_Import-Expor'!U$7:U$223,MATCH($B100,'Coverage Indicator_Import-Expor'!$C$7:$C$223,0))),\"\")","v":""},null,null,"",null," ",null,"No Results Reported",null,null,"",null," ",null,null,"No Results Reported",null,null,""," ",null,"No Results Reported"]

{"sheet":"Coverage Indicator_Import-Expor","index":10,"n_rows":31,"n_cols":53,"rows_kept":31,"cut":false,"hidden":true,"merged":[[4,49,5,49],[4,50,5,50],[4,51,5,51],[4,52,5,52],[4,43,5,43],[4,44,5,44],[4,45,5,45],[4,46,5,46],[4,47,5,47],[4,48,5,48],[4,28,4,30],[4,31,5,31],[4,32,5,32],[1,3,1,34],[4,3,5,3],[4,6,5,6],[4,11,5,11],[4,12,5,12],[4,18,4,20],[4,21,5,21],[4,22,4,24],[4,25,5,25],[4,42,5,42],[4,41,5,41],[4,4,5,4],[4,5,5,5],[4,7,5,7],[4,9,5,9],[4,8,5,8],[4,13,4,17],[4,33,5,33],[4,34,5,34],[4,35,5,35],[4,36,4,38],[4,39,5,39],[4,40,5,40],[4,26,5,26],[4,27,5,27]]}
[]
[null,null,null,"Instructions for population:\n1. Columns B to V` should be mapped for download only\n2. Columns W to AI should be mapped for import only\n3. Population should follow same rules as in tab Coverage Indicators_1B of current template with exception that:\na. population should be 1st sorted by field \"Coverage Indicator Number\" on the parent record Coverage Indicator\n\n"]
[]
[]
[null,null,null,"Module","Name to display","Standard Coverage Indicator Name","Custom Coverage Indicator Name","Standard Coverage Indicator Name - French","Standard Coverage Indicator Name - Spanish","Custom Coverage Indicator Name - local","Geographic Area","Target Cumulative?","Reverse Indicator?","Baseline",null,null,null,null,"Target",null,null,"Comments","Result",null,null,"Source","Achivement Ratio","Comments:\nReasons for programmatic deviation from intended target and deviations from the related workplan activities","Verified Result",null,null,"Source","Achivement Ratio","Verification Method","Comments:\nLFA analysis on progress to date and any variance between targets and results, and any other comments\n(this should not be a “Copy and Paste” of the reasons provided by the PR)","Data Validation checks on LFA data","Global Fund Validated Result",null,null,"Achivement Ratio\n(final one is calculated by GOS)","Country Team comments on validated results","Data validation checks on GF data","Coverage Indicator Number","Reverse Indicator","Geography",null,null,null,null,null,"Module Name ES","Module Name FR","Baseline Source - Local"]
["Record ID",-1,null,null,null,null,null,null,null,null,"Geographic Coverage",null,null,"Baseline N#","Baseline D#","Baseline %","Year","Baseline Source","Target N#","Target D#","Target %",null,"Result N#  (PR)","Result D# (PR)","Result % (PR)",null,null,null,"Verified Result N# (LFA)","Verified Result D# (LFA)","Verified Result % (LFA)",null,null,null,null,null,null,null,null,null,null,null,null,null,null,null,null,null,null,null,"Module Name ES","Module Name FR","Baseline Source - Local"]
["[Record ID]",{"$f":"B6+1","v":0},{"$f":"\"Coverage\"&B7","v":"Coverage0"},"[Module Name]",{"$f":"IF(LangOffset=0,CONCATENATE(F7&G7),IF(LangOffset=1,CONCATENATE(H7&J7),IF(LangOffset=2,I7&J7)))","v":"[Coverage Indicator Name  - FR][Custom Coverage Indicator Name - Local]"},"[Coverage Indicator Name]","[Custom Coverage Indicator Name - EN]","[Coverage Indicator Name  - FR]","[Coverage Indicator Name - ES]","[Custom Coverage Indicator Name - Local]","[Geographic Coverage]","[Rating Cumulation Type]","[Reversed indicator]","[Baseline N#]","[Baseline D#]","[Baseline %]","[Year]","[Baseline Source]","[Target N#]","[Target D#]","[Target %]","[Comment]",{"$f":"IFERROR(IF(INDEX('Coverage Indicators_1B'!Q$11:Q$100,MATCH($C7,'Coverage Indicators_1B'!$B$11:$B$100,0))=\"\",\"\",INDEX('Coverage Indicators_1B'!Q$11:Q$100,MATCH($C7,'Coverage Indicators_1B'!$B$11:$B$100,0))),\"\")","v":""},{"$f":"IFERROR(IF(INDEX('Coverage Indicators_1B'!R$11:R$100,MATCH($C7,'Coverage Indicators_1B'!$B$11:$B$100,0))=\"\",\"\",INDEX('Coverage Indicators_1B'!R$11:R$100,MATCH($C7,'Coverage Indicators_1B'!$B$11:$B$100,0))),\"\")","v":""},{"$f":"IFERROR(IF(INDEX('Coverage Indicators_1B'!S$11:S$100,MATCH($C7,'Coverage Indicators_1B'!$B$11:$B$100,0))=\"\",\"\",INDEX('Coverage Indicators_1B'!S$11:S$100,MATCH($C7,'Coverage Indicators_1B'!$B$11:$B$100,0))),\"\")","v":""},{"$f":"IFERROR(IF(INDEX('Coverage Indicators_1B'!T$11:T$100,MATCH($C7,'Coverage Indicators_1B'!$B$11:$B$100,0))=\"\",\"\",INDEX('Coverage Indicators_1B'!T$11:T$100,MATCH($C7,'Coverage Indicators_1B'!$B$11:$B$100,0))),\"\")","v":""},{"$f":"IFERROR(INDEX('Coverage Indicators_1B'!U$11:U$100,MATCH($C7,'Coverage Indicators_1B'!$B$11:$B$100,0)),\"\")","v":""},{"$f":"IFERROR(IF(INDEX('Coverage Indicators_1B'!V$11:V$100,MATCH($C7,'Coverage Indicators_1B'!$B$11:$B$100,0))=\"\",\"\",INDEX('Coverage Indicators_1B'!V$11:V$100,MATCH($C7,'Coverage Indicators_1B'!$B$11:$B$100,0))),\"\")","v":""},{"$f":"IFERROR(IF(INDEX('Coverage Indicators_1B'!X$11:X$100,MATCH($C7,'Coverage Indicators_1B'!$B$11:$B$100,0))=\"\",\"\",INDEX('Coverage Indicators_1B'!X$11:X$100,MATCH($C7,'Coverage Indicators_1B'!$B$11:$B$100,0))),\"\")","v":""},{"$f":"IFERROR(IF(INDEX('Coverage Indicators_1B'!Y$11:Y$100,MATCH($C7,'Coverage Indicators_1B'!$B$11:$B$100,0))=\"\",\"\",INDEX('Coverage Indicators_1B'!Y$11:Y$100,MATCH($C7,'Coverage Indicators_1B'!$B$11:$B$100,0))),\"\")","v":""},{"$f":"IFERROR(IF(INDEX('Coverage Indicators_1B'!Z$11:Z$100,MATCH($C7,'Coverage Indicators_1B'!$B$11:$B$100,0))=\"\",\"\",INDEX('Coverage Indicators_1B'!Z$11:Z$100,MATCH($C7,'Coverage Indicators_1B'!$B$11:$B$100,0))),\"\")","v":""},{"$f":"IFERROR(IF(INDEX('Coverage Indicators_1B'!AA$11:AA$100,MATCH($C7,'Coverage Indicators_1B'!$B$11:$B$100,0))=\"\",\"\",INDEX('Coverage Indicators_1B'!AA$11:AA$100,MATCH($C7,'Coverage Indicators_1B'!$B$11:$B$100,0))),\"\")","v":""},{"$f":"IFERROR(INDEX('Coverage Indicators_1B'!AB$11:AB$100,MATCH($C7,'Coverage Indicators_1B'!$B$11:$B$100,0)),\"\")","v":""},{"$f":"IFERROR(IF(INDEX('Coverage Indicators_1B'!AC$11:AC$100,MATCH($C7,'Coverage Indicators_1B'!$B$11:$B$100,0))=\"\",\"\",INDEX('Coverage Indicators_1B'!AC$11:AC$100,MATCH($C7,'Coverage Indicators_1B'!$B$11:$B$100,0))),\"\")","v":""},{"$f":"IFERROR(IF(INDEX('Coverage Indicators_1B'!AD$11:AD$100,MATCH($C7,'Coverage Indicators_1B'!$B$11:$B$100,0))=\"\",\"\",INDEX('Coverage Indicators_1B'!AD$11:AD$100,MATCH($C7,'Coverage Indicators_1B'!$B$11:$B$100,0))),\"\")","v":""},{"$f":"IFERROR(INDEX('Coverage Indicators_1B'!AE$11:AE$100,MATCH($C7,'Coverage Indicators_1B'!$B$11:$B$100,0)),\"\")","v":""},null,null,null,{"$f":"IFERROR(INDEX('Coverage Indicators_1B'!AI$11:AI$100,MATCH($C7,'Coverage Indicators_1B'!$B$11:$B$100,0)),\"\")","v":""},{"$f":"IFERROR(INDEX('Coverage Indicators_1B'!AJ$11:AJ$100,MATCH($C7,'Coverage Indicators_1B'!$B$11:$B$100,0)),\"\")","v":""},{"$f":"IFERROR(INDEX('Coverage Indicators_1B'!AK$11:AK$100,MATCH($C7,'Coverage Indicators_1B'!$B$11:$B$100,0)),\"\")","v":""},"[Coverage Indicator Number]",{"$f":"IFERROR(IF(M7=\"TRUE\",\"Yes\",\"No\"),\"\")","v":"No"},"[Country (Name)]",null,null,null,null,null,"[Module Name ES]","[Module Name FR]","[Baseline Source - Local]"]
["a173600000BjggSAAR",{"$f":"B7+1","v":1},{"$f":"\"Coverage\"&B8","v":"Coverage1"},"TB care and prevention","TCP-1(M): Nombre de cas déclarés de tuberculose, toutes formes confondues, bactériologiquement confirmés et cliniquement diagnostiqués, nouveaux cas et récidives","TCP-1(M): Number of notified cases of all forms of TB-(i.e. bacteriologically confirmed + clinically diagnosed), includes new and relapse cases",null,"TCP-1(M): Nombre de cas déclarés de tuberculose, toutes formes confondues, bactériologiquement confirmés et cliniquement diagnostiqués, nouveaux cas et récidives","TCP-1(M): Número de casos notificados de todas las formas de TB (i.e. confirmados bacteriológicamente y con diagnóstico clínico) incluye casos nuevos y recaídas",null,"National","N-Non-cumulative",false,7662,null,null,"2016","PNILT Annual Report",4223.5,null,null,"The numerator is the number of notified cases of all forms of tuberculosis (AFTB) with bacteriological confirmation and a clinical diagnosis (new cases and recurrences).\n\nThe calculation was based on the AFTB results from the PNILT (National Integrated Leprosy and Tuberculosis Control Program) in late 2016, increased annually by 5 percent relative to the general population.\n\nCurrent and planned interventions will facilitate the detection of 8,447, 8,870 and 9,313 new cases and relapses in 2018, 2019 and 2020 respectively. Adult targets are 7,626, 7,999 and 8,376 cases; child targets are 449, 494 and 558 cases (7%, 10% and 13% more than the previous year) for 2018, 2019 and 2020.\n\nIn the context of the early detection and diagnosis of tuberculosis (TB), the main intervention strategy during the grant implementation period will focus on (i) strengthening the microscopy laboratory network; (ii) improving the detection and reporting of TB cases in line with the \"End TB\" strategy: detecting 90% of cases of TB in a non-specific population and 90% of TB cases in at-risk groups; (iii ) screening for TB in PLHIV; (iv) ensuring adequate follow-up of TB patients undergoing treatment, and patients with TB/HIV and MDR-TB, aiming for a therapeutic success rate of ≥ 90% and ensuring coverage pf ARV treatment.\n\nThe actual contribution of the Burundian government to TB control has not been quantified, in particular the cost of infrastructure, human resources in testing and treatment centres (TTCs) and treatment centres (TCs), and the operation of such centers. However, through direct cofinancing and willingness to pay, there is an annual allocation for TB control, to the amount of 692,640,665 BIF in 2018, 726,872,692 BIF in 2019 and 763,216,326 BIF in 2020 respectively, i.e. 406,864 USD in 2018, 426,972 USD in 2019 and 448,320 USD in 2020. This amount is primarily intended for the purchase of drugs to combat side-effects, and to support the Tuberculosis Centre in Bujumbura, as well as MDR-TB cases and the National Programme.\n\nWhere gaps are not covered financially, funding has been requested as part of the Poverty Assessment and Analysis Report (PAAR) for (i) infection control activities, (ii) follow-up activities for TB patients undergoing treatment; and (iii) activities relating to the prevention of tuberculosis.\n\nPrisoners:\nIn 2016, 70 prisoners were screened thanks to contributions from all stakeholders, including the community.\nAccording to reported cases of AFTB in 2013, the rate was 1,027 per 100,000 in prisons (Mpimba). According to 2016-2017 performance framework estimates, 85 cases were retained for two years, allowing us to set the following targets: 100 cases among prisoners in 2018, 98 in 2019 and 96 in 2020.\nPLANNED STRATEGIES (PRISONERS)\n- Strengthening the coordination of interventions for prisoners for TB control,\n- Continued training of \"champion prisoners\" in TB/HIV, malaria, sexual and reproductive health (SRH), and prevention of mother-to-child transmission (PMTCT)\n- Provision of data collection tools\n- Distribution of materials (umbrellas, briefcases, registers) to help champion prisoners  raise awareness of TB \n- Radio advertising targeting specific groups including prisoners (according to the approved communication plan) to convey messages about HIV prevention, HIV and STI screening, TB, ETMS/IMCI, SR, and early NPC/CPoN, breastfeeding, and sexual and gender-based violence (SGBV)\n- Screening of TB for incoming and outgoing prisoners\n- Formative supervision in the country's 11 prisons.\n\nRefugees:\nNumerator: the number of AFTB cases notified among refugees.\nThe baseline value is for cases reported in refugee camps (11 cases), in 2013 (PNILT).\nPlanned activities include raising awareness among and mobilizing leaders in refugee camps, systematic screening for TB in refugee camps, training for refugee leaders in TB/HIV/PMTCT, and raising awareness of TB control.\nEstimated targets were as follows:\n- Refugee population (4 main camps): 37,788 (2013)\nAccording to reported cases of AFTB in 2013, the rate was 29 per 100,000 in refugee camps. The reporting rate may be lower than in the general population (83 per 100,000 in 2013) due to low coverage of services. A rate of 89 and 92 per 100,000 was therefore applied for 2016 and 2017 respectively, based on estimates of the PNILT reporting rate. This gives an estimated number of AFTB cases (allowing for a theoretical 2% increase in population size): 38 cases among refugees in 2018, 40 in 2019 and 42 in 2020.\nDuring the NFM funding period, 100 peer educators from the 4 main displaced persons camps were trained in issues relating to TB, includng other topics such as SR/PMTCT/NUTRITION/SGBV/MALARIA.\nThe population sizes of the camps are:  Musasa : 6453; Gasorwe: 8102; Kavumu: 12570; Bwagiriza: 8942\nIn each of the camps, the targets are 30%, 30% and 40% of the population ion 2018, 2019 and 2020.\n\nAn SSR has been selected and is responsible for organizing activities including reporting. Reports are submitted monthly by the SSR to the CRB. The data collection tools in 2016 did allow us to disaggregate the indicator. To solve this, we will develop a tool that will allow us to ascertain this indicator.\n\nBiannual results among prisoners and refugees will be reported in the comments on the TCP-1 indicator.\n\nGF covers 100% of the TB drug costs (as per programmatic gap tables).",{"$f":"IFERROR(IF(INDEX('Coverage Indicators_1B'!Q$11:Q$100,MATCH($C8,'Coverage Indicators_1B'!$B$11:$B$100,0))=\"\",\"\",INDEX('Coverage Indicators_1B'!Q$11:Q$100,MATCH($C8,'Coverage Indicators_1B'!$B$11:$B$100,0))),\"\")","v":3827},{"$f":"IFERROR(IF(INDEX('Coverage Indicators_1B'!R$11:R$100,MATCH($C8,'Coverage Indicators_1B'!$B$11:$B$100,0))=\"\",\"\",INDEX('Coverage Indicators_1B'!R$11:R$100,MATCH($C8,'Coverage Indicators_1B'!$B$11:$B$100,0))),\"\")","v":""},{"$f":"IFERROR(IF(INDEX('Coverage Indicators_1B'!S$11:S$100,MATCH($C8,'Coverage Indicators_1B'!$B$11:$B$100,0))=\"\",\"\",INDEX('Coverage Indicators_1B'!S$11:S$100,MATCH($C8,'Coverage Indicators_1B'!$B$11:$B$100,0))),\"\")","v":""},{"$f":"IFERROR(IF(INDEX('Coverage Indicators_1B'!T$11:T$100,MATCH($C8,'Coverage Indicators_1B'!$B$11:$B$100,0))=\"\",\"\",INDEX('Coverage Indicators_1B'!T$11:T$100,MATCH($C8,'Coverage Indicators_1B'!$B$11:$B$100,0))),\"\")","v":"R&R TB system, quarterly reports"},{"$f":"IFERROR(INDEX('Coverage Indicators_1B'!U$11:U$100,MATCH($C8,'Coverage Indicators_1B'!$B$11:$B$100,0)),\"\")","v":0.90612051615958333},{"$f":"IFERROR(IF(INDEX('Coverage Indicators_1B'!V$11:V$100,MATCH($C8,'Coverage Indicators_1B'!$B$11:$B$100,0))=\"\",\"\",INDEX('Coverage Indicators_1B'!V$11:V$100,MATCH($C8,'Coverage Indicators_1B'!$B$11:$B$100,0))),\"\")","v":"Le taux d'accomplissement pour la période évaluée (1er semestre 2018) est de 91%. \nLa cible n'a pas été atteinte pour la période, mais il y a progression par rapport à 2017 qui était de 81%. \nNombre de nouveaux cas 3646 pendant le semestre. Rechutes, Retours apres Abandon, Echec thérapeutique 181 cas. \nPour cette période l’écart s’explique par:\n (i) la non-acquisition sur les subventions précédentes du matériel de diagnostic précoce des cas présumés de tuberculose dans certains sites qui auraient pu augmenter le taux de la détection de la TB (Radiologie, Échographe). \n(ii) Il y a eu rupture de stock momentanée de consommables et réactifs de laboratoire en raison de l’absence de stock de sécurité à la clôture de la subvention précédente\n(iii) un relâchement dans l’implication des ASC dans la recherche active et la référence communautaire dû à l’absence de leur motivation financière. \n(iv) La faible couverture de screening TB chez les PVVIH au niveau des sites de traitement ARV. \nEn vue d'améliorer la situation, en collaboration avec le PNUD, le PNILT envisage les mesures suivantes:\n- Renforcement de la collaboration avec la CRB en vue d'un suivi rapproché de la composante Tuberculose communautaire. \nMission de terrain de suivi conjointe prévue (PNUD, PNLT et la CRB). Recherche de financement sur les efficiences\n- Motivation financière prévue pour les ASC dans le plan de travail de CARITAS.\n Le principe est déjà acquis pour les motiver à travers les GASC (contrats signés entre CARITAS et GASC).\n- Suivi de la demande de financement additionnel en vue d’acquérir le matériel de diagnostic performant (Appareil Radio, échographes). \n7 appareils GeneXpert restants seront installés, réalisation de formation pour les prestataires et utilisateurs prévus au T3. Suivi de l'installation des microscopes LED.\n- Renforcement de capacités des prestataires publics et privés afin qu'ils s'impliquent davantage dans la collecte et le transport des échantillons de crachat a travers des missions de supervision.\n- Plaidoyer auprès du comité national co-infection TB-VIH pour qu’il prenne des actions permettant que le screening soit systématique dans les centres PVVIH. Suivi pour l’élaboration du plan conjoint TB-VIH.\n- Les mesures ont été prises pour rendre disponible dans un court délais les réactifs et consommables de laboratoire réceptionnés. \n\nSource des données: cet indicateur a été renseigné par le rapport semestriel du PNILT après consultations des registres patients lors des ateliers de validation trimestrielle.\n\nPour ce qui concerne le nombre de cas parmi les refugiés et prisonniers et selon les données transmises par la CRB au 1er semestre 2018, il a été enregistré  76 cas au niveau des prisons soit un taux d'accomplissement de 76% par rapport à la cible annuelle. Par rapport aux réfugés, 32 cas ont été rapportés par la CRB soit un taux d'accomplissement par rapport à la cible annuelle ."},{"$f":"IFERROR(IF(INDEX('Coverage Indicators_1B'!X$11:X$100,MATCH($C8,'Coverage Indicators_1B'!$B$11:$B$100,0))=\"\",\"\",INDEX('Coverage Indicators_1B'!X$11:X$100,MATCH($C8,'Coverage Indicators_1B'!$B$11:$B$100,0))),\"\")","v":""},{"$f":"IFERROR(IF(INDEX('Coverage Indicators_1B'!Y$11:Y$100,MATCH($C8,'Coverage Indicators_1B'!$B$11:$B$100,0))=\"\",\"\",INDEX('Coverage Indicators_1B'!Y$11:Y$100,MATCH($C8,'Coverage Indicators_1B'!$B$11:$B$100,0))),\"\")","v":""},{"$f":"IFERROR(IF(INDEX('Coverage Indicators_1B'!Z$11:Z$100,MATCH($C8,'Coverage Indicators_1B'!$B$11:$B$100,0))=\"\",\"\",INDEX('Coverage Indicators_1B'!Z$11:Z$100,MATCH($C8,'Coverage Indicators_1B'!$B$11:$B$100,0))),\"\")","v":""},{"$f":"IFERROR(IF(INDEX('Coverage Indicators_1B'!AA$11:AA$100,MATCH($C8,'Coverage Indicators_1B'!$B$11:$B$100,0))=\"\",\"\",INDEX('Coverage Indicators_1B'!AA$11:AA$100,MATCH($C8,'Coverage Indicators_1B'!$B$11:$B$100,0))),\"\")","v":""},{"$f":"IFERROR(INDEX('Coverage Indicators_1B'!AB$11:AB$100,MATCH($C8,'Coverage Indicators_1B'!$B$11:$B$100,0)),\"\")","v":" "},{"$f":"IFERROR(IF(INDEX('Coverage Indicators_1B'!AC$11:AC$100,MATCH($C8,'Coverage Indicators_1B'!$B$11:$B$100,0))=\"\",\"\",INDEX('Coverage Indicators_1B'!AC$11:AC$100,MATCH($C8,'Coverage Indicators_1B'!$B$11:$B$100,0))),\"\")","v":""},{"$f":"IFERROR(IF(INDEX('Coverage Indicators_1B'!AD$11:AD$100,MATCH($C8,'Coverage Indicators_1B'!$B$11:$B$100,0))=\"\",\"\",INDEX('Coverage Indicators_1B'!AD$11:AD$100,MATCH($C8,'Coverage Indicators_1B'!$B$11:$B$100,0))),\"\")","v":""},{"$f":"IFERROR(INDEX('Coverage Indicators_1B'!AE$11:AE$100,MATCH($C8,'Coverage Indicators_1B'!$B$11:$B$100,0)),\"\")","v":"No Results Reported"},null,null,null,{"$f":"IFERROR(INDEX('Coverage Indicators_1B'!AI$11:AI$100,MATCH($C8,'Coverage Indicators_1B'!$B$11:$B$100,0)),\"\")","v":" "},{"$f":"IFERROR(INDEX('Coverage Indicators_1B'!AJ$11:AJ$100,MATCH($C8,'Coverage Indicators_1B'!$B$11:$B$100,0)),\"\")","v":0},{"$f":"IFERROR(INDEX('Coverage Indicators_1B'!AK$11:AK$100,MATCH($C8,'Coverage Indicators_1B'!$B$11:$B$100,0)),\"\")","v":"No Results Reported"},1,{"$f":"IFERROR(IF(M8=\"TRUE\",\"Yes\",\"No\"),\"\")","v":"No"},"Burundi",null,null,null,null,null,"Atención y prevención de tuberculosis","Prise en charge et prévention de la tuberculose","Rapport annuel du PNILT"]
["a173600000BjggTAAR",2,"Coverage2","TB care and prevention","TCP-2(M): Taux de succès thérapeutique- toutes formes confondue: Pourcentage de cas de TB, toutes formes confondue, bactériologiquement confirmés et diagnostiqués cliniquement, traités avec succès (guéris et traitement terminé) parmi tous les cas de TB ayant commencé le traitement pendant une période déterminée, nouveaux cas et récidives","TCP-2(M): Treatment success rate- all forms:  Percentage of TB cases, all forms, bacteriologically confirmed plus clinically diagnosed, successfully treated (cured plus treatment completed) among all TB cases registered for treatment during a specified period, new and relapse cases",null,"TCP-2(M): Taux de succès thérapeutique- toutes formes confondue: Pourcentage de cas de TB, toutes formes confondue, bactériologiquement confirmés et diagnostiqués cliniquement, traités avec succès (guéris et traitement terminé) parmi tous les cas de TB ayant commencé le traitement pendant une période déterminée, nouveaux cas et récidives","TCP-2(M): Tasa de éxito del tratamiento- todas las formas: Porcentaje de casos de TB de todas las formas, bacteriológicamente confirmados y clínicamente diagnosticados que han sido tratados exitosamente (curados más tratamiento completado) entre todos los casos de TB registrados para tratamiento durante un período específico, casos nuevos y recaídas",null,"National","N-Non-cumulative",false,6429,6969,92.3,"2016","PNILT Annual Report",3712.7674999999999,4022.5,92.3,"The numerator is the number of bacteriologically confirmed cases of TB in a given period that have been successfully treated (\"cured\" and \"completed treatment\").\nThe denominator is the total number of bacteriologically  confirmed cases recorded on  treatment during the same period.\n\nAll TB cases that are detected should be treated.\nThe End TB Strategy advocates a \"90-90-90\" target (90% screening of the general population, 90% screening in high-risk groups, and 90% therapeutic success).\nAs the country managed to exceed the WHO target, it was deemed necessary to maintain the therapeutic success rate for AFTB at 92.3% between 2018 and 2020.\n\nThe main interventions relate to (1) the continuing and uninterrupted availability of quality first-line anti-tuberculosis drugs at all levels of the health system; (2) the regularity of supervision in all care centers in all provinces; (3) documentation of interventions that reduce the number of cases where treatment is abandoned, and ensure their regular follow-up; (4) the maintenance of a telephone network for following up patients and transfers, and a move towards a system based on applications and smartphone-based geolocalization; 5) introduction of new paediatric TB formulations; 6) the continuation of 5 years of preventive treatment with isoniazid in TB-free child TB contacts. ",{"$f":"IFERROR(IF(INDEX('Coverage Indicators_1B'!Q$11:Q$100,MATCH($C9,'Coverage Indicators_1B'!$B$11:$B$100,0))=\"\",\"\",INDEX('Coverage Indicators_1B'!Q$11:Q$100,MATCH($C9,'Coverage Indicators_1B'!$B$11:$B$100,0))),\"\")","v":2342},{"$f":"IFERROR(IF(INDEX('Coverage Indicators_1B'!R$11:R$100,MATCH($C9,'Coverage Indicators_1B'!$B$11:$B$100,0))=\"\",\"\",INDEX('Coverage Indicators_1B'!R$11:R$100,MATCH($C9,'Coverage Indicators_1B'!$B$11:$B$100,0))),\"\")","v":2484},{"$f":"IFERROR(IF(INDEX('Coverage Indicators_1B'!S$11:S$100,MATCH($C9,'Coverage Indicators_1B'!$B$11:$B$100,0))=\"\",\"\",INDEX('Coverage Indicators_1B'!S$11:S$100,MATCH($C9,'Coverage Indicators_1B'!$B$11:$B$100,0))),\"\")","v":94.283413848631241},{"$f":"IFERROR(IF(INDEX('Coverage Indicators_1B'!T$11:T$100,MATCH($C9,'Coverage Indicators_1B'!$B$11:$B$100,0))=\"\",\"\",INDEX('Coverage Indicators_1B'!T$11:T$100,MATCH($C9,'Coverage Indicators_1B'!$B$11:$B$100,0))),\"\")","v":"R&R TB system, quarterly reports"},{"$f":"IFERROR(INDEX('Coverage Indicators_1B'!U$11:U$100,MATCH($C9,'Coverage Indicators_1B'!$B$11:$B$100,0)),\"\")","v":1.0214887740913461},{"$f":"IFERROR(IF(INDEX('Coverage Indicators_1B'!V$11:V$100,MATCH($C9,'Coverage Indicators_1B'!$B$11:$B$100,0))=\"\",\"\",INDEX('Coverage Indicators_1B'!V$11:V$100,MATCH($C9,'Coverage Indicators_1B'!$B$11:$B$100,0))),\"\")","v":"Numerateur : nombre de cas de tuberculose bacteriologiquement confirméeset traitées declarés guéris ou traitement terminés. soit 2342\nDenominateur : nombre de\" cas de Tb bacteriologiquement confirmées enregistrés dans la cohorte de traitement au cours de la periode. soit 2444. \n Le taux de réalisation de cet indicateur est de 94,28%. Ceci se traduit par un   taux d’accomplissemen de 102%.\nCette bonne performance s'expliquerait par:\n (i) le suivi rigoureux des patients mis sous traitement antituberculeux;\n(ii)  la disponibilité des médicaments à tous les niveaux de la pyramide sanitaire,\n(iii) le Traitement Directement Observé (TDO),\n(iv) la supervision régulière du niveau opérationnel par le niveau central du PNILT\n(v)  le renforcement des capacités des prestataires/techniciens de promotion de la santé \nLe PNILT entend renforcer cette performance par la mise à contribution de la communauté dans le soutien et le suivi des patients sous traitement antituberculeux et aussi le réseau Flotte permettant d'évaluer les cas transférés et de réduire les perdus de vue.\n\nSource des données: cet indicateur a été renseigné par le rapport semestriel du PNILT après consultations des registres patients lors des ateliers de validation trimestrielle."},{"$f":"IFERROR(IF(INDEX('Coverage Indicators_1B'!X$11:X$100,MATCH($C9,'Coverage Indicators_1B'!$B$11:$B$100,0))=\"\",\"\",INDEX('Coverage Indicators_1B'!X$11:X$100,MATCH($C9,'Coverage Indicators_1B'!$B$11:$B$100,0))),\"\")","v":""},{"$f":"IFERROR(IF(INDEX('Coverage Indicators_1B'!Y$11:Y$100,MATCH($C9,'Coverage Indicators_1B'!$B$11:$B$100,0))=\"\",\"\",INDEX('Coverage Indicators_1B'!Y$11:Y$100,MATCH($C9,'Coverage Indicators_1B'!$B$11:$B$100,0))),\"\")","v":""},{"$f":"IFERROR(IF(INDEX('Coverage Indicators_1B'!Z$11:Z$100,MATCH($C9,'Coverage Indicators_1B'!$B$11:$B$100,0))=\"\",\"\",INDEX('Coverage Indicators_1B'!Z$11:Z$100,MATCH($C9,'Coverage Indicators_1B'!$B$11:$B$100,0))),\"\")","v":""},{"$f":"IFERROR(IF(INDEX('Coverage Indicators_1B'!AA$11:AA$100,MATCH($C9,'Coverage Indicators_1B'!$B$11:$B$100,0))=\"\",\"\",INDEX('Coverage Indicators_1B'!AA$11:AA$100,MATCH($C9,'Coverage Indicators_1B'!$B$11:$B$100,0))),\"\")","v":""},{"$f":"IFERROR(INDEX('Coverage Indicators_1B'!AB$11:AB$100,MATCH($C9,'Coverage Indicators_1B'!$B$11:$B$100,0)),\"\")","v":" "},{"$f":"IFERROR(IF(INDEX('Coverage Indicators_1B'!AC$11:AC$100,MATCH($C9,'Coverage Indicators_1B'!$B$11:$B$100,0))=\"\",\"\",INDEX('Coverage Indicators_1B'!AC$11:AC$100,MATCH($C9,'Coverage Indicators_1B'!$B$11:$B$100,0))),\"\")","v":""},{"$f":"IFERROR(IF(INDEX('Coverage Indicators_1B'!AD$11:AD$100,MATCH($C9,'Coverage Indicators_1B'!$B$11:$B$100,0))=\"\",\"\",INDEX('Coverage Indicators_1B'!AD$11:AD$100,MATCH($C9,'Coverage Indicators_1B'!$B$11:$B$100,0))),\"\")","v":""},{"$f":"IFERROR(INDEX('Coverage Indicators_1B'!AE$11:AE$100,MATCH($C9,'Coverage Indicators_1B'!$B$11:$B$100,0)),\"\")","v":"No Results Reported"},null,null,null,{"$f":"IFERROR(INDEX('Coverage Indicators_1B'!AI$11:AI$100,MATCH($C9,'Coverage Indicators_1B'!$B$11:$B$100,0)),\"\")","v":" "},{"$f":"IFERROR(INDEX('Coverage Indicators_1B'!AJ$11:AJ$100,MATCH($C9,'Coverage Indicators_1B'!$B$11:$B$100,0)),\"\")","v":0},{"$f":"IFERROR(INDEX('Coverage Indicators_1B'!AK$11:AK$100,MATCH($C9,'Coverage Indicators_1B'!$B$11:$B$100,0)),\"\")","v":"No Results Reported"},2,"No","Burundi",null,null,null,null,null,"Atención y prevención de tuberculosis","Prise en charge et prévention de la tuberculose","Rapport annuel du PNILT"]
["a173600000BjggUAAR",3,"Coverage3","TB care and prevention","TCP-3: Pourcentage de laboratoires présentant des performances satisfaisantes d’assurance qualité externe pour la microscopie de frottis, parmi le nombre total de laboratoires effectuant des analyses par microscopie de frottis pendant la période","TCP-3: Percentage of laboratories showing adequate performance in external quality assurance for smear microscopy among the total number of laboratories that undertake smear microscopy during the reporting period",null,"TCP-3: Pourcentage de laboratoires présentant des performances satisfaisantes d’assurance qualité externe pour la microscopie de frottis, parmi le nombre total de laboratoires effectuant des analyses par microscopie de frottis pendant la période","TCP-3: Porcentaje de laboratorios que demuestran un desempeño adecuado en el aseguramiento de la calidad externa para microscopía de frotis entre el número total de laboratorios que realizan microscopia de frotis durante el período",null,"National","N-Non-cumulative",false,169,171,98.8,"2016","PNILT Annual Report",171,171,100,"The numerator is the number of laboratories with satisfactory performance for smear microscopy.\nThe denominator is the total number of laboratories performing smear microscopy analysis.\n\nCurrently, the country has 170 Testing and Treatment Centers (TTCs) and 1 National Reference Center for MDR-TB cases in Kibumbu, all of which are involved in quality control of TB screening slides.\nAfter each data validation and dissemination workshop, a sample of 13 slides is drawn by the TTC and NRC in Kibumbu for quality control and analysis by the NRL.\nIn the event of underperformance of a particular TTC, formative supervision is organized by the NRL.\n\nWith performance exceeding 99%, the target is set at 100% for each year.\n\nSatisfactory performance is defined as the achievement of satisfactory results (without major errors) in the quality control of TB screening slides received from the TTC/NRC Kibumbu by the NRL; this involves a re-reading of the TTC slides by 2 NRL technicians, and the results are compared with those initially reported by the TTC or NRC Kibumbu.",{"$f":"IFERROR(IF(INDEX('Coverage Indicators_1B'!Q$11:Q$100,MATCH($C10,'Coverage Indicators_1B'!$B$11:$B$100,0))=\"\",\"\",INDEX('Coverage Indicators_1B'!Q$11:Q$100,MATCH($C10,'Coverage Indicators_1B'!$B$11:$B$100,0))),\"\")","v":0},{"$f":"IFERROR(IF(INDEX('Coverage Indicators_1B'!R$11:R$100,MATCH($C10,'Coverage Indicators_1B'!$B$11:$B$100,0))=\"\",\"\",INDEX('Coverage Indicators_1B'!R$11:R$100,MATCH($C10,'Coverage Indicators_1B'!$B$11:$B$100,0))),\"\")","v":171},{"$f":"IFERROR(IF(INDEX('Coverage Indicators_1B'!S$11:S$100,MATCH($C10,'Coverage Indicators_1B'!$B$11:$B$100,0))=\"\",\"\",INDEX('Coverage Indicators_1B'!S$11:S$100,MATCH($C10,'Coverage Indicators_1B'!$B$11:$B$100,0))),\"\")","v":0},{"$f":"IFERROR(IF(INDEX('Coverage Indicators_1B'!T$11:T$100,MATCH($C10,'Coverage Indicators_1B'!$B$11:$B$100,0))=\"\",\"\",INDEX('Coverage Indicators_1B'!T$11:T$100,MATCH($C10,'Coverage Indicators_1B'!$B$11:$B$100,0))),\"\")","v":"Reports (specify)"},{"$f":"IFERROR(INDEX('Coverage Indicators_1B'!U$11:U$100,MATCH($C10,'Coverage Indicators_1B'!$B$11:$B$100,0)),\"\")","v":0},{"$f":"IFERROR(IF(INDEX('Coverage Indicators_1B'!V$11:V$100,MATCH($C10,'Coverage Indicators_1B'!$B$11:$B$100,0))=\"\",\"\",INDEX('Coverage Indicators_1B'!V$11:V$100,MATCH($C10,'Coverage Indicators_1B'!$B$11:$B$100,0))),\"\")","v":"Au cours du premier semestre 2018, le contrôle de qualité des lames n’a pas été effectué suite à la rupture de stock en consommables et intrants de laboratoire . Toutefois, les lames pour le contrôle de qualité ont été collectées et seront analysées dès que lesdits consommables et intrants de laboratoire seront disponibles, ce qui est le cas pendant la période de rédaction de ce rapport. Ainsi, l’indicateur pourra être renseigné. \n"},{"$f":"IFERROR(IF(INDEX('Coverage Indicators_1B'!X$11:X$100,MATCH($C10,'Coverage Indicators_1B'!$B$11:$B$100,0))=\"\",\"\",INDEX('Coverage Indicators_1B'!X$11:X$100,MATCH($C10,'Coverage Indicators_1B'!$B$11:$B$100,0))),\"\")","v":""},{"$f":"IFERROR(IF(INDEX('Coverage Indicators_1B'!Y$11:Y$100,MATCH($C10,'Coverage Indicators_1B'!$B$11:$B$100,0))=\"\",\"\",INDEX('Coverage Indicators_1B'!Y$11:Y$100,MATCH($C10,'Coverage Indicators_1B'!$B$11:$B$100,0))),\"\")","v":""},{"$f":"IFERROR(IF(INDEX('Coverage Indicators_1B'!Z$11:Z$100,MATCH($C10,'Coverage Indicators_1B'!$B$11:$B$100,0))=\"\",\"\",INDEX('Coverage Indicators_1B'!Z$11:Z$100,MATCH($C10,'Coverage Indicators_1B'!$B$11:$B$100,0))),\"\")","v":""},{"$f":"IFERROR(IF(INDEX('Coverage Indicators_1B'!AA$11:AA$100,MATCH($C10,'Coverage Indicators_1B'!$B$11:$B$100,0))=\"\",\"\",INDEX('Coverage Indicators_1B'!AA$11:AA$100,MATCH($C10,'Coverage Indicators_1B'!$B$11:$B$100,0))),\"\")","v":""},{"$f":"IFERROR(INDEX('Coverage Indicators_1B'!AB$11:AB$100,MATCH($C10,'Coverage Indicators_1B'!$B$11:$B$100,0)),\"\")","v":" "},{"$f":"IFERROR(IF(INDEX('Coverage Indicators_1B'!AC$11:AC$100,MATCH($C10,'Coverage Indicators_1B'!$B$11:$B$100,0))=\"\",\"\",INDEX('Coverage Indicators_1B'!AC$11:AC$100,MATCH($C10,'Coverage Indicators_1B'!$B$11:$B$100,0))),\"\")","v":""},{"$f":"IFERROR(IF(INDEX('Coverage Indicators_1B'!AD$11:AD$100,MATCH($C10,'Coverage Indicators_1B'!$B$11:$B$100,0))=\"\",\"\",INDEX('Coverage Indicators_1B'!AD$11:AD$100,MATCH($C10,'Coverage Indicators_1B'!$B$11:$B$100,0))),\"\")","v":""},{"$f":"IFERROR(INDEX('Coverage Indicators_1B'!AE$11:AE$100,MATCH($C10,'Coverage Indicators_1B'!$B$11:$B$100,0)),\"\")","v":"No Results Reported"},null,null,null,{"$f":"IFERROR(INDEX('Coverage Indicators_1B'!AI$11:AI$100,MATCH($C10,'Coverage Indicators_1B'!$B$11:$B$100,0)),\"\")","v":" "},{"$f":"IFERROR(INDEX('Coverage Indicators_1B'!AJ$11:AJ$100,MATCH($C10,'Coverage Indicators_1B'!$B$11:$B$100,0)),\"\")","v":0},{"$f":"IFERROR(INDEX('Coverage Indicators_1B'!AK$11:AK$100,MATCH($C10,'Coverage Indicators_1B'!$B$11:$B$100,0)),\"\")","v":"No Results Reported"},3,"No","Burundi",null,null,null,null,null,"Atención y prevención de tuberculosis","Prise en charge et prévention de la tuberculose","Rapport annuel du PNILT"]
["a173600000BjggVAAR",4,"Coverage4","TB care and prevention","TCP-4: Pourcentage d'entités déclarantes (districts ou unités de gestion de base) n’ayant communiqué aucune rupture de stocks des médicaments antituberculeux de première intention au dernier jour du trimestre","TCP-4: Percentage of reporting units reporting no stock-outs of anti-TB drugs on the last day of the quarter",null,"TCP-4: Pourcentage d'entités déclarantes (districts ou unités de gestion de base) n’ayant communiqué aucune rupture de stocks des médicaments antituberculeux de première intention au dernier jour du trimestre","TCP-4: Porcentaje de establecimientos reportando no desabastecimiento de drogas de primera línea para el tratamiento de TB al último día del trimestre",null,"National","N-Non-cumulative",false,170,170,100,"2016","PNILT Annual Report",170,170,100,"The numerator is the number of TTCs with no stock-outs lasting more then one week for first-line anti-tuberculosis drugs during the quarter.\nThe denominator is the total number of TTCs.\n\nIn order to include all health facilities, a decentralized approach was initiated as part of the Tuberculosis Program by establishing a system for the collection and transport of sputum.\nUpon diagnosis of a positive case by a non-TTC health facility, a drug kit is put together and made available to the facility Thus, 5 to 6 health facilities (897/170 TTCs) will be supplied with medicines by a TTC from their catchment area.\n    \nPrevious results for this indicator have been very satisfactory (100%), and the program intends to maintain this level of performance for the 2018-2020 funding period. This will be possible by building on the factors that have contributed to the successes seen to date.\n\nThere is a need to continue collaboration between the Government of Burundi, GDF/WHO and the Global Fund to ensure the continued availability of medicines and training and formative supervision of drug stock managers at all levels, including supply chain.\n\nIn addition, the current distribution system, which operates according to a centripetal distribution method, will be maintained across the country.\nTo all intents and purposes, any health center is a potential Treatment Center (TC). The latter is supplied by the TTCs, hence this document refers solely to TTCs.",{"$f":"IFERROR(IF(INDEX('Coverage Indicators_1B'!Q$11:Q$100,MATCH($C11,'Coverage Indicators_1B'!$B$11:$B$100,0))=\"\",\"\",INDEX('Coverage Indicators_1B'!Q$11:Q$100,MATCH($C11,'Coverage Indicators_1B'!$B$11:$B$100,0))),\"\")","v":170},{"$f":"IFERROR(IF(INDEX('Coverage Indicators_1B'!R$11:R$100,MATCH($C11,'Coverage Indicators_1B'!$B$11:$B$100,0))=\"\",\"\",INDEX('Coverage Indicators_1B'!R$11:R$100,MATCH($C11,'Coverage Indicators_1B'!$B$11:$B$100,0))),\"\")","v":170},{"$f":"IFERROR(IF(INDEX('Coverage Indicators_1B'!S$11:S$100,MATCH($C11,'Coverage Indicators_1B'!$B$11:$B$100,0))=\"\",\"\",INDEX('Coverage Indicators_1B'!S$11:S$100,MATCH($C11,'Coverage Indicators_1B'!$B$11:$B$100,0))),\"\")","v":100},{"$f":"IFERROR(IF(INDEX('Coverage Indicators_1B'!T$11:T$100,MATCH($C11,'Coverage Indicators_1B'!$B$11:$B$100,0))=\"\",\"\",INDEX('Coverage Indicators_1B'!T$11:T$100,MATCH($C11,'Coverage Indicators_1B'!$B$11:$B$100,0))),\"\")","v":"R&R TB system, quarterly reports"},{"$f":"IFERROR(INDEX('Coverage Indicators_1B'!U$11:U$100,MATCH($C11,'Coverage Indicators_1B'!$B$11:$B$100,0)),\"\")","v":1},{"$f":"IFERROR(IF(INDEX('Coverage Indicators_1B'!V$11:V$100,MATCH($C11,'Coverage Indicators_1B'!$B$11:$B$100,0))=\"\",\"\",INDEX('Coverage Indicators_1B'!V$11:V$100,MATCH($C11,'Coverage Indicators_1B'!$B$11:$B$100,0))),\"\")","v":"Aucune rupture de stock en médicaments anti tuberculeux n'a été signalée au cours de la période évaluée (1er Semestre 2018), grâce: \n(i) à l’existence d’un stock de médicaments achetés par le Fonds Mondial \n(ii) à la planification des approvisionnements, \n(iii) à la supervision régulière du PNILT sur la gestion des intrants,\n(iv) à l’organisation des ateliers de validation et de diffusion des données. \nCes ateliers permettent de connaitre les besoins en médicaments antituberculeux et de faire la quantification.\n\nSource des données: cet indicateur a été renseigné par le rapport semestriel du PNILT après consultations des fiches de stock   lors des ateliers de validation trimestrielle."},{"$f":"IFERROR(IF(INDEX('Coverage Indicators_1B'!X$11:X$100,MATCH($C11,'Coverage Indicators_1B'!$B$11:$B$100,0))=\"\",\"\",INDEX('Coverage Indicators_1B'!X$11:X$100,MATCH($C11,'Coverage Indicators_1B'!$B$11:$B$100,0))),\"\")","v":""},{"$f":"IFERROR(IF(INDEX('Coverage Indicators_1B'!Y$11:Y$100,MATCH($C11,'Coverage Indicators_1B'!$B$11:$B$100,0))=\"\",\"\",INDEX('Coverage Indicators_1B'!Y$11:Y$100,MATCH($C11,'Coverage Indicators_1B'!$B$11:$B$100,0))),\"\")","v":""},{"$f":"IFERROR(IF(INDEX('Coverage Indicators_1B'!Z$11:Z$100,MATCH($C11,'Coverage Indicators_1B'!$B$11:$B$100,0))=\"\",\"\",INDEX('Coverage Indicators_1B'!Z$11:Z$100,MATCH($C11,'Coverage Indicators_1B'!$B$11:$B$100,0))),\"\")","v":""},{"$f":"IFERROR(IF(INDEX('Coverage Indicators_1B'!AA$11:AA$100,MATCH($C11,'Coverage Indicators_1B'!$B$11:$B$100,0))=\"\",\"\",INDEX('Coverage Indicators_1B'!AA$11:AA$100,MATCH($C11,'Coverage Indicators_1B'!$B$11:$B$100,0))),\"\")","v":""},{"$f":"IFERROR(INDEX('Coverage Indicators_1B'!AB$11:AB$100,MATCH($C11,'Coverage Indicators_1B'!$B$11:$B$100,0)),\"\")","v":" "},{"$f":"IFERROR(IF(INDEX('Coverage Indicators_1B'!AC$11:AC$100,MATCH($C11,'Coverage Indicators_1B'!$B$11:$B$100,0))=\"\",\"\",INDEX('Coverage Indicators_1B'!AC$11:AC$100,MATCH($C11,'Coverage Indicators_1B'!$B$11:$B$100,0))),\"\")","v":""},{"$f":"IFERROR(IF(INDEX('Coverage Indicators_1B'!AD$11:AD$100,MATCH($C11,'Coverage Indicators_1B'!$B$11:$B$100,0))=\"\",\"\",INDEX('Coverage Indicators_1B'!AD$11:AD$100,MATCH($C11,'Coverage Indicators_1B'!$B$11:$B$100,0))),\"\")","v":""},{"$f":"IFERROR(INDEX('Coverage Indicators_1B'!AE$11:AE$100,MATCH($C11,'Coverage Indicators_1B'!$B$11:$B$100,0)),\"\")","v":"No Results Reported"},null,null,null,{"$f":"IFERROR(INDEX('Coverage Indicators_1B'!AI$11:AI$100,MATCH($C11,'Coverage Indicators_1B'!$B$11:$B$100,0)),\"\")","v":" "},{"$f":"IFERROR(INDEX('Coverage Indicators_1B'!AJ$11:AJ$100,MATCH($C11,'Coverage Indicators_1B'!$B$11:$B$100,0)),\"\")","v":0},{"$f":"IFERROR(INDEX('Coverage Indicators_1B'!AK$11:AK$100,MATCH($C11,'Coverage Indicators_1B'!$B$11:$B$100,0)),\"\")","v":"No Results Reported"},4,"No","Burundi",null,null,null,null,null,"Atención y prevención de tuberculosis","Prise en charge et prévention de la tuberculose","Rapport annuel du PNILT"]
["a173600000BjggWAAR",5,"Coverage5","TB care and prevention","TCP-5: Nombre d'enfants âgés de moins de 5 en contact avec des patients tuberculeux qui ont commencé un traitement préventif à l'isoniazide","TCP-5: Number of children <5 in contact with TB patients who began isonizide preventive therapy",null,"TCP-5: Nombre d'enfants âgés de moins de 5 en contact avec des patients tuberculeux qui ont commencé un traitement préventif à l'isoniazide","TCP-5: Número de niños menores de 5 años en contacto con pacientes de tuberculosis que empezaron a recibir  tratamiento preventivo con isoniazida (TPI)",null,"National","N-Non-cumulative",false,1171,null,null,"2016","PNILT Annual Report",670.5,null,null,"Numerator: The number of children under 5 years with TB contacts who have started isoniazid preventive treatment (IPT).\n\nThe results for 2016 show a 5 percent rate of AFTB in children. If powerful diagnostic tools are available, notification rates among children could increase by 7 percent in 2018, 10 percent in 2019 and 13 percent in 2020. \n\nThe interventions and strategies to be implemented relate to the use of GeneXpert in children in contact with PTB+.",{"$f":"IFERROR(IF(INDEX('Coverage Indicators_1B'!Q$11:Q$100,MATCH($C12,'Coverage Indicators_1B'!$B$11:$B$100,0))=\"\",\"\",INDEX('Coverage Indicators_1B'!Q$11:Q$100,MATCH($C12,'Coverage Indicators_1B'!$B$11:$B$100,0))),\"\")","v":501},{"$f":"IFERROR(IF(INDEX('Coverage Indicators_1B'!R$11:R$100,MATCH($C12,'Coverage Indicators_1B'!$B$11:$B$100,0))=\"\",\"\",INDEX('Coverage Indicators_1B'!R$11:R$100,MATCH($C12,'Coverage Indicators_1B'!$B$11:$B$100,0))),\"\")","v":""},{"$f":"IFERROR(IF(INDEX('Coverage Indicators_1B'!S$11:S$100,MATCH($C12,'Coverage Indicators_1B'!$B$11:$B$100,0))=\"\",\"\",INDEX('Coverage Indicators_1B'!S$11:S$100,MATCH($C12,'Coverage Indicators_1B'!$B$11:$B$100,0))),\"\")","v":""},{"$f":"IFERROR(IF(INDEX('Coverage Indicators_1B'!T$11:T$100,MATCH($C12,'Coverage Indicators_1B'!$B$11:$B$100,0))=\"\",\"\",INDEX('Coverage Indicators_1B'!T$11:T$100,MATCH($C12,'Coverage Indicators_1B'!$B$11:$B$100,0))),\"\")","v":"R&R TB system, quarterly reports"},{"$f":"IFERROR(INDEX('Coverage Indicators_1B'!U$11:U$100,MATCH($C12,'Coverage Indicators_1B'!$B$11:$B$100,0)),\"\")","v":0.74720357941834448},{"$f":"IFERROR(IF(INDEX('Coverage Indicators_1B'!V$11:V$100,MATCH($C12,'Coverage Indicators_1B'!$B$11:$B$100,0))=\"\",\"\",INDEX('Coverage Indicators_1B'!V$11:V$100,MATCH($C12,'Coverage Indicators_1B'!$B$11:$B$100,0))),\"\")","v":"Le nombre d’enfants âgés de moins de (5) cinq ans en contact avec les patients tuberculeux qui ont commencé un traitement a l’INH est de 501 sur 670 attendus (taux d’accomplissement de 75% au lieu de 100%).\nLa cible n’a pas été atteinte s’explique par\n • Retard dans la mise en oeuvre des missions de recherche des enfants de moins de 5 ans en contact avec les patients tuberculeux dans leur famille. Cela a été  dû au  décaissement tardif lié au retard dans la signature des accords avec les SRs.\n• Recrutement tardif des coordonnateurs provinciaux qui assurent et facilitent la recherche des cas contacts dans les familles des tuberculeux, les enfants exposés compris.\nLe PR et le PNLT ont identifié plusieurs activités à mettre en œuvre de manière intensive notamment : \ni) la sensibilisation des ménages au cours des descentes sur la recherche des cas contacts TB et TB/MR.  \n(ii) la supervision par les niveaux central et périphérique\n(iii) l'implication de la communauté \n(iv) déploiement des coordonnateurs provinciaux  en juillet 2018\n(v)  approvisionnement régulier en INH \n\nSource des données: cet indicateur a été renseigné par le rapport semestriel du PNILT après consultations des registres patients lors des ateliers de validation trimestrielle."},{"$f":"IFERROR(IF(INDEX('Coverage Indicators_1B'!X$11:X$100,MATCH($C12,'Coverage Indicators_1B'!$B$11:$B$100,0))=\"\",\"\",INDEX('Coverage Indicators_1B'!X$11:X$100,MATCH($C12,'Coverage Indicators_1B'!$B$11:$B$100,0))),\"\")","v":""},{"$f":"IFERROR(IF(INDEX('Coverage Indicators_1B'!Y$11:Y$100,MATCH($C12,'Coverage Indicators_1B'!$B$11:$B$100,0))=\"\",\"\",INDEX('Coverage Indicators_1B'!Y$11:Y$100,MATCH($C12,'Coverage Indicators_1B'!$B$11:$B$100,0))),\"\")","v":""},{"$f":"IFERROR(IF(INDEX('Coverage Indicators_1B'!Z$11:Z$100,MATCH($C12,'Coverage Indicators_1B'!$B$11:$B$100,0))=\"\",\"\",INDEX('Coverage Indicators_1B'!Z$11:Z$100,MATCH($C12,'Coverage Indicators_1B'!$B$11:$B$100,0))),\"\")","v":""},{"$f":"IFERROR(IF(INDEX('Coverage Indicators_1B'!AA$11:AA$100,MATCH($C12,'Coverage Indicators_1B'!$B$11:$B$100,0))=\"\",\"\",INDEX('Coverage Indicators_1B'!AA$11:AA$100,MATCH($C12,'Coverage Indicators_1B'!$B$11:$B$100,0))),\"\")","v":""},{"$f":"IFERROR(INDEX('Coverage Indicators_1B'!AB$11:AB$100,MATCH($C12,'Coverage Indicators_1B'!$B$11:$B$100,0)),\"\")","v":" "},{"$f":"IFERROR(IF(INDEX('Coverage Indicators_1B'!AC$11:AC$100,MATCH($C12,'Coverage Indicators_1B'!$B$11:$B$100,0))=\"\",\"\",INDEX('Coverage Indicators_1B'!AC$11:AC$100,MATCH($C12,'Coverage Indicators_1B'!$B$11:$B$100,0))),\"\")","v":""},{"$f":"IFERROR(IF(INDEX('Coverage Indicators_1B'!AD$11:AD$100,MATCH($C12,'Coverage Indicators_1B'!$B$11:$B$100,0))=\"\",\"\",INDEX('Coverage Indicators_1B'!AD$11:AD$100,MATCH($C12,'Coverage Indicators_1B'!$B$11:$B$100,0))),\"\")","v":""},{"$f":"IFERROR(INDEX('Coverage Indicators_1B'!AE$11:AE$100,MATCH($C12,'Coverage Indicators_1B'!$B$11:$B$100,0)),\"\")","v":"No Results Reported"},null,null,null,{"$f":"IFERROR(INDEX('Coverage Indicators_1B'!AI$11:AI$100,MATCH($C12,'Coverage Indicators_1B'!$B$11:$B$100,0)),\"\")","v":" "},{"$f":"IFERROR(INDEX('Coverage Indicators_1B'!AJ$11:AJ$100,MATCH($C12,'Coverage Indicators_1B'!$B$11:$B$100,0)),\"\")","v":0},{"$f":"IFERROR(INDEX('Coverage Indicators_1B'!AK$11:AK$100,MATCH($C12,'Coverage Indicators_1B'!$B$11:$B$100,0)),\"\")","v":"No Results Reported"},5,"No","Burundi",null,null,null,null,null,"Atención y prevención de tuberculosis","Prise en charge et prévention de la tuberculose","Rapport annuel du PNILT"]
["a173600000BjggXAAR",6,"Coverage6","TB care and prevention","TCP-7c: Nombre de cas déclarés de tuberculose (toutes formes confondues) par les prestataires extérieurs au programme national de lutte contre la tuberculose — services communautaires","TCP-7c: Number of notified TB cases (all forms) contributed by non-national TB program providers – community referrals",null,"TCP-7c: Nombre de cas déclarés de tuberculose (toutes formes confondues) par les prestataires extérieurs au programme national de lutte contre la tuberculose — services communautaires","TCP-7c: Número de casos de TB notificados (todas las formas) a traves de proveedores no-PNT- referidos por la comunidad",null,"National","N-Non-cumulative",false,382,null,null,"2016","PNILT Annual Report",1267,null,null,"Numerator: Number of notified TB cases (all forms) from the community level (by community health workers)\n\nIn 2016, 382 people were screened (PTB+) for TB as a result of the community contribution, which accounted for 4% of the total number expected. With GASC expected to be operational by late 2017, the community contribution could account for as much of 30% of the target as recommended by the national program.\n(CP PNILT: 8,447 in 2018, 8,870 in 2019 and 9,313 in 2020), with each year equivalent to the target set for the 2018-2020 funding, which is 2,534 in 2018; 2,661 in 2019 and 2,794 in 2020. \n\nAs part of their activities, ASCs will refer to suspected cases of TB seen in the community (coughing for more than 15 days) in DTCs, which will then carry out TB testing in collaboration with providers, and data on detected cases resulting from the ASC references will be collected; this data will be used to report on the indicator.",{"$f":"IFERROR(IF(INDEX('Coverage Indicators_1B'!Q$11:Q$100,MATCH($C13,'Coverage Indicators_1B'!$B$11:$B$100,0))=\"\",\"\",INDEX('Coverage Indicators_1B'!Q$11:Q$100,MATCH($C13,'Coverage Indicators_1B'!$B$11:$B$100,0))),\"\")","v":754},{"$f":"IFERROR(IF(INDEX('Coverage Indicators_1B'!R$11:R$100,MATCH($C13,'Coverage Indicators_1B'!$B$11:$B$100,0))=\"\",\"\",INDEX('Coverage Indicators_1B'!R$11:R$100,MATCH($C13,'Coverage Indicators_1B'!$B$11:$B$100,0))),\"\")","v":""},{"$f":"IFERROR(IF(INDEX('Coverage Indicators_1B'!S$11:S$100,MATCH($C13,'Coverage Indicators_1B'!$B$11:$B$100,0))=\"\",\"\",INDEX('Coverage Indicators_1B'!S$11:S$100,MATCH($C13,'Coverage Indicators_1B'!$B$11:$B$100,0))),\"\")","v":""},{"$f":"IFERROR(IF(INDEX('Coverage Indicators_1B'!T$11:T$100,MATCH($C13,'Coverage Indicators_1B'!$B$11:$B$100,0))=\"\",\"\",INDEX('Coverage Indicators_1B'!T$11:T$100,MATCH($C13,'Coverage Indicators_1B'!$B$11:$B$100,0))),\"\")","v":"Reports (specify)"},{"$f":"IFERROR(INDEX('Coverage Indicators_1B'!U$11:U$100,MATCH($C13,'Coverage Indicators_1B'!$B$11:$B$100,0)),\"\")","v":0.59510655090765585},{"$f":"IFERROR(IF(INDEX('Coverage Indicators_1B'!V$11:V$100,MATCH($C13,'Coverage Indicators_1B'!$B$11:$B$100,0))=\"\",\"\",INDEX('Coverage Indicators_1B'!V$11:V$100,MATCH($C13,'Coverage Indicators_1B'!$B$11:$B$100,0))),\"\")","v":"Le nombre de cas déclarés de TB toutes formes confondues par les prestataires extérieurs du PNLT (ASC) est de 754 cas.   (source communautaire) CRB .\nNous avons considéré  les données rapportées par la CRB car cet indicateur concerne les activités communautaires qui sont mises en oeuvre par la CRB à travers les ASC et les médiateurs de santé.\nSignalons que les cas référés par les ASC ne sont pas toujours mentionnés dans les registres de dépistage de la TB au niveau des CDT, du à la non standardisation des outils et la collecte parallèle des données par rapport au cas référés par les médiateurs. \nLe taux d'accomplissement est de 60%. Cette  performance moyenne s’expliquerait par :\n• Démotivation des ASC suite au  retard dans le paiement des subsides liées à leurs performances  pour les prestations de l’ancienne subvention.\nLe paiement a été effectué entre juin et juillet 2018. \n• Absence de médiateurs dans certains CDT, ce qui serait à l’origine de la non complétude des données.\nPour y remédier, le PR et le PNLT ont identifié plusieurs activités à mettre en œuvre de manière intensive notamment :\n• Séances de travail et mission de terrain conjointe (CRB, PNLT, PNUD)\n• Utilisation des outils standardisés\n• Validation des prestations des ASCs par CRB et PNLT. \n• Suivi régulier du paiement des ASCs \n• Plaidoyer pour que les CDTs puissent partager l’information des cas référés dépistés positifs aux médiateurs et vice versa.\n\nSource des données: cet indicateur a été renseigné par le rapport semestriel de la CRB  "},{"$f":"IFERROR(IF(INDEX('Coverage Indicators_1B'!X$11:X$100,MATCH($C13,'Coverage Indicators_1B'!$B$11:$B$100,0))=\"\",\"\",INDEX('Coverage Indicators_1B'!X$11:X$100,MATCH($C13,'Coverage Indicators_1B'!$B$11:$B$100,0))),\"\")","v":""},{"$f":"IFERROR(IF(INDEX('Coverage Indicators_1B'!Y$11:Y$100,MATCH($C13,'Coverage Indicators_1B'!$B$11:$B$100,0))=\"\",\"\",INDEX('Coverage Indicators_1B'!Y$11:Y$100,MATCH($C13,'Coverage Indicators_1B'!$B$11:$B$100,0))),\"\")","v":""},{"$f":"IFERROR(IF(INDEX('Coverage Indicators_1B'!Z$11:Z$100,MATCH($C13,'Coverage Indicators_1B'!$B$11:$B$100,0))=\"\",\"\",INDEX('Coverage Indicators_1B'!Z$11:Z$100,MATCH($C13,'Coverage Indicators_1B'!$B$11:$B$100,0))),\"\")","v":""},{"$f":"IFERROR(IF(INDEX('Coverage Indicators_1B'!AA$11:AA$100,MATCH($C13,'Coverage Indicators_1B'!$B$11:$B$100,0))=\"\",\"\",INDEX('Coverage Indicators_1B'!AA$11:AA$100,MATCH($C13,'Coverage Indicators_1B'!$B$11:$B$100,0))),\"\")","v":""},{"$f":"IFERROR(INDEX('Coverage Indicators_1B'!AB$11:AB$100,MATCH($C13,'Coverage Indicators_1B'!$B$11:$B$100,0)),\"\")","v":" "},{"$f":"IFERROR(IF(INDEX('Coverage Indicators_1B'!AC$11:AC$100,MATCH($C13,'Coverage Indicators_1B'!$B$11:$B$100,0))=\"\",\"\",INDEX('Coverage Indicators_1B'!AC$11:AC$100,MATCH($C13,'Coverage Indicators_1B'!$B$11:$B$100,0))),\"\")","v":""},{"$f":"IFERROR(IF(INDEX('Coverage Indicators_1B'!AD$11:AD$100,MATCH($C13,'Coverage Indicators_1B'!$B$11:$B$100,0))=\"\",\"\",INDEX('Coverage Indicators_1B'!AD$11:AD$100,MATCH($C13,'Coverage Indicators_1B'!$B$11:$B$100,0))),\"\")","v":""},{"$f":"IFERROR(INDEX('Coverage Indicators_1B'!AE$11:AE$100,MATCH($C13,'Coverage Indicators_1B'!$B$11:$B$100,0)),\"\")","v":"No Results Reported"},null,null,null,{"$f":"IFERROR(INDEX('Coverage Indicators_1B'!AI$11:AI$100,MATCH($C13,'Coverage Indicators_1B'!$B$11:$B$100,0)),\"\")","v":" "},{"$f":"IFERROR(INDEX('Coverage Indicators_1B'!AJ$11:AJ$100,MATCH($C13,'Coverage Indicators_1B'!$B$11:$B$100,0)),\"\")","v":0},{"$f":"IFERROR(INDEX('Coverage Indicators_1B'!AK$11:AK$100,MATCH($C13,'Coverage Indicators_1B'!$B$11:$B$100,0)),\"\")","v":"No Results Reported"},6,"No","Burundi",null,null,null,null,null,"Atención y prevención de tuberculosis","Prise en charge et prévention de la tuberculose","Rapport annuel du PNILT"]
["a173600000BjggYAAR",7,"Coverage7","TB/HIV","TB/HIV-5: Pourcentage de nouveaux patients TB et de rechute enregistrés dont le statut VIH est documenté","TB/HIV-5: Percentage of registered new and relapse TB patients with documented HIV status",null,"TB/HIV-5: Pourcentage de nouveaux patients TB et de rechute enregistrés dont le statut VIH est documenté","TB/HIV-5: Porcentaje de casos  de TB nuevos y recaídas notificados con estatus de VIH documentado",null,"National","N-Non-cumulative",false,7345,7662,95.9,"2016","PNILT Annual Report",4054.56,4223.5,96,"Numerator: The number of TB patients recorded during the reporting period whose HIV test is recorded in the TB registry at the time of TB diagnosis.\nDenominator: The total number of TB patients recorded during the reporting period.\n\nThe preferred approach is for counselling and testing of HIV to be initiated by the provider.  This ensures that every TB patient is aware of the need to be tested for HIV.\nHIV testing rates among TB patients are already high (96 percent in 2016).\nThe PNILT intends to maintain this level for the period 2018 to 2020. Consequently, 8,109 of 8,447, 8,515 of 8,870 and 8,941 of 9,313 patients will be tested for HIV in each year of the period from 2018 to 2020.\n\nThe service package aimed at achieving the outcome includes: (i) screening initiated by the provider; (ii) a joint approach to TB and HIV control; (iii) capacity building of coordination and cooperation among providers; (iv) the use of systematic digital radiography in addition to GeneXpert for new PLHIV; (v) the use of systematic digital radiography in addition to GeneXpert for PLHIV on ART for presumed TB excluding microscopy; (vii) the use of a TB Lamp (TB screening from urine) as a pilot intervention in HIV sites in Bujumbura for PLHIV with TB and a CD4 count of <100.",{"$f":"IFERROR(IF(INDEX('Coverage Indicators_1B'!Q$11:Q$100,MATCH($C14,'Coverage Indicators_1B'!$B$11:$B$100,0))=\"\",\"\",INDEX('Coverage Indicators_1B'!Q$11:Q$100,MATCH($C14,'Coverage Indicators_1B'!$B$11:$B$100,0))),\"\")","v":3727},{"$f":"IFERROR(IF(INDEX('Coverage Indicators_1B'!R$11:R$100,MATCH($C14,'Coverage Indicators_1B'!$B$11:$B$100,0))=\"\",\"\",INDEX('Coverage Indicators_1B'!R$11:R$100,MATCH($C14,'Coverage Indicators_1B'!$B$11:$B$100,0))),\"\")","v":3827},{"$f":"IFERROR(IF(INDEX('Coverage Indicators_1B'!S$11:S$100,MATCH($C14,'Coverage Indicators_1B'!$B$11:$B$100,0))=\"\",\"\",INDEX('Coverage Indicators_1B'!S$11:S$100,MATCH($C14,'Coverage Indicators_1B'!$B$11:$B$100,0))),\"\")","v":97.386987196237257},{"$f":"IFERROR(IF(INDEX('Coverage Indicators_1B'!T$11:T$100,MATCH($C14,'Coverage Indicators_1B'!$B$11:$B$100,0))=\"\",\"\",INDEX('Coverage Indicators_1B'!T$11:T$100,MATCH($C14,'Coverage Indicators_1B'!$B$11:$B$100,0))),\"\")","v":"R&R TB system, quarterly reports"},{"$f":"IFERROR(INDEX('Coverage Indicators_1B'!U$11:U$100,MATCH($C14,'Coverage Indicators_1B'!$B$11:$B$100,0)),\"\")","v":1.0144477832941381},{"$f":"IFERROR(IF(INDEX('Coverage Indicators_1B'!V$11:V$100,MATCH($C14,'Coverage Indicators_1B'!$B$11:$B$100,0))=\"\",\"\",INDEX('Coverage Indicators_1B'!V$11:V$100,MATCH($C14,'Coverage Indicators_1B'!$B$11:$B$100,0))),\"\")","v":"Le taux de réalisation est de 97.38 % pour la période évaluée (1er semestre 2018). Cette performance s'explique par: \n(i) les activités de  renforcement des capacités des prestataires de soins dans les CDT en matière de Counseling et dépistage du VIH \n(ii) la disponibilité des tests VIH au cours de la période évaluée\n(iii) la supervision effectuée par le niveau central du PNILT\n\nSource des données: cet indicateur a été renseigné par le rapport semestriel de la CRB  après consultation des registres médiateurs de santé.\n"},{"$f":"IFERROR(IF(INDEX('Coverage Indicators_1B'!X$11:X$100,MATCH($C14,'Coverage Indicators_1B'!$B$11:$B$100,0))=\"\",\"\",INDEX('Coverage Indicators_1B'!X$11:X$100,MATCH($C14,'Coverage Indicators_1B'!$B$11:$B$100,0))),\"\")","v":""},{"$f":"IFERROR(IF(INDEX('Coverage Indicators_1B'!Y$11:Y$100,MATCH($C14,'Coverage Indicators_1B'!$B$11:$B$100,0))=\"\",\"\",INDEX('Coverage Indicators_1B'!Y$11:Y$100,MATCH($C14,'Coverage Indicators_1B'!$B$11:$B$100,0))),\"\")","v":""},{"$f":"IFERROR(IF(INDEX('Coverage Indicators_1B'!Z$11:Z$100,MATCH($C14,'Coverage Indicators_1B'!$B$11:$B$100,0))=\"\",\"\",INDEX('Coverage Indicators_1B'!Z$11:Z$100,MATCH($C14,'Coverage Indicators_1B'!$B$11:$B$100,0))),\"\")","v":""},{"$f":"IFERROR(IF(INDEX('Coverage Indicators_1B'!AA$11:AA$100,MATCH($C14,'Coverage Indicators_1B'!$B$11:$B$100,0))=\"\",\"\",INDEX('Coverage Indicators_1B'!AA$11:AA$100,MATCH($C14,'Coverage Indicators_1B'!$B$11:$B$100,0))),\"\")","v":""},{"$f":"IFERROR(INDEX('Coverage Indicators_1B'!AB$11:AB$100,MATCH($C14,'Coverage Indicators_1B'!$B$11:$B$100,0)),\"\")","v":" "},{"$f":"IFERROR(IF(INDEX('Coverage Indicators_1B'!AC$11:AC$100,MATCH($C14,'Coverage Indicators_1B'!$B$11:$B$100,0))=\"\",\"\",INDEX('Coverage Indicators_1B'!AC$11:AC$100,MATCH($C14,'Coverage Indicators_1B'!$B$11:$B$100,0))),\"\")","v":""},{"$f":"IFERROR(IF(INDEX('Coverage Indicators_1B'!AD$11:AD$100,MATCH($C14,'Coverage Indicators_1B'!$B$11:$B$100,0))=\"\",\"\",INDEX('Coverage Indicators_1B'!AD$11:AD$100,MATCH($C14,'Coverage Indicators_1B'!$B$11:$B$100,0))),\"\")","v":""},{"$f":"IFERROR(INDEX('Coverage Indicators_1B'!AE$11:AE$100,MATCH($C14,'Coverage Indicators_1B'!$B$11:$B$100,0)),\"\")","v":"No Results Reported"},null,null,null,{"$f":"IFERROR(INDEX('Coverage Indicators_1B'!AI$11:AI$100,MATCH($C14,'Coverage Indicators_1B'!$B$11:$B$100,0)),\"\")","v":" "},{"$f":"IFERROR(INDEX('Coverage Indicators_1B'!AJ$11:AJ$100,MATCH($C14,'Coverage Indicators_1B'!$B$11:$B$100,0)),\"\")","v":0},{"$f":"IFERROR(INDEX('Coverage Indicators_1B'!AK$11:AK$100,MATCH($C14,'Coverage Indicators_1B'!$B$11:$B$100,0)),\"\")","v":"No Results Reported"},7,"No","Burundi",null,null,null,null,null,"TB/VIH","Tuberculose/VIH","Rapport annuel du PNILT"]
["a173600000BjggZAAR",8,"Coverage8","TB/HIV","TB/HIV-6(M): Pourcentage de nouveaux patients  tuberculeux et de rechutes, séropositifs au VIH, sous traitement antirétroviral au cours du traitement de la tuberculose","TB/HIV-6(M): Percentage of HIV-positive new and relapse TB patients on ART during TB treatment",null,"TB/HIV-6(M): Pourcentage de nouveaux patients  tuberculeux et de rechutes, séropositifs au VIH, sous traitement antirétroviral au cours du traitement de la tuberculose","TB/HIV-6(M): Porcentaje de casos de TB nuevos y recaídas VIH+ en TARV durante el tratamiento para la tuberculosis",null,"National","N-Non-cumulative",false,795,877,90.6,"2016","PNILT Annual Report",661.92,689.5,96,"The numerator is the number of TB patients who are HIV+, recording during the information communication period, and who are receiving ART (who have commenced or who are continuing previously initiated ART). \nThe denominator is the total number of TB and HIV+ patients recording during the reporting period. \n\nThe estimated incidence of HIV in TB patients in Burundi is 17% (WHO 2016 Report). \nFor the period 2018-2020, the assumption of 17% HIV+ patients in HIV-tested TB patients (of the 96% of AFTB tested) has been maintained. Thus, the number of HIV-positive TB patients is: 1,379 in 2018, 1,448 in 2019 and 1,520 in 2020.\n\nWith the application of task delegation,  awareness raising during data validation, joint supervision and the constant availability of ART in all TTCs, ART coverage in TB/HIV patients should be 100% but, as the technical platform is not yet operational in all TTCs, PNILT intends to increase this ART coverage from 91% in 2016 to 96% for the period 2018 to 2020.\n\nThe number of patients coinfected with TB/HIV and on ART will thus be 1,323 of 1,379 in 2018, 1,390 of 1,448 in 2019 and 1,459 of 1,520 in 2020. \n\nThe service package will comprise (i) capacity building in coordination and cooperation among national programs and communicators in relation to TB/HIV management; (ii) HIV screening, treatment and care among TB patients; (iii) active searching for, diagnosis and treatment of TB among PLHIV; (iv) TB prevention (IPT and TB infection control). \n\nThe Global Fund is contributing more than 95 percent. The Government's share is estimated at 5 percent (staff, infrastructure, TTC/TC running).",{"$f":"IFERROR(IF(INDEX('Coverage Indicators_1B'!Q$11:Q$100,MATCH($C15,'Coverage Indicators_1B'!$B$11:$B$100,0))=\"\",\"\",INDEX('Coverage Indicators_1B'!Q$11:Q$100,MATCH($C15,'Coverage Indicators_1B'!$B$11:$B$100,0))),\"\")","v":406},{"$f":"IFERROR(IF(INDEX('Coverage Indicators_1B'!R$11:R$100,MATCH($C15,'Coverage Indicators_1B'!$B$11:$B$100,0))=\"\",\"\",INDEX('Coverage Indicators_1B'!R$11:R$100,MATCH($C15,'Coverage Indicators_1B'!$B$11:$B$100,0))),\"\")","v":410},{"$f":"IFERROR(IF(INDEX('Coverage Indicators_1B'!S$11:S$100,MATCH($C15,'Coverage Indicators_1B'!$B$11:$B$100,0))=\"\",\"\",INDEX('Coverage Indicators_1B'!S$11:S$100,MATCH($C15,'Coverage Indicators_1B'!$B$11:$B$100,0))),\"\")","v":99.024390243902445},{"$f":"IFERROR(IF(INDEX('Coverage Indicators_1B'!T$11:T$100,MATCH($C15,'Coverage Indicators_1B'!$B$11:$B$100,0))=\"\",\"\",INDEX('Coverage Indicators_1B'!T$11:T$100,MATCH($C15,'Coverage Indicators_1B'!$B$11:$B$100,0))),\"\")","v":"R&R TB system, quarterly reports"},{"$f":"IFERROR(INDEX('Coverage Indicators_1B'!U$11:U$100,MATCH($C15,'Coverage Indicators_1B'!$B$11:$B$100,0)),\"\")","v":1.0315040650406504},{"$f":"IFERROR(IF(INDEX('Coverage Indicators_1B'!V$11:V$100,MATCH($C15,'Coverage Indicators_1B'!$B$11:$B$100,0))=\"\",\"\",INDEX('Coverage Indicators_1B'!V$11:V$100,MATCH($C15,'Coverage Indicators_1B'!$B$11:$B$100,0))),\"\")","v":"Pour la période évaluée (1er semestre 2018), le taux de réalisation est de 99.024% . C'est à dire un  taux d'accomplissement de 103%. \nCette performance s'explique par:\n(i) le renforcement des capacités des prestataires de soins dans les CDT en matière de Counselling et dépistage du VIH\n(ii) la disponibilité des antirétroviraux au cours de la période évaluée\n(iii) la supervision effectuée par le niveau central du PNILT\n\nSource des données: cet indicateur a été renseigné par le rapport semestriel du PNILT après consultations des registres patients lors des ateliers de validation trimestrielle.\n\n\n"},{"$f":"IFERROR(IF(INDEX('Coverage Indicators_1B'!X$11:X$100,MATCH($C15,'Coverage Indicators_1B'!$B$11:$B$100,0))=\"\",\"\",INDEX('Coverage Indicators_1B'!X$11:X$100,MATCH($C15,'Coverage Indicators_1B'!$B$11:$B$100,0))),\"\")","v":""},{"$f":"IFERROR(IF(INDEX('Coverage Indicators_1B'!Y$11:Y$100,MATCH($C15,'Coverage Indicators_1B'!$B$11:$B$100,0))=\"\",\"\",INDEX('Coverage Indicators_1B'!Y$11:Y$100,MATCH($C15,'Coverage Indicators_1B'!$B$11:$B$100,0))),\"\")","v":""},{"$f":"IFERROR(IF(INDEX('Coverage Indicators_1B'!Z$11:Z$100,MATCH($C15,'Coverage Indicators_1B'!$B$11:$B$100,0))=\"\",\"\",INDEX('Coverage Indicators_1B'!Z$11:Z$100,MATCH($C15,'Coverage Indicators_1B'!$B$11:$B$100,0))),\"\")","v":""},{"$f":"IFERROR(IF(INDEX('Coverage Indicators_1B'!AA$11:AA$100,MATCH($C15,'Coverage Indicators_1B'!$B$11:$B$100,0))=\"\",\"\",INDEX('Coverage Indicators_1B'!AA$11:AA$100,MATCH($C15,'Coverage Indicators_1B'!$B$11:$B$100,0))),\"\")","v":""},{"$f":"IFERROR(INDEX('Coverage Indicators_1B'!AB$11:AB$100,MATCH($C15,'Coverage Indicators_1B'!$B$11:$B$100,0)),\"\")","v":" "},{"$f":"IFERROR(IF(INDEX('Coverage Indicators_1B'!AC$11:AC$100,MATCH($C15,'Coverage Indicators_1B'!$B$11:$B$100,0))=\"\",\"\",INDEX('Coverage Indicators_1B'!AC$11:AC$100,MATCH($C15,'Coverage Indicators_1B'!$B$11:$B$100,0))),\"\")","v":""},{"$f":"IFERROR(IF(INDEX('Coverage Indicators_1B'!AD$11:AD$100,MATCH($C15,'Coverage Indicators_1B'!$B$11:$B$100,0))=\"\",\"\",INDEX('Coverage Indicators_1B'!AD$11:AD$100,MATCH($C15,'Coverage Indicators_1B'!$B$11:$B$100,0))),\"\")","v":""},{"$f":"IFERROR(INDEX('Coverage Indicators_1B'!AE$11:AE$100,MATCH($C15,'Coverage Indicators_1B'!$B$11:$B$100,0)),\"\")","v":"No Results Reported"},null,null,null,{"$f":"IFERROR(INDEX('Coverage Indicators_1B'!AI$11:AI$100,MATCH($C15,'Coverage Indicators_1B'!$B$11:$B$100,0)),\"\")","v":" "},{"$f":"IFERROR(INDEX('Coverage Indicators_1B'!AJ$11:AJ$100,MATCH($C15,'Coverage Indicators_1B'!$B$11:$B$100,0)),\"\")","v":0},{"$f":"IFERROR(INDEX('Coverage Indicators_1B'!AK$11:AK$100,MATCH($C15,'Coverage Indicators_1B'!$B$11:$B$100,0)),\"\")","v":"No Results Reported"},8,"No","Burundi",null,null,null,null,null,"TB/VIH","Tuberculose/VIH","Rapport annuel du PNILT"]
["a173600000BjggaAAB",9,"Coverage9","MDR-TB","MDR TB-2(M): Nombre de cas de tuberculose, résistante à la rifampicine et/ou tuberculose multirésistante confirmés","MDR TB-2(M): Number of TB cases with RR-TB and/or MDR-TB notified",null,"MDR TB-2(M): Nombre de cas de tuberculose, résistante à la rifampicine et/ou tuberculose multirésistante confirmés","MDR TB-2(M): Número de casos TB-RR y/o TB-MDR notificados",null,"National","N-Non-cumulative",false,80,null,null,"2016","PNILT Annual Report",73.5,null,null,"Numerator: Number of notified cases of bacteriologically confirmed TB (rifampicin-resistant TB and/or multidrug-resistant TB) \n\nTargets are cumulative and represent 70 percent of estimated MDR-TB cases in Burundi: 147 in 2018, 157 in 2019 and 165 in 2020 (out of an estimated total of 210, 224 and 235).\n\nThese estimates are based on the 2015 WHO Report published in 2016: of new cases of TB, 3.2 percent were estimated to be MDR-TB, and 14 percent of retreatment cases involved MDR-TB.\n\nBased on the WHO estimates for Burundi, an annual increase of 70 percent was applied.\n\nThe suspected MDR-TB cases undergo GeneXpert, culture and sensitivity tests.\n\nThe main activities financed by the Global Fund to meet targets include the detection of MDR-TB cases (procurement of GeneXpert devices, inputs and other related supplies), medical care (procurement of second-line therapies, in addition to the government allocation, and support for managing side effects), and psychosocial and nutritional support.\nThe key challenge is the low reporting rate of MDR-TB cases.\n\nStrategies to overcome these challenges include (i) the use of GeneXpert for retreatment cases, patients testing positive in the third, fifth, sixth and/or eighth month of treatment, MDR-TB contact cases, patients with TB/HIV coinfection, PLHIV, children, and care providers in contact with MDR-TB cases; (ii) culture and sensitivity testing only if Xpert Rifampicin + and (iii) treatment of all MDR-TB cases.",{"$f":"IFERROR(IF(INDEX('Coverage Indicators_1B'!Q$11:Q$100,MATCH($C16,'Coverage Indicators_1B'!$B$11:$B$100,0))=\"\",\"\",INDEX('Coverage Indicators_1B'!Q$11:Q$100,MATCH($C16,'Coverage Indicators_1B'!$B$11:$B$100,0))),\"\")","v":20},{"$f":"IFERROR(IF(INDEX('Coverage Indicators_1B'!R$11:R$100,MATCH($C16,'Coverage Indicators_1B'!$B$11:$B$100,0))=\"\",\"\",INDEX('Coverage Indicators_1B'!R$11:R$100,MATCH($C16,'Coverage Indicators_1B'!$B$11:$B$100,0))),\"\")","v":""},{"$f":"IFERROR(IF(INDEX('Coverage Indicators_1B'!S$11:S$100,MATCH($C16,'Coverage Indicators_1B'!$B$11:$B$100,0))=\"\",\"\",INDEX('Coverage Indicators_1B'!S$11:S$100,MATCH($C16,'Coverage Indicators_1B'!$B$11:$B$100,0))),\"\")","v":""},{"$f":"IFERROR(IF(INDEX('Coverage Indicators_1B'!T$11:T$100,MATCH($C16,'Coverage Indicators_1B'!$B$11:$B$100,0))=\"\",\"\",INDEX('Coverage Indicators_1B'!T$11:T$100,MATCH($C16,'Coverage Indicators_1B'!$B$11:$B$100,0))),\"\")","v":"R&R TB system, quarterly reports"},{"$f":"IFERROR(INDEX('Coverage Indicators_1B'!U$11:U$100,MATCH($C16,'Coverage Indicators_1B'!$B$11:$B$100,0)),\"\")","v":0.27210884353741499},{"$f":"IFERROR(IF(INDEX('Coverage Indicators_1B'!V$11:V$100,MATCH($C16,'Coverage Indicators_1B'!$B$11:$B$100,0))=\"\",\"\",INDEX('Coverage Indicators_1B'!V$11:V$100,MATCH($C16,'Coverage Indicators_1B'!$B$11:$B$100,0))),\"\")","v":"Le taux d'accomplissement est  de 27%. Au cours de la période seulement 20 cas de TBMDR ont été enregistrés ce qui conduit à l'interrogation suivante: La baisse des TB-MR est elle reelle ou le systeme de suivi des rechutes et des abandons au traitement est moins performant? \nLes faits suivants sont en faveur de la réduction du nombre de cas TB/MR :\n(i) Une très bonne performance en matière de succès thérapeutique > 90% pour les cas de tuberculose sensible et tuberculose multi résistance. \n(ii) La mise en route précoce d’un traitement antituberculeux chez les cas contacts diagnostiqués positifs permet de couper la chaine de transmission. \n(iii) La réduction sensible des cas de perdus de vue (environ 1%)\n(iv) Bonne observance thérapeutique suite a l’octroi des frais de déplacement pour l’examen de suivi biologique aux malades MDR.\nPour les raisons ci-dessus, les cas TB/MR ne devraient pas être nombreux. \nUne discussion entre le FM, le RP et le PNILT devrait être envisagée pour la révision des  cibles.    \nParallèlement, le PNILT envisage :\n- Poursuivre la recherche des cas contacts TB et TB/MR, \n- Renforcer la recherche de la résistance chez tous les cas en indication (retraitement, contacts TB/MR, etc),\n- Débuter l’étude sur la résistance aux médicaments qui pourrait aider dans la fixation des cibles réalistes et orienter les stratégies de prévention et de lutte contre la TB en général et la TB/MR en particulier,\n- Renforcer le Traitement Directement Observé (TDO),\n- Poursuivre l’utilisation de la flotte de communication en vue de réduire les perdus de vue.\n- Installer et rendre opérationnelle les 7 autres appareils GeneXpert \n- Former les prestataires sur l’utilisation des appareils GeneXpert\nSource des données: cet indicateur a été renseigné par le rapport semestriel du PNILT après consultations des registres patients TB/MDR du centre de prise en charge des cas de KIBUMBU."},{"$f":"IFERROR(IF(INDEX('Coverage Indicators_1B'!X$11:X$100,MATCH($C16,'Coverage Indicators_1B'!$B$11:$B$100,0))=\"\",\"\",INDEX('Coverage Indicators_1B'!X$11:X$100,MATCH($C16,'Coverage Indicators_1B'!$B$11:$B$100,0))),\"\")","v":""},{"$f":"IFERROR(IF(INDEX('Coverage Indicators_1B'!Y$11:Y$100,MATCH($C16,'Coverage Indicators_1B'!$B$11:$B$100,0))=\"\",\"\",INDEX('Coverage Indicators_1B'!Y$11:Y$100,MATCH($C16,'Coverage Indicators_1B'!$B$11:$B$100,0))),\"\")","v":""},{"$f":"IFERROR(IF(INDEX('Coverage Indicators_1B'!Z$11:Z$100,MATCH($C16,'Coverage Indicators_1B'!$B$11:$B$100,0))=\"\",\"\",INDEX('Coverage Indicators_1B'!Z$11:Z$100,MATCH($C16,'Coverage Indicators_1B'!$B$11:$B$100,0))),\"\")","v":""},{"$f":"IFERROR(IF(INDEX('Coverage Indicators_1B'!AA$11:AA$100,MATCH($C16,'Coverage Indicators_1B'!$B$11:$B$100,0))=\"\",\"\",INDEX('Coverage Indicators_1B'!AA$11:AA$100,MATCH($C16,'Coverage Indicators_1B'!$B$11:$B$100,0))),\"\")","v":""},{"$f":"IFERROR(INDEX('Coverage Indicators_1B'!AB$11:AB$100,MATCH($C16,'Coverage Indicators_1B'!$B$11:$B$100,0)),\"\")","v":" "},{"$f":"IFERROR(IF(INDEX('Coverage Indicators_1B'!AC$11:AC$100,MATCH($C16,'Coverage Indicators_1B'!$B$11:$B$100,0))=\"\",\"\",INDEX('Coverage Indicators_1B'!AC$11:AC$100,MATCH($C16,'Coverage Indicators_1B'!$B$11:$B$100,0))),\"\")","v":""},{"$f":"IFERROR(IF(INDEX('Coverage Indicators_1B'!AD$11:AD$100,MATCH($C16,'Coverage Indicators_1B'!$B$11:$B$100,0))=\"\",\"\",INDEX('Coverage Indicators_1B'!AD$11:AD$100,MATCH($C16,'Coverage Indicators_1B'!$B$11:$B$100,0))),\"\")","v":""},{"$f":"IFERROR(INDEX('Coverage Indicators_1B'!AE$11:AE$100,MATCH($C16,'Coverage Indicators_1B'!$B$11:$B$100,0)),\"\")","v":"No Results Reported"},null,null,null,{"$f":"IFERROR(INDEX('Coverage Indicators_1B'!AI$11:AI$100,MATCH($C16,'Coverage Indicators_1B'!$B$11:$B$100,0)),\"\")","v":" "},{"$f":"IFERROR(INDEX('Coverage Indicators_1B'!AJ$11:AJ$100,MATCH($C16,'Coverage Indicators_1B'!$B$11:$B$100,0)),\"\")","v":0},{"$f":"IFERROR(INDEX('Coverage Indicators_1B'!AK$11:AK$100,MATCH($C16,'Coverage Indicators_1B'!$B$11:$B$100,0)),\"\")","v":"No Results Reported"},9,"No","Burundi",null,null,null,null,null,"Paquete para TB-MR","Tuberculose multirésistante","Rapport annuel du PNILT"]
["a173600000BjggbAAB",10,"Coverage10","MDR-TB","MDR TB-3(M): Nombre de cas de tuberculose résistante à la rifampicine et/ou tuberculose multirésistante qui ont commencé un traitement de deuxième intention","MDR TB-3(M): Number of cases with RR-TB and/or MDR-TB that began second-line treatment",null,"MDR TB-3(M): Nombre de cas de tuberculose résistante à la rifampicine et/ou tuberculose multirésistante qui ont commencé un traitement de deuxième intention","MDR TB-3(M): Número de casos TB-RR y/o TB-MDR que iniciaron tratamiento con drogas de segunda línea",null,"National","N-Non-cumulative",false,80,null,null,"2016","PNILT Annual Report",73.5,null,null,"Numerator: The number of recorded drug-resistant TB cases (RR-TB and/or MDR-TB) that began a treatment regime for multidrug-resistant tuberculosis during the reporting period\n\nAll MDR-TB cases are generally placed on treatment.\nThe  source of data is the MDR-TB Registry.\nAll MDR-TB patients on  treatment benefit from comprehensive care (medical, psychosocial and nutritional).\nMedical follow-up of MDR-TB patients is carried out in accordance with national guidelines on MDR-TB.\n\nThe 9-month WHO-approved short course is operational in Burundi.\n\nThe baseline is 80 MDR-TB cases receiving nutritional support (100%) by 2016. Dietary support consists of meeting the the nutritional needs of MDR-TB patients in hospital until a negative sputum test is obtained, which is usually between 4 and 5 months. After discharge, MDR-TB patients are followed up as outpatients for the 9-month treatment period.\n\nThe target is to provide this nutritional support to 147 patients in 2018, 157 in 2019 and 165 in 2020.\n\nThe targets will be adjusted according to the number of cases detected and placed on treatment.\n\nThe cost of MDR-TB treatment drugs is covered 100% by the GF (as per programmatic gap tables).",{"$f":"IFERROR(IF(INDEX('Coverage Indicators_1B'!Q$11:Q$100,MATCH($C17,'Coverage Indicators_1B'!$B$11:$B$100,0))=\"\",\"\",INDEX('Coverage Indicators_1B'!Q$11:Q$100,MATCH($C17,'Coverage Indicators_1B'!$B$11:$B$100,0))),\"\")","v":20},{"$f":"IFERROR(IF(INDEX('Coverage Indicators_1B'!R$11:R$100,MATCH($C17,'Coverage Indicators_1B'!$B$11:$B$100,0))=\"\",\"\",INDEX('Coverage Indicators_1B'!R$11:R$100,MATCH($C17,'Coverage Indicators_1B'!$B$11:$B$100,0))),\"\")","v":""},{"$f":"IFERROR(IF(INDEX('Coverage Indicators_1B'!S$11:S$100,MATCH($C17,'Coverage Indicators_1B'!$B$11:$B$100,0))=\"\",\"\",INDEX('Coverage Indicators_1B'!S$11:S$100,MATCH($C17,'Coverage Indicators_1B'!$B$11:$B$100,0))),\"\")","v":""},{"$f":"IFERROR(IF(INDEX('Coverage Indicators_1B'!T$11:T$100,MATCH($C17,'Coverage Indicators_1B'!$B$11:$B$100,0))=\"\",\"\",INDEX('Coverage Indicators_1B'!T$11:T$100,MATCH($C17,'Coverage Indicators_1B'!$B$11:$B$100,0))),\"\")","v":"R&R TB system, quarterly reports"},{"$f":"IFERROR(INDEX('Coverage Indicators_1B'!U$11:U$100,MATCH($C17,'Coverage Indicators_1B'!$B$11:$B$100,0)),\"\")","v":0.27210884353741499},{"$f":"IFERROR(IF(INDEX('Coverage Indicators_1B'!V$11:V$100,MATCH($C17,'Coverage Indicators_1B'!$B$11:$B$100,0))=\"\",\"\",INDEX('Coverage Indicators_1B'!V$11:V$100,MATCH($C17,'Coverage Indicators_1B'!$B$11:$B$100,0))),\"\")","v":"Au cours de la période évaluée (1er semestre 2018), 100%  des  cas TB/MR diagnostiqués ont été mis sous traitement. Ceci a été possible grâce à la disponibilité des médicaments de 2ème ligne achetés par le Fonds Mondial sur la subvention et l’engagement des prestataires à mettre systématiquement sous traitement tout cas de multirésistance. \nComme indiqué au niveau de l'indicateur précedent (MDR-TB-2), le RP et le PNILT suggère une révision des cibles. Ici il s'agira d'exprimer le % de TB-MR mis en traitement de 2eme ligne.\n\nSource des données: cet indicateur a été renseigné par le rapport semestriel du PNILT après consultations des registres patients TB/MDR du centre de prise en charge des cas de KIBUMBU."},{"$f":"IFERROR(IF(INDEX('Coverage Indicators_1B'!X$11:X$100,MATCH($C17,'Coverage Indicators_1B'!$B$11:$B$100,0))=\"\",\"\",INDEX('Coverage Indicators_1B'!X$11:X$100,MATCH($C17,'Coverage Indicators_1B'!$B$11:$B$100,0))),\"\")","v":""},{"$f":"IFERROR(IF(INDEX('Coverage Indicators_1B'!Y$11:Y$100,MATCH($C17,'Coverage Indicators_1B'!$B$11:$B$100,0))=\"\",\"\",INDEX('Coverage Indicators_1B'!Y$11:Y$100,MATCH($C17,'Coverage Indicators_1B'!$B$11:$B$100,0))),\"\")","v":""},{"$f":"IFERROR(IF(INDEX('Coverage Indicators_1B'!Z$11:Z$100,MATCH($C17,'Coverage Indicators_1B'!$B$11:$B$100,0))=\"\",\"\",INDEX('Coverage Indicators_1B'!Z$11:Z$100,MATCH($C17,'Coverage Indicators_1B'!$B$11:$B$100,0))),\"\")","v":""},{"$f":"IFERROR(IF(INDEX('Coverage Indicators_1B'!AA$11:AA$100,MATCH($C17,'Coverage Indicators_1B'!$B$11:$B$100,0))=\"\",\"\",INDEX('Coverage Indicators_1B'!AA$11:AA$100,MATCH($C17,'Coverage Indicators_1B'!$B$11:$B$100,0))),\"\")","v":""},{"$f":"IFERROR(INDEX('Coverage Indicators_1B'!AB$11:AB$100,MATCH($C17,'Coverage Indicators_1B'!$B$11:$B$100,0)),\"\")","v":" "},{"$f":"IFERROR(IF(INDEX('Coverage Indicators_1B'!AC$11:AC$100,MATCH($C17,'Coverage Indicators_1B'!$B$11:$B$100,0))=\"\",\"\",INDEX('Coverage Indicators_1B'!AC$11:AC$100,MATCH($C17,'Coverage Indicators_1B'!$B$11:$B$100,0))),\"\")","v":""},{"$f":"IFERROR(IF(INDEX('Coverage Indicators_1B'!AD$11:AD$100,MATCH($C17,'Coverage Indicators_1B'!$B$11:$B$100,0))=\"\",\"\",INDEX('Coverage Indicators_1B'!AD$11:AD$100,MATCH($C17,'Coverage Indicators_1B'!$B$11:$B$100,0))),\"\")","v":""},{"$f":"IFERROR(INDEX('Coverage Indicators_1B'!AE$11:AE$100,MATCH($C17,'Coverage Indicators_1B'!$B$11:$B$100,0)),\"\")","v":"No Results Reported"},null,null,null,{"$f":"IFERROR(INDEX('Coverage Indicators_1B'!AI$11:AI$100,MATCH($C17,'Coverage Indicators_1B'!$B$11:$B$100,0)),\"\")","v":" "},{"$f":"IFERROR(INDEX('Coverage Indicators_1B'!AJ$11:AJ$100,MATCH($C17,'Coverage Indicators_1B'!$B$11:$B$100,0)),\"\")","v":0},{"$f":"IFERROR(INDEX('Coverage Indicators_1B'!AK$11:AK$100,MATCH($C17,'Coverage Indicators_1B'!$B$11:$B$100,0)),\"\")","v":"No Results Reported"},10,"No","Burundi",null,null,null,null,null,"Paquete para TB-MR","Tuberculose multirésistante","Rapport annuel du PNILT"]
["a173600000BjggcAAB",11,"Coverage11","RSSH: Health management information systems and M&E","M&E-1: Pourcentage d’entités déclarantes présentant leurs rapports dans les délais selon les directives nationales","M&E-1: Percentage of HMIS or other routine reporting units submitting timely reports according to national guidelines",null,"M&E-1: Pourcentage d’entités déclarantes présentant leurs rapports dans les délais selon les directives nationales","M&E-1: Porcentaje de unidades notificadoras de sistemas rutinarios de información en salud que presentan informes oportunamente conforme a las directrices nacionales",null,"National","N-Non-cumulative",false,170,170,100,"2016","PNILT Annual Report",170,170,100,"Numerator: The number of TTCs reporting in the timeframe set out by the national guidelines\nDenominator: All 170 TTCs.\n\nThe number of reporting TTCs is 170. According to national guidelines, TCs report to TTCs in their catchment area. TTCs alone compile the data to be transmitted to the next tier of the healthcare system.\n\nIn the first half of 2017, of 2,320 PTB+ reported, 219 new patients were referred by 487 TCs, or 9% of the total number referred.\n\nThe completeness of the TTC reports will also be noted during the PU/DRs.\n\nThe number of health facilities (non-TTCs) reporting to TTCs (of the total number of health facilities electing to carry out testing and treatment as part of the decentralization of services) will be reported in the comments.",{"$f":"IFERROR(IF(INDEX('Coverage Indicators_1B'!Q$11:Q$100,MATCH($C18,'Coverage Indicators_1B'!$B$11:$B$100,0))=\"\",\"\",INDEX('Coverage Indicators_1B'!Q$11:Q$100,MATCH($C18,'Coverage Indicators_1B'!$B$11:$B$100,0))),\"\")","v":170},{"$f":"IFERROR(IF(INDEX('Coverage Indicators_1B'!R$11:R$100,MATCH($C18,'Coverage Indicators_1B'!$B$11:$B$100,0))=\"\",\"\",INDEX('Coverage Indicators_1B'!R$11:R$100,MATCH($C18,'Coverage Indicators_1B'!$B$11:$B$100,0))),\"\")","v":170},{"$f":"IFERROR(IF(INDEX('Coverage Indicators_1B'!S$11:S$100,MATCH($C18,'Coverage Indicators_1B'!$B$11:$B$100,0))=\"\",\"\",INDEX('Coverage Indicators_1B'!S$11:S$100,MATCH($C18,'Coverage Indicators_1B'!$B$11:$B$100,0))),\"\")","v":100},{"$f":"IFERROR(IF(INDEX('Coverage Indicators_1B'!T$11:T$100,MATCH($C18,'Coverage Indicators_1B'!$B$11:$B$100,0))=\"\",\"\",INDEX('Coverage Indicators_1B'!T$11:T$100,MATCH($C18,'Coverage Indicators_1B'!$B$11:$B$100,0))),\"\")","v":"R&R TB system, quarterly reports"},{"$f":"IFERROR(INDEX('Coverage Indicators_1B'!U$11:U$100,MATCH($C18,'Coverage Indicators_1B'!$B$11:$B$100,0)),\"\")","v":1},{"$f":"IFERROR(IF(INDEX('Coverage Indicators_1B'!V$11:V$100,MATCH($C18,'Coverage Indicators_1B'!$B$11:$B$100,0))=\"\",\"\",INDEX('Coverage Indicators_1B'!V$11:V$100,MATCH($C18,'Coverage Indicators_1B'!$B$11:$B$100,0))),\"\")","v":"Tous les CDT (100%) ont rendu disponibles les rapports des activités au moment des ateliers de vérification,  de validation et de diffusion des données organisées  par le PNILT. \nLe système d'information mis en place par le PNILT ne  permet pas de renseigner le nombre de formations sanitaires (non CDT) ayant rapportés au CDT.\n\nSource des données: cet indicateur a été renseigné par le rapport semestriel du PNILT. "},{"$f":"IFERROR(IF(INDEX('Coverage Indicators_1B'!X$11:X$100,MATCH($C18,'Coverage Indicators_1B'!$B$11:$B$100,0))=\"\",\"\",INDEX('Coverage Indicators_1B'!X$11:X$100,MATCH($C18,'Coverage Indicators_1B'!$B$11:$B$100,0))),\"\")","v":""},{"$f":"IFERROR(IF(INDEX('Coverage Indicators_1B'!Y$11:Y$100,MATCH($C18,'Coverage Indicators_1B'!$B$11:$B$100,0))=\"\",\"\",INDEX('Coverage Indicators_1B'!Y$11:Y$100,MATCH($C18,'Coverage Indicators_1B'!$B$11:$B$100,0))),\"\")","v":""},{"$f":"IFERROR(IF(INDEX('Coverage Indicators_1B'!Z$11:Z$100,MATCH($C18,'Coverage Indicators_1B'!$B$11:$B$100,0))=\"\",\"\",INDEX('Coverage Indicators_1B'!Z$11:Z$100,MATCH($C18,'Coverage Indicators_1B'!$B$11:$B$100,0))),\"\")","v":""},{"$f":"IFERROR(IF(INDEX('Coverage Indicators_1B'!AA$11:AA$100,MATCH($C18,'Coverage Indicators_1B'!$B$11:$B$100,0))=\"\",\"\",INDEX('Coverage Indicators_1B'!AA$11:AA$100,MATCH($C18,'Coverage Indicators_1B'!$B$11:$B$100,0))),\"\")","v":""},{"$f":"IFERROR(INDEX('Coverage Indicators_1B'!AB$11:AB$100,MATCH($C18,'Coverage Indicators_1B'!$B$11:$B$100,0)),\"\")","v":" "},{"$f":"IFERROR(IF(INDEX('Coverage Indicators_1B'!AC$11:AC$100,MATCH($C18,'Coverage Indicators_1B'!$B$11:$B$100,0))=\"\",\"\",INDEX('Coverage Indicators_1B'!AC$11:AC$100,MATCH($C18,'Coverage Indicators_1B'!$B$11:$B$100,0))),\"\")","v":""},{"$f":"IFERROR(IF(INDEX('Coverage Indicators_1B'!AD$11:AD$100,MATCH($C18,'Coverage Indicators_1B'!$B$11:$B$100,0))=\"\",\"\",INDEX('Coverage Indicators_1B'!AD$11:AD$100,MATCH($C18,'Coverage Indicators_1B'!$B$11:$B$100,0))),\"\")","v":""},{"$f":"IFERROR(INDEX('Coverage Indicators_1B'!AE$11:AE$100,MATCH($C18,'Coverage Indicators_1B'!$B$11:$B$100,0)),\"\")","v":"No Results Reported"},null,null,null,{"$f":"IFERROR(INDEX('Coverage Indicators_1B'!AI$11:AI$100,MATCH($C18,'Coverage Indicators_1B'!$B$11:$B$100,0)),\"\")","v":" "},{"$f":"IFERROR(INDEX('Coverage Indicators_1B'!AJ$11:AJ$100,MATCH($C18,'Coverage Indicators_1B'!$B$11:$B$100,0)),\"\")","v":0},{"$f":"IFERROR(INDEX('Coverage Indicators_1B'!AK$11:AK$100,MATCH($C18,'Coverage Indicators_1B'!$B$11:$B$100,0)),\"\")","v":"No Results Reported"},11,"No","Burundi",null,null,null,null,null,"SSRS: Sistemas de información en salud y monitoreo y evaluación","Systèmes de santé résilients et pérennes : système de gestion de l'information sanitaire et suivi et évaluation","Rapport annuel du PNILT"]
["a173600000BjggdAAB",12,"Coverage12","Treatment, care and support","TCS-1(M): Pourcentage de personnes vivant avec le VIH bénéficiant actuellement d'un traitement antirétroviral","TCS-1(M): Percentage of people living with HIV currently receiving antiretroviral therapy",null,"TCS-1(M): Pourcentage de personnes vivant avec le VIH bénéficiant actuellement d'un traitement antirétroviral","TCS-1(M): Porcentaje de personas que viven con el VIH  que actualmente reciben tratamiento antirretroviral",null,"National","N-Non -cumulative (other)",false,57121,82664,69.099999999999994,"2017","PNLS/IST Programme Data, Sem 1",60685,82045,74,"Numerator: Number of adults and children currently receiving ART in line with the treatment protocol approved at the national level (or to World Health Organization (WHO) standards) at the end of the reporting period.\nDenominator: Estimated number of adults and children living with HIV, HIV-positive pregnant women, HIV-positive children, TB/HIV co-infected patients, HIV-positive MSM and HIV-positive SWs. \n\nThe figures come from SPECTRUM 2016. PLHIV (adults) aged 15 years or older: 75,307 in 2018, 75,449 in 2019, and 75,523 in 2020; children aged 0-14 years: 6,738 in 2018, 6,084 in 2019, and 5,494 in 2020.\n\nThe baseline figures for June 2017 are: 69.1 percent (57,121/82,664), i.e. 71.5 percent (53,760/75,204) among adults and 45.1 percent (3,361/7,460) among children.\n\nBurundi has signed up to the global targets and will therefore need to achieve the national coverage targets:\n- For children: 60 percent (4,043/6,738) in 2018, 70 percent (4,259/6,084) in 2019, and 75 percent (4,121/5,494) in 2020.\n- For adults: 75 percent (56,480/75,307) in 2018, 80 percent (60,359/75,449) in 2019, and 85 percent (64,195/75,523) in 2020.\nHowever, current funding (from the government, partners and the Global Fund) is sufficient to cover 60,685 patients in 2018, 2019 and 2020.  In order to achieve the national targets, the government will need to provide additional funding to cover the additional patients in 2018, 2019 and 2020.\n\nThe main interventions planned for this grant are as follows: decentralizing ART to the provincial level (all provinces); adopting and scaling up the test and treat initiative; task-shifting; developing linkages between screening and treatment services; and capacity building for treatment staff. The grant will also cover community interventions such as strengthening support groups; providing nutrition support to adults and children; and searching for patients lost to follow-up to improve retention among PLHIV on treatment (including strong involvement from health mediators).  On pediatric care, the plans include mentor-led supervisions, as well as efforts to strengthen family screening and psychosocial support for children and their parents.\n\nThe health medicators (351, financed by the GF) contribute to reaching the results.  Most health mediators are PLHIV in health facilities, and act as liaisons between the health facilities and the beneficiaries.  It is planned that each health mediator support 100 PLHIV, or 35,100 PLHIV each year (to be reported in the comments of the PU), in addition to punctual support to PLHIV.  The interventions by health mediators will strengthen treatment adherence sessions, psycho-social support for children and adolescents living with HIV at pediatric ART sites and PMTCT sites.\n\nThe total target (adults and children combined) is 60,685 patients (of which 4,360 children).  The annual contributions are as follows: Global Fund: 55,500 patients (of which 3,500 children); government: 3,085 patients (4 percent, of which 2,825 adults and 260 children); U.S. President’s Emergency Plan for AIDS Relief (PEPFAR): 1,500 patients (2 percent, ARVs for pregnant women); and UNICEF: 600 (children).  The government’s annual contribution for 2018-2020 stands at 4 percent, i.e. 2,788 patients (2017 Finance Act, assuming that the contribution remains constant).  The national targets are as follows: 64K and 68K ART patients in 2019 and 2020, with an increase in the government’s contribution (8K and 12K patients in 2019 and 2020) and/or a funding request via the PAAR.  The PNLS will work in close collaboraiton with the government to ensure the financial mobilisation by the government, as per the programmatic gaps tables, to cover the following number of ART patients: 4,487 ART patients in 2018, 8,366 in 2019, and 12,201 in 2020.\n\nEstimates point to approximately 3,000 pre-ART patients per year (June 2017 estimate: approximately 6,000 pre-ART patients).  If the country adopts the test and treat strategy, the NACP will need to explain how these patients will be funded.\nAn ART patient cohort audit is currently ongoing (Q4 2017). The findings will be used to update the baseline value and the targets, if required.  The country will need to continue lobbying the government and partners to secure funding for the ART patient cohort in line with national targets.\n\nRegarding VL coverage: The funded targets for VL are 50 percent, 55 percent and 60 percent in 2018, 2019 and 2020 respectively (national targets: 60 percent, 75 percent and 90 percent – included in the PAAR).  The number of CD4 tests will fall as VL coverage increases. The Global Fund will receive an operational document, including details of the proposed CD4 strategy for patients that cannot receive a VL test.\nThe baseline figure for VL coverage among ART patients is: 38.1 percent (21,735/57,121).  The interventions planned for this grant for increasing VL coverage are as follows: expanding the number of VL machines (six new machines); using the GeneXpert machines purchased by the TB program (once pre-qualified by the WHO) [there are currently seven GeneXpert machines; a further 10 machines have been acquired under the current grant and seven more are on order]; capacity building for biologists; strengthening the VL sample transport and results reporting system at treatment sites; and signing contracts with private sector firms to carry out preventive and curative maintenance on VL machines.\nThe Global Fund covers VL needs, but the national targets are only partially covered.  Funding for the gaps will be requested via the PAAR. The remainder will be mobilized from OPP-ERA and other technical and financial partners (TFPs).\n\nRegarding nutritional support: The allocation takes into account 50% of needs among eligible individuals (ART patients with severe and moderate clinically diagnosed malnutrition, pregnant women in PMTCT, and infants of HIV-positive mothers in PMTCT), and 50% of the needs are in the PAAR request.  The monitoring of nutritional support will be done via quarterly reports from the WFP transmitted to CRB (and to to the GF every 6 months), as well as through supervisions by CRB staff (from intermediary or central level) every 6 months at ART sites.",{"$f":"IFERROR(IF(INDEX('Coverage Indicators_1B'!Q$11:Q$100,MATCH($C19,'Coverage Indicators_1B'!$B$11:$B$100,0))=\"\",\"\",INDEX('Coverage Indicators_1B'!Q$11:Q$100,MATCH($C19,'Coverage Indicators_1B'!$B$11:$B$100,0))),\"\")","v":64419},{"$f":"IFERROR(IF(INDEX('Coverage Indicators_1B'!R$11:R$100,MATCH($C19,'Coverage Indicators_1B'!$B$11:$B$100,0))=\"\",\"\",INDEX('Coverage Indicators_1B'!R$11:R$100,MATCH($C19,'Coverage Indicators_1B'!$B$11:$B$100,0))),\"\")","v":82045},{"$f":"IFERROR(IF(INDEX('Coverage Indicators_1B'!S$11:S$100,MATCH($C19,'Coverage Indicators_1B'!$B$11:$B$100,0))=\"\",\"\",INDEX('Coverage Indicators_1B'!S$11:S$100,MATCH($C19,'Coverage Indicators_1B'!$B$11:$B$100,0))),\"\")","v":78.51666768236943},{"$f":"IFERROR(IF(INDEX('Coverage Indicators_1B'!T$11:T$100,MATCH($C19,'Coverage Indicators_1B'!$B$11:$B$100,0))=\"\",\"\",INDEX('Coverage Indicators_1B'!T$11:T$100,MATCH($C19,'Coverage Indicators_1B'!$B$11:$B$100,0))),\"\")","v":"HMIS"},{"$f":"IFERROR(INDEX('Coverage Indicators_1B'!U$11:U$100,MATCH($C19,'Coverage Indicators_1B'!$B$11:$B$100,0)),\"\")","v":1.061036049761749},{"$f":"IFERROR(IF(INDEX('Coverage Indicators_1B'!V$11:V$100,MATCH($C19,'Coverage Indicators_1B'!$B$11:$B$100,0))=\"\",\"\",INDEX('Coverage Indicators_1B'!V$11:V$100,MATCH($C19,'Coverage Indicators_1B'!$B$11:$B$100,0))),\"\")","v":"Numerateur: nombre de PVVIH sous traitement antiretroviral. \nSur un total estimé par projection spectrum pour 2018 de 82045 des PVVIH adultes et enfants (denominateur), 64416 (79%) des PVVIH sont sous traitement ARV au 30 juin 2018 comme capturé dans DHIS2 ajusté après les ateliers de validation. La cible fixée pour le semestre étant de 74%, cela donne un taux d’accomplissement de 106%.  \nParmi les 64419 PVVIH sous ARV , il y a 42 341 femmes et 22078 hommes qui ont effectivement recu leur traitement.\nCette performance s’explique par :\n• La rétention des patients PVVIH aux traitements grâce aux activités de sensibilisations pour le maintien du traitement\n• La stratégie Test and Treat mise en place dans certaines provinces.\n• La décentralisation et délégation de tache pour la prise en charge du VIH pédiatrique au niveau des sites de prise en charge autres que des hôpitaux.\n\nSource des données: cet indicateur a été renseigné par le rapport semestriel du PNLS  après consultation  de DHIS2"},{"$f":"IFERROR(IF(INDEX('Coverage Indicators_1B'!X$11:X$100,MATCH($C19,'Coverage Indicators_1B'!$B$11:$B$100,0))=\"\",\"\",INDEX('Coverage Indicators_1B'!X$11:X$100,MATCH($C19,'Coverage Indicators_1B'!$B$11:$B$100,0))),\"\")","v":""},{"$f":"IFERROR(IF(INDEX('Coverage Indicators_1B'!Y$11:Y$100,MATCH($C19,'Coverage Indicators_1B'!$B$11:$B$100,0))=\"\",\"\",INDEX('Coverage Indicators_1B'!Y$11:Y$100,MATCH($C19,'Coverage Indicators_1B'!$B$11:$B$100,0))),\"\")","v":""},{"$f":"IFERROR(IF(INDEX('Coverage Indicators_1B'!Z$11:Z$100,MATCH($C19,'Coverage Indicators_1B'!$B$11:$B$100,0))=\"\",\"\",INDEX('Coverage Indicators_1B'!Z$11:Z$100,MATCH($C19,'Coverage Indicators_1B'!$B$11:$B$100,0))),\"\")","v":""},{"$f":"IFERROR(IF(INDEX('Coverage Indicators_1B'!AA$11:AA$100,MATCH($C19,'Coverage Indicators_1B'!$B$11:$B$100,0))=\"\",\"\",INDEX('Coverage Indicators_1B'!AA$11:AA$100,MATCH($C19,'Coverage Indicators_1B'!$B$11:$B$100,0))),\"\")","v":""},{"$f":"IFERROR(INDEX('Coverage Indicators_1B'!AB$11:AB$100,MATCH($C19,'Coverage Indicators_1B'!$B$11:$B$100,0)),\"\")","v":" "},{"$f":"IFERROR(IF(INDEX('Coverage Indicators_1B'!AC$11:AC$100,MATCH($C19,'Coverage Indicators_1B'!$B$11:$B$100,0))=\"\",\"\",INDEX('Coverage Indicators_1B'!AC$11:AC$100,MATCH($C19,'Coverage Indicators_1B'!$B$11:$B$100,0))),\"\")","v":""},{"$f":"IFERROR(IF(INDEX('Coverage Indicators_1B'!AD$11:AD$100,MATCH($C19,'Coverage Indicators_1B'!$B$11:$B$100,0))=\"\",\"\",INDEX('Coverage Indicators_1B'!AD$11:AD$100,MATCH($C19,'Coverage Indicators_1B'!$B$11:$B$100,0))),\"\")","v":""},{"$f":"IFERROR(INDEX('Coverage Indicators_1B'!AE$11:AE$100,MATCH($C19,'Coverage Indicators_1B'!$B$11:$B$100,0)),\"\")","v":"No Results Reported"},null,null,null,{"$f":"IFERROR(INDEX('Coverage Indicators_1B'!AI$11:AI$100,MATCH($C19,'Coverage Indicators_1B'!$B$11:$B$100,0)),\"\")","v":" "},{"$f":"IFERROR(INDEX('Coverage Indicators_1B'!AJ$11:AJ$100,MATCH($C19,'Coverage Indicators_1B'!$B$11:$B$100,0)),\"\")","v":0},{"$f":"IFERROR(INDEX('Coverage Indicators_1B'!AK$11:AK$100,MATCH($C19,'Coverage Indicators_1B'!$B$11:$B$100,0)),\"\")","v":"No Results Reported"},12,"No","Burundi",null,null,null,null,null,"Tratamiento, atención y apoyo","Traitement, prise en charge et soutien","Données du programme PNLS/IST, Sem 1"]
["a173600000BjggfAAB",13,"Coverage13","Treatment, care and support","TCS-6: Pourcentage de sites ARV qui ont connu une rupture de stock de médicaments antirétroviraux durant la période de rapportage","TCS-6: Percentage of ART sites that had a stock-out of any antiretroviral drugs during the reporting period",null,"TCS-6: Pourcentage de sites ARV qui ont connu une rupture de stock de médicaments antirétroviraux durant la période de rapportage","TCS-6: Porcentaje de servicios de salud que ofertan ARVs que tuvieron desabastecimiento de cualquiera de los ARVs durante el periodo de reporte",null,"National","N-Non-cumulative",false,211,678,31.1,"2017","PNLS/IST Programme Data, Sem 1",33.9,678,5,"Numerator: Number of health care facilities dispensing ART reporting stock-outs of at least one required ARV for two weeks during the reporting period.\nDenominator: Total number of health care facilities offering ART, including hospitals, non-profit and private facilities.\n\nThe baseline figure of 31 percent (211/678) comes from the NACP progress update report for the first half of 2017, and is calculated as the number of facilities reporting ARV stock-outs out of the total number of ARV sites.\n\nThe ambition is to achieve a target of 0 percent between 2018 and 2020. The more realistic target, as mentioned in the performance framework, is 5 percent each year.\nThis indicator will be monitored for all ARV sites.  The denominator will be updated to reflect the actual value for each reporting period.\n\nThe main interventions are as follows: helping the Central Purchasing Office for Essential Drugs (CAMEBU) to expand its drug storage facilities; setting up an alert system to avoid stock-outs; training personnel responsible for product quantification; streamlining treatment protocols; setting aside a four-month buffer stock at the central level; providing logistics support to transport drugs to the decentralized level; helping to establish a product safeguarding plan for CAMEBU; and providing three PSM experts to CAMEBU.\n\nFunding will come from the Global Fund, the government, USAID (via Quemonix) and other TFPs.",{"$f":"IFERROR(IF(INDEX('Coverage Indicators_1B'!Q$11:Q$100,MATCH($C20,'Coverage Indicators_1B'!$B$11:$B$100,0))=\"\",\"\",INDEX('Coverage Indicators_1B'!Q$11:Q$100,MATCH($C20,'Coverage Indicators_1B'!$B$11:$B$100,0))),\"\")","v":167},{"$f":"IFERROR(IF(INDEX('Coverage Indicators_1B'!R$11:R$100,MATCH($C20,'Coverage Indicators_1B'!$B$11:$B$100,0))=\"\",\"\",INDEX('Coverage Indicators_1B'!R$11:R$100,MATCH($C20,'Coverage Indicators_1B'!$B$11:$B$100,0))),\"\")","v":750},{"$f":"IFERROR(IF(INDEX('Coverage Indicators_1B'!S$11:S$100,MATCH($C20,'Coverage Indicators_1B'!$B$11:$B$100,0))=\"\",\"\",INDEX('Coverage Indicators_1B'!S$11:S$100,MATCH($C20,'Coverage Indicators_1B'!$B$11:$B$100,0))),\"\")","v":22.266666666666669},{"$f":"IFERROR(IF(INDEX('Coverage Indicators_1B'!T$11:T$100,MATCH($C20,'Coverage Indicators_1B'!$B$11:$B$100,0))=\"\",\"\",INDEX('Coverage Indicators_1B'!T$11:T$100,MATCH($C20,'Coverage Indicators_1B'!$B$11:$B$100,0))),\"\")","v":"HMIS"},{"$f":"IFERROR(INDEX('Coverage Indicators_1B'!U$11:U$100,MATCH($C20,'Coverage Indicators_1B'!$B$11:$B$100,0)),\"\")","v":1.2},{"$f":"IFERROR(IF(INDEX('Coverage Indicators_1B'!V$11:V$100,MATCH($C20,'Coverage Indicators_1B'!$B$11:$B$100,0))=\"\",\"\",INDEX('Coverage Indicators_1B'!V$11:V$100,MATCH($C20,'Coverage Indicators_1B'!$B$11:$B$100,0))),\"\")","v":"le PNLS n’a pas connu de rupture en intrants VIH durant la période de rapportage (de janvier à juin 2018). La compréhension de l'indicateur pose probleme aux utilisateurs.\nIl a été constaté une erreur dans la formule qui donne les taux d'accomplissement dans le PU. Le taux réel d'accomplissement est de 45% \nAu moment de la négociation du cadre de performance , 678 sites  ARV étaient fonctionnels. Cependant, au moment du rapportage, le nombre de sites ARV est de 750. \nLe nombre total de sites ayant connu une rupture de stock en ARV au moins 14 jours pour l'un des médicaments antirétroviraux requis est de 167 sur un total de 750, soit 22%.  \nCependant, en analysant ces données du DHIS2, on constate qu'il y a eu une rupture de stock pour certains centres pendant toute l’année en depit du l'existence de stock à la Camebu. \nAinsi l'ecart s'explique par:\n- les erreurs de compréhension (les prestataires considèrent les jours de rupture pour les molécules dela liste alors qu’ils ne doivent pas en avoir chez eux car ils n’ont pas de malades sous ce schéma thérapeutique);\n- les erreurs dans la saisie des données dans DHIS2;  \n - les retards dans les commandes des ARV des sites de prise en charge au district et du district à la CAMEBU. \nEn vue de résoudre ces problèmes, le PR  et le PNLS  vont entreprendre les mesures suivantes:\n- revoir l'operationnalité de cet indicateur \n-organiser les missions de supervisions formatives;\n-Encadrement des prestataires lors des ateliers de validation des données;\n\n\n\nSource des données: cet indicateur a été renseigné par le rapport semestriel du PNLS  après consultation  de DHIS2"},{"$f":"IFERROR(IF(INDEX('Coverage Indicators_1B'!X$11:X$100,MATCH($C20,'Coverage Indicators_1B'!$B$11:$B$100,0))=\"\",\"\",INDEX('Coverage Indicators_1B'!X$11:X$100,MATCH($C20,'Coverage Indicators_1B'!$B$11:$B$100,0))),\"\")","v":""},{"$f":"IFERROR(IF(INDEX('Coverage Indicators_1B'!Y$11:Y$100,MATCH($C20,'Coverage Indicators_1B'!$B$11:$B$100,0))=\"\",\"\",INDEX('Coverage Indicators_1B'!Y$11:Y$100,MATCH($C20,'Coverage Indicators_1B'!$B$11:$B$100,0))),\"\")","v":""},{"$f":"IFERROR(IF(INDEX('Coverage Indicators_1B'!Z$11:Z$100,MATCH($C20,'Coverage Indicators_1B'!$B$11:$B$100,0))=\"\",\"\",INDEX('Coverage Indicators_1B'!Z$11:Z$100,MATCH($C20,'Coverage Indicators_1B'!$B$11:$B$100,0))),\"\")","v":""},{"$f":"IFERROR(IF(INDEX('Coverage Indicators_1B'!AA$11:AA$100,MATCH($C20,'Coverage Indicators_1B'!$B$11:$B$100,0))=\"\",\"\",INDEX('Coverage Indicators_1B'!AA$11:AA$100,MATCH($C20,'Coverage Indicators_1B'!$B$11:$B$100,0))),\"\")","v":""},{"$f":"IFERROR(INDEX('Coverage Indicators_1B'!AB$11:AB$100,MATCH($C20,'Coverage Indicators_1B'!$B$11:$B$100,0)),\"\")","v":" "},{"$f":"IFERROR(IF(INDEX('Coverage Indicators_1B'!AC$11:AC$100,MATCH($C20,'Coverage Indicators_1B'!$B$11:$B$100,0))=\"\",\"\",INDEX('Coverage Indicators_1B'!AC$11:AC$100,MATCH($C20,'Coverage Indicators_1B'!$B$11:$B$100,0))),\"\")","v":""},{"$f":"IFERROR(IF(INDEX('Coverage Indicators_1B'!AD$11:AD$100,MATCH($C20,'Coverage Indicators_1B'!$B$11:$B$100,0))=\"\",\"\",INDEX('Coverage Indicators_1B'!AD$11:AD$100,MATCH($C20,'Coverage Indicators_1B'!$B$11:$B$100,0))),\"\")","v":""},{"$f":"IFERROR(INDEX('Coverage Indicators_1B'!AE$11:AE$100,MATCH($C20,'Coverage Indicators_1B'!$B$11:$B$100,0)),\"\")","v":"No Results Reported"},null,null,null,{"$f":"IFERROR(INDEX('Coverage Indicators_1B'!AI$11:AI$100,MATCH($C20,'Coverage Indicators_1B'!$B$11:$B$100,0)),\"\")","v":" "},{"$f":"IFERROR(INDEX('Coverage Indicators_1B'!AJ$11:AJ$100,MATCH($C20,'Coverage Indicators_1B'!$B$11:$B$100,0)),\"\")","v":0},{"$f":"IFERROR(INDEX('Coverage Indicators_1B'!AK$11:AK$100,MATCH($C20,'Coverage Indicators_1B'!$B$11:$B$100,0)),\"\")","v":"No Results Reported"},14,"No","Burundi",null,null,null,null,null,"Tratamiento, atención y apoyo","Traitement, prise en charge et soutien","Données du programme PNLS/IST, Sem 1"]
["a173600000BjgggAAB",14,"Coverage14","PMTCT","PMTCT-1: Pourcentage de femmes enceintes qui connaissent leur statut sérologique à l'égard du VIH","PMTCT-1: Percentage of pregnant women who know their HIV status",null,"PMTCT-1: Pourcentage de femmes enceintes qui connaissent leur statut sérologique à l'égard du VIH","PMTCT-1: Porcentaje de mujeres embarazadas que conocen su estado serológico respecto al VIH",null,"National","Y- Cumulative annually",false,171057,260024,65.8,"2017","PNLS/IST Programme Data, Sem 1",213843.20000000001,267304,80,"Numerator: Number of pregnant women seen at antenatal consultation (ANC) 1 who were screened and collected their results.\nDenominator: Estimated number of pregnant women in the last 12 months (expected number of pregnancies per year = total population x 0.05).\n\nThe baseline figure of 65.8 percent (171,057/260,024) comes from the June 2017 progress update report and relates to the first half of 2017.\n\nThe coverage rates for HIV tests among pregnant women come from the NSP 2018-2022, i.e. 90 percent (468,042/520,047) in 2018, 95 percent (507,878/534,608) in 2019, and 96 percent (527,594/549,577) in 2020.  However, the targets for funding are based on a more realistic progression rate from the baseline value, i.e. 80 percent, 90 percent and 95 percent.  The numerator for these targets is also included in the indicator on HIV testing among the general population (HTS-1).\n\nThe main interventions are as follows: making screening tests available at all prevention of mother-to-child transmission (PMTCT) sites; systematically screening all pregnant women seen at ANC for HIV; incorporating syphilis screening; introducing community interventions led by mediators and community health workers (CHWs) (awareness-raising on testing and monitoring for HIV-positive pregnant women and promoting couple screening). Advocacy and awareness-raising activities involving the First Lady will help push up PMTCT service demand and supply. \n\nThe contributions for HIV screening tests are as follows: PEPFAR: 416-432K kits; and Global Fund: approx. 91-115K tests.  The country is requesting Duo tests (HIV and syphilis) – to be discussed with PEPFAR, since procurement plans for 2018 do not include Duo tests.  Moreover, the country is required to share its national guidelines on use of the Duo test.  The funding covers the performance framework targets, which are aligned with procurement and supply management (PSM) documents (80 percent, 90 percent and 95 percent).",{"$f":"IFERROR(IF(INDEX('Coverage Indicators_1B'!Q$11:Q$100,MATCH($C21,'Coverage Indicators_1B'!$B$11:$B$100,0))=\"\",\"\",INDEX('Coverage Indicators_1B'!Q$11:Q$100,MATCH($C21,'Coverage Indicators_1B'!$B$11:$B$100,0))),\"\")","v":193020},{"$f":"IFERROR(IF(INDEX('Coverage Indicators_1B'!R$11:R$100,MATCH($C21,'Coverage Indicators_1B'!$B$11:$B$100,0))=\"\",\"\",INDEX('Coverage Indicators_1B'!R$11:R$100,MATCH($C21,'Coverage Indicators_1B'!$B$11:$B$100,0))),\"\")","v":267304},{"$f":"IFERROR(IF(INDEX('Coverage Indicators_1B'!S$11:S$100,MATCH($C21,'Coverage Indicators_1B'!$B$11:$B$100,0))=\"\",\"\",INDEX('Coverage Indicators_1B'!S$11:S$100,MATCH($C21,'Coverage Indicators_1B'!$B$11:$B$100,0))),\"\")","v":72.209918295274292},{"$f":"IFERROR(IF(INDEX('Coverage Indicators_1B'!T$11:T$100,MATCH($C21,'Coverage Indicators_1B'!$B$11:$B$100,0))=\"\",\"\",INDEX('Coverage Indicators_1B'!T$11:T$100,MATCH($C21,'Coverage Indicators_1B'!$B$11:$B$100,0))),\"\")","v":"HMIS"},{"$f":"IFERROR(INDEX('Coverage Indicators_1B'!U$11:U$100,MATCH($C21,'Coverage Indicators_1B'!$B$11:$B$100,0)),\"\")","v":0.9026239786909287},{"$f":"IFERROR(IF(INDEX('Coverage Indicators_1B'!V$11:V$100,MATCH($C21,'Coverage Indicators_1B'!$B$11:$B$100,0))=\"\",\"\",INDEX('Coverage Indicators_1B'!V$11:V$100,MATCH($C21,'Coverage Indicators_1B'!$B$11:$B$100,0))),\"\")","v":"Au cours de la période janvier-Juin 2018, 219093 femmes enceintes sont venues en CPN1 dont 193020 ont réalisé le test de dépistage au VIH soit 88 %. \n100% de femmes venues en CPN1 dépistées (193020), connaissent leur statut sérologique. \nLe taux de réalisation est de 72,2%, soit une performance de 90,26%. \nParmi les femmes dépistées, les résultats du test montrent que  854 sont séropositives au VIH (soit 0,44% de séropositivité).  \nPour améliorer la performance de cet indicateur le PNLS prévoit: \n- renforcer la concertation avec la CRB pour continuer la réalisation des activités de mobilisation sociale et sensibilisation des femmes enceintes à travers les ASC (FBP) pour CPN et dépistage précoce du VIH. \n- continuer la sensibilisation et la conscientisation des prestataires sur la mise en application de la politique et stratégie de dépistage systématique au VIH pour toutes les femmes venues en CPN1 et à la récupération des résultats. \n- Réaliser les activités de supervision dans les CPN.\n\nSource des données: cet indicateur a été renseigné par le rapport semestriel du PNLS  après consultation  de DHIS2"},{"$f":"IFERROR(IF(INDEX('Coverage Indicators_1B'!X$11:X$100,MATCH($C21,'Coverage Indicators_1B'!$B$11:$B$100,0))=\"\",\"\",INDEX('Coverage Indicators_1B'!X$11:X$100,MATCH($C21,'Coverage Indicators_1B'!$B$11:$B$100,0))),\"\")","v":""},{"$f":"IFERROR(IF(INDEX('Coverage Indicators_1B'!Y$11:Y$100,MATCH($C21,'Coverage Indicators_1B'!$B$11:$B$100,0))=\"\",\"\",INDEX('Coverage Indicators_1B'!Y$11:Y$100,MATCH($C21,'Coverage Indicators_1B'!$B$11:$B$100,0))),\"\")","v":""},{"$f":"IFERROR(IF(INDEX('Coverage Indicators_1B'!Z$11:Z$100,MATCH($C21,'Coverage Indicators_1B'!$B$11:$B$100,0))=\"\",\"\",INDEX('Coverage Indicators_1B'!Z$11:Z$100,MATCH($C21,'Coverage Indicators_1B'!$B$11:$B$100,0))),\"\")","v":""},{"$f":"IFERROR(IF(INDEX('Coverage Indicators_1B'!AA$11:AA$100,MATCH($C21,'Coverage Indicators_1B'!$B$11:$B$100,0))=\"\",\"\",INDEX('Coverage Indicators_1B'!AA$11:AA$100,MATCH($C21,'Coverage Indicators_1B'!$B$11:$B$100,0))),\"\")","v":""},{"$f":"IFERROR(INDEX('Coverage Indicators_1B'!AB$11:AB$100,MATCH($C21,'Coverage Indicators_1B'!$B$11:$B$100,0)),\"\")","v":" "},{"$f":"IFERROR(IF(INDEX('Coverage Indicators_1B'!AC$11:AC$100,MATCH($C21,'Coverage Indicators_1B'!$B$11:$B$100,0))=\"\",\"\",INDEX('Coverage Indicators_1B'!AC$11:AC$100,MATCH($C21,'Coverage Indicators_1B'!$B$11:$B$100,0))),\"\")","v":""},{"$f":"IFERROR(IF(INDEX('Coverage Indicators_1B'!AD$11:AD$100,MATCH($C21,'Coverage Indicators_1B'!$B$11:$B$100,0))=\"\",\"\",INDEX('Coverage Indicators_1B'!AD$11:AD$100,MATCH($C21,'Coverage Indicators_1B'!$B$11:$B$100,0))),\"\")","v":""},{"$f":"IFERROR(INDEX('Coverage Indicators_1B'!AE$11:AE$100,MATCH($C21,'Coverage Indicators_1B'!$B$11:$B$100,0)),\"\")","v":"No Results Reported"},null,null,null,{"$f":"IFERROR(INDEX('Coverage Indicators_1B'!AI$11:AI$100,MATCH($C21,'Coverage Indicators_1B'!$B$11:$B$100,0)),\"\")","v":" "},{"$f":"IFERROR(INDEX('Coverage Indicators_1B'!AJ$11:AJ$100,MATCH($C21,'Coverage Indicators_1B'!$B$11:$B$100,0)),\"\")","v":0},{"$f":"IFERROR(INDEX('Coverage Indicators_1B'!AK$11:AK$100,MATCH($C21,'Coverage Indicators_1B'!$B$11:$B$100,0)),\"\")","v":"No Results Reported"},15,"No","Burundi",null,null,null,null,null,"PTMI","Prévention de la transmission de la mère à l'enfant (PTME)","Données du programme PNLS/IST, Sem 1"]
["a173600000BjgghAAB",15,"Coverage15","PMTCT","PMTCT-2.1: Pourcentage de femmes enceintes séropositives au VIH ayant reçu des antirétroviraux durant leur grossesse","PMTCT-2.1: Percentage of HIV-positive pregnant women who received ART during pregnancy",null,"PMTCT-2.1: Pourcentage de femmes enceintes séropositives au VIH ayant reçu des antirétroviraux durant leur grossesse","PMTCT-2.1: Porcentaje de mujeres embarazadas VIH positivas que recibieron TARV durante el embarazo",null,"National","Y- Cumulative annually",false,2215,2600,85.2,"2017","PNLS/IST Programme Data, Sem 1",2666.1750000000002,2806.5,95,"Numerator: Number of HIV-positive pregnant women having received ART in the last 12 months to reduce the risk of MTCT during pregnancy and childbirth.\nDenominator: Expected number of HIV-positive pregnant women in the year.\n\nThe denominator – the expected number of HIV-positive pregnant women requiring ARVs – has been calculated by multiplying the expected number of pregnancies by the HIV prevalence rate among pregnant women (1.05 percent).\n\nThe baseline figure of 85.1 percent (2,215/2,600) comes from the June 2017 progress update report and relates to the first half of 2017.\nAmong the women on ARVs in the same period (January-June 2017), 1,169 were already on ARVs and 1,046 were new cases.\n\nBecause Burundi is one of the 21 priority countries under the Super Fast Track initiative, the following ART coverage targets are required to accelerate progress towards eliminating MTCT: 95 percent (5,333/5,613) in 2018, 96 percent (5,540/5,771) in 2019, and 97 percent (5,754/5,932) in 2020 (NSP 2018-2022 targets).\n\nThe interventions planned for this grant are as follows: scaling up option B+ at all PMTCT sites in the 18 provinces; task-shifting; improving ARV supply to PMTCT facilities; and monitoring bottlenecks for PMTCT service demand.\n\nAt the community level, the following interventions will be strengthened: nutrition support for HIV-positive pregnant women; searching for patients lost to follow-up and drop-outs; and peer education by HIV-positive pregnant women (mother mentors).\n\nPEPFAR’s contribution to mother and child treatment activities (ART and PMTCT) covers 1,469 mothers per year, for two years  (source: PEPFAR Country Operational Plan (COP) 2017, page 28). The assumption is that the same contributions will be maintained in 2019 and 2020 (source: Funding Landscape Report: minutes of the TFP/NACP meeting of 30 June 2017, attached).  The Global Fund covers the remainder of the targets.",{"$f":"IFERROR(IF(INDEX('Coverage Indicators_1B'!Q$11:Q$100,MATCH($C22,'Coverage Indicators_1B'!$B$11:$B$100,0))=\"\",\"\",INDEX('Coverage Indicators_1B'!Q$11:Q$100,MATCH($C22,'Coverage Indicators_1B'!$B$11:$B$100,0))),\"\")","v":2110},{"$f":"IFERROR(IF(INDEX('Coverage Indicators_1B'!R$11:R$100,MATCH($C22,'Coverage Indicators_1B'!$B$11:$B$100,0))=\"\",\"\",INDEX('Coverage Indicators_1B'!R$11:R$100,MATCH($C22,'Coverage Indicators_1B'!$B$11:$B$100,0))),\"\")","v":2806.5},{"$f":"IFERROR(IF(INDEX('Coverage Indicators_1B'!S$11:S$100,MATCH($C22,'Coverage Indicators_1B'!$B$11:$B$100,0))=\"\",\"\",INDEX('Coverage Indicators_1B'!S$11:S$100,MATCH($C22,'Coverage Indicators_1B'!$B$11:$B$100,0))),\"\")","v":75.182611794049521},{"$f":"IFERROR(IF(INDEX('Coverage Indicators_1B'!T$11:T$100,MATCH($C22,'Coverage Indicators_1B'!$B$11:$B$100,0))=\"\",\"\",INDEX('Coverage Indicators_1B'!T$11:T$100,MATCH($C22,'Coverage Indicators_1B'!$B$11:$B$100,0))),\"\")","v":"HMIS"},{"$f":"IFERROR(INDEX('Coverage Indicators_1B'!U$11:U$100,MATCH($C22,'Coverage Indicators_1B'!$B$11:$B$100,0)),\"\")","v":0.79139591362157391},{"$f":"IFERROR(IF(INDEX('Coverage Indicators_1B'!V$11:V$100,MATCH($C22,'Coverage Indicators_1B'!$B$11:$B$100,0))=\"\",\"\",INDEX('Coverage Indicators_1B'!V$11:V$100,MATCH($C22,'Coverage Indicators_1B'!$B$11:$B$100,0))),\"\")","v":"Un total de 2110 femmes enceintes séropositives au VIH étaient sous traitement antirétroviral pour réduire le risque de transmission du VIH de la mère à l’enfant sur un total prévu de 2806.50, soit un taux de réalisation de 75% c'est à dire un taux d'accomplissement de  79%.\nParmi les 2110 femmes enceintes qui sont sous traitement ARV, 1068 étaient déjà sous ARV et 1042 sont des nouveaux cas. \nPour améliorer la performance, le PR, le PNLS et la CRB vont renforcer les mesures suivantes:\n-la mobilisation sociale, la sensibilisation communautaire, sensibilisation des hommes afin qu’ils accompagnent leurs épouses au cours des visites de CPN.\n-réalisation d'un monitorage des goulots d'étranglement pour la demande et l'offre des services PTME\nD’autre part, nous allons continuer la sensibilisation des prestataires pour le dépistage, la remise des résultats et la mise sous ARV des femmes dont le test est positif.\n\nSource des données: cet indicateur a été renseigné par le rapport semestriel du PNLS  après consultation  de DHIS2"},{"$f":"IFERROR(IF(INDEX('Coverage Indicators_1B'!X$11:X$100,MATCH($C22,'Coverage Indicators_1B'!$B$11:$B$100,0))=\"\",\"\",INDEX('Coverage Indicators_1B'!X$11:X$100,MATCH($C22,'Coverage Indicators_1B'!$B$11:$B$100,0))),\"\")","v":""},{"$f":"IFERROR(IF(INDEX('Coverage Indicators_1B'!Y$11:Y$100,MATCH($C22,'Coverage Indicators_1B'!$B$11:$B$100,0))=\"\",\"\",INDEX('Coverage Indicators_1B'!Y$11:Y$100,MATCH($C22,'Coverage Indicators_1B'!$B$11:$B$100,0))),\"\")","v":""},{"$f":"IFERROR(IF(INDEX('Coverage Indicators_1B'!Z$11:Z$100,MATCH($C22,'Coverage Indicators_1B'!$B$11:$B$100,0))=\"\",\"\",INDEX('Coverage Indicators_1B'!Z$11:Z$100,MATCH($C22,'Coverage Indicators_1B'!$B$11:$B$100,0))),\"\")","v":""},{"$f":"IFERROR(IF(INDEX('Coverage Indicators_1B'!AA$11:AA$100,MATCH($C22,'Coverage Indicators_1B'!$B$11:$B$100,0))=\"\",\"\",INDEX('Coverage Indicators_1B'!AA$11:AA$100,MATCH($C22,'Coverage Indicators_1B'!$B$11:$B$100,0))),\"\")","v":""},{"$f":"IFERROR(INDEX('Coverage Indicators_1B'!AB$11:AB$100,MATCH($C22,'Coverage Indicators_1B'!$B$11:$B$100,0)),\"\")","v":" "},{"$f":"IFERROR(IF(INDEX('Coverage Indicators_1B'!AC$11:AC$100,MATCH($C22,'Coverage Indicators_1B'!$B$11:$B$100,0))=\"\",\"\",INDEX('Coverage Indicators_1B'!AC$11:AC$100,MATCH($C22,'Coverage Indicators_1B'!$B$11:$B$100,0))),\"\")","v":""},{"$f":"IFERROR(IF(INDEX('Coverage Indicators_1B'!AD$11:AD$100,MATCH($C22,'Coverage Indicators_1B'!$B$11:$B$100,0))=\"\",\"\",INDEX('Coverage Indicators_1B'!AD$11:AD$100,MATCH($C22,'Coverage Indicators_1B'!$B$11:$B$100,0))),\"\")","v":""},{"$f":"IFERROR(INDEX('Coverage Indicators_1B'!AE$11:AE$100,MATCH($C22,'Coverage Indicators_1B'!$B$11:$B$100,0)),\"\")","v":"No Results Reported"},null,null,null,{"$f":"IFERROR(INDEX('Coverage Indicators_1B'!AI$11:AI$100,MATCH($C22,'Coverage Indicators_1B'!$B$11:$B$100,0)),\"\")","v":" "},{"$f":"IFERROR(INDEX('Coverage Indicators_1B'!AJ$11:AJ$100,MATCH($C22,'Coverage Indicators_1B'!$B$11:$B$100,0)),\"\")","v":0},{"$f":"IFERROR(INDEX('Coverage Indicators_1B'!AK$11:AK$100,MATCH($C22,'Coverage Indicators_1B'!$B$11:$B$100,0)),\"\")","v":"No Results Reported"},16,"No","Burundi",null,null,null,null,null,"PTMI","Prévention de la transmission de la mère à l'enfant (PTME)","Données du programme PNLS/IST, Sem 1"]
["a173600000BjggiAAB",16,"Coverage16","PMTCT","PMTCT-3.1: Pourcentage de nourrissons exposés au VIH ayant bénéficié d'un dépistage du VIH dans les 2 mois qui ont suivi leur naissance","PMTCT-3.1: Percentage of HIV-exposed infants receiving a virological test for HIV within 2 months of birth",null,"PMTCT-3.1: Pourcentage de nourrissons exposés au VIH ayant bénéficié d'un dépistage du VIH dans les 2 mois qui ont suivi leur naissance","PMTCT-3.1: Porcentaje de recién nacidos expuestos al VIH que reciben una prueba virológica de VIH durante los primeros 2 meses desde su nacimiento",null,"National","Y- Cumulative annually",false,704,2600,27.1,"2017","PNLS/IST Programme Data, Sem 1",2021,2806.5,72,"Numerator: Number of newborns having received an HIV test in their first two months of life during the reporting period.\nDenominator: Number of pregnant women who gave birth in the last 12 months.\n\nThe baseline figure of 27.1 percent (704/2,600) comes from the June 2017 progress update report and relates to the first half of 2017.\n\nBecause Burundi is one of the 21 priority countries for elimination of mother-to-child transmission (eMTCT) of HIV, the following coverage targets are required for optimal early infant diagnosis (EID) among newborns born to HIV-positive mothers: 72 percent (4,042/5,613) in 2018, 75 percent (4,328/5,771) in 2019, and 80 percent (4,746/5,932) in 2020 (NSP 2018-2022 targets).\n\nAccording to SPECTRUM 2016, the MTCT rate for HIV will be 3.96 percent in 2018, 3.71 percent in 2019, and 3.41 percent in 2020. The number of infants who will receive a polymerase chain reaction (PCR) test two months after birth (positive PCR) is calculated by multiplying the number of infants born to HIV-positive mothers by the respective MTCT rates for HIV, which gives 222 in 2018, 214 and 2019, and 202 in 2020.\nThe country currently has two Abbott machines, at Ngozi and the Institut National de Santé Publique [National Institute of Public Health – INSP]. There are plans to acquire three Roche machines, which are capable of performing VL and PCR tests simultaneously.\n\nThe following interventions are planned: strengthening EID of HIV among newborns born to HIV-positive mothers; strengthening the sample transport and rapid results reporting system between institutions and service providers; capacity building for laboratory personnel responsible for EID; training service providers how to take samples on filter paper; ensuring facilities have the right supplies to perform EID; and strengthening the health mediators and CHWs system for monitoring of the mother-child unit. \n\nWe have recently completed an assessment of the eMTCT Plan 2012-2016, with support from UNICEF and the Global Fund. The eMTCT Plan 2018-2022 will be finalized by the end of 2017.\n\nAccording to PSM documents, coverage is as follows: 1,425 by “other partners” and 3,000-3,500 by the Global Fund.  The remainder is included in the PAAR.",{"$f":"IFERROR(IF(INDEX('Coverage Indicators_1B'!Q$11:Q$100,MATCH($C23,'Coverage Indicators_1B'!$B$11:$B$100,0))=\"\",\"\",INDEX('Coverage Indicators_1B'!Q$11:Q$100,MATCH($C23,'Coverage Indicators_1B'!$B$11:$B$100,0))),\"\")","v":506},{"$f":"IFERROR(IF(INDEX('Coverage Indicators_1B'!R$11:R$100,MATCH($C23,'Coverage Indicators_1B'!$B$11:$B$100,0))=\"\",\"\",INDEX('Coverage Indicators_1B'!R$11:R$100,MATCH($C23,'Coverage Indicators_1B'!$B$11:$B$100,0))),\"\")","v":1042},{"$f":"IFERROR(IF(INDEX('Coverage Indicators_1B'!S$11:S$100,MATCH($C23,'Coverage Indicators_1B'!$B$11:$B$100,0))=\"\",\"\",INDEX('Coverage Indicators_1B'!S$11:S$100,MATCH($C23,'Coverage Indicators_1B'!$B$11:$B$100,0))),\"\")","v":48.560460652591168},{"$f":"IFERROR(IF(INDEX('Coverage Indicators_1B'!T$11:T$100,MATCH($C23,'Coverage Indicators_1B'!$B$11:$B$100,0))=\"\",\"\",INDEX('Coverage Indicators_1B'!T$11:T$100,MATCH($C23,'Coverage Indicators_1B'!$B$11:$B$100,0))),\"\")","v":"HMIS"},{"$f":"IFERROR(INDEX('Coverage Indicators_1B'!U$11:U$100,MATCH($C23,'Coverage Indicators_1B'!$B$11:$B$100,0)),\"\")","v":0.67445084239709951},{"$f":"IFERROR(IF(INDEX('Coverage Indicators_1B'!V$11:V$100,MATCH($C23,'Coverage Indicators_1B'!$B$11:$B$100,0))=\"\",\"\",INDEX('Coverage Indicators_1B'!V$11:V$100,MATCH($C23,'Coverage Indicators_1B'!$B$11:$B$100,0))),\"\")","v":"Pendant la période de janvier à juin 2018, 1161 enfants ont bénéficié du test PCR, 506 l’ont réalisé dans les 2 mois après leur naissance (45,45%) dont 8 cas positifs.\nLe système d'information sanitaire DHIS2 ne permet pas d'avoir le nombre de femmes enceintes séropositives ayant accouché au cours des 12 derniers mois. Le dénominateur n'a pas pu être mis à jour sur la base des valeurs réelles. Une estimation de ce dénominateur est le nombre de nouvelles femmes enceintes qui sont sous traitement ARV, 1068 étaient déjà sous ARV et 1042 sont des nouveaux cas. Nous estimons que le nombre des femmes enceintes séropositives au VIH ayant accouché au cours des 12 derniers mois est inférieur. Par conséquent, cela a un impact négatif sur la performance de l'indicateur.\nEgalement, le nombre de nourrissons ayant bénéficié de dépistage est réduit du fait qu'il y a eu des pannes itératives de certains appareils dans quelques sites comme l’appareil Abbott de l’INSP, la mauvaise répartition des appareils disponible (3 appareils sur 4 à Bujumbura), l’absence de la stratégie de transport des échantillons et la faible implication des prestataires dans le dépistage précoce chez les nouveaux nés.\nEn vue d’améliorer cette situation, le PR et PNLS/IST sont en train de :\n• Recruter un consultant international pour l’élaboration du plan opérationnel de laboratoire pour la charge virale, le dépistage précoce, le CD4 et la stratégie de transport des échantillons. \n• Octroyer les frais de mission et rembourser les carburant aux prestataires qui transportent les échantillons PCR vers les sites d’analyse comme prévu dans le plan d’activité du PNLS.\n• Sensibiliser les prestataires sur l’importance de la collecte des échantillons dans les 2 mois qui suivent la naissance.\n• Prévoir les kits de collecte de l’échantillon à la naissance pour réduire les prélèvements tardifs \n\nSource des données: cet indicateur a été renseigné par le rapport semestriel du PNLS  après consultation  de DHIS2"},{"$f":"IFERROR(IF(INDEX('Coverage Indicators_1B'!X$11:X$100,MATCH($C23,'Coverage Indicators_1B'!$B$11:$B$100,0))=\"\",\"\",INDEX('Coverage Indicators_1B'!X$11:X$100,MATCH($C23,'Coverage Indicators_1B'!$B$11:$B$100,0))),\"\")","v":""},{"$f":"IFERROR(IF(INDEX('Coverage Indicators_1B'!Y$11:Y$100,MATCH($C23,'Coverage Indicators_1B'!$B$11:$B$100,0))=\"\",\"\",INDEX('Coverage Indicators_1B'!Y$11:Y$100,MATCH($C23,'Coverage Indicators_1B'!$B$11:$B$100,0))),\"\")","v":""},{"$f":"IFERROR(IF(INDEX('Coverage Indicators_1B'!Z$11:Z$100,MATCH($C23,'Coverage Indicators_1B'!$B$11:$B$100,0))=\"\",\"\",INDEX('Coverage Indicators_1B'!Z$11:Z$100,MATCH($C23,'Coverage Indicators_1B'!$B$11:$B$100,0))),\"\")","v":""},{"$f":"IFERROR(IF(INDEX('Coverage Indicators_1B'!AA$11:AA$100,MATCH($C23,'Coverage Indicators_1B'!$B$11:$B$100,0))=\"\",\"\",INDEX('Coverage Indicators_1B'!AA$11:AA$100,MATCH($C23,'Coverage Indicators_1B'!$B$11:$B$100,0))),\"\")","v":""},{"$f":"IFERROR(INDEX('Coverage Indicators_1B'!AB$11:AB$100,MATCH($C23,'Coverage Indicators_1B'!$B$11:$B$100,0)),\"\")","v":" "},{"$f":"IFERROR(IF(INDEX('Coverage Indicators_1B'!AC$11:AC$100,MATCH($C23,'Coverage Indicators_1B'!$B$11:$B$100,0))=\"\",\"\",INDEX('Coverage Indicators_1B'!AC$11:AC$100,MATCH($C23,'Coverage Indicators_1B'!$B$11:$B$100,0))),\"\")","v":""},{"$f":"IFERROR(IF(INDEX('Coverage Indicators_1B'!AD$11:AD$100,MATCH($C23,'Coverage Indicators_1B'!$B$11:$B$100,0))=\"\",\"\",INDEX('Coverage Indicators_1B'!AD$11:AD$100,MATCH($C23,'Coverage Indicators_1B'!$B$11:$B$100,0))),\"\")","v":""},{"$f":"IFERROR(INDEX('Coverage Indicators_1B'!AE$11:AE$100,MATCH($C23,'Coverage Indicators_1B'!$B$11:$B$100,0)),\"\")","v":"No Results Reported"},null,null,null,{"$f":"IFERROR(INDEX('Coverage Indicators_1B'!AI$11:AI$100,MATCH($C23,'Coverage Indicators_1B'!$B$11:$B$100,0)),\"\")","v":" "},{"$f":"IFERROR(INDEX('Coverage Indicators_1B'!AJ$11:AJ$100,MATCH($C23,'Coverage Indicators_1B'!$B$11:$B$100,0)),\"\")","v":0},{"$f":"IFERROR(INDEX('Coverage Indicators_1B'!AK$11:AK$100,MATCH($C23,'Coverage Indicators_1B'!$B$11:$B$100,0)),\"\")","v":"No Results Reported"},17,"No","Burundi",null,null,null,null,null,"PTMI","Prévention de la transmission de la mère à l'enfant (PTME)","Données du programme PNLS/IST, Sem 1"]
["a173600000BjggjAAB",17,"Coverage17","TB/HIV","TB/HIV-3.1: Pourcentage de personnes vivant avec le VIH pris en charge  (y compris soins PTME) chez qui les signes de la tuberculose ont été recherchés au sein des structures de soins ou traitement du VIH","TB/HIV-3.1: Percentage of people living with HIV in care (including PMTCT) who are screened for TB in HIV care or treatment settings",null,"TB/HIV-3.1: Pourcentage de personnes vivant avec le VIH pris en charge  (y compris soins PTME) chez qui les signes de la tuberculose ont été recherchés au sein des structures de soins ou traitement du VIH","TB/HIV-3.1: Porcentaje de personas que viven con el VIH recibiendo atención (incluyendo PTMI), que son tamizados para TB en los servicios de atención al VIH",null,"National","N-Non-cumulative",false,27472,61538,44.6,"2016","PNLS/IST Annual Report",38211,63685,60,"Numerator: Number of adults and children receiving HIV treatment who were screened for TB and had their result recorded during their most recent visit.\nDenominator: Total number of adults and children receiving HIV treatment during the reporting period.\n\nThe baseline figure of 44.6 percent (27,472/61,538) is based on the number of PLHIV in the ART patient cohort for 2016 who were screened for TB in the same year.\nA field visit will be required to check and approve the figures for 2017. For this reason, the 2016 figures have been used.\n\nThe targets come from the NSP 2018-2022, i.e. 60 percent in 2018 (37,905/63,175), 70 percent in 2019 (47,236/67,480, and 80 percent in 2020 (57,428/71,785).  The denominators have been adjusted to bring them in line with the funded ART patient cohort (approximately 63,685 patients each year: 60,685 ART patients, and approximately 3,000 pre-ART patients).  These figures are estimates. The denominators will be updated to reflect the actual values, and performance will be measured against the target as a percentage.\n\nAll PLHIV monitored at health care facilities are screened for TB. Service providers have received training on how to manage TB/HIV co-infection from both the NACP and the National Tuberculosis Control Program (NTCP). The NACP and the NTCP will carry out supportive supervision missions under this grant to ensure that service providers put what they have learned into practice (TB screening and isoniazid preventive therapy (IPT) for PLHIV testing negative). Efforts will be made under this grant to strengthen coordination and joint validation of TB/HIV data.",{"$f":"IFERROR(IF(INDEX('Coverage Indicators_1B'!Q$11:Q$100,MATCH($C24,'Coverage Indicators_1B'!$B$11:$B$100,0))=\"\",\"\",INDEX('Coverage Indicators_1B'!Q$11:Q$100,MATCH($C24,'Coverage Indicators_1B'!$B$11:$B$100,0))),\"\")","v":29841},{"$f":"IFERROR(IF(INDEX('Coverage Indicators_1B'!R$11:R$100,MATCH($C24,'Coverage Indicators_1B'!$B$11:$B$100,0))=\"\",\"\",INDEX('Coverage Indicators_1B'!R$11:R$100,MATCH($C24,'Coverage Indicators_1B'!$B$11:$B$100,0))),\"\")","v":64419},{"$f":"IFERROR(IF(INDEX('Coverage Indicators_1B'!S$11:S$100,MATCH($C24,'Coverage Indicators_1B'!$B$11:$B$100,0))=\"\",\"\",INDEX('Coverage Indicators_1B'!S$11:S$100,MATCH($C24,'Coverage Indicators_1B'!$B$11:$B$100,0))),\"\")","v":46.323289712662415},{"$f":"IFERROR(IF(INDEX('Coverage Indicators_1B'!T$11:T$100,MATCH($C24,'Coverage Indicators_1B'!$B$11:$B$100,0))=\"\",\"\",INDEX('Coverage Indicators_1B'!T$11:T$100,MATCH($C24,'Coverage Indicators_1B'!$B$11:$B$100,0))),\"\")","v":"HMIS"},{"$f":"IFERROR(INDEX('Coverage Indicators_1B'!U$11:U$100,MATCH($C24,'Coverage Indicators_1B'!$B$11:$B$100,0)),\"\")","v":0.77205482854437357},{"$f":"IFERROR(IF(INDEX('Coverage Indicators_1B'!V$11:V$100,MATCH($C24,'Coverage Indicators_1B'!$B$11:$B$100,0))=\"\",\"\",INDEX('Coverage Indicators_1B'!V$11:V$100,MATCH($C24,'Coverage Indicators_1B'!$B$11:$B$100,0))),\"\")","v":"Les résultats montrent qu'au cours de la période de janvier à juin 2018, 29841 PVVIH ont bénéficié d’un screening pour la TB ce qui correspond à 46.3% de réalisation.\nPar rapport à la cible (60%), le taux de performance est de 77%. \nComme accordé dans le cadre de performance, le dénominateur a été mis à jour (64419) sur la base des valeurs réelles.\nParmi les 29 841 PVVIH testés pour la tuberculose, 287 ont été testés positifs soit 0,9%.  \nCette performance s’explique par : \n• Une insuffisance en INH a été constatée depuis le mois de novembre 2017 ce qui a entraîné la diminution du nombre de screening. \nEn vue d'analyser toutes ces situations et  prendre des mesures appropriées pour améliorer la performance de cet indicateur, il est prévu un atelier du comité national de coinfection TB/VIH en date du 31 Juillet 2018. \nLe PNLS et le PNILT étant chargés de la mise en œuvre des recommandations formulées lors de différentes rencontres pour augmenter la couverture en screening, ils sont appelés à faire un suivi rapproché des prestations de coïnfection TB-VIH.    \n\nSource des données: cet indicateur a été renseigné par le rapport semestriel du PNLS  après consultation  de DHIS2"},{"$f":"IFERROR(IF(INDEX('Coverage Indicators_1B'!X$11:X$100,MATCH($C24,'Coverage Indicators_1B'!$B$11:$B$100,0))=\"\",\"\",INDEX('Coverage Indicators_1B'!X$11:X$100,MATCH($C24,'Coverage Indicators_1B'!$B$11:$B$100,0))),\"\")","v":""},{"$f":"IFERROR(IF(INDEX('Coverage Indicators_1B'!Y$11:Y$100,MATCH($C24,'Coverage Indicators_1B'!$B$11:$B$100,0))=\"\",\"\",INDEX('Coverage Indicators_1B'!Y$11:Y$100,MATCH($C24,'Coverage Indicators_1B'!$B$11:$B$100,0))),\"\")","v":""},{"$f":"IFERROR(IF(INDEX('Coverage Indicators_1B'!Z$11:Z$100,MATCH($C24,'Coverage Indicators_1B'!$B$11:$B$100,0))=\"\",\"\",INDEX('Coverage Indicators_1B'!Z$11:Z$100,MATCH($C24,'Coverage Indicators_1B'!$B$11:$B$100,0))),\"\")","v":""},{"$f":"IFERROR(IF(INDEX('Coverage Indicators_1B'!AA$11:AA$100,MATCH($C24,'Coverage Indicators_1B'!$B$11:$B$100,0))=\"\",\"\",INDEX('Coverage Indicators_1B'!AA$11:AA$100,MATCH($C24,'Coverage Indicators_1B'!$B$11:$B$100,0))),\"\")","v":""},{"$f":"IFERROR(INDEX('Coverage Indicators_1B'!AB$11:AB$100,MATCH($C24,'Coverage Indicators_1B'!$B$11:$B$100,0)),\"\")","v":" "},{"$f":"IFERROR(IF(INDEX('Coverage Indicators_1B'!AC$11:AC$100,MATCH($C24,'Coverage Indicators_1B'!$B$11:$B$100,0))=\"\",\"\",INDEX('Coverage Indicators_1B'!AC$11:AC$100,MATCH($C24,'Coverage Indicators_1B'!$B$11:$B$100,0))),\"\")","v":""},{"$f":"IFERROR(IF(INDEX('Coverage Indicators_1B'!AD$11:AD$100,MATCH($C24,'Coverage Indicators_1B'!$B$11:$B$100,0))=\"\",\"\",INDEX('Coverage Indicators_1B'!AD$11:AD$100,MATCH($C24,'Coverage Indicators_1B'!$B$11:$B$100,0))),\"\")","v":""},{"$f":"IFERROR(INDEX('Coverage Indicators_1B'!AE$11:AE$100,MATCH($C24,'Coverage Indicators_1B'!$B$11:$B$100,0)),\"\")","v":"No Results Reported"},null,null,null,{"$f":"IFERROR(INDEX('Coverage Indicators_1B'!AI$11:AI$100,MATCH($C24,'Coverage Indicators_1B'!$B$11:$B$100,0)),\"\")","v":" "},{"$f":"IFERROR(INDEX('Coverage Indicators_1B'!AJ$11:AJ$100,MATCH($C24,'Coverage Indicators_1B'!$B$11:$B$100,0)),\"\")","v":0},{"$f":"IFERROR(INDEX('Coverage Indicators_1B'!AK$11:AK$100,MATCH($C24,'Coverage Indicators_1B'!$B$11:$B$100,0)),\"\")","v":"No Results Reported"},18,"No","Burundi",null,null,null,null,null,"TB/VIH","Tuberculose/VIH","Rapport annuel PNLS/IST"]
["a173600000BjggkAAB",18,"Coverage18","TB/HIV","TB/HIV-4.1: Pourcentage de personnes vivant avec le VIH nouvellement enrollées dans les soins du VIH qui ont commencé le traitement préventif de la TB","TB/HIV-4.1: Percentage of people living with HIV newly enrolled in HIV care started on TB preventive therapy",null,"TB/HIV-4.1: Pourcentage de personnes vivant avec le VIH nouvellement enrollées dans les soins du VIH qui ont commencé le traitement préventif de la TB","TB/HIV-4.1: Porcentaje de nuevas personas con diagnóstico de VIH incorporadas a la atención que iniciaron terapia preventiva con Isoniacida (TPI)",null,"National","N-Non-cumulative",false,198,6166,3.2,"2017","PNLS/IST Programme Data, Sem 1",646.1,1846,35,"Numerator: Number of adults and children commencing HIV treatment for the first time (i.e. enrolled in treatment (pre-ART and ART)) and having already commenced IPT (i.e. having received at least one dose) during the reporting period.\nDenominator: Total number of adults and children commencing HIV treatment for the first time during the reporting period.\n\nThe baseline figure of 3.2 percent (198/6,166) comes from the progress update reports for the first half of 2017.\n\nThe estimated size of the ART patient cohort (ART and pre-ART) stands at 63,175 in 2018, 67,480 in 2019, and 71,785 in 2020 (based on a similar progression to the recorded rate in 2011-2015).  The number of people eligible for IPT (minus an estimated 0.19 percent to account for TB patients among PLHIV) is as follows: 63,055, 67,352 and 71,649.  These figures include an estimate of approx. 3,000 pre-ART patients.  These estimates exceed the estimates for the funded ART patient cohort (approx. 63,685 each year: 60,685 ART and 3,000 pre-ART).  The estimated new inclusions have been retained for this indicator, albeit dependent on whether or not government contributions for inclusions above the ART patient cohort materialize.\n\nThe quantifications are based on the total number of PLHIV enrolled in treatment who are eligible for IPT.  The denominator for this indicator refers to the number of newly enrolled PLHIV, based on the average annual progression rate for 2011-2015 (3,692) (financially feasible if the ART patient cohort funding requested via the PAAR is obtained and/or if the government’s contributions materialize).  The total number of PLHIV on IPT will be mentioned in the comments in reports.\n\nBurundi has opted to scale up this strategy across the country under this grant (2018-2020). This, in turn, will allow the country to achieve the IPT coverage targets among newly enrolled HIV patients who receive a negative TB screening result: 70 percent (2,584/3,692) in 2018, 75 percent (2,769/3,692) in 2019, and 80 percent (2,953/3,692) in 2020.  Given that past performance on IPT scale-up has fallen short of expectations (2016-2017), allocated funding stands at half the actual targets.  The performance framework targets (which align with PSM figures) are therefore 35 percent, 38 percent and 40 percent.  The denominators are estimated figures and will be updated during reporting.  Performance will be measured against the target as a percentage.\n\nPersonnel have received training on the strategy as part of TB/HIV co-infection management. The NACP and the NTCP will carry out supportive supervision missions under this grant to ensure that service providers put what they have learned into practice (TB screening and IPT for PLHIV testing negative).  Efforts will be made under this grant to strengthen coordination and joint validation of TB/HIV data.\n\nThe NTCP will supply isoniazid (INH), which will be funded by the Global Fund.",{"$f":"IFERROR(IF(INDEX('Coverage Indicators_1B'!Q$11:Q$100,MATCH($C25,'Coverage Indicators_1B'!$B$11:$B$100,0))=\"\",\"\",INDEX('Coverage Indicators_1B'!Q$11:Q$100,MATCH($C25,'Coverage Indicators_1B'!$B$11:$B$100,0))),\"\")","v":184},{"$f":"IFERROR(IF(INDEX('Coverage Indicators_1B'!R$11:R$100,MATCH($C25,'Coverage Indicators_1B'!$B$11:$B$100,0))=\"\",\"\",INDEX('Coverage Indicators_1B'!R$11:R$100,MATCH($C25,'Coverage Indicators_1B'!$B$11:$B$100,0))),\"\")","v":1846},{"$f":"IFERROR(IF(INDEX('Coverage Indicators_1B'!S$11:S$100,MATCH($C25,'Coverage Indicators_1B'!$B$11:$B$100,0))=\"\",\"\",INDEX('Coverage Indicators_1B'!S$11:S$100,MATCH($C25,'Coverage Indicators_1B'!$B$11:$B$100,0))),\"\")","v":9.967497291440953},{"$f":"IFERROR(IF(INDEX('Coverage Indicators_1B'!T$11:T$100,MATCH($C25,'Coverage Indicators_1B'!$B$11:$B$100,0))=\"\",\"\",INDEX('Coverage Indicators_1B'!T$11:T$100,MATCH($C25,'Coverage Indicators_1B'!$B$11:$B$100,0))),\"\")","v":""},{"$f":"IFERROR(INDEX('Coverage Indicators_1B'!U$11:U$100,MATCH($C25,'Coverage Indicators_1B'!$B$11:$B$100,0)),\"\")","v":0.28478563689831293},{"$f":"IFERROR(IF(INDEX('Coverage Indicators_1B'!V$11:V$100,MATCH($C25,'Coverage Indicators_1B'!$B$11:$B$100,0))=\"\",\"\",INDEX('Coverage Indicators_1B'!V$11:V$100,MATCH($C25,'Coverage Indicators_1B'!$B$11:$B$100,0))),\"\")","v":"Sur un total de 29841 patients ayant bénéficié du screening de la TB pour la période de janvier-juin 2018, 184 ont bénéficié la prophylaxie à l’INH sur un total de 1846 attendus selon le Cadre de Performance. Cependant, dans le cadre de performance, il était convenu que le dénominateur soit mis à jour lors du rapportage avec des données réelles. Cette donnée n’est pas vérifiable dans DHIS2. Elle est estimée selon le calcul suivant : \nConformément à la définition de l’indicateur dont le dénominateur est le nombre total d’adultes et d’enfants nouvellement pris en charge pour le VIH au cours de la période de rapportage, le nombre de nouveaux cas pris en charge au cours de la période devrait etre calculé comme suit : \n64419 (PVVIH sous ARV au 30 juin 2018) - 60115 (PVVIH sous ARV au 31 décembre 2017 selon le PUDR) =4304 cas. \nUne insuffisance en INH a été constatée depuis le mois de novembre 2017 ce qui a entraîné la diminution du nombre de screening et a impacté négativement la performance de cet indicateur. \nCompte tenu des manquements constatés , le PNUD se propose d'appuyer le PNLS dans son plaidoyer auprès  de la DSNIS pour intégrer dans DHIS2 l’indicateur en rapport avec les PVVIH screenés négatif parmi les nouveaux cas enrôlés au traitement ARV. D’autre part, l’indicateur en rapport avec les nouveaux PVVIH enrôlés au traitement ARV devrait figurer parmi les indicateurs à renseigner au FM. Il est important que le PNILT et PNLS renforce leurs supervisions formatives conjointes afin de redynamiser les interventions conjointes de lutte  contre la confection TBVIH(screenining de la TB et la prophylaxie à l'INH des PVVIH screenés négatifs).\n\nSource des données: cet indicateur a été renseigné par le rapport semestriel du PNLS "},{"$f":"IFERROR(IF(INDEX('Coverage Indicators_1B'!X$11:X$100,MATCH($C25,'Coverage Indicators_1B'!$B$11:$B$100,0))=\"\",\"\",INDEX('Coverage Indicators_1B'!X$11:X$100,MATCH($C25,'Coverage Indicators_1B'!$B$11:$B$100,0))),\"\")","v":""},{"$f":"IFERROR(IF(INDEX('Coverage Indicators_1B'!Y$11:Y$100,MATCH($C25,'Coverage Indicators_1B'!$B$11:$B$100,0))=\"\",\"\",INDEX('Coverage Indicators_1B'!Y$11:Y$100,MATCH($C25,'Coverage Indicators_1B'!$B$11:$B$100,0))),\"\")","v":""},{"$f":"IFERROR(IF(INDEX('Coverage Indicators_1B'!Z$11:Z$100,MATCH($C25,'Coverage Indicators_1B'!$B$11:$B$100,0))=\"\",\"\",INDEX('Coverage Indicators_1B'!Z$11:Z$100,MATCH($C25,'Coverage Indicators_1B'!$B$11:$B$100,0))),\"\")","v":""},{"$f":"IFERROR(IF(INDEX('Coverage Indicators_1B'!AA$11:AA$100,MATCH($C25,'Coverage Indicators_1B'!$B$11:$B$100,0))=\"\",\"\",INDEX('Coverage Indicators_1B'!AA$11:AA$100,MATCH($C25,'Coverage Indicators_1B'!$B$11:$B$100,0))),\"\")","v":""},{"$f":"IFERROR(INDEX('Coverage Indicators_1B'!AB$11:AB$100,MATCH($C25,'Coverage Indicators_1B'!$B$11:$B$100,0)),\"\")","v":" "},{"$f":"IFERROR(IF(INDEX('Coverage Indicators_1B'!AC$11:AC$100,MATCH($C25,'Coverage Indicators_1B'!$B$11:$B$100,0))=\"\",\"\",INDEX('Coverage Indicators_1B'!AC$11:AC$100,MATCH($C25,'Coverage Indicators_1B'!$B$11:$B$100,0))),\"\")","v":""},{"$f":"IFERROR(IF(INDEX('Coverage Indicators_1B'!AD$11:AD$100,MATCH($C25,'Coverage Indicators_1B'!$B$11:$B$100,0))=\"\",\"\",INDEX('Coverage Indicators_1B'!AD$11:AD$100,MATCH($C25,'Coverage Indicators_1B'!$B$11:$B$100,0))),\"\")","v":""},{"$f":"IFERROR(INDEX('Coverage Indicators_1B'!AE$11:AE$100,MATCH($C25,'Coverage Indicators_1B'!$B$11:$B$100,0)),\"\")","v":"No Results Reported"},null,null,null,{"$f":"IFERROR(INDEX('Coverage Indicators_1B'!AI$11:AI$100,MATCH($C25,'Coverage Indicators_1B'!$B$11:$B$100,0)),\"\")","v":" "},{"$f":"IFERROR(INDEX('Coverage Indicators_1B'!AJ$11:AJ$100,MATCH($C25,'Coverage Indicators_1B'!$B$11:$B$100,0)),\"\")","v":0},{"$f":"IFERROR(INDEX('Coverage Indicators_1B'!AK$11:AK$100,MATCH($C25,'Coverage Indicators_1B'!$B$11:$B$100,0)),\"\")","v":"No Results Reported"},19,"No","Burundi",null,null,null,null,null,"TB/VIH","Tuberculose/VIH","Données du programme PNLS/IST Sem 1"]
["a173600000BjgglAAB",19,"Coverage19","HIV Testing Services","HTS-1: Nombre de personnes dépistées pour le VIH et ayant reçu leurs résultats durant la période de rapportage","HTS-1: Number of people who were tested for HIV and received their results during the reporting period",null,"HTS-1: Nombre de personnes dépistées pour le VIH et ayant reçu leurs résultats durant la période de rapportage","HTS-1: Número de personas que fueron tamizadas para VIH y recibieron sus resultados durante el periodo de reporte",null,"National","Y- Cumulative annually",false,704199,null,null,"2017","PNLS/IST Programme Data, Sem 1",537675,null,null,"Numerator: Number of people who received an HIV test during the reporting period and who know their result.\n\nThe numerator and denominator include pregnant women, MSM and SWs.\n\nThe baseline figure of 12.3 percent (704,199/5,710,115) comes from the progress update report for the first half of 2017.\n\nThe targets mentioned here come from the NSP 2018-2022, i.e. 24 percent (1,408,800/5,869,998) in 2018, 26 percent (1,568,933/6,034,358) in 2019, and 28 percent (1,736,930/6,203,320) in 2020.\n\nThe following interventions are planned: strengthening screening (fixed and mobile strategy), with an emphasis on pregnant women, key populations (SWs, MSM and people who inject drugs), other vulnerable groups (mobile populations, etc.) and areas of the country where HIV prevalence is high; and improving the availability of screening supplies at all levels.\n\nThe Global Fund contribution is 222-255K tests per year, and the PEPFAR contribution is 852-868K tests per year (including tests for pregnant women).  The national targets are as follows: 1,408,000 in 2018, 1,568,933 in 2019, and 1,736,930 in 2020.  This leaves a gap of 333,450 tests in 2018, 471,206 tests in 2019, and 615,978 tests in 2020 (1,420,634 tests in total). A request for this gap has been made via the PAAR.",{"$f":"IFERROR(IF(INDEX('Coverage Indicators_1B'!Q$11:Q$100,MATCH($C26,'Coverage Indicators_1B'!$B$11:$B$100,0))=\"\",\"\",INDEX('Coverage Indicators_1B'!Q$11:Q$100,MATCH($C26,'Coverage Indicators_1B'!$B$11:$B$100,0))),\"\")","v":938645},{"$f":"IFERROR(IF(INDEX('Coverage Indicators_1B'!R$11:R$100,MATCH($C26,'Coverage Indicators_1B'!$B$11:$B$100,0))=\"\",\"\",INDEX('Coverage Indicators_1B'!R$11:R$100,MATCH($C26,'Coverage Indicators_1B'!$B$11:$B$100,0))),\"\")","v":""},{"$f":"IFERROR(IF(INDEX('Coverage Indicators_1B'!S$11:S$100,MATCH($C26,'Coverage Indicators_1B'!$B$11:$B$100,0))=\"\",\"\",INDEX('Coverage Indicators_1B'!S$11:S$100,MATCH($C26,'Coverage Indicators_1B'!$B$11:$B$100,0))),\"\")","v":""},{"$f":"IFERROR(IF(INDEX('Coverage Indicators_1B'!T$11:T$100,MATCH($C26,'Coverage Indicators_1B'!$B$11:$B$100,0))=\"\",\"\",INDEX('Coverage Indicators_1B'!T$11:T$100,MATCH($C26,'Coverage Indicators_1B'!$B$11:$B$100,0))),\"\")","v":"HMIS"},{"$f":"IFERROR(INDEX('Coverage Indicators_1B'!U$11:U$100,MATCH($C26,'Coverage Indicators_1B'!$B$11:$B$100,0)),\"\")","v":1.2},{"$f":"IFERROR(IF(INDEX('Coverage Indicators_1B'!V$11:V$100,MATCH($C26,'Coverage Indicators_1B'!$B$11:$B$100,0))=\"\",\"\",INDEX('Coverage Indicators_1B'!V$11:V$100,MATCH($C26,'Coverage Indicators_1B'!$B$11:$B$100,0))),\"\")","v":"Pour la période de janvier à Juin 2018, 951 074 personnes ont réalisé le test de dépistage contre 537675 qui étaient attendus dans le cadre de performance. Parmi eux, 33,5% étaient des hommes et 66,5% des femmes. Parmi ceux qui ont réalisé le test,  938 645 (98,7%) ont récupéré les résultats. \n\nCette performance s'explique par:\n- Les activités de dépistage en stratégies avancées qui ont été réalisées dans toutes les provinces du pays\n- Les ateliers de formation sur le dépistage initié par le prestataire qui auraient amenés les prestataires à réaliser plus de dépistages ciblés;\n- Le fait que les séances de counseling sont systématiques et que les résultats sont remis le même jour (juste après le dépistage),  augmenterait le nombre de personnes qui récupèrent les résultats.\n\nSource des données: cet indicateur a été renseigné par le rapport semestriel du PNLS  après consultation  de DHIS2\nSignalons que parmi les personnes testées, 5984 ont été positives soit une séroprévalence de 0,6%.\n"},{"$f":"IFERROR(IF(INDEX('Coverage Indicators_1B'!X$11:X$100,MATCH($C26,'Coverage Indicators_1B'!$B$11:$B$100,0))=\"\",\"\",INDEX('Coverage Indicators_1B'!X$11:X$100,MATCH($C26,'Coverage Indicators_1B'!$B$11:$B$100,0))),\"\")","v":""},{"$f":"IFERROR(IF(INDEX('Coverage Indicators_1B'!Y$11:Y$100,MATCH($C26,'Coverage Indicators_1B'!$B$11:$B$100,0))=\"\",\"\",INDEX('Coverage Indicators_1B'!Y$11:Y$100,MATCH($C26,'Coverage Indicators_1B'!$B$11:$B$100,0))),\"\")","v":""},{"$f":"IFERROR(IF(INDEX('Coverage Indicators_1B'!Z$11:Z$100,MATCH($C26,'Coverage Indicators_1B'!$B$11:$B$100,0))=\"\",\"\",INDEX('Coverage Indicators_1B'!Z$11:Z$100,MATCH($C26,'Coverage Indicators_1B'!$B$11:$B$100,0))),\"\")","v":""},{"$f":"IFERROR(IF(INDEX('Coverage Indicators_1B'!AA$11:AA$100,MATCH($C26,'Coverage Indicators_1B'!$B$11:$B$100,0))=\"\",\"\",INDEX('Coverage Indicators_1B'!AA$11:AA$100,MATCH($C26,'Coverage Indicators_1B'!$B$11:$B$100,0))),\"\")","v":""},{"$f":"IFERROR(INDEX('Coverage Indicators_1B'!AB$11:AB$100,MATCH($C26,'Coverage Indicators_1B'!$B$11:$B$100,0)),\"\")","v":" "},{"$f":"IFERROR(IF(INDEX('Coverage Indicators_1B'!AC$11:AC$100,MATCH($C26,'Coverage Indicators_1B'!$B$11:$B$100,0))=\"\",\"\",INDEX('Coverage Indicators_1B'!AC$11:AC$100,MATCH($C26,'Coverage Indicators_1B'!$B$11:$B$100,0))),\"\")","v":""},{"$f":"IFERROR(IF(INDEX('Coverage Indicators_1B'!AD$11:AD$100,MATCH($C26,'Coverage Indicators_1B'!$B$11:$B$100,0))=\"\",\"\",INDEX('Coverage Indicators_1B'!AD$11:AD$100,MATCH($C26,'Coverage Indicators_1B'!$B$11:$B$100,0))),\"\")","v":""},{"$f":"IFERROR(INDEX('Coverage Indicators_1B'!AE$11:AE$100,MATCH($C26,'Coverage Indicators_1B'!$B$11:$B$100,0)),\"\")","v":"No Results Reported"},null,null,null,{"$f":"IFERROR(INDEX('Coverage Indicators_1B'!AI$11:AI$100,MATCH($C26,'Coverage Indicators_1B'!$B$11:$B$100,0)),\"\")","v":" "},{"$f":"IFERROR(INDEX('Coverage Indicators_1B'!AJ$11:AJ$100,MATCH($C26,'Coverage Indicators_1B'!$B$11:$B$100,0)),\"\")","v":0},{"$f":"IFERROR(INDEX('Coverage Indicators_1B'!AK$11:AK$100,MATCH($C26,'Coverage Indicators_1B'!$B$11:$B$100,0)),\"\")","v":"No Results Reported"},20,"No","Burundi",null,null,null,null,null,"Servicios de diagnóstico de VIH","Services de dépistage du VIH","Données du programme\nPNLS/IST Sem 1"]
["a173600000BjggmAAB",20,"Coverage20","Comprehensive prevention programs for MSM","KP-1a(M): Pourcentage d'hommes ayant des rapports sexuels avec des hommes qui ont bénéficié de programmes de prévention du VIH (paquet de services définis)","KP-1a(M): Percentage of men who have sex with men reached with HIV prevention programs - defined package of services",null,"KP-1a(M): Pourcentage d'hommes ayant des rapports sexuels avec des hommes qui ont bénéficié de programmes de prévention du VIH (paquet de services définis)","KP-1a(M): Porcentaje de hombres que tienen relaciones sexuales con hombres cubiertos por programas de prevención del VIH (paquetes definidos de servicios)",null,"National","Y- Cumulative annually",false,1833,10035,18.3,"2016","CRB Programme Data, Sem 2",4156.5,10522,39.5,"Numerator: Number of MSM who have benefited from HIV prevention programs (information, education and communication (IEC)/behavior change communication (BCC), condoms, gels, referral and support - screening, STIs, pre-ART and ART).\nDenominator: Total estimated number of MSM at the national level. \n\nThe country’s annual targets come from the NSP 2018-2022, i.e. 79 percent (8,313/10,522) in 2018, 81 percent (8,728/10,775) in 2019, and 83 percent (9,158/11,034) in 2020. The denominator is calculated by applying a 2.4 percent progression rate to the 2016 baseline figure of 10,035, which gives 10,552 in 2018, 10,775 in 2019, and 11,034 in 2020.\n\nUnder the current grant (2015-2017), BRC has set up interventions for MSM in seven provinces (Gitega, Cibitoke, Rumonge, Makamba, Bujumbura Mairie, Ngozi and Kayanza). This new grant (2018-2020) will cover four provinces in 2018-2019 (Cibitoke, Gitega, Rumonge and Makamba) and, in 2020, will support strengthening of seven community centers to target MSM in the seven provinces (since the PEPFAR-funded Linkages Project will end in 2019). Half-yearly coordination meetings will continue to be held in the provinces covered by MSM organizations and workers involved with this community.\n\nThe numerator will be reported via program data (registers/records and PE reports), from interventions funded by PEPFAR and the Global Fund.  Efforts to harmonize the prevention package and reporting tools and mechanisms are ongoing.  Global Fund-funded activities will be implemented via a network of 180 MSM PEs (the Association Nationale de Soutien aux Séropositifs et Malades du Sida [National Support Association for HIV Patients – ANSS], which has extensive experience in implementing MSM interventions, has been chosen as a sub-recipient (SSR)).   180 PE have been budgeted each year - however, the minimum required number of PE, according to the targets, is: 99, 107 and 116 PE in 2018, 2019 and 2020.  Each PE will need to educate at least four new people per month.  Each person reached by this intervention will be educated on at least four themes (including condom and gel distribution), at four sessions over a period of one month (if the MSM is mobile and cannot attend four sessions, then a longer session covering multiple themes may be conducted).  The PE may deliver these sessions to peers individually or in small groups.  The PE will have the freedom to remain in regular contact with educated peers outside the four sessions, and may also record details of regular contacts in the reporting tools. \n\nThe Global Fund contribution is as follows: 4,735 (45 percent) in 2018, 5,150 (48 percent) in 2019, and 5,580 (51 percent) in 2020. PEPFAR’s annual contribution is 3,578 in 2018 and 2019 (34 percent in 2018 and 33 percent in 2019). In 2020, BRC will increase its contribution to cover all seven provinces with a high concentration of MSM (according to the PLACE 2013 study, i.e. Bujumbura Mairie, Cibitoke, Kayanza, Ngozi, Gitega, Rumonge and Makamba), since the PEPFAR-funded Linkages Project will end in 2019. PEPFAR’s intervention covers 69 percent of the target in the following five provinces: Bujumbura Mairie, Bujumbura Rural, Kayanza, Ngozi and Kirundo.  \n\nIn terms of programmatic gaps, available supplies of condoms and lubricant gels are insufficient to set aside a buffer stock. For the first year, 25 percent of needs are included in the PAAR. \n\nEach contact will receive eight male condoms and eight gels, but this figure may be adjusted where necessary.  The quantified number of male condoms per MSM per year is 96 on average, with a ratio of one male condom to one gel.  The ratio for female condoms is 0.48 on average, although this figure is flexible depending on recipient needs.  The male and female condoms and gels will also be available on demand at fixed locations (bars, hotels/guest houses, universities/university campuses, etc.).\n\nPEs currently have access to all reporting tools. The focus for the 2018-2020 grant will be on producing more data collection tools and distributing them to MSM PEs.\n\nEach new person will be counted in the PE report, and each person will be included in the figures once they have received awareness-raising on the four themes concerned.  The PEs will submit their reports on a monthly basis, and the nongovernmental organizations (NGOs) will submit quarterly reports to the principal recipient (PR). Data verification and audit missions will take place at the end of each half-year period.",{"$f":"IFERROR(IF(INDEX('Coverage Indicators_1B'!Q$11:Q$100,MATCH($C27,'Coverage Indicators_1B'!$B$11:$B$100,0))=\"\",\"\",INDEX('Coverage Indicators_1B'!Q$11:Q$100,MATCH($C27,'Coverage Indicators_1B'!$B$11:$B$100,0))),\"\")","v":4351},{"$f":"IFERROR(IF(INDEX('Coverage Indicators_1B'!R$11:R$100,MATCH($C27,'Coverage Indicators_1B'!$B$11:$B$100,0))=\"\",\"\",INDEX('Coverage Indicators_1B'!R$11:R$100,MATCH($C27,'Coverage Indicators_1B'!$B$11:$B$100,0))),\"\")","v":10522},{"$f":"IFERROR(IF(INDEX('Coverage Indicators_1B'!S$11:S$100,MATCH($C27,'Coverage Indicators_1B'!$B$11:$B$100,0))=\"\",\"\",INDEX('Coverage Indicators_1B'!S$11:S$100,MATCH($C27,'Coverage Indicators_1B'!$B$11:$B$100,0))),\"\")","v":41.351454096179438},{"$f":"IFERROR(IF(INDEX('Coverage Indicators_1B'!T$11:T$100,MATCH($C27,'Coverage Indicators_1B'!$B$11:$B$100,0))=\"\",\"\",INDEX('Coverage Indicators_1B'!T$11:T$100,MATCH($C27,'Coverage Indicators_1B'!$B$11:$B$100,0))),\"\")","v":"Reports (specify)"},{"$f":"IFERROR(INDEX('Coverage Indicators_1B'!U$11:U$100,MATCH($C27,'Coverage Indicators_1B'!$B$11:$B$100,0)),\"\")","v":1.0468722555994794},{"$f":"IFERROR(IF(INDEX('Coverage Indicators_1B'!V$11:V$100,MATCH($C27,'Coverage Indicators_1B'!$B$11:$B$100,0))=\"\",\"\",INDEX('Coverage Indicators_1B'!V$11:V$100,MATCH($C27,'Coverage Indicators_1B'!$B$11:$B$100,0))),\"\")","v":"Sur un nombre de HSH estimé à 10522 au niveau national, la CRB et ses partenaires comptaient toucher 4156 (soit 39.5%) pour la période de Janvier à Juin 2018. Cependant, le paquet de service de prévention a été offert à 4351 HSH soit   2 552 issus des Pairs Éducateurs (PE) HSH des provinces d’intervention de la CRB et 1799 encadré par Le projet Linkages financé par PEPFAR. \nLe taux de réalisation est de 41,3% soit une performance de 105%. Nous constatons que les HSH ont répondu favorablement aux services de prévention au cours de la période de rapportage. \nSignalons que la CRB intervient dans les Provinces de Makamba, Rumonge, Cibitoke et Gitega tandis que le Projet Linkages intervient dans Bujumbura Mairie, Kayanza, Ngozi Bujumbura (Rural) et Kirundo. Ces zones d’interventions étant séparées, la probabilité de doublons dans le rapportage est minime.  \n\nSource: Rappport CRB"},{"$f":"IFERROR(IF(INDEX('Coverage Indicators_1B'!X$11:X$100,MATCH($C27,'Coverage Indicators_1B'!$B$11:$B$100,0))=\"\",\"\",INDEX('Coverage Indicators_1B'!X$11:X$100,MATCH($C27,'Coverage Indicators_1B'!$B$11:$B$100,0))),\"\")","v":""},{"$f":"IFERROR(IF(INDEX('Coverage Indicators_1B'!Y$11:Y$100,MATCH($C27,'Coverage Indicators_1B'!$B$11:$B$100,0))=\"\",\"\",INDEX('Coverage Indicators_1B'!Y$11:Y$100,MATCH($C27,'Coverage Indicators_1B'!$B$11:$B$100,0))),\"\")","v":""},{"$f":"IFERROR(IF(INDEX('Coverage Indicators_1B'!Z$11:Z$100,MATCH($C27,'Coverage Indicators_1B'!$B$11:$B$100,0))=\"\",\"\",INDEX('Coverage Indicators_1B'!Z$11:Z$100,MATCH($C27,'Coverage Indicators_1B'!$B$11:$B$100,0))),\"\")","v":""},{"$f":"IFERROR(IF(INDEX('Coverage Indicators_1B'!AA$11:AA$100,MATCH($C27,'Coverage Indicators_1B'!$B$11:$B$100,0))=\"\",\"\",INDEX('Coverage Indicators_1B'!AA$11:AA$100,MATCH($C27,'Coverage Indicators_1B'!$B$11:$B$100,0))),\"\")","v":""},{"$f":"IFERROR(INDEX('Coverage Indicators_1B'!AB$11:AB$100,MATCH($C27,'Coverage Indicators_1B'!$B$11:$B$100,0)),\"\")","v":" "},{"$f":"IFERROR(IF(INDEX('Coverage Indicators_1B'!AC$11:AC$100,MATCH($C27,'Coverage Indicators_1B'!$B$11:$B$100,0))=\"\",\"\",INDEX('Coverage Indicators_1B'!AC$11:AC$100,MATCH($C27,'Coverage Indicators_1B'!$B$11:$B$100,0))),\"\")","v":""},{"$f":"IFERROR(IF(INDEX('Coverage Indicators_1B'!AD$11:AD$100,MATCH($C27,'Coverage Indicators_1B'!$B$11:$B$100,0))=\"\",\"\",INDEX('Coverage Indicators_1B'!AD$11:AD$100,MATCH($C27,'Coverage Indicators_1B'!$B$11:$B$100,0))),\"\")","v":""},{"$f":"IFERROR(INDEX('Coverage Indicators_1B'!AE$11:AE$100,MATCH($C27,'Coverage Indicators_1B'!$B$11:$B$100,0)),\"\")","v":"No Results Reported"},null,null,null,{"$f":"IFERROR(INDEX('Coverage Indicators_1B'!AI$11:AI$100,MATCH($C27,'Coverage Indicators_1B'!$B$11:$B$100,0)),\"\")","v":" "},{"$f":"IFERROR(INDEX('Coverage Indicators_1B'!AJ$11:AJ$100,MATCH($C27,'Coverage Indicators_1B'!$B$11:$B$100,0)),\"\")","v":0},{"$f":"IFERROR(INDEX('Coverage Indicators_1B'!AK$11:AK$100,MATCH($C27,'Coverage Indicators_1B'!$B$11:$B$100,0)),\"\")","v":"No Results Reported"},21,"No","Burundi",null,null,null,null,null,"Programas de prevención integral para hombres que tienen relaciones sexuales con hombres","Programmes de prévention complets destinés aux hommes ayant des rapports sexuels avec des hommes (HSH)","Données du programme CRB, Sem 2"]
["a173600000BjggnAAB",21,"Coverage21","Comprehensive prevention programs for MSM","KP-3a(M): Nombre et pourcentage d'hommes ayant des rapports sexuels avec des hommes qui ont fait un test VIH et connaissent les résultats","KP-3a(M): Percentage of men who have sex with men that have received an HIV test during the reporting period and know their results",null,"KP-3a(M): Nombre et pourcentage d'hommes ayant des rapports sexuels avec des hommes qui ont fait un test VIH et connaissent les résultats","KP-3a(M): Porcentaje de hombres que tienen relaciones sexuales con hombres que se han sometido a pruebas de VIH durante el período de informe y conocen los resultados",null,"National","Y- Cumulative annually",false,975,10035,9.6999999999999993,"2016","CRB Programme Data, Sem 2",3524.87,10522,33.5,"Numerator: Number of MSM who took an HIV test during the reporting period and who know their result.\nDenominator: Total estimated number of MSM at the national level. \n\nThe number of MSM requiring an HIV test each year under this grant has been calculated by multiplying the number of MSM reached annually by BCC activities by the HIV test coverage rate among MSM. The NSP targets stand at 67 percent in 2018, 68 percent in 2019, and 69 percent in 2020. This gives the following totals (MSM requiring a test) for this grant: 3,172 in 2018, 3,502 in 2019, and 9,158 in 2020. The Linkages Project target is 3,578 in 2018 and 2019. Since the project will come to an end in 2019, BRC will increase its contributions and cover all seven provinces (Bujumbura Mairie, Cibitoke, Kayanza, Ngozi, Rumonge, Makamba and Gitega). Because this is a national indicator, BRC’s data will be added to figures from the PEPFAR-funded Linkages Project.\n\nThe recommendation is for MSM to be tested every six months. The PEs will pass on this message to MSM, and will monitor MSM on a regular basis to help them access HIV screening services. MSM will receive HIV tests at community centers, which also offer testing via mobile strategies.  Moreover, testing will be available at health care facilities in the areas covered by the interventions. These facilities will be asked to forward data on key populations to BRC and to the NACP.  In addition:\n- referral coupons will be handed out at PE sessions, so that the number of referrals can be counted (to be inserted as a comment in the PUDRs);\n- PEs will document the number of MSM attending awareness-raising sessions who report having taken an HIV test at least once during the last six months. \nMale and female condoms and gels will also be offered during voluntary counseling and testing (VCT) sessions.  The PEs will recommend that the beneficiaries take at least two HIV tests per year.\n\nFor 2018 and 2019, this grant will cover access to HIV tests for MSM in the provinces not covered by PEPFAR (3,172 and 3,502 respectively, in Gitega, Cibitoke, Rumonge and Makamba). For 2020, the grant will cover all seven provinces (7,428 in Gitega, Cibitoke, Rumonge, Makamba, Bujumbura Mairie, Ngozi and Kayanza), since the PEPFAR-funded Linkages Project will end in 2019.\nThe indicator will relate to the number of HIV tests administered, and may therefore include some MSM who have taken more than one test in the same year. \n\nThe programmatic gaps (compared with the estimated number of MSM at the national level) are as follows: 4,758 (55 percent) in 2018, 5,253 (51 percent) in 2019, and 5,775 (48 percent) in 2020.  \n\nWith regard to the national program outcomes, the total number of MSM tested under this grant will be added to the number of MSM tested under other projects (such as the PEPFAR project). Reference will be made to this fact in the PUDR. \nPEs currently have access to all reporting tools. The focus for the 2018-2020 grant will be on producing more data collection tools and distributing them to MSM PEs.",{"$f":"IFERROR(IF(INDEX('Coverage Indicators_1B'!Q$11:Q$100,MATCH($C28,'Coverage Indicators_1B'!$B$11:$B$100,0))=\"\",\"\",INDEX('Coverage Indicators_1B'!Q$11:Q$100,MATCH($C28,'Coverage Indicators_1B'!$B$11:$B$100,0))),\"\")","v":2594},{"$f":"IFERROR(IF(INDEX('Coverage Indicators_1B'!R$11:R$100,MATCH($C28,'Coverage Indicators_1B'!$B$11:$B$100,0))=\"\",\"\",INDEX('Coverage Indicators_1B'!R$11:R$100,MATCH($C28,'Coverage Indicators_1B'!$B$11:$B$100,0))),\"\")","v":10522},{"$f":"IFERROR(IF(INDEX('Coverage Indicators_1B'!S$11:S$100,MATCH($C28,'Coverage Indicators_1B'!$B$11:$B$100,0))=\"\",\"\",INDEX('Coverage Indicators_1B'!S$11:S$100,MATCH($C28,'Coverage Indicators_1B'!$B$11:$B$100,0))),\"\")","v":24.653107774187415},{"$f":"IFERROR(IF(INDEX('Coverage Indicators_1B'!T$11:T$100,MATCH($C28,'Coverage Indicators_1B'!$B$11:$B$100,0))=\"\",\"\",INDEX('Coverage Indicators_1B'!T$11:T$100,MATCH($C28,'Coverage Indicators_1B'!$B$11:$B$100,0))),\"\")","v":"Reports (specify)"},{"$f":"IFERROR(INDEX('Coverage Indicators_1B'!U$11:U$100,MATCH($C28,'Coverage Indicators_1B'!$B$11:$B$100,0)),\"\")","v":0.73591366490111687},{"$f":"IFERROR(IF(INDEX('Coverage Indicators_1B'!V$11:V$100,MATCH($C28,'Coverage Indicators_1B'!$B$11:$B$100,0))=\"\",\"\",INDEX('Coverage Indicators_1B'!V$11:V$100,MATCH($C28,'Coverage Indicators_1B'!$B$11:$B$100,0))),\"\")","v":"Sur un nombre d'hommes ayant des rapports sexuels avec les hommes (HSH) estimé à 10522 au niveau national, la CRB et ses partenaires comptaient dépister 3524 (soit 33.5%) pour la période de Janvier à Juin 2018. Cependant, seuls 2594 HSH ont été dépisté et connaissent leur statut sérologique. Le taux de réalisation est alors de 24,6% soit une performance de 74% \nCette performance  s’explique par une réticence des HSH à utiliser les services de santé pour le dépistage au VIH. Pour y remédier il est nécessaire qu’il soit créés des centres de dépistage qui offrent plus d’intimité pour cette categorie de personnes (services de dépistage au niveau des centres de convivialité, le dépistage en stratégie mobile etc). D’autre part, l’adoption de la stratégie autotest pour le dépistage du VIH pourrait permettre de dépister les HSH qui auraient peur d’utiliser les services de santé.   \n\nSource: rapport CRB"},{"$f":"IFERROR(IF(INDEX('Coverage Indicators_1B'!X$11:X$100,MATCH($C28,'Coverage Indicators_1B'!$B$11:$B$100,0))=\"\",\"\",INDEX('Coverage Indicators_1B'!X$11:X$100,MATCH($C28,'Coverage Indicators_1B'!$B$11:$B$100,0))),\"\")","v":""},{"$f":"IFERROR(IF(INDEX('Coverage Indicators_1B'!Y$11:Y$100,MATCH($C28,'Coverage Indicators_1B'!$B$11:$B$100,0))=\"\",\"\",INDEX('Coverage Indicators_1B'!Y$11:Y$100,MATCH($C28,'Coverage Indicators_1B'!$B$11:$B$100,0))),\"\")","v":""},{"$f":"IFERROR(IF(INDEX('Coverage Indicators_1B'!Z$11:Z$100,MATCH($C28,'Coverage Indicators_1B'!$B$11:$B$100,0))=\"\",\"\",INDEX('Coverage Indicators_1B'!Z$11:Z$100,MATCH($C28,'Coverage Indicators_1B'!$B$11:$B$100,0))),\"\")","v":""},{"$f":"IFERROR(IF(INDEX('Coverage Indicators_1B'!AA$11:AA$100,MATCH($C28,'Coverage Indicators_1B'!$B$11:$B$100,0))=\"\",\"\",INDEX('Coverage Indicators_1B'!AA$11:AA$100,MATCH($C28,'Coverage Indicators_1B'!$B$11:$B$100,0))),\"\")","v":""},{"$f":"IFERROR(INDEX('Coverage Indicators_1B'!AB$11:AB$100,MATCH($C28,'Coverage Indicators_1B'!$B$11:$B$100,0)),\"\")","v":" "},{"$f":"IFERROR(IF(INDEX('Coverage Indicators_1B'!AC$11:AC$100,MATCH($C28,'Coverage Indicators_1B'!$B$11:$B$100,0))=\"\",\"\",INDEX('Coverage Indicators_1B'!AC$11:AC$100,MATCH($C28,'Coverage Indicators_1B'!$B$11:$B$100,0))),\"\")","v":""},{"$f":"IFERROR(IF(INDEX('Coverage Indicators_1B'!AD$11:AD$100,MATCH($C28,'Coverage Indicators_1B'!$B$11:$B$100,0))=\"\",\"\",INDEX('Coverage Indicators_1B'!AD$11:AD$100,MATCH($C28,'Coverage Indicators_1B'!$B$11:$B$100,0))),\"\")","v":""},{"$f":"IFERROR(INDEX('Coverage Indicators_1B'!AE$11:AE$100,MATCH($C28,'Coverage Indicators_1B'!$B$11:$B$100,0)),\"\")","v":"No Results Reported"},null,null,null,{"$f":"IFERROR(INDEX('Coverage Indicators_1B'!AI$11:AI$100,MATCH($C28,'Coverage Indicators_1B'!$B$11:$B$100,0)),\"\")","v":" "},{"$f":"IFERROR(INDEX('Coverage Indicators_1B'!AJ$11:AJ$100,MATCH($C28,'Coverage Indicators_1B'!$B$11:$B$100,0)),\"\")","v":0},{"$f":"IFERROR(INDEX('Coverage Indicators_1B'!AK$11:AK$100,MATCH($C28,'Coverage Indicators_1B'!$B$11:$B$100,0)),\"\")","v":"No Results Reported"},22,"No","Burundi",null,null,null,null,null,"Programas de prevención integral para hombres que tienen relaciones sexuales con hombres","Programmes de prévention complets destinés aux hommes ayant des rapports sexuels avec des hommes (HSH)","Données du programme CRB, Sem 2"]
["a173600000BjggoAAB",22,"Coverage22","Comprehensive prevention programs for sex workers and their clients","KP-1c(M): Pourcentage de professionnels du sexe ayant bénéficié de programmes de prévention du VIH- paquet de services définis","KP-1c(M): Percentage of sex workers reached with HIV prevention programs - defined package of services",null,"KP-1c(M): Pourcentage de professionnels du sexe ayant bénéficié de programmes de prévention du VIH- paquet de services définis","KP-1c(M): Porcentaje de trabajadores sexuales cubiertos por programas de prevención del VIH (paquete definido de servicios)",null,"National","Y- Cumulative annually",false,14364,55278,26,"2016","CRB Programme Data, Sem 2",24054.5,57963,41.5,"Numerator: Number of SWs having benefited from the defined package of HIV prevention services.\nDenominator: Estimated number of SWs at the national level.\n\nThe denominator represents the estimated number of SWs in each year. It is calculated by applying a 2.4 percent progression rate to the 2016 baseline figure of 55,278, which gives 57,963 in 2018, 59,354 in 2019, and 60,779 in 2020.\nThe country’s annual targets come from the NSP 2018-2022, i.e. 83 percent (48,109/57,963) in 2018, 85 percent (50,451/59,354) in 2019, and 87 percent (52,878/60,779) in 2020.\n\nPEPFAR’s annual contribution stands at 27,529 in 2018 and 28,869 in 2019 in Bujumbura Mairie, Bujumbura Rural, Kayanza, Ngozi and Kirundo provinces (57 percent of the national target in each of the two years). BRC’s contributions, meanwhile, will increase in 2020 to cover all nine provinces (Bujumbura Mairie, Bujumbura Rural, Gitega, Muyinga, Rumonge, Makamba, Kirundo, Ngozi and Kayanza) because the PEPFAR-funded Linkages Project will end in 2019. As such, 52,878 SWs will benefit from prevention programs. \n\nThe Global Fund contribution is as follows: 20,580 (43 percent) in 2018, 21,582 (43 percent) in 2019, and 52,878 (100 percent) in 2020. These targets will be monitored under this grant, alongside the national targets, which include contributions from other partners (such as PEPFAR) to program outcomes.  The contribution by each partner will be mentioned in the comments of the PU/DR.\nTo reach the targets, 320 PE have been budgeted. However, the minimum number of PE required to reach the targets, based on an assumption of 12 new SW reached per month per PE is: 142, 150 and 367 PE in 2018, 2019 and 2020 respectively.\n\nUnder the current grant (2015-2017), BRC has set up interventions for SWs in nine provinces (Bujumbura Mairie, Bujumbura Rural, Gitega, Muyinga, Rumonge, Makamba, Kirundo, Ngozi and Kayanza). This new grant (2018-2020) will continue to target SWs in the four provinces not covered by PEPFAR (Gitega, Muyinga, Rumonge and Makamba), through strengthening of SW-friendly centers (counselor’s wages, office rental). \nThe minimum package of activities is clearly defined in the PE strategy manual, and includes a minimum of four awareness-raising sessions or themes from a list of seven predefined themes (HIV transmission and prevention; promotion of VCT and condom distribution points; sexual and reproductive health (SRH) and access to services; STI diagnosis and treatment; access to HIV services (pre-ART, ART and observance support); distribution of condoms and gels; and referral to HIV screening services and STI and HIV treatment services).       \n        \nAvailable supplies of condoms and lubricant gels are insufficient to set aside a buffer stock. In addition, for the first year, 25 percent of needs are included in the PAAR. \n\nThe quantified figures per SW per year are as follows: 240 male condoms, 240 gels and 9.6 female condoms.   The male and female condoms and gels will also be available on demand at fixed locations (bars, hotels/guest houses, etc.).\n\nPEs currently have access to all reporting tools. The focus for the 2018-2020 grant will be on producing more data collection tools and distributing them to SW PEs.\nEach new person will be counted in the PE report, and each person will be included in the figures once they have received awareness-raising on the four themes concerned.  The PEs will submit their reports on a monthly basis, and the NGOs will submit quarterly reports to the PR. Data verification and audit missions will take place at the end of each half-year period.",{"$f":"IFERROR(IF(INDEX('Coverage Indicators_1B'!Q$11:Q$100,MATCH($C29,'Coverage Indicators_1B'!$B$11:$B$100,0))=\"\",\"\",INDEX('Coverage Indicators_1B'!Q$11:Q$100,MATCH($C29,'Coverage Indicators_1B'!$B$11:$B$100,0))),\"\")","v":26589},{"$f":"IFERROR(IF(INDEX('Coverage Indicators_1B'!R$11:R$100,MATCH($C29,'Coverage Indicators_1B'!$B$11:$B$100,0))=\"\",\"\",INDEX('Coverage Indicators_1B'!R$11:R$100,MATCH($C29,'Coverage Indicators_1B'!$B$11:$B$100,0))),\"\")","v":57963},{"$f":"IFERROR(IF(INDEX('Coverage Indicators_1B'!S$11:S$100,MATCH($C29,'Coverage Indicators_1B'!$B$11:$B$100,0))=\"\",\"\",INDEX('Coverage Indicators_1B'!S$11:S$100,MATCH($C29,'Coverage Indicators_1B'!$B$11:$B$100,0))),\"\")","v":45.872366854717669},{"$f":"IFERROR(IF(INDEX('Coverage Indicators_1B'!T$11:T$100,MATCH($C29,'Coverage Indicators_1B'!$B$11:$B$100,0))=\"\",\"\",INDEX('Coverage Indicators_1B'!T$11:T$100,MATCH($C29,'Coverage Indicators_1B'!$B$11:$B$100,0))),\"\")","v":"Reports (specify)"},{"$f":"IFERROR(INDEX('Coverage Indicators_1B'!U$11:U$100,MATCH($C29,'Coverage Indicators_1B'!$B$11:$B$100,0)),\"\")","v":1.1053582374630764},{"$f":"IFERROR(IF(INDEX('Coverage Indicators_1B'!V$11:V$100,MATCH($C29,'Coverage Indicators_1B'!$B$11:$B$100,0))=\"\",\"\",INDEX('Coverage Indicators_1B'!V$11:V$100,MATCH($C29,'Coverage Indicators_1B'!$B$11:$B$100,0))),\"\")","v":"Sur un nombre de professionnelles de sexe (PS)  estimé à 57963 au niveau national, la CRB et ses partenaires comptaient toucher 24054 (soit 41.5%) pour la période de Janvier à Juin 2018. Cependant, le paquet de service de prévention a été offert à 26589 PS soit   15672 issus des Pairs Éducateurs (PE) PS des provinces d’intervention de la CRB et 11036 encadré par Le projet Linkages financé par PEPFAR. \nLe taux de réalisation est de 45,8% soit une performance de 111%. Nous constatons que les PS ont répondu favorablement aux services de prévention au cours de la période de rapportage. \nSignalons que la CRB intervient dans les Provinces de Makamba, Rumonge, Muyinga et Gitega tandis que le Projet Linkages intervient dans Bujumbura Mairie, Kayanza, Ngozi Bujumbura (Rural) et Kirundo. Ces zones d’interventions étant séparées, la probabilité de doublons dans le rapportage est minime.  \nSource: Rapport CRB"},{"$f":"IFERROR(IF(INDEX('Coverage Indicators_1B'!X$11:X$100,MATCH($C29,'Coverage Indicators_1B'!$B$11:$B$100,0))=\"\",\"\",INDEX('Coverage Indicators_1B'!X$11:X$100,MATCH($C29,'Coverage Indicators_1B'!$B$11:$B$100,0))),\"\")","v":""},{"$f":"IFERROR(IF(INDEX('Coverage Indicators_1B'!Y$11:Y$100,MATCH($C29,'Coverage Indicators_1B'!$B$11:$B$100,0))=\"\",\"\",INDEX('Coverage Indicators_1B'!Y$11:Y$100,MATCH($C29,'Coverage Indicators_1B'!$B$11:$B$100,0))),\"\")","v":""},{"$f":"IFERROR(IF(INDEX('Coverage Indicators_1B'!Z$11:Z$100,MATCH($C29,'Coverage Indicators_1B'!$B$11:$B$100,0))=\"\",\"\",INDEX('Coverage Indicators_1B'!Z$11:Z$100,MATCH($C29,'Coverage Indicators_1B'!$B$11:$B$100,0))),\"\")","v":""},{"$f":"IFERROR(IF(INDEX('Coverage Indicators_1B'!AA$11:AA$100,MATCH($C29,'Coverage Indicators_1B'!$B$11:$B$100,0))=\"\",\"\",INDEX('Coverage Indicators_1B'!AA$11:AA$100,MATCH($C29,'Coverage Indicators_1B'!$B$11:$B$100,0))),\"\")","v":""},{"$f":"IFERROR(INDEX('Coverage Indicators_1B'!AB$11:AB$100,MATCH($C29,'Coverage Indicators_1B'!$B$11:$B$100,0)),\"\")","v":" "},{"$f":"IFERROR(IF(INDEX('Coverage Indicators_1B'!AC$11:AC$100,MATCH($C29,'Coverage Indicators_1B'!$B$11:$B$100,0))=\"\",\"\",INDEX('Coverage Indicators_1B'!AC$11:AC$100,MATCH($C29,'Coverage Indicators_1B'!$B$11:$B$100,0))),\"\")","v":""},{"$f":"IFERROR(IF(INDEX('Coverage Indicators_1B'!AD$11:AD$100,MATCH($C29,'Coverage Indicators_1B'!$B$11:$B$100,0))=\"\",\"\",INDEX('Coverage Indicators_1B'!AD$11:AD$100,MATCH($C29,'Coverage Indicators_1B'!$B$11:$B$100,0))),\"\")","v":""},{"$f":"IFERROR(INDEX('Coverage Indicators_1B'!AE$11:AE$100,MATCH($C29,'Coverage Indicators_1B'!$B$11:$B$100,0)),\"\")","v":"No Results Reported"},null,null,null,{"$f":"IFERROR(INDEX('Coverage Indicators_1B'!AI$11:AI$100,MATCH($C29,'Coverage Indicators_1B'!$B$11:$B$100,0)),\"\")","v":" "},{"$f":"IFERROR(INDEX('Coverage Indicators_1B'!AJ$11:AJ$100,MATCH($C29,'Coverage Indicators_1B'!$B$11:$B$100,0)),\"\")","v":0},{"$f":"IFERROR(INDEX('Coverage Indicators_1B'!AK$11:AK$100,MATCH($C29,'Coverage Indicators_1B'!$B$11:$B$100,0)),\"\")","v":"No Results Reported"},23,"No","Burundi",null,null,null,null,null,"Programas de prevención integral para trabajadores del sexo y sus clientes","Programmes de prévention complets destinés aux professionnels du sexe et à leurs clients","Données du programme CRB, Sem 2"]
["a173600000BjggpAAB",23,"Coverage23","Comprehensive prevention programs for sex workers and their clients","KP-3c(M): Pourcentage de professionnels de sexe qui ont fait un test VIH au cours de la période de rapportage et qui connaissent les résultats","KP-3c(M): Percentage of sex workers that have received an HIV test during the reporting period and know their results",null,"KP-3c(M): Pourcentage de professionnels de sexe qui ont fait un test VIH au cours de la période de rapportage et qui connaissent les résultats","KP-3c(M): Porcentaje de trabajadores sexuales que se han sometido a pruebas de VIH durante el período de informe y conocen los resultados",null,"National","Y- Cumulative annually",false,6393,55278,11.6,"2016","CRB Programme Data, Sem 2",20287.05,57963,35,"Numerator: Number of SWs who took an HIV test during the reporting period and who know their result.\nDenominator: Estimated number of SWs at the national level.\n\nThe denominator represents the estimated number of SWs in the country each year.\nThe numerator is the number of SWs requiring an HIV test each year under this grant. This figure has been calculated by multiplying the number of SWs that need to be reached by BCC activities each year under the grant, by the HIV test coverage rate among SWs and the NSP targets (70 percent in 2018, 71 percent in 2019, and 72 percent in 2020). This gives the following figures: 10,048/57,963 (17 percent) in 2018, 12,053/59,354 (20 percent) in 2019, and 28,065/60,779 (46 percent) in 2020. \n\nThe contribution from other partners (in this case, the PEPFAR-funded Linkages Project) stands at 13,899 in both 2018 and 2019, while the contribution from this grant is 10,048 in 2018 and 12,053 in 2019. In 2020, the grant’s contribution will increase to 28,065 SWs because the Linkages Project will end in 2019.\n \nUnder the current grant (2015-2017), BRC has set up interventions for SWs in nine provinces (Bujumbura Mairie, Bujumbura Rural, Gitega, Muyinga, Rumonge, Makamba, Kirundo, Ngozi and Kayanza). This new grant (2018-2020) will continue to target SWs in the four provinces not covered by the PEPFAR-funded Linkages Project (Gitega, Muyinga, Rumonge and Makamba), which runs from 2018-2019 and will end in 2019, through strengthening of SW-friendly centers (counselor’s wages, office rental). BRC’s contributions will therefore increase in 2020 to cover all nine provinces (Bujumbura Mairie, Bujumbura Rural, Gitega, Muyinga, Rumonge, Makamba, Kirundo, Ngozi and Kayanza).\n\nThe recommendation is for SWs to be tested every six months. The PEs will pass on this message to SWs, and will monitor SWs on a regular basis to help them access HIV screening services.  \nTesting will be available at health care facilities in the areas covered by the interventions. These facilities will be asked to forward data on SWs to BRC and to the NACP.  In addition:\n- referral coupons will be handed out at PE sessions, so that the number of referrals can be counted (to be inserted as a comment in the PUDRs);\n- PEs will document the number of SWs attending awareness-raising sessions who report having taken an HIV test at least once during the last six months.  This figure will also be reported in the comments in the PUDRs for this indicator.\n\nThe programmatic gaps (compared with the estimated number of SWs at the national level) are as follows: 22,042 (38 percent) in 2018, 20,426 (34 percent) in 2019, and 18,682 (31 percent) in 2020.\n\nThe indicator will relate to the number of HIV tests administered, and may therefore include some SWs who have taken more than one test in the same year. \nWith regard to the national program outcomes, the total number of SWs tested under this grant will be added to the number of SWs tested under other projects (such as the PEPFAR project). Reference will be made to this fact in the PUDR.\n\nWith regard to the national program outcomes, the total number of SWs tested under this grant will be added to the number of SWs tested under other projects (such as the PEPFAR project). Reference will be made to this fact in the PUDR.\nPEs currently have access to all reporting tools. The focus for the 2018-2020 grant will be on producing more data collection tools and distributing them to SW PEs.\n\nThe indicator will relate to the number of HIV tests administered, and may therefore include some SWs who have taken more than one test in the same year. \nWith regard to the national program outcomes, the total number of SWs tested under this grant will be added to the number of SWs tested under other projects (such as the PEPFAR project). Reference will be made to this fact in the PUDR.",{"$f":"IFERROR(IF(INDEX('Coverage Indicators_1B'!Q$11:Q$100,MATCH($C30,'Coverage Indicators_1B'!$B$11:$B$100,0))=\"\",\"\",INDEX('Coverage Indicators_1B'!Q$11:Q$100,MATCH($C30,'Coverage Indicators_1B'!$B$11:$B$100,0))),\"\")","v":16459},{"$f":"IFERROR(IF(INDEX('Coverage Indicators_1B'!R$11:R$100,MATCH($C30,'Coverage Indicators_1B'!$B$11:$B$100,0))=\"\",\"\",INDEX('Coverage Indicators_1B'!R$11:R$100,MATCH($C30,'Coverage Indicators_1B'!$B$11:$B$100,0))),\"\")","v":57963},{"$f":"IFERROR(IF(INDEX('Coverage Indicators_1B'!S$11:S$100,MATCH($C30,'Coverage Indicators_1B'!$B$11:$B$100,0))=\"\",\"\",INDEX('Coverage Indicators_1B'!S$11:S$100,MATCH($C30,'Coverage Indicators_1B'!$B$11:$B$100,0))),\"\")","v":28.395700705622552},{"$f":"IFERROR(IF(INDEX('Coverage Indicators_1B'!T$11:T$100,MATCH($C30,'Coverage Indicators_1B'!$B$11:$B$100,0))=\"\",\"\",INDEX('Coverage Indicators_1B'!T$11:T$100,MATCH($C30,'Coverage Indicators_1B'!$B$11:$B$100,0))),\"\")","v":"Reports (specify)"},{"$f":"IFERROR(INDEX('Coverage Indicators_1B'!U$11:U$100,MATCH($C30,'Coverage Indicators_1B'!$B$11:$B$100,0)),\"\")","v":0.81130573444635867},{"$f":"IFERROR(IF(INDEX('Coverage Indicators_1B'!V$11:V$100,MATCH($C30,'Coverage Indicators_1B'!$B$11:$B$100,0))=\"\",\"\",INDEX('Coverage Indicators_1B'!V$11:V$100,MATCH($C30,'Coverage Indicators_1B'!$B$11:$B$100,0))),\"\")","v":"Sur un nombre de professionnelles  de sexe (PS) estimé à 57963 au niveau national, la CRB et ses partenaires comptaient dépister 20287(soit 35%) pour la période de Janvier à Juin 2018. Cependant, seuls 16459 PS ont été dépistées et connaissent leur statut sérologique. Le taux de réalisation est alors de 28,4% soit une performance de 81% \nCette performance s'explique par une réticence des PS à utiliser les services de santé pour le dépistage au VIH. Pour y remédier il est nécessaire qu’il soit créés des centres de dépistage qui offrent plus d’intimité pour cette catégorie de personnes (services de dépistage au niveau des centres de convivialité, le dépistage en stratégie mobile etc). D’autre part, l’adoption de la stratégie autotest pour le dépistage du VIH pourrait permettre de dépister les PS qui auraient peur d’utiliser les services de santé.   \n\nSource: Rapport CRB"},{"$f":"IFERROR(IF(INDEX('Coverage Indicators_1B'!X$11:X$100,MATCH($C30,'Coverage Indicators_1B'!$B$11:$B$100,0))=\"\",\"\",INDEX('Coverage Indicators_1B'!X$11:X$100,MATCH($C30,'Coverage Indicators_1B'!$B$11:$B$100,0))),\"\")","v":""},{"$f":"IFERROR(IF(INDEX('Coverage Indicators_1B'!Y$11:Y$100,MATCH($C30,'Coverage Indicators_1B'!$B$11:$B$100,0))=\"\",\"\",INDEX('Coverage Indicators_1B'!Y$11:Y$100,MATCH($C30,'Coverage Indicators_1B'!$B$11:$B$100,0))),\"\")","v":""},{"$f":"IFERROR(IF(INDEX('Coverage Indicators_1B'!Z$11:Z$100,MATCH($C30,'Coverage Indicators_1B'!$B$11:$B$100,0))=\"\",\"\",INDEX('Coverage Indicators_1B'!Z$11:Z$100,MATCH($C30,'Coverage Indicators_1B'!$B$11:$B$100,0))),\"\")","v":""},{"$f":"IFERROR(IF(INDEX('Coverage Indicators_1B'!AA$11:AA$100,MATCH($C30,'Coverage Indicators_1B'!$B$11:$B$100,0))=\"\",\"\",INDEX('Coverage Indicators_1B'!AA$11:AA$100,MATCH($C30,'Coverage Indicators_1B'!$B$11:$B$100,0))),\"\")","v":""},{"$f":"IFERROR(INDEX('Coverage Indicators_1B'!AB$11:AB$100,MATCH($C30,'Coverage Indicators_1B'!$B$11:$B$100,0)),\"\")","v":" "},{"$f":"IFERROR(IF(INDEX('Coverage Indicators_1B'!AC$11:AC$100,MATCH($C30,'Coverage Indicators_1B'!$B$11:$B$100,0))=\"\",\"\",INDEX('Coverage Indicators_1B'!AC$11:AC$100,MATCH($C30,'Coverage Indicators_1B'!$B$11:$B$100,0))),\"\")","v":""},{"$f":"IFERROR(IF(INDEX('Coverage Indicators_1B'!AD$11:AD$100,MATCH($C30,'Coverage Indicators_1B'!$B$11:$B$100,0))=\"\",\"\",INDEX('Coverage Indicators_1B'!AD$11:AD$100,MATCH($C30,'Coverage Indicators_1B'!$B$11:$B$100,0))),\"\")","v":""},{"$f":"IFERROR(INDEX('Coverage Indicators_1B'!AE$11:AE$100,MATCH($C30,'Coverage Indicators_1B'!$B$11:$B$100,0)),\"\")","v":"No Results Reported"},null,null,null,{"$f":"IFERROR(INDEX('Coverage Indicators_1B'!AI$11:AI$100,MATCH($C30,'Coverage Indicators_1B'!$B$11:$B$100,0)),\"\")","v":" "},{"$f":"IFERROR(INDEX('Coverage Indicators_1B'!AJ$11:AJ$100,MATCH($C30,'Coverage Indicators_1B'!$B$11:$B$100,0)),\"\")","v":0},{"$f":"IFERROR(INDEX('Coverage Indicators_1B'!AK$11:AK$100,MATCH($C30,'Coverage Indicators_1B'!$B$11:$B$100,0)),\"\")","v":"No Results Reported"},24,"No","Burundi",null,null,null,null,null,"Programas de prevención integral para trabajadores del sexo y sus clientes","Programmes de prévention complets destinés aux professionnels du sexe et à leurs clients","Données du programme CRB, Sem 2"]
[null,null,null,null,null,null,null,null,null,null,null,null,null,null,null,null,null,null,null,null,null,null,null,null,null,null,null,null,null,null,null,null,null,null,null,null,null,null,null,null,null,null,null,{"$f":"IFERROR(IF(M31=\"TRUE\",\"Yes\",\"No\"),\"\")","v":"No"}]

{"sheet":"Disaggregation_1B","index":11,"n_rows":150,"n_cols":28,"rows_kept":150,"cut":false,"hidden":false,"merged":[[4,2,4,22],[8,2,9,2],[8,3,9,3],[8,4,9,4],[8,5,9,5],[8,6,8,10],[8,12,8,14],[8,15,9,15],[8,16,9,16],[8,11,9,11],[8,27,9,27],[8,28,9,28],[8,17,9,17],[8,18,8,20],[8,21,9,21],[8,22,9,22],[8,23,9,23],[8,24,8,26]]}
[null,null,"Progress Report with Disbursement Request"]
[]
[null,null,"Section 1:  Programmatic Information"]
[]
[null,null,"• Guidance: The table contains those Coverage indicators that are:\n1. Included in the Grant Confirmation/Agreement through the latest signed Performance Framework\n2. Are due for reporting in the current reporting period;\n3. According to the Global Fund Modular Framework require disaggregation\n\n• Data validation checks are being performed on entered data in the columns. Any issues identified that are not resolved should be explained"]
[]
[null,null,"B- Coverage Indicators - Disaggregation"]
[]
[null,null,{"$f":"VLOOKUP(Translations!B118,Translations!B3:H508,4,0)","v":"Module"},{"$f":"VLOOKUP(Translations!B119,Translations!B3:H508,4,0)","v":"Indicateurs"},{"$f":"VLOOKUP(Translations!B120,Translations!B3:H508,4,0)","v":"Ventilation"},{"$f":"VLOOKUP(Translations!B121,Translations!B3:H508,4,0)","v":"Catégorie"},{"$f":"VLOOKUP(Translations!B122,Translations!B3:H508,4,0)","v":"Référence"},null,null,null,null,"Country",{"$f":"VLOOKUP(Translations!B128,Translations!B3:H508,4,0)","v":"Résultats"},null,null,{"$f":"VLOOKUP(Translations!B127,Translations!B3:H508,4,0)","v":"Source"},{"$f":"VLOOKUP(Translations!B133,Translations!B3:H508,4,0)","v":"Commentaires"},null,"Verified Result",null,null,"Source","Comments",null,"Global Fund Validated Result",null,null,"Country Team comments on validated results"]
[null,null,null,null,null,null,"N#","D#","%",{"$f":"VLOOKUP(Translations!B126,Translations!B3:H508,4,0)","v":"Année"},{"$f":"VLOOKUP(Translations!B127,Translations!B3:H508,4,0)","v":"Source"},null,"N#","D#","%",null,null,null,"N#","D#","%",null,null,null,"N#","D#","%"]
[{"$f":"A10+1","v":1},{"$f":"\"Coverage\"&A11","v":"Coverage1"},{"$f":"IFERROR(INDEX('Disaggregation1B_Import-Export'!D$8:D$239,MATCH($B11,'Disaggregation1B_Import-Export'!$C$8:$C$239,0)),\"\")","v":"TB care and prevention"},{"$f":"IFERROR(INDEX('Disaggregation1B_Import-Export'!AF$8:AF$256,MATCH($B11,'Disaggregation1B_Import-Export'!$C$8:$C$256,0)),\"\")","v":"TCP-1(M): Nombre de cas déclarés de tuberculose, toutes formes confondues, bactériologiquement confirmés et cliniquement diagnostiqués, nouveaux cas et récidives"},{"$f":"IFERROR(IF(INDEX('Disaggregation1B_Import-Export'!AG$8:AG$239,MATCH($B11,'Disaggregation1B_Import-Export'!$C$8:$C$239,0))=\"\",\"\",INDEX('Disaggregation1B_Import-Export'!AG$8:AG$239,MATCH($B11,'Disaggregation1B_Import-Export'!$C$8:$C$239,0))),\"\")","v":"Femme"},{"$f":"IFERROR(IF(INDEX('Disaggregation1B_Import-Export'!AH$8:AH$239,MATCH($B11,'Disaggregation1B_Import-Export'!$C$8:$C$239,0))=\"\",\"\",INDEX('Disaggregation1B_Import-Export'!AH$8:AH$239,MATCH($B11,'Disaggregation1B_Import-Export'!$C$8:$C$239,0))),\"\")","v":"Sexe"},{"$f":"IFERROR(IF(INDEX('Disaggregation1B_Import-Export'!H$8:H$239,MATCH($B11,'Disaggregation1B_Import-Export'!$C$8:$C$239,0))=\"\",\"\",INDEX('Disaggregation1B_Import-Export'!H$8:H$239,MATCH($B11,'Disaggregation1B_Import-Export'!$C$8:$C$239,0))),\"\")","v":2740},{"$f":"IFERROR(IF(INDEX('Disaggregation1B_Import-Export'!I$8:I$239,MATCH($B11,'Disaggregation1B_Import-Export'!$C$8:$C$239,0))=\"\",\"\",INDEX('Disaggregation1B_Import-Export'!I$8:I$239,MATCH($B11,'Disaggregation1B_Import-Export'!$C$8:$C$239,0))),\"\")","v":0},{"$f":"IFERROR(IF(INDEX('Disaggregation1B_Import-Export'!J$8:J$239,MATCH($B11,'Disaggregation1B_Import-Export'!$C$8:$C$239,0))=\"\",\"\",INDEX('Disaggregation1B_Import-Export'!J$8:J$239,MATCH($B11,'Disaggregation1B_Import-Export'!$C$8:$C$239,0))),\"\")","v":"0.0"},{"$f":"IFERROR(IF(INDEX('Disaggregation1B_Import-Export'!K$8:K$239,MATCH($B11,'Disaggregation1B_Import-Export'!$C$8:$C$239,0))=\"\",\"\",INDEX('Disaggregation1B_Import-Export'!K$8:K$239,MATCH($B11,'Disaggregation1B_Import-Export'!$C$8:$C$239,0))),\"\")","v":"2016"},{"$f":"IFERROR(IF(INDEX('Disaggregation1B_Import-Export'!L$8:L$239,MATCH($B11,'Disaggregation1B_Import-Export'!$C$8:$C$239,0))=\"\",\"\",INDEX('Disaggregation1B_Import-Export'!L$8:L$239,MATCH($B11,'Disaggregation1B_Import-Export'!$C$8:$C$239,0))),\"\")","v":"PNILT 2016 Annual Report"},{"$f":"IFERROR(IF(INDEX('Disaggregation1B_Import-Export'!AQ$8:AQ$239,MATCH($B11,'Disaggregation1B_Import-Export'!$C$8:$C$239,0))=\"\",\"\",INDEX('Disaggregation1B_Import-Export'!AQ$8:AQ$239,MATCH($B11,'Disaggregation1B_Import-Export'!$C$8:$C$239,0))),\"\")","v":"Burundi"},1436,null,{"$f":"IFERROR((M11/N11)*100,\"\")","v":""},"TB patient register","Nous constatons que le sexe féminin   représente (37.5%) par rapport au total des TTF dépistés pour la TB toute forme confondue. ",null," ",null,{"$f":"IFERROR((S11/T11)*100,\"\")","v":""},null,null,null,null,null,{"$f":"IFERROR(Y11/Z11,\"\")","v":""}]
[{"$f":"A11+1","v":2},{"$f":"\"Coverage\"&A12","v":"Coverage2"},{"$f":"IFERROR(INDEX('Disaggregation1B_Import-Export'!D$8:D$239,MATCH($B12,'Disaggregation1B_Import-Export'!$C$8:$C$239,0)),\"\")","v":"TB care and prevention"},{"$f":"IFERROR(INDEX('Disaggregation1B_Import-Export'!AF$8:AF$256,MATCH($B12,'Disaggregation1B_Import-Export'!$C$8:$C$256,0)),\"\")","v":"TCP-1(M): Nombre de cas déclarés de tuberculose, toutes formes confondues, bactériologiquement confirmés et cliniquement diagnostiqués, nouveaux cas et récidives"},{"$f":"IFERROR(IF(INDEX('Disaggregation1B_Import-Export'!AG$8:AG$239,MATCH($B12,'Disaggregation1B_Import-Export'!$C$8:$C$239,0))=\"\",\"\",INDEX('Disaggregation1B_Import-Export'!AG$8:AG$239,MATCH($B12,'Disaggregation1B_Import-Export'!$C$8:$C$239,0))),\"\")","v":"Bactériologiquement confirmé"},{"$f":"IFERROR(IF(INDEX('Disaggregation1B_Import-Export'!AH$8:AH$239,MATCH($B12,'Disaggregation1B_Import-Export'!$C$8:$C$239,0))=\"\",\"\",INDEX('Disaggregation1B_Import-Export'!AH$8:AH$239,MATCH($B12,'Disaggregation1B_Import-Export'!$C$8:$C$239,0))),\"\")","v":"Définition des cas"},{"$f":"IFERROR(IF(INDEX('Disaggregation1B_Import-Export'!H$8:H$239,MATCH($B12,'Disaggregation1B_Import-Export'!$C$8:$C$239,0))=\"\",\"\",INDEX('Disaggregation1B_Import-Export'!H$8:H$239,MATCH($B12,'Disaggregation1B_Import-Export'!$C$8:$C$239,0))),\"\")","v":4585},{"$f":"IFERROR(IF(INDEX('Disaggregation1B_Import-Export'!I$8:I$239,MATCH($B12,'Disaggregation1B_Import-Export'!$C$8:$C$239,0))=\"\",\"\",INDEX('Disaggregation1B_Import-Export'!I$8:I$239,MATCH($B12,'Disaggregation1B_Import-Export'!$C$8:$C$239,0))),\"\")","v":0},{"$f":"IFERROR(IF(INDEX('Disaggregation1B_Import-Export'!J$8:J$239,MATCH($B12,'Disaggregation1B_Import-Export'!$C$8:$C$239,0))=\"\",\"\",INDEX('Disaggregation1B_Import-Export'!J$8:J$239,MATCH($B12,'Disaggregation1B_Import-Export'!$C$8:$C$239,0))),\"\")","v":"0.0"},{"$f":"IFERROR(IF(INDEX('Disaggregation1B_Import-Export'!K$8:K$239,MATCH($B12,'Disaggregation1B_Import-Export'!$C$8:$C$239,0))=\"\",\"\",INDEX('Disaggregation1B_Import-Export'!K$8:K$239,MATCH($B12,'Disaggregation1B_Import-Export'!$C$8:$C$239,0))),\"\")","v":"2016"},{"$f":"IFERROR(IF(INDEX('Disaggregation1B_Import-Export'!L$8:L$239,MATCH($B12,'Disaggregation1B_Import-Export'!$C$8:$C$239,0))=\"\",\"\",INDEX('Disaggregation1B_Import-Export'!L$8:L$239,MATCH($B12,'Disaggregation1B_Import-Export'!$C$8:$C$239,0))),\"\")","v":"PNILT 2016 Annual Report"},{"$f":"IFERROR(IF(INDEX('Disaggregation1B_Import-Export'!AQ$8:AQ$239,MATCH($B12,'Disaggregation1B_Import-Export'!$C$8:$C$239,0))=\"\",\"\",INDEX('Disaggregation1B_Import-Export'!AQ$8:AQ$239,MATCH($B12,'Disaggregation1B_Import-Export'!$C$8:$C$239,0))),\"\")","v":"Burundi"},2142,null,{"$f":"IFERROR((M12/N12)*100,\"\")","v":""},"TB patient register","Les cas déclarés de TB bacteriologiquement confirmé representent 56%  La proportion de 44% dépistés par d'autres moyens diagnostics  s'expliquerait par la rupture en intrants de dépistage_ fuschine pendant à peu près 3 mois dans bon nombre de structures mais aussi l'utilisation du matériel de dépistage de la tuberculose disponible dans certains  sites de prise en charge tels que les appareils de radiographie, échographie etc",null,null,null,{"$f":"IFERROR((S12/T12)*100,\"\")","v":""},null,null,null,null,null,{"$f":"IFERROR(Y12/Z12,\"\")","v":""}]
[3,"Coverage3",{"$f":"IFERROR(INDEX('Disaggregation1B_Import-Export'!D$8:D$239,MATCH($B13,'Disaggregation1B_Import-Export'!$C$8:$C$239,0)),\"\")","v":"TB care and prevention"},{"$f":"IFERROR(INDEX('Disaggregation1B_Import-Export'!AF$8:AF$256,MATCH($B13,'Disaggregation1B_Import-Export'!$C$8:$C$256,0)),\"\")","v":"TCP-1(M): Nombre de cas déclarés de tuberculose, toutes formes confondues, bactériologiquement confirmés et cliniquement diagnostiqués, nouveaux cas et récidives"},{"$f":"IFERROR(IF(INDEX('Disaggregation1B_Import-Export'!AG$8:AG$239,MATCH($B13,'Disaggregation1B_Import-Export'!$C$8:$C$239,0))=\"\",\"\",INDEX('Disaggregation1B_Import-Export'!AG$8:AG$239,MATCH($B13,'Disaggregation1B_Import-Export'!$C$8:$C$239,0))),\"\")","v":"+ de 15 ans"},{"$f":"IFERROR(IF(INDEX('Disaggregation1B_Import-Export'!AH$8:AH$239,MATCH($B13,'Disaggregation1B_Import-Export'!$C$8:$C$239,0))=\"\",\"\",INDEX('Disaggregation1B_Import-Export'!AH$8:AH$239,MATCH($B13,'Disaggregation1B_Import-Export'!$C$8:$C$239,0))),\"\")","v":"Age"},{"$f":"IFERROR(IF(INDEX('Disaggregation1B_Import-Export'!H$8:H$239,MATCH($B13,'Disaggregation1B_Import-Export'!$C$8:$C$239,0))=\"\",\"\",INDEX('Disaggregation1B_Import-Export'!H$8:H$239,MATCH($B13,'Disaggregation1B_Import-Export'!$C$8:$C$239,0))),\"\")","v":7270},{"$f":"IFERROR(IF(INDEX('Disaggregation1B_Import-Export'!I$8:I$239,MATCH($B13,'Disaggregation1B_Import-Export'!$C$8:$C$239,0))=\"\",\"\",INDEX('Disaggregation1B_Import-Export'!I$8:I$239,MATCH($B13,'Disaggregation1B_Import-Export'!$C$8:$C$239,0))),\"\")","v":0},{"$f":"IFERROR(IF(INDEX('Disaggregation1B_Import-Export'!J$8:J$239,MATCH($B13,'Disaggregation1B_Import-Export'!$C$8:$C$239,0))=\"\",\"\",INDEX('Disaggregation1B_Import-Export'!J$8:J$239,MATCH($B13,'Disaggregation1B_Import-Export'!$C$8:$C$239,0))),\"\")","v":"0.0"},{"$f":"IFERROR(IF(INDEX('Disaggregation1B_Import-Export'!K$8:K$239,MATCH($B13,'Disaggregation1B_Import-Export'!$C$8:$C$239,0))=\"\",\"\",INDEX('Disaggregation1B_Import-Export'!K$8:K$239,MATCH($B13,'Disaggregation1B_Import-Export'!$C$8:$C$239,0))),\"\")","v":"2016"},{"$f":"IFERROR(IF(INDEX('Disaggregation1B_Import-Export'!L$8:L$239,MATCH($B13,'Disaggregation1B_Import-Export'!$C$8:$C$239,0))=\"\",\"\",INDEX('Disaggregation1B_Import-Export'!L$8:L$239,MATCH($B13,'Disaggregation1B_Import-Export'!$C$8:$C$239,0))),\"\")","v":"PNILT 2016 Annual Report"},{"$f":"IFERROR(IF(INDEX('Disaggregation1B_Import-Export'!AQ$8:AQ$239,MATCH($B13,'Disaggregation1B_Import-Export'!$C$8:$C$239,0))=\"\",\"\",INDEX('Disaggregation1B_Import-Export'!AQ$8:AQ$239,MATCH($B13,'Disaggregation1B_Import-Export'!$C$8:$C$239,0))),\"\")","v":"Burundi"},3565,null,"","TB patient register","Le nombre de cas  déclarés de TB  de plus de 15 ans (masculin et féminin ensemble) est  de 3565 représentant 93%  des cas de TB tout age confondu . Parmi les 3565 ,  les femmes représentent 36.9%  (N=1319 ). ",null,null,null,"",null,null,null,null,null,""]
[4,"Coverage4",{"$f":"IFERROR(INDEX('Disaggregation1B_Import-Export'!D$8:D$239,MATCH($B14,'Disaggregation1B_Import-Export'!$C$8:$C$239,0)),\"\")","v":"TB care and prevention"},{"$f":"IFERROR(INDEX('Disaggregation1B_Import-Export'!AF$8:AF$256,MATCH($B14,'Disaggregation1B_Import-Export'!$C$8:$C$256,0)),\"\")","v":"TCP-1(M): Nombre de cas déclarés de tuberculose, toutes formes confondues, bactériologiquement confirmés et cliniquement diagnostiqués, nouveaux cas et récidives"},{"$f":"IFERROR(IF(INDEX('Disaggregation1B_Import-Export'!AG$8:AG$239,MATCH($B14,'Disaggregation1B_Import-Export'!$C$8:$C$239,0))=\"\",\"\",INDEX('Disaggregation1B_Import-Export'!AG$8:AG$239,MATCH($B14,'Disaggregation1B_Import-Export'!$C$8:$C$239,0))),\"\")","v":"<15 ans"},{"$f":"IFERROR(IF(INDEX('Disaggregation1B_Import-Export'!AH$8:AH$239,MATCH($B14,'Disaggregation1B_Import-Export'!$C$8:$C$239,0))=\"\",\"\",INDEX('Disaggregation1B_Import-Export'!AH$8:AH$239,MATCH($B14,'Disaggregation1B_Import-Export'!$C$8:$C$239,0))),\"\")","v":"Age"},{"$f":"IFERROR(IF(INDEX('Disaggregation1B_Import-Export'!H$8:H$239,MATCH($B14,'Disaggregation1B_Import-Export'!$C$8:$C$239,0))=\"\",\"\",INDEX('Disaggregation1B_Import-Export'!H$8:H$239,MATCH($B14,'Disaggregation1B_Import-Export'!$C$8:$C$239,0))),\"\")","v":392},{"$f":"IFERROR(IF(INDEX('Disaggregation1B_Import-Export'!I$8:I$239,MATCH($B14,'Disaggregation1B_Import-Export'!$C$8:$C$239,0))=\"\",\"\",INDEX('Disaggregation1B_Import-Export'!I$8:I$239,MATCH($B14,'Disaggregation1B_Import-Export'!$C$8:$C$239,0))),\"\")","v":0},{"$f":"IFERROR(IF(INDEX('Disaggregation1B_Import-Export'!J$8:J$239,MATCH($B14,'Disaggregation1B_Import-Export'!$C$8:$C$239,0))=\"\",\"\",INDEX('Disaggregation1B_Import-Export'!J$8:J$239,MATCH($B14,'Disaggregation1B_Import-Export'!$C$8:$C$239,0))),\"\")","v":"0.0"},{"$f":"IFERROR(IF(INDEX('Disaggregation1B_Import-Export'!K$8:K$239,MATCH($B14,'Disaggregation1B_Import-Export'!$C$8:$C$239,0))=\"\",\"\",INDEX('Disaggregation1B_Import-Export'!K$8:K$239,MATCH($B14,'Disaggregation1B_Import-Export'!$C$8:$C$239,0))),\"\")","v":"2016"},{"$f":"IFERROR(IF(INDEX('Disaggregation1B_Import-Export'!L$8:L$239,MATCH($B14,'Disaggregation1B_Import-Export'!$C$8:$C$239,0))=\"\",\"\",INDEX('Disaggregation1B_Import-Export'!L$8:L$239,MATCH($B14,'Disaggregation1B_Import-Export'!$C$8:$C$239,0))),\"\")","v":"PNILT 2016 Annual Report"},{"$f":"IFERROR(IF(INDEX('Disaggregation1B_Import-Export'!AQ$8:AQ$239,MATCH($B14,'Disaggregation1B_Import-Export'!$C$8:$C$239,0))=\"\",\"\",INDEX('Disaggregation1B_Import-Export'!AQ$8:AQ$239,MATCH($B14,'Disaggregation1B_Import-Export'!$C$8:$C$239,0))),\"\")","v":"Burundi"},262,null,"","TB patient register","Le nombre de cas  déclarés de TB  chez les moins de 15 ans (masculin et féminin ensemble) est  de  262 représentant 7%. des cas de TB tout age confondu. (262/3827). Parmi les 262 cas, le sexe fémin représente 44.6% (N=117) . Ce résultat nous montre que les enfants de moins de 15 ans ont une protection par rapport à la TB ce qui s'expliquerait par les effets positifs du BCG et de l'allaitement exclusif . D'autres part, il s'observe dans cette tranche d'âge peu de comportement à risque par rapport au VIH,  moins du VIH et moins de contact avec l'extérieur.",null,null,null,"",null,null,null,null,null,""]
[5,"Coverage5",{"$f":"IFERROR(INDEX('Disaggregation1B_Import-Export'!D$8:D$239,MATCH($B15,'Disaggregation1B_Import-Export'!$C$8:$C$239,0)),\"\")","v":"TB care and prevention"},{"$f":"IFERROR(INDEX('Disaggregation1B_Import-Export'!AF$8:AF$256,MATCH($B15,'Disaggregation1B_Import-Export'!$C$8:$C$256,0)),\"\")","v":"TCP-1(M): Nombre de cas déclarés de tuberculose, toutes formes confondues, bactériologiquement confirmés et cliniquement diagnostiqués, nouveaux cas et récidives"},{"$f":"IFERROR(IF(INDEX('Disaggregation1B_Import-Export'!AG$8:AG$239,MATCH($B15,'Disaggregation1B_Import-Export'!$C$8:$C$239,0))=\"\",\"\",INDEX('Disaggregation1B_Import-Export'!AG$8:AG$239,MATCH($B15,'Disaggregation1B_Import-Export'!$C$8:$C$239,0))),\"\")","v":"Non communiqué"},{"$f":"IFERROR(IF(INDEX('Disaggregation1B_Import-Export'!AH$8:AH$239,MATCH($B15,'Disaggregation1B_Import-Export'!$C$8:$C$239,0))=\"\",\"\",INDEX('Disaggregation1B_Import-Export'!AH$8:AH$239,MATCH($B15,'Disaggregation1B_Import-Export'!$C$8:$C$239,0))),\"\")","v":"Résultat du test VIH"},{"$f":"IFERROR(IF(INDEX('Disaggregation1B_Import-Export'!H$8:H$239,MATCH($B15,'Disaggregation1B_Import-Export'!$C$8:$C$239,0))=\"\",\"\",INDEX('Disaggregation1B_Import-Export'!H$8:H$239,MATCH($B15,'Disaggregation1B_Import-Export'!$C$8:$C$239,0))),\"\")","v":317},{"$f":"IFERROR(IF(INDEX('Disaggregation1B_Import-Export'!I$8:I$239,MATCH($B15,'Disaggregation1B_Import-Export'!$C$8:$C$239,0))=\"\",\"\",INDEX('Disaggregation1B_Import-Export'!I$8:I$239,MATCH($B15,'Disaggregation1B_Import-Export'!$C$8:$C$239,0))),\"\")","v":0},{"$f":"IFERROR(IF(INDEX('Disaggregation1B_Import-Export'!J$8:J$239,MATCH($B15,'Disaggregation1B_Import-Export'!$C$8:$C$239,0))=\"\",\"\",INDEX('Disaggregation1B_Import-Export'!J$8:J$239,MATCH($B15,'Disaggregation1B_Import-Export'!$C$8:$C$239,0))),\"\")","v":"0.0"},{"$f":"IFERROR(IF(INDEX('Disaggregation1B_Import-Export'!K$8:K$239,MATCH($B15,'Disaggregation1B_Import-Export'!$C$8:$C$239,0))=\"\",\"\",INDEX('Disaggregation1B_Import-Export'!K$8:K$239,MATCH($B15,'Disaggregation1B_Import-Export'!$C$8:$C$239,0))),\"\")","v":"2016"},{"$f":"IFERROR(IF(INDEX('Disaggregation1B_Import-Export'!L$8:L$239,MATCH($B15,'Disaggregation1B_Import-Export'!$C$8:$C$239,0))=\"\",\"\",INDEX('Disaggregation1B_Import-Export'!L$8:L$239,MATCH($B15,'Disaggregation1B_Import-Export'!$C$8:$C$239,0))),\"\")","v":"PNILT 2016 Annual Report"},{"$f":"IFERROR(IF(INDEX('Disaggregation1B_Import-Export'!AQ$8:AQ$239,MATCH($B15,'Disaggregation1B_Import-Export'!$C$8:$C$239,0))=\"\",\"\",INDEX('Disaggregation1B_Import-Export'!AQ$8:AQ$239,MATCH($B15,'Disaggregation1B_Import-Export'!$C$8:$C$239,0))),\"\")","v":"Burundi"},100,null,"","TB patient register","Au cours du premier semestre 2018, environ 3% de tuberculeux n'ont pas  fait le test de dépistage au VIH . ",null,null,null,"",null,null,null,null,null,""]
[6,"Coverage6",{"$f":"IFERROR(INDEX('Disaggregation1B_Import-Export'!D$8:D$239,MATCH($B16,'Disaggregation1B_Import-Export'!$C$8:$C$239,0)),\"\")","v":"TB care and prevention"},{"$f":"IFERROR(INDEX('Disaggregation1B_Import-Export'!AF$8:AF$256,MATCH($B16,'Disaggregation1B_Import-Export'!$C$8:$C$256,0)),\"\")","v":"TCP-1(M): Nombre de cas déclarés de tuberculose, toutes formes confondues, bactériologiquement confirmés et cliniquement diagnostiqués, nouveaux cas et récidives"},{"$f":"IFERROR(IF(INDEX('Disaggregation1B_Import-Export'!AG$8:AG$239,MATCH($B16,'Disaggregation1B_Import-Export'!$C$8:$C$239,0))=\"\",\"\",INDEX('Disaggregation1B_Import-Export'!AG$8:AG$239,MATCH($B16,'Disaggregation1B_Import-Export'!$C$8:$C$239,0))),\"\")","v":"Négatif"},{"$f":"IFERROR(IF(INDEX('Disaggregation1B_Import-Export'!AH$8:AH$239,MATCH($B16,'Disaggregation1B_Import-Export'!$C$8:$C$239,0))=\"\",\"\",INDEX('Disaggregation1B_Import-Export'!AH$8:AH$239,MATCH($B16,'Disaggregation1B_Import-Export'!$C$8:$C$239,0))),\"\")","v":"Résultat du test VIH"},{"$f":"IFERROR(IF(INDEX('Disaggregation1B_Import-Export'!H$8:H$239,MATCH($B16,'Disaggregation1B_Import-Export'!$C$8:$C$239,0))=\"\",\"\",INDEX('Disaggregation1B_Import-Export'!H$8:H$239,MATCH($B16,'Disaggregation1B_Import-Export'!$C$8:$C$239,0))),\"\")","v":6468},{"$f":"IFERROR(IF(INDEX('Disaggregation1B_Import-Export'!I$8:I$239,MATCH($B16,'Disaggregation1B_Import-Export'!$C$8:$C$239,0))=\"\",\"\",INDEX('Disaggregation1B_Import-Export'!I$8:I$239,MATCH($B16,'Disaggregation1B_Import-Export'!$C$8:$C$239,0))),\"\")","v":0},{"$f":"IFERROR(IF(INDEX('Disaggregation1B_Import-Export'!J$8:J$239,MATCH($B16,'Disaggregation1B_Import-Export'!$C$8:$C$239,0))=\"\",\"\",INDEX('Disaggregation1B_Import-Export'!J$8:J$239,MATCH($B16,'Disaggregation1B_Import-Export'!$C$8:$C$239,0))),\"\")","v":"0.0"},{"$f":"IFERROR(IF(INDEX('Disaggregation1B_Import-Export'!K$8:K$239,MATCH($B16,'Disaggregation1B_Import-Export'!$C$8:$C$239,0))=\"\",\"\",INDEX('Disaggregation1B_Import-Export'!K$8:K$239,MATCH($B16,'Disaggregation1B_Import-Export'!$C$8:$C$239,0))),\"\")","v":"2016"},{"$f":"IFERROR(IF(INDEX('Disaggregation1B_Import-Export'!L$8:L$239,MATCH($B16,'Disaggregation1B_Import-Export'!$C$8:$C$239,0))=\"\",\"\",INDEX('Disaggregation1B_Import-Export'!L$8:L$239,MATCH($B16,'Disaggregation1B_Import-Export'!$C$8:$C$239,0))),\"\")","v":"PNILT 2016 Annual Report"},{"$f":"IFERROR(IF(INDEX('Disaggregation1B_Import-Export'!AQ$8:AQ$239,MATCH($B16,'Disaggregation1B_Import-Export'!$C$8:$C$239,0))=\"\",\"\",INDEX('Disaggregation1B_Import-Export'!AQ$8:AQ$239,MATCH($B16,'Disaggregation1B_Import-Export'!$C$8:$C$239,0))),\"\")","v":"Burundi"},3317,null,"","TB patient register","Sur 3727 tuberculeux chez qui le VIH a été testé, 3317 sont séronégatif soit 89%. ",null,null,null,"",null,null,null,null,null,""]
[7,"Coverage7",{"$f":"IFERROR(INDEX('Disaggregation1B_Import-Export'!D$8:D$239,MATCH($B17,'Disaggregation1B_Import-Export'!$C$8:$C$239,0)),\"\")","v":"TB care and prevention"},{"$f":"IFERROR(INDEX('Disaggregation1B_Import-Export'!AF$8:AF$256,MATCH($B17,'Disaggregation1B_Import-Export'!$C$8:$C$256,0)),\"\")","v":"TCP-1(M): Nombre de cas déclarés de tuberculose, toutes formes confondues, bactériologiquement confirmés et cliniquement diagnostiqués, nouveaux cas et récidives"},{"$f":"IFERROR(IF(INDEX('Disaggregation1B_Import-Export'!AG$8:AG$239,MATCH($B17,'Disaggregation1B_Import-Export'!$C$8:$C$239,0))=\"\",\"\",INDEX('Disaggregation1B_Import-Export'!AG$8:AG$239,MATCH($B17,'Disaggregation1B_Import-Export'!$C$8:$C$239,0))),\"\")","v":"Positif"},{"$f":"IFERROR(IF(INDEX('Disaggregation1B_Import-Export'!AH$8:AH$239,MATCH($B17,'Disaggregation1B_Import-Export'!$C$8:$C$239,0))=\"\",\"\",INDEX('Disaggregation1B_Import-Export'!AH$8:AH$239,MATCH($B17,'Disaggregation1B_Import-Export'!$C$8:$C$239,0))),\"\")","v":"Résultat du test VIH"},{"$f":"IFERROR(IF(INDEX('Disaggregation1B_Import-Export'!H$8:H$239,MATCH($B17,'Disaggregation1B_Import-Export'!$C$8:$C$239,0))=\"\",\"\",INDEX('Disaggregation1B_Import-Export'!H$8:H$239,MATCH($B17,'Disaggregation1B_Import-Export'!$C$8:$C$239,0))),\"\")","v":877},{"$f":"IFERROR(IF(INDEX('Disaggregation1B_Import-Export'!I$8:I$239,MATCH($B17,'Disaggregation1B_Import-Export'!$C$8:$C$239,0))=\"\",\"\",INDEX('Disaggregation1B_Import-Export'!I$8:I$239,MATCH($B17,'Disaggregation1B_Import-Export'!$C$8:$C$239,0))),\"\")","v":0},{"$f":"IFERROR(IF(INDEX('Disaggregation1B_Import-Export'!J$8:J$239,MATCH($B17,'Disaggregation1B_Import-Export'!$C$8:$C$239,0))=\"\",\"\",INDEX('Disaggregation1B_Import-Export'!J$8:J$239,MATCH($B17,'Disaggregation1B_Import-Export'!$C$8:$C$239,0))),\"\")","v":"0.0"},{"$f":"IFERROR(IF(INDEX('Disaggregation1B_Import-Export'!K$8:K$239,MATCH($B17,'Disaggregation1B_Import-Export'!$C$8:$C$239,0))=\"\",\"\",INDEX('Disaggregation1B_Import-Export'!K$8:K$239,MATCH($B17,'Disaggregation1B_Import-Export'!$C$8:$C$239,0))),\"\")","v":"2016"},{"$f":"IFERROR(IF(INDEX('Disaggregation1B_Import-Export'!L$8:L$239,MATCH($B17,'Disaggregation1B_Import-Export'!$C$8:$C$239,0))=\"\",\"\",INDEX('Disaggregation1B_Import-Export'!L$8:L$239,MATCH($B17,'Disaggregation1B_Import-Export'!$C$8:$C$239,0))),\"\")","v":"PNILT 2016 Annual Report"},{"$f":"IFERROR(IF(INDEX('Disaggregation1B_Import-Export'!AQ$8:AQ$239,MATCH($B17,'Disaggregation1B_Import-Export'!$C$8:$C$239,0))=\"\",\"\",INDEX('Disaggregation1B_Import-Export'!AQ$8:AQ$239,MATCH($B17,'Disaggregation1B_Import-Export'!$C$8:$C$239,0))),\"\")","v":"Burundi"},410,null,"","TB patient register","Sur 3727 tuberculeux chez qui le VIH a été testé, 410 sont séropositifs au VIH soit 11%. ",null,null,null,"",null,null,null,null,null,""]
[8,"Coverage8",{"$f":"IFERROR(INDEX('Disaggregation1B_Import-Export'!D$8:D$239,MATCH($B18,'Disaggregation1B_Import-Export'!$C$8:$C$239,0)),\"\")","v":"TB care and prevention"},{"$f":"IFERROR(INDEX('Disaggregation1B_Import-Export'!AF$8:AF$256,MATCH($B18,'Disaggregation1B_Import-Export'!$C$8:$C$256,0)),\"\")","v":"TCP-1(M): Nombre de cas déclarés de tuberculose, toutes formes confondues, bactériologiquement confirmés et cliniquement diagnostiqués, nouveaux cas et récidives"},{"$f":"IFERROR(IF(INDEX('Disaggregation1B_Import-Export'!AG$8:AG$239,MATCH($B18,'Disaggregation1B_Import-Export'!$C$8:$C$239,0))=\"\",\"\",INDEX('Disaggregation1B_Import-Export'!AG$8:AG$239,MATCH($B18,'Disaggregation1B_Import-Export'!$C$8:$C$239,0))),\"\")","v":"Homme"},{"$f":"IFERROR(IF(INDEX('Disaggregation1B_Import-Export'!AH$8:AH$239,MATCH($B18,'Disaggregation1B_Import-Export'!$C$8:$C$239,0))=\"\",\"\",INDEX('Disaggregation1B_Import-Export'!AH$8:AH$239,MATCH($B18,'Disaggregation1B_Import-Export'!$C$8:$C$239,0))),\"\")","v":"Sexe"},{"$f":"IFERROR(IF(INDEX('Disaggregation1B_Import-Export'!H$8:H$239,MATCH($B18,'Disaggregation1B_Import-Export'!$C$8:$C$239,0))=\"\",\"\",INDEX('Disaggregation1B_Import-Export'!H$8:H$239,MATCH($B18,'Disaggregation1B_Import-Export'!$C$8:$C$239,0))),\"\")","v":4922},{"$f":"IFERROR(IF(INDEX('Disaggregation1B_Import-Export'!I$8:I$239,MATCH($B18,'Disaggregation1B_Import-Export'!$C$8:$C$239,0))=\"\",\"\",INDEX('Disaggregation1B_Import-Export'!I$8:I$239,MATCH($B18,'Disaggregation1B_Import-Export'!$C$8:$C$239,0))),\"\")","v":0},{"$f":"IFERROR(IF(INDEX('Disaggregation1B_Import-Export'!J$8:J$239,MATCH($B18,'Disaggregation1B_Import-Export'!$C$8:$C$239,0))=\"\",\"\",INDEX('Disaggregation1B_Import-Export'!J$8:J$239,MATCH($B18,'Disaggregation1B_Import-Export'!$C$8:$C$239,0))),\"\")","v":"0.0"},{"$f":"IFERROR(IF(INDEX('Disaggregation1B_Import-Export'!K$8:K$239,MATCH($B18,'Disaggregation1B_Import-Export'!$C$8:$C$239,0))=\"\",\"\",INDEX('Disaggregation1B_Import-Export'!K$8:K$239,MATCH($B18,'Disaggregation1B_Import-Export'!$C$8:$C$239,0))),\"\")","v":"2016"},{"$f":"IFERROR(IF(INDEX('Disaggregation1B_Import-Export'!L$8:L$239,MATCH($B18,'Disaggregation1B_Import-Export'!$C$8:$C$239,0))=\"\",\"\",INDEX('Disaggregation1B_Import-Export'!L$8:L$239,MATCH($B18,'Disaggregation1B_Import-Export'!$C$8:$C$239,0))),\"\")","v":"PNILT 2016 Annual Report"},{"$f":"IFERROR(IF(INDEX('Disaggregation1B_Import-Export'!AQ$8:AQ$239,MATCH($B18,'Disaggregation1B_Import-Export'!$C$8:$C$239,0))=\"\",\"\",INDEX('Disaggregation1B_Import-Export'!AQ$8:AQ$239,MATCH($B18,'Disaggregation1B_Import-Export'!$C$8:$C$239,0))),\"\")","v":"Burundi"},2391,null,"","TB patient register","Nous constatons que le sexe masculin   représente (62.5%) par rapport au nombre total des TTF dépistés  pour la TB toute forme confondue. ",null,null,null,"",null,null,null,null,null,""]
[9,"Coverage9",{"$f":"IFERROR(INDEX('Disaggregation1B_Import-Export'!D$8:D$239,MATCH($B19,'Disaggregation1B_Import-Export'!$C$8:$C$239,0)),\"\")","v":"TB care and prevention"},{"$f":"IFERROR(INDEX('Disaggregation1B_Import-Export'!AF$8:AF$256,MATCH($B19,'Disaggregation1B_Import-Export'!$C$8:$C$256,0)),\"\")","v":"TCP-2(M): Taux de succès thérapeutique- toutes formes confondue: Pourcentage de cas de TB, toutes formes confondue, bactériologiquement confirmés et diagnostiqués cliniquement, traités avec succès (guéris et traitement terminé) parmi tous les cas de TB ayant commencé le traitement pendant une période déterminée, nouveaux cas et récidives"},{"$f":"IFERROR(IF(INDEX('Disaggregation1B_Import-Export'!AG$8:AG$239,MATCH($B19,'Disaggregation1B_Import-Export'!$C$8:$C$239,0))=\"\",\"\",INDEX('Disaggregation1B_Import-Export'!AG$8:AG$239,MATCH($B19,'Disaggregation1B_Import-Export'!$C$8:$C$239,0))),\"\")","v":"Négatif"},{"$f":"IFERROR(IF(INDEX('Disaggregation1B_Import-Export'!AH$8:AH$239,MATCH($B19,'Disaggregation1B_Import-Export'!$C$8:$C$239,0))=\"\",\"\",INDEX('Disaggregation1B_Import-Export'!AH$8:AH$239,MATCH($B19,'Disaggregation1B_Import-Export'!$C$8:$C$239,0))),\"\")","v":"Résultat du test VIH"},{"$f":"IFERROR(IF(INDEX('Disaggregation1B_Import-Export'!H$8:H$239,MATCH($B19,'Disaggregation1B_Import-Export'!$C$8:$C$239,0))=\"\",\"\",INDEX('Disaggregation1B_Import-Export'!H$8:H$239,MATCH($B19,'Disaggregation1B_Import-Export'!$C$8:$C$239,0))),\"\")","v":0},{"$f":"IFERROR(IF(INDEX('Disaggregation1B_Import-Export'!I$8:I$239,MATCH($B19,'Disaggregation1B_Import-Export'!$C$8:$C$239,0))=\"\",\"\",INDEX('Disaggregation1B_Import-Export'!I$8:I$239,MATCH($B19,'Disaggregation1B_Import-Export'!$C$8:$C$239,0))),\"\")","v":0},{"$f":"IFERROR(IF(INDEX('Disaggregation1B_Import-Export'!J$8:J$239,MATCH($B19,'Disaggregation1B_Import-Export'!$C$8:$C$239,0))=\"\",\"\",INDEX('Disaggregation1B_Import-Export'!J$8:J$239,MATCH($B19,'Disaggregation1B_Import-Export'!$C$8:$C$239,0))),\"\")","v":"0.0"},{"$f":"IFERROR(IF(INDEX('Disaggregation1B_Import-Export'!K$8:K$239,MATCH($B19,'Disaggregation1B_Import-Export'!$C$8:$C$239,0))=\"\",\"\",INDEX('Disaggregation1B_Import-Export'!K$8:K$239,MATCH($B19,'Disaggregation1B_Import-Export'!$C$8:$C$239,0))),\"\")","v":""},{"$f":"IFERROR(IF(INDEX('Disaggregation1B_Import-Export'!L$8:L$239,MATCH($B19,'Disaggregation1B_Import-Export'!$C$8:$C$239,0))=\"\",\"\",INDEX('Disaggregation1B_Import-Export'!L$8:L$239,MATCH($B19,'Disaggregation1B_Import-Export'!$C$8:$C$239,0))),\"\")","v":""},{"$f":"IFERROR(IF(INDEX('Disaggregation1B_Import-Export'!AQ$8:AQ$239,MATCH($B19,'Disaggregation1B_Import-Export'!$C$8:$C$239,0))=\"\",\"\",INDEX('Disaggregation1B_Import-Export'!AQ$8:AQ$239,MATCH($B19,'Disaggregation1B_Import-Export'!$C$8:$C$239,0))),\"\")","v":"Burundi"},null,null,{"$f":"IFERROR((M19/N19)*100,\"\")","v":""},null,"NA",null,null,null,"",null,null,null,null,null,""]
[10,"Coverage10",{"$f":"IFERROR(INDEX('Disaggregation1B_Import-Export'!D$8:D$239,MATCH($B20,'Disaggregation1B_Import-Export'!$C$8:$C$239,0)),\"\")","v":"TB care and prevention"},{"$f":"IFERROR(INDEX('Disaggregation1B_Import-Export'!AF$8:AF$256,MATCH($B20,'Disaggregation1B_Import-Export'!$C$8:$C$256,0)),\"\")","v":"TCP-2(M): Taux de succès thérapeutique- toutes formes confondue: Pourcentage de cas de TB, toutes formes confondue, bactériologiquement confirmés et diagnostiqués cliniquement, traités avec succès (guéris et traitement terminé) parmi tous les cas de TB ayant commencé le traitement pendant une période déterminée, nouveaux cas et récidives"},{"$f":"IFERROR(IF(INDEX('Disaggregation1B_Import-Export'!AG$8:AG$239,MATCH($B20,'Disaggregation1B_Import-Export'!$C$8:$C$239,0))=\"\",\"\",INDEX('Disaggregation1B_Import-Export'!AG$8:AG$239,MATCH($B20,'Disaggregation1B_Import-Export'!$C$8:$C$239,0))),\"\")","v":"Homme"},{"$f":"IFERROR(IF(INDEX('Disaggregation1B_Import-Export'!AH$8:AH$239,MATCH($B20,'Disaggregation1B_Import-Export'!$C$8:$C$239,0))=\"\",\"\",INDEX('Disaggregation1B_Import-Export'!AH$8:AH$239,MATCH($B20,'Disaggregation1B_Import-Export'!$C$8:$C$239,0))),\"\")","v":"Sexe"},{"$f":"IFERROR(IF(INDEX('Disaggregation1B_Import-Export'!H$8:H$239,MATCH($B20,'Disaggregation1B_Import-Export'!$C$8:$C$239,0))=\"\",\"\",INDEX('Disaggregation1B_Import-Export'!H$8:H$239,MATCH($B20,'Disaggregation1B_Import-Export'!$C$8:$C$239,0))),\"\")","v":0},{"$f":"IFERROR(IF(INDEX('Disaggregation1B_Import-Export'!I$8:I$239,MATCH($B20,'Disaggregation1B_Import-Export'!$C$8:$C$239,0))=\"\",\"\",INDEX('Disaggregation1B_Import-Export'!I$8:I$239,MATCH($B20,'Disaggregation1B_Import-Export'!$C$8:$C$239,0))),\"\")","v":0},{"$f":"IFERROR(IF(INDEX('Disaggregation1B_Import-Export'!J$8:J$239,MATCH($B20,'Disaggregation1B_Import-Export'!$C$8:$C$239,0))=\"\",\"\",INDEX('Disaggregation1B_Import-Export'!J$8:J$239,MATCH($B20,'Disaggregation1B_Import-Export'!$C$8:$C$239,0))),\"\")","v":"0.0"},{"$f":"IFERROR(IF(INDEX('Disaggregation1B_Import-Export'!K$8:K$239,MATCH($B20,'Disaggregation1B_Import-Export'!$C$8:$C$239,0))=\"\",\"\",INDEX('Disaggregation1B_Import-Export'!K$8:K$239,MATCH($B20,'Disaggregation1B_Import-Export'!$C$8:$C$239,0))),\"\")","v":""},{"$f":"IFERROR(IF(INDEX('Disaggregation1B_Import-Export'!L$8:L$239,MATCH($B20,'Disaggregation1B_Import-Export'!$C$8:$C$239,0))=\"\",\"\",INDEX('Disaggregation1B_Import-Export'!L$8:L$239,MATCH($B20,'Disaggregation1B_Import-Export'!$C$8:$C$239,0))),\"\")","v":""},{"$f":"IFERROR(IF(INDEX('Disaggregation1B_Import-Export'!AQ$8:AQ$239,MATCH($B20,'Disaggregation1B_Import-Export'!$C$8:$C$239,0))=\"\",\"\",INDEX('Disaggregation1B_Import-Export'!AQ$8:AQ$239,MATCH($B20,'Disaggregation1B_Import-Export'!$C$8:$C$239,0))),\"\")","v":"Burundi"},2468,2658,92.851768246802095,"TB patient register","Parmi les cas TTF , 2468 hommes ont  terminé le traitement ou sont déclarés guéris soit un taux de succès thérapeutique de 92.6%\n",null,null,null,"",null,null,null,null,null,""]
[11,"Coverage11",{"$f":"IFERROR(INDEX('Disaggregation1B_Import-Export'!D$8:D$239,MATCH($B21,'Disaggregation1B_Import-Export'!$C$8:$C$239,0)),\"\")","v":"TB care and prevention"},{"$f":"IFERROR(INDEX('Disaggregation1B_Import-Export'!AF$8:AF$256,MATCH($B21,'Disaggregation1B_Import-Export'!$C$8:$C$256,0)),\"\")","v":"TCP-2(M): Taux de succès thérapeutique- toutes formes confondue: Pourcentage de cas de TB, toutes formes confondue, bactériologiquement confirmés et diagnostiqués cliniquement, traités avec succès (guéris et traitement terminé) parmi tous les cas de TB ayant commencé le traitement pendant une période déterminée, nouveaux cas et récidives"},{"$f":"IFERROR(IF(INDEX('Disaggregation1B_Import-Export'!AG$8:AG$239,MATCH($B21,'Disaggregation1B_Import-Export'!$C$8:$C$239,0))=\"\",\"\",INDEX('Disaggregation1B_Import-Export'!AG$8:AG$239,MATCH($B21,'Disaggregation1B_Import-Export'!$C$8:$C$239,0))),\"\")","v":"Positif"},{"$f":"IFERROR(IF(INDEX('Disaggregation1B_Import-Export'!AH$8:AH$239,MATCH($B21,'Disaggregation1B_Import-Export'!$C$8:$C$239,0))=\"\",\"\",INDEX('Disaggregation1B_Import-Export'!AH$8:AH$239,MATCH($B21,'Disaggregation1B_Import-Export'!$C$8:$C$239,0))),\"\")","v":"Résultat du test VIH"},{"$f":"IFERROR(IF(INDEX('Disaggregation1B_Import-Export'!H$8:H$239,MATCH($B21,'Disaggregation1B_Import-Export'!$C$8:$C$239,0))=\"\",\"\",INDEX('Disaggregation1B_Import-Export'!H$8:H$239,MATCH($B21,'Disaggregation1B_Import-Export'!$C$8:$C$239,0))),\"\")","v":0},{"$f":"IFERROR(IF(INDEX('Disaggregation1B_Import-Export'!I$8:I$239,MATCH($B21,'Disaggregation1B_Import-Export'!$C$8:$C$239,0))=\"\",\"\",INDEX('Disaggregation1B_Import-Export'!I$8:I$239,MATCH($B21,'Disaggregation1B_Import-Export'!$C$8:$C$239,0))),\"\")","v":0},{"$f":"IFERROR(IF(INDEX('Disaggregation1B_Import-Export'!J$8:J$239,MATCH($B21,'Disaggregation1B_Import-Export'!$C$8:$C$239,0))=\"\",\"\",INDEX('Disaggregation1B_Import-Export'!J$8:J$239,MATCH($B21,'Disaggregation1B_Import-Export'!$C$8:$C$239,0))),\"\")","v":"0.0"},{"$f":"IFERROR(IF(INDEX('Disaggregation1B_Import-Export'!K$8:K$239,MATCH($B21,'Disaggregation1B_Import-Export'!$C$8:$C$239,0))=\"\",\"\",INDEX('Disaggregation1B_Import-Export'!K$8:K$239,MATCH($B21,'Disaggregation1B_Import-Export'!$C$8:$C$239,0))),\"\")","v":""},{"$f":"IFERROR(IF(INDEX('Disaggregation1B_Import-Export'!L$8:L$239,MATCH($B21,'Disaggregation1B_Import-Export'!$C$8:$C$239,0))=\"\",\"\",INDEX('Disaggregation1B_Import-Export'!L$8:L$239,MATCH($B21,'Disaggregation1B_Import-Export'!$C$8:$C$239,0))),\"\")","v":""},{"$f":"IFERROR(IF(INDEX('Disaggregation1B_Import-Export'!AQ$8:AQ$239,MATCH($B21,'Disaggregation1B_Import-Export'!$C$8:$C$239,0))=\"\",\"\",INDEX('Disaggregation1B_Import-Export'!AQ$8:AQ$239,MATCH($B21,'Disaggregation1B_Import-Export'!$C$8:$C$239,0))),\"\")","v":"Burundi"},null,null,"",null,"NA",null,null,null,"",null,null,null,null,null,""]
[12,"Coverage12",{"$f":"IFERROR(INDEX('Disaggregation1B_Import-Export'!D$8:D$239,MATCH($B22,'Disaggregation1B_Import-Export'!$C$8:$C$239,0)),\"\")","v":"TB care and prevention"},{"$f":"IFERROR(INDEX('Disaggregation1B_Import-Export'!AF$8:AF$256,MATCH($B22,'Disaggregation1B_Import-Export'!$C$8:$C$256,0)),\"\")","v":"TCP-2(M): Taux de succès thérapeutique- toutes formes confondue: Pourcentage de cas de TB, toutes formes confondue, bactériologiquement confirmés et diagnostiqués cliniquement, traités avec succès (guéris et traitement terminé) parmi tous les cas de TB ayant commencé le traitement pendant une période déterminée, nouveaux cas et récidives"},{"$f":"IFERROR(IF(INDEX('Disaggregation1B_Import-Export'!AG$8:AG$239,MATCH($B22,'Disaggregation1B_Import-Export'!$C$8:$C$239,0))=\"\",\"\",INDEX('Disaggregation1B_Import-Export'!AG$8:AG$239,MATCH($B22,'Disaggregation1B_Import-Export'!$C$8:$C$239,0))),\"\")","v":"Non communiqué"},{"$f":"IFERROR(IF(INDEX('Disaggregation1B_Import-Export'!AH$8:AH$239,MATCH($B22,'Disaggregation1B_Import-Export'!$C$8:$C$239,0))=\"\",\"\",INDEX('Disaggregation1B_Import-Export'!AH$8:AH$239,MATCH($B22,'Disaggregation1B_Import-Export'!$C$8:$C$239,0))),\"\")","v":"Résultat du test VIH"},{"$f":"IFERROR(IF(INDEX('Disaggregation1B_Import-Export'!H$8:H$239,MATCH($B22,'Disaggregation1B_Import-Export'!$C$8:$C$239,0))=\"\",\"\",INDEX('Disaggregation1B_Import-Export'!H$8:H$239,MATCH($B22,'Disaggregation1B_Import-Export'!$C$8:$C$239,0))),\"\")","v":0},{"$f":"IFERROR(IF(INDEX('Disaggregation1B_Import-Export'!I$8:I$239,MATCH($B22,'Disaggregation1B_Import-Export'!$C$8:$C$239,0))=\"\",\"\",INDEX('Disaggregation1B_Import-Export'!I$8:I$239,MATCH($B22,'Disaggregation1B_Import-Export'!$C$8:$C$239,0))),\"\")","v":0},{"$f":"IFERROR(IF(INDEX('Disaggregation1B_Import-Export'!J$8:J$239,MATCH($B22,'Disaggregation1B_Import-Export'!$C$8:$C$239,0))=\"\",\"\",INDEX('Disaggregation1B_Import-Export'!J$8:J$239,MATCH($B22,'Disaggregation1B_Import-Export'!$C$8:$C$239,0))),\"\")","v":"0.0"},{"$f":"IFERROR(IF(INDEX('Disaggregation1B_Import-Export'!K$8:K$239,MATCH($B22,'Disaggregation1B_Import-Export'!$C$8:$C$239,0))=\"\",\"\",INDEX('Disaggregation1B_Import-Export'!K$8:K$239,MATCH($B22,'Disaggregation1B_Import-Export'!$C$8:$C$239,0))),\"\")","v":""},{"$f":"IFERROR(IF(INDEX('Disaggregation1B_Import-Export'!L$8:L$239,MATCH($B22,'Disaggregation1B_Import-Export'!$C$8:$C$239,0))=\"\",\"\",INDEX('Disaggregation1B_Import-Export'!L$8:L$239,MATCH($B22,'Disaggregation1B_Import-Export'!$C$8:$C$239,0))),\"\")","v":""},{"$f":"IFERROR(IF(INDEX('Disaggregation1B_Import-Export'!AQ$8:AQ$239,MATCH($B22,'Disaggregation1B_Import-Export'!$C$8:$C$239,0))=\"\",\"\",INDEX('Disaggregation1B_Import-Export'!AQ$8:AQ$239,MATCH($B22,'Disaggregation1B_Import-Export'!$C$8:$C$239,0))),\"\")","v":"Burundi"},null,null,"",null,"NA",null,null,null,"",null,null,null,null,null,""]
[13,"Coverage13",{"$f":"IFERROR(INDEX('Disaggregation1B_Import-Export'!D$8:D$239,MATCH($B23,'Disaggregation1B_Import-Export'!$C$8:$C$239,0)),\"\")","v":"TB care and prevention"},{"$f":"IFERROR(INDEX('Disaggregation1B_Import-Export'!AF$8:AF$256,MATCH($B23,'Disaggregation1B_Import-Export'!$C$8:$C$256,0)),\"\")","v":"TCP-2(M): Taux de succès thérapeutique- toutes formes confondue: Pourcentage de cas de TB, toutes formes confondue, bactériologiquement confirmés et diagnostiqués cliniquement, traités avec succès (guéris et traitement terminé) parmi tous les cas de TB ayant commencé le traitement pendant une période déterminée, nouveaux cas et récidives"},{"$f":"IFERROR(IF(INDEX('Disaggregation1B_Import-Export'!AG$8:AG$239,MATCH($B23,'Disaggregation1B_Import-Export'!$C$8:$C$239,0))=\"\",\"\",INDEX('Disaggregation1B_Import-Export'!AG$8:AG$239,MATCH($B23,'Disaggregation1B_Import-Export'!$C$8:$C$239,0))),\"\")","v":"<15 ans"},{"$f":"IFERROR(IF(INDEX('Disaggregation1B_Import-Export'!AH$8:AH$239,MATCH($B23,'Disaggregation1B_Import-Export'!$C$8:$C$239,0))=\"\",\"\",INDEX('Disaggregation1B_Import-Export'!AH$8:AH$239,MATCH($B23,'Disaggregation1B_Import-Export'!$C$8:$C$239,0))),\"\")","v":"Age"},{"$f":"IFERROR(IF(INDEX('Disaggregation1B_Import-Export'!H$8:H$239,MATCH($B23,'Disaggregation1B_Import-Export'!$C$8:$C$239,0))=\"\",\"\",INDEX('Disaggregation1B_Import-Export'!H$8:H$239,MATCH($B23,'Disaggregation1B_Import-Export'!$C$8:$C$239,0))),\"\")","v":0},{"$f":"IFERROR(IF(INDEX('Disaggregation1B_Import-Export'!I$8:I$239,MATCH($B23,'Disaggregation1B_Import-Export'!$C$8:$C$239,0))=\"\",\"\",INDEX('Disaggregation1B_Import-Export'!I$8:I$239,MATCH($B23,'Disaggregation1B_Import-Export'!$C$8:$C$239,0))),\"\")","v":0},{"$f":"IFERROR(IF(INDEX('Disaggregation1B_Import-Export'!J$8:J$239,MATCH($B23,'Disaggregation1B_Import-Export'!$C$8:$C$239,0))=\"\",\"\",INDEX('Disaggregation1B_Import-Export'!J$8:J$239,MATCH($B23,'Disaggregation1B_Import-Export'!$C$8:$C$239,0))),\"\")","v":"0.0"},{"$f":"IFERROR(IF(INDEX('Disaggregation1B_Import-Export'!K$8:K$239,MATCH($B23,'Disaggregation1B_Import-Export'!$C$8:$C$239,0))=\"\",\"\",INDEX('Disaggregation1B_Import-Export'!K$8:K$239,MATCH($B23,'Disaggregation1B_Import-Export'!$C$8:$C$239,0))),\"\")","v":""},{"$f":"IFERROR(IF(INDEX('Disaggregation1B_Import-Export'!L$8:L$239,MATCH($B23,'Disaggregation1B_Import-Export'!$C$8:$C$239,0))=\"\",\"\",INDEX('Disaggregation1B_Import-Export'!L$8:L$239,MATCH($B23,'Disaggregation1B_Import-Export'!$C$8:$C$239,0))),\"\")","v":""},{"$f":"IFERROR(IF(INDEX('Disaggregation1B_Import-Export'!AQ$8:AQ$239,MATCH($B23,'Disaggregation1B_Import-Export'!$C$8:$C$239,0))=\"\",\"\",INDEX('Disaggregation1B_Import-Export'!AQ$8:AQ$239,MATCH($B23,'Disaggregation1B_Import-Export'!$C$8:$C$239,0))),\"\")","v":"Burundi"},null,null,"",null,"Le système d'information sanitaire ne permet pas de renseigner cet indicateur désagrégé par tranche d'âge",null,null,null,"",null,null,null,null,null,""]
[14,"Coverage14",{"$f":"IFERROR(INDEX('Disaggregation1B_Import-Export'!D$8:D$239,MATCH($B24,'Disaggregation1B_Import-Export'!$C$8:$C$239,0)),\"\")","v":"TB care and prevention"},{"$f":"IFERROR(INDEX('Disaggregation1B_Import-Export'!AF$8:AF$256,MATCH($B24,'Disaggregation1B_Import-Export'!$C$8:$C$256,0)),\"\")","v":"TCP-2(M): Taux de succès thérapeutique- toutes formes confondue: Pourcentage de cas de TB, toutes formes confondue, bactériologiquement confirmés et diagnostiqués cliniquement, traités avec succès (guéris et traitement terminé) parmi tous les cas de TB ayant commencé le traitement pendant une période déterminée, nouveaux cas et récidives"},{"$f":"IFERROR(IF(INDEX('Disaggregation1B_Import-Export'!AG$8:AG$239,MATCH($B24,'Disaggregation1B_Import-Export'!$C$8:$C$239,0))=\"\",\"\",INDEX('Disaggregation1B_Import-Export'!AG$8:AG$239,MATCH($B24,'Disaggregation1B_Import-Export'!$C$8:$C$239,0))),\"\")","v":"+ de 15 ans"},{"$f":"IFERROR(IF(INDEX('Disaggregation1B_Import-Export'!AH$8:AH$239,MATCH($B24,'Disaggregation1B_Import-Export'!$C$8:$C$239,0))=\"\",\"\",INDEX('Disaggregation1B_Import-Export'!AH$8:AH$239,MATCH($B24,'Disaggregation1B_Import-Export'!$C$8:$C$239,0))),\"\")","v":"Age"},{"$f":"IFERROR(IF(INDEX('Disaggregation1B_Import-Export'!H$8:H$239,MATCH($B24,'Disaggregation1B_Import-Export'!$C$8:$C$239,0))=\"\",\"\",INDEX('Disaggregation1B_Import-Export'!H$8:H$239,MATCH($B24,'Disaggregation1B_Import-Export'!$C$8:$C$239,0))),\"\")","v":0},{"$f":"IFERROR(IF(INDEX('Disaggregation1B_Import-Export'!I$8:I$239,MATCH($B24,'Disaggregation1B_Import-Export'!$C$8:$C$239,0))=\"\",\"\",INDEX('Disaggregation1B_Import-Export'!I$8:I$239,MATCH($B24,'Disaggregation1B_Import-Export'!$C$8:$C$239,0))),\"\")","v":0},{"$f":"IFERROR(IF(INDEX('Disaggregation1B_Import-Export'!J$8:J$239,MATCH($B24,'Disaggregation1B_Import-Export'!$C$8:$C$239,0))=\"\",\"\",INDEX('Disaggregation1B_Import-Export'!J$8:J$239,MATCH($B24,'Disaggregation1B_Import-Export'!$C$8:$C$239,0))),\"\")","v":"0.0"},{"$f":"IFERROR(IF(INDEX('Disaggregation1B_Import-Export'!K$8:K$239,MATCH($B24,'Disaggregation1B_Import-Export'!$C$8:$C$239,0))=\"\",\"\",INDEX('Disaggregation1B_Import-Export'!K$8:K$239,MATCH($B24,'Disaggregation1B_Import-Export'!$C$8:$C$239,0))),\"\")","v":""},{"$f":"IFERROR(IF(INDEX('Disaggregation1B_Import-Export'!L$8:L$239,MATCH($B24,'Disaggregation1B_Import-Export'!$C$8:$C$239,0))=\"\",\"\",INDEX('Disaggregation1B_Import-Export'!L$8:L$239,MATCH($B24,'Disaggregation1B_Import-Export'!$C$8:$C$239,0))),\"\")","v":""},{"$f":"IFERROR(IF(INDEX('Disaggregation1B_Import-Export'!AQ$8:AQ$239,MATCH($B24,'Disaggregation1B_Import-Export'!$C$8:$C$239,0))=\"\",\"\",INDEX('Disaggregation1B_Import-Export'!AQ$8:AQ$239,MATCH($B24,'Disaggregation1B_Import-Export'!$C$8:$C$239,0))),\"\")","v":"Burundi"},null,null,"",null,"Le système d'information sanitaire ne permet pas de renseigner cet indicateur désagrégé par tranche d'âge",null,null,null,"",null,null,null,null,null,""]
[15,"Coverage15",{"$f":"IFERROR(INDEX('Disaggregation1B_Import-Export'!D$8:D$239,MATCH($B25,'Disaggregation1B_Import-Export'!$C$8:$C$239,0)),\"\")","v":"TB care and prevention"},{"$f":"IFERROR(INDEX('Disaggregation1B_Import-Export'!AF$8:AF$256,MATCH($B25,'Disaggregation1B_Import-Export'!$C$8:$C$256,0)),\"\")","v":"TCP-2(M): Taux de succès thérapeutique- toutes formes confondue: Pourcentage de cas de TB, toutes formes confondue, bactériologiquement confirmés et diagnostiqués cliniquement, traités avec succès (guéris et traitement terminé) parmi tous les cas de TB ayant commencé le traitement pendant une période déterminée, nouveaux cas et récidives"},{"$f":"IFERROR(IF(INDEX('Disaggregation1B_Import-Export'!AG$8:AG$239,MATCH($B25,'Disaggregation1B_Import-Export'!$C$8:$C$239,0))=\"\",\"\",INDEX('Disaggregation1B_Import-Export'!AG$8:AG$239,MATCH($B25,'Disaggregation1B_Import-Export'!$C$8:$C$239,0))),\"\")","v":"Femme"},{"$f":"IFERROR(IF(INDEX('Disaggregation1B_Import-Export'!AH$8:AH$239,MATCH($B25,'Disaggregation1B_Import-Export'!$C$8:$C$239,0))=\"\",\"\",INDEX('Disaggregation1B_Import-Export'!AH$8:AH$239,MATCH($B25,'Disaggregation1B_Import-Export'!$C$8:$C$239,0))),\"\")","v":"Sexe"},{"$f":"IFERROR(IF(INDEX('Disaggregation1B_Import-Export'!H$8:H$239,MATCH($B25,'Disaggregation1B_Import-Export'!$C$8:$C$239,0))=\"\",\"\",INDEX('Disaggregation1B_Import-Export'!H$8:H$239,MATCH($B25,'Disaggregation1B_Import-Export'!$C$8:$C$239,0))),\"\")","v":4279},{"$f":"IFERROR(IF(INDEX('Disaggregation1B_Import-Export'!I$8:I$239,MATCH($B25,'Disaggregation1B_Import-Export'!$C$8:$C$239,0))=\"\",\"\",INDEX('Disaggregation1B_Import-Export'!I$8:I$239,MATCH($B25,'Disaggregation1B_Import-Export'!$C$8:$C$239,0))),\"\")","v":4654},{"$f":"IFERROR(IF(INDEX('Disaggregation1B_Import-Export'!J$8:J$239,MATCH($B25,'Disaggregation1B_Import-Export'!$C$8:$C$239,0))=\"\",\"\",INDEX('Disaggregation1B_Import-Export'!J$8:J$239,MATCH($B25,'Disaggregation1B_Import-Export'!$C$8:$C$239,0))),\"\")","v":"0.9"},{"$f":"IFERROR(IF(INDEX('Disaggregation1B_Import-Export'!K$8:K$239,MATCH($B25,'Disaggregation1B_Import-Export'!$C$8:$C$239,0))=\"\",\"\",INDEX('Disaggregation1B_Import-Export'!K$8:K$239,MATCH($B25,'Disaggregation1B_Import-Export'!$C$8:$C$239,0))),\"\")","v":"2016"},{"$f":"IFERROR(IF(INDEX('Disaggregation1B_Import-Export'!L$8:L$239,MATCH($B25,'Disaggregation1B_Import-Export'!$C$8:$C$239,0))=\"\",\"\",INDEX('Disaggregation1B_Import-Export'!L$8:L$239,MATCH($B25,'Disaggregation1B_Import-Export'!$C$8:$C$239,0))),\"\")","v":"PNILT 2016 Annual Report"},{"$f":"IFERROR(IF(INDEX('Disaggregation1B_Import-Export'!AQ$8:AQ$239,MATCH($B25,'Disaggregation1B_Import-Export'!$C$8:$C$239,0))=\"\",\"\",INDEX('Disaggregation1B_Import-Export'!AQ$8:AQ$239,MATCH($B25,'Disaggregation1B_Import-Export'!$C$8:$C$239,0))),\"\")","v":"Burundi"},1312,1394,94.117647058823522,"TB patient register","Parmi les cas TTF , 1312 femmes ont  terminé le traitement ou sont déclarés guéris soit un taux de succès thérapeutique de 94,11%",null,null,null,"",null,null,null,null,null,""]
[16,"Coverage16",{"$f":"IFERROR(INDEX('Disaggregation1B_Import-Export'!D$8:D$239,MATCH($B26,'Disaggregation1B_Import-Export'!$C$8:$C$239,0)),\"\")","v":"MDR-TB"},{"$f":"IFERROR(INDEX('Disaggregation1B_Import-Export'!AF$8:AF$256,MATCH($B26,'Disaggregation1B_Import-Export'!$C$8:$C$256,0)),\"\")","v":"MDR TB-2(M): Nombre de cas de tuberculose, résistante à la rifampicine et/ou tuberculose multirésistante confirmés"},{"$f":"IFERROR(IF(INDEX('Disaggregation1B_Import-Export'!AG$8:AG$239,MATCH($B26,'Disaggregation1B_Import-Export'!$C$8:$C$239,0))=\"\",\"\",INDEX('Disaggregation1B_Import-Export'!AG$8:AG$239,MATCH($B26,'Disaggregation1B_Import-Export'!$C$8:$C$239,0))),\"\")","v":"Femme"},{"$f":"IFERROR(IF(INDEX('Disaggregation1B_Import-Export'!AH$8:AH$239,MATCH($B26,'Disaggregation1B_Import-Export'!$C$8:$C$239,0))=\"\",\"\",INDEX('Disaggregation1B_Import-Export'!AH$8:AH$239,MATCH($B26,'Disaggregation1B_Import-Export'!$C$8:$C$239,0))),\"\")","v":"Sexe"},{"$f":"IFERROR(IF(INDEX('Disaggregation1B_Import-Export'!H$8:H$239,MATCH($B26,'Disaggregation1B_Import-Export'!$C$8:$C$239,0))=\"\",\"\",INDEX('Disaggregation1B_Import-Export'!H$8:H$239,MATCH($B26,'Disaggregation1B_Import-Export'!$C$8:$C$239,0))),\"\")","v":27},{"$f":"IFERROR(IF(INDEX('Disaggregation1B_Import-Export'!I$8:I$239,MATCH($B26,'Disaggregation1B_Import-Export'!$C$8:$C$239,0))=\"\",\"\",INDEX('Disaggregation1B_Import-Export'!I$8:I$239,MATCH($B26,'Disaggregation1B_Import-Export'!$C$8:$C$239,0))),\"\")","v":0},{"$f":"IFERROR(IF(INDEX('Disaggregation1B_Import-Export'!J$8:J$239,MATCH($B26,'Disaggregation1B_Import-Export'!$C$8:$C$239,0))=\"\",\"\",INDEX('Disaggregation1B_Import-Export'!J$8:J$239,MATCH($B26,'Disaggregation1B_Import-Export'!$C$8:$C$239,0))),\"\")","v":"0.0"},{"$f":"IFERROR(IF(INDEX('Disaggregation1B_Import-Export'!K$8:K$239,MATCH($B26,'Disaggregation1B_Import-Export'!$C$8:$C$239,0))=\"\",\"\",INDEX('Disaggregation1B_Import-Export'!K$8:K$239,MATCH($B26,'Disaggregation1B_Import-Export'!$C$8:$C$239,0))),\"\")","v":"2016"},{"$f":"IFERROR(IF(INDEX('Disaggregation1B_Import-Export'!L$8:L$239,MATCH($B26,'Disaggregation1B_Import-Export'!$C$8:$C$239,0))=\"\",\"\",INDEX('Disaggregation1B_Import-Export'!L$8:L$239,MATCH($B26,'Disaggregation1B_Import-Export'!$C$8:$C$239,0))),\"\")","v":"PNILT 2016 Annual Report"},{"$f":"IFERROR(IF(INDEX('Disaggregation1B_Import-Export'!AQ$8:AQ$239,MATCH($B26,'Disaggregation1B_Import-Export'!$C$8:$C$239,0))=\"\",\"\",INDEX('Disaggregation1B_Import-Export'!AQ$8:AQ$239,MATCH($B26,'Disaggregation1B_Import-Export'!$C$8:$C$239,0))),\"\")","v":"Burundi"},4,null,"","TB patient register","Sur 20 cas de TB multiresistante, 20%  sont des femmes (N=4)",null,null,null,"",null,null,null,null,null,""]
[17,"Coverage17",{"$f":"IFERROR(INDEX('Disaggregation1B_Import-Export'!D$8:D$239,MATCH($B27,'Disaggregation1B_Import-Export'!$C$8:$C$239,0)),\"\")","v":"MDR-TB"},{"$f":"IFERROR(INDEX('Disaggregation1B_Import-Export'!AF$8:AF$256,MATCH($B27,'Disaggregation1B_Import-Export'!$C$8:$C$256,0)),\"\")","v":"MDR TB-2(M): Nombre de cas de tuberculose, résistante à la rifampicine et/ou tuberculose multirésistante confirmés"},{"$f":"IFERROR(IF(INDEX('Disaggregation1B_Import-Export'!AG$8:AG$239,MATCH($B27,'Disaggregation1B_Import-Export'!$C$8:$C$239,0))=\"\",\"\",INDEX('Disaggregation1B_Import-Export'!AG$8:AG$239,MATCH($B27,'Disaggregation1B_Import-Export'!$C$8:$C$239,0))),\"\")","v":"Homme"},{"$f":"IFERROR(IF(INDEX('Disaggregation1B_Import-Export'!AH$8:AH$239,MATCH($B27,'Disaggregation1B_Import-Export'!$C$8:$C$239,0))=\"\",\"\",INDEX('Disaggregation1B_Import-Export'!AH$8:AH$239,MATCH($B27,'Disaggregation1B_Import-Export'!$C$8:$C$239,0))),\"\")","v":"Sexe"},{"$f":"IFERROR(IF(INDEX('Disaggregation1B_Import-Export'!H$8:H$239,MATCH($B27,'Disaggregation1B_Import-Export'!$C$8:$C$239,0))=\"\",\"\",INDEX('Disaggregation1B_Import-Export'!H$8:H$239,MATCH($B27,'Disaggregation1B_Import-Export'!$C$8:$C$239,0))),\"\")","v":53},{"$f":"IFERROR(IF(INDEX('Disaggregation1B_Import-Export'!I$8:I$239,MATCH($B27,'Disaggregation1B_Import-Export'!$C$8:$C$239,0))=\"\",\"\",INDEX('Disaggregation1B_Import-Export'!I$8:I$239,MATCH($B27,'Disaggregation1B_Import-Export'!$C$8:$C$239,0))),\"\")","v":0},{"$f":"IFERROR(IF(INDEX('Disaggregation1B_Import-Export'!J$8:J$239,MATCH($B27,'Disaggregation1B_Import-Export'!$C$8:$C$239,0))=\"\",\"\",INDEX('Disaggregation1B_Import-Export'!J$8:J$239,MATCH($B27,'Disaggregation1B_Import-Export'!$C$8:$C$239,0))),\"\")","v":"0.0"},{"$f":"IFERROR(IF(INDEX('Disaggregation1B_Import-Export'!K$8:K$239,MATCH($B27,'Disaggregation1B_Import-Export'!$C$8:$C$239,0))=\"\",\"\",INDEX('Disaggregation1B_Import-Export'!K$8:K$239,MATCH($B27,'Disaggregation1B_Import-Export'!$C$8:$C$239,0))),\"\")","v":"2016"},{"$f":"IFERROR(IF(INDEX('Disaggregation1B_Import-Export'!L$8:L$239,MATCH($B27,'Disaggregation1B_Import-Export'!$C$8:$C$239,0))=\"\",\"\",INDEX('Disaggregation1B_Import-Export'!L$8:L$239,MATCH($B27,'Disaggregation1B_Import-Export'!$C$8:$C$239,0))),\"\")","v":"PNILT 2016 Annual Report"},{"$f":"IFERROR(IF(INDEX('Disaggregation1B_Import-Export'!AQ$8:AQ$239,MATCH($B27,'Disaggregation1B_Import-Export'!$C$8:$C$239,0))=\"\",\"\",INDEX('Disaggregation1B_Import-Export'!AQ$8:AQ$239,MATCH($B27,'Disaggregation1B_Import-Export'!$C$8:$C$239,0))),\"\")","v":"Burundi"},16,null,"","TB patient register","Sur 20 cas de TB multiresistante, 80% sont des hommes (N=16). ",null,null,null,"",null,null,null,null,null,""]
[18,"Coverage18",{"$f":"IFERROR(INDEX('Disaggregation1B_Import-Export'!D$8:D$239,MATCH($B28,'Disaggregation1B_Import-Export'!$C$8:$C$239,0)),\"\")","v":"MDR-TB"},{"$f":"IFERROR(INDEX('Disaggregation1B_Import-Export'!AF$8:AF$256,MATCH($B28,'Disaggregation1B_Import-Export'!$C$8:$C$256,0)),\"\")","v":"MDR TB-2(M): Nombre de cas de tuberculose, résistante à la rifampicine et/ou tuberculose multirésistante confirmés"},{"$f":"IFERROR(IF(INDEX('Disaggregation1B_Import-Export'!AG$8:AG$239,MATCH($B28,'Disaggregation1B_Import-Export'!$C$8:$C$239,0))=\"\",\"\",INDEX('Disaggregation1B_Import-Export'!AG$8:AG$239,MATCH($B28,'Disaggregation1B_Import-Export'!$C$8:$C$239,0))),\"\")","v":"<15 ans"},{"$f":"IFERROR(IF(INDEX('Disaggregation1B_Import-Export'!AH$8:AH$239,MATCH($B28,'Disaggregation1B_Import-Export'!$C$8:$C$239,0))=\"\",\"\",INDEX('Disaggregation1B_Import-Export'!AH$8:AH$239,MATCH($B28,'Disaggregation1B_Import-Export'!$C$8:$C$239,0))),\"\")","v":"Age"},{"$f":"IFERROR(IF(INDEX('Disaggregation1B_Import-Export'!H$8:H$239,MATCH($B28,'Disaggregation1B_Import-Export'!$C$8:$C$239,0))=\"\",\"\",INDEX('Disaggregation1B_Import-Export'!H$8:H$239,MATCH($B28,'Disaggregation1B_Import-Export'!$C$8:$C$239,0))),\"\")","v":2},{"$f":"IFERROR(IF(INDEX('Disaggregation1B_Import-Export'!I$8:I$239,MATCH($B28,'Disaggregation1B_Import-Export'!$C$8:$C$239,0))=\"\",\"\",INDEX('Disaggregation1B_Import-Export'!I$8:I$239,MATCH($B28,'Disaggregation1B_Import-Export'!$C$8:$C$239,0))),\"\")","v":0},{"$f":"IFERROR(IF(INDEX('Disaggregation1B_Import-Export'!J$8:J$239,MATCH($B28,'Disaggregation1B_Import-Export'!$C$8:$C$239,0))=\"\",\"\",INDEX('Disaggregation1B_Import-Export'!J$8:J$239,MATCH($B28,'Disaggregation1B_Import-Export'!$C$8:$C$239,0))),\"\")","v":"0.0"},{"$f":"IFERROR(IF(INDEX('Disaggregation1B_Import-Export'!K$8:K$239,MATCH($B28,'Disaggregation1B_Import-Export'!$C$8:$C$239,0))=\"\",\"\",INDEX('Disaggregation1B_Import-Export'!K$8:K$239,MATCH($B28,'Disaggregation1B_Import-Export'!$C$8:$C$239,0))),\"\")","v":"2016"},{"$f":"IFERROR(IF(INDEX('Disaggregation1B_Import-Export'!L$8:L$239,MATCH($B28,'Disaggregation1B_Import-Export'!$C$8:$C$239,0))=\"\",\"\",INDEX('Disaggregation1B_Import-Export'!L$8:L$239,MATCH($B28,'Disaggregation1B_Import-Export'!$C$8:$C$239,0))),\"\")","v":"PNILT 2016 Annual Report"},{"$f":"IFERROR(IF(INDEX('Disaggregation1B_Import-Export'!AQ$8:AQ$239,MATCH($B28,'Disaggregation1B_Import-Export'!$C$8:$C$239,0))=\"\",\"\",INDEX('Disaggregation1B_Import-Export'!AQ$8:AQ$239,MATCH($B28,'Disaggregation1B_Import-Export'!$C$8:$C$239,0))),\"\")","v":"Burundi"},0,null,"","TB patient register","Toutes les personnes dépistées pour la  TB/MR  au cours du premier semestre 2018 avaient  un âge > à 15 ans. ",null,null,null,"",null,null,null,null,null,""]
[19,"Coverage19",{"$f":"IFERROR(INDEX('Disaggregation1B_Import-Export'!D$8:D$239,MATCH($B29,'Disaggregation1B_Import-Export'!$C$8:$C$239,0)),\"\")","v":"MDR-TB"},{"$f":"IFERROR(INDEX('Disaggregation1B_Import-Export'!AF$8:AF$256,MATCH($B29,'Disaggregation1B_Import-Export'!$C$8:$C$256,0)),\"\")","v":"MDR TB-2(M): Nombre de cas de tuberculose, résistante à la rifampicine et/ou tuberculose multirésistante confirmés"},{"$f":"IFERROR(IF(INDEX('Disaggregation1B_Import-Export'!AG$8:AG$239,MATCH($B29,'Disaggregation1B_Import-Export'!$C$8:$C$239,0))=\"\",\"\",INDEX('Disaggregation1B_Import-Export'!AG$8:AG$239,MATCH($B29,'Disaggregation1B_Import-Export'!$C$8:$C$239,0))),\"\")","v":"+ de 15 ans"},{"$f":"IFERROR(IF(INDEX('Disaggregation1B_Import-Export'!AH$8:AH$239,MATCH($B29,'Disaggregation1B_Import-Export'!$C$8:$C$239,0))=\"\",\"\",INDEX('Disaggregation1B_Import-Export'!AH$8:AH$239,MATCH($B29,'Disaggregation1B_Import-Export'!$C$8:$C$239,0))),\"\")","v":"Age"},{"$f":"IFERROR(IF(INDEX('Disaggregation1B_Import-Export'!H$8:H$239,MATCH($B29,'Disaggregation1B_Import-Export'!$C$8:$C$239,0))=\"\",\"\",INDEX('Disaggregation1B_Import-Export'!H$8:H$239,MATCH($B29,'Disaggregation1B_Import-Export'!$C$8:$C$239,0))),\"\")","v":78},{"$f":"IFERROR(IF(INDEX('Disaggregation1B_Import-Export'!I$8:I$239,MATCH($B29,'Disaggregation1B_Import-Export'!$C$8:$C$239,0))=\"\",\"\",INDEX('Disaggregation1B_Import-Export'!I$8:I$239,MATCH($B29,'Disaggregation1B_Import-Export'!$C$8:$C$239,0))),\"\")","v":0},{"$f":"IFERROR(IF(INDEX('Disaggregation1B_Import-Export'!J$8:J$239,MATCH($B29,'Disaggregation1B_Import-Export'!$C$8:$C$239,0))=\"\",\"\",INDEX('Disaggregation1B_Import-Export'!J$8:J$239,MATCH($B29,'Disaggregation1B_Import-Export'!$C$8:$C$239,0))),\"\")","v":"0.0"},{"$f":"IFERROR(IF(INDEX('Disaggregation1B_Import-Export'!K$8:K$239,MATCH($B29,'Disaggregation1B_Import-Export'!$C$8:$C$239,0))=\"\",\"\",INDEX('Disaggregation1B_Import-Export'!K$8:K$239,MATCH($B29,'Disaggregation1B_Import-Export'!$C$8:$C$239,0))),\"\")","v":"2016"},{"$f":"IFERROR(IF(INDEX('Disaggregation1B_Import-Export'!L$8:L$239,MATCH($B29,'Disaggregation1B_Import-Export'!$C$8:$C$239,0))=\"\",\"\",INDEX('Disaggregation1B_Import-Export'!L$8:L$239,MATCH($B29,'Disaggregation1B_Import-Export'!$C$8:$C$239,0))),\"\")","v":"PNILT 2016 Annual Report"},{"$f":"IFERROR(IF(INDEX('Disaggregation1B_Import-Export'!AQ$8:AQ$239,MATCH($B29,'Disaggregation1B_Import-Export'!$C$8:$C$239,0))=\"\",\"\",INDEX('Disaggregation1B_Import-Export'!AQ$8:AQ$239,MATCH($B29,'Disaggregation1B_Import-Export'!$C$8:$C$239,0))),\"\")","v":"Burundi"},20,null,"","TB patient register","100% des cas  qui ont été diagnostiqués correspondent à cette tranche",null,null,null,"",null,null,null,null,null,""]
[20,"Coverage20",{"$f":"IFERROR(INDEX('Disaggregation1B_Import-Export'!D$8:D$239,MATCH($B30,'Disaggregation1B_Import-Export'!$C$8:$C$239,0)),\"\")","v":"MDR-TB"},{"$f":"IFERROR(INDEX('Disaggregation1B_Import-Export'!AF$8:AF$256,MATCH($B30,'Disaggregation1B_Import-Export'!$C$8:$C$256,0)),\"\")","v":"MDR TB-3(M): Nombre de cas de tuberculose résistante à la rifampicine et/ou tuberculose multirésistante qui ont commencé un traitement de deuxième intention"},{"$f":"IFERROR(IF(INDEX('Disaggregation1B_Import-Export'!AG$8:AG$239,MATCH($B30,'Disaggregation1B_Import-Export'!$C$8:$C$239,0))=\"\",\"\",INDEX('Disaggregation1B_Import-Export'!AG$8:AG$239,MATCH($B30,'Disaggregation1B_Import-Export'!$C$8:$C$239,0))),\"\")","v":"<15 ans"},{"$f":"IFERROR(IF(INDEX('Disaggregation1B_Import-Export'!AH$8:AH$239,MATCH($B30,'Disaggregation1B_Import-Export'!$C$8:$C$239,0))=\"\",\"\",INDEX('Disaggregation1B_Import-Export'!AH$8:AH$239,MATCH($B30,'Disaggregation1B_Import-Export'!$C$8:$C$239,0))),\"\")","v":"Age"},{"$f":"IFERROR(IF(INDEX('Disaggregation1B_Import-Export'!H$8:H$239,MATCH($B30,'Disaggregation1B_Import-Export'!$C$8:$C$239,0))=\"\",\"\",INDEX('Disaggregation1B_Import-Export'!H$8:H$239,MATCH($B30,'Disaggregation1B_Import-Export'!$C$8:$C$239,0))),\"\")","v":2},{"$f":"IFERROR(IF(INDEX('Disaggregation1B_Import-Export'!I$8:I$239,MATCH($B30,'Disaggregation1B_Import-Export'!$C$8:$C$239,0))=\"\",\"\",INDEX('Disaggregation1B_Import-Export'!I$8:I$239,MATCH($B30,'Disaggregation1B_Import-Export'!$C$8:$C$239,0))),\"\")","v":0},{"$f":"IFERROR(IF(INDEX('Disaggregation1B_Import-Export'!J$8:J$239,MATCH($B30,'Disaggregation1B_Import-Export'!$C$8:$C$239,0))=\"\",\"\",INDEX('Disaggregation1B_Import-Export'!J$8:J$239,MATCH($B30,'Disaggregation1B_Import-Export'!$C$8:$C$239,0))),\"\")","v":"0.0"},{"$f":"IFERROR(IF(INDEX('Disaggregation1B_Import-Export'!K$8:K$239,MATCH($B30,'Disaggregation1B_Import-Export'!$C$8:$C$239,0))=\"\",\"\",INDEX('Disaggregation1B_Import-Export'!K$8:K$239,MATCH($B30,'Disaggregation1B_Import-Export'!$C$8:$C$239,0))),\"\")","v":"2016"},{"$f":"IFERROR(IF(INDEX('Disaggregation1B_Import-Export'!L$8:L$239,MATCH($B30,'Disaggregation1B_Import-Export'!$C$8:$C$239,0))=\"\",\"\",INDEX('Disaggregation1B_Import-Export'!L$8:L$239,MATCH($B30,'Disaggregation1B_Import-Export'!$C$8:$C$239,0))),\"\")","v":""},{"$f":"IFERROR(IF(INDEX('Disaggregation1B_Import-Export'!AQ$8:AQ$239,MATCH($B30,'Disaggregation1B_Import-Export'!$C$8:$C$239,0))=\"\",\"\",INDEX('Disaggregation1B_Import-Export'!AQ$8:AQ$239,MATCH($B30,'Disaggregation1B_Import-Export'!$C$8:$C$239,0))),\"\")","v":"Burundi"},0,null,"","TB patient register",null,null,null,null,"",null,null,null,null,null,""]
[21,"Coverage21",{"$f":"IFERROR(INDEX('Disaggregation1B_Import-Export'!D$8:D$239,MATCH($B31,'Disaggregation1B_Import-Export'!$C$8:$C$239,0)),\"\")","v":"MDR-TB"},{"$f":"IFERROR(INDEX('Disaggregation1B_Import-Export'!AF$8:AF$256,MATCH($B31,'Disaggregation1B_Import-Export'!$C$8:$C$256,0)),\"\")","v":"MDR TB-3(M): Nombre de cas de tuberculose résistante à la rifampicine et/ou tuberculose multirésistante qui ont commencé un traitement de deuxième intention"},{"$f":"IFERROR(IF(INDEX('Disaggregation1B_Import-Export'!AG$8:AG$239,MATCH($B31,'Disaggregation1B_Import-Export'!$C$8:$C$239,0))=\"\",\"\",INDEX('Disaggregation1B_Import-Export'!AG$8:AG$239,MATCH($B31,'Disaggregation1B_Import-Export'!$C$8:$C$239,0))),\"\")","v":"Femme"},{"$f":"IFERROR(IF(INDEX('Disaggregation1B_Import-Export'!AH$8:AH$239,MATCH($B31,'Disaggregation1B_Import-Export'!$C$8:$C$239,0))=\"\",\"\",INDEX('Disaggregation1B_Import-Export'!AH$8:AH$239,MATCH($B31,'Disaggregation1B_Import-Export'!$C$8:$C$239,0))),\"\")","v":"Sexe"},{"$f":"IFERROR(IF(INDEX('Disaggregation1B_Import-Export'!H$8:H$239,MATCH($B31,'Disaggregation1B_Import-Export'!$C$8:$C$239,0))=\"\",\"\",INDEX('Disaggregation1B_Import-Export'!H$8:H$239,MATCH($B31,'Disaggregation1B_Import-Export'!$C$8:$C$239,0))),\"\")","v":27},{"$f":"IFERROR(IF(INDEX('Disaggregation1B_Import-Export'!I$8:I$239,MATCH($B31,'Disaggregation1B_Import-Export'!$C$8:$C$239,0))=\"\",\"\",INDEX('Disaggregation1B_Import-Export'!I$8:I$239,MATCH($B31,'Disaggregation1B_Import-Export'!$C$8:$C$239,0))),\"\")","v":0},{"$f":"IFERROR(IF(INDEX('Disaggregation1B_Import-Export'!J$8:J$239,MATCH($B31,'Disaggregation1B_Import-Export'!$C$8:$C$239,0))=\"\",\"\",INDEX('Disaggregation1B_Import-Export'!J$8:J$239,MATCH($B31,'Disaggregation1B_Import-Export'!$C$8:$C$239,0))),\"\")","v":"0.0"},{"$f":"IFERROR(IF(INDEX('Disaggregation1B_Import-Export'!K$8:K$239,MATCH($B31,'Disaggregation1B_Import-Export'!$C$8:$C$239,0))=\"\",\"\",INDEX('Disaggregation1B_Import-Export'!K$8:K$239,MATCH($B31,'Disaggregation1B_Import-Export'!$C$8:$C$239,0))),\"\")","v":"2016"},{"$f":"IFERROR(IF(INDEX('Disaggregation1B_Import-Export'!L$8:L$239,MATCH($B31,'Disaggregation1B_Import-Export'!$C$8:$C$239,0))=\"\",\"\",INDEX('Disaggregation1B_Import-Export'!L$8:L$239,MATCH($B31,'Disaggregation1B_Import-Export'!$C$8:$C$239,0))),\"\")","v":""},{"$f":"IFERROR(IF(INDEX('Disaggregation1B_Import-Export'!AQ$8:AQ$239,MATCH($B31,'Disaggregation1B_Import-Export'!$C$8:$C$239,0))=\"\",\"\",INDEX('Disaggregation1B_Import-Export'!AQ$8:AQ$239,MATCH($B31,'Disaggregation1B_Import-Export'!$C$8:$C$239,0))),\"\")","v":"Burundi"},4,null,"","TB patient register","Les 4 femmes ayant une TB MDR avaient toutes commencé le traitement",null,null,null,"",null,null,null,null,null,""]
[22,"Coverage22",{"$f":"IFERROR(INDEX('Disaggregation1B_Import-Export'!D$8:D$239,MATCH($B32,'Disaggregation1B_Import-Export'!$C$8:$C$239,0)),\"\")","v":"MDR-TB"},{"$f":"IFERROR(INDEX('Disaggregation1B_Import-Export'!AF$8:AF$256,MATCH($B32,'Disaggregation1B_Import-Export'!$C$8:$C$256,0)),\"\")","v":"MDR TB-3(M): Nombre de cas de tuberculose résistante à la rifampicine et/ou tuberculose multirésistante qui ont commencé un traitement de deuxième intention"},{"$f":"IFERROR(IF(INDEX('Disaggregation1B_Import-Export'!AG$8:AG$239,MATCH($B32,'Disaggregation1B_Import-Export'!$C$8:$C$239,0))=\"\",\"\",INDEX('Disaggregation1B_Import-Export'!AG$8:AG$239,MATCH($B32,'Disaggregation1B_Import-Export'!$C$8:$C$239,0))),\"\")","v":"Homme"},{"$f":"IFERROR(IF(INDEX('Disaggregation1B_Import-Export'!AH$8:AH$239,MATCH($B32,'Disaggregation1B_Import-Export'!$C$8:$C$239,0))=\"\",\"\",INDEX('Disaggregation1B_Import-Export'!AH$8:AH$239,MATCH($B32,'Disaggregation1B_Import-Export'!$C$8:$C$239,0))),\"\")","v":"Sexe"},{"$f":"IFERROR(IF(INDEX('Disaggregation1B_Import-Export'!H$8:H$239,MATCH($B32,'Disaggregation1B_Import-Export'!$C$8:$C$239,0))=\"\",\"\",INDEX('Disaggregation1B_Import-Export'!H$8:H$239,MATCH($B32,'Disaggregation1B_Import-Export'!$C$8:$C$239,0))),\"\")","v":53},{"$f":"IFERROR(IF(INDEX('Disaggregation1B_Import-Export'!I$8:I$239,MATCH($B32,'Disaggregation1B_Import-Export'!$C$8:$C$239,0))=\"\",\"\",INDEX('Disaggregation1B_Import-Export'!I$8:I$239,MATCH($B32,'Disaggregation1B_Import-Export'!$C$8:$C$239,0))),\"\")","v":0},{"$f":"IFERROR(IF(INDEX('Disaggregation1B_Import-Export'!J$8:J$239,MATCH($B32,'Disaggregation1B_Import-Export'!$C$8:$C$239,0))=\"\",\"\",INDEX('Disaggregation1B_Import-Export'!J$8:J$239,MATCH($B32,'Disaggregation1B_Import-Export'!$C$8:$C$239,0))),\"\")","v":"0.0"},{"$f":"IFERROR(IF(INDEX('Disaggregation1B_Import-Export'!K$8:K$239,MATCH($B32,'Disaggregation1B_Import-Export'!$C$8:$C$239,0))=\"\",\"\",INDEX('Disaggregation1B_Import-Export'!K$8:K$239,MATCH($B32,'Disaggregation1B_Import-Export'!$C$8:$C$239,0))),\"\")","v":"2016"},{"$f":"IFERROR(IF(INDEX('Disaggregation1B_Import-Export'!L$8:L$239,MATCH($B32,'Disaggregation1B_Import-Export'!$C$8:$C$239,0))=\"\",\"\",INDEX('Disaggregation1B_Import-Export'!L$8:L$239,MATCH($B32,'Disaggregation1B_Import-Export'!$C$8:$C$239,0))),\"\")","v":""},{"$f":"IFERROR(IF(INDEX('Disaggregation1B_Import-Export'!AQ$8:AQ$239,MATCH($B32,'Disaggregation1B_Import-Export'!$C$8:$C$239,0))=\"\",\"\",INDEX('Disaggregation1B_Import-Export'!AQ$8:AQ$239,MATCH($B32,'Disaggregation1B_Import-Export'!$C$8:$C$239,0))),\"\")","v":"Burundi"},16,null,"","TB patient register","Les 16 hommes ayant une TB MR avaient tous commencé le traitement",null,null,null,"",null,null,null,null,null,""]
[23,"Coverage23",{"$f":"IFERROR(INDEX('Disaggregation1B_Import-Export'!D$8:D$239,MATCH($B33,'Disaggregation1B_Import-Export'!$C$8:$C$239,0)),\"\")","v":"MDR-TB"},{"$f":"IFERROR(INDEX('Disaggregation1B_Import-Export'!AF$8:AF$256,MATCH($B33,'Disaggregation1B_Import-Export'!$C$8:$C$256,0)),\"\")","v":"MDR TB-3(M): Nombre de cas de tuberculose résistante à la rifampicine et/ou tuberculose multirésistante qui ont commencé un traitement de deuxième intention"},{"$f":"IFERROR(IF(INDEX('Disaggregation1B_Import-Export'!AG$8:AG$239,MATCH($B33,'Disaggregation1B_Import-Export'!$C$8:$C$239,0))=\"\",\"\",INDEX('Disaggregation1B_Import-Export'!AG$8:AG$239,MATCH($B33,'Disaggregation1B_Import-Export'!$C$8:$C$239,0))),\"\")","v":"+ de 15 ans"},{"$f":"IFERROR(IF(INDEX('Disaggregation1B_Import-Export'!AH$8:AH$239,MATCH($B33,'Disaggregation1B_Import-Export'!$C$8:$C$239,0))=\"\",\"\",INDEX('Disaggregation1B_Import-Export'!AH$8:AH$239,MATCH($B33,'Disaggregation1B_Import-Export'!$C$8:$C$239,0))),\"\")","v":"Age"},{"$f":"IFERROR(IF(INDEX('Disaggregation1B_Import-Export'!H$8:H$239,MATCH($B33,'Disaggregation1B_Import-Export'!$C$8:$C$239,0))=\"\",\"\",INDEX('Disaggregation1B_Import-Export'!H$8:H$239,MATCH($B33,'Disaggregation1B_Import-Export'!$C$8:$C$239,0))),\"\")","v":78},{"$f":"IFERROR(IF(INDEX('Disaggregation1B_Import-Export'!I$8:I$239,MATCH($B33,'Disaggregation1B_Import-Export'!$C$8:$C$239,0))=\"\",\"\",INDEX('Disaggregation1B_Import-Export'!I$8:I$239,MATCH($B33,'Disaggregation1B_Import-Export'!$C$8:$C$239,0))),\"\")","v":0},{"$f":"IFERROR(IF(INDEX('Disaggregation1B_Import-Export'!J$8:J$239,MATCH($B33,'Disaggregation1B_Import-Export'!$C$8:$C$239,0))=\"\",\"\",INDEX('Disaggregation1B_Import-Export'!J$8:J$239,MATCH($B33,'Disaggregation1B_Import-Export'!$C$8:$C$239,0))),\"\")","v":"0.0"},{"$f":"IFERROR(IF(INDEX('Disaggregation1B_Import-Export'!K$8:K$239,MATCH($B33,'Disaggregation1B_Import-Export'!$C$8:$C$239,0))=\"\",\"\",INDEX('Disaggregation1B_Import-Export'!K$8:K$239,MATCH($B33,'Disaggregation1B_Import-Export'!$C$8:$C$239,0))),\"\")","v":"2016"},{"$f":"IFERROR(IF(INDEX('Disaggregation1B_Import-Export'!L$8:L$239,MATCH($B33,'Disaggregation1B_Import-Export'!$C$8:$C$239,0))=\"\",\"\",INDEX('Disaggregation1B_Import-Export'!L$8:L$239,MATCH($B33,'Disaggregation1B_Import-Export'!$C$8:$C$239,0))),\"\")","v":""},{"$f":"IFERROR(IF(INDEX('Disaggregation1B_Import-Export'!AQ$8:AQ$239,MATCH($B33,'Disaggregation1B_Import-Export'!$C$8:$C$239,0))=\"\",\"\",INDEX('Disaggregation1B_Import-Export'!AQ$8:AQ$239,MATCH($B33,'Disaggregation1B_Import-Export'!$C$8:$C$239,0))),\"\")","v":"Burundi"},20,null,"","TB patient register","100% de 20 cas correspondent à cette tranche d'âge",null,null,null,"",null,null,null,null,null,""]
[24,"Coverage24",{"$f":"IFERROR(INDEX('Disaggregation1B_Import-Export'!D$8:D$239,MATCH($B34,'Disaggregation1B_Import-Export'!$C$8:$C$239,0)),\"\")","v":"MDR-TB"},{"$f":"IFERROR(INDEX('Disaggregation1B_Import-Export'!AF$8:AF$256,MATCH($B34,'Disaggregation1B_Import-Export'!$C$8:$C$256,0)),\"\")","v":"MDR TB-3(M): Nombre de cas de tuberculose résistante à la rifampicine et/ou tuberculose multirésistante qui ont commencé un traitement de deuxième intention"},{"$f":"IFERROR(IF(INDEX('Disaggregation1B_Import-Export'!AG$8:AG$239,MATCH($B34,'Disaggregation1B_Import-Export'!$C$8:$C$239,0))=\"\",\"\",INDEX('Disaggregation1B_Import-Export'!AG$8:AG$239,MATCH($B34,'Disaggregation1B_Import-Export'!$C$8:$C$239,0))),\"\")","v":"Nouveau traitement TB"},{"$f":"IFERROR(IF(INDEX('Disaggregation1B_Import-Export'!AH$8:AH$239,MATCH($B34,'Disaggregation1B_Import-Export'!$C$8:$C$239,0))=\"\",\"\",INDEX('Disaggregation1B_Import-Export'!AH$8:AH$239,MATCH($B34,'Disaggregation1B_Import-Export'!$C$8:$C$239,0))),\"\")","v":"Schéma thérapeutique"},{"$f":"IFERROR(IF(INDEX('Disaggregation1B_Import-Export'!H$8:H$239,MATCH($B34,'Disaggregation1B_Import-Export'!$C$8:$C$239,0))=\"\",\"\",INDEX('Disaggregation1B_Import-Export'!H$8:H$239,MATCH($B34,'Disaggregation1B_Import-Export'!$C$8:$C$239,0))),\"\")","v":0},{"$f":"IFERROR(IF(INDEX('Disaggregation1B_Import-Export'!I$8:I$239,MATCH($B34,'Disaggregation1B_Import-Export'!$C$8:$C$239,0))=\"\",\"\",INDEX('Disaggregation1B_Import-Export'!I$8:I$239,MATCH($B34,'Disaggregation1B_Import-Export'!$C$8:$C$239,0))),\"\")","v":0},{"$f":"IFERROR(IF(INDEX('Disaggregation1B_Import-Export'!J$8:J$239,MATCH($B34,'Disaggregation1B_Import-Export'!$C$8:$C$239,0))=\"\",\"\",INDEX('Disaggregation1B_Import-Export'!J$8:J$239,MATCH($B34,'Disaggregation1B_Import-Export'!$C$8:$C$239,0))),\"\")","v":"0.0"},{"$f":"IFERROR(IF(INDEX('Disaggregation1B_Import-Export'!K$8:K$239,MATCH($B34,'Disaggregation1B_Import-Export'!$C$8:$C$239,0))=\"\",\"\",INDEX('Disaggregation1B_Import-Export'!K$8:K$239,MATCH($B34,'Disaggregation1B_Import-Export'!$C$8:$C$239,0))),\"\")","v":"2016"},{"$f":"IFERROR(IF(INDEX('Disaggregation1B_Import-Export'!L$8:L$239,MATCH($B34,'Disaggregation1B_Import-Export'!$C$8:$C$239,0))=\"\",\"\",INDEX('Disaggregation1B_Import-Export'!L$8:L$239,MATCH($B34,'Disaggregation1B_Import-Export'!$C$8:$C$239,0))),\"\")","v":""},{"$f":"IFERROR(IF(INDEX('Disaggregation1B_Import-Export'!AQ$8:AQ$239,MATCH($B34,'Disaggregation1B_Import-Export'!$C$8:$C$239,0))=\"\",\"\",INDEX('Disaggregation1B_Import-Export'!AQ$8:AQ$239,MATCH($B34,'Disaggregation1B_Import-Export'!$C$8:$C$239,0))),\"\")","v":"Burundi"},20,null,"","TB patient register","Tous les 20 cas de TBMDR étaient des nouveaux cas admis de janvier à juin 2018",null,null,null,"",null,null,null,null,null,""]
[25,"Coverage25",{"$f":"IFERROR(INDEX('Disaggregation1B_Import-Export'!D$8:D$239,MATCH($B35,'Disaggregation1B_Import-Export'!$C$8:$C$239,0)),\"\")","v":"MDR-TB"},{"$f":"IFERROR(INDEX('Disaggregation1B_Import-Export'!AF$8:AF$256,MATCH($B35,'Disaggregation1B_Import-Export'!$C$8:$C$256,0)),\"\")","v":"MDR TB-3(M): Nombre de cas de tuberculose résistante à la rifampicine et/ou tuberculose multirésistante qui ont commencé un traitement de deuxième intention"},{"$f":"IFERROR(IF(INDEX('Disaggregation1B_Import-Export'!AG$8:AG$239,MATCH($B35,'Disaggregation1B_Import-Export'!$C$8:$C$239,0))=\"\",\"\",INDEX('Disaggregation1B_Import-Export'!AG$8:AG$239,MATCH($B35,'Disaggregation1B_Import-Export'!$C$8:$C$239,0))),\"\")","v":"Régime court"},{"$f":"IFERROR(IF(INDEX('Disaggregation1B_Import-Export'!AH$8:AH$239,MATCH($B35,'Disaggregation1B_Import-Export'!$C$8:$C$239,0))=\"\",\"\",INDEX('Disaggregation1B_Import-Export'!AH$8:AH$239,MATCH($B35,'Disaggregation1B_Import-Export'!$C$8:$C$239,0))),\"\")","v":"Schéma thérapeutique"},{"$f":"IFERROR(IF(INDEX('Disaggregation1B_Import-Export'!H$8:H$239,MATCH($B35,'Disaggregation1B_Import-Export'!$C$8:$C$239,0))=\"\",\"\",INDEX('Disaggregation1B_Import-Export'!H$8:H$239,MATCH($B35,'Disaggregation1B_Import-Export'!$C$8:$C$239,0))),\"\")","v":80},{"$f":"IFERROR(IF(INDEX('Disaggregation1B_Import-Export'!I$8:I$239,MATCH($B35,'Disaggregation1B_Import-Export'!$C$8:$C$239,0))=\"\",\"\",INDEX('Disaggregation1B_Import-Export'!I$8:I$239,MATCH($B35,'Disaggregation1B_Import-Export'!$C$8:$C$239,0))),\"\")","v":0},{"$f":"IFERROR(IF(INDEX('Disaggregation1B_Import-Export'!J$8:J$239,MATCH($B35,'Disaggregation1B_Import-Export'!$C$8:$C$239,0))=\"\",\"\",INDEX('Disaggregation1B_Import-Export'!J$8:J$239,MATCH($B35,'Disaggregation1B_Import-Export'!$C$8:$C$239,0))),\"\")","v":"0.0"},{"$f":"IFERROR(IF(INDEX('Disaggregation1B_Import-Export'!K$8:K$239,MATCH($B35,'Disaggregation1B_Import-Export'!$C$8:$C$239,0))=\"\",\"\",INDEX('Disaggregation1B_Import-Export'!K$8:K$239,MATCH($B35,'Disaggregation1B_Import-Export'!$C$8:$C$239,0))),\"\")","v":"2016"},{"$f":"IFERROR(IF(INDEX('Disaggregation1B_Import-Export'!L$8:L$239,MATCH($B35,'Disaggregation1B_Import-Export'!$C$8:$C$239,0))=\"\",\"\",INDEX('Disaggregation1B_Import-Export'!L$8:L$239,MATCH($B35,'Disaggregation1B_Import-Export'!$C$8:$C$239,0))),\"\")","v":""},{"$f":"IFERROR(IF(INDEX('Disaggregation1B_Import-Export'!AQ$8:AQ$239,MATCH($B35,'Disaggregation1B_Import-Export'!$C$8:$C$239,0))=\"\",\"\",INDEX('Disaggregation1B_Import-Export'!AQ$8:AQ$239,MATCH($B35,'Disaggregation1B_Import-Export'!$C$8:$C$239,0))),\"\")","v":"Burundi"},20,null,"","TB patient register","En ce qui concerne la TB/MDR, le Burundi a opté pour un schéma court de 9 mois. Ainsi, tous les 20 patients étaient sous le même schéma thérapeutique (schema court)",null,null,null,"",null,null,null,null,null,""]
[26,"Coverage26",{"$f":"IFERROR(INDEX('Disaggregation1B_Import-Export'!D$8:D$239,MATCH($B36,'Disaggregation1B_Import-Export'!$C$8:$C$239,0)),\"\")","v":"Treatment, care and support"},{"$f":"IFERROR(INDEX('Disaggregation1B_Import-Export'!AF$8:AF$256,MATCH($B36,'Disaggregation1B_Import-Export'!$C$8:$C$256,0)),\"\")","v":"TCS-1(M): Pourcentage de personnes vivant avec le VIH bénéficiant actuellement d'un traitement antirétroviral"},{"$f":"IFERROR(IF(INDEX('Disaggregation1B_Import-Export'!AG$8:AG$239,MATCH($B36,'Disaggregation1B_Import-Export'!$C$8:$C$239,0))=\"\",\"\",INDEX('Disaggregation1B_Import-Export'!AG$8:AG$239,MATCH($B36,'Disaggregation1B_Import-Export'!$C$8:$C$239,0))),\"\")","v":"Transgenre"},{"$f":"IFERROR(IF(INDEX('Disaggregation1B_Import-Export'!AH$8:AH$239,MATCH($B36,'Disaggregation1B_Import-Export'!$C$8:$C$239,0))=\"\",\"\",INDEX('Disaggregation1B_Import-Export'!AH$8:AH$239,MATCH($B36,'Disaggregation1B_Import-Export'!$C$8:$C$239,0))),\"\")","v":"Groupe à risque cible"},{"$f":"IFERROR(IF(INDEX('Disaggregation1B_Import-Export'!H$8:H$239,MATCH($B36,'Disaggregation1B_Import-Export'!$C$8:$C$239,0))=\"\",\"\",INDEX('Disaggregation1B_Import-Export'!H$8:H$239,MATCH($B36,'Disaggregation1B_Import-Export'!$C$8:$C$239,0))),\"\")","v":0},{"$f":"IFERROR(IF(INDEX('Disaggregation1B_Import-Export'!I$8:I$239,MATCH($B36,'Disaggregation1B_Import-Export'!$C$8:$C$239,0))=\"\",\"\",INDEX('Disaggregation1B_Import-Export'!I$8:I$239,MATCH($B36,'Disaggregation1B_Import-Export'!$C$8:$C$239,0))),\"\")","v":0},{"$f":"IFERROR(IF(INDEX('Disaggregation1B_Import-Export'!J$8:J$239,MATCH($B36,'Disaggregation1B_Import-Export'!$C$8:$C$239,0))=\"\",\"\",INDEX('Disaggregation1B_Import-Export'!J$8:J$239,MATCH($B36,'Disaggregation1B_Import-Export'!$C$8:$C$239,0))),\"\")","v":"0.0"},{"$f":"IFERROR(IF(INDEX('Disaggregation1B_Import-Export'!K$8:K$239,MATCH($B36,'Disaggregation1B_Import-Export'!$C$8:$C$239,0))=\"\",\"\",INDEX('Disaggregation1B_Import-Export'!K$8:K$239,MATCH($B36,'Disaggregation1B_Import-Export'!$C$8:$C$239,0))),\"\")","v":""},{"$f":"IFERROR(IF(INDEX('Disaggregation1B_Import-Export'!L$8:L$239,MATCH($B36,'Disaggregation1B_Import-Export'!$C$8:$C$239,0))=\"\",\"\",INDEX('Disaggregation1B_Import-Export'!L$8:L$239,MATCH($B36,'Disaggregation1B_Import-Export'!$C$8:$C$239,0))),\"\")","v":""},{"$f":"IFERROR(IF(INDEX('Disaggregation1B_Import-Export'!AQ$8:AQ$239,MATCH($B36,'Disaggregation1B_Import-Export'!$C$8:$C$239,0))=\"\",\"\",INDEX('Disaggregation1B_Import-Export'!AQ$8:AQ$239,MATCH($B36,'Disaggregation1B_Import-Export'!$C$8:$C$239,0))),\"\")","v":"Burundi"},null,null,"",null,"Le système d'information sanitaire ne permet pas de renseigner cet indicateur désagrégé par tranche d'âge",null,null,null,"",null,null,null,null,null,""]
[27,"Coverage27",{"$f":"IFERROR(INDEX('Disaggregation1B_Import-Export'!D$8:D$239,MATCH($B37,'Disaggregation1B_Import-Export'!$C$8:$C$239,0)),\"\")","v":"Treatment, care and support"},{"$f":"IFERROR(INDEX('Disaggregation1B_Import-Export'!AF$8:AF$256,MATCH($B37,'Disaggregation1B_Import-Export'!$C$8:$C$256,0)),\"\")","v":"TCS-1(M): Pourcentage de personnes vivant avec le VIH bénéficiant actuellement d'un traitement antirétroviral"},{"$f":"IFERROR(IF(INDEX('Disaggregation1B_Import-Export'!AG$8:AG$239,MATCH($B37,'Disaggregation1B_Import-Export'!$C$8:$C$239,0))=\"\",\"\",INDEX('Disaggregation1B_Import-Export'!AG$8:AG$239,MATCH($B37,'Disaggregation1B_Import-Export'!$C$8:$C$239,0))),\"\")","v":"Femme"},{"$f":"IFERROR(IF(INDEX('Disaggregation1B_Import-Export'!AH$8:AH$239,MATCH($B37,'Disaggregation1B_Import-Export'!$C$8:$C$239,0))=\"\",\"\",INDEX('Disaggregation1B_Import-Export'!AH$8:AH$239,MATCH($B37,'Disaggregation1B_Import-Export'!$C$8:$C$239,0))),\"\")","v":"Sexe"},{"$f":"IFERROR(IF(INDEX('Disaggregation1B_Import-Export'!H$8:H$239,MATCH($B37,'Disaggregation1B_Import-Export'!$C$8:$C$239,0))=\"\",\"\",INDEX('Disaggregation1B_Import-Export'!H$8:H$239,MATCH($B37,'Disaggregation1B_Import-Export'!$C$8:$C$239,0))),\"\")","v":0},{"$f":"IFERROR(IF(INDEX('Disaggregation1B_Import-Export'!I$8:I$239,MATCH($B37,'Disaggregation1B_Import-Export'!$C$8:$C$239,0))=\"\",\"\",INDEX('Disaggregation1B_Import-Export'!I$8:I$239,MATCH($B37,'Disaggregation1B_Import-Export'!$C$8:$C$239,0))),\"\")","v":0},{"$f":"IFERROR(IF(INDEX('Disaggregation1B_Import-Export'!J$8:J$239,MATCH($B37,'Disaggregation1B_Import-Export'!$C$8:$C$239,0))=\"\",\"\",INDEX('Disaggregation1B_Import-Export'!J$8:J$239,MATCH($B37,'Disaggregation1B_Import-Export'!$C$8:$C$239,0))),\"\")","v":"0.0"},{"$f":"IFERROR(IF(INDEX('Disaggregation1B_Import-Export'!K$8:K$239,MATCH($B37,'Disaggregation1B_Import-Export'!$C$8:$C$239,0))=\"\",\"\",INDEX('Disaggregation1B_Import-Export'!K$8:K$239,MATCH($B37,'Disaggregation1B_Import-Export'!$C$8:$C$239,0))),\"\")","v":""},{"$f":"IFERROR(IF(INDEX('Disaggregation1B_Import-Export'!L$8:L$239,MATCH($B37,'Disaggregation1B_Import-Export'!$C$8:$C$239,0))=\"\",\"\",INDEX('Disaggregation1B_Import-Export'!L$8:L$239,MATCH($B37,'Disaggregation1B_Import-Export'!$C$8:$C$239,0))),\"\")","v":""},{"$f":"IFERROR(IF(INDEX('Disaggregation1B_Import-Export'!AQ$8:AQ$239,MATCH($B37,'Disaggregation1B_Import-Export'!$C$8:$C$239,0))=\"\",\"\",INDEX('Disaggregation1B_Import-Export'!AQ$8:AQ$239,MATCH($B37,'Disaggregation1B_Import-Export'!$C$8:$C$239,0))),\"\")","v":"Burundi"},42341,null,"",null,"Le système d'information ne permet pas de renseigner le nombre estimé de tous les adultes et enfants attendus vivant avec le VIH, les femmes enceintes séropositives , les enfants séropositifs, les coinfectés VIH/TB et PS  séropositifs  désagrégé par sexe\n",null,null,null,"",null,null,null,null,null,""]
[28,"Coverage28",{"$f":"IFERROR(INDEX('Disaggregation1B_Import-Export'!D$8:D$239,MATCH($B38,'Disaggregation1B_Import-Export'!$C$8:$C$239,0)),\"\")","v":"Treatment, care and support"},{"$f":"IFERROR(INDEX('Disaggregation1B_Import-Export'!AF$8:AF$256,MATCH($B38,'Disaggregation1B_Import-Export'!$C$8:$C$256,0)),\"\")","v":"TCS-1(M): Pourcentage de personnes vivant avec le VIH bénéficiant actuellement d'un traitement antirétroviral"},{"$f":"IFERROR(IF(INDEX('Disaggregation1B_Import-Export'!AG$8:AG$239,MATCH($B38,'Disaggregation1B_Import-Export'!$C$8:$C$239,0))=\"\",\"\",INDEX('Disaggregation1B_Import-Export'!AG$8:AG$239,MATCH($B38,'Disaggregation1B_Import-Export'!$C$8:$C$239,0))),\"\")","v":"Homme"},{"$f":"IFERROR(IF(INDEX('Disaggregation1B_Import-Export'!AH$8:AH$239,MATCH($B38,'Disaggregation1B_Import-Export'!$C$8:$C$239,0))=\"\",\"\",INDEX('Disaggregation1B_Import-Export'!AH$8:AH$239,MATCH($B38,'Disaggregation1B_Import-Export'!$C$8:$C$239,0))),\"\")","v":"Sexe"},{"$f":"IFERROR(IF(INDEX('Disaggregation1B_Import-Export'!H$8:H$239,MATCH($B38,'Disaggregation1B_Import-Export'!$C$8:$C$239,0))=\"\",\"\",INDEX('Disaggregation1B_Import-Export'!H$8:H$239,MATCH($B38,'Disaggregation1B_Import-Export'!$C$8:$C$239,0))),\"\")","v":0},{"$f":"IFERROR(IF(INDEX('Disaggregation1B_Import-Export'!I$8:I$239,MATCH($B38,'Disaggregation1B_Import-Export'!$C$8:$C$239,0))=\"\",\"\",INDEX('Disaggregation1B_Import-Export'!I$8:I$239,MATCH($B38,'Disaggregation1B_Import-Export'!$C$8:$C$239,0))),\"\")","v":0},{"$f":"IFERROR(IF(INDEX('Disaggregation1B_Import-Export'!J$8:J$239,MATCH($B38,'Disaggregation1B_Import-Export'!$C$8:$C$239,0))=\"\",\"\",INDEX('Disaggregation1B_Import-Export'!J$8:J$239,MATCH($B38,'Disaggregation1B_Import-Export'!$C$8:$C$239,0))),\"\")","v":"0.0"},{"$f":"IFERROR(IF(INDEX('Disaggregation1B_Import-Export'!K$8:K$239,MATCH($B38,'Disaggregation1B_Import-Export'!$C$8:$C$239,0))=\"\",\"\",INDEX('Disaggregation1B_Import-Export'!K$8:K$239,MATCH($B38,'Disaggregation1B_Import-Export'!$C$8:$C$239,0))),\"\")","v":""},{"$f":"IFERROR(IF(INDEX('Disaggregation1B_Import-Export'!L$8:L$239,MATCH($B38,'Disaggregation1B_Import-Export'!$C$8:$C$239,0))=\"\",\"\",INDEX('Disaggregation1B_Import-Export'!L$8:L$239,MATCH($B38,'Disaggregation1B_Import-Export'!$C$8:$C$239,0))),\"\")","v":""},{"$f":"IFERROR(IF(INDEX('Disaggregation1B_Import-Export'!AQ$8:AQ$239,MATCH($B38,'Disaggregation1B_Import-Export'!$C$8:$C$239,0))=\"\",\"\",INDEX('Disaggregation1B_Import-Export'!AQ$8:AQ$239,MATCH($B38,'Disaggregation1B_Import-Export'!$C$8:$C$239,0))),\"\")","v":"Burundi"},22078,null,"",null,"Le système d'information ne permet pas de renseigner le nombre estimé de tous les adultes et enfants attendus vivant avec le VIH, les femmes enceintes séropositives , les enfants séropositifs, les coinfectés VIH/TB et PS  séropositifs  désagrégé par sexe\n",null,null,null,"",null,null,null,null,null,""]
[29,"Coverage29",{"$f":"IFERROR(INDEX('Disaggregation1B_Import-Export'!D$8:D$239,MATCH($B39,'Disaggregation1B_Import-Export'!$C$8:$C$239,0)),\"\")","v":"Treatment, care and support"},{"$f":"IFERROR(INDEX('Disaggregation1B_Import-Export'!AF$8:AF$256,MATCH($B39,'Disaggregation1B_Import-Export'!$C$8:$C$256,0)),\"\")","v":"TCS-1(M): Pourcentage de personnes vivant avec le VIH bénéficiant actuellement d'un traitement antirétroviral"},{"$f":"IFERROR(IF(INDEX('Disaggregation1B_Import-Export'!AG$8:AG$239,MATCH($B39,'Disaggregation1B_Import-Export'!$C$8:$C$239,0))=\"\",\"\",INDEX('Disaggregation1B_Import-Export'!AG$8:AG$239,MATCH($B39,'Disaggregation1B_Import-Export'!$C$8:$C$239,0))),\"\")","v":"<15 ans"},{"$f":"IFERROR(IF(INDEX('Disaggregation1B_Import-Export'!AH$8:AH$239,MATCH($B39,'Disaggregation1B_Import-Export'!$C$8:$C$239,0))=\"\",\"\",INDEX('Disaggregation1B_Import-Export'!AH$8:AH$239,MATCH($B39,'Disaggregation1B_Import-Export'!$C$8:$C$239,0))),\"\")","v":"Age"},{"$f":"IFERROR(IF(INDEX('Disaggregation1B_Import-Export'!H$8:H$239,MATCH($B39,'Disaggregation1B_Import-Export'!$C$8:$C$239,0))=\"\",\"\",INDEX('Disaggregation1B_Import-Export'!H$8:H$239,MATCH($B39,'Disaggregation1B_Import-Export'!$C$8:$C$239,0))),\"\")","v":3050},{"$f":"IFERROR(IF(INDEX('Disaggregation1B_Import-Export'!I$8:I$239,MATCH($B39,'Disaggregation1B_Import-Export'!$C$8:$C$239,0))=\"\",\"\",INDEX('Disaggregation1B_Import-Export'!I$8:I$239,MATCH($B39,'Disaggregation1B_Import-Export'!$C$8:$C$239,0))),\"\")","v":8238},{"$f":"IFERROR(IF(INDEX('Disaggregation1B_Import-Export'!J$8:J$239,MATCH($B39,'Disaggregation1B_Import-Export'!$C$8:$C$239,0))=\"\",\"\",INDEX('Disaggregation1B_Import-Export'!J$8:J$239,MATCH($B39,'Disaggregation1B_Import-Export'!$C$8:$C$239,0))),\"\")","v":"0.4"},{"$f":"IFERROR(IF(INDEX('Disaggregation1B_Import-Export'!K$8:K$239,MATCH($B39,'Disaggregation1B_Import-Export'!$C$8:$C$239,0))=\"\",\"\",INDEX('Disaggregation1B_Import-Export'!K$8:K$239,MATCH($B39,'Disaggregation1B_Import-Export'!$C$8:$C$239,0))),\"\")","v":"2016"},{"$f":"IFERROR(IF(INDEX('Disaggregation1B_Import-Export'!L$8:L$239,MATCH($B39,'Disaggregation1B_Import-Export'!$C$8:$C$239,0))=\"\",\"\",INDEX('Disaggregation1B_Import-Export'!L$8:L$239,MATCH($B39,'Disaggregation1B_Import-Export'!$C$8:$C$239,0))),\"\")","v":"PNLS Annual Report"},{"$f":"IFERROR(IF(INDEX('Disaggregation1B_Import-Export'!AQ$8:AQ$239,MATCH($B39,'Disaggregation1B_Import-Export'!$C$8:$C$239,0))=\"\",\"\",INDEX('Disaggregation1B_Import-Export'!AQ$8:AQ$239,MATCH($B39,'Disaggregation1B_Import-Export'!$C$8:$C$239,0))),\"\")","v":"Burundi"},null,null,"",null,"Le système d'information sanitaire ne permet pas de renseigner cet indicateur désagrégé par tranche d'âge",null,null,null,"",null,null,null,null,null,""]
[30,"Coverage30",{"$f":"IFERROR(INDEX('Disaggregation1B_Import-Export'!D$8:D$239,MATCH($B40,'Disaggregation1B_Import-Export'!$C$8:$C$239,0)),\"\")","v":"Treatment, care and support"},{"$f":"IFERROR(INDEX('Disaggregation1B_Import-Export'!AF$8:AF$256,MATCH($B40,'Disaggregation1B_Import-Export'!$C$8:$C$256,0)),\"\")","v":"TCS-1(M): Pourcentage de personnes vivant avec le VIH bénéficiant actuellement d'un traitement antirétroviral"},{"$f":"IFERROR(IF(INDEX('Disaggregation1B_Import-Export'!AG$8:AG$239,MATCH($B40,'Disaggregation1B_Import-Export'!$C$8:$C$239,0))=\"\",\"\",INDEX('Disaggregation1B_Import-Export'!AG$8:AG$239,MATCH($B40,'Disaggregation1B_Import-Export'!$C$8:$C$239,0))),\"\")","v":"Professionnels du sexe"},{"$f":"IFERROR(IF(INDEX('Disaggregation1B_Import-Export'!AH$8:AH$239,MATCH($B40,'Disaggregation1B_Import-Export'!$C$8:$C$239,0))=\"\",\"\",INDEX('Disaggregation1B_Import-Export'!AH$8:AH$239,MATCH($B40,'Disaggregation1B_Import-Export'!$C$8:$C$239,0))),\"\")","v":"Groupe à risque cible"},{"$f":"IFERROR(IF(INDEX('Disaggregation1B_Import-Export'!H$8:H$239,MATCH($B40,'Disaggregation1B_Import-Export'!$C$8:$C$239,0))=\"\",\"\",INDEX('Disaggregation1B_Import-Export'!H$8:H$239,MATCH($B40,'Disaggregation1B_Import-Export'!$C$8:$C$239,0))),\"\")","v":0},{"$f":"IFERROR(IF(INDEX('Disaggregation1B_Import-Export'!I$8:I$239,MATCH($B40,'Disaggregation1B_Import-Export'!$C$8:$C$239,0))=\"\",\"\",INDEX('Disaggregation1B_Import-Export'!I$8:I$239,MATCH($B40,'Disaggregation1B_Import-Export'!$C$8:$C$239,0))),\"\")","v":0},{"$f":"IFERROR(IF(INDEX('Disaggregation1B_Import-Export'!J$8:J$239,MATCH($B40,'Disaggregation1B_Import-Export'!$C$8:$C$239,0))=\"\",\"\",INDEX('Disaggregation1B_Import-Export'!J$8:J$239,MATCH($B40,'Disaggregation1B_Import-Export'!$C$8:$C$239,0))),\"\")","v":"0.0"},{"$f":"IFERROR(IF(INDEX('Disaggregation1B_Import-Export'!K$8:K$239,MATCH($B40,'Disaggregation1B_Import-Export'!$C$8:$C$239,0))=\"\",\"\",INDEX('Disaggregation1B_Import-Export'!K$8:K$239,MATCH($B40,'Disaggregation1B_Import-Export'!$C$8:$C$239,0))),\"\")","v":""},{"$f":"IFERROR(IF(INDEX('Disaggregation1B_Import-Export'!L$8:L$239,MATCH($B40,'Disaggregation1B_Import-Export'!$C$8:$C$239,0))=\"\",\"\",INDEX('Disaggregation1B_Import-Export'!L$8:L$239,MATCH($B40,'Disaggregation1B_Import-Export'!$C$8:$C$239,0))),\"\")","v":""},{"$f":"IFERROR(IF(INDEX('Disaggregation1B_Import-Export'!AQ$8:AQ$239,MATCH($B40,'Disaggregation1B_Import-Export'!$C$8:$C$239,0))=\"\",\"\",INDEX('Disaggregation1B_Import-Export'!AQ$8:AQ$239,MATCH($B40,'Disaggregation1B_Import-Export'!$C$8:$C$239,0))),\"\")","v":"Burundi"},null,null,"",null,"Le système d'information sanitaire ne permet pas de renseigner cet indicateur désagrégé par tranche d'âge",null,null,null,"",null,null,null,null,null,""]
[31,"Coverage31",{"$f":"IFERROR(INDEX('Disaggregation1B_Import-Export'!D$8:D$239,MATCH($B41,'Disaggregation1B_Import-Export'!$C$8:$C$239,0)),\"\")","v":"Treatment, care and support"},{"$f":"IFERROR(INDEX('Disaggregation1B_Import-Export'!AF$8:AF$256,MATCH($B41,'Disaggregation1B_Import-Export'!$C$8:$C$256,0)),\"\")","v":"TCS-1(M): Pourcentage de personnes vivant avec le VIH bénéficiant actuellement d'un traitement antirétroviral"},{"$f":"IFERROR(IF(INDEX('Disaggregation1B_Import-Export'!AG$8:AG$239,MATCH($B41,'Disaggregation1B_Import-Export'!$C$8:$C$239,0))=\"\",\"\",INDEX('Disaggregation1B_Import-Export'!AG$8:AG$239,MATCH($B41,'Disaggregation1B_Import-Export'!$C$8:$C$239,0))),\"\")","v":"HSH"},{"$f":"IFERROR(IF(INDEX('Disaggregation1B_Import-Export'!AH$8:AH$239,MATCH($B41,'Disaggregation1B_Import-Export'!$C$8:$C$239,0))=\"\",\"\",INDEX('Disaggregation1B_Import-Export'!AH$8:AH$239,MATCH($B41,'Disaggregation1B_Import-Export'!$C$8:$C$239,0))),\"\")","v":"Groupe à risque cible"},{"$f":"IFERROR(IF(INDEX('Disaggregation1B_Import-Export'!H$8:H$239,MATCH($B41,'Disaggregation1B_Import-Export'!$C$8:$C$239,0))=\"\",\"\",INDEX('Disaggregation1B_Import-Export'!H$8:H$239,MATCH($B41,'Disaggregation1B_Import-Export'!$C$8:$C$239,0))),\"\")","v":0},{"$f":"IFERROR(IF(INDEX('Disaggregation1B_Import-Export'!I$8:I$239,MATCH($B41,'Disaggregation1B_Import-Export'!$C$8:$C$239,0))=\"\",\"\",INDEX('Disaggregation1B_Import-Export'!I$8:I$239,MATCH($B41,'Disaggregation1B_Import-Export'!$C$8:$C$239,0))),\"\")","v":0},{"$f":"IFERROR(IF(INDEX('Disaggregation1B_Import-Export'!J$8:J$239,MATCH($B41,'Disaggregation1B_Import-Export'!$C$8:$C$239,0))=\"\",\"\",INDEX('Disaggregation1B_Import-Export'!J$8:J$239,MATCH($B41,'Disaggregation1B_Import-Export'!$C$8:$C$239,0))),\"\")","v":"0.0"},{"$f":"IFERROR(IF(INDEX('Disaggregation1B_Import-Export'!K$8:K$239,MATCH($B41,'Disaggregation1B_Import-Export'!$C$8:$C$239,0))=\"\",\"\",INDEX('Disaggregation1B_Import-Export'!K$8:K$239,MATCH($B41,'Disaggregation1B_Import-Export'!$C$8:$C$239,0))),\"\")","v":""},{"$f":"IFERROR(IF(INDEX('Disaggregation1B_Import-Export'!L$8:L$239,MATCH($B41,'Disaggregation1B_Import-Export'!$C$8:$C$239,0))=\"\",\"\",INDEX('Disaggregation1B_Import-Export'!L$8:L$239,MATCH($B41,'Disaggregation1B_Import-Export'!$C$8:$C$239,0))),\"\")","v":""},{"$f":"IFERROR(IF(INDEX('Disaggregation1B_Import-Export'!AQ$8:AQ$239,MATCH($B41,'Disaggregation1B_Import-Export'!$C$8:$C$239,0))=\"\",\"\",INDEX('Disaggregation1B_Import-Export'!AQ$8:AQ$239,MATCH($B41,'Disaggregation1B_Import-Export'!$C$8:$C$239,0))),\"\")","v":"Burundi"},null,null,"",null,"Le système d'information sanitaire ne permet pas de renseigner cet indicateur désagrégé par tranche d'âge",null,null,null,"",null,null,null,null,null,""]
[32,"Coverage32",{"$f":"IFERROR(INDEX('Disaggregation1B_Import-Export'!D$8:D$239,MATCH($B42,'Disaggregation1B_Import-Export'!$C$8:$C$239,0)),\"\")","v":"Treatment, care and support"},{"$f":"IFERROR(INDEX('Disaggregation1B_Import-Export'!AF$8:AF$256,MATCH($B42,'Disaggregation1B_Import-Export'!$C$8:$C$256,0)),\"\")","v":"TCS-1(M): Pourcentage de personnes vivant avec le VIH bénéficiant actuellement d'un traitement antirétroviral"},{"$f":"IFERROR(IF(INDEX('Disaggregation1B_Import-Export'!AG$8:AG$239,MATCH($B42,'Disaggregation1B_Import-Export'!$C$8:$C$239,0))=\"\",\"\",INDEX('Disaggregation1B_Import-Export'!AG$8:AG$239,MATCH($B42,'Disaggregation1B_Import-Export'!$C$8:$C$239,0))),\"\")","v":"Homme"},{"$f":"IFERROR(IF(INDEX('Disaggregation1B_Import-Export'!AH$8:AH$239,MATCH($B42,'Disaggregation1B_Import-Export'!$C$8:$C$239,0))=\"\",\"\",INDEX('Disaggregation1B_Import-Export'!AH$8:AH$239,MATCH($B42,'Disaggregation1B_Import-Export'!$C$8:$C$239,0))),\"\")","v":"Sexe"},{"$f":"IFERROR(IF(INDEX('Disaggregation1B_Import-Export'!H$8:H$239,MATCH($B42,'Disaggregation1B_Import-Export'!$C$8:$C$239,0))=\"\",\"\",INDEX('Disaggregation1B_Import-Export'!H$8:H$239,MATCH($B42,'Disaggregation1B_Import-Export'!$C$8:$C$239,0))),\"\")","v":0},{"$f":"IFERROR(IF(INDEX('Disaggregation1B_Import-Export'!I$8:I$239,MATCH($B42,'Disaggregation1B_Import-Export'!$C$8:$C$239,0))=\"\",\"\",INDEX('Disaggregation1B_Import-Export'!I$8:I$239,MATCH($B42,'Disaggregation1B_Import-Export'!$C$8:$C$239,0))),\"\")","v":0},{"$f":"IFERROR(IF(INDEX('Disaggregation1B_Import-Export'!J$8:J$239,MATCH($B42,'Disaggregation1B_Import-Export'!$C$8:$C$239,0))=\"\",\"\",INDEX('Disaggregation1B_Import-Export'!J$8:J$239,MATCH($B42,'Disaggregation1B_Import-Export'!$C$8:$C$239,0))),\"\")","v":"0.0"},{"$f":"IFERROR(IF(INDEX('Disaggregation1B_Import-Export'!K$8:K$239,MATCH($B42,'Disaggregation1B_Import-Export'!$C$8:$C$239,0))=\"\",\"\",INDEX('Disaggregation1B_Import-Export'!K$8:K$239,MATCH($B42,'Disaggregation1B_Import-Export'!$C$8:$C$239,0))),\"\")","v":""},{"$f":"IFERROR(IF(INDEX('Disaggregation1B_Import-Export'!L$8:L$239,MATCH($B42,'Disaggregation1B_Import-Export'!$C$8:$C$239,0))=\"\",\"\",INDEX('Disaggregation1B_Import-Export'!L$8:L$239,MATCH($B42,'Disaggregation1B_Import-Export'!$C$8:$C$239,0))),\"\")","v":""},{"$f":"IFERROR(IF(INDEX('Disaggregation1B_Import-Export'!AQ$8:AQ$239,MATCH($B42,'Disaggregation1B_Import-Export'!$C$8:$C$239,0))=\"\",\"\",INDEX('Disaggregation1B_Import-Export'!AQ$8:AQ$239,MATCH($B42,'Disaggregation1B_Import-Export'!$C$8:$C$239,0))),\"\")","v":"Burundi"},null,null,"",null,"Duplication",null,null,null,"",null,null,null,null,null,""]
[33,"Coverage33",{"$f":"IFERROR(INDEX('Disaggregation1B_Import-Export'!D$8:D$239,MATCH($B43,'Disaggregation1B_Import-Export'!$C$8:$C$239,0)),\"\")","v":"Treatment, care and support"},{"$f":"IFERROR(INDEX('Disaggregation1B_Import-Export'!AF$8:AF$256,MATCH($B43,'Disaggregation1B_Import-Export'!$C$8:$C$256,0)),\"\")","v":"TCS-1(M): Pourcentage de personnes vivant avec le VIH bénéficiant actuellement d'un traitement antirétroviral"},{"$f":"IFERROR(IF(INDEX('Disaggregation1B_Import-Export'!AG$8:AG$239,MATCH($B43,'Disaggregation1B_Import-Export'!$C$8:$C$239,0))=\"\",\"\",INDEX('Disaggregation1B_Import-Export'!AG$8:AG$239,MATCH($B43,'Disaggregation1B_Import-Export'!$C$8:$C$239,0))),\"\")","v":"+ de 15 ans"},{"$f":"IFERROR(IF(INDEX('Disaggregation1B_Import-Export'!AH$8:AH$239,MATCH($B43,'Disaggregation1B_Import-Export'!$C$8:$C$239,0))=\"\",\"\",INDEX('Disaggregation1B_Import-Export'!AH$8:AH$239,MATCH($B43,'Disaggregation1B_Import-Export'!$C$8:$C$239,0))),\"\")","v":"Age"},{"$f":"IFERROR(IF(INDEX('Disaggregation1B_Import-Export'!H$8:H$239,MATCH($B43,'Disaggregation1B_Import-Export'!$C$8:$C$239,0))=\"\",\"\",INDEX('Disaggregation1B_Import-Export'!H$8:H$239,MATCH($B43,'Disaggregation1B_Import-Export'!$C$8:$C$239,0))),\"\")","v":48867},{"$f":"IFERROR(IF(INDEX('Disaggregation1B_Import-Export'!I$8:I$239,MATCH($B43,'Disaggregation1B_Import-Export'!$C$8:$C$239,0))=\"\",\"\",INDEX('Disaggregation1B_Import-Export'!I$8:I$239,MATCH($B43,'Disaggregation1B_Import-Export'!$C$8:$C$239,0))),\"\")","v":75204},{"$f":"IFERROR(IF(INDEX('Disaggregation1B_Import-Export'!J$8:J$239,MATCH($B43,'Disaggregation1B_Import-Export'!$C$8:$C$239,0))=\"\",\"\",INDEX('Disaggregation1B_Import-Export'!J$8:J$239,MATCH($B43,'Disaggregation1B_Import-Export'!$C$8:$C$239,0))),\"\")","v":"0.6"},{"$f":"IFERROR(IF(INDEX('Disaggregation1B_Import-Export'!K$8:K$239,MATCH($B43,'Disaggregation1B_Import-Export'!$C$8:$C$239,0))=\"\",\"\",INDEX('Disaggregation1B_Import-Export'!K$8:K$239,MATCH($B43,'Disaggregation1B_Import-Export'!$C$8:$C$239,0))),\"\")","v":"2016"},{"$f":"IFERROR(IF(INDEX('Disaggregation1B_Import-Export'!L$8:L$239,MATCH($B43,'Disaggregation1B_Import-Export'!$C$8:$C$239,0))=\"\",\"\",INDEX('Disaggregation1B_Import-Export'!L$8:L$239,MATCH($B43,'Disaggregation1B_Import-Export'!$C$8:$C$239,0))),\"\")","v":"PNLS Annual Report"},{"$f":"IFERROR(IF(INDEX('Disaggregation1B_Import-Export'!AQ$8:AQ$239,MATCH($B43,'Disaggregation1B_Import-Export'!$C$8:$C$239,0))=\"\",\"\",INDEX('Disaggregation1B_Import-Export'!AQ$8:AQ$239,MATCH($B43,'Disaggregation1B_Import-Export'!$C$8:$C$239,0))),\"\")","v":"Burundi"},null,null,"",null,"Le système d'information sanitaire ne permet pas de renseigner cet indicateur désagrégé par tranche d'âge",null,null,null,"",null,null,null,null,null,""]
[34,"Coverage34",{"$f":"IFERROR(INDEX('Disaggregation1B_Import-Export'!D$8:D$239,MATCH($B44,'Disaggregation1B_Import-Export'!$C$8:$C$239,0)),\"\")","v":"Treatment, care and support"},{"$f":"IFERROR(INDEX('Disaggregation1B_Import-Export'!AF$8:AF$256,MATCH($B44,'Disaggregation1B_Import-Export'!$C$8:$C$256,0)),\"\")","v":"TCS-1(M): Pourcentage de personnes vivant avec le VIH bénéficiant actuellement d'un traitement antirétroviral"},{"$f":"IFERROR(IF(INDEX('Disaggregation1B_Import-Export'!AG$8:AG$239,MATCH($B44,'Disaggregation1B_Import-Export'!$C$8:$C$239,0))=\"\",\"\",INDEX('Disaggregation1B_Import-Export'!AG$8:AG$239,MATCH($B44,'Disaggregation1B_Import-Export'!$C$8:$C$239,0))),\"\")","v":"Homme"},{"$f":"IFERROR(IF(INDEX('Disaggregation1B_Import-Export'!AH$8:AH$239,MATCH($B44,'Disaggregation1B_Import-Export'!$C$8:$C$239,0))=\"\",\"\",INDEX('Disaggregation1B_Import-Export'!AH$8:AH$239,MATCH($B44,'Disaggregation1B_Import-Export'!$C$8:$C$239,0))),\"\")","v":"Sexe"},{"$f":"IFERROR(IF(INDEX('Disaggregation1B_Import-Export'!H$8:H$239,MATCH($B44,'Disaggregation1B_Import-Export'!$C$8:$C$239,0))=\"\",\"\",INDEX('Disaggregation1B_Import-Export'!H$8:H$239,MATCH($B44,'Disaggregation1B_Import-Export'!$C$8:$C$239,0))),\"\")","v":0},{"$f":"IFERROR(IF(INDEX('Disaggregation1B_Import-Export'!I$8:I$239,MATCH($B44,'Disaggregation1B_Import-Export'!$C$8:$C$239,0))=\"\",\"\",INDEX('Disaggregation1B_Import-Export'!I$8:I$239,MATCH($B44,'Disaggregation1B_Import-Export'!$C$8:$C$239,0))),\"\")","v":0},{"$f":"IFERROR(IF(INDEX('Disaggregation1B_Import-Export'!J$8:J$239,MATCH($B44,'Disaggregation1B_Import-Export'!$C$8:$C$239,0))=\"\",\"\",INDEX('Disaggregation1B_Import-Export'!J$8:J$239,MATCH($B44,'Disaggregation1B_Import-Export'!$C$8:$C$239,0))),\"\")","v":"0.0"},{"$f":"IFERROR(IF(INDEX('Disaggregation1B_Import-Export'!K$8:K$239,MATCH($B44,'Disaggregation1B_Import-Export'!$C$8:$C$239,0))=\"\",\"\",INDEX('Disaggregation1B_Import-Export'!K$8:K$239,MATCH($B44,'Disaggregation1B_Import-Export'!$C$8:$C$239,0))),\"\")","v":""},{"$f":"IFERROR(IF(INDEX('Disaggregation1B_Import-Export'!L$8:L$239,MATCH($B44,'Disaggregation1B_Import-Export'!$C$8:$C$239,0))=\"\",\"\",INDEX('Disaggregation1B_Import-Export'!L$8:L$239,MATCH($B44,'Disaggregation1B_Import-Export'!$C$8:$C$239,0))),\"\")","v":""},{"$f":"IFERROR(IF(INDEX('Disaggregation1B_Import-Export'!AQ$8:AQ$239,MATCH($B44,'Disaggregation1B_Import-Export'!$C$8:$C$239,0))=\"\",\"\",INDEX('Disaggregation1B_Import-Export'!AQ$8:AQ$239,MATCH($B44,'Disaggregation1B_Import-Export'!$C$8:$C$239,0))),\"\")","v":"Burundi"},null,null,"",null,"Duplication",null,null,null,"",null,null,null,null,null,""]
[35,"Coverage35",{"$f":"IFERROR(INDEX('Disaggregation1B_Import-Export'!D$8:D$239,MATCH($B45,'Disaggregation1B_Import-Export'!$C$8:$C$239,0)),\"\")","v":"Treatment, care and support"},{"$f":"IFERROR(INDEX('Disaggregation1B_Import-Export'!AF$8:AF$256,MATCH($B45,'Disaggregation1B_Import-Export'!$C$8:$C$256,0)),\"\")","v":"TCS-1(M): Pourcentage de personnes vivant avec le VIH bénéficiant actuellement d'un traitement antirétroviral"},{"$f":"IFERROR(IF(INDEX('Disaggregation1B_Import-Export'!AG$8:AG$239,MATCH($B45,'Disaggregation1B_Import-Export'!$C$8:$C$239,0))=\"\",\"\",INDEX('Disaggregation1B_Import-Export'!AG$8:AG$239,MATCH($B45,'Disaggregation1B_Import-Export'!$C$8:$C$239,0))),\"\")","v":"Homme"},{"$f":"IFERROR(IF(INDEX('Disaggregation1B_Import-Export'!AH$8:AH$239,MATCH($B45,'Disaggregation1B_Import-Export'!$C$8:$C$239,0))=\"\",\"\",INDEX('Disaggregation1B_Import-Export'!AH$8:AH$239,MATCH($B45,'Disaggregation1B_Import-Export'!$C$8:$C$239,0))),\"\")","v":"Sexe"},{"$f":"IFERROR(IF(INDEX('Disaggregation1B_Import-Export'!H$8:H$239,MATCH($B45,'Disaggregation1B_Import-Export'!$C$8:$C$239,0))=\"\",\"\",INDEX('Disaggregation1B_Import-Export'!H$8:H$239,MATCH($B45,'Disaggregation1B_Import-Export'!$C$8:$C$239,0))),\"\")","v":0},{"$f":"IFERROR(IF(INDEX('Disaggregation1B_Import-Export'!I$8:I$239,MATCH($B45,'Disaggregation1B_Import-Export'!$C$8:$C$239,0))=\"\",\"\",INDEX('Disaggregation1B_Import-Export'!I$8:I$239,MATCH($B45,'Disaggregation1B_Import-Export'!$C$8:$C$239,0))),\"\")","v":0},{"$f":"IFERROR(IF(INDEX('Disaggregation1B_Import-Export'!J$8:J$239,MATCH($B45,'Disaggregation1B_Import-Export'!$C$8:$C$239,0))=\"\",\"\",INDEX('Disaggregation1B_Import-Export'!J$8:J$239,MATCH($B45,'Disaggregation1B_Import-Export'!$C$8:$C$239,0))),\"\")","v":"0.0"},{"$f":"IFERROR(IF(INDEX('Disaggregation1B_Import-Export'!K$8:K$239,MATCH($B45,'Disaggregation1B_Import-Export'!$C$8:$C$239,0))=\"\",\"\",INDEX('Disaggregation1B_Import-Export'!K$8:K$239,MATCH($B45,'Disaggregation1B_Import-Export'!$C$8:$C$239,0))),\"\")","v":""},{"$f":"IFERROR(IF(INDEX('Disaggregation1B_Import-Export'!L$8:L$239,MATCH($B45,'Disaggregation1B_Import-Export'!$C$8:$C$239,0))=\"\",\"\",INDEX('Disaggregation1B_Import-Export'!L$8:L$239,MATCH($B45,'Disaggregation1B_Import-Export'!$C$8:$C$239,0))),\"\")","v":""},{"$f":"IFERROR(IF(INDEX('Disaggregation1B_Import-Export'!AQ$8:AQ$239,MATCH($B45,'Disaggregation1B_Import-Export'!$C$8:$C$239,0))=\"\",\"\",INDEX('Disaggregation1B_Import-Export'!AQ$8:AQ$239,MATCH($B45,'Disaggregation1B_Import-Export'!$C$8:$C$239,0))),\"\")","v":"Burundi"},null,null,"",null,"Duplication",null,null,null,"",null,null,null,null,null,""]
[36,"Coverage36",{"$f":"IFERROR(INDEX('Disaggregation1B_Import-Export'!D$8:D$239,MATCH($B46,'Disaggregation1B_Import-Export'!$C$8:$C$239,0)),\"\")","v":"HIV Testing Services"},{"$f":"IFERROR(INDEX('Disaggregation1B_Import-Export'!AF$8:AF$256,MATCH($B46,'Disaggregation1B_Import-Export'!$C$8:$C$256,0)),\"\")","v":"HTS-1: Nombre de personnes dépistées pour le VIH et ayant reçu leurs résultats durant la période de rapportage"},{"$f":"IFERROR(IF(INDEX('Disaggregation1B_Import-Export'!AG$8:AG$239,MATCH($B46,'Disaggregation1B_Import-Export'!$C$8:$C$239,0))=\"\",\"\",INDEX('Disaggregation1B_Import-Export'!AG$8:AG$239,MATCH($B46,'Disaggregation1B_Import-Export'!$C$8:$C$239,0))),\"\")","v":"Positif"},{"$f":"IFERROR(IF(INDEX('Disaggregation1B_Import-Export'!AH$8:AH$239,MATCH($B46,'Disaggregation1B_Import-Export'!$C$8:$C$239,0))=\"\",\"\",INDEX('Disaggregation1B_Import-Export'!AH$8:AH$239,MATCH($B46,'Disaggregation1B_Import-Export'!$C$8:$C$239,0))),\"\")","v":"Résultat du test VIH"},{"$f":"IFERROR(IF(INDEX('Disaggregation1B_Import-Export'!H$8:H$239,MATCH($B46,'Disaggregation1B_Import-Export'!$C$8:$C$239,0))=\"\",\"\",INDEX('Disaggregation1B_Import-Export'!H$8:H$239,MATCH($B46,'Disaggregation1B_Import-Export'!$C$8:$C$239,0))),\"\")","v":15371},{"$f":"IFERROR(IF(INDEX('Disaggregation1B_Import-Export'!I$8:I$239,MATCH($B46,'Disaggregation1B_Import-Export'!$C$8:$C$239,0))=\"\",\"\",INDEX('Disaggregation1B_Import-Export'!I$8:I$239,MATCH($B46,'Disaggregation1B_Import-Export'!$C$8:$C$239,0))),\"\")","v":1528625},{"$f":"IFERROR(IF(INDEX('Disaggregation1B_Import-Export'!J$8:J$239,MATCH($B46,'Disaggregation1B_Import-Export'!$C$8:$C$239,0))=\"\",\"\",INDEX('Disaggregation1B_Import-Export'!J$8:J$239,MATCH($B46,'Disaggregation1B_Import-Export'!$C$8:$C$239,0))),\"\")","v":"0.0"},{"$f":"IFERROR(IF(INDEX('Disaggregation1B_Import-Export'!K$8:K$239,MATCH($B46,'Disaggregation1B_Import-Export'!$C$8:$C$239,0))=\"\",\"\",INDEX('Disaggregation1B_Import-Export'!K$8:K$239,MATCH($B46,'Disaggregation1B_Import-Export'!$C$8:$C$239,0))),\"\")","v":"2016"},{"$f":"IFERROR(IF(INDEX('Disaggregation1B_Import-Export'!L$8:L$239,MATCH($B46,'Disaggregation1B_Import-Export'!$C$8:$C$239,0))=\"\",\"\",INDEX('Disaggregation1B_Import-Export'!L$8:L$239,MATCH($B46,'Disaggregation1B_Import-Export'!$C$8:$C$239,0))),\"\")","v":"2016 Annual Report"},{"$f":"IFERROR(IF(INDEX('Disaggregation1B_Import-Export'!AQ$8:AQ$239,MATCH($B46,'Disaggregation1B_Import-Export'!$C$8:$C$239,0))=\"\",\"\",INDEX('Disaggregation1B_Import-Export'!AQ$8:AQ$239,MATCH($B46,'Disaggregation1B_Import-Export'!$C$8:$C$239,0))),\"\")","v":"Burundi"},5984,null,"",null,"Sur 951074 cas dépistés et ayant récupéré les résultats, 5984 cas se sont révélés séropositifs au VIH soit 0.6%.  \n7432 sont des tests dont les résultats sont indéterminés",null,null,null,"",null,null,null,null,null,""]
[37,"Coverage37",{"$f":"IFERROR(INDEX('Disaggregation1B_Import-Export'!D$8:D$239,MATCH($B47,'Disaggregation1B_Import-Export'!$C$8:$C$239,0)),\"\")","v":"HIV Testing Services"},{"$f":"IFERROR(INDEX('Disaggregation1B_Import-Export'!AF$8:AF$256,MATCH($B47,'Disaggregation1B_Import-Export'!$C$8:$C$256,0)),\"\")","v":"HTS-1: Nombre de personnes dépistées pour le VIH et ayant reçu leurs résultats durant la période de rapportage"},{"$f":"IFERROR(IF(INDEX('Disaggregation1B_Import-Export'!AG$8:AG$239,MATCH($B47,'Disaggregation1B_Import-Export'!$C$8:$C$239,0))=\"\",\"\",INDEX('Disaggregation1B_Import-Export'!AG$8:AG$239,MATCH($B47,'Disaggregation1B_Import-Export'!$C$8:$C$239,0))),\"\")","v":"Femme"},{"$f":"IFERROR(IF(INDEX('Disaggregation1B_Import-Export'!AH$8:AH$239,MATCH($B47,'Disaggregation1B_Import-Export'!$C$8:$C$239,0))=\"\",\"\",INDEX('Disaggregation1B_Import-Export'!AH$8:AH$239,MATCH($B47,'Disaggregation1B_Import-Export'!$C$8:$C$239,0))),\"\")","v":"Sexe"},{"$f":"IFERROR(IF(INDEX('Disaggregation1B_Import-Export'!H$8:H$239,MATCH($B47,'Disaggregation1B_Import-Export'!$C$8:$C$239,0))=\"\",\"\",INDEX('Disaggregation1B_Import-Export'!H$8:H$239,MATCH($B47,'Disaggregation1B_Import-Export'!$C$8:$C$239,0))),\"\")","v":0},{"$f":"IFERROR(IF(INDEX('Disaggregation1B_Import-Export'!I$8:I$239,MATCH($B47,'Disaggregation1B_Import-Export'!$C$8:$C$239,0))=\"\",\"\",INDEX('Disaggregation1B_Import-Export'!I$8:I$239,MATCH($B47,'Disaggregation1B_Import-Export'!$C$8:$C$239,0))),\"\")","v":0},{"$f":"IFERROR(IF(INDEX('Disaggregation1B_Import-Export'!J$8:J$239,MATCH($B47,'Disaggregation1B_Import-Export'!$C$8:$C$239,0))=\"\",\"\",INDEX('Disaggregation1B_Import-Export'!J$8:J$239,MATCH($B47,'Disaggregation1B_Import-Export'!$C$8:$C$239,0))),\"\")","v":"0.0"},{"$f":"IFERROR(IF(INDEX('Disaggregation1B_Import-Export'!K$8:K$239,MATCH($B47,'Disaggregation1B_Import-Export'!$C$8:$C$239,0))=\"\",\"\",INDEX('Disaggregation1B_Import-Export'!K$8:K$239,MATCH($B47,'Disaggregation1B_Import-Export'!$C$8:$C$239,0))),\"\")","v":""},{"$f":"IFERROR(IF(INDEX('Disaggregation1B_Import-Export'!L$8:L$239,MATCH($B47,'Disaggregation1B_Import-Export'!$C$8:$C$239,0))=\"\",\"\",INDEX('Disaggregation1B_Import-Export'!L$8:L$239,MATCH($B47,'Disaggregation1B_Import-Export'!$C$8:$C$239,0))),\"\")","v":""},{"$f":"IFERROR(IF(INDEX('Disaggregation1B_Import-Export'!AQ$8:AQ$239,MATCH($B47,'Disaggregation1B_Import-Export'!$C$8:$C$239,0))=\"\",\"\",INDEX('Disaggregation1B_Import-Export'!AQ$8:AQ$239,MATCH($B47,'Disaggregation1B_Import-Export'!$C$8:$C$239,0))),\"\")","v":"Burundi"},623814,null,"",null,"Sur 938645 cas dépistés et ayant récupéré les résultats, 623 814 étaient des femmes soit 66.4%",null,null,null,"",null,null,null,null,null,""]
[38,"Coverage38",{"$f":"IFERROR(INDEX('Disaggregation1B_Import-Export'!D$8:D$239,MATCH($B48,'Disaggregation1B_Import-Export'!$C$8:$C$239,0)),\"\")","v":"HIV Testing Services"},{"$f":"IFERROR(INDEX('Disaggregation1B_Import-Export'!AF$8:AF$256,MATCH($B48,'Disaggregation1B_Import-Export'!$C$8:$C$256,0)),\"\")","v":"HTS-1: Nombre de personnes dépistées pour le VIH et ayant reçu leurs résultats durant la période de rapportage"},{"$f":"IFERROR(IF(INDEX('Disaggregation1B_Import-Export'!AG$8:AG$239,MATCH($B48,'Disaggregation1B_Import-Export'!$C$8:$C$239,0))=\"\",\"\",INDEX('Disaggregation1B_Import-Export'!AG$8:AG$239,MATCH($B48,'Disaggregation1B_Import-Export'!$C$8:$C$239,0))),\"\")","v":"Homme"},{"$f":"IFERROR(IF(INDEX('Disaggregation1B_Import-Export'!AH$8:AH$239,MATCH($B48,'Disaggregation1B_Import-Export'!$C$8:$C$239,0))=\"\",\"\",INDEX('Disaggregation1B_Import-Export'!AH$8:AH$239,MATCH($B48,'Disaggregation1B_Import-Export'!$C$8:$C$239,0))),\"\")","v":"Sexe"},{"$f":"IFERROR(IF(INDEX('Disaggregation1B_Import-Export'!H$8:H$239,MATCH($B48,'Disaggregation1B_Import-Export'!$C$8:$C$239,0))=\"\",\"\",INDEX('Disaggregation1B_Import-Export'!H$8:H$239,MATCH($B48,'Disaggregation1B_Import-Export'!$C$8:$C$239,0))),\"\")","v":0},{"$f":"IFERROR(IF(INDEX('Disaggregation1B_Import-Export'!I$8:I$239,MATCH($B48,'Disaggregation1B_Import-Export'!$C$8:$C$239,0))=\"\",\"\",INDEX('Disaggregation1B_Import-Export'!I$8:I$239,MATCH($B48,'Disaggregation1B_Import-Export'!$C$8:$C$239,0))),\"\")","v":0},{"$f":"IFERROR(IF(INDEX('Disaggregation1B_Import-Export'!J$8:J$239,MATCH($B48,'Disaggregation1B_Import-Export'!$C$8:$C$239,0))=\"\",\"\",INDEX('Disaggregation1B_Import-Export'!J$8:J$239,MATCH($B48,'Disaggregation1B_Import-Export'!$C$8:$C$239,0))),\"\")","v":"0.0"},{"$f":"IFERROR(IF(INDEX('Disaggregation1B_Import-Export'!K$8:K$239,MATCH($B48,'Disaggregation1B_Import-Export'!$C$8:$C$239,0))=\"\",\"\",INDEX('Disaggregation1B_Import-Export'!K$8:K$239,MATCH($B48,'Disaggregation1B_Import-Export'!$C$8:$C$239,0))),\"\")","v":""},{"$f":"IFERROR(IF(INDEX('Disaggregation1B_Import-Export'!L$8:L$239,MATCH($B48,'Disaggregation1B_Import-Export'!$C$8:$C$239,0))=\"\",\"\",INDEX('Disaggregation1B_Import-Export'!L$8:L$239,MATCH($B48,'Disaggregation1B_Import-Export'!$C$8:$C$239,0))),\"\")","v":""},{"$f":"IFERROR(IF(INDEX('Disaggregation1B_Import-Export'!AQ$8:AQ$239,MATCH($B48,'Disaggregation1B_Import-Export'!$C$8:$C$239,0))=\"\",\"\",INDEX('Disaggregation1B_Import-Export'!AQ$8:AQ$239,MATCH($B48,'Disaggregation1B_Import-Export'!$C$8:$C$239,0))),\"\")","v":"Burundi"},314831,null,"",null,"Sur 938645 cas dépistés et ayant récupéré les résultats, 314831 étaient des hommes soit 33.54%",null,null,null,"",null,null,null,null,null,""]
[39,"Coverage39",{"$f":"IFERROR(INDEX('Disaggregation1B_Import-Export'!D$8:D$239,MATCH($B49,'Disaggregation1B_Import-Export'!$C$8:$C$239,0)),\"\")","v":"HIV Testing Services"},{"$f":"IFERROR(INDEX('Disaggregation1B_Import-Export'!AF$8:AF$256,MATCH($B49,'Disaggregation1B_Import-Export'!$C$8:$C$256,0)),\"\")","v":"HTS-1: Nombre de personnes dépistées pour le VIH et ayant reçu leurs résultats durant la période de rapportage"},{"$f":"IFERROR(IF(INDEX('Disaggregation1B_Import-Export'!AG$8:AG$239,MATCH($B49,'Disaggregation1B_Import-Export'!$C$8:$C$239,0))=\"\",\"\",INDEX('Disaggregation1B_Import-Export'!AG$8:AG$239,MATCH($B49,'Disaggregation1B_Import-Export'!$C$8:$C$239,0))),\"\")","v":"Négatif"},{"$f":"IFERROR(IF(INDEX('Disaggregation1B_Import-Export'!AH$8:AH$239,MATCH($B49,'Disaggregation1B_Import-Export'!$C$8:$C$239,0))=\"\",\"\",INDEX('Disaggregation1B_Import-Export'!AH$8:AH$239,MATCH($B49,'Disaggregation1B_Import-Export'!$C$8:$C$239,0))),\"\")","v":"Résultat du test VIH"},{"$f":"IFERROR(IF(INDEX('Disaggregation1B_Import-Export'!H$8:H$239,MATCH($B49,'Disaggregation1B_Import-Export'!$C$8:$C$239,0))=\"\",\"\",INDEX('Disaggregation1B_Import-Export'!H$8:H$239,MATCH($B49,'Disaggregation1B_Import-Export'!$C$8:$C$239,0))),\"\")","v":1513254},{"$f":"IFERROR(IF(INDEX('Disaggregation1B_Import-Export'!I$8:I$239,MATCH($B49,'Disaggregation1B_Import-Export'!$C$8:$C$239,0))=\"\",\"\",INDEX('Disaggregation1B_Import-Export'!I$8:I$239,MATCH($B49,'Disaggregation1B_Import-Export'!$C$8:$C$239,0))),\"\")","v":1528625},{"$f":"IFERROR(IF(INDEX('Disaggregation1B_Import-Export'!J$8:J$239,MATCH($B49,'Disaggregation1B_Import-Export'!$C$8:$C$239,0))=\"\",\"\",INDEX('Disaggregation1B_Import-Export'!J$8:J$239,MATCH($B49,'Disaggregation1B_Import-Export'!$C$8:$C$239,0))),\"\")","v":"1.0"},{"$f":"IFERROR(IF(INDEX('Disaggregation1B_Import-Export'!K$8:K$239,MATCH($B49,'Disaggregation1B_Import-Export'!$C$8:$C$239,0))=\"\",\"\",INDEX('Disaggregation1B_Import-Export'!K$8:K$239,MATCH($B49,'Disaggregation1B_Import-Export'!$C$8:$C$239,0))),\"\")","v":"2016"},{"$f":"IFERROR(IF(INDEX('Disaggregation1B_Import-Export'!L$8:L$239,MATCH($B49,'Disaggregation1B_Import-Export'!$C$8:$C$239,0))=\"\",\"\",INDEX('Disaggregation1B_Import-Export'!L$8:L$239,MATCH($B49,'Disaggregation1B_Import-Export'!$C$8:$C$239,0))),\"\")","v":"2016 Annual Report"},{"$f":"IFERROR(IF(INDEX('Disaggregation1B_Import-Export'!AQ$8:AQ$239,MATCH($B49,'Disaggregation1B_Import-Export'!$C$8:$C$239,0))=\"\",\"\",INDEX('Disaggregation1B_Import-Export'!AQ$8:AQ$239,MATCH($B49,'Disaggregation1B_Import-Export'!$C$8:$C$239,0))),\"\")","v":"Burundi"},925229,null,"",null,"7432 D’indeterminé non compris",null,null,null,"",null,null,null,null,null,""]
[40,{"$f":"\"Coverage\"&A50","v":"Coverage40"},{"$f":"IFERROR(INDEX('Disaggregation1B_Import-Export'!D$8:D$239,MATCH($B50,'Disaggregation1B_Import-Export'!$C$8:$C$239,0)),\"\")","v":""},{"$f":"IFERROR(INDEX('Disaggregation1B_Import-Export'!AF$8:AF$256,MATCH($B50,'Disaggregation1B_Import-Export'!$C$8:$C$256,0)),\"\")","v":""},{"$f":"IFERROR(IF(INDEX('Disaggregation1B_Import-Export'!AG$8:AG$239,MATCH($B50,'Disaggregation1B_Import-Export'!$C$8:$C$239,0))=\"\",\"\",INDEX('Disaggregation1B_Import-Export'!AG$8:AG$239,MATCH($B50,'Disaggregation1B_Import-Export'!$C$8:$C$239,0))),\"\")","v":""},{"$f":"IFERROR(IF(INDEX('Disaggregation1B_Import-Export'!AH$8:AH$239,MATCH($B50,'Disaggregation1B_Import-Export'!$C$8:$C$239,0))=\"\",\"\",INDEX('Disaggregation1B_Import-Export'!AH$8:AH$239,MATCH($B50,'Disaggregation1B_Import-Export'!$C$8:$C$239,0))),\"\")","v":""},{"$f":"IFERROR(IF(INDEX('Disaggregation1B_Import-Export'!H$8:H$239,MATCH($B50,'Disaggregation1B_Import-Export'!$C$8:$C$239,0))=\"\",\"\",INDEX('Disaggregation1B_Import-Export'!H$8:H$239,MATCH($B50,'Disaggregation1B_Import-Export'!$C$8:$C$239,0))),\"\")","v":""},{"$f":"IFERROR(IF(INDEX('Disaggregation1B_Import-Export'!I$8:I$239,MATCH($B50,'Disaggregation1B_Import-Export'!$C$8:$C$239,0))=\"\",\"\",INDEX('Disaggregation1B_Import-Export'!I$8:I$239,MATCH($B50,'Disaggregation1B_Import-Export'!$C$8:$C$239,0))),\"\")","v":""},{"$f":"IFERROR(IF(INDEX('Disaggregation1B_Import-Export'!J$8:J$239,MATCH($B50,'Disaggregation1B_Import-Export'!$C$8:$C$239,0))=\"\",\"\",INDEX('Disaggregation1B_Import-Export'!J$8:J$239,MATCH($B50,'Disaggregation1B_Import-Export'!$C$8:$C$239,0))),\"\")","v":""},{"$f":"IFERROR(IF(INDEX('Disaggregation1B_Import-Export'!K$8:K$239,MATCH($B50,'Disaggregation1B_Import-Export'!$C$8:$C$239,0))=\"\",\"\",INDEX('Disaggregation1B_Import-Export'!K$8:K$239,MATCH($B50,'Disaggregation1B_Import-Export'!$C$8:$C$239,0))),\"\")","v":""},{"$f":"IFERROR(IF(INDEX('Disaggregation1B_Import-Export'!L$8:L$239,MATCH($B50,'Disaggregation1B_Import-Export'!$C$8:$C$239,0))=\"\",\"\",INDEX('Disaggregation1B_Import-Export'!L$8:L$239,MATCH($B50,'Disaggregation1B_Import-Export'!$C$8:$C$239,0))),\"\")","v":""},{"$f":"IFERROR(IF(INDEX('Disaggregation1B_Import-Export'!AQ$8:AQ$239,MATCH($B50,'Disaggregation1B_Import-Export'!$C$8:$C$239,0))=\"\",\"\",INDEX('Disaggregation1B_Import-Export'!AQ$8:AQ$239,MATCH($B50,'Disaggregation1B_Import-Export'!$C$8:$C$239,0))),\"\")","v":""},null,null,{"$f":"IFERROR((M50/N50)*100,\"\")","v":""},null,null,null,null,null,{"$f":"IFERROR((S50/T50)*100,\"\")","v":""},null,null,null,null,null,{"$f":"IFERROR(Y50/Z50,\"\")","v":""}]
[41,"Coverage41",{"$f":"IFERROR(INDEX('Disaggregation1B_Import-Export'!D$8:D$239,MATCH($B51,'Disaggregation1B_Import-Export'!$C$8:$C$239,0)),\"\")","v":""},{"$f":"IFERROR(INDEX('Disaggregation1B_Import-Export'!AF$8:AF$256,MATCH($B51,'Disaggregation1B_Import-Export'!$C$8:$C$256,0)),\"\")","v":""},{"$f":"IFERROR(IF(INDEX('Disaggregation1B_Import-Export'!AG$8:AG$239,MATCH($B51,'Disaggregation1B_Import-Export'!$C$8:$C$239,0))=\"\",\"\",INDEX('Disaggregation1B_Import-Export'!AG$8:AG$239,MATCH($B51,'Disaggregation1B_Import-Export'!$C$8:$C$239,0))),\"\")","v":""},{"$f":"IFERROR(IF(INDEX('Disaggregation1B_Import-Export'!AH$8:AH$239,MATCH($B51,'Disaggregation1B_Import-Export'!$C$8:$C$239,0))=\"\",\"\",INDEX('Disaggregation1B_Import-Export'!AH$8:AH$239,MATCH($B51,'Disaggregation1B_Import-Export'!$C$8:$C$239,0))),\"\")","v":""},{"$f":"IFERROR(IF(INDEX('Disaggregation1B_Import-Export'!H$8:H$239,MATCH($B51,'Disaggregation1B_Import-Export'!$C$8:$C$239,0))=\"\",\"\",INDEX('Disaggregation1B_Import-Export'!H$8:H$239,MATCH($B51,'Disaggregation1B_Import-Export'!$C$8:$C$239,0))),\"\")","v":""},{"$f":"IFERROR(IF(INDEX('Disaggregation1B_Import-Export'!I$8:I$239,MATCH($B51,'Disaggregation1B_Import-Export'!$C$8:$C$239,0))=\"\",\"\",INDEX('Disaggregation1B_Import-Export'!I$8:I$239,MATCH($B51,'Disaggregation1B_Import-Export'!$C$8:$C$239,0))),\"\")","v":""},{"$f":"IFERROR(IF(INDEX('Disaggregation1B_Import-Export'!J$8:J$239,MATCH($B51,'Disaggregation1B_Import-Export'!$C$8:$C$239,0))=\"\",\"\",INDEX('Disaggregation1B_Import-Export'!J$8:J$239,MATCH($B51,'Disaggregation1B_Import-Export'!$C$8:$C$239,0))),\"\")","v":""},{"$f":"IFERROR(IF(INDEX('Disaggregation1B_Import-Export'!K$8:K$239,MATCH($B51,'Disaggregation1B_Import-Export'!$C$8:$C$239,0))=\"\",\"\",INDEX('Disaggregation1B_Import-Export'!K$8:K$239,MATCH($B51,'Disaggregation1B_Import-Export'!$C$8:$C$239,0))),\"\")","v":""},{"$f":"IFERROR(IF(INDEX('Disaggregation1B_Import-Export'!L$8:L$239,MATCH($B51,'Disaggregation1B_Import-Export'!$C$8:$C$239,0))=\"\",\"\",INDEX('Disaggregation1B_Import-Export'!L$8:L$239,MATCH($B51,'Disaggregation1B_Import-Export'!$C$8:$C$239,0))),\"\")","v":""},{"$f":"IFERROR(IF(INDEX('Disaggregation1B_Import-Export'!AQ$8:AQ$239,MATCH($B51,'Disaggregation1B_Import-Export'!$C$8:$C$239,0))=\"\",\"\",INDEX('Disaggregation1B_Import-Export'!AQ$8:AQ$239,MATCH($B51,'Disaggregation1B_Import-Export'!$C$8:$C$239,0))),\"\")","v":""},null,null,"",null,null,null,null,null,"",null,null,null,null,null,""]
[42,"Coverage42",{"$f":"IFERROR(INDEX('Disaggregation1B_Import-Export'!D$8:D$239,MATCH($B52,'Disaggregation1B_Import-Export'!$C$8:$C$239,0)),\"\")","v":""},{"$f":"IFERROR(INDEX('Disaggregation1B_Import-Export'!AF$8:AF$256,MATCH($B52,'Disaggregation1B_Import-Export'!$C$8:$C$256,0)),\"\")","v":""},{"$f":"IFERROR(IF(INDEX('Disaggregation1B_Import-Export'!AG$8:AG$239,MATCH($B52,'Disaggregation1B_Import-Export'!$C$8:$C$239,0))=\"\",\"\",INDEX('Disaggregation1B_Import-Export'!AG$8:AG$239,MATCH($B52,'Disaggregation1B_Import-Export'!$C$8:$C$239,0))),\"\")","v":""},{"$f":"IFERROR(IF(INDEX('Disaggregation1B_Import-Export'!AH$8:AH$239,MATCH($B52,'Disaggregation1B_Import-Export'!$C$8:$C$239,0))=\"\",\"\",INDEX('Disaggregation1B_Import-Export'!AH$8:AH$239,MATCH($B52,'Disaggregation1B_Import-Export'!$C$8:$C$239,0))),\"\")","v":""},{"$f":"IFERROR(IF(INDEX('Disaggregation1B_Import-Export'!H$8:H$239,MATCH($B52,'Disaggregation1B_Import-Export'!$C$8:$C$239,0))=\"\",\"\",INDEX('Disaggregation1B_Import-Export'!H$8:H$239,MATCH($B52,'Disaggregation1B_Import-Export'!$C$8:$C$239,0))),\"\")","v":""},{"$f":"IFERROR(IF(INDEX('Disaggregation1B_Import-Export'!I$8:I$239,MATCH($B52,'Disaggregation1B_Import-Export'!$C$8:$C$239,0))=\"\",\"\",INDEX('Disaggregation1B_Import-Export'!I$8:I$239,MATCH($B52,'Disaggregation1B_Import-Export'!$C$8:$C$239,0))),\"\")","v":""},{"$f":"IFERROR(IF(INDEX('Disaggregation1B_Import-Export'!J$8:J$239,MATCH($B52,'Disaggregation1B_Import-Export'!$C$8:$C$239,0))=\"\",\"\",INDEX('Disaggregation1B_Import-Export'!J$8:J$239,MATCH($B52,'Disaggregation1B_Import-Export'!$C$8:$C$239,0))),\"\")","v":""},{"$f":"IFERROR(IF(INDEX('Disaggregation1B_Import-Export'!K$8:K$239,MATCH($B52,'Disaggregation1B_Import-Export'!$C$8:$C$239,0))=\"\",\"\",INDEX('Disaggregation1B_Import-Export'!K$8:K$239,MATCH($B52,'Disaggregation1B_Import-Export'!$C$8:$C$239,0))),\"\")","v":""},{"$f":"IFERROR(IF(INDEX('Disaggregation1B_Import-Export'!L$8:L$239,MATCH($B52,'Disaggregation1B_Import-Export'!$C$8:$C$239,0))=\"\",\"\",INDEX('Disaggregation1B_Import-Export'!L$8:L$239,MATCH($B52,'Disaggregation1B_Import-Export'!$C$8:$C$239,0))),\"\")","v":""},{"$f":"IFERROR(IF(INDEX('Disaggregation1B_Import-Export'!AQ$8:AQ$239,MATCH($B52,'Disaggregation1B_Import-Export'!$C$8:$C$239,0))=\"\",\"\",INDEX('Disaggregation1B_Import-Export'!AQ$8:AQ$239,MATCH($B52,'Disaggregation1B_Import-Export'!$C$8:$C$239,0))),\"\")","v":""},null,null,"",null,null,null,null,null,"",null,null,null,null,null,""]
[43,"Coverage43",{"$f":"IFERROR(INDEX('Disaggregation1B_Import-Export'!D$8:D$239,MATCH($B53,'Disaggregation1B_Import-Export'!$C$8:$C$239,0)),\"\")","v":""},{"$f":"IFERROR(INDEX('Disaggregation1B_Import-Export'!AF$8:AF$256,MATCH($B53,'Disaggregation1B_Import-Export'!$C$8:$C$256,0)),\"\")","v":""},{"$f":"IFERROR(IF(INDEX('Disaggregation1B_Import-Export'!AG$8:AG$239,MATCH($B53,'Disaggregation1B_Import-Export'!$C$8:$C$239,0))=\"\",\"\",INDEX('Disaggregation1B_Import-Export'!AG$8:AG$239,MATCH($B53,'Disaggregation1B_Import-Export'!$C$8:$C$239,0))),\"\")","v":""},{"$f":"IFERROR(IF(INDEX('Disaggregation1B_Import-Export'!AH$8:AH$239,MATCH($B53,'Disaggregation1B_Import-Export'!$C$8:$C$239,0))=\"\",\"\",INDEX('Disaggregation1B_Import-Export'!AH$8:AH$239,MATCH($B53,'Disaggregation1B_Import-Export'!$C$8:$C$239,0))),\"\")","v":""},{"$f":"IFERROR(IF(INDEX('Disaggregation1B_Import-Export'!H$8:H$239,MATCH($B53,'Disaggregation1B_Import-Export'!$C$8:$C$239,0))=\"\",\"\",INDEX('Disaggregation1B_Import-Export'!H$8:H$239,MATCH($B53,'Disaggregation1B_Import-Export'!$C$8:$C$239,0))),\"\")","v":""},{"$f":"IFERROR(IF(INDEX('Disaggregation1B_Import-Export'!I$8:I$239,MATCH($B53,'Disaggregation1B_Import-Export'!$C$8:$C$239,0))=\"\",\"\",INDEX('Disaggregation1B_Import-Export'!I$8:I$239,MATCH($B53,'Disaggregation1B_Import-Export'!$C$8:$C$239,0))),\"\")","v":""},{"$f":"IFERROR(IF(INDEX('Disaggregation1B_Import-Export'!J$8:J$239,MATCH($B53,'Disaggregation1B_Import-Export'!$C$8:$C$239,0))=\"\",\"\",INDEX('Disaggregation1B_Import-Export'!J$8:J$239,MATCH($B53,'Disaggregation1B_Import-Export'!$C$8:$C$239,0))),\"\")","v":""},{"$f":"IFERROR(IF(INDEX('Disaggregation1B_Import-Export'!K$8:K$239,MATCH($B53,'Disaggregation1B_Import-Export'!$C$8:$C$239,0))=\"\",\"\",INDEX('Disaggregation1B_Import-Export'!K$8:K$239,MATCH($B53,'Disaggregation1B_Import-Export'!$C$8:$C$239,0))),\"\")","v":""},{"$f":"IFERROR(IF(INDEX('Disaggregation1B_Import-Export'!L$8:L$239,MATCH($B53,'Disaggregation1B_Import-Export'!$C$8:$C$239,0))=\"\",\"\",INDEX('Disaggregation1B_Import-Export'!L$8:L$239,MATCH($B53,'Disaggregation1B_Import-Export'!$C$8:$C$239,0))),\"\")","v":""},{"$f":"IFERROR(IF(INDEX('Disaggregation1B_Import-Export'!AQ$8:AQ$239,MATCH($B53,'Disaggregation1B_Import-Export'!$C$8:$C$239,0))=\"\",\"\",INDEX('Disaggregation1B_Import-Export'!AQ$8:AQ$239,MATCH($B53,'Disaggregation1B_Import-Export'!$C$8:$C$239,0))),\"\")","v":""},null,null,"",null,null,null,null,null,"",null,null,null,null,null,""]
[44,"Coverage44",{"$f":"IFERROR(INDEX('Disaggregation1B_Import-Export'!D$8:D$239,MATCH($B54,'Disaggregation1B_Import-Export'!$C$8:$C$239,0)),\"\")","v":""},{"$f":"IFERROR(INDEX('Disaggregation1B_Import-Export'!AF$8:AF$256,MATCH($B54,'Disaggregation1B_Import-Export'!$C$8:$C$256,0)),\"\")","v":""},{"$f":"IFERROR(IF(INDEX('Disaggregation1B_Import-Export'!AG$8:AG$239,MATCH($B54,'Disaggregation1B_Import-Export'!$C$8:$C$239,0))=\"\",\"\",INDEX('Disaggregation1B_Import-Export'!AG$8:AG$239,MATCH($B54,'Disaggregation1B_Import-Export'!$C$8:$C$239,0))),\"\")","v":""},{"$f":"IFERROR(IF(INDEX('Disaggregation1B_Import-Export'!AH$8:AH$239,MATCH($B54,'Disaggregation1B_Import-Export'!$C$8:$C$239,0))=\"\",\"\",INDEX('Disaggregation1B_Import-Export'!AH$8:AH$239,MATCH($B54,'Disaggregation1B_Import-Export'!$C$8:$C$239,0))),\"\")","v":""},{"$f":"IFERROR(IF(INDEX('Disaggregation1B_Import-Export'!H$8:H$239,MATCH($B54,'Disaggregation1B_Import-Export'!$C$8:$C$239,0))=\"\",\"\",INDEX('Disaggregation1B_Import-Export'!H$8:H$239,MATCH($B54,'Disaggregation1B_Import-Export'!$C$8:$C$239,0))),\"\")","v":""},{"$f":"IFERROR(IF(INDEX('Disaggregation1B_Import-Export'!I$8:I$239,MATCH($B54,'Disaggregation1B_Import-Export'!$C$8:$C$239,0))=\"\",\"\",INDEX('Disaggregation1B_Import-Export'!I$8:I$239,MATCH($B54,'Disaggregation1B_Import-Export'!$C$8:$C$239,0))),\"\")","v":""},{"$f":"IFERROR(IF(INDEX('Disaggregation1B_Import-Export'!J$8:J$239,MATCH($B54,'Disaggregation1B_Import-Export'!$C$8:$C$239,0))=\"\",\"\",INDEX('Disaggregation1B_Import-Export'!J$8:J$239,MATCH($B54,'Disaggregation1B_Import-Export'!$C$8:$C$239,0))),\"\")","v":""},{"$f":"IFERROR(IF(INDEX('Disaggregation1B_Import-Export'!K$8:K$239,MATCH($B54,'Disaggregation1B_Import-Export'!$C$8:$C$239,0))=\"\",\"\",INDEX('Disaggregation1B_Import-Export'!K$8:K$239,MATCH($B54,'Disaggregation1B_Import-Export'!$C$8:$C$239,0))),\"\")","v":""},{"$f":"IFERROR(IF(INDEX('Disaggregation1B_Import-Export'!L$8:L$239,MATCH($B54,'Disaggregation1B_Import-Export'!$C$8:$C$239,0))=\"\",\"\",INDEX('Disaggregation1B_Import-Export'!L$8:L$239,MATCH($B54,'Disaggregation1B_Import-Export'!$C$8:$C$239,0))),\"\")","v":""},{"$f":"IFERROR(IF(INDEX('Disaggregation1B_Import-Export'!AQ$8:AQ$239,MATCH($B54,'Disaggregation1B_Import-Export'!$C$8:$C$239,0))=\"\",\"\",INDEX('Disaggregation1B_Import-Export'!AQ$8:AQ$239,MATCH($B54,'Disaggregation1B_Import-Export'!$C$8:$C$239,0))),\"\")","v":""},null,null,"",null,null,null,null,null,"",null,null,null,null,null,""]
[45,"Coverage45",{"$f":"IFERROR(INDEX('Disaggregation1B_Import-Export'!D$8:D$239,MATCH($B55,'Disaggregation1B_Import-Export'!$C$8:$C$239,0)),\"\")","v":""},{"$f":"IFERROR(INDEX('Disaggregation1B_Import-Export'!AF$8:AF$256,MATCH($B55,'Disaggregation1B_Import-Export'!$C$8:$C$256,0)),\"\")","v":""},{"$f":"IFERROR(IF(INDEX('Disaggregation1B_Import-Export'!AG$8:AG$239,MATCH($B55,'Disaggregation1B_Import-Export'!$C$8:$C$239,0))=\"\",\"\",INDEX('Disaggregation1B_Import-Export'!AG$8:AG$239,MATCH($B55,'Disaggregation1B_Import-Export'!$C$8:$C$239,0))),\"\")","v":""},{"$f":"IFERROR(IF(INDEX('Disaggregation1B_Import-Export'!AH$8:AH$239,MATCH($B55,'Disaggregation1B_Import-Export'!$C$8:$C$239,0))=\"\",\"\",INDEX('Disaggregation1B_Import-Export'!AH$8:AH$239,MATCH($B55,'Disaggregation1B_Import-Export'!$C$8:$C$239,0))),\"\")","v":""},{"$f":"IFERROR(IF(INDEX('Disaggregation1B_Import-Export'!H$8:H$239,MATCH($B55,'Disaggregation1B_Import-Export'!$C$8:$C$239,0))=\"\",\"\",INDEX('Disaggregation1B_Import-Export'!H$8:H$239,MATCH($B55,'Disaggregation1B_Import-Export'!$C$8:$C$239,0))),\"\")","v":""},{"$f":"IFERROR(IF(INDEX('Disaggregation1B_Import-Export'!I$8:I$239,MATCH($B55,'Disaggregation1B_Import-Export'!$C$8:$C$239,0))=\"\",\"\",INDEX('Disaggregation1B_Import-Export'!I$8:I$239,MATCH($B55,'Disaggregation1B_Import-Export'!$C$8:$C$239,0))),\"\")","v":""},{"$f":"IFERROR(IF(INDEX('Disaggregation1B_Import-Export'!J$8:J$239,MATCH($B55,'Disaggregation1B_Import-Export'!$C$8:$C$239,0))=\"\",\"\",INDEX('Disaggregation1B_Import-Export'!J$8:J$239,MATCH($B55,'Disaggregation1B_Import-Export'!$C$8:$C$239,0))),\"\")","v":""},{"$f":"IFERROR(IF(INDEX('Disaggregation1B_Import-Export'!K$8:K$239,MATCH($B55,'Disaggregation1B_Import-Export'!$C$8:$C$239,0))=\"\",\"\",INDEX('Disaggregation1B_Import-Export'!K$8:K$239,MATCH($B55,'Disaggregation1B_Import-Export'!$C$8:$C$239,0))),\"\")","v":""},{"$f":"IFERROR(IF(INDEX('Disaggregation1B_Import-Export'!L$8:L$239,MATCH($B55,'Disaggregation1B_Import-Export'!$C$8:$C$239,0))=\"\",\"\",INDEX('Disaggregation1B_Import-Export'!L$8:L$239,MATCH($B55,'Disaggregation1B_Import-Export'!$C$8:$C$239,0))),\"\")","v":""},{"$f":"IFERROR(IF(INDEX('Disaggregation1B_Import-Export'!AQ$8:AQ$239,MATCH($B55,'Disaggregation1B_Import-Export'!$C$8:$C$239,0))=\"\",\"\",INDEX('Disaggregation1B_Import-Export'!AQ$8:AQ$239,MATCH($B55,'Disaggregation1B_Import-Export'!$C$8:$C$239,0))),\"\")","v":""},null,null,"",null,null,null,null,null,"",null,null,null,null,null,""]
[46,"Coverage46",{"$f":"IFERROR(INDEX('Disaggregation1B_Import-Export'!D$8:D$239,MATCH($B56,'Disaggregation1B_Import-Export'!$C$8:$C$239,0)),\"\")","v":""},{"$f":"IFERROR(INDEX('Disaggregation1B_Import-Export'!AF$8:AF$256,MATCH($B56,'Disaggregation1B_Import-Export'!$C$8:$C$256,0)),\"\")","v":""},{"$f":"IFERROR(IF(INDEX('Disaggregation1B_Import-Export'!AG$8:AG$239,MATCH($B56,'Disaggregation1B_Import-Export'!$C$8:$C$239,0))=\"\",\"\",INDEX('Disaggregation1B_Import-Export'!AG$8:AG$239,MATCH($B56,'Disaggregation1B_Import-Export'!$C$8:$C$239,0))),\"\")","v":""},{"$f":"IFERROR(IF(INDEX('Disaggregation1B_Import-Export'!AH$8:AH$239,MATCH($B56,'Disaggregation1B_Import-Export'!$C$8:$C$239,0))=\"\",\"\",INDEX('Disaggregation1B_Import-Export'!AH$8:AH$239,MATCH($B56,'Disaggregation1B_Import-Export'!$C$8:$C$239,0))),\"\")","v":""},{"$f":"IFERROR(IF(INDEX('Disaggregation1B_Import-Export'!H$8:H$239,MATCH($B56,'Disaggregation1B_Import-Export'!$C$8:$C$239,0))=\"\",\"\",INDEX('Disaggregation1B_Import-Export'!H$8:H$239,MATCH($B56,'Disaggregation1B_Import-Export'!$C$8:$C$239,0))),\"\")","v":""},{"$f":"IFERROR(IF(INDEX('Disaggregation1B_Import-Export'!I$8:I$239,MATCH($B56,'Disaggregation1B_Import-Export'!$C$8:$C$239,0))=\"\",\"\",INDEX('Disaggregation1B_Import-Export'!I$8:I$239,MATCH($B56,'Disaggregation1B_Import-Export'!$C$8:$C$239,0))),\"\")","v":""},{"$f":"IFERROR(IF(INDEX('Disaggregation1B_Import-Export'!J$8:J$239,MATCH($B56,'Disaggregation1B_Import-Export'!$C$8:$C$239,0))=\"\",\"\",INDEX('Disaggregation1B_Import-Export'!J$8:J$239,MATCH($B56,'Disaggregation1B_Import-Export'!$C$8:$C$239,0))),\"\")","v":""},{"$f":"IFERROR(IF(INDEX('Disaggregation1B_Import-Export'!K$8:K$239,MATCH($B56,'Disaggregation1B_Import-Export'!$C$8:$C$239,0))=\"\",\"\",INDEX('Disaggregation1B_Import-Export'!K$8:K$239,MATCH($B56,'Disaggregation1B_Import-Export'!$C$8:$C$239,0))),\"\")","v":""},{"$f":"IFERROR(IF(INDEX('Disaggregation1B_Import-Export'!L$8:L$239,MATCH($B56,'Disaggregation1B_Import-Export'!$C$8:$C$239,0))=\"\",\"\",INDEX('Disaggregation1B_Import-Export'!L$8:L$239,MATCH($B56,'Disaggregation1B_Import-Export'!$C$8:$C$239,0))),\"\")","v":""},{"$f":"IFERROR(IF(INDEX('Disaggregation1B_Import-Export'!AQ$8:AQ$239,MATCH($B56,'Disaggregation1B_Import-Export'!$C$8:$C$239,0))=\"\",\"\",INDEX('Disaggregation1B_Import-Export'!AQ$8:AQ$239,MATCH($B56,'Disaggregation1B_Import-Export'!$C$8:$C$239,0))),\"\")","v":""},null,null,"",null,null,null,null,null,"",null,null,null,null,null,""]
[47,"Coverage47",{"$f":"IFERROR(INDEX('Disaggregation1B_Import-Export'!D$8:D$239,MATCH($B57,'Disaggregation1B_Import-Export'!$C$8:$C$239,0)),\"\")","v":""},{"$f":"IFERROR(INDEX('Disaggregation1B_Import-Export'!AF$8:AF$256,MATCH($B57,'Disaggregation1B_Import-Export'!$C$8:$C$256,0)),\"\")","v":""},{"$f":"IFERROR(IF(INDEX('Disaggregation1B_Import-Export'!AG$8:AG$239,MATCH($B57,'Disaggregation1B_Import-Export'!$C$8:$C$239,0))=\"\",\"\",INDEX('Disaggregation1B_Import-Export'!AG$8:AG$239,MATCH($B57,'Disaggregation1B_Import-Export'!$C$8:$C$239,0))),\"\")","v":""},{"$f":"IFERROR(IF(INDEX('Disaggregation1B_Import-Export'!AH$8:AH$239,MATCH($B57,'Disaggregation1B_Import-Export'!$C$8:$C$239,0))=\"\",\"\",INDEX('Disaggregation1B_Import-Export'!AH$8:AH$239,MATCH($B57,'Disaggregation1B_Import-Export'!$C$8:$C$239,0))),\"\")","v":""},{"$f":"IFERROR(IF(INDEX('Disaggregation1B_Import-Export'!H$8:H$239,MATCH($B57,'Disaggregation1B_Import-Export'!$C$8:$C$239,0))=\"\",\"\",INDEX('Disaggregation1B_Import-Export'!H$8:H$239,MATCH($B57,'Disaggregation1B_Import-Export'!$C$8:$C$239,0))),\"\")","v":""},{"$f":"IFERROR(IF(INDEX('Disaggregation1B_Import-Export'!I$8:I$239,MATCH($B57,'Disaggregation1B_Import-Export'!$C$8:$C$239,0))=\"\",\"\",INDEX('Disaggregation1B_Import-Export'!I$8:I$239,MATCH($B57,'Disaggregation1B_Import-Export'!$C$8:$C$239,0))),\"\")","v":""},{"$f":"IFERROR(IF(INDEX('Disaggregation1B_Import-Export'!J$8:J$239,MATCH($B57,'Disaggregation1B_Import-Export'!$C$8:$C$239,0))=\"\",\"\",INDEX('Disaggregation1B_Import-Export'!J$8:J$239,MATCH($B57,'Disaggregation1B_Import-Export'!$C$8:$C$239,0))),\"\")","v":""},{"$f":"IFERROR(IF(INDEX('Disaggregation1B_Import-Export'!K$8:K$239,MATCH($B57,'Disaggregation1B_Import-Export'!$C$8:$C$239,0))=\"\",\"\",INDEX('Disaggregation1B_Import-Export'!K$8:K$239,MATCH($B57,'Disaggregation1B_Import-Export'!$C$8:$C$239,0))),\"\")","v":""},{"$f":"IFERROR(IF(INDEX('Disaggregation1B_Import-Export'!L$8:L$239,MATCH($B57,'Disaggregation1B_Import-Export'!$C$8:$C$239,0))=\"\",\"\",INDEX('Disaggregation1B_Import-Export'!L$8:L$239,MATCH($B57,'Disaggregation1B_Import-Export'!$C$8:$C$239,0))),\"\")","v":""},{"$f":"IFERROR(IF(INDEX('Disaggregation1B_Import-Export'!AQ$8:AQ$239,MATCH($B57,'Disaggregation1B_Import-Export'!$C$8:$C$239,0))=\"\",\"\",INDEX('Disaggregation1B_Import-Export'!AQ$8:AQ$239,MATCH($B57,'Disaggregation1B_Import-Export'!$C$8:$C$239,0))),\"\")","v":""},null,null,"",null,null,null,null,null,"",null,null,null,null,null,""]
[48,"Coverage48",{"$f":"IFERROR(INDEX('Disaggregation1B_Import-Export'!D$8:D$239,MATCH($B58,'Disaggregation1B_Import-Export'!$C$8:$C$239,0)),\"\")","v":""},{"$f":"IFERROR(INDEX('Disaggregation1B_Import-Export'!AF$8:AF$256,MATCH($B58,'Disaggregation1B_Import-Export'!$C$8:$C$256,0)),\"\")","v":""},{"$f":"IFERROR(IF(INDEX('Disaggregation1B_Import-Export'!AG$8:AG$239,MATCH($B58,'Disaggregation1B_Import-Export'!$C$8:$C$239,0))=\"\",\"\",INDEX('Disaggregation1B_Import-Export'!AG$8:AG$239,MATCH($B58,'Disaggregation1B_Import-Export'!$C$8:$C$239,0))),\"\")","v":""},{"$f":"IFERROR(IF(INDEX('Disaggregation1B_Import-Export'!AH$8:AH$239,MATCH($B58,'Disaggregation1B_Import-Export'!$C$8:$C$239,0))=\"\",\"\",INDEX('Disaggregation1B_Import-Export'!AH$8:AH$239,MATCH($B58,'Disaggregation1B_Import-Export'!$C$8:$C$239,0))),\"\")","v":""},{"$f":"IFERROR(IF(INDEX('Disaggregation1B_Import-Export'!H$8:H$239,MATCH($B58,'Disaggregation1B_Import-Export'!$C$8:$C$239,0))=\"\",\"\",INDEX('Disaggregation1B_Import-Export'!H$8:H$239,MATCH($B58,'Disaggregation1B_Import-Export'!$C$8:$C$239,0))),\"\")","v":""},{"$f":"IFERROR(IF(INDEX('Disaggregation1B_Import-Export'!I$8:I$239,MATCH($B58,'Disaggregation1B_Import-Export'!$C$8:$C$239,0))=\"\",\"\",INDEX('Disaggregation1B_Import-Export'!I$8:I$239,MATCH($B58,'Disaggregation1B_Import-Export'!$C$8:$C$239,0))),\"\")","v":""},{"$f":"IFERROR(IF(INDEX('Disaggregation1B_Import-Export'!J$8:J$239,MATCH($B58,'Disaggregation1B_Import-Export'!$C$8:$C$239,0))=\"\",\"\",INDEX('Disaggregation1B_Import-Export'!J$8:J$239,MATCH($B58,'Disaggregation1B_Import-Export'!$C$8:$C$239,0))),\"\")","v":""},{"$f":"IFERROR(IF(INDEX('Disaggregation1B_Import-Export'!K$8:K$239,MATCH($B58,'Disaggregation1B_Import-Export'!$C$8:$C$239,0))=\"\",\"\",INDEX('Disaggregation1B_Import-Export'!K$8:K$239,MATCH($B58,'Disaggregation1B_Import-Export'!$C$8:$C$239,0))),\"\")","v":""},{"$f":"IFERROR(IF(INDEX('Disaggregation1B_Import-Export'!L$8:L$239,MATCH($B58,'Disaggregation1B_Import-Export'!$C$8:$C$239,0))=\"\",\"\",INDEX('Disaggregation1B_Import-Export'!L$8:L$239,MATCH($B58,'Disaggregation1B_Import-Export'!$C$8:$C$239,0))),\"\")","v":""},{"$f":"IFERROR(IF(INDEX('Disaggregation1B_Import-Export'!AQ$8:AQ$239,MATCH($B58,'Disaggregation1B_Import-Export'!$C$8:$C$239,0))=\"\",\"\",INDEX('Disaggregation1B_Import-Export'!AQ$8:AQ$239,MATCH($B58,'Disaggregation1B_Import-Export'!$C$8:$C$239,0))),\"\")","v":""},null,null,"",null,null,null,null,null,"",null,null,null,null,null,""]
[49,"Coverage49",{"$f":"IFERROR(INDEX('Disaggregation1B_Import-Export'!D$8:D$239,MATCH($B59,'Disaggregation1B_Import-Export'!$C$8:$C$239,0)),\"\")","v":""},{"$f":"IFERROR(INDEX('Disaggregation1B_Import-Export'!AF$8:AF$256,MATCH($B59,'Disaggregation1B_Import-Export'!$C$8:$C$256,0)),\"\")","v":""},{"$f":"IFERROR(IF(INDEX('Disaggregation1B_Import-Export'!AG$8:AG$239,MATCH($B59,'Disaggregation1B_Import-Export'!$C$8:$C$239,0))=\"\",\"\",INDEX('Disaggregation1B_Import-Export'!AG$8:AG$239,MATCH($B59,'Disaggregation1B_Import-Export'!$C$8:$C$239,0))),\"\")","v":""},{"$f":"IFERROR(IF(INDEX('Disaggregation1B_Import-Export'!AH$8:AH$239,MATCH($B59,'Disaggregation1B_Import-Export'!$C$8:$C$239,0))=\"\",\"\",INDEX('Disaggregation1B_Import-Export'!AH$8:AH$239,MATCH($B59,'Disaggregation1B_Import-Export'!$C$8:$C$239,0))),\"\")","v":""},{"$f":"IFERROR(IF(INDEX('Disaggregation1B_Import-Export'!H$8:H$239,MATCH($B59,'Disaggregation1B_Import-Export'!$C$8:$C$239,0))=\"\",\"\",INDEX('Disaggregation1B_Import-Export'!H$8:H$239,MATCH($B59,'Disaggregation1B_Import-Export'!$C$8:$C$239,0))),\"\")","v":""},{"$f":"IFERROR(IF(INDEX('Disaggregation1B_Import-Export'!I$8:I$239,MATCH($B59,'Disaggregation1B_Import-Export'!$C$8:$C$239,0))=\"\",\"\",INDEX('Disaggregation1B_Import-Export'!I$8:I$239,MATCH($B59,'Disaggregation1B_Import-Export'!$C$8:$C$239,0))),\"\")","v":""},{"$f":"IFERROR(IF(INDEX('Disaggregation1B_Import-Export'!J$8:J$239,MATCH($B59,'Disaggregation1B_Import-Export'!$C$8:$C$239,0))=\"\",\"\",INDEX('Disaggregation1B_Import-Export'!J$8:J$239,MATCH($B59,'Disaggregation1B_Import-Export'!$C$8:$C$239,0))),\"\")","v":""},{"$f":"IFERROR(IF(INDEX('Disaggregation1B_Import-Export'!K$8:K$239,MATCH($B59,'Disaggregation1B_Import-Export'!$C$8:$C$239,0))=\"\",\"\",INDEX('Disaggregation1B_Import-Export'!K$8:K$239,MATCH($B59,'Disaggregation1B_Import-Export'!$C$8:$C$239,0))),\"\")","v":""},{"$f":"IFERROR(IF(INDEX('Disaggregation1B_Import-Export'!L$8:L$239,MATCH($B59,'Disaggregation1B_Import-Export'!$C$8:$C$239,0))=\"\",\"\",INDEX('Disaggregation1B_Import-Export'!L$8:L$239,MATCH($B59,'Disaggregation1B_Import-Export'!$C$8:$C$239,0))),\"\")","v":""},{"$f":"IFERROR(IF(INDEX('Disaggregation1B_Import-Export'!AQ$8:AQ$239,MATCH($B59,'Disaggregation1B_Import-Export'!$C$8:$C$239,0))=\"\",\"\",INDEX('Disaggregation1B_Import-Export'!AQ$8:AQ$239,MATCH($B59,'Disaggregation1B_Import-Export'!$C$8:$C$239,0))),\"\")","v":""},null,null,"",null,null,null,null,null,"",null,null,null,null,null,""]
[50,"Coverage50",{"$f":"IFERROR(INDEX('Disaggregation1B_Import-Export'!D$8:D$239,MATCH($B60,'Disaggregation1B_Import-Export'!$C$8:$C$239,0)),\"\")","v":""},{"$f":"IFERROR(INDEX('Disaggregation1B_Import-Export'!AF$8:AF$256,MATCH($B60,'Disaggregation1B_Import-Export'!$C$8:$C$256,0)),\"\")","v":""},{"$f":"IFERROR(IF(INDEX('Disaggregation1B_Import-Export'!AG$8:AG$239,MATCH($B60,'Disaggregation1B_Import-Export'!$C$8:$C$239,0))=\"\",\"\",INDEX('Disaggregation1B_Import-Export'!AG$8:AG$239,MATCH($B60,'Disaggregation1B_Import-Export'!$C$8:$C$239,0))),\"\")","v":""},{"$f":"IFERROR(IF(INDEX('Disaggregation1B_Import-Export'!AH$8:AH$239,MATCH($B60,'Disaggregation1B_Import-Export'!$C$8:$C$239,0))=\"\",\"\",INDEX('Disaggregation1B_Import-Export'!AH$8:AH$239,MATCH($B60,'Disaggregation1B_Import-Export'!$C$8:$C$239,0))),\"\")","v":""},{"$f":"IFERROR(IF(INDEX('Disaggregation1B_Import-Export'!H$8:H$239,MATCH($B60,'Disaggregation1B_Import-Export'!$C$8:$C$239,0))=\"\",\"\",INDEX('Disaggregation1B_Import-Export'!H$8:H$239,MATCH($B60,'Disaggregation1B_Import-Export'!$C$8:$C$239,0))),\"\")","v":""},{"$f":"IFERROR(IF(INDEX('Disaggregation1B_Import-Export'!I$8:I$239,MATCH($B60,'Disaggregation1B_Import-Export'!$C$8:$C$239,0))=\"\",\"\",INDEX('Disaggregation1B_Import-Export'!I$8:I$239,MATCH($B60,'Disaggregation1B_Import-Export'!$C$8:$C$239,0))),\"\")","v":""},{"$f":"IFERROR(IF(INDEX('Disaggregation1B_Import-Export'!J$8:J$239,MATCH($B60,'Disaggregation1B_Import-Export'!$C$8:$C$239,0))=\"\",\"\",INDEX('Disaggregation1B_Import-Export'!J$8:J$239,MATCH($B60,'Disaggregation1B_Import-Export'!$C$8:$C$239,0))),\"\")","v":""},{"$f":"IFERROR(IF(INDEX('Disaggregation1B_Import-Export'!K$8:K$239,MATCH($B60,'Disaggregation1B_Import-Export'!$C$8:$C$239,0))=\"\",\"\",INDEX('Disaggregation1B_Import-Export'!K$8:K$239,MATCH($B60,'Disaggregation1B_Import-Export'!$C$8:$C$239,0))),\"\")","v":""},{"$f":"IFERROR(IF(INDEX('Disaggregation1B_Import-Export'!L$8:L$239,MATCH($B60,'Disaggregation1B_Import-Export'!$C$8:$C$239,0))=\"\",\"\",INDEX('Disaggregation1B_Import-Export'!L$8:L$239,MATCH($B60,'Disaggregation1B_Import-Export'!$C$8:$C$239,0))),\"\")","v":""},{"$f":"IFERROR(IF(INDEX('Disaggregation1B_Import-Export'!AQ$8:AQ$239,MATCH($B60,'Disaggregation1B_Import-Export'!$C$8:$C$239,0))=\"\",\"\",INDEX('Disaggregation1B_Import-Export'!AQ$8:AQ$239,MATCH($B60,'Disaggregation1B_Import-Export'!$C$8:$C$239,0))),\"\")","v":""},null,null,"",null,null,null,null,null,"",null,null,null,null,null,""]
[51,"Coverage51",{"$f":"IFERROR(INDEX('Disaggregation1B_Import-Export'!D$8:D$239,MATCH($B61,'Disaggregation1B_Import-Export'!$C$8:$C$239,0)),\"\")","v":""},{"$f":"IFERROR(INDEX('Disaggregation1B_Import-Export'!AF$8:AF$256,MATCH($B61,'Disaggregation1B_Import-Export'!$C$8:$C$256,0)),\"\")","v":""},{"$f":"IFERROR(IF(INDEX('Disaggregation1B_Import-Export'!AG$8:AG$239,MATCH($B61,'Disaggregation1B_Import-Export'!$C$8:$C$239,0))=\"\",\"\",INDEX('Disaggregation1B_Import-Export'!AG$8:AG$239,MATCH($B61,'Disaggregation1B_Import-Export'!$C$8:$C$239,0))),\"\")","v":""},{"$f":"IFERROR(IF(INDEX('Disaggregation1B_Import-Export'!AH$8:AH$239,MATCH($B61,'Disaggregation1B_Import-Export'!$C$8:$C$239,0))=\"\",\"\",INDEX('Disaggregation1B_Import-Export'!AH$8:AH$239,MATCH($B61,'Disaggregation1B_Import-Export'!$C$8:$C$239,0))),\"\")","v":""},{"$f":"IFERROR(IF(INDEX('Disaggregation1B_Import-Export'!H$8:H$239,MATCH($B61,'Disaggregation1B_Import-Export'!$C$8:$C$239,0))=\"\",\"\",INDEX('Disaggregation1B_Import-Export'!H$8:H$239,MATCH($B61,'Disaggregation1B_Import-Export'!$C$8:$C$239,0))),\"\")","v":""},{"$f":"IFERROR(IF(INDEX('Disaggregation1B_Import-Export'!I$8:I$239,MATCH($B61,'Disaggregation1B_Import-Export'!$C$8:$C$239,0))=\"\",\"\",INDEX('Disaggregation1B_Import-Export'!I$8:I$239,MATCH($B61,'Disaggregation1B_Import-Export'!$C$8:$C$239,0))),\"\")","v":""},{"$f":"IFERROR(IF(INDEX('Disaggregation1B_Import-Export'!J$8:J$239,MATCH($B61,'Disaggregation1B_Import-Export'!$C$8:$C$239,0))=\"\",\"\",INDEX('Disaggregation1B_Import-Export'!J$8:J$239,MATCH($B61,'Disaggregation1B_Import-Export'!$C$8:$C$239,0))),\"\")","v":""},{"$f":"IFERROR(IF(INDEX('Disaggregation1B_Import-Export'!K$8:K$239,MATCH($B61,'Disaggregation1B_Import-Export'!$C$8:$C$239,0))=\"\",\"\",INDEX('Disaggregation1B_Import-Export'!K$8:K$239,MATCH($B61,'Disaggregation1B_Import-Export'!$C$8:$C$239,0))),\"\")","v":""},{"$f":"IFERROR(IF(INDEX('Disaggregation1B_Import-Export'!L$8:L$239,MATCH($B61,'Disaggregation1B_Import-Export'!$C$8:$C$239,0))=\"\",\"\",INDEX('Disaggregation1B_Import-Export'!L$8:L$239,MATCH($B61,'Disaggregation1B_Import-Export'!$C$8:$C$239,0))),\"\")","v":""},{"$f":"IFERROR(IF(INDEX('Disaggregation1B_Import-Export'!AQ$8:AQ$239,MATCH($B61,'Disaggregation1B_Import-Export'!$C$8:$C$239,0))=\"\",\"\",INDEX('Disaggregation1B_Import-Export'!AQ$8:AQ$239,MATCH($B61,'Disaggregation1B_Import-Export'!$C$8:$C$239,0))),\"\")","v":""},null,null,"",null,null,null,null,null,"",null,null,null,null,null,""]
[52,"Coverage52",{"$f":"IFERROR(INDEX('Disaggregation1B_Import-Export'!D$8:D$239,MATCH($B62,'Disaggregation1B_Import-Export'!$C$8:$C$239,0)),\"\")","v":""},{"$f":"IFERROR(INDEX('Disaggregation1B_Import-Export'!AF$8:AF$256,MATCH($B62,'Disaggregation1B_Import-Export'!$C$8:$C$256,0)),\"\")","v":""},{"$f":"IFERROR(IF(INDEX('Disaggregation1B_Import-Export'!AG$8:AG$239,MATCH($B62,'Disaggregation1B_Import-Export'!$C$8:$C$239,0))=\"\",\"\",INDEX('Disaggregation1B_Import-Export'!AG$8:AG$239,MATCH($B62,'Disaggregation1B_Import-Export'!$C$8:$C$239,0))),\"\")","v":""},{"$f":"IFERROR(IF(INDEX('Disaggregation1B_Import-Export'!AH$8:AH$239,MATCH($B62,'Disaggregation1B_Import-Export'!$C$8:$C$239,0))=\"\",\"\",INDEX('Disaggregation1B_Import-Export'!AH$8:AH$239,MATCH($B62,'Disaggregation1B_Import-Export'!$C$8:$C$239,0))),\"\")","v":""},{"$f":"IFERROR(IF(INDEX('Disaggregation1B_Import-Export'!H$8:H$239,MATCH($B62,'Disaggregation1B_Import-Export'!$C$8:$C$239,0))=\"\",\"\",INDEX('Disaggregation1B_Import-Export'!H$8:H$239,MATCH($B62,'Disaggregation1B_Import-Export'!$C$8:$C$239,0))),\"\")","v":""},{"$f":"IFERROR(IF(INDEX('Disaggregation1B_Import-Export'!I$8:I$239,MATCH($B62,'Disaggregation1B_Import-Export'!$C$8:$C$239,0))=\"\",\"\",INDEX('Disaggregation1B_Import-Export'!I$8:I$239,MATCH($B62,'Disaggregation1B_Import-Export'!$C$8:$C$239,0))),\"\")","v":""},{"$f":"IFERROR(IF(INDEX('Disaggregation1B_Import-Export'!J$8:J$239,MATCH($B62,'Disaggregation1B_Import-Export'!$C$8:$C$239,0))=\"\",\"\",INDEX('Disaggregation1B_Import-Export'!J$8:J$239,MATCH($B62,'Disaggregation1B_Import-Export'!$C$8:$C$239,0))),\"\")","v":""},{"$f":"IFERROR(IF(INDEX('Disaggregation1B_Import-Export'!K$8:K$239,MATCH($B62,'Disaggregation1B_Import-Export'!$C$8:$C$239,0))=\"\",\"\",INDEX('Disaggregation1B_Import-Export'!K$8:K$239,MATCH($B62,'Disaggregation1B_Import-Export'!$C$8:$C$239,0))),\"\")","v":""},{"$f":"IFERROR(IF(INDEX('Disaggregation1B_Import-Export'!L$8:L$239,MATCH($B62,'Disaggregation1B_Import-Export'!$C$8:$C$239,0))=\"\",\"\",INDEX('Disaggregation1B_Import-Export'!L$8:L$239,MATCH($B62,'Disaggregation1B_Import-Export'!$C$8:$C$239,0))),\"\")","v":""},{"$f":"IFERROR(IF(INDEX('Disaggregation1B_Import-Export'!AQ$8:AQ$239,MATCH($B62,'Disaggregation1B_Import-Export'!$C$8:$C$239,0))=\"\",\"\",INDEX('Disaggregation1B_Import-Export'!AQ$8:AQ$239,MATCH($B62,'Disaggregation1B_Import-Export'!$C$8:$C$239,0))),\"\")","v":""},null,null,"",null,null,null,null,null,"",null,null,null,null,null,""]
[53,"Coverage53",{"$f":"IFERROR(INDEX('Disaggregation1B_Import-Export'!D$8:D$239,MATCH($B63,'Disaggregation1B_Import-Export'!$C$8:$C$239,0)),\"\")","v":""},{"$f":"IFERROR(INDEX('Disaggregation1B_Import-Export'!AF$8:AF$256,MATCH($B63,'Disaggregation1B_Import-Export'!$C$8:$C$256,0)),\"\")","v":""},{"$f":"IFERROR(IF(INDEX('Disaggregation1B_Import-Export'!AG$8:AG$239,MATCH($B63,'Disaggregation1B_Import-Export'!$C$8:$C$239,0))=\"\",\"\",INDEX('Disaggregation1B_Import-Export'!AG$8:AG$239,MATCH($B63,'Disaggregation1B_Import-Export'!$C$8:$C$239,0))),\"\")","v":""},{"$f":"IFERROR(IF(INDEX('Disaggregation1B_Import-Export'!AH$8:AH$239,MATCH($B63,'Disaggregation1B_Import-Export'!$C$8:$C$239,0))=\"\",\"\",INDEX('Disaggregation1B_Import-Export'!AH$8:AH$239,MATCH($B63,'Disaggregation1B_Import-Export'!$C$8:$C$239,0))),\"\")","v":""},{"$f":"IFERROR(IF(INDEX('Disaggregation1B_Import-Export'!H$8:H$239,MATCH($B63,'Disaggregation1B_Import-Export'!$C$8:$C$239,0))=\"\",\"\",INDEX('Disaggregation1B_Import-Export'!H$8:H$239,MATCH($B63,'Disaggregation1B_Import-Export'!$C$8:$C$239,0))),\"\")","v":""},{"$f":"IFERROR(IF(INDEX('Disaggregation1B_Import-Export'!I$8:I$239,MATCH($B63,'Disaggregation1B_Import-Export'!$C$8:$C$239,0))=\"\",\"\",INDEX('Disaggregation1B_Import-Export'!I$8:I$239,MATCH($B63,'Disaggregation1B_Import-Export'!$C$8:$C$239,0))),\"\")","v":""},{"$f":"IFERROR(IF(INDEX('Disaggregation1B_Import-Export'!J$8:J$239,MATCH($B63,'Disaggregation1B_Import-Export'!$C$8:$C$239,0))=\"\",\"\",INDEX('Disaggregation1B_Import-Export'!J$8:J$239,MATCH($B63,'Disaggregation1B_Import-Export'!$C$8:$C$239,0))),\"\")","v":""},{"$f":"IFERROR(IF(INDEX('Disaggregation1B_Import-Export'!K$8:K$239,MATCH($B63,'Disaggregation1B_Import-Export'!$C$8:$C$239,0))=\"\",\"\",INDEX('Disaggregation1B_Import-Export'!K$8:K$239,MATCH($B63,'Disaggregation1B_Import-Export'!$C$8:$C$239,0))),\"\")","v":""},{"$f":"IFERROR(IF(INDEX('Disaggregation1B_Import-Export'!L$8:L$239,MATCH($B63,'Disaggregation1B_Import-Export'!$C$8:$C$239,0))=\"\",\"\",INDEX('Disaggregation1B_Import-Export'!L$8:L$239,MATCH($B63,'Disaggregation1B_Import-Export'!$C$8:$C$239,0))),\"\")","v":""},{"$f":"IFERROR(IF(INDEX('Disaggregation1B_Import-Export'!AQ$8:AQ$239,MATCH($B63,'Disaggregation1B_Import-Export'!$C$8:$C$239,0))=\"\",\"\",INDEX('Disaggregation1B_Import-Export'!AQ$8:AQ$239,MATCH($B63,'Disaggregation1B_Import-Export'!$C$8:$C$239,0))),\"\")","v":""},null,null,"",null,null,null,null,null,"",null,null,null,null,null,""]
[54,"Coverage54",{"$f":"IFERROR(INDEX('Disaggregation1B_Import-Export'!D$8:D$239,MATCH($B64,'Disaggregation1B_Import-Export'!$C$8:$C$239,0)),\"\")","v":""},{"$f":"IFERROR(INDEX('Disaggregation1B_Import-Export'!AF$8:AF$256,MATCH($B64,'Disaggregation1B_Import-Export'!$C$8:$C$256,0)),\"\")","v":""},{"$f":"IFERROR(IF(INDEX('Disaggregation1B_Import-Export'!AG$8:AG$239,MATCH($B64,'Disaggregation1B_Import-Export'!$C$8:$C$239,0))=\"\",\"\",INDEX('Disaggregation1B_Import-Export'!AG$8:AG$239,MATCH($B64,'Disaggregation1B_Import-Export'!$C$8:$C$239,0))),\"\")","v":""},{"$f":"IFERROR(IF(INDEX('Disaggregation1B_Import-Export'!AH$8:AH$239,MATCH($B64,'Disaggregation1B_Import-Export'!$C$8:$C$239,0))=\"\",\"\",INDEX('Disaggregation1B_Import-Export'!AH$8:AH$239,MATCH($B64,'Disaggregation1B_Import-Export'!$C$8:$C$239,0))),\"\")","v":""},{"$f":"IFERROR(IF(INDEX('Disaggregation1B_Import-Export'!H$8:H$239,MATCH($B64,'Disaggregation1B_Import-Export'!$C$8:$C$239,0))=\"\",\"\",INDEX('Disaggregation1B_Import-Export'!H$8:H$239,MATCH($B64,'Disaggregation1B_Import-Export'!$C$8:$C$239,0))),\"\")","v":""},{"$f":"IFERROR(IF(INDEX('Disaggregation1B_Import-Export'!I$8:I$239,MATCH($B64,'Disaggregation1B_Import-Export'!$C$8:$C$239,0))=\"\",\"\",INDEX('Disaggregation1B_Import-Export'!I$8:I$239,MATCH($B64,'Disaggregation1B_Import-Export'!$C$8:$C$239,0))),\"\")","v":""},{"$f":"IFERROR(IF(INDEX('Disaggregation1B_Import-Export'!J$8:J$239,MATCH($B64,'Disaggregation1B_Import-Export'!$C$8:$C$239,0))=\"\",\"\",INDEX('Disaggregation1B_Import-Export'!J$8:J$239,MATCH($B64,'Disaggregation1B_Import-Export'!$C$8:$C$239,0))),\"\")","v":""},{"$f":"IFERROR(IF(INDEX('Disaggregation1B_Import-Export'!K$8:K$239,MATCH($B64,'Disaggregation1B_Import-Export'!$C$8:$C$239,0))=\"\",\"\",INDEX('Disaggregation1B_Import-Export'!K$8:K$239,MATCH($B64,'Disaggregation1B_Import-Export'!$C$8:$C$239,0))),\"\")","v":""},{"$f":"IFERROR(IF(INDEX('Disaggregation1B_Import-Export'!L$8:L$239,MATCH($B64,'Disaggregation1B_Import-Export'!$C$8:$C$239,0))=\"\",\"\",INDEX('Disaggregation1B_Import-Export'!L$8:L$239,MATCH($B64,'Disaggregation1B_Import-Export'!$C$8:$C$239,0))),\"\")","v":""},{"$f":"IFERROR(IF(INDEX('Disaggregation1B_Import-Export'!AQ$8:AQ$239,MATCH($B64,'Disaggregation1B_Import-Export'!$C$8:$C$239,0))=\"\",\"\",INDEX('Disaggregation1B_Import-Export'!AQ$8:AQ$239,MATCH($B64,'Disaggregation1B_Import-Export'!$C$8:$C$239,0))),\"\")","v":""},null,null,"",null,null,null,null,null,"",null,null,null,null,null,""]
[55,"Coverage55",{"$f":"IFERROR(INDEX('Disaggregation1B_Import-Export'!D$8:D$239,MATCH($B65,'Disaggregation1B_Import-Export'!$C$8:$C$239,0)),\"\")","v":""},{"$f":"IFERROR(INDEX('Disaggregation1B_Import-Export'!AF$8:AF$256,MATCH($B65,'Disaggregation1B_Import-Export'!$C$8:$C$256,0)),\"\")","v":""},{"$f":"IFERROR(IF(INDEX('Disaggregation1B_Import-Export'!AG$8:AG$239,MATCH($B65,'Disaggregation1B_Import-Export'!$C$8:$C$239,0))=\"\",\"\",INDEX('Disaggregation1B_Import-Export'!AG$8:AG$239,MATCH($B65,'Disaggregation1B_Import-Export'!$C$8:$C$239,0))),\"\")","v":""},{"$f":"IFERROR(IF(INDEX('Disaggregation1B_Import-Export'!AH$8:AH$239,MATCH($B65,'Disaggregation1B_Import-Export'!$C$8:$C$239,0))=\"\",\"\",INDEX('Disaggregation1B_Import-Export'!AH$8:AH$239,MATCH($B65,'Disaggregation1B_Import-Export'!$C$8:$C$239,0))),\"\")","v":""},{"$f":"IFERROR(IF(INDEX('Disaggregation1B_Import-Export'!H$8:H$239,MATCH($B65,'Disaggregation1B_Import-Export'!$C$8:$C$239,0))=\"\",\"\",INDEX('Disaggregation1B_Import-Export'!H$8:H$239,MATCH($B65,'Disaggregation1B_Import-Export'!$C$8:$C$239,0))),\"\")","v":""},{"$f":"IFERROR(IF(INDEX('Disaggregation1B_Import-Export'!I$8:I$239,MATCH($B65,'Disaggregation1B_Import-Export'!$C$8:$C$239,0))=\"\",\"\",INDEX('Disaggregation1B_Import-Export'!I$8:I$239,MATCH($B65,'Disaggregation1B_Import-Export'!$C$8:$C$239,0))),\"\")","v":""},{"$f":"IFERROR(IF(INDEX('Disaggregation1B_Import-Export'!J$8:J$239,MATCH($B65,'Disaggregation1B_Import-Export'!$C$8:$C$239,0))=\"\",\"\",INDEX('Disaggregation1B_Import-Export'!J$8:J$239,MATCH($B65,'Disaggregation1B_Import-Export'!$C$8:$C$239,0))),\"\")","v":""},{"$f":"IFERROR(IF(INDEX('Disaggregation1B_Import-Export'!K$8:K$239,MATCH($B65,'Disaggregation1B_Import-Export'!$C$8:$C$239,0))=\"\",\"\",INDEX('Disaggregation1B_Import-Export'!K$8:K$239,MATCH($B65,'Disaggregation1B_Import-Export'!$C$8:$C$239,0))),\"\")","v":""},{"$f":"IFERROR(IF(INDEX('Disaggregation1B_Import-Export'!L$8:L$239,MATCH($B65,'Disaggregation1B_Import-Export'!$C$8:$C$239,0))=\"\",\"\",INDEX('Disaggregation1B_Import-Export'!L$8:L$239,MATCH($B65,'Disaggregation1B_Import-Export'!$C$8:$C$239,0))),\"\")","v":""},{"$f":"IFERROR(IF(INDEX('Disaggregation1B_Import-Export'!AQ$8:AQ$239,MATCH($B65,'Disaggregation1B_Import-Export'!$C$8:$C$239,0))=\"\",\"\",INDEX('Disaggregation1B_Import-Export'!AQ$8:AQ$239,MATCH($B65,'Disaggregation1B_Import-Export'!$C$8:$C$239,0))),\"\")","v":""},null,null,"",null,null,null,null,null,"",null,null,null,null,null,""]
[56,"Coverage56",{"$f":"IFERROR(INDEX('Disaggregation1B_Import-Export'!D$8:D$239,MATCH($B66,'Disaggregation1B_Import-Export'!$C$8:$C$239,0)),\"\")","v":""},{"$f":"IFERROR(INDEX('Disaggregation1B_Import-Export'!AF$8:AF$256,MATCH($B66,'Disaggregation1B_Import-Export'!$C$8:$C$256,0)),\"\")","v":""},{"$f":"IFERROR(IF(INDEX('Disaggregation1B_Import-Export'!AG$8:AG$239,MATCH($B66,'Disaggregation1B_Import-Export'!$C$8:$C$239,0))=\"\",\"\",INDEX('Disaggregation1B_Import-Export'!AG$8:AG$239,MATCH($B66,'Disaggregation1B_Import-Export'!$C$8:$C$239,0))),\"\")","v":""},{"$f":"IFERROR(IF(INDEX('Disaggregation1B_Import-Export'!AH$8:AH$239,MATCH($B66,'Disaggregation1B_Import-Export'!$C$8:$C$239,0))=\"\",\"\",INDEX('Disaggregation1B_Import-Export'!AH$8:AH$239,MATCH($B66,'Disaggregation1B_Import-Export'!$C$8:$C$239,0))),\"\")","v":""},{"$f":"IFERROR(IF(INDEX('Disaggregation1B_Import-Export'!H$8:H$239,MATCH($B66,'Disaggregation1B_Import-Export'!$C$8:$C$239,0))=\"\",\"\",INDEX('Disaggregation1B_Import-Export'!H$8:H$239,MATCH($B66,'Disaggregation1B_Import-Export'!$C$8:$C$239,0))),\"\")","v":""},{"$f":"IFERROR(IF(INDEX('Disaggregation1B_Import-Export'!I$8:I$239,MATCH($B66,'Disaggregation1B_Import-Export'!$C$8:$C$239,0))=\"\",\"\",INDEX('Disaggregation1B_Import-Export'!I$8:I$239,MATCH($B66,'Disaggregation1B_Import-Export'!$C$8:$C$239,0))),\"\")","v":""},{"$f":"IFERROR(IF(INDEX('Disaggregation1B_Import-Export'!J$8:J$239,MATCH($B66,'Disaggregation1B_Import-Export'!$C$8:$C$239,0))=\"\",\"\",INDEX('Disaggregation1B_Import-Export'!J$8:J$239,MATCH($B66,'Disaggregation1B_Import-Export'!$C$8:$C$239,0))),\"\")","v":""},{"$f":"IFERROR(IF(INDEX('Disaggregation1B_Import-Export'!K$8:K$239,MATCH($B66,'Disaggregation1B_Import-Export'!$C$8:$C$239,0))=\"\",\"\",INDEX('Disaggregation1B_Import-Export'!K$8:K$239,MATCH($B66,'Disaggregation1B_Import-Export'!$C$8:$C$239,0))),\"\")","v":""},{"$f":"IFERROR(IF(INDEX('Disaggregation1B_Import-Export'!L$8:L$239,MATCH($B66,'Disaggregation1B_Import-Export'!$C$8:$C$239,0))=\"\",\"\",INDEX('Disaggregation1B_Import-Export'!L$8:L$239,MATCH($B66,'Disaggregation1B_Import-Export'!$C$8:$C$239,0))),\"\")","v":""},{"$f":"IFERROR(IF(INDEX('Disaggregation1B_Import-Export'!AQ$8:AQ$239,MATCH($B66,'Disaggregation1B_Import-Export'!$C$8:$C$239,0))=\"\",\"\",INDEX('Disaggregation1B_Import-Export'!AQ$8:AQ$239,MATCH($B66,'Disaggregation1B_Import-Export'!$C$8:$C$239,0))),\"\")","v":""},null,null,"",null,null,null,null,null,"",null,null,null,null,null,""]
[57,"Coverage57",{"$f":"IFERROR(INDEX('Disaggregation1B_Import-Export'!D$8:D$239,MATCH($B67,'Disaggregation1B_Import-Export'!$C$8:$C$239,0)),\"\")","v":""},{"$f":"IFERROR(INDEX('Disaggregation1B_Import-Export'!AF$8:AF$256,MATCH($B67,'Disaggregation1B_Import-Export'!$C$8:$C$256,0)),\"\")","v":""},{"$f":"IFERROR(IF(INDEX('Disaggregation1B_Import-Export'!AG$8:AG$239,MATCH($B67,'Disaggregation1B_Import-Export'!$C$8:$C$239,0))=\"\",\"\",INDEX('Disaggregation1B_Import-Export'!AG$8:AG$239,MATCH($B67,'Disaggregation1B_Import-Export'!$C$8:$C$239,0))),\"\")","v":""},{"$f":"IFERROR(IF(INDEX('Disaggregation1B_Import-Export'!AH$8:AH$239,MATCH($B67,'Disaggregation1B_Import-Export'!$C$8:$C$239,0))=\"\",\"\",INDEX('Disaggregation1B_Import-Export'!AH$8:AH$239,MATCH($B67,'Disaggregation1B_Import-Export'!$C$8:$C$239,0))),\"\")","v":""},{"$f":"IFERROR(IF(INDEX('Disaggregation1B_Import-Export'!H$8:H$239,MATCH($B67,'Disaggregation1B_Import-Export'!$C$8:$C$239,0))=\"\",\"\",INDEX('Disaggregation1B_Import-Export'!H$8:H$239,MATCH($B67,'Disaggregation1B_Import-Export'!$C$8:$C$239,0))),\"\")","v":""},{"$f":"IFERROR(IF(INDEX('Disaggregation1B_Import-Export'!I$8:I$239,MATCH($B67,'Disaggregation1B_Import-Export'!$C$8:$C$239,0))=\"\",\"\",INDEX('Disaggregation1B_Import-Export'!I$8:I$239,MATCH($B67,'Disaggregation1B_Import-Export'!$C$8:$C$239,0))),\"\")","v":""},{"$f":"IFERROR(IF(INDEX('Disaggregation1B_Import-Export'!J$8:J$239,MATCH($B67,'Disaggregation1B_Import-Export'!$C$8:$C$239,0))=\"\",\"\",INDEX('Disaggregation1B_Import-Export'!J$8:J$239,MATCH($B67,'Disaggregation1B_Import-Export'!$C$8:$C$239,0))),\"\")","v":""},{"$f":"IFERROR(IF(INDEX('Disaggregation1B_Import-Export'!K$8:K$239,MATCH($B67,'Disaggregation1B_Import-Export'!$C$8:$C$239,0))=\"\",\"\",INDEX('Disaggregation1B_Import-Export'!K$8:K$239,MATCH($B67,'Disaggregation1B_Import-Export'!$C$8:$C$239,0))),\"\")","v":""},{"$f":"IFERROR(IF(INDEX('Disaggregation1B_Import-Export'!L$8:L$239,MATCH($B67,'Disaggregation1B_Import-Export'!$C$8:$C$239,0))=\"\",\"\",INDEX('Disaggregation1B_Import-Export'!L$8:L$239,MATCH($B67,'Disaggregation1B_Import-Export'!$C$8:$C$239,0))),\"\")","v":""},{"$f":"IFERROR(IF(INDEX('Disaggregation1B_Import-Export'!AQ$8:AQ$239,MATCH($B67,'Disaggregation1B_Import-Export'!$C$8:$C$239,0))=\"\",\"\",INDEX('Disaggregation1B_Import-Export'!AQ$8:AQ$239,MATCH($B67,'Disaggregation1B_Import-Export'!$C$8:$C$239,0))),\"\")","v":""},null,null,"",null,null,null,null,null,"",null,null,null,null,null,""]
[58,"Coverage58",{"$f":"IFERROR(INDEX('Disaggregation1B_Import-Export'!D$8:D$239,MATCH($B68,'Disaggregation1B_Import-Export'!$C$8:$C$239,0)),\"\")","v":""},{"$f":"IFERROR(INDEX('Disaggregation1B_Import-Export'!AF$8:AF$256,MATCH($B68,'Disaggregation1B_Import-Export'!$C$8:$C$256,0)),\"\")","v":""},{"$f":"IFERROR(IF(INDEX('Disaggregation1B_Import-Export'!AG$8:AG$239,MATCH($B68,'Disaggregation1B_Import-Export'!$C$8:$C$239,0))=\"\",\"\",INDEX('Disaggregation1B_Import-Export'!AG$8:AG$239,MATCH($B68,'Disaggregation1B_Import-Export'!$C$8:$C$239,0))),\"\")","v":""},{"$f":"IFERROR(IF(INDEX('Disaggregation1B_Import-Export'!AH$8:AH$239,MATCH($B68,'Disaggregation1B_Import-Export'!$C$8:$C$239,0))=\"\",\"\",INDEX('Disaggregation1B_Import-Export'!AH$8:AH$239,MATCH($B68,'Disaggregation1B_Import-Export'!$C$8:$C$239,0))),\"\")","v":""},{"$f":"IFERROR(IF(INDEX('Disaggregation1B_Import-Export'!H$8:H$239,MATCH($B68,'Disaggregation1B_Import-Export'!$C$8:$C$239,0))=\"\",\"\",INDEX('Disaggregation1B_Import-Export'!H$8:H$239,MATCH($B68,'Disaggregation1B_Import-Export'!$C$8:$C$239,0))),\"\")","v":""},{"$f":"IFERROR(IF(INDEX('Disaggregation1B_Import-Export'!I$8:I$239,MATCH($B68,'Disaggregation1B_Import-Export'!$C$8:$C$239,0))=\"\",\"\",INDEX('Disaggregation1B_Import-Export'!I$8:I$239,MATCH($B68,'Disaggregation1B_Import-Export'!$C$8:$C$239,0))),\"\")","v":""},{"$f":"IFERROR(IF(INDEX('Disaggregation1B_Import-Export'!J$8:J$239,MATCH($B68,'Disaggregation1B_Import-Export'!$C$8:$C$239,0))=\"\",\"\",INDEX('Disaggregation1B_Import-Export'!J$8:J$239,MATCH($B68,'Disaggregation1B_Import-Export'!$C$8:$C$239,0))),\"\")","v":""},{"$f":"IFERROR(IF(INDEX('Disaggregation1B_Import-Export'!K$8:K$239,MATCH($B68,'Disaggregation1B_Import-Export'!$C$8:$C$239,0))=\"\",\"\",INDEX('Disaggregation1B_Import-Export'!K$8:K$239,MATCH($B68,'Disaggregation1B_Import-Export'!$C$8:$C$239,0))),\"\")","v":""},{"$f":"IFERROR(IF(INDEX('Disaggregation1B_Import-Export'!L$8:L$239,MATCH($B68,'Disaggregation1B_Import-Export'!$C$8:$C$239,0))=\"\",\"\",INDEX('Disaggregation1B_Import-Export'!L$8:L$239,MATCH($B68,'Disaggregation1B_Import-Export'!$C$8:$C$239,0))),\"\")","v":""},{"$f":"IFERROR(IF(INDEX('Disaggregation1B_Import-Export'!AQ$8:AQ$239,MATCH($B68,'Disaggregation1B_Import-Export'!$C$8:$C$239,0))=\"\",\"\",INDEX('Disaggregation1B_Import-Export'!AQ$8:AQ$239,MATCH($B68,'Disaggregation1B_Import-Export'!$C$8:$C$239,0))),\"\")","v":""},null,null,"",null,null,null,null,null,"",null,null,null,null,null,""]
[59,"Coverage59",{"$f":"IFERROR(INDEX('Disaggregation1B_Import-Export'!D$8:D$239,MATCH($B69,'Disaggregation1B_Import-Export'!$C$8:$C$239,0)),\"\")","v":""},{"$f":"IFERROR(INDEX('Disaggregation1B_Import-Export'!AF$8:AF$256,MATCH($B69,'Disaggregation1B_Import-Export'!$C$8:$C$256,0)),\"\")","v":""},{"$f":"IFERROR(IF(INDEX('Disaggregation1B_Import-Export'!AG$8:AG$239,MATCH($B69,'Disaggregation1B_Import-Export'!$C$8:$C$239,0))=\"\",\"\",INDEX('Disaggregation1B_Import-Export'!AG$8:AG$239,MATCH($B69,'Disaggregation1B_Import-Export'!$C$8:$C$239,0))),\"\")","v":""},{"$f":"IFERROR(IF(INDEX('Disaggregation1B_Import-Export'!AH$8:AH$239,MATCH($B69,'Disaggregation1B_Import-Export'!$C$8:$C$239,0))=\"\",\"\",INDEX('Disaggregation1B_Import-Export'!AH$8:AH$239,MATCH($B69,'Disaggregation1B_Import-Export'!$C$8:$C$239,0))),\"\")","v":""},{"$f":"IFERROR(IF(INDEX('Disaggregation1B_Import-Export'!H$8:H$239,MATCH($B69,'Disaggregation1B_Import-Export'!$C$8:$C$239,0))=\"\",\"\",INDEX('Disaggregation1B_Import-Export'!H$8:H$239,MATCH($B69,'Disaggregation1B_Import-Export'!$C$8:$C$239,0))),\"\")","v":""},{"$f":"IFERROR(IF(INDEX('Disaggregation1B_Import-Export'!I$8:I$239,MATCH($B69,'Disaggregation1B_Import-Export'!$C$8:$C$239,0))=\"\",\"\",INDEX('Disaggregation1B_Import-Export'!I$8:I$239,MATCH($B69,'Disaggregation1B_Import-Export'!$C$8:$C$239,0))),\"\")","v":""},{"$f":"IFERROR(IF(INDEX('Disaggregation1B_Import-Export'!J$8:J$239,MATCH($B69,'Disaggregation1B_Import-Export'!$C$8:$C$239,0))=\"\",\"\",INDEX('Disaggregation1B_Import-Export'!J$8:J$239,MATCH($B69,'Disaggregation1B_Import-Export'!$C$8:$C$239,0))),\"\")","v":""},{"$f":"IFERROR(IF(INDEX('Disaggregation1B_Import-Export'!K$8:K$239,MATCH($B69,'Disaggregation1B_Import-Export'!$C$8:$C$239,0))=\"\",\"\",INDEX('Disaggregation1B_Import-Export'!K$8:K$239,MATCH($B69,'Disaggregation1B_Import-Export'!$C$8:$C$239,0))),\"\")","v":""},{"$f":"IFERROR(IF(INDEX('Disaggregation1B_Import-Export'!L$8:L$239,MATCH($B69,'Disaggregation1B_Import-Export'!$C$8:$C$239,0))=\"\",\"\",INDEX('Disaggregation1B_Import-Export'!L$8:L$239,MATCH($B69,'Disaggregation1B_Import-Export'!$C$8:$C$239,0))),\"\")","v":""},{"$f":"IFERROR(IF(INDEX('Disaggregation1B_Import-Export'!AQ$8:AQ$239,MATCH($B69,'Disaggregation1B_Import-Export'!$C$8:$C$239,0))=\"\",\"\",INDEX('Disaggregation1B_Import-Export'!AQ$8:AQ$239,MATCH($B69,'Disaggregation1B_Import-Export'!$C$8:$C$239,0))),\"\")","v":""},null,null,"",null,null,null,null,null,"",null,null,null,null,null,""]
[60,"Coverage60",{"$f":"IFERROR(INDEX('Disaggregation1B_Import-Export'!D$8:D$239,MATCH($B70,'Disaggregation1B_Import-Export'!$C$8:$C$239,0)),\"\")","v":""},{"$f":"IFERROR(INDEX('Disaggregation1B_Import-Export'!AF$8:AF$256,MATCH($B70,'Disaggregation1B_Import-Export'!$C$8:$C$256,0)),\"\")","v":""},{"$f":"IFERROR(IF(INDEX('Disaggregation1B_Import-Export'!AG$8:AG$239,MATCH($B70,'Disaggregation1B_Import-Export'!$C$8:$C$239,0))=\"\",\"\",INDEX('Disaggregation1B_Import-Export'!AG$8:AG$239,MATCH($B70,'Disaggregation1B_Import-Export'!$C$8:$C$239,0))),\"\")","v":""},{"$f":"IFERROR(IF(INDEX('Disaggregation1B_Import-Export'!AH$8:AH$239,MATCH($B70,'Disaggregation1B_Import-Export'!$C$8:$C$239,0))=\"\",\"\",INDEX('Disaggregation1B_Import-Export'!AH$8:AH$239,MATCH($B70,'Disaggregation1B_Import-Export'!$C$8:$C$239,0))),\"\")","v":""},{"$f":"IFERROR(IF(INDEX('Disaggregation1B_Import-Export'!H$8:H$239,MATCH($B70,'Disaggregation1B_Import-Export'!$C$8:$C$239,0))=\"\",\"\",INDEX('Disaggregation1B_Import-Export'!H$8:H$239,MATCH($B70,'Disaggregation1B_Import-Export'!$C$8:$C$239,0))),\"\")","v":""},{"$f":"IFERROR(IF(INDEX('Disaggregation1B_Import-Export'!I$8:I$239,MATCH($B70,'Disaggregation1B_Import-Export'!$C$8:$C$239,0))=\"\",\"\",INDEX('Disaggregation1B_Import-Export'!I$8:I$239,MATCH($B70,'Disaggregation1B_Import-Export'!$C$8:$C$239,0))),\"\")","v":""},{"$f":"IFERROR(IF(INDEX('Disaggregation1B_Import-Export'!J$8:J$239,MATCH($B70,'Disaggregation1B_Import-Export'!$C$8:$C$239,0))=\"\",\"\",INDEX('Disaggregation1B_Import-Export'!J$8:J$239,MATCH($B70,'Disaggregation1B_Import-Export'!$C$8:$C$239,0))),\"\")","v":""},{"$f":"IFERROR(IF(INDEX('Disaggregation1B_Import-Export'!K$8:K$239,MATCH($B70,'Disaggregation1B_Import-Export'!$C$8:$C$239,0))=\"\",\"\",INDEX('Disaggregation1B_Import-Export'!K$8:K$239,MATCH($B70,'Disaggregation1B_Import-Export'!$C$8:$C$239,0))),\"\")","v":""},{"$f":"IFERROR(IF(INDEX('Disaggregation1B_Import-Export'!L$8:L$239,MATCH($B70,'Disaggregation1B_Import-Export'!$C$8:$C$239,0))=\"\",\"\",INDEX('Disaggregation1B_Import-Export'!L$8:L$239,MATCH($B70,'Disaggregation1B_Import-Export'!$C$8:$C$239,0))),\"\")","v":""},{"$f":"IFERROR(IF(INDEX('Disaggregation1B_Import-Export'!AQ$8:AQ$239,MATCH($B70,'Disaggregation1B_Import-Export'!$C$8:$C$239,0))=\"\",\"\",INDEX('Disaggregation1B_Import-Export'!AQ$8:AQ$239,MATCH($B70,'Disaggregation1B_Import-Export'!$C$8:$C$239,0))),\"\")","v":""},null,null,"",null,null,null,null,null,"",null,null,null,null,null,""]
[61,"Coverage61",{"$f":"IFERROR(INDEX('Disaggregation1B_Import-Export'!D$8:D$239,MATCH($B71,'Disaggregation1B_Import-Export'!$C$8:$C$239,0)),\"\")","v":""},{"$f":"IFERROR(INDEX('Disaggregation1B_Import-Export'!AF$8:AF$256,MATCH($B71,'Disaggregation1B_Import-Export'!$C$8:$C$256,0)),\"\")","v":""},{"$f":"IFERROR(IF(INDEX('Disaggregation1B_Import-Export'!AG$8:AG$239,MATCH($B71,'Disaggregation1B_Import-Export'!$C$8:$C$239,0))=\"\",\"\",INDEX('Disaggregation1B_Import-Export'!AG$8:AG$239,MATCH($B71,'Disaggregation1B_Import-Export'!$C$8:$C$239,0))),\"\")","v":""},{"$f":"IFERROR(IF(INDEX('Disaggregation1B_Import-Export'!AH$8:AH$239,MATCH($B71,'Disaggregation1B_Import-Export'!$C$8:$C$239,0))=\"\",\"\",INDEX('Disaggregation1B_Import-Export'!AH$8:AH$239,MATCH($B71,'Disaggregation1B_Import-Export'!$C$8:$C$239,0))),\"\")","v":""},{"$f":"IFERROR(IF(INDEX('Disaggregation1B_Import-Export'!H$8:H$239,MATCH($B71,'Disaggregation1B_Import-Export'!$C$8:$C$239,0))=\"\",\"\",INDEX('Disaggregation1B_Import-Export'!H$8:H$239,MATCH($B71,'Disaggregation1B_Import-Export'!$C$8:$C$239,0))),\"\")","v":""},{"$f":"IFERROR(IF(INDEX('Disaggregation1B_Import-Export'!I$8:I$239,MATCH($B71,'Disaggregation1B_Import-Export'!$C$8:$C$239,0))=\"\",\"\",INDEX('Disaggregation1B_Import-Export'!I$8:I$239,MATCH($B71,'Disaggregation1B_Import-Export'!$C$8:$C$239,0))),\"\")","v":""},{"$f":"IFERROR(IF(INDEX('Disaggregation1B_Import-Export'!J$8:J$239,MATCH($B71,'Disaggregation1B_Import-Export'!$C$8:$C$239,0))=\"\",\"\",INDEX('Disaggregation1B_Import-Export'!J$8:J$239,MATCH($B71,'Disaggregation1B_Import-Export'!$C$8:$C$239,0))),\"\")","v":""},{"$f":"IFERROR(IF(INDEX('Disaggregation1B_Import-Export'!K$8:K$239,MATCH($B71,'Disaggregation1B_Import-Export'!$C$8:$C$239,0))=\"\",\"\",INDEX('Disaggregation1B_Import-Export'!K$8:K$239,MATCH($B71,'Disaggregation1B_Import-Export'!$C$8:$C$239,0))),\"\")","v":""},{"$f":"IFERROR(IF(INDEX('Disaggregation1B_Import-Export'!L$8:L$239,MATCH($B71,'Disaggregation1B_Import-Export'!$C$8:$C$239,0))=\"\",\"\",INDEX('Disaggregation1B_Import-Export'!L$8:L$239,MATCH($B71,'Disaggregation1B_Import-Export'!$C$8:$C$239,0))),\"\")","v":""},{"$f":"IFERROR(IF(INDEX('Disaggregation1B_Import-Export'!AQ$8:AQ$239,MATCH($B71,'Disaggregation1B_Import-Export'!$C$8:$C$239,0))=\"\",\"\",INDEX('Disaggregation1B_Import-Export'!AQ$8:AQ$239,MATCH($B71,'Disaggregation1B_Import-Export'!$C$8:$C$239,0))),\"\")","v":""},null,null,"",null,null,null,null,null,"",null,null,null,null,null,""]
[62,"Coverage62",{"$f":"IFERROR(INDEX('Disaggregation1B_Import-Export'!D$8:D$239,MATCH($B72,'Disaggregation1B_Import-Export'!$C$8:$C$239,0)),\"\")","v":""},{"$f":"IFERROR(INDEX('Disaggregation1B_Import-Export'!AF$8:AF$256,MATCH($B72,'Disaggregation1B_Import-Export'!$C$8:$C$256,0)),\"\")","v":""},{"$f":"IFERROR(IF(INDEX('Disaggregation1B_Import-Export'!AG$8:AG$239,MATCH($B72,'Disaggregation1B_Import-Export'!$C$8:$C$239,0))=\"\",\"\",INDEX('Disaggregation1B_Import-Export'!AG$8:AG$239,MATCH($B72,'Disaggregation1B_Import-Export'!$C$8:$C$239,0))),\"\")","v":""},{"$f":"IFERROR(IF(INDEX('Disaggregation1B_Import-Export'!AH$8:AH$239,MATCH($B72,'Disaggregation1B_Import-Export'!$C$8:$C$239,0))=\"\",\"\",INDEX('Disaggregation1B_Import-Export'!AH$8:AH$239,MATCH($B72,'Disaggregation1B_Import-Export'!$C$8:$C$239,0))),\"\")","v":""},{"$f":"IFERROR(IF(INDEX('Disaggregation1B_Import-Export'!H$8:H$239,MATCH($B72,'Disaggregation1B_Import-Export'!$C$8:$C$239,0))=\"\",\"\",INDEX('Disaggregation1B_Import-Export'!H$8:H$239,MATCH($B72,'Disaggregation1B_Import-Export'!$C$8:$C$239,0))),\"\")","v":""},{"$f":"IFERROR(IF(INDEX('Disaggregation1B_Import-Export'!I$8:I$239,MATCH($B72,'Disaggregation1B_Import-Export'!$C$8:$C$239,0))=\"\",\"\",INDEX('Disaggregation1B_Import-Export'!I$8:I$239,MATCH($B72,'Disaggregation1B_Import-Export'!$C$8:$C$239,0))),\"\")","v":""},{"$f":"IFERROR(IF(INDEX('Disaggregation1B_Import-Export'!J$8:J$239,MATCH($B72,'Disaggregation1B_Import-Export'!$C$8:$C$239,0))=\"\",\"\",INDEX('Disaggregation1B_Import-Export'!J$8:J$239,MATCH($B72,'Disaggregation1B_Import-Export'!$C$8:$C$239,0))),\"\")","v":""},{"$f":"IFERROR(IF(INDEX('Disaggregation1B_Import-Export'!K$8:K$239,MATCH($B72,'Disaggregation1B_Import-Export'!$C$8:$C$239,0))=\"\",\"\",INDEX('Disaggregation1B_Import-Export'!K$8:K$239,MATCH($B72,'Disaggregation1B_Import-Export'!$C$8:$C$239,0))),\"\")","v":""},{"$f":"IFERROR(IF(INDEX('Disaggregation1B_Import-Export'!L$8:L$239,MATCH($B72,'Disaggregation1B_Import-Export'!$C$8:$C$239,0))=\"\",\"\",INDEX('Disaggregation1B_Import-Export'!L$8:L$239,MATCH($B72,'Disaggregation1B_Import-Export'!$C$8:$C$239,0))),\"\")","v":""},{"$f":"IFERROR(IF(INDEX('Disaggregation1B_Import-Export'!AQ$8:AQ$239,MATCH($B72,'Disaggregation1B_Import-Export'!$C$8:$C$239,0))=\"\",\"\",INDEX('Disaggregation1B_Import-Export'!AQ$8:AQ$239,MATCH($B72,'Disaggregation1B_Import-Export'!$C$8:$C$239,0))),\"\")","v":""},null,null,"",null,null,null,null,null,"",null,null,null,null,null,""]
[63,"Coverage63",{"$f":"IFERROR(INDEX('Disaggregation1B_Import-Export'!D$8:D$239,MATCH($B73,'Disaggregation1B_Import-Export'!$C$8:$C$239,0)),\"\")","v":""},{"$f":"IFERROR(INDEX('Disaggregation1B_Import-Export'!AF$8:AF$256,MATCH($B73,'Disaggregation1B_Import-Export'!$C$8:$C$256,0)),\"\")","v":""},{"$f":"IFERROR(IF(INDEX('Disaggregation1B_Import-Export'!AG$8:AG$239,MATCH($B73,'Disaggregation1B_Import-Export'!$C$8:$C$239,0))=\"\",\"\",INDEX('Disaggregation1B_Import-Export'!AG$8:AG$239,MATCH($B73,'Disaggregation1B_Import-Export'!$C$8:$C$239,0))),\"\")","v":""},{"$f":"IFERROR(IF(INDEX('Disaggregation1B_Import-Export'!AH$8:AH$239,MATCH($B73,'Disaggregation1B_Import-Export'!$C$8:$C$239,0))=\"\",\"\",INDEX('Disaggregation1B_Import-Export'!AH$8:AH$239,MATCH($B73,'Disaggregation1B_Import-Export'!$C$8:$C$239,0))),\"\")","v":""},{"$f":"IFERROR(IF(INDEX('Disaggregation1B_Import-Export'!H$8:H$239,MATCH($B73,'Disaggregation1B_Import-Export'!$C$8:$C$239,0))=\"\",\"\",INDEX('Disaggregation1B_Import-Export'!H$8:H$239,MATCH($B73,'Disaggregation1B_Import-Export'!$C$8:$C$239,0))),\"\")","v":""},{"$f":"IFERROR(IF(INDEX('Disaggregation1B_Import-Export'!I$8:I$239,MATCH($B73,'Disaggregation1B_Import-Export'!$C$8:$C$239,0))=\"\",\"\",INDEX('Disaggregation1B_Import-Export'!I$8:I$239,MATCH($B73,'Disaggregation1B_Import-Export'!$C$8:$C$239,0))),\"\")","v":""},{"$f":"IFERROR(IF(INDEX('Disaggregation1B_Import-Export'!J$8:J$239,MATCH($B73,'Disaggregation1B_Import-Export'!$C$8:$C$239,0))=\"\",\"\",INDEX('Disaggregation1B_Import-Export'!J$8:J$239,MATCH($B73,'Disaggregation1B_Import-Export'!$C$8:$C$239,0))),\"\")","v":""},{"$f":"IFERROR(IF(INDEX('Disaggregation1B_Import-Export'!K$8:K$239,MATCH($B73,'Disaggregation1B_Import-Export'!$C$8:$C$239,0))=\"\",\"\",INDEX('Disaggregation1B_Import-Export'!K$8:K$239,MATCH($B73,'Disaggregation1B_Import-Export'!$C$8:$C$239,0))),\"\")","v":""},{"$f":"IFERROR(IF(INDEX('Disaggregation1B_Import-Export'!L$8:L$239,MATCH($B73,'Disaggregation1B_Import-Export'!$C$8:$C$239,0))=\"\",\"\",INDEX('Disaggregation1B_Import-Export'!L$8:L$239,MATCH($B73,'Disaggregation1B_Import-Export'!$C$8:$C$239,0))),\"\")","v":""},{"$f":"IFERROR(IF(INDEX('Disaggregation1B_Import-Export'!AQ$8:AQ$239,MATCH($B73,'Disaggregation1B_Import-Export'!$C$8:$C$239,0))=\"\",\"\",INDEX('Disaggregation1B_Import-Export'!AQ$8:AQ$239,MATCH($B73,'Disaggregation1B_Import-Export'!$C$8:$C$239,0))),\"\")","v":""},null,null,"",null,null,null,null,null,"",null,null,null,null,null,""]
[64,"Coverage64",{"$f":"IFERROR(INDEX('Disaggregation1B_Import-Export'!D$8:D$239,MATCH($B74,'Disaggregation1B_Import-Export'!$C$8:$C$239,0)),\"\")","v":""},{"$f":"IFERROR(INDEX('Disaggregation1B_Import-Export'!AF$8:AF$256,MATCH($B74,'Disaggregation1B_Import-Export'!$C$8:$C$256,0)),\"\")","v":""},{"$f":"IFERROR(IF(INDEX('Disaggregation1B_Import-Export'!AG$8:AG$239,MATCH($B74,'Disaggregation1B_Import-Export'!$C$8:$C$239,0))=\"\",\"\",INDEX('Disaggregation1B_Import-Export'!AG$8:AG$239,MATCH($B74,'Disaggregation1B_Import-Export'!$C$8:$C$239,0))),\"\")","v":""},{"$f":"IFERROR(IF(INDEX('Disaggregation1B_Import-Export'!AH$8:AH$239,MATCH($B74,'Disaggregation1B_Import-Export'!$C$8:$C$239,0))=\"\",\"\",INDEX('Disaggregation1B_Import-Export'!AH$8:AH$239,MATCH($B74,'Disaggregation1B_Import-Export'!$C$8:$C$239,0))),\"\")","v":""},{"$f":"IFERROR(IF(INDEX('Disaggregation1B_Import-Export'!H$8:H$239,MATCH($B74,'Disaggregation1B_Import-Export'!$C$8:$C$239,0))=\"\",\"\",INDEX('Disaggregation1B_Import-Export'!H$8:H$239,MATCH($B74,'Disaggregation1B_Import-Export'!$C$8:$C$239,0))),\"\")","v":""},{"$f":"IFERROR(IF(INDEX('Disaggregation1B_Import-Export'!I$8:I$239,MATCH($B74,'Disaggregation1B_Import-Export'!$C$8:$C$239,0))=\"\",\"\",INDEX('Disaggregation1B_Import-Export'!I$8:I$239,MATCH($B74,'Disaggregation1B_Import-Export'!$C$8:$C$239,0))),\"\")","v":""},{"$f":"IFERROR(IF(INDEX('Disaggregation1B_Import-Export'!J$8:J$239,MATCH($B74,'Disaggregation1B_Import-Export'!$C$8:$C$239,0))=\"\",\"\",INDEX('Disaggregation1B_Import-Export'!J$8:J$239,MATCH($B74,'Disaggregation1B_Import-Export'!$C$8:$C$239,0))),\"\")","v":""},{"$f":"IFERROR(IF(INDEX('Disaggregation1B_Import-Export'!K$8:K$239,MATCH($B74,'Disaggregation1B_Import-Export'!$C$8:$C$239,0))=\"\",\"\",INDEX('Disaggregation1B_Import-Export'!K$8:K$239,MATCH($B74,'Disaggregation1B_Import-Export'!$C$8:$C$239,0))),\"\")","v":""},{"$f":"IFERROR(IF(INDEX('Disaggregation1B_Import-Export'!L$8:L$239,MATCH($B74,'Disaggregation1B_Import-Export'!$C$8:$C$239,0))=\"\",\"\",INDEX('Disaggregation1B_Import-Export'!L$8:L$239,MATCH($B74,'Disaggregation1B_Import-Export'!$C$8:$C$239,0))),\"\")","v":""},{"$f":"IFERROR(IF(INDEX('Disaggregation1B_Import-Export'!AQ$8:AQ$239,MATCH($B74,'Disaggregation1B_Import-Export'!$C$8:$C$239,0))=\"\",\"\",INDEX('Disaggregation1B_Import-Export'!AQ$8:AQ$239,MATCH($B74,'Disaggregation1B_Import-Export'!$C$8:$C$239,0))),\"\")","v":""},null,null,"",null,null,null,null,null,"",null,null,null,null,null,""]
[65,"Coverage65",{"$f":"IFERROR(INDEX('Disaggregation1B_Import-Export'!D$8:D$239,MATCH($B75,'Disaggregation1B_Import-Export'!$C$8:$C$239,0)),\"\")","v":""},{"$f":"IFERROR(INDEX('Disaggregation1B_Import-Export'!AF$8:AF$256,MATCH($B75,'Disaggregation1B_Import-Export'!$C$8:$C$256,0)),\"\")","v":""},{"$f":"IFERROR(IF(INDEX('Disaggregation1B_Import-Export'!AG$8:AG$239,MATCH($B75,'Disaggregation1B_Import-Export'!$C$8:$C$239,0))=\"\",\"\",INDEX('Disaggregation1B_Import-Export'!AG$8:AG$239,MATCH($B75,'Disaggregation1B_Import-Export'!$C$8:$C$239,0))),\"\")","v":""},{"$f":"IFERROR(IF(INDEX('Disaggregation1B_Import-Export'!AH$8:AH$239,MATCH($B75,'Disaggregation1B_Import-Export'!$C$8:$C$239,0))=\"\",\"\",INDEX('Disaggregation1B_Import-Export'!AH$8:AH$239,MATCH($B75,'Disaggregation1B_Import-Export'!$C$8:$C$239,0))),\"\")","v":""},{"$f":"IFERROR(IF(INDEX('Disaggregation1B_Import-Export'!H$8:H$239,MATCH($B75,'Disaggregation1B_Import-Export'!$C$8:$C$239,0))=\"\",\"\",INDEX('Disaggregation1B_Import-Export'!H$8:H$239,MATCH($B75,'Disaggregation1B_Import-Export'!$C$8:$C$239,0))),\"\")","v":""},{"$f":"IFERROR(IF(INDEX('Disaggregation1B_Import-Export'!I$8:I$239,MATCH($B75,'Disaggregation1B_Import-Export'!$C$8:$C$239,0))=\"\",\"\",INDEX('Disaggregation1B_Import-Export'!I$8:I$239,MATCH($B75,'Disaggregation1B_Import-Export'!$C$8:$C$239,0))),\"\")","v":""},{"$f":"IFERROR(IF(INDEX('Disaggregation1B_Import-Export'!J$8:J$239,MATCH($B75,'Disaggregation1B_Import-Export'!$C$8:$C$239,0))=\"\",\"\",INDEX('Disaggregation1B_Import-Export'!J$8:J$239,MATCH($B75,'Disaggregation1B_Import-Export'!$C$8:$C$239,0))),\"\")","v":""},{"$f":"IFERROR(IF(INDEX('Disaggregation1B_Import-Export'!K$8:K$239,MATCH($B75,'Disaggregation1B_Import-Export'!$C$8:$C$239,0))=\"\",\"\",INDEX('Disaggregation1B_Import-Export'!K$8:K$239,MATCH($B75,'Disaggregation1B_Import-Export'!$C$8:$C$239,0))),\"\")","v":""},{"$f":"IFERROR(IF(INDEX('Disaggregation1B_Import-Export'!L$8:L$239,MATCH($B75,'Disaggregation1B_Import-Export'!$C$8:$C$239,0))=\"\",\"\",INDEX('Disaggregation1B_Import-Export'!L$8:L$239,MATCH($B75,'Disaggregation1B_Import-Export'!$C$8:$C$239,0))),\"\")","v":""},{"$f":"IFERROR(IF(INDEX('Disaggregation1B_Import-Export'!AQ$8:AQ$239,MATCH($B75,'Disaggregation1B_Import-Export'!$C$8:$C$239,0))=\"\",\"\",INDEX('Disaggregation1B_Import-Export'!AQ$8:AQ$239,MATCH($B75,'Disaggregation1B_Import-Export'!$C$8:$C$239,0))),\"\")","v":""},null,null,"",null,null,null,null,null,"",null,null,null,null,null,""]
[{"$f":"A75+1","v":66},"Coverage66",{"$f":"IFERROR(INDEX('Disaggregation1B_Import-Export'!D$8:D$239,MATCH($B76,'Disaggregation1B_Import-Export'!$C$8:$C$239,0)),\"\")","v":""},{"$f":"IFERROR(INDEX('Disaggregation1B_Import-Export'!AF$8:AF$256,MATCH($B76,'Disaggregation1B_Import-Export'!$C$8:$C$256,0)),\"\")","v":""},{"$f":"IFERROR(IF(INDEX('Disaggregation1B_Import-Export'!AG$8:AG$239,MATCH($B76,'Disaggregation1B_Import-Export'!$C$8:$C$239,0))=\"\",\"\",INDEX('Disaggregation1B_Import-Export'!AG$8:AG$239,MATCH($B76,'Disaggregation1B_Import-Export'!$C$8:$C$239,0))),\"\")","v":""},{"$f":"IFERROR(IF(INDEX('Disaggregation1B_Import-Export'!AH$8:AH$239,MATCH($B76,'Disaggregation1B_Import-Export'!$C$8:$C$239,0))=\"\",\"\",INDEX('Disaggregation1B_Import-Export'!AH$8:AH$239,MATCH($B76,'Disaggregation1B_Import-Export'!$C$8:$C$239,0))),\"\")","v":""},{"$f":"IFERROR(IF(INDEX('Disaggregation1B_Import-Export'!H$8:H$239,MATCH($B76,'Disaggregation1B_Import-Export'!$C$8:$C$239,0))=\"\",\"\",INDEX('Disaggregation1B_Import-Export'!H$8:H$239,MATCH($B76,'Disaggregation1B_Import-Export'!$C$8:$C$239,0))),\"\")","v":""},{"$f":"IFERROR(IF(INDEX('Disaggregation1B_Import-Export'!I$8:I$239,MATCH($B76,'Disaggregation1B_Import-Export'!$C$8:$C$239,0))=\"\",\"\",INDEX('Disaggregation1B_Import-Export'!I$8:I$239,MATCH($B76,'Disaggregation1B_Import-Export'!$C$8:$C$239,0))),\"\")","v":""},{"$f":"IFERROR(IF(INDEX('Disaggregation1B_Import-Export'!J$8:J$239,MATCH($B76,'Disaggregation1B_Import-Export'!$C$8:$C$239,0))=\"\",\"\",INDEX('Disaggregation1B_Import-Export'!J$8:J$239,MATCH($B76,'Disaggregation1B_Import-Export'!$C$8:$C$239,0))),\"\")","v":""},{"$f":"IFERROR(IF(INDEX('Disaggregation1B_Import-Export'!K$8:K$239,MATCH($B76,'Disaggregation1B_Import-Export'!$C$8:$C$239,0))=\"\",\"\",INDEX('Disaggregation1B_Import-Export'!K$8:K$239,MATCH($B76,'Disaggregation1B_Import-Export'!$C$8:$C$239,0))),\"\")","v":""},{"$f":"IFERROR(IF(INDEX('Disaggregation1B_Import-Export'!L$8:L$239,MATCH($B76,'Disaggregation1B_Import-Export'!$C$8:$C$239,0))=\"\",\"\",INDEX('Disaggregation1B_Import-Export'!L$8:L$239,MATCH($B76,'Disaggregation1B_Import-Export'!$C$8:$C$239,0))),\"\")","v":""},{"$f":"IFERROR(IF(INDEX('Disaggregation1B_Import-Export'!AQ$8:AQ$239,MATCH($B76,'Disaggregation1B_Import-Export'!$C$8:$C$239,0))=\"\",\"\",INDEX('Disaggregation1B_Import-Export'!AQ$8:AQ$239,MATCH($B76,'Disaggregation1B_Import-Export'!$C$8:$C$239,0))),\"\")","v":""},null,null,"",null,null,null,null,null,"",null,null,null,null,null,""]
[67,"Coverage67",{"$f":"IFERROR(INDEX('Disaggregation1B_Import-Export'!D$8:D$239,MATCH($B77,'Disaggregation1B_Import-Export'!$C$8:$C$239,0)),\"\")","v":""},{"$f":"IFERROR(INDEX('Disaggregation1B_Import-Export'!AF$8:AF$256,MATCH($B77,'Disaggregation1B_Import-Export'!$C$8:$C$256,0)),\"\")","v":""},{"$f":"IFERROR(IF(INDEX('Disaggregation1B_Import-Export'!AG$8:AG$239,MATCH($B77,'Disaggregation1B_Import-Export'!$C$8:$C$239,0))=\"\",\"\",INDEX('Disaggregation1B_Import-Export'!AG$8:AG$239,MATCH($B77,'Disaggregation1B_Import-Export'!$C$8:$C$239,0))),\"\")","v":""},{"$f":"IFERROR(IF(INDEX('Disaggregation1B_Import-Export'!AH$8:AH$239,MATCH($B77,'Disaggregation1B_Import-Export'!$C$8:$C$239,0))=\"\",\"\",INDEX('Disaggregation1B_Import-Export'!AH$8:AH$239,MATCH($B77,'Disaggregation1B_Import-Export'!$C$8:$C$239,0))),\"\")","v":""},{"$f":"IFERROR(IF(INDEX('Disaggregation1B_Import-Export'!H$8:H$239,MATCH($B77,'Disaggregation1B_Import-Export'!$C$8:$C$239,0))=\"\",\"\",INDEX('Disaggregation1B_Import-Export'!H$8:H$239,MATCH($B77,'Disaggregation1B_Import-Export'!$C$8:$C$239,0))),\"\")","v":""},{"$f":"IFERROR(IF(INDEX('Disaggregation1B_Import-Export'!I$8:I$239,MATCH($B77,'Disaggregation1B_Import-Export'!$C$8:$C$239,0))=\"\",\"\",INDEX('Disaggregation1B_Import-Export'!I$8:I$239,MATCH($B77,'Disaggregation1B_Import-Export'!$C$8:$C$239,0))),\"\")","v":""},{"$f":"IFERROR(IF(INDEX('Disaggregation1B_Import-Export'!J$8:J$239,MATCH($B77,'Disaggregation1B_Import-Export'!$C$8:$C$239,0))=\"\",\"\",INDEX('Disaggregation1B_Import-Export'!J$8:J$239,MATCH($B77,'Disaggregation1B_Import-Export'!$C$8:$C$239,0))),\"\")","v":""},{"$f":"IFERROR(IF(INDEX('Disaggregation1B_Import-Export'!K$8:K$239,MATCH($B77,'Disaggregation1B_Import-Export'!$C$8:$C$239,0))=\"\",\"\",INDEX('Disaggregation1B_Import-Export'!K$8:K$239,MATCH($B77,'Disaggregation1B_Import-Export'!$C$8:$C$239,0))),\"\")","v":""},{"$f":"IFERROR(IF(INDEX('Disaggregation1B_Import-Export'!L$8:L$239,MATCH($B77,'Disaggregation1B_Import-Export'!$C$8:$C$239,0))=\"\",\"\",INDEX('Disaggregation1B_Import-Export'!L$8:L$239,MATCH($B77,'Disaggregation1B_Import-Export'!$C$8:$C$239,0))),\"\")","v":""},{"$f":"IFERROR(IF(INDEX('Disaggregation1B_Import-Export'!AQ$8:AQ$239,MATCH($B77,'Disaggregation1B_Import-Export'!$C$8:$C$239,0))=\"\",\"\",INDEX('Disaggregation1B_Import-Export'!AQ$8:AQ$239,MATCH($B77,'Disaggregation1B_Import-Export'!$C$8:$C$239,0))),\"\")","v":""},null,null,"",null,null,null,null,null,"",null,null,null,null,null,""]
[68,"Coverage68",{"$f":"IFERROR(INDEX('Disaggregation1B_Import-Export'!D$8:D$239,MATCH($B78,'Disaggregation1B_Import-Export'!$C$8:$C$239,0)),\"\")","v":""},{"$f":"IFERROR(INDEX('Disaggregation1B_Import-Export'!AF$8:AF$256,MATCH($B78,'Disaggregation1B_Import-Export'!$C$8:$C$256,0)),\"\")","v":""},{"$f":"IFERROR(IF(INDEX('Disaggregation1B_Import-Export'!AG$8:AG$239,MATCH($B78,'Disaggregation1B_Import-Export'!$C$8:$C$239,0))=\"\",\"\",INDEX('Disaggregation1B_Import-Export'!AG$8:AG$239,MATCH($B78,'Disaggregation1B_Import-Export'!$C$8:$C$239,0))),\"\")","v":""},{"$f":"IFERROR(IF(INDEX('Disaggregation1B_Import-Export'!AH$8:AH$239,MATCH($B78,'Disaggregation1B_Import-Export'!$C$8:$C$239,0))=\"\",\"\",INDEX('Disaggregation1B_Import-Export'!AH$8:AH$239,MATCH($B78,'Disaggregation1B_Import-Export'!$C$8:$C$239,0))),\"\")","v":""},{"$f":"IFERROR(IF(INDEX('Disaggregation1B_Import-Export'!H$8:H$239,MATCH($B78,'Disaggregation1B_Import-Export'!$C$8:$C$239,0))=\"\",\"\",INDEX('Disaggregation1B_Import-Export'!H$8:H$239,MATCH($B78,'Disaggregation1B_Import-Export'!$C$8:$C$239,0))),\"\")","v":""},{"$f":"IFERROR(IF(INDEX('Disaggregation1B_Import-Export'!I$8:I$239,MATCH($B78,'Disaggregation1B_Import-Export'!$C$8:$C$239,0))=\"\",\"\",INDEX('Disaggregation1B_Import-Export'!I$8:I$239,MATCH($B78,'Disaggregation1B_Import-Export'!$C$8:$C$239,0))),\"\")","v":""},{"$f":"IFERROR(IF(INDEX('Disaggregation1B_Import-Export'!J$8:J$239,MATCH($B78,'Disaggregation1B_Import-Export'!$C$8:$C$239,0))=\"\",\"\",INDEX('Disaggregation1B_Import-Export'!J$8:J$239,MATCH($B78,'Disaggregation1B_Import-Export'!$C$8:$C$239,0))),\"\")","v":""},{"$f":"IFERROR(IF(INDEX('Disaggregation1B_Import-Export'!K$8:K$239,MATCH($B78,'Disaggregation1B_Import-Export'!$C$8:$C$239,0))=\"\",\"\",INDEX('Disaggregation1B_Import-Export'!K$8:K$239,MATCH($B78,'Disaggregation1B_Import-Export'!$C$8:$C$239,0))),\"\")","v":""},{"$f":"IFERROR(IF(INDEX('Disaggregation1B_Import-Export'!L$8:L$239,MATCH($B78,'Disaggregation1B_Import-Export'!$C$8:$C$239,0))=\"\",\"\",INDEX('Disaggregation1B_Import-Export'!L$8:L$239,MATCH($B78,'Disaggregation1B_Import-Export'!$C$8:$C$239,0))),\"\")","v":""},{"$f":"IFERROR(IF(INDEX('Disaggregation1B_Import-Export'!AQ$8:AQ$239,MATCH($B78,'Disaggregation1B_Import-Export'!$C$8:$C$239,0))=\"\",\"\",INDEX('Disaggregation1B_Import-Export'!AQ$8:AQ$239,MATCH($B78,'Disaggregation1B_Import-Export'!$C$8:$C$239,0))),\"\")","v":""},null,null,"",null,null,null,null,null,"",null,null,null,null,null,""]
[69,"Coverage69",{"$f":"IFERROR(INDEX('Disaggregation1B_Import-Export'!D$8:D$239,MATCH($B79,'Disaggregation1B_Import-Export'!$C$8:$C$239,0)),\"\")","v":""},{"$f":"IFERROR(INDEX('Disaggregation1B_Import-Export'!AF$8:AF$256,MATCH($B79,'Disaggregation1B_Import-Export'!$C$8:$C$256,0)),\"\")","v":""},{"$f":"IFERROR(IF(INDEX('Disaggregation1B_Import-Export'!AG$8:AG$239,MATCH($B79,'Disaggregation1B_Import-Export'!$C$8:$C$239,0))=\"\",\"\",INDEX('Disaggregation1B_Import-Export'!AG$8:AG$239,MATCH($B79,'Disaggregation1B_Import-Export'!$C$8:$C$239,0))),\"\")","v":""},{"$f":"IFERROR(IF(INDEX('Disaggregation1B_Import-Export'!AH$8:AH$239,MATCH($B79,'Disaggregation1B_Import-Export'!$C$8:$C$239,0))=\"\",\"\",INDEX('Disaggregation1B_Import-Export'!AH$8:AH$239,MATCH($B79,'Disaggregation1B_Import-Export'!$C$8:$C$239,0))),\"\")","v":""},{"$f":"IFERROR(IF(INDEX('Disaggregation1B_Import-Export'!H$8:H$239,MATCH($B79,'Disaggregation1B_Import-Export'!$C$8:$C$239,0))=\"\",\"\",INDEX('Disaggregation1B_Import-Export'!H$8:H$239,MATCH($B79,'Disaggregation1B_Import-Export'!$C$8:$C$239,0))),\"\")","v":""},{"$f":"IFERROR(IF(INDEX('Disaggregation1B_Import-Export'!I$8:I$239,MATCH($B79,'Disaggregation1B_Import-Export'!$C$8:$C$239,0))=\"\",\"\",INDEX('Disaggregation1B_Import-Export'!I$8:I$239,MATCH($B79,'Disaggregation1B_Import-Export'!$C$8:$C$239,0))),\"\")","v":""},{"$f":"IFERROR(IF(INDEX('Disaggregation1B_Import-Export'!J$8:J$239,MATCH($B79,'Disaggregation1B_Import-Export'!$C$8:$C$239,0))=\"\",\"\",INDEX('Disaggregation1B_Import-Export'!J$8:J$239,MATCH($B79,'Disaggregation1B_Import-Export'!$C$8:$C$239,0))),\"\")","v":""},{"$f":"IFERROR(IF(INDEX('Disaggregation1B_Import-Export'!K$8:K$239,MATCH($B79,'Disaggregation1B_Import-Export'!$C$8:$C$239,0))=\"\",\"\",INDEX('Disaggregation1B_Import-Export'!K$8:K$239,MATCH($B79,'Disaggregation1B_Import-Export'!$C$8:$C$239,0))),\"\")","v":""},{"$f":"IFERROR(IF(INDEX('Disaggregation1B_Import-Export'!L$8:L$239,MATCH($B79,'Disaggregation1B_Import-Export'!$C$8:$C$239,0))=\"\",\"\",INDEX('Disaggregation1B_Import-Export'!L$8:L$239,MATCH($B79,'Disaggregation1B_Import-Export'!$C$8:$C$239,0))),\"\")","v":""},{"$f":"IFERROR(IF(INDEX('Disaggregation1B_Import-Export'!AQ$8:AQ$239,MATCH($B79,'Disaggregation1B_Import-Export'!$C$8:$C$239,0))=\"\",\"\",INDEX('Disaggregation1B_Import-Export'!AQ$8:AQ$239,MATCH($B79,'Disaggregation1B_Import-Export'!$C$8:$C$239,0))),\"\")","v":""},null,null,"",null,null,null,null,null,"",null,null,null,null,null,""]
[70,"Coverage70",{"$f":"IFERROR(INDEX('Disaggregation1B_Import-Export'!D$8:D$239,MATCH($B80,'Disaggregation1B_Import-Export'!$C$8:$C$239,0)),\"\")","v":""},{"$f":"IFERROR(INDEX('Disaggregation1B_Import-Export'!AF$8:AF$256,MATCH($B80,'Disaggregation1B_Import-Export'!$C$8:$C$256,0)),\"\")","v":""},{"$f":"IFERROR(IF(INDEX('Disaggregation1B_Import-Export'!AG$8:AG$239,MATCH($B80,'Disaggregation1B_Import-Export'!$C$8:$C$239,0))=\"\",\"\",INDEX('Disaggregation1B_Import-Export'!AG$8:AG$239,MATCH($B80,'Disaggregation1B_Import-Export'!$C$8:$C$239,0))),\"\")","v":""},{"$f":"IFERROR(IF(INDEX('Disaggregation1B_Import-Export'!AH$8:AH$239,MATCH($B80,'Disaggregation1B_Import-Export'!$C$8:$C$239,0))=\"\",\"\",INDEX('Disaggregation1B_Import-Export'!AH$8:AH$239,MATCH($B80,'Disaggregation1B_Import-Export'!$C$8:$C$239,0))),\"\")","v":""},{"$f":"IFERROR(IF(INDEX('Disaggregation1B_Import-Export'!H$8:H$239,MATCH($B80,'Disaggregation1B_Import-Export'!$C$8:$C$239,0))=\"\",\"\",INDEX('Disaggregation1B_Import-Export'!H$8:H$239,MATCH($B80,'Disaggregation1B_Import-Export'!$C$8:$C$239,0))),\"\")","v":""},{"$f":"IFERROR(IF(INDEX('Disaggregation1B_Import-Export'!I$8:I$239,MATCH($B80,'Disaggregation1B_Import-Export'!$C$8:$C$239,0))=\"\",\"\",INDEX('Disaggregation1B_Import-Export'!I$8:I$239,MATCH($B80,'Disaggregation1B_Import-Export'!$C$8:$C$239,0))),\"\")","v":""},{"$f":"IFERROR(IF(INDEX('Disaggregation1B_Import-Export'!J$8:J$239,MATCH($B80,'Disaggregation1B_Import-Export'!$C$8:$C$239,0))=\"\",\"\",INDEX('Disaggregation1B_Import-Export'!J$8:J$239,MATCH($B80,'Disaggregation1B_Import-Export'!$C$8:$C$239,0))),\"\")","v":""},{"$f":"IFERROR(IF(INDEX('Disaggregation1B_Import-Export'!K$8:K$239,MATCH($B80,'Disaggregation1B_Import-Export'!$C$8:$C$239,0))=\"\",\"\",INDEX('Disaggregation1B_Import-Export'!K$8:K$239,MATCH($B80,'Disaggregation1B_Import-Export'!$C$8:$C$239,0))),\"\")","v":""},{"$f":"IFERROR(IF(INDEX('Disaggregation1B_Import-Export'!L$8:L$239,MATCH($B80,'Disaggregation1B_Import-Export'!$C$8:$C$239,0))=\"\",\"\",INDEX('Disaggregation1B_Import-Export'!L$8:L$239,MATCH($B80,'Disaggregation1B_Import-Export'!$C$8:$C$239,0))),\"\")","v":""},{"$f":"IFERROR(IF(INDEX('Disaggregation1B_Import-Export'!AQ$8:AQ$239,MATCH($B80,'Disaggregation1B_Import-Export'!$C$8:$C$239,0))=\"\",\"\",INDEX('Disaggregation1B_Import-Export'!AQ$8:AQ$239,MATCH($B80,'Disaggregation1B_Import-Export'!$C$8:$C$239,0))),\"\")","v":""},null,null,"",null,null,null,null,null,"",null,null,null,null,null,""]
[71,"Coverage71",{"$f":"IFERROR(INDEX('Disaggregation1B_Import-Export'!D$8:D$239,MATCH($B81,'Disaggregation1B_Import-Export'!$C$8:$C$239,0)),\"\")","v":""},{"$f":"IFERROR(INDEX('Disaggregation1B_Import-Export'!AF$8:AF$256,MATCH($B81,'Disaggregation1B_Import-Export'!$C$8:$C$256,0)),\"\")","v":""},{"$f":"IFERROR(IF(INDEX('Disaggregation1B_Import-Export'!AG$8:AG$239,MATCH($B81,'Disaggregation1B_Import-Export'!$C$8:$C$239,0))=\"\",\"\",INDEX('Disaggregation1B_Import-Export'!AG$8:AG$239,MATCH($B81,'Disaggregation1B_Import-Export'!$C$8:$C$239,0))),\"\")","v":""},{"$f":"IFERROR(IF(INDEX('Disaggregation1B_Import-Export'!AH$8:AH$239,MATCH($B81,'Disaggregation1B_Import-Export'!$C$8:$C$239,0))=\"\",\"\",INDEX('Disaggregation1B_Import-Export'!AH$8:AH$239,MATCH($B81,'Disaggregation1B_Import-Export'!$C$8:$C$239,0))),\"\")","v":""},{"$f":"IFERROR(IF(INDEX('Disaggregation1B_Import-Export'!H$8:H$239,MATCH($B81,'Disaggregation1B_Import-Export'!$C$8:$C$239,0))=\"\",\"\",INDEX('Disaggregation1B_Import-Export'!H$8:H$239,MATCH($B81,'Disaggregation1B_Import-Export'!$C$8:$C$239,0))),\"\")","v":""},{"$f":"IFERROR(IF(INDEX('Disaggregation1B_Import-Export'!I$8:I$239,MATCH($B81,'Disaggregation1B_Import-Export'!$C$8:$C$239,0))=\"\",\"\",INDEX('Disaggregation1B_Import-Export'!I$8:I$239,MATCH($B81,'Disaggregation1B_Import-Export'!$C$8:$C$239,0))),\"\")","v":""},{"$f":"IFERROR(IF(INDEX('Disaggregation1B_Import-Export'!J$8:J$239,MATCH($B81,'Disaggregation1B_Import-Export'!$C$8:$C$239,0))=\"\",\"\",INDEX('Disaggregation1B_Import-Export'!J$8:J$239,MATCH($B81,'Disaggregation1B_Import-Export'!$C$8:$C$239,0))),\"\")","v":""},{"$f":"IFERROR(IF(INDEX('Disaggregation1B_Import-Export'!K$8:K$239,MATCH($B81,'Disaggregation1B_Import-Export'!$C$8:$C$239,0))=\"\",\"\",INDEX('Disaggregation1B_Import-Export'!K$8:K$239,MATCH($B81,'Disaggregation1B_Import-Export'!$C$8:$C$239,0))),\"\")","v":""},{"$f":"IFERROR(IF(INDEX('Disaggregation1B_Import-Export'!L$8:L$239,MATCH($B81,'Disaggregation1B_Import-Export'!$C$8:$C$239,0))=\"\",\"\",INDEX('Disaggregation1B_Import-Export'!L$8:L$239,MATCH($B81,'Disaggregation1B_Import-Export'!$C$8:$C$239,0))),\"\")","v":""},{"$f":"IFERROR(IF(INDEX('Disaggregation1B_Import-Export'!AQ$8:AQ$239,MATCH($B81,'Disaggregation1B_Import-Export'!$C$8:$C$239,0))=\"\",\"\",INDEX('Disaggregation1B_Import-Export'!AQ$8:AQ$239,MATCH($B81,'Disaggregation1B_Import-Export'!$C$8:$C$239,0))),\"\")","v":""},null,null,"",null,null,null,null,null,"",null,null,null,null,null,""]
[72,"Coverage72",{"$f":"IFERROR(INDEX('Disaggregation1B_Import-Export'!D$8:D$239,MATCH($B82,'Disaggregation1B_Import-Export'!$C$8:$C$239,0)),\"\")","v":""},{"$f":"IFERROR(INDEX('Disaggregation1B_Import-Export'!AF$8:AF$256,MATCH($B82,'Disaggregation1B_Import-Export'!$C$8:$C$256,0)),\"\")","v":""},{"$f":"IFERROR(IF(INDEX('Disaggregation1B_Import-Export'!AG$8:AG$239,MATCH($B82,'Disaggregation1B_Import-Export'!$C$8:$C$239,0))=\"\",\"\",INDEX('Disaggregation1B_Import-Export'!AG$8:AG$239,MATCH($B82,'Disaggregation1B_Import-Export'!$C$8:$C$239,0))),\"\")","v":""},{"$f":"IFERROR(IF(INDEX('Disaggregation1B_Import-Export'!AH$8:AH$239,MATCH($B82,'Disaggregation1B_Import-Export'!$C$8:$C$239,0))=\"\",\"\",INDEX('Disaggregation1B_Import-Export'!AH$8:AH$239,MATCH($B82,'Disaggregation1B_Import-Export'!$C$8:$C$239,0))),\"\")","v":""},{"$f":"IFERROR(IF(INDEX('Disaggregation1B_Import-Export'!H$8:H$239,MATCH($B82,'Disaggregation1B_Import-Export'!$C$8:$C$239,0))=\"\",\"\",INDEX('Disaggregation1B_Import-Export'!H$8:H$239,MATCH($B82,'Disaggregation1B_Import-Export'!$C$8:$C$239,0))),\"\")","v":""},{"$f":"IFERROR(IF(INDEX('Disaggregation1B_Import-Export'!I$8:I$239,MATCH($B82,'Disaggregation1B_Import-Export'!$C$8:$C$239,0))=\"\",\"\",INDEX('Disaggregation1B_Import-Export'!I$8:I$239,MATCH($B82,'Disaggregation1B_Import-Export'!$C$8:$C$239,0))),\"\")","v":""},{"$f":"IFERROR(IF(INDEX('Disaggregation1B_Import-Export'!J$8:J$239,MATCH($B82,'Disaggregation1B_Import-Export'!$C$8:$C$239,0))=\"\",\"\",INDEX('Disaggregation1B_Import-Export'!J$8:J$239,MATCH($B82,'Disaggregation1B_Import-Export'!$C$8:$C$239,0))),\"\")","v":""},{"$f":"IFERROR(IF(INDEX('Disaggregation1B_Import-Export'!K$8:K$239,MATCH($B82,'Disaggregation1B_Import-Export'!$C$8:$C$239,0))=\"\",\"\",INDEX('Disaggregation1B_Import-Export'!K$8:K$239,MATCH($B82,'Disaggregation1B_Import-Export'!$C$8:$C$239,0))),\"\")","v":""},{"$f":"IFERROR(IF(INDEX('Disaggregation1B_Import-Export'!L$8:L$239,MATCH($B82,'Disaggregation1B_Import-Export'!$C$8:$C$239,0))=\"\",\"\",INDEX('Disaggregation1B_Import-Export'!L$8:L$239,MATCH($B82,'Disaggregation1B_Import-Export'!$C$8:$C$239,0))),\"\")","v":""},{"$f":"IFERROR(IF(INDEX('Disaggregation1B_Import-Export'!AQ$8:AQ$239,MATCH($B82,'Disaggregation1B_Import-Export'!$C$8:$C$239,0))=\"\",\"\",INDEX('Disaggregation1B_Import-Export'!AQ$8:AQ$239,MATCH($B82,'Disaggregation1B_Import-Export'!$C$8:$C$239,0))),\"\")","v":""},null,null,"",null,null,null,null,null,"",null,null,null,null,null,""]
[73,"Coverage73",{"$f":"IFERROR(INDEX('Disaggregation1B_Import-Export'!D$8:D$239,MATCH($B83,'Disaggregation1B_Import-Export'!$C$8:$C$239,0)),\"\")","v":""},{"$f":"IFERROR(INDEX('Disaggregation1B_Import-Export'!AF$8:AF$256,MATCH($B83,'Disaggregation1B_Import-Export'!$C$8:$C$256,0)),\"\")","v":""},{"$f":"IFERROR(IF(INDEX('Disaggregation1B_Import-Export'!AG$8:AG$239,MATCH($B83,'Disaggregation1B_Import-Export'!$C$8:$C$239,0))=\"\",\"\",INDEX('Disaggregation1B_Import-Export'!AG$8:AG$239,MATCH($B83,'Disaggregation1B_Import-Export'!$C$8:$C$239,0))),\"\")","v":""},{"$f":"IFERROR(IF(INDEX('Disaggregation1B_Import-Export'!AH$8:AH$239,MATCH($B83,'Disaggregation1B_Import-Export'!$C$8:$C$239,0))=\"\",\"\",INDEX('Disaggregation1B_Import-Export'!AH$8:AH$239,MATCH($B83,'Disaggregation1B_Import-Export'!$C$8:$C$239,0))),\"\")","v":""},{"$f":"IFERROR(IF(INDEX('Disaggregation1B_Import-Export'!H$8:H$239,MATCH($B83,'Disaggregation1B_Import-Export'!$C$8:$C$239,0))=\"\",\"\",INDEX('Disaggregation1B_Import-Export'!H$8:H$239,MATCH($B83,'Disaggregation1B_Import-Export'!$C$8:$C$239,0))),\"\")","v":""},{"$f":"IFERROR(IF(INDEX('Disaggregation1B_Import-Export'!I$8:I$239,MATCH($B83,'Disaggregation1B_Import-Export'!$C$8:$C$239,0))=\"\",\"\",INDEX('Disaggregation1B_Import-Export'!I$8:I$239,MATCH($B83,'Disaggregation1B_Import-Export'!$C$8:$C$239,0))),\"\")","v":""},{"$f":"IFERROR(IF(INDEX('Disaggregation1B_Import-Export'!J$8:J$239,MATCH($B83,'Disaggregation1B_Import-Export'!$C$8:$C$239,0))=\"\",\"\",INDEX('Disaggregation1B_Import-Export'!J$8:J$239,MATCH($B83,'Disaggregation1B_Import-Export'!$C$8:$C$239,0))),\"\")","v":""},{"$f":"IFERROR(IF(INDEX('Disaggregation1B_Import-Export'!K$8:K$239,MATCH($B83,'Disaggregation1B_Import-Export'!$C$8:$C$239,0))=\"\",\"\",INDEX('Disaggregation1B_Import-Export'!K$8:K$239,MATCH($B83,'Disaggregation1B_Import-Export'!$C$8:$C$239,0))),\"\")","v":""},{"$f":"IFERROR(IF(INDEX('Disaggregation1B_Import-Export'!L$8:L$239,MATCH($B83,'Disaggregation1B_Import-Export'!$C$8:$C$239,0))=\"\",\"\",INDEX('Disaggregation1B_Import-Export'!L$8:L$239,MATCH($B83,'Disaggregation1B_Import-Export'!$C$8:$C$239,0))),\"\")","v":""},{"$f":"IFERROR(IF(INDEX('Disaggregation1B_Import-Export'!AQ$8:AQ$239,MATCH($B83,'Disaggregation1B_Import-Export'!$C$8:$C$239,0))=\"\",\"\",INDEX('Disaggregation1B_Import-Export'!AQ$8:AQ$239,MATCH($B83,'Disaggregation1B_Import-Export'!$C$8:$C$239,0))),\"\")","v":""},null,null,"",null,null,null,null,null,"",null,null,null,null,null,""]
[74,"Coverage74",{"$f":"IFERROR(INDEX('Disaggregation1B_Import-Export'!D$8:D$239,MATCH($B84,'Disaggregation1B_Import-Export'!$C$8:$C$239,0)),\"\")","v":""},{"$f":"IFERROR(INDEX('Disaggregation1B_Import-Export'!AF$8:AF$256,MATCH($B84,'Disaggregation1B_Import-Export'!$C$8:$C$256,0)),\"\")","v":""},{"$f":"IFERROR(IF(INDEX('Disaggregation1B_Import-Export'!AG$8:AG$239,MATCH($B84,'Disaggregation1B_Import-Export'!$C$8:$C$239,0))=\"\",\"\",INDEX('Disaggregation1B_Import-Export'!AG$8:AG$239,MATCH($B84,'Disaggregation1B_Import-Export'!$C$8:$C$239,0))),\"\")","v":""},{"$f":"IFERROR(IF(INDEX('Disaggregation1B_Import-Export'!AH$8:AH$239,MATCH($B84,'Disaggregation1B_Import-Export'!$C$8:$C$239,0))=\"\",\"\",INDEX('Disaggregation1B_Import-Export'!AH$8:AH$239,MATCH($B84,'Disaggregation1B_Import-Export'!$C$8:$C$239,0))),\"\")","v":""},{"$f":"IFERROR(IF(INDEX('Disaggregation1B_Import-Export'!H$8:H$239,MATCH($B84,'Disaggregation1B_Import-Export'!$C$8:$C$239,0))=\"\",\"\",INDEX('Disaggregation1B_Import-Export'!H$8:H$239,MATCH($B84,'Disaggregation1B_Import-Export'!$C$8:$C$239,0))),\"\")","v":""},{"$f":"IFERROR(IF(INDEX('Disaggregation1B_Import-Export'!I$8:I$239,MATCH($B84,'Disaggregation1B_Import-Export'!$C$8:$C$239,0))=\"\",\"\",INDEX('Disaggregation1B_Import-Export'!I$8:I$239,MATCH($B84,'Disaggregation1B_Import-Export'!$C$8:$C$239,0))),\"\")","v":""},{"$f":"IFERROR(IF(INDEX('Disaggregation1B_Import-Export'!J$8:J$239,MATCH($B84,'Disaggregation1B_Import-Export'!$C$8:$C$239,0))=\"\",\"\",INDEX('Disaggregation1B_Import-Export'!J$8:J$239,MATCH($B84,'Disaggregation1B_Import-Export'!$C$8:$C$239,0))),\"\")","v":""},{"$f":"IFERROR(IF(INDEX('Disaggregation1B_Import-Export'!K$8:K$239,MATCH($B84,'Disaggregation1B_Import-Export'!$C$8:$C$239,0))=\"\",\"\",INDEX('Disaggregation1B_Import-Export'!K$8:K$239,MATCH($B84,'Disaggregation1B_Import-Export'!$C$8:$C$239,0))),\"\")","v":""},{"$f":"IFERROR(IF(INDEX('Disaggregation1B_Import-Export'!L$8:L$239,MATCH($B84,'Disaggregation1B_Import-Export'!$C$8:$C$239,0))=\"\",\"\",INDEX('Disaggregation1B_Import-Export'!L$8:L$239,MATCH($B84,'Disaggregation1B_Import-Export'!$C$8:$C$239,0))),\"\")","v":""},{"$f":"IFERROR(IF(INDEX('Disaggregation1B_Import-Export'!AQ$8:AQ$239,MATCH($B84,'Disaggregation1B_Import-Export'!$C$8:$C$239,0))=\"\",\"\",INDEX('Disaggregation1B_Import-Export'!AQ$8:AQ$239,MATCH($B84,'Disaggregation1B_Import-Export'!$C$8:$C$239,0))),\"\")","v":""},null,null,"",null,null,null,null,null,"",null,null,null,null,null,""]
[75,"Coverage75",{"$f":"IFERROR(INDEX('Disaggregation1B_Import-Export'!D$8:D$239,MATCH($B85,'Disaggregation1B_Import-Export'!$C$8:$C$239,0)),\"\")","v":""},{"$f":"IFERROR(INDEX('Disaggregation1B_Import-Export'!AF$8:AF$256,MATCH($B85,'Disaggregation1B_Import-Export'!$C$8:$C$256,0)),\"\")","v":""},{"$f":"IFERROR(IF(INDEX('Disaggregation1B_Import-Export'!AG$8:AG$239,MATCH($B85,'Disaggregation1B_Import-Export'!$C$8:$C$239,0))=\"\",\"\",INDEX('Disaggregation1B_Import-Export'!AG$8:AG$239,MATCH($B85,'Disaggregation1B_Import-Export'!$C$8:$C$239,0))),\"\")","v":""},{"$f":"IFERROR(IF(INDEX('Disaggregation1B_Import-Export'!AH$8:AH$239,MATCH($B85,'Disaggregation1B_Import-Export'!$C$8:$C$239,0))=\"\",\"\",INDEX('Disaggregation1B_Import-Export'!AH$8:AH$239,MATCH($B85,'Disaggregation1B_Import-Export'!$C$8:$C$239,0))),\"\")","v":""},{"$f":"IFERROR(IF(INDEX('Disaggregation1B_Import-Export'!H$8:H$239,MATCH($B85,'Disaggregation1B_Import-Export'!$C$8:$C$239,0))=\"\",\"\",INDEX('Disaggregation1B_Import-Export'!H$8:H$239,MATCH($B85,'Disaggregation1B_Import-Export'!$C$8:$C$239,0))),\"\")","v":""},{"$f":"IFERROR(IF(INDEX('Disaggregation1B_Import-Export'!I$8:I$239,MATCH($B85,'Disaggregation1B_Import-Export'!$C$8:$C$239,0))=\"\",\"\",INDEX('Disaggregation1B_Import-Export'!I$8:I$239,MATCH($B85,'Disaggregation1B_Import-Export'!$C$8:$C$239,0))),\"\")","v":""},{"$f":"IFERROR(IF(INDEX('Disaggregation1B_Import-Export'!J$8:J$239,MATCH($B85,'Disaggregation1B_Import-Export'!$C$8:$C$239,0))=\"\",\"\",INDEX('Disaggregation1B_Import-Export'!J$8:J$239,MATCH($B85,'Disaggregation1B_Import-Export'!$C$8:$C$239,0))),\"\")","v":""},{"$f":"IFERROR(IF(INDEX('Disaggregation1B_Import-Export'!K$8:K$239,MATCH($B85,'Disaggregation1B_Import-Export'!$C$8:$C$239,0))=\"\",\"\",INDEX('Disaggregation1B_Import-Export'!K$8:K$239,MATCH($B85,'Disaggregation1B_Import-Export'!$C$8:$C$239,0))),\"\")","v":""},{"$f":"IFERROR(IF(INDEX('Disaggregation1B_Import-Export'!L$8:L$239,MATCH($B85,'Disaggregation1B_Import-Export'!$C$8:$C$239,0))=\"\",\"\",INDEX('Disaggregation1B_Import-Export'!L$8:L$239,MATCH($B85,'Disaggregation1B_Import-Export'!$C$8:$C$239,0))),\"\")","v":""},{"$f":"IFERROR(IF(INDEX('Disaggregation1B_Import-Export'!AQ$8:AQ$239,MATCH($B85,'Disaggregation1B_Import-Export'!$C$8:$C$239,0))=\"\",\"\",INDEX('Disaggregation1B_Import-Export'!AQ$8:AQ$239,MATCH($B85,'Disaggregation1B_Import-Export'!$C$8:$C$239,0))),\"\")","v":""},null,null,"",null,null,null,null,null,"",null,null,null,null,null,""]
[76,"Coverage76",{"$f":"IFERROR(INDEX('Disaggregation1B_Import-Export'!D$8:D$239,MATCH($B86,'Disaggregation1B_Import-Export'!$C$8:$C$239,0)),\"\")","v":""},{"$f":"IFERROR(INDEX('Disaggregation1B_Import-Export'!AF$8:AF$256,MATCH($B86,'Disaggregation1B_Import-Export'!$C$8:$C$256,0)),\"\")","v":""},{"$f":"IFERROR(IF(INDEX('Disaggregation1B_Import-Export'!AG$8:AG$239,MATCH($B86,'Disaggregation1B_Import-Export'!$C$8:$C$239,0))=\"\",\"\",INDEX('Disaggregation1B_Import-Export'!AG$8:AG$239,MATCH($B86,'Disaggregation1B_Import-Export'!$C$8:$C$239,0))),\"\")","v":""},{"$f":"IFERROR(IF(INDEX('Disaggregation1B_Import-Export'!AH$8:AH$239,MATCH($B86,'Disaggregation1B_Import-Export'!$C$8:$C$239,0))=\"\",\"\",INDEX('Disaggregation1B_Import-Export'!AH$8:AH$239,MATCH($B86,'Disaggregation1B_Import-Export'!$C$8:$C$239,0))),\"\")","v":""},{"$f":"IFERROR(IF(INDEX('Disaggregation1B_Import-Export'!H$8:H$239,MATCH($B86,'Disaggregation1B_Import-Export'!$C$8:$C$239,0))=\"\",\"\",INDEX('Disaggregation1B_Import-Export'!H$8:H$239,MATCH($B86,'Disaggregation1B_Import-Export'!$C$8:$C$239,0))),\"\")","v":""},{"$f":"IFERROR(IF(INDEX('Disaggregation1B_Import-Export'!I$8:I$239,MATCH($B86,'Disaggregation1B_Import-Export'!$C$8:$C$239,0))=\"\",\"\",INDEX('Disaggregation1B_Import-Export'!I$8:I$239,MATCH($B86,'Disaggregation1B_Import-Export'!$C$8:$C$239,0))),\"\")","v":""},{"$f":"IFERROR(IF(INDEX('Disaggregation1B_Import-Export'!J$8:J$239,MATCH($B86,'Disaggregation1B_Import-Export'!$C$8:$C$239,0))=\"\",\"\",INDEX('Disaggregation1B_Import-Export'!J$8:J$239,MATCH($B86,'Disaggregation1B_Import-Export'!$C$8:$C$239,0))),\"\")","v":""},{"$f":"IFERROR(IF(INDEX('Disaggregation1B_Import-Export'!K$8:K$239,MATCH($B86,'Disaggregation1B_Import-Export'!$C$8:$C$239,0))=\"\",\"\",INDEX('Disaggregation1B_Import-Export'!K$8:K$239,MATCH($B86,'Disaggregation1B_Import-Export'!$C$8:$C$239,0))),\"\")","v":""},{"$f":"IFERROR(IF(INDEX('Disaggregation1B_Import-Export'!L$8:L$239,MATCH($B86,'Disaggregation1B_Import-Export'!$C$8:$C$239,0))=\"\",\"\",INDEX('Disaggregation1B_Import-Export'!L$8:L$239,MATCH($B86,'Disaggregation1B_Import-Export'!$C$8:$C$239,0))),\"\")","v":""},{"$f":"IFERROR(IF(INDEX('Disaggregation1B_Import-Export'!AQ$8:AQ$239,MATCH($B86,'Disaggregation1B_Import-Export'!$C$8:$C$239,0))=\"\",\"\",INDEX('Disaggregation1B_Import-Export'!AQ$8:AQ$239,MATCH($B86,'Disaggregation1B_Import-Export'!$C$8:$C$239,0))),\"\")","v":""},null,null,"",null,null,null,null,null,"",null,null,null,null,null,""]
[77,"Coverage77",{"$f":"IFERROR(INDEX('Disaggregation1B_Import-Export'!D$8:D$239,MATCH($B87,'Disaggregation1B_Import-Export'!$C$8:$C$239,0)),\"\")","v":""},{"$f":"IFERROR(INDEX('Disaggregation1B_Import-Export'!AF$8:AF$256,MATCH($B87,'Disaggregation1B_Import-Export'!$C$8:$C$256,0)),\"\")","v":""},{"$f":"IFERROR(IF(INDEX('Disaggregation1B_Import-Export'!AG$8:AG$239,MATCH($B87,'Disaggregation1B_Import-Export'!$C$8:$C$239,0))=\"\",\"\",INDEX('Disaggregation1B_Import-Export'!AG$8:AG$239,MATCH($B87,'Disaggregation1B_Import-Export'!$C$8:$C$239,0))),\"\")","v":""},{"$f":"IFERROR(IF(INDEX('Disaggregation1B_Import-Export'!AH$8:AH$239,MATCH($B87,'Disaggregation1B_Import-Export'!$C$8:$C$239,0))=\"\",\"\",INDEX('Disaggregation1B_Import-Export'!AH$8:AH$239,MATCH($B87,'Disaggregation1B_Import-Export'!$C$8:$C$239,0))),\"\")","v":""},{"$f":"IFERROR(IF(INDEX('Disaggregation1B_Import-Export'!H$8:H$239,MATCH($B87,'Disaggregation1B_Import-Export'!$C$8:$C$239,0))=\"\",\"\",INDEX('Disaggregation1B_Import-Export'!H$8:H$239,MATCH($B87,'Disaggregation1B_Import-Export'!$C$8:$C$239,0))),\"\")","v":""},{"$f":"IFERROR(IF(INDEX('Disaggregation1B_Import-Export'!I$8:I$239,MATCH($B87,'Disaggregation1B_Import-Export'!$C$8:$C$239,0))=\"\",\"\",INDEX('Disaggregation1B_Import-Export'!I$8:I$239,MATCH($B87,'Disaggregation1B_Import-Export'!$C$8:$C$239,0))),\"\")","v":""},{"$f":"IFERROR(IF(INDEX('Disaggregation1B_Import-Export'!J$8:J$239,MATCH($B87,'Disaggregation1B_Import-Export'!$C$8:$C$239,0))=\"\",\"\",INDEX('Disaggregation1B_Import-Export'!J$8:J$239,MATCH($B87,'Disaggregation1B_Import-Export'!$C$8:$C$239,0))),\"\")","v":""},{"$f":"IFERROR(IF(INDEX('Disaggregation1B_Import-Export'!K$8:K$239,MATCH($B87,'Disaggregation1B_Import-Export'!$C$8:$C$239,0))=\"\",\"\",INDEX('Disaggregation1B_Import-Export'!K$8:K$239,MATCH($B87,'Disaggregation1B_Import-Export'!$C$8:$C$239,0))),\"\")","v":""},{"$f":"IFERROR(IF(INDEX('Disaggregation1B_Import-Export'!L$8:L$239,MATCH($B87,'Disaggregation1B_Import-Export'!$C$8:$C$239,0))=\"\",\"\",INDEX('Disaggregation1B_Import-Export'!L$8:L$239,MATCH($B87,'Disaggregation1B_Import-Export'!$C$8:$C$239,0))),\"\")","v":""},{"$f":"IFERROR(IF(INDEX('Disaggregation1B_Import-Export'!AQ$8:AQ$239,MATCH($B87,'Disaggregation1B_Import-Export'!$C$8:$C$239,0))=\"\",\"\",INDEX('Disaggregation1B_Import-Export'!AQ$8:AQ$239,MATCH($B87,'Disaggregation1B_Import-Export'!$C$8:$C$239,0))),\"\")","v":""},null,null,"",null,null,null,null,null,"",null,null,null,null,null,""]
[78,"Coverage78",{"$f":"IFERROR(INDEX('Disaggregation1B_Import-Export'!D$8:D$239,MATCH($B88,'Disaggregation1B_Import-Export'!$C$8:$C$239,0)),\"\")","v":""},{"$f":"IFERROR(INDEX('Disaggregation1B_Import-Export'!AF$8:AF$256,MATCH($B88,'Disaggregation1B_Import-Export'!$C$8:$C$256,0)),\"\")","v":""},{"$f":"IFERROR(IF(INDEX('Disaggregation1B_Import-Export'!AG$8:AG$239,MATCH($B88,'Disaggregation1B_Import-Export'!$C$8:$C$239,0))=\"\",\"\",INDEX('Disaggregation1B_Import-Export'!AG$8:AG$239,MATCH($B88,'Disaggregation1B_Import-Export'!$C$8:$C$239,0))),\"\")","v":""},{"$f":"IFERROR(IF(INDEX('Disaggregation1B_Import-Export'!AH$8:AH$239,MATCH($B88,'Disaggregation1B_Import-Export'!$C$8:$C$239,0))=\"\",\"\",INDEX('Disaggregation1B_Import-Export'!AH$8:AH$239,MATCH($B88,'Disaggregation1B_Import-Export'!$C$8:$C$239,0))),\"\")","v":""},{"$f":"IFERROR(IF(INDEX('Disaggregation1B_Import-Export'!H$8:H$239,MATCH($B88,'Disaggregation1B_Import-Export'!$C$8:$C$239,0))=\"\",\"\",INDEX('Disaggregation1B_Import-Export'!H$8:H$239,MATCH($B88,'Disaggregation1B_Import-Export'!$C$8:$C$239,0))),\"\")","v":""},{"$f":"IFERROR(IF(INDEX('Disaggregation1B_Import-Export'!I$8:I$239,MATCH($B88,'Disaggregation1B_Import-Export'!$C$8:$C$239,0))=\"\",\"\",INDEX('Disaggregation1B_Import-Export'!I$8:I$239,MATCH($B88,'Disaggregation1B_Import-Export'!$C$8:$C$239,0))),\"\")","v":""},{"$f":"IFERROR(IF(INDEX('Disaggregation1B_Import-Export'!J$8:J$239,MATCH($B88,'Disaggregation1B_Import-Export'!$C$8:$C$239,0))=\"\",\"\",INDEX('Disaggregation1B_Import-Export'!J$8:J$239,MATCH($B88,'Disaggregation1B_Import-Export'!$C$8:$C$239,0))),\"\")","v":""},{"$f":"IFERROR(IF(INDEX('Disaggregation1B_Import-Export'!K$8:K$239,MATCH($B88,'Disaggregation1B_Import-Export'!$C$8:$C$239,0))=\"\",\"\",INDEX('Disaggregation1B_Import-Export'!K$8:K$239,MATCH($B88,'Disaggregation1B_Import-Export'!$C$8:$C$239,0))),\"\")","v":""},{"$f":"IFERROR(IF(INDEX('Disaggregation1B_Import-Export'!L$8:L$239,MATCH($B88,'Disaggregation1B_Import-Export'!$C$8:$C$239,0))=\"\",\"\",INDEX('Disaggregation1B_Import-Export'!L$8:L$239,MATCH($B88,'Disaggregation1B_Import-Export'!$C$8:$C$239,0))),\"\")","v":""},{"$f":"IFERROR(IF(INDEX('Disaggregation1B_Import-Export'!AQ$8:AQ$239,MATCH($B88,'Disaggregation1B_Import-Export'!$C$8:$C$239,0))=\"\",\"\",INDEX('Disaggregation1B_Import-Export'!AQ$8:AQ$239,MATCH($B88,'Disaggregation1B_Import-Export'!$C$8:$C$239,0))),\"\")","v":""},null,null,"",null,null,null,null,null,"",null,null,null,null,null,""]
[79,"Coverage79",{"$f":"IFERROR(INDEX('Disaggregation1B_Import-Export'!D$8:D$239,MATCH($B89,'Disaggregation1B_Import-Export'!$C$8:$C$239,0)),\"\")","v":""},{"$f":"IFERROR(INDEX('Disaggregation1B_Import-Export'!AF$8:AF$256,MATCH($B89,'Disaggregation1B_Import-Export'!$C$8:$C$256,0)),\"\")","v":""},{"$f":"IFERROR(IF(INDEX('Disaggregation1B_Import-Export'!AG$8:AG$239,MATCH($B89,'Disaggregation1B_Import-Export'!$C$8:$C$239,0))=\"\",\"\",INDEX('Disaggregation1B_Import-Export'!AG$8:AG$239,MATCH($B89,'Disaggregation1B_Import-Export'!$C$8:$C$239,0))),\"\")","v":""},{"$f":"IFERROR(IF(INDEX('Disaggregation1B_Import-Export'!AH$8:AH$239,MATCH($B89,'Disaggregation1B_Import-Export'!$C$8:$C$239,0))=\"\",\"\",INDEX('Disaggregation1B_Import-Export'!AH$8:AH$239,MATCH($B89,'Disaggregation1B_Import-Export'!$C$8:$C$239,0))),\"\")","v":""},{"$f":"IFERROR(IF(INDEX('Disaggregation1B_Import-Export'!H$8:H$239,MATCH($B89,'Disaggregation1B_Import-Export'!$C$8:$C$239,0))=\"\",\"\",INDEX('Disaggregation1B_Import-Export'!H$8:H$239,MATCH($B89,'Disaggregation1B_Import-Export'!$C$8:$C$239,0))),\"\")","v":""},{"$f":"IFERROR(IF(INDEX('Disaggregation1B_Import-Export'!I$8:I$239,MATCH($B89,'Disaggregation1B_Import-Export'!$C$8:$C$239,0))=\"\",\"\",INDEX('Disaggregation1B_Import-Export'!I$8:I$239,MATCH($B89,'Disaggregation1B_Import-Export'!$C$8:$C$239,0))),\"\")","v":""},{"$f":"IFERROR(IF(INDEX('Disaggregation1B_Import-Export'!J$8:J$239,MATCH($B89,'Disaggregation1B_Import-Export'!$C$8:$C$239,0))=\"\",\"\",INDEX('Disaggregation1B_Import-Export'!J$8:J$239,MATCH($B89,'Disaggregation1B_Import-Export'!$C$8:$C$239,0))),\"\")","v":""},{"$f":"IFERROR(IF(INDEX('Disaggregation1B_Import-Export'!K$8:K$239,MATCH($B89,'Disaggregation1B_Import-Export'!$C$8:$C$239,0))=\"\",\"\",INDEX('Disaggregation1B_Import-Export'!K$8:K$239,MATCH($B89,'Disaggregation1B_Import-Export'!$C$8:$C$239,0))),\"\")","v":""},{"$f":"IFERROR(IF(INDEX('Disaggregation1B_Import-Export'!L$8:L$239,MATCH($B89,'Disaggregation1B_Import-Export'!$C$8:$C$239,0))=\"\",\"\",INDEX('Disaggregation1B_Import-Export'!L$8:L$239,MATCH($B89,'Disaggregation1B_Import-Export'!$C$8:$C$239,0))),\"\")","v":""},{"$f":"IFERROR(IF(INDEX('Disaggregation1B_Import-Export'!AQ$8:AQ$239,MATCH($B89,'Disaggregation1B_Import-Export'!$C$8:$C$239,0))=\"\",\"\",INDEX('Disaggregation1B_Import-Export'!AQ$8:AQ$239,MATCH($B89,'Disaggregation1B_Import-Export'!$C$8:$C$239,0))),\"\")","v":""},null,null,"",null,null,null,null,null,"",null,null,null,null,null,""]
[80,"Coverage80",{"$f":"IFERROR(INDEX('Disaggregation1B_Import-Export'!D$8:D$239,MATCH($B90,'Disaggregation1B_Import-Export'!$C$8:$C$239,0)),\"\")","v":""},{"$f":"IFERROR(INDEX('Disaggregation1B_Import-Export'!AF$8:AF$256,MATCH($B90,'Disaggregation1B_Import-Export'!$C$8:$C$256,0)),\"\")","v":""},{"$f":"IFERROR(IF(INDEX('Disaggregation1B_Import-Export'!AG$8:AG$239,MATCH($B90,'Disaggregation1B_Import-Export'!$C$8:$C$239,0))=\"\",\"\",INDEX('Disaggregation1B_Import-Export'!AG$8:AG$239,MATCH($B90,'Disaggregation1B_Import-Export'!$C$8:$C$239,0))),\"\")","v":""},{"$f":"IFERROR(IF(INDEX('Disaggregation1B_Import-Export'!AH$8:AH$239,MATCH($B90,'Disaggregation1B_Import-Export'!$C$8:$C$239,0))=\"\",\"\",INDEX('Disaggregation1B_Import-Export'!AH$8:AH$239,MATCH($B90,'Disaggregation1B_Import-Export'!$C$8:$C$239,0))),\"\")","v":""},{"$f":"IFERROR(IF(INDEX('Disaggregation1B_Import-Export'!H$8:H$239,MATCH($B90,'Disaggregation1B_Import-Export'!$C$8:$C$239,0))=\"\",\"\",INDEX('Disaggregation1B_Import-Export'!H$8:H$239,MATCH($B90,'Disaggregation1B_Import-Export'!$C$8:$C$239,0))),\"\")","v":""},{"$f":"IFERROR(IF(INDEX('Disaggregation1B_Import-Export'!I$8:I$239,MATCH($B90,'Disaggregation1B_Import-Export'!$C$8:$C$239,0))=\"\",\"\",INDEX('Disaggregation1B_Import-Export'!I$8:I$239,MATCH($B90,'Disaggregation1B_Import-Export'!$C$8:$C$239,0))),\"\")","v":""},{"$f":"IFERROR(IF(INDEX('Disaggregation1B_Import-Export'!J$8:J$239,MATCH($B90,'Disaggregation1B_Import-Export'!$C$8:$C$239,0))=\"\",\"\",INDEX('Disaggregation1B_Import-Export'!J$8:J$239,MATCH($B90,'Disaggregation1B_Import-Export'!$C$8:$C$239,0))),\"\")","v":""},{"$f":"IFERROR(IF(INDEX('Disaggregation1B_Import-Export'!K$8:K$239,MATCH($B90,'Disaggregation1B_Import-Export'!$C$8:$C$239,0))=\"\",\"\",INDEX('Disaggregation1B_Import-Export'!K$8:K$239,MATCH($B90,'Disaggregation1B_Import-Export'!$C$8:$C$239,0))),\"\")","v":""},{"$f":"IFERROR(IF(INDEX('Disaggregation1B_Import-Export'!L$8:L$239,MATCH($B90,'Disaggregation1B_Import-Export'!$C$8:$C$239,0))=\"\",\"\",INDEX('Disaggregation1B_Import-Export'!L$8:L$239,MATCH($B90,'Disaggregation1B_Import-Export'!$C$8:$C$239,0))),\"\")","v":""},{"$f":"IFERROR(IF(INDEX('Disaggregation1B_Import-Export'!AQ$8:AQ$239,MATCH($B90,'Disaggregation1B_Import-Export'!$C$8:$C$239,0))=\"\",\"\",INDEX('Disaggregation1B_Import-Export'!AQ$8:AQ$239,MATCH($B90,'Disaggregation1B_Import-Export'!$C$8:$C$239,0))),\"\")","v":""},null,null,"",null,null,null,null,null,"",null,null,null,null,null,""]
[81,"Coverage81",{"$f":"IFERROR(INDEX('Disaggregation1B_Import-Export'!D$8:D$239,MATCH($B91,'Disaggregation1B_Import-Export'!$C$8:$C$239,0)),\"\")","v":""},{"$f":"IFERROR(INDEX('Disaggregation1B_Import-Export'!AF$8:AF$256,MATCH($B91,'Disaggregation1B_Import-Export'!$C$8:$C$256,0)),\"\")","v":""},{"$f":"IFERROR(IF(INDEX('Disaggregation1B_Import-Export'!AG$8:AG$239,MATCH($B91,'Disaggregation1B_Import-Export'!$C$8:$C$239,0))=\"\",\"\",INDEX('Disaggregation1B_Import-Export'!AG$8:AG$239,MATCH($B91,'Disaggregation1B_Import-Export'!$C$8:$C$239,0))),\"\")","v":""},{"$f":"IFERROR(IF(INDEX('Disaggregation1B_Import-Export'!AH$8:AH$239,MATCH($B91,'Disaggregation1B_Import-Export'!$C$8:$C$239,0))=\"\",\"\",INDEX('Disaggregation1B_Import-Export'!AH$8:AH$239,MATCH($B91,'Disaggregation1B_Import-Export'!$C$8:$C$239,0))),\"\")","v":""},{"$f":"IFERROR(IF(INDEX('Disaggregation1B_Import-Export'!H$8:H$239,MATCH($B91,'Disaggregation1B_Import-Export'!$C$8:$C$239,0))=\"\",\"\",INDEX('Disaggregation1B_Import-Export'!H$8:H$239,MATCH($B91,'Disaggregation1B_Import-Export'!$C$8:$C$239,0))),\"\")","v":""},{"$f":"IFERROR(IF(INDEX('Disaggregation1B_Import-Export'!I$8:I$239,MATCH($B91,'Disaggregation1B_Import-Export'!$C$8:$C$239,0))=\"\",\"\",INDEX('Disaggregation1B_Import-Export'!I$8:I$239,MATCH($B91,'Disaggregation1B_Import-Export'!$C$8:$C$239,0))),\"\")","v":""},{"$f":"IFERROR(IF(INDEX('Disaggregation1B_Import-Export'!J$8:J$239,MATCH($B91,'Disaggregation1B_Import-Export'!$C$8:$C$239,0))=\"\",\"\",INDEX('Disaggregation1B_Import-Export'!J$8:J$239,MATCH($B91,'Disaggregation1B_Import-Export'!$C$8:$C$239,0))),\"\")","v":""},{"$f":"IFERROR(IF(INDEX('Disaggregation1B_Import-Export'!K$8:K$239,MATCH($B91,'Disaggregation1B_Import-Export'!$C$8:$C$239,0))=\"\",\"\",INDEX('Disaggregation1B_Import-Export'!K$8:K$239,MATCH($B91,'Disaggregation1B_Import-Export'!$C$8:$C$239,0))),\"\")","v":""},{"$f":"IFERROR(IF(INDEX('Disaggregation1B_Import-Export'!L$8:L$239,MATCH($B91,'Disaggregation1B_Import-Export'!$C$8:$C$239,0))=\"\",\"\",INDEX('Disaggregation1B_Import-Export'!L$8:L$239,MATCH($B91,'Disaggregation1B_Import-Export'!$C$8:$C$239,0))),\"\")","v":""},{"$f":"IFERROR(IF(INDEX('Disaggregation1B_Import-Export'!AQ$8:AQ$239,MATCH($B91,'Disaggregation1B_Import-Export'!$C$8:$C$239,0))=\"\",\"\",INDEX('Disaggregation1B_Import-Export'!AQ$8:AQ$239,MATCH($B91,'Disaggregation1B_Import-Export'!$C$8:$C$239,0))),\"\")","v":""},null,null,"",null,null,null,null,null,"",null,null,null,null,null,""]
[82,"Coverage82",{"$f":"IFERROR(INDEX('Disaggregation1B_Import-Export'!D$8:D$239,MATCH($B92,'Disaggregation1B_Import-Export'!$C$8:$C$239,0)),\"\")","v":""},{"$f":"IFERROR(INDEX('Disaggregation1B_Import-Export'!AF$8:AF$256,MATCH($B92,'Disaggregation1B_Import-Export'!$C$8:$C$256,0)),\"\")","v":""},{"$f":"IFERROR(IF(INDEX('Disaggregation1B_Import-Export'!AG$8:AG$239,MATCH($B92,'Disaggregation1B_Import-Export'!$C$8:$C$239,0))=\"\",\"\",INDEX('Disaggregation1B_Import-Export'!AG$8:AG$239,MATCH($B92,'Disaggregation1B_Import-Export'!$C$8:$C$239,0))),\"\")","v":""},{"$f":"IFERROR(IF(INDEX('Disaggregation1B_Import-Export'!AH$8:AH$239,MATCH($B92,'Disaggregation1B_Import-Export'!$C$8:$C$239,0))=\"\",\"\",INDEX('Disaggregation1B_Import-Export'!AH$8:AH$239,MATCH($B92,'Disaggregation1B_Import-Export'!$C$8:$C$239,0))),\"\")","v":""},{"$f":"IFERROR(IF(INDEX('Disaggregation1B_Import-Export'!H$8:H$239,MATCH($B92,'Disaggregation1B_Import-Export'!$C$8:$C$239,0))=\"\",\"\",INDEX('Disaggregation1B_Import-Export'!H$8:H$239,MATCH($B92,'Disaggregation1B_Import-Export'!$C$8:$C$239,0))),\"\")","v":""},{"$f":"IFERROR(IF(INDEX('Disaggregation1B_Import-Export'!I$8:I$239,MATCH($B92,'Disaggregation1B_Import-Export'!$C$8:$C$239,0))=\"\",\"\",INDEX('Disaggregation1B_Import-Export'!I$8:I$239,MATCH($B92,'Disaggregation1B_Import-Export'!$C$8:$C$239,0))),\"\")","v":""},{"$f":"IFERROR(IF(INDEX('Disaggregation1B_Import-Export'!J$8:J$239,MATCH($B92,'Disaggregation1B_Import-Export'!$C$8:$C$239,0))=\"\",\"\",INDEX('Disaggregation1B_Import-Export'!J$8:J$239,MATCH($B92,'Disaggregation1B_Import-Export'!$C$8:$C$239,0))),\"\")","v":""},{"$f":"IFERROR(IF(INDEX('Disaggregation1B_Import-Export'!K$8:K$239,MATCH($B92,'Disaggregation1B_Import-Export'!$C$8:$C$239,0))=\"\",\"\",INDEX('Disaggregation1B_Import-Export'!K$8:K$239,MATCH($B92,'Disaggregation1B_Import-Export'!$C$8:$C$239,0))),\"\")","v":""},{"$f":"IFERROR(IF(INDEX('Disaggregation1B_Import-Export'!L$8:L$239,MATCH($B92,'Disaggregation1B_Import-Export'!$C$8:$C$239,0))=\"\",\"\",INDEX('Disaggregation1B_Import-Export'!L$8:L$239,MATCH($B92,'Disaggregation1B_Import-Export'!$C$8:$C$239,0))),\"\")","v":""},{"$f":"IFERROR(IF(INDEX('Disaggregation1B_Import-Export'!AQ$8:AQ$239,MATCH($B92,'Disaggregation1B_Import-Export'!$C$8:$C$239,0))=\"\",\"\",INDEX('Disaggregation1B_Import-Export'!AQ$8:AQ$239,MATCH($B92,'Disaggregation1B_Import-Export'!$C$8:$C$239,0))),\"\")","v":""},null,null,"",null,null,null,null,null,"",null,null,null,null,null,""]
[83,"Coverage83",{"$f":"IFERROR(INDEX('Disaggregation1B_Import-Export'!D$8:D$239,MATCH($B93,'Disaggregation1B_Import-Export'!$C$8:$C$239,0)),\"\")","v":""},{"$f":"IFERROR(INDEX('Disaggregation1B_Import-Export'!AF$8:AF$256,MATCH($B93,'Disaggregation1B_Import-Export'!$C$8:$C$256,0)),\"\")","v":""},{"$f":"IFERROR(IF(INDEX('Disaggregation1B_Import-Export'!AG$8:AG$239,MATCH($B93,'Disaggregation1B_Import-Export'!$C$8:$C$239,0))=\"\",\"\",INDEX('Disaggregation1B_Import-Export'!AG$8:AG$239,MATCH($B93,'Disaggregation1B_Import-Export'!$C$8:$C$239,0))),\"\")","v":""},{"$f":"IFERROR(IF(INDEX('Disaggregation1B_Import-Export'!AH$8:AH$239,MATCH($B93,'Disaggregation1B_Import-Export'!$C$8:$C$239,0))=\"\",\"\",INDEX('Disaggregation1B_Import-Export'!AH$8:AH$239,MATCH($B93,'Disaggregation1B_Import-Export'!$C$8:$C$239,0))),\"\")","v":""},{"$f":"IFERROR(IF(INDEX('Disaggregation1B_Import-Export'!H$8:H$239,MATCH($B93,'Disaggregation1B_Import-Export'!$C$8:$C$239,0))=\"\",\"\",INDEX('Disaggregation1B_Import-Export'!H$8:H$239,MATCH($B93,'Disaggregation1B_Import-Export'!$C$8:$C$239,0))),\"\")","v":""},{"$f":"IFERROR(IF(INDEX('Disaggregation1B_Import-Export'!I$8:I$239,MATCH($B93,'Disaggregation1B_Import-Export'!$C$8:$C$239,0))=\"\",\"\",INDEX('Disaggregation1B_Import-Export'!I$8:I$239,MATCH($B93,'Disaggregation1B_Import-Export'!$C$8:$C$239,0))),\"\")","v":""},{"$f":"IFERROR(IF(INDEX('Disaggregation1B_Import-Export'!J$8:J$239,MATCH($B93,'Disaggregation1B_Import-Export'!$C$8:$C$239,0))=\"\",\"\",INDEX('Disaggregation1B_Import-Export'!J$8:J$239,MATCH($B93,'Disaggregation1B_Import-Export'!$C$8:$C$239,0))),\"\")","v":""},{"$f":"IFERROR(IF(INDEX('Disaggregation1B_Import-Export'!K$8:K$239,MATCH($B93,'Disaggregation1B_Import-Export'!$C$8:$C$239,0))=\"\",\"\",INDEX('Disaggregation1B_Import-Export'!K$8:K$239,MATCH($B93,'Disaggregation1B_Import-Export'!$C$8:$C$239,0))),\"\")","v":""},{"$f":"IFERROR(IF(INDEX('Disaggregation1B_Import-Export'!L$8:L$239,MATCH($B93,'Disaggregation1B_Import-Export'!$C$8:$C$239,0))=\"\",\"\",INDEX('Disaggregation1B_Import-Export'!L$8:L$239,MATCH($B93,'Disaggregation1B_Import-Export'!$C$8:$C$239,0))),\"\")","v":""},{"$f":"IFERROR(IF(INDEX('Disaggregation1B_Import-Export'!AQ$8:AQ$239,MATCH($B93,'Disaggregation1B_Import-Export'!$C$8:$C$239,0))=\"\",\"\",INDEX('Disaggregation1B_Import-Export'!AQ$8:AQ$239,MATCH($B93,'Disaggregation1B_Import-Export'!$C$8:$C$239,0))),\"\")","v":""},null,null,"",null,null,null,null,null,"",null,null,null,null,null,""]
[84,"Coverage84",{"$f":"IFERROR(INDEX('Disaggregation1B_Import-Export'!D$8:D$239,MATCH($B94,'Disaggregation1B_Import-Export'!$C$8:$C$239,0)),\"\")","v":""},{"$f":"IFERROR(INDEX('Disaggregation1B_Import-Export'!AF$8:AF$256,MATCH($B94,'Disaggregation1B_Import-Export'!$C$8:$C$256,0)),\"\")","v":""},{"$f":"IFERROR(IF(INDEX('Disaggregation1B_Import-Export'!AG$8:AG$239,MATCH($B94,'Disaggregation1B_Import-Export'!$C$8:$C$239,0))=\"\",\"\",INDEX('Disaggregation1B_Import-Export'!AG$8:AG$239,MATCH($B94,'Disaggregation1B_Import-Export'!$C$8:$C$239,0))),\"\")","v":""},{"$f":"IFERROR(IF(INDEX('Disaggregation1B_Import-Export'!AH$8:AH$239,MATCH($B94,'Disaggregation1B_Import-Export'!$C$8:$C$239,0))=\"\",\"\",INDEX('Disaggregation1B_Import-Export'!AH$8:AH$239,MATCH($B94,'Disaggregation1B_Import-Export'!$C$8:$C$239,0))),\"\")","v":""},{"$f":"IFERROR(IF(INDEX('Disaggregation1B_Import-Export'!H$8:H$239,MATCH($B94,'Disaggregation1B_Import-Export'!$C$8:$C$239,0))=\"\",\"\",INDEX('Disaggregation1B_Import-Export'!H$8:H$239,MATCH($B94,'Disaggregation1B_Import-Export'!$C$8:$C$239,0))),\"\")","v":""},{"$f":"IFERROR(IF(INDEX('Disaggregation1B_Import-Export'!I$8:I$239,MATCH($B94,'Disaggregation1B_Import-Export'!$C$8:$C$239,0))=\"\",\"\",INDEX('Disaggregation1B_Import-Export'!I$8:I$239,MATCH($B94,'Disaggregation1B_Import-Export'!$C$8:$C$239,0))),\"\")","v":""},{"$f":"IFERROR(IF(INDEX('Disaggregation1B_Import-Export'!J$8:J$239,MATCH($B94,'Disaggregation1B_Import-Export'!$C$8:$C$239,0))=\"\",\"\",INDEX('Disaggregation1B_Import-Export'!J$8:J$239,MATCH($B94,'Disaggregation1B_Import-Export'!$C$8:$C$239,0))),\"\")","v":""},{"$f":"IFERROR(IF(INDEX('Disaggregation1B_Import-Export'!K$8:K$239,MATCH($B94,'Disaggregation1B_Import-Export'!$C$8:$C$239,0))=\"\",\"\",INDEX('Disaggregation1B_Import-Export'!K$8:K$239,MATCH($B94,'Disaggregation1B_Import-Export'!$C$8:$C$239,0))),\"\")","v":""},{"$f":"IFERROR(IF(INDEX('Disaggregation1B_Import-Export'!L$8:L$239,MATCH($B94,'Disaggregation1B_Import-Export'!$C$8:$C$239,0))=\"\",\"\",INDEX('Disaggregation1B_Import-Export'!L$8:L$239,MATCH($B94,'Disaggregation1B_Import-Export'!$C$8:$C$239,0))),\"\")","v":""},{"$f":"IFERROR(IF(INDEX('Disaggregation1B_Import-Export'!AQ$8:AQ$239,MATCH($B94,'Disaggregation1B_Import-Export'!$C$8:$C$239,0))=\"\",\"\",INDEX('Disaggregation1B_Import-Export'!AQ$8:AQ$239,MATCH($B94,'Disaggregation1B_Import-Export'!$C$8:$C$239,0))),\"\")","v":""},null,null,"",null,null,null,null,null,"",null,null,null,null,null,""]
[85,"Coverage85",{"$f":"IFERROR(INDEX('Disaggregation1B_Import-Export'!D$8:D$239,MATCH($B95,'Disaggregation1B_Import-Export'!$C$8:$C$239,0)),\"\")","v":""},{"$f":"IFERROR(INDEX('Disaggregation1B_Import-Export'!AF$8:AF$256,MATCH($B95,'Disaggregation1B_Import-Export'!$C$8:$C$256,0)),\"\")","v":""},{"$f":"IFERROR(IF(INDEX('Disaggregation1B_Import-Export'!AG$8:AG$239,MATCH($B95,'Disaggregation1B_Import-Export'!$C$8:$C$239,0))=\"\",\"\",INDEX('Disaggregation1B_Import-Export'!AG$8:AG$239,MATCH($B95,'Disaggregation1B_Import-Export'!$C$8:$C$239,0))),\"\")","v":""},{"$f":"IFERROR(IF(INDEX('Disaggregation1B_Import-Export'!AH$8:AH$239,MATCH($B95,'Disaggregation1B_Import-Export'!$C$8:$C$239,0))=\"\",\"\",INDEX('Disaggregation1B_Import-Export'!AH$8:AH$239,MATCH($B95,'Disaggregation1B_Import-Export'!$C$8:$C$239,0))),\"\")","v":""},{"$f":"IFERROR(IF(INDEX('Disaggregation1B_Import-Export'!H$8:H$239,MATCH($B95,'Disaggregation1B_Import-Export'!$C$8:$C$239,0))=\"\",\"\",INDEX('Disaggregation1B_Import-Export'!H$8:H$239,MATCH($B95,'Disaggregation1B_Import-Export'!$C$8:$C$239,0))),\"\")","v":""},{"$f":"IFERROR(IF(INDEX('Disaggregation1B_Import-Export'!I$8:I$239,MATCH($B95,'Disaggregation1B_Import-Export'!$C$8:$C$239,0))=\"\",\"\",INDEX('Disaggregation1B_Import-Export'!I$8:I$239,MATCH($B95,'Disaggregation1B_Import-Export'!$C$8:$C$239,0))),\"\")","v":""},{"$f":"IFERROR(IF(INDEX('Disaggregation1B_Import-Export'!J$8:J$239,MATCH($B95,'Disaggregation1B_Import-Export'!$C$8:$C$239,0))=\"\",\"\",INDEX('Disaggregation1B_Import-Export'!J$8:J$239,MATCH($B95,'Disaggregation1B_Import-Export'!$C$8:$C$239,0))),\"\")","v":""},{"$f":"IFERROR(IF(INDEX('Disaggregation1B_Import-Export'!K$8:K$239,MATCH($B95,'Disaggregation1B_Import-Export'!$C$8:$C$239,0))=\"\",\"\",INDEX('Disaggregation1B_Import-Export'!K$8:K$239,MATCH($B95,'Disaggregation1B_Import-Export'!$C$8:$C$239,0))),\"\")","v":""},{"$f":"IFERROR(IF(INDEX('Disaggregation1B_Import-Export'!L$8:L$239,MATCH($B95,'Disaggregation1B_Import-Export'!$C$8:$C$239,0))=\"\",\"\",INDEX('Disaggregation1B_Import-Export'!L$8:L$239,MATCH($B95,'Disaggregation1B_Import-Export'!$C$8:$C$239,0))),\"\")","v":""},{"$f":"IFERROR(IF(INDEX('Disaggregation1B_Import-Export'!AQ$8:AQ$239,MATCH($B95,'Disaggregation1B_Import-Export'!$C$8:$C$239,0))=\"\",\"\",INDEX('Disaggregation1B_Import-Export'!AQ$8:AQ$239,MATCH($B95,'Disaggregation1B_Import-Export'!$C$8:$C$239,0))),\"\")","v":""},null,null,"",null,null,null,null,null,"",null,null,null,null,null,""]
[86,"Coverage86",{"$f":"IFERROR(INDEX('Disaggregation1B_Import-Export'!D$8:D$239,MATCH($B96,'Disaggregation1B_Import-Export'!$C$8:$C$239,0)),\"\")","v":""},{"$f":"IFERROR(INDEX('Disaggregation1B_Import-Export'!AF$8:AF$256,MATCH($B96,'Disaggregation1B_Import-Export'!$C$8:$C$256,0)),\"\")","v":""},{"$f":"IFERROR(IF(INDEX('Disaggregation1B_Import-Export'!AG$8:AG$239,MATCH($B96,'Disaggregation1B_Import-Export'!$C$8:$C$239,0))=\"\",\"\",INDEX('Disaggregation1B_Import-Export'!AG$8:AG$239,MATCH($B96,'Disaggregation1B_Import-Export'!$C$8:$C$239,0))),\"\")","v":""},{"$f":"IFERROR(IF(INDEX('Disaggregation1B_Import-Export'!AH$8:AH$239,MATCH($B96,'Disaggregation1B_Import-Export'!$C$8:$C$239,0))=\"\",\"\",INDEX('Disaggregation1B_Import-Export'!AH$8:AH$239,MATCH($B96,'Disaggregation1B_Import-Export'!$C$8:$C$239,0))),\"\")","v":""},{"$f":"IFERROR(IF(INDEX('Disaggregation1B_Import-Export'!H$8:H$239,MATCH($B96,'Disaggregation1B_Import-Export'!$C$8:$C$239,0))=\"\",\"\",INDEX('Disaggregation1B_Import-Export'!H$8:H$239,MATCH($B96,'Disaggregation1B_Import-Export'!$C$8:$C$239,0))),\"\")","v":""},{"$f":"IFERROR(IF(INDEX('Disaggregation1B_Import-Export'!I$8:I$239,MATCH($B96,'Disaggregation1B_Import-Export'!$C$8:$C$239,0))=\"\",\"\",INDEX('Disaggregation1B_Import-Export'!I$8:I$239,MATCH($B96,'Disaggregation1B_Import-Export'!$C$8:$C$239,0))),\"\")","v":""},{"$f":"IFERROR(IF(INDEX('Disaggregation1B_Import-Export'!J$8:J$239,MATCH($B96,'Disaggregation1B_Import-Export'!$C$8:$C$239,0))=\"\",\"\",INDEX('Disaggregation1B_Import-Export'!J$8:J$239,MATCH($B96,'Disaggregation1B_Import-Export'!$C$8:$C$239,0))),\"\")","v":""},{"$f":"IFERROR(IF(INDEX('Disaggregation1B_Import-Export'!K$8:K$239,MATCH($B96,'Disaggregation1B_Import-Export'!$C$8:$C$239,0))=\"\",\"\",INDEX('Disaggregation1B_Import-Export'!K$8:K$239,MATCH($B96,'Disaggregation1B_Import-Export'!$C$8:$C$239,0))),\"\")","v":""},{"$f":"IFERROR(IF(INDEX('Disaggregation1B_Import-Export'!L$8:L$239,MATCH($B96,'Disaggregation1B_Import-Export'!$C$8:$C$239,0))=\"\",\"\",INDEX('Disaggregation1B_Import-Export'!L$8:L$239,MATCH($B96,'Disaggregation1B_Import-Export'!$C$8:$C$239,0))),\"\")","v":""},{"$f":"IFERROR(IF(INDEX('Disaggregation1B_Import-Export'!AQ$8:AQ$239,MATCH($B96,'Disaggregation1B_Import-Export'!$C$8:$C$239,0))=\"\",\"\",INDEX('Disaggregation1B_Import-Export'!AQ$8:AQ$239,MATCH($B96,'Disaggregation1B_Import-Export'!$C$8:$C$239,0))),\"\")","v":""},null,null,"",null,null,null,null,null,"",null,null,null,null,null,""]
[87,"Coverage87",{"$f":"IFERROR(INDEX('Disaggregation1B_Import-Export'!D$8:D$239,MATCH($B97,'Disaggregation1B_Import-Export'!$C$8:$C$239,0)),\"\")","v":""},{"$f":"IFERROR(INDEX('Disaggregation1B_Import-Export'!AF$8:AF$256,MATCH($B97,'Disaggregation1B_Import-Export'!$C$8:$C$256,0)),\"\")","v":""},{"$f":"IFERROR(IF(INDEX('Disaggregation1B_Import-Export'!AG$8:AG$239,MATCH($B97,'Disaggregation1B_Import-Export'!$C$8:$C$239,0))=\"\",\"\",INDEX('Disaggregation1B_Import-Export'!AG$8:AG$239,MATCH($B97,'Disaggregation1B_Import-Export'!$C$8:$C$239,0))),\"\")","v":""},{"$f":"IFERROR(IF(INDEX('Disaggregation1B_Import-Export'!AH$8:AH$239,MATCH($B97,'Disaggregation1B_Import-Export'!$C$8:$C$239,0))=\"\",\"\",INDEX('Disaggregation1B_Import-Export'!AH$8:AH$239,MATCH($B97,'Disaggregation1B_Import-Export'!$C$8:$C$239,0))),\"\")","v":""},{"$f":"IFERROR(IF(INDEX('Disaggregation1B_Import-Export'!H$8:H$239,MATCH($B97,'Disaggregation1B_Import-Export'!$C$8:$C$239,0))=\"\",\"\",INDEX('Disaggregation1B_Import-Export'!H$8:H$239,MATCH($B97,'Disaggregation1B_Import-Export'!$C$8:$C$239,0))),\"\")","v":""},{"$f":"IFERROR(IF(INDEX('Disaggregation1B_Import-Export'!I$8:I$239,MATCH($B97,'Disaggregation1B_Import-Export'!$C$8:$C$239,0))=\"\",\"\",INDEX('Disaggregation1B_Import-Export'!I$8:I$239,MATCH($B97,'Disaggregation1B_Import-Export'!$C$8:$C$239,0))),\"\")","v":""},{"$f":"IFERROR(IF(INDEX('Disaggregation1B_Import-Export'!J$8:J$239,MATCH($B97,'Disaggregation1B_Import-Export'!$C$8:$C$239,0))=\"\",\"\",INDEX('Disaggregation1B_Import-Export'!J$8:J$239,MATCH($B97,'Disaggregation1B_Import-Export'!$C$8:$C$239,0))),\"\")","v":""},{"$f":"IFERROR(IF(INDEX('Disaggregation1B_Import-Export'!K$8:K$239,MATCH($B97,'Disaggregation1B_Import-Export'!$C$8:$C$239,0))=\"\",\"\",INDEX('Disaggregation1B_Import-Export'!K$8:K$239,MATCH($B97,'Disaggregation1B_Import-Export'!$C$8:$C$239,0))),\"\")","v":""},{"$f":"IFERROR(IF(INDEX('Disaggregation1B_Import-Export'!L$8:L$239,MATCH($B97,'Disaggregation1B_Import-Export'!$C$8:$C$239,0))=\"\",\"\",INDEX('Disaggregation1B_Import-Export'!L$8:L$239,MATCH($B97,'Disaggregation1B_Import-Export'!$C$8:$C$239,0))),\"\")","v":""},{"$f":"IFERROR(IF(INDEX('Disaggregation1B_Import-Export'!AQ$8:AQ$239,MATCH($B97,'Disaggregation1B_Import-Export'!$C$8:$C$239,0))=\"\",\"\",INDEX('Disaggregation1B_Import-Export'!AQ$8:AQ$239,MATCH($B97,'Disaggregation1B_Import-Export'!$C$8:$C$239,0))),\"\")","v":""},null,null,"",null,null,null,null,null,"",null,null,null,null,null,""]
[88,"Coverage88",{"$f":"IFERROR(INDEX('Disaggregation1B_Import-Export'!D$8:D$239,MATCH($B98,'Disaggregation1B_Import-Export'!$C$8:$C$239,0)),\"\")","v":""},{"$f":"IFERROR(INDEX('Disaggregation1B_Import-Export'!AF$8:AF$256,MATCH($B98,'Disaggregation1B_Import-Export'!$C$8:$C$256,0)),\"\")","v":""},{"$f":"IFERROR(IF(INDEX('Disaggregation1B_Import-Export'!AG$8:AG$239,MATCH($B98,'Disaggregation1B_Import-Export'!$C$8:$C$239,0))=\"\",\"\",INDEX('Disaggregation1B_Import-Export'!AG$8:AG$239,MATCH($B98,'Disaggregation1B_Import-Export'!$C$8:$C$239,0))),\"\")","v":""},{"$f":"IFERROR(IF(INDEX('Disaggregation1B_Import-Export'!AH$8:AH$239,MATCH($B98,'Disaggregation1B_Import-Export'!$C$8:$C$239,0))=\"\",\"\",INDEX('Disaggregation1B_Import-Export'!AH$8:AH$239,MATCH($B98,'Disaggregation1B_Import-Export'!$C$8:$C$239,0))),\"\")","v":""},{"$f":"IFERROR(IF(INDEX('Disaggregation1B_Import-Export'!H$8:H$239,MATCH($B98,'Disaggregation1B_Import-Export'!$C$8:$C$239,0))=\"\",\"\",INDEX('Disaggregation1B_Import-Export'!H$8:H$239,MATCH($B98,'Disaggregation1B_Import-Export'!$C$8:$C$239,0))),\"\")","v":""},{"$f":"IFERROR(IF(INDEX('Disaggregation1B_Import-Export'!I$8:I$239,MATCH($B98,'Disaggregation1B_Import-Export'!$C$8:$C$239,0))=\"\",\"\",INDEX('Disaggregation1B_Import-Export'!I$8:I$239,MATCH($B98,'Disaggregation1B_Import-Export'!$C$8:$C$239,0))),\"\")","v":""},{"$f":"IFERROR(IF(INDEX('Disaggregation1B_Import-Export'!J$8:J$239,MATCH($B98,'Disaggregation1B_Import-Export'!$C$8:$C$239,0))=\"\",\"\",INDEX('Disaggregation1B_Import-Export'!J$8:J$239,MATCH($B98,'Disaggregation1B_Import-Export'!$C$8:$C$239,0))),\"\")","v":""},{"$f":"IFERROR(IF(INDEX('Disaggregation1B_Import-Export'!K$8:K$239,MATCH($B98,'Disaggregation1B_Import-Export'!$C$8:$C$239,0))=\"\",\"\",INDEX('Disaggregation1B_Import-Export'!K$8:K$239,MATCH($B98,'Disaggregation1B_Import-Export'!$C$8:$C$239,0))),\"\")","v":""},{"$f":"IFERROR(IF(INDEX('Disaggregation1B_Import-Export'!L$8:L$239,MATCH($B98,'Disaggregation1B_Import-Export'!$C$8:$C$239,0))=\"\",\"\",INDEX('Disaggregation1B_Import-Export'!L$8:L$239,MATCH($B98,'Disaggregation1B_Import-Export'!$C$8:$C$239,0))),\"\")","v":""},{"$f":"IFERROR(IF(INDEX('Disaggregation1B_Import-Export'!AQ$8:AQ$239,MATCH($B98,'Disaggregation1B_Import-Export'!$C$8:$C$239,0))=\"\",\"\",INDEX('Disaggregation1B_Import-Export'!AQ$8:AQ$239,MATCH($B98,'Disaggregation1B_Import-Export'!$C$8:$C$239,0))),\"\")","v":""},null,null,"",null,null,null,null,null,"",null,null,null,null,null,""]
[89,"Coverage89",{"$f":"IFERROR(INDEX('Disaggregation1B_Import-Export'!D$8:D$239,MATCH($B99,'Disaggregation1B_Import-Export'!$C$8:$C$239,0)),\"\")","v":""},{"$f":"IFERROR(INDEX('Disaggregation1B_Import-Export'!AF$8:AF$256,MATCH($B99,'Disaggregation1B_Import-Export'!$C$8:$C$256,0)),\"\")","v":""},{"$f":"IFERROR(IF(INDEX('Disaggregation1B_Import-Export'!AG$8:AG$239,MATCH($B99,'Disaggregation1B_Import-Export'!$C$8:$C$239,0))=\"\",\"\",INDEX('Disaggregation1B_Import-Export'!AG$8:AG$239,MATCH($B99,'Disaggregation1B_Import-Export'!$C$8:$C$239,0))),\"\")","v":""},{"$f":"IFERROR(IF(INDEX('Disaggregation1B_Import-Export'!AH$8:AH$239,MATCH($B99,'Disaggregation1B_Import-Export'!$C$8:$C$239,0))=\"\",\"\",INDEX('Disaggregation1B_Import-Export'!AH$8:AH$239,MATCH($B99,'Disaggregation1B_Import-Export'!$C$8:$C$239,0))),\"\")","v":""},{"$f":"IFERROR(IF(INDEX('Disaggregation1B_Import-Export'!H$8:H$239,MATCH($B99,'Disaggregation1B_Import-Export'!$C$8:$C$239,0))=\"\",\"\",INDEX('Disaggregation1B_Import-Export'!H$8:H$239,MATCH($B99,'Disaggregation1B_Import-Export'!$C$8:$C$239,0))),\"\")","v":""},{"$f":"IFERROR(IF(INDEX('Disaggregation1B_Import-Export'!I$8:I$239,MATCH($B99,'Disaggregation1B_Import-Export'!$C$8:$C$239,0))=\"\",\"\",INDEX('Disaggregation1B_Import-Export'!I$8:I$239,MATCH($B99,'Disaggregation1B_Import-Export'!$C$8:$C$239,0))),\"\")","v":""},{"$f":"IFERROR(IF(INDEX('Disaggregation1B_Import-Export'!J$8:J$239,MATCH($B99,'Disaggregation1B_Import-Export'!$C$8:$C$239,0))=\"\",\"\",INDEX('Disaggregation1B_Import-Export'!J$8:J$239,MATCH($B99,'Disaggregation1B_Import-Export'!$C$8:$C$239,0))),\"\")","v":""},{"$f":"IFERROR(IF(INDEX('Disaggregation1B_Import-Export'!K$8:K$239,MATCH($B99,'Disaggregation1B_Import-Export'!$C$8:$C$239,0))=\"\",\"\",INDEX('Disaggregation1B_Import-Export'!K$8:K$239,MATCH($B99,'Disaggregation1B_Import-Export'!$C$8:$C$239,0))),\"\")","v":""},{"$f":"IFERROR(IF(INDEX('Disaggregation1B_Import-Export'!L$8:L$239,MATCH($B99,'Disaggregation1B_Import-Export'!$C$8:$C$239,0))=\"\",\"\",INDEX('Disaggregation1B_Import-Export'!L$8:L$239,MATCH($B99,'Disaggregation1B_Import-Export'!$C$8:$C$239,0))),\"\")","v":""},{"$f":"IFERROR(IF(INDEX('Disaggregation1B_Import-Export'!AQ$8:AQ$239,MATCH($B99,'Disaggregation1B_Import-Export'!$C$8:$C$239,0))=\"\",\"\",INDEX('Disaggregation1B_Import-Export'!AQ$8:AQ$239,MATCH($B99,'Disaggregation1B_Import-Export'!$C$8:$C$239,0))),\"\")","v":""},null,null,"",null,null,null,null,null,"",null,null,null,null,null,""]
[90,"Coverage90",{"$f":"IFERROR(INDEX('Disaggregation1B_Import-Export'!D$8:D$239,MATCH($B100,'Disaggregation1B_Import-Export'!$C$8:$C$239,0)),\"\")","v":""},{"$f":"IFERROR(INDEX('Disaggregation1B_Import-Export'!AF$8:AF$256,MATCH($B100,'Disaggregation1B_Import-Export'!$C$8:$C$256,0)),\"\")","v":""},{"$f":"IFERROR(IF(INDEX('Disaggregation1B_Import-Export'!AG$8:AG$239,MATCH($B100,'Disaggregation1B_Import-Export'!$C$8:$C$239,0))=\"\",\"\",INDEX('Disaggregation1B_Import-Export'!AG$8:AG$239,MATCH($B100,'Disaggregation1B_Import-Export'!$C$8:$C$239,0))),\"\")","v":""},{"$f":"IFERROR(IF(INDEX('Disaggregation1B_Import-Export'!AH$8:AH$239,MATCH($B100,'Disaggregation1B_Import-Export'!$C$8:$C$239,0))=\"\",\"\",INDEX('Disaggregation1B_Import-Export'!AH$8:AH$239,MATCH($B100,'Disaggregation1B_Import-Export'!$C$8:$C$239,0))),\"\")","v":""},{"$f":"IFERROR(IF(INDEX('Disaggregation1B_Import-Export'!H$8:H$239,MATCH($B100,'Disaggregation1B_Import-Export'!$C$8:$C$239,0))=\"\",\"\",INDEX('Disaggregation1B_Import-Export'!H$8:H$239,MATCH($B100,'Disaggregation1B_Import-Export'!$C$8:$C$239,0))),\"\")","v":""},{"$f":"IFERROR(IF(INDEX('Disaggregation1B_Import-Export'!I$8:I$239,MATCH($B100,'Disaggregation1B_Import-Export'!$C$8:$C$239,0))=\"\",\"\",INDEX('Disaggregation1B_Import-Export'!I$8:I$239,MATCH($B100,'Disaggregation1B_Import-Export'!$C$8:$C$239,0))),\"\")","v":""},{"$f":"IFERROR(IF(INDEX('Disaggregation1B_Import-Export'!J$8:J$239,MATCH($B100,'Disaggregation1B_Import-Export'!$C$8:$C$239,0))=\"\",\"\",INDEX('Disaggregation1B_Import-Export'!J$8:J$239,MATCH($B100,'Disaggregation1B_Import-Export'!$C$8:$C$239,0))),\"\")","v":""},{"$f":"IFERROR(IF(INDEX('Disaggregation1B_Import-Export'!K$8:K$239,MATCH($B100,'Disaggregation1B_Import-Export'!$C$8:$C$239,0))=\"\",\"\",INDEX('Disaggregation1B_Import-Export'!K$8:K$239,MATCH($B100,'Disaggregation1B_Import-Export'!$C$8:$C$239,0))),\"\")","v":""},{"$f":"IFERROR(IF(INDEX('Disaggregation1B_Import-Export'!L$8:L$239,MATCH($B100,'Disaggregation1B_Import-Export'!$C$8:$C$239,0))=\"\",\"\",INDEX('Disaggregation1B_Import-Export'!L$8:L$239,MATCH($B100,'Disaggregation1B_Import-Export'!$C$8:$C$239,0))),\"\")","v":""},{"$f":"IFERROR(IF(INDEX('Disaggregation1B_Import-Export'!AQ$8:AQ$239,MATCH($B100,'Disaggregation1B_Import-Export'!$C$8:$C$239,0))=\"\",\"\",INDEX('Disaggregation1B_Import-Export'!AQ$8:AQ$239,MATCH($B100,'Disaggregation1B_Import-Export'!$C$8:$C$239,0))),\"\")","v":""},null,null,"",null,null,null,null,null,"",null,null,null,null,null,""]
[91,"Coverage91",{"$f":"IFERROR(INDEX('Disaggregation1B_Import-Export'!D$8:D$239,MATCH($B101,'Disaggregation1B_Import-Export'!$C$8:$C$239,0)),\"\")","v":""},{"$f":"IFERROR(INDEX('Disaggregation1B_Import-Export'!AF$8:AF$256,MATCH($B101,'Disaggregation1B_Import-Export'!$C$8:$C$256,0)),\"\")","v":""},{"$f":"IFERROR(IF(INDEX('Disaggregation1B_Import-Export'!AG$8:AG$239,MATCH($B101,'Disaggregation1B_Import-Export'!$C$8:$C$239,0))=\"\",\"\",INDEX('Disaggregation1B_Import-Export'!AG$8:AG$239,MATCH($B101,'Disaggregation1B_Import-Export'!$C$8:$C$239,0))),\"\")","v":""},{"$f":"IFERROR(IF(INDEX('Disaggregation1B_Import-Export'!AH$8:AH$239,MATCH($B101,'Disaggregation1B_Import-Export'!$C$8:$C$239,0))=\"\",\"\",INDEX('Disaggregation1B_Import-Export'!AH$8:AH$239,MATCH($B101,'Disaggregation1B_Import-Export'!$C$8:$C$239,0))),\"\")","v":""},{"$f":"IFERROR(IF(INDEX('Disaggregation1B_Import-Export'!H$8:H$239,MATCH($B101,'Disaggregation1B_Import-Export'!$C$8:$C$239,0))=\"\",\"\",INDEX('Disaggregation1B_Import-Export'!H$8:H$239,MATCH($B101,'Disaggregation1B_Import-Export'!$C$8:$C$239,0))),\"\")","v":""},{"$f":"IFERROR(IF(INDEX('Disaggregation1B_Import-Export'!I$8:I$239,MATCH($B101,'Disaggregation1B_Import-Export'!$C$8:$C$239,0))=\"\",\"\",INDEX('Disaggregation1B_Import-Export'!I$8:I$239,MATCH($B101,'Disaggregation1B_Import-Export'!$C$8:$C$239,0))),\"\")","v":""},{"$f":"IFERROR(IF(INDEX('Disaggregation1B_Import-Export'!J$8:J$239,MATCH($B101,'Disaggregation1B_Import-Export'!$C$8:$C$239,0))=\"\",\"\",INDEX('Disaggregation1B_Import-Export'!J$8:J$239,MATCH($B101,'Disaggregation1B_Import-Export'!$C$8:$C$239,0))),\"\")","v":""},{"$f":"IFERROR(IF(INDEX('Disaggregation1B_Import-Export'!K$8:K$239,MATCH($B101,'Disaggregation1B_Import-Export'!$C$8:$C$239,0))=\"\",\"\",INDEX('Disaggregation1B_Import-Export'!K$8:K$239,MATCH($B101,'Disaggregation1B_Import-Export'!$C$8:$C$239,0))),\"\")","v":""},{"$f":"IFERROR(IF(INDEX('Disaggregation1B_Import-Export'!L$8:L$239,MATCH($B101,'Disaggregation1B_Import-Export'!$C$8:$C$239,0))=\"\",\"\",INDEX('Disaggregation1B_Import-Export'!L$8:L$239,MATCH($B101,'Disaggregation1B_Import-Export'!$C$8:$C$239,0))),\"\")","v":""},{"$f":"IFERROR(IF(INDEX('Disaggregation1B_Import-Export'!AQ$8:AQ$239,MATCH($B101,'Disaggregation1B_Import-Export'!$C$8:$C$239,0))=\"\",\"\",INDEX('Disaggregation1B_Import-Export'!AQ$8:AQ$239,MATCH($B101,'Disaggregation1B_Import-Export'!$C$8:$C$239,0))),\"\")","v":""},null,null,"",null,null,null,null,null,"",null,null,null,null,null,""]
[92,"Coverage92",{"$f":"IFERROR(INDEX('Disaggregation1B_Import-Export'!D$8:D$239,MATCH($B102,'Disaggregation1B_Import-Export'!$C$8:$C$239,0)),\"\")","v":""},{"$f":"IFERROR(INDEX('Disaggregation1B_Import-Export'!AF$8:AF$256,MATCH($B102,'Disaggregation1B_Import-Export'!$C$8:$C$256,0)),\"\")","v":""},{"$f":"IFERROR(IF(INDEX('Disaggregation1B_Import-Export'!AG$8:AG$239,MATCH($B102,'Disaggregation1B_Import-Export'!$C$8:$C$239,0))=\"\",\"\",INDEX('Disaggregation1B_Import-Export'!AG$8:AG$239,MATCH($B102,'Disaggregation1B_Import-Export'!$C$8:$C$239,0))),\"\")","v":""},{"$f":"IFERROR(IF(INDEX('Disaggregation1B_Import-Export'!AH$8:AH$239,MATCH($B102,'Disaggregation1B_Import-Export'!$C$8:$C$239,0))=\"\",\"\",INDEX('Disaggregation1B_Import-Export'!AH$8:AH$239,MATCH($B102,'Disaggregation1B_Import-Export'!$C$8:$C$239,0))),\"\")","v":""},{"$f":"IFERROR(IF(INDEX('Disaggregation1B_Import-Export'!H$8:H$239,MATCH($B102,'Disaggregation1B_Import-Export'!$C$8:$C$239,0))=\"\",\"\",INDEX('Disaggregation1B_Import-Export'!H$8:H$239,MATCH($B102,'Disaggregation1B_Import-Export'!$C$8:$C$239,0))),\"\")","v":""},{"$f":"IFERROR(IF(INDEX('Disaggregation1B_Import-Export'!I$8:I$239,MATCH($B102,'Disaggregation1B_Import-Export'!$C$8:$C$239,0))=\"\",\"\",INDEX('Disaggregation1B_Import-Export'!I$8:I$239,MATCH($B102,'Disaggregation1B_Import-Export'!$C$8:$C$239,0))),\"\")","v":""},{"$f":"IFERROR(IF(INDEX('Disaggregation1B_Import-Export'!J$8:J$239,MATCH($B102,'Disaggregation1B_Import-Export'!$C$8:$C$239,0))=\"\",\"\",INDEX('Disaggregation1B_Import-Export'!J$8:J$239,MATCH($B102,'Disaggregation1B_Import-Export'!$C$8:$C$239,0))),\"\")","v":""},{"$f":"IFERROR(IF(INDEX('Disaggregation1B_Import-Export'!K$8:K$239,MATCH($B102,'Disaggregation1B_Import-Export'!$C$8:$C$239,0))=\"\",\"\",INDEX('Disaggregation1B_Import-Export'!K$8:K$239,MATCH($B102,'Disaggregation1B_Import-Export'!$C$8:$C$239,0))),\"\")","v":""},{"$f":"IFERROR(IF(INDEX('Disaggregation1B_Import-Export'!L$8:L$239,MATCH($B102,'Disaggregation1B_Import-Export'!$C$8:$C$239,0))=\"\",\"\",INDEX('Disaggregation1B_Import-Export'!L$8:L$239,MATCH($B102,'Disaggregation1B_Import-Export'!$C$8:$C$239,0))),\"\")","v":""},{"$f":"IFERROR(IF(INDEX('Disaggregation1B_Import-Export'!AQ$8:AQ$239,MATCH($B102,'Disaggregation1B_Import-Export'!$C$8:$C$239,0))=\"\",\"\",INDEX('Disaggregation1B_Import-Export'!AQ$8:AQ$239,MATCH($B102,'Disaggregation1B_Import-Export'!$C$8:$C$239,0))),\"\")","v":""},null,null,"",null,null,null,null,null,"",null,null,null,null,null,""]
[93,"Coverage93",{"$f":"IFERROR(INDEX('Disaggregation1B_Import-Export'!D$8:D$239,MATCH($B103,'Disaggregation1B_Import-Export'!$C$8:$C$239,0)),\"\")","v":""},{"$f":"IFERROR(INDEX('Disaggregation1B_Import-Export'!AF$8:AF$256,MATCH($B103,'Disaggregation1B_Import-Export'!$C$8:$C$256,0)),\"\")","v":""},{"$f":"IFERROR(IF(INDEX('Disaggregation1B_Import-Export'!AG$8:AG$239,MATCH($B103,'Disaggregation1B_Import-Export'!$C$8:$C$239,0))=\"\",\"\",INDEX('Disaggregation1B_Import-Export'!AG$8:AG$239,MATCH($B103,'Disaggregation1B_Import-Export'!$C$8:$C$239,0))),\"\")","v":""},{"$f":"IFERROR(IF(INDEX('Disaggregation1B_Import-Export'!AH$8:AH$239,MATCH($B103,'Disaggregation1B_Import-Export'!$C$8:$C$239,0))=\"\",\"\",INDEX('Disaggregation1B_Import-Export'!AH$8:AH$239,MATCH($B103,'Disaggregation1B_Import-Export'!$C$8:$C$239,0))),\"\")","v":""},{"$f":"IFERROR(IF(INDEX('Disaggregation1B_Import-Export'!H$8:H$239,MATCH($B103,'Disaggregation1B_Import-Export'!$C$8:$C$239,0))=\"\",\"\",INDEX('Disaggregation1B_Import-Export'!H$8:H$239,MATCH($B103,'Disaggregation1B_Import-Export'!$C$8:$C$239,0))),\"\")","v":""},{"$f":"IFERROR(IF(INDEX('Disaggregation1B_Import-Export'!I$8:I$239,MATCH($B103,'Disaggregation1B_Import-Export'!$C$8:$C$239,0))=\"\",\"\",INDEX('Disaggregation1B_Import-Export'!I$8:I$239,MATCH($B103,'Disaggregation1B_Import-Export'!$C$8:$C$239,0))),\"\")","v":""},{"$f":"IFERROR(IF(INDEX('Disaggregation1B_Import-Export'!J$8:J$239,MATCH($B103,'Disaggregation1B_Import-Export'!$C$8:$C$239,0))=\"\",\"\",INDEX('Disaggregation1B_Import-Export'!J$8:J$239,MATCH($B103,'Disaggregation1B_Import-Export'!$C$8:$C$239,0))),\"\")","v":""},{"$f":"IFERROR(IF(INDEX('Disaggregation1B_Import-Export'!K$8:K$239,MATCH($B103,'Disaggregation1B_Import-Export'!$C$8:$C$239,0))=\"\",\"\",INDEX('Disaggregation1B_Import-Export'!K$8:K$239,MATCH($B103,'Disaggregation1B_Import-Export'!$C$8:$C$239,0))),\"\")","v":""},{"$f":"IFERROR(IF(INDEX('Disaggregation1B_Import-Export'!L$8:L$239,MATCH($B103,'Disaggregation1B_Import-Export'!$C$8:$C$239,0))=\"\",\"\",INDEX('Disaggregation1B_Import-Export'!L$8:L$239,MATCH($B103,'Disaggregation1B_Import-Export'!$C$8:$C$239,0))),\"\")","v":""},{"$f":"IFERROR(IF(INDEX('Disaggregation1B_Import-Export'!AQ$8:AQ$239,MATCH($B103,'Disaggregation1B_Import-Export'!$C$8:$C$239,0))=\"\",\"\",INDEX('Disaggregation1B_Import-Export'!AQ$8:AQ$239,MATCH($B103,'Disaggregation1B_Import-Export'!$C$8:$C$239,0))),\"\")","v":""},null,null,"",null,null,null,null,null,"",null,null,null,null,null,""]
[94,"Coverage94",{"$f":"IFERROR(INDEX('Disaggregation1B_Import-Export'!D$8:D$239,MATCH($B104,'Disaggregation1B_Import-Export'!$C$8:$C$239,0)),\"\")","v":""},{"$f":"IFERROR(INDEX('Disaggregation1B_Import-Export'!AF$8:AF$256,MATCH($B104,'Disaggregation1B_Import-Export'!$C$8:$C$256,0)),\"\")","v":""},{"$f":"IFERROR(IF(INDEX('Disaggregation1B_Import-Export'!AG$8:AG$239,MATCH($B104,'Disaggregation1B_Import-Export'!$C$8:$C$239,0))=\"\",\"\",INDEX('Disaggregation1B_Import-Export'!AG$8:AG$239,MATCH($B104,'Disaggregation1B_Import-Export'!$C$8:$C$239,0))),\"\")","v":""},{"$f":"IFERROR(IF(INDEX('Disaggregation1B_Import-Export'!AH$8:AH$239,MATCH($B104,'Disaggregation1B_Import-Export'!$C$8:$C$239,0))=\"\",\"\",INDEX('Disaggregation1B_Import-Export'!AH$8:AH$239,MATCH($B104,'Disaggregation1B_Import-Export'!$C$8:$C$239,0))),\"\")","v":""},{"$f":"IFERROR(IF(INDEX('Disaggregation1B_Import-Export'!H$8:H$239,MATCH($B104,'Disaggregation1B_Import-Export'!$C$8:$C$239,0))=\"\",\"\",INDEX('Disaggregation1B_Import-Export'!H$8:H$239,MATCH($B104,'Disaggregation1B_Import-Export'!$C$8:$C$239,0))),\"\")","v":""},{"$f":"IFERROR(IF(INDEX('Disaggregation1B_Import-Export'!I$8:I$239,MATCH($B104,'Disaggregation1B_Import-Export'!$C$8:$C$239,0))=\"\",\"\",INDEX('Disaggregation1B_Import-Export'!I$8:I$239,MATCH($B104,'Disaggregation1B_Import-Export'!$C$8:$C$239,0))),\"\")","v":""},{"$f":"IFERROR(IF(INDEX('Disaggregation1B_Import-Export'!J$8:J$239,MATCH($B104,'Disaggregation1B_Import-Export'!$C$8:$C$239,0))=\"\",\"\",INDEX('Disaggregation1B_Import-Export'!J$8:J$239,MATCH($B104,'Disaggregation1B_Import-Export'!$C$8:$C$239,0))),\"\")","v":""},{"$f":"IFERROR(IF(INDEX('Disaggregation1B_Import-Export'!K$8:K$239,MATCH($B104,'Disaggregation1B_Import-Export'!$C$8:$C$239,0))=\"\",\"\",INDEX('Disaggregation1B_Import-Export'!K$8:K$239,MATCH($B104,'Disaggregation1B_Import-Export'!$C$8:$C$239,0))),\"\")","v":""},{"$f":"IFERROR(IF(INDEX('Disaggregation1B_Import-Export'!L$8:L$239,MATCH($B104,'Disaggregation1B_Import-Export'!$C$8:$C$239,0))=\"\",\"\",INDEX('Disaggregation1B_Import-Export'!L$8:L$239,MATCH($B104,'Disaggregation1B_Import-Export'!$C$8:$C$239,0))),\"\")","v":""},{"$f":"IFERROR(IF(INDEX('Disaggregation1B_Import-Export'!AQ$8:AQ$239,MATCH($B104,'Disaggregation1B_Import-Export'!$C$8:$C$239,0))=\"\",\"\",INDEX('Disaggregation1B_Import-Export'!AQ$8:AQ$239,MATCH($B104,'Disaggregation1B_Import-Export'!$C$8:$C$239,0))),\"\")","v":""},null,null,"",null,null,null,null,null,"",null,null,null,null,null,""]
[95,"Coverage95",{"$f":"IFERROR(INDEX('Disaggregation1B_Import-Export'!D$8:D$239,MATCH($B105,'Disaggregation1B_Import-Export'!$C$8:$C$239,0)),\"\")","v":""},{"$f":"IFERROR(INDEX('Disaggregation1B_Import-Export'!AF$8:AF$256,MATCH($B105,'Disaggregation1B_Import-Export'!$C$8:$C$256,0)),\"\")","v":""},{"$f":"IFERROR(IF(INDEX('Disaggregation1B_Import-Export'!AG$8:AG$239,MATCH($B105,'Disaggregation1B_Import-Export'!$C$8:$C$239,0))=\"\",\"\",INDEX('Disaggregation1B_Import-Export'!AG$8:AG$239,MATCH($B105,'Disaggregation1B_Import-Export'!$C$8:$C$239,0))),\"\")","v":""},{"$f":"IFERROR(IF(INDEX('Disaggregation1B_Import-Export'!AH$8:AH$239,MATCH($B105,'Disaggregation1B_Import-Export'!$C$8:$C$239,0))=\"\",\"\",INDEX('Disaggregation1B_Import-Export'!AH$8:AH$239,MATCH($B105,'Disaggregation1B_Import-Export'!$C$8:$C$239,0))),\"\")","v":""},{"$f":"IFERROR(IF(INDEX('Disaggregation1B_Import-Export'!H$8:H$239,MATCH($B105,'Disaggregation1B_Import-Export'!$C$8:$C$239,0))=\"\",\"\",INDEX('Disaggregation1B_Import-Export'!H$8:H$239,MATCH($B105,'Disaggregation1B_Import-Export'!$C$8:$C$239,0))),\"\")","v":""},{"$f":"IFERROR(IF(INDEX('Disaggregation1B_Import-Export'!I$8:I$239,MATCH($B105,'Disaggregation1B_Import-Export'!$C$8:$C$239,0))=\"\",\"\",INDEX('Disaggregation1B_Import-Export'!I$8:I$239,MATCH($B105,'Disaggregation1B_Import-Export'!$C$8:$C$239,0))),\"\")","v":""},{"$f":"IFERROR(IF(INDEX('Disaggregation1B_Import-Export'!J$8:J$239,MATCH($B105,'Disaggregation1B_Import-Export'!$C$8:$C$239,0))=\"\",\"\",INDEX('Disaggregation1B_Import-Export'!J$8:J$239,MATCH($B105,'Disaggregation1B_Import-Export'!$C$8:$C$239,0))),\"\")","v":""},{"$f":"IFERROR(IF(INDEX('Disaggregation1B_Import-Export'!K$8:K$239,MATCH($B105,'Disaggregation1B_Import-Export'!$C$8:$C$239,0))=\"\",\"\",INDEX('Disaggregation1B_Import-Export'!K$8:K$239,MATCH($B105,'Disaggregation1B_Import-Export'!$C$8:$C$239,0))),\"\")","v":""},{"$f":"IFERROR(IF(INDEX('Disaggregation1B_Import-Export'!L$8:L$239,MATCH($B105,'Disaggregation1B_Import-Export'!$C$8:$C$239,0))=\"\",\"\",INDEX('Disaggregation1B_Import-Export'!L$8:L$239,MATCH($B105,'Disaggregation1B_Import-Export'!$C$8:$C$239,0))),\"\")","v":""},{"$f":"IFERROR(IF(INDEX('Disaggregation1B_Import-Export'!AQ$8:AQ$239,MATCH($B105,'Disaggregation1B_Import-Export'!$C$8:$C$239,0))=\"\",\"\",INDEX('Disaggregation1B_Import-Export'!AQ$8:AQ$239,MATCH($B105,'Disaggregation1B_Import-Export'!$C$8:$C$239,0))),\"\")","v":""},null,null,"",null,null,null,null,null,"",null,null,null,null,null,""]
[96,"Coverage96",{"$f":"IFERROR(INDEX('Disaggregation1B_Import-Export'!D$8:D$239,MATCH($B106,'Disaggregation1B_Import-Export'!$C$8:$C$239,0)),\"\")","v":""},{"$f":"IFERROR(INDEX('Disaggregation1B_Import-Export'!AF$8:AF$256,MATCH($B106,'Disaggregation1B_Import-Export'!$C$8:$C$256,0)),\"\")","v":""},{"$f":"IFERROR(IF(INDEX('Disaggregation1B_Import-Export'!AG$8:AG$239,MATCH($B106,'Disaggregation1B_Import-Export'!$C$8:$C$239,0))=\"\",\"\",INDEX('Disaggregation1B_Import-Export'!AG$8:AG$239,MATCH($B106,'Disaggregation1B_Import-Export'!$C$8:$C$239,0))),\"\")","v":""},{"$f":"IFERROR(IF(INDEX('Disaggregation1B_Import-Export'!AH$8:AH$239,MATCH($B106,'Disaggregation1B_Import-Export'!$C$8:$C$239,0))=\"\",\"\",INDEX('Disaggregation1B_Import-Export'!AH$8:AH$239,MATCH($B106,'Disaggregation1B_Import-Export'!$C$8:$C$239,0))),\"\")","v":""},{"$f":"IFERROR(IF(INDEX('Disaggregation1B_Import-Export'!H$8:H$239,MATCH($B106,'Disaggregation1B_Import-Export'!$C$8:$C$239,0))=\"\",\"\",INDEX('Disaggregation1B_Import-Export'!H$8:H$239,MATCH($B106,'Disaggregation1B_Import-Export'!$C$8:$C$239,0))),\"\")","v":""},{"$f":"IFERROR(IF(INDEX('Disaggregation1B_Import-Export'!I$8:I$239,MATCH($B106,'Disaggregation1B_Import-Export'!$C$8:$C$239,0))=\"\",\"\",INDEX('Disaggregation1B_Import-Export'!I$8:I$239,MATCH($B106,'Disaggregation1B_Import-Export'!$C$8:$C$239,0))),\"\")","v":""},{"$f":"IFERROR(IF(INDEX('Disaggregation1B_Import-Export'!J$8:J$239,MATCH($B106,'Disaggregation1B_Import-Export'!$C$8:$C$239,0))=\"\",\"\",INDEX('Disaggregation1B_Import-Export'!J$8:J$239,MATCH($B106,'Disaggregation1B_Import-Export'!$C$8:$C$239,0))),\"\")","v":""},{"$f":"IFERROR(IF(INDEX('Disaggregation1B_Import-Export'!K$8:K$239,MATCH($B106,'Disaggregation1B_Import-Export'!$C$8:$C$239,0))=\"\",\"\",INDEX('Disaggregation1B_Import-Export'!K$8:K$239,MATCH($B106,'Disaggregation1B_Import-Export'!$C$8:$C$239,0))),\"\")","v":""},{"$f":"IFERROR(IF(INDEX('Disaggregation1B_Import-Export'!L$8:L$239,MATCH($B106,'Disaggregation1B_Import-Export'!$C$8:$C$239,0))=\"\",\"\",INDEX('Disaggregation1B_Import-Export'!L$8:L$239,MATCH($B106,'Disaggregation1B_Import-Export'!$C$8:$C$239,0))),\"\")","v":""},{"$f":"IFERROR(IF(INDEX('Disaggregation1B_Import-Export'!AQ$8:AQ$239,MATCH($B106,'Disaggregation1B_Import-Export'!$C$8:$C$239,0))=\"\",\"\",INDEX('Disaggregation1B_Import-Export'!AQ$8:AQ$239,MATCH($B106,'Disaggregation1B_Import-Export'!$C$8:$C$239,0))),\"\")","v":""},null,null,"",null,null,null,null,null,"",null,null,null,null,null,""]
[97,"Coverage97",{"$f":"IFERROR(INDEX('Disaggregation1B_Import-Export'!D$8:D$239,MATCH($B107,'Disaggregation1B_Import-Export'!$C$8:$C$239,0)),\"\")","v":""},{"$f":"IFERROR(INDEX('Disaggregation1B_Import-Export'!AF$8:AF$256,MATCH($B107,'Disaggregation1B_Import-Export'!$C$8:$C$256,0)),\"\")","v":""},{"$f":"IFERROR(IF(INDEX('Disaggregation1B_Import-Export'!AG$8:AG$239,MATCH($B107,'Disaggregation1B_Import-Export'!$C$8:$C$239,0))=\"\",\"\",INDEX('Disaggregation1B_Import-Export'!AG$8:AG$239,MATCH($B107,'Disaggregation1B_Import-Export'!$C$8:$C$239,0))),\"\")","v":""},{"$f":"IFERROR(IF(INDEX('Disaggregation1B_Import-Export'!AH$8:AH$239,MATCH($B107,'Disaggregation1B_Import-Export'!$C$8:$C$239,0))=\"\",\"\",INDEX('Disaggregation1B_Import-Export'!AH$8:AH$239,MATCH($B107,'Disaggregation1B_Import-Export'!$C$8:$C$239,0))),\"\")","v":""},{"$f":"IFERROR(IF(INDEX('Disaggregation1B_Import-Export'!H$8:H$239,MATCH($B107,'Disaggregation1B_Import-Export'!$C$8:$C$239,0))=\"\",\"\",INDEX('Disaggregation1B_Import-Export'!H$8:H$239,MATCH($B107,'Disaggregation1B_Import-Export'!$C$8:$C$239,0))),\"\")","v":""},{"$f":"IFERROR(IF(INDEX('Disaggregation1B_Import-Export'!I$8:I$239,MATCH($B107,'Disaggregation1B_Import-Export'!$C$8:$C$239,0))=\"\",\"\",INDEX('Disaggregation1B_Import-Export'!I$8:I$239,MATCH($B107,'Disaggregation1B_Import-Export'!$C$8:$C$239,0))),\"\")","v":""},{"$f":"IFERROR(IF(INDEX('Disaggregation1B_Import-Export'!J$8:J$239,MATCH($B107,'Disaggregation1B_Import-Export'!$C$8:$C$239,0))=\"\",\"\",INDEX('Disaggregation1B_Import-Export'!J$8:J$239,MATCH($B107,'Disaggregation1B_Import-Export'!$C$8:$C$239,0))),\"\")","v":""},{"$f":"IFERROR(IF(INDEX('Disaggregation1B_Import-Export'!K$8:K$239,MATCH($B107,'Disaggregation1B_Import-Export'!$C$8:$C$239,0))=\"\",\"\",INDEX('Disaggregation1B_Import-Export'!K$8:K$239,MATCH($B107,'Disaggregation1B_Import-Export'!$C$8:$C$239,0))),\"\")","v":""},{"$f":"IFERROR(IF(INDEX('Disaggregation1B_Import-Export'!L$8:L$239,MATCH($B107,'Disaggregation1B_Import-Export'!$C$8:$C$239,0))=\"\",\"\",INDEX('Disaggregation1B_Import-Export'!L$8:L$239,MATCH($B107,'Disaggregation1B_Import-Export'!$C$8:$C$239,0))),\"\")","v":""},{"$f":"IFERROR(IF(INDEX('Disaggregation1B_Import-Export'!AQ$8:AQ$239,MATCH($B107,'Disaggregation1B_Import-Export'!$C$8:$C$239,0))=\"\",\"\",INDEX('Disaggregation1B_Import-Export'!AQ$8:AQ$239,MATCH($B107,'Disaggregation1B_Import-Export'!$C$8:$C$239,0))),\"\")","v":""},null,null,"",null,null,null,null,null,"",null,null,null,null,null,""]
[98,"Coverage98",{"$f":"IFERROR(INDEX('Disaggregation1B_Import-Export'!D$8:D$239,MATCH($B108,'Disaggregation1B_Import-Export'!$C$8:$C$239,0)),\"\")","v":""},{"$f":"IFERROR(INDEX('Disaggregation1B_Import-Export'!AF$8:AF$256,MATCH($B108,'Disaggregation1B_Import-Export'!$C$8:$C$256,0)),\"\")","v":""},{"$f":"IFERROR(IF(INDEX('Disaggregation1B_Import-Export'!AG$8:AG$239,MATCH($B108,'Disaggregation1B_Import-Export'!$C$8:$C$239,0))=\"\",\"\",INDEX('Disaggregation1B_Import-Export'!AG$8:AG$239,MATCH($B108,'Disaggregation1B_Import-Export'!$C$8:$C$239,0))),\"\")","v":""},{"$f":"IFERROR(IF(INDEX('Disaggregation1B_Import-Export'!AH$8:AH$239,MATCH($B108,'Disaggregation1B_Import-Export'!$C$8:$C$239,0))=\"\",\"\",INDEX('Disaggregation1B_Import-Export'!AH$8:AH$239,MATCH($B108,'Disaggregation1B_Import-Export'!$C$8:$C$239,0))),\"\")","v":""},{"$f":"IFERROR(IF(INDEX('Disaggregation1B_Import-Export'!H$8:H$239,MATCH($B108,'Disaggregation1B_Import-Export'!$C$8:$C$239,0))=\"\",\"\",INDEX('Disaggregation1B_Import-Export'!H$8:H$239,MATCH($B108,'Disaggregation1B_Import-Export'!$C$8:$C$239,0))),\"\")","v":""},{"$f":"IFERROR(IF(INDEX('Disaggregation1B_Import-Export'!I$8:I$239,MATCH($B108,'Disaggregation1B_Import-Export'!$C$8:$C$239,0))=\"\",\"\",INDEX('Disaggregation1B_Import-Export'!I$8:I$239,MATCH($B108,'Disaggregation1B_Import-Export'!$C$8:$C$239,0))),\"\")","v":""},{"$f":"IFERROR(IF(INDEX('Disaggregation1B_Import-Export'!J$8:J$239,MATCH($B108,'Disaggregation1B_Import-Export'!$C$8:$C$239,0))=\"\",\"\",INDEX('Disaggregation1B_Import-Export'!J$8:J$239,MATCH($B108,'Disaggregation1B_Import-Export'!$C$8:$C$239,0))),\"\")","v":""},{"$f":"IFERROR(IF(INDEX('Disaggregation1B_Import-Export'!K$8:K$239,MATCH($B108,'Disaggregation1B_Import-Export'!$C$8:$C$239,0))=\"\",\"\",INDEX('Disaggregation1B_Import-Export'!K$8:K$239,MATCH($B108,'Disaggregation1B_Import-Export'!$C$8:$C$239,0))),\"\")","v":""},{"$f":"IFERROR(IF(INDEX('Disaggregation1B_Import-Export'!L$8:L$239,MATCH($B108,'Disaggregation1B_Import-Export'!$C$8:$C$239,0))=\"\",\"\",INDEX('Disaggregation1B_Import-Export'!L$8:L$239,MATCH($B108,'Disaggregation1B_Import-Export'!$C$8:$C$239,0))),\"\")","v":""},{"$f":"IFERROR(IF(INDEX('Disaggregation1B_Import-Export'!AQ$8:AQ$239,MATCH($B108,'Disaggregation1B_Import-Export'!$C$8:$C$239,0))=\"\",\"\",INDEX('Disaggregation1B_Import-Export'!AQ$8:AQ$239,MATCH($B108,'Disaggregation1B_Import-Export'!$C$8:$C$239,0))),\"\")","v":""},null,null,"",null,null,null,null,null,"",null,null,null,null,null,""]
[99,"Coverage99",{"$f":"IFERROR(INDEX('Disaggregation1B_Import-Export'!D$8:D$239,MATCH($B109,'Disaggregation1B_Import-Export'!$C$8:$C$239,0)),\"\")","v":""},{"$f":"IFERROR(INDEX('Disaggregation1B_Import-Export'!AF$8:AF$256,MATCH($B109,'Disaggregation1B_Import-Export'!$C$8:$C$256,0)),\"\")","v":""},{"$f":"IFERROR(IF(INDEX('Disaggregation1B_Import-Export'!AG$8:AG$239,MATCH($B109,'Disaggregation1B_Import-Export'!$C$8:$C$239,0))=\"\",\"\",INDEX('Disaggregation1B_Import-Export'!AG$8:AG$239,MATCH($B109,'Disaggregation1B_Import-Export'!$C$8:$C$239,0))),\"\")","v":""},{"$f":"IFERROR(IF(INDEX('Disaggregation1B_Import-Export'!AH$8:AH$239,MATCH($B109,'Disaggregation1B_Import-Export'!$C$8:$C$239,0))=\"\",\"\",INDEX('Disaggregation1B_Import-Export'!AH$8:AH$239,MATCH($B109,'Disaggregation1B_Import-Export'!$C$8:$C$239,0))),\"\")","v":""},{"$f":"IFERROR(IF(INDEX('Disaggregation1B_Import-Export'!H$8:H$239,MATCH($B109,'Disaggregation1B_Import-Export'!$C$8:$C$239,0))=\"\",\"\",INDEX('Disaggregation1B_Import-Export'!H$8:H$239,MATCH($B109,'Disaggregation1B_Import-Export'!$C$8:$C$239,0))),\"\")","v":""},{"$f":"IFERROR(IF(INDEX('Disaggregation1B_Import-Export'!I$8:I$239,MATCH($B109,'Disaggregation1B_Import-Export'!$C$8:$C$239,0))=\"\",\"\",INDEX('Disaggregation1B_Import-Export'!I$8:I$239,MATCH($B109,'Disaggregation1B_Import-Export'!$C$8:$C$239,0))),\"\")","v":""},{"$f":"IFERROR(IF(INDEX('Disaggregation1B_Import-Export'!J$8:J$239,MATCH($B109,'Disaggregation1B_Import-Export'!$C$8:$C$239,0))=\"\",\"\",INDEX('Disaggregation1B_Import-Export'!J$8:J$239,MATCH($B109,'Disaggregation1B_Import-Export'!$C$8:$C$239,0))),\"\")","v":""},{"$f":"IFERROR(IF(INDEX('Disaggregation1B_Import-Export'!K$8:K$239,MATCH($B109,'Disaggregation1B_Import-Export'!$C$8:$C$239,0))=\"\",\"\",INDEX('Disaggregation1B_Import-Export'!K$8:K$239,MATCH($B109,'Disaggregation1B_Import-Export'!$C$8:$C$239,0))),\"\")","v":""},{"$f":"IFERROR(IF(INDEX('Disaggregation1B_Import-Export'!L$8:L$239,MATCH($B109,'Disaggregation1B_Import-Export'!$C$8:$C$239,0))=\"\",\"\",INDEX('Disaggregation1B_Import-Export'!L$8:L$239,MATCH($B109,'Disaggregation1B_Import-Export'!$C$8:$C$239,0))),\"\")","v":""},{"$f":"IFERROR(IF(INDEX('Disaggregation1B_Import-Export'!AQ$8:AQ$239,MATCH($B109,'Disaggregation1B_Import-Export'!$C$8:$C$239,0))=\"\",\"\",INDEX('Disaggregation1B_Import-Export'!AQ$8:AQ$239,MATCH($B109,'Disaggregation1B_Import-Export'!$C$8:$C$239,0))),\"\")","v":""},null,null,"",null,null,null,null,null,"",null,null,null,null,null,""]
[100,"Coverage100",{"$f":"IFERROR(INDEX('Disaggregation1B_Import-Export'!D$8:D$239,MATCH($B110,'Disaggregation1B_Import-Export'!$C$8:$C$239,0)),\"\")","v":""},{"$f":"IFERROR(INDEX('Disaggregation1B_Import-Export'!AF$8:AF$256,MATCH($B110,'Disaggregation1B_Import-Export'!$C$8:$C$256,0)),\"\")","v":""},{"$f":"IFERROR(IF(INDEX('Disaggregation1B_Import-Export'!AG$8:AG$239,MATCH($B110,'Disaggregation1B_Import-Export'!$C$8:$C$239,0))=\"\",\"\",INDEX('Disaggregation1B_Import-Export'!AG$8:AG$239,MATCH($B110,'Disaggregation1B_Import-Export'!$C$8:$C$239,0))),\"\")","v":""},{"$f":"IFERROR(IF(INDEX('Disaggregation1B_Import-Export'!AH$8:AH$239,MATCH($B110,'Disaggregation1B_Import-Export'!$C$8:$C$239,0))=\"\",\"\",INDEX('Disaggregation1B_Import-Export'!AH$8:AH$239,MATCH($B110,'Disaggregation1B_Import-Export'!$C$8:$C$239,0))),\"\")","v":""},{"$f":"IFERROR(IF(INDEX('Disaggregation1B_Import-Export'!H$8:H$239,MATCH($B110,'Disaggregation1B_Import-Export'!$C$8:$C$239,0))=\"\",\"\",INDEX('Disaggregation1B_Import-Export'!H$8:H$239,MATCH($B110,'Disaggregation1B_Import-Export'!$C$8:$C$239,0))),\"\")","v":""},{"$f":"IFERROR(IF(INDEX('Disaggregation1B_Import-Export'!I$8:I$239,MATCH($B110,'Disaggregation1B_Import-Export'!$C$8:$C$239,0))=\"\",\"\",INDEX('Disaggregation1B_Import-Export'!I$8:I$239,MATCH($B110,'Disaggregation1B_Import-Export'!$C$8:$C$239,0))),\"\")","v":""},{"$f":"IFERROR(IF(INDEX('Disaggregation1B_Import-Export'!J$8:J$239,MATCH($B110,'Disaggregation1B_Import-Export'!$C$8:$C$239,0))=\"\",\"\",INDEX('Disaggregation1B_Import-Export'!J$8:J$239,MATCH($B110,'Disaggregation1B_Import-Export'!$C$8:$C$239,0))),\"\")","v":""},{"$f":"IFERROR(IF(INDEX('Disaggregation1B_Import-Export'!K$8:K$239,MATCH($B110,'Disaggregation1B_Import-Export'!$C$8:$C$239,0))=\"\",\"\",INDEX('Disaggregation1B_Import-Export'!K$8:K$239,MATCH($B110,'Disaggregation1B_Import-Export'!$C$8:$C$239,0))),\"\")","v":""},{"$f":"IFERROR(IF(INDEX('Disaggregation1B_Import-Export'!L$8:L$239,MATCH($B110,'Disaggregation1B_Import-Export'!$C$8:$C$239,0))=\"\",\"\",INDEX('Disaggregation1B_Import-Export'!L$8:L$239,MATCH($B110,'Disaggregation1B_Import-Export'!$C$8:$C$239,0))),\"\")","v":""},{"$f":"IFERROR(IF(INDEX('Disaggregation1B_Import-Export'!AQ$8:AQ$239,MATCH($B110,'Disaggregation1B_Import-Export'!$C$8:$C$239,0))=\"\",\"\",INDEX('Disaggregation1B_Import-Export'!AQ$8:AQ$239,MATCH($B110,'Disaggregation1B_Import-Export'!$C$8:$C$239,0))),\"\")","v":""},null,null,"",null,null,null,null,null,"",null,null,null,null,null,""]
[101,"Coverage101",{"$f":"IFERROR(INDEX('Disaggregation1B_Import-Export'!D$8:D$239,MATCH($B111,'Disaggregation1B_Import-Export'!$C$8:$C$239,0)),\"\")","v":""},{"$f":"IFERROR(INDEX('Disaggregation1B_Import-Export'!AF$8:AF$256,MATCH($B111,'Disaggregation1B_Import-Export'!$C$8:$C$256,0)),\"\")","v":""},{"$f":"IFERROR(IF(INDEX('Disaggregation1B_Import-Export'!AG$8:AG$239,MATCH($B111,'Disaggregation1B_Import-Export'!$C$8:$C$239,0))=\"\",\"\",INDEX('Disaggregation1B_Import-Export'!AG$8:AG$239,MATCH($B111,'Disaggregation1B_Import-Export'!$C$8:$C$239,0))),\"\")","v":""},{"$f":"IFERROR(IF(INDEX('Disaggregation1B_Import-Export'!AH$8:AH$239,MATCH($B111,'Disaggregation1B_Import-Export'!$C$8:$C$239,0))=\"\",\"\",INDEX('Disaggregation1B_Import-Export'!AH$8:AH$239,MATCH($B111,'Disaggregation1B_Import-Export'!$C$8:$C$239,0))),\"\")","v":""},{"$f":"IFERROR(IF(INDEX('Disaggregation1B_Import-Export'!H$8:H$239,MATCH($B111,'Disaggregation1B_Import-Export'!$C$8:$C$239,0))=\"\",\"\",INDEX('Disaggregation1B_Import-Export'!H$8:H$239,MATCH($B111,'Disaggregation1B_Import-Export'!$C$8:$C$239,0))),\"\")","v":""},{"$f":"IFERROR(IF(INDEX('Disaggregation1B_Import-Export'!I$8:I$239,MATCH($B111,'Disaggregation1B_Import-Export'!$C$8:$C$239,0))=\"\",\"\",INDEX('Disaggregation1B_Import-Export'!I$8:I$239,MATCH($B111,'Disaggregation1B_Import-Export'!$C$8:$C$239,0))),\"\")","v":""},{"$f":"IFERROR(IF(INDEX('Disaggregation1B_Import-Export'!J$8:J$239,MATCH($B111,'Disaggregation1B_Import-Export'!$C$8:$C$239,0))=\"\",\"\",INDEX('Disaggregation1B_Import-Export'!J$8:J$239,MATCH($B111,'Disaggregation1B_Import-Export'!$C$8:$C$239,0))),\"\")","v":""},{"$f":"IFERROR(IF(INDEX('Disaggregation1B_Import-Export'!K$8:K$239,MATCH($B111,'Disaggregation1B_Import-Export'!$C$8:$C$239,0))=\"\",\"\",INDEX('Disaggregation1B_Import-Export'!K$8:K$239,MATCH($B111,'Disaggregation1B_Import-Export'!$C$8:$C$239,0))),\"\")","v":""},{"$f":"IFERROR(IF(INDEX('Disaggregation1B_Import-Export'!L$8:L$239,MATCH($B111,'Disaggregation1B_Import-Export'!$C$8:$C$239,0))=\"\",\"\",INDEX('Disaggregation1B_Import-Export'!L$8:L$239,MATCH($B111,'Disaggregation1B_Import-Export'!$C$8:$C$239,0))),\"\")","v":""},{"$f":"IFERROR(IF(INDEX('Disaggregation1B_Import-Export'!AQ$8:AQ$239,MATCH($B111,'Disaggregation1B_Import-Export'!$C$8:$C$239,0))=\"\",\"\",INDEX('Disaggregation1B_Import-Export'!AQ$8:AQ$239,MATCH($B111,'Disaggregation1B_Import-Export'!$C$8:$C$239,0))),\"\")","v":""},null,null,"",null,null,null,null,null,"",null,null,null,null,null,""]
[102,"Coverage102",{"$f":"IFERROR(INDEX('Disaggregation1B_Import-Export'!D$8:D$239,MATCH($B112,'Disaggregation1B_Import-Export'!$C$8:$C$239,0)),\"\")","v":""},{"$f":"IFERROR(INDEX('Disaggregation1B_Import-Export'!AF$8:AF$256,MATCH($B112,'Disaggregation1B_Import-Export'!$C$8:$C$256,0)),\"\")","v":""},{"$f":"IFERROR(IF(INDEX('Disaggregation1B_Import-Export'!AG$8:AG$239,MATCH($B112,'Disaggregation1B_Import-Export'!$C$8:$C$239,0))=\"\",\"\",INDEX('Disaggregation1B_Import-Export'!AG$8:AG$239,MATCH($B112,'Disaggregation1B_Import-Export'!$C$8:$C$239,0))),\"\")","v":""},{"$f":"IFERROR(IF(INDEX('Disaggregation1B_Import-Export'!AH$8:AH$239,MATCH($B112,'Disaggregation1B_Import-Export'!$C$8:$C$239,0))=\"\",\"\",INDEX('Disaggregation1B_Import-Export'!AH$8:AH$239,MATCH($B112,'Disaggregation1B_Import-Export'!$C$8:$C$239,0))),\"\")","v":""},{"$f":"IFERROR(IF(INDEX('Disaggregation1B_Import-Export'!H$8:H$239,MATCH($B112,'Disaggregation1B_Import-Export'!$C$8:$C$239,0))=\"\",\"\",INDEX('Disaggregation1B_Import-Export'!H$8:H$239,MATCH($B112,'Disaggregation1B_Import-Export'!$C$8:$C$239,0))),\"\")","v":""},{"$f":"IFERROR(IF(INDEX('Disaggregation1B_Import-Export'!I$8:I$239,MATCH($B112,'Disaggregation1B_Import-Export'!$C$8:$C$239,0))=\"\",\"\",INDEX('Disaggregation1B_Import-Export'!I$8:I$239,MATCH($B112,'Disaggregation1B_Import-Export'!$C$8:$C$239,0))),\"\")","v":""},{"$f":"IFERROR(IF(INDEX('Disaggregation1B_Import-Export'!J$8:J$239,MATCH($B112,'Disaggregation1B_Import-Export'!$C$8:$C$239,0))=\"\",\"\",INDEX('Disaggregation1B_Import-Export'!J$8:J$239,MATCH($B112,'Disaggregation1B_Import-Export'!$C$8:$C$239,0))),\"\")","v":""},{"$f":"IFERROR(IF(INDEX('Disaggregation1B_Import-Export'!K$8:K$239,MATCH($B112,'Disaggregation1B_Import-Export'!$C$8:$C$239,0))=\"\",\"\",INDEX('Disaggregation1B_Import-Export'!K$8:K$239,MATCH($B112,'Disaggregation1B_Import-Export'!$C$8:$C$239,0))),\"\")","v":""},{"$f":"IFERROR(IF(INDEX('Disaggregation1B_Import-Export'!L$8:L$239,MATCH($B112,'Disaggregation1B_Import-Export'!$C$8:$C$239,0))=\"\",\"\",INDEX('Disaggregation1B_Import-Export'!L$8:L$239,MATCH($B112,'Disaggregation1B_Import-Export'!$C$8:$C$239,0))),\"\")","v":""},{"$f":"IFERROR(IF(INDEX('Disaggregation1B_Import-Export'!AQ$8:AQ$239,MATCH($B112,'Disaggregation1B_Import-Export'!$C$8:$C$239,0))=\"\",\"\",INDEX('Disaggregation1B_Import-Export'!AQ$8:AQ$239,MATCH($B112,'Disaggregation1B_Import-Export'!$C$8:$C$239,0))),\"\")","v":""},null,null,"",null,null,null,null,null,"",null,null,null,null,null,""]
[103,"Coverage103",{"$f":"IFERROR(INDEX('Disaggregation1B_Import-Export'!D$8:D$239,MATCH($B113,'Disaggregation1B_Import-Export'!$C$8:$C$239,0)),\"\")","v":""},{"$f":"IFERROR(INDEX('Disaggregation1B_Import-Export'!AF$8:AF$256,MATCH($B113,'Disaggregation1B_Import-Export'!$C$8:$C$256,0)),\"\")","v":""},{"$f":"IFERROR(IF(INDEX('Disaggregation1B_Import-Export'!AG$8:AG$239,MATCH($B113,'Disaggregation1B_Import-Export'!$C$8:$C$239,0))=\"\",\"\",INDEX('Disaggregation1B_Import-Export'!AG$8:AG$239,MATCH($B113,'Disaggregation1B_Import-Export'!$C$8:$C$239,0))),\"\")","v":""},{"$f":"IFERROR(IF(INDEX('Disaggregation1B_Import-Export'!AH$8:AH$239,MATCH($B113,'Disaggregation1B_Import-Export'!$C$8:$C$239,0))=\"\",\"\",INDEX('Disaggregation1B_Import-Export'!AH$8:AH$239,MATCH($B113,'Disaggregation1B_Import-Export'!$C$8:$C$239,0))),\"\")","v":""},{"$f":"IFERROR(IF(INDEX('Disaggregation1B_Import-Export'!H$8:H$239,MATCH($B113,'Disaggregation1B_Import-Export'!$C$8:$C$239,0))=\"\",\"\",INDEX('Disaggregation1B_Import-Export'!H$8:H$239,MATCH($B113,'Disaggregation1B_Import-Export'!$C$8:$C$239,0))),\"\")","v":""},{"$f":"IFERROR(IF(INDEX('Disaggregation1B_Import-Export'!I$8:I$239,MATCH($B113,'Disaggregation1B_Import-Export'!$C$8:$C$239,0))=\"\",\"\",INDEX('Disaggregation1B_Import-Export'!I$8:I$239,MATCH($B113,'Disaggregation1B_Import-Export'!$C$8:$C$239,0))),\"\")","v":""},{"$f":"IFERROR(IF(INDEX('Disaggregation1B_Import-Export'!J$8:J$239,MATCH($B113,'Disaggregation1B_Import-Export'!$C$8:$C$239,0))=\"\",\"\",INDEX('Disaggregation1B_Import-Export'!J$8:J$239,MATCH($B113,'Disaggregation1B_Import-Export'!$C$8:$C$239,0))),\"\")","v":""},{"$f":"IFERROR(IF(INDEX('Disaggregation1B_Import-Export'!K$8:K$239,MATCH($B113,'Disaggregation1B_Import-Export'!$C$8:$C$239,0))=\"\",\"\",INDEX('Disaggregation1B_Import-Export'!K$8:K$239,MATCH($B113,'Disaggregation1B_Import-Export'!$C$8:$C$239,0))),\"\")","v":""},{"$f":"IFERROR(IF(INDEX('Disaggregation1B_Import-Export'!L$8:L$239,MATCH($B113,'Disaggregation1B_Import-Export'!$C$8:$C$239,0))=\"\",\"\",INDEX('Disaggregation1B_Import-Export'!L$8:L$239,MATCH($B113,'Disaggregation1B_Import-Export'!$C$8:$C$239,0))),\"\")","v":""},{"$f":"IFERROR(IF(INDEX('Disaggregation1B_Import-Export'!AQ$8:AQ$239,MATCH($B113,'Disaggregation1B_Import-Export'!$C$8:$C$239,0))=\"\",\"\",INDEX('Disaggregation1B_Import-Export'!AQ$8:AQ$239,MATCH($B113,'Disaggregation1B_Import-Export'!$C$8:$C$239,0))),\"\")","v":""},null,null,"",null,null,null,null,null,"",null,null,null,null,null,""]
[104,{"$f":"\"Coverage\"&A114","v":"Coverage104"},{"$f":"IFERROR(INDEX('Disaggregation1B_Import-Export'!D$8:D$239,MATCH($B114,'Disaggregation1B_Import-Export'!$C$8:$C$239,0)),\"\")","v":""},{"$f":"IFERROR(INDEX('Disaggregation1B_Import-Export'!AF$8:AF$256,MATCH($B114,'Disaggregation1B_Import-Export'!$C$8:$C$256,0)),\"\")","v":""},{"$f":"IFERROR(IF(INDEX('Disaggregation1B_Import-Export'!AG$8:AG$239,MATCH($B114,'Disaggregation1B_Import-Export'!$C$8:$C$239,0))=\"\",\"\",INDEX('Disaggregation1B_Import-Export'!AG$8:AG$239,MATCH($B114,'Disaggregation1B_Import-Export'!$C$8:$C$239,0))),\"\")","v":""},{"$f":"IFERROR(IF(INDEX('Disaggregation1B_Import-Export'!AH$8:AH$239,MATCH($B114,'Disaggregation1B_Import-Export'!$C$8:$C$239,0))=\"\",\"\",INDEX('Disaggregation1B_Import-Export'!AH$8:AH$239,MATCH($B114,'Disaggregation1B_Import-Export'!$C$8:$C$239,0))),\"\")","v":""},{"$f":"IFERROR(IF(INDEX('Disaggregation1B_Import-Export'!H$8:H$239,MATCH($B114,'Disaggregation1B_Import-Export'!$C$8:$C$239,0))=\"\",\"\",INDEX('Disaggregation1B_Import-Export'!H$8:H$239,MATCH($B114,'Disaggregation1B_Import-Export'!$C$8:$C$239,0))),\"\")","v":""},{"$f":"IFERROR(IF(INDEX('Disaggregation1B_Import-Export'!I$8:I$239,MATCH($B114,'Disaggregation1B_Import-Export'!$C$8:$C$239,0))=\"\",\"\",INDEX('Disaggregation1B_Import-Export'!I$8:I$239,MATCH($B114,'Disaggregation1B_Import-Export'!$C$8:$C$239,0))),\"\")","v":""},{"$f":"IFERROR(IF(INDEX('Disaggregation1B_Import-Export'!J$8:J$239,MATCH($B114,'Disaggregation1B_Import-Export'!$C$8:$C$239,0))=\"\",\"\",INDEX('Disaggregation1B_Import-Export'!J$8:J$239,MATCH($B114,'Disaggregation1B_Import-Export'!$C$8:$C$239,0))),\"\")","v":""},{"$f":"IFERROR(IF(INDEX('Disaggregation1B_Import-Export'!K$8:K$239,MATCH($B114,'Disaggregation1B_Import-Export'!$C$8:$C$239,0))=\"\",\"\",INDEX('Disaggregation1B_Import-Export'!K$8:K$239,MATCH($B114,'Disaggregation1B_Import-Export'!$C$8:$C$239,0))),\"\")","v":""},{"$f":"IFERROR(IF(INDEX('Disaggregation1B_Import-Export'!L$8:L$239,MATCH($B114,'Disaggregation1B_Import-Export'!$C$8:$C$239,0))=\"\",\"\",INDEX('Disaggregation1B_Import-Export'!L$8:L$239,MATCH($B114,'Disaggregation1B_Import-Export'!$C$8:$C$239,0))),\"\")","v":""},{"$f":"IFERROR(IF(INDEX('Disaggregation1B_Import-Export'!AQ$8:AQ$239,MATCH($B114,'Disaggregation1B_Import-Export'!$C$8:$C$239,0))=\"\",\"\",INDEX('Disaggregation1B_Import-Export'!AQ$8:AQ$239,MATCH($B114,'Disaggregation1B_Import-Export'!$C$8:$C$239,0))),\"\")","v":""},null,null,{"$f":"IFERROR((M114/N114)*100,\"\")","v":""},null,null,null,null,null,{"$f":"IFERROR((S114/T114)*100,\"\")","v":""},null,null,null,null,null,{"$f":"IFERROR(Y114/Z114,\"\")","v":""}]
[105,"Coverage105",{"$f":"IFERROR(INDEX('Disaggregation1B_Import-Export'!D$8:D$239,MATCH($B115,'Disaggregation1B_Import-Export'!$C$8:$C$239,0)),\"\")","v":""},{"$f":"IFERROR(INDEX('Disaggregation1B_Import-Export'!AF$8:AF$256,MATCH($B115,'Disaggregation1B_Import-Export'!$C$8:$C$256,0)),\"\")","v":""},{"$f":"IFERROR(IF(INDEX('Disaggregation1B_Import-Export'!AG$8:AG$239,MATCH($B115,'Disaggregation1B_Import-Export'!$C$8:$C$239,0))=\"\",\"\",INDEX('Disaggregation1B_Import-Export'!AG$8:AG$239,MATCH($B115,'Disaggregation1B_Import-Export'!$C$8:$C$239,0))),\"\")","v":""},{"$f":"IFERROR(IF(INDEX('Disaggregation1B_Import-Export'!AH$8:AH$239,MATCH($B115,'Disaggregation1B_Import-Export'!$C$8:$C$239,0))=\"\",\"\",INDEX('Disaggregation1B_Import-Export'!AH$8:AH$239,MATCH($B115,'Disaggregation1B_Import-Export'!$C$8:$C$239,0))),\"\")","v":""},{"$f":"IFERROR(IF(INDEX('Disaggregation1B_Import-Export'!H$8:H$239,MATCH($B115,'Disaggregation1B_Import-Export'!$C$8:$C$239,0))=\"\",\"\",INDEX('Disaggregation1B_Import-Export'!H$8:H$239,MATCH($B115,'Disaggregation1B_Import-Export'!$C$8:$C$239,0))),\"\")","v":""},{"$f":"IFERROR(IF(INDEX('Disaggregation1B_Import-Export'!I$8:I$239,MATCH($B115,'Disaggregation1B_Import-Export'!$C$8:$C$239,0))=\"\",\"\",INDEX('Disaggregation1B_Import-Export'!I$8:I$239,MATCH($B115,'Disaggregation1B_Import-Export'!$C$8:$C$239,0))),\"\")","v":""},{"$f":"IFERROR(IF(INDEX('Disaggregation1B_Import-Export'!J$8:J$239,MATCH($B115,'Disaggregation1B_Import-Export'!$C$8:$C$239,0))=\"\",\"\",INDEX('Disaggregation1B_Import-Export'!J$8:J$239,MATCH($B115,'Disaggregation1B_Import-Export'!$C$8:$C$239,0))),\"\")","v":""},{"$f":"IFERROR(IF(INDEX('Disaggregation1B_Import-Export'!K$8:K$239,MATCH($B115,'Disaggregation1B_Import-Export'!$C$8:$C$239,0))=\"\",\"\",INDEX('Disaggregation1B_Import-Export'!K$8:K$239,MATCH($B115,'Disaggregation1B_Import-Export'!$C$8:$C$239,0))),\"\")","v":""},{"$f":"IFERROR(IF(INDEX('Disaggregation1B_Import-Export'!L$8:L$239,MATCH($B115,'Disaggregation1B_Import-Export'!$C$8:$C$239,0))=\"\",\"\",INDEX('Disaggregation1B_Import-Export'!L$8:L$239,MATCH($B115,'Disaggregation1B_Import-Export'!$C$8:$C$239,0))),\"\")","v":""},{"$f":"IFERROR(IF(INDEX('Disaggregation1B_Import-Export'!AQ$8:AQ$239,MATCH($B115,'Disaggregation1B_Import-Export'!$C$8:$C$239,0))=\"\",\"\",INDEX('Disaggregation1B_Import-Export'!AQ$8:AQ$239,MATCH($B115,'Disaggregation1B_Import-Export'!$C$8:$C$239,0))),\"\")","v":""},null,null,"",null,null,null,null,null,"",null,null,null,null,null,""]
[106,"Coverage106",{"$f":"IFERROR(INDEX('Disaggregation1B_Import-Export'!D$8:D$239,MATCH($B116,'Disaggregation1B_Import-Export'!$C$8:$C$239,0)),\"\")","v":""},{"$f":"IFERROR(INDEX('Disaggregation1B_Import-Export'!AF$8:AF$256,MATCH($B116,'Disaggregation1B_Import-Export'!$C$8:$C$256,0)),\"\")","v":""},{"$f":"IFERROR(IF(INDEX('Disaggregation1B_Import-Export'!AG$8:AG$239,MATCH($B116,'Disaggregation1B_Import-Export'!$C$8:$C$239,0))=\"\",\"\",INDEX('Disaggregation1B_Import-Export'!AG$8:AG$239,MATCH($B116,'Disaggregation1B_Import-Export'!$C$8:$C$239,0))),\"\")","v":""},{"$f":"IFERROR(IF(INDEX('Disaggregation1B_Import-Export'!AH$8:AH$239,MATCH($B116,'Disaggregation1B_Import-Export'!$C$8:$C$239,0))=\"\",\"\",INDEX('Disaggregation1B_Import-Export'!AH$8:AH$239,MATCH($B116,'Disaggregation1B_Import-Export'!$C$8:$C$239,0))),\"\")","v":""},{"$f":"IFERROR(IF(INDEX('Disaggregation1B_Import-Export'!H$8:H$239,MATCH($B116,'Disaggregation1B_Import-Export'!$C$8:$C$239,0))=\"\",\"\",INDEX('Disaggregation1B_Import-Export'!H$8:H$239,MATCH($B116,'Disaggregation1B_Import-Export'!$C$8:$C$239,0))),\"\")","v":""},{"$f":"IFERROR(IF(INDEX('Disaggregation1B_Import-Export'!I$8:I$239,MATCH($B116,'Disaggregation1B_Import-Export'!$C$8:$C$239,0))=\"\",\"\",INDEX('Disaggregation1B_Import-Export'!I$8:I$239,MATCH($B116,'Disaggregation1B_Import-Export'!$C$8:$C$239,0))),\"\")","v":""},{"$f":"IFERROR(IF(INDEX('Disaggregation1B_Import-Export'!J$8:J$239,MATCH($B116,'Disaggregation1B_Import-Export'!$C$8:$C$239,0))=\"\",\"\",INDEX('Disaggregation1B_Import-Export'!J$8:J$239,MATCH($B116,'Disaggregation1B_Import-Export'!$C$8:$C$239,0))),\"\")","v":""},{"$f":"IFERROR(IF(INDEX('Disaggregation1B_Import-Export'!K$8:K$239,MATCH($B116,'Disaggregation1B_Import-Export'!$C$8:$C$239,0))=\"\",\"\",INDEX('Disaggregation1B_Import-Export'!K$8:K$239,MATCH($B116,'Disaggregation1B_Import-Export'!$C$8:$C$239,0))),\"\")","v":""},{"$f":"IFERROR(IF(INDEX('Disaggregation1B_Import-Export'!L$8:L$239,MATCH($B116,'Disaggregation1B_Import-Export'!$C$8:$C$239,0))=\"\",\"\",INDEX('Disaggregation1B_Import-Export'!L$8:L$239,MATCH($B116,'Disaggregation1B_Import-Export'!$C$8:$C$239,0))),\"\")","v":""},{"$f":"IFERROR(IF(INDEX('Disaggregation1B_Import-Export'!AQ$8:AQ$239,MATCH($B116,'Disaggregation1B_Import-Export'!$C$8:$C$239,0))=\"\",\"\",INDEX('Disaggregation1B_Import-Export'!AQ$8:AQ$239,MATCH($B116,'Disaggregation1B_Import-Export'!$C$8:$C$239,0))),\"\")","v":""},null,null,"",null,null,null,null,null,"",null,null,null,null,null,""]
[107,"Coverage107",{"$f":"IFERROR(INDEX('Disaggregation1B_Import-Export'!D$8:D$239,MATCH($B117,'Disaggregation1B_Import-Export'!$C$8:$C$239,0)),\"\")","v":""},{"$f":"IFERROR(INDEX('Disaggregation1B_Import-Export'!AF$8:AF$256,MATCH($B117,'Disaggregation1B_Import-Export'!$C$8:$C$256,0)),\"\")","v":""},{"$f":"IFERROR(IF(INDEX('Disaggregation1B_Import-Export'!AG$8:AG$239,MATCH($B117,'Disaggregation1B_Import-Export'!$C$8:$C$239,0))=\"\",\"\",INDEX('Disaggregation1B_Import-Export'!AG$8:AG$239,MATCH($B117,'Disaggregation1B_Import-Export'!$C$8:$C$239,0))),\"\")","v":""},{"$f":"IFERROR(IF(INDEX('Disaggregation1B_Import-Export'!AH$8:AH$239,MATCH($B117,'Disaggregation1B_Import-Export'!$C$8:$C$239,0))=\"\",\"\",INDEX('Disaggregation1B_Import-Export'!AH$8:AH$239,MATCH($B117,'Disaggregation1B_Import-Export'!$C$8:$C$239,0))),\"\")","v":""},{"$f":"IFERROR(IF(INDEX('Disaggregation1B_Import-Export'!H$8:H$239,MATCH($B117,'Disaggregation1B_Import-Export'!$C$8:$C$239,0))=\"\",\"\",INDEX('Disaggregation1B_Import-Export'!H$8:H$239,MATCH($B117,'Disaggregation1B_Import-Export'!$C$8:$C$239,0))),\"\")","v":""},{"$f":"IFERROR(IF(INDEX('Disaggregation1B_Import-Export'!I$8:I$239,MATCH($B117,'Disaggregation1B_Import-Export'!$C$8:$C$239,0))=\"\",\"\",INDEX('Disaggregation1B_Import-Export'!I$8:I$239,MATCH($B117,'Disaggregation1B_Import-Export'!$C$8:$C$239,0))),\"\")","v":""},{"$f":"IFERROR(IF(INDEX('Disaggregation1B_Import-Export'!J$8:J$239,MATCH($B117,'Disaggregation1B_Import-Export'!$C$8:$C$239,0))=\"\",\"\",INDEX('Disaggregation1B_Import-Export'!J$8:J$239,MATCH($B117,'Disaggregation1B_Import-Export'!$C$8:$C$239,0))),\"\")","v":""},{"$f":"IFERROR(IF(INDEX('Disaggregation1B_Import-Export'!K$8:K$239,MATCH($B117,'Disaggregation1B_Import-Export'!$C$8:$C$239,0))=\"\",\"\",INDEX('Disaggregation1B_Import-Export'!K$8:K$239,MATCH($B117,'Disaggregation1B_Import-Export'!$C$8:$C$239,0))),\"\")","v":""},{"$f":"IFERROR(IF(INDEX('Disaggregation1B_Import-Export'!L$8:L$239,MATCH($B117,'Disaggregation1B_Import-Export'!$C$8:$C$239,0))=\"\",\"\",INDEX('Disaggregation1B_Import-Export'!L$8:L$239,MATCH($B117,'Disaggregation1B_Import-Export'!$C$8:$C$239,0))),\"\")","v":""},{"$f":"IFERROR(IF(INDEX('Disaggregation1B_Import-Export'!AQ$8:AQ$239,MATCH($B117,'Disaggregation1B_Import-Export'!$C$8:$C$239,0))=\"\",\"\",INDEX('Disaggregation1B_Import-Export'!AQ$8:AQ$239,MATCH($B117,'Disaggregation1B_Import-Export'!$C$8:$C$239,0))),\"\")","v":""},null,null,"",null,null,null,null,null,"",null,null,null,null,null,""]
[108,"Coverage108",{"$f":"IFERROR(INDEX('Disaggregation1B_Import-Export'!D$8:D$239,MATCH($B118,'Disaggregation1B_Import-Export'!$C$8:$C$239,0)),\"\")","v":""},{"$f":"IFERROR(INDEX('Disaggregation1B_Import-Export'!AF$8:AF$256,MATCH($B118,'Disaggregation1B_Import-Export'!$C$8:$C$256,0)),\"\")","v":""},{"$f":"IFERROR(IF(INDEX('Disaggregation1B_Import-Export'!AG$8:AG$239,MATCH($B118,'Disaggregation1B_Import-Export'!$C$8:$C$239,0))=\"\",\"\",INDEX('Disaggregation1B_Import-Export'!AG$8:AG$239,MATCH($B118,'Disaggregation1B_Import-Export'!$C$8:$C$239,0))),\"\")","v":""},{"$f":"IFERROR(IF(INDEX('Disaggregation1B_Import-Export'!AH$8:AH$239,MATCH($B118,'Disaggregation1B_Import-Export'!$C$8:$C$239,0))=\"\",\"\",INDEX('Disaggregation1B_Import-Export'!AH$8:AH$239,MATCH($B118,'Disaggregation1B_Import-Export'!$C$8:$C$239,0))),\"\")","v":""},{"$f":"IFERROR(IF(INDEX('Disaggregation1B_Import-Export'!H$8:H$239,MATCH($B118,'Disaggregation1B_Import-Export'!$C$8:$C$239,0))=\"\",\"\",INDEX('Disaggregation1B_Import-Export'!H$8:H$239,MATCH($B118,'Disaggregation1B_Import-Export'!$C$8:$C$239,0))),\"\")","v":""},{"$f":"IFERROR(IF(INDEX('Disaggregation1B_Import-Export'!I$8:I$239,MATCH($B118,'Disaggregation1B_Import-Export'!$C$8:$C$239,0))=\"\",\"\",INDEX('Disaggregation1B_Import-Export'!I$8:I$239,MATCH($B118,'Disaggregation1B_Import-Export'!$C$8:$C$239,0))),\"\")","v":""},{"$f":"IFERROR(IF(INDEX('Disaggregation1B_Import-Export'!J$8:J$239,MATCH($B118,'Disaggregation1B_Import-Export'!$C$8:$C$239,0))=\"\",\"\",INDEX('Disaggregation1B_Import-Export'!J$8:J$239,MATCH($B118,'Disaggregation1B_Import-Export'!$C$8:$C$239,0))),\"\")","v":""},{"$f":"IFERROR(IF(INDEX('Disaggregation1B_Import-Export'!K$8:K$239,MATCH($B118,'Disaggregation1B_Import-Export'!$C$8:$C$239,0))=\"\",\"\",INDEX('Disaggregation1B_Import-Export'!K$8:K$239,MATCH($B118,'Disaggregation1B_Import-Export'!$C$8:$C$239,0))),\"\")","v":""},{"$f":"IFERROR(IF(INDEX('Disaggregation1B_Import-Export'!L$8:L$239,MATCH($B118,'Disaggregation1B_Import-Export'!$C$8:$C$239,0))=\"\",\"\",INDEX('Disaggregation1B_Import-Export'!L$8:L$239,MATCH($B118,'Disaggregation1B_Import-Export'!$C$8:$C$239,0))),\"\")","v":""},{"$f":"IFERROR(IF(INDEX('Disaggregation1B_Import-Export'!AQ$8:AQ$239,MATCH($B118,'Disaggregation1B_Import-Export'!$C$8:$C$239,0))=\"\",\"\",INDEX('Disaggregation1B_Import-Export'!AQ$8:AQ$239,MATCH($B118,'Disaggregation1B_Import-Export'!$C$8:$C$239,0))),\"\")","v":""},null,null,"",null,null,null,null,null,"",null,null,null,null,null,""]
[109,"Coverage109",{"$f":"IFERROR(INDEX('Disaggregation1B_Import-Export'!D$8:D$239,MATCH($B119,'Disaggregation1B_Import-Export'!$C$8:$C$239,0)),\"\")","v":""},{"$f":"IFERROR(INDEX('Disaggregation1B_Import-Export'!AF$8:AF$256,MATCH($B119,'Disaggregation1B_Import-Export'!$C$8:$C$256,0)),\"\")","v":""},{"$f":"IFERROR(IF(INDEX('Disaggregation1B_Import-Export'!AG$8:AG$239,MATCH($B119,'Disaggregation1B_Import-Export'!$C$8:$C$239,0))=\"\",\"\",INDEX('Disaggregation1B_Import-Export'!AG$8:AG$239,MATCH($B119,'Disaggregation1B_Import-Export'!$C$8:$C$239,0))),\"\")","v":""},{"$f":"IFERROR(IF(INDEX('Disaggregation1B_Import-Export'!AH$8:AH$239,MATCH($B119,'Disaggregation1B_Import-Export'!$C$8:$C$239,0))=\"\",\"\",INDEX('Disaggregation1B_Import-Export'!AH$8:AH$239,MATCH($B119,'Disaggregation1B_Import-Export'!$C$8:$C$239,0))),\"\")","v":""},{"$f":"IFERROR(IF(INDEX('Disaggregation1B_Import-Export'!H$8:H$239,MATCH($B119,'Disaggregation1B_Import-Export'!$C$8:$C$239,0))=\"\",\"\",INDEX('Disaggregation1B_Import-Export'!H$8:H$239,MATCH($B119,'Disaggregation1B_Import-Export'!$C$8:$C$239,0))),\"\")","v":""},{"$f":"IFERROR(IF(INDEX('Disaggregation1B_Import-Export'!I$8:I$239,MATCH($B119,'Disaggregation1B_Import-Export'!$C$8:$C$239,0))=\"\",\"\",INDEX('Disaggregation1B_Import-Export'!I$8:I$239,MATCH($B119,'Disaggregation1B_Import-Export'!$C$8:$C$239,0))),\"\")","v":""},{"$f":"IFERROR(IF(INDEX('Disaggregation1B_Import-Export'!J$8:J$239,MATCH($B119,'Disaggregation1B_Import-Export'!$C$8:$C$239,0))=\"\",\"\",INDEX('Disaggregation1B_Import-Export'!J$8:J$239,MATCH($B119,'Disaggregation1B_Import-Export'!$C$8:$C$239,0))),\"\")","v":""},{"$f":"IFERROR(IF(INDEX('Disaggregation1B_Import-Export'!K$8:K$239,MATCH($B119,'Disaggregation1B_Import-Export'!$C$8:$C$239,0))=\"\",\"\",INDEX('Disaggregation1B_Import-Export'!K$8:K$239,MATCH($B119,'Disaggregation1B_Import-Export'!$C$8:$C$239,0))),\"\")","v":""},{"$f":"IFERROR(IF(INDEX('Disaggregation1B_Import-Export'!L$8:L$239,MATCH($B119,'Disaggregation1B_Import-Export'!$C$8:$C$239,0))=\"\",\"\",INDEX('Disaggregation1B_Import-Export'!L$8:L$239,MATCH($B119,'Disaggregation1B_Import-Export'!$C$8:$C$239,0))),\"\")","v":""},{"$f":"IFERROR(IF(INDEX('Disaggregation1B_Import-Export'!AQ$8:AQ$239,MATCH($B119,'Disaggregation1B_Import-Export'!$C$8:$C$239,0))=\"\",\"\",INDEX('Disaggregation1B_Import-Export'!AQ$8:AQ$239,MATCH($B119,'Disaggregation1B_Import-Export'!$C$8:$C$239,0))),\"\")","v":""},null,null,"",null,null,null,null,null,"",null,null,null,null,null,""]
[110,"Coverage110",{"$f":"IFERROR(INDEX('Disaggregation1B_Import-Export'!D$8:D$239,MATCH($B120,'Disaggregation1B_Import-Export'!$C$8:$C$239,0)),\"\")","v":""},{"$f":"IFERROR(INDEX('Disaggregation1B_Import-Export'!AF$8:AF$256,MATCH($B120,'Disaggregation1B_Import-Export'!$C$8:$C$256,0)),\"\")","v":""},{"$f":"IFERROR(IF(INDEX('Disaggregation1B_Import-Export'!AG$8:AG$239,MATCH($B120,'Disaggregation1B_Import-Export'!$C$8:$C$239,0))=\"\",\"\",INDEX('Disaggregation1B_Import-Export'!AG$8:AG$239,MATCH($B120,'Disaggregation1B_Import-Export'!$C$8:$C$239,0))),\"\")","v":""},{"$f":"IFERROR(IF(INDEX('Disaggregation1B_Import-Export'!AH$8:AH$239,MATCH($B120,'Disaggregation1B_Import-Export'!$C$8:$C$239,0))=\"\",\"\",INDEX('Disaggregation1B_Import-Export'!AH$8:AH$239,MATCH($B120,'Disaggregation1B_Import-Export'!$C$8:$C$239,0))),\"\")","v":""},{"$f":"IFERROR(IF(INDEX('Disaggregation1B_Import-Export'!H$8:H$239,MATCH($B120,'Disaggregation1B_Import-Export'!$C$8:$C$239,0))=\"\",\"\",INDEX('Disaggregation1B_Import-Export'!H$8:H$239,MATCH($B120,'Disaggregation1B_Import-Export'!$C$8:$C$239,0))),\"\")","v":""},{"$f":"IFERROR(IF(INDEX('Disaggregation1B_Import-Export'!I$8:I$239,MATCH($B120,'Disaggregation1B_Import-Export'!$C$8:$C$239,0))=\"\",\"\",INDEX('Disaggregation1B_Import-Export'!I$8:I$239,MATCH($B120,'Disaggregation1B_Import-Export'!$C$8:$C$239,0))),\"\")","v":""},{"$f":"IFERROR(IF(INDEX('Disaggregation1B_Import-Export'!J$8:J$239,MATCH($B120,'Disaggregation1B_Import-Export'!$C$8:$C$239,0))=\"\",\"\",INDEX('Disaggregation1B_Import-Export'!J$8:J$239,MATCH($B120,'Disaggregation1B_Import-Export'!$C$8:$C$239,0))),\"\")","v":""},{"$f":"IFERROR(IF(INDEX('Disaggregation1B_Import-Export'!K$8:K$239,MATCH($B120,'Disaggregation1B_Import-Export'!$C$8:$C$239,0))=\"\",\"\",INDEX('Disaggregation1B_Import-Export'!K$8:K$239,MATCH($B120,'Disaggregation1B_Import-Export'!$C$8:$C$239,0))),\"\")","v":""},{"$f":"IFERROR(IF(INDEX('Disaggregation1B_Import-Export'!L$8:L$239,MATCH($B120,'Disaggregation1B_Import-Export'!$C$8:$C$239,0))=\"\",\"\",INDEX('Disaggregation1B_Import-Export'!L$8:L$239,MATCH($B120,'Disaggregation1B_Import-Export'!$C$8:$C$239,0))),\"\")","v":""},{"$f":"IFERROR(IF(INDEX('Disaggregation1B_Import-Export'!AQ$8:AQ$239,MATCH($B120,'Disaggregation1B_Import-Export'!$C$8:$C$239,0))=\"\",\"\",INDEX('Disaggregation1B_Import-Export'!AQ$8:AQ$239,MATCH($B120,'Disaggregation1B_Import-Export'!$C$8:$C$239,0))),\"\")","v":""},null,null,"",null,null,null,null,null,"",null,null,null,null,null,""]
[111,"Coverage111",{"$f":"IFERROR(INDEX('Disaggregation1B_Import-Export'!D$8:D$239,MATCH($B121,'Disaggregation1B_Import-Export'!$C$8:$C$239,0)),\"\")","v":""},{"$f":"IFERROR(INDEX('Disaggregation1B_Import-Export'!AF$8:AF$256,MATCH($B121,'Disaggregation1B_Import-Export'!$C$8:$C$256,0)),\"\")","v":""},{"$f":"IFERROR(IF(INDEX('Disaggregation1B_Import-Export'!AG$8:AG$239,MATCH($B121,'Disaggregation1B_Import-Export'!$C$8:$C$239,0))=\"\",\"\",INDEX('Disaggregation1B_Import-Export'!AG$8:AG$239,MATCH($B121,'Disaggregation1B_Import-Export'!$C$8:$C$239,0))),\"\")","v":""},{"$f":"IFERROR(IF(INDEX('Disaggregation1B_Import-Export'!AH$8:AH$239,MATCH($B121,'Disaggregation1B_Import-Export'!$C$8:$C$239,0))=\"\",\"\",INDEX('Disaggregation1B_Import-Export'!AH$8:AH$239,MATCH($B121,'Disaggregation1B_Import-Export'!$C$8:$C$239,0))),\"\")","v":""},{"$f":"IFERROR(IF(INDEX('Disaggregation1B_Import-Export'!H$8:H$239,MATCH($B121,'Disaggregation1B_Import-Export'!$C$8:$C$239,0))=\"\",\"\",INDEX('Disaggregation1B_Import-Export'!H$8:H$239,MATCH($B121,'Disaggregation1B_Import-Export'!$C$8:$C$239,0))),\"\")","v":""},{"$f":"IFERROR(IF(INDEX('Disaggregation1B_Import-Export'!I$8:I$239,MATCH($B121,'Disaggregation1B_Import-Export'!$C$8:$C$239,0))=\"\",\"\",INDEX('Disaggregation1B_Import-Export'!I$8:I$239,MATCH($B121,'Disaggregation1B_Import-Export'!$C$8:$C$239,0))),\"\")","v":""},{"$f":"IFERROR(IF(INDEX('Disaggregation1B_Import-Export'!J$8:J$239,MATCH($B121,'Disaggregation1B_Import-Export'!$C$8:$C$239,0))=\"\",\"\",INDEX('Disaggregation1B_Import-Export'!J$8:J$239,MATCH($B121,'Disaggregation1B_Import-Export'!$C$8:$C$239,0))),\"\")","v":""},{"$f":"IFERROR(IF(INDEX('Disaggregation1B_Import-Export'!K$8:K$239,MATCH($B121,'Disaggregation1B_Import-Export'!$C$8:$C$239,0))=\"\",\"\",INDEX('Disaggregation1B_Import-Export'!K$8:K$239,MATCH($B121,'Disaggregation1B_Import-Export'!$C$8:$C$239,0))),\"\")","v":""},{"$f":"IFERROR(IF(INDEX('Disaggregation1B_Import-Export'!L$8:L$239,MATCH($B121,'Disaggregation1B_Import-Export'!$C$8:$C$239,0))=\"\",\"\",INDEX('Disaggregation1B_Import-Export'!L$8:L$239,MATCH($B121,'Disaggregation1B_Import-Export'!$C$8:$C$239,0))),\"\")","v":""},{"$f":"IFERROR(IF(INDEX('Disaggregation1B_Import-Export'!AQ$8:AQ$239,MATCH($B121,'Disaggregation1B_Import-Export'!$C$8:$C$239,0))=\"\",\"\",INDEX('Disaggregation1B_Import-Export'!AQ$8:AQ$239,MATCH($B121,'Disaggregation1B_Import-Export'!$C$8:$C$239,0))),\"\")","v":""},null,null,"",null,null,null,null,null,"",null,null,null,null,null,""]
[112,"Coverage112",{"$f":"IFERROR(INDEX('Disaggregation1B_Import-Export'!D$8:D$239,MATCH($B122,'Disaggregation1B_Import-Export'!$C$8:$C$239,0)),\"\")","v":""},{"$f":"IFERROR(INDEX('Disaggregation1B_Import-Export'!AF$8:AF$256,MATCH($B122,'Disaggregation1B_Import-Export'!$C$8:$C$256,0)),\"\")","v":""},{"$f":"IFERROR(IF(INDEX('Disaggregation1B_Import-Export'!AG$8:AG$239,MATCH($B122,'Disaggregation1B_Import-Export'!$C$8:$C$239,0))=\"\",\"\",INDEX('Disaggregation1B_Import-Export'!AG$8:AG$239,MATCH($B122,'Disaggregation1B_Import-Export'!$C$8:$C$239,0))),\"\")","v":""},{"$f":"IFERROR(IF(INDEX('Disaggregation1B_Import-Export'!AH$8:AH$239,MATCH($B122,'Disaggregation1B_Import-Export'!$C$8:$C$239,0))=\"\",\"\",INDEX('Disaggregation1B_Import-Export'!AH$8:AH$239,MATCH($B122,'Disaggregation1B_Import-Export'!$C$8:$C$239,0))),\"\")","v":""},{"$f":"IFERROR(IF(INDEX('Disaggregation1B_Import-Export'!H$8:H$239,MATCH($B122,'Disaggregation1B_Import-Export'!$C$8:$C$239,0))=\"\",\"\",INDEX('Disaggregation1B_Import-Export'!H$8:H$239,MATCH($B122,'Disaggregation1B_Import-Export'!$C$8:$C$239,0))),\"\")","v":""},{"$f":"IFERROR(IF(INDEX('Disaggregation1B_Import-Export'!I$8:I$239,MATCH($B122,'Disaggregation1B_Import-Export'!$C$8:$C$239,0))=\"\",\"\",INDEX('Disaggregation1B_Import-Export'!I$8:I$239,MATCH($B122,'Disaggregation1B_Import-Export'!$C$8:$C$239,0))),\"\")","v":""},{"$f":"IFERROR(IF(INDEX('Disaggregation1B_Import-Export'!J$8:J$239,MATCH($B122,'Disaggregation1B_Import-Export'!$C$8:$C$239,0))=\"\",\"\",INDEX('Disaggregation1B_Import-Export'!J$8:J$239,MATCH($B122,'Disaggregation1B_Import-Export'!$C$8:$C$239,0))),\"\")","v":""},{"$f":"IFERROR(IF(INDEX('Disaggregation1B_Import-Export'!K$8:K$239,MATCH($B122,'Disaggregation1B_Import-Export'!$C$8:$C$239,0))=\"\",\"\",INDEX('Disaggregation1B_Import-Export'!K$8:K$239,MATCH($B122,'Disaggregation1B_Import-Export'!$C$8:$C$239,0))),\"\")","v":""},{"$f":"IFERROR(IF(INDEX('Disaggregation1B_Import-Export'!L$8:L$239,MATCH($B122,'Disaggregation1B_Import-Export'!$C$8:$C$239,0))=\"\",\"\",INDEX('Disaggregation1B_Import-Export'!L$8:L$239,MATCH($B122,'Disaggregation1B_Import-Export'!$C$8:$C$239,0))),\"\")","v":""},{"$f":"IFERROR(IF(INDEX('Disaggregation1B_Import-Export'!AQ$8:AQ$239,MATCH($B122,'Disaggregation1B_Import-Export'!$C$8:$C$239,0))=\"\",\"\",INDEX('Disaggregation1B_Import-Export'!AQ$8:AQ$239,MATCH($B122,'Disaggregation1B_Import-Export'!$C$8:$C$239,0))),\"\")","v":""},null,null,"",null,null,null,null,null,"",null,null,null,null,null,""]
[113,"Coverage113",{"$f":"IFERROR(INDEX('Disaggregation1B_Import-Export'!D$8:D$239,MATCH($B123,'Disaggregation1B_Import-Export'!$C$8:$C$239,0)),\"\")","v":""},{"$f":"IFERROR(INDEX('Disaggregation1B_Import-Export'!AF$8:AF$256,MATCH($B123,'Disaggregation1B_Import-Export'!$C$8:$C$256,0)),\"\")","v":""},{"$f":"IFERROR(IF(INDEX('Disaggregation1B_Import-Export'!AG$8:AG$239,MATCH($B123,'Disaggregation1B_Import-Export'!$C$8:$C$239,0))=\"\",\"\",INDEX('Disaggregation1B_Import-Export'!AG$8:AG$239,MATCH($B123,'Disaggregation1B_Import-Export'!$C$8:$C$239,0))),\"\")","v":""},{"$f":"IFERROR(IF(INDEX('Disaggregation1B_Import-Export'!AH$8:AH$239,MATCH($B123,'Disaggregation1B_Import-Export'!$C$8:$C$239,0))=\"\",\"\",INDEX('Disaggregation1B_Import-Export'!AH$8:AH$239,MATCH($B123,'Disaggregation1B_Import-Export'!$C$8:$C$239,0))),\"\")","v":""},{"$f":"IFERROR(IF(INDEX('Disaggregation1B_Import-Export'!H$8:H$239,MATCH($B123,'Disaggregation1B_Import-Export'!$C$8:$C$239,0))=\"\",\"\",INDEX('Disaggregation1B_Import-Export'!H$8:H$239,MATCH($B123,'Disaggregation1B_Import-Export'!$C$8:$C$239,0))),\"\")","v":""},{"$f":"IFERROR(IF(INDEX('Disaggregation1B_Import-Export'!I$8:I$239,MATCH($B123,'Disaggregation1B_Import-Export'!$C$8:$C$239,0))=\"\",\"\",INDEX('Disaggregation1B_Import-Export'!I$8:I$239,MATCH($B123,'Disaggregation1B_Import-Export'!$C$8:$C$239,0))),\"\")","v":""},{"$f":"IFERROR(IF(INDEX('Disaggregation1B_Import-Export'!J$8:J$239,MATCH($B123,'Disaggregation1B_Import-Export'!$C$8:$C$239,0))=\"\",\"\",INDEX('Disaggregation1B_Import-Export'!J$8:J$239,MATCH($B123,'Disaggregation1B_Import-Export'!$C$8:$C$239,0))),\"\")","v":""},{"$f":"IFERROR(IF(INDEX('Disaggregation1B_Import-Export'!K$8:K$239,MATCH($B123,'Disaggregation1B_Import-Export'!$C$8:$C$239,0))=\"\",\"\",INDEX('Disaggregation1B_Import-Export'!K$8:K$239,MATCH($B123,'Disaggregation1B_Import-Export'!$C$8:$C$239,0))),\"\")","v":""},{"$f":"IFERROR(IF(INDEX('Disaggregation1B_Import-Export'!L$8:L$239,MATCH($B123,'Disaggregation1B_Import-Export'!$C$8:$C$239,0))=\"\",\"\",INDEX('Disaggregation1B_Import-Export'!L$8:L$239,MATCH($B123,'Disaggregation1B_Import-Export'!$C$8:$C$239,0))),\"\")","v":""},{"$f":"IFERROR(IF(INDEX('Disaggregation1B_Import-Export'!AQ$8:AQ$239,MATCH($B123,'Disaggregation1B_Import-Export'!$C$8:$C$239,0))=\"\",\"\",INDEX('Disaggregation1B_Import-Export'!AQ$8:AQ$239,MATCH($B123,'Disaggregation1B_Import-Export'!$C$8:$C$239,0))),\"\")","v":""},null,null,"",null,null,null,null,null,"",null,null,null,null,null,""]
[114,"Coverage114",{"$f":"IFERROR(INDEX('Disaggregation1B_Import-Export'!D$8:D$239,MATCH($B124,'Disaggregation1B_Import-Export'!$C$8:$C$239,0)),\"\")","v":""},{"$f":"IFERROR(INDEX('Disaggregation1B_Import-Export'!AF$8:AF$256,MATCH($B124,'Disaggregation1B_Import-Export'!$C$8:$C$256,0)),\"\")","v":""},{"$f":"IFERROR(IF(INDEX('Disaggregation1B_Import-Export'!AG$8:AG$239,MATCH($B124,'Disaggregation1B_Import-Export'!$C$8:$C$239,0))=\"\",\"\",INDEX('Disaggregation1B_Import-Export'!AG$8:AG$239,MATCH($B124,'Disaggregation1B_Import-Export'!$C$8:$C$239,0))),\"\")","v":""},{"$f":"IFERROR(IF(INDEX('Disaggregation1B_Import-Export'!AH$8:AH$239,MATCH($B124,'Disaggregation1B_Import-Export'!$C$8:$C$239,0))=\"\",\"\",INDEX('Disaggregation1B_Import-Export'!AH$8:AH$239,MATCH($B124,'Disaggregation1B_Import-Export'!$C$8:$C$239,0))),\"\")","v":""},{"$f":"IFERROR(IF(INDEX('Disaggregation1B_Import-Export'!H$8:H$239,MATCH($B124,'Disaggregation1B_Import-Export'!$C$8:$C$239,0))=\"\",\"\",INDEX('Disaggregation1B_Import-Export'!H$8:H$239,MATCH($B124,'Disaggregation1B_Import-Export'!$C$8:$C$239,0))),\"\")","v":""},{"$f":"IFERROR(IF(INDEX('Disaggregation1B_Import-Export'!I$8:I$239,MATCH($B124,'Disaggregation1B_Import-Export'!$C$8:$C$239,0))=\"\",\"\",INDEX('Disaggregation1B_Import-Export'!I$8:I$239,MATCH($B124,'Disaggregation1B_Import-Export'!$C$8:$C$239,0))),\"\")","v":""},{"$f":"IFERROR(IF(INDEX('Disaggregation1B_Import-Export'!J$8:J$239,MATCH($B124,'Disaggregation1B_Import-Export'!$C$8:$C$239,0))=\"\",\"\",INDEX('Disaggregation1B_Import-Export'!J$8:J$239,MATCH($B124,'Disaggregation1B_Import-Export'!$C$8:$C$239,0))),\"\")","v":""},{"$f":"IFERROR(IF(INDEX('Disaggregation1B_Import-Export'!K$8:K$239,MATCH($B124,'Disaggregation1B_Import-Export'!$C$8:$C$239,0))=\"\",\"\",INDEX('Disaggregation1B_Import-Export'!K$8:K$239,MATCH($B124,'Disaggregation1B_Import-Export'!$C$8:$C$239,0))),\"\")","v":""},{"$f":"IFERROR(IF(INDEX('Disaggregation1B_Import-Export'!L$8:L$239,MATCH($B124,'Disaggregation1B_Import-Export'!$C$8:$C$239,0))=\"\",\"\",INDEX('Disaggregation1B_Import-Export'!L$8:L$239,MATCH($B124,'Disaggregation1B_Import-Export'!$C$8:$C$239,0))),\"\")","v":""},{"$f":"IFERROR(IF(INDEX('Disaggregation1B_Import-Export'!AQ$8:AQ$239,MATCH($B124,'Disaggregation1B_Import-Export'!$C$8:$C$239,0))=\"\",\"\",INDEX('Disaggregation1B_Import-Export'!AQ$8:AQ$239,MATCH($B124,'Disaggregation1B_Import-Export'!$C$8:$C$239,0))),\"\")","v":""},null,null,"",null,null,null,null,null,"",null,null,null,null,null,""]
[115,"Coverage115",{"$f":"IFERROR(INDEX('Disaggregation1B_Import-Export'!D$8:D$239,MATCH($B125,'Disaggregation1B_Import-Export'!$C$8:$C$239,0)),\"\")","v":""},{"$f":"IFERROR(INDEX('Disaggregation1B_Import-Export'!AF$8:AF$256,MATCH($B125,'Disaggregation1B_Import-Export'!$C$8:$C$256,0)),\"\")","v":""},{"$f":"IFERROR(IF(INDEX('Disaggregation1B_Import-Export'!AG$8:AG$239,MATCH($B125,'Disaggregation1B_Import-Export'!$C$8:$C$239,0))=\"\",\"\",INDEX('Disaggregation1B_Import-Export'!AG$8:AG$239,MATCH($B125,'Disaggregation1B_Import-Export'!$C$8:$C$239,0))),\"\")","v":""},{"$f":"IFERROR(IF(INDEX('Disaggregation1B_Import-Export'!AH$8:AH$239,MATCH($B125,'Disaggregation1B_Import-Export'!$C$8:$C$239,0))=\"\",\"\",INDEX('Disaggregation1B_Import-Export'!AH$8:AH$239,MATCH($B125,'Disaggregation1B_Import-Export'!$C$8:$C$239,0))),\"\")","v":""},{"$f":"IFERROR(IF(INDEX('Disaggregation1B_Import-Export'!H$8:H$239,MATCH($B125,'Disaggregation1B_Import-Export'!$C$8:$C$239,0))=\"\",\"\",INDEX('Disaggregation1B_Import-Export'!H$8:H$239,MATCH($B125,'Disaggregation1B_Import-Export'!$C$8:$C$239,0))),\"\")","v":""},{"$f":"IFERROR(IF(INDEX('Disaggregation1B_Import-Export'!I$8:I$239,MATCH($B125,'Disaggregation1B_Import-Export'!$C$8:$C$239,0))=\"\",\"\",INDEX('Disaggregation1B_Import-Export'!I$8:I$239,MATCH($B125,'Disaggregation1B_Import-Export'!$C$8:$C$239,0))),\"\")","v":""},{"$f":"IFERROR(IF(INDEX('Disaggregation1B_Import-Export'!J$8:J$239,MATCH($B125,'Disaggregation1B_Import-Export'!$C$8:$C$239,0))=\"\",\"\",INDEX('Disaggregation1B_Import-Export'!J$8:J$239,MATCH($B125,'Disaggregation1B_Import-Export'!$C$8:$C$239,0))),\"\")","v":""},{"$f":"IFERROR(IF(INDEX('Disaggregation1B_Import-Export'!K$8:K$239,MATCH($B125,'Disaggregation1B_Import-Export'!$C$8:$C$239,0))=\"\",\"\",INDEX('Disaggregation1B_Import-Export'!K$8:K$239,MATCH($B125,'Disaggregation1B_Import-Export'!$C$8:$C$239,0))),\"\")","v":""},{"$f":"IFERROR(IF(INDEX('Disaggregation1B_Import-Export'!L$8:L$239,MATCH($B125,'Disaggregation1B_Import-Export'!$C$8:$C$239,0))=\"\",\"\",INDEX('Disaggregation1B_Import-Export'!L$8:L$239,MATCH($B125,'Disaggregation1B_Import-Export'!$C$8:$C$239,0))),\"\")","v":""},{"$f":"IFERROR(IF(INDEX('Disaggregation1B_Import-Export'!AQ$8:AQ$239,MATCH($B125,'Disaggregation1B_Import-Export'!$C$8:$C$239,0))=\"\",\"\",INDEX('Disaggregation1B_Import-Export'!AQ$8:AQ$239,MATCH($B125,'Disaggregation1B_Import-Export'!$C$8:$C$239,0))),\"\")","v":""},null,null,"",null,null,null,null,null,"",null,null,null,null,null,""]
[116,"Coverage116",{"$f":"IFERROR(INDEX('Disaggregation1B_Import-Export'!D$8:D$239,MATCH($B126,'Disaggregation1B_Import-Export'!$C$8:$C$239,0)),\"\")","v":""},{"$f":"IFERROR(INDEX('Disaggregation1B_Import-Export'!AF$8:AF$256,MATCH($B126,'Disaggregation1B_Import-Export'!$C$8:$C$256,0)),\"\")","v":""},{"$f":"IFERROR(IF(INDEX('Disaggregation1B_Import-Export'!AG$8:AG$239,MATCH($B126,'Disaggregation1B_Import-Export'!$C$8:$C$239,0))=\"\",\"\",INDEX('Disaggregation1B_Import-Export'!AG$8:AG$239,MATCH($B126,'Disaggregation1B_Import-Export'!$C$8:$C$239,0))),\"\")","v":""},{"$f":"IFERROR(IF(INDEX('Disaggregation1B_Import-Export'!AH$8:AH$239,MATCH($B126,'Disaggregation1B_Import-Export'!$C$8:$C$239,0))=\"\",\"\",INDEX('Disaggregation1B_Import-Export'!AH$8:AH$239,MATCH($B126,'Disaggregation1B_Import-Export'!$C$8:$C$239,0))),\"\")","v":""},{"$f":"IFERROR(IF(INDEX('Disaggregation1B_Import-Export'!H$8:H$239,MATCH($B126,'Disaggregation1B_Import-Export'!$C$8:$C$239,0))=\"\",\"\",INDEX('Disaggregation1B_Import-Export'!H$8:H$239,MATCH($B126,'Disaggregation1B_Import-Export'!$C$8:$C$239,0))),\"\")","v":""},{"$f":"IFERROR(IF(INDEX('Disaggregation1B_Import-Export'!I$8:I$239,MATCH($B126,'Disaggregation1B_Import-Export'!$C$8:$C$239,0))=\"\",\"\",INDEX('Disaggregation1B_Import-Export'!I$8:I$239,MATCH($B126,'Disaggregation1B_Import-Export'!$C$8:$C$239,0))),\"\")","v":""},{"$f":"IFERROR(IF(INDEX('Disaggregation1B_Import-Export'!J$8:J$239,MATCH($B126,'Disaggregation1B_Import-Export'!$C$8:$C$239,0))=\"\",\"\",INDEX('Disaggregation1B_Import-Export'!J$8:J$239,MATCH($B126,'Disaggregation1B_Import-Export'!$C$8:$C$239,0))),\"\")","v":""},{"$f":"IFERROR(IF(INDEX('Disaggregation1B_Import-Export'!K$8:K$239,MATCH($B126,'Disaggregation1B_Import-Export'!$C$8:$C$239,0))=\"\",\"\",INDEX('Disaggregation1B_Import-Export'!K$8:K$239,MATCH($B126,'Disaggregation1B_Import-Export'!$C$8:$C$239,0))),\"\")","v":""},{"$f":"IFERROR(IF(INDEX('Disaggregation1B_Import-Export'!L$8:L$239,MATCH($B126,'Disaggregation1B_Import-Export'!$C$8:$C$239,0))=\"\",\"\",INDEX('Disaggregation1B_Import-Export'!L$8:L$239,MATCH($B126,'Disaggregation1B_Import-Export'!$C$8:$C$239,0))),\"\")","v":""},{"$f":"IFERROR(IF(INDEX('Disaggregation1B_Import-Export'!AQ$8:AQ$239,MATCH($B126,'Disaggregation1B_Import-Export'!$C$8:$C$239,0))=\"\",\"\",INDEX('Disaggregation1B_Import-Export'!AQ$8:AQ$239,MATCH($B126,'Disaggregation1B_Import-Export'!$C$8:$C$239,0))),\"\")","v":""},null,null,"",null,null,null,null,null,"",null,null,null,null,null,""]
[117,"Coverage117",{"$f":"IFERROR(INDEX('Disaggregation1B_Import-Export'!D$8:D$239,MATCH($B127,'Disaggregation1B_Import-Export'!$C$8:$C$239,0)),\"\")","v":""},{"$f":"IFERROR(INDEX('Disaggregation1B_Import-Export'!AF$8:AF$256,MATCH($B127,'Disaggregation1B_Import-Export'!$C$8:$C$256,0)),\"\")","v":""},{"$f":"IFERROR(IF(INDEX('Disaggregation1B_Import-Export'!AG$8:AG$239,MATCH($B127,'Disaggregation1B_Import-Export'!$C$8:$C$239,0))=\"\",\"\",INDEX('Disaggregation1B_Import-Export'!AG$8:AG$239,MATCH($B127,'Disaggregation1B_Import-Export'!$C$8:$C$239,0))),\"\")","v":""},{"$f":"IFERROR(IF(INDEX('Disaggregation1B_Import-Export'!AH$8:AH$239,MATCH($B127,'Disaggregation1B_Import-Export'!$C$8:$C$239,0))=\"\",\"\",INDEX('Disaggregation1B_Import-Export'!AH$8:AH$239,MATCH($B127,'Disaggregation1B_Import-Export'!$C$8:$C$239,0))),\"\")","v":""},{"$f":"IFERROR(IF(INDEX('Disaggregation1B_Import-Export'!H$8:H$239,MATCH($B127,'Disaggregation1B_Import-Export'!$C$8:$C$239,0))=\"\",\"\",INDEX('Disaggregation1B_Import-Export'!H$8:H$239,MATCH($B127,'Disaggregation1B_Import-Export'!$C$8:$C$239,0))),\"\")","v":""},{"$f":"IFERROR(IF(INDEX('Disaggregation1B_Import-Export'!I$8:I$239,MATCH($B127,'Disaggregation1B_Import-Export'!$C$8:$C$239,0))=\"\",\"\",INDEX('Disaggregation1B_Import-Export'!I$8:I$239,MATCH($B127,'Disaggregation1B_Import-Export'!$C$8:$C$239,0))),\"\")","v":""},{"$f":"IFERROR(IF(INDEX('Disaggregation1B_Import-Export'!J$8:J$239,MATCH($B127,'Disaggregation1B_Import-Export'!$C$8:$C$239,0))=\"\",\"\",INDEX('Disaggregation1B_Import-Export'!J$8:J$239,MATCH($B127,'Disaggregation1B_Import-Export'!$C$8:$C$239,0))),\"\")","v":""},{"$f":"IFERROR(IF(INDEX('Disaggregation1B_Import-Export'!K$8:K$239,MATCH($B127,'Disaggregation1B_Import-Export'!$C$8:$C$239,0))=\"\",\"\",INDEX('Disaggregation1B_Import-Export'!K$8:K$239,MATCH($B127,'Disaggregation1B_Import-Export'!$C$8:$C$239,0))),\"\")","v":""},{"$f":"IFERROR(IF(INDEX('Disaggregation1B_Import-Export'!L$8:L$239,MATCH($B127,'Disaggregation1B_Import-Export'!$C$8:$C$239,0))=\"\",\"\",INDEX('Disaggregation1B_Import-Export'!L$8:L$239,MATCH($B127,'Disaggregation1B_Import-Export'!$C$8:$C$239,0))),\"\")","v":""},{"$f":"IFERROR(IF(INDEX('Disaggregation1B_Import-Export'!AQ$8:AQ$239,MATCH($B127,'Disaggregation1B_Import-Export'!$C$8:$C$239,0))=\"\",\"\",INDEX('Disaggregation1B_Import-Export'!AQ$8:AQ$239,MATCH($B127,'Disaggregation1B_Import-Export'!$C$8:$C$239,0))),\"\")","v":""},null,null,"",null,null,null,null,null,"",null,null,null,null,null,""]
[118,"Coverage118",{"$f":"IFERROR(INDEX('Disaggregation1B_Import-Export'!D$8:D$239,MATCH($B128,'Disaggregation1B_Import-Export'!$C$8:$C$239,0)),\"\")","v":""},{"$f":"IFERROR(INDEX('Disaggregation1B_Import-Export'!AF$8:AF$256,MATCH($B128,'Disaggregation1B_Import-Export'!$C$8:$C$256,0)),\"\")","v":""},{"$f":"IFERROR(IF(INDEX('Disaggregation1B_Import-Export'!AG$8:AG$239,MATCH($B128,'Disaggregation1B_Import-Export'!$C$8:$C$239,0))=\"\",\"\",INDEX('Disaggregation1B_Import-Export'!AG$8:AG$239,MATCH($B128,'Disaggregation1B_Import-Export'!$C$8:$C$239,0))),\"\")","v":""},{"$f":"IFERROR(IF(INDEX('Disaggregation1B_Import-Export'!AH$8:AH$239,MATCH($B128,'Disaggregation1B_Import-Export'!$C$8:$C$239,0))=\"\",\"\",INDEX('Disaggregation1B_Import-Export'!AH$8:AH$239,MATCH($B128,'Disaggregation1B_Import-Export'!$C$8:$C$239,0))),\"\")","v":""},{"$f":"IFERROR(IF(INDEX('Disaggregation1B_Import-Export'!H$8:H$239,MATCH($B128,'Disaggregation1B_Import-Export'!$C$8:$C$239,0))=\"\",\"\",INDEX('Disaggregation1B_Import-Export'!H$8:H$239,MATCH($B128,'Disaggregation1B_Import-Export'!$C$8:$C$239,0))),\"\")","v":""},{"$f":"IFERROR(IF(INDEX('Disaggregation1B_Import-Export'!I$8:I$239,MATCH($B128,'Disaggregation1B_Import-Export'!$C$8:$C$239,0))=\"\",\"\",INDEX('Disaggregation1B_Import-Export'!I$8:I$239,MATCH($B128,'Disaggregation1B_Import-Export'!$C$8:$C$239,0))),\"\")","v":""},{"$f":"IFERROR(IF(INDEX('Disaggregation1B_Import-Export'!J$8:J$239,MATCH($B128,'Disaggregation1B_Import-Export'!$C$8:$C$239,0))=\"\",\"\",INDEX('Disaggregation1B_Import-Export'!J$8:J$239,MATCH($B128,'Disaggregation1B_Import-Export'!$C$8:$C$239,0))),\"\")","v":""},{"$f":"IFERROR(IF(INDEX('Disaggregation1B_Import-Export'!K$8:K$239,MATCH($B128,'Disaggregation1B_Import-Export'!$C$8:$C$239,0))=\"\",\"\",INDEX('Disaggregation1B_Import-Export'!K$8:K$239,MATCH($B128,'Disaggregation1B_Import-Export'!$C$8:$C$239,0))),\"\")","v":""},{"$f":"IFERROR(IF(INDEX('Disaggregation1B_Import-Export'!L$8:L$239,MATCH($B128,'Disaggregation1B_Import-Export'!$C$8:$C$239,0))=\"\",\"\",INDEX('Disaggregation1B_Import-Export'!L$8:L$239,MATCH($B128,'Disaggregation1B_Import-Export'!$C$8:$C$239,0))),\"\")","v":""},{"$f":"IFERROR(IF(INDEX('Disaggregation1B_Import-Export'!AQ$8:AQ$239,MATCH($B128,'Disaggregation1B_Import-Export'!$C$8:$C$239,0))=\"\",\"\",INDEX('Disaggregation1B_Import-Export'!AQ$8:AQ$239,MATCH($B128,'Disaggregation1B_Import-Export'!$C$8:$C$239,0))),\"\")","v":""},null,null,"",null,null,null,null,null,"",null,null,null,null,null,""]
[119,"Coverage119",{"$f":"IFERROR(INDEX('Disaggregation1B_Import-Export'!D$8:D$239,MATCH($B129,'Disaggregation1B_Import-Export'!$C$8:$C$239,0)),\"\")","v":""},{"$f":"IFERROR(INDEX('Disaggregation1B_Import-Export'!AF$8:AF$256,MATCH($B129,'Disaggregation1B_Import-Export'!$C$8:$C$256,0)),\"\")","v":""},{"$f":"IFERROR(IF(INDEX('Disaggregation1B_Import-Export'!AG$8:AG$239,MATCH($B129,'Disaggregation1B_Import-Export'!$C$8:$C$239,0))=\"\",\"\",INDEX('Disaggregation1B_Import-Export'!AG$8:AG$239,MATCH($B129,'Disaggregation1B_Import-Export'!$C$8:$C$239,0))),\"\")","v":""},{"$f":"IFERROR(IF(INDEX('Disaggregation1B_Import-Export'!AH$8:AH$239,MATCH($B129,'Disaggregation1B_Import-Export'!$C$8:$C$239,0))=\"\",\"\",INDEX('Disaggregation1B_Import-Export'!AH$8:AH$239,MATCH($B129,'Disaggregation1B_Import-Export'!$C$8:$C$239,0))),\"\")","v":""},{"$f":"IFERROR(IF(INDEX('Disaggregation1B_Import-Export'!H$8:H$239,MATCH($B129,'Disaggregation1B_Import-Export'!$C$8:$C$239,0))=\"\",\"\",INDEX('Disaggregation1B_Import-Export'!H$8:H$239,MATCH($B129,'Disaggregation1B_Import-Export'!$C$8:$C$239,0))),\"\")","v":""},{"$f":"IFERROR(IF(INDEX('Disaggregation1B_Import-Export'!I$8:I$239,MATCH($B129,'Disaggregation1B_Import-Export'!$C$8:$C$239,0))=\"\",\"\",INDEX('Disaggregation1B_Import-Export'!I$8:I$239,MATCH($B129,'Disaggregation1B_Import-Export'!$C$8:$C$239,0))),\"\")","v":""},{"$f":"IFERROR(IF(INDEX('Disaggregation1B_Import-Export'!J$8:J$239,MATCH($B129,'Disaggregation1B_Import-Export'!$C$8:$C$239,0))=\"\",\"\",INDEX('Disaggregation1B_Import-Export'!J$8:J$239,MATCH($B129,'Disaggregation1B_Import-Export'!$C$8:$C$239,0))),\"\")","v":""},{"$f":"IFERROR(IF(INDEX('Disaggregation1B_Import-Export'!K$8:K$239,MATCH($B129,'Disaggregation1B_Import-Export'!$C$8:$C$239,0))=\"\",\"\",INDEX('Disaggregation1B_Import-Export'!K$8:K$239,MATCH($B129,'Disaggregation1B_Import-Export'!$C$8:$C$239,0))),\"\")","v":""},{"$f":"IFERROR(IF(INDEX('Disaggregation1B_Import-Export'!L$8:L$239,MATCH($B129,'Disaggregation1B_Import-Export'!$C$8:$C$239,0))=\"\",\"\",INDEX('Disaggregation1B_Import-Export'!L$8:L$239,MATCH($B129,'Disaggregation1B_Import-Export'!$C$8:$C$239,0))),\"\")","v":""},{"$f":"IFERROR(IF(INDEX('Disaggregation1B_Import-Export'!AQ$8:AQ$239,MATCH($B129,'Disaggregation1B_Import-Export'!$C$8:$C$239,0))=\"\",\"\",INDEX('Disaggregation1B_Import-Export'!AQ$8:AQ$239,MATCH($B129,'Disaggregation1B_Import-Export'!$C$8:$C$239,0))),\"\")","v":""},null,null,"",null,null,null,null,null,"",null,null,null,null,null,""]
[120,"Coverage120",{"$f":"IFERROR(INDEX('Disaggregation1B_Import-Export'!D$8:D$239,MATCH($B130,'Disaggregation1B_Import-Export'!$C$8:$C$239,0)),\"\")","v":""},{"$f":"IFERROR(INDEX('Disaggregation1B_Import-Export'!AF$8:AF$256,MATCH($B130,'Disaggregation1B_Import-Export'!$C$8:$C$256,0)),\"\")","v":""},{"$f":"IFERROR(IF(INDEX('Disaggregation1B_Import-Export'!AG$8:AG$239,MATCH($B130,'Disaggregation1B_Import-Export'!$C$8:$C$239,0))=\"\",\"\",INDEX('Disaggregation1B_Import-Export'!AG$8:AG$239,MATCH($B130,'Disaggregation1B_Import-Export'!$C$8:$C$239,0))),\"\")","v":""},{"$f":"IFERROR(IF(INDEX('Disaggregation1B_Import-Export'!AH$8:AH$239,MATCH($B130,'Disaggregation1B_Import-Export'!$C$8:$C$239,0))=\"\",\"\",INDEX('Disaggregation1B_Import-Export'!AH$8:AH$239,MATCH($B130,'Disaggregation1B_Import-Export'!$C$8:$C$239,0))),\"\")","v":""},{"$f":"IFERROR(IF(INDEX('Disaggregation1B_Import-Export'!H$8:H$239,MATCH($B130,'Disaggregation1B_Import-Export'!$C$8:$C$239,0))=\"\",\"\",INDEX('Disaggregation1B_Import-Export'!H$8:H$239,MATCH($B130,'Disaggregation1B_Import-Export'!$C$8:$C$239,0))),\"\")","v":""},{"$f":"IFERROR(IF(INDEX('Disaggregation1B_Import-Export'!I$8:I$239,MATCH($B130,'Disaggregation1B_Import-Export'!$C$8:$C$239,0))=\"\",\"\",INDEX('Disaggregation1B_Import-Export'!I$8:I$239,MATCH($B130,'Disaggregation1B_Import-Export'!$C$8:$C$239,0))),\"\")","v":""},{"$f":"IFERROR(IF(INDEX('Disaggregation1B_Import-Export'!J$8:J$239,MATCH($B130,'Disaggregation1B_Import-Export'!$C$8:$C$239,0))=\"\",\"\",INDEX('Disaggregation1B_Import-Export'!J$8:J$239,MATCH($B130,'Disaggregation1B_Import-Export'!$C$8:$C$239,0))),\"\")","v":""},{"$f":"IFERROR(IF(INDEX('Disaggregation1B_Import-Export'!K$8:K$239,MATCH($B130,'Disaggregation1B_Import-Export'!$C$8:$C$239,0))=\"\",\"\",INDEX('Disaggregation1B_Import-Export'!K$8:K$239,MATCH($B130,'Disaggregation1B_Import-Export'!$C$8:$C$239,0))),\"\")","v":""},{"$f":"IFERROR(IF(INDEX('Disaggregation1B_Import-Export'!L$8:L$239,MATCH($B130,'Disaggregation1B_Import-Export'!$C$8:$C$239,0))=\"\",\"\",INDEX('Disaggregation1B_Import-Export'!L$8:L$239,MATCH($B130,'Disaggregation1B_Import-Export'!$C$8:$C$239,0))),\"\")","v":""},{"$f":"IFERROR(IF(INDEX('Disaggregation1B_Import-Export'!AQ$8:AQ$239,MATCH($B130,'Disaggregation1B_Import-Export'!$C$8:$C$239,0))=\"\",\"\",INDEX('Disaggregation1B_Import-Export'!AQ$8:AQ$239,MATCH($B130,'Disaggregation1B_Import-Export'!$C$8:$C$239,0))),\"\")","v":""},null,null,"",null,null,null,null,null,"",null,null,null,null,null,""]
[121,"Coverage121",{"$f":"IFERROR(INDEX('Disaggregation1B_Import-Export'!D$8:D$239,MATCH($B131,'Disaggregation1B_Import-Export'!$C$8:$C$239,0)),\"\")","v":""},{"$f":"IFERROR(INDEX('Disaggregation1B_Import-Export'!AF$8:AF$256,MATCH($B131,'Disaggregation1B_Import-Export'!$C$8:$C$256,0)),\"\")","v":""},{"$f":"IFERROR(IF(INDEX('Disaggregation1B_Import-Export'!AG$8:AG$239,MATCH($B131,'Disaggregation1B_Import-Export'!$C$8:$C$239,0))=\"\",\"\",INDEX('Disaggregation1B_Import-Export'!AG$8:AG$239,MATCH($B131,'Disaggregation1B_Import-Export'!$C$8:$C$239,0))),\"\")","v":""},{"$f":"IFERROR(IF(INDEX('Disaggregation1B_Import-Export'!AH$8:AH$239,MATCH($B131,'Disaggregation1B_Import-Export'!$C$8:$C$239,0))=\"\",\"\",INDEX('Disaggregation1B_Import-Export'!AH$8:AH$239,MATCH($B131,'Disaggregation1B_Import-Export'!$C$8:$C$239,0))),\"\")","v":""},{"$f":"IFERROR(IF(INDEX('Disaggregation1B_Import-Export'!H$8:H$239,MATCH($B131,'Disaggregation1B_Import-Export'!$C$8:$C$239,0))=\"\",\"\",INDEX('Disaggregation1B_Import-Export'!H$8:H$239,MATCH($B131,'Disaggregation1B_Import-Export'!$C$8:$C$239,0))),\"\")","v":""},{"$f":"IFERROR(IF(INDEX('Disaggregation1B_Import-Export'!I$8:I$239,MATCH($B131,'Disaggregation1B_Import-Export'!$C$8:$C$239,0))=\"\",\"\",INDEX('Disaggregation1B_Import-Export'!I$8:I$239,MATCH($B131,'Disaggregation1B_Import-Export'!$C$8:$C$239,0))),\"\")","v":""},{"$f":"IFERROR(IF(INDEX('Disaggregation1B_Import-Export'!J$8:J$239,MATCH($B131,'Disaggregation1B_Import-Export'!$C$8:$C$239,0))=\"\",\"\",INDEX('Disaggregation1B_Import-Export'!J$8:J$239,MATCH($B131,'Disaggregation1B_Import-Export'!$C$8:$C$239,0))),\"\")","v":""},{"$f":"IFERROR(IF(INDEX('Disaggregation1B_Import-Export'!K$8:K$239,MATCH($B131,'Disaggregation1B_Import-Export'!$C$8:$C$239,0))=\"\",\"\",INDEX('Disaggregation1B_Import-Export'!K$8:K$239,MATCH($B131,'Disaggregation1B_Import-Export'!$C$8:$C$239,0))),\"\")","v":""},{"$f":"IFERROR(IF(INDEX('Disaggregation1B_Import-Export'!L$8:L$239,MATCH($B131,'Disaggregation1B_Import-Export'!$C$8:$C$239,0))=\"\",\"\",INDEX('Disaggregation1B_Import-Export'!L$8:L$239,MATCH($B131,'Disaggregation1B_Import-Export'!$C$8:$C$239,0))),\"\")","v":""},{"$f":"IFERROR(IF(INDEX('Disaggregation1B_Import-Export'!AQ$8:AQ$239,MATCH($B131,'Disaggregation1B_Import-Export'!$C$8:$C$239,0))=\"\",\"\",INDEX('Disaggregation1B_Import-Export'!AQ$8:AQ$239,MATCH($B131,'Disaggregation1B_Import-Export'!$C$8:$C$239,0))),\"\")","v":""},null,null,"",null,null,null,null,null,"",null,null,null,null,null,""]
[122,"Coverage122",{"$f":"IFERROR(INDEX('Disaggregation1B_Import-Export'!D$8:D$239,MATCH($B132,'Disaggregation1B_Import-Export'!$C$8:$C$239,0)),\"\")","v":""},{"$f":"IFERROR(INDEX('Disaggregation1B_Import-Export'!AF$8:AF$256,MATCH($B132,'Disaggregation1B_Import-Export'!$C$8:$C$256,0)),\"\")","v":""},{"$f":"IFERROR(IF(INDEX('Disaggregation1B_Import-Export'!AG$8:AG$239,MATCH($B132,'Disaggregation1B_Import-Export'!$C$8:$C$239,0))=\"\",\"\",INDEX('Disaggregation1B_Import-Export'!AG$8:AG$239,MATCH($B132,'Disaggregation1B_Import-Export'!$C$8:$C$239,0))),\"\")","v":""},{"$f":"IFERROR(IF(INDEX('Disaggregation1B_Import-Export'!AH$8:AH$239,MATCH($B132,'Disaggregation1B_Import-Export'!$C$8:$C$239,0))=\"\",\"\",INDEX('Disaggregation1B_Import-Export'!AH$8:AH$239,MATCH($B132,'Disaggregation1B_Import-Export'!$C$8:$C$239,0))),\"\")","v":""},{"$f":"IFERROR(IF(INDEX('Disaggregation1B_Import-Export'!H$8:H$239,MATCH($B132,'Disaggregation1B_Import-Export'!$C$8:$C$239,0))=\"\",\"\",INDEX('Disaggregation1B_Import-Export'!H$8:H$239,MATCH($B132,'Disaggregation1B_Import-Export'!$C$8:$C$239,0))),\"\")","v":""},{"$f":"IFERROR(IF(INDEX('Disaggregation1B_Import-Export'!I$8:I$239,MATCH($B132,'Disaggregation1B_Import-Export'!$C$8:$C$239,0))=\"\",\"\",INDEX('Disaggregation1B_Import-Export'!I$8:I$239,MATCH($B132,'Disaggregation1B_Import-Export'!$C$8:$C$239,0))),\"\")","v":""},{"$f":"IFERROR(IF(INDEX('Disaggregation1B_Import-Export'!J$8:J$239,MATCH($B132,'Disaggregation1B_Import-Export'!$C$8:$C$239,0))=\"\",\"\",INDEX('Disaggregation1B_Import-Export'!J$8:J$239,MATCH($B132,'Disaggregation1B_Import-Export'!$C$8:$C$239,0))),\"\")","v":""},{"$f":"IFERROR(IF(INDEX('Disaggregation1B_Import-Export'!K$8:K$239,MATCH($B132,'Disaggregation1B_Import-Export'!$C$8:$C$239,0))=\"\",\"\",INDEX('Disaggregation1B_Import-Export'!K$8:K$239,MATCH($B132,'Disaggregation1B_Import-Export'!$C$8:$C$239,0))),\"\")","v":""},{"$f":"IFERROR(IF(INDEX('Disaggregation1B_Import-Export'!L$8:L$239,MATCH($B132,'Disaggregation1B_Import-Export'!$C$8:$C$239,0))=\"\",\"\",INDEX('Disaggregation1B_Import-Export'!L$8:L$239,MATCH($B132,'Disaggregation1B_Import-Export'!$C$8:$C$239,0))),\"\")","v":""},{"$f":"IFERROR(IF(INDEX('Disaggregation1B_Import-Export'!AQ$8:AQ$239,MATCH($B132,'Disaggregation1B_Import-Export'!$C$8:$C$239,0))=\"\",\"\",INDEX('Disaggregation1B_Import-Export'!AQ$8:AQ$239,MATCH($B132,'Disaggregation1B_Import-Export'!$C$8:$C$239,0))),\"\")","v":""},null,null,"",null,null,null,null,null,"",null,null,null,null,null,""]
[123,"Coverage123",{"$f":"IFERROR(INDEX('Disaggregation1B_Import-Export'!D$8:D$239,MATCH($B133,'Disaggregation1B_Import-Export'!$C$8:$C$239,0)),\"\")","v":""},{"$f":"IFERROR(INDEX('Disaggregation1B_Import-Export'!AF$8:AF$256,MATCH($B133,'Disaggregation1B_Import-Export'!$C$8:$C$256,0)),\"\")","v":""},{"$f":"IFERROR(IF(INDEX('Disaggregation1B_Import-Export'!AG$8:AG$239,MATCH($B133,'Disaggregation1B_Import-Export'!$C$8:$C$239,0))=\"\",\"\",INDEX('Disaggregation1B_Import-Export'!AG$8:AG$239,MATCH($B133,'Disaggregation1B_Import-Export'!$C$8:$C$239,0))),\"\")","v":""},{"$f":"IFERROR(IF(INDEX('Disaggregation1B_Import-Export'!AH$8:AH$239,MATCH($B133,'Disaggregation1B_Import-Export'!$C$8:$C$239,0))=\"\",\"\",INDEX('Disaggregation1B_Import-Export'!AH$8:AH$239,MATCH($B133,'Disaggregation1B_Import-Export'!$C$8:$C$239,0))),\"\")","v":""},{"$f":"IFERROR(IF(INDEX('Disaggregation1B_Import-Export'!H$8:H$239,MATCH($B133,'Disaggregation1B_Import-Export'!$C$8:$C$239,0))=\"\",\"\",INDEX('Disaggregation1B_Import-Export'!H$8:H$239,MATCH($B133,'Disaggregation1B_Import-Export'!$C$8:$C$239,0))),\"\")","v":""},{"$f":"IFERROR(IF(INDEX('Disaggregation1B_Import-Export'!I$8:I$239,MATCH($B133,'Disaggregation1B_Import-Export'!$C$8:$C$239,0))=\"\",\"\",INDEX('Disaggregation1B_Import-Export'!I$8:I$239,MATCH($B133,'Disaggregation1B_Import-Export'!$C$8:$C$239,0))),\"\")","v":""},{"$f":"IFERROR(IF(INDEX('Disaggregation1B_Import-Export'!J$8:J$239,MATCH($B133,'Disaggregation1B_Import-Export'!$C$8:$C$239,0))=\"\",\"\",INDEX('Disaggregation1B_Import-Export'!J$8:J$239,MATCH($B133,'Disaggregation1B_Import-Export'!$C$8:$C$239,0))),\"\")","v":""},{"$f":"IFERROR(IF(INDEX('Disaggregation1B_Import-Export'!K$8:K$239,MATCH($B133,'Disaggregation1B_Import-Export'!$C$8:$C$239,0))=\"\",\"\",INDEX('Disaggregation1B_Import-Export'!K$8:K$239,MATCH($B133,'Disaggregation1B_Import-Export'!$C$8:$C$239,0))),\"\")","v":""},{"$f":"IFERROR(IF(INDEX('Disaggregation1B_Import-Export'!L$8:L$239,MATCH($B133,'Disaggregation1B_Import-Export'!$C$8:$C$239,0))=\"\",\"\",INDEX('Disaggregation1B_Import-Export'!L$8:L$239,MATCH($B133,'Disaggregation1B_Import-Export'!$C$8:$C$239,0))),\"\")","v":""},{"$f":"IFERROR(IF(INDEX('Disaggregation1B_Import-Export'!AQ$8:AQ$239,MATCH($B133,'Disaggregation1B_Import-Export'!$C$8:$C$239,0))=\"\",\"\",INDEX('Disaggregation1B_Import-Export'!AQ$8:AQ$239,MATCH($B133,'Disaggregation1B_Import-Export'!$C$8:$C$239,0))),\"\")","v":""},null,null,"",null,null,null,null,null,"",null,null,null,null,null,""]
[124,"Coverage124",{"$f":"IFERROR(INDEX('Disaggregation1B_Import-Export'!D$8:D$239,MATCH($B134,'Disaggregation1B_Import-Export'!$C$8:$C$239,0)),\"\")","v":""},{"$f":"IFERROR(INDEX('Disaggregation1B_Import-Export'!AF$8:AF$256,MATCH($B134,'Disaggregation1B_Import-Export'!$C$8:$C$256,0)),\"\")","v":""},{"$f":"IFERROR(IF(INDEX('Disaggregation1B_Import-Export'!AG$8:AG$239,MATCH($B134,'Disaggregation1B_Import-Export'!$C$8:$C$239,0))=\"\",\"\",INDEX('Disaggregation1B_Import-Export'!AG$8:AG$239,MATCH($B134,'Disaggregation1B_Import-Export'!$C$8:$C$239,0))),\"\")","v":""},{"$f":"IFERROR(IF(INDEX('Disaggregation1B_Import-Export'!AH$8:AH$239,MATCH($B134,'Disaggregation1B_Import-Export'!$C$8:$C$239,0))=\"\",\"\",INDEX('Disaggregation1B_Import-Export'!AH$8:AH$239,MATCH($B134,'Disaggregation1B_Import-Export'!$C$8:$C$239,0))),\"\")","v":""},{"$f":"IFERROR(IF(INDEX('Disaggregation1B_Import-Export'!H$8:H$239,MATCH($B134,'Disaggregation1B_Import-Export'!$C$8:$C$239,0))=\"\",\"\",INDEX('Disaggregation1B_Import-Export'!H$8:H$239,MATCH($B134,'Disaggregation1B_Import-Export'!$C$8:$C$239,0))),\"\")","v":""},{"$f":"IFERROR(IF(INDEX('Disaggregation1B_Import-Export'!I$8:I$239,MATCH($B134,'Disaggregation1B_Import-Export'!$C$8:$C$239,0))=\"\",\"\",INDEX('Disaggregation1B_Import-Export'!I$8:I$239,MATCH($B134,'Disaggregation1B_Import-Export'!$C$8:$C$239,0))),\"\")","v":""},{"$f":"IFERROR(IF(INDEX('Disaggregation1B_Import-Export'!J$8:J$239,MATCH($B134,'Disaggregation1B_Import-Export'!$C$8:$C$239,0))=\"\",\"\",INDEX('Disaggregation1B_Import-Export'!J$8:J$239,MATCH($B134,'Disaggregation1B_Import-Export'!$C$8:$C$239,0))),\"\")","v":""},{"$f":"IFERROR(IF(INDEX('Disaggregation1B_Import-Export'!K$8:K$239,MATCH($B134,'Disaggregation1B_Import-Export'!$C$8:$C$239,0))=\"\",\"\",INDEX('Disaggregation1B_Import-Export'!K$8:K$239,MATCH($B134,'Disaggregation1B_Import-Export'!$C$8:$C$239,0))),\"\")","v":""},{"$f":"IFERROR(IF(INDEX('Disaggregation1B_Import-Export'!L$8:L$239,MATCH($B134,'Disaggregation1B_Import-Export'!$C$8:$C$239,0))=\"\",\"\",INDEX('Disaggregation1B_Import-Export'!L$8:L$239,MATCH($B134,'Disaggregation1B_Import-Export'!$C$8:$C$239,0))),\"\")","v":""},{"$f":"IFERROR(IF(INDEX('Disaggregation1B_Import-Export'!AQ$8:AQ$239,MATCH($B134,'Disaggregation1B_Import-Export'!$C$8:$C$239,0))=\"\",\"\",INDEX('Disaggregation1B_Import-Export'!AQ$8:AQ$239,MATCH($B134,'Disaggregation1B_Import-Export'!$C$8:$C$239,0))),\"\")","v":""},null,null,"",null,null,null,null,null,"",null,null,null,null,null,""]
[125,"Coverage125",{"$f":"IFERROR(INDEX('Disaggregation1B_Import-Export'!D$8:D$239,MATCH($B135,'Disaggregation1B_Import-Export'!$C$8:$C$239,0)),\"\")","v":""},{"$f":"IFERROR(INDEX('Disaggregation1B_Import-Export'!AF$8:AF$256,MATCH($B135,'Disaggregation1B_Import-Export'!$C$8:$C$256,0)),\"\")","v":""},{"$f":"IFERROR(IF(INDEX('Disaggregation1B_Import-Export'!AG$8:AG$239,MATCH($B135,'Disaggregation1B_Import-Export'!$C$8:$C$239,0))=\"\",\"\",INDEX('Disaggregation1B_Import-Export'!AG$8:AG$239,MATCH($B135,'Disaggregation1B_Import-Export'!$C$8:$C$239,0))),\"\")","v":""},{"$f":"IFERROR(IF(INDEX('Disaggregation1B_Import-Export'!AH$8:AH$239,MATCH($B135,'Disaggregation1B_Import-Export'!$C$8:$C$239,0))=\"\",\"\",INDEX('Disaggregation1B_Import-Export'!AH$8:AH$239,MATCH($B135,'Disaggregation1B_Import-Export'!$C$8:$C$239,0))),\"\")","v":""},{"$f":"IFERROR(IF(INDEX('Disaggregation1B_Import-Export'!H$8:H$239,MATCH($B135,'Disaggregation1B_Import-Export'!$C$8:$C$239,0))=\"\",\"\",INDEX('Disaggregation1B_Import-Export'!H$8:H$239,MATCH($B135,'Disaggregation1B_Import-Export'!$C$8:$C$239,0))),\"\")","v":""},{"$f":"IFERROR(IF(INDEX('Disaggregation1B_Import-Export'!I$8:I$239,MATCH($B135,'Disaggregation1B_Import-Export'!$C$8:$C$239,0))=\"\",\"\",INDEX('Disaggregation1B_Import-Export'!I$8:I$239,MATCH($B135,'Disaggregation1B_Import-Export'!$C$8:$C$239,0))),\"\")","v":""},{"$f":"IFERROR(IF(INDEX('Disaggregation1B_Import-Export'!J$8:J$239,MATCH($B135,'Disaggregation1B_Import-Export'!$C$8:$C$239,0))=\"\",\"\",INDEX('Disaggregation1B_Import-Export'!J$8:J$239,MATCH($B135,'Disaggregation1B_Import-Export'!$C$8:$C$239,0))),\"\")","v":""},{"$f":"IFERROR(IF(INDEX('Disaggregation1B_Import-Export'!K$8:K$239,MATCH($B135,'Disaggregation1B_Import-Export'!$C$8:$C$239,0))=\"\",\"\",INDEX('Disaggregation1B_Import-Export'!K$8:K$239,MATCH($B135,'Disaggregation1B_Import-Export'!$C$8:$C$239,0))),\"\")","v":""},{"$f":"IFERROR(IF(INDEX('Disaggregation1B_Import-Export'!L$8:L$239,MATCH($B135,'Disaggregation1B_Import-Export'!$C$8:$C$239,0))=\"\",\"\",INDEX('Disaggregation1B_Import-Export'!L$8:L$239,MATCH($B135,'Disaggregation1B_Import-Export'!$C$8:$C$239,0))),\"\")","v":""},{"$f":"IFERROR(IF(INDEX('Disaggregation1B_Import-Export'!AQ$8:AQ$239,MATCH($B135,'Disaggregation1B_Import-Export'!$C$8:$C$239,0))=\"\",\"\",INDEX('Disaggregation1B_Import-Export'!AQ$8:AQ$239,MATCH($B135,'Disaggregation1B_Import-Export'!$C$8:$C$239,0))),\"\")","v":""},null,null,"",null,null,null,null,null,"",null,null,null,null,null,""]
[126,"Coverage126",{"$f":"IFERROR(INDEX('Disaggregation1B_Import-Export'!D$8:D$239,MATCH($B136,'Disaggregation1B_Import-Export'!$C$8:$C$239,0)),\"\")","v":""},{"$f":"IFERROR(INDEX('Disaggregation1B_Import-Export'!AF$8:AF$256,MATCH($B136,'Disaggregation1B_Import-Export'!$C$8:$C$256,0)),\"\")","v":""},{"$f":"IFERROR(IF(INDEX('Disaggregation1B_Import-Export'!AG$8:AG$239,MATCH($B136,'Disaggregation1B_Import-Export'!$C$8:$C$239,0))=\"\",\"\",INDEX('Disaggregation1B_Import-Export'!AG$8:AG$239,MATCH($B136,'Disaggregation1B_Import-Export'!$C$8:$C$239,0))),\"\")","v":""},{"$f":"IFERROR(IF(INDEX('Disaggregation1B_Import-Export'!AH$8:AH$239,MATCH($B136,'Disaggregation1B_Import-Export'!$C$8:$C$239,0))=\"\",\"\",INDEX('Disaggregation1B_Import-Export'!AH$8:AH$239,MATCH($B136,'Disaggregation1B_Import-Export'!$C$8:$C$239,0))),\"\")","v":""},{"$f":"IFERROR(IF(INDEX('Disaggregation1B_Import-Export'!H$8:H$239,MATCH($B136,'Disaggregation1B_Import-Export'!$C$8:$C$239,0))=\"\",\"\",INDEX('Disaggregation1B_Import-Export'!H$8:H$239,MATCH($B136,'Disaggregation1B_Import-Export'!$C$8:$C$239,0))),\"\")","v":""},{"$f":"IFERROR(IF(INDEX('Disaggregation1B_Import-Export'!I$8:I$239,MATCH($B136,'Disaggregation1B_Import-Export'!$C$8:$C$239,0))=\"\",\"\",INDEX('Disaggregation1B_Import-Export'!I$8:I$239,MATCH($B136,'Disaggregation1B_Import-Export'!$C$8:$C$239,0))),\"\")","v":""},{"$f":"IFERROR(IF(INDEX('Disaggregation1B_Import-Export'!J$8:J$239,MATCH($B136,'Disaggregation1B_Import-Export'!$C$8:$C$239,0))=\"\",\"\",INDEX('Disaggregation1B_Import-Export'!J$8:J$239,MATCH($B136,'Disaggregation1B_Import-Export'!$C$8:$C$239,0))),\"\")","v":""},{"$f":"IFERROR(IF(INDEX('Disaggregation1B_Import-Export'!K$8:K$239,MATCH($B136,'Disaggregation1B_Import-Export'!$C$8:$C$239,0))=\"\",\"\",INDEX('Disaggregation1B_Import-Export'!K$8:K$239,MATCH($B136,'Disaggregation1B_Import-Export'!$C$8:$C$239,0))),\"\")","v":""},{"$f":"IFERROR(IF(INDEX('Disaggregation1B_Import-Export'!L$8:L$239,MATCH($B136,'Disaggregation1B_Import-Export'!$C$8:$C$239,0))=\"\",\"\",INDEX('Disaggregation1B_Import-Export'!L$8:L$239,MATCH($B136,'Disaggregation1B_Import-Export'!$C$8:$C$239,0))),\"\")","v":""},{"$f":"IFERROR(IF(INDEX('Disaggregation1B_Import-Export'!AQ$8:AQ$239,MATCH($B136,'Disaggregation1B_Import-Export'!$C$8:$C$239,0))=\"\",\"\",INDEX('Disaggregation1B_Import-Export'!AQ$8:AQ$239,MATCH($B136,'Disaggregation1B_Import-Export'!$C$8:$C$239,0))),\"\")","v":""},null,null,"",null,null,null,null,null,"",null,null,null,null,null,""]
[127,"Coverage127",{"$f":"IFERROR(INDEX('Disaggregation1B_Import-Export'!D$8:D$239,MATCH($B137,'Disaggregation1B_Import-Export'!$C$8:$C$239,0)),\"\")","v":""},{"$f":"IFERROR(INDEX('Disaggregation1B_Import-Export'!AF$8:AF$256,MATCH($B137,'Disaggregation1B_Import-Export'!$C$8:$C$256,0)),\"\")","v":""},{"$f":"IFERROR(IF(INDEX('Disaggregation1B_Import-Export'!AG$8:AG$239,MATCH($B137,'Disaggregation1B_Import-Export'!$C$8:$C$239,0))=\"\",\"\",INDEX('Disaggregation1B_Import-Export'!AG$8:AG$239,MATCH($B137,'Disaggregation1B_Import-Export'!$C$8:$C$239,0))),\"\")","v":""},{"$f":"IFERROR(IF(INDEX('Disaggregation1B_Import-Export'!AH$8:AH$239,MATCH($B137,'Disaggregation1B_Import-Export'!$C$8:$C$239,0))=\"\",\"\",INDEX('Disaggregation1B_Import-Export'!AH$8:AH$239,MATCH($B137,'Disaggregation1B_Import-Export'!$C$8:$C$239,0))),\"\")","v":""},{"$f":"IFERROR(IF(INDEX('Disaggregation1B_Import-Export'!H$8:H$239,MATCH($B137,'Disaggregation1B_Import-Export'!$C$8:$C$239,0))=\"\",\"\",INDEX('Disaggregation1B_Import-Export'!H$8:H$239,MATCH($B137,'Disaggregation1B_Import-Export'!$C$8:$C$239,0))),\"\")","v":""},{"$f":"IFERROR(IF(INDEX('Disaggregation1B_Import-Export'!I$8:I$239,MATCH($B137,'Disaggregation1B_Import-Export'!$C$8:$C$239,0))=\"\",\"\",INDEX('Disaggregation1B_Import-Export'!I$8:I$239,MATCH($B137,'Disaggregation1B_Import-Export'!$C$8:$C$239,0))),\"\")","v":""},{"$f":"IFERROR(IF(INDEX('Disaggregation1B_Import-Export'!J$8:J$239,MATCH($B137,'Disaggregation1B_Import-Export'!$C$8:$C$239,0))=\"\",\"\",INDEX('Disaggregation1B_Import-Export'!J$8:J$239,MATCH($B137,'Disaggregation1B_Import-Export'!$C$8:$C$239,0))),\"\")","v":""},{"$f":"IFERROR(IF(INDEX('Disaggregation1B_Import-Export'!K$8:K$239,MATCH($B137,'Disaggregation1B_Import-Export'!$C$8:$C$239,0))=\"\",\"\",INDEX('Disaggregation1B_Import-Export'!K$8:K$239,MATCH($B137,'Disaggregation1B_Import-Export'!$C$8:$C$239,0))),\"\")","v":""},{"$f":"IFERROR(IF(INDEX('Disaggregation1B_Import-Export'!L$8:L$239,MATCH($B137,'Disaggregation1B_Import-Export'!$C$8:$C$239,0))=\"\",\"\",INDEX('Disaggregation1B_Import-Export'!L$8:L$239,MATCH($B137,'Disaggregation1B_Import-Export'!$C$8:$C$239,0))),\"\")","v":""},{"$f":"IFERROR(IF(INDEX('Disaggregation1B_Import-Export'!AQ$8:AQ$239,MATCH($B137,'Disaggregation1B_Import-Export'!$C$8:$C$239,0))=\"\",\"\",INDEX('Disaggregation1B_Import-Export'!AQ$8:AQ$239,MATCH($B137,'Disaggregation1B_Import-Export'!$C$8:$C$239,0))),\"\")","v":""},null,null,"",null,null,null,null,null,"",null,null,null,null,null,""]
[128,"Coverage128",{"$f":"IFERROR(INDEX('Disaggregation1B_Import-Export'!D$8:D$239,MATCH($B138,'Disaggregation1B_Import-Export'!$C$8:$C$239,0)),\"\")","v":""},{"$f":"IFERROR(INDEX('Disaggregation1B_Import-Export'!AF$8:AF$256,MATCH($B138,'Disaggregation1B_Import-Export'!$C$8:$C$256,0)),\"\")","v":""},{"$f":"IFERROR(IF(INDEX('Disaggregation1B_Import-Export'!AG$8:AG$239,MATCH($B138,'Disaggregation1B_Import-Export'!$C$8:$C$239,0))=\"\",\"\",INDEX('Disaggregation1B_Import-Export'!AG$8:AG$239,MATCH($B138,'Disaggregation1B_Import-Export'!$C$8:$C$239,0))),\"\")","v":""},{"$f":"IFERROR(IF(INDEX('Disaggregation1B_Import-Export'!AH$8:AH$239,MATCH($B138,'Disaggregation1B_Import-Export'!$C$8:$C$239,0))=\"\",\"\",INDEX('Disaggregation1B_Import-Export'!AH$8:AH$239,MATCH($B138,'Disaggregation1B_Import-Export'!$C$8:$C$239,0))),\"\")","v":""},{"$f":"IFERROR(IF(INDEX('Disaggregation1B_Import-Export'!H$8:H$239,MATCH($B138,'Disaggregation1B_Import-Export'!$C$8:$C$239,0))=\"\",\"\",INDEX('Disaggregation1B_Import-Export'!H$8:H$239,MATCH($B138,'Disaggregation1B_Import-Export'!$C$8:$C$239,0))),\"\")","v":""},{"$f":"IFERROR(IF(INDEX('Disaggregation1B_Import-Export'!I$8:I$239,MATCH($B138,'Disaggregation1B_Import-Export'!$C$8:$C$239,0))=\"\",\"\",INDEX('Disaggregation1B_Import-Export'!I$8:I$239,MATCH($B138,'Disaggregation1B_Import-Export'!$C$8:$C$239,0))),\"\")","v":""},{"$f":"IFERROR(IF(INDEX('Disaggregation1B_Import-Export'!J$8:J$239,MATCH($B138,'Disaggregation1B_Import-Export'!$C$8:$C$239,0))=\"\",\"\",INDEX('Disaggregation1B_Import-Export'!J$8:J$239,MATCH($B138,'Disaggregation1B_Import-Export'!$C$8:$C$239,0))),\"\")","v":""},{"$f":"IFERROR(IF(INDEX('Disaggregation1B_Import-Export'!K$8:K$239,MATCH($B138,'Disaggregation1B_Import-Export'!$C$8:$C$239,0))=\"\",\"\",INDEX('Disaggregation1B_Import-Export'!K$8:K$239,MATCH($B138,'Disaggregation1B_Import-Export'!$C$8:$C$239,0))),\"\")","v":""},{"$f":"IFERROR(IF(INDEX('Disaggregation1B_Import-Export'!L$8:L$239,MATCH($B138,'Disaggregation1B_Import-Export'!$C$8:$C$239,0))=\"\",\"\",INDEX('Disaggregation1B_Import-Export'!L$8:L$239,MATCH($B138,'Disaggregation1B_Import-Export'!$C$8:$C$239,0))),\"\")","v":""},{"$f":"IFERROR(IF(INDEX('Disaggregation1B_Import-Export'!AQ$8:AQ$239,MATCH($B138,'Disaggregation1B_Import-Export'!$C$8:$C$239,0))=\"\",\"\",INDEX('Disaggregation1B_Import-Export'!AQ$8:AQ$239,MATCH($B138,'Disaggregation1B_Import-Export'!$C$8:$C$239,0))),\"\")","v":""},null,null,"",null,null,null,null,null,"",null,null,null,null,null,""]
[129,"Coverage129",{"$f":"IFERROR(INDEX('Disaggregation1B_Import-Export'!D$8:D$239,MATCH($B139,'Disaggregation1B_Import-Export'!$C$8:$C$239,0)),\"\")","v":""},{"$f":"IFERROR(INDEX('Disaggregation1B_Import-Export'!AF$8:AF$256,MATCH($B139,'Disaggregation1B_Import-Export'!$C$8:$C$256,0)),\"\")","v":""},{"$f":"IFERROR(IF(INDEX('Disaggregation1B_Import-Export'!AG$8:AG$239,MATCH($B139,'Disaggregation1B_Import-Export'!$C$8:$C$239,0))=\"\",\"\",INDEX('Disaggregation1B_Import-Export'!AG$8:AG$239,MATCH($B139,'Disaggregation1B_Import-Export'!$C$8:$C$239,0))),\"\")","v":""},{"$f":"IFERROR(IF(INDEX('Disaggregation1B_Import-Export'!AH$8:AH$239,MATCH($B139,'Disaggregation1B_Import-Export'!$C$8:$C$239,0))=\"\",\"\",INDEX('Disaggregation1B_Import-Export'!AH$8:AH$239,MATCH($B139,'Disaggregation1B_Import-Export'!$C$8:$C$239,0))),\"\")","v":""},{"$f":"IFERROR(IF(INDEX('Disaggregation1B_Import-Export'!H$8:H$239,MATCH($B139,'Disaggregation1B_Import-Export'!$C$8:$C$239,0))=\"\",\"\",INDEX('Disaggregation1B_Import-Export'!H$8:H$239,MATCH($B139,'Disaggregation1B_Import-Export'!$C$8:$C$239,0))),\"\")","v":""},{"$f":"IFERROR(IF(INDEX('Disaggregation1B_Import-Export'!I$8:I$239,MATCH($B139,'Disaggregation1B_Import-Export'!$C$8:$C$239,0))=\"\",\"\",INDEX('Disaggregation1B_Import-Export'!I$8:I$239,MATCH($B139,'Disaggregation1B_Import-Export'!$C$8:$C$239,0))),\"\")","v":""},{"$f":"IFERROR(IF(INDEX('Disaggregation1B_Import-Export'!J$8:J$239,MATCH($B139,'Disaggregation1B_Import-Export'!$C$8:$C$239,0))=\"\",\"\",INDEX('Disaggregation1B_Import-Export'!J$8:J$239,MATCH($B139,'Disaggregation1B_Import-Export'!$C$8:$C$239,0))),\"\")","v":""},{"$f":"IFERROR(IF(INDEX('Disaggregation1B_Import-Export'!K$8:K$239,MATCH($B139,'Disaggregation1B_Import-Export'!$C$8:$C$239,0))=\"\",\"\",INDEX('Disaggregation1B_Import-Export'!K$8:K$239,MATCH($B139,'Disaggregation1B_Import-Export'!$C$8:$C$239,0))),\"\")","v":""},{"$f":"IFERROR(IF(INDEX('Disaggregation1B_Import-Export'!L$8:L$239,MATCH($B139,'Disaggregation1B_Import-Export'!$C$8:$C$239,0))=\"\",\"\",INDEX('Disaggregation1B_Import-Export'!L$8:L$239,MATCH($B139,'Disaggregation1B_Import-Export'!$C$8:$C$239,0))),\"\")","v":""},{"$f":"IFERROR(IF(INDEX('Disaggregation1B_Import-Export'!AQ$8:AQ$239,MATCH($B139,'Disaggregation1B_Import-Export'!$C$8:$C$239,0))=\"\",\"\",INDEX('Disaggregation1B_Import-Export'!AQ$8:AQ$239,MATCH($B139,'Disaggregation1B_Import-Export'!$C$8:$C$239,0))),\"\")","v":""},null,null,"",null,null,null,null,null,"",null,null,null,null,null,""]
[{"$f":"A139+1","v":130},"Coverage130",{"$f":"IFERROR(INDEX('Disaggregation1B_Import-Export'!D$8:D$239,MATCH($B140,'Disaggregation1B_Import-Export'!$C$8:$C$239,0)),\"\")","v":""},{"$f":"IFERROR(INDEX('Disaggregation1B_Import-Export'!AF$8:AF$256,MATCH($B140,'Disaggregation1B_Import-Export'!$C$8:$C$256,0)),\"\")","v":""},{"$f":"IFERROR(IF(INDEX('Disaggregation1B_Import-Export'!AG$8:AG$239,MATCH($B140,'Disaggregation1B_Import-Export'!$C$8:$C$239,0))=\"\",\"\",INDEX('Disaggregation1B_Import-Export'!AG$8:AG$239,MATCH($B140,'Disaggregation1B_Import-Export'!$C$8:$C$239,0))),\"\")","v":""},{"$f":"IFERROR(IF(INDEX('Disaggregation1B_Import-Export'!AH$8:AH$239,MATCH($B140,'Disaggregation1B_Import-Export'!$C$8:$C$239,0))=\"\",\"\",INDEX('Disaggregation1B_Import-Export'!AH$8:AH$239,MATCH($B140,'Disaggregation1B_Import-Export'!$C$8:$C$239,0))),\"\")","v":""},{"$f":"IFERROR(IF(INDEX('Disaggregation1B_Import-Export'!H$8:H$239,MATCH($B140,'Disaggregation1B_Import-Export'!$C$8:$C$239,0))=\"\",\"\",INDEX('Disaggregation1B_Import-Export'!H$8:H$239,MATCH($B140,'Disaggregation1B_Import-Export'!$C$8:$C$239,0))),\"\")","v":""},{"$f":"IFERROR(IF(INDEX('Disaggregation1B_Import-Export'!I$8:I$239,MATCH($B140,'Disaggregation1B_Import-Export'!$C$8:$C$239,0))=\"\",\"\",INDEX('Disaggregation1B_Import-Export'!I$8:I$239,MATCH($B140,'Disaggregation1B_Import-Export'!$C$8:$C$239,0))),\"\")","v":""},{"$f":"IFERROR(IF(INDEX('Disaggregation1B_Import-Export'!J$8:J$239,MATCH($B140,'Disaggregation1B_Import-Export'!$C$8:$C$239,0))=\"\",\"\",INDEX('Disaggregation1B_Import-Export'!J$8:J$239,MATCH($B140,'Disaggregation1B_Import-Export'!$C$8:$C$239,0))),\"\")","v":""},{"$f":"IFERROR(IF(INDEX('Disaggregation1B_Import-Export'!K$8:K$239,MATCH($B140,'Disaggregation1B_Import-Export'!$C$8:$C$239,0))=\"\",\"\",INDEX('Disaggregation1B_Import-Export'!K$8:K$239,MATCH($B140,'Disaggregation1B_Import-Export'!$C$8:$C$239,0))),\"\")","v":""},{"$f":"IFERROR(IF(INDEX('Disaggregation1B_Import-Export'!L$8:L$239,MATCH($B140,'Disaggregation1B_Import-Export'!$C$8:$C$239,0))=\"\",\"\",INDEX('Disaggregation1B_Import-Export'!L$8:L$239,MATCH($B140,'Disaggregation1B_Import-Export'!$C$8:$C$239,0))),\"\")","v":""},{"$f":"IFERROR(IF(INDEX('Disaggregation1B_Import-Export'!AQ$8:AQ$239,MATCH($B140,'Disaggregation1B_Import-Export'!$C$8:$C$239,0))=\"\",\"\",INDEX('Disaggregation1B_Import-Export'!AQ$8:AQ$239,MATCH($B140,'Disaggregation1B_Import-Export'!$C$8:$C$239,0))),\"\")","v":""},null,null,"",null,null,null,null,null,"",null,null,null,null,null,""]
[131,"Coverage131",{"$f":"IFERROR(INDEX('Disaggregation1B_Import-Export'!D$8:D$239,MATCH($B141,'Disaggregation1B_Import-Export'!$C$8:$C$239,0)),\"\")","v":""},{"$f":"IFERROR(INDEX('Disaggregation1B_Import-Export'!AF$8:AF$256,MATCH($B141,'Disaggregation1B_Import-Export'!$C$8:$C$256,0)),\"\")","v":""},{"$f":"IFERROR(IF(INDEX('Disaggregation1B_Import-Export'!AG$8:AG$239,MATCH($B141,'Disaggregation1B_Import-Export'!$C$8:$C$239,0))=\"\",\"\",INDEX('Disaggregation1B_Import-Export'!AG$8:AG$239,MATCH($B141,'Disaggregation1B_Import-Export'!$C$8:$C$239,0))),\"\")","v":""},{"$f":"IFERROR(IF(INDEX('Disaggregation1B_Import-Export'!AH$8:AH$239,MATCH($B141,'Disaggregation1B_Import-Export'!$C$8:$C$239,0))=\"\",\"\",INDEX('Disaggregation1B_Import-Export'!AH$8:AH$239,MATCH($B141,'Disaggregation1B_Import-Export'!$C$8:$C$239,0))),\"\")","v":""},{"$f":"IFERROR(IF(INDEX('Disaggregation1B_Import-Export'!H$8:H$239,MATCH($B141,'Disaggregation1B_Import-Export'!$C$8:$C$239,0))=\"\",\"\",INDEX('Disaggregation1B_Import-Export'!H$8:H$239,MATCH($B141,'Disaggregation1B_Import-Export'!$C$8:$C$239,0))),\"\")","v":""},{"$f":"IFERROR(IF(INDEX('Disaggregation1B_Import-Export'!I$8:I$239,MATCH($B141,'Disaggregation1B_Import-Export'!$C$8:$C$239,0))=\"\",\"\",INDEX('Disaggregation1B_Import-Export'!I$8:I$239,MATCH($B141,'Disaggregation1B_Import-Export'!$C$8:$C$239,0))),\"\")","v":""},{"$f":"IFERROR(IF(INDEX('Disaggregation1B_Import-Export'!J$8:J$239,MATCH($B141,'Disaggregation1B_Import-Export'!$C$8:$C$239,0))=\"\",\"\",INDEX('Disaggregation1B_Import-Export'!J$8:J$239,MATCH($B141,'Disaggregation1B_Import-Export'!$C$8:$C$239,0))),\"\")","v":""},{"$f":"IFERROR(IF(INDEX('Disaggregation1B_Import-Export'!K$8:K$239,MATCH($B141,'Disaggregation1B_Import-Export'!$C$8:$C$239,0))=\"\",\"\",INDEX('Disaggregation1B_Import-Export'!K$8:K$239,MATCH($B141,'Disaggregation1B_Import-Export'!$C$8:$C$239,0))),\"\")","v":""},{"$f":"IFERROR(IF(INDEX('Disaggregation1B_Import-Export'!L$8:L$239,MATCH($B141,'Disaggregation1B_Import-Export'!$C$8:$C$239,0))=\"\",\"\",INDEX('Disaggregation1B_Import-Export'!L$8:L$239,MATCH($B141,'Disaggregation1B_Import-Export'!$C$8:$C$239,0))),\"\")","v":""},{"$f":"IFERROR(IF(INDEX('Disaggregation1B_Import-Export'!AQ$8:AQ$239,MATCH($B141,'Disaggregation1B_Import-Export'!$C$8:$C$239,0))=\"\",\"\",INDEX('Disaggregation1B_Import-Export'!AQ$8:AQ$239,MATCH($B141,'Disaggregation1B_Import-Export'!$C$8:$C$239,0))),\"\")","v":""},null,null,"",null,null,null,null,null,"",null,null,null,null,null,""]
[132,"Coverage132",{"$f":"IFERROR(INDEX('Disaggregation1B_Import-Export'!D$8:D$239,MATCH($B142,'Disaggregation1B_Import-Export'!$C$8:$C$239,0)),\"\")","v":""},{"$f":"IFERROR(INDEX('Disaggregation1B_Import-Export'!AF$8:AF$256,MATCH($B142,'Disaggregation1B_Import-Export'!$C$8:$C$256,0)),\"\")","v":""},{"$f":"IFERROR(IF(INDEX('Disaggregation1B_Import-Export'!AG$8:AG$239,MATCH($B142,'Disaggregation1B_Import-Export'!$C$8:$C$239,0))=\"\",\"\",INDEX('Disaggregation1B_Import-Export'!AG$8:AG$239,MATCH($B142,'Disaggregation1B_Import-Export'!$C$8:$C$239,0))),\"\")","v":""},{"$f":"IFERROR(IF(INDEX('Disaggregation1B_Import-Export'!AH$8:AH$239,MATCH($B142,'Disaggregation1B_Import-Export'!$C$8:$C$239,0))=\"\",\"\",INDEX('Disaggregation1B_Import-Export'!AH$8:AH$239,MATCH($B142,'Disaggregation1B_Import-Export'!$C$8:$C$239,0))),\"\")","v":""},{"$f":"IFERROR(IF(INDEX('Disaggregation1B_Import-Export'!H$8:H$239,MATCH($B142,'Disaggregation1B_Import-Export'!$C$8:$C$239,0))=\"\",\"\",INDEX('Disaggregation1B_Import-Export'!H$8:H$239,MATCH($B142,'Disaggregation1B_Import-Export'!$C$8:$C$239,0))),\"\")","v":""},{"$f":"IFERROR(IF(INDEX('Disaggregation1B_Import-Export'!I$8:I$239,MATCH($B142,'Disaggregation1B_Import-Export'!$C$8:$C$239,0))=\"\",\"\",INDEX('Disaggregation1B_Import-Export'!I$8:I$239,MATCH($B142,'Disaggregation1B_Import-Export'!$C$8:$C$239,0))),\"\")","v":""},{"$f":"IFERROR(IF(INDEX('Disaggregation1B_Import-Export'!J$8:J$239,MATCH($B142,'Disaggregation1B_Import-Export'!$C$8:$C$239,0))=\"\",\"\",INDEX('Disaggregation1B_Import-Export'!J$8:J$239,MATCH($B142,'Disaggregation1B_Import-Export'!$C$8:$C$239,0))),\"\")","v":""},{"$f":"IFERROR(IF(INDEX('Disaggregation1B_Import-Export'!K$8:K$239,MATCH($B142,'Disaggregation1B_Import-Export'!$C$8:$C$239,0))=\"\",\"\",INDEX('Disaggregation1B_Import-Export'!K$8:K$239,MATCH($B142,'Disaggregation1B_Import-Export'!$C$8:$C$239,0))),\"\")","v":""},{"$f":"IFERROR(IF(INDEX('Disaggregation1B_Import-Export'!L$8:L$239,MATCH($B142,'Disaggregation1B_Import-Export'!$C$8:$C$239,0))=\"\",\"\",INDEX('Disaggregation1B_Import-Export'!L$8:L$239,MATCH($B142,'Disaggregation1B_Import-Export'!$C$8:$C$239,0))),\"\")","v":""},{"$f":"IFERROR(IF(INDEX('Disaggregation1B_Import-Export'!AQ$8:AQ$239,MATCH($B142,'Disaggregation1B_Import-Export'!$C$8:$C$239,0))=\"\",\"\",INDEX('Disaggregation1B_Import-Export'!AQ$8:AQ$239,MATCH($B142,'Disaggregation1B_Import-Export'!$C$8:$C$239,0))),\"\")","v":""},null,null,"",null,null,null,null,null,"",null,null,null,null,null,""]
[133,"Coverage133",{"$f":"IFERROR(INDEX('Disaggregation1B_Import-Export'!D$8:D$239,MATCH($B143,'Disaggregation1B_Import-Export'!$C$8:$C$239,0)),\"\")","v":""},{"$f":"IFERROR(INDEX('Disaggregation1B_Import-Export'!AF$8:AF$256,MATCH($B143,'Disaggregation1B_Import-Export'!$C$8:$C$256,0)),\"\")","v":""},{"$f":"IFERROR(IF(INDEX('Disaggregation1B_Import-Export'!AG$8:AG$239,MATCH($B143,'Disaggregation1B_Import-Export'!$C$8:$C$239,0))=\"\",\"\",INDEX('Disaggregation1B_Import-Export'!AG$8:AG$239,MATCH($B143,'Disaggregation1B_Import-Export'!$C$8:$C$239,0))),\"\")","v":""},{"$f":"IFERROR(IF(INDEX('Disaggregation1B_Import-Export'!AH$8:AH$239,MATCH($B143,'Disaggregation1B_Import-Export'!$C$8:$C$239,0))=\"\",\"\",INDEX('Disaggregation1B_Import-Export'!AH$8:AH$239,MATCH($B143,'Disaggregation1B_Import-Export'!$C$8:$C$239,0))),\"\")","v":""},{"$f":"IFERROR(IF(INDEX('Disaggregation1B_Import-Export'!H$8:H$239,MATCH($B143,'Disaggregation1B_Import-Export'!$C$8:$C$239,0))=\"\",\"\",INDEX('Disaggregation1B_Import-Export'!H$8:H$239,MATCH($B143,'Disaggregation1B_Import-Export'!$C$8:$C$239,0))),\"\")","v":""},{"$f":"IFERROR(IF(INDEX('Disaggregation1B_Import-Export'!I$8:I$239,MATCH($B143,'Disaggregation1B_Import-Export'!$C$8:$C$239,0))=\"\",\"\",INDEX('Disaggregation1B_Import-Export'!I$8:I$239,MATCH($B143,'Disaggregation1B_Import-Export'!$C$8:$C$239,0))),\"\")","v":""},{"$f":"IFERROR(IF(INDEX('Disaggregation1B_Import-Export'!J$8:J$239,MATCH($B143,'Disaggregation1B_Import-Export'!$C$8:$C$239,0))=\"\",\"\",INDEX('Disaggregation1B_Import-Export'!J$8:J$239,MATCH($B143,'Disaggregation1B_Import-Export'!$C$8:$C$239,0))),\"\")","v":""},{"$f":"IFERROR(IF(INDEX('Disaggregation1B_Import-Export'!K$8:K$239,MATCH($B143,'Disaggregation1B_Import-Export'!$C$8:$C$239,0))=\"\",\"\",INDEX('Disaggregation1B_Import-Export'!K$8:K$239,MATCH($B143,'Disaggregation1B_Import-Export'!$C$8:$C$239,0))),\"\")","v":""},{"$f":"IFERROR(IF(INDEX('Disaggregation1B_Import-Export'!L$8:L$239,MATCH($B143,'Disaggregation1B_Import-Export'!$C$8:$C$239,0))=\"\",\"\",INDEX('Disaggregation1B_Import-Export'!L$8:L$239,MATCH($B143,'Disaggregation1B_Import-Export'!$C$8:$C$239,0))),\"\")","v":""},{"$f":"IFERROR(IF(INDEX('Disaggregation1B_Import-Export'!AQ$8:AQ$239,MATCH($B143,'Disaggregation1B_Import-Export'!$C$8:$C$239,0))=\"\",\"\",INDEX('Disaggregation1B_Import-Export'!AQ$8:AQ$239,MATCH($B143,'Disaggregation1B_Import-Export'!$C$8:$C$239,0))),\"\")","v":""},null,null,"",null,null,null,null,null,"",null,null,null,null,null,""]
[134,"Coverage134",{"$f":"IFERROR(INDEX('Disaggregation1B_Import-Export'!D$8:D$239,MATCH($B144,'Disaggregation1B_Import-Export'!$C$8:$C$239,0)),\"\")","v":""},{"$f":"IFERROR(INDEX('Disaggregation1B_Import-Export'!AF$8:AF$256,MATCH($B144,'Disaggregation1B_Import-Export'!$C$8:$C$256,0)),\"\")","v":""},{"$f":"IFERROR(IF(INDEX('Disaggregation1B_Import-Export'!AG$8:AG$239,MATCH($B144,'Disaggregation1B_Import-Export'!$C$8:$C$239,0))=\"\",\"\",INDEX('Disaggregation1B_Import-Export'!AG$8:AG$239,MATCH($B144,'Disaggregation1B_Import-Export'!$C$8:$C$239,0))),\"\")","v":""},{"$f":"IFERROR(IF(INDEX('Disaggregation1B_Import-Export'!AH$8:AH$239,MATCH($B144,'Disaggregation1B_Import-Export'!$C$8:$C$239,0))=\"\",\"\",INDEX('Disaggregation1B_Import-Export'!AH$8:AH$239,MATCH($B144,'Disaggregation1B_Import-Export'!$C$8:$C$239,0))),\"\")","v":""},{"$f":"IFERROR(IF(INDEX('Disaggregation1B_Import-Export'!H$8:H$239,MATCH($B144,'Disaggregation1B_Import-Export'!$C$8:$C$239,0))=\"\",\"\",INDEX('Disaggregation1B_Import-Export'!H$8:H$239,MATCH($B144,'Disaggregation1B_Import-Export'!$C$8:$C$239,0))),\"\")","v":""},{"$f":"IFERROR(IF(INDEX('Disaggregation1B_Import-Export'!I$8:I$239,MATCH($B144,'Disaggregation1B_Import-Export'!$C$8:$C$239,0))=\"\",\"\",INDEX('Disaggregation1B_Import-Export'!I$8:I$239,MATCH($B144,'Disaggregation1B_Import-Export'!$C$8:$C$239,0))),\"\")","v":""},{"$f":"IFERROR(IF(INDEX('Disaggregation1B_Import-Export'!J$8:J$239,MATCH($B144,'Disaggregation1B_Import-Export'!$C$8:$C$239,0))=\"\",\"\",INDEX('Disaggregation1B_Import-Export'!J$8:J$239,MATCH($B144,'Disaggregation1B_Import-Export'!$C$8:$C$239,0))),\"\")","v":""},{"$f":"IFERROR(IF(INDEX('Disaggregation1B_Import-Export'!K$8:K$239,MATCH($B144,'Disaggregation1B_Import-Export'!$C$8:$C$239,0))=\"\",\"\",INDEX('Disaggregation1B_Import-Export'!K$8:K$239,MATCH($B144,'Disaggregation1B_Import-Export'!$C$8:$C$239,0))),\"\")","v":""},{"$f":"IFERROR(IF(INDEX('Disaggregation1B_Import-Export'!L$8:L$239,MATCH($B144,'Disaggregation1B_Import-Export'!$C$8:$C$239,0))=\"\",\"\",INDEX('Disaggregation1B_Import-Export'!L$8:L$239,MATCH($B144,'Disaggregation1B_Import-Export'!$C$8:$C$239,0))),\"\")","v":""},{"$f":"IFERROR(IF(INDEX('Disaggregation1B_Import-Export'!AQ$8:AQ$239,MATCH($B144,'Disaggregation1B_Import-Export'!$C$8:$C$239,0))=\"\",\"\",INDEX('Disaggregation1B_Import-Export'!AQ$8:AQ$239,MATCH($B144,'Disaggregation1B_Import-Export'!$C$8:$C$239,0))),\"\")","v":""},null,null,"",null,null,null,null,null,"",null,null,null,null,null,""]
[135,"Coverage135",{"$f":"IFERROR(INDEX('Disaggregation1B_Import-Export'!D$8:D$239,MATCH($B145,'Disaggregation1B_Import-Export'!$C$8:$C$239,0)),\"\")","v":""},{"$f":"IFERROR(INDEX('Disaggregation1B_Import-Export'!AF$8:AF$256,MATCH($B145,'Disaggregation1B_Import-Export'!$C$8:$C$256,0)),\"\")","v":""},{"$f":"IFERROR(IF(INDEX('Disaggregation1B_Import-Export'!AG$8:AG$239,MATCH($B145,'Disaggregation1B_Import-Export'!$C$8:$C$239,0))=\"\",\"\",INDEX('Disaggregation1B_Import-Export'!AG$8:AG$239,MATCH($B145,'Disaggregation1B_Import-Export'!$C$8:$C$239,0))),\"\")","v":""},{"$f":"IFERROR(IF(INDEX('Disaggregation1B_Import-Export'!AH$8:AH$239,MATCH($B145,'Disaggregation1B_Import-Export'!$C$8:$C$239,0))=\"\",\"\",INDEX('Disaggregation1B_Import-Export'!AH$8:AH$239,MATCH($B145,'Disaggregation1B_Import-Export'!$C$8:$C$239,0))),\"\")","v":""},{"$f":"IFERROR(IF(INDEX('Disaggregation1B_Import-Export'!H$8:H$239,MATCH($B145,'Disaggregation1B_Import-Export'!$C$8:$C$239,0))=\"\",\"\",INDEX('Disaggregation1B_Import-Export'!H$8:H$239,MATCH($B145,'Disaggregation1B_Import-Export'!$C$8:$C$239,0))),\"\")","v":""},{"$f":"IFERROR(IF(INDEX('Disaggregation1B_Import-Export'!I$8:I$239,MATCH($B145,'Disaggregation1B_Import-Export'!$C$8:$C$239,0))=\"\",\"\",INDEX('Disaggregation1B_Import-Export'!I$8:I$239,MATCH($B145,'Disaggregation1B_Import-Export'!$C$8:$C$239,0))),\"\")","v":""},{"$f":"IFERROR(IF(INDEX('Disaggregation1B_Import-Export'!J$8:J$239,MATCH($B145,'Disaggregation1B_Import-Export'!$C$8:$C$239,0))=\"\",\"\",INDEX('Disaggregation1B_Import-Export'!J$8:J$239,MATCH($B145,'Disaggregation1B_Import-Export'!$C$8:$C$239,0))),\"\")","v":""},{"$f":"IFERROR(IF(INDEX('Disaggregation1B_Import-Export'!K$8:K$239,MATCH($B145,'Disaggregation1B_Import-Export'!$C$8:$C$239,0))=\"\",\"\",INDEX('Disaggregation1B_Import-Export'!K$8:K$239,MATCH($B145,'Disaggregation1B_Import-Export'!$C$8:$C$239,0))),\"\")","v":""},{"$f":"IFERROR(IF(INDEX('Disaggregation1B_Import-Export'!L$8:L$239,MATCH($B145,'Disaggregation1B_Import-Export'!$C$8:$C$239,0))=\"\",\"\",INDEX('Disaggregation1B_Import-Export'!L$8:L$239,MATCH($B145,'Disaggregation1B_Import-Export'!$C$8:$C$239,0))),\"\")","v":""},{"$f":"IFERROR(IF(INDEX('Disaggregation1B_Import-Export'!AQ$8:AQ$239,MATCH($B145,'Disaggregation1B_Import-Export'!$C$8:$C$239,0))=\"\",\"\",INDEX('Disaggregation1B_Import-Export'!AQ$8:AQ$239,MATCH($B145,'Disaggregation1B_Import-Export'!$C$8:$C$239,0))),\"\")","v":""},null,null,"",null,null,null,null,null,"",null,null,null,null,null,""]
[136,"Coverage136",{"$f":"IFERROR(INDEX('Disaggregation1B_Import-Export'!D$8:D$239,MATCH($B146,'Disaggregation1B_Import-Export'!$C$8:$C$239,0)),\"\")","v":""},{"$f":"IFERROR(INDEX('Disaggregation1B_Import-Export'!AF$8:AF$256,MATCH($B146,'Disaggregation1B_Import-Export'!$C$8:$C$256,0)),\"\")","v":""},{"$f":"IFERROR(IF(INDEX('Disaggregation1B_Import-Export'!AG$8:AG$239,MATCH($B146,'Disaggregation1B_Import-Export'!$C$8:$C$239,0))=\"\",\"\",INDEX('Disaggregation1B_Import-Export'!AG$8:AG$239,MATCH($B146,'Disaggregation1B_Import-Export'!$C$8:$C$239,0))),\"\")","v":""},{"$f":"IFERROR(IF(INDEX('Disaggregation1B_Import-Export'!AH$8:AH$239,MATCH($B146,'Disaggregation1B_Import-Export'!$C$8:$C$239,0))=\"\",\"\",INDEX('Disaggregation1B_Import-Export'!AH$8:AH$239,MATCH($B146,'Disaggregation1B_Import-Export'!$C$8:$C$239,0))),\"\")","v":""},{"$f":"IFERROR(IF(INDEX('Disaggregation1B_Import-Export'!H$8:H$239,MATCH($B146,'Disaggregation1B_Import-Export'!$C$8:$C$239,0))=\"\",\"\",INDEX('Disaggregation1B_Import-Export'!H$8:H$239,MATCH($B146,'Disaggregation1B_Import-Export'!$C$8:$C$239,0))),\"\")","v":""},{"$f":"IFERROR(IF(INDEX('Disaggregation1B_Import-Export'!I$8:I$239,MATCH($B146,'Disaggregation1B_Import-Export'!$C$8:$C$239,0))=\"\",\"\",INDEX('Disaggregation1B_Import-Export'!I$8:I$239,MATCH($B146,'Disaggregation1B_Import-Export'!$C$8:$C$239,0))),\"\")","v":""},{"$f":"IFERROR(IF(INDEX('Disaggregation1B_Import-Export'!J$8:J$239,MATCH($B146,'Disaggregation1B_Import-Export'!$C$8:$C$239,0))=\"\",\"\",INDEX('Disaggregation1B_Import-Export'!J$8:J$239,MATCH($B146,'Disaggregation1B_Import-Export'!$C$8:$C$239,0))),\"\")","v":""},{"$f":"IFERROR(IF(INDEX('Disaggregation1B_Import-Export'!K$8:K$239,MATCH($B146,'Disaggregation1B_Import-Export'!$C$8:$C$239,0))=\"\",\"\",INDEX('Disaggregation1B_Import-Export'!K$8:K$239,MATCH($B146,'Disaggregation1B_Import-Export'!$C$8:$C$239,0))),\"\")","v":""},{"$f":"IFERROR(IF(INDEX('Disaggregation1B_Import-Export'!L$8:L$239,MATCH($B146,'Disaggregation1B_Import-Export'!$C$8:$C$239,0))=\"\",\"\",INDEX('Disaggregation1B_Import-Export'!L$8:L$239,MATCH($B146,'Disaggregation1B_Import-Export'!$C$8:$C$239,0))),\"\")","v":""},{"$f":"IFERROR(IF(INDEX('Disaggregation1B_Import-Export'!AQ$8:AQ$239,MATCH($B146,'Disaggregation1B_Import-Export'!$C$8:$C$239,0))=\"\",\"\",INDEX('Disaggregation1B_Import-Export'!AQ$8:AQ$239,MATCH($B146,'Disaggregation1B_Import-Export'!$C$8:$C$239,0))),\"\")","v":""},null,null,"",null,null,null,null,null,"",null,null,null,null,null,""]
[137,"Coverage137",{"$f":"IFERROR(INDEX('Disaggregation1B_Import-Export'!D$8:D$239,MATCH($B147,'Disaggregation1B_Import-Export'!$C$8:$C$239,0)),\"\")","v":""},{"$f":"IFERROR(INDEX('Disaggregation1B_Import-Export'!AF$8:AF$256,MATCH($B147,'Disaggregation1B_Import-Export'!$C$8:$C$256,0)),\"\")","v":""},{"$f":"IFERROR(IF(INDEX('Disaggregation1B_Import-Export'!AG$8:AG$239,MATCH($B147,'Disaggregation1B_Import-Export'!$C$8:$C$239,0))=\"\",\"\",INDEX('Disaggregation1B_Import-Export'!AG$8:AG$239,MATCH($B147,'Disaggregation1B_Import-Export'!$C$8:$C$239,0))),\"\")","v":""},{"$f":"IFERROR(IF(INDEX('Disaggregation1B_Import-Export'!AH$8:AH$239,MATCH($B147,'Disaggregation1B_Import-Export'!$C$8:$C$239,0))=\"\",\"\",INDEX('Disaggregation1B_Import-Export'!AH$8:AH$239,MATCH($B147,'Disaggregation1B_Import-Export'!$C$8:$C$239,0))),\"\")","v":""},{"$f":"IFERROR(IF(INDEX('Disaggregation1B_Import-Export'!H$8:H$239,MATCH($B147,'Disaggregation1B_Import-Export'!$C$8:$C$239,0))=\"\",\"\",INDEX('Disaggregation1B_Import-Export'!H$8:H$239,MATCH($B147,'Disaggregation1B_Import-Export'!$C$8:$C$239,0))),\"\")","v":""},{"$f":"IFERROR(IF(INDEX('Disaggregation1B_Import-Export'!I$8:I$239,MATCH($B147,'Disaggregation1B_Import-Export'!$C$8:$C$239,0))=\"\",\"\",INDEX('Disaggregation1B_Import-Export'!I$8:I$239,MATCH($B147,'Disaggregation1B_Import-Export'!$C$8:$C$239,0))),\"\")","v":""},{"$f":"IFERROR(IF(INDEX('Disaggregation1B_Import-Export'!J$8:J$239,MATCH($B147,'Disaggregation1B_Import-Export'!$C$8:$C$239,0))=\"\",\"\",INDEX('Disaggregation1B_Import-Export'!J$8:J$239,MATCH($B147,'Disaggregation1B_Import-Export'!$C$8:$C$239,0))),\"\")","v":""},{"$f":"IFERROR(IF(INDEX('Disaggregation1B_Import-Export'!K$8:K$239,MATCH($B147,'Disaggregation1B_Import-Export'!$C$8:$C$239,0))=\"\",\"\",INDEX('Disaggregation1B_Import-Export'!K$8:K$239,MATCH($B147,'Disaggregation1B_Import-Export'!$C$8:$C$239,0))),\"\")","v":""},{"$f":"IFERROR(IF(INDEX('Disaggregation1B_Import-Export'!L$8:L$239,MATCH($B147,'Disaggregation1B_Import-Export'!$C$8:$C$239,0))=\"\",\"\",INDEX('Disaggregation1B_Import-Export'!L$8:L$239,MATCH($B147,'Disaggregation1B_Import-Export'!$C$8:$C$239,0))),\"\")","v":""},{"$f":"IFERROR(IF(INDEX('Disaggregation1B_Import-Export'!AQ$8:AQ$239,MATCH($B147,'Disaggregation1B_Import-Export'!$C$8:$C$239,0))=\"\",\"\",INDEX('Disaggregation1B_Import-Export'!AQ$8:AQ$239,MATCH($B147,'Disaggregation1B_Import-Export'!$C$8:$C$239,0))),\"\")","v":""},null,null,"",null,null,null,null,null,"",null,null,null,null,null,""]
[138,"Coverage138",{"$f":"IFERROR(INDEX('Disaggregation1B_Import-Export'!D$8:D$239,MATCH($B148,'Disaggregation1B_Import-Export'!$C$8:$C$239,0)),\"\")","v":""},{"$f":"IFERROR(INDEX('Disaggregation1B_Import-Export'!AF$8:AF$256,MATCH($B148,'Disaggregation1B_Import-Export'!$C$8:$C$256,0)),\"\")","v":""},{"$f":"IFERROR(IF(INDEX('Disaggregation1B_Import-Export'!AG$8:AG$239,MATCH($B148,'Disaggregation1B_Import-Export'!$C$8:$C$239,0))=\"\",\"\",INDEX('Disaggregation1B_Import-Export'!AG$8:AG$239,MATCH($B148,'Disaggregation1B_Import-Export'!$C$8:$C$239,0))),\"\")","v":""},{"$f":"IFERROR(IF(INDEX('Disaggregation1B_Import-Export'!AH$8:AH$239,MATCH($B148,'Disaggregation1B_Import-Export'!$C$8:$C$239,0))=\"\",\"\",INDEX('Disaggregation1B_Import-Export'!AH$8:AH$239,MATCH($B148,'Disaggregation1B_Import-Export'!$C$8:$C$239,0))),\"\")","v":""},{"$f":"IFERROR(IF(INDEX('Disaggregation1B_Import-Export'!H$8:H$239,MATCH($B148,'Disaggregation1B_Import-Export'!$C$8:$C$239,0))=\"\",\"\",INDEX('Disaggregation1B_Import-Export'!H$8:H$239,MATCH($B148,'Disaggregation1B_Import-Export'!$C$8:$C$239,0))),\"\")","v":""},{"$f":"IFERROR(IF(INDEX('Disaggregation1B_Import-Export'!I$8:I$239,MATCH($B148,'Disaggregation1B_Import-Export'!$C$8:$C$239,0))=\"\",\"\",INDEX('Disaggregation1B_Import-Export'!I$8:I$239,MATCH($B148,'Disaggregation1B_Import-Export'!$C$8:$C$239,0))),\"\")","v":""},{"$f":"IFERROR(IF(INDEX('Disaggregation1B_Import-Export'!J$8:J$239,MATCH($B148,'Disaggregation1B_Import-Export'!$C$8:$C$239,0))=\"\",\"\",INDEX('Disaggregation1B_Import-Export'!J$8:J$239,MATCH($B148,'Disaggregation1B_Import-Export'!$C$8:$C$239,0))),\"\")","v":""},{"$f":"IFERROR(IF(INDEX('Disaggregation1B_Import-Export'!K$8:K$239,MATCH($B148,'Disaggregation1B_Import-Export'!$C$8:$C$239,0))=\"\",\"\",INDEX('Disaggregation1B_Import-Export'!K$8:K$239,MATCH($B148,'Disaggregation1B_Import-Export'!$C$8:$C$239,0))),\"\")","v":""},{"$f":"IFERROR(IF(INDEX('Disaggregation1B_Import-Export'!L$8:L$239,MATCH($B148,'Disaggregation1B_Import-Export'!$C$8:$C$239,0))=\"\",\"\",INDEX('Disaggregation1B_Import-Export'!L$8:L$239,MATCH($B148,'Disaggregation1B_Import-Export'!$C$8:$C$239,0))),\"\")","v":""},{"$f":"IFERROR(IF(INDEX('Disaggregation1B_Import-Export'!AQ$8:AQ$239,MATCH($B148,'Disaggregation1B_Import-Export'!$C$8:$C$239,0))=\"\",\"\",INDEX('Disaggregation1B_Import-Export'!AQ$8:AQ$239,MATCH($B148,'Disaggregation1B_Import-Export'!$C$8:$C$239,0))),\"\")","v":""},null,null,"",null,null,null,null,null,"",null,null,null,null,null,""]
[139,"Coverage139",{"$f":"IFERROR(INDEX('Disaggregation1B_Import-Export'!D$8:D$239,MATCH($B149,'Disaggregation1B_Import-Export'!$C$8:$C$239,0)),\"\")","v":""},{"$f":"IFERROR(INDEX('Disaggregation1B_Import-Export'!AF$8:AF$256,MATCH($B149,'Disaggregation1B_Import-Export'!$C$8:$C$256,0)),\"\")","v":""},{"$f":"IFERROR(IF(INDEX('Disaggregation1B_Import-Export'!AG$8:AG$239,MATCH($B149,'Disaggregation1B_Import-Export'!$C$8:$C$239,0))=\"\",\"\",INDEX('Disaggregation1B_Import-Export'!AG$8:AG$239,MATCH($B149,'Disaggregation1B_Import-Export'!$C$8:$C$239,0))),\"\")","v":""},{"$f":"IFERROR(IF(INDEX('Disaggregation1B_Import-Export'!AH$8:AH$239,MATCH($B149,'Disaggregation1B_Import-Export'!$C$8:$C$239,0))=\"\",\"\",INDEX('Disaggregation1B_Import-Export'!AH$8:AH$239,MATCH($B149,'Disaggregation1B_Import-Export'!$C$8:$C$239,0))),\"\")","v":""},{"$f":"IFERROR(IF(INDEX('Disaggregation1B_Import-Export'!H$8:H$239,MATCH($B149,'Disaggregation1B_Import-Export'!$C$8:$C$239,0))=\"\",\"\",INDEX('Disaggregation1B_Import-Export'!H$8:H$239,MATCH($B149,'Disaggregation1B_Import-Export'!$C$8:$C$239,0))),\"\")","v":""},{"$f":"IFERROR(IF(INDEX('Disaggregation1B_Import-Export'!I$8:I$239,MATCH($B149,'Disaggregation1B_Import-Export'!$C$8:$C$239,0))=\"\",\"\",INDEX('Disaggregation1B_Import-Export'!I$8:I$239,MATCH($B149,'Disaggregation1B_Import-Export'!$C$8:$C$239,0))),\"\")","v":""},{"$f":"IFERROR(IF(INDEX('Disaggregation1B_Import-Export'!J$8:J$239,MATCH($B149,'Disaggregation1B_Import-Export'!$C$8:$C$239,0))=\"\",\"\",INDEX('Disaggregation1B_Import-Export'!J$8:J$239,MATCH($B149,'Disaggregation1B_Import-Export'!$C$8:$C$239,0))),\"\")","v":""},{"$f":"IFERROR(IF(INDEX('Disaggregation1B_Import-Export'!K$8:K$239,MATCH($B149,'Disaggregation1B_Import-Export'!$C$8:$C$239,0))=\"\",\"\",INDEX('Disaggregation1B_Import-Export'!K$8:K$239,MATCH($B149,'Disaggregation1B_Import-Export'!$C$8:$C$239,0))),\"\")","v":""},{"$f":"IFERROR(IF(INDEX('Disaggregation1B_Import-Export'!L$8:L$239,MATCH($B149,'Disaggregation1B_Import-Export'!$C$8:$C$239,0))=\"\",\"\",INDEX('Disaggregation1B_Import-Export'!L$8:L$239,MATCH($B149,'Disaggregation1B_Import-Export'!$C$8:$C$239,0))),\"\")","v":""},{"$f":"IFERROR(IF(INDEX('Disaggregation1B_Import-Export'!AQ$8:AQ$239,MATCH($B149,'Disaggregation1B_Import-Export'!$C$8:$C$239,0))=\"\",\"\",INDEX('Disaggregation1B_Import-Export'!AQ$8:AQ$239,MATCH($B149,'Disaggregation1B_Import-Export'!$C$8:$C$239,0))),\"\")","v":""},null,null,"",null,null,null,null,null,"",null,null,null,null,null,""]
[140,"Coverage140",{"$f":"IFERROR(INDEX('Disaggregation1B_Import-Export'!D$8:D$239,MATCH($B150,'Disaggregation1B_Import-Export'!$C$8:$C$239,0)),\"\")","v":""},{"$f":"IFERROR(INDEX('Disaggregation1B_Import-Export'!AF$8:AF$256,MATCH($B150,'Disaggregation1B_Import-Export'!$C$8:$C$256,0)),\"\")","v":""},{"$f":"IFERROR(IF(INDEX('Disaggregation1B_Import-Export'!AG$8:AG$239,MATCH($B150,'Disaggregation1B_Import-Export'!$C$8:$C$239,0))=\"\",\"\",INDEX('Disaggregation1B_Import-Export'!AG$8:AG$239,MATCH($B150,'Disaggregation1B_Import-Export'!$C$8:$C$239,0))),\"\")","v":""},{"$f":"IFERROR(IF(INDEX('Disaggregation1B_Import-Export'!AH$8:AH$239,MATCH($B150,'Disaggregation1B_Import-Export'!$C$8:$C$239,0))=\"\",\"\",INDEX('Disaggregation1B_Import-Export'!AH$8:AH$239,MATCH($B150,'Disaggregation1B_Import-Export'!$C$8:$C$239,0))),\"\")","v":""},{"$f":"IFERROR(IF(INDEX('Disaggregation1B_Import-Export'!H$8:H$239,MATCH($B150,'Disaggregation1B_Import-Export'!$C$8:$C$239,0))=\"\",\"\",INDEX('Disaggregation1B_Import-Export'!H$8:H$239,MATCH($B150,'Disaggregation1B_Import-Export'!$C$8:$C$239,0))),\"\")","v":""},{"$f":"IFERROR(IF(INDEX('Disaggregation1B_Import-Export'!I$8:I$239,MATCH($B150,'Disaggregation1B_Import-Export'!$C$8:$C$239,0))=\"\",\"\",INDEX('Disaggregation1B_Import-Export'!I$8:I$239,MATCH($B150,'Disaggregation1B_Import-Export'!$C$8:$C$239,0))),\"\")","v":""},{"$f":"IFERROR(IF(INDEX('Disaggregation1B_Import-Export'!J$8:J$239,MATCH($B150,'Disaggregation1B_Import-Export'!$C$8:$C$239,0))=\"\",\"\",INDEX('Disaggregation1B_Import-Export'!J$8:J$239,MATCH($B150,'Disaggregation1B_Import-Export'!$C$8:$C$239,0))),\"\")","v":""},{"$f":"IFERROR(IF(INDEX('Disaggregation1B_Import-Export'!K$8:K$239,MATCH($B150,'Disaggregation1B_Import-Export'!$C$8:$C$239,0))=\"\",\"\",INDEX('Disaggregation1B_Import-Export'!K$8:K$239,MATCH($B150,'Disaggregation1B_Import-Export'!$C$8:$C$239,0))),\"\")","v":""},{"$f":"IFERROR(IF(INDEX('Disaggregation1B_Import-Export'!L$8:L$239,MATCH($B150,'Disaggregation1B_Import-Export'!$C$8:$C$239,0))=\"\",\"\",INDEX('Disaggregation1B_Import-Export'!L$8:L$239,MATCH($B150,'Disaggregation1B_Import-Export'!$C$8:$C$239,0))),\"\")","v":""},{"$f":"IFERROR(IF(INDEX('Disaggregation1B_Import-Export'!AQ$8:AQ$239,MATCH($B150,'Disaggregation1B_Import-Export'!$C$8:$C$239,0))=\"\",\"\",INDEX('Disaggregation1B_Import-Export'!AQ$8:AQ$239,MATCH($B150,'Disaggregation1B_Import-Export'!$C$8:$C$239,0))),\"\")","v":""},null,null,"",null,null,null,null,null,"",null,null,null,null,null,""]

{"sheet":"Disaggregation1B_Import-Export","index":12,"n_rows":47,"n_cols":43,"rows_kept":47,"cut":false,"hidden":true,"merged":[[5,31,6,31],[5,32,6,32],[5,33,6,33],[5,34,6,34],[5,35,6,35],[1,3,1,23],[5,3,6,3],[5,4,6,4],[5,5,6,5],[5,6,6,6],[5,7,5,11],[5,12,6,12],[5,13,5,15],[5,16,6,16],[5,17,6,17],[5,41,6,41],[5,36,6,36],[5,37,6,37],[5,38,6,38],[5,39,6,39],[5,40,6,40],[5,30,6,30],[5,28,6,28],[5,29,6,29],[5,18,6,18],[5,19,5,21],[5,22,6,22],[5,23,6,23],[5,24,6,24],[5,25,5,27]]}
[]
[null,null,null,"\nInstructions for population:\n1. Columns D to M should be mapped for download only\n2. Columns N to X should be mapped for import only\n3. Population should follow same rules as in tab Disaggregation_1B of current template with exception that:\na. population should be 1st sorted by field \"Coverage Indicator Number\" on the parent record Coverage Indicator \nb. It should then be sorted by field Disaggregation\n\n\n"]
[]
[null,null,null,"B - Coverage Indicators"]
[]
[null,null,null,"Module","Standard Coverage Indicator","Disaggregation","Category","Baseline",null,null,null,null,"Comments","Result",null,null,"Source","PR Comments","Data validation checks on PR data","Verified Result",null,null,"Source","LFA Comments ","Data Validation checks on LFA data","Global Fund Validated Result",null,null,"Country Team comments on validated results","Data validation checks on GF data","Coverage Indicator Number\n","Indicato rname","Disaggregation name","Category name","Indicator name spanish","Indicator name french","Disaggregation ES","Disaggregation FR","Category ES","Category FR","Comments Local","Baseline Source Local"]
["Record ID",-1,null,null,null,null,null,"Baseline N#","Baseline D#","Baseline %","Baseline Year","Baseline Source",null,"Result N# (PR)","Result D# (PR)","Result % (PR)",null,null,null,"Result N# (LFA)","Result D# (LFA)","Result % (LFA)",null,null,null,null,null,null,null,null,"Coverage Indicator Number",null,null,null,null,null,"Disaggregation ES","Disaggregation FR","Category ES","Category FR","Comments Local","Baseline Source Local","Country (Name)"]
["[Record ID]",{"$f":"B7+1","v":0},{"$f":"\"Coverage\"&B8","v":"Coverage0"},"[Module]","[Coverage Indicator Name]","[Disaggregation]","[Category]","[Baseline N#]","[Baseline D#]","[Baseline %]","[Baseline Year]","[Baseline Source]","[Comments]",{"$f":"IFERROR(IF(INDEX(Disaggregation_1B!M$11:M$150,MATCH($C8,'Disaggregation1B_Import-Export'!$C$8:$C$239,0))=\"\",\"\",INDEX(Disaggregation_1B!M$11:M$150,MATCH($C8,'Disaggregation1B_Import-Export'!$C$8:$C$239,0))),\"\")","v":1436},{"$f":"IFERROR(IF(INDEX(Disaggregation_1B!N$11:N$150,MATCH($C8,'Disaggregation1B_Import-Export'!$C$8:$C$239,0))=\"\",\"\",INDEX(Disaggregation_1B!N$11:N$150,MATCH($C8,'Disaggregation1B_Import-Export'!$C$8:$C$239,0))),\"\")","v":""},{"$f":"IFERROR(IF(INDEX(Disaggregation_1B!O$11:O$150,MATCH($C8,'Disaggregation1B_Import-Export'!$C$8:$C$239,0))=\"\",\"\",INDEX(Disaggregation_1B!O$11:O$150,MATCH($C8,'Disaggregation1B_Import-Export'!$C$8:$C$239,0))),\"\")","v":""},{"$f":"IFERROR(IF(INDEX(Disaggregation_1B!P$11:P$150,MATCH($C8,'Disaggregation1B_Import-Export'!$C$8:$C$239,0))=\"\",\"\",INDEX(Disaggregation_1B!P$11:P$150,MATCH($C8,'Disaggregation1B_Import-Export'!$C$8:$C$239,0))),\"\")","v":"TB patient register"},{"$f":"IFERROR(IF(INDEX(Disaggregation_1B!Q$11:Q$150,MATCH($C8,'Disaggregation1B_Import-Export'!$C$8:$C$239,0))=\"\",\"\",INDEX(Disaggregation_1B!Q$11:Q$150,MATCH($C8,'Disaggregation1B_Import-Export'!$C$8:$C$239,0))),\"\")","v":"Nous constatons que le sexe féminin   représente (37.5%) par rapport au total des TTF dépistés pour la TB toute forme confondue. "},{"$f":"INDEX(Disaggregation_1B!R$11:R$150,MATCH($C8,'Disaggregation1B_Import-Export'!$C$8:$C$239,0))","v":0},{"$f":"IFERROR(IF(INDEX(Disaggregation_1B!S$11:S$150,MATCH($C8,'Disaggregation1B_Import-Export'!$C$8:$C$239,0))=\"\",\"\",INDEX(Disaggregation_1B!S$11:S$150,MATCH($C8,'Disaggregation1B_Import-Export'!$C$8:$C$239,0))),\"\")","v":" "},{"$f":"IFERROR(IF(INDEX(Disaggregation_1B!T$11:T$150,MATCH($C8,'Disaggregation1B_Import-Export'!$C$8:$C$239,0))=\"\",\"\",INDEX(Disaggregation_1B!T$11:T$150,MATCH($C8,'Disaggregation1B_Import-Export'!$C$8:$C$239,0))),\"\")","v":""},{"$f":"IFERROR(IF(INDEX(Disaggregation_1B!U$11:U$150,MATCH($C8,'Disaggregation1B_Import-Export'!$C$8:$C$239,0))=\"\",\"\",INDEX(Disaggregation_1B!U$11:U$150,MATCH($C8,'Disaggregation1B_Import-Export'!$C$8:$C$239,0))),\"\")","v":""},{"$f":"IFERROR(IF(INDEX(Disaggregation_1B!V$11:V$150,MATCH($C8,'Disaggregation1B_Import-Export'!$C$8:$C$239,0))=\"\",\"\",INDEX(Disaggregation_1B!V$11:V$150,MATCH($C8,'Disaggregation1B_Import-Export'!$C$8:$C$239,0))),\"\")","v":""},{"$f":"IFERROR(IF(INDEX(Disaggregation_1B!W$11:W$150,MATCH($C8,'Disaggregation1B_Import-Export'!$C$8:$C$239,0))=\"\",\"\",INDEX(Disaggregation_1B!W$11:W$150,MATCH($C8,'Disaggregation1B_Import-Export'!$C$8:$C$239,0))),\"\")","v":""},{"$f":"INDEX(Disaggregation_1B!X$11:X$150,MATCH($C8,'Disaggregation1B_Import-Export'!$C$8:$C$239,0))","v":0},null,null,null,{"$f":"INDEX(Disaggregation_1B!AB$11:AB$150,MATCH($C8,'Disaggregation1B_Import-Export'!$C$8:$C$239,0))","v":0},{"$f":"INDEX(Disaggregation_1B!AC$11:AC$150,MATCH($C8,'Disaggregation1B_Import-Export'!$C$8:$C$239,0))","v":0},"[Coverage Indicator Number]",{"$f":"IF(LangOffset=0,CONCATENATE(E8),IF(LangOffset=1,CONCATENATE(AJ8),IF(LangOffset=2,AI8)))","v":"[Coverage Indicator Name  - FR]"},{"$f":"IF(LangOffset=0,CONCATENATE(F8),IF(LangOffset=1,CONCATENATE(AL8),IF(LangOffset=2,AK8)))","v":"[Disaggregation FR]"},{"$f":"IF(LangOffset=0,CONCATENATE(G8),IF(LangOffset=1,CONCATENATE(AN8),IF(LangOffset=2,AM8)))","v":"[Category FR]"},"[Coverage Indicator Name - ES]","[Coverage Indicator Name  - FR]","[Disaggregation ES]","[Disaggregation FR]","[Category ES]","[Category FR]","[Comments Local]","[Baseline Source Local]","[Country (Name)]"]
["a15360000095pvDAAQ",{"$f":"B8+1","v":1},{"$f":"\"Coverage\"&B9","v":"Coverage1"},"TB care and prevention","TCP-1(M): Number of notified cases of all forms of TB-(i.e. bacteriologically confirmed + clinically diagnosed), includes new and relapse cases","Female","Gender",2740,0,"0.0","2016","PNILT 2016 Annual Report",null,{"$f":"IFERROR(IF(INDEX(Disaggregation_1B!M$11:M$150,MATCH($C9,'Disaggregation1B_Import-Export'!$C$8:$C$239,0))=\"\",\"\",INDEX(Disaggregation_1B!M$11:M$150,MATCH($C9,'Disaggregation1B_Import-Export'!$C$8:$C$239,0))),\"\")","v":2142},{"$f":"IFERROR(IF(INDEX(Disaggregation_1B!N$11:N$150,MATCH($C9,'Disaggregation1B_Import-Export'!$C$8:$C$239,0))=\"\",\"\",INDEX(Disaggregation_1B!N$11:N$150,MATCH($C9,'Disaggregation1B_Import-Export'!$C$8:$C$239,0))),\"\")","v":""},{"$f":"IFERROR(IF(INDEX(Disaggregation_1B!O$11:O$150,MATCH($C9,'Disaggregation1B_Import-Export'!$C$8:$C$239,0))=\"\",\"\",INDEX(Disaggregation_1B!O$11:O$150,MATCH($C9,'Disaggregation1B_Import-Export'!$C$8:$C$239,0))),\"\")","v":""},{"$f":"IFERROR(IF(INDEX(Disaggregation_1B!P$11:P$150,MATCH($C9,'Disaggregation1B_Import-Export'!$C$8:$C$239,0))=\"\",\"\",INDEX(Disaggregation_1B!P$11:P$150,MATCH($C9,'Disaggregation1B_Import-Export'!$C$8:$C$239,0))),\"\")","v":"TB patient register"},{"$f":"IFERROR(IF(INDEX(Disaggregation_1B!Q$11:Q$150,MATCH($C9,'Disaggregation1B_Import-Export'!$C$8:$C$239,0))=\"\",\"\",INDEX(Disaggregation_1B!Q$11:Q$150,MATCH($C9,'Disaggregation1B_Import-Export'!$C$8:$C$239,0))),\"\")","v":"Les cas déclarés de TB bacteriologiquement confirmé representent 56%  La proportion de 44% dépistés par d'autres moyens diagnostics  s'expliquerait par la rupture en intrants de dépistage_ fuschine pendant à peu près 3 mois dans bon nombre de structures mais aussi l'utilisation du matériel de dépistage de la tuberculose disponible dans certains  sites de prise en charge tels que les appareils de radiographie, échographie etc"},{"$f":"INDEX(Disaggregation_1B!R$11:R$150,MATCH($C9,'Disaggregation1B_Import-Export'!$C$8:$C$239,0))","v":0},{"$f":"IFERROR(IF(INDEX(Disaggregation_1B!S$11:S$150,MATCH($C9,'Disaggregation1B_Import-Export'!$C$8:$C$239,0))=\"\",\"\",INDEX(Disaggregation_1B!S$11:S$150,MATCH($C9,'Disaggregation1B_Import-Export'!$C$8:$C$239,0))),\"\")","v":""},{"$f":"IFERROR(IF(INDEX(Disaggregation_1B!T$11:T$150,MATCH($C9,'Disaggregation1B_Import-Export'!$C$8:$C$239,0))=\"\",\"\",INDEX(Disaggregation_1B!T$11:T$150,MATCH($C9,'Disaggregation1B_Import-Export'!$C$8:$C$239,0))),\"\")","v":""},{"$f":"IFERROR(IF(INDEX(Disaggregation_1B!U$11:U$150,MATCH($C9,'Disaggregation1B_Import-Export'!$C$8:$C$239,0))=\"\",\"\",INDEX(Disaggregation_1B!U$11:U$150,MATCH($C9,'Disaggregation1B_Import-Export'!$C$8:$C$239,0))),\"\")","v":""},{"$f":"IFERROR(IF(INDEX(Disaggregation_1B!V$11:V$150,MATCH($C9,'Disaggregation1B_Import-Export'!$C$8:$C$239,0))=\"\",\"\",INDEX(Disaggregation_1B!V$11:V$150,MATCH($C9,'Disaggregation1B_Import-Export'!$C$8:$C$239,0))),\"\")","v":""},{"$f":"IFERROR(IF(INDEX(Disaggregation_1B!W$11:W$150,MATCH($C9,'Disaggregation1B_Import-Export'!$C$8:$C$239,0))=\"\",\"\",INDEX(Disaggregation_1B!W$11:W$150,MATCH($C9,'Disaggregation1B_Import-Export'!$C$8:$C$239,0))),\"\")","v":""},{"$f":"INDEX(Disaggregation_1B!X$11:X$150,MATCH($C9,'Disaggregation1B_Import-Export'!$C$8:$C$239,0))","v":0},null,null,null,{"$f":"INDEX(Disaggregation_1B!AB$11:AB$150,MATCH($C9,'Disaggregation1B_Import-Export'!$C$8:$C$239,0))","v":0},{"$f":"INDEX(Disaggregation_1B!AC$11:AC$150,MATCH($C9,'Disaggregation1B_Import-Export'!$C$8:$C$239,0))","v":0},1,"TCP-1(M): Nombre de cas déclarés de tuberculose, toutes formes confondues, bactériologiquement confirmés et cliniquement diagnostiqués, nouveaux cas et récidives","Femme","Sexe","TCP-1(M): Número de casos notificados de todas las formas de TB (i.e. confirmados bacteriológicamente y con diagnóstico clínico) incluye casos nuevos y recaídas","TCP-1(M): Nombre de cas déclarés de tuberculose, toutes formes confondues, bactériologiquement confirmés et cliniquement diagnostiqués, nouveaux cas et récidives","Mujeres","Femme","Sexo","Sexe",null,"Rapport annuel 2016 du PNILT.","Burundi"]
["a15360000095pvEAAQ",2,"Coverage2","TB care and prevention","TCP-1(M): Number of notified cases of all forms of TB-(i.e. bacteriologically confirmed + clinically diagnosed), includes new and relapse cases","Bacteriologically confirmed","TB case definition",4585,0,"0.0","2016","PNILT 2016 Annual Report",null,{"$f":"IFERROR(IF(INDEX(Disaggregation_1B!M$11:M$150,MATCH($C10,'Disaggregation1B_Import-Export'!$C$8:$C$239,0))=\"\",\"\",INDEX(Disaggregation_1B!M$11:M$150,MATCH($C10,'Disaggregation1B_Import-Export'!$C$8:$C$239,0))),\"\")","v":3565},{"$f":"IFERROR(IF(INDEX(Disaggregation_1B!N$11:N$150,MATCH($C10,'Disaggregation1B_Import-Export'!$C$8:$C$239,0))=\"\",\"\",INDEX(Disaggregation_1B!N$11:N$150,MATCH($C10,'Disaggregation1B_Import-Export'!$C$8:$C$239,0))),\"\")","v":""},{"$f":"IFERROR(IF(INDEX(Disaggregation_1B!O$11:O$150,MATCH($C10,'Disaggregation1B_Import-Export'!$C$8:$C$239,0))=\"\",\"\",INDEX(Disaggregation_1B!O$11:O$150,MATCH($C10,'Disaggregation1B_Import-Export'!$C$8:$C$239,0))),\"\")","v":""},{"$f":"IFERROR(IF(INDEX(Disaggregation_1B!P$11:P$150,MATCH($C10,'Disaggregation1B_Import-Export'!$C$8:$C$239,0))=\"\",\"\",INDEX(Disaggregation_1B!P$11:P$150,MATCH($C10,'Disaggregation1B_Import-Export'!$C$8:$C$239,0))),\"\")","v":"TB patient register"},{"$f":"IFERROR(IF(INDEX(Disaggregation_1B!Q$11:Q$150,MATCH($C10,'Disaggregation1B_Import-Export'!$C$8:$C$239,0))=\"\",\"\",INDEX(Disaggregation_1B!Q$11:Q$150,MATCH($C10,'Disaggregation1B_Import-Export'!$C$8:$C$239,0))),\"\")","v":"Le nombre de cas  déclarés de TB  de plus de 15 ans (masculin et féminin ensemble) est  de 3565 représentant 93%  des cas de TB tout age confondu . Parmi les 3565 ,  les femmes représentent 36.9%  (N=1319 ). "},{"$f":"INDEX(Disaggregation_1B!R$11:R$150,MATCH($C10,'Disaggregation1B_Import-Export'!$C$8:$C$239,0))","v":0},{"$f":"IFERROR(IF(INDEX(Disaggregation_1B!S$11:S$150,MATCH($C10,'Disaggregation1B_Import-Export'!$C$8:$C$239,0))=\"\",\"\",INDEX(Disaggregation_1B!S$11:S$150,MATCH($C10,'Disaggregation1B_Import-Export'!$C$8:$C$239,0))),\"\")","v":""},{"$f":"IFERROR(IF(INDEX(Disaggregation_1B!T$11:T$150,MATCH($C10,'Disaggregation1B_Import-Export'!$C$8:$C$239,0))=\"\",\"\",INDEX(Disaggregation_1B!T$11:T$150,MATCH($C10,'Disaggregation1B_Import-Export'!$C$8:$C$239,0))),\"\")","v":""},{"$f":"IFERROR(IF(INDEX(Disaggregation_1B!U$11:U$150,MATCH($C10,'Disaggregation1B_Import-Export'!$C$8:$C$239,0))=\"\",\"\",INDEX(Disaggregation_1B!U$11:U$150,MATCH($C10,'Disaggregation1B_Import-Export'!$C$8:$C$239,0))),\"\")","v":""},{"$f":"IFERROR(IF(INDEX(Disaggregation_1B!V$11:V$150,MATCH($C10,'Disaggregation1B_Import-Export'!$C$8:$C$239,0))=\"\",\"\",INDEX(Disaggregation_1B!V$11:V$150,MATCH($C10,'Disaggregation1B_Import-Export'!$C$8:$C$239,0))),\"\")","v":""},{"$f":"IFERROR(IF(INDEX(Disaggregation_1B!W$11:W$150,MATCH($C10,'Disaggregation1B_Import-Export'!$C$8:$C$239,0))=\"\",\"\",INDEX(Disaggregation_1B!W$11:W$150,MATCH($C10,'Disaggregation1B_Import-Export'!$C$8:$C$239,0))),\"\")","v":""},{"$f":"INDEX(Disaggregation_1B!X$11:X$150,MATCH($C10,'Disaggregation1B_Import-Export'!$C$8:$C$239,0))","v":0},null,null,null,{"$f":"INDEX(Disaggregation_1B!AB$11:AB$150,MATCH($C10,'Disaggregation1B_Import-Export'!$C$8:$C$239,0))","v":0},{"$f":"INDEX(Disaggregation_1B!AC$11:AC$150,MATCH($C10,'Disaggregation1B_Import-Export'!$C$8:$C$239,0))","v":0},1,"TCP-1(M): Nombre de cas déclarés de tuberculose, toutes formes confondues, bactériologiquement confirmés et cliniquement diagnostiqués, nouveaux cas et récidives","Bactériologiquement confirmé","Définition des cas","TCP-1(M): Número de casos notificados de todas las formas de TB (i.e. confirmados bacteriológicamente y con diagnóstico clínico) incluye casos nuevos y recaídas","TCP-1(M): Nombre de cas déclarés de tuberculose, toutes formes confondues, bactériologiquement confirmés et cliniquement diagnostiqués, nouveaux cas et récidives","Confirmado bacteriológicamente","Bactériologiquement confirmé","Definición de caso","Définition des cas",null,"Rapport annuel 2016 du PNILT.","Burundi"]
["a15360000095pvFAAQ",3,"Coverage3","TB care and prevention","TCP-1(M): Number of notified cases of all forms of TB-(i.e. bacteriologically confirmed + clinically diagnosed), includes new and relapse cases","15+","Age",7270,0,"0.0","2016","PNILT 2016 Annual Report",null,{"$f":"IFERROR(IF(INDEX(Disaggregation_1B!M$11:M$150,MATCH($C11,'Disaggregation1B_Import-Export'!$C$8:$C$239,0))=\"\",\"\",INDEX(Disaggregation_1B!M$11:M$150,MATCH($C11,'Disaggregation1B_Import-Export'!$C$8:$C$239,0))),\"\")","v":262},{"$f":"IFERROR(IF(INDEX(Disaggregation_1B!N$11:N$150,MATCH($C11,'Disaggregation1B_Import-Export'!$C$8:$C$239,0))=\"\",\"\",INDEX(Disaggregation_1B!N$11:N$150,MATCH($C11,'Disaggregation1B_Import-Export'!$C$8:$C$239,0))),\"\")","v":""},{"$f":"IFERROR(IF(INDEX(Disaggregation_1B!O$11:O$150,MATCH($C11,'Disaggregation1B_Import-Export'!$C$8:$C$239,0))=\"\",\"\",INDEX(Disaggregation_1B!O$11:O$150,MATCH($C11,'Disaggregation1B_Import-Export'!$C$8:$C$239,0))),\"\")","v":""},{"$f":"IFERROR(IF(INDEX(Disaggregation_1B!P$11:P$150,MATCH($C11,'Disaggregation1B_Import-Export'!$C$8:$C$239,0))=\"\",\"\",INDEX(Disaggregation_1B!P$11:P$150,MATCH($C11,'Disaggregation1B_Import-Export'!$C$8:$C$239,0))),\"\")","v":"TB patient register"},{"$f":"IFERROR(IF(INDEX(Disaggregation_1B!Q$11:Q$150,MATCH($C11,'Disaggregation1B_Import-Export'!$C$8:$C$239,0))=\"\",\"\",INDEX(Disaggregation_1B!Q$11:Q$150,MATCH($C11,'Disaggregation1B_Import-Export'!$C$8:$C$239,0))),\"\")","v":"Le nombre de cas  déclarés de TB  chez les moins de 15 ans (masculin et féminin ensemble) est  de  262 représentant 7%. des cas de TB tout age confondu. (262/3827). Parmi les 262 cas, le sexe fémin représente 44.6% (N=117) . Ce résultat nous montre que les enfants de moins de 15 ans ont une protection par rapport à la TB ce qui s'expliquerait par les effets positifs du BCG et de l'allaitement exclusif . D'autres part, il s'observe dans cette tranche d'âge peu de comportement à risque par rapport au VIH,  moins du VIH et moins de contact avec l'extérieur."},{"$f":"INDEX(Disaggregation_1B!R$11:R$150,MATCH($C11,'Disaggregation1B_Import-Export'!$C$8:$C$239,0))","v":0},{"$f":"IFERROR(IF(INDEX(Disaggregation_1B!S$11:S$150,MATCH($C11,'Disaggregation1B_Import-Export'!$C$8:$C$239,0))=\"\",\"\",INDEX(Disaggregation_1B!S$11:S$150,MATCH($C11,'Disaggregation1B_Import-Export'!$C$8:$C$239,0))),\"\")","v":""},{"$f":"IFERROR(IF(INDEX(Disaggregation_1B!T$11:T$150,MATCH($C11,'Disaggregation1B_Import-Export'!$C$8:$C$239,0))=\"\",\"\",INDEX(Disaggregation_1B!T$11:T$150,MATCH($C11,'Disaggregation1B_Import-Export'!$C$8:$C$239,0))),\"\")","v":""},{"$f":"IFERROR(IF(INDEX(Disaggregation_1B!U$11:U$150,MATCH($C11,'Disaggregation1B_Import-Export'!$C$8:$C$239,0))=\"\",\"\",INDEX(Disaggregation_1B!U$11:U$150,MATCH($C11,'Disaggregation1B_Import-Export'!$C$8:$C$239,0))),\"\")","v":""},{"$f":"IFERROR(IF(INDEX(Disaggregation_1B!V$11:V$150,MATCH($C11,'Disaggregation1B_Import-Export'!$C$8:$C$239,0))=\"\",\"\",INDEX(Disaggregation_1B!V$11:V$150,MATCH($C11,'Disaggregation1B_Import-Export'!$C$8:$C$239,0))),\"\")","v":""},{"$f":"IFERROR(IF(INDEX(Disaggregation_1B!W$11:W$150,MATCH($C11,'Disaggregation1B_Import-Export'!$C$8:$C$239,0))=\"\",\"\",INDEX(Disaggregation_1B!W$11:W$150,MATCH($C11,'Disaggregation1B_Import-Export'!$C$8:$C$239,0))),\"\")","v":""},{"$f":"INDEX(Disaggregation_1B!X$11:X$150,MATCH($C11,'Disaggregation1B_Import-Export'!$C$8:$C$239,0))","v":0},null,null,null,{"$f":"INDEX(Disaggregation_1B!AB$11:AB$150,MATCH($C11,'Disaggregation1B_Import-Export'!$C$8:$C$239,0))","v":0},{"$f":"INDEX(Disaggregation_1B!AC$11:AC$150,MATCH($C11,'Disaggregation1B_Import-Export'!$C$8:$C$239,0))","v":0},1,"TCP-1(M): Nombre de cas déclarés de tuberculose, toutes formes confondues, bactériologiquement confirmés et cliniquement diagnostiqués, nouveaux cas et récidives","+ de 15 ans","Age","TCP-1(M): Número de casos notificados de todas las formas de TB (i.e. confirmados bacteriológicamente y con diagnóstico clínico) incluye casos nuevos y recaídas","TCP-1(M): Nombre de cas déclarés de tuberculose, toutes formes confondues, bactériologiquement confirmés et cliniquement diagnostiqués, nouveaux cas et récidives","15+","+ de 15 ans","Edad","Age",null,"Rapport annuel 2016 du PNILT.","Burundi"]
["a15360000095pvGAAQ",4,"Coverage4","TB care and prevention","TCP-1(M): Number of notified cases of all forms of TB-(i.e. bacteriologically confirmed + clinically diagnosed), includes new and relapse cases","U15","Age",392,0,"0.0","2016","PNILT 2016 Annual Report",null,{"$f":"IFERROR(IF(INDEX(Disaggregation_1B!M$11:M$150,MATCH($C12,'Disaggregation1B_Import-Export'!$C$8:$C$239,0))=\"\",\"\",INDEX(Disaggregation_1B!M$11:M$150,MATCH($C12,'Disaggregation1B_Import-Export'!$C$8:$C$239,0))),\"\")","v":100},{"$f":"IFERROR(IF(INDEX(Disaggregation_1B!N$11:N$150,MATCH($C12,'Disaggregation1B_Import-Export'!$C$8:$C$239,0))=\"\",\"\",INDEX(Disaggregation_1B!N$11:N$150,MATCH($C12,'Disaggregation1B_Import-Export'!$C$8:$C$239,0))),\"\")","v":""},{"$f":"IFERROR(IF(INDEX(Disaggregation_1B!O$11:O$150,MATCH($C12,'Disaggregation1B_Import-Export'!$C$8:$C$239,0))=\"\",\"\",INDEX(Disaggregation_1B!O$11:O$150,MATCH($C12,'Disaggregation1B_Import-Export'!$C$8:$C$239,0))),\"\")","v":""},{"$f":"IFERROR(IF(INDEX(Disaggregation_1B!P$11:P$150,MATCH($C12,'Disaggregation1B_Import-Export'!$C$8:$C$239,0))=\"\",\"\",INDEX(Disaggregation_1B!P$11:P$150,MATCH($C12,'Disaggregation1B_Import-Export'!$C$8:$C$239,0))),\"\")","v":"TB patient register"},{"$f":"IFERROR(IF(INDEX(Disaggregation_1B!Q$11:Q$150,MATCH($C12,'Disaggregation1B_Import-Export'!$C$8:$C$239,0))=\"\",\"\",INDEX(Disaggregation_1B!Q$11:Q$150,MATCH($C12,'Disaggregation1B_Import-Export'!$C$8:$C$239,0))),\"\")","v":"Au cours du premier semestre 2018, environ 3% de tuberculeux n'ont pas  fait le test de dépistage au VIH . "},{"$f":"INDEX(Disaggregation_1B!R$11:R$150,MATCH($C12,'Disaggregation1B_Import-Export'!$C$8:$C$239,0))","v":0},{"$f":"IFERROR(IF(INDEX(Disaggregation_1B!S$11:S$150,MATCH($C12,'Disaggregation1B_Import-Export'!$C$8:$C$239,0))=\"\",\"\",INDEX(Disaggregation_1B!S$11:S$150,MATCH($C12,'Disaggregation1B_Import-Export'!$C$8:$C$239,0))),\"\")","v":""},{"$f":"IFERROR(IF(INDEX(Disaggregation_1B!T$11:T$150,MATCH($C12,'Disaggregation1B_Import-Export'!$C$8:$C$239,0))=\"\",\"\",INDEX(Disaggregation_1B!T$11:T$150,MATCH($C12,'Disaggregation1B_Import-Export'!$C$8:$C$239,0))),\"\")","v":""},{"$f":"IFERROR(IF(INDEX(Disaggregation_1B!U$11:U$150,MATCH($C12,'Disaggregation1B_Import-Export'!$C$8:$C$239,0))=\"\",\"\",INDEX(Disaggregation_1B!U$11:U$150,MATCH($C12,'Disaggregation1B_Import-Export'!$C$8:$C$239,0))),\"\")","v":""},{"$f":"IFERROR(IF(INDEX(Disaggregation_1B!V$11:V$150,MATCH($C12,'Disaggregation1B_Import-Export'!$C$8:$C$239,0))=\"\",\"\",INDEX(Disaggregation_1B!V$11:V$150,MATCH($C12,'Disaggregation1B_Import-Export'!$C$8:$C$239,0))),\"\")","v":""},{"$f":"IFERROR(IF(INDEX(Disaggregation_1B!W$11:W$150,MATCH($C12,'Disaggregation1B_Import-Export'!$C$8:$C$239,0))=\"\",\"\",INDEX(Disaggregation_1B!W$11:W$150,MATCH($C12,'Disaggregation1B_Import-Export'!$C$8:$C$239,0))),\"\")","v":""},{"$f":"INDEX(Disaggregation_1B!X$11:X$150,MATCH($C12,'Disaggregation1B_Import-Export'!$C$8:$C$239,0))","v":0},null,null,null,{"$f":"INDEX(Disaggregation_1B!AB$11:AB$150,MATCH($C12,'Disaggregation1B_Import-Export'!$C$8:$C$239,0))","v":0},{"$f":"INDEX(Disaggregation_1B!AC$11:AC$150,MATCH($C12,'Disaggregation1B_Import-Export'!$C$8:$C$239,0))","v":0},1,"TCP-1(M): Nombre de cas déclarés de tuberculose, toutes formes confondues, bactériologiquement confirmés et cliniquement diagnostiqués, nouveaux cas et récidives","<15 ans","Age","TCP-1(M): Número de casos notificados de todas las formas de TB (i.e. confirmados bacteriológicamente y con diagnóstico clínico) incluye casos nuevos y recaídas","TCP-1(M): Nombre de cas déclarés de tuberculose, toutes formes confondues, bactériologiquement confirmés et cliniquement diagnostiqués, nouveaux cas et récidives","<15","<15 ans","Edad","Age",null,"Rapport annuel 2016 du PNILT.","Burundi"]
["a15360000095pvHAAQ",5,"Coverage5","TB care and prevention","TCP-1(M): Number of notified cases of all forms of TB-(i.e. bacteriologically confirmed + clinically diagnosed), includes new and relapse cases","Not documented","HIV test status",317,0,"0.0","2016","PNILT 2016 Annual Report",null,{"$f":"IFERROR(IF(INDEX(Disaggregation_1B!M$11:M$150,MATCH($C13,'Disaggregation1B_Import-Export'!$C$8:$C$239,0))=\"\",\"\",INDEX(Disaggregation_1B!M$11:M$150,MATCH($C13,'Disaggregation1B_Import-Export'!$C$8:$C$239,0))),\"\")","v":3317},{"$f":"IFERROR(IF(INDEX(Disaggregation_1B!N$11:N$150,MATCH($C13,'Disaggregation1B_Import-Export'!$C$8:$C$239,0))=\"\",\"\",INDEX(Disaggregation_1B!N$11:N$150,MATCH($C13,'Disaggregation1B_Import-Export'!$C$8:$C$239,0))),\"\")","v":""},{"$f":"IFERROR(IF(INDEX(Disaggregation_1B!O$11:O$150,MATCH($C13,'Disaggregation1B_Import-Export'!$C$8:$C$239,0))=\"\",\"\",INDEX(Disaggregation_1B!O$11:O$150,MATCH($C13,'Disaggregation1B_Import-Export'!$C$8:$C$239,0))),\"\")","v":""},{"$f":"IFERROR(IF(INDEX(Disaggregation_1B!P$11:P$150,MATCH($C13,'Disaggregation1B_Import-Export'!$C$8:$C$239,0))=\"\",\"\",INDEX(Disaggregation_1B!P$11:P$150,MATCH($C13,'Disaggregation1B_Import-Export'!$C$8:$C$239,0))),\"\")","v":"TB patient register"},{"$f":"IFERROR(IF(INDEX(Disaggregation_1B!Q$11:Q$150,MATCH($C13,'Disaggregation1B_Import-Export'!$C$8:$C$239,0))=\"\",\"\",INDEX(Disaggregation_1B!Q$11:Q$150,MATCH($C13,'Disaggregation1B_Import-Export'!$C$8:$C$239,0))),\"\")","v":"Sur 3727 tuberculeux chez qui le VIH a été testé, 3317 sont séronégatif soit 89%. "},{"$f":"INDEX(Disaggregation_1B!R$11:R$150,MATCH($C13,'Disaggregation1B_Import-Export'!$C$8:$C$239,0))","v":0},{"$f":"IFERROR(IF(INDEX(Disaggregation_1B!S$11:S$150,MATCH($C13,'Disaggregation1B_Import-Export'!$C$8:$C$239,0))=\"\",\"\",INDEX(Disaggregation_1B!S$11:S$150,MATCH($C13,'Disaggregation1B_Import-Export'!$C$8:$C$239,0))),\"\")","v":""},{"$f":"IFERROR(IF(INDEX(Disaggregation_1B!T$11:T$150,MATCH($C13,'Disaggregation1B_Import-Export'!$C$8:$C$239,0))=\"\",\"\",INDEX(Disaggregation_1B!T$11:T$150,MATCH($C13,'Disaggregation1B_Import-Export'!$C$8:$C$239,0))),\"\")","v":""},{"$f":"IFERROR(IF(INDEX(Disaggregation_1B!U$11:U$150,MATCH($C13,'Disaggregation1B_Import-Export'!$C$8:$C$239,0))=\"\",\"\",INDEX(Disaggregation_1B!U$11:U$150,MATCH($C13,'Disaggregation1B_Import-Export'!$C$8:$C$239,0))),\"\")","v":""},{"$f":"IFERROR(IF(INDEX(Disaggregation_1B!V$11:V$150,MATCH($C13,'Disaggregation1B_Import-Export'!$C$8:$C$239,0))=\"\",\"\",INDEX(Disaggregation_1B!V$11:V$150,MATCH($C13,'Disaggregation1B_Import-Export'!$C$8:$C$239,0))),\"\")","v":""},{"$f":"IFERROR(IF(INDEX(Disaggregation_1B!W$11:W$150,MATCH($C13,'Disaggregation1B_Import-Export'!$C$8:$C$239,0))=\"\",\"\",INDEX(Disaggregation_1B!W$11:W$150,MATCH($C13,'Disaggregation1B_Import-Export'!$C$8:$C$239,0))),\"\")","v":""},{"$f":"INDEX(Disaggregation_1B!X$11:X$150,MATCH($C13,'Disaggregation1B_Import-Export'!$C$8:$C$239,0))","v":0},null,null,null,{"$f":"INDEX(Disaggregation_1B!AB$11:AB$150,MATCH($C13,'Disaggregation1B_Import-Export'!$C$8:$C$239,0))","v":0},{"$f":"INDEX(Disaggregation_1B!AC$11:AC$150,MATCH($C13,'Disaggregation1B_Import-Export'!$C$8:$C$239,0))","v":0},1,"TCP-1(M): Nombre de cas déclarés de tuberculose, toutes formes confondues, bactériologiquement confirmés et cliniquement diagnostiqués, nouveaux cas et récidives","Non communiqué","Résultat du test VIH","TCP-1(M): Número de casos notificados de todas las formas de TB (i.e. confirmados bacteriológicamente y con diagnóstico clínico) incluye casos nuevos y recaídas","TCP-1(M): Nombre de cas déclarés de tuberculose, toutes formes confondues, bactériologiquement confirmés et cliniquement diagnostiqués, nouveaux cas et récidives","No documentado","Non communiqué","Resultado de prueba del VIH","Résultat du test VIH",null,"Rapport annuel 2016 du PNILT.","Burundi"]
["a15360000095pvIAAQ",6,"Coverage6","TB care and prevention","TCP-1(M): Number of notified cases of all forms of TB-(i.e. bacteriologically confirmed + clinically diagnosed), includes new and relapse cases","Negative","HIV test status",6468,0,"0.0","2016","PNILT 2016 Annual Report",null,{"$f":"IFERROR(IF(INDEX(Disaggregation_1B!M$11:M$150,MATCH($C14,'Disaggregation1B_Import-Export'!$C$8:$C$239,0))=\"\",\"\",INDEX(Disaggregation_1B!M$11:M$150,MATCH($C14,'Disaggregation1B_Import-Export'!$C$8:$C$239,0))),\"\")","v":410},{"$f":"IFERROR(IF(INDEX(Disaggregation_1B!N$11:N$150,MATCH($C14,'Disaggregation1B_Import-Export'!$C$8:$C$239,0))=\"\",\"\",INDEX(Disaggregation_1B!N$11:N$150,MATCH($C14,'Disaggregation1B_Import-Export'!$C$8:$C$239,0))),\"\")","v":""},{"$f":"IFERROR(IF(INDEX(Disaggregation_1B!O$11:O$150,MATCH($C14,'Disaggregation1B_Import-Export'!$C$8:$C$239,0))=\"\",\"\",INDEX(Disaggregation_1B!O$11:O$150,MATCH($C14,'Disaggregation1B_Import-Export'!$C$8:$C$239,0))),\"\")","v":""},{"$f":"IFERROR(IF(INDEX(Disaggregation_1B!P$11:P$150,MATCH($C14,'Disaggregation1B_Import-Export'!$C$8:$C$239,0))=\"\",\"\",INDEX(Disaggregation_1B!P$11:P$150,MATCH($C14,'Disaggregation1B_Import-Export'!$C$8:$C$239,0))),\"\")","v":"TB patient register"},{"$f":"IFERROR(IF(INDEX(Disaggregation_1B!Q$11:Q$150,MATCH($C14,'Disaggregation1B_Import-Export'!$C$8:$C$239,0))=\"\",\"\",INDEX(Disaggregation_1B!Q$11:Q$150,MATCH($C14,'Disaggregation1B_Import-Export'!$C$8:$C$239,0))),\"\")","v":"Sur 3727 tuberculeux chez qui le VIH a été testé, 410 sont séropositifs au VIH soit 11%. "},{"$f":"INDEX(Disaggregation_1B!R$11:R$150,MATCH($C14,'Disaggregation1B_Import-Export'!$C$8:$C$239,0))","v":0},{"$f":"IFERROR(IF(INDEX(Disaggregation_1B!S$11:S$150,MATCH($C14,'Disaggregation1B_Import-Export'!$C$8:$C$239,0))=\"\",\"\",INDEX(Disaggregation_1B!S$11:S$150,MATCH($C14,'Disaggregation1B_Import-Export'!$C$8:$C$239,0))),\"\")","v":""},{"$f":"IFERROR(IF(INDEX(Disaggregation_1B!T$11:T$150,MATCH($C14,'Disaggregation1B_Import-Export'!$C$8:$C$239,0))=\"\",\"\",INDEX(Disaggregation_1B!T$11:T$150,MATCH($C14,'Disaggregation1B_Import-Export'!$C$8:$C$239,0))),\"\")","v":""},{"$f":"IFERROR(IF(INDEX(Disaggregation_1B!U$11:U$150,MATCH($C14,'Disaggregation1B_Import-Export'!$C$8:$C$239,0))=\"\",\"\",INDEX(Disaggregation_1B!U$11:U$150,MATCH($C14,'Disaggregation1B_Import-Export'!$C$8:$C$239,0))),\"\")","v":""},{"$f":"IFERROR(IF(INDEX(Disaggregation_1B!V$11:V$150,MATCH($C14,'Disaggregation1B_Import-Export'!$C$8:$C$239,0))=\"\",\"\",INDEX(Disaggregation_1B!V$11:V$150,MATCH($C14,'Disaggregation1B_Import-Export'!$C$8:$C$239,0))),\"\")","v":""},{"$f":"IFERROR(IF(INDEX(Disaggregation_1B!W$11:W$150,MATCH($C14,'Disaggregation1B_Import-Export'!$C$8:$C$239,0))=\"\",\"\",INDEX(Disaggregation_1B!W$11:W$150,MATCH($C14,'Disaggregation1B_Import-Export'!$C$8:$C$239,0))),\"\")","v":""},{"$f":"INDEX(Disaggregation_1B!X$11:X$150,MATCH($C14,'Disaggregation1B_Import-Export'!$C$8:$C$239,0))","v":0},null,null,null,{"$f":"INDEX(Disaggregation_1B!AB$11:AB$150,MATCH($C14,'Disaggregation1B_Import-Export'!$C$8:$C$239,0))","v":0},{"$f":"INDEX(Disaggregation_1B!AC$11:AC$150,MATCH($C14,'Disaggregation1B_Import-Export'!$C$8:$C$239,0))","v":0},1,"TCP-1(M): Nombre de cas déclarés de tuberculose, toutes formes confondues, bactériologiquement confirmés et cliniquement diagnostiqués, nouveaux cas et récidives","Négatif","Résultat du test VIH","TCP-1(M): Número de casos notificados de todas las formas de TB (i.e. confirmados bacteriológicamente y con diagnóstico clínico) incluye casos nuevos y recaídas","TCP-1(M): Nombre de cas déclarés de tuberculose, toutes formes confondues, bactériologiquement confirmés et cliniquement diagnostiqués, nouveaux cas et récidives","Negativo","Négatif","Resultado de prueba del VIH","Résultat du test VIH",null,"Rapport annuel 2016 du PNILT.","Burundi"]
["a15360000095pvJAAQ",7,"Coverage7","TB care and prevention","TCP-1(M): Number of notified cases of all forms of TB-(i.e. bacteriologically confirmed + clinically diagnosed), includes new and relapse cases","Positive","HIV test status",877,0,"0.0","2016","PNILT 2016 Annual Report",null,{"$f":"IFERROR(IF(INDEX(Disaggregation_1B!M$11:M$150,MATCH($C15,'Disaggregation1B_Import-Export'!$C$8:$C$239,0))=\"\",\"\",INDEX(Disaggregation_1B!M$11:M$150,MATCH($C15,'Disaggregation1B_Import-Export'!$C$8:$C$239,0))),\"\")","v":2391},{"$f":"IFERROR(IF(INDEX(Disaggregation_1B!N$11:N$150,MATCH($C15,'Disaggregation1B_Import-Export'!$C$8:$C$239,0))=\"\",\"\",INDEX(Disaggregation_1B!N$11:N$150,MATCH($C15,'Disaggregation1B_Import-Export'!$C$8:$C$239,0))),\"\")","v":""},{"$f":"IFERROR(IF(INDEX(Disaggregation_1B!O$11:O$150,MATCH($C15,'Disaggregation1B_Import-Export'!$C$8:$C$239,0))=\"\",\"\",INDEX(Disaggregation_1B!O$11:O$150,MATCH($C15,'Disaggregation1B_Import-Export'!$C$8:$C$239,0))),\"\")","v":""},{"$f":"IFERROR(IF(INDEX(Disaggregation_1B!P$11:P$150,MATCH($C15,'Disaggregation1B_Import-Export'!$C$8:$C$239,0))=\"\",\"\",INDEX(Disaggregation_1B!P$11:P$150,MATCH($C15,'Disaggregation1B_Import-Export'!$C$8:$C$239,0))),\"\")","v":"TB patient register"},{"$f":"IFERROR(IF(INDEX(Disaggregation_1B!Q$11:Q$150,MATCH($C15,'Disaggregation1B_Import-Export'!$C$8:$C$239,0))=\"\",\"\",INDEX(Disaggregation_1B!Q$11:Q$150,MATCH($C15,'Disaggregation1B_Import-Export'!$C$8:$C$239,0))),\"\")","v":"Nous constatons que le sexe masculin   représente (62.5%) par rapport au nombre total des TTF dépistés  pour la TB toute forme confondue. "},{"$f":"INDEX(Disaggregation_1B!R$11:R$150,MATCH($C15,'Disaggregation1B_Import-Export'!$C$8:$C$239,0))","v":0},{"$f":"IFERROR(IF(INDEX(Disaggregation_1B!S$11:S$150,MATCH($C15,'Disaggregation1B_Import-Export'!$C$8:$C$239,0))=\"\",\"\",INDEX(Disaggregation_1B!S$11:S$150,MATCH($C15,'Disaggregation1B_Import-Export'!$C$8:$C$239,0))),\"\")","v":""},{"$f":"IFERROR(IF(INDEX(Disaggregation_1B!T$11:T$150,MATCH($C15,'Disaggregation1B_Import-Export'!$C$8:$C$239,0))=\"\",\"\",INDEX(Disaggregation_1B!T$11:T$150,MATCH($C15,'Disaggregation1B_Import-Export'!$C$8:$C$239,0))),\"\")","v":""},{"$f":"IFERROR(IF(INDEX(Disaggregation_1B!U$11:U$150,MATCH($C15,'Disaggregation1B_Import-Export'!$C$8:$C$239,0))=\"\",\"\",INDEX(Disaggregation_1B!U$11:U$150,MATCH($C15,'Disaggregation1B_Import-Export'!$C$8:$C$239,0))),\"\")","v":""},{"$f":"IFERROR(IF(INDEX(Disaggregation_1B!V$11:V$150,MATCH($C15,'Disaggregation1B_Import-Export'!$C$8:$C$239,0))=\"\",\"\",INDEX(Disaggregation_1B!V$11:V$150,MATCH($C15,'Disaggregation1B_Import-Export'!$C$8:$C$239,0))),\"\")","v":""},{"$f":"IFERROR(IF(INDEX(Disaggregation_1B!W$11:W$150,MATCH($C15,'Disaggregation1B_Import-Export'!$C$8:$C$239,0))=\"\",\"\",INDEX(Disaggregation_1B!W$11:W$150,MATCH($C15,'Disaggregation1B_Import-Export'!$C$8:$C$239,0))),\"\")","v":""},{"$f":"INDEX(Disaggregation_1B!X$11:X$150,MATCH($C15,'Disaggregation1B_Import-Export'!$C$8:$C$239,0))","v":0},null,null,null,{"$f":"INDEX(Disaggregation_1B!AB$11:AB$150,MATCH($C15,'Disaggregation1B_Import-Export'!$C$8:$C$239,0))","v":0},{"$f":"INDEX(Disaggregation_1B!AC$11:AC$150,MATCH($C15,'Disaggregation1B_Import-Export'!$C$8:$C$239,0))","v":0},1,"TCP-1(M): Nombre de cas déclarés de tuberculose, toutes formes confondues, bactériologiquement confirmés et cliniquement diagnostiqués, nouveaux cas et récidives","Positif","Résultat du test VIH","TCP-1(M): Número de casos notificados de todas las formas de TB (i.e. confirmados bacteriológicamente y con diagnóstico clínico) incluye casos nuevos y recaídas","TCP-1(M): Nombre de cas déclarés de tuberculose, toutes formes confondues, bactériologiquement confirmés et cliniquement diagnostiqués, nouveaux cas et récidives","Positivo","Positif","Resultado de prueba del VIH","Résultat du test VIH",null,"Rapport annuel 2016 du PNILT.","Burundi"]
["a15360000095pvKAAQ",8,"Coverage8","TB care and prevention","TCP-1(M): Number of notified cases of all forms of TB-(i.e. bacteriologically confirmed + clinically diagnosed), includes new and relapse cases","Male","Gender",4922,0,"0.0","2016","PNILT 2016 Annual Report",null,{"$f":"IFERROR(IF(INDEX(Disaggregation_1B!M$11:M$150,MATCH($C16,'Disaggregation1B_Import-Export'!$C$8:$C$239,0))=\"\",\"\",INDEX(Disaggregation_1B!M$11:M$150,MATCH($C16,'Disaggregation1B_Import-Export'!$C$8:$C$239,0))),\"\")","v":""},{"$f":"IFERROR(IF(INDEX(Disaggregation_1B!N$11:N$150,MATCH($C16,'Disaggregation1B_Import-Export'!$C$8:$C$239,0))=\"\",\"\",INDEX(Disaggregation_1B!N$11:N$150,MATCH($C16,'Disaggregation1B_Import-Export'!$C$8:$C$239,0))),\"\")","v":""},{"$f":"IFERROR(IF(INDEX(Disaggregation_1B!O$11:O$150,MATCH($C16,'Disaggregation1B_Import-Export'!$C$8:$C$239,0))=\"\",\"\",INDEX(Disaggregation_1B!O$11:O$150,MATCH($C16,'Disaggregation1B_Import-Export'!$C$8:$C$239,0))),\"\")","v":""},{"$f":"IFERROR(IF(INDEX(Disaggregation_1B!P$11:P$150,MATCH($C16,'Disaggregation1B_Import-Export'!$C$8:$C$239,0))=\"\",\"\",INDEX(Disaggregation_1B!P$11:P$150,MATCH($C16,'Disaggregation1B_Import-Export'!$C$8:$C$239,0))),\"\")","v":""},{"$f":"IFERROR(IF(INDEX(Disaggregation_1B!Q$11:Q$150,MATCH($C16,'Disaggregation1B_Import-Export'!$C$8:$C$239,0))=\"\",\"\",INDEX(Disaggregation_1B!Q$11:Q$150,MATCH($C16,'Disaggregation1B_Import-Export'!$C$8:$C$239,0))),\"\")","v":"NA"},{"$f":"INDEX(Disaggregation_1B!R$11:R$150,MATCH($C16,'Disaggregation1B_Import-Export'!$C$8:$C$239,0))","v":0},{"$f":"IFERROR(IF(INDEX(Disaggregation_1B!S$11:S$150,MATCH($C16,'Disaggregation1B_Import-Export'!$C$8:$C$239,0))=\"\",\"\",INDEX(Disaggregation_1B!S$11:S$150,MATCH($C16,'Disaggregation1B_Import-Export'!$C$8:$C$239,0))),\"\")","v":""},{"$f":"IFERROR(IF(INDEX(Disaggregation_1B!T$11:T$150,MATCH($C16,'Disaggregation1B_Import-Export'!$C$8:$C$239,0))=\"\",\"\",INDEX(Disaggregation_1B!T$11:T$150,MATCH($C16,'Disaggregation1B_Import-Export'!$C$8:$C$239,0))),\"\")","v":""},{"$f":"IFERROR(IF(INDEX(Disaggregation_1B!U$11:U$150,MATCH($C16,'Disaggregation1B_Import-Export'!$C$8:$C$239,0))=\"\",\"\",INDEX(Disaggregation_1B!U$11:U$150,MATCH($C16,'Disaggregation1B_Import-Export'!$C$8:$C$239,0))),\"\")","v":""},{"$f":"IFERROR(IF(INDEX(Disaggregation_1B!V$11:V$150,MATCH($C16,'Disaggregation1B_Import-Export'!$C$8:$C$239,0))=\"\",\"\",INDEX(Disaggregation_1B!V$11:V$150,MATCH($C16,'Disaggregation1B_Import-Export'!$C$8:$C$239,0))),\"\")","v":""},{"$f":"IFERROR(IF(INDEX(Disaggregation_1B!W$11:W$150,MATCH($C16,'Disaggregation1B_Import-Export'!$C$8:$C$239,0))=\"\",\"\",INDEX(Disaggregation_1B!W$11:W$150,MATCH($C16,'Disaggregation1B_Import-Export'!$C$8:$C$239,0))),\"\")","v":""},{"$f":"INDEX(Disaggregation_1B!X$11:X$150,MATCH($C16,'Disaggregation1B_Import-Export'!$C$8:$C$239,0))","v":0},null,null,null,{"$f":"INDEX(Disaggregation_1B!AB$11:AB$150,MATCH($C16,'Disaggregation1B_Import-Export'!$C$8:$C$239,0))","v":0},{"$f":"INDEX(Disaggregation_1B!AC$11:AC$150,MATCH($C16,'Disaggregation1B_Import-Export'!$C$8:$C$239,0))","v":0},1,"TCP-1(M): Nombre de cas déclarés de tuberculose, toutes formes confondues, bactériologiquement confirmés et cliniquement diagnostiqués, nouveaux cas et récidives","Homme","Sexe","TCP-1(M): Número de casos notificados de todas las formas de TB (i.e. confirmados bacteriológicamente y con diagnóstico clínico) incluye casos nuevos y recaídas","TCP-1(M): Nombre de cas déclarés de tuberculose, toutes formes confondues, bactériologiquement confirmés et cliniquement diagnostiqués, nouveaux cas et récidives","Hombres","Homme","Sexo","Sexe",null,"Rapport annuel 2016 du PNILT.","Burundi"]
["a15360000095pw1AAA",9,"Coverage9","TB care and prevention","TCP-2(M): Treatment success rate- all forms:  Percentage of TB cases, all forms, bacteriologically confirmed plus clinically diagnosed, successfully treated (cured plus treatment completed) among all TB cases registered for treatment during a specified period, new and relapse cases","Negative","HIV test status",0,0,"0.0",null,null,null,{"$f":"IFERROR(IF(INDEX(Disaggregation_1B!M$11:M$150,MATCH($C17,'Disaggregation1B_Import-Export'!$C$8:$C$239,0))=\"\",\"\",INDEX(Disaggregation_1B!M$11:M$150,MATCH($C17,'Disaggregation1B_Import-Export'!$C$8:$C$239,0))),\"\")","v":2468},{"$f":"IFERROR(IF(INDEX(Disaggregation_1B!N$11:N$150,MATCH($C17,'Disaggregation1B_Import-Export'!$C$8:$C$239,0))=\"\",\"\",INDEX(Disaggregation_1B!N$11:N$150,MATCH($C17,'Disaggregation1B_Import-Export'!$C$8:$C$239,0))),\"\")","v":2658},{"$f":"IFERROR(IF(INDEX(Disaggregation_1B!O$11:O$150,MATCH($C17,'Disaggregation1B_Import-Export'!$C$8:$C$239,0))=\"\",\"\",INDEX(Disaggregation_1B!O$11:O$150,MATCH($C17,'Disaggregation1B_Import-Export'!$C$8:$C$239,0))),\"\")","v":92.851768246802095},{"$f":"IFERROR(IF(INDEX(Disaggregation_1B!P$11:P$150,MATCH($C17,'Disaggregation1B_Import-Export'!$C$8:$C$239,0))=\"\",\"\",INDEX(Disaggregation_1B!P$11:P$150,MATCH($C17,'Disaggregation1B_Import-Export'!$C$8:$C$239,0))),\"\")","v":"TB patient register"},{"$f":"IFERROR(IF(INDEX(Disaggregation_1B!Q$11:Q$150,MATCH($C17,'Disaggregation1B_Import-Export'!$C$8:$C$239,0))=\"\",\"\",INDEX(Disaggregation_1B!Q$11:Q$150,MATCH($C17,'Disaggregation1B_Import-Export'!$C$8:$C$239,0))),\"\")","v":"Parmi les cas TTF , 2468 hommes ont  terminé le traitement ou sont déclarés guéris soit un taux de succès thérapeutique de 92.6%\n"},{"$f":"INDEX(Disaggregation_1B!R$11:R$150,MATCH($C17,'Disaggregation1B_Import-Export'!$C$8:$C$239,0))","v":0},{"$f":"IFERROR(IF(INDEX(Disaggregation_1B!S$11:S$150,MATCH($C17,'Disaggregation1B_Import-Export'!$C$8:$C$239,0))=\"\",\"\",INDEX(Disaggregation_1B!S$11:S$150,MATCH($C17,'Disaggregation1B_Import-Export'!$C$8:$C$239,0))),\"\")","v":""},{"$f":"IFERROR(IF(INDEX(Disaggregation_1B!T$11:T$150,MATCH($C17,'Disaggregation1B_Import-Export'!$C$8:$C$239,0))=\"\",\"\",INDEX(Disaggregation_1B!T$11:T$150,MATCH($C17,'Disaggregation1B_Import-Export'!$C$8:$C$239,0))),\"\")","v":""},{"$f":"IFERROR(IF(INDEX(Disaggregation_1B!U$11:U$150,MATCH($C17,'Disaggregation1B_Import-Export'!$C$8:$C$239,0))=\"\",\"\",INDEX(Disaggregation_1B!U$11:U$150,MATCH($C17,'Disaggregation1B_Import-Export'!$C$8:$C$239,0))),\"\")","v":""},{"$f":"IFERROR(IF(INDEX(Disaggregation_1B!V$11:V$150,MATCH($C17,'Disaggregation1B_Import-Export'!$C$8:$C$239,0))=\"\",\"\",INDEX(Disaggregation_1B!V$11:V$150,MATCH($C17,'Disaggregation1B_Import-Export'!$C$8:$C$239,0))),\"\")","v":""},{"$f":"IFERROR(IF(INDEX(Disaggregation_1B!W$11:W$150,MATCH($C17,'Disaggregation1B_Import-Export'!$C$8:$C$239,0))=\"\",\"\",INDEX(Disaggregation_1B!W$11:W$150,MATCH($C17,'Disaggregation1B_Import-Export'!$C$8:$C$239,0))),\"\")","v":""},{"$f":"INDEX(Disaggregation_1B!X$11:X$150,MATCH($C17,'Disaggregation1B_Import-Export'!$C$8:$C$239,0))","v":0},null,null,null,{"$f":"INDEX(Disaggregation_1B!AB$11:AB$150,MATCH($C17,'Disaggregation1B_Import-Export'!$C$8:$C$239,0))","v":0},{"$f":"INDEX(Disaggregation_1B!AC$11:AC$150,MATCH($C17,'Disaggregation1B_Import-Export'!$C$8:$C$239,0))","v":0},2,"TCP-2(M): Taux de succès thérapeutique- toutes formes confondue: Pourcentage de cas de TB, toutes formes confondue, bactériologiquement confirmés et diagnostiqués cliniquement, traités avec succès (guéris et traitement terminé) parmi tous les cas de TB ayant commencé le traitement pendant une période déterminée, nouveaux cas et récidives","Négatif","Résultat du test VIH","TCP-2(M): Tasa de éxito del tratamiento- todas las formas: Porcentaje de casos de TB de todas las formas, bacteriológicamente confirmados y clínicamente diagnosticados que han sido tratados exitosamente (curados más tratamiento completado) entre todos los casos de TB registrados para tratamiento durante un período específico, casos nuevos y recaídas","TCP-2(M): Taux de succès thérapeutique- toutes formes confondue: Pourcentage de cas de TB, toutes formes confondue, bactériologiquement confirmés et diagnostiqués cliniquement, traités avec succès (guéris et traitement terminé) parmi tous les cas de TB ayant commencé le traitement pendant une période déterminée, nouveaux cas et récidives","Negativo","Négatif","Resultado de prueba del VIH","Résultat du test VIH",null,null,"Burundi"]
["a15360000095pw2AAA",10,"Coverage10","TB care and prevention","TCP-2(M): Treatment success rate- all forms:  Percentage of TB cases, all forms, bacteriologically confirmed plus clinically diagnosed, successfully treated (cured plus treatment completed) among all TB cases registered for treatment during a specified period, new and relapse cases","Male","Gender",0,0,"0.0",null,null,null,{"$f":"IFERROR(IF(INDEX(Disaggregation_1B!M$11:M$150,MATCH($C18,'Disaggregation1B_Import-Export'!$C$8:$C$239,0))=\"\",\"\",INDEX(Disaggregation_1B!M$11:M$150,MATCH($C18,'Disaggregation1B_Import-Export'!$C$8:$C$239,0))),\"\")","v":""},{"$f":"IFERROR(IF(INDEX(Disaggregation_1B!N$11:N$150,MATCH($C18,'Disaggregation1B_Import-Export'!$C$8:$C$239,0))=\"\",\"\",INDEX(Disaggregation_1B!N$11:N$150,MATCH($C18,'Disaggregation1B_Import-Export'!$C$8:$C$239,0))),\"\")","v":""},{"$f":"IFERROR(IF(INDEX(Disaggregation_1B!O$11:O$150,MATCH($C18,'Disaggregation1B_Import-Export'!$C$8:$C$239,0))=\"\",\"\",INDEX(Disaggregation_1B!O$11:O$150,MATCH($C18,'Disaggregation1B_Import-Export'!$C$8:$C$239,0))),\"\")","v":""},{"$f":"IFERROR(IF(INDEX(Disaggregation_1B!P$11:P$150,MATCH($C18,'Disaggregation1B_Import-Export'!$C$8:$C$239,0))=\"\",\"\",INDEX(Disaggregation_1B!P$11:P$150,MATCH($C18,'Disaggregation1B_Import-Export'!$C$8:$C$239,0))),\"\")","v":""},{"$f":"IFERROR(IF(INDEX(Disaggregation_1B!Q$11:Q$150,MATCH($C18,'Disaggregation1B_Import-Export'!$C$8:$C$239,0))=\"\",\"\",INDEX(Disaggregation_1B!Q$11:Q$150,MATCH($C18,'Disaggregation1B_Import-Export'!$C$8:$C$239,0))),\"\")","v":"NA"},{"$f":"INDEX(Disaggregation_1B!R$11:R$150,MATCH($C18,'Disaggregation1B_Import-Export'!$C$8:$C$239,0))","v":0},{"$f":"IFERROR(IF(INDEX(Disaggregation_1B!S$11:S$150,MATCH($C18,'Disaggregation1B_Import-Export'!$C$8:$C$239,0))=\"\",\"\",INDEX(Disaggregation_1B!S$11:S$150,MATCH($C18,'Disaggregation1B_Import-Export'!$C$8:$C$239,0))),\"\")","v":""},{"$f":"IFERROR(IF(INDEX(Disaggregation_1B!T$11:T$150,MATCH($C18,'Disaggregation1B_Import-Export'!$C$8:$C$239,0))=\"\",\"\",INDEX(Disaggregation_1B!T$11:T$150,MATCH($C18,'Disaggregation1B_Import-Export'!$C$8:$C$239,0))),\"\")","v":""},{"$f":"IFERROR(IF(INDEX(Disaggregation_1B!U$11:U$150,MATCH($C18,'Disaggregation1B_Import-Export'!$C$8:$C$239,0))=\"\",\"\",INDEX(Disaggregation_1B!U$11:U$150,MATCH($C18,'Disaggregation1B_Import-Export'!$C$8:$C$239,0))),\"\")","v":""},{"$f":"IFERROR(IF(INDEX(Disaggregation_1B!V$11:V$150,MATCH($C18,'Disaggregation1B_Import-Export'!$C$8:$C$239,0))=\"\",\"\",INDEX(Disaggregation_1B!V$11:V$150,MATCH($C18,'Disaggregation1B_Import-Export'!$C$8:$C$239,0))),\"\")","v":""},{"$f":"IFERROR(IF(INDEX(Disaggregation_1B!W$11:W$150,MATCH($C18,'Disaggregation1B_Import-Export'!$C$8:$C$239,0))=\"\",\"\",INDEX(Disaggregation_1B!W$11:W$150,MATCH($C18,'Disaggregation1B_Import-Export'!$C$8:$C$239,0))),\"\")","v":""},{"$f":"INDEX(Disaggregation_1B!X$11:X$150,MATCH($C18,'Disaggregation1B_Import-Export'!$C$8:$C$239,0))","v":0},null,null,null,{"$f":"INDEX(Disaggregation_1B!AB$11:AB$150,MATCH($C18,'Disaggregation1B_Import-Export'!$C$8:$C$239,0))","v":0},{"$f":"INDEX(Disaggregation_1B!AC$11:AC$150,MATCH($C18,'Disaggregation1B_Import-Export'!$C$8:$C$239,0))","v":0},2,"TCP-2(M): Taux de succès thérapeutique- toutes formes confondue: Pourcentage de cas de TB, toutes formes confondue, bactériologiquement confirmés et diagnostiqués cliniquement, traités avec succès (guéris et traitement terminé) parmi tous les cas de TB ayant commencé le traitement pendant une période déterminée, nouveaux cas et récidives","Homme","Sexe","TCP-2(M): Tasa de éxito del tratamiento- todas las formas: Porcentaje de casos de TB de todas las formas, bacteriológicamente confirmados y clínicamente diagnosticados que han sido tratados exitosamente (curados más tratamiento completado) entre todos los casos de TB registrados para tratamiento durante un período específico, casos nuevos y recaídas","TCP-2(M): Taux de succès thérapeutique- toutes formes confondue: Pourcentage de cas de TB, toutes formes confondue, bactériologiquement confirmés et diagnostiqués cliniquement, traités avec succès (guéris et traitement terminé) parmi tous les cas de TB ayant commencé le traitement pendant une période déterminée, nouveaux cas et récidives","Hombres","Homme","Sexo","Sexe",null,null,"Burundi"]
["a15360000095pw3AAA",11,"Coverage11","TB care and prevention","TCP-2(M): Treatment success rate- all forms:  Percentage of TB cases, all forms, bacteriologically confirmed plus clinically diagnosed, successfully treated (cured plus treatment completed) among all TB cases registered for treatment during a specified period, new and relapse cases","Positive","HIV test status",0,0,"0.0",null,null,null,{"$f":"IFERROR(IF(INDEX(Disaggregation_1B!M$11:M$150,MATCH($C19,'Disaggregation1B_Import-Export'!$C$8:$C$239,0))=\"\",\"\",INDEX(Disaggregation_1B!M$11:M$150,MATCH($C19,'Disaggregation1B_Import-Export'!$C$8:$C$239,0))),\"\")","v":""},{"$f":"IFERROR(IF(INDEX(Disaggregation_1B!N$11:N$150,MATCH($C19,'Disaggregation1B_Import-Export'!$C$8:$C$239,0))=\"\",\"\",INDEX(Disaggregation_1B!N$11:N$150,MATCH($C19,'Disaggregation1B_Import-Export'!$C$8:$C$239,0))),\"\")","v":""},{"$f":"IFERROR(IF(INDEX(Disaggregation_1B!O$11:O$150,MATCH($C19,'Disaggregation1B_Import-Export'!$C$8:$C$239,0))=\"\",\"\",INDEX(Disaggregation_1B!O$11:O$150,MATCH($C19,'Disaggregation1B_Import-Export'!$C$8:$C$239,0))),\"\")","v":""},{"$f":"IFERROR(IF(INDEX(Disaggregation_1B!P$11:P$150,MATCH($C19,'Disaggregation1B_Import-Export'!$C$8:$C$239,0))=\"\",\"\",INDEX(Disaggregation_1B!P$11:P$150,MATCH($C19,'Disaggregation1B_Import-Export'!$C$8:$C$239,0))),\"\")","v":""},{"$f":"IFERROR(IF(INDEX(Disaggregation_1B!Q$11:Q$150,MATCH($C19,'Disaggregation1B_Import-Export'!$C$8:$C$239,0))=\"\",\"\",INDEX(Disaggregation_1B!Q$11:Q$150,MATCH($C19,'Disaggregation1B_Import-Export'!$C$8:$C$239,0))),\"\")","v":"NA"},{"$f":"INDEX(Disaggregation_1B!R$11:R$150,MATCH($C19,'Disaggregation1B_Import-Export'!$C$8:$C$239,0))","v":0},{"$f":"IFERROR(IF(INDEX(Disaggregation_1B!S$11:S$150,MATCH($C19,'Disaggregation1B_Import-Export'!$C$8:$C$239,0))=\"\",\"\",INDEX(Disaggregation_1B!S$11:S$150,MATCH($C19,'Disaggregation1B_Import-Export'!$C$8:$C$239,0))),\"\")","v":""},{"$f":"IFERROR(IF(INDEX(Disaggregation_1B!T$11:T$150,MATCH($C19,'Disaggregation1B_Import-Export'!$C$8:$C$239,0))=\"\",\"\",INDEX(Disaggregation_1B!T$11:T$150,MATCH($C19,'Disaggregation1B_Import-Export'!$C$8:$C$239,0))),\"\")","v":""},{"$f":"IFERROR(IF(INDEX(Disaggregation_1B!U$11:U$150,MATCH($C19,'Disaggregation1B_Import-Export'!$C$8:$C$239,0))=\"\",\"\",INDEX(Disaggregation_1B!U$11:U$150,MATCH($C19,'Disaggregation1B_Import-Export'!$C$8:$C$239,0))),\"\")","v":""},{"$f":"IFERROR(IF(INDEX(Disaggregation_1B!V$11:V$150,MATCH($C19,'Disaggregation1B_Import-Export'!$C$8:$C$239,0))=\"\",\"\",INDEX(Disaggregation_1B!V$11:V$150,MATCH($C19,'Disaggregation1B_Import-Export'!$C$8:$C$239,0))),\"\")","v":""},{"$f":"IFERROR(IF(INDEX(Disaggregation_1B!W$11:W$150,MATCH($C19,'Disaggregation1B_Import-Export'!$C$8:$C$239,0))=\"\",\"\",INDEX(Disaggregation_1B!W$11:W$150,MATCH($C19,'Disaggregation1B_Import-Export'!$C$8:$C$239,0))),\"\")","v":""},{"$f":"INDEX(Disaggregation_1B!X$11:X$150,MATCH($C19,'Disaggregation1B_Import-Export'!$C$8:$C$239,0))","v":0},null,null,null,{"$f":"INDEX(Disaggregation_1B!AB$11:AB$150,MATCH($C19,'Disaggregation1B_Import-Export'!$C$8:$C$239,0))","v":0},{"$f":"INDEX(Disaggregation_1B!AC$11:AC$150,MATCH($C19,'Disaggregation1B_Import-Export'!$C$8:$C$239,0))","v":0},2,"TCP-2(M): Taux de succès thérapeutique- toutes formes confondue: Pourcentage de cas de TB, toutes formes confondue, bactériologiquement confirmés et diagnostiqués cliniquement, traités avec succès (guéris et traitement terminé) parmi tous les cas de TB ayant commencé le traitement pendant une période déterminée, nouveaux cas et récidives","Positif","Résultat du test VIH","TCP-2(M): Tasa de éxito del tratamiento- todas las formas: Porcentaje de casos de TB de todas las formas, bacteriológicamente confirmados y clínicamente diagnosticados que han sido tratados exitosamente (curados más tratamiento completado) entre todos los casos de TB registrados para tratamiento durante un período específico, casos nuevos y recaídas","TCP-2(M): Taux de succès thérapeutique- toutes formes confondue: Pourcentage de cas de TB, toutes formes confondue, bactériologiquement confirmés et diagnostiqués cliniquement, traités avec succès (guéris et traitement terminé) parmi tous les cas de TB ayant commencé le traitement pendant une période déterminée, nouveaux cas et récidives","Positivo","Positif","Resultado de prueba del VIH","Résultat du test VIH",null,null,"Burundi"]
["a15360000095pw4AAA",12,"Coverage12","TB care and prevention","TCP-2(M): Treatment success rate- all forms:  Percentage of TB cases, all forms, bacteriologically confirmed plus clinically diagnosed, successfully treated (cured plus treatment completed) among all TB cases registered for treatment during a specified period, new and relapse cases","Not documented","HIV test status",0,0,"0.0",null,null,null,{"$f":"IFERROR(IF(INDEX(Disaggregation_1B!M$11:M$150,MATCH($C20,'Disaggregation1B_Import-Export'!$C$8:$C$239,0))=\"\",\"\",INDEX(Disaggregation_1B!M$11:M$150,MATCH($C20,'Disaggregation1B_Import-Export'!$C$8:$C$239,0))),\"\")","v":""},{"$f":"IFERROR(IF(INDEX(Disaggregation_1B!N$11:N$150,MATCH($C20,'Disaggregation1B_Import-Export'!$C$8:$C$239,0))=\"\",\"\",INDEX(Disaggregation_1B!N$11:N$150,MATCH($C20,'Disaggregation1B_Import-Export'!$C$8:$C$239,0))),\"\")","v":""},{"$f":"IFERROR(IF(INDEX(Disaggregation_1B!O$11:O$150,MATCH($C20,'Disaggregation1B_Import-Export'!$C$8:$C$239,0))=\"\",\"\",INDEX(Disaggregation_1B!O$11:O$150,MATCH($C20,'Disaggregation1B_Import-Export'!$C$8:$C$239,0))),\"\")","v":""},{"$f":"IFERROR(IF(INDEX(Disaggregation_1B!P$11:P$150,MATCH($C20,'Disaggregation1B_Import-Export'!$C$8:$C$239,0))=\"\",\"\",INDEX(Disaggregation_1B!P$11:P$150,MATCH($C20,'Disaggregation1B_Import-Export'!$C$8:$C$239,0))),\"\")","v":""},{"$f":"IFERROR(IF(INDEX(Disaggregation_1B!Q$11:Q$150,MATCH($C20,'Disaggregation1B_Import-Export'!$C$8:$C$239,0))=\"\",\"\",INDEX(Disaggregation_1B!Q$11:Q$150,MATCH($C20,'Disaggregation1B_Import-Export'!$C$8:$C$239,0))),\"\")","v":"Le système d'information sanitaire ne permet pas de renseigner cet indicateur désagrégé par tranche d'âge"},{"$f":"INDEX(Disaggregation_1B!R$11:R$150,MATCH($C20,'Disaggregation1B_Import-Export'!$C$8:$C$239,0))","v":0},{"$f":"IFERROR(IF(INDEX(Disaggregation_1B!S$11:S$150,MATCH($C20,'Disaggregation1B_Import-Export'!$C$8:$C$239,0))=\"\",\"\",INDEX(Disaggregation_1B!S$11:S$150,MATCH($C20,'Disaggregation1B_Import-Export'!$C$8:$C$239,0))),\"\")","v":""},{"$f":"IFERROR(IF(INDEX(Disaggregation_1B!T$11:T$150,MATCH($C20,'Disaggregation1B_Import-Export'!$C$8:$C$239,0))=\"\",\"\",INDEX(Disaggregation_1B!T$11:T$150,MATCH($C20,'Disaggregation1B_Import-Export'!$C$8:$C$239,0))),\"\")","v":""},{"$f":"IFERROR(IF(INDEX(Disaggregation_1B!U$11:U$150,MATCH($C20,'Disaggregation1B_Import-Export'!$C$8:$C$239,0))=\"\",\"\",INDEX(Disaggregation_1B!U$11:U$150,MATCH($C20,'Disaggregation1B_Import-Export'!$C$8:$C$239,0))),\"\")","v":""},{"$f":"IFERROR(IF(INDEX(Disaggregation_1B!V$11:V$150,MATCH($C20,'Disaggregation1B_Import-Export'!$C$8:$C$239,0))=\"\",\"\",INDEX(Disaggregation_1B!V$11:V$150,MATCH($C20,'Disaggregation1B_Import-Export'!$C$8:$C$239,0))),\"\")","v":""},{"$f":"IFERROR(IF(INDEX(Disaggregation_1B!W$11:W$150,MATCH($C20,'Disaggregation1B_Import-Export'!$C$8:$C$239,0))=\"\",\"\",INDEX(Disaggregation_1B!W$11:W$150,MATCH($C20,'Disaggregation1B_Import-Export'!$C$8:$C$239,0))),\"\")","v":""},{"$f":"INDEX(Disaggregation_1B!X$11:X$150,MATCH($C20,'Disaggregation1B_Import-Export'!$C$8:$C$239,0))","v":0},null,null,null,{"$f":"INDEX(Disaggregation_1B!AB$11:AB$150,MATCH($C20,'Disaggregation1B_Import-Export'!$C$8:$C$239,0))","v":0},{"$f":"INDEX(Disaggregation_1B!AC$11:AC$150,MATCH($C20,'Disaggregation1B_Import-Export'!$C$8:$C$239,0))","v":0},2,"TCP-2(M): Taux de succès thérapeutique- toutes formes confondue: Pourcentage de cas de TB, toutes formes confondue, bactériologiquement confirmés et diagnostiqués cliniquement, traités avec succès (guéris et traitement terminé) parmi tous les cas de TB ayant commencé le traitement pendant une période déterminée, nouveaux cas et récidives","Non communiqué","Résultat du test VIH","TCP-2(M): Tasa de éxito del tratamiento- todas las formas: Porcentaje de casos de TB de todas las formas, bacteriológicamente confirmados y clínicamente diagnosticados que han sido tratados exitosamente (curados más tratamiento completado) entre todos los casos de TB registrados para tratamiento durante un período específico, casos nuevos y recaídas","TCP-2(M): Taux de succès thérapeutique- toutes formes confondue: Pourcentage de cas de TB, toutes formes confondue, bactériologiquement confirmés et diagnostiqués cliniquement, traités avec succès (guéris et traitement terminé) parmi tous les cas de TB ayant commencé le traitement pendant une période déterminée, nouveaux cas et récidives","No documentado","Non communiqué","Resultado de prueba del VIH","Résultat du test VIH",null,null,"Burundi"]
["a15360000095pw5AAA",13,"Coverage13","TB care and prevention","TCP-2(M): Treatment success rate- all forms:  Percentage of TB cases, all forms, bacteriologically confirmed plus clinically diagnosed, successfully treated (cured plus treatment completed) among all TB cases registered for treatment during a specified period, new and relapse cases","U15","Age",0,0,"0.0",null,null,null,{"$f":"IFERROR(IF(INDEX(Disaggregation_1B!M$11:M$150,MATCH($C21,'Disaggregation1B_Import-Export'!$C$8:$C$239,0))=\"\",\"\",INDEX(Disaggregation_1B!M$11:M$150,MATCH($C21,'Disaggregation1B_Import-Export'!$C$8:$C$239,0))),\"\")","v":""},{"$f":"IFERROR(IF(INDEX(Disaggregation_1B!N$11:N$150,MATCH($C21,'Disaggregation1B_Import-Export'!$C$8:$C$239,0))=\"\",\"\",INDEX(Disaggregation_1B!N$11:N$150,MATCH($C21,'Disaggregation1B_Import-Export'!$C$8:$C$239,0))),\"\")","v":""},{"$f":"IFERROR(IF(INDEX(Disaggregation_1B!O$11:O$150,MATCH($C21,'Disaggregation1B_Import-Export'!$C$8:$C$239,0))=\"\",\"\",INDEX(Disaggregation_1B!O$11:O$150,MATCH($C21,'Disaggregation1B_Import-Export'!$C$8:$C$239,0))),\"\")","v":""},{"$f":"IFERROR(IF(INDEX(Disaggregation_1B!P$11:P$150,MATCH($C21,'Disaggregation1B_Import-Export'!$C$8:$C$239,0))=\"\",\"\",INDEX(Disaggregation_1B!P$11:P$150,MATCH($C21,'Disaggregation1B_Import-Export'!$C$8:$C$239,0))),\"\")","v":""},{"$f":"IFERROR(IF(INDEX(Disaggregation_1B!Q$11:Q$150,MATCH($C21,'Disaggregation1B_Import-Export'!$C$8:$C$239,0))=\"\",\"\",INDEX(Disaggregation_1B!Q$11:Q$150,MATCH($C21,'Disaggregation1B_Import-Export'!$C$8:$C$239,0))),\"\")","v":"Le système d'information sanitaire ne permet pas de renseigner cet indicateur désagrégé par tranche d'âge"},{"$f":"INDEX(Disaggregation_1B!R$11:R$150,MATCH($C21,'Disaggregation1B_Import-Export'!$C$8:$C$239,0))","v":0},{"$f":"IFERROR(IF(INDEX(Disaggregation_1B!S$11:S$150,MATCH($C21,'Disaggregation1B_Import-Export'!$C$8:$C$239,0))=\"\",\"\",INDEX(Disaggregation_1B!S$11:S$150,MATCH($C21,'Disaggregation1B_Import-Export'!$C$8:$C$239,0))),\"\")","v":""},{"$f":"IFERROR(IF(INDEX(Disaggregation_1B!T$11:T$150,MATCH($C21,'Disaggregation1B_Import-Export'!$C$8:$C$239,0))=\"\",\"\",INDEX(Disaggregation_1B!T$11:T$150,MATCH($C21,'Disaggregation1B_Import-Export'!$C$8:$C$239,0))),\"\")","v":""},{"$f":"IFERROR(IF(INDEX(Disaggregation_1B!U$11:U$150,MATCH($C21,'Disaggregation1B_Import-Export'!$C$8:$C$239,0))=\"\",\"\",INDEX(Disaggregation_1B!U$11:U$150,MATCH($C21,'Disaggregation1B_Import-Export'!$C$8:$C$239,0))),\"\")","v":""},{"$f":"IFERROR(IF(INDEX(Disaggregation_1B!V$11:V$150,MATCH($C21,'Disaggregation1B_Import-Export'!$C$8:$C$239,0))=\"\",\"\",INDEX(Disaggregation_1B!V$11:V$150,MATCH($C21,'Disaggregation1B_Import-Export'!$C$8:$C$239,0))),\"\")","v":""},{"$f":"IFERROR(IF(INDEX(Disaggregation_1B!W$11:W$150,MATCH($C21,'Disaggregation1B_Import-Export'!$C$8:$C$239,0))=\"\",\"\",INDEX(Disaggregation_1B!W$11:W$150,MATCH($C21,'Disaggregation1B_Import-Export'!$C$8:$C$239,0))),\"\")","v":""},{"$f":"INDEX(Disaggregation_1B!X$11:X$150,MATCH($C21,'Disaggregation1B_Import-Export'!$C$8:$C$239,0))","v":0},null,null,null,{"$f":"INDEX(Disaggregation_1B!AB$11:AB$150,MATCH($C21,'Disaggregation1B_Import-Export'!$C$8:$C$239,0))","v":0},{"$f":"INDEX(Disaggregation_1B!AC$11:AC$150,MATCH($C21,'Disaggregation1B_Import-Export'!$C$8:$C$239,0))","v":0},2,"TCP-2(M): Taux de succès thérapeutique- toutes formes confondue: Pourcentage de cas de TB, toutes formes confondue, bactériologiquement confirmés et diagnostiqués cliniquement, traités avec succès (guéris et traitement terminé) parmi tous les cas de TB ayant commencé le traitement pendant une période déterminée, nouveaux cas et récidives","<15 ans","Age","TCP-2(M): Tasa de éxito del tratamiento- todas las formas: Porcentaje de casos de TB de todas las formas, bacteriológicamente confirmados y clínicamente diagnosticados que han sido tratados exitosamente (curados más tratamiento completado) entre todos los casos de TB registrados para tratamiento durante un período específico, casos nuevos y recaídas","TCP-2(M): Taux de succès thérapeutique- toutes formes confondue: Pourcentage de cas de TB, toutes formes confondue, bactériologiquement confirmés et diagnostiqués cliniquement, traités avec succès (guéris et traitement terminé) parmi tous les cas de TB ayant commencé le traitement pendant une période déterminée, nouveaux cas et récidives","<15","<15 ans","Edad","Age",null,null,"Burundi"]
["a15360000095pw6AAA",14,"Coverage14","TB care and prevention","TCP-2(M): Treatment success rate- all forms:  Percentage of TB cases, all forms, bacteriologically confirmed plus clinically diagnosed, successfully treated (cured plus treatment completed) among all TB cases registered for treatment during a specified period, new and relapse cases","15+","Age",0,0,"0.0",null,null,null,{"$f":"IFERROR(IF(INDEX(Disaggregation_1B!M$11:M$150,MATCH($C22,'Disaggregation1B_Import-Export'!$C$8:$C$239,0))=\"\",\"\",INDEX(Disaggregation_1B!M$11:M$150,MATCH($C22,'Disaggregation1B_Import-Export'!$C$8:$C$239,0))),\"\")","v":1312},{"$f":"IFERROR(IF(INDEX(Disaggregation_1B!N$11:N$150,MATCH($C22,'Disaggregation1B_Import-Export'!$C$8:$C$239,0))=\"\",\"\",INDEX(Disaggregation_1B!N$11:N$150,MATCH($C22,'Disaggregation1B_Import-Export'!$C$8:$C$239,0))),\"\")","v":1394},{"$f":"IFERROR(IF(INDEX(Disaggregation_1B!O$11:O$150,MATCH($C22,'Disaggregation1B_Import-Export'!$C$8:$C$239,0))=\"\",\"\",INDEX(Disaggregation_1B!O$11:O$150,MATCH($C22,'Disaggregation1B_Import-Export'!$C$8:$C$239,0))),\"\")","v":94.117647058823522},{"$f":"IFERROR(IF(INDEX(Disaggregation_1B!P$11:P$150,MATCH($C22,'Disaggregation1B_Import-Export'!$C$8:$C$239,0))=\"\",\"\",INDEX(Disaggregation_1B!P$11:P$150,MATCH($C22,'Disaggregation1B_Import-Export'!$C$8:$C$239,0))),\"\")","v":"TB patient register"},{"$f":"IFERROR(IF(INDEX(Disaggregation_1B!Q$11:Q$150,MATCH($C22,'Disaggregation1B_Import-Export'!$C$8:$C$239,0))=\"\",\"\",INDEX(Disaggregation_1B!Q$11:Q$150,MATCH($C22,'Disaggregation1B_Import-Export'!$C$8:$C$239,0))),\"\")","v":"Parmi les cas TTF , 1312 femmes ont  terminé le traitement ou sont déclarés guéris soit un taux de succès thérapeutique de 94,11%"},{"$f":"INDEX(Disaggregation_1B!R$11:R$150,MATCH($C22,'Disaggregation1B_Import-Export'!$C$8:$C$239,0))","v":0},{"$f":"IFERROR(IF(INDEX(Disaggregation_1B!S$11:S$150,MATCH($C22,'Disaggregation1B_Import-Export'!$C$8:$C$239,0))=\"\",\"\",INDEX(Disaggregation_1B!S$11:S$150,MATCH($C22,'Disaggregation1B_Import-Export'!$C$8:$C$239,0))),\"\")","v":""},{"$f":"IFERROR(IF(INDEX(Disaggregation_1B!T$11:T$150,MATCH($C22,'Disaggregation1B_Import-Export'!$C$8:$C$239,0))=\"\",\"\",INDEX(Disaggregation_1B!T$11:T$150,MATCH($C22,'Disaggregation1B_Import-Export'!$C$8:$C$239,0))),\"\")","v":""},{"$f":"IFERROR(IF(INDEX(Disaggregation_1B!U$11:U$150,MATCH($C22,'Disaggregation1B_Import-Export'!$C$8:$C$239,0))=\"\",\"\",INDEX(Disaggregation_1B!U$11:U$150,MATCH($C22,'Disaggregation1B_Import-Export'!$C$8:$C$239,0))),\"\")","v":""},{"$f":"IFERROR(IF(INDEX(Disaggregation_1B!V$11:V$150,MATCH($C22,'Disaggregation1B_Import-Export'!$C$8:$C$239,0))=\"\",\"\",INDEX(Disaggregation_1B!V$11:V$150,MATCH($C22,'Disaggregation1B_Import-Export'!$C$8:$C$239,0))),\"\")","v":""},{"$f":"IFERROR(IF(INDEX(Disaggregation_1B!W$11:W$150,MATCH($C22,'Disaggregation1B_Import-Export'!$C$8:$C$239,0))=\"\",\"\",INDEX(Disaggregation_1B!W$11:W$150,MATCH($C22,'Disaggregation1B_Import-Export'!$C$8:$C$239,0))),\"\")","v":""},{"$f":"INDEX(Disaggregation_1B!X$11:X$150,MATCH($C22,'Disaggregation1B_Import-Export'!$C$8:$C$239,0))","v":0},null,null,null,{"$f":"INDEX(Disaggregation_1B!AB$11:AB$150,MATCH($C22,'Disaggregation1B_Import-Export'!$C$8:$C$239,0))","v":0},{"$f":"INDEX(Disaggregation_1B!AC$11:AC$150,MATCH($C22,'Disaggregation1B_Import-Export'!$C$8:$C$239,0))","v":0},2,"TCP-2(M): Taux de succès thérapeutique- toutes formes confondue: Pourcentage de cas de TB, toutes formes confondue, bactériologiquement confirmés et diagnostiqués cliniquement, traités avec succès (guéris et traitement terminé) parmi tous les cas de TB ayant commencé le traitement pendant une période déterminée, nouveaux cas et récidives","+ de 15 ans","Age","TCP-2(M): Tasa de éxito del tratamiento- todas las formas: Porcentaje de casos de TB de todas las formas, bacteriológicamente confirmados y clínicamente diagnosticados que han sido tratados exitosamente (curados más tratamiento completado) entre todos los casos de TB registrados para tratamiento durante un período específico, casos nuevos y recaídas","TCP-2(M): Taux de succès thérapeutique- toutes formes confondue: Pourcentage de cas de TB, toutes formes confondue, bactériologiquement confirmés et diagnostiqués cliniquement, traités avec succès (guéris et traitement terminé) parmi tous les cas de TB ayant commencé le traitement pendant une période déterminée, nouveaux cas et récidives","15+","+ de 15 ans","Edad","Age",null,null,"Burundi"]
["a15360000095pw8AAA",15,"Coverage15","TB care and prevention","TCP-2(M): Treatment success rate- all forms:  Percentage of TB cases, all forms, bacteriologically confirmed plus clinically diagnosed, successfully treated (cured plus treatment completed) among all TB cases registered for treatment during a specified period, new and relapse cases","Female","Gender",4279,4654,"0.9","2016","PNILT 2016 Annual Report","The data presented are those of the 2015 cohort and only refer to men.  In principle, the denominator refers to men diagnosed and treated in 2015 (see 2016 PNILT Annual Report).",{"$f":"IFERROR(IF(INDEX(Disaggregation_1B!M$11:M$150,MATCH($C23,'Disaggregation1B_Import-Export'!$C$8:$C$239,0))=\"\",\"\",INDEX(Disaggregation_1B!M$11:M$150,MATCH($C23,'Disaggregation1B_Import-Export'!$C$8:$C$239,0))),\"\")","v":4},{"$f":"IFERROR(IF(INDEX(Disaggregation_1B!N$11:N$150,MATCH($C23,'Disaggregation1B_Import-Export'!$C$8:$C$239,0))=\"\",\"\",INDEX(Disaggregation_1B!N$11:N$150,MATCH($C23,'Disaggregation1B_Import-Export'!$C$8:$C$239,0))),\"\")","v":""},{"$f":"IFERROR(IF(INDEX(Disaggregation_1B!O$11:O$150,MATCH($C23,'Disaggregation1B_Import-Export'!$C$8:$C$239,0))=\"\",\"\",INDEX(Disaggregation_1B!O$11:O$150,MATCH($C23,'Disaggregation1B_Import-Export'!$C$8:$C$239,0))),\"\")","v":""},{"$f":"IFERROR(IF(INDEX(Disaggregation_1B!P$11:P$150,MATCH($C23,'Disaggregation1B_Import-Export'!$C$8:$C$239,0))=\"\",\"\",INDEX(Disaggregation_1B!P$11:P$150,MATCH($C23,'Disaggregation1B_Import-Export'!$C$8:$C$239,0))),\"\")","v":"TB patient register"},{"$f":"IFERROR(IF(INDEX(Disaggregation_1B!Q$11:Q$150,MATCH($C23,'Disaggregation1B_Import-Export'!$C$8:$C$239,0))=\"\",\"\",INDEX(Disaggregation_1B!Q$11:Q$150,MATCH($C23,'Disaggregation1B_Import-Export'!$C$8:$C$239,0))),\"\")","v":"Sur 20 cas de TB multiresistante, 20%  sont des femmes (N=4)"},{"$f":"INDEX(Disaggregation_1B!R$11:R$150,MATCH($C23,'Disaggregation1B_Import-Export'!$C$8:$C$239,0))","v":0},{"$f":"IFERROR(IF(INDEX(Disaggregation_1B!S$11:S$150,MATCH($C23,'Disaggregation1B_Import-Export'!$C$8:$C$239,0))=\"\",\"\",INDEX(Disaggregation_1B!S$11:S$150,MATCH($C23,'Disaggregation1B_Import-Export'!$C$8:$C$239,0))),\"\")","v":""},{"$f":"IFERROR(IF(INDEX(Disaggregation_1B!T$11:T$150,MATCH($C23,'Disaggregation1B_Import-Export'!$C$8:$C$239,0))=\"\",\"\",INDEX(Disaggregation_1B!T$11:T$150,MATCH($C23,'Disaggregation1B_Import-Export'!$C$8:$C$239,0))),\"\")","v":""},{"$f":"IFERROR(IF(INDEX(Disaggregation_1B!U$11:U$150,MATCH($C23,'Disaggregation1B_Import-Export'!$C$8:$C$239,0))=\"\",\"\",INDEX(Disaggregation_1B!U$11:U$150,MATCH($C23,'Disaggregation1B_Import-Export'!$C$8:$C$239,0))),\"\")","v":""},{"$f":"IFERROR(IF(INDEX(Disaggregation_1B!V$11:V$150,MATCH($C23,'Disaggregation1B_Import-Export'!$C$8:$C$239,0))=\"\",\"\",INDEX(Disaggregation_1B!V$11:V$150,MATCH($C23,'Disaggregation1B_Import-Export'!$C$8:$C$239,0))),\"\")","v":""},{"$f":"IFERROR(IF(INDEX(Disaggregation_1B!W$11:W$150,MATCH($C23,'Disaggregation1B_Import-Export'!$C$8:$C$239,0))=\"\",\"\",INDEX(Disaggregation_1B!W$11:W$150,MATCH($C23,'Disaggregation1B_Import-Export'!$C$8:$C$239,0))),\"\")","v":""},{"$f":"INDEX(Disaggregation_1B!X$11:X$150,MATCH($C23,'Disaggregation1B_Import-Export'!$C$8:$C$239,0))","v":0},null,null,null,{"$f":"INDEX(Disaggregation_1B!AB$11:AB$150,MATCH($C23,'Disaggregation1B_Import-Export'!$C$8:$C$239,0))","v":0},{"$f":"INDEX(Disaggregation_1B!AC$11:AC$150,MATCH($C23,'Disaggregation1B_Import-Export'!$C$8:$C$239,0))","v":0},2,"TCP-2(M): Taux de succès thérapeutique- toutes formes confondue: Pourcentage de cas de TB, toutes formes confondue, bactériologiquement confirmés et diagnostiqués cliniquement, traités avec succès (guéris et traitement terminé) parmi tous les cas de TB ayant commencé le traitement pendant une période déterminée, nouveaux cas et récidives","Femme","Sexe","TCP-2(M): Tasa de éxito del tratamiento- todas las formas: Porcentaje de casos de TB de todas las formas, bacteriológicamente confirmados y clínicamente diagnosticados que han sido tratados exitosamente (curados más tratamiento completado) entre todos los casos de TB registrados para tratamiento durante un período específico, casos nuevos y recaídas","TCP-2(M): Taux de succès thérapeutique- toutes formes confondue: Pourcentage de cas de TB, toutes formes confondue, bactériologiquement confirmés et diagnostiqués cliniquement, traités avec succès (guéris et traitement terminé) parmi tous les cas de TB ayant commencé le traitement pendant une période déterminée, nouveaux cas et récidives","Mujeres","Femme","Sexo","Sexe","Les données présentées sont celles  de la cohorte 2015 et ne concernent que les hommes . En principe, le dénominateur se rapporte aux hommes dépistés et traités en 2015 (cfr Rapport annuel 2016 du PNILT).","Rapport annuel 2016 du PNILT.","Burundi"]
["a15360000095pwxAAA",16,"Coverage16","MDR-TB","MDR TB-2(M): Number of TB cases with RR-TB and/or MDR-TB notified","Female","Gender",27,0,"0.0","2016","PNILT 2016 Annual Report",null,{"$f":"IFERROR(IF(INDEX(Disaggregation_1B!M$11:M$150,MATCH($C24,'Disaggregation1B_Import-Export'!$C$8:$C$239,0))=\"\",\"\",INDEX(Disaggregation_1B!M$11:M$150,MATCH($C24,'Disaggregation1B_Import-Export'!$C$8:$C$239,0))),\"\")","v":16},{"$f":"IFERROR(IF(INDEX(Disaggregation_1B!N$11:N$150,MATCH($C24,'Disaggregation1B_Import-Export'!$C$8:$C$239,0))=\"\",\"\",INDEX(Disaggregation_1B!N$11:N$150,MATCH($C24,'Disaggregation1B_Import-Export'!$C$8:$C$239,0))),\"\")","v":""},{"$f":"IFERROR(IF(INDEX(Disaggregation_1B!O$11:O$150,MATCH($C24,'Disaggregation1B_Import-Export'!$C$8:$C$239,0))=\"\",\"\",INDEX(Disaggregation_1B!O$11:O$150,MATCH($C24,'Disaggregation1B_Import-Export'!$C$8:$C$239,0))),\"\")","v":""},{"$f":"IFERROR(IF(INDEX(Disaggregation_1B!P$11:P$150,MATCH($C24,'Disaggregation1B_Import-Export'!$C$8:$C$239,0))=\"\",\"\",INDEX(Disaggregation_1B!P$11:P$150,MATCH($C24,'Disaggregation1B_Import-Export'!$C$8:$C$239,0))),\"\")","v":"TB patient register"},{"$f":"IFERROR(IF(INDEX(Disaggregation_1B!Q$11:Q$150,MATCH($C24,'Disaggregation1B_Import-Export'!$C$8:$C$239,0))=\"\",\"\",INDEX(Disaggregation_1B!Q$11:Q$150,MATCH($C24,'Disaggregation1B_Import-Export'!$C$8:$C$239,0))),\"\")","v":"Sur 20 cas de TB multiresistante, 80% sont des hommes (N=16). "},{"$f":"INDEX(Disaggregation_1B!R$11:R$150,MATCH($C24,'Disaggregation1B_Import-Export'!$C$8:$C$239,0))","v":0},{"$f":"IFERROR(IF(INDEX(Disaggregation_1B!S$11:S$150,MATCH($C24,'Disaggregation1B_Import-Export'!$C$8:$C$239,0))=\"\",\"\",INDEX(Disaggregation_1B!S$11:S$150,MATCH($C24,'Disaggregation1B_Import-Export'!$C$8:$C$239,0))),\"\")","v":""},{"$f":"IFERROR(IF(INDEX(Disaggregation_1B!T$11:T$150,MATCH($C24,'Disaggregation1B_Import-Export'!$C$8:$C$239,0))=\"\",\"\",INDEX(Disaggregation_1B!T$11:T$150,MATCH($C24,'Disaggregation1B_Import-Export'!$C$8:$C$239,0))),\"\")","v":""},{"$f":"IFERROR(IF(INDEX(Disaggregation_1B!U$11:U$150,MATCH($C24,'Disaggregation1B_Import-Export'!$C$8:$C$239,0))=\"\",\"\",INDEX(Disaggregation_1B!U$11:U$150,MATCH($C24,'Disaggregation1B_Import-Export'!$C$8:$C$239,0))),\"\")","v":""},{"$f":"IFERROR(IF(INDEX(Disaggregation_1B!V$11:V$150,MATCH($C24,'Disaggregation1B_Import-Export'!$C$8:$C$239,0))=\"\",\"\",INDEX(Disaggregation_1B!V$11:V$150,MATCH($C24,'Disaggregation1B_Import-Export'!$C$8:$C$239,0))),\"\")","v":""},{"$f":"IFERROR(IF(INDEX(Disaggregation_1B!W$11:W$150,MATCH($C24,'Disaggregation1B_Import-Export'!$C$8:$C$239,0))=\"\",\"\",INDEX(Disaggregation_1B!W$11:W$150,MATCH($C24,'Disaggregation1B_Import-Export'!$C$8:$C$239,0))),\"\")","v":""},{"$f":"INDEX(Disaggregation_1B!X$11:X$150,MATCH($C24,'Disaggregation1B_Import-Export'!$C$8:$C$239,0))","v":0},null,null,null,{"$f":"INDEX(Disaggregation_1B!AB$11:AB$150,MATCH($C24,'Disaggregation1B_Import-Export'!$C$8:$C$239,0))","v":0},{"$f":"INDEX(Disaggregation_1B!AC$11:AC$150,MATCH($C24,'Disaggregation1B_Import-Export'!$C$8:$C$239,0))","v":0},9,"MDR TB-2(M): Nombre de cas de tuberculose, résistante à la rifampicine et/ou tuberculose multirésistante confirmés","Femme","Sexe","MDR TB-2(M): Número de casos TB-RR y/o TB-MDR notificados","MDR TB-2(M): Nombre de cas de tuberculose, résistante à la rifampicine et/ou tuberculose multirésistante confirmés","Mujeres","Femme","Sexo","Sexe",null,"Rapport annuel 2016 du PNILT.","Burundi"]
["a15360000095pwyAAA",17,"Coverage17","MDR-TB","MDR TB-2(M): Number of TB cases with RR-TB and/or MDR-TB notified","Male","Gender",53,0,"0.0","2016","PNILT 2016 Annual Report",null,{"$f":"IFERROR(IF(INDEX(Disaggregation_1B!M$11:M$150,MATCH($C25,'Disaggregation1B_Import-Export'!$C$8:$C$239,0))=\"\",\"\",INDEX(Disaggregation_1B!M$11:M$150,MATCH($C25,'Disaggregation1B_Import-Export'!$C$8:$C$239,0))),\"\")","v":0},{"$f":"IFERROR(IF(INDEX(Disaggregation_1B!N$11:N$150,MATCH($C25,'Disaggregation1B_Import-Export'!$C$8:$C$239,0))=\"\",\"\",INDEX(Disaggregation_1B!N$11:N$150,MATCH($C25,'Disaggregation1B_Import-Export'!$C$8:$C$239,0))),\"\")","v":""},{"$f":"IFERROR(IF(INDEX(Disaggregation_1B!O$11:O$150,MATCH($C25,'Disaggregation1B_Import-Export'!$C$8:$C$239,0))=\"\",\"\",INDEX(Disaggregation_1B!O$11:O$150,MATCH($C25,'Disaggregation1B_Import-Export'!$C$8:$C$239,0))),\"\")","v":""},{"$f":"IFERROR(IF(INDEX(Disaggregation_1B!P$11:P$150,MATCH($C25,'Disaggregation1B_Import-Export'!$C$8:$C$239,0))=\"\",\"\",INDEX(Disaggregation_1B!P$11:P$150,MATCH($C25,'Disaggregation1B_Import-Export'!$C$8:$C$239,0))),\"\")","v":"TB patient register"},{"$f":"IFERROR(IF(INDEX(Disaggregation_1B!Q$11:Q$150,MATCH($C25,'Disaggregation1B_Import-Export'!$C$8:$C$239,0))=\"\",\"\",INDEX(Disaggregation_1B!Q$11:Q$150,MATCH($C25,'Disaggregation1B_Import-Export'!$C$8:$C$239,0))),\"\")","v":"Toutes les personnes dépistées pour la  TB/MR  au cours du premier semestre 2018 avaient  un âge > à 15 ans. "},{"$f":"INDEX(Disaggregation_1B!R$11:R$150,MATCH($C25,'Disaggregation1B_Import-Export'!$C$8:$C$239,0))","v":0},{"$f":"IFERROR(IF(INDEX(Disaggregation_1B!S$11:S$150,MATCH($C25,'Disaggregation1B_Import-Export'!$C$8:$C$239,0))=\"\",\"\",INDEX(Disaggregation_1B!S$11:S$150,MATCH($C25,'Disaggregation1B_Import-Export'!$C$8:$C$239,0))),\"\")","v":""},{"$f":"IFERROR(IF(INDEX(Disaggregation_1B!T$11:T$150,MATCH($C25,'Disaggregation1B_Import-Export'!$C$8:$C$239,0))=\"\",\"\",INDEX(Disaggregation_1B!T$11:T$150,MATCH($C25,'Disaggregation1B_Import-Export'!$C$8:$C$239,0))),\"\")","v":""},{"$f":"IFERROR(IF(INDEX(Disaggregation_1B!U$11:U$150,MATCH($C25,'Disaggregation1B_Import-Export'!$C$8:$C$239,0))=\"\",\"\",INDEX(Disaggregation_1B!U$11:U$150,MATCH($C25,'Disaggregation1B_Import-Export'!$C$8:$C$239,0))),\"\")","v":""},{"$f":"IFERROR(IF(INDEX(Disaggregation_1B!V$11:V$150,MATCH($C25,'Disaggregation1B_Import-Export'!$C$8:$C$239,0))=\"\",\"\",INDEX(Disaggregation_1B!V$11:V$150,MATCH($C25,'Disaggregation1B_Import-Export'!$C$8:$C$239,0))),\"\")","v":""},{"$f":"IFERROR(IF(INDEX(Disaggregation_1B!W$11:W$150,MATCH($C25,'Disaggregation1B_Import-Export'!$C$8:$C$239,0))=\"\",\"\",INDEX(Disaggregation_1B!W$11:W$150,MATCH($C25,'Disaggregation1B_Import-Export'!$C$8:$C$239,0))),\"\")","v":""},{"$f":"INDEX(Disaggregation_1B!X$11:X$150,MATCH($C25,'Disaggregation1B_Import-Export'!$C$8:$C$239,0))","v":0},null,null,null,{"$f":"INDEX(Disaggregation_1B!AB$11:AB$150,MATCH($C25,'Disaggregation1B_Import-Export'!$C$8:$C$239,0))","v":0},{"$f":"INDEX(Disaggregation_1B!AC$11:AC$150,MATCH($C25,'Disaggregation1B_Import-Export'!$C$8:$C$239,0))","v":0},9,"MDR TB-2(M): Nombre de cas de tuberculose, résistante à la rifampicine et/ou tuberculose multirésistante confirmés","Homme","Sexe","MDR TB-2(M): Número de casos TB-RR y/o TB-MDR notificados","MDR TB-2(M): Nombre de cas de tuberculose, résistante à la rifampicine et/ou tuberculose multirésistante confirmés","Hombres","Homme","Sexo","Sexe",null,"Rapport annuel 2016 du PNILT.","Burundi"]
["a15360000095pwzAAA",18,"Coverage18","MDR-TB","MDR TB-2(M): Number of TB cases with RR-TB and/or MDR-TB notified","U15","Age",2,0,"0.0","2016","PNILT 2016 Annual Report",null,{"$f":"IFERROR(IF(INDEX(Disaggregation_1B!M$11:M$150,MATCH($C26,'Disaggregation1B_Import-Export'!$C$8:$C$239,0))=\"\",\"\",INDEX(Disaggregation_1B!M$11:M$150,MATCH($C26,'Disaggregation1B_Import-Export'!$C$8:$C$239,0))),\"\")","v":20},{"$f":"IFERROR(IF(INDEX(Disaggregation_1B!N$11:N$150,MATCH($C26,'Disaggregation1B_Import-Export'!$C$8:$C$239,0))=\"\",\"\",INDEX(Disaggregation_1B!N$11:N$150,MATCH($C26,'Disaggregation1B_Import-Export'!$C$8:$C$239,0))),\"\")","v":""},{"$f":"IFERROR(IF(INDEX(Disaggregation_1B!O$11:O$150,MATCH($C26,'Disaggregation1B_Import-Export'!$C$8:$C$239,0))=\"\",\"\",INDEX(Disaggregation_1B!O$11:O$150,MATCH($C26,'Disaggregation1B_Import-Export'!$C$8:$C$239,0))),\"\")","v":""},{"$f":"IFERROR(IF(INDEX(Disaggregation_1B!P$11:P$150,MATCH($C26,'Disaggregation1B_Import-Export'!$C$8:$C$239,0))=\"\",\"\",INDEX(Disaggregation_1B!P$11:P$150,MATCH($C26,'Disaggregation1B_Import-Export'!$C$8:$C$239,0))),\"\")","v":"TB patient register"},{"$f":"IFERROR(IF(INDEX(Disaggregation_1B!Q$11:Q$150,MATCH($C26,'Disaggregation1B_Import-Export'!$C$8:$C$239,0))=\"\",\"\",INDEX(Disaggregation_1B!Q$11:Q$150,MATCH($C26,'Disaggregation1B_Import-Export'!$C$8:$C$239,0))),\"\")","v":"100% des cas  qui ont été diagnostiqués correspondent à cette tranche"},{"$f":"INDEX(Disaggregation_1B!R$11:R$150,MATCH($C26,'Disaggregation1B_Import-Export'!$C$8:$C$239,0))","v":0},{"$f":"IFERROR(IF(INDEX(Disaggregation_1B!S$11:S$150,MATCH($C26,'Disaggregation1B_Import-Export'!$C$8:$C$239,0))=\"\",\"\",INDEX(Disaggregation_1B!S$11:S$150,MATCH($C26,'Disaggregation1B_Import-Export'!$C$8:$C$239,0))),\"\")","v":""},{"$f":"IFERROR(IF(INDEX(Disaggregation_1B!T$11:T$150,MATCH($C26,'Disaggregation1B_Import-Export'!$C$8:$C$239,0))=\"\",\"\",INDEX(Disaggregation_1B!T$11:T$150,MATCH($C26,'Disaggregation1B_Import-Export'!$C$8:$C$239,0))),\"\")","v":""},{"$f":"IFERROR(IF(INDEX(Disaggregation_1B!U$11:U$150,MATCH($C26,'Disaggregation1B_Import-Export'!$C$8:$C$239,0))=\"\",\"\",INDEX(Disaggregation_1B!U$11:U$150,MATCH($C26,'Disaggregation1B_Import-Export'!$C$8:$C$239,0))),\"\")","v":""},{"$f":"IFERROR(IF(INDEX(Disaggregation_1B!V$11:V$150,MATCH($C26,'Disaggregation1B_Import-Export'!$C$8:$C$239,0))=\"\",\"\",INDEX(Disaggregation_1B!V$11:V$150,MATCH($C26,'Disaggregation1B_Import-Export'!$C$8:$C$239,0))),\"\")","v":""},{"$f":"IFERROR(IF(INDEX(Disaggregation_1B!W$11:W$150,MATCH($C26,'Disaggregation1B_Import-Export'!$C$8:$C$239,0))=\"\",\"\",INDEX(Disaggregation_1B!W$11:W$150,MATCH($C26,'Disaggregation1B_Import-Export'!$C$8:$C$239,0))),\"\")","v":""},{"$f":"INDEX(Disaggregation_1B!X$11:X$150,MATCH($C26,'Disaggregation1B_Import-Export'!$C$8:$C$239,0))","v":0},null,null,null,{"$f":"INDEX(Disaggregation_1B!AB$11:AB$150,MATCH($C26,'Disaggregation1B_Import-Export'!$C$8:$C$239,0))","v":0},{"$f":"INDEX(Disaggregation_1B!AC$11:AC$150,MATCH($C26,'Disaggregation1B_Import-Export'!$C$8:$C$239,0))","v":0},9,"MDR TB-2(M): Nombre de cas de tuberculose, résistante à la rifampicine et/ou tuberculose multirésistante confirmés","<15 ans","Age","MDR TB-2(M): Número de casos TB-RR y/o TB-MDR notificados","MDR TB-2(M): Nombre de cas de tuberculose, résistante à la rifampicine et/ou tuberculose multirésistante confirmés","<15","<15 ans","Edad","Age",null,"Rapport annuel 2016 du PNILT.","Burundi"]
["a15360000095px0AAA",19,"Coverage19","MDR-TB","MDR TB-2(M): Number of TB cases with RR-TB and/or MDR-TB notified","15+","Age",78,0,"0.0","2016","PNILT 2016 Annual Report",null,{"$f":"IFERROR(IF(INDEX(Disaggregation_1B!M$11:M$150,MATCH($C27,'Disaggregation1B_Import-Export'!$C$8:$C$239,0))=\"\",\"\",INDEX(Disaggregation_1B!M$11:M$150,MATCH($C27,'Disaggregation1B_Import-Export'!$C$8:$C$239,0))),\"\")","v":0},{"$f":"IFERROR(IF(INDEX(Disaggregation_1B!N$11:N$150,MATCH($C27,'Disaggregation1B_Import-Export'!$C$8:$C$239,0))=\"\",\"\",INDEX(Disaggregation_1B!N$11:N$150,MATCH($C27,'Disaggregation1B_Import-Export'!$C$8:$C$239,0))),\"\")","v":""},{"$f":"IFERROR(IF(INDEX(Disaggregation_1B!O$11:O$150,MATCH($C27,'Disaggregation1B_Import-Export'!$C$8:$C$239,0))=\"\",\"\",INDEX(Disaggregation_1B!O$11:O$150,MATCH($C27,'Disaggregation1B_Import-Export'!$C$8:$C$239,0))),\"\")","v":""},{"$f":"IFERROR(IF(INDEX(Disaggregation_1B!P$11:P$150,MATCH($C27,'Disaggregation1B_Import-Export'!$C$8:$C$239,0))=\"\",\"\",INDEX(Disaggregation_1B!P$11:P$150,MATCH($C27,'Disaggregation1B_Import-Export'!$C$8:$C$239,0))),\"\")","v":"TB patient register"},{"$f":"IFERROR(IF(INDEX(Disaggregation_1B!Q$11:Q$150,MATCH($C27,'Disaggregation1B_Import-Export'!$C$8:$C$239,0))=\"\",\"\",INDEX(Disaggregation_1B!Q$11:Q$150,MATCH($C27,'Disaggregation1B_Import-Export'!$C$8:$C$239,0))),\"\")","v":""},{"$f":"INDEX(Disaggregation_1B!R$11:R$150,MATCH($C27,'Disaggregation1B_Import-Export'!$C$8:$C$239,0))","v":0},{"$f":"IFERROR(IF(INDEX(Disaggregation_1B!S$11:S$150,MATCH($C27,'Disaggregation1B_Import-Export'!$C$8:$C$239,0))=\"\",\"\",INDEX(Disaggregation_1B!S$11:S$150,MATCH($C27,'Disaggregation1B_Import-Export'!$C$8:$C$239,0))),\"\")","v":""},{"$f":"IFERROR(IF(INDEX(Disaggregation_1B!T$11:T$150,MATCH($C27,'Disaggregation1B_Import-Export'!$C$8:$C$239,0))=\"\",\"\",INDEX(Disaggregation_1B!T$11:T$150,MATCH($C27,'Disaggregation1B_Import-Export'!$C$8:$C$239,0))),\"\")","v":""},{"$f":"IFERROR(IF(INDEX(Disaggregation_1B!U$11:U$150,MATCH($C27,'Disaggregation1B_Import-Export'!$C$8:$C$239,0))=\"\",\"\",INDEX(Disaggregation_1B!U$11:U$150,MATCH($C27,'Disaggregation1B_Import-Export'!$C$8:$C$239,0))),\"\")","v":""},{"$f":"IFERROR(IF(INDEX(Disaggregation_1B!V$11:V$150,MATCH($C27,'Disaggregation1B_Import-Export'!$C$8:$C$239,0))=\"\",\"\",INDEX(Disaggregation_1B!V$11:V$150,MATCH($C27,'Disaggregation1B_Import-Export'!$C$8:$C$239,0))),\"\")","v":""},{"$f":"IFERROR(IF(INDEX(Disaggregation_1B!W$11:W$150,MATCH($C27,'Disaggregation1B_Import-Export'!$C$8:$C$239,0))=\"\",\"\",INDEX(Disaggregation_1B!W$11:W$150,MATCH($C27,'Disaggregation1B_Import-Export'!$C$8:$C$239,0))),\"\")","v":""},{"$f":"INDEX(Disaggregation_1B!X$11:X$150,MATCH($C27,'Disaggregation1B_Import-Export'!$C$8:$C$239,0))","v":0},null,null,null,{"$f":"INDEX(Disaggregation_1B!AB$11:AB$150,MATCH($C27,'Disaggregation1B_Import-Export'!$C$8:$C$239,0))","v":0},{"$f":"INDEX(Disaggregation_1B!AC$11:AC$150,MATCH($C27,'Disaggregation1B_Import-Export'!$C$8:$C$239,0))","v":0},9,"MDR TB-2(M): Nombre de cas de tuberculose, résistante à la rifampicine et/ou tuberculose multirésistante confirmés","+ de 15 ans","Age","MDR TB-2(M): Número de casos TB-RR y/o TB-MDR notificados","MDR TB-2(M): Nombre de cas de tuberculose, résistante à la rifampicine et/ou tuberculose multirésistante confirmés","15+","+ de 15 ans","Edad","Age",null,"Rapport annuel 2016 du PNILT.","Burundi"]
["a15360000095pxLAAQ",20,"Coverage20","MDR-TB","MDR TB-3(M): Number of cases with RR-TB and/or MDR-TB that began second-line treatment","U15","Age",2,0,"0.0","2016",null,null,{"$f":"IFERROR(IF(INDEX(Disaggregation_1B!M$11:M$150,MATCH($C28,'Disaggregation1B_Import-Export'!$C$8:$C$239,0))=\"\",\"\",INDEX(Disaggregation_1B!M$11:M$150,MATCH($C28,'Disaggregation1B_Import-Export'!$C$8:$C$239,0))),\"\")","v":4},{"$f":"IFERROR(IF(INDEX(Disaggregation_1B!N$11:N$150,MATCH($C28,'Disaggregation1B_Import-Export'!$C$8:$C$239,0))=\"\",\"\",INDEX(Disaggregation_1B!N$11:N$150,MATCH($C28,'Disaggregation1B_Import-Export'!$C$8:$C$239,0))),\"\")","v":""},{"$f":"IFERROR(IF(INDEX(Disaggregation_1B!O$11:O$150,MATCH($C28,'Disaggregation1B_Import-Export'!$C$8:$C$239,0))=\"\",\"\",INDEX(Disaggregation_1B!O$11:O$150,MATCH($C28,'Disaggregation1B_Import-Export'!$C$8:$C$239,0))),\"\")","v":""},{"$f":"IFERROR(IF(INDEX(Disaggregation_1B!P$11:P$150,MATCH($C28,'Disaggregation1B_Import-Export'!$C$8:$C$239,0))=\"\",\"\",INDEX(Disaggregation_1B!P$11:P$150,MATCH($C28,'Disaggregation1B_Import-Export'!$C$8:$C$239,0))),\"\")","v":"TB patient register"},{"$f":"IFERROR(IF(INDEX(Disaggregation_1B!Q$11:Q$150,MATCH($C28,'Disaggregation1B_Import-Export'!$C$8:$C$239,0))=\"\",\"\",INDEX(Disaggregation_1B!Q$11:Q$150,MATCH($C28,'Disaggregation1B_Import-Export'!$C$8:$C$239,0))),\"\")","v":"Les 4 femmes ayant une TB MDR avaient toutes commencé le traitement"},{"$f":"INDEX(Disaggregation_1B!R$11:R$150,MATCH($C28,'Disaggregation1B_Import-Export'!$C$8:$C$239,0))","v":0},{"$f":"IFERROR(IF(INDEX(Disaggregation_1B!S$11:S$150,MATCH($C28,'Disaggregation1B_Import-Export'!$C$8:$C$239,0))=\"\",\"\",INDEX(Disaggregation_1B!S$11:S$150,MATCH($C28,'Disaggregation1B_Import-Export'!$C$8:$C$239,0))),\"\")","v":""},{"$f":"IFERROR(IF(INDEX(Disaggregation_1B!T$11:T$150,MATCH($C28,'Disaggregation1B_Import-Export'!$C$8:$C$239,0))=\"\",\"\",INDEX(Disaggregation_1B!T$11:T$150,MATCH($C28,'Disaggregation1B_Import-Export'!$C$8:$C$239,0))),\"\")","v":""},{"$f":"IFERROR(IF(INDEX(Disaggregation_1B!U$11:U$150,MATCH($C28,'Disaggregation1B_Import-Export'!$C$8:$C$239,0))=\"\",\"\",INDEX(Disaggregation_1B!U$11:U$150,MATCH($C28,'Disaggregation1B_Import-Export'!$C$8:$C$239,0))),\"\")","v":""},{"$f":"IFERROR(IF(INDEX(Disaggregation_1B!V$11:V$150,MATCH($C28,'Disaggregation1B_Import-Export'!$C$8:$C$239,0))=\"\",\"\",INDEX(Disaggregation_1B!V$11:V$150,MATCH($C28,'Disaggregation1B_Import-Export'!$C$8:$C$239,0))),\"\")","v":""},{"$f":"IFERROR(IF(INDEX(Disaggregation_1B!W$11:W$150,MATCH($C28,'Disaggregation1B_Import-Export'!$C$8:$C$239,0))=\"\",\"\",INDEX(Disaggregation_1B!W$11:W$150,MATCH($C28,'Disaggregation1B_Import-Export'!$C$8:$C$239,0))),\"\")","v":""},{"$f":"INDEX(Disaggregation_1B!X$11:X$150,MATCH($C28,'Disaggregation1B_Import-Export'!$C$8:$C$239,0))","v":0},null,null,null,{"$f":"INDEX(Disaggregation_1B!AB$11:AB$150,MATCH($C28,'Disaggregation1B_Import-Export'!$C$8:$C$239,0))","v":0},{"$f":"INDEX(Disaggregation_1B!AC$11:AC$150,MATCH($C28,'Disaggregation1B_Import-Export'!$C$8:$C$239,0))","v":0},10,"MDR TB-3(M): Nombre de cas de tuberculose résistante à la rifampicine et/ou tuberculose multirésistante qui ont commencé un traitement de deuxième intention","<15 ans","Age","MDR TB-3(M): Número de casos TB-RR y/o TB-MDR que iniciaron tratamiento con drogas de segunda línea","MDR TB-3(M): Nombre de cas de tuberculose résistante à la rifampicine et/ou tuberculose multirésistante qui ont commencé un traitement de deuxième intention","<15","<15 ans","Edad","Age",null,"Rapport annuel 2016 du PNILT.","Burundi"]
["a15360000095pxMAAQ",21,"Coverage21","MDR-TB","MDR TB-3(M): Number of cases with RR-TB and/or MDR-TB that began second-line treatment","Female","Gender",27,0,"0.0","2016",null,null,{"$f":"IFERROR(IF(INDEX(Disaggregation_1B!M$11:M$150,MATCH($C29,'Disaggregation1B_Import-Export'!$C$8:$C$239,0))=\"\",\"\",INDEX(Disaggregation_1B!M$11:M$150,MATCH($C29,'Disaggregation1B_Import-Export'!$C$8:$C$239,0))),\"\")","v":16},{"$f":"IFERROR(IF(INDEX(Disaggregation_1B!N$11:N$150,MATCH($C29,'Disaggregation1B_Import-Export'!$C$8:$C$239,0))=\"\",\"\",INDEX(Disaggregation_1B!N$11:N$150,MATCH($C29,'Disaggregation1B_Import-Export'!$C$8:$C$239,0))),\"\")","v":""},{"$f":"IFERROR(IF(INDEX(Disaggregation_1B!O$11:O$150,MATCH($C29,'Disaggregation1B_Import-Export'!$C$8:$C$239,0))=\"\",\"\",INDEX(Disaggregation_1B!O$11:O$150,MATCH($C29,'Disaggregation1B_Import-Export'!$C$8:$C$239,0))),\"\")","v":""},{"$f":"IFERROR(IF(INDEX(Disaggregation_1B!P$11:P$150,MATCH($C29,'Disaggregation1B_Import-Export'!$C$8:$C$239,0))=\"\",\"\",INDEX(Disaggregation_1B!P$11:P$150,MATCH($C29,'Disaggregation1B_Import-Export'!$C$8:$C$239,0))),\"\")","v":"TB patient register"},{"$f":"IFERROR(IF(INDEX(Disaggregation_1B!Q$11:Q$150,MATCH($C29,'Disaggregation1B_Import-Export'!$C$8:$C$239,0))=\"\",\"\",INDEX(Disaggregation_1B!Q$11:Q$150,MATCH($C29,'Disaggregation1B_Import-Export'!$C$8:$C$239,0))),\"\")","v":"Les 16 hommes ayant une TB MR avaient tous commencé le traitement"},{"$f":"INDEX(Disaggregation_1B!R$11:R$150,MATCH($C29,'Disaggregation1B_Import-Export'!$C$8:$C$239,0))","v":0},{"$f":"IFERROR(IF(INDEX(Disaggregation_1B!S$11:S$150,MATCH($C29,'Disaggregation1B_Import-Export'!$C$8:$C$239,0))=\"\",\"\",INDEX(Disaggregation_1B!S$11:S$150,MATCH($C29,'Disaggregation1B_Import-Export'!$C$8:$C$239,0))),\"\")","v":""},{"$f":"IFERROR(IF(INDEX(Disaggregation_1B!T$11:T$150,MATCH($C29,'Disaggregation1B_Import-Export'!$C$8:$C$239,0))=\"\",\"\",INDEX(Disaggregation_1B!T$11:T$150,MATCH($C29,'Disaggregation1B_Import-Export'!$C$8:$C$239,0))),\"\")","v":""},{"$f":"IFERROR(IF(INDEX(Disaggregation_1B!U$11:U$150,MATCH($C29,'Disaggregation1B_Import-Export'!$C$8:$C$239,0))=\"\",\"\",INDEX(Disaggregation_1B!U$11:U$150,MATCH($C29,'Disaggregation1B_Import-Export'!$C$8:$C$239,0))),\"\")","v":""},{"$f":"IFERROR(IF(INDEX(Disaggregation_1B!V$11:V$150,MATCH($C29,'Disaggregation1B_Import-Export'!$C$8:$C$239,0))=\"\",\"\",INDEX(Disaggregation_1B!V$11:V$150,MATCH($C29,'Disaggregation1B_Import-Export'!$C$8:$C$239,0))),\"\")","v":""},{"$f":"IFERROR(IF(INDEX(Disaggregation_1B!W$11:W$150,MATCH($C29,'Disaggregation1B_Import-Export'!$C$8:$C$239,0))=\"\",\"\",INDEX(Disaggregation_1B!W$11:W$150,MATCH($C29,'Disaggregation1B_Import-Export'!$C$8:$C$239,0))),\"\")","v":""},{"$f":"INDEX(Disaggregation_1B!X$11:X$150,MATCH($C29,'Disaggregation1B_Import-Export'!$C$8:$C$239,0))","v":0},null,null,null,{"$f":"INDEX(Disaggregation_1B!AB$11:AB$150,MATCH($C29,'Disaggregation1B_Import-Export'!$C$8:$C$239,0))","v":0},{"$f":"INDEX(Disaggregation_1B!AC$11:AC$150,MATCH($C29,'Disaggregation1B_Import-Export'!$C$8:$C$239,0))","v":0},10,"MDR TB-3(M): Nombre de cas de tuberculose résistante à la rifampicine et/ou tuberculose multirésistante qui ont commencé un traitement de deuxième intention","Femme","Sexe","MDR TB-3(M): Número de casos TB-RR y/o TB-MDR que iniciaron tratamiento con drogas de segunda línea","MDR TB-3(M): Nombre de cas de tuberculose résistante à la rifampicine et/ou tuberculose multirésistante qui ont commencé un traitement de deuxième intention","Mujeres","Femme","Sexo","Sexe",null,"Rapport annuel 2016 du PNILT.","Burundi"]
["a15360000095pxNAAQ",22,"Coverage22","MDR-TB","MDR TB-3(M): Number of cases with RR-TB and/or MDR-TB that began second-line treatment","Male","Gender",53,0,"0.0","2016",null,null,{"$f":"IFERROR(IF(INDEX(Disaggregation_1B!M$11:M$150,MATCH($C30,'Disaggregation1B_Import-Export'!$C$8:$C$239,0))=\"\",\"\",INDEX(Disaggregation_1B!M$11:M$150,MATCH($C30,'Disaggregation1B_Import-Export'!$C$8:$C$239,0))),\"\")","v":20},{"$f":"IFERROR(IF(INDEX(Disaggregation_1B!N$11:N$150,MATCH($C30,'Disaggregation1B_Import-Export'!$C$8:$C$239,0))=\"\",\"\",INDEX(Disaggregation_1B!N$11:N$150,MATCH($C30,'Disaggregation1B_Import-Export'!$C$8:$C$239,0))),\"\")","v":""},{"$f":"IFERROR(IF(INDEX(Disaggregation_1B!O$11:O$150,MATCH($C30,'Disaggregation1B_Import-Export'!$C$8:$C$239,0))=\"\",\"\",INDEX(Disaggregation_1B!O$11:O$150,MATCH($C30,'Disaggregation1B_Import-Export'!$C$8:$C$239,0))),\"\")","v":""},{"$f":"IFERROR(IF(INDEX(Disaggregation_1B!P$11:P$150,MATCH($C30,'Disaggregation1B_Import-Export'!$C$8:$C$239,0))=\"\",\"\",INDEX(Disaggregation_1B!P$11:P$150,MATCH($C30,'Disaggregation1B_Import-Export'!$C$8:$C$239,0))),\"\")","v":"TB patient register"},{"$f":"IFERROR(IF(INDEX(Disaggregation_1B!Q$11:Q$150,MATCH($C30,'Disaggregation1B_Import-Export'!$C$8:$C$239,0))=\"\",\"\",INDEX(Disaggregation_1B!Q$11:Q$150,MATCH($C30,'Disaggregation1B_Import-Export'!$C$8:$C$239,0))),\"\")","v":"100% de 20 cas correspondent à cette tranche d'âge"},{"$f":"INDEX(Disaggregation_1B!R$11:R$150,MATCH($C30,'Disaggregation1B_Import-Export'!$C$8:$C$239,0))","v":0},{"$f":"IFERROR(IF(INDEX(Disaggregation_1B!S$11:S$150,MATCH($C30,'Disaggregation1B_Import-Export'!$C$8:$C$239,0))=\"\",\"\",INDEX(Disaggregation_1B!S$11:S$150,MATCH($C30,'Disaggregation1B_Import-Export'!$C$8:$C$239,0))),\"\")","v":""},{"$f":"IFERROR(IF(INDEX(Disaggregation_1B!T$11:T$150,MATCH($C30,'Disaggregation1B_Import-Export'!$C$8:$C$239,0))=\"\",\"\",INDEX(Disaggregation_1B!T$11:T$150,MATCH($C30,'Disaggregation1B_Import-Export'!$C$8:$C$239,0))),\"\")","v":""},{"$f":"IFERROR(IF(INDEX(Disaggregation_1B!U$11:U$150,MATCH($C30,'Disaggregation1B_Import-Export'!$C$8:$C$239,0))=\"\",\"\",INDEX(Disaggregation_1B!U$11:U$150,MATCH($C30,'Disaggregation1B_Import-Export'!$C$8:$C$239,0))),\"\")","v":""},{"$f":"IFERROR(IF(INDEX(Disaggregation_1B!V$11:V$150,MATCH($C30,'Disaggregation1B_Import-Export'!$C$8:$C$239,0))=\"\",\"\",INDEX(Disaggregation_1B!V$11:V$150,MATCH($C30,'Disaggregation1B_Import-Export'!$C$8:$C$239,0))),\"\")","v":""},{"$f":"IFERROR(IF(INDEX(Disaggregation_1B!W$11:W$150,MATCH($C30,'Disaggregation1B_Import-Export'!$C$8:$C$239,0))=\"\",\"\",INDEX(Disaggregation_1B!W$11:W$150,MATCH($C30,'Disaggregation1B_Import-Export'!$C$8:$C$239,0))),\"\")","v":""},{"$f":"INDEX(Disaggregation_1B!X$11:X$150,MATCH($C30,'Disaggregation1B_Import-Export'!$C$8:$C$239,0))","v":0},null,null,null,{"$f":"INDEX(Disaggregation_1B!AB$11:AB$150,MATCH($C30,'Disaggregation1B_Import-Export'!$C$8:$C$239,0))","v":0},{"$f":"INDEX(Disaggregation_1B!AC$11:AC$150,MATCH($C30,'Disaggregation1B_Import-Export'!$C$8:$C$239,0))","v":0},10,"MDR TB-3(M): Nombre de cas de tuberculose résistante à la rifampicine et/ou tuberculose multirésistante qui ont commencé un traitement de deuxième intention","Homme","Sexe","MDR TB-3(M): Número de casos TB-RR y/o TB-MDR que iniciaron tratamiento con drogas de segunda línea","MDR TB-3(M): Nombre de cas de tuberculose résistante à la rifampicine et/ou tuberculose multirésistante qui ont commencé un traitement de deuxième intention","Hombres","Homme","Sexo","Sexe",null,"Rapport annuel 2016 du PNILT.","Burundi"]
["a15360000095pxOAAQ",23,"Coverage23","MDR-TB","MDR TB-3(M): Number of cases with RR-TB and/or MDR-TB that began second-line treatment","15+","Age",78,0,"0.0","2016",null,null,{"$f":"IFERROR(IF(INDEX(Disaggregation_1B!M$11:M$150,MATCH($C31,'Disaggregation1B_Import-Export'!$C$8:$C$239,0))=\"\",\"\",INDEX(Disaggregation_1B!M$11:M$150,MATCH($C31,'Disaggregation1B_Import-Export'!$C$8:$C$239,0))),\"\")","v":20},{"$f":"IFERROR(IF(INDEX(Disaggregation_1B!N$11:N$150,MATCH($C31,'Disaggregation1B_Import-Export'!$C$8:$C$239,0))=\"\",\"\",INDEX(Disaggregation_1B!N$11:N$150,MATCH($C31,'Disaggregation1B_Import-Export'!$C$8:$C$239,0))),\"\")","v":""},{"$f":"IFERROR(IF(INDEX(Disaggregation_1B!O$11:O$150,MATCH($C31,'Disaggregation1B_Import-Export'!$C$8:$C$239,0))=\"\",\"\",INDEX(Disaggregation_1B!O$11:O$150,MATCH($C31,'Disaggregation1B_Import-Export'!$C$8:$C$239,0))),\"\")","v":""},{"$f":"IFERROR(IF(INDEX(Disaggregation_1B!P$11:P$150,MATCH($C31,'Disaggregation1B_Import-Export'!$C$8:$C$239,0))=\"\",\"\",INDEX(Disaggregation_1B!P$11:P$150,MATCH($C31,'Disaggregation1B_Import-Export'!$C$8:$C$239,0))),\"\")","v":"TB patient register"},{"$f":"IFERROR(IF(INDEX(Disaggregation_1B!Q$11:Q$150,MATCH($C31,'Disaggregation1B_Import-Export'!$C$8:$C$239,0))=\"\",\"\",INDEX(Disaggregation_1B!Q$11:Q$150,MATCH($C31,'Disaggregation1B_Import-Export'!$C$8:$C$239,0))),\"\")","v":"Tous les 20 cas de TBMDR étaient des nouveaux cas admis de janvier à juin 2018"},{"$f":"INDEX(Disaggregation_1B!R$11:R$150,MATCH($C31,'Disaggregation1B_Import-Export'!$C$8:$C$239,0))","v":0},{"$f":"IFERROR(IF(INDEX(Disaggregation_1B!S$11:S$150,MATCH($C31,'Disaggregation1B_Import-Export'!$C$8:$C$239,0))=\"\",\"\",INDEX(Disaggregation_1B!S$11:S$150,MATCH($C31,'Disaggregation1B_Import-Export'!$C$8:$C$239,0))),\"\")","v":""},{"$f":"IFERROR(IF(INDEX(Disaggregation_1B!T$11:T$150,MATCH($C31,'Disaggregation1B_Import-Export'!$C$8:$C$239,0))=\"\",\"\",INDEX(Disaggregation_1B!T$11:T$150,MATCH($C31,'Disaggregation1B_Import-Export'!$C$8:$C$239,0))),\"\")","v":""},{"$f":"IFERROR(IF(INDEX(Disaggregation_1B!U$11:U$150,MATCH($C31,'Disaggregation1B_Import-Export'!$C$8:$C$239,0))=\"\",\"\",INDEX(Disaggregation_1B!U$11:U$150,MATCH($C31,'Disaggregation1B_Import-Export'!$C$8:$C$239,0))),\"\")","v":""},{"$f":"IFERROR(IF(INDEX(Disaggregation_1B!V$11:V$150,MATCH($C31,'Disaggregation1B_Import-Export'!$C$8:$C$239,0))=\"\",\"\",INDEX(Disaggregation_1B!V$11:V$150,MATCH($C31,'Disaggregation1B_Import-Export'!$C$8:$C$239,0))),\"\")","v":""},{"$f":"IFERROR(IF(INDEX(Disaggregation_1B!W$11:W$150,MATCH($C31,'Disaggregation1B_Import-Export'!$C$8:$C$239,0))=\"\",\"\",INDEX(Disaggregation_1B!W$11:W$150,MATCH($C31,'Disaggregation1B_Import-Export'!$C$8:$C$239,0))),\"\")","v":""},{"$f":"INDEX(Disaggregation_1B!X$11:X$150,MATCH($C31,'Disaggregation1B_Import-Export'!$C$8:$C$239,0))","v":0},null,null,null,{"$f":"INDEX(Disaggregation_1B!AB$11:AB$150,MATCH($C31,'Disaggregation1B_Import-Export'!$C$8:$C$239,0))","v":0},{"$f":"INDEX(Disaggregation_1B!AC$11:AC$150,MATCH($C31,'Disaggregation1B_Import-Export'!$C$8:$C$239,0))","v":0},10,"MDR TB-3(M): Nombre de cas de tuberculose résistante à la rifampicine et/ou tuberculose multirésistante qui ont commencé un traitement de deuxième intention","+ de 15 ans","Age","MDR TB-3(M): Número de casos TB-RR y/o TB-MDR que iniciaron tratamiento con drogas de segunda línea","MDR TB-3(M): Nombre de cas de tuberculose résistante à la rifampicine et/ou tuberculose multirésistante qui ont commencé un traitement de deuxième intention","15+","+ de 15 ans","Edad","Age",null,"Rapport annuel 2016 du PNILT.","Burundi"]
["a15360000095pxPAAQ",24,"Coverage24","MDR-TB","MDR TB-3(M): Number of cases with RR-TB and/or MDR-TB that began second-line treatment","New TB drugs","TB regimen",0,0,"0.0","2016",null,null,{"$f":"IFERROR(IF(INDEX(Disaggregation_1B!M$11:M$150,MATCH($C32,'Disaggregation1B_Import-Export'!$C$8:$C$239,0))=\"\",\"\",INDEX(Disaggregation_1B!M$11:M$150,MATCH($C32,'Disaggregation1B_Import-Export'!$C$8:$C$239,0))),\"\")","v":20},{"$f":"IFERROR(IF(INDEX(Disaggregation_1B!N$11:N$150,MATCH($C32,'Disaggregation1B_Import-Export'!$C$8:$C$239,0))=\"\",\"\",INDEX(Disaggregation_1B!N$11:N$150,MATCH($C32,'Disaggregation1B_Import-Export'!$C$8:$C$239,0))),\"\")","v":""},{"$f":"IFERROR(IF(INDEX(Disaggregation_1B!O$11:O$150,MATCH($C32,'Disaggregation1B_Import-Export'!$C$8:$C$239,0))=\"\",\"\",INDEX(Disaggregation_1B!O$11:O$150,MATCH($C32,'Disaggregation1B_Import-Export'!$C$8:$C$239,0))),\"\")","v":""},{"$f":"IFERROR(IF(INDEX(Disaggregation_1B!P$11:P$150,MATCH($C32,'Disaggregation1B_Import-Export'!$C$8:$C$239,0))=\"\",\"\",INDEX(Disaggregation_1B!P$11:P$150,MATCH($C32,'Disaggregation1B_Import-Export'!$C$8:$C$239,0))),\"\")","v":"TB patient register"},{"$f":"IFERROR(IF(INDEX(Disaggregation_1B!Q$11:Q$150,MATCH($C32,'Disaggregation1B_Import-Export'!$C$8:$C$239,0))=\"\",\"\",INDEX(Disaggregation_1B!Q$11:Q$150,MATCH($C32,'Disaggregation1B_Import-Export'!$C$8:$C$239,0))),\"\")","v":"En ce qui concerne la TB/MDR, le Burundi a opté pour un schéma court de 9 mois. Ainsi, tous les 20 patients étaient sous le même schéma thérapeutique (schema court)"},{"$f":"INDEX(Disaggregation_1B!R$11:R$150,MATCH($C32,'Disaggregation1B_Import-Export'!$C$8:$C$239,0))","v":0},{"$f":"IFERROR(IF(INDEX(Disaggregation_1B!S$11:S$150,MATCH($C32,'Disaggregation1B_Import-Export'!$C$8:$C$239,0))=\"\",\"\",INDEX(Disaggregation_1B!S$11:S$150,MATCH($C32,'Disaggregation1B_Import-Export'!$C$8:$C$239,0))),\"\")","v":""},{"$f":"IFERROR(IF(INDEX(Disaggregation_1B!T$11:T$150,MATCH($C32,'Disaggregation1B_Import-Export'!$C$8:$C$239,0))=\"\",\"\",INDEX(Disaggregation_1B!T$11:T$150,MATCH($C32,'Disaggregation1B_Import-Export'!$C$8:$C$239,0))),\"\")","v":""},{"$f":"IFERROR(IF(INDEX(Disaggregation_1B!U$11:U$150,MATCH($C32,'Disaggregation1B_Import-Export'!$C$8:$C$239,0))=\"\",\"\",INDEX(Disaggregation_1B!U$11:U$150,MATCH($C32,'Disaggregation1B_Import-Export'!$C$8:$C$239,0))),\"\")","v":""},{"$f":"IFERROR(IF(INDEX(Disaggregation_1B!V$11:V$150,MATCH($C32,'Disaggregation1B_Import-Export'!$C$8:$C$239,0))=\"\",\"\",INDEX(Disaggregation_1B!V$11:V$150,MATCH($C32,'Disaggregation1B_Import-Export'!$C$8:$C$239,0))),\"\")","v":""},{"$f":"IFERROR(IF(INDEX(Disaggregation_1B!W$11:W$150,MATCH($C32,'Disaggregation1B_Import-Export'!$C$8:$C$239,0))=\"\",\"\",INDEX(Disaggregation_1B!W$11:W$150,MATCH($C32,'Disaggregation1B_Import-Export'!$C$8:$C$239,0))),\"\")","v":""},{"$f":"INDEX(Disaggregation_1B!X$11:X$150,MATCH($C32,'Disaggregation1B_Import-Export'!$C$8:$C$239,0))","v":0},null,null,null,{"$f":"INDEX(Disaggregation_1B!AB$11:AB$150,MATCH($C32,'Disaggregation1B_Import-Export'!$C$8:$C$239,0))","v":0},{"$f":"INDEX(Disaggregation_1B!AC$11:AC$150,MATCH($C32,'Disaggregation1B_Import-Export'!$C$8:$C$239,0))","v":0},10,"MDR TB-3(M): Nombre de cas de tuberculose résistante à la rifampicine et/ou tuberculose multirésistante qui ont commencé un traitement de deuxième intention","Nouveau traitement TB","Schéma thérapeutique","MDR TB-3(M): Número de casos TB-RR y/o TB-MDR que iniciaron tratamiento con drogas de segunda línea","MDR TB-3(M): Nombre de cas de tuberculose résistante à la rifampicine et/ou tuberculose multirésistante qui ont commencé un traitement de deuxième intention","Nuevas drogas anti tuberculosis","Nouveau traitement TB","Tipo de tratamiento","Schéma thérapeutique",null,"Rapport annuel 2016 du PNILT.","Burundi"]
["a15360000095pxQAAQ",25,"Coverage25","MDR-TB","MDR TB-3(M): Number of cases with RR-TB and/or MDR-TB that began second-line treatment","Short regimens","TB regimen",80,0,"0.0","2016",null,null,{"$f":"IFERROR(IF(INDEX(Disaggregation_1B!M$11:M$150,MATCH($C33,'Disaggregation1B_Import-Export'!$C$8:$C$239,0))=\"\",\"\",INDEX(Disaggregation_1B!M$11:M$150,MATCH($C33,'Disaggregation1B_Import-Export'!$C$8:$C$239,0))),\"\")","v":""},{"$f":"IFERROR(IF(INDEX(Disaggregation_1B!N$11:N$150,MATCH($C33,'Disaggregation1B_Import-Export'!$C$8:$C$239,0))=\"\",\"\",INDEX(Disaggregation_1B!N$11:N$150,MATCH($C33,'Disaggregation1B_Import-Export'!$C$8:$C$239,0))),\"\")","v":""},{"$f":"IFERROR(IF(INDEX(Disaggregation_1B!O$11:O$150,MATCH($C33,'Disaggregation1B_Import-Export'!$C$8:$C$239,0))=\"\",\"\",INDEX(Disaggregation_1B!O$11:O$150,MATCH($C33,'Disaggregation1B_Import-Export'!$C$8:$C$239,0))),\"\")","v":""},{"$f":"IFERROR(IF(INDEX(Disaggregation_1B!P$11:P$150,MATCH($C33,'Disaggregation1B_Import-Export'!$C$8:$C$239,0))=\"\",\"\",INDEX(Disaggregation_1B!P$11:P$150,MATCH($C33,'Disaggregation1B_Import-Export'!$C$8:$C$239,0))),\"\")","v":""},{"$f":"IFERROR(IF(INDEX(Disaggregation_1B!Q$11:Q$150,MATCH($C33,'Disaggregation1B_Import-Export'!$C$8:$C$239,0))=\"\",\"\",INDEX(Disaggregation_1B!Q$11:Q$150,MATCH($C33,'Disaggregation1B_Import-Export'!$C$8:$C$239,0))),\"\")","v":"Le système d'information sanitaire ne permet pas de renseigner cet indicateur désagrégé par tranche d'âge"},{"$f":"INDEX(Disaggregation_1B!R$11:R$150,MATCH($C33,'Disaggregation1B_Import-Export'!$C$8:$C$239,0))","v":0},{"$f":"IFERROR(IF(INDEX(Disaggregation_1B!S$11:S$150,MATCH($C33,'Disaggregation1B_Import-Export'!$C$8:$C$239,0))=\"\",\"\",INDEX(Disaggregation_1B!S$11:S$150,MATCH($C33,'Disaggregation1B_Import-Export'!$C$8:$C$239,0))),\"\")","v":""},{"$f":"IFERROR(IF(INDEX(Disaggregation_1B!T$11:T$150,MATCH($C33,'Disaggregation1B_Import-Export'!$C$8:$C$239,0))=\"\",\"\",INDEX(Disaggregation_1B!T$11:T$150,MATCH($C33,'Disaggregation1B_Import-Export'!$C$8:$C$239,0))),\"\")","v":""},{"$f":"IFERROR(IF(INDEX(Disaggregation_1B!U$11:U$150,MATCH($C33,'Disaggregation1B_Import-Export'!$C$8:$C$239,0))=\"\",\"\",INDEX(Disaggregation_1B!U$11:U$150,MATCH($C33,'Disaggregation1B_Import-Export'!$C$8:$C$239,0))),\"\")","v":""},{"$f":"IFERROR(IF(INDEX(Disaggregation_1B!V$11:V$150,MATCH($C33,'Disaggregation1B_Import-Export'!$C$8:$C$239,0))=\"\",\"\",INDEX(Disaggregation_1B!V$11:V$150,MATCH($C33,'Disaggregation1B_Import-Export'!$C$8:$C$239,0))),\"\")","v":""},{"$f":"IFERROR(IF(INDEX(Disaggregation_1B!W$11:W$150,MATCH($C33,'Disaggregation1B_Import-Export'!$C$8:$C$239,0))=\"\",\"\",INDEX(Disaggregation_1B!W$11:W$150,MATCH($C33,'Disaggregation1B_Import-Export'!$C$8:$C$239,0))),\"\")","v":""},{"$f":"INDEX(Disaggregation_1B!X$11:X$150,MATCH($C33,'Disaggregation1B_Import-Export'!$C$8:$C$239,0))","v":0},null,null,null,{"$f":"INDEX(Disaggregation_1B!AB$11:AB$150,MATCH($C33,'Disaggregation1B_Import-Export'!$C$8:$C$239,0))","v":0},{"$f":"INDEX(Disaggregation_1B!AC$11:AC$150,MATCH($C33,'Disaggregation1B_Import-Export'!$C$8:$C$239,0))","v":0},10,"MDR TB-3(M): Nombre de cas de tuberculose résistante à la rifampicine et/ou tuberculose multirésistante qui ont commencé un traitement de deuxième intention","Régime court","Schéma thérapeutique","MDR TB-3(M): Número de casos TB-RR y/o TB-MDR que iniciaron tratamiento con drogas de segunda línea","MDR TB-3(M): Nombre de cas de tuberculose résistante à la rifampicine et/ou tuberculose multirésistante qui ont commencé un traitement de deuxième intention","Regimenes acortados","Régime court","Tipo de tratamiento","Schéma thérapeutique",null,"Rapport annuel 2016 du PNILT.","Burundi"]
["a15360000095pxvAAA",26,"Coverage26","Treatment, care and support","TCS-1(M): Percentage of people living with HIV currently receiving antiretroviral therapy","Transgender","Target / Risk population group",0,0,"0.0",null,null,"No disaggregation in the 2016 NACP Annual Report.",{"$f":"IFERROR(IF(INDEX(Disaggregation_1B!M$11:M$150,MATCH($C34,'Disaggregation1B_Import-Export'!$C$8:$C$239,0))=\"\",\"\",INDEX(Disaggregation_1B!M$11:M$150,MATCH($C34,'Disaggregation1B_Import-Export'!$C$8:$C$239,0))),\"\")","v":42341},{"$f":"IFERROR(IF(INDEX(Disaggregation_1B!N$11:N$150,MATCH($C34,'Disaggregation1B_Import-Export'!$C$8:$C$239,0))=\"\",\"\",INDEX(Disaggregation_1B!N$11:N$150,MATCH($C34,'Disaggregation1B_Import-Export'!$C$8:$C$239,0))),\"\")","v":""},{"$f":"IFERROR(IF(INDEX(Disaggregation_1B!O$11:O$150,MATCH($C34,'Disaggregation1B_Import-Export'!$C$8:$C$239,0))=\"\",\"\",INDEX(Disaggregation_1B!O$11:O$150,MATCH($C34,'Disaggregation1B_Import-Export'!$C$8:$C$239,0))),\"\")","v":""},{"$f":"IFERROR(IF(INDEX(Disaggregation_1B!P$11:P$150,MATCH($C34,'Disaggregation1B_Import-Export'!$C$8:$C$239,0))=\"\",\"\",INDEX(Disaggregation_1B!P$11:P$150,MATCH($C34,'Disaggregation1B_Import-Export'!$C$8:$C$239,0))),\"\")","v":""},{"$f":"IFERROR(IF(INDEX(Disaggregation_1B!Q$11:Q$150,MATCH($C34,'Disaggregation1B_Import-Export'!$C$8:$C$239,0))=\"\",\"\",INDEX(Disaggregation_1B!Q$11:Q$150,MATCH($C34,'Disaggregation1B_Import-Export'!$C$8:$C$239,0))),\"\")","v":"Le système d'information ne permet pas de renseigner le nombre estimé de tous les adultes et enfants attendus vivant avec le VIH, les femmes enceintes séropositives , les enfants séropositifs, les coinfectés VIH/TB et PS  séropositifs  désagrégé par sexe\n"},{"$f":"INDEX(Disaggregation_1B!R$11:R$150,MATCH($C34,'Disaggregation1B_Import-Export'!$C$8:$C$239,0))","v":0},{"$f":"IFERROR(IF(INDEX(Disaggregation_1B!S$11:S$150,MATCH($C34,'Disaggregation1B_Import-Export'!$C$8:$C$239,0))=\"\",\"\",INDEX(Disaggregation_1B!S$11:S$150,MATCH($C34,'Disaggregation1B_Import-Export'!$C$8:$C$239,0))),\"\")","v":""},{"$f":"IFERROR(IF(INDEX(Disaggregation_1B!T$11:T$150,MATCH($C34,'Disaggregation1B_Import-Export'!$C$8:$C$239,0))=\"\",\"\",INDEX(Disaggregation_1B!T$11:T$150,MATCH($C34,'Disaggregation1B_Import-Export'!$C$8:$C$239,0))),\"\")","v":""},{"$f":"IFERROR(IF(INDEX(Disaggregation_1B!U$11:U$150,MATCH($C34,'Disaggregation1B_Import-Export'!$C$8:$C$239,0))=\"\",\"\",INDEX(Disaggregation_1B!U$11:U$150,MATCH($C34,'Disaggregation1B_Import-Export'!$C$8:$C$239,0))),\"\")","v":""},{"$f":"IFERROR(IF(INDEX(Disaggregation_1B!V$11:V$150,MATCH($C34,'Disaggregation1B_Import-Export'!$C$8:$C$239,0))=\"\",\"\",INDEX(Disaggregation_1B!V$11:V$150,MATCH($C34,'Disaggregation1B_Import-Export'!$C$8:$C$239,0))),\"\")","v":""},{"$f":"IFERROR(IF(INDEX(Disaggregation_1B!W$11:W$150,MATCH($C34,'Disaggregation1B_Import-Export'!$C$8:$C$239,0))=\"\",\"\",INDEX(Disaggregation_1B!W$11:W$150,MATCH($C34,'Disaggregation1B_Import-Export'!$C$8:$C$239,0))),\"\")","v":""},{"$f":"INDEX(Disaggregation_1B!X$11:X$150,MATCH($C34,'Disaggregation1B_Import-Export'!$C$8:$C$239,0))","v":0},null,null,null,{"$f":"INDEX(Disaggregation_1B!AB$11:AB$150,MATCH($C34,'Disaggregation1B_Import-Export'!$C$8:$C$239,0))","v":0},{"$f":"INDEX(Disaggregation_1B!AC$11:AC$150,MATCH($C34,'Disaggregation1B_Import-Export'!$C$8:$C$239,0))","v":0},12,"TCS-1(M): Pourcentage de personnes vivant avec le VIH bénéficiant actuellement d'un traitement antirétroviral","Transgenre","Groupe à risque cible","TCS-1(M): Porcentaje de personas que viven con el VIH  que actualmente reciben tratamiento antirretroviral","TCS-1(M): Pourcentage de personnes vivant avec le VIH bénéficiant actuellement d'un traitement antirétroviral","Personas transgénero","Transgenre","Grupo de riesgo objetivo","Groupe à risque cible","Désagregation non faite dans le Rapport annuel du PNLS de 2016",null,"Burundi"]
["a15360000095pxwAAA",27,"Coverage27","Treatment, care and support","TCS-1(M): Percentage of people living with HIV currently receiving antiretroviral therapy","Female","Gender",0,0,"0.0",null,null,"No disaggregation in the 2016 NACP Annual Report.  Measures will be taken so that the data can be disaggregated by gender.   The Q4 2017 ART patient cohort audit will provide disaggregated information.",{"$f":"IFERROR(IF(INDEX(Disaggregation_1B!M$11:M$150,MATCH($C35,'Disaggregation1B_Import-Export'!$C$8:$C$239,0))=\"\",\"\",INDEX(Disaggregation_1B!M$11:M$150,MATCH($C35,'Disaggregation1B_Import-Export'!$C$8:$C$239,0))),\"\")","v":22078},{"$f":"IFERROR(IF(INDEX(Disaggregation_1B!N$11:N$150,MATCH($C35,'Disaggregation1B_Import-Export'!$C$8:$C$239,0))=\"\",\"\",INDEX(Disaggregation_1B!N$11:N$150,MATCH($C35,'Disaggregation1B_Import-Export'!$C$8:$C$239,0))),\"\")","v":""},{"$f":"IFERROR(IF(INDEX(Disaggregation_1B!O$11:O$150,MATCH($C35,'Disaggregation1B_Import-Export'!$C$8:$C$239,0))=\"\",\"\",INDEX(Disaggregation_1B!O$11:O$150,MATCH($C35,'Disaggregation1B_Import-Export'!$C$8:$C$239,0))),\"\")","v":""},{"$f":"IFERROR(IF(INDEX(Disaggregation_1B!P$11:P$150,MATCH($C35,'Disaggregation1B_Import-Export'!$C$8:$C$239,0))=\"\",\"\",INDEX(Disaggregation_1B!P$11:P$150,MATCH($C35,'Disaggregation1B_Import-Export'!$C$8:$C$239,0))),\"\")","v":""},{"$f":"IFERROR(IF(INDEX(Disaggregation_1B!Q$11:Q$150,MATCH($C35,'Disaggregation1B_Import-Export'!$C$8:$C$239,0))=\"\",\"\",INDEX(Disaggregation_1B!Q$11:Q$150,MATCH($C35,'Disaggregation1B_Import-Export'!$C$8:$C$239,0))),\"\")","v":"Le système d'information ne permet pas de renseigner le nombre estimé de tous les adultes et enfants attendus vivant avec le VIH, les femmes enceintes séropositives , les enfants séropositifs, les coinfectés VIH/TB et PS  séropositifs  désagrégé par sexe\n"},{"$f":"INDEX(Disaggregation_1B!R$11:R$150,MATCH($C35,'Disaggregation1B_Import-Export'!$C$8:$C$239,0))","v":0},{"$f":"IFERROR(IF(INDEX(Disaggregation_1B!S$11:S$150,MATCH($C35,'Disaggregation1B_Import-Export'!$C$8:$C$239,0))=\"\",\"\",INDEX(Disaggregation_1B!S$11:S$150,MATCH($C35,'Disaggregation1B_Import-Export'!$C$8:$C$239,0))),\"\")","v":""},{"$f":"IFERROR(IF(INDEX(Disaggregation_1B!T$11:T$150,MATCH($C35,'Disaggregation1B_Import-Export'!$C$8:$C$239,0))=\"\",\"\",INDEX(Disaggregation_1B!T$11:T$150,MATCH($C35,'Disaggregation1B_Import-Export'!$C$8:$C$239,0))),\"\")","v":""},{"$f":"IFERROR(IF(INDEX(Disaggregation_1B!U$11:U$150,MATCH($C35,'Disaggregation1B_Import-Export'!$C$8:$C$239,0))=\"\",\"\",INDEX(Disaggregation_1B!U$11:U$150,MATCH($C35,'Disaggregation1B_Import-Export'!$C$8:$C$239,0))),\"\")","v":""},{"$f":"IFERROR(IF(INDEX(Disaggregation_1B!V$11:V$150,MATCH($C35,'Disaggregation1B_Import-Export'!$C$8:$C$239,0))=\"\",\"\",INDEX(Disaggregation_1B!V$11:V$150,MATCH($C35,'Disaggregation1B_Import-Export'!$C$8:$C$239,0))),\"\")","v":""},{"$f":"IFERROR(IF(INDEX(Disaggregation_1B!W$11:W$150,MATCH($C35,'Disaggregation1B_Import-Export'!$C$8:$C$239,0))=\"\",\"\",INDEX(Disaggregation_1B!W$11:W$150,MATCH($C35,'Disaggregation1B_Import-Export'!$C$8:$C$239,0))),\"\")","v":""},{"$f":"INDEX(Disaggregation_1B!X$11:X$150,MATCH($C35,'Disaggregation1B_Import-Export'!$C$8:$C$239,0))","v":0},null,null,null,{"$f":"INDEX(Disaggregation_1B!AB$11:AB$150,MATCH($C35,'Disaggregation1B_Import-Export'!$C$8:$C$239,0))","v":0},{"$f":"INDEX(Disaggregation_1B!AC$11:AC$150,MATCH($C35,'Disaggregation1B_Import-Export'!$C$8:$C$239,0))","v":0},12,"TCS-1(M): Pourcentage de personnes vivant avec le VIH bénéficiant actuellement d'un traitement antirétroviral","Femme","Sexe","TCS-1(M): Porcentaje de personas que viven con el VIH  que actualmente reciben tratamiento antirretroviral","TCS-1(M): Pourcentage de personnes vivant avec le VIH bénéficiant actuellement d'un traitement antirétroviral","Mujeres","Femme","Sexo","Sexe","Désagregation non faite dans le Rapport annuel du PNLS de 2016.   Le PNLS prendra des dispositions pour permettre la désagrégation par sexe.",null,"Burundi"]
["a15360000095pxxAAA",28,"Coverage28","Treatment, care and support","TCS-1(M): Percentage of people living with HIV currently receiving antiretroviral therapy","Male","Gender",0,0,"0.0",null,null,"No disaggregation in the 2016 NACP Annual Report.  Measures will be taken so that the data can be disaggregated by gender.   The Q4 2017 ART patient cohort audit will provide disaggregated information.",{"$f":"IFERROR(IF(INDEX(Disaggregation_1B!M$11:M$150,MATCH($C36,'Disaggregation1B_Import-Export'!$C$8:$C$239,0))=\"\",\"\",INDEX(Disaggregation_1B!M$11:M$150,MATCH($C36,'Disaggregation1B_Import-Export'!$C$8:$C$239,0))),\"\")","v":""},{"$f":"IFERROR(IF(INDEX(Disaggregation_1B!N$11:N$150,MATCH($C36,'Disaggregation1B_Import-Export'!$C$8:$C$239,0))=\"\",\"\",INDEX(Disaggregation_1B!N$11:N$150,MATCH($C36,'Disaggregation1B_Import-Export'!$C$8:$C$239,0))),\"\")","v":""},{"$f":"IFERROR(IF(INDEX(Disaggregation_1B!O$11:O$150,MATCH($C36,'Disaggregation1B_Import-Export'!$C$8:$C$239,0))=\"\",\"\",INDEX(Disaggregation_1B!O$11:O$150,MATCH($C36,'Disaggregation1B_Import-Export'!$C$8:$C$239,0))),\"\")","v":""},{"$f":"IFERROR(IF(INDEX(Disaggregation_1B!P$11:P$150,MATCH($C36,'Disaggregation1B_Import-Export'!$C$8:$C$239,0))=\"\",\"\",INDEX(Disaggregation_1B!P$11:P$150,MATCH($C36,'Disaggregation1B_Import-Export'!$C$8:$C$239,0))),\"\")","v":""},{"$f":"IFERROR(IF(INDEX(Disaggregation_1B!Q$11:Q$150,MATCH($C36,'Disaggregation1B_Import-Export'!$C$8:$C$239,0))=\"\",\"\",INDEX(Disaggregation_1B!Q$11:Q$150,MATCH($C36,'Disaggregation1B_Import-Export'!$C$8:$C$239,0))),\"\")","v":"Le système d'information sanitaire ne permet pas de renseigner cet indicateur désagrégé par tranche d'âge"},{"$f":"INDEX(Disaggregation_1B!R$11:R$150,MATCH($C36,'Disaggregation1B_Import-Export'!$C$8:$C$239,0))","v":0},{"$f":"IFERROR(IF(INDEX(Disaggregation_1B!S$11:S$150,MATCH($C36,'Disaggregation1B_Import-Export'!$C$8:$C$239,0))=\"\",\"\",INDEX(Disaggregation_1B!S$11:S$150,MATCH($C36,'Disaggregation1B_Import-Export'!$C$8:$C$239,0))),\"\")","v":""},{"$f":"IFERROR(IF(INDEX(Disaggregation_1B!T$11:T$150,MATCH($C36,'Disaggregation1B_Import-Export'!$C$8:$C$239,0))=\"\",\"\",INDEX(Disaggregation_1B!T$11:T$150,MATCH($C36,'Disaggregation1B_Import-Export'!$C$8:$C$239,0))),\"\")","v":""},{"$f":"IFERROR(IF(INDEX(Disaggregation_1B!U$11:U$150,MATCH($C36,'Disaggregation1B_Import-Export'!$C$8:$C$239,0))=\"\",\"\",INDEX(Disaggregation_1B!U$11:U$150,MATCH($C36,'Disaggregation1B_Import-Export'!$C$8:$C$239,0))),\"\")","v":""},{"$f":"IFERROR(IF(INDEX(Disaggregation_1B!V$11:V$150,MATCH($C36,'Disaggregation1B_Import-Export'!$C$8:$C$239,0))=\"\",\"\",INDEX(Disaggregation_1B!V$11:V$150,MATCH($C36,'Disaggregation1B_Import-Export'!$C$8:$C$239,0))),\"\")","v":""},{"$f":"IFERROR(IF(INDEX(Disaggregation_1B!W$11:W$150,MATCH($C36,'Disaggregation1B_Import-Export'!$C$8:$C$239,0))=\"\",\"\",INDEX(Disaggregation_1B!W$11:W$150,MATCH($C36,'Disaggregation1B_Import-Export'!$C$8:$C$239,0))),\"\")","v":""},{"$f":"INDEX(Disaggregation_1B!X$11:X$150,MATCH($C36,'Disaggregation1B_Import-Export'!$C$8:$C$239,0))","v":0},null,null,null,{"$f":"INDEX(Disaggregation_1B!AB$11:AB$150,MATCH($C36,'Disaggregation1B_Import-Export'!$C$8:$C$239,0))","v":0},{"$f":"INDEX(Disaggregation_1B!AC$11:AC$150,MATCH($C36,'Disaggregation1B_Import-Export'!$C$8:$C$239,0))","v":0},12,"TCS-1(M): Pourcentage de personnes vivant avec le VIH bénéficiant actuellement d'un traitement antirétroviral","Homme","Sexe","TCS-1(M): Porcentaje de personas que viven con el VIH  que actualmente reciben tratamiento antirretroviral","TCS-1(M): Pourcentage de personnes vivant avec le VIH bénéficiant actuellement d'un traitement antirétroviral","Hombres","Homme","Sexo","Sexe","Désagregation non faite dans le Rapport annuel du PNLS de 2016.  Le PNLS prendra des dispositions pour permettre la désagrégation par sexe.  Un audit de la file active est en cours (résultats attendus fin 2017), et les informations sur base de l'échantillon seront disponibles.  Des efforts seront ensuite menés pour permettre ces différentes désagrégations à travers les système de rapportage de routine pour le VIH.",null,"Burundi"]
["a15360000095pxyAAA",29,"Coverage29","Treatment, care and support","TCS-1(M): Percentage of people living with HIV currently receiving antiretroviral therapy","U15","Age",3050,8238,"0.4","2016","PNLS Annual Report","This result comes from the 2016 NACP Annual Report, with a correction of the denominator (number of children living with HIV monitored, rather than number of children living with HIV as estimated by SPECTRUM).",{"$f":"IFERROR(IF(INDEX(Disaggregation_1B!M$11:M$150,MATCH($C37,'Disaggregation1B_Import-Export'!$C$8:$C$239,0))=\"\",\"\",INDEX(Disaggregation_1B!M$11:M$150,MATCH($C37,'Disaggregation1B_Import-Export'!$C$8:$C$239,0))),\"\")","v":""},{"$f":"IFERROR(IF(INDEX(Disaggregation_1B!N$11:N$150,MATCH($C37,'Disaggregation1B_Import-Export'!$C$8:$C$239,0))=\"\",\"\",INDEX(Disaggregation_1B!N$11:N$150,MATCH($C37,'Disaggregation1B_Import-Export'!$C$8:$C$239,0))),\"\")","v":""},{"$f":"IFERROR(IF(INDEX(Disaggregation_1B!O$11:O$150,MATCH($C37,'Disaggregation1B_Import-Export'!$C$8:$C$239,0))=\"\",\"\",INDEX(Disaggregation_1B!O$11:O$150,MATCH($C37,'Disaggregation1B_Import-Export'!$C$8:$C$239,0))),\"\")","v":""},{"$f":"IFERROR(IF(INDEX(Disaggregation_1B!P$11:P$150,MATCH($C37,'Disaggregation1B_Import-Export'!$C$8:$C$239,0))=\"\",\"\",INDEX(Disaggregation_1B!P$11:P$150,MATCH($C37,'Disaggregation1B_Import-Export'!$C$8:$C$239,0))),\"\")","v":""},{"$f":"IFERROR(IF(INDEX(Disaggregation_1B!Q$11:Q$150,MATCH($C37,'Disaggregation1B_Import-Export'!$C$8:$C$239,0))=\"\",\"\",INDEX(Disaggregation_1B!Q$11:Q$150,MATCH($C37,'Disaggregation1B_Import-Export'!$C$8:$C$239,0))),\"\")","v":"Le système d'information sanitaire ne permet pas de renseigner cet indicateur désagrégé par tranche d'âge"},{"$f":"INDEX(Disaggregation_1B!R$11:R$150,MATCH($C37,'Disaggregation1B_Import-Export'!$C$8:$C$239,0))","v":0},{"$f":"IFERROR(IF(INDEX(Disaggregation_1B!S$11:S$150,MATCH($C37,'Disaggregation1B_Import-Export'!$C$8:$C$239,0))=\"\",\"\",INDEX(Disaggregation_1B!S$11:S$150,MATCH($C37,'Disaggregation1B_Import-Export'!$C$8:$C$239,0))),\"\")","v":""},{"$f":"IFERROR(IF(INDEX(Disaggregation_1B!T$11:T$150,MATCH($C37,'Disaggregation1B_Import-Export'!$C$8:$C$239,0))=\"\",\"\",INDEX(Disaggregation_1B!T$11:T$150,MATCH($C37,'Disaggregation1B_Import-Export'!$C$8:$C$239,0))),\"\")","v":""},{"$f":"IFERROR(IF(INDEX(Disaggregation_1B!U$11:U$150,MATCH($C37,'Disaggregation1B_Import-Export'!$C$8:$C$239,0))=\"\",\"\",INDEX(Disaggregation_1B!U$11:U$150,MATCH($C37,'Disaggregation1B_Import-Export'!$C$8:$C$239,0))),\"\")","v":""},{"$f":"IFERROR(IF(INDEX(Disaggregation_1B!V$11:V$150,MATCH($C37,'Disaggregation1B_Import-Export'!$C$8:$C$239,0))=\"\",\"\",INDEX(Disaggregation_1B!V$11:V$150,MATCH($C37,'Disaggregation1B_Import-Export'!$C$8:$C$239,0))),\"\")","v":""},{"$f":"IFERROR(IF(INDEX(Disaggregation_1B!W$11:W$150,MATCH($C37,'Disaggregation1B_Import-Export'!$C$8:$C$239,0))=\"\",\"\",INDEX(Disaggregation_1B!W$11:W$150,MATCH($C37,'Disaggregation1B_Import-Export'!$C$8:$C$239,0))),\"\")","v":""},{"$f":"INDEX(Disaggregation_1B!X$11:X$150,MATCH($C37,'Disaggregation1B_Import-Export'!$C$8:$C$239,0))","v":0},null,null,null,{"$f":"INDEX(Disaggregation_1B!AB$11:AB$150,MATCH($C37,'Disaggregation1B_Import-Export'!$C$8:$C$239,0))","v":0},{"$f":"INDEX(Disaggregation_1B!AC$11:AC$150,MATCH($C37,'Disaggregation1B_Import-Export'!$C$8:$C$239,0))","v":0},12,"TCS-1(M): Pourcentage de personnes vivant avec le VIH bénéficiant actuellement d'un traitement antirétroviral","<15 ans","Age","TCS-1(M): Porcentaje de personas que viven con el VIH  que actualmente reciben tratamiento antirretroviral","TCS-1(M): Pourcentage de personnes vivant avec le VIH bénéficiant actuellement d'un traitement antirétroviral","<15","<15 ans","Edad","Age","Ce resultat provient du Rapport annuel annuel du PNLS de 2016 avec une correction du dénominateur qui  avait pris en compte le nombre de PVVIH Enfants  suivies et non le Nombre de PVVIH Enfants  estimé par Spectrum","Rapport annuel  PNLS","Burundi"]
["a15360000095pxzAAA",30,"Coverage30","Treatment, care and support","TCS-1(M): Percentage of people living with HIV currently receiving antiretroviral therapy","Sex workers","Target / Risk population group",0,0,"0.0",null,null,"No disaggregation in the 2016 NACP Annual Report.   Measures will be taken so that key population data can be reported, either through routine data, or through IBBSS to estimate ART coverage among key populations.",{"$f":"IFERROR(IF(INDEX(Disaggregation_1B!M$11:M$150,MATCH($C38,'Disaggregation1B_Import-Export'!$C$8:$C$239,0))=\"\",\"\",INDEX(Disaggregation_1B!M$11:M$150,MATCH($C38,'Disaggregation1B_Import-Export'!$C$8:$C$239,0))),\"\")","v":""},{"$f":"IFERROR(IF(INDEX(Disaggregation_1B!N$11:N$150,MATCH($C38,'Disaggregation1B_Import-Export'!$C$8:$C$239,0))=\"\",\"\",INDEX(Disaggregation_1B!N$11:N$150,MATCH($C38,'Disaggregation1B_Import-Export'!$C$8:$C$239,0))),\"\")","v":""},{"$f":"IFERROR(IF(INDEX(Disaggregation_1B!O$11:O$150,MATCH($C38,'Disaggregation1B_Import-Export'!$C$8:$C$239,0))=\"\",\"\",INDEX(Disaggregation_1B!O$11:O$150,MATCH($C38,'Disaggregation1B_Import-Export'!$C$8:$C$239,0))),\"\")","v":""},{"$f":"IFERROR(IF(INDEX(Disaggregation_1B!P$11:P$150,MATCH($C38,'Disaggregation1B_Import-Export'!$C$8:$C$239,0))=\"\",\"\",INDEX(Disaggregation_1B!P$11:P$150,MATCH($C38,'Disaggregation1B_Import-Export'!$C$8:$C$239,0))),\"\")","v":""},{"$f":"IFERROR(IF(INDEX(Disaggregation_1B!Q$11:Q$150,MATCH($C38,'Disaggregation1B_Import-Export'!$C$8:$C$239,0))=\"\",\"\",INDEX(Disaggregation_1B!Q$11:Q$150,MATCH($C38,'Disaggregation1B_Import-Export'!$C$8:$C$239,0))),\"\")","v":"Le système d'information sanitaire ne permet pas de renseigner cet indicateur désagrégé par tranche d'âge"},{"$f":"INDEX(Disaggregation_1B!R$11:R$150,MATCH($C38,'Disaggregation1B_Import-Export'!$C$8:$C$239,0))","v":0},{"$f":"IFERROR(IF(INDEX(Disaggregation_1B!S$11:S$150,MATCH($C38,'Disaggregation1B_Import-Export'!$C$8:$C$239,0))=\"\",\"\",INDEX(Disaggregation_1B!S$11:S$150,MATCH($C38,'Disaggregation1B_Import-Export'!$C$8:$C$239,0))),\"\")","v":""},{"$f":"IFERROR(IF(INDEX(Disaggregation_1B!T$11:T$150,MATCH($C38,'Disaggregation1B_Import-Export'!$C$8:$C$239,0))=\"\",\"\",INDEX(Disaggregation_1B!T$11:T$150,MATCH($C38,'Disaggregation1B_Import-Export'!$C$8:$C$239,0))),\"\")","v":""},{"$f":"IFERROR(IF(INDEX(Disaggregation_1B!U$11:U$150,MATCH($C38,'Disaggregation1B_Import-Export'!$C$8:$C$239,0))=\"\",\"\",INDEX(Disaggregation_1B!U$11:U$150,MATCH($C38,'Disaggregation1B_Import-Export'!$C$8:$C$239,0))),\"\")","v":""},{"$f":"IFERROR(IF(INDEX(Disaggregation_1B!V$11:V$150,MATCH($C38,'Disaggregation1B_Import-Export'!$C$8:$C$239,0))=\"\",\"\",INDEX(Disaggregation_1B!V$11:V$150,MATCH($C38,'Disaggregation1B_Import-Export'!$C$8:$C$239,0))),\"\")","v":""},{"$f":"IFERROR(IF(INDEX(Disaggregation_1B!W$11:W$150,MATCH($C38,'Disaggregation1B_Import-Export'!$C$8:$C$239,0))=\"\",\"\",INDEX(Disaggregation_1B!W$11:W$150,MATCH($C38,'Disaggregation1B_Import-Export'!$C$8:$C$239,0))),\"\")","v":""},{"$f":"INDEX(Disaggregation_1B!X$11:X$150,MATCH($C38,'Disaggregation1B_Import-Export'!$C$8:$C$239,0))","v":0},null,null,null,{"$f":"INDEX(Disaggregation_1B!AB$11:AB$150,MATCH($C38,'Disaggregation1B_Import-Export'!$C$8:$C$239,0))","v":0},{"$f":"INDEX(Disaggregation_1B!AC$11:AC$150,MATCH($C38,'Disaggregation1B_Import-Export'!$C$8:$C$239,0))","v":0},12,"TCS-1(M): Pourcentage de personnes vivant avec le VIH bénéficiant actuellement d'un traitement antirétroviral","Professionnels du sexe","Groupe à risque cible","TCS-1(M): Porcentaje de personas que viven con el VIH  que actualmente reciben tratamiento antirretroviral","TCS-1(M): Pourcentage de personnes vivant avec le VIH bénéficiant actuellement d'un traitement antirétroviral","Trabajadores sexuales","Professionnels du sexe","Grupo de riesgo objetivo","Groupe à risque cible","Désagregation non faite dans le Rapport annuel du PNLS de 2016",null,"Burundi"]
["a15360000095py0AAA",31,"Coverage31","Treatment, care and support","TCS-1(M): Percentage of people living with HIV currently receiving antiretroviral therapy","MSM","Target / Risk population group",0,0,"0.0",null,null,"No disaggregation in the 2016 NACP Annual Report.  Measures will be taken so that key population data can be reported, either through routine data, or through IBBSS to estimate ART coverage among key populations.",{"$f":"IFERROR(IF(INDEX(Disaggregation_1B!M$11:M$150,MATCH($C39,'Disaggregation1B_Import-Export'!$C$8:$C$239,0))=\"\",\"\",INDEX(Disaggregation_1B!M$11:M$150,MATCH($C39,'Disaggregation1B_Import-Export'!$C$8:$C$239,0))),\"\")","v":""},{"$f":"IFERROR(IF(INDEX(Disaggregation_1B!N$11:N$150,MATCH($C39,'Disaggregation1B_Import-Export'!$C$8:$C$239,0))=\"\",\"\",INDEX(Disaggregation_1B!N$11:N$150,MATCH($C39,'Disaggregation1B_Import-Export'!$C$8:$C$239,0))),\"\")","v":""},{"$f":"IFERROR(IF(INDEX(Disaggregation_1B!O$11:O$150,MATCH($C39,'Disaggregation1B_Import-Export'!$C$8:$C$239,0))=\"\",\"\",INDEX(Disaggregation_1B!O$11:O$150,MATCH($C39,'Disaggregation1B_Import-Export'!$C$8:$C$239,0))),\"\")","v":""},{"$f":"IFERROR(IF(INDEX(Disaggregation_1B!P$11:P$150,MATCH($C39,'Disaggregation1B_Import-Export'!$C$8:$C$239,0))=\"\",\"\",INDEX(Disaggregation_1B!P$11:P$150,MATCH($C39,'Disaggregation1B_Import-Export'!$C$8:$C$239,0))),\"\")","v":""},{"$f":"IFERROR(IF(INDEX(Disaggregation_1B!Q$11:Q$150,MATCH($C39,'Disaggregation1B_Import-Export'!$C$8:$C$239,0))=\"\",\"\",INDEX(Disaggregation_1B!Q$11:Q$150,MATCH($C39,'Disaggregation1B_Import-Export'!$C$8:$C$239,0))),\"\")","v":"Duplication"},{"$f":"INDEX(Disaggregation_1B!R$11:R$150,MATCH($C39,'Disaggregation1B_Import-Export'!$C$8:$C$239,0))","v":0},{"$f":"IFERROR(IF(INDEX(Disaggregation_1B!S$11:S$150,MATCH($C39,'Disaggregation1B_Import-Export'!$C$8:$C$239,0))=\"\",\"\",INDEX(Disaggregation_1B!S$11:S$150,MATCH($C39,'Disaggregation1B_Import-Export'!$C$8:$C$239,0))),\"\")","v":""},{"$f":"IFERROR(IF(INDEX(Disaggregation_1B!T$11:T$150,MATCH($C39,'Disaggregation1B_Import-Export'!$C$8:$C$239,0))=\"\",\"\",INDEX(Disaggregation_1B!T$11:T$150,MATCH($C39,'Disaggregation1B_Import-Export'!$C$8:$C$239,0))),\"\")","v":""},{"$f":"IFERROR(IF(INDEX(Disaggregation_1B!U$11:U$150,MATCH($C39,'Disaggregation1B_Import-Export'!$C$8:$C$239,0))=\"\",\"\",INDEX(Disaggregation_1B!U$11:U$150,MATCH($C39,'Disaggregation1B_Import-Export'!$C$8:$C$239,0))),\"\")","v":""},{"$f":"IFERROR(IF(INDEX(Disaggregation_1B!V$11:V$150,MATCH($C39,'Disaggregation1B_Import-Export'!$C$8:$C$239,0))=\"\",\"\",INDEX(Disaggregation_1B!V$11:V$150,MATCH($C39,'Disaggregation1B_Import-Export'!$C$8:$C$239,0))),\"\")","v":""},{"$f":"IFERROR(IF(INDEX(Disaggregation_1B!W$11:W$150,MATCH($C39,'Disaggregation1B_Import-Export'!$C$8:$C$239,0))=\"\",\"\",INDEX(Disaggregation_1B!W$11:W$150,MATCH($C39,'Disaggregation1B_Import-Export'!$C$8:$C$239,0))),\"\")","v":""},{"$f":"INDEX(Disaggregation_1B!X$11:X$150,MATCH($C39,'Disaggregation1B_Import-Export'!$C$8:$C$239,0))","v":0},null,null,null,{"$f":"INDEX(Disaggregation_1B!AB$11:AB$150,MATCH($C39,'Disaggregation1B_Import-Export'!$C$8:$C$239,0))","v":0},{"$f":"INDEX(Disaggregation_1B!AC$11:AC$150,MATCH($C39,'Disaggregation1B_Import-Export'!$C$8:$C$239,0))","v":0},12,"TCS-1(M): Pourcentage de personnes vivant avec le VIH bénéficiant actuellement d'un traitement antirétroviral","HSH","Groupe à risque cible","TCS-1(M): Porcentaje de personas que viven con el VIH  que actualmente reciben tratamiento antirretroviral","TCS-1(M): Pourcentage de personnes vivant avec le VIH bénéficiant actuellement d'un traitement antirétroviral","HSH","HSH","Grupo de riesgo objetivo","Groupe à risque cible","Désagregation non faite dans le Rapport annuel du PNLS de 2016",null,"Burundi"]
["a15360000095py1AAA",32,"Coverage32","Treatment, care and support","TCS-1(M): Percentage of people living with HIV currently receiving antiretroviral therapy","Male 20-24","Gender | Age",0,0,"0.0",null,null,"No disaggregation in the 2016 NACP Annual Report.  The Q4 2017 ART patient cohort audit will provide disaggregated information.",{"$f":"IFERROR(IF(INDEX(Disaggregation_1B!M$11:M$150,MATCH($C40,'Disaggregation1B_Import-Export'!$C$8:$C$239,0))=\"\",\"\",INDEX(Disaggregation_1B!M$11:M$150,MATCH($C40,'Disaggregation1B_Import-Export'!$C$8:$C$239,0))),\"\")","v":""},{"$f":"IFERROR(IF(INDEX(Disaggregation_1B!N$11:N$150,MATCH($C40,'Disaggregation1B_Import-Export'!$C$8:$C$239,0))=\"\",\"\",INDEX(Disaggregation_1B!N$11:N$150,MATCH($C40,'Disaggregation1B_Import-Export'!$C$8:$C$239,0))),\"\")","v":""},{"$f":"IFERROR(IF(INDEX(Disaggregation_1B!O$11:O$150,MATCH($C40,'Disaggregation1B_Import-Export'!$C$8:$C$239,0))=\"\",\"\",INDEX(Disaggregation_1B!O$11:O$150,MATCH($C40,'Disaggregation1B_Import-Export'!$C$8:$C$239,0))),\"\")","v":""},{"$f":"IFERROR(IF(INDEX(Disaggregation_1B!P$11:P$150,MATCH($C40,'Disaggregation1B_Import-Export'!$C$8:$C$239,0))=\"\",\"\",INDEX(Disaggregation_1B!P$11:P$150,MATCH($C40,'Disaggregation1B_Import-Export'!$C$8:$C$239,0))),\"\")","v":""},{"$f":"IFERROR(IF(INDEX(Disaggregation_1B!Q$11:Q$150,MATCH($C40,'Disaggregation1B_Import-Export'!$C$8:$C$239,0))=\"\",\"\",INDEX(Disaggregation_1B!Q$11:Q$150,MATCH($C40,'Disaggregation1B_Import-Export'!$C$8:$C$239,0))),\"\")","v":"Le système d'information sanitaire ne permet pas de renseigner cet indicateur désagrégé par tranche d'âge"},{"$f":"INDEX(Disaggregation_1B!R$11:R$150,MATCH($C40,'Disaggregation1B_Import-Export'!$C$8:$C$239,0))","v":0},{"$f":"IFERROR(IF(INDEX(Disaggregation_1B!S$11:S$150,MATCH($C40,'Disaggregation1B_Import-Export'!$C$8:$C$239,0))=\"\",\"\",INDEX(Disaggregation_1B!S$11:S$150,MATCH($C40,'Disaggregation1B_Import-Export'!$C$8:$C$239,0))),\"\")","v":""},{"$f":"IFERROR(IF(INDEX(Disaggregation_1B!T$11:T$150,MATCH($C40,'Disaggregation1B_Import-Export'!$C$8:$C$239,0))=\"\",\"\",INDEX(Disaggregation_1B!T$11:T$150,MATCH($C40,'Disaggregation1B_Import-Export'!$C$8:$C$239,0))),\"\")","v":""},{"$f":"IFERROR(IF(INDEX(Disaggregation_1B!U$11:U$150,MATCH($C40,'Disaggregation1B_Import-Export'!$C$8:$C$239,0))=\"\",\"\",INDEX(Disaggregation_1B!U$11:U$150,MATCH($C40,'Disaggregation1B_Import-Export'!$C$8:$C$239,0))),\"\")","v":""},{"$f":"IFERROR(IF(INDEX(Disaggregation_1B!V$11:V$150,MATCH($C40,'Disaggregation1B_Import-Export'!$C$8:$C$239,0))=\"\",\"\",INDEX(Disaggregation_1B!V$11:V$150,MATCH($C40,'Disaggregation1B_Import-Export'!$C$8:$C$239,0))),\"\")","v":""},{"$f":"IFERROR(IF(INDEX(Disaggregation_1B!W$11:W$150,MATCH($C40,'Disaggregation1B_Import-Export'!$C$8:$C$239,0))=\"\",\"\",INDEX(Disaggregation_1B!W$11:W$150,MATCH($C40,'Disaggregation1B_Import-Export'!$C$8:$C$239,0))),\"\")","v":""},{"$f":"INDEX(Disaggregation_1B!X$11:X$150,MATCH($C40,'Disaggregation1B_Import-Export'!$C$8:$C$239,0))","v":0},null,null,null,{"$f":"INDEX(Disaggregation_1B!AB$11:AB$150,MATCH($C40,'Disaggregation1B_Import-Export'!$C$8:$C$239,0))","v":0},{"$f":"INDEX(Disaggregation_1B!AC$11:AC$150,MATCH($C40,'Disaggregation1B_Import-Export'!$C$8:$C$239,0))","v":0},12,"TCS-1(M): Pourcentage de personnes vivant avec le VIH bénéficiant actuellement d'un traitement antirétroviral","Homme","Sexe","TCS-1(M): Porcentaje de personas que viven con el VIH  que actualmente reciben tratamiento antirretroviral","TCS-1(M): Pourcentage de personnes vivant avec le VIH bénéficiant actuellement d'un traitement antirétroviral","Hombres","Homme","Sexo","Sexe","Désagregation non faite dans le Rapport annuel du PNLS de 2016",null,"Burundi"]
["a15360000095py2AAA",33,"Coverage33","Treatment, care and support","TCS-1(M): Percentage of people living with HIV currently receiving antiretroviral therapy","15+","Age",48867,75204,"0.6","2016","PNLS Annual Report","This result comes from the 2016 NACP Annual Report, with a correction of the denominator (number of adults living with HIV monitored, rather than number of adults living with HIV as estimated by SPECTRUM).",{"$f":"IFERROR(IF(INDEX(Disaggregation_1B!M$11:M$150,MATCH($C41,'Disaggregation1B_Import-Export'!$C$8:$C$239,0))=\"\",\"\",INDEX(Disaggregation_1B!M$11:M$150,MATCH($C41,'Disaggregation1B_Import-Export'!$C$8:$C$239,0))),\"\")","v":""},{"$f":"IFERROR(IF(INDEX(Disaggregation_1B!N$11:N$150,MATCH($C41,'Disaggregation1B_Import-Export'!$C$8:$C$239,0))=\"\",\"\",INDEX(Disaggregation_1B!N$11:N$150,MATCH($C41,'Disaggregation1B_Import-Export'!$C$8:$C$239,0))),\"\")","v":""},{"$f":"IFERROR(IF(INDEX(Disaggregation_1B!O$11:O$150,MATCH($C41,'Disaggregation1B_Import-Export'!$C$8:$C$239,0))=\"\",\"\",INDEX(Disaggregation_1B!O$11:O$150,MATCH($C41,'Disaggregation1B_Import-Export'!$C$8:$C$239,0))),\"\")","v":""},{"$f":"IFERROR(IF(INDEX(Disaggregation_1B!P$11:P$150,MATCH($C41,'Disaggregation1B_Import-Export'!$C$8:$C$239,0))=\"\",\"\",INDEX(Disaggregation_1B!P$11:P$150,MATCH($C41,'Disaggregation1B_Import-Export'!$C$8:$C$239,0))),\"\")","v":""},{"$f":"IFERROR(IF(INDEX(Disaggregation_1B!Q$11:Q$150,MATCH($C41,'Disaggregation1B_Import-Export'!$C$8:$C$239,0))=\"\",\"\",INDEX(Disaggregation_1B!Q$11:Q$150,MATCH($C41,'Disaggregation1B_Import-Export'!$C$8:$C$239,0))),\"\")","v":"Duplication"},{"$f":"INDEX(Disaggregation_1B!R$11:R$150,MATCH($C41,'Disaggregation1B_Import-Export'!$C$8:$C$239,0))","v":0},{"$f":"IFERROR(IF(INDEX(Disaggregation_1B!S$11:S$150,MATCH($C41,'Disaggregation1B_Import-Export'!$C$8:$C$239,0))=\"\",\"\",INDEX(Disaggregation_1B!S$11:S$150,MATCH($C41,'Disaggregation1B_Import-Export'!$C$8:$C$239,0))),\"\")","v":""},{"$f":"IFERROR(IF(INDEX(Disaggregation_1B!T$11:T$150,MATCH($C41,'Disaggregation1B_Import-Export'!$C$8:$C$239,0))=\"\",\"\",INDEX(Disaggregation_1B!T$11:T$150,MATCH($C41,'Disaggregation1B_Import-Export'!$C$8:$C$239,0))),\"\")","v":""},{"$f":"IFERROR(IF(INDEX(Disaggregation_1B!U$11:U$150,MATCH($C41,'Disaggregation1B_Import-Export'!$C$8:$C$239,0))=\"\",\"\",INDEX(Disaggregation_1B!U$11:U$150,MATCH($C41,'Disaggregation1B_Import-Export'!$C$8:$C$239,0))),\"\")","v":""},{"$f":"IFERROR(IF(INDEX(Disaggregation_1B!V$11:V$150,MATCH($C41,'Disaggregation1B_Import-Export'!$C$8:$C$239,0))=\"\",\"\",INDEX(Disaggregation_1B!V$11:V$150,MATCH($C41,'Disaggregation1B_Import-Export'!$C$8:$C$239,0))),\"\")","v":""},{"$f":"IFERROR(IF(INDEX(Disaggregation_1B!W$11:W$150,MATCH($C41,'Disaggregation1B_Import-Export'!$C$8:$C$239,0))=\"\",\"\",INDEX(Disaggregation_1B!W$11:W$150,MATCH($C41,'Disaggregation1B_Import-Export'!$C$8:$C$239,0))),\"\")","v":""},{"$f":"INDEX(Disaggregation_1B!X$11:X$150,MATCH($C41,'Disaggregation1B_Import-Export'!$C$8:$C$239,0))","v":0},null,null,null,{"$f":"INDEX(Disaggregation_1B!AB$11:AB$150,MATCH($C41,'Disaggregation1B_Import-Export'!$C$8:$C$239,0))","v":0},{"$f":"INDEX(Disaggregation_1B!AC$11:AC$150,MATCH($C41,'Disaggregation1B_Import-Export'!$C$8:$C$239,0))","v":0},12,"TCS-1(M): Pourcentage de personnes vivant avec le VIH bénéficiant actuellement d'un traitement antirétroviral","+ de 15 ans","Age","TCS-1(M): Porcentaje de personas que viven con el VIH  que actualmente reciben tratamiento antirretroviral","TCS-1(M): Pourcentage de personnes vivant avec le VIH bénéficiant actuellement d'un traitement antirétroviral","15+","+ de 15 ans","Edad","Age","Ce resultat provient du Rapport annuel annuel du PNLS de 2016 avec une correction du dénominateur qui  avait pris en compte le nombre de PVVIH Adultes suivies et non le Nombre de PVVIH Adultes  estimé par Spectrum","Rapport annuel  PNLS","Burundi"]
["a15360000095py3AAA",34,"Coverage34","Treatment, care and support","TCS-1(M): Percentage of people living with HIV currently receiving antiretroviral therapy","Male 15-24","Gender | Age",0,0,"0.0",null,null,"No disaggregation in the 2016 NACP Annual Report.  Measures will be taken so that the data can be disaggregated by age.  The Q4 2017 ART patient cohort audit will provide disaggregated information.",{"$f":"IFERROR(IF(INDEX(Disaggregation_1B!M$11:M$150,MATCH($C42,'Disaggregation1B_Import-Export'!$C$8:$C$239,0))=\"\",\"\",INDEX(Disaggregation_1B!M$11:M$150,MATCH($C42,'Disaggregation1B_Import-Export'!$C$8:$C$239,0))),\"\")","v":""},{"$f":"IFERROR(IF(INDEX(Disaggregation_1B!N$11:N$150,MATCH($C42,'Disaggregation1B_Import-Export'!$C$8:$C$239,0))=\"\",\"\",INDEX(Disaggregation_1B!N$11:N$150,MATCH($C42,'Disaggregation1B_Import-Export'!$C$8:$C$239,0))),\"\")","v":""},{"$f":"IFERROR(IF(INDEX(Disaggregation_1B!O$11:O$150,MATCH($C42,'Disaggregation1B_Import-Export'!$C$8:$C$239,0))=\"\",\"\",INDEX(Disaggregation_1B!O$11:O$150,MATCH($C42,'Disaggregation1B_Import-Export'!$C$8:$C$239,0))),\"\")","v":""},{"$f":"IFERROR(IF(INDEX(Disaggregation_1B!P$11:P$150,MATCH($C42,'Disaggregation1B_Import-Export'!$C$8:$C$239,0))=\"\",\"\",INDEX(Disaggregation_1B!P$11:P$150,MATCH($C42,'Disaggregation1B_Import-Export'!$C$8:$C$239,0))),\"\")","v":""},{"$f":"IFERROR(IF(INDEX(Disaggregation_1B!Q$11:Q$150,MATCH($C42,'Disaggregation1B_Import-Export'!$C$8:$C$239,0))=\"\",\"\",INDEX(Disaggregation_1B!Q$11:Q$150,MATCH($C42,'Disaggregation1B_Import-Export'!$C$8:$C$239,0))),\"\")","v":"Duplication"},{"$f":"INDEX(Disaggregation_1B!R$11:R$150,MATCH($C42,'Disaggregation1B_Import-Export'!$C$8:$C$239,0))","v":0},{"$f":"IFERROR(IF(INDEX(Disaggregation_1B!S$11:S$150,MATCH($C42,'Disaggregation1B_Import-Export'!$C$8:$C$239,0))=\"\",\"\",INDEX(Disaggregation_1B!S$11:S$150,MATCH($C42,'Disaggregation1B_Import-Export'!$C$8:$C$239,0))),\"\")","v":""},{"$f":"IFERROR(IF(INDEX(Disaggregation_1B!T$11:T$150,MATCH($C42,'Disaggregation1B_Import-Export'!$C$8:$C$239,0))=\"\",\"\",INDEX(Disaggregation_1B!T$11:T$150,MATCH($C42,'Disaggregation1B_Import-Export'!$C$8:$C$239,0))),\"\")","v":""},{"$f":"IFERROR(IF(INDEX(Disaggregation_1B!U$11:U$150,MATCH($C42,'Disaggregation1B_Import-Export'!$C$8:$C$239,0))=\"\",\"\",INDEX(Disaggregation_1B!U$11:U$150,MATCH($C42,'Disaggregation1B_Import-Export'!$C$8:$C$239,0))),\"\")","v":""},{"$f":"IFERROR(IF(INDEX(Disaggregation_1B!V$11:V$150,MATCH($C42,'Disaggregation1B_Import-Export'!$C$8:$C$239,0))=\"\",\"\",INDEX(Disaggregation_1B!V$11:V$150,MATCH($C42,'Disaggregation1B_Import-Export'!$C$8:$C$239,0))),\"\")","v":""},{"$f":"IFERROR(IF(INDEX(Disaggregation_1B!W$11:W$150,MATCH($C42,'Disaggregation1B_Import-Export'!$C$8:$C$239,0))=\"\",\"\",INDEX(Disaggregation_1B!W$11:W$150,MATCH($C42,'Disaggregation1B_Import-Export'!$C$8:$C$239,0))),\"\")","v":""},{"$f":"INDEX(Disaggregation_1B!X$11:X$150,MATCH($C42,'Disaggregation1B_Import-Export'!$C$8:$C$239,0))","v":0},null,null,null,{"$f":"INDEX(Disaggregation_1B!AB$11:AB$150,MATCH($C42,'Disaggregation1B_Import-Export'!$C$8:$C$239,0))","v":0},{"$f":"INDEX(Disaggregation_1B!AC$11:AC$150,MATCH($C42,'Disaggregation1B_Import-Export'!$C$8:$C$239,0))","v":0},12,"TCS-1(M): Pourcentage de personnes vivant avec le VIH bénéficiant actuellement d'un traitement antirétroviral","Homme","Sexe","TCS-1(M): Porcentaje de personas que viven con el VIH  que actualmente reciben tratamiento antirretroviral","TCS-1(M): Pourcentage de personnes vivant avec le VIH bénéficiant actuellement d'un traitement antirétroviral","Hombres","Homme","Sexo","Sexe","Désagregation non faite dans le Rapport annuel du PNLS de 2016",null,"Burundi"]
["a15360000095py4AAA",35,"Coverage35","Treatment, care and support","TCS-1(M): Percentage of people living with HIV currently receiving antiretroviral therapy","Male 15-19","Gender | Age",0,0,"0.0",null,null,"No disaggregation in the 2016 NACP Annual Report.  The Q4 2017 ART patient cohort audit will provide disaggregated information.",{"$f":"IFERROR(IF(INDEX(Disaggregation_1B!M$11:M$150,MATCH($C43,'Disaggregation1B_Import-Export'!$C$8:$C$239,0))=\"\",\"\",INDEX(Disaggregation_1B!M$11:M$150,MATCH($C43,'Disaggregation1B_Import-Export'!$C$8:$C$239,0))),\"\")","v":5984},{"$f":"IFERROR(IF(INDEX(Disaggregation_1B!N$11:N$150,MATCH($C43,'Disaggregation1B_Import-Export'!$C$8:$C$239,0))=\"\",\"\",INDEX(Disaggregation_1B!N$11:N$150,MATCH($C43,'Disaggregation1B_Import-Export'!$C$8:$C$239,0))),\"\")","v":""},{"$f":"IFERROR(IF(INDEX(Disaggregation_1B!O$11:O$150,MATCH($C43,'Disaggregation1B_Import-Export'!$C$8:$C$239,0))=\"\",\"\",INDEX(Disaggregation_1B!O$11:O$150,MATCH($C43,'Disaggregation1B_Import-Export'!$C$8:$C$239,0))),\"\")","v":""},{"$f":"IFERROR(IF(INDEX(Disaggregation_1B!P$11:P$150,MATCH($C43,'Disaggregation1B_Import-Export'!$C$8:$C$239,0))=\"\",\"\",INDEX(Disaggregation_1B!P$11:P$150,MATCH($C43,'Disaggregation1B_Import-Export'!$C$8:$C$239,0))),\"\")","v":""},{"$f":"IFERROR(IF(INDEX(Disaggregation_1B!Q$11:Q$150,MATCH($C43,'Disaggregation1B_Import-Export'!$C$8:$C$239,0))=\"\",\"\",INDEX(Disaggregation_1B!Q$11:Q$150,MATCH($C43,'Disaggregation1B_Import-Export'!$C$8:$C$239,0))),\"\")","v":"Sur 951074 cas dépistés et ayant récupéré les résultats, 5984 cas se sont révélés séropositifs au VIH soit 0.6%.  \n7432 sont des tests dont les résultats sont indéterminés"},{"$f":"INDEX(Disaggregation_1B!R$11:R$150,MATCH($C43,'Disaggregation1B_Import-Export'!$C$8:$C$239,0))","v":0},{"$f":"IFERROR(IF(INDEX(Disaggregation_1B!S$11:S$150,MATCH($C43,'Disaggregation1B_Import-Export'!$C$8:$C$239,0))=\"\",\"\",INDEX(Disaggregation_1B!S$11:S$150,MATCH($C43,'Disaggregation1B_Import-Export'!$C$8:$C$239,0))),\"\")","v":""},{"$f":"IFERROR(IF(INDEX(Disaggregation_1B!T$11:T$150,MATCH($C43,'Disaggregation1B_Import-Export'!$C$8:$C$239,0))=\"\",\"\",INDEX(Disaggregation_1B!T$11:T$150,MATCH($C43,'Disaggregation1B_Import-Export'!$C$8:$C$239,0))),\"\")","v":""},{"$f":"IFERROR(IF(INDEX(Disaggregation_1B!U$11:U$150,MATCH($C43,'Disaggregation1B_Import-Export'!$C$8:$C$239,0))=\"\",\"\",INDEX(Disaggregation_1B!U$11:U$150,MATCH($C43,'Disaggregation1B_Import-Export'!$C$8:$C$239,0))),\"\")","v":""},{"$f":"IFERROR(IF(INDEX(Disaggregation_1B!V$11:V$150,MATCH($C43,'Disaggregation1B_Import-Export'!$C$8:$C$239,0))=\"\",\"\",INDEX(Disaggregation_1B!V$11:V$150,MATCH($C43,'Disaggregation1B_Import-Export'!$C$8:$C$239,0))),\"\")","v":""},{"$f":"IFERROR(IF(INDEX(Disaggregation_1B!W$11:W$150,MATCH($C43,'Disaggregation1B_Import-Export'!$C$8:$C$239,0))=\"\",\"\",INDEX(Disaggregation_1B!W$11:W$150,MATCH($C43,'Disaggregation1B_Import-Export'!$C$8:$C$239,0))),\"\")","v":""},{"$f":"INDEX(Disaggregation_1B!X$11:X$150,MATCH($C43,'Disaggregation1B_Import-Export'!$C$8:$C$239,0))","v":0},null,null,null,{"$f":"INDEX(Disaggregation_1B!AB$11:AB$150,MATCH($C43,'Disaggregation1B_Import-Export'!$C$8:$C$239,0))","v":0},{"$f":"INDEX(Disaggregation_1B!AC$11:AC$150,MATCH($C43,'Disaggregation1B_Import-Export'!$C$8:$C$239,0))","v":0},12,"TCS-1(M): Pourcentage de personnes vivant avec le VIH bénéficiant actuellement d'un traitement antirétroviral","Homme","Sexe","TCS-1(M): Porcentaje de personas que viven con el VIH  que actualmente reciben tratamiento antirretroviral","TCS-1(M): Pourcentage de personnes vivant avec le VIH bénéficiant actuellement d'un traitement antirétroviral","Hombres","Homme","Sexo","Sexe","Désagregation non faite dans le Rapport annuel du PNLS de 2016",null,"Burundi"]
["a15360000095pyyAAA",36,"Coverage36","HIV Testing Services","HTS-1: Number of people who were tested for HIV and received their results during the reporting period","Positive","HIV test status",15371,1528625,"0.0","2016","2016 Annual Report","The HIV test positivity rate in 2016 was 1.01 percent (cumulative data from the 18 provinces).",{"$f":"IFERROR(IF(INDEX(Disaggregation_1B!M$11:M$150,MATCH($C44,'Disaggregation1B_Import-Export'!$C$8:$C$239,0))=\"\",\"\",INDEX(Disaggregation_1B!M$11:M$150,MATCH($C44,'Disaggregation1B_Import-Export'!$C$8:$C$239,0))),\"\")","v":623814},{"$f":"IFERROR(IF(INDEX(Disaggregation_1B!N$11:N$150,MATCH($C44,'Disaggregation1B_Import-Export'!$C$8:$C$239,0))=\"\",\"\",INDEX(Disaggregation_1B!N$11:N$150,MATCH($C44,'Disaggregation1B_Import-Export'!$C$8:$C$239,0))),\"\")","v":""},{"$f":"IFERROR(IF(INDEX(Disaggregation_1B!O$11:O$150,MATCH($C44,'Disaggregation1B_Import-Export'!$C$8:$C$239,0))=\"\",\"\",INDEX(Disaggregation_1B!O$11:O$150,MATCH($C44,'Disaggregation1B_Import-Export'!$C$8:$C$239,0))),\"\")","v":""},{"$f":"IFERROR(IF(INDEX(Disaggregation_1B!P$11:P$150,MATCH($C44,'Disaggregation1B_Import-Export'!$C$8:$C$239,0))=\"\",\"\",INDEX(Disaggregation_1B!P$11:P$150,MATCH($C44,'Disaggregation1B_Import-Export'!$C$8:$C$239,0))),\"\")","v":""},{"$f":"IFERROR(IF(INDEX(Disaggregation_1B!Q$11:Q$150,MATCH($C44,'Disaggregation1B_Import-Export'!$C$8:$C$239,0))=\"\",\"\",INDEX(Disaggregation_1B!Q$11:Q$150,MATCH($C44,'Disaggregation1B_Import-Export'!$C$8:$C$239,0))),\"\")","v":"Sur 938645 cas dépistés et ayant récupéré les résultats, 623 814 étaient des femmes soit 66.4%"},{"$f":"INDEX(Disaggregation_1B!R$11:R$150,MATCH($C44,'Disaggregation1B_Import-Export'!$C$8:$C$239,0))","v":0},{"$f":"IFERROR(IF(INDEX(Disaggregation_1B!S$11:S$150,MATCH($C44,'Disaggregation1B_Import-Export'!$C$8:$C$239,0))=\"\",\"\",INDEX(Disaggregation_1B!S$11:S$150,MATCH($C44,'Disaggregation1B_Import-Export'!$C$8:$C$239,0))),\"\")","v":""},{"$f":"IFERROR(IF(INDEX(Disaggregation_1B!T$11:T$150,MATCH($C44,'Disaggregation1B_Import-Export'!$C$8:$C$239,0))=\"\",\"\",INDEX(Disaggregation_1B!T$11:T$150,MATCH($C44,'Disaggregation1B_Import-Export'!$C$8:$C$239,0))),\"\")","v":""},{"$f":"IFERROR(IF(INDEX(Disaggregation_1B!U$11:U$150,MATCH($C44,'Disaggregation1B_Import-Export'!$C$8:$C$239,0))=\"\",\"\",INDEX(Disaggregation_1B!U$11:U$150,MATCH($C44,'Disaggregation1B_Import-Export'!$C$8:$C$239,0))),\"\")","v":""},{"$f":"IFERROR(IF(INDEX(Disaggregation_1B!V$11:V$150,MATCH($C44,'Disaggregation1B_Import-Export'!$C$8:$C$239,0))=\"\",\"\",INDEX(Disaggregation_1B!V$11:V$150,MATCH($C44,'Disaggregation1B_Import-Export'!$C$8:$C$239,0))),\"\")","v":""},{"$f":"IFERROR(IF(INDEX(Disaggregation_1B!W$11:W$150,MATCH($C44,'Disaggregation1B_Import-Export'!$C$8:$C$239,0))=\"\",\"\",INDEX(Disaggregation_1B!W$11:W$150,MATCH($C44,'Disaggregation1B_Import-Export'!$C$8:$C$239,0))),\"\")","v":""},{"$f":"INDEX(Disaggregation_1B!X$11:X$150,MATCH($C44,'Disaggregation1B_Import-Export'!$C$8:$C$239,0))","v":0},null,null,null,{"$f":"INDEX(Disaggregation_1B!AB$11:AB$150,MATCH($C44,'Disaggregation1B_Import-Export'!$C$8:$C$239,0))","v":0},{"$f":"INDEX(Disaggregation_1B!AC$11:AC$150,MATCH($C44,'Disaggregation1B_Import-Export'!$C$8:$C$239,0))","v":0},20,"HTS-1: Nombre de personnes dépistées pour le VIH et ayant reçu leurs résultats durant la période de rapportage","Positif","Résultat du test VIH","HTS-1: Número de personas que fueron tamizadas para VIH y recibieron sus resultados durante el periodo de reporte","HTS-1: Nombre de personnes dépistées pour le VIH et ayant reçu leurs résultats durant la période de rapportage","Positivo","Positif","Resultado de prueba del VIH","Résultat du test VIH","Taux de séropositivité au test VIH est de 1,01%  en 2016  ( données cumulatives des  18 provinces","Rapport annuel  PNLS","Burundi"]
["a15360000095pyzAAA",37,"Coverage37","HIV Testing Services","HTS-1: Number of people who were tested for HIV and received their results during the reporting period","Female","Gender",0,0,"0.0",null,null,"Annual figures on HIV testing in 2016 were not disaggregated by gender.  Measures will be taken so that the data can be disaggregated by gender.",{"$f":"IFERROR(IF(INDEX(Disaggregation_1B!M$11:M$150,MATCH($C45,'Disaggregation1B_Import-Export'!$C$8:$C$239,0))=\"\",\"\",INDEX(Disaggregation_1B!M$11:M$150,MATCH($C45,'Disaggregation1B_Import-Export'!$C$8:$C$239,0))),\"\")","v":314831},{"$f":"IFERROR(IF(INDEX(Disaggregation_1B!N$11:N$150,MATCH($C45,'Disaggregation1B_Import-Export'!$C$8:$C$239,0))=\"\",\"\",INDEX(Disaggregation_1B!N$11:N$150,MATCH($C45,'Disaggregation1B_Import-Export'!$C$8:$C$239,0))),\"\")","v":""},{"$f":"IFERROR(IF(INDEX(Disaggregation_1B!O$11:O$150,MATCH($C45,'Disaggregation1B_Import-Export'!$C$8:$C$239,0))=\"\",\"\",INDEX(Disaggregation_1B!O$11:O$150,MATCH($C45,'Disaggregation1B_Import-Export'!$C$8:$C$239,0))),\"\")","v":""},{"$f":"IFERROR(IF(INDEX(Disaggregation_1B!P$11:P$150,MATCH($C45,'Disaggregation1B_Import-Export'!$C$8:$C$239,0))=\"\",\"\",INDEX(Disaggregation_1B!P$11:P$150,MATCH($C45,'Disaggregation1B_Import-Export'!$C$8:$C$239,0))),\"\")","v":""},{"$f":"IFERROR(IF(INDEX(Disaggregation_1B!Q$11:Q$150,MATCH($C45,'Disaggregation1B_Import-Export'!$C$8:$C$239,0))=\"\",\"\",INDEX(Disaggregation_1B!Q$11:Q$150,MATCH($C45,'Disaggregation1B_Import-Export'!$C$8:$C$239,0))),\"\")","v":"Sur 938645 cas dépistés et ayant récupéré les résultats, 314831 étaient des hommes soit 33.54%"},{"$f":"INDEX(Disaggregation_1B!R$11:R$150,MATCH($C45,'Disaggregation1B_Import-Export'!$C$8:$C$239,0))","v":0},{"$f":"IFERROR(IF(INDEX(Disaggregation_1B!S$11:S$150,MATCH($C45,'Disaggregation1B_Import-Export'!$C$8:$C$239,0))=\"\",\"\",INDEX(Disaggregation_1B!S$11:S$150,MATCH($C45,'Disaggregation1B_Import-Export'!$C$8:$C$239,0))),\"\")","v":""},{"$f":"IFERROR(IF(INDEX(Disaggregation_1B!T$11:T$150,MATCH($C45,'Disaggregation1B_Import-Export'!$C$8:$C$239,0))=\"\",\"\",INDEX(Disaggregation_1B!T$11:T$150,MATCH($C45,'Disaggregation1B_Import-Export'!$C$8:$C$239,0))),\"\")","v":""},{"$f":"IFERROR(IF(INDEX(Disaggregation_1B!U$11:U$150,MATCH($C45,'Disaggregation1B_Import-Export'!$C$8:$C$239,0))=\"\",\"\",INDEX(Disaggregation_1B!U$11:U$150,MATCH($C45,'Disaggregation1B_Import-Export'!$C$8:$C$239,0))),\"\")","v":""},{"$f":"IFERROR(IF(INDEX(Disaggregation_1B!V$11:V$150,MATCH($C45,'Disaggregation1B_Import-Export'!$C$8:$C$239,0))=\"\",\"\",INDEX(Disaggregation_1B!V$11:V$150,MATCH($C45,'Disaggregation1B_Import-Export'!$C$8:$C$239,0))),\"\")","v":""},{"$f":"IFERROR(IF(INDEX(Disaggregation_1B!W$11:W$150,MATCH($C45,'Disaggregation1B_Import-Export'!$C$8:$C$239,0))=\"\",\"\",INDEX(Disaggregation_1B!W$11:W$150,MATCH($C45,'Disaggregation1B_Import-Export'!$C$8:$C$239,0))),\"\")","v":""},{"$f":"INDEX(Disaggregation_1B!X$11:X$150,MATCH($C45,'Disaggregation1B_Import-Export'!$C$8:$C$239,0))","v":0},null,null,null,{"$f":"INDEX(Disaggregation_1B!AB$11:AB$150,MATCH($C45,'Disaggregation1B_Import-Export'!$C$8:$C$239,0))","v":0},{"$f":"INDEX(Disaggregation_1B!AC$11:AC$150,MATCH($C45,'Disaggregation1B_Import-Export'!$C$8:$C$239,0))","v":0},20,"HTS-1: Nombre de personnes dépistées pour le VIH et ayant reçu leurs résultats durant la période de rapportage","Femme","Sexe","HTS-1: Número de personas que fueron tamizadas para VIH y recibieron sus resultados durante el periodo de reporte","HTS-1: Nombre de personnes dépistées pour le VIH et ayant reçu leurs résultats durant la période de rapportage","Mujeres","Femme","Sexo","Sexe","Pas de désagreagtion en fonction du sexe des données annuelles portant sur le Test VIH  en 2016.  Le PNLS prendra des mesures pour le permettre (chronogramme à déterminer).",null,"Burundi"]
["a15360000095pz0AAA",38,"Coverage38","HIV Testing Services","HTS-1: Number of people who were tested for HIV and received their results during the reporting period","Male","Gender",0,0,"0.0",null,null,"Annual figures on HIV testing in 2016 were not disaggregated by gender.  Measures will be taken so that the data can be disaggregated by gender.",{"$f":"IFERROR(IF(INDEX(Disaggregation_1B!M$11:M$150,MATCH($C46,'Disaggregation1B_Import-Export'!$C$8:$C$239,0))=\"\",\"\",INDEX(Disaggregation_1B!M$11:M$150,MATCH($C46,'Disaggregation1B_Import-Export'!$C$8:$C$239,0))),\"\")","v":925229},{"$f":"IFERROR(IF(INDEX(Disaggregation_1B!N$11:N$150,MATCH($C46,'Disaggregation1B_Import-Export'!$C$8:$C$239,0))=\"\",\"\",INDEX(Disaggregation_1B!N$11:N$150,MATCH($C46,'Disaggregation1B_Import-Export'!$C$8:$C$239,0))),\"\")","v":""},{"$f":"IFERROR(IF(INDEX(Disaggregation_1B!O$11:O$150,MATCH($C46,'Disaggregation1B_Import-Export'!$C$8:$C$239,0))=\"\",\"\",INDEX(Disaggregation_1B!O$11:O$150,MATCH($C46,'Disaggregation1B_Import-Export'!$C$8:$C$239,0))),\"\")","v":""},{"$f":"IFERROR(IF(INDEX(Disaggregation_1B!P$11:P$150,MATCH($C46,'Disaggregation1B_Import-Export'!$C$8:$C$239,0))=\"\",\"\",INDEX(Disaggregation_1B!P$11:P$150,MATCH($C46,'Disaggregation1B_Import-Export'!$C$8:$C$239,0))),\"\")","v":""},{"$f":"IFERROR(IF(INDEX(Disaggregation_1B!Q$11:Q$150,MATCH($C46,'Disaggregation1B_Import-Export'!$C$8:$C$239,0))=\"\",\"\",INDEX(Disaggregation_1B!Q$11:Q$150,MATCH($C46,'Disaggregation1B_Import-Export'!$C$8:$C$239,0))),\"\")","v":"7432 D’indeterminé non compris"},{"$f":"INDEX(Disaggregation_1B!R$11:R$150,MATCH($C46,'Disaggregation1B_Import-Export'!$C$8:$C$239,0))","v":0},{"$f":"IFERROR(IF(INDEX(Disaggregation_1B!S$11:S$150,MATCH($C46,'Disaggregation1B_Import-Export'!$C$8:$C$239,0))=\"\",\"\",INDEX(Disaggregation_1B!S$11:S$150,MATCH($C46,'Disaggregation1B_Import-Export'!$C$8:$C$239,0))),\"\")","v":""},{"$f":"IFERROR(IF(INDEX(Disaggregation_1B!T$11:T$150,MATCH($C46,'Disaggregation1B_Import-Export'!$C$8:$C$239,0))=\"\",\"\",INDEX(Disaggregation_1B!T$11:T$150,MATCH($C46,'Disaggregation1B_Import-Export'!$C$8:$C$239,0))),\"\")","v":""},{"$f":"IFERROR(IF(INDEX(Disaggregation_1B!U$11:U$150,MATCH($C46,'Disaggregation1B_Import-Export'!$C$8:$C$239,0))=\"\",\"\",INDEX(Disaggregation_1B!U$11:U$150,MATCH($C46,'Disaggregation1B_Import-Export'!$C$8:$C$239,0))),\"\")","v":""},{"$f":"IFERROR(IF(INDEX(Disaggregation_1B!V$11:V$150,MATCH($C46,'Disaggregation1B_Import-Export'!$C$8:$C$239,0))=\"\",\"\",INDEX(Disaggregation_1B!V$11:V$150,MATCH($C46,'Disaggregation1B_Import-Export'!$C$8:$C$239,0))),\"\")","v":""},{"$f":"IFERROR(IF(INDEX(Disaggregation_1B!W$11:W$150,MATCH($C46,'Disaggregation1B_Import-Export'!$C$8:$C$239,0))=\"\",\"\",INDEX(Disaggregation_1B!W$11:W$150,MATCH($C46,'Disaggregation1B_Import-Export'!$C$8:$C$239,0))),\"\")","v":""},{"$f":"INDEX(Disaggregation_1B!X$11:X$150,MATCH($C46,'Disaggregation1B_Import-Export'!$C$8:$C$239,0))","v":0},null,null,null,{"$f":"INDEX(Disaggregation_1B!AB$11:AB$150,MATCH($C46,'Disaggregation1B_Import-Export'!$C$8:$C$239,0))","v":0},{"$f":"INDEX(Disaggregation_1B!AC$11:AC$150,MATCH($C46,'Disaggregation1B_Import-Export'!$C$8:$C$239,0))","v":0},20,"HTS-1: Nombre de personnes dépistées pour le VIH et ayant reçu leurs résultats durant la période de rapportage","Homme","Sexe","HTS-1: Número de personas que fueron tamizadas para VIH y recibieron sus resultados durante el periodo de reporte","HTS-1: Nombre de personnes dépistées pour le VIH et ayant reçu leurs résultats durant la période de rapportage","Hombres","Homme","Sexo","Sexe","Pas de désagreagtion en fonction du sexe des données annuelles portant sur le Test VIH  en 2016.  Le PNLS prendra des mesures pour le permettre (chronogramme à déterminer).",null,"Burundi"]
["a15360000095pz1AAA",39,"Coverage39","HIV Testing Services","HTS-1: Number of people who were tested for HIV and received their results during the reporting period","Negative","HIV test status",1513254,1528625,"1.0","2016","2016 Annual Report","Cumulative data on negative HIV tests in the country’s 18 provinces in 2016.",{"$f":"IFERROR(IF(INDEX(Disaggregation_1B!M$11:M$150,MATCH($C47,'Disaggregation1B_Import-Export'!$C$8:$C$239,0))=\"\",\"\",INDEX(Disaggregation_1B!M$11:M$150,MATCH($C47,'Disaggregation1B_Import-Export'!$C$8:$C$239,0))),\"\")","v":""},{"$f":"IFERROR(IF(INDEX(Disaggregation_1B!N$11:N$150,MATCH($C47,'Disaggregation1B_Import-Export'!$C$8:$C$239,0))=\"\",\"\",INDEX(Disaggregation_1B!N$11:N$150,MATCH($C47,'Disaggregation1B_Import-Export'!$C$8:$C$239,0))),\"\")","v":""},{"$f":"IFERROR(IF(INDEX(Disaggregation_1B!O$11:O$150,MATCH($C47,'Disaggregation1B_Import-Export'!$C$8:$C$239,0))=\"\",\"\",INDEX(Disaggregation_1B!O$11:O$150,MATCH($C47,'Disaggregation1B_Import-Export'!$C$8:$C$239,0))),\"\")","v":""},{"$f":"IFERROR(IF(INDEX(Disaggregation_1B!P$11:P$150,MATCH($C47,'Disaggregation1B_Import-Export'!$C$8:$C$239,0))=\"\",\"\",INDEX(Disaggregation_1B!P$11:P$150,MATCH($C47,'Disaggregation1B_Import-Export'!$C$8:$C$239,0))),\"\")","v":""},{"$f":"IFERROR(IF(INDEX(Disaggregation_1B!Q$11:Q$150,MATCH($C47,'Disaggregation1B_Import-Export'!$C$8:$C$239,0))=\"\",\"\",INDEX(Disaggregation_1B!Q$11:Q$150,MATCH($C47,'Disaggregation1B_Import-Export'!$C$8:$C$239,0))),\"\")","v":""},{"$f":"INDEX(Disaggregation_1B!R$11:R$150,MATCH($C47,'Disaggregation1B_Import-Export'!$C$8:$C$239,0))","v":0},{"$f":"IFERROR(IF(INDEX(Disaggregation_1B!S$11:S$150,MATCH($C47,'Disaggregation1B_Import-Export'!$C$8:$C$239,0))=\"\",\"\",INDEX(Disaggregation_1B!S$11:S$150,MATCH($C47,'Disaggregation1B_Import-Export'!$C$8:$C$239,0))),\"\")","v":""},{"$f":"IFERROR(IF(INDEX(Disaggregation_1B!T$11:T$150,MATCH($C47,'Disaggregation1B_Import-Export'!$C$8:$C$239,0))=\"\",\"\",INDEX(Disaggregation_1B!T$11:T$150,MATCH($C47,'Disaggregation1B_Import-Export'!$C$8:$C$239,0))),\"\")","v":""},{"$f":"IFERROR(IF(INDEX(Disaggregation_1B!U$11:U$150,MATCH($C47,'Disaggregation1B_Import-Export'!$C$8:$C$239,0))=\"\",\"\",INDEX(Disaggregation_1B!U$11:U$150,MATCH($C47,'Disaggregation1B_Import-Export'!$C$8:$C$239,0))),\"\")","v":""},{"$f":"IFERROR(IF(INDEX(Disaggregation_1B!V$11:V$150,MATCH($C47,'Disaggregation1B_Import-Export'!$C$8:$C$239,0))=\"\",\"\",INDEX(Disaggregation_1B!V$11:V$150,MATCH($C47,'Disaggregation1B_Import-Export'!$C$8:$C$239,0))),\"\")","v":""},{"$f":"IFERROR(IF(INDEX(Disaggregation_1B!W$11:W$150,MATCH($C47,'Disaggregation1B_Import-Export'!$C$8:$C$239,0))=\"\",\"\",INDEX(Disaggregation_1B!W$11:W$150,MATCH($C47,'Disaggregation1B_Import-Export'!$C$8:$C$239,0))),\"\")","v":""},{"$f":"INDEX(Disaggregation_1B!X$11:X$150,MATCH($C47,'Disaggregation1B_Import-Export'!$C$8:$C$239,0))","v":0},null,null,null,{"$f":"INDEX(Disaggregation_1B!AB$11:AB$150,MATCH($C47,'Disaggregation1B_Import-Export'!$C$8:$C$239,0))","v":0},{"$f":"INDEX(Disaggregation_1B!AC$11:AC$150,MATCH($C47,'Disaggregation1B_Import-Export'!$C$8:$C$239,0))","v":0},20,"HTS-1: Nombre de personnes dépistées pour le VIH et ayant reçu leurs résultats durant la période de rapportage","Négatif","Résultat du test VIH","HTS-1: Número de personas que fueron tamizadas para VIH y recibieron sus resultados durante el periodo de reporte","HTS-1: Nombre de personnes dépistées pour le VIH et ayant reçu leurs résultats durant la période de rapportage","Negativo","Négatif","Resultado de prueba del VIH","Résultat du test VIH","Données cumulées des tests VIH négatifs dans les 18 provinces du pays  en 2016","Rapport annuel  PNLS","Burundi"]

{"sheet":"WPTM_1C","index":13,"n_rows":51,"n_cols":18,"rows_kept":51,"cut":false,"hidden":false,"merged":[[4,2,4,14],[8,2,9,2],[8,3,9,3],[8,4,9,4],[8,5,9,5],[8,6,9,6],[8,7,9,7],[8,8,9,8],[8,9,9,9],[8,16,9,16],[8,17,9,17],[8,10,9,10],[8,11,9,11],[8,12,9,12],[8,13,9,13],[8,14,9,14],[8,15,9,15]]}
[null,null,"Progress Report with Disbursement Request"]
[]
[null,null,"Section 1:  Programmatic Information"]
[]
[null,null,"• Guidance: The table contains those Workplan Tracking Measures that are:\n1. Included in the Grant Confirmation/Agreement through the latest signed Performance Framework\n2. Are due for reporting in the current reporting period;"]
[]
[null,null,"C- Workplan Tracking Measures"]
[]
[null,null,{"$f":"VLOOKUP(Translations!B144,Translations!B3:H508,4,0)","v":"Module"},{"$f":"VLOOKUP(Translations!B145,Translations!B3:H508,4,0)","v":"Intervention"},{"$f":"VLOOKUP(Translations!B146,Translations!B3:H508,4,0)","v":"Activité"},{"$f":"VLOOKUP(Translations!B147,Translations!B3:H508,4,0)","v":"Détails de l'activité- étapes clés/cibles"},{"$f":"VLOOKUP(Translations!B148,Translations!B3:H508,4,0)","v":"Critère de réalisation"},{"$f":"VLOOKUP(Translations!B149,Translations!B3:H508,4,0)","v":"Étapes clés/cible pour la période actuelle"},{"$f":"VLOOKUP(Translations!B150,Translations!B3:H508,4,0)","v":"Pays (pour les subventions multipays)"},{"$f":"VLOOKUP(Translations!B151,Translations!B3:H508,4,0)","v":"Note"},{"$f":"VLOOKUP(Translations!B152,Translations!B3:H508,4,0)","v":"Motifs de l'écart par rapport aux activités et étapes clés du plan de travail"},{"$f":"VLOOKUP(Translations!B153,Translations!B3:H508,4,0)","v":"Progress Status"},"Progress Status","Verified Score","LFA analysis of progress and any variance between targets and results, and any other comments\n(this should not be a “Copy and Paste” of the reasons provided by the PR)","Global Fund Validated Progress Status","Global Fund Validated Score","Country Team comments on validated results"]
[]
[{"$f":"A10+1","v":1},{"$f":"\"WPTM\"&A11","v":"WPTM1"},{"$f":"IFERROR(INDEX('WPTM_1C  Import-Export'!Z$8:Z201,MATCH($B11,'WPTM_1C  Import-Export'!$C$8:$C$201,0)),\"\")","v":"Programmes de prévention complets destinés aux consommateurs de drogues injectables et à leurs partenaires"},{"$f":"IFERROR(IF(INDEX('WPTM_1C  Import-Export'!E$8:E201,MATCH($B11,'WPTM_1C  Import-Export'!$C$8:$C$201,0))=\"\",\"\",INDEX('WPTM_1C  Import-Export'!E$8:E201,MATCH($B11,'WPTM_1C  Import-Export'!$C$8:$C$201,0))),\"\")","v":"Interventions pour le changement de comportement ciblant les consommateurs de drogues injectables"},{"$f":"IFERROR(IF(INDEX('WPTM_1C  Import-Export'!F$8:F201,MATCH($B11,'WPTM_1C  Import-Export'!$C$8:$C$201,0))=\"\",\"\",INDEX('WPTM_1C  Import-Export'!F$8:F201,MATCH($B11,'WPTM_1C  Import-Export'!$C$8:$C$201,0))),\"\")","v":""},{"$f":"IFERROR(IF(INDEX('WPTM_1C  Import-Export'!AA$8:AA201,MATCH($B11,'WPTM_1C  Import-Export'!$C$8:$C$201,0))=\"\",\"\",INDEX('WPTM_1C  Import-Export'!AA$8:AA201,MATCH($B11,'WPTM_1C  Import-Export'!$C$8:$C$201,0))),\"\")","v":"- Formations des pairs éducateurs (30) pour atteindre 400-478 UDI chaque année.\n- Création de 2 centres de convivialité pilotes à Gitega et Bujumbura; et\n- Recrutement des conseillers pour les centres de convivialité."},{"$f":"IFERROR(IF(INDEX('WPTM_1C  Import-Export'!AB$8:AB201,MATCH($B11,'WPTM_1C  Import-Export'!$C$8:$C$201,0))=\"\",\"\",INDEX('WPTM_1C  Import-Export'!AB$8:AB201,MATCH($B11,'WPTM_1C  Import-Export'!$C$8:$C$201,0))),\"\")","v":"200 UDI atteints avec le paquet de services de prévention (pair éducation, préservatifs, gels, accès au dépistage VIH et services VIH et IST) (S1)"},{"$f":"IFERROR(IF(INDEX('WPTM_1C  Import-Export'!I$8:I201,MATCH($B11,'WPTM_1C  Import-Export'!$C$8:$C$201,0))=\"\",\"\",INDEX('WPTM_1C  Import-Export'!I$8:I201,MATCH($B11,'WPTM_1C  Import-Export'!$C$8:$C$201,0))),\"\")","v":"200 UDI atteints (S1), tels que documentés à travers le rapportage des PE, compilé par le programme (SSR et SR CRB)"},null,"Started",{"$f":"IFERROR(IF(J11=\"Not Started\",0,IF(J11=\"Started\",1,IF(J11=\"Advancing\",2,IF(J11=\"Completed\",3,\" \")))),\" \")","v":1},"La formation a eu lieu du 25 au 27 juillet 2018","Completed",{"$f":"IFERROR(IF(M11=\"Not Started\",0,IF(M11=\"Started\",1,IF(M11=\"Advancing\",2,IF(M11=\"Completed\",3,\" \")))),\" \")","v":3},null,null,{"$f":"IFERROR(IF(P11=\"Not Started\",0,IF(P11=\"Started\",1,IF(P11=\"Advancing\",2,IF(P11=\"Completed\",3,\" \")))),\" \")","v":" "}]
[{"$f":"A11+1","v":2},{"$f":"\"WPTM\"&A12","v":"WPTM2"},{"$f":"IFERROR(INDEX('WPTM_1C  Import-Export'!Z$8:Z202,MATCH($B12,'WPTM_1C  Import-Export'!$C$8:$C$201,0)),\"\")","v":""},{"$f":"IFERROR(IF(INDEX('WPTM_1C  Import-Export'!E$8:E202,MATCH($B12,'WPTM_1C  Import-Export'!$C$8:$C$201,0))=\"\",\"\",INDEX('WPTM_1C  Import-Export'!E$8:E202,MATCH($B12,'WPTM_1C  Import-Export'!$C$8:$C$201,0))),\"\")","v":""},{"$f":"IFERROR(IF(INDEX('WPTM_1C  Import-Export'!F$8:F202,MATCH($B12,'WPTM_1C  Import-Export'!$C$8:$C$201,0))=\"\",\"\",INDEX('WPTM_1C  Import-Export'!F$8:F202,MATCH($B12,'WPTM_1C  Import-Export'!$C$8:$C$201,0))),\"\")","v":""},{"$f":"IFERROR(IF(INDEX('WPTM_1C  Import-Export'!AA$8:AA202,MATCH($B12,'WPTM_1C  Import-Export'!$C$8:$C$201,0))=\"\",\"\",INDEX('WPTM_1C  Import-Export'!AA$8:AA202,MATCH($B12,'WPTM_1C  Import-Export'!$C$8:$C$201,0))),\"\")","v":""},{"$f":"IFERROR(IF(INDEX('WPTM_1C  Import-Export'!AB$8:AB202,MATCH($B12,'WPTM_1C  Import-Export'!$C$8:$C$201,0))=\"\",\"\",INDEX('WPTM_1C  Import-Export'!AB$8:AB202,MATCH($B12,'WPTM_1C  Import-Export'!$C$8:$C$201,0))),\"\")","v":""},{"$f":"IFERROR(IF(INDEX('WPTM_1C  Import-Export'!I$8:I202,MATCH($B12,'WPTM_1C  Import-Export'!$C$8:$C$201,0))=\"\",\"\",INDEX('WPTM_1C  Import-Export'!I$8:I202,MATCH($B12,'WPTM_1C  Import-Export'!$C$8:$C$201,0))),\"\")","v":""},null,null,{"$f":"IFERROR(IF(J12=\"Not Started\",0,IF(J12=\"Started\",1,IF(J12=\"Advancing\",2,IF(J12=\"Completed\",3,\" \")))),\" \")","v":" "},null,null,{"$f":"IFERROR(IF(M12=\"Not Started\",0,IF(M12=\"Started\",1,IF(M12=\"Advancing\",2,IF(M12=\"Completed\",3,\" \")))),\" \")","v":" "},null,null,{"$f":"IFERROR(IF(P12=\"Not Started\",0,IF(P12=\"Started\",1,IF(P12=\"Advancing\",2,IF(P12=\"Completed\",3,\" \")))),\" \")","v":" "}]
[3,"WPTM3",{"$f":"IFERROR(INDEX('WPTM_1C  Import-Export'!Z$8:Z203,MATCH($B13,'WPTM_1C  Import-Export'!$C$8:$C$201,0)),\"\")","v":""},{"$f":"IFERROR(IF(INDEX('WPTM_1C  Import-Export'!E$8:E203,MATCH($B13,'WPTM_1C  Import-Export'!$C$8:$C$201,0))=\"\",\"\",INDEX('WPTM_1C  Import-Export'!E$8:E203,MATCH($B13,'WPTM_1C  Import-Export'!$C$8:$C$201,0))),\"\")","v":""},{"$f":"IFERROR(IF(INDEX('WPTM_1C  Import-Export'!F$8:F203,MATCH($B13,'WPTM_1C  Import-Export'!$C$8:$C$201,0))=\"\",\"\",INDEX('WPTM_1C  Import-Export'!F$8:F203,MATCH($B13,'WPTM_1C  Import-Export'!$C$8:$C$201,0))),\"\")","v":""},{"$f":"IFERROR(IF(INDEX('WPTM_1C  Import-Export'!AA$8:AA203,MATCH($B13,'WPTM_1C  Import-Export'!$C$8:$C$201,0))=\"\",\"\",INDEX('WPTM_1C  Import-Export'!AA$8:AA203,MATCH($B13,'WPTM_1C  Import-Export'!$C$8:$C$201,0))),\"\")","v":""},{"$f":"IFERROR(IF(INDEX('WPTM_1C  Import-Export'!AB$8:AB203,MATCH($B13,'WPTM_1C  Import-Export'!$C$8:$C$201,0))=\"\",\"\",INDEX('WPTM_1C  Import-Export'!AB$8:AB203,MATCH($B13,'WPTM_1C  Import-Export'!$C$8:$C$201,0))),\"\")","v":""},{"$f":"IFERROR(IF(INDEX('WPTM_1C  Import-Export'!I$8:I203,MATCH($B13,'WPTM_1C  Import-Export'!$C$8:$C$201,0))=\"\",\"\",INDEX('WPTM_1C  Import-Export'!I$8:I203,MATCH($B13,'WPTM_1C  Import-Export'!$C$8:$C$201,0))),\"\")","v":""},null,null," ",null,null," ",null,null," "]
[4,"WPTM4",{"$f":"IFERROR(INDEX('WPTM_1C  Import-Export'!Z$8:Z204,MATCH($B14,'WPTM_1C  Import-Export'!$C$8:$C$201,0)),\"\")","v":""},{"$f":"IFERROR(IF(INDEX('WPTM_1C  Import-Export'!E$8:E204,MATCH($B14,'WPTM_1C  Import-Export'!$C$8:$C$201,0))=\"\",\"\",INDEX('WPTM_1C  Import-Export'!E$8:E204,MATCH($B14,'WPTM_1C  Import-Export'!$C$8:$C$201,0))),\"\")","v":""},{"$f":"IFERROR(IF(INDEX('WPTM_1C  Import-Export'!F$8:F204,MATCH($B14,'WPTM_1C  Import-Export'!$C$8:$C$201,0))=\"\",\"\",INDEX('WPTM_1C  Import-Export'!F$8:F204,MATCH($B14,'WPTM_1C  Import-Export'!$C$8:$C$201,0))),\"\")","v":""},{"$f":"IFERROR(IF(INDEX('WPTM_1C  Import-Export'!AA$8:AA204,MATCH($B14,'WPTM_1C  Import-Export'!$C$8:$C$201,0))=\"\",\"\",INDEX('WPTM_1C  Import-Export'!AA$8:AA204,MATCH($B14,'WPTM_1C  Import-Export'!$C$8:$C$201,0))),\"\")","v":""},{"$f":"IFERROR(IF(INDEX('WPTM_1C  Import-Export'!AB$8:AB204,MATCH($B14,'WPTM_1C  Import-Export'!$C$8:$C$201,0))=\"\",\"\",INDEX('WPTM_1C  Import-Export'!AB$8:AB204,MATCH($B14,'WPTM_1C  Import-Export'!$C$8:$C$201,0))),\"\")","v":""},{"$f":"IFERROR(IF(INDEX('WPTM_1C  Import-Export'!I$8:I204,MATCH($B14,'WPTM_1C  Import-Export'!$C$8:$C$201,0))=\"\",\"\",INDEX('WPTM_1C  Import-Export'!I$8:I204,MATCH($B14,'WPTM_1C  Import-Export'!$C$8:$C$201,0))),\"\")","v":""},null,null," ",null,null," ",null,null," "]
[5,"WPTM5",{"$f":"IFERROR(INDEX('WPTM_1C  Import-Export'!Z$8:Z205,MATCH($B15,'WPTM_1C  Import-Export'!$C$8:$C$201,0)),\"\")","v":""},{"$f":"IFERROR(IF(INDEX('WPTM_1C  Import-Export'!E$8:E205,MATCH($B15,'WPTM_1C  Import-Export'!$C$8:$C$201,0))=\"\",\"\",INDEX('WPTM_1C  Import-Export'!E$8:E205,MATCH($B15,'WPTM_1C  Import-Export'!$C$8:$C$201,0))),\"\")","v":""},{"$f":"IFERROR(IF(INDEX('WPTM_1C  Import-Export'!F$8:F205,MATCH($B15,'WPTM_1C  Import-Export'!$C$8:$C$201,0))=\"\",\"\",INDEX('WPTM_1C  Import-Export'!F$8:F205,MATCH($B15,'WPTM_1C  Import-Export'!$C$8:$C$201,0))),\"\")","v":""},{"$f":"IFERROR(IF(INDEX('WPTM_1C  Import-Export'!AA$8:AA205,MATCH($B15,'WPTM_1C  Import-Export'!$C$8:$C$201,0))=\"\",\"\",INDEX('WPTM_1C  Import-Export'!AA$8:AA205,MATCH($B15,'WPTM_1C  Import-Export'!$C$8:$C$201,0))),\"\")","v":""},{"$f":"IFERROR(IF(INDEX('WPTM_1C  Import-Export'!AB$8:AB205,MATCH($B15,'WPTM_1C  Import-Export'!$C$8:$C$201,0))=\"\",\"\",INDEX('WPTM_1C  Import-Export'!AB$8:AB205,MATCH($B15,'WPTM_1C  Import-Export'!$C$8:$C$201,0))),\"\")","v":""},{"$f":"IFERROR(IF(INDEX('WPTM_1C  Import-Export'!I$8:I205,MATCH($B15,'WPTM_1C  Import-Export'!$C$8:$C$201,0))=\"\",\"\",INDEX('WPTM_1C  Import-Export'!I$8:I205,MATCH($B15,'WPTM_1C  Import-Export'!$C$8:$C$201,0))),\"\")","v":""},null,null," ",null,null," ",null,null," "]
[6,"WPTM6",{"$f":"IFERROR(INDEX('WPTM_1C  Import-Export'!Z$8:Z206,MATCH($B16,'WPTM_1C  Import-Export'!$C$8:$C$201,0)),\"\")","v":""},{"$f":"IFERROR(IF(INDEX('WPTM_1C  Import-Export'!E$8:E206,MATCH($B16,'WPTM_1C  Import-Export'!$C$8:$C$201,0))=\"\",\"\",INDEX('WPTM_1C  Import-Export'!E$8:E206,MATCH($B16,'WPTM_1C  Import-Export'!$C$8:$C$201,0))),\"\")","v":""},{"$f":"IFERROR(IF(INDEX('WPTM_1C  Import-Export'!F$8:F206,MATCH($B16,'WPTM_1C  Import-Export'!$C$8:$C$201,0))=\"\",\"\",INDEX('WPTM_1C  Import-Export'!F$8:F206,MATCH($B16,'WPTM_1C  Import-Export'!$C$8:$C$201,0))),\"\")","v":""},{"$f":"IFERROR(IF(INDEX('WPTM_1C  Import-Export'!AA$8:AA206,MATCH($B16,'WPTM_1C  Import-Export'!$C$8:$C$201,0))=\"\",\"\",INDEX('WPTM_1C  Import-Export'!AA$8:AA206,MATCH($B16,'WPTM_1C  Import-Export'!$C$8:$C$201,0))),\"\")","v":""},{"$f":"IFERROR(IF(INDEX('WPTM_1C  Import-Export'!AB$8:AB206,MATCH($B16,'WPTM_1C  Import-Export'!$C$8:$C$201,0))=\"\",\"\",INDEX('WPTM_1C  Import-Export'!AB$8:AB206,MATCH($B16,'WPTM_1C  Import-Export'!$C$8:$C$201,0))),\"\")","v":""},{"$f":"IFERROR(IF(INDEX('WPTM_1C  Import-Export'!I$8:I206,MATCH($B16,'WPTM_1C  Import-Export'!$C$8:$C$201,0))=\"\",\"\",INDEX('WPTM_1C  Import-Export'!I$8:I206,MATCH($B16,'WPTM_1C  Import-Export'!$C$8:$C$201,0))),\"\")","v":""},null,null," ",null,null," ",null,null," "]
[7,"WPTM7",{"$f":"IFERROR(INDEX('WPTM_1C  Import-Export'!Z$8:Z207,MATCH($B17,'WPTM_1C  Import-Export'!$C$8:$C$201,0)),\"\")","v":""},{"$f":"IFERROR(IF(INDEX('WPTM_1C  Import-Export'!E$8:E207,MATCH($B17,'WPTM_1C  Import-Export'!$C$8:$C$201,0))=\"\",\"\",INDEX('WPTM_1C  Import-Export'!E$8:E207,MATCH($B17,'WPTM_1C  Import-Export'!$C$8:$C$201,0))),\"\")","v":""},{"$f":"IFERROR(IF(INDEX('WPTM_1C  Import-Export'!F$8:F207,MATCH($B17,'WPTM_1C  Import-Export'!$C$8:$C$201,0))=\"\",\"\",INDEX('WPTM_1C  Import-Export'!F$8:F207,MATCH($B17,'WPTM_1C  Import-Export'!$C$8:$C$201,0))),\"\")","v":""},{"$f":"IFERROR(IF(INDEX('WPTM_1C  Import-Export'!AA$8:AA207,MATCH($B17,'WPTM_1C  Import-Export'!$C$8:$C$201,0))=\"\",\"\",INDEX('WPTM_1C  Import-Export'!AA$8:AA207,MATCH($B17,'WPTM_1C  Import-Export'!$C$8:$C$201,0))),\"\")","v":""},{"$f":"IFERROR(IF(INDEX('WPTM_1C  Import-Export'!AB$8:AB207,MATCH($B17,'WPTM_1C  Import-Export'!$C$8:$C$201,0))=\"\",\"\",INDEX('WPTM_1C  Import-Export'!AB$8:AB207,MATCH($B17,'WPTM_1C  Import-Export'!$C$8:$C$201,0))),\"\")","v":""},{"$f":"IFERROR(IF(INDEX('WPTM_1C  Import-Export'!I$8:I207,MATCH($B17,'WPTM_1C  Import-Export'!$C$8:$C$201,0))=\"\",\"\",INDEX('WPTM_1C  Import-Export'!I$8:I207,MATCH($B17,'WPTM_1C  Import-Export'!$C$8:$C$201,0))),\"\")","v":""},null,null," ",null,null," ",null,null," "]
[8,"WPTM8",{"$f":"IFERROR(INDEX('WPTM_1C  Import-Export'!Z$8:Z208,MATCH($B18,'WPTM_1C  Import-Export'!$C$8:$C$201,0)),\"\")","v":""},{"$f":"IFERROR(IF(INDEX('WPTM_1C  Import-Export'!E$8:E208,MATCH($B18,'WPTM_1C  Import-Export'!$C$8:$C$201,0))=\"\",\"\",INDEX('WPTM_1C  Import-Export'!E$8:E208,MATCH($B18,'WPTM_1C  Import-Export'!$C$8:$C$201,0))),\"\")","v":""},{"$f":"IFERROR(IF(INDEX('WPTM_1C  Import-Export'!F$8:F208,MATCH($B18,'WPTM_1C  Import-Export'!$C$8:$C$201,0))=\"\",\"\",INDEX('WPTM_1C  Import-Export'!F$8:F208,MATCH($B18,'WPTM_1C  Import-Export'!$C$8:$C$201,0))),\"\")","v":""},{"$f":"IFERROR(IF(INDEX('WPTM_1C  Import-Export'!AA$8:AA208,MATCH($B18,'WPTM_1C  Import-Export'!$C$8:$C$201,0))=\"\",\"\",INDEX('WPTM_1C  Import-Export'!AA$8:AA208,MATCH($B18,'WPTM_1C  Import-Export'!$C$8:$C$201,0))),\"\")","v":""},{"$f":"IFERROR(IF(INDEX('WPTM_1C  Import-Export'!AB$8:AB208,MATCH($B18,'WPTM_1C  Import-Export'!$C$8:$C$201,0))=\"\",\"\",INDEX('WPTM_1C  Import-Export'!AB$8:AB208,MATCH($B18,'WPTM_1C  Import-Export'!$C$8:$C$201,0))),\"\")","v":""},{"$f":"IFERROR(IF(INDEX('WPTM_1C  Import-Export'!I$8:I208,MATCH($B18,'WPTM_1C  Import-Export'!$C$8:$C$201,0))=\"\",\"\",INDEX('WPTM_1C  Import-Export'!I$8:I208,MATCH($B18,'WPTM_1C  Import-Export'!$C$8:$C$201,0))),\"\")","v":""},null,null," ",null,null," ",null,null," "]
[9,"WPTM9",{"$f":"IFERROR(INDEX('WPTM_1C  Import-Export'!Z$8:Z209,MATCH($B19,'WPTM_1C  Import-Export'!$C$8:$C$201,0)),\"\")","v":""},{"$f":"IFERROR(IF(INDEX('WPTM_1C  Import-Export'!E$8:E209,MATCH($B19,'WPTM_1C  Import-Export'!$C$8:$C$201,0))=\"\",\"\",INDEX('WPTM_1C  Import-Export'!E$8:E209,MATCH($B19,'WPTM_1C  Import-Export'!$C$8:$C$201,0))),\"\")","v":""},{"$f":"IFERROR(IF(INDEX('WPTM_1C  Import-Export'!F$8:F209,MATCH($B19,'WPTM_1C  Import-Export'!$C$8:$C$201,0))=\"\",\"\",INDEX('WPTM_1C  Import-Export'!F$8:F209,MATCH($B19,'WPTM_1C  Import-Export'!$C$8:$C$201,0))),\"\")","v":""},{"$f":"IFERROR(IF(INDEX('WPTM_1C  Import-Export'!AA$8:AA209,MATCH($B19,'WPTM_1C  Import-Export'!$C$8:$C$201,0))=\"\",\"\",INDEX('WPTM_1C  Import-Export'!AA$8:AA209,MATCH($B19,'WPTM_1C  Import-Export'!$C$8:$C$201,0))),\"\")","v":""},{"$f":"IFERROR(IF(INDEX('WPTM_1C  Import-Export'!AB$8:AB209,MATCH($B19,'WPTM_1C  Import-Export'!$C$8:$C$201,0))=\"\",\"\",INDEX('WPTM_1C  Import-Export'!AB$8:AB209,MATCH($B19,'WPTM_1C  Import-Export'!$C$8:$C$201,0))),\"\")","v":""},{"$f":"IFERROR(IF(INDEX('WPTM_1C  Import-Export'!I$8:I209,MATCH($B19,'WPTM_1C  Import-Export'!$C$8:$C$201,0))=\"\",\"\",INDEX('WPTM_1C  Import-Export'!I$8:I209,MATCH($B19,'WPTM_1C  Import-Export'!$C$8:$C$201,0))),\"\")","v":""},null,null," ",null,null," ",null,null," "]
[10,"WPTM10",{"$f":"IFERROR(INDEX('WPTM_1C  Import-Export'!Z$8:Z210,MATCH($B20,'WPTM_1C  Import-Export'!$C$8:$C$201,0)),\"\")","v":""},{"$f":"IFERROR(IF(INDEX('WPTM_1C  Import-Export'!E$8:E210,MATCH($B20,'WPTM_1C  Import-Export'!$C$8:$C$201,0))=\"\",\"\",INDEX('WPTM_1C  Import-Export'!E$8:E210,MATCH($B20,'WPTM_1C  Import-Export'!$C$8:$C$201,0))),\"\")","v":""},{"$f":"IFERROR(IF(INDEX('WPTM_1C  Import-Export'!F$8:F210,MATCH($B20,'WPTM_1C  Import-Export'!$C$8:$C$201,0))=\"\",\"\",INDEX('WPTM_1C  Import-Export'!F$8:F210,MATCH($B20,'WPTM_1C  Import-Export'!$C$8:$C$201,0))),\"\")","v":""},{"$f":"IFERROR(IF(INDEX('WPTM_1C  Import-Export'!AA$8:AA210,MATCH($B20,'WPTM_1C  Import-Export'!$C$8:$C$201,0))=\"\",\"\",INDEX('WPTM_1C  Import-Export'!AA$8:AA210,MATCH($B20,'WPTM_1C  Import-Export'!$C$8:$C$201,0))),\"\")","v":""},{"$f":"IFERROR(IF(INDEX('WPTM_1C  Import-Export'!AB$8:AB210,MATCH($B20,'WPTM_1C  Import-Export'!$C$8:$C$201,0))=\"\",\"\",INDEX('WPTM_1C  Import-Export'!AB$8:AB210,MATCH($B20,'WPTM_1C  Import-Export'!$C$8:$C$201,0))),\"\")","v":""},{"$f":"IFERROR(IF(INDEX('WPTM_1C  Import-Export'!I$8:I210,MATCH($B20,'WPTM_1C  Import-Export'!$C$8:$C$201,0))=\"\",\"\",INDEX('WPTM_1C  Import-Export'!I$8:I210,MATCH($B20,'WPTM_1C  Import-Export'!$C$8:$C$201,0))),\"\")","v":""},null,null," ",null,null," ",null,null," "]
[11,"WPTM11",{"$f":"IFERROR(INDEX('WPTM_1C  Import-Export'!Z$8:Z211,MATCH($B21,'WPTM_1C  Import-Export'!$C$8:$C$201,0)),\"\")","v":""},{"$f":"IFERROR(IF(INDEX('WPTM_1C  Import-Export'!E$8:E211,MATCH($B21,'WPTM_1C  Import-Export'!$C$8:$C$201,0))=\"\",\"\",INDEX('WPTM_1C  Import-Export'!E$8:E211,MATCH($B21,'WPTM_1C  Import-Export'!$C$8:$C$201,0))),\"\")","v":""},{"$f":"IFERROR(IF(INDEX('WPTM_1C  Import-Export'!F$8:F211,MATCH($B21,'WPTM_1C  Import-Export'!$C$8:$C$201,0))=\"\",\"\",INDEX('WPTM_1C  Import-Export'!F$8:F211,MATCH($B21,'WPTM_1C  Import-Export'!$C$8:$C$201,0))),\"\")","v":""},{"$f":"IFERROR(IF(INDEX('WPTM_1C  Import-Export'!AA$8:AA211,MATCH($B21,'WPTM_1C  Import-Export'!$C$8:$C$201,0))=\"\",\"\",INDEX('WPTM_1C  Import-Export'!AA$8:AA211,MATCH($B21,'WPTM_1C  Import-Export'!$C$8:$C$201,0))),\"\")","v":""},{"$f":"IFERROR(IF(INDEX('WPTM_1C  Import-Export'!AB$8:AB211,MATCH($B21,'WPTM_1C  Import-Export'!$C$8:$C$201,0))=\"\",\"\",INDEX('WPTM_1C  Import-Export'!AB$8:AB211,MATCH($B21,'WPTM_1C  Import-Export'!$C$8:$C$201,0))),\"\")","v":""},{"$f":"IFERROR(IF(INDEX('WPTM_1C  Import-Export'!I$8:I211,MATCH($B21,'WPTM_1C  Import-Export'!$C$8:$C$201,0))=\"\",\"\",INDEX('WPTM_1C  Import-Export'!I$8:I211,MATCH($B21,'WPTM_1C  Import-Export'!$C$8:$C$201,0))),\"\")","v":""},null,null," ",null,null," ",null,null," "]
[12,"WPTM12",{"$f":"IFERROR(INDEX('WPTM_1C  Import-Export'!Z$8:Z212,MATCH($B22,'WPTM_1C  Import-Export'!$C$8:$C$201,0)),\"\")","v":""},{"$f":"IFERROR(IF(INDEX('WPTM_1C  Import-Export'!E$8:E212,MATCH($B22,'WPTM_1C  Import-Export'!$C$8:$C$201,0))=\"\",\"\",INDEX('WPTM_1C  Import-Export'!E$8:E212,MATCH($B22,'WPTM_1C  Import-Export'!$C$8:$C$201,0))),\"\")","v":""},{"$f":"IFERROR(IF(INDEX('WPTM_1C  Import-Export'!F$8:F212,MATCH($B22,'WPTM_1C  Import-Export'!$C$8:$C$201,0))=\"\",\"\",INDEX('WPTM_1C  Import-Export'!F$8:F212,MATCH($B22,'WPTM_1C  Import-Export'!$C$8:$C$201,0))),\"\")","v":""},{"$f":"IFERROR(IF(INDEX('WPTM_1C  Import-Export'!AA$8:AA212,MATCH($B22,'WPTM_1C  Import-Export'!$C$8:$C$201,0))=\"\",\"\",INDEX('WPTM_1C  Import-Export'!AA$8:AA212,MATCH($B22,'WPTM_1C  Import-Export'!$C$8:$C$201,0))),\"\")","v":""},{"$f":"IFERROR(IF(INDEX('WPTM_1C  Import-Export'!AB$8:AB212,MATCH($B22,'WPTM_1C  Import-Export'!$C$8:$C$201,0))=\"\",\"\",INDEX('WPTM_1C  Import-Export'!AB$8:AB212,MATCH($B22,'WPTM_1C  Import-Export'!$C$8:$C$201,0))),\"\")","v":""},{"$f":"IFERROR(IF(INDEX('WPTM_1C  Import-Export'!I$8:I212,MATCH($B22,'WPTM_1C  Import-Export'!$C$8:$C$201,0))=\"\",\"\",INDEX('WPTM_1C  Import-Export'!I$8:I212,MATCH($B22,'WPTM_1C  Import-Export'!$C$8:$C$201,0))),\"\")","v":""},null,null," ",null,null," ",null,null," "]
[13,"WPTM13",{"$f":"IFERROR(INDEX('WPTM_1C  Import-Export'!Z$8:Z213,MATCH($B23,'WPTM_1C  Import-Export'!$C$8:$C$201,0)),\"\")","v":""},{"$f":"IFERROR(IF(INDEX('WPTM_1C  Import-Export'!E$8:E213,MATCH($B23,'WPTM_1C  Import-Export'!$C$8:$C$201,0))=\"\",\"\",INDEX('WPTM_1C  Import-Export'!E$8:E213,MATCH($B23,'WPTM_1C  Import-Export'!$C$8:$C$201,0))),\"\")","v":""},{"$f":"IFERROR(IF(INDEX('WPTM_1C  Import-Export'!F$8:F213,MATCH($B23,'WPTM_1C  Import-Export'!$C$8:$C$201,0))=\"\",\"\",INDEX('WPTM_1C  Import-Export'!F$8:F213,MATCH($B23,'WPTM_1C  Import-Export'!$C$8:$C$201,0))),\"\")","v":""},{"$f":"IFERROR(IF(INDEX('WPTM_1C  Import-Export'!AA$8:AA213,MATCH($B23,'WPTM_1C  Import-Export'!$C$8:$C$201,0))=\"\",\"\",INDEX('WPTM_1C  Import-Export'!AA$8:AA213,MATCH($B23,'WPTM_1C  Import-Export'!$C$8:$C$201,0))),\"\")","v":""},{"$f":"IFERROR(IF(INDEX('WPTM_1C  Import-Export'!AB$8:AB213,MATCH($B23,'WPTM_1C  Import-Export'!$C$8:$C$201,0))=\"\",\"\",INDEX('WPTM_1C  Import-Export'!AB$8:AB213,MATCH($B23,'WPTM_1C  Import-Export'!$C$8:$C$201,0))),\"\")","v":""},{"$f":"IFERROR(IF(INDEX('WPTM_1C  Import-Export'!I$8:I213,MATCH($B23,'WPTM_1C  Import-Export'!$C$8:$C$201,0))=\"\",\"\",INDEX('WPTM_1C  Import-Export'!I$8:I213,MATCH($B23,'WPTM_1C  Import-Export'!$C$8:$C$201,0))),\"\")","v":""},null,null," ",null,null," ",null,null," "]
[14,"WPTM14",{"$f":"IFERROR(INDEX('WPTM_1C  Import-Export'!Z$8:Z214,MATCH($B24,'WPTM_1C  Import-Export'!$C$8:$C$201,0)),\"\")","v":""},{"$f":"IFERROR(IF(INDEX('WPTM_1C  Import-Export'!E$8:E214,MATCH($B24,'WPTM_1C  Import-Export'!$C$8:$C$201,0))=\"\",\"\",INDEX('WPTM_1C  Import-Export'!E$8:E214,MATCH($B24,'WPTM_1C  Import-Export'!$C$8:$C$201,0))),\"\")","v":""},{"$f":"IFERROR(IF(INDEX('WPTM_1C  Import-Export'!F$8:F214,MATCH($B24,'WPTM_1C  Import-Export'!$C$8:$C$201,0))=\"\",\"\",INDEX('WPTM_1C  Import-Export'!F$8:F214,MATCH($B24,'WPTM_1C  Import-Export'!$C$8:$C$201,0))),\"\")","v":""},{"$f":"IFERROR(IF(INDEX('WPTM_1C  Import-Export'!AA$8:AA214,MATCH($B24,'WPTM_1C  Import-Export'!$C$8:$C$201,0))=\"\",\"\",INDEX('WPTM_1C  Import-Export'!AA$8:AA214,MATCH($B24,'WPTM_1C  Import-Export'!$C$8:$C$201,0))),\"\")","v":""},{"$f":"IFERROR(IF(INDEX('WPTM_1C  Import-Export'!AB$8:AB214,MATCH($B24,'WPTM_1C  Import-Export'!$C$8:$C$201,0))=\"\",\"\",INDEX('WPTM_1C  Import-Export'!AB$8:AB214,MATCH($B24,'WPTM_1C  Import-Export'!$C$8:$C$201,0))),\"\")","v":""},{"$f":"IFERROR(IF(INDEX('WPTM_1C  Import-Export'!I$8:I214,MATCH($B24,'WPTM_1C  Import-Export'!$C$8:$C$201,0))=\"\",\"\",INDEX('WPTM_1C  Import-Export'!I$8:I214,MATCH($B24,'WPTM_1C  Import-Export'!$C$8:$C$201,0))),\"\")","v":""},null,null," ",null,null," ",null,null," "]
[15,"WPTM15",{"$f":"IFERROR(INDEX('WPTM_1C  Import-Export'!Z$8:Z215,MATCH($B25,'WPTM_1C  Import-Export'!$C$8:$C$201,0)),\"\")","v":""},{"$f":"IFERROR(IF(INDEX('WPTM_1C  Import-Export'!E$8:E215,MATCH($B25,'WPTM_1C  Import-Export'!$C$8:$C$201,0))=\"\",\"\",INDEX('WPTM_1C  Import-Export'!E$8:E215,MATCH($B25,'WPTM_1C  Import-Export'!$C$8:$C$201,0))),\"\")","v":""},{"$f":"IFERROR(IF(INDEX('WPTM_1C  Import-Export'!F$8:F215,MATCH($B25,'WPTM_1C  Import-Export'!$C$8:$C$201,0))=\"\",\"\",INDEX('WPTM_1C  Import-Export'!F$8:F215,MATCH($B25,'WPTM_1C  Import-Export'!$C$8:$C$201,0))),\"\")","v":""},{"$f":"IFERROR(IF(INDEX('WPTM_1C  Import-Export'!AA$8:AA215,MATCH($B25,'WPTM_1C  Import-Export'!$C$8:$C$201,0))=\"\",\"\",INDEX('WPTM_1C  Import-Export'!AA$8:AA215,MATCH($B25,'WPTM_1C  Import-Export'!$C$8:$C$201,0))),\"\")","v":""},{"$f":"IFERROR(IF(INDEX('WPTM_1C  Import-Export'!AB$8:AB215,MATCH($B25,'WPTM_1C  Import-Export'!$C$8:$C$201,0))=\"\",\"\",INDEX('WPTM_1C  Import-Export'!AB$8:AB215,MATCH($B25,'WPTM_1C  Import-Export'!$C$8:$C$201,0))),\"\")","v":""},{"$f":"IFERROR(IF(INDEX('WPTM_1C  Import-Export'!I$8:I215,MATCH($B25,'WPTM_1C  Import-Export'!$C$8:$C$201,0))=\"\",\"\",INDEX('WPTM_1C  Import-Export'!I$8:I215,MATCH($B25,'WPTM_1C  Import-Export'!$C$8:$C$201,0))),\"\")","v":""},null,null," ",null,null," ",null,null," "]
[16,"WPTM16",{"$f":"IFERROR(INDEX('WPTM_1C  Import-Export'!Z$8:Z216,MATCH($B26,'WPTM_1C  Import-Export'!$C$8:$C$201,0)),\"\")","v":""},{"$f":"IFERROR(IF(INDEX('WPTM_1C  Import-Export'!E$8:E216,MATCH($B26,'WPTM_1C  Import-Export'!$C$8:$C$201,0))=\"\",\"\",INDEX('WPTM_1C  Import-Export'!E$8:E216,MATCH($B26,'WPTM_1C  Import-Export'!$C$8:$C$201,0))),\"\")","v":""},{"$f":"IFERROR(IF(INDEX('WPTM_1C  Import-Export'!F$8:F216,MATCH($B26,'WPTM_1C  Import-Export'!$C$8:$C$201,0))=\"\",\"\",INDEX('WPTM_1C  Import-Export'!F$8:F216,MATCH($B26,'WPTM_1C  Import-Export'!$C$8:$C$201,0))),\"\")","v":""},{"$f":"IFERROR(IF(INDEX('WPTM_1C  Import-Export'!AA$8:AA216,MATCH($B26,'WPTM_1C  Import-Export'!$C$8:$C$201,0))=\"\",\"\",INDEX('WPTM_1C  Import-Export'!AA$8:AA216,MATCH($B26,'WPTM_1C  Import-Export'!$C$8:$C$201,0))),\"\")","v":""},{"$f":"IFERROR(IF(INDEX('WPTM_1C  Import-Export'!AB$8:AB216,MATCH($B26,'WPTM_1C  Import-Export'!$C$8:$C$201,0))=\"\",\"\",INDEX('WPTM_1C  Import-Export'!AB$8:AB216,MATCH($B26,'WPTM_1C  Import-Export'!$C$8:$C$201,0))),\"\")","v":""},{"$f":"IFERROR(IF(INDEX('WPTM_1C  Import-Export'!I$8:I216,MATCH($B26,'WPTM_1C  Import-Export'!$C$8:$C$201,0))=\"\",\"\",INDEX('WPTM_1C  Import-Export'!I$8:I216,MATCH($B26,'WPTM_1C  Import-Export'!$C$8:$C$201,0))),\"\")","v":""},null,null," ",null,null," ",null,null," "]
[17,"WPTM17",{"$f":"IFERROR(INDEX('WPTM_1C  Import-Export'!Z$8:Z217,MATCH($B27,'WPTM_1C  Import-Export'!$C$8:$C$201,0)),\"\")","v":""},{"$f":"IFERROR(IF(INDEX('WPTM_1C  Import-Export'!E$8:E217,MATCH($B27,'WPTM_1C  Import-Export'!$C$8:$C$201,0))=\"\",\"\",INDEX('WPTM_1C  Import-Export'!E$8:E217,MATCH($B27,'WPTM_1C  Import-Export'!$C$8:$C$201,0))),\"\")","v":""},{"$f":"IFERROR(IF(INDEX('WPTM_1C  Import-Export'!F$8:F217,MATCH($B27,'WPTM_1C  Import-Export'!$C$8:$C$201,0))=\"\",\"\",INDEX('WPTM_1C  Import-Export'!F$8:F217,MATCH($B27,'WPTM_1C  Import-Export'!$C$8:$C$201,0))),\"\")","v":""},{"$f":"IFERROR(IF(INDEX('WPTM_1C  Import-Export'!AA$8:AA217,MATCH($B27,'WPTM_1C  Import-Export'!$C$8:$C$201,0))=\"\",\"\",INDEX('WPTM_1C  Import-Export'!AA$8:AA217,MATCH($B27,'WPTM_1C  Import-Export'!$C$8:$C$201,0))),\"\")","v":""},{"$f":"IFERROR(IF(INDEX('WPTM_1C  Import-Export'!AB$8:AB217,MATCH($B27,'WPTM_1C  Import-Export'!$C$8:$C$201,0))=\"\",\"\",INDEX('WPTM_1C  Import-Export'!AB$8:AB217,MATCH($B27,'WPTM_1C  Import-Export'!$C$8:$C$201,0))),\"\")","v":""},{"$f":"IFERROR(IF(INDEX('WPTM_1C  Import-Export'!I$8:I217,MATCH($B27,'WPTM_1C  Import-Export'!$C$8:$C$201,0))=\"\",\"\",INDEX('WPTM_1C  Import-Export'!I$8:I217,MATCH($B27,'WPTM_1C  Import-Export'!$C$8:$C$201,0))),\"\")","v":""},null,null," ",null,null," ",null,null," "]
[18,"WPTM18",{"$f":"IFERROR(INDEX('WPTM_1C  Import-Export'!Z$8:Z218,MATCH($B28,'WPTM_1C  Import-Export'!$C$8:$C$201,0)),\"\")","v":""},{"$f":"IFERROR(IF(INDEX('WPTM_1C  Import-Export'!E$8:E218,MATCH($B28,'WPTM_1C  Import-Export'!$C$8:$C$201,0))=\"\",\"\",INDEX('WPTM_1C  Import-Export'!E$8:E218,MATCH($B28,'WPTM_1C  Import-Export'!$C$8:$C$201,0))),\"\")","v":""},{"$f":"IFERROR(IF(INDEX('WPTM_1C  Import-Export'!F$8:F218,MATCH($B28,'WPTM_1C  Import-Export'!$C$8:$C$201,0))=\"\",\"\",INDEX('WPTM_1C  Import-Export'!F$8:F218,MATCH($B28,'WPTM_1C  Import-Export'!$C$8:$C$201,0))),\"\")","v":""},{"$f":"IFERROR(IF(INDEX('WPTM_1C  Import-Export'!AA$8:AA218,MATCH($B28,'WPTM_1C  Import-Export'!$C$8:$C$201,0))=\"\",\"\",INDEX('WPTM_1C  Import-Export'!AA$8:AA218,MATCH($B28,'WPTM_1C  Import-Export'!$C$8:$C$201,0))),\"\")","v":""},{"$f":"IFERROR(IF(INDEX('WPTM_1C  Import-Export'!AB$8:AB218,MATCH($B28,'WPTM_1C  Import-Export'!$C$8:$C$201,0))=\"\",\"\",INDEX('WPTM_1C  Import-Export'!AB$8:AB218,MATCH($B28,'WPTM_1C  Import-Export'!$C$8:$C$201,0))),\"\")","v":""},{"$f":"IFERROR(IF(INDEX('WPTM_1C  Import-Export'!I$8:I218,MATCH($B28,'WPTM_1C  Import-Export'!$C$8:$C$201,0))=\"\",\"\",INDEX('WPTM_1C  Import-Export'!I$8:I218,MATCH($B28,'WPTM_1C  Import-Export'!$C$8:$C$201,0))),\"\")","v":""},null,null," ",null,null," ",null,null," "]
[19,"WPTM19",{"$f":"IFERROR(INDEX('WPTM_1C  Import-Export'!Z$8:Z219,MATCH($B29,'WPTM_1C  Import-Export'!$C$8:$C$201,0)),\"\")","v":""},{"$f":"IFERROR(IF(INDEX('WPTM_1C  Import-Export'!E$8:E219,MATCH($B29,'WPTM_1C  Import-Export'!$C$8:$C$201,0))=\"\",\"\",INDEX('WPTM_1C  Import-Export'!E$8:E219,MATCH($B29,'WPTM_1C  Import-Export'!$C$8:$C$201,0))),\"\")","v":""},{"$f":"IFERROR(IF(INDEX('WPTM_1C  Import-Export'!F$8:F219,MATCH($B29,'WPTM_1C  Import-Export'!$C$8:$C$201,0))=\"\",\"\",INDEX('WPTM_1C  Import-Export'!F$8:F219,MATCH($B29,'WPTM_1C  Import-Export'!$C$8:$C$201,0))),\"\")","v":""},{"$f":"IFERROR(IF(INDEX('WPTM_1C  Import-Export'!AA$8:AA219,MATCH($B29,'WPTM_1C  Import-Export'!$C$8:$C$201,0))=\"\",\"\",INDEX('WPTM_1C  Import-Export'!AA$8:AA219,MATCH($B29,'WPTM_1C  Import-Export'!$C$8:$C$201,0))),\"\")","v":""},{"$f":"IFERROR(IF(INDEX('WPTM_1C  Import-Export'!AB$8:AB219,MATCH($B29,'WPTM_1C  Import-Export'!$C$8:$C$201,0))=\"\",\"\",INDEX('WPTM_1C  Import-Export'!AB$8:AB219,MATCH($B29,'WPTM_1C  Import-Export'!$C$8:$C$201,0))),\"\")","v":""},{"$f":"IFERROR(IF(INDEX('WPTM_1C  Import-Export'!I$8:I219,MATCH($B29,'WPTM_1C  Import-Export'!$C$8:$C$201,0))=\"\",\"\",INDEX('WPTM_1C  Import-Export'!I$8:I219,MATCH($B29,'WPTM_1C  Import-Export'!$C$8:$C$201,0))),\"\")","v":""},null,null," ",null,null," ",null,null," "]
[20,"WPTM20",{"$f":"IFERROR(INDEX('WPTM_1C  Import-Export'!Z$8:Z220,MATCH($B30,'WPTM_1C  Import-Export'!$C$8:$C$201,0)),\"\")","v":""},{"$f":"IFERROR(IF(INDEX('WPTM_1C  Import-Export'!E$8:E220,MATCH($B30,'WPTM_1C  Import-Export'!$C$8:$C$201,0))=\"\",\"\",INDEX('WPTM_1C  Import-Export'!E$8:E220,MATCH($B30,'WPTM_1C  Import-Export'!$C$8:$C$201,0))),\"\")","v":""},{"$f":"IFERROR(IF(INDEX('WPTM_1C  Import-Export'!F$8:F220,MATCH($B30,'WPTM_1C  Import-Export'!$C$8:$C$201,0))=\"\",\"\",INDEX('WPTM_1C  Import-Export'!F$8:F220,MATCH($B30,'WPTM_1C  Import-Export'!$C$8:$C$201,0))),\"\")","v":""},{"$f":"IFERROR(IF(INDEX('WPTM_1C  Import-Export'!AA$8:AA220,MATCH($B30,'WPTM_1C  Import-Export'!$C$8:$C$201,0))=\"\",\"\",INDEX('WPTM_1C  Import-Export'!AA$8:AA220,MATCH($B30,'WPTM_1C  Import-Export'!$C$8:$C$201,0))),\"\")","v":""},{"$f":"IFERROR(IF(INDEX('WPTM_1C  Import-Export'!AB$8:AB220,MATCH($B30,'WPTM_1C  Import-Export'!$C$8:$C$201,0))=\"\",\"\",INDEX('WPTM_1C  Import-Export'!AB$8:AB220,MATCH($B30,'WPTM_1C  Import-Export'!$C$8:$C$201,0))),\"\")","v":""},{"$f":"IFERROR(IF(INDEX('WPTM_1C  Import-Export'!I$8:I220,MATCH($B30,'WPTM_1C  Import-Export'!$C$8:$C$201,0))=\"\",\"\",INDEX('WPTM_1C  Import-Export'!I$8:I220,MATCH($B30,'WPTM_1C  Import-Export'!$C$8:$C$201,0))),\"\")","v":""},null,null," ",null,null," ",null,null," "]
[21,"WPTM21",{"$f":"IFERROR(INDEX('WPTM_1C  Import-Export'!Z$8:Z221,MATCH($B31,'WPTM_1C  Import-Export'!$C$8:$C$201,0)),\"\")","v":""},{"$f":"IFERROR(IF(INDEX('WPTM_1C  Import-Export'!E$8:E221,MATCH($B31,'WPTM_1C  Import-Export'!$C$8:$C$201,0))=\"\",\"\",INDEX('WPTM_1C  Import-Export'!E$8:E221,MATCH($B31,'WPTM_1C  Import-Export'!$C$8:$C$201,0))),\"\")","v":""},{"$f":"IFERROR(IF(INDEX('WPTM_1C  Import-Export'!F$8:F221,MATCH($B31,'WPTM_1C  Import-Export'!$C$8:$C$201,0))=\"\",\"\",INDEX('WPTM_1C  Import-Export'!F$8:F221,MATCH($B31,'WPTM_1C  Import-Export'!$C$8:$C$201,0))),\"\")","v":""},{"$f":"IFERROR(IF(INDEX('WPTM_1C  Import-Export'!AA$8:AA221,MATCH($B31,'WPTM_1C  Import-Export'!$C$8:$C$201,0))=\"\",\"\",INDEX('WPTM_1C  Import-Export'!AA$8:AA221,MATCH($B31,'WPTM_1C  Import-Export'!$C$8:$C$201,0))),\"\")","v":""},{"$f":"IFERROR(IF(INDEX('WPTM_1C  Import-Export'!AB$8:AB221,MATCH($B31,'WPTM_1C  Import-Export'!$C$8:$C$201,0))=\"\",\"\",INDEX('WPTM_1C  Import-Export'!AB$8:AB221,MATCH($B31,'WPTM_1C  Import-Export'!$C$8:$C$201,0))),\"\")","v":""},{"$f":"IFERROR(IF(INDEX('WPTM_1C  Import-Export'!I$8:I221,MATCH($B31,'WPTM_1C  Import-Export'!$C$8:$C$201,0))=\"\",\"\",INDEX('WPTM_1C  Import-Export'!I$8:I221,MATCH($B31,'WPTM_1C  Import-Export'!$C$8:$C$201,0))),\"\")","v":""},null,null," ",null,null," ",null,null," "]
[22,"WPTM22",{"$f":"IFERROR(INDEX('WPTM_1C  Import-Export'!Z$8:Z222,MATCH($B32,'WPTM_1C  Import-Export'!$C$8:$C$201,0)),\"\")","v":""},{"$f":"IFERROR(IF(INDEX('WPTM_1C  Import-Export'!E$8:E222,MATCH($B32,'WPTM_1C  Import-Export'!$C$8:$C$201,0))=\"\",\"\",INDEX('WPTM_1C  Import-Export'!E$8:E222,MATCH($B32,'WPTM_1C  Import-Export'!$C$8:$C$201,0))),\"\")","v":""},{"$f":"IFERROR(IF(INDEX('WPTM_1C  Import-Export'!F$8:F222,MATCH($B32,'WPTM_1C  Import-Export'!$C$8:$C$201,0))=\"\",\"\",INDEX('WPTM_1C  Import-Export'!F$8:F222,MATCH($B32,'WPTM_1C  Import-Export'!$C$8:$C$201,0))),\"\")","v":""},{"$f":"IFERROR(IF(INDEX('WPTM_1C  Import-Export'!AA$8:AA222,MATCH($B32,'WPTM_1C  Import-Export'!$C$8:$C$201,0))=\"\",\"\",INDEX('WPTM_1C  Import-Export'!AA$8:AA222,MATCH($B32,'WPTM_1C  Import-Export'!$C$8:$C$201,0))),\"\")","v":""},{"$f":"IFERROR(IF(INDEX('WPTM_1C  Import-Export'!AB$8:AB222,MATCH($B32,'WPTM_1C  Import-Export'!$C$8:$C$201,0))=\"\",\"\",INDEX('WPTM_1C  Import-Export'!AB$8:AB222,MATCH($B32,'WPTM_1C  Import-Export'!$C$8:$C$201,0))),\"\")","v":""},{"$f":"IFERROR(IF(INDEX('WPTM_1C  Import-Export'!I$8:I222,MATCH($B32,'WPTM_1C  Import-Export'!$C$8:$C$201,0))=\"\",\"\",INDEX('WPTM_1C  Import-Export'!I$8:I222,MATCH($B32,'WPTM_1C  Import-Export'!$C$8:$C$201,0))),\"\")","v":""},null,null," ",null,null," ",null,null," "]
[23,"WPTM23",{"$f":"IFERROR(INDEX('WPTM_1C  Import-Export'!Z$8:Z223,MATCH($B33,'WPTM_1C  Import-Export'!$C$8:$C$201,0)),\"\")","v":""},{"$f":"IFERROR(IF(INDEX('WPTM_1C  Import-Export'!E$8:E223,MATCH($B33,'WPTM_1C  Import-Export'!$C$8:$C$201,0))=\"\",\"\",INDEX('WPTM_1C  Import-Export'!E$8:E223,MATCH($B33,'WPTM_1C  Import-Export'!$C$8:$C$201,0))),\"\")","v":""},{"$f":"IFERROR(IF(INDEX('WPTM_1C  Import-Export'!F$8:F223,MATCH($B33,'WPTM_1C  Import-Export'!$C$8:$C$201,0))=\"\",\"\",INDEX('WPTM_1C  Import-Export'!F$8:F223,MATCH($B33,'WPTM_1C  Import-Export'!$C$8:$C$201,0))),\"\")","v":""},{"$f":"IFERROR(IF(INDEX('WPTM_1C  Import-Export'!AA$8:AA223,MATCH($B33,'WPTM_1C  Import-Export'!$C$8:$C$201,0))=\"\",\"\",INDEX('WPTM_1C  Import-Export'!AA$8:AA223,MATCH($B33,'WPTM_1C  Import-Export'!$C$8:$C$201,0))),\"\")","v":""},{"$f":"IFERROR(IF(INDEX('WPTM_1C  Import-Export'!AB$8:AB223,MATCH($B33,'WPTM_1C  Import-Export'!$C$8:$C$201,0))=\"\",\"\",INDEX('WPTM_1C  Import-Export'!AB$8:AB223,MATCH($B33,'WPTM_1C  Import-Export'!$C$8:$C$201,0))),\"\")","v":""},{"$f":"IFERROR(IF(INDEX('WPTM_1C  Import-Export'!I$8:I223,MATCH($B33,'WPTM_1C  Import-Export'!$C$8:$C$201,0))=\"\",\"\",INDEX('WPTM_1C  Import-Export'!I$8:I223,MATCH($B33,'WPTM_1C  Import-Export'!$C$8:$C$201,0))),\"\")","v":""},null,null," ",null,null," ",null,null," "]
[24,"WPTM24",{"$f":"IFERROR(INDEX('WPTM_1C  Import-Export'!Z$8:Z224,MATCH($B34,'WPTM_1C  Import-Export'!$C$8:$C$201,0)),\"\")","v":""},{"$f":"IFERROR(IF(INDEX('WPTM_1C  Import-Export'!E$8:E224,MATCH($B34,'WPTM_1C  Import-Export'!$C$8:$C$201,0))=\"\",\"\",INDEX('WPTM_1C  Import-Export'!E$8:E224,MATCH($B34,'WPTM_1C  Import-Export'!$C$8:$C$201,0))),\"\")","v":""},{"$f":"IFERROR(IF(INDEX('WPTM_1C  Import-Export'!F$8:F224,MATCH($B34,'WPTM_1C  Import-Export'!$C$8:$C$201,0))=\"\",\"\",INDEX('WPTM_1C  Import-Export'!F$8:F224,MATCH($B34,'WPTM_1C  Import-Export'!$C$8:$C$201,0))),\"\")","v":""},{"$f":"IFERROR(IF(INDEX('WPTM_1C  Import-Export'!AA$8:AA224,MATCH($B34,'WPTM_1C  Import-Export'!$C$8:$C$201,0))=\"\",\"\",INDEX('WPTM_1C  Import-Export'!AA$8:AA224,MATCH($B34,'WPTM_1C  Import-Export'!$C$8:$C$201,0))),\"\")","v":""},{"$f":"IFERROR(IF(INDEX('WPTM_1C  Import-Export'!AB$8:AB224,MATCH($B34,'WPTM_1C  Import-Export'!$C$8:$C$201,0))=\"\",\"\",INDEX('WPTM_1C  Import-Export'!AB$8:AB224,MATCH($B34,'WPTM_1C  Import-Export'!$C$8:$C$201,0))),\"\")","v":""},{"$f":"IFERROR(IF(INDEX('WPTM_1C  Import-Export'!I$8:I224,MATCH($B34,'WPTM_1C  Import-Export'!$C$8:$C$201,0))=\"\",\"\",INDEX('WPTM_1C  Import-Export'!I$8:I224,MATCH($B34,'WPTM_1C  Import-Export'!$C$8:$C$201,0))),\"\")","v":""},null,null," ",null,null," ",null,null," "]
[25,"WPTM25",{"$f":"IFERROR(INDEX('WPTM_1C  Import-Export'!Z$8:Z225,MATCH($B35,'WPTM_1C  Import-Export'!$C$8:$C$201,0)),\"\")","v":""},{"$f":"IFERROR(IF(INDEX('WPTM_1C  Import-Export'!E$8:E225,MATCH($B35,'WPTM_1C  Import-Export'!$C$8:$C$201,0))=\"\",\"\",INDEX('WPTM_1C  Import-Export'!E$8:E225,MATCH($B35,'WPTM_1C  Import-Export'!$C$8:$C$201,0))),\"\")","v":""},{"$f":"IFERROR(IF(INDEX('WPTM_1C  Import-Export'!F$8:F225,MATCH($B35,'WPTM_1C  Import-Export'!$C$8:$C$201,0))=\"\",\"\",INDEX('WPTM_1C  Import-Export'!F$8:F225,MATCH($B35,'WPTM_1C  Import-Export'!$C$8:$C$201,0))),\"\")","v":""},{"$f":"IFERROR(IF(INDEX('WPTM_1C  Import-Export'!AA$8:AA225,MATCH($B35,'WPTM_1C  Import-Export'!$C$8:$C$201,0))=\"\",\"\",INDEX('WPTM_1C  Import-Export'!AA$8:AA225,MATCH($B35,'WPTM_1C  Import-Export'!$C$8:$C$201,0))),\"\")","v":""},{"$f":"IFERROR(IF(INDEX('WPTM_1C  Import-Export'!AB$8:AB225,MATCH($B35,'WPTM_1C  Import-Export'!$C$8:$C$201,0))=\"\",\"\",INDEX('WPTM_1C  Import-Export'!AB$8:AB225,MATCH($B35,'WPTM_1C  Import-Export'!$C$8:$C$201,0))),\"\")","v":""},{"$f":"IFERROR(IF(INDEX('WPTM_1C  Import-Export'!I$8:I225,MATCH($B35,'WPTM_1C  Import-Export'!$C$8:$C$201,0))=\"\",\"\",INDEX('WPTM_1C  Import-Export'!I$8:I225,MATCH($B35,'WPTM_1C  Import-Export'!$C$8:$C$201,0))),\"\")","v":""},null,null," ",null,null," ",null,null," "]
[26,"WPTM26",{"$f":"IFERROR(INDEX('WPTM_1C  Import-Export'!Z$8:Z226,MATCH($B36,'WPTM_1C  Import-Export'!$C$8:$C$201,0)),\"\")","v":""},{"$f":"IFERROR(IF(INDEX('WPTM_1C  Import-Export'!E$8:E226,MATCH($B36,'WPTM_1C  Import-Export'!$C$8:$C$201,0))=\"\",\"\",INDEX('WPTM_1C  Import-Export'!E$8:E226,MATCH($B36,'WPTM_1C  Import-Export'!$C$8:$C$201,0))),\"\")","v":""},{"$f":"IFERROR(IF(INDEX('WPTM_1C  Import-Export'!F$8:F226,MATCH($B36,'WPTM_1C  Import-Export'!$C$8:$C$201,0))=\"\",\"\",INDEX('WPTM_1C  Import-Export'!F$8:F226,MATCH($B36,'WPTM_1C  Import-Export'!$C$8:$C$201,0))),\"\")","v":""},{"$f":"IFERROR(IF(INDEX('WPTM_1C  Import-Export'!AA$8:AA226,MATCH($B36,'WPTM_1C  Import-Export'!$C$8:$C$201,0))=\"\",\"\",INDEX('WPTM_1C  Import-Export'!AA$8:AA226,MATCH($B36,'WPTM_1C  Import-Export'!$C$8:$C$201,0))),\"\")","v":""},{"$f":"IFERROR(IF(INDEX('WPTM_1C  Import-Export'!AB$8:AB226,MATCH($B36,'WPTM_1C  Import-Export'!$C$8:$C$201,0))=\"\",\"\",INDEX('WPTM_1C  Import-Export'!AB$8:AB226,MATCH($B36,'WPTM_1C  Import-Export'!$C$8:$C$201,0))),\"\")","v":""},{"$f":"IFERROR(IF(INDEX('WPTM_1C  Import-Export'!I$8:I226,MATCH($B36,'WPTM_1C  Import-Export'!$C$8:$C$201,0))=\"\",\"\",INDEX('WPTM_1C  Import-Export'!I$8:I226,MATCH($B36,'WPTM_1C  Import-Export'!$C$8:$C$201,0))),\"\")","v":""},null,null," ",null,null," ",null,null," "]
[27,"WPTM27",{"$f":"IFERROR(INDEX('WPTM_1C  Import-Export'!Z$8:Z227,MATCH($B37,'WPTM_1C  Import-Export'!$C$8:$C$201,0)),\"\")","v":""},{"$f":"IFERROR(IF(INDEX('WPTM_1C  Import-Export'!E$8:E227,MATCH($B37,'WPTM_1C  Import-Export'!$C$8:$C$201,0))=\"\",\"\",INDEX('WPTM_1C  Import-Export'!E$8:E227,MATCH($B37,'WPTM_1C  Import-Export'!$C$8:$C$201,0))),\"\")","v":""},{"$f":"IFERROR(IF(INDEX('WPTM_1C  Import-Export'!F$8:F227,MATCH($B37,'WPTM_1C  Import-Export'!$C$8:$C$201,0))=\"\",\"\",INDEX('WPTM_1C  Import-Export'!F$8:F227,MATCH($B37,'WPTM_1C  Import-Export'!$C$8:$C$201,0))),\"\")","v":""},{"$f":"IFERROR(IF(INDEX('WPTM_1C  Import-Export'!AA$8:AA227,MATCH($B37,'WPTM_1C  Import-Export'!$C$8:$C$201,0))=\"\",\"\",INDEX('WPTM_1C  Import-Export'!AA$8:AA227,MATCH($B37,'WPTM_1C  Import-Export'!$C$8:$C$201,0))),\"\")","v":""},{"$f":"IFERROR(IF(INDEX('WPTM_1C  Import-Export'!AB$8:AB227,MATCH($B37,'WPTM_1C  Import-Export'!$C$8:$C$201,0))=\"\",\"\",INDEX('WPTM_1C  Import-Export'!AB$8:AB227,MATCH($B37,'WPTM_1C  Import-Export'!$C$8:$C$201,0))),\"\")","v":""},{"$f":"IFERROR(IF(INDEX('WPTM_1C  Import-Export'!I$8:I227,MATCH($B37,'WPTM_1C  Import-Export'!$C$8:$C$201,0))=\"\",\"\",INDEX('WPTM_1C  Import-Export'!I$8:I227,MATCH($B37,'WPTM_1C  Import-Export'!$C$8:$C$201,0))),\"\")","v":""},null,null," ",null,null," ",null,null," "]
[28,"WPTM28",{"$f":"IFERROR(INDEX('WPTM_1C  Import-Export'!Z$8:Z228,MATCH($B38,'WPTM_1C  Import-Export'!$C$8:$C$201,0)),\"\")","v":""},{"$f":"IFERROR(IF(INDEX('WPTM_1C  Import-Export'!E$8:E228,MATCH($B38,'WPTM_1C  Import-Export'!$C$8:$C$201,0))=\"\",\"\",INDEX('WPTM_1C  Import-Export'!E$8:E228,MATCH($B38,'WPTM_1C  Import-Export'!$C$8:$C$201,0))),\"\")","v":""},{"$f":"IFERROR(IF(INDEX('WPTM_1C  Import-Export'!F$8:F228,MATCH($B38,'WPTM_1C  Import-Export'!$C$8:$C$201,0))=\"\",\"\",INDEX('WPTM_1C  Import-Export'!F$8:F228,MATCH($B38,'WPTM_1C  Import-Export'!$C$8:$C$201,0))),\"\")","v":""},{"$f":"IFERROR(IF(INDEX('WPTM_1C  Import-Export'!AA$8:AA228,MATCH($B38,'WPTM_1C  Import-Export'!$C$8:$C$201,0))=\"\",\"\",INDEX('WPTM_1C  Import-Export'!AA$8:AA228,MATCH($B38,'WPTM_1C  Import-Export'!$C$8:$C$201,0))),\"\")","v":""},{"$f":"IFERROR(IF(INDEX('WPTM_1C  Import-Export'!AB$8:AB228,MATCH($B38,'WPTM_1C  Import-Export'!$C$8:$C$201,0))=\"\",\"\",INDEX('WPTM_1C  Import-Export'!AB$8:AB228,MATCH($B38,'WPTM_1C  Import-Export'!$C$8:$C$201,0))),\"\")","v":""},{"$f":"IFERROR(IF(INDEX('WPTM_1C  Import-Export'!I$8:I228,MATCH($B38,'WPTM_1C  Import-Export'!$C$8:$C$201,0))=\"\",\"\",INDEX('WPTM_1C  Import-Export'!I$8:I228,MATCH($B38,'WPTM_1C  Import-Export'!$C$8:$C$201,0))),\"\")","v":""},null,null," ",null,null," ",null,null," "]
[29,"WPTM29",{"$f":"IFERROR(INDEX('WPTM_1C  Import-Export'!Z$8:Z229,MATCH($B39,'WPTM_1C  Import-Export'!$C$8:$C$201,0)),\"\")","v":""},{"$f":"IFERROR(IF(INDEX('WPTM_1C  Import-Export'!E$8:E229,MATCH($B39,'WPTM_1C  Import-Export'!$C$8:$C$201,0))=\"\",\"\",INDEX('WPTM_1C  Import-Export'!E$8:E229,MATCH($B39,'WPTM_1C  Import-Export'!$C$8:$C$201,0))),\"\")","v":""},{"$f":"IFERROR(IF(INDEX('WPTM_1C  Import-Export'!F$8:F229,MATCH($B39,'WPTM_1C  Import-Export'!$C$8:$C$201,0))=\"\",\"\",INDEX('WPTM_1C  Import-Export'!F$8:F229,MATCH($B39,'WPTM_1C  Import-Export'!$C$8:$C$201,0))),\"\")","v":""},{"$f":"IFERROR(IF(INDEX('WPTM_1C  Import-Export'!AA$8:AA229,MATCH($B39,'WPTM_1C  Import-Export'!$C$8:$C$201,0))=\"\",\"\",INDEX('WPTM_1C  Import-Export'!AA$8:AA229,MATCH($B39,'WPTM_1C  Import-Export'!$C$8:$C$201,0))),\"\")","v":""},{"$f":"IFERROR(IF(INDEX('WPTM_1C  Import-Export'!AB$8:AB229,MATCH($B39,'WPTM_1C  Import-Export'!$C$8:$C$201,0))=\"\",\"\",INDEX('WPTM_1C  Import-Export'!AB$8:AB229,MATCH($B39,'WPTM_1C  Import-Export'!$C$8:$C$201,0))),\"\")","v":""},{"$f":"IFERROR(IF(INDEX('WPTM_1C  Import-Export'!I$8:I229,MATCH($B39,'WPTM_1C  Import-Export'!$C$8:$C$201,0))=\"\",\"\",INDEX('WPTM_1C  Import-Export'!I$8:I229,MATCH($B39,'WPTM_1C  Import-Export'!$C$8:$C$201,0))),\"\")","v":""},null,null," ",null,null," ",null,null," "]
[30,"WPTM30",{"$f":"IFERROR(INDEX('WPTM_1C  Import-Export'!Z$8:Z230,MATCH($B40,'WPTM_1C  Import-Export'!$C$8:$C$201,0)),\"\")","v":""},{"$f":"IFERROR(IF(INDEX('WPTM_1C  Import-Export'!E$8:E230,MATCH($B40,'WPTM_1C  Import-Export'!$C$8:$C$201,0))=\"\",\"\",INDEX('WPTM_1C  Import-Export'!E$8:E230,MATCH($B40,'WPTM_1C  Import-Export'!$C$8:$C$201,0))),\"\")","v":""},{"$f":"IFERROR(IF(INDEX('WPTM_1C  Import-Export'!F$8:F230,MATCH($B40,'WPTM_1C  Import-Export'!$C$8:$C$201,0))=\"\",\"\",INDEX('WPTM_1C  Import-Export'!F$8:F230,MATCH($B40,'WPTM_1C  Import-Export'!$C$8:$C$201,0))),\"\")","v":""},{"$f":"IFERROR(IF(INDEX('WPTM_1C  Import-Export'!AA$8:AA230,MATCH($B40,'WPTM_1C  Import-Export'!$C$8:$C$201,0))=\"\",\"\",INDEX('WPTM_1C  Import-Export'!AA$8:AA230,MATCH($B40,'WPTM_1C  Import-Export'!$C$8:$C$201,0))),\"\")","v":""},{"$f":"IFERROR(IF(INDEX('WPTM_1C  Import-Export'!AB$8:AB230,MATCH($B40,'WPTM_1C  Import-Export'!$C$8:$C$201,0))=\"\",\"\",INDEX('WPTM_1C  Import-Export'!AB$8:AB230,MATCH($B40,'WPTM_1C  Import-Export'!$C$8:$C$201,0))),\"\")","v":""},{"$f":"IFERROR(IF(INDEX('WPTM_1C  Import-Export'!I$8:I230,MATCH($B40,'WPTM_1C  Import-Export'!$C$8:$C$201,0))=\"\",\"\",INDEX('WPTM_1C  Import-Export'!I$8:I230,MATCH($B40,'WPTM_1C  Import-Export'!$C$8:$C$201,0))),\"\")","v":""},null,null," ",null,null," ",null,null," "]
[31,"WPTM31",{"$f":"IFERROR(INDEX('WPTM_1C  Import-Export'!Z$8:Z231,MATCH($B41,'WPTM_1C  Import-Export'!$C$8:$C$201,0)),\"\")","v":""},{"$f":"IFERROR(IF(INDEX('WPTM_1C  Import-Export'!E$8:E231,MATCH($B41,'WPTM_1C  Import-Export'!$C$8:$C$201,0))=\"\",\"\",INDEX('WPTM_1C  Import-Export'!E$8:E231,MATCH($B41,'WPTM_1C  Import-Export'!$C$8:$C$201,0))),\"\")","v":""},{"$f":"IFERROR(IF(INDEX('WPTM_1C  Import-Export'!F$8:F231,MATCH($B41,'WPTM_1C  Import-Export'!$C$8:$C$201,0))=\"\",\"\",INDEX('WPTM_1C  Import-Export'!F$8:F231,MATCH($B41,'WPTM_1C  Import-Export'!$C$8:$C$201,0))),\"\")","v":""},{"$f":"IFERROR(IF(INDEX('WPTM_1C  Import-Export'!AA$8:AA231,MATCH($B41,'WPTM_1C  Import-Export'!$C$8:$C$201,0))=\"\",\"\",INDEX('WPTM_1C  Import-Export'!AA$8:AA231,MATCH($B41,'WPTM_1C  Import-Export'!$C$8:$C$201,0))),\"\")","v":""},{"$f":"IFERROR(IF(INDEX('WPTM_1C  Import-Export'!AB$8:AB231,MATCH($B41,'WPTM_1C  Import-Export'!$C$8:$C$201,0))=\"\",\"\",INDEX('WPTM_1C  Import-Export'!AB$8:AB231,MATCH($B41,'WPTM_1C  Import-Export'!$C$8:$C$201,0))),\"\")","v":""},{"$f":"IFERROR(IF(INDEX('WPTM_1C  Import-Export'!I$8:I231,MATCH($B41,'WPTM_1C  Import-Export'!$C$8:$C$201,0))=\"\",\"\",INDEX('WPTM_1C  Import-Export'!I$8:I231,MATCH($B41,'WPTM_1C  Import-Export'!$C$8:$C$201,0))),\"\")","v":""},null,null," ",null,null," ",null,null," "]
[32,"WPTM32",{"$f":"IFERROR(INDEX('WPTM_1C  Import-Export'!Z$8:Z232,MATCH($B42,'WPTM_1C  Import-Export'!$C$8:$C$201,0)),\"\")","v":""},{"$f":"IFERROR(IF(INDEX('WPTM_1C  Import-Export'!E$8:E232,MATCH($B42,'WPTM_1C  Import-Export'!$C$8:$C$201,0))=\"\",\"\",INDEX('WPTM_1C  Import-Export'!E$8:E232,MATCH($B42,'WPTM_1C  Import-Export'!$C$8:$C$201,0))),\"\")","v":""},{"$f":"IFERROR(IF(INDEX('WPTM_1C  Import-Export'!F$8:F232,MATCH($B42,'WPTM_1C  Import-Export'!$C$8:$C$201,0))=\"\",\"\",INDEX('WPTM_1C  Import-Export'!F$8:F232,MATCH($B42,'WPTM_1C  Import-Export'!$C$8:$C$201,0))),\"\")","v":""},{"$f":"IFERROR(IF(INDEX('WPTM_1C  Import-Export'!AA$8:AA232,MATCH($B42,'WPTM_1C  Import-Export'!$C$8:$C$201,0))=\"\",\"\",INDEX('WPTM_1C  Import-Export'!AA$8:AA232,MATCH($B42,'WPTM_1C  Import-Export'!$C$8:$C$201,0))),\"\")","v":""},{"$f":"IFERROR(IF(INDEX('WPTM_1C  Import-Export'!AB$8:AB232,MATCH($B42,'WPTM_1C  Import-Export'!$C$8:$C$201,0))=\"\",\"\",INDEX('WPTM_1C  Import-Export'!AB$8:AB232,MATCH($B42,'WPTM_1C  Import-Export'!$C$8:$C$201,0))),\"\")","v":""},{"$f":"IFERROR(IF(INDEX('WPTM_1C  Import-Export'!I$8:I232,MATCH($B42,'WPTM_1C  Import-Export'!$C$8:$C$201,0))=\"\",\"\",INDEX('WPTM_1C  Import-Export'!I$8:I232,MATCH($B42,'WPTM_1C  Import-Export'!$C$8:$C$201,0))),\"\")","v":""},null,null," ",null,null," ",null,null," "]
[33,"WPTM33",{"$f":"IFERROR(INDEX('WPTM_1C  Import-Export'!Z$8:Z233,MATCH($B43,'WPTM_1C  Import-Export'!$C$8:$C$201,0)),\"\")","v":""},{"$f":"IFERROR(IF(INDEX('WPTM_1C  Import-Export'!E$8:E233,MATCH($B43,'WPTM_1C  Import-Export'!$C$8:$C$201,0))=\"\",\"\",INDEX('WPTM_1C  Import-Export'!E$8:E233,MATCH($B43,'WPTM_1C  Import-Export'!$C$8:$C$201,0))),\"\")","v":""},{"$f":"IFERROR(IF(INDEX('WPTM_1C  Import-Export'!F$8:F233,MATCH($B43,'WPTM_1C  Import-Export'!$C$8:$C$201,0))=\"\",\"\",INDEX('WPTM_1C  Import-Export'!F$8:F233,MATCH($B43,'WPTM_1C  Import-Export'!$C$8:$C$201,0))),\"\")","v":""},{"$f":"IFERROR(IF(INDEX('WPTM_1C  Import-Export'!AA$8:AA233,MATCH($B43,'WPTM_1C  Import-Export'!$C$8:$C$201,0))=\"\",\"\",INDEX('WPTM_1C  Import-Export'!AA$8:AA233,MATCH($B43,'WPTM_1C  Import-Export'!$C$8:$C$201,0))),\"\")","v":""},{"$f":"IFERROR(IF(INDEX('WPTM_1C  Import-Export'!AB$8:AB233,MATCH($B43,'WPTM_1C  Import-Export'!$C$8:$C$201,0))=\"\",\"\",INDEX('WPTM_1C  Import-Export'!AB$8:AB233,MATCH($B43,'WPTM_1C  Import-Export'!$C$8:$C$201,0))),\"\")","v":""},{"$f":"IFERROR(IF(INDEX('WPTM_1C  Import-Export'!I$8:I233,MATCH($B43,'WPTM_1C  Import-Export'!$C$8:$C$201,0))=\"\",\"\",INDEX('WPTM_1C  Import-Export'!I$8:I233,MATCH($B43,'WPTM_1C  Import-Export'!$C$8:$C$201,0))),\"\")","v":""},null,null," ",null,null," ",null,null," "]
[34,"WPTM34",{"$f":"IFERROR(INDEX('WPTM_1C  Import-Export'!Z$8:Z234,MATCH($B44,'WPTM_1C  Import-Export'!$C$8:$C$201,0)),\"\")","v":""},{"$f":"IFERROR(IF(INDEX('WPTM_1C  Import-Export'!E$8:E234,MATCH($B44,'WPTM_1C  Import-Export'!$C$8:$C$201,0))=\"\",\"\",INDEX('WPTM_1C  Import-Export'!E$8:E234,MATCH($B44,'WPTM_1C  Import-Export'!$C$8:$C$201,0))),\"\")","v":""},{"$f":"IFERROR(IF(INDEX('WPTM_1C  Import-Export'!F$8:F234,MATCH($B44,'WPTM_1C  Import-Export'!$C$8:$C$201,0))=\"\",\"\",INDEX('WPTM_1C  Import-Export'!F$8:F234,MATCH($B44,'WPTM_1C  Import-Export'!$C$8:$C$201,0))),\"\")","v":""},{"$f":"IFERROR(IF(INDEX('WPTM_1C  Import-Export'!AA$8:AA234,MATCH($B44,'WPTM_1C  Import-Export'!$C$8:$C$201,0))=\"\",\"\",INDEX('WPTM_1C  Import-Export'!AA$8:AA234,MATCH($B44,'WPTM_1C  Import-Export'!$C$8:$C$201,0))),\"\")","v":""},{"$f":"IFERROR(IF(INDEX('WPTM_1C  Import-Export'!AB$8:AB234,MATCH($B44,'WPTM_1C  Import-Export'!$C$8:$C$201,0))=\"\",\"\",INDEX('WPTM_1C  Import-Export'!AB$8:AB234,MATCH($B44,'WPTM_1C  Import-Export'!$C$8:$C$201,0))),\"\")","v":""},{"$f":"IFERROR(IF(INDEX('WPTM_1C  Import-Export'!I$8:I234,MATCH($B44,'WPTM_1C  Import-Export'!$C$8:$C$201,0))=\"\",\"\",INDEX('WPTM_1C  Import-Export'!I$8:I234,MATCH($B44,'WPTM_1C  Import-Export'!$C$8:$C$201,0))),\"\")","v":""},null,null," ",null,null," ",null,null," "]
[35,"WPTM35",{"$f":"IFERROR(INDEX('WPTM_1C  Import-Export'!Z$8:Z235,MATCH($B45,'WPTM_1C  Import-Export'!$C$8:$C$201,0)),\"\")","v":""},{"$f":"IFERROR(IF(INDEX('WPTM_1C  Import-Export'!E$8:E235,MATCH($B45,'WPTM_1C  Import-Export'!$C$8:$C$201,0))=\"\",\"\",INDEX('WPTM_1C  Import-Export'!E$8:E235,MATCH($B45,'WPTM_1C  Import-Export'!$C$8:$C$201,0))),\"\")","v":""},{"$f":"IFERROR(IF(INDEX('WPTM_1C  Import-Export'!F$8:F235,MATCH($B45,'WPTM_1C  Import-Export'!$C$8:$C$201,0))=\"\",\"\",INDEX('WPTM_1C  Import-Export'!F$8:F235,MATCH($B45,'WPTM_1C  Import-Export'!$C$8:$C$201,0))),\"\")","v":""},{"$f":"IFERROR(IF(INDEX('WPTM_1C  Import-Export'!AA$8:AA235,MATCH($B45,'WPTM_1C  Import-Export'!$C$8:$C$201,0))=\"\",\"\",INDEX('WPTM_1C  Import-Export'!AA$8:AA235,MATCH($B45,'WPTM_1C  Import-Export'!$C$8:$C$201,0))),\"\")","v":""},{"$f":"IFERROR(IF(INDEX('WPTM_1C  Import-Export'!AB$8:AB235,MATCH($B45,'WPTM_1C  Import-Export'!$C$8:$C$201,0))=\"\",\"\",INDEX('WPTM_1C  Import-Export'!AB$8:AB235,MATCH($B45,'WPTM_1C  Import-Export'!$C$8:$C$201,0))),\"\")","v":""},{"$f":"IFERROR(IF(INDEX('WPTM_1C  Import-Export'!I$8:I235,MATCH($B45,'WPTM_1C  Import-Export'!$C$8:$C$201,0))=\"\",\"\",INDEX('WPTM_1C  Import-Export'!I$8:I235,MATCH($B45,'WPTM_1C  Import-Export'!$C$8:$C$201,0))),\"\")","v":""},null,null," ",null,null," ",null,null," "]
[36,"WPTM36",{"$f":"IFERROR(INDEX('WPTM_1C  Import-Export'!Z$8:Z236,MATCH($B46,'WPTM_1C  Import-Export'!$C$8:$C$201,0)),\"\")","v":""},{"$f":"IFERROR(IF(INDEX('WPTM_1C  Import-Export'!E$8:E236,MATCH($B46,'WPTM_1C  Import-Export'!$C$8:$C$201,0))=\"\",\"\",INDEX('WPTM_1C  Import-Export'!E$8:E236,MATCH($B46,'WPTM_1C  Import-Export'!$C$8:$C$201,0))),\"\")","v":""},{"$f":"IFERROR(IF(INDEX('WPTM_1C  Import-Export'!F$8:F236,MATCH($B46,'WPTM_1C  Import-Export'!$C$8:$C$201,0))=\"\",\"\",INDEX('WPTM_1C  Import-Export'!F$8:F236,MATCH($B46,'WPTM_1C  Import-Export'!$C$8:$C$201,0))),\"\")","v":""},{"$f":"IFERROR(IF(INDEX('WPTM_1C  Import-Export'!AA$8:AA236,MATCH($B46,'WPTM_1C  Import-Export'!$C$8:$C$201,0))=\"\",\"\",INDEX('WPTM_1C  Import-Export'!AA$8:AA236,MATCH($B46,'WPTM_1C  Import-Export'!$C$8:$C$201,0))),\"\")","v":""},{"$f":"IFERROR(IF(INDEX('WPTM_1C  Import-Export'!AB$8:AB236,MATCH($B46,'WPTM_1C  Import-Export'!$C$8:$C$201,0))=\"\",\"\",INDEX('WPTM_1C  Import-Export'!AB$8:AB236,MATCH($B46,'WPTM_1C  Import-Export'!$C$8:$C$201,0))),\"\")","v":""},{"$f":"IFERROR(IF(INDEX('WPTM_1C  Import-Export'!I$8:I236,MATCH($B46,'WPTM_1C  Import-Export'!$C$8:$C$201,0))=\"\",\"\",INDEX('WPTM_1C  Import-Export'!I$8:I236,MATCH($B46,'WPTM_1C  Import-Export'!$C$8:$C$201,0))),\"\")","v":""},null,null," ",null,null," ",null,null," "]
[37,"WPTM37",{"$f":"IFERROR(INDEX('WPTM_1C  Import-Export'!Z$8:Z237,MATCH($B47,'WPTM_1C  Import-Export'!$C$8:$C$201,0)),\"\")","v":""},{"$f":"IFERROR(IF(INDEX('WPTM_1C  Import-Export'!E$8:E237,MATCH($B47,'WPTM_1C  Import-Export'!$C$8:$C$201,0))=\"\",\"\",INDEX('WPTM_1C  Import-Export'!E$8:E237,MATCH($B47,'WPTM_1C  Import-Export'!$C$8:$C$201,0))),\"\")","v":""},{"$f":"IFERROR(IF(INDEX('WPTM_1C  Import-Export'!F$8:F237,MATCH($B47,'WPTM_1C  Import-Export'!$C$8:$C$201,0))=\"\",\"\",INDEX('WPTM_1C  Import-Export'!F$8:F237,MATCH($B47,'WPTM_1C  Import-Export'!$C$8:$C$201,0))),\"\")","v":""},{"$f":"IFERROR(IF(INDEX('WPTM_1C  Import-Export'!AA$8:AA237,MATCH($B47,'WPTM_1C  Import-Export'!$C$8:$C$201,0))=\"\",\"\",INDEX('WPTM_1C  Import-Export'!AA$8:AA237,MATCH($B47,'WPTM_1C  Import-Export'!$C$8:$C$201,0))),\"\")","v":""},{"$f":"IFERROR(IF(INDEX('WPTM_1C  Import-Export'!AB$8:AB237,MATCH($B47,'WPTM_1C  Import-Export'!$C$8:$C$201,0))=\"\",\"\",INDEX('WPTM_1C  Import-Export'!AB$8:AB237,MATCH($B47,'WPTM_1C  Import-Export'!$C$8:$C$201,0))),\"\")","v":""},{"$f":"IFERROR(IF(INDEX('WPTM_1C  Import-Export'!I$8:I237,MATCH($B47,'WPTM_1C  Import-Export'!$C$8:$C$201,0))=\"\",\"\",INDEX('WPTM_1C  Import-Export'!I$8:I237,MATCH($B47,'WPTM_1C  Import-Export'!$C$8:$C$201,0))),\"\")","v":""},null,null," ",null,null," ",null,null," "]
[38,"WPTM38",{"$f":"IFERROR(INDEX('WPTM_1C  Import-Export'!Z$8:Z238,MATCH($B48,'WPTM_1C  Import-Export'!$C$8:$C$201,0)),\"\")","v":""},{"$f":"IFERROR(IF(INDEX('WPTM_1C  Import-Export'!E$8:E238,MATCH($B48,'WPTM_1C  Import-Export'!$C$8:$C$201,0))=\"\",\"\",INDEX('WPTM_1C  Import-Export'!E$8:E238,MATCH($B48,'WPTM_1C  Import-Export'!$C$8:$C$201,0))),\"\")","v":""},{"$f":"IFERROR(IF(INDEX('WPTM_1C  Import-Export'!F$8:F238,MATCH($B48,'WPTM_1C  Import-Export'!$C$8:$C$201,0))=\"\",\"\",INDEX('WPTM_1C  Import-Export'!F$8:F238,MATCH($B48,'WPTM_1C  Import-Export'!$C$8:$C$201,0))),\"\")","v":""},{"$f":"IFERROR(IF(INDEX('WPTM_1C  Import-Export'!AA$8:AA238,MATCH($B48,'WPTM_1C  Import-Export'!$C$8:$C$201,0))=\"\",\"\",INDEX('WPTM_1C  Import-Export'!AA$8:AA238,MATCH($B48,'WPTM_1C  Import-Export'!$C$8:$C$201,0))),\"\")","v":""},{"$f":"IFERROR(IF(INDEX('WPTM_1C  Import-Export'!AB$8:AB238,MATCH($B48,'WPTM_1C  Import-Export'!$C$8:$C$201,0))=\"\",\"\",INDEX('WPTM_1C  Import-Export'!AB$8:AB238,MATCH($B48,'WPTM_1C  Import-Export'!$C$8:$C$201,0))),\"\")","v":""},{"$f":"IFERROR(IF(INDEX('WPTM_1C  Import-Export'!I$8:I238,MATCH($B48,'WPTM_1C  Import-Export'!$C$8:$C$201,0))=\"\",\"\",INDEX('WPTM_1C  Import-Export'!I$8:I238,MATCH($B48,'WPTM_1C  Import-Export'!$C$8:$C$201,0))),\"\")","v":""},null,null," ",null,null," ",null,null," "]
[39,"WPTM39",{"$f":"IFERROR(INDEX('WPTM_1C  Import-Export'!Z$8:Z239,MATCH($B49,'WPTM_1C  Import-Export'!$C$8:$C$201,0)),\"\")","v":""},{"$f":"IFERROR(IF(INDEX('WPTM_1C  Import-Export'!E$8:E239,MATCH($B49,'WPTM_1C  Import-Export'!$C$8:$C$201,0))=\"\",\"\",INDEX('WPTM_1C  Import-Export'!E$8:E239,MATCH($B49,'WPTM_1C  Import-Export'!$C$8:$C$201,0))),\"\")","v":""},{"$f":"IFERROR(IF(INDEX('WPTM_1C  Import-Export'!F$8:F239,MATCH($B49,'WPTM_1C  Import-Export'!$C$8:$C$201,0))=\"\",\"\",INDEX('WPTM_1C  Import-Export'!F$8:F239,MATCH($B49,'WPTM_1C  Import-Export'!$C$8:$C$201,0))),\"\")","v":""},{"$f":"IFERROR(IF(INDEX('WPTM_1C  Import-Export'!AA$8:AA239,MATCH($B49,'WPTM_1C  Import-Export'!$C$8:$C$201,0))=\"\",\"\",INDEX('WPTM_1C  Import-Export'!AA$8:AA239,MATCH($B49,'WPTM_1C  Import-Export'!$C$8:$C$201,0))),\"\")","v":""},{"$f":"IFERROR(IF(INDEX('WPTM_1C  Import-Export'!AB$8:AB239,MATCH($B49,'WPTM_1C  Import-Export'!$C$8:$C$201,0))=\"\",\"\",INDEX('WPTM_1C  Import-Export'!AB$8:AB239,MATCH($B49,'WPTM_1C  Import-Export'!$C$8:$C$201,0))),\"\")","v":""},{"$f":"IFERROR(IF(INDEX('WPTM_1C  Import-Export'!I$8:I239,MATCH($B49,'WPTM_1C  Import-Export'!$C$8:$C$201,0))=\"\",\"\",INDEX('WPTM_1C  Import-Export'!I$8:I239,MATCH($B49,'WPTM_1C  Import-Export'!$C$8:$C$201,0))),\"\")","v":""},null,null," ",null,null," ",null,null," "]
[40,"WPTM40",{"$f":"IFERROR(INDEX('WPTM_1C  Import-Export'!Z$8:Z240,MATCH($B50,'WPTM_1C  Import-Export'!$C$8:$C$201,0)),\"\")","v":""},{"$f":"IFERROR(IF(INDEX('WPTM_1C  Import-Export'!E$8:E240,MATCH($B50,'WPTM_1C  Import-Export'!$C$8:$C$201,0))=\"\",\"\",INDEX('WPTM_1C  Import-Export'!E$8:E240,MATCH($B50,'WPTM_1C  Import-Export'!$C$8:$C$201,0))),\"\")","v":""},{"$f":"IFERROR(IF(INDEX('WPTM_1C  Import-Export'!F$8:F240,MATCH($B50,'WPTM_1C  Import-Export'!$C$8:$C$201,0))=\"\",\"\",INDEX('WPTM_1C  Import-Export'!F$8:F240,MATCH($B50,'WPTM_1C  Import-Export'!$C$8:$C$201,0))),\"\")","v":""},{"$f":"IFERROR(IF(INDEX('WPTM_1C  Import-Export'!AA$8:AA240,MATCH($B50,'WPTM_1C  Import-Export'!$C$8:$C$201,0))=\"\",\"\",INDEX('WPTM_1C  Import-Export'!AA$8:AA240,MATCH($B50,'WPTM_1C  Import-Export'!$C$8:$C$201,0))),\"\")","v":""},{"$f":"IFERROR(IF(INDEX('WPTM_1C  Import-Export'!AB$8:AB240,MATCH($B50,'WPTM_1C  Import-Export'!$C$8:$C$201,0))=\"\",\"\",INDEX('WPTM_1C  Import-Export'!AB$8:AB240,MATCH($B50,'WPTM_1C  Import-Export'!$C$8:$C$201,0))),\"\")","v":""},{"$f":"IFERROR(IF(INDEX('WPTM_1C  Import-Export'!I$8:I240,MATCH($B50,'WPTM_1C  Import-Export'!$C$8:$C$201,0))=\"\",\"\",INDEX('WPTM_1C  Import-Export'!I$8:I240,MATCH($B50,'WPTM_1C  Import-Export'!$C$8:$C$201,0))),\"\")","v":""},null,null," ",null,null," ",null,null," "]
[41,"WPTM41",{"$f":"IFERROR(INDEX('WPTM_1C  Import-Export'!Z$8:Z241,MATCH($B51,'WPTM_1C  Import-Export'!$C$8:$C$201,0)),\"\")","v":""},{"$f":"IFERROR(IF(INDEX('WPTM_1C  Import-Export'!E$8:E241,MATCH($B51,'WPTM_1C  Import-Export'!$C$8:$C$201,0))=\"\",\"\",INDEX('WPTM_1C  Import-Export'!E$8:E241,MATCH($B51,'WPTM_1C  Import-Export'!$C$8:$C$201,0))),\"\")","v":""},{"$f":"IFERROR(IF(INDEX('WPTM_1C  Import-Export'!F$8:F241,MATCH($B51,'WPTM_1C  Import-Export'!$C$8:$C$201,0))=\"\",\"\",INDEX('WPTM_1C  Import-Export'!F$8:F241,MATCH($B51,'WPTM_1C  Import-Export'!$C$8:$C$201,0))),\"\")","v":""},{"$f":"IFERROR(IF(INDEX('WPTM_1C  Import-Export'!AA$8:AA241,MATCH($B51,'WPTM_1C  Import-Export'!$C$8:$C$201,0))=\"\",\"\",INDEX('WPTM_1C  Import-Export'!AA$8:AA241,MATCH($B51,'WPTM_1C  Import-Export'!$C$8:$C$201,0))),\"\")","v":""},{"$f":"IFERROR(IF(INDEX('WPTM_1C  Import-Export'!AB$8:AB241,MATCH($B51,'WPTM_1C  Import-Export'!$C$8:$C$201,0))=\"\",\"\",INDEX('WPTM_1C  Import-Export'!AB$8:AB241,MATCH($B51,'WPTM_1C  Import-Export'!$C$8:$C$201,0))),\"\")","v":""},{"$f":"IFERROR(IF(INDEX('WPTM_1C  Import-Export'!I$8:I241,MATCH($B51,'WPTM_1C  Import-Export'!$C$8:$C$201,0))=\"\",\"\",INDEX('WPTM_1C  Import-Export'!I$8:I241,MATCH($B51,'WPTM_1C  Import-Export'!$C$8:$C$201,0))),\"\")","v":""},null,null," ",null,null," ",null,null," "]

{"sheet":"WPTM_1C  Import-Export","index":14,"n_rows":12,"n_cols":36,"rows_kept":12,"cut":false,"hidden":true,"merged":[[5,34,6,34],[5,35,6,35],[5,29,6,29],[5,30,6,30],[5,31,6,31],[5,32,6,32],[5,33,6,33],[5,24,6,24],[5,25,6,25],[5,26,6,26],[5,27,6,27],[5,28,6,28],[5,17,6,17],[1,3,1,19],[5,3,6,3],[5,4,6,4],[5,5,6,5],[5,6,6,6],[5,7,6,7],[5,8,6,8],[5,9,6,9],[5,10,6,10],[5,11,6,11],[5,12,6,12],[5,13,6,13],[5,14,6,14],[5,15,6,15],[5,16,6,16],[5,23,6,23],[5,18,6,18],[5,19,6,19],[5,20,6,20],[5,21,6,21],[5,22,6,22]]}
[]
[null,null,null,"\nInstructions for population:\n1. Columns D to N should be mapped for download only\n2. Columns O to T should be mapped for import only\n3. Population should follow same rules as in tab WPTM_1C of current template with exception that:\na. population should be 1st sorted by field \"Key Activity Number\" on the parent record key Activity \nb. It should then be sorted by field Module and then Intervention\n"]
[]
[null,null,null,"C- Workplan Tracking Measures"]
[]
[null,null,null,"Module","Intervention (concat","Custom Intervention Display","Custom Intervention EN","Custom Intervention FR","Criterion for completion display","Activity","Activity details- milestones/targets","Criterion for completion","Country (relevant for multi-country grnats)","Comments","Progress Status","Score","Reasons for deviation from workplan activities and milestones","Progress Status","Verified Score","LFA analysis of progress and any variance between targets and results, and any other comments\n(this should not be a “Copy and Paste” of the reasons provided by the PR)","Global Fund Validated Progress Status","Global Fund Validated Score","Country Team comments on validated results","Key Activity Milestone Number","Intervention mapping","Module formula","Activity Display","Key activity milestone","Module Name ES","Module Name FR","Intervention ES","Intervention FR","Comments Local","Key Activity Local","Milestone / Target Description Local","Criterion for Completion Local"]
["Record ID",-1,null,null,null,null,null,null,null,null,null,null,null,null,null,null,null,null,null,null,null,null,null,"Key Activity Milestone Number",null,null,null,null,"Module Name ES","Module Name FR","Intervention ES","Intervention FR","Comments Local","Key Activity Local","Milestone / Target Description Local","Criterion for Completion Local"]
["[Record ID]",{"$f":"B7+1","v":0},{"$f":"\"WPTM\"&B8","v":"WPTM0"},"[Module]",{"$f":"IF(LangOffset=0,CONCATENATE(Y8),IF(LangOffset=1,CONCATENATE(AF8),IF(LangOffset=2,AE8)))","v":"[Intervention FR]"},{"$f":"IF(LangOffset=0,CONCATENATE(G8),IF(LangOffset=1,CONCATENATE(H8),IF(LangOffset=2,H8)))","v":"[Custom Intervention - Local]"},"[Custom Intervention - EN]","[Custom Intervention - Local]",{"$f":"IF(LangOffset=0,CONCATENATE(L8),IF(LangOffset=1,CONCATENATE(AJ8),IF(LangOffset=2,AJ8)))","v":"[Criterion for Completion Local]"},"[Key Activity]","[Milestone / Target Description]","[Criterion for Completion]","[Country]","[Comments]",{"$f":"IFERROR(IF(INDEX(WPTM_1C!J$11:J$200,MATCH($C8,WPTM_1C!$B$11:$B$200,0))=\"\",\"\")*INDEX(WPTM_1C!J$11:J$200,MATCH($C8,WPTM_1C!$B$11:$B$200,0)),\"\")","v":""},{"$f":"IFERROR(IF(INDEX(WPTM_1C!K$11:K$200,MATCH($C8,WPTM_1C!$B$11:$B$200,0))=\"\",\"\",INDEX(WPTM_1C!K$11:K$200,MATCH($C8,WPTM_1C!$B$11:$B$200,0))),\"\")","v":""},{"$f":"IFERROR(IF(INDEX(WPTM_1C!L$11:L$200,MATCH($C8,WPTM_1C!$B$11:$B$200,0))=\"\",\"\",INDEX(WPTM_1C!L$11:L$200,MATCH($C8,WPTM_1C!$B$11:$B$200,0))),\"\")","v":""},{"$f":"IFERROR(IF(INDEX(WPTM_1C!M$11:M$200,MATCH($C8,WPTM_1C!$B$11:$B$200,0))=\"\",\"\",INDEX(WPTM_1C!M$11:M$200,MATCH($C8,WPTM_1C!$B$11:$B$200,0))),\"\")","v":""},{"$f":"IFERROR(INDEX(WPTM_1C!N$11:N$200,MATCH($C8,WPTM_1C!$B$11:$B$200,0)),\"\")","v":""},{"$f":"IFERROR(IF(INDEX(WPTM_1C!O$11:O$200,MATCH($C8,WPTM_1C!$B$11:$B$200,0))=\"\",\"\",INDEX(WPTM_1C!O$11:O$200,MATCH($C8,WPTM_1C!$B$11:$B$200,0))),\"\")","v":""},{"$f":"IFERROR(INDEX(WPTM_1C!P$11:P$200,MATCH($C8,WPTM_1C!$B$11:$B$200,0)),\"\")","v":""},{"$f":"IFERROR(INDEX(WPTM_1C!Q$11:Q$200,MATCH($C8,WPTM_1C!$B$11:$B$200,0)),\"\")","v":""},{"$f":"IFERROR(INDEX(WPTM_1C!R$11:R$200,MATCH($C8,WPTM_1C!$B$11:$B$200,0)),\"\")","v":""},"[Key Activity Milestone Number]","[Intervention]",{"$f":"IF(LangOffset=0,CONCATENATE(D8),IF(LangOffset=1,CONCATENATE(AD8),IF(LangOffset=2,AC8)))","v":"[Module Name FR]"},{"$f":"IF(LangOffset=0,CONCATENATE(J8),IF(LangOffset=1,CONCATENATE(AH8),IF(LangOffset=2,AH8)))","v":"[Key Activity Local]"},{"$f":"IF(LangOffset=0,CONCATENATE(K8),IF(LangOffset=1,CONCATENATE(AI8),IF(LangOffset-2,AI8)))","v":"[Milestone / Target Description Local]"},"[Module Name ES]","[Module Name FR]","[Intervention ES]","[Intervention FR]","[Comments Local]","[Key Activity Local]","[Milestone / Target Description Local]","[Criterion for Completion Local]"]
["a1b36000001dzmlAAA",{"$f":"B8+1","v":1},{"$f":"\"WPTM\"&B9","v":"WPTM1"},"Comprehensive prevention programs for people who inject drugs (PWID) and their partners",{"$f":"IF(LangOffset=0,CONCATENATE(Y9),IF(LangOffset=1,CONCATENATE(AF9),IF(LangOffset=2,AE9)))","v":"Interventions pour le changement de comportement ciblant les consommateurs de drogues injectables"},null,null,null,{"$f":"IF(LangOffset=0,CONCATENATE(L9),IF(LangOffset=1,CONCATENATE(AJ9),IF(LangOffset=2,AJ9)))","v":"200 UDI atteints (S1), tels que documentés à travers le rapportage des PE, compilé par le programme (SSR et SR CRB)"},"- Training of 30 peer educators to reach 400-478 IDUs each year\n- Creation of 2 pilot community centers in Gitega and Bujumbura\n- Recruitment of counselors for the community centers","200 IDUs reached with the prevention package of services (peer education, condoms, gels, access to HIV testing and HIV/STI services) (S1).","200 IDUs reached (S1), as documented through the peer educators' reports compiled by the programme (SSR et SR CRB).\n\nnot started= 0-15% IDU reached\nstarted = 15-50% IDU reached \nadvanced = 50-80% IDU reached \ncompleted= 80-100% IDU reached with prevention package","a1A360000013M1r","The Q1 2018 activity aims to reduce new infections among people who inject drugs through awareness-raising on behavior change and screening. The three-day training session will target 30 people who inject drugs from Bujumbura Mairie (10), Gitega (5), Ngozi (5), Muyinga (5) and Rumonge (5). Once trained, the peers will deliver the comprehensive prevention package to 400 people who inject drugs in 2018, 438 in 2019, and 478 in 2020. \nThis activity will be monitored via a training report produced by the SR responsible for implementing activities for people who inject drugs and forwarded to CRB no later than two weeks after the training.\n\nThere are two social centers for people who inject drugs (in Gitega and Bujumbura). Counselors will be recruited to coordinate the centers and carry out prevention, treatment and drug use harm reduction activities.  The counselors will be recruited in the first half of 2018.\n\nThe aim of the peer education outreach activities is to boost demand for, and access to high-quality prevention activities (condoms and gels, communication, HIV screening, STI screening and treatment, service provider and key population capacity building). Staff we be recruited for these social centers. Funding will be needed to pay two psychosocial counselors and two doctors, and to cover office supplies, telephone and internet for 36 months (2018, 2019 and 2020). \n\nThis activity will be monitored via quarterly reports produced by the SSR and forwarded to the SR (CRB) and via supervision missions at the end of each half-year period.",{"$f":"IFERROR(IF(INDEX(WPTM_1C!J$11:J$200,MATCH($C9,WPTM_1C!$B$11:$B$200,0))=\"\",\"\")*INDEX(WPTM_1C!J$11:J$200,MATCH($C9,WPTM_1C!$B$11:$B$200,0)),\"\")","v":""},{"$f":"IFERROR(IF(INDEX(WPTM_1C!K$11:K$200,MATCH($C9,WPTM_1C!$B$11:$B$200,0))=\"\",\"\",INDEX(WPTM_1C!K$11:K$200,MATCH($C9,WPTM_1C!$B$11:$B$200,0))),\"\")","v":1},{"$f":"IFERROR(IF(INDEX(WPTM_1C!L$11:L$200,MATCH($C9,WPTM_1C!$B$11:$B$200,0))=\"\",\"\",INDEX(WPTM_1C!L$11:L$200,MATCH($C9,WPTM_1C!$B$11:$B$200,0))),\"\")","v":"La formation a eu lieu du 25 au 27 juillet 2018"},{"$f":"IFERROR(IF(INDEX(WPTM_1C!M$11:M$200,MATCH($C9,WPTM_1C!$B$11:$B$200,0))=\"\",\"\",INDEX(WPTM_1C!M$11:M$200,MATCH($C9,WPTM_1C!$B$11:$B$200,0))),\"\")","v":"Completed"},{"$f":"IFERROR(INDEX(WPTM_1C!N$11:N$200,MATCH($C9,WPTM_1C!$B$11:$B$200,0)),\"\")","v":3},{"$f":"IFERROR(IF(INDEX(WPTM_1C!O$11:O$200,MATCH($C9,WPTM_1C!$B$11:$B$200,0))=\"\",\"\",INDEX(WPTM_1C!O$11:O$200,MATCH($C9,WPTM_1C!$B$11:$B$200,0))),\"\")","v":""},{"$f":"IFERROR(INDEX(WPTM_1C!P$11:P$200,MATCH($C9,WPTM_1C!$B$11:$B$200,0)),\"\")","v":0},{"$f":"IFERROR(INDEX(WPTM_1C!Q$11:Q$200,MATCH($C9,WPTM_1C!$B$11:$B$200,0)),\"\")","v":" "},{"$f":"IFERROR(INDEX(WPTM_1C!R$11:R$200,MATCH($C9,WPTM_1C!$B$11:$B$200,0)),\"\")","v":0},1,"Behavioral interventions for PWID",{"$f":"IF(LangOffset=0,CONCATENATE(D9),IF(LangOffset=1,CONCATENATE(AD9),IF(LangOffset=2,AC9)))","v":"Programmes de prévention complets destinés aux consommateurs de drogues injectables et à leurs partenaires"},{"$f":"IF(LangOffset=0,CONCATENATE(J9),IF(LangOffset=1,CONCATENATE(AH9),IF(LangOffset=2,AH9)))","v":"- Formations des pairs éducateurs (30) pour atteindre 400-478 UDI chaque année.\n- Création de 2 centres de convivialité pilotes à Gitega et Bujumbura; et\n- Recrutement des conseillers pour les centres de convivialité."},{"$f":"IF(LangOffset=0,CONCATENATE(K9),IF(LangOffset=1,CONCATENATE(AI9),IF(LangOffset-2,AI9)))","v":"200 UDI atteints avec le paquet de services de prévention (pair éducation, préservatifs, gels, accès au dépistage VIH et services VIH et IST) (S1)"},"Programas de prevención integral para personas que consumen drogas inyectables y sus parejas","Programmes de prévention complets destinés aux consommateurs de drogues injectables et à leurs partenaires","Intervenciones conductuales para personas que se inyectan drogas","Interventions pour le changement de comportement ciblant les consommateurs de drogues injectables","- Former les pairs éducateurs des UDI au niveau national sur le paquet de prévention du VIH et la réduction des méfaits liés à l'usage de la drogue.\n- Recruter des conseillers pour animer les deux centres de convivialité à Gitega et à Bujumbura comme provinces pilotes pour les UDI.\n- Créer et appuyer deux centres de convivialité à Gitega et à Bujumbura comme provinces pilotes\n\n'L'activité qui sera réalisée en T1 2018 vise à réduire les nouvelles infections auprès des Usagers de drogues injectables par la sensibilisation au changement de comportement et au dépistage. La formation concernera 30 usagers de drogues injectables en une session de 3 jours provenant de Bujumbura Mairie (10), de Gitega (5), de Ngozi (5), de Muyinga (5) et de Rumonge (5). Ces PE permettront d’offrir le paquet complet de prévention à 400 UDI en 2018, 438 en 2019 et 478 en 2020. \nLe suivi de cette mesure sera fait à travers un rapport de formation qui sera produit par le SSR en charge de la mise en œuvre des activités liées aux UDI et transmis à la CRB au plus tard deux semaines après la formation.\n\n'Les UDI ont deux centres de convivialité (Gitega et Bujumbura). Le recrutement de conseillers permettra d’animer les centres de convivialité et d’y réaliser des activités liées à la prévention, la prise en charge et la réduction des méfaits liés à l’usage de la drogue.  Les conseillers seront recrutés pendant le premier semestre 2018.\nLe suivi de cette mesure se fera à travers un rapport trimestriel qui sera produit par le SSR et transmis à la CRB (SR) à la fin du premier semestre 2018 et à travers des missions de supervision qui seront organisées par la CRB à la fin du premier semestre 2018.\n\n'L'activité vise l'amélioration de la demande et de l’accessibilité aux services de prévention de qualité (préservatifs et gels, communication, dépistage du VIH, dépistage et traitement des IST, renforcement des capacités prestataires et population de clés). Le personnel pour ces espaces de convivialité sera recruté. Il sera question de payer les indemnités de 2 conseiller psychosocial et 2 médecin, fournitures de bureau, le téléphone et internet pendant 36 mois (2018, 2019 et 2020). \n\nLe suivi de cette mesure sera fait par l'exploitation des rapports trimestriels qui seront produits par le SSR et transmis au SR (CRB) mais aussi à travers des missions de supervision qui seront organisées à la fin de chaque semestre.","- Formations des pairs éducateurs (30) pour atteindre 400-478 UDI chaque année.\n- Création de 2 centres de convivialité pilotes à Gitega et Bujumbura; et\n- Recrutement des conseillers pour les centres de convivialité.","200 UDI atteints avec le paquet de services de prévention (pair éducation, préservatifs, gels, accès au dépistage VIH et services VIH et IST) (S1)","200 UDI atteints (S1), tels que documentés à travers le rapportage des PE, compilé par le programme (SSR et SR CRB)"]
[]
[]
[null,null,null," "]

{"sheet":"PR Cash Reconciliation_2A,B,C,D","index":15,"n_rows":53,"n_cols":12,"rows_kept":53,"cut":false,"hidden":true,"merged":[[0,0,0,10],[1,8,2,10],[4,2,4,4],[4,5,4,8],[4,9,4,11],[1,0,2,1],[1,2,1,3],[2,2,2,3],[3,1,3,11],[28,1,28,11],[33,1,33,11],[34,1,35,1],[34,2,34,4],[34,5,34,8],[34,9,34,11],[40,1,40,11],[45,1,45,11],[46,2,46,4],[46,5,46,8],[46,9,46,11]]}
[{"$f":"CoverSheet!A1","v":"Rapport périodique sur les résultats actuels et demande de décaissement"}]
["Section 2: Financial Information",null,{"$f":"CoverSheet!F12","v":"Période couverte par le rapport sur les information financière"},null,{"$f":"CoverSheet!I12","v":"Date de début :"},{"$f":"CoverSheet!J12","v":"2018-01-01"},{"$f":"CoverSheet!K12","v":"Date de fin :"},{"$f":"CoverSheet!L12","v":"2018-06-30"}]
[null,null,"Cumulative Period of Financial Reporting",null,{"$f":"CoverSheet!I12","v":"Date de début :"},{"$f":"CoverSheet!D13","v":"2018-01-01"},{"$f":"CoverSheet!K12","v":"Date de fin :"},{"$f":"CoverSheet!L12","v":"2018-06-30"}]
[null,"A. Principal Recipient Cash Reconciliation Statement in Grant Currency"]
[null,null,"Principal Recipient",null,null,"For LFA Use Only ",null,null,null,"For the Global Fund Use Only"]
["Item No.","Description","Cumulative for Previous Periods",{"$f":"VLOOKUP(Translations!B518,Translations!B3:H900,4,0)","v":"Période visée par le rapport"},{"$f":"VLOOKUP(Translations!B519,Translations!B3:H900,4,0)","v":"Commentaires"},"Cumulative for Previous Periods as validated by Global Fund","LFA Adjustments on Current Reporting Period","As verified by LFA","Comments","CT Adjustments (incl. External Audit adjustments)","The Global Fund Validated Figures","Comments"]
["1.1","Cash Balance: Beginning of the Period",0,0,null,null,0,{"$f":"D7+G7","v":0},null,0,{"$f":"H7+J7","v":0}]
[null,{"$f":"VLOOKUP(Translations!B527,Translations!B3:H900,4,0)","v":"2. Recettes de la subvention"}]
[null,"Add: "]
["2.1",{"$f":"VLOOKUP(Translations!B528,Translations!B3:H900,4,0)","v":"Décaissement au récipiendaire principal"},0,0,null,0,0,{"$f":"D10+G10","v":0},null,0,{"$f":"H10+J10","v":0}]
["2.2",{"$f":"VLOOKUP(Translations!B529,Translations!B3:H900,4,0)","v":"Décaissements à des tiers par le Fonds mondial au nom du récipiendaire principal"},0,0,null,0,0,{"$f":"D11+G11","v":0},null,0,{"$f":"H11+J11","v":0}]
["2.3","Interest received on bank accounts",0,0,null,0,0,{"$f":"D12+G12","v":0},null,0,{"$f":"H12+J12","v":0}]
["2.4","Revenue from income-generating activities (if applicable)",0,0,null,0,0,{"$f":"D13+G13","v":0},null,0,{"$f":"H13+J13","v":0}]
["2.5",{"$f":"VLOOKUP(Translations!B530,Translations!B3:H900,4,0)","v":"Autres recettes, le cas échéant (par ex. remboursements de TVA/d’autres impôts, produit de la cession d’actifs, etc.)"},0,0,null,0,0,{"$f":"D14+G14","v":0},null,0,{"$f":"H14+J14","v":0}]
["2.6",{"$f":"VLOOKUP(Translations!B553,Translations!B3:H900,4,0)","v":"Recettes totales de la subvention"},{"$f":"SUM(C10:C14)","v":0},{"$f":"SUM(D10:D14)","v":0},null,{"$f":"SUM(F10:F14)","v":0},{"$f":"SUM(G10:G14)","v":0},{"$f":"SUM(H10:H14)","v":0},null,{"$f":"SUM(J10:J14)","v":0},{"$f":"SUM(K10:K14)","v":0}]
[null,"3. Financial Commitments"]
[null,"Less:"]
["3.1","Principal Recipient Expenditure (including payments and other advance payments)",0,0,null,0,0,{"$f":"D18+G18","v":0},null,0,{"$f":"H18+J18","v":0}]
["3.2","Disbursement to third parties by the Global Fund on behalf of the Principal Recipient ",{"$f":"C11","v":0},{"$f":"D11","v":0},null,{"$f":"F11","v":0},{"$f":"G11","v":0},{"$f":"D19+G19","v":0},null,{"$f":"J11","v":0},{"$f":"H19+J19","v":0}]
["3.3","Principal Recipient disbursement to sub-recipients",0,0,null,0,0,{"$f":"D20+G20","v":0},null,0,{"$f":"H20+J20","v":0}]
["3.4","Bank charges on disbursements and payments",0,0,null,0,0,{"$f":"D21+G21","v":0},null,0,{"$f":"H21+J21","v":0}]
["3.5","Total Grant Cash Outflows",{"$f":"SUM(C18:C21)","v":0},{"$f":"SUM(D18:D21)","v":0},null,{"$f":"SUM(F18:F21)","v":0},{"$f":"SUM(G18:G21)","v":0},{"$f":"SUM(H18:H21)","v":0},null,{"$f":"SUM(J18:J21)","v":0},{"$f":"SUM(K18:K21)","v":0}]
[null,"4. Reconciling Adjustments"]
["4.1",{"$f":"VLOOKUP(Translations!B562,Translations!B3:H900,4,0)","v":"Autres ajustements de rapprochement (y compris pour les périodes précédentes)"},0,0,null,0,0,{"$f":"D24+G24","v":0},null,0,{"$f":"H24+J24","v":0}]
["4.2","Net exchange gains/losses on translation of balances",0,0,null,0,0,{"$f":"D25+G25","v":0},null,0,{"$f":"H25+J25","v":0}]
["4.3",{"$f":"VLOOKUP(Translations!B563,Translations!B3:H900,4,0)","v":"Transactions non recevables de périodes précédentes dont la justification a été approuvée par le Fonds mondial"},0,0,null,0,0,{"$f":"D26+G26","v":0},null,0,{"$f":"H26+J26","v":0}]
["4.4",{"$f":"VLOOKUP(Translations!B564,Translations!B3:H900,4,0)","v":"Remboursement de transactions non recevables des périodes précédentes"},0,0,null,0,0,{"$f":"D27+G27","v":0},null,0,{"$f":"H27+J27","v":0}]
["4.5",{"$f":"VLOOKUP(Translations!B567,Translations!B3:H900,4,0)","v":"Paiement anticipé pour la prochaine période de mise en œuvre"},0,0,null,0,0,{"$f":"D28+G28","v":0},null,0,{"$f":"H28+J28","v":0}]
[null,"5. Total Cash Balances: End of the reporting period"]
["5.1","Principal Recipient Cash Balance",0,{"$f":"(D7+D15-D22)+D24+D25+D27-D28","v":0},null,null,{"$f":"G7+(G15-G22)+G25+G24-G26-G28","v":0},{"$f":"(H7+H15-H22)+H24+H25-H26-H28","v":0},null,{"$f":"J7+J15-J22+J25+J24","v":0},{"$f":"K7+K15-K22+K25+K24-K26-K28","v":0}]
["5.2","Sub-Recipient Cash Balance",0,{"$f":"'SR_Cash Reconciliation_2E'!J109","v":0},null,null,{"$f":"'SR_Cash Reconciliation_2E'!N109","v":0},{"$f":"'SR_Cash Reconciliation_2E'!O109","v":0},null,0,{"$f":"+H31+J31","v":0}]
["5.3","Total Cash Balance",{"$f":"C30+C31","v":0},{"$f":"D30+D31","v":0},null,{"$f":"F30+F31","v":0},{"$f":"G30+G31","v":0},{"$f":"H30+H31","v":0},null,{"$f":"J30+J31","v":0},{"$f":"K30+K31","v":0}]
[]
[null,"B. Principal Recipient Bank Statement Balance & Cash In Transit in Grant Currency"]
[null,null,{"$f":"C5","v":"Principal Recipient"},null,null,"For LFA Use Only ",null,null,null,"For the Global Fund Use Only"]
[null,null,null,"As At End of Current Period",{"$f":"E6","v":"Commentaires"},null,"LFA Adjustments on Current Reporting Period","As verified by LFA","Comments","CT Adjustments","The Global Fund Validated Figures","Comments"]
["6.1","Principal Recipient Cash Balance as per bank statements (For Information Only):",null,0,null,null,0,{"$f":"D37+G37","v":0},null,0,{"$f":"H37+J37","v":0}]
["6.2","Cash in Transit for the reporting period",null,0,null,null,0,{"$f":"D38+G38","v":0},null,0,{"$f":"H38+J38","v":0}]
["6.3","Cash in Transit after the current reporting period",null,0,null,null,0,{"$f":"D39+G39","v":0},null,0,{"$f":"H39+J39","v":0}]
[]
[null,"C. Principal Recipient Financial Commitments and Financial Obligations"]
["7.1","Financial Commitments",0,0,null,0,0,{"$f":"D42+G42","v":0},null,0,{"$f":"H42+J42","v":0}]
["7.2","Financial Obligations",0,0,null,0,0,{"$f":"D43+G43","v":0},null,0,{"$f":"H43+J43","v":0}]
["7.4","Total Financial Commitments & Financial Obligations",{"$f":"SUM(C42:C43)","v":0},{"$f":"SUM(D42:D43)","v":0},null,{"$f":"SUM(F42:F43)","v":0},{"$f":"SUM(G42:G43)","v":0},{"$f":"SUM(H42:H43)","v":0},null,{"$f":"SUM(J42:J43)","v":0},{"$f":"SUM(K42:K43)","v":0}]
[]
[null,"D. Principal Recipient Ineligible Transactions in Grant Currency "]
[null,null,{"$f":"C5","v":"Principal Recipient"},null,null,"For LFA Use Only ",null,null,null,"For the Global Fund Use Only"]
[null,null,"Cumulative for Previous Periods","Current Reporting Period",{"$f":"E6","v":"Commentaires"},"Cumulative for Previous Periods as validated by Global Fund","LFA Adjustments on Current Reporting Period","As verified by LFA","Comments","CT Adjustments","The Global Fund Validated Figures","Comments"]
["8.1",{"$f":"VLOOKUP(Translations!B583,Translations!B3:H900,4,0)","v":"Transactions non recevables validées pour la période de rapport"},0,0,null,null,0,{"$f":"D49+G49","v":0},null,0,{"$f":"H49+J49","v":0}]
["8.2",{"$f":"VLOOKUP(Translations!B584,Translations!B3:H900,4,0)","v":"Transactions non recevables des périodes précédentes dont la justification a été approuvée par le Fonds mondial"},{"$f":"C26","v":0},{"$f":"D26","v":0},null,{"$f":"F26","v":0},{"$f":"G26","v":0},{"$f":"D50+G50","v":0},null,{"$f":"J26","v":0},{"$f":"H50+J50","v":0}]
["8.3",{"$f":"VLOOKUP(Translations!B585,Translations!B3:H900,4,0)","v":"Remboursement de transactions non recevables des périodes précédentes"},{"$f":"C27","v":0},{"$f":"D27","v":0},null,{"$f":"F27","v":0},{"$f":"G27","v":0},{"$f":"D51+G51","v":0},null,{"$f":"J27","v":0},{"$f":"H51+J51","v":0}]
["8.4",{"$f":"VLOOKUP(Translations!B586,Translations!B3:H900,4,0)","v":"Transactions non recevables cumulées pour la période de mise en œuvre"},0,{"$f":"D49+C52","v":0},null,0,{"$f":"H49","v":0},{"$f":"F52+G52","v":0},null,0,{"$f":"H52+J52","v":0}]
["8.5",{"$f":"VLOOKUP(Translations!B587,Translations!B3:H900,4,0)","v":"Transactions non recevables ouvertes à justifier et/ou rembourser"},{"$f":"C52-C50-C51","v":0},{"$f":"C53+D49-D50-D51","v":0},null,{"$f":"F52-F50-F51","v":0},null,{"$f":"H52-F50-F51-H50-H51","v":0},null,0,{"$f":"K52-F50-F51-K50-K51","v":0}]

{"sheet":"Commitments_Obligations","index":16,"n_rows":116,"n_cols":16,"rows_kept":116,"cut":false,"hidden":false,"merged":[[3,13,3,15],[61,1,61,9],[61,10,61,12],[61,13,61,15],[62,8,62,9],[3,1,3,9],[3,10,3,12],[82,8,82,9],[83,8,83,9],[84,8,84,9],[97,8,97,9],[98,8,98,9],[94,8,94,9],[99,8,99,9],[100,8,100,9],[85,8,85,9],[86,8,86,9],[87,8,87,9],[88,8,88,9],[89,8,89,9],[90,8,90,9],[92,8,92,9],[93,8,93,9],[95,8,95,9],[96,8,96,9],[91,8,91,9],[112,8,112,9],[113,8,113,9],[104,8,104,9],[105,8,105,9],[106,8,106,9],[107,8,107,9],[108,8,108,9],[109,8,109,9],[101,8,101,9],[102,8,102,9],[110,8,110,9],[103,8,103,9],[111,8,111,9]]}
[]
["Financial Commitments"]
[]
[null,"Principal Recipient",null,null,null,null,null,null,null,null,"For LFA Use Only ",null,null,"For the Global Fund Use Only"]
["#","Module ","Intervention","Activity Description","Cost input","Amount in Grant Currency","Delivery date","Expected Payment date ","Effective Payment date ","Comments","LFA Adjustments","As verified by LFA","Comments","CT Adjustments (incl. External Audit adjustments)","The Global Fund Validated Figures","Comments"]
[1,"Gestion de programme","Gestion des subventions","ordinateurs/laptop avec dockstation","9.1 Matériel informatiquee , ordinateurs, logiciel et applications",453.79799999999886,"10/05/18","31/05/18",null,"ordinateurs/laptop avec dockstation au profit de l'UGP auprès de Danoffice PO 11423",null,{"$f":"F6+K6","v":453.79799999999886},null,null,{"$f":"L6+N6","v":453.79799999999886}]
[2,"Gestion de programme","Gestion des subventions","PRE ALLOCATED BUDGET - Gestion des subventions","2.4 Indemnités journalières liés à la sensibilisation/ transport/réunion/ et autres coût",550,"02/05/2018","02/05/2018",null," Consultante PSM/ International - PO 11440",null,550,null,null,550]
[3,"Prévention de la transmission de la mère à l'enfant (PTME)","Volet 3 : prévention de la transmission verticale du VIH","Acquisition des médicaments ARV pour la PTME","4.1 Médicaments antirétroviraux",462,"18/04/2018","02/05/2018",null,"Achat de médicaments ARV PTME - GPH3-010",null,462,null,null,462]
[4,"Prise en charge et prévention de la tuberculose","Dépistage et diagnostic des maladies","Payer à la CAMEBU,  les frais d’entreposage, de  stockage et de gestion des médicaments acquis par le PNILT (GAS)","7.3 Coûts d'entreposage et de stockage",1157,"18/05/2018","18/05/2018",null,"Achat billet d'avion participation à la conférence de l'OMS - PO 11518",null,1157,null,null,1157]
[5,"Prévention de la transmission de la mère à l'enfant (PTME)","Volet 3 : prévention de la transmission verticale du VIH","Payer à la CAMEBU,  les frais d’entreposage, de  stockage et de gestion des médicaments ARV pour la PTME acquis par le PNILS (GAS)","7.3 Coûts d'entreposage et de stockage",1157,"18/05/2018","18/05/2018",null,"Achat billet d'avion participation à la conférence de l'OMS - PO 11518",null,1157,null,null,1157]
[6,"Systèmes de santé résilients et pérennes : système de gestion de l'information sanitaire et suivi et évaluation","Qualité du programme et des données"," Organiser une participation de 4 Super users de la DSNIS à une Academie régionale de DHIS 2 ","2.1 Indemnités journalières liés à la formation/transports/autres coûts",5316,"29/07/2018","29/07/2018","07/08/2018","Formation à l'académie DHIS 2 à Lomé - PO 11591",null,5316,null,null,5316]
[7,"Systèmes de santé résilients et pérennes : système de gestion de l'information sanitaire et suivi et évaluation","Qualité du programme et des données"," Organiser une participation de 4 Super users de la DSNIS à une Academie régionale de DHIS 2 ","2.1 Indemnités journalières liés à la formation/transports/autres coûts",1440,"29/07/2018","29/07/2018",null,"Formation à l'académie DHIS 2 à Lomé - PO 11596",null,1440,null,null,1440]
[8,"PNLT Financial report not recorded ",null,null,null,49342.19,null,null,null,null,null,49342.19,null,null,49342.19]
[9,"CRB Financial report not yet recorded",null,null,null,{"$f":"64625194/1763.845","v":36638.816902845771},null,null,null,null,null,36638.816902845771,null,null,36638.816902845771]
[10,"PNLS Financial report not yet recorded",null,null,null,{"$f":"(108678570)/1761.177+(416535865/1763.845)","v":297860.11340647045},null,null,null,null,null,297860.11340647045,null,null,297860.11340647045]
[11,"Achat d'un appareil cinema mobile (CRB)",null,"Achat d'un appareil cinema mobile (CRB)",null,{"$f":"155996800/1764.828","v":88392.069935427135},null,null,null,null,null,88392.069935427135,null,null,88392.069935427135]
[12,"Gestion de programme","Gestion des subventions","Salaire personnel PNLS au 300618",null,{"$f":"8503.37858168+18934.39","v":27437.76858168},null,null,null,null,null,27437.76858168,null,null,27437.76858168]
[13,"Tuberculose multirésistante","Traitement : tuberculose multirésistante","Contribuer financièrement au frais de transport des malades TB/MR suivis en post hospitalisation dans les CDT à raison d’un aller-retour par mois durant 6 mois ","12.5 Autres coûts liés à l'aide à la subsistance apportée aux clients/population cible",3328.366277053628,null,null,null,null,null,3328.366277053628,null,null,3328.366277053628]
[14,"Gestion de programme","Gestion des subventions","Gestion des subventions - ICR","11.3 Recouvrement des coûts indirects (RCI) - axé sur le pourcentage",{"$f":"(SUM(F9:F18))*7%","v":35844.852757243396},null,null,null,null,null,35844.852757243396,null,null,35844.852757243396]
[15,null,null,null,null,null,null,null,null,null,null,0,null,null,0]
[16,null,null,null,null,null,null,null,null,null,null,0,null,null,0]
[17,null,null,null,null,null,null,null,null,null,null,0,null,null,0]
[18,null,null,null,null,null,null,null,null,null,null,0,null,null,0]
[19,null,null,null,null,null,null,null,null,null,null,0,null,null,0]
[20,null,null,null,null,null,null,null,null,null,null,0,null,null,0]
[21,null,null,null,null,null,null,null,null,null,null,0,null,null,0]
[22,null,null,null,null,null,null,null,null,null,null,0,null,null,0]
[23,null,null,null,null,null,null,null,null,null,null,0,null,null,0]
[24,null,null,null,null,null,null,null,null,null,null,0,null,null,0]
[25,null,null,null,null,null,null,null,null,null,null,0,null,null,0]
[26,null,null,null,null,null,null,null,null,null,null,0,null,null,0]
[27,null,null,null,null,null,null,null,null,null,null,0,null,null,0]
[28,null,null,null,null,null,null,null,null,null,null,0,null,null,0]
[29,null,null,null,null,null,null,null,null,null,null,0,null,null,0]
[30,null,null,null,null,null,null,null,null,null,null,0,null,null,0]
[31,null,null,null,null,null,null,null,null,null,null,0,null,null,0]
[32,null,null,null,null,null,null,null,null,null,null,0,null,null,0]
[33,null,null,null,null,null,null,null,null,null,null,{"$f":"F38+K38","v":0},null,null,{"$f":"L38+N38","v":0}]
[34,null,null,null,null,null,null,null,null,null,null,0,null,null,0]
[35,null,null,null,null,null,null,null,null,null,null,0,null,null,0]
[36,null,null,null,null,null,null,null,null,null,null,0,null,null,0]
[37,null,null,null,null,null,null,null,null,null,null,0,null,null,0]
[38,null,null,null,null,null,null,null,null,null,null,0,null,null,0]
[39,null,null,null,null,null,null,null,null,null,null,0,null,null,0]
[40,null,null,null,null,null,null,null,null,null,null,0,null,null,0]
[41,null,null,null,null,null,null,null,null,null,null,0,null,null,0]
[42,null,null,null,null,null,null,null,null,null,null,0,null,null,0]
[43,null,null,null,null,null,null,null,null,null,null,0,null,null,0]
[44,null,null,null,null,null,null,null,null,null,null,0,null,null,0]
[45,null,null,null,null,null,null,null,null,null,null,0,null,null,0]
[46,null,null,null,null,null,null,null,null,null,null,0,null,null,0]
[47,null,null,null,null,null,null,null,null,null,null,0,null,null,0]
[48,null,null,null,null,null,null,null,null,null,null,0,null,null,0]
[49,null,null,null,null,null,null,null,null,null,null,0,null,null,0]
[50,null,null,null,null,null,null,null,null,null,null,0,null,null,0]
[null,"Total",null,null,null,{"$f":"SUM(F6:F55)","v":549379.97586072038},null,null,null,null,{"$f":"SUM(K6:K55)","v":0},{"$f":"SUM(L6:L55)","v":549379.97586072038},null,{"$f":"SUM(N6:N55)","v":0},{"$f":"SUM(O6:O55)","v":549379.97586072038}]
[]
[null,null,null,null,null,{"$f":"IF(AND(ROUND(F56,0)=ROUND('PR Cash Reconciliation_2A,B,C,D'!D42,0)),\"OK\",\"WARNING -Financial Commitments not matching\")","v":"WARNING -Financial Commitments not matching"},null,null,null,null,null,{"$f":"IF(AND(ROUND(L56,0)=ROUND('PR Cash Reconciliation_2A,B,C,D'!H42,0)),\"OK\",\"WARNING -Financial Commitments not matching\")","v":"WARNING -Financial Commitments not matching"}]
[]
["Financial Obligations"]
[]
[null,"Principal Recipient",null,null,null,null,null,null,null,null,"For LFA Use Only ",null,null,"For the Global Fund Use Only"]
["#","Module ","Intervention","Activity Description","Cost input","Amount in Grant Currency","Expected Delivery date","Expected Payment date ","Comments",null,"LFA Adjustments","As verified by LFA","Comments","CT Adjustments (incl. External Audit adjustments)","The Global Fund Validated Figures","Comments"]
[1,"Gestion de programme","Gestion des subventions","Gestion des subventions","11.1 Coûts liés au bureaux",6170.5667634466363,null,null,"PO 0000011436","frais de connexion internet",null,{"$f":"F64+K64","v":6170.5667634466363},null,null,{"$f":"L64+N64","v":6170.5667634466363}]
[2,"Gestion de programme","Gestion des subventions","PRE ALLOCATED BUDGET - Gestion des subventions","1.1 Salaires - gestion du programme",30.6,null,null,"PO 0000011444","frais de visa  Consultant International",null,30.6,null,null,30.6]
[3,"Traitement, prise en charge et soutien","Prévention, diagnostic et traitement des infections opportunistes","Acquerir des produits de Santé  indispensables pour les sessions de formation sur le dépistage du cancer du col","4.5 Médicaments contre les infections opportunistes et les IST",92051,null,null,"'0000011519","Achat de médicaments IO et IST",null,92051,null,null,92051]
[4,"Traitement, prise en charge et soutien","Prévention, diagnostic et traitement des infections opportunistes","Coût Transport international (15%) + Assurance (0.08%) - IO","7.2 Coûts de fret et d’assurance (produits de santé)",16023.7,null,null,"'0000011519","Coût Transport international",null,16023.7,null,null,16023.7]
[5,"Traitement, prise en charge et soutien","Prise en charge du VIH","Acquisition des médicaments ARV pour le traitement des patients","4.1 Médicaments antirétroviraux",999348.06,null,null,"'0000011566","Acquisition des médicaments ARV pour le traitement des patients",null,999348.06,null,null,999348.06]
[6,"Prise en charge et prévention de la tuberculose","Dépistage et diagnostic des maladies","Acheter les réactifs et consommables de laboratoire pour le diagnostic de la tuberculose chez  les suspects de tuberculose  durant la période de la subvention ","5.8 Autres consommables",3603.8699999999953,null,null,"GP410258-1","Achat de réactifs TB",null,3603.8699999999953,null,null,3603.8699999999953]
[7,"Prise en charge et prévention de la tuberculose","Dépistage et diagnostic des maladies","Contribuer au paiement des coûts de fret et d'assurance ","7.2 Coûts de fret et d’assurance (produits de santé)",8403.1600000000035,null,null,"GP410258-1","Fret des réactifs TB",null,8403.1600000000035,null,null,8403.1600000000035]
[8,"Prise en charge et prévention de la tuberculose","Dépistage et diagnostic des maladies","Acheter les réactifs et consommables de laboratoire pour le diagnostic de la tuberculose chez  les suspects de tuberculose  durant la période de la subvention ","5.6 Réactifs de laboratoire",9572,null,null,"GP410259-1","Achat de réactifs TB pour le diagnostic des suspects",null,9572,null,null,9572]
[9,"Prise en charge et prévention de la tuberculose","Dépistage et diagnostic des maladies","Acheter les réactifs et consommables de laboratoire pour le diagnostic de la tuberculose chez  les suspects de tuberculose  durant la période de la subvention ","5.6 Réactifs de laboratoire",93.329999999999984,null,null,"GP410259-1","Achat de réactifs TB pour le diagnostic des suspects",null,93.329999999999984,null,null,93.329999999999984]
[10,"Prise en charge et prévention de la tuberculose","Dépistage et diagnostic des maladies","Contribuer au paiement des coûts de fret et d'assurance ","7.2 Coûts de fret et d’assurance (produits de santé)",450,null,null,"GP410259-1","Frigopallets et data loggers des réactifs TB pour le diagnostic des suspects",null,450,null,null,450]
[11,"Prise en charge et prévention de la tuberculose","Dépistage et diagnostic des maladies","Contribuer au paiement des coûts de fret et d'assurance ","7.2 Coûts de fret et d’assurance (produits de santé)",3436.5,null,null,"GP410259-2","Fret des réactifs TB pour le diagnostic des suspects",null,3436.5,null,null,3436.5]
[12,"Traitement, prise en charge et soutien","Suivi du traitement - Charge virale","Acquisition des réactifs pour la charge virale","5.6 Réactifs de laboratoire",217026,null,null,"GP410260-1","Achat de réactifs charge virale",null,217026,null,null,217026]
[13,"Traitement, prise en charge et soutien","Suivi du traitement - Charge virale","Coût Transport international (15%) + Assurance (0.08%) - CV","7.2 Coûts de fret et d’assurance (produits de santé)",6740,null,null,"GP410260-2","Fret international réactifs charge virale",null,6740,null,null,6740]
[14,"Prise en charge et prévention de la tuberculose","Dépistage et diagnostic des maladies","Doter les laboratoires de région, les hôpitaux, les associations de prise en charge (avec grande file active) et le CATB en kits GenXpert pour le diagnostic de la tuberculose et la notification de la tuberculose multi résistante (GAS)","6.4 Équipement de dépistage moléculaire de la tuberculose",155688,null,null,"GP410280-1","Achat de kits GenXpert",null,155688,null,null,155688]
[15,"Prise en charge et prévention de la tuberculose","Dépistage et diagnostic des maladies","Contribuer au paiement des coûts de fret et d'assurance ","7.2 Coûts de fret et d’assurance (produits de santé)",6700,null,null,"GP410280-1","Fret des kits GenXpert",null,6700,null,null,6700]
[16,"Prévention de la transmission de la mère à l'enfant (PTME)","Volet 3 : prévention de la transmission verticale du VIH","Acquisition des réactifs de laboratoire dans le cadre de la PTME","5.4 Test de diagnostic rapide",64312.5,null,null,"GP410298-1","Achat de réactifs PTME",null,64312.5,null,null,64312.5]
[17,"Prévention de la transmission de la mère à l'enfant (PTME)","Volet 3 : prévention de la transmission verticale du VIH","Payer les frais de transport et d'assurance des réactifs et consommables de laboratoire dans le cadre de la PTME","7.2 Coûts de fret et d’assurance (produits de santé)",{"$f":"4880+500","v":5380},null,null,"GP410298-1","Fret et data loggers réactifs PTME",null,5380,null,null,5380]
[18,"Gestion de programme","Gestion des subventions","Gestion des subventions - ICR","11.3 Recouvrement des coûts indirects (RCI) - axé sur le pourcentage",{"$f":"SUM(F64:F80)*7%","v":111652.05007344128},null,null,null,"Frais de gestion sur financial obligations",null,111652.05007344128,null,null,111652.05007344128]
[19,"Gestion de programme","Gestion des subventions","Gestion des subventions - ICR","11.3 Recouvrement des coûts indirects (RCI) - axé sur le pourcentage",{"$f":"121999.46*7%","v":8539.9622000000018},null,null,null,"frais de gestion sur prepayment",null,8539.9622000000018,null,null,8539.9622000000018]
[20,null,null,null,null,null,null,null,null,null,null,0,null,null,0]
[21,null,null,null,null,null,null,null,null,null,null,0,null,null,0]
[22,null,null,null,null,null,null,null,null,null,null,0,null,null,0]
[23,null,null,null,null,null,null,null,null,null,null,0,null,null,0]
[24,null,null,null,null,null,null,null,null,null,null,0,null,null,0]
[25,null,null,null,null,null,null,null,null,null,null,0,null,null,0]
[26,null,null,null,null,null,null,null,null,null,null,0,null,null,0]
[27,null,null,null,null,null,null,null,null,null,null,0,null,null,0]
[28,null,null,null,null,null,null,null,null,null,null,0,null,null,0]
[29,null,null,null,null,null,null,null,null,null,null,0,null,null,0]
[30,null,null,null,null,null,null,null,null,null,null,0,null,null,0]
[31,null,null,null,null,null,null,null,null,null,null,0,null,null,0]
[32,null,null,null,null,null,null,null,null,null,null,0,null,null,0]
[33,null,null,null,null,null,null,null,null,null,null,{"$f":"F96+K96","v":0},null,null,{"$f":"L96+N96","v":0}]
[34,null,null,null,null,null,null,null,null,null,null,0,null,null,0]
[35,null,null,null,null,null,null,null,null,null,null,0,null,null,0]
[36,null,null,null,null,null,null,null,null,null,null,0,null,null,0]
[37,null,null,null,null,null,null,null,null,null,null,0,null,null,0]
[38,null,null,null,null,null,null,null,null,null,null,0,null,null,0]
[39,null,null,null,null,null,null,null,null,null,null,0,null,null,0]
[40,null,null,null,null,null,null,null,null,null,null,0,null,null,0]
[41,null,null,null,null,null,null,null,null,null,null,0,null,null,0]
[42,null,null,null,null,null,null,null,null,null,null,0,null,null,0]
[43,null,null,null,null,null,null,null,null,null,null,0,null,null,0]
[44,null,null,null,null,null,null,null,null,null,null,0,null,null,0]
[45,null,null,null,null,null,null,null,null,null,null,0,null,null,0]
[46,null,null,null,null,null,null,null,null,null,null,0,null,null,0]
[47,null,null,null,null,null,null,null,null,null,null,0,null,null,0]
[48,null,null,null,null,null,null,null,null,null,null,0,null,null,0]
[49,null,null,null,null,null,null,null,null,null,null,0,null,null,0]
[50,null,null,null,null,null,null,null,null,null,null,0,null,null,0]
[null,"Total",null,null,null,{"$f":"SUM(F64:F113)","v":1715221.2990368879},null,null,null,null,{"$f":"SUM(K64:K113)","v":0},{"$f":"SUM(L64:L113)","v":1715221.2990368879},null,{"$f":"SUM(N64:N113)","v":0},{"$f":"SUM(O64:O113)","v":1715221.2990368879}]
[]
[null,null,null,null,null,{"$f":"IF(AND(ROUND(F114,0)=ROUND('PR Cash Reconciliation_2A,B,C,D'!D43,0)),\"OK\",\"WARNING -Financial Obligations not matching\")","v":"WARNING -Financial Obligations not matching"},null,null,null,null,null,{"$f":"IF(AND(ROUND(L114,0)=ROUND('PR Cash Reconciliation_2A,B,C,D'!H43,0)),\"OK\",\"WARNING -Financial Obligations not matching\")","v":"WARNING -Financial Obligations not matching"}]

{"sheet":"PR Cash Recon Import-Export","index":17,"n_rows":40,"n_cols":8,"rows_kept":40,"cut":false,"hidden":true,"merged":[]}
[]
[]
["Record ID","Item number","PR Cumulative","PR Current","PR Comment","LFA Cumulative","LFA Current Adjust","LFA Comment"]
["[Record ID]","[Item number]",{"$f":"IFERROR(INDEX('PR Cash Reconciliation_2A,B,C,D'!$C$7:$C$55,MATCH(B4,'PR Cash Reconciliation_2A,B,C,D'!$A$7:$A$55,0)),\"\")","v":""},{"$f":"IFERROR(INDEX('PR Cash Reconciliation_2A,B,C,D'!$D$7:$D$55,MATCH(B4,'PR Cash Reconciliation_2A,B,C,D'!$A$7:$A$55,0)),\"\")","v":""},{"$f":"IFERROR(IF(INDEX('PR Cash Reconciliation_2A,B,C,D'!$E$7:$E$55,MATCH(B4,'PR Cash Reconciliation_2A,B,C,D'!$A$7:$A$55,0))=0,\"\",INDEX('PR Cash Reconciliation_2A,B,C,D'!$E$7:$E$55,MATCH(B4,'PR Cash Reconciliation_2A,B,C,D'!$A$7:$A$55,0))),\"\")","v":""},{"$f":"IFERROR(INDEX('PR Cash Reconciliation_2A,B,C,D'!$F$7:$F$55,MATCH(B4,'PR Cash Reconciliation_2A,B,C,D'!$A$7:$A$55,0)),\"\")","v":""},{"$f":"IFERROR(INDEX('PR Cash Reconciliation_2A,B,C,D'!$G$7:$G$55,MATCH(B4,'PR Cash Reconciliation_2A,B,C,D'!$A$7:$A$55,0)),\"\")","v":""},{"$f":"IFERROR(IF(INDEX('PR Cash Reconciliation_2A,B,C,D'!$I$7:$I$55,MATCH(B4,'PR Cash Reconciliation_2A,B,C,D'!$A$7:$A$55,0))=0,\"\",INDEX('PR Cash Reconciliation_2A,B,C,D'!$I$7:$I$55,MATCH(B4,'PR Cash Reconciliation_2A,B,C,D'!$A$7:$A$55,0))),\"\")","v":""}]
["a4836000000gbVTAAY","1.1",{"$f":"IFERROR(INDEX('PR Cash Reconciliation_2A,B,C,D'!$C$7:$C$55,MATCH(B5,'PR Cash Reconciliation_2A,B,C,D'!$A$7:$A$55,0)),\"\")","v":0},{"$f":"IFERROR(INDEX('PR Cash Reconciliation_2A,B,C,D'!$D$7:$D$55,MATCH(B5,'PR Cash Reconciliation_2A,B,C,D'!$A$7:$A$55,0)),\"\")","v":0},{"$f":"IFERROR(IF(INDEX('PR Cash Reconciliation_2A,B,C,D'!$E$7:$E$55,MATCH(B5,'PR Cash Reconciliation_2A,B,C,D'!$A$7:$A$55,0))=0,\"\",INDEX('PR Cash Reconciliation_2A,B,C,D'!$E$7:$E$55,MATCH(B5,'PR Cash Reconciliation_2A,B,C,D'!$A$7:$A$55,0))),\"\")","v":""},{"$f":"IFERROR(INDEX('PR Cash Reconciliation_2A,B,C,D'!$F$7:$F$55,MATCH(B5,'PR Cash Reconciliation_2A,B,C,D'!$A$7:$A$55,0)),\"\")","v":0},{"$f":"IFERROR(INDEX('PR Cash Reconciliation_2A,B,C,D'!$G$7:$G$55,MATCH(B5,'PR Cash Reconciliation_2A,B,C,D'!$A$7:$A$55,0)),\"\")","v":0},{"$f":"IFERROR(IF(INDEX('PR Cash Reconciliation_2A,B,C,D'!$I$7:$I$55,MATCH(B5,'PR Cash Reconciliation_2A,B,C,D'!$A$7:$A$55,0))=0,\"\",INDEX('PR Cash Reconciliation_2A,B,C,D'!$I$7:$I$55,MATCH(B5,'PR Cash Reconciliation_2A,B,C,D'!$A$7:$A$55,0))),\"\")","v":""}]
["a4836000000gbVUAAY","2.1",{"$f":"IFERROR(INDEX('PR Cash Reconciliation_2A,B,C,D'!$C$7:$C$55,MATCH(B6,'PR Cash Reconciliation_2A,B,C,D'!$A$7:$A$55,0)),\"\")","v":0},{"$f":"IFERROR(INDEX('PR Cash Reconciliation_2A,B,C,D'!$D$7:$D$55,MATCH(B6,'PR Cash Reconciliation_2A,B,C,D'!$A$7:$A$55,0)),\"\")","v":0},{"$f":"IFERROR(IF(INDEX('PR Cash Reconciliation_2A,B,C,D'!$E$7:$E$55,MATCH(B6,'PR Cash Reconciliation_2A,B,C,D'!$A$7:$A$55,0))=0,\"\",INDEX('PR Cash Reconciliation_2A,B,C,D'!$E$7:$E$55,MATCH(B6,'PR Cash Reconciliation_2A,B,C,D'!$A$7:$A$55,0))),\"\")","v":""},{"$f":"IFERROR(INDEX('PR Cash Reconciliation_2A,B,C,D'!$F$7:$F$55,MATCH(B6,'PR Cash Reconciliation_2A,B,C,D'!$A$7:$A$55,0)),\"\")","v":0},{"$f":"IFERROR(INDEX('PR Cash Reconciliation_2A,B,C,D'!$G$7:$G$55,MATCH(B6,'PR Cash Reconciliation_2A,B,C,D'!$A$7:$A$55,0)),\"\")","v":0},{"$f":"IFERROR(IF(INDEX('PR Cash Reconciliation_2A,B,C,D'!$I$7:$I$55,MATCH(B6,'PR Cash Reconciliation_2A,B,C,D'!$A$7:$A$55,0))=0,\"\",INDEX('PR Cash Reconciliation_2A,B,C,D'!$I$7:$I$55,MATCH(B6,'PR Cash Reconciliation_2A,B,C,D'!$A$7:$A$55,0))),\"\")","v":""}]
["a4836000000gbVVAAY","2.2",{"$f":"IFERROR(INDEX('PR Cash Reconciliation_2A,B,C,D'!$C$7:$C$55,MATCH(B7,'PR Cash Reconciliation_2A,B,C,D'!$A$7:$A$55,0)),\"\")","v":0},{"$f":"IFERROR(INDEX('PR Cash Reconciliation_2A,B,C,D'!$D$7:$D$55,MATCH(B7,'PR Cash Reconciliation_2A,B,C,D'!$A$7:$A$55,0)),\"\")","v":0},{"$f":"IFERROR(IF(INDEX('PR Cash Reconciliation_2A,B,C,D'!$E$7:$E$55,MATCH(B7,'PR Cash Reconciliation_2A,B,C,D'!$A$7:$A$55,0))=0,\"\",INDEX('PR Cash Reconciliation_2A,B,C,D'!$E$7:$E$55,MATCH(B7,'PR Cash Reconciliation_2A,B,C,D'!$A$7:$A$55,0))),\"\")","v":""},{"$f":"IFERROR(INDEX('PR Cash Reconciliation_2A,B,C,D'!$F$7:$F$55,MATCH(B7,'PR Cash Reconciliation_2A,B,C,D'!$A$7:$A$55,0)),\"\")","v":0},{"$f":"IFERROR(INDEX('PR Cash Reconciliation_2A,B,C,D'!$G$7:$G$55,MATCH(B7,'PR Cash Reconciliation_2A,B,C,D'!$A$7:$A$55,0)),\"\")","v":0},{"$f":"IFERROR(IF(INDEX('PR Cash Reconciliation_2A,B,C,D'!$I$7:$I$55,MATCH(B7,'PR Cash Reconciliation_2A,B,C,D'!$A$7:$A$55,0))=0,\"\",INDEX('PR Cash Reconciliation_2A,B,C,D'!$I$7:$I$55,MATCH(B7,'PR Cash Reconciliation_2A,B,C,D'!$A$7:$A$55,0))),\"\")","v":""}]
["a4836000000gbVWAAY","2.3",{"$f":"IFERROR(INDEX('PR Cash Reconciliation_2A,B,C,D'!$C$7:$C$55,MATCH(B8,'PR Cash Reconciliation_2A,B,C,D'!$A$7:$A$55,0)),\"\")","v":0},{"$f":"IFERROR(INDEX('PR Cash Reconciliation_2A,B,C,D'!$D$7:$D$55,MATCH(B8,'PR Cash Reconciliation_2A,B,C,D'!$A$7:$A$55,0)),\"\")","v":0},{"$f":"IFERROR(IF(INDEX('PR Cash Reconciliation_2A,B,C,D'!$E$7:$E$55,MATCH(B8,'PR Cash Reconciliation_2A,B,C,D'!$A$7:$A$55,0))=0,\"\",INDEX('PR Cash Reconciliation_2A,B,C,D'!$E$7:$E$55,MATCH(B8,'PR Cash Reconciliation_2A,B,C,D'!$A$7:$A$55,0))),\"\")","v":""},{"$f":"IFERROR(INDEX('PR Cash Reconciliation_2A,B,C,D'!$F$7:$F$55,MATCH(B8,'PR Cash Reconciliation_2A,B,C,D'!$A$7:$A$55,0)),\"\")","v":0},{"$f":"IFERROR(INDEX('PR Cash Reconciliation_2A,B,C,D'!$G$7:$G$55,MATCH(B8,'PR Cash Reconciliation_2A,B,C,D'!$A$7:$A$55,0)),\"\")","v":0},{"$f":"IFERROR(IF(INDEX('PR Cash Reconciliation_2A,B,C,D'!$I$7:$I$55,MATCH(B8,'PR Cash Reconciliation_2A,B,C,D'!$A$7:$A$55,0))=0,\"\",INDEX('PR Cash Reconciliation_2A,B,C,D'!$I$7:$I$55,MATCH(B8,'PR Cash Reconciliation_2A,B,C,D'!$A$7:$A$55,0))),\"\")","v":""}]
["a4836000000gbVXAAY","2.4",{"$f":"IFERROR(INDEX('PR Cash Reconciliation_2A,B,C,D'!$C$7:$C$55,MATCH(B9,'PR Cash Reconciliation_2A,B,C,D'!$A$7:$A$55,0)),\"\")","v":0},{"$f":"IFERROR(INDEX('PR Cash Reconciliation_2A,B,C,D'!$D$7:$D$55,MATCH(B9,'PR Cash Reconciliation_2A,B,C,D'!$A$7:$A$55,0)),\"\")","v":0},{"$f":"IFERROR(IF(INDEX('PR Cash Reconciliation_2A,B,C,D'!$E$7:$E$55,MATCH(B9,'PR Cash Reconciliation_2A,B,C,D'!$A$7:$A$55,0))=0,\"\",INDEX('PR Cash Reconciliation_2A,B,C,D'!$E$7:$E$55,MATCH(B9,'PR Cash Reconciliation_2A,B,C,D'!$A$7:$A$55,0))),\"\")","v":""},{"$f":"IFERROR(INDEX('PR Cash Reconciliation_2A,B,C,D'!$F$7:$F$55,MATCH(B9,'PR Cash Reconciliation_2A,B,C,D'!$A$7:$A$55,0)),\"\")","v":0},{"$f":"IFERROR(INDEX('PR Cash Reconciliation_2A,B,C,D'!$G$7:$G$55,MATCH(B9,'PR Cash Reconciliation_2A,B,C,D'!$A$7:$A$55,0)),\"\")","v":0},{"$f":"IFERROR(IF(INDEX('PR Cash Reconciliation_2A,B,C,D'!$I$7:$I$55,MATCH(B9,'PR Cash Reconciliation_2A,B,C,D'!$A$7:$A$55,0))=0,\"\",INDEX('PR Cash Reconciliation_2A,B,C,D'!$I$7:$I$55,MATCH(B9,'PR Cash Reconciliation_2A,B,C,D'!$A$7:$A$55,0))),\"\")","v":""}]
["a4836000000gbVYAAY","2.5",{"$f":"IFERROR(INDEX('PR Cash Reconciliation_2A,B,C,D'!$C$7:$C$55,MATCH(B10,'PR Cash Reconciliation_2A,B,C,D'!$A$7:$A$55,0)),\"\")","v":0},{"$f":"IFERROR(INDEX('PR Cash Reconciliation_2A,B,C,D'!$D$7:$D$55,MATCH(B10,'PR Cash Reconciliation_2A,B,C,D'!$A$7:$A$55,0)),\"\")","v":0},{"$f":"IFERROR(IF(INDEX('PR Cash Reconciliation_2A,B,C,D'!$E$7:$E$55,MATCH(B10,'PR Cash Reconciliation_2A,B,C,D'!$A$7:$A$55,0))=0,\"\",INDEX('PR Cash Reconciliation_2A,B,C,D'!$E$7:$E$55,MATCH(B10,'PR Cash Reconciliation_2A,B,C,D'!$A$7:$A$55,0))),\"\")","v":""},{"$f":"IFERROR(INDEX('PR Cash Reconciliation_2A,B,C,D'!$F$7:$F$55,MATCH(B10,'PR Cash Reconciliation_2A,B,C,D'!$A$7:$A$55,0)),\"\")","v":0},{"$f":"IFERROR(INDEX('PR Cash Reconciliation_2A,B,C,D'!$G$7:$G$55,MATCH(B10,'PR Cash Reconciliation_2A,B,C,D'!$A$7:$A$55,0)),\"\")","v":0},{"$f":"IFERROR(IF(INDEX('PR Cash Reconciliation_2A,B,C,D'!$I$7:$I$55,MATCH(B10,'PR Cash Reconciliation_2A,B,C,D'!$A$7:$A$55,0))=0,\"\",INDEX('PR Cash Reconciliation_2A,B,C,D'!$I$7:$I$55,MATCH(B10,'PR Cash Reconciliation_2A,B,C,D'!$A$7:$A$55,0))),\"\")","v":""}]
["a4836000000gbVZAAY","2.6",{"$f":"IFERROR(INDEX('PR Cash Reconciliation_2A,B,C,D'!$C$7:$C$55,MATCH(B11,'PR Cash Reconciliation_2A,B,C,D'!$A$7:$A$55,0)),\"\")","v":0},{"$f":"IFERROR(INDEX('PR Cash Reconciliation_2A,B,C,D'!$D$7:$D$55,MATCH(B11,'PR Cash Reconciliation_2A,B,C,D'!$A$7:$A$55,0)),\"\")","v":0},{"$f":"IFERROR(IF(INDEX('PR Cash Reconciliation_2A,B,C,D'!$E$7:$E$55,MATCH(B11,'PR Cash Reconciliation_2A,B,C,D'!$A$7:$A$55,0))=0,\"\",INDEX('PR Cash Reconciliation_2A,B,C,D'!$E$7:$E$55,MATCH(B11,'PR Cash Reconciliation_2A,B,C,D'!$A$7:$A$55,0))),\"\")","v":""},{"$f":"IFERROR(INDEX('PR Cash Reconciliation_2A,B,C,D'!$F$7:$F$55,MATCH(B11,'PR Cash Reconciliation_2A,B,C,D'!$A$7:$A$55,0)),\"\")","v":0},{"$f":"IFERROR(INDEX('PR Cash Reconciliation_2A,B,C,D'!$G$7:$G$55,MATCH(B11,'PR Cash Reconciliation_2A,B,C,D'!$A$7:$A$55,0)),\"\")","v":0},{"$f":"IFERROR(IF(INDEX('PR Cash Reconciliation_2A,B,C,D'!$I$7:$I$55,MATCH(B11,'PR Cash Reconciliation_2A,B,C,D'!$A$7:$A$55,0))=0,\"\",INDEX('PR Cash Reconciliation_2A,B,C,D'!$I$7:$I$55,MATCH(B11,'PR Cash Reconciliation_2A,B,C,D'!$A$7:$A$55,0))),\"\")","v":""}]
["a4836000000gbVaAAI","3.1",{"$f":"IFERROR(INDEX('PR Cash Reconciliation_2A,B,C,D'!$C$7:$C$55,MATCH(B12,'PR Cash Reconciliation_2A,B,C,D'!$A$7:$A$55,0)),\"\")","v":0},{"$f":"IFERROR(INDEX('PR Cash Reconciliation_2A,B,C,D'!$D$7:$D$55,MATCH(B12,'PR Cash Reconciliation_2A,B,C,D'!$A$7:$A$55,0)),\"\")","v":0},{"$f":"IFERROR(IF(INDEX('PR Cash Reconciliation_2A,B,C,D'!$E$7:$E$55,MATCH(B12,'PR Cash Reconciliation_2A,B,C,D'!$A$7:$A$55,0))=0,\"\",INDEX('PR Cash Reconciliation_2A,B,C,D'!$E$7:$E$55,MATCH(B12,'PR Cash Reconciliation_2A,B,C,D'!$A$7:$A$55,0))),\"\")","v":""},{"$f":"IFERROR(INDEX('PR Cash Reconciliation_2A,B,C,D'!$F$7:$F$55,MATCH(B12,'PR Cash Reconciliation_2A,B,C,D'!$A$7:$A$55,0)),\"\")","v":0},{"$f":"IFERROR(INDEX('PR Cash Reconciliation_2A,B,C,D'!$G$7:$G$55,MATCH(B12,'PR Cash Reconciliation_2A,B,C,D'!$A$7:$A$55,0)),\"\")","v":0},{"$f":"IFERROR(IF(INDEX('PR Cash Reconciliation_2A,B,C,D'!$I$7:$I$55,MATCH(B12,'PR Cash Reconciliation_2A,B,C,D'!$A$7:$A$55,0))=0,\"\",INDEX('PR Cash Reconciliation_2A,B,C,D'!$I$7:$I$55,MATCH(B12,'PR Cash Reconciliation_2A,B,C,D'!$A$7:$A$55,0))),\"\")","v":""}]
["a4836000000gbVbAAI","3.2",{"$f":"IFERROR(INDEX('PR Cash Reconciliation_2A,B,C,D'!$C$7:$C$55,MATCH(B13,'PR Cash Reconciliation_2A,B,C,D'!$A$7:$A$55,0)),\"\")","v":0},{"$f":"IFERROR(INDEX('PR Cash Reconciliation_2A,B,C,D'!$D$7:$D$55,MATCH(B13,'PR Cash Reconciliation_2A,B,C,D'!$A$7:$A$55,0)),\"\")","v":0},{"$f":"IFERROR(IF(INDEX('PR Cash Reconciliation_2A,B,C,D'!$E$7:$E$55,MATCH(B13,'PR Cash Reconciliation_2A,B,C,D'!$A$7:$A$55,0))=0,\"\",INDEX('PR Cash Reconciliation_2A,B,C,D'!$E$7:$E$55,MATCH(B13,'PR Cash Reconciliation_2A,B,C,D'!$A$7:$A$55,0))),\"\")","v":""},{"$f":"IFERROR(INDEX('PR Cash Reconciliation_2A,B,C,D'!$F$7:$F$55,MATCH(B13,'PR Cash Reconciliation_2A,B,C,D'!$A$7:$A$55,0)),\"\")","v":0},{"$f":"IFERROR(INDEX('PR Cash Reconciliation_2A,B,C,D'!$G$7:$G$55,MATCH(B13,'PR Cash Reconciliation_2A,B,C,D'!$A$7:$A$55,0)),\"\")","v":0},{"$f":"IFERROR(IF(INDEX('PR Cash Reconciliation_2A,B,C,D'!$I$7:$I$55,MATCH(B13,'PR Cash Reconciliation_2A,B,C,D'!$A$7:$A$55,0))=0,\"\",INDEX('PR Cash Reconciliation_2A,B,C,D'!$I$7:$I$55,MATCH(B13,'PR Cash Reconciliation_2A,B,C,D'!$A$7:$A$55,0))),\"\")","v":""}]
["a4836000000gbVcAAI","3.3",{"$f":"IFERROR(INDEX('PR Cash Reconciliation_2A,B,C,D'!$C$7:$C$55,MATCH(B14,'PR Cash Reconciliation_2A,B,C,D'!$A$7:$A$55,0)),\"\")","v":0},{"$f":"IFERROR(INDEX('PR Cash Reconciliation_2A,B,C,D'!$D$7:$D$55,MATCH(B14,'PR Cash Reconciliation_2A,B,C,D'!$A$7:$A$55,0)),\"\")","v":0},{"$f":"IFERROR(IF(INDEX('PR Cash Reconciliation_2A,B,C,D'!$E$7:$E$55,MATCH(B14,'PR Cash Reconciliation_2A,B,C,D'!$A$7:$A$55,0))=0,\"\",INDEX('PR Cash Reconciliation_2A,B,C,D'!$E$7:$E$55,MATCH(B14,'PR Cash Reconciliation_2A,B,C,D'!$A$7:$A$55,0))),\"\")","v":""},{"$f":"IFERROR(INDEX('PR Cash Reconciliation_2A,B,C,D'!$F$7:$F$55,MATCH(B14,'PR Cash Reconciliation_2A,B,C,D'!$A$7:$A$55,0)),\"\")","v":0},{"$f":"IFERROR(INDEX('PR Cash Reconciliation_2A,B,C,D'!$G$7:$G$55,MATCH(B14,'PR Cash Reconciliation_2A,B,C,D'!$A$7:$A$55,0)),\"\")","v":0},{"$f":"IFERROR(IF(INDEX('PR Cash Reconciliation_2A,B,C,D'!$I$7:$I$55,MATCH(B14,'PR Cash Reconciliation_2A,B,C,D'!$A$7:$A$55,0))=0,\"\",INDEX('PR Cash Reconciliation_2A,B,C,D'!$I$7:$I$55,MATCH(B14,'PR Cash Reconciliation_2A,B,C,D'!$A$7:$A$55,0))),\"\")","v":""}]
["a4836000000gbVdAAI","3.4",{"$f":"IFERROR(INDEX('PR Cash Reconciliation_2A,B,C,D'!$C$7:$C$55,MATCH(B15,'PR Cash Reconciliation_2A,B,C,D'!$A$7:$A$55,0)),\"\")","v":0},{"$f":"IFERROR(INDEX('PR Cash Reconciliation_2A,B,C,D'!$D$7:$D$55,MATCH(B15,'PR Cash Reconciliation_2A,B,C,D'!$A$7:$A$55,0)),\"\")","v":0},{"$f":"IFERROR(IF(INDEX('PR Cash Reconciliation_2A,B,C,D'!$E$7:$E$55,MATCH(B15,'PR Cash Reconciliation_2A,B,C,D'!$A$7:$A$55,0))=0,\"\",INDEX('PR Cash Reconciliation_2A,B,C,D'!$E$7:$E$55,MATCH(B15,'PR Cash Reconciliation_2A,B,C,D'!$A$7:$A$55,0))),\"\")","v":""},{"$f":"IFERROR(INDEX('PR Cash Reconciliation_2A,B,C,D'!$F$7:$F$55,MATCH(B15,'PR Cash Reconciliation_2A,B,C,D'!$A$7:$A$55,0)),\"\")","v":0},{"$f":"IFERROR(INDEX('PR Cash Reconciliation_2A,B,C,D'!$G$7:$G$55,MATCH(B15,'PR Cash Reconciliation_2A,B,C,D'!$A$7:$A$55,0)),\"\")","v":0},{"$f":"IFERROR(IF(INDEX('PR Cash Reconciliation_2A,B,C,D'!$I$7:$I$55,MATCH(B15,'PR Cash Reconciliation_2A,B,C,D'!$A$7:$A$55,0))=0,\"\",INDEX('PR Cash Reconciliation_2A,B,C,D'!$I$7:$I$55,MATCH(B15,'PR Cash Reconciliation_2A,B,C,D'!$A$7:$A$55,0))),\"\")","v":""}]
["a4836000000gbVeAAI","3.5",{"$f":"IFERROR(INDEX('PR Cash Reconciliation_2A,B,C,D'!$C$7:$C$55,MATCH(B16,'PR Cash Reconciliation_2A,B,C,D'!$A$7:$A$55,0)),\"\")","v":0},{"$f":"IFERROR(INDEX('PR Cash Reconciliation_2A,B,C,D'!$D$7:$D$55,MATCH(B16,'PR Cash Reconciliation_2A,B,C,D'!$A$7:$A$55,0)),\"\")","v":0},{"$f":"IFERROR(IF(INDEX('PR Cash Reconciliation_2A,B,C,D'!$E$7:$E$55,MATCH(B16,'PR Cash Reconciliation_2A,B,C,D'!$A$7:$A$55,0))=0,\"\",INDEX('PR Cash Reconciliation_2A,B,C,D'!$E$7:$E$55,MATCH(B16,'PR Cash Reconciliation_2A,B,C,D'!$A$7:$A$55,0))),\"\")","v":""},{"$f":"IFERROR(INDEX('PR Cash Reconciliation_2A,B,C,D'!$F$7:$F$55,MATCH(B16,'PR Cash Reconciliation_2A,B,C,D'!$A$7:$A$55,0)),\"\")","v":0},{"$f":"IFERROR(INDEX('PR Cash Reconciliation_2A,B,C,D'!$G$7:$G$55,MATCH(B16,'PR Cash Reconciliation_2A,B,C,D'!$A$7:$A$55,0)),\"\")","v":0},{"$f":"IFERROR(IF(INDEX('PR Cash Reconciliation_2A,B,C,D'!$I$7:$I$55,MATCH(B16,'PR Cash Reconciliation_2A,B,C,D'!$A$7:$A$55,0))=0,\"\",INDEX('PR Cash Reconciliation_2A,B,C,D'!$I$7:$I$55,MATCH(B16,'PR Cash Reconciliation_2A,B,C,D'!$A$7:$A$55,0))),\"\")","v":""}]
["a4836000000gbVfAAI","4.1",{"$f":"IFERROR(INDEX('PR Cash Reconciliation_2A,B,C,D'!$C$7:$C$55,MATCH(B17,'PR Cash Reconciliation_2A,B,C,D'!$A$7:$A$55,0)),\"\")","v":0},{"$f":"IFERROR(INDEX('PR Cash Reconciliation_2A,B,C,D'!$D$7:$D$55,MATCH(B17,'PR Cash Reconciliation_2A,B,C,D'!$A$7:$A$55,0)),\"\")","v":0},{"$f":"IFERROR(IF(INDEX('PR Cash Reconciliation_2A,B,C,D'!$E$7:$E$55,MATCH(B17,'PR Cash Reconciliation_2A,B,C,D'!$A$7:$A$55,0))=0,\"\",INDEX('PR Cash Reconciliation_2A,B,C,D'!$E$7:$E$55,MATCH(B17,'PR Cash Reconciliation_2A,B,C,D'!$A$7:$A$55,0))),\"\")","v":""},{"$f":"IFERROR(INDEX('PR Cash Reconciliation_2A,B,C,D'!$F$7:$F$55,MATCH(B17,'PR Cash Reconciliation_2A,B,C,D'!$A$7:$A$55,0)),\"\")","v":0},{"$f":"IFERROR(INDEX('PR Cash Reconciliation_2A,B,C,D'!$G$7:$G$55,MATCH(B17,'PR Cash Reconciliation_2A,B,C,D'!$A$7:$A$55,0)),\"\")","v":0},{"$f":"IFERROR(IF(INDEX('PR Cash Reconciliation_2A,B,C,D'!$I$7:$I$55,MATCH(B17,'PR Cash Reconciliation_2A,B,C,D'!$A$7:$A$55,0))=0,\"\",INDEX('PR Cash Reconciliation_2A,B,C,D'!$I$7:$I$55,MATCH(B17,'PR Cash Reconciliation_2A,B,C,D'!$A$7:$A$55,0))),\"\")","v":""}]
["a4836000000gbVgAAI","4.2",{"$f":"IFERROR(INDEX('PR Cash Reconciliation_2A,B,C,D'!$C$7:$C$55,MATCH(B18,'PR Cash Reconciliation_2A,B,C,D'!$A$7:$A$55,0)),\"\")","v":0},{"$f":"IFERROR(INDEX('PR Cash Reconciliation_2A,B,C,D'!$D$7:$D$55,MATCH(B18,'PR Cash Reconciliation_2A,B,C,D'!$A$7:$A$55,0)),\"\")","v":0},{"$f":"IFERROR(IF(INDEX('PR Cash Reconciliation_2A,B,C,D'!$E$7:$E$55,MATCH(B18,'PR Cash Reconciliation_2A,B,C,D'!$A$7:$A$55,0))=0,\"\",INDEX('PR Cash Reconciliation_2A,B,C,D'!$E$7:$E$55,MATCH(B18,'PR Cash Reconciliation_2A,B,C,D'!$A$7:$A$55,0))),\"\")","v":""},{"$f":"IFERROR(INDEX('PR Cash Reconciliation_2A,B,C,D'!$F$7:$F$55,MATCH(B18,'PR Cash Reconciliation_2A,B,C,D'!$A$7:$A$55,0)),\"\")","v":0},{"$f":"IFERROR(INDEX('PR Cash Reconciliation_2A,B,C,D'!$G$7:$G$55,MATCH(B18,'PR Cash Reconciliation_2A,B,C,D'!$A$7:$A$55,0)),\"\")","v":0},{"$f":"IFERROR(IF(INDEX('PR Cash Reconciliation_2A,B,C,D'!$I$7:$I$55,MATCH(B18,'PR Cash Reconciliation_2A,B,C,D'!$A$7:$A$55,0))=0,\"\",INDEX('PR Cash Reconciliation_2A,B,C,D'!$I$7:$I$55,MATCH(B18,'PR Cash Reconciliation_2A,B,C,D'!$A$7:$A$55,0))),\"\")","v":""}]
["a4836000000gbVhAAI","4.3",{"$f":"IFERROR(INDEX('PR Cash Reconciliation_2A,B,C,D'!$C$7:$C$55,MATCH(B19,'PR Cash Reconciliation_2A,B,C,D'!$A$7:$A$55,0)),\"\")","v":0},{"$f":"IFERROR(INDEX('PR Cash Reconciliation_2A,B,C,D'!$D$7:$D$55,MATCH(B19,'PR Cash Reconciliation_2A,B,C,D'!$A$7:$A$55,0)),\"\")","v":0},{"$f":"IFERROR(IF(INDEX('PR Cash Reconciliation_2A,B,C,D'!$E$7:$E$55,MATCH(B19,'PR Cash Reconciliation_2A,B,C,D'!$A$7:$A$55,0))=0,\"\",INDEX('PR Cash Reconciliation_2A,B,C,D'!$E$7:$E$55,MATCH(B19,'PR Cash Reconciliation_2A,B,C,D'!$A$7:$A$55,0))),\"\")","v":""},{"$f":"IFERROR(INDEX('PR Cash Reconciliation_2A,B,C,D'!$F$7:$F$55,MATCH(B19,'PR Cash Reconciliation_2A,B,C,D'!$A$7:$A$55,0)),\"\")","v":0},{"$f":"IFERROR(INDEX('PR Cash Reconciliation_2A,B,C,D'!$G$7:$G$55,MATCH(B19,'PR Cash Reconciliation_2A,B,C,D'!$A$7:$A$55,0)),\"\")","v":0},{"$f":"IFERROR(IF(INDEX('PR Cash Reconciliation_2A,B,C,D'!$I$7:$I$55,MATCH(B19,'PR Cash Reconciliation_2A,B,C,D'!$A$7:$A$55,0))=0,\"\",INDEX('PR Cash Reconciliation_2A,B,C,D'!$I$7:$I$55,MATCH(B19,'PR Cash Reconciliation_2A,B,C,D'!$A$7:$A$55,0))),\"\")","v":""}]
["a4836000000gbViAAI","4.4",{"$f":"IFERROR(INDEX('PR Cash Reconciliation_2A,B,C,D'!$C$7:$C$55,MATCH(B20,'PR Cash Reconciliation_2A,B,C,D'!$A$7:$A$55,0)),\"\")","v":0},{"$f":"IFERROR(INDEX('PR Cash Reconciliation_2A,B,C,D'!$D$7:$D$55,MATCH(B20,'PR Cash Reconciliation_2A,B,C,D'!$A$7:$A$55,0)),\"\")","v":0},{"$f":"IFERROR(IF(INDEX('PR Cash Reconciliation_2A,B,C,D'!$E$7:$E$55,MATCH(B20,'PR Cash Reconciliation_2A,B,C,D'!$A$7:$A$55,0))=0,\"\",INDEX('PR Cash Reconciliation_2A,B,C,D'!$E$7:$E$55,MATCH(B20,'PR Cash Reconciliation_2A,B,C,D'!$A$7:$A$55,0))),\"\")","v":""},{"$f":"IFERROR(INDEX('PR Cash Reconciliation_2A,B,C,D'!$F$7:$F$55,MATCH(B20,'PR Cash Reconciliation_2A,B,C,D'!$A$7:$A$55,0)),\"\")","v":0},{"$f":"IFERROR(INDEX('PR Cash Reconciliation_2A,B,C,D'!$G$7:$G$55,MATCH(B20,'PR Cash Reconciliation_2A,B,C,D'!$A$7:$A$55,0)),\"\")","v":0},{"$f":"IFERROR(IF(INDEX('PR Cash Reconciliation_2A,B,C,D'!$I$7:$I$55,MATCH(B20,'PR Cash Reconciliation_2A,B,C,D'!$A$7:$A$55,0))=0,\"\",INDEX('PR Cash Reconciliation_2A,B,C,D'!$I$7:$I$55,MATCH(B20,'PR Cash Reconciliation_2A,B,C,D'!$A$7:$A$55,0))),\"\")","v":""}]
["a4836000000gbVjAAI","4.5",{"$f":"IFERROR(INDEX('PR Cash Reconciliation_2A,B,C,D'!$C$7:$C$55,MATCH(B21,'PR Cash Reconciliation_2A,B,C,D'!$A$7:$A$55,0)),\"\")","v":0},{"$f":"IFERROR(INDEX('PR Cash Reconciliation_2A,B,C,D'!$D$7:$D$55,MATCH(B21,'PR Cash Reconciliation_2A,B,C,D'!$A$7:$A$55,0)),\"\")","v":0},{"$f":"IFERROR(IF(INDEX('PR Cash Reconciliation_2A,B,C,D'!$E$7:$E$55,MATCH(B21,'PR Cash Reconciliation_2A,B,C,D'!$A$7:$A$55,0))=0,\"\",INDEX('PR Cash Reconciliation_2A,B,C,D'!$E$7:$E$55,MATCH(B21,'PR Cash Reconciliation_2A,B,C,D'!$A$7:$A$55,0))),\"\")","v":""},{"$f":"IFERROR(INDEX('PR Cash Reconciliation_2A,B,C,D'!$F$7:$F$55,MATCH(B21,'PR Cash Reconciliation_2A,B,C,D'!$A$7:$A$55,0)),\"\")","v":0},{"$f":"IFERROR(INDEX('PR Cash Reconciliation_2A,B,C,D'!$G$7:$G$55,MATCH(B21,'PR Cash Reconciliation_2A,B,C,D'!$A$7:$A$55,0)),\"\")","v":0},{"$f":"IFERROR(IF(INDEX('PR Cash Reconciliation_2A,B,C,D'!$I$7:$I$55,MATCH(B21,'PR Cash Reconciliation_2A,B,C,D'!$A$7:$A$55,0))=0,\"\",INDEX('PR Cash Reconciliation_2A,B,C,D'!$I$7:$I$55,MATCH(B21,'PR Cash Reconciliation_2A,B,C,D'!$A$7:$A$55,0))),\"\")","v":""}]
["a4836000000gbVkAAI","5.1",{"$f":"IFERROR(INDEX('PR Cash Reconciliation_2A,B,C,D'!$C$7:$C$55,MATCH(B22,'PR Cash Reconciliation_2A,B,C,D'!$A$7:$A$55,0)),\"\")","v":0},{"$f":"IFERROR(INDEX('PR Cash Reconciliation_2A,B,C,D'!$D$7:$D$55,MATCH(B22,'PR Cash Reconciliation_2A,B,C,D'!$A$7:$A$55,0)),\"\")","v":0},{"$f":"IFERROR(IF(INDEX('PR Cash Reconciliation_2A,B,C,D'!$E$7:$E$55,MATCH(B22,'PR Cash Reconciliation_2A,B,C,D'!$A$7:$A$55,0))=0,\"\",INDEX('PR Cash Reconciliation_2A,B,C,D'!$E$7:$E$55,MATCH(B22,'PR Cash Reconciliation_2A,B,C,D'!$A$7:$A$55,0))),\"\")","v":""},{"$f":"IFERROR(INDEX('PR Cash Reconciliation_2A,B,C,D'!$F$7:$F$55,MATCH(B22,'PR Cash Reconciliation_2A,B,C,D'!$A$7:$A$55,0)),\"\")","v":0},{"$f":"IFERROR(INDEX('PR Cash Reconciliation_2A,B,C,D'!$G$7:$G$55,MATCH(B22,'PR Cash Reconciliation_2A,B,C,D'!$A$7:$A$55,0)),\"\")","v":0},{"$f":"IFERROR(IF(INDEX('PR Cash Reconciliation_2A,B,C,D'!$I$7:$I$55,MATCH(B22,'PR Cash Reconciliation_2A,B,C,D'!$A$7:$A$55,0))=0,\"\",INDEX('PR Cash Reconciliation_2A,B,C,D'!$I$7:$I$55,MATCH(B22,'PR Cash Reconciliation_2A,B,C,D'!$A$7:$A$55,0))),\"\")","v":""}]
["a4836000000gbVlAAI","5.2",{"$f":"IFERROR(INDEX('PR Cash Reconciliation_2A,B,C,D'!$C$7:$C$55,MATCH(B23,'PR Cash Reconciliation_2A,B,C,D'!$A$7:$A$55,0)),\"\")","v":0},{"$f":"IFERROR(INDEX('PR Cash Reconciliation_2A,B,C,D'!$D$7:$D$55,MATCH(B23,'PR Cash Reconciliation_2A,B,C,D'!$A$7:$A$55,0)),\"\")","v":0},{"$f":"IFERROR(IF(INDEX('PR Cash Reconciliation_2A,B,C,D'!$E$7:$E$55,MATCH(B23,'PR Cash Reconciliation_2A,B,C,D'!$A$7:$A$55,0))=0,\"\",INDEX('PR Cash Reconciliation_2A,B,C,D'!$E$7:$E$55,MATCH(B23,'PR Cash Reconciliation_2A,B,C,D'!$A$7:$A$55,0))),\"\")","v":""},{"$f":"IFERROR(INDEX('PR Cash Reconciliation_2A,B,C,D'!$F$7:$F$55,MATCH(B23,'PR Cash Reconciliation_2A,B,C,D'!$A$7:$A$55,0)),\"\")","v":0},{"$f":"IFERROR(INDEX('PR Cash Reconciliation_2A,B,C,D'!$G$7:$G$55,MATCH(B23,'PR Cash Reconciliation_2A,B,C,D'!$A$7:$A$55,0)),\"\")","v":0},{"$f":"IFERROR(IF(INDEX('PR Cash Reconciliation_2A,B,C,D'!$I$7:$I$55,MATCH(B23,'PR Cash Reconciliation_2A,B,C,D'!$A$7:$A$55,0))=0,\"\",INDEX('PR Cash Reconciliation_2A,B,C,D'!$I$7:$I$55,MATCH(B23,'PR Cash Reconciliation_2A,B,C,D'!$A$7:$A$55,0))),\"\")","v":""}]
["a4836000000gbVmAAI","5.3",{"$f":"IFERROR(INDEX('PR Cash Reconciliation_2A,B,C,D'!$C$7:$C$55,MATCH(B24,'PR Cash Reconciliation_2A,B,C,D'!$A$7:$A$55,0)),\"\")","v":0},{"$f":"IFERROR(INDEX('PR Cash Reconciliation_2A,B,C,D'!$D$7:$D$55,MATCH(B24,'PR Cash Reconciliation_2A,B,C,D'!$A$7:$A$55,0)),\"\")","v":0},{"$f":"IFERROR(IF(INDEX('PR Cash Reconciliation_2A,B,C,D'!$E$7:$E$55,MATCH(B24,'PR Cash Reconciliation_2A,B,C,D'!$A$7:$A$55,0))=0,\"\",INDEX('PR Cash Reconciliation_2A,B,C,D'!$E$7:$E$55,MATCH(B24,'PR Cash Reconciliation_2A,B,C,D'!$A$7:$A$55,0))),\"\")","v":""},{"$f":"IFERROR(INDEX('PR Cash Reconciliation_2A,B,C,D'!$F$7:$F$55,MATCH(B24,'PR Cash Reconciliation_2A,B,C,D'!$A$7:$A$55,0)),\"\")","v":0},{"$f":"IFERROR(INDEX('PR Cash Reconciliation_2A,B,C,D'!$G$7:$G$55,MATCH(B24,'PR Cash Reconciliation_2A,B,C,D'!$A$7:$A$55,0)),\"\")","v":0},{"$f":"IFERROR(IF(INDEX('PR Cash Reconciliation_2A,B,C,D'!$I$7:$I$55,MATCH(B24,'PR Cash Reconciliation_2A,B,C,D'!$A$7:$A$55,0))=0,\"\",INDEX('PR Cash Reconciliation_2A,B,C,D'!$I$7:$I$55,MATCH(B24,'PR Cash Reconciliation_2A,B,C,D'!$A$7:$A$55,0))),\"\")","v":""}]
["a4836000000gbVnAAI","6.1",{"$f":"IFERROR(INDEX('PR Cash Reconciliation_2A,B,C,D'!$C$7:$C$55,MATCH(B25,'PR Cash Reconciliation_2A,B,C,D'!$A$7:$A$55,0)),\"\")","v":0},{"$f":"IFERROR(INDEX('PR Cash Reconciliation_2A,B,C,D'!$D$7:$D$55,MATCH(B25,'PR Cash Reconciliation_2A,B,C,D'!$A$7:$A$55,0)),\"\")","v":0},{"$f":"IFERROR(IF(INDEX('PR Cash Reconciliation_2A,B,C,D'!$E$7:$E$55,MATCH(B25,'PR Cash Reconciliation_2A,B,C,D'!$A$7:$A$55,0))=0,\"\",INDEX('PR Cash Reconciliation_2A,B,C,D'!$E$7:$E$55,MATCH(B25,'PR Cash Reconciliation_2A,B,C,D'!$A$7:$A$55,0))),\"\")","v":""},{"$f":"IFERROR(INDEX('PR Cash Reconciliation_2A,B,C,D'!$F$7:$F$55,MATCH(B25,'PR Cash Reconciliation_2A,B,C,D'!$A$7:$A$55,0)),\"\")","v":0},{"$f":"IFERROR(INDEX('PR Cash Reconciliation_2A,B,C,D'!$G$7:$G$55,MATCH(B25,'PR Cash Reconciliation_2A,B,C,D'!$A$7:$A$55,0)),\"\")","v":0},{"$f":"IFERROR(IF(INDEX('PR Cash Reconciliation_2A,B,C,D'!$I$7:$I$55,MATCH(B25,'PR Cash Reconciliation_2A,B,C,D'!$A$7:$A$55,0))=0,\"\",INDEX('PR Cash Reconciliation_2A,B,C,D'!$I$7:$I$55,MATCH(B25,'PR Cash Reconciliation_2A,B,C,D'!$A$7:$A$55,0))),\"\")","v":""}]
["a4836000000gbVoAAI","6.2",{"$f":"IFERROR(INDEX('PR Cash Reconciliation_2A,B,C,D'!$C$7:$C$55,MATCH(B26,'PR Cash Reconciliation_2A,B,C,D'!$A$7:$A$55,0)),\"\")","v":0},{"$f":"IFERROR(INDEX('PR Cash Reconciliation_2A,B,C,D'!$D$7:$D$55,MATCH(B26,'PR Cash Reconciliation_2A,B,C,D'!$A$7:$A$55,0)),\"\")","v":0},{"$f":"IFERROR(IF(INDEX('PR Cash Reconciliation_2A,B,C,D'!$E$7:$E$55,MATCH(B26,'PR Cash Reconciliation_2A,B,C,D'!$A$7:$A$55,0))=0,\"\",INDEX('PR Cash Reconciliation_2A,B,C,D'!$E$7:$E$55,MATCH(B26,'PR Cash Reconciliation_2A,B,C,D'!$A$7:$A$55,0))),\"\")","v":""},{"$f":"IFERROR(INDEX('PR Cash Reconciliation_2A,B,C,D'!$F$7:$F$55,MATCH(B26,'PR Cash Reconciliation_2A,B,C,D'!$A$7:$A$55,0)),\"\")","v":0},{"$f":"IFERROR(INDEX('PR Cash Reconciliation_2A,B,C,D'!$G$7:$G$55,MATCH(B26,'PR Cash Reconciliation_2A,B,C,D'!$A$7:$A$55,0)),\"\")","v":0},{"$f":"IFERROR(IF(INDEX('PR Cash Reconciliation_2A,B,C,D'!$I$7:$I$55,MATCH(B26,'PR Cash Reconciliation_2A,B,C,D'!$A$7:$A$55,0))=0,\"\",INDEX('PR Cash Reconciliation_2A,B,C,D'!$I$7:$I$55,MATCH(B26,'PR Cash Reconciliation_2A,B,C,D'!$A$7:$A$55,0))),\"\")","v":""}]
["a4836000000gbVpAAI","6.3",{"$f":"IFERROR(INDEX('PR Cash Reconciliation_2A,B,C,D'!$C$7:$C$55,MATCH(B27,'PR Cash Reconciliation_2A,B,C,D'!$A$7:$A$55,0)),\"\")","v":0},{"$f":"IFERROR(INDEX('PR Cash Reconciliation_2A,B,C,D'!$D$7:$D$55,MATCH(B27,'PR Cash Reconciliation_2A,B,C,D'!$A$7:$A$55,0)),\"\")","v":0},{"$f":"IFERROR(IF(INDEX('PR Cash Reconciliation_2A,B,C,D'!$E$7:$E$55,MATCH(B27,'PR Cash Reconciliation_2A,B,C,D'!$A$7:$A$55,0))=0,\"\",INDEX('PR Cash Reconciliation_2A,B,C,D'!$E$7:$E$55,MATCH(B27,'PR Cash Reconciliation_2A,B,C,D'!$A$7:$A$55,0))),\"\")","v":""},{"$f":"IFERROR(INDEX('PR Cash Reconciliation_2A,B,C,D'!$F$7:$F$55,MATCH(B27,'PR Cash Reconciliation_2A,B,C,D'!$A$7:$A$55,0)),\"\")","v":0},{"$f":"IFERROR(INDEX('PR Cash Reconciliation_2A,B,C,D'!$G$7:$G$55,MATCH(B27,'PR Cash Reconciliation_2A,B,C,D'!$A$7:$A$55,0)),\"\")","v":0},{"$f":"IFERROR(IF(INDEX('PR Cash Reconciliation_2A,B,C,D'!$I$7:$I$55,MATCH(B27,'PR Cash Reconciliation_2A,B,C,D'!$A$7:$A$55,0))=0,\"\",INDEX('PR Cash Reconciliation_2A,B,C,D'!$I$7:$I$55,MATCH(B27,'PR Cash Reconciliation_2A,B,C,D'!$A$7:$A$55,0))),\"\")","v":""}]
["a4836000000gbVqAAI","7.1",{"$f":"IFERROR(INDEX('PR Cash Reconciliation_2A,B,C,D'!$C$7:$C$55,MATCH(B28,'PR Cash Reconciliation_2A,B,C,D'!$A$7:$A$55,0)),\"\")","v":0},{"$f":"IFERROR(INDEX('PR Cash Reconciliation_2A,B,C,D'!$D$7:$D$55,MATCH(B28,'PR Cash Reconciliation_2A,B,C,D'!$A$7:$A$55,0)),\"\")","v":0},{"$f":"IFERROR(IF(INDEX('PR Cash Reconciliation_2A,B,C,D'!$E$7:$E$55,MATCH(B28,'PR Cash Reconciliation_2A,B,C,D'!$A$7:$A$55,0))=0,\"\",INDEX('PR Cash Reconciliation_2A,B,C,D'!$E$7:$E$55,MATCH(B28,'PR Cash Reconciliation_2A,B,C,D'!$A$7:$A$55,0))),\"\")","v":""},{"$f":"IFERROR(INDEX('PR Cash Reconciliation_2A,B,C,D'!$F$7:$F$55,MATCH(B28,'PR Cash Reconciliation_2A,B,C,D'!$A$7:$A$55,0)),\"\")","v":0},{"$f":"IFERROR(INDEX('PR Cash Reconciliation_2A,B,C,D'!$G$7:$G$55,MATCH(B28,'PR Cash Reconciliation_2A,B,C,D'!$A$7:$A$55,0)),\"\")","v":0},{"$f":"IFERROR(IF(INDEX('PR Cash Reconciliation_2A,B,C,D'!$I$7:$I$55,MATCH(B28,'PR Cash Reconciliation_2A,B,C,D'!$A$7:$A$55,0))=0,\"\",INDEX('PR Cash Reconciliation_2A,B,C,D'!$I$7:$I$55,MATCH(B28,'PR Cash Reconciliation_2A,B,C,D'!$A$7:$A$55,0))),\"\")","v":""}]
["a4836000000gbVrAAI","7.2",{"$f":"IFERROR(INDEX('PR Cash Reconciliation_2A,B,C,D'!$C$7:$C$55,MATCH(B29,'PR Cash Reconciliation_2A,B,C,D'!$A$7:$A$55,0)),\"\")","v":0},{"$f":"IFERROR(INDEX('PR Cash Reconciliation_2A,B,C,D'!$D$7:$D$55,MATCH(B29,'PR Cash Reconciliation_2A,B,C,D'!$A$7:$A$55,0)),\"\")","v":0},{"$f":"IFERROR(IF(INDEX('PR Cash Reconciliation_2A,B,C,D'!$E$7:$E$55,MATCH(B29,'PR Cash Reconciliation_2A,B,C,D'!$A$7:$A$55,0))=0,\"\",INDEX('PR Cash Reconciliation_2A,B,C,D'!$E$7:$E$55,MATCH(B29,'PR Cash Reconciliation_2A,B,C,D'!$A$7:$A$55,0))),\"\")","v":""},{"$f":"IFERROR(INDEX('PR Cash Reconciliation_2A,B,C,D'!$F$7:$F$55,MATCH(B29,'PR Cash Reconciliation_2A,B,C,D'!$A$7:$A$55,0)),\"\")","v":0},{"$f":"IFERROR(INDEX('PR Cash Reconciliation_2A,B,C,D'!$G$7:$G$55,MATCH(B29,'PR Cash Reconciliation_2A,B,C,D'!$A$7:$A$55,0)),\"\")","v":0},{"$f":"IFERROR(IF(INDEX('PR Cash Reconciliation_2A,B,C,D'!$I$7:$I$55,MATCH(B29,'PR Cash Reconciliation_2A,B,C,D'!$A$7:$A$55,0))=0,\"\",INDEX('PR Cash Reconciliation_2A,B,C,D'!$I$7:$I$55,MATCH(B29,'PR Cash Reconciliation_2A,B,C,D'!$A$7:$A$55,0))),\"\")","v":""}]
["a4836000000gbVsAAI","7.3",{"$f":"IFERROR(INDEX('PR Cash Reconciliation_2A,B,C,D'!$C$7:$C$55,MATCH(B30,'PR Cash Reconciliation_2A,B,C,D'!$A$7:$A$55,0)),\"\")","v":""},{"$f":"IFERROR(INDEX('PR Cash Reconciliation_2A,B,C,D'!$D$7:$D$55,MATCH(B30,'PR Cash Reconciliation_2A,B,C,D'!$A$7:$A$55,0)),\"\")","v":""},{"$f":"IFERROR(IF(INDEX('PR Cash Reconciliation_2A,B,C,D'!$E$7:$E$55,MATCH(B30,'PR Cash Reconciliation_2A,B,C,D'!$A$7:$A$55,0))=0,\"\",INDEX('PR Cash Reconciliation_2A,B,C,D'!$E$7:$E$55,MATCH(B30,'PR Cash Reconciliation_2A,B,C,D'!$A$7:$A$55,0))),\"\")","v":""},{"$f":"IFERROR(INDEX('PR Cash Reconciliation_2A,B,C,D'!$F$7:$F$55,MATCH(B30,'PR Cash Reconciliation_2A,B,C,D'!$A$7:$A$55,0)),\"\")","v":""},{"$f":"IFERROR(INDEX('PR Cash Reconciliation_2A,B,C,D'!$G$7:$G$55,MATCH(B30,'PR Cash Reconciliation_2A,B,C,D'!$A$7:$A$55,0)),\"\")","v":""},{"$f":"IFERROR(IF(INDEX('PR Cash Reconciliation_2A,B,C,D'!$I$7:$I$55,MATCH(B30,'PR Cash Reconciliation_2A,B,C,D'!$A$7:$A$55,0))=0,\"\",INDEX('PR Cash Reconciliation_2A,B,C,D'!$I$7:$I$55,MATCH(B30,'PR Cash Reconciliation_2A,B,C,D'!$A$7:$A$55,0))),\"\")","v":""}]
["a4836000000gbVtAAI","7.4",{"$f":"IFERROR(INDEX('PR Cash Reconciliation_2A,B,C,D'!$C$7:$C$55,MATCH(B31,'PR Cash Reconciliation_2A,B,C,D'!$A$7:$A$55,0)),\"\")","v":0},{"$f":"IFERROR(INDEX('PR Cash Reconciliation_2A,B,C,D'!$D$7:$D$55,MATCH(B31,'PR Cash Reconciliation_2A,B,C,D'!$A$7:$A$55,0)),\"\")","v":0},{"$f":"IFERROR(IF(INDEX('PR Cash Reconciliation_2A,B,C,D'!$E$7:$E$55,MATCH(B31,'PR Cash Reconciliation_2A,B,C,D'!$A$7:$A$55,0))=0,\"\",INDEX('PR Cash Reconciliation_2A,B,C,D'!$E$7:$E$55,MATCH(B31,'PR Cash Reconciliation_2A,B,C,D'!$A$7:$A$55,0))),\"\")","v":""},{"$f":"IFERROR(INDEX('PR Cash Reconciliation_2A,B,C,D'!$F$7:$F$55,MATCH(B31,'PR Cash Reconciliation_2A,B,C,D'!$A$7:$A$55,0)),\"\")","v":0},{"$f":"IFERROR(INDEX('PR Cash Reconciliation_2A,B,C,D'!$G$7:$G$55,MATCH(B31,'PR Cash Reconciliation_2A,B,C,D'!$A$7:$A$55,0)),\"\")","v":0},{"$f":"IFERROR(IF(INDEX('PR Cash Reconciliation_2A,B,C,D'!$I$7:$I$55,MATCH(B31,'PR Cash Reconciliation_2A,B,C,D'!$A$7:$A$55,0))=0,\"\",INDEX('PR Cash Reconciliation_2A,B,C,D'!$I$7:$I$55,MATCH(B31,'PR Cash Reconciliation_2A,B,C,D'!$A$7:$A$55,0))),\"\")","v":""}]
["a4836000000gbVuAAI","8.1",{"$f":"IFERROR(INDEX('PR Cash Reconciliation_2A,B,C,D'!$C$7:$C$55,MATCH(B32,'PR Cash Reconciliation_2A,B,C,D'!$A$7:$A$55,0)),\"\")","v":0},{"$f":"IFERROR(INDEX('PR Cash Reconciliation_2A,B,C,D'!$D$7:$D$55,MATCH(B32,'PR Cash Reconciliation_2A,B,C,D'!$A$7:$A$55,0)),\"\")","v":0},{"$f":"IFERROR(IF(INDEX('PR Cash Reconciliation_2A,B,C,D'!$E$7:$E$55,MATCH(B32,'PR Cash Reconciliation_2A,B,C,D'!$A$7:$A$55,0))=0,\"\",INDEX('PR Cash Reconciliation_2A,B,C,D'!$E$7:$E$55,MATCH(B32,'PR Cash Reconciliation_2A,B,C,D'!$A$7:$A$55,0))),\"\")","v":""},{"$f":"IFERROR(INDEX('PR Cash Reconciliation_2A,B,C,D'!$F$7:$F$55,MATCH(B32,'PR Cash Reconciliation_2A,B,C,D'!$A$7:$A$55,0)),\"\")","v":0},{"$f":"IFERROR(INDEX('PR Cash Reconciliation_2A,B,C,D'!$G$7:$G$55,MATCH(B32,'PR Cash Reconciliation_2A,B,C,D'!$A$7:$A$55,0)),\"\")","v":0},{"$f":"IFERROR(IF(INDEX('PR Cash Reconciliation_2A,B,C,D'!$I$7:$I$55,MATCH(B32,'PR Cash Reconciliation_2A,B,C,D'!$A$7:$A$55,0))=0,\"\",INDEX('PR Cash Reconciliation_2A,B,C,D'!$I$7:$I$55,MATCH(B32,'PR Cash Reconciliation_2A,B,C,D'!$A$7:$A$55,0))),\"\")","v":""}]
["a4836000000gbVvAAI","8.2",{"$f":"IFERROR(INDEX('PR Cash Reconciliation_2A,B,C,D'!$C$7:$C$55,MATCH(B33,'PR Cash Reconciliation_2A,B,C,D'!$A$7:$A$55,0)),\"\")","v":0},{"$f":"IFERROR(INDEX('PR Cash Reconciliation_2A,B,C,D'!$D$7:$D$55,MATCH(B33,'PR Cash Reconciliation_2A,B,C,D'!$A$7:$A$55,0)),\"\")","v":0},{"$f":"IFERROR(IF(INDEX('PR Cash Reconciliation_2A,B,C,D'!$E$7:$E$55,MATCH(B33,'PR Cash Reconciliation_2A,B,C,D'!$A$7:$A$55,0))=0,\"\",INDEX('PR Cash Reconciliation_2A,B,C,D'!$E$7:$E$55,MATCH(B33,'PR Cash Reconciliation_2A,B,C,D'!$A$7:$A$55,0))),\"\")","v":""},{"$f":"IFERROR(INDEX('PR Cash Reconciliation_2A,B,C,D'!$F$7:$F$55,MATCH(B33,'PR Cash Reconciliation_2A,B,C,D'!$A$7:$A$55,0)),\"\")","v":0},{"$f":"IFERROR(INDEX('PR Cash Reconciliation_2A,B,C,D'!$G$7:$G$55,MATCH(B33,'PR Cash Reconciliation_2A,B,C,D'!$A$7:$A$55,0)),\"\")","v":0},{"$f":"IFERROR(IF(INDEX('PR Cash Reconciliation_2A,B,C,D'!$I$7:$I$55,MATCH(B33,'PR Cash Reconciliation_2A,B,C,D'!$A$7:$A$55,0))=0,\"\",INDEX('PR Cash Reconciliation_2A,B,C,D'!$I$7:$I$55,MATCH(B33,'PR Cash Reconciliation_2A,B,C,D'!$A$7:$A$55,0))),\"\")","v":""}]
["a4836000000gbVwAAI","8.3",{"$f":"IFERROR(INDEX('PR Cash Reconciliation_2A,B,C,D'!$C$7:$C$55,MATCH(B34,'PR Cash Reconciliation_2A,B,C,D'!$A$7:$A$55,0)),\"\")","v":0},{"$f":"IFERROR(INDEX('PR Cash Reconciliation_2A,B,C,D'!$D$7:$D$55,MATCH(B34,'PR Cash Reconciliation_2A,B,C,D'!$A$7:$A$55,0)),\"\")","v":0},{"$f":"IFERROR(IF(INDEX('PR Cash Reconciliation_2A,B,C,D'!$E$7:$E$55,MATCH(B34,'PR Cash Reconciliation_2A,B,C,D'!$A$7:$A$55,0))=0,\"\",INDEX('PR Cash Reconciliation_2A,B,C,D'!$E$7:$E$55,MATCH(B34,'PR Cash Reconciliation_2A,B,C,D'!$A$7:$A$55,0))),\"\")","v":""},{"$f":"IFERROR(INDEX('PR Cash Reconciliation_2A,B,C,D'!$F$7:$F$55,MATCH(B34,'PR Cash Reconciliation_2A,B,C,D'!$A$7:$A$55,0)),\"\")","v":0},{"$f":"IFERROR(INDEX('PR Cash Reconciliation_2A,B,C,D'!$G$7:$G$55,MATCH(B34,'PR Cash Reconciliation_2A,B,C,D'!$A$7:$A$55,0)),\"\")","v":0},{"$f":"IFERROR(IF(INDEX('PR Cash Reconciliation_2A,B,C,D'!$I$7:$I$55,MATCH(B34,'PR Cash Reconciliation_2A,B,C,D'!$A$7:$A$55,0))=0,\"\",INDEX('PR Cash Reconciliation_2A,B,C,D'!$I$7:$I$55,MATCH(B34,'PR Cash Reconciliation_2A,B,C,D'!$A$7:$A$55,0))),\"\")","v":""}]
["a4836000000gbVxAAI","8.4",{"$f":"IFERROR(INDEX('PR Cash Reconciliation_2A,B,C,D'!$C$7:$C$55,MATCH(B35,'PR Cash Reconciliation_2A,B,C,D'!$A$7:$A$55,0)),\"\")","v":0},{"$f":"IFERROR(INDEX('PR Cash Reconciliation_2A,B,C,D'!$D$7:$D$55,MATCH(B35,'PR Cash Reconciliation_2A,B,C,D'!$A$7:$A$55,0)),\"\")","v":0},{"$f":"IFERROR(IF(INDEX('PR Cash Reconciliation_2A,B,C,D'!$E$7:$E$55,MATCH(B35,'PR Cash Reconciliation_2A,B,C,D'!$A$7:$A$55,0))=0,\"\",INDEX('PR Cash Reconciliation_2A,B,C,D'!$E$7:$E$55,MATCH(B35,'PR Cash Reconciliation_2A,B,C,D'!$A$7:$A$55,0))),\"\")","v":""},{"$f":"IFERROR(INDEX('PR Cash Reconciliation_2A,B,C,D'!$F$7:$F$55,MATCH(B35,'PR Cash Reconciliation_2A,B,C,D'!$A$7:$A$55,0)),\"\")","v":0},{"$f":"IFERROR(INDEX('PR Cash Reconciliation_2A,B,C,D'!$G$7:$G$55,MATCH(B35,'PR Cash Reconciliation_2A,B,C,D'!$A$7:$A$55,0)),\"\")","v":0},{"$f":"IFERROR(IF(INDEX('PR Cash Reconciliation_2A,B,C,D'!$I$7:$I$55,MATCH(B35,'PR Cash Reconciliation_2A,B,C,D'!$A$7:$A$55,0))=0,\"\",INDEX('PR Cash Reconciliation_2A,B,C,D'!$I$7:$I$55,MATCH(B35,'PR Cash Reconciliation_2A,B,C,D'!$A$7:$A$55,0))),\"\")","v":""}]
["a4836000000gbVyAAI","8.5",{"$f":"IFERROR(INDEX('PR Cash Reconciliation_2A,B,C,D'!$C$7:$C$55,MATCH(B36,'PR Cash Reconciliation_2A,B,C,D'!$A$7:$A$55,0)),\"\")","v":0},{"$f":"IFERROR(INDEX('PR Cash Reconciliation_2A,B,C,D'!$D$7:$D$55,MATCH(B36,'PR Cash Reconciliation_2A,B,C,D'!$A$7:$A$55,0)),\"\")","v":0},{"$f":"IFERROR(IF(INDEX('PR Cash Reconciliation_2A,B,C,D'!$E$7:$E$55,MATCH(B36,'PR Cash Reconciliation_2A,B,C,D'!$A$7:$A$55,0))=0,\"\",INDEX('PR Cash Reconciliation_2A,B,C,D'!$E$7:$E$55,MATCH(B36,'PR Cash Reconciliation_2A,B,C,D'!$A$7:$A$55,0))),\"\")","v":""},{"$f":"IFERROR(INDEX('PR Cash Reconciliation_2A,B,C,D'!$F$7:$F$55,MATCH(B36,'PR Cash Reconciliation_2A,B,C,D'!$A$7:$A$55,0)),\"\")","v":0},{"$f":"IFERROR(INDEX('PR Cash Reconciliation_2A,B,C,D'!$G$7:$G$55,MATCH(B36,'PR Cash Reconciliation_2A,B,C,D'!$A$7:$A$55,0)),\"\")","v":0},{"$f":"IFERROR(IF(INDEX('PR Cash Reconciliation_2A,B,C,D'!$I$7:$I$55,MATCH(B36,'PR Cash Reconciliation_2A,B,C,D'!$A$7:$A$55,0))=0,\"\",INDEX('PR Cash Reconciliation_2A,B,C,D'!$I$7:$I$55,MATCH(B36,'PR Cash Reconciliation_2A,B,C,D'!$A$7:$A$55,0))),\"\")","v":""}]
["a4836000000gbVzAAI","2.",{"$f":"IFERROR(INDEX('PR Cash Reconciliation_2A,B,C,D'!$C$7:$C$55,MATCH(B37,'PR Cash Reconciliation_2A,B,C,D'!$A$7:$A$55,0)),\"\")","v":""},{"$f":"IFERROR(INDEX('PR Cash Reconciliation_2A,B,C,D'!$D$7:$D$55,MATCH(B37,'PR Cash Reconciliation_2A,B,C,D'!$A$7:$A$55,0)),\"\")","v":""},{"$f":"IFERROR(IF(INDEX('PR Cash Reconciliation_2A,B,C,D'!$E$7:$E$55,MATCH(B37,'PR Cash Reconciliation_2A,B,C,D'!$A$7:$A$55,0))=0,\"\",INDEX('PR Cash Reconciliation_2A,B,C,D'!$E$7:$E$55,MATCH(B37,'PR Cash Reconciliation_2A,B,C,D'!$A$7:$A$55,0))),\"\")","v":""},{"$f":"IFERROR(INDEX('PR Cash Reconciliation_2A,B,C,D'!$F$7:$F$55,MATCH(B37,'PR Cash Reconciliation_2A,B,C,D'!$A$7:$A$55,0)),\"\")","v":""},{"$f":"IFERROR(INDEX('PR Cash Reconciliation_2A,B,C,D'!$G$7:$G$55,MATCH(B37,'PR Cash Reconciliation_2A,B,C,D'!$A$7:$A$55,0)),\"\")","v":""},{"$f":"IFERROR(IF(INDEX('PR Cash Reconciliation_2A,B,C,D'!$I$7:$I$55,MATCH(B37,'PR Cash Reconciliation_2A,B,C,D'!$A$7:$A$55,0))=0,\"\",INDEX('PR Cash Reconciliation_2A,B,C,D'!$I$7:$I$55,MATCH(B37,'PR Cash Reconciliation_2A,B,C,D'!$A$7:$A$55,0))),\"\")","v":""}]
["a4836000000gbW0AAI","3.",{"$f":"IFERROR(INDEX('PR Cash Reconciliation_2A,B,C,D'!$C$7:$C$55,MATCH(B38,'PR Cash Reconciliation_2A,B,C,D'!$A$7:$A$55,0)),\"\")","v":""},{"$f":"IFERROR(INDEX('PR Cash Reconciliation_2A,B,C,D'!$D$7:$D$55,MATCH(B38,'PR Cash Reconciliation_2A,B,C,D'!$A$7:$A$55,0)),\"\")","v":""},{"$f":"IFERROR(IF(INDEX('PR Cash Reconciliation_2A,B,C,D'!$E$7:$E$55,MATCH(B38,'PR Cash Reconciliation_2A,B,C,D'!$A$7:$A$55,0))=0,\"\",INDEX('PR Cash Reconciliation_2A,B,C,D'!$E$7:$E$55,MATCH(B38,'PR Cash Reconciliation_2A,B,C,D'!$A$7:$A$55,0))),\"\")","v":""},{"$f":"IFERROR(INDEX('PR Cash Reconciliation_2A,B,C,D'!$F$7:$F$55,MATCH(B38,'PR Cash Reconciliation_2A,B,C,D'!$A$7:$A$55,0)),\"\")","v":""},{"$f":"IFERROR(INDEX('PR Cash Reconciliation_2A,B,C,D'!$G$7:$G$55,MATCH(B38,'PR Cash Reconciliation_2A,B,C,D'!$A$7:$A$55,0)),\"\")","v":""},{"$f":"IFERROR(IF(INDEX('PR Cash Reconciliation_2A,B,C,D'!$I$7:$I$55,MATCH(B38,'PR Cash Reconciliation_2A,B,C,D'!$A$7:$A$55,0))=0,\"\",INDEX('PR Cash Reconciliation_2A,B,C,D'!$I$7:$I$55,MATCH(B38,'PR Cash Reconciliation_2A,B,C,D'!$A$7:$A$55,0))),\"\")","v":""}]
["a4836000000gbW1AAI","4.",{"$f":"IFERROR(INDEX('PR Cash Reconciliation_2A,B,C,D'!$C$7:$C$55,MATCH(B39,'PR Cash Reconciliation_2A,B,C,D'!$A$7:$A$55,0)),\"\")","v":""},{"$f":"IFERROR(INDEX('PR Cash Reconciliation_2A,B,C,D'!$D$7:$D$55,MATCH(B39,'PR Cash Reconciliation_2A,B,C,D'!$A$7:$A$55,0)),\"\")","v":""},{"$f":"IFERROR(IF(INDEX('PR Cash Reconciliation_2A,B,C,D'!$E$7:$E$55,MATCH(B39,'PR Cash Reconciliation_2A,B,C,D'!$A$7:$A$55,0))=0,\"\",INDEX('PR Cash Reconciliation_2A,B,C,D'!$E$7:$E$55,MATCH(B39,'PR Cash Reconciliation_2A,B,C,D'!$A$7:$A$55,0))),\"\")","v":""},{"$f":"IFERROR(INDEX('PR Cash Reconciliation_2A,B,C,D'!$F$7:$F$55,MATCH(B39,'PR Cash Reconciliation_2A,B,C,D'!$A$7:$A$55,0)),\"\")","v":""},{"$f":"IFERROR(INDEX('PR Cash Reconciliation_2A,B,C,D'!$G$7:$G$55,MATCH(B39,'PR Cash Reconciliation_2A,B,C,D'!$A$7:$A$55,0)),\"\")","v":""},{"$f":"IFERROR(IF(INDEX('PR Cash Reconciliation_2A,B,C,D'!$I$7:$I$55,MATCH(B39,'PR Cash Reconciliation_2A,B,C,D'!$A$7:$A$55,0))=0,\"\",INDEX('PR Cash Reconciliation_2A,B,C,D'!$I$7:$I$55,MATCH(B39,'PR Cash Reconciliation_2A,B,C,D'!$A$7:$A$55,0))),\"\")","v":""}]
["a4836000000gbW2AAI","5.",{"$f":"IFERROR(INDEX('PR Cash Reconciliation_2A,B,C,D'!$C$7:$C$55,MATCH(B40,'PR Cash Reconciliation_2A,B,C,D'!$A$7:$A$55,0)),\"\")","v":""},{"$f":"IFERROR(INDEX('PR Cash Reconciliation_2A,B,C,D'!$D$7:$D$55,MATCH(B40,'PR Cash Reconciliation_2A,B,C,D'!$A$7:$A$55,0)),\"\")","v":""},{"$f":"IFERROR(IF(INDEX('PR Cash Reconciliation_2A,B,C,D'!$E$7:$E$55,MATCH(B40,'PR Cash Reconciliation_2A,B,C,D'!$A$7:$A$55,0))=0,\"\",INDEX('PR Cash Reconciliation_2A,B,C,D'!$E$7:$E$55,MATCH(B40,'PR Cash Reconciliation_2A,B,C,D'!$A$7:$A$55,0))),\"\")","v":""},{"$f":"IFERROR(INDEX('PR Cash Reconciliation_2A,B,C,D'!$F$7:$F$55,MATCH(B40,'PR Cash Reconciliation_2A,B,C,D'!$A$7:$A$55,0)),\"\")","v":""},{"$f":"IFERROR(INDEX('PR Cash Reconciliation_2A,B,C,D'!$G$7:$G$55,MATCH(B40,'PR Cash Reconciliation_2A,B,C,D'!$A$7:$A$55,0)),\"\")","v":""},{"$f":"IFERROR(IF(INDEX('PR Cash Reconciliation_2A,B,C,D'!$I$7:$I$55,MATCH(B40,'PR Cash Reconciliation_2A,B,C,D'!$A$7:$A$55,0))=0,\"\",INDEX('PR Cash Reconciliation_2A,B,C,D'!$I$7:$I$55,MATCH(B40,'PR Cash Reconciliation_2A,B,C,D'!$A$7:$A$55,0))),\"\")","v":""}]

{"sheet":"SR_Cash Reconciliation_2E","index":18,"n_rows":111,"n_cols":19,"rows_kept":111,"cut":false,"hidden":true,"merged":[[6,2,6,12],[6,13,6,15],[6,16,6,18],[1,9,2,18],[0,2,0,18],[1,2,2,3],[1,4,1,5],[2,4,2,5],[4,2,4,18]]}
[null,null,{"$f":"VLOOKUP(Translations!B157,Translations!B3:H508,4,0)","v":"Rapport périodique sur les résultats actuels et demande de décaissement"}]
[null,null,{"$f":"VLOOKUP(Translations!B158,Translations!B3:H508,4,0)","v":"Section 2 : Information financière"},null,{"$f":"CoverSheet!F12","v":"Période couverte par le rapport sur les information financière"},null,{"$f":"CoverSheet!J12","v":"2018-01-01"},{"$f":"CoverSheet!K12","v":"Date de fin :"},{"$f":"CoverSheet!L12","v":"2018-06-30"}]
[null,null,null,null,"Cumulative Period of Financial Reporting",null,{"$f":"CoverSheet!D13","v":"2018-01-01"},{"$f":"CoverSheet!K12","v":"Date de fin :"},{"$f":"CoverSheet!L12","v":"2018-06-30"}]
[]
[null,null,{"$f":"VLOOKUP(Translations!B165,Translations!B3:H508,4,0)","v":"Rapprochement du récipiendaire principal concernant les fonds fournis aux sous-récipiendaires pour la période actuelle de mise en œuvre"}]
[]
[null,null,"Principal Recipient",null,null,null,null,null,null,null,null,null,null,"For Local Fund Agent Use Only ",null,null,"For the Global Fund Use Only"]
[null,null,{"$f":"VLOOKUP(Translations!B167,Translations!B3:H508,4,0)","v":"(1) \nNom du sous-récipiendaire"},{"$f":"VLOOKUP(Translations!B168,Translations!B3:H508,4,0)","v":"(2) \n Dépenses cumulées du sous-récipiendaire pour les périodes précédentes au niveau du récipiendaire principal"},{"$f":"VLOOKUP(Translations!B169,Translations!B3:H508,4,0)","v":"(3) \nAvances ouvertes au sous-récipiendaire au niveau du récipiendaire principal"},{"$f":"VLOOKUP(Translations!B170,Translations!B3:H508,4,0)","v":"(4) \nDécaissements réalisés par le récipiendaire principal"},{"$f":"VLOOKUP(Translations!B171,Translations!B3:H508,4,0)","v":"(5) \nAutres revenus*"},{"$f":"VLOOKUP(Translations!B172,Translations!B3:H508,4,0)","v":"(6) \nDépenses validées par le récipiendaire principal"},{"$f":"VLOOKUP(Translations!B173,Translations!B3:H508,4,0)","v":"(7)\nRefunds received  from the Sub-Recipient"},{"$f":"VLOOKUP(Translations!B174,Translations!B3:H508,4,0)","v":"(8) \nSolde de trésorerie de clôture du sous-récipiendaire au niveau du récipiendaire principal"},{"$f":"VLOOKUP(Translations!B175,Translations!B3:H508,4,0)","v":"(9) \nSolde de trésorerie réel du sous-récipiendaire (le cas échéant)"},{"$f":"VLOOKUP(Translations!B176,Translations!B3:H508,4,0)","v":" (10)\nÉcarts par rapport aux soldes des sous-récipiendaires"},{"$f":"VLOOKUP(Translations!B177,Translations!B3:H508,4,0)","v":"Commentaires"},"LFA Adjustments","As verified by LFA","Comments","Country Team Adjustments (incl. External Audit adjustments)","The Global Fund Validated Figures","Comments"]
[{"$f":"A8+1","v":1},{"$f":"\"ID\"&A9","v":"ID1"},null,null,null,null,null,null,null,{"$f":"IFERROR(+E9+F9+G9-H9-I9,\"\")","v":0},null,{"$f":"IFERROR(+K9-J9,\"\")","v":0},null,null,{"$f":"IFERROR(J9+N9,\"\")","v":0},null,null,{"$f":"O9+Q9","v":0}]
[{"$f":"A9+1","v":2},{"$f":"\"ID\"&A10","v":"ID2"},null,null,null,null,null,null,null,{"$f":"IFERROR(+E10+F10+G10-H10-I10,\"\")","v":0},null,{"$f":"IFERROR(+K10-J10,\"\")","v":0},null,null,{"$f":"IFERROR(J10+N10,\"\")","v":0},null,null,{"$f":"O10+Q10","v":0}]
[3,"ID3",null,null,null,null,null,null,null,0,null,0,null,null,0,null,null,0]
[4,"ID4",null,null,null,null,null,null,null,0,null,0,null,null,0,null,null,0]
[5,"ID5",null,null,null,null,null,null,null,0,null,0,null,null,0,null,null,0]
[6,"ID6",null,null,null,null,null,null,null,0,null,0,null,null,0,null,null,0]
[7,"ID7",null,null,null,null,null,null,null,0,null,0,null,null,0,null,null,0]
[8,"ID8",null,null,null,null,null,null,null,0,null,0,null,null,0,null,null,0]
[9,"ID9",null,null,null,null,null,null,null,0,null,0,null,null,0,null,null,0]
[10,"ID10",null,null,null,null,null,null,null,0,null,0,null,null,0,null,null,0]
[11,"ID11",null,null,null,null,null,null,null,0,null,0,null,null,0,null,null,0]
[12,"ID12",null,null,null,null,null,null,null,0,null,0,null,null,0,null,null,0]
[13,"ID13",null,null,null,null,null,null,null,0,null,0,null,null,0,null,null,0]
[14,"ID14",null,null,null,null,null,null,null,0,null,0,null,null,0,null,null,0]
[15,"ID15",null,null,null,null,null,null,null,0,null,0,null,null,0,null,null,0]
[16,"ID16",null,null,null,null,null,null,null,0,null,0,null,null,0,null,null,0]
[17,"ID17",null,null,null,null,null,null,null,0,null,0,null,null,0,null,null,0]
[18,"ID18",null,null,null,null,null,null,null,0,null,0,null,null,0,null,null,0]
[19,"ID19",null,null,null,null,null,null,null,0,null,0,null,null,0,null,null,0]
[20,"ID20",null,null,null,null,null,null,null,0,null,0,null,null,0,null,null,0]
[21,"ID21",null,null,null,null,null,null,null,0,null,0,null,null,0,null,null,0]
[22,"ID22",null,null,null,null,null,null,null,0,null,0,null,null,0,null,null,0]
[23,"ID23",null,null,null,null,null,null,null,0,null,0,null,null,0,null,null,0]
[24,"ID24",null,null,null,null,null,null,null,0,null,0,null,null,0,null,null,0]
[25,"ID25",null,null,null,null,null,null,null,0,null,0,null,null,0,null,null,0]
[26,"ID26",null,null,null,null,null,null,null,0,null,0,null,null,0,null,null,0]
[27,"ID27",null,null,null,null,null,null,null,0,null,0,null,null,0,null,null,0]
[28,"ID28",null,null,null,null,null,null,null,0,null,0,null,null,0,null,null,0]
[29,"ID29",null,null,null,null,null,null,null,0,null,0,null,null,0,null,null,0]
[30,"ID30",null,null,null,null,null,null,null,0,null,0,null,null,0,null,null,0]
[31,"ID31",null,null,null,null,null,null,null,0,null,0,null,null,0,null,null,0]
[32,"ID32",null,null,null,null,null,null,null,0,null,0,null,null,0,null,null,0]
[33,"ID33",null,null,null,null,null,null,null,0,null,0,null,null,0,null,null,0]
[34,"ID34",null,null,null,null,null,null,null,0,null,0,null,null,0,null,null,0]
[35,"ID35",null,null,null,null,null,null,null,0,null,0,null,null,0,null,null,0]
[36,"ID36",null,null,null,null,null,null,null,0,null,0,null,null,0,null,null,0]
[37,"ID37",null,null,null,null,null,null,null,0,null,0,null,null,0,null,null,0]
[38,"ID38",null,null,null,null,null,null,null,0,null,0,null,null,0,null,null,0]
[39,"ID39",null,null,null,null,null,null,null,0,null,0,null,null,0,null,null,0]
[40,"ID40",null,null,null,null,null,null,null,0,null,0,null,null,0,null,null,0]
[41,"ID41",null,null,null,null,null,null,null,0,null,0,null,null,0,null,null,0]
[42,"ID42",null,null,null,null,null,null,null,0,null,0,null,null,0,null,null,0]
[43,"ID43",null,null,null,null,null,null,null,0,null,0,null,null,0,null,null,0]
[44,"ID44",null,null,null,null,null,null,null,0,null,0,null,null,0,null,null,0]
[45,"ID45",null,null,null,null,null,null,null,0,null,0,null,null,0,null,null,0]
[46,"ID46",null,null,null,null,null,null,null,0,null,0,null,null,0,null,null,0]
[47,"ID47",null,null,null,null,null,null,null,0,null,0,null,null,0,null,null,0]
[48,"ID48",null,null,null,null,null,null,null,0,null,0,null,null,0,null,null,0]
[49,"ID49",null,null,null,null,null,null,null,0,null,0,null,null,0,null,null,0]
[50,"ID50",null,null,null,null,null,null,null,0,null,0,null,null,0,null,null,0]
[51,"ID51",null,null,null,null,null,null,null,0,null,0,null,null,0,null,null,0]
[52,"ID52",null,null,null,null,null,null,null,0,null,0,null,null,0,null,null,0]
[53,"ID53",null,null,null,null,null,null,null,0,null,0,null,null,0,null,null,0]
[54,"ID54",null,null,null,null,null,null,null,0,null,0,null,null,0,null,null,0]
[55,"ID55",null,null,null,null,null,null,null,0,null,0,null,null,0,null,null,0]
[56,"ID56",null,null,null,null,null,null,null,0,null,0,null,null,0,null,null,0]
[57,"ID57",null,null,null,null,null,null,null,0,null,0,null,null,0,null,null,0]
[58,"ID58",null,null,null,null,null,null,null,0,null,0,null,null,0,null,null,0]
[59,"ID59",null,null,null,null,null,null,null,0,null,0,null,null,0,null,null,0]
[60,"ID60",null,null,null,null,null,null,null,0,null,0,null,null,0,null,null,0]
[61,"ID61",null,null,null,null,null,null,null,0,null,0,null,null,0,null,null,0]
[62,"ID62",null,null,null,null,null,null,null,0,null,0,null,null,0,null,null,0]
[63,"ID63",null,null,null,null,null,null,null,0,null,0,null,null,0,null,null,0]
[64,"ID64",null,null,null,null,null,null,null,0,null,0,null,null,0,null,null,0]
[65,"ID65",null,null,null,null,null,null,null,0,null,0,null,null,0,null,null,0]
[{"$f":"A73+1","v":66},{"$f":"\"ID\"&A74","v":"ID66"},null,null,null,null,null,null,null,{"$f":"IFERROR(+E74+F74+G74-H74-I74,\"\")","v":0},null,{"$f":"IFERROR(+K74-J74,\"\")","v":0},null,null,{"$f":"IFERROR(J74+N74,\"\")","v":0},null,null,{"$f":"O74+Q74","v":0}]
[67,"ID67",null,null,null,null,null,null,null,0,null,0,null,null,0,null,null,0]
[68,"ID68",null,null,null,null,null,null,null,0,null,0,null,null,0,null,null,0]
[69,"ID69",null,null,null,null,null,null,null,0,null,0,null,null,0,null,null,0]
[70,"ID70",null,null,null,null,null,null,null,0,null,0,null,null,0,null,null,0]
[71,"ID71",null,null,null,null,null,null,null,0,null,0,null,null,0,null,null,0]
[72,"ID72",null,null,null,null,null,null,null,0,null,0,null,null,0,null,null,0]
[73,"ID73",null,null,null,null,null,null,null,0,null,0,null,null,0,null,null,0]
[74,"ID74",null,null,null,null,null,null,null,0,null,0,null,null,0,null,null,0]
[75,"ID75",null,null,null,null,null,null,null,0,null,0,null,null,0,null,null,0]
[76,"ID76",null,null,null,null,null,null,null,0,null,0,null,null,0,null,null,0]
[77,"ID77",null,null,null,null,null,null,null,0,null,0,null,null,0,null,null,0]
[78,"ID78",null,null,null,null,null,null,null,0,null,0,null,null,0,null,null,0]
[79,"ID79",null,null,null,null,null,null,null,0,null,0,null,null,0,null,null,0]
[80,"ID80",null,null,null,null,null,null,null,0,null,0,null,null,0,null,null,0]
[81,"ID81",null,null,null,null,null,null,null,0,null,0,null,null,0,null,null,0]
[82,"ID82",null,null,null,null,null,null,null,0,null,0,null,null,0,null,null,0]
[83,"ID83",null,null,null,null,null,null,null,0,null,0,null,null,0,null,null,0]
[84,"ID84",null,null,null,null,null,null,null,0,null,0,null,null,0,null,null,0]
[85,"ID85",null,null,null,null,null,null,null,0,null,0,null,null,0,null,null,0]
[86,"ID86",null,null,null,null,null,null,null,0,null,0,null,null,0,null,null,0]
[87,"ID87",null,null,null,null,null,null,null,0,null,0,null,null,0,null,null,0]
[88,"ID88",null,null,null,null,null,null,null,0,null,0,null,null,0,null,null,0]
[89,"ID89",null,null,null,null,null,null,null,0,null,0,null,null,0,null,null,0]
[90,"ID90",null,null,null,null,null,null,null,0,null,0,null,null,0,null,null,0]
[91,"ID91",null,null,null,null,null,null,null,0,null,0,null,null,0,null,null,0]
[92,"ID92",null,null,null,null,null,null,null,0,null,0,null,null,0,null,null,0]
[93,"ID93",null,null,null,null,null,null,null,0,null,0,null,null,0,null,null,0]
[94,"ID94",null,null,null,null,null,null,null,0,null,0,null,null,0,null,null,0]
[95,"ID95",null,null,null,null,null,null,null,0,null,0,null,null,0,null,null,0]
[96,"ID96",null,null,null,null,null,null,null,0,null,0,null,null,0,null,null,0]
[{"$f":"A104+1","v":97},"ID97",null,null,null,null,null,null,null,0,null,0,null,null,0,null,null,0]
[{"$f":"A105+1","v":98},"ID98",null,null,null,null,null,null,null,0,null,0,null,null,0,null,null,0]
[{"$f":"A106+1","v":99},"ID99",null,null,null,null,null,null,null,0,null,0,null,null,0,null,null,0]
[{"$f":"A107+1","v":100},"ID100",null,null,null,null,null,null,null,0,null,0,null,null,0,null,null,0]
[null,null,"Total for the Reporting Period",{"$f":"SUM(D9:D108)","v":0},0,0,0,0,0,0,0,0,null,{"$f":"SUM(N9:N108)","v":0},{"$f":"J109+N109","v":0},null,{"$f":"SUM(Q9:Q108)","v":0},{"$f":"O109+Q109","v":0}]
[]
[null,null,"* Includes interest income, income generating activites etc."]

{"sheet":"SR Cash Recon Import Export","index":19,"n_rows":105,"n_cols":14,"rows_kept":105,"cut":false,"hidden":true,"merged":[]}
["Tab should be locked"]
["Tab should be veryhidden"]
[]
["Record ID","Reporting Period ID","Counter","Look up ID","SR Name","Cumulative SR exp. for prior periods","SR Open Advances at PR Level","PR Disbursements for Rep. Period","Other Income during Rep. Period","PR validated exp. during Rep. Period","Refunds received from SR","Actual SR Cash Balance","Variances on SR Balances","LFA Adjustments"]
["[Record ID]",null,{"$f":"C3+1","v":1},{"$f":"\"ID\"&C5","v":"ID1"},{"$f":"IFERROR(IF(INDEX('SR_Cash Reconciliation_2E'!C$9:C$270,MATCH($D5,'SR_Cash Reconciliation_2E'!$B$9:$B$270,0))=\"\",\"\",INDEX('SR_Cash Reconciliation_2E'!C$9:C$270,MATCH($D5,'SR_Cash Reconciliation_2E'!$B$9:$B$270,0))),\"\")","v":""},{"$f":"IFERROR(IF(INDEX('SR_Cash Reconciliation_2E'!D$9:D$270,MATCH($D5,'SR_Cash Reconciliation_2E'!$B$9:$B$270,0))=\"\",\"\",INDEX('SR_Cash Reconciliation_2E'!D$9:D$270,MATCH($D5,'SR_Cash Reconciliation_2E'!$B$9:$B$270,0))),\"\")","v":""},{"$f":"IFERROR(IF(INDEX('SR_Cash Reconciliation_2E'!E$9:E$270,MATCH($D5,'SR_Cash Reconciliation_2E'!$B$9:$B$270,0))=\"\",\"\",INDEX('SR_Cash Reconciliation_2E'!E$9:E$270,MATCH($D5,'SR_Cash Reconciliation_2E'!$B$9:$B$270,0))),\"\")","v":""},{"$f":"IFERROR(IF(INDEX('SR_Cash Reconciliation_2E'!F$9:F$270,MATCH($D5,'SR_Cash Reconciliation_2E'!$B$9:$B$270,0))=\"\",\"\",INDEX('SR_Cash Reconciliation_2E'!F$9:F$270,MATCH($D5,'SR_Cash Reconciliation_2E'!$B$9:$B$270,0))),\"\")","v":""},{"$f":"IFERROR(IF(INDEX('SR_Cash Reconciliation_2E'!G$9:G$270,MATCH($D5,'SR_Cash Reconciliation_2E'!$B$9:$B$270,0))=\"\",\"\",INDEX('SR_Cash Reconciliation_2E'!G$9:G$270,MATCH($D5,'SR_Cash Reconciliation_2E'!$B$9:$B$270,0))),\"\")","v":""},{"$f":"IFERROR(IF(INDEX('SR_Cash Reconciliation_2E'!H$9:H$270,MATCH($D5,'SR_Cash Reconciliation_2E'!$B$9:$B$270,0))=\"\",\"\",INDEX('SR_Cash Reconciliation_2E'!H$9:H$270,MATCH($D5,'SR_Cash Reconciliation_2E'!$B$9:$B$270,0))),\"\")","v":""},{"$f":"IFERROR(IF(INDEX('SR_Cash Reconciliation_2E'!I$9:I$270,MATCH($D5,'SR_Cash Reconciliation_2E'!$B$9:$B$270,0))=\"\",\"\",INDEX('SR_Cash Reconciliation_2E'!I$9:I$270,MATCH($D5,'SR_Cash Reconciliation_2E'!$B$9:$B$270,0))),\"\")","v":""},{"$f":"IFERROR(IF(INDEX('SR_Cash Reconciliation_2E'!K$9:K$270,MATCH($D5,'SR_Cash Reconciliation_2E'!$B$9:$B$270,0))=\"\",\"\",INDEX('SR_Cash Reconciliation_2E'!K$9:K$270,MATCH($D5,'SR_Cash Reconciliation_2E'!$B$9:$B$270,0))),\"\")","v":""},{"$f":"\"\"","v":""},{"$f":"IFERROR(IF(INDEX('SR_Cash Reconciliation_2E'!N$9:N$270,MATCH($D5,'SR_Cash Reconciliation_2E'!$B$9:$B$270,0))=\"\",\"\",INDEX('SR_Cash Reconciliation_2E'!N$9:N$270,MATCH($D5,'SR_Cash Reconciliation_2E'!$B$9:$B$270,0))),\"\")","v":""}]
[null,null,{"$f":"C4+1","v":{"$error":"#VALUE!"}},{"$f":"\"ID\"&C6","v":{"$error":"#VALUE!"}},{"$f":"IFERROR(IF(INDEX('SR_Cash Reconciliation_2E'!C$9:C$270,MATCH($D6,'SR_Cash Reconciliation_2E'!$B$9:$B$270,0))=\"\",\"\",INDEX('SR_Cash Reconciliation_2E'!C$9:C$270,MATCH($D6,'SR_Cash Reconciliation_2E'!$B$9:$B$270,0))),\"\")","v":""},{"$f":"IFERROR(IF(INDEX('SR_Cash Reconciliation_2E'!D$9:D$270,MATCH($D6,'SR_Cash Reconciliation_2E'!$B$9:$B$270,0))=\"\",\"\",INDEX('SR_Cash Reconciliation_2E'!D$9:D$270,MATCH($D6,'SR_Cash Reconciliation_2E'!$B$9:$B$270,0))),\"\")","v":""},{"$f":"IFERROR(IF(INDEX('SR_Cash Reconciliation_2E'!E$9:E$270,MATCH($D6,'SR_Cash Reconciliation_2E'!$B$9:$B$270,0))=\"\",\"\",INDEX('SR_Cash Reconciliation_2E'!E$9:E$270,MATCH($D6,'SR_Cash Reconciliation_2E'!$B$9:$B$270,0))),\"\")","v":""},{"$f":"IFERROR(IF(INDEX('SR_Cash Reconciliation_2E'!F$9:F$270,MATCH($D6,'SR_Cash Reconciliation_2E'!$B$9:$B$270,0))=\"\",\"\",INDEX('SR_Cash Reconciliation_2E'!F$9:F$270,MATCH($D6,'SR_Cash Reconciliation_2E'!$B$9:$B$270,0))),\"\")","v":""},{"$f":"IFERROR(IF(INDEX('SR_Cash Reconciliation_2E'!G$9:G$270,MATCH($D6,'SR_Cash Reconciliation_2E'!$B$9:$B$270,0))=\"\",\"\",INDEX('SR_Cash Reconciliation_2E'!G$9:G$270,MATCH($D6,'SR_Cash Reconciliation_2E'!$B$9:$B$270,0))),\"\")","v":""},{"$f":"IFERROR(IF(INDEX('SR_Cash Reconciliation_2E'!H$9:H$270,MATCH($D6,'SR_Cash Reconciliation_2E'!$B$9:$B$270,0))=\"\",\"\",INDEX('SR_Cash Reconciliation_2E'!H$9:H$270,MATCH($D6,'SR_Cash Reconciliation_2E'!$B$9:$B$270,0))),\"\")","v":""},{"$f":"IFERROR(IF(INDEX('SR_Cash Reconciliation_2E'!I$9:I$270,MATCH($D6,'SR_Cash Reconciliation_2E'!$B$9:$B$270,0))=\"\",\"\",INDEX('SR_Cash Reconciliation_2E'!I$9:I$270,MATCH($D6,'SR_Cash Reconciliation_2E'!$B$9:$B$270,0))),\"\")","v":""},{"$f":"IFERROR(IF(INDEX('SR_Cash Reconciliation_2E'!K$9:K$270,MATCH($D6,'SR_Cash Reconciliation_2E'!$B$9:$B$270,0))=\"\",\"\",INDEX('SR_Cash Reconciliation_2E'!K$9:K$270,MATCH($D6,'SR_Cash Reconciliation_2E'!$B$9:$B$270,0))),\"\")","v":""},{"$f":"\"\"","v":""},{"$f":"IFERROR(IF(INDEX('SR_Cash Reconciliation_2E'!N$9:N$270,MATCH($D6,'SR_Cash Reconciliation_2E'!$B$9:$B$270,0))=\"\",\"\",INDEX('SR_Cash Reconciliation_2E'!N$9:N$270,MATCH($D6,'SR_Cash Reconciliation_2E'!$B$9:$B$270,0))),\"\")","v":""}]
[null,null,2,"ID2",{"$f":"IFERROR(IF(INDEX('SR_Cash Reconciliation_2E'!C$9:C$270,MATCH($D7,'SR_Cash Reconciliation_2E'!$B$9:$B$270,0))=\"\",\"\",INDEX('SR_Cash Reconciliation_2E'!C$9:C$270,MATCH($D7,'SR_Cash Reconciliation_2E'!$B$9:$B$270,0))),\"\")","v":""},{"$f":"IFERROR(IF(INDEX('SR_Cash Reconciliation_2E'!D$9:D$270,MATCH($D7,'SR_Cash Reconciliation_2E'!$B$9:$B$270,0))=\"\",\"\",INDEX('SR_Cash Reconciliation_2E'!D$9:D$270,MATCH($D7,'SR_Cash Reconciliation_2E'!$B$9:$B$270,0))),\"\")","v":""},{"$f":"IFERROR(IF(INDEX('SR_Cash Reconciliation_2E'!E$9:E$270,MATCH($D7,'SR_Cash Reconciliation_2E'!$B$9:$B$270,0))=\"\",\"\",INDEX('SR_Cash Reconciliation_2E'!E$9:E$270,MATCH($D7,'SR_Cash Reconciliation_2E'!$B$9:$B$270,0))),\"\")","v":""},{"$f":"IFERROR(IF(INDEX('SR_Cash Reconciliation_2E'!F$9:F$270,MATCH($D7,'SR_Cash Reconciliation_2E'!$B$9:$B$270,0))=\"\",\"\",INDEX('SR_Cash Reconciliation_2E'!F$9:F$270,MATCH($D7,'SR_Cash Reconciliation_2E'!$B$9:$B$270,0))),\"\")","v":""},{"$f":"IFERROR(IF(INDEX('SR_Cash Reconciliation_2E'!G$9:G$270,MATCH($D7,'SR_Cash Reconciliation_2E'!$B$9:$B$270,0))=\"\",\"\",INDEX('SR_Cash Reconciliation_2E'!G$9:G$270,MATCH($D7,'SR_Cash Reconciliation_2E'!$B$9:$B$270,0))),\"\")","v":""},{"$f":"IFERROR(IF(INDEX('SR_Cash Reconciliation_2E'!H$9:H$270,MATCH($D7,'SR_Cash Reconciliation_2E'!$B$9:$B$270,0))=\"\",\"\",INDEX('SR_Cash Reconciliation_2E'!H$9:H$270,MATCH($D7,'SR_Cash Reconciliation_2E'!$B$9:$B$270,0))),\"\")","v":""},{"$f":"IFERROR(IF(INDEX('SR_Cash Reconciliation_2E'!I$9:I$270,MATCH($D7,'SR_Cash Reconciliation_2E'!$B$9:$B$270,0))=\"\",\"\",INDEX('SR_Cash Reconciliation_2E'!I$9:I$270,MATCH($D7,'SR_Cash Reconciliation_2E'!$B$9:$B$270,0))),\"\")","v":""},{"$f":"IFERROR(IF(INDEX('SR_Cash Reconciliation_2E'!K$9:K$270,MATCH($D7,'SR_Cash Reconciliation_2E'!$B$9:$B$270,0))=\"\",\"\",INDEX('SR_Cash Reconciliation_2E'!K$9:K$270,MATCH($D7,'SR_Cash Reconciliation_2E'!$B$9:$B$270,0))),\"\")","v":""},{"$f":"\"\"","v":""},{"$f":"IFERROR(IF(INDEX('SR_Cash Reconciliation_2E'!N$9:N$270,MATCH($D7,'SR_Cash Reconciliation_2E'!$B$9:$B$270,0))=\"\",\"\",INDEX('SR_Cash Reconciliation_2E'!N$9:N$270,MATCH($D7,'SR_Cash Reconciliation_2E'!$B$9:$B$270,0))),\"\")","v":""}]
[null,null,{"$error":"#VALUE!"},{"$error":"#VALUE!"},{"$f":"IFERROR(IF(INDEX('SR_Cash Reconciliation_2E'!C$9:C$270,MATCH($D8,'SR_Cash Reconciliation_2E'!$B$9:$B$270,0))=\"\",\"\",INDEX('SR_Cash Reconciliation_2E'!C$9:C$270,MATCH($D8,'SR_Cash Reconciliation_2E'!$B$9:$B$270,0))),\"\")","v":""},{"$f":"IFERROR(IF(INDEX('SR_Cash Reconciliation_2E'!D$9:D$270,MATCH($D8,'SR_Cash Reconciliation_2E'!$B$9:$B$270,0))=\"\",\"\",INDEX('SR_Cash Reconciliation_2E'!D$9:D$270,MATCH($D8,'SR_Cash Reconciliation_2E'!$B$9:$B$270,0))),\"\")","v":""},{"$f":"IFERROR(IF(INDEX('SR_Cash Reconciliation_2E'!E$9:E$270,MATCH($D8,'SR_Cash Reconciliation_2E'!$B$9:$B$270,0))=\"\",\"\",INDEX('SR_Cash Reconciliation_2E'!E$9:E$270,MATCH($D8,'SR_Cash Reconciliation_2E'!$B$9:$B$270,0))),\"\")","v":""},{"$f":"IFERROR(IF(INDEX('SR_Cash Reconciliation_2E'!F$9:F$270,MATCH($D8,'SR_Cash Reconciliation_2E'!$B$9:$B$270,0))=\"\",\"\",INDEX('SR_Cash Reconciliation_2E'!F$9:F$270,MATCH($D8,'SR_Cash Reconciliation_2E'!$B$9:$B$270,0))),\"\")","v":""},{"$f":"IFERROR(IF(INDEX('SR_Cash Reconciliation_2E'!G$9:G$270,MATCH($D8,'SR_Cash Reconciliation_2E'!$B$9:$B$270,0))=\"\",\"\",INDEX('SR_Cash Reconciliation_2E'!G$9:G$270,MATCH($D8,'SR_Cash Reconciliation_2E'!$B$9:$B$270,0))),\"\")","v":""},{"$f":"IFERROR(IF(INDEX('SR_Cash Reconciliation_2E'!H$9:H$270,MATCH($D8,'SR_Cash Reconciliation_2E'!$B$9:$B$270,0))=\"\",\"\",INDEX('SR_Cash Reconciliation_2E'!H$9:H$270,MATCH($D8,'SR_Cash Reconciliation_2E'!$B$9:$B$270,0))),\"\")","v":""},{"$f":"IFERROR(IF(INDEX('SR_Cash Reconciliation_2E'!I$9:I$270,MATCH($D8,'SR_Cash Reconciliation_2E'!$B$9:$B$270,0))=\"\",\"\",INDEX('SR_Cash Reconciliation_2E'!I$9:I$270,MATCH($D8,'SR_Cash Reconciliation_2E'!$B$9:$B$270,0))),\"\")","v":""},{"$f":"IFERROR(IF(INDEX('SR_Cash Reconciliation_2E'!K$9:K$270,MATCH($D8,'SR_Cash Reconciliation_2E'!$B$9:$B$270,0))=\"\",\"\",INDEX('SR_Cash Reconciliation_2E'!K$9:K$270,MATCH($D8,'SR_Cash Reconciliation_2E'!$B$9:$B$270,0))),\"\")","v":""},{"$f":"\"\"","v":""},{"$f":"IFERROR(IF(INDEX('SR_Cash Reconciliation_2E'!N$9:N$270,MATCH($D8,'SR_Cash Reconciliation_2E'!$B$9:$B$270,0))=\"\",\"\",INDEX('SR_Cash Reconciliation_2E'!N$9:N$270,MATCH($D8,'SR_Cash Reconciliation_2E'!$B$9:$B$270,0))),\"\")","v":""}]
[null,null,3,"ID3",{"$f":"IFERROR(IF(INDEX('SR_Cash Reconciliation_2E'!C$9:C$270,MATCH($D9,'SR_Cash Reconciliation_2E'!$B$9:$B$270,0))=\"\",\"\",INDEX('SR_Cash Reconciliation_2E'!C$9:C$270,MATCH($D9,'SR_Cash Reconciliation_2E'!$B$9:$B$270,0))),\"\")","v":""},{"$f":"IFERROR(IF(INDEX('SR_Cash Reconciliation_2E'!D$9:D$270,MATCH($D9,'SR_Cash Reconciliation_2E'!$B$9:$B$270,0))=\"\",\"\",INDEX('SR_Cash Reconciliation_2E'!D$9:D$270,MATCH($D9,'SR_Cash Reconciliation_2E'!$B$9:$B$270,0))),\"\")","v":""},{"$f":"IFERROR(IF(INDEX('SR_Cash Reconciliation_2E'!E$9:E$270,MATCH($D9,'SR_Cash Reconciliation_2E'!$B$9:$B$270,0))=\"\",\"\",INDEX('SR_Cash Reconciliation_2E'!E$9:E$270,MATCH($D9,'SR_Cash Reconciliation_2E'!$B$9:$B$270,0))),\"\")","v":""},{"$f":"IFERROR(IF(INDEX('SR_Cash Reconciliation_2E'!F$9:F$270,MATCH($D9,'SR_Cash Reconciliation_2E'!$B$9:$B$270,0))=\"\",\"\",INDEX('SR_Cash Reconciliation_2E'!F$9:F$270,MATCH($D9,'SR_Cash Reconciliation_2E'!$B$9:$B$270,0))),\"\")","v":""},{"$f":"IFERROR(IF(INDEX('SR_Cash Reconciliation_2E'!G$9:G$270,MATCH($D9,'SR_Cash Reconciliation_2E'!$B$9:$B$270,0))=\"\",\"\",INDEX('SR_Cash Reconciliation_2E'!G$9:G$270,MATCH($D9,'SR_Cash Reconciliation_2E'!$B$9:$B$270,0))),\"\")","v":""},{"$f":"IFERROR(IF(INDEX('SR_Cash Reconciliation_2E'!H$9:H$270,MATCH($D9,'SR_Cash Reconciliation_2E'!$B$9:$B$270,0))=\"\",\"\",INDEX('SR_Cash Reconciliation_2E'!H$9:H$270,MATCH($D9,'SR_Cash Reconciliation_2E'!$B$9:$B$270,0))),\"\")","v":""},{"$f":"IFERROR(IF(INDEX('SR_Cash Reconciliation_2E'!I$9:I$270,MATCH($D9,'SR_Cash Reconciliation_2E'!$B$9:$B$270,0))=\"\",\"\",INDEX('SR_Cash Reconciliation_2E'!I$9:I$270,MATCH($D9,'SR_Cash Reconciliation_2E'!$B$9:$B$270,0))),\"\")","v":""},{"$f":"IFERROR(IF(INDEX('SR_Cash Reconciliation_2E'!K$9:K$270,MATCH($D9,'SR_Cash Reconciliation_2E'!$B$9:$B$270,0))=\"\",\"\",INDEX('SR_Cash Reconciliation_2E'!K$9:K$270,MATCH($D9,'SR_Cash Reconciliation_2E'!$B$9:$B$270,0))),\"\")","v":""},{"$f":"\"\"","v":""},{"$f":"IFERROR(IF(INDEX('SR_Cash Reconciliation_2E'!N$9:N$270,MATCH($D9,'SR_Cash Reconciliation_2E'!$B$9:$B$270,0))=\"\",\"\",INDEX('SR_Cash Reconciliation_2E'!N$9:N$270,MATCH($D9,'SR_Cash Reconciliation_2E'!$B$9:$B$270,0))),\"\")","v":""}]
[null,null,{"$error":"#VALUE!"},{"$error":"#VALUE!"},{"$f":"IFERROR(IF(INDEX('SR_Cash Reconciliation_2E'!C$9:C$270,MATCH($D10,'SR_Cash Reconciliation_2E'!$B$9:$B$270,0))=\"\",\"\",INDEX('SR_Cash Reconciliation_2E'!C$9:C$270,MATCH($D10,'SR_Cash Reconciliation_2E'!$B$9:$B$270,0))),\"\")","v":""},{"$f":"IFERROR(IF(INDEX('SR_Cash Reconciliation_2E'!D$9:D$270,MATCH($D10,'SR_Cash Reconciliation_2E'!$B$9:$B$270,0))=\"\",\"\",INDEX('SR_Cash Reconciliation_2E'!D$9:D$270,MATCH($D10,'SR_Cash Reconciliation_2E'!$B$9:$B$270,0))),\"\")","v":""},{"$f":"IFERROR(IF(INDEX('SR_Cash Reconciliation_2E'!E$9:E$270,MATCH($D10,'SR_Cash Reconciliation_2E'!$B$9:$B$270,0))=\"\",\"\",INDEX('SR_Cash Reconciliation_2E'!E$9:E$270,MATCH($D10,'SR_Cash Reconciliation_2E'!$B$9:$B$270,0))),\"\")","v":""},{"$f":"IFERROR(IF(INDEX('SR_Cash Reconciliation_2E'!F$9:F$270,MATCH($D10,'SR_Cash Reconciliation_2E'!$B$9:$B$270,0))=\"\",\"\",INDEX('SR_Cash Reconciliation_2E'!F$9:F$270,MATCH($D10,'SR_Cash Reconciliation_2E'!$B$9:$B$270,0))),\"\")","v":""},{"$f":"IFERROR(IF(INDEX('SR_Cash Reconciliation_2E'!G$9:G$270,MATCH($D10,'SR_Cash Reconciliation_2E'!$B$9:$B$270,0))=\"\",\"\",INDEX('SR_Cash Reconciliation_2E'!G$9:G$270,MATCH($D10,'SR_Cash Reconciliation_2E'!$B$9:$B$270,0))),\"\")","v":""},{"$f":"IFERROR(IF(INDEX('SR_Cash Reconciliation_2E'!H$9:H$270,MATCH($D10,'SR_Cash Reconciliation_2E'!$B$9:$B$270,0))=\"\",\"\",INDEX('SR_Cash Reconciliation_2E'!H$9:H$270,MATCH($D10,'SR_Cash Reconciliation_2E'!$B$9:$B$270,0))),\"\")","v":""},{"$f":"IFERROR(IF(INDEX('SR_Cash Reconciliation_2E'!I$9:I$270,MATCH($D10,'SR_Cash Reconciliation_2E'!$B$9:$B$270,0))=\"\",\"\",INDEX('SR_Cash Reconciliation_2E'!I$9:I$270,MATCH($D10,'SR_Cash Reconciliation_2E'!$B$9:$B$270,0))),\"\")","v":""},{"$f":"IFERROR(IF(INDEX('SR_Cash Reconciliation_2E'!K$9:K$270,MATCH($D10,'SR_Cash Reconciliation_2E'!$B$9:$B$270,0))=\"\",\"\",INDEX('SR_Cash Reconciliation_2E'!K$9:K$270,MATCH($D10,'SR_Cash Reconciliation_2E'!$B$9:$B$270,0))),\"\")","v":""},{"$f":"\"\"","v":""},{"$f":"IFERROR(IF(INDEX('SR_Cash Reconciliation_2E'!N$9:N$270,MATCH($D10,'SR_Cash Reconciliation_2E'!$B$9:$B$270,0))=\"\",\"\",INDEX('SR_Cash Reconciliation_2E'!N$9:N$270,MATCH($D10,'SR_Cash Reconciliation_2E'!$B$9:$B$270,0))),\"\")","v":""}]
[null,null,4,"ID4",{"$f":"IFERROR(IF(INDEX('SR_Cash Reconciliation_2E'!C$9:C$270,MATCH($D11,'SR_Cash Reconciliation_2E'!$B$9:$B$270,0))=\"\",\"\",INDEX('SR_Cash Reconciliation_2E'!C$9:C$270,MATCH($D11,'SR_Cash Reconciliation_2E'!$B$9:$B$270,0))),\"\")","v":""},{"$f":"IFERROR(IF(INDEX('SR_Cash Reconciliation_2E'!D$9:D$270,MATCH($D11,'SR_Cash Reconciliation_2E'!$B$9:$B$270,0))=\"\",\"\",INDEX('SR_Cash Reconciliation_2E'!D$9:D$270,MATCH($D11,'SR_Cash Reconciliation_2E'!$B$9:$B$270,0))),\"\")","v":""},{"$f":"IFERROR(IF(INDEX('SR_Cash Reconciliation_2E'!E$9:E$270,MATCH($D11,'SR_Cash Reconciliation_2E'!$B$9:$B$270,0))=\"\",\"\",INDEX('SR_Cash Reconciliation_2E'!E$9:E$270,MATCH($D11,'SR_Cash Reconciliation_2E'!$B$9:$B$270,0))),\"\")","v":""},{"$f":"IFERROR(IF(INDEX('SR_Cash Reconciliation_2E'!F$9:F$270,MATCH($D11,'SR_Cash Reconciliation_2E'!$B$9:$B$270,0))=\"\",\"\",INDEX('SR_Cash Reconciliation_2E'!F$9:F$270,MATCH($D11,'SR_Cash Reconciliation_2E'!$B$9:$B$270,0))),\"\")","v":""},{"$f":"IFERROR(IF(INDEX('SR_Cash Reconciliation_2E'!G$9:G$270,MATCH($D11,'SR_Cash Reconciliation_2E'!$B$9:$B$270,0))=\"\",\"\",INDEX('SR_Cash Reconciliation_2E'!G$9:G$270,MATCH($D11,'SR_Cash Reconciliation_2E'!$B$9:$B$270,0))),\"\")","v":""},{"$f":"IFERROR(IF(INDEX('SR_Cash Reconciliation_2E'!H$9:H$270,MATCH($D11,'SR_Cash Reconciliation_2E'!$B$9:$B$270,0))=\"\",\"\",INDEX('SR_Cash Reconciliation_2E'!H$9:H$270,MATCH($D11,'SR_Cash Reconciliation_2E'!$B$9:$B$270,0))),\"\")","v":""},{"$f":"IFERROR(IF(INDEX('SR_Cash Reconciliation_2E'!I$9:I$270,MATCH($D11,'SR_Cash Reconciliation_2E'!$B$9:$B$270,0))=\"\",\"\",INDEX('SR_Cash Reconciliation_2E'!I$9:I$270,MATCH($D11,'SR_Cash Reconciliation_2E'!$B$9:$B$270,0))),\"\")","v":""},{"$f":"IFERROR(IF(INDEX('SR_Cash Reconciliation_2E'!K$9:K$270,MATCH($D11,'SR_Cash Reconciliation_2E'!$B$9:$B$270,0))=\"\",\"\",INDEX('SR_Cash Reconciliation_2E'!K$9:K$270,MATCH($D11,'SR_Cash Reconciliation_2E'!$B$9:$B$270,0))),\"\")","v":""},{"$f":"\"\"","v":""},{"$f":"IFERROR(IF(INDEX('SR_Cash Reconciliation_2E'!N$9:N$270,MATCH($D11,'SR_Cash Reconciliation_2E'!$B$9:$B$270,0))=\"\",\"\",INDEX('SR_Cash Reconciliation_2E'!N$9:N$270,MATCH($D11,'SR_Cash Reconciliation_2E'!$B$9:$B$270,0))),\"\")","v":""}]
[null,null,{"$error":"#VALUE!"},{"$error":"#VALUE!"},{"$f":"IFERROR(IF(INDEX('SR_Cash Reconciliation_2E'!C$9:C$270,MATCH($D12,'SR_Cash Reconciliation_2E'!$B$9:$B$270,0))=\"\",\"\",INDEX('SR_Cash Reconciliation_2E'!C$9:C$270,MATCH($D12,'SR_Cash Reconciliation_2E'!$B$9:$B$270,0))),\"\")","v":""},{"$f":"IFERROR(IF(INDEX('SR_Cash Reconciliation_2E'!D$9:D$270,MATCH($D12,'SR_Cash Reconciliation_2E'!$B$9:$B$270,0))=\"\",\"\",INDEX('SR_Cash Reconciliation_2E'!D$9:D$270,MATCH($D12,'SR_Cash Reconciliation_2E'!$B$9:$B$270,0))),\"\")","v":""},{"$f":"IFERROR(IF(INDEX('SR_Cash Reconciliation_2E'!E$9:E$270,MATCH($D12,'SR_Cash Reconciliation_2E'!$B$9:$B$270,0))=\"\",\"\",INDEX('SR_Cash Reconciliation_2E'!E$9:E$270,MATCH($D12,'SR_Cash Reconciliation_2E'!$B$9:$B$270,0))),\"\")","v":""},{"$f":"IFERROR(IF(INDEX('SR_Cash Reconciliation_2E'!F$9:F$270,MATCH($D12,'SR_Cash Reconciliation_2E'!$B$9:$B$270,0))=\"\",\"\",INDEX('SR_Cash Reconciliation_2E'!F$9:F$270,MATCH($D12,'SR_Cash Reconciliation_2E'!$B$9:$B$270,0))),\"\")","v":""},{"$f":"IFERROR(IF(INDEX('SR_Cash Reconciliation_2E'!G$9:G$270,MATCH($D12,'SR_Cash Reconciliation_2E'!$B$9:$B$270,0))=\"\",\"\",INDEX('SR_Cash Reconciliation_2E'!G$9:G$270,MATCH($D12,'SR_Cash Reconciliation_2E'!$B$9:$B$270,0))),\"\")","v":""},{"$f":"IFERROR(IF(INDEX('SR_Cash Reconciliation_2E'!H$9:H$270,MATCH($D12,'SR_Cash Reconciliation_2E'!$B$9:$B$270,0))=\"\",\"\",INDEX('SR_Cash Reconciliation_2E'!H$9:H$270,MATCH($D12,'SR_Cash Reconciliation_2E'!$B$9:$B$270,0))),\"\")","v":""},{"$f":"IFERROR(IF(INDEX('SR_Cash Reconciliation_2E'!I$9:I$270,MATCH($D12,'SR_Cash Reconciliation_2E'!$B$9:$B$270,0))=\"\",\"\",INDEX('SR_Cash Reconciliation_2E'!I$9:I$270,MATCH($D12,'SR_Cash Reconciliation_2E'!$B$9:$B$270,0))),\"\")","v":""},{"$f":"IFERROR(IF(INDEX('SR_Cash Reconciliation_2E'!K$9:K$270,MATCH($D12,'SR_Cash Reconciliation_2E'!$B$9:$B$270,0))=\"\",\"\",INDEX('SR_Cash Reconciliation_2E'!K$9:K$270,MATCH($D12,'SR_Cash Reconciliation_2E'!$B$9:$B$270,0))),\"\")","v":""},{"$f":"\"\"","v":""},{"$f":"IFERROR(IF(INDEX('SR_Cash Reconciliation_2E'!N$9:N$270,MATCH($D12,'SR_Cash Reconciliation_2E'!$B$9:$B$270,0))=\"\",\"\",INDEX('SR_Cash Reconciliation_2E'!N$9:N$270,MATCH($D12,'SR_Cash Reconciliation_2E'!$B$9:$B$270,0))),\"\")","v":""}]
[null,null,5,"ID5",{"$f":"IFERROR(IF(INDEX('SR_Cash Reconciliation_2E'!C$9:C$270,MATCH($D13,'SR_Cash Reconciliation_2E'!$B$9:$B$270,0))=\"\",\"\",INDEX('SR_Cash Reconciliation_2E'!C$9:C$270,MATCH($D13,'SR_Cash Reconciliation_2E'!$B$9:$B$270,0))),\"\")","v":""},{"$f":"IFERROR(IF(INDEX('SR_Cash Reconciliation_2E'!D$9:D$270,MATCH($D13,'SR_Cash Reconciliation_2E'!$B$9:$B$270,0))=\"\",\"\",INDEX('SR_Cash Reconciliation_2E'!D$9:D$270,MATCH($D13,'SR_Cash Reconciliation_2E'!$B$9:$B$270,0))),\"\")","v":""},{"$f":"IFERROR(IF(INDEX('SR_Cash Reconciliation_2E'!E$9:E$270,MATCH($D13,'SR_Cash Reconciliation_2E'!$B$9:$B$270,0))=\"\",\"\",INDEX('SR_Cash Reconciliation_2E'!E$9:E$270,MATCH($D13,'SR_Cash Reconciliation_2E'!$B$9:$B$270,0))),\"\")","v":""},{"$f":"IFERROR(IF(INDEX('SR_Cash Reconciliation_2E'!F$9:F$270,MATCH($D13,'SR_Cash Reconciliation_2E'!$B$9:$B$270,0))=\"\",\"\",INDEX('SR_Cash Reconciliation_2E'!F$9:F$270,MATCH($D13,'SR_Cash Reconciliation_2E'!$B$9:$B$270,0))),\"\")","v":""},{"$f":"IFERROR(IF(INDEX('SR_Cash Reconciliation_2E'!G$9:G$270,MATCH($D13,'SR_Cash Reconciliation_2E'!$B$9:$B$270,0))=\"\",\"\",INDEX('SR_Cash Reconciliation_2E'!G$9:G$270,MATCH($D13,'SR_Cash Reconciliation_2E'!$B$9:$B$270,0))),\"\")","v":""},{"$f":"IFERROR(IF(INDEX('SR_Cash Reconciliation_2E'!H$9:H$270,MATCH($D13,'SR_Cash Reconciliation_2E'!$B$9:$B$270,0))=\"\",\"\",INDEX('SR_Cash Reconciliation_2E'!H$9:H$270,MATCH($D13,'SR_Cash Reconciliation_2E'!$B$9:$B$270,0))),\"\")","v":""},{"$f":"IFERROR(IF(INDEX('SR_Cash Reconciliation_2E'!I$9:I$270,MATCH($D13,'SR_Cash Reconciliation_2E'!$B$9:$B$270,0))=\"\",\"\",INDEX('SR_Cash Reconciliation_2E'!I$9:I$270,MATCH($D13,'SR_Cash Reconciliation_2E'!$B$9:$B$270,0))),\"\")","v":""},{"$f":"IFERROR(IF(INDEX('SR_Cash Reconciliation_2E'!K$9:K$270,MATCH($D13,'SR_Cash Reconciliation_2E'!$B$9:$B$270,0))=\"\",\"\",INDEX('SR_Cash Reconciliation_2E'!K$9:K$270,MATCH($D13,'SR_Cash Reconciliation_2E'!$B$9:$B$270,0))),\"\")","v":""},{"$f":"\"\"","v":""},{"$f":"IFERROR(IF(INDEX('SR_Cash Reconciliation_2E'!N$9:N$270,MATCH($D13,'SR_Cash Reconciliation_2E'!$B$9:$B$270,0))=\"\",\"\",INDEX('SR_Cash Reconciliation_2E'!N$9:N$270,MATCH($D13,'SR_Cash Reconciliation_2E'!$B$9:$B$270,0))),\"\")","v":""}]
[null,null,{"$error":"#VALUE!"},{"$error":"#VALUE!"},{"$f":"IFERROR(IF(INDEX('SR_Cash Reconciliation_2E'!C$9:C$270,MATCH($D14,'SR_Cash Reconciliation_2E'!$B$9:$B$270,0))=\"\",\"\",INDEX('SR_Cash Reconciliation_2E'!C$9:C$270,MATCH($D14,'SR_Cash Reconciliation_2E'!$B$9:$B$270,0))),\"\")","v":""},{"$f":"IFERROR(IF(INDEX('SR_Cash Reconciliation_2E'!D$9:D$270,MATCH($D14,'SR_Cash Reconciliation_2E'!$B$9:$B$270,0))=\"\",\"\",INDEX('SR_Cash Reconciliation_2E'!D$9:D$270,MATCH($D14,'SR_Cash Reconciliation_2E'!$B$9:$B$270,0))),\"\")","v":""},{"$f":"IFERROR(IF(INDEX('SR_Cash Reconciliation_2E'!E$9:E$270,MATCH($D14,'SR_Cash Reconciliation_2E'!$B$9:$B$270,0))=\"\",\"\",INDEX('SR_Cash Reconciliation_2E'!E$9:E$270,MATCH($D14,'SR_Cash Reconciliation_2E'!$B$9:$B$270,0))),\"\")","v":""},{"$f":"IFERROR(IF(INDEX('SR_Cash Reconciliation_2E'!F$9:F$270,MATCH($D14,'SR_Cash Reconciliation_2E'!$B$9:$B$270,0))=\"\",\"\",INDEX('SR_Cash Reconciliation_2E'!F$9:F$270,MATCH($D14,'SR_Cash Reconciliation_2E'!$B$9:$B$270,0))),\"\")","v":""},{"$f":"IFERROR(IF(INDEX('SR_Cash Reconciliation_2E'!G$9:G$270,MATCH($D14,'SR_Cash Reconciliation_2E'!$B$9:$B$270,0))=\"\",\"\",INDEX('SR_Cash Reconciliation_2E'!G$9:G$270,MATCH($D14,'SR_Cash Reconciliation_2E'!$B$9:$B$270,0))),\"\")","v":""},{"$f":"IFERROR(IF(INDEX('SR_Cash Reconciliation_2E'!H$9:H$270,MATCH($D14,'SR_Cash Reconciliation_2E'!$B$9:$B$270,0))=\"\",\"\",INDEX('SR_Cash Reconciliation_2E'!H$9:H$270,MATCH($D14,'SR_Cash Reconciliation_2E'!$B$9:$B$270,0))),\"\")","v":""},{"$f":"IFERROR(IF(INDEX('SR_Cash Reconciliation_2E'!I$9:I$270,MATCH($D14,'SR_Cash Reconciliation_2E'!$B$9:$B$270,0))=\"\",\"\",INDEX('SR_Cash Reconciliation_2E'!I$9:I$270,MATCH($D14,'SR_Cash Reconciliation_2E'!$B$9:$B$270,0))),\"\")","v":""},{"$f":"IFERROR(IF(INDEX('SR_Cash Reconciliation_2E'!K$9:K$270,MATCH($D14,'SR_Cash Reconciliation_2E'!$B$9:$B$270,0))=\"\",\"\",INDEX('SR_Cash Reconciliation_2E'!K$9:K$270,MATCH($D14,'SR_Cash Reconciliation_2E'!$B$9:$B$270,0))),\"\")","v":""},{"$f":"\"\"","v":""},{"$f":"IFERROR(IF(INDEX('SR_Cash Reconciliation_2E'!N$9:N$270,MATCH($D14,'SR_Cash Reconciliation_2E'!$B$9:$B$270,0))=\"\",\"\",INDEX('SR_Cash Reconciliation_2E'!N$9:N$270,MATCH($D14,'SR_Cash Reconciliation_2E'!$B$9:$B$270,0))),\"\")","v":""}]
[null,null,6,"ID6",{"$f":"IFERROR(IF(INDEX('SR_Cash Reconciliation_2E'!C$9:C$270,MATCH($D15,'SR_Cash Reconciliation_2E'!$B$9:$B$270,0))=\"\",\"\",INDEX('SR_Cash Reconciliation_2E'!C$9:C$270,MATCH($D15,'SR_Cash Reconciliation_2E'!$B$9:$B$270,0))),\"\")","v":""},{"$f":"IFERROR(IF(INDEX('SR_Cash Reconciliation_2E'!D$9:D$270,MATCH($D15,'SR_Cash Reconciliation_2E'!$B$9:$B$270,0))=\"\",\"\",INDEX('SR_Cash Reconciliation_2E'!D$9:D$270,MATCH($D15,'SR_Cash Reconciliation_2E'!$B$9:$B$270,0))),\"\")","v":""},{"$f":"IFERROR(IF(INDEX('SR_Cash Reconciliation_2E'!E$9:E$270,MATCH($D15,'SR_Cash Reconciliation_2E'!$B$9:$B$270,0))=\"\",\"\",INDEX('SR_Cash Reconciliation_2E'!E$9:E$270,MATCH($D15,'SR_Cash Reconciliation_2E'!$B$9:$B$270,0))),\"\")","v":""},{"$f":"IFERROR(IF(INDEX('SR_Cash Reconciliation_2E'!F$9:F$270,MATCH($D15,'SR_Cash Reconciliation_2E'!$B$9:$B$270,0))=\"\",\"\",INDEX('SR_Cash Reconciliation_2E'!F$9:F$270,MATCH($D15,'SR_Cash Reconciliation_2E'!$B$9:$B$270,0))),\"\")","v":""},{"$f":"IFERROR(IF(INDEX('SR_Cash Reconciliation_2E'!G$9:G$270,MATCH($D15,'SR_Cash Reconciliation_2E'!$B$9:$B$270,0))=\"\",\"\",INDEX('SR_Cash Reconciliation_2E'!G$9:G$270,MATCH($D15,'SR_Cash Reconciliation_2E'!$B$9:$B$270,0))),\"\")","v":""},{"$f":"IFERROR(IF(INDEX('SR_Cash Reconciliation_2E'!H$9:H$270,MATCH($D15,'SR_Cash Reconciliation_2E'!$B$9:$B$270,0))=\"\",\"\",INDEX('SR_Cash Reconciliation_2E'!H$9:H$270,MATCH($D15,'SR_Cash Reconciliation_2E'!$B$9:$B$270,0))),\"\")","v":""},{"$f":"IFERROR(IF(INDEX('SR_Cash Reconciliation_2E'!I$9:I$270,MATCH($D15,'SR_Cash Reconciliation_2E'!$B$9:$B$270,0))=\"\",\"\",INDEX('SR_Cash Reconciliation_2E'!I$9:I$270,MATCH($D15,'SR_Cash Reconciliation_2E'!$B$9:$B$270,0))),\"\")","v":""},{"$f":"IFERROR(IF(INDEX('SR_Cash Reconciliation_2E'!K$9:K$270,MATCH($D15,'SR_Cash Reconciliation_2E'!$B$9:$B$270,0))=\"\",\"\",INDEX('SR_Cash Reconciliation_2E'!K$9:K$270,MATCH($D15,'SR_Cash Reconciliation_2E'!$B$9:$B$270,0))),\"\")","v":""},{"$f":"\"\"","v":""},{"$f":"IFERROR(IF(INDEX('SR_Cash Reconciliation_2E'!N$9:N$270,MATCH($D15,'SR_Cash Reconciliation_2E'!$B$9:$B$270,0))=\"\",\"\",INDEX('SR_Cash Reconciliation_2E'!N$9:N$270,MATCH($D15,'SR_Cash Reconciliation_2E'!$B$9:$B$270,0))),\"\")","v":""}]
[null,null,{"$error":"#VALUE!"},{"$error":"#VALUE!"},{"$f":"IFERROR(IF(INDEX('SR_Cash Reconciliation_2E'!C$9:C$270,MATCH($D16,'SR_Cash Reconciliation_2E'!$B$9:$B$270,0))=\"\",\"\",INDEX('SR_Cash Reconciliation_2E'!C$9:C$270,MATCH($D16,'SR_Cash Reconciliation_2E'!$B$9:$B$270,0))),\"\")","v":""},{"$f":"IFERROR(IF(INDEX('SR_Cash Reconciliation_2E'!D$9:D$270,MATCH($D16,'SR_Cash Reconciliation_2E'!$B$9:$B$270,0))=\"\",\"\",INDEX('SR_Cash Reconciliation_2E'!D$9:D$270,MATCH($D16,'SR_Cash Reconciliation_2E'!$B$9:$B$270,0))),\"\")","v":""},{"$f":"IFERROR(IF(INDEX('SR_Cash Reconciliation_2E'!E$9:E$270,MATCH($D16,'SR_Cash Reconciliation_2E'!$B$9:$B$270,0))=\"\",\"\",INDEX('SR_Cash Reconciliation_2E'!E$9:E$270,MATCH($D16,'SR_Cash Reconciliation_2E'!$B$9:$B$270,0))),\"\")","v":""},{"$f":"IFERROR(IF(INDEX('SR_Cash Reconciliation_2E'!F$9:F$270,MATCH($D16,'SR_Cash Reconciliation_2E'!$B$9:$B$270,0))=\"\",\"\",INDEX('SR_Cash Reconciliation_2E'!F$9:F$270,MATCH($D16,'SR_Cash Reconciliation_2E'!$B$9:$B$270,0))),\"\")","v":""},{"$f":"IFERROR(IF(INDEX('SR_Cash Reconciliation_2E'!G$9:G$270,MATCH($D16,'SR_Cash Reconciliation_2E'!$B$9:$B$270,0))=\"\",\"\",INDEX('SR_Cash Reconciliation_2E'!G$9:G$270,MATCH($D16,'SR_Cash Reconciliation_2E'!$B$9:$B$270,0))),\"\")","v":""},{"$f":"IFERROR(IF(INDEX('SR_Cash Reconciliation_2E'!H$9:H$270,MATCH($D16,'SR_Cash Reconciliation_2E'!$B$9:$B$270,0))=\"\",\"\",INDEX('SR_Cash Reconciliation_2E'!H$9:H$270,MATCH($D16,'SR_Cash Reconciliation_2E'!$B$9:$B$270,0))),\"\")","v":""},{"$f":"IFERROR(IF(INDEX('SR_Cash Reconciliation_2E'!I$9:I$270,MATCH($D16,'SR_Cash Reconciliation_2E'!$B$9:$B$270,0))=\"\",\"\",INDEX('SR_Cash Reconciliation_2E'!I$9:I$270,MATCH($D16,'SR_Cash Reconciliation_2E'!$B$9:$B$270,0))),\"\")","v":""},{"$f":"IFERROR(IF(INDEX('SR_Cash Reconciliation_2E'!K$9:K$270,MATCH($D16,'SR_Cash Reconciliation_2E'!$B$9:$B$270,0))=\"\",\"\",INDEX('SR_Cash Reconciliation_2E'!K$9:K$270,MATCH($D16,'SR_Cash Reconciliation_2E'!$B$9:$B$270,0))),\"\")","v":""},{"$f":"\"\"","v":""},{"$f":"IFERROR(IF(INDEX('SR_Cash Reconciliation_2E'!N$9:N$270,MATCH($D16,'SR_Cash Reconciliation_2E'!$B$9:$B$270,0))=\"\",\"\",INDEX('SR_Cash Reconciliation_2E'!N$9:N$270,MATCH($D16,'SR_Cash Reconciliation_2E'!$B$9:$B$270,0))),\"\")","v":""}]
[null,null,7,"ID7",{"$f":"IFERROR(IF(INDEX('SR_Cash Reconciliation_2E'!C$9:C$270,MATCH($D17,'SR_Cash Reconciliation_2E'!$B$9:$B$270,0))=\"\",\"\",INDEX('SR_Cash Reconciliation_2E'!C$9:C$270,MATCH($D17,'SR_Cash Reconciliation_2E'!$B$9:$B$270,0))),\"\")","v":""},{"$f":"IFERROR(IF(INDEX('SR_Cash Reconciliation_2E'!D$9:D$270,MATCH($D17,'SR_Cash Reconciliation_2E'!$B$9:$B$270,0))=\"\",\"\",INDEX('SR_Cash Reconciliation_2E'!D$9:D$270,MATCH($D17,'SR_Cash Reconciliation_2E'!$B$9:$B$270,0))),\"\")","v":""},{"$f":"IFERROR(IF(INDEX('SR_Cash Reconciliation_2E'!E$9:E$270,MATCH($D17,'SR_Cash Reconciliation_2E'!$B$9:$B$270,0))=\"\",\"\",INDEX('SR_Cash Reconciliation_2E'!E$9:E$270,MATCH($D17,'SR_Cash Reconciliation_2E'!$B$9:$B$270,0))),\"\")","v":""},{"$f":"IFERROR(IF(INDEX('SR_Cash Reconciliation_2E'!F$9:F$270,MATCH($D17,'SR_Cash Reconciliation_2E'!$B$9:$B$270,0))=\"\",\"\",INDEX('SR_Cash Reconciliation_2E'!F$9:F$270,MATCH($D17,'SR_Cash Reconciliation_2E'!$B$9:$B$270,0))),\"\")","v":""},{"$f":"IFERROR(IF(INDEX('SR_Cash Reconciliation_2E'!G$9:G$270,MATCH($D17,'SR_Cash Reconciliation_2E'!$B$9:$B$270,0))=\"\",\"\",INDEX('SR_Cash Reconciliation_2E'!G$9:G$270,MATCH($D17,'SR_Cash Reconciliation_2E'!$B$9:$B$270,0))),\"\")","v":""},{"$f":"IFERROR(IF(INDEX('SR_Cash Reconciliation_2E'!H$9:H$270,MATCH($D17,'SR_Cash Reconciliation_2E'!$B$9:$B$270,0))=\"\",\"\",INDEX('SR_Cash Reconciliation_2E'!H$9:H$270,MATCH($D17,'SR_Cash Reconciliation_2E'!$B$9:$B$270,0))),\"\")","v":""},{"$f":"IFERROR(IF(INDEX('SR_Cash Reconciliation_2E'!I$9:I$270,MATCH($D17,'SR_Cash Reconciliation_2E'!$B$9:$B$270,0))=\"\",\"\",INDEX('SR_Cash Reconciliation_2E'!I$9:I$270,MATCH($D17,'SR_Cash Reconciliation_2E'!$B$9:$B$270,0))),\"\")","v":""},{"$f":"IFERROR(IF(INDEX('SR_Cash Reconciliation_2E'!K$9:K$270,MATCH($D17,'SR_Cash Reconciliation_2E'!$B$9:$B$270,0))=\"\",\"\",INDEX('SR_Cash Reconciliation_2E'!K$9:K$270,MATCH($D17,'SR_Cash Reconciliation_2E'!$B$9:$B$270,0))),\"\")","v":""},{"$f":"\"\"","v":""},{"$f":"IFERROR(IF(INDEX('SR_Cash Reconciliation_2E'!N$9:N$270,MATCH($D17,'SR_Cash Reconciliation_2E'!$B$9:$B$270,0))=\"\",\"\",INDEX('SR_Cash Reconciliation_2E'!N$9:N$270,MATCH($D17,'SR_Cash Reconciliation_2E'!$B$9:$B$270,0))),\"\")","v":""}]
[null,null,{"$error":"#VALUE!"},{"$error":"#VALUE!"},{"$f":"IFERROR(IF(INDEX('SR_Cash Reconciliation_2E'!C$9:C$270,MATCH($D18,'SR_Cash Reconciliation_2E'!$B$9:$B$270,0))=\"\",\"\",INDEX('SR_Cash Reconciliation_2E'!C$9:C$270,MATCH($D18,'SR_Cash Reconciliation_2E'!$B$9:$B$270,0))),\"\")","v":""},{"$f":"IFERROR(IF(INDEX('SR_Cash Reconciliation_2E'!D$9:D$270,MATCH($D18,'SR_Cash Reconciliation_2E'!$B$9:$B$270,0))=\"\",\"\",INDEX('SR_Cash Reconciliation_2E'!D$9:D$270,MATCH($D18,'SR_Cash Reconciliation_2E'!$B$9:$B$270,0))),\"\")","v":""},{"$f":"IFERROR(IF(INDEX('SR_Cash Reconciliation_2E'!E$9:E$270,MATCH($D18,'SR_Cash Reconciliation_2E'!$B$9:$B$270,0))=\"\",\"\",INDEX('SR_Cash Reconciliation_2E'!E$9:E$270,MATCH($D18,'SR_Cash Reconciliation_2E'!$B$9:$B$270,0))),\"\")","v":""},{"$f":"IFERROR(IF(INDEX('SR_Cash Reconciliation_2E'!F$9:F$270,MATCH($D18,'SR_Cash Reconciliation_2E'!$B$9:$B$270,0))=\"\",\"\",INDEX('SR_Cash Reconciliation_2E'!F$9:F$270,MATCH($D18,'SR_Cash Reconciliation_2E'!$B$9:$B$270,0))),\"\")","v":""},{"$f":"IFERROR(IF(INDEX('SR_Cash Reconciliation_2E'!G$9:G$270,MATCH($D18,'SR_Cash Reconciliation_2E'!$B$9:$B$270,0))=\"\",\"\",INDEX('SR_Cash Reconciliation_2E'!G$9:G$270,MATCH($D18,'SR_Cash Reconciliation_2E'!$B$9:$B$270,0))),\"\")","v":""},{"$f":"IFERROR(IF(INDEX('SR_Cash Reconciliation_2E'!H$9:H$270,MATCH($D18,'SR_Cash Reconciliation_2E'!$B$9:$B$270,0))=\"\",\"\",INDEX('SR_Cash Reconciliation_2E'!H$9:H$270,MATCH($D18,'SR_Cash Reconciliation_2E'!$B$9:$B$270,0))),\"\")","v":""},{"$f":"IFERROR(IF(INDEX('SR_Cash Reconciliation_2E'!I$9:I$270,MATCH($D18,'SR_Cash Reconciliation_2E'!$B$9:$B$270,0))=\"\",\"\",INDEX('SR_Cash Reconciliation_2E'!I$9:I$270,MATCH($D18,'SR_Cash Reconciliation_2E'!$B$9:$B$270,0))),\"\")","v":""},{"$f":"IFERROR(IF(INDEX('SR_Cash Reconciliation_2E'!K$9:K$270,MATCH($D18,'SR_Cash Reconciliation_2E'!$B$9:$B$270,0))=\"\",\"\",INDEX('SR_Cash Reconciliation_2E'!K$9:K$270,MATCH($D18,'SR_Cash Reconciliation_2E'!$B$9:$B$270,0))),\"\")","v":""},{"$f":"\"\"","v":""},{"$f":"IFERROR(IF(INDEX('SR_Cash Reconciliation_2E'!N$9:N$270,MATCH($D18,'SR_Cash Reconciliation_2E'!$B$9:$B$270,0))=\"\",\"\",INDEX('SR_Cash Reconciliation_2E'!N$9:N$270,MATCH($D18,'SR_Cash Reconciliation_2E'!$B$9:$B$270,0))),\"\")","v":""}]
[null,null,8,"ID8",{"$f":"IFERROR(IF(INDEX('SR_Cash Reconciliation_2E'!C$9:C$270,MATCH($D19,'SR_Cash Reconciliation_2E'!$B$9:$B$270,0))=\"\",\"\",INDEX('SR_Cash Reconciliation_2E'!C$9:C$270,MATCH($D19,'SR_Cash Reconciliation_2E'!$B$9:$B$270,0))),\"\")","v":""},{"$f":"IFERROR(IF(INDEX('SR_Cash Reconciliation_2E'!D$9:D$270,MATCH($D19,'SR_Cash Reconciliation_2E'!$B$9:$B$270,0))=\"\",\"\",INDEX('SR_Cash Reconciliation_2E'!D$9:D$270,MATCH($D19,'SR_Cash Reconciliation_2E'!$B$9:$B$270,0))),\"\")","v":""},{"$f":"IFERROR(IF(INDEX('SR_Cash Reconciliation_2E'!E$9:E$270,MATCH($D19,'SR_Cash Reconciliation_2E'!$B$9:$B$270,0))=\"\",\"\",INDEX('SR_Cash Reconciliation_2E'!E$9:E$270,MATCH($D19,'SR_Cash Reconciliation_2E'!$B$9:$B$270,0))),\"\")","v":""},{"$f":"IFERROR(IF(INDEX('SR_Cash Reconciliation_2E'!F$9:F$270,MATCH($D19,'SR_Cash Reconciliation_2E'!$B$9:$B$270,0))=\"\",\"\",INDEX('SR_Cash Reconciliation_2E'!F$9:F$270,MATCH($D19,'SR_Cash Reconciliation_2E'!$B$9:$B$270,0))),\"\")","v":""},{"$f":"IFERROR(IF(INDEX('SR_Cash Reconciliation_2E'!G$9:G$270,MATCH($D19,'SR_Cash Reconciliation_2E'!$B$9:$B$270,0))=\"\",\"\",INDEX('SR_Cash Reconciliation_2E'!G$9:G$270,MATCH($D19,'SR_Cash Reconciliation_2E'!$B$9:$B$270,0))),\"\")","v":""},{"$f":"IFERROR(IF(INDEX('SR_Cash Reconciliation_2E'!H$9:H$270,MATCH($D19,'SR_Cash Reconciliation_2E'!$B$9:$B$270,0))=\"\",\"\",INDEX('SR_Cash Reconciliation_2E'!H$9:H$270,MATCH($D19,'SR_Cash Reconciliation_2E'!$B$9:$B$270,0))),\"\")","v":""},{"$f":"IFERROR(IF(INDEX('SR_Cash Reconciliation_2E'!I$9:I$270,MATCH($D19,'SR_Cash Reconciliation_2E'!$B$9:$B$270,0))=\"\",\"\",INDEX('SR_Cash Reconciliation_2E'!I$9:I$270,MATCH($D19,'SR_Cash Reconciliation_2E'!$B$9:$B$270,0))),\"\")","v":""},{"$f":"IFERROR(IF(INDEX('SR_Cash Reconciliation_2E'!K$9:K$270,MATCH($D19,'SR_Cash Reconciliation_2E'!$B$9:$B$270,0))=\"\",\"\",INDEX('SR_Cash Reconciliation_2E'!K$9:K$270,MATCH($D19,'SR_Cash Reconciliation_2E'!$B$9:$B$270,0))),\"\")","v":""},{"$f":"\"\"","v":""},{"$f":"IFERROR(IF(INDEX('SR_Cash Reconciliation_2E'!N$9:N$270,MATCH($D19,'SR_Cash Reconciliation_2E'!$B$9:$B$270,0))=\"\",\"\",INDEX('SR_Cash Reconciliation_2E'!N$9:N$270,MATCH($D19,'SR_Cash Reconciliation_2E'!$B$9:$B$270,0))),\"\")","v":""}]
[null,null,{"$error":"#VALUE!"},{"$error":"#VALUE!"},{"$f":"IFERROR(IF(INDEX('SR_Cash Reconciliation_2E'!C$9:C$270,MATCH($D20,'SR_Cash Reconciliation_2E'!$B$9:$B$270,0))=\"\",\"\",INDEX('SR_Cash Reconciliation_2E'!C$9:C$270,MATCH($D20,'SR_Cash Reconciliation_2E'!$B$9:$B$270,0))),\"\")","v":""},{"$f":"IFERROR(IF(INDEX('SR_Cash Reconciliation_2E'!D$9:D$270,MATCH($D20,'SR_Cash Reconciliation_2E'!$B$9:$B$270,0))=\"\",\"\",INDEX('SR_Cash Reconciliation_2E'!D$9:D$270,MATCH($D20,'SR_Cash Reconciliation_2E'!$B$9:$B$270,0))),\"\")","v":""},{"$f":"IFERROR(IF(INDEX('SR_Cash Reconciliation_2E'!E$9:E$270,MATCH($D20,'SR_Cash Reconciliation_2E'!$B$9:$B$270,0))=\"\",\"\",INDEX('SR_Cash Reconciliation_2E'!E$9:E$270,MATCH($D20,'SR_Cash Reconciliation_2E'!$B$9:$B$270,0))),\"\")","v":""},{"$f":"IFERROR(IF(INDEX('SR_Cash Reconciliation_2E'!F$9:F$270,MATCH($D20,'SR_Cash Reconciliation_2E'!$B$9:$B$270,0))=\"\",\"\",INDEX('SR_Cash Reconciliation_2E'!F$9:F$270,MATCH($D20,'SR_Cash Reconciliation_2E'!$B$9:$B$270,0))),\"\")","v":""},{"$f":"IFERROR(IF(INDEX('SR_Cash Reconciliation_2E'!G$9:G$270,MATCH($D20,'SR_Cash Reconciliation_2E'!$B$9:$B$270,0))=\"\",\"\",INDEX('SR_Cash Reconciliation_2E'!G$9:G$270,MATCH($D20,'SR_Cash Reconciliation_2E'!$B$9:$B$270,0))),\"\")","v":""},{"$f":"IFERROR(IF(INDEX('SR_Cash Reconciliation_2E'!H$9:H$270,MATCH($D20,'SR_Cash Reconciliation_2E'!$B$9:$B$270,0))=\"\",\"\",INDEX('SR_Cash Reconciliation_2E'!H$9:H$270,MATCH($D20,'SR_Cash Reconciliation_2E'!$B$9:$B$270,0))),\"\")","v":""},{"$f":"IFERROR(IF(INDEX('SR_Cash Reconciliation_2E'!I$9:I$270,MATCH($D20,'SR_Cash Reconciliation_2E'!$B$9:$B$270,0))=\"\",\"\",INDEX('SR_Cash Reconciliation_2E'!I$9:I$270,MATCH($D20,'SR_Cash Reconciliation_2E'!$B$9:$B$270,0))),\"\")","v":""},{"$f":"IFERROR(IF(INDEX('SR_Cash Reconciliation_2E'!K$9:K$270,MATCH($D20,'SR_Cash Reconciliation_2E'!$B$9:$B$270,0))=\"\",\"\",INDEX('SR_Cash Reconciliation_2E'!K$9:K$270,MATCH($D20,'SR_Cash Reconciliation_2E'!$B$9:$B$270,0))),\"\")","v":""},{"$f":"\"\"","v":""},{"$f":"IFERROR(IF(INDEX('SR_Cash Reconciliation_2E'!N$9:N$270,MATCH($D20,'SR_Cash Reconciliation_2E'!$B$9:$B$270,0))=\"\",\"\",INDEX('SR_Cash Reconciliation_2E'!N$9:N$270,MATCH($D20,'SR_Cash Reconciliation_2E'!$B$9:$B$270,0))),\"\")","v":""}]
[null,null,9,"ID9",{"$f":"IFERROR(IF(INDEX('SR_Cash Reconciliation_2E'!C$9:C$270,MATCH($D21,'SR_Cash Reconciliation_2E'!$B$9:$B$270,0))=\"\",\"\",INDEX('SR_Cash Reconciliation_2E'!C$9:C$270,MATCH($D21,'SR_Cash Reconciliation_2E'!$B$9:$B$270,0))),\"\")","v":""},{"$f":"IFERROR(IF(INDEX('SR_Cash Reconciliation_2E'!D$9:D$270,MATCH($D21,'SR_Cash Reconciliation_2E'!$B$9:$B$270,0))=\"\",\"\",INDEX('SR_Cash Reconciliation_2E'!D$9:D$270,MATCH($D21,'SR_Cash Reconciliation_2E'!$B$9:$B$270,0))),\"\")","v":""},{"$f":"IFERROR(IF(INDEX('SR_Cash Reconciliation_2E'!E$9:E$270,MATCH($D21,'SR_Cash Reconciliation_2E'!$B$9:$B$270,0))=\"\",\"\",INDEX('SR_Cash Reconciliation_2E'!E$9:E$270,MATCH($D21,'SR_Cash Reconciliation_2E'!$B$9:$B$270,0))),\"\")","v":""},{"$f":"IFERROR(IF(INDEX('SR_Cash Reconciliation_2E'!F$9:F$270,MATCH($D21,'SR_Cash Reconciliation_2E'!$B$9:$B$270,0))=\"\",\"\",INDEX('SR_Cash Reconciliation_2E'!F$9:F$270,MATCH($D21,'SR_Cash Reconciliation_2E'!$B$9:$B$270,0))),\"\")","v":""},{"$f":"IFERROR(IF(INDEX('SR_Cash Reconciliation_2E'!G$9:G$270,MATCH($D21,'SR_Cash Reconciliation_2E'!$B$9:$B$270,0))=\"\",\"\",INDEX('SR_Cash Reconciliation_2E'!G$9:G$270,MATCH($D21,'SR_Cash Reconciliation_2E'!$B$9:$B$270,0))),\"\")","v":""},{"$f":"IFERROR(IF(INDEX('SR_Cash Reconciliation_2E'!H$9:H$270,MATCH($D21,'SR_Cash Reconciliation_2E'!$B$9:$B$270,0))=\"\",\"\",INDEX('SR_Cash Reconciliation_2E'!H$9:H$270,MATCH($D21,'SR_Cash Reconciliation_2E'!$B$9:$B$270,0))),\"\")","v":""},{"$f":"IFERROR(IF(INDEX('SR_Cash Reconciliation_2E'!I$9:I$270,MATCH($D21,'SR_Cash Reconciliation_2E'!$B$9:$B$270,0))=\"\",\"\",INDEX('SR_Cash Reconciliation_2E'!I$9:I$270,MATCH($D21,'SR_Cash Reconciliation_2E'!$B$9:$B$270,0))),\"\")","v":""},{"$f":"IFERROR(IF(INDEX('SR_Cash Reconciliation_2E'!K$9:K$270,MATCH($D21,'SR_Cash Reconciliation_2E'!$B$9:$B$270,0))=\"\",\"\",INDEX('SR_Cash Reconciliation_2E'!K$9:K$270,MATCH($D21,'SR_Cash Reconciliation_2E'!$B$9:$B$270,0))),\"\")","v":""},{"$f":"\"\"","v":""},{"$f":"IFERROR(IF(INDEX('SR_Cash Reconciliation_2E'!N$9:N$270,MATCH($D21,'SR_Cash Reconciliation_2E'!$B$9:$B$270,0))=\"\",\"\",INDEX('SR_Cash Reconciliation_2E'!N$9:N$270,MATCH($D21,'SR_Cash Reconciliation_2E'!$B$9:$B$270,0))),\"\")","v":""}]
[null,null,{"$error":"#VALUE!"},{"$error":"#VALUE!"},{"$f":"IFERROR(IF(INDEX('SR_Cash Reconciliation_2E'!C$9:C$270,MATCH($D22,'SR_Cash Reconciliation_2E'!$B$9:$B$270,0))=\"\",\"\",INDEX('SR_Cash Reconciliation_2E'!C$9:C$270,MATCH($D22,'SR_Cash Reconciliation_2E'!$B$9:$B$270,0))),\"\")","v":""},{"$f":"IFERROR(IF(INDEX('SR_Cash Reconciliation_2E'!D$9:D$270,MATCH($D22,'SR_Cash Reconciliation_2E'!$B$9:$B$270,0))=\"\",\"\",INDEX('SR_Cash Reconciliation_2E'!D$9:D$270,MATCH($D22,'SR_Cash Reconciliation_2E'!$B$9:$B$270,0))),\"\")","v":""},{"$f":"IFERROR(IF(INDEX('SR_Cash Reconciliation_2E'!E$9:E$270,MATCH($D22,'SR_Cash Reconciliation_2E'!$B$9:$B$270,0))=\"\",\"\",INDEX('SR_Cash Reconciliation_2E'!E$9:E$270,MATCH($D22,'SR_Cash Reconciliation_2E'!$B$9:$B$270,0))),\"\")","v":""},{"$f":"IFERROR(IF(INDEX('SR_Cash Reconciliation_2E'!F$9:F$270,MATCH($D22,'SR_Cash Reconciliation_2E'!$B$9:$B$270,0))=\"\",\"\",INDEX('SR_Cash Reconciliation_2E'!F$9:F$270,MATCH($D22,'SR_Cash Reconciliation_2E'!$B$9:$B$270,0))),\"\")","v":""},{"$f":"IFERROR(IF(INDEX('SR_Cash Reconciliation_2E'!G$9:G$270,MATCH($D22,'SR_Cash Reconciliation_2E'!$B$9:$B$270,0))=\"\",\"\",INDEX('SR_Cash Reconciliation_2E'!G$9:G$270,MATCH($D22,'SR_Cash Reconciliation_2E'!$B$9:$B$270,0))),\"\")","v":""},{"$f":"IFERROR(IF(INDEX('SR_Cash Reconciliation_2E'!H$9:H$270,MATCH($D22,'SR_Cash Reconciliation_2E'!$B$9:$B$270,0))=\"\",\"\",INDEX('SR_Cash Reconciliation_2E'!H$9:H$270,MATCH($D22,'SR_Cash Reconciliation_2E'!$B$9:$B$270,0))),\"\")","v":""},{"$f":"IFERROR(IF(INDEX('SR_Cash Reconciliation_2E'!I$9:I$270,MATCH($D22,'SR_Cash Reconciliation_2E'!$B$9:$B$270,0))=\"\",\"\",INDEX('SR_Cash Reconciliation_2E'!I$9:I$270,MATCH($D22,'SR_Cash Reconciliation_2E'!$B$9:$B$270,0))),\"\")","v":""},{"$f":"IFERROR(IF(INDEX('SR_Cash Reconciliation_2E'!K$9:K$270,MATCH($D22,'SR_Cash Reconciliation_2E'!$B$9:$B$270,0))=\"\",\"\",INDEX('SR_Cash Reconciliation_2E'!K$9:K$270,MATCH($D22,'SR_Cash Reconciliation_2E'!$B$9:$B$270,0))),\"\")","v":""},{"$f":"\"\"","v":""},{"$f":"IFERROR(IF(INDEX('SR_Cash Reconciliation_2E'!N$9:N$270,MATCH($D22,'SR_Cash Reconciliation_2E'!$B$9:$B$270,0))=\"\",\"\",INDEX('SR_Cash Reconciliation_2E'!N$9:N$270,MATCH($D22,'SR_Cash Reconciliation_2E'!$B$9:$B$270,0))),\"\")","v":""}]
[null,null,10,"ID10",{"$f":"IFERROR(IF(INDEX('SR_Cash Reconciliation_2E'!C$9:C$270,MATCH($D23,'SR_Cash Reconciliation_2E'!$B$9:$B$270,0))=\"\",\"\",INDEX('SR_Cash Reconciliation_2E'!C$9:C$270,MATCH($D23,'SR_Cash Reconciliation_2E'!$B$9:$B$270,0))),\"\")","v":""},{"$f":"IFERROR(IF(INDEX('SR_Cash Reconciliation_2E'!D$9:D$270,MATCH($D23,'SR_Cash Reconciliation_2E'!$B$9:$B$270,0))=\"\",\"\",INDEX('SR_Cash Reconciliation_2E'!D$9:D$270,MATCH($D23,'SR_Cash Reconciliation_2E'!$B$9:$B$270,0))),\"\")","v":""},{"$f":"IFERROR(IF(INDEX('SR_Cash Reconciliation_2E'!E$9:E$270,MATCH($D23,'SR_Cash Reconciliation_2E'!$B$9:$B$270,0))=\"\",\"\",INDEX('SR_Cash Reconciliation_2E'!E$9:E$270,MATCH($D23,'SR_Cash Reconciliation_2E'!$B$9:$B$270,0))),\"\")","v":""},{"$f":"IFERROR(IF(INDEX('SR_Cash Reconciliation_2E'!F$9:F$270,MATCH($D23,'SR_Cash Reconciliation_2E'!$B$9:$B$270,0))=\"\",\"\",INDEX('SR_Cash Reconciliation_2E'!F$9:F$270,MATCH($D23,'SR_Cash Reconciliation_2E'!$B$9:$B$270,0))),\"\")","v":""},{"$f":"IFERROR(IF(INDEX('SR_Cash Reconciliation_2E'!G$9:G$270,MATCH($D23,'SR_Cash Reconciliation_2E'!$B$9:$B$270,0))=\"\",\"\",INDEX('SR_Cash Reconciliation_2E'!G$9:G$270,MATCH($D23,'SR_Cash Reconciliation_2E'!$B$9:$B$270,0))),\"\")","v":""},{"$f":"IFERROR(IF(INDEX('SR_Cash Reconciliation_2E'!H$9:H$270,MATCH($D23,'SR_Cash Reconciliation_2E'!$B$9:$B$270,0))=\"\",\"\",INDEX('SR_Cash Reconciliation_2E'!H$9:H$270,MATCH($D23,'SR_Cash Reconciliation_2E'!$B$9:$B$270,0))),\"\")","v":""},{"$f":"IFERROR(IF(INDEX('SR_Cash Reconciliation_2E'!I$9:I$270,MATCH($D23,'SR_Cash Reconciliation_2E'!$B$9:$B$270,0))=\"\",\"\",INDEX('SR_Cash Reconciliation_2E'!I$9:I$270,MATCH($D23,'SR_Cash Reconciliation_2E'!$B$9:$B$270,0))),\"\")","v":""},{"$f":"IFERROR(IF(INDEX('SR_Cash Reconciliation_2E'!K$9:K$270,MATCH($D23,'SR_Cash Reconciliation_2E'!$B$9:$B$270,0))=\"\",\"\",INDEX('SR_Cash Reconciliation_2E'!K$9:K$270,MATCH($D23,'SR_Cash Reconciliation_2E'!$B$9:$B$270,0))),\"\")","v":""},{"$f":"\"\"","v":""},{"$f":"IFERROR(IF(INDEX('SR_Cash Reconciliation_2E'!N$9:N$270,MATCH($D23,'SR_Cash Reconciliation_2E'!$B$9:$B$270,0))=\"\",\"\",INDEX('SR_Cash Reconciliation_2E'!N$9:N$270,MATCH($D23,'SR_Cash Reconciliation_2E'!$B$9:$B$270,0))),\"\")","v":""}]
[null,null,{"$error":"#VALUE!"},{"$error":"#VALUE!"},{"$f":"IFERROR(IF(INDEX('SR_Cash Reconciliation_2E'!C$9:C$270,MATCH($D24,'SR_Cash Reconciliation_2E'!$B$9:$B$270,0))=\"\",\"\",INDEX('SR_Cash Reconciliation_2E'!C$9:C$270,MATCH($D24,'SR_Cash Reconciliation_2E'!$B$9:$B$270,0))),\"\")","v":""},{"$f":"IFERROR(IF(INDEX('SR_Cash Reconciliation_2E'!D$9:D$270,MATCH($D24,'SR_Cash Reconciliation_2E'!$B$9:$B$270,0))=\"\",\"\",INDEX('SR_Cash Reconciliation_2E'!D$9:D$270,MATCH($D24,'SR_Cash Reconciliation_2E'!$B$9:$B$270,0))),\"\")","v":""},{"$f":"IFERROR(IF(INDEX('SR_Cash Reconciliation_2E'!E$9:E$270,MATCH($D24,'SR_Cash Reconciliation_2E'!$B$9:$B$270,0))=\"\",\"\",INDEX('SR_Cash Reconciliation_2E'!E$9:E$270,MATCH($D24,'SR_Cash Reconciliation_2E'!$B$9:$B$270,0))),\"\")","v":""},{"$f":"IFERROR(IF(INDEX('SR_Cash Reconciliation_2E'!F$9:F$270,MATCH($D24,'SR_Cash Reconciliation_2E'!$B$9:$B$270,0))=\"\",\"\",INDEX('SR_Cash Reconciliation_2E'!F$9:F$270,MATCH($D24,'SR_Cash Reconciliation_2E'!$B$9:$B$270,0))),\"\")","v":""},{"$f":"IFERROR(IF(INDEX('SR_Cash Reconciliation_2E'!G$9:G$270,MATCH($D24,'SR_Cash Reconciliation_2E'!$B$9:$B$270,0))=\"\",\"\",INDEX('SR_Cash Reconciliation_2E'!G$9:G$270,MATCH($D24,'SR_Cash Reconciliation_2E'!$B$9:$B$270,0))),\"\")","v":""},{"$f":"IFERROR(IF(INDEX('SR_Cash Reconciliation_2E'!H$9:H$270,MATCH($D24,'SR_Cash Reconciliation_2E'!$B$9:$B$270,0))=\"\",\"\",INDEX('SR_Cash Reconciliation_2E'!H$9:H$270,MATCH($D24,'SR_Cash Reconciliation_2E'!$B$9:$B$270,0))),\"\")","v":""},{"$f":"IFERROR(IF(INDEX('SR_Cash Reconciliation_2E'!I$9:I$270,MATCH($D24,'SR_Cash Reconciliation_2E'!$B$9:$B$270,0))=\"\",\"\",INDEX('SR_Cash Reconciliation_2E'!I$9:I$270,MATCH($D24,'SR_Cash Reconciliation_2E'!$B$9:$B$270,0))),\"\")","v":""},{"$f":"IFERROR(IF(INDEX('SR_Cash Reconciliation_2E'!K$9:K$270,MATCH($D24,'SR_Cash Reconciliation_2E'!$B$9:$B$270,0))=\"\",\"\",INDEX('SR_Cash Reconciliation_2E'!K$9:K$270,MATCH($D24,'SR_Cash Reconciliation_2E'!$B$9:$B$270,0))),\"\")","v":""},{"$f":"\"\"","v":""},{"$f":"IFERROR(IF(INDEX('SR_Cash Reconciliation_2E'!N$9:N$270,MATCH($D24,'SR_Cash Reconciliation_2E'!$B$9:$B$270,0))=\"\",\"\",INDEX('SR_Cash Reconciliation_2E'!N$9:N$270,MATCH($D24,'SR_Cash Reconciliation_2E'!$B$9:$B$270,0))),\"\")","v":""}]
[null,null,11,"ID11",{"$f":"IFERROR(IF(INDEX('SR_Cash Reconciliation_2E'!C$9:C$270,MATCH($D25,'SR_Cash Reconciliation_2E'!$B$9:$B$270,0))=\"\",\"\",INDEX('SR_Cash Reconciliation_2E'!C$9:C$270,MATCH($D25,'SR_Cash Reconciliation_2E'!$B$9:$B$270,0))),\"\")","v":""},{"$f":"IFERROR(IF(INDEX('SR_Cash Reconciliation_2E'!D$9:D$270,MATCH($D25,'SR_Cash Reconciliation_2E'!$B$9:$B$270,0))=\"\",\"\",INDEX('SR_Cash Reconciliation_2E'!D$9:D$270,MATCH($D25,'SR_Cash Reconciliation_2E'!$B$9:$B$270,0))),\"\")","v":""},{"$f":"IFERROR(IF(INDEX('SR_Cash Reconciliation_2E'!E$9:E$270,MATCH($D25,'SR_Cash Reconciliation_2E'!$B$9:$B$270,0))=\"\",\"\",INDEX('SR_Cash Reconciliation_2E'!E$9:E$270,MATCH($D25,'SR_Cash Reconciliation_2E'!$B$9:$B$270,0))),\"\")","v":""},{"$f":"IFERROR(IF(INDEX('SR_Cash Reconciliation_2E'!F$9:F$270,MATCH($D25,'SR_Cash Reconciliation_2E'!$B$9:$B$270,0))=\"\",\"\",INDEX('SR_Cash Reconciliation_2E'!F$9:F$270,MATCH($D25,'SR_Cash Reconciliation_2E'!$B$9:$B$270,0))),\"\")","v":""},{"$f":"IFERROR(IF(INDEX('SR_Cash Reconciliation_2E'!G$9:G$270,MATCH($D25,'SR_Cash Reconciliation_2E'!$B$9:$B$270,0))=\"\",\"\",INDEX('SR_Cash Reconciliation_2E'!G$9:G$270,MATCH($D25,'SR_Cash Reconciliation_2E'!$B$9:$B$270,0))),\"\")","v":""},{"$f":"IFERROR(IF(INDEX('SR_Cash Reconciliation_2E'!H$9:H$270,MATCH($D25,'SR_Cash Reconciliation_2E'!$B$9:$B$270,0))=\"\",\"\",INDEX('SR_Cash Reconciliation_2E'!H$9:H$270,MATCH($D25,'SR_Cash Reconciliation_2E'!$B$9:$B$270,0))),\"\")","v":""},{"$f":"IFERROR(IF(INDEX('SR_Cash Reconciliation_2E'!I$9:I$270,MATCH($D25,'SR_Cash Reconciliation_2E'!$B$9:$B$270,0))=\"\",\"\",INDEX('SR_Cash Reconciliation_2E'!I$9:I$270,MATCH($D25,'SR_Cash Reconciliation_2E'!$B$9:$B$270,0))),\"\")","v":""},{"$f":"IFERROR(IF(INDEX('SR_Cash Reconciliation_2E'!K$9:K$270,MATCH($D25,'SR_Cash Reconciliation_2E'!$B$9:$B$270,0))=\"\",\"\",INDEX('SR_Cash Reconciliation_2E'!K$9:K$270,MATCH($D25,'SR_Cash Reconciliation_2E'!$B$9:$B$270,0))),\"\")","v":""},{"$f":"\"\"","v":""},{"$f":"IFERROR(IF(INDEX('SR_Cash Reconciliation_2E'!N$9:N$270,MATCH($D25,'SR_Cash Reconciliation_2E'!$B$9:$B$270,0))=\"\",\"\",INDEX('SR_Cash Reconciliation_2E'!N$9:N$270,MATCH($D25,'SR_Cash Reconciliation_2E'!$B$9:$B$270,0))),\"\")","v":""}]
[null,null,{"$error":"#VALUE!"},{"$error":"#VALUE!"},{"$f":"IFERROR(IF(INDEX('SR_Cash Reconciliation_2E'!C$9:C$270,MATCH($D26,'SR_Cash Reconciliation_2E'!$B$9:$B$270,0))=\"\",\"\",INDEX('SR_Cash Reconciliation_2E'!C$9:C$270,MATCH($D26,'SR_Cash Reconciliation_2E'!$B$9:$B$270,0))),\"\")","v":""},{"$f":"IFERROR(IF(INDEX('SR_Cash Reconciliation_2E'!D$9:D$270,MATCH($D26,'SR_Cash Reconciliation_2E'!$B$9:$B$270,0))=\"\",\"\",INDEX('SR_Cash Reconciliation_2E'!D$9:D$270,MATCH($D26,'SR_Cash Reconciliation_2E'!$B$9:$B$270,0))),\"\")","v":""},{"$f":"IFERROR(IF(INDEX('SR_Cash Reconciliation_2E'!E$9:E$270,MATCH($D26,'SR_Cash Reconciliation_2E'!$B$9:$B$270,0))=\"\",\"\",INDEX('SR_Cash Reconciliation_2E'!E$9:E$270,MATCH($D26,'SR_Cash Reconciliation_2E'!$B$9:$B$270,0))),\"\")","v":""},{"$f":"IFERROR(IF(INDEX('SR_Cash Reconciliation_2E'!F$9:F$270,MATCH($D26,'SR_Cash Reconciliation_2E'!$B$9:$B$270,0))=\"\",\"\",INDEX('SR_Cash Reconciliation_2E'!F$9:F$270,MATCH($D26,'SR_Cash Reconciliation_2E'!$B$9:$B$270,0))),\"\")","v":""},{"$f":"IFERROR(IF(INDEX('SR_Cash Reconciliation_2E'!G$9:G$270,MATCH($D26,'SR_Cash Reconciliation_2E'!$B$9:$B$270,0))=\"\",\"\",INDEX('SR_Cash Reconciliation_2E'!G$9:G$270,MATCH($D26,'SR_Cash Reconciliation_2E'!$B$9:$B$270,0))),\"\")","v":""},{"$f":"IFERROR(IF(INDEX('SR_Cash Reconciliation_2E'!H$9:H$270,MATCH($D26,'SR_Cash Reconciliation_2E'!$B$9:$B$270,0))=\"\",\"\",INDEX('SR_Cash Reconciliation_2E'!H$9:H$270,MATCH($D26,'SR_Cash Reconciliation_2E'!$B$9:$B$270,0))),\"\")","v":""},{"$f":"IFERROR(IF(INDEX('SR_Cash Reconciliation_2E'!I$9:I$270,MATCH($D26,'SR_Cash Reconciliation_2E'!$B$9:$B$270,0))=\"\",\"\",INDEX('SR_Cash Reconciliation_2E'!I$9:I$270,MATCH($D26,'SR_Cash Reconciliation_2E'!$B$9:$B$270,0))),\"\")","v":""},{"$f":"IFERROR(IF(INDEX('SR_Cash Reconciliation_2E'!K$9:K$270,MATCH($D26,'SR_Cash Reconciliation_2E'!$B$9:$B$270,0))=\"\",\"\",INDEX('SR_Cash Reconciliation_2E'!K$9:K$270,MATCH($D26,'SR_Cash Reconciliation_2E'!$B$9:$B$270,0))),\"\")","v":""},{"$f":"\"\"","v":""},{"$f":"IFERROR(IF(INDEX('SR_Cash Reconciliation_2E'!N$9:N$270,MATCH($D26,'SR_Cash Reconciliation_2E'!$B$9:$B$270,0))=\"\",\"\",INDEX('SR_Cash Reconciliation_2E'!N$9:N$270,MATCH($D26,'SR_Cash Reconciliation_2E'!$B$9:$B$270,0))),\"\")","v":""}]
[null,null,12,"ID12",{"$f":"IFERROR(IF(INDEX('SR_Cash Reconciliation_2E'!C$9:C$270,MATCH($D27,'SR_Cash Reconciliation_2E'!$B$9:$B$270,0))=\"\",\"\",INDEX('SR_Cash Reconciliation_2E'!C$9:C$270,MATCH($D27,'SR_Cash Reconciliation_2E'!$B$9:$B$270,0))),\"\")","v":""},{"$f":"IFERROR(IF(INDEX('SR_Cash Reconciliation_2E'!D$9:D$270,MATCH($D27,'SR_Cash Reconciliation_2E'!$B$9:$B$270,0))=\"\",\"\",INDEX('SR_Cash Reconciliation_2E'!D$9:D$270,MATCH($D27,'SR_Cash Reconciliation_2E'!$B$9:$B$270,0))),\"\")","v":""},{"$f":"IFERROR(IF(INDEX('SR_Cash Reconciliation_2E'!E$9:E$270,MATCH($D27,'SR_Cash Reconciliation_2E'!$B$9:$B$270,0))=\"\",\"\",INDEX('SR_Cash Reconciliation_2E'!E$9:E$270,MATCH($D27,'SR_Cash Reconciliation_2E'!$B$9:$B$270,0))),\"\")","v":""},{"$f":"IFERROR(IF(INDEX('SR_Cash Reconciliation_2E'!F$9:F$270,MATCH($D27,'SR_Cash Reconciliation_2E'!$B$9:$B$270,0))=\"\",\"\",INDEX('SR_Cash Reconciliation_2E'!F$9:F$270,MATCH($D27,'SR_Cash Reconciliation_2E'!$B$9:$B$270,0))),\"\")","v":""},{"$f":"IFERROR(IF(INDEX('SR_Cash Reconciliation_2E'!G$9:G$270,MATCH($D27,'SR_Cash Reconciliation_2E'!$B$9:$B$270,0))=\"\",\"\",INDEX('SR_Cash Reconciliation_2E'!G$9:G$270,MATCH($D27,'SR_Cash Reconciliation_2E'!$B$9:$B$270,0))),\"\")","v":""},{"$f":"IFERROR(IF(INDEX('SR_Cash Reconciliation_2E'!H$9:H$270,MATCH($D27,'SR_Cash Reconciliation_2E'!$B$9:$B$270,0))=\"\",\"\",INDEX('SR_Cash Reconciliation_2E'!H$9:H$270,MATCH($D27,'SR_Cash Reconciliation_2E'!$B$9:$B$270,0))),\"\")","v":""},{"$f":"IFERROR(IF(INDEX('SR_Cash Reconciliation_2E'!I$9:I$270,MATCH($D27,'SR_Cash Reconciliation_2E'!$B$9:$B$270,0))=\"\",\"\",INDEX('SR_Cash Reconciliation_2E'!I$9:I$270,MATCH($D27,'SR_Cash Reconciliation_2E'!$B$9:$B$270,0))),\"\")","v":""},{"$f":"IFERROR(IF(INDEX('SR_Cash Reconciliation_2E'!K$9:K$270,MATCH($D27,'SR_Cash Reconciliation_2E'!$B$9:$B$270,0))=\"\",\"\",INDEX('SR_Cash Reconciliation_2E'!K$9:K$270,MATCH($D27,'SR_Cash Reconciliation_2E'!$B$9:$B$270,0))),\"\")","v":""},{"$f":"\"\"","v":""},{"$f":"IFERROR(IF(INDEX('SR_Cash Reconciliation_2E'!N$9:N$270,MATCH($D27,'SR_Cash Reconciliation_2E'!$B$9:$B$270,0))=\"\",\"\",INDEX('SR_Cash Reconciliation_2E'!N$9:N$270,MATCH($D27,'SR_Cash Reconciliation_2E'!$B$9:$B$270,0))),\"\")","v":""}]
[null,null,{"$error":"#VALUE!"},{"$error":"#VALUE!"},{"$f":"IFERROR(IF(INDEX('SR_Cash Reconciliation_2E'!C$9:C$270,MATCH($D28,'SR_Cash Reconciliation_2E'!$B$9:$B$270,0))=\"\",\"\",INDEX('SR_Cash Reconciliation_2E'!C$9:C$270,MATCH($D28,'SR_Cash Reconciliation_2E'!$B$9:$B$270,0))),\"\")","v":""},{"$f":"IFERROR(IF(INDEX('SR_Cash Reconciliation_2E'!D$9:D$270,MATCH($D28,'SR_Cash Reconciliation_2E'!$B$9:$B$270,0))=\"\",\"\",INDEX('SR_Cash Reconciliation_2E'!D$9:D$270,MATCH($D28,'SR_Cash Reconciliation_2E'!$B$9:$B$270,0))),\"\")","v":""},{"$f":"IFERROR(IF(INDEX('SR_Cash Reconciliation_2E'!E$9:E$270,MATCH($D28,'SR_Cash Reconciliation_2E'!$B$9:$B$270,0))=\"\",\"\",INDEX('SR_Cash Reconciliation_2E'!E$9:E$270,MATCH($D28,'SR_Cash Reconciliation_2E'!$B$9:$B$270,0))),\"\")","v":""},{"$f":"IFERROR(IF(INDEX('SR_Cash Reconciliation_2E'!F$9:F$270,MATCH($D28,'SR_Cash Reconciliation_2E'!$B$9:$B$270,0))=\"\",\"\",INDEX('SR_Cash Reconciliation_2E'!F$9:F$270,MATCH($D28,'SR_Cash Reconciliation_2E'!$B$9:$B$270,0))),\"\")","v":""},{"$f":"IFERROR(IF(INDEX('SR_Cash Reconciliation_2E'!G$9:G$270,MATCH($D28,'SR_Cash Reconciliation_2E'!$B$9:$B$270,0))=\"\",\"\",INDEX('SR_Cash Reconciliation_2E'!G$9:G$270,MATCH($D28,'SR_Cash Reconciliation_2E'!$B$9:$B$270,0))),\"\")","v":""},{"$f":"IFERROR(IF(INDEX('SR_Cash Reconciliation_2E'!H$9:H$270,MATCH($D28,'SR_Cash Reconciliation_2E'!$B$9:$B$270,0))=\"\",\"\",INDEX('SR_Cash Reconciliation_2E'!H$9:H$270,MATCH($D28,'SR_Cash Reconciliation_2E'!$B$9:$B$270,0))),\"\")","v":""},{"$f":"IFERROR(IF(INDEX('SR_Cash Reconciliation_2E'!I$9:I$270,MATCH($D28,'SR_Cash Reconciliation_2E'!$B$9:$B$270,0))=\"\",\"\",INDEX('SR_Cash Reconciliation_2E'!I$9:I$270,MATCH($D28,'SR_Cash Reconciliation_2E'!$B$9:$B$270,0))),\"\")","v":""},{"$f":"IFERROR(IF(INDEX('SR_Cash Reconciliation_2E'!K$9:K$270,MATCH($D28,'SR_Cash Reconciliation_2E'!$B$9:$B$270,0))=\"\",\"\",INDEX('SR_Cash Reconciliation_2E'!K$9:K$270,MATCH($D28,'SR_Cash Reconciliation_2E'!$B$9:$B$270,0))),\"\")","v":""},{"$f":"\"\"","v":""},{"$f":"IFERROR(IF(INDEX('SR_Cash Reconciliation_2E'!N$9:N$270,MATCH($D28,'SR_Cash Reconciliation_2E'!$B$9:$B$270,0))=\"\",\"\",INDEX('SR_Cash Reconciliation_2E'!N$9:N$270,MATCH($D28,'SR_Cash Reconciliation_2E'!$B$9:$B$270,0))),\"\")","v":""}]
[null,null,13,"ID13",{"$f":"IFERROR(IF(INDEX('SR_Cash Reconciliation_2E'!C$9:C$270,MATCH($D29,'SR_Cash Reconciliation_2E'!$B$9:$B$270,0))=\"\",\"\",INDEX('SR_Cash Reconciliation_2E'!C$9:C$270,MATCH($D29,'SR_Cash Reconciliation_2E'!$B$9:$B$270,0))),\"\")","v":""},{"$f":"IFERROR(IF(INDEX('SR_Cash Reconciliation_2E'!D$9:D$270,MATCH($D29,'SR_Cash Reconciliation_2E'!$B$9:$B$270,0))=\"\",\"\",INDEX('SR_Cash Reconciliation_2E'!D$9:D$270,MATCH($D29,'SR_Cash Reconciliation_2E'!$B$9:$B$270,0))),\"\")","v":""},{"$f":"IFERROR(IF(INDEX('SR_Cash Reconciliation_2E'!E$9:E$270,MATCH($D29,'SR_Cash Reconciliation_2E'!$B$9:$B$270,0))=\"\",\"\",INDEX('SR_Cash Reconciliation_2E'!E$9:E$270,MATCH($D29,'SR_Cash Reconciliation_2E'!$B$9:$B$270,0))),\"\")","v":""},{"$f":"IFERROR(IF(INDEX('SR_Cash Reconciliation_2E'!F$9:F$270,MATCH($D29,'SR_Cash Reconciliation_2E'!$B$9:$B$270,0))=\"\",\"\",INDEX('SR_Cash Reconciliation_2E'!F$9:F$270,MATCH($D29,'SR_Cash Reconciliation_2E'!$B$9:$B$270,0))),\"\")","v":""},{"$f":"IFERROR(IF(INDEX('SR_Cash Reconciliation_2E'!G$9:G$270,MATCH($D29,'SR_Cash Reconciliation_2E'!$B$9:$B$270,0))=\"\",\"\",INDEX('SR_Cash Reconciliation_2E'!G$9:G$270,MATCH($D29,'SR_Cash Reconciliation_2E'!$B$9:$B$270,0))),\"\")","v":""},{"$f":"IFERROR(IF(INDEX('SR_Cash Reconciliation_2E'!H$9:H$270,MATCH($D29,'SR_Cash Reconciliation_2E'!$B$9:$B$270,0))=\"\",\"\",INDEX('SR_Cash Reconciliation_2E'!H$9:H$270,MATCH($D29,'SR_Cash Reconciliation_2E'!$B$9:$B$270,0))),\"\")","v":""},{"$f":"IFERROR(IF(INDEX('SR_Cash Reconciliation_2E'!I$9:I$270,MATCH($D29,'SR_Cash Reconciliation_2E'!$B$9:$B$270,0))=\"\",\"\",INDEX('SR_Cash Reconciliation_2E'!I$9:I$270,MATCH($D29,'SR_Cash Reconciliation_2E'!$B$9:$B$270,0))),\"\")","v":""},{"$f":"IFERROR(IF(INDEX('SR_Cash Reconciliation_2E'!K$9:K$270,MATCH($D29,'SR_Cash Reconciliation_2E'!$B$9:$B$270,0))=\"\",\"\",INDEX('SR_Cash Reconciliation_2E'!K$9:K$270,MATCH($D29,'SR_Cash Reconciliation_2E'!$B$9:$B$270,0))),\"\")","v":""},{"$f":"\"\"","v":""},{"$f":"IFERROR(IF(INDEX('SR_Cash Reconciliation_2E'!N$9:N$270,MATCH($D29,'SR_Cash Reconciliation_2E'!$B$9:$B$270,0))=\"\",\"\",INDEX('SR_Cash Reconciliation_2E'!N$9:N$270,MATCH($D29,'SR_Cash Reconciliation_2E'!$B$9:$B$270,0))),\"\")","v":""}]
[null,null,{"$error":"#VALUE!"},{"$error":"#VALUE!"},{"$f":"IFERROR(IF(INDEX('SR_Cash Reconciliation_2E'!C$9:C$270,MATCH($D30,'SR_Cash Reconciliation_2E'!$B$9:$B$270,0))=\"\",\"\",INDEX('SR_Cash Reconciliation_2E'!C$9:C$270,MATCH($D30,'SR_Cash Reconciliation_2E'!$B$9:$B$270,0))),\"\")","v":""},{"$f":"IFERROR(IF(INDEX('SR_Cash Reconciliation_2E'!D$9:D$270,MATCH($D30,'SR_Cash Reconciliation_2E'!$B$9:$B$270,0))=\"\",\"\",INDEX('SR_Cash Reconciliation_2E'!D$9:D$270,MATCH($D30,'SR_Cash Reconciliation_2E'!$B$9:$B$270,0))),\"\")","v":""},{"$f":"IFERROR(IF(INDEX('SR_Cash Reconciliation_2E'!E$9:E$270,MATCH($D30,'SR_Cash Reconciliation_2E'!$B$9:$B$270,0))=\"\",\"\",INDEX('SR_Cash Reconciliation_2E'!E$9:E$270,MATCH($D30,'SR_Cash Reconciliation_2E'!$B$9:$B$270,0))),\"\")","v":""},{"$f":"IFERROR(IF(INDEX('SR_Cash Reconciliation_2E'!F$9:F$270,MATCH($D30,'SR_Cash Reconciliation_2E'!$B$9:$B$270,0))=\"\",\"\",INDEX('SR_Cash Reconciliation_2E'!F$9:F$270,MATCH($D30,'SR_Cash Reconciliation_2E'!$B$9:$B$270,0))),\"\")","v":""},{"$f":"IFERROR(IF(INDEX('SR_Cash Reconciliation_2E'!G$9:G$270,MATCH($D30,'SR_Cash Reconciliation_2E'!$B$9:$B$270,0))=\"\",\"\",INDEX('SR_Cash Reconciliation_2E'!G$9:G$270,MATCH($D30,'SR_Cash Reconciliation_2E'!$B$9:$B$270,0))),\"\")","v":""},{"$f":"IFERROR(IF(INDEX('SR_Cash Reconciliation_2E'!H$9:H$270,MATCH($D30,'SR_Cash Reconciliation_2E'!$B$9:$B$270,0))=\"\",\"\",INDEX('SR_Cash Reconciliation_2E'!H$9:H$270,MATCH($D30,'SR_Cash Reconciliation_2E'!$B$9:$B$270,0))),\"\")","v":""},{"$f":"IFERROR(IF(INDEX('SR_Cash Reconciliation_2E'!I$9:I$270,MATCH($D30,'SR_Cash Reconciliation_2E'!$B$9:$B$270,0))=\"\",\"\",INDEX('SR_Cash Reconciliation_2E'!I$9:I$270,MATCH($D30,'SR_Cash Reconciliation_2E'!$B$9:$B$270,0))),\"\")","v":""},{"$f":"IFERROR(IF(INDEX('SR_Cash Reconciliation_2E'!K$9:K$270,MATCH($D30,'SR_Cash Reconciliation_2E'!$B$9:$B$270,0))=\"\",\"\",INDEX('SR_Cash Reconciliation_2E'!K$9:K$270,MATCH($D30,'SR_Cash Reconciliation_2E'!$B$9:$B$270,0))),\"\")","v":""},{"$f":"\"\"","v":""},{"$f":"IFERROR(IF(INDEX('SR_Cash Reconciliation_2E'!N$9:N$270,MATCH($D30,'SR_Cash Reconciliation_2E'!$B$9:$B$270,0))=\"\",\"\",INDEX('SR_Cash Reconciliation_2E'!N$9:N$270,MATCH($D30,'SR_Cash Reconciliation_2E'!$B$9:$B$270,0))),\"\")","v":""}]
[null,null,14,"ID14",{"$f":"IFERROR(IF(INDEX('SR_Cash Reconciliation_2E'!C$9:C$270,MATCH($D31,'SR_Cash Reconciliation_2E'!$B$9:$B$270,0))=\"\",\"\",INDEX('SR_Cash Reconciliation_2E'!C$9:C$270,MATCH($D31,'SR_Cash Reconciliation_2E'!$B$9:$B$270,0))),\"\")","v":""},{"$f":"IFERROR(IF(INDEX('SR_Cash Reconciliation_2E'!D$9:D$270,MATCH($D31,'SR_Cash Reconciliation_2E'!$B$9:$B$270,0))=\"\",\"\",INDEX('SR_Cash Reconciliation_2E'!D$9:D$270,MATCH($D31,'SR_Cash Reconciliation_2E'!$B$9:$B$270,0))),\"\")","v":""},{"$f":"IFERROR(IF(INDEX('SR_Cash Reconciliation_2E'!E$9:E$270,MATCH($D31,'SR_Cash Reconciliation_2E'!$B$9:$B$270,0))=\"\",\"\",INDEX('SR_Cash Reconciliation_2E'!E$9:E$270,MATCH($D31,'SR_Cash Reconciliation_2E'!$B$9:$B$270,0))),\"\")","v":""},{"$f":"IFERROR(IF(INDEX('SR_Cash Reconciliation_2E'!F$9:F$270,MATCH($D31,'SR_Cash Reconciliation_2E'!$B$9:$B$270,0))=\"\",\"\",INDEX('SR_Cash Reconciliation_2E'!F$9:F$270,MATCH($D31,'SR_Cash Reconciliation_2E'!$B$9:$B$270,0))),\"\")","v":""},{"$f":"IFERROR(IF(INDEX('SR_Cash Reconciliation_2E'!G$9:G$270,MATCH($D31,'SR_Cash Reconciliation_2E'!$B$9:$B$270,0))=\"\",\"\",INDEX('SR_Cash Reconciliation_2E'!G$9:G$270,MATCH($D31,'SR_Cash Reconciliation_2E'!$B$9:$B$270,0))),\"\")","v":""},{"$f":"IFERROR(IF(INDEX('SR_Cash Reconciliation_2E'!H$9:H$270,MATCH($D31,'SR_Cash Reconciliation_2E'!$B$9:$B$270,0))=\"\",\"\",INDEX('SR_Cash Reconciliation_2E'!H$9:H$270,MATCH($D31,'SR_Cash Reconciliation_2E'!$B$9:$B$270,0))),\"\")","v":""},{"$f":"IFERROR(IF(INDEX('SR_Cash Reconciliation_2E'!I$9:I$270,MATCH($D31,'SR_Cash Reconciliation_2E'!$B$9:$B$270,0))=\"\",\"\",INDEX('SR_Cash Reconciliation_2E'!I$9:I$270,MATCH($D31,'SR_Cash Reconciliation_2E'!$B$9:$B$270,0))),\"\")","v":""},{"$f":"IFERROR(IF(INDEX('SR_Cash Reconciliation_2E'!K$9:K$270,MATCH($D31,'SR_Cash Reconciliation_2E'!$B$9:$B$270,0))=\"\",\"\",INDEX('SR_Cash Reconciliation_2E'!K$9:K$270,MATCH($D31,'SR_Cash Reconciliation_2E'!$B$9:$B$270,0))),\"\")","v":""},{"$f":"\"\"","v":""},{"$f":"IFERROR(IF(INDEX('SR_Cash Reconciliation_2E'!N$9:N$270,MATCH($D31,'SR_Cash Reconciliation_2E'!$B$9:$B$270,0))=\"\",\"\",INDEX('SR_Cash Reconciliation_2E'!N$9:N$270,MATCH($D31,'SR_Cash Reconciliation_2E'!$B$9:$B$270,0))),\"\")","v":""}]
[null,null,{"$error":"#VALUE!"},{"$error":"#VALUE!"},{"$f":"IFERROR(IF(INDEX('SR_Cash Reconciliation_2E'!C$9:C$270,MATCH($D32,'SR_Cash Reconciliation_2E'!$B$9:$B$270,0))=\"\",\"\",INDEX('SR_Cash Reconciliation_2E'!C$9:C$270,MATCH($D32,'SR_Cash Reconciliation_2E'!$B$9:$B$270,0))),\"\")","v":""},{"$f":"IFERROR(IF(INDEX('SR_Cash Reconciliation_2E'!D$9:D$270,MATCH($D32,'SR_Cash Reconciliation_2E'!$B$9:$B$270,0))=\"\",\"\",INDEX('SR_Cash Reconciliation_2E'!D$9:D$270,MATCH($D32,'SR_Cash Reconciliation_2E'!$B$9:$B$270,0))),\"\")","v":""},{"$f":"IFERROR(IF(INDEX('SR_Cash Reconciliation_2E'!E$9:E$270,MATCH($D32,'SR_Cash Reconciliation_2E'!$B$9:$B$270,0))=\"\",\"\",INDEX('SR_Cash Reconciliation_2E'!E$9:E$270,MATCH($D32,'SR_Cash Reconciliation_2E'!$B$9:$B$270,0))),\"\")","v":""},{"$f":"IFERROR(IF(INDEX('SR_Cash Reconciliation_2E'!F$9:F$270,MATCH($D32,'SR_Cash Reconciliation_2E'!$B$9:$B$270,0))=\"\",\"\",INDEX('SR_Cash Reconciliation_2E'!F$9:F$270,MATCH($D32,'SR_Cash Reconciliation_2E'!$B$9:$B$270,0))),\"\")","v":""},{"$f":"IFERROR(IF(INDEX('SR_Cash Reconciliation_2E'!G$9:G$270,MATCH($D32,'SR_Cash Reconciliation_2E'!$B$9:$B$270,0))=\"\",\"\",INDEX('SR_Cash Reconciliation_2E'!G$9:G$270,MATCH($D32,'SR_Cash Reconciliation_2E'!$B$9:$B$270,0))),\"\")","v":""},{"$f":"IFERROR(IF(INDEX('SR_Cash Reconciliation_2E'!H$9:H$270,MATCH($D32,'SR_Cash Reconciliation_2E'!$B$9:$B$270,0))=\"\",\"\",INDEX('SR_Cash Reconciliation_2E'!H$9:H$270,MATCH($D32,'SR_Cash Reconciliation_2E'!$B$9:$B$270,0))),\"\")","v":""},{"$f":"IFERROR(IF(INDEX('SR_Cash Reconciliation_2E'!I$9:I$270,MATCH($D32,'SR_Cash Reconciliation_2E'!$B$9:$B$270,0))=\"\",\"\",INDEX('SR_Cash Reconciliation_2E'!I$9:I$270,MATCH($D32,'SR_Cash Reconciliation_2E'!$B$9:$B$270,0))),\"\")","v":""},{"$f":"IFERROR(IF(INDEX('SR_Cash Reconciliation_2E'!K$9:K$270,MATCH($D32,'SR_Cash Reconciliation_2E'!$B$9:$B$270,0))=\"\",\"\",INDEX('SR_Cash Reconciliation_2E'!K$9:K$270,MATCH($D32,'SR_Cash Reconciliation_2E'!$B$9:$B$270,0))),\"\")","v":""},{"$f":"\"\"","v":""},{"$f":"IFERROR(IF(INDEX('SR_Cash Reconciliation_2E'!N$9:N$270,MATCH($D32,'SR_Cash Reconciliation_2E'!$B$9:$B$270,0))=\"\",\"\",INDEX('SR_Cash Reconciliation_2E'!N$9:N$270,MATCH($D32,'SR_Cash Reconciliation_2E'!$B$9:$B$270,0))),\"\")","v":""}]
[null,null,15,"ID15",{"$f":"IFERROR(IF(INDEX('SR_Cash Reconciliation_2E'!C$9:C$270,MATCH($D33,'SR_Cash Reconciliation_2E'!$B$9:$B$270,0))=\"\",\"\",INDEX('SR_Cash Reconciliation_2E'!C$9:C$270,MATCH($D33,'SR_Cash Reconciliation_2E'!$B$9:$B$270,0))),\"\")","v":""},{"$f":"IFERROR(IF(INDEX('SR_Cash Reconciliation_2E'!D$9:D$270,MATCH($D33,'SR_Cash Reconciliation_2E'!$B$9:$B$270,0))=\"\",\"\",INDEX('SR_Cash Reconciliation_2E'!D$9:D$270,MATCH($D33,'SR_Cash Reconciliation_2E'!$B$9:$B$270,0))),\"\")","v":""},{"$f":"IFERROR(IF(INDEX('SR_Cash Reconciliation_2E'!E$9:E$270,MATCH($D33,'SR_Cash Reconciliation_2E'!$B$9:$B$270,0))=\"\",\"\",INDEX('SR_Cash Reconciliation_2E'!E$9:E$270,MATCH($D33,'SR_Cash Reconciliation_2E'!$B$9:$B$270,0))),\"\")","v":""},{"$f":"IFERROR(IF(INDEX('SR_Cash Reconciliation_2E'!F$9:F$270,MATCH($D33,'SR_Cash Reconciliation_2E'!$B$9:$B$270,0))=\"\",\"\",INDEX('SR_Cash Reconciliation_2E'!F$9:F$270,MATCH($D33,'SR_Cash Reconciliation_2E'!$B$9:$B$270,0))),\"\")","v":""},{"$f":"IFERROR(IF(INDEX('SR_Cash Reconciliation_2E'!G$9:G$270,MATCH($D33,'SR_Cash Reconciliation_2E'!$B$9:$B$270,0))=\"\",\"\",INDEX('SR_Cash Reconciliation_2E'!G$9:G$270,MATCH($D33,'SR_Cash Reconciliation_2E'!$B$9:$B$270,0))),\"\")","v":""},{"$f":"IFERROR(IF(INDEX('SR_Cash Reconciliation_2E'!H$9:H$270,MATCH($D33,'SR_Cash Reconciliation_2E'!$B$9:$B$270,0))=\"\",\"\",INDEX('SR_Cash Reconciliation_2E'!H$9:H$270,MATCH($D33,'SR_Cash Reconciliation_2E'!$B$9:$B$270,0))),\"\")","v":""},{"$f":"IFERROR(IF(INDEX('SR_Cash Reconciliation_2E'!I$9:I$270,MATCH($D33,'SR_Cash Reconciliation_2E'!$B$9:$B$270,0))=\"\",\"\",INDEX('SR_Cash Reconciliation_2E'!I$9:I$270,MATCH($D33,'SR_Cash Reconciliation_2E'!$B$9:$B$270,0))),\"\")","v":""},{"$f":"IFERROR(IF(INDEX('SR_Cash Reconciliation_2E'!K$9:K$270,MATCH($D33,'SR_Cash Reconciliation_2E'!$B$9:$B$270,0))=\"\",\"\",INDEX('SR_Cash Reconciliation_2E'!K$9:K$270,MATCH($D33,'SR_Cash Reconciliation_2E'!$B$9:$B$270,0))),\"\")","v":""},{"$f":"\"\"","v":""},{"$f":"IFERROR(IF(INDEX('SR_Cash Reconciliation_2E'!N$9:N$270,MATCH($D33,'SR_Cash Reconciliation_2E'!$B$9:$B$270,0))=\"\",\"\",INDEX('SR_Cash Reconciliation_2E'!N$9:N$270,MATCH($D33,'SR_Cash Reconciliation_2E'!$B$9:$B$270,0))),\"\")","v":""}]
[null,null,{"$error":"#VALUE!"},{"$error":"#VALUE!"},{"$f":"IFERROR(IF(INDEX('SR_Cash Reconciliation_2E'!C$9:C$270,MATCH($D34,'SR_Cash Reconciliation_2E'!$B$9:$B$270,0))=\"\",\"\",INDEX('SR_Cash Reconciliation_2E'!C$9:C$270,MATCH($D34,'SR_Cash Reconciliation_2E'!$B$9:$B$270,0))),\"\")","v":""},{"$f":"IFERROR(IF(INDEX('SR_Cash Reconciliation_2E'!D$9:D$270,MATCH($D34,'SR_Cash Reconciliation_2E'!$B$9:$B$270,0))=\"\",\"\",INDEX('SR_Cash Reconciliation_2E'!D$9:D$270,MATCH($D34,'SR_Cash Reconciliation_2E'!$B$9:$B$270,0))),\"\")","v":""},{"$f":"IFERROR(IF(INDEX('SR_Cash Reconciliation_2E'!E$9:E$270,MATCH($D34,'SR_Cash Reconciliation_2E'!$B$9:$B$270,0))=\"\",\"\",INDEX('SR_Cash Reconciliation_2E'!E$9:E$270,MATCH($D34,'SR_Cash Reconciliation_2E'!$B$9:$B$270,0))),\"\")","v":""},{"$f":"IFERROR(IF(INDEX('SR_Cash Reconciliation_2E'!F$9:F$270,MATCH($D34,'SR_Cash Reconciliation_2E'!$B$9:$B$270,0))=\"\",\"\",INDEX('SR_Cash Reconciliation_2E'!F$9:F$270,MATCH($D34,'SR_Cash Reconciliation_2E'!$B$9:$B$270,0))),\"\")","v":""},{"$f":"IFERROR(IF(INDEX('SR_Cash Reconciliation_2E'!G$9:G$270,MATCH($D34,'SR_Cash Reconciliation_2E'!$B$9:$B$270,0))=\"\",\"\",INDEX('SR_Cash Reconciliation_2E'!G$9:G$270,MATCH($D34,'SR_Cash Reconciliation_2E'!$B$9:$B$270,0))),\"\")","v":""},{"$f":"IFERROR(IF(INDEX('SR_Cash Reconciliation_2E'!H$9:H$270,MATCH($D34,'SR_Cash Reconciliation_2E'!$B$9:$B$270,0))=\"\",\"\",INDEX('SR_Cash Reconciliation_2E'!H$9:H$270,MATCH($D34,'SR_Cash Reconciliation_2E'!$B$9:$B$270,0))),\"\")","v":""},{"$f":"IFERROR(IF(INDEX('SR_Cash Reconciliation_2E'!I$9:I$270,MATCH($D34,'SR_Cash Reconciliation_2E'!$B$9:$B$270,0))=\"\",\"\",INDEX('SR_Cash Reconciliation_2E'!I$9:I$270,MATCH($D34,'SR_Cash Reconciliation_2E'!$B$9:$B$270,0))),\"\")","v":""},{"$f":"IFERROR(IF(INDEX('SR_Cash Reconciliation_2E'!K$9:K$270,MATCH($D34,'SR_Cash Reconciliation_2E'!$B$9:$B$270,0))=\"\",\"\",INDEX('SR_Cash Reconciliation_2E'!K$9:K$270,MATCH($D34,'SR_Cash Reconciliation_2E'!$B$9:$B$270,0))),\"\")","v":""},{"$f":"\"\"","v":""},{"$f":"IFERROR(IF(INDEX('SR_Cash Reconciliation_2E'!N$9:N$270,MATCH($D34,'SR_Cash Reconciliation_2E'!$B$9:$B$270,0))=\"\",\"\",INDEX('SR_Cash Reconciliation_2E'!N$9:N$270,MATCH($D34,'SR_Cash Reconciliation_2E'!$B$9:$B$270,0))),\"\")","v":""}]
[null,null,16,"ID16",{"$f":"IFERROR(IF(INDEX('SR_Cash Reconciliation_2E'!C$9:C$270,MATCH($D35,'SR_Cash Reconciliation_2E'!$B$9:$B$270,0))=\"\",\"\",INDEX('SR_Cash Reconciliation_2E'!C$9:C$270,MATCH($D35,'SR_Cash Reconciliation_2E'!$B$9:$B$270,0))),\"\")","v":""},{"$f":"IFERROR(IF(INDEX('SR_Cash Reconciliation_2E'!D$9:D$270,MATCH($D35,'SR_Cash Reconciliation_2E'!$B$9:$B$270,0))=\"\",\"\",INDEX('SR_Cash Reconciliation_2E'!D$9:D$270,MATCH($D35,'SR_Cash Reconciliation_2E'!$B$9:$B$270,0))),\"\")","v":""},{"$f":"IFERROR(IF(INDEX('SR_Cash Reconciliation_2E'!E$9:E$270,MATCH($D35,'SR_Cash Reconciliation_2E'!$B$9:$B$270,0))=\"\",\"\",INDEX('SR_Cash Reconciliation_2E'!E$9:E$270,MATCH($D35,'SR_Cash Reconciliation_2E'!$B$9:$B$270,0))),\"\")","v":""},{"$f":"IFERROR(IF(INDEX('SR_Cash Reconciliation_2E'!F$9:F$270,MATCH($D35,'SR_Cash Reconciliation_2E'!$B$9:$B$270,0))=\"\",\"\",INDEX('SR_Cash Reconciliation_2E'!F$9:F$270,MATCH($D35,'SR_Cash Reconciliation_2E'!$B$9:$B$270,0))),\"\")","v":""},{"$f":"IFERROR(IF(INDEX('SR_Cash Reconciliation_2E'!G$9:G$270,MATCH($D35,'SR_Cash Reconciliation_2E'!$B$9:$B$270,0))=\"\",\"\",INDEX('SR_Cash Reconciliation_2E'!G$9:G$270,MATCH($D35,'SR_Cash Reconciliation_2E'!$B$9:$B$270,0))),\"\")","v":""},{"$f":"IFERROR(IF(INDEX('SR_Cash Reconciliation_2E'!H$9:H$270,MATCH($D35,'SR_Cash Reconciliation_2E'!$B$9:$B$270,0))=\"\",\"\",INDEX('SR_Cash Reconciliation_2E'!H$9:H$270,MATCH($D35,'SR_Cash Reconciliation_2E'!$B$9:$B$270,0))),\"\")","v":""},{"$f":"IFERROR(IF(INDEX('SR_Cash Reconciliation_2E'!I$9:I$270,MATCH($D35,'SR_Cash Reconciliation_2E'!$B$9:$B$270,0))=\"\",\"\",INDEX('SR_Cash Reconciliation_2E'!I$9:I$270,MATCH($D35,'SR_Cash Reconciliation_2E'!$B$9:$B$270,0))),\"\")","v":""},{"$f":"IFERROR(IF(INDEX('SR_Cash Reconciliation_2E'!K$9:K$270,MATCH($D35,'SR_Cash Reconciliation_2E'!$B$9:$B$270,0))=\"\",\"\",INDEX('SR_Cash Reconciliation_2E'!K$9:K$270,MATCH($D35,'SR_Cash Reconciliation_2E'!$B$9:$B$270,0))),\"\")","v":""},{"$f":"\"\"","v":""},{"$f":"IFERROR(IF(INDEX('SR_Cash Reconciliation_2E'!N$9:N$270,MATCH($D35,'SR_Cash Reconciliation_2E'!$B$9:$B$270,0))=\"\",\"\",INDEX('SR_Cash Reconciliation_2E'!N$9:N$270,MATCH($D35,'SR_Cash Reconciliation_2E'!$B$9:$B$270,0))),\"\")","v":""}]
[null,null,{"$error":"#VALUE!"},{"$error":"#VALUE!"},{"$f":"IFERROR(IF(INDEX('SR_Cash Reconciliation_2E'!C$9:C$270,MATCH($D36,'SR_Cash Reconciliation_2E'!$B$9:$B$270,0))=\"\",\"\",INDEX('SR_Cash Reconciliation_2E'!C$9:C$270,MATCH($D36,'SR_Cash Reconciliation_2E'!$B$9:$B$270,0))),\"\")","v":""},{"$f":"IFERROR(IF(INDEX('SR_Cash Reconciliation_2E'!D$9:D$270,MATCH($D36,'SR_Cash Reconciliation_2E'!$B$9:$B$270,0))=\"\",\"\",INDEX('SR_Cash Reconciliation_2E'!D$9:D$270,MATCH($D36,'SR_Cash Reconciliation_2E'!$B$9:$B$270,0))),\"\")","v":""},{"$f":"IFERROR(IF(INDEX('SR_Cash Reconciliation_2E'!E$9:E$270,MATCH($D36,'SR_Cash Reconciliation_2E'!$B$9:$B$270,0))=\"\",\"\",INDEX('SR_Cash Reconciliation_2E'!E$9:E$270,MATCH($D36,'SR_Cash Reconciliation_2E'!$B$9:$B$270,0))),\"\")","v":""},{"$f":"IFERROR(IF(INDEX('SR_Cash Reconciliation_2E'!F$9:F$270,MATCH($D36,'SR_Cash Reconciliation_2E'!$B$9:$B$270,0))=\"\",\"\",INDEX('SR_Cash Reconciliation_2E'!F$9:F$270,MATCH($D36,'SR_Cash Reconciliation_2E'!$B$9:$B$270,0))),\"\")","v":""},{"$f":"IFERROR(IF(INDEX('SR_Cash Reconciliation_2E'!G$9:G$270,MATCH($D36,'SR_Cash Reconciliation_2E'!$B$9:$B$270,0))=\"\",\"\",INDEX('SR_Cash Reconciliation_2E'!G$9:G$270,MATCH($D36,'SR_Cash Reconciliation_2E'!$B$9:$B$270,0))),\"\")","v":""},{"$f":"IFERROR(IF(INDEX('SR_Cash Reconciliation_2E'!H$9:H$270,MATCH($D36,'SR_Cash Reconciliation_2E'!$B$9:$B$270,0))=\"\",\"\",INDEX('SR_Cash Reconciliation_2E'!H$9:H$270,MATCH($D36,'SR_Cash Reconciliation_2E'!$B$9:$B$270,0))),\"\")","v":""},{"$f":"IFERROR(IF(INDEX('SR_Cash Reconciliation_2E'!I$9:I$270,MATCH($D36,'SR_Cash Reconciliation_2E'!$B$9:$B$270,0))=\"\",\"\",INDEX('SR_Cash Reconciliation_2E'!I$9:I$270,MATCH($D36,'SR_Cash Reconciliation_2E'!$B$9:$B$270,0))),\"\")","v":""},{"$f":"IFERROR(IF(INDEX('SR_Cash Reconciliation_2E'!K$9:K$270,MATCH($D36,'SR_Cash Reconciliation_2E'!$B$9:$B$270,0))=\"\",\"\",INDEX('SR_Cash Reconciliation_2E'!K$9:K$270,MATCH($D36,'SR_Cash Reconciliation_2E'!$B$9:$B$270,0))),\"\")","v":""},{"$f":"\"\"","v":""},{"$f":"IFERROR(IF(INDEX('SR_Cash Reconciliation_2E'!N$9:N$270,MATCH($D36,'SR_Cash Reconciliation_2E'!$B$9:$B$270,0))=\"\",\"\",INDEX('SR_Cash Reconciliation_2E'!N$9:N$270,MATCH($D36,'SR_Cash Reconciliation_2E'!$B$9:$B$270,0))),\"\")","v":""}]
[null,null,17,"ID17",{"$f":"IFERROR(IF(INDEX('SR_Cash Reconciliation_2E'!C$9:C$270,MATCH($D37,'SR_Cash Reconciliation_2E'!$B$9:$B$270,0))=\"\",\"\",INDEX('SR_Cash Reconciliation_2E'!C$9:C$270,MATCH($D37,'SR_Cash Reconciliation_2E'!$B$9:$B$270,0))),\"\")","v":""},{"$f":"IFERROR(IF(INDEX('SR_Cash Reconciliation_2E'!D$9:D$270,MATCH($D37,'SR_Cash Reconciliation_2E'!$B$9:$B$270,0))=\"\",\"\",INDEX('SR_Cash Reconciliation_2E'!D$9:D$270,MATCH($D37,'SR_Cash Reconciliation_2E'!$B$9:$B$270,0))),\"\")","v":""},{"$f":"IFERROR(IF(INDEX('SR_Cash Reconciliation_2E'!E$9:E$270,MATCH($D37,'SR_Cash Reconciliation_2E'!$B$9:$B$270,0))=\"\",\"\",INDEX('SR_Cash Reconciliation_2E'!E$9:E$270,MATCH($D37,'SR_Cash Reconciliation_2E'!$B$9:$B$270,0))),\"\")","v":""},{"$f":"IFERROR(IF(INDEX('SR_Cash Reconciliation_2E'!F$9:F$270,MATCH($D37,'SR_Cash Reconciliation_2E'!$B$9:$B$270,0))=\"\",\"\",INDEX('SR_Cash Reconciliation_2E'!F$9:F$270,MATCH($D37,'SR_Cash Reconciliation_2E'!$B$9:$B$270,0))),\"\")","v":""},{"$f":"IFERROR(IF(INDEX('SR_Cash Reconciliation_2E'!G$9:G$270,MATCH($D37,'SR_Cash Reconciliation_2E'!$B$9:$B$270,0))=\"\",\"\",INDEX('SR_Cash Reconciliation_2E'!G$9:G$270,MATCH($D37,'SR_Cash Reconciliation_2E'!$B$9:$B$270,0))),\"\")","v":""},{"$f":"IFERROR(IF(INDEX('SR_Cash Reconciliation_2E'!H$9:H$270,MATCH($D37,'SR_Cash Reconciliation_2E'!$B$9:$B$270,0))=\"\",\"\",INDEX('SR_Cash Reconciliation_2E'!H$9:H$270,MATCH($D37,'SR_Cash Reconciliation_2E'!$B$9:$B$270,0))),\"\")","v":""},{"$f":"IFERROR(IF(INDEX('SR_Cash Reconciliation_2E'!I$9:I$270,MATCH($D37,'SR_Cash Reconciliation_2E'!$B$9:$B$270,0))=\"\",\"\",INDEX('SR_Cash Reconciliation_2E'!I$9:I$270,MATCH($D37,'SR_Cash Reconciliation_2E'!$B$9:$B$270,0))),\"\")","v":""},{"$f":"IFERROR(IF(INDEX('SR_Cash Reconciliation_2E'!K$9:K$270,MATCH($D37,'SR_Cash Reconciliation_2E'!$B$9:$B$270,0))=\"\",\"\",INDEX('SR_Cash Reconciliation_2E'!K$9:K$270,MATCH($D37,'SR_Cash Reconciliation_2E'!$B$9:$B$270,0))),\"\")","v":""},{"$f":"\"\"","v":""},{"$f":"IFERROR(IF(INDEX('SR_Cash Reconciliation_2E'!N$9:N$270,MATCH($D37,'SR_Cash Reconciliation_2E'!$B$9:$B$270,0))=\"\",\"\",INDEX('SR_Cash Reconciliation_2E'!N$9:N$270,MATCH($D37,'SR_Cash Reconciliation_2E'!$B$9:$B$270,0))),\"\")","v":""}]
[null,null,{"$error":"#VALUE!"},{"$error":"#VALUE!"},{"$f":"IFERROR(IF(INDEX('SR_Cash Reconciliation_2E'!C$9:C$270,MATCH($D38,'SR_Cash Reconciliation_2E'!$B$9:$B$270,0))=\"\",\"\",INDEX('SR_Cash Reconciliation_2E'!C$9:C$270,MATCH($D38,'SR_Cash Reconciliation_2E'!$B$9:$B$270,0))),\"\")","v":""},{"$f":"IFERROR(IF(INDEX('SR_Cash Reconciliation_2E'!D$9:D$270,MATCH($D38,'SR_Cash Reconciliation_2E'!$B$9:$B$270,0))=\"\",\"\",INDEX('SR_Cash Reconciliation_2E'!D$9:D$270,MATCH($D38,'SR_Cash Reconciliation_2E'!$B$9:$B$270,0))),\"\")","v":""},{"$f":"IFERROR(IF(INDEX('SR_Cash Reconciliation_2E'!E$9:E$270,MATCH($D38,'SR_Cash Reconciliation_2E'!$B$9:$B$270,0))=\"\",\"\",INDEX('SR_Cash Reconciliation_2E'!E$9:E$270,MATCH($D38,'SR_Cash Reconciliation_2E'!$B$9:$B$270,0))),\"\")","v":""},{"$f":"IFERROR(IF(INDEX('SR_Cash Reconciliation_2E'!F$9:F$270,MATCH($D38,'SR_Cash Reconciliation_2E'!$B$9:$B$270,0))=\"\",\"\",INDEX('SR_Cash Reconciliation_2E'!F$9:F$270,MATCH($D38,'SR_Cash Reconciliation_2E'!$B$9:$B$270,0))),\"\")","v":""},{"$f":"IFERROR(IF(INDEX('SR_Cash Reconciliation_2E'!G$9:G$270,MATCH($D38,'SR_Cash Reconciliation_2E'!$B$9:$B$270,0))=\"\",\"\",INDEX('SR_Cash Reconciliation_2E'!G$9:G$270,MATCH($D38,'SR_Cash Reconciliation_2E'!$B$9:$B$270,0))),\"\")","v":""},{"$f":"IFERROR(IF(INDEX('SR_Cash Reconciliation_2E'!H$9:H$270,MATCH($D38,'SR_Cash Reconciliation_2E'!$B$9:$B$270,0))=\"\",\"\",INDEX('SR_Cash Reconciliation_2E'!H$9:H$270,MATCH($D38,'SR_Cash Reconciliation_2E'!$B$9:$B$270,0))),\"\")","v":""},{"$f":"IFERROR(IF(INDEX('SR_Cash Reconciliation_2E'!I$9:I$270,MATCH($D38,'SR_Cash Reconciliation_2E'!$B$9:$B$270,0))=\"\",\"\",INDEX('SR_Cash Reconciliation_2E'!I$9:I$270,MATCH($D38,'SR_Cash Reconciliation_2E'!$B$9:$B$270,0))),\"\")","v":""},{"$f":"IFERROR(IF(INDEX('SR_Cash Reconciliation_2E'!K$9:K$270,MATCH($D38,'SR_Cash Reconciliation_2E'!$B$9:$B$270,0))=\"\",\"\",INDEX('SR_Cash Reconciliation_2E'!K$9:K$270,MATCH($D38,'SR_Cash Reconciliation_2E'!$B$9:$B$270,0))),\"\")","v":""},{"$f":"\"\"","v":""},{"$f":"IFERROR(IF(INDEX('SR_Cash Reconciliation_2E'!N$9:N$270,MATCH($D38,'SR_Cash Reconciliation_2E'!$B$9:$B$270,0))=\"\",\"\",INDEX('SR_Cash Reconciliation_2E'!N$9:N$270,MATCH($D38,'SR_Cash Reconciliation_2E'!$B$9:$B$270,0))),\"\")","v":""}]
[null,null,18,"ID18",{"$f":"IFERROR(IF(INDEX('SR_Cash Reconciliation_2E'!C$9:C$270,MATCH($D39,'SR_Cash Reconciliation_2E'!$B$9:$B$270,0))=\"\",\"\",INDEX('SR_Cash Reconciliation_2E'!C$9:C$270,MATCH($D39,'SR_Cash Reconciliation_2E'!$B$9:$B$270,0))),\"\")","v":""},{"$f":"IFERROR(IF(INDEX('SR_Cash Reconciliation_2E'!D$9:D$270,MATCH($D39,'SR_Cash Reconciliation_2E'!$B$9:$B$270,0))=\"\",\"\",INDEX('SR_Cash Reconciliation_2E'!D$9:D$270,MATCH($D39,'SR_Cash Reconciliation_2E'!$B$9:$B$270,0))),\"\")","v":""},{"$f":"IFERROR(IF(INDEX('SR_Cash Reconciliation_2E'!E$9:E$270,MATCH($D39,'SR_Cash Reconciliation_2E'!$B$9:$B$270,0))=\"\",\"\",INDEX('SR_Cash Reconciliation_2E'!E$9:E$270,MATCH($D39,'SR_Cash Reconciliation_2E'!$B$9:$B$270,0))),\"\")","v":""},{"$f":"IFERROR(IF(INDEX('SR_Cash Reconciliation_2E'!F$9:F$270,MATCH($D39,'SR_Cash Reconciliation_2E'!$B$9:$B$270,0))=\"\",\"\",INDEX('SR_Cash Reconciliation_2E'!F$9:F$270,MATCH($D39,'SR_Cash Reconciliation_2E'!$B$9:$B$270,0))),\"\")","v":""},{"$f":"IFERROR(IF(INDEX('SR_Cash Reconciliation_2E'!G$9:G$270,MATCH($D39,'SR_Cash Reconciliation_2E'!$B$9:$B$270,0))=\"\",\"\",INDEX('SR_Cash Reconciliation_2E'!G$9:G$270,MATCH($D39,'SR_Cash Reconciliation_2E'!$B$9:$B$270,0))),\"\")","v":""},{"$f":"IFERROR(IF(INDEX('SR_Cash Reconciliation_2E'!H$9:H$270,MATCH($D39,'SR_Cash Reconciliation_2E'!$B$9:$B$270,0))=\"\",\"\",INDEX('SR_Cash Reconciliation_2E'!H$9:H$270,MATCH($D39,'SR_Cash Reconciliation_2E'!$B$9:$B$270,0))),\"\")","v":""},{"$f":"IFERROR(IF(INDEX('SR_Cash Reconciliation_2E'!I$9:I$270,MATCH($D39,'SR_Cash Reconciliation_2E'!$B$9:$B$270,0))=\"\",\"\",INDEX('SR_Cash Reconciliation_2E'!I$9:I$270,MATCH($D39,'SR_Cash Reconciliation_2E'!$B$9:$B$270,0))),\"\")","v":""},{"$f":"IFERROR(IF(INDEX('SR_Cash Reconciliation_2E'!K$9:K$270,MATCH($D39,'SR_Cash Reconciliation_2E'!$B$9:$B$270,0))=\"\",\"\",INDEX('SR_Cash Reconciliation_2E'!K$9:K$270,MATCH($D39,'SR_Cash Reconciliation_2E'!$B$9:$B$270,0))),\"\")","v":""},{"$f":"\"\"","v":""},{"$f":"IFERROR(IF(INDEX('SR_Cash Reconciliation_2E'!N$9:N$270,MATCH($D39,'SR_Cash Reconciliation_2E'!$B$9:$B$270,0))=\"\",\"\",INDEX('SR_Cash Reconciliation_2E'!N$9:N$270,MATCH($D39,'SR_Cash Reconciliation_2E'!$B$9:$B$270,0))),\"\")","v":""}]
[null,null,{"$error":"#VALUE!"},{"$error":"#VALUE!"},{"$f":"IFERROR(IF(INDEX('SR_Cash Reconciliation_2E'!C$9:C$270,MATCH($D40,'SR_Cash Reconciliation_2E'!$B$9:$B$270,0))=\"\",\"\",INDEX('SR_Cash Reconciliation_2E'!C$9:C$270,MATCH($D40,'SR_Cash Reconciliation_2E'!$B$9:$B$270,0))),\"\")","v":""},{"$f":"IFERROR(IF(INDEX('SR_Cash Reconciliation_2E'!D$9:D$270,MATCH($D40,'SR_Cash Reconciliation_2E'!$B$9:$B$270,0))=\"\",\"\",INDEX('SR_Cash Reconciliation_2E'!D$9:D$270,MATCH($D40,'SR_Cash Reconciliation_2E'!$B$9:$B$270,0))),\"\")","v":""},{"$f":"IFERROR(IF(INDEX('SR_Cash Reconciliation_2E'!E$9:E$270,MATCH($D40,'SR_Cash Reconciliation_2E'!$B$9:$B$270,0))=\"\",\"\",INDEX('SR_Cash Reconciliation_2E'!E$9:E$270,MATCH($D40,'SR_Cash Reconciliation_2E'!$B$9:$B$270,0))),\"\")","v":""},{"$f":"IFERROR(IF(INDEX('SR_Cash Reconciliation_2E'!F$9:F$270,MATCH($D40,'SR_Cash Reconciliation_2E'!$B$9:$B$270,0))=\"\",\"\",INDEX('SR_Cash Reconciliation_2E'!F$9:F$270,MATCH($D40,'SR_Cash Reconciliation_2E'!$B$9:$B$270,0))),\"\")","v":""},{"$f":"IFERROR(IF(INDEX('SR_Cash Reconciliation_2E'!G$9:G$270,MATCH($D40,'SR_Cash Reconciliation_2E'!$B$9:$B$270,0))=\"\",\"\",INDEX('SR_Cash Reconciliation_2E'!G$9:G$270,MATCH($D40,'SR_Cash Reconciliation_2E'!$B$9:$B$270,0))),\"\")","v":""},{"$f":"IFERROR(IF(INDEX('SR_Cash Reconciliation_2E'!H$9:H$270,MATCH($D40,'SR_Cash Reconciliation_2E'!$B$9:$B$270,0))=\"\",\"\",INDEX('SR_Cash Reconciliation_2E'!H$9:H$270,MATCH($D40,'SR_Cash Reconciliation_2E'!$B$9:$B$270,0))),\"\")","v":""},{"$f":"IFERROR(IF(INDEX('SR_Cash Reconciliation_2E'!I$9:I$270,MATCH($D40,'SR_Cash Reconciliation_2E'!$B$9:$B$270,0))=\"\",\"\",INDEX('SR_Cash Reconciliation_2E'!I$9:I$270,MATCH($D40,'SR_Cash Reconciliation_2E'!$B$9:$B$270,0))),\"\")","v":""},{"$f":"IFERROR(IF(INDEX('SR_Cash Reconciliation_2E'!K$9:K$270,MATCH($D40,'SR_Cash Reconciliation_2E'!$B$9:$B$270,0))=\"\",\"\",INDEX('SR_Cash Reconciliation_2E'!K$9:K$270,MATCH($D40,'SR_Cash Reconciliation_2E'!$B$9:$B$270,0))),\"\")","v":""},{"$f":"\"\"","v":""},{"$f":"IFERROR(IF(INDEX('SR_Cash Reconciliation_2E'!N$9:N$270,MATCH($D40,'SR_Cash Reconciliation_2E'!$B$9:$B$270,0))=\"\",\"\",INDEX('SR_Cash Reconciliation_2E'!N$9:N$270,MATCH($D40,'SR_Cash Reconciliation_2E'!$B$9:$B$270,0))),\"\")","v":""}]
[null,null,19,"ID19",{"$f":"IFERROR(IF(INDEX('SR_Cash Reconciliation_2E'!C$9:C$270,MATCH($D41,'SR_Cash Reconciliation_2E'!$B$9:$B$270,0))=\"\",\"\",INDEX('SR_Cash Reconciliation_2E'!C$9:C$270,MATCH($D41,'SR_Cash Reconciliation_2E'!$B$9:$B$270,0))),\"\")","v":""},{"$f":"IFERROR(IF(INDEX('SR_Cash Reconciliation_2E'!D$9:D$270,MATCH($D41,'SR_Cash Reconciliation_2E'!$B$9:$B$270,0))=\"\",\"\",INDEX('SR_Cash Reconciliation_2E'!D$9:D$270,MATCH($D41,'SR_Cash Reconciliation_2E'!$B$9:$B$270,0))),\"\")","v":""},{"$f":"IFERROR(IF(INDEX('SR_Cash Reconciliation_2E'!E$9:E$270,MATCH($D41,'SR_Cash Reconciliation_2E'!$B$9:$B$270,0))=\"\",\"\",INDEX('SR_Cash Reconciliation_2E'!E$9:E$270,MATCH($D41,'SR_Cash Reconciliation_2E'!$B$9:$B$270,0))),\"\")","v":""},{"$f":"IFERROR(IF(INDEX('SR_Cash Reconciliation_2E'!F$9:F$270,MATCH($D41,'SR_Cash Reconciliation_2E'!$B$9:$B$270,0))=\"\",\"\",INDEX('SR_Cash Reconciliation_2E'!F$9:F$270,MATCH($D41,'SR_Cash Reconciliation_2E'!$B$9:$B$270,0))),\"\")","v":""},{"$f":"IFERROR(IF(INDEX('SR_Cash Reconciliation_2E'!G$9:G$270,MATCH($D41,'SR_Cash Reconciliation_2E'!$B$9:$B$270,0))=\"\",\"\",INDEX('SR_Cash Reconciliation_2E'!G$9:G$270,MATCH($D41,'SR_Cash Reconciliation_2E'!$B$9:$B$270,0))),\"\")","v":""},{"$f":"IFERROR(IF(INDEX('SR_Cash Reconciliation_2E'!H$9:H$270,MATCH($D41,'SR_Cash Reconciliation_2E'!$B$9:$B$270,0))=\"\",\"\",INDEX('SR_Cash Reconciliation_2E'!H$9:H$270,MATCH($D41,'SR_Cash Reconciliation_2E'!$B$9:$B$270,0))),\"\")","v":""},{"$f":"IFERROR(IF(INDEX('SR_Cash Reconciliation_2E'!I$9:I$270,MATCH($D41,'SR_Cash Reconciliation_2E'!$B$9:$B$270,0))=\"\",\"\",INDEX('SR_Cash Reconciliation_2E'!I$9:I$270,MATCH($D41,'SR_Cash Reconciliation_2E'!$B$9:$B$270,0))),\"\")","v":""},{"$f":"IFERROR(IF(INDEX('SR_Cash Reconciliation_2E'!K$9:K$270,MATCH($D41,'SR_Cash Reconciliation_2E'!$B$9:$B$270,0))=\"\",\"\",INDEX('SR_Cash Reconciliation_2E'!K$9:K$270,MATCH($D41,'SR_Cash Reconciliation_2E'!$B$9:$B$270,0))),\"\")","v":""},{"$f":"\"\"","v":""},{"$f":"IFERROR(IF(INDEX('SR_Cash Reconciliation_2E'!N$9:N$270,MATCH($D41,'SR_Cash Reconciliation_2E'!$B$9:$B$270,0))=\"\",\"\",INDEX('SR_Cash Reconciliation_2E'!N$9:N$270,MATCH($D41,'SR_Cash Reconciliation_2E'!$B$9:$B$270,0))),\"\")","v":""}]
[null,null,{"$error":"#VALUE!"},{"$error":"#VALUE!"},{"$f":"IFERROR(IF(INDEX('SR_Cash Reconciliation_2E'!C$9:C$270,MATCH($D42,'SR_Cash Reconciliation_2E'!$B$9:$B$270,0))=\"\",\"\",INDEX('SR_Cash Reconciliation_2E'!C$9:C$270,MATCH($D42,'SR_Cash Reconciliation_2E'!$B$9:$B$270,0))),\"\")","v":""},{"$f":"IFERROR(IF(INDEX('SR_Cash Reconciliation_2E'!D$9:D$270,MATCH($D42,'SR_Cash Reconciliation_2E'!$B$9:$B$270,0))=\"\",\"\",INDEX('SR_Cash Reconciliation_2E'!D$9:D$270,MATCH($D42,'SR_Cash Reconciliation_2E'!$B$9:$B$270,0))),\"\")","v":""},{"$f":"IFERROR(IF(INDEX('SR_Cash Reconciliation_2E'!E$9:E$270,MATCH($D42,'SR_Cash Reconciliation_2E'!$B$9:$B$270,0))=\"\",\"\",INDEX('SR_Cash Reconciliation_2E'!E$9:E$270,MATCH($D42,'SR_Cash Reconciliation_2E'!$B$9:$B$270,0))),\"\")","v":""},{"$f":"IFERROR(IF(INDEX('SR_Cash Reconciliation_2E'!F$9:F$270,MATCH($D42,'SR_Cash Reconciliation_2E'!$B$9:$B$270,0))=\"\",\"\",INDEX('SR_Cash Reconciliation_2E'!F$9:F$270,MATCH($D42,'SR_Cash Reconciliation_2E'!$B$9:$B$270,0))),\"\")","v":""},{"$f":"IFERROR(IF(INDEX('SR_Cash Reconciliation_2E'!G$9:G$270,MATCH($D42,'SR_Cash Reconciliation_2E'!$B$9:$B$270,0))=\"\",\"\",INDEX('SR_Cash Reconciliation_2E'!G$9:G$270,MATCH($D42,'SR_Cash Reconciliation_2E'!$B$9:$B$270,0))),\"\")","v":""},{"$f":"IFERROR(IF(INDEX('SR_Cash Reconciliation_2E'!H$9:H$270,MATCH($D42,'SR_Cash Reconciliation_2E'!$B$9:$B$270,0))=\"\",\"\",INDEX('SR_Cash Reconciliation_2E'!H$9:H$270,MATCH($D42,'SR_Cash Reconciliation_2E'!$B$9:$B$270,0))),\"\")","v":""},{"$f":"IFERROR(IF(INDEX('SR_Cash Reconciliation_2E'!I$9:I$270,MATCH($D42,'SR_Cash Reconciliation_2E'!$B$9:$B$270,0))=\"\",\"\",INDEX('SR_Cash Reconciliation_2E'!I$9:I$270,MATCH($D42,'SR_Cash Reconciliation_2E'!$B$9:$B$270,0))),\"\")","v":""},{"$f":"IFERROR(IF(INDEX('SR_Cash Reconciliation_2E'!K$9:K$270,MATCH($D42,'SR_Cash Reconciliation_2E'!$B$9:$B$270,0))=\"\",\"\",INDEX('SR_Cash Reconciliation_2E'!K$9:K$270,MATCH($D42,'SR_Cash Reconciliation_2E'!$B$9:$B$270,0))),\"\")","v":""},{"$f":"\"\"","v":""},{"$f":"IFERROR(IF(INDEX('SR_Cash Reconciliation_2E'!N$9:N$270,MATCH($D42,'SR_Cash Reconciliation_2E'!$B$9:$B$270,0))=\"\",\"\",INDEX('SR_Cash Reconciliation_2E'!N$9:N$270,MATCH($D42,'SR_Cash Reconciliation_2E'!$B$9:$B$270,0))),\"\")","v":""}]
[null,null,20,"ID20",{"$f":"IFERROR(IF(INDEX('SR_Cash Reconciliation_2E'!C$9:C$270,MATCH($D43,'SR_Cash Reconciliation_2E'!$B$9:$B$270,0))=\"\",\"\",INDEX('SR_Cash Reconciliation_2E'!C$9:C$270,MATCH($D43,'SR_Cash Reconciliation_2E'!$B$9:$B$270,0))),\"\")","v":""},{"$f":"IFERROR(IF(INDEX('SR_Cash Reconciliation_2E'!D$9:D$270,MATCH($D43,'SR_Cash Reconciliation_2E'!$B$9:$B$270,0))=\"\",\"\",INDEX('SR_Cash Reconciliation_2E'!D$9:D$270,MATCH($D43,'SR_Cash Reconciliation_2E'!$B$9:$B$270,0))),\"\")","v":""},{"$f":"IFERROR(IF(INDEX('SR_Cash Reconciliation_2E'!E$9:E$270,MATCH($D43,'SR_Cash Reconciliation_2E'!$B$9:$B$270,0))=\"\",\"\",INDEX('SR_Cash Reconciliation_2E'!E$9:E$270,MATCH($D43,'SR_Cash Reconciliation_2E'!$B$9:$B$270,0))),\"\")","v":""},{"$f":"IFERROR(IF(INDEX('SR_Cash Reconciliation_2E'!F$9:F$270,MATCH($D43,'SR_Cash Reconciliation_2E'!$B$9:$B$270,0))=\"\",\"\",INDEX('SR_Cash Reconciliation_2E'!F$9:F$270,MATCH($D43,'SR_Cash Reconciliation_2E'!$B$9:$B$270,0))),\"\")","v":""},{"$f":"IFERROR(IF(INDEX('SR_Cash Reconciliation_2E'!G$9:G$270,MATCH($D43,'SR_Cash Reconciliation_2E'!$B$9:$B$270,0))=\"\",\"\",INDEX('SR_Cash Reconciliation_2E'!G$9:G$270,MATCH($D43,'SR_Cash Reconciliation_2E'!$B$9:$B$270,0))),\"\")","v":""},{"$f":"IFERROR(IF(INDEX('SR_Cash Reconciliation_2E'!H$9:H$270,MATCH($D43,'SR_Cash Reconciliation_2E'!$B$9:$B$270,0))=\"\",\"\",INDEX('SR_Cash Reconciliation_2E'!H$9:H$270,MATCH($D43,'SR_Cash Reconciliation_2E'!$B$9:$B$270,0))),\"\")","v":""},{"$f":"IFERROR(IF(INDEX('SR_Cash Reconciliation_2E'!I$9:I$270,MATCH($D43,'SR_Cash Reconciliation_2E'!$B$9:$B$270,0))=\"\",\"\",INDEX('SR_Cash Reconciliation_2E'!I$9:I$270,MATCH($D43,'SR_Cash Reconciliation_2E'!$B$9:$B$270,0))),\"\")","v":""},{"$f":"IFERROR(IF(INDEX('SR_Cash Reconciliation_2E'!K$9:K$270,MATCH($D43,'SR_Cash Reconciliation_2E'!$B$9:$B$270,0))=\"\",\"\",INDEX('SR_Cash Reconciliation_2E'!K$9:K$270,MATCH($D43,'SR_Cash Reconciliation_2E'!$B$9:$B$270,0))),\"\")","v":""},{"$f":"\"\"","v":""},{"$f":"IFERROR(IF(INDEX('SR_Cash Reconciliation_2E'!N$9:N$270,MATCH($D43,'SR_Cash Reconciliation_2E'!$B$9:$B$270,0))=\"\",\"\",INDEX('SR_Cash Reconciliation_2E'!N$9:N$270,MATCH($D43,'SR_Cash Reconciliation_2E'!$B$9:$B$270,0))),\"\")","v":""}]
[null,null,{"$error":"#VALUE!"},{"$error":"#VALUE!"},{"$f":"IFERROR(IF(INDEX('SR_Cash Reconciliation_2E'!C$9:C$270,MATCH($D44,'SR_Cash Reconciliation_2E'!$B$9:$B$270,0))=\"\",\"\",INDEX('SR_Cash Reconciliation_2E'!C$9:C$270,MATCH($D44,'SR_Cash Reconciliation_2E'!$B$9:$B$270,0))),\"\")","v":""},{"$f":"IFERROR(IF(INDEX('SR_Cash Reconciliation_2E'!D$9:D$270,MATCH($D44,'SR_Cash Reconciliation_2E'!$B$9:$B$270,0))=\"\",\"\",INDEX('SR_Cash Reconciliation_2E'!D$9:D$270,MATCH($D44,'SR_Cash Reconciliation_2E'!$B$9:$B$270,0))),\"\")","v":""},{"$f":"IFERROR(IF(INDEX('SR_Cash Reconciliation_2E'!E$9:E$270,MATCH($D44,'SR_Cash Reconciliation_2E'!$B$9:$B$270,0))=\"\",\"\",INDEX('SR_Cash Reconciliation_2E'!E$9:E$270,MATCH($D44,'SR_Cash Reconciliation_2E'!$B$9:$B$270,0))),\"\")","v":""},{"$f":"IFERROR(IF(INDEX('SR_Cash Reconciliation_2E'!F$9:F$270,MATCH($D44,'SR_Cash Reconciliation_2E'!$B$9:$B$270,0))=\"\",\"\",INDEX('SR_Cash Reconciliation_2E'!F$9:F$270,MATCH($D44,'SR_Cash Reconciliation_2E'!$B$9:$B$270,0))),\"\")","v":""},{"$f":"IFERROR(IF(INDEX('SR_Cash Reconciliation_2E'!G$9:G$270,MATCH($D44,'SR_Cash Reconciliation_2E'!$B$9:$B$270,0))=\"\",\"\",INDEX('SR_Cash Reconciliation_2E'!G$9:G$270,MATCH($D44,'SR_Cash Reconciliation_2E'!$B$9:$B$270,0))),\"\")","v":""},{"$f":"IFERROR(IF(INDEX('SR_Cash Reconciliation_2E'!H$9:H$270,MATCH($D44,'SR_Cash Reconciliation_2E'!$B$9:$B$270,0))=\"\",\"\",INDEX('SR_Cash Reconciliation_2E'!H$9:H$270,MATCH($D44,'SR_Cash Reconciliation_2E'!$B$9:$B$270,0))),\"\")","v":""},{"$f":"IFERROR(IF(INDEX('SR_Cash Reconciliation_2E'!I$9:I$270,MATCH($D44,'SR_Cash Reconciliation_2E'!$B$9:$B$270,0))=\"\",\"\",INDEX('SR_Cash Reconciliation_2E'!I$9:I$270,MATCH($D44,'SR_Cash Reconciliation_2E'!$B$9:$B$270,0))),\"\")","v":""},{"$f":"IFERROR(IF(INDEX('SR_Cash Reconciliation_2E'!K$9:K$270,MATCH($D44,'SR_Cash Reconciliation_2E'!$B$9:$B$270,0))=\"\",\"\",INDEX('SR_Cash Reconciliation_2E'!K$9:K$270,MATCH($D44,'SR_Cash Reconciliation_2E'!$B$9:$B$270,0))),\"\")","v":""},{"$f":"\"\"","v":""},{"$f":"IFERROR(IF(INDEX('SR_Cash Reconciliation_2E'!N$9:N$270,MATCH($D44,'SR_Cash Reconciliation_2E'!$B$9:$B$270,0))=\"\",\"\",INDEX('SR_Cash Reconciliation_2E'!N$9:N$270,MATCH($D44,'SR_Cash Reconciliation_2E'!$B$9:$B$270,0))),\"\")","v":""}]
[null,null,21,"ID21",{"$f":"IFERROR(IF(INDEX('SR_Cash Reconciliation_2E'!C$9:C$270,MATCH($D45,'SR_Cash Reconciliation_2E'!$B$9:$B$270,0))=\"\",\"\",INDEX('SR_Cash Reconciliation_2E'!C$9:C$270,MATCH($D45,'SR_Cash Reconciliation_2E'!$B$9:$B$270,0))),\"\")","v":""},{"$f":"IFERROR(IF(INDEX('SR_Cash Reconciliation_2E'!D$9:D$270,MATCH($D45,'SR_Cash Reconciliation_2E'!$B$9:$B$270,0))=\"\",\"\",INDEX('SR_Cash Reconciliation_2E'!D$9:D$270,MATCH($D45,'SR_Cash Reconciliation_2E'!$B$9:$B$270,0))),\"\")","v":""},{"$f":"IFERROR(IF(INDEX('SR_Cash Reconciliation_2E'!E$9:E$270,MATCH($D45,'SR_Cash Reconciliation_2E'!$B$9:$B$270,0))=\"\",\"\",INDEX('SR_Cash Reconciliation_2E'!E$9:E$270,MATCH($D45,'SR_Cash Reconciliation_2E'!$B$9:$B$270,0))),\"\")","v":""},{"$f":"IFERROR(IF(INDEX('SR_Cash Reconciliation_2E'!F$9:F$270,MATCH($D45,'SR_Cash Reconciliation_2E'!$B$9:$B$270,0))=\"\",\"\",INDEX('SR_Cash Reconciliation_2E'!F$9:F$270,MATCH($D45,'SR_Cash Reconciliation_2E'!$B$9:$B$270,0))),\"\")","v":""},{"$f":"IFERROR(IF(INDEX('SR_Cash Reconciliation_2E'!G$9:G$270,MATCH($D45,'SR_Cash Reconciliation_2E'!$B$9:$B$270,0))=\"\",\"\",INDEX('SR_Cash Reconciliation_2E'!G$9:G$270,MATCH($D45,'SR_Cash Reconciliation_2E'!$B$9:$B$270,0))),\"\")","v":""},{"$f":"IFERROR(IF(INDEX('SR_Cash Reconciliation_2E'!H$9:H$270,MATCH($D45,'SR_Cash Reconciliation_2E'!$B$9:$B$270,0))=\"\",\"\",INDEX('SR_Cash Reconciliation_2E'!H$9:H$270,MATCH($D45,'SR_Cash Reconciliation_2E'!$B$9:$B$270,0))),\"\")","v":""},{"$f":"IFERROR(IF(INDEX('SR_Cash Reconciliation_2E'!I$9:I$270,MATCH($D45,'SR_Cash Reconciliation_2E'!$B$9:$B$270,0))=\"\",\"\",INDEX('SR_Cash Reconciliation_2E'!I$9:I$270,MATCH($D45,'SR_Cash Reconciliation_2E'!$B$9:$B$270,0))),\"\")","v":""},{"$f":"IFERROR(IF(INDEX('SR_Cash Reconciliation_2E'!K$9:K$270,MATCH($D45,'SR_Cash Reconciliation_2E'!$B$9:$B$270,0))=\"\",\"\",INDEX('SR_Cash Reconciliation_2E'!K$9:K$270,MATCH($D45,'SR_Cash Reconciliation_2E'!$B$9:$B$270,0))),\"\")","v":""},{"$f":"\"\"","v":""},{"$f":"IFERROR(IF(INDEX('SR_Cash Reconciliation_2E'!N$9:N$270,MATCH($D45,'SR_Cash Reconciliation_2E'!$B$9:$B$270,0))=\"\",\"\",INDEX('SR_Cash Reconciliation_2E'!N$9:N$270,MATCH($D45,'SR_Cash Reconciliation_2E'!$B$9:$B$270,0))),\"\")","v":""}]
[null,null,{"$error":"#VALUE!"},{"$error":"#VALUE!"},{"$f":"IFERROR(IF(INDEX('SR_Cash Reconciliation_2E'!C$9:C$270,MATCH($D46,'SR_Cash Reconciliation_2E'!$B$9:$B$270,0))=\"\",\"\",INDEX('SR_Cash Reconciliation_2E'!C$9:C$270,MATCH($D46,'SR_Cash Reconciliation_2E'!$B$9:$B$270,0))),\"\")","v":""},{"$f":"IFERROR(IF(INDEX('SR_Cash Reconciliation_2E'!D$9:D$270,MATCH($D46,'SR_Cash Reconciliation_2E'!$B$9:$B$270,0))=\"\",\"\",INDEX('SR_Cash Reconciliation_2E'!D$9:D$270,MATCH($D46,'SR_Cash Reconciliation_2E'!$B$9:$B$270,0))),\"\")","v":""},{"$f":"IFERROR(IF(INDEX('SR_Cash Reconciliation_2E'!E$9:E$270,MATCH($D46,'SR_Cash Reconciliation_2E'!$B$9:$B$270,0))=\"\",\"\",INDEX('SR_Cash Reconciliation_2E'!E$9:E$270,MATCH($D46,'SR_Cash Reconciliation_2E'!$B$9:$B$270,0))),\"\")","v":""},{"$f":"IFERROR(IF(INDEX('SR_Cash Reconciliation_2E'!F$9:F$270,MATCH($D46,'SR_Cash Reconciliation_2E'!$B$9:$B$270,0))=\"\",\"\",INDEX('SR_Cash Reconciliation_2E'!F$9:F$270,MATCH($D46,'SR_Cash Reconciliation_2E'!$B$9:$B$270,0))),\"\")","v":""},{"$f":"IFERROR(IF(INDEX('SR_Cash Reconciliation_2E'!G$9:G$270,MATCH($D46,'SR_Cash Reconciliation_2E'!$B$9:$B$270,0))=\"\",\"\",INDEX('SR_Cash Reconciliation_2E'!G$9:G$270,MATCH($D46,'SR_Cash Reconciliation_2E'!$B$9:$B$270,0))),\"\")","v":""},{"$f":"IFERROR(IF(INDEX('SR_Cash Reconciliation_2E'!H$9:H$270,MATCH($D46,'SR_Cash Reconciliation_2E'!$B$9:$B$270,0))=\"\",\"\",INDEX('SR_Cash Reconciliation_2E'!H$9:H$270,MATCH($D46,'SR_Cash Reconciliation_2E'!$B$9:$B$270,0))),\"\")","v":""},{"$f":"IFERROR(IF(INDEX('SR_Cash Reconciliation_2E'!I$9:I$270,MATCH($D46,'SR_Cash Reconciliation_2E'!$B$9:$B$270,0))=\"\",\"\",INDEX('SR_Cash Reconciliation_2E'!I$9:I$270,MATCH($D46,'SR_Cash Reconciliation_2E'!$B$9:$B$270,0))),\"\")","v":""},{"$f":"IFERROR(IF(INDEX('SR_Cash Reconciliation_2E'!K$9:K$270,MATCH($D46,'SR_Cash Reconciliation_2E'!$B$9:$B$270,0))=\"\",\"\",INDEX('SR_Cash Reconciliation_2E'!K$9:K$270,MATCH($D46,'SR_Cash Reconciliation_2E'!$B$9:$B$270,0))),\"\")","v":""},{"$f":"\"\"","v":""},{"$f":"IFERROR(IF(INDEX('SR_Cash Reconciliation_2E'!N$9:N$270,MATCH($D46,'SR_Cash Reconciliation_2E'!$B$9:$B$270,0))=\"\",\"\",INDEX('SR_Cash Reconciliation_2E'!N$9:N$270,MATCH($D46,'SR_Cash Reconciliation_2E'!$B$9:$B$270,0))),\"\")","v":""}]
[null,null,22,"ID22",{"$f":"IFERROR(IF(INDEX('SR_Cash Reconciliation_2E'!C$9:C$270,MATCH($D47,'SR_Cash Reconciliation_2E'!$B$9:$B$270,0))=\"\",\"\",INDEX('SR_Cash Reconciliation_2E'!C$9:C$270,MATCH($D47,'SR_Cash Reconciliation_2E'!$B$9:$B$270,0))),\"\")","v":""},{"$f":"IFERROR(IF(INDEX('SR_Cash Reconciliation_2E'!D$9:D$270,MATCH($D47,'SR_Cash Reconciliation_2E'!$B$9:$B$270,0))=\"\",\"\",INDEX('SR_Cash Reconciliation_2E'!D$9:D$270,MATCH($D47,'SR_Cash Reconciliation_2E'!$B$9:$B$270,0))),\"\")","v":""},{"$f":"IFERROR(IF(INDEX('SR_Cash Reconciliation_2E'!E$9:E$270,MATCH($D47,'SR_Cash Reconciliation_2E'!$B$9:$B$270,0))=\"\",\"\",INDEX('SR_Cash Reconciliation_2E'!E$9:E$270,MATCH($D47,'SR_Cash Reconciliation_2E'!$B$9:$B$270,0))),\"\")","v":""},{"$f":"IFERROR(IF(INDEX('SR_Cash Reconciliation_2E'!F$9:F$270,MATCH($D47,'SR_Cash Reconciliation_2E'!$B$9:$B$270,0))=\"\",\"\",INDEX('SR_Cash Reconciliation_2E'!F$9:F$270,MATCH($D47,'SR_Cash Reconciliation_2E'!$B$9:$B$270,0))),\"\")","v":""},{"$f":"IFERROR(IF(INDEX('SR_Cash Reconciliation_2E'!G$9:G$270,MATCH($D47,'SR_Cash Reconciliation_2E'!$B$9:$B$270,0))=\"\",\"\",INDEX('SR_Cash Reconciliation_2E'!G$9:G$270,MATCH($D47,'SR_Cash Reconciliation_2E'!$B$9:$B$270,0))),\"\")","v":""},{"$f":"IFERROR(IF(INDEX('SR_Cash Reconciliation_2E'!H$9:H$270,MATCH($D47,'SR_Cash Reconciliation_2E'!$B$9:$B$270,0))=\"\",\"\",INDEX('SR_Cash Reconciliation_2E'!H$9:H$270,MATCH($D47,'SR_Cash Reconciliation_2E'!$B$9:$B$270,0))),\"\")","v":""},{"$f":"IFERROR(IF(INDEX('SR_Cash Reconciliation_2E'!I$9:I$270,MATCH($D47,'SR_Cash Reconciliation_2E'!$B$9:$B$270,0))=\"\",\"\",INDEX('SR_Cash Reconciliation_2E'!I$9:I$270,MATCH($D47,'SR_Cash Reconciliation_2E'!$B$9:$B$270,0))),\"\")","v":""},{"$f":"IFERROR(IF(INDEX('SR_Cash Reconciliation_2E'!K$9:K$270,MATCH($D47,'SR_Cash Reconciliation_2E'!$B$9:$B$270,0))=\"\",\"\",INDEX('SR_Cash Reconciliation_2E'!K$9:K$270,MATCH($D47,'SR_Cash Reconciliation_2E'!$B$9:$B$270,0))),\"\")","v":""},{"$f":"\"\"","v":""},{"$f":"IFERROR(IF(INDEX('SR_Cash Reconciliation_2E'!N$9:N$270,MATCH($D47,'SR_Cash Reconciliation_2E'!$B$9:$B$270,0))=\"\",\"\",INDEX('SR_Cash Reconciliation_2E'!N$9:N$270,MATCH($D47,'SR_Cash Reconciliation_2E'!$B$9:$B$270,0))),\"\")","v":""}]
[null,null,{"$error":"#VALUE!"},{"$error":"#VALUE!"},{"$f":"IFERROR(IF(INDEX('SR_Cash Reconciliation_2E'!C$9:C$270,MATCH($D48,'SR_Cash Reconciliation_2E'!$B$9:$B$270,0))=\"\",\"\",INDEX('SR_Cash Reconciliation_2E'!C$9:C$270,MATCH($D48,'SR_Cash Reconciliation_2E'!$B$9:$B$270,0))),\"\")","v":""},{"$f":"IFERROR(IF(INDEX('SR_Cash Reconciliation_2E'!D$9:D$270,MATCH($D48,'SR_Cash Reconciliation_2E'!$B$9:$B$270,0))=\"\",\"\",INDEX('SR_Cash Reconciliation_2E'!D$9:D$270,MATCH($D48,'SR_Cash Reconciliation_2E'!$B$9:$B$270,0))),\"\")","v":""},{"$f":"IFERROR(IF(INDEX('SR_Cash Reconciliation_2E'!E$9:E$270,MATCH($D48,'SR_Cash Reconciliation_2E'!$B$9:$B$270,0))=\"\",\"\",INDEX('SR_Cash Reconciliation_2E'!E$9:E$270,MATCH($D48,'SR_Cash Reconciliation_2E'!$B$9:$B$270,0))),\"\")","v":""},{"$f":"IFERROR(IF(INDEX('SR_Cash Reconciliation_2E'!F$9:F$270,MATCH($D48,'SR_Cash Reconciliation_2E'!$B$9:$B$270,0))=\"\",\"\",INDEX('SR_Cash Reconciliation_2E'!F$9:F$270,MATCH($D48,'SR_Cash Reconciliation_2E'!$B$9:$B$270,0))),\"\")","v":""},{"$f":"IFERROR(IF(INDEX('SR_Cash Reconciliation_2E'!G$9:G$270,MATCH($D48,'SR_Cash Reconciliation_2E'!$B$9:$B$270,0))=\"\",\"\",INDEX('SR_Cash Reconciliation_2E'!G$9:G$270,MATCH($D48,'SR_Cash Reconciliation_2E'!$B$9:$B$270,0))),\"\")","v":""},{"$f":"IFERROR(IF(INDEX('SR_Cash Reconciliation_2E'!H$9:H$270,MATCH($D48,'SR_Cash Reconciliation_2E'!$B$9:$B$270,0))=\"\",\"\",INDEX('SR_Cash Reconciliation_2E'!H$9:H$270,MATCH($D48,'SR_Cash Reconciliation_2E'!$B$9:$B$270,0))),\"\")","v":""},{"$f":"IFERROR(IF(INDEX('SR_Cash Reconciliation_2E'!I$9:I$270,MATCH($D48,'SR_Cash Reconciliation_2E'!$B$9:$B$270,0))=\"\",\"\",INDEX('SR_Cash Reconciliation_2E'!I$9:I$270,MATCH($D48,'SR_Cash Reconciliation_2E'!$B$9:$B$270,0))),\"\")","v":""},{"$f":"IFERROR(IF(INDEX('SR_Cash Reconciliation_2E'!K$9:K$270,MATCH($D48,'SR_Cash Reconciliation_2E'!$B$9:$B$270,0))=\"\",\"\",INDEX('SR_Cash Reconciliation_2E'!K$9:K$270,MATCH($D48,'SR_Cash Reconciliation_2E'!$B$9:$B$270,0))),\"\")","v":""},{"$f":"\"\"","v":""},{"$f":"IFERROR(IF(INDEX('SR_Cash Reconciliation_2E'!N$9:N$270,MATCH($D48,'SR_Cash Reconciliation_2E'!$B$9:$B$270,0))=\"\",\"\",INDEX('SR_Cash Reconciliation_2E'!N$9:N$270,MATCH($D48,'SR_Cash Reconciliation_2E'!$B$9:$B$270,0))),\"\")","v":""}]
[null,null,23,"ID23",{"$f":"IFERROR(IF(INDEX('SR_Cash Reconciliation_2E'!C$9:C$270,MATCH($D49,'SR_Cash Reconciliation_2E'!$B$9:$B$270,0))=\"\",\"\",INDEX('SR_Cash Reconciliation_2E'!C$9:C$270,MATCH($D49,'SR_Cash Reconciliation_2E'!$B$9:$B$270,0))),\"\")","v":""},{"$f":"IFERROR(IF(INDEX('SR_Cash Reconciliation_2E'!D$9:D$270,MATCH($D49,'SR_Cash Reconciliation_2E'!$B$9:$B$270,0))=\"\",\"\",INDEX('SR_Cash Reconciliation_2E'!D$9:D$270,MATCH($D49,'SR_Cash Reconciliation_2E'!$B$9:$B$270,0))),\"\")","v":""},{"$f":"IFERROR(IF(INDEX('SR_Cash Reconciliation_2E'!E$9:E$270,MATCH($D49,'SR_Cash Reconciliation_2E'!$B$9:$B$270,0))=\"\",\"\",INDEX('SR_Cash Reconciliation_2E'!E$9:E$270,MATCH($D49,'SR_Cash Reconciliation_2E'!$B$9:$B$270,0))),\"\")","v":""},{"$f":"IFERROR(IF(INDEX('SR_Cash Reconciliation_2E'!F$9:F$270,MATCH($D49,'SR_Cash Reconciliation_2E'!$B$9:$B$270,0))=\"\",\"\",INDEX('SR_Cash Reconciliation_2E'!F$9:F$270,MATCH($D49,'SR_Cash Reconciliation_2E'!$B$9:$B$270,0))),\"\")","v":""},{"$f":"IFERROR(IF(INDEX('SR_Cash Reconciliation_2E'!G$9:G$270,MATCH($D49,'SR_Cash Reconciliation_2E'!$B$9:$B$270,0))=\"\",\"\",INDEX('SR_Cash Reconciliation_2E'!G$9:G$270,MATCH($D49,'SR_Cash Reconciliation_2E'!$B$9:$B$270,0))),\"\")","v":""},{"$f":"IFERROR(IF(INDEX('SR_Cash Reconciliation_2E'!H$9:H$270,MATCH($D49,'SR_Cash Reconciliation_2E'!$B$9:$B$270,0))=\"\",\"\",INDEX('SR_Cash Reconciliation_2E'!H$9:H$270,MATCH($D49,'SR_Cash Reconciliation_2E'!$B$9:$B$270,0))),\"\")","v":""},{"$f":"IFERROR(IF(INDEX('SR_Cash Reconciliation_2E'!I$9:I$270,MATCH($D49,'SR_Cash Reconciliation_2E'!$B$9:$B$270,0))=\"\",\"\",INDEX('SR_Cash Reconciliation_2E'!I$9:I$270,MATCH($D49,'SR_Cash Reconciliation_2E'!$B$9:$B$270,0))),\"\")","v":""},{"$f":"IFERROR(IF(INDEX('SR_Cash Reconciliation_2E'!K$9:K$270,MATCH($D49,'SR_Cash Reconciliation_2E'!$B$9:$B$270,0))=\"\",\"\",INDEX('SR_Cash Reconciliation_2E'!K$9:K$270,MATCH($D49,'SR_Cash Reconciliation_2E'!$B$9:$B$270,0))),\"\")","v":""},{"$f":"\"\"","v":""},{"$f":"IFERROR(IF(INDEX('SR_Cash Reconciliation_2E'!N$9:N$270,MATCH($D49,'SR_Cash Reconciliation_2E'!$B$9:$B$270,0))=\"\",\"\",INDEX('SR_Cash Reconciliation_2E'!N$9:N$270,MATCH($D49,'SR_Cash Reconciliation_2E'!$B$9:$B$270,0))),\"\")","v":""}]
[null,null,{"$error":"#VALUE!"},{"$error":"#VALUE!"},{"$f":"IFERROR(IF(INDEX('SR_Cash Reconciliation_2E'!C$9:C$270,MATCH($D50,'SR_Cash Reconciliation_2E'!$B$9:$B$270,0))=\"\",\"\",INDEX('SR_Cash Reconciliation_2E'!C$9:C$270,MATCH($D50,'SR_Cash Reconciliation_2E'!$B$9:$B$270,0))),\"\")","v":""},{"$f":"IFERROR(IF(INDEX('SR_Cash Reconciliation_2E'!D$9:D$270,MATCH($D50,'SR_Cash Reconciliation_2E'!$B$9:$B$270,0))=\"\",\"\",INDEX('SR_Cash Reconciliation_2E'!D$9:D$270,MATCH($D50,'SR_Cash Reconciliation_2E'!$B$9:$B$270,0))),\"\")","v":""},{"$f":"IFERROR(IF(INDEX('SR_Cash Reconciliation_2E'!E$9:E$270,MATCH($D50,'SR_Cash Reconciliation_2E'!$B$9:$B$270,0))=\"\",\"\",INDEX('SR_Cash Reconciliation_2E'!E$9:E$270,MATCH($D50,'SR_Cash Reconciliation_2E'!$B$9:$B$270,0))),\"\")","v":""},{"$f":"IFERROR(IF(INDEX('SR_Cash Reconciliation_2E'!F$9:F$270,MATCH($D50,'SR_Cash Reconciliation_2E'!$B$9:$B$270,0))=\"\",\"\",INDEX('SR_Cash Reconciliation_2E'!F$9:F$270,MATCH($D50,'SR_Cash Reconciliation_2E'!$B$9:$B$270,0))),\"\")","v":""},{"$f":"IFERROR(IF(INDEX('SR_Cash Reconciliation_2E'!G$9:G$270,MATCH($D50,'SR_Cash Reconciliation_2E'!$B$9:$B$270,0))=\"\",\"\",INDEX('SR_Cash Reconciliation_2E'!G$9:G$270,MATCH($D50,'SR_Cash Reconciliation_2E'!$B$9:$B$270,0))),\"\")","v":""},{"$f":"IFERROR(IF(INDEX('SR_Cash Reconciliation_2E'!H$9:H$270,MATCH($D50,'SR_Cash Reconciliation_2E'!$B$9:$B$270,0))=\"\",\"\",INDEX('SR_Cash Reconciliation_2E'!H$9:H$270,MATCH($D50,'SR_Cash Reconciliation_2E'!$B$9:$B$270,0))),\"\")","v":""},{"$f":"IFERROR(IF(INDEX('SR_Cash Reconciliation_2E'!I$9:I$270,MATCH($D50,'SR_Cash Reconciliation_2E'!$B$9:$B$270,0))=\"\",\"\",INDEX('SR_Cash Reconciliation_2E'!I$9:I$270,MATCH($D50,'SR_Cash Reconciliation_2E'!$B$9:$B$270,0))),\"\")","v":""},{"$f":"IFERROR(IF(INDEX('SR_Cash Reconciliation_2E'!K$9:K$270,MATCH($D50,'SR_Cash Reconciliation_2E'!$B$9:$B$270,0))=\"\",\"\",INDEX('SR_Cash Reconciliation_2E'!K$9:K$270,MATCH($D50,'SR_Cash Reconciliation_2E'!$B$9:$B$270,0))),\"\")","v":""},{"$f":"\"\"","v":""},{"$f":"IFERROR(IF(INDEX('SR_Cash Reconciliation_2E'!N$9:N$270,MATCH($D50,'SR_Cash Reconciliation_2E'!$B$9:$B$270,0))=\"\",\"\",INDEX('SR_Cash Reconciliation_2E'!N$9:N$270,MATCH($D50,'SR_Cash Reconciliation_2E'!$B$9:$B$270,0))),\"\")","v":""}]
[null,null,24,"ID24",{"$f":"IFERROR(IF(INDEX('SR_Cash Reconciliation_2E'!C$9:C$270,MATCH($D51,'SR_Cash Reconciliation_2E'!$B$9:$B$270,0))=\"\",\"\",INDEX('SR_Cash Reconciliation_2E'!C$9:C$270,MATCH($D51,'SR_Cash Reconciliation_2E'!$B$9:$B$270,0))),\"\")","v":""},{"$f":"IFERROR(IF(INDEX('SR_Cash Reconciliation_2E'!D$9:D$270,MATCH($D51,'SR_Cash Reconciliation_2E'!$B$9:$B$270,0))=\"\",\"\",INDEX('SR_Cash Reconciliation_2E'!D$9:D$270,MATCH($D51,'SR_Cash Reconciliation_2E'!$B$9:$B$270,0))),\"\")","v":""},{"$f":"IFERROR(IF(INDEX('SR_Cash Reconciliation_2E'!E$9:E$270,MATCH($D51,'SR_Cash Reconciliation_2E'!$B$9:$B$270,0))=\"\",\"\",INDEX('SR_Cash Reconciliation_2E'!E$9:E$270,MATCH($D51,'SR_Cash Reconciliation_2E'!$B$9:$B$270,0))),\"\")","v":""},{"$f":"IFERROR(IF(INDEX('SR_Cash Reconciliation_2E'!F$9:F$270,MATCH($D51,'SR_Cash Reconciliation_2E'!$B$9:$B$270,0))=\"\",\"\",INDEX('SR_Cash Reconciliation_2E'!F$9:F$270,MATCH($D51,'SR_Cash Reconciliation_2E'!$B$9:$B$270,0))),\"\")","v":""},{"$f":"IFERROR(IF(INDEX('SR_Cash Reconciliation_2E'!G$9:G$270,MATCH($D51,'SR_Cash Reconciliation_2E'!$B$9:$B$270,0))=\"\",\"\",INDEX('SR_Cash Reconciliation_2E'!G$9:G$270,MATCH($D51,'SR_Cash Reconciliation_2E'!$B$9:$B$270,0))),\"\")","v":""},{"$f":"IFERROR(IF(INDEX('SR_Cash Reconciliation_2E'!H$9:H$270,MATCH($D51,'SR_Cash Reconciliation_2E'!$B$9:$B$270,0))=\"\",\"\",INDEX('SR_Cash Reconciliation_2E'!H$9:H$270,MATCH($D51,'SR_Cash Reconciliation_2E'!$B$9:$B$270,0))),\"\")","v":""},{"$f":"IFERROR(IF(INDEX('SR_Cash Reconciliation_2E'!I$9:I$270,MATCH($D51,'SR_Cash Reconciliation_2E'!$B$9:$B$270,0))=\"\",\"\",INDEX('SR_Cash Reconciliation_2E'!I$9:I$270,MATCH($D51,'SR_Cash Reconciliation_2E'!$B$9:$B$270,0))),\"\")","v":""},{"$f":"IFERROR(IF(INDEX('SR_Cash Reconciliation_2E'!K$9:K$270,MATCH($D51,'SR_Cash Reconciliation_2E'!$B$9:$B$270,0))=\"\",\"\",INDEX('SR_Cash Reconciliation_2E'!K$9:K$270,MATCH($D51,'SR_Cash Reconciliation_2E'!$B$9:$B$270,0))),\"\")","v":""},{"$f":"\"\"","v":""},{"$f":"IFERROR(IF(INDEX('SR_Cash Reconciliation_2E'!N$9:N$270,MATCH($D51,'SR_Cash Reconciliation_2E'!$B$9:$B$270,0))=\"\",\"\",INDEX('SR_Cash Reconciliation_2E'!N$9:N$270,MATCH($D51,'SR_Cash Reconciliation_2E'!$B$9:$B$270,0))),\"\")","v":""}]
[null,null,{"$error":"#VALUE!"},{"$error":"#VALUE!"},{"$f":"IFERROR(IF(INDEX('SR_Cash Reconciliation_2E'!C$9:C$270,MATCH($D52,'SR_Cash Reconciliation_2E'!$B$9:$B$270,0))=\"\",\"\",INDEX('SR_Cash Reconciliation_2E'!C$9:C$270,MATCH($D52,'SR_Cash Reconciliation_2E'!$B$9:$B$270,0))),\"\")","v":""},{"$f":"IFERROR(IF(INDEX('SR_Cash Reconciliation_2E'!D$9:D$270,MATCH($D52,'SR_Cash Reconciliation_2E'!$B$9:$B$270,0))=\"\",\"\",INDEX('SR_Cash Reconciliation_2E'!D$9:D$270,MATCH($D52,'SR_Cash Reconciliation_2E'!$B$9:$B$270,0))),\"\")","v":""},{"$f":"IFERROR(IF(INDEX('SR_Cash Reconciliation_2E'!E$9:E$270,MATCH($D52,'SR_Cash Reconciliation_2E'!$B$9:$B$270,0))=\"\",\"\",INDEX('SR_Cash Reconciliation_2E'!E$9:E$270,MATCH($D52,'SR_Cash Reconciliation_2E'!$B$9:$B$270,0))),\"\")","v":""},{"$f":"IFERROR(IF(INDEX('SR_Cash Reconciliation_2E'!F$9:F$270,MATCH($D52,'SR_Cash Reconciliation_2E'!$B$9:$B$270,0))=\"\",\"\",INDEX('SR_Cash Reconciliation_2E'!F$9:F$270,MATCH($D52,'SR_Cash Reconciliation_2E'!$B$9:$B$270,0))),\"\")","v":""},{"$f":"IFERROR(IF(INDEX('SR_Cash Reconciliation_2E'!G$9:G$270,MATCH($D52,'SR_Cash Reconciliation_2E'!$B$9:$B$270,0))=\"\",\"\",INDEX('SR_Cash Reconciliation_2E'!G$9:G$270,MATCH($D52,'SR_Cash Reconciliation_2E'!$B$9:$B$270,0))),\"\")","v":""},{"$f":"IFERROR(IF(INDEX('SR_Cash Reconciliation_2E'!H$9:H$270,MATCH($D52,'SR_Cash Reconciliation_2E'!$B$9:$B$270,0))=\"\",\"\",INDEX('SR_Cash Reconciliation_2E'!H$9:H$270,MATCH($D52,'SR_Cash Reconciliation_2E'!$B$9:$B$270,0))),\"\")","v":""},{"$f":"IFERROR(IF(INDEX('SR_Cash Reconciliation_2E'!I$9:I$270,MATCH($D52,'SR_Cash Reconciliation_2E'!$B$9:$B$270,0))=\"\",\"\",INDEX('SR_Cash Reconciliation_2E'!I$9:I$270,MATCH($D52,'SR_Cash Reconciliation_2E'!$B$9:$B$270,0))),\"\")","v":""},{"$f":"IFERROR(IF(INDEX('SR_Cash Reconciliation_2E'!K$9:K$270,MATCH($D52,'SR_Cash Reconciliation_2E'!$B$9:$B$270,0))=\"\",\"\",INDEX('SR_Cash Reconciliation_2E'!K$9:K$270,MATCH($D52,'SR_Cash Reconciliation_2E'!$B$9:$B$270,0))),\"\")","v":""},{"$f":"\"\"","v":""},{"$f":"IFERROR(IF(INDEX('SR_Cash Reconciliation_2E'!N$9:N$270,MATCH($D52,'SR_Cash Reconciliation_2E'!$B$9:$B$270,0))=\"\",\"\",INDEX('SR_Cash Reconciliation_2E'!N$9:N$270,MATCH($D52,'SR_Cash Reconciliation_2E'!$B$9:$B$270,0))),\"\")","v":""}]
[null,null,25,"ID25",{"$f":"IFERROR(IF(INDEX('SR_Cash Reconciliation_2E'!C$9:C$270,MATCH($D53,'SR_Cash Reconciliation_2E'!$B$9:$B$270,0))=\"\",\"\",INDEX('SR_Cash Reconciliation_2E'!C$9:C$270,MATCH($D53,'SR_Cash Reconciliation_2E'!$B$9:$B$270,0))),\"\")","v":""},{"$f":"IFERROR(IF(INDEX('SR_Cash Reconciliation_2E'!D$9:D$270,MATCH($D53,'SR_Cash Reconciliation_2E'!$B$9:$B$270,0))=\"\",\"\",INDEX('SR_Cash Reconciliation_2E'!D$9:D$270,MATCH($D53,'SR_Cash Reconciliation_2E'!$B$9:$B$270,0))),\"\")","v":""},{"$f":"IFERROR(IF(INDEX('SR_Cash Reconciliation_2E'!E$9:E$270,MATCH($D53,'SR_Cash Reconciliation_2E'!$B$9:$B$270,0))=\"\",\"\",INDEX('SR_Cash Reconciliation_2E'!E$9:E$270,MATCH($D53,'SR_Cash Reconciliation_2E'!$B$9:$B$270,0))),\"\")","v":""},{"$f":"IFERROR(IF(INDEX('SR_Cash Reconciliation_2E'!F$9:F$270,MATCH($D53,'SR_Cash Reconciliation_2E'!$B$9:$B$270,0))=\"\",\"\",INDEX('SR_Cash Reconciliation_2E'!F$9:F$270,MATCH($D53,'SR_Cash Reconciliation_2E'!$B$9:$B$270,0))),\"\")","v":""},{"$f":"IFERROR(IF(INDEX('SR_Cash Reconciliation_2E'!G$9:G$270,MATCH($D53,'SR_Cash Reconciliation_2E'!$B$9:$B$270,0))=\"\",\"\",INDEX('SR_Cash Reconciliation_2E'!G$9:G$270,MATCH($D53,'SR_Cash Reconciliation_2E'!$B$9:$B$270,0))),\"\")","v":""},{"$f":"IFERROR(IF(INDEX('SR_Cash Reconciliation_2E'!H$9:H$270,MATCH($D53,'SR_Cash Reconciliation_2E'!$B$9:$B$270,0))=\"\",\"\",INDEX('SR_Cash Reconciliation_2E'!H$9:H$270,MATCH($D53,'SR_Cash Reconciliation_2E'!$B$9:$B$270,0))),\"\")","v":""},{"$f":"IFERROR(IF(INDEX('SR_Cash Reconciliation_2E'!I$9:I$270,MATCH($D53,'SR_Cash Reconciliation_2E'!$B$9:$B$270,0))=\"\",\"\",INDEX('SR_Cash Reconciliation_2E'!I$9:I$270,MATCH($D53,'SR_Cash Reconciliation_2E'!$B$9:$B$270,0))),\"\")","v":""},{"$f":"IFERROR(IF(INDEX('SR_Cash Reconciliation_2E'!K$9:K$270,MATCH($D53,'SR_Cash Reconciliation_2E'!$B$9:$B$270,0))=\"\",\"\",INDEX('SR_Cash Reconciliation_2E'!K$9:K$270,MATCH($D53,'SR_Cash Reconciliation_2E'!$B$9:$B$270,0))),\"\")","v":""},{"$f":"\"\"","v":""},{"$f":"IFERROR(IF(INDEX('SR_Cash Reconciliation_2E'!N$9:N$270,MATCH($D53,'SR_Cash Reconciliation_2E'!$B$9:$B$270,0))=\"\",\"\",INDEX('SR_Cash Reconciliation_2E'!N$9:N$270,MATCH($D53,'SR_Cash Reconciliation_2E'!$B$9:$B$270,0))),\"\")","v":""}]
[null,null,{"$error":"#VALUE!"},{"$error":"#VALUE!"},{"$f":"IFERROR(IF(INDEX('SR_Cash Reconciliation_2E'!C$9:C$270,MATCH($D54,'SR_Cash Reconciliation_2E'!$B$9:$B$270,0))=\"\",\"\",INDEX('SR_Cash Reconciliation_2E'!C$9:C$270,MATCH($D54,'SR_Cash Reconciliation_2E'!$B$9:$B$270,0))),\"\")","v":""},{"$f":"IFERROR(IF(INDEX('SR_Cash Reconciliation_2E'!D$9:D$270,MATCH($D54,'SR_Cash Reconciliation_2E'!$B$9:$B$270,0))=\"\",\"\",INDEX('SR_Cash Reconciliation_2E'!D$9:D$270,MATCH($D54,'SR_Cash Reconciliation_2E'!$B$9:$B$270,0))),\"\")","v":""},{"$f":"IFERROR(IF(INDEX('SR_Cash Reconciliation_2E'!E$9:E$270,MATCH($D54,'SR_Cash Reconciliation_2E'!$B$9:$B$270,0))=\"\",\"\",INDEX('SR_Cash Reconciliation_2E'!E$9:E$270,MATCH($D54,'SR_Cash Reconciliation_2E'!$B$9:$B$270,0))),\"\")","v":""},{"$f":"IFERROR(IF(INDEX('SR_Cash Reconciliation_2E'!F$9:F$270,MATCH($D54,'SR_Cash Reconciliation_2E'!$B$9:$B$270,0))=\"\",\"\",INDEX('SR_Cash Reconciliation_2E'!F$9:F$270,MATCH($D54,'SR_Cash Reconciliation_2E'!$B$9:$B$270,0))),\"\")","v":""},{"$f":"IFERROR(IF(INDEX('SR_Cash Reconciliation_2E'!G$9:G$270,MATCH($D54,'SR_Cash Reconciliation_2E'!$B$9:$B$270,0))=\"\",\"\",INDEX('SR_Cash Reconciliation_2E'!G$9:G$270,MATCH($D54,'SR_Cash Reconciliation_2E'!$B$9:$B$270,0))),\"\")","v":""},{"$f":"IFERROR(IF(INDEX('SR_Cash Reconciliation_2E'!H$9:H$270,MATCH($D54,'SR_Cash Reconciliation_2E'!$B$9:$B$270,0))=\"\",\"\",INDEX('SR_Cash Reconciliation_2E'!H$9:H$270,MATCH($D54,'SR_Cash Reconciliation_2E'!$B$9:$B$270,0))),\"\")","v":""},{"$f":"IFERROR(IF(INDEX('SR_Cash Reconciliation_2E'!I$9:I$270,MATCH($D54,'SR_Cash Reconciliation_2E'!$B$9:$B$270,0))=\"\",\"\",INDEX('SR_Cash Reconciliation_2E'!I$9:I$270,MATCH($D54,'SR_Cash Reconciliation_2E'!$B$9:$B$270,0))),\"\")","v":""},{"$f":"IFERROR(IF(INDEX('SR_Cash Reconciliation_2E'!K$9:K$270,MATCH($D54,'SR_Cash Reconciliation_2E'!$B$9:$B$270,0))=\"\",\"\",INDEX('SR_Cash Reconciliation_2E'!K$9:K$270,MATCH($D54,'SR_Cash Reconciliation_2E'!$B$9:$B$270,0))),\"\")","v":""},{"$f":"\"\"","v":""},{"$f":"IFERROR(IF(INDEX('SR_Cash Reconciliation_2E'!N$9:N$270,MATCH($D54,'SR_Cash Reconciliation_2E'!$B$9:$B$270,0))=\"\",\"\",INDEX('SR_Cash Reconciliation_2E'!N$9:N$270,MATCH($D54,'SR_Cash Reconciliation_2E'!$B$9:$B$270,0))),\"\")","v":""}]
[null,null,26,"ID26",{"$f":"IFERROR(IF(INDEX('SR_Cash Reconciliation_2E'!C$9:C$270,MATCH($D55,'SR_Cash Reconciliation_2E'!$B$9:$B$270,0))=\"\",\"\",INDEX('SR_Cash Reconciliation_2E'!C$9:C$270,MATCH($D55,'SR_Cash Reconciliation_2E'!$B$9:$B$270,0))),\"\")","v":""},{"$f":"IFERROR(IF(INDEX('SR_Cash Reconciliation_2E'!D$9:D$270,MATCH($D55,'SR_Cash Reconciliation_2E'!$B$9:$B$270,0))=\"\",\"\",INDEX('SR_Cash Reconciliation_2E'!D$9:D$270,MATCH($D55,'SR_Cash Reconciliation_2E'!$B$9:$B$270,0))),\"\")","v":""},{"$f":"IFERROR(IF(INDEX('SR_Cash Reconciliation_2E'!E$9:E$270,MATCH($D55,'SR_Cash Reconciliation_2E'!$B$9:$B$270,0))=\"\",\"\",INDEX('SR_Cash Reconciliation_2E'!E$9:E$270,MATCH($D55,'SR_Cash Reconciliation_2E'!$B$9:$B$270,0))),\"\")","v":""},{"$f":"IFERROR(IF(INDEX('SR_Cash Reconciliation_2E'!F$9:F$270,MATCH($D55,'SR_Cash Reconciliation_2E'!$B$9:$B$270,0))=\"\",\"\",INDEX('SR_Cash Reconciliation_2E'!F$9:F$270,MATCH($D55,'SR_Cash Reconciliation_2E'!$B$9:$B$270,0))),\"\")","v":""},{"$f":"IFERROR(IF(INDEX('SR_Cash Reconciliation_2E'!G$9:G$270,MATCH($D55,'SR_Cash Reconciliation_2E'!$B$9:$B$270,0))=\"\",\"\",INDEX('SR_Cash Reconciliation_2E'!G$9:G$270,MATCH($D55,'SR_Cash Reconciliation_2E'!$B$9:$B$270,0))),\"\")","v":""},{"$f":"IFERROR(IF(INDEX('SR_Cash Reconciliation_2E'!H$9:H$270,MATCH($D55,'SR_Cash Reconciliation_2E'!$B$9:$B$270,0))=\"\",\"\",INDEX('SR_Cash Reconciliation_2E'!H$9:H$270,MATCH($D55,'SR_Cash Reconciliation_2E'!$B$9:$B$270,0))),\"\")","v":""},{"$f":"IFERROR(IF(INDEX('SR_Cash Reconciliation_2E'!I$9:I$270,MATCH($D55,'SR_Cash Reconciliation_2E'!$B$9:$B$270,0))=\"\",\"\",INDEX('SR_Cash Reconciliation_2E'!I$9:I$270,MATCH($D55,'SR_Cash Reconciliation_2E'!$B$9:$B$270,0))),\"\")","v":""},{"$f":"IFERROR(IF(INDEX('SR_Cash Reconciliation_2E'!K$9:K$270,MATCH($D55,'SR_Cash Reconciliation_2E'!$B$9:$B$270,0))=\"\",\"\",INDEX('SR_Cash Reconciliation_2E'!K$9:K$270,MATCH($D55,'SR_Cash Reconciliation_2E'!$B$9:$B$270,0))),\"\")","v":""},{"$f":"\"\"","v":""},{"$f":"IFERROR(IF(INDEX('SR_Cash Reconciliation_2E'!N$9:N$270,MATCH($D55,'SR_Cash Reconciliation_2E'!$B$9:$B$270,0))=\"\",\"\",INDEX('SR_Cash Reconciliation_2E'!N$9:N$270,MATCH($D55,'SR_Cash Reconciliation_2E'!$B$9:$B$270,0))),\"\")","v":""}]
[null,null,{"$error":"#VALUE!"},{"$error":"#VALUE!"},{"$f":"IFERROR(IF(INDEX('SR_Cash Reconciliation_2E'!C$9:C$270,MATCH($D56,'SR_Cash Reconciliation_2E'!$B$9:$B$270,0))=\"\",\"\",INDEX('SR_Cash Reconciliation_2E'!C$9:C$270,MATCH($D56,'SR_Cash Reconciliation_2E'!$B$9:$B$270,0))),\"\")","v":""},{"$f":"IFERROR(IF(INDEX('SR_Cash Reconciliation_2E'!D$9:D$270,MATCH($D56,'SR_Cash Reconciliation_2E'!$B$9:$B$270,0))=\"\",\"\",INDEX('SR_Cash Reconciliation_2E'!D$9:D$270,MATCH($D56,'SR_Cash Reconciliation_2E'!$B$9:$B$270,0))),\"\")","v":""},{"$f":"IFERROR(IF(INDEX('SR_Cash Reconciliation_2E'!E$9:E$270,MATCH($D56,'SR_Cash Reconciliation_2E'!$B$9:$B$270,0))=\"\",\"\",INDEX('SR_Cash Reconciliation_2E'!E$9:E$270,MATCH($D56,'SR_Cash Reconciliation_2E'!$B$9:$B$270,0))),\"\")","v":""},{"$f":"IFERROR(IF(INDEX('SR_Cash Reconciliation_2E'!F$9:F$270,MATCH($D56,'SR_Cash Reconciliation_2E'!$B$9:$B$270,0))=\"\",\"\",INDEX('SR_Cash Reconciliation_2E'!F$9:F$270,MATCH($D56,'SR_Cash Reconciliation_2E'!$B$9:$B$270,0))),\"\")","v":""},{"$f":"IFERROR(IF(INDEX('SR_Cash Reconciliation_2E'!G$9:G$270,MATCH($D56,'SR_Cash Reconciliation_2E'!$B$9:$B$270,0))=\"\",\"\",INDEX('SR_Cash Reconciliation_2E'!G$9:G$270,MATCH($D56,'SR_Cash Reconciliation_2E'!$B$9:$B$270,0))),\"\")","v":""},{"$f":"IFERROR(IF(INDEX('SR_Cash Reconciliation_2E'!H$9:H$270,MATCH($D56,'SR_Cash Reconciliation_2E'!$B$9:$B$270,0))=\"\",\"\",INDEX('SR_Cash Reconciliation_2E'!H$9:H$270,MATCH($D56,'SR_Cash Reconciliation_2E'!$B$9:$B$270,0))),\"\")","v":""},{"$f":"IFERROR(IF(INDEX('SR_Cash Reconciliation_2E'!I$9:I$270,MATCH($D56,'SR_Cash Reconciliation_2E'!$B$9:$B$270,0))=\"\",\"\",INDEX('SR_Cash Reconciliation_2E'!I$9:I$270,MATCH($D56,'SR_Cash Reconciliation_2E'!$B$9:$B$270,0))),\"\")","v":""},{"$f":"IFERROR(IF(INDEX('SR_Cash Reconciliation_2E'!K$9:K$270,MATCH($D56,'SR_Cash Reconciliation_2E'!$B$9:$B$270,0))=\"\",\"\",INDEX('SR_Cash Reconciliation_2E'!K$9:K$270,MATCH($D56,'SR_Cash Reconciliation_2E'!$B$9:$B$270,0))),\"\")","v":""},{"$f":"\"\"","v":""},{"$f":"IFERROR(IF(INDEX('SR_Cash Reconciliation_2E'!N$9:N$270,MATCH($D56,'SR_Cash Reconciliation_2E'!$B$9:$B$270,0))=\"\",\"\",INDEX('SR_Cash Reconciliation_2E'!N$9:N$270,MATCH($D56,'SR_Cash Reconciliation_2E'!$B$9:$B$270,0))),\"\")","v":""}]
[null,null,27,"ID27",{"$f":"IFERROR(IF(INDEX('SR_Cash Reconciliation_2E'!C$9:C$270,MATCH($D57,'SR_Cash Reconciliation_2E'!$B$9:$B$270,0))=\"\",\"\",INDEX('SR_Cash Reconciliation_2E'!C$9:C$270,MATCH($D57,'SR_Cash Reconciliation_2E'!$B$9:$B$270,0))),\"\")","v":""},{"$f":"IFERROR(IF(INDEX('SR_Cash Reconciliation_2E'!D$9:D$270,MATCH($D57,'SR_Cash Reconciliation_2E'!$B$9:$B$270,0))=\"\",\"\",INDEX('SR_Cash Reconciliation_2E'!D$9:D$270,MATCH($D57,'SR_Cash Reconciliation_2E'!$B$9:$B$270,0))),\"\")","v":""},{"$f":"IFERROR(IF(INDEX('SR_Cash Reconciliation_2E'!E$9:E$270,MATCH($D57,'SR_Cash Reconciliation_2E'!$B$9:$B$270,0))=\"\",\"\",INDEX('SR_Cash Reconciliation_2E'!E$9:E$270,MATCH($D57,'SR_Cash Reconciliation_2E'!$B$9:$B$270,0))),\"\")","v":""},{"$f":"IFERROR(IF(INDEX('SR_Cash Reconciliation_2E'!F$9:F$270,MATCH($D57,'SR_Cash Reconciliation_2E'!$B$9:$B$270,0))=\"\",\"\",INDEX('SR_Cash Reconciliation_2E'!F$9:F$270,MATCH($D57,'SR_Cash Reconciliation_2E'!$B$9:$B$270,0))),\"\")","v":""},{"$f":"IFERROR(IF(INDEX('SR_Cash Reconciliation_2E'!G$9:G$270,MATCH($D57,'SR_Cash Reconciliation_2E'!$B$9:$B$270,0))=\"\",\"\",INDEX('SR_Cash Reconciliation_2E'!G$9:G$270,MATCH($D57,'SR_Cash Reconciliation_2E'!$B$9:$B$270,0))),\"\")","v":""},{"$f":"IFERROR(IF(INDEX('SR_Cash Reconciliation_2E'!H$9:H$270,MATCH($D57,'SR_Cash Reconciliation_2E'!$B$9:$B$270,0))=\"\",\"\",INDEX('SR_Cash Reconciliation_2E'!H$9:H$270,MATCH($D57,'SR_Cash Reconciliation_2E'!$B$9:$B$270,0))),\"\")","v":""},{"$f":"IFERROR(IF(INDEX('SR_Cash Reconciliation_2E'!I$9:I$270,MATCH($D57,'SR_Cash Reconciliation_2E'!$B$9:$B$270,0))=\"\",\"\",INDEX('SR_Cash Reconciliation_2E'!I$9:I$270,MATCH($D57,'SR_Cash Reconciliation_2E'!$B$9:$B$270,0))),\"\")","v":""},{"$f":"IFERROR(IF(INDEX('SR_Cash Reconciliation_2E'!K$9:K$270,MATCH($D57,'SR_Cash Reconciliation_2E'!$B$9:$B$270,0))=\"\",\"\",INDEX('SR_Cash Reconciliation_2E'!K$9:K$270,MATCH($D57,'SR_Cash Reconciliation_2E'!$B$9:$B$270,0))),\"\")","v":""},{"$f":"\"\"","v":""},{"$f":"IFERROR(IF(INDEX('SR_Cash Reconciliation_2E'!N$9:N$270,MATCH($D57,'SR_Cash Reconciliation_2E'!$B$9:$B$270,0))=\"\",\"\",INDEX('SR_Cash Reconciliation_2E'!N$9:N$270,MATCH($D57,'SR_Cash Reconciliation_2E'!$B$9:$B$270,0))),\"\")","v":""}]
[null,null,{"$error":"#VALUE!"},{"$error":"#VALUE!"},{"$f":"IFERROR(IF(INDEX('SR_Cash Reconciliation_2E'!C$9:C$270,MATCH($D58,'SR_Cash Reconciliation_2E'!$B$9:$B$270,0))=\"\",\"\",INDEX('SR_Cash Reconciliation_2E'!C$9:C$270,MATCH($D58,'SR_Cash Reconciliation_2E'!$B$9:$B$270,0))),\"\")","v":""},{"$f":"IFERROR(IF(INDEX('SR_Cash Reconciliation_2E'!D$9:D$270,MATCH($D58,'SR_Cash Reconciliation_2E'!$B$9:$B$270,0))=\"\",\"\",INDEX('SR_Cash Reconciliation_2E'!D$9:D$270,MATCH($D58,'SR_Cash Reconciliation_2E'!$B$9:$B$270,0))),\"\")","v":""},{"$f":"IFERROR(IF(INDEX('SR_Cash Reconciliation_2E'!E$9:E$270,MATCH($D58,'SR_Cash Reconciliation_2E'!$B$9:$B$270,0))=\"\",\"\",INDEX('SR_Cash Reconciliation_2E'!E$9:E$270,MATCH($D58,'SR_Cash Reconciliation_2E'!$B$9:$B$270,0))),\"\")","v":""},{"$f":"IFERROR(IF(INDEX('SR_Cash Reconciliation_2E'!F$9:F$270,MATCH($D58,'SR_Cash Reconciliation_2E'!$B$9:$B$270,0))=\"\",\"\",INDEX('SR_Cash Reconciliation_2E'!F$9:F$270,MATCH($D58,'SR_Cash Reconciliation_2E'!$B$9:$B$270,0))),\"\")","v":""},{"$f":"IFERROR(IF(INDEX('SR_Cash Reconciliation_2E'!G$9:G$270,MATCH($D58,'SR_Cash Reconciliation_2E'!$B$9:$B$270,0))=\"\",\"\",INDEX('SR_Cash Reconciliation_2E'!G$9:G$270,MATCH($D58,'SR_Cash Reconciliation_2E'!$B$9:$B$270,0))),\"\")","v":""},{"$f":"IFERROR(IF(INDEX('SR_Cash Reconciliation_2E'!H$9:H$270,MATCH($D58,'SR_Cash Reconciliation_2E'!$B$9:$B$270,0))=\"\",\"\",INDEX('SR_Cash Reconciliation_2E'!H$9:H$270,MATCH($D58,'SR_Cash Reconciliation_2E'!$B$9:$B$270,0))),\"\")","v":""},{"$f":"IFERROR(IF(INDEX('SR_Cash Reconciliation_2E'!I$9:I$270,MATCH($D58,'SR_Cash Reconciliation_2E'!$B$9:$B$270,0))=\"\",\"\",INDEX('SR_Cash Reconciliation_2E'!I$9:I$270,MATCH($D58,'SR_Cash Reconciliation_2E'!$B$9:$B$270,0))),\"\")","v":""},{"$f":"IFERROR(IF(INDEX('SR_Cash Reconciliation_2E'!K$9:K$270,MATCH($D58,'SR_Cash Reconciliation_2E'!$B$9:$B$270,0))=\"\",\"\",INDEX('SR_Cash Reconciliation_2E'!K$9:K$270,MATCH($D58,'SR_Cash Reconciliation_2E'!$B$9:$B$270,0))),\"\")","v":""},{"$f":"\"\"","v":""},{"$f":"IFERROR(IF(INDEX('SR_Cash Reconciliation_2E'!N$9:N$270,MATCH($D58,'SR_Cash Reconciliation_2E'!$B$9:$B$270,0))=\"\",\"\",INDEX('SR_Cash Reconciliation_2E'!N$9:N$270,MATCH($D58,'SR_Cash Reconciliation_2E'!$B$9:$B$270,0))),\"\")","v":""}]
[null,null,28,"ID28",{"$f":"IFERROR(IF(INDEX('SR_Cash Reconciliation_2E'!C$9:C$270,MATCH($D59,'SR_Cash Reconciliation_2E'!$B$9:$B$270,0))=\"\",\"\",INDEX('SR_Cash Reconciliation_2E'!C$9:C$270,MATCH($D59,'SR_Cash Reconciliation_2E'!$B$9:$B$270,0))),\"\")","v":""},{"$f":"IFERROR(IF(INDEX('SR_Cash Reconciliation_2E'!D$9:D$270,MATCH($D59,'SR_Cash Reconciliation_2E'!$B$9:$B$270,0))=\"\",\"\",INDEX('SR_Cash Reconciliation_2E'!D$9:D$270,MATCH($D59,'SR_Cash Reconciliation_2E'!$B$9:$B$270,0))),\"\")","v":""},{"$f":"IFERROR(IF(INDEX('SR_Cash Reconciliation_2E'!E$9:E$270,MATCH($D59,'SR_Cash Reconciliation_2E'!$B$9:$B$270,0))=\"\",\"\",INDEX('SR_Cash Reconciliation_2E'!E$9:E$270,MATCH($D59,'SR_Cash Reconciliation_2E'!$B$9:$B$270,0))),\"\")","v":""},{"$f":"IFERROR(IF(INDEX('SR_Cash Reconciliation_2E'!F$9:F$270,MATCH($D59,'SR_Cash Reconciliation_2E'!$B$9:$B$270,0))=\"\",\"\",INDEX('SR_Cash Reconciliation_2E'!F$9:F$270,MATCH($D59,'SR_Cash Reconciliation_2E'!$B$9:$B$270,0))),\"\")","v":""},{"$f":"IFERROR(IF(INDEX('SR_Cash Reconciliation_2E'!G$9:G$270,MATCH($D59,'SR_Cash Reconciliation_2E'!$B$9:$B$270,0))=\"\",\"\",INDEX('SR_Cash Reconciliation_2E'!G$9:G$270,MATCH($D59,'SR_Cash Reconciliation_2E'!$B$9:$B$270,0))),\"\")","v":""},{"$f":"IFERROR(IF(INDEX('SR_Cash Reconciliation_2E'!H$9:H$270,MATCH($D59,'SR_Cash Reconciliation_2E'!$B$9:$B$270,0))=\"\",\"\",INDEX('SR_Cash Reconciliation_2E'!H$9:H$270,MATCH($D59,'SR_Cash Reconciliation_2E'!$B$9:$B$270,0))),\"\")","v":""},{"$f":"IFERROR(IF(INDEX('SR_Cash Reconciliation_2E'!I$9:I$270,MATCH($D59,'SR_Cash Reconciliation_2E'!$B$9:$B$270,0))=\"\",\"\",INDEX('SR_Cash Reconciliation_2E'!I$9:I$270,MATCH($D59,'SR_Cash Reconciliation_2E'!$B$9:$B$270,0))),\"\")","v":""},{"$f":"IFERROR(IF(INDEX('SR_Cash Reconciliation_2E'!K$9:K$270,MATCH($D59,'SR_Cash Reconciliation_2E'!$B$9:$B$270,0))=\"\",\"\",INDEX('SR_Cash Reconciliation_2E'!K$9:K$270,MATCH($D59,'SR_Cash Reconciliation_2E'!$B$9:$B$270,0))),\"\")","v":""},{"$f":"\"\"","v":""},{"$f":"IFERROR(IF(INDEX('SR_Cash Reconciliation_2E'!N$9:N$270,MATCH($D59,'SR_Cash Reconciliation_2E'!$B$9:$B$270,0))=\"\",\"\",INDEX('SR_Cash Reconciliation_2E'!N$9:N$270,MATCH($D59,'SR_Cash Reconciliation_2E'!$B$9:$B$270,0))),\"\")","v":""}]
[null,null,{"$error":"#VALUE!"},{"$error":"#VALUE!"},{"$f":"IFERROR(IF(INDEX('SR_Cash Reconciliation_2E'!C$9:C$270,MATCH($D60,'SR_Cash Reconciliation_2E'!$B$9:$B$270,0))=\"\",\"\",INDEX('SR_Cash Reconciliation_2E'!C$9:C$270,MATCH($D60,'SR_Cash Reconciliation_2E'!$B$9:$B$270,0))),\"\")","v":""},{"$f":"IFERROR(IF(INDEX('SR_Cash Reconciliation_2E'!D$9:D$270,MATCH($D60,'SR_Cash Reconciliation_2E'!$B$9:$B$270,0))=\"\",\"\",INDEX('SR_Cash Reconciliation_2E'!D$9:D$270,MATCH($D60,'SR_Cash Reconciliation_2E'!$B$9:$B$270,0))),\"\")","v":""},{"$f":"IFERROR(IF(INDEX('SR_Cash Reconciliation_2E'!E$9:E$270,MATCH($D60,'SR_Cash Reconciliation_2E'!$B$9:$B$270,0))=\"\",\"\",INDEX('SR_Cash Reconciliation_2E'!E$9:E$270,MATCH($D60,'SR_Cash Reconciliation_2E'!$B$9:$B$270,0))),\"\")","v":""},{"$f":"IFERROR(IF(INDEX('SR_Cash Reconciliation_2E'!F$9:F$270,MATCH($D60,'SR_Cash Reconciliation_2E'!$B$9:$B$270,0))=\"\",\"\",INDEX('SR_Cash Reconciliation_2E'!F$9:F$270,MATCH($D60,'SR_Cash Reconciliation_2E'!$B$9:$B$270,0))),\"\")","v":""},{"$f":"IFERROR(IF(INDEX('SR_Cash Reconciliation_2E'!G$9:G$270,MATCH($D60,'SR_Cash Reconciliation_2E'!$B$9:$B$270,0))=\"\",\"\",INDEX('SR_Cash Reconciliation_2E'!G$9:G$270,MATCH($D60,'SR_Cash Reconciliation_2E'!$B$9:$B$270,0))),\"\")","v":""},{"$f":"IFERROR(IF(INDEX('SR_Cash Reconciliation_2E'!H$9:H$270,MATCH($D60,'SR_Cash Reconciliation_2E'!$B$9:$B$270,0))=\"\",\"\",INDEX('SR_Cash Reconciliation_2E'!H$9:H$270,MATCH($D60,'SR_Cash Reconciliation_2E'!$B$9:$B$270,0))),\"\")","v":""},{"$f":"IFERROR(IF(INDEX('SR_Cash Reconciliation_2E'!I$9:I$270,MATCH($D60,'SR_Cash Reconciliation_2E'!$B$9:$B$270,0))=\"\",\"\",INDEX('SR_Cash Reconciliation_2E'!I$9:I$270,MATCH($D60,'SR_Cash Reconciliation_2E'!$B$9:$B$270,0))),\"\")","v":""},{"$f":"IFERROR(IF(INDEX('SR_Cash Reconciliation_2E'!K$9:K$270,MATCH($D60,'SR_Cash Reconciliation_2E'!$B$9:$B$270,0))=\"\",\"\",INDEX('SR_Cash Reconciliation_2E'!K$9:K$270,MATCH($D60,'SR_Cash Reconciliation_2E'!$B$9:$B$270,0))),\"\")","v":""},{"$f":"\"\"","v":""},{"$f":"IFERROR(IF(INDEX('SR_Cash Reconciliation_2E'!N$9:N$270,MATCH($D60,'SR_Cash Reconciliation_2E'!$B$9:$B$270,0))=\"\",\"\",INDEX('SR_Cash Reconciliation_2E'!N$9:N$270,MATCH($D60,'SR_Cash Reconciliation_2E'!$B$9:$B$270,0))),\"\")","v":""}]
[null,null,29,"ID29",{"$f":"IFERROR(IF(INDEX('SR_Cash Reconciliation_2E'!C$9:C$270,MATCH($D61,'SR_Cash Reconciliation_2E'!$B$9:$B$270,0))=\"\",\"\",INDEX('SR_Cash Reconciliation_2E'!C$9:C$270,MATCH($D61,'SR_Cash Reconciliation_2E'!$B$9:$B$270,0))),\"\")","v":""},{"$f":"IFERROR(IF(INDEX('SR_Cash Reconciliation_2E'!D$9:D$270,MATCH($D61,'SR_Cash Reconciliation_2E'!$B$9:$B$270,0))=\"\",\"\",INDEX('SR_Cash Reconciliation_2E'!D$9:D$270,MATCH($D61,'SR_Cash Reconciliation_2E'!$B$9:$B$270,0))),\"\")","v":""},{"$f":"IFERROR(IF(INDEX('SR_Cash Reconciliation_2E'!E$9:E$270,MATCH($D61,'SR_Cash Reconciliation_2E'!$B$9:$B$270,0))=\"\",\"\",INDEX('SR_Cash Reconciliation_2E'!E$9:E$270,MATCH($D61,'SR_Cash Reconciliation_2E'!$B$9:$B$270,0))),\"\")","v":""},{"$f":"IFERROR(IF(INDEX('SR_Cash Reconciliation_2E'!F$9:F$270,MATCH($D61,'SR_Cash Reconciliation_2E'!$B$9:$B$270,0))=\"\",\"\",INDEX('SR_Cash Reconciliation_2E'!F$9:F$270,MATCH($D61,'SR_Cash Reconciliation_2E'!$B$9:$B$270,0))),\"\")","v":""},{"$f":"IFERROR(IF(INDEX('SR_Cash Reconciliation_2E'!G$9:G$270,MATCH($D61,'SR_Cash Reconciliation_2E'!$B$9:$B$270,0))=\"\",\"\",INDEX('SR_Cash Reconciliation_2E'!G$9:G$270,MATCH($D61,'SR_Cash Reconciliation_2E'!$B$9:$B$270,0))),\"\")","v":""},{"$f":"IFERROR(IF(INDEX('SR_Cash Reconciliation_2E'!H$9:H$270,MATCH($D61,'SR_Cash Reconciliation_2E'!$B$9:$B$270,0))=\"\",\"\",INDEX('SR_Cash Reconciliation_2E'!H$9:H$270,MATCH($D61,'SR_Cash Reconciliation_2E'!$B$9:$B$270,0))),\"\")","v":""},{"$f":"IFERROR(IF(INDEX('SR_Cash Reconciliation_2E'!I$9:I$270,MATCH($D61,'SR_Cash Reconciliation_2E'!$B$9:$B$270,0))=\"\",\"\",INDEX('SR_Cash Reconciliation_2E'!I$9:I$270,MATCH($D61,'SR_Cash Reconciliation_2E'!$B$9:$B$270,0))),\"\")","v":""},{"$f":"IFERROR(IF(INDEX('SR_Cash Reconciliation_2E'!K$9:K$270,MATCH($D61,'SR_Cash Reconciliation_2E'!$B$9:$B$270,0))=\"\",\"\",INDEX('SR_Cash Reconciliation_2E'!K$9:K$270,MATCH($D61,'SR_Cash Reconciliation_2E'!$B$9:$B$270,0))),\"\")","v":""},{"$f":"\"\"","v":""},{"$f":"IFERROR(IF(INDEX('SR_Cash Reconciliation_2E'!N$9:N$270,MATCH($D61,'SR_Cash Reconciliation_2E'!$B$9:$B$270,0))=\"\",\"\",INDEX('SR_Cash Reconciliation_2E'!N$9:N$270,MATCH($D61,'SR_Cash Reconciliation_2E'!$B$9:$B$270,0))),\"\")","v":""}]
[null,null,{"$error":"#VALUE!"},{"$error":"#VALUE!"},{"$f":"IFERROR(IF(INDEX('SR_Cash Reconciliation_2E'!C$9:C$270,MATCH($D62,'SR_Cash Reconciliation_2E'!$B$9:$B$270,0))=\"\",\"\",INDEX('SR_Cash Reconciliation_2E'!C$9:C$270,MATCH($D62,'SR_Cash Reconciliation_2E'!$B$9:$B$270,0))),\"\")","v":""},{"$f":"IFERROR(IF(INDEX('SR_Cash Reconciliation_2E'!D$9:D$270,MATCH($D62,'SR_Cash Reconciliation_2E'!$B$9:$B$270,0))=\"\",\"\",INDEX('SR_Cash Reconciliation_2E'!D$9:D$270,MATCH($D62,'SR_Cash Reconciliation_2E'!$B$9:$B$270,0))),\"\")","v":""},{"$f":"IFERROR(IF(INDEX('SR_Cash Reconciliation_2E'!E$9:E$270,MATCH($D62,'SR_Cash Reconciliation_2E'!$B$9:$B$270,0))=\"\",\"\",INDEX('SR_Cash Reconciliation_2E'!E$9:E$270,MATCH($D62,'SR_Cash Reconciliation_2E'!$B$9:$B$270,0))),\"\")","v":""},{"$f":"IFERROR(IF(INDEX('SR_Cash Reconciliation_2E'!F$9:F$270,MATCH($D62,'SR_Cash Reconciliation_2E'!$B$9:$B$270,0))=\"\",\"\",INDEX('SR_Cash Reconciliation_2E'!F$9:F$270,MATCH($D62,'SR_Cash Reconciliation_2E'!$B$9:$B$270,0))),\"\")","v":""},{"$f":"IFERROR(IF(INDEX('SR_Cash Reconciliation_2E'!G$9:G$270,MATCH($D62,'SR_Cash Reconciliation_2E'!$B$9:$B$270,0))=\"\",\"\",INDEX('SR_Cash Reconciliation_2E'!G$9:G$270,MATCH($D62,'SR_Cash Reconciliation_2E'!$B$9:$B$270,0))),\"\")","v":""},{"$f":"IFERROR(IF(INDEX('SR_Cash Reconciliation_2E'!H$9:H$270,MATCH($D62,'SR_Cash Reconciliation_2E'!$B$9:$B$270,0))=\"\",\"\",INDEX('SR_Cash Reconciliation_2E'!H$9:H$270,MATCH($D62,'SR_Cash Reconciliation_2E'!$B$9:$B$270,0))),\"\")","v":""},{"$f":"IFERROR(IF(INDEX('SR_Cash Reconciliation_2E'!I$9:I$270,MATCH($D62,'SR_Cash Reconciliation_2E'!$B$9:$B$270,0))=\"\",\"\",INDEX('SR_Cash Reconciliation_2E'!I$9:I$270,MATCH($D62,'SR_Cash Reconciliation_2E'!$B$9:$B$270,0))),\"\")","v":""},{"$f":"IFERROR(IF(INDEX('SR_Cash Reconciliation_2E'!K$9:K$270,MATCH($D62,'SR_Cash Reconciliation_2E'!$B$9:$B$270,0))=\"\",\"\",INDEX('SR_Cash Reconciliation_2E'!K$9:K$270,MATCH($D62,'SR_Cash Reconciliation_2E'!$B$9:$B$270,0))),\"\")","v":""},{"$f":"\"\"","v":""},{"$f":"IFERROR(IF(INDEX('SR_Cash Reconciliation_2E'!N$9:N$270,MATCH($D62,'SR_Cash Reconciliation_2E'!$B$9:$B$270,0))=\"\",\"\",INDEX('SR_Cash Reconciliation_2E'!N$9:N$270,MATCH($D62,'SR_Cash Reconciliation_2E'!$B$9:$B$270,0))),\"\")","v":""}]
[null,null,30,"ID30",{"$f":"IFERROR(IF(INDEX('SR_Cash Reconciliation_2E'!C$9:C$270,MATCH($D63,'SR_Cash Reconciliation_2E'!$B$9:$B$270,0))=\"\",\"\",INDEX('SR_Cash Reconciliation_2E'!C$9:C$270,MATCH($D63,'SR_Cash Reconciliation_2E'!$B$9:$B$270,0))),\"\")","v":""},{"$f":"IFERROR(IF(INDEX('SR_Cash Reconciliation_2E'!D$9:D$270,MATCH($D63,'SR_Cash Reconciliation_2E'!$B$9:$B$270,0))=\"\",\"\",INDEX('SR_Cash Reconciliation_2E'!D$9:D$270,MATCH($D63,'SR_Cash Reconciliation_2E'!$B$9:$B$270,0))),\"\")","v":""},{"$f":"IFERROR(IF(INDEX('SR_Cash Reconciliation_2E'!E$9:E$270,MATCH($D63,'SR_Cash Reconciliation_2E'!$B$9:$B$270,0))=\"\",\"\",INDEX('SR_Cash Reconciliation_2E'!E$9:E$270,MATCH($D63,'SR_Cash Reconciliation_2E'!$B$9:$B$270,0))),\"\")","v":""},{"$f":"IFERROR(IF(INDEX('SR_Cash Reconciliation_2E'!F$9:F$270,MATCH($D63,'SR_Cash Reconciliation_2E'!$B$9:$B$270,0))=\"\",\"\",INDEX('SR_Cash Reconciliation_2E'!F$9:F$270,MATCH($D63,'SR_Cash Reconciliation_2E'!$B$9:$B$270,0))),\"\")","v":""},{"$f":"IFERROR(IF(INDEX('SR_Cash Reconciliation_2E'!G$9:G$270,MATCH($D63,'SR_Cash Reconciliation_2E'!$B$9:$B$270,0))=\"\",\"\",INDEX('SR_Cash Reconciliation_2E'!G$9:G$270,MATCH($D63,'SR_Cash Reconciliation_2E'!$B$9:$B$270,0))),\"\")","v":""},{"$f":"IFERROR(IF(INDEX('SR_Cash Reconciliation_2E'!H$9:H$270,MATCH($D63,'SR_Cash Reconciliation_2E'!$B$9:$B$270,0))=\"\",\"\",INDEX('SR_Cash Reconciliation_2E'!H$9:H$270,MATCH($D63,'SR_Cash Reconciliation_2E'!$B$9:$B$270,0))),\"\")","v":""},{"$f":"IFERROR(IF(INDEX('SR_Cash Reconciliation_2E'!I$9:I$270,MATCH($D63,'SR_Cash Reconciliation_2E'!$B$9:$B$270,0))=\"\",\"\",INDEX('SR_Cash Reconciliation_2E'!I$9:I$270,MATCH($D63,'SR_Cash Reconciliation_2E'!$B$9:$B$270,0))),\"\")","v":""},{"$f":"IFERROR(IF(INDEX('SR_Cash Reconciliation_2E'!K$9:K$270,MATCH($D63,'SR_Cash Reconciliation_2E'!$B$9:$B$270,0))=\"\",\"\",INDEX('SR_Cash Reconciliation_2E'!K$9:K$270,MATCH($D63,'SR_Cash Reconciliation_2E'!$B$9:$B$270,0))),\"\")","v":""},{"$f":"\"\"","v":""},{"$f":"IFERROR(IF(INDEX('SR_Cash Reconciliation_2E'!N$9:N$270,MATCH($D63,'SR_Cash Reconciliation_2E'!$B$9:$B$270,0))=\"\",\"\",INDEX('SR_Cash Reconciliation_2E'!N$9:N$270,MATCH($D63,'SR_Cash Reconciliation_2E'!$B$9:$B$270,0))),\"\")","v":""}]
[null,null,{"$error":"#VALUE!"},{"$error":"#VALUE!"},{"$f":"IFERROR(IF(INDEX('SR_Cash Reconciliation_2E'!C$9:C$270,MATCH($D64,'SR_Cash Reconciliation_2E'!$B$9:$B$270,0))=\"\",\"\",INDEX('SR_Cash Reconciliation_2E'!C$9:C$270,MATCH($D64,'SR_Cash Reconciliation_2E'!$B$9:$B$270,0))),\"\")","v":""},{"$f":"IFERROR(IF(INDEX('SR_Cash Reconciliation_2E'!D$9:D$270,MATCH($D64,'SR_Cash Reconciliation_2E'!$B$9:$B$270,0))=\"\",\"\",INDEX('SR_Cash Reconciliation_2E'!D$9:D$270,MATCH($D64,'SR_Cash Reconciliation_2E'!$B$9:$B$270,0))),\"\")","v":""},{"$f":"IFERROR(IF(INDEX('SR_Cash Reconciliation_2E'!E$9:E$270,MATCH($D64,'SR_Cash Reconciliation_2E'!$B$9:$B$270,0))=\"\",\"\",INDEX('SR_Cash Reconciliation_2E'!E$9:E$270,MATCH($D64,'SR_Cash Reconciliation_2E'!$B$9:$B$270,0))),\"\")","v":""},{"$f":"IFERROR(IF(INDEX('SR_Cash Reconciliation_2E'!F$9:F$270,MATCH($D64,'SR_Cash Reconciliation_2E'!$B$9:$B$270,0))=\"\",\"\",INDEX('SR_Cash Reconciliation_2E'!F$9:F$270,MATCH($D64,'SR_Cash Reconciliation_2E'!$B$9:$B$270,0))),\"\")","v":""},{"$f":"IFERROR(IF(INDEX('SR_Cash Reconciliation_2E'!G$9:G$270,MATCH($D64,'SR_Cash Reconciliation_2E'!$B$9:$B$270,0))=\"\",\"\",INDEX('SR_Cash Reconciliation_2E'!G$9:G$270,MATCH($D64,'SR_Cash Reconciliation_2E'!$B$9:$B$270,0))),\"\")","v":""},{"$f":"IFERROR(IF(INDEX('SR_Cash Reconciliation_2E'!H$9:H$270,MATCH($D64,'SR_Cash Reconciliation_2E'!$B$9:$B$270,0))=\"\",\"\",INDEX('SR_Cash Reconciliation_2E'!H$9:H$270,MATCH($D64,'SR_Cash Reconciliation_2E'!$B$9:$B$270,0))),\"\")","v":""},{"$f":"IFERROR(IF(INDEX('SR_Cash Reconciliation_2E'!I$9:I$270,MATCH($D64,'SR_Cash Reconciliation_2E'!$B$9:$B$270,0))=\"\",\"\",INDEX('SR_Cash Reconciliation_2E'!I$9:I$270,MATCH($D64,'SR_Cash Reconciliation_2E'!$B$9:$B$270,0))),\"\")","v":""},{"$f":"IFERROR(IF(INDEX('SR_Cash Reconciliation_2E'!K$9:K$270,MATCH($D64,'SR_Cash Reconciliation_2E'!$B$9:$B$270,0))=\"\",\"\",INDEX('SR_Cash Reconciliation_2E'!K$9:K$270,MATCH($D64,'SR_Cash Reconciliation_2E'!$B$9:$B$270,0))),\"\")","v":""},{"$f":"\"\"","v":""},{"$f":"IFERROR(IF(INDEX('SR_Cash Reconciliation_2E'!N$9:N$270,MATCH($D64,'SR_Cash Reconciliation_2E'!$B$9:$B$270,0))=\"\",\"\",INDEX('SR_Cash Reconciliation_2E'!N$9:N$270,MATCH($D64,'SR_Cash Reconciliation_2E'!$B$9:$B$270,0))),\"\")","v":""}]
[null,null,31,"ID31",{"$f":"IFERROR(IF(INDEX('SR_Cash Reconciliation_2E'!C$9:C$270,MATCH($D65,'SR_Cash Reconciliation_2E'!$B$9:$B$270,0))=\"\",\"\",INDEX('SR_Cash Reconciliation_2E'!C$9:C$270,MATCH($D65,'SR_Cash Reconciliation_2E'!$B$9:$B$270,0))),\"\")","v":""},{"$f":"IFERROR(IF(INDEX('SR_Cash Reconciliation_2E'!D$9:D$270,MATCH($D65,'SR_Cash Reconciliation_2E'!$B$9:$B$270,0))=\"\",\"\",INDEX('SR_Cash Reconciliation_2E'!D$9:D$270,MATCH($D65,'SR_Cash Reconciliation_2E'!$B$9:$B$270,0))),\"\")","v":""},{"$f":"IFERROR(IF(INDEX('SR_Cash Reconciliation_2E'!E$9:E$270,MATCH($D65,'SR_Cash Reconciliation_2E'!$B$9:$B$270,0))=\"\",\"\",INDEX('SR_Cash Reconciliation_2E'!E$9:E$270,MATCH($D65,'SR_Cash Reconciliation_2E'!$B$9:$B$270,0))),\"\")","v":""},{"$f":"IFERROR(IF(INDEX('SR_Cash Reconciliation_2E'!F$9:F$270,MATCH($D65,'SR_Cash Reconciliation_2E'!$B$9:$B$270,0))=\"\",\"\",INDEX('SR_Cash Reconciliation_2E'!F$9:F$270,MATCH($D65,'SR_Cash Reconciliation_2E'!$B$9:$B$270,0))),\"\")","v":""},{"$f":"IFERROR(IF(INDEX('SR_Cash Reconciliation_2E'!G$9:G$270,MATCH($D65,'SR_Cash Reconciliation_2E'!$B$9:$B$270,0))=\"\",\"\",INDEX('SR_Cash Reconciliation_2E'!G$9:G$270,MATCH($D65,'SR_Cash Reconciliation_2E'!$B$9:$B$270,0))),\"\")","v":""},{"$f":"IFERROR(IF(INDEX('SR_Cash Reconciliation_2E'!H$9:H$270,MATCH($D65,'SR_Cash Reconciliation_2E'!$B$9:$B$270,0))=\"\",\"\",INDEX('SR_Cash Reconciliation_2E'!H$9:H$270,MATCH($D65,'SR_Cash Reconciliation_2E'!$B$9:$B$270,0))),\"\")","v":""},{"$f":"IFERROR(IF(INDEX('SR_Cash Reconciliation_2E'!I$9:I$270,MATCH($D65,'SR_Cash Reconciliation_2E'!$B$9:$B$270,0))=\"\",\"\",INDEX('SR_Cash Reconciliation_2E'!I$9:I$270,MATCH($D65,'SR_Cash Reconciliation_2E'!$B$9:$B$270,0))),\"\")","v":""},{"$f":"IFERROR(IF(INDEX('SR_Cash Reconciliation_2E'!K$9:K$270,MATCH($D65,'SR_Cash Reconciliation_2E'!$B$9:$B$270,0))=\"\",\"\",INDEX('SR_Cash Reconciliation_2E'!K$9:K$270,MATCH($D65,'SR_Cash Reconciliation_2E'!$B$9:$B$270,0))),\"\")","v":""},{"$f":"\"\"","v":""},{"$f":"IFERROR(IF(INDEX('SR_Cash Reconciliation_2E'!N$9:N$270,MATCH($D65,'SR_Cash Reconciliation_2E'!$B$9:$B$270,0))=\"\",\"\",INDEX('SR_Cash Reconciliation_2E'!N$9:N$270,MATCH($D65,'SR_Cash Reconciliation_2E'!$B$9:$B$270,0))),\"\")","v":""}]
[null,null,{"$error":"#VALUE!"},{"$error":"#VALUE!"},{"$f":"IFERROR(IF(INDEX('SR_Cash Reconciliation_2E'!C$9:C$270,MATCH($D66,'SR_Cash Reconciliation_2E'!$B$9:$B$270,0))=\"\",\"\",INDEX('SR_Cash Reconciliation_2E'!C$9:C$270,MATCH($D66,'SR_Cash Reconciliation_2E'!$B$9:$B$270,0))),\"\")","v":""},{"$f":"IFERROR(IF(INDEX('SR_Cash Reconciliation_2E'!D$9:D$270,MATCH($D66,'SR_Cash Reconciliation_2E'!$B$9:$B$270,0))=\"\",\"\",INDEX('SR_Cash Reconciliation_2E'!D$9:D$270,MATCH($D66,'SR_Cash Reconciliation_2E'!$B$9:$B$270,0))),\"\")","v":""},{"$f":"IFERROR(IF(INDEX('SR_Cash Reconciliation_2E'!E$9:E$270,MATCH($D66,'SR_Cash Reconciliation_2E'!$B$9:$B$270,0))=\"\",\"\",INDEX('SR_Cash Reconciliation_2E'!E$9:E$270,MATCH($D66,'SR_Cash Reconciliation_2E'!$B$9:$B$270,0))),\"\")","v":""},{"$f":"IFERROR(IF(INDEX('SR_Cash Reconciliation_2E'!F$9:F$270,MATCH($D66,'SR_Cash Reconciliation_2E'!$B$9:$B$270,0))=\"\",\"\",INDEX('SR_Cash Reconciliation_2E'!F$9:F$270,MATCH($D66,'SR_Cash Reconciliation_2E'!$B$9:$B$270,0))),\"\")","v":""},{"$f":"IFERROR(IF(INDEX('SR_Cash Reconciliation_2E'!G$9:G$270,MATCH($D66,'SR_Cash Reconciliation_2E'!$B$9:$B$270,0))=\"\",\"\",INDEX('SR_Cash Reconciliation_2E'!G$9:G$270,MATCH($D66,'SR_Cash Reconciliation_2E'!$B$9:$B$270,0))),\"\")","v":""},{"$f":"IFERROR(IF(INDEX('SR_Cash Reconciliation_2E'!H$9:H$270,MATCH($D66,'SR_Cash Reconciliation_2E'!$B$9:$B$270,0))=\"\",\"\",INDEX('SR_Cash Reconciliation_2E'!H$9:H$270,MATCH($D66,'SR_Cash Reconciliation_2E'!$B$9:$B$270,0))),\"\")","v":""},{"$f":"IFERROR(IF(INDEX('SR_Cash Reconciliation_2E'!I$9:I$270,MATCH($D66,'SR_Cash Reconciliation_2E'!$B$9:$B$270,0))=\"\",\"\",INDEX('SR_Cash Reconciliation_2E'!I$9:I$270,MATCH($D66,'SR_Cash Reconciliation_2E'!$B$9:$B$270,0))),\"\")","v":""},{"$f":"IFERROR(IF(INDEX('SR_Cash Reconciliation_2E'!K$9:K$270,MATCH($D66,'SR_Cash Reconciliation_2E'!$B$9:$B$270,0))=\"\",\"\",INDEX('SR_Cash Reconciliation_2E'!K$9:K$270,MATCH($D66,'SR_Cash Reconciliation_2E'!$B$9:$B$270,0))),\"\")","v":""},{"$f":"\"\"","v":""},{"$f":"IFERROR(IF(INDEX('SR_Cash Reconciliation_2E'!N$9:N$270,MATCH($D66,'SR_Cash Reconciliation_2E'!$B$9:$B$270,0))=\"\",\"\",INDEX('SR_Cash Reconciliation_2E'!N$9:N$270,MATCH($D66,'SR_Cash Reconciliation_2E'!$B$9:$B$270,0))),\"\")","v":""}]
[null,null,32,"ID32",{"$f":"IFERROR(IF(INDEX('SR_Cash Reconciliation_2E'!C$9:C$270,MATCH($D67,'SR_Cash Reconciliation_2E'!$B$9:$B$270,0))=\"\",\"\",INDEX('SR_Cash Reconciliation_2E'!C$9:C$270,MATCH($D67,'SR_Cash Reconciliation_2E'!$B$9:$B$270,0))),\"\")","v":""},{"$f":"IFERROR(IF(INDEX('SR_Cash Reconciliation_2E'!D$9:D$270,MATCH($D67,'SR_Cash Reconciliation_2E'!$B$9:$B$270,0))=\"\",\"\",INDEX('SR_Cash Reconciliation_2E'!D$9:D$270,MATCH($D67,'SR_Cash Reconciliation_2E'!$B$9:$B$270,0))),\"\")","v":""},{"$f":"IFERROR(IF(INDEX('SR_Cash Reconciliation_2E'!E$9:E$270,MATCH($D67,'SR_Cash Reconciliation_2E'!$B$9:$B$270,0))=\"\",\"\",INDEX('SR_Cash Reconciliation_2E'!E$9:E$270,MATCH($D67,'SR_Cash Reconciliation_2E'!$B$9:$B$270,0))),\"\")","v":""},{"$f":"IFERROR(IF(INDEX('SR_Cash Reconciliation_2E'!F$9:F$270,MATCH($D67,'SR_Cash Reconciliation_2E'!$B$9:$B$270,0))=\"\",\"\",INDEX('SR_Cash Reconciliation_2E'!F$9:F$270,MATCH($D67,'SR_Cash Reconciliation_2E'!$B$9:$B$270,0))),\"\")","v":""},{"$f":"IFERROR(IF(INDEX('SR_Cash Reconciliation_2E'!G$9:G$270,MATCH($D67,'SR_Cash Reconciliation_2E'!$B$9:$B$270,0))=\"\",\"\",INDEX('SR_Cash Reconciliation_2E'!G$9:G$270,MATCH($D67,'SR_Cash Reconciliation_2E'!$B$9:$B$270,0))),\"\")","v":""},{"$f":"IFERROR(IF(INDEX('SR_Cash Reconciliation_2E'!H$9:H$270,MATCH($D67,'SR_Cash Reconciliation_2E'!$B$9:$B$270,0))=\"\",\"\",INDEX('SR_Cash Reconciliation_2E'!H$9:H$270,MATCH($D67,'SR_Cash Reconciliation_2E'!$B$9:$B$270,0))),\"\")","v":""},{"$f":"IFERROR(IF(INDEX('SR_Cash Reconciliation_2E'!I$9:I$270,MATCH($D67,'SR_Cash Reconciliation_2E'!$B$9:$B$270,0))=\"\",\"\",INDEX('SR_Cash Reconciliation_2E'!I$9:I$270,MATCH($D67,'SR_Cash Reconciliation_2E'!$B$9:$B$270,0))),\"\")","v":""},{"$f":"IFERROR(IF(INDEX('SR_Cash Reconciliation_2E'!K$9:K$270,MATCH($D67,'SR_Cash Reconciliation_2E'!$B$9:$B$270,0))=\"\",\"\",INDEX('SR_Cash Reconciliation_2E'!K$9:K$270,MATCH($D67,'SR_Cash Reconciliation_2E'!$B$9:$B$270,0))),\"\")","v":""},{"$f":"\"\"","v":""},{"$f":"IFERROR(IF(INDEX('SR_Cash Reconciliation_2E'!N$9:N$270,MATCH($D67,'SR_Cash Reconciliation_2E'!$B$9:$B$270,0))=\"\",\"\",INDEX('SR_Cash Reconciliation_2E'!N$9:N$270,MATCH($D67,'SR_Cash Reconciliation_2E'!$B$9:$B$270,0))),\"\")","v":""}]
[null,null,{"$error":"#VALUE!"},{"$error":"#VALUE!"},{"$f":"IFERROR(IF(INDEX('SR_Cash Reconciliation_2E'!C$9:C$270,MATCH($D68,'SR_Cash Reconciliation_2E'!$B$9:$B$270,0))=\"\",\"\",INDEX('SR_Cash Reconciliation_2E'!C$9:C$270,MATCH($D68,'SR_Cash Reconciliation_2E'!$B$9:$B$270,0))),\"\")","v":""},{"$f":"IFERROR(IF(INDEX('SR_Cash Reconciliation_2E'!D$9:D$270,MATCH($D68,'SR_Cash Reconciliation_2E'!$B$9:$B$270,0))=\"\",\"\",INDEX('SR_Cash Reconciliation_2E'!D$9:D$270,MATCH($D68,'SR_Cash Reconciliation_2E'!$B$9:$B$270,0))),\"\")","v":""},{"$f":"IFERROR(IF(INDEX('SR_Cash Reconciliation_2E'!E$9:E$270,MATCH($D68,'SR_Cash Reconciliation_2E'!$B$9:$B$270,0))=\"\",\"\",INDEX('SR_Cash Reconciliation_2E'!E$9:E$270,MATCH($D68,'SR_Cash Reconciliation_2E'!$B$9:$B$270,0))),\"\")","v":""},{"$f":"IFERROR(IF(INDEX('SR_Cash Reconciliation_2E'!F$9:F$270,MATCH($D68,'SR_Cash Reconciliation_2E'!$B$9:$B$270,0))=\"\",\"\",INDEX('SR_Cash Reconciliation_2E'!F$9:F$270,MATCH($D68,'SR_Cash Reconciliation_2E'!$B$9:$B$270,0))),\"\")","v":""},{"$f":"IFERROR(IF(INDEX('SR_Cash Reconciliation_2E'!G$9:G$270,MATCH($D68,'SR_Cash Reconciliation_2E'!$B$9:$B$270,0))=\"\",\"\",INDEX('SR_Cash Reconciliation_2E'!G$9:G$270,MATCH($D68,'SR_Cash Reconciliation_2E'!$B$9:$B$270,0))),\"\")","v":""},{"$f":"IFERROR(IF(INDEX('SR_Cash Reconciliation_2E'!H$9:H$270,MATCH($D68,'SR_Cash Reconciliation_2E'!$B$9:$B$270,0))=\"\",\"\",INDEX('SR_Cash Reconciliation_2E'!H$9:H$270,MATCH($D68,'SR_Cash Reconciliation_2E'!$B$9:$B$270,0))),\"\")","v":""},{"$f":"IFERROR(IF(INDEX('SR_Cash Reconciliation_2E'!I$9:I$270,MATCH($D68,'SR_Cash Reconciliation_2E'!$B$9:$B$270,0))=\"\",\"\",INDEX('SR_Cash Reconciliation_2E'!I$9:I$270,MATCH($D68,'SR_Cash Reconciliation_2E'!$B$9:$B$270,0))),\"\")","v":""},{"$f":"IFERROR(IF(INDEX('SR_Cash Reconciliation_2E'!K$9:K$270,MATCH($D68,'SR_Cash Reconciliation_2E'!$B$9:$B$270,0))=\"\",\"\",INDEX('SR_Cash Reconciliation_2E'!K$9:K$270,MATCH($D68,'SR_Cash Reconciliation_2E'!$B$9:$B$270,0))),\"\")","v":""},{"$f":"\"\"","v":""},{"$f":"IFERROR(IF(INDEX('SR_Cash Reconciliation_2E'!N$9:N$270,MATCH($D68,'SR_Cash Reconciliation_2E'!$B$9:$B$270,0))=\"\",\"\",INDEX('SR_Cash Reconciliation_2E'!N$9:N$270,MATCH($D68,'SR_Cash Reconciliation_2E'!$B$9:$B$270,0))),\"\")","v":""}]
[null,null,33,"ID33",{"$f":"IFERROR(IF(INDEX('SR_Cash Reconciliation_2E'!C$9:C$270,MATCH($D69,'SR_Cash Reconciliation_2E'!$B$9:$B$270,0))=\"\",\"\",INDEX('SR_Cash Reconciliation_2E'!C$9:C$270,MATCH($D69,'SR_Cash Reconciliation_2E'!$B$9:$B$270,0))),\"\")","v":""},{"$f":"IFERROR(IF(INDEX('SR_Cash Reconciliation_2E'!D$9:D$270,MATCH($D69,'SR_Cash Reconciliation_2E'!$B$9:$B$270,0))=\"\",\"\",INDEX('SR_Cash Reconciliation_2E'!D$9:D$270,MATCH($D69,'SR_Cash Reconciliation_2E'!$B$9:$B$270,0))),\"\")","v":""},{"$f":"IFERROR(IF(INDEX('SR_Cash Reconciliation_2E'!E$9:E$270,MATCH($D69,'SR_Cash Reconciliation_2E'!$B$9:$B$270,0))=\"\",\"\",INDEX('SR_Cash Reconciliation_2E'!E$9:E$270,MATCH($D69,'SR_Cash Reconciliation_2E'!$B$9:$B$270,0))),\"\")","v":""},{"$f":"IFERROR(IF(INDEX('SR_Cash Reconciliation_2E'!F$9:F$270,MATCH($D69,'SR_Cash Reconciliation_2E'!$B$9:$B$270,0))=\"\",\"\",INDEX('SR_Cash Reconciliation_2E'!F$9:F$270,MATCH($D69,'SR_Cash Reconciliation_2E'!$B$9:$B$270,0))),\"\")","v":""},{"$f":"IFERROR(IF(INDEX('SR_Cash Reconciliation_2E'!G$9:G$270,MATCH($D69,'SR_Cash Reconciliation_2E'!$B$9:$B$270,0))=\"\",\"\",INDEX('SR_Cash Reconciliation_2E'!G$9:G$270,MATCH($D69,'SR_Cash Reconciliation_2E'!$B$9:$B$270,0))),\"\")","v":""},{"$f":"IFERROR(IF(INDEX('SR_Cash Reconciliation_2E'!H$9:H$270,MATCH($D69,'SR_Cash Reconciliation_2E'!$B$9:$B$270,0))=\"\",\"\",INDEX('SR_Cash Reconciliation_2E'!H$9:H$270,MATCH($D69,'SR_Cash Reconciliation_2E'!$B$9:$B$270,0))),\"\")","v":""},{"$f":"IFERROR(IF(INDEX('SR_Cash Reconciliation_2E'!I$9:I$270,MATCH($D69,'SR_Cash Reconciliation_2E'!$B$9:$B$270,0))=\"\",\"\",INDEX('SR_Cash Reconciliation_2E'!I$9:I$270,MATCH($D69,'SR_Cash Reconciliation_2E'!$B$9:$B$270,0))),\"\")","v":""},{"$f":"IFERROR(IF(INDEX('SR_Cash Reconciliation_2E'!K$9:K$270,MATCH($D69,'SR_Cash Reconciliation_2E'!$B$9:$B$270,0))=\"\",\"\",INDEX('SR_Cash Reconciliation_2E'!K$9:K$270,MATCH($D69,'SR_Cash Reconciliation_2E'!$B$9:$B$270,0))),\"\")","v":""},{"$f":"\"\"","v":""},{"$f":"IFERROR(IF(INDEX('SR_Cash Reconciliation_2E'!N$9:N$270,MATCH($D69,'SR_Cash Reconciliation_2E'!$B$9:$B$270,0))=\"\",\"\",INDEX('SR_Cash Reconciliation_2E'!N$9:N$270,MATCH($D69,'SR_Cash Reconciliation_2E'!$B$9:$B$270,0))),\"\")","v":""}]
[null,null,{"$f":"C68+1","v":{"$error":"#VALUE!"}},{"$f":"\"ID\"&C70","v":{"$error":"#VALUE!"}},{"$f":"IFERROR(IF(INDEX('SR_Cash Reconciliation_2E'!C$9:C$270,MATCH($D70,'SR_Cash Reconciliation_2E'!$B$9:$B$270,0))=\"\",\"\",INDEX('SR_Cash Reconciliation_2E'!C$9:C$270,MATCH($D70,'SR_Cash Reconciliation_2E'!$B$9:$B$270,0))),\"\")","v":""},{"$f":"IFERROR(IF(INDEX('SR_Cash Reconciliation_2E'!D$9:D$270,MATCH($D70,'SR_Cash Reconciliation_2E'!$B$9:$B$270,0))=\"\",\"\",INDEX('SR_Cash Reconciliation_2E'!D$9:D$270,MATCH($D70,'SR_Cash Reconciliation_2E'!$B$9:$B$270,0))),\"\")","v":""},{"$f":"IFERROR(IF(INDEX('SR_Cash Reconciliation_2E'!E$9:E$270,MATCH($D70,'SR_Cash Reconciliation_2E'!$B$9:$B$270,0))=\"\",\"\",INDEX('SR_Cash Reconciliation_2E'!E$9:E$270,MATCH($D70,'SR_Cash Reconciliation_2E'!$B$9:$B$270,0))),\"\")","v":""},{"$f":"IFERROR(IF(INDEX('SR_Cash Reconciliation_2E'!F$9:F$270,MATCH($D70,'SR_Cash Reconciliation_2E'!$B$9:$B$270,0))=\"\",\"\",INDEX('SR_Cash Reconciliation_2E'!F$9:F$270,MATCH($D70,'SR_Cash Reconciliation_2E'!$B$9:$B$270,0))),\"\")","v":""},{"$f":"IFERROR(IF(INDEX('SR_Cash Reconciliation_2E'!G$9:G$270,MATCH($D70,'SR_Cash Reconciliation_2E'!$B$9:$B$270,0))=\"\",\"\",INDEX('SR_Cash Reconciliation_2E'!G$9:G$270,MATCH($D70,'SR_Cash Reconciliation_2E'!$B$9:$B$270,0))),\"\")","v":""},{"$f":"IFERROR(IF(INDEX('SR_Cash Reconciliation_2E'!H$9:H$270,MATCH($D70,'SR_Cash Reconciliation_2E'!$B$9:$B$270,0))=\"\",\"\",INDEX('SR_Cash Reconciliation_2E'!H$9:H$270,MATCH($D70,'SR_Cash Reconciliation_2E'!$B$9:$B$270,0))),\"\")","v":""},{"$f":"IFERROR(IF(INDEX('SR_Cash Reconciliation_2E'!I$9:I$270,MATCH($D70,'SR_Cash Reconciliation_2E'!$B$9:$B$270,0))=\"\",\"\",INDEX('SR_Cash Reconciliation_2E'!I$9:I$270,MATCH($D70,'SR_Cash Reconciliation_2E'!$B$9:$B$270,0))),\"\")","v":""},{"$f":"IFERROR(IF(INDEX('SR_Cash Reconciliation_2E'!K$9:K$270,MATCH($D70,'SR_Cash Reconciliation_2E'!$B$9:$B$270,0))=\"\",\"\",INDEX('SR_Cash Reconciliation_2E'!K$9:K$270,MATCH($D70,'SR_Cash Reconciliation_2E'!$B$9:$B$270,0))),\"\")","v":""},{"$f":"\"\"","v":""},{"$f":"IFERROR(IF(INDEX('SR_Cash Reconciliation_2E'!N$9:N$270,MATCH($D70,'SR_Cash Reconciliation_2E'!$B$9:$B$270,0))=\"\",\"\",INDEX('SR_Cash Reconciliation_2E'!N$9:N$270,MATCH($D70,'SR_Cash Reconciliation_2E'!$B$9:$B$270,0))),\"\")","v":""}]
[null,null,34,"ID34",{"$f":"IFERROR(IF(INDEX('SR_Cash Reconciliation_2E'!C$9:C$270,MATCH($D71,'SR_Cash Reconciliation_2E'!$B$9:$B$270,0))=\"\",\"\",INDEX('SR_Cash Reconciliation_2E'!C$9:C$270,MATCH($D71,'SR_Cash Reconciliation_2E'!$B$9:$B$270,0))),\"\")","v":""},{"$f":"IFERROR(IF(INDEX('SR_Cash Reconciliation_2E'!D$9:D$270,MATCH($D71,'SR_Cash Reconciliation_2E'!$B$9:$B$270,0))=\"\",\"\",INDEX('SR_Cash Reconciliation_2E'!D$9:D$270,MATCH($D71,'SR_Cash Reconciliation_2E'!$B$9:$B$270,0))),\"\")","v":""},{"$f":"IFERROR(IF(INDEX('SR_Cash Reconciliation_2E'!E$9:E$270,MATCH($D71,'SR_Cash Reconciliation_2E'!$B$9:$B$270,0))=\"\",\"\",INDEX('SR_Cash Reconciliation_2E'!E$9:E$270,MATCH($D71,'SR_Cash Reconciliation_2E'!$B$9:$B$270,0))),\"\")","v":""},{"$f":"IFERROR(IF(INDEX('SR_Cash Reconciliation_2E'!F$9:F$270,MATCH($D71,'SR_Cash Reconciliation_2E'!$B$9:$B$270,0))=\"\",\"\",INDEX('SR_Cash Reconciliation_2E'!F$9:F$270,MATCH($D71,'SR_Cash Reconciliation_2E'!$B$9:$B$270,0))),\"\")","v":""},{"$f":"IFERROR(IF(INDEX('SR_Cash Reconciliation_2E'!G$9:G$270,MATCH($D71,'SR_Cash Reconciliation_2E'!$B$9:$B$270,0))=\"\",\"\",INDEX('SR_Cash Reconciliation_2E'!G$9:G$270,MATCH($D71,'SR_Cash Reconciliation_2E'!$B$9:$B$270,0))),\"\")","v":""},{"$f":"IFERROR(IF(INDEX('SR_Cash Reconciliation_2E'!H$9:H$270,MATCH($D71,'SR_Cash Reconciliation_2E'!$B$9:$B$270,0))=\"\",\"\",INDEX('SR_Cash Reconciliation_2E'!H$9:H$270,MATCH($D71,'SR_Cash Reconciliation_2E'!$B$9:$B$270,0))),\"\")","v":""},{"$f":"IFERROR(IF(INDEX('SR_Cash Reconciliation_2E'!I$9:I$270,MATCH($D71,'SR_Cash Reconciliation_2E'!$B$9:$B$270,0))=\"\",\"\",INDEX('SR_Cash Reconciliation_2E'!I$9:I$270,MATCH($D71,'SR_Cash Reconciliation_2E'!$B$9:$B$270,0))),\"\")","v":""},{"$f":"IFERROR(IF(INDEX('SR_Cash Reconciliation_2E'!K$9:K$270,MATCH($D71,'SR_Cash Reconciliation_2E'!$B$9:$B$270,0))=\"\",\"\",INDEX('SR_Cash Reconciliation_2E'!K$9:K$270,MATCH($D71,'SR_Cash Reconciliation_2E'!$B$9:$B$270,0))),\"\")","v":""},{"$f":"\"\"","v":""},{"$f":"IFERROR(IF(INDEX('SR_Cash Reconciliation_2E'!N$9:N$270,MATCH($D71,'SR_Cash Reconciliation_2E'!$B$9:$B$270,0))=\"\",\"\",INDEX('SR_Cash Reconciliation_2E'!N$9:N$270,MATCH($D71,'SR_Cash Reconciliation_2E'!$B$9:$B$270,0))),\"\")","v":""}]
[null,null,{"$error":"#VALUE!"},{"$error":"#VALUE!"},{"$f":"IFERROR(IF(INDEX('SR_Cash Reconciliation_2E'!C$9:C$270,MATCH($D72,'SR_Cash Reconciliation_2E'!$B$9:$B$270,0))=\"\",\"\",INDEX('SR_Cash Reconciliation_2E'!C$9:C$270,MATCH($D72,'SR_Cash Reconciliation_2E'!$B$9:$B$270,0))),\"\")","v":""},{"$f":"IFERROR(IF(INDEX('SR_Cash Reconciliation_2E'!D$9:D$270,MATCH($D72,'SR_Cash Reconciliation_2E'!$B$9:$B$270,0))=\"\",\"\",INDEX('SR_Cash Reconciliation_2E'!D$9:D$270,MATCH($D72,'SR_Cash Reconciliation_2E'!$B$9:$B$270,0))),\"\")","v":""},{"$f":"IFERROR(IF(INDEX('SR_Cash Reconciliation_2E'!E$9:E$270,MATCH($D72,'SR_Cash Reconciliation_2E'!$B$9:$B$270,0))=\"\",\"\",INDEX('SR_Cash Reconciliation_2E'!E$9:E$270,MATCH($D72,'SR_Cash Reconciliation_2E'!$B$9:$B$270,0))),\"\")","v":""},{"$f":"IFERROR(IF(INDEX('SR_Cash Reconciliation_2E'!F$9:F$270,MATCH($D72,'SR_Cash Reconciliation_2E'!$B$9:$B$270,0))=\"\",\"\",INDEX('SR_Cash Reconciliation_2E'!F$9:F$270,MATCH($D72,'SR_Cash Reconciliation_2E'!$B$9:$B$270,0))),\"\")","v":""},{"$f":"IFERROR(IF(INDEX('SR_Cash Reconciliation_2E'!G$9:G$270,MATCH($D72,'SR_Cash Reconciliation_2E'!$B$9:$B$270,0))=\"\",\"\",INDEX('SR_Cash Reconciliation_2E'!G$9:G$270,MATCH($D72,'SR_Cash Reconciliation_2E'!$B$9:$B$270,0))),\"\")","v":""},{"$f":"IFERROR(IF(INDEX('SR_Cash Reconciliation_2E'!H$9:H$270,MATCH($D72,'SR_Cash Reconciliation_2E'!$B$9:$B$270,0))=\"\",\"\",INDEX('SR_Cash Reconciliation_2E'!H$9:H$270,MATCH($D72,'SR_Cash Reconciliation_2E'!$B$9:$B$270,0))),\"\")","v":""},{"$f":"IFERROR(IF(INDEX('SR_Cash Reconciliation_2E'!I$9:I$270,MATCH($D72,'SR_Cash Reconciliation_2E'!$B$9:$B$270,0))=\"\",\"\",INDEX('SR_Cash Reconciliation_2E'!I$9:I$270,MATCH($D72,'SR_Cash Reconciliation_2E'!$B$9:$B$270,0))),\"\")","v":""},{"$f":"IFERROR(IF(INDEX('SR_Cash Reconciliation_2E'!K$9:K$270,MATCH($D72,'SR_Cash Reconciliation_2E'!$B$9:$B$270,0))=\"\",\"\",INDEX('SR_Cash Reconciliation_2E'!K$9:K$270,MATCH($D72,'SR_Cash Reconciliation_2E'!$B$9:$B$270,0))),\"\")","v":""},{"$f":"\"\"","v":""},{"$f":"IFERROR(IF(INDEX('SR_Cash Reconciliation_2E'!N$9:N$270,MATCH($D72,'SR_Cash Reconciliation_2E'!$B$9:$B$270,0))=\"\",\"\",INDEX('SR_Cash Reconciliation_2E'!N$9:N$270,MATCH($D72,'SR_Cash Reconciliation_2E'!$B$9:$B$270,0))),\"\")","v":""}]
[null,null,35,"ID35",{"$f":"IFERROR(IF(INDEX('SR_Cash Reconciliation_2E'!C$9:C$270,MATCH($D73,'SR_Cash Reconciliation_2E'!$B$9:$B$270,0))=\"\",\"\",INDEX('SR_Cash Reconciliation_2E'!C$9:C$270,MATCH($D73,'SR_Cash Reconciliation_2E'!$B$9:$B$270,0))),\"\")","v":""},{"$f":"IFERROR(IF(INDEX('SR_Cash Reconciliation_2E'!D$9:D$270,MATCH($D73,'SR_Cash Reconciliation_2E'!$B$9:$B$270,0))=\"\",\"\",INDEX('SR_Cash Reconciliation_2E'!D$9:D$270,MATCH($D73,'SR_Cash Reconciliation_2E'!$B$9:$B$270,0))),\"\")","v":""},{"$f":"IFERROR(IF(INDEX('SR_Cash Reconciliation_2E'!E$9:E$270,MATCH($D73,'SR_Cash Reconciliation_2E'!$B$9:$B$270,0))=\"\",\"\",INDEX('SR_Cash Reconciliation_2E'!E$9:E$270,MATCH($D73,'SR_Cash Reconciliation_2E'!$B$9:$B$270,0))),\"\")","v":""},{"$f":"IFERROR(IF(INDEX('SR_Cash Reconciliation_2E'!F$9:F$270,MATCH($D73,'SR_Cash Reconciliation_2E'!$B$9:$B$270,0))=\"\",\"\",INDEX('SR_Cash Reconciliation_2E'!F$9:F$270,MATCH($D73,'SR_Cash Reconciliation_2E'!$B$9:$B$270,0))),\"\")","v":""},{"$f":"IFERROR(IF(INDEX('SR_Cash Reconciliation_2E'!G$9:G$270,MATCH($D73,'SR_Cash Reconciliation_2E'!$B$9:$B$270,0))=\"\",\"\",INDEX('SR_Cash Reconciliation_2E'!G$9:G$270,MATCH($D73,'SR_Cash Reconciliation_2E'!$B$9:$B$270,0))),\"\")","v":""},{"$f":"IFERROR(IF(INDEX('SR_Cash Reconciliation_2E'!H$9:H$270,MATCH($D73,'SR_Cash Reconciliation_2E'!$B$9:$B$270,0))=\"\",\"\",INDEX('SR_Cash Reconciliation_2E'!H$9:H$270,MATCH($D73,'SR_Cash Reconciliation_2E'!$B$9:$B$270,0))),\"\")","v":""},{"$f":"IFERROR(IF(INDEX('SR_Cash Reconciliation_2E'!I$9:I$270,MATCH($D73,'SR_Cash Reconciliation_2E'!$B$9:$B$270,0))=\"\",\"\",INDEX('SR_Cash Reconciliation_2E'!I$9:I$270,MATCH($D73,'SR_Cash Reconciliation_2E'!$B$9:$B$270,0))),\"\")","v":""},{"$f":"IFERROR(IF(INDEX('SR_Cash Reconciliation_2E'!K$9:K$270,MATCH($D73,'SR_Cash Reconciliation_2E'!$B$9:$B$270,0))=\"\",\"\",INDEX('SR_Cash Reconciliation_2E'!K$9:K$270,MATCH($D73,'SR_Cash Reconciliation_2E'!$B$9:$B$270,0))),\"\")","v":""},{"$f":"\"\"","v":""},{"$f":"IFERROR(IF(INDEX('SR_Cash Reconciliation_2E'!N$9:N$270,MATCH($D73,'SR_Cash Reconciliation_2E'!$B$9:$B$270,0))=\"\",\"\",INDEX('SR_Cash Reconciliation_2E'!N$9:N$270,MATCH($D73,'SR_Cash Reconciliation_2E'!$B$9:$B$270,0))),\"\")","v":""}]
[null,null,{"$error":"#VALUE!"},{"$error":"#VALUE!"},{"$f":"IFERROR(IF(INDEX('SR_Cash Reconciliation_2E'!C$9:C$270,MATCH($D74,'SR_Cash Reconciliation_2E'!$B$9:$B$270,0))=\"\",\"\",INDEX('SR_Cash Reconciliation_2E'!C$9:C$270,MATCH($D74,'SR_Cash Reconciliation_2E'!$B$9:$B$270,0))),\"\")","v":""},{"$f":"IFERROR(IF(INDEX('SR_Cash Reconciliation_2E'!D$9:D$270,MATCH($D74,'SR_Cash Reconciliation_2E'!$B$9:$B$270,0))=\"\",\"\",INDEX('SR_Cash Reconciliation_2E'!D$9:D$270,MATCH($D74,'SR_Cash Reconciliation_2E'!$B$9:$B$270,0))),\"\")","v":""},{"$f":"IFERROR(IF(INDEX('SR_Cash Reconciliation_2E'!E$9:E$270,MATCH($D74,'SR_Cash Reconciliation_2E'!$B$9:$B$270,0))=\"\",\"\",INDEX('SR_Cash Reconciliation_2E'!E$9:E$270,MATCH($D74,'SR_Cash Reconciliation_2E'!$B$9:$B$270,0))),\"\")","v":""},{"$f":"IFERROR(IF(INDEX('SR_Cash Reconciliation_2E'!F$9:F$270,MATCH($D74,'SR_Cash Reconciliation_2E'!$B$9:$B$270,0))=\"\",\"\",INDEX('SR_Cash Reconciliation_2E'!F$9:F$270,MATCH($D74,'SR_Cash Reconciliation_2E'!$B$9:$B$270,0))),\"\")","v":""},{"$f":"IFERROR(IF(INDEX('SR_Cash Reconciliation_2E'!G$9:G$270,MATCH($D74,'SR_Cash Reconciliation_2E'!$B$9:$B$270,0))=\"\",\"\",INDEX('SR_Cash Reconciliation_2E'!G$9:G$270,MATCH($D74,'SR_Cash Reconciliation_2E'!$B$9:$B$270,0))),\"\")","v":""},{"$f":"IFERROR(IF(INDEX('SR_Cash Reconciliation_2E'!H$9:H$270,MATCH($D74,'SR_Cash Reconciliation_2E'!$B$9:$B$270,0))=\"\",\"\",INDEX('SR_Cash Reconciliation_2E'!H$9:H$270,MATCH($D74,'SR_Cash Reconciliation_2E'!$B$9:$B$270,0))),\"\")","v":""},{"$f":"IFERROR(IF(INDEX('SR_Cash Reconciliation_2E'!I$9:I$270,MATCH($D74,'SR_Cash Reconciliation_2E'!$B$9:$B$270,0))=\"\",\"\",INDEX('SR_Cash Reconciliation_2E'!I$9:I$270,MATCH($D74,'SR_Cash Reconciliation_2E'!$B$9:$B$270,0))),\"\")","v":""},{"$f":"IFERROR(IF(INDEX('SR_Cash Reconciliation_2E'!K$9:K$270,MATCH($D74,'SR_Cash Reconciliation_2E'!$B$9:$B$270,0))=\"\",\"\",INDEX('SR_Cash Reconciliation_2E'!K$9:K$270,MATCH($D74,'SR_Cash Reconciliation_2E'!$B$9:$B$270,0))),\"\")","v":""},{"$f":"\"\"","v":""},{"$f":"IFERROR(IF(INDEX('SR_Cash Reconciliation_2E'!N$9:N$270,MATCH($D74,'SR_Cash Reconciliation_2E'!$B$9:$B$270,0))=\"\",\"\",INDEX('SR_Cash Reconciliation_2E'!N$9:N$270,MATCH($D74,'SR_Cash Reconciliation_2E'!$B$9:$B$270,0))),\"\")","v":""}]
[null,null,36,"ID36",{"$f":"IFERROR(IF(INDEX('SR_Cash Reconciliation_2E'!C$9:C$270,MATCH($D75,'SR_Cash Reconciliation_2E'!$B$9:$B$270,0))=\"\",\"\",INDEX('SR_Cash Reconciliation_2E'!C$9:C$270,MATCH($D75,'SR_Cash Reconciliation_2E'!$B$9:$B$270,0))),\"\")","v":""},{"$f":"IFERROR(IF(INDEX('SR_Cash Reconciliation_2E'!D$9:D$270,MATCH($D75,'SR_Cash Reconciliation_2E'!$B$9:$B$270,0))=\"\",\"\",INDEX('SR_Cash Reconciliation_2E'!D$9:D$270,MATCH($D75,'SR_Cash Reconciliation_2E'!$B$9:$B$270,0))),\"\")","v":""},{"$f":"IFERROR(IF(INDEX('SR_Cash Reconciliation_2E'!E$9:E$270,MATCH($D75,'SR_Cash Reconciliation_2E'!$B$9:$B$270,0))=\"\",\"\",INDEX('SR_Cash Reconciliation_2E'!E$9:E$270,MATCH($D75,'SR_Cash Reconciliation_2E'!$B$9:$B$270,0))),\"\")","v":""},{"$f":"IFERROR(IF(INDEX('SR_Cash Reconciliation_2E'!F$9:F$270,MATCH($D75,'SR_Cash Reconciliation_2E'!$B$9:$B$270,0))=\"\",\"\",INDEX('SR_Cash Reconciliation_2E'!F$9:F$270,MATCH($D75,'SR_Cash Reconciliation_2E'!$B$9:$B$270,0))),\"\")","v":""},{"$f":"IFERROR(IF(INDEX('SR_Cash Reconciliation_2E'!G$9:G$270,MATCH($D75,'SR_Cash Reconciliation_2E'!$B$9:$B$270,0))=\"\",\"\",INDEX('SR_Cash Reconciliation_2E'!G$9:G$270,MATCH($D75,'SR_Cash Reconciliation_2E'!$B$9:$B$270,0))),\"\")","v":""},{"$f":"IFERROR(IF(INDEX('SR_Cash Reconciliation_2E'!H$9:H$270,MATCH($D75,'SR_Cash Reconciliation_2E'!$B$9:$B$270,0))=\"\",\"\",INDEX('SR_Cash Reconciliation_2E'!H$9:H$270,MATCH($D75,'SR_Cash Reconciliation_2E'!$B$9:$B$270,0))),\"\")","v":""},{"$f":"IFERROR(IF(INDEX('SR_Cash Reconciliation_2E'!I$9:I$270,MATCH($D75,'SR_Cash Reconciliation_2E'!$B$9:$B$270,0))=\"\",\"\",INDEX('SR_Cash Reconciliation_2E'!I$9:I$270,MATCH($D75,'SR_Cash Reconciliation_2E'!$B$9:$B$270,0))),\"\")","v":""},{"$f":"IFERROR(IF(INDEX('SR_Cash Reconciliation_2E'!K$9:K$270,MATCH($D75,'SR_Cash Reconciliation_2E'!$B$9:$B$270,0))=\"\",\"\",INDEX('SR_Cash Reconciliation_2E'!K$9:K$270,MATCH($D75,'SR_Cash Reconciliation_2E'!$B$9:$B$270,0))),\"\")","v":""},{"$f":"\"\"","v":""},{"$f":"IFERROR(IF(INDEX('SR_Cash Reconciliation_2E'!N$9:N$270,MATCH($D75,'SR_Cash Reconciliation_2E'!$B$9:$B$270,0))=\"\",\"\",INDEX('SR_Cash Reconciliation_2E'!N$9:N$270,MATCH($D75,'SR_Cash Reconciliation_2E'!$B$9:$B$270,0))),\"\")","v":""}]
[null,null,{"$error":"#VALUE!"},{"$error":"#VALUE!"},{"$f":"IFERROR(IF(INDEX('SR_Cash Reconciliation_2E'!C$9:C$270,MATCH($D76,'SR_Cash Reconciliation_2E'!$B$9:$B$270,0))=\"\",\"\",INDEX('SR_Cash Reconciliation_2E'!C$9:C$270,MATCH($D76,'SR_Cash Reconciliation_2E'!$B$9:$B$270,0))),\"\")","v":""},{"$f":"IFERROR(IF(INDEX('SR_Cash Reconciliation_2E'!D$9:D$270,MATCH($D76,'SR_Cash Reconciliation_2E'!$B$9:$B$270,0))=\"\",\"\",INDEX('SR_Cash Reconciliation_2E'!D$9:D$270,MATCH($D76,'SR_Cash Reconciliation_2E'!$B$9:$B$270,0))),\"\")","v":""},{"$f":"IFERROR(IF(INDEX('SR_Cash Reconciliation_2E'!E$9:E$270,MATCH($D76,'SR_Cash Reconciliation_2E'!$B$9:$B$270,0))=\"\",\"\",INDEX('SR_Cash Reconciliation_2E'!E$9:E$270,MATCH($D76,'SR_Cash Reconciliation_2E'!$B$9:$B$270,0))),\"\")","v":""},{"$f":"IFERROR(IF(INDEX('SR_Cash Reconciliation_2E'!F$9:F$270,MATCH($D76,'SR_Cash Reconciliation_2E'!$B$9:$B$270,0))=\"\",\"\",INDEX('SR_Cash Reconciliation_2E'!F$9:F$270,MATCH($D76,'SR_Cash Reconciliation_2E'!$B$9:$B$270,0))),\"\")","v":""},{"$f":"IFERROR(IF(INDEX('SR_Cash Reconciliation_2E'!G$9:G$270,MATCH($D76,'SR_Cash Reconciliation_2E'!$B$9:$B$270,0))=\"\",\"\",INDEX('SR_Cash Reconciliation_2E'!G$9:G$270,MATCH($D76,'SR_Cash Reconciliation_2E'!$B$9:$B$270,0))),\"\")","v":""},{"$f":"IFERROR(IF(INDEX('SR_Cash Reconciliation_2E'!H$9:H$270,MATCH($D76,'SR_Cash Reconciliation_2E'!$B$9:$B$270,0))=\"\",\"\",INDEX('SR_Cash Reconciliation_2E'!H$9:H$270,MATCH($D76,'SR_Cash Reconciliation_2E'!$B$9:$B$270,0))),\"\")","v":""},{"$f":"IFERROR(IF(INDEX('SR_Cash Reconciliation_2E'!I$9:I$270,MATCH($D76,'SR_Cash Reconciliation_2E'!$B$9:$B$270,0))=\"\",\"\",INDEX('SR_Cash Reconciliation_2E'!I$9:I$270,MATCH($D76,'SR_Cash Reconciliation_2E'!$B$9:$B$270,0))),\"\")","v":""},{"$f":"IFERROR(IF(INDEX('SR_Cash Reconciliation_2E'!K$9:K$270,MATCH($D76,'SR_Cash Reconciliation_2E'!$B$9:$B$270,0))=\"\",\"\",INDEX('SR_Cash Reconciliation_2E'!K$9:K$270,MATCH($D76,'SR_Cash Reconciliation_2E'!$B$9:$B$270,0))),\"\")","v":""},{"$f":"\"\"","v":""},{"$f":"IFERROR(IF(INDEX('SR_Cash Reconciliation_2E'!N$9:N$270,MATCH($D76,'SR_Cash Reconciliation_2E'!$B$9:$B$270,0))=\"\",\"\",INDEX('SR_Cash Reconciliation_2E'!N$9:N$270,MATCH($D76,'SR_Cash Reconciliation_2E'!$B$9:$B$270,0))),\"\")","v":""}]
[null,null,37,"ID37",{"$f":"IFERROR(IF(INDEX('SR_Cash Reconciliation_2E'!C$9:C$270,MATCH($D77,'SR_Cash Reconciliation_2E'!$B$9:$B$270,0))=\"\",\"\",INDEX('SR_Cash Reconciliation_2E'!C$9:C$270,MATCH($D77,'SR_Cash Reconciliation_2E'!$B$9:$B$270,0))),\"\")","v":""},{"$f":"IFERROR(IF(INDEX('SR_Cash Reconciliation_2E'!D$9:D$270,MATCH($D77,'SR_Cash Reconciliation_2E'!$B$9:$B$270,0))=\"\",\"\",INDEX('SR_Cash Reconciliation_2E'!D$9:D$270,MATCH($D77,'SR_Cash Reconciliation_2E'!$B$9:$B$270,0))),\"\")","v":""},{"$f":"IFERROR(IF(INDEX('SR_Cash Reconciliation_2E'!E$9:E$270,MATCH($D77,'SR_Cash Reconciliation_2E'!$B$9:$B$270,0))=\"\",\"\",INDEX('SR_Cash Reconciliation_2E'!E$9:E$270,MATCH($D77,'SR_Cash Reconciliation_2E'!$B$9:$B$270,0))),\"\")","v":""},{"$f":"IFERROR(IF(INDEX('SR_Cash Reconciliation_2E'!F$9:F$270,MATCH($D77,'SR_Cash Reconciliation_2E'!$B$9:$B$270,0))=\"\",\"\",INDEX('SR_Cash Reconciliation_2E'!F$9:F$270,MATCH($D77,'SR_Cash Reconciliation_2E'!$B$9:$B$270,0))),\"\")","v":""},{"$f":"IFERROR(IF(INDEX('SR_Cash Reconciliation_2E'!G$9:G$270,MATCH($D77,'SR_Cash Reconciliation_2E'!$B$9:$B$270,0))=\"\",\"\",INDEX('SR_Cash Reconciliation_2E'!G$9:G$270,MATCH($D77,'SR_Cash Reconciliation_2E'!$B$9:$B$270,0))),\"\")","v":""},{"$f":"IFERROR(IF(INDEX('SR_Cash Reconciliation_2E'!H$9:H$270,MATCH($D77,'SR_Cash Reconciliation_2E'!$B$9:$B$270,0))=\"\",\"\",INDEX('SR_Cash Reconciliation_2E'!H$9:H$270,MATCH($D77,'SR_Cash Reconciliation_2E'!$B$9:$B$270,0))),\"\")","v":""},{"$f":"IFERROR(IF(INDEX('SR_Cash Reconciliation_2E'!I$9:I$270,MATCH($D77,'SR_Cash Reconciliation_2E'!$B$9:$B$270,0))=\"\",\"\",INDEX('SR_Cash Reconciliation_2E'!I$9:I$270,MATCH($D77,'SR_Cash Reconciliation_2E'!$B$9:$B$270,0))),\"\")","v":""},{"$f":"IFERROR(IF(INDEX('SR_Cash Reconciliation_2E'!K$9:K$270,MATCH($D77,'SR_Cash Reconciliation_2E'!$B$9:$B$270,0))=\"\",\"\",INDEX('SR_Cash Reconciliation_2E'!K$9:K$270,MATCH($D77,'SR_Cash Reconciliation_2E'!$B$9:$B$270,0))),\"\")","v":""},{"$f":"\"\"","v":""},{"$f":"IFERROR(IF(INDEX('SR_Cash Reconciliation_2E'!N$9:N$270,MATCH($D77,'SR_Cash Reconciliation_2E'!$B$9:$B$270,0))=\"\",\"\",INDEX('SR_Cash Reconciliation_2E'!N$9:N$270,MATCH($D77,'SR_Cash Reconciliation_2E'!$B$9:$B$270,0))),\"\")","v":""}]
[null,null,{"$error":"#VALUE!"},{"$error":"#VALUE!"},{"$f":"IFERROR(IF(INDEX('SR_Cash Reconciliation_2E'!C$9:C$270,MATCH($D78,'SR_Cash Reconciliation_2E'!$B$9:$B$270,0))=\"\",\"\",INDEX('SR_Cash Reconciliation_2E'!C$9:C$270,MATCH($D78,'SR_Cash Reconciliation_2E'!$B$9:$B$270,0))),\"\")","v":""},{"$f":"IFERROR(IF(INDEX('SR_Cash Reconciliation_2E'!D$9:D$270,MATCH($D78,'SR_Cash Reconciliation_2E'!$B$9:$B$270,0))=\"\",\"\",INDEX('SR_Cash Reconciliation_2E'!D$9:D$270,MATCH($D78,'SR_Cash Reconciliation_2E'!$B$9:$B$270,0))),\"\")","v":""},{"$f":"IFERROR(IF(INDEX('SR_Cash Reconciliation_2E'!E$9:E$270,MATCH($D78,'SR_Cash Reconciliation_2E'!$B$9:$B$270,0))=\"\",\"\",INDEX('SR_Cash Reconciliation_2E'!E$9:E$270,MATCH($D78,'SR_Cash Reconciliation_2E'!$B$9:$B$270,0))),\"\")","v":""},{"$f":"IFERROR(IF(INDEX('SR_Cash Reconciliation_2E'!F$9:F$270,MATCH($D78,'SR_Cash Reconciliation_2E'!$B$9:$B$270,0))=\"\",\"\",INDEX('SR_Cash Reconciliation_2E'!F$9:F$270,MATCH($D78,'SR_Cash Reconciliation_2E'!$B$9:$B$270,0))),\"\")","v":""},{"$f":"IFERROR(IF(INDEX('SR_Cash Reconciliation_2E'!G$9:G$270,MATCH($D78,'SR_Cash Reconciliation_2E'!$B$9:$B$270,0))=\"\",\"\",INDEX('SR_Cash Reconciliation_2E'!G$9:G$270,MATCH($D78,'SR_Cash Reconciliation_2E'!$B$9:$B$270,0))),\"\")","v":""},{"$f":"IFERROR(IF(INDEX('SR_Cash Reconciliation_2E'!H$9:H$270,MATCH($D78,'SR_Cash Reconciliation_2E'!$B$9:$B$270,0))=\"\",\"\",INDEX('SR_Cash Reconciliation_2E'!H$9:H$270,MATCH($D78,'SR_Cash Reconciliation_2E'!$B$9:$B$270,0))),\"\")","v":""},{"$f":"IFERROR(IF(INDEX('SR_Cash Reconciliation_2E'!I$9:I$270,MATCH($D78,'SR_Cash Reconciliation_2E'!$B$9:$B$270,0))=\"\",\"\",INDEX('SR_Cash Reconciliation_2E'!I$9:I$270,MATCH($D78,'SR_Cash Reconciliation_2E'!$B$9:$B$270,0))),\"\")","v":""},{"$f":"IFERROR(IF(INDEX('SR_Cash Reconciliation_2E'!K$9:K$270,MATCH($D78,'SR_Cash Reconciliation_2E'!$B$9:$B$270,0))=\"\",\"\",INDEX('SR_Cash Reconciliation_2E'!K$9:K$270,MATCH($D78,'SR_Cash Reconciliation_2E'!$B$9:$B$270,0))),\"\")","v":""},{"$f":"\"\"","v":""},{"$f":"IFERROR(IF(INDEX('SR_Cash Reconciliation_2E'!N$9:N$270,MATCH($D78,'SR_Cash Reconciliation_2E'!$B$9:$B$270,0))=\"\",\"\",INDEX('SR_Cash Reconciliation_2E'!N$9:N$270,MATCH($D78,'SR_Cash Reconciliation_2E'!$B$9:$B$270,0))),\"\")","v":""}]
[null,null,38,"ID38",{"$f":"IFERROR(IF(INDEX('SR_Cash Reconciliation_2E'!C$9:C$270,MATCH($D79,'SR_Cash Reconciliation_2E'!$B$9:$B$270,0))=\"\",\"\",INDEX('SR_Cash Reconciliation_2E'!C$9:C$270,MATCH($D79,'SR_Cash Reconciliation_2E'!$B$9:$B$270,0))),\"\")","v":""},{"$f":"IFERROR(IF(INDEX('SR_Cash Reconciliation_2E'!D$9:D$270,MATCH($D79,'SR_Cash Reconciliation_2E'!$B$9:$B$270,0))=\"\",\"\",INDEX('SR_Cash Reconciliation_2E'!D$9:D$270,MATCH($D79,'SR_Cash Reconciliation_2E'!$B$9:$B$270,0))),\"\")","v":""},{"$f":"IFERROR(IF(INDEX('SR_Cash Reconciliation_2E'!E$9:E$270,MATCH($D79,'SR_Cash Reconciliation_2E'!$B$9:$B$270,0))=\"\",\"\",INDEX('SR_Cash Reconciliation_2E'!E$9:E$270,MATCH($D79,'SR_Cash Reconciliation_2E'!$B$9:$B$270,0))),\"\")","v":""},{"$f":"IFERROR(IF(INDEX('SR_Cash Reconciliation_2E'!F$9:F$270,MATCH($D79,'SR_Cash Reconciliation_2E'!$B$9:$B$270,0))=\"\",\"\",INDEX('SR_Cash Reconciliation_2E'!F$9:F$270,MATCH($D79,'SR_Cash Reconciliation_2E'!$B$9:$B$270,0))),\"\")","v":""},{"$f":"IFERROR(IF(INDEX('SR_Cash Reconciliation_2E'!G$9:G$270,MATCH($D79,'SR_Cash Reconciliation_2E'!$B$9:$B$270,0))=\"\",\"\",INDEX('SR_Cash Reconciliation_2E'!G$9:G$270,MATCH($D79,'SR_Cash Reconciliation_2E'!$B$9:$B$270,0))),\"\")","v":""},{"$f":"IFERROR(IF(INDEX('SR_Cash Reconciliation_2E'!H$9:H$270,MATCH($D79,'SR_Cash Reconciliation_2E'!$B$9:$B$270,0))=\"\",\"\",INDEX('SR_Cash Reconciliation_2E'!H$9:H$270,MATCH($D79,'SR_Cash Reconciliation_2E'!$B$9:$B$270,0))),\"\")","v":""},{"$f":"IFERROR(IF(INDEX('SR_Cash Reconciliation_2E'!I$9:I$270,MATCH($D79,'SR_Cash Reconciliation_2E'!$B$9:$B$270,0))=\"\",\"\",INDEX('SR_Cash Reconciliation_2E'!I$9:I$270,MATCH($D79,'SR_Cash Reconciliation_2E'!$B$9:$B$270,0))),\"\")","v":""},{"$f":"IFERROR(IF(INDEX('SR_Cash Reconciliation_2E'!K$9:K$270,MATCH($D79,'SR_Cash Reconciliation_2E'!$B$9:$B$270,0))=\"\",\"\",INDEX('SR_Cash Reconciliation_2E'!K$9:K$270,MATCH($D79,'SR_Cash Reconciliation_2E'!$B$9:$B$270,0))),\"\")","v":""},{"$f":"\"\"","v":""},{"$f":"IFERROR(IF(INDEX('SR_Cash Reconciliation_2E'!N$9:N$270,MATCH($D79,'SR_Cash Reconciliation_2E'!$B$9:$B$270,0))=\"\",\"\",INDEX('SR_Cash Reconciliation_2E'!N$9:N$270,MATCH($D79,'SR_Cash Reconciliation_2E'!$B$9:$B$270,0))),\"\")","v":""}]
[null,null,{"$error":"#VALUE!"},{"$error":"#VALUE!"},{"$f":"IFERROR(IF(INDEX('SR_Cash Reconciliation_2E'!C$9:C$270,MATCH($D80,'SR_Cash Reconciliation_2E'!$B$9:$B$270,0))=\"\",\"\",INDEX('SR_Cash Reconciliation_2E'!C$9:C$270,MATCH($D80,'SR_Cash Reconciliation_2E'!$B$9:$B$270,0))),\"\")","v":""},{"$f":"IFERROR(IF(INDEX('SR_Cash Reconciliation_2E'!D$9:D$270,MATCH($D80,'SR_Cash Reconciliation_2E'!$B$9:$B$270,0))=\"\",\"\",INDEX('SR_Cash Reconciliation_2E'!D$9:D$270,MATCH($D80,'SR_Cash Reconciliation_2E'!$B$9:$B$270,0))),\"\")","v":""},{"$f":"IFERROR(IF(INDEX('SR_Cash Reconciliation_2E'!E$9:E$270,MATCH($D80,'SR_Cash Reconciliation_2E'!$B$9:$B$270,0))=\"\",\"\",INDEX('SR_Cash Reconciliation_2E'!E$9:E$270,MATCH($D80,'SR_Cash Reconciliation_2E'!$B$9:$B$270,0))),\"\")","v":""},{"$f":"IFERROR(IF(INDEX('SR_Cash Reconciliation_2E'!F$9:F$270,MATCH($D80,'SR_Cash Reconciliation_2E'!$B$9:$B$270,0))=\"\",\"\",INDEX('SR_Cash Reconciliation_2E'!F$9:F$270,MATCH($D80,'SR_Cash Reconciliation_2E'!$B$9:$B$270,0))),\"\")","v":""},{"$f":"IFERROR(IF(INDEX('SR_Cash Reconciliation_2E'!G$9:G$270,MATCH($D80,'SR_Cash Reconciliation_2E'!$B$9:$B$270,0))=\"\",\"\",INDEX('SR_Cash Reconciliation_2E'!G$9:G$270,MATCH($D80,'SR_Cash Reconciliation_2E'!$B$9:$B$270,0))),\"\")","v":""},{"$f":"IFERROR(IF(INDEX('SR_Cash Reconciliation_2E'!H$9:H$270,MATCH($D80,'SR_Cash Reconciliation_2E'!$B$9:$B$270,0))=\"\",\"\",INDEX('SR_Cash Reconciliation_2E'!H$9:H$270,MATCH($D80,'SR_Cash Reconciliation_2E'!$B$9:$B$270,0))),\"\")","v":""},{"$f":"IFERROR(IF(INDEX('SR_Cash Reconciliation_2E'!I$9:I$270,MATCH($D80,'SR_Cash Reconciliation_2E'!$B$9:$B$270,0))=\"\",\"\",INDEX('SR_Cash Reconciliation_2E'!I$9:I$270,MATCH($D80,'SR_Cash Reconciliation_2E'!$B$9:$B$270,0))),\"\")","v":""},{"$f":"IFERROR(IF(INDEX('SR_Cash Reconciliation_2E'!K$9:K$270,MATCH($D80,'SR_Cash Reconciliation_2E'!$B$9:$B$270,0))=\"\",\"\",INDEX('SR_Cash Reconciliation_2E'!K$9:K$270,MATCH($D80,'SR_Cash Reconciliation_2E'!$B$9:$B$270,0))),\"\")","v":""},{"$f":"\"\"","v":""},{"$f":"IFERROR(IF(INDEX('SR_Cash Reconciliation_2E'!N$9:N$270,MATCH($D80,'SR_Cash Reconciliation_2E'!$B$9:$B$270,0))=\"\",\"\",INDEX('SR_Cash Reconciliation_2E'!N$9:N$270,MATCH($D80,'SR_Cash Reconciliation_2E'!$B$9:$B$270,0))),\"\")","v":""}]
[null,null,39,"ID39",{"$f":"IFERROR(IF(INDEX('SR_Cash Reconciliation_2E'!C$9:C$270,MATCH($D81,'SR_Cash Reconciliation_2E'!$B$9:$B$270,0))=\"\",\"\",INDEX('SR_Cash Reconciliation_2E'!C$9:C$270,MATCH($D81,'SR_Cash Reconciliation_2E'!$B$9:$B$270,0))),\"\")","v":""},{"$f":"IFERROR(IF(INDEX('SR_Cash Reconciliation_2E'!D$9:D$270,MATCH($D81,'SR_Cash Reconciliation_2E'!$B$9:$B$270,0))=\"\",\"\",INDEX('SR_Cash Reconciliation_2E'!D$9:D$270,MATCH($D81,'SR_Cash Reconciliation_2E'!$B$9:$B$270,0))),\"\")","v":""},{"$f":"IFERROR(IF(INDEX('SR_Cash Reconciliation_2E'!E$9:E$270,MATCH($D81,'SR_Cash Reconciliation_2E'!$B$9:$B$270,0))=\"\",\"\",INDEX('SR_Cash Reconciliation_2E'!E$9:E$270,MATCH($D81,'SR_Cash Reconciliation_2E'!$B$9:$B$270,0))),\"\")","v":""},{"$f":"IFERROR(IF(INDEX('SR_Cash Reconciliation_2E'!F$9:F$270,MATCH($D81,'SR_Cash Reconciliation_2E'!$B$9:$B$270,0))=\"\",\"\",INDEX('SR_Cash Reconciliation_2E'!F$9:F$270,MATCH($D81,'SR_Cash Reconciliation_2E'!$B$9:$B$270,0))),\"\")","v":""},{"$f":"IFERROR(IF(INDEX('SR_Cash Reconciliation_2E'!G$9:G$270,MATCH($D81,'SR_Cash Reconciliation_2E'!$B$9:$B$270,0))=\"\",\"\",INDEX('SR_Cash Reconciliation_2E'!G$9:G$270,MATCH($D81,'SR_Cash Reconciliation_2E'!$B$9:$B$270,0))),\"\")","v":""},{"$f":"IFERROR(IF(INDEX('SR_Cash Reconciliation_2E'!H$9:H$270,MATCH($D81,'SR_Cash Reconciliation_2E'!$B$9:$B$270,0))=\"\",\"\",INDEX('SR_Cash Reconciliation_2E'!H$9:H$270,MATCH($D81,'SR_Cash Reconciliation_2E'!$B$9:$B$270,0))),\"\")","v":""},{"$f":"IFERROR(IF(INDEX('SR_Cash Reconciliation_2E'!I$9:I$270,MATCH($D81,'SR_Cash Reconciliation_2E'!$B$9:$B$270,0))=\"\",\"\",INDEX('SR_Cash Reconciliation_2E'!I$9:I$270,MATCH($D81,'SR_Cash Reconciliation_2E'!$B$9:$B$270,0))),\"\")","v":""},{"$f":"IFERROR(IF(INDEX('SR_Cash Reconciliation_2E'!K$9:K$270,MATCH($D81,'SR_Cash Reconciliation_2E'!$B$9:$B$270,0))=\"\",\"\",INDEX('SR_Cash Reconciliation_2E'!K$9:K$270,MATCH($D81,'SR_Cash Reconciliation_2E'!$B$9:$B$270,0))),\"\")","v":""},{"$f":"\"\"","v":""},{"$f":"IFERROR(IF(INDEX('SR_Cash Reconciliation_2E'!N$9:N$270,MATCH($D81,'SR_Cash Reconciliation_2E'!$B$9:$B$270,0))=\"\",\"\",INDEX('SR_Cash Reconciliation_2E'!N$9:N$270,MATCH($D81,'SR_Cash Reconciliation_2E'!$B$9:$B$270,0))),\"\")","v":""}]
[null,null,{"$error":"#VALUE!"},{"$error":"#VALUE!"},{"$f":"IFERROR(IF(INDEX('SR_Cash Reconciliation_2E'!C$9:C$270,MATCH($D82,'SR_Cash Reconciliation_2E'!$B$9:$B$270,0))=\"\",\"\",INDEX('SR_Cash Reconciliation_2E'!C$9:C$270,MATCH($D82,'SR_Cash Reconciliation_2E'!$B$9:$B$270,0))),\"\")","v":""},{"$f":"IFERROR(IF(INDEX('SR_Cash Reconciliation_2E'!D$9:D$270,MATCH($D82,'SR_Cash Reconciliation_2E'!$B$9:$B$270,0))=\"\",\"\",INDEX('SR_Cash Reconciliation_2E'!D$9:D$270,MATCH($D82,'SR_Cash Reconciliation_2E'!$B$9:$B$270,0))),\"\")","v":""},{"$f":"IFERROR(IF(INDEX('SR_Cash Reconciliation_2E'!E$9:E$270,MATCH($D82,'SR_Cash Reconciliation_2E'!$B$9:$B$270,0))=\"\",\"\",INDEX('SR_Cash Reconciliation_2E'!E$9:E$270,MATCH($D82,'SR_Cash Reconciliation_2E'!$B$9:$B$270,0))),\"\")","v":""},{"$f":"IFERROR(IF(INDEX('SR_Cash Reconciliation_2E'!F$9:F$270,MATCH($D82,'SR_Cash Reconciliation_2E'!$B$9:$B$270,0))=\"\",\"\",INDEX('SR_Cash Reconciliation_2E'!F$9:F$270,MATCH($D82,'SR_Cash Reconciliation_2E'!$B$9:$B$270,0))),\"\")","v":""},{"$f":"IFERROR(IF(INDEX('SR_Cash Reconciliation_2E'!G$9:G$270,MATCH($D82,'SR_Cash Reconciliation_2E'!$B$9:$B$270,0))=\"\",\"\",INDEX('SR_Cash Reconciliation_2E'!G$9:G$270,MATCH($D82,'SR_Cash Reconciliation_2E'!$B$9:$B$270,0))),\"\")","v":""},{"$f":"IFERROR(IF(INDEX('SR_Cash Reconciliation_2E'!H$9:H$270,MATCH($D82,'SR_Cash Reconciliation_2E'!$B$9:$B$270,0))=\"\",\"\",INDEX('SR_Cash Reconciliation_2E'!H$9:H$270,MATCH($D82,'SR_Cash Reconciliation_2E'!$B$9:$B$270,0))),\"\")","v":""},{"$f":"IFERROR(IF(INDEX('SR_Cash Reconciliation_2E'!I$9:I$270,MATCH($D82,'SR_Cash Reconciliation_2E'!$B$9:$B$270,0))=\"\",\"\",INDEX('SR_Cash Reconciliation_2E'!I$9:I$270,MATCH($D82,'SR_Cash Reconciliation_2E'!$B$9:$B$270,0))),\"\")","v":""},{"$f":"IFERROR(IF(INDEX('SR_Cash Reconciliation_2E'!K$9:K$270,MATCH($D82,'SR_Cash Reconciliation_2E'!$B$9:$B$270,0))=\"\",\"\",INDEX('SR_Cash Reconciliation_2E'!K$9:K$270,MATCH($D82,'SR_Cash Reconciliation_2E'!$B$9:$B$270,0))),\"\")","v":""},{"$f":"\"\"","v":""},{"$f":"IFERROR(IF(INDEX('SR_Cash Reconciliation_2E'!N$9:N$270,MATCH($D82,'SR_Cash Reconciliation_2E'!$B$9:$B$270,0))=\"\",\"\",INDEX('SR_Cash Reconciliation_2E'!N$9:N$270,MATCH($D82,'SR_Cash Reconciliation_2E'!$B$9:$B$270,0))),\"\")","v":""}]
[null,null,40,"ID40",{"$f":"IFERROR(IF(INDEX('SR_Cash Reconciliation_2E'!C$9:C$270,MATCH($D83,'SR_Cash Reconciliation_2E'!$B$9:$B$270,0))=\"\",\"\",INDEX('SR_Cash Reconciliation_2E'!C$9:C$270,MATCH($D83,'SR_Cash Reconciliation_2E'!$B$9:$B$270,0))),\"\")","v":""},{"$f":"IFERROR(IF(INDEX('SR_Cash Reconciliation_2E'!D$9:D$270,MATCH($D83,'SR_Cash Reconciliation_2E'!$B$9:$B$270,0))=\"\",\"\",INDEX('SR_Cash Reconciliation_2E'!D$9:D$270,MATCH($D83,'SR_Cash Reconciliation_2E'!$B$9:$B$270,0))),\"\")","v":""},{"$f":"IFERROR(IF(INDEX('SR_Cash Reconciliation_2E'!E$9:E$270,MATCH($D83,'SR_Cash Reconciliation_2E'!$B$9:$B$270,0))=\"\",\"\",INDEX('SR_Cash Reconciliation_2E'!E$9:E$270,MATCH($D83,'SR_Cash Reconciliation_2E'!$B$9:$B$270,0))),\"\")","v":""},{"$f":"IFERROR(IF(INDEX('SR_Cash Reconciliation_2E'!F$9:F$270,MATCH($D83,'SR_Cash Reconciliation_2E'!$B$9:$B$270,0))=\"\",\"\",INDEX('SR_Cash Reconciliation_2E'!F$9:F$270,MATCH($D83,'SR_Cash Reconciliation_2E'!$B$9:$B$270,0))),\"\")","v":""},{"$f":"IFERROR(IF(INDEX('SR_Cash Reconciliation_2E'!G$9:G$270,MATCH($D83,'SR_Cash Reconciliation_2E'!$B$9:$B$270,0))=\"\",\"\",INDEX('SR_Cash Reconciliation_2E'!G$9:G$270,MATCH($D83,'SR_Cash Reconciliation_2E'!$B$9:$B$270,0))),\"\")","v":""},{"$f":"IFERROR(IF(INDEX('SR_Cash Reconciliation_2E'!H$9:H$270,MATCH($D83,'SR_Cash Reconciliation_2E'!$B$9:$B$270,0))=\"\",\"\",INDEX('SR_Cash Reconciliation_2E'!H$9:H$270,MATCH($D83,'SR_Cash Reconciliation_2E'!$B$9:$B$270,0))),\"\")","v":""},{"$f":"IFERROR(IF(INDEX('SR_Cash Reconciliation_2E'!I$9:I$270,MATCH($D83,'SR_Cash Reconciliation_2E'!$B$9:$B$270,0))=\"\",\"\",INDEX('SR_Cash Reconciliation_2E'!I$9:I$270,MATCH($D83,'SR_Cash Reconciliation_2E'!$B$9:$B$270,0))),\"\")","v":""},{"$f":"IFERROR(IF(INDEX('SR_Cash Reconciliation_2E'!K$9:K$270,MATCH($D83,'SR_Cash Reconciliation_2E'!$B$9:$B$270,0))=\"\",\"\",INDEX('SR_Cash Reconciliation_2E'!K$9:K$270,MATCH($D83,'SR_Cash Reconciliation_2E'!$B$9:$B$270,0))),\"\")","v":""},{"$f":"\"\"","v":""},{"$f":"IFERROR(IF(INDEX('SR_Cash Reconciliation_2E'!N$9:N$270,MATCH($D83,'SR_Cash Reconciliation_2E'!$B$9:$B$270,0))=\"\",\"\",INDEX('SR_Cash Reconciliation_2E'!N$9:N$270,MATCH($D83,'SR_Cash Reconciliation_2E'!$B$9:$B$270,0))),\"\")","v":""}]
[null,null,{"$error":"#VALUE!"},{"$error":"#VALUE!"},{"$f":"IFERROR(IF(INDEX('SR_Cash Reconciliation_2E'!C$9:C$270,MATCH($D84,'SR_Cash Reconciliation_2E'!$B$9:$B$270,0))=\"\",\"\",INDEX('SR_Cash Reconciliation_2E'!C$9:C$270,MATCH($D84,'SR_Cash Reconciliation_2E'!$B$9:$B$270,0))),\"\")","v":""},{"$f":"IFERROR(IF(INDEX('SR_Cash Reconciliation_2E'!D$9:D$270,MATCH($D84,'SR_Cash Reconciliation_2E'!$B$9:$B$270,0))=\"\",\"\",INDEX('SR_Cash Reconciliation_2E'!D$9:D$270,MATCH($D84,'SR_Cash Reconciliation_2E'!$B$9:$B$270,0))),\"\")","v":""},{"$f":"IFERROR(IF(INDEX('SR_Cash Reconciliation_2E'!E$9:E$270,MATCH($D84,'SR_Cash Reconciliation_2E'!$B$9:$B$270,0))=\"\",\"\",INDEX('SR_Cash Reconciliation_2E'!E$9:E$270,MATCH($D84,'SR_Cash Reconciliation_2E'!$B$9:$B$270,0))),\"\")","v":""},{"$f":"IFERROR(IF(INDEX('SR_Cash Reconciliation_2E'!F$9:F$270,MATCH($D84,'SR_Cash Reconciliation_2E'!$B$9:$B$270,0))=\"\",\"\",INDEX('SR_Cash Reconciliation_2E'!F$9:F$270,MATCH($D84,'SR_Cash Reconciliation_2E'!$B$9:$B$270,0))),\"\")","v":""},{"$f":"IFERROR(IF(INDEX('SR_Cash Reconciliation_2E'!G$9:G$270,MATCH($D84,'SR_Cash Reconciliation_2E'!$B$9:$B$270,0))=\"\",\"\",INDEX('SR_Cash Reconciliation_2E'!G$9:G$270,MATCH($D84,'SR_Cash Reconciliation_2E'!$B$9:$B$270,0))),\"\")","v":""},{"$f":"IFERROR(IF(INDEX('SR_Cash Reconciliation_2E'!H$9:H$270,MATCH($D84,'SR_Cash Reconciliation_2E'!$B$9:$B$270,0))=\"\",\"\",INDEX('SR_Cash Reconciliation_2E'!H$9:H$270,MATCH($D84,'SR_Cash Reconciliation_2E'!$B$9:$B$270,0))),\"\")","v":""},{"$f":"IFERROR(IF(INDEX('SR_Cash Reconciliation_2E'!I$9:I$270,MATCH($D84,'SR_Cash Reconciliation_2E'!$B$9:$B$270,0))=\"\",\"\",INDEX('SR_Cash Reconciliation_2E'!I$9:I$270,MATCH($D84,'SR_Cash Reconciliation_2E'!$B$9:$B$270,0))),\"\")","v":""},{"$f":"IFERROR(IF(INDEX('SR_Cash Reconciliation_2E'!K$9:K$270,MATCH($D84,'SR_Cash Reconciliation_2E'!$B$9:$B$270,0))=\"\",\"\",INDEX('SR_Cash Reconciliation_2E'!K$9:K$270,MATCH($D84,'SR_Cash Reconciliation_2E'!$B$9:$B$270,0))),\"\")","v":""},{"$f":"\"\"","v":""},{"$f":"IFERROR(IF(INDEX('SR_Cash Reconciliation_2E'!N$9:N$270,MATCH($D84,'SR_Cash Reconciliation_2E'!$B$9:$B$270,0))=\"\",\"\",INDEX('SR_Cash Reconciliation_2E'!N$9:N$270,MATCH($D84,'SR_Cash Reconciliation_2E'!$B$9:$B$270,0))),\"\")","v":""}]
[null,null,41,"ID41",{"$f":"IFERROR(IF(INDEX('SR_Cash Reconciliation_2E'!C$9:C$270,MATCH($D85,'SR_Cash Reconciliation_2E'!$B$9:$B$270,0))=\"\",\"\",INDEX('SR_Cash Reconciliation_2E'!C$9:C$270,MATCH($D85,'SR_Cash Reconciliation_2E'!$B$9:$B$270,0))),\"\")","v":""},{"$f":"IFERROR(IF(INDEX('SR_Cash Reconciliation_2E'!D$9:D$270,MATCH($D85,'SR_Cash Reconciliation_2E'!$B$9:$B$270,0))=\"\",\"\",INDEX('SR_Cash Reconciliation_2E'!D$9:D$270,MATCH($D85,'SR_Cash Reconciliation_2E'!$B$9:$B$270,0))),\"\")","v":""},{"$f":"IFERROR(IF(INDEX('SR_Cash Reconciliation_2E'!E$9:E$270,MATCH($D85,'SR_Cash Reconciliation_2E'!$B$9:$B$270,0))=\"\",\"\",INDEX('SR_Cash Reconciliation_2E'!E$9:E$270,MATCH($D85,'SR_Cash Reconciliation_2E'!$B$9:$B$270,0))),\"\")","v":""},{"$f":"IFERROR(IF(INDEX('SR_Cash Reconciliation_2E'!F$9:F$270,MATCH($D85,'SR_Cash Reconciliation_2E'!$B$9:$B$270,0))=\"\",\"\",INDEX('SR_Cash Reconciliation_2E'!F$9:F$270,MATCH($D85,'SR_Cash Reconciliation_2E'!$B$9:$B$270,0))),\"\")","v":""},{"$f":"IFERROR(IF(INDEX('SR_Cash Reconciliation_2E'!G$9:G$270,MATCH($D85,'SR_Cash Reconciliation_2E'!$B$9:$B$270,0))=\"\",\"\",INDEX('SR_Cash Reconciliation_2E'!G$9:G$270,MATCH($D85,'SR_Cash Reconciliation_2E'!$B$9:$B$270,0))),\"\")","v":""},{"$f":"IFERROR(IF(INDEX('SR_Cash Reconciliation_2E'!H$9:H$270,MATCH($D85,'SR_Cash Reconciliation_2E'!$B$9:$B$270,0))=\"\",\"\",INDEX('SR_Cash Reconciliation_2E'!H$9:H$270,MATCH($D85,'SR_Cash Reconciliation_2E'!$B$9:$B$270,0))),\"\")","v":""},{"$f":"IFERROR(IF(INDEX('SR_Cash Reconciliation_2E'!I$9:I$270,MATCH($D85,'SR_Cash Reconciliation_2E'!$B$9:$B$270,0))=\"\",\"\",INDEX('SR_Cash Reconciliation_2E'!I$9:I$270,MATCH($D85,'SR_Cash Reconciliation_2E'!$B$9:$B$270,0))),\"\")","v":""},{"$f":"IFERROR(IF(INDEX('SR_Cash Reconciliation_2E'!K$9:K$270,MATCH($D85,'SR_Cash Reconciliation_2E'!$B$9:$B$270,0))=\"\",\"\",INDEX('SR_Cash Reconciliation_2E'!K$9:K$270,MATCH($D85,'SR_Cash Reconciliation_2E'!$B$9:$B$270,0))),\"\")","v":""},{"$f":"\"\"","v":""},{"$f":"IFERROR(IF(INDEX('SR_Cash Reconciliation_2E'!N$9:N$270,MATCH($D85,'SR_Cash Reconciliation_2E'!$B$9:$B$270,0))=\"\",\"\",INDEX('SR_Cash Reconciliation_2E'!N$9:N$270,MATCH($D85,'SR_Cash Reconciliation_2E'!$B$9:$B$270,0))),\"\")","v":""}]
[null,null,{"$error":"#VALUE!"},{"$error":"#VALUE!"},{"$f":"IFERROR(IF(INDEX('SR_Cash Reconciliation_2E'!C$9:C$270,MATCH($D86,'SR_Cash Reconciliation_2E'!$B$9:$B$270,0))=\"\",\"\",INDEX('SR_Cash Reconciliation_2E'!C$9:C$270,MATCH($D86,'SR_Cash Reconciliation_2E'!$B$9:$B$270,0))),\"\")","v":""},{"$f":"IFERROR(IF(INDEX('SR_Cash Reconciliation_2E'!D$9:D$270,MATCH($D86,'SR_Cash Reconciliation_2E'!$B$9:$B$270,0))=\"\",\"\",INDEX('SR_Cash Reconciliation_2E'!D$9:D$270,MATCH($D86,'SR_Cash Reconciliation_2E'!$B$9:$B$270,0))),\"\")","v":""},{"$f":"IFERROR(IF(INDEX('SR_Cash Reconciliation_2E'!E$9:E$270,MATCH($D86,'SR_Cash Reconciliation_2E'!$B$9:$B$270,0))=\"\",\"\",INDEX('SR_Cash Reconciliation_2E'!E$9:E$270,MATCH($D86,'SR_Cash Reconciliation_2E'!$B$9:$B$270,0))),\"\")","v":""},{"$f":"IFERROR(IF(INDEX('SR_Cash Reconciliation_2E'!F$9:F$270,MATCH($D86,'SR_Cash Reconciliation_2E'!$B$9:$B$270,0))=\"\",\"\",INDEX('SR_Cash Reconciliation_2E'!F$9:F$270,MATCH($D86,'SR_Cash Reconciliation_2E'!$B$9:$B$270,0))),\"\")","v":""},{"$f":"IFERROR(IF(INDEX('SR_Cash Reconciliation_2E'!G$9:G$270,MATCH($D86,'SR_Cash Reconciliation_2E'!$B$9:$B$270,0))=\"\",\"\",INDEX('SR_Cash Reconciliation_2E'!G$9:G$270,MATCH($D86,'SR_Cash Reconciliation_2E'!$B$9:$B$270,0))),\"\")","v":""},{"$f":"IFERROR(IF(INDEX('SR_Cash Reconciliation_2E'!H$9:H$270,MATCH($D86,'SR_Cash Reconciliation_2E'!$B$9:$B$270,0))=\"\",\"\",INDEX('SR_Cash Reconciliation_2E'!H$9:H$270,MATCH($D86,'SR_Cash Reconciliation_2E'!$B$9:$B$270,0))),\"\")","v":""},{"$f":"IFERROR(IF(INDEX('SR_Cash Reconciliation_2E'!I$9:I$270,MATCH($D86,'SR_Cash Reconciliation_2E'!$B$9:$B$270,0))=\"\",\"\",INDEX('SR_Cash Reconciliation_2E'!I$9:I$270,MATCH($D86,'SR_Cash Reconciliation_2E'!$B$9:$B$270,0))),\"\")","v":""},{"$f":"IFERROR(IF(INDEX('SR_Cash Reconciliation_2E'!K$9:K$270,MATCH($D86,'SR_Cash Reconciliation_2E'!$B$9:$B$270,0))=\"\",\"\",INDEX('SR_Cash Reconciliation_2E'!K$9:K$270,MATCH($D86,'SR_Cash Reconciliation_2E'!$B$9:$B$270,0))),\"\")","v":""},{"$f":"\"\"","v":""},{"$f":"IFERROR(IF(INDEX('SR_Cash Reconciliation_2E'!N$9:N$270,MATCH($D86,'SR_Cash Reconciliation_2E'!$B$9:$B$270,0))=\"\",\"\",INDEX('SR_Cash Reconciliation_2E'!N$9:N$270,MATCH($D86,'SR_Cash Reconciliation_2E'!$B$9:$B$270,0))),\"\")","v":""}]
[null,null,42,"ID42",{"$f":"IFERROR(IF(INDEX('SR_Cash Reconciliation_2E'!C$9:C$270,MATCH($D87,'SR_Cash Reconciliation_2E'!$B$9:$B$270,0))=\"\",\"\",INDEX('SR_Cash Reconciliation_2E'!C$9:C$270,MATCH($D87,'SR_Cash Reconciliation_2E'!$B$9:$B$270,0))),\"\")","v":""},{"$f":"IFERROR(IF(INDEX('SR_Cash Reconciliation_2E'!D$9:D$270,MATCH($D87,'SR_Cash Reconciliation_2E'!$B$9:$B$270,0))=\"\",\"\",INDEX('SR_Cash Reconciliation_2E'!D$9:D$270,MATCH($D87,'SR_Cash Reconciliation_2E'!$B$9:$B$270,0))),\"\")","v":""},{"$f":"IFERROR(IF(INDEX('SR_Cash Reconciliation_2E'!E$9:E$270,MATCH($D87,'SR_Cash Reconciliation_2E'!$B$9:$B$270,0))=\"\",\"\",INDEX('SR_Cash Reconciliation_2E'!E$9:E$270,MATCH($D87,'SR_Cash Reconciliation_2E'!$B$9:$B$270,0))),\"\")","v":""},{"$f":"IFERROR(IF(INDEX('SR_Cash Reconciliation_2E'!F$9:F$270,MATCH($D87,'SR_Cash Reconciliation_2E'!$B$9:$B$270,0))=\"\",\"\",INDEX('SR_Cash Reconciliation_2E'!F$9:F$270,MATCH($D87,'SR_Cash Reconciliation_2E'!$B$9:$B$270,0))),\"\")","v":""},{"$f":"IFERROR(IF(INDEX('SR_Cash Reconciliation_2E'!G$9:G$270,MATCH($D87,'SR_Cash Reconciliation_2E'!$B$9:$B$270,0))=\"\",\"\",INDEX('SR_Cash Reconciliation_2E'!G$9:G$270,MATCH($D87,'SR_Cash Reconciliation_2E'!$B$9:$B$270,0))),\"\")","v":""},{"$f":"IFERROR(IF(INDEX('SR_Cash Reconciliation_2E'!H$9:H$270,MATCH($D87,'SR_Cash Reconciliation_2E'!$B$9:$B$270,0))=\"\",\"\",INDEX('SR_Cash Reconciliation_2E'!H$9:H$270,MATCH($D87,'SR_Cash Reconciliation_2E'!$B$9:$B$270,0))),\"\")","v":""},{"$f":"IFERROR(IF(INDEX('SR_Cash Reconciliation_2E'!I$9:I$270,MATCH($D87,'SR_Cash Reconciliation_2E'!$B$9:$B$270,0))=\"\",\"\",INDEX('SR_Cash Reconciliation_2E'!I$9:I$270,MATCH($D87,'SR_Cash Reconciliation_2E'!$B$9:$B$270,0))),\"\")","v":""},{"$f":"IFERROR(IF(INDEX('SR_Cash Reconciliation_2E'!K$9:K$270,MATCH($D87,'SR_Cash Reconciliation_2E'!$B$9:$B$270,0))=\"\",\"\",INDEX('SR_Cash Reconciliation_2E'!K$9:K$270,MATCH($D87,'SR_Cash Reconciliation_2E'!$B$9:$B$270,0))),\"\")","v":""},{"$f":"\"\"","v":""},{"$f":"IFERROR(IF(INDEX('SR_Cash Reconciliation_2E'!N$9:N$270,MATCH($D87,'SR_Cash Reconciliation_2E'!$B$9:$B$270,0))=\"\",\"\",INDEX('SR_Cash Reconciliation_2E'!N$9:N$270,MATCH($D87,'SR_Cash Reconciliation_2E'!$B$9:$B$270,0))),\"\")","v":""}]
[null,null,{"$error":"#VALUE!"},{"$error":"#VALUE!"},{"$f":"IFERROR(IF(INDEX('SR_Cash Reconciliation_2E'!C$9:C$270,MATCH($D88,'SR_Cash Reconciliation_2E'!$B$9:$B$270,0))=\"\",\"\",INDEX('SR_Cash Reconciliation_2E'!C$9:C$270,MATCH($D88,'SR_Cash Reconciliation_2E'!$B$9:$B$270,0))),\"\")","v":""},{"$f":"IFERROR(IF(INDEX('SR_Cash Reconciliation_2E'!D$9:D$270,MATCH($D88,'SR_Cash Reconciliation_2E'!$B$9:$B$270,0))=\"\",\"\",INDEX('SR_Cash Reconciliation_2E'!D$9:D$270,MATCH($D88,'SR_Cash Reconciliation_2E'!$B$9:$B$270,0))),\"\")","v":""},{"$f":"IFERROR(IF(INDEX('SR_Cash Reconciliation_2E'!E$9:E$270,MATCH($D88,'SR_Cash Reconciliation_2E'!$B$9:$B$270,0))=\"\",\"\",INDEX('SR_Cash Reconciliation_2E'!E$9:E$270,MATCH($D88,'SR_Cash Reconciliation_2E'!$B$9:$B$270,0))),\"\")","v":""},{"$f":"IFERROR(IF(INDEX('SR_Cash Reconciliation_2E'!F$9:F$270,MATCH($D88,'SR_Cash Reconciliation_2E'!$B$9:$B$270,0))=\"\",\"\",INDEX('SR_Cash Reconciliation_2E'!F$9:F$270,MATCH($D88,'SR_Cash Reconciliation_2E'!$B$9:$B$270,0))),\"\")","v":""},{"$f":"IFERROR(IF(INDEX('SR_Cash Reconciliation_2E'!G$9:G$270,MATCH($D88,'SR_Cash Reconciliation_2E'!$B$9:$B$270,0))=\"\",\"\",INDEX('SR_Cash Reconciliation_2E'!G$9:G$270,MATCH($D88,'SR_Cash Reconciliation_2E'!$B$9:$B$270,0))),\"\")","v":""},{"$f":"IFERROR(IF(INDEX('SR_Cash Reconciliation_2E'!H$9:H$270,MATCH($D88,'SR_Cash Reconciliation_2E'!$B$9:$B$270,0))=\"\",\"\",INDEX('SR_Cash Reconciliation_2E'!H$9:H$270,MATCH($D88,'SR_Cash Reconciliation_2E'!$B$9:$B$270,0))),\"\")","v":""},{"$f":"IFERROR(IF(INDEX('SR_Cash Reconciliation_2E'!I$9:I$270,MATCH($D88,'SR_Cash Reconciliation_2E'!$B$9:$B$270,0))=\"\",\"\",INDEX('SR_Cash Reconciliation_2E'!I$9:I$270,MATCH($D88,'SR_Cash Reconciliation_2E'!$B$9:$B$270,0))),\"\")","v":""},{"$f":"IFERROR(IF(INDEX('SR_Cash Reconciliation_2E'!K$9:K$270,MATCH($D88,'SR_Cash Reconciliation_2E'!$B$9:$B$270,0))=\"\",\"\",INDEX('SR_Cash Reconciliation_2E'!K$9:K$270,MATCH($D88,'SR_Cash Reconciliation_2E'!$B$9:$B$270,0))),\"\")","v":""},{"$f":"\"\"","v":""},{"$f":"IFERROR(IF(INDEX('SR_Cash Reconciliation_2E'!N$9:N$270,MATCH($D88,'SR_Cash Reconciliation_2E'!$B$9:$B$270,0))=\"\",\"\",INDEX('SR_Cash Reconciliation_2E'!N$9:N$270,MATCH($D88,'SR_Cash Reconciliation_2E'!$B$9:$B$270,0))),\"\")","v":""}]
[null,null,43,"ID43",{"$f":"IFERROR(IF(INDEX('SR_Cash Reconciliation_2E'!C$9:C$270,MATCH($D89,'SR_Cash Reconciliation_2E'!$B$9:$B$270,0))=\"\",\"\",INDEX('SR_Cash Reconciliation_2E'!C$9:C$270,MATCH($D89,'SR_Cash Reconciliation_2E'!$B$9:$B$270,0))),\"\")","v":""},{"$f":"IFERROR(IF(INDEX('SR_Cash Reconciliation_2E'!D$9:D$270,MATCH($D89,'SR_Cash Reconciliation_2E'!$B$9:$B$270,0))=\"\",\"\",INDEX('SR_Cash Reconciliation_2E'!D$9:D$270,MATCH($D89,'SR_Cash Reconciliation_2E'!$B$9:$B$270,0))),\"\")","v":""},{"$f":"IFERROR(IF(INDEX('SR_Cash Reconciliation_2E'!E$9:E$270,MATCH($D89,'SR_Cash Reconciliation_2E'!$B$9:$B$270,0))=\"\",\"\",INDEX('SR_Cash Reconciliation_2E'!E$9:E$270,MATCH($D89,'SR_Cash Reconciliation_2E'!$B$9:$B$270,0))),\"\")","v":""},{"$f":"IFERROR(IF(INDEX('SR_Cash Reconciliation_2E'!F$9:F$270,MATCH($D89,'SR_Cash Reconciliation_2E'!$B$9:$B$270,0))=\"\",\"\",INDEX('SR_Cash Reconciliation_2E'!F$9:F$270,MATCH($D89,'SR_Cash Reconciliation_2E'!$B$9:$B$270,0))),\"\")","v":""},{"$f":"IFERROR(IF(INDEX('SR_Cash Reconciliation_2E'!G$9:G$270,MATCH($D89,'SR_Cash Reconciliation_2E'!$B$9:$B$270,0))=\"\",\"\",INDEX('SR_Cash Reconciliation_2E'!G$9:G$270,MATCH($D89,'SR_Cash Reconciliation_2E'!$B$9:$B$270,0))),\"\")","v":""},{"$f":"IFERROR(IF(INDEX('SR_Cash Reconciliation_2E'!H$9:H$270,MATCH($D89,'SR_Cash Reconciliation_2E'!$B$9:$B$270,0))=\"\",\"\",INDEX('SR_Cash Reconciliation_2E'!H$9:H$270,MATCH($D89,'SR_Cash Reconciliation_2E'!$B$9:$B$270,0))),\"\")","v":""},{"$f":"IFERROR(IF(INDEX('SR_Cash Reconciliation_2E'!I$9:I$270,MATCH($D89,'SR_Cash Reconciliation_2E'!$B$9:$B$270,0))=\"\",\"\",INDEX('SR_Cash Reconciliation_2E'!I$9:I$270,MATCH($D89,'SR_Cash Reconciliation_2E'!$B$9:$B$270,0))),\"\")","v":""},{"$f":"IFERROR(IF(INDEX('SR_Cash Reconciliation_2E'!K$9:K$270,MATCH($D89,'SR_Cash Reconciliation_2E'!$B$9:$B$270,0))=\"\",\"\",INDEX('SR_Cash Reconciliation_2E'!K$9:K$270,MATCH($D89,'SR_Cash Reconciliation_2E'!$B$9:$B$270,0))),\"\")","v":""},{"$f":"\"\"","v":""},{"$f":"IFERROR(IF(INDEX('SR_Cash Reconciliation_2E'!N$9:N$270,MATCH($D89,'SR_Cash Reconciliation_2E'!$B$9:$B$270,0))=\"\",\"\",INDEX('SR_Cash Reconciliation_2E'!N$9:N$270,MATCH($D89,'SR_Cash Reconciliation_2E'!$B$9:$B$270,0))),\"\")","v":""}]
[null,null,{"$error":"#VALUE!"},{"$error":"#VALUE!"},{"$f":"IFERROR(IF(INDEX('SR_Cash Reconciliation_2E'!C$9:C$270,MATCH($D90,'SR_Cash Reconciliation_2E'!$B$9:$B$270,0))=\"\",\"\",INDEX('SR_Cash Reconciliation_2E'!C$9:C$270,MATCH($D90,'SR_Cash Reconciliation_2E'!$B$9:$B$270,0))),\"\")","v":""},{"$f":"IFERROR(IF(INDEX('SR_Cash Reconciliation_2E'!D$9:D$270,MATCH($D90,'SR_Cash Reconciliation_2E'!$B$9:$B$270,0))=\"\",\"\",INDEX('SR_Cash Reconciliation_2E'!D$9:D$270,MATCH($D90,'SR_Cash Reconciliation_2E'!$B$9:$B$270,0))),\"\")","v":""},{"$f":"IFERROR(IF(INDEX('SR_Cash Reconciliation_2E'!E$9:E$270,MATCH($D90,'SR_Cash Reconciliation_2E'!$B$9:$B$270,0))=\"\",\"\",INDEX('SR_Cash Reconciliation_2E'!E$9:E$270,MATCH($D90,'SR_Cash Reconciliation_2E'!$B$9:$B$270,0))),\"\")","v":""},{"$f":"IFERROR(IF(INDEX('SR_Cash Reconciliation_2E'!F$9:F$270,MATCH($D90,'SR_Cash Reconciliation_2E'!$B$9:$B$270,0))=\"\",\"\",INDEX('SR_Cash Reconciliation_2E'!F$9:F$270,MATCH($D90,'SR_Cash Reconciliation_2E'!$B$9:$B$270,0))),\"\")","v":""},{"$f":"IFERROR(IF(INDEX('SR_Cash Reconciliation_2E'!G$9:G$270,MATCH($D90,'SR_Cash Reconciliation_2E'!$B$9:$B$270,0))=\"\",\"\",INDEX('SR_Cash Reconciliation_2E'!G$9:G$270,MATCH($D90,'SR_Cash Reconciliation_2E'!$B$9:$B$270,0))),\"\")","v":""},{"$f":"IFERROR(IF(INDEX('SR_Cash Reconciliation_2E'!H$9:H$270,MATCH($D90,'SR_Cash Reconciliation_2E'!$B$9:$B$270,0))=\"\",\"\",INDEX('SR_Cash Reconciliation_2E'!H$9:H$270,MATCH($D90,'SR_Cash Reconciliation_2E'!$B$9:$B$270,0))),\"\")","v":""},{"$f":"IFERROR(IF(INDEX('SR_Cash Reconciliation_2E'!I$9:I$270,MATCH($D90,'SR_Cash Reconciliation_2E'!$B$9:$B$270,0))=\"\",\"\",INDEX('SR_Cash Reconciliation_2E'!I$9:I$270,MATCH($D90,'SR_Cash Reconciliation_2E'!$B$9:$B$270,0))),\"\")","v":""},{"$f":"IFERROR(IF(INDEX('SR_Cash Reconciliation_2E'!K$9:K$270,MATCH($D90,'SR_Cash Reconciliation_2E'!$B$9:$B$270,0))=\"\",\"\",INDEX('SR_Cash Reconciliation_2E'!K$9:K$270,MATCH($D90,'SR_Cash Reconciliation_2E'!$B$9:$B$270,0))),\"\")","v":""},{"$f":"\"\"","v":""},{"$f":"IFERROR(IF(INDEX('SR_Cash Reconciliation_2E'!N$9:N$270,MATCH($D90,'SR_Cash Reconciliation_2E'!$B$9:$B$270,0))=\"\",\"\",INDEX('SR_Cash Reconciliation_2E'!N$9:N$270,MATCH($D90,'SR_Cash Reconciliation_2E'!$B$9:$B$270,0))),\"\")","v":""}]
[null,null,44,"ID44",{"$f":"IFERROR(IF(INDEX('SR_Cash Reconciliation_2E'!C$9:C$270,MATCH($D91,'SR_Cash Reconciliation_2E'!$B$9:$B$270,0))=\"\",\"\",INDEX('SR_Cash Reconciliation_2E'!C$9:C$270,MATCH($D91,'SR_Cash Reconciliation_2E'!$B$9:$B$270,0))),\"\")","v":""},{"$f":"IFERROR(IF(INDEX('SR_Cash Reconciliation_2E'!D$9:D$270,MATCH($D91,'SR_Cash Reconciliation_2E'!$B$9:$B$270,0))=\"\",\"\",INDEX('SR_Cash Reconciliation_2E'!D$9:D$270,MATCH($D91,'SR_Cash Reconciliation_2E'!$B$9:$B$270,0))),\"\")","v":""},{"$f":"IFERROR(IF(INDEX('SR_Cash Reconciliation_2E'!E$9:E$270,MATCH($D91,'SR_Cash Reconciliation_2E'!$B$9:$B$270,0))=\"\",\"\",INDEX('SR_Cash Reconciliation_2E'!E$9:E$270,MATCH($D91,'SR_Cash Reconciliation_2E'!$B$9:$B$270,0))),\"\")","v":""},{"$f":"IFERROR(IF(INDEX('SR_Cash Reconciliation_2E'!F$9:F$270,MATCH($D91,'SR_Cash Reconciliation_2E'!$B$9:$B$270,0))=\"\",\"\",INDEX('SR_Cash Reconciliation_2E'!F$9:F$270,MATCH($D91,'SR_Cash Reconciliation_2E'!$B$9:$B$270,0))),\"\")","v":""},{"$f":"IFERROR(IF(INDEX('SR_Cash Reconciliation_2E'!G$9:G$270,MATCH($D91,'SR_Cash Reconciliation_2E'!$B$9:$B$270,0))=\"\",\"\",INDEX('SR_Cash Reconciliation_2E'!G$9:G$270,MATCH($D91,'SR_Cash Reconciliation_2E'!$B$9:$B$270,0))),\"\")","v":""},{"$f":"IFERROR(IF(INDEX('SR_Cash Reconciliation_2E'!H$9:H$270,MATCH($D91,'SR_Cash Reconciliation_2E'!$B$9:$B$270,0))=\"\",\"\",INDEX('SR_Cash Reconciliation_2E'!H$9:H$270,MATCH($D91,'SR_Cash Reconciliation_2E'!$B$9:$B$270,0))),\"\")","v":""},{"$f":"IFERROR(IF(INDEX('SR_Cash Reconciliation_2E'!I$9:I$270,MATCH($D91,'SR_Cash Reconciliation_2E'!$B$9:$B$270,0))=\"\",\"\",INDEX('SR_Cash Reconciliation_2E'!I$9:I$270,MATCH($D91,'SR_Cash Reconciliation_2E'!$B$9:$B$270,0))),\"\")","v":""},{"$f":"IFERROR(IF(INDEX('SR_Cash Reconciliation_2E'!K$9:K$270,MATCH($D91,'SR_Cash Reconciliation_2E'!$B$9:$B$270,0))=\"\",\"\",INDEX('SR_Cash Reconciliation_2E'!K$9:K$270,MATCH($D91,'SR_Cash Reconciliation_2E'!$B$9:$B$270,0))),\"\")","v":""},{"$f":"\"\"","v":""},{"$f":"IFERROR(IF(INDEX('SR_Cash Reconciliation_2E'!N$9:N$270,MATCH($D91,'SR_Cash Reconciliation_2E'!$B$9:$B$270,0))=\"\",\"\",INDEX('SR_Cash Reconciliation_2E'!N$9:N$270,MATCH($D91,'SR_Cash Reconciliation_2E'!$B$9:$B$270,0))),\"\")","v":""}]
[null,null,{"$error":"#VALUE!"},{"$error":"#VALUE!"},{"$f":"IFERROR(IF(INDEX('SR_Cash Reconciliation_2E'!C$9:C$270,MATCH($D92,'SR_Cash Reconciliation_2E'!$B$9:$B$270,0))=\"\",\"\",INDEX('SR_Cash Reconciliation_2E'!C$9:C$270,MATCH($D92,'SR_Cash Reconciliation_2E'!$B$9:$B$270,0))),\"\")","v":""},{"$f":"IFERROR(IF(INDEX('SR_Cash Reconciliation_2E'!D$9:D$270,MATCH($D92,'SR_Cash Reconciliation_2E'!$B$9:$B$270,0))=\"\",\"\",INDEX('SR_Cash Reconciliation_2E'!D$9:D$270,MATCH($D92,'SR_Cash Reconciliation_2E'!$B$9:$B$270,0))),\"\")","v":""},{"$f":"IFERROR(IF(INDEX('SR_Cash Reconciliation_2E'!E$9:E$270,MATCH($D92,'SR_Cash Reconciliation_2E'!$B$9:$B$270,0))=\"\",\"\",INDEX('SR_Cash Reconciliation_2E'!E$9:E$270,MATCH($D92,'SR_Cash Reconciliation_2E'!$B$9:$B$270,0))),\"\")","v":""},{"$f":"IFERROR(IF(INDEX('SR_Cash Reconciliation_2E'!F$9:F$270,MATCH($D92,'SR_Cash Reconciliation_2E'!$B$9:$B$270,0))=\"\",\"\",INDEX('SR_Cash Reconciliation_2E'!F$9:F$270,MATCH($D92,'SR_Cash Reconciliation_2E'!$B$9:$B$270,0))),\"\")","v":""},{"$f":"IFERROR(IF(INDEX('SR_Cash Reconciliation_2E'!G$9:G$270,MATCH($D92,'SR_Cash Reconciliation_2E'!$B$9:$B$270,0))=\"\",\"\",INDEX('SR_Cash Reconciliation_2E'!G$9:G$270,MATCH($D92,'SR_Cash Reconciliation_2E'!$B$9:$B$270,0))),\"\")","v":""},{"$f":"IFERROR(IF(INDEX('SR_Cash Reconciliation_2E'!H$9:H$270,MATCH($D92,'SR_Cash Reconciliation_2E'!$B$9:$B$270,0))=\"\",\"\",INDEX('SR_Cash Reconciliation_2E'!H$9:H$270,MATCH($D92,'SR_Cash Reconciliation_2E'!$B$9:$B$270,0))),\"\")","v":""},{"$f":"IFERROR(IF(INDEX('SR_Cash Reconciliation_2E'!I$9:I$270,MATCH($D92,'SR_Cash Reconciliation_2E'!$B$9:$B$270,0))=\"\",\"\",INDEX('SR_Cash Reconciliation_2E'!I$9:I$270,MATCH($D92,'SR_Cash Reconciliation_2E'!$B$9:$B$270,0))),\"\")","v":""},{"$f":"IFERROR(IF(INDEX('SR_Cash Reconciliation_2E'!K$9:K$270,MATCH($D92,'SR_Cash Reconciliation_2E'!$B$9:$B$270,0))=\"\",\"\",INDEX('SR_Cash Reconciliation_2E'!K$9:K$270,MATCH($D92,'SR_Cash Reconciliation_2E'!$B$9:$B$270,0))),\"\")","v":""},{"$f":"\"\"","v":""},{"$f":"IFERROR(IF(INDEX('SR_Cash Reconciliation_2E'!N$9:N$270,MATCH($D92,'SR_Cash Reconciliation_2E'!$B$9:$B$270,0))=\"\",\"\",INDEX('SR_Cash Reconciliation_2E'!N$9:N$270,MATCH($D92,'SR_Cash Reconciliation_2E'!$B$9:$B$270,0))),\"\")","v":""}]
[null,null,45,"ID45",{"$f":"IFERROR(IF(INDEX('SR_Cash Reconciliation_2E'!C$9:C$270,MATCH($D93,'SR_Cash Reconciliation_2E'!$B$9:$B$270,0))=\"\",\"\",INDEX('SR_Cash Reconciliation_2E'!C$9:C$270,MATCH($D93,'SR_Cash Reconciliation_2E'!$B$9:$B$270,0))),\"\")","v":""},{"$f":"IFERROR(IF(INDEX('SR_Cash Reconciliation_2E'!D$9:D$270,MATCH($D93,'SR_Cash Reconciliation_2E'!$B$9:$B$270,0))=\"\",\"\",INDEX('SR_Cash Reconciliation_2E'!D$9:D$270,MATCH($D93,'SR_Cash Reconciliation_2E'!$B$9:$B$270,0))),\"\")","v":""},{"$f":"IFERROR(IF(INDEX('SR_Cash Reconciliation_2E'!E$9:E$270,MATCH($D93,'SR_Cash Reconciliation_2E'!$B$9:$B$270,0))=\"\",\"\",INDEX('SR_Cash Reconciliation_2E'!E$9:E$270,MATCH($D93,'SR_Cash Reconciliation_2E'!$B$9:$B$270,0))),\"\")","v":""},{"$f":"IFERROR(IF(INDEX('SR_Cash Reconciliation_2E'!F$9:F$270,MATCH($D93,'SR_Cash Reconciliation_2E'!$B$9:$B$270,0))=\"\",\"\",INDEX('SR_Cash Reconciliation_2E'!F$9:F$270,MATCH($D93,'SR_Cash Reconciliation_2E'!$B$9:$B$270,0))),\"\")","v":""},{"$f":"IFERROR(IF(INDEX('SR_Cash Reconciliation_2E'!G$9:G$270,MATCH($D93,'SR_Cash Reconciliation_2E'!$B$9:$B$270,0))=\"\",\"\",INDEX('SR_Cash Reconciliation_2E'!G$9:G$270,MATCH($D93,'SR_Cash Reconciliation_2E'!$B$9:$B$270,0))),\"\")","v":""},{"$f":"IFERROR(IF(INDEX('SR_Cash Reconciliation_2E'!H$9:H$270,MATCH($D93,'SR_Cash Reconciliation_2E'!$B$9:$B$270,0))=\"\",\"\",INDEX('SR_Cash Reconciliation_2E'!H$9:H$270,MATCH($D93,'SR_Cash Reconciliation_2E'!$B$9:$B$270,0))),\"\")","v":""},{"$f":"IFERROR(IF(INDEX('SR_Cash Reconciliation_2E'!I$9:I$270,MATCH($D93,'SR_Cash Reconciliation_2E'!$B$9:$B$270,0))=\"\",\"\",INDEX('SR_Cash Reconciliation_2E'!I$9:I$270,MATCH($D93,'SR_Cash Reconciliation_2E'!$B$9:$B$270,0))),\"\")","v":""},{"$f":"IFERROR(IF(INDEX('SR_Cash Reconciliation_2E'!K$9:K$270,MATCH($D93,'SR_Cash Reconciliation_2E'!$B$9:$B$270,0))=\"\",\"\",INDEX('SR_Cash Reconciliation_2E'!K$9:K$270,MATCH($D93,'SR_Cash Reconciliation_2E'!$B$9:$B$270,0))),\"\")","v":""},{"$f":"\"\"","v":""},{"$f":"IFERROR(IF(INDEX('SR_Cash Reconciliation_2E'!N$9:N$270,MATCH($D93,'SR_Cash Reconciliation_2E'!$B$9:$B$270,0))=\"\",\"\",INDEX('SR_Cash Reconciliation_2E'!N$9:N$270,MATCH($D93,'SR_Cash Reconciliation_2E'!$B$9:$B$270,0))),\"\")","v":""}]
[null,null,{"$error":"#VALUE!"},{"$error":"#VALUE!"},{"$f":"IFERROR(IF(INDEX('SR_Cash Reconciliation_2E'!C$9:C$270,MATCH($D94,'SR_Cash Reconciliation_2E'!$B$9:$B$270,0))=\"\",\"\",INDEX('SR_Cash Reconciliation_2E'!C$9:C$270,MATCH($D94,'SR_Cash Reconciliation_2E'!$B$9:$B$270,0))),\"\")","v":""},{"$f":"IFERROR(IF(INDEX('SR_Cash Reconciliation_2E'!D$9:D$270,MATCH($D94,'SR_Cash Reconciliation_2E'!$B$9:$B$270,0))=\"\",\"\",INDEX('SR_Cash Reconciliation_2E'!D$9:D$270,MATCH($D94,'SR_Cash Reconciliation_2E'!$B$9:$B$270,0))),\"\")","v":""},{"$f":"IFERROR(IF(INDEX('SR_Cash Reconciliation_2E'!E$9:E$270,MATCH($D94,'SR_Cash Reconciliation_2E'!$B$9:$B$270,0))=\"\",\"\",INDEX('SR_Cash Reconciliation_2E'!E$9:E$270,MATCH($D94,'SR_Cash Reconciliation_2E'!$B$9:$B$270,0))),\"\")","v":""},{"$f":"IFERROR(IF(INDEX('SR_Cash Reconciliation_2E'!F$9:F$270,MATCH($D94,'SR_Cash Reconciliation_2E'!$B$9:$B$270,0))=\"\",\"\",INDEX('SR_Cash Reconciliation_2E'!F$9:F$270,MATCH($D94,'SR_Cash Reconciliation_2E'!$B$9:$B$270,0))),\"\")","v":""},{"$f":"IFERROR(IF(INDEX('SR_Cash Reconciliation_2E'!G$9:G$270,MATCH($D94,'SR_Cash Reconciliation_2E'!$B$9:$B$270,0))=\"\",\"\",INDEX('SR_Cash Reconciliation_2E'!G$9:G$270,MATCH($D94,'SR_Cash Reconciliation_2E'!$B$9:$B$270,0))),\"\")","v":""},{"$f":"IFERROR(IF(INDEX('SR_Cash Reconciliation_2E'!H$9:H$270,MATCH($D94,'SR_Cash Reconciliation_2E'!$B$9:$B$270,0))=\"\",\"\",INDEX('SR_Cash Reconciliation_2E'!H$9:H$270,MATCH($D94,'SR_Cash Reconciliation_2E'!$B$9:$B$270,0))),\"\")","v":""},{"$f":"IFERROR(IF(INDEX('SR_Cash Reconciliation_2E'!I$9:I$270,MATCH($D94,'SR_Cash Reconciliation_2E'!$B$9:$B$270,0))=\"\",\"\",INDEX('SR_Cash Reconciliation_2E'!I$9:I$270,MATCH($D94,'SR_Cash Reconciliation_2E'!$B$9:$B$270,0))),\"\")","v":""},{"$f":"IFERROR(IF(INDEX('SR_Cash Reconciliation_2E'!K$9:K$270,MATCH($D94,'SR_Cash Reconciliation_2E'!$B$9:$B$270,0))=\"\",\"\",INDEX('SR_Cash Reconciliation_2E'!K$9:K$270,MATCH($D94,'SR_Cash Reconciliation_2E'!$B$9:$B$270,0))),\"\")","v":""},{"$f":"\"\"","v":""},{"$f":"IFERROR(IF(INDEX('SR_Cash Reconciliation_2E'!N$9:N$270,MATCH($D94,'SR_Cash Reconciliation_2E'!$B$9:$B$270,0))=\"\",\"\",INDEX('SR_Cash Reconciliation_2E'!N$9:N$270,MATCH($D94,'SR_Cash Reconciliation_2E'!$B$9:$B$270,0))),\"\")","v":""}]
[null,null,46,"ID46",{"$f":"IFERROR(IF(INDEX('SR_Cash Reconciliation_2E'!C$9:C$270,MATCH($D95,'SR_Cash Reconciliation_2E'!$B$9:$B$270,0))=\"\",\"\",INDEX('SR_Cash Reconciliation_2E'!C$9:C$270,MATCH($D95,'SR_Cash Reconciliation_2E'!$B$9:$B$270,0))),\"\")","v":""},{"$f":"IFERROR(IF(INDEX('SR_Cash Reconciliation_2E'!D$9:D$270,MATCH($D95,'SR_Cash Reconciliation_2E'!$B$9:$B$270,0))=\"\",\"\",INDEX('SR_Cash Reconciliation_2E'!D$9:D$270,MATCH($D95,'SR_Cash Reconciliation_2E'!$B$9:$B$270,0))),\"\")","v":""},{"$f":"IFERROR(IF(INDEX('SR_Cash Reconciliation_2E'!E$9:E$270,MATCH($D95,'SR_Cash Reconciliation_2E'!$B$9:$B$270,0))=\"\",\"\",INDEX('SR_Cash Reconciliation_2E'!E$9:E$270,MATCH($D95,'SR_Cash Reconciliation_2E'!$B$9:$B$270,0))),\"\")","v":""},{"$f":"IFERROR(IF(INDEX('SR_Cash Reconciliation_2E'!F$9:F$270,MATCH($D95,'SR_Cash Reconciliation_2E'!$B$9:$B$270,0))=\"\",\"\",INDEX('SR_Cash Reconciliation_2E'!F$9:F$270,MATCH($D95,'SR_Cash Reconciliation_2E'!$B$9:$B$270,0))),\"\")","v":""},{"$f":"IFERROR(IF(INDEX('SR_Cash Reconciliation_2E'!G$9:G$270,MATCH($D95,'SR_Cash Reconciliation_2E'!$B$9:$B$270,0))=\"\",\"\",INDEX('SR_Cash Reconciliation_2E'!G$9:G$270,MATCH($D95,'SR_Cash Reconciliation_2E'!$B$9:$B$270,0))),\"\")","v":""},{"$f":"IFERROR(IF(INDEX('SR_Cash Reconciliation_2E'!H$9:H$270,MATCH($D95,'SR_Cash Reconciliation_2E'!$B$9:$B$270,0))=\"\",\"\",INDEX('SR_Cash Reconciliation_2E'!H$9:H$270,MATCH($D95,'SR_Cash Reconciliation_2E'!$B$9:$B$270,0))),\"\")","v":""},{"$f":"IFERROR(IF(INDEX('SR_Cash Reconciliation_2E'!I$9:I$270,MATCH($D95,'SR_Cash Reconciliation_2E'!$B$9:$B$270,0))=\"\",\"\",INDEX('SR_Cash Reconciliation_2E'!I$9:I$270,MATCH($D95,'SR_Cash Reconciliation_2E'!$B$9:$B$270,0))),\"\")","v":""},{"$f":"IFERROR(IF(INDEX('SR_Cash Reconciliation_2E'!K$9:K$270,MATCH($D95,'SR_Cash Reconciliation_2E'!$B$9:$B$270,0))=\"\",\"\",INDEX('SR_Cash Reconciliation_2E'!K$9:K$270,MATCH($D95,'SR_Cash Reconciliation_2E'!$B$9:$B$270,0))),\"\")","v":""},{"$f":"\"\"","v":""},{"$f":"IFERROR(IF(INDEX('SR_Cash Reconciliation_2E'!N$9:N$270,MATCH($D95,'SR_Cash Reconciliation_2E'!$B$9:$B$270,0))=\"\",\"\",INDEX('SR_Cash Reconciliation_2E'!N$9:N$270,MATCH($D95,'SR_Cash Reconciliation_2E'!$B$9:$B$270,0))),\"\")","v":""}]
[null,null,{"$error":"#VALUE!"},{"$error":"#VALUE!"},{"$f":"IFERROR(IF(INDEX('SR_Cash Reconciliation_2E'!C$9:C$270,MATCH($D96,'SR_Cash Reconciliation_2E'!$B$9:$B$270,0))=\"\",\"\",INDEX('SR_Cash Reconciliation_2E'!C$9:C$270,MATCH($D96,'SR_Cash Reconciliation_2E'!$B$9:$B$270,0))),\"\")","v":""},{"$f":"IFERROR(IF(INDEX('SR_Cash Reconciliation_2E'!D$9:D$270,MATCH($D96,'SR_Cash Reconciliation_2E'!$B$9:$B$270,0))=\"\",\"\",INDEX('SR_Cash Reconciliation_2E'!D$9:D$270,MATCH($D96,'SR_Cash Reconciliation_2E'!$B$9:$B$270,0))),\"\")","v":""},{"$f":"IFERROR(IF(INDEX('SR_Cash Reconciliation_2E'!E$9:E$270,MATCH($D96,'SR_Cash Reconciliation_2E'!$B$9:$B$270,0))=\"\",\"\",INDEX('SR_Cash Reconciliation_2E'!E$9:E$270,MATCH($D96,'SR_Cash Reconciliation_2E'!$B$9:$B$270,0))),\"\")","v":""},{"$f":"IFERROR(IF(INDEX('SR_Cash Reconciliation_2E'!F$9:F$270,MATCH($D96,'SR_Cash Reconciliation_2E'!$B$9:$B$270,0))=\"\",\"\",INDEX('SR_Cash Reconciliation_2E'!F$9:F$270,MATCH($D96,'SR_Cash Reconciliation_2E'!$B$9:$B$270,0))),\"\")","v":""},{"$f":"IFERROR(IF(INDEX('SR_Cash Reconciliation_2E'!G$9:G$270,MATCH($D96,'SR_Cash Reconciliation_2E'!$B$9:$B$270,0))=\"\",\"\",INDEX('SR_Cash Reconciliation_2E'!G$9:G$270,MATCH($D96,'SR_Cash Reconciliation_2E'!$B$9:$B$270,0))),\"\")","v":""},{"$f":"IFERROR(IF(INDEX('SR_Cash Reconciliation_2E'!H$9:H$270,MATCH($D96,'SR_Cash Reconciliation_2E'!$B$9:$B$270,0))=\"\",\"\",INDEX('SR_Cash Reconciliation_2E'!H$9:H$270,MATCH($D96,'SR_Cash Reconciliation_2E'!$B$9:$B$270,0))),\"\")","v":""},{"$f":"IFERROR(IF(INDEX('SR_Cash Reconciliation_2E'!I$9:I$270,MATCH($D96,'SR_Cash Reconciliation_2E'!$B$9:$B$270,0))=\"\",\"\",INDEX('SR_Cash Reconciliation_2E'!I$9:I$270,MATCH($D96,'SR_Cash Reconciliation_2E'!$B$9:$B$270,0))),\"\")","v":""},{"$f":"IFERROR(IF(INDEX('SR_Cash Reconciliation_2E'!K$9:K$270,MATCH($D96,'SR_Cash Reconciliation_2E'!$B$9:$B$270,0))=\"\",\"\",INDEX('SR_Cash Reconciliation_2E'!K$9:K$270,MATCH($D96,'SR_Cash Reconciliation_2E'!$B$9:$B$270,0))),\"\")","v":""},{"$f":"\"\"","v":""},{"$f":"IFERROR(IF(INDEX('SR_Cash Reconciliation_2E'!N$9:N$270,MATCH($D96,'SR_Cash Reconciliation_2E'!$B$9:$B$270,0))=\"\",\"\",INDEX('SR_Cash Reconciliation_2E'!N$9:N$270,MATCH($D96,'SR_Cash Reconciliation_2E'!$B$9:$B$270,0))),\"\")","v":""}]
[null,null,47,"ID47",{"$f":"IFERROR(IF(INDEX('SR_Cash Reconciliation_2E'!C$9:C$270,MATCH($D97,'SR_Cash Reconciliation_2E'!$B$9:$B$270,0))=\"\",\"\",INDEX('SR_Cash Reconciliation_2E'!C$9:C$270,MATCH($D97,'SR_Cash Reconciliation_2E'!$B$9:$B$270,0))),\"\")","v":""},{"$f":"IFERROR(IF(INDEX('SR_Cash Reconciliation_2E'!D$9:D$270,MATCH($D97,'SR_Cash Reconciliation_2E'!$B$9:$B$270,0))=\"\",\"\",INDEX('SR_Cash Reconciliation_2E'!D$9:D$270,MATCH($D97,'SR_Cash Reconciliation_2E'!$B$9:$B$270,0))),\"\")","v":""},{"$f":"IFERROR(IF(INDEX('SR_Cash Reconciliation_2E'!E$9:E$270,MATCH($D97,'SR_Cash Reconciliation_2E'!$B$9:$B$270,0))=\"\",\"\",INDEX('SR_Cash Reconciliation_2E'!E$9:E$270,MATCH($D97,'SR_Cash Reconciliation_2E'!$B$9:$B$270,0))),\"\")","v":""},{"$f":"IFERROR(IF(INDEX('SR_Cash Reconciliation_2E'!F$9:F$270,MATCH($D97,'SR_Cash Reconciliation_2E'!$B$9:$B$270,0))=\"\",\"\",INDEX('SR_Cash Reconciliation_2E'!F$9:F$270,MATCH($D97,'SR_Cash Reconciliation_2E'!$B$9:$B$270,0))),\"\")","v":""},{"$f":"IFERROR(IF(INDEX('SR_Cash Reconciliation_2E'!G$9:G$270,MATCH($D97,'SR_Cash Reconciliation_2E'!$B$9:$B$270,0))=\"\",\"\",INDEX('SR_Cash Reconciliation_2E'!G$9:G$270,MATCH($D97,'SR_Cash Reconciliation_2E'!$B$9:$B$270,0))),\"\")","v":""},{"$f":"IFERROR(IF(INDEX('SR_Cash Reconciliation_2E'!H$9:H$270,MATCH($D97,'SR_Cash Reconciliation_2E'!$B$9:$B$270,0))=\"\",\"\",INDEX('SR_Cash Reconciliation_2E'!H$9:H$270,MATCH($D97,'SR_Cash Reconciliation_2E'!$B$9:$B$270,0))),\"\")","v":""},{"$f":"IFERROR(IF(INDEX('SR_Cash Reconciliation_2E'!I$9:I$270,MATCH($D97,'SR_Cash Reconciliation_2E'!$B$9:$B$270,0))=\"\",\"\",INDEX('SR_Cash Reconciliation_2E'!I$9:I$270,MATCH($D97,'SR_Cash Reconciliation_2E'!$B$9:$B$270,0))),\"\")","v":""},{"$f":"IFERROR(IF(INDEX('SR_Cash Reconciliation_2E'!K$9:K$270,MATCH($D97,'SR_Cash Reconciliation_2E'!$B$9:$B$270,0))=\"\",\"\",INDEX('SR_Cash Reconciliation_2E'!K$9:K$270,MATCH($D97,'SR_Cash Reconciliation_2E'!$B$9:$B$270,0))),\"\")","v":""},{"$f":"\"\"","v":""},{"$f":"IFERROR(IF(INDEX('SR_Cash Reconciliation_2E'!N$9:N$270,MATCH($D97,'SR_Cash Reconciliation_2E'!$B$9:$B$270,0))=\"\",\"\",INDEX('SR_Cash Reconciliation_2E'!N$9:N$270,MATCH($D97,'SR_Cash Reconciliation_2E'!$B$9:$B$270,0))),\"\")","v":""}]
[null,null,{"$error":"#VALUE!"},{"$error":"#VALUE!"},{"$f":"IFERROR(IF(INDEX('SR_Cash Reconciliation_2E'!C$9:C$270,MATCH($D98,'SR_Cash Reconciliation_2E'!$B$9:$B$270,0))=\"\",\"\",INDEX('SR_Cash Reconciliation_2E'!C$9:C$270,MATCH($D98,'SR_Cash Reconciliation_2E'!$B$9:$B$270,0))),\"\")","v":""},{"$f":"IFERROR(IF(INDEX('SR_Cash Reconciliation_2E'!D$9:D$270,MATCH($D98,'SR_Cash Reconciliation_2E'!$B$9:$B$270,0))=\"\",\"\",INDEX('SR_Cash Reconciliation_2E'!D$9:D$270,MATCH($D98,'SR_Cash Reconciliation_2E'!$B$9:$B$270,0))),\"\")","v":""},{"$f":"IFERROR(IF(INDEX('SR_Cash Reconciliation_2E'!E$9:E$270,MATCH($D98,'SR_Cash Reconciliation_2E'!$B$9:$B$270,0))=\"\",\"\",INDEX('SR_Cash Reconciliation_2E'!E$9:E$270,MATCH($D98,'SR_Cash Reconciliation_2E'!$B$9:$B$270,0))),\"\")","v":""},{"$f":"IFERROR(IF(INDEX('SR_Cash Reconciliation_2E'!F$9:F$270,MATCH($D98,'SR_Cash Reconciliation_2E'!$B$9:$B$270,0))=\"\",\"\",INDEX('SR_Cash Reconciliation_2E'!F$9:F$270,MATCH($D98,'SR_Cash Reconciliation_2E'!$B$9:$B$270,0))),\"\")","v":""},{"$f":"IFERROR(IF(INDEX('SR_Cash Reconciliation_2E'!G$9:G$270,MATCH($D98,'SR_Cash Reconciliation_2E'!$B$9:$B$270,0))=\"\",\"\",INDEX('SR_Cash Reconciliation_2E'!G$9:G$270,MATCH($D98,'SR_Cash Reconciliation_2E'!$B$9:$B$270,0))),\"\")","v":""},{"$f":"IFERROR(IF(INDEX('SR_Cash Reconciliation_2E'!H$9:H$270,MATCH($D98,'SR_Cash Reconciliation_2E'!$B$9:$B$270,0))=\"\",\"\",INDEX('SR_Cash Reconciliation_2E'!H$9:H$270,MATCH($D98,'SR_Cash Reconciliation_2E'!$B$9:$B$270,0))),\"\")","v":""},{"$f":"IFERROR(IF(INDEX('SR_Cash Reconciliation_2E'!I$9:I$270,MATCH($D98,'SR_Cash Reconciliation_2E'!$B$9:$B$270,0))=\"\",\"\",INDEX('SR_Cash Reconciliation_2E'!I$9:I$270,MATCH($D98,'SR_Cash Reconciliation_2E'!$B$9:$B$270,0))),\"\")","v":""},{"$f":"IFERROR(IF(INDEX('SR_Cash Reconciliation_2E'!K$9:K$270,MATCH($D98,'SR_Cash Reconciliation_2E'!$B$9:$B$270,0))=\"\",\"\",INDEX('SR_Cash Reconciliation_2E'!K$9:K$270,MATCH($D98,'SR_Cash Reconciliation_2E'!$B$9:$B$270,0))),\"\")","v":""},{"$f":"\"\"","v":""},{"$f":"IFERROR(IF(INDEX('SR_Cash Reconciliation_2E'!N$9:N$270,MATCH($D98,'SR_Cash Reconciliation_2E'!$B$9:$B$270,0))=\"\",\"\",INDEX('SR_Cash Reconciliation_2E'!N$9:N$270,MATCH($D98,'SR_Cash Reconciliation_2E'!$B$9:$B$270,0))),\"\")","v":""}]
[null,null,48,"ID48",{"$f":"IFERROR(IF(INDEX('SR_Cash Reconciliation_2E'!C$9:C$270,MATCH($D99,'SR_Cash Reconciliation_2E'!$B$9:$B$270,0))=\"\",\"\",INDEX('SR_Cash Reconciliation_2E'!C$9:C$270,MATCH($D99,'SR_Cash Reconciliation_2E'!$B$9:$B$270,0))),\"\")","v":""},{"$f":"IFERROR(IF(INDEX('SR_Cash Reconciliation_2E'!D$9:D$270,MATCH($D99,'SR_Cash Reconciliation_2E'!$B$9:$B$270,0))=\"\",\"\",INDEX('SR_Cash Reconciliation_2E'!D$9:D$270,MATCH($D99,'SR_Cash Reconciliation_2E'!$B$9:$B$270,0))),\"\")","v":""},{"$f":"IFERROR(IF(INDEX('SR_Cash Reconciliation_2E'!E$9:E$270,MATCH($D99,'SR_Cash Reconciliation_2E'!$B$9:$B$270,0))=\"\",\"\",INDEX('SR_Cash Reconciliation_2E'!E$9:E$270,MATCH($D99,'SR_Cash Reconciliation_2E'!$B$9:$B$270,0))),\"\")","v":""},{"$f":"IFERROR(IF(INDEX('SR_Cash Reconciliation_2E'!F$9:F$270,MATCH($D99,'SR_Cash Reconciliation_2E'!$B$9:$B$270,0))=\"\",\"\",INDEX('SR_Cash Reconciliation_2E'!F$9:F$270,MATCH($D99,'SR_Cash Reconciliation_2E'!$B$9:$B$270,0))),\"\")","v":""},{"$f":"IFERROR(IF(INDEX('SR_Cash Reconciliation_2E'!G$9:G$270,MATCH($D99,'SR_Cash Reconciliation_2E'!$B$9:$B$270,0))=\"\",\"\",INDEX('SR_Cash Reconciliation_2E'!G$9:G$270,MATCH($D99,'SR_Cash Reconciliation_2E'!$B$9:$B$270,0))),\"\")","v":""},{"$f":"IFERROR(IF(INDEX('SR_Cash Reconciliation_2E'!H$9:H$270,MATCH($D99,'SR_Cash Reconciliation_2E'!$B$9:$B$270,0))=\"\",\"\",INDEX('SR_Cash Reconciliation_2E'!H$9:H$270,MATCH($D99,'SR_Cash Reconciliation_2E'!$B$9:$B$270,0))),\"\")","v":""},{"$f":"IFERROR(IF(INDEX('SR_Cash Reconciliation_2E'!I$9:I$270,MATCH($D99,'SR_Cash Reconciliation_2E'!$B$9:$B$270,0))=\"\",\"\",INDEX('SR_Cash Reconciliation_2E'!I$9:I$270,MATCH($D99,'SR_Cash Reconciliation_2E'!$B$9:$B$270,0))),\"\")","v":""},{"$f":"IFERROR(IF(INDEX('SR_Cash Reconciliation_2E'!K$9:K$270,MATCH($D99,'SR_Cash Reconciliation_2E'!$B$9:$B$270,0))=\"\",\"\",INDEX('SR_Cash Reconciliation_2E'!K$9:K$270,MATCH($D99,'SR_Cash Reconciliation_2E'!$B$9:$B$270,0))),\"\")","v":""},{"$f":"\"\"","v":""},{"$f":"IFERROR(IF(INDEX('SR_Cash Reconciliation_2E'!N$9:N$270,MATCH($D99,'SR_Cash Reconciliation_2E'!$B$9:$B$270,0))=\"\",\"\",INDEX('SR_Cash Reconciliation_2E'!N$9:N$270,MATCH($D99,'SR_Cash Reconciliation_2E'!$B$9:$B$270,0))),\"\")","v":""}]
[null,null,{"$error":"#VALUE!"},{"$error":"#VALUE!"},{"$f":"IFERROR(IF(INDEX('SR_Cash Reconciliation_2E'!C$9:C$270,MATCH($D100,'SR_Cash Reconciliation_2E'!$B$9:$B$270,0))=\"\",\"\",INDEX('SR_Cash Reconciliation_2E'!C$9:C$270,MATCH($D100,'SR_Cash Reconciliation_2E'!$B$9:$B$270,0))),\"\")","v":""},{"$f":"IFERROR(IF(INDEX('SR_Cash Reconciliation_2E'!D$9:D$270,MATCH($D100,'SR_Cash Reconciliation_2E'!$B$9:$B$270,0))=\"\",\"\",INDEX('SR_Cash Reconciliation_2E'!D$9:D$270,MATCH($D100,'SR_Cash Reconciliation_2E'!$B$9:$B$270,0))),\"\")","v":""},{"$f":"IFERROR(IF(INDEX('SR_Cash Reconciliation_2E'!E$9:E$270,MATCH($D100,'SR_Cash Reconciliation_2E'!$B$9:$B$270,0))=\"\",\"\",INDEX('SR_Cash Reconciliation_2E'!E$9:E$270,MATCH($D100,'SR_Cash Reconciliation_2E'!$B$9:$B$270,0))),\"\")","v":""},{"$f":"IFERROR(IF(INDEX('SR_Cash Reconciliation_2E'!F$9:F$270,MATCH($D100,'SR_Cash Reconciliation_2E'!$B$9:$B$270,0))=\"\",\"\",INDEX('SR_Cash Reconciliation_2E'!F$9:F$270,MATCH($D100,'SR_Cash Reconciliation_2E'!$B$9:$B$270,0))),\"\")","v":""},{"$f":"IFERROR(IF(INDEX('SR_Cash Reconciliation_2E'!G$9:G$270,MATCH($D100,'SR_Cash Reconciliation_2E'!$B$9:$B$270,0))=\"\",\"\",INDEX('SR_Cash Reconciliation_2E'!G$9:G$270,MATCH($D100,'SR_Cash Reconciliation_2E'!$B$9:$B$270,0))),\"\")","v":""},{"$f":"IFERROR(IF(INDEX('SR_Cash Reconciliation_2E'!H$9:H$270,MATCH($D100,'SR_Cash Reconciliation_2E'!$B$9:$B$270,0))=\"\",\"\",INDEX('SR_Cash Reconciliation_2E'!H$9:H$270,MATCH($D100,'SR_Cash Reconciliation_2E'!$B$9:$B$270,0))),\"\")","v":""},{"$f":"IFERROR(IF(INDEX('SR_Cash Reconciliation_2E'!I$9:I$270,MATCH($D100,'SR_Cash Reconciliation_2E'!$B$9:$B$270,0))=\"\",\"\",INDEX('SR_Cash Reconciliation_2E'!I$9:I$270,MATCH($D100,'SR_Cash Reconciliation_2E'!$B$9:$B$270,0))),\"\")","v":""},{"$f":"IFERROR(IF(INDEX('SR_Cash Reconciliation_2E'!K$9:K$270,MATCH($D100,'SR_Cash Reconciliation_2E'!$B$9:$B$270,0))=\"\",\"\",INDEX('SR_Cash Reconciliation_2E'!K$9:K$270,MATCH($D100,'SR_Cash Reconciliation_2E'!$B$9:$B$270,0))),\"\")","v":""},{"$f":"\"\"","v":""},{"$f":"IFERROR(IF(INDEX('SR_Cash Reconciliation_2E'!N$9:N$270,MATCH($D100,'SR_Cash Reconciliation_2E'!$B$9:$B$270,0))=\"\",\"\",INDEX('SR_Cash Reconciliation_2E'!N$9:N$270,MATCH($D100,'SR_Cash Reconciliation_2E'!$B$9:$B$270,0))),\"\")","v":""}]
[null,null,49,"ID49",{"$f":"IFERROR(IF(INDEX('SR_Cash Reconciliation_2E'!C$9:C$270,MATCH($D101,'SR_Cash Reconciliation_2E'!$B$9:$B$270,0))=\"\",\"\",INDEX('SR_Cash Reconciliation_2E'!C$9:C$270,MATCH($D101,'SR_Cash Reconciliation_2E'!$B$9:$B$270,0))),\"\")","v":""},{"$f":"IFERROR(IF(INDEX('SR_Cash Reconciliation_2E'!D$9:D$270,MATCH($D101,'SR_Cash Reconciliation_2E'!$B$9:$B$270,0))=\"\",\"\",INDEX('SR_Cash Reconciliation_2E'!D$9:D$270,MATCH($D101,'SR_Cash Reconciliation_2E'!$B$9:$B$270,0))),\"\")","v":""},{"$f":"IFERROR(IF(INDEX('SR_Cash Reconciliation_2E'!E$9:E$270,MATCH($D101,'SR_Cash Reconciliation_2E'!$B$9:$B$270,0))=\"\",\"\",INDEX('SR_Cash Reconciliation_2E'!E$9:E$270,MATCH($D101,'SR_Cash Reconciliation_2E'!$B$9:$B$270,0))),\"\")","v":""},{"$f":"IFERROR(IF(INDEX('SR_Cash Reconciliation_2E'!F$9:F$270,MATCH($D101,'SR_Cash Reconciliation_2E'!$B$9:$B$270,0))=\"\",\"\",INDEX('SR_Cash Reconciliation_2E'!F$9:F$270,MATCH($D101,'SR_Cash Reconciliation_2E'!$B$9:$B$270,0))),\"\")","v":""},{"$f":"IFERROR(IF(INDEX('SR_Cash Reconciliation_2E'!G$9:G$270,MATCH($D101,'SR_Cash Reconciliation_2E'!$B$9:$B$270,0))=\"\",\"\",INDEX('SR_Cash Reconciliation_2E'!G$9:G$270,MATCH($D101,'SR_Cash Reconciliation_2E'!$B$9:$B$270,0))),\"\")","v":""},{"$f":"IFERROR(IF(INDEX('SR_Cash Reconciliation_2E'!H$9:H$270,MATCH($D101,'SR_Cash Reconciliation_2E'!$B$9:$B$270,0))=\"\",\"\",INDEX('SR_Cash Reconciliation_2E'!H$9:H$270,MATCH($D101,'SR_Cash Reconciliation_2E'!$B$9:$B$270,0))),\"\")","v":""},{"$f":"IFERROR(IF(INDEX('SR_Cash Reconciliation_2E'!I$9:I$270,MATCH($D101,'SR_Cash Reconciliation_2E'!$B$9:$B$270,0))=\"\",\"\",INDEX('SR_Cash Reconciliation_2E'!I$9:I$270,MATCH($D101,'SR_Cash Reconciliation_2E'!$B$9:$B$270,0))),\"\")","v":""},{"$f":"IFERROR(IF(INDEX('SR_Cash Reconciliation_2E'!K$9:K$270,MATCH($D101,'SR_Cash Reconciliation_2E'!$B$9:$B$270,0))=\"\",\"\",INDEX('SR_Cash Reconciliation_2E'!K$9:K$270,MATCH($D101,'SR_Cash Reconciliation_2E'!$B$9:$B$270,0))),\"\")","v":""},{"$f":"\"\"","v":""},{"$f":"IFERROR(IF(INDEX('SR_Cash Reconciliation_2E'!N$9:N$270,MATCH($D101,'SR_Cash Reconciliation_2E'!$B$9:$B$270,0))=\"\",\"\",INDEX('SR_Cash Reconciliation_2E'!N$9:N$270,MATCH($D101,'SR_Cash Reconciliation_2E'!$B$9:$B$270,0))),\"\")","v":""}]
[null,null,{"$error":"#VALUE!"},{"$error":"#VALUE!"},{"$f":"IFERROR(IF(INDEX('SR_Cash Reconciliation_2E'!C$9:C$270,MATCH($D102,'SR_Cash Reconciliation_2E'!$B$9:$B$270,0))=\"\",\"\",INDEX('SR_Cash Reconciliation_2E'!C$9:C$270,MATCH($D102,'SR_Cash Reconciliation_2E'!$B$9:$B$270,0))),\"\")","v":""},{"$f":"IFERROR(IF(INDEX('SR_Cash Reconciliation_2E'!D$9:D$270,MATCH($D102,'SR_Cash Reconciliation_2E'!$B$9:$B$270,0))=\"\",\"\",INDEX('SR_Cash Reconciliation_2E'!D$9:D$270,MATCH($D102,'SR_Cash Reconciliation_2E'!$B$9:$B$270,0))),\"\")","v":""},{"$f":"IFERROR(IF(INDEX('SR_Cash Reconciliation_2E'!E$9:E$270,MATCH($D102,'SR_Cash Reconciliation_2E'!$B$9:$B$270,0))=\"\",\"\",INDEX('SR_Cash Reconciliation_2E'!E$9:E$270,MATCH($D102,'SR_Cash Reconciliation_2E'!$B$9:$B$270,0))),\"\")","v":""},{"$f":"IFERROR(IF(INDEX('SR_Cash Reconciliation_2E'!F$9:F$270,MATCH($D102,'SR_Cash Reconciliation_2E'!$B$9:$B$270,0))=\"\",\"\",INDEX('SR_Cash Reconciliation_2E'!F$9:F$270,MATCH($D102,'SR_Cash Reconciliation_2E'!$B$9:$B$270,0))),\"\")","v":""},{"$f":"IFERROR(IF(INDEX('SR_Cash Reconciliation_2E'!G$9:G$270,MATCH($D102,'SR_Cash Reconciliation_2E'!$B$9:$B$270,0))=\"\",\"\",INDEX('SR_Cash Reconciliation_2E'!G$9:G$270,MATCH($D102,'SR_Cash Reconciliation_2E'!$B$9:$B$270,0))),\"\")","v":""},{"$f":"IFERROR(IF(INDEX('SR_Cash Reconciliation_2E'!H$9:H$270,MATCH($D102,'SR_Cash Reconciliation_2E'!$B$9:$B$270,0))=\"\",\"\",INDEX('SR_Cash Reconciliation_2E'!H$9:H$270,MATCH($D102,'SR_Cash Reconciliation_2E'!$B$9:$B$270,0))),\"\")","v":""},{"$f":"IFERROR(IF(INDEX('SR_Cash Reconciliation_2E'!I$9:I$270,MATCH($D102,'SR_Cash Reconciliation_2E'!$B$9:$B$270,0))=\"\",\"\",INDEX('SR_Cash Reconciliation_2E'!I$9:I$270,MATCH($D102,'SR_Cash Reconciliation_2E'!$B$9:$B$270,0))),\"\")","v":""},{"$f":"IFERROR(IF(INDEX('SR_Cash Reconciliation_2E'!K$9:K$270,MATCH($D102,'SR_Cash Reconciliation_2E'!$B$9:$B$270,0))=\"\",\"\",INDEX('SR_Cash Reconciliation_2E'!K$9:K$270,MATCH($D102,'SR_Cash Reconciliation_2E'!$B$9:$B$270,0))),\"\")","v":""},{"$f":"\"\"","v":""},{"$f":"IFERROR(IF(INDEX('SR_Cash Reconciliation_2E'!N$9:N$270,MATCH($D102,'SR_Cash Reconciliation_2E'!$B$9:$B$270,0))=\"\",\"\",INDEX('SR_Cash Reconciliation_2E'!N$9:N$270,MATCH($D102,'SR_Cash Reconciliation_2E'!$B$9:$B$270,0))),\"\")","v":""}]
[null,null,50,"ID50",{"$f":"IFERROR(IF(INDEX('SR_Cash Reconciliation_2E'!C$9:C$270,MATCH($D103,'SR_Cash Reconciliation_2E'!$B$9:$B$270,0))=\"\",\"\",INDEX('SR_Cash Reconciliation_2E'!C$9:C$270,MATCH($D103,'SR_Cash Reconciliation_2E'!$B$9:$B$270,0))),\"\")","v":""},{"$f":"IFERROR(IF(INDEX('SR_Cash Reconciliation_2E'!D$9:D$270,MATCH($D103,'SR_Cash Reconciliation_2E'!$B$9:$B$270,0))=\"\",\"\",INDEX('SR_Cash Reconciliation_2E'!D$9:D$270,MATCH($D103,'SR_Cash Reconciliation_2E'!$B$9:$B$270,0))),\"\")","v":""},{"$f":"IFERROR(IF(INDEX('SR_Cash Reconciliation_2E'!E$9:E$270,MATCH($D103,'SR_Cash Reconciliation_2E'!$B$9:$B$270,0))=\"\",\"\",INDEX('SR_Cash Reconciliation_2E'!E$9:E$270,MATCH($D103,'SR_Cash Reconciliation_2E'!$B$9:$B$270,0))),\"\")","v":""},{"$f":"IFERROR(IF(INDEX('SR_Cash Reconciliation_2E'!F$9:F$270,MATCH($D103,'SR_Cash Reconciliation_2E'!$B$9:$B$270,0))=\"\",\"\",INDEX('SR_Cash Reconciliation_2E'!F$9:F$270,MATCH($D103,'SR_Cash Reconciliation_2E'!$B$9:$B$270,0))),\"\")","v":""},{"$f":"IFERROR(IF(INDEX('SR_Cash Reconciliation_2E'!G$9:G$270,MATCH($D103,'SR_Cash Reconciliation_2E'!$B$9:$B$270,0))=\"\",\"\",INDEX('SR_Cash Reconciliation_2E'!G$9:G$270,MATCH($D103,'SR_Cash Reconciliation_2E'!$B$9:$B$270,0))),\"\")","v":""},{"$f":"IFERROR(IF(INDEX('SR_Cash Reconciliation_2E'!H$9:H$270,MATCH($D103,'SR_Cash Reconciliation_2E'!$B$9:$B$270,0))=\"\",\"\",INDEX('SR_Cash Reconciliation_2E'!H$9:H$270,MATCH($D103,'SR_Cash Reconciliation_2E'!$B$9:$B$270,0))),\"\")","v":""},{"$f":"IFERROR(IF(INDEX('SR_Cash Reconciliation_2E'!I$9:I$270,MATCH($D103,'SR_Cash Reconciliation_2E'!$B$9:$B$270,0))=\"\",\"\",INDEX('SR_Cash Reconciliation_2E'!I$9:I$270,MATCH($D103,'SR_Cash Reconciliation_2E'!$B$9:$B$270,0))),\"\")","v":""},{"$f":"IFERROR(IF(INDEX('SR_Cash Reconciliation_2E'!K$9:K$270,MATCH($D103,'SR_Cash Reconciliation_2E'!$B$9:$B$270,0))=\"\",\"\",INDEX('SR_Cash Reconciliation_2E'!K$9:K$270,MATCH($D103,'SR_Cash Reconciliation_2E'!$B$9:$B$270,0))),\"\")","v":""},{"$f":"\"\"","v":""},{"$f":"IFERROR(IF(INDEX('SR_Cash Reconciliation_2E'!N$9:N$270,MATCH($D103,'SR_Cash Reconciliation_2E'!$B$9:$B$270,0))=\"\",\"\",INDEX('SR_Cash Reconciliation_2E'!N$9:N$270,MATCH($D103,'SR_Cash Reconciliation_2E'!$B$9:$B$270,0))),\"\")","v":""}]
[null,null,{"$error":"#VALUE!"},{"$error":"#VALUE!"},{"$f":"IFERROR(IF(INDEX('SR_Cash Reconciliation_2E'!C$9:C$270,MATCH($D104,'SR_Cash Reconciliation_2E'!$B$9:$B$270,0))=\"\",\"\",INDEX('SR_Cash Reconciliation_2E'!C$9:C$270,MATCH($D104,'SR_Cash Reconciliation_2E'!$B$9:$B$270,0))),\"\")","v":""},{"$f":"IFERROR(IF(INDEX('SR_Cash Reconciliation_2E'!D$9:D$270,MATCH($D104,'SR_Cash Reconciliation_2E'!$B$9:$B$270,0))=\"\",\"\",INDEX('SR_Cash Reconciliation_2E'!D$9:D$270,MATCH($D104,'SR_Cash Reconciliation_2E'!$B$9:$B$270,0))),\"\")","v":""},{"$f":"IFERROR(IF(INDEX('SR_Cash Reconciliation_2E'!E$9:E$270,MATCH($D104,'SR_Cash Reconciliation_2E'!$B$9:$B$270,0))=\"\",\"\",INDEX('SR_Cash Reconciliation_2E'!E$9:E$270,MATCH($D104,'SR_Cash Reconciliation_2E'!$B$9:$B$270,0))),\"\")","v":""},{"$f":"IFERROR(IF(INDEX('SR_Cash Reconciliation_2E'!F$9:F$270,MATCH($D104,'SR_Cash Reconciliation_2E'!$B$9:$B$270,0))=\"\",\"\",INDEX('SR_Cash Reconciliation_2E'!F$9:F$270,MATCH($D104,'SR_Cash Reconciliation_2E'!$B$9:$B$270,0))),\"\")","v":""},{"$f":"IFERROR(IF(INDEX('SR_Cash Reconciliation_2E'!G$9:G$270,MATCH($D104,'SR_Cash Reconciliation_2E'!$B$9:$B$270,0))=\"\",\"\",INDEX('SR_Cash Reconciliation_2E'!G$9:G$270,MATCH($D104,'SR_Cash Reconciliation_2E'!$B$9:$B$270,0))),\"\")","v":""},{"$f":"IFERROR(IF(INDEX('SR_Cash Reconciliation_2E'!H$9:H$270,MATCH($D104,'SR_Cash Reconciliation_2E'!$B$9:$B$270,0))=\"\",\"\",INDEX('SR_Cash Reconciliation_2E'!H$9:H$270,MATCH($D104,'SR_Cash Reconciliation_2E'!$B$9:$B$270,0))),\"\")","v":""},{"$f":"IFERROR(IF(INDEX('SR_Cash Reconciliation_2E'!I$9:I$270,MATCH($D104,'SR_Cash Reconciliation_2E'!$B$9:$B$270,0))=\"\",\"\",INDEX('SR_Cash Reconciliation_2E'!I$9:I$270,MATCH($D104,'SR_Cash Reconciliation_2E'!$B$9:$B$270,0))),\"\")","v":""},{"$f":"IFERROR(IF(INDEX('SR_Cash Reconciliation_2E'!K$9:K$270,MATCH($D104,'SR_Cash Reconciliation_2E'!$B$9:$B$270,0))=\"\",\"\",INDEX('SR_Cash Reconciliation_2E'!K$9:K$270,MATCH($D104,'SR_Cash Reconciliation_2E'!$B$9:$B$270,0))),\"\")","v":""},{"$f":"\"\"","v":""},{"$f":"IFERROR(IF(INDEX('SR_Cash Reconciliation_2E'!N$9:N$270,MATCH($D104,'SR_Cash Reconciliation_2E'!$B$9:$B$270,0))=\"\",\"\",INDEX('SR_Cash Reconciliation_2E'!N$9:N$270,MATCH($D104,'SR_Cash Reconciliation_2E'!$B$9:$B$270,0))),\"\")","v":""}]
[null,null,51,"ID51",{"$f":"IFERROR(IF(INDEX('SR_Cash Reconciliation_2E'!C$9:C$270,MATCH($D105,'SR_Cash Reconciliation_2E'!$B$9:$B$270,0))=\"\",\"\",INDEX('SR_Cash Reconciliation_2E'!C$9:C$270,MATCH($D105,'SR_Cash Reconciliation_2E'!$B$9:$B$270,0))),\"\")","v":""},{"$f":"IFERROR(IF(INDEX('SR_Cash Reconciliation_2E'!D$9:D$270,MATCH($D105,'SR_Cash Reconciliation_2E'!$B$9:$B$270,0))=\"\",\"\",INDEX('SR_Cash Reconciliation_2E'!D$9:D$270,MATCH($D105,'SR_Cash Reconciliation_2E'!$B$9:$B$270,0))),\"\")","v":""},{"$f":"IFERROR(IF(INDEX('SR_Cash Reconciliation_2E'!E$9:E$270,MATCH($D105,'SR_Cash Reconciliation_2E'!$B$9:$B$270,0))=\"\",\"\",INDEX('SR_Cash Reconciliation_2E'!E$9:E$270,MATCH($D105,'SR_Cash Reconciliation_2E'!$B$9:$B$270,0))),\"\")","v":""},{"$f":"IFERROR(IF(INDEX('SR_Cash Reconciliation_2E'!F$9:F$270,MATCH($D105,'SR_Cash Reconciliation_2E'!$B$9:$B$270,0))=\"\",\"\",INDEX('SR_Cash Reconciliation_2E'!F$9:F$270,MATCH($D105,'SR_Cash Reconciliation_2E'!$B$9:$B$270,0))),\"\")","v":""},{"$f":"IFERROR(IF(INDEX('SR_Cash Reconciliation_2E'!G$9:G$270,MATCH($D105,'SR_Cash Reconciliation_2E'!$B$9:$B$270,0))=\"\",\"\",INDEX('SR_Cash Reconciliation_2E'!G$9:G$270,MATCH($D105,'SR_Cash Reconciliation_2E'!$B$9:$B$270,0))),\"\")","v":""},{"$f":"IFERROR(IF(INDEX('SR_Cash Reconciliation_2E'!H$9:H$270,MATCH($D105,'SR_Cash Reconciliation_2E'!$B$9:$B$270,0))=\"\",\"\",INDEX('SR_Cash Reconciliation_2E'!H$9:H$270,MATCH($D105,'SR_Cash Reconciliation_2E'!$B$9:$B$270,0))),\"\")","v":""},{"$f":"IFERROR(IF(INDEX('SR_Cash Reconciliation_2E'!I$9:I$270,MATCH($D105,'SR_Cash Reconciliation_2E'!$B$9:$B$270,0))=\"\",\"\",INDEX('SR_Cash Reconciliation_2E'!I$9:I$270,MATCH($D105,'SR_Cash Reconciliation_2E'!$B$9:$B$270,0))),\"\")","v":""},{"$f":"IFERROR(IF(INDEX('SR_Cash Reconciliation_2E'!K$9:K$270,MATCH($D105,'SR_Cash Reconciliation_2E'!$B$9:$B$270,0))=\"\",\"\",INDEX('SR_Cash Reconciliation_2E'!K$9:K$270,MATCH($D105,'SR_Cash Reconciliation_2E'!$B$9:$B$270,0))),\"\")","v":""},{"$f":"\"\"","v":""},{"$f":"IFERROR(IF(INDEX('SR_Cash Reconciliation_2E'!N$9:N$270,MATCH($D105,'SR_Cash Reconciliation_2E'!$B$9:$B$270,0))=\"\",\"\",INDEX('SR_Cash Reconciliation_2E'!N$9:N$270,MATCH($D105,'SR_Cash Reconciliation_2E'!$B$9:$B$270,0))),\"\")","v":""}]

{"sheet":"Budget Variance_2F","index":20,"n_rows":30,"n_cols":14,"rows_kept":30,"cut":false,"hidden":true,"merged":[[6,1,6,2],[6,7,6,8],[1,0,2,3],[1,4,1,5],[2,4,2,5],[3,0,3,13],[5,3,5,13],[1,9,2,13],[7,1,7,2],[7,7,7,8],[8,1,8,2],[8,7,8,8],[9,1,9,2],[9,7,9,8],[11,1,11,2],[11,7,11,8],[12,1,12,2],[12,7,12,8],[13,1,13,2],[13,7,13,8],[26,1,26,2],[26,7,26,8],[14,1,14,2],[14,7,14,8],[18,0,18,11],[20,3,20,13],[21,1,21,2],[21,7,21,8],[22,1,22,2],[22,7,22,8],[23,1,23,2],[23,7,23,8],[24,1,24,2],[24,7,24,8],[27,1,27,2],[28,1,28,2],[28,7,28,8],[29,1,29,2],[29,7,29,8]]}
[{"$f":"CoverSheet!A1","v":"Rapport périodique sur les résultats actuels et demande de décaissement"}]
["Section 2: Financial Information",null,null,null,{"$f":"CoverSheet!F12","v":"Période couverte par le rapport sur les information financière"},null,{"$f":"CoverSheet!J12","v":"2018-01-01"},{"$f":"CoverSheet!K12","v":"Date de fin :"},{"$f":"CoverSheet!L12","v":"2018-06-30"}]
[null,null,null,null,"Cumulative Period of Financial Reporting",null,{"$f":"CoverSheet!D13","v":"2018-01-01"},{"$f":"CoverSheet!K12","v":"Date de fin :"},{"$f":"CoverSheet!L12","v":"2018-06-30"}]
[{"$f":"VLOOKUP(Translations!B192,Translations!B3:H508,4,0)","v":"Écart budgétaire total du récipiendaire principal et analyse de l'absorption des fonds"}]
[]
[null,null,null,{"$f":"VLOOKUP(Translations!B193,Translations!B3:H508,4,0)","v":"Récipiendaire principal"}]
[null,null,null,{"$f":"VLOOKUP(Translations!B194,Translations!B3:H508,4,0)","v":"Budget pour la période de rapport"},{"$f":"VLOOKUP(Translations!B195,Translations!B3:H508,4,0)","v":"Sorties de fonds réelles de la subvention - Comptabilité de trésorerie pour la période de rapport"},{"$f":"VLOOKUP(Translations!B196,Translations!B3:H508,4,0)","v":"Écarts budget - dép. réelles"},{"$f":"VLOOKUP(Translations!B197,Translations!B3:H508,4,0)","v":"Capacité d'absorption"},{"$f":"VLOOKUP(Translations!B198,Translations!B3:H508,4,0)","v":"Motifs de l'écart"},null,{"$f":"VLOOKUP(Translations!B199,Translations!B3:H508,4,0)","v":"Budget cumulé jusqu'à la fin de la période du rapport"},{"$f":"VLOOKUP(Translations!B200,Translations!B3:H508,4,0)","v":"Sorties de fonds réelles cumulées de la subvention - comptabilité de trésorerie - jusqu’à la fin de la période du rapport"},{"$f":"VLOOKUP(Translations!B201,Translations!B3:H508,4,0)","v":"Écarts cumulés budget - dép. réelles"},{"$f":"VLOOKUP(Translations!B202,Translations!B3:H508,4,0)","v":"Capacité d'absorption"},{"$f":"VLOOKUP(Translations!B203,Translations!B3:H508,4,0)","v":"Motifs de l'écart"}]
[null,{"$f":"VLOOKUP(Translations!B204,Translations!B3:H508,4,0)","v":"1. Sorties de fonds totales du récipiendaire principal par rapport au budget"},null,{"$f":"SUM(D9:D10)","v":5743857.3438737392},{"$f":"SUM(E9:E10)","v":0},{"$f":"IF(D8=\"\",IF(E8=\"\",\"\",D8-E8),D8-E8)","v":5743857.3438737392},{"$f":"E8/D8","v":0},null,null,{"$f":"SUM(J9:J10)","v":5743857.3438737392},{"$f":"SUM(K9:K10)","v":0},{"$f":"IF(J8=\"\",IF(K8=\"\",\"\",J8-K8),J8-K8)","v":5743857.3438737392},{"$f":"K8/J8","v":0}]
[null,{"$f":"VLOOKUP(Translations!B205,Translations!B3:H508,4,0)","v":"    1a. Dépenses totales du récipiendaire principal (y compris tout décaissement direct à des tiers)"},null,{"$f":"_757bbdaf_a251_4e14_80bf_570115bbd806","v":3808964.5004965998},{"$f":"'PR Cash Reconciliation_2A,B,C,D'!D18+'PR Cash Reconciliation_2A,B,C,D'!D19+'PR Cash Reconciliation_2A,B,C,D'!D21","v":0},{"$f":"IF(D9=\"\",IF(E9=\"\",0,D9-E9),D9-E9)","v":3808964.5004965998},{"$f":"E9/D9","v":0},null,null,{"$f":"_5fc8d853_c679_4a06_bfcf_5a675070866e","v":3808964.5004965998},{"$f":"'PR Cash Reconciliation_2A,B,C,D'!D18+'PR Cash Reconciliation_2A,B,C,D'!D19+'PR Cash Reconciliation_2A,B,C,D'!D21+'PR Cash Reconciliation_2A,B,C,D'!C18+'PR Cash Reconciliation_2A,B,C,D'!C19+'PR Cash Reconciliation_2A,B,C,D'!C21","v":0},{"$f":"IF(J9=\"\",IF(K9=\"\",0,J9-K9),J9-K9)","v":3808964.5004965998},{"$f":"K9/J9","v":0}]
[null,{"$f":"VLOOKUP(Translations!B206,Translations!B3:H508,4,0)","v":"    1b. Décaissements aux sous-récipiendaires"},null,{"$f":"_b2735405_dd56_44ce_9ea7_7c9dcc4cf6e1","v":1934892.8433771399},{"$f":"'PR Cash Reconciliation_2A,B,C,D'!D20","v":0},{"$f":"IF(D10=\"\",IF(E10=\"\",0,D10-E10),D10-E10)","v":1934892.8433771399},{"$f":"E10/D10","v":0},null,null,{"$f":"_08e720bb_96ae_4d23_aca2_de6c0f6242bd","v":1934892.8433771399},{"$f":"'PR Cash Reconciliation_2A,B,C,D'!D20+'PR Cash Reconciliation_2A,B,C,D'!C20","v":0},{"$f":"IF(J10=\"\",IF(K10=\"\",0,J10-K10),J10-K10)","v":1934892.8433771399},{"$f":"K10/J10","v":0}]
[]
[null,{"$f":"VLOOKUP(Translations!B207,Translations!B3:H508,4,0)","v":"Données d'achats à des fins d'analyse"},null,{"$f":"D7","v":"Budget pour la période de rapport"},{"$f":"E7","v":"Sorties de fonds réelles de la subvention - Comptabilité de trésorerie pour la période de rapport"},{"$f":"F7","v":"Écarts budget - dép. réelles"},{"$f":"G7","v":"Capacité d'absorption"},{"$f":"H7","v":"Motifs de l'écart"},null,{"$f":"J7","v":"Budget cumulé jusqu'à la fin de la période du rapport"},{"$f":"K7","v":"Sorties de fonds réelles cumulées de la subvention - comptabilité de trésorerie - jusqu’à la fin de la période du rapport"},{"$f":"L7","v":"Écarts cumulés budget - dép. réelles"},{"$f":"M7","v":"Capacité d'absorption"},{"$f":"N7","v":"Motifs de l'écart"}]
[null,{"$f":"VLOOKUP(Translations!B218,Translations!B3:H508,4,0)","v":"2. Dépenses pharmaceutiques et non pharmaceutiques (y compris équipements) totales par rapport au budget"},null,{"$f":"D14+D15","v":2067521.03},{"$f":"E14+E15","v":0},{"$f":"IF(D13=\"\",IF(E13=\"\",\"\",D13-E13),D13-E13)","v":2067521.03},{"$f":"E13/D13","v":0},null,null,{"$f":"J14+J15","v":2067521.03},{"$f":"K14+K15","v":0},{"$f":"IF(J13=\"\",IF(K13=\"\",\"\",J13-K13),J13-K13)","v":2067521.03},{"$f":"K13/J13","v":0}]
[null,{"$f":"VLOOKUP(Translations!B219,Translations!B3:H508,4,0)","v":"    2a.  Produits de santé - Produits pharmaceutiques"},null,{"$f":"_96216c52_3538_4325_8126_72dc62827a1b","v":1001500.19},null,{"$f":"IF(D14=\"\",IF(E14=\"\",0,D14-E14),D14-E14)","v":1001500.19},{"$f":"E14/D14","v":0},null,null,{"$f":"_1c12bfc2_41c8_4c56_8c9f_396f5701dc1c","v":1001500.19},null,{"$f":"IF(J14=\"\",IF(K14=\"\",0,J14-K14),J14-K14)","v":1001500.19},{"$f":"K14/J14","v":0}]
[null,{"$f":"VLOOKUP(Translations!B220,Translations!B3:H508,4,0)","v":"    2b.  Produits de santé - Produits non pharmaceutiques et équipements"},null,{"$f":"_627ca42b_04e2_43b0_9dd3_6a366d7df9ec","v":1066020.8400000001},null,{"$f":"IF(D15=\"\",IF(E15=\"\",0,D15-E15),D15-E15)","v":1066020.8400000001},{"$f":"E15/D15","v":0},null,null,{"$f":"_d7b38c7a_acf6_4726_87a0_eeda6bd08f2c","v":1066020.8400000001},null,{"$f":"IF(J15=\"\",IF(K15=\"\",0,J15-K15),J15-K15)","v":1066020.8400000001},{"$f":"K15/J15","v":0}]
[]
[]
["For LFA Use Only"]
["E. Total Principal Recipient Budget Variance and Absorption Analysis"]
[]
[null,null,null,"Local Fund Agent (LFA)"]
[null,null,null,"Budget for Reporting Period","Actual Grant Expenditure - Cash Basis for Reporting Period","Budget Vs Actual Variances","Absorption Capacity","LFA comments on thePrincipal Recipient's explanation of variances ",null,"Cumulative Budget through period of Progress Update","Cumulative Actual Grant Expenditure - Cash Basis through period of Progress Update","Cumulative Budget Vs Actuals Variances","Absorption Capacity","LFA comments on the Principal Recipient's explanation of variances "]
[null,"1. Total Principal Recipient cash outflow vs. budget",null,{"$f":"SUM(D24:D25)","v":5743857.3438737392},{"$f":"SUM(E24:E25)","v":0},{"$f":"IF(D23=\"\",IF(E23=\"\",\"\",D23-E23),D23-E23)","v":5743857.3438737392},{"$f":"E23/D23","v":0},null,null,{"$f":"SUM(J24:J25)","v":5743857.3438737392},{"$f":"SUM(K24:K25)","v":0},{"$f":"IF(J23=\"\",IF(K23=\"\",\"\",J23-K23),J23-K23)","v":5743857.3438737392},{"$f":"K23/J23","v":0}]
[null,"    1a. Principal Recipient's total expenditures (including any direct-disbursements to third-parties)",null,{"$f":"_757bbdaf_a251_4e14_80bf_570115bbd806","v":3808964.5004965998},{"$f":"'PR Cash Reconciliation_2A,B,C,D'!H18+'PR Cash Reconciliation_2A,B,C,D'!H19+'PR Cash Reconciliation_2A,B,C,D'!H21","v":0},{"$f":"IF(D24=\"\",IF(E24=\"\",0,D24-E24),D24-E24)","v":3808964.5004965998},{"$f":"E24/D24","v":0},null,null,{"$f":"_5fc8d853_c679_4a06_bfcf_5a675070866e","v":3808964.5004965998},{"$f":"'PR Cash Reconciliation_2A,B,C,D'!F18+'PR Cash Reconciliation_2A,B,C,D'!F19+'PR Cash Reconciliation_2A,B,C,D'!F21+E24","v":0},{"$f":"IF(J24=\"\",IF(K24=\"\",0,J24-K24),J24-K24)","v":3808964.5004965998},{"$f":"K24/J24","v":0}]
[null,"    1b. Disbursements to sub-recipients",null,{"$f":"_b2735405_dd56_44ce_9ea7_7c9dcc4cf6e1","v":1934892.8433771399},{"$f":"'PR Cash Reconciliation_2A,B,C,D'!H20","v":0},{"$f":"IF(D25=\"\",IF(E25=\"\",0,D25-E25),D25-E25)","v":1934892.8433771399},{"$f":"E25/D25","v":0},null,null,{"$f":"_08e720bb_96ae_4d23_aca2_de6c0f6242bd","v":1934892.8433771399},{"$f":"'PR Cash Reconciliation_2A,B,C,D'!F20+E25","v":0},{"$f":"IF(J25=\"\",IF(K25=\"\",0,J25-K25),J25-K25)","v":1934892.8433771399},{"$f":"K25/J25","v":0}]
[]
[null,"Procurement data for analytical purposes",null,"Budget for Reporting Period","Actual Grant Expenditure - Cash Basis for Reporting Period","Budget Vs Actual Variances","Absorption Capacity","LFA comments on the Principal Recipient's explanation of variances ",null,"Cumulative Budget through period of Progress Update","Cumulative Actual Grant Expenditure - Cash Basis through period of Progress Update","Cumulative Budget Vs Actuals Variances","Absorption Capacity","LFA comments on the Principal Recipient's explanation of variances "]
[null,"2. Total pharmaceutical & non-pharmaceutical incl. equipment expenditures vs. budget",null,{"$f":"D29+D30","v":2067521.03},{"$f":"E29+E30","v":0},{"$f":"IF(D28=\"\",IF(E28=\"\",\"\",D28-E28),D28-E28)","v":2067521.03},{"$f":"E28/D28","v":0},null,null,{"$f":"J29+J30","v":2067521.03},{"$f":"K29+K30","v":0},{"$f":"IF(J28=\"\",IF(K28=\"\",\"\",J28-K28),J28-K28)","v":2067521.03},{"$f":"K28/J28","v":0}]
[null,"    2a.  Health Products- Pharmaceutical Products",null,{"$f":"_96216c52_3538_4325_8126_72dc62827a1b","v":1001500.19},null,{"$f":"IF(D29=\"\",IF(E29=\"\",0,D29-E29),D29-E29)","v":1001500.19},{"$f":"E29/D29","v":0},null,null,{"$f":"_1c12bfc2_41c8_4c56_8c9f_396f5701dc1c","v":1001500.19},null,{"$f":"IF(J29=\"\",IF(K29=\"\",0,J29-K29),J29-K29)","v":1001500.19},{"$f":"K29/J29","v":0}]
[null,"    2b.  Health Products - Non-Pharmaceuticals & Equipment",null,{"$f":"_627ca42b_04e2_43b0_9dd3_6a366d7df9ec","v":1066020.8400000001},null,{"$f":"IF(D30=\"\",IF(E30=\"\",0,D30-E30),D30-E30)","v":1066020.8400000001},{"$f":"E30/D30","v":0},null,null,{"$f":"_d7b38c7a_acf6_4726_87a0_eeda6bd08f2c","v":1066020.8400000001},null,{"$f":"IF(J30=\"\",IF(K30=\"\",0,J30-K30),J30-K30)","v":1066020.8400000001},{"$f":"K30/J30","v":0}]

{"sheet":"Budget Variance Import-Export","index":21,"n_rows":15,"n_cols":9,"rows_kept":15,"cut":false,"hidden":true,"merged":[]}
["Should be locked"]
["Should very hidden"]
[]
[]
[]
[]
[]
["    1a. Principal Recipient's total expenditures (including any direct-disbursements to third-parties)","Budget for Reporting Period",3808964.5004965998,"Cumul. Budget through PU period",3808964.5004965998]
["    1b. Disbursements to sub-recipients","Budget for Reporting Period",1934892.8433771399,"Cumul. Budget through PU period",1934892.8433771399]
[]
["    2a.  Health Products- Pharmaceutical Products","Budget for Reporting Period",1001500.19,"PR Actual Grant Cash Out-Flow",{"$f":"IFERROR('Budget Variance_2F'!E14,\"\")","v":0},"Cumul. Budget through PU period",1001500.19,"PR Cumulative Actual Grant Cash Out-Flow",{"$f":"IFERROR('Budget Variance_2F'!K14,\"\")","v":0}]
["    2a.  Health Products- Pharmaceutical Products",null,null,"LFA Actual Grant Cash Out-Flow",{"$f":"IFERROR('Budget Variance_2F'!E29,\"\")","v":0},null,null,"LFA Cumul. Actual Grant Cash Out-Flow",{"$f":"IFERROR('Budget Variance_2F'!K29,\"\")","v":0}]
[]
["    2b.  Health Products - Non-Pharmaceuticals & Equipment","Budget for Reporting Period",1066020.8400000001,"PR Actual Grant Cash Out-Flow",{"$f":"IFERROR('Budget Variance_2F'!E15,\"\")","v":0},"Cumul. Budget through PU period",1066020.8400000001,"PR Cumulative Actual Grant Cash Out-Flow",{"$f":"IFERROR('Budget Variance_2F'!K15,\"\")","v":0}]
["    2b.  Health Products - Non-Pharmaceuticals & Equipment",null,null,"LFA Actual Grant Cash Out-Flow",{"$f":"IFERROR('Budget Variance_2F'!E30,\"\")","v":0},null,null,"LFA Cumul. Actual Grant Cash Out-Flow",{"$f":"IFERROR('Budget Variance_2F'!K30,\"\")","v":0}]

{"sheet":"Procurement_3","index":22,"n_rows":77,"n_cols":23,"rows_kept":77,"cut":false,"hidden":false,"merged":[[7,12,7,22],[0,12,0,22],[2,12,2,21],[4,18,4,22],[5,12,5,16],[5,18,5,22],[8,12,8,13],[8,16,8,22],[9,12,9,13],[9,16,9,22],[10,12,10,13],[10,16,10,22],[11,12,11,13],[11,16,11,22],[12,12,12,13],[12,16,12,22],[13,12,13,13],[13,16,13,22],[32,12,32,13],[27,16,27,22],[14,12,14,13],[14,16,14,22],[15,12,15,13],[15,16,15,22],[16,12,16,13],[16,16,16,22],[17,12,17,13],[17,16,17,17],[18,12,18,22],[19,12,19,22],[24,12,24,22],[28,12,28,13],[28,16,28,22],[31,12,31,22],[41,17,41,18],[33,12,33,13],[33,17,33,18],[34,12,34,13],[34,17,34,18],[35,12,35,13],[35,17,35,18],[52,12,52,13],[45,12,45,13],[45,16,45,22],[36,12,36,13],[36,17,36,18],[44,12,44,13],[44,16,44,22],[37,12,37,13],[37,17,37,18],[38,12,38,13],[38,17,38,18],[39,12,39,13],[39,17,39,18],[40,12,40,13],[40,17,40,18],[41,12,41,13],[52,16,52,22],[43,12,43,22],[56,12,56,22],[48,12,48,13],[48,16,48,22],[49,12,49,13],[49,16,49,22],[50,12,50,13],[55,12,55,22],[46,12,46,13],[46,16,46,22],[47,12,47,13],[47,16,47,22],[50,16,50,22],[51,12,51,13],[51,16,51,22]]}
[null,null,null,null,null,null,null,null,null,null,null,null,{"$f":"CoverSheet!A1","v":"Rapport périodique sur les résultats actuels et demande de décaissement"}]
[]
[null,null,null,null,null,null,null,null,null,null,null,null,{"$f":"VLOOKUP(Translations!B252,Translations!B3:H508,4,0)","v":"Section 3A :  RP - Gestion des achats et des stocks"}]
[]
[null,null,null,null,null,null,null,null,null,null,null,null,null,null,null,null,null,null,{"$f":"VLOOKUP(Translations!B254,Translations!B3:H508,4,0)","v":"Commentaires"}]
[null,null,null,null,null,null,null,null,null,null,null,null,{"$f":"VLOOKUP(Translations!B253,Translations!B3:H508,4,0)","v":"1. Avez-vous enregistré dans le système d'information sur les prix et la qualité (PQR) l'information actualisée requise sur les produits pharmaceutiques et de santé reçus pendant la période couverte par ce RA/DD (le cas échéant) ? Si l'information relative aux achats de produits de santé n'a pas été saisie dans le système, veuillez expliquer pourquoi.\n\n! Pour des recommandations plus détaillées sur la saisie de données dans le système PQR, veuillez vous reporter aux directives."},null,null,null,null,"Yes","Pour les produits qui été déjà arrivés au Burundi durant la période couverte, les informations sur les prix et la qualité ont été enregistrées. Pour les produits achetés durant la période couverte non encore livrés, nous n'avons pas pu enregistré ces informations car les dates d'arrivés des produits est mandataire dans le système."]
[]
[null,null,null,null,null,null,null,null,null,null,null,null,{"$f":"VLOOKUP(Translations!B255,Translations!B3:H508,4,0)","v":" 2. Selon l'état des stocks le plus récent, y a-t-il des risques de rupture de stock ou de péremption des produits pharmaceutiques et de santé clés répertoriés ci-dessous au niveau central au cours de la période de mise en œuvre suivante ? Dans l'affirmative, veuillez commenter."}]
[null,null,null,null,null,null,null,null,null,null,null,null,{"$f":"VLOOKUP(Translations!B256,Translations!B3:H508,4,0)","v":"Produits pharmaceutiques et de santé clés"},null,{"$f":"VLOOKUP(Translations!B257,Translations!B3:H508,4,0)","v":"Risque de rupture de stock"},{"$f":"VLOOKUP(Translations!B258,Translations!B3:H508,4,0)","v":"Risque de péremption"},{"$f":"VLOOKUP(Translations!B259,Translations!B3:H508,4,0)","v":"Commentaire (si oui, veuillez fournir des informations sur les articles spécifiques présentant un risque de rupture de stock ou de péremption ainsi que les mesures d’atténuation en place ou à mettre en œuvre)"}]
[null,null,null,null,null,null,null,null,null,null,null,null,{"$f":"VLOOKUP(Translations!B260,Translations!B3:H508,4,0)","v":"1. Antipaludéens"},null,"N/A","Select"]
[null,null,null,null,null,null,null,null,null,null,null,null,{"$f":"VLOOKUP(Translations!B261,Translations!B3:H508,4,0)","v":"2. Moustiquaires"},null,"N/A","Select"]
[null,null,null,null,null,null,null,null,null,null,null,null,{"$f":"VLOOKUP(Translations!B262,Translations!B3:H508,4,0)","v":"3. Produits de diagnostic in-vitro "},null,"Yes","No","Cette rupture de stocks concerne les réactifs pour la coloration à chaud et ce problème commence juillet 2017, par une commande qui a été annulé par le FM en raison des délais de livraisons qui tombaient en dehors de la clôture des subventions et qui devait constituer un stock de sécurité et couvrir les besoins de 2018 et assurer la transition sur la nouvelle subvention comme c’est le cas pour les médicaments où les besoins sont couvertes pour toute l’année 2018. \nDès février, le PR (PNUD) a commencé les procédures d’achat pour tous les produits que le PNILT nous avais signalé comme urgents (y compris ces produits pour coloration à chaud)\nNous avons obtenu du fournisseur que la livraison allait être effectuée le 07/06/2018 mais suite aux problèmes de transport lié à la rareté des cargos qui desservent Bujumbura, les produits sont restés un mois à Londrès avant d'être acheminés à Adiss Ababa où ils sont encore restés deux semaines avant d'arriver à Bujumbura, le 31 Juillet 2017."]
[null,null,null,null,null,null,null,null,null,null,null,null,{"$f":"VLOOKUP(Translations!B263,Translations!B3:H508,4,0)","v":"4. Préservatifs"},null,"No","No"]
[null,null,null,null,null,null,null,null,null,null,null,null,{"$f":"VLOOKUP(Translations!B264,Translations!B3:H508,4,0)","v":"5. Antirétroviraux"},null,"Yes","Select","Efavirenz 200mg a connu une légère rupture de stock fin mai-debut juin qui a été comblé par une livraison d'urgence autorisée en février. Ce produit n'était pas sur la LoHP et une autre demande a été introduite et acceptée pour couvrir les besoins jusqu'en décembre 2018;"]
[null,null,null,null,null,null,null,null,null,null,null,null,{"$f":"VLOOKUP(Translations!B265,Translations!B3:H508,4,0)","v":"6. Antituberuculeux"},null,"No","No"]
[null,null,null,null,null,null,null,null,null,null,null,null,{"$f":"VLOOKUP(Translations!B266,Translations!B3:H508,4,0)","v":"7. Fournitures de laboratoire (par ex. CD4, charge virales, cartouches…)"},null,"Yes","No","Des réactifs pour le dosage de la charge virale et pour le diagnostic précoce du VIH étaient en risque de rupture. Une commande d'urgence a été placée pour couvrir les besoins. Parallèlement, une livraison pour remplacement des kits pour la charge virale a été faite durant le mois de mars permettant la couverture des besoins en attendant l'arrivée de la commande d'urgence."]
[null,null,null,null,null,null,null,null,null,null,null,null,{"$f":"VLOOKUP(Translations!B267,Translations!B3:H508,4,0)","v":"8. Autres (veuillez préciser dans la colonne des commentaires)"},null,"Select","Select"]
[]
[null,null,null,null,null,null,null,null,null,null,null,null,{"$f":"VLOOKUP(Translations!B268,Translations!B3:H508,4,0)","v":"3.  Veuillez commenter tout problème supplémentaire lié à la gestion des achats et des stocks de produits pharmaceutiques et de santé."}]
[null,null,null,null,null,null,null,null,null,null,null,null,"Contraintes sur les intrants de programme \na. ARV adulte première ligne et transition TLE > TLD\nEn matière d’approvisionnement en intrant du programme VIH il existe de nombreuses tensions. \nLe stock en ARV au démarrage de la subvention 2018-2020, hérité de l’ancienne subvention portait sur une couverture estimée à 50 047 patients adultes par mois en première ligne. \nSelon les données reportées dans DHIS2, la file active au 30 Juin est d’environ 64419 patients sous ARV, soit une augmentation non prévue en rapport avec la stratégie « test and treat ».\n Les financements disponibles n’étant pas suffisants pour couvrir les besoins en intrants pour la prise en charge des PPVIH, nous manquons de visibilité pour les mois à venir. \nLa couverture en ARV représente environ 56 220 patients adultes en première ligne et par mois.\nOutre les aspects éthiques, ceci a eu pour conséquence de réduire le niveau de stock de sécurité. Le budget relatif à l’achat des intrants ARV est en tension et le PR attire l’attention sur la nécessité de couvrir les traitements de première ligne pour éviter les ruptures et l’augmentation des situations de résistance et le passage en deuxième ligne dont l’impact budgétaire serait considérable. \nLe produit majeur dans la prise en charge du VIH des patients en première ligne est le combinaison Ténofovir/Lamivudine/Efavirenz chez l’adulte, couvrant plus de 54% des patients adultes en première ligne. Une transition vers une nouvelle combinaison utilisant le Dolutegravir à la place de l’Efavirenz est prévue à partir de Mars 2019. Cependant, les directives nationales ne sont pas encore mises à jour et le plan de transition n’est pas encore formalisé. Nous manquons donc de visibilité pour les prévisions de 2019. \nb. Produits de deuxième ligne\nLe Fonds Mondial de lutte contre le VIH, la tuberculose et le paludisme est le seul partenaire qui prend en charge les produits de deuxième ligne pour adultes. Pour ces produits nous avons assez de visibilité pour les prévisions. \n\nc. Situation du cotrimoxazole 800/160mg\nLes financements disponibles à travers les crédits des subventions du Fonds Mondial de lutte contre le VIH, la tuberculose et le paludisme ne couvrent pas le cotrimoxazole 800/160mg. Aucun autre partenaire ne propose actuellement la couverture totale de ce gap. Or, les pratiques préventives contre ces infections opportunistes peuvent déboucher sur une amélioration de la qualité et de l'espérance de vie des personnes séropositives. Depuis la fin des années 1980, le cotrimoxazole est utilisé avec succès dans la prophylaxie primaire des infections opportunistes. \nd. PTME\nNous manquons de visibilité pour les financements de la PTME chez les femmes enceintes mais aussi chez les enfants. Aucun financement n’est prévu en 2019 sur les crédits des subventions du Fonds Mondial de lutte contre le VIH, la tuberculose et le paludisme et nous n’avons aucune visibilité sur le partenaire qui doit prendre en charge ces produits.\ne. Produits de diagnostic (TDR)\nLe diagnostic est un élément important de la stratégie de lutte contre le VIH, la connaissance du statut sérologique permet de limiter les de nouvelles infections. Au-delà du dépistage indexé qui permet d’optimiser l’utilisation des moyens de diagnostic, le dépistage systématique des femmes enceintes permet une double protection, en permettant la mise en place de la PTME chez les femmes séropositives. Les tests de diagnostic rapide (TDR) utilisés chez les femmes enceintes connaissent un sous financement. Si les besoins sont couverts pour 2018, la situation est beaucoup moins rassurante pour 2019 et 2020, le Fonds Mondial de lutte contre le VIH, la tuberculose et le paludisme ne couvre que respectivement 18 et 20%. Nous n’avons donc pas de visibilité sur la prise en charge de ce produit.\nf. Charge Virale\nDeux partenaires majeurs interviennent dans la prise en charge de la charge virale : Fonds Mondial de lutte contre le VIH, la tuberculose et le paludisme et le projet OPP-ERA. Ce dernier a connu un retard dans le démarrage et 17,640 tests de charge virale pourrons être réalisés avec ce projet contre 27,720 prévus laissant un gap de 10,080 tests de charge virale pour 2018. \ng. Prophylaxie Post Exposition\nDes cas de violences basées sur le genre sont pris en charge dans les formations sanitaires. L’urgence des cas impose la prise en charge immédiate des patients. L’absence des financements de la prophylaxie Post Exposition impacte sur la consommation des produits utilisés dans la prise en charge des PVVIH.\n"]
[]
[null,null,null,null,null,null,null,null,null,null,null,null,"For LFA Use Only"]
[]
[]
[null,null,null,null,null,null,null,null,null,null,null,null,"Section 3B: LFA-Verified Procurement and Supply Management Information"]
[]
[]
[null,null,null,null,null,null,null,null,null,null,null,null,null,null,"PR's response","LFA's response","LFA Comments/Analysis "]
[null,null,null,null,null,null,null,null,null,null,null,null,"1a.  Has the PR updated the Price Quality Reporting (PQR) with the required information on the pharmaceuticals and health products received during the period covered by this PU/DR’ (if applicable)?  (If health products procurement information has not been entered into the PQR, please explain why in comments box)    ",null,{"$f":"IFERROR(R6,\"\")","v":"Yes"},"Select"]
[]
[null,null,null,null,null,null,null,null,null,null,null,null,"1b.  Value of Pharmaceuticals and Health Products in the PQR (7 categories only)"]
[null,null,null,null,null,null,null,null,null,null,null,null,"(!) This table is included in the PU/DR form with the aim to improve completeness of information in the PQR system and not for comparing PQR amounts vis-à-vis expenditure per se. NB: PQR and expenditure amounts on health products may not be equal due to a timelag between payments and delivery of pharmaceuticals/health products.\n(!)  For further guidance on PQR data entry, please refer to the guidelines."]
[null,null,null,null,null,null,null,null,null,null,null,null,"Reporting Currency"]
[null,null,null,null,null,null,null,null,null,null,null,null,"PQR Product Categories",null,"Value of  products received during reporting period","Value of products entered by the PR and verified as correct by the LFA in the PQR during reporting period","Variance","Reason for Variance",null,"Cumulative value of  products received since the start of the Implementation Period","Cumulative value of products verified as correct by the LFA in the PQR since the start of the Implementation Period","Variance","Reason for Variance"]
[null,null,null,null,null,null,null,null,null,null,null,null,"1. Anti-malaria medicines",null,null,null,{"$f":"IF(O35=\"\",IF(P35=\"\",\"\",O35-P35),O35-P35)","v":""},null,null,null,null,{"$f":"IF(T35=\"\",IF(U35=\"\",\"\",T35-U35),T35-U35)","v":""}]
[null,null,null,null,null,null,null,null,null,null,null,null,"2. Bed nets",null,null,null,"",null,null,null,null,""]
[null,null,null,null,null,null,null,null,null,null,null,null,"3. In-Vitro Diagnostic Products",null,null,null,"",null,null,null,null,""]
[null,null,null,null,null,null,null,null,null,null,null,null,"4. Condoms",null,null,null,"",null,null,null,null,""]
[null,null,null,null,null,null,null,null,null,null,null,null,"5. Anti-retrovirals",null,null,null,"",null,null,null,null,""]
[null,null,null,null,null,null,null,null,null,null,null,null,"6. Anti-TB medicines",null,null,null,"",null,null,null,null,""]
[null,null,null,null,null,null,null,null,null,null,null,null,"7. Indoor Residual Spraying (IRS)",null,null,null,"",null,null,null,null,""]
[null,null,null,null,null,null,null,null,null,null,null,null,"Total",null,{"$f":"SUM(O35:O41)","v":0},{"$f":"SUM(P35:P41)","v":0},{"$f":"SUM(Q35:Q41)","v":0},null,null,{"$f":"SUM(T35:T41)","v":0},{"$f":"SUM(U35:U41)","v":0},{"$f":"SUM(V35:V41)","v":0}]
[]
[null,null,null,null,null,null,null,null,null,null,null,null," 2. Based on best information available to the LFA, are there any risks of drug stock-out or expiries at the central level in the next period of implementation?  (If yes, please explain in comments box)\n! This section should be completed by the LFA based on best information on stock at the central level available to the LFA and should not require dedicated visits for on-site checks of stocks."]
[null,null,null,null,null,null,null,null,null,null,null,null,"Key Pharmaceuticals & Health Products",null,"Risk of Stock-Out","Risk of Expiry","Comment (if yes, please provide information on the specific items that are at risk of stock-out or expiry and the mitigation measures in place or to be implemented)"]
[null,null,null,null,null,null,null,null,null,null,null,null,"1. Anti-malaria medicines",null,"Select","Select"]
[null,null,null,null,null,null,null,null,null,null,null,null,"2. Bed nets",null,"Select","Select"]
[null,null,null,null,null,null,null,null,null,null,null,null,"3. In-Vitro Diagnostic Products",null,"Select","Select"]
[null,null,null,null,null,null,null,null,null,null,null,null,"4. Condoms",null,"Select","Select"]
[null,null,null,null,null,null,null,null,null,null,null,null,"5. Anti-retrovirals",null,"Select","Select"]
[null,null,null,null,null,null,null,null,null,null,null,null,"6. Anti-TB medicines",null,"Select","Select"]
[null,null,null,null,null,null,null,null,null,null,null,null,"7. Lab supplies (e.g. CD4, Viral Load, Cartridges…)",null,"Select","Select"]
[null,null,null,null,null,null,null,null,null,null,null,null,"8. Other (Please specify in the \"Comment\" column)",null,"Select","Select"]
[]
[]
[null,null,null,null,null,null,null,null,null,null,null,null,"3. LFA analysis of issues related to the procurement and supply management of pharmaceuticals and health products"]
[]
[]
[]
[]
[]
[]
[]
[]
[]
[]
[]
[]
[]
[]
[]
[]
[null,null,null,null,null,null,null,null,null,null,null,null,"Record ID","a2R36000000ea04EAA"]
[null,null,null,null,null,null,null,null,null,null,null,null,"PQR Response (PR)",{"$f":"IF(O29=\"Select\",\"\",O29)","v":"Yes"}]
[null,null,null,null,null,null,null,null,null,null,null,null,"PQR Response (LFA)",{"$f":"IF(P29=\"Select\",\"\",P29)","v":""}]
[null,null,null,null,null,null,null,null,null,null,null,null,"Stock Out Response (LFA)",{"$f":"IF(OR(O46=\"Yes\",O47=\"Yes\",O48=\"Yes\",O49=\"Yes\",O50=\"Yes\",O51=\"Yes\",O52=\"Yes\",O53=\"Yes\",), \"Yes\", \"No\")","v":"No"}]
[null,null,null,null,null,null,null,null,null,null,null,null,"Expiry Response (LFA)",{"$f":"IF(OR(P46=\"Yes\",P47=\"Yes\",P48=\"Yes\",P49=\"Yes\",P50=\"Yes\",P51=\"Yes\",P52=\"Yes\",P53=\"Yes\",), \"Yes\", \"No\")","v":"No"}]

{"sheet":"Grant Management_4","index":23,"n_rows":145,"n_cols":12,"rows_kept":145,"cut":false,"hidden":false,"merged":[[11,8,11,9],[12,8,12,9],[13,8,13,9],[14,8,14,9],[15,8,15,9],[16,8,16,9],[17,8,17,9],[18,8,18,9],[14,5,14,6],[15,5,15,6],[16,5,16,6],[17,5,17,6],[18,5,18,6],[12,5,12,6],[13,5,13,6],[11,5,11,6],[6,10,6,11],[5,2,5,7],[6,2,6,5],[6,7,6,8],[8,5,8,6],[8,8,8,9],[8,2,8,3],[9,8,9,9],[10,8,10,9],[9,5,9,6],[10,5,10,6],[9,2,9,3],[10,2,10,3],[31,5,31,6],[37,5,37,6],[58,5,58,6],[19,8,19,9],[25,8,25,9],[26,8,26,9],[27,8,27,9],[32,5,32,6],[33,5,33,6],[34,5,34,6],[35,5,35,6],[36,5,36,6],[20,8,20,9],[22,8,22,9],[23,8,23,9],[24,8,24,9],[35,8,35,9],[28,8,28,9],[38,8,38,9],[39,8,39,9],[30,8,30,9],[31,8,31,9],[32,8,32,9],[33,8,33,9],[138,2,138,7],[140,6,140,8],[140,9,140,11],[60,2,60,8],[19,5,19,6],[20,5,20,6],[21,5,21,6],[22,5,22,6],[23,5,23,6],[24,5,24,6],[25,5,25,6],[26,5,26,6],[27,5,27,6],[28,5,28,6],[38,5,38,6],[39,5,39,6],[29,5,29,6],[30,5,30,6],[29,8,29,9],[36,8,36,9],[37,8,37,9],[41,8,41,9],[42,8,42,9],[21,8,21,9],[34,8,34,9],[58,8,58,9],[63,8,63,9],[62,8,62,9],[43,8,43,9],[44,8,44,9],[45,8,45,9],[46,8,46,9],[47,8,47,9],[48,8,48,9],[49,8,49,9],[52,8,52,9],[53,8,53,9],[54,8,54,9],[55,8,55,9],[56,8,56,9],[57,8,57,9],[50,5,50,6],[51,5,51,6],[52,5,52,6],[50,8,50,9],[51,8,51,9],[47,5,47,6],[56,5,56,6],[57,5,57,6],[40,8,40,9],[41,5,41,6],[42,5,42,6],[40,5,40,6],[53,5,53,6],[43,5,43,6],[44,5,44,6],[45,5,45,6],[46,5,46,6],[48,5,48,6],[49,5,49,6],[38,2,38,3],[41,2,41,3],[42,2,42,3],[29,2,29,3],[30,2,30,3],[31,2,31,3],[32,2,32,3],[33,2,33,3],[39,2,39,3],[40,2,40,3],[11,2,11,3],[12,2,12,3],[13,2,13,3],[24,2,24,3],[20,2,20,3],[21,2,21,3],[22,2,22,3],[23,2,23,3],[49,2,49,3],[14,2,14,3],[15,2,15,3],[16,2,16,3],[17,2,17,3],[18,2,18,3],[28,2,28,3],[25,2,25,3],[26,2,26,3],[27,2,27,3],[19,2,19,3],[43,2,43,3],[34,2,34,3],[35,2,35,3],[36,2,36,3],[37,2,37,3],[50,2,50,3],[51,2,51,3],[52,2,52,3],[53,2,53,3],[44,2,44,3],[45,2,45,3],[46,2,46,3],[47,2,47,3],[48,2,48,3],[62,2,62,3],[63,2,63,3],[63,5,63,6],[62,5,62,6],[54,2,54,3],[55,2,55,3],[56,2,56,3],[57,2,57,3],[58,2,58,3],[54,5,54,6],[55,5,55,6],[64,2,64,3],[65,2,65,3],[66,2,66,3],[67,2,67,3],[68,2,68,3],[69,2,69,3],[70,2,70,3],[71,2,71,3],[72,2,72,3],[73,2,73,3],[74,2,74,3],[75,2,75,3],[76,2,76,3],[77,2,77,3],[78,2,78,3],[79,2,79,3],[80,2,80,3],[81,2,81,3],[82,2,82,3],[83,2,83,3],[84,2,84,3],[85,2,85,3],[86,2,86,3],[87,2,87,3],[88,2,88,3],[89,2,89,3],[90,2,90,3],[91,2,91,3],[92,2,92,3],[93,2,93,3],[94,2,94,3],[95,2,95,3],[96,2,96,3],[97,2,97,3],[98,2,98,3],[99,2,99,3],[100,2,100,3],[101,2,101,3],[102,2,102,3],[103,2,103,3],[104,2,104,3],[105,2,105,3],[106,2,106,3],[107,2,107,3],[108,2,108,3],[109,2,109,3],[110,2,110,3],[111,2,111,3],[112,2,112,3],[113,2,113,3],[114,2,114,3],[115,2,115,3],[116,2,116,3],[117,2,117,3],[118,2,118,3],[119,2,119,3],[120,2,120,3],[121,2,121,3],[122,2,122,3],[123,2,123,3],[124,2,124,3],[125,2,125,3],[126,2,126,3],[127,2,127,3],[128,2,128,3],[129,2,129,3],[130,2,130,3],[131,2,131,3],[132,2,132,3],[133,2,133,3],[134,2,134,3],[135,2,135,3],[64,5,64,6],[65,5,65,6],[66,5,66,6],[67,5,67,6],[68,5,68,6],[69,5,69,6],[70,5,70,6],[71,5,71,6],[72,5,72,6],[73,5,73,6],[74,5,74,6],[75,5,75,6],[76,5,76,6],[77,5,77,6],[78,5,78,6],[79,5,79,6],[80,5,80,6],[81,5,81,6],[82,5,82,6],[83,5,83,6],[84,5,84,6],[85,5,85,6],[86,5,86,6],[87,5,87,6],[88,5,88,6],[89,5,89,6],[90,5,90,6],[91,5,91,6],[92,5,92,6],[93,5,93,6],[94,5,94,6],[95,5,95,6],[96,5,96,6],[97,5,97,6],[98,5,98,6],[99,5,99,6],[100,5,100,6],[101,5,101,6],[102,5,102,6],[103,5,103,6],[104,5,104,6],[105,5,105,6],[106,5,106,6],[107,5,107,6],[108,5,108,6],[109,5,109,6],[110,5,110,6],[111,5,111,6],[112,5,112,6],[113,5,113,6],[114,5,114,6],[115,5,115,6],[116,5,116,6],[117,5,117,6],[118,5,118,6],[119,5,119,6],[120,5,120,6],[121,5,121,6],[122,5,122,6],[123,5,123,6],[124,5,124,6],[125,5,125,6],[126,5,126,6],[127,5,127,6],[128,5,128,6],[129,5,129,6],[130,5,130,6],[131,5,131,6],[132,5,132,6],[133,5,133,6],[134,5,134,6],[135,5,135,6],[64,8,64,9],[65,8,65,9],[66,8,66,9],[67,8,67,9],[68,8,68,9],[69,8,69,9],[70,8,70,9],[71,8,71,9],[72,8,72,9],[73,8,73,9],[74,8,74,9],[75,8,75,9],[76,8,76,9],[77,8,77,9],[78,8,78,9],[79,8,79,9],[80,8,80,9],[81,8,81,9],[82,8,82,9],[83,8,83,9],[84,8,84,9],[85,8,85,9],[86,8,86,9],[87,8,87,9],[88,8,88,9],[89,8,89,9],[90,8,90,9],[106,8,106,9],[107,8,107,9],[108,8,108,9],[124,8,124,9],[125,8,125,9],[91,8,91,9],[92,8,92,9],[93,8,93,9],[94,8,94,9],[95,8,95,9],[96,8,96,9],[97,8,97,9],[98,8,98,9],[99,8,99,9],[100,8,100,9],[101,8,101,9],[102,8,102,9],[103,8,103,9],[104,8,104,9],[105,8,105,9],[109,8,109,9],[110,8,110,9],[111,8,111,9],[112,8,112,9],[113,8,113,9],[114,8,114,9],[135,8,135,9],[118,8,118,9],[119,8,119,9],[120,8,120,9],[121,8,121,9],[122,8,122,9],[123,8,123,9],[126,8,126,9],[127,8,127,9],[128,8,128,9],[129,8,129,9],[115,8,115,9],[116,8,116,9],[117,8,117,9],[130,8,130,9],[131,8,131,9],[132,8,132,9],[133,8,133,9],[134,8,134,9]]}
[null,null,{"$f":"IF(CoverSheet!K12=\"N/A\",\"Progress Report\",\"Progress Report with Disbursement Request\")","v":"Progress Report with Disbursement Request"}]
[]
[null,null,{"$f":"VLOOKUP(Translations!B310,Translations!B3:H508,4,0)","v":"Section 4 : Gestion de subvention"}]
[]
[null,null,{"$f":"VLOOKUP(Translations!B311,Translations!B3:H508,4,0)","v":"A. Commentaires du récipiendaire principal et de l'agent local du Fonds sur la réalisation des exigences de la subvention conformément à l'accord de subvention"}]
[]
[null,null,"! Please include in this table the Grant Requirement number as per Grant Confirmation and full text of the requirement due for fulfilment during this period or outstanding from previous periods. \n! Some may apply to more than one period of grant implementation.  Their fulfilment during one period does not automatically imply fulfilment in subsequent periods.  The LFA should verify that the status of such Grant Requirements is reported by the Principal Recipient during each period concerned.",null,null,null,null,"For LFA Use Only",null,null,"For the Global Fund Use Only"]
[]
[null,{"$f":"IF(C9<>\"\",\"Show\",\"Don't Show\")","v":"Show"},{"$f":"VLOOKUP(Translations!B313,Translations!B3:H508,4,0)","v":"Exigences de la Subvention"},null,{"$f":"VLOOKUP(Translations!B314,Translations!B3:H508,4,0)","v":"État"},{"$f":"VLOOKUP(Translations!B315,Translations!B3:H508,4,0)","v":"Commentaires du récipiendaire principal sur l'avancement de la mise en œuvre"},null,"Status","LFA Analysis\n(this should not be a \"\"Copy and Paste\"\" of the comments provided by the PR)",null,"Validate Status","Country Team Comments"]
["Grantreq1",{"$f":"IF(C10<>\"\",\"Show\",\"Don't Show\")","v":"Show"},{"$f":"IFERROR(INDEX('Grant Management_4 imp-exp'!$D$2:$D$10,MATCH('Grant Management_4'!A10,'Grant Management_4 imp-exp'!$B$2:$B$8,0)),\"\")","v":"Unless otherwise notified by the Global Fund in writing, prior to the use of Grant Funds to finance the procurement of second-line anti-tuberculosis drugs and for each disbursement request that includes funds for the procurement of multi-drug resistant tuberculosis medicines, the Principal Recipient shall deliver to the Global Fund written confirmation of the price estimate and quantities of the second-line anti-tuberculosis drugs that will be procured by the Principal Recipient from the Global Drug Facility’s procurement agent, in form and substance satisfactory to the Global Fund."},null,"In Progress","As soon as the needs to place the order for second ligne therapy shall occur we shall comply to the requirement. The plan is to for second ligne drugs by october 2018 "]
["Grantreq2","Show",{"$f":"IFERROR(INDEX('Grant Management_4 imp-exp'!$D$2:$D$10,MATCH('Grant Management_4'!A11,'Grant Management_4 imp-exp'!$B$2:$B$8,0)),\"\")","v":"The Principal Recipient shall cooperate with the regional Green Light Committee (“GLC”) in the GLC’s efforts to provide support to the Principal Recipient with respect to the monitoring and scaling-up of drug-resistant tuberculosis-related services provided in-country. Accordingly, the Principal Recipient shall budget, and hereby authorizes the Global Fund to disburse to GLC up to a maximum of US$ 25,000, or a lower amount as agreed between GLC and the Global Fund, each year to pay for GLC services."},null,"Not Started","As soon as the needs to place the order for second ligne therapy shall occur we shall comply to the requirement. The plan is to for second ligne drugs by october 2018 "]
["Grantreq3","Show",{"$f":"IFERROR(INDEX('Grant Management_4 imp-exp'!$D$2:$D$10,MATCH('Grant Management_4'!A12,'Grant Management_4 imp-exp'!$B$2:$B$8,0)),\"\")","v":"(i)\tThe parties acknowledge that as of 1 January 2018, the situation in Burundi has been characterized by high safety and security threats and political instability (collectively, the “Force Majeure Conditions”).  Under the circumstances, the parties acknowledge and agree that: \n(a)\tIn consultation with the Global Fund, the Principal Recipient may suspend or terminate the activities under this Agreement at any time if the Force Majeure Conditions so require;\n(b)\tThe budget and performance framework (including the frequency and contents of reporting) will be reviewed by the parties as needed, with a view to evaluating and accounting for any change in the Force Majeure Conditions in the country and its impact on the performance of the Grant, and, should the changes in the Force Majeure Conditions warrant a reprogramming of the Program, the Principal Recipient shall, at the request of the Global Fund, deliver to the Global Fund a revised budget and performance framework in form and substance satisfactory to the Global Fund; and\n(c)\tNotwithstanding Articles 8 and 10 of this Agreement, and except in the case of gross negligence or wilful misconduct of the Principal Recipient, the Principal Recipient shall not be liable for the loss or damage to any assets financed under this Agreement (including Health Products), as well as for the loss of any Grant Funds (the “Relevant Assets and Funds”) caused by the Force Majeure Conditions, provided that the Principal Recipient (i) has fully complied with the other terms and conditions of this Agreement and has exercised due care and diligence and (ii) has exercised all reasonable efforts to mitigate the risk of loss of the Relevant Assets and Funds. Nevertheless, the Principal Recipient shall use its best efforts to seek and obtain recovery of any potential losses to the Relevant Assets and Funds.\n\n(ii)\tThe parties agree that the aforementioned provision shall automatically terminate after the earlier of (a) 31 December 2018 and (b) the determination by the parties that the Force Majeure Conditions no longer exist, unless the period ending on the date referred to in (a) is extended by written agreement of the parties. \n(iii)The parties also acknowledge that the agreement by the Global Fund to the aforementioned provision does not commit the Global Fund to limit the liability of the Principal Recipient (a) if a loss of any Relevant Assets and Funds is not caused by the Force Majeure Conditions or (b) under any programs implemented by the Principal Recipient in any other jurisdiction."},null,"In Progress","UNDSS assessment of security status as not change. The Clause is still valid but no major changes are foreseen"]
["Grantreq4","Don't Show",{"$f":"IFERROR(INDEX('Grant Management_4 imp-exp'!$D$2:$D$10,MATCH('Grant Management_4'!A13,'Grant Management_4 imp-exp'!$B$2:$B$8,0)),\"\")","v":""}]
["Grantreq5","Don't Show",{"$f":"IFERROR(INDEX('Grant Management_4 imp-exp'!$D$2:$D$10,MATCH('Grant Management_4'!A14,'Grant Management_4 imp-exp'!$B$2:$B$8,0)),\"\")","v":""}]
["Grantreq6","Don't Show",{"$f":"IFERROR(INDEX('Grant Management_4 imp-exp'!$D$2:$D$10,MATCH('Grant Management_4'!A15,'Grant Management_4 imp-exp'!$B$2:$B$8,0)),\"\")","v":""}]
["Grantreq7","Don't Show",{"$f":"IFERROR(INDEX('Grant Management_4 imp-exp'!$D$2:$D$10,MATCH('Grant Management_4'!A16,'Grant Management_4 imp-exp'!$B$2:$B$8,0)),\"\")","v":""}]
["Grantreq8","Don't Show",{"$f":"IFERROR(INDEX('Grant Management_4 imp-exp'!$D$2:$D$10,MATCH('Grant Management_4'!A17,'Grant Management_4 imp-exp'!$B$2:$B$8,0)),\"\")","v":""}]
["Grantreq9","Don't Show",{"$f":"IFERROR(INDEX('Grant Management_4 imp-exp'!$D$2:$D$10,MATCH('Grant Management_4'!A18,'Grant Management_4 imp-exp'!$B$2:$B$8,0)),\"\")","v":""}]
["Grantreq10","Don't Show",{"$f":"IFERROR(INDEX('Grant Management_4 imp-exp'!$D$2:$D$10,MATCH('Grant Management_4'!A19,'Grant Management_4 imp-exp'!$B$2:$B$8,0)),\"\")","v":""}]
["Grantreq11","Don't Show",{"$f":"IFERROR(INDEX('Grant Management_4 imp-exp'!$D$2:$D$10,MATCH('Grant Management_4'!A20,'Grant Management_4 imp-exp'!$B$2:$B$8,0)),\"\")","v":""}]
["Grantreq12","Don't Show",{"$f":"IFERROR(INDEX('Grant Management_4 imp-exp'!$D$2:$D$10,MATCH('Grant Management_4'!A21,'Grant Management_4 imp-exp'!$B$2:$B$8,0)),\"\")","v":""}]
["Grantreq13","Don't Show",{"$f":"IFERROR(INDEX('Grant Management_4 imp-exp'!$D$2:$D$10,MATCH('Grant Management_4'!A22,'Grant Management_4 imp-exp'!$B$2:$B$8,0)),\"\")","v":""}]
["Grantreq14","Don't Show",{"$f":"IFERROR(INDEX('Grant Management_4 imp-exp'!$D$2:$D$10,MATCH('Grant Management_4'!A23,'Grant Management_4 imp-exp'!$B$2:$B$8,0)),\"\")","v":""}]
["Grantreq15","Don't Show",{"$f":"IFERROR(INDEX('Grant Management_4 imp-exp'!$D$2:$D$10,MATCH('Grant Management_4'!A24,'Grant Management_4 imp-exp'!$B$2:$B$8,0)),\"\")","v":""}]
["Grantreq16","Don't Show",{"$f":"IFERROR(INDEX('Grant Management_4 imp-exp'!$D$2:$D$10,MATCH('Grant Management_4'!A25,'Grant Management_4 imp-exp'!$B$2:$B$8,0)),\"\")","v":""}]
["Grantreq17","Don't Show",{"$f":"IFERROR(INDEX('Grant Management_4 imp-exp'!$D$2:$D$10,MATCH('Grant Management_4'!A26,'Grant Management_4 imp-exp'!$B$2:$B$8,0)),\"\")","v":""}]
["Grantreq18","Don't Show",{"$f":"IFERROR(INDEX('Grant Management_4 imp-exp'!$D$2:$D$10,MATCH('Grant Management_4'!A27,'Grant Management_4 imp-exp'!$B$2:$B$8,0)),\"\")","v":""}]
["Grantreq19","Don't Show",{"$f":"IFERROR(INDEX('Grant Management_4 imp-exp'!$D$2:$D$10,MATCH('Grant Management_4'!A28,'Grant Management_4 imp-exp'!$B$2:$B$8,0)),\"\")","v":""}]
["Grantreq20","Don't Show",{"$f":"IFERROR(INDEX('Grant Management_4 imp-exp'!$D$2:$D$10,MATCH('Grant Management_4'!A29,'Grant Management_4 imp-exp'!$B$2:$B$8,0)),\"\")","v":""}]
["Grantreq21","Don't Show",{"$f":"IFERROR(INDEX('Grant Management_4 imp-exp'!$D$2:$D$10,MATCH('Grant Management_4'!A30,'Grant Management_4 imp-exp'!$B$2:$B$8,0)),\"\")","v":""}]
["Grantreq22","Don't Show",{"$f":"IFERROR(INDEX('Grant Management_4 imp-exp'!$D$2:$D$10,MATCH('Grant Management_4'!A31,'Grant Management_4 imp-exp'!$B$2:$B$8,0)),\"\")","v":""}]
["Grantreq23","Don't Show",{"$f":"IFERROR(INDEX('Grant Management_4 imp-exp'!$D$2:$D$10,MATCH('Grant Management_4'!A32,'Grant Management_4 imp-exp'!$B$2:$B$8,0)),\"\")","v":""}]
["Grantreq24","Don't Show",{"$f":"IFERROR(INDEX('Grant Management_4 imp-exp'!$D$2:$D$10,MATCH('Grant Management_4'!A33,'Grant Management_4 imp-exp'!$B$2:$B$8,0)),\"\")","v":""}]
["Grantreq25","Don't Show",{"$f":"IFERROR(INDEX('Grant Management_4 imp-exp'!$D$2:$D$10,MATCH('Grant Management_4'!A34,'Grant Management_4 imp-exp'!$B$2:$B$8,0)),\"\")","v":""}]
["Grantreq26","Don't Show",{"$f":"IFERROR(INDEX('Grant Management_4 imp-exp'!$D$2:$D$10,MATCH('Grant Management_4'!A35,'Grant Management_4 imp-exp'!$B$2:$B$8,0)),\"\")","v":""}]
["Grantreq27","Don't Show",{"$f":"IFERROR(INDEX('Grant Management_4 imp-exp'!$D$2:$D$10,MATCH('Grant Management_4'!A36,'Grant Management_4 imp-exp'!$B$2:$B$8,0)),\"\")","v":""}]
["Grantreq28","Don't Show",{"$f":"IFERROR(INDEX('Grant Management_4 imp-exp'!$D$2:$D$10,MATCH('Grant Management_4'!A37,'Grant Management_4 imp-exp'!$B$2:$B$8,0)),\"\")","v":""}]
["Grantreq29","Don't Show",{"$f":"IFERROR(INDEX('Grant Management_4 imp-exp'!$D$2:$D$10,MATCH('Grant Management_4'!A38,'Grant Management_4 imp-exp'!$B$2:$B$8,0)),\"\")","v":""}]
["Grantreq30","Don't Show",{"$f":"IFERROR(INDEX('Grant Management_4 imp-exp'!$D$2:$D$10,MATCH('Grant Management_4'!A39,'Grant Management_4 imp-exp'!$B$2:$B$8,0)),\"\")","v":""}]
["Grantreq31","Don't Show",{"$f":"IFERROR(INDEX('Grant Management_4 imp-exp'!$D$2:$D$10,MATCH('Grant Management_4'!A40,'Grant Management_4 imp-exp'!$B$2:$B$8,0)),\"\")","v":""}]
["Grantreq32","Don't Show",{"$f":"IFERROR(INDEX('Grant Management_4 imp-exp'!$D$2:$D$10,MATCH('Grant Management_4'!A41,'Grant Management_4 imp-exp'!$B$2:$B$8,0)),\"\")","v":""}]
["Grantreq33","Don't Show",{"$f":"IFERROR(INDEX('Grant Management_4 imp-exp'!$D$2:$D$10,MATCH('Grant Management_4'!A42,'Grant Management_4 imp-exp'!$B$2:$B$8,0)),\"\")","v":""}]
["Grantreq34","Don't Show",{"$f":"IFERROR(INDEX('Grant Management_4 imp-exp'!$D$2:$D$10,MATCH('Grant Management_4'!A43,'Grant Management_4 imp-exp'!$B$2:$B$8,0)),\"\")","v":""}]
["Grantreq35","Don't Show",{"$f":"IFERROR(INDEX('Grant Management_4 imp-exp'!$D$2:$D$10,MATCH('Grant Management_4'!A44,'Grant Management_4 imp-exp'!$B$2:$B$8,0)),\"\")","v":""}]
["Grantreq36","Don't Show",{"$f":"IFERROR(INDEX('Grant Management_4 imp-exp'!$D$2:$D$10,MATCH('Grant Management_4'!A45,'Grant Management_4 imp-exp'!$B$2:$B$8,0)),\"\")","v":""}]
["Grantreq37","Don't Show",{"$f":"IFERROR(INDEX('Grant Management_4 imp-exp'!$D$2:$D$10,MATCH('Grant Management_4'!A46,'Grant Management_4 imp-exp'!$B$2:$B$8,0)),\"\")","v":""}]
["Grantreq38","Don't Show",{"$f":"IFERROR(INDEX('Grant Management_4 imp-exp'!$D$2:$D$10,MATCH('Grant Management_4'!A47,'Grant Management_4 imp-exp'!$B$2:$B$8,0)),\"\")","v":""}]
["Grantreq39","Don't Show",{"$f":"IFERROR(INDEX('Grant Management_4 imp-exp'!$D$2:$D$10,MATCH('Grant Management_4'!A48,'Grant Management_4 imp-exp'!$B$2:$B$8,0)),\"\")","v":""}]
["Grantreq40","Don't Show",{"$f":"IFERROR(INDEX('Grant Management_4 imp-exp'!$D$2:$D$10,MATCH('Grant Management_4'!A49,'Grant Management_4 imp-exp'!$B$2:$B$8,0)),\"\")","v":""}]
["Grantreq41","Don't Show",{"$f":"IFERROR(INDEX('Grant Management_4 imp-exp'!$D$2:$D$10,MATCH('Grant Management_4'!A50,'Grant Management_4 imp-exp'!$B$2:$B$8,0)),\"\")","v":""}]
["Grantreq42","Don't Show",{"$f":"IFERROR(INDEX('Grant Management_4 imp-exp'!$D$2:$D$10,MATCH('Grant Management_4'!A51,'Grant Management_4 imp-exp'!$B$2:$B$8,0)),\"\")","v":""}]
["Grantreq43","Don't Show",{"$f":"IFERROR(INDEX('Grant Management_4 imp-exp'!$D$2:$D$10,MATCH('Grant Management_4'!A52,'Grant Management_4 imp-exp'!$B$2:$B$8,0)),\"\")","v":""}]
["Grantreq44","Don't Show",{"$f":"IFERROR(INDEX('Grant Management_4 imp-exp'!$D$2:$D$10,MATCH('Grant Management_4'!A53,'Grant Management_4 imp-exp'!$B$2:$B$8,0)),\"\")","v":""}]
["Grantreq45","Don't Show",{"$f":"IFERROR(INDEX('Grant Management_4 imp-exp'!$D$2:$D$10,MATCH('Grant Management_4'!A54,'Grant Management_4 imp-exp'!$B$2:$B$8,0)),\"\")","v":""}]
["Grantreq46","Don't Show",{"$f":"IFERROR(INDEX('Grant Management_4 imp-exp'!$D$2:$D$10,MATCH('Grant Management_4'!A55,'Grant Management_4 imp-exp'!$B$2:$B$8,0)),\"\")","v":""}]
["Grantreq47","Don't Show",{"$f":"IFERROR(INDEX('Grant Management_4 imp-exp'!$D$2:$D$10,MATCH('Grant Management_4'!A56,'Grant Management_4 imp-exp'!$B$2:$B$8,0)),\"\")","v":""}]
["Grantreq48","Don't Show",{"$f":"IFERROR(INDEX('Grant Management_4 imp-exp'!$D$2:$D$10,MATCH('Grant Management_4'!A57,'Grant Management_4 imp-exp'!$B$2:$B$8,0)),\"\")","v":""}]
["Grantreq49","Don't Show",{"$f":"IFERROR(INDEX('Grant Management_4 imp-exp'!$D$2:$D$10,MATCH('Grant Management_4'!A58,'Grant Management_4 imp-exp'!$B$2:$B$8,0)),\"\")","v":""}]
["Grantreq50","Don't Show",{"$f":"IFERROR(INDEX('Grant Management_4 imp-exp'!$D$2:$D$10,MATCH('Grant Management_4'!A59,'Grant Management_4 imp-exp'!$B$2:$B$8,0)),\"\")","v":""}]
[null,"Show","x"]
[null,"Show","B. PR & LFA Review of Progress on Mitigating Actions"]
[null,"Show","x"]
["Record ID","Show","Risk Details",null,"Timeline","Mitigating Action",null,"PR Status","PR Comments",null,"LFA Status","LFA Comments"]
["Mitaction1","Don't Show",{"$f":"IFERROR(INDEX('Grant Management_4 imp-exp'!D$19:D$20,MATCH('Grant Management_4'!A64,'Grant Management_4 imp-exp'!$B$19:$B$20,0)),\"\")","v":""},null,{"$f":"IFERROR(INDEX('Grant Management_4 imp-exp'!F$19:F$20,MATCH('Grant Management_4'!A64,'Grant Management_4 imp-exp'!$B$19:$B$20,0)),\"\")","v":""},{"$f":"IFERROR(INDEX('Grant Management_4 imp-exp'!G$19:G$20,MATCH('Grant Management_4'!A64,'Grant Management_4 imp-exp'!$B$19:$B$20,0)),\"\")","v":""}]
["Mitaction2","Don't Show",{"$f":"IFERROR(INDEX('Grant Management_4 imp-exp'!D$19:D$20,MATCH('Grant Management_4'!A65,'Grant Management_4 imp-exp'!$B$19:$B$20,0)),\"\")","v":""},null,{"$f":"IFERROR(INDEX('Grant Management_4 imp-exp'!F$19:F$20,MATCH('Grant Management_4'!A65,'Grant Management_4 imp-exp'!$B$19:$B$20,0)),\"\")","v":""},{"$f":"IFERROR(INDEX('Grant Management_4 imp-exp'!G$19:G$20,MATCH('Grant Management_4'!A65,'Grant Management_4 imp-exp'!$B$19:$B$20,0)),\"\")","v":""}]
["Mitaction3","Don't Show",{"$f":"IFERROR(INDEX('Grant Management_4 imp-exp'!D$19:D$20,MATCH('Grant Management_4'!A66,'Grant Management_4 imp-exp'!$B$19:$B$20,0)),\"\")","v":""},null,{"$f":"IFERROR(INDEX('Grant Management_4 imp-exp'!F$19:F$20,MATCH('Grant Management_4'!A66,'Grant Management_4 imp-exp'!$B$19:$B$20,0)),\"\")","v":""},{"$f":"IFERROR(INDEX('Grant Management_4 imp-exp'!G$19:G$20,MATCH('Grant Management_4'!A66,'Grant Management_4 imp-exp'!$B$19:$B$20,0)),\"\")","v":""}]
["Mitaction4","Don't Show",{"$f":"IFERROR(INDEX('Grant Management_4 imp-exp'!D$19:D$20,MATCH('Grant Management_4'!A67,'Grant Management_4 imp-exp'!$B$19:$B$20,0)),\"\")","v":""},null,{"$f":"IFERROR(INDEX('Grant Management_4 imp-exp'!F$19:F$20,MATCH('Grant Management_4'!A67,'Grant Management_4 imp-exp'!$B$19:$B$20,0)),\"\")","v":""},{"$f":"IFERROR(INDEX('Grant Management_4 imp-exp'!G$19:G$20,MATCH('Grant Management_4'!A67,'Grant Management_4 imp-exp'!$B$19:$B$20,0)),\"\")","v":""}]
["Mitaction5","Don't Show",{"$f":"IFERROR(INDEX('Grant Management_4 imp-exp'!D$19:D$20,MATCH('Grant Management_4'!A68,'Grant Management_4 imp-exp'!$B$19:$B$20,0)),\"\")","v":""},null,{"$f":"IFERROR(INDEX('Grant Management_4 imp-exp'!F$19:F$20,MATCH('Grant Management_4'!A68,'Grant Management_4 imp-exp'!$B$19:$B$20,0)),\"\")","v":""},{"$f":"IFERROR(INDEX('Grant Management_4 imp-exp'!G$19:G$20,MATCH('Grant Management_4'!A68,'Grant Management_4 imp-exp'!$B$19:$B$20,0)),\"\")","v":""}]
["Mitaction6","Don't Show",{"$f":"IFERROR(INDEX('Grant Management_4 imp-exp'!D$19:D$20,MATCH('Grant Management_4'!A69,'Grant Management_4 imp-exp'!$B$19:$B$20,0)),\"\")","v":""},null,{"$f":"IFERROR(INDEX('Grant Management_4 imp-exp'!F$19:F$20,MATCH('Grant Management_4'!A69,'Grant Management_4 imp-exp'!$B$19:$B$20,0)),\"\")","v":""},{"$f":"IFERROR(INDEX('Grant Management_4 imp-exp'!G$19:G$20,MATCH('Grant Management_4'!A69,'Grant Management_4 imp-exp'!$B$19:$B$20,0)),\"\")","v":""}]
["Mitaction7","Don't Show",{"$f":"IFERROR(INDEX('Grant Management_4 imp-exp'!D$19:D$20,MATCH('Grant Management_4'!A70,'Grant Management_4 imp-exp'!$B$19:$B$20,0)),\"\")","v":""},null,{"$f":"IFERROR(INDEX('Grant Management_4 imp-exp'!F$19:F$20,MATCH('Grant Management_4'!A70,'Grant Management_4 imp-exp'!$B$19:$B$20,0)),\"\")","v":""},{"$f":"IFERROR(INDEX('Grant Management_4 imp-exp'!G$19:G$20,MATCH('Grant Management_4'!A70,'Grant Management_4 imp-exp'!$B$19:$B$20,0)),\"\")","v":""}]
["Mitaction8","Don't Show",{"$f":"IFERROR(INDEX('Grant Management_4 imp-exp'!D$19:D$20,MATCH('Grant Management_4'!A71,'Grant Management_4 imp-exp'!$B$19:$B$20,0)),\"\")","v":""},null,{"$f":"IFERROR(INDEX('Grant Management_4 imp-exp'!F$19:F$20,MATCH('Grant Management_4'!A71,'Grant Management_4 imp-exp'!$B$19:$B$20,0)),\"\")","v":""},{"$f":"IFERROR(INDEX('Grant Management_4 imp-exp'!G$19:G$20,MATCH('Grant Management_4'!A71,'Grant Management_4 imp-exp'!$B$19:$B$20,0)),\"\")","v":""}]
["Mitaction9","Don't Show",{"$f":"IFERROR(INDEX('Grant Management_4 imp-exp'!D$19:D$20,MATCH('Grant Management_4'!A72,'Grant Management_4 imp-exp'!$B$19:$B$20,0)),\"\")","v":""},null,{"$f":"IFERROR(INDEX('Grant Management_4 imp-exp'!F$19:F$20,MATCH('Grant Management_4'!A72,'Grant Management_4 imp-exp'!$B$19:$B$20,0)),\"\")","v":""},{"$f":"IFERROR(INDEX('Grant Management_4 imp-exp'!G$19:G$20,MATCH('Grant Management_4'!A72,'Grant Management_4 imp-exp'!$B$19:$B$20,0)),\"\")","v":""}]
["Mitaction10","Don't Show",{"$f":"IFERROR(INDEX('Grant Management_4 imp-exp'!D$19:D$20,MATCH('Grant Management_4'!A73,'Grant Management_4 imp-exp'!$B$19:$B$20,0)),\"\")","v":""},null,{"$f":"IFERROR(INDEX('Grant Management_4 imp-exp'!F$19:F$20,MATCH('Grant Management_4'!A73,'Grant Management_4 imp-exp'!$B$19:$B$20,0)),\"\")","v":""},{"$f":"IFERROR(INDEX('Grant Management_4 imp-exp'!G$19:G$20,MATCH('Grant Management_4'!A73,'Grant Management_4 imp-exp'!$B$19:$B$20,0)),\"\")","v":""}]
["Mitaction11",{"$f":"IF(C74<>\"\",\"Show\",\"Don't Show\")","v":"Don't Show"},{"$f":"IFERROR(INDEX('Grant Management_4 imp-exp'!D$19:D$20,MATCH('Grant Management_4'!A74,'Grant Management_4 imp-exp'!$B$19:$B$20,0)),\"\")","v":""},null,{"$f":"IFERROR(INDEX('Grant Management_4 imp-exp'!F$19:F$20,MATCH('Grant Management_4'!A74,'Grant Management_4 imp-exp'!$B$19:$B$20,0)),\"\")","v":""},{"$f":"IFERROR(INDEX('Grant Management_4 imp-exp'!G$19:G$20,MATCH('Grant Management_4'!A74,'Grant Management_4 imp-exp'!$B$19:$B$20,0)),\"\")","v":""}]
["Mitaction12","Don't Show",{"$f":"IFERROR(INDEX('Grant Management_4 imp-exp'!D$19:D$20,MATCH('Grant Management_4'!A75,'Grant Management_4 imp-exp'!$B$19:$B$20,0)),\"\")","v":""},null,{"$f":"IFERROR(INDEX('Grant Management_4 imp-exp'!F$19:F$20,MATCH('Grant Management_4'!A75,'Grant Management_4 imp-exp'!$B$19:$B$20,0)),\"\")","v":""},{"$f":"IFERROR(INDEX('Grant Management_4 imp-exp'!G$19:G$20,MATCH('Grant Management_4'!A75,'Grant Management_4 imp-exp'!$B$19:$B$20,0)),\"\")","v":""}]
["Mitaction13","Don't Show",{"$f":"IFERROR(INDEX('Grant Management_4 imp-exp'!D$19:D$20,MATCH('Grant Management_4'!A76,'Grant Management_4 imp-exp'!$B$19:$B$20,0)),\"\")","v":""},null,{"$f":"IFERROR(INDEX('Grant Management_4 imp-exp'!F$19:F$20,MATCH('Grant Management_4'!A76,'Grant Management_4 imp-exp'!$B$19:$B$20,0)),\"\")","v":""},{"$f":"IFERROR(INDEX('Grant Management_4 imp-exp'!G$19:G$20,MATCH('Grant Management_4'!A76,'Grant Management_4 imp-exp'!$B$19:$B$20,0)),\"\")","v":""}]
["Mitaction14","Don't Show",{"$f":"IFERROR(INDEX('Grant Management_4 imp-exp'!D$19:D$20,MATCH('Grant Management_4'!A77,'Grant Management_4 imp-exp'!$B$19:$B$20,0)),\"\")","v":""},null,{"$f":"IFERROR(INDEX('Grant Management_4 imp-exp'!F$19:F$20,MATCH('Grant Management_4'!A77,'Grant Management_4 imp-exp'!$B$19:$B$20,0)),\"\")","v":""},{"$f":"IFERROR(INDEX('Grant Management_4 imp-exp'!G$19:G$20,MATCH('Grant Management_4'!A77,'Grant Management_4 imp-exp'!$B$19:$B$20,0)),\"\")","v":""}]
["Mitaction15","Don't Show",{"$f":"IFERROR(INDEX('Grant Management_4 imp-exp'!D$19:D$20,MATCH('Grant Management_4'!A78,'Grant Management_4 imp-exp'!$B$19:$B$20,0)),\"\")","v":""},null,{"$f":"IFERROR(INDEX('Grant Management_4 imp-exp'!F$19:F$20,MATCH('Grant Management_4'!A78,'Grant Management_4 imp-exp'!$B$19:$B$20,0)),\"\")","v":""},{"$f":"IFERROR(INDEX('Grant Management_4 imp-exp'!G$19:G$20,MATCH('Grant Management_4'!A78,'Grant Management_4 imp-exp'!$B$19:$B$20,0)),\"\")","v":""}]
["Mitaction16","Don't Show",{"$f":"IFERROR(INDEX('Grant Management_4 imp-exp'!D$19:D$20,MATCH('Grant Management_4'!A79,'Grant Management_4 imp-exp'!$B$19:$B$20,0)),\"\")","v":""},null,{"$f":"IFERROR(INDEX('Grant Management_4 imp-exp'!F$19:F$20,MATCH('Grant Management_4'!A79,'Grant Management_4 imp-exp'!$B$19:$B$20,0)),\"\")","v":""},{"$f":"IFERROR(INDEX('Grant Management_4 imp-exp'!G$19:G$20,MATCH('Grant Management_4'!A79,'Grant Management_4 imp-exp'!$B$19:$B$20,0)),\"\")","v":""}]
["Mitaction17","Don't Show",{"$f":"IFERROR(INDEX('Grant Management_4 imp-exp'!D$19:D$20,MATCH('Grant Management_4'!A80,'Grant Management_4 imp-exp'!$B$19:$B$20,0)),\"\")","v":""},null,{"$f":"IFERROR(INDEX('Grant Management_4 imp-exp'!F$19:F$20,MATCH('Grant Management_4'!A80,'Grant Management_4 imp-exp'!$B$19:$B$20,0)),\"\")","v":""},{"$f":"IFERROR(INDEX('Grant Management_4 imp-exp'!G$19:G$20,MATCH('Grant Management_4'!A80,'Grant Management_4 imp-exp'!$B$19:$B$20,0)),\"\")","v":""}]
["Mitaction18","Don't Show",{"$f":"IFERROR(INDEX('Grant Management_4 imp-exp'!D$19:D$20,MATCH('Grant Management_4'!A81,'Grant Management_4 imp-exp'!$B$19:$B$20,0)),\"\")","v":""},null,{"$f":"IFERROR(INDEX('Grant Management_4 imp-exp'!F$19:F$20,MATCH('Grant Management_4'!A81,'Grant Management_4 imp-exp'!$B$19:$B$20,0)),\"\")","v":""},{"$f":"IFERROR(INDEX('Grant Management_4 imp-exp'!G$19:G$20,MATCH('Grant Management_4'!A81,'Grant Management_4 imp-exp'!$B$19:$B$20,0)),\"\")","v":""}]
["Mitaction19","Don't Show",{"$f":"IFERROR(INDEX('Grant Management_4 imp-exp'!D$19:D$20,MATCH('Grant Management_4'!A82,'Grant Management_4 imp-exp'!$B$19:$B$20,0)),\"\")","v":""},null,{"$f":"IFERROR(INDEX('Grant Management_4 imp-exp'!F$19:F$20,MATCH('Grant Management_4'!A82,'Grant Management_4 imp-exp'!$B$19:$B$20,0)),\"\")","v":""},{"$f":"IFERROR(INDEX('Grant Management_4 imp-exp'!G$19:G$20,MATCH('Grant Management_4'!A82,'Grant Management_4 imp-exp'!$B$19:$B$20,0)),\"\")","v":""}]
["Mitaction20","Don't Show",{"$f":"IFERROR(INDEX('Grant Management_4 imp-exp'!D$19:D$20,MATCH('Grant Management_4'!A83,'Grant Management_4 imp-exp'!$B$19:$B$20,0)),\"\")","v":""},null,{"$f":"IFERROR(INDEX('Grant Management_4 imp-exp'!F$19:F$20,MATCH('Grant Management_4'!A83,'Grant Management_4 imp-exp'!$B$19:$B$20,0)),\"\")","v":""},{"$f":"IFERROR(INDEX('Grant Management_4 imp-exp'!G$19:G$20,MATCH('Grant Management_4'!A83,'Grant Management_4 imp-exp'!$B$19:$B$20,0)),\"\")","v":""}]
["Mitaction21","Don't Show",{"$f":"IFERROR(INDEX('Grant Management_4 imp-exp'!D$19:D$20,MATCH('Grant Management_4'!A84,'Grant Management_4 imp-exp'!$B$19:$B$20,0)),\"\")","v":""},null,{"$f":"IFERROR(INDEX('Grant Management_4 imp-exp'!F$19:F$20,MATCH('Grant Management_4'!A84,'Grant Management_4 imp-exp'!$B$19:$B$20,0)),\"\")","v":""},{"$f":"IFERROR(INDEX('Grant Management_4 imp-exp'!G$19:G$20,MATCH('Grant Management_4'!A84,'Grant Management_4 imp-exp'!$B$19:$B$20,0)),\"\")","v":""}]
["Mitaction22","Don't Show",{"$f":"IFERROR(INDEX('Grant Management_4 imp-exp'!D$19:D$20,MATCH('Grant Management_4'!A85,'Grant Management_4 imp-exp'!$B$19:$B$20,0)),\"\")","v":""},null,{"$f":"IFERROR(INDEX('Grant Management_4 imp-exp'!F$19:F$20,MATCH('Grant Management_4'!A85,'Grant Management_4 imp-exp'!$B$19:$B$20,0)),\"\")","v":""},{"$f":"IFERROR(INDEX('Grant Management_4 imp-exp'!G$19:G$20,MATCH('Grant Management_4'!A85,'Grant Management_4 imp-exp'!$B$19:$B$20,0)),\"\")","v":""}]
["Mitaction23","Don't Show",{"$f":"IFERROR(INDEX('Grant Management_4 imp-exp'!D$19:D$20,MATCH('Grant Management_4'!A86,'Grant Management_4 imp-exp'!$B$19:$B$20,0)),\"\")","v":""},null,{"$f":"IFERROR(INDEX('Grant Management_4 imp-exp'!F$19:F$20,MATCH('Grant Management_4'!A86,'Grant Management_4 imp-exp'!$B$19:$B$20,0)),\"\")","v":""},{"$f":"IFERROR(INDEX('Grant Management_4 imp-exp'!G$19:G$20,MATCH('Grant Management_4'!A86,'Grant Management_4 imp-exp'!$B$19:$B$20,0)),\"\")","v":""}]
["Mitaction24","Don't Show",{"$f":"IFERROR(INDEX('Grant Management_4 imp-exp'!D$19:D$20,MATCH('Grant Management_4'!A87,'Grant Management_4 imp-exp'!$B$19:$B$20,0)),\"\")","v":""},null,{"$f":"IFERROR(INDEX('Grant Management_4 imp-exp'!F$19:F$20,MATCH('Grant Management_4'!A87,'Grant Management_4 imp-exp'!$B$19:$B$20,0)),\"\")","v":""},{"$f":"IFERROR(INDEX('Grant Management_4 imp-exp'!G$19:G$20,MATCH('Grant Management_4'!A87,'Grant Management_4 imp-exp'!$B$19:$B$20,0)),\"\")","v":""}]
["Mitaction25","Don't Show",{"$f":"IFERROR(INDEX('Grant Management_4 imp-exp'!D$19:D$20,MATCH('Grant Management_4'!A88,'Grant Management_4 imp-exp'!$B$19:$B$20,0)),\"\")","v":""},null,{"$f":"IFERROR(INDEX('Grant Management_4 imp-exp'!F$19:F$20,MATCH('Grant Management_4'!A88,'Grant Management_4 imp-exp'!$B$19:$B$20,0)),\"\")","v":""},{"$f":"IFERROR(INDEX('Grant Management_4 imp-exp'!G$19:G$20,MATCH('Grant Management_4'!A88,'Grant Management_4 imp-exp'!$B$19:$B$20,0)),\"\")","v":""}]
["Mitaction26","Don't Show",{"$f":"IFERROR(INDEX('Grant Management_4 imp-exp'!D$19:D$20,MATCH('Grant Management_4'!A89,'Grant Management_4 imp-exp'!$B$19:$B$20,0)),\"\")","v":""},null,{"$f":"IFERROR(INDEX('Grant Management_4 imp-exp'!F$19:F$20,MATCH('Grant Management_4'!A89,'Grant Management_4 imp-exp'!$B$19:$B$20,0)),\"\")","v":""},{"$f":"IFERROR(INDEX('Grant Management_4 imp-exp'!G$19:G$20,MATCH('Grant Management_4'!A89,'Grant Management_4 imp-exp'!$B$19:$B$20,0)),\"\")","v":""}]
["Mitaction27","Don't Show",{"$f":"IFERROR(INDEX('Grant Management_4 imp-exp'!D$19:D$20,MATCH('Grant Management_4'!A90,'Grant Management_4 imp-exp'!$B$19:$B$20,0)),\"\")","v":""},null,{"$f":"IFERROR(INDEX('Grant Management_4 imp-exp'!F$19:F$20,MATCH('Grant Management_4'!A90,'Grant Management_4 imp-exp'!$B$19:$B$20,0)),\"\")","v":""},{"$f":"IFERROR(INDEX('Grant Management_4 imp-exp'!G$19:G$20,MATCH('Grant Management_4'!A90,'Grant Management_4 imp-exp'!$B$19:$B$20,0)),\"\")","v":""}]
["Mitaction28","Don't Show",{"$f":"IFERROR(INDEX('Grant Management_4 imp-exp'!D$19:D$20,MATCH('Grant Management_4'!A91,'Grant Management_4 imp-exp'!$B$19:$B$20,0)),\"\")","v":""},null,{"$f":"IFERROR(INDEX('Grant Management_4 imp-exp'!F$19:F$20,MATCH('Grant Management_4'!A91,'Grant Management_4 imp-exp'!$B$19:$B$20,0)),\"\")","v":""},{"$f":"IFERROR(INDEX('Grant Management_4 imp-exp'!G$19:G$20,MATCH('Grant Management_4'!A91,'Grant Management_4 imp-exp'!$B$19:$B$20,0)),\"\")","v":""}]
["Mitaction29","Don't Show",{"$f":"IFERROR(INDEX('Grant Management_4 imp-exp'!D$19:D$20,MATCH('Grant Management_4'!A92,'Grant Management_4 imp-exp'!$B$19:$B$20,0)),\"\")","v":""},null,{"$f":"IFERROR(INDEX('Grant Management_4 imp-exp'!F$19:F$20,MATCH('Grant Management_4'!A92,'Grant Management_4 imp-exp'!$B$19:$B$20,0)),\"\")","v":""},{"$f":"IFERROR(INDEX('Grant Management_4 imp-exp'!G$19:G$20,MATCH('Grant Management_4'!A92,'Grant Management_4 imp-exp'!$B$19:$B$20,0)),\"\")","v":""}]
["Mitaction30","Don't Show",{"$f":"IFERROR(INDEX('Grant Management_4 imp-exp'!D$19:D$20,MATCH('Grant Management_4'!A93,'Grant Management_4 imp-exp'!$B$19:$B$20,0)),\"\")","v":""},null,{"$f":"IFERROR(INDEX('Grant Management_4 imp-exp'!F$19:F$20,MATCH('Grant Management_4'!A93,'Grant Management_4 imp-exp'!$B$19:$B$20,0)),\"\")","v":""},{"$f":"IFERROR(INDEX('Grant Management_4 imp-exp'!G$19:G$20,MATCH('Grant Management_4'!A93,'Grant Management_4 imp-exp'!$B$19:$B$20,0)),\"\")","v":""}]
["Mitaction31","Don't Show",{"$f":"IFERROR(INDEX('Grant Management_4 imp-exp'!D$19:D$20,MATCH('Grant Management_4'!A94,'Grant Management_4 imp-exp'!$B$19:$B$20,0)),\"\")","v":""},null,{"$f":"IFERROR(INDEX('Grant Management_4 imp-exp'!F$19:F$20,MATCH('Grant Management_4'!A94,'Grant Management_4 imp-exp'!$B$19:$B$20,0)),\"\")","v":""},{"$f":"IFERROR(INDEX('Grant Management_4 imp-exp'!G$19:G$20,MATCH('Grant Management_4'!A94,'Grant Management_4 imp-exp'!$B$19:$B$20,0)),\"\")","v":""}]
["Mitaction32","Don't Show",{"$f":"IFERROR(INDEX('Grant Management_4 imp-exp'!D$19:D$20,MATCH('Grant Management_4'!A95,'Grant Management_4 imp-exp'!$B$19:$B$20,0)),\"\")","v":""},null,{"$f":"IFERROR(INDEX('Grant Management_4 imp-exp'!F$19:F$20,MATCH('Grant Management_4'!A95,'Grant Management_4 imp-exp'!$B$19:$B$20,0)),\"\")","v":""},{"$f":"IFERROR(INDEX('Grant Management_4 imp-exp'!G$19:G$20,MATCH('Grant Management_4'!A95,'Grant Management_4 imp-exp'!$B$19:$B$20,0)),\"\")","v":""}]
["Mitaction33","Don't Show",{"$f":"IFERROR(INDEX('Grant Management_4 imp-exp'!D$19:D$20,MATCH('Grant Management_4'!A96,'Grant Management_4 imp-exp'!$B$19:$B$20,0)),\"\")","v":""},null,{"$f":"IFERROR(INDEX('Grant Management_4 imp-exp'!F$19:F$20,MATCH('Grant Management_4'!A96,'Grant Management_4 imp-exp'!$B$19:$B$20,0)),\"\")","v":""},{"$f":"IFERROR(INDEX('Grant Management_4 imp-exp'!G$19:G$20,MATCH('Grant Management_4'!A96,'Grant Management_4 imp-exp'!$B$19:$B$20,0)),\"\")","v":""}]
["Mitaction34","Don't Show",{"$f":"IFERROR(INDEX('Grant Management_4 imp-exp'!D$19:D$20,MATCH('Grant Management_4'!A97,'Grant Management_4 imp-exp'!$B$19:$B$20,0)),\"\")","v":""},null,{"$f":"IFERROR(INDEX('Grant Management_4 imp-exp'!F$19:F$20,MATCH('Grant Management_4'!A97,'Grant Management_4 imp-exp'!$B$19:$B$20,0)),\"\")","v":""},{"$f":"IFERROR(INDEX('Grant Management_4 imp-exp'!G$19:G$20,MATCH('Grant Management_4'!A97,'Grant Management_4 imp-exp'!$B$19:$B$20,0)),\"\")","v":""}]
["Mitaction35","Don't Show",{"$f":"IFERROR(INDEX('Grant Management_4 imp-exp'!D$19:D$20,MATCH('Grant Management_4'!A98,'Grant Management_4 imp-exp'!$B$19:$B$20,0)),\"\")","v":""},null,{"$f":"IFERROR(INDEX('Grant Management_4 imp-exp'!F$19:F$20,MATCH('Grant Management_4'!A98,'Grant Management_4 imp-exp'!$B$19:$B$20,0)),\"\")","v":""},{"$f":"IFERROR(INDEX('Grant Management_4 imp-exp'!G$19:G$20,MATCH('Grant Management_4'!A98,'Grant Management_4 imp-exp'!$B$19:$B$20,0)),\"\")","v":""}]
["Mitaction36","Don't Show",{"$f":"IFERROR(INDEX('Grant Management_4 imp-exp'!D$19:D$20,MATCH('Grant Management_4'!A99,'Grant Management_4 imp-exp'!$B$19:$B$20,0)),\"\")","v":""},null,{"$f":"IFERROR(INDEX('Grant Management_4 imp-exp'!F$19:F$20,MATCH('Grant Management_4'!A99,'Grant Management_4 imp-exp'!$B$19:$B$20,0)),\"\")","v":""},{"$f":"IFERROR(INDEX('Grant Management_4 imp-exp'!G$19:G$20,MATCH('Grant Management_4'!A99,'Grant Management_4 imp-exp'!$B$19:$B$20,0)),\"\")","v":""}]
["Mitaction37","Don't Show",{"$f":"IFERROR(INDEX('Grant Management_4 imp-exp'!D$19:D$20,MATCH('Grant Management_4'!A100,'Grant Management_4 imp-exp'!$B$19:$B$20,0)),\"\")","v":""},null,{"$f":"IFERROR(INDEX('Grant Management_4 imp-exp'!F$19:F$20,MATCH('Grant Management_4'!A100,'Grant Management_4 imp-exp'!$B$19:$B$20,0)),\"\")","v":""},{"$f":"IFERROR(INDEX('Grant Management_4 imp-exp'!G$19:G$20,MATCH('Grant Management_4'!A100,'Grant Management_4 imp-exp'!$B$19:$B$20,0)),\"\")","v":""}]
["Mitaction38","Don't Show",{"$f":"IFERROR(INDEX('Grant Management_4 imp-exp'!D$19:D$20,MATCH('Grant Management_4'!A101,'Grant Management_4 imp-exp'!$B$19:$B$20,0)),\"\")","v":""},null,{"$f":"IFERROR(INDEX('Grant Management_4 imp-exp'!F$19:F$20,MATCH('Grant Management_4'!A101,'Grant Management_4 imp-exp'!$B$19:$B$20,0)),\"\")","v":""},{"$f":"IFERROR(INDEX('Grant Management_4 imp-exp'!G$19:G$20,MATCH('Grant Management_4'!A101,'Grant Management_4 imp-exp'!$B$19:$B$20,0)),\"\")","v":""}]
["Mitaction39","Don't Show",{"$f":"IFERROR(INDEX('Grant Management_4 imp-exp'!D$19:D$20,MATCH('Grant Management_4'!A102,'Grant Management_4 imp-exp'!$B$19:$B$20,0)),\"\")","v":""},null,{"$f":"IFERROR(INDEX('Grant Management_4 imp-exp'!F$19:F$20,MATCH('Grant Management_4'!A102,'Grant Management_4 imp-exp'!$B$19:$B$20,0)),\"\")","v":""},{"$f":"IFERROR(INDEX('Grant Management_4 imp-exp'!G$19:G$20,MATCH('Grant Management_4'!A102,'Grant Management_4 imp-exp'!$B$19:$B$20,0)),\"\")","v":""}]
["Mitaction40","Don't Show",{"$f":"IFERROR(INDEX('Grant Management_4 imp-exp'!D$19:D$20,MATCH('Grant Management_4'!A103,'Grant Management_4 imp-exp'!$B$19:$B$20,0)),\"\")","v":""},null,{"$f":"IFERROR(INDEX('Grant Management_4 imp-exp'!F$19:F$20,MATCH('Grant Management_4'!A103,'Grant Management_4 imp-exp'!$B$19:$B$20,0)),\"\")","v":""},{"$f":"IFERROR(INDEX('Grant Management_4 imp-exp'!G$19:G$20,MATCH('Grant Management_4'!A103,'Grant Management_4 imp-exp'!$B$19:$B$20,0)),\"\")","v":""}]
["Mitaction41","Don't Show",{"$f":"IFERROR(INDEX('Grant Management_4 imp-exp'!D$19:D$20,MATCH('Grant Management_4'!A104,'Grant Management_4 imp-exp'!$B$19:$B$20,0)),\"\")","v":""},null,{"$f":"IFERROR(INDEX('Grant Management_4 imp-exp'!F$19:F$20,MATCH('Grant Management_4'!A104,'Grant Management_4 imp-exp'!$B$19:$B$20,0)),\"\")","v":""},{"$f":"IFERROR(INDEX('Grant Management_4 imp-exp'!G$19:G$20,MATCH('Grant Management_4'!A104,'Grant Management_4 imp-exp'!$B$19:$B$20,0)),\"\")","v":""}]
["Mitaction42","Don't Show",{"$f":"IFERROR(INDEX('Grant Management_4 imp-exp'!D$19:D$20,MATCH('Grant Management_4'!A105,'Grant Management_4 imp-exp'!$B$19:$B$20,0)),\"\")","v":""},null,{"$f":"IFERROR(INDEX('Grant Management_4 imp-exp'!F$19:F$20,MATCH('Grant Management_4'!A105,'Grant Management_4 imp-exp'!$B$19:$B$20,0)),\"\")","v":""},{"$f":"IFERROR(INDEX('Grant Management_4 imp-exp'!G$19:G$20,MATCH('Grant Management_4'!A105,'Grant Management_4 imp-exp'!$B$19:$B$20,0)),\"\")","v":""}]
["Mitaction43","Don't Show",{"$f":"IFERROR(INDEX('Grant Management_4 imp-exp'!D$19:D$20,MATCH('Grant Management_4'!A106,'Grant Management_4 imp-exp'!$B$19:$B$20,0)),\"\")","v":""},null,{"$f":"IFERROR(INDEX('Grant Management_4 imp-exp'!F$19:F$20,MATCH('Grant Management_4'!A106,'Grant Management_4 imp-exp'!$B$19:$B$20,0)),\"\")","v":""},{"$f":"IFERROR(INDEX('Grant Management_4 imp-exp'!G$19:G$20,MATCH('Grant Management_4'!A106,'Grant Management_4 imp-exp'!$B$19:$B$20,0)),\"\")","v":""}]
["Mitaction44","Don't Show",{"$f":"IFERROR(INDEX('Grant Management_4 imp-exp'!D$19:D$20,MATCH('Grant Management_4'!A107,'Grant Management_4 imp-exp'!$B$19:$B$20,0)),\"\")","v":""},null,{"$f":"IFERROR(INDEX('Grant Management_4 imp-exp'!F$19:F$20,MATCH('Grant Management_4'!A107,'Grant Management_4 imp-exp'!$B$19:$B$20,0)),\"\")","v":""},{"$f":"IFERROR(INDEX('Grant Management_4 imp-exp'!G$19:G$20,MATCH('Grant Management_4'!A107,'Grant Management_4 imp-exp'!$B$19:$B$20,0)),\"\")","v":""}]
["Mitaction45","Don't Show",{"$f":"IFERROR(INDEX('Grant Management_4 imp-exp'!D$19:D$20,MATCH('Grant Management_4'!A108,'Grant Management_4 imp-exp'!$B$19:$B$20,0)),\"\")","v":""},null,{"$f":"IFERROR(INDEX('Grant Management_4 imp-exp'!F$19:F$20,MATCH('Grant Management_4'!A108,'Grant Management_4 imp-exp'!$B$19:$B$20,0)),\"\")","v":""},{"$f":"IFERROR(INDEX('Grant Management_4 imp-exp'!G$19:G$20,MATCH('Grant Management_4'!A108,'Grant Management_4 imp-exp'!$B$19:$B$20,0)),\"\")","v":""}]
["Mitaction46","Don't Show",{"$f":"IFERROR(INDEX('Grant Management_4 imp-exp'!D$19:D$20,MATCH('Grant Management_4'!A109,'Grant Management_4 imp-exp'!$B$19:$B$20,0)),\"\")","v":""},null,{"$f":"IFERROR(INDEX('Grant Management_4 imp-exp'!F$19:F$20,MATCH('Grant Management_4'!A109,'Grant Management_4 imp-exp'!$B$19:$B$20,0)),\"\")","v":""},{"$f":"IFERROR(INDEX('Grant Management_4 imp-exp'!G$19:G$20,MATCH('Grant Management_4'!A109,'Grant Management_4 imp-exp'!$B$19:$B$20,0)),\"\")","v":""}]
["Mitaction47","Don't Show",{"$f":"IFERROR(INDEX('Grant Management_4 imp-exp'!D$19:D$20,MATCH('Grant Management_4'!A110,'Grant Management_4 imp-exp'!$B$19:$B$20,0)),\"\")","v":""},null,{"$f":"IFERROR(INDEX('Grant Management_4 imp-exp'!F$19:F$20,MATCH('Grant Management_4'!A110,'Grant Management_4 imp-exp'!$B$19:$B$20,0)),\"\")","v":""},{"$f":"IFERROR(INDEX('Grant Management_4 imp-exp'!G$19:G$20,MATCH('Grant Management_4'!A110,'Grant Management_4 imp-exp'!$B$19:$B$20,0)),\"\")","v":""}]
["Mitaction48","Don't Show",{"$f":"IFERROR(INDEX('Grant Management_4 imp-exp'!D$19:D$20,MATCH('Grant Management_4'!A111,'Grant Management_4 imp-exp'!$B$19:$B$20,0)),\"\")","v":""},null,{"$f":"IFERROR(INDEX('Grant Management_4 imp-exp'!F$19:F$20,MATCH('Grant Management_4'!A111,'Grant Management_4 imp-exp'!$B$19:$B$20,0)),\"\")","v":""},{"$f":"IFERROR(INDEX('Grant Management_4 imp-exp'!G$19:G$20,MATCH('Grant Management_4'!A111,'Grant Management_4 imp-exp'!$B$19:$B$20,0)),\"\")","v":""}]
["Mitaction49","Don't Show",{"$f":"IFERROR(INDEX('Grant Management_4 imp-exp'!D$19:D$20,MATCH('Grant Management_4'!A112,'Grant Management_4 imp-exp'!$B$19:$B$20,0)),\"\")","v":""},null,{"$f":"IFERROR(INDEX('Grant Management_4 imp-exp'!F$19:F$20,MATCH('Grant Management_4'!A112,'Grant Management_4 imp-exp'!$B$19:$B$20,0)),\"\")","v":""},{"$f":"IFERROR(INDEX('Grant Management_4 imp-exp'!G$19:G$20,MATCH('Grant Management_4'!A112,'Grant Management_4 imp-exp'!$B$19:$B$20,0)),\"\")","v":""}]
["Mitaction50","Don't Show",{"$f":"IFERROR(INDEX('Grant Management_4 imp-exp'!D$19:D$20,MATCH('Grant Management_4'!A113,'Grant Management_4 imp-exp'!$B$19:$B$20,0)),\"\")","v":""},null,{"$f":"IFERROR(INDEX('Grant Management_4 imp-exp'!F$19:F$20,MATCH('Grant Management_4'!A113,'Grant Management_4 imp-exp'!$B$19:$B$20,0)),\"\")","v":""},{"$f":"IFERROR(INDEX('Grant Management_4 imp-exp'!G$19:G$20,MATCH('Grant Management_4'!A113,'Grant Management_4 imp-exp'!$B$19:$B$20,0)),\"\")","v":""}]
["Mitaction51","Don't Show",{"$f":"IFERROR(INDEX('Grant Management_4 imp-exp'!D$19:D$20,MATCH('Grant Management_4'!A114,'Grant Management_4 imp-exp'!$B$19:$B$20,0)),\"\")","v":""},null,{"$f":"IFERROR(INDEX('Grant Management_4 imp-exp'!F$19:F$20,MATCH('Grant Management_4'!A114,'Grant Management_4 imp-exp'!$B$19:$B$20,0)),\"\")","v":""},{"$f":"IFERROR(INDEX('Grant Management_4 imp-exp'!G$19:G$20,MATCH('Grant Management_4'!A114,'Grant Management_4 imp-exp'!$B$19:$B$20,0)),\"\")","v":""}]
["Mitaction52","Don't Show",{"$f":"IFERROR(INDEX('Grant Management_4 imp-exp'!D$19:D$20,MATCH('Grant Management_4'!A115,'Grant Management_4 imp-exp'!$B$19:$B$20,0)),\"\")","v":""},null,{"$f":"IFERROR(INDEX('Grant Management_4 imp-exp'!F$19:F$20,MATCH('Grant Management_4'!A115,'Grant Management_4 imp-exp'!$B$19:$B$20,0)),\"\")","v":""},{"$f":"IFERROR(INDEX('Grant Management_4 imp-exp'!G$19:G$20,MATCH('Grant Management_4'!A115,'Grant Management_4 imp-exp'!$B$19:$B$20,0)),\"\")","v":""}]
["Mitaction53","Don't Show",{"$f":"IFERROR(INDEX('Grant Management_4 imp-exp'!D$19:D$20,MATCH('Grant Management_4'!A116,'Grant Management_4 imp-exp'!$B$19:$B$20,0)),\"\")","v":""},null,{"$f":"IFERROR(INDEX('Grant Management_4 imp-exp'!F$19:F$20,MATCH('Grant Management_4'!A116,'Grant Management_4 imp-exp'!$B$19:$B$20,0)),\"\")","v":""},{"$f":"IFERROR(INDEX('Grant Management_4 imp-exp'!G$19:G$20,MATCH('Grant Management_4'!A116,'Grant Management_4 imp-exp'!$B$19:$B$20,0)),\"\")","v":""}]
["Mitaction54","Don't Show",{"$f":"IFERROR(INDEX('Grant Management_4 imp-exp'!D$19:D$20,MATCH('Grant Management_4'!A117,'Grant Management_4 imp-exp'!$B$19:$B$20,0)),\"\")","v":""},null,{"$f":"IFERROR(INDEX('Grant Management_4 imp-exp'!F$19:F$20,MATCH('Grant Management_4'!A117,'Grant Management_4 imp-exp'!$B$19:$B$20,0)),\"\")","v":""},{"$f":"IFERROR(INDEX('Grant Management_4 imp-exp'!G$19:G$20,MATCH('Grant Management_4'!A117,'Grant Management_4 imp-exp'!$B$19:$B$20,0)),\"\")","v":""}]
["Mitaction55","Don't Show",{"$f":"IFERROR(INDEX('Grant Management_4 imp-exp'!D$19:D$20,MATCH('Grant Management_4'!A118,'Grant Management_4 imp-exp'!$B$19:$B$20,0)),\"\")","v":""},null,{"$f":"IFERROR(INDEX('Grant Management_4 imp-exp'!F$19:F$20,MATCH('Grant Management_4'!A118,'Grant Management_4 imp-exp'!$B$19:$B$20,0)),\"\")","v":""},{"$f":"IFERROR(INDEX('Grant Management_4 imp-exp'!G$19:G$20,MATCH('Grant Management_4'!A118,'Grant Management_4 imp-exp'!$B$19:$B$20,0)),\"\")","v":""}]
["Mitaction56","Don't Show",{"$f":"IFERROR(INDEX('Grant Management_4 imp-exp'!D$19:D$20,MATCH('Grant Management_4'!A119,'Grant Management_4 imp-exp'!$B$19:$B$20,0)),\"\")","v":""},null,{"$f":"IFERROR(INDEX('Grant Management_4 imp-exp'!F$19:F$20,MATCH('Grant Management_4'!A119,'Grant Management_4 imp-exp'!$B$19:$B$20,0)),\"\")","v":""},{"$f":"IFERROR(INDEX('Grant Management_4 imp-exp'!G$19:G$20,MATCH('Grant Management_4'!A119,'Grant Management_4 imp-exp'!$B$19:$B$20,0)),\"\")","v":""}]
["Mitaction57","Don't Show",{"$f":"IFERROR(INDEX('Grant Management_4 imp-exp'!D$19:D$20,MATCH('Grant Management_4'!A120,'Grant Management_4 imp-exp'!$B$19:$B$20,0)),\"\")","v":""},null,{"$f":"IFERROR(INDEX('Grant Management_4 imp-exp'!F$19:F$20,MATCH('Grant Management_4'!A120,'Grant Management_4 imp-exp'!$B$19:$B$20,0)),\"\")","v":""},{"$f":"IFERROR(INDEX('Grant Management_4 imp-exp'!G$19:G$20,MATCH('Grant Management_4'!A120,'Grant Management_4 imp-exp'!$B$19:$B$20,0)),\"\")","v":""}]
["Mitaction58","Don't Show",{"$f":"IFERROR(INDEX('Grant Management_4 imp-exp'!D$19:D$20,MATCH('Grant Management_4'!A121,'Grant Management_4 imp-exp'!$B$19:$B$20,0)),\"\")","v":""},null,{"$f":"IFERROR(INDEX('Grant Management_4 imp-exp'!F$19:F$20,MATCH('Grant Management_4'!A121,'Grant Management_4 imp-exp'!$B$19:$B$20,0)),\"\")","v":""},{"$f":"IFERROR(INDEX('Grant Management_4 imp-exp'!G$19:G$20,MATCH('Grant Management_4'!A121,'Grant Management_4 imp-exp'!$B$19:$B$20,0)),\"\")","v":""}]
["Mitaction59","Don't Show",{"$f":"IFERROR(INDEX('Grant Management_4 imp-exp'!D$19:D$20,MATCH('Grant Management_4'!A122,'Grant Management_4 imp-exp'!$B$19:$B$20,0)),\"\")","v":""},null,{"$f":"IFERROR(INDEX('Grant Management_4 imp-exp'!F$19:F$20,MATCH('Grant Management_4'!A122,'Grant Management_4 imp-exp'!$B$19:$B$20,0)),\"\")","v":""},{"$f":"IFERROR(INDEX('Grant Management_4 imp-exp'!G$19:G$20,MATCH('Grant Management_4'!A122,'Grant Management_4 imp-exp'!$B$19:$B$20,0)),\"\")","v":""}]
["Mitaction60","Don't Show",{"$f":"IFERROR(INDEX('Grant Management_4 imp-exp'!D$19:D$20,MATCH('Grant Management_4'!A123,'Grant Management_4 imp-exp'!$B$19:$B$20,0)),\"\")","v":""},null,{"$f":"IFERROR(INDEX('Grant Management_4 imp-exp'!F$19:F$20,MATCH('Grant Management_4'!A123,'Grant Management_4 imp-exp'!$B$19:$B$20,0)),\"\")","v":""},{"$f":"IFERROR(INDEX('Grant Management_4 imp-exp'!G$19:G$20,MATCH('Grant Management_4'!A123,'Grant Management_4 imp-exp'!$B$19:$B$20,0)),\"\")","v":""}]
["Mitaction61","Don't Show",{"$f":"IFERROR(INDEX('Grant Management_4 imp-exp'!D$19:D$20,MATCH('Grant Management_4'!A124,'Grant Management_4 imp-exp'!$B$19:$B$20,0)),\"\")","v":""},null,{"$f":"IFERROR(INDEX('Grant Management_4 imp-exp'!F$19:F$20,MATCH('Grant Management_4'!A124,'Grant Management_4 imp-exp'!$B$19:$B$20,0)),\"\")","v":""},{"$f":"IFERROR(INDEX('Grant Management_4 imp-exp'!G$19:G$20,MATCH('Grant Management_4'!A124,'Grant Management_4 imp-exp'!$B$19:$B$20,0)),\"\")","v":""}]
["Mitaction62","Don't Show",{"$f":"IFERROR(INDEX('Grant Management_4 imp-exp'!D$19:D$20,MATCH('Grant Management_4'!A125,'Grant Management_4 imp-exp'!$B$19:$B$20,0)),\"\")","v":""},null,{"$f":"IFERROR(INDEX('Grant Management_4 imp-exp'!F$19:F$20,MATCH('Grant Management_4'!A125,'Grant Management_4 imp-exp'!$B$19:$B$20,0)),\"\")","v":""},{"$f":"IFERROR(INDEX('Grant Management_4 imp-exp'!G$19:G$20,MATCH('Grant Management_4'!A125,'Grant Management_4 imp-exp'!$B$19:$B$20,0)),\"\")","v":""}]
["Mitaction63","Don't Show",{"$f":"IFERROR(INDEX('Grant Management_4 imp-exp'!D$19:D$20,MATCH('Grant Management_4'!A126,'Grant Management_4 imp-exp'!$B$19:$B$20,0)),\"\")","v":""},null,{"$f":"IFERROR(INDEX('Grant Management_4 imp-exp'!F$19:F$20,MATCH('Grant Management_4'!A126,'Grant Management_4 imp-exp'!$B$19:$B$20,0)),\"\")","v":""},{"$f":"IFERROR(INDEX('Grant Management_4 imp-exp'!G$19:G$20,MATCH('Grant Management_4'!A126,'Grant Management_4 imp-exp'!$B$19:$B$20,0)),\"\")","v":""}]
["Mitaction64","Don't Show",{"$f":"IFERROR(INDEX('Grant Management_4 imp-exp'!D$19:D$20,MATCH('Grant Management_4'!A127,'Grant Management_4 imp-exp'!$B$19:$B$20,0)),\"\")","v":""},null,{"$f":"IFERROR(INDEX('Grant Management_4 imp-exp'!F$19:F$20,MATCH('Grant Management_4'!A127,'Grant Management_4 imp-exp'!$B$19:$B$20,0)),\"\")","v":""},{"$f":"IFERROR(INDEX('Grant Management_4 imp-exp'!G$19:G$20,MATCH('Grant Management_4'!A127,'Grant Management_4 imp-exp'!$B$19:$B$20,0)),\"\")","v":""}]
["Mitaction65","Don't Show",{"$f":"IFERROR(INDEX('Grant Management_4 imp-exp'!D$19:D$20,MATCH('Grant Management_4'!A128,'Grant Management_4 imp-exp'!$B$19:$B$20,0)),\"\")","v":""},null,{"$f":"IFERROR(INDEX('Grant Management_4 imp-exp'!F$19:F$20,MATCH('Grant Management_4'!A128,'Grant Management_4 imp-exp'!$B$19:$B$20,0)),\"\")","v":""},{"$f":"IFERROR(INDEX('Grant Management_4 imp-exp'!G$19:G$20,MATCH('Grant Management_4'!A128,'Grant Management_4 imp-exp'!$B$19:$B$20,0)),\"\")","v":""}]
["Mitaction66","Don't Show",{"$f":"IFERROR(INDEX('Grant Management_4 imp-exp'!D$19:D$20,MATCH('Grant Management_4'!A129,'Grant Management_4 imp-exp'!$B$19:$B$20,0)),\"\")","v":""},null,{"$f":"IFERROR(INDEX('Grant Management_4 imp-exp'!F$19:F$20,MATCH('Grant Management_4'!A129,'Grant Management_4 imp-exp'!$B$19:$B$20,0)),\"\")","v":""},{"$f":"IFERROR(INDEX('Grant Management_4 imp-exp'!G$19:G$20,MATCH('Grant Management_4'!A129,'Grant Management_4 imp-exp'!$B$19:$B$20,0)),\"\")","v":""}]
["Mitaction67","Don't Show",{"$f":"IFERROR(INDEX('Grant Management_4 imp-exp'!D$19:D$20,MATCH('Grant Management_4'!A130,'Grant Management_4 imp-exp'!$B$19:$B$20,0)),\"\")","v":""},null,{"$f":"IFERROR(INDEX('Grant Management_4 imp-exp'!F$19:F$20,MATCH('Grant Management_4'!A130,'Grant Management_4 imp-exp'!$B$19:$B$20,0)),\"\")","v":""},{"$f":"IFERROR(INDEX('Grant Management_4 imp-exp'!G$19:G$20,MATCH('Grant Management_4'!A130,'Grant Management_4 imp-exp'!$B$19:$B$20,0)),\"\")","v":""}]
["Mitaction68","Don't Show",{"$f":"IFERROR(INDEX('Grant Management_4 imp-exp'!D$19:D$20,MATCH('Grant Management_4'!A131,'Grant Management_4 imp-exp'!$B$19:$B$20,0)),\"\")","v":""},null,{"$f":"IFERROR(INDEX('Grant Management_4 imp-exp'!F$19:F$20,MATCH('Grant Management_4'!A131,'Grant Management_4 imp-exp'!$B$19:$B$20,0)),\"\")","v":""},{"$f":"IFERROR(INDEX('Grant Management_4 imp-exp'!G$19:G$20,MATCH('Grant Management_4'!A131,'Grant Management_4 imp-exp'!$B$19:$B$20,0)),\"\")","v":""}]
["Mitaction69","Don't Show",{"$f":"IFERROR(INDEX('Grant Management_4 imp-exp'!D$19:D$20,MATCH('Grant Management_4'!A132,'Grant Management_4 imp-exp'!$B$19:$B$20,0)),\"\")","v":""},null,{"$f":"IFERROR(INDEX('Grant Management_4 imp-exp'!F$19:F$20,MATCH('Grant Management_4'!A132,'Grant Management_4 imp-exp'!$B$19:$B$20,0)),\"\")","v":""},{"$f":"IFERROR(INDEX('Grant Management_4 imp-exp'!G$19:G$20,MATCH('Grant Management_4'!A132,'Grant Management_4 imp-exp'!$B$19:$B$20,0)),\"\")","v":""}]
["Mitaction70","Don't Show",{"$f":"IFERROR(INDEX('Grant Management_4 imp-exp'!D$19:D$20,MATCH('Grant Management_4'!A133,'Grant Management_4 imp-exp'!$B$19:$B$20,0)),\"\")","v":""},null,{"$f":"IFERROR(INDEX('Grant Management_4 imp-exp'!F$19:F$20,MATCH('Grant Management_4'!A133,'Grant Management_4 imp-exp'!$B$19:$B$20,0)),\"\")","v":""},{"$f":"IFERROR(INDEX('Grant Management_4 imp-exp'!G$19:G$20,MATCH('Grant Management_4'!A133,'Grant Management_4 imp-exp'!$B$19:$B$20,0)),\"\")","v":""}]
["Mitaction71","Don't Show",{"$f":"IFERROR(INDEX('Grant Management_4 imp-exp'!D$19:D$20,MATCH('Grant Management_4'!A134,'Grant Management_4 imp-exp'!$B$19:$B$20,0)),\"\")","v":""},null,{"$f":"IFERROR(INDEX('Grant Management_4 imp-exp'!F$19:F$20,MATCH('Grant Management_4'!A134,'Grant Management_4 imp-exp'!$B$19:$B$20,0)),\"\")","v":""},{"$f":"IFERROR(INDEX('Grant Management_4 imp-exp'!G$19:G$20,MATCH('Grant Management_4'!A134,'Grant Management_4 imp-exp'!$B$19:$B$20,0)),\"\")","v":""}]
["Mitaction72","Don't Show",{"$f":"IFERROR(INDEX('Grant Management_4 imp-exp'!D$19:D$20,MATCH('Grant Management_4'!A135,'Grant Management_4 imp-exp'!$B$19:$B$20,0)),\"\")","v":""},null,{"$f":"IFERROR(INDEX('Grant Management_4 imp-exp'!F$19:F$20,MATCH('Grant Management_4'!A135,'Grant Management_4 imp-exp'!$B$19:$B$20,0)),\"\")","v":""},{"$f":"IFERROR(INDEX('Grant Management_4 imp-exp'!G$19:G$20,MATCH('Grant Management_4'!A135,'Grant Management_4 imp-exp'!$B$19:$B$20,0)),\"\")","v":""}]
["Mitaction73","Don't Show",{"$f":"IFERROR(INDEX('Grant Management_4 imp-exp'!D$19:D$20,MATCH('Grant Management_4'!A136,'Grant Management_4 imp-exp'!$B$19:$B$20,0)),\"\")","v":""},null,{"$f":"IFERROR(INDEX('Grant Management_4 imp-exp'!F$19:F$20,MATCH('Grant Management_4'!A136,'Grant Management_4 imp-exp'!$B$19:$B$20,0)),\"\")","v":""},{"$f":"IFERROR(INDEX('Grant Management_4 imp-exp'!G$19:G$20,MATCH('Grant Management_4'!A136,'Grant Management_4 imp-exp'!$B$19:$B$20,0)),\"\")","v":""}]
[null,"Show","x"]
[null,{"$f":"IF(C138<>\"\",\"Show\",\"Don't Show\")","v":"Show"},"x"]
[null,"Show",{"$f":"VLOOKUP(Translations!B327,Translations!B3:H508,4,0)","v":"C.  Commentaires sur les exigences de rapport annuel concernant la subvention"}]
[null,"Show","x"]
[null,"Show",{"$f":"VLOOKUP(Translations!B328,Translations!B3:H508,4,0)","v":"! Veuillez indiquer l'échéance du rapport à présenter. Si un rapport est en retard, indiquez l'échéance originale et le motif du retard."},null,null,null,"For LFA Use Only",null,null,"For the Global Fund Use Only"]
[null,"Don't Show"]
[null,"Show",{"$f":"VLOOKUP(Translations!B329,Translations!B3:H508,4,0)","v":"Documentation requise"},{"$f":"VLOOKUP(Translations!B330,Translations!B3:H508,4,0)","v":"Échéance \n(jj-mmm-aa)"},{"$f":"VLOOKUP(Translations!B331,Translations!B3:H508,4,0)","v":"État"},{"$f":"VLOOKUP(Translations!B332,Translations!B3:H508,4,0)","v":"Commentaires"},"Due date\n(dd-mmm-yy)","Status","Comments","Due date\n(dd-mmm-yy)","Validate Status","Country Team Comments"]
[null,"Show",{"$f":"VLOOKUP(Translations!B337,Translations!B3:H508,4,0)","v":"Rapport d'audit du RP"},null,"Select"]
[null,"Show",{"$f":"VLOOKUP(Translations!B338,Translations!B3:H508,4,0)","v":"Rapport financier annuel / Rapport financier renforcé"},43524,"Select","Not due during the period under review"]

{"sheet":"Grant Management_4 imp-exp","index":24,"n_rows":19,"n_cols":17,"rows_kept":19,"cut":false,"hidden":true,"merged":[[12,6,12,8],[13,6,13,8],[15,3,15,9],[10,3,10,9],[11,6,11,8]]}
["Record ID",null,-1,"Grant Requirements",null,"Status (PR)","Comments on Progress (PR)",null,"Status (LFA)","Analysis (LFA)",null,"Validate Status","Country Team Comments",null,null,"Record ID"]
["[Record ID]",{"$f":"\"Grantreq\"&C2","v":"Grantreq0"},{"$f":"C1+1","v":0},"[Grant Requirements]",null,{"$f":"IFERROR(IF(INDEX('Grant Management_4'!E$10:E$59,MATCH('Grant Management_4 imp-exp'!$B6,'Grant Management_4'!$A$10:$A$59,0))=\"\",\"\",INDEX('Grant Management_4'!E$10:E$59,MATCH('Grant Management_4 imp-exp'!$B6,'Grant Management_4'!$A$10:$A$59,0))),\"\")","v":""},{"$f":"IFERROR(IF(INDEX('Grant Management_4'!F$10:F$59,MATCH('Grant Management_4 imp-exp'!$B2,'Grant Management_4'!$A$10:$A$59,0))=\"\",\"\",INDEX('Grant Management_4'!F$10:F$59,MATCH('Grant Management_4 imp-exp'!$B2,'Grant Management_4'!$A$10:$A$59,0))),\"\")","v":""},null,{"$f":"IFERROR(IF(INDEX('Grant Management_4'!H$10:H$59,MATCH('Grant Management_4 imp-exp'!$B2,'Grant Management_4'!$A$10:$A$59,0))=\"\",\"\",INDEX('Grant Management_4'!H$10:H$59,MATCH('Grant Management_4 imp-exp'!$B2,'Grant Management_4'!$A$10:$A$59,0))),\"\")","v":""},{"$f":"IFERROR(IF(INDEX('Grant Management_4'!I$10:I$59,MATCH('Grant Management_4 imp-exp'!$B2,'Grant Management_4'!$A$10:$A$59,0))=\"\",\"\",INDEX('Grant Management_4'!I$10:I$59,MATCH('Grant Management_4 imp-exp'!$B2,'Grant Management_4'!$A$10:$A$59,0))),\"\")","v":""},null,null,null,null,null,"[Record ID]"]
["a1D36000007VJUYEA4",{"$f":"\"Grantreq\"&C3","v":"Grantreq1"},{"$f":"C2+1","v":1},"Unless otherwise notified by the Global Fund in writing, prior to the use of Grant Funds to finance the procurement of second-line anti-tuberculosis drugs and for each disbursement request that includes funds for the procurement of multi-drug resistant tuberculosis medicines, the Principal Recipient shall deliver to the Global Fund written confirmation of the price estimate and quantities of the second-line anti-tuberculosis drugs that will be procured by the Principal Recipient from the Global Drug Facility’s procurement agent, in form and substance satisfactory to the Global Fund.",null,null,null,null,{"$f":"IFERROR(IF(INDEX('Grant Management_4'!H$10:H$59,MATCH('Grant Management_4 imp-exp'!$B3,'Grant Management_4'!$A$10:$A$59,0))=\"\",\"\",INDEX('Grant Management_4'!H$10:H$59,MATCH('Grant Management_4 imp-exp'!$B3,'Grant Management_4'!$A$10:$A$59,0))),\"\")","v":""},{"$f":"IFERROR(IF(INDEX('Grant Management_4'!I$10:I$59,MATCH('Grant Management_4 imp-exp'!$B3,'Grant Management_4'!$A$10:$A$59,0))=\"\",\"\",INDEX('Grant Management_4'!I$10:I$59,MATCH('Grant Management_4 imp-exp'!$B3,'Grant Management_4'!$A$10:$A$59,0))),\"\")","v":""}]
["a1D36000007VJUxEAO",{"$f":"\"Grantreq\"&C4","v":"Grantreq2"},{"$f":"C3+1","v":2},"The Principal Recipient shall cooperate with the regional Green Light Committee (“GLC”) in the GLC’s efforts to provide support to the Principal Recipient with respect to the monitoring and scaling-up of drug-resistant tuberculosis-related services provided in-country. Accordingly, the Principal Recipient shall budget, and hereby authorizes the Global Fund to disburse to GLC up to a maximum of US$ 25,000, or a lower amount as agreed between GLC and the Global Fund, each year to pay for GLC services.",null,null,null,null,{"$f":"IFERROR(IF(INDEX('Grant Management_4'!H$10:H$59,MATCH('Grant Management_4 imp-exp'!$B4,'Grant Management_4'!$A$10:$A$59,0))=\"\",\"\",INDEX('Grant Management_4'!H$10:H$59,MATCH('Grant Management_4 imp-exp'!$B4,'Grant Management_4'!$A$10:$A$59,0))),\"\")","v":""},{"$f":"IFERROR(IF(INDEX('Grant Management_4'!I$10:I$59,MATCH('Grant Management_4 imp-exp'!$B4,'Grant Management_4'!$A$10:$A$59,0))=\"\",\"\",INDEX('Grant Management_4'!I$10:I$59,MATCH('Grant Management_4 imp-exp'!$B4,'Grant Management_4'!$A$10:$A$59,0))),\"\")","v":""}]
["a1D36000007VJV7EAO",{"$f":"\"Grantreq\"&C5","v":"Grantreq3"},{"$f":"C4+1","v":3},"(i)\tThe parties acknowledge that as of 1 January 2018, the situation in Burundi has been characterized by high safety and security threats and political instability (collectively, the “Force Majeure Conditions”).  Under the circumstances, the parties acknowledge and agree that: \n(a)\tIn consultation with the Global Fund, the Principal Recipient may suspend or terminate the activities under this Agreement at any time if the Force Majeure Conditions so require;\n(b)\tThe budget and performance framework (including the frequency and contents of reporting) will be reviewed by the parties as needed, with a view to evaluating and accounting for any change in the Force Majeure Conditions in the country and its impact on the performance of the Grant, and, should the changes in the Force Majeure Conditions warrant a reprogramming of the Program, the Principal Recipient shall, at the request of the Global Fund, deliver to the Global Fund a revised budget and performance framework in form and substance satisfactory to the Global Fund; and\n(c)\tNotwithstanding Articles 8 and 10 of this Agreement, and except in the case of gross negligence or wilful misconduct of the Principal Recipient, the Principal Recipient shall not be liable for the loss or damage to any assets financed under this Agreement (including Health Products), as well as for the loss of any Grant Funds (the “Relevant Assets and Funds”) caused by the Force Majeure Conditions, provided that the Principal Recipient (i) has fully complied with the other terms and conditions of this Agreement and has exercised due care and diligence and (ii) has exercised all reasonable efforts to mitigate the risk of loss of the Relevant Assets and Funds. Nevertheless, the Principal Recipient shall use its best efforts to seek and obtain recovery of any potential losses to the Relevant Assets and Funds.\n\n(ii)\tThe parties agree that the aforementioned provision shall automatically terminate after the earlier of (a) 31 December 2018 and (b) the determination by the parties that the Force Majeure Conditions no longer exist, unless the period ending on the date referred to in (a) is extended by written agreement of the parties. \n(iii)The parties also acknowledge that the agreement by the Global Fund to the aforementioned provision does not commit the Global Fund to limit the liability of the Principal Recipient (a) if a loss of any Relevant Assets and Funds is not caused by the Force Majeure Conditions or (b) under any programs implemented by the Principal Recipient in any other jurisdiction.",null,null,null,null,{"$f":"IFERROR(IF(INDEX('Grant Management_4'!H$10:H$59,MATCH('Grant Management_4 imp-exp'!$B5,'Grant Management_4'!$A$10:$A$59,0))=\"\",\"\",INDEX('Grant Management_4'!H$10:H$59,MATCH('Grant Management_4 imp-exp'!$B5,'Grant Management_4'!$A$10:$A$59,0))),\"\")","v":""},{"$f":"IFERROR(IF(INDEX('Grant Management_4'!I$10:I$59,MATCH('Grant Management_4 imp-exp'!$B5,'Grant Management_4'!$A$10:$A$59,0))=\"\",\"\",INDEX('Grant Management_4'!I$10:I$59,MATCH('Grant Management_4 imp-exp'!$B5,'Grant Management_4'!$A$10:$A$59,0))),\"\")","v":""}]
[null,null,null,null,null,null,{"$f":"IFERROR(IF(INDEX('Grant Management_4'!F$10:F$59,MATCH('Grant Management_4 imp-exp'!$B6,'Grant Management_4'!$A$10:$A$59,0))=\"\",\"\",INDEX('Grant Management_4'!F$10:F$59,MATCH('Grant Management_4 imp-exp'!$B6,'Grant Management_4'!$A$10:$A$59,0))),\"\")","v":""},null,{"$f":"IFERROR(IF(INDEX('Grant Management_4'!H$10:H$59,MATCH('Grant Management_4 imp-exp'!$B6,'Grant Management_4'!$A$10:$A$59,0))=\"\",\"\",INDEX('Grant Management_4'!H$10:H$59,MATCH('Grant Management_4 imp-exp'!$B6,'Grant Management_4'!$A$10:$A$59,0))),\"\")","v":""},{"$f":"IFERROR(IF(INDEX('Grant Management_4'!I$10:I$59,MATCH('Grant Management_4 imp-exp'!$B6,'Grant Management_4'!$A$10:$A$59,0))=\"\",\"\",INDEX('Grant Management_4'!I$10:I$59,MATCH('Grant Management_4 imp-exp'!$B6,'Grant Management_4'!$A$10:$A$59,0))),\"\")","v":""}]
[null,null,null,null,null,{"$f":"IFERROR(IF(INDEX('Grant Management_4'!E$10:E$59,MATCH('Grant Management_4 imp-exp'!$B7,'Grant Management_4'!$A$10:$A$59,0))=\"\",\"\",INDEX('Grant Management_4'!E$10:E$59,MATCH('Grant Management_4 imp-exp'!$B7,'Grant Management_4'!$A$10:$A$59,0))),\"\")","v":""},{"$f":"IFERROR(IF(INDEX('Grant Management_4'!F$10:F$59,MATCH('Grant Management_4 imp-exp'!$B7,'Grant Management_4'!$A$10:$A$59,0))=\"\",\"\",INDEX('Grant Management_4'!F$10:F$59,MATCH('Grant Management_4 imp-exp'!$B7,'Grant Management_4'!$A$10:$A$59,0))),\"\")","v":""},null,{"$f":"IFERROR(IF(INDEX('Grant Management_4'!H$10:H$59,MATCH('Grant Management_4 imp-exp'!$B7,'Grant Management_4'!$A$10:$A$59,0))=\"\",\"\",INDEX('Grant Management_4'!H$10:H$59,MATCH('Grant Management_4 imp-exp'!$B7,'Grant Management_4'!$A$10:$A$59,0))),\"\")","v":""},{"$f":"IFERROR(IF(INDEX('Grant Management_4'!I$10:I$59,MATCH('Grant Management_4 imp-exp'!$B7,'Grant Management_4'!$A$10:$A$59,0))=\"\",\"\",INDEX('Grant Management_4'!I$10:I$59,MATCH('Grant Management_4 imp-exp'!$B7,'Grant Management_4'!$A$10:$A$59,0))),\"\")","v":""}]
[null,null,null,null,null,{"$f":"IFERROR(IF(INDEX('Grant Management_4'!E$10:E$59,MATCH('Grant Management_4 imp-exp'!$B8,'Grant Management_4'!$A$10:$A$59,0))=\"\",\"\",INDEX('Grant Management_4'!E$10:E$59,MATCH('Grant Management_4 imp-exp'!$B8,'Grant Management_4'!$A$10:$A$59,0))),\"\")","v":""},{"$f":"IFERROR(IF(INDEX('Grant Management_4'!F$10:F$59,MATCH('Grant Management_4 imp-exp'!$B8,'Grant Management_4'!$A$10:$A$59,0))=\"\",\"\",INDEX('Grant Management_4'!F$10:F$59,MATCH('Grant Management_4 imp-exp'!$B8,'Grant Management_4'!$A$10:$A$59,0))),\"\")","v":""},null,{"$f":"IFERROR(IF(INDEX('Grant Management_4'!H$10:H$59,MATCH('Grant Management_4 imp-exp'!$B8,'Grant Management_4'!$A$10:$A$59,0))=\"\",\"\",INDEX('Grant Management_4'!H$10:H$59,MATCH('Grant Management_4 imp-exp'!$B8,'Grant Management_4'!$A$10:$A$59,0))),\"\")","v":""},{"$f":"IFERROR(IF(INDEX('Grant Management_4'!I$10:I$59,MATCH('Grant Management_4 imp-exp'!$B8,'Grant Management_4'!$A$10:$A$59,0))=\"\",\"\",INDEX('Grant Management_4'!I$10:I$59,MATCH('Grant Management_4 imp-exp'!$B8,'Grant Management_4'!$A$10:$A$59,0))),\"\")","v":""}]
[null,null,null,null,null,null,{"$f":"IFERROR(INDEX('Grant Management_4'!F$10:F$59,MATCH('Grant Management_4 imp-exp'!$B9,'Grant Management_4'!$A$10:$A$59,0)),\"\")","v":""},null,{"$f":"IFERROR(INDEX('Grant Management_4'!H$10:H$59,MATCH('Grant Management_4 imp-exp'!$B9,'Grant Management_4'!$A$10:$A$59,0)),\"\")","v":""},{"$f":"IFERROR(INDEX('Grant Management_4'!I$10:I$59,MATCH('Grant Management_4 imp-exp'!$B9,'Grant Management_4'!$A$10:$A$59,0)),\"\")","v":""}]
[null,null,null,null,null,null,{"$f":"IFERROR(INDEX('Grant Management_4'!F$10:F$59,MATCH('Grant Management_4 imp-exp'!$B10,'Grant Management_4'!$A$10:$A$59,0)),\"\")","v":""}]
[]
[null,null,null,null,null,"Select"]
[null,null,null,null,null,"Select"]
[null,null,null,null,null,"Select"]
[]
[null,null,null,"B. PR & LFA Review of Progress on Mitigating Actions"]
[]
["Record ID",null,-1,"Risk Details",null,"Timeline for Action","Mitigating Action",null,"PR Status","PR Comments",null,"LFA Status","LFA Comments",null,"Risk Category (Name)","Risk Name","Root Cause Name"]
["[Record ID]",{"$f":"\"Mitaction\"&C19","v":"Mitaction0"},{"$f":"C18+1","v":0},{"$f":"IFERROR(INDEX(MitigationAction!$G$3:$G$4, SMALL(IF($A19=MitigationAction!$A$3:$A$4, ROW(MitigationAction!$A$3:$A$4)-MIN(ROW(MitigationAction!$A$3:$A$4))+IF(COUNTIF(MitigationAction!$A$3:$A$4,A19)>=1,1,\"NA\"),\"\"),1)),\"\")\n& IFERROR(CHAR(10) & INDEX(MitigationAction!$G$3:$G$4, SMALL(IF($A19=MitigationAction!$A$3:$A$4, ROW(MitigationAction!$A$3:$A$4)-MIN(ROW(MitigationAction!$A$3:$A$4))+IF(COUNTIF(MitigationAction!$A$3:$A$4,A19)>=2,2,\"NA\"),\"\"),1)),\"\")\n& IFERROR(CHAR(10) & INDEX(MitigationAction!$G$3:$G$4, SMALL(IF($A19=MitigationAction!$A$3:$A$4, ROW(MitigationAction!$A$3:$A$4)-MIN(ROW(MitigationAction!$A$3:$A$4))+IF(COUNTIF(MitigationAction!$A$3:$A$4,A19)>=3,3,\"NA\"),\"\"),1)),\"\")\n& IFERROR(CHAR(10) & INDEX(MitigationAction!$G$3:$G$4, SMALL(IF($A19=MitigationAction!$A$3:$A$4, ROW(MitigationAction!$A$3:$A$4)-MIN(ROW(MitigationAction!$A$3:$A$4))+IF(COUNTIF(MitigationAction!$A$3:$A$4,A19)>=4,4,\"NA\"),\"\"),1)),\"\")\n& IFERROR(CHAR(10) & INDEX(MitigationAction!$G$3:$G$4, SMALL(IF($A19=MitigationAction!$A$3:$A$4, ROW(MitigationAction!$A$3:$A$4)-MIN(ROW(MitigationAction!$A$3:$A$4))+IF(COUNTIF(MitigationAction!$A$3:$A$4,A19)>=5,5,\"NA\"),\"\"),1)),\"\")\n& IFERROR(CHAR(10) & INDEX(MitigationAction!$G$3:$G$4, SMALL(IF($A19=MitigationAction!$A$3:$A$4, ROW(MitigationAction!$A$3:$A$4)-MIN(ROW(MitigationAction!$A$3:$A$4))+IF(COUNTIF(MitigationAction!$A$3:$A$4,A19)>=6,6,\"NA\"),\"\"),1)),\"\")\n& IFERROR(CHAR(10) & INDEX(MitigationAction!$G$3:$G$4, SMALL(IF($A19=MitigationAction!$A$3:$A$4, ROW(MitigationAction!$A$3:$A$4)-MIN(ROW(MitigationAction!$A$3:$A$4))+IF(COUNTIF(MitigationAction!$A$3:$A$4,A19)>=7,7,\"NA\"),\"\"),1)),\"\")","v":"****[Risk Category Name]****\n\n[Risk Name]\n\n[Root Cause]\n\n[comment]\n"},null,"[Timeline for Action]","[Mitigating Action]",null,{"$f":"IFERROR(IF(INDEX('Grant Management_4'!H$64:H$136,MATCH('Grant Management_4 imp-exp'!$B19,'Grant Management_4'!A$64:$A$136,0))=\"\",\"\",INDEX('Grant Management_4'!H$64:H$136,MATCH('Grant Management_4 imp-exp'!$B19,'Grant Management_4'!A$64:$A$136,0))),\"\")","v":""},{"$f":"IFERROR(IF(INDEX('Grant Management_4'!I$64:I$136,MATCH('Grant Management_4 imp-exp'!$B19,'Grant Management_4'!A$64:$A$136,0))=\"\",\"\",INDEX('Grant Management_4'!I$64:I$136,MATCH('Grant Management_4 imp-exp'!$B19,'Grant Management_4'!A$64:$A$136,0))),\"\")","v":""},null,{"$f":"IFERROR(IF(INDEX('Grant Management_4'!K$64:K$136,MATCH('Grant Management_4 imp-exp'!$B19,'Grant Management_4'!A$64:$A$136,0))=\"\",\"\",INDEX('Grant Management_4'!K$64:K$136,MATCH('Grant Management_4 imp-exp'!$B19,'Grant Management_4'!A$64:$A$136,0))),\"\")","v":""},{"$f":"IFERROR(IF(INDEX('Grant Management_4'!L$64:L$136,MATCH('Grant Management_4 imp-exp'!$B19,'Grant Management_4'!A$64:$A$136,0))=\"\",\"\",INDEX('Grant Management_4'!L$64:L$136,MATCH('Grant Management_4 imp-exp'!$B19,'Grant Management_4'!A$64:$A$136,0))),\"\")","v":""},null,"[Risk Category (Name)]","[Risk Name]","[Root Cause Name]"]

{"sheet":"MitigationAction","index":25,"n_rows":4,"n_cols":7,"rows_kept":4,"cut":false,"hidden":true,"merged":[]}
[]
["Record ID","Record ID2","Risk Category Name","Risk Name","Root Cause","comment","Risk Detail"]
["[Record ID]","[Record ID]","[Risk Category Name]","[Risk Name]","[Root Cause]","[comment]",{"$f":"IF(A3=\"\",\"\",\"****\"&C3&\"****\"&CHAR(10)&CHAR(10)&IF(D3=\"\",\"\",D3&CHAR(10)&CHAR(10)&IF(E3=\"\",\"\",E3&CHAR(10)&CHAR(10)&F3&CHAR(10))))","v":"****[Risk Category Name]****\n\n[Risk Name]\n\n[Root Cause]\n\n[comment]\n"}]
[null,null,null,null,null,null,{"$f":"IF(A4=\"\",\"\",\"****\"&C4&\"****\"&CHAR(10)&CHAR(10)&IF(D4=\"\",\"\",D4&CHAR(10)&CHAR(10)&IF(E4=\"\",\"\",E4&CHAR(10)&CHAR(10)&F4&CHAR(10))))","v":""}]

{"sheet":"RiskData","index":26,"n_rows":289,"n_cols":15,"rows_kept":289,"cut":false,"hidden":true,"merged":[]}
[null,null,null,null,"Actor:","PR","SR",null,"Status","Not Started","In Progress",null,null,"--Select Risk Category--","--Select Risk--"]
["Risk Tracker Name","RT-0084"]
[]
[]
[null,"Risk Category Name","Risk Category Name","Record ID"]
[null,"[Risk Category Name]","[Risk Category Name]","[Record ID]"]
[null,"Programmatic and M&E",null,"a4z36000000scodAAA"]
[null,"Financial & Fiduciary",null,"a4z36000000scoeAAA"]
[null,"Health Product Management & Supply Chain",null,"a4z36000000scofAAA"]
[null,"Governance, Oversight & Management",null,"a4z36000000scogAAA"]
[]
[]
[null,"Risk Category (Name)","Record ID","Risk Category Name",null,"Risk Details Name","Risk Name","Risk Tracker (Name)","Record ID"]
[null,"[Risk Category (Name)]","[Record ID]","[Risk Category Name]",null,"[Risk Details Name]","[Risk Name]","[Risk Tracker (Name)]","[Record ID]"]
[null,"Programmatic and M&E","a4z36000000scodAAA","Programmatic and M&E",null,"Inadequate program design and relevance",null,"RT-0084","a5036000000kDH6AAM"]
[null,"Programmatic and M&E","a4z36000000scodAAA","Programmatic and M&E",null,"Inadequate design and operational capacity of M&E systems",null,"RT-0084","a5036000000kDH7AAM"]
[null,"Programmatic and M&E","a4z36000000scodAAA","Programmatic and M&E",null,"Inadequate program quality and efficiency",null,"RT-0084","a5036000000kDH8AAM"]
[null,"Programmatic and M&E","a4z36000000scodAAA","Programmatic and M&E",null,"Limited data availability and inadequate data quality",null,"RT-0084","a5036000000kDH9AAM"]
[null,"Programmatic and M&E","a4z36000000scodAAA","Programmatic and M&E",null,"Limited use of data",null,"RT-0084","a5036000000kDHAAA2"]
[null,"Programmatic and M&E","a4z36000000scodAAA","Programmatic and M&E",null,"Inadequate promotion of human rights and gender equality",null,"RT-0084","a5036000000kDHBAA2"]
[null,"Financial & Fiduciary","a4z36000000scoeAAA","Financial & Fiduciary",null,"Inadequate flow of funds arrangements",null,"RT-0084","a5036000000kDHCAA2"]
[null,"Financial & Fiduciary","a4z36000000scoeAAA","Financial & Fiduciary",null,"Inadequate internal controls",null,"RT-0084","a5036000000kDHDAA2"]
[null,"Financial & Fiduciary","a4z36000000scoeAAA","Financial & Fiduciary",null,"Financial fraud, corruption and theft",null,"RT-0084","a5036000000kDHEAA2"]
[null,"Financial & Fiduciary","a4z36000000scoeAAA","Financial & Fiduciary",null,"Inadequate accounting and financial reporting",null,"RT-0084","a5036000000kDHFAA2"]
[null,"Financial & Fiduciary","a4z36000000scoeAAA","Financial & Fiduciary",null,"Limited value for money",null,"RT-0084","a5036000000kDHGAA2"]
[null,"Financial & Fiduciary","a4z36000000scoeAAA","Financial & Fiduciary",null,"Inadequate auditing arrangements",null,"RT-0084","a5036000000kDHHAA2"]
[null,"Health Product Management & Supply Chain","a4z36000000scofAAA","Health Product Management & Supply Chain",null,"Inappropriate selection of health product and equipment",null,"RT-0084","a5036000000kDHIAA2"]
[null,"Health Product Management & Supply Chain","a4z36000000scofAAA","Health Product Management & Supply Chain",null,"Unreliable forecasting, quantification and supply planning",null,"RT-0084","a5036000000kDHJAA2"]
[null,"Health Product Management & Supply Chain","a4z36000000scofAAA","Health Product Management & Supply Chain",null,"Inefficient procurement processes and outcomes",null,"RT-0084","a5036000000kDHKAA2"]
[null,"Health Product Management & Supply Chain","a4z36000000scofAAA","Health Product Management & Supply Chain",null,"Inadequate warehouse and distribution systems",null,"RT-0084","a5036000000kDHLAA2"]
[null,"Health Product Management & Supply Chain","a4z36000000scofAAA","Health Product Management & Supply Chain",null,"Limited quality monitoring and inadequate product use",null,"RT-0084","a5036000000kDHMAA2"]
[null,"Health Product Management & Supply Chain","a4z36000000scofAAA","Health Product Management & Supply Chain",null,"Inadequate information (LMIS) management systems",null,"RT-0084","a5036000000kDHNAA2"]
[null,"Governance, Oversight & Management","a4z36000000scogAAA","Governance, Oversight & Management",null,"Inadequate national program governance",null,"RT-0084","a5036000000kDHOAA2"]
[null,"Governance, Oversight & Management","a4z36000000scogAAA","Governance, Oversight & Management",null,"Ineffective program management",null,"RT-0084","a5036000000kDHPAA2"]
[null,"Governance, Oversight & Management","a4z36000000scogAAA","Governance, Oversight & Management",null,"Inadequate program coordination and SR oversight",null,"RT-0084","a5036000000kDHQAA2"]
[]
[]
[]
[null,"IsActive","Risk","Risk (Name)","RT Risk Name","Root Cause","Root Cause Name","Record ID"]
[null,"[IsActive]","[Risk]","[Risk (Name)]","[RT Risk Name]","[Root Cause]","[Root Cause Name]","[Record ID]"]
[null,true,null,null,null,"What happens when a HSS grant without commodities omits this section on forecasting and quantification?","RC-0362","a5536000000k9xtAAA"]
[null,true,null,null,null,"Not all M&E investments/activities demonstrate clear effectiveness/value for money.","RC-0363","a5536000000k9zuAAA"]
[null,true,null,null,null,"1. Volatile security situation restricts the PRs' and national programs' abilities to provide the needed services across the country and to conduct sufficient oversight and supervision.","RC-0364","a5536000000kA1HAAU"]
[null,true,null,null,null,"COE Environment, several provinces with armed conflicts and susceptibility to natural disasters which at times affects regular supply and distribution of commodities and limits the continuous access of target beneficiaries,","RC-0365","a5536000000kA2tAAE"]
[null,true,null,null,null,"Dear Risk. I have not been able to find a root cause that reflects lack of controls regarding stock counts/reconciliations of inventory differences. Please let me know if I have missed it.","RC-0414","a5536000000kABeAAM"]
[null,true,"a5436000000k9guAAA","Financial fraud, corruption and theft","Financial fraud, corruption and theft","The roles and responsibilities of the audit committee/equivalent body in terms of oversight of fraud risks is not clearly defined","RC-0150","a5536000000k9fPAAQ"]
[null,true,"a5436000000k9guAAA","Financial fraud, corruption and theft","Financial fraud, corruption and theft","Those charged with governance do not have the independence, experience, and organizational stature to allow them to effectively govern the entity, particularly the responsibility for managing financial fraud risk.","RC-0151","a5536000000k9fQAAQ"]
[null,true,"a5436000000k9guAAA","Financial fraud, corruption and theft","Financial fraud, corruption and theft","The PR's fraud risk management policy is not sufficiently comprehensive to address all the elements of a well designed fraud management policy,","RC-0156","a5536000000k9fVAAQ"]
[null,true,"a5436000000k9guAAA","Financial fraud, corruption and theft","Financial fraud, corruption and theft","The PR's anti-fraud policy is not well defined to adequately prevent, detect and respond to fraud, including policies around asset misappropriation and fraudulent financial statements.","RC-0157","a5536000000k9fWAAQ"]
[null,true,"a5436000000k9guAAA","Financial fraud, corruption and theft","Financial fraud, corruption and theft","Employees are not fully aware of what constitutes fraud due to poorly articulated statement of ethical values that is not understood at all levels of the organization.","RC-0158","a5536000000k9fXAAQ"]
[null,true,"a5436000000k9guAAA","Financial fraud, corruption and theft","Financial fraud, corruption and theft","There are either no or inadequate forums, trainings and learning activities on fraud and ethical values,","RC-0159","a5536000000k9fYAAQ"]
[null,true,"a5436000000k9guAAA","Financial fraud, corruption and theft","Financial fraud, corruption and theft","The responsibility and accountability for fraud policies and procedures does not  reside with the PR management or function (Internal Audit, Audit Committee) in which the risk resides.","RC-0160","a5536000000k9fZAAQ"]
[null,true,"a5436000000k9guAAA","Financial fraud, corruption and theft","Financial fraud, corruption and theft","The PR does not  maintains an incident investigation and remediation system that includes a tracking mechanism to allow management to report on material fraud events.","RC-0161","a5536000000k9faAAA"]
[null,true,"a5436000000k9guAAA","Financial fraud, corruption and theft","Financial fraud, corruption and theft","The PR's management does conducts a periodic fraud risk assessment to identify the various ways that fraud and misconduct can occur, and no documentation of this assessment is maintained as a result of capacity issues.","RC-0162","a5536000000k9fbAAA"]
[null,true,"a5436000000k9guAAA","Financial fraud, corruption and theft","Financial fraud, corruption and theft","Inadequate PR and SR staff levels, skills and experience to develop and implement adequate procedures and controls to identify fraud / corruption / theft triggers, including insufficient oversight over financial staff by PR or SR management","RC-0163","a5536000000k9fcAAA"]
[null,true,"a5436000000k9guAAA","Financial fraud, corruption and theft","Financial fraud, corruption and theft","The PR procedures for monitoring controls and programmes at SR and other partner levels designed to prevent, deter or detect fraud are not adequate","RC-0164","a5536000000k9fdAAA"]
[null,true,"a5436000000k9guAAA","Financial fraud, corruption and theft","Financial fraud, corruption and theft","The PR does not have an audit committee/equivalent body  or the audit committee or equivalent body does not have the required competence for effective oversight of fraud risks","RC-0380","a5536000000kA7JAAU"]
[null,true,"a5436000000k9guAAA","Financial fraud, corruption and theft","Financial fraud, corruption and theft","Absence or Inadequate policy and procedures or staff on fraud risk management which does not specify a requirement for assessment of fraud risk","RC-0381","a5536000000kA7KAAU"]
[null,true,"a5436000000k9gvAAA","Accounting and financial reporting","Inadequate accounting and financial reporting","Inadequate monitoring of the key controls relating to financial management reporting","RC-0203","a5536000000k9gGAAQ"]
[null,true,"a5436000000k9gvAAA","Accounting and financial reporting","Inadequate accounting and financial reporting","The financial system does not have the capacity to link the financial information with the project's programmatic progress.","RC-0208","a5536000000k9gLAAQ"]
[null,true,"a5436000000k9gvAAA","Accounting and financial reporting","Inadequate accounting and financial reporting","Staff do not know how to use the  functionality of the software to link the financial information with the project's programmatic progress.","RC-0209","a5536000000k9gMAAQ"]
[null,true,"a5436000000k9gvAAA","Accounting and financial reporting","Inadequate accounting and financial reporting","The PR’s senior finance management does not adequately supervise and monitor key accounting reconciliations and financial reports and ascertain their linkages to programmatic results","RC-0210","a5536000000k9gNAAQ"]
[null,true,"a5436000000k9gvAAA","Accounting and financial reporting","Inadequate accounting and financial reporting","Inadequate monitoring of the key controls relating to the variance analysis process","RC-0213","a5536000000k9gQAAQ"]
[null,true,"a5436000000k9gvAAA","Accounting and financial reporting","Inadequate accounting and financial reporting","The SR and PR reporting systems are not compatible resulting in challenges in consolidation of financial reports","RC-0219","a5536000000k9gWAAQ"]
[null,true,"a5436000000k9gvAAA","Accounting and financial reporting","Inadequate accounting and financial reporting","Inadequate monitoring of the key controls relating to SR reporting","RC-0220","a5536000000k9gXAAQ"]
[null,true,"a5436000000k9gvAAA","Accounting and financial reporting","Inadequate accounting and financial reporting","The accounting system is not robust enough. This includes the following:\n-The accounting software does not have all the required functionalities\n-The accounting software does not have the required flexibilities","RC-0165","a5536000000k9feAAA"]
[null,true,"a5436000000k9gvAAA","Accounting and financial reporting","Inadequate accounting and financial reporting","Inadequate monitoring of the back up process","RC-0171","a5536000000k9fkAAA"]
[null,true,"a5436000000k9gvAAA","Accounting and financial reporting","Inadequate accounting and financial reporting","Inadequate monitoring of the key controls relating to the preparation, approval and posting of transactions.","RC-0176","a5536000000k9fpAAA"]
[null,true,"a5436000000k9gvAAA","Accounting and financial reporting","Inadequate accounting and financial reporting","Absence of or inadequate written policies and procedures or staff not systematically orientated or trained on the procedures relating to preparation and changes to the CoA.","RC-0178","a5536000000k9frAAA"]
[null,true,"a5436000000k9gvAAA","Accounting and financial reporting","Inadequate accounting and financial reporting","Inadequate monitoring of the key controls relating to the preparation and changes to the CoA","RC-0181","a5536000000k9fuAAA"]
[null,true,"a5436000000k9gvAAA","Accounting and financial reporting","Inadequate accounting and financial reporting","Poor monitoring of the key controls relating to the accounting and reported related administrative activities","RC-0189","a5536000000k9g2AAA"]
[null,true,"a5436000000k9gvAAA","Accounting and financial reporting","Inadequate accounting and financial reporting","Poor monitoring of the key controls relating to the reconciliation of the general ledger to the subsidiary ledgers","RC-0193","a5536000000k9g6AAA"]
[null,true,"a5436000000k9gvAAA","Accounting and financial reporting","Inadequate accounting and financial reporting","Inadequate monitoring of the key controls relating to the retention of accounting records","RC-0198","a5536000000k9gBAAQ"]
[null,true,"a5436000000k9gvAAA","Accounting and financial reporting","Inadequate accounting and financial reporting","Staff using the accounting software do not have access to the procedures manual of the software or not systematically orientated or trained  on the computerized accounting system","RC-0382","a5536000000kA7LAAU"]
[null,true,"a5436000000k9gvAAA","Accounting and financial reporting","Inadequate accounting and financial reporting","Absence of or inadequate written policies and procedures or staff not  systematically orientated or trained  on the the backup process","RC-0383","a5536000000kA7MAAU"]
[null,true,"a5436000000k9gvAAA","Accounting and financial reporting","Inadequate accounting and financial reporting","Absence of or inadequate written policies and procedures or staff not systematically orientated or trained  on the procedures relating to preparation, approval and posting of transactions","RC-0384","a5536000000kA7NAAU"]
[null,true,"a5436000000k9gvAAA","Accounting and financial reporting","Inadequate accounting and financial reporting","CoA is inadequate.","RC-0386","a5536000000kA7PAAU"]
[null,true,"a5436000000k9gvAAA","Accounting and financial reporting","Inadequate accounting and financial reporting","Absence of or inadequate written policies and procedures or staff not systematically orientated or trainedr with the policies and procedures relating to accounting and reporting related administrative activities.","RC-0387","a5536000000kA7QAAU"]
[null,true,"a5436000000k9gvAAA","Accounting and financial reporting","Inadequate accounting and financial reporting","Absence of or inadequate process or staff not systematically orientated or trained with the process relating to  the reconciliation of the general ledger to the subsidiary ledgers","RC-0388","a5536000000kA7RAAU"]
[null,true,"a5436000000k9gvAAA","Accounting and financial reporting","Inadequate accounting and financial reporting","Absence of or inadequate written policies and procedures or staff not systematically orientated or trained on the procedures relating to retention of accounting records","RC-0389","a5536000000kA7SAAU"]
[null,true,"a5436000000k9gvAAA","Accounting and financial reporting","Inadequate accounting and financial reporting","Absence of or inadequate written policies and procedures or staff not systematically orientated or trained  relating to financial management reporting","RC-0390","a5536000000kA7TAAU"]
[null,true,"a5436000000k9gvAAA","Accounting and financial reporting","Inadequate accounting and financial reporting","The computerized accounting system does not have the required capabilities for appropriate reporting  or staff not systematically orientated or trained  on the reporting module of the accounting software.","RC-0391","a5536000000kA7UAAU"]
[null,true,"a5436000000k9gvAAA","Accounting and financial reporting","Inadequate accounting and financial reporting","Absence of or inadequate process or staff not systematically orientated or trained  on the procedures in place  for doing proper variance analysis including taking corrective action.","RC-0392","a5536000000kA7VAAU"]
[null,true,"a5436000000k9gvAAA","Accounting and financial reporting","Inadequate accounting and financial reporting","Absence of or inadequate process or management not systematically orientated or trained  on the procedures in place  for analysing budget spending rates to make decisions about modifying activity plans","RC-0393","a5536000000kA7WAAU"]
[null,true,"a5436000000k9gvAAA","Accounting and financial reporting","Inadequate accounting and financial reporting","Absence of or inadequate process or staff not systematically orientated or trained  on the procedures in place  to ensure that the financial management system between the PR and sub recipients are sufficient to ensure timely availability and integrity of consolidated financial data.","RC-0394","a5536000000kA7XAAU"]
[null,true,"a5436000000k9gxAAA","Auditing arrangements","Inadequate auditing arrangements","Mandate of the IA does not cover GF grant","RC-0255","a5536000000k9h6AAA"]
[null,true,"a5436000000k9gxAAA","Auditing arrangements","Inadequate auditing arrangements","Lack of clearly defined authority of IA in a charter or law","RC-0260","a5536000000k9hBAAQ"]
[null,true,"a5436000000k9gxAAA","Auditing arrangements","Inadequate auditing arrangements","Appropriate tools and procedures are not available or adequate to cover the required audit scope","RC-0268","a5536000000k9hJAAQ"]
[null,true,"a5436000000k9gxAAA","Auditing arrangements","Inadequate auditing arrangements","Inadequate monitoring of the key controls related to the selection process for audit services","RC-0275","a5536000000k9hQAAQ"]
[null,true,"a5436000000k9gxAAA","Auditing arrangements","Inadequate auditing arrangements","The PR staff do not have the right competencies to prepare the financial statements","RC-0281","a5536000000k9hWAAQ"]
[null,true,"a5436000000k9gxAAA","Auditing arrangements","Inadequate auditing arrangements","The accounting system does not have the required functionality to prepare financial statements","RC-0282","a5536000000k9hXAAQ"]
[null,true,"a5436000000k9gxAAA","Auditing arrangements","Inadequate auditing arrangements","Lack of an internal audit unit due to:\n-No budget for an internal audit function\n-It is not part of the entity structure\n-Management does not place importance on internal audit","RC-0403","a5536000000kA7gAAE"]
[null,true,"a5436000000k9gxAAA","Auditing arrangements","Inadequate auditing arrangements","Lack of independence of the IA unit\n-budget influenced by management\n-IA staff are appointed and can be terminated by management\n-IA staff are involved in operational activities","RC-0404","a5536000000kA7hAAE"]
[null,true,"a5436000000k9gxAAA","Auditing arrangements","Inadequate auditing arrangements","IA unit is not adequately resourced. This includes:\n-Limited skills in the IA team\n-Inadequate qualification of the key staff\n-Lack of continuous professional training\n-Limited number of staff","RC-0405","a5536000000kA7iAAE"]
[null,true,"a5436000000k9gxAAA","Auditing arrangements","Inadequate auditing arrangements","Absence of or inadequate procedures manual  or staff not systematically orientated or trained on the procedures relating to the conduct of internal audits","RC-0406","a5536000000kA7jAAE"]
[null,true,"a5436000000k9gxAAA","Auditing arrangements","Inadequate auditing arrangements","The staff of the IA do not have the required competencies to cover the various types of audits /specific subject audits and or audit methodologies\n- Inadequate qualification\n-Inadequate relevant experience\n-Inadequate training especially on new audit techniques","RC-0407","a5536000000kA7kAAE"]
[null,true,"a5436000000k9gxAAA","Auditing arrangements","Inadequate auditing arrangements","Absence of or inadequate process  or staff not systematically orientated or trained on the process relating to the follow up of internal audit issues","RC-0408","a5536000000kA7lAAE"]
[null,true,"a5436000000k9gxAAA","Auditing arrangements","Inadequate auditing arrangements","Absence of or inadequate procedures or staff not systematically orientated or trained on the selection process for audit services","RC-0409","a5536000000kA7mAAE"]
[null,true,"a5436000000k9gxAAA","Auditing arrangements","Inadequate auditing arrangements","Inadequate quality review process of the auditor leading to poor reports  including:\n- Errors in the reports\n- Inadequate opinion on the financial statements\n- Non-compliance with the audit terms of reference","RC-0410","a5536000000kA7nAAE"]
[null,true,"a5436000000k9gxAAA","Auditing arrangements","Inadequate auditing arrangements","Inadequate oversight over the external audit process. This includes:\n-Lack of an audit committee/equivalent body tasked with external audit oversight\n-The audit committee/equivalent body does not have the right competencies for proper external audit oversight\n-The roles and responsibilities of the audit committee/equivalent body in relation to external audit oversight is not clearly defined","RC-0411","a5536000000kA7oAAE"]
[null,true,"a5436000000k9gxAAA","Auditing arrangements","Inadequate auditing arrangements","Absence of or inadequate process or staff not systematically orientated or trained on the process relating to the follow up of external audit issues","RC-0412","a5536000000kA7pAAE"]
[null,true,"a5436000000k9gnAAA","Design and operational capacity of M&E systems","Inadequate design and operational capacity of M&E systems","There is ineffective leadership and support provided by the MoH for the M&E agenda.","RC-0007","a5536000000k9d6AAA"]
[null,true,"a5436000000k9gnAAA","Design and operational capacity of M&E systems","Inadequate design and operational capacity of M&E systems","There is ineffective coordination between M&E Unit / department and disease/HSS programs.","RC-0008","a5536000000k9d7AAA"]
[null,true,"a5436000000k9gnAAA","Design and operational capacity of M&E systems","Inadequate design and operational capacity of M&E systems","There are no M&E policies and guidance produced and/or disseminated to sub-national and service level providers.","RC-0009","a5536000000k9d8AAA"]
[null,true,"a5436000000k9gnAAA","Design and operational capacity of M&E systems","Inadequate design and operational capacity of M&E systems","There is ineffective coordination forums by stakeholders involved in M&E activities at national leve resulting in duplication of M&E efforts/ resources across programs and partners.","RC-0010","a5536000000k9d9AAA"]
[null,true,"a5436000000k9gnAAA","Design and operational capacity of M&E systems","Inadequate design and operational capacity of M&E systems","Technical Assistance is not being used effectively and efficiently","RC-0011","a5536000000k9dAAAQ"]
[null,true,"a5436000000k9gnAAA","Design and operational capacity of M&E systems","Inadequate design and operational capacity of M&E systems","There is no effective coordination of M&E activities at sub-national level (e.g., partners’ investments at sub-national level are not coordinated).","RC-0012","a5536000000k9dBAAQ"]
[null,true,"a5436000000k9gnAAA","Design and operational capacity of M&E systems","Inadequate design and operational capacity of M&E systems","There is no National M&E plan developed according to standards that is linked to the NSP.","RC-0013","a5536000000k9dCAAQ"]
[null,true,"a5436000000k9gnAAA","Design and operational capacity of M&E systems","Inadequate design and operational capacity of M&E systems","Indicators to track the progress on implementation of the NSP are not well defined (i.e. standard indicators appropriate to track program performance are not being used)","RC-0014","a5536000000k9dDAAQ"]
[null,true,"a5436000000k9gnAAA","Design and operational capacity of M&E systems","Inadequate design and operational capacity of M&E systems","Robust denominators (e.g., population size and disease burden estimates, etc.) are not available, and/or consistent and accurate baseline data is not available.","RC-0015","a5536000000k9dEAAQ"]
[null,true,"a5436000000k9gnAAA","Design and operational capacity of M&E systems","Inadequate design and operational capacity of M&E systems","There is no M&E investment plan to support monitoring and reporting on progress on the implementation of NSP and/or M&E investments are not tracked and visible.","RC-0016","a5536000000k9dFAAQ"]
[null,true,"a5436000000k9gnAAA","Design and operational capacity of M&E systems","Inadequate design and operational capacity of M&E systems","There is insufficient funding dedicated to implement M&E activities","RC-0017","a5536000000k9dGAAQ"]
[null,true,"a5436000000k9gnAAA","Design and operational capacity of M&E systems","Inadequate design and operational capacity of M&E systems","There is insufficient human and material resources dedicated for M&E (i.e. staffing, training, hardware or software, collection tools).","RC-0018","a5536000000k9dHAAQ"]
[null,true,"a5436000000k9gnAAA","Design and operational capacity of M&E systems","Inadequate design and operational capacity of M&E systems","There are insufficient incentives and feedback mechanisms in the health system to produce better data.","RC-0019","a5536000000k9dIAAQ"]
[null,true,"a5436000000k9gnAAA","Design and operational capacity of M&E systems","Inadequate design and operational capacity of M&E systems","Data collection and reporting for the grant outside of the national M&E system is not integrated into the national systems.","RC-0020","a5536000000k9dJAAQ"]
[null,true,"a5436000000k9gnAAA","Design and operational capacity of M&E systems","Inadequate design and operational capacity of M&E systems","The data verification mechanism used by the PR to ensure the quality of the reported data is not effectively and appropriately fed back to SRs and SSRs.","RC-0021","a5536000000k9dKAAQ"]
[null,true,"a5436000000k9gnAAA","Design and operational capacity of M&E systems","Inadequate design and operational capacity of M&E systems","The grant-specific M&E plan does not include all indicators and measurement guidance related to the modules/interventions supported by the GF.","RC-0022","a5536000000k9dLAAQ"]
[null,true,"a5436000000k9gsAAA","Flow of funds arrangements","Inadequate flow of funds arrangements","Hyperinflation in the country/availibilty of foreign currency to make payment to suppliers","RC-0062","a5536000000k9dzAAA"]
[null,true,"a5436000000k9gsAAA","Flow of funds arrangements","Inadequate flow of funds arrangements","Low geographical coverage of banks and/or money transfer mechanisms in the country","RC-0064","a5536000000k9e1AAA"]
[null,true,"a5436000000k9gsAAA","Flow of funds arrangements","Inadequate flow of funds arrangements","Alternative fund transfer mechanism (mobile money, payment agent, etc.) are unknown or inefficient","RC-0065","a5536000000k9e2AAA"]
[null,true,"a5436000000k9gsAAA","Flow of funds arrangements","Inadequate flow of funds arrangements","Absence of or inadequate reporting and monitoring mechanisms in place to track the use of funds disbursed to SRs and other implementing partners","RC-0066","a5536000000k9e3AAA"]
[null,true,"a5436000000k9gsAAA","Flow of funds arrangements","Inadequate flow of funds arrangements","Inadequate procedures at decentralized levels (Regions or below) leading to delays in justification of previous fund advances","RC-0067","a5536000000k9e4AAA"]
[null,true,"a5436000000k9gsAAA","Flow of funds arrangements","Inadequate flow of funds arrangements","The proposed entities for implementing Global Fund grants have limited experience in handling significant volumes of donor funding","RC-0068","a5536000000k9e5AAA"]
[null,true,"a5436000000k9gsAAA","Flow of funds arrangements","Inadequate flow of funds arrangements","Poor monitoring of the key controls in the due diligence process","RC-0071","a5536000000k9e8AAA"]
[null,true,"a5436000000k9gsAAA","Flow of funds arrangements","Inadequate flow of funds arrangements","Poor monitoring of the key controls in the bank selection process","RC-0075","a5536000000k9eCAAQ"]
[null,true,"a5436000000k9gsAAA","Flow of funds arrangements","Inadequate flow of funds arrangements","Poor monitoring of the key controls in the payment mechanism selection process","RC-0079","a5536000000k9eGAAQ"]
[null,true,"a5436000000k9gsAAA","Flow of funds arrangements","Inadequate flow of funds arrangements","Poor monitoring of the key controls in the foreign exchange risk management process","RC-0084","a5536000000k9eLAAQ"]
[null,true,"a5436000000k9gsAAA","Flow of funds arrangements","Inadequate flow of funds arrangements","Absence of or Inadequate policy and procedures for the receipt, accounting and/or administration of funds by the PR or any of the other entities","RC-0086","a5536000000k9eNAAQ"]
[null,true,"a5436000000k9gsAAA","Flow of funds arrangements","Inadequate flow of funds arrangements","Poor monitoring of the key controls in the receipt, accounting and/or administration of funds by the PR or any of the other entities","RC-0089","a5536000000k9eQAAQ"]
[null,true,"a5436000000k9gsAAA","Flow of funds arrangements","Inadequate flow of funds arrangements","The implementation arrangement is complex\n-Too many implementers\n-Pass-through PRs\n-Devolved structures","RC-0366","a5536000000kA75AAE"]
[null,true,"a5436000000k9gsAAA","Flow of funds arrangements","Inadequate flow of funds arrangements","Absence of or Inadequate procedures or staff not systematically orientated/trained on the procedures for due diligence assessments","RC-0367","a5536000000kA76AAE"]
[null,true,"a5436000000k9gsAAA","Flow of funds arrangements","Inadequate flow of funds arrangements","Absence of or Inadequate procedures,  or staff not systematically orientated/trained on the procedures for selection of banks in which Global Fund funds are lodged.","RC-0368","a5536000000kA77AAE"]
[null,true,"a5436000000k9gsAAA","Flow of funds arrangements","Inadequate flow of funds arrangements","Absence of or Inadequate procedures or staff not systematically orientated/trained on the selection of alternative payment mechanisms in which Global Fund funds are lodged.","RC-0369","a5536000000kA78AAE"]
[null,true,"a5436000000k9gsAAA","Flow of funds arrangements","Inadequate flow of funds arrangements","Absence of or Inadequate procedures or staff not systematically orientated/trained on the procedures relating to management of foreign exchange risks","RC-0370","a5536000000kA79AAE"]
[null,true,"a5436000000k9gsAAA","Flow of funds arrangements","Inadequate flow of funds arrangements","Absence of or inadequate procedures or staff in place for management to identify cash flow bottlenecks and solve them","RC-0371","a5536000000kA7AAAU"]
[null,true,"a5436000000k9gsAAA","Flow of funds arrangements","Inadequate flow of funds arrangements","The banking arrangements are inadequate (mandatory use of complex treasury systems, comingled accounts, funds transfers in cash)","RC-0413","a5536000000kA7qAAE"]
[null,true,"a5436000000k9h3AAA","Information (LMIS) management systems","Inadequate information (LMIS) management systems","Logistics management information system (LMIS) does not effectively capture essential logistics data or does not effectively transmit data to appropriate supply chain management personnel; or no system  is in place","RC-0319","a5536000000k9i8AAA"]
[null,true,"a5436000000k9h3AAA","Information (LMIS) management systems","Inadequate information (LMIS) management systems","Supply chain data governance oversight and controls are weak; data storage infrastructure is inadequate; analysis/access is not structured; and/or there is no coordinating body to address cross-cutting LMIS and data information issues","RC-0320","a5536000000k9i9AAA"]
[null,true,"a5436000000k9h3AAA","Information (LMIS) management systems","Inadequate information (LMIS) management systems","Reporting and recording systems (including LMIS, HMIS and PMIS) and management processes are not adequately integrated; effective system-to-system data exchange is not possible, data standards/indicators are not harmonized, multiple tools are used by different partners and/or systems/processes are not integrated across programs","RC-0321","a5536000000k9iAAAQ"]
[null,true,"a5436000000k9h3AAA","Information (LMIS) management systems","Inadequate information (LMIS) management systems","LMIS tools are not fit for purpose; data collection systems/processes are costly or laborious; reporting rates are low; records management practices are poor;","RC-0322","a5536000000k9iBAAQ"]
[null,true,"a5436000000k9h3AAA","Information (LMIS) management systems","Inadequate information (LMIS) management systems","Gaps in data transmission between national and peripheral levels: quarterly and/or annual status reports are not regularly sent to the national level; feedback reports from national level are not regularly sent to lower level warehouses/facilities","RC-0323","a5536000000k9iCAAQ"]
[null,true,"a5436000000k9h3AAA","Information (LMIS) management systems","Inadequate information (LMIS) management systems","No defined supply chain performance monitoring framework or key performance indicators to use in analysing supply chain data and informing continuous improvement, tracking progress and effectiveness of supply chain interventions or supporting supply chain policy/operational decisions","RC-0324","a5536000000k9iDAAQ"]
[null,true,"a5436000000k9gtAAA","Internal controls","Inadequate internal controls","Absence of or inadequate written financial  policies and procedures manual describing the process flow and the embedded controls","RC-0092","a5536000000k9eTAAQ"]
[null,true,"a5436000000k9gtAAA","Internal controls","Inadequate internal controls","Poor monitoring of key controls relating to altering or establishing a new accounting principle, policy or procedure","RC-0096","a5536000000k9eXAAQ"]
[null,true,"a5436000000k9gtAAA","Internal controls","Inadequate internal controls","Poor monitoring of key controls relating to approval system for procurement  of non health products and services","RC-0102","a5536000000k9edAAA"]
[null,true,"a5436000000k9gtAAA","Internal controls","Inadequate internal controls","Poor monitoring of key controls relating to cash and bank management.","RC-0108","a5536000000k9ejAAA"]
[null,true,"a5436000000k9gtAAA","Internal controls","Inadequate internal controls","Poor monitoring of key controls relating to petty cash management.","RC-0114","a5536000000k9epAAA"]
[null,true,"a5436000000k9gtAAA","Internal controls","Inadequate internal controls","Poor monitoring of key controls relating to payment and invoicing","RC-0120","a5536000000k9evAAA"]
[null,true,"a5436000000k9gtAAA","Internal controls","Inadequate internal controls","Poor monitoring of key controls relating to payroll management","RC-0126","a5536000000k9f1AAA"]
[null,true,"a5436000000k9gtAAA","Internal controls","Inadequate internal controls","Poor monitoring of key controls relating to fixed asset management","RC-0132","a5536000000k9f7AAA"]
[null,true,"a5436000000k9gtAAA","Internal controls","Inadequate internal controls","Absence of or inadequate process in place for management to communicate financial reports provided by the various assurance providers to the board of directors or equivalent body.","RC-0134","a5536000000k9f9AAA"]
[null,true,"a5436000000k9gtAAA","Internal controls","Inadequate internal controls","Roles and responsibilities relating to the communication of financial reports provided by the various assurance providers to the board of directors or equivalent body are not clearly defined.","RC-0135","a5536000000k9fAAAQ"]
[null,true,"a5436000000k9gtAAA","Internal controls","Inadequate internal controls","Absence of or inadeqaute process in place for management to ensure that the board of directors, audit, finance or other committees, periodically reviews the financial policies and procedures.","RC-0136","a5536000000k9fBAAQ"]
[null,true,"a5436000000k9gtAAA","Internal controls","Inadequate internal controls","Roles and responsibilities relating to ensuring that the financial policies and procedures are reviewed of by the board of directors, audit, finance or other committees are not clearly defined.","RC-0137","a5536000000k9fCAAQ"]
[null,true,"a5436000000k9gtAAA","Internal controls","Inadequate internal controls","Absence of or inadequate process in place for management to ensure that the financial management system operates as intended and provide reliable data.","RC-0138","a5536000000k9fDAAQ"]
[null,true,"a5436000000k9gtAAA","Internal controls","Inadequate internal controls","Roles and responsibilities relating to the supervision of the financial management system by management to ensure that it operates as intended and provides reliable data are not clearly defined.","RC-0139","a5536000000k9fEAAQ"]
[null,true,"a5436000000k9gtAAA","Internal controls","Inadequate internal controls","The staffing of the monitoring unit established by the organisation is not competent or adequately trained and orientated on how to do things","RC-0141","a5536000000k9fGAAQ"]
[null,true,"a5436000000k9gtAAA","Internal controls","Inadequate internal controls","Senior management and the board do not  take actions on internal control deficiencies reported to them","RC-0144","a5536000000k9fJAAQ"]
[null,true,"a5436000000k9gtAAA","Internal controls","Inadequate internal controls","Absence of or inadequate written policies and procedures on monitoring including SRs/SSRs oversight","RC-0145","a5536000000k9fKAAQ"]
[null,true,"a5436000000k9gtAAA","Internal controls","Inadequate internal controls","Absence of or inadequate procedures  or staff not systematically orientated/trained on the procedures  regarding  the altering or establishing a new accounting principle, policy or procedure","RC-0372","a5536000000kA7BAAU"]
[null,true,"a5436000000k9gtAAA","Internal controls","Inadequate internal controls","Absence of or inadequate  procedures  or staff not systematically orientated/trained on the procedures regarding the approval system for procurement  of non health products and services","RC-0373","a5536000000kA7CAAU"]
[null,true,"a5436000000k9gtAAA","Internal controls","Inadequate internal controls","Absence of or inadequate policies and procedures  or staff not systematically orientated/trained on the procedures regarding cash and bank management","RC-0374","a5536000000kA7DAAU"]
[null,true,"a5436000000k9gtAAA","Internal controls","Inadequate internal controls","Absence of or inadequate  policies and procedures  or staff not systematically orientated/trained on the procedures regarding petty cash management","RC-0375","a5536000000kA7EAAU"]
[null,true,"a5436000000k9gtAAA","Internal controls","Inadequate internal controls","Absence of or inadequate written policies and procedures  or staff not systematically orientated/trained on the procedures regarding payment and invoicing","RC-0376","a5536000000kA7FAAU"]
[null,true,"a5436000000k9gtAAA","Internal controls","Inadequate internal controls","Absence of or inadequate written policies and procedures  or staff not systematically orientated/trained on the procedures relating to payroll management","RC-0377","a5536000000kA7GAAU"]
[null,true,"a5436000000k9gtAAA","Internal controls","Inadequate internal controls","Absence of or inadequate written policies and procedures  or staff not systematically orientated/trained on the procedures relating to fixed asset management","RC-0378","a5536000000kA7HAAU"]
[null,true,"a5436000000k9gtAAA","Internal controls","Inadequate internal controls","Internal control deficiencies are not communicated to senior management to take action and enforce them or communicated with significant delays to those parties responsible to take actions","RC-0379","a5536000000kA7IAAU"]
[null,true,"a5436000000k9h4AAA","National program governance","Inadequate national program governance","The implementation arrangements are not designed to implement the program effectively and efficiently.","RC-0325","a5536000000k9iEAAQ"]
[null,true,"a5436000000k9h4AAA","National program governance","Inadequate national program governance","Lines of authority and responsibility from national to local levels to implement the disease program are not clearly defined and/or do not operating effectively.","RC-0326","a5536000000k9iFAAQ"]
[null,true,"a5436000000k9h4AAA","National program governance","Inadequate national program governance","Key government officials (e.g., MoH, MoF, President or their key advisors, etc.) are not aware of the Global Fund program and do not provide the necessary support and leadership to facilitate the program achieving its objectives.","RC-0327","a5536000000k9iGAAQ"]
[null,true,"a5436000000k9h4AAA","National program governance","Inadequate national program governance","The national (and/or appropriate sub-national) government does not prioritize providing financial and/or human resources to support the disease program.","RC-0328","a5536000000k9iHAAQ"]
[null,true,"a5436000000k9h4AAA","National program governance","Inadequate national program governance","The program does not have a human resource for health (HRH) plan or  technical assistance and capacity-building activities to address known weaknesses.","RC-0329","a5536000000k9iIAAQ"]
[null,true,"a5436000000k9h4AAA","National program governance","Inadequate national program governance","The government does not hold the national programs accountable for their performance in achieving the national strategy and objectives.","RC-0330","a5536000000k9iJAAQ"]
[null,true,"a5436000000k9h4AAA","National program governance","Inadequate national program governance","The implementer is not collaborating well between government and non-government stakeholders to facilitate the achievement of program objectives.","RC-0331","a5536000000k9iKAAQ"]
[null,true,"a5436000000k9h4AAA","National program governance","Inadequate national program governance","Ineffective planning, budgeting, implementation and supervision performed across national disease programs (i.e. absence or lack of standardized forms and templates, unit costs, joint planning of supervision vision visits, etc.).","RC-0332","a5536000000k9iLAAQ"]
[null,true,"a5436000000k9h4AAA","National program governance","Inadequate national program governance","Ineffective planning, budgeting, implementation and supervision performed across GF and other external donors such as GAVI, PMI, PEPFAR, WB (i.e. duplication of geographic coverage and/or lack of harmonized unit costs, joint supervision and/or assurance activities, etc.).","RC-0333","a5536000000k9iMAAQ"]
[null,true,"a5436000000k9h4AAA","National program governance","Inadequate national program governance","The national disease program leadership does not ensure that cross-cutting HSS/RSSH interventions are being appropriately funded within the available resources to maximize the impact of the program.","RC-0334","a5536000000k9iNAAQ"]
[null,true,"a5436000000k9h6AAA","Program coordination and SR oversight","Inadequate program coordination and SR oversight","The PR does not effectively engage and coordinate with partners, stakeholders and other relevant actors in the health sector.","RC-0354","a5536000000k9ihAAA"]
[null,true,"a5436000000k9h6AAA","Program coordination and SR oversight","Inadequate program coordination and SR oversight","PR leadership does not effectively coordinate and implement support available from partners for required technical assistance and capacity building.","RC-0355","a5536000000k9iiAAA"]
[null,true,"a5436000000k9h6AAA","Program coordination and SR oversight","Inadequate program coordination and SR oversight","The organization has no defined processes, procedures and systems for a transparent and timely selection process of sub-recipients (and relevant sub-sub-recipients).","RC-0356","a5536000000k9ijAAA"]
[null,true,"a5436000000k9h6AAA","Program coordination and SR oversight","Inadequate program coordination and SR oversight","The PR's contractual agreement with SRs does not include responsibilities, accountability, targets and timelines for implementing and reporting on grant activities.","RC-0357","a5536000000k9ikAAA"]
[null,true,"a5436000000k9h6AAA","Program coordination and SR oversight","Inadequate program coordination and SR oversight","The PR does not have the managerial capacity and systems for effective management and oversight of SRs (and relevant SSRs).","RC-0358","a5536000000k9ilAAA"]
[null,true,"a5436000000k9h6AAA","Program coordination and SR oversight","Inadequate program coordination and SR oversight","There is insufficient frequency and/or quality of PR communications, site visits, or other verification of program activities.","RC-0359","a5536000000k9imAAA"]
[null,true,"a5436000000k9h6AAA","Program coordination and SR oversight","Inadequate program coordination and SR oversight","The PR does not analyse findings from SRs and/or advise on capacity strengthening or other appropriate measures in a effective manner.","RC-0360","a5536000000k9inAAA"]
[null,true,"a5436000000k9gmAAA","Program design and relevance","Inadequate program design and relevance","There is no National Strategic Plan available for the disease and for the health sector, or the disease specific National Strategic Plan is not aligned to the National Health Sector Strategy (i.e.  the NSP period does not coincide with the grant implementation period, and/or the program does not have an operational plan, which is costed and prioritized and linked to NSP).","RC-0000","a5536000000k9czAAA"]
[null,true,"a5436000000k9gmAAA","Program design and relevance","Inadequate program design and relevance","No assessment/review of the current NSP has been conducted or is planned in the near future.","RC-0001","a5536000000k9d0AAA"]
[null,true,"a5436000000k9gmAAA","Program design and relevance","Inadequate program design and relevance","The selected interventions and targets are not based on program context and implementation realities and do not address NSP priorities","RC-0002","a5536000000k9d1AAA"]
[null,true,"a5436000000k9gmAAA","Program design and relevance","Inadequate program design and relevance","There is insufficient capacity and expertise to formulate and design a program, which is relevant to the country’s epidemiological context and priorities.","RC-0003","a5536000000k9d2AAA"]
[null,true,"a5436000000k9gmAAA","Program design and relevance","Inadequate program design and relevance","There is no economic analysis of the cost of service delivery to ensure the best value for money in achieving impact.","RC-0004","a5536000000k9d3AAA"]
[null,true,"a5436000000k9gmAAA","Program design and relevance","Inadequate program design and relevance","Key interventions are not sufficiently focused on populations most in need of services, or well-linked to The achievement of program outcomes and impact indicators /interventions to reduce human rights or gender related barriers in access to services.","RC-0005","a5536000000k9d4AAA"]
[null,true,"a5436000000k9gmAAA","Program design and relevance","Inadequate program design and relevance","The scope and scale of interventions are not sufficient to achieve desired programmatic coverage, outcome and impact.","RC-0006","a5536000000k9d5AAA"]
[null,true,"a5436000000k9goAAA","Program quality and efficiency","Inadequate program quality and efficiency","Guidelines and tools to review quality of services provided are not available and/or the program is not routinely quality reviewed at national and sub-national level.","RC-0023","a5536000000k9dMAAQ"]
[null,true,"a5436000000k9goAAA","Program quality and efficiency","Inadequate program quality and efficiency","The program does not adhere to approved national or WHO guidelines when selecting medicine formulations, diagnostic tools including laboratory commodities and equipment, or other health products for procurement.","RC-0024","a5536000000k9dNAAQ"]
[null,true,"a5436000000k9goAAA","Program quality and efficiency","Inadequate program quality and efficiency","There is not adequate, regular training for health services for staff on guidelines/protocols and appropriate use and delivery of health products, non-discrimination, informed consent, medical confidentiality.","RC-0025","a5536000000k9dOAAQ"]
[null,true,"a5436000000k9goAAA","Program quality and efficiency","Inadequate program quality and efficiency","Mechanisms (e.g., a referral system) to link patients with services essential to comprehensive management of the disease, and/or the monitoring systems for integrated services (diagnostic, treatment and monitoring) are not adequate.","RC-0026","a5536000000k9dPAAQ"]
[null,true,"a5436000000k9goAAA","Program quality and efficiency","Inadequate program quality and efficiency","Up-to-date guidelines and protocols including laboratory testing protocols are not available at the facility level.","RC-0027","a5536000000k9dQAAQ"]
[null,true,"a5436000000k9goAAA","Program quality and efficiency","Inadequate program quality and efficiency","Primary health services providers are not regulated (e.g., private providers).","RC-0028","a5536000000k9dRAAQ"]
[null,true,"a5436000000k9goAAA","Program quality and efficiency","Inadequate program quality and efficiency","The program does not have a strategy/activities to integrate some of the interventions/activities with other programs (eg TB and HIV).","RC-0029","a5536000000k9dSAAQ"]
[null,true,"a5436000000k9goAAA","Program quality and efficiency","Inadequate program quality and efficiency","There is no defined package of services to be delivered at community level and/or no agreed upon list of indicators for collecting data for community level service delivery.","RC-0030","a5536000000k9dTAAQ"]
[null,true,"a5436000000k9goAAA","Program quality and efficiency","Inadequate program quality and efficiency","There is no well-defined scope of work for community health workers, i.e. the scope of work does not cover and facilitate working across all priority programs and/or services, and/or there are different profiles, training plans, salary structures and scopes of work across different diseases/regions/programs.","RC-0031","a5536000000k9dUAAQ"]
[null,true,"a5436000000k9goAAA","Program quality and efficiency","Inadequate program quality and efficiency","There are limited assurance mechanisms in place to review quality of data reported by the community health workers.","RC-0032","a5536000000k9dVAAQ"]
[null,true,"a5436000000k9goAAA","Program quality and efficiency","Inadequate program quality and efficiency","There are limited processes in place for regular capacity building, supply management, supervision and feedback to and from the point of care to higher levels of service organization.","RC-0033","a5536000000k9dWAAQ"]
[null,true,"a5436000000k9goAAA","Program quality and efficiency","Inadequate program quality and efficiency","There is no national laboratory strategic plan or the plan is not implemented","RC-0034","a5536000000k9dXAAQ"]
[null,true,"a5436000000k9goAAA","Program quality and efficiency","Inadequate program quality and efficiency","There is no integration or networking of laboratory services. Menu of tests for each level of the health system is not defined nor is there an integrated specimen transport system for referral.","RC-0035","a5536000000k9dYAAQ"]
[null,true,"a5436000000k9goAAA","Program quality and efficiency","Inadequate program quality and efficiency","There is no national Quality Standards for laboratory services or implementation of a Quality Management system.","RC-0036","a5536000000k9dZAAQ"]
[null,true,"a5436000000k9goAAA","Program quality and efficiency","Inadequate program quality and efficiency","There is no system for monitoring laboratory equipment utilization rates and management of the same.","RC-0037","a5536000000k9daAAA"]
[null,true,"a5436000000k9grAAA","Promotion of human rights and gender equality","Inadequate promotion of human rights and gender equality","There are laws, policies or regulations which hinder government funding and/or contracting of non-government organisations to support implementation of a national disease response.","RC-0051","a5536000000k9doAAA"]
[null,true,"a5436000000k9grAAA","Promotion of human rights and gender equality","Inadequate promotion of human rights and gender equality","The CCM/PR/SR have no guidelines /manuals/policies which outline commitments to the promotion and protection of human rights and gender equality and no measures are being taken to address the situation.","RC-0052","a5536000000k9dpAAA"]
[null,true,"a5436000000k9grAAA","Promotion of human rights and gender equality","Inadequate promotion of human rights and gender equality","Interventions to reduce human rights and gender related barriers in access to services are not included in the program design.","RC-0053","a5536000000k9dqAAA"]
[null,true,"a5436000000k9grAAA","Promotion of human rights and gender equality","Inadequate promotion of human rights and gender equality","There are harmful and/or discriminatory cultural practices, gender-norms and stereotypes or gender-based violence that limit access to health care by key or vulnerable populations.","RC-0054","a5536000000k9drAAA"]
[null,true,"a5436000000k9grAAA","Promotion of human rights and gender equality","Inadequate promotion of human rights and gender equality","There is evidence of overcrowding, treatment interruptions, or other abuses that negatively impact on the health of detainees where the Global Fund is financing health services in prisons or detention centres.","RC-0055","a5536000000k9dsAAA"]
[null,true,"a5436000000k9grAAA","Promotion of human rights and gender equality","Inadequate promotion of human rights and gender equality","There are laws, policies or regulations, which may hinder implementation of evidence informed programs for specific populations disproportionately impacted by the three diseases with no mitigation measures in place to ensure effective program delivery for key populations.","RC-0056","a5536000000k9dtAAA"]
[null,true,"a5436000000k9h1AAA","Warehouse and distribution systems","Inadequate warehouse and distribution systems","Indications of poor storage and/or distribution planning or budgeting at central or peripheral levels; poor coordination of storage and distribution planning; demurrage and port clearance delays; inadequate resources are available for efficient last mile operations; high working capital and/or inventory carrying costs","RC-0304","a5536000000k9htAAA"]
[null,true,"a5436000000k9h1AAA","Warehouse and distribution systems","Inadequate warehouse and distribution systems","The number of trained staff for inventory management including appropriate equipment use, proper recording (receipt and dispatch), reporting and monitoring of health commodities at any level of the supply chain is inadequate","RC-0305","a5536000000k9huAAA"]
[null,true,"a5436000000k9h1AAA","Warehouse and distribution systems","Inadequate warehouse and distribution systems","Inadequate facility capacity/store space at central or peripheral levels, either currently or anticipated shortages based on planned scale-up","RC-0306","a5536000000k9hvAAA"]
[null,true,"a5436000000k9h1AAA","Warehouse and distribution systems","Inadequate warehouse and distribution systems","Proper storage facilities for commodities are not available (i.e., store walls, floors and ceiling are not in good condition, properly equipped with the temperature monitored etc.) either at the central or peripheral level; the minimum range of warehouse equipment is lacking or poorly maintained","RC-0307","a5536000000k9hwAAA"]
[null,true,"a5436000000k9h1AAA","Warehouse and distribution systems","Inadequate warehouse and distribution systems","Physical security and access controls are not well managed leading to a high risk of leakage; traceability of items at any level of the supply-chain is difficult; sale of health products through informal or illegal channels is generally common","RC-0308","a5536000000k9hxAAA"]
[null,true,"a5436000000k9h1AAA","Warehouse and distribution systems","Inadequate warehouse and distribution systems","Insufficient oversight of stock levels (including physical stock counts and reporting) for key products at any level of the supply chain","RC-0309","a5536000000k9hyAAA"]
[null,true,"a5436000000k9h1AAA","Warehouse and distribution systems","Inadequate warehouse and distribution systems","Contracts with third party logistics service providers are not well managed and may lack KPIs; invoicing and payment for services is not well managed; absent or delayed distribution reports including timely submission of PODs","RC-0310","a5536000000k9hzAAA"]
[null,true,"a5436000000k9h1AAA","Warehouse and distribution systems","Inadequate warehouse and distribution systems","No manual exists describing all relevant warehousing and distribution activities (including standard operating procedures (SOPs) for receiving, storing and inventory management) and good distribution practices from central to peripheral stores; manual is not regularly updated; or stock management, stock replenishment, order processing and goods receiving procedures are not implemented according to SOPs","RC-0311","a5536000000k9i0AAA"]
[null,true,"a5436000000k9gyAAA","Selection of health product and equipment","Inappropriate selection of health product and equipment","Need for new medical technologies is not determined; there is insufficient planning for introduction of new products; or plans are not followed to ensure optimal placement and utilization of new products resulting in a risk of wastage of products","RC-0286","a5536000000k9hbAAA"]
[null,true,"a5436000000k9gyAAA","Selection of health product and equipment","Inappropriate selection of health product and equipment","Equipment utilization levels are sub-optimal, maintenance is poorly planned/implemented or there are indications of not meeting equipment warranty conditions","RC-0287","a5536000000k9hcAAA"]
[null,true,"a5436000000k9gyAAA","Selection of health product and equipment","Inappropriate selection of health product and equipment","Modelling of scenarios for scale down of old treatments/technologies and the scale up of new ones is not well documented to allow for adjustment of assumptions during implementation","RC-0288","a5536000000k9hdAAA"]
[null,true,"a5436000000k9h5AAA","Ineffective program management","Ineffective program management","The organization cannot operate in key areas/regions where grant activities will be implemented or does not have physical facilities, office, IT equipment, transport, etc. to monitor grant implementation in key areas/regions of the country.","RC-0348","a5536000000k9ibAAA"]
[null,true,"a5436000000k9h5AAA","Ineffective program management","Ineffective program management","The PR does not have effective policies, processes and tools in place to allow program managers to identify and manage risks associated with program implementation (at PR, SR and SSR levels).","RC-0349","a5536000000k9icAAA"]
[null,true,"a5436000000k9h5AAA","Ineffective program management","Ineffective program management","The organization does not use quantitative and qualitative analysis to identify risks.","RC-0350","a5536000000k9idAAA"]
[null,true,"a5436000000k9h5AAA","Ineffective program management","Ineffective program management","The organization does not plan risk mitigation actions or or put in place controls to manage risks to an acceptable level.","RC-0351","a5536000000k9ieAAA"]
[null,true,"a5436000000k9h5AAA","Ineffective program management","Ineffective program management","The PR does not have a risk management unit/team dedicated to manage grant risks.","RC-0352","a5536000000k9ifAAA"]
[null,true,"a5436000000k9h5AAA","Ineffective program management","Ineffective program management","The organisation does not have mechanisms in place to monitor the implementation of actions put in place to mitigate identified risks and receive assurance that the actions are effective.","RC-0353","a5536000000k9igAAA"]
[null,true,"a5436000000k9h5AAA","Ineffective program management","Ineffective program management","The organization does not have appropriate written HR policies and procedures.","RC-0335","a5536000000k9iOAAQ"]
[null,true,"a5436000000k9h5AAA","Ineffective program management","Ineffective program management","Staff do not have individual annual work plans that describe activities to be carried out during the year.","RC-0336","a5536000000k9iPAAQ"]
[null,true,"a5436000000k9h5AAA","Ineffective program management","Ineffective program management","Key individuals responsible for implementing the program do not have written job descriptions that incorporate responsibilities associated with the program.","RC-0337","a5536000000k9iQAAQ"]
[null,true,"a5436000000k9h5AAA","Ineffective program management","Ineffective program management","The organization does not have a track record of recruiting, selecting, and retaining quality human resources.","RC-0338","a5536000000k9iRAAQ"]
[null,true,"a5436000000k9h5AAA","Ineffective program management","Ineffective program management","Available personnel do not have the necessary experience, expertise and knowledge of Global Fund requirements to perform their assigned roles (i.e. there is not an appropriate mix of staff with public health expertise and cross-functional areas (finance, procurement, M&E, legal).","RC-0339","a5536000000k9iSAAQ"]
[null,true,"a5436000000k9h5AAA","Ineffective program management","Ineffective program management","Personnel are not appropriately motivated to implement their assigned roles (i.e. are not regularly paid, held accountable for poor performance, rewarded for good performance, or do not have opportunities for advancement, training, etc.).","RC-0340","a5536000000k9iTAAQ"]
[null,true,"a5436000000k9h5AAA","Ineffective program management","Ineffective program management","Evidence that the PR does not have in place or does not effectively enforce appropriate governance and internal controls, including operating procedures and control frameworks, compliance activities, internal and external audit requirements, and sufficient follow-up on issues identified.","RC-0341","a5536000000k9iUAAQ"]
[null,true,"a5436000000k9h5AAA","Ineffective program management","Ineffective program management","The organization is not legally registered in the country it is operating in.","RC-0342","a5536000000k9iVAAQ"]
[null,true,"a5436000000k9h5AAA","Ineffective program management","Ineffective program management","The organization has not implemented a program of a similar financial scale, with similar geographic spread, and been responsible for achieving programmatic results of a similar complexity.","RC-0343","a5536000000k9iWAAQ"]
[null,true,"a5436000000k9h5AAA","Ineffective program management","Ineffective program management","There is not a stable enabling environment for the program to operate within, in terms of political changes or social unrest, ongoing conflicts, poor physical infrastructure, natural disasters, humanitarian crises.","RC-0344","a5536000000k9iXAAQ"]
[null,true,"a5436000000k9h5AAA","Ineffective program management","Ineffective program management","The PR does not plan resources, activity objectives, project schedules and quality control for the staff implementing the program in an effective manner.","RC-0345","a5536000000k9iYAAQ"]
[null,true,"a5436000000k9h5AAA","Ineffective program management","Ineffective program management","The PR does not have an effective program management unit/team dedicated to the implementation of the grant (i.e., does not have processes, procedures, standardized forms and reports to manage program activities).","RC-0346","a5536000000k9iZAAQ"]
[null,true,"a5436000000k9h5AAA","Ineffective program management","Ineffective program management","The organization does not have established protocols nor appropriate infrastructure to communicate internally (including to sub-offices or sub-recipients) or to external stakeholders (donors, partners, other implementers, government, etc.).","RC-0347","a5536000000k9iaAAA"]
[null,true,"a5436000000k9h0AAA","Procurement processes and outcomes","Inefficient procurement processes and outcomes","Process to appoint bid evaluation committee does not take potential conflicts of interest into account and/or members do not sign a conflict of interest statement","RC-0296","a5536000000k9hlAAA"]
[null,true,"a5436000000k9h0AAA","Procurement processes and outcomes","Inefficient procurement processes and outcomes","Uncertain/delayed commitments by partners, including government, to procure complimentary health products","RC-0297","a5536000000k9hmAAA"]
[null,true,"a5436000000k9h0AAA","Procurement processes and outcomes","Inefficient procurement processes and outcomes","Procurement operations are not subject to regular internal or external audits","RC-0298","a5536000000k9hnAAA"]
[null,true,"a5436000000k9h0AAA","Procurement processes and outcomes","Inefficient procurement processes and outcomes","Procurement process is hindered by non-compliance with procurement procedures or the lack of a procedure manual that clearly documents procurement process (please specify)","RC-0299","a5536000000k9hoAAA"]
[null,true,"a5436000000k9h0AAA","Procurement processes and outcomes","Inefficient procurement processes and outcomes","Financial management is not effectively linked with procurement schedules to ensure that funds are available at the time of procurement","RC-0300","a5536000000k9hpAAA"]
[null,true,"a5436000000k9h0AAA","Procurement processes and outcomes","Inefficient procurement processes and outcomes","Procurement activities (e.g. properly accounting for lead times) are not planned effectively or properly organized to avoid delays in adjudication, cancellations of tenders, etc.","RC-0301","a5536000000k9hqAAA"]
[null,true,"a5436000000k9h0AAA","Procurement processes and outcomes","Inefficient procurement processes and outcomes","Staff do not have the purchasing and procurement forms, documents and registers needed to properly record and file activities and transactions; there are gaps in available procurement records","RC-0302","a5536000000k9hrAAA"]
[null,true,"a5436000000k9h0AAA","Procurement processes and outcomes","Inefficient procurement processes and outcomes","Contract management and supplier performance monitoring are not effective to prevent and/or resolve complaints, issues, delays, changes, etc. Signed contracts do not adequate address important commercial/legal issues","RC-0303","a5536000000k9hsAAA"]
[null,true,"a5436000000k9gpAAA","Data availability and data quality","Limited data availability and inadequate data quality","Coverage of national routine health information system is insufficient (e.g., less than 80% coverage).","RC-0038","a5536000000k9dbAAA"]
[null,true,"a5436000000k9gpAAA","Data availability and data quality","Limited data availability and inadequate data quality","Data is not complete or reported on a timely basis.","RC-0039","a5536000000k9dcAAA"]
[null,true,"a5436000000k9gpAAA","Data availability and data quality","Limited data availability and inadequate data quality","Core impact and/or outcome indicators and or coverage/data are not reported","RC-0040","a5536000000k9ddAAA"]
[null,true,"a5436000000k9gpAAA","Data availability and data quality","Limited data availability and inadequate data quality","Information on disease burden incidence, prevalence and on behaviour changes for general and/or key populations is not available from population based surveys","RC-0041","a5536000000k9deAAA"]
[null,true,"a5436000000k9gpAAA","Data availability and data quality","Limited data availability and inadequate data quality","Program reviews, impact assessments are not planned, funded, and implemented every 3 years","RC-0042","a5536000000k9dfAAA"]
[null,true,"a5436000000k9gpAAA","Data availability and data quality","Limited data availability and inadequate data quality","Disaggregated data is not collected or reported enabling the program to target populations, sub-groups and geographic areas.","RC-0043","a5536000000k9dgAAA"]
[null,true,"a5436000000k9gpAAA","Data availability and data quality","Limited data availability and inadequate data quality","Community level data system are not interoperable with national routine systems/HMIS.","RC-0044","a5536000000k9dhAAA"]
[null,true,"a5436000000k9gpAAA","Data availability and data quality","Limited data availability and inadequate data quality","There is no mechanism to ensure ethical collection and protection of data including privacy, confidentiality and security.","RC-0045","a5536000000k9diAAA"]
[null,true,"a5436000000k9gpAAA","Data availability and data quality","Limited data availability and inadequate data quality","There are no measures/strategies in place to ensure quality of patient data, including mechanisms to perform routine data quality reviews (or identical internal programmatic checks/controls) and/or logistics information system quality reviews.","RC-0046","a5536000000k9djAAA"]
[null,true,"a5436000000k9gpAAA","Data availability and data quality","Limited data availability and inadequate data quality","Issues coming out from the routine data reviews are not being put in place or addressed.","RC-0047","a5536000000k9dkAAA"]
[null,true,"a5436000000k9h2AAA","Quality monitoring and product use","Limited quality monitoring and inadequate product use","Lack of an adequate QA plan linked to appropriate budget for product quality monitoring activities (including list of products, costs and PSM arrangements) and accompanying SOP that describes the quality assurance activities throughout the supply chain (including link with National Quality monitoring program) for relevant pharmaceuticals and non-pharmaceuticals","RC-0312","a5536000000k9i1AAA"]
[null,true,"a5436000000k9h2AAA","Quality monitoring and product use","Limited quality monitoring and inadequate product use","Lack of qualified staff, training or tools related to product quality monitoring or maintenance of product quality during storage and distribution","RC-0313","a5536000000k9i2AAA"]
[null,true,"a5436000000k9h2AAA","Quality monitoring and product use","Limited quality monitoring and inadequate product use","Instances of past non-compliance with Global Fund health products QA policies relevant to product selection, procurement or testing during the current grant implementation period (or last implementation period for new grant); the quality control laboratory used is not WHO prequalified or ISO 17025 certified","RC-0314","a5536000000k9i3AAA"]
[null,true,"a5436000000k9h2AAA","Quality monitoring and product use","Limited quality monitoring and inadequate product use","Lack of Pharmacovigilance system that includes systematic screening, recording and reporting on standardized forms","RC-0315","a5536000000k9i4AAA"]
[null,true,"a5436000000k9h2AAA","Quality monitoring and product use","Limited quality monitoring and inadequate product use","National Regulatory Authorities (NRA) have insufficient technical capacity, testing capability or resources to ensure compliance with laws/regulations and implement effective quality monitoring activities; NRA does not ensure a coordinated approach to QA requirements across in-country actors","RC-0316","a5536000000k9i5AAA"]
[null,true,"a5436000000k9h2AAA","Quality monitoring and product use","Limited quality monitoring and inadequate product use","No system in place to remove expired, contaminated, counterfeit or otherwise poor quality products from the supply chain","RC-0317","a5536000000k9i6AAA"]
[null,true,"a5436000000k9h2AAA","Quality monitoring and product use","Limited quality monitoring and inadequate product use","Absent or inappropriate/inadequate drug resistance monitoring activities\"","RC-0318","a5536000000k9i7AAA"]
[null,true,"a5436000000k9gqAAA","Use of data","Limited use of data","There is not a regular process for reviewing data at sub-national or central level to inform program decision making.","RC-0048","a5536000000k9dlAAA"]
[null,true,"a5436000000k9gqAAA","Use of data","Limited use of data","Analysis of available data (i.e., triangulation) to assess coverage, quality and impact does not happen and is not used for strategic investments and improvements to program quality.","RC-0049","a5536000000k9dmAAA"]
[null,true,"a5436000000k9gqAAA","Use of data","Limited use of data","Regular trainings or support is not provided for program managers on data use for decision-making.","RC-0050","a5536000000k9dnAAA"]
[null,true,"a5436000000k9gwAAA","Value for money","Limited value for money","Inadequate monitoring of the key controls in the budget development process","RC-0224","a5536000000k9gbAAA"]
[null,true,"a5436000000k9gwAAA","Value for money","Limited value for money","Inadequate monitoring of the key controls in the process relating to budgetary changes","RC-0230","a5536000000k9ghAAA"]
[null,true,"a5436000000k9gwAAA","Value for money","Limited value for money","Inadequate monitoring of the key controls in the selection process for the purchasing and procurement function of non-health products.","RC-0247","a5536000000k9gyAAA"]
[null,true,"a5436000000k9gwAAA","Value for money","Limited value for money","Insufficient coordination by implementers in areas being funded by more than one donor resulting in duplications","RC-0253","a5536000000k9h4AAA"]
[null,true,"a5436000000k9gwAAA","Value for money","Limited value for money","Absence of or inadequate policies and procedures in place or staff are not systematically orientated and/or trained regarding the budget development process.","RC-0395","a5536000000kA7YAAU"]
[null,true,"a5436000000k9gwAAA","Value for money","Limited value for money","Absence of or inadequate procedures in place or staff are not systematically orientated and/or trained regarding  budgetary changes","RC-0396","a5536000000kA7ZAAU"]
[null,true,"a5436000000k9gwAAA","Value for money","Limited value for money","Absence of or inadequate policies and procedures in place or staff are not systematically orientated and/or trained to enable the determination of the cost per service delivery for key interventions.","RC-0397","a5536000000kA7aAAE"]
[null,true,"a5436000000k9gwAAA","Value for money","Limited value for money","Absence of or inadequate policies and procedures in place or staff are not systematically orientated and/or trained on the procurement cycle for non health products and services","RC-0398","a5536000000kA7bAAE"]
[null,true,"a5436000000k9gwAAA","Value for money","Limited value for money","Inadequate monitoring of the key controls relating to the procurement cycle for non health products and services","RC-0399","a5536000000kA7cAAE"]
[null,true,"a5436000000k9gwAAA","Value for money","Limited value for money","Absence of or inadequate procedures in place or staff are not systematically orientated and/or trained on the selection process for the purchasing and procurement function of non-health products.","RC-0400","a5536000000kA7dAAE"]
[null,true,"a5436000000k9gwAAA","Value for money","Limited value for money","Absence of or inadequate  procedures to ensure efficiencies in procurement, tax and foreign exchange management","RC-0401","a5536000000kA7eAAE"]
[null,true,"a5436000000k9gwAAA","Value for money","Limited value for money","Staff lack capacity in dealing with issues related to tax and foreign exchange management","RC-0402","a5536000000kA7fAAE"]
[null,true,"a5436000000k9gzAAA","Forecasting, quantification and supply planning","Unreliable forecasting, quantification and supply planning","The Forecasting/Quantification process is not appropriately managed (not coordinated, fragmented, late, poorly documented) or is not managed by qualified staff. Controls and oversight of the forecasting and supply planning function is not effective","RC-0289","a5536000000k9heAAA"]
[null,true,"a5436000000k9gzAAA","Forecasting, quantification and supply planning","Unreliable forecasting, quantification and supply planning","Forecasting of requirements does not appropriately consider program scale up limitations, changes in product use guidelines including diagnostic test algorithms or the introduction of new/alternative technologies/remedies","RC-0290","a5536000000k9hfAAA"]
[null,true,"a5436000000k9gzAAA","Forecasting, quantification and supply planning","Unreliable forecasting, quantification and supply planning","There are major problems with availability, quality and utilization of essential data particularly the lack of reliable consumption and disease caseload data","RC-0291","a5536000000k9hgAAA"]
[null,true,"a5436000000k9gzAAA","Forecasting, quantification and supply planning","Unreliable forecasting, quantification and supply planning","Diagnosis algorithm is not in place or is not used","RC-0292","a5536000000k9hhAAA"]
[null,true,"a5436000000k9gzAAA","Forecasting, quantification and supply planning","Unreliable forecasting, quantification and supply planning","There is no integrated supply plan for program commodities; existing plans do not include all product sources; plans are not updated periodically or linked to the demand forecasts including a date of procurement initiation and date of expected receipt","RC-0293","a5536000000k9hiAAA"]
[null,true,"a5436000000k9gzAAA","Forecasting, quantification and supply planning","Unreliable forecasting, quantification and supply planning","There is weak oversight of the national demand forecast function; or no system/structures are in place to document, validate, review or update forecasts and quantification decisions","RC-0294","a5536000000k9hjAAA"]
[null,true,"a5436000000k9gzAAA","Forecasting, quantification and supply planning","Unreliable forecasting, quantification and supply planning","National laboratory strategy is not in place or not followed/used","RC-0295","a5536000000k9hkAAA"]

{"sheet":"PR-LFA Evaluation_5","index":27,"n_rows":76,"n_cols":8,"rows_kept":76,"cut":false,"hidden":false,"merged":[[0,0,0,14],[12,0,16,14],[3,0,3,14],[4,0,4,10],[5,0,9,14],[11,0,11,14],[40,0,45,14],[49,0,54,14],[56,0,56,10],[18,0,18,14],[19,0,23,14],[27,0,27,14],[28,0,28,10],[32,0,37,14],[39,0,39,14]]}
[{"$f":"IF(CoverSheet!J12=\"N/A\",\"Progress Report\",\"Progress Report with Disbursement Request\")","v":"Progress Report with Disbursement Request"}]
[{"$f":"VLOOKUP(Translations!B340,Translations!B3:H508,4,0)","v":"Section 5 : Évaluation des résultats globaux par le récipiendaire principal et l'agent local du Fonds"}]
[]
[{"$f":"VLOOKUP(Translations!B341,Translations!B3:H508,4,0)","v":"A. Autoévaluation globale des résultats de la subvention par le RP (y compris un résumé des liens entre les résultats financiers et programmatiques)"}]
[{"$f":"VLOOKUP(Translations!B342,Translations!B3:H508,4,0)","v":"! L'autoévaluation doit prendre en compte les résultats programmatiques et financiers, ainsi que les problèmes rencontrés dans les différents domaines fonctionnels du programme (S&É, Finances, Achats et Gestion de programme, notamment la gestion des sous-récipiendaires). Voir les directives pour des orientations détaillées."}]
[{"$cut":{"chars":16511,"head":"Performance programmatique \nI. Contexte\n\nLa subvention TB/VIH a démarré le 1er janvier 2018, avec le PNUD comme PR. Pour garantir une continuité des acquis obtenus par les subventions précédentes, Le PNUD a contracté les 5 anciens PR comme SR (PNLP, PNLS, PNLT, Caritas et la Croix Rouge Burundaise). Le PNUD a également contracté le PAM comme SR, pour maintenir l’appui nutritionnel aux PVVIH. Le PNUD a contracté la CAMEBU comme prestataire de services pour assurer le stockage et la distribution des intrants médicaux.\nLe démarrage de la subvention a connu un retard, en raison du contexte opérationnel et politique. Les contrats entre le PNUD et les 5 SRs ont été signés tardivement, en février et mars 2018. Les contrats avec le PAM et la CAMEBU ont été signés en avril et mai 2018.  La modalité de gestion financière appliquée dans la gestion de la subvention est une combinaison d’avances aux SR et de paiements directs pour des activités spécifiques, en accord avec le SR. \nMalgré les difficultés de mise en œuvre, principalement dues aux différents retards de démarrage, la subvention TB/VIH a pu produire de bons résultats programmatiques.\n\nII. Performance programmatique du programme Tuberculose \n\nEn ce qui concerne le diagnostic de la tuberculose, 91% des patients suspects de tuberculose ont été identifiés et testés. \nEn ce qui concerne les patients arrivés au terme de leur régime thérapeutique respectif, le programme enregistre un taux de 92,3 % de succès thérapeutiques. \nParmi les sujets contacts de patients tuberculeux, notamment les enfants mis sous prophylaxie INH, on enregistre une performance perfectible de 75% par rapport à la cible pour la période sous revue.\nLe contrôle de qualité du diagnostic en microscopie optique ou sous immunofluorescence a été différé en attendant la mise à disposition de réactifs. Cependant, la collecte des échantillons a été réalisée. \nEn ce qui concerne la gestion de la co-infection TBVIH on enregistre d’une part 97,38 de réalisation du dépistage VIH chez les nouveaux tuberculeux et dans les situations de rechutes et 99,34 % de réalisation à la mise en traitement de ces patients tuberculeux et rechutes. \nA contrario, le diagnostic systématique de la tuberculose chez les patients séropositifs pour le VIH est de 46.33% soit une performance de 77% par rapport à la cible.\nEn ce qui concerne les cas de tuberculoses multirésistantes on enregistre une baisse du nombre de cas détectés. 20 cas de manière nominale en retrait par rapport à la cible avec une mise en traitement de 2ème ligne de 100% des cas identifiés. \nAu niveau communautaire, on enregistre une performance de 60% pour le dépistage actif des tuberculeux par les ASCs.\nEnfin parmi les indicateurs de gestion, le reportage des CDTs est maximal 100%. Cependant il convient de mettre en place une stratégie de reportage pour les entités non CDT. \nAucune rupture de stock d’antituberculeux n’a été observée pendant la période au niveau des CDTs.\nLe Stock de sécurité au démarrage de la subvention était suffisant pour couvrir les besoins de 2018 en antituberculeux hormis un problème mineur lié à la rupture de stock en eau pour préparation injectable, cependant la Kanamycine en solution injectable est disponible en stock.\nContrairement aux médicaments, la subvention a débuté avec un risque de rupture en produits de coloration à chaud pour le diagnostic de la tuberculose à la suite d’une commande qui aurait été annulé avec l’ancienne subvention, et la sous-utilisation du diagnostic par microscopie LED. \nLe PNUD a pris en mains la situation et malgré les soucis de transport à cause de la rareté des cargos qui desservent Bujumbura, les produits sont actuellement disponibles et en cours de distribution vers les CDT. Les financements disponibles semblent suffisants pour la couverture des besoins en intrants (médicaments et produits de laboratoire) pour la prise en charge de la tuberculose. La revue de la quantification des besoins n’a montré aucun besoin supplémentaire en financements pour ces intrants.\nIII. Performance programmatique du programme VIH\nLa ca"}}]
[]
[]
[]
[]
[]
[{"$f":"VLOOKUP(Translations!B343,Translations!B3:H508,4,0)","v":"B. Modifications prévues du programme, le cas échéant"}]
["Le Programme est en phase de démarrage,  et nous envisageons une accélération de la réalisation des activités et de l'absorption des fonds . Aucun changement majeure n'est envisageable à ce stade. "]
[]
[]
[]
[]
[]
[{"$f":"VLOOKUP(Translations!B344,Translations!B3:H508,4,0)","v":"C.  Facteurs externes échappant au contrôle du récipiendaire principal et ayant eu ou étant susceptibles d’avoir une incidence sur le programme"}]
["Le délai enregistré à la signature de la précedente administration du département dela santé a retardé la mise en oeuvre de tout un trimestre. Tous les SR ont été autorisés a signer le 27 mars 2018  mettant toutes les subventions à risque. \nLa quantification desintrants de programme a du etre reprise dans le premier trimestre en  raisons de données de consommations imprécises. \n"]
[]
[]
[]
[]
[]
["For LFA Use Only"]
[]
["A. LFA  Overall Evaluation and Rating of Grant Performance (including a summary of how financial performance is linked to programmatic achievements)"]
["!  The evaluation should be undertaken by taking into account programmatic achievements, financial performance and program issues in various functional areas (M&E, Finance, Procurement, and Program Management, including management of Sub-Recipients).  See Guidelines for more detailed guidance on the completion of this section."]
[]
["Indicator rating","Select",null,"Any major management issues resulting in downgrade?","Select",null,"Overall Grant Rating","Select"]
[]
[]
[]
[]
[]
[]
[]
[]
["B.  LFA comments on the Principal Recipient planned changes in the program, if any"]
[]
[]
[]
[]
[]
[]
[]
[]
["C.  LFA Comments on External Factors Beyond Control of the Principal Recipients that have impacted or may impact program"]
[]
[]
[]
[]
[]
[]
[]
[]
[]
[]
[]
[]
[]
[]
[]
[]
[]
[]
[]
[]
[]
[]
[]
["Record ID","a2Q360000019HePEAU"]
["Quantitative Indicator (LFA)",{"$f":"IF(B31=\"Select\",\"\",B31)","v":""}]
["Major Issues Identified (LFA)",{"$f":"IF(E31=\"Select\",\"\",E31)","v":""}]
["Overall Rating (LFA)",{"$f":"IF(H31=\"Select\",\"\",H31)","v":""}]

{"sheet":"LFA_Findings&Recommendations_6","index":28,"n_rows":108,"n_cols":16,"rows_kept":108,"cut":false,"hidden":false,"merged":[[0,2,0,11],[2,2,2,11],[3,2,3,11],[5,2,5,11]]}
[null,null,{"$f":"IF(CoverSheet!J12=\"N/A\",\"Progress Report\",\"Progress Report with Disbursement Request\")","v":"Progress Report with Disbursement Request"}]
[]
[null,null,"For LFA Use Only"]
[null,null,"Section 6: LFA Findings & Recommendations  "]
[]
[null,null,"! Based on the information provided in the previous sections and your understanding of the grant, please summarise any important management issues, proposing a recommendation for each.\nNB: an issue is considered as 'important' if it impacts or is likely to impact program implementation and results. \n! Instead of repeating detailed descriptions of issues covered in other sections, it is acceptable to state the issue and reference the section containing the details.\n"]
[]
[null,null,"Risk Category","Risk","Root Cause","Root Cause Comment","Mitigating Action","Actor","Actor Type","Timeline DD/MM/YYYY]","Status","LFA Comments"]
[{"$f":"OR(NOT(ISBLANK(C9)),NOT(ISBLANK(D9)),NOT(ISBLANK(E9)),NOT(ISBLANK(G9)),NOT(ISBLANK(H9)),NOT(ISBLANK(I9)),NOT(ISBLANK(J9)))","v":false},"Finding1",null,null,null,null,null,null,null,null,null,null,null,null,{"$f":"AND(OR(ISBLANK(D9),ISBLANK(E9),ISBLANK(G9),ISBLANK(H9),ISBLANK(I9),ISBLANK(C9)),\n    OR(NOT(ISBLANK(D9)),NOT(ISBLANK(E9)),NOT(ISBLANK(G9)),NOT(ISBLANK(H9)),NOT(ISBLANK(I9)),NOT(ISBLANK(C9))))","v":false},{"$f":"IF(A9=TRUE,_xlfn.IFNA(INDEX(RiskData!$H$40:$H$290,MATCH(TRUE,INDEX(RIGHT(RiskData!$F$40:$F$290,255)=RIGHT(F9,255),0),0)), \"\"),\"\")","v":""}]
[{"$f":"OR(NOT(ISBLANK(C10)),NOT(ISBLANK(D10)),NOT(ISBLANK(E10)),NOT(ISBLANK(G10)),NOT(ISBLANK(H10)),NOT(ISBLANK(I10)),NOT(ISBLANK(J10)))","v":false},"Finding2",null,null,null,null,null,null,null,null,null,null,null,null,{"$f":"AND(OR(ISBLANK(D10),ISBLANK(E10),ISBLANK(G10),ISBLANK(H10),ISBLANK(I10),ISBLANK(C10)),\n    OR(NOT(ISBLANK(D10)),NOT(ISBLANK(E10)),NOT(ISBLANK(G10)),NOT(ISBLANK(H10)),NOT(ISBLANK(I10)),NOT(ISBLANK(C10))))","v":false},{"$f":"IF(A10=TRUE,_xlfn.IFNA(INDEX(RiskData!$H$40:$H$290,MATCH(TRUE,INDEX(RIGHT(RiskData!$F$40:$F$290,255)=RIGHT(F10,255),0),0)), \"\"),\"\")","v":""}]
[false,"Finding3",null,null,null,null,null,null,null,null,null,null,null,null,false,{"$f":"IF(A11=TRUE,_xlfn.IFNA(INDEX(RiskData!$H$40:$H$290,MATCH(TRUE,INDEX(RIGHT(RiskData!$F$40:$F$290,255)=RIGHT(F11,255),0),0)), \"\"),\"\")","v":""}]
[false,"Finding4",null,null,null,null,null,null,null,null,null,null,null,null,false,{"$f":"IF(A12=TRUE,_xlfn.IFNA(INDEX(RiskData!$H$40:$H$290,MATCH(TRUE,INDEX(RIGHT(RiskData!$F$40:$F$290,255)=RIGHT(F12,255),0),0)), \"\"),\"\")","v":""}]
[false,"Finding5",null,null,null,null,null,null,null,null,null,null,null,null,false,{"$f":"IF(A13=TRUE,_xlfn.IFNA(INDEX(RiskData!$H$40:$H$290,MATCH(TRUE,INDEX(RIGHT(RiskData!$F$40:$F$290,255)=RIGHT(F13,255),0),0)), \"\"),\"\")","v":""}]
[false,"Finding6",null,null,null,null,null,null,null,null,null,null,null,null,false,{"$f":"IF(A14=TRUE,_xlfn.IFNA(INDEX(RiskData!$H$40:$H$290,MATCH(TRUE,INDEX(RIGHT(RiskData!$F$40:$F$290,255)=RIGHT(F14,255),0),0)), \"\"),\"\")","v":""}]
[false,"Finding7",null,null,null,null,null,null,null,null,null,null,null,null,false,{"$f":"IF(A15=TRUE,_xlfn.IFNA(INDEX(RiskData!$H$40:$H$290,MATCH(TRUE,INDEX(RIGHT(RiskData!$F$40:$F$290,255)=RIGHT(F15,255),0),0)), \"\"),\"\")","v":""}]
[false,"Finding8",null,null,null,null,null,null,null,null,null,null,null,null,false,{"$f":"IF(A16=TRUE,_xlfn.IFNA(INDEX(RiskData!$H$40:$H$290,MATCH(TRUE,INDEX(RIGHT(RiskData!$F$40:$F$290,255)=RIGHT(F16,255),0),0)), \"\"),\"\")","v":""}]
[false,"Finding9",null,null,null,null,null,null,null,null,null,null,null,null,false,{"$f":"IF(A17=TRUE,_xlfn.IFNA(INDEX(RiskData!$H$40:$H$290,MATCH(TRUE,INDEX(RIGHT(RiskData!$F$40:$F$290,255)=RIGHT(F17,255),0),0)), \"\"),\"\")","v":""}]
[false,"Finding10",null,null,null,null,null,null,null,null,null,null,null,null,false,{"$f":"IF(A18=TRUE,_xlfn.IFNA(INDEX(RiskData!$H$40:$H$290,MATCH(TRUE,INDEX(RIGHT(RiskData!$F$40:$F$290,255)=RIGHT(F18,255),0),0)), \"\"),\"\")","v":""}]
[false,"Finding11",null,null,null,null,null,null,null,null,null,null,null,null,false,{"$f":"IF(A19=TRUE,_xlfn.IFNA(INDEX(RiskData!$H$40:$H$290,MATCH(TRUE,INDEX(RIGHT(RiskData!$F$40:$F$290,255)=RIGHT(F19,255),0),0)), \"\"),\"\")","v":""}]
[false,"Finding12",null,null,null,null,null,null,null,null,null,null,null,null,false,{"$f":"IF(A20=TRUE,_xlfn.IFNA(INDEX(RiskData!$H$40:$H$290,MATCH(TRUE,INDEX(RIGHT(RiskData!$F$40:$F$290,255)=RIGHT(F20,255),0),0)), \"\"),\"\")","v":""}]
[false,"Finding13",null,null,null,null,null,null,null,null,null,null,null,null,false,{"$f":"IF(A21=TRUE,_xlfn.IFNA(INDEX(RiskData!$H$40:$H$290,MATCH(TRUE,INDEX(RIGHT(RiskData!$F$40:$F$290,255)=RIGHT(F21,255),0),0)), \"\"),\"\")","v":""}]
[false,"Finding14",null,null,null,null,null,null,null,null,null,null,null,null,false,{"$f":"IF(A22=TRUE,_xlfn.IFNA(INDEX(RiskData!$H$40:$H$290,MATCH(TRUE,INDEX(RIGHT(RiskData!$F$40:$F$290,255)=RIGHT(F22,255),0),0)), \"\"),\"\")","v":""}]
[false,"Finding15",null,null,null,null,null,null,null,null,null,null,null,null,false,{"$f":"IF(A23=TRUE,_xlfn.IFNA(INDEX(RiskData!$H$40:$H$290,MATCH(TRUE,INDEX(RIGHT(RiskData!$F$40:$F$290,255)=RIGHT(F23,255),0),0)), \"\"),\"\")","v":""}]
[false,"Finding16",null,null,null,null,null,null,null,null,null,null,null,null,false,{"$f":"IF(A24=TRUE,_xlfn.IFNA(INDEX(RiskData!$H$40:$H$290,MATCH(TRUE,INDEX(RIGHT(RiskData!$F$40:$F$290,255)=RIGHT(F24,255),0),0)), \"\"),\"\")","v":""}]
[false,"Finding17",null,null,null,null,null,null,null,null,null,null,null,null,false,{"$f":"IF(A25=TRUE,_xlfn.IFNA(INDEX(RiskData!$H$40:$H$290,MATCH(TRUE,INDEX(RIGHT(RiskData!$F$40:$F$290,255)=RIGHT(F25,255),0),0)), \"\"),\"\")","v":""}]
[false,"Finding18",null,null,null,null,null,null,null,null,null,null,null,null,false,{"$f":"IF(A26=TRUE,_xlfn.IFNA(INDEX(RiskData!$H$40:$H$290,MATCH(TRUE,INDEX(RIGHT(RiskData!$F$40:$F$290,255)=RIGHT(F26,255),0),0)), \"\"),\"\")","v":""}]
[false,"Finding19",null,null,null,null,null,null,null,null,null,null,null,null,false,{"$f":"IF(A27=TRUE,_xlfn.IFNA(INDEX(RiskData!$H$40:$H$290,MATCH(TRUE,INDEX(RIGHT(RiskData!$F$40:$F$290,255)=RIGHT(F27,255),0),0)), \"\"),\"\")","v":""}]
[false,"Finding20",null,null,null,null,null,null,null,null,null,null,null,null,false,{"$f":"IF(A28=TRUE,_xlfn.IFNA(INDEX(RiskData!$H$40:$H$290,MATCH(TRUE,INDEX(RIGHT(RiskData!$F$40:$F$290,255)=RIGHT(F28,255),0),0)), \"\"),\"\")","v":""}]
[false,"Finding21",null,null,null,null,null,null,null,null,null,null,null,null,false,{"$f":"IF(A29=TRUE,_xlfn.IFNA(INDEX(RiskData!$H$40:$H$290,MATCH(TRUE,INDEX(RIGHT(RiskData!$F$40:$F$290,255)=RIGHT(F29,255),0),0)), \"\"),\"\")","v":""}]
[false,"Finding22",null,null,null,null,null,null,null,null,null,null,null,null,false,{"$f":"IF(A30=TRUE,_xlfn.IFNA(INDEX(RiskData!$H$40:$H$290,MATCH(TRUE,INDEX(RIGHT(RiskData!$F$40:$F$290,255)=RIGHT(F30,255),0),0)), \"\"),\"\")","v":""}]
[false,"Finding23",null,null,null,null,null,null,null,null,null,null,null,null,false,{"$f":"IF(A31=TRUE,_xlfn.IFNA(INDEX(RiskData!$H$40:$H$290,MATCH(TRUE,INDEX(RIGHT(RiskData!$F$40:$F$290,255)=RIGHT(F31,255),0),0)), \"\"),\"\")","v":""}]
[false,"Finding24",null,null,null,null,null,null,null,null,null,null,null,null,false,{"$f":"IF(A32=TRUE,_xlfn.IFNA(INDEX(RiskData!$H$40:$H$290,MATCH(TRUE,INDEX(RIGHT(RiskData!$F$40:$F$290,255)=RIGHT(F32,255),0),0)), \"\"),\"\")","v":""}]
[false,"Finding25",null,null,null,null,null,null,null,null,null,null,null,null,false,{"$f":"IF(A33=TRUE,_xlfn.IFNA(INDEX(RiskData!$H$40:$H$290,MATCH(TRUE,INDEX(RIGHT(RiskData!$F$40:$F$290,255)=RIGHT(F33,255),0),0)), \"\"),\"\")","v":""}]
[false,"Finding26",null,null,null,null,null,null,null,null,null,null,null,null,false,{"$f":"IF(A34=TRUE,_xlfn.IFNA(INDEX(RiskData!$H$40:$H$290,MATCH(TRUE,INDEX(RIGHT(RiskData!$F$40:$F$290,255)=RIGHT(F34,255),0),0)), \"\"),\"\")","v":""}]
[false,"Finding27",null,null,null,null,null,null,null,null,null,null,null,null,false,{"$f":"IF(A35=TRUE,_xlfn.IFNA(INDEX(RiskData!$H$40:$H$290,MATCH(TRUE,INDEX(RIGHT(RiskData!$F$40:$F$290,255)=RIGHT(F35,255),0),0)), \"\"),\"\")","v":""}]
[false,"Finding28",null,null,null,null,null,null,null,null,null,null,null,null,false,{"$f":"IF(A36=TRUE,_xlfn.IFNA(INDEX(RiskData!$H$40:$H$290,MATCH(TRUE,INDEX(RIGHT(RiskData!$F$40:$F$290,255)=RIGHT(F36,255),0),0)), \"\"),\"\")","v":""}]
[false,"Finding29",null,null,null,null,null,null,null,null,null,null,null,null,false,{"$f":"IF(A37=TRUE,_xlfn.IFNA(INDEX(RiskData!$H$40:$H$290,MATCH(TRUE,INDEX(RIGHT(RiskData!$F$40:$F$290,255)=RIGHT(F37,255),0),0)), \"\"),\"\")","v":""}]
[false,"Finding30",null,null,null,null,null,null,null,null,null,null,null,null,false,{"$f":"IF(A38=TRUE,_xlfn.IFNA(INDEX(RiskData!$H$40:$H$290,MATCH(TRUE,INDEX(RIGHT(RiskData!$F$40:$F$290,255)=RIGHT(F38,255),0),0)), \"\"),\"\")","v":""}]
[false,"Finding31",null,null,null,null,null,null,null,null,null,null,null,null,false,{"$f":"IF(A39=TRUE,_xlfn.IFNA(INDEX(RiskData!$H$40:$H$290,MATCH(TRUE,INDEX(RIGHT(RiskData!$F$40:$F$290,255)=RIGHT(F39,255),0),0)), \"\"),\"\")","v":""}]
[false,"Finding32",null,null,null,null,null,null,null,null,null,null,null,null,false,{"$f":"IF(A40=TRUE,_xlfn.IFNA(INDEX(RiskData!$H$40:$H$290,MATCH(TRUE,INDEX(RIGHT(RiskData!$F$40:$F$290,255)=RIGHT(F40,255),0),0)), \"\"),\"\")","v":""}]
[false,"Finding33",null,null,null,null,null,null,null,null,null,null,null,null,false,{"$f":"IF(A41=TRUE,_xlfn.IFNA(INDEX(RiskData!$H$40:$H$290,MATCH(TRUE,INDEX(RIGHT(RiskData!$F$40:$F$290,255)=RIGHT(F41,255),0),0)), \"\"),\"\")","v":""}]
[false,"Finding34",null,null,null,null,null,null,null,null,null,null,null,null,false,{"$f":"IF(A42=TRUE,_xlfn.IFNA(INDEX(RiskData!$H$40:$H$290,MATCH(TRUE,INDEX(RIGHT(RiskData!$F$40:$F$290,255)=RIGHT(F42,255),0),0)), \"\"),\"\")","v":""}]
[false,"Finding35",null,null,null,null,null,null,null,null,null,null,null,null,false,{"$f":"IF(A43=TRUE,_xlfn.IFNA(INDEX(RiskData!$H$40:$H$290,MATCH(TRUE,INDEX(RIGHT(RiskData!$F$40:$F$290,255)=RIGHT(F43,255),0),0)), \"\"),\"\")","v":""}]
[false,"Finding36",null,null,null,null,null,null,null,null,null,null,null,null,false,{"$f":"IF(A44=TRUE,_xlfn.IFNA(INDEX(RiskData!$H$40:$H$290,MATCH(TRUE,INDEX(RIGHT(RiskData!$F$40:$F$290,255)=RIGHT(F44,255),0),0)), \"\"),\"\")","v":""}]
[false,"Finding37",null,null,null,null,null,null,null,null,null,null,null,null,false,{"$f":"IF(A45=TRUE,_xlfn.IFNA(INDEX(RiskData!$H$40:$H$290,MATCH(TRUE,INDEX(RIGHT(RiskData!$F$40:$F$290,255)=RIGHT(F45,255),0),0)), \"\"),\"\")","v":""}]
[false,"Finding38",null,null,null,null,null,null,null,null,null,null,null,null,false,{"$f":"IF(A46=TRUE,_xlfn.IFNA(INDEX(RiskData!$H$40:$H$290,MATCH(TRUE,INDEX(RIGHT(RiskData!$F$40:$F$290,255)=RIGHT(F46,255),0),0)), \"\"),\"\")","v":""}]
[false,"Finding39",null,null,null,null,null,null,null,null,null,null,null,null,false,{"$f":"IF(A47=TRUE,_xlfn.IFNA(INDEX(RiskData!$H$40:$H$290,MATCH(TRUE,INDEX(RIGHT(RiskData!$F$40:$F$290,255)=RIGHT(F47,255),0),0)), \"\"),\"\")","v":""}]
[false,"Finding40",null,null,null,null,null,null,null,null,null,null,null,null,false,{"$f":"IF(A48=TRUE,_xlfn.IFNA(INDEX(RiskData!$H$40:$H$290,MATCH(TRUE,INDEX(RIGHT(RiskData!$F$40:$F$290,255)=RIGHT(F48,255),0),0)), \"\"),\"\")","v":""}]
[false,"Finding41",null,null,null,null,null,null,null,null,null,null,null,null,false,{"$f":"IF(A49=TRUE,_xlfn.IFNA(INDEX(RiskData!$H$40:$H$290,MATCH(TRUE,INDEX(RIGHT(RiskData!$F$40:$F$290,255)=RIGHT(F49,255),0),0)), \"\"),\"\")","v":""}]
[false,"Finding42",null,null,null,null,null,null,null,null,null,null,null,null,false,{"$f":"IF(A50=TRUE,_xlfn.IFNA(INDEX(RiskData!$H$40:$H$290,MATCH(TRUE,INDEX(RIGHT(RiskData!$F$40:$F$290,255)=RIGHT(F50,255),0),0)), \"\"),\"\")","v":""}]
[false,"Finding43",null,null,null,null,null,null,null,null,null,null,null,null,false,{"$f":"IF(A51=TRUE,_xlfn.IFNA(INDEX(RiskData!$H$40:$H$290,MATCH(TRUE,INDEX(RIGHT(RiskData!$F$40:$F$290,255)=RIGHT(F51,255),0),0)), \"\"),\"\")","v":""}]
[false,"Finding44",null,null,null,null,null,null,null,null,null,null,null,null,false,{"$f":"IF(A52=TRUE,_xlfn.IFNA(INDEX(RiskData!$H$40:$H$290,MATCH(TRUE,INDEX(RIGHT(RiskData!$F$40:$F$290,255)=RIGHT(F52,255),0),0)), \"\"),\"\")","v":""}]
[false,"Finding45",null,null,null,null,null,null,null,null,null,null,null,null,false,{"$f":"IF(A53=TRUE,_xlfn.IFNA(INDEX(RiskData!$H$40:$H$290,MATCH(TRUE,INDEX(RIGHT(RiskData!$F$40:$F$290,255)=RIGHT(F53,255),0),0)), \"\"),\"\")","v":""}]
[false,"Finding46",null,null,null,null,null,null,null,null,null,null,null,null,false,{"$f":"IF(A54=TRUE,_xlfn.IFNA(INDEX(RiskData!$H$40:$H$290,MATCH(TRUE,INDEX(RIGHT(RiskData!$F$40:$F$290,255)=RIGHT(F54,255),0),0)), \"\"),\"\")","v":""}]
[false,"Finding47",null,null,null,null,null,null,null,null,null,null,null,null,false,{"$f":"IF(A55=TRUE,_xlfn.IFNA(INDEX(RiskData!$H$40:$H$290,MATCH(TRUE,INDEX(RIGHT(RiskData!$F$40:$F$290,255)=RIGHT(F55,255),0),0)), \"\"),\"\")","v":""}]
[false,"Finding48",null,null,null,null,null,null,null,null,null,null,null,null,false,{"$f":"IF(A56=TRUE,_xlfn.IFNA(INDEX(RiskData!$H$40:$H$290,MATCH(TRUE,INDEX(RIGHT(RiskData!$F$40:$F$290,255)=RIGHT(F56,255),0),0)), \"\"),\"\")","v":""}]
[false,"Finding49",null,null,null,null,null,null,null,null,null,null,null,null,false,{"$f":"IF(A57=TRUE,_xlfn.IFNA(INDEX(RiskData!$H$40:$H$290,MATCH(TRUE,INDEX(RIGHT(RiskData!$F$40:$F$290,255)=RIGHT(F57,255),0),0)), \"\"),\"\")","v":""}]
[false,"Finding50",null,null,null,null,null,null,null,null,null,null,null,null,false,{"$f":"IF(A58=TRUE,_xlfn.IFNA(INDEX(RiskData!$H$40:$H$290,MATCH(TRUE,INDEX(RIGHT(RiskData!$F$40:$F$290,255)=RIGHT(F58,255),0),0)), \"\"),\"\")","v":""}]
[false,"Finding51",null,null,null,null,null,null,null,null,null,null,null,null,false,{"$f":"IF(A59=TRUE,_xlfn.IFNA(INDEX(RiskData!$H$40:$H$290,MATCH(TRUE,INDEX(RIGHT(RiskData!$F$40:$F$290,255)=RIGHT(F59,255),0),0)), \"\"),\"\")","v":""}]
[false,"Finding52",null,null,null,null,null,null,null,null,null,null,null,null,false,{"$f":"IF(A60=TRUE,_xlfn.IFNA(INDEX(RiskData!$H$40:$H$290,MATCH(TRUE,INDEX(RIGHT(RiskData!$F$40:$F$290,255)=RIGHT(F60,255),0),0)), \"\"),\"\")","v":""}]
[false,"Finding53",null,null,null,null,null,null,null,null,null,null,null,null,false,{"$f":"IF(A61=TRUE,_xlfn.IFNA(INDEX(RiskData!$H$40:$H$290,MATCH(TRUE,INDEX(RIGHT(RiskData!$F$40:$F$290,255)=RIGHT(F61,255),0),0)), \"\"),\"\")","v":""}]
[false,"Finding54",null,null,null,null,null,null,null,null,null,null,null,null,false,{"$f":"IF(A62=TRUE,_xlfn.IFNA(INDEX(RiskData!$H$40:$H$290,MATCH(TRUE,INDEX(RIGHT(RiskData!$F$40:$F$290,255)=RIGHT(F62,255),0),0)), \"\"),\"\")","v":""}]
[false,"Finding55",null,null,null,null,null,null,null,null,null,null,null,null,false,{"$f":"IF(A63=TRUE,_xlfn.IFNA(INDEX(RiskData!$H$40:$H$290,MATCH(TRUE,INDEX(RIGHT(RiskData!$F$40:$F$290,255)=RIGHT(F63,255),0),0)), \"\"),\"\")","v":""}]
[false,"Finding56",null,null,null,null,null,null,null,null,null,null,null,null,false,{"$f":"IF(A64=TRUE,_xlfn.IFNA(INDEX(RiskData!$H$40:$H$290,MATCH(TRUE,INDEX(RIGHT(RiskData!$F$40:$F$290,255)=RIGHT(F64,255),0),0)), \"\"),\"\")","v":""}]
[false,"Finding57",null,null,null,null,null,null,null,null,null,null,null,null,false,{"$f":"IF(A65=TRUE,_xlfn.IFNA(INDEX(RiskData!$H$40:$H$290,MATCH(TRUE,INDEX(RIGHT(RiskData!$F$40:$F$290,255)=RIGHT(F65,255),0),0)), \"\"),\"\")","v":""}]
[false,"Finding58",null,null,null,null,null,null,null,null,null,null,null,null,false,{"$f":"IF(A66=TRUE,_xlfn.IFNA(INDEX(RiskData!$H$40:$H$290,MATCH(TRUE,INDEX(RIGHT(RiskData!$F$40:$F$290,255)=RIGHT(F66,255),0),0)), \"\"),\"\")","v":""}]
[false,"Finding59",null,null,null,null,null,null,null,null,null,null,null,null,false,{"$f":"IF(A67=TRUE,_xlfn.IFNA(INDEX(RiskData!$H$40:$H$290,MATCH(TRUE,INDEX(RIGHT(RiskData!$F$40:$F$290,255)=RIGHT(F67,255),0),0)), \"\"),\"\")","v":""}]
[false,"Finding60",null,null,null,null,null,null,null,null,null,null,null,null,false,{"$f":"IF(A68=TRUE,_xlfn.IFNA(INDEX(RiskData!$H$40:$H$290,MATCH(TRUE,INDEX(RIGHT(RiskData!$F$40:$F$290,255)=RIGHT(F68,255),0),0)), \"\"),\"\")","v":""}]
[false,"Finding61",null,null,null,null,null,null,null,null,null,null,null,null,false,{"$f":"IF(A69=TRUE,_xlfn.IFNA(INDEX(RiskData!$H$40:$H$290,MATCH(TRUE,INDEX(RIGHT(RiskData!$F$40:$F$290,255)=RIGHT(F69,255),0),0)), \"\"),\"\")","v":""}]
[false,"Finding62",null,null,null,null,null,null,null,null,null,null,null,null,false,{"$f":"IF(A70=TRUE,_xlfn.IFNA(INDEX(RiskData!$H$40:$H$290,MATCH(TRUE,INDEX(RIGHT(RiskData!$F$40:$F$290,255)=RIGHT(F70,255),0),0)), \"\"),\"\")","v":""}]
[false,"Finding63",null,null,null,null,null,null,null,null,null,null,null,null,false,{"$f":"IF(A71=TRUE,_xlfn.IFNA(INDEX(RiskData!$H$40:$H$290,MATCH(TRUE,INDEX(RIGHT(RiskData!$F$40:$F$290,255)=RIGHT(F71,255),0),0)), \"\"),\"\")","v":""}]
[false,"Finding64",null,null,null,null,null,null,null,null,null,null,null,null,false,{"$f":"IF(A72=TRUE,_xlfn.IFNA(INDEX(RiskData!$H$40:$H$290,MATCH(TRUE,INDEX(RIGHT(RiskData!$F$40:$F$290,255)=RIGHT(F72,255),0),0)), \"\"),\"\")","v":""}]
[false,"Finding65",null,null,null,null,null,null,null,null,null,null,null,null,false,{"$f":"IF(A73=TRUE,_xlfn.IFNA(INDEX(RiskData!$H$40:$H$290,MATCH(TRUE,INDEX(RIGHT(RiskData!$F$40:$F$290,255)=RIGHT(F73,255),0),0)), \"\"),\"\")","v":""}]
[{"$f":"OR(NOT(ISBLANK(C74)),NOT(ISBLANK(D74)),NOT(ISBLANK(E74)),NOT(ISBLANK(G74)),NOT(ISBLANK(H74)),NOT(ISBLANK(I74)),NOT(ISBLANK(J74)))","v":false},"Finding66",null,null,null,null,null,null,null,null,null,null,null,null,{"$f":"AND(OR(ISBLANK(D74),ISBLANK(E74),ISBLANK(G74),ISBLANK(H74),ISBLANK(I74),ISBLANK(C74)),\n    OR(NOT(ISBLANK(D74)),NOT(ISBLANK(E74)),NOT(ISBLANK(G74)),NOT(ISBLANK(H74)),NOT(ISBLANK(I74)),NOT(ISBLANK(C74))))","v":false},{"$f":"IF(A74=TRUE,_xlfn.IFNA(INDEX(RiskData!$H$40:$H$290,MATCH(TRUE,INDEX(RIGHT(RiskData!$F$40:$F$290,255)=RIGHT(F74,255),0),0)), \"\"),\"\")","v":""}]
[false,"Finding67",null,null,null,null,null,null,null,null,null,null,null,null,false,{"$f":"IF(A75=TRUE,_xlfn.IFNA(INDEX(RiskData!$H$40:$H$290,MATCH(TRUE,INDEX(RIGHT(RiskData!$F$40:$F$290,255)=RIGHT(F75,255),0),0)), \"\"),\"\")","v":""}]
[false,"Finding68",null,null,null,null,null,null,null,null,null,null,null,null,false,{"$f":"IF(A76=TRUE,_xlfn.IFNA(INDEX(RiskData!$H$40:$H$290,MATCH(TRUE,INDEX(RIGHT(RiskData!$F$40:$F$290,255)=RIGHT(F76,255),0),0)), \"\"),\"\")","v":""}]
[false,"Finding69",null,null,null,null,null,null,null,null,null,null,null,null,false,{"$f":"IF(A77=TRUE,_xlfn.IFNA(INDEX(RiskData!$H$40:$H$290,MATCH(TRUE,INDEX(RIGHT(RiskData!$F$40:$F$290,255)=RIGHT(F77,255),0),0)), \"\"),\"\")","v":""}]
[false,"Finding70",null,null,null,null,null,null,null,null,null,null,null,null,false,{"$f":"IF(A78=TRUE,_xlfn.IFNA(INDEX(RiskData!$H$40:$H$290,MATCH(TRUE,INDEX(RIGHT(RiskData!$F$40:$F$290,255)=RIGHT(F78,255),0),0)), \"\"),\"\")","v":""}]
[false,"Finding71",null,null,null,null,null,null,null,null,null,null,null,null,false,{"$f":"IF(A79=TRUE,_xlfn.IFNA(INDEX(RiskData!$H$40:$H$290,MATCH(TRUE,INDEX(RIGHT(RiskData!$F$40:$F$290,255)=RIGHT(F79,255),0),0)), \"\"),\"\")","v":""}]
[false,"Finding72",null,null,null,null,null,null,null,null,null,null,null,null,false,{"$f":"IF(A80=TRUE,_xlfn.IFNA(INDEX(RiskData!$H$40:$H$290,MATCH(TRUE,INDEX(RIGHT(RiskData!$F$40:$F$290,255)=RIGHT(F80,255),0),0)), \"\"),\"\")","v":""}]
[false,"Finding73",null,null,null,null,null,null,null,null,null,null,null,null,false,{"$f":"IF(A81=TRUE,_xlfn.IFNA(INDEX(RiskData!$H$40:$H$290,MATCH(TRUE,INDEX(RIGHT(RiskData!$F$40:$F$290,255)=RIGHT(F81,255),0),0)), \"\"),\"\")","v":""}]
[false,"Finding74",null,null,null,null,null,null,null,null,null,null,null,null,false,{"$f":"IF(A82=TRUE,_xlfn.IFNA(INDEX(RiskData!$H$40:$H$290,MATCH(TRUE,INDEX(RIGHT(RiskData!$F$40:$F$290,255)=RIGHT(F82,255),0),0)), \"\"),\"\")","v":""}]
[false,"Finding75",null,null,null,null,null,null,null,null,null,null,null,null,false,{"$f":"IF(A83=TRUE,_xlfn.IFNA(INDEX(RiskData!$H$40:$H$290,MATCH(TRUE,INDEX(RIGHT(RiskData!$F$40:$F$290,255)=RIGHT(F83,255),0),0)), \"\"),\"\")","v":""}]
[false,"Finding76",null,null,null,null,null,null,null,null,null,null,null,null,false,{"$f":"IF(A84=TRUE,_xlfn.IFNA(INDEX(RiskData!$H$40:$H$290,MATCH(TRUE,INDEX(RIGHT(RiskData!$F$40:$F$290,255)=RIGHT(F84,255),0),0)), \"\"),\"\")","v":""}]
[false,"Finding77",null,null,null,null,null,null,null,null,null,null,null,null,false,{"$f":"IF(A85=TRUE,_xlfn.IFNA(INDEX(RiskData!$H$40:$H$290,MATCH(TRUE,INDEX(RIGHT(RiskData!$F$40:$F$290,255)=RIGHT(F85,255),0),0)), \"\"),\"\")","v":""}]
[false,"Finding78",null,null,null,null,null,null,null,null,null,null,null,null,false,{"$f":"IF(A86=TRUE,_xlfn.IFNA(INDEX(RiskData!$H$40:$H$290,MATCH(TRUE,INDEX(RIGHT(RiskData!$F$40:$F$290,255)=RIGHT(F86,255),0),0)), \"\"),\"\")","v":""}]
[false,"Finding79",null,null,null,null,null,null,null,null,null,null,null,null,false,{"$f":"IF(A87=TRUE,_xlfn.IFNA(INDEX(RiskData!$H$40:$H$290,MATCH(TRUE,INDEX(RIGHT(RiskData!$F$40:$F$290,255)=RIGHT(F87,255),0),0)), \"\"),\"\")","v":""}]
[false,"Finding80",null,null,null,null,null,null,null,null,null,null,null,null,false,{"$f":"IF(A88=TRUE,_xlfn.IFNA(INDEX(RiskData!$H$40:$H$290,MATCH(TRUE,INDEX(RIGHT(RiskData!$F$40:$F$290,255)=RIGHT(F88,255),0),0)), \"\"),\"\")","v":""}]
[false,"Finding81",null,null,null,null,null,null,null,null,null,null,null,null,false,{"$f":"IF(A89=TRUE,_xlfn.IFNA(INDEX(RiskData!$H$40:$H$290,MATCH(TRUE,INDEX(RIGHT(RiskData!$F$40:$F$290,255)=RIGHT(F89,255),0),0)), \"\"),\"\")","v":""}]
[false,"Finding82",null,null,null,null,null,null,null,null,null,null,null,null,false,{"$f":"IF(A90=TRUE,_xlfn.IFNA(INDEX(RiskData!$H$40:$H$290,MATCH(TRUE,INDEX(RIGHT(RiskData!$F$40:$F$290,255)=RIGHT(F90,255),0),0)), \"\"),\"\")","v":""}]
[false,"Finding83",null,null,null,null,null,null,null,null,null,null,null,null,false,{"$f":"IF(A91=TRUE,_xlfn.IFNA(INDEX(RiskData!$H$40:$H$290,MATCH(TRUE,INDEX(RIGHT(RiskData!$F$40:$F$290,255)=RIGHT(F91,255),0),0)), \"\"),\"\")","v":""}]
[false,"Finding84",null,null,null,null,null,null,null,null,null,null,null,null,false,{"$f":"IF(A92=TRUE,_xlfn.IFNA(INDEX(RiskData!$H$40:$H$290,MATCH(TRUE,INDEX(RIGHT(RiskData!$F$40:$F$290,255)=RIGHT(F92,255),0),0)), \"\"),\"\")","v":""}]
[false,"Finding85",null,null,null,null,null,null,null,null,null,null,null,null,false,{"$f":"IF(A93=TRUE,_xlfn.IFNA(INDEX(RiskData!$H$40:$H$290,MATCH(TRUE,INDEX(RIGHT(RiskData!$F$40:$F$290,255)=RIGHT(F93,255),0),0)), \"\"),\"\")","v":""}]
[false,"Finding86",null,null,null,null,null,null,null,null,null,null,null,null,false,{"$f":"IF(A94=TRUE,_xlfn.IFNA(INDEX(RiskData!$H$40:$H$290,MATCH(TRUE,INDEX(RIGHT(RiskData!$F$40:$F$290,255)=RIGHT(F94,255),0),0)), \"\"),\"\")","v":""}]
[false,"Finding87",null,null,null,null,null,null,null,null,null,null,null,null,false,{"$f":"IF(A95=TRUE,_xlfn.IFNA(INDEX(RiskData!$H$40:$H$290,MATCH(TRUE,INDEX(RIGHT(RiskData!$F$40:$F$290,255)=RIGHT(F95,255),0),0)), \"\"),\"\")","v":""}]
[false,"Finding88",null,null,null,null,null,null,null,null,null,null,null,null,false,{"$f":"IF(A96=TRUE,_xlfn.IFNA(INDEX(RiskData!$H$40:$H$290,MATCH(TRUE,INDEX(RIGHT(RiskData!$F$40:$F$290,255)=RIGHT(F96,255),0),0)), \"\"),\"\")","v":""}]
[false,"Finding89",null,null,null,null,null,null,null,null,null,null,null,null,false,{"$f":"IF(A97=TRUE,_xlfn.IFNA(INDEX(RiskData!$H$40:$H$290,MATCH(TRUE,INDEX(RIGHT(RiskData!$F$40:$F$290,255)=RIGHT(F97,255),0),0)), \"\"),\"\")","v":""}]
[false,"Finding90",null,null,null,null,null,null,null,null,null,null,null,null,false,{"$f":"IF(A98=TRUE,_xlfn.IFNA(INDEX(RiskData!$H$40:$H$290,MATCH(TRUE,INDEX(RIGHT(RiskData!$F$40:$F$290,255)=RIGHT(F98,255),0),0)), \"\"),\"\")","v":""}]
[false,"Finding91",null,null,null,null,null,null,null,null,null,null,null,null,false,{"$f":"IF(A99=TRUE,_xlfn.IFNA(INDEX(RiskData!$H$40:$H$290,MATCH(TRUE,INDEX(RIGHT(RiskData!$F$40:$F$290,255)=RIGHT(F99,255),0),0)), \"\"),\"\")","v":""}]
[false,"Finding92",null,null,null,null,null,null,null,null,null,null,null,null,false,{"$f":"IF(A100=TRUE,_xlfn.IFNA(INDEX(RiskData!$H$40:$H$290,MATCH(TRUE,INDEX(RIGHT(RiskData!$F$40:$F$290,255)=RIGHT(F100,255),0),0)), \"\"),\"\")","v":""}]
[false,"Finding93",null,null,null,null,null,null,null,null,null,null,null,null,false,{"$f":"IF(A101=TRUE,_xlfn.IFNA(INDEX(RiskData!$H$40:$H$290,MATCH(TRUE,INDEX(RIGHT(RiskData!$F$40:$F$290,255)=RIGHT(F101,255),0),0)), \"\"),\"\")","v":""}]
[false,"Finding94",null,null,null,null,null,null,null,null,null,null,null,null,false,{"$f":"IF(A102=TRUE,_xlfn.IFNA(INDEX(RiskData!$H$40:$H$290,MATCH(TRUE,INDEX(RIGHT(RiskData!$F$40:$F$290,255)=RIGHT(F102,255),0),0)), \"\"),\"\")","v":""}]
[false,"Finding95",null,null,null,null,null,null,null,null,null,null,null,null,false,{"$f":"IF(A103=TRUE,_xlfn.IFNA(INDEX(RiskData!$H$40:$H$290,MATCH(TRUE,INDEX(RIGHT(RiskData!$F$40:$F$290,255)=RIGHT(F103,255),0),0)), \"\"),\"\")","v":""}]
[false,"Finding96",null,null,null,null,null,null,null,null,null,null,null,null,false,{"$f":"IF(A104=TRUE,_xlfn.IFNA(INDEX(RiskData!$H$40:$H$290,MATCH(TRUE,INDEX(RIGHT(RiskData!$F$40:$F$290,255)=RIGHT(F104,255),0),0)), \"\"),\"\")","v":""}]
[false,"Finding97",null,null,null,null,null,null,null,null,null,null,null,null,false,{"$f":"IF(A105=TRUE,_xlfn.IFNA(INDEX(RiskData!$H$40:$H$290,MATCH(TRUE,INDEX(RIGHT(RiskData!$F$40:$F$290,255)=RIGHT(F105,255),0),0)), \"\"),\"\")","v":""}]
[false,"Finding98",null,null,null,null,null,null,null,null,null,null,null,null,false,{"$f":"IF(A106=TRUE,_xlfn.IFNA(INDEX(RiskData!$H$40:$H$290,MATCH(TRUE,INDEX(RIGHT(RiskData!$F$40:$F$290,255)=RIGHT(F106,255),0),0)), \"\"),\"\")","v":""}]
[false,"Finding99",null,null,null,null,null,null,null,null,null,null,null,null,false,{"$f":"IF(A107=TRUE,_xlfn.IFNA(INDEX(RiskData!$H$40:$H$290,MATCH(TRUE,INDEX(RIGHT(RiskData!$F$40:$F$290,255)=RIGHT(F107,255),0),0)), \"\"),\"\")","v":""}]
[false,"Finding100",null,null,null,null,null,null,null,null,null,null,null,null,false,{"$f":"IF(A108=TRUE,_xlfn.IFNA(INDEX(RiskData!$H$40:$H$290,MATCH(TRUE,INDEX(RIGHT(RiskData!$F$40:$F$290,255)=RIGHT(F108,255),0),0)), \"\"),\"\")","v":""}]

{"sheet":"LFA_Findings&Recom export","index":29,"n_rows":34,"n_cols":25,"rows_kept":34,"cut":false,"hidden":true,"merged":[]}
[null,null,null,2,3,4,5,6,7,8,9,10,11,null,12,null,13,14,15,16,17,18,19,20,21]
["Record ID",-1,null,"Risk Category","Risk","Root Cause","Root Cause Comment","Mitigating Action","Actor","Actor Type","Timeline","Status","LFA Comments",null,"All Validation","Is Valid?","Risk Category","Risk Details","Root Cause","Reporting Period","Implementation Period","GF Comments","Status","Root Cause Comment","Timeline"]
["[Record ID]",{"$f":"B2+1","v":0},{"$f":"\"Finding\"&B3","v":"Finding0"},{"$f":"IFERROR(IF(INDEX('LFA_Findings&Recommendations_6'!C$9:C$108,MATCH('LFA_Findings&Recom export'!$C3,'LFA_Findings&Recommendations_6'!$B$9:$B$108,0))=\"\",\"\",INDEX('LFA_Findings&Recommendations_6'!C$9:C$108,MATCH('LFA_Findings&Recom export'!$C3,'LFA_Findings&Recommendations_6'!$B$9:$B$108,0))),\"\")","v":""},{"$f":"IFERROR(IF(INDEX('LFA_Findings&Recommendations_6'!D$9:D$108,MATCH('LFA_Findings&Recom export'!$C3,'LFA_Findings&Recommendations_6'!$B$9:$B$108,0))=\"\",\"\",INDEX('LFA_Findings&Recommendations_6'!D$9:D$108,MATCH('LFA_Findings&Recom export'!$C3,'LFA_Findings&Recommendations_6'!$B$9:$B$108,0))),\"\")","v":""},{"$f":"IFERROR(IF(INDEX('LFA_Findings&Recommendations_6'!E$9:E$108,MATCH('LFA_Findings&Recom export'!$C3,'LFA_Findings&Recommendations_6'!$B$9:$B$108,0))=\"\",\"\",INDEX('LFA_Findings&Recommendations_6'!E$9:E$108,MATCH('LFA_Findings&Recom export'!$C3,'LFA_Findings&Recommendations_6'!$B$9:$B$108,0))),\"\")","v":""},{"$f":"IFERROR(IF(INDEX('LFA_Findings&Recommendations_6'!F$9:F$108,MATCH('LFA_Findings&Recom export'!$C3,'LFA_Findings&Recommendations_6'!$B$9:$B$108,0))=\"\",\"\",INDEX('LFA_Findings&Recommendations_6'!F$9:F$108,MATCH('LFA_Findings&Recom export'!$C3,'LFA_Findings&Recommendations_6'!$B$9:$B$108,0))),\"\")","v":""},{"$f":"IFERROR(IF(INDEX('LFA_Findings&Recommendations_6'!G$9:G$108,MATCH('LFA_Findings&Recom export'!$C3,'LFA_Findings&Recommendations_6'!$B$9:$B$108,0))=\"\",\"\",INDEX('LFA_Findings&Recommendations_6'!G$9:G$108,MATCH('LFA_Findings&Recom export'!$C3,'LFA_Findings&Recommendations_6'!$B$9:$B$108,0))),\"\")","v":""},{"$f":"IFERROR(IF(INDEX('LFA_Findings&Recommendations_6'!H$9:H$108,MATCH('LFA_Findings&Recom export'!$C3,'LFA_Findings&Recommendations_6'!$B$9:$B$108,0))=\"\",\"\",INDEX('LFA_Findings&Recommendations_6'!H$9:H$108,MATCH('LFA_Findings&Recom export'!$C3,'LFA_Findings&Recommendations_6'!$B$9:$B$108,0))),\"\")","v":""},{"$f":"IFERROR(IF(INDEX('LFA_Findings&Recommendations_6'!I$9:I$108,MATCH('LFA_Findings&Recom export'!$C3,'LFA_Findings&Recommendations_6'!$B$9:$B$108,0))=\"\",\"\",INDEX('LFA_Findings&Recommendations_6'!I$9:I$108,MATCH('LFA_Findings&Recom export'!$C3,'LFA_Findings&Recommendations_6'!$B$9:$B$108,0))),\"\")","v":""},{"$f":"IFERROR(IF(INDEX('LFA_Findings&Recommendations_6'!J$9:J$108,MATCH('LFA_Findings&Recom export'!$C3,'LFA_Findings&Recommendations_6'!$B$9:$B$108,0))=\"\",\"\",INDEX('LFA_Findings&Recommendations_6'!J$9:J$108,MATCH('LFA_Findings&Recom export'!$C3,'LFA_Findings&Recommendations_6'!$B$9:$B$108,0))),\"\")","v":""},{"$f":"IFERROR(IF(INDEX('LFA_Findings&Recommendations_6'!K$9:K$108,MATCH('LFA_Findings&Recom export'!$C3,'LFA_Findings&Recommendations_6'!$B$9:$B$108,0))=\"\",\"\",INDEX('LFA_Findings&Recommendations_6'!K$9:K$108,MATCH('LFA_Findings&Recom export'!$C3,'LFA_Findings&Recommendations_6'!$B$9:$B$108,0))),\"\")","v":""},{"$f":"IFERROR(IF(INDEX('LFA_Findings&Recommendations_6'!L$9:L$108,MATCH('LFA_Findings&Recom export'!$C3,'LFA_Findings&Recommendations_6'!$B$9:$B$108,0))=\"\",\"\",INDEX('LFA_Findings&Recommendations_6'!L$9:L$108,MATCH('LFA_Findings&Recom export'!$C3,'LFA_Findings&Recommendations_6'!$B$9:$B$108,0))),\"\")","v":""},null,{"$f":"AND(OR(ISBLANK(D3),ISBLANK(E3),ISBLANK(F3),ISBLANK(H3),ISBLANK(I3),ISBLANK(J3)),\n    OR(NOT(ISBLANK(D3)),NOT(ISBLANK(E3)),NOT(ISBLANK(F3)),NOT(ISBLANK(H3)),NOT(ISBLANK(I3)),NOT(ISBLANK(J3))))","v":false},{"$f":"IFERROR(IF(INDEX('LFA_Findings&Recommendations_6'!A$9:A$108,MATCH('LFA_Findings&Recom export'!$C3,'LFA_Findings&Recommendations_6'!$B$9:$B$108,0))=\"\",\"\",INDEX('LFA_Findings&Recommendations_6'!A$9:A$108,MATCH('LFA_Findings&Recom export'!$C3,'LFA_Findings&Recommendations_6'!$B$9:$B$108,0))),\"\")","v":""},{"$f":"IF(P3=TRUE,_xlfn.IFNA(VLOOKUP(D3,RiskData!$B$5:$D$11,3,FALSE), \"\"),\"\")","v":""},{"$f":"IF(P3=TRUE,_xlfn.IFNA(VLOOKUP(E3,RiskData!$F$13:$I$36,4,FALSE), \"\"),\"\")","v":""},{"$f":"IF(P3=TRUE,_xlfn.IFNA(INDEX(RiskData!$H$40:$H$290,MATCH(TRUE,INDEX(RIGHT(RiskData!$F$40:$F$290,255)=RIGHT(F3,255),0),0)), \"\"),\"\")","v":""},{"$f":"IF(OR(P3=TRUE,ISBLANK(D3)),'Admin Sheet'!$B$44,\"\")","v":""},{"$f":"IF(OR(ISBLANK(D3), P3=TRUE),'Admin Sheet'!$B$41,\"\")","v":""},{"$f":"IF(OR(ISBLANK(M3), P3<>TRUE), \"\", M3)","v":""},{"$f":"IF(OR(ISBLANK(L3), P3<>TRUE), \"\", L3)","v":""},{"$f":"IF(OR($M3=TRUE, ISBLANK($D3)),\"\",G3)","v":""},{"$f":"IF(OR($M3=TRUE, ISBLANK($H3)), \"\", K3)","v":""}]
[null,{"$f":"B3+1","v":1},{"$f":"\"Finding\"&B4","v":"Finding1"},{"$f":"IFERROR(IF(INDEX('LFA_Findings&Recommendations_6'!C$9:C$108,MATCH('LFA_Findings&Recom export'!$C4,'LFA_Findings&Recommendations_6'!$B$9:$B$108,0))=\"\",\"\",INDEX('LFA_Findings&Recommendations_6'!C$9:C$108,MATCH('LFA_Findings&Recom export'!$C4,'LFA_Findings&Recommendations_6'!$B$9:$B$108,0))),\"\")","v":""},{"$f":"IFERROR(IF(INDEX('LFA_Findings&Recommendations_6'!D$9:D$108,MATCH('LFA_Findings&Recom export'!$C4,'LFA_Findings&Recommendations_6'!$B$9:$B$108,0))=\"\",\"\",INDEX('LFA_Findings&Recommendations_6'!D$9:D$108,MATCH('LFA_Findings&Recom export'!$C4,'LFA_Findings&Recommendations_6'!$B$9:$B$108,0))),\"\")","v":""},{"$f":"IFERROR(IF(INDEX('LFA_Findings&Recommendations_6'!E$9:E$108,MATCH('LFA_Findings&Recom export'!$C4,'LFA_Findings&Recommendations_6'!$B$9:$B$108,0))=\"\",\"\",INDEX('LFA_Findings&Recommendations_6'!E$9:E$108,MATCH('LFA_Findings&Recom export'!$C4,'LFA_Findings&Recommendations_6'!$B$9:$B$108,0))),\"\")","v":""},{"$f":"IFERROR(IF(INDEX('LFA_Findings&Recommendations_6'!F$9:F$108,MATCH('LFA_Findings&Recom export'!$C4,'LFA_Findings&Recommendations_6'!$B$9:$B$108,0))=\"\",\"\",INDEX('LFA_Findings&Recommendations_6'!F$9:F$108,MATCH('LFA_Findings&Recom export'!$C4,'LFA_Findings&Recommendations_6'!$B$9:$B$108,0))),\"\")","v":""},{"$f":"IFERROR(IF(INDEX('LFA_Findings&Recommendations_6'!G$9:G$108,MATCH('LFA_Findings&Recom export'!$C4,'LFA_Findings&Recommendations_6'!$B$9:$B$108,0))=\"\",\"\",INDEX('LFA_Findings&Recommendations_6'!G$9:G$108,MATCH('LFA_Findings&Recom export'!$C4,'LFA_Findings&Recommendations_6'!$B$9:$B$108,0))),\"\")","v":""},{"$f":"IFERROR(IF(INDEX('LFA_Findings&Recommendations_6'!H$9:H$108,MATCH('LFA_Findings&Recom export'!$C4,'LFA_Findings&Recommendations_6'!$B$9:$B$108,0))=\"\",\"\",INDEX('LFA_Findings&Recommendations_6'!H$9:H$108,MATCH('LFA_Findings&Recom export'!$C4,'LFA_Findings&Recommendations_6'!$B$9:$B$108,0))),\"\")","v":""},{"$f":"IFERROR(IF(INDEX('LFA_Findings&Recommendations_6'!I$9:I$108,MATCH('LFA_Findings&Recom export'!$C4,'LFA_Findings&Recommendations_6'!$B$9:$B$108,0))=\"\",\"\",INDEX('LFA_Findings&Recommendations_6'!I$9:I$108,MATCH('LFA_Findings&Recom export'!$C4,'LFA_Findings&Recommendations_6'!$B$9:$B$108,0))),\"\")","v":""},{"$f":"IFERROR(IF(INDEX('LFA_Findings&Recommendations_6'!J$9:J$108,MATCH('LFA_Findings&Recom export'!$C4,'LFA_Findings&Recommendations_6'!$B$9:$B$108,0))=\"\",\"\",INDEX('LFA_Findings&Recommendations_6'!J$9:J$108,MATCH('LFA_Findings&Recom export'!$C4,'LFA_Findings&Recommendations_6'!$B$9:$B$108,0))),\"\")","v":""},{"$f":"IFERROR(IF(INDEX('LFA_Findings&Recommendations_6'!K$9:K$108,MATCH('LFA_Findings&Recom export'!$C4,'LFA_Findings&Recommendations_6'!$B$9:$B$108,0))=\"\",\"\",INDEX('LFA_Findings&Recommendations_6'!K$9:K$108,MATCH('LFA_Findings&Recom export'!$C4,'LFA_Findings&Recommendations_6'!$B$9:$B$108,0))),\"\")","v":""},{"$f":"IFERROR(IF(INDEX('LFA_Findings&Recommendations_6'!L$9:L$108,MATCH('LFA_Findings&Recom export'!$C4,'LFA_Findings&Recommendations_6'!$B$9:$B$108,0))=\"\",\"\",INDEX('LFA_Findings&Recommendations_6'!L$9:L$108,MATCH('LFA_Findings&Recom export'!$C4,'LFA_Findings&Recommendations_6'!$B$9:$B$108,0))),\"\")","v":""},null,{"$f":"AND(OR(ISBLANK(D4),ISBLANK(E4),ISBLANK(F4),ISBLANK(H4),ISBLANK(I4),ISBLANK(J4)),\n    OR(NOT(ISBLANK(D4)),NOT(ISBLANK(E4)),NOT(ISBLANK(F4)),NOT(ISBLANK(H4)),NOT(ISBLANK(I4)),NOT(ISBLANK(J4))))","v":false},{"$f":"IFERROR(IF(INDEX('LFA_Findings&Recommendations_6'!A$9:A$108,MATCH('LFA_Findings&Recom export'!$C4,'LFA_Findings&Recommendations_6'!$B$9:$B$108,0))=\"\",\"\",INDEX('LFA_Findings&Recommendations_6'!A$9:A$108,MATCH('LFA_Findings&Recom export'!$C4,'LFA_Findings&Recommendations_6'!$B$9:$B$108,0))),\"\")","v":false},{"$f":"IF(P4=TRUE,_xlfn.IFNA(VLOOKUP(D4,RiskData!$B$5:$D$11,3,FALSE), \"\"),\"\")","v":""},{"$f":"IF(P4=TRUE,_xlfn.IFNA(VLOOKUP(E4,RiskData!$F$13:$I$36,4,FALSE), \"\"),\"\")","v":""},{"$f":"IF(P4=TRUE,_xlfn.IFNA(INDEX(RiskData!$H$40:$H$290,MATCH(TRUE,INDEX(RIGHT(RiskData!$F$40:$F$290,255)=RIGHT(F4,255),0),0)), \"\"),\"\")","v":""},{"$f":"IF(OR(P4=TRUE,ISBLANK(D4)),'Admin Sheet'!$B$44,\"\")","v":""},{"$f":"IF(OR(ISBLANK(D4), P4=TRUE),'Admin Sheet'!$B$41,\"\")","v":""},{"$f":"IF(OR(ISBLANK(M4), P4<>TRUE), \"\", M4)","v":""},{"$f":"IF(OR(ISBLANK(L4), P4<>TRUE), \"\", L4)","v":""},{"$f":"IF(OR($M4=TRUE, ISBLANK($D4)),\"\",G4)","v":""},{"$f":"IF(OR($M4=TRUE, ISBLANK($H4)), \"\", K4)","v":""}]
[null,2,"Finding2",{"$f":"IFERROR(IF(INDEX('LFA_Findings&Recommendations_6'!C$9:C$108,MATCH('LFA_Findings&Recom export'!$C5,'LFA_Findings&Recommendations_6'!$B$9:$B$108,0))=\"\",\"\",INDEX('LFA_Findings&Recommendations_6'!C$9:C$108,MATCH('LFA_Findings&Recom export'!$C5,'LFA_Findings&Recommendations_6'!$B$9:$B$108,0))),\"\")","v":""},{"$f":"IFERROR(IF(INDEX('LFA_Findings&Recommendations_6'!D$9:D$108,MATCH('LFA_Findings&Recom export'!$C5,'LFA_Findings&Recommendations_6'!$B$9:$B$108,0))=\"\",\"\",INDEX('LFA_Findings&Recommendations_6'!D$9:D$108,MATCH('LFA_Findings&Recom export'!$C5,'LFA_Findings&Recommendations_6'!$B$9:$B$108,0))),\"\")","v":""},{"$f":"IFERROR(IF(INDEX('LFA_Findings&Recommendations_6'!E$9:E$108,MATCH('LFA_Findings&Recom export'!$C5,'LFA_Findings&Recommendations_6'!$B$9:$B$108,0))=\"\",\"\",INDEX('LFA_Findings&Recommendations_6'!E$9:E$108,MATCH('LFA_Findings&Recom export'!$C5,'LFA_Findings&Recommendations_6'!$B$9:$B$108,0))),\"\")","v":""},{"$f":"IFERROR(IF(INDEX('LFA_Findings&Recommendations_6'!F$9:F$108,MATCH('LFA_Findings&Recom export'!$C5,'LFA_Findings&Recommendations_6'!$B$9:$B$108,0))=\"\",\"\",INDEX('LFA_Findings&Recommendations_6'!F$9:F$108,MATCH('LFA_Findings&Recom export'!$C5,'LFA_Findings&Recommendations_6'!$B$9:$B$108,0))),\"\")","v":""},{"$f":"IFERROR(IF(INDEX('LFA_Findings&Recommendations_6'!G$9:G$108,MATCH('LFA_Findings&Recom export'!$C5,'LFA_Findings&Recommendations_6'!$B$9:$B$108,0))=\"\",\"\",INDEX('LFA_Findings&Recommendations_6'!G$9:G$108,MATCH('LFA_Findings&Recom export'!$C5,'LFA_Findings&Recommendations_6'!$B$9:$B$108,0))),\"\")","v":""},{"$f":"IFERROR(IF(INDEX('LFA_Findings&Recommendations_6'!H$9:H$108,MATCH('LFA_Findings&Recom export'!$C5,'LFA_Findings&Recommendations_6'!$B$9:$B$108,0))=\"\",\"\",INDEX('LFA_Findings&Recommendations_6'!H$9:H$108,MATCH('LFA_Findings&Recom export'!$C5,'LFA_Findings&Recommendations_6'!$B$9:$B$108,0))),\"\")","v":""},{"$f":"IFERROR(IF(INDEX('LFA_Findings&Recommendations_6'!I$9:I$108,MATCH('LFA_Findings&Recom export'!$C5,'LFA_Findings&Recommendations_6'!$B$9:$B$108,0))=\"\",\"\",INDEX('LFA_Findings&Recommendations_6'!I$9:I$108,MATCH('LFA_Findings&Recom export'!$C5,'LFA_Findings&Recommendations_6'!$B$9:$B$108,0))),\"\")","v":""},{"$f":"IFERROR(IF(INDEX('LFA_Findings&Recommendations_6'!J$9:J$108,MATCH('LFA_Findings&Recom export'!$C5,'LFA_Findings&Recommendations_6'!$B$9:$B$108,0))=\"\",\"\",INDEX('LFA_Findings&Recommendations_6'!J$9:J$108,MATCH('LFA_Findings&Recom export'!$C5,'LFA_Findings&Recommendations_6'!$B$9:$B$108,0))),\"\")","v":""},{"$f":"IFERROR(IF(INDEX('LFA_Findings&Recommendations_6'!K$9:K$108,MATCH('LFA_Findings&Recom export'!$C5,'LFA_Findings&Recommendations_6'!$B$9:$B$108,0))=\"\",\"\",INDEX('LFA_Findings&Recommendations_6'!K$9:K$108,MATCH('LFA_Findings&Recom export'!$C5,'LFA_Findings&Recommendations_6'!$B$9:$B$108,0))),\"\")","v":""},{"$f":"IFERROR(IF(INDEX('LFA_Findings&Recommendations_6'!L$9:L$108,MATCH('LFA_Findings&Recom export'!$C5,'LFA_Findings&Recommendations_6'!$B$9:$B$108,0))=\"\",\"\",INDEX('LFA_Findings&Recommendations_6'!L$9:L$108,MATCH('LFA_Findings&Recom export'!$C5,'LFA_Findings&Recommendations_6'!$B$9:$B$108,0))),\"\")","v":""},null,false,{"$f":"IFERROR(IF(INDEX('LFA_Findings&Recommendations_6'!A$9:A$108,MATCH('LFA_Findings&Recom export'!$C5,'LFA_Findings&Recommendations_6'!$B$9:$B$108,0))=\"\",\"\",INDEX('LFA_Findings&Recommendations_6'!A$9:A$108,MATCH('LFA_Findings&Recom export'!$C5,'LFA_Findings&Recommendations_6'!$B$9:$B$108,0))),\"\")","v":false},{"$f":"IF(P5=TRUE,_xlfn.IFNA(VLOOKUP(D5,RiskData!$B$5:$D$11,3,FALSE), \"\"),\"\")","v":""},{"$f":"IF(P5=TRUE,_xlfn.IFNA(VLOOKUP(E5,RiskData!$F$13:$I$36,4,FALSE), \"\"),\"\")","v":""},{"$f":"IF(P5=TRUE,_xlfn.IFNA(INDEX(RiskData!$H$40:$H$290,MATCH(TRUE,INDEX(RIGHT(RiskData!$F$40:$F$290,255)=RIGHT(F5,255),0),0)), \"\"),\"\")","v":""},{"$f":"IF(OR(P5=TRUE,ISBLANK(D5)),'Admin Sheet'!$B$44,\"\")","v":""},{"$f":"IF(OR(ISBLANK(D5), P5=TRUE),'Admin Sheet'!$B$41,\"\")","v":""},"","","",""]
[null,3,"Finding3",{"$f":"IFERROR(IF(INDEX('LFA_Findings&Recommendations_6'!C$9:C$108,MATCH('LFA_Findings&Recom export'!$C6,'LFA_Findings&Recommendations_6'!$B$9:$B$108,0))=\"\",\"\",INDEX('LFA_Findings&Recommendations_6'!C$9:C$108,MATCH('LFA_Findings&Recom export'!$C6,'LFA_Findings&Recommendations_6'!$B$9:$B$108,0))),\"\")","v":""},{"$f":"IFERROR(IF(INDEX('LFA_Findings&Recommendations_6'!D$9:D$108,MATCH('LFA_Findings&Recom export'!$C6,'LFA_Findings&Recommendations_6'!$B$9:$B$108,0))=\"\",\"\",INDEX('LFA_Findings&Recommendations_6'!D$9:D$108,MATCH('LFA_Findings&Recom export'!$C6,'LFA_Findings&Recommendations_6'!$B$9:$B$108,0))),\"\")","v":""},{"$f":"IFERROR(IF(INDEX('LFA_Findings&Recommendations_6'!E$9:E$108,MATCH('LFA_Findings&Recom export'!$C6,'LFA_Findings&Recommendations_6'!$B$9:$B$108,0))=\"\",\"\",INDEX('LFA_Findings&Recommendations_6'!E$9:E$108,MATCH('LFA_Findings&Recom export'!$C6,'LFA_Findings&Recommendations_6'!$B$9:$B$108,0))),\"\")","v":""},{"$f":"IFERROR(IF(INDEX('LFA_Findings&Recommendations_6'!F$9:F$108,MATCH('LFA_Findings&Recom export'!$C6,'LFA_Findings&Recommendations_6'!$B$9:$B$108,0))=\"\",\"\",INDEX('LFA_Findings&Recommendations_6'!F$9:F$108,MATCH('LFA_Findings&Recom export'!$C6,'LFA_Findings&Recommendations_6'!$B$9:$B$108,0))),\"\")","v":""},{"$f":"IFERROR(IF(INDEX('LFA_Findings&Recommendations_6'!G$9:G$108,MATCH('LFA_Findings&Recom export'!$C6,'LFA_Findings&Recommendations_6'!$B$9:$B$108,0))=\"\",\"\",INDEX('LFA_Findings&Recommendations_6'!G$9:G$108,MATCH('LFA_Findings&Recom export'!$C6,'LFA_Findings&Recommendations_6'!$B$9:$B$108,0))),\"\")","v":""},{"$f":"IFERROR(IF(INDEX('LFA_Findings&Recommendations_6'!H$9:H$108,MATCH('LFA_Findings&Recom export'!$C6,'LFA_Findings&Recommendations_6'!$B$9:$B$108,0))=\"\",\"\",INDEX('LFA_Findings&Recommendations_6'!H$9:H$108,MATCH('LFA_Findings&Recom export'!$C6,'LFA_Findings&Recommendations_6'!$B$9:$B$108,0))),\"\")","v":""},{"$f":"IFERROR(IF(INDEX('LFA_Findings&Recommendations_6'!I$9:I$108,MATCH('LFA_Findings&Recom export'!$C6,'LFA_Findings&Recommendations_6'!$B$9:$B$108,0))=\"\",\"\",INDEX('LFA_Findings&Recommendations_6'!I$9:I$108,MATCH('LFA_Findings&Recom export'!$C6,'LFA_Findings&Recommendations_6'!$B$9:$B$108,0))),\"\")","v":""},{"$f":"IFERROR(IF(INDEX('LFA_Findings&Recommendations_6'!J$9:J$108,MATCH('LFA_Findings&Recom export'!$C6,'LFA_Findings&Recommendations_6'!$B$9:$B$108,0))=\"\",\"\",INDEX('LFA_Findings&Recommendations_6'!J$9:J$108,MATCH('LFA_Findings&Recom export'!$C6,'LFA_Findings&Recommendations_6'!$B$9:$B$108,0))),\"\")","v":""},{"$f":"IFERROR(IF(INDEX('LFA_Findings&Recommendations_6'!K$9:K$108,MATCH('LFA_Findings&Recom export'!$C6,'LFA_Findings&Recommendations_6'!$B$9:$B$108,0))=\"\",\"\",INDEX('LFA_Findings&Recommendations_6'!K$9:K$108,MATCH('LFA_Findings&Recom export'!$C6,'LFA_Findings&Recommendations_6'!$B$9:$B$108,0))),\"\")","v":""},{"$f":"IFERROR(IF(INDEX('LFA_Findings&Recommendations_6'!L$9:L$108,MATCH('LFA_Findings&Recom export'!$C6,'LFA_Findings&Recommendations_6'!$B$9:$B$108,0))=\"\",\"\",INDEX('LFA_Findings&Recommendations_6'!L$9:L$108,MATCH('LFA_Findings&Recom export'!$C6,'LFA_Findings&Recommendations_6'!$B$9:$B$108,0))),\"\")","v":""},null,false,{"$f":"IFERROR(IF(INDEX('LFA_Findings&Recommendations_6'!A$9:A$108,MATCH('LFA_Findings&Recom export'!$C6,'LFA_Findings&Recommendations_6'!$B$9:$B$108,0))=\"\",\"\",INDEX('LFA_Findings&Recommendations_6'!A$9:A$108,MATCH('LFA_Findings&Recom export'!$C6,'LFA_Findings&Recommendations_6'!$B$9:$B$108,0))),\"\")","v":false},{"$f":"IF(P6=TRUE,_xlfn.IFNA(VLOOKUP(D6,RiskData!$B$5:$D$11,3,FALSE), \"\"),\"\")","v":""},{"$f":"IF(P6=TRUE,_xlfn.IFNA(VLOOKUP(E6,RiskData!$F$13:$I$36,4,FALSE), \"\"),\"\")","v":""},{"$f":"IF(P6=TRUE,_xlfn.IFNA(INDEX(RiskData!$H$40:$H$290,MATCH(TRUE,INDEX(RIGHT(RiskData!$F$40:$F$290,255)=RIGHT(F6,255),0),0)), \"\"),\"\")","v":""},{"$f":"IF(OR(P6=TRUE,ISBLANK(D6)),'Admin Sheet'!$B$44,\"\")","v":""},{"$f":"IF(OR(ISBLANK(D6), P6=TRUE),'Admin Sheet'!$B$41,\"\")","v":""},"","","",""]
[null,4,"Finding4",{"$f":"IFERROR(IF(INDEX('LFA_Findings&Recommendations_6'!C$9:C$108,MATCH('LFA_Findings&Recom export'!$C7,'LFA_Findings&Recommendations_6'!$B$9:$B$108,0))=\"\",\"\",INDEX('LFA_Findings&Recommendations_6'!C$9:C$108,MATCH('LFA_Findings&Recom export'!$C7,'LFA_Findings&Recommendations_6'!$B$9:$B$108,0))),\"\")","v":""},{"$f":"IFERROR(IF(INDEX('LFA_Findings&Recommendations_6'!D$9:D$108,MATCH('LFA_Findings&Recom export'!$C7,'LFA_Findings&Recommendations_6'!$B$9:$B$108,0))=\"\",\"\",INDEX('LFA_Findings&Recommendations_6'!D$9:D$108,MATCH('LFA_Findings&Recom export'!$C7,'LFA_Findings&Recommendations_6'!$B$9:$B$108,0))),\"\")","v":""},{"$f":"IFERROR(IF(INDEX('LFA_Findings&Recommendations_6'!E$9:E$108,MATCH('LFA_Findings&Recom export'!$C7,'LFA_Findings&Recommendations_6'!$B$9:$B$108,0))=\"\",\"\",INDEX('LFA_Findings&Recommendations_6'!E$9:E$108,MATCH('LFA_Findings&Recom export'!$C7,'LFA_Findings&Recommendations_6'!$B$9:$B$108,0))),\"\")","v":""},{"$f":"IFERROR(IF(INDEX('LFA_Findings&Recommendations_6'!F$9:F$108,MATCH('LFA_Findings&Recom export'!$C7,'LFA_Findings&Recommendations_6'!$B$9:$B$108,0))=\"\",\"\",INDEX('LFA_Findings&Recommendations_6'!F$9:F$108,MATCH('LFA_Findings&Recom export'!$C7,'LFA_Findings&Recommendations_6'!$B$9:$B$108,0))),\"\")","v":""},{"$f":"IFERROR(IF(INDEX('LFA_Findings&Recommendations_6'!G$9:G$108,MATCH('LFA_Findings&Recom export'!$C7,'LFA_Findings&Recommendations_6'!$B$9:$B$108,0))=\"\",\"\",INDEX('LFA_Findings&Recommendations_6'!G$9:G$108,MATCH('LFA_Findings&Recom export'!$C7,'LFA_Findings&Recommendations_6'!$B$9:$B$108,0))),\"\")","v":""},{"$f":"IFERROR(IF(INDEX('LFA_Findings&Recommendations_6'!H$9:H$108,MATCH('LFA_Findings&Recom export'!$C7,'LFA_Findings&Recommendations_6'!$B$9:$B$108,0))=\"\",\"\",INDEX('LFA_Findings&Recommendations_6'!H$9:H$108,MATCH('LFA_Findings&Recom export'!$C7,'LFA_Findings&Recommendations_6'!$B$9:$B$108,0))),\"\")","v":""},{"$f":"IFERROR(IF(INDEX('LFA_Findings&Recommendations_6'!I$9:I$108,MATCH('LFA_Findings&Recom export'!$C7,'LFA_Findings&Recommendations_6'!$B$9:$B$108,0))=\"\",\"\",INDEX('LFA_Findings&Recommendations_6'!I$9:I$108,MATCH('LFA_Findings&Recom export'!$C7,'LFA_Findings&Recommendations_6'!$B$9:$B$108,0))),\"\")","v":""},{"$f":"IFERROR(IF(INDEX('LFA_Findings&Recommendations_6'!J$9:J$108,MATCH('LFA_Findings&Recom export'!$C7,'LFA_Findings&Recommendations_6'!$B$9:$B$108,0))=\"\",\"\",INDEX('LFA_Findings&Recommendations_6'!J$9:J$108,MATCH('LFA_Findings&Recom export'!$C7,'LFA_Findings&Recommendations_6'!$B$9:$B$108,0))),\"\")","v":""},{"$f":"IFERROR(IF(INDEX('LFA_Findings&Recommendations_6'!K$9:K$108,MATCH('LFA_Findings&Recom export'!$C7,'LFA_Findings&Recommendations_6'!$B$9:$B$108,0))=\"\",\"\",INDEX('LFA_Findings&Recommendations_6'!K$9:K$108,MATCH('LFA_Findings&Recom export'!$C7,'LFA_Findings&Recommendations_6'!$B$9:$B$108,0))),\"\")","v":""},{"$f":"IFERROR(IF(INDEX('LFA_Findings&Recommendations_6'!L$9:L$108,MATCH('LFA_Findings&Recom export'!$C7,'LFA_Findings&Recommendations_6'!$B$9:$B$108,0))=\"\",\"\",INDEX('LFA_Findings&Recommendations_6'!L$9:L$108,MATCH('LFA_Findings&Recom export'!$C7,'LFA_Findings&Recommendations_6'!$B$9:$B$108,0))),\"\")","v":""},null,false,{"$f":"IFERROR(IF(INDEX('LFA_Findings&Recommendations_6'!A$9:A$108,MATCH('LFA_Findings&Recom export'!$C7,'LFA_Findings&Recommendations_6'!$B$9:$B$108,0))=\"\",\"\",INDEX('LFA_Findings&Recommendations_6'!A$9:A$108,MATCH('LFA_Findings&Recom export'!$C7,'LFA_Findings&Recommendations_6'!$B$9:$B$108,0))),\"\")","v":false},{"$f":"IF(P7=TRUE,_xlfn.IFNA(VLOOKUP(D7,RiskData!$B$5:$D$11,3,FALSE), \"\"),\"\")","v":""},{"$f":"IF(P7=TRUE,_xlfn.IFNA(VLOOKUP(E7,RiskData!$F$13:$I$36,4,FALSE), \"\"),\"\")","v":""},{"$f":"IF(P7=TRUE,_xlfn.IFNA(INDEX(RiskData!$H$40:$H$290,MATCH(TRUE,INDEX(RIGHT(RiskData!$F$40:$F$290,255)=RIGHT(F7,255),0),0)), \"\"),\"\")","v":""},{"$f":"IF(OR(P7=TRUE,ISBLANK(D7)),'Admin Sheet'!$B$44,\"\")","v":""},{"$f":"IF(OR(ISBLANK(D7), P7=TRUE),'Admin Sheet'!$B$41,\"\")","v":""},"","","",""]
[null,5,"Finding5",{"$f":"IFERROR(IF(INDEX('LFA_Findings&Recommendations_6'!C$9:C$108,MATCH('LFA_Findings&Recom export'!$C8,'LFA_Findings&Recommendations_6'!$B$9:$B$108,0))=\"\",\"\",INDEX('LFA_Findings&Recommendations_6'!C$9:C$108,MATCH('LFA_Findings&Recom export'!$C8,'LFA_Findings&Recommendations_6'!$B$9:$B$108,0))),\"\")","v":""},{"$f":"IFERROR(IF(INDEX('LFA_Findings&Recommendations_6'!D$9:D$108,MATCH('LFA_Findings&Recom export'!$C8,'LFA_Findings&Recommendations_6'!$B$9:$B$108,0))=\"\",\"\",INDEX('LFA_Findings&Recommendations_6'!D$9:D$108,MATCH('LFA_Findings&Recom export'!$C8,'LFA_Findings&Recommendations_6'!$B$9:$B$108,0))),\"\")","v":""},{"$f":"IFERROR(IF(INDEX('LFA_Findings&Recommendations_6'!E$9:E$108,MATCH('LFA_Findings&Recom export'!$C8,'LFA_Findings&Recommendations_6'!$B$9:$B$108,0))=\"\",\"\",INDEX('LFA_Findings&Recommendations_6'!E$9:E$108,MATCH('LFA_Findings&Recom export'!$C8,'LFA_Findings&Recommendations_6'!$B$9:$B$108,0))),\"\")","v":""},{"$f":"IFERROR(IF(INDEX('LFA_Findings&Recommendations_6'!F$9:F$108,MATCH('LFA_Findings&Recom export'!$C8,'LFA_Findings&Recommendations_6'!$B$9:$B$108,0))=\"\",\"\",INDEX('LFA_Findings&Recommendations_6'!F$9:F$108,MATCH('LFA_Findings&Recom export'!$C8,'LFA_Findings&Recommendations_6'!$B$9:$B$108,0))),\"\")","v":""},{"$f":"IFERROR(IF(INDEX('LFA_Findings&Recommendations_6'!G$9:G$108,MATCH('LFA_Findings&Recom export'!$C8,'LFA_Findings&Recommendations_6'!$B$9:$B$108,0))=\"\",\"\",INDEX('LFA_Findings&Recommendations_6'!G$9:G$108,MATCH('LFA_Findings&Recom export'!$C8,'LFA_Findings&Recommendations_6'!$B$9:$B$108,0))),\"\")","v":""},{"$f":"IFERROR(IF(INDEX('LFA_Findings&Recommendations_6'!H$9:H$108,MATCH('LFA_Findings&Recom export'!$C8,'LFA_Findings&Recommendations_6'!$B$9:$B$108,0))=\"\",\"\",INDEX('LFA_Findings&Recommendations_6'!H$9:H$108,MATCH('LFA_Findings&Recom export'!$C8,'LFA_Findings&Recommendations_6'!$B$9:$B$108,0))),\"\")","v":""},{"$f":"IFERROR(IF(INDEX('LFA_Findings&Recommendations_6'!I$9:I$108,MATCH('LFA_Findings&Recom export'!$C8,'LFA_Findings&Recommendations_6'!$B$9:$B$108,0))=\"\",\"\",INDEX('LFA_Findings&Recommendations_6'!I$9:I$108,MATCH('LFA_Findings&Recom export'!$C8,'LFA_Findings&Recommendations_6'!$B$9:$B$108,0))),\"\")","v":""},{"$f":"IFERROR(IF(INDEX('LFA_Findings&Recommendations_6'!J$9:J$108,MATCH('LFA_Findings&Recom export'!$C8,'LFA_Findings&Recommendations_6'!$B$9:$B$108,0))=\"\",\"\",INDEX('LFA_Findings&Recommendations_6'!J$9:J$108,MATCH('LFA_Findings&Recom export'!$C8,'LFA_Findings&Recommendations_6'!$B$9:$B$108,0))),\"\")","v":""},{"$f":"IFERROR(IF(INDEX('LFA_Findings&Recommendations_6'!K$9:K$108,MATCH('LFA_Findings&Recom export'!$C8,'LFA_Findings&Recommendations_6'!$B$9:$B$108,0))=\"\",\"\",INDEX('LFA_Findings&Recommendations_6'!K$9:K$108,MATCH('LFA_Findings&Recom export'!$C8,'LFA_Findings&Recommendations_6'!$B$9:$B$108,0))),\"\")","v":""},{"$f":"IFERROR(IF(INDEX('LFA_Findings&Recommendations_6'!L$9:L$108,MATCH('LFA_Findings&Recom export'!$C8,'LFA_Findings&Recommendations_6'!$B$9:$B$108,0))=\"\",\"\",INDEX('LFA_Findings&Recommendations_6'!L$9:L$108,MATCH('LFA_Findings&Recom export'!$C8,'LFA_Findings&Recommendations_6'!$B$9:$B$108,0))),\"\")","v":""},null,false,{"$f":"IFERROR(IF(INDEX('LFA_Findings&Recommendations_6'!A$9:A$108,MATCH('LFA_Findings&Recom export'!$C8,'LFA_Findings&Recommendations_6'!$B$9:$B$108,0))=\"\",\"\",INDEX('LFA_Findings&Recommendations_6'!A$9:A$108,MATCH('LFA_Findings&Recom export'!$C8,'LFA_Findings&Recommendations_6'!$B$9:$B$108,0))),\"\")","v":false},{"$f":"IF(P8=TRUE,_xlfn.IFNA(VLOOKUP(D8,RiskData!$B$5:$D$11,3,FALSE), \"\"),\"\")","v":""},{"$f":"IF(P8=TRUE,_xlfn.IFNA(VLOOKUP(E8,RiskData!$F$13:$I$36,4,FALSE), \"\"),\"\")","v":""},{"$f":"IF(P8=TRUE,_xlfn.IFNA(INDEX(RiskData!$H$40:$H$290,MATCH(TRUE,INDEX(RIGHT(RiskData!$F$40:$F$290,255)=RIGHT(F8,255),0),0)), \"\"),\"\")","v":""},{"$f":"IF(OR(P8=TRUE,ISBLANK(D8)),'Admin Sheet'!$B$44,\"\")","v":""},{"$f":"IF(OR(ISBLANK(D8), P8=TRUE),'Admin Sheet'!$B$41,\"\")","v":""},"","","",""]
[null,6,"Finding6",{"$f":"IFERROR(IF(INDEX('LFA_Findings&Recommendations_6'!C$9:C$108,MATCH('LFA_Findings&Recom export'!$C9,'LFA_Findings&Recommendations_6'!$B$9:$B$108,0))=\"\",\"\",INDEX('LFA_Findings&Recommendations_6'!C$9:C$108,MATCH('LFA_Findings&Recom export'!$C9,'LFA_Findings&Recommendations_6'!$B$9:$B$108,0))),\"\")","v":""},{"$f":"IFERROR(IF(INDEX('LFA_Findings&Recommendations_6'!D$9:D$108,MATCH('LFA_Findings&Recom export'!$C9,'LFA_Findings&Recommendations_6'!$B$9:$B$108,0))=\"\",\"\",INDEX('LFA_Findings&Recommendations_6'!D$9:D$108,MATCH('LFA_Findings&Recom export'!$C9,'LFA_Findings&Recommendations_6'!$B$9:$B$108,0))),\"\")","v":""},{"$f":"IFERROR(IF(INDEX('LFA_Findings&Recommendations_6'!E$9:E$108,MATCH('LFA_Findings&Recom export'!$C9,'LFA_Findings&Recommendations_6'!$B$9:$B$108,0))=\"\",\"\",INDEX('LFA_Findings&Recommendations_6'!E$9:E$108,MATCH('LFA_Findings&Recom export'!$C9,'LFA_Findings&Recommendations_6'!$B$9:$B$108,0))),\"\")","v":""},{"$f":"IFERROR(IF(INDEX('LFA_Findings&Recommendations_6'!F$9:F$108,MATCH('LFA_Findings&Recom export'!$C9,'LFA_Findings&Recommendations_6'!$B$9:$B$108,0))=\"\",\"\",INDEX('LFA_Findings&Recommendations_6'!F$9:F$108,MATCH('LFA_Findings&Recom export'!$C9,'LFA_Findings&Recommendations_6'!$B$9:$B$108,0))),\"\")","v":""},{"$f":"IFERROR(IF(INDEX('LFA_Findings&Recommendations_6'!G$9:G$108,MATCH('LFA_Findings&Recom export'!$C9,'LFA_Findings&Recommendations_6'!$B$9:$B$108,0))=\"\",\"\",INDEX('LFA_Findings&Recommendations_6'!G$9:G$108,MATCH('LFA_Findings&Recom export'!$C9,'LFA_Findings&Recommendations_6'!$B$9:$B$108,0))),\"\")","v":""},{"$f":"IFERROR(IF(INDEX('LFA_Findings&Recommendations_6'!H$9:H$108,MATCH('LFA_Findings&Recom export'!$C9,'LFA_Findings&Recommendations_6'!$B$9:$B$108,0))=\"\",\"\",INDEX('LFA_Findings&Recommendations_6'!H$9:H$108,MATCH('LFA_Findings&Recom export'!$C9,'LFA_Findings&Recommendations_6'!$B$9:$B$108,0))),\"\")","v":""},{"$f":"IFERROR(IF(INDEX('LFA_Findings&Recommendations_6'!I$9:I$108,MATCH('LFA_Findings&Recom export'!$C9,'LFA_Findings&Recommendations_6'!$B$9:$B$108,0))=\"\",\"\",INDEX('LFA_Findings&Recommendations_6'!I$9:I$108,MATCH('LFA_Findings&Recom export'!$C9,'LFA_Findings&Recommendations_6'!$B$9:$B$108,0))),\"\")","v":""},{"$f":"IFERROR(IF(INDEX('LFA_Findings&Recommendations_6'!J$9:J$108,MATCH('LFA_Findings&Recom export'!$C9,'LFA_Findings&Recommendations_6'!$B$9:$B$108,0))=\"\",\"\",INDEX('LFA_Findings&Recommendations_6'!J$9:J$108,MATCH('LFA_Findings&Recom export'!$C9,'LFA_Findings&Recommendations_6'!$B$9:$B$108,0))),\"\")","v":""},{"$f":"IFERROR(IF(INDEX('LFA_Findings&Recommendations_6'!K$9:K$108,MATCH('LFA_Findings&Recom export'!$C9,'LFA_Findings&Recommendations_6'!$B$9:$B$108,0))=\"\",\"\",INDEX('LFA_Findings&Recommendations_6'!K$9:K$108,MATCH('LFA_Findings&Recom export'!$C9,'LFA_Findings&Recommendations_6'!$B$9:$B$108,0))),\"\")","v":""},{"$f":"IFERROR(IF(INDEX('LFA_Findings&Recommendations_6'!L$9:L$108,MATCH('LFA_Findings&Recom export'!$C9,'LFA_Findings&Recommendations_6'!$B$9:$B$108,0))=\"\",\"\",INDEX('LFA_Findings&Recommendations_6'!L$9:L$108,MATCH('LFA_Findings&Recom export'!$C9,'LFA_Findings&Recommendations_6'!$B$9:$B$108,0))),\"\")","v":""},null,false,{"$f":"IFERROR(IF(INDEX('LFA_Findings&Recommendations_6'!A$9:A$108,MATCH('LFA_Findings&Recom export'!$C9,'LFA_Findings&Recommendations_6'!$B$9:$B$108,0))=\"\",\"\",INDEX('LFA_Findings&Recommendations_6'!A$9:A$108,MATCH('LFA_Findings&Recom export'!$C9,'LFA_Findings&Recommendations_6'!$B$9:$B$108,0))),\"\")","v":false},{"$f":"IF(P9=TRUE,_xlfn.IFNA(VLOOKUP(D9,RiskData!$B$5:$D$11,3,FALSE), \"\"),\"\")","v":""},{"$f":"IF(P9=TRUE,_xlfn.IFNA(VLOOKUP(E9,RiskData!$F$13:$I$36,4,FALSE), \"\"),\"\")","v":""},{"$f":"IF(P9=TRUE,_xlfn.IFNA(INDEX(RiskData!$H$40:$H$290,MATCH(TRUE,INDEX(RIGHT(RiskData!$F$40:$F$290,255)=RIGHT(F9,255),0),0)), \"\"),\"\")","v":""},{"$f":"IF(OR(P9=TRUE,ISBLANK(D9)),'Admin Sheet'!$B$44,\"\")","v":""},{"$f":"IF(OR(ISBLANK(D9), P9=TRUE),'Admin Sheet'!$B$41,\"\")","v":""},"","","",""]
[null,7,"Finding7",{"$f":"IFERROR(IF(INDEX('LFA_Findings&Recommendations_6'!C$9:C$108,MATCH('LFA_Findings&Recom export'!$C10,'LFA_Findings&Recommendations_6'!$B$9:$B$108,0))=\"\",\"\",INDEX('LFA_Findings&Recommendations_6'!C$9:C$108,MATCH('LFA_Findings&Recom export'!$C10,'LFA_Findings&Recommendations_6'!$B$9:$B$108,0))),\"\")","v":""},{"$f":"IFERROR(IF(INDEX('LFA_Findings&Recommendations_6'!D$9:D$108,MATCH('LFA_Findings&Recom export'!$C10,'LFA_Findings&Recommendations_6'!$B$9:$B$108,0))=\"\",\"\",INDEX('LFA_Findings&Recommendations_6'!D$9:D$108,MATCH('LFA_Findings&Recom export'!$C10,'LFA_Findings&Recommendations_6'!$B$9:$B$108,0))),\"\")","v":""},{"$f":"IFERROR(IF(INDEX('LFA_Findings&Recommendations_6'!E$9:E$108,MATCH('LFA_Findings&Recom export'!$C10,'LFA_Findings&Recommendations_6'!$B$9:$B$108,0))=\"\",\"\",INDEX('LFA_Findings&Recommendations_6'!E$9:E$108,MATCH('LFA_Findings&Recom export'!$C10,'LFA_Findings&Recommendations_6'!$B$9:$B$108,0))),\"\")","v":""},{"$f":"IFERROR(IF(INDEX('LFA_Findings&Recommendations_6'!F$9:F$108,MATCH('LFA_Findings&Recom export'!$C10,'LFA_Findings&Recommendations_6'!$B$9:$B$108,0))=\"\",\"\",INDEX('LFA_Findings&Recommendations_6'!F$9:F$108,MATCH('LFA_Findings&Recom export'!$C10,'LFA_Findings&Recommendations_6'!$B$9:$B$108,0))),\"\")","v":""},{"$f":"IFERROR(IF(INDEX('LFA_Findings&Recommendations_6'!G$9:G$108,MATCH('LFA_Findings&Recom export'!$C10,'LFA_Findings&Recommendations_6'!$B$9:$B$108,0))=\"\",\"\",INDEX('LFA_Findings&Recommendations_6'!G$9:G$108,MATCH('LFA_Findings&Recom export'!$C10,'LFA_Findings&Recommendations_6'!$B$9:$B$108,0))),\"\")","v":""},{"$f":"IFERROR(IF(INDEX('LFA_Findings&Recommendations_6'!H$9:H$108,MATCH('LFA_Findings&Recom export'!$C10,'LFA_Findings&Recommendations_6'!$B$9:$B$108,0))=\"\",\"\",INDEX('LFA_Findings&Recommendations_6'!H$9:H$108,MATCH('LFA_Findings&Recom export'!$C10,'LFA_Findings&Recommendations_6'!$B$9:$B$108,0))),\"\")","v":""},{"$f":"IFERROR(IF(INDEX('LFA_Findings&Recommendations_6'!I$9:I$108,MATCH('LFA_Findings&Recom export'!$C10,'LFA_Findings&Recommendations_6'!$B$9:$B$108,0))=\"\",\"\",INDEX('LFA_Findings&Recommendations_6'!I$9:I$108,MATCH('LFA_Findings&Recom export'!$C10,'LFA_Findings&Recommendations_6'!$B$9:$B$108,0))),\"\")","v":""},{"$f":"IFERROR(IF(INDEX('LFA_Findings&Recommendations_6'!J$9:J$108,MATCH('LFA_Findings&Recom export'!$C10,'LFA_Findings&Recommendations_6'!$B$9:$B$108,0))=\"\",\"\",INDEX('LFA_Findings&Recommendations_6'!J$9:J$108,MATCH('LFA_Findings&Recom export'!$C10,'LFA_Findings&Recommendations_6'!$B$9:$B$108,0))),\"\")","v":""},{"$f":"IFERROR(IF(INDEX('LFA_Findings&Recommendations_6'!K$9:K$108,MATCH('LFA_Findings&Recom export'!$C10,'LFA_Findings&Recommendations_6'!$B$9:$B$108,0))=\"\",\"\",INDEX('LFA_Findings&Recommendations_6'!K$9:K$108,MATCH('LFA_Findings&Recom export'!$C10,'LFA_Findings&Recommendations_6'!$B$9:$B$108,0))),\"\")","v":""},{"$f":"IFERROR(IF(INDEX('LFA_Findings&Recommendations_6'!L$9:L$108,MATCH('LFA_Findings&Recom export'!$C10,'LFA_Findings&Recommendations_6'!$B$9:$B$108,0))=\"\",\"\",INDEX('LFA_Findings&Recommendations_6'!L$9:L$108,MATCH('LFA_Findings&Recom export'!$C10,'LFA_Findings&Recommendations_6'!$B$9:$B$108,0))),\"\")","v":""},null,false,{"$f":"IFERROR(IF(INDEX('LFA_Findings&Recommendations_6'!A$9:A$108,MATCH('LFA_Findings&Recom export'!$C10,'LFA_Findings&Recommendations_6'!$B$9:$B$108,0))=\"\",\"\",INDEX('LFA_Findings&Recommendations_6'!A$9:A$108,MATCH('LFA_Findings&Recom export'!$C10,'LFA_Findings&Recommendations_6'!$B$9:$B$108,0))),\"\")","v":false},{"$f":"IF(P10=TRUE,_xlfn.IFNA(VLOOKUP(D10,RiskData!$B$5:$D$11,3,FALSE), \"\"),\"\")","v":""},{"$f":"IF(P10=TRUE,_xlfn.IFNA(VLOOKUP(E10,RiskData!$F$13:$I$36,4,FALSE), \"\"),\"\")","v":""},{"$f":"IF(P10=TRUE,_xlfn.IFNA(INDEX(RiskData!$H$40:$H$290,MATCH(TRUE,INDEX(RIGHT(RiskData!$F$40:$F$290,255)=RIGHT(F10,255),0),0)), \"\"),\"\")","v":""},{"$f":"IF(OR(P10=TRUE,ISBLANK(D10)),'Admin Sheet'!$B$44,\"\")","v":""},{"$f":"IF(OR(ISBLANK(D10), P10=TRUE),'Admin Sheet'!$B$41,\"\")","v":""},"","","",""]
[null,8,"Finding8",{"$f":"IFERROR(IF(INDEX('LFA_Findings&Recommendations_6'!C$9:C$108,MATCH('LFA_Findings&Recom export'!$C11,'LFA_Findings&Recommendations_6'!$B$9:$B$108,0))=\"\",\"\",INDEX('LFA_Findings&Recommendations_6'!C$9:C$108,MATCH('LFA_Findings&Recom export'!$C11,'LFA_Findings&Recommendations_6'!$B$9:$B$108,0))),\"\")","v":""},{"$f":"IFERROR(IF(INDEX('LFA_Findings&Recommendations_6'!D$9:D$108,MATCH('LFA_Findings&Recom export'!$C11,'LFA_Findings&Recommendations_6'!$B$9:$B$108,0))=\"\",\"\",INDEX('LFA_Findings&Recommendations_6'!D$9:D$108,MATCH('LFA_Findings&Recom export'!$C11,'LFA_Findings&Recommendations_6'!$B$9:$B$108,0))),\"\")","v":""},{"$f":"IFERROR(IF(INDEX('LFA_Findings&Recommendations_6'!E$9:E$108,MATCH('LFA_Findings&Recom export'!$C11,'LFA_Findings&Recommendations_6'!$B$9:$B$108,0))=\"\",\"\",INDEX('LFA_Findings&Recommendations_6'!E$9:E$108,MATCH('LFA_Findings&Recom export'!$C11,'LFA_Findings&Recommendations_6'!$B$9:$B$108,0))),\"\")","v":""},{"$f":"IFERROR(IF(INDEX('LFA_Findings&Recommendations_6'!F$9:F$108,MATCH('LFA_Findings&Recom export'!$C11,'LFA_Findings&Recommendations_6'!$B$9:$B$108,0))=\"\",\"\",INDEX('LFA_Findings&Recommendations_6'!F$9:F$108,MATCH('LFA_Findings&Recom export'!$C11,'LFA_Findings&Recommendations_6'!$B$9:$B$108,0))),\"\")","v":""},{"$f":"IFERROR(IF(INDEX('LFA_Findings&Recommendations_6'!G$9:G$108,MATCH('LFA_Findings&Recom export'!$C11,'LFA_Findings&Recommendations_6'!$B$9:$B$108,0))=\"\",\"\",INDEX('LFA_Findings&Recommendations_6'!G$9:G$108,MATCH('LFA_Findings&Recom export'!$C11,'LFA_Findings&Recommendations_6'!$B$9:$B$108,0))),\"\")","v":""},{"$f":"IFERROR(IF(INDEX('LFA_Findings&Recommendations_6'!H$9:H$108,MATCH('LFA_Findings&Recom export'!$C11,'LFA_Findings&Recommendations_6'!$B$9:$B$108,0))=\"\",\"\",INDEX('LFA_Findings&Recommendations_6'!H$9:H$108,MATCH('LFA_Findings&Recom export'!$C11,'LFA_Findings&Recommendations_6'!$B$9:$B$108,0))),\"\")","v":""},{"$f":"IFERROR(IF(INDEX('LFA_Findings&Recommendations_6'!I$9:I$108,MATCH('LFA_Findings&Recom export'!$C11,'LFA_Findings&Recommendations_6'!$B$9:$B$108,0))=\"\",\"\",INDEX('LFA_Findings&Recommendations_6'!I$9:I$108,MATCH('LFA_Findings&Recom export'!$C11,'LFA_Findings&Recommendations_6'!$B$9:$B$108,0))),\"\")","v":""},{"$f":"IFERROR(IF(INDEX('LFA_Findings&Recommendations_6'!J$9:J$108,MATCH('LFA_Findings&Recom export'!$C11,'LFA_Findings&Recommendations_6'!$B$9:$B$108,0))=\"\",\"\",INDEX('LFA_Findings&Recommendations_6'!J$9:J$108,MATCH('LFA_Findings&Recom export'!$C11,'LFA_Findings&Recommendations_6'!$B$9:$B$108,0))),\"\")","v":""},{"$f":"IFERROR(IF(INDEX('LFA_Findings&Recommendations_6'!K$9:K$108,MATCH('LFA_Findings&Recom export'!$C11,'LFA_Findings&Recommendations_6'!$B$9:$B$108,0))=\"\",\"\",INDEX('LFA_Findings&Recommendations_6'!K$9:K$108,MATCH('LFA_Findings&Recom export'!$C11,'LFA_Findings&Recommendations_6'!$B$9:$B$108,0))),\"\")","v":""},{"$f":"IFERROR(IF(INDEX('LFA_Findings&Recommendations_6'!L$9:L$108,MATCH('LFA_Findings&Recom export'!$C11,'LFA_Findings&Recommendations_6'!$B$9:$B$108,0))=\"\",\"\",INDEX('LFA_Findings&Recommendations_6'!L$9:L$108,MATCH('LFA_Findings&Recom export'!$C11,'LFA_Findings&Recommendations_6'!$B$9:$B$108,0))),\"\")","v":""},null,false,{"$f":"IFERROR(IF(INDEX('LFA_Findings&Recommendations_6'!A$9:A$108,MATCH('LFA_Findings&Recom export'!$C11,'LFA_Findings&Recommendations_6'!$B$9:$B$108,0))=\"\",\"\",INDEX('LFA_Findings&Recommendations_6'!A$9:A$108,MATCH('LFA_Findings&Recom export'!$C11,'LFA_Findings&Recommendations_6'!$B$9:$B$108,0))),\"\")","v":false},{"$f":"IF(P11=TRUE,_xlfn.IFNA(VLOOKUP(D11,RiskData!$B$5:$D$11,3,FALSE), \"\"),\"\")","v":""},{"$f":"IF(P11=TRUE,_xlfn.IFNA(VLOOKUP(E11,RiskData!$F$13:$I$36,4,FALSE), \"\"),\"\")","v":""},{"$f":"IF(P11=TRUE,_xlfn.IFNA(INDEX(RiskData!$H$40:$H$290,MATCH(TRUE,INDEX(RIGHT(RiskData!$F$40:$F$290,255)=RIGHT(F11,255),0),0)), \"\"),\"\")","v":""},{"$f":"IF(OR(P11=TRUE,ISBLANK(D11)),'Admin Sheet'!$B$44,\"\")","v":""},{"$f":"IF(OR(ISBLANK(D11), P11=TRUE),'Admin Sheet'!$B$41,\"\")","v":""},"","","",""]
[null,9,"Finding9",{"$f":"IFERROR(IF(INDEX('LFA_Findings&Recommendations_6'!C$9:C$108,MATCH('LFA_Findings&Recom export'!$C12,'LFA_Findings&Recommendations_6'!$B$9:$B$108,0))=\"\",\"\",INDEX('LFA_Findings&Recommendations_6'!C$9:C$108,MATCH('LFA_Findings&Recom export'!$C12,'LFA_Findings&Recommendations_6'!$B$9:$B$108,0))),\"\")","v":""},{"$f":"IFERROR(IF(INDEX('LFA_Findings&Recommendations_6'!D$9:D$108,MATCH('LFA_Findings&Recom export'!$C12,'LFA_Findings&Recommendations_6'!$B$9:$B$108,0))=\"\",\"\",INDEX('LFA_Findings&Recommendations_6'!D$9:D$108,MATCH('LFA_Findings&Recom export'!$C12,'LFA_Findings&Recommendations_6'!$B$9:$B$108,0))),\"\")","v":""},{"$f":"IFERROR(IF(INDEX('LFA_Findings&Recommendations_6'!E$9:E$108,MATCH('LFA_Findings&Recom export'!$C12,'LFA_Findings&Recommendations_6'!$B$9:$B$108,0))=\"\",\"\",INDEX('LFA_Findings&Recommendations_6'!E$9:E$108,MATCH('LFA_Findings&Recom export'!$C12,'LFA_Findings&Recommendations_6'!$B$9:$B$108,0))),\"\")","v":""},{"$f":"IFERROR(IF(INDEX('LFA_Findings&Recommendations_6'!F$9:F$108,MATCH('LFA_Findings&Recom export'!$C12,'LFA_Findings&Recommendations_6'!$B$9:$B$108,0))=\"\",\"\",INDEX('LFA_Findings&Recommendations_6'!F$9:F$108,MATCH('LFA_Findings&Recom export'!$C12,'LFA_Findings&Recommendations_6'!$B$9:$B$108,0))),\"\")","v":""},{"$f":"IFERROR(IF(INDEX('LFA_Findings&Recommendations_6'!G$9:G$108,MATCH('LFA_Findings&Recom export'!$C12,'LFA_Findings&Recommendations_6'!$B$9:$B$108,0))=\"\",\"\",INDEX('LFA_Findings&Recommendations_6'!G$9:G$108,MATCH('LFA_Findings&Recom export'!$C12,'LFA_Findings&Recommendations_6'!$B$9:$B$108,0))),\"\")","v":""},{"$f":"IFERROR(IF(INDEX('LFA_Findings&Recommendations_6'!H$9:H$108,MATCH('LFA_Findings&Recom export'!$C12,'LFA_Findings&Recommendations_6'!$B$9:$B$108,0))=\"\",\"\",INDEX('LFA_Findings&Recommendations_6'!H$9:H$108,MATCH('LFA_Findings&Recom export'!$C12,'LFA_Findings&Recommendations_6'!$B$9:$B$108,0))),\"\")","v":""},{"$f":"IFERROR(IF(INDEX('LFA_Findings&Recommendations_6'!I$9:I$108,MATCH('LFA_Findings&Recom export'!$C12,'LFA_Findings&Recommendations_6'!$B$9:$B$108,0))=\"\",\"\",INDEX('LFA_Findings&Recommendations_6'!I$9:I$108,MATCH('LFA_Findings&Recom export'!$C12,'LFA_Findings&Recommendations_6'!$B$9:$B$108,0))),\"\")","v":""},{"$f":"IFERROR(IF(INDEX('LFA_Findings&Recommendations_6'!J$9:J$108,MATCH('LFA_Findings&Recom export'!$C12,'LFA_Findings&Recommendations_6'!$B$9:$B$108,0))=\"\",\"\",INDEX('LFA_Findings&Recommendations_6'!J$9:J$108,MATCH('LFA_Findings&Recom export'!$C12,'LFA_Findings&Recommendations_6'!$B$9:$B$108,0))),\"\")","v":""},{"$f":"IFERROR(IF(INDEX('LFA_Findings&Recommendations_6'!K$9:K$108,MATCH('LFA_Findings&Recom export'!$C12,'LFA_Findings&Recommendations_6'!$B$9:$B$108,0))=\"\",\"\",INDEX('LFA_Findings&Recommendations_6'!K$9:K$108,MATCH('LFA_Findings&Recom export'!$C12,'LFA_Findings&Recommendations_6'!$B$9:$B$108,0))),\"\")","v":""},{"$f":"IFERROR(IF(INDEX('LFA_Findings&Recommendations_6'!L$9:L$108,MATCH('LFA_Findings&Recom export'!$C12,'LFA_Findings&Recommendations_6'!$B$9:$B$108,0))=\"\",\"\",INDEX('LFA_Findings&Recommendations_6'!L$9:L$108,MATCH('LFA_Findings&Recom export'!$C12,'LFA_Findings&Recommendations_6'!$B$9:$B$108,0))),\"\")","v":""},null,false,{"$f":"IFERROR(IF(INDEX('LFA_Findings&Recommendations_6'!A$9:A$108,MATCH('LFA_Findings&Recom export'!$C12,'LFA_Findings&Recommendations_6'!$B$9:$B$108,0))=\"\",\"\",INDEX('LFA_Findings&Recommendations_6'!A$9:A$108,MATCH('LFA_Findings&Recom export'!$C12,'LFA_Findings&Recommendations_6'!$B$9:$B$108,0))),\"\")","v":false},{"$f":"IF(P12=TRUE,_xlfn.IFNA(VLOOKUP(D12,RiskData!$B$5:$D$11,3,FALSE), \"\"),\"\")","v":""},{"$f":"IF(P12=TRUE,_xlfn.IFNA(VLOOKUP(E12,RiskData!$F$13:$I$36,4,FALSE), \"\"),\"\")","v":""},{"$f":"IF(P12=TRUE,_xlfn.IFNA(INDEX(RiskData!$H$40:$H$290,MATCH(TRUE,INDEX(RIGHT(RiskData!$F$40:$F$290,255)=RIGHT(F12,255),0),0)), \"\"),\"\")","v":""},{"$f":"IF(OR(P12=TRUE,ISBLANK(D12)),'Admin Sheet'!$B$44,\"\")","v":""},{"$f":"IF(OR(ISBLANK(D12), P12=TRUE),'Admin Sheet'!$B$41,\"\")","v":""},"","","",""]
[null,10,"Finding10",{"$f":"IFERROR(IF(INDEX('LFA_Findings&Recommendations_6'!C$9:C$108,MATCH('LFA_Findings&Recom export'!$C13,'LFA_Findings&Recommendations_6'!$B$9:$B$108,0))=\"\",\"\",INDEX('LFA_Findings&Recommendations_6'!C$9:C$108,MATCH('LFA_Findings&Recom export'!$C13,'LFA_Findings&Recommendations_6'!$B$9:$B$108,0))),\"\")","v":""},{"$f":"IFERROR(IF(INDEX('LFA_Findings&Recommendations_6'!D$9:D$108,MATCH('LFA_Findings&Recom export'!$C13,'LFA_Findings&Recommendations_6'!$B$9:$B$108,0))=\"\",\"\",INDEX('LFA_Findings&Recommendations_6'!D$9:D$108,MATCH('LFA_Findings&Recom export'!$C13,'LFA_Findings&Recommendations_6'!$B$9:$B$108,0))),\"\")","v":""},{"$f":"IFERROR(IF(INDEX('LFA_Findings&Recommendations_6'!E$9:E$108,MATCH('LFA_Findings&Recom export'!$C13,'LFA_Findings&Recommendations_6'!$B$9:$B$108,0))=\"\",\"\",INDEX('LFA_Findings&Recommendations_6'!E$9:E$108,MATCH('LFA_Findings&Recom export'!$C13,'LFA_Findings&Recommendations_6'!$B$9:$B$108,0))),\"\")","v":""},{"$f":"IFERROR(IF(INDEX('LFA_Findings&Recommendations_6'!F$9:F$108,MATCH('LFA_Findings&Recom export'!$C13,'LFA_Findings&Recommendations_6'!$B$9:$B$108,0))=\"\",\"\",INDEX('LFA_Findings&Recommendations_6'!F$9:F$108,MATCH('LFA_Findings&Recom export'!$C13,'LFA_Findings&Recommendations_6'!$B$9:$B$108,0))),\"\")","v":""},{"$f":"IFERROR(IF(INDEX('LFA_Findings&Recommendations_6'!G$9:G$108,MATCH('LFA_Findings&Recom export'!$C13,'LFA_Findings&Recommendations_6'!$B$9:$B$108,0))=\"\",\"\",INDEX('LFA_Findings&Recommendations_6'!G$9:G$108,MATCH('LFA_Findings&Recom export'!$C13,'LFA_Findings&Recommendations_6'!$B$9:$B$108,0))),\"\")","v":""},{"$f":"IFERROR(IF(INDEX('LFA_Findings&Recommendations_6'!H$9:H$108,MATCH('LFA_Findings&Recom export'!$C13,'LFA_Findings&Recommendations_6'!$B$9:$B$108,0))=\"\",\"\",INDEX('LFA_Findings&Recommendations_6'!H$9:H$108,MATCH('LFA_Findings&Recom export'!$C13,'LFA_Findings&Recommendations_6'!$B$9:$B$108,0))),\"\")","v":""},{"$f":"IFERROR(IF(INDEX('LFA_Findings&Recommendations_6'!I$9:I$108,MATCH('LFA_Findings&Recom export'!$C13,'LFA_Findings&Recommendations_6'!$B$9:$B$108,0))=\"\",\"\",INDEX('LFA_Findings&Recommendations_6'!I$9:I$108,MATCH('LFA_Findings&Recom export'!$C13,'LFA_Findings&Recommendations_6'!$B$9:$B$108,0))),\"\")","v":""},{"$f":"IFERROR(IF(INDEX('LFA_Findings&Recommendations_6'!J$9:J$108,MATCH('LFA_Findings&Recom export'!$C13,'LFA_Findings&Recommendations_6'!$B$9:$B$108,0))=\"\",\"\",INDEX('LFA_Findings&Recommendations_6'!J$9:J$108,MATCH('LFA_Findings&Recom export'!$C13,'LFA_Findings&Recommendations_6'!$B$9:$B$108,0))),\"\")","v":""},{"$f":"IFERROR(IF(INDEX('LFA_Findings&Recommendations_6'!K$9:K$108,MATCH('LFA_Findings&Recom export'!$C13,'LFA_Findings&Recommendations_6'!$B$9:$B$108,0))=\"\",\"\",INDEX('LFA_Findings&Recommendations_6'!K$9:K$108,MATCH('LFA_Findings&Recom export'!$C13,'LFA_Findings&Recommendations_6'!$B$9:$B$108,0))),\"\")","v":""},{"$f":"IFERROR(IF(INDEX('LFA_Findings&Recommendations_6'!L$9:L$108,MATCH('LFA_Findings&Recom export'!$C13,'LFA_Findings&Recommendations_6'!$B$9:$B$108,0))=\"\",\"\",INDEX('LFA_Findings&Recommendations_6'!L$9:L$108,MATCH('LFA_Findings&Recom export'!$C13,'LFA_Findings&Recommendations_6'!$B$9:$B$108,0))),\"\")","v":""},null,false,{"$f":"IFERROR(IF(INDEX('LFA_Findings&Recommendations_6'!A$9:A$108,MATCH('LFA_Findings&Recom export'!$C13,'LFA_Findings&Recommendations_6'!$B$9:$B$108,0))=\"\",\"\",INDEX('LFA_Findings&Recommendations_6'!A$9:A$108,MATCH('LFA_Findings&Recom export'!$C13,'LFA_Findings&Recommendations_6'!$B$9:$B$108,0))),\"\")","v":false},{"$f":"IF(P13=TRUE,_xlfn.IFNA(VLOOKUP(D13,RiskData!$B$5:$D$11,3,FALSE), \"\"),\"\")","v":""},{"$f":"IF(P13=TRUE,_xlfn.IFNA(VLOOKUP(E13,RiskData!$F$13:$I$36,4,FALSE), \"\"),\"\")","v":""},{"$f":"IF(P13=TRUE,_xlfn.IFNA(INDEX(RiskData!$H$40:$H$290,MATCH(TRUE,INDEX(RIGHT(RiskData!$F$40:$F$290,255)=RIGHT(F13,255),0),0)), \"\"),\"\")","v":""},{"$f":"IF(OR(P13=TRUE,ISBLANK(D13)),'Admin Sheet'!$B$44,\"\")","v":""},{"$f":"IF(OR(ISBLANK(D13), P13=TRUE),'Admin Sheet'!$B$41,\"\")","v":""},"","","",""]
[null,11,"Finding11",{"$f":"IFERROR(IF(INDEX('LFA_Findings&Recommendations_6'!C$9:C$108,MATCH('LFA_Findings&Recom export'!$C14,'LFA_Findings&Recommendations_6'!$B$9:$B$108,0))=\"\",\"\",INDEX('LFA_Findings&Recommendations_6'!C$9:C$108,MATCH('LFA_Findings&Recom export'!$C14,'LFA_Findings&Recommendations_6'!$B$9:$B$108,0))),\"\")","v":""},{"$f":"IFERROR(IF(INDEX('LFA_Findings&Recommendations_6'!D$9:D$108,MATCH('LFA_Findings&Recom export'!$C14,'LFA_Findings&Recommendations_6'!$B$9:$B$108,0))=\"\",\"\",INDEX('LFA_Findings&Recommendations_6'!D$9:D$108,MATCH('LFA_Findings&Recom export'!$C14,'LFA_Findings&Recommendations_6'!$B$9:$B$108,0))),\"\")","v":""},{"$f":"IFERROR(IF(INDEX('LFA_Findings&Recommendations_6'!E$9:E$108,MATCH('LFA_Findings&Recom export'!$C14,'LFA_Findings&Recommendations_6'!$B$9:$B$108,0))=\"\",\"\",INDEX('LFA_Findings&Recommendations_6'!E$9:E$108,MATCH('LFA_Findings&Recom export'!$C14,'LFA_Findings&Recommendations_6'!$B$9:$B$108,0))),\"\")","v":""},{"$f":"IFERROR(IF(INDEX('LFA_Findings&Recommendations_6'!F$9:F$108,MATCH('LFA_Findings&Recom export'!$C14,'LFA_Findings&Recommendations_6'!$B$9:$B$108,0))=\"\",\"\",INDEX('LFA_Findings&Recommendations_6'!F$9:F$108,MATCH('LFA_Findings&Recom export'!$C14,'LFA_Findings&Recommendations_6'!$B$9:$B$108,0))),\"\")","v":""},{"$f":"IFERROR(IF(INDEX('LFA_Findings&Recommendations_6'!G$9:G$108,MATCH('LFA_Findings&Recom export'!$C14,'LFA_Findings&Recommendations_6'!$B$9:$B$108,0))=\"\",\"\",INDEX('LFA_Findings&Recommendations_6'!G$9:G$108,MATCH('LFA_Findings&Recom export'!$C14,'LFA_Findings&Recommendations_6'!$B$9:$B$108,0))),\"\")","v":""},{"$f":"IFERROR(IF(INDEX('LFA_Findings&Recommendations_6'!H$9:H$108,MATCH('LFA_Findings&Recom export'!$C14,'LFA_Findings&Recommendations_6'!$B$9:$B$108,0))=\"\",\"\",INDEX('LFA_Findings&Recommendations_6'!H$9:H$108,MATCH('LFA_Findings&Recom export'!$C14,'LFA_Findings&Recommendations_6'!$B$9:$B$108,0))),\"\")","v":""},{"$f":"IFERROR(IF(INDEX('LFA_Findings&Recommendations_6'!I$9:I$108,MATCH('LFA_Findings&Recom export'!$C14,'LFA_Findings&Recommendations_6'!$B$9:$B$108,0))=\"\",\"\",INDEX('LFA_Findings&Recommendations_6'!I$9:I$108,MATCH('LFA_Findings&Recom export'!$C14,'LFA_Findings&Recommendations_6'!$B$9:$B$108,0))),\"\")","v":""},{"$f":"IFERROR(IF(INDEX('LFA_Findings&Recommendations_6'!J$9:J$108,MATCH('LFA_Findings&Recom export'!$C14,'LFA_Findings&Recommendations_6'!$B$9:$B$108,0))=\"\",\"\",INDEX('LFA_Findings&Recommendations_6'!J$9:J$108,MATCH('LFA_Findings&Recom export'!$C14,'LFA_Findings&Recommendations_6'!$B$9:$B$108,0))),\"\")","v":""},{"$f":"IFERROR(IF(INDEX('LFA_Findings&Recommendations_6'!K$9:K$108,MATCH('LFA_Findings&Recom export'!$C14,'LFA_Findings&Recommendations_6'!$B$9:$B$108,0))=\"\",\"\",INDEX('LFA_Findings&Recommendations_6'!K$9:K$108,MATCH('LFA_Findings&Recom export'!$C14,'LFA_Findings&Recommendations_6'!$B$9:$B$108,0))),\"\")","v":""},{"$f":"IFERROR(IF(INDEX('LFA_Findings&Recommendations_6'!L$9:L$108,MATCH('LFA_Findings&Recom export'!$C14,'LFA_Findings&Recommendations_6'!$B$9:$B$108,0))=\"\",\"\",INDEX('LFA_Findings&Recommendations_6'!L$9:L$108,MATCH('LFA_Findings&Recom export'!$C14,'LFA_Findings&Recommendations_6'!$B$9:$B$108,0))),\"\")","v":""},null,false,{"$f":"IFERROR(IF(INDEX('LFA_Findings&Recommendations_6'!A$9:A$108,MATCH('LFA_Findings&Recom export'!$C14,'LFA_Findings&Recommendations_6'!$B$9:$B$108,0))=\"\",\"\",INDEX('LFA_Findings&Recommendations_6'!A$9:A$108,MATCH('LFA_Findings&Recom export'!$C14,'LFA_Findings&Recommendations_6'!$B$9:$B$108,0))),\"\")","v":false},{"$f":"IF(P14=TRUE,_xlfn.IFNA(VLOOKUP(D14,RiskData!$B$5:$D$11,3,FALSE), \"\"),\"\")","v":""},{"$f":"IF(P14=TRUE,_xlfn.IFNA(VLOOKUP(E14,RiskData!$F$13:$I$36,4,FALSE), \"\"),\"\")","v":""},{"$f":"IF(P14=TRUE,_xlfn.IFNA(INDEX(RiskData!$H$40:$H$290,MATCH(TRUE,INDEX(RIGHT(RiskData!$F$40:$F$290,255)=RIGHT(F14,255),0),0)), \"\"),\"\")","v":""},{"$f":"IF(OR(P14=TRUE,ISBLANK(D14)),'Admin Sheet'!$B$44,\"\")","v":""},{"$f":"IF(OR(ISBLANK(D14), P14=TRUE),'Admin Sheet'!$B$41,\"\")","v":""},"","","",""]
[null,12,"Finding12",{"$f":"IFERROR(IF(INDEX('LFA_Findings&Recommendations_6'!C$9:C$108,MATCH('LFA_Findings&Recom export'!$C15,'LFA_Findings&Recommendations_6'!$B$9:$B$108,0))=\"\",\"\",INDEX('LFA_Findings&Recommendations_6'!C$9:C$108,MATCH('LFA_Findings&Recom export'!$C15,'LFA_Findings&Recommendations_6'!$B$9:$B$108,0))),\"\")","v":""},{"$f":"IFERROR(IF(INDEX('LFA_Findings&Recommendations_6'!D$9:D$108,MATCH('LFA_Findings&Recom export'!$C15,'LFA_Findings&Recommendations_6'!$B$9:$B$108,0))=\"\",\"\",INDEX('LFA_Findings&Recommendations_6'!D$9:D$108,MATCH('LFA_Findings&Recom export'!$C15,'LFA_Findings&Recommendations_6'!$B$9:$B$108,0))),\"\")","v":""},{"$f":"IFERROR(IF(INDEX('LFA_Findings&Recommendations_6'!E$9:E$108,MATCH('LFA_Findings&Recom export'!$C15,'LFA_Findings&Recommendations_6'!$B$9:$B$108,0))=\"\",\"\",INDEX('LFA_Findings&Recommendations_6'!E$9:E$108,MATCH('LFA_Findings&Recom export'!$C15,'LFA_Findings&Recommendations_6'!$B$9:$B$108,0))),\"\")","v":""},{"$f":"IFERROR(IF(INDEX('LFA_Findings&Recommendations_6'!F$9:F$108,MATCH('LFA_Findings&Recom export'!$C15,'LFA_Findings&Recommendations_6'!$B$9:$B$108,0))=\"\",\"\",INDEX('LFA_Findings&Recommendations_6'!F$9:F$108,MATCH('LFA_Findings&Recom export'!$C15,'LFA_Findings&Recommendations_6'!$B$9:$B$108,0))),\"\")","v":""},{"$f":"IFERROR(IF(INDEX('LFA_Findings&Recommendations_6'!G$9:G$108,MATCH('LFA_Findings&Recom export'!$C15,'LFA_Findings&Recommendations_6'!$B$9:$B$108,0))=\"\",\"\",INDEX('LFA_Findings&Recommendations_6'!G$9:G$108,MATCH('LFA_Findings&Recom export'!$C15,'LFA_Findings&Recommendations_6'!$B$9:$B$108,0))),\"\")","v":""},{"$f":"IFERROR(IF(INDEX('LFA_Findings&Recommendations_6'!H$9:H$108,MATCH('LFA_Findings&Recom export'!$C15,'LFA_Findings&Recommendations_6'!$B$9:$B$108,0))=\"\",\"\",INDEX('LFA_Findings&Recommendations_6'!H$9:H$108,MATCH('LFA_Findings&Recom export'!$C15,'LFA_Findings&Recommendations_6'!$B$9:$B$108,0))),\"\")","v":""},{"$f":"IFERROR(IF(INDEX('LFA_Findings&Recommendations_6'!I$9:I$108,MATCH('LFA_Findings&Recom export'!$C15,'LFA_Findings&Recommendations_6'!$B$9:$B$108,0))=\"\",\"\",INDEX('LFA_Findings&Recommendations_6'!I$9:I$108,MATCH('LFA_Findings&Recom export'!$C15,'LFA_Findings&Recommendations_6'!$B$9:$B$108,0))),\"\")","v":""},{"$f":"IFERROR(IF(INDEX('LFA_Findings&Recommendations_6'!J$9:J$108,MATCH('LFA_Findings&Recom export'!$C15,'LFA_Findings&Recommendations_6'!$B$9:$B$108,0))=\"\",\"\",INDEX('LFA_Findings&Recommendations_6'!J$9:J$108,MATCH('LFA_Findings&Recom export'!$C15,'LFA_Findings&Recommendations_6'!$B$9:$B$108,0))),\"\")","v":""},{"$f":"IFERROR(IF(INDEX('LFA_Findings&Recommendations_6'!K$9:K$108,MATCH('LFA_Findings&Recom export'!$C15,'LFA_Findings&Recommendations_6'!$B$9:$B$108,0))=\"\",\"\",INDEX('LFA_Findings&Recommendations_6'!K$9:K$108,MATCH('LFA_Findings&Recom export'!$C15,'LFA_Findings&Recommendations_6'!$B$9:$B$108,0))),\"\")","v":""},{"$f":"IFERROR(IF(INDEX('LFA_Findings&Recommendations_6'!L$9:L$108,MATCH('LFA_Findings&Recom export'!$C15,'LFA_Findings&Recommendations_6'!$B$9:$B$108,0))=\"\",\"\",INDEX('LFA_Findings&Recommendations_6'!L$9:L$108,MATCH('LFA_Findings&Recom export'!$C15,'LFA_Findings&Recommendations_6'!$B$9:$B$108,0))),\"\")","v":""},null,false,{"$f":"IFERROR(IF(INDEX('LFA_Findings&Recommendations_6'!A$9:A$108,MATCH('LFA_Findings&Recom export'!$C15,'LFA_Findings&Recommendations_6'!$B$9:$B$108,0))=\"\",\"\",INDEX('LFA_Findings&Recommendations_6'!A$9:A$108,MATCH('LFA_Findings&Recom export'!$C15,'LFA_Findings&Recommendations_6'!$B$9:$B$108,0))),\"\")","v":false},{"$f":"IF(P15=TRUE,_xlfn.IFNA(VLOOKUP(D15,RiskData!$B$5:$D$11,3,FALSE), \"\"),\"\")","v":""},{"$f":"IF(P15=TRUE,_xlfn.IFNA(VLOOKUP(E15,RiskData!$F$13:$I$36,4,FALSE), \"\"),\"\")","v":""},{"$f":"IF(P15=TRUE,_xlfn.IFNA(INDEX(RiskData!$H$40:$H$290,MATCH(TRUE,INDEX(RIGHT(RiskData!$F$40:$F$290,255)=RIGHT(F15,255),0),0)), \"\"),\"\")","v":""},{"$f":"IF(OR(P15=TRUE,ISBLANK(D15)),'Admin Sheet'!$B$44,\"\")","v":""},{"$f":"IF(OR(ISBLANK(D15), P15=TRUE),'Admin Sheet'!$B$41,\"\")","v":""},"","","",""]
[null,13,"Finding13",{"$f":"IFERROR(IF(INDEX('LFA_Findings&Recommendations_6'!C$9:C$108,MATCH('LFA_Findings&Recom export'!$C16,'LFA_Findings&Recommendations_6'!$B$9:$B$108,0))=\"\",\"\",INDEX('LFA_Findings&Recommendations_6'!C$9:C$108,MATCH('LFA_Findings&Recom export'!$C16,'LFA_Findings&Recommendations_6'!$B$9:$B$108,0))),\"\")","v":""},{"$f":"IFERROR(IF(INDEX('LFA_Findings&Recommendations_6'!D$9:D$108,MATCH('LFA_Findings&Recom export'!$C16,'LFA_Findings&Recommendations_6'!$B$9:$B$108,0))=\"\",\"\",INDEX('LFA_Findings&Recommendations_6'!D$9:D$108,MATCH('LFA_Findings&Recom export'!$C16,'LFA_Findings&Recommendations_6'!$B$9:$B$108,0))),\"\")","v":""},{"$f":"IFERROR(IF(INDEX('LFA_Findings&Recommendations_6'!E$9:E$108,MATCH('LFA_Findings&Recom export'!$C16,'LFA_Findings&Recommendations_6'!$B$9:$B$108,0))=\"\",\"\",INDEX('LFA_Findings&Recommendations_6'!E$9:E$108,MATCH('LFA_Findings&Recom export'!$C16,'LFA_Findings&Recommendations_6'!$B$9:$B$108,0))),\"\")","v":""},{"$f":"IFERROR(IF(INDEX('LFA_Findings&Recommendations_6'!F$9:F$108,MATCH('LFA_Findings&Recom export'!$C16,'LFA_Findings&Recommendations_6'!$B$9:$B$108,0))=\"\",\"\",INDEX('LFA_Findings&Recommendations_6'!F$9:F$108,MATCH('LFA_Findings&Recom export'!$C16,'LFA_Findings&Recommendations_6'!$B$9:$B$108,0))),\"\")","v":""},{"$f":"IFERROR(IF(INDEX('LFA_Findings&Recommendations_6'!G$9:G$108,MATCH('LFA_Findings&Recom export'!$C16,'LFA_Findings&Recommendations_6'!$B$9:$B$108,0))=\"\",\"\",INDEX('LFA_Findings&Recommendations_6'!G$9:G$108,MATCH('LFA_Findings&Recom export'!$C16,'LFA_Findings&Recommendations_6'!$B$9:$B$108,0))),\"\")","v":""},{"$f":"IFERROR(IF(INDEX('LFA_Findings&Recommendations_6'!H$9:H$108,MATCH('LFA_Findings&Recom export'!$C16,'LFA_Findings&Recommendations_6'!$B$9:$B$108,0))=\"\",\"\",INDEX('LFA_Findings&Recommendations_6'!H$9:H$108,MATCH('LFA_Findings&Recom export'!$C16,'LFA_Findings&Recommendations_6'!$B$9:$B$108,0))),\"\")","v":""},{"$f":"IFERROR(IF(INDEX('LFA_Findings&Recommendations_6'!I$9:I$108,MATCH('LFA_Findings&Recom export'!$C16,'LFA_Findings&Recommendations_6'!$B$9:$B$108,0))=\"\",\"\",INDEX('LFA_Findings&Recommendations_6'!I$9:I$108,MATCH('LFA_Findings&Recom export'!$C16,'LFA_Findings&Recommendations_6'!$B$9:$B$108,0))),\"\")","v":""},{"$f":"IFERROR(IF(INDEX('LFA_Findings&Recommendations_6'!J$9:J$108,MATCH('LFA_Findings&Recom export'!$C16,'LFA_Findings&Recommendations_6'!$B$9:$B$108,0))=\"\",\"\",INDEX('LFA_Findings&Recommendations_6'!J$9:J$108,MATCH('LFA_Findings&Recom export'!$C16,'LFA_Findings&Recommendations_6'!$B$9:$B$108,0))),\"\")","v":""},{"$f":"IFERROR(IF(INDEX('LFA_Findings&Recommendations_6'!K$9:K$108,MATCH('LFA_Findings&Recom export'!$C16,'LFA_Findings&Recommendations_6'!$B$9:$B$108,0))=\"\",\"\",INDEX('LFA_Findings&Recommendations_6'!K$9:K$108,MATCH('LFA_Findings&Recom export'!$C16,'LFA_Findings&Recommendations_6'!$B$9:$B$108,0))),\"\")","v":""},{"$f":"IFERROR(IF(INDEX('LFA_Findings&Recommendations_6'!L$9:L$108,MATCH('LFA_Findings&Recom export'!$C16,'LFA_Findings&Recommendations_6'!$B$9:$B$108,0))=\"\",\"\",INDEX('LFA_Findings&Recommendations_6'!L$9:L$108,MATCH('LFA_Findings&Recom export'!$C16,'LFA_Findings&Recommendations_6'!$B$9:$B$108,0))),\"\")","v":""},null,false,{"$f":"IFERROR(IF(INDEX('LFA_Findings&Recommendations_6'!A$9:A$108,MATCH('LFA_Findings&Recom export'!$C16,'LFA_Findings&Recommendations_6'!$B$9:$B$108,0))=\"\",\"\",INDEX('LFA_Findings&Recommendations_6'!A$9:A$108,MATCH('LFA_Findings&Recom export'!$C16,'LFA_Findings&Recommendations_6'!$B$9:$B$108,0))),\"\")","v":false},{"$f":"IF(P16=TRUE,_xlfn.IFNA(VLOOKUP(D16,RiskData!$B$5:$D$11,3,FALSE), \"\"),\"\")","v":""},{"$f":"IF(P16=TRUE,_xlfn.IFNA(VLOOKUP(E16,RiskData!$F$13:$I$36,4,FALSE), \"\"),\"\")","v":""},{"$f":"IF(P16=TRUE,_xlfn.IFNA(INDEX(RiskData!$H$40:$H$290,MATCH(TRUE,INDEX(RIGHT(RiskData!$F$40:$F$290,255)=RIGHT(F16,255),0),0)), \"\"),\"\")","v":""},{"$f":"IF(OR(P16=TRUE,ISBLANK(D16)),'Admin Sheet'!$B$44,\"\")","v":""},{"$f":"IF(OR(ISBLANK(D16), P16=TRUE),'Admin Sheet'!$B$41,\"\")","v":""},"","","",""]
[null,14,"Finding14",{"$f":"IFERROR(IF(INDEX('LFA_Findings&Recommendations_6'!C$9:C$108,MATCH('LFA_Findings&Recom export'!$C17,'LFA_Findings&Recommendations_6'!$B$9:$B$108,0))=\"\",\"\",INDEX('LFA_Findings&Recommendations_6'!C$9:C$108,MATCH('LFA_Findings&Recom export'!$C17,'LFA_Findings&Recommendations_6'!$B$9:$B$108,0))),\"\")","v":""},{"$f":"IFERROR(IF(INDEX('LFA_Findings&Recommendations_6'!D$9:D$108,MATCH('LFA_Findings&Recom export'!$C17,'LFA_Findings&Recommendations_6'!$B$9:$B$108,0))=\"\",\"\",INDEX('LFA_Findings&Recommendations_6'!D$9:D$108,MATCH('LFA_Findings&Recom export'!$C17,'LFA_Findings&Recommendations_6'!$B$9:$B$108,0))),\"\")","v":""},{"$f":"IFERROR(IF(INDEX('LFA_Findings&Recommendations_6'!E$9:E$108,MATCH('LFA_Findings&Recom export'!$C17,'LFA_Findings&Recommendations_6'!$B$9:$B$108,0))=\"\",\"\",INDEX('LFA_Findings&Recommendations_6'!E$9:E$108,MATCH('LFA_Findings&Recom export'!$C17,'LFA_Findings&Recommendations_6'!$B$9:$B$108,0))),\"\")","v":""},{"$f":"IFERROR(IF(INDEX('LFA_Findings&Recommendations_6'!F$9:F$108,MATCH('LFA_Findings&Recom export'!$C17,'LFA_Findings&Recommendations_6'!$B$9:$B$108,0))=\"\",\"\",INDEX('LFA_Findings&Recommendations_6'!F$9:F$108,MATCH('LFA_Findings&Recom export'!$C17,'LFA_Findings&Recommendations_6'!$B$9:$B$108,0))),\"\")","v":""},{"$f":"IFERROR(IF(INDEX('LFA_Findings&Recommendations_6'!G$9:G$108,MATCH('LFA_Findings&Recom export'!$C17,'LFA_Findings&Recommendations_6'!$B$9:$B$108,0))=\"\",\"\",INDEX('LFA_Findings&Recommendations_6'!G$9:G$108,MATCH('LFA_Findings&Recom export'!$C17,'LFA_Findings&Recommendations_6'!$B$9:$B$108,0))),\"\")","v":""},{"$f":"IFERROR(IF(INDEX('LFA_Findings&Recommendations_6'!H$9:H$108,MATCH('LFA_Findings&Recom export'!$C17,'LFA_Findings&Recommendations_6'!$B$9:$B$108,0))=\"\",\"\",INDEX('LFA_Findings&Recommendations_6'!H$9:H$108,MATCH('LFA_Findings&Recom export'!$C17,'LFA_Findings&Recommendations_6'!$B$9:$B$108,0))),\"\")","v":""},{"$f":"IFERROR(IF(INDEX('LFA_Findings&Recommendations_6'!I$9:I$108,MATCH('LFA_Findings&Recom export'!$C17,'LFA_Findings&Recommendations_6'!$B$9:$B$108,0))=\"\",\"\",INDEX('LFA_Findings&Recommendations_6'!I$9:I$108,MATCH('LFA_Findings&Recom export'!$C17,'LFA_Findings&Recommendations_6'!$B$9:$B$108,0))),\"\")","v":""},{"$f":"IFERROR(IF(INDEX('LFA_Findings&Recommendations_6'!J$9:J$108,MATCH('LFA_Findings&Recom export'!$C17,'LFA_Findings&Recommendations_6'!$B$9:$B$108,0))=\"\",\"\",INDEX('LFA_Findings&Recommendations_6'!J$9:J$108,MATCH('LFA_Findings&Recom export'!$C17,'LFA_Findings&Recommendations_6'!$B$9:$B$108,0))),\"\")","v":""},{"$f":"IFERROR(IF(INDEX('LFA_Findings&Recommendations_6'!K$9:K$108,MATCH('LFA_Findings&Recom export'!$C17,'LFA_Findings&Recommendations_6'!$B$9:$B$108,0))=\"\",\"\",INDEX('LFA_Findings&Recommendations_6'!K$9:K$108,MATCH('LFA_Findings&Recom export'!$C17,'LFA_Findings&Recommendations_6'!$B$9:$B$108,0))),\"\")","v":""},{"$f":"IFERROR(IF(INDEX('LFA_Findings&Recommendations_6'!L$9:L$108,MATCH('LFA_Findings&Recom export'!$C17,'LFA_Findings&Recommendations_6'!$B$9:$B$108,0))=\"\",\"\",INDEX('LFA_Findings&Recommendations_6'!L$9:L$108,MATCH('LFA_Findings&Recom export'!$C17,'LFA_Findings&Recommendations_6'!$B$9:$B$108,0))),\"\")","v":""},null,false,{"$f":"IFERROR(IF(INDEX('LFA_Findings&Recommendations_6'!A$9:A$108,MATCH('LFA_Findings&Recom export'!$C17,'LFA_Findings&Recommendations_6'!$B$9:$B$108,0))=\"\",\"\",INDEX('LFA_Findings&Recommendations_6'!A$9:A$108,MATCH('LFA_Findings&Recom export'!$C17,'LFA_Findings&Recommendations_6'!$B$9:$B$108,0))),\"\")","v":false},{"$f":"IF(P17=TRUE,_xlfn.IFNA(VLOOKUP(D17,RiskData!$B$5:$D$11,3,FALSE), \"\"),\"\")","v":""},{"$f":"IF(P17=TRUE,_xlfn.IFNA(VLOOKUP(E17,RiskData!$F$13:$I$36,4,FALSE), \"\"),\"\")","v":""},{"$f":"IF(P17=TRUE,_xlfn.IFNA(INDEX(RiskData!$H$40:$H$290,MATCH(TRUE,INDEX(RIGHT(RiskData!$F$40:$F$290,255)=RIGHT(F17,255),0),0)), \"\"),\"\")","v":""},{"$f":"IF(OR(P17=TRUE,ISBLANK(D17)),'Admin Sheet'!$B$44,\"\")","v":""},{"$f":"IF(OR(ISBLANK(D17), P17=TRUE),'Admin Sheet'!$B$41,\"\")","v":""},"","","",""]
[null,15,"Finding15",{"$f":"IFERROR(IF(INDEX('LFA_Findings&Recommendations_6'!C$9:C$108,MATCH('LFA_Findings&Recom export'!$C18,'LFA_Findings&Recommendations_6'!$B$9:$B$108,0))=\"\",\"\",INDEX('LFA_Findings&Recommendations_6'!C$9:C$108,MATCH('LFA_Findings&Recom export'!$C18,'LFA_Findings&Recommendations_6'!$B$9:$B$108,0))),\"\")","v":""},{"$f":"IFERROR(IF(INDEX('LFA_Findings&Recommendations_6'!D$9:D$108,MATCH('LFA_Findings&Recom export'!$C18,'LFA_Findings&Recommendations_6'!$B$9:$B$108,0))=\"\",\"\",INDEX('LFA_Findings&Recommendations_6'!D$9:D$108,MATCH('LFA_Findings&Recom export'!$C18,'LFA_Findings&Recommendations_6'!$B$9:$B$108,0))),\"\")","v":""},{"$f":"IFERROR(IF(INDEX('LFA_Findings&Recommendations_6'!E$9:E$108,MATCH('LFA_Findings&Recom export'!$C18,'LFA_Findings&Recommendations_6'!$B$9:$B$108,0))=\"\",\"\",INDEX('LFA_Findings&Recommendations_6'!E$9:E$108,MATCH('LFA_Findings&Recom export'!$C18,'LFA_Findings&Recommendations_6'!$B$9:$B$108,0))),\"\")","v":""},{"$f":"IFERROR(IF(INDEX('LFA_Findings&Recommendations_6'!F$9:F$108,MATCH('LFA_Findings&Recom export'!$C18,'LFA_Findings&Recommendations_6'!$B$9:$B$108,0))=\"\",\"\",INDEX('LFA_Findings&Recommendations_6'!F$9:F$108,MATCH('LFA_Findings&Recom export'!$C18,'LFA_Findings&Recommendations_6'!$B$9:$B$108,0))),\"\")","v":""},{"$f":"IFERROR(IF(INDEX('LFA_Findings&Recommendations_6'!G$9:G$108,MATCH('LFA_Findings&Recom export'!$C18,'LFA_Findings&Recommendations_6'!$B$9:$B$108,0))=\"\",\"\",INDEX('LFA_Findings&Recommendations_6'!G$9:G$108,MATCH('LFA_Findings&Recom export'!$C18,'LFA_Findings&Recommendations_6'!$B$9:$B$108,0))),\"\")","v":""},{"$f":"IFERROR(IF(INDEX('LFA_Findings&Recommendations_6'!H$9:H$108,MATCH('LFA_Findings&Recom export'!$C18,'LFA_Findings&Recommendations_6'!$B$9:$B$108,0))=\"\",\"\",INDEX('LFA_Findings&Recommendations_6'!H$9:H$108,MATCH('LFA_Findings&Recom export'!$C18,'LFA_Findings&Recommendations_6'!$B$9:$B$108,0))),\"\")","v":""},{"$f":"IFERROR(IF(INDEX('LFA_Findings&Recommendations_6'!I$9:I$108,MATCH('LFA_Findings&Recom export'!$C18,'LFA_Findings&Recommendations_6'!$B$9:$B$108,0))=\"\",\"\",INDEX('LFA_Findings&Recommendations_6'!I$9:I$108,MATCH('LFA_Findings&Recom export'!$C18,'LFA_Findings&Recommendations_6'!$B$9:$B$108,0))),\"\")","v":""},{"$f":"IFERROR(IF(INDEX('LFA_Findings&Recommendations_6'!J$9:J$108,MATCH('LFA_Findings&Recom export'!$C18,'LFA_Findings&Recommendations_6'!$B$9:$B$108,0))=\"\",\"\",INDEX('LFA_Findings&Recommendations_6'!J$9:J$108,MATCH('LFA_Findings&Recom export'!$C18,'LFA_Findings&Recommendations_6'!$B$9:$B$108,0))),\"\")","v":""},{"$f":"IFERROR(IF(INDEX('LFA_Findings&Recommendations_6'!K$9:K$108,MATCH('LFA_Findings&Recom export'!$C18,'LFA_Findings&Recommendations_6'!$B$9:$B$108,0))=\"\",\"\",INDEX('LFA_Findings&Recommendations_6'!K$9:K$108,MATCH('LFA_Findings&Recom export'!$C18,'LFA_Findings&Recommendations_6'!$B$9:$B$108,0))),\"\")","v":""},{"$f":"IFERROR(IF(INDEX('LFA_Findings&Recommendations_6'!L$9:L$108,MATCH('LFA_Findings&Recom export'!$C18,'LFA_Findings&Recommendations_6'!$B$9:$B$108,0))=\"\",\"\",INDEX('LFA_Findings&Recommendations_6'!L$9:L$108,MATCH('LFA_Findings&Recom export'!$C18,'LFA_Findings&Recommendations_6'!$B$9:$B$108,0))),\"\")","v":""},null,false,{"$f":"IFERROR(IF(INDEX('LFA_Findings&Recommendations_6'!A$9:A$108,MATCH('LFA_Findings&Recom export'!$C18,'LFA_Findings&Recommendations_6'!$B$9:$B$108,0))=\"\",\"\",INDEX('LFA_Findings&Recommendations_6'!A$9:A$108,MATCH('LFA_Findings&Recom export'!$C18,'LFA_Findings&Recommendations_6'!$B$9:$B$108,0))),\"\")","v":false},{"$f":"IF(P18=TRUE,_xlfn.IFNA(VLOOKUP(D18,RiskData!$B$5:$D$11,3,FALSE), \"\"),\"\")","v":""},{"$f":"IF(P18=TRUE,_xlfn.IFNA(VLOOKUP(E18,RiskData!$F$13:$I$36,4,FALSE), \"\"),\"\")","v":""},{"$f":"IF(P18=TRUE,_xlfn.IFNA(INDEX(RiskData!$H$40:$H$290,MATCH(TRUE,INDEX(RIGHT(RiskData!$F$40:$F$290,255)=RIGHT(F18,255),0),0)), \"\"),\"\")","v":""},{"$f":"IF(OR(P18=TRUE,ISBLANK(D18)),'Admin Sheet'!$B$44,\"\")","v":""},{"$f":"IF(OR(ISBLANK(D18), P18=TRUE),'Admin Sheet'!$B$41,\"\")","v":""},"","","",""]
[null,16,"Finding16",{"$f":"IFERROR(IF(INDEX('LFA_Findings&Recommendations_6'!C$9:C$108,MATCH('LFA_Findings&Recom export'!$C19,'LFA_Findings&Recommendations_6'!$B$9:$B$108,0))=\"\",\"\",INDEX('LFA_Findings&Recommendations_6'!C$9:C$108,MATCH('LFA_Findings&Recom export'!$C19,'LFA_Findings&Recommendations_6'!$B$9:$B$108,0))),\"\")","v":""},{"$f":"IFERROR(IF(INDEX('LFA_Findings&Recommendations_6'!D$9:D$108,MATCH('LFA_Findings&Recom export'!$C19,'LFA_Findings&Recommendations_6'!$B$9:$B$108,0))=\"\",\"\",INDEX('LFA_Findings&Recommendations_6'!D$9:D$108,MATCH('LFA_Findings&Recom export'!$C19,'LFA_Findings&Recommendations_6'!$B$9:$B$108,0))),\"\")","v":""},{"$f":"IFERROR(IF(INDEX('LFA_Findings&Recommendations_6'!E$9:E$108,MATCH('LFA_Findings&Recom export'!$C19,'LFA_Findings&Recommendations_6'!$B$9:$B$108,0))=\"\",\"\",INDEX('LFA_Findings&Recommendations_6'!E$9:E$108,MATCH('LFA_Findings&Recom export'!$C19,'LFA_Findings&Recommendations_6'!$B$9:$B$108,0))),\"\")","v":""},{"$f":"IFERROR(IF(INDEX('LFA_Findings&Recommendations_6'!F$9:F$108,MATCH('LFA_Findings&Recom export'!$C19,'LFA_Findings&Recommendations_6'!$B$9:$B$108,0))=\"\",\"\",INDEX('LFA_Findings&Recommendations_6'!F$9:F$108,MATCH('LFA_Findings&Recom export'!$C19,'LFA_Findings&Recommendations_6'!$B$9:$B$108,0))),\"\")","v":""},{"$f":"IFERROR(IF(INDEX('LFA_Findings&Recommendations_6'!G$9:G$108,MATCH('LFA_Findings&Recom export'!$C19,'LFA_Findings&Recommendations_6'!$B$9:$B$108,0))=\"\",\"\",INDEX('LFA_Findings&Recommendations_6'!G$9:G$108,MATCH('LFA_Findings&Recom export'!$C19,'LFA_Findings&Recommendations_6'!$B$9:$B$108,0))),\"\")","v":""},{"$f":"IFERROR(IF(INDEX('LFA_Findings&Recommendations_6'!H$9:H$108,MATCH('LFA_Findings&Recom export'!$C19,'LFA_Findings&Recommendations_6'!$B$9:$B$108,0))=\"\",\"\",INDEX('LFA_Findings&Recommendations_6'!H$9:H$108,MATCH('LFA_Findings&Recom export'!$C19,'LFA_Findings&Recommendations_6'!$B$9:$B$108,0))),\"\")","v":""},{"$f":"IFERROR(IF(INDEX('LFA_Findings&Recommendations_6'!I$9:I$108,MATCH('LFA_Findings&Recom export'!$C19,'LFA_Findings&Recommendations_6'!$B$9:$B$108,0))=\"\",\"\",INDEX('LFA_Findings&Recommendations_6'!I$9:I$108,MATCH('LFA_Findings&Recom export'!$C19,'LFA_Findings&Recommendations_6'!$B$9:$B$108,0))),\"\")","v":""},{"$f":"IFERROR(IF(INDEX('LFA_Findings&Recommendations_6'!J$9:J$108,MATCH('LFA_Findings&Recom export'!$C19,'LFA_Findings&Recommendations_6'!$B$9:$B$108,0))=\"\",\"\",INDEX('LFA_Findings&Recommendations_6'!J$9:J$108,MATCH('LFA_Findings&Recom export'!$C19,'LFA_Findings&Recommendations_6'!$B$9:$B$108,0))),\"\")","v":""},{"$f":"IFERROR(IF(INDEX('LFA_Findings&Recommendations_6'!K$9:K$108,MATCH('LFA_Findings&Recom export'!$C19,'LFA_Findings&Recommendations_6'!$B$9:$B$108,0))=\"\",\"\",INDEX('LFA_Findings&Recommendations_6'!K$9:K$108,MATCH('LFA_Findings&Recom export'!$C19,'LFA_Findings&Recommendations_6'!$B$9:$B$108,0))),\"\")","v":""},{"$f":"IFERROR(IF(INDEX('LFA_Findings&Recommendations_6'!L$9:L$108,MATCH('LFA_Findings&Recom export'!$C19,'LFA_Findings&Recommendations_6'!$B$9:$B$108,0))=\"\",\"\",INDEX('LFA_Findings&Recommendations_6'!L$9:L$108,MATCH('LFA_Findings&Recom export'!$C19,'LFA_Findings&Recommendations_6'!$B$9:$B$108,0))),\"\")","v":""},null,false,{"$f":"IFERROR(IF(INDEX('LFA_Findings&Recommendations_6'!A$9:A$108,MATCH('LFA_Findings&Recom export'!$C19,'LFA_Findings&Recommendations_6'!$B$9:$B$108,0))=\"\",\"\",INDEX('LFA_Findings&Recommendations_6'!A$9:A$108,MATCH('LFA_Findings&Recom export'!$C19,'LFA_Findings&Recommendations_6'!$B$9:$B$108,0))),\"\")","v":false},{"$f":"IF(P19=TRUE,_xlfn.IFNA(VLOOKUP(D19,RiskData!$B$5:$D$11,3,FALSE), \"\"),\"\")","v":""},{"$f":"IF(P19=TRUE,_xlfn.IFNA(VLOOKUP(E19,RiskData!$F$13:$I$36,4,FALSE), \"\"),\"\")","v":""},{"$f":"IF(P19=TRUE,_xlfn.IFNA(INDEX(RiskData!$H$40:$H$290,MATCH(TRUE,INDEX(RIGHT(RiskData!$F$40:$F$290,255)=RIGHT(F19,255),0),0)), \"\"),\"\")","v":""},{"$f":"IF(OR(P19=TRUE,ISBLANK(D19)),'Admin Sheet'!$B$44,\"\")","v":""},{"$f":"IF(OR(ISBLANK(D19), P19=TRUE),'Admin Sheet'!$B$41,\"\")","v":""},"","","",""]
[null,17,"Finding17",{"$f":"IFERROR(IF(INDEX('LFA_Findings&Recommendations_6'!C$9:C$108,MATCH('LFA_Findings&Recom export'!$C20,'LFA_Findings&Recommendations_6'!$B$9:$B$108,0))=\"\",\"\",INDEX('LFA_Findings&Recommendations_6'!C$9:C$108,MATCH('LFA_Findings&Recom export'!$C20,'LFA_Findings&Recommendations_6'!$B$9:$B$108,0))),\"\")","v":""},{"$f":"IFERROR(IF(INDEX('LFA_Findings&Recommendations_6'!D$9:D$108,MATCH('LFA_Findings&Recom export'!$C20,'LFA_Findings&Recommendations_6'!$B$9:$B$108,0))=\"\",\"\",INDEX('LFA_Findings&Recommendations_6'!D$9:D$108,MATCH('LFA_Findings&Recom export'!$C20,'LFA_Findings&Recommendations_6'!$B$9:$B$108,0))),\"\")","v":""},{"$f":"IFERROR(IF(INDEX('LFA_Findings&Recommendations_6'!E$9:E$108,MATCH('LFA_Findings&Recom export'!$C20,'LFA_Findings&Recommendations_6'!$B$9:$B$108,0))=\"\",\"\",INDEX('LFA_Findings&Recommendations_6'!E$9:E$108,MATCH('LFA_Findings&Recom export'!$C20,'LFA_Findings&Recommendations_6'!$B$9:$B$108,0))),\"\")","v":""},{"$f":"IFERROR(IF(INDEX('LFA_Findings&Recommendations_6'!F$9:F$108,MATCH('LFA_Findings&Recom export'!$C20,'LFA_Findings&Recommendations_6'!$B$9:$B$108,0))=\"\",\"\",INDEX('LFA_Findings&Recommendations_6'!F$9:F$108,MATCH('LFA_Findings&Recom export'!$C20,'LFA_Findings&Recommendations_6'!$B$9:$B$108,0))),\"\")","v":""},{"$f":"IFERROR(IF(INDEX('LFA_Findings&Recommendations_6'!G$9:G$108,MATCH('LFA_Findings&Recom export'!$C20,'LFA_Findings&Recommendations_6'!$B$9:$B$108,0))=\"\",\"\",INDEX('LFA_Findings&Recommendations_6'!G$9:G$108,MATCH('LFA_Findings&Recom export'!$C20,'LFA_Findings&Recommendations_6'!$B$9:$B$108,0))),\"\")","v":""},{"$f":"IFERROR(IF(INDEX('LFA_Findings&Recommendations_6'!H$9:H$108,MATCH('LFA_Findings&Recom export'!$C20,'LFA_Findings&Recommendations_6'!$B$9:$B$108,0))=\"\",\"\",INDEX('LFA_Findings&Recommendations_6'!H$9:H$108,MATCH('LFA_Findings&Recom export'!$C20,'LFA_Findings&Recommendations_6'!$B$9:$B$108,0))),\"\")","v":""},{"$f":"IFERROR(IF(INDEX('LFA_Findings&Recommendations_6'!I$9:I$108,MATCH('LFA_Findings&Recom export'!$C20,'LFA_Findings&Recommendations_6'!$B$9:$B$108,0))=\"\",\"\",INDEX('LFA_Findings&Recommendations_6'!I$9:I$108,MATCH('LFA_Findings&Recom export'!$C20,'LFA_Findings&Recommendations_6'!$B$9:$B$108,0))),\"\")","v":""},{"$f":"IFERROR(IF(INDEX('LFA_Findings&Recommendations_6'!J$9:J$108,MATCH('LFA_Findings&Recom export'!$C20,'LFA_Findings&Recommendations_6'!$B$9:$B$108,0))=\"\",\"\",INDEX('LFA_Findings&Recommendations_6'!J$9:J$108,MATCH('LFA_Findings&Recom export'!$C20,'LFA_Findings&Recommendations_6'!$B$9:$B$108,0))),\"\")","v":""},{"$f":"IFERROR(IF(INDEX('LFA_Findings&Recommendations_6'!K$9:K$108,MATCH('LFA_Findings&Recom export'!$C20,'LFA_Findings&Recommendations_6'!$B$9:$B$108,0))=\"\",\"\",INDEX('LFA_Findings&Recommendations_6'!K$9:K$108,MATCH('LFA_Findings&Recom export'!$C20,'LFA_Findings&Recommendations_6'!$B$9:$B$108,0))),\"\")","v":""},{"$f":"IFERROR(IF(INDEX('LFA_Findings&Recommendations_6'!L$9:L$108,MATCH('LFA_Findings&Recom export'!$C20,'LFA_Findings&Recommendations_6'!$B$9:$B$108,0))=\"\",\"\",INDEX('LFA_Findings&Recommendations_6'!L$9:L$108,MATCH('LFA_Findings&Recom export'!$C20,'LFA_Findings&Recommendations_6'!$B$9:$B$108,0))),\"\")","v":""},null,false,{"$f":"IFERROR(IF(INDEX('LFA_Findings&Recommendations_6'!A$9:A$108,MATCH('LFA_Findings&Recom export'!$C20,'LFA_Findings&Recommendations_6'!$B$9:$B$108,0))=\"\",\"\",INDEX('LFA_Findings&Recommendations_6'!A$9:A$108,MATCH('LFA_Findings&Recom export'!$C20,'LFA_Findings&Recommendations_6'!$B$9:$B$108,0))),\"\")","v":false},{"$f":"IF(P20=TRUE,_xlfn.IFNA(VLOOKUP(D20,RiskData!$B$5:$D$11,3,FALSE), \"\"),\"\")","v":""},{"$f":"IF(P20=TRUE,_xlfn.IFNA(VLOOKUP(E20,RiskData!$F$13:$I$36,4,FALSE), \"\"),\"\")","v":""},{"$f":"IF(P20=TRUE,_xlfn.IFNA(INDEX(RiskData!$H$40:$H$290,MATCH(TRUE,INDEX(RIGHT(RiskData!$F$40:$F$290,255)=RIGHT(F20,255),0),0)), \"\"),\"\")","v":""},{"$f":"IF(OR(P20=TRUE,ISBLANK(D20)),'Admin Sheet'!$B$44,\"\")","v":""},{"$f":"IF(OR(ISBLANK(D20), P20=TRUE),'Admin Sheet'!$B$41,\"\")","v":""},"","","",""]
[null,18,"Finding18",{"$f":"IFERROR(IF(INDEX('LFA_Findings&Recommendations_6'!C$9:C$108,MATCH('LFA_Findings&Recom export'!$C21,'LFA_Findings&Recommendations_6'!$B$9:$B$108,0))=\"\",\"\",INDEX('LFA_Findings&Recommendations_6'!C$9:C$108,MATCH('LFA_Findings&Recom export'!$C21,'LFA_Findings&Recommendations_6'!$B$9:$B$108,0))),\"\")","v":""},{"$f":"IFERROR(IF(INDEX('LFA_Findings&Recommendations_6'!D$9:D$108,MATCH('LFA_Findings&Recom export'!$C21,'LFA_Findings&Recommendations_6'!$B$9:$B$108,0))=\"\",\"\",INDEX('LFA_Findings&Recommendations_6'!D$9:D$108,MATCH('LFA_Findings&Recom export'!$C21,'LFA_Findings&Recommendations_6'!$B$9:$B$108,0))),\"\")","v":""},{"$f":"IFERROR(IF(INDEX('LFA_Findings&Recommendations_6'!E$9:E$108,MATCH('LFA_Findings&Recom export'!$C21,'LFA_Findings&Recommendations_6'!$B$9:$B$108,0))=\"\",\"\",INDEX('LFA_Findings&Recommendations_6'!E$9:E$108,MATCH('LFA_Findings&Recom export'!$C21,'LFA_Findings&Recommendations_6'!$B$9:$B$108,0))),\"\")","v":""},{"$f":"IFERROR(IF(INDEX('LFA_Findings&Recommendations_6'!F$9:F$108,MATCH('LFA_Findings&Recom export'!$C21,'LFA_Findings&Recommendations_6'!$B$9:$B$108,0))=\"\",\"\",INDEX('LFA_Findings&Recommendations_6'!F$9:F$108,MATCH('LFA_Findings&Recom export'!$C21,'LFA_Findings&Recommendations_6'!$B$9:$B$108,0))),\"\")","v":""},{"$f":"IFERROR(IF(INDEX('LFA_Findings&Recommendations_6'!G$9:G$108,MATCH('LFA_Findings&Recom export'!$C21,'LFA_Findings&Recommendations_6'!$B$9:$B$108,0))=\"\",\"\",INDEX('LFA_Findings&Recommendations_6'!G$9:G$108,MATCH('LFA_Findings&Recom export'!$C21,'LFA_Findings&Recommendations_6'!$B$9:$B$108,0))),\"\")","v":""},{"$f":"IFERROR(IF(INDEX('LFA_Findings&Recommendations_6'!H$9:H$108,MATCH('LFA_Findings&Recom export'!$C21,'LFA_Findings&Recommendations_6'!$B$9:$B$108,0))=\"\",\"\",INDEX('LFA_Findings&Recommendations_6'!H$9:H$108,MATCH('LFA_Findings&Recom export'!$C21,'LFA_Findings&Recommendations_6'!$B$9:$B$108,0))),\"\")","v":""},{"$f":"IFERROR(IF(INDEX('LFA_Findings&Recommendations_6'!I$9:I$108,MATCH('LFA_Findings&Recom export'!$C21,'LFA_Findings&Recommendations_6'!$B$9:$B$108,0))=\"\",\"\",INDEX('LFA_Findings&Recommendations_6'!I$9:I$108,MATCH('LFA_Findings&Recom export'!$C21,'LFA_Findings&Recommendations_6'!$B$9:$B$108,0))),\"\")","v":""},{"$f":"IFERROR(IF(INDEX('LFA_Findings&Recommendations_6'!J$9:J$108,MATCH('LFA_Findings&Recom export'!$C21,'LFA_Findings&Recommendations_6'!$B$9:$B$108,0))=\"\",\"\",INDEX('LFA_Findings&Recommendations_6'!J$9:J$108,MATCH('LFA_Findings&Recom export'!$C21,'LFA_Findings&Recommendations_6'!$B$9:$B$108,0))),\"\")","v":""},{"$f":"IFERROR(IF(INDEX('LFA_Findings&Recommendations_6'!K$9:K$108,MATCH('LFA_Findings&Recom export'!$C21,'LFA_Findings&Recommendations_6'!$B$9:$B$108,0))=\"\",\"\",INDEX('LFA_Findings&Recommendations_6'!K$9:K$108,MATCH('LFA_Findings&Recom export'!$C21,'LFA_Findings&Recommendations_6'!$B$9:$B$108,0))),\"\")","v":""},{"$f":"IFERROR(IF(INDEX('LFA_Findings&Recommendations_6'!L$9:L$108,MATCH('LFA_Findings&Recom export'!$C21,'LFA_Findings&Recommendations_6'!$B$9:$B$108,0))=\"\",\"\",INDEX('LFA_Findings&Recommendations_6'!L$9:L$108,MATCH('LFA_Findings&Recom export'!$C21,'LFA_Findings&Recommendations_6'!$B$9:$B$108,0))),\"\")","v":""},null,false,{"$f":"IFERROR(IF(INDEX('LFA_Findings&Recommendations_6'!A$9:A$108,MATCH('LFA_Findings&Recom export'!$C21,'LFA_Findings&Recommendations_6'!$B$9:$B$108,0))=\"\",\"\",INDEX('LFA_Findings&Recommendations_6'!A$9:A$108,MATCH('LFA_Findings&Recom export'!$C21,'LFA_Findings&Recommendations_6'!$B$9:$B$108,0))),\"\")","v":false},{"$f":"IF(P21=TRUE,_xlfn.IFNA(VLOOKUP(D21,RiskData!$B$5:$D$11,3,FALSE), \"\"),\"\")","v":""},{"$f":"IF(P21=TRUE,_xlfn.IFNA(VLOOKUP(E21,RiskData!$F$13:$I$36,4,FALSE), \"\"),\"\")","v":""},{"$f":"IF(P21=TRUE,_xlfn.IFNA(INDEX(RiskData!$H$40:$H$290,MATCH(TRUE,INDEX(RIGHT(RiskData!$F$40:$F$290,255)=RIGHT(F21,255),0),0)), \"\"),\"\")","v":""},{"$f":"IF(OR(P21=TRUE,ISBLANK(D21)),'Admin Sheet'!$B$44,\"\")","v":""},{"$f":"IF(OR(ISBLANK(D21), P21=TRUE),'Admin Sheet'!$B$41,\"\")","v":""},"","","",""]
[null,19,"Finding19",{"$f":"IFERROR(IF(INDEX('LFA_Findings&Recommendations_6'!C$9:C$108,MATCH('LFA_Findings&Recom export'!$C22,'LFA_Findings&Recommendations_6'!$B$9:$B$108,0))=\"\",\"\",INDEX('LFA_Findings&Recommendations_6'!C$9:C$108,MATCH('LFA_Findings&Recom export'!$C22,'LFA_Findings&Recommendations_6'!$B$9:$B$108,0))),\"\")","v":""},{"$f":"IFERROR(IF(INDEX('LFA_Findings&Recommendations_6'!D$9:D$108,MATCH('LFA_Findings&Recom export'!$C22,'LFA_Findings&Recommendations_6'!$B$9:$B$108,0))=\"\",\"\",INDEX('LFA_Findings&Recommendations_6'!D$9:D$108,MATCH('LFA_Findings&Recom export'!$C22,'LFA_Findings&Recommendations_6'!$B$9:$B$108,0))),\"\")","v":""},{"$f":"IFERROR(IF(INDEX('LFA_Findings&Recommendations_6'!E$9:E$108,MATCH('LFA_Findings&Recom export'!$C22,'LFA_Findings&Recommendations_6'!$B$9:$B$108,0))=\"\",\"\",INDEX('LFA_Findings&Recommendations_6'!E$9:E$108,MATCH('LFA_Findings&Recom export'!$C22,'LFA_Findings&Recommendations_6'!$B$9:$B$108,0))),\"\")","v":""},{"$f":"IFERROR(IF(INDEX('LFA_Findings&Recommendations_6'!F$9:F$108,MATCH('LFA_Findings&Recom export'!$C22,'LFA_Findings&Recommendations_6'!$B$9:$B$108,0))=\"\",\"\",INDEX('LFA_Findings&Recommendations_6'!F$9:F$108,MATCH('LFA_Findings&Recom export'!$C22,'LFA_Findings&Recommendations_6'!$B$9:$B$108,0))),\"\")","v":""},{"$f":"IFERROR(IF(INDEX('LFA_Findings&Recommendations_6'!G$9:G$108,MATCH('LFA_Findings&Recom export'!$C22,'LFA_Findings&Recommendations_6'!$B$9:$B$108,0))=\"\",\"\",INDEX('LFA_Findings&Recommendations_6'!G$9:G$108,MATCH('LFA_Findings&Recom export'!$C22,'LFA_Findings&Recommendations_6'!$B$9:$B$108,0))),\"\")","v":""},{"$f":"IFERROR(IF(INDEX('LFA_Findings&Recommendations_6'!H$9:H$108,MATCH('LFA_Findings&Recom export'!$C22,'LFA_Findings&Recommendations_6'!$B$9:$B$108,0))=\"\",\"\",INDEX('LFA_Findings&Recommendations_6'!H$9:H$108,MATCH('LFA_Findings&Recom export'!$C22,'LFA_Findings&Recommendations_6'!$B$9:$B$108,0))),\"\")","v":""},{"$f":"IFERROR(IF(INDEX('LFA_Findings&Recommendations_6'!I$9:I$108,MATCH('LFA_Findings&Recom export'!$C22,'LFA_Findings&Recommendations_6'!$B$9:$B$108,0))=\"\",\"\",INDEX('LFA_Findings&Recommendations_6'!I$9:I$108,MATCH('LFA_Findings&Recom export'!$C22,'LFA_Findings&Recommendations_6'!$B$9:$B$108,0))),\"\")","v":""},{"$f":"IFERROR(IF(INDEX('LFA_Findings&Recommendations_6'!J$9:J$108,MATCH('LFA_Findings&Recom export'!$C22,'LFA_Findings&Recommendations_6'!$B$9:$B$108,0))=\"\",\"\",INDEX('LFA_Findings&Recommendations_6'!J$9:J$108,MATCH('LFA_Findings&Recom export'!$C22,'LFA_Findings&Recommendations_6'!$B$9:$B$108,0))),\"\")","v":""},{"$f":"IFERROR(IF(INDEX('LFA_Findings&Recommendations_6'!K$9:K$108,MATCH('LFA_Findings&Recom export'!$C22,'LFA_Findings&Recommendations_6'!$B$9:$B$108,0))=\"\",\"\",INDEX('LFA_Findings&Recommendations_6'!K$9:K$108,MATCH('LFA_Findings&Recom export'!$C22,'LFA_Findings&Recommendations_6'!$B$9:$B$108,0))),\"\")","v":""},{"$f":"IFERROR(IF(INDEX('LFA_Findings&Recommendations_6'!L$9:L$108,MATCH('LFA_Findings&Recom export'!$C22,'LFA_Findings&Recommendations_6'!$B$9:$B$108,0))=\"\",\"\",INDEX('LFA_Findings&Recommendations_6'!L$9:L$108,MATCH('LFA_Findings&Recom export'!$C22,'LFA_Findings&Recommendations_6'!$B$9:$B$108,0))),\"\")","v":""},null,false,{"$f":"IFERROR(IF(INDEX('LFA_Findings&Recommendations_6'!A$9:A$108,MATCH('LFA_Findings&Recom export'!$C22,'LFA_Findings&Recommendations_6'!$B$9:$B$108,0))=\"\",\"\",INDEX('LFA_Findings&Recommendations_6'!A$9:A$108,MATCH('LFA_Findings&Recom export'!$C22,'LFA_Findings&Recommendations_6'!$B$9:$B$108,0))),\"\")","v":false},{"$f":"IF(P22=TRUE,_xlfn.IFNA(VLOOKUP(D22,RiskData!$B$5:$D$11,3,FALSE), \"\"),\"\")","v":""},{"$f":"IF(P22=TRUE,_xlfn.IFNA(VLOOKUP(E22,RiskData!$F$13:$I$36,4,FALSE), \"\"),\"\")","v":""},{"$f":"IF(P22=TRUE,_xlfn.IFNA(INDEX(RiskData!$H$40:$H$290,MATCH(TRUE,INDEX(RIGHT(RiskData!$F$40:$F$290,255)=RIGHT(F22,255),0),0)), \"\"),\"\")","v":""},{"$f":"IF(OR(P22=TRUE,ISBLANK(D22)),'Admin Sheet'!$B$44,\"\")","v":""},{"$f":"IF(OR(ISBLANK(D22), P22=TRUE),'Admin Sheet'!$B$41,\"\")","v":""},"","","",""]
[null,20,"Finding20",{"$f":"IFERROR(IF(INDEX('LFA_Findings&Recommendations_6'!C$9:C$108,MATCH('LFA_Findings&Recom export'!$C23,'LFA_Findings&Recommendations_6'!$B$9:$B$108,0))=\"\",\"\",INDEX('LFA_Findings&Recommendations_6'!C$9:C$108,MATCH('LFA_Findings&Recom export'!$C23,'LFA_Findings&Recommendations_6'!$B$9:$B$108,0))),\"\")","v":""},{"$f":"IFERROR(IF(INDEX('LFA_Findings&Recommendations_6'!D$9:D$108,MATCH('LFA_Findings&Recom export'!$C23,'LFA_Findings&Recommendations_6'!$B$9:$B$108,0))=\"\",\"\",INDEX('LFA_Findings&Recommendations_6'!D$9:D$108,MATCH('LFA_Findings&Recom export'!$C23,'LFA_Findings&Recommendations_6'!$B$9:$B$108,0))),\"\")","v":""},{"$f":"IFERROR(IF(INDEX('LFA_Findings&Recommendations_6'!E$9:E$108,MATCH('LFA_Findings&Recom export'!$C23,'LFA_Findings&Recommendations_6'!$B$9:$B$108,0))=\"\",\"\",INDEX('LFA_Findings&Recommendations_6'!E$9:E$108,MATCH('LFA_Findings&Recom export'!$C23,'LFA_Findings&Recommendations_6'!$B$9:$B$108,0))),\"\")","v":""},{"$f":"IFERROR(IF(INDEX('LFA_Findings&Recommendations_6'!F$9:F$108,MATCH('LFA_Findings&Recom export'!$C23,'LFA_Findings&Recommendations_6'!$B$9:$B$108,0))=\"\",\"\",INDEX('LFA_Findings&Recommendations_6'!F$9:F$108,MATCH('LFA_Findings&Recom export'!$C23,'LFA_Findings&Recommendations_6'!$B$9:$B$108,0))),\"\")","v":""},{"$f":"IFERROR(IF(INDEX('LFA_Findings&Recommendations_6'!G$9:G$108,MATCH('LFA_Findings&Recom export'!$C23,'LFA_Findings&Recommendations_6'!$B$9:$B$108,0))=\"\",\"\",INDEX('LFA_Findings&Recommendations_6'!G$9:G$108,MATCH('LFA_Findings&Recom export'!$C23,'LFA_Findings&Recommendations_6'!$B$9:$B$108,0))),\"\")","v":""},{"$f":"IFERROR(IF(INDEX('LFA_Findings&Recommendations_6'!H$9:H$108,MATCH('LFA_Findings&Recom export'!$C23,'LFA_Findings&Recommendations_6'!$B$9:$B$108,0))=\"\",\"\",INDEX('LFA_Findings&Recommendations_6'!H$9:H$108,MATCH('LFA_Findings&Recom export'!$C23,'LFA_Findings&Recommendations_6'!$B$9:$B$108,0))),\"\")","v":""},{"$f":"IFERROR(IF(INDEX('LFA_Findings&Recommendations_6'!I$9:I$108,MATCH('LFA_Findings&Recom export'!$C23,'LFA_Findings&Recommendations_6'!$B$9:$B$108,0))=\"\",\"\",INDEX('LFA_Findings&Recommendations_6'!I$9:I$108,MATCH('LFA_Findings&Recom export'!$C23,'LFA_Findings&Recommendations_6'!$B$9:$B$108,0))),\"\")","v":""},{"$f":"IFERROR(IF(INDEX('LFA_Findings&Recommendations_6'!J$9:J$108,MATCH('LFA_Findings&Recom export'!$C23,'LFA_Findings&Recommendations_6'!$B$9:$B$108,0))=\"\",\"\",INDEX('LFA_Findings&Recommendations_6'!J$9:J$108,MATCH('LFA_Findings&Recom export'!$C23,'LFA_Findings&Recommendations_6'!$B$9:$B$108,0))),\"\")","v":""},{"$f":"IFERROR(IF(INDEX('LFA_Findings&Recommendations_6'!K$9:K$108,MATCH('LFA_Findings&Recom export'!$C23,'LFA_Findings&Recommendations_6'!$B$9:$B$108,0))=\"\",\"\",INDEX('LFA_Findings&Recommendations_6'!K$9:K$108,MATCH('LFA_Findings&Recom export'!$C23,'LFA_Findings&Recommendations_6'!$B$9:$B$108,0))),\"\")","v":""},{"$f":"IFERROR(IF(INDEX('LFA_Findings&Recommendations_6'!L$9:L$108,MATCH('LFA_Findings&Recom export'!$C23,'LFA_Findings&Recommendations_6'!$B$9:$B$108,0))=\"\",\"\",INDEX('LFA_Findings&Recommendations_6'!L$9:L$108,MATCH('LFA_Findings&Recom export'!$C23,'LFA_Findings&Recommendations_6'!$B$9:$B$108,0))),\"\")","v":""},null,false,{"$f":"IFERROR(IF(INDEX('LFA_Findings&Recommendations_6'!A$9:A$108,MATCH('LFA_Findings&Recom export'!$C23,'LFA_Findings&Recommendations_6'!$B$9:$B$108,0))=\"\",\"\",INDEX('LFA_Findings&Recommendations_6'!A$9:A$108,MATCH('LFA_Findings&Recom export'!$C23,'LFA_Findings&Recommendations_6'!$B$9:$B$108,0))),\"\")","v":false},{"$f":"IF(P23=TRUE,_xlfn.IFNA(VLOOKUP(D23,RiskData!$B$5:$D$11,3,FALSE), \"\"),\"\")","v":""},{"$f":"IF(P23=TRUE,_xlfn.IFNA(VLOOKUP(E23,RiskData!$F$13:$I$36,4,FALSE), \"\"),\"\")","v":""},{"$f":"IF(P23=TRUE,_xlfn.IFNA(INDEX(RiskData!$H$40:$H$290,MATCH(TRUE,INDEX(RIGHT(RiskData!$F$40:$F$290,255)=RIGHT(F23,255),0),0)), \"\"),\"\")","v":""},{"$f":"IF(OR(P23=TRUE,ISBLANK(D23)),'Admin Sheet'!$B$44,\"\")","v":""},{"$f":"IF(OR(ISBLANK(D23), P23=TRUE),'Admin Sheet'!$B$41,\"\")","v":""},"","","",""]
[null,21,"Finding21",{"$f":"IFERROR(IF(INDEX('LFA_Findings&Recommendations_6'!C$9:C$108,MATCH('LFA_Findings&Recom export'!$C24,'LFA_Findings&Recommendations_6'!$B$9:$B$108,0))=\"\",\"\",INDEX('LFA_Findings&Recommendations_6'!C$9:C$108,MATCH('LFA_Findings&Recom export'!$C24,'LFA_Findings&Recommendations_6'!$B$9:$B$108,0))),\"\")","v":""},{"$f":"IFERROR(IF(INDEX('LFA_Findings&Recommendations_6'!D$9:D$108,MATCH('LFA_Findings&Recom export'!$C24,'LFA_Findings&Recommendations_6'!$B$9:$B$108,0))=\"\",\"\",INDEX('LFA_Findings&Recommendations_6'!D$9:D$108,MATCH('LFA_Findings&Recom export'!$C24,'LFA_Findings&Recommendations_6'!$B$9:$B$108,0))),\"\")","v":""},{"$f":"IFERROR(IF(INDEX('LFA_Findings&Recommendations_6'!E$9:E$108,MATCH('LFA_Findings&Recom export'!$C24,'LFA_Findings&Recommendations_6'!$B$9:$B$108,0))=\"\",\"\",INDEX('LFA_Findings&Recommendations_6'!E$9:E$108,MATCH('LFA_Findings&Recom export'!$C24,'LFA_Findings&Recommendations_6'!$B$9:$B$108,0))),\"\")","v":""},{"$f":"IFERROR(IF(INDEX('LFA_Findings&Recommendations_6'!F$9:F$108,MATCH('LFA_Findings&Recom export'!$C24,'LFA_Findings&Recommendations_6'!$B$9:$B$108,0))=\"\",\"\",INDEX('LFA_Findings&Recommendations_6'!F$9:F$108,MATCH('LFA_Findings&Recom export'!$C24,'LFA_Findings&Recommendations_6'!$B$9:$B$108,0))),\"\")","v":""},{"$f":"IFERROR(IF(INDEX('LFA_Findings&Recommendations_6'!G$9:G$108,MATCH('LFA_Findings&Recom export'!$C24,'LFA_Findings&Recommendations_6'!$B$9:$B$108,0))=\"\",\"\",INDEX('LFA_Findings&Recommendations_6'!G$9:G$108,MATCH('LFA_Findings&Recom export'!$C24,'LFA_Findings&Recommendations_6'!$B$9:$B$108,0))),\"\")","v":""},{"$f":"IFERROR(IF(INDEX('LFA_Findings&Recommendations_6'!H$9:H$108,MATCH('LFA_Findings&Recom export'!$C24,'LFA_Findings&Recommendations_6'!$B$9:$B$108,0))=\"\",\"\",INDEX('LFA_Findings&Recommendations_6'!H$9:H$108,MATCH('LFA_Findings&Recom export'!$C24,'LFA_Findings&Recommendations_6'!$B$9:$B$108,0))),\"\")","v":""},{"$f":"IFERROR(IF(INDEX('LFA_Findings&Recommendations_6'!I$9:I$108,MATCH('LFA_Findings&Recom export'!$C24,'LFA_Findings&Recommendations_6'!$B$9:$B$108,0))=\"\",\"\",INDEX('LFA_Findings&Recommendations_6'!I$9:I$108,MATCH('LFA_Findings&Recom export'!$C24,'LFA_Findings&Recommendations_6'!$B$9:$B$108,0))),\"\")","v":""},{"$f":"IFERROR(IF(INDEX('LFA_Findings&Recommendations_6'!J$9:J$108,MATCH('LFA_Findings&Recom export'!$C24,'LFA_Findings&Recommendations_6'!$B$9:$B$108,0))=\"\",\"\",INDEX('LFA_Findings&Recommendations_6'!J$9:J$108,MATCH('LFA_Findings&Recom export'!$C24,'LFA_Findings&Recommendations_6'!$B$9:$B$108,0))),\"\")","v":""},{"$f":"IFERROR(IF(INDEX('LFA_Findings&Recommendations_6'!K$9:K$108,MATCH('LFA_Findings&Recom export'!$C24,'LFA_Findings&Recommendations_6'!$B$9:$B$108,0))=\"\",\"\",INDEX('LFA_Findings&Recommendations_6'!K$9:K$108,MATCH('LFA_Findings&Recom export'!$C24,'LFA_Findings&Recommendations_6'!$B$9:$B$108,0))),\"\")","v":""},{"$f":"IFERROR(IF(INDEX('LFA_Findings&Recommendations_6'!L$9:L$108,MATCH('LFA_Findings&Recom export'!$C24,'LFA_Findings&Recommendations_6'!$B$9:$B$108,0))=\"\",\"\",INDEX('LFA_Findings&Recommendations_6'!L$9:L$108,MATCH('LFA_Findings&Recom export'!$C24,'LFA_Findings&Recommendations_6'!$B$9:$B$108,0))),\"\")","v":""},null,false,{"$f":"IFERROR(IF(INDEX('LFA_Findings&Recommendations_6'!A$9:A$108,MATCH('LFA_Findings&Recom export'!$C24,'LFA_Findings&Recommendations_6'!$B$9:$B$108,0))=\"\",\"\",INDEX('LFA_Findings&Recommendations_6'!A$9:A$108,MATCH('LFA_Findings&Recom export'!$C24,'LFA_Findings&Recommendations_6'!$B$9:$B$108,0))),\"\")","v":false},{"$f":"IF(P24=TRUE,_xlfn.IFNA(VLOOKUP(D24,RiskData!$B$5:$D$11,3,FALSE), \"\"),\"\")","v":""},{"$f":"IF(P24=TRUE,_xlfn.IFNA(VLOOKUP(E24,RiskData!$F$13:$I$36,4,FALSE), \"\"),\"\")","v":""},{"$f":"IF(P24=TRUE,_xlfn.IFNA(INDEX(RiskData!$H$40:$H$290,MATCH(TRUE,INDEX(RIGHT(RiskData!$F$40:$F$290,255)=RIGHT(F24,255),0),0)), \"\"),\"\")","v":""},{"$f":"IF(OR(P24=TRUE,ISBLANK(D24)),'Admin Sheet'!$B$44,\"\")","v":""},{"$f":"IF(OR(ISBLANK(D24), P24=TRUE),'Admin Sheet'!$B$41,\"\")","v":""},"","","",""]
[null,22,"Finding22",{"$f":"IFERROR(IF(INDEX('LFA_Findings&Recommendations_6'!C$9:C$108,MATCH('LFA_Findings&Recom export'!$C25,'LFA_Findings&Recommendations_6'!$B$9:$B$108,0))=\"\",\"\",INDEX('LFA_Findings&Recommendations_6'!C$9:C$108,MATCH('LFA_Findings&Recom export'!$C25,'LFA_Findings&Recommendations_6'!$B$9:$B$108,0))),\"\")","v":""},{"$f":"IFERROR(IF(INDEX('LFA_Findings&Recommendations_6'!D$9:D$108,MATCH('LFA_Findings&Recom export'!$C25,'LFA_Findings&Recommendations_6'!$B$9:$B$108,0))=\"\",\"\",INDEX('LFA_Findings&Recommendations_6'!D$9:D$108,MATCH('LFA_Findings&Recom export'!$C25,'LFA_Findings&Recommendations_6'!$B$9:$B$108,0))),\"\")","v":""},{"$f":"IFERROR(IF(INDEX('LFA_Findings&Recommendations_6'!E$9:E$108,MATCH('LFA_Findings&Recom export'!$C25,'LFA_Findings&Recommendations_6'!$B$9:$B$108,0))=\"\",\"\",INDEX('LFA_Findings&Recommendations_6'!E$9:E$108,MATCH('LFA_Findings&Recom export'!$C25,'LFA_Findings&Recommendations_6'!$B$9:$B$108,0))),\"\")","v":""},{"$f":"IFERROR(IF(INDEX('LFA_Findings&Recommendations_6'!F$9:F$108,MATCH('LFA_Findings&Recom export'!$C25,'LFA_Findings&Recommendations_6'!$B$9:$B$108,0))=\"\",\"\",INDEX('LFA_Findings&Recommendations_6'!F$9:F$108,MATCH('LFA_Findings&Recom export'!$C25,'LFA_Findings&Recommendations_6'!$B$9:$B$108,0))),\"\")","v":""},{"$f":"IFERROR(IF(INDEX('LFA_Findings&Recommendations_6'!G$9:G$108,MATCH('LFA_Findings&Recom export'!$C25,'LFA_Findings&Recommendations_6'!$B$9:$B$108,0))=\"\",\"\",INDEX('LFA_Findings&Recommendations_6'!G$9:G$108,MATCH('LFA_Findings&Recom export'!$C25,'LFA_Findings&Recommendations_6'!$B$9:$B$108,0))),\"\")","v":""},{"$f":"IFERROR(IF(INDEX('LFA_Findings&Recommendations_6'!H$9:H$108,MATCH('LFA_Findings&Recom export'!$C25,'LFA_Findings&Recommendations_6'!$B$9:$B$108,0))=\"\",\"\",INDEX('LFA_Findings&Recommendations_6'!H$9:H$108,MATCH('LFA_Findings&Recom export'!$C25,'LFA_Findings&Recommendations_6'!$B$9:$B$108,0))),\"\")","v":""},{"$f":"IFERROR(IF(INDEX('LFA_Findings&Recommendations_6'!I$9:I$108,MATCH('LFA_Findings&Recom export'!$C25,'LFA_Findings&Recommendations_6'!$B$9:$B$108,0))=\"\",\"\",INDEX('LFA_Findings&Recommendations_6'!I$9:I$108,MATCH('LFA_Findings&Recom export'!$C25,'LFA_Findings&Recommendations_6'!$B$9:$B$108,0))),\"\")","v":""},{"$f":"IFERROR(IF(INDEX('LFA_Findings&Recommendations_6'!J$9:J$108,MATCH('LFA_Findings&Recom export'!$C25,'LFA_Findings&Recommendations_6'!$B$9:$B$108,0))=\"\",\"\",INDEX('LFA_Findings&Recommendations_6'!J$9:J$108,MATCH('LFA_Findings&Recom export'!$C25,'LFA_Findings&Recommendations_6'!$B$9:$B$108,0))),\"\")","v":""},{"$f":"IFERROR(IF(INDEX('LFA_Findings&Recommendations_6'!K$9:K$108,MATCH('LFA_Findings&Recom export'!$C25,'LFA_Findings&Recommendations_6'!$B$9:$B$108,0))=\"\",\"\",INDEX('LFA_Findings&Recommendations_6'!K$9:K$108,MATCH('LFA_Findings&Recom export'!$C25,'LFA_Findings&Recommendations_6'!$B$9:$B$108,0))),\"\")","v":""},{"$f":"IFERROR(IF(INDEX('LFA_Findings&Recommendations_6'!L$9:L$108,MATCH('LFA_Findings&Recom export'!$C25,'LFA_Findings&Recommendations_6'!$B$9:$B$108,0))=\"\",\"\",INDEX('LFA_Findings&Recommendations_6'!L$9:L$108,MATCH('LFA_Findings&Recom export'!$C25,'LFA_Findings&Recommendations_6'!$B$9:$B$108,0))),\"\")","v":""},null,false,{"$f":"IFERROR(IF(INDEX('LFA_Findings&Recommendations_6'!A$9:A$108,MATCH('LFA_Findings&Recom export'!$C25,'LFA_Findings&Recommendations_6'!$B$9:$B$108,0))=\"\",\"\",INDEX('LFA_Findings&Recommendations_6'!A$9:A$108,MATCH('LFA_Findings&Recom export'!$C25,'LFA_Findings&Recommendations_6'!$B$9:$B$108,0))),\"\")","v":false},{"$f":"IF(P25=TRUE,_xlfn.IFNA(VLOOKUP(D25,RiskData!$B$5:$D$11,3,FALSE), \"\"),\"\")","v":""},{"$f":"IF(P25=TRUE,_xlfn.IFNA(VLOOKUP(E25,RiskData!$F$13:$I$36,4,FALSE), \"\"),\"\")","v":""},{"$f":"IF(P25=TRUE,_xlfn.IFNA(INDEX(RiskData!$H$40:$H$290,MATCH(TRUE,INDEX(RIGHT(RiskData!$F$40:$F$290,255)=RIGHT(F25,255),0),0)), \"\"),\"\")","v":""},{"$f":"IF(OR(P25=TRUE,ISBLANK(D25)),'Admin Sheet'!$B$44,\"\")","v":""},{"$f":"IF(OR(ISBLANK(D25), P25=TRUE),'Admin Sheet'!$B$41,\"\")","v":""},"","","",""]
[null,23,"Finding23",{"$f":"IFERROR(IF(INDEX('LFA_Findings&Recommendations_6'!C$9:C$108,MATCH('LFA_Findings&Recom export'!$C26,'LFA_Findings&Recommendations_6'!$B$9:$B$108,0))=\"\",\"\",INDEX('LFA_Findings&Recommendations_6'!C$9:C$108,MATCH('LFA_Findings&Recom export'!$C26,'LFA_Findings&Recommendations_6'!$B$9:$B$108,0))),\"\")","v":""},{"$f":"IFERROR(IF(INDEX('LFA_Findings&Recommendations_6'!D$9:D$108,MATCH('LFA_Findings&Recom export'!$C26,'LFA_Findings&Recommendations_6'!$B$9:$B$108,0))=\"\",\"\",INDEX('LFA_Findings&Recommendations_6'!D$9:D$108,MATCH('LFA_Findings&Recom export'!$C26,'LFA_Findings&Recommendations_6'!$B$9:$B$108,0))),\"\")","v":""},{"$f":"IFERROR(IF(INDEX('LFA_Findings&Recommendations_6'!E$9:E$108,MATCH('LFA_Findings&Recom export'!$C26,'LFA_Findings&Recommendations_6'!$B$9:$B$108,0))=\"\",\"\",INDEX('LFA_Findings&Recommendations_6'!E$9:E$108,MATCH('LFA_Findings&Recom export'!$C26,'LFA_Findings&Recommendations_6'!$B$9:$B$108,0))),\"\")","v":""},{"$f":"IFERROR(IF(INDEX('LFA_Findings&Recommendations_6'!F$9:F$108,MATCH('LFA_Findings&Recom export'!$C26,'LFA_Findings&Recommendations_6'!$B$9:$B$108,0))=\"\",\"\",INDEX('LFA_Findings&Recommendations_6'!F$9:F$108,MATCH('LFA_Findings&Recom export'!$C26,'LFA_Findings&Recommendations_6'!$B$9:$B$108,0))),\"\")","v":""},{"$f":"IFERROR(IF(INDEX('LFA_Findings&Recommendations_6'!G$9:G$108,MATCH('LFA_Findings&Recom export'!$C26,'LFA_Findings&Recommendations_6'!$B$9:$B$108,0))=\"\",\"\",INDEX('LFA_Findings&Recommendations_6'!G$9:G$108,MATCH('LFA_Findings&Recom export'!$C26,'LFA_Findings&Recommendations_6'!$B$9:$B$108,0))),\"\")","v":""},{"$f":"IFERROR(IF(INDEX('LFA_Findings&Recommendations_6'!H$9:H$108,MATCH('LFA_Findings&Recom export'!$C26,'LFA_Findings&Recommendations_6'!$B$9:$B$108,0))=\"\",\"\",INDEX('LFA_Findings&Recommendations_6'!H$9:H$108,MATCH('LFA_Findings&Recom export'!$C26,'LFA_Findings&Recommendations_6'!$B$9:$B$108,0))),\"\")","v":""},{"$f":"IFERROR(IF(INDEX('LFA_Findings&Recommendations_6'!I$9:I$108,MATCH('LFA_Findings&Recom export'!$C26,'LFA_Findings&Recommendations_6'!$B$9:$B$108,0))=\"\",\"\",INDEX('LFA_Findings&Recommendations_6'!I$9:I$108,MATCH('LFA_Findings&Recom export'!$C26,'LFA_Findings&Recommendations_6'!$B$9:$B$108,0))),\"\")","v":""},{"$f":"IFERROR(IF(INDEX('LFA_Findings&Recommendations_6'!J$9:J$108,MATCH('LFA_Findings&Recom export'!$C26,'LFA_Findings&Recommendations_6'!$B$9:$B$108,0))=\"\",\"\",INDEX('LFA_Findings&Recommendations_6'!J$9:J$108,MATCH('LFA_Findings&Recom export'!$C26,'LFA_Findings&Recommendations_6'!$B$9:$B$108,0))),\"\")","v":""},{"$f":"IFERROR(IF(INDEX('LFA_Findings&Recommendations_6'!K$9:K$108,MATCH('LFA_Findings&Recom export'!$C26,'LFA_Findings&Recommendations_6'!$B$9:$B$108,0))=\"\",\"\",INDEX('LFA_Findings&Recommendations_6'!K$9:K$108,MATCH('LFA_Findings&Recom export'!$C26,'LFA_Findings&Recommendations_6'!$B$9:$B$108,0))),\"\")","v":""},{"$f":"IFERROR(IF(INDEX('LFA_Findings&Recommendations_6'!L$9:L$108,MATCH('LFA_Findings&Recom export'!$C26,'LFA_Findings&Recommendations_6'!$B$9:$B$108,0))=\"\",\"\",INDEX('LFA_Findings&Recommendations_6'!L$9:L$108,MATCH('LFA_Findings&Recom export'!$C26,'LFA_Findings&Recommendations_6'!$B$9:$B$108,0))),\"\")","v":""},null,false,{"$f":"IFERROR(IF(INDEX('LFA_Findings&Recommendations_6'!A$9:A$108,MATCH('LFA_Findings&Recom export'!$C26,'LFA_Findings&Recommendations_6'!$B$9:$B$108,0))=\"\",\"\",INDEX('LFA_Findings&Recommendations_6'!A$9:A$108,MATCH('LFA_Findings&Recom export'!$C26,'LFA_Findings&Recommendations_6'!$B$9:$B$108,0))),\"\")","v":false},{"$f":"IF(P26=TRUE,_xlfn.IFNA(VLOOKUP(D26,RiskData!$B$5:$D$11,3,FALSE), \"\"),\"\")","v":""},{"$f":"IF(P26=TRUE,_xlfn.IFNA(VLOOKUP(E26,RiskData!$F$13:$I$36,4,FALSE), \"\"),\"\")","v":""},{"$f":"IF(P26=TRUE,_xlfn.IFNA(INDEX(RiskData!$H$40:$H$290,MATCH(TRUE,INDEX(RIGHT(RiskData!$F$40:$F$290,255)=RIGHT(F26,255),0),0)), \"\"),\"\")","v":""},{"$f":"IF(OR(P26=TRUE,ISBLANK(D26)),'Admin Sheet'!$B$44,\"\")","v":""},{"$f":"IF(OR(ISBLANK(D26), P26=TRUE),'Admin Sheet'!$B$41,\"\")","v":""},"","","",""]
[null,24,"Finding24",{"$f":"IFERROR(IF(INDEX('LFA_Findings&Recommendations_6'!C$9:C$108,MATCH('LFA_Findings&Recom export'!$C27,'LFA_Findings&Recommendations_6'!$B$9:$B$108,0))=\"\",\"\",INDEX('LFA_Findings&Recommendations_6'!C$9:C$108,MATCH('LFA_Findings&Recom export'!$C27,'LFA_Findings&Recommendations_6'!$B$9:$B$108,0))),\"\")","v":""},{"$f":"IFERROR(IF(INDEX('LFA_Findings&Recommendations_6'!D$9:D$108,MATCH('LFA_Findings&Recom export'!$C27,'LFA_Findings&Recommendations_6'!$B$9:$B$108,0))=\"\",\"\",INDEX('LFA_Findings&Recommendations_6'!D$9:D$108,MATCH('LFA_Findings&Recom export'!$C27,'LFA_Findings&Recommendations_6'!$B$9:$B$108,0))),\"\")","v":""},{"$f":"IFERROR(IF(INDEX('LFA_Findings&Recommendations_6'!E$9:E$108,MATCH('LFA_Findings&Recom export'!$C27,'LFA_Findings&Recommendations_6'!$B$9:$B$108,0))=\"\",\"\",INDEX('LFA_Findings&Recommendations_6'!E$9:E$108,MATCH('LFA_Findings&Recom export'!$C27,'LFA_Findings&Recommendations_6'!$B$9:$B$108,0))),\"\")","v":""},{"$f":"IFERROR(IF(INDEX('LFA_Findings&Recommendations_6'!F$9:F$108,MATCH('LFA_Findings&Recom export'!$C27,'LFA_Findings&Recommendations_6'!$B$9:$B$108,0))=\"\",\"\",INDEX('LFA_Findings&Recommendations_6'!F$9:F$108,MATCH('LFA_Findings&Recom export'!$C27,'LFA_Findings&Recommendations_6'!$B$9:$B$108,0))),\"\")","v":""},{"$f":"IFERROR(IF(INDEX('LFA_Findings&Recommendations_6'!G$9:G$108,MATCH('LFA_Findings&Recom export'!$C27,'LFA_Findings&Recommendations_6'!$B$9:$B$108,0))=\"\",\"\",INDEX('LFA_Findings&Recommendations_6'!G$9:G$108,MATCH('LFA_Findings&Recom export'!$C27,'LFA_Findings&Recommendations_6'!$B$9:$B$108,0))),\"\")","v":""},{"$f":"IFERROR(IF(INDEX('LFA_Findings&Recommendations_6'!H$9:H$108,MATCH('LFA_Findings&Recom export'!$C27,'LFA_Findings&Recommendations_6'!$B$9:$B$108,0))=\"\",\"\",INDEX('LFA_Findings&Recommendations_6'!H$9:H$108,MATCH('LFA_Findings&Recom export'!$C27,'LFA_Findings&Recommendations_6'!$B$9:$B$108,0))),\"\")","v":""},{"$f":"IFERROR(IF(INDEX('LFA_Findings&Recommendations_6'!I$9:I$108,MATCH('LFA_Findings&Recom export'!$C27,'LFA_Findings&Recommendations_6'!$B$9:$B$108,0))=\"\",\"\",INDEX('LFA_Findings&Recommendations_6'!I$9:I$108,MATCH('LFA_Findings&Recom export'!$C27,'LFA_Findings&Recommendations_6'!$B$9:$B$108,0))),\"\")","v":""},{"$f":"IFERROR(IF(INDEX('LFA_Findings&Recommendations_6'!J$9:J$108,MATCH('LFA_Findings&Recom export'!$C27,'LFA_Findings&Recommendations_6'!$B$9:$B$108,0))=\"\",\"\",INDEX('LFA_Findings&Recommendations_6'!J$9:J$108,MATCH('LFA_Findings&Recom export'!$C27,'LFA_Findings&Recommendations_6'!$B$9:$B$108,0))),\"\")","v":""},{"$f":"IFERROR(IF(INDEX('LFA_Findings&Recommendations_6'!K$9:K$108,MATCH('LFA_Findings&Recom export'!$C27,'LFA_Findings&Recommendations_6'!$B$9:$B$108,0))=\"\",\"\",INDEX('LFA_Findings&Recommendations_6'!K$9:K$108,MATCH('LFA_Findings&Recom export'!$C27,'LFA_Findings&Recommendations_6'!$B$9:$B$108,0))),\"\")","v":""},{"$f":"IFERROR(IF(INDEX('LFA_Findings&Recommendations_6'!L$9:L$108,MATCH('LFA_Findings&Recom export'!$C27,'LFA_Findings&Recommendations_6'!$B$9:$B$108,0))=\"\",\"\",INDEX('LFA_Findings&Recommendations_6'!L$9:L$108,MATCH('LFA_Findings&Recom export'!$C27,'LFA_Findings&Recommendations_6'!$B$9:$B$108,0))),\"\")","v":""},null,false,{"$f":"IFERROR(IF(INDEX('LFA_Findings&Recommendations_6'!A$9:A$108,MATCH('LFA_Findings&Recom export'!$C27,'LFA_Findings&Recommendations_6'!$B$9:$B$108,0))=\"\",\"\",INDEX('LFA_Findings&Recommendations_6'!A$9:A$108,MATCH('LFA_Findings&Recom export'!$C27,'LFA_Findings&Recommendations_6'!$B$9:$B$108,0))),\"\")","v":false},{"$f":"IF(P27=TRUE,_xlfn.IFNA(VLOOKUP(D27,RiskData!$B$5:$D$11,3,FALSE), \"\"),\"\")","v":""},{"$f":"IF(P27=TRUE,_xlfn.IFNA(VLOOKUP(E27,RiskData!$F$13:$I$36,4,FALSE), \"\"),\"\")","v":""},{"$f":"IF(P27=TRUE,_xlfn.IFNA(INDEX(RiskData!$H$40:$H$290,MATCH(TRUE,INDEX(RIGHT(RiskData!$F$40:$F$290,255)=RIGHT(F27,255),0),0)), \"\"),\"\")","v":""},{"$f":"IF(OR(P27=TRUE,ISBLANK(D27)),'Admin Sheet'!$B$44,\"\")","v":""},{"$f":"IF(OR(ISBLANK(D27), P27=TRUE),'Admin Sheet'!$B$41,\"\")","v":""},"","","",""]
[null,25,"Finding25",{"$f":"IFERROR(IF(INDEX('LFA_Findings&Recommendations_6'!C$9:C$108,MATCH('LFA_Findings&Recom export'!$C28,'LFA_Findings&Recommendations_6'!$B$9:$B$108,0))=\"\",\"\",INDEX('LFA_Findings&Recommendations_6'!C$9:C$108,MATCH('LFA_Findings&Recom export'!$C28,'LFA_Findings&Recommendations_6'!$B$9:$B$108,0))),\"\")","v":""},{"$f":"IFERROR(IF(INDEX('LFA_Findings&Recommendations_6'!D$9:D$108,MATCH('LFA_Findings&Recom export'!$C28,'LFA_Findings&Recommendations_6'!$B$9:$B$108,0))=\"\",\"\",INDEX('LFA_Findings&Recommendations_6'!D$9:D$108,MATCH('LFA_Findings&Recom export'!$C28,'LFA_Findings&Recommendations_6'!$B$9:$B$108,0))),\"\")","v":""},{"$f":"IFERROR(IF(INDEX('LFA_Findings&Recommendations_6'!E$9:E$108,MATCH('LFA_Findings&Recom export'!$C28,'LFA_Findings&Recommendations_6'!$B$9:$B$108,0))=\"\",\"\",INDEX('LFA_Findings&Recommendations_6'!E$9:E$108,MATCH('LFA_Findings&Recom export'!$C28,'LFA_Findings&Recommendations_6'!$B$9:$B$108,0))),\"\")","v":""},{"$f":"IFERROR(IF(INDEX('LFA_Findings&Recommendations_6'!F$9:F$108,MATCH('LFA_Findings&Recom export'!$C28,'LFA_Findings&Recommendations_6'!$B$9:$B$108,0))=\"\",\"\",INDEX('LFA_Findings&Recommendations_6'!F$9:F$108,MATCH('LFA_Findings&Recom export'!$C28,'LFA_Findings&Recommendations_6'!$B$9:$B$108,0))),\"\")","v":""},{"$f":"IFERROR(IF(INDEX('LFA_Findings&Recommendations_6'!G$9:G$108,MATCH('LFA_Findings&Recom export'!$C28,'LFA_Findings&Recommendations_6'!$B$9:$B$108,0))=\"\",\"\",INDEX('LFA_Findings&Recommendations_6'!G$9:G$108,MATCH('LFA_Findings&Recom export'!$C28,'LFA_Findings&Recommendations_6'!$B$9:$B$108,0))),\"\")","v":""},{"$f":"IFERROR(IF(INDEX('LFA_Findings&Recommendations_6'!H$9:H$108,MATCH('LFA_Findings&Recom export'!$C28,'LFA_Findings&Recommendations_6'!$B$9:$B$108,0))=\"\",\"\",INDEX('LFA_Findings&Recommendations_6'!H$9:H$108,MATCH('LFA_Findings&Recom export'!$C28,'LFA_Findings&Recommendations_6'!$B$9:$B$108,0))),\"\")","v":""},{"$f":"IFERROR(IF(INDEX('LFA_Findings&Recommendations_6'!I$9:I$108,MATCH('LFA_Findings&Recom export'!$C28,'LFA_Findings&Recommendations_6'!$B$9:$B$108,0))=\"\",\"\",INDEX('LFA_Findings&Recommendations_6'!I$9:I$108,MATCH('LFA_Findings&Recom export'!$C28,'LFA_Findings&Recommendations_6'!$B$9:$B$108,0))),\"\")","v":""},{"$f":"IFERROR(IF(INDEX('LFA_Findings&Recommendations_6'!J$9:J$108,MATCH('LFA_Findings&Recom export'!$C28,'LFA_Findings&Recommendations_6'!$B$9:$B$108,0))=\"\",\"\",INDEX('LFA_Findings&Recommendations_6'!J$9:J$108,MATCH('LFA_Findings&Recom export'!$C28,'LFA_Findings&Recommendations_6'!$B$9:$B$108,0))),\"\")","v":""},{"$f":"IFERROR(IF(INDEX('LFA_Findings&Recommendations_6'!K$9:K$108,MATCH('LFA_Findings&Recom export'!$C28,'LFA_Findings&Recommendations_6'!$B$9:$B$108,0))=\"\",\"\",INDEX('LFA_Findings&Recommendations_6'!K$9:K$108,MATCH('LFA_Findings&Recom export'!$C28,'LFA_Findings&Recommendations_6'!$B$9:$B$108,0))),\"\")","v":""},{"$f":"IFERROR(IF(INDEX('LFA_Findings&Recommendations_6'!L$9:L$108,MATCH('LFA_Findings&Recom export'!$C28,'LFA_Findings&Recommendations_6'!$B$9:$B$108,0))=\"\",\"\",INDEX('LFA_Findings&Recommendations_6'!L$9:L$108,MATCH('LFA_Findings&Recom export'!$C28,'LFA_Findings&Recommendations_6'!$B$9:$B$108,0))),\"\")","v":""},null,false,{"$f":"IFERROR(IF(INDEX('LFA_Findings&Recommendations_6'!A$9:A$108,MATCH('LFA_Findings&Recom export'!$C28,'LFA_Findings&Recommendations_6'!$B$9:$B$108,0))=\"\",\"\",INDEX('LFA_Findings&Recommendations_6'!A$9:A$108,MATCH('LFA_Findings&Recom export'!$C28,'LFA_Findings&Recommendations_6'!$B$9:$B$108,0))),\"\")","v":false},{"$f":"IF(P28=TRUE,_xlfn.IFNA(VLOOKUP(D28,RiskData!$B$5:$D$11,3,FALSE), \"\"),\"\")","v":""},{"$f":"IF(P28=TRUE,_xlfn.IFNA(VLOOKUP(E28,RiskData!$F$13:$I$36,4,FALSE), \"\"),\"\")","v":""},{"$f":"IF(P28=TRUE,_xlfn.IFNA(INDEX(RiskData!$H$40:$H$290,MATCH(TRUE,INDEX(RIGHT(RiskData!$F$40:$F$290,255)=RIGHT(F28,255),0),0)), \"\"),\"\")","v":""},{"$f":"IF(OR(P28=TRUE,ISBLANK(D28)),'Admin Sheet'!$B$44,\"\")","v":""},{"$f":"IF(OR(ISBLANK(D28), P28=TRUE),'Admin Sheet'!$B$41,\"\")","v":""},"","","",""]
[null,26,"Finding26",{"$f":"IFERROR(IF(INDEX('LFA_Findings&Recommendations_6'!C$9:C$108,MATCH('LFA_Findings&Recom export'!$C29,'LFA_Findings&Recommendations_6'!$B$9:$B$108,0))=\"\",\"\",INDEX('LFA_Findings&Recommendations_6'!C$9:C$108,MATCH('LFA_Findings&Recom export'!$C29,'LFA_Findings&Recommendations_6'!$B$9:$B$108,0))),\"\")","v":""},{"$f":"IFERROR(IF(INDEX('LFA_Findings&Recommendations_6'!D$9:D$108,MATCH('LFA_Findings&Recom export'!$C29,'LFA_Findings&Recommendations_6'!$B$9:$B$108,0))=\"\",\"\",INDEX('LFA_Findings&Recommendations_6'!D$9:D$108,MATCH('LFA_Findings&Recom export'!$C29,'LFA_Findings&Recommendations_6'!$B$9:$B$108,0))),\"\")","v":""},{"$f":"IFERROR(IF(INDEX('LFA_Findings&Recommendations_6'!E$9:E$108,MATCH('LFA_Findings&Recom export'!$C29,'LFA_Findings&Recommendations_6'!$B$9:$B$108,0))=\"\",\"\",INDEX('LFA_Findings&Recommendations_6'!E$9:E$108,MATCH('LFA_Findings&Recom export'!$C29,'LFA_Findings&Recommendations_6'!$B$9:$B$108,0))),\"\")","v":""},{"$f":"IFERROR(IF(INDEX('LFA_Findings&Recommendations_6'!F$9:F$108,MATCH('LFA_Findings&Recom export'!$C29,'LFA_Findings&Recommendations_6'!$B$9:$B$108,0))=\"\",\"\",INDEX('LFA_Findings&Recommendations_6'!F$9:F$108,MATCH('LFA_Findings&Recom export'!$C29,'LFA_Findings&Recommendations_6'!$B$9:$B$108,0))),\"\")","v":""},{"$f":"IFERROR(IF(INDEX('LFA_Findings&Recommendations_6'!G$9:G$108,MATCH('LFA_Findings&Recom export'!$C29,'LFA_Findings&Recommendations_6'!$B$9:$B$108,0))=\"\",\"\",INDEX('LFA_Findings&Recommendations_6'!G$9:G$108,MATCH('LFA_Findings&Recom export'!$C29,'LFA_Findings&Recommendations_6'!$B$9:$B$108,0))),\"\")","v":""},{"$f":"IFERROR(IF(INDEX('LFA_Findings&Recommendations_6'!H$9:H$108,MATCH('LFA_Findings&Recom export'!$C29,'LFA_Findings&Recommendations_6'!$B$9:$B$108,0))=\"\",\"\",INDEX('LFA_Findings&Recommendations_6'!H$9:H$108,MATCH('LFA_Findings&Recom export'!$C29,'LFA_Findings&Recommendations_6'!$B$9:$B$108,0))),\"\")","v":""},{"$f":"IFERROR(IF(INDEX('LFA_Findings&Recommendations_6'!I$9:I$108,MATCH('LFA_Findings&Recom export'!$C29,'LFA_Findings&Recommendations_6'!$B$9:$B$108,0))=\"\",\"\",INDEX('LFA_Findings&Recommendations_6'!I$9:I$108,MATCH('LFA_Findings&Recom export'!$C29,'LFA_Findings&Recommendations_6'!$B$9:$B$108,0))),\"\")","v":""},{"$f":"IFERROR(IF(INDEX('LFA_Findings&Recommendations_6'!J$9:J$108,MATCH('LFA_Findings&Recom export'!$C29,'LFA_Findings&Recommendations_6'!$B$9:$B$108,0))=\"\",\"\",INDEX('LFA_Findings&Recommendations_6'!J$9:J$108,MATCH('LFA_Findings&Recom export'!$C29,'LFA_Findings&Recommendations_6'!$B$9:$B$108,0))),\"\")","v":""},{"$f":"IFERROR(IF(INDEX('LFA_Findings&Recommendations_6'!K$9:K$108,MATCH('LFA_Findings&Recom export'!$C29,'LFA_Findings&Recommendations_6'!$B$9:$B$108,0))=\"\",\"\",INDEX('LFA_Findings&Recommendations_6'!K$9:K$108,MATCH('LFA_Findings&Recom export'!$C29,'LFA_Findings&Recommendations_6'!$B$9:$B$108,0))),\"\")","v":""},{"$f":"IFERROR(IF(INDEX('LFA_Findings&Recommendations_6'!L$9:L$108,MATCH('LFA_Findings&Recom export'!$C29,'LFA_Findings&Recommendations_6'!$B$9:$B$108,0))=\"\",\"\",INDEX('LFA_Findings&Recommendations_6'!L$9:L$108,MATCH('LFA_Findings&Recom export'!$C29,'LFA_Findings&Recommendations_6'!$B$9:$B$108,0))),\"\")","v":""},null,false,{"$f":"IFERROR(IF(INDEX('LFA_Findings&Recommendations_6'!A$9:A$108,MATCH('LFA_Findings&Recom export'!$C29,'LFA_Findings&Recommendations_6'!$B$9:$B$108,0))=\"\",\"\",INDEX('LFA_Findings&Recommendations_6'!A$9:A$108,MATCH('LFA_Findings&Recom export'!$C29,'LFA_Findings&Recommendations_6'!$B$9:$B$108,0))),\"\")","v":false},{"$f":"IF(P29=TRUE,_xlfn.IFNA(VLOOKUP(D29,RiskData!$B$5:$D$11,3,FALSE), \"\"),\"\")","v":""},{"$f":"IF(P29=TRUE,_xlfn.IFNA(VLOOKUP(E29,RiskData!$F$13:$I$36,4,FALSE), \"\"),\"\")","v":""},{"$f":"IF(P29=TRUE,_xlfn.IFNA(INDEX(RiskData!$H$40:$H$290,MATCH(TRUE,INDEX(RIGHT(RiskData!$F$40:$F$290,255)=RIGHT(F29,255),0),0)), \"\"),\"\")","v":""},{"$f":"IF(OR(P29=TRUE,ISBLANK(D29)),'Admin Sheet'!$B$44,\"\")","v":""},{"$f":"IF(OR(ISBLANK(D29), P29=TRUE),'Admin Sheet'!$B$41,\"\")","v":""},"","","",""]
[null,27,"Finding27",{"$f":"IFERROR(IF(INDEX('LFA_Findings&Recommendations_6'!C$9:C$108,MATCH('LFA_Findings&Recom export'!$C30,'LFA_Findings&Recommendations_6'!$B$9:$B$108,0))=\"\",\"\",INDEX('LFA_Findings&Recommendations_6'!C$9:C$108,MATCH('LFA_Findings&Recom export'!$C30,'LFA_Findings&Recommendations_6'!$B$9:$B$108,0))),\"\")","v":""},{"$f":"IFERROR(IF(INDEX('LFA_Findings&Recommendations_6'!D$9:D$108,MATCH('LFA_Findings&Recom export'!$C30,'LFA_Findings&Recommendations_6'!$B$9:$B$108,0))=\"\",\"\",INDEX('LFA_Findings&Recommendations_6'!D$9:D$108,MATCH('LFA_Findings&Recom export'!$C30,'LFA_Findings&Recommendations_6'!$B$9:$B$108,0))),\"\")","v":""},{"$f":"IFERROR(IF(INDEX('LFA_Findings&Recommendations_6'!E$9:E$108,MATCH('LFA_Findings&Recom export'!$C30,'LFA_Findings&Recommendations_6'!$B$9:$B$108,0))=\"\",\"\",INDEX('LFA_Findings&Recommendations_6'!E$9:E$108,MATCH('LFA_Findings&Recom export'!$C30,'LFA_Findings&Recommendations_6'!$B$9:$B$108,0))),\"\")","v":""},{"$f":"IFERROR(IF(INDEX('LFA_Findings&Recommendations_6'!F$9:F$108,MATCH('LFA_Findings&Recom export'!$C30,'LFA_Findings&Recommendations_6'!$B$9:$B$108,0))=\"\",\"\",INDEX('LFA_Findings&Recommendations_6'!F$9:F$108,MATCH('LFA_Findings&Recom export'!$C30,'LFA_Findings&Recommendations_6'!$B$9:$B$108,0))),\"\")","v":""},{"$f":"IFERROR(IF(INDEX('LFA_Findings&Recommendations_6'!G$9:G$108,MATCH('LFA_Findings&Recom export'!$C30,'LFA_Findings&Recommendations_6'!$B$9:$B$108,0))=\"\",\"\",INDEX('LFA_Findings&Recommendations_6'!G$9:G$108,MATCH('LFA_Findings&Recom export'!$C30,'LFA_Findings&Recommendations_6'!$B$9:$B$108,0))),\"\")","v":""},{"$f":"IFERROR(IF(INDEX('LFA_Findings&Recommendations_6'!H$9:H$108,MATCH('LFA_Findings&Recom export'!$C30,'LFA_Findings&Recommendations_6'!$B$9:$B$108,0))=\"\",\"\",INDEX('LFA_Findings&Recommendations_6'!H$9:H$108,MATCH('LFA_Findings&Recom export'!$C30,'LFA_Findings&Recommendations_6'!$B$9:$B$108,0))),\"\")","v":""},{"$f":"IFERROR(IF(INDEX('LFA_Findings&Recommendations_6'!I$9:I$108,MATCH('LFA_Findings&Recom export'!$C30,'LFA_Findings&Recommendations_6'!$B$9:$B$108,0))=\"\",\"\",INDEX('LFA_Findings&Recommendations_6'!I$9:I$108,MATCH('LFA_Findings&Recom export'!$C30,'LFA_Findings&Recommendations_6'!$B$9:$B$108,0))),\"\")","v":""},{"$f":"IFERROR(IF(INDEX('LFA_Findings&Recommendations_6'!J$9:J$108,MATCH('LFA_Findings&Recom export'!$C30,'LFA_Findings&Recommendations_6'!$B$9:$B$108,0))=\"\",\"\",INDEX('LFA_Findings&Recommendations_6'!J$9:J$108,MATCH('LFA_Findings&Recom export'!$C30,'LFA_Findings&Recommendations_6'!$B$9:$B$108,0))),\"\")","v":""},{"$f":"IFERROR(IF(INDEX('LFA_Findings&Recommendations_6'!K$9:K$108,MATCH('LFA_Findings&Recom export'!$C30,'LFA_Findings&Recommendations_6'!$B$9:$B$108,0))=\"\",\"\",INDEX('LFA_Findings&Recommendations_6'!K$9:K$108,MATCH('LFA_Findings&Recom export'!$C30,'LFA_Findings&Recommendations_6'!$B$9:$B$108,0))),\"\")","v":""},{"$f":"IFERROR(IF(INDEX('LFA_Findings&Recommendations_6'!L$9:L$108,MATCH('LFA_Findings&Recom export'!$C30,'LFA_Findings&Recommendations_6'!$B$9:$B$108,0))=\"\",\"\",INDEX('LFA_Findings&Recommendations_6'!L$9:L$108,MATCH('LFA_Findings&Recom export'!$C30,'LFA_Findings&Recommendations_6'!$B$9:$B$108,0))),\"\")","v":""},null,false,{"$f":"IFERROR(IF(INDEX('LFA_Findings&Recommendations_6'!A$9:A$108,MATCH('LFA_Findings&Recom export'!$C30,'LFA_Findings&Recommendations_6'!$B$9:$B$108,0))=\"\",\"\",INDEX('LFA_Findings&Recommendations_6'!A$9:A$108,MATCH('LFA_Findings&Recom export'!$C30,'LFA_Findings&Recommendations_6'!$B$9:$B$108,0))),\"\")","v":false},{"$f":"IF(P30=TRUE,_xlfn.IFNA(VLOOKUP(D30,RiskData!$B$5:$D$11,3,FALSE), \"\"),\"\")","v":""},{"$f":"IF(P30=TRUE,_xlfn.IFNA(VLOOKUP(E30,RiskData!$F$13:$I$36,4,FALSE), \"\"),\"\")","v":""},{"$f":"IF(P30=TRUE,_xlfn.IFNA(INDEX(RiskData!$H$40:$H$290,MATCH(TRUE,INDEX(RIGHT(RiskData!$F$40:$F$290,255)=RIGHT(F30,255),0),0)), \"\"),\"\")","v":""},{"$f":"IF(OR(P30=TRUE,ISBLANK(D30)),'Admin Sheet'!$B$44,\"\")","v":""},{"$f":"IF(OR(ISBLANK(D30), P30=TRUE),'Admin Sheet'!$B$41,\"\")","v":""},"","","",""]
[null,28,"Finding28",{"$f":"IFERROR(IF(INDEX('LFA_Findings&Recommendations_6'!C$9:C$108,MATCH('LFA_Findings&Recom export'!$C31,'LFA_Findings&Recommendations_6'!$B$9:$B$108,0))=\"\",\"\",INDEX('LFA_Findings&Recommendations_6'!C$9:C$108,MATCH('LFA_Findings&Recom export'!$C31,'LFA_Findings&Recommendations_6'!$B$9:$B$108,0))),\"\")","v":""},{"$f":"IFERROR(IF(INDEX('LFA_Findings&Recommendations_6'!D$9:D$108,MATCH('LFA_Findings&Recom export'!$C31,'LFA_Findings&Recommendations_6'!$B$9:$B$108,0))=\"\",\"\",INDEX('LFA_Findings&Recommendations_6'!D$9:D$108,MATCH('LFA_Findings&Recom export'!$C31,'LFA_Findings&Recommendations_6'!$B$9:$B$108,0))),\"\")","v":""},{"$f":"IFERROR(IF(INDEX('LFA_Findings&Recommendations_6'!E$9:E$108,MATCH('LFA_Findings&Recom export'!$C31,'LFA_Findings&Recommendations_6'!$B$9:$B$108,0))=\"\",\"\",INDEX('LFA_Findings&Recommendations_6'!E$9:E$108,MATCH('LFA_Findings&Recom export'!$C31,'LFA_Findings&Recommendations_6'!$B$9:$B$108,0))),\"\")","v":""},{"$f":"IFERROR(IF(INDEX('LFA_Findings&Recommendations_6'!F$9:F$108,MATCH('LFA_Findings&Recom export'!$C31,'LFA_Findings&Recommendations_6'!$B$9:$B$108,0))=\"\",\"\",INDEX('LFA_Findings&Recommendations_6'!F$9:F$108,MATCH('LFA_Findings&Recom export'!$C31,'LFA_Findings&Recommendations_6'!$B$9:$B$108,0))),\"\")","v":""},{"$f":"IFERROR(IF(INDEX('LFA_Findings&Recommendations_6'!G$9:G$108,MATCH('LFA_Findings&Recom export'!$C31,'LFA_Findings&Recommendations_6'!$B$9:$B$108,0))=\"\",\"\",INDEX('LFA_Findings&Recommendations_6'!G$9:G$108,MATCH('LFA_Findings&Recom export'!$C31,'LFA_Findings&Recommendations_6'!$B$9:$B$108,0))),\"\")","v":""},{"$f":"IFERROR(IF(INDEX('LFA_Findings&Recommendations_6'!H$9:H$108,MATCH('LFA_Findings&Recom export'!$C31,'LFA_Findings&Recommendations_6'!$B$9:$B$108,0))=\"\",\"\",INDEX('LFA_Findings&Recommendations_6'!H$9:H$108,MATCH('LFA_Findings&Recom export'!$C31,'LFA_Findings&Recommendations_6'!$B$9:$B$108,0))),\"\")","v":""},{"$f":"IFERROR(IF(INDEX('LFA_Findings&Recommendations_6'!I$9:I$108,MATCH('LFA_Findings&Recom export'!$C31,'LFA_Findings&Recommendations_6'!$B$9:$B$108,0))=\"\",\"\",INDEX('LFA_Findings&Recommendations_6'!I$9:I$108,MATCH('LFA_Findings&Recom export'!$C31,'LFA_Findings&Recommendations_6'!$B$9:$B$108,0))),\"\")","v":""},{"$f":"IFERROR(IF(INDEX('LFA_Findings&Recommendations_6'!J$9:J$108,MATCH('LFA_Findings&Recom export'!$C31,'LFA_Findings&Recommendations_6'!$B$9:$B$108,0))=\"\",\"\",INDEX('LFA_Findings&Recommendations_6'!J$9:J$108,MATCH('LFA_Findings&Recom export'!$C31,'LFA_Findings&Recommendations_6'!$B$9:$B$108,0))),\"\")","v":""},{"$f":"IFERROR(IF(INDEX('LFA_Findings&Recommendations_6'!K$9:K$108,MATCH('LFA_Findings&Recom export'!$C31,'LFA_Findings&Recommendations_6'!$B$9:$B$108,0))=\"\",\"\",INDEX('LFA_Findings&Recommendations_6'!K$9:K$108,MATCH('LFA_Findings&Recom export'!$C31,'LFA_Findings&Recommendations_6'!$B$9:$B$108,0))),\"\")","v":""},{"$f":"IFERROR(IF(INDEX('LFA_Findings&Recommendations_6'!L$9:L$108,MATCH('LFA_Findings&Recom export'!$C31,'LFA_Findings&Recommendations_6'!$B$9:$B$108,0))=\"\",\"\",INDEX('LFA_Findings&Recommendations_6'!L$9:L$108,MATCH('LFA_Findings&Recom export'!$C31,'LFA_Findings&Recommendations_6'!$B$9:$B$108,0))),\"\")","v":""},null,false,{"$f":"IFERROR(IF(INDEX('LFA_Findings&Recommendations_6'!A$9:A$108,MATCH('LFA_Findings&Recom export'!$C31,'LFA_Findings&Recommendations_6'!$B$9:$B$108,0))=\"\",\"\",INDEX('LFA_Findings&Recommendations_6'!A$9:A$108,MATCH('LFA_Findings&Recom export'!$C31,'LFA_Findings&Recommendations_6'!$B$9:$B$108,0))),\"\")","v":false},{"$f":"IF(P31=TRUE,_xlfn.IFNA(VLOOKUP(D31,RiskData!$B$5:$D$11,3,FALSE), \"\"),\"\")","v":""},{"$f":"IF(P31=TRUE,_xlfn.IFNA(VLOOKUP(E31,RiskData!$F$13:$I$36,4,FALSE), \"\"),\"\")","v":""},{"$f":"IF(P31=TRUE,_xlfn.IFNA(INDEX(RiskData!$H$40:$H$290,MATCH(TRUE,INDEX(RIGHT(RiskData!$F$40:$F$290,255)=RIGHT(F31,255),0),0)), \"\"),\"\")","v":""},{"$f":"IF(OR(P31=TRUE,ISBLANK(D31)),'Admin Sheet'!$B$44,\"\")","v":""},{"$f":"IF(OR(ISBLANK(D31), P31=TRUE),'Admin Sheet'!$B$41,\"\")","v":""},"","","",""]
[null,29,"Finding29",{"$f":"IFERROR(IF(INDEX('LFA_Findings&Recommendations_6'!C$9:C$108,MATCH('LFA_Findings&Recom export'!$C32,'LFA_Findings&Recommendations_6'!$B$9:$B$108,0))=\"\",\"\",INDEX('LFA_Findings&Recommendations_6'!C$9:C$108,MATCH('LFA_Findings&Recom export'!$C32,'LFA_Findings&Recommendations_6'!$B$9:$B$108,0))),\"\")","v":""},{"$f":"IFERROR(IF(INDEX('LFA_Findings&Recommendations_6'!D$9:D$108,MATCH('LFA_Findings&Recom export'!$C32,'LFA_Findings&Recommendations_6'!$B$9:$B$108,0))=\"\",\"\",INDEX('LFA_Findings&Recommendations_6'!D$9:D$108,MATCH('LFA_Findings&Recom export'!$C32,'LFA_Findings&Recommendations_6'!$B$9:$B$108,0))),\"\")","v":""},{"$f":"IFERROR(IF(INDEX('LFA_Findings&Recommendations_6'!E$9:E$108,MATCH('LFA_Findings&Recom export'!$C32,'LFA_Findings&Recommendations_6'!$B$9:$B$108,0))=\"\",\"\",INDEX('LFA_Findings&Recommendations_6'!E$9:E$108,MATCH('LFA_Findings&Recom export'!$C32,'LFA_Findings&Recommendations_6'!$B$9:$B$108,0))),\"\")","v":""},{"$f":"IFERROR(IF(INDEX('LFA_Findings&Recommendations_6'!F$9:F$108,MATCH('LFA_Findings&Recom export'!$C32,'LFA_Findings&Recommendations_6'!$B$9:$B$108,0))=\"\",\"\",INDEX('LFA_Findings&Recommendations_6'!F$9:F$108,MATCH('LFA_Findings&Recom export'!$C32,'LFA_Findings&Recommendations_6'!$B$9:$B$108,0))),\"\")","v":""},{"$f":"IFERROR(IF(INDEX('LFA_Findings&Recommendations_6'!G$9:G$108,MATCH('LFA_Findings&Recom export'!$C32,'LFA_Findings&Recommendations_6'!$B$9:$B$108,0))=\"\",\"\",INDEX('LFA_Findings&Recommendations_6'!G$9:G$108,MATCH('LFA_Findings&Recom export'!$C32,'LFA_Findings&Recommendations_6'!$B$9:$B$108,0))),\"\")","v":""},{"$f":"IFERROR(IF(INDEX('LFA_Findings&Recommendations_6'!H$9:H$108,MATCH('LFA_Findings&Recom export'!$C32,'LFA_Findings&Recommendations_6'!$B$9:$B$108,0))=\"\",\"\",INDEX('LFA_Findings&Recommendations_6'!H$9:H$108,MATCH('LFA_Findings&Recom export'!$C32,'LFA_Findings&Recommendations_6'!$B$9:$B$108,0))),\"\")","v":""},{"$f":"IFERROR(IF(INDEX('LFA_Findings&Recommendations_6'!I$9:I$108,MATCH('LFA_Findings&Recom export'!$C32,'LFA_Findings&Recommendations_6'!$B$9:$B$108,0))=\"\",\"\",INDEX('LFA_Findings&Recommendations_6'!I$9:I$108,MATCH('LFA_Findings&Recom export'!$C32,'LFA_Findings&Recommendations_6'!$B$9:$B$108,0))),\"\")","v":""},{"$f":"IFERROR(IF(INDEX('LFA_Findings&Recommendations_6'!J$9:J$108,MATCH('LFA_Findings&Recom export'!$C32,'LFA_Findings&Recommendations_6'!$B$9:$B$108,0))=\"\",\"\",INDEX('LFA_Findings&Recommendations_6'!J$9:J$108,MATCH('LFA_Findings&Recom export'!$C32,'LFA_Findings&Recommendations_6'!$B$9:$B$108,0))),\"\")","v":""},{"$f":"IFERROR(IF(INDEX('LFA_Findings&Recommendations_6'!K$9:K$108,MATCH('LFA_Findings&Recom export'!$C32,'LFA_Findings&Recommendations_6'!$B$9:$B$108,0))=\"\",\"\",INDEX('LFA_Findings&Recommendations_6'!K$9:K$108,MATCH('LFA_Findings&Recom export'!$C32,'LFA_Findings&Recommendations_6'!$B$9:$B$108,0))),\"\")","v":""},{"$f":"IFERROR(IF(INDEX('LFA_Findings&Recommendations_6'!L$9:L$108,MATCH('LFA_Findings&Recom export'!$C32,'LFA_Findings&Recommendations_6'!$B$9:$B$108,0))=\"\",\"\",INDEX('LFA_Findings&Recommendations_6'!L$9:L$108,MATCH('LFA_Findings&Recom export'!$C32,'LFA_Findings&Recommendations_6'!$B$9:$B$108,0))),\"\")","v":""},null,false,{"$f":"IFERROR(IF(INDEX('LFA_Findings&Recommendations_6'!A$9:A$108,MATCH('LFA_Findings&Recom export'!$C32,'LFA_Findings&Recommendations_6'!$B$9:$B$108,0))=\"\",\"\",INDEX('LFA_Findings&Recommendations_6'!A$9:A$108,MATCH('LFA_Findings&Recom export'!$C32,'LFA_Findings&Recommendations_6'!$B$9:$B$108,0))),\"\")","v":false},{"$f":"IF(P32=TRUE,_xlfn.IFNA(VLOOKUP(D32,RiskData!$B$5:$D$11,3,FALSE), \"\"),\"\")","v":""},{"$f":"IF(P32=TRUE,_xlfn.IFNA(VLOOKUP(E32,RiskData!$F$13:$I$36,4,FALSE), \"\"),\"\")","v":""},{"$f":"IF(P32=TRUE,_xlfn.IFNA(INDEX(RiskData!$H$40:$H$290,MATCH(TRUE,INDEX(RIGHT(RiskData!$F$40:$F$290,255)=RIGHT(F32,255),0),0)), \"\"),\"\")","v":""},{"$f":"IF(OR(P32=TRUE,ISBLANK(D32)),'Admin Sheet'!$B$44,\"\")","v":""},{"$f":"IF(OR(ISBLANK(D32), P32=TRUE),'Admin Sheet'!$B$41,\"\")","v":""},"","","",""]
[null,30,"Finding30",{"$f":"IFERROR(IF(INDEX('LFA_Findings&Recommendations_6'!C$9:C$108,MATCH('LFA_Findings&Recom export'!$C33,'LFA_Findings&Recommendations_6'!$B$9:$B$108,0))=\"\",\"\",INDEX('LFA_Findings&Recommendations_6'!C$9:C$108,MATCH('LFA_Findings&Recom export'!$C33,'LFA_Findings&Recommendations_6'!$B$9:$B$108,0))),\"\")","v":""},{"$f":"IFERROR(IF(INDEX('LFA_Findings&Recommendations_6'!D$9:D$108,MATCH('LFA_Findings&Recom export'!$C33,'LFA_Findings&Recommendations_6'!$B$9:$B$108,0))=\"\",\"\",INDEX('LFA_Findings&Recommendations_6'!D$9:D$108,MATCH('LFA_Findings&Recom export'!$C33,'LFA_Findings&Recommendations_6'!$B$9:$B$108,0))),\"\")","v":""},{"$f":"IFERROR(IF(INDEX('LFA_Findings&Recommendations_6'!E$9:E$108,MATCH('LFA_Findings&Recom export'!$C33,'LFA_Findings&Recommendations_6'!$B$9:$B$108,0))=\"\",\"\",INDEX('LFA_Findings&Recommendations_6'!E$9:E$108,MATCH('LFA_Findings&Recom export'!$C33,'LFA_Findings&Recommendations_6'!$B$9:$B$108,0))),\"\")","v":""},{"$f":"IFERROR(IF(INDEX('LFA_Findings&Recommendations_6'!F$9:F$108,MATCH('LFA_Findings&Recom export'!$C33,'LFA_Findings&Recommendations_6'!$B$9:$B$108,0))=\"\",\"\",INDEX('LFA_Findings&Recommendations_6'!F$9:F$108,MATCH('LFA_Findings&Recom export'!$C33,'LFA_Findings&Recommendations_6'!$B$9:$B$108,0))),\"\")","v":""},{"$f":"IFERROR(IF(INDEX('LFA_Findings&Recommendations_6'!G$9:G$108,MATCH('LFA_Findings&Recom export'!$C33,'LFA_Findings&Recommendations_6'!$B$9:$B$108,0))=\"\",\"\",INDEX('LFA_Findings&Recommendations_6'!G$9:G$108,MATCH('LFA_Findings&Recom export'!$C33,'LFA_Findings&Recommendations_6'!$B$9:$B$108,0))),\"\")","v":""},{"$f":"IFERROR(IF(INDEX('LFA_Findings&Recommendations_6'!H$9:H$108,MATCH('LFA_Findings&Recom export'!$C33,'LFA_Findings&Recommendations_6'!$B$9:$B$108,0))=\"\",\"\",INDEX('LFA_Findings&Recommendations_6'!H$9:H$108,MATCH('LFA_Findings&Recom export'!$C33,'LFA_Findings&Recommendations_6'!$B$9:$B$108,0))),\"\")","v":""},{"$f":"IFERROR(IF(INDEX('LFA_Findings&Recommendations_6'!I$9:I$108,MATCH('LFA_Findings&Recom export'!$C33,'LFA_Findings&Recommendations_6'!$B$9:$B$108,0))=\"\",\"\",INDEX('LFA_Findings&Recommendations_6'!I$9:I$108,MATCH('LFA_Findings&Recom export'!$C33,'LFA_Findings&Recommendations_6'!$B$9:$B$108,0))),\"\")","v":""},{"$f":"IFERROR(IF(INDEX('LFA_Findings&Recommendations_6'!J$9:J$108,MATCH('LFA_Findings&Recom export'!$C33,'LFA_Findings&Recommendations_6'!$B$9:$B$108,0))=\"\",\"\",INDEX('LFA_Findings&Recommendations_6'!J$9:J$108,MATCH('LFA_Findings&Recom export'!$C33,'LFA_Findings&Recommendations_6'!$B$9:$B$108,0))),\"\")","v":""},{"$f":"IFERROR(IF(INDEX('LFA_Findings&Recommendations_6'!K$9:K$108,MATCH('LFA_Findings&Recom export'!$C33,'LFA_Findings&Recommendations_6'!$B$9:$B$108,0))=\"\",\"\",INDEX('LFA_Findings&Recommendations_6'!K$9:K$108,MATCH('LFA_Findings&Recom export'!$C33,'LFA_Findings&Recommendations_6'!$B$9:$B$108,0))),\"\")","v":""},{"$f":"IFERROR(IF(INDEX('LFA_Findings&Recommendations_6'!L$9:L$108,MATCH('LFA_Findings&Recom export'!$C33,'LFA_Findings&Recommendations_6'!$B$9:$B$108,0))=\"\",\"\",INDEX('LFA_Findings&Recommendations_6'!L$9:L$108,MATCH('LFA_Findings&Recom export'!$C33,'LFA_Findings&Recommendations_6'!$B$9:$B$108,0))),\"\")","v":""},null,false,{"$f":"IFERROR(IF(INDEX('LFA_Findings&Recommendations_6'!A$9:A$108,MATCH('LFA_Findings&Recom export'!$C33,'LFA_Findings&Recommendations_6'!$B$9:$B$108,0))=\"\",\"\",INDEX('LFA_Findings&Recommendations_6'!A$9:A$108,MATCH('LFA_Findings&Recom export'!$C33,'LFA_Findings&Recommendations_6'!$B$9:$B$108,0))),\"\")","v":false},{"$f":"IF(P33=TRUE,_xlfn.IFNA(VLOOKUP(D33,RiskData!$B$5:$D$11,3,FALSE), \"\"),\"\")","v":""},{"$f":"IF(P33=TRUE,_xlfn.IFNA(VLOOKUP(E33,RiskData!$F$13:$I$36,4,FALSE), \"\"),\"\")","v":""},{"$f":"IF(P33=TRUE,_xlfn.IFNA(INDEX(RiskData!$H$40:$H$290,MATCH(TRUE,INDEX(RIGHT(RiskData!$F$40:$F$290,255)=RIGHT(F33,255),0),0)), \"\"),\"\")","v":""},{"$f":"IF(OR(P33=TRUE,ISBLANK(D33)),'Admin Sheet'!$B$44,\"\")","v":""},{"$f":"IF(OR(ISBLANK(D33), P33=TRUE),'Admin Sheet'!$B$41,\"\")","v":""},"","","",""]
[null,{"$f":"B3+1","v":1},{"$f":"\"Finding\"&B34","v":"Finding1"},{"$f":"IFERROR(IF(INDEX('LFA_Findings&Recommendations_6'!C$9:C$108,MATCH('LFA_Findings&Recom export'!$C34,'LFA_Findings&Recommendations_6'!$B$9:$B$108,0))=\"\",\"\",INDEX('LFA_Findings&Recommendations_6'!C$9:C$108,MATCH('LFA_Findings&Recom export'!$C34,'LFA_Findings&Recommendations_6'!$B$9:$B$108,0))),\"\")","v":""},{"$f":"IFERROR(IF(INDEX('LFA_Findings&Recommendations_6'!D$9:D$108,MATCH('LFA_Findings&Recom export'!$C34,'LFA_Findings&Recommendations_6'!$B$9:$B$108,0))=\"\",\"\",INDEX('LFA_Findings&Recommendations_6'!D$9:D$108,MATCH('LFA_Findings&Recom export'!$C34,'LFA_Findings&Recommendations_6'!$B$9:$B$108,0))),\"\")","v":""},{"$f":"IFERROR(IF(INDEX('LFA_Findings&Recommendations_6'!E$9:E$108,MATCH('LFA_Findings&Recom export'!$C34,'LFA_Findings&Recommendations_6'!$B$9:$B$108,0))=\"\",\"\",INDEX('LFA_Findings&Recommendations_6'!E$9:E$108,MATCH('LFA_Findings&Recom export'!$C34,'LFA_Findings&Recommendations_6'!$B$9:$B$108,0))),\"\")","v":""},{"$f":"IFERROR(IF(INDEX('LFA_Findings&Recommendations_6'!F$9:F$108,MATCH('LFA_Findings&Recom export'!$C34,'LFA_Findings&Recommendations_6'!$B$9:$B$108,0))=\"\",\"\",INDEX('LFA_Findings&Recommendations_6'!F$9:F$108,MATCH('LFA_Findings&Recom export'!$C34,'LFA_Findings&Recommendations_6'!$B$9:$B$108,0))),\"\")","v":""},{"$f":"IFERROR(IF(INDEX('LFA_Findings&Recommendations_6'!G$9:G$108,MATCH('LFA_Findings&Recom export'!$C34,'LFA_Findings&Recommendations_6'!$B$9:$B$108,0))=\"\",\"\",INDEX('LFA_Findings&Recommendations_6'!G$9:G$108,MATCH('LFA_Findings&Recom export'!$C34,'LFA_Findings&Recommendations_6'!$B$9:$B$108,0))),\"\")","v":""},{"$f":"IFERROR(IF(INDEX('LFA_Findings&Recommendations_6'!H$9:H$108,MATCH('LFA_Findings&Recom export'!$C34,'LFA_Findings&Recommendations_6'!$B$9:$B$108,0))=\"\",\"\",INDEX('LFA_Findings&Recommendations_6'!H$9:H$108,MATCH('LFA_Findings&Recom export'!$C34,'LFA_Findings&Recommendations_6'!$B$9:$B$108,0))),\"\")","v":""},{"$f":"IFERROR(IF(INDEX('LFA_Findings&Recommendations_6'!I$9:I$108,MATCH('LFA_Findings&Recom export'!$C34,'LFA_Findings&Recommendations_6'!$B$9:$B$108,0))=\"\",\"\",INDEX('LFA_Findings&Recommendations_6'!I$9:I$108,MATCH('LFA_Findings&Recom export'!$C34,'LFA_Findings&Recommendations_6'!$B$9:$B$108,0))),\"\")","v":""},{"$f":"IFERROR(IF(INDEX('LFA_Findings&Recommendations_6'!J$9:J$108,MATCH('LFA_Findings&Recom export'!$C34,'LFA_Findings&Recommendations_6'!$B$9:$B$108,0))=\"\",\"\",INDEX('LFA_Findings&Recommendations_6'!J$9:J$108,MATCH('LFA_Findings&Recom export'!$C34,'LFA_Findings&Recommendations_6'!$B$9:$B$108,0))),\"\")","v":""},{"$f":"IFERROR(IF(INDEX('LFA_Findings&Recommendations_6'!K$9:K$108,MATCH('LFA_Findings&Recom export'!$C34,'LFA_Findings&Recommendations_6'!$B$9:$B$108,0))=\"\",\"\",INDEX('LFA_Findings&Recommendations_6'!K$9:K$108,MATCH('LFA_Findings&Recom export'!$C34,'LFA_Findings&Recommendations_6'!$B$9:$B$108,0))),\"\")","v":""},{"$f":"IFERROR(IF(INDEX('LFA_Findings&Recommendations_6'!L$9:L$108,MATCH('LFA_Findings&Recom export'!$C34,'LFA_Findings&Recommendations_6'!$B$9:$B$108,0))=\"\",\"\",INDEX('LFA_Findings&Recommendations_6'!L$9:L$108,MATCH('LFA_Findings&Recom export'!$C34,'LFA_Findings&Recommendations_6'!$B$9:$B$108,0))),\"\")","v":""},null,null,{"$f":"IFERROR(IF(INDEX('LFA_Findings&Recommendations_6'!A$9:A$108,MATCH('LFA_Findings&Recom export'!$C34,'LFA_Findings&Recommendations_6'!$B$9:$B$108,0))=\"\",\"\",INDEX('LFA_Findings&Recommendations_6'!A$9:A$108,MATCH('LFA_Findings&Recom export'!$C34,'LFA_Findings&Recommendations_6'!$B$9:$B$108,0))),\"\")","v":false},{"$f":"IF(P34=TRUE,_xlfn.IFNA(VLOOKUP(D34,RiskData!$B$5:$D$11,3,FALSE), \"\"),\"\")","v":""}]

{"sheet":"PR Expenditure_7A","index":30,"n_rows":278,"n_cols":21,"rows_kept":278,"cut":false,"hidden":false,"merged":[[2,5,2,6],[3,5,3,6],[219,2,219,3],[274,2,274,3],[0,2,0,13]]}
[null,null,{"$f":"IF(CoverSheet!J12=\"N/A\",\"Progress Report\",\"Progress Report with Disbursement Request\")","v":"Progress Report with Disbursement Request"}]
[null,null,"Section 7A.The Principal Recipient Expenditure Report Completed by the Principal Recipient"]
[null,null,null,null,null,{"$f":"CoverSheet!F12","v":"Période couverte par le rapport sur les information financière"},null,{"$f":"CoverSheet!J12","v":"2018-01-01"},null,{"$f":"CoverSheet!K12","v":"Date de fin :"},{"$f":"CoverSheet!L12","v":"2018-06-30"}]
[null,null,null,null,null,"Cumulative Period of Financial Reporting",null,{"$f":"CoverSheet!D13","v":"2018-01-01"},null,{"$f":"CoverSheet!K12","v":"Date de fin :"},{"$f":"CoverSheet!L12","v":"2018-06-30"}]
[null,null,"A- BREAKDOWN BY COST GROUPING OR COST INPUT"]
[]
["Show",null,null,"Current Reporting Period",null,null,null,null,null,null,"Cumulative for the Implementation Period"]
["Show",null,"Costing Dimension (Cost Grouping or Cost Input)",null,"Budget for Reporting Period","Actual Expenditure","Budget Vs Actual Variances","Absorption Rate","Explanation of Variances (mandatory for all percentages below 95% & above 105%)",null,"Cumulative Budget","Cumulative Actual Expenditure","Cumulative Budget Vs Actuals Variances","Absorption Rate"]
[{"$f":"IF(C9<>\"\",\"Show\",\"Don't Show\")","v":"Show"},"Costgrp1",{"$f":"IFERROR(INDEX('PR Expenditure_7A import-export'!A$2:A$18,MATCH('PR Expenditure_7A'!B9,'PR Expenditure_7A import-export'!N$2:N$18,0)),\"\")","v":"1. Human Resources (HR)"},null,{"$f":"IFERROR(INDEX('PR Expenditure_7A import-export'!C$2:C$18,MATCH('PR Expenditure_7A'!B9,'PR Expenditure_7A import-export'!N$2:N$18,0)),\"\")","v":1353058.12011834},475536.8299999999,{"$f":"IFERROR(E9-F9,0)","v":877521.29011834017},{"$f":"IF(AND(E9=0,F9=0),\"N/A\",IF(AND(E9=0,F9<>0),\"Not Budgeted\",F9/E9))","v":0.351453365475837},"Cet écart s'explique par :\n* Les économies de USD 108,354.83 sur les ressources humaines du PR en raison du retard dans la mise en place du personnel du personnel du PMU et de l'équipe intérimaire respectivement sur les act 267 (USD 75,551.12) et 278 (USD 32,803.72); Sur ces économies du PR , USD  seront utilisés pour le Consultant M&E and le Deputy Programme (cf act 267);\n* Les économies de USD 360,557.59 sur les RH (252,254, 264 et 266) du PNLS dues au retard dans la signature des accords, à la mise en place des unités de gestion et des Coordonnateurs provinciaux dont USD 122,908.03 d'engagements au 300618 ;\n*  Les économies de USD 72,984.09 sur les RH (66, 68, 70 et 71) du PNILT dues au retard dans la signature des accords, à la mise en place des unités de gestion ainsi qu'au non paiement des primes de la période;\n* les économies de USD 335,624.78 sur les RH (102, 120, 129, 139, 210, 211, 212, 255, 260, 265) de la Croix Rouge dues à la prise en charge de certains staffs pour la cloture de l'ancienne subvention, à la non justification des dépenses des SSRs et au fait que les salaires de Juin 2018 n'étaient pas payés",null,{"$f":"IFERROR(INDEX('PR Expenditure_7A import-export'!I$2:I$18,MATCH('PR Expenditure_7A'!B9,'PR Expenditure_7A import-export'!N$2:N$18,0)),\"\")","v":1353058.12011834},{"$f":"F9","v":475536.8299999999},{"$f":"IFERROR(K9-L9,0)","v":877521.29011834017},{"$f":"IF(AND(K9=0,L9=0),\"N/A\",IF(AND(K9=0,L9<>0),\"Not Budgeted\",L9/K9))","v":0.351453365475837}]
[{"$f":"IF(C10<>\"\",\"Show\",\"Don't Show\")","v":"Show"},"Costgrp2",{"$f":"IFERROR(INDEX('PR Expenditure_7A import-export'!A$2:A$18,MATCH('PR Expenditure_7A'!B10,'PR Expenditure_7A import-export'!N$2:N$18,0)),\"\")","v":"10. Communication Material and Publications (CMP)"},null,{"$f":"IFERROR(INDEX('PR Expenditure_7A import-export'!C$2:C$18,MATCH('PR Expenditure_7A'!B10,'PR Expenditure_7A import-export'!N$2:N$18,0)),\"\")","v":86236.2105099576},null,{"$f":"IFERROR(E10-F10,0)","v":86236.2105099576},{"$f":"IF(AND(E10=0,F10=0),\"N/A\",IF(AND(E10=0,F10<>0),\"Not Budgeted\",F10/E10))","v":0},"Cet écart résulte de :\n* USD 630.09 représentant le montant de l'act 200 non exécutée en raison du retard dans la finalisation du bulletin épidémiologique annuel sur le VIH;\n* des économies de USD 49,341.29 relatives à l'act 18 reportée;\n* des économies de USD 36,264.83 relatives aux activités (22, 23, 43, 94, 106, 122, 132, 133 et 135) non exécutées par la Croix Rouge ",null,{"$f":"IFERROR(INDEX('PR Expenditure_7A import-export'!I$2:I$18,MATCH('PR Expenditure_7A'!B10,'PR Expenditure_7A import-export'!N$2:N$18,0)),\"\")","v":86236.2105099576},{"$f":"F10","v":0},{"$f":"IFERROR(K10-L10,0)","v":86236.2105099576},{"$f":"IF(AND(K10=0,L10=0),\"N/A\",IF(AND(K10=0,L10<>0),\"Not Budgeted\",L10/K10))","v":0}]
["Show","Costgrp3",{"$f":"IFERROR(INDEX('PR Expenditure_7A import-export'!A$2:A$18,MATCH('PR Expenditure_7A'!B11,'PR Expenditure_7A import-export'!N$2:N$18,0)),\"\")","v":"11. Programme Administration costs (PA)"},null,{"$f":"IFERROR(INDEX('PR Expenditure_7A import-export'!C$2:C$18,MATCH('PR Expenditure_7A'!B11,'PR Expenditure_7A import-export'!N$2:N$18,0)),\"\")","v":516491.998233644},114757.96999999999,{"$f":"IFERROR(E11-F11,0)","v":401734.02823364403},{"$f":"IF(AND(E11=0,F11=0),\"N/A\",IF(AND(E11=0,F11<>0),\"Not Budgeted\",F11/E11))","v":0.22218731440653849},"Cet écart comprend:\n* USD 14,507.08 représentant les économies sur le fonctionnement du PNILT (act 69) dues à la faiblesse des dépenses de Q1 et du retard dans la signature des accords et dont un engagement au 300618 de USD 5,955.43 existe;\n*  USD 26,990.85 représentant les économies sur les act 179, 254 et 258 du PNLS dues à la faiblesse des dépenses de Q1 et du retard dans la signature des accords;\n* USD 16,528.16 représentant les économies sur les activités 26, 273 et 281 dues au retard dans la mise en place de l'équipe du PMU et dans le démarrage effectif des activités;\n* USD 309,249.24 de frais de gestion du PR car toutes les activités prévues n'ont pas été exécutées et dont un engagement au 300618 de USD .....  existe\n* USD 34,458.7 représentant les économies sur les act 100, 128, 131, 137 et 259 de la Croix Rouge dues au retard dans la mise en place des appuis et dont un engagement de USD 2,041 existe au 300618",null,{"$f":"IFERROR(INDEX('PR Expenditure_7A import-export'!I$2:I$18,MATCH('PR Expenditure_7A'!B11,'PR Expenditure_7A import-export'!N$2:N$18,0)),\"\")","v":516491.998233644},{"$f":"F11","v":114757.96999999999},{"$f":"IFERROR(K11-L11,0)","v":401734.02823364403},{"$f":"IF(AND(K11=0,L11=0),\"N/A\",IF(AND(K11=0,L11<>0),\"Not Budgeted\",L11/K11))","v":0.22218731440653849}]
[null,null,{"$f":"IFERROR(INDEX('PR Expenditure_7A import-export'!A$2:A$18,MATCH('PR Expenditure_7A'!B12,'PR Expenditure_7A import-export'!N$2:N$18,0)),\"\")","v":""},null,{"$f":"IFERROR(INDEX('PR Expenditure_7A import-export'!C$2:C$18,MATCH('PR Expenditure_7A'!B12,'PR Expenditure_7A import-export'!N$2:N$18,0)),\"\")","v":""},null,{"$f":"IFERROR(E12-F12,0)","v":0},{"$f":"IF(AND(E12=0,F12=0),\"N/A\",IF(AND(E12=0,F12<>0),\"Not Budgeted\",F12/E12))","v":{"$error":"#VALUE!"}},null,null,{"$f":"IFERROR(INDEX('PR Expenditure_7A import-export'!I$2:I$18,MATCH('PR Expenditure_7A'!B12,'PR Expenditure_7A import-export'!N$2:N$18,0)),\"\")","v":""},null,{"$f":"IFERROR(K12-L12,0)","v":0},{"$f":"IF(AND(K12=0,L12=0),\"N/A\",IF(AND(K12=0,L12<>0),\"Not Budgeted\",L12/K12))","v":{"$error":"#VALUE!"}}]
[null,null,{"$f":"IFERROR(INDEX('PR Expenditure_7A import-export'!A$2:A$18,MATCH('PR Expenditure_7A'!B13,'PR Expenditure_7A import-export'!N$2:N$18,0)),\"\")","v":""},null,{"$f":"IFERROR(INDEX('PR Expenditure_7A import-export'!C$2:C$18,MATCH('PR Expenditure_7A'!B13,'PR Expenditure_7A import-export'!N$2:N$18,0)),\"\")","v":""},null,{"$f":"IFERROR(E13-F13,0)","v":0},{"$f":"IF(AND(E13=0,F13=0),\"N/A\",IF(AND(E13=0,F13<>0),\"Not Budgeted\",F13/E13))","v":{"$error":"#VALUE!"}},null,null,{"$f":"IFERROR(INDEX('PR Expenditure_7A import-export'!I$2:I$18,MATCH('PR Expenditure_7A'!B13,'PR Expenditure_7A import-export'!N$2:N$18,0)),\"\")","v":""},null,{"$f":"IFERROR(K13-L13,0)","v":0},{"$f":"IF(AND(K13=0,L13=0),\"N/A\",IF(AND(K13=0,L13<>0),\"Not Budgeted\",L13/K13))","v":{"$error":"#VALUE!"}}]
[null,null,{"$f":"IFERROR(INDEX('PR Expenditure_7A import-export'!A$2:A$18,MATCH('PR Expenditure_7A'!B14,'PR Expenditure_7A import-export'!N$2:N$18,0)),\"\")","v":""},null,{"$f":"IFERROR(INDEX('PR Expenditure_7A import-export'!C$2:C$18,MATCH('PR Expenditure_7A'!B14,'PR Expenditure_7A import-export'!N$2:N$18,0)),\"\")","v":""},null,0,{"$error":"#VALUE!"},null,null,{"$f":"IFERROR(INDEX('PR Expenditure_7A import-export'!I$2:I$18,MATCH('PR Expenditure_7A'!B14,'PR Expenditure_7A import-export'!N$2:N$18,0)),\"\")","v":""},null,0,{"$error":"#VALUE!"}]
[null,null,{"$f":"IFERROR(INDEX('PR Expenditure_7A import-export'!A$2:A$18,MATCH('PR Expenditure_7A'!B15,'PR Expenditure_7A import-export'!N$2:N$18,0)),\"\")","v":""},null,{"$f":"IFERROR(INDEX('PR Expenditure_7A import-export'!C$2:C$18,MATCH('PR Expenditure_7A'!B15,'PR Expenditure_7A import-export'!N$2:N$18,0)),\"\")","v":""},null,0,{"$error":"#VALUE!"},null,null,{"$f":"IFERROR(INDEX('PR Expenditure_7A import-export'!I$2:I$18,MATCH('PR Expenditure_7A'!B15,'PR Expenditure_7A import-export'!N$2:N$18,0)),\"\")","v":""},null,0,{"$error":"#VALUE!"}]
["Show","Costgrp4",{"$f":"IFERROR(INDEX('PR Expenditure_7A import-export'!A$2:A$18,MATCH('PR Expenditure_7A'!B16,'PR Expenditure_7A import-export'!N$2:N$18,0)),\"\")","v":"12. Living support to client/ target population (LSCTP)"},null,{"$f":"IFERROR(INDEX('PR Expenditure_7A import-export'!C$2:C$18,MATCH('PR Expenditure_7A'!B16,'PR Expenditure_7A import-export'!N$2:N$18,0)),\"\")","v":315099.605819922},105.49,314994.11581992201,3.3478302749857152E-4,"Cet écart s'explique par :\n* USD 104,076.13 décaissé au PAM pour la prise en charge des PVVIH (act 213, 214, 215 et 216) non encore justifié;\n* les économies de USD 18,040.29 sur l'act 48 relative à la prise en charge nutritionnelle\n* les économies de USD 421.44  relatives à l'act 13 dues au retard dans la mise en oeuvre de celle-ci\n* les économies de 17,929.71 sur les act 44,46, 47 et 50 dues au retard dans le démarrage des activités et dont un engagement de USD 3,328.37 existe.  Il faut signaler que USD de ces activités seront reportées sur la période à venir.\n* USD 174,526.55 relative à l'act 218 dont les controles sont en cours au niveau de toutes les structures prestataires  en vue du paiement. Cette activité sera intégralement reportée sur la période à venir",null,{"$f":"IFERROR(INDEX('PR Expenditure_7A import-export'!I$2:I$18,MATCH('PR Expenditure_7A'!B16,'PR Expenditure_7A import-export'!N$2:N$18,0)),\"\")","v":315099.605819922},{"$f":"F16","v":105.49},314994.11581992201,3.3478302749857152E-4]
["Show","Costgrp5",{"$f":"IFERROR(INDEX('PR Expenditure_7A import-export'!A$2:A$18,MATCH('PR Expenditure_7A'!B17,'PR Expenditure_7A import-export'!N$2:N$18,0)),\"\")","v":"13. Payment for Results"},null,{"$f":"IFERROR(INDEX('PR Expenditure_7A import-export'!C$2:C$18,MATCH('PR Expenditure_7A'!B17,'PR Expenditure_7A import-export'!N$2:N$18,0)),\"\")","v":0},null,0,"N/A",null,null,{"$f":"IFERROR(INDEX('PR Expenditure_7A import-export'!I$2:I$18,MATCH('PR Expenditure_7A'!B17,'PR Expenditure_7A import-export'!N$2:N$18,0)),\"\")","v":0},0,0,"N/A"]
["Show","Costgrp6",{"$f":"IFERROR(INDEX('PR Expenditure_7A import-export'!A$2:A$18,MATCH('PR Expenditure_7A'!B18,'PR Expenditure_7A import-export'!N$2:N$18,0)),\"\")","v":"2. Travel related costs (TRC)"},null,{"$f":"IFERROR(INDEX('PR Expenditure_7A import-export'!C$2:C$18,MATCH('PR Expenditure_7A'!B18,'PR Expenditure_7A import-export'!N$2:N$18,0)),\"\")","v":696858.44104419602},70725.910000000018,626132.53104419599,0.10149250670483656,"Cet écart s'explique par :\n* USD 143,728.69 relatives aux activités (1,2, 3, 20, 34, 35, 36, 41, 42, 45, 57, 58, 59 et 60) du PNLT exécutées ou non en raison du retard dans la signature des accords et pour lesquelles des dépenses non enregistrées dans Atlas (engagements)  au 30 juin 2018 s'élèvent à 42, 620.71; il faut par ailleurs signaler que des activités de USD 71,699.88 seront reportées sur la période à venir;\n* USD 356,023.75 relatives aux activités (73,74,80, 81, 82, 88, 151, 162, 168, 177, 181, 182, 187, 194, 196, 197, 203, 204, 206, 207, 208, 217, 219, 235, 236, 256, 261, 262, 263) du PNLS exécutées ou non en raison du retard dans la signature des accords et pour lesquelles des dépenses non enregistrées dans Atlas (engagements)  au 30 juin 2018 s'élèvent à 155,533.01; il faut par ailleurs signaler que des activités de USD 109,202.41 seront reportées sur la période à venir;\n* USD 121,451.48 relatives aux activités (14, 15, 16, 17, 19, 243, 25, 72, 95, 96, 101, 107, 108, 115, 121, 130, 134, 136, 138, 141, 142, 169, 170, 171, 172, 173, 174, 175, 176, 201, 202, 251, 284, 285, 286) de la Croix Rouge exécutées ou non en raison du retard dans la signature des accords et pour lesquelles des dépenses non enregistrées dans Atlas (engagements)  au 30 juin 2018 s'élèvent à 5,998.\n* USD 4,928.61  sur les activités du PR (cf 188, 189, 205, 209, 279)",null,{"$f":"IFERROR(INDEX('PR Expenditure_7A import-export'!I$2:I$18,MATCH('PR Expenditure_7A'!B18,'PR Expenditure_7A import-export'!N$2:N$18,0)),\"\")","v":696858.44104419602},70725.910000000018,626132.53104419599,0.10149250670483656]
["Show","Costgrp7",{"$f":"IFERROR(INDEX('PR Expenditure_7A import-export'!A$2:A$18,MATCH('PR Expenditure_7A'!B19,'PR Expenditure_7A import-export'!N$2:N$18,0)),\"\")","v":"3. External Professional services (EPS)"},null,{"$f":"IFERROR(INDEX('PR Expenditure_7A import-export'!C$2:C$18,MATCH('PR Expenditure_7A'!B19,'PR Expenditure_7A import-export'!N$2:N$18,0)),\"\")","v":91784.324300579901},3400,88384.324300579901,3.7043362533949804E-2,"Cet écart résulte de :\n* des économies de USD 9,264.02 relatives aux act 180 et 287 du PNLS non exécutées en raison du retard dans la signature de l'accord et reportées pour la période à venir;\n* des économies de USD 79,120.3 relatives aux act 51, 150, 191 et 280 dues en raison du retard dans le recrutement des consultants charge virale et évaluation sur les VSBG et de violations des droits de l’Homme en matiere du VIH ainsi qu'au paiement du GLC. Ces activités seront reportées sur la période à venir",null,{"$f":"IFERROR(INDEX('PR Expenditure_7A import-export'!I$2:I$18,MATCH('PR Expenditure_7A'!B19,'PR Expenditure_7A import-export'!N$2:N$18,0)),\"\")","v":91784.324300579901},3400,88384.324300579901,3.7043362533949804E-2]
["Show","Costgrp8",{"$f":"IFERROR(INDEX('PR Expenditure_7A import-export'!A$2:A$18,MATCH('PR Expenditure_7A'!B20,'PR Expenditure_7A import-export'!N$2:N$18,0)),\"\")","v":"4. Health Products - Pharmaceutical Products (HPPP)"},null,{"$f":"IFERROR(INDEX('PR Expenditure_7A import-export'!C$2:C$18,MATCH('PR Expenditure_7A'!B20,'PR Expenditure_7A import-export'!N$2:N$18,0)),\"\")","v":1001500.19},188288.44999999998,813211.74,0.18800640467177543,"Cet écart s'explique par :\n* les économies de USD 415,339.98 sur les act 27 et 52 en raison de la disponibilité en stocks des médicaments de 1ere et 2è lignes pour les patients TB et MDR;\n* les économies de USD 95,602.05 sur les act 21 et 61 en raison de la disponibilité des médicaments  isoniazide pour la prévention de la tuberculose chez les enfants et les PVVIH;\n* les économies de USD 234,772.15 sur les médicamments ARV pour le traitement des patients (act 230) et pour la PTME (75) résultant de la mauvaise quantification des besoins et du retard dans l'approbation par le FM de l'achat. Il faut signaler qu'un engagement au 300618 de USD 999,810.06  existe;\n* les économies de USD 67,497.56 sur les médicaments IO/IST (act 220) et les autres médicaments (act 221) dues au retard dans la passation de la commande car les besoins n'étaient pas bien quantifiés et dont un engagement au 300618 de USD 92,051 existe.",null,{"$f":"IFERROR(INDEX('PR Expenditure_7A import-export'!I$2:I$18,MATCH('PR Expenditure_7A'!B20,'PR Expenditure_7A import-export'!N$2:N$18,0)),\"\")","v":1001500.19},188288.44999999998,813211.74,0.18800640467177543]
["Show","Costgrp9",{"$f":"IFERROR(INDEX('PR Expenditure_7A import-export'!A$2:A$18,MATCH('PR Expenditure_7A'!B21,'PR Expenditure_7A import-export'!N$2:N$18,0)),\"\")","v":"5. Health Products - Non-Pharmaceuticals (HPNP)"},null,{"$f":"IFERROR(INDEX('PR Expenditure_7A import-export'!C$2:C$18,MATCH('PR Expenditure_7A'!B21,'PR Expenditure_7A import-export'!N$2:N$18,0)),\"\")","v":766761.02},73008.389999999985,693752.63,9.5216616515012703E-2,"Cet écart s'explique par :\n* les économies de USD 12,985.7 sur les préservatifs féminins (act 98 et 110) en raison de la disponibilité en stock de ceux-ci;\n*  les économies de USD 88,358.84 sur les TDRs (act 4, 83, 116, 153 et 163) dues au retard dans la passation des commandes; il faut signaler qu'en engagement de USD 64,312.5 existe au 300618 sur l'act 83;\n* les économies de USD 292,997.95 sur les réactifs de laboratoire (act 5,6, 238 et 246) en raison du retard dans la commande. Un engagement de USD 226,691.33 existe au 300618;\n* les économies de USD 1,148 sur les seringues (act 28);\n* les économies de USD 298,262.14 sur les autres consommables (act 12, 84, 90, 99, 111, 124, 154, 155, 239 et 247) dues en raison de la disponibilité desdits produits et dont un engagement de USD 3,603.87 existe au 300618 (cf act 12)",null,{"$f":"IFERROR(INDEX('PR Expenditure_7A import-export'!I$2:I$18,MATCH('PR Expenditure_7A'!B21,'PR Expenditure_7A import-export'!N$2:N$18,0)),\"\")","v":766761.02},73008.389999999985,693752.63,9.5216616515012703E-2]
["Show","Costgrp10",{"$f":"IFERROR(INDEX('PR Expenditure_7A import-export'!A$2:A$18,MATCH('PR Expenditure_7A'!B22,'PR Expenditure_7A import-export'!N$2:N$18,0)),\"\")","v":"6. Health Products - Equipment (HPE)"},null,{"$f":"IFERROR(INDEX('PR Expenditure_7A import-export'!C$2:C$18,MATCH('PR Expenditure_7A'!B22,'PR Expenditure_7A import-export'!N$2:N$18,0)),\"\")","v":299259.82},5170.7299999999996,294089.09000000003,1.7278397079835174E-2,"Cet écart s'explique par :\n* les économies de USD 264,200.41 sur les équipements sanitaires et les machines molécules (act 7, 8, 288) dues non seulement au retour dans la commande mais aussi au paiement. Au 300618, il y a un engagement de USD 155,688 sur l'act 7;\n* les économies de USD 29,888.68 sur la maintenance des équipements sanitaires (237 et 283) en raison du retard dans la mise en place de l'équipe. Les 2 activités seront reportées sur la période suivante",null,{"$f":"IFERROR(INDEX('PR Expenditure_7A import-export'!I$2:I$18,MATCH('PR Expenditure_7A'!B22,'PR Expenditure_7A import-export'!N$2:N$18,0)),\"\")","v":299259.82},5170.7299999999996,294089.09000000003,1.7278397079835174E-2]
["Show","Costgrp11",{"$f":"IFERROR(INDEX('PR Expenditure_7A import-export'!A$2:A$18,MATCH('PR Expenditure_7A'!B23,'PR Expenditure_7A import-export'!N$2:N$18,0)),\"\")","v":"7. Procurement and Supply-Chain Management costs (PSM)"},null,{"$f":"IFERROR(INDEX('PR Expenditure_7A import-export'!C$2:C$18,MATCH('PR Expenditure_7A'!B23,'PR Expenditure_7A import-export'!N$2:N$18,0)),\"\")","v":528283.17775999999},55753.53,472529.64775999996,0.10553720494452111,"Cet écart résulte:\n* des économies de USD 76,535.63 sur les couts d'agent et de manutention (act 9, 29, 53, 62, 76, 85, 91, 103, 112, 117, 125, 145, 156, 159,  164, 222, 226, 231, 240, 243, 248) dues au retard dans la passation des commandes; \n* des économies de USD 241,094.01 sur le fret et l'assurance (10, 30, 54, 63, 77, 86, 92, 104, 113, 118, 126, 146, 157, 160, 165, 223, 227, 232, 241, 244 et 249) dues au retard dans la passation des commandes; au 300618, un engagement de USD 18,989.66 existe\n* des économies de USD 91,993.4 sur les frais d'entreposage et de stockage (11, 31, 56, 65, 78, 93, 105, 114, 119, 161, 166, 224, 228,  233, 242, 245 et 250) dues à la non réception des commandes passées;\n* des économies de USD 62,906.61 sur les couts liés à l'assurance qualité et au controle de qualité des médicaments (32, 33, 55, 64, 79, 167,  225, 229 et 234) dues à la non réception des médicaments commandés et à controler.",null,{"$f":"IFERROR(INDEX('PR Expenditure_7A import-export'!I$2:I$18,MATCH('PR Expenditure_7A'!B23,'PR Expenditure_7A import-export'!N$2:N$18,0)),\"\")","v":528283.17775999999},55753.53,472529.64775999996,0.10553720494452111]
["Show","Costgrp12",{"$f":"IFERROR(INDEX('PR Expenditure_7A import-export'!A$2:A$18,MATCH('PR Expenditure_7A'!B24,'PR Expenditure_7A import-export'!N$2:N$18,0)),\"\")","v":"8. Infrastructure (INF)"},null,{"$f":"IFERROR(INDEX('PR Expenditure_7A import-export'!C$2:C$18,MATCH('PR Expenditure_7A'!B24,'PR Expenditure_7A import-export'!N$2:N$18,0)),\"\")","v":24155},5417.73,18737.27,0.22429020906644584,"Cet écart s'explique par:\n* les économies de USD 2,835.64 sur l'achat du mobilier (act 270) car les fauteuils de bureau, armoires, chaises visiteurs et table de conférence ont été gratuitement mis à disposition par le bureau du PNUD;\n*  les économies de USD 15,901.63 sur la rénovation (act 274) car aucune grande renovation n'a été effectuée.\nLe solde des 2 lignes sera reportées sur la période suivante",null,{"$f":"IFERROR(INDEX('PR Expenditure_7A import-export'!I$2:I$18,MATCH('PR Expenditure_7A'!B24,'PR Expenditure_7A import-export'!N$2:N$18,0)),\"\")","v":24155},5417.73,18737.27,0.22429020906644584]
["Show","Costgrp13",{"$f":"IFERROR(INDEX('PR Expenditure_7A import-export'!A$2:A$18,MATCH('PR Expenditure_7A'!B25,'PR Expenditure_7A import-export'!N$2:N$18,0)),\"\")","v":"9. Non-health equipment (NHP)"},null,{"$f":"IFERROR(INDEX('PR Expenditure_7A import-export'!C$2:C$18,MATCH('PR Expenditure_7A'!B25,'PR Expenditure_7A import-export'!N$2:N$18,0)),\"\")","v":64369.436087100003},64489.639999999985,-120.20391289998224,1.0018674066483562,"Cet écart résulte de:\n*  du gap de -12,843.07 sur l'achat des véhicules (act 268) en raison d'une sousestimation des prix. \n* des économies de USD 301.97 sur l'achat des ordinateurs (269); au 30 Juin 2018, il y a un engagement de USD 453.8;\n* le gap de -6,655.62 sur les autres équipements non sanitaires (act 271)\n* les économies de USD 1400 sur la maintenance des équipements du PMU (act 272). Lesdits équipement étant neuf,aucune maintenance n'ayant été effectuée.\n* Les économies de USD 17,676.52 sur la maintenance des équipements du PNLT et du PNLS (act 49 et 178)",null,{"$f":"IFERROR(INDEX('PR Expenditure_7A import-export'!I$2:I$18,MATCH('PR Expenditure_7A'!B25,'PR Expenditure_7A import-export'!N$2:N$18,0)),\"\")","v":64369.436087100003},64489.639999999985,-120.20391289998224,1.0018674066483562]
["Don't Show","Costgrp14",{"$f":"IFERROR(INDEX('PR Expenditure_7A import-export'!A$2:A$18,MATCH('PR Expenditure_7A'!B26,'PR Expenditure_7A import-export'!N$2:N$18,0)),\"\")","v":""},null,{"$f":"IFERROR(INDEX('PR Expenditure_7A import-export'!C$2:C$18,MATCH('PR Expenditure_7A'!B26,'PR Expenditure_7A import-export'!N$2:N$18,0)),\"\")","v":""},null,0,{"$error":"#VALUE!"},null,null,{"$f":"IFERROR(INDEX('PR Expenditure_7A import-export'!I$2:I$18,MATCH('PR Expenditure_7A'!B26,'PR Expenditure_7A import-export'!N$2:N$18,0)),\"\")","v":""},null,0,{"$error":"#VALUE!"}]
["Don't Show","Costgrp15",{"$f":"IFERROR(INDEX('PR Expenditure_7A import-export'!A$2:A$18,MATCH('PR Expenditure_7A'!B27,'PR Expenditure_7A import-export'!N$2:N$18,0)),\"\")","v":""},null,{"$f":"IFERROR(INDEX('PR Expenditure_7A import-export'!C$2:C$18,MATCH('PR Expenditure_7A'!B27,'PR Expenditure_7A import-export'!N$2:N$18,0)),\"\")","v":""},null,0,{"$error":"#VALUE!"},null,null,{"$f":"IFERROR(INDEX('PR Expenditure_7A import-export'!I$2:I$18,MATCH('PR Expenditure_7A'!B27,'PR Expenditure_7A import-export'!N$2:N$18,0)),\"\")","v":""},null,0,{"$error":"#VALUE!"}]
["Don't Show","Costgrp16",{"$f":"IFERROR(INDEX('PR Expenditure_7A import-export'!A$2:A$18,MATCH('PR Expenditure_7A'!B28,'PR Expenditure_7A import-export'!N$2:N$18,0)),\"\")","v":""},null,{"$f":"IFERROR(INDEX('PR Expenditure_7A import-export'!C$2:C$18,MATCH('PR Expenditure_7A'!B28,'PR Expenditure_7A import-export'!N$2:N$18,0)),\"\")","v":""},null,0,{"$error":"#VALUE!"},null,null,{"$f":"IFERROR(INDEX('PR Expenditure_7A import-export'!I$2:I$18,MATCH('PR Expenditure_7A'!B28,'PR Expenditure_7A import-export'!N$2:N$18,0)),\"\")","v":""},null,0,{"$error":"#VALUE!"}]
["Don't Show","Costgrp17",{"$f":"IFERROR(INDEX('PR Expenditure_7A import-export'!A$2:A$18,MATCH('PR Expenditure_7A'!B29,'PR Expenditure_7A import-export'!N$2:N$18,0)),\"\")","v":""},null,{"$f":"IFERROR(INDEX('PR Expenditure_7A import-export'!C$2:C$18,MATCH('PR Expenditure_7A'!B29,'PR Expenditure_7A import-export'!N$2:N$18,0)),\"\")","v":""},null,0,{"$error":"#VALUE!"},null,null,{"$f":"IFERROR(INDEX('PR Expenditure_7A import-export'!I$2:I$18,MATCH('PR Expenditure_7A'!B29,'PR Expenditure_7A import-export'!N$2:N$18,0)),\"\")","v":""},null,0,{"$error":"#VALUE!"}]
["Don't Show","Costgrp18",{"$f":"IFERROR(INDEX('PR Expenditure_7A import-export'!A$2:A$18,MATCH('PR Expenditure_7A'!B30,'PR Expenditure_7A import-export'!N$2:N$18,0)),\"\")","v":""},null,{"$f":"IFERROR(INDEX('PR Expenditure_7A import-export'!C$2:C$18,MATCH('PR Expenditure_7A'!B30,'PR Expenditure_7A import-export'!N$2:N$18,0)),\"\")","v":""},null,0,{"$error":"#VALUE!"},null,null,{"$f":"IFERROR(INDEX('PR Expenditure_7A import-export'!I$2:I$18,MATCH('PR Expenditure_7A'!B30,'PR Expenditure_7A import-export'!N$2:N$18,0)),\"\")","v":""},null,0,{"$error":"#VALUE!"}]
["Don't Show","Costgrp19",{"$f":"IFERROR(INDEX('PR Expenditure_7A import-export'!A$2:A$18,MATCH('PR Expenditure_7A'!B31,'PR Expenditure_7A import-export'!N$2:N$18,0)),\"\")","v":""},null,{"$f":"IFERROR(INDEX('PR Expenditure_7A import-export'!C$2:C$18,MATCH('PR Expenditure_7A'!B31,'PR Expenditure_7A import-export'!N$2:N$18,0)),\"\")","v":""},null,0,{"$error":"#VALUE!"},null,null,{"$f":"IFERROR(INDEX('PR Expenditure_7A import-export'!I$2:I$18,MATCH('PR Expenditure_7A'!B31,'PR Expenditure_7A import-export'!N$2:N$18,0)),\"\")","v":""},null,0,{"$error":"#VALUE!"}]
[{"$f":"IF(C32<>\"\",\"Show\",\"Don't Show\")","v":"Don't Show"},"Costgrp20",{"$f":"IFERROR(INDEX('PR Expenditure_7A import-export'!A$2:A$18,MATCH('PR Expenditure_7A'!B32,'PR Expenditure_7A import-export'!N$2:N$18,0)),\"\")","v":""},null,{"$f":"IFERROR(INDEX('PR Expenditure_7A import-export'!C$2:C$18,MATCH('PR Expenditure_7A'!B32,'PR Expenditure_7A import-export'!N$2:N$18,0)),\"\")","v":""},null,0,{"$error":"#VALUE!"},null,null,{"$f":"IFERROR(INDEX('PR Expenditure_7A import-export'!I$2:I$18,MATCH('PR Expenditure_7A'!B32,'PR Expenditure_7A import-export'!N$2:N$18,0)),\"\")","v":""},null,0,{"$error":"#VALUE!"}]
["Don't Show","Costgrp21",{"$f":"IFERROR(INDEX('PR Expenditure_7A import-export'!A$2:A$18,MATCH('PR Expenditure_7A'!B33,'PR Expenditure_7A import-export'!N$2:N$18,0)),\"\")","v":""},null,{"$f":"IFERROR(INDEX('PR Expenditure_7A import-export'!C$2:C$18,MATCH('PR Expenditure_7A'!B33,'PR Expenditure_7A import-export'!N$2:N$18,0)),\"\")","v":""},null,0,{"$error":"#VALUE!"},null,null,{"$f":"IFERROR(INDEX('PR Expenditure_7A import-export'!I$2:I$18,MATCH('PR Expenditure_7A'!B33,'PR Expenditure_7A import-export'!N$2:N$18,0)),\"\")","v":""},null,0,{"$error":"#VALUE!"}]
["Don't Show","Costgrp22",{"$f":"IFERROR(INDEX('PR Expenditure_7A import-export'!A$2:A$18,MATCH('PR Expenditure_7A'!B34,'PR Expenditure_7A import-export'!N$2:N$18,0)),\"\")","v":""},null,{"$f":"IFERROR(INDEX('PR Expenditure_7A import-export'!C$2:C$18,MATCH('PR Expenditure_7A'!B34,'PR Expenditure_7A import-export'!N$2:N$18,0)),\"\")","v":""},null,0,{"$error":"#VALUE!"},null,null,{"$f":"IFERROR(INDEX('PR Expenditure_7A import-export'!I$2:I$18,MATCH('PR Expenditure_7A'!B34,'PR Expenditure_7A import-export'!N$2:N$18,0)),\"\")","v":""},null,0,{"$error":"#VALUE!"}]
["Don't Show","Costgrp23",{"$f":"IFERROR(INDEX('PR Expenditure_7A import-export'!A$2:A$18,MATCH('PR Expenditure_7A'!B35,'PR Expenditure_7A import-export'!N$2:N$18,0)),\"\")","v":""},null,{"$f":"IFERROR(INDEX('PR Expenditure_7A import-export'!C$2:C$18,MATCH('PR Expenditure_7A'!B35,'PR Expenditure_7A import-export'!N$2:N$18,0)),\"\")","v":""},null,0,{"$error":"#VALUE!"},null,null,{"$f":"IFERROR(INDEX('PR Expenditure_7A import-export'!I$2:I$18,MATCH('PR Expenditure_7A'!B35,'PR Expenditure_7A import-export'!N$2:N$18,0)),\"\")","v":""},null,0,{"$error":"#VALUE!"}]
["Don't Show","Costgrp24",{"$f":"IFERROR(INDEX('PR Expenditure_7A import-export'!A$2:A$18,MATCH('PR Expenditure_7A'!B36,'PR Expenditure_7A import-export'!N$2:N$18,0)),\"\")","v":""},null,{"$f":"IFERROR(INDEX('PR Expenditure_7A import-export'!C$2:C$18,MATCH('PR Expenditure_7A'!B36,'PR Expenditure_7A import-export'!N$2:N$18,0)),\"\")","v":""},null,0,{"$error":"#VALUE!"},null,null,{"$f":"IFERROR(INDEX('PR Expenditure_7A import-export'!I$2:I$18,MATCH('PR Expenditure_7A'!B36,'PR Expenditure_7A import-export'!N$2:N$18,0)),\"\")","v":""},null,0,{"$error":"#VALUE!"}]
["Don't Show","Costgrp25",{"$f":"IFERROR(INDEX('PR Expenditure_7A import-export'!A$2:A$18,MATCH('PR Expenditure_7A'!B37,'PR Expenditure_7A import-export'!N$2:N$18,0)),\"\")","v":""},null,{"$f":"IFERROR(INDEX('PR Expenditure_7A import-export'!C$2:C$18,MATCH('PR Expenditure_7A'!B37,'PR Expenditure_7A import-export'!N$2:N$18,0)),\"\")","v":""},null,0,{"$error":"#VALUE!"},null,null,{"$f":"IFERROR(INDEX('PR Expenditure_7A import-export'!I$2:I$18,MATCH('PR Expenditure_7A'!B37,'PR Expenditure_7A import-export'!N$2:N$18,0)),\"\")","v":""},null,0,{"$error":"#VALUE!"}]
["Don't Show","Costgrp26",{"$f":"IFERROR(INDEX('PR Expenditure_7A import-export'!A$2:A$18,MATCH('PR Expenditure_7A'!B38,'PR Expenditure_7A import-export'!N$2:N$18,0)),\"\")","v":""},null,{"$f":"IFERROR(INDEX('PR Expenditure_7A import-export'!C$2:C$18,MATCH('PR Expenditure_7A'!B38,'PR Expenditure_7A import-export'!N$2:N$18,0)),\"\")","v":""},null,0,{"$error":"#VALUE!"},null,null,{"$f":"IFERROR(INDEX('PR Expenditure_7A import-export'!I$2:I$18,MATCH('PR Expenditure_7A'!B38,'PR Expenditure_7A import-export'!N$2:N$18,0)),\"\")","v":""},null,0,{"$error":"#VALUE!"}]
["Don't Show","Costgrp27",{"$f":"IFERROR(INDEX('PR Expenditure_7A import-export'!A$2:A$18,MATCH('PR Expenditure_7A'!B39,'PR Expenditure_7A import-export'!N$2:N$18,0)),\"\")","v":""},null,{"$f":"IFERROR(INDEX('PR Expenditure_7A import-export'!C$2:C$18,MATCH('PR Expenditure_7A'!B39,'PR Expenditure_7A import-export'!N$2:N$18,0)),\"\")","v":""},null,0,{"$error":"#VALUE!"},null,null,{"$f":"IFERROR(INDEX('PR Expenditure_7A import-export'!I$2:I$18,MATCH('PR Expenditure_7A'!B39,'PR Expenditure_7A import-export'!N$2:N$18,0)),\"\")","v":""},null,0,{"$error":"#VALUE!"}]
["Don't Show","Costgrp28",{"$f":"IFERROR(INDEX('PR Expenditure_7A import-export'!A$2:A$18,MATCH('PR Expenditure_7A'!B40,'PR Expenditure_7A import-export'!N$2:N$18,0)),\"\")","v":""},null,{"$f":"IFERROR(INDEX('PR Expenditure_7A import-export'!C$2:C$18,MATCH('PR Expenditure_7A'!B40,'PR Expenditure_7A import-export'!N$2:N$18,0)),\"\")","v":""},null,0,{"$error":"#VALUE!"},null,null,{"$f":"IFERROR(INDEX('PR Expenditure_7A import-export'!I$2:I$18,MATCH('PR Expenditure_7A'!B40,'PR Expenditure_7A import-export'!N$2:N$18,0)),\"\")","v":""},null,0,{"$error":"#VALUE!"}]
["Don't Show","Costgrp29",{"$f":"IFERROR(INDEX('PR Expenditure_7A import-export'!A$2:A$18,MATCH('PR Expenditure_7A'!B41,'PR Expenditure_7A import-export'!N$2:N$18,0)),\"\")","v":""},null,{"$f":"IFERROR(INDEX('PR Expenditure_7A import-export'!C$2:C$18,MATCH('PR Expenditure_7A'!B41,'PR Expenditure_7A import-export'!N$2:N$18,0)),\"\")","v":""},null,0,{"$error":"#VALUE!"},null,null,{"$f":"IFERROR(INDEX('PR Expenditure_7A import-export'!I$2:I$18,MATCH('PR Expenditure_7A'!B41,'PR Expenditure_7A import-export'!N$2:N$18,0)),\"\")","v":""},null,0,{"$error":"#VALUE!"}]
["Don't Show","Costgrp30",{"$f":"IFERROR(INDEX('PR Expenditure_7A import-export'!A$2:A$18,MATCH('PR Expenditure_7A'!B42,'PR Expenditure_7A import-export'!N$2:N$18,0)),\"\")","v":""},null,{"$f":"IFERROR(INDEX('PR Expenditure_7A import-export'!C$2:C$18,MATCH('PR Expenditure_7A'!B42,'PR Expenditure_7A import-export'!N$2:N$18,0)),\"\")","v":""},null,0,{"$error":"#VALUE!"},null,null,{"$f":"IFERROR(INDEX('PR Expenditure_7A import-export'!I$2:I$18,MATCH('PR Expenditure_7A'!B42,'PR Expenditure_7A import-export'!N$2:N$18,0)),\"\")","v":""},null,0,{"$error":"#VALUE!"}]
["Don't Show","Costgrp31",{"$f":"IFERROR(INDEX('PR Expenditure_7A import-export'!A$2:A$18,MATCH('PR Expenditure_7A'!B43,'PR Expenditure_7A import-export'!N$2:N$18,0)),\"\")","v":""},null,{"$f":"IFERROR(INDEX('PR Expenditure_7A import-export'!C$2:C$18,MATCH('PR Expenditure_7A'!B43,'PR Expenditure_7A import-export'!N$2:N$18,0)),\"\")","v":""},null,0,{"$error":"#VALUE!"},null,null,{"$f":"IFERROR(INDEX('PR Expenditure_7A import-export'!I$2:I$18,MATCH('PR Expenditure_7A'!B43,'PR Expenditure_7A import-export'!N$2:N$18,0)),\"\")","v":""},null,0,{"$error":"#VALUE!"}]
["Don't Show","Costgrp32",{"$f":"IFERROR(INDEX('PR Expenditure_7A import-export'!A$2:A$18,MATCH('PR Expenditure_7A'!B44,'PR Expenditure_7A import-export'!N$2:N$18,0)),\"\")","v":""},null,{"$f":"IFERROR(INDEX('PR Expenditure_7A import-export'!C$2:C$18,MATCH('PR Expenditure_7A'!B44,'PR Expenditure_7A import-export'!N$2:N$18,0)),\"\")","v":""},null,0,{"$error":"#VALUE!"},null,null,{"$f":"IFERROR(INDEX('PR Expenditure_7A import-export'!I$2:I$18,MATCH('PR Expenditure_7A'!B44,'PR Expenditure_7A import-export'!N$2:N$18,0)),\"\")","v":""},null,0,{"$error":"#VALUE!"}]
["Don't Show","Costgrp33",{"$f":"IFERROR(INDEX('PR Expenditure_7A import-export'!A$2:A$18,MATCH('PR Expenditure_7A'!B45,'PR Expenditure_7A import-export'!N$2:N$18,0)),\"\")","v":""},null,{"$f":"IFERROR(INDEX('PR Expenditure_7A import-export'!C$2:C$18,MATCH('PR Expenditure_7A'!B45,'PR Expenditure_7A import-export'!N$2:N$18,0)),\"\")","v":""},null,0,{"$error":"#VALUE!"},null,null,{"$f":"IFERROR(INDEX('PR Expenditure_7A import-export'!I$2:I$18,MATCH('PR Expenditure_7A'!B45,'PR Expenditure_7A import-export'!N$2:N$18,0)),\"\")","v":""},null,0,{"$error":"#VALUE!"}]
["Don't Show","Costgrp34",{"$f":"IFERROR(INDEX('PR Expenditure_7A import-export'!A$2:A$18,MATCH('PR Expenditure_7A'!B46,'PR Expenditure_7A import-export'!N$2:N$18,0)),\"\")","v":""},null,{"$f":"IFERROR(INDEX('PR Expenditure_7A import-export'!C$2:C$18,MATCH('PR Expenditure_7A'!B46,'PR Expenditure_7A import-export'!N$2:N$18,0)),\"\")","v":""},null,0,{"$error":"#VALUE!"},null,null,{"$f":"IFERROR(INDEX('PR Expenditure_7A import-export'!I$2:I$18,MATCH('PR Expenditure_7A'!B46,'PR Expenditure_7A import-export'!N$2:N$18,0)),\"\")","v":""},null,0,{"$error":"#VALUE!"}]
["Don't Show","Costgrp35",{"$f":"IFERROR(INDEX('PR Expenditure_7A import-export'!A$2:A$18,MATCH('PR Expenditure_7A'!B47,'PR Expenditure_7A import-export'!N$2:N$18,0)),\"\")","v":""},null,{"$f":"IFERROR(INDEX('PR Expenditure_7A import-export'!C$2:C$18,MATCH('PR Expenditure_7A'!B47,'PR Expenditure_7A import-export'!N$2:N$18,0)),\"\")","v":""},null,0,{"$error":"#VALUE!"},null,null,{"$f":"IFERROR(INDEX('PR Expenditure_7A import-export'!I$2:I$18,MATCH('PR Expenditure_7A'!B47,'PR Expenditure_7A import-export'!N$2:N$18,0)),\"\")","v":""},null,0,{"$error":"#VALUE!"}]
["Don't Show","Costgrp36",{"$f":"IFERROR(INDEX('PR Expenditure_7A import-export'!A$2:A$18,MATCH('PR Expenditure_7A'!B48,'PR Expenditure_7A import-export'!N$2:N$18,0)),\"\")","v":""},null,{"$f":"IFERROR(INDEX('PR Expenditure_7A import-export'!C$2:C$18,MATCH('PR Expenditure_7A'!B48,'PR Expenditure_7A import-export'!N$2:N$18,0)),\"\")","v":""},null,0,{"$error":"#VALUE!"},null,null,{"$f":"IFERROR(INDEX('PR Expenditure_7A import-export'!I$2:I$18,MATCH('PR Expenditure_7A'!B48,'PR Expenditure_7A import-export'!N$2:N$18,0)),\"\")","v":""},null,0,{"$error":"#VALUE!"}]
["Don't Show","Costgrp37",{"$f":"IFERROR(INDEX('PR Expenditure_7A import-export'!A$2:A$18,MATCH('PR Expenditure_7A'!B49,'PR Expenditure_7A import-export'!N$2:N$18,0)),\"\")","v":""},null,{"$f":"IFERROR(INDEX('PR Expenditure_7A import-export'!C$2:C$18,MATCH('PR Expenditure_7A'!B49,'PR Expenditure_7A import-export'!N$2:N$18,0)),\"\")","v":""},null,0,{"$error":"#VALUE!"},null,null,{"$f":"IFERROR(INDEX('PR Expenditure_7A import-export'!I$2:I$18,MATCH('PR Expenditure_7A'!B49,'PR Expenditure_7A import-export'!N$2:N$18,0)),\"\")","v":""},null,0,{"$error":"#VALUE!"}]
["Don't Show","Costgrp38",{"$f":"IFERROR(INDEX('PR Expenditure_7A import-export'!A$2:A$18,MATCH('PR Expenditure_7A'!B50,'PR Expenditure_7A import-export'!N$2:N$18,0)),\"\")","v":""},null,{"$f":"IFERROR(INDEX('PR Expenditure_7A import-export'!C$2:C$18,MATCH('PR Expenditure_7A'!B50,'PR Expenditure_7A import-export'!N$2:N$18,0)),\"\")","v":""},null,0,{"$error":"#VALUE!"},null,null,{"$f":"IFERROR(INDEX('PR Expenditure_7A import-export'!I$2:I$18,MATCH('PR Expenditure_7A'!B50,'PR Expenditure_7A import-export'!N$2:N$18,0)),\"\")","v":""},null,0,{"$error":"#VALUE!"}]
["Don't Show","Costgrp39",{"$f":"IFERROR(INDEX('PR Expenditure_7A import-export'!A$2:A$18,MATCH('PR Expenditure_7A'!B51,'PR Expenditure_7A import-export'!N$2:N$18,0)),\"\")","v":""},null,{"$f":"IFERROR(INDEX('PR Expenditure_7A import-export'!C$2:C$18,MATCH('PR Expenditure_7A'!B51,'PR Expenditure_7A import-export'!N$2:N$18,0)),\"\")","v":""},null,0,{"$error":"#VALUE!"},null,null,{"$f":"IFERROR(INDEX('PR Expenditure_7A import-export'!I$2:I$18,MATCH('PR Expenditure_7A'!B51,'PR Expenditure_7A import-export'!N$2:N$18,0)),\"\")","v":""},null,0,{"$error":"#VALUE!"}]
["Don't Show","Costgrp40",{"$f":"IFERROR(INDEX('PR Expenditure_7A import-export'!A$2:A$18,MATCH('PR Expenditure_7A'!B52,'PR Expenditure_7A import-export'!N$2:N$18,0)),\"\")","v":""},null,{"$f":"IFERROR(INDEX('PR Expenditure_7A import-export'!C$2:C$18,MATCH('PR Expenditure_7A'!B52,'PR Expenditure_7A import-export'!N$2:N$18,0)),\"\")","v":""},null,0,{"$error":"#VALUE!"},null,null,{"$f":"IFERROR(INDEX('PR Expenditure_7A import-export'!I$2:I$18,MATCH('PR Expenditure_7A'!B52,'PR Expenditure_7A import-export'!N$2:N$18,0)),\"\")","v":""},null,0,{"$error":"#VALUE!"}]
["Don't Show","Costgrp41",{"$f":"IFERROR(INDEX('PR Expenditure_7A import-export'!A$2:A$18,MATCH('PR Expenditure_7A'!B53,'PR Expenditure_7A import-export'!N$2:N$18,0)),\"\")","v":""},null,{"$f":"IFERROR(INDEX('PR Expenditure_7A import-export'!C$2:C$18,MATCH('PR Expenditure_7A'!B53,'PR Expenditure_7A import-export'!N$2:N$18,0)),\"\")","v":""},null,0,{"$error":"#VALUE!"},null,null,{"$f":"IFERROR(INDEX('PR Expenditure_7A import-export'!I$2:I$18,MATCH('PR Expenditure_7A'!B53,'PR Expenditure_7A import-export'!N$2:N$18,0)),\"\")","v":""},null,0,{"$error":"#VALUE!"}]
["Don't Show","Costgrp42",{"$f":"IFERROR(INDEX('PR Expenditure_7A import-export'!A$2:A$18,MATCH('PR Expenditure_7A'!B54,'PR Expenditure_7A import-export'!N$2:N$18,0)),\"\")","v":""},null,{"$f":"IFERROR(INDEX('PR Expenditure_7A import-export'!C$2:C$18,MATCH('PR Expenditure_7A'!B54,'PR Expenditure_7A import-export'!N$2:N$18,0)),\"\")","v":""},null,0,{"$error":"#VALUE!"},null,null,{"$f":"IFERROR(INDEX('PR Expenditure_7A import-export'!I$2:I$18,MATCH('PR Expenditure_7A'!B54,'PR Expenditure_7A import-export'!N$2:N$18,0)),\"\")","v":""},null,0,{"$error":"#VALUE!"}]
["Don't Show","Costgrp43",{"$f":"IFERROR(INDEX('PR Expenditure_7A import-export'!A$2:A$18,MATCH('PR Expenditure_7A'!B55,'PR Expenditure_7A import-export'!N$2:N$18,0)),\"\")","v":""},null,{"$f":"IFERROR(INDEX('PR Expenditure_7A import-export'!C$2:C$18,MATCH('PR Expenditure_7A'!B55,'PR Expenditure_7A import-export'!N$2:N$18,0)),\"\")","v":""},null,0,{"$error":"#VALUE!"},null,null,{"$f":"IFERROR(INDEX('PR Expenditure_7A import-export'!I$2:I$18,MATCH('PR Expenditure_7A'!B55,'PR Expenditure_7A import-export'!N$2:N$18,0)),\"\")","v":""},null,0,{"$error":"#VALUE!"}]
["Don't Show","Costgrp44",{"$f":"IFERROR(INDEX('PR Expenditure_7A import-export'!A$2:A$18,MATCH('PR Expenditure_7A'!B56,'PR Expenditure_7A import-export'!N$2:N$18,0)),\"\")","v":""},null,{"$f":"IFERROR(INDEX('PR Expenditure_7A import-export'!C$2:C$18,MATCH('PR Expenditure_7A'!B56,'PR Expenditure_7A import-export'!N$2:N$18,0)),\"\")","v":""},null,0,{"$error":"#VALUE!"},null,null,{"$f":"IFERROR(INDEX('PR Expenditure_7A import-export'!I$2:I$18,MATCH('PR Expenditure_7A'!B56,'PR Expenditure_7A import-export'!N$2:N$18,0)),\"\")","v":""},null,0,{"$error":"#VALUE!"}]
["Don't Show","Costgrp45",{"$f":"IFERROR(INDEX('PR Expenditure_7A import-export'!A$2:A$18,MATCH('PR Expenditure_7A'!B57,'PR Expenditure_7A import-export'!N$2:N$18,0)),\"\")","v":""},null,{"$f":"IFERROR(INDEX('PR Expenditure_7A import-export'!C$2:C$18,MATCH('PR Expenditure_7A'!B57,'PR Expenditure_7A import-export'!N$2:N$18,0)),\"\")","v":""},null,0,{"$error":"#VALUE!"},null,null,{"$f":"IFERROR(INDEX('PR Expenditure_7A import-export'!I$2:I$18,MATCH('PR Expenditure_7A'!B57,'PR Expenditure_7A import-export'!N$2:N$18,0)),\"\")","v":""},null,0,{"$error":"#VALUE!"}]
["Don't Show","Costgrp46",{"$f":"IFERROR(INDEX('PR Expenditure_7A import-export'!A$2:A$18,MATCH('PR Expenditure_7A'!B58,'PR Expenditure_7A import-export'!N$2:N$18,0)),\"\")","v":""},null,{"$f":"IFERROR(INDEX('PR Expenditure_7A import-export'!C$2:C$18,MATCH('PR Expenditure_7A'!B58,'PR Expenditure_7A import-export'!N$2:N$18,0)),\"\")","v":""},null,0,{"$error":"#VALUE!"},null,null,{"$f":"IFERROR(INDEX('PR Expenditure_7A import-export'!I$2:I$18,MATCH('PR Expenditure_7A'!B58,'PR Expenditure_7A import-export'!N$2:N$18,0)),\"\")","v":""},null,0,{"$error":"#VALUE!"}]
["Don't Show","Costgrp47",{"$f":"IFERROR(INDEX('PR Expenditure_7A import-export'!A$2:A$18,MATCH('PR Expenditure_7A'!B59,'PR Expenditure_7A import-export'!N$2:N$18,0)),\"\")","v":""},null,{"$f":"IFERROR(INDEX('PR Expenditure_7A import-export'!C$2:C$18,MATCH('PR Expenditure_7A'!B59,'PR Expenditure_7A import-export'!N$2:N$18,0)),\"\")","v":""},null,0,{"$error":"#VALUE!"},null,null,{"$f":"IFERROR(INDEX('PR Expenditure_7A import-export'!I$2:I$18,MATCH('PR Expenditure_7A'!B59,'PR Expenditure_7A import-export'!N$2:N$18,0)),\"\")","v":""},null,0,{"$error":"#VALUE!"}]
["Don't Show","Costgrp48",{"$f":"IFERROR(INDEX('PR Expenditure_7A import-export'!A$2:A$18,MATCH('PR Expenditure_7A'!B60,'PR Expenditure_7A import-export'!N$2:N$18,0)),\"\")","v":""},null,{"$f":"IFERROR(INDEX('PR Expenditure_7A import-export'!C$2:C$18,MATCH('PR Expenditure_7A'!B60,'PR Expenditure_7A import-export'!N$2:N$18,0)),\"\")","v":""},null,0,{"$error":"#VALUE!"},null,null,{"$f":"IFERROR(INDEX('PR Expenditure_7A import-export'!I$2:I$18,MATCH('PR Expenditure_7A'!B60,'PR Expenditure_7A import-export'!N$2:N$18,0)),\"\")","v":""},null,0,{"$error":"#VALUE!"}]
["Don't Show","Costgrp49",{"$f":"IFERROR(INDEX('PR Expenditure_7A import-export'!A$2:A$18,MATCH('PR Expenditure_7A'!B61,'PR Expenditure_7A import-export'!N$2:N$18,0)),\"\")","v":""},null,{"$f":"IFERROR(INDEX('PR Expenditure_7A import-export'!C$2:C$18,MATCH('PR Expenditure_7A'!B61,'PR Expenditure_7A import-export'!N$2:N$18,0)),\"\")","v":""},null,0,{"$error":"#VALUE!"},null,null,{"$f":"IFERROR(INDEX('PR Expenditure_7A import-export'!I$2:I$18,MATCH('PR Expenditure_7A'!B61,'PR Expenditure_7A import-export'!N$2:N$18,0)),\"\")","v":""},null,0,{"$error":"#VALUE!"}]
["Don't Show","Costgrp50",{"$f":"IFERROR(INDEX('PR Expenditure_7A import-export'!A$2:A$18,MATCH('PR Expenditure_7A'!B62,'PR Expenditure_7A import-export'!N$2:N$18,0)),\"\")","v":""},null,{"$f":"IFERROR(INDEX('PR Expenditure_7A import-export'!C$2:C$18,MATCH('PR Expenditure_7A'!B62,'PR Expenditure_7A import-export'!N$2:N$18,0)),\"\")","v":""},null,0,{"$error":"#VALUE!"},null,null,{"$f":"IFERROR(INDEX('PR Expenditure_7A import-export'!I$2:I$18,MATCH('PR Expenditure_7A'!B62,'PR Expenditure_7A import-export'!N$2:N$18,0)),\"\")","v":""},null,0,{"$error":"#VALUE!"}]
["Don't Show","Costgrp51",{"$f":"IFERROR(INDEX('PR Expenditure_7A import-export'!A$2:A$18,MATCH('PR Expenditure_7A'!B63,'PR Expenditure_7A import-export'!N$2:N$18,0)),\"\")","v":""},null,{"$f":"IFERROR(INDEX('PR Expenditure_7A import-export'!C$2:C$18,MATCH('PR Expenditure_7A'!B63,'PR Expenditure_7A import-export'!N$2:N$18,0)),\"\")","v":""},null,0,{"$error":"#VALUE!"},null,null,{"$f":"IFERROR(INDEX('PR Expenditure_7A import-export'!I$2:I$18,MATCH('PR Expenditure_7A'!B63,'PR Expenditure_7A import-export'!N$2:N$18,0)),\"\")","v":""},null,0,{"$error":"#VALUE!"}]
["Don't Show","Costgrp52",{"$f":"IFERROR(INDEX('PR Expenditure_7A import-export'!A$2:A$18,MATCH('PR Expenditure_7A'!B64,'PR Expenditure_7A import-export'!N$2:N$18,0)),\"\")","v":""},null,{"$f":"IFERROR(INDEX('PR Expenditure_7A import-export'!C$2:C$18,MATCH('PR Expenditure_7A'!B64,'PR Expenditure_7A import-export'!N$2:N$18,0)),\"\")","v":""},null,0,{"$error":"#VALUE!"},null,null,{"$f":"IFERROR(INDEX('PR Expenditure_7A import-export'!I$2:I$18,MATCH('PR Expenditure_7A'!B64,'PR Expenditure_7A import-export'!N$2:N$18,0)),\"\")","v":""},null,0,{"$error":"#VALUE!"}]
["Don't Show","Costgrp53",{"$f":"IFERROR(INDEX('PR Expenditure_7A import-export'!A$2:A$18,MATCH('PR Expenditure_7A'!B65,'PR Expenditure_7A import-export'!N$2:N$18,0)),\"\")","v":""},null,{"$f":"IFERROR(INDEX('PR Expenditure_7A import-export'!C$2:C$18,MATCH('PR Expenditure_7A'!B65,'PR Expenditure_7A import-export'!N$2:N$18,0)),\"\")","v":""},null,0,{"$error":"#VALUE!"},null,null,{"$f":"IFERROR(INDEX('PR Expenditure_7A import-export'!I$2:I$18,MATCH('PR Expenditure_7A'!B65,'PR Expenditure_7A import-export'!N$2:N$18,0)),\"\")","v":""},null,0,{"$error":"#VALUE!"}]
["Don't Show","Costgrp54",{"$f":"IFERROR(INDEX('PR Expenditure_7A import-export'!A$2:A$18,MATCH('PR Expenditure_7A'!B66,'PR Expenditure_7A import-export'!N$2:N$18,0)),\"\")","v":""},null,{"$f":"IFERROR(INDEX('PR Expenditure_7A import-export'!C$2:C$18,MATCH('PR Expenditure_7A'!B66,'PR Expenditure_7A import-export'!N$2:N$18,0)),\"\")","v":""},null,0,{"$error":"#VALUE!"},null,null,{"$f":"IFERROR(INDEX('PR Expenditure_7A import-export'!I$2:I$18,MATCH('PR Expenditure_7A'!B66,'PR Expenditure_7A import-export'!N$2:N$18,0)),\"\")","v":""},null,0,{"$error":"#VALUE!"}]
["Don't Show","Costgrp55",{"$f":"IFERROR(INDEX('PR Expenditure_7A import-export'!A$2:A$18,MATCH('PR Expenditure_7A'!B67,'PR Expenditure_7A import-export'!N$2:N$18,0)),\"\")","v":""},null,{"$f":"IFERROR(INDEX('PR Expenditure_7A import-export'!C$2:C$18,MATCH('PR Expenditure_7A'!B67,'PR Expenditure_7A import-export'!N$2:N$18,0)),\"\")","v":""},null,0,{"$error":"#VALUE!"},null,null,{"$f":"IFERROR(INDEX('PR Expenditure_7A import-export'!I$2:I$18,MATCH('PR Expenditure_7A'!B67,'PR Expenditure_7A import-export'!N$2:N$18,0)),\"\")","v":""},null,0,{"$error":"#VALUE!"}]
["Don't Show","Costgrp56",{"$f":"IFERROR(INDEX('PR Expenditure_7A import-export'!A$2:A$18,MATCH('PR Expenditure_7A'!B68,'PR Expenditure_7A import-export'!N$2:N$18,0)),\"\")","v":""},null,{"$f":"IFERROR(INDEX('PR Expenditure_7A import-export'!C$2:C$18,MATCH('PR Expenditure_7A'!B68,'PR Expenditure_7A import-export'!N$2:N$18,0)),\"\")","v":""},null,0,{"$error":"#VALUE!"},null,null,{"$f":"IFERROR(INDEX('PR Expenditure_7A import-export'!I$2:I$18,MATCH('PR Expenditure_7A'!B68,'PR Expenditure_7A import-export'!N$2:N$18,0)),\"\")","v":""},null,0,{"$error":"#VALUE!"}]
["Don't Show","Costgrpnew1",null,null,0,null,{"$f":"IFERROR(E69-F69,0)","v":0},{"$f":"IF(AND(E69=0,F69=0),\"N/A\",IF(AND(E69=0,F69<>0),\"Not Budgeted\",F69/E69))","v":"N/A"},null,null,null,null,{"$f":"IFERROR(K69-L69,0)","v":0},{"$f":"IF(AND(K69=0,L69=0),\"N/A\",IF(AND(K69=0,L69<>0),\"Not Budgeted\",L69/K69))","v":"N/A"},null,null,null,null,null,null,{"$f":"_402d6ddb_8386_4816_be97_0d59ffbe8160","v":""}]
["Don't Show","Costgrpnew2",null,null,0,null,{"$f":"IFERROR(E70-F70,0)","v":0},{"$f":"IF(AND(E70=0,F70=0),\"N/A\",IF(AND(E70=0,F70<>0),\"Not Budgeted\",F70/E70))","v":"N/A"},null,null,null,null,{"$f":"IFERROR(K70-L70,0)","v":0},{"$f":"IF(AND(K70=0,L70=0),\"N/A\",IF(AND(K70=0,L70<>0),\"Not Budgeted\",L70/K70))","v":"N/A"}]
["Don't Show","Costgrpnew3",null,null,0,null,0,"N/A",null,null,null,null,0,"N/A"]
["Don't Show","Costgrpnew4",null,null,0,null,0,"N/A",null,null,null,null,0,"N/A"]
["Don't Show","Costgrpnew5",null,null,0,null,0,"N/A",null,null,null,null,0,"N/A"]
["Don't Show","Costgrpnew6",null,null,0,null,0,"N/A",null,null,null,null,0,"N/A"]
["Don't Show","Costgrpnew7",null,null,0,null,0,"N/A",null,null,null,null,0,"N/A"]
["Don't Show","Costgrpnew8",null,null,0,null,0,"N/A",null,null,null,null,0,"N/A"]
["Don't Show","Costgrpnew9",null,null,0,null,0,"N/A",null,null,null,null,0,"N/A"]
["Don't Show","Costgrpnew10",null,null,0,null,0,"N/A",null,null,null,null,0,"N/A"]
["Don't Show","Costgrpnew11",null,null,0,null,0,"N/A",null,null,null,null,0,"N/A"]
["Don't Show","Costgrpnew12",null,null,0,null,0,"N/A",null,null,null,null,0,"N/A"]
["Don't Show","Costgrpnew13",null,null,0,null,0,"N/A",null,null,null,null,0,"N/A"]
["Don't Show","Costgrpnew14",null,null,0,null,0,"N/A",null,null,null,null,0,"N/A"]
["Don't Show","Costgrpnew15",null,null,0,null,0,"N/A",null,null,null,null,0,"N/A"]
["Don't Show","Costgrpnew16",null,null,0,null,0,"N/A",null,null,null,null,0,"N/A"]
["Don't Show","Costgrpnew17",null,null,0,null,0,"N/A",null,null,null,null,0,"N/A"]
["Don't Show","Costgrpnew18",null,null,0,null,0,"N/A",null,null,null,null,0,"N/A"]
["Don't Show","Costgrpnew19",null,null,0,null,0,"N/A",null,null,null,null,0,"N/A"]
["Don't Show","Costgrpnew20",null,null,0,null,0,"N/A",null,null,null,null,0,"N/A"]
["Don't Show","Costgrpnew21",null,null,0,null,0,"N/A",null,null,null,null,0,"N/A"]
["Don't Show","Costgrpnew22",null,null,0,null,0,"N/A",null,null,null,null,0,"N/A"]
["Don't Show","Costgrpnew23",null,null,0,null,0,"N/A",null,null,null,null,0,"N/A"]
["Don't Show","Costgrpnew24",null,null,0,null,0,"N/A",null,null,null,null,0,"N/A"]
["Don't Show","Costgrpnew25",null,null,0,null,0,"N/A",null,null,null,null,0,"N/A"]
["Don't Show","Costgrpnew26",null,null,0,null,0,"N/A",null,null,null,null,0,"N/A"]
[{"$f":"IF(C95<>\"\",\"Show\",\"Don't Show\")","v":"Don't Show"},"Costgrpnew27",null,null,0,null,0,"N/A",null,null,null,null,0,"N/A"]
[{"$f":"IF(C96<>\"\",\"Show\",\"Don't Show\")","v":"Don't Show"},"Costgrpnew28",null,null,0,null,0,"N/A",null,null,null,null,0,"N/A"]
[{"$f":"IF(C97<>\"\",\"Show\",\"Don't Show\")","v":"Don't Show"},"Costgrpnew29",null,null,0,null,0,"N/A",null,null,null,null,0,"N/A"]
[{"$f":"IF(C98<>\"\",\"Show\",\"Don't Show\")","v":"Don't Show"},"Costgrpnew30",null,null,0,null,0,"N/A",null,null,null,null,0,"N/A"]
["Show",null,"Grand Total",null,{"$f":"ROUND(SUM(E9:E98),2)","v":5743857.3399999999},{"$f":"ROUND(SUM(F9:F98),2)","v":1056654.67},{"$f":"ROUND(SUM(G9:G98),2)","v":4687202.67},{"$f":"(F99/E99)*100","v":18.396255468280831},null,null,{"$f":"ROUND(SUM(K9:K98),2)","v":5743857.3399999999},{"$f":"ROUND(SUM(L9:L98),2)","v":1056654.67},{"$f":"SUM(M9:M98)","v":4687202.6738737393},{"$f":"(L99/K99)","v":0.18396255468280831}]
["Show"]
["Show",null,"B. BREAKDOWN BY INTERVENTIONS"]
["Show"]
["Show",null,"Modular Approach - Modules","Modular Approach - Interventions","Budget for Reporting Period","Actual Expenditure","Budget Vs Actual Variances","Absorption Rate","Explanation of Variances (mandatory for all percentages below 95% & above 105%)",null,"Cumulative Budget","Cumulative Actual Expenditure","Cumulative Budget Vs Actuals Variances","Absorption Rate"]
[{"$f":"IF(C104<>\"\",\"Show\",\"Don't Show\")","v":"Show"},"Int1",{"$f":"IFERROR(INDEX('PR Expenditure_7A import-export'!A$22:A$63,MATCH($B104,'PR Expenditure_7A import-export'!$N$22:$N$63,0)),\"\")","v":"Comprehensive prevention programs for people who inject drugs (PWID) and their partners"},{"$f":"IFERROR(INDEX('PR Expenditure_7A import-export'!B$22:B$63,MATCH($B104,'PR Expenditure_7A import-export'!$N$22:$N$63,0)),\"\")","v":"Behavioral interventions for PWID"},{"$f":"IFERROR(INDEX('PR Expenditure_7A import-export'!C$22:C$63,MATCH($B104,'PR Expenditure_7A import-export'!$N$22:$N$63,0)),\"\")","v":4785.3220048031899},null,{"$f":"IFERROR(E104-F104,0)","v":4785.3220048031899},{"$f":"IF(AND(E104=0,F104=0),\"N/A\",IF(AND(E104=0,F104<>0),\"Not Budgeted\",F104/E104))","v":0},null,null,{"$f":"IFERROR(INDEX('PR Expenditure_7A import-export'!I$22:I$63,MATCH($B104,'PR Expenditure_7A import-export'!$N$22:$N$63,0)),\"\")","v":4785.3220048031899},{"$f":"F104","v":0},{"$f":"IFERROR(K104-L104,0)","v":4785.3220048031899},{"$f":"IF(AND(K104=0,L104=0),\"N/A\",IF(AND(K104=0,L104<>0),\"Not Budgeted\",L104/K104))","v":0}]
[{"$f":"IF(C105<>\"\",\"Show\",\"Don't Show\")","v":"Show"},"Int2",{"$f":"IFERROR(INDEX('PR Expenditure_7A import-export'!A$22:A$63,MATCH($B105,'PR Expenditure_7A import-export'!$N$22:$N$63,0)),\"\")","v":"TB care and prevention"},{"$f":"IFERROR(INDEX('PR Expenditure_7A import-export'!B$22:B$63,MATCH($B105,'PR Expenditure_7A import-export'!$N$22:$N$63,0)),\"\")","v":"Case detection and diagnosis"},{"$f":"IFERROR(INDEX('PR Expenditure_7A import-export'!C$22:C$63,MATCH($B105,'PR Expenditure_7A import-export'!$N$22:$N$63,0)),\"\")","v":493731.80463605799},78714.19,{"$f":"IFERROR(E105-F105,0)","v":415017.61463605799},{"$f":"IF(AND(E105=0,F105=0),\"N/A\",IF(AND(E105=0,F105<>0),\"Not Budgeted\",F105/E105))","v":0.15942701940787912},"Cet écart comprend:\n* les économies de USD 116,736.66 sur les couts liés au déplacement et équipement de dépistage moléculaire dues au retard dans la signature de l'accord et pour lesquelles des engagements de USD 5,298.56 ;\n* les économies de USD 421.43  relatives à l'act 13 dues au retard dans la mise en oeuvre de celle-ci;\n* les économies de USD 297,859.52 sur les produits de santé  non pharmaceutiques et équipements (cf act 4, 5, 6, 7, 8, 12, 28) ainsi les couts de gestion des achats (cf act 9, 10, 11 et 33) y afférent résultant du retard dans les commandes suite à la reprise des quantifications; il faut signaler qu'un engagement de USD 189, 103.86 existe au 300618",null,{"$f":"IFERROR(INDEX('PR Expenditure_7A import-export'!I$22:I$63,MATCH($B105,'PR Expenditure_7A import-export'!$N$22:$N$63,0)),\"\")","v":493731.80463605799},78714.19,{"$f":"IFERROR(K105-L105,0)","v":415017.61463605799},{"$f":"IF(AND(K105=0,L105=0),\"N/A\",IF(AND(K105=0,L105<>0),\"Not Budgeted\",L105/K105))","v":0.15942701940787912}]
["Show","Int3",{"$f":"IFERROR(INDEX('PR Expenditure_7A import-export'!A$22:A$63,MATCH($B106,'PR Expenditure_7A import-export'!$N$22:$N$63,0)),\"\")","v":"TB care and prevention"},{"$f":"IFERROR(INDEX('PR Expenditure_7A import-export'!B$22:B$63,MATCH($B106,'PR Expenditure_7A import-export'!$N$22:$N$63,0)),\"\")","v":"Key populations (TB care and prevention) - Others"},{"$f":"IFERROR(INDEX('PR Expenditure_7A import-export'!C$22:C$63,MATCH($B106,'PR Expenditure_7A import-export'!$N$22:$N$63,0)),\"\")","v":72478.276440338203},null,72478.276440338203,0,null,null,{"$f":"IFERROR(INDEX('PR Expenditure_7A import-export'!I$22:I$63,MATCH($B106,'PR Expenditure_7A import-export'!$N$22:$N$63,0)),\"\")","v":72478.276440338203},0,72478.276440338203,0]
["Show","Int4",{"$f":"IFERROR(INDEX('PR Expenditure_7A import-export'!A$22:A$63,MATCH($B107,'PR Expenditure_7A import-export'!$N$22:$N$63,0)),\"\")","v":"TB care and prevention"},{"$f":"IFERROR(INDEX('PR Expenditure_7A import-export'!B$22:B$63,MATCH($B107,'PR Expenditure_7A import-export'!$N$22:$N$63,0)),\"\")","v":"Key populations (TB care and prevention) - Prisoners"},{"$f":"IFERROR(INDEX('PR Expenditure_7A import-export'!C$22:C$63,MATCH($B107,'PR Expenditure_7A import-export'!$N$22:$N$63,0)),\"\")","v":6043.4606260430601},null,6043.4606260430601,0,null,null,{"$f":"IFERROR(INDEX('PR Expenditure_7A import-export'!I$22:I$63,MATCH($B107,'PR Expenditure_7A import-export'!$N$22:$N$63,0)),\"\")","v":6043.4606260430601},0,6043.4606260430601,0]
["Show","Int5",{"$f":"IFERROR(INDEX('PR Expenditure_7A import-export'!A$22:A$63,MATCH($B108,'PR Expenditure_7A import-export'!$N$22:$N$63,0)),\"\")","v":"TB care and prevention"},{"$f":"IFERROR(INDEX('PR Expenditure_7A import-export'!B$22:B$63,MATCH($B108,'PR Expenditure_7A import-export'!$N$22:$N$63,0)),\"\")","v":"Prevention"},{"$f":"IFERROR(INDEX('PR Expenditure_7A import-export'!C$22:C$63,MATCH($B108,'PR Expenditure_7A import-export'!$N$22:$N$63,0)),\"\")","v":6342.4190506292398},3264.29,3078.1290506292398,0.51467586325380776,"Economie sur l'organisation de la journée mondiale TB (act 20)",null,{"$f":"IFERROR(INDEX('PR Expenditure_7A import-export'!I$22:I$63,MATCH($B108,'PR Expenditure_7A import-export'!$N$22:$N$63,0)),\"\")","v":6342.4190506292398},3264.29,3078.1290506292398,0.51467586325380776]
["Show","Int6",{"$f":"IFERROR(INDEX('PR Expenditure_7A import-export'!A$22:A$63,MATCH($B109,'PR Expenditure_7A import-export'!$N$22:$N$63,0)),\"\")","v":"TB care and prevention"},{"$f":"IFERROR(INDEX('PR Expenditure_7A import-export'!B$22:B$63,MATCH($B109,'PR Expenditure_7A import-export'!$N$22:$N$63,0)),\"\")","v":"Treatment"},{"$f":"IFERROR(INDEX('PR Expenditure_7A import-export'!C$22:C$63,MATCH($B109,'PR Expenditure_7A import-export'!$N$22:$N$63,0)),\"\")","v":357853.41919894703},null,357853.41919894703,0,null,null,{"$f":"IFERROR(INDEX('PR Expenditure_7A import-export'!I$22:I$63,MATCH($B109,'PR Expenditure_7A import-export'!$N$22:$N$63,0)),\"\")","v":357853.41919894703},0,357853.41919894703,0]
["Show","Int7",{"$f":"IFERROR(INDEX('PR Expenditure_7A import-export'!A$22:A$63,MATCH($B110,'PR Expenditure_7A import-export'!$N$22:$N$63,0)),\"\")","v":"TB care and prevention"},{"$f":"IFERROR(INDEX('PR Expenditure_7A import-export'!B$22:B$63,MATCH($B110,'PR Expenditure_7A import-export'!$N$22:$N$63,0)),\"\")","v":"Community TB care delivery"},{"$f":"IFERROR(INDEX('PR Expenditure_7A import-export'!C$22:C$63,MATCH($B110,'PR Expenditure_7A import-export'!$N$22:$N$63,0)),\"\")","v":25604.313853560099},null,25604.313853560099,0,null,null,{"$f":"IFERROR(INDEX('PR Expenditure_7A import-export'!I$22:I$63,MATCH($B110,'PR Expenditure_7A import-export'!$N$22:$N$63,0)),\"\")","v":25604.313853560099},0,25604.313853560099,0]
["Show","Int8",{"$f":"IFERROR(INDEX('PR Expenditure_7A import-export'!A$22:A$63,MATCH($B111,'PR Expenditure_7A import-export'!$N$22:$N$63,0)),\"\")","v":"RSSH: Health management information systems and M&E"},{"$f":"IFERROR(INDEX('PR Expenditure_7A import-export'!B$22:B$63,MATCH($B111,'PR Expenditure_7A import-export'!$N$22:$N$63,0)),\"\")","v":"Analysis, review and transparency"},{"$f":"IFERROR(INDEX('PR Expenditure_7A import-export'!C$22:C$63,MATCH($B111,'PR Expenditure_7A import-export'!$N$22:$N$63,0)),\"\")","v":139624.95862256401},2235.81,{"$f":"IFERROR(E111-F111,0)","v":137389.14862256401},{"$f":"IF(AND(E111=0,F111=0),\"N/A\",IF(AND(E111=0,F111<>0),\"Not Budgeted\",F111/E111))","v":1.601296803993239E-2},"Cet écart s'explique par :\n* les économies de USD 9,328.2 résultant du non paiement des frais de connexion relatifs aux échanges en ligne (act 179);\n* les économies de USD 22,720.3 sur les services professionnels (act 180 et 191) dues au retard dans le recruitement des consultants charge virale et mise en place site WEB.\n* les économies de USD 105,340.65 sur les couts liés au déplacement (act 35, 169, 170, 171, 172, 173, 174, 175, 176, 177, 181, 182, 183, 184, 185, 187, 188, 189, 190, 193, 194, 195) dues au retard dans la signature des accords avec les SRs et pour lesquelles des engagements de USD 51,732.68   existe au 300618 ",null,{"$f":"IFERROR(INDEX('PR Expenditure_7A import-export'!I$22:I$63,MATCH($B111,'PR Expenditure_7A import-export'!$N$22:$N$63,0)),\"\")","v":139624.95862256401},2235.81,{"$f":"IFERROR(K111-L111,0)","v":137389.14862256401},{"$f":"IF(AND(K111=0,L111=0),\"N/A\",IF(AND(K111=0,L111<>0),\"Not Budgeted\",L111/K111))","v":1.601296803993239E-2}]
["Show","Int9",{"$f":"IFERROR(INDEX('PR Expenditure_7A import-export'!A$22:A$63,MATCH($B112,'PR Expenditure_7A import-export'!$N$22:$N$63,0)),\"\")","v":"RSSH: Health management information systems and M&E"},{"$f":"IFERROR(INDEX('PR Expenditure_7A import-export'!B$22:B$63,MATCH($B112,'PR Expenditure_7A import-export'!$N$22:$N$63,0)),\"\")","v":"Surveys"},{"$f":"IFERROR(INDEX('PR Expenditure_7A import-export'!C$22:C$63,MATCH($B112,'PR Expenditure_7A import-export'!$N$22:$N$63,0)),\"\")","v":64020.761629238899},null,64020.761629238899,0,null,null,{"$f":"IFERROR(INDEX('PR Expenditure_7A import-export'!I$22:I$63,MATCH($B112,'PR Expenditure_7A import-export'!$N$22:$N$63,0)),\"\")","v":64020.761629238899},0,64020.761629238899,0]
["Show","Int10",{"$f":"IFERROR(INDEX('PR Expenditure_7A import-export'!A$22:A$63,MATCH($B113,'PR Expenditure_7A import-export'!$N$22:$N$63,0)),\"\")","v":"RSSH: Health management information systems and M&E"},{"$f":"IFERROR(INDEX('PR Expenditure_7A import-export'!B$22:B$63,MATCH($B113,'PR Expenditure_7A import-export'!$N$22:$N$63,0)),\"\")","v":"Routine reporting"},{"$f":"IFERROR(INDEX('PR Expenditure_7A import-export'!C$22:C$63,MATCH($B113,'PR Expenditure_7A import-export'!$N$22:$N$63,0)),\"\")","v":47163.540788967002},null,47163.540788967002,0,null,null,{"$f":"IFERROR(INDEX('PR Expenditure_7A import-export'!I$22:I$63,MATCH($B113,'PR Expenditure_7A import-export'!$N$22:$N$63,0)),\"\")","v":47163.540788967002},0,47163.540788967002,0]
["Show","Int11",{"$f":"IFERROR(INDEX('PR Expenditure_7A import-export'!A$22:A$63,MATCH($B114,'PR Expenditure_7A import-export'!$N$22:$N$63,0)),\"\")","v":"MDR-TB"},{"$f":"IFERROR(INDEX('PR Expenditure_7A import-export'!B$22:B$63,MATCH($B114,'PR Expenditure_7A import-export'!$N$22:$N$63,0)),\"\")","v":"Treatment: MDR-TB"},{"$f":"IFERROR(INDEX('PR Expenditure_7A import-export'!C$22:C$63,MATCH($B114,'PR Expenditure_7A import-export'!$N$22:$N$63,0)),\"\")","v":259329.99478294401},423.64,258906.35478294399,1.6335942950007824E-3,null,null,{"$f":"IFERROR(INDEX('PR Expenditure_7A import-export'!I$22:I$63,MATCH($B114,'PR Expenditure_7A import-export'!$N$22:$N$63,0)),\"\")","v":259329.99478294401},423.64,258906.35478294399,1.6335942950007824E-3]
["Show","Int12",{"$f":"IFERROR(INDEX('PR Expenditure_7A import-export'!A$22:A$63,MATCH($B115,'PR Expenditure_7A import-export'!$N$22:$N$63,0)),\"\")","v":"TB/HIV"},{"$f":"IFERROR(INDEX('PR Expenditure_7A import-export'!B$22:B$63,MATCH($B115,'PR Expenditure_7A import-export'!$N$22:$N$63,0)),\"\")","v":"TB/HIV collaborative interventions"},{"$f":"IFERROR(INDEX('PR Expenditure_7A import-export'!C$22:C$63,MATCH($B115,'PR Expenditure_7A import-export'!$N$22:$N$63,0)),\"\")","v":119955.192915333},null,119955.192915333,0,null,null,{"$f":"IFERROR(INDEX('PR Expenditure_7A import-export'!I$22:I$63,MATCH($B115,'PR Expenditure_7A import-export'!$N$22:$N$63,0)),\"\")","v":119955.192915333},0,119955.192915333,0]
["Show","Int13",{"$f":"IFERROR(INDEX('PR Expenditure_7A import-export'!A$22:A$63,MATCH($B116,'PR Expenditure_7A import-export'!$N$22:$N$63,0)),\"\")","v":"Program management"},{"$f":"IFERROR(INDEX('PR Expenditure_7A import-export'!B$22:B$63,MATCH($B116,'PR Expenditure_7A import-export'!$N$22:$N$63,0)),\"\")","v":"Grant management"},{"$f":"IFERROR(INDEX('PR Expenditure_7A import-export'!C$22:C$63,MATCH($B116,'PR Expenditure_7A import-export'!$N$22:$N$63,0)),\"\")","v":1194123.21398953},419380.18,774743.03398953006,0.35120343955031519,"Cet écart s'explique par:\n* les économies de 404,842.93 sur les RH (act 66,264, 265, 266, 267, 278) dues non seulement au retard dans la mise en place des équipes du PR et de programmes nationaux mais aussi à la prise en charge par le Fonds Mondial d'un certain nombre de staff sur les anciennes subventions pour les travaux de cloture. \n* les économies de USD de 309,249.24 relatives aux frais de gestion du PR (act 282 ) dues à la non exécution de la totalité des activités du plan de travail et USD 21,566.87 sur les couts indirects et overhead (100, 128, 137, 273, 277, 281) dues au retard dans le démarrage des activités;\n* les économies de USD 11,865.30 sur les couts liés au déplacements (act 261, 262, 263, 279 et 289);\n* les économies de USD 10,664.02 sur les services professionnels externe(act 280 et 287) non encore exécutés;\n* les économies de USD 18,737. 27 sur les infrastructures (act 270 et 274 dues à la mise à disposition par le PNUD du mobilier nécessaire et la réalisation d'une réhabilitation de faible valeur;\n* le gap de USD -2,182.61 sur les équipements non sanitaires (178, 268, 269, 271, 272)",null,{"$f":"IFERROR(INDEX('PR Expenditure_7A import-export'!I$22:I$63,MATCH($B116,'PR Expenditure_7A import-export'!$N$22:$N$63,0)),\"\")","v":1194123.21398953},419380.18,774743.03398953006,0.35120343955031519]
["Show","Int14",{"$f":"IFERROR(INDEX('PR Expenditure_7A import-export'!A$22:A$63,MATCH($B117,'PR Expenditure_7A import-export'!$N$22:$N$63,0)),\"\")","v":"Program management"},{"$f":"IFERROR(INDEX('PR Expenditure_7A import-export'!B$22:B$63,MATCH($B117,'PR Expenditure_7A import-export'!$N$22:$N$63,0)),\"\")","v":"Policy, planning, coordination and management of national disease control programs"},{"$f":"IFERROR(INDEX('PR Expenditure_7A import-export'!C$22:C$63,MATCH($B117,'PR Expenditure_7A import-export'!$N$22:$N$63,0)),\"\")","v":105015.23784608601},21752.21,83263.027846086014,0.20713384501286181,"Cet écart résulte:\n* des économies de USD 22,707.79 sur les primes accordées aux fonctionnaires (act 68, 70, 71, 255, 257, 260);\n* les économies de USD 55,448.11 sur les couts indirects et overheads (69, 254, 258, 259) dues au retard dans la signature des accords et la prise à la charge par le Fonds Mondial de certaines dépenses de fonctionnement sur la cloture;\n* les économies de USD 5,107.13 sur l'act 256 relative au cout lié au déplacement",null,{"$f":"IFERROR(INDEX('PR Expenditure_7A import-export'!I$22:I$63,MATCH($B117,'PR Expenditure_7A import-export'!$N$22:$N$63,0)),\"\")","v":105015.23784608601},21752.21,83263.027846086014,0.20713384501286181]
["Show","Int15",{"$f":"IFERROR(INDEX('PR Expenditure_7A import-export'!A$22:A$63,MATCH($B118,'PR Expenditure_7A import-export'!$N$22:$N$63,0)),\"\")","v":"PMTCT"},{"$f":"IFERROR(INDEX('PR Expenditure_7A import-export'!B$22:B$63,MATCH($B118,'PR Expenditure_7A import-export'!$N$22:$N$63,0)),\"\")","v":"Prong 1: Primary prevention of HIV infection among women of childbearing age"},{"$f":"IFERROR(INDEX('PR Expenditure_7A import-export'!C$22:C$63,MATCH($B118,'PR Expenditure_7A import-export'!$N$22:$N$63,0)),\"\")","v":13826.315722405699},null,13826.315722405699,0,null,null,{"$f":"IFERROR(INDEX('PR Expenditure_7A import-export'!I$22:I$63,MATCH($B118,'PR Expenditure_7A import-export'!$N$22:$N$63,0)),\"\")","v":13826.315722405699},0,13826.315722405699,0]
["Show","Int16",{"$f":"IFERROR(INDEX('PR Expenditure_7A import-export'!A$22:A$63,MATCH($B119,'PR Expenditure_7A import-export'!$N$22:$N$63,0)),\"\")","v":"PMTCT"},{"$f":"IFERROR(INDEX('PR Expenditure_7A import-export'!B$22:B$63,MATCH($B119,'PR Expenditure_7A import-export'!$N$22:$N$63,0)),\"\")","v":"Prong 3: Preventing vertical HIV transmission"},{"$f":"IFERROR(INDEX('PR Expenditure_7A import-export'!C$22:C$63,MATCH($B119,'PR Expenditure_7A import-export'!$N$22:$N$63,0)),\"\")","v":384400.03818272002},198607.02000000002,185793.01818272,0.51666753452712855,"Cet écart s'explique par:\n* les économies de USD 33,244.88 sur l'act 74 résultant du non enregistrement des dépenses au 300618 dans Atlas;\n* les économies de USD 48,185.85 sur les médicaments ARV (act 75) pour la PTME. Budget à reporter sur la période à venir;\n* les économies de USD 45,489.05 sur les achats de réactifs (83) dues au retard dans la commande passée pour USD 64,312.5;\n* les économies de USD 58,873.24 relatives au couts de gestion des achats (act 76,77, 78, 79, 85, 86, 87) liés aux produits de santé",null,{"$f":"IFERROR(INDEX('PR Expenditure_7A import-export'!I$22:I$63,MATCH($B119,'PR Expenditure_7A import-export'!$N$22:$N$63,0)),\"\")","v":384400.03818272002},198607.02000000002,185793.01818272,0.51666753452712855]
["Show","Int17",{"$f":"IFERROR(INDEX('PR Expenditure_7A import-export'!A$22:A$63,MATCH($B120,'PR Expenditure_7A import-export'!$N$22:$N$63,0)),\"\")","v":"PMTCT"},{"$f":"IFERROR(INDEX('PR Expenditure_7A import-export'!B$22:B$63,MATCH($B120,'PR Expenditure_7A import-export'!$N$22:$N$63,0)),\"\")","v":"Prong 4: Treatment, care and support to mothers living with HIV, their children and families"},{"$f":"IFERROR(INDEX('PR Expenditure_7A import-export'!C$22:C$63,MATCH($B120,'PR Expenditure_7A import-export'!$N$22:$N$63,0)),\"\")","v":60388.725055484501},null,60388.725055484501,0,null,null,{"$f":"IFERROR(INDEX('PR Expenditure_7A import-export'!I$22:I$63,MATCH($B120,'PR Expenditure_7A import-export'!$N$22:$N$63,0)),\"\")","v":60388.725055484501},0,60388.725055484501,0]
["Show","Int18",{"$f":"IFERROR(INDEX('PR Expenditure_7A import-export'!A$22:A$63,MATCH($B121,'PR Expenditure_7A import-export'!$N$22:$N$63,0)),\"\")","v":"Prevention programs for general population"},{"$f":"IFERROR(INDEX('PR Expenditure_7A import-export'!B$22:B$63,MATCH($B121,'PR Expenditure_7A import-export'!$N$22:$N$63,0)),\"\")","v":"Other intervention(s) for general population"},{"$f":"IFERROR(INDEX('PR Expenditure_7A import-export'!C$22:C$63,MATCH($B121,'PR Expenditure_7A import-export'!$N$22:$N$63,0)),\"\")","v":181903.66182593201},29446.54,152457.121825932,0.16187986379393562,"Cet écart s'explique par :\n* les économies de USD 2,875.61 relative à la supervision de qualité de dépistage exécutée mais non enregistrée dans Atlas au 300618(cf 151) \n* les économies de USD 114,837.83 sur les produits de santé non pharmaceutiques (act  84 et 116) non encore commandés au 30 juin 2018 et reportés sur la période à venir ;\n* les économies de USD 34,743.68 sur les couts de gestion des achats (117, 118 et 119) liés auxdits produits de santé\nLes activités (84, 116, 117, 118 et 119) de USD 149,581.51 seront reportées sur la période à venir",null,{"$f":"IFERROR(INDEX('PR Expenditure_7A import-export'!I$22:I$63,MATCH($B121,'PR Expenditure_7A import-export'!$N$22:$N$63,0)),\"\")","v":181903.66182593201},29446.54,152457.121825932,0.16187986379393562]
["Show","Int19",{"$f":"IFERROR(INDEX('PR Expenditure_7A import-export'!A$22:A$63,MATCH($B122,'PR Expenditure_7A import-export'!$N$22:$N$63,0)),\"\")","v":"PMTCT"},{"$f":"IFERROR(INDEX('PR Expenditure_7A import-export'!B$22:B$63,MATCH($B122,'PR Expenditure_7A import-export'!$N$22:$N$63,0)),\"\")","v":"Other intervention(s) for PMTCT"},{"$f":"IFERROR(INDEX('PR Expenditure_7A import-export'!C$22:C$63,MATCH($B122,'PR Expenditure_7A import-export'!$N$22:$N$63,0)),\"\")","v":9533.6468086751993},null,9533.6468086751993,0,null,null,{"$f":"IFERROR(INDEX('PR Expenditure_7A import-export'!I$22:I$63,MATCH($B122,'PR Expenditure_7A import-export'!$N$22:$N$63,0)),\"\")","v":9533.6468086751993},0,9533.6468086751993,0]
["Show","Int20",{"$f":"IFERROR(INDEX('PR Expenditure_7A import-export'!A$22:A$63,MATCH($B123,'PR Expenditure_7A import-export'!$N$22:$N$63,0)),\"\")","v":"Comprehensive prevention programs for MSM"},{"$f":"IFERROR(INDEX('PR Expenditure_7A import-export'!B$22:B$63,MATCH($B123,'PR Expenditure_7A import-export'!$N$22:$N$63,0)),\"\")","v":"Behavioral interventions for MSM"},{"$f":"IFERROR(INDEX('PR Expenditure_7A import-export'!C$22:C$63,MATCH($B123,'PR Expenditure_7A import-export'!$N$22:$N$63,0)),\"\")","v":3050.9540104395401},null,3050.9540104395401,0,null,null,{"$f":"IFERROR(INDEX('PR Expenditure_7A import-export'!I$22:I$63,MATCH($B123,'PR Expenditure_7A import-export'!$N$22:$N$63,0)),\"\")","v":3050.9540104395401},0,3050.9540104395401,0]
["Show","Int21",{"$f":"IFERROR(INDEX('PR Expenditure_7A import-export'!A$22:A$63,MATCH($B124,'PR Expenditure_7A import-export'!$N$22:$N$63,0)),\"\")","v":"Comprehensive prevention programs for MSM"},{"$f":"IFERROR(INDEX('PR Expenditure_7A import-export'!B$22:B$63,MATCH($B124,'PR Expenditure_7A import-export'!$N$22:$N$63,0)),\"\")","v":"Condoms and lubricant programming for MSM"},{"$f":"IFERROR(INDEX('PR Expenditure_7A import-export'!C$22:C$63,MATCH($B124,'PR Expenditure_7A import-export'!$N$22:$N$63,0)),\"\")","v":4355.5682197850601},null,4355.5682197850601,0,null,null,{"$f":"IFERROR(INDEX('PR Expenditure_7A import-export'!I$22:I$63,MATCH($B124,'PR Expenditure_7A import-export'!$N$22:$N$63,0)),\"\")","v":4355.5682197850601},0,4355.5682197850601,0]
["Show","Int22",{"$f":"IFERROR(INDEX('PR Expenditure_7A import-export'!A$22:A$63,MATCH($B125,'PR Expenditure_7A import-export'!$N$22:$N$63,0)),\"\")","v":"Comprehensive prevention programs for MSM"},{"$f":"IFERROR(INDEX('PR Expenditure_7A import-export'!B$22:B$63,MATCH($B125,'PR Expenditure_7A import-export'!$N$22:$N$63,0)),\"\")","v":"Other intervention(s) for MSM"},{"$f":"IFERROR(INDEX('PR Expenditure_7A import-export'!C$22:C$63,MATCH($B125,'PR Expenditure_7A import-export'!$N$22:$N$63,0)),\"\")","v":15504.729687797},null,15504.729687797,0,null,null,{"$f":"IFERROR(INDEX('PR Expenditure_7A import-export'!I$22:I$63,MATCH($B125,'PR Expenditure_7A import-export'!$N$22:$N$63,0)),\"\")","v":15504.729687797},0,15504.729687797,0]
["Show","Int23",{"$f":"IFERROR(INDEX('PR Expenditure_7A import-export'!A$22:A$63,MATCH($B126,'PR Expenditure_7A import-export'!$N$22:$N$63,0)),\"\")","v":"Comprehensive prevention programs for sex workers and their clients"},{"$f":"IFERROR(INDEX('PR Expenditure_7A import-export'!B$22:B$63,MATCH($B126,'PR Expenditure_7A import-export'!$N$22:$N$63,0)),\"\")","v":"Behavioral interventions for sex workers"},{"$f":"IFERROR(INDEX('PR Expenditure_7A import-export'!C$22:C$63,MATCH($B126,'PR Expenditure_7A import-export'!$N$22:$N$63,0)),\"\")","v":4684.6755908956002},null,4684.6755908956002,0,null,null,{"$f":"IFERROR(INDEX('PR Expenditure_7A import-export'!I$22:I$63,MATCH($B126,'PR Expenditure_7A import-export'!$N$22:$N$63,0)),\"\")","v":4684.6755908956002},0,4684.6755908956002,0]
["Show","Int24",{"$f":"IFERROR(INDEX('PR Expenditure_7A import-export'!A$22:A$63,MATCH($B127,'PR Expenditure_7A import-export'!$N$22:$N$63,0)),\"\")","v":"Comprehensive prevention programs for sex workers and their clients"},{"$f":"IFERROR(INDEX('PR Expenditure_7A import-export'!B$22:B$63,MATCH($B127,'PR Expenditure_7A import-export'!$N$22:$N$63,0)),\"\")","v":"Condoms and lubricant programming for sex workers"},{"$f":"IFERROR(INDEX('PR Expenditure_7A import-export'!C$22:C$63,MATCH($B127,'PR Expenditure_7A import-export'!$N$22:$N$63,0)),\"\")","v":12736.7704611305},null,12736.7704611305,0,null,null,{"$f":"IFERROR(INDEX('PR Expenditure_7A import-export'!I$22:I$63,MATCH($B127,'PR Expenditure_7A import-export'!$N$22:$N$63,0)),\"\")","v":12736.7704611305},0,12736.7704611305,0]
["Show","Int25",{"$f":"IFERROR(INDEX('PR Expenditure_7A import-export'!A$22:A$63,MATCH($B128,'PR Expenditure_7A import-export'!$N$22:$N$63,0)),\"\")","v":"Comprehensive prevention programs for sex workers and their clients"},{"$f":"IFERROR(INDEX('PR Expenditure_7A import-export'!B$22:B$63,MATCH($B128,'PR Expenditure_7A import-export'!$N$22:$N$63,0)),\"\")","v":"Other intervention(s) for sex workers and their clients"},{"$f":"IFERROR(INDEX('PR Expenditure_7A import-export'!C$22:C$63,MATCH($B128,'PR Expenditure_7A import-export'!$N$22:$N$63,0)),\"\")","v":14728.743498673601},null,14728.743498673601,0,null,null,{"$f":"IFERROR(INDEX('PR Expenditure_7A import-export'!I$22:I$63,MATCH($B128,'PR Expenditure_7A import-export'!$N$22:$N$63,0)),\"\")","v":14728.743498673601},0,14728.743498673601,0]
["Show","Int26",{"$f":"IFERROR(INDEX('PR Expenditure_7A import-export'!A$22:A$63,MATCH($B129,'PR Expenditure_7A import-export'!$N$22:$N$63,0)),\"\")","v":"Comprehensive prevention programs for people who inject drugs (PWID) and their partners"},{"$f":"IFERROR(INDEX('PR Expenditure_7A import-export'!B$22:B$63,MATCH($B129,'PR Expenditure_7A import-export'!$N$22:$N$63,0)),\"\")","v":"Other intervention(s) for IDUs and their partners"},{"$f":"IFERROR(INDEX('PR Expenditure_7A import-export'!C$22:C$63,MATCH($B129,'PR Expenditure_7A import-export'!$N$22:$N$63,0)),\"\")","v":6814.0310795609803},null,6814.0310795609803,0,null,null,{"$f":"IFERROR(INDEX('PR Expenditure_7A import-export'!I$22:I$63,MATCH($B129,'PR Expenditure_7A import-export'!$N$22:$N$63,0)),\"\")","v":6814.0310795609803},0,6814.0310795609803,0]
["Show","Int27",{"$f":"IFERROR(INDEX('PR Expenditure_7A import-export'!A$22:A$63,MATCH($B130,'PR Expenditure_7A import-export'!$N$22:$N$63,0)),\"\")","v":"Prevention programs for general population"},{"$f":"IFERROR(INDEX('PR Expenditure_7A import-export'!B$22:B$63,MATCH($B130,'PR Expenditure_7A import-export'!$N$22:$N$63,0)),\"\")","v":"Behavioral interventions as part of programs for general population"},{"$f":"IFERROR(INDEX('PR Expenditure_7A import-export'!C$22:C$63,MATCH($B130,'PR Expenditure_7A import-export'!$N$22:$N$63,0)),\"\")","v":65947.805029686395},16803.640000000003,49144.165029686395,0.25480211194953112,"Cet écart comprend:\n* les économies de USD 7,422.96  sur les RH de Croix Rouge;\n* les économies de 16,875.11 sur les activités  liés au matériel de communication et de publication (act 133, 135 et 140) de la Croix Rouge non réalisées en rue du retard dans le démarrage des activités;\n* les économies de USD 24,846.09 relatives aux couts liés au déplacement  (act 134, 136, 138, 141 et 142) de la Croix Rouge",null,{"$f":"IFERROR(INDEX('PR Expenditure_7A import-export'!I$22:I$63,MATCH($B130,'PR Expenditure_7A import-export'!$N$22:$N$63,0)),\"\")","v":65947.805029686395},16803.640000000003,49144.165029686395,0.25480211194953112]
["Show","Int28",{"$f":"IFERROR(INDEX('PR Expenditure_7A import-export'!A$22:A$63,MATCH($B131,'PR Expenditure_7A import-export'!$N$22:$N$63,0)),\"\")","v":"Prevention programs for other vulnerable populations"},{"$f":"IFERROR(INDEX('PR Expenditure_7A import-export'!B$22:B$63,MATCH($B131,'PR Expenditure_7A import-export'!$N$22:$N$63,0)),\"\")","v":"HIV testing services for other vulnerable populations"},{"$f":"IFERROR(INDEX('PR Expenditure_7A import-export'!C$22:C$63,MATCH($B131,'PR Expenditure_7A import-export'!$N$22:$N$63,0)),\"\")","v":30050.76},null,30050.76,0,null,null,{"$f":"IFERROR(INDEX('PR Expenditure_7A import-export'!I$22:I$63,MATCH($B131,'PR Expenditure_7A import-export'!$N$22:$N$63,0)),\"\")","v":30050.76},null,30050.76,0]
["Show","Int29",{"$f":"IFERROR(INDEX('PR Expenditure_7A import-export'!A$22:A$63,MATCH($B132,'PR Expenditure_7A import-export'!$N$22:$N$63,0)),\"\")","v":"HIV Testing Services"},{"$f":"IFERROR(INDEX('PR Expenditure_7A import-export'!B$22:B$63,MATCH($B132,'PR Expenditure_7A import-export'!$N$22:$N$63,0)),\"\")","v":"Differentiated HIV testing services"},{"$f":"IFERROR(INDEX('PR Expenditure_7A import-export'!C$22:C$63,MATCH($B132,'PR Expenditure_7A import-export'!$N$22:$N$63,0)),\"\")","v":22346.450776106001},null,22346.450776106001,0,null,null,{"$f":"IFERROR(INDEX('PR Expenditure_7A import-export'!I$22:I$63,MATCH($B132,'PR Expenditure_7A import-export'!$N$22:$N$63,0)),\"\")","v":22346.450776106001},null,22346.450776106001,0]
["Show","Int30",{"$f":"IFERROR(INDEX('PR Expenditure_7A import-export'!A$22:A$63,MATCH($B133,'PR Expenditure_7A import-export'!$N$22:$N$63,0)),\"\")","v":"RSSH: Integrated service delivery and quality improvement"},{"$f":"IFERROR(INDEX('PR Expenditure_7A import-export'!B$22:B$63,MATCH($B133,'PR Expenditure_7A import-export'!$N$22:$N$63,0)),\"\")","v":"Laboratory systems for disease prevention, control, treatment and disease surveillance"},{"$f":"IFERROR(INDEX('PR Expenditure_7A import-export'!C$22:C$63,MATCH($B133,'PR Expenditure_7A import-export'!$N$22:$N$63,0)),\"\")","v":25407.761478241398},null,25407.761478241398,0,null,null,{"$f":"IFERROR(INDEX('PR Expenditure_7A import-export'!I$22:I$63,MATCH($B133,'PR Expenditure_7A import-export'!$N$22:$N$63,0)),\"\")","v":25407.761478241398},null,25407.761478241398,0]
["Show","Int31",{"$f":"IFERROR(INDEX('PR Expenditure_7A import-export'!A$22:A$63,MATCH($B134,'PR Expenditure_7A import-export'!$N$22:$N$63,0)),\"\")","v":"RSSH: Health management information systems and M&E"},{"$f":"IFERROR(INDEX('PR Expenditure_7A import-export'!B$22:B$63,MATCH($B134,'PR Expenditure_7A import-export'!$N$22:$N$63,0)),\"\")","v":"Program and data quality"},{"$f":"IFERROR(INDEX('PR Expenditure_7A import-export'!C$22:C$63,MATCH($B134,'PR Expenditure_7A import-export'!$N$22:$N$63,0)),\"\")","v":100573.092865479},7909.39,92663.702865479005,7.864320142345789E-2,"Cet écart s'explique par:\n* les économies de USD 630.09 sur les matériel de communication dues au retard dans l'édition du bulletin (act 200);\n*les économies de USD 92,033.61 sur les couts liés au déplacement (act 38, 39, 196, 197, 198, 201, 202, 204, 205, 206, 207, 209) ;",null,{"$f":"IFERROR(INDEX('PR Expenditure_7A import-export'!I$22:I$63,MATCH($B134,'PR Expenditure_7A import-export'!$N$22:$N$63,0)),\"\")","v":100573.092865479},{"$f":"F134","v":7909.39},92663.702865479005,7.864320142345789E-2]
["Show","Int32",{"$f":"IFERROR(INDEX('PR Expenditure_7A import-export'!A$22:A$63,MATCH($B135,'PR Expenditure_7A import-export'!$N$22:$N$63,0)),\"\")","v":"Treatment, care and support"},{"$f":"IFERROR(INDEX('PR Expenditure_7A import-export'!B$22:B$63,MATCH($B135,'PR Expenditure_7A import-export'!$N$22:$N$63,0)),\"\")","v":"Counseling and psycho-social support"},{"$f":"IFERROR(INDEX('PR Expenditure_7A import-export'!C$22:C$63,MATCH($B135,'PR Expenditure_7A import-export'!$N$22:$N$63,0)),\"\")","v":511140.51779259299},262869.64,248270.87779259298,0.51428057618133383,"Cet écart résulte des salaires liés aux RH de la CRB (210, 211 et 212",null,{"$f":"IFERROR(INDEX('PR Expenditure_7A import-export'!I$22:I$63,MATCH($B135,'PR Expenditure_7A import-export'!$N$22:$N$63,0)),\"\")","v":511140.51779259299},262869.64,248270.87779259298,0.51428057618133383]
["Show","Int33",{"$f":"IFERROR(INDEX('PR Expenditure_7A import-export'!A$22:A$63,MATCH($B136,'PR Expenditure_7A import-export'!$N$22:$N$63,0)),\"\")","v":"Treatment, care and support"},{"$f":"IFERROR(INDEX('PR Expenditure_7A import-export'!B$22:B$63,MATCH($B136,'PR Expenditure_7A import-export'!$N$22:$N$63,0)),\"\")","v":"Other intervention(s) for treatment"},{"$f":"IFERROR(INDEX('PR Expenditure_7A import-export'!C$22:C$63,MATCH($B136,'PR Expenditure_7A import-export'!$N$22:$N$63,0)),\"\")","v":286684.78582535899},null,286684.78582535899,0,null,null,{"$f":"IFERROR(INDEX('PR Expenditure_7A import-export'!I$22:I$63,MATCH($B136,'PR Expenditure_7A import-export'!$N$22:$N$63,0)),\"\")","v":286684.78582535899},0,286684.78582535899,0]
["Show","Int34",{"$f":"IFERROR(INDEX('PR Expenditure_7A import-export'!A$22:A$63,MATCH($B137,'PR Expenditure_7A import-export'!$N$22:$N$63,0)),\"\")","v":"Treatment, care and support"},{"$f":"IFERROR(INDEX('PR Expenditure_7A import-export'!B$22:B$63,MATCH($B137,'PR Expenditure_7A import-export'!$N$22:$N$63,0)),\"\")","v":"Differentiated ART service delivery"},{"$f":"IFERROR(INDEX('PR Expenditure_7A import-export'!C$22:C$63,MATCH($B137,'PR Expenditure_7A import-export'!$N$22:$N$63,0)),\"\")","v":184474.30067366801},null,184474.30067366801,0,null,null,{"$f":"IFERROR(INDEX('PR Expenditure_7A import-export'!I$22:I$63,MATCH($B137,'PR Expenditure_7A import-export'!$N$22:$N$63,0)),\"\")","v":184474.30067366801},0,184474.30067366801,0]
["Show","Int35",{"$f":"IFERROR(INDEX('PR Expenditure_7A import-export'!A$22:A$63,MATCH($B138,'PR Expenditure_7A import-export'!$N$22:$N$63,0)),\"\")","v":"Treatment, care and support"},{"$f":"IFERROR(INDEX('PR Expenditure_7A import-export'!B$22:B$63,MATCH($B138,'PR Expenditure_7A import-export'!$N$22:$N$63,0)),\"\")","v":"Prevention, diagnosis and treatment of opportunistic infections"},{"$f":"IFERROR(INDEX('PR Expenditure_7A import-export'!C$22:C$63,MATCH($B138,'PR Expenditure_7A import-export'!$N$22:$N$63,0)),\"\")","v":97428.235622955603},null,97428.235622955603,0,null,null,{"$f":"IFERROR(INDEX('PR Expenditure_7A import-export'!I$22:I$63,MATCH($B138,'PR Expenditure_7A import-export'!$N$22:$N$63,0)),\"\")","v":97428.235622955603},0,97428.235622955603,0]
["Show","Int36",{"$f":"IFERROR(INDEX('PR Expenditure_7A import-export'!A$22:A$63,MATCH($B139,'PR Expenditure_7A import-export'!$N$22:$N$63,0)),\"\")","v":"Treatment, care and support"},{"$f":"IFERROR(INDEX('PR Expenditure_7A import-export'!B$22:B$63,MATCH($B139,'PR Expenditure_7A import-export'!$N$22:$N$63,0)),\"\")","v":"HIV care"},{"$f":"IFERROR(INDEX('PR Expenditure_7A import-export'!C$22:C$63,MATCH($B139,'PR Expenditure_7A import-export'!$N$22:$N$63,0)),\"\")","v":247804.2},8035.57,239768.63,3.2427093648937345E-2,"Cet écart s'explique par :\n* les économies de USD 186,586.30 sur les médicamments ARV pour le traitement des patients (act 230)  résultant de la mauvaise quantification des besoins et du retard dans l'approbation par le FM de l'achat. Il faut signaler qu'un engagement au 300618 de USD 999,348.06  existe;\n* les économies de USD 53,182.33 sur les couts de gestion des achats (231, 232, 233, 234) dues au fait que les commandes sont en cours. ",null,{"$f":"IFERROR(INDEX('PR Expenditure_7A import-export'!I$22:I$63,MATCH($B139,'PR Expenditure_7A import-export'!$N$22:$N$63,0)),\"\")","v":247804.2},8035.57,239768.63,3.2427093648937345E-2]
["Show","Int37",{"$f":"IFERROR(INDEX('PR Expenditure_7A import-export'!A$22:A$63,MATCH($B140,'PR Expenditure_7A import-export'!$N$22:$N$63,0)),\"\")","v":"Treatment, care and support"},{"$f":"IFERROR(INDEX('PR Expenditure_7A import-export'!B$22:B$63,MATCH($B140,'PR Expenditure_7A import-export'!$N$22:$N$63,0)),\"\")","v":"Treatment monitoring - Viral load"},{"$f":"IFERROR(INDEX('PR Expenditure_7A import-export'!C$22:C$63,MATCH($B140,'PR Expenditure_7A import-export'!$N$22:$N$63,0)),\"\")","v":367814.462461319},7212.55,360601.91246131901,1.9609207184881981E-2,"Cet écart résulte:\n* des économies de 26,990.42 sur les couts liés au déplacement (act 235 et 236) et pour lesquels de de USD 21,248.02;\n* des économies de USD 254,435.68  sur les produits de santé non pharmaceutiques (act 238 et 239) dues au retard dans la commande non réceptionnés pour USD 217,026;\n* des économies de 16,176.68 sur l'act 237 en raison du fait qu'aucun contrat de maintenance des équipements sanitaires n'a été signé au 300618\n* des économies de USD 62,999.13 relatifs au cout de gestion des stocks (240, 241, 242, 243, 244 et 245), les commandes étant en cours. Un engagement de USD 6,740 existe sur la ligne 244\nLes lignes 239, 237 et les couts de gestion des stocks y afférent seront reportés ",null,{"$f":"IFERROR(INDEX('PR Expenditure_7A import-export'!I$22:I$63,MATCH($B140,'PR Expenditure_7A import-export'!$N$22:$N$63,0)),\"\")","v":367814.462461319},7212.55,360601.91246131901,1.9609207184881981E-2]
["Show","Int38",{"$f":"IFERROR(INDEX('PR Expenditure_7A import-export'!A$22:A$63,MATCH($B141,'PR Expenditure_7A import-export'!$N$22:$N$63,0)),\"\")","v":"Treatment, care and support"},{"$f":"IFERROR(INDEX('PR Expenditure_7A import-export'!B$22:B$63,MATCH($B141,'PR Expenditure_7A import-export'!$N$22:$N$63,0)),\"\")","v":"Treatment monitoring - Drug resistance surveillance"},{"$f":"IFERROR(INDEX('PR Expenditure_7A import-export'!C$22:C$63,MATCH($B141,'PR Expenditure_7A import-export'!$N$22:$N$63,0)),\"\")","v":166001.67000000001},null,166001.67000000001,0,null,null,{"$f":"IFERROR(INDEX('PR Expenditure_7A import-export'!I$22:I$63,MATCH($B141,'PR Expenditure_7A import-export'!$N$22:$N$63,0)),\"\")","v":166001.67000000001},null,166001.67000000001,0]
["Show","Int39",{"$f":"IFERROR(INDEX('PR Expenditure_7A import-export'!A$22:A$63,MATCH($B142,'PR Expenditure_7A import-export'!$N$22:$N$63,0)),\"\")","v":"Comprehensive prevention programs for sex workers and their clients"},{"$f":"IFERROR(INDEX('PR Expenditure_7A import-export'!B$22:B$63,MATCH($B142,'PR Expenditure_7A import-export'!$N$22:$N$63,0)),\"\")","v":"HIV testing services for sex workers"},{"$f":"IFERROR(INDEX('PR Expenditure_7A import-export'!C$22:C$63,MATCH($B142,'PR Expenditure_7A import-export'!$N$22:$N$63,0)),\"\")","v":183.52481978506},null,183.52481978506,0,null,null,{"$f":"IFERROR(INDEX('PR Expenditure_7A import-export'!I$22:I$63,MATCH($B142,'PR Expenditure_7A import-export'!$N$22:$N$63,0)),\"\")","v":183.52481978506},null,183.52481978506,0]
["Show","Int40",{"$f":"IFERROR(INDEX('PR Expenditure_7A import-export'!A$22:A$63,MATCH($B143,'PR Expenditure_7A import-export'!$N$22:$N$63,0)),\"\")","v":"Prevention programs for general population"},{"$f":"IFERROR(INDEX('PR Expenditure_7A import-export'!B$22:B$63,MATCH($B143,'PR Expenditure_7A import-export'!$N$22:$N$63,0)),\"\")","v":"Gender-based violence prevention and treatment programs for general population"},{"$f":"IFERROR(INDEX('PR Expenditure_7A import-export'!C$22:C$63,MATCH($B143,'PR Expenditure_7A import-export'!$N$22:$N$63,0)),\"\")","v":30000},null,30000,0,null,null,{"$f":"IFERROR(INDEX('PR Expenditure_7A import-export'!I$22:I$63,MATCH($B143,'PR Expenditure_7A import-export'!$N$22:$N$63,0)),\"\")","v":30000},null,30000,0]
["Don't Show","Int41",{"$f":"IFERROR(INDEX('PR Expenditure_7A import-export'!A$22:A$63,MATCH($B144,'PR Expenditure_7A import-export'!$N$22:$N$63,0)),\"\")","v":""},{"$f":"IFERROR(INDEX('PR Expenditure_7A import-export'!B$22:B$63,MATCH($B144,'PR Expenditure_7A import-export'!$N$22:$N$63,0)),\"\")","v":""},{"$f":"IFERROR(INDEX('PR Expenditure_7A import-export'!C$22:C$63,MATCH($B144,'PR Expenditure_7A import-export'!$N$22:$N$63,0)),\"\")","v":""},null,0,{"$error":"#VALUE!"},null,null,{"$f":"IFERROR(INDEX('PR Expenditure_7A import-export'!I$22:I$63,MATCH($B144,'PR Expenditure_7A import-export'!$N$22:$N$63,0)),\"\")","v":""},null,0,{"$error":"#VALUE!"}]
["Don't Show","Int42",{"$f":"IFERROR(INDEX('PR Expenditure_7A import-export'!A$22:A$63,MATCH($B145,'PR Expenditure_7A import-export'!$N$22:$N$63,0)),\"\")","v":""},{"$f":"IFERROR(INDEX('PR Expenditure_7A import-export'!B$22:B$63,MATCH($B145,'PR Expenditure_7A import-export'!$N$22:$N$63,0)),\"\")","v":""},{"$f":"IFERROR(INDEX('PR Expenditure_7A import-export'!C$22:C$63,MATCH($B145,'PR Expenditure_7A import-export'!$N$22:$N$63,0)),\"\")","v":""},null,0,{"$error":"#VALUE!"},null,null,{"$f":"IFERROR(INDEX('PR Expenditure_7A import-export'!I$22:I$63,MATCH($B145,'PR Expenditure_7A import-export'!$N$22:$N$63,0)),\"\")","v":""},null,0,{"$error":"#VALUE!"}]
["Don't Show","Int43",{"$f":"IFERROR(INDEX('PR Expenditure_7A import-export'!A$22:A$63,MATCH($B146,'PR Expenditure_7A import-export'!$N$22:$N$63,0)),\"\")","v":""},{"$f":"IFERROR(INDEX('PR Expenditure_7A import-export'!B$22:B$63,MATCH($B146,'PR Expenditure_7A import-export'!$N$22:$N$63,0)),\"\")","v":""},{"$f":"IFERROR(INDEX('PR Expenditure_7A import-export'!C$22:C$63,MATCH($B146,'PR Expenditure_7A import-export'!$N$22:$N$63,0)),\"\")","v":""},null,0,{"$error":"#VALUE!"},null,null,{"$f":"IFERROR(INDEX('PR Expenditure_7A import-export'!I$22:I$63,MATCH($B146,'PR Expenditure_7A import-export'!$N$22:$N$63,0)),\"\")","v":""},null,0,{"$error":"#VALUE!"}]
["Don't Show","Int44",{"$f":"IFERROR(INDEX('PR Expenditure_7A import-export'!A$22:A$63,MATCH($B147,'PR Expenditure_7A import-export'!$N$22:$N$63,0)),\"\")","v":""},{"$f":"IFERROR(INDEX('PR Expenditure_7A import-export'!B$22:B$63,MATCH($B147,'PR Expenditure_7A import-export'!$N$22:$N$63,0)),\"\")","v":""},{"$f":"IFERROR(INDEX('PR Expenditure_7A import-export'!C$22:C$63,MATCH($B147,'PR Expenditure_7A import-export'!$N$22:$N$63,0)),\"\")","v":""},null,0,{"$error":"#VALUE!"},null,null,{"$f":"IFERROR(INDEX('PR Expenditure_7A import-export'!I$22:I$63,MATCH($B147,'PR Expenditure_7A import-export'!$N$22:$N$63,0)),\"\")","v":""},null,0,{"$error":"#VALUE!"}]
["Don't Show","Int45",{"$f":"IFERROR(INDEX('PR Expenditure_7A import-export'!A$22:A$63,MATCH($B148,'PR Expenditure_7A import-export'!$N$22:$N$63,0)),\"\")","v":""},{"$f":"IFERROR(INDEX('PR Expenditure_7A import-export'!B$22:B$63,MATCH($B148,'PR Expenditure_7A import-export'!$N$22:$N$63,0)),\"\")","v":""},{"$f":"IFERROR(INDEX('PR Expenditure_7A import-export'!C$22:C$63,MATCH($B148,'PR Expenditure_7A import-export'!$N$22:$N$63,0)),\"\")","v":""},null,0,{"$error":"#VALUE!"},null,null,{"$f":"IFERROR(INDEX('PR Expenditure_7A import-export'!I$22:I$63,MATCH($B148,'PR Expenditure_7A import-export'!$N$22:$N$63,0)),\"\")","v":""},null,0,{"$error":"#VALUE!"}]
["Don't Show","Int46",{"$f":"IFERROR(INDEX('PR Expenditure_7A import-export'!A$22:A$63,MATCH($B149,'PR Expenditure_7A import-export'!$N$22:$N$63,0)),\"\")","v":""},{"$f":"IFERROR(INDEX('PR Expenditure_7A import-export'!B$22:B$63,MATCH($B149,'PR Expenditure_7A import-export'!$N$22:$N$63,0)),\"\")","v":""},{"$f":"IFERROR(INDEX('PR Expenditure_7A import-export'!C$22:C$63,MATCH($B149,'PR Expenditure_7A import-export'!$N$22:$N$63,0)),\"\")","v":""},null,0,{"$error":"#VALUE!"},null,null,{"$f":"IFERROR(INDEX('PR Expenditure_7A import-export'!I$22:I$63,MATCH($B149,'PR Expenditure_7A import-export'!$N$22:$N$63,0)),\"\")","v":""},null,0,{"$error":"#VALUE!"}]
["Don't Show","Int47",{"$f":"IFERROR(INDEX('PR Expenditure_7A import-export'!A$22:A$63,MATCH($B150,'PR Expenditure_7A import-export'!$N$22:$N$63,0)),\"\")","v":""},{"$f":"IFERROR(INDEX('PR Expenditure_7A import-export'!B$22:B$63,MATCH($B150,'PR Expenditure_7A import-export'!$N$22:$N$63,0)),\"\")","v":""},{"$f":"IFERROR(INDEX('PR Expenditure_7A import-export'!C$22:C$63,MATCH($B150,'PR Expenditure_7A import-export'!$N$22:$N$63,0)),\"\")","v":""},null,0,{"$error":"#VALUE!"},null,null,{"$f":"IFERROR(INDEX('PR Expenditure_7A import-export'!I$22:I$63,MATCH($B150,'PR Expenditure_7A import-export'!$N$22:$N$63,0)),\"\")","v":""},null,0,{"$error":"#VALUE!"}]
["Don't Show","Int48",{"$f":"IFERROR(INDEX('PR Expenditure_7A import-export'!A$22:A$63,MATCH($B151,'PR Expenditure_7A import-export'!$N$22:$N$63,0)),\"\")","v":""},{"$f":"IFERROR(INDEX('PR Expenditure_7A import-export'!B$22:B$63,MATCH($B151,'PR Expenditure_7A import-export'!$N$22:$N$63,0)),\"\")","v":""},{"$f":"IFERROR(INDEX('PR Expenditure_7A import-export'!C$22:C$63,MATCH($B151,'PR Expenditure_7A import-export'!$N$22:$N$63,0)),\"\")","v":""},null,0,{"$error":"#VALUE!"},null,null,{"$f":"IFERROR(INDEX('PR Expenditure_7A import-export'!I$22:I$63,MATCH($B151,'PR Expenditure_7A import-export'!$N$22:$N$63,0)),\"\")","v":""},null,0,{"$error":"#VALUE!"}]
["Don't Show","Int49",{"$f":"IFERROR(INDEX('PR Expenditure_7A import-export'!A$22:A$63,MATCH($B152,'PR Expenditure_7A import-export'!$N$22:$N$63,0)),\"\")","v":""},{"$f":"IFERROR(INDEX('PR Expenditure_7A import-export'!B$22:B$63,MATCH($B152,'PR Expenditure_7A import-export'!$N$22:$N$63,0)),\"\")","v":""},{"$f":"IFERROR(INDEX('PR Expenditure_7A import-export'!C$22:C$63,MATCH($B152,'PR Expenditure_7A import-export'!$N$22:$N$63,0)),\"\")","v":""},null,0,{"$error":"#VALUE!"},null,null,{"$f":"IFERROR(INDEX('PR Expenditure_7A import-export'!I$22:I$63,MATCH($B152,'PR Expenditure_7A import-export'!$N$22:$N$63,0)),\"\")","v":""},null,0,{"$error":"#VALUE!"}]
["Don't Show","Int50",{"$f":"IFERROR(INDEX('PR Expenditure_7A import-export'!A$22:A$63,MATCH($B153,'PR Expenditure_7A import-export'!$N$22:$N$63,0)),\"\")","v":""},{"$f":"IFERROR(INDEX('PR Expenditure_7A import-export'!B$22:B$63,MATCH($B153,'PR Expenditure_7A import-export'!$N$22:$N$63,0)),\"\")","v":""},{"$f":"IFERROR(INDEX('PR Expenditure_7A import-export'!C$22:C$63,MATCH($B153,'PR Expenditure_7A import-export'!$N$22:$N$63,0)),\"\")","v":""},null,0,{"$error":"#VALUE!"},null,null,{"$f":"IFERROR(INDEX('PR Expenditure_7A import-export'!I$22:I$63,MATCH($B153,'PR Expenditure_7A import-export'!$N$22:$N$63,0)),\"\")","v":""},null,0,{"$error":"#VALUE!"}]
["Don't Show","Int51",{"$f":"IFERROR(INDEX('PR Expenditure_7A import-export'!A$22:A$63,MATCH($B154,'PR Expenditure_7A import-export'!$N$22:$N$63,0)),\"\")","v":""},{"$f":"IFERROR(INDEX('PR Expenditure_7A import-export'!B$22:B$63,MATCH($B154,'PR Expenditure_7A import-export'!$N$22:$N$63,0)),\"\")","v":""},{"$f":"IFERROR(INDEX('PR Expenditure_7A import-export'!C$22:C$63,MATCH($B154,'PR Expenditure_7A import-export'!$N$22:$N$63,0)),\"\")","v":""},null,0,{"$error":"#VALUE!"},null,null,{"$f":"IFERROR(INDEX('PR Expenditure_7A import-export'!I$22:I$63,MATCH($B154,'PR Expenditure_7A import-export'!$N$22:$N$63,0)),\"\")","v":""},null,0,{"$error":"#VALUE!"}]
["Don't Show","Int52",{"$f":"IFERROR(INDEX('PR Expenditure_7A import-export'!A$22:A$63,MATCH($B155,'PR Expenditure_7A import-export'!$N$22:$N$63,0)),\"\")","v":""},{"$f":"IFERROR(INDEX('PR Expenditure_7A import-export'!B$22:B$63,MATCH($B155,'PR Expenditure_7A import-export'!$N$22:$N$63,0)),\"\")","v":""},{"$f":"IFERROR(INDEX('PR Expenditure_7A import-export'!C$22:C$63,MATCH($B155,'PR Expenditure_7A import-export'!$N$22:$N$63,0)),\"\")","v":""},null,0,{"$error":"#VALUE!"},null,null,{"$f":"IFERROR(INDEX('PR Expenditure_7A import-export'!I$22:I$63,MATCH($B155,'PR Expenditure_7A import-export'!$N$22:$N$63,0)),\"\")","v":""},null,0,{"$error":"#VALUE!"}]
["Don't Show","Int53",{"$f":"IFERROR(INDEX('PR Expenditure_7A import-export'!A$22:A$63,MATCH($B156,'PR Expenditure_7A import-export'!$N$22:$N$63,0)),\"\")","v":""},{"$f":"IFERROR(INDEX('PR Expenditure_7A import-export'!B$22:B$63,MATCH($B156,'PR Expenditure_7A import-export'!$N$22:$N$63,0)),\"\")","v":""},{"$f":"IFERROR(INDEX('PR Expenditure_7A import-export'!C$22:C$63,MATCH($B156,'PR Expenditure_7A import-export'!$N$22:$N$63,0)),\"\")","v":""},null,0,{"$error":"#VALUE!"},null,null,{"$f":"IFERROR(INDEX('PR Expenditure_7A import-export'!I$22:I$63,MATCH($B156,'PR Expenditure_7A import-export'!$N$22:$N$63,0)),\"\")","v":""},null,0,{"$error":"#VALUE!"}]
["Don't Show","Int54",{"$f":"IFERROR(INDEX('PR Expenditure_7A import-export'!A$22:A$63,MATCH($B157,'PR Expenditure_7A import-export'!$N$22:$N$63,0)),\"\")","v":""},{"$f":"IFERROR(INDEX('PR Expenditure_7A import-export'!B$22:B$63,MATCH($B157,'PR Expenditure_7A import-export'!$N$22:$N$63,0)),\"\")","v":""},{"$f":"IFERROR(INDEX('PR Expenditure_7A import-export'!C$22:C$63,MATCH($B157,'PR Expenditure_7A import-export'!$N$22:$N$63,0)),\"\")","v":""},null,0,{"$error":"#VALUE!"},null,null,{"$f":"IFERROR(INDEX('PR Expenditure_7A import-export'!I$22:I$63,MATCH($B157,'PR Expenditure_7A import-export'!$N$22:$N$63,0)),\"\")","v":""},null,0,{"$error":"#VALUE!"}]
["Don't Show","Int55",{"$f":"IFERROR(INDEX('PR Expenditure_7A import-export'!A$22:A$63,MATCH($B158,'PR Expenditure_7A import-export'!$N$22:$N$63,0)),\"\")","v":""},{"$f":"IFERROR(INDEX('PR Expenditure_7A import-export'!B$22:B$63,MATCH($B158,'PR Expenditure_7A import-export'!$N$22:$N$63,0)),\"\")","v":""},{"$f":"IFERROR(INDEX('PR Expenditure_7A import-export'!C$22:C$63,MATCH($B158,'PR Expenditure_7A import-export'!$N$22:$N$63,0)),\"\")","v":""},null,0,{"$error":"#VALUE!"},null,null,{"$f":"IFERROR(INDEX('PR Expenditure_7A import-export'!I$22:I$63,MATCH($B158,'PR Expenditure_7A import-export'!$N$22:$N$63,0)),\"\")","v":""},null,0,{"$error":"#VALUE!"}]
["Don't Show","Int56",{"$f":"IFERROR(INDEX('PR Expenditure_7A import-export'!A$22:A$63,MATCH($B159,'PR Expenditure_7A import-export'!$N$22:$N$63,0)),\"\")","v":""},{"$f":"IFERROR(INDEX('PR Expenditure_7A import-export'!B$22:B$63,MATCH($B159,'PR Expenditure_7A import-export'!$N$22:$N$63,0)),\"\")","v":""},{"$f":"IFERROR(INDEX('PR Expenditure_7A import-export'!C$22:C$63,MATCH($B159,'PR Expenditure_7A import-export'!$N$22:$N$63,0)),\"\")","v":""},null,0,{"$error":"#VALUE!"},null,null,{"$f":"IFERROR(INDEX('PR Expenditure_7A import-export'!I$22:I$63,MATCH($B159,'PR Expenditure_7A import-export'!$N$22:$N$63,0)),\"\")","v":""},null,0,{"$error":"#VALUE!"}]
["Don't Show","Int57",{"$f":"IFERROR(INDEX('PR Expenditure_7A import-export'!A$22:A$63,MATCH($B160,'PR Expenditure_7A import-export'!$N$22:$N$63,0)),\"\")","v":""},{"$f":"IFERROR(INDEX('PR Expenditure_7A import-export'!B$22:B$63,MATCH($B160,'PR Expenditure_7A import-export'!$N$22:$N$63,0)),\"\")","v":""},{"$f":"IFERROR(INDEX('PR Expenditure_7A import-export'!C$22:C$63,MATCH($B160,'PR Expenditure_7A import-export'!$N$22:$N$63,0)),\"\")","v":""},null,0,{"$error":"#VALUE!"},null,null,{"$f":"IFERROR(INDEX('PR Expenditure_7A import-export'!I$22:I$63,MATCH($B160,'PR Expenditure_7A import-export'!$N$22:$N$63,0)),\"\")","v":""},null,0,{"$error":"#VALUE!"}]
["Don't Show","Int58",{"$f":"IFERROR(INDEX('PR Expenditure_7A import-export'!A$22:A$63,MATCH($B161,'PR Expenditure_7A import-export'!$N$22:$N$63,0)),\"\")","v":""},{"$f":"IFERROR(INDEX('PR Expenditure_7A import-export'!B$22:B$63,MATCH($B161,'PR Expenditure_7A import-export'!$N$22:$N$63,0)),\"\")","v":""},{"$f":"IFERROR(INDEX('PR Expenditure_7A import-export'!C$22:C$63,MATCH($B161,'PR Expenditure_7A import-export'!$N$22:$N$63,0)),\"\")","v":""},null,0,{"$error":"#VALUE!"},null,null,{"$f":"IFERROR(INDEX('PR Expenditure_7A import-export'!I$22:I$63,MATCH($B161,'PR Expenditure_7A import-export'!$N$22:$N$63,0)),\"\")","v":""},null,0,{"$error":"#VALUE!"}]
["Don't Show","Int59",{"$f":"IFERROR(INDEX('PR Expenditure_7A import-export'!A$22:A$63,MATCH($B162,'PR Expenditure_7A import-export'!$N$22:$N$63,0)),\"\")","v":""},{"$f":"IFERROR(INDEX('PR Expenditure_7A import-export'!B$22:B$63,MATCH($B162,'PR Expenditure_7A import-export'!$N$22:$N$63,0)),\"\")","v":""},{"$f":"IFERROR(INDEX('PR Expenditure_7A import-export'!C$22:C$63,MATCH($B162,'PR Expenditure_7A import-export'!$N$22:$N$63,0)),\"\")","v":""},null,0,{"$error":"#VALUE!"},null,null,{"$f":"IFERROR(INDEX('PR Expenditure_7A import-export'!I$22:I$63,MATCH($B162,'PR Expenditure_7A import-export'!$N$22:$N$63,0)),\"\")","v":""},null,0,{"$error":"#VALUE!"}]
["Don't Show","Int60",{"$f":"IFERROR(INDEX('PR Expenditure_7A import-export'!A$22:A$63,MATCH($B163,'PR Expenditure_7A import-export'!$N$22:$N$63,0)),\"\")","v":""},{"$f":"IFERROR(INDEX('PR Expenditure_7A import-export'!B$22:B$63,MATCH($B163,'PR Expenditure_7A import-export'!$N$22:$N$63,0)),\"\")","v":""},{"$f":"IFERROR(INDEX('PR Expenditure_7A import-export'!C$22:C$63,MATCH($B163,'PR Expenditure_7A import-export'!$N$22:$N$63,0)),\"\")","v":""},null,0,{"$error":"#VALUE!"},null,null,{"$f":"IFERROR(INDEX('PR Expenditure_7A import-export'!I$22:I$63,MATCH($B163,'PR Expenditure_7A import-export'!$N$22:$N$63,0)),\"\")","v":""},null,0,{"$error":"#VALUE!"}]
["Don't Show","Int61",{"$f":"IFERROR(INDEX('PR Expenditure_7A import-export'!A$22:A$63,MATCH($B164,'PR Expenditure_7A import-export'!$N$22:$N$63,0)),\"\")","v":""},{"$f":"IFERROR(INDEX('PR Expenditure_7A import-export'!B$22:B$63,MATCH($B164,'PR Expenditure_7A import-export'!$N$22:$N$63,0)),\"\")","v":""},{"$f":"IFERROR(INDEX('PR Expenditure_7A import-export'!C$22:C$63,MATCH($B164,'PR Expenditure_7A import-export'!$N$22:$N$63,0)),\"\")","v":""},null,0,{"$error":"#VALUE!"},null,null,{"$f":"IFERROR(INDEX('PR Expenditure_7A import-export'!I$22:I$63,MATCH($B164,'PR Expenditure_7A import-export'!$N$22:$N$63,0)),\"\")","v":""},null,0,{"$error":"#VALUE!"}]
["Don't Show","Int62",{"$f":"IFERROR(INDEX('PR Expenditure_7A import-export'!A$22:A$63,MATCH($B165,'PR Expenditure_7A import-export'!$N$22:$N$63,0)),\"\")","v":""},{"$f":"IFERROR(INDEX('PR Expenditure_7A import-export'!B$22:B$63,MATCH($B165,'PR Expenditure_7A import-export'!$N$22:$N$63,0)),\"\")","v":""},{"$f":"IFERROR(INDEX('PR Expenditure_7A import-export'!C$22:C$63,MATCH($B165,'PR Expenditure_7A import-export'!$N$22:$N$63,0)),\"\")","v":""},null,0,{"$error":"#VALUE!"},null,null,{"$f":"IFERROR(INDEX('PR Expenditure_7A import-export'!I$22:I$63,MATCH($B165,'PR Expenditure_7A import-export'!$N$22:$N$63,0)),\"\")","v":""},null,0,{"$error":"#VALUE!"}]
["Don't Show","Int63",{"$f":"IFERROR(INDEX('PR Expenditure_7A import-export'!A$22:A$63,MATCH($B166,'PR Expenditure_7A import-export'!$N$22:$N$63,0)),\"\")","v":""},{"$f":"IFERROR(INDEX('PR Expenditure_7A import-export'!B$22:B$63,MATCH($B166,'PR Expenditure_7A import-export'!$N$22:$N$63,0)),\"\")","v":""},{"$f":"IFERROR(INDEX('PR Expenditure_7A import-export'!C$22:C$63,MATCH($B166,'PR Expenditure_7A import-export'!$N$22:$N$63,0)),\"\")","v":""},null,0,{"$error":"#VALUE!"},null,null,{"$f":"IFERROR(INDEX('PR Expenditure_7A import-export'!I$22:I$63,MATCH($B166,'PR Expenditure_7A import-export'!$N$22:$N$63,0)),\"\")","v":""},null,0,{"$error":"#VALUE!"}]
["Don't Show","Int64",{"$f":"IFERROR(INDEX('PR Expenditure_7A import-export'!A$22:A$63,MATCH($B167,'PR Expenditure_7A import-export'!$N$22:$N$63,0)),\"\")","v":""},{"$f":"IFERROR(INDEX('PR Expenditure_7A import-export'!B$22:B$63,MATCH($B167,'PR Expenditure_7A import-export'!$N$22:$N$63,0)),\"\")","v":""},{"$f":"IFERROR(INDEX('PR Expenditure_7A import-export'!C$22:C$63,MATCH($B167,'PR Expenditure_7A import-export'!$N$22:$N$63,0)),\"\")","v":""},null,0,{"$error":"#VALUE!"},null,null,{"$f":"IFERROR(INDEX('PR Expenditure_7A import-export'!I$22:I$63,MATCH($B167,'PR Expenditure_7A import-export'!$N$22:$N$63,0)),\"\")","v":""},null,0,{"$error":"#VALUE!"}]
["Don't Show","Int65",{"$f":"IFERROR(INDEX('PR Expenditure_7A import-export'!A$22:A$63,MATCH($B168,'PR Expenditure_7A import-export'!$N$22:$N$63,0)),\"\")","v":""},{"$f":"IFERROR(INDEX('PR Expenditure_7A import-export'!B$22:B$63,MATCH($B168,'PR Expenditure_7A import-export'!$N$22:$N$63,0)),\"\")","v":""},{"$f":"IFERROR(INDEX('PR Expenditure_7A import-export'!C$22:C$63,MATCH($B168,'PR Expenditure_7A import-export'!$N$22:$N$63,0)),\"\")","v":""},null,0,{"$error":"#VALUE!"},null,null,{"$f":"IFERROR(INDEX('PR Expenditure_7A import-export'!I$22:I$63,MATCH($B168,'PR Expenditure_7A import-export'!$N$22:$N$63,0)),\"\")","v":""},null,0,{"$error":"#VALUE!"}]
["Don't Show","Int66",{"$f":"IFERROR(INDEX('PR Expenditure_7A import-export'!A$22:A$63,MATCH($B169,'PR Expenditure_7A import-export'!$N$22:$N$63,0)),\"\")","v":""},{"$f":"IFERROR(INDEX('PR Expenditure_7A import-export'!B$22:B$63,MATCH($B169,'PR Expenditure_7A import-export'!$N$22:$N$63,0)),\"\")","v":""},{"$f":"IFERROR(INDEX('PR Expenditure_7A import-export'!C$22:C$63,MATCH($B169,'PR Expenditure_7A import-export'!$N$22:$N$63,0)),\"\")","v":""},null,0,{"$error":"#VALUE!"},null,null,{"$f":"IFERROR(INDEX('PR Expenditure_7A import-export'!I$22:I$63,MATCH($B169,'PR Expenditure_7A import-export'!$N$22:$N$63,0)),\"\")","v":""},null,0,{"$error":"#VALUE!"}]
["Don't Show","Int67",{"$f":"IFERROR(INDEX('PR Expenditure_7A import-export'!A$22:A$63,MATCH($B170,'PR Expenditure_7A import-export'!$N$22:$N$63,0)),\"\")","v":""},{"$f":"IFERROR(INDEX('PR Expenditure_7A import-export'!B$22:B$63,MATCH($B170,'PR Expenditure_7A import-export'!$N$22:$N$63,0)),\"\")","v":""},{"$f":"IFERROR(INDEX('PR Expenditure_7A import-export'!C$22:C$63,MATCH($B170,'PR Expenditure_7A import-export'!$N$22:$N$63,0)),\"\")","v":""},null,0,{"$error":"#VALUE!"},null,null,{"$f":"IFERROR(INDEX('PR Expenditure_7A import-export'!I$22:I$63,MATCH($B170,'PR Expenditure_7A import-export'!$N$22:$N$63,0)),\"\")","v":""},null,0,{"$error":"#VALUE!"}]
["Don't Show","Int68",{"$f":"IFERROR(INDEX('PR Expenditure_7A import-export'!A$22:A$63,MATCH($B171,'PR Expenditure_7A import-export'!$N$22:$N$63,0)),\"\")","v":""},{"$f":"IFERROR(INDEX('PR Expenditure_7A import-export'!B$22:B$63,MATCH($B171,'PR Expenditure_7A import-export'!$N$22:$N$63,0)),\"\")","v":""},{"$f":"IFERROR(INDEX('PR Expenditure_7A import-export'!C$22:C$63,MATCH($B171,'PR Expenditure_7A import-export'!$N$22:$N$63,0)),\"\")","v":""},null,0,{"$error":"#VALUE!"},null,null,{"$f":"IFERROR(INDEX('PR Expenditure_7A import-export'!I$22:I$63,MATCH($B171,'PR Expenditure_7A import-export'!$N$22:$N$63,0)),\"\")","v":""},null,0,{"$error":"#VALUE!"}]
["Don't Show","Int69",{"$f":"IFERROR(INDEX('PR Expenditure_7A import-export'!A$22:A$63,MATCH($B172,'PR Expenditure_7A import-export'!$N$22:$N$63,0)),\"\")","v":""},{"$f":"IFERROR(INDEX('PR Expenditure_7A import-export'!B$22:B$63,MATCH($B172,'PR Expenditure_7A import-export'!$N$22:$N$63,0)),\"\")","v":""},{"$f":"IFERROR(INDEX('PR Expenditure_7A import-export'!C$22:C$63,MATCH($B172,'PR Expenditure_7A import-export'!$N$22:$N$63,0)),\"\")","v":""},null,0,{"$error":"#VALUE!"},null,null,{"$f":"IFERROR(INDEX('PR Expenditure_7A import-export'!I$22:I$63,MATCH($B172,'PR Expenditure_7A import-export'!$N$22:$N$63,0)),\"\")","v":""},null,0,{"$error":"#VALUE!"}]
["Don't Show","Int70",{"$f":"IFERROR(INDEX('PR Expenditure_7A import-export'!A$22:A$63,MATCH($B173,'PR Expenditure_7A import-export'!$N$22:$N$63,0)),\"\")","v":""},{"$f":"IFERROR(INDEX('PR Expenditure_7A import-export'!B$22:B$63,MATCH($B173,'PR Expenditure_7A import-export'!$N$22:$N$63,0)),\"\")","v":""},{"$f":"IFERROR(INDEX('PR Expenditure_7A import-export'!C$22:C$63,MATCH($B173,'PR Expenditure_7A import-export'!$N$22:$N$63,0)),\"\")","v":""},null,0,{"$error":"#VALUE!"},null,null,{"$f":"IFERROR(INDEX('PR Expenditure_7A import-export'!I$22:I$63,MATCH($B173,'PR Expenditure_7A import-export'!$N$22:$N$63,0)),\"\")","v":""},null,0,{"$error":"#VALUE!"}]
["Don't Show","Int71",{"$f":"IFERROR(INDEX('PR Expenditure_7A import-export'!A$22:A$63,MATCH($B174,'PR Expenditure_7A import-export'!$N$22:$N$63,0)),\"\")","v":""},{"$f":"IFERROR(INDEX('PR Expenditure_7A import-export'!B$22:B$63,MATCH($B174,'PR Expenditure_7A import-export'!$N$22:$N$63,0)),\"\")","v":""},{"$f":"IFERROR(INDEX('PR Expenditure_7A import-export'!C$22:C$63,MATCH($B174,'PR Expenditure_7A import-export'!$N$22:$N$63,0)),\"\")","v":""},null,0,{"$error":"#VALUE!"},null,null,{"$f":"IFERROR(INDEX('PR Expenditure_7A import-export'!I$22:I$63,MATCH($B174,'PR Expenditure_7A import-export'!$N$22:$N$63,0)),\"\")","v":""},null,0,{"$error":"#VALUE!"}]
["Don't Show","Int72",{"$f":"IFERROR(INDEX('PR Expenditure_7A import-export'!A$22:A$63,MATCH($B175,'PR Expenditure_7A import-export'!$N$22:$N$63,0)),\"\")","v":""},{"$f":"IFERROR(INDEX('PR Expenditure_7A import-export'!B$22:B$63,MATCH($B175,'PR Expenditure_7A import-export'!$N$22:$N$63,0)),\"\")","v":""},{"$f":"IFERROR(INDEX('PR Expenditure_7A import-export'!C$22:C$63,MATCH($B175,'PR Expenditure_7A import-export'!$N$22:$N$63,0)),\"\")","v":""},null,{"$f":"IFERROR(E175-F175,0)","v":0},{"$f":"IF(AND(E175=0,F175=0),\"N/A\",IF(AND(E175=0,F175<>0),\"Not Budgeted\",F175/E175))","v":{"$error":"#VALUE!"}},null,null,{"$f":"IFERROR(INDEX('PR Expenditure_7A import-export'!I$22:I$63,MATCH($B175,'PR Expenditure_7A import-export'!$N$22:$N$63,0)),\"\")","v":""},null,{"$f":"IFERROR(K175-L175,0)","v":0},{"$f":"IF(AND(K175=0,L175=0),\"N/A\",IF(AND(K175=0,L175<>0),\"Not Budgeted\",L175/K175))","v":{"$error":"#VALUE!"}}]
["Don't Show","Int73",{"$f":"IFERROR(INDEX('PR Expenditure_7A import-export'!A$22:A$63,MATCH($B176,'PR Expenditure_7A import-export'!$N$22:$N$63,0)),\"\")","v":""},{"$f":"IFERROR(INDEX('PR Expenditure_7A import-export'!B$22:B$63,MATCH($B176,'PR Expenditure_7A import-export'!$N$22:$N$63,0)),\"\")","v":""},{"$f":"IFERROR(INDEX('PR Expenditure_7A import-export'!C$22:C$63,MATCH($B176,'PR Expenditure_7A import-export'!$N$22:$N$63,0)),\"\")","v":""},null,0,{"$error":"#VALUE!"},null,null,{"$f":"IFERROR(INDEX('PR Expenditure_7A import-export'!I$22:I$63,MATCH($B176,'PR Expenditure_7A import-export'!$N$22:$N$63,0)),\"\")","v":""},null,0,{"$error":"#VALUE!"}]
["Don't Show","Int74",{"$f":"IFERROR(INDEX('PR Expenditure_7A import-export'!A$22:A$63,MATCH($B177,'PR Expenditure_7A import-export'!$N$22:$N$63,0)),\"\")","v":""},{"$f":"IFERROR(INDEX('PR Expenditure_7A import-export'!B$22:B$63,MATCH($B177,'PR Expenditure_7A import-export'!$N$22:$N$63,0)),\"\")","v":""},{"$f":"IFERROR(INDEX('PR Expenditure_7A import-export'!C$22:C$63,MATCH($B177,'PR Expenditure_7A import-export'!$N$22:$N$63,0)),\"\")","v":""},null,0,{"$error":"#VALUE!"},null,null,{"$f":"IFERROR(INDEX('PR Expenditure_7A import-export'!I$22:I$63,MATCH($B177,'PR Expenditure_7A import-export'!$N$22:$N$63,0)),\"\")","v":""},null,0,{"$error":"#VALUE!"}]
["Don't Show","Int75",{"$f":"IFERROR(INDEX('PR Expenditure_7A import-export'!A$22:A$63,MATCH($B178,'PR Expenditure_7A import-export'!$N$22:$N$63,0)),\"\")","v":""},{"$f":"IFERROR(INDEX('PR Expenditure_7A import-export'!B$22:B$63,MATCH($B178,'PR Expenditure_7A import-export'!$N$22:$N$63,0)),\"\")","v":""},{"$f":"IFERROR(INDEX('PR Expenditure_7A import-export'!C$22:C$63,MATCH($B178,'PR Expenditure_7A import-export'!$N$22:$N$63,0)),\"\")","v":""},null,0,{"$error":"#VALUE!"},null,null,{"$f":"IFERROR(INDEX('PR Expenditure_7A import-export'!I$22:I$63,MATCH($B178,'PR Expenditure_7A import-export'!$N$22:$N$63,0)),\"\")","v":""},null,0,{"$error":"#VALUE!"}]
["Don't Show","Int76",{"$f":"IFERROR(INDEX('PR Expenditure_7A import-export'!A$22:A$63,MATCH($B179,'PR Expenditure_7A import-export'!$N$22:$N$63,0)),\"\")","v":""},{"$f":"IFERROR(INDEX('PR Expenditure_7A import-export'!B$22:B$63,MATCH($B179,'PR Expenditure_7A import-export'!$N$22:$N$63,0)),\"\")","v":""},{"$f":"IFERROR(INDEX('PR Expenditure_7A import-export'!C$22:C$63,MATCH($B179,'PR Expenditure_7A import-export'!$N$22:$N$63,0)),\"\")","v":""},null,0,{"$error":"#VALUE!"},null,null,{"$f":"IFERROR(INDEX('PR Expenditure_7A import-export'!I$22:I$63,MATCH($B179,'PR Expenditure_7A import-export'!$N$22:$N$63,0)),\"\")","v":""},null,0,{"$error":"#VALUE!"}]
["Don't Show","Int77",{"$f":"IFERROR(INDEX('PR Expenditure_7A import-export'!A$22:A$63,MATCH($B180,'PR Expenditure_7A import-export'!$N$22:$N$63,0)),\"\")","v":""},{"$f":"IFERROR(INDEX('PR Expenditure_7A import-export'!B$22:B$63,MATCH($B180,'PR Expenditure_7A import-export'!$N$22:$N$63,0)),\"\")","v":""},{"$f":"IFERROR(INDEX('PR Expenditure_7A import-export'!C$22:C$63,MATCH($B180,'PR Expenditure_7A import-export'!$N$22:$N$63,0)),\"\")","v":""},null,0,{"$error":"#VALUE!"},null,null,{"$f":"IFERROR(INDEX('PR Expenditure_7A import-export'!I$22:I$63,MATCH($B180,'PR Expenditure_7A import-export'!$N$22:$N$63,0)),\"\")","v":""},null,0,{"$error":"#VALUE!"}]
["Don't Show","Int78",{"$f":"IFERROR(INDEX('PR Expenditure_7A import-export'!A$22:A$63,MATCH($B181,'PR Expenditure_7A import-export'!$N$22:$N$63,0)),\"\")","v":""},{"$f":"IFERROR(INDEX('PR Expenditure_7A import-export'!B$22:B$63,MATCH($B181,'PR Expenditure_7A import-export'!$N$22:$N$63,0)),\"\")","v":""},{"$f":"IFERROR(INDEX('PR Expenditure_7A import-export'!C$22:C$63,MATCH($B181,'PR Expenditure_7A import-export'!$N$22:$N$63,0)),\"\")","v":""},null,0,{"$error":"#VALUE!"},null,null,{"$f":"IFERROR(INDEX('PR Expenditure_7A import-export'!I$22:I$63,MATCH($B181,'PR Expenditure_7A import-export'!$N$22:$N$63,0)),\"\")","v":""},null,0,{"$error":"#VALUE!"}]
["Don't Show","Int79",{"$f":"IFERROR(INDEX('PR Expenditure_7A import-export'!A$22:A$63,MATCH($B182,'PR Expenditure_7A import-export'!$N$22:$N$63,0)),\"\")","v":""},{"$f":"IFERROR(INDEX('PR Expenditure_7A import-export'!B$22:B$63,MATCH($B182,'PR Expenditure_7A import-export'!$N$22:$N$63,0)),\"\")","v":""},{"$f":"IFERROR(INDEX('PR Expenditure_7A import-export'!C$22:C$63,MATCH($B182,'PR Expenditure_7A import-export'!$N$22:$N$63,0)),\"\")","v":""},null,0,{"$error":"#VALUE!"},null,null,{"$f":"IFERROR(INDEX('PR Expenditure_7A import-export'!I$22:I$63,MATCH($B182,'PR Expenditure_7A import-export'!$N$22:$N$63,0)),\"\")","v":""},null,0,{"$error":"#VALUE!"}]
["Don't Show","Int80",{"$f":"IFERROR(INDEX('PR Expenditure_7A import-export'!A$22:A$63,MATCH($B183,'PR Expenditure_7A import-export'!$N$22:$N$63,0)),\"\")","v":""},{"$f":"IFERROR(INDEX('PR Expenditure_7A import-export'!B$22:B$63,MATCH($B183,'PR Expenditure_7A import-export'!$N$22:$N$63,0)),\"\")","v":""},{"$f":"IFERROR(INDEX('PR Expenditure_7A import-export'!C$22:C$63,MATCH($B183,'PR Expenditure_7A import-export'!$N$22:$N$63,0)),\"\")","v":""},null,0,{"$error":"#VALUE!"},null,null,{"$f":"IFERROR(INDEX('PR Expenditure_7A import-export'!I$22:I$63,MATCH($B183,'PR Expenditure_7A import-export'!$N$22:$N$63,0)),\"\")","v":""},null,0,{"$error":"#VALUE!"}]
["Don't Show","Int81",{"$f":"IFERROR(INDEX('PR Expenditure_7A import-export'!A$22:A$63,MATCH($B184,'PR Expenditure_7A import-export'!$N$22:$N$63,0)),\"\")","v":""},{"$f":"IFERROR(INDEX('PR Expenditure_7A import-export'!B$22:B$63,MATCH($B184,'PR Expenditure_7A import-export'!$N$22:$N$63,0)),\"\")","v":""},{"$f":"IFERROR(INDEX('PR Expenditure_7A import-export'!C$22:C$63,MATCH($B184,'PR Expenditure_7A import-export'!$N$22:$N$63,0)),\"\")","v":""},null,0,{"$error":"#VALUE!"},null,null,{"$f":"IFERROR(INDEX('PR Expenditure_7A import-export'!I$22:I$63,MATCH($B184,'PR Expenditure_7A import-export'!$N$22:$N$63,0)),\"\")","v":""},null,0,{"$error":"#VALUE!"}]
["Don't Show","Int82",{"$f":"IFERROR(INDEX('PR Expenditure_7A import-export'!A$22:A$63,MATCH($B185,'PR Expenditure_7A import-export'!$N$22:$N$63,0)),\"\")","v":""},{"$f":"IFERROR(INDEX('PR Expenditure_7A import-export'!B$22:B$63,MATCH($B185,'PR Expenditure_7A import-export'!$N$22:$N$63,0)),\"\")","v":""},{"$f":"IFERROR(INDEX('PR Expenditure_7A import-export'!C$22:C$63,MATCH($B185,'PR Expenditure_7A import-export'!$N$22:$N$63,0)),\"\")","v":""},null,0,{"$error":"#VALUE!"},null,null,{"$f":"IFERROR(INDEX('PR Expenditure_7A import-export'!I$22:I$63,MATCH($B185,'PR Expenditure_7A import-export'!$N$22:$N$63,0)),\"\")","v":""},null,0,{"$error":"#VALUE!"}]
["Don't Show","Int83",{"$f":"IFERROR(INDEX('PR Expenditure_7A import-export'!A$22:A$63,MATCH($B186,'PR Expenditure_7A import-export'!$N$22:$N$63,0)),\"\")","v":""},{"$f":"IFERROR(INDEX('PR Expenditure_7A import-export'!B$22:B$63,MATCH($B186,'PR Expenditure_7A import-export'!$N$22:$N$63,0)),\"\")","v":""},{"$f":"IFERROR(INDEX('PR Expenditure_7A import-export'!C$22:C$63,MATCH($B186,'PR Expenditure_7A import-export'!$N$22:$N$63,0)),\"\")","v":""},null,0,{"$error":"#VALUE!"},null,null,{"$f":"IFERROR(INDEX('PR Expenditure_7A import-export'!I$22:I$63,MATCH($B186,'PR Expenditure_7A import-export'!$N$22:$N$63,0)),\"\")","v":""},null,0,{"$error":"#VALUE!"}]
["Don't Show","Int84",{"$f":"IFERROR(INDEX('PR Expenditure_7A import-export'!A$22:A$63,MATCH($B187,'PR Expenditure_7A import-export'!$N$22:$N$63,0)),\"\")","v":""},{"$f":"IFERROR(INDEX('PR Expenditure_7A import-export'!B$22:B$63,MATCH($B187,'PR Expenditure_7A import-export'!$N$22:$N$63,0)),\"\")","v":""},{"$f":"IFERROR(INDEX('PR Expenditure_7A import-export'!C$22:C$63,MATCH($B187,'PR Expenditure_7A import-export'!$N$22:$N$63,0)),\"\")","v":""},null,0,{"$error":"#VALUE!"},null,null,{"$f":"IFERROR(INDEX('PR Expenditure_7A import-export'!I$22:I$63,MATCH($B187,'PR Expenditure_7A import-export'!$N$22:$N$63,0)),\"\")","v":""},null,0,{"$error":"#VALUE!"}]
["Don't Show","Int85",{"$f":"IFERROR(INDEX('PR Expenditure_7A import-export'!A$22:A$63,MATCH($B188,'PR Expenditure_7A import-export'!$N$22:$N$63,0)),\"\")","v":""},{"$f":"IFERROR(INDEX('PR Expenditure_7A import-export'!B$22:B$63,MATCH($B188,'PR Expenditure_7A import-export'!$N$22:$N$63,0)),\"\")","v":""},{"$f":"IFERROR(INDEX('PR Expenditure_7A import-export'!C$22:C$63,MATCH($B188,'PR Expenditure_7A import-export'!$N$22:$N$63,0)),\"\")","v":""},null,0,{"$error":"#VALUE!"},null,null,{"$f":"IFERROR(INDEX('PR Expenditure_7A import-export'!I$22:I$63,MATCH($B188,'PR Expenditure_7A import-export'!$N$22:$N$63,0)),\"\")","v":""},null,0,{"$error":"#VALUE!"}]
["Don't Show","Int86",{"$f":"IFERROR(INDEX('PR Expenditure_7A import-export'!A$22:A$63,MATCH($B189,'PR Expenditure_7A import-export'!$N$22:$N$63,0)),\"\")","v":""},{"$f":"IFERROR(INDEX('PR Expenditure_7A import-export'!B$22:B$63,MATCH($B189,'PR Expenditure_7A import-export'!$N$22:$N$63,0)),\"\")","v":""},{"$f":"IFERROR(INDEX('PR Expenditure_7A import-export'!C$22:C$63,MATCH($B189,'PR Expenditure_7A import-export'!$N$22:$N$63,0)),\"\")","v":""},null,0,{"$error":"#VALUE!"},null,null,{"$f":"IFERROR(INDEX('PR Expenditure_7A import-export'!I$22:I$63,MATCH($B189,'PR Expenditure_7A import-export'!$N$22:$N$63,0)),\"\")","v":""},null,0,{"$error":"#VALUE!"}]
["Don't Show","Int87",{"$f":"IFERROR(INDEX('PR Expenditure_7A import-export'!A$22:A$63,MATCH($B190,'PR Expenditure_7A import-export'!$N$22:$N$63,0)),\"\")","v":""},{"$f":"IFERROR(INDEX('PR Expenditure_7A import-export'!B$22:B$63,MATCH($B190,'PR Expenditure_7A import-export'!$N$22:$N$63,0)),\"\")","v":""},{"$f":"IFERROR(INDEX('PR Expenditure_7A import-export'!C$22:C$63,MATCH($B190,'PR Expenditure_7A import-export'!$N$22:$N$63,0)),\"\")","v":""},null,0,{"$error":"#VALUE!"},null,null,{"$f":"IFERROR(INDEX('PR Expenditure_7A import-export'!I$22:I$63,MATCH($B190,'PR Expenditure_7A import-export'!$N$22:$N$63,0)),\"\")","v":""},null,0,{"$error":"#VALUE!"}]
["Don't Show","Int88",{"$f":"IFERROR(INDEX('PR Expenditure_7A import-export'!A$22:A$63,MATCH($B191,'PR Expenditure_7A import-export'!$N$22:$N$63,0)),\"\")","v":""},{"$f":"IFERROR(INDEX('PR Expenditure_7A import-export'!B$22:B$63,MATCH($B191,'PR Expenditure_7A import-export'!$N$22:$N$63,0)),\"\")","v":""},{"$f":"IFERROR(INDEX('PR Expenditure_7A import-export'!C$22:C$63,MATCH($B191,'PR Expenditure_7A import-export'!$N$22:$N$63,0)),\"\")","v":""},null,0,{"$error":"#VALUE!"},null,null,{"$f":"IFERROR(INDEX('PR Expenditure_7A import-export'!I$22:I$63,MATCH($B191,'PR Expenditure_7A import-export'!$N$22:$N$63,0)),\"\")","v":""},null,0,{"$error":"#VALUE!"}]
["Don't Show","Int89",{"$f":"IFERROR(INDEX('PR Expenditure_7A import-export'!A$22:A$63,MATCH($B192,'PR Expenditure_7A import-export'!$N$22:$N$63,0)),\"\")","v":""},{"$f":"IFERROR(INDEX('PR Expenditure_7A import-export'!B$22:B$63,MATCH($B192,'PR Expenditure_7A import-export'!$N$22:$N$63,0)),\"\")","v":""},{"$f":"IFERROR(INDEX('PR Expenditure_7A import-export'!C$22:C$63,MATCH($B192,'PR Expenditure_7A import-export'!$N$22:$N$63,0)),\"\")","v":""},null,0,{"$error":"#VALUE!"},null,null,{"$f":"IFERROR(INDEX('PR Expenditure_7A import-export'!I$22:I$63,MATCH($B192,'PR Expenditure_7A import-export'!$N$22:$N$63,0)),\"\")","v":""},null,0,{"$error":"#VALUE!"}]
["Don't Show","Int90",{"$f":"IFERROR(INDEX('PR Expenditure_7A import-export'!A$22:A$63,MATCH($B193,'PR Expenditure_7A import-export'!$N$22:$N$63,0)),\"\")","v":""},{"$f":"IFERROR(INDEX('PR Expenditure_7A import-export'!B$22:B$63,MATCH($B193,'PR Expenditure_7A import-export'!$N$22:$N$63,0)),\"\")","v":""},{"$f":"IFERROR(INDEX('PR Expenditure_7A import-export'!C$22:C$63,MATCH($B193,'PR Expenditure_7A import-export'!$N$22:$N$63,0)),\"\")","v":""},null,0,{"$error":"#VALUE!"},null,null,{"$f":"IFERROR(INDEX('PR Expenditure_7A import-export'!I$22:I$63,MATCH($B193,'PR Expenditure_7A import-export'!$N$22:$N$63,0)),\"\")","v":""},null,0,{"$error":"#VALUE!"}]
["Don't Show","Int91",{"$f":"IFERROR(INDEX('PR Expenditure_7A import-export'!A$22:A$63,MATCH($B194,'PR Expenditure_7A import-export'!$N$22:$N$63,0)),\"\")","v":""},{"$f":"IFERROR(INDEX('PR Expenditure_7A import-export'!B$22:B$63,MATCH($B194,'PR Expenditure_7A import-export'!$N$22:$N$63,0)),\"\")","v":""},{"$f":"IFERROR(INDEX('PR Expenditure_7A import-export'!C$22:C$63,MATCH($B194,'PR Expenditure_7A import-export'!$N$22:$N$63,0)),\"\")","v":""},null,0,{"$error":"#VALUE!"},null,null,{"$f":"IFERROR(INDEX('PR Expenditure_7A import-export'!I$22:I$63,MATCH($B194,'PR Expenditure_7A import-export'!$N$22:$N$63,0)),\"\")","v":""},null,0,{"$error":"#VALUE!"}]
["Don't Show","Int92",{"$f":"IFERROR(INDEX('PR Expenditure_7A import-export'!A$22:A$63,MATCH($B195,'PR Expenditure_7A import-export'!$N$22:$N$63,0)),\"\")","v":""},{"$f":"IFERROR(INDEX('PR Expenditure_7A import-export'!B$22:B$63,MATCH($B195,'PR Expenditure_7A import-export'!$N$22:$N$63,0)),\"\")","v":""},{"$f":"IFERROR(INDEX('PR Expenditure_7A import-export'!C$22:C$63,MATCH($B195,'PR Expenditure_7A import-export'!$N$22:$N$63,0)),\"\")","v":""},null,0,{"$error":"#VALUE!"},null,null,{"$f":"IFERROR(INDEX('PR Expenditure_7A import-export'!I$22:I$63,MATCH($B195,'PR Expenditure_7A import-export'!$N$22:$N$63,0)),\"\")","v":""},null,0,{"$error":"#VALUE!"}]
["Don't Show","Int93",{"$f":"IFERROR(INDEX('PR Expenditure_7A import-export'!A$22:A$63,MATCH($B196,'PR Expenditure_7A import-export'!$N$22:$N$63,0)),\"\")","v":""},{"$f":"IFERROR(INDEX('PR Expenditure_7A import-export'!B$22:B$63,MATCH($B196,'PR Expenditure_7A import-export'!$N$22:$N$63,0)),\"\")","v":""},{"$f":"IFERROR(INDEX('PR Expenditure_7A import-export'!C$22:C$63,MATCH($B196,'PR Expenditure_7A import-export'!$N$22:$N$63,0)),\"\")","v":""},null,0,{"$error":"#VALUE!"},null,null,{"$f":"IFERROR(INDEX('PR Expenditure_7A import-export'!I$22:I$63,MATCH($B196,'PR Expenditure_7A import-export'!$N$22:$N$63,0)),\"\")","v":""},null,0,{"$error":"#VALUE!"}]
["Don't Show","Int94",{"$f":"IFERROR(INDEX('PR Expenditure_7A import-export'!A$22:A$63,MATCH($B197,'PR Expenditure_7A import-export'!$N$22:$N$63,0)),\"\")","v":""},{"$f":"IFERROR(INDEX('PR Expenditure_7A import-export'!B$22:B$63,MATCH($B197,'PR Expenditure_7A import-export'!$N$22:$N$63,0)),\"\")","v":""},{"$f":"IFERROR(INDEX('PR Expenditure_7A import-export'!C$22:C$63,MATCH($B197,'PR Expenditure_7A import-export'!$N$22:$N$63,0)),\"\")","v":""},null,0,{"$error":"#VALUE!"},null,null,{"$f":"IFERROR(INDEX('PR Expenditure_7A import-export'!I$22:I$63,MATCH($B197,'PR Expenditure_7A import-export'!$N$22:$N$63,0)),\"\")","v":""},null,0,{"$error":"#VALUE!"}]
["Don't Show","Int95",{"$f":"IFERROR(INDEX('PR Expenditure_7A import-export'!A$22:A$63,MATCH($B198,'PR Expenditure_7A import-export'!$N$22:$N$63,0)),\"\")","v":""},{"$f":"IFERROR(INDEX('PR Expenditure_7A import-export'!B$22:B$63,MATCH($B198,'PR Expenditure_7A import-export'!$N$22:$N$63,0)),\"\")","v":""},{"$f":"IFERROR(INDEX('PR Expenditure_7A import-export'!C$22:C$63,MATCH($B198,'PR Expenditure_7A import-export'!$N$22:$N$63,0)),\"\")","v":""},null,0,{"$error":"#VALUE!"},null,null,{"$f":"IFERROR(INDEX('PR Expenditure_7A import-export'!I$22:I$63,MATCH($B198,'PR Expenditure_7A import-export'!$N$22:$N$63,0)),\"\")","v":""},null,0,{"$error":"#VALUE!"}]
["Don't Show","Int96",{"$f":"IFERROR(INDEX('PR Expenditure_7A import-export'!A$22:A$63,MATCH($B199,'PR Expenditure_7A import-export'!$N$22:$N$63,0)),\"\")","v":""},{"$f":"IFERROR(INDEX('PR Expenditure_7A import-export'!B$22:B$63,MATCH($B199,'PR Expenditure_7A import-export'!$N$22:$N$63,0)),\"\")","v":""},{"$f":"IFERROR(INDEX('PR Expenditure_7A import-export'!C$22:C$63,MATCH($B199,'PR Expenditure_7A import-export'!$N$22:$N$63,0)),\"\")","v":""},null,0,{"$error":"#VALUE!"},null,null,{"$f":"IFERROR(INDEX('PR Expenditure_7A import-export'!I$22:I$63,MATCH($B199,'PR Expenditure_7A import-export'!$N$22:$N$63,0)),\"\")","v":""},null,0,{"$error":"#VALUE!"}]
["Don't Show","Int97",{"$f":"IFERROR(INDEX('PR Expenditure_7A import-export'!A$22:A$63,MATCH($B200,'PR Expenditure_7A import-export'!$N$22:$N$63,0)),\"\")","v":""},{"$f":"IFERROR(INDEX('PR Expenditure_7A import-export'!B$22:B$63,MATCH($B200,'PR Expenditure_7A import-export'!$N$22:$N$63,0)),\"\")","v":""},{"$f":"IFERROR(INDEX('PR Expenditure_7A import-export'!C$22:C$63,MATCH($B200,'PR Expenditure_7A import-export'!$N$22:$N$63,0)),\"\")","v":""},null,0,{"$error":"#VALUE!"},null,null,{"$f":"IFERROR(INDEX('PR Expenditure_7A import-export'!I$22:I$63,MATCH($B200,'PR Expenditure_7A import-export'!$N$22:$N$63,0)),\"\")","v":""},null,0,{"$error":"#VALUE!"}]
["Don't Show","Int98",{"$f":"IFERROR(INDEX('PR Expenditure_7A import-export'!A$22:A$63,MATCH($B201,'PR Expenditure_7A import-export'!$N$22:$N$63,0)),\"\")","v":""},{"$f":"IFERROR(INDEX('PR Expenditure_7A import-export'!B$22:B$63,MATCH($B201,'PR Expenditure_7A import-export'!$N$22:$N$63,0)),\"\")","v":""},{"$f":"IFERROR(INDEX('PR Expenditure_7A import-export'!C$22:C$63,MATCH($B201,'PR Expenditure_7A import-export'!$N$22:$N$63,0)),\"\")","v":""},null,0,{"$error":"#VALUE!"},null,null,{"$f":"IFERROR(INDEX('PR Expenditure_7A import-export'!I$22:I$63,MATCH($B201,'PR Expenditure_7A import-export'!$N$22:$N$63,0)),\"\")","v":""},null,0,{"$error":"#VALUE!"}]
["Don't Show","Int99",{"$f":"IFERROR(INDEX('PR Expenditure_7A import-export'!A$22:A$63,MATCH($B202,'PR Expenditure_7A import-export'!$N$22:$N$63,0)),\"\")","v":""},{"$f":"IFERROR(INDEX('PR Expenditure_7A import-export'!B$22:B$63,MATCH($B202,'PR Expenditure_7A import-export'!$N$22:$N$63,0)),\"\")","v":""},{"$f":"IFERROR(INDEX('PR Expenditure_7A import-export'!C$22:C$63,MATCH($B202,'PR Expenditure_7A import-export'!$N$22:$N$63,0)),\"\")","v":""},null,0,{"$error":"#VALUE!"},null,null,{"$f":"IFERROR(INDEX('PR Expenditure_7A import-export'!I$22:I$63,MATCH($B202,'PR Expenditure_7A import-export'!$N$22:$N$63,0)),\"\")","v":""},null,0,{"$error":"#VALUE!"}]
["Don't Show","Int100",{"$f":"IFERROR(INDEX('PR Expenditure_7A import-export'!A$22:A$63,MATCH($B203,'PR Expenditure_7A import-export'!$N$22:$N$63,0)),\"\")","v":""},{"$f":"IFERROR(INDEX('PR Expenditure_7A import-export'!B$22:B$63,MATCH($B203,'PR Expenditure_7A import-export'!$N$22:$N$63,0)),\"\")","v":""},{"$f":"IFERROR(INDEX('PR Expenditure_7A import-export'!C$22:C$63,MATCH($B203,'PR Expenditure_7A import-export'!$N$22:$N$63,0)),\"\")","v":""},null,0,{"$error":"#VALUE!"},null,null,{"$f":"IFERROR(INDEX('PR Expenditure_7A import-export'!I$22:I$63,MATCH($B203,'PR Expenditure_7A import-export'!$N$22:$N$63,0)),\"\")","v":""},null,0,{"$error":"#VALUE!"}]
["Show","NewMod1",null,null,0,null,{"$f":"IFERROR(E204-F204,0)","v":0},{"$f":"IF(AND(E204=0,F204=0),\"N/A\",IF(AND(E204=0,F204<>0),\"Not Budgeted\",F204/E204))","v":"N/A"},null,null,0,null,{"$f":"IFERROR(K204-L204,0)","v":0},{"$f":"IF(AND(K204=0,L204=0),\"N/A\",IF(AND(K204=0,L204<>0),\"Not Budgeted\",L204/K204))","v":"N/A"},{"$f":"IFERROR(IF(VLOOKUP(C204,'Reference Records'!$B$13:$D$48,3,FALSE)=0,\"\",VLOOKUP(C204,'Reference Records'!$B$13:$D$48,3,FALSE)),\"\")","v":""},null,{"$f":"'PR Expenditure_7A import-export'!O64","v":""},null,{"$f":"_7268c752_e187_487c_ae1f_8d8e309992e6","v":"[Record ID]"}]
["Show","NewMod2",null,null,0,null,{"$f":"IFERROR(E205-F205,0)","v":0},{"$f":"IF(AND(E205=0,F205=0),\"N/A\",IF(AND(E205=0,F205<>0),\"Not Budgeted\",F205/E205))","v":"N/A"},null,null,0,null,{"$f":"IFERROR(K205-L205,0)","v":0},{"$f":"IF(AND(K205=0,L205=0),\"N/A\",IF(AND(K205=0,L205<>0),\"Not Budgeted\",L205/K205))","v":"N/A"},{"$f":"IFERROR(IF(VLOOKUP(C205,'Reference Records'!$B$13:$D$48,3,FALSE)=0,\"\",VLOOKUP(C205,'Reference Records'!$B$13:$D$48,3,FALSE)),\"\")","v":""}]
["Show","NewMod3",null,null,0,null,0,"N/A",null,null,0,null,0,"N/A",{"$f":"IFERROR(IF(VLOOKUP(C206,'Reference Records'!$B$13:$D$48,3,FALSE)=0,\"\",VLOOKUP(C206,'Reference Records'!$B$13:$D$48,3,FALSE)),\"\")","v":""}]
["Show","NewMod4",null,null,0,null,0,"N/A",null,null,0,null,0,"N/A",{"$f":"IFERROR(IF(VLOOKUP(C207,'Reference Records'!$B$13:$D$48,3,FALSE)=0,\"\",VLOOKUP(C207,'Reference Records'!$B$13:$D$48,3,FALSE)),\"\")","v":""}]
["Show","NewMod5",null,null,0,null,0,"N/A",null,null,0,null,0,"N/A",{"$f":"IFERROR(IF(VLOOKUP(C208,'Reference Records'!$B$13:$D$48,3,FALSE)=0,\"\",VLOOKUP(C208,'Reference Records'!$B$13:$D$48,3,FALSE)),\"\")","v":""}]
["Show","NewMod6",null,null,0,null,0,"N/A",null,null,0,null,0,"N/A",{"$f":"IFERROR(IF(VLOOKUP(C209,'Reference Records'!$B$13:$D$48,3,FALSE)=0,\"\",VLOOKUP(C209,'Reference Records'!$B$13:$D$48,3,FALSE)),\"\")","v":""}]
["Show","NewMod7",null,null,0,null,0,"N/A",null,null,0,null,0,"N/A",{"$f":"IFERROR(IF(VLOOKUP(C210,'Reference Records'!$B$13:$D$48,3,FALSE)=0,\"\",VLOOKUP(C210,'Reference Records'!$B$13:$D$48,3,FALSE)),\"\")","v":""}]
["Show","NewMod8",null,null,0,null,0,"N/A",null,null,0,null,0,"N/A",{"$f":"IFERROR(IF(VLOOKUP(C211,'Reference Records'!$B$13:$D$48,3,FALSE)=0,\"\",VLOOKUP(C211,'Reference Records'!$B$13:$D$48,3,FALSE)),\"\")","v":""}]
["Show","NewMod9",null,null,0,null,0,"N/A",null,null,0,null,0,"N/A",{"$f":"IFERROR(IF(VLOOKUP(C212,'Reference Records'!$B$13:$D$48,3,FALSE)=0,\"\",VLOOKUP(C212,'Reference Records'!$B$13:$D$48,3,FALSE)),\"\")","v":""}]
["Show","NewMod10",null,null,0,null,0,"N/A",null,null,0,null,0,"N/A",{"$f":"IFERROR(IF(VLOOKUP(C213,'Reference Records'!$B$13:$D$48,3,FALSE)=0,\"\",VLOOKUP(C213,'Reference Records'!$B$13:$D$48,3,FALSE)),\"\")","v":""}]
["Show","NewMod11",null,null,0,null,0,"N/A",null,null,0,null,0,"N/A",{"$f":"IFERROR(IF(VLOOKUP(C214,'Reference Records'!$B$13:$D$48,3,FALSE)=0,\"\",VLOOKUP(C214,'Reference Records'!$B$13:$D$48,3,FALSE)),\"\")","v":""}]
["Show","NewMod12",null,null,0,null,0,"N/A",null,null,0,null,0,"N/A",{"$f":"IFERROR(IF(VLOOKUP(C215,'Reference Records'!$B$13:$D$48,3,FALSE)=0,\"\",VLOOKUP(C215,'Reference Records'!$B$13:$D$48,3,FALSE)),\"\")","v":""}]
["Show","NewMod13",null,null,0,null,0,"N/A",null,null,0,null,0,"N/A",{"$f":"IFERROR(IF(VLOOKUP(C216,'Reference Records'!$B$13:$D$48,3,FALSE)=0,\"\",VLOOKUP(C216,'Reference Records'!$B$13:$D$48,3,FALSE)),\"\")","v":""}]
["Show","NewMod14",null,null,0,null,0,"N/A",null,null,0,null,0,"N/A",{"$f":"IFERROR(IF(VLOOKUP(C217,'Reference Records'!$B$13:$D$48,3,FALSE)=0,\"\",VLOOKUP(C217,'Reference Records'!$B$13:$D$48,3,FALSE)),\"\")","v":""}]
["Show","NewMod15",null,null,0,null,0,"N/A",null,null,0,null,0,"N/A",{"$f":"IFERROR(IF(VLOOKUP(C218,'Reference Records'!$B$13:$D$48,3,FALSE)=0,\"\",VLOOKUP(C218,'Reference Records'!$B$13:$D$48,3,FALSE)),\"\")","v":""}]
["Show","NewMod16",null,null,0,null,0,"N/A",null,null,0,null,0,"N/A",{"$f":"IFERROR(IF(VLOOKUP(C219,'Reference Records'!$B$13:$D$48,3,FALSE)=0,\"\",VLOOKUP(C219,'Reference Records'!$B$13:$D$48,3,FALSE)),\"\")","v":""}]
["Show",null,"Grand Total",null,{"$f":"ROUND(SUM(E104:E219),2)","v":5743857.3399999999},{"$f":"ROUND(SUM(F104:F219),2)","v":1056654.67},{"$f":"ROUND(SUM(G104:G219),2)","v":4687202.67},{"$f":"(F220/E220)*100","v":18.396255468280831},null,null,{"$f":"ROUND(SUM(K104:K219),2)","v":5743857.3399999999},{"$f":"ROUND(SUM(L104:L219),2)","v":1056654.67},{"$f":"ROUND(SUM(M104:M219),2)","v":4687202.67},{"$f":"(L220/K220)","v":0.18396255468280831}]
["Show"]
["Show",null,"C. BREAKDOWN BY IMPLEMENTING ENTITY"]
["Show"]
["Show",null,"Implementing Entity","Type of Implementing Entity","Budget for Reporting Period","Actual Expenditure","Budget Vs Actual Variances","Absorption Rate","Explanation of Variances (mandatory for all percentages below 95% & above 105%)",null,"Cumulative Budget","Cumulative Actual Expenditure","Cumulative Budget Vs Actuals Variances","Absorption Rate"]
[{"$f":"IF(C225<>\"\",\"Show\",\"Don't Show\")","v":"Show"},"IP1",{"$f":"IFERROR(INDEX('PR Expenditure_7A import-export'!A$82:A$87,MATCH('PR Expenditure_7A'!$B225,'PR Expenditure_7A import-export'!$N$82:$N$87,0)),\"\")","v":"Red Cross Burundi"},{"$f":"IFERROR(INDEX('PR Expenditure_7A import-export'!B$82:B$87,MATCH('PR Expenditure_7A'!$B225,'PR Expenditure_7A import-export'!$N$82:$N$87,0)),\"\")","v":"-"},{"$f":"IFERROR(INDEX('PR Expenditure_7A import-export'!C$82:C$87,MATCH('PR Expenditure_7A'!$B225,'PR Expenditure_7A import-export'!$N$82:$N$87,0)),\"\")","v":980086.54583479103},347789.20000000007,{"$f":"IFERROR(E225-F225,0)","v":632297.34583479096},{"$f":"IF(AND(E225=0,F225=0),\"N/A\",IF(AND(E225=0,F225<>0),\"Not Budgeted\",F225/E225))","v":0.35485560074061601},"Cet écart s'explique par :\n* les économies de USD 335,624.78 sur les RH (102, 120, 129, 139, 210, 211, 212, 255, 260, 265) de la Croix Rouge dues à la prise en charge de certains staffs pour la cloture de l'ancienne subvention, à la non justification des dépenses des SSRs et au fait que les salaires de Juin 2018 n'étaient pas payés\n* les économies de USD 36,264.83 relatives aux activités (22, 23, 43, 94, 106, 122, 132, 133 et 135) non exécutées par la Croix Rouge ;\n* USD 34,458.7 représentant les économies sur les act 100, 128, 131, 137 et 259 de la Croix Rouge dues au retard dans la mise en place des appuis et dont un engagement de USD 2,041 existe au 300618\n*  USD 104,076.13 décaissé au PAM pour la prise en charge des PVVIH (act 213, 214, 215 et 216) non encore justifié;\n*  les économies de USD 421.43  relatives à l'act 13 dues au retard dans la mise en oeuvre de celle-ci;\n* USD 121,451.48 relatives aux activités (14, 15, 16, 17, 19, 243, 25, 72, 95, 96, 101, 107, 108, 115, 121, 130, 134, 136, 138, 141, 142, 169, 170, 171, 172, 173, 174, 175, 176, 201, 202, 251, 284, 285, 286) de la Croix Rouge exécutées ou non en raison du retard dans la signature des accords et pour lesquelles des dépenses non enregistrées dans Atlas (engagements)  au 30 juin 2018 s'élèvent à 5,998.",null,{"$f":"IFERROR(INDEX('PR Expenditure_7A import-export'!I$82:I$87,MATCH('PR Expenditure_7A'!$B225,'PR Expenditure_7A import-export'!$N$82:$N$87,0)),\"\")","v":980086.54583479103},{"$f":"F225","v":347789.20000000007},{"$f":"IFERROR(K225-L225,0)","v":632297.34583479096},{"$f":"IF(AND(K225=0,L225=0),\"N/A\",IF(AND(K225=0,L225<>0),\"Not Budgeted\",L225/K225))","v":0.35485560074061601}]
[{"$f":"IF(C226<>\"\",\"Show\",\"Don't Show\")","v":"Show"},"IP2",{"$f":"IFERROR(INDEX('PR Expenditure_7A import-export'!A$82:A$87,MATCH('PR Expenditure_7A'!$B226,'PR Expenditure_7A import-export'!$N$82:$N$87,0)),\"\")","v":"PNILT"},{"$f":"IFERROR(INDEX('PR Expenditure_7A import-export'!B$82:B$87,MATCH('PR Expenditure_7A'!$B226,'PR Expenditure_7A import-export'!$N$82:$N$87,0)),\"\")","v":"-"},{"$f":"IFERROR(INDEX('PR Expenditure_7A import-export'!C$82:C$87,MATCH('PR Expenditure_7A'!$B226,'PR Expenditure_7A import-export'!$N$82:$N$87,0)),\"\")","v":392096.936571764},21693.9,370403.03657176398,5.5327899752742521E-2,"Cet écart s'explique par :\n* Les économies de USD 72,984.09 sur les RH (66, 68, 70 et 71) du PNILT dues au retard dans la signature des accords, à la mise en place des unités de gestion ainsi qu'au non paiement des primes de la période;\n* les économies de USD 14,507.08 sur le fonctionnement du PNILT (act 69) dues à la faiblesse des dépenses de Q1 et du retard dans la signature des accords et dont un engagement au 300618 de USD 5,955.43 existe;\n* les économies de 31,647.81 sur les act 46, 47,48 et 50 dues au retard dans le démarrage des activités et dont un engagement de USD 3,328.37 existe.  Il faut signaler que USD de ces activités seront reportées sur la période à venir.\n* USD 143,728.69 relatives aux activités (1,2, 3, 20, 34, 35, 36, 41, 42, 45, 57, 58, 59 et 60) du PNLT exécutées ou non en raison du retard dans la signature des accords et pour lesquelles des dépenses non enregistrées dans Atlas (engagements)  au 30 juin 2018 s'élèvent à 42, 620.71; il faut par ailleurs signaler que des activités de USD 71,699.88 seront reportées sur la période à venir;\n* les économies de USD 105,472.97 sur les équipement de dépistage moléculaire de la tuberculose (288) dues au retard dans le paiement. \n* les économies de USD 2,062.4 sur l'act 49 en raison du faible taux de dépense pour la maintenance des équipements.",null,{"$f":"IFERROR(INDEX('PR Expenditure_7A import-export'!I$82:I$87,MATCH('PR Expenditure_7A'!$B226,'PR Expenditure_7A import-export'!$N$82:$N$87,0)),\"\")","v":392096.936571764},{"$f":"F226","v":21693.9},370403.03657176398,5.5327899752742521E-2]
["Show","IP3",{"$f":"IFERROR(INDEX('PR Expenditure_7A import-export'!A$82:A$87,MATCH('PR Expenditure_7A'!$B227,'PR Expenditure_7A import-export'!$N$82:$N$87,0)),\"\")","v":"United Nations Development Programme"},{"$f":"IFERROR(INDEX('PR Expenditure_7A import-export'!B$82:B$87,MATCH('PR Expenditure_7A'!$B227,'PR Expenditure_7A import-export'!$N$82:$N$87,0)),\"\")","v":"-"},{"$f":"IFERROR(INDEX('PR Expenditure_7A import-export'!C$82:C$87,MATCH('PR Expenditure_7A'!$B227,'PR Expenditure_7A import-export'!$N$82:$N$87,0)),\"\")","v":3416867.5639248402},675972.24999999977,2740895.3139248407,0.19783390411056298,"Cet écart s'explique par :\n*Les économies de USD 108,354.83 sur les ressources humaines du PR en raison du retard dans la mise en place du personnel du personnel du PMU et de l'équipe intérimaire respectivement sur les act 267 (USD 75,551.12) et 278 (USD 32,803.72); Sur ces économies du PR , USD  seront utilisés pour le Consultant M&E and le Deputy Programme (cf act 267);\n*  des économies de USD 49,341.29 relatives à l'act 18 reportée;\n* USD 16,528.16 représentant les économies sur les activités 26, 273 et 281 dues au retard dans la mise en place de l'équipe du PMU et dans le démarrage effectif des activités;\n* USD 309,249.24 de frais de gestion du PR car toutes les activités prévues n'ont pas été exécutées\n* les économies de 4,322.18 sur l'achat de lingerie (act 44) ;\n* USD 4,928.61  sur les activités du PR (cf 188, 189, 205, 209, 279);\n*  des économies de USD 79,120.3 relatives aux 51, 150, 191 et 280 dues en raison du retard dans le recrutement des consultants charge virale et évaluation sur les VSBG et de violations des droits de l’Homme en matiere du VIH ainsi qu'au paiement du GLC.\n* les économies de USD 813,211.74 sur les produits de santé pharmaceutiques (21, 27, 52, 61, 75, 220, 221 et 230) dues au dues au retard dans la passation de la commande car les besoins n'étaient pas bien quantifiés et aussi à la disponibilité de certains médicaments en stock; il faut signaler qu'un engagement de USD 1,091,861.06 existe au 300618;\n*  les économies de USD 693,752.63 sur les produits de santé non pharmaceutiques (act dues au retard dans la passation de la commande car les besoins n'étaient pas bien quantifiés et aussi à la disponibilité de certains; un engagement de USD 294,607.7 existe au 300618\n* les économies de USD 188,616.12 sur les équipements sanitaires (7, 8, 237 et 283) dues au retard dans la passation des commandes et pour lesquels un engagement de USD  155,688 sur l'act 7 existe.\n* les économies de USD 472,529.65 sur les couts de gestion des achats (9, 10, 11, 29, 30, 31, 32, 33, 53, 54, 55, 56, 62, 63, 64, 65, 76, 77, 78, 79, 85, 86, 87, 91, 92,  93, 103, 104, 105, 112, etc, 250) dues non seulement au retard dans la passation des commandes mais aussi car les livraisons ne sont pas encore faites et payées; un enagement de USD 18, 989.66 existe au 300618;\n* les économies de USD 18,737. 27 sur les infrastructures (act 270 et 274 dues à la mise à disposition par le PNUD du mobilier nécessaire et la réalisation d'une réhabilitation de faible valeur;\n* le gap de USD -17,796.71 sur les act 268, 269, 271, 272 résultant d'une sousestimation des couts des biens.",null,{"$f":"IFERROR(INDEX('PR Expenditure_7A import-export'!I$82:I$87,MATCH('PR Expenditure_7A'!$B227,'PR Expenditure_7A import-export'!$N$82:$N$87,0)),\"\")","v":3416867.5639248402},{"$f":"F227","v":675972.24999999977},2740895.3139248407,0.19783390411056298]
["Show","IP4",{"$f":"IFERROR(INDEX('PR Expenditure_7A import-export'!A$82:A$87,MATCH('PR Expenditure_7A'!$B228,'PR Expenditure_7A import-export'!$N$82:$N$87,0)),\"\")","v":"PNLS /IST"},{"$f":"IFERROR(INDEX('PR Expenditure_7A import-export'!B$82:B$87,MATCH('PR Expenditure_7A'!$B228,'PR Expenditure_7A import-export'!$N$82:$N$87,0)),\"\")","v":"-"},{"$f":"IFERROR(INDEX('PR Expenditure_7A import-export'!C$82:C$87,MATCH('PR Expenditure_7A'!$B228,'PR Expenditure_7A import-export'!$N$82:$N$87,0)),\"\")","v":954806.29754234501},11199.32,943606.97754234506,1.1729415724243604E-2,"Cet écart s'explique par :\n* Les économies de USD 360,557.60 sur les RH (252,254, 264 et 266) du PNLS dues au retard dans la signature des accords, à la mise en place des unités de gestion et des Coordonnateurs provinciaux dont USD 122,908.03 d'engagements au 300618 ;\n* USD 356,023.75 relatives aux activités (73,74,80, 81, 82, 88, 151, 162, 168, 177, 181, 182, 187, 194, 196, 197, 203, 204, 206, 207, 208, 217, 219, 235, 236, 256, 261, 262, 263) du PNLS exécutées ou non en raison du retard dans la signature des accords et pour lesquelles des dépenses non enregistrées dans Atlas (engagements)  au 30 juin 2018 s'élèvent à 155,533.01; il faut par ailleurs signaler que des activités de USD 109,202.41 seront reportées sur la période à venir;\n* USD 26,990.85 représentant les économies sur les act 179, 254 et 258 du PNLS dues à la faiblesse des dépenses de Q1 et du retard dans la signature des accords;\n* USD 174,526.55 relative à l'act 218 dont les controles sont en cours au niveau de toutes les structures prestataires  en vue du paiement. Cette activité sera intégralement reportée sur la période à venir;\n* des économies de USD 9,264.02 relatives aux act 180 et 287 du PNLS non exécutées en raison du retard dans la signature de l'accord et reportées pour la période à venir;\n USD 630.09 représentant le montant de l'act 200 non exécutée en raison du retard dans la finalisation du bulletin épidémiologique annuel sur le VIH;\n*  Les économies de USD 15,614.11 sur la maintenance des équipements informatiques du PNLS (act 178)",null,{"$f":"IFERROR(INDEX('PR Expenditure_7A import-export'!I$82:I$87,MATCH('PR Expenditure_7A'!$B228,'PR Expenditure_7A import-export'!$N$82:$N$87,0)),\"\")","v":954806.29754234501},{"$f":"F228","v":11199.32},943606.97754234506,1.1729415724243604E-2]
["Don't Show","IP5",{"$f":"IFERROR(INDEX('PR Expenditure_7A import-export'!A$82:A$87,MATCH('PR Expenditure_7A'!$B229,'PR Expenditure_7A import-export'!$N$82:$N$87,0)),\"\")","v":""},{"$f":"IFERROR(INDEX('PR Expenditure_7A import-export'!B$82:B$87,MATCH('PR Expenditure_7A'!$B229,'PR Expenditure_7A import-export'!$N$82:$N$87,0)),\"\")","v":""},{"$f":"IFERROR(INDEX('PR Expenditure_7A import-export'!C$82:C$87,MATCH('PR Expenditure_7A'!$B229,'PR Expenditure_7A import-export'!$N$82:$N$87,0)),\"\")","v":""},null,0,{"$error":"#VALUE!"},null,null,{"$f":"IFERROR(INDEX('PR Expenditure_7A import-export'!I$82:I$87,MATCH('PR Expenditure_7A'!$B229,'PR Expenditure_7A import-export'!$N$82:$N$87,0)),\"\")","v":""},null,0,{"$error":"#VALUE!"}]
["Don't Show","IP6",{"$f":"IFERROR(INDEX('PR Expenditure_7A import-export'!A$82:A$87,MATCH('PR Expenditure_7A'!$B230,'PR Expenditure_7A import-export'!$N$82:$N$87,0)),\"\")","v":""},{"$f":"IFERROR(INDEX('PR Expenditure_7A import-export'!B$82:B$87,MATCH('PR Expenditure_7A'!$B230,'PR Expenditure_7A import-export'!$N$82:$N$87,0)),\"\")","v":""},{"$f":"IFERROR(INDEX('PR Expenditure_7A import-export'!C$82:C$87,MATCH('PR Expenditure_7A'!$B230,'PR Expenditure_7A import-export'!$N$82:$N$87,0)),\"\")","v":""},null,0,{"$error":"#VALUE!"},null,null,{"$f":"IFERROR(INDEX('PR Expenditure_7A import-export'!I$82:I$87,MATCH('PR Expenditure_7A'!$B230,'PR Expenditure_7A import-export'!$N$82:$N$87,0)),\"\")","v":""},null,0,{"$error":"#VALUE!"}]
["Don't Show","IP7",{"$f":"IFERROR(INDEX('PR Expenditure_7A import-export'!A$82:A$87,MATCH('PR Expenditure_7A'!$B231,'PR Expenditure_7A import-export'!$N$82:$N$87,0)),\"\")","v":""},{"$f":"IFERROR(INDEX('PR Expenditure_7A import-export'!B$82:B$87,MATCH('PR Expenditure_7A'!$B231,'PR Expenditure_7A import-export'!$N$82:$N$87,0)),\"\")","v":""},{"$f":"IFERROR(INDEX('PR Expenditure_7A import-export'!C$82:C$87,MATCH('PR Expenditure_7A'!$B231,'PR Expenditure_7A import-export'!$N$82:$N$87,0)),\"\")","v":""},null,0,{"$error":"#VALUE!"},null,null,{"$f":"IFERROR(INDEX('PR Expenditure_7A import-export'!I$82:I$87,MATCH('PR Expenditure_7A'!$B231,'PR Expenditure_7A import-export'!$N$82:$N$87,0)),\"\")","v":""},null,0,{"$error":"#VALUE!"}]
["Don't Show","IP8",{"$f":"IFERROR(INDEX('PR Expenditure_7A import-export'!A$82:A$87,MATCH('PR Expenditure_7A'!$B232,'PR Expenditure_7A import-export'!$N$82:$N$87,0)),\"\")","v":""},{"$f":"IFERROR(INDEX('PR Expenditure_7A import-export'!B$82:B$87,MATCH('PR Expenditure_7A'!$B232,'PR Expenditure_7A import-export'!$N$82:$N$87,0)),\"\")","v":""},{"$f":"IFERROR(INDEX('PR Expenditure_7A import-export'!C$82:C$87,MATCH('PR Expenditure_7A'!$B232,'PR Expenditure_7A import-export'!$N$82:$N$87,0)),\"\")","v":""},null,0,{"$error":"#VALUE!"},null,null,{"$f":"IFERROR(INDEX('PR Expenditure_7A import-export'!I$82:I$87,MATCH('PR Expenditure_7A'!$B232,'PR Expenditure_7A import-export'!$N$82:$N$87,0)),\"\")","v":""},null,0,{"$error":"#VALUE!"}]
["Don't Show","IP9",{"$f":"IFERROR(INDEX('PR Expenditure_7A import-export'!A$82:A$87,MATCH('PR Expenditure_7A'!$B233,'PR Expenditure_7A import-export'!$N$82:$N$87,0)),\"\")","v":""},{"$f":"IFERROR(INDEX('PR Expenditure_7A import-export'!B$82:B$87,MATCH('PR Expenditure_7A'!$B233,'PR Expenditure_7A import-export'!$N$82:$N$87,0)),\"\")","v":""},{"$f":"IFERROR(INDEX('PR Expenditure_7A import-export'!C$82:C$87,MATCH('PR Expenditure_7A'!$B233,'PR Expenditure_7A import-export'!$N$82:$N$87,0)),\"\")","v":""},null,0,{"$error":"#VALUE!"},null,null,{"$f":"IFERROR(INDEX('PR Expenditure_7A import-export'!I$82:I$87,MATCH('PR Expenditure_7A'!$B233,'PR Expenditure_7A import-export'!$N$82:$N$87,0)),\"\")","v":""},null,0,{"$error":"#VALUE!"}]
["Don't Show","IP10",{"$f":"IFERROR(INDEX('PR Expenditure_7A import-export'!A$82:A$87,MATCH('PR Expenditure_7A'!$B234,'PR Expenditure_7A import-export'!$N$82:$N$87,0)),\"\")","v":""},{"$f":"IFERROR(INDEX('PR Expenditure_7A import-export'!B$82:B$87,MATCH('PR Expenditure_7A'!$B234,'PR Expenditure_7A import-export'!$N$82:$N$87,0)),\"\")","v":""},{"$f":"IFERROR(INDEX('PR Expenditure_7A import-export'!C$82:C$87,MATCH('PR Expenditure_7A'!$B234,'PR Expenditure_7A import-export'!$N$82:$N$87,0)),\"\")","v":""},null,0,{"$error":"#VALUE!"},null,null,{"$f":"IFERROR(INDEX('PR Expenditure_7A import-export'!I$82:I$87,MATCH('PR Expenditure_7A'!$B234,'PR Expenditure_7A import-export'!$N$82:$N$87,0)),\"\")","v":""},null,0,{"$error":"#VALUE!"}]
["Don't Show","IP11",{"$f":"IFERROR(INDEX('PR Expenditure_7A import-export'!A$82:A$87,MATCH('PR Expenditure_7A'!$B235,'PR Expenditure_7A import-export'!$N$82:$N$87,0)),\"\")","v":""},{"$f":"IFERROR(INDEX('PR Expenditure_7A import-export'!B$82:B$87,MATCH('PR Expenditure_7A'!$B235,'PR Expenditure_7A import-export'!$N$82:$N$87,0)),\"\")","v":""},{"$f":"IFERROR(INDEX('PR Expenditure_7A import-export'!C$82:C$87,MATCH('PR Expenditure_7A'!$B235,'PR Expenditure_7A import-export'!$N$82:$N$87,0)),\"\")","v":""},null,0,{"$error":"#VALUE!"},null,null,{"$f":"IFERROR(INDEX('PR Expenditure_7A import-export'!I$82:I$87,MATCH('PR Expenditure_7A'!$B235,'PR Expenditure_7A import-export'!$N$82:$N$87,0)),\"\")","v":""},null,0,{"$error":"#VALUE!"}]
["Don't Show","IP12",{"$f":"IFERROR(INDEX('PR Expenditure_7A import-export'!A$82:A$87,MATCH('PR Expenditure_7A'!$B236,'PR Expenditure_7A import-export'!$N$82:$N$87,0)),\"\")","v":""},{"$f":"IFERROR(INDEX('PR Expenditure_7A import-export'!B$82:B$87,MATCH('PR Expenditure_7A'!$B236,'PR Expenditure_7A import-export'!$N$82:$N$87,0)),\"\")","v":""},{"$f":"IFERROR(INDEX('PR Expenditure_7A import-export'!C$82:C$87,MATCH('PR Expenditure_7A'!$B236,'PR Expenditure_7A import-export'!$N$82:$N$87,0)),\"\")","v":""},null,0,{"$error":"#VALUE!"},null,null,{"$f":"IFERROR(INDEX('PR Expenditure_7A import-export'!I$82:I$87,MATCH('PR Expenditure_7A'!$B236,'PR Expenditure_7A import-export'!$N$82:$N$87,0)),\"\")","v":""},null,0,{"$error":"#VALUE!"}]
["Don't Show","IP13",{"$f":"IFERROR(INDEX('PR Expenditure_7A import-export'!A$82:A$87,MATCH('PR Expenditure_7A'!$B237,'PR Expenditure_7A import-export'!$N$82:$N$87,0)),\"\")","v":""},{"$f":"IFERROR(INDEX('PR Expenditure_7A import-export'!B$82:B$87,MATCH('PR Expenditure_7A'!$B237,'PR Expenditure_7A import-export'!$N$82:$N$87,0)),\"\")","v":""},{"$f":"IFERROR(INDEX('PR Expenditure_7A import-export'!C$82:C$87,MATCH('PR Expenditure_7A'!$B237,'PR Expenditure_7A import-export'!$N$82:$N$87,0)),\"\")","v":""},null,0,{"$error":"#VALUE!"},null,null,{"$f":"IFERROR(INDEX('PR Expenditure_7A import-export'!I$82:I$87,MATCH('PR Expenditure_7A'!$B237,'PR Expenditure_7A import-export'!$N$82:$N$87,0)),\"\")","v":""},null,0,{"$error":"#VALUE!"}]
["Don't Show","IP14",{"$f":"IFERROR(INDEX('PR Expenditure_7A import-export'!A$82:A$87,MATCH('PR Expenditure_7A'!$B238,'PR Expenditure_7A import-export'!$N$82:$N$87,0)),\"\")","v":""},{"$f":"IFERROR(INDEX('PR Expenditure_7A import-export'!B$82:B$87,MATCH('PR Expenditure_7A'!$B238,'PR Expenditure_7A import-export'!$N$82:$N$87,0)),\"\")","v":""},{"$f":"IFERROR(INDEX('PR Expenditure_7A import-export'!C$82:C$87,MATCH('PR Expenditure_7A'!$B238,'PR Expenditure_7A import-export'!$N$82:$N$87,0)),\"\")","v":""},null,0,{"$error":"#VALUE!"},null,null,{"$f":"IFERROR(INDEX('PR Expenditure_7A import-export'!I$82:I$87,MATCH('PR Expenditure_7A'!$B238,'PR Expenditure_7A import-export'!$N$82:$N$87,0)),\"\")","v":""},null,0,{"$error":"#VALUE!"}]
["Don't Show","IP15",{"$f":"IFERROR(INDEX('PR Expenditure_7A import-export'!A$82:A$87,MATCH('PR Expenditure_7A'!$B239,'PR Expenditure_7A import-export'!$N$82:$N$87,0)),\"\")","v":""},{"$f":"IFERROR(INDEX('PR Expenditure_7A import-export'!B$82:B$87,MATCH('PR Expenditure_7A'!$B239,'PR Expenditure_7A import-export'!$N$82:$N$87,0)),\"\")","v":""},{"$f":"IFERROR(INDEX('PR Expenditure_7A import-export'!C$82:C$87,MATCH('PR Expenditure_7A'!$B239,'PR Expenditure_7A import-export'!$N$82:$N$87,0)),\"\")","v":""},null,0,{"$error":"#VALUE!"},null,null,{"$f":"IFERROR(INDEX('PR Expenditure_7A import-export'!I$82:I$87,MATCH('PR Expenditure_7A'!$B239,'PR Expenditure_7A import-export'!$N$82:$N$87,0)),\"\")","v":""},null,0,{"$error":"#VALUE!"}]
["Don't Show","IP16",{"$f":"IFERROR(INDEX('PR Expenditure_7A import-export'!A$82:A$87,MATCH('PR Expenditure_7A'!$B240,'PR Expenditure_7A import-export'!$N$82:$N$87,0)),\"\")","v":""},{"$f":"IFERROR(INDEX('PR Expenditure_7A import-export'!B$82:B$87,MATCH('PR Expenditure_7A'!$B240,'PR Expenditure_7A import-export'!$N$82:$N$87,0)),\"\")","v":""},{"$f":"IFERROR(INDEX('PR Expenditure_7A import-export'!C$82:C$87,MATCH('PR Expenditure_7A'!$B240,'PR Expenditure_7A import-export'!$N$82:$N$87,0)),\"\")","v":""},null,0,{"$error":"#VALUE!"},null,null,{"$f":"IFERROR(INDEX('PR Expenditure_7A import-export'!I$82:I$87,MATCH('PR Expenditure_7A'!$B240,'PR Expenditure_7A import-export'!$N$82:$N$87,0)),\"\")","v":""},null,0,{"$error":"#VALUE!"}]
["Don't Show","IP17",{"$f":"IFERROR(INDEX('PR Expenditure_7A import-export'!A$82:A$87,MATCH('PR Expenditure_7A'!$B241,'PR Expenditure_7A import-export'!$N$82:$N$87,0)),\"\")","v":""},{"$f":"IFERROR(INDEX('PR Expenditure_7A import-export'!B$82:B$87,MATCH('PR Expenditure_7A'!$B241,'PR Expenditure_7A import-export'!$N$82:$N$87,0)),\"\")","v":""},{"$f":"IFERROR(INDEX('PR Expenditure_7A import-export'!C$82:C$87,MATCH('PR Expenditure_7A'!$B241,'PR Expenditure_7A import-export'!$N$82:$N$87,0)),\"\")","v":""},null,0,{"$error":"#VALUE!"},null,null,{"$f":"IFERROR(INDEX('PR Expenditure_7A import-export'!I$82:I$87,MATCH('PR Expenditure_7A'!$B241,'PR Expenditure_7A import-export'!$N$82:$N$87,0)),\"\")","v":""},null,0,{"$error":"#VALUE!"}]
["Don't Show","IP18",{"$f":"IFERROR(INDEX('PR Expenditure_7A import-export'!A$82:A$87,MATCH('PR Expenditure_7A'!$B242,'PR Expenditure_7A import-export'!$N$82:$N$87,0)),\"\")","v":""},{"$f":"IFERROR(INDEX('PR Expenditure_7A import-export'!B$82:B$87,MATCH('PR Expenditure_7A'!$B242,'PR Expenditure_7A import-export'!$N$82:$N$87,0)),\"\")","v":""},{"$f":"IFERROR(INDEX('PR Expenditure_7A import-export'!C$82:C$87,MATCH('PR Expenditure_7A'!$B242,'PR Expenditure_7A import-export'!$N$82:$N$87,0)),\"\")","v":""},null,0,{"$error":"#VALUE!"},null,null,{"$f":"IFERROR(INDEX('PR Expenditure_7A import-export'!I$82:I$87,MATCH('PR Expenditure_7A'!$B242,'PR Expenditure_7A import-export'!$N$82:$N$87,0)),\"\")","v":""},null,0,{"$error":"#VALUE!"}]
["Don't Show","IP19",{"$f":"IFERROR(INDEX('PR Expenditure_7A import-export'!A$82:A$87,MATCH('PR Expenditure_7A'!$B243,'PR Expenditure_7A import-export'!$N$82:$N$87,0)),\"\")","v":""},{"$f":"IFERROR(INDEX('PR Expenditure_7A import-export'!B$82:B$87,MATCH('PR Expenditure_7A'!$B243,'PR Expenditure_7A import-export'!$N$82:$N$87,0)),\"\")","v":""},{"$f":"IFERROR(INDEX('PR Expenditure_7A import-export'!C$82:C$87,MATCH('PR Expenditure_7A'!$B243,'PR Expenditure_7A import-export'!$N$82:$N$87,0)),\"\")","v":""},null,0,{"$error":"#VALUE!"},null,null,{"$f":"IFERROR(INDEX('PR Expenditure_7A import-export'!I$82:I$87,MATCH('PR Expenditure_7A'!$B243,'PR Expenditure_7A import-export'!$N$82:$N$87,0)),\"\")","v":""},null,0,{"$error":"#VALUE!"}]
["Don't Show","IP20",{"$f":"IFERROR(INDEX('PR Expenditure_7A import-export'!A$82:A$87,MATCH('PR Expenditure_7A'!$B244,'PR Expenditure_7A import-export'!$N$82:$N$87,0)),\"\")","v":""},{"$f":"IFERROR(INDEX('PR Expenditure_7A import-export'!B$82:B$87,MATCH('PR Expenditure_7A'!$B244,'PR Expenditure_7A import-export'!$N$82:$N$87,0)),\"\")","v":""},{"$f":"IFERROR(INDEX('PR Expenditure_7A import-export'!C$82:C$87,MATCH('PR Expenditure_7A'!$B244,'PR Expenditure_7A import-export'!$N$82:$N$87,0)),\"\")","v":""},null,0,{"$error":"#VALUE!"},null,null,{"$f":"IFERROR(INDEX('PR Expenditure_7A import-export'!I$82:I$87,MATCH('PR Expenditure_7A'!$B244,'PR Expenditure_7A import-export'!$N$82:$N$87,0)),\"\")","v":""},null,0,{"$error":"#VALUE!"}]
["Don't Show","IP21",{"$f":"IFERROR(INDEX('PR Expenditure_7A import-export'!A$82:A$87,MATCH('PR Expenditure_7A'!$B245,'PR Expenditure_7A import-export'!$N$82:$N$87,0)),\"\")","v":""},{"$f":"IFERROR(INDEX('PR Expenditure_7A import-export'!B$82:B$87,MATCH('PR Expenditure_7A'!$B245,'PR Expenditure_7A import-export'!$N$82:$N$87,0)),\"\")","v":""},{"$f":"IFERROR(INDEX('PR Expenditure_7A import-export'!C$82:C$87,MATCH('PR Expenditure_7A'!$B245,'PR Expenditure_7A import-export'!$N$82:$N$87,0)),\"\")","v":""},null,0,{"$error":"#VALUE!"},null,null,{"$f":"IFERROR(INDEX('PR Expenditure_7A import-export'!I$82:I$87,MATCH('PR Expenditure_7A'!$B245,'PR Expenditure_7A import-export'!$N$82:$N$87,0)),\"\")","v":""},null,0,{"$error":"#VALUE!"}]
["Don't Show","IP22",{"$f":"IFERROR(INDEX('PR Expenditure_7A import-export'!A$82:A$87,MATCH('PR Expenditure_7A'!$B246,'PR Expenditure_7A import-export'!$N$82:$N$87,0)),\"\")","v":""},{"$f":"IFERROR(INDEX('PR Expenditure_7A import-export'!B$82:B$87,MATCH('PR Expenditure_7A'!$B246,'PR Expenditure_7A import-export'!$N$82:$N$87,0)),\"\")","v":""},{"$f":"IFERROR(INDEX('PR Expenditure_7A import-export'!C$82:C$87,MATCH('PR Expenditure_7A'!$B246,'PR Expenditure_7A import-export'!$N$82:$N$87,0)),\"\")","v":""},null,0,{"$error":"#VALUE!"},null,null,{"$f":"IFERROR(INDEX('PR Expenditure_7A import-export'!I$82:I$87,MATCH('PR Expenditure_7A'!$B246,'PR Expenditure_7A import-export'!$N$82:$N$87,0)),\"\")","v":""},null,0,{"$error":"#VALUE!"}]
["Don't Show","IP23",{"$f":"IFERROR(INDEX('PR Expenditure_7A import-export'!A$82:A$87,MATCH('PR Expenditure_7A'!$B247,'PR Expenditure_7A import-export'!$N$82:$N$87,0)),\"\")","v":""},{"$f":"IFERROR(INDEX('PR Expenditure_7A import-export'!B$82:B$87,MATCH('PR Expenditure_7A'!$B247,'PR Expenditure_7A import-export'!$N$82:$N$87,0)),\"\")","v":""},{"$f":"IFERROR(INDEX('PR Expenditure_7A import-export'!C$82:C$87,MATCH('PR Expenditure_7A'!$B247,'PR Expenditure_7A import-export'!$N$82:$N$87,0)),\"\")","v":""},null,0,{"$error":"#VALUE!"},null,null,{"$f":"IFERROR(INDEX('PR Expenditure_7A import-export'!I$82:I$87,MATCH('PR Expenditure_7A'!$B247,'PR Expenditure_7A import-export'!$N$82:$N$87,0)),\"\")","v":""},null,0,{"$error":"#VALUE!"}]
["Don't Show","IP24",{"$f":"IFERROR(INDEX('PR Expenditure_7A import-export'!A$82:A$87,MATCH('PR Expenditure_7A'!$B248,'PR Expenditure_7A import-export'!$N$82:$N$87,0)),\"\")","v":""},{"$f":"IFERROR(INDEX('PR Expenditure_7A import-export'!B$82:B$87,MATCH('PR Expenditure_7A'!$B248,'PR Expenditure_7A import-export'!$N$82:$N$87,0)),\"\")","v":""},{"$f":"IFERROR(INDEX('PR Expenditure_7A import-export'!C$82:C$87,MATCH('PR Expenditure_7A'!$B248,'PR Expenditure_7A import-export'!$N$82:$N$87,0)),\"\")","v":""},null,0,{"$error":"#VALUE!"},null,null,{"$f":"IFERROR(INDEX('PR Expenditure_7A import-export'!I$82:I$87,MATCH('PR Expenditure_7A'!$B248,'PR Expenditure_7A import-export'!$N$82:$N$87,0)),\"\")","v":""},null,0,{"$error":"#VALUE!"}]
["Don't Show","IP25",{"$f":"IFERROR(INDEX('PR Expenditure_7A import-export'!A$82:A$87,MATCH('PR Expenditure_7A'!$B249,'PR Expenditure_7A import-export'!$N$82:$N$87,0)),\"\")","v":""},{"$f":"IFERROR(INDEX('PR Expenditure_7A import-export'!B$82:B$87,MATCH('PR Expenditure_7A'!$B249,'PR Expenditure_7A import-export'!$N$82:$N$87,0)),\"\")","v":""},{"$f":"IFERROR(INDEX('PR Expenditure_7A import-export'!C$82:C$87,MATCH('PR Expenditure_7A'!$B249,'PR Expenditure_7A import-export'!$N$82:$N$87,0)),\"\")","v":""},null,0,{"$error":"#VALUE!"},null,null,{"$f":"IFERROR(INDEX('PR Expenditure_7A import-export'!I$82:I$87,MATCH('PR Expenditure_7A'!$B249,'PR Expenditure_7A import-export'!$N$82:$N$87,0)),\"\")","v":""},null,0,{"$error":"#VALUE!"}]
["Don't Show","IP26",{"$f":"IFERROR(INDEX('PR Expenditure_7A import-export'!A$82:A$87,MATCH('PR Expenditure_7A'!$B250,'PR Expenditure_7A import-export'!$N$82:$N$87,0)),\"\")","v":""},{"$f":"IFERROR(INDEX('PR Expenditure_7A import-export'!B$82:B$87,MATCH('PR Expenditure_7A'!$B250,'PR Expenditure_7A import-export'!$N$82:$N$87,0)),\"\")","v":""},{"$f":"IFERROR(INDEX('PR Expenditure_7A import-export'!C$82:C$87,MATCH('PR Expenditure_7A'!$B250,'PR Expenditure_7A import-export'!$N$82:$N$87,0)),\"\")","v":""},null,0,{"$error":"#VALUE!"},null,null,{"$f":"IFERROR(INDEX('PR Expenditure_7A import-export'!I$82:I$87,MATCH('PR Expenditure_7A'!$B250,'PR Expenditure_7A import-export'!$N$82:$N$87,0)),\"\")","v":""},null,0,{"$error":"#VALUE!"}]
["Don't Show","IP27",{"$f":"IFERROR(INDEX('PR Expenditure_7A import-export'!A$82:A$87,MATCH('PR Expenditure_7A'!$B251,'PR Expenditure_7A import-export'!$N$82:$N$87,0)),\"\")","v":""},{"$f":"IFERROR(INDEX('PR Expenditure_7A import-export'!B$82:B$87,MATCH('PR Expenditure_7A'!$B251,'PR Expenditure_7A import-export'!$N$82:$N$87,0)),\"\")","v":""},{"$f":"IFERROR(INDEX('PR Expenditure_7A import-export'!C$82:C$87,MATCH('PR Expenditure_7A'!$B251,'PR Expenditure_7A import-export'!$N$82:$N$87,0)),\"\")","v":""},null,0,{"$error":"#VALUE!"},null,null,{"$f":"IFERROR(INDEX('PR Expenditure_7A import-export'!I$82:I$87,MATCH('PR Expenditure_7A'!$B251,'PR Expenditure_7A import-export'!$N$82:$N$87,0)),\"\")","v":""},null,0,{"$error":"#VALUE!"}]
["Don't Show","IP28",{"$f":"IFERROR(INDEX('PR Expenditure_7A import-export'!A$82:A$87,MATCH('PR Expenditure_7A'!$B252,'PR Expenditure_7A import-export'!$N$82:$N$87,0)),\"\")","v":""},{"$f":"IFERROR(INDEX('PR Expenditure_7A import-export'!B$82:B$87,MATCH('PR Expenditure_7A'!$B252,'PR Expenditure_7A import-export'!$N$82:$N$87,0)),\"\")","v":""},{"$f":"IFERROR(INDEX('PR Expenditure_7A import-export'!C$82:C$87,MATCH('PR Expenditure_7A'!$B252,'PR Expenditure_7A import-export'!$N$82:$N$87,0)),\"\")","v":""},null,0,{"$error":"#VALUE!"},null,null,{"$f":"IFERROR(INDEX('PR Expenditure_7A import-export'!I$82:I$87,MATCH('PR Expenditure_7A'!$B252,'PR Expenditure_7A import-export'!$N$82:$N$87,0)),\"\")","v":""},null,0,{"$error":"#VALUE!"}]
["Don't Show","IP29",{"$f":"IFERROR(INDEX('PR Expenditure_7A import-export'!A$82:A$87,MATCH('PR Expenditure_7A'!$B253,'PR Expenditure_7A import-export'!$N$82:$N$87,0)),\"\")","v":""},{"$f":"IFERROR(INDEX('PR Expenditure_7A import-export'!B$82:B$87,MATCH('PR Expenditure_7A'!$B253,'PR Expenditure_7A import-export'!$N$82:$N$87,0)),\"\")","v":""},{"$f":"IFERROR(INDEX('PR Expenditure_7A import-export'!C$82:C$87,MATCH('PR Expenditure_7A'!$B253,'PR Expenditure_7A import-export'!$N$82:$N$87,0)),\"\")","v":""},null,0,{"$error":"#VALUE!"},null,null,{"$f":"IFERROR(INDEX('PR Expenditure_7A import-export'!I$82:I$87,MATCH('PR Expenditure_7A'!$B253,'PR Expenditure_7A import-export'!$N$82:$N$87,0)),\"\")","v":""},null,0,{"$error":"#VALUE!"}]
["Don't Show","IP30",{"$f":"IFERROR(INDEX('PR Expenditure_7A import-export'!A$82:A$87,MATCH('PR Expenditure_7A'!$B254,'PR Expenditure_7A import-export'!$N$82:$N$87,0)),\"\")","v":""},{"$f":"IFERROR(INDEX('PR Expenditure_7A import-export'!B$82:B$87,MATCH('PR Expenditure_7A'!$B254,'PR Expenditure_7A import-export'!$N$82:$N$87,0)),\"\")","v":""},{"$f":"IFERROR(INDEX('PR Expenditure_7A import-export'!C$82:C$87,MATCH('PR Expenditure_7A'!$B254,'PR Expenditure_7A import-export'!$N$82:$N$87,0)),\"\")","v":""},null,0,{"$error":"#VALUE!"},null,null,{"$f":"IFERROR(INDEX('PR Expenditure_7A import-export'!I$82:I$87,MATCH('PR Expenditure_7A'!$B254,'PR Expenditure_7A import-export'!$N$82:$N$87,0)),\"\")","v":""},null,0,{"$error":"#VALUE!"}]
["Don't Show","IP31",{"$f":"IFERROR(INDEX('PR Expenditure_7A import-export'!A$82:A$87,MATCH('PR Expenditure_7A'!$B255,'PR Expenditure_7A import-export'!$N$82:$N$87,0)),\"\")","v":""},{"$f":"IFERROR(INDEX('PR Expenditure_7A import-export'!B$82:B$87,MATCH('PR Expenditure_7A'!$B255,'PR Expenditure_7A import-export'!$N$82:$N$87,0)),\"\")","v":""},{"$f":"IFERROR(INDEX('PR Expenditure_7A import-export'!C$82:C$87,MATCH('PR Expenditure_7A'!$B255,'PR Expenditure_7A import-export'!$N$82:$N$87,0)),\"\")","v":""},null,0,{"$error":"#VALUE!"},null,null,{"$f":"IFERROR(INDEX('PR Expenditure_7A import-export'!I$82:I$87,MATCH('PR Expenditure_7A'!$B255,'PR Expenditure_7A import-export'!$N$82:$N$87,0)),\"\")","v":""},null,0,{"$error":"#VALUE!"}]
["Don't Show","IP32",{"$f":"IFERROR(INDEX('PR Expenditure_7A import-export'!A$82:A$87,MATCH('PR Expenditure_7A'!$B256,'PR Expenditure_7A import-export'!$N$82:$N$87,0)),\"\")","v":""},{"$f":"IFERROR(INDEX('PR Expenditure_7A import-export'!B$82:B$87,MATCH('PR Expenditure_7A'!$B256,'PR Expenditure_7A import-export'!$N$82:$N$87,0)),\"\")","v":""},{"$f":"IFERROR(INDEX('PR Expenditure_7A import-export'!C$82:C$87,MATCH('PR Expenditure_7A'!$B256,'PR Expenditure_7A import-export'!$N$82:$N$87,0)),\"\")","v":""},null,0,{"$error":"#VALUE!"},null,null,{"$f":"IFERROR(INDEX('PR Expenditure_7A import-export'!I$82:I$87,MATCH('PR Expenditure_7A'!$B256,'PR Expenditure_7A import-export'!$N$82:$N$87,0)),\"\")","v":""},null,0,{"$error":"#VALUE!"}]
["Don't Show","IP33",{"$f":"IFERROR(INDEX('PR Expenditure_7A import-export'!A$82:A$87,MATCH('PR Expenditure_7A'!$B257,'PR Expenditure_7A import-export'!$N$82:$N$87,0)),\"\")","v":""},{"$f":"IFERROR(INDEX('PR Expenditure_7A import-export'!B$82:B$87,MATCH('PR Expenditure_7A'!$B257,'PR Expenditure_7A import-export'!$N$82:$N$87,0)),\"\")","v":""},{"$f":"IFERROR(INDEX('PR Expenditure_7A import-export'!C$82:C$87,MATCH('PR Expenditure_7A'!$B257,'PR Expenditure_7A import-export'!$N$82:$N$87,0)),\"\")","v":""},null,0,{"$error":"#VALUE!"},null,null,{"$f":"IFERROR(INDEX('PR Expenditure_7A import-export'!I$82:I$87,MATCH('PR Expenditure_7A'!$B257,'PR Expenditure_7A import-export'!$N$82:$N$87,0)),\"\")","v":""},null,0,{"$error":"#VALUE!"}]
["Don't Show","IP34",{"$f":"IFERROR(INDEX('PR Expenditure_7A import-export'!A$82:A$87,MATCH('PR Expenditure_7A'!$B258,'PR Expenditure_7A import-export'!$N$82:$N$87,0)),\"\")","v":""},{"$f":"IFERROR(INDEX('PR Expenditure_7A import-export'!B$82:B$87,MATCH('PR Expenditure_7A'!$B258,'PR Expenditure_7A import-export'!$N$82:$N$87,0)),\"\")","v":""},{"$f":"IFERROR(INDEX('PR Expenditure_7A import-export'!C$82:C$87,MATCH('PR Expenditure_7A'!$B258,'PR Expenditure_7A import-export'!$N$82:$N$87,0)),\"\")","v":""},null,0,{"$error":"#VALUE!"},null,null,{"$f":"IFERROR(INDEX('PR Expenditure_7A import-export'!I$82:I$87,MATCH('PR Expenditure_7A'!$B258,'PR Expenditure_7A import-export'!$N$82:$N$87,0)),\"\")","v":""},null,0,{"$error":"#VALUE!"}]
["Don't Show","IP35",{"$f":"IFERROR(INDEX('PR Expenditure_7A import-export'!A$82:A$87,MATCH('PR Expenditure_7A'!$B259,'PR Expenditure_7A import-export'!$N$82:$N$87,0)),\"\")","v":""},{"$f":"IFERROR(INDEX('PR Expenditure_7A import-export'!B$82:B$87,MATCH('PR Expenditure_7A'!$B259,'PR Expenditure_7A import-export'!$N$82:$N$87,0)),\"\")","v":""},{"$f":"IFERROR(INDEX('PR Expenditure_7A import-export'!C$82:C$87,MATCH('PR Expenditure_7A'!$B259,'PR Expenditure_7A import-export'!$N$82:$N$87,0)),\"\")","v":""},null,0,{"$error":"#VALUE!"},null,null,{"$f":"IFERROR(INDEX('PR Expenditure_7A import-export'!I$82:I$87,MATCH('PR Expenditure_7A'!$B259,'PR Expenditure_7A import-export'!$N$82:$N$87,0)),\"\")","v":""},null,0,{"$error":"#VALUE!"}]
["Don't Show","IP36",{"$f":"IFERROR(INDEX('PR Expenditure_7A import-export'!A$82:A$87,MATCH('PR Expenditure_7A'!$B260,'PR Expenditure_7A import-export'!$N$82:$N$87,0)),\"\")","v":""},{"$f":"IFERROR(INDEX('PR Expenditure_7A import-export'!B$82:B$87,MATCH('PR Expenditure_7A'!$B260,'PR Expenditure_7A import-export'!$N$82:$N$87,0)),\"\")","v":""},{"$f":"IFERROR(INDEX('PR Expenditure_7A import-export'!C$82:C$87,MATCH('PR Expenditure_7A'!$B260,'PR Expenditure_7A import-export'!$N$82:$N$87,0)),\"\")","v":""},null,0,{"$error":"#VALUE!"},null,null,{"$f":"IFERROR(INDEX('PR Expenditure_7A import-export'!I$82:I$87,MATCH('PR Expenditure_7A'!$B260,'PR Expenditure_7A import-export'!$N$82:$N$87,0)),\"\")","v":""},null,0,{"$error":"#VALUE!"}]
["Don't Show","IP37",{"$f":"IFERROR(INDEX('PR Expenditure_7A import-export'!A$82:A$87,MATCH('PR Expenditure_7A'!$B261,'PR Expenditure_7A import-export'!$N$82:$N$87,0)),\"\")","v":""},{"$f":"IFERROR(INDEX('PR Expenditure_7A import-export'!B$82:B$87,MATCH('PR Expenditure_7A'!$B261,'PR Expenditure_7A import-export'!$N$82:$N$87,0)),\"\")","v":""},{"$f":"IFERROR(INDEX('PR Expenditure_7A import-export'!C$82:C$87,MATCH('PR Expenditure_7A'!$B261,'PR Expenditure_7A import-export'!$N$82:$N$87,0)),\"\")","v":""},null,0,{"$error":"#VALUE!"},null,null,{"$f":"IFERROR(INDEX('PR Expenditure_7A import-export'!I$82:I$87,MATCH('PR Expenditure_7A'!$B261,'PR Expenditure_7A import-export'!$N$82:$N$87,0)),\"\")","v":""},null,0,{"$error":"#VALUE!"}]
["Don't Show","IP38",{"$f":"IFERROR(INDEX('PR Expenditure_7A import-export'!A$82:A$87,MATCH('PR Expenditure_7A'!$B262,'PR Expenditure_7A import-export'!$N$82:$N$87,0)),\"\")","v":""},{"$f":"IFERROR(INDEX('PR Expenditure_7A import-export'!B$82:B$87,MATCH('PR Expenditure_7A'!$B262,'PR Expenditure_7A import-export'!$N$82:$N$87,0)),\"\")","v":""},{"$f":"IFERROR(INDEX('PR Expenditure_7A import-export'!C$82:C$87,MATCH('PR Expenditure_7A'!$B262,'PR Expenditure_7A import-export'!$N$82:$N$87,0)),\"\")","v":""},null,0,{"$error":"#VALUE!"},null,null,{"$f":"IFERROR(INDEX('PR Expenditure_7A import-export'!I$82:I$87,MATCH('PR Expenditure_7A'!$B262,'PR Expenditure_7A import-export'!$N$82:$N$87,0)),\"\")","v":""},null,0,{"$error":"#VALUE!"}]
["Don't Show","IP39",{"$f":"IFERROR(INDEX('PR Expenditure_7A import-export'!A$82:A$87,MATCH('PR Expenditure_7A'!$B263,'PR Expenditure_7A import-export'!$N$82:$N$87,0)),\"\")","v":""},{"$f":"IFERROR(INDEX('PR Expenditure_7A import-export'!B$82:B$87,MATCH('PR Expenditure_7A'!$B263,'PR Expenditure_7A import-export'!$N$82:$N$87,0)),\"\")","v":""},{"$f":"IFERROR(INDEX('PR Expenditure_7A import-export'!C$82:C$87,MATCH('PR Expenditure_7A'!$B263,'PR Expenditure_7A import-export'!$N$82:$N$87,0)),\"\")","v":""},null,0,{"$error":"#VALUE!"},null,null,{"$f":"IFERROR(INDEX('PR Expenditure_7A import-export'!I$82:I$87,MATCH('PR Expenditure_7A'!$B263,'PR Expenditure_7A import-export'!$N$82:$N$87,0)),\"\")","v":""},null,0,{"$error":"#VALUE!"}]
["Don't Show","IP40",{"$f":"IFERROR(INDEX('PR Expenditure_7A import-export'!A$82:A$87,MATCH('PR Expenditure_7A'!$B264,'PR Expenditure_7A import-export'!$N$82:$N$87,0)),\"\")","v":""},{"$f":"IFERROR(INDEX('PR Expenditure_7A import-export'!B$82:B$87,MATCH('PR Expenditure_7A'!$B264,'PR Expenditure_7A import-export'!$N$82:$N$87,0)),\"\")","v":""},{"$f":"IFERROR(INDEX('PR Expenditure_7A import-export'!C$82:C$87,MATCH('PR Expenditure_7A'!$B264,'PR Expenditure_7A import-export'!$N$82:$N$87,0)),\"\")","v":""},null,0,{"$error":"#VALUE!"},null,null,{"$f":"IFERROR(INDEX('PR Expenditure_7A import-export'!I$82:I$87,MATCH('PR Expenditure_7A'!$B264,'PR Expenditure_7A import-export'!$N$82:$N$87,0)),\"\")","v":""},null,0,{"$error":"#VALUE!"}]
["Don't Show","IP41",{"$f":"IFERROR(INDEX('PR Expenditure_7A import-export'!A$82:A$87,MATCH('PR Expenditure_7A'!$B265,'PR Expenditure_7A import-export'!$N$82:$N$87,0)),\"\")","v":""},{"$f":"IFERROR(INDEX('PR Expenditure_7A import-export'!B$82:B$87,MATCH('PR Expenditure_7A'!$B265,'PR Expenditure_7A import-export'!$N$82:$N$87,0)),\"\")","v":""},{"$f":"IFERROR(INDEX('PR Expenditure_7A import-export'!C$82:C$87,MATCH('PR Expenditure_7A'!$B265,'PR Expenditure_7A import-export'!$N$82:$N$87,0)),\"\")","v":""},null,0,{"$error":"#VALUE!"},null,null,{"$f":"IFERROR(INDEX('PR Expenditure_7A import-export'!I$82:I$87,MATCH('PR Expenditure_7A'!$B265,'PR Expenditure_7A import-export'!$N$82:$N$87,0)),\"\")","v":""},null,0,{"$error":"#VALUE!"}]
["Don't Show","IP42",{"$f":"IFERROR(INDEX('PR Expenditure_7A import-export'!A$82:A$87,MATCH('PR Expenditure_7A'!$B266,'PR Expenditure_7A import-export'!$N$82:$N$87,0)),\"\")","v":""},{"$f":"IFERROR(INDEX('PR Expenditure_7A import-export'!B$82:B$87,MATCH('PR Expenditure_7A'!$B266,'PR Expenditure_7A import-export'!$N$82:$N$87,0)),\"\")","v":""},{"$f":"IFERROR(INDEX('PR Expenditure_7A import-export'!C$82:C$87,MATCH('PR Expenditure_7A'!$B266,'PR Expenditure_7A import-export'!$N$82:$N$87,0)),\"\")","v":""},null,0,{"$error":"#VALUE!"},null,null,{"$f":"IFERROR(INDEX('PR Expenditure_7A import-export'!I$82:I$87,MATCH('PR Expenditure_7A'!$B266,'PR Expenditure_7A import-export'!$N$82:$N$87,0)),\"\")","v":""},null,0,{"$error":"#VALUE!"}]
["Don't Show","IP43",{"$f":"IFERROR(INDEX('PR Expenditure_7A import-export'!A$82:A$87,MATCH('PR Expenditure_7A'!$B267,'PR Expenditure_7A import-export'!$N$82:$N$87,0)),\"\")","v":""},{"$f":"IFERROR(INDEX('PR Expenditure_7A import-export'!B$82:B$87,MATCH('PR Expenditure_7A'!$B267,'PR Expenditure_7A import-export'!$N$82:$N$87,0)),\"\")","v":""},{"$f":"IFERROR(INDEX('PR Expenditure_7A import-export'!C$82:C$87,MATCH('PR Expenditure_7A'!$B267,'PR Expenditure_7A import-export'!$N$82:$N$87,0)),\"\")","v":""},null,0,{"$error":"#VALUE!"},null,null,{"$f":"IFERROR(INDEX('PR Expenditure_7A import-export'!I$82:I$87,MATCH('PR Expenditure_7A'!$B267,'PR Expenditure_7A import-export'!$N$82:$N$87,0)),\"\")","v":""},null,0,{"$error":"#VALUE!"}]
["Don't Show","IP44",{"$f":"IFERROR(INDEX('PR Expenditure_7A import-export'!A$82:A$87,MATCH('PR Expenditure_7A'!$B268,'PR Expenditure_7A import-export'!$N$82:$N$87,0)),\"\")","v":""},{"$f":"IFERROR(INDEX('PR Expenditure_7A import-export'!B$82:B$87,MATCH('PR Expenditure_7A'!$B268,'PR Expenditure_7A import-export'!$N$82:$N$87,0)),\"\")","v":""},{"$f":"IFERROR(INDEX('PR Expenditure_7A import-export'!C$82:C$87,MATCH('PR Expenditure_7A'!$B268,'PR Expenditure_7A import-export'!$N$82:$N$87,0)),\"\")","v":""},null,0,{"$error":"#VALUE!"},null,null,{"$f":"IFERROR(INDEX('PR Expenditure_7A import-export'!I$82:I$87,MATCH('PR Expenditure_7A'!$B268,'PR Expenditure_7A import-export'!$N$82:$N$87,0)),\"\")","v":""},null,0,{"$error":"#VALUE!"}]
["Don't Show","IP45",{"$f":"IFERROR(INDEX('PR Expenditure_7A import-export'!A$82:A$87,MATCH('PR Expenditure_7A'!$B269,'PR Expenditure_7A import-export'!$N$82:$N$87,0)),\"\")","v":""},{"$f":"IFERROR(INDEX('PR Expenditure_7A import-export'!B$82:B$87,MATCH('PR Expenditure_7A'!$B269,'PR Expenditure_7A import-export'!$N$82:$N$87,0)),\"\")","v":""},{"$f":"IFERROR(INDEX('PR Expenditure_7A import-export'!C$82:C$87,MATCH('PR Expenditure_7A'!$B269,'PR Expenditure_7A import-export'!$N$82:$N$87,0)),\"\")","v":""},null,0,{"$error":"#VALUE!"},null,null,{"$f":"IFERROR(INDEX('PR Expenditure_7A import-export'!I$82:I$87,MATCH('PR Expenditure_7A'!$B269,'PR Expenditure_7A import-export'!$N$82:$N$87,0)),\"\")","v":""},null,0,{"$error":"#VALUE!"}]
["Don't Show","IP46",{"$f":"IFERROR(INDEX('PR Expenditure_7A import-export'!A$82:A$87,MATCH('PR Expenditure_7A'!$B270,'PR Expenditure_7A import-export'!$N$82:$N$87,0)),\"\")","v":""},{"$f":"IFERROR(INDEX('PR Expenditure_7A import-export'!B$82:B$87,MATCH('PR Expenditure_7A'!$B270,'PR Expenditure_7A import-export'!$N$82:$N$87,0)),\"\")","v":""},{"$f":"IFERROR(INDEX('PR Expenditure_7A import-export'!C$82:C$87,MATCH('PR Expenditure_7A'!$B270,'PR Expenditure_7A import-export'!$N$82:$N$87,0)),\"\")","v":""},null,0,{"$error":"#VALUE!"},null,null,{"$f":"IFERROR(INDEX('PR Expenditure_7A import-export'!I$82:I$87,MATCH('PR Expenditure_7A'!$B270,'PR Expenditure_7A import-export'!$N$82:$N$87,0)),\"\")","v":""},null,0,{"$error":"#VALUE!"}]
["Don't Show","IP47",{"$f":"IFERROR(INDEX('PR Expenditure_7A import-export'!A$82:A$87,MATCH('PR Expenditure_7A'!$B271,'PR Expenditure_7A import-export'!$N$82:$N$87,0)),\"\")","v":""},{"$f":"IFERROR(INDEX('PR Expenditure_7A import-export'!B$82:B$87,MATCH('PR Expenditure_7A'!$B271,'PR Expenditure_7A import-export'!$N$82:$N$87,0)),\"\")","v":""},{"$f":"IFERROR(INDEX('PR Expenditure_7A import-export'!C$82:C$87,MATCH('PR Expenditure_7A'!$B271,'PR Expenditure_7A import-export'!$N$82:$N$87,0)),\"\")","v":""},null,0,{"$error":"#VALUE!"},null,null,{"$f":"IFERROR(INDEX('PR Expenditure_7A import-export'!I$82:I$87,MATCH('PR Expenditure_7A'!$B271,'PR Expenditure_7A import-export'!$N$82:$N$87,0)),\"\")","v":""},null,0,{"$error":"#VALUE!"}]
["Don't Show","IP48",{"$f":"IFERROR(INDEX('PR Expenditure_7A import-export'!A$82:A$87,MATCH('PR Expenditure_7A'!$B272,'PR Expenditure_7A import-export'!$N$82:$N$87,0)),\"\")","v":""},{"$f":"IFERROR(INDEX('PR Expenditure_7A import-export'!B$82:B$87,MATCH('PR Expenditure_7A'!$B272,'PR Expenditure_7A import-export'!$N$82:$N$87,0)),\"\")","v":""},{"$f":"IFERROR(INDEX('PR Expenditure_7A import-export'!C$82:C$87,MATCH('PR Expenditure_7A'!$B272,'PR Expenditure_7A import-export'!$N$82:$N$87,0)),\"\")","v":""},null,0,{"$error":"#VALUE!"},null,null,{"$f":"IFERROR(INDEX('PR Expenditure_7A import-export'!I$82:I$87,MATCH('PR Expenditure_7A'!$B272,'PR Expenditure_7A import-export'!$N$82:$N$87,0)),\"\")","v":""},null,0,{"$error":"#VALUE!"}]
["Don't Show","IP49",{"$f":"IFERROR(INDEX('PR Expenditure_7A import-export'!A$82:A$87,MATCH('PR Expenditure_7A'!$B273,'PR Expenditure_7A import-export'!$N$82:$N$87,0)),\"\")","v":""},{"$f":"IFERROR(INDEX('PR Expenditure_7A import-export'!B$82:B$87,MATCH('PR Expenditure_7A'!$B273,'PR Expenditure_7A import-export'!$N$82:$N$87,0)),\"\")","v":""},{"$f":"IFERROR(INDEX('PR Expenditure_7A import-export'!C$82:C$87,MATCH('PR Expenditure_7A'!$B273,'PR Expenditure_7A import-export'!$N$82:$N$87,0)),\"\")","v":""},null,0,{"$error":"#VALUE!"},null,null,{"$f":"IFERROR(INDEX('PR Expenditure_7A import-export'!I$82:I$87,MATCH('PR Expenditure_7A'!$B273,'PR Expenditure_7A import-export'!$N$82:$N$87,0)),\"\")","v":""},null,0,{"$error":"#VALUE!"}]
["Don't Show","IP50",{"$f":"IFERROR(INDEX('PR Expenditure_7A import-export'!A$82:A$87,MATCH('PR Expenditure_7A'!$B274,'PR Expenditure_7A import-export'!$N$82:$N$87,0)),\"\")","v":""},{"$f":"IFERROR(INDEX('PR Expenditure_7A import-export'!B$82:B$87,MATCH('PR Expenditure_7A'!$B274,'PR Expenditure_7A import-export'!$N$82:$N$87,0)),\"\")","v":""},{"$f":"IFERROR(INDEX('PR Expenditure_7A import-export'!C$82:C$87,MATCH('PR Expenditure_7A'!$B274,'PR Expenditure_7A import-export'!$N$82:$N$87,0)),\"\")","v":""},null,0,{"$error":"#VALUE!"},null,null,{"$f":"IFERROR(INDEX('PR Expenditure_7A import-export'!I$82:I$87,MATCH('PR Expenditure_7A'!$B274,'PR Expenditure_7A import-export'!$N$82:$N$87,0)),\"\")","v":""},null,0,{"$error":"#VALUE!"}]
["Show",null,"Grand Total",null,{"$f":"ROUND(SUM(E225:E274),2)","v":5743857.3399999999},{"$f":"ROUND(SUM(F225:F274),2)","v":1056654.67},{"$f":"ROUND(SUM(G225:G274),2)","v":4687202.67},{"$f":"(F275/E275)*100","v":18.396255468280831},null,null,{"$f":"ROUND(SUM(K225:K274),2)","v":5743857.3399999999},{"$f":"ROUND(SUM(L225:L274),2)","v":1056654.67},{"$f":"ROUND(SUM(M225:M274),2)","v":4687202.67},{"$f":"(L275/K275)","v":0.18396255468280831}]
[]
["Show"]
["Show",null,"Validation of Grand Total ",null,{"$f":"IF(AND(ROUND(E99,0)=ROUND(E220,0),ROUND(E220,0)=ROUND(E275,0)),\"OK\",\"WARNING - Sum of the three tables not matching\")","v":"OK"},{"$f":"IF(AND(ROUND(F99,0)=ROUND(F220,0),ROUND(F220,0)=ROUND(F275,0)),\"OK\",\"WARNING - Sum of the three tables not matching\")","v":"OK"},null,null,null,null,{"$f":"IF(AND(ROUND(K99,0)=ROUND(K220,0),ROUND(K220,0)=ROUND(K275,0)),\"OK\",\"WARNING - Sum of the three tables not matching\")","v":"OK"},{"$f":"IF(AND(ROUND(L99,0)=ROUND(L220,0),ROUND(L220,0)=ROUND(L275,0)),\"OK\",\"WARNING - Sum of the three tables not matching\")","v":"OK"}]

{"sheet":"PR Expenditure_7A import-export","index":31,"n_rows":105,"n_cols":28,"rows_kept":105,"cut":false,"hidden":true,"merged":[]}
["Costing Dimension (Cost Grouping)",null,"Budget for Reporting Period","Actual Expenditure","Budget Vs Actual Variances","Absorption Rate","Explanation of Variances (mandatory for all percentages below 95% & above 105%)",null,"Cumulative Budget","Cumulative Actual Expenditure","Cumulative Budget Vs Actuals Variances","Absorption Rate",-1,null,"Record ID","Cost Grouping Number","Cost Grouping Number"]
["[Costing Dimension (Cost Grouping)]",null,"[Budget for Reporting Period]",{"$f":"IFERROR(INDEX('PR Expenditure_7A'!F$9:F$98,MATCH('PR Expenditure_7A import-export'!N2,'PR Expenditure_7A'!B$9:B$98,0)),\"\")","v":""},null,null,null,null,"[Cumulative Budget]",{"$f":"IFERROR(INDEX('PR Expenditure_7A'!L$9:L$98,MATCH('PR Expenditure_7A import-export'!N2,'PR Expenditure_7A'!B$9:B$98,0)),\"\")","v":""},null,null,{"$f":"M1+1","v":0},{"$f":"\"Costgrp\"&M2","v":"Costgrp0"},"[Record ID]","[Cost Grouping Number]","[Cost Grouping Number]"]
["1. Human Resources (HR)",null,1353058.12011834,{"$f":"IFERROR(INDEX('PR Expenditure_7A'!F$9:F$98,MATCH('PR Expenditure_7A import-export'!N3,'PR Expenditure_7A'!B$9:B$98,0)),\"\")","v":475536.8299999999},null,null,null,null,1353058.12011834,{"$f":"IFERROR(INDEX('PR Expenditure_7A'!L$9:L$98,MATCH('PR Expenditure_7A import-export'!N3,'PR Expenditure_7A'!B$9:B$98,0)),\"\")","v":475536.8299999999},null,null,{"$f":"M2+1","v":1},{"$f":"\"Costgrp\"&M3","v":"Costgrp1"},"a2G36000001u8EVEAY",null,1]
["10. Communication Material and Publications (CMP)",null,86236.2105099576,{"$f":"IFERROR(INDEX('PR Expenditure_7A'!F$9:F$98,MATCH('PR Expenditure_7A import-export'!N4,'PR Expenditure_7A'!B$9:B$98,0)),\"\")","v":0},null,null,null,null,86236.2105099576,{"$f":"IFERROR(INDEX('PR Expenditure_7A'!L$9:L$98,MATCH('PR Expenditure_7A import-export'!N4,'PR Expenditure_7A'!B$9:B$98,0)),\"\")","v":0},null,null,2,"Costgrp2","a2G36000001u8DgEAI",null,10]
["11. Programme Administration costs (PA)",null,516491.998233644,{"$f":"IFERROR(INDEX('PR Expenditure_7A'!F$9:F$98,MATCH('PR Expenditure_7A import-export'!N5,'PR Expenditure_7A'!B$9:B$98,0)),\"\")","v":114757.96999999999},null,null,null,null,516491.998233644,{"$f":"IFERROR(INDEX('PR Expenditure_7A'!L$9:L$98,MATCH('PR Expenditure_7A import-export'!N5,'PR Expenditure_7A'!B$9:B$98,0)),\"\")","v":114757.96999999999},null,null,3,"Costgrp3","a2G36000001u8ECEAY",null,11]
["12. Living support to client/ target population (LSCTP)",null,315099.605819922,{"$f":"IFERROR(INDEX('PR Expenditure_7A'!F$9:F$98,MATCH('PR Expenditure_7A import-export'!N6,'PR Expenditure_7A'!B$9:B$98,0)),\"\")","v":105.49},null,null,null,null,315099.605819922,{"$f":"IFERROR(INDEX('PR Expenditure_7A'!L$9:L$98,MATCH('PR Expenditure_7A import-export'!N6,'PR Expenditure_7A'!B$9:B$98,0)),\"\")","v":105.49},null,null,4,"Costgrp4","a2G36000001u8E2EAI",null,12]
["13. Payment for Results",null,0,{"$f":"IFERROR(INDEX('PR Expenditure_7A'!F$9:F$98,MATCH('PR Expenditure_7A import-export'!N7,'PR Expenditure_7A'!B$9:B$98,0)),\"\")","v":0},null,null,null,null,0,{"$f":"IFERROR(INDEX('PR Expenditure_7A'!L$9:L$98,MATCH('PR Expenditure_7A import-export'!N7,'PR Expenditure_7A'!B$9:B$98,0)),\"\")","v":0},null,null,5,"Costgrp5","a2G36000001u8FCEAY",null,13]
["2. Travel related costs (TRC)",null,696858.44104419602,{"$f":"IFERROR(INDEX('PR Expenditure_7A'!F$9:F$98,MATCH('PR Expenditure_7A import-export'!N8,'PR Expenditure_7A'!B$9:B$98,0)),\"\")","v":70725.910000000018},null,null,null,null,696858.44104419602,{"$f":"IFERROR(INDEX('PR Expenditure_7A'!L$9:L$98,MATCH('PR Expenditure_7A import-export'!N8,'PR Expenditure_7A'!B$9:B$98,0)),\"\")","v":70725.910000000018},null,null,6,"Costgrp6","a2G36000001u8DiEAI",null,2]
["3. External Professional services (EPS)",null,91784.324300579901,{"$f":"IFERROR(INDEX('PR Expenditure_7A'!F$9:F$98,MATCH('PR Expenditure_7A import-export'!N9,'PR Expenditure_7A'!B$9:B$98,0)),\"\")","v":3400},null,null,null,null,91784.324300579901,{"$f":"IFERROR(INDEX('PR Expenditure_7A'!L$9:L$98,MATCH('PR Expenditure_7A import-export'!N9,'PR Expenditure_7A'!B$9:B$98,0)),\"\")","v":3400},null,null,7,"Costgrp7","a2G36000001u8EIEAY",null,3]
["4. Health Products - Pharmaceutical Products (HPPP)",null,1001500.19,{"$f":"IFERROR(INDEX('PR Expenditure_7A'!F$9:F$98,MATCH('PR Expenditure_7A import-export'!N10,'PR Expenditure_7A'!B$9:B$98,0)),\"\")","v":188288.44999999998},null,null,null,null,1001500.19,{"$f":"IFERROR(INDEX('PR Expenditure_7A'!L$9:L$98,MATCH('PR Expenditure_7A import-export'!N10,'PR Expenditure_7A'!B$9:B$98,0)),\"\")","v":188288.44999999998},null,null,8,"Costgrp8","a2G36000001u8EAEAY",null,4]
["5. Health Products - Non-Pharmaceuticals (HPNP)",null,766761.02,{"$f":"IFERROR(INDEX('PR Expenditure_7A'!F$9:F$98,MATCH('PR Expenditure_7A import-export'!N11,'PR Expenditure_7A'!B$9:B$98,0)),\"\")","v":73008.389999999985},null,null,null,null,766761.02,{"$f":"IFERROR(INDEX('PR Expenditure_7A'!L$9:L$98,MATCH('PR Expenditure_7A import-export'!N11,'PR Expenditure_7A'!B$9:B$98,0)),\"\")","v":73008.389999999985},null,null,9,"Costgrp9","a2G36000001u8DsEAI",null,5]
["6. Health Products - Equipment (HPE)",null,299259.82,{"$f":"IFERROR(INDEX('PR Expenditure_7A'!F$9:F$98,MATCH('PR Expenditure_7A import-export'!N12,'PR Expenditure_7A'!B$9:B$98,0)),\"\")","v":5170.7299999999996},null,null,null,null,299259.82,{"$f":"IFERROR(INDEX('PR Expenditure_7A'!L$9:L$98,MATCH('PR Expenditure_7A import-export'!N12,'PR Expenditure_7A'!B$9:B$98,0)),\"\")","v":5170.7299999999996},null,null,10,"Costgrp10","a2G36000001u8DnEAI",null,6]
["7. Procurement and Supply-Chain Management costs (PSM)",null,528283.17775999999,{"$f":"IFERROR(INDEX('PR Expenditure_7A'!F$9:F$98,MATCH('PR Expenditure_7A import-export'!N13,'PR Expenditure_7A'!B$9:B$98,0)),\"\")","v":55753.53},null,null,null,null,528283.17775999999,{"$f":"IFERROR(INDEX('PR Expenditure_7A'!L$9:L$98,MATCH('PR Expenditure_7A import-export'!N13,'PR Expenditure_7A'!B$9:B$98,0)),\"\")","v":55753.53},null,null,11,"Costgrp11","a2G36000001u8DqEAI",null,7]
["8. Infrastructure (INF)",null,24155,{"$f":"IFERROR(INDEX('PR Expenditure_7A'!F$9:F$98,MATCH('PR Expenditure_7A import-export'!N14,'PR Expenditure_7A'!B$9:B$98,0)),\"\")","v":5417.73},null,null,null,null,24155,{"$f":"IFERROR(INDEX('PR Expenditure_7A'!L$9:L$98,MATCH('PR Expenditure_7A import-export'!N14,'PR Expenditure_7A'!B$9:B$98,0)),\"\")","v":5417.73},null,null,12,"Costgrp12","a2G36000001u8EZEAY",null,8]
["9. Non-health equipment (NHP)",null,64369.436087100003,{"$f":"IFERROR(INDEX('PR Expenditure_7A'!F$9:F$98,MATCH('PR Expenditure_7A import-export'!N15,'PR Expenditure_7A'!B$9:B$98,0)),\"\")","v":64489.639999999985},null,null,null,null,64369.436087100003,{"$f":"IFERROR(INDEX('PR Expenditure_7A'!L$9:L$98,MATCH('PR Expenditure_7A import-export'!N15,'PR Expenditure_7A'!B$9:B$98,0)),\"\")","v":64489.639999999985},null,null,13,"Costgrp13","a2G36000001u8EREAY",null,9]
[null,null,null,null,null,null,null,null,null,null,null,null,-1,null,"Record ID","Cost Grouping Number","Cost Input Number"]
["[Costing Dimension (Cost Input)]",null,"[Budget for Reporting Period]",{"$f":"IFERROR(INDEX('PR Expenditure_7A'!F$9:F$98,MATCH('PR Expenditure_7A import-export'!N17,'PR Expenditure_7A'!B$9:B$25,0)),\"\")","v":""},null,null,null,null,"[Cumulative Budget]",{"$f":"IFERROR(INDEX('PR Expenditure_7A'!L$9:L$98,MATCH('PR Expenditure_7A import-export'!N17,'PR Expenditure_7A'!B$9:B$25,0)),\"\")","v":""},null,null,{"$f":"M16+1","v":0},{"$f":"\"Costgrp\"&M17","v":"Costgrp0"},"[Record ID]","[Cost Grouping Number]","[Cost Input Number]"]
[null,null,null,null,null,null,null,null,null,null,null,null,-1,null,"Record ID",null,null,null,"Cost Input"]
[{"$f":"IFERROR(INDEX('PR Expenditure_7A'!C$9:C$25,MATCH('PR Expenditure_7A import-export'!N19,'PR Expenditure_7A'!B$9:B$25,0)),\"\")","v":""},null,"[Budget for Reporting Period]",{"$f":"IFERROR(INDEX('PR Expenditure_7A'!F$9:F$98,MATCH('PR Expenditure_7A import-export'!N19,'PR Expenditure_7A'!B$9:B$25,0)),\"\")","v":""},null,null,null,null,"[Cumulative Budget]",{"$f":"IFERROR(INDEX('PR Expenditure_7A'!L$9:L$98,MATCH('PR Expenditure_7A import-export'!N19,'PR Expenditure_7A'!B$9:B$25,0)),\"\")","v":""},null,null,0,{"$f":"\"Costgrpnew\"&M19","v":"Costgrpnew0"},"[Record ID]",null,null,null,{"$f":"IF(A19<>\"\",VLOOKUP(A19,'Reference Records'!$E$221:$G$222,3,FALSE),\"\")","v":""}]
[]
["Modular Approach - Modules","Modular Approach - Interventions","Budget for Reporting Period","Actual Expenditure","Budget Vs Actual Variances","Absorption Rate","Explanation of Variances (mandatory for all percentages below 95% & above 105%)",null,"Cumulative Budget","Cumulative Actual Expenditure","Cumulative Budget Vs Actuals Variances","Absorption Rate",-1,null,"Record ID"]
["[Module]","[Intervention]","[Budget for Reporting Period]",{"$f":"IFERROR(INDEX('PR Expenditure_7A'!F$104:F$203,MATCH('PR Expenditure_7A import-export'!N22,'PR Expenditure_7A'!B$104:B$203,0)),\"\")","v":""},null,null,null,null,"[Cumulative Budget]",{"$f":"IFERROR(INDEX('PR Expenditure_7A'!L$104:L$203,MATCH('PR Expenditure_7A import-export'!N22,'PR Expenditure_7A'!B$104:B$203,0)),\"\")","v":""},null,null,{"$f":"M21+1","v":0},{"$f":"\"Int\"&M22","v":"Int0"},"[Record ID]"]
["Comprehensive prevention programs for people who inject drugs (PWID) and their partners","Behavioral interventions for PWID",4785.3220048031899,{"$f":"IFERROR(INDEX('PR Expenditure_7A'!F$104:F$203,MATCH('PR Expenditure_7A import-export'!N23,'PR Expenditure_7A'!B$104:B$203,0)),\"\")","v":0},null,null,null,null,4785.3220048031899,{"$f":"IFERROR(INDEX('PR Expenditure_7A'!L$104:L$203,MATCH('PR Expenditure_7A import-export'!N23,'PR Expenditure_7A'!B$104:B$203,0)),\"\")","v":0},null,null,{"$f":"M22+1","v":1},{"$f":"\"Int\"&M23","v":"Int1"},"a2G36000001u8DeEAI"]
["TB care and prevention","Case detection and diagnosis",493731.80463605799,{"$f":"IFERROR(INDEX('PR Expenditure_7A'!F$104:F$203,MATCH('PR Expenditure_7A import-export'!N24,'PR Expenditure_7A'!B$104:B$203,0)),\"\")","v":78714.19},null,null,null,null,493731.80463605799,{"$f":"IFERROR(INDEX('PR Expenditure_7A'!L$104:L$203,MATCH('PR Expenditure_7A import-export'!N24,'PR Expenditure_7A'!B$104:B$203,0)),\"\")","v":78714.19},null,null,2,"Int2","a2G36000001u8DkEAI"]
["TB care and prevention","Key populations (TB care and prevention) - Others",72478.276440338203,{"$f":"IFERROR(INDEX('PR Expenditure_7A'!F$104:F$203,MATCH('PR Expenditure_7A import-export'!N25,'PR Expenditure_7A'!B$104:B$203,0)),\"\")","v":0},null,null,null,null,72478.276440338203,{"$f":"IFERROR(INDEX('PR Expenditure_7A'!L$104:L$203,MATCH('PR Expenditure_7A import-export'!N25,'PR Expenditure_7A'!B$104:B$203,0)),\"\")","v":0},null,null,3,"Int3","a2G36000001u8E4EAI"]
["TB care and prevention","Key populations (TB care and prevention) - Prisoners",6043.4606260430601,{"$f":"IFERROR(INDEX('PR Expenditure_7A'!F$104:F$203,MATCH('PR Expenditure_7A import-export'!N26,'PR Expenditure_7A'!B$104:B$203,0)),\"\")","v":0},null,null,null,null,6043.4606260430601,{"$f":"IFERROR(INDEX('PR Expenditure_7A'!L$104:L$203,MATCH('PR Expenditure_7A import-export'!N26,'PR Expenditure_7A'!B$104:B$203,0)),\"\")","v":0},null,null,4,"Int4","a2G36000001u8E7EAI"]
["TB care and prevention","Prevention",6342.4190506292398,{"$f":"IFERROR(INDEX('PR Expenditure_7A'!F$104:F$203,MATCH('PR Expenditure_7A import-export'!N27,'PR Expenditure_7A'!B$104:B$203,0)),\"\")","v":3264.29},null,null,null,null,6342.4190506292398,{"$f":"IFERROR(INDEX('PR Expenditure_7A'!L$104:L$203,MATCH('PR Expenditure_7A import-export'!N27,'PR Expenditure_7A'!B$104:B$203,0)),\"\")","v":3264.29},null,null,5,"Int5","a2G36000001u8E8EAI"]
["TB care and prevention","Treatment",357853.41919894703,{"$f":"IFERROR(INDEX('PR Expenditure_7A'!F$104:F$203,MATCH('PR Expenditure_7A import-export'!N28,'PR Expenditure_7A'!B$104:B$203,0)),\"\")","v":0},null,null,null,null,357853.41919894703,{"$f":"IFERROR(INDEX('PR Expenditure_7A'!L$104:L$203,MATCH('PR Expenditure_7A import-export'!N28,'PR Expenditure_7A'!B$104:B$203,0)),\"\")","v":0},null,null,6,"Int6","a2G36000001u8E9EAI"]
["TB care and prevention","Community TB care delivery",25604.313853560099,{"$f":"IFERROR(INDEX('PR Expenditure_7A'!F$104:F$203,MATCH('PR Expenditure_7A import-export'!N29,'PR Expenditure_7A'!B$104:B$203,0)),\"\")","v":0},null,null,null,null,25604.313853560099,{"$f":"IFERROR(INDEX('PR Expenditure_7A'!L$104:L$203,MATCH('PR Expenditure_7A import-export'!N29,'PR Expenditure_7A'!B$104:B$203,0)),\"\")","v":0},null,null,7,"Int7","a2G36000001u8EEEAY"]
["RSSH: Health management information systems and M&E","Analysis, review and transparency",139624.95862256401,{"$f":"IFERROR(INDEX('PR Expenditure_7A'!F$104:F$203,MATCH('PR Expenditure_7A import-export'!N30,'PR Expenditure_7A'!B$104:B$203,0)),\"\")","v":2235.81},null,null,null,null,139624.95862256401,{"$f":"IFERROR(INDEX('PR Expenditure_7A'!L$104:L$203,MATCH('PR Expenditure_7A import-export'!N30,'PR Expenditure_7A'!B$104:B$203,0)),\"\")","v":2235.81},null,null,8,"Int8","a2G36000001u8EHEAY"]
["RSSH: Health management information systems and M&E","Surveys",64020.761629238899,{"$f":"IFERROR(INDEX('PR Expenditure_7A'!F$104:F$203,MATCH('PR Expenditure_7A import-export'!N31,'PR Expenditure_7A'!B$104:B$203,0)),\"\")","v":0},null,null,null,null,64020.761629238899,{"$f":"IFERROR(INDEX('PR Expenditure_7A'!L$104:L$203,MATCH('PR Expenditure_7A import-export'!N31,'PR Expenditure_7A'!B$104:B$203,0)),\"\")","v":0},null,null,9,"Int9","a2G36000001u8EMEAY"]
["RSSH: Health management information systems and M&E","Routine reporting",47163.540788967002,{"$f":"IFERROR(INDEX('PR Expenditure_7A'!F$104:F$203,MATCH('PR Expenditure_7A import-export'!N32,'PR Expenditure_7A'!B$104:B$203,0)),\"\")","v":0},null,null,null,null,47163.540788967002,{"$f":"IFERROR(INDEX('PR Expenditure_7A'!L$104:L$203,MATCH('PR Expenditure_7A import-export'!N32,'PR Expenditure_7A'!B$104:B$203,0)),\"\")","v":0},null,null,10,"Int10","a2G36000001u8ENEAY"]
["MDR-TB","Treatment: MDR-TB",259329.99478294401,{"$f":"IFERROR(INDEX('PR Expenditure_7A'!F$104:F$203,MATCH('PR Expenditure_7A import-export'!N33,'PR Expenditure_7A'!B$104:B$203,0)),\"\")","v":423.64},null,null,null,null,259329.99478294401,{"$f":"IFERROR(INDEX('PR Expenditure_7A'!L$104:L$203,MATCH('PR Expenditure_7A import-export'!N33,'PR Expenditure_7A'!B$104:B$203,0)),\"\")","v":423.64},null,null,11,"Int11","a2G36000001u8EOEAY"]
["TB/HIV","TB/HIV collaborative interventions",119955.192915333,{"$f":"IFERROR(INDEX('PR Expenditure_7A'!F$104:F$203,MATCH('PR Expenditure_7A import-export'!N34,'PR Expenditure_7A'!B$104:B$203,0)),\"\")","v":0},null,null,null,null,119955.192915333,{"$f":"IFERROR(INDEX('PR Expenditure_7A'!L$104:L$203,MATCH('PR Expenditure_7A import-export'!N34,'PR Expenditure_7A'!B$104:B$203,0)),\"\")","v":0},null,null,12,"Int12","a2G36000001u8ETEAY"]
["Program management","Grant management",1194123.21398953,{"$f":"IFERROR(INDEX('PR Expenditure_7A'!F$104:F$203,MATCH('PR Expenditure_7A import-export'!N35,'PR Expenditure_7A'!B$104:B$203,0)),\"\")","v":419380.18},null,null,null,null,1194123.21398953,{"$f":"IFERROR(INDEX('PR Expenditure_7A'!L$104:L$203,MATCH('PR Expenditure_7A import-export'!N35,'PR Expenditure_7A'!B$104:B$203,0)),\"\")","v":419380.18},null,null,13,"Int13","a2G36000001u8EUEAY"]
["Program management","Policy, planning, coordination and management of national disease control programs",105015.23784608601,{"$f":"IFERROR(INDEX('PR Expenditure_7A'!F$104:F$203,MATCH('PR Expenditure_7A import-export'!N36,'PR Expenditure_7A'!B$104:B$203,0)),\"\")","v":21752.21},null,null,null,null,105015.23784608601,{"$f":"IFERROR(INDEX('PR Expenditure_7A'!L$104:L$203,MATCH('PR Expenditure_7A import-export'!N36,'PR Expenditure_7A'!B$104:B$203,0)),\"\")","v":21752.21},null,null,14,"Int14","a2G36000001u8EeEAI"]
["PMTCT","Prong 1: Primary prevention of HIV infection among women of childbearing age",13826.315722405699,{"$f":"IFERROR(INDEX('PR Expenditure_7A'!F$104:F$203,MATCH('PR Expenditure_7A import-export'!N37,'PR Expenditure_7A'!B$104:B$203,0)),\"\")","v":0},null,null,null,null,13826.315722405699,{"$f":"IFERROR(INDEX('PR Expenditure_7A'!L$104:L$203,MATCH('PR Expenditure_7A import-export'!N37,'PR Expenditure_7A'!B$104:B$203,0)),\"\")","v":0},null,null,15,"Int15","a2G36000001u8EgEAI"]
["PMTCT","Prong 3: Preventing vertical HIV transmission",384400.03818272002,{"$f":"IFERROR(INDEX('PR Expenditure_7A'!F$104:F$203,MATCH('PR Expenditure_7A import-export'!N38,'PR Expenditure_7A'!B$104:B$203,0)),\"\")","v":198607.02000000002},null,null,null,null,384400.03818272002,{"$f":"IFERROR(INDEX('PR Expenditure_7A'!L$104:L$203,MATCH('PR Expenditure_7A import-export'!N38,'PR Expenditure_7A'!B$104:B$203,0)),\"\")","v":198607.02000000002},null,null,16,"Int16","a2G36000001u8EhEAI"]
["PMTCT","Prong 4: Treatment, care and support to mothers living with HIV, their children and families",60388.725055484501,{"$f":"IFERROR(INDEX('PR Expenditure_7A'!F$104:F$203,MATCH('PR Expenditure_7A import-export'!N39,'PR Expenditure_7A'!B$104:B$203,0)),\"\")","v":0},null,null,null,null,60388.725055484501,{"$f":"IFERROR(INDEX('PR Expenditure_7A'!L$104:L$203,MATCH('PR Expenditure_7A import-export'!N39,'PR Expenditure_7A'!B$104:B$203,0)),\"\")","v":0},null,null,17,"Int17","a2G36000001u8EjEAI"]
["Prevention programs for general population","Other intervention(s) for general population",181903.66182593201,{"$f":"IFERROR(INDEX('PR Expenditure_7A'!F$104:F$203,MATCH('PR Expenditure_7A import-export'!N40,'PR Expenditure_7A'!B$104:B$203,0)),\"\")","v":29446.54},null,null,null,null,181903.66182593201,{"$f":"IFERROR(INDEX('PR Expenditure_7A'!L$104:L$203,MATCH('PR Expenditure_7A import-export'!N40,'PR Expenditure_7A'!B$104:B$203,0)),\"\")","v":29446.54},null,null,18,"Int18","a2G36000001u8EkEAI"]
["PMTCT","Other intervention(s) for PMTCT",9533.6468086751993,{"$f":"IFERROR(INDEX('PR Expenditure_7A'!F$104:F$203,MATCH('PR Expenditure_7A import-export'!N41,'PR Expenditure_7A'!B$104:B$203,0)),\"\")","v":0},null,null,null,null,9533.6468086751993,{"$f":"IFERROR(INDEX('PR Expenditure_7A'!L$104:L$203,MATCH('PR Expenditure_7A import-export'!N41,'PR Expenditure_7A'!B$104:B$203,0)),\"\")","v":0},null,null,19,"Int19","a2G36000001u8ElEAI"]
["Comprehensive prevention programs for MSM","Behavioral interventions for MSM",3050.9540104395401,{"$f":"IFERROR(INDEX('PR Expenditure_7A'!F$104:F$203,MATCH('PR Expenditure_7A import-export'!N42,'PR Expenditure_7A'!B$104:B$203,0)),\"\")","v":0},null,null,null,null,3050.9540104395401,{"$f":"IFERROR(INDEX('PR Expenditure_7A'!L$104:L$203,MATCH('PR Expenditure_7A import-export'!N42,'PR Expenditure_7A'!B$104:B$203,0)),\"\")","v":0},null,null,20,"Int20","a2G36000001u8EmEAI"]
["Comprehensive prevention programs for MSM","Condoms and lubricant programming for MSM",4355.5682197850601,{"$f":"IFERROR(INDEX('PR Expenditure_7A'!F$104:F$203,MATCH('PR Expenditure_7A import-export'!N43,'PR Expenditure_7A'!B$104:B$203,0)),\"\")","v":0},null,null,null,null,4355.5682197850601,{"$f":"IFERROR(INDEX('PR Expenditure_7A'!L$104:L$203,MATCH('PR Expenditure_7A import-export'!N43,'PR Expenditure_7A'!B$104:B$203,0)),\"\")","v":0},null,null,21,"Int21","a2G36000001u8EnEAI"]
["Comprehensive prevention programs for MSM","Other intervention(s) for MSM",15504.729687797,{"$f":"IFERROR(INDEX('PR Expenditure_7A'!F$104:F$203,MATCH('PR Expenditure_7A import-export'!N44,'PR Expenditure_7A'!B$104:B$203,0)),\"\")","v":0},null,null,null,null,15504.729687797,{"$f":"IFERROR(INDEX('PR Expenditure_7A'!L$104:L$203,MATCH('PR Expenditure_7A import-export'!N44,'PR Expenditure_7A'!B$104:B$203,0)),\"\")","v":0},null,null,22,"Int22","a2G36000001u8EpEAI"]
["Comprehensive prevention programs for sex workers and their clients","Behavioral interventions for sex workers",4684.6755908956002,{"$f":"IFERROR(INDEX('PR Expenditure_7A'!F$104:F$203,MATCH('PR Expenditure_7A import-export'!N45,'PR Expenditure_7A'!B$104:B$203,0)),\"\")","v":0},null,null,null,null,4684.6755908956002,{"$f":"IFERROR(INDEX('PR Expenditure_7A'!L$104:L$203,MATCH('PR Expenditure_7A import-export'!N45,'PR Expenditure_7A'!B$104:B$203,0)),\"\")","v":0},null,null,23,"Int23","a2G36000001u8ErEAI"]
["Comprehensive prevention programs for sex workers and their clients","Condoms and lubricant programming for sex workers",12736.7704611305,{"$f":"IFERROR(INDEX('PR Expenditure_7A'!F$104:F$203,MATCH('PR Expenditure_7A import-export'!N46,'PR Expenditure_7A'!B$104:B$203,0)),\"\")","v":0},null,null,null,null,12736.7704611305,{"$f":"IFERROR(INDEX('PR Expenditure_7A'!L$104:L$203,MATCH('PR Expenditure_7A import-export'!N46,'PR Expenditure_7A'!B$104:B$203,0)),\"\")","v":0},null,null,24,"Int24","a2G36000001u8EsEAI"]
["Comprehensive prevention programs for sex workers and their clients","Other intervention(s) for sex workers and their clients",14728.743498673601,{"$f":"IFERROR(INDEX('PR Expenditure_7A'!F$104:F$203,MATCH('PR Expenditure_7A import-export'!N47,'PR Expenditure_7A'!B$104:B$203,0)),\"\")","v":0},null,null,null,null,14728.743498673601,{"$f":"IFERROR(INDEX('PR Expenditure_7A'!L$104:L$203,MATCH('PR Expenditure_7A import-export'!N47,'PR Expenditure_7A'!B$104:B$203,0)),\"\")","v":0},null,null,25,"Int25","a2G36000001u8EtEAI"]
["Comprehensive prevention programs for people who inject drugs (PWID) and their partners","Other intervention(s) for IDUs and their partners",6814.0310795609803,{"$f":"IFERROR(INDEX('PR Expenditure_7A'!F$104:F$203,MATCH('PR Expenditure_7A import-export'!N48,'PR Expenditure_7A'!B$104:B$203,0)),\"\")","v":0},null,null,null,null,6814.0310795609803,{"$f":"IFERROR(INDEX('PR Expenditure_7A'!L$104:L$203,MATCH('PR Expenditure_7A import-export'!N48,'PR Expenditure_7A'!B$104:B$203,0)),\"\")","v":0},null,null,26,"Int26","a2G36000001u8EuEAI"]
["Prevention programs for general population","Behavioral interventions as part of programs for general population",65947.805029686395,{"$f":"IFERROR(INDEX('PR Expenditure_7A'!F$104:F$203,MATCH('PR Expenditure_7A import-export'!N49,'PR Expenditure_7A'!B$104:B$203,0)),\"\")","v":16803.640000000003},null,null,null,null,65947.805029686395,{"$f":"IFERROR(INDEX('PR Expenditure_7A'!L$104:L$203,MATCH('PR Expenditure_7A import-export'!N49,'PR Expenditure_7A'!B$104:B$203,0)),\"\")","v":16803.640000000003},null,null,27,"Int27","a2G36000001u8EvEAI"]
["Prevention programs for other vulnerable populations","HIV testing services for other vulnerable populations",30050.76,{"$f":"IFERROR(INDEX('PR Expenditure_7A'!F$104:F$203,MATCH('PR Expenditure_7A import-export'!N50,'PR Expenditure_7A'!B$104:B$203,0)),\"\")","v":0},null,null,null,null,30050.76,{"$f":"IFERROR(INDEX('PR Expenditure_7A'!L$104:L$203,MATCH('PR Expenditure_7A import-export'!N50,'PR Expenditure_7A'!B$104:B$203,0)),\"\")","v":0},null,null,28,"Int28","a2G36000001u8EwEAI"]
["HIV Testing Services","Differentiated HIV testing services",22346.450776106001,{"$f":"IFERROR(INDEX('PR Expenditure_7A'!F$104:F$203,MATCH('PR Expenditure_7A import-export'!N51,'PR Expenditure_7A'!B$104:B$203,0)),\"\")","v":0},null,null,null,null,22346.450776106001,{"$f":"IFERROR(INDEX('PR Expenditure_7A'!L$104:L$203,MATCH('PR Expenditure_7A import-export'!N51,'PR Expenditure_7A'!B$104:B$203,0)),\"\")","v":0},null,null,29,"Int29","a2G36000001u8ExEAI"]
["RSSH: Integrated service delivery and quality improvement","Laboratory systems for disease prevention, control, treatment and disease surveillance",25407.761478241398,{"$f":"IFERROR(INDEX('PR Expenditure_7A'!F$104:F$203,MATCH('PR Expenditure_7A import-export'!N52,'PR Expenditure_7A'!B$104:B$203,0)),\"\")","v":0},null,null,null,null,25407.761478241398,{"$f":"IFERROR(INDEX('PR Expenditure_7A'!L$104:L$203,MATCH('PR Expenditure_7A import-export'!N52,'PR Expenditure_7A'!B$104:B$203,0)),\"\")","v":0},null,null,30,"Int30","a2G36000001u8EyEAI"]
["RSSH: Health management information systems and M&E","Program and data quality",100573.092865479,{"$f":"IFERROR(INDEX('PR Expenditure_7A'!F$104:F$203,MATCH('PR Expenditure_7A import-export'!N53,'PR Expenditure_7A'!B$104:B$203,0)),\"\")","v":7909.39},null,null,null,null,100573.092865479,{"$f":"IFERROR(INDEX('PR Expenditure_7A'!L$104:L$203,MATCH('PR Expenditure_7A import-export'!N53,'PR Expenditure_7A'!B$104:B$203,0)),\"\")","v":7909.39},null,null,31,"Int31","a2G36000001u8EzEAI"]
["Treatment, care and support","Counseling and psycho-social support",511140.51779259299,{"$f":"IFERROR(INDEX('PR Expenditure_7A'!F$104:F$203,MATCH('PR Expenditure_7A import-export'!N54,'PR Expenditure_7A'!B$104:B$203,0)),\"\")","v":262869.64},null,null,null,null,511140.51779259299,{"$f":"IFERROR(INDEX('PR Expenditure_7A'!L$104:L$203,MATCH('PR Expenditure_7A import-export'!N54,'PR Expenditure_7A'!B$104:B$203,0)),\"\")","v":262869.64},null,null,32,"Int32","a2G36000001u8F0EAI"]
["Treatment, care and support","Other intervention(s) for treatment",286684.78582535899,{"$f":"IFERROR(INDEX('PR Expenditure_7A'!F$104:F$203,MATCH('PR Expenditure_7A import-export'!N55,'PR Expenditure_7A'!B$104:B$203,0)),\"\")","v":0},null,null,null,null,286684.78582535899,{"$f":"IFERROR(INDEX('PR Expenditure_7A'!L$104:L$203,MATCH('PR Expenditure_7A import-export'!N55,'PR Expenditure_7A'!B$104:B$203,0)),\"\")","v":0},null,null,33,"Int33","a2G36000001u8F1EAI"]
["Treatment, care and support","Differentiated ART service delivery",184474.30067366801,{"$f":"IFERROR(INDEX('PR Expenditure_7A'!F$104:F$203,MATCH('PR Expenditure_7A import-export'!N56,'PR Expenditure_7A'!B$104:B$203,0)),\"\")","v":0},null,null,null,null,184474.30067366801,{"$f":"IFERROR(INDEX('PR Expenditure_7A'!L$104:L$203,MATCH('PR Expenditure_7A import-export'!N56,'PR Expenditure_7A'!B$104:B$203,0)),\"\")","v":0},null,null,34,"Int34","a2G36000001u8F2EAI"]
["Treatment, care and support","Prevention, diagnosis and treatment of opportunistic infections",97428.235622955603,{"$f":"IFERROR(INDEX('PR Expenditure_7A'!F$104:F$203,MATCH('PR Expenditure_7A import-export'!N57,'PR Expenditure_7A'!B$104:B$203,0)),\"\")","v":0},null,null,null,null,97428.235622955603,{"$f":"IFERROR(INDEX('PR Expenditure_7A'!L$104:L$203,MATCH('PR Expenditure_7A import-export'!N57,'PR Expenditure_7A'!B$104:B$203,0)),\"\")","v":0},null,null,35,"Int35","a2G36000001u8F3EAI"]
["Treatment, care and support","HIV care",247804.2,{"$f":"IFERROR(INDEX('PR Expenditure_7A'!F$104:F$203,MATCH('PR Expenditure_7A import-export'!N58,'PR Expenditure_7A'!B$104:B$203,0)),\"\")","v":8035.57},null,null,null,null,247804.2,{"$f":"IFERROR(INDEX('PR Expenditure_7A'!L$104:L$203,MATCH('PR Expenditure_7A import-export'!N58,'PR Expenditure_7A'!B$104:B$203,0)),\"\")","v":8035.57},null,null,36,"Int36","a2G36000001u8F6EAI"]
["Treatment, care and support","Treatment monitoring - Viral load",367814.462461319,{"$f":"IFERROR(INDEX('PR Expenditure_7A'!F$104:F$203,MATCH('PR Expenditure_7A import-export'!N59,'PR Expenditure_7A'!B$104:B$203,0)),\"\")","v":7212.55},null,null,null,null,367814.462461319,{"$f":"IFERROR(INDEX('PR Expenditure_7A'!L$104:L$203,MATCH('PR Expenditure_7A import-export'!N59,'PR Expenditure_7A'!B$104:B$203,0)),\"\")","v":7212.55},null,null,37,"Int37","a2G36000001u8F7EAI"]
["Treatment, care and support","Treatment monitoring - Drug resistance surveillance",166001.67000000001,{"$f":"IFERROR(INDEX('PR Expenditure_7A'!F$104:F$203,MATCH('PR Expenditure_7A import-export'!N60,'PR Expenditure_7A'!B$104:B$203,0)),\"\")","v":0},null,null,null,null,166001.67000000001,{"$f":"IFERROR(INDEX('PR Expenditure_7A'!L$104:L$203,MATCH('PR Expenditure_7A import-export'!N60,'PR Expenditure_7A'!B$104:B$203,0)),\"\")","v":0},null,null,38,"Int38","a2G36000001u8F9EAI"]
["Comprehensive prevention programs for sex workers and their clients","HIV testing services for sex workers",183.52481978506,{"$f":"IFERROR(INDEX('PR Expenditure_7A'!F$104:F$203,MATCH('PR Expenditure_7A import-export'!N61,'PR Expenditure_7A'!B$104:B$203,0)),\"\")","v":0},null,null,null,null,183.52481978506,{"$f":"IFERROR(INDEX('PR Expenditure_7A'!L$104:L$203,MATCH('PR Expenditure_7A import-export'!N61,'PR Expenditure_7A'!B$104:B$203,0)),\"\")","v":0},null,null,39,"Int39","a2G36000001u8FAEAY"]
["Prevention programs for general population","Gender-based violence prevention and treatment programs for general population",30000,{"$f":"IFERROR(INDEX('PR Expenditure_7A'!F$104:F$203,MATCH('PR Expenditure_7A import-export'!N62,'PR Expenditure_7A'!B$104:B$203,0)),\"\")","v":0},null,null,null,null,30000,{"$f":"IFERROR(INDEX('PR Expenditure_7A'!L$104:L$203,MATCH('PR Expenditure_7A import-export'!N62,'PR Expenditure_7A'!B$104:B$203,0)),\"\")","v":0},null,null,40,"Int40","a2G36000001u8FBEAY"]
[null,null,null,null,null,null,null,null,null,null,null,null,-1,null,"ModuleName",null,"Record ID"]
[{"$f":"IFERROR(INDEX('PR Expenditure_7A'!C$204:C$219,MATCH('PR Expenditure_7A import-export'!N64,'PR Expenditure_7A'!B$204:B$219,0)),\"\")","v":""},{"$f":"IFERROR(INDEX('PR Expenditure_7A'!D$204:D$219,MATCH('PR Expenditure_7A import-export'!N64,'PR Expenditure_7A'!B$204:B$219,0)),\"\")","v":""},"[Budget for Reporting Period]",{"$f":"IFERROR(INDEX('PR Expenditure_7A'!F$204:F$219,MATCH('PR Expenditure_7A import-export'!N64,'PR Expenditure_7A'!B$204:B$219,0)),\"\")","v":""},null,null,null,null,"[Cumulative Budget]",{"$f":"IFERROR(INDEX('PR Expenditure_7A'!L$204:L$219,MATCH('PR Expenditure_7A import-export'!N64,'PR Expenditure_7A'!B$204:B$219,0)),\"\")","v":""},null,null,{"$f":"M63+1","v":0},{"$f":"\"NewMod\"&M64","v":"NewMod0"},{"$f":"IFERROR(IF(VLOOKUP(A64,'Reference Records'!$B$13:$D$48,3,FALSE)=0,\"\",VLOOKUP(A64,'Reference Records'!$B$13:$D$48,3,FALSE)),\"\")","v":""},null,"[Record ID]"]
[{"$f":"IFERROR(INDEX('PR Expenditure_7A'!C$204:C$219,MATCH('PR Expenditure_7A import-export'!N65,'PR Expenditure_7A'!B$204:B$219,0)),\"\")","v":0},{"$f":"IFERROR(INDEX('PR Expenditure_7A'!D$204:D$219,MATCH('PR Expenditure_7A import-export'!N65,'PR Expenditure_7A'!B$204:B$219,0)),\"\")","v":0},0,{"$f":"IFERROR(INDEX('PR Expenditure_7A'!F$204:F$219,MATCH('PR Expenditure_7A import-export'!N65,'PR Expenditure_7A'!B$204:B$219,0)),\"\")","v":0},null,null,null,null,0,{"$f":"IFERROR(INDEX('PR Expenditure_7A'!L$204:L$219,MATCH('PR Expenditure_7A import-export'!N65,'PR Expenditure_7A'!B$204:B$219,0)),\"\")","v":0},null,null,{"$f":"M64+1","v":1},{"$f":"\"NewMod\"&M65","v":"NewMod1"},{"$f":"IFERROR(IF(VLOOKUP(A65,'Reference Records'!$B$13:$D$48,3,FALSE)=0,\"\",VLOOKUP(A65,'Reference Records'!$B$13:$D$48,3,FALSE)),\"\")","v":""},null,"a2G36000001u8FDEAY"]
[{"$f":"IFERROR(INDEX('PR Expenditure_7A'!C$204:C$219,MATCH('PR Expenditure_7A import-export'!N66,'PR Expenditure_7A'!B$204:B$219,0)),\"\")","v":0},{"$f":"IFERROR(INDEX('PR Expenditure_7A'!D$204:D$219,MATCH('PR Expenditure_7A import-export'!N66,'PR Expenditure_7A'!B$204:B$219,0)),\"\")","v":0},0,{"$f":"IFERROR(INDEX('PR Expenditure_7A'!F$204:F$219,MATCH('PR Expenditure_7A import-export'!N66,'PR Expenditure_7A'!B$204:B$219,0)),\"\")","v":0},null,null,null,null,0,{"$f":"IFERROR(INDEX('PR Expenditure_7A'!L$204:L$219,MATCH('PR Expenditure_7A import-export'!N66,'PR Expenditure_7A'!B$204:B$219,0)),\"\")","v":0},null,null,2,"NewMod2",{"$f":"IFERROR(IF(VLOOKUP(A66,'Reference Records'!$B$13:$D$48,3,FALSE)=0,\"\",VLOOKUP(A66,'Reference Records'!$B$13:$D$48,3,FALSE)),\"\")","v":""},null,"a2G36000001u8FEEAY"]
[{"$f":"IFERROR(INDEX('PR Expenditure_7A'!C$204:C$219,MATCH('PR Expenditure_7A import-export'!N67,'PR Expenditure_7A'!B$204:B$219,0)),\"\")","v":0},{"$f":"IFERROR(INDEX('PR Expenditure_7A'!D$204:D$219,MATCH('PR Expenditure_7A import-export'!N67,'PR Expenditure_7A'!B$204:B$219,0)),\"\")","v":0},0,{"$f":"IFERROR(INDEX('PR Expenditure_7A'!F$204:F$219,MATCH('PR Expenditure_7A import-export'!N67,'PR Expenditure_7A'!B$204:B$219,0)),\"\")","v":0},null,null,null,null,0,{"$f":"IFERROR(INDEX('PR Expenditure_7A'!L$204:L$219,MATCH('PR Expenditure_7A import-export'!N67,'PR Expenditure_7A'!B$204:B$219,0)),\"\")","v":0},null,null,3,"NewMod3",{"$f":"IFERROR(IF(VLOOKUP(A67,'Reference Records'!$B$13:$D$48,3,FALSE)=0,\"\",VLOOKUP(A67,'Reference Records'!$B$13:$D$48,3,FALSE)),\"\")","v":""},null,"a2G36000001u8FFEAY"]
[{"$f":"IFERROR(INDEX('PR Expenditure_7A'!C$204:C$219,MATCH('PR Expenditure_7A import-export'!N68,'PR Expenditure_7A'!B$204:B$219,0)),\"\")","v":0},{"$f":"IFERROR(INDEX('PR Expenditure_7A'!D$204:D$219,MATCH('PR Expenditure_7A import-export'!N68,'PR Expenditure_7A'!B$204:B$219,0)),\"\")","v":0},0,{"$f":"IFERROR(INDEX('PR Expenditure_7A'!F$204:F$219,MATCH('PR Expenditure_7A import-export'!N68,'PR Expenditure_7A'!B$204:B$219,0)),\"\")","v":0},null,null,null,null,0,{"$f":"IFERROR(INDEX('PR Expenditure_7A'!L$204:L$219,MATCH('PR Expenditure_7A import-export'!N68,'PR Expenditure_7A'!B$204:B$219,0)),\"\")","v":0},null,null,4,"NewMod4",{"$f":"IFERROR(IF(VLOOKUP(A68,'Reference Records'!$B$13:$D$48,3,FALSE)=0,\"\",VLOOKUP(A68,'Reference Records'!$B$13:$D$48,3,FALSE)),\"\")","v":""},null,"a2G36000001u8FGEAY"]
[{"$f":"IFERROR(INDEX('PR Expenditure_7A'!C$204:C$219,MATCH('PR Expenditure_7A import-export'!N69,'PR Expenditure_7A'!B$204:B$219,0)),\"\")","v":0},{"$f":"IFERROR(INDEX('PR Expenditure_7A'!D$204:D$219,MATCH('PR Expenditure_7A import-export'!N69,'PR Expenditure_7A'!B$204:B$219,0)),\"\")","v":0},0,{"$f":"IFERROR(INDEX('PR Expenditure_7A'!F$204:F$219,MATCH('PR Expenditure_7A import-export'!N69,'PR Expenditure_7A'!B$204:B$219,0)),\"\")","v":0},null,null,null,null,0,{"$f":"IFERROR(INDEX('PR Expenditure_7A'!L$204:L$219,MATCH('PR Expenditure_7A import-export'!N69,'PR Expenditure_7A'!B$204:B$219,0)),\"\")","v":0},null,null,5,"NewMod5",{"$f":"IFERROR(IF(VLOOKUP(A69,'Reference Records'!$B$13:$D$48,3,FALSE)=0,\"\",VLOOKUP(A69,'Reference Records'!$B$13:$D$48,3,FALSE)),\"\")","v":""},null,"a2G36000001u8FHEAY"]
[{"$f":"IFERROR(INDEX('PR Expenditure_7A'!C$204:C$219,MATCH('PR Expenditure_7A import-export'!N70,'PR Expenditure_7A'!B$204:B$219,0)),\"\")","v":0},{"$f":"IFERROR(INDEX('PR Expenditure_7A'!D$204:D$219,MATCH('PR Expenditure_7A import-export'!N70,'PR Expenditure_7A'!B$204:B$219,0)),\"\")","v":0},0,{"$f":"IFERROR(INDEX('PR Expenditure_7A'!F$204:F$219,MATCH('PR Expenditure_7A import-export'!N70,'PR Expenditure_7A'!B$204:B$219,0)),\"\")","v":0},null,null,null,null,0,{"$f":"IFERROR(INDEX('PR Expenditure_7A'!L$204:L$219,MATCH('PR Expenditure_7A import-export'!N70,'PR Expenditure_7A'!B$204:B$219,0)),\"\")","v":0},null,null,6,"NewMod6",{"$f":"IFERROR(IF(VLOOKUP(A70,'Reference Records'!$B$13:$D$48,3,FALSE)=0,\"\",VLOOKUP(A70,'Reference Records'!$B$13:$D$48,3,FALSE)),\"\")","v":""},null,"a2G36000001u8FIEAY"]
[{"$f":"IFERROR(INDEX('PR Expenditure_7A'!C$204:C$219,MATCH('PR Expenditure_7A import-export'!N71,'PR Expenditure_7A'!B$204:B$219,0)),\"\")","v":0},{"$f":"IFERROR(INDEX('PR Expenditure_7A'!D$204:D$219,MATCH('PR Expenditure_7A import-export'!N71,'PR Expenditure_7A'!B$204:B$219,0)),\"\")","v":0},0,{"$f":"IFERROR(INDEX('PR Expenditure_7A'!F$204:F$219,MATCH('PR Expenditure_7A import-export'!N71,'PR Expenditure_7A'!B$204:B$219,0)),\"\")","v":0},null,null,null,null,0,{"$f":"IFERROR(INDEX('PR Expenditure_7A'!L$204:L$219,MATCH('PR Expenditure_7A import-export'!N71,'PR Expenditure_7A'!B$204:B$219,0)),\"\")","v":0},null,null,7,"NewMod7",{"$f":"IFERROR(IF(VLOOKUP(A71,'Reference Records'!$B$13:$D$48,3,FALSE)=0,\"\",VLOOKUP(A71,'Reference Records'!$B$13:$D$48,3,FALSE)),\"\")","v":""},null,"a2G36000001u8FJEAY"]
[{"$f":"IFERROR(INDEX('PR Expenditure_7A'!C$204:C$219,MATCH('PR Expenditure_7A import-export'!N72,'PR Expenditure_7A'!B$204:B$219,0)),\"\")","v":0},{"$f":"IFERROR(INDEX('PR Expenditure_7A'!D$204:D$219,MATCH('PR Expenditure_7A import-export'!N72,'PR Expenditure_7A'!B$204:B$219,0)),\"\")","v":0},0,{"$f":"IFERROR(INDEX('PR Expenditure_7A'!F$204:F$219,MATCH('PR Expenditure_7A import-export'!N72,'PR Expenditure_7A'!B$204:B$219,0)),\"\")","v":0},null,null,null,null,0,{"$f":"IFERROR(INDEX('PR Expenditure_7A'!L$204:L$219,MATCH('PR Expenditure_7A import-export'!N72,'PR Expenditure_7A'!B$204:B$219,0)),\"\")","v":0},null,null,8,"NewMod8",{"$f":"IFERROR(IF(VLOOKUP(A72,'Reference Records'!$B$13:$D$48,3,FALSE)=0,\"\",VLOOKUP(A72,'Reference Records'!$B$13:$D$48,3,FALSE)),\"\")","v":""},null,"a2G36000001u8FKEAY"]
[{"$f":"IFERROR(INDEX('PR Expenditure_7A'!C$204:C$219,MATCH('PR Expenditure_7A import-export'!N73,'PR Expenditure_7A'!B$204:B$219,0)),\"\")","v":0},{"$f":"IFERROR(INDEX('PR Expenditure_7A'!D$204:D$219,MATCH('PR Expenditure_7A import-export'!N73,'PR Expenditure_7A'!B$204:B$219,0)),\"\")","v":0},0,{"$f":"IFERROR(INDEX('PR Expenditure_7A'!F$204:F$219,MATCH('PR Expenditure_7A import-export'!N73,'PR Expenditure_7A'!B$204:B$219,0)),\"\")","v":0},null,null,null,null,0,{"$f":"IFERROR(INDEX('PR Expenditure_7A'!L$204:L$219,MATCH('PR Expenditure_7A import-export'!N73,'PR Expenditure_7A'!B$204:B$219,0)),\"\")","v":0},null,null,9,"NewMod9",{"$f":"IFERROR(IF(VLOOKUP(A73,'Reference Records'!$B$13:$D$48,3,FALSE)=0,\"\",VLOOKUP(A73,'Reference Records'!$B$13:$D$48,3,FALSE)),\"\")","v":""},null,"a2G36000001u8FLEAY"]
[{"$f":"IFERROR(INDEX('PR Expenditure_7A'!C$204:C$219,MATCH('PR Expenditure_7A import-export'!N74,'PR Expenditure_7A'!B$204:B$219,0)),\"\")","v":0},{"$f":"IFERROR(INDEX('PR Expenditure_7A'!D$204:D$219,MATCH('PR Expenditure_7A import-export'!N74,'PR Expenditure_7A'!B$204:B$219,0)),\"\")","v":0},0,{"$f":"IFERROR(INDEX('PR Expenditure_7A'!F$204:F$219,MATCH('PR Expenditure_7A import-export'!N74,'PR Expenditure_7A'!B$204:B$219,0)),\"\")","v":0},null,null,null,null,0,{"$f":"IFERROR(INDEX('PR Expenditure_7A'!L$204:L$219,MATCH('PR Expenditure_7A import-export'!N74,'PR Expenditure_7A'!B$204:B$219,0)),\"\")","v":0},null,null,10,"NewMod10",{"$f":"IFERROR(IF(VLOOKUP(A74,'Reference Records'!$B$13:$D$48,3,FALSE)=0,\"\",VLOOKUP(A74,'Reference Records'!$B$13:$D$48,3,FALSE)),\"\")","v":""},null,"a2G36000001u8FMEAY"]
[{"$f":"IFERROR(INDEX('PR Expenditure_7A'!C$204:C$219,MATCH('PR Expenditure_7A import-export'!N75,'PR Expenditure_7A'!B$204:B$219,0)),\"\")","v":0},{"$f":"IFERROR(INDEX('PR Expenditure_7A'!D$204:D$219,MATCH('PR Expenditure_7A import-export'!N75,'PR Expenditure_7A'!B$204:B$219,0)),\"\")","v":0},0,{"$f":"IFERROR(INDEX('PR Expenditure_7A'!F$204:F$219,MATCH('PR Expenditure_7A import-export'!N75,'PR Expenditure_7A'!B$204:B$219,0)),\"\")","v":0},null,null,null,null,0,{"$f":"IFERROR(INDEX('PR Expenditure_7A'!L$204:L$219,MATCH('PR Expenditure_7A import-export'!N75,'PR Expenditure_7A'!B$204:B$219,0)),\"\")","v":0},null,null,11,"NewMod11",{"$f":"IFERROR(IF(VLOOKUP(A75,'Reference Records'!$B$13:$D$48,3,FALSE)=0,\"\",VLOOKUP(A75,'Reference Records'!$B$13:$D$48,3,FALSE)),\"\")","v":""},null,"a2G36000001u8FNEAY"]
[{"$f":"IFERROR(INDEX('PR Expenditure_7A'!C$204:C$219,MATCH('PR Expenditure_7A import-export'!N76,'PR Expenditure_7A'!B$204:B$219,0)),\"\")","v":0},{"$f":"IFERROR(INDEX('PR Expenditure_7A'!D$204:D$219,MATCH('PR Expenditure_7A import-export'!N76,'PR Expenditure_7A'!B$204:B$219,0)),\"\")","v":0},0,{"$f":"IFERROR(INDEX('PR Expenditure_7A'!F$204:F$219,MATCH('PR Expenditure_7A import-export'!N76,'PR Expenditure_7A'!B$204:B$219,0)),\"\")","v":0},null,null,null,null,0,{"$f":"IFERROR(INDEX('PR Expenditure_7A'!L$204:L$219,MATCH('PR Expenditure_7A import-export'!N76,'PR Expenditure_7A'!B$204:B$219,0)),\"\")","v":0},null,null,12,"NewMod12",{"$f":"IFERROR(IF(VLOOKUP(A76,'Reference Records'!$B$13:$D$48,3,FALSE)=0,\"\",VLOOKUP(A76,'Reference Records'!$B$13:$D$48,3,FALSE)),\"\")","v":""},null,"a2G36000001u8FOEAY"]
[{"$f":"IFERROR(INDEX('PR Expenditure_7A'!C$204:C$219,MATCH('PR Expenditure_7A import-export'!N77,'PR Expenditure_7A'!B$204:B$219,0)),\"\")","v":0},{"$f":"IFERROR(INDEX('PR Expenditure_7A'!D$204:D$219,MATCH('PR Expenditure_7A import-export'!N77,'PR Expenditure_7A'!B$204:B$219,0)),\"\")","v":0},0,{"$f":"IFERROR(INDEX('PR Expenditure_7A'!F$204:F$219,MATCH('PR Expenditure_7A import-export'!N77,'PR Expenditure_7A'!B$204:B$219,0)),\"\")","v":0},null,null,null,null,0,{"$f":"IFERROR(INDEX('PR Expenditure_7A'!L$204:L$219,MATCH('PR Expenditure_7A import-export'!N77,'PR Expenditure_7A'!B$204:B$219,0)),\"\")","v":0},null,null,13,"NewMod13",{"$f":"IFERROR(IF(VLOOKUP(A77,'Reference Records'!$B$13:$D$48,3,FALSE)=0,\"\",VLOOKUP(A77,'Reference Records'!$B$13:$D$48,3,FALSE)),\"\")","v":""},null,"a2G36000001u8FPEAY"]
[{"$f":"IFERROR(INDEX('PR Expenditure_7A'!C$204:C$219,MATCH('PR Expenditure_7A import-export'!N78,'PR Expenditure_7A'!B$204:B$219,0)),\"\")","v":0},{"$f":"IFERROR(INDEX('PR Expenditure_7A'!D$204:D$219,MATCH('PR Expenditure_7A import-export'!N78,'PR Expenditure_7A'!B$204:B$219,0)),\"\")","v":0},0,{"$f":"IFERROR(INDEX('PR Expenditure_7A'!F$204:F$219,MATCH('PR Expenditure_7A import-export'!N78,'PR Expenditure_7A'!B$204:B$219,0)),\"\")","v":0},null,null,null,null,0,{"$f":"IFERROR(INDEX('PR Expenditure_7A'!L$204:L$219,MATCH('PR Expenditure_7A import-export'!N78,'PR Expenditure_7A'!B$204:B$219,0)),\"\")","v":0},null,null,14,"NewMod14",{"$f":"IFERROR(IF(VLOOKUP(A78,'Reference Records'!$B$13:$D$48,3,FALSE)=0,\"\",VLOOKUP(A78,'Reference Records'!$B$13:$D$48,3,FALSE)),\"\")","v":""},null,"a2G36000001u8FQEAY"]
[{"$f":"IFERROR(INDEX('PR Expenditure_7A'!C$204:C$219,MATCH('PR Expenditure_7A import-export'!N79,'PR Expenditure_7A'!B$204:B$219,0)),\"\")","v":0},{"$f":"IFERROR(INDEX('PR Expenditure_7A'!D$204:D$219,MATCH('PR Expenditure_7A import-export'!N79,'PR Expenditure_7A'!B$204:B$219,0)),\"\")","v":0},0,{"$f":"IFERROR(INDEX('PR Expenditure_7A'!F$204:F$219,MATCH('PR Expenditure_7A import-export'!N79,'PR Expenditure_7A'!B$204:B$219,0)),\"\")","v":0},null,null,null,null,0,{"$f":"IFERROR(INDEX('PR Expenditure_7A'!L$204:L$219,MATCH('PR Expenditure_7A import-export'!N79,'PR Expenditure_7A'!B$204:B$219,0)),\"\")","v":0},null,null,15,"NewMod15",{"$f":"IFERROR(IF(VLOOKUP(A79,'Reference Records'!$B$13:$D$48,3,FALSE)=0,\"\",VLOOKUP(A79,'Reference Records'!$B$13:$D$48,3,FALSE)),\"\")","v":""},null,"a2G36000001u8FREAY"]
[]
["Implementing Entity","Type of Implementing Entity","Budget for Reporting Period","Actual Expenditure","Budget Vs Actual Variances","Absorption Rate","Explanation of Variances (mandatory for all percentages below 95% & above 105%)",null,"Cumulative Budget","Cumulative Actual Expenditure","Cumulative Budget Vs Actuals Variances","Absorption Rate",-1,null,"Record ID"]
["[Implementing Entity to display]","[Full Type]","[Budget for Reporting Period]",{"$f":"IFERROR(INDEX('PR Expenditure_7A'!F$225:F$274,MATCH('PR Expenditure_7A import-export'!N82,'PR Expenditure_7A'!B$225:B$274,0)),\"\")","v":""},null,null,null,null,"[Cumulative Budget]",{"$f":"IFERROR(INDEX('PR Expenditure_7A'!L$225:L$274,MATCH('PR Expenditure_7A import-export'!N82,'PR Expenditure_7A'!B$225:B$274,0)),\"\")","v":""},null,null,{"$f":"M81+1","v":0},{"$f":"\"IP\"&M82","v":"IP0"},"[Record ID]",null,null,null,null,null,null,null,null,null,null,null,null,"Type of Recipient"]
["Red Cross Burundi","-",980086.54583479103,{"$f":"IFERROR(INDEX('PR Expenditure_7A'!F$225:F$274,MATCH('PR Expenditure_7A import-export'!N83,'PR Expenditure_7A'!B$225:B$274,0)),\"\")","v":347789.20000000007},null,null,null,null,980086.54583479103,{"$f":"IFERROR(INDEX('PR Expenditure_7A'!L$225:L$274,MATCH('PR Expenditure_7A import-export'!N83,'PR Expenditure_7A'!B$225:B$274,0)),\"\")","v":347789.20000000007},null,null,{"$f":"M82+1","v":1},{"$f":"\"IP\"&M83","v":"IP1"},"a2G36000001u8DfEAI"]
["PNILT","-",392096.936571764,{"$f":"IFERROR(INDEX('PR Expenditure_7A'!F$225:F$274,MATCH('PR Expenditure_7A import-export'!N84,'PR Expenditure_7A'!B$225:B$274,0)),\"\")","v":21693.9},null,null,null,null,392096.936571764,{"$f":"IFERROR(INDEX('PR Expenditure_7A'!L$225:L$274,MATCH('PR Expenditure_7A import-export'!N84,'PR Expenditure_7A'!B$225:B$274,0)),\"\")","v":21693.9},null,null,{"$f":"M83+1","v":2},{"$f":"\"IP\"&M84","v":"IP2"},"a2G36000001u8DlEAI"]
["United Nations Development Programme","-",3416867.5639248402,{"$f":"IFERROR(INDEX('PR Expenditure_7A'!F$225:F$274,MATCH('PR Expenditure_7A import-export'!N85,'PR Expenditure_7A'!B$225:B$274,0)),\"\")","v":675972.24999999977},null,null,null,null,3416867.5639248402,{"$f":"IFERROR(INDEX('PR Expenditure_7A'!L$225:L$274,MATCH('PR Expenditure_7A import-export'!N85,'PR Expenditure_7A'!B$225:B$274,0)),\"\")","v":675972.24999999977},null,null,{"$f":"M84+1","v":3},{"$f":"\"IP\"&M85","v":"IP3"},"a2G36000001u8DpEAI"]
["PNLS /IST","-",954806.29754234501,{"$f":"IFERROR(INDEX('PR Expenditure_7A'!F$225:F$274,MATCH('PR Expenditure_7A import-export'!N86,'PR Expenditure_7A'!B$225:B$274,0)),\"\")","v":11199.32},null,null,null,null,954806.29754234501,{"$f":"IFERROR(INDEX('PR Expenditure_7A'!L$225:L$274,MATCH('PR Expenditure_7A import-export'!N86,'PR Expenditure_7A'!B$225:B$274,0)),\"\")","v":11199.32},null,null,{"$f":"M85+1","v":4},{"$f":"\"IP\"&M86","v":"IP4"},"a2G36000001u8EKEAY"]
[]
[]
[]
[]
[]
[]
[]
[]
[]
[]
[]
[]
[]
[]
[]
[]
[]
[]
[null,null,"`"]

{"sheet":"LFA Expenditure_7B","index":32,"n_rows":277,"n_cols":21,"rows_kept":277,"cut":false,"hidden":false,"merged":[[1,6,1,7],[2,6,2,7],[0,2,0,14],[1,12,2,14]]}
[null,null,{"$f":"IF(CoverSheet!J12=\"N/A\",\"Progress Report\",\"Progress Report with Disbursement Request\")","v":"Progress Report with Disbursement Request"}]
[null,null,"Section 7B.The Principal Recipient Expenditure Report Verified by the LFA",null,null,null,{"$f":"CoverSheet!F12","v":"Période couverte par le rapport sur les information financière"},null,{"$f":"CoverSheet!J12","v":"2018-01-01"},null,{"$f":"CoverSheet!K12","v":"Date de fin :"},{"$f":"CoverSheet!L12","v":"2018-06-30"}]
[null,null,"Has the LFA Verified Principal Recipient Expenditure Report?","Select",null,null,"Cumulative Period of Financial Reporting",null,{"$f":"CoverSheet!D13","v":"2018-01-01"},null,{"$f":"CoverSheet!K12","v":"Date de fin :"},{"$f":"CoverSheet!L12","v":"2018-06-30"}]
[null,null,"A- BREAKDOWN BY COST GROUPING OR COST INPUT"]
[]
[null,null,null,null,"Current Reporting Period",null,null,null,null,null,null,"Cumulative for the Implementation Period"]
["Show",null,"Costing Dimension (Cost Grouping or Cost Input)",null,"Budget for Reporting Period","Actual Expenditure ","Local Fund Agent Adjustment on Expenditures","Budget Vs Actual Variances","Absorption Rate","LFA comments on the Principal Recipient's explanation of variances",null,"Cumulative Budget","Cumulative Actual Expenditure","Cumulative Budget Vs Actuals Variances","Absorption Rate"]
[{"$f":"IF(C8<>\"\",\"Show\",\"Don't Show\")","v":"Show"},"Costgrp1",{"$f":"IFERROR(INDEX('LFA Expenditure_7B imp-exp'!A$2:A$18,MATCH('LFA Expenditure_7B'!B8,'LFA Expenditure_7B imp-exp'!N$2:N$18,0)),\"\")","v":"1. Human Resources (HR)"},null,{"$f":"IFERROR(INDEX('LFA Expenditure_7B imp-exp'!C$2:C$18,MATCH('LFA Expenditure_7B'!B8,'LFA Expenditure_7B imp-exp'!N$2:N$18,0)),\"\")","v":1353058.12011834},{"$f":"'PR Expenditure_7A'!F9","v":475536.8299999999},null,{"$f":"IFERROR((E8)-(F8+G8),0)","v":877521.29011834017},{"$f":"IF(AND((E8)=0,(F8+G8)=0),\"N/A\",IF(AND((E8)=0,(F8+G8)<>0),\"Not Budgeted\",(F8+G8)/(E8)))","v":0.351453365475837},null,null,{"$f":"IFERROR(INDEX('LFA Expenditure_7B imp-exp'!J$2:J$18,MATCH('LFA Expenditure_7B'!B8,'LFA Expenditure_7B imp-exp'!N$2:N$18,0)),\"\")","v":1353058.12011834},null,{"$f":"IFERROR(L8-M8,0)","v":1353058.12011834},{"$f":"IF(AND(L8=0,M8=0),\"N/A\",IF(AND(L8=0,M8<>0),\"Not Budgeted\",M8/L8))","v":0}]
["Show","Costgrp2",{"$f":"IFERROR(INDEX('LFA Expenditure_7B imp-exp'!A$2:A$18,MATCH('LFA Expenditure_7B'!B9,'LFA Expenditure_7B imp-exp'!N$2:N$18,0)),\"\")","v":"10. Communication Material and Publications (CMP)"},null,{"$f":"IFERROR(INDEX('LFA Expenditure_7B imp-exp'!C$2:C$18,MATCH('LFA Expenditure_7B'!B9,'LFA Expenditure_7B imp-exp'!N$2:N$18,0)),\"\")","v":86236.2105099576},{"$f":"'PR Expenditure_7A'!F10","v":0},null,{"$f":"IFERROR((E9)-(F9+G9),0)","v":86236.2105099576},{"$f":"IF(AND((E9)=0,(F9+G9)=0),\"N/A\",IF(AND((E9)=0,(F9+G9)<>0),\"Not Budgeted\",(F9+G9)/(E9)))","v":0},null,null,{"$f":"IFERROR(INDEX('LFA Expenditure_7B imp-exp'!J$2:J$18,MATCH('LFA Expenditure_7B'!B9,'LFA Expenditure_7B imp-exp'!N$2:N$18,0)),\"\")","v":86236.2105099576},null,{"$f":"IFERROR(L9-M9,0)","v":86236.2105099576},{"$f":"IF(AND(L9=0,M9=0),\"N/A\",IF(AND(L9=0,M9<>0),\"Not Budgeted\",M9/L9))","v":0}]
["Show","Costgrp3",{"$f":"IFERROR(INDEX('LFA Expenditure_7B imp-exp'!A$2:A$18,MATCH('LFA Expenditure_7B'!B10,'LFA Expenditure_7B imp-exp'!N$2:N$18,0)),\"\")","v":"11. Programme Administration costs (PA)"},null,{"$f":"IFERROR(INDEX('LFA Expenditure_7B imp-exp'!C$2:C$18,MATCH('LFA Expenditure_7B'!B10,'LFA Expenditure_7B imp-exp'!N$2:N$18,0)),\"\")","v":516491.998233644},{"$f":"'PR Expenditure_7A'!F11","v":114757.96999999999},null,401734.02823364403,0.22218731440653849,null,null,{"$f":"IFERROR(INDEX('LFA Expenditure_7B imp-exp'!J$2:J$18,MATCH('LFA Expenditure_7B'!B10,'LFA Expenditure_7B imp-exp'!N$2:N$18,0)),\"\")","v":516491.998233644},null,516491.998233644,0]
["Show","Costgrp4",{"$f":"IFERROR(INDEX('LFA Expenditure_7B imp-exp'!A$2:A$18,MATCH('LFA Expenditure_7B'!B11,'LFA Expenditure_7B imp-exp'!N$2:N$18,0)),\"\")","v":"12. Living support to client/ target population (LSCTP)"},null,{"$f":"IFERROR(INDEX('LFA Expenditure_7B imp-exp'!C$2:C$18,MATCH('LFA Expenditure_7B'!B11,'LFA Expenditure_7B imp-exp'!N$2:N$18,0)),\"\")","v":315099.605819922},{"$f":"'PR Expenditure_7A'!F16","v":105.49},null,314994.11581992201,3.3478302749857152E-4,null,null,{"$f":"IFERROR(INDEX('LFA Expenditure_7B imp-exp'!J$2:J$18,MATCH('LFA Expenditure_7B'!B11,'LFA Expenditure_7B imp-exp'!N$2:N$18,0)),\"\")","v":315099.605819922},null,315099.605819922,0]
["Show","Costgrp5",{"$f":"IFERROR(INDEX('LFA Expenditure_7B imp-exp'!A$2:A$18,MATCH('LFA Expenditure_7B'!B12,'LFA Expenditure_7B imp-exp'!N$2:N$18,0)),\"\")","v":"13. Payment for Results"},null,{"$f":"IFERROR(INDEX('LFA Expenditure_7B imp-exp'!C$2:C$18,MATCH('LFA Expenditure_7B'!B12,'LFA Expenditure_7B imp-exp'!N$2:N$18,0)),\"\")","v":0},{"$f":"'PR Expenditure_7A'!F17","v":0},null,0,"N/A",null,null,{"$f":"IFERROR(INDEX('LFA Expenditure_7B imp-exp'!J$2:J$18,MATCH('LFA Expenditure_7B'!B12,'LFA Expenditure_7B imp-exp'!N$2:N$18,0)),\"\")","v":0},null,0,"N/A"]
["Show","Costgrp6",{"$f":"IFERROR(INDEX('LFA Expenditure_7B imp-exp'!A$2:A$18,MATCH('LFA Expenditure_7B'!B13,'LFA Expenditure_7B imp-exp'!N$2:N$18,0)),\"\")","v":"2. Travel related costs (TRC)"},null,{"$f":"IFERROR(INDEX('LFA Expenditure_7B imp-exp'!C$2:C$18,MATCH('LFA Expenditure_7B'!B13,'LFA Expenditure_7B imp-exp'!N$2:N$18,0)),\"\")","v":696858.44104419602},{"$f":"'PR Expenditure_7A'!F18","v":70725.910000000018},null,626132.53104419599,0.10149250670483656,null,null,{"$f":"IFERROR(INDEX('LFA Expenditure_7B imp-exp'!J$2:J$18,MATCH('LFA Expenditure_7B'!B13,'LFA Expenditure_7B imp-exp'!N$2:N$18,0)),\"\")","v":696858.44104419602},null,696858.44104419602,0]
["Show","Costgrp7",{"$f":"IFERROR(INDEX('LFA Expenditure_7B imp-exp'!A$2:A$18,MATCH('LFA Expenditure_7B'!B14,'LFA Expenditure_7B imp-exp'!N$2:N$18,0)),\"\")","v":"3. External Professional services (EPS)"},null,{"$f":"IFERROR(INDEX('LFA Expenditure_7B imp-exp'!C$2:C$18,MATCH('LFA Expenditure_7B'!B14,'LFA Expenditure_7B imp-exp'!N$2:N$18,0)),\"\")","v":91784.324300579901},{"$f":"'PR Expenditure_7A'!F19","v":3400},null,88384.324300579901,3.7043362533949804E-2,null,null,{"$f":"IFERROR(INDEX('LFA Expenditure_7B imp-exp'!J$2:J$18,MATCH('LFA Expenditure_7B'!B14,'LFA Expenditure_7B imp-exp'!N$2:N$18,0)),\"\")","v":91784.324300579901},null,91784.324300579901,0]
["Show","Costgrp8",{"$f":"IFERROR(INDEX('LFA Expenditure_7B imp-exp'!A$2:A$18,MATCH('LFA Expenditure_7B'!B15,'LFA Expenditure_7B imp-exp'!N$2:N$18,0)),\"\")","v":"4. Health Products - Pharmaceutical Products (HPPP)"},null,{"$f":"IFERROR(INDEX('LFA Expenditure_7B imp-exp'!C$2:C$18,MATCH('LFA Expenditure_7B'!B15,'LFA Expenditure_7B imp-exp'!N$2:N$18,0)),\"\")","v":1001500.19},{"$f":"'PR Expenditure_7A'!F16","v":105.49},null,1001394.7,1.0533198201390257E-4,null,null,{"$f":"IFERROR(INDEX('LFA Expenditure_7B imp-exp'!J$2:J$18,MATCH('LFA Expenditure_7B'!B15,'LFA Expenditure_7B imp-exp'!N$2:N$18,0)),\"\")","v":1001500.19},null,1001500.19,0]
[{"$f":"IF(C16<>\"\",\"Show\",\"Don't Show\")","v":"Show"},"Costgrp9",{"$f":"IFERROR(INDEX('LFA Expenditure_7B imp-exp'!A$2:A$18,MATCH('LFA Expenditure_7B'!B16,'LFA Expenditure_7B imp-exp'!N$2:N$18,0)),\"\")","v":"5. Health Products - Non-Pharmaceuticals (HPNP)"},null,{"$f":"IFERROR(INDEX('LFA Expenditure_7B imp-exp'!C$2:C$18,MATCH('LFA Expenditure_7B'!B16,'LFA Expenditure_7B imp-exp'!N$2:N$18,0)),\"\")","v":766761.02},{"$f":"'PR Expenditure_7A'!F17","v":0},null,{"$f":"IFERROR((E16)-(F16+G16),0)","v":766761.02},{"$f":"IF(AND((E16)=0,(F16+G16)=0),\"N/A\",IF(AND((E16)=0,(F16+G16)<>0),\"Not Budgeted\",(F16+G16)/(E16)))","v":0},null,null,{"$f":"IFERROR(INDEX('LFA Expenditure_7B imp-exp'!J$2:J$18,MATCH('LFA Expenditure_7B'!B16,'LFA Expenditure_7B imp-exp'!N$2:N$18,0)),\"\")","v":766761.02},null,{"$f":"IFERROR(L16-M16,0)","v":766761.02},{"$f":"IF(AND(L16=0,M16=0),\"N/A\",IF(AND(L16=0,M16<>0),\"Not Budgeted\",M16/L16))","v":0}]
["Show","Costgrp10",{"$f":"IFERROR(INDEX('LFA Expenditure_7B imp-exp'!A$2:A$18,MATCH('LFA Expenditure_7B'!B17,'LFA Expenditure_7B imp-exp'!N$2:N$18,0)),\"\")","v":"6. Health Products - Equipment (HPE)"},null,{"$f":"IFERROR(INDEX('LFA Expenditure_7B imp-exp'!C$2:C$18,MATCH('LFA Expenditure_7B'!B17,'LFA Expenditure_7B imp-exp'!N$2:N$18,0)),\"\")","v":299259.82},{"$f":"'PR Expenditure_7A'!F18","v":70725.910000000018},null,228533.90999999997,0.23633613760778183,null,null,{"$f":"IFERROR(INDEX('LFA Expenditure_7B imp-exp'!J$2:J$18,MATCH('LFA Expenditure_7B'!B17,'LFA Expenditure_7B imp-exp'!N$2:N$18,0)),\"\")","v":299259.82},null,299259.82,0]
["Show","Costgrp11",{"$f":"IFERROR(INDEX('LFA Expenditure_7B imp-exp'!A$2:A$18,MATCH('LFA Expenditure_7B'!B18,'LFA Expenditure_7B imp-exp'!N$2:N$18,0)),\"\")","v":"7. Procurement and Supply-Chain Management costs (PSM)"},null,{"$f":"IFERROR(INDEX('LFA Expenditure_7B imp-exp'!C$2:C$18,MATCH('LFA Expenditure_7B'!B18,'LFA Expenditure_7B imp-exp'!N$2:N$18,0)),\"\")","v":528283.17775999999},{"$f":"'PR Expenditure_7A'!F23","v":55753.53},null,472529.64775999996,0.10553720494452111,null,null,{"$f":"IFERROR(INDEX('LFA Expenditure_7B imp-exp'!J$2:J$18,MATCH('LFA Expenditure_7B'!B18,'LFA Expenditure_7B imp-exp'!N$2:N$18,0)),\"\")","v":528283.17775999999},null,528283.17775999999,0]
["Show","Costgrp12",{"$f":"IFERROR(INDEX('LFA Expenditure_7B imp-exp'!A$2:A$18,MATCH('LFA Expenditure_7B'!B19,'LFA Expenditure_7B imp-exp'!N$2:N$18,0)),\"\")","v":"8. Infrastructure (INF)"},null,{"$f":"IFERROR(INDEX('LFA Expenditure_7B imp-exp'!C$2:C$18,MATCH('LFA Expenditure_7B'!B19,'LFA Expenditure_7B imp-exp'!N$2:N$18,0)),\"\")","v":24155},{"$f":"'PR Expenditure_7A'!F24","v":5417.73},null,18737.27,0.22429020906644584,null,null,{"$f":"IFERROR(INDEX('LFA Expenditure_7B imp-exp'!J$2:J$18,MATCH('LFA Expenditure_7B'!B19,'LFA Expenditure_7B imp-exp'!N$2:N$18,0)),\"\")","v":24155},null,24155,0]
["Show","Costgrp13",{"$f":"IFERROR(INDEX('LFA Expenditure_7B imp-exp'!A$2:A$18,MATCH('LFA Expenditure_7B'!B20,'LFA Expenditure_7B imp-exp'!N$2:N$18,0)),\"\")","v":"9. Non-health equipment (NHP)"},null,{"$f":"IFERROR(INDEX('LFA Expenditure_7B imp-exp'!C$2:C$18,MATCH('LFA Expenditure_7B'!B20,'LFA Expenditure_7B imp-exp'!N$2:N$18,0)),\"\")","v":64369.436087100003},{"$f":"'PR Expenditure_7A'!F25","v":64489.639999999985},null,-120.20391289998224,1.0018674066483562,null,null,{"$f":"IFERROR(INDEX('LFA Expenditure_7B imp-exp'!J$2:J$18,MATCH('LFA Expenditure_7B'!B20,'LFA Expenditure_7B imp-exp'!N$2:N$18,0)),\"\")","v":64369.436087100003},null,64369.436087100003,0]
["Don't Show","Costgrp14",{"$f":"IFERROR(INDEX('LFA Expenditure_7B imp-exp'!A$2:A$18,MATCH('LFA Expenditure_7B'!B21,'LFA Expenditure_7B imp-exp'!N$2:N$18,0)),\"\")","v":""},null,{"$f":"IFERROR(INDEX('LFA Expenditure_7B imp-exp'!C$2:C$18,MATCH('LFA Expenditure_7B'!B21,'LFA Expenditure_7B imp-exp'!N$2:N$18,0)),\"\")","v":""},{"$f":"'PR Expenditure_7A'!F26","v":0},null,0,{"$error":"#VALUE!"},null,null,{"$f":"IFERROR(INDEX('LFA Expenditure_7B imp-exp'!J$2:J$18,MATCH('LFA Expenditure_7B'!B21,'LFA Expenditure_7B imp-exp'!N$2:N$18,0)),\"\")","v":""},null,0,{"$error":"#VALUE!"}]
["Don't Show","Costgrp15",{"$f":"IFERROR(INDEX('LFA Expenditure_7B imp-exp'!A$2:A$18,MATCH('LFA Expenditure_7B'!B22,'LFA Expenditure_7B imp-exp'!N$2:N$18,0)),\"\")","v":""},null,{"$f":"IFERROR(INDEX('LFA Expenditure_7B imp-exp'!C$2:C$18,MATCH('LFA Expenditure_7B'!B22,'LFA Expenditure_7B imp-exp'!N$2:N$18,0)),\"\")","v":""},{"$f":"'PR Expenditure_7A'!F23","v":55753.53},null,0,{"$error":"#VALUE!"},null,null,{"$f":"IFERROR(INDEX('LFA Expenditure_7B imp-exp'!J$2:J$18,MATCH('LFA Expenditure_7B'!B22,'LFA Expenditure_7B imp-exp'!N$2:N$18,0)),\"\")","v":""},null,0,{"$error":"#VALUE!"}]
["Don't Show","Costgrp16",{"$f":"IFERROR(INDEX('LFA Expenditure_7B imp-exp'!A$2:A$18,MATCH('LFA Expenditure_7B'!B23,'LFA Expenditure_7B imp-exp'!N$2:N$18,0)),\"\")","v":""},null,{"$f":"IFERROR(INDEX('LFA Expenditure_7B imp-exp'!C$2:C$18,MATCH('LFA Expenditure_7B'!B23,'LFA Expenditure_7B imp-exp'!N$2:N$18,0)),\"\")","v":""},{"$f":"'PR Expenditure_7A'!F24","v":5417.73},null,0,{"$error":"#VALUE!"},null,null,{"$f":"IFERROR(INDEX('LFA Expenditure_7B imp-exp'!J$2:J$18,MATCH('LFA Expenditure_7B'!B23,'LFA Expenditure_7B imp-exp'!N$2:N$18,0)),\"\")","v":""},null,0,{"$error":"#VALUE!"}]
["Don't Show","Costgrp17",{"$f":"IFERROR(INDEX('LFA Expenditure_7B imp-exp'!A$2:A$18,MATCH('LFA Expenditure_7B'!B24,'LFA Expenditure_7B imp-exp'!N$2:N$18,0)),\"\")","v":""},null,{"$f":"IFERROR(INDEX('LFA Expenditure_7B imp-exp'!C$2:C$18,MATCH('LFA Expenditure_7B'!B24,'LFA Expenditure_7B imp-exp'!N$2:N$18,0)),\"\")","v":""},{"$f":"'PR Expenditure_7A'!F25","v":64489.639999999985},null,0,{"$error":"#VALUE!"},null,null,{"$f":"IFERROR(INDEX('LFA Expenditure_7B imp-exp'!J$2:J$18,MATCH('LFA Expenditure_7B'!B24,'LFA Expenditure_7B imp-exp'!N$2:N$18,0)),\"\")","v":""},null,0,{"$error":"#VALUE!"}]
["Don't Show","Costgrp18",{"$f":"IFERROR(INDEX('LFA Expenditure_7B imp-exp'!A$2:A$18,MATCH('LFA Expenditure_7B'!B25,'LFA Expenditure_7B imp-exp'!N$2:N$18,0)),\"\")","v":""},null,{"$f":"IFERROR(INDEX('LFA Expenditure_7B imp-exp'!C$2:C$18,MATCH('LFA Expenditure_7B'!B25,'LFA Expenditure_7B imp-exp'!N$2:N$18,0)),\"\")","v":""},{"$f":"'PR Expenditure_7A'!F30","v":0},null,0,{"$error":"#VALUE!"},null,null,{"$f":"IFERROR(INDEX('LFA Expenditure_7B imp-exp'!J$2:J$18,MATCH('LFA Expenditure_7B'!B25,'LFA Expenditure_7B imp-exp'!N$2:N$18,0)),\"\")","v":""},null,0,{"$error":"#VALUE!"}]
["Don't Show","Costgrp19",{"$f":"IFERROR(INDEX('LFA Expenditure_7B imp-exp'!A$2:A$18,MATCH('LFA Expenditure_7B'!B26,'LFA Expenditure_7B imp-exp'!N$2:N$18,0)),\"\")","v":""},null,{"$f":"IFERROR(INDEX('LFA Expenditure_7B imp-exp'!C$2:C$18,MATCH('LFA Expenditure_7B'!B26,'LFA Expenditure_7B imp-exp'!N$2:N$18,0)),\"\")","v":""},{"$f":"'PR Expenditure_7A'!F31","v":0},null,0,{"$error":"#VALUE!"},null,null,{"$f":"IFERROR(INDEX('LFA Expenditure_7B imp-exp'!J$2:J$18,MATCH('LFA Expenditure_7B'!B26,'LFA Expenditure_7B imp-exp'!N$2:N$18,0)),\"\")","v":""},null,0,{"$error":"#VALUE!"}]
["Don't Show","Costgrp20",{"$f":"IFERROR(INDEX('LFA Expenditure_7B imp-exp'!A$2:A$18,MATCH('LFA Expenditure_7B'!B27,'LFA Expenditure_7B imp-exp'!N$2:N$18,0)),\"\")","v":""},null,{"$f":"IFERROR(INDEX('LFA Expenditure_7B imp-exp'!C$2:C$18,MATCH('LFA Expenditure_7B'!B27,'LFA Expenditure_7B imp-exp'!N$2:N$18,0)),\"\")","v":""},{"$f":"'PR Expenditure_7A'!F32","v":0},null,0,{"$error":"#VALUE!"},null,null,{"$f":"IFERROR(INDEX('LFA Expenditure_7B imp-exp'!J$2:J$18,MATCH('LFA Expenditure_7B'!B27,'LFA Expenditure_7B imp-exp'!N$2:N$18,0)),\"\")","v":""},null,0,{"$error":"#VALUE!"}]
["Don't Show","Costgrp21",{"$f":"IFERROR(INDEX('LFA Expenditure_7B imp-exp'!A$2:A$18,MATCH('LFA Expenditure_7B'!B28,'LFA Expenditure_7B imp-exp'!N$2:N$18,0)),\"\")","v":""},null,{"$f":"IFERROR(INDEX('LFA Expenditure_7B imp-exp'!C$2:C$18,MATCH('LFA Expenditure_7B'!B28,'LFA Expenditure_7B imp-exp'!N$2:N$18,0)),\"\")","v":""},{"$f":"'PR Expenditure_7A'!F33","v":0},null,0,{"$error":"#VALUE!"},null,null,{"$f":"IFERROR(INDEX('LFA Expenditure_7B imp-exp'!J$2:J$18,MATCH('LFA Expenditure_7B'!B28,'LFA Expenditure_7B imp-exp'!N$2:N$18,0)),\"\")","v":""},null,0,{"$error":"#VALUE!"}]
["Don't Show","Costgrp22",{"$f":"IFERROR(INDEX('LFA Expenditure_7B imp-exp'!A$2:A$18,MATCH('LFA Expenditure_7B'!B29,'LFA Expenditure_7B imp-exp'!N$2:N$18,0)),\"\")","v":""},null,{"$f":"IFERROR(INDEX('LFA Expenditure_7B imp-exp'!C$2:C$18,MATCH('LFA Expenditure_7B'!B29,'LFA Expenditure_7B imp-exp'!N$2:N$18,0)),\"\")","v":""},{"$f":"'PR Expenditure_7A'!F30","v":0},null,0,{"$error":"#VALUE!"},null,null,{"$f":"IFERROR(INDEX('LFA Expenditure_7B imp-exp'!J$2:J$18,MATCH('LFA Expenditure_7B'!B29,'LFA Expenditure_7B imp-exp'!N$2:N$18,0)),\"\")","v":""},null,0,{"$error":"#VALUE!"}]
["Don't Show","Costgrp23",{"$f":"IFERROR(INDEX('LFA Expenditure_7B imp-exp'!A$2:A$18,MATCH('LFA Expenditure_7B'!B30,'LFA Expenditure_7B imp-exp'!N$2:N$18,0)),\"\")","v":""},null,{"$f":"IFERROR(INDEX('LFA Expenditure_7B imp-exp'!C$2:C$18,MATCH('LFA Expenditure_7B'!B30,'LFA Expenditure_7B imp-exp'!N$2:N$18,0)),\"\")","v":""},{"$f":"'PR Expenditure_7A'!F31","v":0},null,0,{"$error":"#VALUE!"},null,null,{"$f":"IFERROR(INDEX('LFA Expenditure_7B imp-exp'!J$2:J$18,MATCH('LFA Expenditure_7B'!B30,'LFA Expenditure_7B imp-exp'!N$2:N$18,0)),\"\")","v":""},null,0,{"$error":"#VALUE!"}]
["Don't Show","Costgrp24",{"$f":"IFERROR(INDEX('LFA Expenditure_7B imp-exp'!A$2:A$18,MATCH('LFA Expenditure_7B'!B31,'LFA Expenditure_7B imp-exp'!N$2:N$18,0)),\"\")","v":""},null,{"$f":"IFERROR(INDEX('LFA Expenditure_7B imp-exp'!C$2:C$18,MATCH('LFA Expenditure_7B'!B31,'LFA Expenditure_7B imp-exp'!N$2:N$18,0)),\"\")","v":""},{"$f":"'PR Expenditure_7A'!F32","v":0},null,0,{"$error":"#VALUE!"},null,null,{"$f":"IFERROR(INDEX('LFA Expenditure_7B imp-exp'!J$2:J$18,MATCH('LFA Expenditure_7B'!B31,'LFA Expenditure_7B imp-exp'!N$2:N$18,0)),\"\")","v":""},null,0,{"$error":"#VALUE!"}]
["Don't Show","Costgrp25",{"$f":"IFERROR(INDEX('LFA Expenditure_7B imp-exp'!A$2:A$18,MATCH('LFA Expenditure_7B'!B32,'LFA Expenditure_7B imp-exp'!N$2:N$18,0)),\"\")","v":""},null,{"$f":"IFERROR(INDEX('LFA Expenditure_7B imp-exp'!C$2:C$18,MATCH('LFA Expenditure_7B'!B32,'LFA Expenditure_7B imp-exp'!N$2:N$18,0)),\"\")","v":""},{"$f":"'PR Expenditure_7A'!F37","v":0},null,0,{"$error":"#VALUE!"},null,null,{"$f":"IFERROR(INDEX('LFA Expenditure_7B imp-exp'!J$2:J$18,MATCH('LFA Expenditure_7B'!B32,'LFA Expenditure_7B imp-exp'!N$2:N$18,0)),\"\")","v":""},null,0,{"$error":"#VALUE!"}]
["Don't Show","Costgrp26",{"$f":"IFERROR(INDEX('LFA Expenditure_7B imp-exp'!A$2:A$18,MATCH('LFA Expenditure_7B'!B33,'LFA Expenditure_7B imp-exp'!N$2:N$18,0)),\"\")","v":""},null,{"$f":"IFERROR(INDEX('LFA Expenditure_7B imp-exp'!C$2:C$18,MATCH('LFA Expenditure_7B'!B33,'LFA Expenditure_7B imp-exp'!N$2:N$18,0)),\"\")","v":""},{"$f":"'PR Expenditure_7A'!F38","v":0},null,0,{"$error":"#VALUE!"},null,null,{"$f":"IFERROR(INDEX('LFA Expenditure_7B imp-exp'!J$2:J$18,MATCH('LFA Expenditure_7B'!B33,'LFA Expenditure_7B imp-exp'!N$2:N$18,0)),\"\")","v":""},null,0,{"$error":"#VALUE!"}]
["Don't Show","Costgrp27",{"$f":"IFERROR(INDEX('LFA Expenditure_7B imp-exp'!A$2:A$18,MATCH('LFA Expenditure_7B'!B34,'LFA Expenditure_7B imp-exp'!N$2:N$18,0)),\"\")","v":""},null,{"$f":"IFERROR(INDEX('LFA Expenditure_7B imp-exp'!C$2:C$18,MATCH('LFA Expenditure_7B'!B34,'LFA Expenditure_7B imp-exp'!N$2:N$18,0)),\"\")","v":""},{"$f":"'PR Expenditure_7A'!F39","v":0},null,0,{"$error":"#VALUE!"},null,null,{"$f":"IFERROR(INDEX('LFA Expenditure_7B imp-exp'!J$2:J$18,MATCH('LFA Expenditure_7B'!B34,'LFA Expenditure_7B imp-exp'!N$2:N$18,0)),\"\")","v":""},null,0,{"$error":"#VALUE!"}]
["Don't Show","Costgrp28",{"$f":"IFERROR(INDEX('LFA Expenditure_7B imp-exp'!A$2:A$18,MATCH('LFA Expenditure_7B'!B35,'LFA Expenditure_7B imp-exp'!N$2:N$18,0)),\"\")","v":""},null,{"$f":"IFERROR(INDEX('LFA Expenditure_7B imp-exp'!C$2:C$18,MATCH('LFA Expenditure_7B'!B35,'LFA Expenditure_7B imp-exp'!N$2:N$18,0)),\"\")","v":""},{"$f":"'PR Expenditure_7A'!F40","v":0},null,0,{"$error":"#VALUE!"},null,null,{"$f":"IFERROR(INDEX('LFA Expenditure_7B imp-exp'!J$2:J$18,MATCH('LFA Expenditure_7B'!B35,'LFA Expenditure_7B imp-exp'!N$2:N$18,0)),\"\")","v":""},null,0,{"$error":"#VALUE!"}]
["Don't Show","Costgrp29",{"$f":"IFERROR(INDEX('LFA Expenditure_7B imp-exp'!A$2:A$18,MATCH('LFA Expenditure_7B'!B36,'LFA Expenditure_7B imp-exp'!N$2:N$18,0)),\"\")","v":""},null,{"$f":"IFERROR(INDEX('LFA Expenditure_7B imp-exp'!C$2:C$18,MATCH('LFA Expenditure_7B'!B36,'LFA Expenditure_7B imp-exp'!N$2:N$18,0)),\"\")","v":""},{"$f":"'PR Expenditure_7A'!F37","v":0},null,0,{"$error":"#VALUE!"},null,null,{"$f":"IFERROR(INDEX('LFA Expenditure_7B imp-exp'!J$2:J$18,MATCH('LFA Expenditure_7B'!B36,'LFA Expenditure_7B imp-exp'!N$2:N$18,0)),\"\")","v":""},null,0,{"$error":"#VALUE!"}]
["Don't Show","Costgrp30",{"$f":"IFERROR(INDEX('LFA Expenditure_7B imp-exp'!A$2:A$18,MATCH('LFA Expenditure_7B'!B37,'LFA Expenditure_7B imp-exp'!N$2:N$18,0)),\"\")","v":""},null,{"$f":"IFERROR(INDEX('LFA Expenditure_7B imp-exp'!C$2:C$18,MATCH('LFA Expenditure_7B'!B37,'LFA Expenditure_7B imp-exp'!N$2:N$18,0)),\"\")","v":""},{"$f":"'PR Expenditure_7A'!F38","v":0},null,0,{"$error":"#VALUE!"},null,null,{"$f":"IFERROR(INDEX('LFA Expenditure_7B imp-exp'!J$2:J$18,MATCH('LFA Expenditure_7B'!B37,'LFA Expenditure_7B imp-exp'!N$2:N$18,0)),\"\")","v":""},null,0,{"$error":"#VALUE!"}]
["Don't Show","Costgrp31",{"$f":"IFERROR(INDEX('LFA Expenditure_7B imp-exp'!A$2:A$18,MATCH('LFA Expenditure_7B'!B38,'LFA Expenditure_7B imp-exp'!N$2:N$18,0)),\"\")","v":""},null,{"$f":"IFERROR(INDEX('LFA Expenditure_7B imp-exp'!C$2:C$18,MATCH('LFA Expenditure_7B'!B38,'LFA Expenditure_7B imp-exp'!N$2:N$18,0)),\"\")","v":""},{"$f":"'PR Expenditure_7A'!F39","v":0},null,0,{"$error":"#VALUE!"},null,null,{"$f":"IFERROR(INDEX('LFA Expenditure_7B imp-exp'!J$2:J$18,MATCH('LFA Expenditure_7B'!B38,'LFA Expenditure_7B imp-exp'!N$2:N$18,0)),\"\")","v":""},null,0,{"$error":"#VALUE!"}]
["Don't Show","Costgrp32",{"$f":"IFERROR(INDEX('LFA Expenditure_7B imp-exp'!A$2:A$18,MATCH('LFA Expenditure_7B'!B39,'LFA Expenditure_7B imp-exp'!N$2:N$18,0)),\"\")","v":""},null,{"$f":"IFERROR(INDEX('LFA Expenditure_7B imp-exp'!C$2:C$18,MATCH('LFA Expenditure_7B'!B39,'LFA Expenditure_7B imp-exp'!N$2:N$18,0)),\"\")","v":""},{"$f":"'PR Expenditure_7A'!F44","v":0},null,0,{"$error":"#VALUE!"},null,null,{"$f":"IFERROR(INDEX('LFA Expenditure_7B imp-exp'!J$2:J$18,MATCH('LFA Expenditure_7B'!B39,'LFA Expenditure_7B imp-exp'!N$2:N$18,0)),\"\")","v":""},null,0,{"$error":"#VALUE!"}]
["Don't Show","Costgrp33",{"$f":"IFERROR(INDEX('LFA Expenditure_7B imp-exp'!A$2:A$18,MATCH('LFA Expenditure_7B'!B40,'LFA Expenditure_7B imp-exp'!N$2:N$18,0)),\"\")","v":""},null,{"$f":"IFERROR(INDEX('LFA Expenditure_7B imp-exp'!C$2:C$18,MATCH('LFA Expenditure_7B'!B40,'LFA Expenditure_7B imp-exp'!N$2:N$18,0)),\"\")","v":""},{"$f":"'PR Expenditure_7A'!F45","v":0},null,0,{"$error":"#VALUE!"},null,null,{"$f":"IFERROR(INDEX('LFA Expenditure_7B imp-exp'!J$2:J$18,MATCH('LFA Expenditure_7B'!B40,'LFA Expenditure_7B imp-exp'!N$2:N$18,0)),\"\")","v":""},null,0,{"$error":"#VALUE!"}]
["Don't Show","Costgrp34",{"$f":"IFERROR(INDEX('LFA Expenditure_7B imp-exp'!A$2:A$18,MATCH('LFA Expenditure_7B'!B41,'LFA Expenditure_7B imp-exp'!N$2:N$18,0)),\"\")","v":""},null,{"$f":"IFERROR(INDEX('LFA Expenditure_7B imp-exp'!C$2:C$18,MATCH('LFA Expenditure_7B'!B41,'LFA Expenditure_7B imp-exp'!N$2:N$18,0)),\"\")","v":""},{"$f":"'PR Expenditure_7A'!F46","v":0},null,0,{"$error":"#VALUE!"},null,null,{"$f":"IFERROR(INDEX('LFA Expenditure_7B imp-exp'!J$2:J$18,MATCH('LFA Expenditure_7B'!B41,'LFA Expenditure_7B imp-exp'!N$2:N$18,0)),\"\")","v":""},null,0,{"$error":"#VALUE!"}]
["Don't Show","Costgrp35",{"$f":"IFERROR(INDEX('LFA Expenditure_7B imp-exp'!A$2:A$18,MATCH('LFA Expenditure_7B'!B42,'LFA Expenditure_7B imp-exp'!N$2:N$18,0)),\"\")","v":""},null,{"$f":"IFERROR(INDEX('LFA Expenditure_7B imp-exp'!C$2:C$18,MATCH('LFA Expenditure_7B'!B42,'LFA Expenditure_7B imp-exp'!N$2:N$18,0)),\"\")","v":""},{"$f":"'PR Expenditure_7A'!F47","v":0},null,0,{"$error":"#VALUE!"},null,null,{"$f":"IFERROR(INDEX('LFA Expenditure_7B imp-exp'!J$2:J$18,MATCH('LFA Expenditure_7B'!B42,'LFA Expenditure_7B imp-exp'!N$2:N$18,0)),\"\")","v":""},null,0,{"$error":"#VALUE!"}]
["Don't Show","Costgrp36",{"$f":"IFERROR(INDEX('LFA Expenditure_7B imp-exp'!A$2:A$18,MATCH('LFA Expenditure_7B'!B43,'LFA Expenditure_7B imp-exp'!N$2:N$18,0)),\"\")","v":""},null,{"$f":"IFERROR(INDEX('LFA Expenditure_7B imp-exp'!C$2:C$18,MATCH('LFA Expenditure_7B'!B43,'LFA Expenditure_7B imp-exp'!N$2:N$18,0)),\"\")","v":""},{"$f":"'PR Expenditure_7A'!F44","v":0},null,0,{"$error":"#VALUE!"},null,null,{"$f":"IFERROR(INDEX('LFA Expenditure_7B imp-exp'!J$2:J$18,MATCH('LFA Expenditure_7B'!B43,'LFA Expenditure_7B imp-exp'!N$2:N$18,0)),\"\")","v":""},null,0,{"$error":"#VALUE!"}]
["Don't Show","Costgrp37",{"$f":"IFERROR(INDEX('LFA Expenditure_7B imp-exp'!A$2:A$18,MATCH('LFA Expenditure_7B'!B44,'LFA Expenditure_7B imp-exp'!N$2:N$18,0)),\"\")","v":""},null,{"$f":"IFERROR(INDEX('LFA Expenditure_7B imp-exp'!C$2:C$18,MATCH('LFA Expenditure_7B'!B44,'LFA Expenditure_7B imp-exp'!N$2:N$18,0)),\"\")","v":""},{"$f":"'PR Expenditure_7A'!F45","v":0},null,0,{"$error":"#VALUE!"},null,null,{"$f":"IFERROR(INDEX('LFA Expenditure_7B imp-exp'!J$2:J$18,MATCH('LFA Expenditure_7B'!B44,'LFA Expenditure_7B imp-exp'!N$2:N$18,0)),\"\")","v":""},null,0,{"$error":"#VALUE!"}]
["Don't Show","Costgrp38",{"$f":"IFERROR(INDEX('LFA Expenditure_7B imp-exp'!A$2:A$18,MATCH('LFA Expenditure_7B'!B45,'LFA Expenditure_7B imp-exp'!N$2:N$18,0)),\"\")","v":""},null,{"$f":"IFERROR(INDEX('LFA Expenditure_7B imp-exp'!C$2:C$18,MATCH('LFA Expenditure_7B'!B45,'LFA Expenditure_7B imp-exp'!N$2:N$18,0)),\"\")","v":""},{"$f":"'PR Expenditure_7A'!F46","v":0},null,0,{"$error":"#VALUE!"},null,null,{"$f":"IFERROR(INDEX('LFA Expenditure_7B imp-exp'!J$2:J$18,MATCH('LFA Expenditure_7B'!B45,'LFA Expenditure_7B imp-exp'!N$2:N$18,0)),\"\")","v":""},null,0,{"$error":"#VALUE!"}]
["Don't Show","Costgrp39",{"$f":"IFERROR(INDEX('LFA Expenditure_7B imp-exp'!A$2:A$18,MATCH('LFA Expenditure_7B'!B46,'LFA Expenditure_7B imp-exp'!N$2:N$18,0)),\"\")","v":""},null,{"$f":"IFERROR(INDEX('LFA Expenditure_7B imp-exp'!C$2:C$18,MATCH('LFA Expenditure_7B'!B46,'LFA Expenditure_7B imp-exp'!N$2:N$18,0)),\"\")","v":""},{"$f":"'PR Expenditure_7A'!F51","v":0},null,0,{"$error":"#VALUE!"},null,null,{"$f":"IFERROR(INDEX('LFA Expenditure_7B imp-exp'!J$2:J$18,MATCH('LFA Expenditure_7B'!B46,'LFA Expenditure_7B imp-exp'!N$2:N$18,0)),\"\")","v":""},null,0,{"$error":"#VALUE!"}]
["Don't Show","Costgrp40",{"$f":"IFERROR(INDEX('LFA Expenditure_7B imp-exp'!A$2:A$18,MATCH('LFA Expenditure_7B'!B47,'LFA Expenditure_7B imp-exp'!N$2:N$18,0)),\"\")","v":""},null,{"$f":"IFERROR(INDEX('LFA Expenditure_7B imp-exp'!C$2:C$18,MATCH('LFA Expenditure_7B'!B47,'LFA Expenditure_7B imp-exp'!N$2:N$18,0)),\"\")","v":""},{"$f":"'PR Expenditure_7A'!F52","v":0},null,0,{"$error":"#VALUE!"},null,null,{"$f":"IFERROR(INDEX('LFA Expenditure_7B imp-exp'!J$2:J$18,MATCH('LFA Expenditure_7B'!B47,'LFA Expenditure_7B imp-exp'!N$2:N$18,0)),\"\")","v":""},null,0,{"$error":"#VALUE!"}]
["Don't Show","Costgrp41",{"$f":"IFERROR(INDEX('LFA Expenditure_7B imp-exp'!A$2:A$18,MATCH('LFA Expenditure_7B'!B48,'LFA Expenditure_7B imp-exp'!N$2:N$18,0)),\"\")","v":""},null,{"$f":"IFERROR(INDEX('LFA Expenditure_7B imp-exp'!C$2:C$18,MATCH('LFA Expenditure_7B'!B48,'LFA Expenditure_7B imp-exp'!N$2:N$18,0)),\"\")","v":""},{"$f":"'PR Expenditure_7A'!F53","v":0},null,0,{"$error":"#VALUE!"},null,null,{"$f":"IFERROR(INDEX('LFA Expenditure_7B imp-exp'!J$2:J$18,MATCH('LFA Expenditure_7B'!B48,'LFA Expenditure_7B imp-exp'!N$2:N$18,0)),\"\")","v":""},null,0,{"$error":"#VALUE!"}]
["Don't Show","Costgrp42",{"$f":"IFERROR(INDEX('LFA Expenditure_7B imp-exp'!A$2:A$18,MATCH('LFA Expenditure_7B'!B49,'LFA Expenditure_7B imp-exp'!N$2:N$18,0)),\"\")","v":""},null,{"$f":"IFERROR(INDEX('LFA Expenditure_7B imp-exp'!C$2:C$18,MATCH('LFA Expenditure_7B'!B49,'LFA Expenditure_7B imp-exp'!N$2:N$18,0)),\"\")","v":""},{"$f":"'PR Expenditure_7A'!F54","v":0},null,0,{"$error":"#VALUE!"},null,null,{"$f":"IFERROR(INDEX('LFA Expenditure_7B imp-exp'!J$2:J$18,MATCH('LFA Expenditure_7B'!B49,'LFA Expenditure_7B imp-exp'!N$2:N$18,0)),\"\")","v":""},null,0,{"$error":"#VALUE!"}]
["Don't Show","Costgrp43",{"$f":"IFERROR(INDEX('LFA Expenditure_7B imp-exp'!A$2:A$18,MATCH('LFA Expenditure_7B'!B50,'LFA Expenditure_7B imp-exp'!N$2:N$18,0)),\"\")","v":""},null,{"$f":"IFERROR(INDEX('LFA Expenditure_7B imp-exp'!C$2:C$18,MATCH('LFA Expenditure_7B'!B50,'LFA Expenditure_7B imp-exp'!N$2:N$18,0)),\"\")","v":""},{"$f":"'PR Expenditure_7A'!F51","v":0},null,0,{"$error":"#VALUE!"},null,null,{"$f":"IFERROR(INDEX('LFA Expenditure_7B imp-exp'!J$2:J$18,MATCH('LFA Expenditure_7B'!B50,'LFA Expenditure_7B imp-exp'!N$2:N$18,0)),\"\")","v":""},null,0,{"$error":"#VALUE!"}]
["Don't Show","Costgrp44",{"$f":"IFERROR(INDEX('LFA Expenditure_7B imp-exp'!A$2:A$18,MATCH('LFA Expenditure_7B'!B51,'LFA Expenditure_7B imp-exp'!N$2:N$18,0)),\"\")","v":""},null,{"$f":"IFERROR(INDEX('LFA Expenditure_7B imp-exp'!C$2:C$18,MATCH('LFA Expenditure_7B'!B51,'LFA Expenditure_7B imp-exp'!N$2:N$18,0)),\"\")","v":""},{"$f":"'PR Expenditure_7A'!F52","v":0},null,0,{"$error":"#VALUE!"},null,null,{"$f":"IFERROR(INDEX('LFA Expenditure_7B imp-exp'!J$2:J$18,MATCH('LFA Expenditure_7B'!B51,'LFA Expenditure_7B imp-exp'!N$2:N$18,0)),\"\")","v":""},null,0,{"$error":"#VALUE!"}]
["Don't Show","Costgrp45",{"$f":"IFERROR(INDEX('LFA Expenditure_7B imp-exp'!A$2:A$18,MATCH('LFA Expenditure_7B'!B52,'LFA Expenditure_7B imp-exp'!N$2:N$18,0)),\"\")","v":""},null,{"$f":"IFERROR(INDEX('LFA Expenditure_7B imp-exp'!C$2:C$18,MATCH('LFA Expenditure_7B'!B52,'LFA Expenditure_7B imp-exp'!N$2:N$18,0)),\"\")","v":""},{"$f":"'PR Expenditure_7A'!F53","v":0},null,0,{"$error":"#VALUE!"},null,null,{"$f":"IFERROR(INDEX('LFA Expenditure_7B imp-exp'!J$2:J$18,MATCH('LFA Expenditure_7B'!B52,'LFA Expenditure_7B imp-exp'!N$2:N$18,0)),\"\")","v":""},null,0,{"$error":"#VALUE!"}]
["Don't Show","Costgrp46",{"$f":"IFERROR(INDEX('LFA Expenditure_7B imp-exp'!A$2:A$18,MATCH('LFA Expenditure_7B'!B53,'LFA Expenditure_7B imp-exp'!N$2:N$18,0)),\"\")","v":""},null,{"$f":"IFERROR(INDEX('LFA Expenditure_7B imp-exp'!C$2:C$18,MATCH('LFA Expenditure_7B'!B53,'LFA Expenditure_7B imp-exp'!N$2:N$18,0)),\"\")","v":""},{"$f":"'PR Expenditure_7A'!F58","v":0},null,0,{"$error":"#VALUE!"},null,null,{"$f":"IFERROR(INDEX('LFA Expenditure_7B imp-exp'!J$2:J$18,MATCH('LFA Expenditure_7B'!B53,'LFA Expenditure_7B imp-exp'!N$2:N$18,0)),\"\")","v":""},null,0,{"$error":"#VALUE!"}]
["Don't Show","Costgrp47",{"$f":"IFERROR(INDEX('LFA Expenditure_7B imp-exp'!A$2:A$18,MATCH('LFA Expenditure_7B'!B54,'LFA Expenditure_7B imp-exp'!N$2:N$18,0)),\"\")","v":""},null,{"$f":"IFERROR(INDEX('LFA Expenditure_7B imp-exp'!C$2:C$18,MATCH('LFA Expenditure_7B'!B54,'LFA Expenditure_7B imp-exp'!N$2:N$18,0)),\"\")","v":""},{"$f":"'PR Expenditure_7A'!F59","v":0},null,0,{"$error":"#VALUE!"},null,null,{"$f":"IFERROR(INDEX('LFA Expenditure_7B imp-exp'!J$2:J$18,MATCH('LFA Expenditure_7B'!B54,'LFA Expenditure_7B imp-exp'!N$2:N$18,0)),\"\")","v":""},null,0,{"$error":"#VALUE!"}]
["Don't Show","Costgrp48",{"$f":"IFERROR(INDEX('LFA Expenditure_7B imp-exp'!A$2:A$18,MATCH('LFA Expenditure_7B'!B55,'LFA Expenditure_7B imp-exp'!N$2:N$18,0)),\"\")","v":""},null,{"$f":"IFERROR(INDEX('LFA Expenditure_7B imp-exp'!C$2:C$18,MATCH('LFA Expenditure_7B'!B55,'LFA Expenditure_7B imp-exp'!N$2:N$18,0)),\"\")","v":""},{"$f":"'PR Expenditure_7A'!F60","v":0},null,0,{"$error":"#VALUE!"},null,null,{"$f":"IFERROR(INDEX('LFA Expenditure_7B imp-exp'!J$2:J$18,MATCH('LFA Expenditure_7B'!B55,'LFA Expenditure_7B imp-exp'!N$2:N$18,0)),\"\")","v":""},null,0,{"$error":"#VALUE!"}]
["Don't Show","Costgrp49",{"$f":"IFERROR(INDEX('LFA Expenditure_7B imp-exp'!A$2:A$18,MATCH('LFA Expenditure_7B'!B56,'LFA Expenditure_7B imp-exp'!N$2:N$18,0)),\"\")","v":""},null,{"$f":"IFERROR(INDEX('LFA Expenditure_7B imp-exp'!C$2:C$18,MATCH('LFA Expenditure_7B'!B56,'LFA Expenditure_7B imp-exp'!N$2:N$18,0)),\"\")","v":""},{"$f":"'PR Expenditure_7A'!F61","v":0},null,0,{"$error":"#VALUE!"},null,null,{"$f":"IFERROR(INDEX('LFA Expenditure_7B imp-exp'!J$2:J$18,MATCH('LFA Expenditure_7B'!B56,'LFA Expenditure_7B imp-exp'!N$2:N$18,0)),\"\")","v":""},null,0,{"$error":"#VALUE!"}]
["Don't Show","Costgrp50",{"$f":"IFERROR(INDEX('LFA Expenditure_7B imp-exp'!A$2:A$18,MATCH('LFA Expenditure_7B'!B57,'LFA Expenditure_7B imp-exp'!N$2:N$18,0)),\"\")","v":""},null,{"$f":"IFERROR(INDEX('LFA Expenditure_7B imp-exp'!C$2:C$18,MATCH('LFA Expenditure_7B'!B57,'LFA Expenditure_7B imp-exp'!N$2:N$18,0)),\"\")","v":""},{"$f":"'PR Expenditure_7A'!F58","v":0},null,0,{"$error":"#VALUE!"},null,null,{"$f":"IFERROR(INDEX('LFA Expenditure_7B imp-exp'!J$2:J$18,MATCH('LFA Expenditure_7B'!B57,'LFA Expenditure_7B imp-exp'!N$2:N$18,0)),\"\")","v":""},null,0,{"$error":"#VALUE!"}]
["Don't Show","Costgrp51",{"$f":"IFERROR(INDEX('LFA Expenditure_7B imp-exp'!A$2:A$18,MATCH('LFA Expenditure_7B'!B58,'LFA Expenditure_7B imp-exp'!N$2:N$18,0)),\"\")","v":""},null,{"$f":"IFERROR(INDEX('LFA Expenditure_7B imp-exp'!C$2:C$18,MATCH('LFA Expenditure_7B'!B58,'LFA Expenditure_7B imp-exp'!N$2:N$18,0)),\"\")","v":""},{"$f":"'PR Expenditure_7A'!F59","v":0},null,0,{"$error":"#VALUE!"},null,null,{"$f":"IFERROR(INDEX('LFA Expenditure_7B imp-exp'!J$2:J$18,MATCH('LFA Expenditure_7B'!B58,'LFA Expenditure_7B imp-exp'!N$2:N$18,0)),\"\")","v":""},null,0,{"$error":"#VALUE!"}]
["Don't Show","Costgrp52",{"$f":"IFERROR(INDEX('LFA Expenditure_7B imp-exp'!A$2:A$18,MATCH('LFA Expenditure_7B'!B59,'LFA Expenditure_7B imp-exp'!N$2:N$18,0)),\"\")","v":""},null,{"$f":"IFERROR(INDEX('LFA Expenditure_7B imp-exp'!C$2:C$18,MATCH('LFA Expenditure_7B'!B59,'LFA Expenditure_7B imp-exp'!N$2:N$18,0)),\"\")","v":""},{"$f":"'PR Expenditure_7A'!F60","v":0},null,0,{"$error":"#VALUE!"},null,null,{"$f":"IFERROR(INDEX('LFA Expenditure_7B imp-exp'!J$2:J$18,MATCH('LFA Expenditure_7B'!B59,'LFA Expenditure_7B imp-exp'!N$2:N$18,0)),\"\")","v":""},null,0,{"$error":"#VALUE!"}]
["Don't Show","Costgrp53",{"$f":"IFERROR(INDEX('LFA Expenditure_7B imp-exp'!A$2:A$18,MATCH('LFA Expenditure_7B'!B60,'LFA Expenditure_7B imp-exp'!N$2:N$18,0)),\"\")","v":""},null,{"$f":"IFERROR(INDEX('LFA Expenditure_7B imp-exp'!C$2:C$18,MATCH('LFA Expenditure_7B'!B60,'LFA Expenditure_7B imp-exp'!N$2:N$18,0)),\"\")","v":""},{"$f":"'PR Expenditure_7A'!F65","v":0},null,0,{"$error":"#VALUE!"},null,null,{"$f":"IFERROR(INDEX('LFA Expenditure_7B imp-exp'!J$2:J$18,MATCH('LFA Expenditure_7B'!B60,'LFA Expenditure_7B imp-exp'!N$2:N$18,0)),\"\")","v":""},null,0,{"$error":"#VALUE!"}]
["Don't Show","Costgrp54",{"$f":"IFERROR(INDEX('LFA Expenditure_7B imp-exp'!A$2:A$18,MATCH('LFA Expenditure_7B'!B61,'LFA Expenditure_7B imp-exp'!N$2:N$18,0)),\"\")","v":""},null,{"$f":"IFERROR(INDEX('LFA Expenditure_7B imp-exp'!C$2:C$18,MATCH('LFA Expenditure_7B'!B61,'LFA Expenditure_7B imp-exp'!N$2:N$18,0)),\"\")","v":""},{"$f":"'PR Expenditure_7A'!F66","v":0},null,0,{"$error":"#VALUE!"},null,null,{"$f":"IFERROR(INDEX('LFA Expenditure_7B imp-exp'!J$2:J$18,MATCH('LFA Expenditure_7B'!B61,'LFA Expenditure_7B imp-exp'!N$2:N$18,0)),\"\")","v":""},null,0,{"$error":"#VALUE!"}]
["Don't Show","Costgrp55",{"$f":"IFERROR(INDEX('LFA Expenditure_7B imp-exp'!A$2:A$18,MATCH('LFA Expenditure_7B'!B62,'LFA Expenditure_7B imp-exp'!N$2:N$18,0)),\"\")","v":""},null,{"$f":"IFERROR(INDEX('LFA Expenditure_7B imp-exp'!C$2:C$18,MATCH('LFA Expenditure_7B'!B62,'LFA Expenditure_7B imp-exp'!N$2:N$18,0)),\"\")","v":""},{"$f":"'PR Expenditure_7A'!F67","v":0},null,0,{"$error":"#VALUE!"},null,null,{"$f":"IFERROR(INDEX('LFA Expenditure_7B imp-exp'!J$2:J$18,MATCH('LFA Expenditure_7B'!B62,'LFA Expenditure_7B imp-exp'!N$2:N$18,0)),\"\")","v":""},null,0,{"$error":"#VALUE!"}]
["Don't Show","Costgrp56",{"$f":"IFERROR(INDEX('LFA Expenditure_7B imp-exp'!A$2:A$18,MATCH('LFA Expenditure_7B'!B63,'LFA Expenditure_7B imp-exp'!N$2:N$18,0)),\"\")","v":""},null,{"$f":"IFERROR(INDEX('LFA Expenditure_7B imp-exp'!C$2:C$18,MATCH('LFA Expenditure_7B'!B63,'LFA Expenditure_7B imp-exp'!N$2:N$18,0)),\"\")","v":""},{"$f":"'PR Expenditure_7A'!F68","v":0},null,0,{"$error":"#VALUE!"},null,null,{"$f":"IFERROR(INDEX('LFA Expenditure_7B imp-exp'!J$2:J$18,MATCH('LFA Expenditure_7B'!B63,'LFA Expenditure_7B imp-exp'!N$2:N$18,0)),\"\")","v":""},null,0,{"$error":"#VALUE!"}]
["Don't Show","Costgrp57",{"$f":"IFERROR(INDEX('LFA Expenditure_7B imp-exp'!A$2:A$18,MATCH('LFA Expenditure_7B'!B64,'LFA Expenditure_7B imp-exp'!N$2:N$18,0)),\"\")","v":""},null,{"$f":"IFERROR(INDEX('LFA Expenditure_7B imp-exp'!C$2:C$18,MATCH('LFA Expenditure_7B'!B64,'LFA Expenditure_7B imp-exp'!N$2:N$18,0)),\"\")","v":""},{"$f":"'PR Expenditure_7A'!F65","v":0},null,0,{"$error":"#VALUE!"},null,null,{"$f":"IFERROR(INDEX('LFA Expenditure_7B imp-exp'!J$2:J$18,MATCH('LFA Expenditure_7B'!B64,'LFA Expenditure_7B imp-exp'!N$2:N$18,0)),\"\")","v":""},null,0,{"$error":"#VALUE!"}]
["Don't Show","Costgrp58",{"$f":"IFERROR(INDEX('LFA Expenditure_7B imp-exp'!A$2:A$18,MATCH('LFA Expenditure_7B'!B65,'LFA Expenditure_7B imp-exp'!N$2:N$18,0)),\"\")","v":""},null,{"$f":"IFERROR(INDEX('LFA Expenditure_7B imp-exp'!C$2:C$18,MATCH('LFA Expenditure_7B'!B65,'LFA Expenditure_7B imp-exp'!N$2:N$18,0)),\"\")","v":""},{"$f":"'PR Expenditure_7A'!F66","v":0},null,0,{"$error":"#VALUE!"},null,null,{"$f":"IFERROR(INDEX('LFA Expenditure_7B imp-exp'!J$2:J$18,MATCH('LFA Expenditure_7B'!B65,'LFA Expenditure_7B imp-exp'!N$2:N$18,0)),\"\")","v":""},null,0,{"$error":"#VALUE!"}]
["Don't Show","Costgrp59",{"$f":"IFERROR(INDEX('LFA Expenditure_7B imp-exp'!A$2:A$18,MATCH('LFA Expenditure_7B'!B66,'LFA Expenditure_7B imp-exp'!N$2:N$18,0)),\"\")","v":""},null,{"$f":"IFERROR(INDEX('LFA Expenditure_7B imp-exp'!C$2:C$18,MATCH('LFA Expenditure_7B'!B66,'LFA Expenditure_7B imp-exp'!N$2:N$18,0)),\"\")","v":""},{"$f":"'PR Expenditure_7A'!F67","v":0},null,0,{"$error":"#VALUE!"},null,null,{"$f":"IFERROR(INDEX('LFA Expenditure_7B imp-exp'!J$2:J$18,MATCH('LFA Expenditure_7B'!B66,'LFA Expenditure_7B imp-exp'!N$2:N$18,0)),\"\")","v":""},null,0,{"$error":"#VALUE!"}]
["Don't Show","Costgrp60",{"$f":"IFERROR(INDEX('LFA Expenditure_7B imp-exp'!A$2:A$18,MATCH('LFA Expenditure_7B'!B67,'LFA Expenditure_7B imp-exp'!N$2:N$18,0)),\"\")","v":""},null,{"$f":"IFERROR(INDEX('LFA Expenditure_7B imp-exp'!C$2:C$18,MATCH('LFA Expenditure_7B'!B67,'LFA Expenditure_7B imp-exp'!N$2:N$18,0)),\"\")","v":""},{"$f":"'PR Expenditure_7A'!F72","v":0},null,0,{"$error":"#VALUE!"},null,null,{"$f":"IFERROR(INDEX('LFA Expenditure_7B imp-exp'!J$2:J$18,MATCH('LFA Expenditure_7B'!B67,'LFA Expenditure_7B imp-exp'!N$2:N$18,0)),\"\")","v":""},null,0,{"$error":"#VALUE!"}]
[{"$f":"IF(C68<>\"\",\"Show\",\"Don't Show\")","v":"Don't Show"},"NewCostgrp1",null,null,0,{"$f":"'PR Expenditure_7A'!F69","v":0},null,{"$f":"IFERROR((E68)-(F68+G68),0)","v":0},{"$f":"IF(AND((E68)=0,(F68+G68)=0),\"N/A\",IF(AND((E68)=0,(F68+G68)<>0),\"Not Budgeted\",(F68+G68)/(E68)))","v":"N/A"},null,null,0,null,{"$f":"IFERROR(L68-M68,0)","v":0},{"$f":"IF(AND(L68=0,M68=0),\"N/A\",IF(AND(L68=0,M68<>0),\"Not Budgeted\",M68/L68))","v":"N/A"},null,null,null,null,null,{"$f":"IF(C68<>\"\",VLOOKUP(C68,'Reference Records'!$E$221:$G$222,3,FALSE),\"\")","v":""}]
["Don't Show","NewCostgrp2",null,null,0,{"$f":"'PR Expenditure_7A'!F70","v":0},null,{"$f":"IFERROR((E69)-(F69+G69),0)","v":0},{"$f":"IF(AND((E69)=0,(F69+G69)=0),\"N/A\",IF(AND((E69)=0,(F69+G69)<>0),\"Not Budgeted\",(F69+G69)/(E69)))","v":"N/A"},null,null,0,null,{"$f":"IFERROR(L69-M69,0)","v":0},{"$f":"IF(AND(L69=0,M69=0),\"N/A\",IF(AND(L69=0,M69<>0),\"Not Budgeted\",M69/L69))","v":"N/A"}]
["Don't Show","NewCostgrp3",null,null,0,{"$f":"'PR Expenditure_7A'!F71","v":0},null,0,"N/A",null,null,0,null,0,"N/A"]
["Don't Show","NewCostgrp4",null,null,0,{"$f":"'PR Expenditure_7A'!F72","v":0},null,0,"N/A",null,null,0,null,0,"N/A"]
["Don't Show","NewCostgrp5",null,null,0,{"$f":"'PR Expenditure_7A'!F73","v":0},null,0,"N/A",null,null,0,null,0,"N/A"]
["Don't Show","NewCostgrp6",null,null,0,{"$f":"'PR Expenditure_7A'!F74","v":0},null,0,"N/A",null,null,0,null,0,"N/A"]
["Don't Show","NewCostgrp7",null,null,0,{"$f":"'PR Expenditure_7A'!F75","v":0},null,0,"N/A",null,null,0,null,0,"N/A"]
["Don't Show","NewCostgrp8",null,null,0,{"$f":"'PR Expenditure_7A'!F76","v":0},null,0,"N/A",null,null,0,null,0,"N/A"]
["Don't Show","NewCostgrp9",null,null,0,{"$f":"'PR Expenditure_7A'!F77","v":0},null,0,"N/A",null,null,0,null,0,"N/A"]
["Don't Show","NewCostgrp10",null,null,0,{"$f":"'PR Expenditure_7A'!F78","v":0},null,0,"N/A",null,null,0,null,0,"N/A"]
["Don't Show","NewCostgrp11",null,null,0,{"$f":"'PR Expenditure_7A'!F79","v":0},null,0,"N/A",null,null,0,null,0,"N/A"]
["Don't Show","NewCostgrp12",null,null,0,{"$f":"'PR Expenditure_7A'!F80","v":0},null,0,"N/A",null,null,0,null,0,"N/A"]
["Don't Show","NewCostgrp13",null,null,0,{"$f":"'PR Expenditure_7A'!F81","v":0},null,0,"N/A",null,null,0,null,0,"N/A"]
["Don't Show","NewCostgrp14",null,null,0,{"$f":"'PR Expenditure_7A'!F82","v":0},null,0,"N/A",null,null,0,null,0,"N/A"]
["Don't Show","NewCostgrp15",null,null,0,{"$f":"'PR Expenditure_7A'!F83","v":0},null,0,"N/A",null,null,0,null,0,"N/A"]
["Don't Show","NewCostgrp16",null,null,0,{"$f":"'PR Expenditure_7A'!F84","v":0},null,0,"N/A",null,null,0,null,0,"N/A"]
["Don't Show","NewCostgrp17",null,null,0,{"$f":"'PR Expenditure_7A'!F85","v":0},null,0,"N/A",null,null,0,null,0,"N/A"]
["Don't Show","NewCostgrp18",null,null,0,{"$f":"'PR Expenditure_7A'!F86","v":0},null,0,"N/A",null,null,0,null,0,"N/A"]
["Don't Show","NewCostgrp19",null,null,0,{"$f":"'PR Expenditure_7A'!F87","v":0},null,0,"N/A",null,null,0,null,0,"N/A"]
["Don't Show","NewCostgrp20",null,null,0,{"$f":"'PR Expenditure_7A'!F88","v":0},null,0,"N/A",null,null,0,null,0,"N/A"]
["Don't Show","NewCostgrp21",null,null,0,{"$f":"'PR Expenditure_7A'!F89","v":0},null,0,"N/A",null,null,0,null,0,"N/A"]
["Don't Show","NewCostgrp22",null,null,0,{"$f":"'PR Expenditure_7A'!F90","v":0},null,0,"N/A",null,null,0,null,0,"N/A"]
["Don't Show","NewCostgrp23",null,null,0,{"$f":"'PR Expenditure_7A'!F91","v":0},null,0,"N/A",null,null,0,null,0,"N/A"]
["Don't Show","NewCostgrp24",null,null,0,{"$f":"'PR Expenditure_7A'!F92","v":0},null,0,"N/A",null,null,0,null,0,"N/A"]
["Don't Show","NewCostgrp25",null,null,0,{"$f":"'PR Expenditure_7A'!F93","v":0},null,0,"N/A",null,null,0,null,0,"N/A"]
["Don't Show","NewCostgrp26",null,null,0,{"$f":"'PR Expenditure_7A'!F94","v":0},null,0,"N/A",null,null,0,null,0,"N/A"]
["Don't Show","NewCostgrp27",null,null,0,{"$f":"'PR Expenditure_7A'!F95","v":0},null,0,"N/A",null,null,0,null,0,"N/A"]
["Don't Show","NewCostgrp28",null,null,0,{"$f":"'PR Expenditure_7A'!F96","v":0},null,0,"N/A",null,null,0,null,0,"N/A"]
["Don't Show","NewCostgrp29",null,null,0,{"$f":"'PR Expenditure_7A'!F97","v":0},null,0,"N/A",null,null,0,null,0,"N/A"]
["Don't Show","NewCostgrp30",null,null,0,{"$f":"'PR Expenditure_7A'!F98","v":0},null,0,"N/A",null,null,0,null,0,"N/A"]
["Show",null,"Grand Total",null,{"$f":"ROUND(SUM(E8:E97),2)","v":5743857.3399999999},{"$f":"ROUND(SUM(F8:F97),2)","v":986679.4},{"$f":"ROUND(SUM(G8:G97),2)","v":0},{"$f":"ROUND(SUM(H8:H97),2)","v":4882838.84},{"$f":"(F98+G98)/(E98)","v":0.17177992794646951},null,null,{"$f":"ROUND(SUM(L8:L97),2)","v":5743857.3399999999},{"$f":"ROUND(SUM(M8:M97),2)","v":0},{"$f":"ROUND(SUM(N8:N97),2)","v":5743857.3399999999},{"$f":"M98/L98","v":0}]
["Show"]
["Show",null,"B. BREAKDOWN BY INTERVENTIONS"]
["Show"]
["Show",null,"Modular Approach - Modules","Modular Approach - Interventions","Budget for Reporting Period","Actual Expenditure ","Local Fund Agent Adjustment on Expenditures","Budget Vs Actual Variances","Absorption Rate","LFA comments on the Principal Recipient's explanation of variances",null,"Cumulative Budget","Cumulative Actual Expenditure","Cumulative Budget Vs Actuals Variances","Absorption Rate"]
[{"$f":"IF(C103<>\"\",\"Show\",\"Don't Show\")","v":"Show"},"Int1",{"$f":"IFERROR(INDEX('LFA Expenditure_7B imp-exp'!A$22:A$63,MATCH('LFA Expenditure_7B'!B103,'LFA Expenditure_7B imp-exp'!N$22:N$63,0)),\"\")","v":"Comprehensive prevention programs for people who inject drugs (PWID) and their partners"},{"$f":"IFERROR(INDEX('LFA Expenditure_7B imp-exp'!B$22:B$63,MATCH('LFA Expenditure_7B'!B103,'LFA Expenditure_7B imp-exp'!N$22:N$63,0)),\"\")","v":"Behavioral interventions for PWID"},{"$f":"IFERROR(INDEX('LFA Expenditure_7B imp-exp'!C$22:C$63,MATCH('LFA Expenditure_7B'!B103,'LFA Expenditure_7B imp-exp'!N$22:N$63,0)),\"\")","v":4785.3220048031899},{"$f":"'PR Expenditure_7A'!F104","v":0},null,{"$f":"IFERROR((E103)-(F103+G103),0)","v":4785.3220048031899},{"$f":"IF(AND((E103)=0,(F103+G103)=0),\"N/A\",IF(AND((E103)=0,(F103+G103)<>0),\"Not Budgeted\",(F103+G103)/(E103)))","v":0},null,null,{"$f":"IFERROR(INDEX('LFA Expenditure_7B imp-exp'!J$22:J$63,MATCH('LFA Expenditure_7B'!B103,'LFA Expenditure_7B imp-exp'!N$22:N$63,0)),\"\")","v":4785.3220048031899},null,{"$f":"IFERROR(L103-M103,0)","v":4785.3220048031899},{"$f":"IF(AND(L103=0,M103=0),\"N/A\",IF(AND(L103=0,M103<>0),\"Not Budgeted\",M103/L103))","v":0}]
["Show","Int2",{"$f":"IFERROR(INDEX('LFA Expenditure_7B imp-exp'!A$22:A$63,MATCH('LFA Expenditure_7B'!B104,'LFA Expenditure_7B imp-exp'!N$22:N$63,0)),\"\")","v":"TB care and prevention"},{"$f":"IFERROR(INDEX('LFA Expenditure_7B imp-exp'!B$22:B$63,MATCH('LFA Expenditure_7B'!B104,'LFA Expenditure_7B imp-exp'!N$22:N$63,0)),\"\")","v":"Case detection and diagnosis"},{"$f":"IFERROR(INDEX('LFA Expenditure_7B imp-exp'!C$22:C$63,MATCH('LFA Expenditure_7B'!B104,'LFA Expenditure_7B imp-exp'!N$22:N$63,0)),\"\")","v":493731.80463605799},{"$f":"'PR Expenditure_7A'!F105","v":78714.19},null,415017.61463605799,0.15942701940787912,null,null,{"$f":"IFERROR(INDEX('LFA Expenditure_7B imp-exp'!J$22:J$63,MATCH('LFA Expenditure_7B'!B104,'LFA Expenditure_7B imp-exp'!N$22:N$63,0)),\"\")","v":493731.80463605799},null,493731.80463605799,0]
["Show","Int3",{"$f":"IFERROR(INDEX('LFA Expenditure_7B imp-exp'!A$22:A$63,MATCH('LFA Expenditure_7B'!B105,'LFA Expenditure_7B imp-exp'!N$22:N$63,0)),\"\")","v":"TB care and prevention"},{"$f":"IFERROR(INDEX('LFA Expenditure_7B imp-exp'!B$22:B$63,MATCH('LFA Expenditure_7B'!B105,'LFA Expenditure_7B imp-exp'!N$22:N$63,0)),\"\")","v":"Key populations (TB care and prevention) - Others"},{"$f":"IFERROR(INDEX('LFA Expenditure_7B imp-exp'!C$22:C$63,MATCH('LFA Expenditure_7B'!B105,'LFA Expenditure_7B imp-exp'!N$22:N$63,0)),\"\")","v":72478.276440338203},{"$f":"'PR Expenditure_7A'!F106","v":0},null,72478.276440338203,0,null,null,{"$f":"IFERROR(INDEX('LFA Expenditure_7B imp-exp'!J$22:J$63,MATCH('LFA Expenditure_7B'!B105,'LFA Expenditure_7B imp-exp'!N$22:N$63,0)),\"\")","v":72478.276440338203},null,72478.276440338203,0]
["Show","Int4",{"$f":"IFERROR(INDEX('LFA Expenditure_7B imp-exp'!A$22:A$63,MATCH('LFA Expenditure_7B'!B106,'LFA Expenditure_7B imp-exp'!N$22:N$63,0)),\"\")","v":"TB care and prevention"},{"$f":"IFERROR(INDEX('LFA Expenditure_7B imp-exp'!B$22:B$63,MATCH('LFA Expenditure_7B'!B106,'LFA Expenditure_7B imp-exp'!N$22:N$63,0)),\"\")","v":"Key populations (TB care and prevention) - Prisoners"},{"$f":"IFERROR(INDEX('LFA Expenditure_7B imp-exp'!C$22:C$63,MATCH('LFA Expenditure_7B'!B106,'LFA Expenditure_7B imp-exp'!N$22:N$63,0)),\"\")","v":6043.4606260430601},{"$f":"'PR Expenditure_7A'!F107","v":0},null,6043.4606260430601,0,null,null,{"$f":"IFERROR(INDEX('LFA Expenditure_7B imp-exp'!J$22:J$63,MATCH('LFA Expenditure_7B'!B106,'LFA Expenditure_7B imp-exp'!N$22:N$63,0)),\"\")","v":6043.4606260430601},null,6043.4606260430601,0]
["Show","Int5",{"$f":"IFERROR(INDEX('LFA Expenditure_7B imp-exp'!A$22:A$63,MATCH('LFA Expenditure_7B'!B107,'LFA Expenditure_7B imp-exp'!N$22:N$63,0)),\"\")","v":"TB care and prevention"},{"$f":"IFERROR(INDEX('LFA Expenditure_7B imp-exp'!B$22:B$63,MATCH('LFA Expenditure_7B'!B107,'LFA Expenditure_7B imp-exp'!N$22:N$63,0)),\"\")","v":"Prevention"},{"$f":"IFERROR(INDEX('LFA Expenditure_7B imp-exp'!C$22:C$63,MATCH('LFA Expenditure_7B'!B107,'LFA Expenditure_7B imp-exp'!N$22:N$63,0)),\"\")","v":6342.4190506292398},{"$f":"'PR Expenditure_7A'!F108","v":3264.29},null,3078.1290506292398,0.51467586325380776,null,null,{"$f":"IFERROR(INDEX('LFA Expenditure_7B imp-exp'!J$22:J$63,MATCH('LFA Expenditure_7B'!B107,'LFA Expenditure_7B imp-exp'!N$22:N$63,0)),\"\")","v":6342.4190506292398},null,6342.4190506292398,0]
["Show","Int6",{"$f":"IFERROR(INDEX('LFA Expenditure_7B imp-exp'!A$22:A$63,MATCH('LFA Expenditure_7B'!B108,'LFA Expenditure_7B imp-exp'!N$22:N$63,0)),\"\")","v":"TB care and prevention"},{"$f":"IFERROR(INDEX('LFA Expenditure_7B imp-exp'!B$22:B$63,MATCH('LFA Expenditure_7B'!B108,'LFA Expenditure_7B imp-exp'!N$22:N$63,0)),\"\")","v":"Treatment"},{"$f":"IFERROR(INDEX('LFA Expenditure_7B imp-exp'!C$22:C$63,MATCH('LFA Expenditure_7B'!B108,'LFA Expenditure_7B imp-exp'!N$22:N$63,0)),\"\")","v":357853.41919894703},{"$f":"'PR Expenditure_7A'!F109","v":0},null,357853.41919894703,0,null,null,{"$f":"IFERROR(INDEX('LFA Expenditure_7B imp-exp'!J$22:J$63,MATCH('LFA Expenditure_7B'!B108,'LFA Expenditure_7B imp-exp'!N$22:N$63,0)),\"\")","v":357853.41919894703},null,357853.41919894703,0]
[{"$f":"IF(C109<>\"\",\"Show\",\"Don't Show\")","v":"Show"},"Int7",{"$f":"IFERROR(INDEX('LFA Expenditure_7B imp-exp'!A$22:A$63,MATCH('LFA Expenditure_7B'!B109,'LFA Expenditure_7B imp-exp'!N$22:N$63,0)),\"\")","v":"TB care and prevention"},{"$f":"IFERROR(INDEX('LFA Expenditure_7B imp-exp'!B$22:B$63,MATCH('LFA Expenditure_7B'!B109,'LFA Expenditure_7B imp-exp'!N$22:N$63,0)),\"\")","v":"Community TB care delivery"},{"$f":"IFERROR(INDEX('LFA Expenditure_7B imp-exp'!C$22:C$63,MATCH('LFA Expenditure_7B'!B109,'LFA Expenditure_7B imp-exp'!N$22:N$63,0)),\"\")","v":25604.313853560099},{"$f":"'PR Expenditure_7A'!F110","v":0},null,{"$f":"IFERROR((E109)-(F109+G109),0)","v":25604.313853560099},{"$f":"IF(AND((E109)=0,(F109+G109)=0),\"N/A\",IF(AND((E109)=0,(F109+G109)<>0),\"Not Budgeted\",(F109+G109)/(E109)))","v":0},null,null,{"$f":"IFERROR(INDEX('LFA Expenditure_7B imp-exp'!J$22:J$63,MATCH('LFA Expenditure_7B'!B109,'LFA Expenditure_7B imp-exp'!N$22:N$63,0)),\"\")","v":25604.313853560099},null,{"$f":"IFERROR(L109-M109,0)","v":25604.313853560099},{"$f":"IF(AND(L109=0,M109=0),\"N/A\",IF(AND(L109=0,M109<>0),\"Not Budgeted\",M109/L109))","v":0}]
["Show","Int8",{"$f":"IFERROR(INDEX('LFA Expenditure_7B imp-exp'!A$22:A$63,MATCH('LFA Expenditure_7B'!B110,'LFA Expenditure_7B imp-exp'!N$22:N$63,0)),\"\")","v":"RSSH: Health management information systems and M&E"},{"$f":"IFERROR(INDEX('LFA Expenditure_7B imp-exp'!B$22:B$63,MATCH('LFA Expenditure_7B'!B110,'LFA Expenditure_7B imp-exp'!N$22:N$63,0)),\"\")","v":"Analysis, review and transparency"},{"$f":"IFERROR(INDEX('LFA Expenditure_7B imp-exp'!C$22:C$63,MATCH('LFA Expenditure_7B'!B110,'LFA Expenditure_7B imp-exp'!N$22:N$63,0)),\"\")","v":139624.95862256401},{"$f":"'PR Expenditure_7A'!F111","v":2235.81},null,137389.14862256401,1.601296803993239E-2,null,null,{"$f":"IFERROR(INDEX('LFA Expenditure_7B imp-exp'!J$22:J$63,MATCH('LFA Expenditure_7B'!B110,'LFA Expenditure_7B imp-exp'!N$22:N$63,0)),\"\")","v":139624.95862256401},null,139624.95862256401,0]
["Show","Int9",{"$f":"IFERROR(INDEX('LFA Expenditure_7B imp-exp'!A$22:A$63,MATCH('LFA Expenditure_7B'!B111,'LFA Expenditure_7B imp-exp'!N$22:N$63,0)),\"\")","v":"RSSH: Health management information systems and M&E"},{"$f":"IFERROR(INDEX('LFA Expenditure_7B imp-exp'!B$22:B$63,MATCH('LFA Expenditure_7B'!B111,'LFA Expenditure_7B imp-exp'!N$22:N$63,0)),\"\")","v":"Surveys"},{"$f":"IFERROR(INDEX('LFA Expenditure_7B imp-exp'!C$22:C$63,MATCH('LFA Expenditure_7B'!B111,'LFA Expenditure_7B imp-exp'!N$22:N$63,0)),\"\")","v":64020.761629238899},{"$f":"'PR Expenditure_7A'!F112","v":0},null,64020.761629238899,0,null,null,{"$f":"IFERROR(INDEX('LFA Expenditure_7B imp-exp'!J$22:J$63,MATCH('LFA Expenditure_7B'!B111,'LFA Expenditure_7B imp-exp'!N$22:N$63,0)),\"\")","v":64020.761629238899},null,64020.761629238899,0]
["Show","Int10",{"$f":"IFERROR(INDEX('LFA Expenditure_7B imp-exp'!A$22:A$63,MATCH('LFA Expenditure_7B'!B112,'LFA Expenditure_7B imp-exp'!N$22:N$63,0)),\"\")","v":"RSSH: Health management information systems and M&E"},{"$f":"IFERROR(INDEX('LFA Expenditure_7B imp-exp'!B$22:B$63,MATCH('LFA Expenditure_7B'!B112,'LFA Expenditure_7B imp-exp'!N$22:N$63,0)),\"\")","v":"Routine reporting"},{"$f":"IFERROR(INDEX('LFA Expenditure_7B imp-exp'!C$22:C$63,MATCH('LFA Expenditure_7B'!B112,'LFA Expenditure_7B imp-exp'!N$22:N$63,0)),\"\")","v":47163.540788967002},{"$f":"'PR Expenditure_7A'!F113","v":0},null,47163.540788967002,0,null,null,{"$f":"IFERROR(INDEX('LFA Expenditure_7B imp-exp'!J$22:J$63,MATCH('LFA Expenditure_7B'!B112,'LFA Expenditure_7B imp-exp'!N$22:N$63,0)),\"\")","v":47163.540788967002},null,47163.540788967002,0]
["Show","Int11",{"$f":"IFERROR(INDEX('LFA Expenditure_7B imp-exp'!A$22:A$63,MATCH('LFA Expenditure_7B'!B113,'LFA Expenditure_7B imp-exp'!N$22:N$63,0)),\"\")","v":"MDR-TB"},{"$f":"IFERROR(INDEX('LFA Expenditure_7B imp-exp'!B$22:B$63,MATCH('LFA Expenditure_7B'!B113,'LFA Expenditure_7B imp-exp'!N$22:N$63,0)),\"\")","v":"Treatment: MDR-TB"},{"$f":"IFERROR(INDEX('LFA Expenditure_7B imp-exp'!C$22:C$63,MATCH('LFA Expenditure_7B'!B113,'LFA Expenditure_7B imp-exp'!N$22:N$63,0)),\"\")","v":259329.99478294401},{"$f":"'PR Expenditure_7A'!F114","v":423.64},null,258906.35478294399,1.6335942950007824E-3,null,null,{"$f":"IFERROR(INDEX('LFA Expenditure_7B imp-exp'!J$22:J$63,MATCH('LFA Expenditure_7B'!B113,'LFA Expenditure_7B imp-exp'!N$22:N$63,0)),\"\")","v":259329.99478294401},null,259329.99478294401,0]
["Show","Int12",{"$f":"IFERROR(INDEX('LFA Expenditure_7B imp-exp'!A$22:A$63,MATCH('LFA Expenditure_7B'!B114,'LFA Expenditure_7B imp-exp'!N$22:N$63,0)),\"\")","v":"TB/HIV"},{"$f":"IFERROR(INDEX('LFA Expenditure_7B imp-exp'!B$22:B$63,MATCH('LFA Expenditure_7B'!B114,'LFA Expenditure_7B imp-exp'!N$22:N$63,0)),\"\")","v":"TB/HIV collaborative interventions"},{"$f":"IFERROR(INDEX('LFA Expenditure_7B imp-exp'!C$22:C$63,MATCH('LFA Expenditure_7B'!B114,'LFA Expenditure_7B imp-exp'!N$22:N$63,0)),\"\")","v":119955.192915333},{"$f":"'PR Expenditure_7A'!F115","v":0},null,119955.192915333,0,null,null,{"$f":"IFERROR(INDEX('LFA Expenditure_7B imp-exp'!J$22:J$63,MATCH('LFA Expenditure_7B'!B114,'LFA Expenditure_7B imp-exp'!N$22:N$63,0)),\"\")","v":119955.192915333},null,119955.192915333,0]
["Show","Int13",{"$f":"IFERROR(INDEX('LFA Expenditure_7B imp-exp'!A$22:A$63,MATCH('LFA Expenditure_7B'!B115,'LFA Expenditure_7B imp-exp'!N$22:N$63,0)),\"\")","v":"Program management"},{"$f":"IFERROR(INDEX('LFA Expenditure_7B imp-exp'!B$22:B$63,MATCH('LFA Expenditure_7B'!B115,'LFA Expenditure_7B imp-exp'!N$22:N$63,0)),\"\")","v":"Grant management"},{"$f":"IFERROR(INDEX('LFA Expenditure_7B imp-exp'!C$22:C$63,MATCH('LFA Expenditure_7B'!B115,'LFA Expenditure_7B imp-exp'!N$22:N$63,0)),\"\")","v":1194123.21398953},{"$f":"'PR Expenditure_7A'!F116","v":419380.18},null,774743.03398953006,0.35120343955031519,null,null,{"$f":"IFERROR(INDEX('LFA Expenditure_7B imp-exp'!J$22:J$63,MATCH('LFA Expenditure_7B'!B115,'LFA Expenditure_7B imp-exp'!N$22:N$63,0)),\"\")","v":1194123.21398953},null,1194123.21398953,0]
["Show","Int14",{"$f":"IFERROR(INDEX('LFA Expenditure_7B imp-exp'!A$22:A$63,MATCH('LFA Expenditure_7B'!B116,'LFA Expenditure_7B imp-exp'!N$22:N$63,0)),\"\")","v":"Program management"},{"$f":"IFERROR(INDEX('LFA Expenditure_7B imp-exp'!B$22:B$63,MATCH('LFA Expenditure_7B'!B116,'LFA Expenditure_7B imp-exp'!N$22:N$63,0)),\"\")","v":"Policy, planning, coordination and management of national disease control programs"},{"$f":"IFERROR(INDEX('LFA Expenditure_7B imp-exp'!C$22:C$63,MATCH('LFA Expenditure_7B'!B116,'LFA Expenditure_7B imp-exp'!N$22:N$63,0)),\"\")","v":105015.23784608601},{"$f":"'PR Expenditure_7A'!F117","v":21752.21},null,83263.027846086014,0.20713384501286181,null,null,{"$f":"IFERROR(INDEX('LFA Expenditure_7B imp-exp'!J$22:J$63,MATCH('LFA Expenditure_7B'!B116,'LFA Expenditure_7B imp-exp'!N$22:N$63,0)),\"\")","v":105015.23784608601},null,105015.23784608601,0]
["Show","Int15",{"$f":"IFERROR(INDEX('LFA Expenditure_7B imp-exp'!A$22:A$63,MATCH('LFA Expenditure_7B'!B117,'LFA Expenditure_7B imp-exp'!N$22:N$63,0)),\"\")","v":"PMTCT"},{"$f":"IFERROR(INDEX('LFA Expenditure_7B imp-exp'!B$22:B$63,MATCH('LFA Expenditure_7B'!B117,'LFA Expenditure_7B imp-exp'!N$22:N$63,0)),\"\")","v":"Prong 1: Primary prevention of HIV infection among women of childbearing age"},{"$f":"IFERROR(INDEX('LFA Expenditure_7B imp-exp'!C$22:C$63,MATCH('LFA Expenditure_7B'!B117,'LFA Expenditure_7B imp-exp'!N$22:N$63,0)),\"\")","v":13826.315722405699},{"$f":"'PR Expenditure_7A'!F118","v":0},null,13826.315722405699,0,null,null,{"$f":"IFERROR(INDEX('LFA Expenditure_7B imp-exp'!J$22:J$63,MATCH('LFA Expenditure_7B'!B117,'LFA Expenditure_7B imp-exp'!N$22:N$63,0)),\"\")","v":13826.315722405699},null,13826.315722405699,0]
["Show","Int16",{"$f":"IFERROR(INDEX('LFA Expenditure_7B imp-exp'!A$22:A$63,MATCH('LFA Expenditure_7B'!B118,'LFA Expenditure_7B imp-exp'!N$22:N$63,0)),\"\")","v":"PMTCT"},{"$f":"IFERROR(INDEX('LFA Expenditure_7B imp-exp'!B$22:B$63,MATCH('LFA Expenditure_7B'!B118,'LFA Expenditure_7B imp-exp'!N$22:N$63,0)),\"\")","v":"Prong 3: Preventing vertical HIV transmission"},{"$f":"IFERROR(INDEX('LFA Expenditure_7B imp-exp'!C$22:C$63,MATCH('LFA Expenditure_7B'!B118,'LFA Expenditure_7B imp-exp'!N$22:N$63,0)),\"\")","v":384400.03818272002},{"$f":"'PR Expenditure_7A'!F119","v":198607.02000000002},null,185793.01818272,0.51666753452712855,null,null,{"$f":"IFERROR(INDEX('LFA Expenditure_7B imp-exp'!J$22:J$63,MATCH('LFA Expenditure_7B'!B118,'LFA Expenditure_7B imp-exp'!N$22:N$63,0)),\"\")","v":384400.03818272002},null,384400.03818272002,0]
["Show","Int17",{"$f":"IFERROR(INDEX('LFA Expenditure_7B imp-exp'!A$22:A$63,MATCH('LFA Expenditure_7B'!B119,'LFA Expenditure_7B imp-exp'!N$22:N$63,0)),\"\")","v":"PMTCT"},{"$f":"IFERROR(INDEX('LFA Expenditure_7B imp-exp'!B$22:B$63,MATCH('LFA Expenditure_7B'!B119,'LFA Expenditure_7B imp-exp'!N$22:N$63,0)),\"\")","v":"Prong 4: Treatment, care and support to mothers living with HIV, their children and families"},{"$f":"IFERROR(INDEX('LFA Expenditure_7B imp-exp'!C$22:C$63,MATCH('LFA Expenditure_7B'!B119,'LFA Expenditure_7B imp-exp'!N$22:N$63,0)),\"\")","v":60388.725055484501},{"$f":"'PR Expenditure_7A'!F120","v":0},null,60388.725055484501,0,null,null,{"$f":"IFERROR(INDEX('LFA Expenditure_7B imp-exp'!J$22:J$63,MATCH('LFA Expenditure_7B'!B119,'LFA Expenditure_7B imp-exp'!N$22:N$63,0)),\"\")","v":60388.725055484501},null,60388.725055484501,0]
["Show","Int18",{"$f":"IFERROR(INDEX('LFA Expenditure_7B imp-exp'!A$22:A$63,MATCH('LFA Expenditure_7B'!B120,'LFA Expenditure_7B imp-exp'!N$22:N$63,0)),\"\")","v":"Prevention programs for general population"},{"$f":"IFERROR(INDEX('LFA Expenditure_7B imp-exp'!B$22:B$63,MATCH('LFA Expenditure_7B'!B120,'LFA Expenditure_7B imp-exp'!N$22:N$63,0)),\"\")","v":"Other intervention(s) for general population"},{"$f":"IFERROR(INDEX('LFA Expenditure_7B imp-exp'!C$22:C$63,MATCH('LFA Expenditure_7B'!B120,'LFA Expenditure_7B imp-exp'!N$22:N$63,0)),\"\")","v":181903.66182593201},{"$f":"'PR Expenditure_7A'!F121","v":29446.54},null,152457.121825932,0.16187986379393562,null,null,{"$f":"IFERROR(INDEX('LFA Expenditure_7B imp-exp'!J$22:J$63,MATCH('LFA Expenditure_7B'!B120,'LFA Expenditure_7B imp-exp'!N$22:N$63,0)),\"\")","v":181903.66182593201},null,181903.66182593201,0]
["Show","Int19",{"$f":"IFERROR(INDEX('LFA Expenditure_7B imp-exp'!A$22:A$63,MATCH('LFA Expenditure_7B'!B121,'LFA Expenditure_7B imp-exp'!N$22:N$63,0)),\"\")","v":"PMTCT"},{"$f":"IFERROR(INDEX('LFA Expenditure_7B imp-exp'!B$22:B$63,MATCH('LFA Expenditure_7B'!B121,'LFA Expenditure_7B imp-exp'!N$22:N$63,0)),\"\")","v":"Other intervention(s) for PMTCT"},{"$f":"IFERROR(INDEX('LFA Expenditure_7B imp-exp'!C$22:C$63,MATCH('LFA Expenditure_7B'!B121,'LFA Expenditure_7B imp-exp'!N$22:N$63,0)),\"\")","v":9533.6468086751993},{"$f":"'PR Expenditure_7A'!F122","v":0},null,9533.6468086751993,0,null,null,{"$f":"IFERROR(INDEX('LFA Expenditure_7B imp-exp'!J$22:J$63,MATCH('LFA Expenditure_7B'!B121,'LFA Expenditure_7B imp-exp'!N$22:N$63,0)),\"\")","v":9533.6468086751993},null,9533.6468086751993,0]
["Show","Int20",{"$f":"IFERROR(INDEX('LFA Expenditure_7B imp-exp'!A$22:A$63,MATCH('LFA Expenditure_7B'!B122,'LFA Expenditure_7B imp-exp'!N$22:N$63,0)),\"\")","v":"Comprehensive prevention programs for MSM"},{"$f":"IFERROR(INDEX('LFA Expenditure_7B imp-exp'!B$22:B$63,MATCH('LFA Expenditure_7B'!B122,'LFA Expenditure_7B imp-exp'!N$22:N$63,0)),\"\")","v":"Behavioral interventions for MSM"},{"$f":"IFERROR(INDEX('LFA Expenditure_7B imp-exp'!C$22:C$63,MATCH('LFA Expenditure_7B'!B122,'LFA Expenditure_7B imp-exp'!N$22:N$63,0)),\"\")","v":3050.9540104395401},{"$f":"'PR Expenditure_7A'!F123","v":0},null,3050.9540104395401,0,null,null,{"$f":"IFERROR(INDEX('LFA Expenditure_7B imp-exp'!J$22:J$63,MATCH('LFA Expenditure_7B'!B122,'LFA Expenditure_7B imp-exp'!N$22:N$63,0)),\"\")","v":3050.9540104395401},null,3050.9540104395401,0]
["Show","Int21",{"$f":"IFERROR(INDEX('LFA Expenditure_7B imp-exp'!A$22:A$63,MATCH('LFA Expenditure_7B'!B123,'LFA Expenditure_7B imp-exp'!N$22:N$63,0)),\"\")","v":"Comprehensive prevention programs for MSM"},{"$f":"IFERROR(INDEX('LFA Expenditure_7B imp-exp'!B$22:B$63,MATCH('LFA Expenditure_7B'!B123,'LFA Expenditure_7B imp-exp'!N$22:N$63,0)),\"\")","v":"Condoms and lubricant programming for MSM"},{"$f":"IFERROR(INDEX('LFA Expenditure_7B imp-exp'!C$22:C$63,MATCH('LFA Expenditure_7B'!B123,'LFA Expenditure_7B imp-exp'!N$22:N$63,0)),\"\")","v":4355.5682197850601},{"$f":"'PR Expenditure_7A'!F124","v":0},null,4355.5682197850601,0,null,null,{"$f":"IFERROR(INDEX('LFA Expenditure_7B imp-exp'!J$22:J$63,MATCH('LFA Expenditure_7B'!B123,'LFA Expenditure_7B imp-exp'!N$22:N$63,0)),\"\")","v":4355.5682197850601},null,4355.5682197850601,0]
["Show","Int22",{"$f":"IFERROR(INDEX('LFA Expenditure_7B imp-exp'!A$22:A$63,MATCH('LFA Expenditure_7B'!B124,'LFA Expenditure_7B imp-exp'!N$22:N$63,0)),\"\")","v":"Comprehensive prevention programs for MSM"},{"$f":"IFERROR(INDEX('LFA Expenditure_7B imp-exp'!B$22:B$63,MATCH('LFA Expenditure_7B'!B124,'LFA Expenditure_7B imp-exp'!N$22:N$63,0)),\"\")","v":"Other intervention(s) for MSM"},{"$f":"IFERROR(INDEX('LFA Expenditure_7B imp-exp'!C$22:C$63,MATCH('LFA Expenditure_7B'!B124,'LFA Expenditure_7B imp-exp'!N$22:N$63,0)),\"\")","v":15504.729687797},{"$f":"'PR Expenditure_7A'!F125","v":0},null,15504.729687797,0,null,null,{"$f":"IFERROR(INDEX('LFA Expenditure_7B imp-exp'!J$22:J$63,MATCH('LFA Expenditure_7B'!B124,'LFA Expenditure_7B imp-exp'!N$22:N$63,0)),\"\")","v":15504.729687797},null,15504.729687797,0]
["Show","Int23",{"$f":"IFERROR(INDEX('LFA Expenditure_7B imp-exp'!A$22:A$63,MATCH('LFA Expenditure_7B'!B125,'LFA Expenditure_7B imp-exp'!N$22:N$63,0)),\"\")","v":"Comprehensive prevention programs for sex workers and their clients"},{"$f":"IFERROR(INDEX('LFA Expenditure_7B imp-exp'!B$22:B$63,MATCH('LFA Expenditure_7B'!B125,'LFA Expenditure_7B imp-exp'!N$22:N$63,0)),\"\")","v":"Behavioral interventions for sex workers"},{"$f":"IFERROR(INDEX('LFA Expenditure_7B imp-exp'!C$22:C$63,MATCH('LFA Expenditure_7B'!B125,'LFA Expenditure_7B imp-exp'!N$22:N$63,0)),\"\")","v":4684.6755908956002},{"$f":"'PR Expenditure_7A'!F126","v":0},null,4684.6755908956002,0,null,null,{"$f":"IFERROR(INDEX('LFA Expenditure_7B imp-exp'!J$22:J$63,MATCH('LFA Expenditure_7B'!B125,'LFA Expenditure_7B imp-exp'!N$22:N$63,0)),\"\")","v":4684.6755908956002},null,4684.6755908956002,0]
["Show","Int24",{"$f":"IFERROR(INDEX('LFA Expenditure_7B imp-exp'!A$22:A$63,MATCH('LFA Expenditure_7B'!B126,'LFA Expenditure_7B imp-exp'!N$22:N$63,0)),\"\")","v":"Comprehensive prevention programs for sex workers and their clients"},{"$f":"IFERROR(INDEX('LFA Expenditure_7B imp-exp'!B$22:B$63,MATCH('LFA Expenditure_7B'!B126,'LFA Expenditure_7B imp-exp'!N$22:N$63,0)),\"\")","v":"Condoms and lubricant programming for sex workers"},{"$f":"IFERROR(INDEX('LFA Expenditure_7B imp-exp'!C$22:C$63,MATCH('LFA Expenditure_7B'!B126,'LFA Expenditure_7B imp-exp'!N$22:N$63,0)),\"\")","v":12736.7704611305},{"$f":"'PR Expenditure_7A'!F127","v":0},null,12736.7704611305,0,null,null,{"$f":"IFERROR(INDEX('LFA Expenditure_7B imp-exp'!J$22:J$63,MATCH('LFA Expenditure_7B'!B126,'LFA Expenditure_7B imp-exp'!N$22:N$63,0)),\"\")","v":12736.7704611305},null,12736.7704611305,0]
["Show","Int25",{"$f":"IFERROR(INDEX('LFA Expenditure_7B imp-exp'!A$22:A$63,MATCH('LFA Expenditure_7B'!B127,'LFA Expenditure_7B imp-exp'!N$22:N$63,0)),\"\")","v":"Comprehensive prevention programs for sex workers and their clients"},{"$f":"IFERROR(INDEX('LFA Expenditure_7B imp-exp'!B$22:B$63,MATCH('LFA Expenditure_7B'!B127,'LFA Expenditure_7B imp-exp'!N$22:N$63,0)),\"\")","v":"Other intervention(s) for sex workers and their clients"},{"$f":"IFERROR(INDEX('LFA Expenditure_7B imp-exp'!C$22:C$63,MATCH('LFA Expenditure_7B'!B127,'LFA Expenditure_7B imp-exp'!N$22:N$63,0)),\"\")","v":14728.743498673601},{"$f":"'PR Expenditure_7A'!F128","v":0},null,14728.743498673601,0,null,null,{"$f":"IFERROR(INDEX('LFA Expenditure_7B imp-exp'!J$22:J$63,MATCH('LFA Expenditure_7B'!B127,'LFA Expenditure_7B imp-exp'!N$22:N$63,0)),\"\")","v":14728.743498673601},null,14728.743498673601,0]
["Show","Int26",{"$f":"IFERROR(INDEX('LFA Expenditure_7B imp-exp'!A$22:A$63,MATCH('LFA Expenditure_7B'!B128,'LFA Expenditure_7B imp-exp'!N$22:N$63,0)),\"\")","v":"Comprehensive prevention programs for people who inject drugs (PWID) and their partners"},{"$f":"IFERROR(INDEX('LFA Expenditure_7B imp-exp'!B$22:B$63,MATCH('LFA Expenditure_7B'!B128,'LFA Expenditure_7B imp-exp'!N$22:N$63,0)),\"\")","v":"Other intervention(s) for IDUs and their partners"},{"$f":"IFERROR(INDEX('LFA Expenditure_7B imp-exp'!C$22:C$63,MATCH('LFA Expenditure_7B'!B128,'LFA Expenditure_7B imp-exp'!N$22:N$63,0)),\"\")","v":6814.0310795609803},{"$f":"'PR Expenditure_7A'!F129","v":0},null,6814.0310795609803,0,null,null,{"$f":"IFERROR(INDEX('LFA Expenditure_7B imp-exp'!J$22:J$63,MATCH('LFA Expenditure_7B'!B128,'LFA Expenditure_7B imp-exp'!N$22:N$63,0)),\"\")","v":6814.0310795609803},null,6814.0310795609803,0]
["Show","Int27",{"$f":"IFERROR(INDEX('LFA Expenditure_7B imp-exp'!A$22:A$63,MATCH('LFA Expenditure_7B'!B129,'LFA Expenditure_7B imp-exp'!N$22:N$63,0)),\"\")","v":"Prevention programs for general population"},{"$f":"IFERROR(INDEX('LFA Expenditure_7B imp-exp'!B$22:B$63,MATCH('LFA Expenditure_7B'!B129,'LFA Expenditure_7B imp-exp'!N$22:N$63,0)),\"\")","v":"Behavioral interventions as part of programs for general population"},{"$f":"IFERROR(INDEX('LFA Expenditure_7B imp-exp'!C$22:C$63,MATCH('LFA Expenditure_7B'!B129,'LFA Expenditure_7B imp-exp'!N$22:N$63,0)),\"\")","v":65947.805029686395},{"$f":"'PR Expenditure_7A'!F130","v":16803.640000000003},null,49144.165029686395,0.25480211194953112,null,null,{"$f":"IFERROR(INDEX('LFA Expenditure_7B imp-exp'!J$22:J$63,MATCH('LFA Expenditure_7B'!B129,'LFA Expenditure_7B imp-exp'!N$22:N$63,0)),\"\")","v":65947.805029686395},null,65947.805029686395,0]
["Show","Int28",{"$f":"IFERROR(INDEX('LFA Expenditure_7B imp-exp'!A$22:A$63,MATCH('LFA Expenditure_7B'!B130,'LFA Expenditure_7B imp-exp'!N$22:N$63,0)),\"\")","v":"Prevention programs for other vulnerable populations"},{"$f":"IFERROR(INDEX('LFA Expenditure_7B imp-exp'!B$22:B$63,MATCH('LFA Expenditure_7B'!B130,'LFA Expenditure_7B imp-exp'!N$22:N$63,0)),\"\")","v":"HIV testing services for other vulnerable populations"},{"$f":"IFERROR(INDEX('LFA Expenditure_7B imp-exp'!C$22:C$63,MATCH('LFA Expenditure_7B'!B130,'LFA Expenditure_7B imp-exp'!N$22:N$63,0)),\"\")","v":30050.76},{"$f":"'PR Expenditure_7A'!F131","v":0},null,30050.76,0,null,null,{"$f":"IFERROR(INDEX('LFA Expenditure_7B imp-exp'!J$22:J$63,MATCH('LFA Expenditure_7B'!B130,'LFA Expenditure_7B imp-exp'!N$22:N$63,0)),\"\")","v":30050.76},null,30050.76,0]
["Show","Int29",{"$f":"IFERROR(INDEX('LFA Expenditure_7B imp-exp'!A$22:A$63,MATCH('LFA Expenditure_7B'!B131,'LFA Expenditure_7B imp-exp'!N$22:N$63,0)),\"\")","v":"HIV Testing Services"},{"$f":"IFERROR(INDEX('LFA Expenditure_7B imp-exp'!B$22:B$63,MATCH('LFA Expenditure_7B'!B131,'LFA Expenditure_7B imp-exp'!N$22:N$63,0)),\"\")","v":"Differentiated HIV testing services"},{"$f":"IFERROR(INDEX('LFA Expenditure_7B imp-exp'!C$22:C$63,MATCH('LFA Expenditure_7B'!B131,'LFA Expenditure_7B imp-exp'!N$22:N$63,0)),\"\")","v":22346.450776106001},{"$f":"'PR Expenditure_7A'!F132","v":0},null,22346.450776106001,0,null,null,{"$f":"IFERROR(INDEX('LFA Expenditure_7B imp-exp'!J$22:J$63,MATCH('LFA Expenditure_7B'!B131,'LFA Expenditure_7B imp-exp'!N$22:N$63,0)),\"\")","v":22346.450776106001},null,22346.450776106001,0]
["Show","Int30",{"$f":"IFERROR(INDEX('LFA Expenditure_7B imp-exp'!A$22:A$63,MATCH('LFA Expenditure_7B'!B132,'LFA Expenditure_7B imp-exp'!N$22:N$63,0)),\"\")","v":"RSSH: Integrated service delivery and quality improvement"},{"$f":"IFERROR(INDEX('LFA Expenditure_7B imp-exp'!B$22:B$63,MATCH('LFA Expenditure_7B'!B132,'LFA Expenditure_7B imp-exp'!N$22:N$63,0)),\"\")","v":"Laboratory systems for disease prevention, control, treatment and disease surveillance"},{"$f":"IFERROR(INDEX('LFA Expenditure_7B imp-exp'!C$22:C$63,MATCH('LFA Expenditure_7B'!B132,'LFA Expenditure_7B imp-exp'!N$22:N$63,0)),\"\")","v":25407.761478241398},{"$f":"'PR Expenditure_7A'!F133","v":0},null,25407.761478241398,0,null,null,{"$f":"IFERROR(INDEX('LFA Expenditure_7B imp-exp'!J$22:J$63,MATCH('LFA Expenditure_7B'!B132,'LFA Expenditure_7B imp-exp'!N$22:N$63,0)),\"\")","v":25407.761478241398},null,25407.761478241398,0]
["Show","Int31",{"$f":"IFERROR(INDEX('LFA Expenditure_7B imp-exp'!A$22:A$63,MATCH('LFA Expenditure_7B'!B133,'LFA Expenditure_7B imp-exp'!N$22:N$63,0)),\"\")","v":"RSSH: Health management information systems and M&E"},{"$f":"IFERROR(INDEX('LFA Expenditure_7B imp-exp'!B$22:B$63,MATCH('LFA Expenditure_7B'!B133,'LFA Expenditure_7B imp-exp'!N$22:N$63,0)),\"\")","v":"Program and data quality"},{"$f":"IFERROR(INDEX('LFA Expenditure_7B imp-exp'!C$22:C$63,MATCH('LFA Expenditure_7B'!B133,'LFA Expenditure_7B imp-exp'!N$22:N$63,0)),\"\")","v":100573.092865479},{"$f":"'PR Expenditure_7A'!F134","v":7909.39},null,92663.702865479005,7.864320142345789E-2,null,null,{"$f":"IFERROR(INDEX('LFA Expenditure_7B imp-exp'!J$22:J$63,MATCH('LFA Expenditure_7B'!B133,'LFA Expenditure_7B imp-exp'!N$22:N$63,0)),\"\")","v":100573.092865479},null,100573.092865479,0]
["Show","Int32",{"$f":"IFERROR(INDEX('LFA Expenditure_7B imp-exp'!A$22:A$63,MATCH('LFA Expenditure_7B'!B134,'LFA Expenditure_7B imp-exp'!N$22:N$63,0)),\"\")","v":"Treatment, care and support"},{"$f":"IFERROR(INDEX('LFA Expenditure_7B imp-exp'!B$22:B$63,MATCH('LFA Expenditure_7B'!B134,'LFA Expenditure_7B imp-exp'!N$22:N$63,0)),\"\")","v":"Counseling and psycho-social support"},{"$f":"IFERROR(INDEX('LFA Expenditure_7B imp-exp'!C$22:C$63,MATCH('LFA Expenditure_7B'!B134,'LFA Expenditure_7B imp-exp'!N$22:N$63,0)),\"\")","v":511140.51779259299},{"$f":"'PR Expenditure_7A'!F135","v":262869.64},null,248270.87779259298,0.51428057618133383,null,null,{"$f":"IFERROR(INDEX('LFA Expenditure_7B imp-exp'!J$22:J$63,MATCH('LFA Expenditure_7B'!B134,'LFA Expenditure_7B imp-exp'!N$22:N$63,0)),\"\")","v":511140.51779259299},null,511140.51779259299,0]
["Show","Int33",{"$f":"IFERROR(INDEX('LFA Expenditure_7B imp-exp'!A$22:A$63,MATCH('LFA Expenditure_7B'!B135,'LFA Expenditure_7B imp-exp'!N$22:N$63,0)),\"\")","v":"Treatment, care and support"},{"$f":"IFERROR(INDEX('LFA Expenditure_7B imp-exp'!B$22:B$63,MATCH('LFA Expenditure_7B'!B135,'LFA Expenditure_7B imp-exp'!N$22:N$63,0)),\"\")","v":"Other intervention(s) for treatment"},{"$f":"IFERROR(INDEX('LFA Expenditure_7B imp-exp'!C$22:C$63,MATCH('LFA Expenditure_7B'!B135,'LFA Expenditure_7B imp-exp'!N$22:N$63,0)),\"\")","v":286684.78582535899},{"$f":"'PR Expenditure_7A'!F136","v":0},null,286684.78582535899,0,null,null,{"$f":"IFERROR(INDEX('LFA Expenditure_7B imp-exp'!J$22:J$63,MATCH('LFA Expenditure_7B'!B135,'LFA Expenditure_7B imp-exp'!N$22:N$63,0)),\"\")","v":286684.78582535899},null,286684.78582535899,0]
["Show","Int34",{"$f":"IFERROR(INDEX('LFA Expenditure_7B imp-exp'!A$22:A$63,MATCH('LFA Expenditure_7B'!B136,'LFA Expenditure_7B imp-exp'!N$22:N$63,0)),\"\")","v":"Treatment, care and support"},{"$f":"IFERROR(INDEX('LFA Expenditure_7B imp-exp'!B$22:B$63,MATCH('LFA Expenditure_7B'!B136,'LFA Expenditure_7B imp-exp'!N$22:N$63,0)),\"\")","v":"Differentiated ART service delivery"},{"$f":"IFERROR(INDEX('LFA Expenditure_7B imp-exp'!C$22:C$63,MATCH('LFA Expenditure_7B'!B136,'LFA Expenditure_7B imp-exp'!N$22:N$63,0)),\"\")","v":184474.30067366801},{"$f":"'PR Expenditure_7A'!F137","v":0},null,184474.30067366801,0,null,null,{"$f":"IFERROR(INDEX('LFA Expenditure_7B imp-exp'!J$22:J$63,MATCH('LFA Expenditure_7B'!B136,'LFA Expenditure_7B imp-exp'!N$22:N$63,0)),\"\")","v":184474.30067366801},null,184474.30067366801,0]
["Show","Int35",{"$f":"IFERROR(INDEX('LFA Expenditure_7B imp-exp'!A$22:A$63,MATCH('LFA Expenditure_7B'!B137,'LFA Expenditure_7B imp-exp'!N$22:N$63,0)),\"\")","v":"Treatment, care and support"},{"$f":"IFERROR(INDEX('LFA Expenditure_7B imp-exp'!B$22:B$63,MATCH('LFA Expenditure_7B'!B137,'LFA Expenditure_7B imp-exp'!N$22:N$63,0)),\"\")","v":"Prevention, diagnosis and treatment of opportunistic infections"},{"$f":"IFERROR(INDEX('LFA Expenditure_7B imp-exp'!C$22:C$63,MATCH('LFA Expenditure_7B'!B137,'LFA Expenditure_7B imp-exp'!N$22:N$63,0)),\"\")","v":97428.235622955603},{"$f":"'PR Expenditure_7A'!F138","v":0},null,97428.235622955603,0,null,null,{"$f":"IFERROR(INDEX('LFA Expenditure_7B imp-exp'!J$22:J$63,MATCH('LFA Expenditure_7B'!B137,'LFA Expenditure_7B imp-exp'!N$22:N$63,0)),\"\")","v":97428.235622955603},null,97428.235622955603,0]
["Show","Int36",{"$f":"IFERROR(INDEX('LFA Expenditure_7B imp-exp'!A$22:A$63,MATCH('LFA Expenditure_7B'!B138,'LFA Expenditure_7B imp-exp'!N$22:N$63,0)),\"\")","v":"Treatment, care and support"},{"$f":"IFERROR(INDEX('LFA Expenditure_7B imp-exp'!B$22:B$63,MATCH('LFA Expenditure_7B'!B138,'LFA Expenditure_7B imp-exp'!N$22:N$63,0)),\"\")","v":"HIV care"},{"$f":"IFERROR(INDEX('LFA Expenditure_7B imp-exp'!C$22:C$63,MATCH('LFA Expenditure_7B'!B138,'LFA Expenditure_7B imp-exp'!N$22:N$63,0)),\"\")","v":247804.2},{"$f":"'PR Expenditure_7A'!F139","v":8035.57},null,239768.63,3.2427093648937345E-2,null,null,{"$f":"IFERROR(INDEX('LFA Expenditure_7B imp-exp'!J$22:J$63,MATCH('LFA Expenditure_7B'!B138,'LFA Expenditure_7B imp-exp'!N$22:N$63,0)),\"\")","v":247804.2},null,247804.2,0]
["Show","Int37",{"$f":"IFERROR(INDEX('LFA Expenditure_7B imp-exp'!A$22:A$63,MATCH('LFA Expenditure_7B'!B139,'LFA Expenditure_7B imp-exp'!N$22:N$63,0)),\"\")","v":"Treatment, care and support"},{"$f":"IFERROR(INDEX('LFA Expenditure_7B imp-exp'!B$22:B$63,MATCH('LFA Expenditure_7B'!B139,'LFA Expenditure_7B imp-exp'!N$22:N$63,0)),\"\")","v":"Treatment monitoring - Viral load"},{"$f":"IFERROR(INDEX('LFA Expenditure_7B imp-exp'!C$22:C$63,MATCH('LFA Expenditure_7B'!B139,'LFA Expenditure_7B imp-exp'!N$22:N$63,0)),\"\")","v":367814.462461319},{"$f":"'PR Expenditure_7A'!F140","v":7212.55},null,360601.91246131901,1.9609207184881981E-2,null,null,{"$f":"IFERROR(INDEX('LFA Expenditure_7B imp-exp'!J$22:J$63,MATCH('LFA Expenditure_7B'!B139,'LFA Expenditure_7B imp-exp'!N$22:N$63,0)),\"\")","v":367814.462461319},null,367814.462461319,0]
["Show","Int38",{"$f":"IFERROR(INDEX('LFA Expenditure_7B imp-exp'!A$22:A$63,MATCH('LFA Expenditure_7B'!B140,'LFA Expenditure_7B imp-exp'!N$22:N$63,0)),\"\")","v":"Treatment, care and support"},{"$f":"IFERROR(INDEX('LFA Expenditure_7B imp-exp'!B$22:B$63,MATCH('LFA Expenditure_7B'!B140,'LFA Expenditure_7B imp-exp'!N$22:N$63,0)),\"\")","v":"Treatment monitoring - Drug resistance surveillance"},{"$f":"IFERROR(INDEX('LFA Expenditure_7B imp-exp'!C$22:C$63,MATCH('LFA Expenditure_7B'!B140,'LFA Expenditure_7B imp-exp'!N$22:N$63,0)),\"\")","v":166001.67000000001},{"$f":"'PR Expenditure_7A'!F141","v":0},null,166001.67000000001,0,null,null,{"$f":"IFERROR(INDEX('LFA Expenditure_7B imp-exp'!J$22:J$63,MATCH('LFA Expenditure_7B'!B140,'LFA Expenditure_7B imp-exp'!N$22:N$63,0)),\"\")","v":166001.67000000001},null,166001.67000000001,0]
["Show","Int39",{"$f":"IFERROR(INDEX('LFA Expenditure_7B imp-exp'!A$22:A$63,MATCH('LFA Expenditure_7B'!B141,'LFA Expenditure_7B imp-exp'!N$22:N$63,0)),\"\")","v":"Comprehensive prevention programs for sex workers and their clients"},{"$f":"IFERROR(INDEX('LFA Expenditure_7B imp-exp'!B$22:B$63,MATCH('LFA Expenditure_7B'!B141,'LFA Expenditure_7B imp-exp'!N$22:N$63,0)),\"\")","v":"HIV testing services for sex workers"},{"$f":"IFERROR(INDEX('LFA Expenditure_7B imp-exp'!C$22:C$63,MATCH('LFA Expenditure_7B'!B141,'LFA Expenditure_7B imp-exp'!N$22:N$63,0)),\"\")","v":183.52481978506},{"$f":"'PR Expenditure_7A'!F142","v":0},null,183.52481978506,0,null,null,{"$f":"IFERROR(INDEX('LFA Expenditure_7B imp-exp'!J$22:J$63,MATCH('LFA Expenditure_7B'!B141,'LFA Expenditure_7B imp-exp'!N$22:N$63,0)),\"\")","v":183.52481978506},null,183.52481978506,0]
["Show","Int40",{"$f":"IFERROR(INDEX('LFA Expenditure_7B imp-exp'!A$22:A$63,MATCH('LFA Expenditure_7B'!B142,'LFA Expenditure_7B imp-exp'!N$22:N$63,0)),\"\")","v":"Prevention programs for general population"},{"$f":"IFERROR(INDEX('LFA Expenditure_7B imp-exp'!B$22:B$63,MATCH('LFA Expenditure_7B'!B142,'LFA Expenditure_7B imp-exp'!N$22:N$63,0)),\"\")","v":"Gender-based violence prevention and treatment programs for general population"},{"$f":"IFERROR(INDEX('LFA Expenditure_7B imp-exp'!C$22:C$63,MATCH('LFA Expenditure_7B'!B142,'LFA Expenditure_7B imp-exp'!N$22:N$63,0)),\"\")","v":30000},{"$f":"'PR Expenditure_7A'!F143","v":0},null,30000,0,null,null,{"$f":"IFERROR(INDEX('LFA Expenditure_7B imp-exp'!J$22:J$63,MATCH('LFA Expenditure_7B'!B142,'LFA Expenditure_7B imp-exp'!N$22:N$63,0)),\"\")","v":30000},null,30000,0]
["Don't Show","Int41",{"$f":"IFERROR(INDEX('LFA Expenditure_7B imp-exp'!A$22:A$63,MATCH('LFA Expenditure_7B'!B143,'LFA Expenditure_7B imp-exp'!N$22:N$63,0)),\"\")","v":""},{"$f":"IFERROR(INDEX('LFA Expenditure_7B imp-exp'!B$22:B$63,MATCH('LFA Expenditure_7B'!B143,'LFA Expenditure_7B imp-exp'!N$22:N$63,0)),\"\")","v":""},{"$f":"IFERROR(INDEX('LFA Expenditure_7B imp-exp'!C$22:C$63,MATCH('LFA Expenditure_7B'!B143,'LFA Expenditure_7B imp-exp'!N$22:N$63,0)),\"\")","v":""},{"$f":"'PR Expenditure_7A'!F144","v":0},null,0,{"$error":"#VALUE!"},null,null,{"$f":"IFERROR(INDEX('LFA Expenditure_7B imp-exp'!J$22:J$63,MATCH('LFA Expenditure_7B'!B143,'LFA Expenditure_7B imp-exp'!N$22:N$63,0)),\"\")","v":""},null,0,{"$error":"#VALUE!"}]
["Don't Show","Int42",{"$f":"IFERROR(INDEX('LFA Expenditure_7B imp-exp'!A$22:A$63,MATCH('LFA Expenditure_7B'!B144,'LFA Expenditure_7B imp-exp'!N$22:N$63,0)),\"\")","v":""},{"$f":"IFERROR(INDEX('LFA Expenditure_7B imp-exp'!B$22:B$63,MATCH('LFA Expenditure_7B'!B144,'LFA Expenditure_7B imp-exp'!N$22:N$63,0)),\"\")","v":""},{"$f":"IFERROR(INDEX('LFA Expenditure_7B imp-exp'!C$22:C$63,MATCH('LFA Expenditure_7B'!B144,'LFA Expenditure_7B imp-exp'!N$22:N$63,0)),\"\")","v":""},{"$f":"'PR Expenditure_7A'!F145","v":0},null,0,{"$error":"#VALUE!"},null,null,{"$f":"IFERROR(INDEX('LFA Expenditure_7B imp-exp'!J$22:J$63,MATCH('LFA Expenditure_7B'!B144,'LFA Expenditure_7B imp-exp'!N$22:N$63,0)),\"\")","v":""},null,0,{"$error":"#VALUE!"}]
["Don't Show","Int43",{"$f":"IFERROR(INDEX('LFA Expenditure_7B imp-exp'!A$22:A$63,MATCH('LFA Expenditure_7B'!B145,'LFA Expenditure_7B imp-exp'!N$22:N$63,0)),\"\")","v":""},{"$f":"IFERROR(INDEX('LFA Expenditure_7B imp-exp'!B$22:B$63,MATCH('LFA Expenditure_7B'!B145,'LFA Expenditure_7B imp-exp'!N$22:N$63,0)),\"\")","v":""},{"$f":"IFERROR(INDEX('LFA Expenditure_7B imp-exp'!C$22:C$63,MATCH('LFA Expenditure_7B'!B145,'LFA Expenditure_7B imp-exp'!N$22:N$63,0)),\"\")","v":""},{"$f":"'PR Expenditure_7A'!F146","v":0},null,0,{"$error":"#VALUE!"},null,null,{"$f":"IFERROR(INDEX('LFA Expenditure_7B imp-exp'!J$22:J$63,MATCH('LFA Expenditure_7B'!B145,'LFA Expenditure_7B imp-exp'!N$22:N$63,0)),\"\")","v":""},null,0,{"$error":"#VALUE!"}]
["Don't Show","Int44",{"$f":"IFERROR(INDEX('LFA Expenditure_7B imp-exp'!A$22:A$63,MATCH('LFA Expenditure_7B'!B146,'LFA Expenditure_7B imp-exp'!N$22:N$63,0)),\"\")","v":""},{"$f":"IFERROR(INDEX('LFA Expenditure_7B imp-exp'!B$22:B$63,MATCH('LFA Expenditure_7B'!B146,'LFA Expenditure_7B imp-exp'!N$22:N$63,0)),\"\")","v":""},{"$f":"IFERROR(INDEX('LFA Expenditure_7B imp-exp'!C$22:C$63,MATCH('LFA Expenditure_7B'!B146,'LFA Expenditure_7B imp-exp'!N$22:N$63,0)),\"\")","v":""},{"$f":"'PR Expenditure_7A'!F147","v":0},null,0,{"$error":"#VALUE!"},null,null,{"$f":"IFERROR(INDEX('LFA Expenditure_7B imp-exp'!J$22:J$63,MATCH('LFA Expenditure_7B'!B146,'LFA Expenditure_7B imp-exp'!N$22:N$63,0)),\"\")","v":""},null,0,{"$error":"#VALUE!"}]
["Don't Show","Int45",{"$f":"IFERROR(INDEX('LFA Expenditure_7B imp-exp'!A$22:A$63,MATCH('LFA Expenditure_7B'!B147,'LFA Expenditure_7B imp-exp'!N$22:N$63,0)),\"\")","v":""},{"$f":"IFERROR(INDEX('LFA Expenditure_7B imp-exp'!B$22:B$63,MATCH('LFA Expenditure_7B'!B147,'LFA Expenditure_7B imp-exp'!N$22:N$63,0)),\"\")","v":""},{"$f":"IFERROR(INDEX('LFA Expenditure_7B imp-exp'!C$22:C$63,MATCH('LFA Expenditure_7B'!B147,'LFA Expenditure_7B imp-exp'!N$22:N$63,0)),\"\")","v":""},{"$f":"'PR Expenditure_7A'!F148","v":0},null,0,{"$error":"#VALUE!"},null,null,{"$f":"IFERROR(INDEX('LFA Expenditure_7B imp-exp'!J$22:J$63,MATCH('LFA Expenditure_7B'!B147,'LFA Expenditure_7B imp-exp'!N$22:N$63,0)),\"\")","v":""},null,0,{"$error":"#VALUE!"}]
["Don't Show","Int46",{"$f":"IFERROR(INDEX('LFA Expenditure_7B imp-exp'!A$22:A$63,MATCH('LFA Expenditure_7B'!B148,'LFA Expenditure_7B imp-exp'!N$22:N$63,0)),\"\")","v":""},{"$f":"IFERROR(INDEX('LFA Expenditure_7B imp-exp'!B$22:B$63,MATCH('LFA Expenditure_7B'!B148,'LFA Expenditure_7B imp-exp'!N$22:N$63,0)),\"\")","v":""},{"$f":"IFERROR(INDEX('LFA Expenditure_7B imp-exp'!C$22:C$63,MATCH('LFA Expenditure_7B'!B148,'LFA Expenditure_7B imp-exp'!N$22:N$63,0)),\"\")","v":""},{"$f":"'PR Expenditure_7A'!F149","v":0},null,0,{"$error":"#VALUE!"},null,null,{"$f":"IFERROR(INDEX('LFA Expenditure_7B imp-exp'!J$22:J$63,MATCH('LFA Expenditure_7B'!B148,'LFA Expenditure_7B imp-exp'!N$22:N$63,0)),\"\")","v":""},null,0,{"$error":"#VALUE!"}]
["Don't Show","Int47",{"$f":"IFERROR(INDEX('LFA Expenditure_7B imp-exp'!A$22:A$63,MATCH('LFA Expenditure_7B'!B149,'LFA Expenditure_7B imp-exp'!N$22:N$63,0)),\"\")","v":""},{"$f":"IFERROR(INDEX('LFA Expenditure_7B imp-exp'!B$22:B$63,MATCH('LFA Expenditure_7B'!B149,'LFA Expenditure_7B imp-exp'!N$22:N$63,0)),\"\")","v":""},{"$f":"IFERROR(INDEX('LFA Expenditure_7B imp-exp'!C$22:C$63,MATCH('LFA Expenditure_7B'!B149,'LFA Expenditure_7B imp-exp'!N$22:N$63,0)),\"\")","v":""},{"$f":"'PR Expenditure_7A'!F150","v":0},null,0,{"$error":"#VALUE!"},null,null,{"$f":"IFERROR(INDEX('LFA Expenditure_7B imp-exp'!J$22:J$63,MATCH('LFA Expenditure_7B'!B149,'LFA Expenditure_7B imp-exp'!N$22:N$63,0)),\"\")","v":""},null,0,{"$error":"#VALUE!"}]
["Don't Show","Int48",{"$f":"IFERROR(INDEX('LFA Expenditure_7B imp-exp'!A$22:A$63,MATCH('LFA Expenditure_7B'!B150,'LFA Expenditure_7B imp-exp'!N$22:N$63,0)),\"\")","v":""},{"$f":"IFERROR(INDEX('LFA Expenditure_7B imp-exp'!B$22:B$63,MATCH('LFA Expenditure_7B'!B150,'LFA Expenditure_7B imp-exp'!N$22:N$63,0)),\"\")","v":""},{"$f":"IFERROR(INDEX('LFA Expenditure_7B imp-exp'!C$22:C$63,MATCH('LFA Expenditure_7B'!B150,'LFA Expenditure_7B imp-exp'!N$22:N$63,0)),\"\")","v":""},{"$f":"'PR Expenditure_7A'!F151","v":0},null,0,{"$error":"#VALUE!"},null,null,{"$f":"IFERROR(INDEX('LFA Expenditure_7B imp-exp'!J$22:J$63,MATCH('LFA Expenditure_7B'!B150,'LFA Expenditure_7B imp-exp'!N$22:N$63,0)),\"\")","v":""},null,0,{"$error":"#VALUE!"}]
["Don't Show","Int49",{"$f":"IFERROR(INDEX('LFA Expenditure_7B imp-exp'!A$22:A$63,MATCH('LFA Expenditure_7B'!B151,'LFA Expenditure_7B imp-exp'!N$22:N$63,0)),\"\")","v":""},{"$f":"IFERROR(INDEX('LFA Expenditure_7B imp-exp'!B$22:B$63,MATCH('LFA Expenditure_7B'!B151,'LFA Expenditure_7B imp-exp'!N$22:N$63,0)),\"\")","v":""},{"$f":"IFERROR(INDEX('LFA Expenditure_7B imp-exp'!C$22:C$63,MATCH('LFA Expenditure_7B'!B151,'LFA Expenditure_7B imp-exp'!N$22:N$63,0)),\"\")","v":""},{"$f":"'PR Expenditure_7A'!F152","v":0},null,0,{"$error":"#VALUE!"},null,null,{"$f":"IFERROR(INDEX('LFA Expenditure_7B imp-exp'!J$22:J$63,MATCH('LFA Expenditure_7B'!B151,'LFA Expenditure_7B imp-exp'!N$22:N$63,0)),\"\")","v":""},null,0,{"$error":"#VALUE!"}]
["Don't Show","Int50",{"$f":"IFERROR(INDEX('LFA Expenditure_7B imp-exp'!A$22:A$63,MATCH('LFA Expenditure_7B'!B152,'LFA Expenditure_7B imp-exp'!N$22:N$63,0)),\"\")","v":""},{"$f":"IFERROR(INDEX('LFA Expenditure_7B imp-exp'!B$22:B$63,MATCH('LFA Expenditure_7B'!B152,'LFA Expenditure_7B imp-exp'!N$22:N$63,0)),\"\")","v":""},{"$f":"IFERROR(INDEX('LFA Expenditure_7B imp-exp'!C$22:C$63,MATCH('LFA Expenditure_7B'!B152,'LFA Expenditure_7B imp-exp'!N$22:N$63,0)),\"\")","v":""},{"$f":"'PR Expenditure_7A'!F153","v":0},null,0,{"$error":"#VALUE!"},null,null,{"$f":"IFERROR(INDEX('LFA Expenditure_7B imp-exp'!J$22:J$63,MATCH('LFA Expenditure_7B'!B152,'LFA Expenditure_7B imp-exp'!N$22:N$63,0)),\"\")","v":""},null,0,{"$error":"#VALUE!"}]
["Don't Show","Int51",{"$f":"IFERROR(INDEX('LFA Expenditure_7B imp-exp'!A$22:A$63,MATCH('LFA Expenditure_7B'!B153,'LFA Expenditure_7B imp-exp'!N$22:N$63,0)),\"\")","v":""},{"$f":"IFERROR(INDEX('LFA Expenditure_7B imp-exp'!B$22:B$63,MATCH('LFA Expenditure_7B'!B153,'LFA Expenditure_7B imp-exp'!N$22:N$63,0)),\"\")","v":""},{"$f":"IFERROR(INDEX('LFA Expenditure_7B imp-exp'!C$22:C$63,MATCH('LFA Expenditure_7B'!B153,'LFA Expenditure_7B imp-exp'!N$22:N$63,0)),\"\")","v":""},{"$f":"'PR Expenditure_7A'!F154","v":0},null,0,{"$error":"#VALUE!"},null,null,{"$f":"IFERROR(INDEX('LFA Expenditure_7B imp-exp'!J$22:J$63,MATCH('LFA Expenditure_7B'!B153,'LFA Expenditure_7B imp-exp'!N$22:N$63,0)),\"\")","v":""},null,0,{"$error":"#VALUE!"}]
["Don't Show","Int52",{"$f":"IFERROR(INDEX('LFA Expenditure_7B imp-exp'!A$22:A$63,MATCH('LFA Expenditure_7B'!B154,'LFA Expenditure_7B imp-exp'!N$22:N$63,0)),\"\")","v":""},{"$f":"IFERROR(INDEX('LFA Expenditure_7B imp-exp'!B$22:B$63,MATCH('LFA Expenditure_7B'!B154,'LFA Expenditure_7B imp-exp'!N$22:N$63,0)),\"\")","v":""},{"$f":"IFERROR(INDEX('LFA Expenditure_7B imp-exp'!C$22:C$63,MATCH('LFA Expenditure_7B'!B154,'LFA Expenditure_7B imp-exp'!N$22:N$63,0)),\"\")","v":""},{"$f":"'PR Expenditure_7A'!F155","v":0},null,0,{"$error":"#VALUE!"},null,null,{"$f":"IFERROR(INDEX('LFA Expenditure_7B imp-exp'!J$22:J$63,MATCH('LFA Expenditure_7B'!B154,'LFA Expenditure_7B imp-exp'!N$22:N$63,0)),\"\")","v":""},null,0,{"$error":"#VALUE!"}]
["Don't Show","Int53",{"$f":"IFERROR(INDEX('LFA Expenditure_7B imp-exp'!A$22:A$63,MATCH('LFA Expenditure_7B'!B155,'LFA Expenditure_7B imp-exp'!N$22:N$63,0)),\"\")","v":""},{"$f":"IFERROR(INDEX('LFA Expenditure_7B imp-exp'!B$22:B$63,MATCH('LFA Expenditure_7B'!B155,'LFA Expenditure_7B imp-exp'!N$22:N$63,0)),\"\")","v":""},{"$f":"IFERROR(INDEX('LFA Expenditure_7B imp-exp'!C$22:C$63,MATCH('LFA Expenditure_7B'!B155,'LFA Expenditure_7B imp-exp'!N$22:N$63,0)),\"\")","v":""},{"$f":"'PR Expenditure_7A'!F156","v":0},null,0,{"$error":"#VALUE!"},null,null,{"$f":"IFERROR(INDEX('LFA Expenditure_7B imp-exp'!J$22:J$63,MATCH('LFA Expenditure_7B'!B155,'LFA Expenditure_7B imp-exp'!N$22:N$63,0)),\"\")","v":""},null,0,{"$error":"#VALUE!"}]
["Don't Show","Int54",{"$f":"IFERROR(INDEX('LFA Expenditure_7B imp-exp'!A$22:A$63,MATCH('LFA Expenditure_7B'!B156,'LFA Expenditure_7B imp-exp'!N$22:N$63,0)),\"\")","v":""},{"$f":"IFERROR(INDEX('LFA Expenditure_7B imp-exp'!B$22:B$63,MATCH('LFA Expenditure_7B'!B156,'LFA Expenditure_7B imp-exp'!N$22:N$63,0)),\"\")","v":""},{"$f":"IFERROR(INDEX('LFA Expenditure_7B imp-exp'!C$22:C$63,MATCH('LFA Expenditure_7B'!B156,'LFA Expenditure_7B imp-exp'!N$22:N$63,0)),\"\")","v":""},{"$f":"'PR Expenditure_7A'!F157","v":0},null,0,{"$error":"#VALUE!"},null,null,{"$f":"IFERROR(INDEX('LFA Expenditure_7B imp-exp'!J$22:J$63,MATCH('LFA Expenditure_7B'!B156,'LFA Expenditure_7B imp-exp'!N$22:N$63,0)),\"\")","v":""},null,0,{"$error":"#VALUE!"}]
["Don't Show","Int55",{"$f":"IFERROR(INDEX('LFA Expenditure_7B imp-exp'!A$22:A$63,MATCH('LFA Expenditure_7B'!B157,'LFA Expenditure_7B imp-exp'!N$22:N$63,0)),\"\")","v":""},{"$f":"IFERROR(INDEX('LFA Expenditure_7B imp-exp'!B$22:B$63,MATCH('LFA Expenditure_7B'!B157,'LFA Expenditure_7B imp-exp'!N$22:N$63,0)),\"\")","v":""},{"$f":"IFERROR(INDEX('LFA Expenditure_7B imp-exp'!C$22:C$63,MATCH('LFA Expenditure_7B'!B157,'LFA Expenditure_7B imp-exp'!N$22:N$63,0)),\"\")","v":""},{"$f":"'PR Expenditure_7A'!F158","v":0},null,0,{"$error":"#VALUE!"},null,null,{"$f":"IFERROR(INDEX('LFA Expenditure_7B imp-exp'!J$22:J$63,MATCH('LFA Expenditure_7B'!B157,'LFA Expenditure_7B imp-exp'!N$22:N$63,0)),\"\")","v":""},null,0,{"$error":"#VALUE!"}]
["Don't Show","Int56",{"$f":"IFERROR(INDEX('LFA Expenditure_7B imp-exp'!A$22:A$63,MATCH('LFA Expenditure_7B'!B158,'LFA Expenditure_7B imp-exp'!N$22:N$63,0)),\"\")","v":""},{"$f":"IFERROR(INDEX('LFA Expenditure_7B imp-exp'!B$22:B$63,MATCH('LFA Expenditure_7B'!B158,'LFA Expenditure_7B imp-exp'!N$22:N$63,0)),\"\")","v":""},{"$f":"IFERROR(INDEX('LFA Expenditure_7B imp-exp'!C$22:C$63,MATCH('LFA Expenditure_7B'!B158,'LFA Expenditure_7B imp-exp'!N$22:N$63,0)),\"\")","v":""},{"$f":"'PR Expenditure_7A'!F159","v":0},null,0,{"$error":"#VALUE!"},null,null,{"$f":"IFERROR(INDEX('LFA Expenditure_7B imp-exp'!J$22:J$63,MATCH('LFA Expenditure_7B'!B158,'LFA Expenditure_7B imp-exp'!N$22:N$63,0)),\"\")","v":""},null,0,{"$error":"#VALUE!"}]
["Don't Show","Int57",{"$f":"IFERROR(INDEX('LFA Expenditure_7B imp-exp'!A$22:A$63,MATCH('LFA Expenditure_7B'!B159,'LFA Expenditure_7B imp-exp'!N$22:N$63,0)),\"\")","v":""},{"$f":"IFERROR(INDEX('LFA Expenditure_7B imp-exp'!B$22:B$63,MATCH('LFA Expenditure_7B'!B159,'LFA Expenditure_7B imp-exp'!N$22:N$63,0)),\"\")","v":""},{"$f":"IFERROR(INDEX('LFA Expenditure_7B imp-exp'!C$22:C$63,MATCH('LFA Expenditure_7B'!B159,'LFA Expenditure_7B imp-exp'!N$22:N$63,0)),\"\")","v":""},{"$f":"'PR Expenditure_7A'!F160","v":0},null,0,{"$error":"#VALUE!"},null,null,{"$f":"IFERROR(INDEX('LFA Expenditure_7B imp-exp'!J$22:J$63,MATCH('LFA Expenditure_7B'!B159,'LFA Expenditure_7B imp-exp'!N$22:N$63,0)),\"\")","v":""},null,0,{"$error":"#VALUE!"}]
["Don't Show","Int58",{"$f":"IFERROR(INDEX('LFA Expenditure_7B imp-exp'!A$22:A$63,MATCH('LFA Expenditure_7B'!B160,'LFA Expenditure_7B imp-exp'!N$22:N$63,0)),\"\")","v":""},{"$f":"IFERROR(INDEX('LFA Expenditure_7B imp-exp'!B$22:B$63,MATCH('LFA Expenditure_7B'!B160,'LFA Expenditure_7B imp-exp'!N$22:N$63,0)),\"\")","v":""},{"$f":"IFERROR(INDEX('LFA Expenditure_7B imp-exp'!C$22:C$63,MATCH('LFA Expenditure_7B'!B160,'LFA Expenditure_7B imp-exp'!N$22:N$63,0)),\"\")","v":""},{"$f":"'PR Expenditure_7A'!F161","v":0},null,0,{"$error":"#VALUE!"},null,null,{"$f":"IFERROR(INDEX('LFA Expenditure_7B imp-exp'!J$22:J$63,MATCH('LFA Expenditure_7B'!B160,'LFA Expenditure_7B imp-exp'!N$22:N$63,0)),\"\")","v":""},null,0,{"$error":"#VALUE!"}]
["Don't Show","Int59",{"$f":"IFERROR(INDEX('LFA Expenditure_7B imp-exp'!A$22:A$63,MATCH('LFA Expenditure_7B'!B161,'LFA Expenditure_7B imp-exp'!N$22:N$63,0)),\"\")","v":""},{"$f":"IFERROR(INDEX('LFA Expenditure_7B imp-exp'!B$22:B$63,MATCH('LFA Expenditure_7B'!B161,'LFA Expenditure_7B imp-exp'!N$22:N$63,0)),\"\")","v":""},{"$f":"IFERROR(INDEX('LFA Expenditure_7B imp-exp'!C$22:C$63,MATCH('LFA Expenditure_7B'!B161,'LFA Expenditure_7B imp-exp'!N$22:N$63,0)),\"\")","v":""},{"$f":"'PR Expenditure_7A'!F162","v":0},null,0,{"$error":"#VALUE!"},null,null,{"$f":"IFERROR(INDEX('LFA Expenditure_7B imp-exp'!J$22:J$63,MATCH('LFA Expenditure_7B'!B161,'LFA Expenditure_7B imp-exp'!N$22:N$63,0)),\"\")","v":""},null,0,{"$error":"#VALUE!"}]
["Don't Show","Int60",{"$f":"IFERROR(INDEX('LFA Expenditure_7B imp-exp'!A$22:A$63,MATCH('LFA Expenditure_7B'!B162,'LFA Expenditure_7B imp-exp'!N$22:N$63,0)),\"\")","v":""},{"$f":"IFERROR(INDEX('LFA Expenditure_7B imp-exp'!B$22:B$63,MATCH('LFA Expenditure_7B'!B162,'LFA Expenditure_7B imp-exp'!N$22:N$63,0)),\"\")","v":""},{"$f":"IFERROR(INDEX('LFA Expenditure_7B imp-exp'!C$22:C$63,MATCH('LFA Expenditure_7B'!B162,'LFA Expenditure_7B imp-exp'!N$22:N$63,0)),\"\")","v":""},{"$f":"'PR Expenditure_7A'!F163","v":0},null,0,{"$error":"#VALUE!"},null,null,{"$f":"IFERROR(INDEX('LFA Expenditure_7B imp-exp'!J$22:J$63,MATCH('LFA Expenditure_7B'!B162,'LFA Expenditure_7B imp-exp'!N$22:N$63,0)),\"\")","v":""},null,0,{"$error":"#VALUE!"}]
["Don't Show","Int61",{"$f":"IFERROR(INDEX('LFA Expenditure_7B imp-exp'!A$22:A$63,MATCH('LFA Expenditure_7B'!B163,'LFA Expenditure_7B imp-exp'!N$22:N$63,0)),\"\")","v":""},{"$f":"IFERROR(INDEX('LFA Expenditure_7B imp-exp'!B$22:B$63,MATCH('LFA Expenditure_7B'!B163,'LFA Expenditure_7B imp-exp'!N$22:N$63,0)),\"\")","v":""},{"$f":"IFERROR(INDEX('LFA Expenditure_7B imp-exp'!C$22:C$63,MATCH('LFA Expenditure_7B'!B163,'LFA Expenditure_7B imp-exp'!N$22:N$63,0)),\"\")","v":""},{"$f":"'PR Expenditure_7A'!F164","v":0},null,0,{"$error":"#VALUE!"},null,null,{"$f":"IFERROR(INDEX('LFA Expenditure_7B imp-exp'!J$22:J$63,MATCH('LFA Expenditure_7B'!B163,'LFA Expenditure_7B imp-exp'!N$22:N$63,0)),\"\")","v":""},null,0,{"$error":"#VALUE!"}]
["Don't Show","Int62",{"$f":"IFERROR(INDEX('LFA Expenditure_7B imp-exp'!A$22:A$63,MATCH('LFA Expenditure_7B'!B164,'LFA Expenditure_7B imp-exp'!N$22:N$63,0)),\"\")","v":""},{"$f":"IFERROR(INDEX('LFA Expenditure_7B imp-exp'!B$22:B$63,MATCH('LFA Expenditure_7B'!B164,'LFA Expenditure_7B imp-exp'!N$22:N$63,0)),\"\")","v":""},{"$f":"IFERROR(INDEX('LFA Expenditure_7B imp-exp'!C$22:C$63,MATCH('LFA Expenditure_7B'!B164,'LFA Expenditure_7B imp-exp'!N$22:N$63,0)),\"\")","v":""},{"$f":"'PR Expenditure_7A'!F165","v":0},null,0,{"$error":"#VALUE!"},null,null,{"$f":"IFERROR(INDEX('LFA Expenditure_7B imp-exp'!J$22:J$63,MATCH('LFA Expenditure_7B'!B164,'LFA Expenditure_7B imp-exp'!N$22:N$63,0)),\"\")","v":""},null,0,{"$error":"#VALUE!"}]
["Don't Show","Int63",{"$f":"IFERROR(INDEX('LFA Expenditure_7B imp-exp'!A$22:A$63,MATCH('LFA Expenditure_7B'!B165,'LFA Expenditure_7B imp-exp'!N$22:N$63,0)),\"\")","v":""},{"$f":"IFERROR(INDEX('LFA Expenditure_7B imp-exp'!B$22:B$63,MATCH('LFA Expenditure_7B'!B165,'LFA Expenditure_7B imp-exp'!N$22:N$63,0)),\"\")","v":""},{"$f":"IFERROR(INDEX('LFA Expenditure_7B imp-exp'!C$22:C$63,MATCH('LFA Expenditure_7B'!B165,'LFA Expenditure_7B imp-exp'!N$22:N$63,0)),\"\")","v":""},{"$f":"'PR Expenditure_7A'!F166","v":0},null,0,{"$error":"#VALUE!"},null,null,{"$f":"IFERROR(INDEX('LFA Expenditure_7B imp-exp'!J$22:J$63,MATCH('LFA Expenditure_7B'!B165,'LFA Expenditure_7B imp-exp'!N$22:N$63,0)),\"\")","v":""},null,0,{"$error":"#VALUE!"}]
["Don't Show","Int64",{"$f":"IFERROR(INDEX('LFA Expenditure_7B imp-exp'!A$22:A$63,MATCH('LFA Expenditure_7B'!B166,'LFA Expenditure_7B imp-exp'!N$22:N$63,0)),\"\")","v":""},{"$f":"IFERROR(INDEX('LFA Expenditure_7B imp-exp'!B$22:B$63,MATCH('LFA Expenditure_7B'!B166,'LFA Expenditure_7B imp-exp'!N$22:N$63,0)),\"\")","v":""},{"$f":"IFERROR(INDEX('LFA Expenditure_7B imp-exp'!C$22:C$63,MATCH('LFA Expenditure_7B'!B166,'LFA Expenditure_7B imp-exp'!N$22:N$63,0)),\"\")","v":""},{"$f":"'PR Expenditure_7A'!F167","v":0},null,0,{"$error":"#VALUE!"},null,null,{"$f":"IFERROR(INDEX('LFA Expenditure_7B imp-exp'!J$22:J$63,MATCH('LFA Expenditure_7B'!B166,'LFA Expenditure_7B imp-exp'!N$22:N$63,0)),\"\")","v":""},null,0,{"$error":"#VALUE!"}]
["Don't Show","Int65",{"$f":"IFERROR(INDEX('LFA Expenditure_7B imp-exp'!A$22:A$63,MATCH('LFA Expenditure_7B'!B167,'LFA Expenditure_7B imp-exp'!N$22:N$63,0)),\"\")","v":""},{"$f":"IFERROR(INDEX('LFA Expenditure_7B imp-exp'!B$22:B$63,MATCH('LFA Expenditure_7B'!B167,'LFA Expenditure_7B imp-exp'!N$22:N$63,0)),\"\")","v":""},{"$f":"IFERROR(INDEX('LFA Expenditure_7B imp-exp'!C$22:C$63,MATCH('LFA Expenditure_7B'!B167,'LFA Expenditure_7B imp-exp'!N$22:N$63,0)),\"\")","v":""},{"$f":"'PR Expenditure_7A'!F168","v":0},null,0,{"$error":"#VALUE!"},null,null,{"$f":"IFERROR(INDEX('LFA Expenditure_7B imp-exp'!J$22:J$63,MATCH('LFA Expenditure_7B'!B167,'LFA Expenditure_7B imp-exp'!N$22:N$63,0)),\"\")","v":""},null,0,{"$error":"#VALUE!"}]
["Don't Show","Int66",{"$f":"IFERROR(INDEX('LFA Expenditure_7B imp-exp'!A$22:A$63,MATCH('LFA Expenditure_7B'!B168,'LFA Expenditure_7B imp-exp'!N$22:N$63,0)),\"\")","v":""},{"$f":"IFERROR(INDEX('LFA Expenditure_7B imp-exp'!B$22:B$63,MATCH('LFA Expenditure_7B'!B168,'LFA Expenditure_7B imp-exp'!N$22:N$63,0)),\"\")","v":""},{"$f":"IFERROR(INDEX('LFA Expenditure_7B imp-exp'!C$22:C$63,MATCH('LFA Expenditure_7B'!B168,'LFA Expenditure_7B imp-exp'!N$22:N$63,0)),\"\")","v":""},{"$f":"'PR Expenditure_7A'!F169","v":0},null,0,{"$error":"#VALUE!"},null,null,{"$f":"IFERROR(INDEX('LFA Expenditure_7B imp-exp'!J$22:J$63,MATCH('LFA Expenditure_7B'!B168,'LFA Expenditure_7B imp-exp'!N$22:N$63,0)),\"\")","v":""},null,0,{"$error":"#VALUE!"}]
["Don't Show","Int67",{"$f":"IFERROR(INDEX('LFA Expenditure_7B imp-exp'!A$22:A$63,MATCH('LFA Expenditure_7B'!B169,'LFA Expenditure_7B imp-exp'!N$22:N$63,0)),\"\")","v":""},{"$f":"IFERROR(INDEX('LFA Expenditure_7B imp-exp'!B$22:B$63,MATCH('LFA Expenditure_7B'!B169,'LFA Expenditure_7B imp-exp'!N$22:N$63,0)),\"\")","v":""},{"$f":"IFERROR(INDEX('LFA Expenditure_7B imp-exp'!C$22:C$63,MATCH('LFA Expenditure_7B'!B169,'LFA Expenditure_7B imp-exp'!N$22:N$63,0)),\"\")","v":""},{"$f":"'PR Expenditure_7A'!F170","v":0},null,0,{"$error":"#VALUE!"},null,null,{"$f":"IFERROR(INDEX('LFA Expenditure_7B imp-exp'!J$22:J$63,MATCH('LFA Expenditure_7B'!B169,'LFA Expenditure_7B imp-exp'!N$22:N$63,0)),\"\")","v":""},null,0,{"$error":"#VALUE!"}]
["Don't Show","Int68",{"$f":"IFERROR(INDEX('LFA Expenditure_7B imp-exp'!A$22:A$63,MATCH('LFA Expenditure_7B'!B170,'LFA Expenditure_7B imp-exp'!N$22:N$63,0)),\"\")","v":""},{"$f":"IFERROR(INDEX('LFA Expenditure_7B imp-exp'!B$22:B$63,MATCH('LFA Expenditure_7B'!B170,'LFA Expenditure_7B imp-exp'!N$22:N$63,0)),\"\")","v":""},{"$f":"IFERROR(INDEX('LFA Expenditure_7B imp-exp'!C$22:C$63,MATCH('LFA Expenditure_7B'!B170,'LFA Expenditure_7B imp-exp'!N$22:N$63,0)),\"\")","v":""},{"$f":"'PR Expenditure_7A'!F171","v":0},null,0,{"$error":"#VALUE!"},null,null,{"$f":"IFERROR(INDEX('LFA Expenditure_7B imp-exp'!J$22:J$63,MATCH('LFA Expenditure_7B'!B170,'LFA Expenditure_7B imp-exp'!N$22:N$63,0)),\"\")","v":""},null,0,{"$error":"#VALUE!"}]
["Don't Show","Int69",{"$f":"IFERROR(INDEX('LFA Expenditure_7B imp-exp'!A$22:A$63,MATCH('LFA Expenditure_7B'!B171,'LFA Expenditure_7B imp-exp'!N$22:N$63,0)),\"\")","v":""},{"$f":"IFERROR(INDEX('LFA Expenditure_7B imp-exp'!B$22:B$63,MATCH('LFA Expenditure_7B'!B171,'LFA Expenditure_7B imp-exp'!N$22:N$63,0)),\"\")","v":""},{"$f":"IFERROR(INDEX('LFA Expenditure_7B imp-exp'!C$22:C$63,MATCH('LFA Expenditure_7B'!B171,'LFA Expenditure_7B imp-exp'!N$22:N$63,0)),\"\")","v":""},{"$f":"'PR Expenditure_7A'!F172","v":0},null,0,{"$error":"#VALUE!"},null,null,{"$f":"IFERROR(INDEX('LFA Expenditure_7B imp-exp'!J$22:J$63,MATCH('LFA Expenditure_7B'!B171,'LFA Expenditure_7B imp-exp'!N$22:N$63,0)),\"\")","v":""},null,0,{"$error":"#VALUE!"}]
["Don't Show","Int70",{"$f":"IFERROR(INDEX('LFA Expenditure_7B imp-exp'!A$22:A$63,MATCH('LFA Expenditure_7B'!B172,'LFA Expenditure_7B imp-exp'!N$22:N$63,0)),\"\")","v":""},{"$f":"IFERROR(INDEX('LFA Expenditure_7B imp-exp'!B$22:B$63,MATCH('LFA Expenditure_7B'!B172,'LFA Expenditure_7B imp-exp'!N$22:N$63,0)),\"\")","v":""},{"$f":"IFERROR(INDEX('LFA Expenditure_7B imp-exp'!C$22:C$63,MATCH('LFA Expenditure_7B'!B172,'LFA Expenditure_7B imp-exp'!N$22:N$63,0)),\"\")","v":""},{"$f":"'PR Expenditure_7A'!F173","v":0},null,0,{"$error":"#VALUE!"},null,null,{"$f":"IFERROR(INDEX('LFA Expenditure_7B imp-exp'!J$22:J$63,MATCH('LFA Expenditure_7B'!B172,'LFA Expenditure_7B imp-exp'!N$22:N$63,0)),\"\")","v":""},null,0,{"$error":"#VALUE!"}]
[{"$f":"IF(C173<>\"\",\"Show\",\"Don't Show\")","v":"Don't Show"},"Int71",{"$f":"IFERROR(INDEX('LFA Expenditure_7B imp-exp'!A$22:A$63,MATCH('LFA Expenditure_7B'!B173,'LFA Expenditure_7B imp-exp'!N$22:N$63,0)),\"\")","v":""},{"$f":"IFERROR(INDEX('LFA Expenditure_7B imp-exp'!B$22:B$63,MATCH('LFA Expenditure_7B'!B173,'LFA Expenditure_7B imp-exp'!N$22:N$63,0)),\"\")","v":""},{"$f":"IFERROR(INDEX('LFA Expenditure_7B imp-exp'!C$22:C$63,MATCH('LFA Expenditure_7B'!B173,'LFA Expenditure_7B imp-exp'!N$22:N$63,0)),\"\")","v":""},{"$f":"'PR Expenditure_7A'!F174","v":0},null,{"$f":"IFERROR((E173)-(F173+G173),0)","v":0},{"$f":"IF(AND((E173)=0,(F173+G173)=0),\"N/A\",IF(AND((E173)=0,(F173+G173)<>0),\"Not Budgeted\",(F173+G173)/(E173)))","v":{"$error":"#VALUE!"}},null,null,{"$f":"IFERROR(INDEX('LFA Expenditure_7B imp-exp'!J$22:J$63,MATCH('LFA Expenditure_7B'!B173,'LFA Expenditure_7B imp-exp'!N$22:N$63,0)),\"\")","v":""},null,{"$f":"IFERROR(L173-M173,0)","v":0},{"$f":"IF(AND(L173=0,M173=0),\"N/A\",IF(AND(L173=0,M173<>0),\"Not Budgeted\",M173/L173))","v":{"$error":"#VALUE!"}}]
["Don't Show","Int72",{"$f":"IFERROR(INDEX('LFA Expenditure_7B imp-exp'!A$22:A$63,MATCH('LFA Expenditure_7B'!B174,'LFA Expenditure_7B imp-exp'!N$22:N$63,0)),\"\")","v":""},{"$f":"IFERROR(INDEX('LFA Expenditure_7B imp-exp'!B$22:B$63,MATCH('LFA Expenditure_7B'!B174,'LFA Expenditure_7B imp-exp'!N$22:N$63,0)),\"\")","v":""},{"$f":"IFERROR(INDEX('LFA Expenditure_7B imp-exp'!C$22:C$63,MATCH('LFA Expenditure_7B'!B174,'LFA Expenditure_7B imp-exp'!N$22:N$63,0)),\"\")","v":""},{"$f":"'PR Expenditure_7A'!F175","v":0},null,0,{"$error":"#VALUE!"},null,null,{"$f":"IFERROR(INDEX('LFA Expenditure_7B imp-exp'!J$22:J$63,MATCH('LFA Expenditure_7B'!B174,'LFA Expenditure_7B imp-exp'!N$22:N$63,0)),\"\")","v":""},null,0,{"$error":"#VALUE!"}]
["Don't Show","Int73",{"$f":"IFERROR(INDEX('LFA Expenditure_7B imp-exp'!A$22:A$63,MATCH('LFA Expenditure_7B'!B175,'LFA Expenditure_7B imp-exp'!N$22:N$63,0)),\"\")","v":""},{"$f":"IFERROR(INDEX('LFA Expenditure_7B imp-exp'!B$22:B$63,MATCH('LFA Expenditure_7B'!B175,'LFA Expenditure_7B imp-exp'!N$22:N$63,0)),\"\")","v":""},{"$f":"IFERROR(INDEX('LFA Expenditure_7B imp-exp'!C$22:C$63,MATCH('LFA Expenditure_7B'!B175,'LFA Expenditure_7B imp-exp'!N$22:N$63,0)),\"\")","v":""},{"$f":"'PR Expenditure_7A'!F176","v":0},null,0,{"$error":"#VALUE!"},null,null,{"$f":"IFERROR(INDEX('LFA Expenditure_7B imp-exp'!J$22:J$63,MATCH('LFA Expenditure_7B'!B175,'LFA Expenditure_7B imp-exp'!N$22:N$63,0)),\"\")","v":""},null,0,{"$error":"#VALUE!"}]
["Don't Show","Int74",{"$f":"IFERROR(INDEX('LFA Expenditure_7B imp-exp'!A$22:A$63,MATCH('LFA Expenditure_7B'!B176,'LFA Expenditure_7B imp-exp'!N$22:N$63,0)),\"\")","v":""},{"$f":"IFERROR(INDEX('LFA Expenditure_7B imp-exp'!B$22:B$63,MATCH('LFA Expenditure_7B'!B176,'LFA Expenditure_7B imp-exp'!N$22:N$63,0)),\"\")","v":""},{"$f":"IFERROR(INDEX('LFA Expenditure_7B imp-exp'!C$22:C$63,MATCH('LFA Expenditure_7B'!B176,'LFA Expenditure_7B imp-exp'!N$22:N$63,0)),\"\")","v":""},{"$f":"'PR Expenditure_7A'!F177","v":0},null,0,{"$error":"#VALUE!"},null,null,{"$f":"IFERROR(INDEX('LFA Expenditure_7B imp-exp'!J$22:J$63,MATCH('LFA Expenditure_7B'!B176,'LFA Expenditure_7B imp-exp'!N$22:N$63,0)),\"\")","v":""},null,0,{"$error":"#VALUE!"}]
["Don't Show","Int75",{"$f":"IFERROR(INDEX('LFA Expenditure_7B imp-exp'!A$22:A$63,MATCH('LFA Expenditure_7B'!B177,'LFA Expenditure_7B imp-exp'!N$22:N$63,0)),\"\")","v":""},{"$f":"IFERROR(INDEX('LFA Expenditure_7B imp-exp'!B$22:B$63,MATCH('LFA Expenditure_7B'!B177,'LFA Expenditure_7B imp-exp'!N$22:N$63,0)),\"\")","v":""},{"$f":"IFERROR(INDEX('LFA Expenditure_7B imp-exp'!C$22:C$63,MATCH('LFA Expenditure_7B'!B177,'LFA Expenditure_7B imp-exp'!N$22:N$63,0)),\"\")","v":""},{"$f":"'PR Expenditure_7A'!F178","v":0},null,0,{"$error":"#VALUE!"},null,null,{"$f":"IFERROR(INDEX('LFA Expenditure_7B imp-exp'!J$22:J$63,MATCH('LFA Expenditure_7B'!B177,'LFA Expenditure_7B imp-exp'!N$22:N$63,0)),\"\")","v":""},null,0,{"$error":"#VALUE!"}]
["Don't Show","Int76",{"$f":"IFERROR(INDEX('LFA Expenditure_7B imp-exp'!A$22:A$63,MATCH('LFA Expenditure_7B'!B178,'LFA Expenditure_7B imp-exp'!N$22:N$63,0)),\"\")","v":""},{"$f":"IFERROR(INDEX('LFA Expenditure_7B imp-exp'!B$22:B$63,MATCH('LFA Expenditure_7B'!B178,'LFA Expenditure_7B imp-exp'!N$22:N$63,0)),\"\")","v":""},{"$f":"IFERROR(INDEX('LFA Expenditure_7B imp-exp'!C$22:C$63,MATCH('LFA Expenditure_7B'!B178,'LFA Expenditure_7B imp-exp'!N$22:N$63,0)),\"\")","v":""},{"$f":"'PR Expenditure_7A'!F179","v":0},null,0,{"$error":"#VALUE!"},null,null,{"$f":"IFERROR(INDEX('LFA Expenditure_7B imp-exp'!J$22:J$63,MATCH('LFA Expenditure_7B'!B178,'LFA Expenditure_7B imp-exp'!N$22:N$63,0)),\"\")","v":""},null,0,{"$error":"#VALUE!"}]
["Don't Show","Int77",{"$f":"IFERROR(INDEX('LFA Expenditure_7B imp-exp'!A$22:A$63,MATCH('LFA Expenditure_7B'!B179,'LFA Expenditure_7B imp-exp'!N$22:N$63,0)),\"\")","v":""},{"$f":"IFERROR(INDEX('LFA Expenditure_7B imp-exp'!B$22:B$63,MATCH('LFA Expenditure_7B'!B179,'LFA Expenditure_7B imp-exp'!N$22:N$63,0)),\"\")","v":""},{"$f":"IFERROR(INDEX('LFA Expenditure_7B imp-exp'!C$22:C$63,MATCH('LFA Expenditure_7B'!B179,'LFA Expenditure_7B imp-exp'!N$22:N$63,0)),\"\")","v":""},{"$f":"'PR Expenditure_7A'!F180","v":0},null,0,{"$error":"#VALUE!"},null,null,{"$f":"IFERROR(INDEX('LFA Expenditure_7B imp-exp'!J$22:J$63,MATCH('LFA Expenditure_7B'!B179,'LFA Expenditure_7B imp-exp'!N$22:N$63,0)),\"\")","v":""},null,0,{"$error":"#VALUE!"}]
["Don't Show","Int78",{"$f":"IFERROR(INDEX('LFA Expenditure_7B imp-exp'!A$22:A$63,MATCH('LFA Expenditure_7B'!B180,'LFA Expenditure_7B imp-exp'!N$22:N$63,0)),\"\")","v":""},{"$f":"IFERROR(INDEX('LFA Expenditure_7B imp-exp'!B$22:B$63,MATCH('LFA Expenditure_7B'!B180,'LFA Expenditure_7B imp-exp'!N$22:N$63,0)),\"\")","v":""},{"$f":"IFERROR(INDEX('LFA Expenditure_7B imp-exp'!C$22:C$63,MATCH('LFA Expenditure_7B'!B180,'LFA Expenditure_7B imp-exp'!N$22:N$63,0)),\"\")","v":""},{"$f":"'PR Expenditure_7A'!F181","v":0},null,0,{"$error":"#VALUE!"},null,null,{"$f":"IFERROR(INDEX('LFA Expenditure_7B imp-exp'!J$22:J$63,MATCH('LFA Expenditure_7B'!B180,'LFA Expenditure_7B imp-exp'!N$22:N$63,0)),\"\")","v":""},null,0,{"$error":"#VALUE!"}]
["Don't Show","Int79",{"$f":"IFERROR(INDEX('LFA Expenditure_7B imp-exp'!A$22:A$63,MATCH('LFA Expenditure_7B'!B181,'LFA Expenditure_7B imp-exp'!N$22:N$63,0)),\"\")","v":""},{"$f":"IFERROR(INDEX('LFA Expenditure_7B imp-exp'!B$22:B$63,MATCH('LFA Expenditure_7B'!B181,'LFA Expenditure_7B imp-exp'!N$22:N$63,0)),\"\")","v":""},{"$f":"IFERROR(INDEX('LFA Expenditure_7B imp-exp'!C$22:C$63,MATCH('LFA Expenditure_7B'!B181,'LFA Expenditure_7B imp-exp'!N$22:N$63,0)),\"\")","v":""},{"$f":"'PR Expenditure_7A'!F182","v":0},null,0,{"$error":"#VALUE!"},null,null,{"$f":"IFERROR(INDEX('LFA Expenditure_7B imp-exp'!J$22:J$63,MATCH('LFA Expenditure_7B'!B181,'LFA Expenditure_7B imp-exp'!N$22:N$63,0)),\"\")","v":""},null,0,{"$error":"#VALUE!"}]
["Don't Show","Int80",{"$f":"IFERROR(INDEX('LFA Expenditure_7B imp-exp'!A$22:A$63,MATCH('LFA Expenditure_7B'!B182,'LFA Expenditure_7B imp-exp'!N$22:N$63,0)),\"\")","v":""},{"$f":"IFERROR(INDEX('LFA Expenditure_7B imp-exp'!B$22:B$63,MATCH('LFA Expenditure_7B'!B182,'LFA Expenditure_7B imp-exp'!N$22:N$63,0)),\"\")","v":""},{"$f":"IFERROR(INDEX('LFA Expenditure_7B imp-exp'!C$22:C$63,MATCH('LFA Expenditure_7B'!B182,'LFA Expenditure_7B imp-exp'!N$22:N$63,0)),\"\")","v":""},{"$f":"'PR Expenditure_7A'!F183","v":0},null,0,{"$error":"#VALUE!"},null,null,{"$f":"IFERROR(INDEX('LFA Expenditure_7B imp-exp'!J$22:J$63,MATCH('LFA Expenditure_7B'!B182,'LFA Expenditure_7B imp-exp'!N$22:N$63,0)),\"\")","v":""},null,0,{"$error":"#VALUE!"}]
["Don't Show","Int81",{"$f":"IFERROR(INDEX('LFA Expenditure_7B imp-exp'!A$22:A$63,MATCH('LFA Expenditure_7B'!B183,'LFA Expenditure_7B imp-exp'!N$22:N$63,0)),\"\")","v":""},{"$f":"IFERROR(INDEX('LFA Expenditure_7B imp-exp'!B$22:B$63,MATCH('LFA Expenditure_7B'!B183,'LFA Expenditure_7B imp-exp'!N$22:N$63,0)),\"\")","v":""},{"$f":"IFERROR(INDEX('LFA Expenditure_7B imp-exp'!C$22:C$63,MATCH('LFA Expenditure_7B'!B183,'LFA Expenditure_7B imp-exp'!N$22:N$63,0)),\"\")","v":""},{"$f":"'PR Expenditure_7A'!F184","v":0},null,0,{"$error":"#VALUE!"},null,null,{"$f":"IFERROR(INDEX('LFA Expenditure_7B imp-exp'!J$22:J$63,MATCH('LFA Expenditure_7B'!B183,'LFA Expenditure_7B imp-exp'!N$22:N$63,0)),\"\")","v":""},null,0,{"$error":"#VALUE!"}]
["Don't Show","Int82",{"$f":"IFERROR(INDEX('LFA Expenditure_7B imp-exp'!A$22:A$63,MATCH('LFA Expenditure_7B'!B184,'LFA Expenditure_7B imp-exp'!N$22:N$63,0)),\"\")","v":""},{"$f":"IFERROR(INDEX('LFA Expenditure_7B imp-exp'!B$22:B$63,MATCH('LFA Expenditure_7B'!B184,'LFA Expenditure_7B imp-exp'!N$22:N$63,0)),\"\")","v":""},{"$f":"IFERROR(INDEX('LFA Expenditure_7B imp-exp'!C$22:C$63,MATCH('LFA Expenditure_7B'!B184,'LFA Expenditure_7B imp-exp'!N$22:N$63,0)),\"\")","v":""},{"$f":"'PR Expenditure_7A'!F185","v":0},null,0,{"$error":"#VALUE!"},null,null,{"$f":"IFERROR(INDEX('LFA Expenditure_7B imp-exp'!J$22:J$63,MATCH('LFA Expenditure_7B'!B184,'LFA Expenditure_7B imp-exp'!N$22:N$63,0)),\"\")","v":""},null,0,{"$error":"#VALUE!"}]
["Don't Show","Int83",{"$f":"IFERROR(INDEX('LFA Expenditure_7B imp-exp'!A$22:A$63,MATCH('LFA Expenditure_7B'!B185,'LFA Expenditure_7B imp-exp'!N$22:N$63,0)),\"\")","v":""},{"$f":"IFERROR(INDEX('LFA Expenditure_7B imp-exp'!B$22:B$63,MATCH('LFA Expenditure_7B'!B185,'LFA Expenditure_7B imp-exp'!N$22:N$63,0)),\"\")","v":""},{"$f":"IFERROR(INDEX('LFA Expenditure_7B imp-exp'!C$22:C$63,MATCH('LFA Expenditure_7B'!B185,'LFA Expenditure_7B imp-exp'!N$22:N$63,0)),\"\")","v":""},{"$f":"'PR Expenditure_7A'!F186","v":0},null,0,{"$error":"#VALUE!"},null,null,{"$f":"IFERROR(INDEX('LFA Expenditure_7B imp-exp'!J$22:J$63,MATCH('LFA Expenditure_7B'!B185,'LFA Expenditure_7B imp-exp'!N$22:N$63,0)),\"\")","v":""},null,0,{"$error":"#VALUE!"}]
["Don't Show","Int84",{"$f":"IFERROR(INDEX('LFA Expenditure_7B imp-exp'!A$22:A$63,MATCH('LFA Expenditure_7B'!B186,'LFA Expenditure_7B imp-exp'!N$22:N$63,0)),\"\")","v":""},{"$f":"IFERROR(INDEX('LFA Expenditure_7B imp-exp'!B$22:B$63,MATCH('LFA Expenditure_7B'!B186,'LFA Expenditure_7B imp-exp'!N$22:N$63,0)),\"\")","v":""},{"$f":"IFERROR(INDEX('LFA Expenditure_7B imp-exp'!C$22:C$63,MATCH('LFA Expenditure_7B'!B186,'LFA Expenditure_7B imp-exp'!N$22:N$63,0)),\"\")","v":""},{"$f":"'PR Expenditure_7A'!F187","v":0},null,0,{"$error":"#VALUE!"},null,null,{"$f":"IFERROR(INDEX('LFA Expenditure_7B imp-exp'!J$22:J$63,MATCH('LFA Expenditure_7B'!B186,'LFA Expenditure_7B imp-exp'!N$22:N$63,0)),\"\")","v":""},null,0,{"$error":"#VALUE!"}]
["Don't Show","Int85",{"$f":"IFERROR(INDEX('LFA Expenditure_7B imp-exp'!A$22:A$63,MATCH('LFA Expenditure_7B'!B187,'LFA Expenditure_7B imp-exp'!N$22:N$63,0)),\"\")","v":""},{"$f":"IFERROR(INDEX('LFA Expenditure_7B imp-exp'!B$22:B$63,MATCH('LFA Expenditure_7B'!B187,'LFA Expenditure_7B imp-exp'!N$22:N$63,0)),\"\")","v":""},{"$f":"IFERROR(INDEX('LFA Expenditure_7B imp-exp'!C$22:C$63,MATCH('LFA Expenditure_7B'!B187,'LFA Expenditure_7B imp-exp'!N$22:N$63,0)),\"\")","v":""},{"$f":"'PR Expenditure_7A'!F188","v":0},null,0,{"$error":"#VALUE!"},null,null,{"$f":"IFERROR(INDEX('LFA Expenditure_7B imp-exp'!J$22:J$63,MATCH('LFA Expenditure_7B'!B187,'LFA Expenditure_7B imp-exp'!N$22:N$63,0)),\"\")","v":""},null,0,{"$error":"#VALUE!"}]
["Don't Show","Int86",{"$f":"IFERROR(INDEX('LFA Expenditure_7B imp-exp'!A$22:A$63,MATCH('LFA Expenditure_7B'!B188,'LFA Expenditure_7B imp-exp'!N$22:N$63,0)),\"\")","v":""},{"$f":"IFERROR(INDEX('LFA Expenditure_7B imp-exp'!B$22:B$63,MATCH('LFA Expenditure_7B'!B188,'LFA Expenditure_7B imp-exp'!N$22:N$63,0)),\"\")","v":""},{"$f":"IFERROR(INDEX('LFA Expenditure_7B imp-exp'!C$22:C$63,MATCH('LFA Expenditure_7B'!B188,'LFA Expenditure_7B imp-exp'!N$22:N$63,0)),\"\")","v":""},{"$f":"'PR Expenditure_7A'!F189","v":0},null,0,{"$error":"#VALUE!"},null,null,{"$f":"IFERROR(INDEX('LFA Expenditure_7B imp-exp'!J$22:J$63,MATCH('LFA Expenditure_7B'!B188,'LFA Expenditure_7B imp-exp'!N$22:N$63,0)),\"\")","v":""},null,0,{"$error":"#VALUE!"}]
["Don't Show","Int87",{"$f":"IFERROR(INDEX('LFA Expenditure_7B imp-exp'!A$22:A$63,MATCH('LFA Expenditure_7B'!B189,'LFA Expenditure_7B imp-exp'!N$22:N$63,0)),\"\")","v":""},{"$f":"IFERROR(INDEX('LFA Expenditure_7B imp-exp'!B$22:B$63,MATCH('LFA Expenditure_7B'!B189,'LFA Expenditure_7B imp-exp'!N$22:N$63,0)),\"\")","v":""},{"$f":"IFERROR(INDEX('LFA Expenditure_7B imp-exp'!C$22:C$63,MATCH('LFA Expenditure_7B'!B189,'LFA Expenditure_7B imp-exp'!N$22:N$63,0)),\"\")","v":""},{"$f":"'PR Expenditure_7A'!F190","v":0},null,0,{"$error":"#VALUE!"},null,null,{"$f":"IFERROR(INDEX('LFA Expenditure_7B imp-exp'!J$22:J$63,MATCH('LFA Expenditure_7B'!B189,'LFA Expenditure_7B imp-exp'!N$22:N$63,0)),\"\")","v":""},null,0,{"$error":"#VALUE!"}]
["Don't Show","Int88",{"$f":"IFERROR(INDEX('LFA Expenditure_7B imp-exp'!A$22:A$63,MATCH('LFA Expenditure_7B'!B190,'LFA Expenditure_7B imp-exp'!N$22:N$63,0)),\"\")","v":""},{"$f":"IFERROR(INDEX('LFA Expenditure_7B imp-exp'!B$22:B$63,MATCH('LFA Expenditure_7B'!B190,'LFA Expenditure_7B imp-exp'!N$22:N$63,0)),\"\")","v":""},{"$f":"IFERROR(INDEX('LFA Expenditure_7B imp-exp'!C$22:C$63,MATCH('LFA Expenditure_7B'!B190,'LFA Expenditure_7B imp-exp'!N$22:N$63,0)),\"\")","v":""},{"$f":"'PR Expenditure_7A'!F191","v":0},null,0,{"$error":"#VALUE!"},null,null,{"$f":"IFERROR(INDEX('LFA Expenditure_7B imp-exp'!J$22:J$63,MATCH('LFA Expenditure_7B'!B190,'LFA Expenditure_7B imp-exp'!N$22:N$63,0)),\"\")","v":""},null,0,{"$error":"#VALUE!"}]
["Don't Show","Int89",{"$f":"IFERROR(INDEX('LFA Expenditure_7B imp-exp'!A$22:A$63,MATCH('LFA Expenditure_7B'!B191,'LFA Expenditure_7B imp-exp'!N$22:N$63,0)),\"\")","v":""},{"$f":"IFERROR(INDEX('LFA Expenditure_7B imp-exp'!B$22:B$63,MATCH('LFA Expenditure_7B'!B191,'LFA Expenditure_7B imp-exp'!N$22:N$63,0)),\"\")","v":""},{"$f":"IFERROR(INDEX('LFA Expenditure_7B imp-exp'!C$22:C$63,MATCH('LFA Expenditure_7B'!B191,'LFA Expenditure_7B imp-exp'!N$22:N$63,0)),\"\")","v":""},{"$f":"'PR Expenditure_7A'!F192","v":0},null,0,{"$error":"#VALUE!"},null,null,{"$f":"IFERROR(INDEX('LFA Expenditure_7B imp-exp'!J$22:J$63,MATCH('LFA Expenditure_7B'!B191,'LFA Expenditure_7B imp-exp'!N$22:N$63,0)),\"\")","v":""},null,0,{"$error":"#VALUE!"}]
["Don't Show","Int90",{"$f":"IFERROR(INDEX('LFA Expenditure_7B imp-exp'!A$22:A$63,MATCH('LFA Expenditure_7B'!B192,'LFA Expenditure_7B imp-exp'!N$22:N$63,0)),\"\")","v":""},{"$f":"IFERROR(INDEX('LFA Expenditure_7B imp-exp'!B$22:B$63,MATCH('LFA Expenditure_7B'!B192,'LFA Expenditure_7B imp-exp'!N$22:N$63,0)),\"\")","v":""},{"$f":"IFERROR(INDEX('LFA Expenditure_7B imp-exp'!C$22:C$63,MATCH('LFA Expenditure_7B'!B192,'LFA Expenditure_7B imp-exp'!N$22:N$63,0)),\"\")","v":""},{"$f":"'PR Expenditure_7A'!F193","v":0},null,0,{"$error":"#VALUE!"},null,null,{"$f":"IFERROR(INDEX('LFA Expenditure_7B imp-exp'!J$22:J$63,MATCH('LFA Expenditure_7B'!B192,'LFA Expenditure_7B imp-exp'!N$22:N$63,0)),\"\")","v":""},null,0,{"$error":"#VALUE!"}]
["Don't Show","Int91",{"$f":"IFERROR(INDEX('LFA Expenditure_7B imp-exp'!A$22:A$63,MATCH('LFA Expenditure_7B'!B193,'LFA Expenditure_7B imp-exp'!N$22:N$63,0)),\"\")","v":""},{"$f":"IFERROR(INDEX('LFA Expenditure_7B imp-exp'!B$22:B$63,MATCH('LFA Expenditure_7B'!B193,'LFA Expenditure_7B imp-exp'!N$22:N$63,0)),\"\")","v":""},{"$f":"IFERROR(INDEX('LFA Expenditure_7B imp-exp'!C$22:C$63,MATCH('LFA Expenditure_7B'!B193,'LFA Expenditure_7B imp-exp'!N$22:N$63,0)),\"\")","v":""},{"$f":"'PR Expenditure_7A'!F194","v":0},null,0,{"$error":"#VALUE!"},null,null,{"$f":"IFERROR(INDEX('LFA Expenditure_7B imp-exp'!J$22:J$63,MATCH('LFA Expenditure_7B'!B193,'LFA Expenditure_7B imp-exp'!N$22:N$63,0)),\"\")","v":""},null,0,{"$error":"#VALUE!"}]
["Don't Show","Int92",{"$f":"IFERROR(INDEX('LFA Expenditure_7B imp-exp'!A$22:A$63,MATCH('LFA Expenditure_7B'!B194,'LFA Expenditure_7B imp-exp'!N$22:N$63,0)),\"\")","v":""},{"$f":"IFERROR(INDEX('LFA Expenditure_7B imp-exp'!B$22:B$63,MATCH('LFA Expenditure_7B'!B194,'LFA Expenditure_7B imp-exp'!N$22:N$63,0)),\"\")","v":""},{"$f":"IFERROR(INDEX('LFA Expenditure_7B imp-exp'!C$22:C$63,MATCH('LFA Expenditure_7B'!B194,'LFA Expenditure_7B imp-exp'!N$22:N$63,0)),\"\")","v":""},{"$f":"'PR Expenditure_7A'!F195","v":0},null,0,{"$error":"#VALUE!"},null,null,{"$f":"IFERROR(INDEX('LFA Expenditure_7B imp-exp'!J$22:J$63,MATCH('LFA Expenditure_7B'!B194,'LFA Expenditure_7B imp-exp'!N$22:N$63,0)),\"\")","v":""},null,0,{"$error":"#VALUE!"}]
["Don't Show","Int93",{"$f":"IFERROR(INDEX('LFA Expenditure_7B imp-exp'!A$22:A$63,MATCH('LFA Expenditure_7B'!B195,'LFA Expenditure_7B imp-exp'!N$22:N$63,0)),\"\")","v":""},{"$f":"IFERROR(INDEX('LFA Expenditure_7B imp-exp'!B$22:B$63,MATCH('LFA Expenditure_7B'!B195,'LFA Expenditure_7B imp-exp'!N$22:N$63,0)),\"\")","v":""},{"$f":"IFERROR(INDEX('LFA Expenditure_7B imp-exp'!C$22:C$63,MATCH('LFA Expenditure_7B'!B195,'LFA Expenditure_7B imp-exp'!N$22:N$63,0)),\"\")","v":""},{"$f":"'PR Expenditure_7A'!F196","v":0},null,0,{"$error":"#VALUE!"},null,null,{"$f":"IFERROR(INDEX('LFA Expenditure_7B imp-exp'!J$22:J$63,MATCH('LFA Expenditure_7B'!B195,'LFA Expenditure_7B imp-exp'!N$22:N$63,0)),\"\")","v":""},null,0,{"$error":"#VALUE!"}]
["Don't Show","Int94",{"$f":"IFERROR(INDEX('LFA Expenditure_7B imp-exp'!A$22:A$63,MATCH('LFA Expenditure_7B'!B196,'LFA Expenditure_7B imp-exp'!N$22:N$63,0)),\"\")","v":""},{"$f":"IFERROR(INDEX('LFA Expenditure_7B imp-exp'!B$22:B$63,MATCH('LFA Expenditure_7B'!B196,'LFA Expenditure_7B imp-exp'!N$22:N$63,0)),\"\")","v":""},{"$f":"IFERROR(INDEX('LFA Expenditure_7B imp-exp'!C$22:C$63,MATCH('LFA Expenditure_7B'!B196,'LFA Expenditure_7B imp-exp'!N$22:N$63,0)),\"\")","v":""},{"$f":"'PR Expenditure_7A'!F197","v":0},null,0,{"$error":"#VALUE!"},null,null,{"$f":"IFERROR(INDEX('LFA Expenditure_7B imp-exp'!J$22:J$63,MATCH('LFA Expenditure_7B'!B196,'LFA Expenditure_7B imp-exp'!N$22:N$63,0)),\"\")","v":""},null,0,{"$error":"#VALUE!"}]
["Don't Show","Int95",{"$f":"IFERROR(INDEX('LFA Expenditure_7B imp-exp'!A$22:A$63,MATCH('LFA Expenditure_7B'!B197,'LFA Expenditure_7B imp-exp'!N$22:N$63,0)),\"\")","v":""},{"$f":"IFERROR(INDEX('LFA Expenditure_7B imp-exp'!B$22:B$63,MATCH('LFA Expenditure_7B'!B197,'LFA Expenditure_7B imp-exp'!N$22:N$63,0)),\"\")","v":""},{"$f":"IFERROR(INDEX('LFA Expenditure_7B imp-exp'!C$22:C$63,MATCH('LFA Expenditure_7B'!B197,'LFA Expenditure_7B imp-exp'!N$22:N$63,0)),\"\")","v":""},{"$f":"'PR Expenditure_7A'!F198","v":0},null,0,{"$error":"#VALUE!"},null,null,{"$f":"IFERROR(INDEX('LFA Expenditure_7B imp-exp'!J$22:J$63,MATCH('LFA Expenditure_7B'!B197,'LFA Expenditure_7B imp-exp'!N$22:N$63,0)),\"\")","v":""},null,0,{"$error":"#VALUE!"}]
["Don't Show","Int96",{"$f":"IFERROR(INDEX('LFA Expenditure_7B imp-exp'!A$22:A$63,MATCH('LFA Expenditure_7B'!B198,'LFA Expenditure_7B imp-exp'!N$22:N$63,0)),\"\")","v":""},{"$f":"IFERROR(INDEX('LFA Expenditure_7B imp-exp'!B$22:B$63,MATCH('LFA Expenditure_7B'!B198,'LFA Expenditure_7B imp-exp'!N$22:N$63,0)),\"\")","v":""},{"$f":"IFERROR(INDEX('LFA Expenditure_7B imp-exp'!C$22:C$63,MATCH('LFA Expenditure_7B'!B198,'LFA Expenditure_7B imp-exp'!N$22:N$63,0)),\"\")","v":""},{"$f":"'PR Expenditure_7A'!F199","v":0},null,0,{"$error":"#VALUE!"},null,null,{"$f":"IFERROR(INDEX('LFA Expenditure_7B imp-exp'!J$22:J$63,MATCH('LFA Expenditure_7B'!B198,'LFA Expenditure_7B imp-exp'!N$22:N$63,0)),\"\")","v":""},null,0,{"$error":"#VALUE!"}]
["Don't Show","Int97",{"$f":"IFERROR(INDEX('LFA Expenditure_7B imp-exp'!A$22:A$63,MATCH('LFA Expenditure_7B'!B199,'LFA Expenditure_7B imp-exp'!N$22:N$63,0)),\"\")","v":""},{"$f":"IFERROR(INDEX('LFA Expenditure_7B imp-exp'!B$22:B$63,MATCH('LFA Expenditure_7B'!B199,'LFA Expenditure_7B imp-exp'!N$22:N$63,0)),\"\")","v":""},{"$f":"IFERROR(INDEX('LFA Expenditure_7B imp-exp'!C$22:C$63,MATCH('LFA Expenditure_7B'!B199,'LFA Expenditure_7B imp-exp'!N$22:N$63,0)),\"\")","v":""},{"$f":"'PR Expenditure_7A'!F200","v":0},null,0,{"$error":"#VALUE!"},null,null,{"$f":"IFERROR(INDEX('LFA Expenditure_7B imp-exp'!J$22:J$63,MATCH('LFA Expenditure_7B'!B199,'LFA Expenditure_7B imp-exp'!N$22:N$63,0)),\"\")","v":""},null,0,{"$error":"#VALUE!"}]
["Don't Show","Int98",{"$f":"IFERROR(INDEX('LFA Expenditure_7B imp-exp'!A$22:A$63,MATCH('LFA Expenditure_7B'!B200,'LFA Expenditure_7B imp-exp'!N$22:N$63,0)),\"\")","v":""},{"$f":"IFERROR(INDEX('LFA Expenditure_7B imp-exp'!B$22:B$63,MATCH('LFA Expenditure_7B'!B200,'LFA Expenditure_7B imp-exp'!N$22:N$63,0)),\"\")","v":""},{"$f":"IFERROR(INDEX('LFA Expenditure_7B imp-exp'!C$22:C$63,MATCH('LFA Expenditure_7B'!B200,'LFA Expenditure_7B imp-exp'!N$22:N$63,0)),\"\")","v":""},{"$f":"'PR Expenditure_7A'!F201","v":0},null,0,{"$error":"#VALUE!"},null,null,{"$f":"IFERROR(INDEX('LFA Expenditure_7B imp-exp'!J$22:J$63,MATCH('LFA Expenditure_7B'!B200,'LFA Expenditure_7B imp-exp'!N$22:N$63,0)),\"\")","v":""},null,0,{"$error":"#VALUE!"}]
["Don't Show","Int99",{"$f":"IFERROR(INDEX('LFA Expenditure_7B imp-exp'!A$22:A$63,MATCH('LFA Expenditure_7B'!B201,'LFA Expenditure_7B imp-exp'!N$22:N$63,0)),\"\")","v":""},{"$f":"IFERROR(INDEX('LFA Expenditure_7B imp-exp'!B$22:B$63,MATCH('LFA Expenditure_7B'!B201,'LFA Expenditure_7B imp-exp'!N$22:N$63,0)),\"\")","v":""},{"$f":"IFERROR(INDEX('LFA Expenditure_7B imp-exp'!C$22:C$63,MATCH('LFA Expenditure_7B'!B201,'LFA Expenditure_7B imp-exp'!N$22:N$63,0)),\"\")","v":""},{"$f":"'PR Expenditure_7A'!F202","v":0},null,0,{"$error":"#VALUE!"},null,null,{"$f":"IFERROR(INDEX('LFA Expenditure_7B imp-exp'!J$22:J$63,MATCH('LFA Expenditure_7B'!B201,'LFA Expenditure_7B imp-exp'!N$22:N$63,0)),\"\")","v":""},null,0,{"$error":"#VALUE!"}]
["Don't Show","Int100",{"$f":"IFERROR(INDEX('LFA Expenditure_7B imp-exp'!A$22:A$63,MATCH('LFA Expenditure_7B'!B202,'LFA Expenditure_7B imp-exp'!N$22:N$63,0)),\"\")","v":""},{"$f":"IFERROR(INDEX('LFA Expenditure_7B imp-exp'!B$22:B$63,MATCH('LFA Expenditure_7B'!B202,'LFA Expenditure_7B imp-exp'!N$22:N$63,0)),\"\")","v":""},{"$f":"IFERROR(INDEX('LFA Expenditure_7B imp-exp'!C$22:C$63,MATCH('LFA Expenditure_7B'!B202,'LFA Expenditure_7B imp-exp'!N$22:N$63,0)),\"\")","v":""},{"$f":"'PR Expenditure_7A'!F203","v":0},null,0,{"$error":"#VALUE!"},null,null,{"$f":"IFERROR(INDEX('LFA Expenditure_7B imp-exp'!J$22:J$63,MATCH('LFA Expenditure_7B'!B202,'LFA Expenditure_7B imp-exp'!N$22:N$63,0)),\"\")","v":""},null,0,{"$error":"#VALUE!"}]
["Show","Intcustom1",null,null,0,{"$f":"'PR Expenditure_7A'!F204","v":0},null,{"$f":"IFERROR((E203)-(F203+G203),0)","v":0},{"$f":"IF(AND((E203)=0,(F203+G203)=0),\"N/A\",IF(AND((E203)=0,(F203+G203)<>0),\"Not Budgeted\",(F203+G203)/(E203)))","v":"N/A"},null,null,0,null,{"$f":"IFERROR(L203-M203,0)","v":0},{"$f":"IF(AND(L203=0,M203=0),\"N/A\",IF(AND(L203=0,M203<>0),\"Not Budgeted\",M203/L203))","v":"N/A"},null,{"$f":"IFERROR(IF(VLOOKUP(C203,'Reference Records'!$B$13:$D$48,3,FALSE)=0,\"\",VLOOKUP(C203,'Reference Records'!$B$13:$D$48,3,FALSE)),\"\")","v":""}]
["Show","Intcustom2",null,null,0,{"$f":"'PR Expenditure_7A'!F205","v":0},null,{"$f":"IFERROR((E204)-(F204+G204),0)","v":0},{"$f":"IF(AND((E204)=0,(F204+G204)=0),\"N/A\",IF(AND((E204)=0,(F204+G204)<>0),\"Not Budgeted\",(F204+G204)/(E204)))","v":"N/A"},null,null,0,null,{"$f":"IFERROR(L204-M204,0)","v":0},{"$f":"IF(AND(L204=0,M204=0),\"N/A\",IF(AND(L204=0,M204<>0),\"Not Budgeted\",M204/L204))","v":"N/A"},{"$f":"IFERROR(IF(VLOOKUP(C203,'Reference Records'!$B$13:$D$48,3,FALSE)=0,\"\",VLOOKUP(C203,'Reference Records'!$B$13:$D$48,3,FALSE)),\"\")","v":""}]
["Show","Intcustom3",null,null,0,{"$f":"'PR Expenditure_7A'!F206","v":0},null,0,"N/A",null,null,0,null,0,"N/A",{"$f":"IFERROR(IF(VLOOKUP(C204,'Reference Records'!$B$13:$D$48,3,FALSE)=0,\"\",VLOOKUP(C204,'Reference Records'!$B$13:$D$48,3,FALSE)),\"\")","v":""}]
["Show","Intcustom4",null,null,0,{"$f":"'PR Expenditure_7A'!F207","v":0},null,0,"N/A",null,null,0,null,0,"N/A",{"$f":"IFERROR(IF(VLOOKUP(C205,'Reference Records'!$B$13:$D$48,3,FALSE)=0,\"\",VLOOKUP(C205,'Reference Records'!$B$13:$D$48,3,FALSE)),\"\")","v":""}]
["Show","Intcustom5",null,null,0,{"$f":"'PR Expenditure_7A'!F208","v":0},null,0,"N/A",null,null,0,null,0,"N/A",{"$f":"IFERROR(IF(VLOOKUP(C206,'Reference Records'!$B$13:$D$48,3,FALSE)=0,\"\",VLOOKUP(C206,'Reference Records'!$B$13:$D$48,3,FALSE)),\"\")","v":""}]
["Show","Intcustom6",null,null,0,{"$f":"'PR Expenditure_7A'!F209","v":0},null,0,"N/A",null,null,0,null,0,"N/A",{"$f":"IFERROR(IF(VLOOKUP(C207,'Reference Records'!$B$13:$D$48,3,FALSE)=0,\"\",VLOOKUP(C207,'Reference Records'!$B$13:$D$48,3,FALSE)),\"\")","v":""}]
["Show","Intcustom7",null,null,0,{"$f":"'PR Expenditure_7A'!F210","v":0},null,0,"N/A",null,null,0,null,0,"N/A",{"$f":"IFERROR(IF(VLOOKUP(C208,'Reference Records'!$B$13:$D$48,3,FALSE)=0,\"\",VLOOKUP(C208,'Reference Records'!$B$13:$D$48,3,FALSE)),\"\")","v":""}]
["Show","Intcustom8",null,null,0,{"$f":"'PR Expenditure_7A'!F211","v":0},null,0,"N/A",null,null,0,null,0,"N/A",{"$f":"IFERROR(IF(VLOOKUP(C209,'Reference Records'!$B$13:$D$48,3,FALSE)=0,\"\",VLOOKUP(C209,'Reference Records'!$B$13:$D$48,3,FALSE)),\"\")","v":""}]
["Show","Intcustom9",null,null,0,{"$f":"'PR Expenditure_7A'!F212","v":0},null,0,"N/A",null,null,0,null,0,"N/A",{"$f":"IFERROR(IF(VLOOKUP(C210,'Reference Records'!$B$13:$D$48,3,FALSE)=0,\"\",VLOOKUP(C210,'Reference Records'!$B$13:$D$48,3,FALSE)),\"\")","v":""}]
["Show","Intcustom10",null,null,0,{"$f":"'PR Expenditure_7A'!F213","v":0},null,0,"N/A",null,null,0,null,0,"N/A",{"$f":"IFERROR(IF(VLOOKUP(C211,'Reference Records'!$B$13:$D$48,3,FALSE)=0,\"\",VLOOKUP(C211,'Reference Records'!$B$13:$D$48,3,FALSE)),\"\")","v":""}]
["Show","Intcustom11",null,null,0,{"$f":"'PR Expenditure_7A'!F214","v":0},null,0,"N/A",null,null,0,null,0,"N/A",{"$f":"IFERROR(IF(VLOOKUP(C212,'Reference Records'!$B$13:$D$48,3,FALSE)=0,\"\",VLOOKUP(C212,'Reference Records'!$B$13:$D$48,3,FALSE)),\"\")","v":""}]
["Show","Intcustom12",null,null,0,{"$f":"'PR Expenditure_7A'!F215","v":0},null,0,"N/A",null,null,0,null,0,"N/A",{"$f":"IFERROR(IF(VLOOKUP(C213,'Reference Records'!$B$13:$D$48,3,FALSE)=0,\"\",VLOOKUP(C213,'Reference Records'!$B$13:$D$48,3,FALSE)),\"\")","v":""}]
["Show","Intcustom13",null,null,0,{"$f":"'PR Expenditure_7A'!F216","v":0},null,0,"N/A",null,null,0,null,0,"N/A",{"$f":"IFERROR(IF(VLOOKUP(C214,'Reference Records'!$B$13:$D$48,3,FALSE)=0,\"\",VLOOKUP(C214,'Reference Records'!$B$13:$D$48,3,FALSE)),\"\")","v":""}]
["Show","Intcustom14",null,null,0,{"$f":"'PR Expenditure_7A'!F217","v":0},null,0,"N/A",null,null,0,null,0,"N/A",{"$f":"IFERROR(IF(VLOOKUP(C215,'Reference Records'!$B$13:$D$48,3,FALSE)=0,\"\",VLOOKUP(C215,'Reference Records'!$B$13:$D$48,3,FALSE)),\"\")","v":""}]
["Show","Intcustom15",null,null,0,{"$f":"'PR Expenditure_7A'!F218","v":0},null,0,"N/A",null,null,0,null,0,"N/A",{"$f":"IFERROR(IF(VLOOKUP(C216,'Reference Records'!$B$13:$D$48,3,FALSE)=0,\"\",VLOOKUP(C216,'Reference Records'!$B$13:$D$48,3,FALSE)),\"\")","v":""}]
["Show","Intcustom16",null,null,0,{"$f":"'PR Expenditure_7A'!F219","v":0},null,0,"N/A",null,null,0,null,0,"N/A",{"$f":"IFERROR(IF(VLOOKUP(C217,'Reference Records'!$B$13:$D$48,3,FALSE)=0,\"\",VLOOKUP(C217,'Reference Records'!$B$13:$D$48,3,FALSE)),\"\")","v":""}]
["Show",null,"Grand Total",null,{"$f":"ROUND(SUM(E103:E218),2)","v":5743857.3399999999},{"$f":"ROUND(SUM(F103:F218),2)","v":1056654.67},{"$f":"ROUND(SUM(G103:G218),2)","v":0},{"$f":"ROUND(SUM(H103:H218),2)","v":4687202.67},{"$f":"(F219+G219)/E219","v":0.18396255468280831},null,null,{"$f":"ROUND(SUM(L103:L218),2)","v":5743857.3399999999},{"$f":"ROUND(SUM(M103:M218),2)","v":0},{"$f":"ROUND(SUM(N103:N218),2)","v":5743857.3399999999},{"$f":"M219/L219","v":0}]
["Show"]
["Show",null,"C. BREAKDOWN BY IMPLEMENTING ENTITY"]
["Show"]
["Show",null,"Implementing Entity","Type of Implementing Entity","Budget for Reporting Period","Actual Expenditure ","Local Fund Agent Adjustment on Expenditures","Budget Vs Actual Variances","Absorption Rate","LFA comments on the Principal Recipient's explanation of variances",null,"Cumulative Budget","Cumulative Actual Expenditure","Cumulative Budget Vs Actuals Variances","Absorption Rate"]
[{"$f":"IF(C224<>\"\",\"Show\",\"Don't Show\")","v":"Show"},"IP1",{"$f":"IFERROR(INDEX('LFA Expenditure_7B imp-exp'!A$82:A$87,MATCH('LFA Expenditure_7B'!B224,'LFA Expenditure_7B imp-exp'!N$82:N$87,0)),\"\")","v":"Red Cross Burundi"},{"$f":"IFERROR(INDEX('LFA Expenditure_7B imp-exp'!B$82:B$87,MATCH('LFA Expenditure_7B'!B224,'LFA Expenditure_7B imp-exp'!N$82:N$87,0)),\"\")","v":"-"},{"$f":"IFERROR(INDEX('LFA Expenditure_7B imp-exp'!C$82:C$87,MATCH('LFA Expenditure_7B'!B224,'LFA Expenditure_7B imp-exp'!N$82:N$87,0)),\"\")","v":980086.54583479103},{"$f":"'PR Expenditure_7A'!F225","v":347789.20000000007},null,{"$f":"IFERROR((E224)-(F224+G224),0)","v":632297.34583479096},{"$f":"IF(AND((E224)=0,(F224+G224)=0),\"N/A\",IF(AND((E224)=0,(F224+G224)<>0),\"Not Budgeted\",(F224+G224)/(E224)))","v":0.35485560074061601},null,null,{"$f":"IFERROR(INDEX('LFA Expenditure_7B imp-exp'!J$82:J$87,MATCH('LFA Expenditure_7B'!B224,'LFA Expenditure_7B imp-exp'!N$82:N$87,0)),\"\")","v":980086.54583479103},null,{"$f":"IFERROR(L224-M224,0)","v":980086.54583479103},{"$f":"IF(AND(L224=0,M224=0),\"N/A\",IF(AND(L224=0,M224<>0),\"Not Budgeted\",M224/L224))","v":0}]
[{"$f":"IF(C225<>\"\",\"Show\",\"Don't Show\")","v":"Show"},"IP2",{"$f":"IFERROR(INDEX('LFA Expenditure_7B imp-exp'!A$82:A$87,MATCH('LFA Expenditure_7B'!B225,'LFA Expenditure_7B imp-exp'!N$82:N$87,0)),\"\")","v":"PNILT"},{"$f":"IFERROR(INDEX('LFA Expenditure_7B imp-exp'!B$82:B$87,MATCH('LFA Expenditure_7B'!B225,'LFA Expenditure_7B imp-exp'!N$82:N$87,0)),\"\")","v":"-"},{"$f":"IFERROR(INDEX('LFA Expenditure_7B imp-exp'!C$82:C$87,MATCH('LFA Expenditure_7B'!B225,'LFA Expenditure_7B imp-exp'!N$82:N$87,0)),\"\")","v":392096.936571764},{"$f":"'PR Expenditure_7A'!F226","v":21693.9},null,{"$f":"IFERROR((E225)-(F225+G225),0)","v":370403.03657176398},{"$f":"IF(AND((E225)=0,(F225+G225)=0),\"N/A\",IF(AND((E225)=0,(F225+G225)<>0),\"Not Budgeted\",(F225+G225)/(E225)))","v":5.5327899752742521E-2},null,null,{"$f":"IFERROR(INDEX('LFA Expenditure_7B imp-exp'!J$82:J$87,MATCH('LFA Expenditure_7B'!B225,'LFA Expenditure_7B imp-exp'!N$82:N$87,0)),\"\")","v":392096.936571764},null,{"$f":"IFERROR(L225-M225,0)","v":392096.936571764},{"$f":"IF(AND(L225=0,M225=0),\"N/A\",IF(AND(L225=0,M225<>0),\"Not Budgeted\",M225/L225))","v":0}]
["Show","IP3",{"$f":"IFERROR(INDEX('LFA Expenditure_7B imp-exp'!A$82:A$87,MATCH('LFA Expenditure_7B'!B226,'LFA Expenditure_7B imp-exp'!N$82:N$87,0)),\"\")","v":"United Nations Development Programme"},{"$f":"IFERROR(INDEX('LFA Expenditure_7B imp-exp'!B$82:B$87,MATCH('LFA Expenditure_7B'!B226,'LFA Expenditure_7B imp-exp'!N$82:N$87,0)),\"\")","v":"-"},{"$f":"IFERROR(INDEX('LFA Expenditure_7B imp-exp'!C$82:C$87,MATCH('LFA Expenditure_7B'!B226,'LFA Expenditure_7B imp-exp'!N$82:N$87,0)),\"\")","v":3416867.5639248402},{"$f":"'PR Expenditure_7A'!F227","v":675972.24999999977},null,2740895.3139248407,0.19783390411056298,null,null,{"$f":"IFERROR(INDEX('LFA Expenditure_7B imp-exp'!J$82:J$87,MATCH('LFA Expenditure_7B'!B226,'LFA Expenditure_7B imp-exp'!N$82:N$87,0)),\"\")","v":3416867.5639248402},null,3416867.5639248402,0]
["Show","IP4",{"$f":"IFERROR(INDEX('LFA Expenditure_7B imp-exp'!A$82:A$87,MATCH('LFA Expenditure_7B'!B227,'LFA Expenditure_7B imp-exp'!N$82:N$87,0)),\"\")","v":"PNLS /IST"},{"$f":"IFERROR(INDEX('LFA Expenditure_7B imp-exp'!B$82:B$87,MATCH('LFA Expenditure_7B'!B227,'LFA Expenditure_7B imp-exp'!N$82:N$87,0)),\"\")","v":"-"},{"$f":"IFERROR(INDEX('LFA Expenditure_7B imp-exp'!C$82:C$87,MATCH('LFA Expenditure_7B'!B227,'LFA Expenditure_7B imp-exp'!N$82:N$87,0)),\"\")","v":954806.29754234501},{"$f":"'PR Expenditure_7A'!F228","v":11199.32},null,943606.97754234506,1.1729415724243604E-2,null,null,{"$f":"IFERROR(INDEX('LFA Expenditure_7B imp-exp'!J$82:J$87,MATCH('LFA Expenditure_7B'!B227,'LFA Expenditure_7B imp-exp'!N$82:N$87,0)),\"\")","v":954806.29754234501},null,954806.29754234501,0]
["Don't Show","IP5",{"$f":"IFERROR(INDEX('LFA Expenditure_7B imp-exp'!A$82:A$87,MATCH('LFA Expenditure_7B'!B228,'LFA Expenditure_7B imp-exp'!N$82:N$87,0)),\"\")","v":""},{"$f":"IFERROR(INDEX('LFA Expenditure_7B imp-exp'!B$82:B$87,MATCH('LFA Expenditure_7B'!B228,'LFA Expenditure_7B imp-exp'!N$82:N$87,0)),\"\")","v":""},{"$f":"IFERROR(INDEX('LFA Expenditure_7B imp-exp'!C$82:C$87,MATCH('LFA Expenditure_7B'!B228,'LFA Expenditure_7B imp-exp'!N$82:N$87,0)),\"\")","v":""},{"$f":"'PR Expenditure_7A'!F229","v":0},null,0,{"$error":"#VALUE!"},null,null,{"$f":"IFERROR(INDEX('LFA Expenditure_7B imp-exp'!J$82:J$87,MATCH('LFA Expenditure_7B'!B228,'LFA Expenditure_7B imp-exp'!N$82:N$87,0)),\"\")","v":""},null,0,{"$error":"#VALUE!"}]
["Don't Show","IP6",{"$f":"IFERROR(INDEX('LFA Expenditure_7B imp-exp'!A$82:A$87,MATCH('LFA Expenditure_7B'!B229,'LFA Expenditure_7B imp-exp'!N$82:N$87,0)),\"\")","v":""},{"$f":"IFERROR(INDEX('LFA Expenditure_7B imp-exp'!B$82:B$87,MATCH('LFA Expenditure_7B'!B229,'LFA Expenditure_7B imp-exp'!N$82:N$87,0)),\"\")","v":""},{"$f":"IFERROR(INDEX('LFA Expenditure_7B imp-exp'!C$82:C$87,MATCH('LFA Expenditure_7B'!B229,'LFA Expenditure_7B imp-exp'!N$82:N$87,0)),\"\")","v":""},{"$f":"'PR Expenditure_7A'!F230","v":0},null,0,{"$error":"#VALUE!"},null,null,{"$f":"IFERROR(INDEX('LFA Expenditure_7B imp-exp'!J$82:J$87,MATCH('LFA Expenditure_7B'!B229,'LFA Expenditure_7B imp-exp'!N$82:N$87,0)),\"\")","v":""},null,0,{"$error":"#VALUE!"}]
["Don't Show","IP7",{"$f":"IFERROR(INDEX('LFA Expenditure_7B imp-exp'!A$82:A$87,MATCH('LFA Expenditure_7B'!B230,'LFA Expenditure_7B imp-exp'!N$82:N$87,0)),\"\")","v":""},{"$f":"IFERROR(INDEX('LFA Expenditure_7B imp-exp'!B$82:B$87,MATCH('LFA Expenditure_7B'!B230,'LFA Expenditure_7B imp-exp'!N$82:N$87,0)),\"\")","v":""},{"$f":"IFERROR(INDEX('LFA Expenditure_7B imp-exp'!C$82:C$87,MATCH('LFA Expenditure_7B'!B230,'LFA Expenditure_7B imp-exp'!N$82:N$87,0)),\"\")","v":""},{"$f":"'PR Expenditure_7A'!F231","v":0},null,0,{"$error":"#VALUE!"},null,null,{"$f":"IFERROR(INDEX('LFA Expenditure_7B imp-exp'!J$82:J$87,MATCH('LFA Expenditure_7B'!B230,'LFA Expenditure_7B imp-exp'!N$82:N$87,0)),\"\")","v":""},null,0,{"$error":"#VALUE!"}]
["Don't Show","IP8",{"$f":"IFERROR(INDEX('LFA Expenditure_7B imp-exp'!A$82:A$87,MATCH('LFA Expenditure_7B'!B231,'LFA Expenditure_7B imp-exp'!N$82:N$87,0)),\"\")","v":""},{"$f":"IFERROR(INDEX('LFA Expenditure_7B imp-exp'!B$82:B$87,MATCH('LFA Expenditure_7B'!B231,'LFA Expenditure_7B imp-exp'!N$82:N$87,0)),\"\")","v":""},{"$f":"IFERROR(INDEX('LFA Expenditure_7B imp-exp'!C$82:C$87,MATCH('LFA Expenditure_7B'!B231,'LFA Expenditure_7B imp-exp'!N$82:N$87,0)),\"\")","v":""},{"$f":"'PR Expenditure_7A'!F232","v":0},null,0,{"$error":"#VALUE!"},null,null,{"$f":"IFERROR(INDEX('LFA Expenditure_7B imp-exp'!J$82:J$87,MATCH('LFA Expenditure_7B'!B231,'LFA Expenditure_7B imp-exp'!N$82:N$87,0)),\"\")","v":""},null,0,{"$error":"#VALUE!"}]
["Don't Show","IP9",{"$f":"IFERROR(INDEX('LFA Expenditure_7B imp-exp'!A$82:A$87,MATCH('LFA Expenditure_7B'!B232,'LFA Expenditure_7B imp-exp'!N$82:N$87,0)),\"\")","v":""},{"$f":"IFERROR(INDEX('LFA Expenditure_7B imp-exp'!B$82:B$87,MATCH('LFA Expenditure_7B'!B232,'LFA Expenditure_7B imp-exp'!N$82:N$87,0)),\"\")","v":""},{"$f":"IFERROR(INDEX('LFA Expenditure_7B imp-exp'!C$82:C$87,MATCH('LFA Expenditure_7B'!B232,'LFA Expenditure_7B imp-exp'!N$82:N$87,0)),\"\")","v":""},{"$f":"'PR Expenditure_7A'!F233","v":0},null,0,{"$error":"#VALUE!"},null,null,{"$f":"IFERROR(INDEX('LFA Expenditure_7B imp-exp'!J$82:J$87,MATCH('LFA Expenditure_7B'!B232,'LFA Expenditure_7B imp-exp'!N$82:N$87,0)),\"\")","v":""},null,0,{"$error":"#VALUE!"}]
["Don't Show","IP10",{"$f":"IFERROR(INDEX('LFA Expenditure_7B imp-exp'!A$82:A$87,MATCH('LFA Expenditure_7B'!B233,'LFA Expenditure_7B imp-exp'!N$82:N$87,0)),\"\")","v":""},{"$f":"IFERROR(INDEX('LFA Expenditure_7B imp-exp'!B$82:B$87,MATCH('LFA Expenditure_7B'!B233,'LFA Expenditure_7B imp-exp'!N$82:N$87,0)),\"\")","v":""},{"$f":"IFERROR(INDEX('LFA Expenditure_7B imp-exp'!C$82:C$87,MATCH('LFA Expenditure_7B'!B233,'LFA Expenditure_7B imp-exp'!N$82:N$87,0)),\"\")","v":""},{"$f":"'PR Expenditure_7A'!F234","v":0},null,0,{"$error":"#VALUE!"},null,null,{"$f":"IFERROR(INDEX('LFA Expenditure_7B imp-exp'!J$82:J$87,MATCH('LFA Expenditure_7B'!B233,'LFA Expenditure_7B imp-exp'!N$82:N$87,0)),\"\")","v":""},null,0,{"$error":"#VALUE!"}]
["Don't Show","IP11",{"$f":"IFERROR(INDEX('LFA Expenditure_7B imp-exp'!A$82:A$87,MATCH('LFA Expenditure_7B'!B234,'LFA Expenditure_7B imp-exp'!N$82:N$87,0)),\"\")","v":""},{"$f":"IFERROR(INDEX('LFA Expenditure_7B imp-exp'!B$82:B$87,MATCH('LFA Expenditure_7B'!B234,'LFA Expenditure_7B imp-exp'!N$82:N$87,0)),\"\")","v":""},{"$f":"IFERROR(INDEX('LFA Expenditure_7B imp-exp'!C$82:C$87,MATCH('LFA Expenditure_7B'!B234,'LFA Expenditure_7B imp-exp'!N$82:N$87,0)),\"\")","v":""},{"$f":"'PR Expenditure_7A'!F235","v":0},null,0,{"$error":"#VALUE!"},null,null,{"$f":"IFERROR(INDEX('LFA Expenditure_7B imp-exp'!J$82:J$87,MATCH('LFA Expenditure_7B'!B234,'LFA Expenditure_7B imp-exp'!N$82:N$87,0)),\"\")","v":""},null,0,{"$error":"#VALUE!"}]
["Don't Show","IP12",{"$f":"IFERROR(INDEX('LFA Expenditure_7B imp-exp'!A$82:A$87,MATCH('LFA Expenditure_7B'!B235,'LFA Expenditure_7B imp-exp'!N$82:N$87,0)),\"\")","v":""},{"$f":"IFERROR(INDEX('LFA Expenditure_7B imp-exp'!B$82:B$87,MATCH('LFA Expenditure_7B'!B235,'LFA Expenditure_7B imp-exp'!N$82:N$87,0)),\"\")","v":""},{"$f":"IFERROR(INDEX('LFA Expenditure_7B imp-exp'!C$82:C$87,MATCH('LFA Expenditure_7B'!B235,'LFA Expenditure_7B imp-exp'!N$82:N$87,0)),\"\")","v":""},{"$f":"'PR Expenditure_7A'!F236","v":0},null,0,{"$error":"#VALUE!"},null,null,{"$f":"IFERROR(INDEX('LFA Expenditure_7B imp-exp'!J$82:J$87,MATCH('LFA Expenditure_7B'!B235,'LFA Expenditure_7B imp-exp'!N$82:N$87,0)),\"\")","v":""},null,0,{"$error":"#VALUE!"}]
["Don't Show","IP13",{"$f":"IFERROR(INDEX('LFA Expenditure_7B imp-exp'!A$82:A$87,MATCH('LFA Expenditure_7B'!B236,'LFA Expenditure_7B imp-exp'!N$82:N$87,0)),\"\")","v":""},{"$f":"IFERROR(INDEX('LFA Expenditure_7B imp-exp'!B$82:B$87,MATCH('LFA Expenditure_7B'!B236,'LFA Expenditure_7B imp-exp'!N$82:N$87,0)),\"\")","v":""},{"$f":"IFERROR(INDEX('LFA Expenditure_7B imp-exp'!C$82:C$87,MATCH('LFA Expenditure_7B'!B236,'LFA Expenditure_7B imp-exp'!N$82:N$87,0)),\"\")","v":""},{"$f":"'PR Expenditure_7A'!F237","v":0},null,0,{"$error":"#VALUE!"},null,null,{"$f":"IFERROR(INDEX('LFA Expenditure_7B imp-exp'!J$82:J$87,MATCH('LFA Expenditure_7B'!B236,'LFA Expenditure_7B imp-exp'!N$82:N$87,0)),\"\")","v":""},null,0,{"$error":"#VALUE!"}]
["Don't Show","IP14",{"$f":"IFERROR(INDEX('LFA Expenditure_7B imp-exp'!A$82:A$87,MATCH('LFA Expenditure_7B'!B237,'LFA Expenditure_7B imp-exp'!N$82:N$87,0)),\"\")","v":""},{"$f":"IFERROR(INDEX('LFA Expenditure_7B imp-exp'!B$82:B$87,MATCH('LFA Expenditure_7B'!B237,'LFA Expenditure_7B imp-exp'!N$82:N$87,0)),\"\")","v":""},{"$f":"IFERROR(INDEX('LFA Expenditure_7B imp-exp'!C$82:C$87,MATCH('LFA Expenditure_7B'!B237,'LFA Expenditure_7B imp-exp'!N$82:N$87,0)),\"\")","v":""},{"$f":"'PR Expenditure_7A'!F238","v":0},null,0,{"$error":"#VALUE!"},null,null,{"$f":"IFERROR(INDEX('LFA Expenditure_7B imp-exp'!J$82:J$87,MATCH('LFA Expenditure_7B'!B237,'LFA Expenditure_7B imp-exp'!N$82:N$87,0)),\"\")","v":""},null,0,{"$error":"#VALUE!"}]
["Don't Show","IP15",{"$f":"IFERROR(INDEX('LFA Expenditure_7B imp-exp'!A$82:A$87,MATCH('LFA Expenditure_7B'!B238,'LFA Expenditure_7B imp-exp'!N$82:N$87,0)),\"\")","v":""},{"$f":"IFERROR(INDEX('LFA Expenditure_7B imp-exp'!B$82:B$87,MATCH('LFA Expenditure_7B'!B238,'LFA Expenditure_7B imp-exp'!N$82:N$87,0)),\"\")","v":""},{"$f":"IFERROR(INDEX('LFA Expenditure_7B imp-exp'!C$82:C$87,MATCH('LFA Expenditure_7B'!B238,'LFA Expenditure_7B imp-exp'!N$82:N$87,0)),\"\")","v":""},{"$f":"'PR Expenditure_7A'!F239","v":0},null,0,{"$error":"#VALUE!"},null,null,{"$f":"IFERROR(INDEX('LFA Expenditure_7B imp-exp'!J$82:J$87,MATCH('LFA Expenditure_7B'!B238,'LFA Expenditure_7B imp-exp'!N$82:N$87,0)),\"\")","v":""},null,0,{"$error":"#VALUE!"}]
["Don't Show","IP16",{"$f":"IFERROR(INDEX('LFA Expenditure_7B imp-exp'!A$82:A$87,MATCH('LFA Expenditure_7B'!B239,'LFA Expenditure_7B imp-exp'!N$82:N$87,0)),\"\")","v":""},{"$f":"IFERROR(INDEX('LFA Expenditure_7B imp-exp'!B$82:B$87,MATCH('LFA Expenditure_7B'!B239,'LFA Expenditure_7B imp-exp'!N$82:N$87,0)),\"\")","v":""},{"$f":"IFERROR(INDEX('LFA Expenditure_7B imp-exp'!C$82:C$87,MATCH('LFA Expenditure_7B'!B239,'LFA Expenditure_7B imp-exp'!N$82:N$87,0)),\"\")","v":""},{"$f":"'PR Expenditure_7A'!F240","v":0},null,0,{"$error":"#VALUE!"},null,null,{"$f":"IFERROR(INDEX('LFA Expenditure_7B imp-exp'!J$82:J$87,MATCH('LFA Expenditure_7B'!B239,'LFA Expenditure_7B imp-exp'!N$82:N$87,0)),\"\")","v":""},null,0,{"$error":"#VALUE!"}]
["Don't Show","IP17",{"$f":"IFERROR(INDEX('LFA Expenditure_7B imp-exp'!A$82:A$87,MATCH('LFA Expenditure_7B'!B240,'LFA Expenditure_7B imp-exp'!N$82:N$87,0)),\"\")","v":""},{"$f":"IFERROR(INDEX('LFA Expenditure_7B imp-exp'!B$82:B$87,MATCH('LFA Expenditure_7B'!B240,'LFA Expenditure_7B imp-exp'!N$82:N$87,0)),\"\")","v":""},{"$f":"IFERROR(INDEX('LFA Expenditure_7B imp-exp'!C$82:C$87,MATCH('LFA Expenditure_7B'!B240,'LFA Expenditure_7B imp-exp'!N$82:N$87,0)),\"\")","v":""},{"$f":"'PR Expenditure_7A'!F241","v":0},null,0,{"$error":"#VALUE!"},null,null,{"$f":"IFERROR(INDEX('LFA Expenditure_7B imp-exp'!J$82:J$87,MATCH('LFA Expenditure_7B'!B240,'LFA Expenditure_7B imp-exp'!N$82:N$87,0)),\"\")","v":""},null,0,{"$error":"#VALUE!"}]
["Don't Show","IP18",{"$f":"IFERROR(INDEX('LFA Expenditure_7B imp-exp'!A$82:A$87,MATCH('LFA Expenditure_7B'!B241,'LFA Expenditure_7B imp-exp'!N$82:N$87,0)),\"\")","v":""},{"$f":"IFERROR(INDEX('LFA Expenditure_7B imp-exp'!B$82:B$87,MATCH('LFA Expenditure_7B'!B241,'LFA Expenditure_7B imp-exp'!N$82:N$87,0)),\"\")","v":""},{"$f":"IFERROR(INDEX('LFA Expenditure_7B imp-exp'!C$82:C$87,MATCH('LFA Expenditure_7B'!B241,'LFA Expenditure_7B imp-exp'!N$82:N$87,0)),\"\")","v":""},{"$f":"'PR Expenditure_7A'!F242","v":0},null,0,{"$error":"#VALUE!"},null,null,{"$f":"IFERROR(INDEX('LFA Expenditure_7B imp-exp'!J$82:J$87,MATCH('LFA Expenditure_7B'!B241,'LFA Expenditure_7B imp-exp'!N$82:N$87,0)),\"\")","v":""},null,0,{"$error":"#VALUE!"}]
["Don't Show","IP19",{"$f":"IFERROR(INDEX('LFA Expenditure_7B imp-exp'!A$82:A$87,MATCH('LFA Expenditure_7B'!B242,'LFA Expenditure_7B imp-exp'!N$82:N$87,0)),\"\")","v":""},{"$f":"IFERROR(INDEX('LFA Expenditure_7B imp-exp'!B$82:B$87,MATCH('LFA Expenditure_7B'!B242,'LFA Expenditure_7B imp-exp'!N$82:N$87,0)),\"\")","v":""},{"$f":"IFERROR(INDEX('LFA Expenditure_7B imp-exp'!C$82:C$87,MATCH('LFA Expenditure_7B'!B242,'LFA Expenditure_7B imp-exp'!N$82:N$87,0)),\"\")","v":""},{"$f":"'PR Expenditure_7A'!F243","v":0},null,0,{"$error":"#VALUE!"},null,null,{"$f":"IFERROR(INDEX('LFA Expenditure_7B imp-exp'!J$82:J$87,MATCH('LFA Expenditure_7B'!B242,'LFA Expenditure_7B imp-exp'!N$82:N$87,0)),\"\")","v":""},null,0,{"$error":"#VALUE!"}]
["Don't Show","IP20",{"$f":"IFERROR(INDEX('LFA Expenditure_7B imp-exp'!A$82:A$87,MATCH('LFA Expenditure_7B'!B243,'LFA Expenditure_7B imp-exp'!N$82:N$87,0)),\"\")","v":""},{"$f":"IFERROR(INDEX('LFA Expenditure_7B imp-exp'!B$82:B$87,MATCH('LFA Expenditure_7B'!B243,'LFA Expenditure_7B imp-exp'!N$82:N$87,0)),\"\")","v":""},{"$f":"IFERROR(INDEX('LFA Expenditure_7B imp-exp'!C$82:C$87,MATCH('LFA Expenditure_7B'!B243,'LFA Expenditure_7B imp-exp'!N$82:N$87,0)),\"\")","v":""},{"$f":"'PR Expenditure_7A'!F244","v":0},null,0,{"$error":"#VALUE!"},null,null,{"$f":"IFERROR(INDEX('LFA Expenditure_7B imp-exp'!J$82:J$87,MATCH('LFA Expenditure_7B'!B243,'LFA Expenditure_7B imp-exp'!N$82:N$87,0)),\"\")","v":""},null,0,{"$error":"#VALUE!"}]
["Don't Show","IP21",{"$f":"IFERROR(INDEX('LFA Expenditure_7B imp-exp'!A$82:A$87,MATCH('LFA Expenditure_7B'!B244,'LFA Expenditure_7B imp-exp'!N$82:N$87,0)),\"\")","v":""},{"$f":"IFERROR(INDEX('LFA Expenditure_7B imp-exp'!B$82:B$87,MATCH('LFA Expenditure_7B'!B244,'LFA Expenditure_7B imp-exp'!N$82:N$87,0)),\"\")","v":""},{"$f":"IFERROR(INDEX('LFA Expenditure_7B imp-exp'!C$82:C$87,MATCH('LFA Expenditure_7B'!B244,'LFA Expenditure_7B imp-exp'!N$82:N$87,0)),\"\")","v":""},{"$f":"'PR Expenditure_7A'!F245","v":0},null,0,{"$error":"#VALUE!"},null,null,{"$f":"IFERROR(INDEX('LFA Expenditure_7B imp-exp'!J$82:J$87,MATCH('LFA Expenditure_7B'!B244,'LFA Expenditure_7B imp-exp'!N$82:N$87,0)),\"\")","v":""},null,0,{"$error":"#VALUE!"}]
["Don't Show","IP22",{"$f":"IFERROR(INDEX('LFA Expenditure_7B imp-exp'!A$82:A$87,MATCH('LFA Expenditure_7B'!B245,'LFA Expenditure_7B imp-exp'!N$82:N$87,0)),\"\")","v":""},{"$f":"IFERROR(INDEX('LFA Expenditure_7B imp-exp'!B$82:B$87,MATCH('LFA Expenditure_7B'!B245,'LFA Expenditure_7B imp-exp'!N$82:N$87,0)),\"\")","v":""},{"$f":"IFERROR(INDEX('LFA Expenditure_7B imp-exp'!C$82:C$87,MATCH('LFA Expenditure_7B'!B245,'LFA Expenditure_7B imp-exp'!N$82:N$87,0)),\"\")","v":""},{"$f":"'PR Expenditure_7A'!F246","v":0},null,0,{"$error":"#VALUE!"},null,null,{"$f":"IFERROR(INDEX('LFA Expenditure_7B imp-exp'!J$82:J$87,MATCH('LFA Expenditure_7B'!B245,'LFA Expenditure_7B imp-exp'!N$82:N$87,0)),\"\")","v":""},null,0,{"$error":"#VALUE!"}]
["Don't Show","IP23",{"$f":"IFERROR(INDEX('LFA Expenditure_7B imp-exp'!A$82:A$87,MATCH('LFA Expenditure_7B'!B246,'LFA Expenditure_7B imp-exp'!N$82:N$87,0)),\"\")","v":""},{"$f":"IFERROR(INDEX('LFA Expenditure_7B imp-exp'!B$82:B$87,MATCH('LFA Expenditure_7B'!B246,'LFA Expenditure_7B imp-exp'!N$82:N$87,0)),\"\")","v":""},{"$f":"IFERROR(INDEX('LFA Expenditure_7B imp-exp'!C$82:C$87,MATCH('LFA Expenditure_7B'!B246,'LFA Expenditure_7B imp-exp'!N$82:N$87,0)),\"\")","v":""},{"$f":"'PR Expenditure_7A'!F247","v":0},null,0,{"$error":"#VALUE!"},null,null,{"$f":"IFERROR(INDEX('LFA Expenditure_7B imp-exp'!J$82:J$87,MATCH('LFA Expenditure_7B'!B246,'LFA Expenditure_7B imp-exp'!N$82:N$87,0)),\"\")","v":""},null,0,{"$error":"#VALUE!"}]
["Don't Show","IP24",{"$f":"IFERROR(INDEX('LFA Expenditure_7B imp-exp'!A$82:A$87,MATCH('LFA Expenditure_7B'!B247,'LFA Expenditure_7B imp-exp'!N$82:N$87,0)),\"\")","v":""},{"$f":"IFERROR(INDEX('LFA Expenditure_7B imp-exp'!B$82:B$87,MATCH('LFA Expenditure_7B'!B247,'LFA Expenditure_7B imp-exp'!N$82:N$87,0)),\"\")","v":""},{"$f":"IFERROR(INDEX('LFA Expenditure_7B imp-exp'!C$82:C$87,MATCH('LFA Expenditure_7B'!B247,'LFA Expenditure_7B imp-exp'!N$82:N$87,0)),\"\")","v":""},{"$f":"'PR Expenditure_7A'!F248","v":0},null,0,{"$error":"#VALUE!"},null,null,{"$f":"IFERROR(INDEX('LFA Expenditure_7B imp-exp'!J$82:J$87,MATCH('LFA Expenditure_7B'!B247,'LFA Expenditure_7B imp-exp'!N$82:N$87,0)),\"\")","v":""},null,0,{"$error":"#VALUE!"}]
["Don't Show","IP25",{"$f":"IFERROR(INDEX('LFA Expenditure_7B imp-exp'!A$82:A$87,MATCH('LFA Expenditure_7B'!B248,'LFA Expenditure_7B imp-exp'!N$82:N$87,0)),\"\")","v":""},{"$f":"IFERROR(INDEX('LFA Expenditure_7B imp-exp'!B$82:B$87,MATCH('LFA Expenditure_7B'!B248,'LFA Expenditure_7B imp-exp'!N$82:N$87,0)),\"\")","v":""},{"$f":"IFERROR(INDEX('LFA Expenditure_7B imp-exp'!C$82:C$87,MATCH('LFA Expenditure_7B'!B248,'LFA Expenditure_7B imp-exp'!N$82:N$87,0)),\"\")","v":""},{"$f":"'PR Expenditure_7A'!F249","v":0},null,0,{"$error":"#VALUE!"},null,null,{"$f":"IFERROR(INDEX('LFA Expenditure_7B imp-exp'!J$82:J$87,MATCH('LFA Expenditure_7B'!B248,'LFA Expenditure_7B imp-exp'!N$82:N$87,0)),\"\")","v":""},null,0,{"$error":"#VALUE!"}]
["Don't Show","IP26",{"$f":"IFERROR(INDEX('LFA Expenditure_7B imp-exp'!A$82:A$87,MATCH('LFA Expenditure_7B'!B249,'LFA Expenditure_7B imp-exp'!N$82:N$87,0)),\"\")","v":""},{"$f":"IFERROR(INDEX('LFA Expenditure_7B imp-exp'!B$82:B$87,MATCH('LFA Expenditure_7B'!B249,'LFA Expenditure_7B imp-exp'!N$82:N$87,0)),\"\")","v":""},{"$f":"IFERROR(INDEX('LFA Expenditure_7B imp-exp'!C$82:C$87,MATCH('LFA Expenditure_7B'!B249,'LFA Expenditure_7B imp-exp'!N$82:N$87,0)),\"\")","v":""},{"$f":"'PR Expenditure_7A'!F250","v":0},null,0,{"$error":"#VALUE!"},null,null,{"$f":"IFERROR(INDEX('LFA Expenditure_7B imp-exp'!J$82:J$87,MATCH('LFA Expenditure_7B'!B249,'LFA Expenditure_7B imp-exp'!N$82:N$87,0)),\"\")","v":""},null,0,{"$error":"#VALUE!"}]
["Don't Show","IP27",{"$f":"IFERROR(INDEX('LFA Expenditure_7B imp-exp'!A$82:A$87,MATCH('LFA Expenditure_7B'!B250,'LFA Expenditure_7B imp-exp'!N$82:N$87,0)),\"\")","v":""},{"$f":"IFERROR(INDEX('LFA Expenditure_7B imp-exp'!B$82:B$87,MATCH('LFA Expenditure_7B'!B250,'LFA Expenditure_7B imp-exp'!N$82:N$87,0)),\"\")","v":""},{"$f":"IFERROR(INDEX('LFA Expenditure_7B imp-exp'!C$82:C$87,MATCH('LFA Expenditure_7B'!B250,'LFA Expenditure_7B imp-exp'!N$82:N$87,0)),\"\")","v":""},{"$f":"'PR Expenditure_7A'!F251","v":0},null,0,{"$error":"#VALUE!"},null,null,{"$f":"IFERROR(INDEX('LFA Expenditure_7B imp-exp'!J$82:J$87,MATCH('LFA Expenditure_7B'!B250,'LFA Expenditure_7B imp-exp'!N$82:N$87,0)),\"\")","v":""},null,0,{"$error":"#VALUE!"}]
["Don't Show","IP28",{"$f":"IFERROR(INDEX('LFA Expenditure_7B imp-exp'!A$82:A$87,MATCH('LFA Expenditure_7B'!B251,'LFA Expenditure_7B imp-exp'!N$82:N$87,0)),\"\")","v":""},{"$f":"IFERROR(INDEX('LFA Expenditure_7B imp-exp'!B$82:B$87,MATCH('LFA Expenditure_7B'!B251,'LFA Expenditure_7B imp-exp'!N$82:N$87,0)),\"\")","v":""},{"$f":"IFERROR(INDEX('LFA Expenditure_7B imp-exp'!C$82:C$87,MATCH('LFA Expenditure_7B'!B251,'LFA Expenditure_7B imp-exp'!N$82:N$87,0)),\"\")","v":""},{"$f":"'PR Expenditure_7A'!F252","v":0},null,0,{"$error":"#VALUE!"},null,null,{"$f":"IFERROR(INDEX('LFA Expenditure_7B imp-exp'!J$82:J$87,MATCH('LFA Expenditure_7B'!B251,'LFA Expenditure_7B imp-exp'!N$82:N$87,0)),\"\")","v":""},null,0,{"$error":"#VALUE!"}]
["Don't Show","IP29",{"$f":"IFERROR(INDEX('LFA Expenditure_7B imp-exp'!A$82:A$87,MATCH('LFA Expenditure_7B'!B252,'LFA Expenditure_7B imp-exp'!N$82:N$87,0)),\"\")","v":""},{"$f":"IFERROR(INDEX('LFA Expenditure_7B imp-exp'!B$82:B$87,MATCH('LFA Expenditure_7B'!B252,'LFA Expenditure_7B imp-exp'!N$82:N$87,0)),\"\")","v":""},{"$f":"IFERROR(INDEX('LFA Expenditure_7B imp-exp'!C$82:C$87,MATCH('LFA Expenditure_7B'!B252,'LFA Expenditure_7B imp-exp'!N$82:N$87,0)),\"\")","v":""},{"$f":"'PR Expenditure_7A'!F253","v":0},null,0,{"$error":"#VALUE!"},null,null,{"$f":"IFERROR(INDEX('LFA Expenditure_7B imp-exp'!J$82:J$87,MATCH('LFA Expenditure_7B'!B252,'LFA Expenditure_7B imp-exp'!N$82:N$87,0)),\"\")","v":""},null,0,{"$error":"#VALUE!"}]
["Don't Show","IP30",{"$f":"IFERROR(INDEX('LFA Expenditure_7B imp-exp'!A$82:A$87,MATCH('LFA Expenditure_7B'!B253,'LFA Expenditure_7B imp-exp'!N$82:N$87,0)),\"\")","v":""},{"$f":"IFERROR(INDEX('LFA Expenditure_7B imp-exp'!B$82:B$87,MATCH('LFA Expenditure_7B'!B253,'LFA Expenditure_7B imp-exp'!N$82:N$87,0)),\"\")","v":""},{"$f":"IFERROR(INDEX('LFA Expenditure_7B imp-exp'!C$82:C$87,MATCH('LFA Expenditure_7B'!B253,'LFA Expenditure_7B imp-exp'!N$82:N$87,0)),\"\")","v":""},{"$f":"'PR Expenditure_7A'!F254","v":0},null,0,{"$error":"#VALUE!"},null,null,{"$f":"IFERROR(INDEX('LFA Expenditure_7B imp-exp'!J$82:J$87,MATCH('LFA Expenditure_7B'!B253,'LFA Expenditure_7B imp-exp'!N$82:N$87,0)),\"\")","v":""},null,0,{"$error":"#VALUE!"}]
["Don't Show","IP31",{"$f":"IFERROR(INDEX('LFA Expenditure_7B imp-exp'!A$82:A$87,MATCH('LFA Expenditure_7B'!B254,'LFA Expenditure_7B imp-exp'!N$82:N$87,0)),\"\")","v":""},{"$f":"IFERROR(INDEX('LFA Expenditure_7B imp-exp'!B$82:B$87,MATCH('LFA Expenditure_7B'!B254,'LFA Expenditure_7B imp-exp'!N$82:N$87,0)),\"\")","v":""},{"$f":"IFERROR(INDEX('LFA Expenditure_7B imp-exp'!C$82:C$87,MATCH('LFA Expenditure_7B'!B254,'LFA Expenditure_7B imp-exp'!N$82:N$87,0)),\"\")","v":""},{"$f":"'PR Expenditure_7A'!F255","v":0},null,0,{"$error":"#VALUE!"},null,null,{"$f":"IFERROR(INDEX('LFA Expenditure_7B imp-exp'!J$82:J$87,MATCH('LFA Expenditure_7B'!B254,'LFA Expenditure_7B imp-exp'!N$82:N$87,0)),\"\")","v":""},null,0,{"$error":"#VALUE!"}]
["Don't Show","IP32",{"$f":"IFERROR(INDEX('LFA Expenditure_7B imp-exp'!A$82:A$87,MATCH('LFA Expenditure_7B'!B255,'LFA Expenditure_7B imp-exp'!N$82:N$87,0)),\"\")","v":""},{"$f":"IFERROR(INDEX('LFA Expenditure_7B imp-exp'!B$82:B$87,MATCH('LFA Expenditure_7B'!B255,'LFA Expenditure_7B imp-exp'!N$82:N$87,0)),\"\")","v":""},{"$f":"IFERROR(INDEX('LFA Expenditure_7B imp-exp'!C$82:C$87,MATCH('LFA Expenditure_7B'!B255,'LFA Expenditure_7B imp-exp'!N$82:N$87,0)),\"\")","v":""},{"$f":"'PR Expenditure_7A'!F256","v":0},null,0,{"$error":"#VALUE!"},null,null,{"$f":"IFERROR(INDEX('LFA Expenditure_7B imp-exp'!J$82:J$87,MATCH('LFA Expenditure_7B'!B255,'LFA Expenditure_7B imp-exp'!N$82:N$87,0)),\"\")","v":""},null,0,{"$error":"#VALUE!"}]
["Don't Show","IP33",{"$f":"IFERROR(INDEX('LFA Expenditure_7B imp-exp'!A$82:A$87,MATCH('LFA Expenditure_7B'!B256,'LFA Expenditure_7B imp-exp'!N$82:N$87,0)),\"\")","v":""},{"$f":"IFERROR(INDEX('LFA Expenditure_7B imp-exp'!B$82:B$87,MATCH('LFA Expenditure_7B'!B256,'LFA Expenditure_7B imp-exp'!N$82:N$87,0)),\"\")","v":""},{"$f":"IFERROR(INDEX('LFA Expenditure_7B imp-exp'!C$82:C$87,MATCH('LFA Expenditure_7B'!B256,'LFA Expenditure_7B imp-exp'!N$82:N$87,0)),\"\")","v":""},{"$f":"'PR Expenditure_7A'!F257","v":0},null,0,{"$error":"#VALUE!"},null,null,{"$f":"IFERROR(INDEX('LFA Expenditure_7B imp-exp'!J$82:J$87,MATCH('LFA Expenditure_7B'!B256,'LFA Expenditure_7B imp-exp'!N$82:N$87,0)),\"\")","v":""},null,0,{"$error":"#VALUE!"}]
["Don't Show","IP34",{"$f":"IFERROR(INDEX('LFA Expenditure_7B imp-exp'!A$82:A$87,MATCH('LFA Expenditure_7B'!B257,'LFA Expenditure_7B imp-exp'!N$82:N$87,0)),\"\")","v":""},{"$f":"IFERROR(INDEX('LFA Expenditure_7B imp-exp'!B$82:B$87,MATCH('LFA Expenditure_7B'!B257,'LFA Expenditure_7B imp-exp'!N$82:N$87,0)),\"\")","v":""},{"$f":"IFERROR(INDEX('LFA Expenditure_7B imp-exp'!C$82:C$87,MATCH('LFA Expenditure_7B'!B257,'LFA Expenditure_7B imp-exp'!N$82:N$87,0)),\"\")","v":""},{"$f":"'PR Expenditure_7A'!F258","v":0},null,0,{"$error":"#VALUE!"},null,null,{"$f":"IFERROR(INDEX('LFA Expenditure_7B imp-exp'!J$82:J$87,MATCH('LFA Expenditure_7B'!B257,'LFA Expenditure_7B imp-exp'!N$82:N$87,0)),\"\")","v":""},null,0,{"$error":"#VALUE!"}]
["Don't Show","IP35",{"$f":"IFERROR(INDEX('LFA Expenditure_7B imp-exp'!A$82:A$87,MATCH('LFA Expenditure_7B'!B258,'LFA Expenditure_7B imp-exp'!N$82:N$87,0)),\"\")","v":""},{"$f":"IFERROR(INDEX('LFA Expenditure_7B imp-exp'!B$82:B$87,MATCH('LFA Expenditure_7B'!B258,'LFA Expenditure_7B imp-exp'!N$82:N$87,0)),\"\")","v":""},{"$f":"IFERROR(INDEX('LFA Expenditure_7B imp-exp'!C$82:C$87,MATCH('LFA Expenditure_7B'!B258,'LFA Expenditure_7B imp-exp'!N$82:N$87,0)),\"\")","v":""},{"$f":"'PR Expenditure_7A'!F259","v":0},null,0,{"$error":"#VALUE!"},null,null,{"$f":"IFERROR(INDEX('LFA Expenditure_7B imp-exp'!J$82:J$87,MATCH('LFA Expenditure_7B'!B258,'LFA Expenditure_7B imp-exp'!N$82:N$87,0)),\"\")","v":""},null,0,{"$error":"#VALUE!"}]
["Don't Show","IP36",{"$f":"IFERROR(INDEX('LFA Expenditure_7B imp-exp'!A$82:A$87,MATCH('LFA Expenditure_7B'!B259,'LFA Expenditure_7B imp-exp'!N$82:N$87,0)),\"\")","v":""},{"$f":"IFERROR(INDEX('LFA Expenditure_7B imp-exp'!B$82:B$87,MATCH('LFA Expenditure_7B'!B259,'LFA Expenditure_7B imp-exp'!N$82:N$87,0)),\"\")","v":""},{"$f":"IFERROR(INDEX('LFA Expenditure_7B imp-exp'!C$82:C$87,MATCH('LFA Expenditure_7B'!B259,'LFA Expenditure_7B imp-exp'!N$82:N$87,0)),\"\")","v":""},{"$f":"'PR Expenditure_7A'!F260","v":0},null,0,{"$error":"#VALUE!"},null,null,{"$f":"IFERROR(INDEX('LFA Expenditure_7B imp-exp'!J$82:J$87,MATCH('LFA Expenditure_7B'!B259,'LFA Expenditure_7B imp-exp'!N$82:N$87,0)),\"\")","v":""},null,0,{"$error":"#VALUE!"}]
["Don't Show","IP37",{"$f":"IFERROR(INDEX('LFA Expenditure_7B imp-exp'!A$82:A$87,MATCH('LFA Expenditure_7B'!B260,'LFA Expenditure_7B imp-exp'!N$82:N$87,0)),\"\")","v":""},{"$f":"IFERROR(INDEX('LFA Expenditure_7B imp-exp'!B$82:B$87,MATCH('LFA Expenditure_7B'!B260,'LFA Expenditure_7B imp-exp'!N$82:N$87,0)),\"\")","v":""},{"$f":"IFERROR(INDEX('LFA Expenditure_7B imp-exp'!C$82:C$87,MATCH('LFA Expenditure_7B'!B260,'LFA Expenditure_7B imp-exp'!N$82:N$87,0)),\"\")","v":""},{"$f":"'PR Expenditure_7A'!F261","v":0},null,0,{"$error":"#VALUE!"},null,null,{"$f":"IFERROR(INDEX('LFA Expenditure_7B imp-exp'!J$82:J$87,MATCH('LFA Expenditure_7B'!B260,'LFA Expenditure_7B imp-exp'!N$82:N$87,0)),\"\")","v":""},null,0,{"$error":"#VALUE!"}]
["Don't Show","IP38",{"$f":"IFERROR(INDEX('LFA Expenditure_7B imp-exp'!A$82:A$87,MATCH('LFA Expenditure_7B'!B261,'LFA Expenditure_7B imp-exp'!N$82:N$87,0)),\"\")","v":""},{"$f":"IFERROR(INDEX('LFA Expenditure_7B imp-exp'!B$82:B$87,MATCH('LFA Expenditure_7B'!B261,'LFA Expenditure_7B imp-exp'!N$82:N$87,0)),\"\")","v":""},{"$f":"IFERROR(INDEX('LFA Expenditure_7B imp-exp'!C$82:C$87,MATCH('LFA Expenditure_7B'!B261,'LFA Expenditure_7B imp-exp'!N$82:N$87,0)),\"\")","v":""},{"$f":"'PR Expenditure_7A'!F262","v":0},null,0,{"$error":"#VALUE!"},null,null,{"$f":"IFERROR(INDEX('LFA Expenditure_7B imp-exp'!J$82:J$87,MATCH('LFA Expenditure_7B'!B261,'LFA Expenditure_7B imp-exp'!N$82:N$87,0)),\"\")","v":""},null,0,{"$error":"#VALUE!"}]
["Don't Show","IP39",{"$f":"IFERROR(INDEX('LFA Expenditure_7B imp-exp'!A$82:A$87,MATCH('LFA Expenditure_7B'!B262,'LFA Expenditure_7B imp-exp'!N$82:N$87,0)),\"\")","v":""},{"$f":"IFERROR(INDEX('LFA Expenditure_7B imp-exp'!B$82:B$87,MATCH('LFA Expenditure_7B'!B262,'LFA Expenditure_7B imp-exp'!N$82:N$87,0)),\"\")","v":""},{"$f":"IFERROR(INDEX('LFA Expenditure_7B imp-exp'!C$82:C$87,MATCH('LFA Expenditure_7B'!B262,'LFA Expenditure_7B imp-exp'!N$82:N$87,0)),\"\")","v":""},{"$f":"'PR Expenditure_7A'!F263","v":0},null,0,{"$error":"#VALUE!"},null,null,{"$f":"IFERROR(INDEX('LFA Expenditure_7B imp-exp'!J$82:J$87,MATCH('LFA Expenditure_7B'!B262,'LFA Expenditure_7B imp-exp'!N$82:N$87,0)),\"\")","v":""},null,0,{"$error":"#VALUE!"}]
["Don't Show","IP40",{"$f":"IFERROR(INDEX('LFA Expenditure_7B imp-exp'!A$82:A$87,MATCH('LFA Expenditure_7B'!B263,'LFA Expenditure_7B imp-exp'!N$82:N$87,0)),\"\")","v":""},{"$f":"IFERROR(INDEX('LFA Expenditure_7B imp-exp'!B$82:B$87,MATCH('LFA Expenditure_7B'!B263,'LFA Expenditure_7B imp-exp'!N$82:N$87,0)),\"\")","v":""},{"$f":"IFERROR(INDEX('LFA Expenditure_7B imp-exp'!C$82:C$87,MATCH('LFA Expenditure_7B'!B263,'LFA Expenditure_7B imp-exp'!N$82:N$87,0)),\"\")","v":""},{"$f":"'PR Expenditure_7A'!F264","v":0},null,0,{"$error":"#VALUE!"},null,null,{"$f":"IFERROR(INDEX('LFA Expenditure_7B imp-exp'!J$82:J$87,MATCH('LFA Expenditure_7B'!B263,'LFA Expenditure_7B imp-exp'!N$82:N$87,0)),\"\")","v":""},null,0,{"$error":"#VALUE!"}]
["Don't Show","IP41",{"$f":"IFERROR(INDEX('LFA Expenditure_7B imp-exp'!A$82:A$87,MATCH('LFA Expenditure_7B'!B264,'LFA Expenditure_7B imp-exp'!N$82:N$87,0)),\"\")","v":""},{"$f":"IFERROR(INDEX('LFA Expenditure_7B imp-exp'!B$82:B$87,MATCH('LFA Expenditure_7B'!B264,'LFA Expenditure_7B imp-exp'!N$82:N$87,0)),\"\")","v":""},{"$f":"IFERROR(INDEX('LFA Expenditure_7B imp-exp'!C$82:C$87,MATCH('LFA Expenditure_7B'!B264,'LFA Expenditure_7B imp-exp'!N$82:N$87,0)),\"\")","v":""},{"$f":"'PR Expenditure_7A'!F265","v":0},null,0,{"$error":"#VALUE!"},null,null,{"$f":"IFERROR(INDEX('LFA Expenditure_7B imp-exp'!J$82:J$87,MATCH('LFA Expenditure_7B'!B264,'LFA Expenditure_7B imp-exp'!N$82:N$87,0)),\"\")","v":""},null,0,{"$error":"#VALUE!"}]
["Don't Show","IP42",{"$f":"IFERROR(INDEX('LFA Expenditure_7B imp-exp'!A$82:A$87,MATCH('LFA Expenditure_7B'!B265,'LFA Expenditure_7B imp-exp'!N$82:N$87,0)),\"\")","v":""},{"$f":"IFERROR(INDEX('LFA Expenditure_7B imp-exp'!B$82:B$87,MATCH('LFA Expenditure_7B'!B265,'LFA Expenditure_7B imp-exp'!N$82:N$87,0)),\"\")","v":""},{"$f":"IFERROR(INDEX('LFA Expenditure_7B imp-exp'!C$82:C$87,MATCH('LFA Expenditure_7B'!B265,'LFA Expenditure_7B imp-exp'!N$82:N$87,0)),\"\")","v":""},{"$f":"'PR Expenditure_7A'!F266","v":0},null,0,{"$error":"#VALUE!"},null,null,{"$f":"IFERROR(INDEX('LFA Expenditure_7B imp-exp'!J$82:J$87,MATCH('LFA Expenditure_7B'!B265,'LFA Expenditure_7B imp-exp'!N$82:N$87,0)),\"\")","v":""},null,0,{"$error":"#VALUE!"}]
["Don't Show","IP43",{"$f":"IFERROR(INDEX('LFA Expenditure_7B imp-exp'!A$82:A$87,MATCH('LFA Expenditure_7B'!B266,'LFA Expenditure_7B imp-exp'!N$82:N$87,0)),\"\")","v":""},{"$f":"IFERROR(INDEX('LFA Expenditure_7B imp-exp'!B$82:B$87,MATCH('LFA Expenditure_7B'!B266,'LFA Expenditure_7B imp-exp'!N$82:N$87,0)),\"\")","v":""},{"$f":"IFERROR(INDEX('LFA Expenditure_7B imp-exp'!C$82:C$87,MATCH('LFA Expenditure_7B'!B266,'LFA Expenditure_7B imp-exp'!N$82:N$87,0)),\"\")","v":""},{"$f":"'PR Expenditure_7A'!F267","v":0},null,{"$f":"IFERROR((E266)-(F266+G266),0)","v":0},{"$f":"IF(AND((E266)=0,(F266+G266)=0),\"N/A\",IF(AND((E266)=0,(F266+G266)<>0),\"Not Budgeted\",(F266+G266)/(E266)))","v":{"$error":"#VALUE!"}},null,null,{"$f":"IFERROR(INDEX('LFA Expenditure_7B imp-exp'!J$82:J$87,MATCH('LFA Expenditure_7B'!B266,'LFA Expenditure_7B imp-exp'!N$82:N$87,0)),\"\")","v":""},null,0,{"$error":"#VALUE!"}]
["Don't Show","IP44",{"$f":"IFERROR(INDEX('LFA Expenditure_7B imp-exp'!A$82:A$87,MATCH('LFA Expenditure_7B'!B267,'LFA Expenditure_7B imp-exp'!N$82:N$87,0)),\"\")","v":""},{"$f":"IFERROR(INDEX('LFA Expenditure_7B imp-exp'!B$82:B$87,MATCH('LFA Expenditure_7B'!B267,'LFA Expenditure_7B imp-exp'!N$82:N$87,0)),\"\")","v":""},{"$f":"IFERROR(INDEX('LFA Expenditure_7B imp-exp'!C$82:C$87,MATCH('LFA Expenditure_7B'!B267,'LFA Expenditure_7B imp-exp'!N$82:N$87,0)),\"\")","v":""},{"$f":"'PR Expenditure_7A'!F268","v":0},null,0,{"$error":"#VALUE!"},null,null,{"$f":"IFERROR(INDEX('LFA Expenditure_7B imp-exp'!J$82:J$87,MATCH('LFA Expenditure_7B'!B267,'LFA Expenditure_7B imp-exp'!N$82:N$87,0)),\"\")","v":""},null,0,{"$error":"#VALUE!"}]
["Don't Show","IP45",{"$f":"IFERROR(INDEX('LFA Expenditure_7B imp-exp'!A$82:A$87,MATCH('LFA Expenditure_7B'!B268,'LFA Expenditure_7B imp-exp'!N$82:N$87,0)),\"\")","v":""},{"$f":"IFERROR(INDEX('LFA Expenditure_7B imp-exp'!B$82:B$87,MATCH('LFA Expenditure_7B'!B268,'LFA Expenditure_7B imp-exp'!N$82:N$87,0)),\"\")","v":""},{"$f":"IFERROR(INDEX('LFA Expenditure_7B imp-exp'!C$82:C$87,MATCH('LFA Expenditure_7B'!B268,'LFA Expenditure_7B imp-exp'!N$82:N$87,0)),\"\")","v":""},{"$f":"'PR Expenditure_7A'!F269","v":0},null,0,{"$error":"#VALUE!"},null,null,{"$f":"IFERROR(INDEX('LFA Expenditure_7B imp-exp'!J$82:J$87,MATCH('LFA Expenditure_7B'!B268,'LFA Expenditure_7B imp-exp'!N$82:N$87,0)),\"\")","v":""},null,0,{"$error":"#VALUE!"}]
["Don't Show","IP46",{"$f":"IFERROR(INDEX('LFA Expenditure_7B imp-exp'!A$82:A$87,MATCH('LFA Expenditure_7B'!B269,'LFA Expenditure_7B imp-exp'!N$82:N$87,0)),\"\")","v":""},{"$f":"IFERROR(INDEX('LFA Expenditure_7B imp-exp'!B$82:B$87,MATCH('LFA Expenditure_7B'!B269,'LFA Expenditure_7B imp-exp'!N$82:N$87,0)),\"\")","v":""},{"$f":"IFERROR(INDEX('LFA Expenditure_7B imp-exp'!C$82:C$87,MATCH('LFA Expenditure_7B'!B269,'LFA Expenditure_7B imp-exp'!N$82:N$87,0)),\"\")","v":""},{"$f":"'PR Expenditure_7A'!F270","v":0},null,0,{"$error":"#VALUE!"},null,null,{"$f":"IFERROR(INDEX('LFA Expenditure_7B imp-exp'!J$82:J$87,MATCH('LFA Expenditure_7B'!B269,'LFA Expenditure_7B imp-exp'!N$82:N$87,0)),\"\")","v":""},null,0,{"$error":"#VALUE!"}]
["Don't Show","IP47",{"$f":"IFERROR(INDEX('LFA Expenditure_7B imp-exp'!A$82:A$87,MATCH('LFA Expenditure_7B'!B270,'LFA Expenditure_7B imp-exp'!N$82:N$87,0)),\"\")","v":""},{"$f":"IFERROR(INDEX('LFA Expenditure_7B imp-exp'!B$82:B$87,MATCH('LFA Expenditure_7B'!B270,'LFA Expenditure_7B imp-exp'!N$82:N$87,0)),\"\")","v":""},{"$f":"IFERROR(INDEX('LFA Expenditure_7B imp-exp'!C$82:C$87,MATCH('LFA Expenditure_7B'!B270,'LFA Expenditure_7B imp-exp'!N$82:N$87,0)),\"\")","v":""},{"$f":"'PR Expenditure_7A'!F271","v":0},null,0,{"$error":"#VALUE!"},null,null,{"$f":"IFERROR(INDEX('LFA Expenditure_7B imp-exp'!J$82:J$87,MATCH('LFA Expenditure_7B'!B270,'LFA Expenditure_7B imp-exp'!N$82:N$87,0)),\"\")","v":""},null,0,{"$error":"#VALUE!"}]
["Don't Show","IP48",{"$f":"IFERROR(INDEX('LFA Expenditure_7B imp-exp'!A$82:A$87,MATCH('LFA Expenditure_7B'!B271,'LFA Expenditure_7B imp-exp'!N$82:N$87,0)),\"\")","v":""},{"$f":"IFERROR(INDEX('LFA Expenditure_7B imp-exp'!B$82:B$87,MATCH('LFA Expenditure_7B'!B271,'LFA Expenditure_7B imp-exp'!N$82:N$87,0)),\"\")","v":""},{"$f":"IFERROR(INDEX('LFA Expenditure_7B imp-exp'!C$82:C$87,MATCH('LFA Expenditure_7B'!B271,'LFA Expenditure_7B imp-exp'!N$82:N$87,0)),\"\")","v":""},{"$f":"'PR Expenditure_7A'!F272","v":0},null,0,{"$error":"#VALUE!"},null,null,{"$f":"IFERROR(INDEX('LFA Expenditure_7B imp-exp'!J$82:J$87,MATCH('LFA Expenditure_7B'!B271,'LFA Expenditure_7B imp-exp'!N$82:N$87,0)),\"\")","v":""},null,0,{"$error":"#VALUE!"}]
["Don't Show","IP49",{"$f":"IFERROR(INDEX('LFA Expenditure_7B imp-exp'!A$82:A$87,MATCH('LFA Expenditure_7B'!B272,'LFA Expenditure_7B imp-exp'!N$82:N$87,0)),\"\")","v":""},{"$f":"IFERROR(INDEX('LFA Expenditure_7B imp-exp'!B$82:B$87,MATCH('LFA Expenditure_7B'!B272,'LFA Expenditure_7B imp-exp'!N$82:N$87,0)),\"\")","v":""},{"$f":"IFERROR(INDEX('LFA Expenditure_7B imp-exp'!C$82:C$87,MATCH('LFA Expenditure_7B'!B272,'LFA Expenditure_7B imp-exp'!N$82:N$87,0)),\"\")","v":""},{"$f":"'PR Expenditure_7A'!F273","v":0},null,0,{"$error":"#VALUE!"},null,null,{"$f":"IFERROR(INDEX('LFA Expenditure_7B imp-exp'!J$82:J$87,MATCH('LFA Expenditure_7B'!B272,'LFA Expenditure_7B imp-exp'!N$82:N$87,0)),\"\")","v":""},null,0,{"$error":"#VALUE!"}]
["Don't Show","IP50",{"$f":"IFERROR(INDEX('LFA Expenditure_7B imp-exp'!A$82:A$87,MATCH('LFA Expenditure_7B'!B273,'LFA Expenditure_7B imp-exp'!N$82:N$87,0)),\"\")","v":""},{"$f":"IFERROR(INDEX('LFA Expenditure_7B imp-exp'!B$82:B$87,MATCH('LFA Expenditure_7B'!B273,'LFA Expenditure_7B imp-exp'!N$82:N$87,0)),\"\")","v":""},{"$f":"IFERROR(INDEX('LFA Expenditure_7B imp-exp'!C$82:C$87,MATCH('LFA Expenditure_7B'!B273,'LFA Expenditure_7B imp-exp'!N$82:N$87,0)),\"\")","v":""},{"$f":"'PR Expenditure_7A'!F274","v":0},null,0,{"$error":"#VALUE!"},null,null,{"$f":"IFERROR(INDEX('LFA Expenditure_7B imp-exp'!J$82:J$87,MATCH('LFA Expenditure_7B'!B273,'LFA Expenditure_7B imp-exp'!N$82:N$87,0)),\"\")","v":""},null,0,{"$error":"#VALUE!"}]
["Show",null,"Grand Total",null,{"$f":"ROUND(SUM(E224:E273),2)","v":5743857.3399999999},{"$f":"ROUND(SUM(F224:F273),2)","v":1056654.67},{"$f":"ROUND(SUM(G224:G273),2)","v":0},{"$f":"ROUND(SUM(H224:H273),2)","v":4687202.67},{"$f":"(F274+G274)/E274","v":0.18396255468280831},null,null,{"$f":"ROUND(SUM(L224:L273),2)","v":5743857.3399999999},{"$f":"ROUND(SUM(M224:M273),2)","v":0},{"$f":"ROUND(SUM(N224:N273),2)","v":5743857.3399999999},{"$f":"M274/L274","v":0}]
["Show"]
["Show"]
["Show",null,"Validation of Grand Total ",null,{"$f":"IF(AND(ROUND(E98,0)=ROUND(E219,0),ROUND(E274,0)=ROUND(E219,0)),\"OK\",\"WARNING - Sum of the three tables not matching\")","v":"OK"},{"$f":"IF(AND(ROUND(F98,0)=ROUND(F219,0),ROUND(F274,0)=ROUND(F219,0)),\"OK\",\"WARNING - Sum of the three tables not matching\")","v":"WARNING - Sum of the three tables not matching"},{"$f":"IF(AND(ROUND(G98,0)=ROUND(G219,0),ROUND(G274,0)=ROUND(G219,0)),\"OK\",\"WARNING - Sum of the three tables not matching\")","v":"OK"},null,null,null,null,{"$f":"IF(AND(ROUND(L98,0)=ROUND(L219,0),ROUND(L219,0)=ROUND(L274,0)),\"OK\",\"WARNING - Sum of the three tables not matching\")","v":"OK"},{"$f":"IF(AND(ROUND(M98,0)=ROUND(M219,0),ROUND(M219,0)=ROUND(M274,0)),\"OK\",\"WARNING - Sum of the three tables not matching\")","v":"OK"}]

{"sheet":"LFA Expenditure_7B imp-exp","index":33,"n_rows":86,"n_cols":19,"rows_kept":86,"cut":false,"hidden":true,"merged":[]}
["Costing Dimension (Cost Grouping or Cost Input)",null,"Budget for Reporting Period","Actual Expenditure ","Local Fund Agent Adjustment on Expenditures","Budget Vs Actual Variances","Absorption Rate","LFA comments on the Principal Recipient's explanation of variances",-1,"Cumulative Budget","Cumulative Actual Expenditure","Cumulative Budget Vs Actuals Variances","Absorption Rate",-1,"Record ID","Cost Grouping Number","Cost Grouping Number"]
["[Costing Dimension (Cost Grouping)]",null,"[Budget for Reporting Period]",null,{"$f":"IFERROR(INDEX('LFA Expenditure_7B'!G$8:G$97,MATCH('LFA Expenditure_7B imp-exp'!N2,'LFA Expenditure_7B'!B$8:B$97,0)),\"\")","v":""},null,null,null,{"$f":"I1+1","v":0},"[Cumulative Budget]",{"$f":"IFERROR(INDEX('LFA Expenditure_7B'!M$8:M$97,MATCH('LFA Expenditure_7B imp-exp'!N2,'LFA Expenditure_7B'!B$8:B$97,0)),\"\")","v":""},null,null,{"$f":"\"Costgrp\"&I2","v":"Costgrp0"},"[Record ID]","[Cost Grouping Number]","[Cost Grouping Number]"]
["1. Human Resources (HR)",null,1353058.12011834,null,{"$f":"IFERROR(INDEX('LFA Expenditure_7B'!G$8:G$97,MATCH('LFA Expenditure_7B imp-exp'!N3,'LFA Expenditure_7B'!B$8:B$97,0)),\"\")","v":0},null,null,null,{"$f":"I2+1","v":1},1353058.12011834,{"$f":"IFERROR(INDEX('LFA Expenditure_7B'!M$8:M$97,MATCH('LFA Expenditure_7B imp-exp'!N3,'LFA Expenditure_7B'!B$8:B$97,0)),\"\")","v":0},null,null,{"$f":"\"Costgrp\"&I3","v":"Costgrp1"},"a2G36000001u8EVEAY",null,1]
["10. Communication Material and Publications (CMP)",null,86236.2105099576,null,{"$f":"IFERROR(INDEX('LFA Expenditure_7B'!G$8:G$97,MATCH('LFA Expenditure_7B imp-exp'!N4,'LFA Expenditure_7B'!B$8:B$97,0)),\"\")","v":0},null,null,null,2,86236.2105099576,{"$f":"IFERROR(INDEX('LFA Expenditure_7B'!M$8:M$97,MATCH('LFA Expenditure_7B imp-exp'!N4,'LFA Expenditure_7B'!B$8:B$97,0)),\"\")","v":0},null,null,"Costgrp2","a2G36000001u8DgEAI",null,10]
["11. Programme Administration costs (PA)",null,516491.998233644,null,{"$f":"IFERROR(INDEX('LFA Expenditure_7B'!G$8:G$97,MATCH('LFA Expenditure_7B imp-exp'!N5,'LFA Expenditure_7B'!B$8:B$97,0)),\"\")","v":0},null,null,null,3,516491.998233644,{"$f":"IFERROR(INDEX('LFA Expenditure_7B'!M$8:M$97,MATCH('LFA Expenditure_7B imp-exp'!N5,'LFA Expenditure_7B'!B$8:B$97,0)),\"\")","v":0},null,null,"Costgrp3","a2G36000001u8ECEAY",null,11]
["12. Living support to client/ target population (LSCTP)",null,315099.605819922,null,{"$f":"IFERROR(INDEX('LFA Expenditure_7B'!G$8:G$97,MATCH('LFA Expenditure_7B imp-exp'!N6,'LFA Expenditure_7B'!B$8:B$97,0)),\"\")","v":0},null,null,null,4,315099.605819922,{"$f":"IFERROR(INDEX('LFA Expenditure_7B'!M$8:M$97,MATCH('LFA Expenditure_7B imp-exp'!N6,'LFA Expenditure_7B'!B$8:B$97,0)),\"\")","v":0},null,null,"Costgrp4","a2G36000001u8E2EAI",null,12]
["13. Payment for Results",null,0,null,{"$f":"IFERROR(INDEX('LFA Expenditure_7B'!G$8:G$97,MATCH('LFA Expenditure_7B imp-exp'!N7,'LFA Expenditure_7B'!B$8:B$97,0)),\"\")","v":0},null,null,null,5,0,{"$f":"IFERROR(INDEX('LFA Expenditure_7B'!M$8:M$97,MATCH('LFA Expenditure_7B imp-exp'!N7,'LFA Expenditure_7B'!B$8:B$97,0)),\"\")","v":0},null,null,"Costgrp5","a2G36000001u8FCEAY",null,13]
["2. Travel related costs (TRC)",null,696858.44104419602,null,{"$f":"IFERROR(INDEX('LFA Expenditure_7B'!G$8:G$97,MATCH('LFA Expenditure_7B imp-exp'!N8,'LFA Expenditure_7B'!B$8:B$97,0)),\"\")","v":0},null,null,null,6,696858.44104419602,{"$f":"IFERROR(INDEX('LFA Expenditure_7B'!M$8:M$97,MATCH('LFA Expenditure_7B imp-exp'!N8,'LFA Expenditure_7B'!B$8:B$97,0)),\"\")","v":0},null,null,"Costgrp6","a2G36000001u8DiEAI",null,2]
["3. External Professional services (EPS)",null,91784.324300579901,null,{"$f":"IFERROR(INDEX('LFA Expenditure_7B'!G$8:G$97,MATCH('LFA Expenditure_7B imp-exp'!N9,'LFA Expenditure_7B'!B$8:B$97,0)),\"\")","v":0},null,null,null,7,91784.324300579901,{"$f":"IFERROR(INDEX('LFA Expenditure_7B'!M$8:M$97,MATCH('LFA Expenditure_7B imp-exp'!N9,'LFA Expenditure_7B'!B$8:B$97,0)),\"\")","v":0},null,null,"Costgrp7","a2G36000001u8EIEAY",null,3]
["4. Health Products - Pharmaceutical Products (HPPP)",null,1001500.19,null,{"$f":"IFERROR(INDEX('LFA Expenditure_7B'!G$8:G$97,MATCH('LFA Expenditure_7B imp-exp'!N10,'LFA Expenditure_7B'!B$8:B$97,0)),\"\")","v":0},null,null,null,8,1001500.19,{"$f":"IFERROR(INDEX('LFA Expenditure_7B'!M$8:M$97,MATCH('LFA Expenditure_7B imp-exp'!N10,'LFA Expenditure_7B'!B$8:B$97,0)),\"\")","v":0},null,null,"Costgrp8","a2G36000001u8EAEAY",null,4]
["5. Health Products - Non-Pharmaceuticals (HPNP)",null,766761.02,null,{"$f":"IFERROR(INDEX('LFA Expenditure_7B'!G$8:G$97,MATCH('LFA Expenditure_7B imp-exp'!N11,'LFA Expenditure_7B'!B$8:B$97,0)),\"\")","v":0},null,null,null,9,766761.02,{"$f":"IFERROR(INDEX('LFA Expenditure_7B'!M$8:M$97,MATCH('LFA Expenditure_7B imp-exp'!N11,'LFA Expenditure_7B'!B$8:B$97,0)),\"\")","v":0},null,null,"Costgrp9","a2G36000001u8DsEAI",null,5]
["6. Health Products - Equipment (HPE)",null,299259.82,null,{"$f":"IFERROR(INDEX('LFA Expenditure_7B'!G$8:G$97,MATCH('LFA Expenditure_7B imp-exp'!N12,'LFA Expenditure_7B'!B$8:B$97,0)),\"\")","v":0},null,null,null,10,299259.82,{"$f":"IFERROR(INDEX('LFA Expenditure_7B'!M$8:M$97,MATCH('LFA Expenditure_7B imp-exp'!N12,'LFA Expenditure_7B'!B$8:B$97,0)),\"\")","v":0},null,null,"Costgrp10","a2G36000001u8DnEAI",null,6]
["7. Procurement and Supply-Chain Management costs (PSM)",null,528283.17775999999,null,{"$f":"IFERROR(INDEX('LFA Expenditure_7B'!G$8:G$97,MATCH('LFA Expenditure_7B imp-exp'!N13,'LFA Expenditure_7B'!B$8:B$97,0)),\"\")","v":0},null,null,null,11,528283.17775999999,{"$f":"IFERROR(INDEX('LFA Expenditure_7B'!M$8:M$97,MATCH('LFA Expenditure_7B imp-exp'!N13,'LFA Expenditure_7B'!B$8:B$97,0)),\"\")","v":0},null,null,"Costgrp11","a2G36000001u8DqEAI",null,7]
["8. Infrastructure (INF)",null,24155,null,{"$f":"IFERROR(INDEX('LFA Expenditure_7B'!G$8:G$97,MATCH('LFA Expenditure_7B imp-exp'!N14,'LFA Expenditure_7B'!B$8:B$97,0)),\"\")","v":0},null,null,null,12,24155,{"$f":"IFERROR(INDEX('LFA Expenditure_7B'!M$8:M$97,MATCH('LFA Expenditure_7B imp-exp'!N14,'LFA Expenditure_7B'!B$8:B$97,0)),\"\")","v":0},null,null,"Costgrp12","a2G36000001u8EZEAY",null,8]
["9. Non-health equipment (NHP)",null,64369.436087100003,null,{"$f":"IFERROR(INDEX('LFA Expenditure_7B'!G$8:G$97,MATCH('LFA Expenditure_7B imp-exp'!N15,'LFA Expenditure_7B'!B$8:B$97,0)),\"\")","v":0},null,null,null,13,64369.436087100003,{"$f":"IFERROR(INDEX('LFA Expenditure_7B'!M$8:M$97,MATCH('LFA Expenditure_7B imp-exp'!N15,'LFA Expenditure_7B'!B$8:B$97,0)),\"\")","v":0},null,null,"Costgrp13","a2G36000001u8EREAY",null,9]
["Costing Dimension (Cost Input)",null,"Budget for Reporting Period",null,"LFA Adjustment on Expenditures",null,null,null,-1,"Cumulative Budget","LFA Cumulative Expenditures",null,null,null,"Record ID","Cost Grouping Number","Cost Input Number"]
["[Costing Dimension (Cost Input)]",null,"[Budget for Reporting Period]",{"$f":"'PR Expenditure_7A'!#REF!","v":{"$error":"#REF!"}},{"$f":"IFERROR(INDEX('LFA Expenditure_7B'!G$8:G$97,MATCH('LFA Expenditure_7B imp-exp'!N17,'LFA Expenditure_7B'!B$8:B$67,0)),\"\")","v":""},null,null,null,{"$f":"I16+1","v":0},"[Cumulative Budget]",{"$f":"IFERROR(INDEX('LFA Expenditure_7B'!M$8:M$97,MATCH('LFA Expenditure_7B imp-exp'!N17,'LFA Expenditure_7B'!B$8:B$97,0)),\"\")","v":""},null,null,{"$f":"\"Costgrp\"&I17","v":"Costgrp0"},"[Record ID]","[Cost Grouping Number]","[Cost Input Number]"]
[null,null,"Budget for Reporting Period",null,"LFA Adjustment on Expenditures",null,null,null,-1,"Cumulative Budget","LFA Cumulative Expenditures",null,null,null,"Record ID",null,null,null,"Cost Input"]
[{"$f":"IFERROR(INDEX('LFA Expenditure_7B'!C$68:C$97,MATCH('LFA Expenditure_7B imp-exp'!N19,'LFA Expenditure_7B'!B$68:B$97,0)),\"\")","v":""},null,"[Budget for Reporting Period]",{"$f":"'PR Expenditure_7A'!F69","v":0},{"$f":"IFERROR(INDEX('LFA Expenditure_7B'!G$68:G$97,MATCH('LFA Expenditure_7B imp-exp'!N19,'LFA Expenditure_7B'!B$68:B$97,0)),\"\")","v":""},null,null,null,0,"[Cumulative Budget]",{"$f":"IFERROR(INDEX('LFA Expenditure_7B'!M$68:M$97,MATCH('LFA Expenditure_7B imp-exp'!N19,'LFA Expenditure_7B'!B$68:B$97,0)),\"\")","v":""},null,null,{"$f":"\"NewCostgrp\"","v":"NewCostgrp"},"[Record ID]",null,null,null,{"$f":"IF(A19<>\"\",VLOOKUP(A19,'Reference Records'!$E$221:$G$222,3,FALSE),\"\")","v":""}]
[]
["Modular Approach - Modules","Modular Approach - Interventions","Budget for Reporting Period","Actual Expenditure ","Local Fund Agent Adjustment on Expenditures","Budget Vs Actual Variances","Absorption Rate","LFA comments on the Principal Recipient's explanation of variances",-1,"Cumulative Budget","Cumulative Actual Expenditure","Cumulative Budget Vs Actuals Variances","Absorption Rate",null,"Record ID"]
["[Module]","[Intervention]","[Budget for Reporting Period]",{"$f":"'PR Expenditure_7A'!F104","v":0},{"$f":"IFERROR(INDEX('LFA Expenditure_7B'!G$103:G$202,MATCH('LFA Expenditure_7B imp-exp'!N22,'LFA Expenditure_7B'!B$103:B$202,0)),\"\")","v":""},null,null,null,{"$f":"I21+1","v":0},"[Cumulative Budget]",{"$f":"IFERROR(INDEX('LFA Expenditure_7B'!M$103:M$202,MATCH('LFA Expenditure_7B imp-exp'!N22,'LFA Expenditure_7B'!B$103:B$202,0)),\"\")","v":""},null,null,{"$f":"\"Int\"&I22","v":"Int0"},"[Record ID]"]
["Comprehensive prevention programs for people who inject drugs (PWID) and their partners","Behavioral interventions for PWID",4785.3220048031899,{"$f":"'PR Expenditure_7A'!F105","v":78714.19},{"$f":"IFERROR(INDEX('LFA Expenditure_7B'!G$103:G$202,MATCH('LFA Expenditure_7B imp-exp'!N23,'LFA Expenditure_7B'!B$103:B$202,0)),\"\")","v":0},null,null,null,{"$f":"I22+1","v":1},4785.3220048031899,{"$f":"IFERROR(INDEX('LFA Expenditure_7B'!M$103:M$202,MATCH('LFA Expenditure_7B imp-exp'!N23,'LFA Expenditure_7B'!B$103:B$202,0)),\"\")","v":0},null,null,{"$f":"\"Int\"&I23","v":"Int1"},"a2G36000001u8DeEAI"]
["TB care and prevention","Case detection and diagnosis",493731.80463605799,{"$f":"'PR Expenditure_7A'!F106","v":0},{"$f":"IFERROR(INDEX('LFA Expenditure_7B'!G$103:G$202,MATCH('LFA Expenditure_7B imp-exp'!N24,'LFA Expenditure_7B'!B$103:B$202,0)),\"\")","v":0},null,null,null,2,493731.80463605799,{"$f":"IFERROR(INDEX('LFA Expenditure_7B'!M$103:M$202,MATCH('LFA Expenditure_7B imp-exp'!N24,'LFA Expenditure_7B'!B$103:B$202,0)),\"\")","v":0},null,null,"Int2","a2G36000001u8DkEAI"]
["TB care and prevention","Key populations (TB care and prevention) - Others",72478.276440338203,{"$f":"'PR Expenditure_7A'!F107","v":0},{"$f":"IFERROR(INDEX('LFA Expenditure_7B'!G$103:G$202,MATCH('LFA Expenditure_7B imp-exp'!N25,'LFA Expenditure_7B'!B$103:B$202,0)),\"\")","v":0},null,null,null,3,72478.276440338203,{"$f":"IFERROR(INDEX('LFA Expenditure_7B'!M$103:M$202,MATCH('LFA Expenditure_7B imp-exp'!N25,'LFA Expenditure_7B'!B$103:B$202,0)),\"\")","v":0},null,null,"Int3","a2G36000001u8E4EAI"]
["TB care and prevention","Key populations (TB care and prevention) - Prisoners",6043.4606260430601,{"$f":"'PR Expenditure_7A'!F108","v":3264.29},{"$f":"IFERROR(INDEX('LFA Expenditure_7B'!G$103:G$202,MATCH('LFA Expenditure_7B imp-exp'!N26,'LFA Expenditure_7B'!B$103:B$202,0)),\"\")","v":0},null,null,null,4,6043.4606260430601,{"$f":"IFERROR(INDEX('LFA Expenditure_7B'!M$103:M$202,MATCH('LFA Expenditure_7B imp-exp'!N26,'LFA Expenditure_7B'!B$103:B$202,0)),\"\")","v":0},null,null,"Int4","a2G36000001u8E7EAI"]
["TB care and prevention","Prevention",6342.4190506292398,{"$f":"'PR Expenditure_7A'!F109","v":0},{"$f":"IFERROR(INDEX('LFA Expenditure_7B'!G$103:G$202,MATCH('LFA Expenditure_7B imp-exp'!N27,'LFA Expenditure_7B'!B$103:B$202,0)),\"\")","v":0},null,null,null,5,6342.4190506292398,{"$f":"IFERROR(INDEX('LFA Expenditure_7B'!M$103:M$202,MATCH('LFA Expenditure_7B imp-exp'!N27,'LFA Expenditure_7B'!B$103:B$202,0)),\"\")","v":0},null,null,"Int5","a2G36000001u8E8EAI"]
["TB care and prevention","Treatment",357853.41919894703,{"$f":"'PR Expenditure_7A'!F110","v":0},{"$f":"IFERROR(INDEX('LFA Expenditure_7B'!G$103:G$202,MATCH('LFA Expenditure_7B imp-exp'!N28,'LFA Expenditure_7B'!B$103:B$202,0)),\"\")","v":0},null,null,null,6,357853.41919894703,{"$f":"IFERROR(INDEX('LFA Expenditure_7B'!M$103:M$202,MATCH('LFA Expenditure_7B imp-exp'!N28,'LFA Expenditure_7B'!B$103:B$202,0)),\"\")","v":0},null,null,"Int6","a2G36000001u8E9EAI"]
["TB care and prevention","Community TB care delivery",25604.313853560099,{"$f":"'PR Expenditure_7A'!F111","v":2235.81},{"$f":"IFERROR(INDEX('LFA Expenditure_7B'!G$103:G$202,MATCH('LFA Expenditure_7B imp-exp'!N29,'LFA Expenditure_7B'!B$103:B$202,0)),\"\")","v":0},null,null,null,7,25604.313853560099,{"$f":"IFERROR(INDEX('LFA Expenditure_7B'!M$103:M$202,MATCH('LFA Expenditure_7B imp-exp'!N29,'LFA Expenditure_7B'!B$103:B$202,0)),\"\")","v":0},null,null,"Int7","a2G36000001u8EEEAY"]
["RSSH: Health management information systems and M&E","Analysis, review and transparency",139624.95862256401,{"$f":"'PR Expenditure_7A'!F112","v":0},{"$f":"IFERROR(INDEX('LFA Expenditure_7B'!G$103:G$202,MATCH('LFA Expenditure_7B imp-exp'!N30,'LFA Expenditure_7B'!B$103:B$202,0)),\"\")","v":0},null,null,null,8,139624.95862256401,{"$f":"IFERROR(INDEX('LFA Expenditure_7B'!M$103:M$202,MATCH('LFA Expenditure_7B imp-exp'!N30,'LFA Expenditure_7B'!B$103:B$202,0)),\"\")","v":0},null,null,"Int8","a2G36000001u8EHEAY"]
["RSSH: Health management information systems and M&E","Surveys",64020.761629238899,{"$f":"'PR Expenditure_7A'!F113","v":0},{"$f":"IFERROR(INDEX('LFA Expenditure_7B'!G$103:G$202,MATCH('LFA Expenditure_7B imp-exp'!N31,'LFA Expenditure_7B'!B$103:B$202,0)),\"\")","v":0},null,null,null,9,64020.761629238899,{"$f":"IFERROR(INDEX('LFA Expenditure_7B'!M$103:M$202,MATCH('LFA Expenditure_7B imp-exp'!N31,'LFA Expenditure_7B'!B$103:B$202,0)),\"\")","v":0},null,null,"Int9","a2G36000001u8EMEAY"]
["RSSH: Health management information systems and M&E","Routine reporting",47163.540788967002,{"$f":"'PR Expenditure_7A'!F114","v":423.64},{"$f":"IFERROR(INDEX('LFA Expenditure_7B'!G$103:G$202,MATCH('LFA Expenditure_7B imp-exp'!N32,'LFA Expenditure_7B'!B$103:B$202,0)),\"\")","v":0},null,null,null,10,47163.540788967002,{"$f":"IFERROR(INDEX('LFA Expenditure_7B'!M$103:M$202,MATCH('LFA Expenditure_7B imp-exp'!N32,'LFA Expenditure_7B'!B$103:B$202,0)),\"\")","v":0},null,null,"Int10","a2G36000001u8ENEAY"]
["MDR-TB","Treatment: MDR-TB",259329.99478294401,{"$f":"'PR Expenditure_7A'!F115","v":0},{"$f":"IFERROR(INDEX('LFA Expenditure_7B'!G$103:G$202,MATCH('LFA Expenditure_7B imp-exp'!N33,'LFA Expenditure_7B'!B$103:B$202,0)),\"\")","v":0},null,null,null,11,259329.99478294401,{"$f":"IFERROR(INDEX('LFA Expenditure_7B'!M$103:M$202,MATCH('LFA Expenditure_7B imp-exp'!N33,'LFA Expenditure_7B'!B$103:B$202,0)),\"\")","v":0},null,null,"Int11","a2G36000001u8EOEAY"]
["TB/HIV","TB/HIV collaborative interventions",119955.192915333,{"$f":"'PR Expenditure_7A'!F116","v":419380.18},{"$f":"IFERROR(INDEX('LFA Expenditure_7B'!G$103:G$202,MATCH('LFA Expenditure_7B imp-exp'!N34,'LFA Expenditure_7B'!B$103:B$202,0)),\"\")","v":0},null,null,null,12,119955.192915333,{"$f":"IFERROR(INDEX('LFA Expenditure_7B'!M$103:M$202,MATCH('LFA Expenditure_7B imp-exp'!N34,'LFA Expenditure_7B'!B$103:B$202,0)),\"\")","v":0},null,null,"Int12","a2G36000001u8ETEAY"]
["Program management","Grant management",1194123.21398953,{"$f":"'PR Expenditure_7A'!F117","v":21752.21},{"$f":"IFERROR(INDEX('LFA Expenditure_7B'!G$103:G$202,MATCH('LFA Expenditure_7B imp-exp'!N35,'LFA Expenditure_7B'!B$103:B$202,0)),\"\")","v":0},null,null,null,13,1194123.21398953,{"$f":"IFERROR(INDEX('LFA Expenditure_7B'!M$103:M$202,MATCH('LFA Expenditure_7B imp-exp'!N35,'LFA Expenditure_7B'!B$103:B$202,0)),\"\")","v":0},null,null,"Int13","a2G36000001u8EUEAY"]
["Program management","Policy, planning, coordination and management of national disease control programs",105015.23784608601,{"$f":"'PR Expenditure_7A'!F118","v":0},{"$f":"IFERROR(INDEX('LFA Expenditure_7B'!G$103:G$202,MATCH('LFA Expenditure_7B imp-exp'!N36,'LFA Expenditure_7B'!B$103:B$202,0)),\"\")","v":0},null,null,null,14,105015.23784608601,{"$f":"IFERROR(INDEX('LFA Expenditure_7B'!M$103:M$202,MATCH('LFA Expenditure_7B imp-exp'!N36,'LFA Expenditure_7B'!B$103:B$202,0)),\"\")","v":0},null,null,"Int14","a2G36000001u8EeEAI"]
["PMTCT","Prong 1: Primary prevention of HIV infection among women of childbearing age",13826.315722405699,{"$f":"'PR Expenditure_7A'!F119","v":198607.02000000002},{"$f":"IFERROR(INDEX('LFA Expenditure_7B'!G$103:G$202,MATCH('LFA Expenditure_7B imp-exp'!N37,'LFA Expenditure_7B'!B$103:B$202,0)),\"\")","v":0},null,null,null,15,13826.315722405699,{"$f":"IFERROR(INDEX('LFA Expenditure_7B'!M$103:M$202,MATCH('LFA Expenditure_7B imp-exp'!N37,'LFA Expenditure_7B'!B$103:B$202,0)),\"\")","v":0},null,null,"Int15","a2G36000001u8EgEAI"]
["PMTCT","Prong 3: Preventing vertical HIV transmission",384400.03818272002,{"$f":"'PR Expenditure_7A'!F120","v":0},{"$f":"IFERROR(INDEX('LFA Expenditure_7B'!G$103:G$202,MATCH('LFA Expenditure_7B imp-exp'!N38,'LFA Expenditure_7B'!B$103:B$202,0)),\"\")","v":0},null,null,null,16,384400.03818272002,{"$f":"IFERROR(INDEX('LFA Expenditure_7B'!M$103:M$202,MATCH('LFA Expenditure_7B imp-exp'!N38,'LFA Expenditure_7B'!B$103:B$202,0)),\"\")","v":0},null,null,"Int16","a2G36000001u8EhEAI"]
["PMTCT","Prong 4: Treatment, care and support to mothers living with HIV, their children and families",60388.725055484501,{"$f":"'PR Expenditure_7A'!F121","v":29446.54},{"$f":"IFERROR(INDEX('LFA Expenditure_7B'!G$103:G$202,MATCH('LFA Expenditure_7B imp-exp'!N39,'LFA Expenditure_7B'!B$103:B$202,0)),\"\")","v":0},null,null,null,17,60388.725055484501,{"$f":"IFERROR(INDEX('LFA Expenditure_7B'!M$103:M$202,MATCH('LFA Expenditure_7B imp-exp'!N39,'LFA Expenditure_7B'!B$103:B$202,0)),\"\")","v":0},null,null,"Int17","a2G36000001u8EjEAI"]
["Prevention programs for general population","Other intervention(s) for general population",181903.66182593201,{"$f":"'PR Expenditure_7A'!F122","v":0},{"$f":"IFERROR(INDEX('LFA Expenditure_7B'!G$103:G$202,MATCH('LFA Expenditure_7B imp-exp'!N40,'LFA Expenditure_7B'!B$103:B$202,0)),\"\")","v":0},null,null,null,18,181903.66182593201,{"$f":"IFERROR(INDEX('LFA Expenditure_7B'!M$103:M$202,MATCH('LFA Expenditure_7B imp-exp'!N40,'LFA Expenditure_7B'!B$103:B$202,0)),\"\")","v":0},null,null,"Int18","a2G36000001u8EkEAI"]
["PMTCT","Other intervention(s) for PMTCT",9533.6468086751993,{"$f":"'PR Expenditure_7A'!F123","v":0},{"$f":"IFERROR(INDEX('LFA Expenditure_7B'!G$103:G$202,MATCH('LFA Expenditure_7B imp-exp'!N41,'LFA Expenditure_7B'!B$103:B$202,0)),\"\")","v":0},null,null,null,19,9533.6468086751993,{"$f":"IFERROR(INDEX('LFA Expenditure_7B'!M$103:M$202,MATCH('LFA Expenditure_7B imp-exp'!N41,'LFA Expenditure_7B'!B$103:B$202,0)),\"\")","v":0},null,null,"Int19","a2G36000001u8ElEAI"]
["Comprehensive prevention programs for MSM","Behavioral interventions for MSM",3050.9540104395401,{"$f":"'PR Expenditure_7A'!F124","v":0},{"$f":"IFERROR(INDEX('LFA Expenditure_7B'!G$103:G$202,MATCH('LFA Expenditure_7B imp-exp'!N42,'LFA Expenditure_7B'!B$103:B$202,0)),\"\")","v":0},null,null,null,20,3050.9540104395401,{"$f":"IFERROR(INDEX('LFA Expenditure_7B'!M$103:M$202,MATCH('LFA Expenditure_7B imp-exp'!N42,'LFA Expenditure_7B'!B$103:B$202,0)),\"\")","v":0},null,null,"Int20","a2G36000001u8EmEAI"]
["Comprehensive prevention programs for MSM","Condoms and lubricant programming for MSM",4355.5682197850601,{"$f":"'PR Expenditure_7A'!F125","v":0},{"$f":"IFERROR(INDEX('LFA Expenditure_7B'!G$103:G$202,MATCH('LFA Expenditure_7B imp-exp'!N43,'LFA Expenditure_7B'!B$103:B$202,0)),\"\")","v":0},null,null,null,21,4355.5682197850601,{"$f":"IFERROR(INDEX('LFA Expenditure_7B'!M$103:M$202,MATCH('LFA Expenditure_7B imp-exp'!N43,'LFA Expenditure_7B'!B$103:B$202,0)),\"\")","v":0},null,null,"Int21","a2G36000001u8EnEAI"]
["Comprehensive prevention programs for MSM","Other intervention(s) for MSM",15504.729687797,{"$f":"'PR Expenditure_7A'!F126","v":0},{"$f":"IFERROR(INDEX('LFA Expenditure_7B'!G$103:G$202,MATCH('LFA Expenditure_7B imp-exp'!N44,'LFA Expenditure_7B'!B$103:B$202,0)),\"\")","v":0},null,null,null,22,15504.729687797,{"$f":"IFERROR(INDEX('LFA Expenditure_7B'!M$103:M$202,MATCH('LFA Expenditure_7B imp-exp'!N44,'LFA Expenditure_7B'!B$103:B$202,0)),\"\")","v":0},null,null,"Int22","a2G36000001u8EpEAI"]
["Comprehensive prevention programs for sex workers and their clients","Behavioral interventions for sex workers",4684.6755908956002,{"$f":"'PR Expenditure_7A'!F127","v":0},{"$f":"IFERROR(INDEX('LFA Expenditure_7B'!G$103:G$202,MATCH('LFA Expenditure_7B imp-exp'!N45,'LFA Expenditure_7B'!B$103:B$202,0)),\"\")","v":0},null,null,null,23,4684.6755908956002,{"$f":"IFERROR(INDEX('LFA Expenditure_7B'!M$103:M$202,MATCH('LFA Expenditure_7B imp-exp'!N45,'LFA Expenditure_7B'!B$103:B$202,0)),\"\")","v":0},null,null,"Int23","a2G36000001u8ErEAI"]
["Comprehensive prevention programs for sex workers and their clients","Condoms and lubricant programming for sex workers",12736.7704611305,{"$f":"'PR Expenditure_7A'!F128","v":0},{"$f":"IFERROR(INDEX('LFA Expenditure_7B'!G$103:G$202,MATCH('LFA Expenditure_7B imp-exp'!N46,'LFA Expenditure_7B'!B$103:B$202,0)),\"\")","v":0},null,null,null,24,12736.7704611305,{"$f":"IFERROR(INDEX('LFA Expenditure_7B'!M$103:M$202,MATCH('LFA Expenditure_7B imp-exp'!N46,'LFA Expenditure_7B'!B$103:B$202,0)),\"\")","v":0},null,null,"Int24","a2G36000001u8EsEAI"]
["Comprehensive prevention programs for sex workers and their clients","Other intervention(s) for sex workers and their clients",14728.743498673601,{"$f":"'PR Expenditure_7A'!F129","v":0},{"$f":"IFERROR(INDEX('LFA Expenditure_7B'!G$103:G$202,MATCH('LFA Expenditure_7B imp-exp'!N47,'LFA Expenditure_7B'!B$103:B$202,0)),\"\")","v":0},null,null,null,25,14728.743498673601,{"$f":"IFERROR(INDEX('LFA Expenditure_7B'!M$103:M$202,MATCH('LFA Expenditure_7B imp-exp'!N47,'LFA Expenditure_7B'!B$103:B$202,0)),\"\")","v":0},null,null,"Int25","a2G36000001u8EtEAI"]
["Comprehensive prevention programs for people who inject drugs (PWID) and their partners","Other intervention(s) for IDUs and their partners",6814.0310795609803,{"$f":"'PR Expenditure_7A'!F130","v":16803.640000000003},{"$f":"IFERROR(INDEX('LFA Expenditure_7B'!G$103:G$202,MATCH('LFA Expenditure_7B imp-exp'!N48,'LFA Expenditure_7B'!B$103:B$202,0)),\"\")","v":0},null,null,null,26,6814.0310795609803,{"$f":"IFERROR(INDEX('LFA Expenditure_7B'!M$103:M$202,MATCH('LFA Expenditure_7B imp-exp'!N48,'LFA Expenditure_7B'!B$103:B$202,0)),\"\")","v":0},null,null,"Int26","a2G36000001u8EuEAI"]
["Prevention programs for general population","Behavioral interventions as part of programs for general population",65947.805029686395,{"$f":"'PR Expenditure_7A'!F131","v":0},{"$f":"IFERROR(INDEX('LFA Expenditure_7B'!G$103:G$202,MATCH('LFA Expenditure_7B imp-exp'!N49,'LFA Expenditure_7B'!B$103:B$202,0)),\"\")","v":0},null,null,null,27,65947.805029686395,{"$f":"IFERROR(INDEX('LFA Expenditure_7B'!M$103:M$202,MATCH('LFA Expenditure_7B imp-exp'!N49,'LFA Expenditure_7B'!B$103:B$202,0)),\"\")","v":0},null,null,"Int27","a2G36000001u8EvEAI"]
["Prevention programs for other vulnerable populations","HIV testing services for other vulnerable populations",30050.76,{"$f":"'PR Expenditure_7A'!F132","v":0},{"$f":"IFERROR(INDEX('LFA Expenditure_7B'!G$103:G$202,MATCH('LFA Expenditure_7B imp-exp'!N50,'LFA Expenditure_7B'!B$103:B$202,0)),\"\")","v":0},null,null,null,28,30050.76,{"$f":"IFERROR(INDEX('LFA Expenditure_7B'!M$103:M$202,MATCH('LFA Expenditure_7B imp-exp'!N50,'LFA Expenditure_7B'!B$103:B$202,0)),\"\")","v":0},null,null,"Int28","a2G36000001u8EwEAI"]
["HIV Testing Services","Differentiated HIV testing services",22346.450776106001,{"$f":"'PR Expenditure_7A'!F133","v":0},{"$f":"IFERROR(INDEX('LFA Expenditure_7B'!G$103:G$202,MATCH('LFA Expenditure_7B imp-exp'!N51,'LFA Expenditure_7B'!B$103:B$202,0)),\"\")","v":0},null,null,null,29,22346.450776106001,{"$f":"IFERROR(INDEX('LFA Expenditure_7B'!M$103:M$202,MATCH('LFA Expenditure_7B imp-exp'!N51,'LFA Expenditure_7B'!B$103:B$202,0)),\"\")","v":0},null,null,"Int29","a2G36000001u8ExEAI"]
["RSSH: Integrated service delivery and quality improvement","Laboratory systems for disease prevention, control, treatment and disease surveillance",25407.761478241398,{"$f":"'PR Expenditure_7A'!F134","v":7909.39},{"$f":"IFERROR(INDEX('LFA Expenditure_7B'!G$103:G$202,MATCH('LFA Expenditure_7B imp-exp'!N52,'LFA Expenditure_7B'!B$103:B$202,0)),\"\")","v":0},null,null,null,30,25407.761478241398,{"$f":"IFERROR(INDEX('LFA Expenditure_7B'!M$103:M$202,MATCH('LFA Expenditure_7B imp-exp'!N52,'LFA Expenditure_7B'!B$103:B$202,0)),\"\")","v":0},null,null,"Int30","a2G36000001u8EyEAI"]
["RSSH: Health management information systems and M&E","Program and data quality",100573.092865479,{"$f":"'PR Expenditure_7A'!F135","v":262869.64},{"$f":"IFERROR(INDEX('LFA Expenditure_7B'!G$103:G$202,MATCH('LFA Expenditure_7B imp-exp'!N53,'LFA Expenditure_7B'!B$103:B$202,0)),\"\")","v":0},null,null,null,31,100573.092865479,{"$f":"IFERROR(INDEX('LFA Expenditure_7B'!M$103:M$202,MATCH('LFA Expenditure_7B imp-exp'!N53,'LFA Expenditure_7B'!B$103:B$202,0)),\"\")","v":0},null,null,"Int31","a2G36000001u8EzEAI"]
["Treatment, care and support","Counseling and psycho-social support",511140.51779259299,{"$f":"'PR Expenditure_7A'!F136","v":0},{"$f":"IFERROR(INDEX('LFA Expenditure_7B'!G$103:G$202,MATCH('LFA Expenditure_7B imp-exp'!N54,'LFA Expenditure_7B'!B$103:B$202,0)),\"\")","v":0},null,null,null,32,511140.51779259299,{"$f":"IFERROR(INDEX('LFA Expenditure_7B'!M$103:M$202,MATCH('LFA Expenditure_7B imp-exp'!N54,'LFA Expenditure_7B'!B$103:B$202,0)),\"\")","v":0},null,null,"Int32","a2G36000001u8F0EAI"]
["Treatment, care and support","Other intervention(s) for treatment",286684.78582535899,{"$f":"'PR Expenditure_7A'!F137","v":0},{"$f":"IFERROR(INDEX('LFA Expenditure_7B'!G$103:G$202,MATCH('LFA Expenditure_7B imp-exp'!N55,'LFA Expenditure_7B'!B$103:B$202,0)),\"\")","v":0},null,null,null,33,286684.78582535899,{"$f":"IFERROR(INDEX('LFA Expenditure_7B'!M$103:M$202,MATCH('LFA Expenditure_7B imp-exp'!N55,'LFA Expenditure_7B'!B$103:B$202,0)),\"\")","v":0},null,null,"Int33","a2G36000001u8F1EAI"]
["Treatment, care and support","Differentiated ART service delivery",184474.30067366801,{"$f":"'PR Expenditure_7A'!F138","v":0},{"$f":"IFERROR(INDEX('LFA Expenditure_7B'!G$103:G$202,MATCH('LFA Expenditure_7B imp-exp'!N56,'LFA Expenditure_7B'!B$103:B$202,0)),\"\")","v":0},null,null,null,34,184474.30067366801,{"$f":"IFERROR(INDEX('LFA Expenditure_7B'!M$103:M$202,MATCH('LFA Expenditure_7B imp-exp'!N56,'LFA Expenditure_7B'!B$103:B$202,0)),\"\")","v":0},null,null,"Int34","a2G36000001u8F2EAI"]
["Treatment, care and support","Prevention, diagnosis and treatment of opportunistic infections",97428.235622955603,{"$f":"'PR Expenditure_7A'!F139","v":8035.57},{"$f":"IFERROR(INDEX('LFA Expenditure_7B'!G$103:G$202,MATCH('LFA Expenditure_7B imp-exp'!N57,'LFA Expenditure_7B'!B$103:B$202,0)),\"\")","v":0},null,null,null,35,97428.235622955603,{"$f":"IFERROR(INDEX('LFA Expenditure_7B'!M$103:M$202,MATCH('LFA Expenditure_7B imp-exp'!N57,'LFA Expenditure_7B'!B$103:B$202,0)),\"\")","v":0},null,null,"Int35","a2G36000001u8F3EAI"]
["Treatment, care and support","HIV care",247804.2,{"$f":"'PR Expenditure_7A'!F140","v":7212.55},{"$f":"IFERROR(INDEX('LFA Expenditure_7B'!G$103:G$202,MATCH('LFA Expenditure_7B imp-exp'!N58,'LFA Expenditure_7B'!B$103:B$202,0)),\"\")","v":0},null,null,null,36,247804.2,{"$f":"IFERROR(INDEX('LFA Expenditure_7B'!M$103:M$202,MATCH('LFA Expenditure_7B imp-exp'!N58,'LFA Expenditure_7B'!B$103:B$202,0)),\"\")","v":0},null,null,"Int36","a2G36000001u8F6EAI"]
["Treatment, care and support","Treatment monitoring - Viral load",367814.462461319,{"$f":"'PR Expenditure_7A'!F141","v":0},{"$f":"IFERROR(INDEX('LFA Expenditure_7B'!G$103:G$202,MATCH('LFA Expenditure_7B imp-exp'!N59,'LFA Expenditure_7B'!B$103:B$202,0)),\"\")","v":0},null,null,null,37,367814.462461319,{"$f":"IFERROR(INDEX('LFA Expenditure_7B'!M$103:M$202,MATCH('LFA Expenditure_7B imp-exp'!N59,'LFA Expenditure_7B'!B$103:B$202,0)),\"\")","v":0},null,null,"Int37","a2G36000001u8F7EAI"]
["Treatment, care and support","Treatment monitoring - Drug resistance surveillance",166001.67000000001,{"$f":"'PR Expenditure_7A'!F142","v":0},{"$f":"IFERROR(INDEX('LFA Expenditure_7B'!G$103:G$202,MATCH('LFA Expenditure_7B imp-exp'!N60,'LFA Expenditure_7B'!B$103:B$202,0)),\"\")","v":0},null,null,null,38,166001.67000000001,{"$f":"IFERROR(INDEX('LFA Expenditure_7B'!M$103:M$202,MATCH('LFA Expenditure_7B imp-exp'!N60,'LFA Expenditure_7B'!B$103:B$202,0)),\"\")","v":0},null,null,"Int38","a2G36000001u8F9EAI"]
["Comprehensive prevention programs for sex workers and their clients","HIV testing services for sex workers",183.52481978506,{"$f":"'PR Expenditure_7A'!F143","v":0},{"$f":"IFERROR(INDEX('LFA Expenditure_7B'!G$103:G$202,MATCH('LFA Expenditure_7B imp-exp'!N61,'LFA Expenditure_7B'!B$103:B$202,0)),\"\")","v":0},null,null,null,39,183.52481978506,{"$f":"IFERROR(INDEX('LFA Expenditure_7B'!M$103:M$202,MATCH('LFA Expenditure_7B imp-exp'!N61,'LFA Expenditure_7B'!B$103:B$202,0)),\"\")","v":0},null,null,"Int39","a2G36000001u8FAEAY"]
["Prevention programs for general population","Gender-based violence prevention and treatment programs for general population",30000,{"$f":"'PR Expenditure_7A'!F144","v":0},{"$f":"IFERROR(INDEX('LFA Expenditure_7B'!G$103:G$202,MATCH('LFA Expenditure_7B imp-exp'!N62,'LFA Expenditure_7B'!B$103:B$202,0)),\"\")","v":0},null,null,null,40,30000,{"$f":"IFERROR(INDEX('LFA Expenditure_7B'!M$103:M$202,MATCH('LFA Expenditure_7B imp-exp'!N62,'LFA Expenditure_7B'!B$103:B$202,0)),\"\")","v":0},null,null,"Int40","a2G36000001u8FBEAY"]
["Module","Intervention","Budget for Reporting Period",null,"LFA Adjustment on Expenditures",null,null,null,-1,"Cumulative Budget","LFA Cumulative Expenditures",null,null,null,"Module",null,"Record ID"]
[{"$f":"IFERROR(IF(INDEX('LFA Expenditure_7B'!C203:C218,MATCH(N64,'LFA Expenditure_7B'!B$203:B$218,0))=\"\",\"\",INDEX('LFA Expenditure_7B'!C203:C218,MATCH(N64,'LFA Expenditure_7B'!B$203:B$218,0))),\"\")","v":""},{"$f":"IFERROR(IF(INDEX('LFA Expenditure_7B'!D203:D218,MATCH(N64,'LFA Expenditure_7B'!B$203:B$218,0))=\"\",\"\",INDEX('LFA Expenditure_7B'!D203:D218,MATCH(N64,'LFA Expenditure_7B'!B$203:B$218,0))),\"\")","v":""},"[Budget for Reporting Period]",{"$f":"'PR Expenditure_7A'!F204","v":0},{"$f":"IFERROR(INDEX('LFA Expenditure_7B'!G203:G218,MATCH(N64,'LFA Expenditure_7B'!B$203:B$218,0)),\"\")","v":""},null,null,null,{"$f":"I63+1","v":0},"[Cumulative Budget]",{"$f":"IFERROR(INDEX('LFA Expenditure_7B'!M203:M218,MATCH(N64,'LFA Expenditure_7B'!B$203:B$218,0)),\"\")","v":""},null,null,{"$f":"\"Intcustom\"&I64","v":"Intcustom0"},{"$f":"IFERROR(IF(VLOOKUP(A64,'Reference Records'!$B$13:$D$48,3,FALSE)=0,\"\",VLOOKUP(A64,'Reference Records'!$B$13:$D$48,3,FALSE)),\"\")","v":""},null,"[Record ID]"]
[{"$f":"IFERROR(IF(INDEX('LFA Expenditure_7B'!C204:C219,MATCH(N65,'LFA Expenditure_7B'!B$203:B$218,0))=\"\",\"\",INDEX('LFA Expenditure_7B'!C204:C219,MATCH(N65,'LFA Expenditure_7B'!B$203:B$218,0))),\"\")","v":""},{"$f":"IFERROR(IF(INDEX('LFA Expenditure_7B'!D204:D219,MATCH(N65,'LFA Expenditure_7B'!B$203:B$218,0))=\"\",\"\",INDEX('LFA Expenditure_7B'!D204:D219,MATCH(N65,'LFA Expenditure_7B'!B$203:B$218,0))),\"\")","v":""},0,{"$f":"'PR Expenditure_7A'!F205","v":0},{"$f":"IFERROR(INDEX('LFA Expenditure_7B'!G204:G219,MATCH(N65,'LFA Expenditure_7B'!B$203:B$218,0)),\"\")","v":0},null,null,null,{"$f":"I64+1","v":1},0,{"$f":"IFERROR(INDEX('LFA Expenditure_7B'!M204:M219,MATCH(N65,'LFA Expenditure_7B'!B$203:B$218,0)),\"\")","v":0},null,null,{"$f":"\"Intcustom\"&I65","v":"Intcustom1"},{"$f":"IFERROR(IF(VLOOKUP(A65,'Reference Records'!$B$13:$D$48,3,FALSE)=0,\"\",VLOOKUP(A65,'Reference Records'!$B$13:$D$48,3,FALSE)),\"\")","v":""},null,"a2G36000001u8FDEAY"]
[{"$f":"IFERROR(IF(INDEX('LFA Expenditure_7B'!C205:C220,MATCH(N66,'LFA Expenditure_7B'!B$203:B$218,0))=\"\",\"\",INDEX('LFA Expenditure_7B'!C205:C220,MATCH(N66,'LFA Expenditure_7B'!B$203:B$218,0))),\"\")","v":""},{"$f":"IFERROR(IF(INDEX('LFA Expenditure_7B'!D205:D220,MATCH(N66,'LFA Expenditure_7B'!B$203:B$218,0))=\"\",\"\",INDEX('LFA Expenditure_7B'!D205:D220,MATCH(N66,'LFA Expenditure_7B'!B$203:B$218,0))),\"\")","v":""},0,{"$f":"'PR Expenditure_7A'!F206","v":0},{"$f":"IFERROR(INDEX('LFA Expenditure_7B'!G205:G220,MATCH(N66,'LFA Expenditure_7B'!B$203:B$218,0)),\"\")","v":0},null,null,null,2,0,{"$f":"IFERROR(INDEX('LFA Expenditure_7B'!M205:M220,MATCH(N66,'LFA Expenditure_7B'!B$203:B$218,0)),\"\")","v":0},null,null,"Intcustom2",{"$f":"IFERROR(IF(VLOOKUP(A66,'Reference Records'!$B$13:$D$48,3,FALSE)=0,\"\",VLOOKUP(A66,'Reference Records'!$B$13:$D$48,3,FALSE)),\"\")","v":""},null,"a2G36000001u8FEEAY"]
[{"$f":"IFERROR(IF(INDEX('LFA Expenditure_7B'!C206:C221,MATCH(N67,'LFA Expenditure_7B'!B$203:B$218,0))=\"\",\"\",INDEX('LFA Expenditure_7B'!C206:C221,MATCH(N67,'LFA Expenditure_7B'!B$203:B$218,0))),\"\")","v":""},{"$f":"IFERROR(IF(INDEX('LFA Expenditure_7B'!D206:D221,MATCH(N67,'LFA Expenditure_7B'!B$203:B$218,0))=\"\",\"\",INDEX('LFA Expenditure_7B'!D206:D221,MATCH(N67,'LFA Expenditure_7B'!B$203:B$218,0))),\"\")","v":""},0,{"$f":"'PR Expenditure_7A'!F207","v":0},{"$f":"IFERROR(INDEX('LFA Expenditure_7B'!G206:G221,MATCH(N67,'LFA Expenditure_7B'!B$203:B$218,0)),\"\")","v":0},null,null,null,3,0,{"$f":"IFERROR(INDEX('LFA Expenditure_7B'!M206:M221,MATCH(N67,'LFA Expenditure_7B'!B$203:B$218,0)),\"\")","v":0},null,null,"Intcustom3",{"$f":"IFERROR(IF(VLOOKUP(A67,'Reference Records'!$B$13:$D$48,3,FALSE)=0,\"\",VLOOKUP(A67,'Reference Records'!$B$13:$D$48,3,FALSE)),\"\")","v":""},null,"a2G36000001u8FFEAY"]
[{"$f":"IFERROR(IF(INDEX('LFA Expenditure_7B'!C207:C222,MATCH(N68,'LFA Expenditure_7B'!B$203:B$218,0))=\"\",\"\",INDEX('LFA Expenditure_7B'!C207:C222,MATCH(N68,'LFA Expenditure_7B'!B$203:B$218,0))),\"\")","v":""},{"$f":"IFERROR(IF(INDEX('LFA Expenditure_7B'!D207:D222,MATCH(N68,'LFA Expenditure_7B'!B$203:B$218,0))=\"\",\"\",INDEX('LFA Expenditure_7B'!D207:D222,MATCH(N68,'LFA Expenditure_7B'!B$203:B$218,0))),\"\")","v":""},0,{"$f":"'PR Expenditure_7A'!F208","v":0},{"$f":"IFERROR(INDEX('LFA Expenditure_7B'!G207:G222,MATCH(N68,'LFA Expenditure_7B'!B$203:B$218,0)),\"\")","v":0},null,null,null,4,0,{"$f":"IFERROR(INDEX('LFA Expenditure_7B'!M207:M222,MATCH(N68,'LFA Expenditure_7B'!B$203:B$218,0)),\"\")","v":0},null,null,"Intcustom4",{"$f":"IFERROR(IF(VLOOKUP(A68,'Reference Records'!$B$13:$D$48,3,FALSE)=0,\"\",VLOOKUP(A68,'Reference Records'!$B$13:$D$48,3,FALSE)),\"\")","v":""},null,"a2G36000001u8FGEAY"]
[{"$f":"IFERROR(IF(INDEX('LFA Expenditure_7B'!C208:C223,MATCH(N69,'LFA Expenditure_7B'!B$203:B$218,0))=\"\",\"\",INDEX('LFA Expenditure_7B'!C208:C223,MATCH(N69,'LFA Expenditure_7B'!B$203:B$218,0))),\"\")","v":""},{"$f":"IFERROR(IF(INDEX('LFA Expenditure_7B'!D208:D223,MATCH(N69,'LFA Expenditure_7B'!B$203:B$218,0))=\"\",\"\",INDEX('LFA Expenditure_7B'!D208:D223,MATCH(N69,'LFA Expenditure_7B'!B$203:B$218,0))),\"\")","v":""},0,{"$f":"'PR Expenditure_7A'!F209","v":0},{"$f":"IFERROR(INDEX('LFA Expenditure_7B'!G208:G223,MATCH(N69,'LFA Expenditure_7B'!B$203:B$218,0)),\"\")","v":0},null,null,null,5,0,{"$f":"IFERROR(INDEX('LFA Expenditure_7B'!M208:M223,MATCH(N69,'LFA Expenditure_7B'!B$203:B$218,0)),\"\")","v":0},null,null,"Intcustom5",{"$f":"IFERROR(IF(VLOOKUP(A69,'Reference Records'!$B$13:$D$48,3,FALSE)=0,\"\",VLOOKUP(A69,'Reference Records'!$B$13:$D$48,3,FALSE)),\"\")","v":""},null,"a2G36000001u8FHEAY"]
[{"$f":"IFERROR(IF(INDEX('LFA Expenditure_7B'!C209:C224,MATCH(N70,'LFA Expenditure_7B'!B$203:B$218,0))=\"\",\"\",INDEX('LFA Expenditure_7B'!C209:C224,MATCH(N70,'LFA Expenditure_7B'!B$203:B$218,0))),\"\")","v":""},{"$f":"IFERROR(IF(INDEX('LFA Expenditure_7B'!D209:D224,MATCH(N70,'LFA Expenditure_7B'!B$203:B$218,0))=\"\",\"\",INDEX('LFA Expenditure_7B'!D209:D224,MATCH(N70,'LFA Expenditure_7B'!B$203:B$218,0))),\"\")","v":""},0,{"$f":"'PR Expenditure_7A'!F210","v":0},{"$f":"IFERROR(INDEX('LFA Expenditure_7B'!G209:G224,MATCH(N70,'LFA Expenditure_7B'!B$203:B$218,0)),\"\")","v":0},null,null,null,6,0,{"$f":"IFERROR(INDEX('LFA Expenditure_7B'!M209:M224,MATCH(N70,'LFA Expenditure_7B'!B$203:B$218,0)),\"\")","v":0},null,null,"Intcustom6",{"$f":"IFERROR(IF(VLOOKUP(A70,'Reference Records'!$B$13:$D$48,3,FALSE)=0,\"\",VLOOKUP(A70,'Reference Records'!$B$13:$D$48,3,FALSE)),\"\")","v":""},null,"a2G36000001u8FIEAY"]
[{"$f":"IFERROR(IF(INDEX('LFA Expenditure_7B'!C210:C225,MATCH(N71,'LFA Expenditure_7B'!B$203:B$218,0))=\"\",\"\",INDEX('LFA Expenditure_7B'!C210:C225,MATCH(N71,'LFA Expenditure_7B'!B$203:B$218,0))),\"\")","v":""},{"$f":"IFERROR(IF(INDEX('LFA Expenditure_7B'!D210:D225,MATCH(N71,'LFA Expenditure_7B'!B$203:B$218,0))=\"\",\"\",INDEX('LFA Expenditure_7B'!D210:D225,MATCH(N71,'LFA Expenditure_7B'!B$203:B$218,0))),\"\")","v":""},0,{"$f":"'PR Expenditure_7A'!F211","v":0},{"$f":"IFERROR(INDEX('LFA Expenditure_7B'!G210:G225,MATCH(N71,'LFA Expenditure_7B'!B$203:B$218,0)),\"\")","v":0},null,null,null,7,0,{"$f":"IFERROR(INDEX('LFA Expenditure_7B'!M210:M225,MATCH(N71,'LFA Expenditure_7B'!B$203:B$218,0)),\"\")","v":0},null,null,"Intcustom7",{"$f":"IFERROR(IF(VLOOKUP(A71,'Reference Records'!$B$13:$D$48,3,FALSE)=0,\"\",VLOOKUP(A71,'Reference Records'!$B$13:$D$48,3,FALSE)),\"\")","v":""},null,"a2G36000001u8FJEAY"]
[{"$f":"IFERROR(IF(INDEX('LFA Expenditure_7B'!C211:C226,MATCH(N72,'LFA Expenditure_7B'!B$203:B$218,0))=\"\",\"\",INDEX('LFA Expenditure_7B'!C211:C226,MATCH(N72,'LFA Expenditure_7B'!B$203:B$218,0))),\"\")","v":""},{"$f":"IFERROR(IF(INDEX('LFA Expenditure_7B'!D211:D226,MATCH(N72,'LFA Expenditure_7B'!B$203:B$218,0))=\"\",\"\",INDEX('LFA Expenditure_7B'!D211:D226,MATCH(N72,'LFA Expenditure_7B'!B$203:B$218,0))),\"\")","v":""},0,{"$f":"'PR Expenditure_7A'!F212","v":0},{"$f":"IFERROR(INDEX('LFA Expenditure_7B'!G211:G226,MATCH(N72,'LFA Expenditure_7B'!B$203:B$218,0)),\"\")","v":0},null,null,null,8,0,{"$f":"IFERROR(INDEX('LFA Expenditure_7B'!M211:M226,MATCH(N72,'LFA Expenditure_7B'!B$203:B$218,0)),\"\")","v":0},null,null,"Intcustom8",{"$f":"IFERROR(IF(VLOOKUP(A72,'Reference Records'!$B$13:$D$48,3,FALSE)=0,\"\",VLOOKUP(A72,'Reference Records'!$B$13:$D$48,3,FALSE)),\"\")","v":""},null,"a2G36000001u8FKEAY"]
[{"$f":"IFERROR(IF(INDEX('LFA Expenditure_7B'!C212:C227,MATCH(N73,'LFA Expenditure_7B'!B$203:B$218,0))=\"\",\"\",INDEX('LFA Expenditure_7B'!C212:C227,MATCH(N73,'LFA Expenditure_7B'!B$203:B$218,0))),\"\")","v":""},{"$f":"IFERROR(IF(INDEX('LFA Expenditure_7B'!D212:D227,MATCH(N73,'LFA Expenditure_7B'!B$203:B$218,0))=\"\",\"\",INDEX('LFA Expenditure_7B'!D212:D227,MATCH(N73,'LFA Expenditure_7B'!B$203:B$218,0))),\"\")","v":""},0,{"$f":"'PR Expenditure_7A'!F213","v":0},{"$f":"IFERROR(INDEX('LFA Expenditure_7B'!G212:G227,MATCH(N73,'LFA Expenditure_7B'!B$203:B$218,0)),\"\")","v":0},null,null,null,9,0,{"$f":"IFERROR(INDEX('LFA Expenditure_7B'!M212:M227,MATCH(N73,'LFA Expenditure_7B'!B$203:B$218,0)),\"\")","v":0},null,null,"Intcustom9",{"$f":"IFERROR(IF(VLOOKUP(A73,'Reference Records'!$B$13:$D$48,3,FALSE)=0,\"\",VLOOKUP(A73,'Reference Records'!$B$13:$D$48,3,FALSE)),\"\")","v":""},null,"a2G36000001u8FLEAY"]
[{"$f":"IFERROR(IF(INDEX('LFA Expenditure_7B'!C213:C228,MATCH(N74,'LFA Expenditure_7B'!B$203:B$218,0))=\"\",\"\",INDEX('LFA Expenditure_7B'!C213:C228,MATCH(N74,'LFA Expenditure_7B'!B$203:B$218,0))),\"\")","v":""},{"$f":"IFERROR(IF(INDEX('LFA Expenditure_7B'!D213:D228,MATCH(N74,'LFA Expenditure_7B'!B$203:B$218,0))=\"\",\"\",INDEX('LFA Expenditure_7B'!D213:D228,MATCH(N74,'LFA Expenditure_7B'!B$203:B$218,0))),\"\")","v":""},0,{"$f":"'PR Expenditure_7A'!F214","v":0},{"$f":"IFERROR(INDEX('LFA Expenditure_7B'!G213:G228,MATCH(N74,'LFA Expenditure_7B'!B$203:B$218,0)),\"\")","v":0},null,null,null,10,0,{"$f":"IFERROR(INDEX('LFA Expenditure_7B'!M213:M228,MATCH(N74,'LFA Expenditure_7B'!B$203:B$218,0)),\"\")","v":0},null,null,"Intcustom10",{"$f":"IFERROR(IF(VLOOKUP(A74,'Reference Records'!$B$13:$D$48,3,FALSE)=0,\"\",VLOOKUP(A74,'Reference Records'!$B$13:$D$48,3,FALSE)),\"\")","v":""},null,"a2G36000001u8FMEAY"]
[{"$f":"IFERROR(IF(INDEX('LFA Expenditure_7B'!C214:C229,MATCH(N75,'LFA Expenditure_7B'!B$203:B$218,0))=\"\",\"\",INDEX('LFA Expenditure_7B'!C214:C229,MATCH(N75,'LFA Expenditure_7B'!B$203:B$218,0))),\"\")","v":"Red Cross Burundi"},{"$f":"IFERROR(IF(INDEX('LFA Expenditure_7B'!D214:D229,MATCH(N75,'LFA Expenditure_7B'!B$203:B$218,0))=\"\",\"\",INDEX('LFA Expenditure_7B'!D214:D229,MATCH(N75,'LFA Expenditure_7B'!B$203:B$218,0))),\"\")","v":"-"},0,{"$f":"'PR Expenditure_7A'!F215","v":0},{"$f":"IFERROR(INDEX('LFA Expenditure_7B'!G214:G229,MATCH(N75,'LFA Expenditure_7B'!B$203:B$218,0)),\"\")","v":0},null,null,null,11,0,{"$f":"IFERROR(INDEX('LFA Expenditure_7B'!M214:M229,MATCH(N75,'LFA Expenditure_7B'!B$203:B$218,0)),\"\")","v":0},null,null,"Intcustom11",{"$f":"IFERROR(IF(VLOOKUP(A75,'Reference Records'!$B$13:$D$48,3,FALSE)=0,\"\",VLOOKUP(A75,'Reference Records'!$B$13:$D$48,3,FALSE)),\"\")","v":""},null,"a2G36000001u8FNEAY"]
[{"$f":"IFERROR(IF(INDEX('LFA Expenditure_7B'!C215:C230,MATCH(N76,'LFA Expenditure_7B'!B$203:B$218,0))=\"\",\"\",INDEX('LFA Expenditure_7B'!C215:C230,MATCH(N76,'LFA Expenditure_7B'!B$203:B$218,0))),\"\")","v":"United Nations Development Programme"},{"$f":"IFERROR(IF(INDEX('LFA Expenditure_7B'!D215:D230,MATCH(N76,'LFA Expenditure_7B'!B$203:B$218,0))=\"\",\"\",INDEX('LFA Expenditure_7B'!D215:D230,MATCH(N76,'LFA Expenditure_7B'!B$203:B$218,0))),\"\")","v":"-"},0,{"$f":"'PR Expenditure_7A'!F216","v":0},{"$f":"IFERROR(INDEX('LFA Expenditure_7B'!G215:G230,MATCH(N76,'LFA Expenditure_7B'!B$203:B$218,0)),\"\")","v":0},null,null,null,12,0,{"$f":"IFERROR(INDEX('LFA Expenditure_7B'!M215:M230,MATCH(N76,'LFA Expenditure_7B'!B$203:B$218,0)),\"\")","v":0},null,null,"Intcustom12",{"$f":"IFERROR(IF(VLOOKUP(A76,'Reference Records'!$B$13:$D$48,3,FALSE)=0,\"\",VLOOKUP(A76,'Reference Records'!$B$13:$D$48,3,FALSE)),\"\")","v":""},null,"a2G36000001u8FOEAY"]
[{"$f":"IFERROR(IF(INDEX('LFA Expenditure_7B'!C216:C231,MATCH(N77,'LFA Expenditure_7B'!B$203:B$218,0))=\"\",\"\",INDEX('LFA Expenditure_7B'!C216:C231,MATCH(N77,'LFA Expenditure_7B'!B$203:B$218,0))),\"\")","v":""},{"$f":"IFERROR(IF(INDEX('LFA Expenditure_7B'!D216:D231,MATCH(N77,'LFA Expenditure_7B'!B$203:B$218,0))=\"\",\"\",INDEX('LFA Expenditure_7B'!D216:D231,MATCH(N77,'LFA Expenditure_7B'!B$203:B$218,0))),\"\")","v":""},0,{"$f":"'PR Expenditure_7A'!F217","v":0},{"$f":"IFERROR(INDEX('LFA Expenditure_7B'!G216:G231,MATCH(N77,'LFA Expenditure_7B'!B$203:B$218,0)),\"\")","v":0},null,null,null,13,0,{"$f":"IFERROR(INDEX('LFA Expenditure_7B'!M216:M231,MATCH(N77,'LFA Expenditure_7B'!B$203:B$218,0)),\"\")","v":0},null,null,"Intcustom13",{"$f":"IFERROR(IF(VLOOKUP(A77,'Reference Records'!$B$13:$D$48,3,FALSE)=0,\"\",VLOOKUP(A77,'Reference Records'!$B$13:$D$48,3,FALSE)),\"\")","v":""},null,"a2G36000001u8FPEAY"]
[{"$f":"IFERROR(IF(INDEX('LFA Expenditure_7B'!C217:C232,MATCH(N78,'LFA Expenditure_7B'!B$203:B$218,0))=\"\",\"\",INDEX('LFA Expenditure_7B'!C217:C232,MATCH(N78,'LFA Expenditure_7B'!B$203:B$218,0))),\"\")","v":""},{"$f":"IFERROR(IF(INDEX('LFA Expenditure_7B'!D217:D232,MATCH(N78,'LFA Expenditure_7B'!B$203:B$218,0))=\"\",\"\",INDEX('LFA Expenditure_7B'!D217:D232,MATCH(N78,'LFA Expenditure_7B'!B$203:B$218,0))),\"\")","v":""},0,{"$f":"'PR Expenditure_7A'!F218","v":0},{"$f":"IFERROR(INDEX('LFA Expenditure_7B'!G217:G232,MATCH(N78,'LFA Expenditure_7B'!B$203:B$218,0)),\"\")","v":0},null,null,null,14,0,{"$f":"IFERROR(INDEX('LFA Expenditure_7B'!M217:M232,MATCH(N78,'LFA Expenditure_7B'!B$203:B$218,0)),\"\")","v":0},null,null,"Intcustom14",{"$f":"IFERROR(IF(VLOOKUP(A78,'Reference Records'!$B$13:$D$48,3,FALSE)=0,\"\",VLOOKUP(A78,'Reference Records'!$B$13:$D$48,3,FALSE)),\"\")","v":""},null,"a2G36000001u8FQEAY"]
[{"$f":"IFERROR(IF(INDEX('LFA Expenditure_7B'!C218:C233,MATCH(N79,'LFA Expenditure_7B'!B$203:B$218,0))=\"\",\"\",INDEX('LFA Expenditure_7B'!C218:C233,MATCH(N79,'LFA Expenditure_7B'!B$203:B$218,0))),\"\")","v":""},{"$f":"IFERROR(IF(INDEX('LFA Expenditure_7B'!D218:D233,MATCH(N79,'LFA Expenditure_7B'!B$203:B$218,0))=\"\",\"\",INDEX('LFA Expenditure_7B'!D218:D233,MATCH(N79,'LFA Expenditure_7B'!B$203:B$218,0))),\"\")","v":""},0,{"$f":"'PR Expenditure_7A'!F219","v":0},{"$f":"IFERROR(INDEX('LFA Expenditure_7B'!G218:G233,MATCH(N79,'LFA Expenditure_7B'!B$203:B$218,0)),\"\")","v":0},null,null,null,15,0,{"$f":"IFERROR(INDEX('LFA Expenditure_7B'!M218:M233,MATCH(N79,'LFA Expenditure_7B'!B$203:B$218,0)),\"\")","v":0},null,null,"Intcustom15",{"$f":"IFERROR(IF(VLOOKUP(A79,'Reference Records'!$B$13:$D$48,3,FALSE)=0,\"\",VLOOKUP(A79,'Reference Records'!$B$13:$D$48,3,FALSE)),\"\")","v":""},null,"a2G36000001u8FREAY"]
[]
["Implementing Entity","Type of Implementing Entity","Budget for Reporting Period","Actual Expenditure ","Local Fund Agent Adjustment on Expenditures","Budget Vs Actual Variances","Absorption Rate","LFA comments on the Principal Recipient's explanation of variances",-1,"Cumulative Budget","Cumulative Actual Expenditure",null,null,null,"Record ID"]
["[Implementing Entity to display]","[Full Type]","[Budget for Reporting Period]",{"$f":"'PR Expenditure_7A'!#REF!","v":{"$error":"#REF!"}},{"$f":"IFERROR(INDEX('LFA Expenditure_7B'!G$224:G$273,MATCH(N82,'LFA Expenditure_7B'!B$224:B$273,0)),\"\")","v":""},null,null,null,{"$f":"I81+1","v":0},"[Cumulative Budget]",{"$f":"IFERROR(INDEX('LFA Expenditure_7B'!M$224:M$273,MATCH(N82,'LFA Expenditure_7B'!B$224:B$273,0)),\"\")","v":""},null,null,{"$f":"\"IP\"&I82","v":"IP0"},"[Record ID]"]
["Red Cross Burundi","-",980086.54583479103,{"$f":"'PR Expenditure_7A'!#REF!","v":{"$error":"#REF!"}},{"$f":"IFERROR(INDEX('LFA Expenditure_7B'!G$224:G$273,MATCH(N83,'LFA Expenditure_7B'!B$224:B$273,0)),\"\")","v":0},null,null,null,{"$f":"I82+1","v":1},980086.54583479103,{"$f":"IFERROR(INDEX('LFA Expenditure_7B'!M$224:M$273,MATCH(N83,'LFA Expenditure_7B'!B$224:B$273,0)),\"\")","v":0},null,null,{"$f":"\"IP\"&I83","v":"IP1"},"a2G36000001u8DfEAI"]
["PNILT","-",392096.936571764,{"$f":"'PR Expenditure_7A'!#REF!","v":{"$error":"#REF!"}},{"$f":"IFERROR(INDEX('LFA Expenditure_7B'!G$224:G$273,MATCH(N84,'LFA Expenditure_7B'!B$224:B$273,0)),\"\")","v":0},null,null,null,{"$f":"I83+1","v":2},392096.936571764,{"$f":"IFERROR(INDEX('LFA Expenditure_7B'!M$224:M$273,MATCH(N84,'LFA Expenditure_7B'!B$224:B$273,0)),\"\")","v":0},null,null,{"$f":"\"IP\"&I84","v":"IP2"},"a2G36000001u8DlEAI"]
["United Nations Development Programme","-",3416867.5639248402,{"$f":"'PR Expenditure_7A'!#REF!","v":{"$error":"#REF!"}},{"$f":"IFERROR(INDEX('LFA Expenditure_7B'!G$224:G$273,MATCH(N85,'LFA Expenditure_7B'!B$224:B$273,0)),\"\")","v":0},null,null,null,{"$f":"I84+1","v":3},3416867.5639248402,{"$f":"IFERROR(INDEX('LFA Expenditure_7B'!M$224:M$273,MATCH(N85,'LFA Expenditure_7B'!B$224:B$273,0)),\"\")","v":0},null,null,{"$f":"\"IP\"&I85","v":"IP3"},"a2G36000001u8DpEAI"]
["PNLS /IST","-",954806.29754234501,{"$f":"'PR Expenditure_7A'!#REF!","v":{"$error":"#REF!"}},{"$f":"IFERROR(INDEX('LFA Expenditure_7B'!G$224:G$273,MATCH(N86,'LFA Expenditure_7B'!B$224:B$273,0)),\"\")","v":0},null,null,null,{"$f":"I85+1","v":4},954806.29754234501,{"$f":"IFERROR(INDEX('LFA Expenditure_7B'!M$224:M$273,MATCH(N86,'LFA Expenditure_7B'!B$224:B$273,0)),\"\")","v":0},null,null,{"$f":"\"IP\"&I86","v":"IP4"},"a2G36000001u8EKEAY"]

{"sheet":"Cash Forecast_8A","index":34,"n_rows":220,"n_cols":18,"rows_kept":220,"cut":false,"hidden":false,"merged":[[204,2,207,2],[3,12,3,14],[0,2,0,15],[2,4,2,6],[3,4,3,6],[200,2,203,2]]}
[null,null,{"$f":"IF(CoverSheet!J12=\"N/A\",\"Progress Report\",\"Progress Report with Disbursement Request\")","v":"Progress Report with Disbursement Request"}]
[]
[null,null,{"$f":"VLOOKUP(Translations!B362,Translations!B3:H508,4,0)","v":"Section 8A : Modèle de prévision annuelle du Fonds mondial"},null,{"$f":"CoverSheet!F15","v":"Demande de décaissement  - période de prévision:"},null,null,{"$f":"CoverSheet!I15","v":"Date de début :"},{"$f":"CoverSheet!J15","v":"2018-07-01"},{"$f":"CoverSheet!K15","v":"Date de fin :"},{"$f":"CoverSheet!L15","v":"2018-12-31"}]
[null,null,null,null,{"$f":"CoverSheet!F16","v":"Demande de décaissement  - Période additionnelle convenue:"},null,null,{"$f":"CoverSheet!I15","v":"Date de début :"},{"$f":"CoverSheet!J16","v":"2019-01-01"},{"$f":"CoverSheet!K15","v":"Date de fin :"},{"$f":"CoverSheet!L16","v":"2019-03-31"},null,"Has the LFA Verified the Principal Recipient Forecast?",null,null,"Select"]
[]
[null,null,{"$f":"VLOOKUP(Translations!B368,Translations!B3:H508,4,0)","v":"Ventilation récapitulative par groupes de coûts"}]
[]
[null,null,{"$f":"VLOOKUP(Translations!B369,Translations!B3:H508,4,0)","v":"'Évaluation des coûts (groupes de coûts)"},null,{"$f":"VLOOKUP(Translations!B370,Translations!B3:H508,4,0)","v":"Budget pour la période de prévision"},{"$f":"VLOOKUP(Translations!B371,Translations!B3:H508,4,0)","v":"Montant prévu pour la période de prévision"},{"$f":"VLOOKUP(Translations!B372,Translations!B3:H508,4,0)","v":"Budget pour la période additionnelle"},{"$f":"VLOOKUP(Translations!B373,Translations!B3:H508,4,0)","v":"Montant prévu pour la période additionnelle"},{"$f":"VLOOKUP(Translations!B374,Translations!B3:H508,4,0)","v":"Budget total disponible (période additionnelle comprise)"},{"$f":"VLOOKUP(Translations!B375,Translations!B3:H508,4,0)","v":"Commentaires"},null,"Local Fund Agent Adjusted Principal Recipient Forecast for the period (not including the Buffer)","Local Fund Agent Adjusted Principal Recipient Forecast for the Buffer Period",null,"Local Fund Agent - Adjusted Forecast (including the buffer)","Comments"]
[null,"Costgrp1",{"$f":"IFERROR(INDEX('Cash Forecast_8A import-export'!A$9:A$23,MATCH('Cash Forecast_8A'!B9,'Cash Forecast_8A import-export'!O$9:O$23,0)),\"\")","v":"1. Human Resources (HR)"},null,{"$f":"IFERROR(INDEX('Cash Forecast_8A import-export'!C$9:C$23,MATCH('Cash Forecast_8A'!B9,'Cash Forecast_8A import-export'!O$9:O$23,0)),\"\")","v":1284943.66494199},1495702.0537583863,{"$f":"IFERROR(INDEX('Cash Forecast_8A import-export'!E$9:E$23,MATCH('Cash Forecast_8A'!B9,'Cash Forecast_8A import-export'!O$9:O$23,0)),\"\")","v":665957.08770932001},683718.82708259695,{"$f":"IFERROR(F9+H9,\"\")","v":2179420.8808409832},"Cet écart s'explique par :\n* les engagements de la période de forecast de USD  171,095.92 ;\n* les activités reportées sur la période de forecasting pour USD 39,662.46 ;\n* les dépassements de dépenses sur la période de buffer pour USD 17,761.74",null,null,null,null,{"$f":"IFERROR(L9+M9,\"\")","v":0}]
[null,"Costgrp2",{"$f":"IFERROR(INDEX('Cash Forecast_8A import-export'!A$9:A$23,MATCH('Cash Forecast_8A'!B10,'Cash Forecast_8A import-export'!O$9:O$23,0)),\"\")","v":"2. Travel related costs (TRC)"},null,{"$f":"IFERROR(INDEX('Cash Forecast_8A import-export'!C$9:C$23,MATCH('Cash Forecast_8A'!B10,'Cash Forecast_8A import-export'!O$9:O$23,0)),\"\")","v":493962.25068239},951239.10685838864,{"$f":"IFERROR(INDEX('Cash Forecast_8A import-export'!E$9:E$23,MATCH('Cash Forecast_8A'!B10,'Cash Forecast_8A import-export'!O$9:O$23,0)),\"\")","v":259698.718005784},259698.7180057838,{"$f":"IFERROR(F10+H10,\"\")","v":1210937.8248641724},"On note une augmentation de USD 457,276.85 s'expliquant par :\n* les engagements de la période de forecast de USD 211,457.72\n* les activités reportées sur la période de forecasting pour USD 207,624.04 ;\n* les dépassements de dépenses sur la période de forecast pour USD 79,454.45;\n* les activités annulées de la période de forecast pour USD -28,348.94;\n* les activités déjà payées sur la période antérieure de USD -12,910.42",null,null,null,null,{"$f":"IFERROR(L10+M10,\"\")","v":0}]
[null,"Costgrp3",{"$f":"IFERROR(INDEX('Cash Forecast_8A import-export'!A$9:A$23,MATCH('Cash Forecast_8A'!B11,'Cash Forecast_8A import-export'!O$9:O$23,0)),\"\")","v":"3. External Professional services (EPS)"},null,{"$f":"IFERROR(INDEX('Cash Forecast_8A import-export'!C$9:C$23,MATCH('Cash Forecast_8A'!B11,'Cash Forecast_8A import-export'!O$9:O$23,0)),\"\")","v":35890},120874.32127027695,{"$f":"IFERROR(INDEX('Cash Forecast_8A import-export'!E$9:E$23,MATCH('Cash Forecast_8A'!B11,'Cash Forecast_8A import-export'!O$9:O$23,0)),\"\")","v":35050.662292315203},35050.66229231521,155924.98356259216,"On note une augmentation de USD 84,984.32 s'expliquant par les activités reportées sur la période de forecast",null,null,null,null,0]
[null,"Costgrp4",{"$f":"IFERROR(INDEX('Cash Forecast_8A import-export'!A$9:A$23,MATCH('Cash Forecast_8A'!B12,'Cash Forecast_8A import-export'!O$9:O$23,0)),\"\")","v":"4. Health Products - Pharmaceutical Products (HPPP)"},null,{"$f":"IFERROR(INDEX('Cash Forecast_8A import-export'!C$9:C$23,MATCH('Cash Forecast_8A'!B12,'Cash Forecast_8A import-export'!O$9:O$23,0)),\"\")","v":0},3556434.44,{"$f":"IFERROR(INDEX('Cash Forecast_8A import-export'!E$9:E$23,MATCH('Cash Forecast_8A'!B12,'Cash Forecast_8A import-export'!O$9:O$23,0)),\"\")","v":2974342.34},417.72000000000116,3556852.16,"On note une augmentation de USD 582,509.82 qui s'explique par\n* les engagements  de USD 1,091,861.06 sur la période de forecast;\n* les activités reportées sur la période de forecast pour 144,830.41;\n* les activités anticipées (avancées) de USD 2,273,657.97 sur la période de forecast;\n* les dépassements de dépenses prévus pour USD 46,085 sur la période de forecast;\n* les dépassements de dépenses prévus pour USD 105,000 sur la période de buffer;\n* les activités annulées sur la période de buffer pour USD -2,273,657.97;\n* les activités de la période de buffer antérieurement payées pour USD -805,266.65\n",null,null,null,null,0]
[null,"Costgrp5",{"$f":"IFERROR(INDEX('Cash Forecast_8A import-export'!A$9:A$23,MATCH('Cash Forecast_8A'!B13,'Cash Forecast_8A import-export'!O$9:O$23,0)),\"\")","v":"5. Health Products - Non-Pharmaceuticals (HPNP)"},null,{"$f":"IFERROR(INDEX('Cash Forecast_8A import-export'!C$9:C$23,MATCH('Cash Forecast_8A'!B13,'Cash Forecast_8A import-export'!O$9:O$23,0)),\"\")","v":0},1222982.7266666666,{"$f":"IFERROR(INDEX('Cash Forecast_8A import-export'!E$9:E$23,MATCH('Cash Forecast_8A'!B13,'Cash Forecast_8A import-export'!O$9:O$23,0)),\"\")","v":1776043.32388854},1216439.8572218732,2439422.58388854,"Cette augmentation de USD 663,379.26 s'explique par:\n* les engagements de la période de forecast pour USD 294,607.7;\n* les activités reportées pour USD 367,935.88 sur la période de forecast;\n *les activités anticipées (avancées) de USD 559,603.47 sur la période de forecast;\n* les dépassements de dépenses prévus pour USD 835.68 sur la période de forecast;\n* les activités annulées de USD -559,603.47 sur la période de ",null,null,null,null,0]
[null,"Costgrp6",{"$f":"IFERROR(INDEX('Cash Forecast_8A import-export'!A$9:A$23,MATCH('Cash Forecast_8A'!B14,'Cash Forecast_8A import-export'!O$9:O$23,0)),\"\")","v":"6. Health Products - Equipment (HPE)"},null,{"$f":"IFERROR(INDEX('Cash Forecast_8A import-export'!C$9:C$23,MATCH('Cash Forecast_8A'!B14,'Cash Forecast_8A import-export'!O$9:O$23,0)),\"\")","v":0},285547.82,{"$f":"IFERROR(INDEX('Cash Forecast_8A import-export'!E$9:E$23,MATCH('Cash Forecast_8A'!B14,'Cash Forecast_8A import-export'!O$9:O$23,0)),\"\")","v":215899.36},215899.36000000002,501447.18000000005,"Augmentation de USD 285,547.82 s'expliquant par :\n*  les engagements de la période de forecast pour USD 155,688;\n* les activités reportées pour USD 129,859.82 sur la période de forecast;",null,null,null,null,0]
[null,"Costgrp7",{"$f":"IFERROR(INDEX('Cash Forecast_8A import-export'!A$9:A$23,MATCH('Cash Forecast_8A'!B15,'Cash Forecast_8A import-export'!O$9:O$23,0)),\"\")","v":"7. Procurement and Supply-Chain Management costs (PSM)"},null,{"$f":"IFERROR(INDEX('Cash Forecast_8A import-export'!C$9:C$23,MATCH('Cash Forecast_8A'!B15,'Cash Forecast_8A import-export'!O$9:O$23,0)),\"\")","v":0},678463.80741333333,{"$f":"IFERROR(INDEX('Cash Forecast_8A import-export'!E$9:E$23,MATCH('Cash Forecast_8A'!B15,'Cash Forecast_8A import-export'!O$9:O$23,0)),\"\")","v":1323652.3730860001},835713.52095266688,1514177.3283660002,"Augmentation du budget approuvé de USD 190524.96:\n* des engagements de USD 49,447.36 \n* des activités reportées de 118,009.28\n* les activités anticipées (avancées) de USD 487,938.85 sur la période de forecast;\n* les dépassements de dépenses prévus pour USD 23,068.32 sur la période de forecast;\n* les activités annulées de USD -487,938.85 sur la période de buffer",null,null,null,null,0]
[null,"Costgrp8",{"$f":"IFERROR(INDEX('Cash Forecast_8A import-export'!A$9:A$23,MATCH('Cash Forecast_8A'!B16,'Cash Forecast_8A import-export'!O$9:O$23,0)),\"\")","v":"8. Infrastructure (INF)"},null,{"$f":"IFERROR(INDEX('Cash Forecast_8A import-export'!C$9:C$23,MATCH('Cash Forecast_8A'!B16,'Cash Forecast_8A import-export'!O$9:O$23,0)),\"\")","v":0},6170.5667634466363,{"$f":"IFERROR(INDEX('Cash Forecast_8A import-export'!E$9:E$23,MATCH('Cash Forecast_8A'!B16,'Cash Forecast_8A import-export'!O$9:O$23,0)),\"\")","v":0},null,6170.5667634466363,"Augmentation de USD 6,170.57 représentant les engagements ",null,null,null,null,0]
[null,"Costgrp9",{"$f":"IFERROR(INDEX('Cash Forecast_8A import-export'!A$9:A$23,MATCH('Cash Forecast_8A'!B17,'Cash Forecast_8A import-export'!O$9:O$23,0)),\"\")","v":"9. Non-health equipment (NHP)"},null,{"$f":"IFERROR(INDEX('Cash Forecast_8A import-export'!C$9:C$23,MATCH('Cash Forecast_8A'!B17,'Cash Forecast_8A import-export'!O$9:O$23,0)),\"\")","v":3575.3220998673601},100994.29702891079,{"$f":"IFERROR(INDEX('Cash Forecast_8A import-export'!E$9:E$23,MATCH('Cash Forecast_8A'!B17,'Cash Forecast_8A import-export'!O$9:O$23,0)),\"\")","v":17401.775037166299},17401.77503716631,118396.0720660771,"Augmentation de USD 97,418.97 résultant :\n* des engagements de la période de forecast pour USD 89,611.91\n* les activités reportées de la période de forecasting pour USD 7,807.06",null,null,null,null,0]
[null,"Costgrp10",{"$f":"IFERROR(INDEX('Cash Forecast_8A import-export'!A$9:A$23,MATCH('Cash Forecast_8A'!B18,'Cash Forecast_8A import-export'!O$9:O$23,0)),\"\")","v":"10. Communication Material and Publications (CMP)"},null,{"$f":"IFERROR(INDEX('Cash Forecast_8A import-export'!C$9:C$23,MATCH('Cash Forecast_8A'!B18,'Cash Forecast_8A import-export'!O$9:O$23,0)),\"\")","v":25609.193626554901},39539.634551808856,{"$f":"IFERROR(INDEX('Cash Forecast_8A import-export'!E$9:E$23,MATCH('Cash Forecast_8A'!B18,'Cash Forecast_8A import-export'!O$9:O$23,0)),\"\")","v":39749.080791203698},39749.080791203691,79288.715343012547,"Augmentation de USD 13930.44 résultant des engagements de la période de forecast\n",null,null,null,null,0]
[null,"Costgrp11",{"$f":"IFERROR(INDEX('Cash Forecast_8A import-export'!A$9:A$23,MATCH('Cash Forecast_8A'!B19,'Cash Forecast_8A import-export'!O$9:O$23,0)),\"\")","v":"11. Programme Administration costs (PA)"},null,{"$f":"IFERROR(INDEX('Cash Forecast_8A import-export'!C$9:C$23,MATCH('Cash Forecast_8A'!B19,'Cash Forecast_8A import-export'!O$9:O$23,0)),\"\")","v":303679.66676762002},839443.80345884268,{"$f":"IFERROR(INDEX('Cash Forecast_8A import-export'!E$9:E$23,MATCH('Cash Forecast_8A'!B19,'Cash Forecast_8A import-export'!O$9:O$23,0)),\"\")","v":599911.39508892701},367427.37487292755,1206871.1783317702,"Augmentation de USD 303,280.11 résultant de :\n* des engagements de USD 177,277.10 pour la période de forecast;\n* les activités reportées 113,541.77 sur la période de forecast;\n*  les activités anticipées (avancées) de USD 232,484.02 sur la période de forecast;\n* des économies de USD -1,984.43 sur la période de buffer\n* les dépassements de dépenses prévus pour USD 15,349.40 sur la période de forecast;\n* des activités antérieurement payées pour USD 903.73\n* les activités annulées de USD -232,484.02 sur la période de buffer",null,null,null,null,0]
[null,"Costgrp12",{"$f":"IFERROR(INDEX('Cash Forecast_8A import-export'!A$9:A$23,MATCH('Cash Forecast_8A'!B20,'Cash Forecast_8A import-export'!O$9:O$23,0)),\"\")","v":"12. Living support to client/ target population (LSCTP)"},null,{"$f":"IFERROR(INDEX('Cash Forecast_8A import-export'!C$9:C$23,MATCH('Cash Forecast_8A'!B20,'Cash Forecast_8A import-export'!O$9:O$23,0)),\"\")","v":367672.00763181201},561336.22299158666,{"$f":"IFERROR(INDEX('Cash Forecast_8A import-export'!E$9:E$23,MATCH('Cash Forecast_8A'!B20,'Cash Forecast_8A import-export'!O$9:O$23,0)),\"\")","v":195996.665896942},195996.66589694191,757332.88888852857,"Augmentation de USD 193664.21 par rapport au budget approuvé résultant :\n* des enagements de USD 3,328.37 (période forecast);\n* des activitées reportées sur la période forecast de USD 190,335.84",null,null,null,null,0]
[null,"Costgrp13",{"$f":"IFERROR(INDEX('Cash Forecast_8A import-export'!A$9:A$23,MATCH('Cash Forecast_8A'!B21,'Cash Forecast_8A import-export'!O$9:O$23,0)),\"\")","v":"13. Payment for Results"},null,{"$f":"IFERROR(INDEX('Cash Forecast_8A import-export'!C$9:C$23,MATCH('Cash Forecast_8A'!B21,'Cash Forecast_8A import-export'!O$9:O$23,0)),\"\")","v":0},null,{"$f":"IFERROR(INDEX('Cash Forecast_8A import-export'!E$9:E$23,MATCH('Cash Forecast_8A'!B21,'Cash Forecast_8A import-export'!O$9:O$23,0)),\"\")","v":0}," ","",null,null,null,null,null,0]
[null,null,"Grand Total",null,{"$f":"ROUND(SUM(E9:E21),2)","v":2515332.11},{"$f":"ROUND(SUM(F9:F21),2)","v":9858728.8000000007},{"$f":"ROUND(SUM(G9:G21),2)","v":8103702.7800000003},{"$f":"ROUND(SUM(H9:H21),2)","v":3867513.56},{"$f":"ROUND(SUM(I9:I21),2)","v":13726242.359999999},null,null,{"$f":"ROUND(SUM(L9:L21),2)","v":0},{"$f":"ROUND(SUM(M9:M21),2)","v":0},{"$f":"ROUND(SUM(N9:N21),2)","v":0},{"$f":"ROUND(SUM(O9:O21),2)","v":0}]
[]
[]
[null,null,"Summary Breakdown by Interventions"]
[null,null,{"$f":"VLOOKUP(Translations!B382,Translations!B3:H508,4,0)","v":"Démarche modulaire - Modules"},{"$f":"VLOOKUP(Translations!B383,Translations!B3:H508,4,0)","v":"Démarche modulaire - Interventions"},{"$f":"E8","v":"Budget pour la période de prévision"},"Montant prévu pour la période de prévision","Budget pour la période additionnelle","Montant prévu pour la période additionnelle","Budget total disponible (période additionnelle comprise)","Commentaires",null,"Local Fund Agent Adjusted Principal Recipient Forecast for the period (not including the Buffer)","Local Fund Agent Adjusted Principal Recipient Forecast for the Buffer Period",null,"Local Fund Agent - Adjusted Forecast (including the buffer)","Comments"]
[null,"Int1",{"$f":"IFERROR(INDEX('Cash Forecast_8A import-export'!A$29:A$74,MATCH('Cash Forecast_8A'!B27,'Cash Forecast_8A import-export'!O$29:O$74,0)),\"\")","v":"Comprehensive prevention programs for people who inject drugs (PWID) and their partners"},{"$f":"IFERROR(INDEX('Cash Forecast_8A import-export'!B$29:B$74,MATCH('Cash Forecast_8A'!B27,'Cash Forecast_8A import-export'!O$29:O$74,0)),\"\")","v":"Behavioral interventions for PWID"},{"$f":"IFERROR(INDEX('Cash Forecast_8A import-export'!C$29:C$74,MATCH('Cash Forecast_8A'!B27,'Cash Forecast_8A import-export'!O$29:O$74,0)),\"\")","v":0},4785.3247002595599,{"$f":"IFERROR(INDEX('Cash Forecast_8A import-export'!E$29:E$74,MATCH('Cash Forecast_8A'!B27,'Cash Forecast_8A import-export'!O$29:O$74,0)),\"\")","v":1083.6147002595601},1083.6147002595599,{"$f":"IFERROR(F27+H27,\"\")","v":5868.9394005191198},null,null,null,null,null,{"$f":"IFERROR(L27+M27,\"\")","v":0}]
[null,"Int2",{"$f":"IFERROR(INDEX('Cash Forecast_8A import-export'!A$29:A$74,MATCH('Cash Forecast_8A'!B28,'Cash Forecast_8A import-export'!O$29:O$74,0)),\"\")","v":"TB care and prevention"},{"$f":"IFERROR(INDEX('Cash Forecast_8A import-export'!B$29:B$74,MATCH('Cash Forecast_8A'!B28,'Cash Forecast_8A import-export'!O$29:O$74,0)),\"\")","v":"Case detection and diagnosis"},{"$f":"IFERROR(INDEX('Cash Forecast_8A import-export'!C$29:C$74,MATCH('Cash Forecast_8A'!B28,'Cash Forecast_8A import-export'!O$29:O$74,0)),\"\")","v":9126.2684666682308},452779.41660479503,{"$f":"IFERROR(INDEX('Cash Forecast_8A import-export'!E$29:E$74,MATCH('Cash Forecast_8A'!B28,'Cash Forecast_8A import-export'!O$29:O$74,0)),\"\")","v":402098.22116464598},379386.2211646458,{"$f":"IFERROR(F28+H28,\"\")","v":832165.63776944089},null,null,null,null,null,{"$f":"IFERROR(L28+M28,\"\")","v":0}]
[null,"Int3",{"$f":"IFERROR(INDEX('Cash Forecast_8A import-export'!A$29:A$74,MATCH('Cash Forecast_8A'!B29,'Cash Forecast_8A import-export'!O$29:O$74,0)),\"\")","v":"TB care and prevention"},{"$f":"IFERROR(INDEX('Cash Forecast_8A import-export'!B$29:B$74,MATCH('Cash Forecast_8A'!B29,'Cash Forecast_8A import-export'!O$29:O$74,0)),\"\")","v":"Key populations (TB care and prevention) - Others"},{"$f":"IFERROR(INDEX('Cash Forecast_8A import-export'!C$29:C$74,MATCH('Cash Forecast_8A'!B29,'Cash Forecast_8A import-export'!O$29:O$74,0)),\"\")","v":21973.882562545001},36242.212998876734,{"$f":"IFERROR(INDEX('Cash Forecast_8A import-export'!E$29:E$74,MATCH('Cash Forecast_8A'!B29,'Cash Forecast_8A import-export'!O$29:O$74,0)),\"\")","v":11247.0321882927},11247.032188292726,{"$f":"IFERROR(F29+H29,\"\")","v":47489.245187169457},null,null,null,null,null,{"$f":"IFERROR(L29+M29,\"\")","v":0}]
[null,"Int4",{"$f":"IFERROR(INDEX('Cash Forecast_8A import-export'!A$29:A$74,MATCH('Cash Forecast_8A'!B30,'Cash Forecast_8A import-export'!O$29:O$74,0)),\"\")","v":"TB care and prevention"},{"$f":"IFERROR(INDEX('Cash Forecast_8A import-export'!B$29:B$74,MATCH('Cash Forecast_8A'!B30,'Cash Forecast_8A import-export'!O$29:O$74,0)),\"\")","v":"Key populations (TB care and prevention) - Prisoners"},{"$f":"IFERROR(INDEX('Cash Forecast_8A import-export'!C$29:C$74,MATCH('Cash Forecast_8A'!B30,'Cash Forecast_8A import-export'!O$29:O$74,0)),\"\")","v":6043.4606260430601},6043.4606260430692,{"$f":"IFERROR(INDEX('Cash Forecast_8A import-export'!E$29:E$74,MATCH('Cash Forecast_8A'!B30,'Cash Forecast_8A import-export'!O$29:O$74,0)),\"\")","v":3021.73031302153},3021.7303130215346,{"$f":"IFERROR(F30+H30,\"\")","v":9065.1909390646033},null,null,null,null,null,{"$f":"IFERROR(L30+M30,\"\")","v":0}]
[null,"Int5",{"$f":"IFERROR(INDEX('Cash Forecast_8A import-export'!A$29:A$74,MATCH('Cash Forecast_8A'!B31,'Cash Forecast_8A import-export'!O$29:O$74,0)),\"\")","v":"TB care and prevention"},{"$f":"IFERROR(INDEX('Cash Forecast_8A import-export'!B$29:B$74,MATCH('Cash Forecast_8A'!B31,'Cash Forecast_8A import-export'!O$29:O$74,0)),\"\")","v":"Prevention"},{"$f":"IFERROR(INDEX('Cash Forecast_8A import-export'!C$29:C$74,MATCH('Cash Forecast_8A'!B31,'Cash Forecast_8A import-export'!O$29:O$74,0)),\"\")","v":0},null,{"$f":"IFERROR(INDEX('Cash Forecast_8A import-export'!E$29:E$74,MATCH('Cash Forecast_8A'!B31,'Cash Forecast_8A import-export'!O$29:O$74,0)),\"\")","v":6342.4190506292398},6342.4190506292425,{"$f":"IFERROR(F31+H31,\"\")","v":6342.4190506292425},null,null,null,null,null,{"$f":"IFERROR(L31+M31,\"\")","v":0}]
[null,"Int6",{"$f":"IFERROR(INDEX('Cash Forecast_8A import-export'!A$29:A$74,MATCH('Cash Forecast_8A'!B32,'Cash Forecast_8A import-export'!O$29:O$74,0)),\"\")","v":"TB care and prevention"},{"$f":"IFERROR(INDEX('Cash Forecast_8A import-export'!B$29:B$74,MATCH('Cash Forecast_8A'!B32,'Cash Forecast_8A import-export'!O$29:O$74,0)),\"\")","v":"Treatment"},{"$f":"IFERROR(INDEX('Cash Forecast_8A import-export'!C$29:C$74,MATCH('Cash Forecast_8A'!B32,'Cash Forecast_8A import-export'!O$29:O$74,0)),\"\")","v":4738.86919894728},367118.65069894725,{"$f":"IFERROR(INDEX('Cash Forecast_8A import-export'!E$29:E$74,MATCH('Cash Forecast_8A'!B32,'Cash Forecast_8A import-export'!O$29:O$74,0)),\"\")","v":355483.984599474},31288.714599473646,{"$f":"IFERROR(F32+H32,\"\")","v":398407.36529842089},null,null,null,null,null,{"$f":"IFERROR(L32+M32,\"\")","v":0}]
[null,"Int7",{"$f":"IFERROR(INDEX('Cash Forecast_8A import-export'!A$29:A$74,MATCH('Cash Forecast_8A'!B33,'Cash Forecast_8A import-export'!O$29:O$74,0)),\"\")","v":"TB care and prevention"},{"$f":"IFERROR(INDEX('Cash Forecast_8A import-export'!B$29:B$74,MATCH('Cash Forecast_8A'!B33,'Cash Forecast_8A import-export'!O$29:O$74,0)),\"\")","v":"Community TB care delivery"},{"$f":"IFERROR(INDEX('Cash Forecast_8A import-export'!C$29:C$74,MATCH('Cash Forecast_8A'!B33,'Cash Forecast_8A import-export'!O$29:O$74,0)),\"\")","v":0},13074.654170065129,{"$f":"IFERROR(INDEX('Cash Forecast_8A import-export'!E$29:E$74,MATCH('Cash Forecast_8A'!B33,'Cash Forecast_8A import-export'!O$29:O$74,0)),\"\")","v":9983.9559311371104},9983.9559311371049,23058.610101202234,null,null,null,null,null,0]
[null,"Int8",{"$f":"IFERROR(INDEX('Cash Forecast_8A import-export'!A$29:A$74,MATCH('Cash Forecast_8A'!B34,'Cash Forecast_8A import-export'!O$29:O$74,0)),\"\")","v":"RSSH: Health management information systems and M&E"},{"$f":"IFERROR(INDEX('Cash Forecast_8A import-export'!B$29:B$74,MATCH('Cash Forecast_8A'!B34,'Cash Forecast_8A import-export'!O$29:O$74,0)),\"\")","v":"Analysis, review and transparency"},{"$f":"IFERROR(INDEX('Cash Forecast_8A import-export'!C$29:C$74,MATCH('Cash Forecast_8A'!B34,'Cash Forecast_8A import-export'!O$29:O$74,0)),\"\")","v":133871.70393133201},219316.80042775092,{"$f":"IFERROR(INDEX('Cash Forecast_8A import-export'!E$29:E$74,MATCH('Cash Forecast_8A'!B34,'Cash Forecast_8A import-export'!O$29:O$74,0)),\"\")","v":21107.177834000799},21107.17783400082,240423.97826175173,null,null,null,null,null,0]
[null,"Int9",{"$f":"IFERROR(INDEX('Cash Forecast_8A import-export'!A$29:A$74,MATCH('Cash Forecast_8A'!B35,'Cash Forecast_8A import-export'!O$29:O$74,0)),\"\")","v":"RSSH: Health management information systems and M&E"},{"$f":"IFERROR(INDEX('Cash Forecast_8A import-export'!B$29:B$74,MATCH('Cash Forecast_8A'!B35,'Cash Forecast_8A import-export'!O$29:O$74,0)),\"\")","v":"Surveys"},{"$f":"IFERROR(INDEX('Cash Forecast_8A import-export'!C$29:C$74,MATCH('Cash Forecast_8A'!B35,'Cash Forecast_8A import-export'!O$29:O$74,0)),\"\")","v":64020.761629238899},128041.52325847777,{"$f":"IFERROR(INDEX('Cash Forecast_8A import-export'!E$29:E$74,MATCH('Cash Forecast_8A'!B35,'Cash Forecast_8A import-export'!O$29:O$74,0)),\"\")","v":0},null,128041.52325847777,null,null,null,null,null,0]
[null,"Int10",{"$f":"IFERROR(INDEX('Cash Forecast_8A import-export'!A$29:A$74,MATCH('Cash Forecast_8A'!B36,'Cash Forecast_8A import-export'!O$29:O$74,0)),\"\")","v":"RSSH: Health management information systems and M&E"},{"$f":"IFERROR(INDEX('Cash Forecast_8A import-export'!B$29:B$74,MATCH('Cash Forecast_8A'!B36,'Cash Forecast_8A import-export'!O$29:O$74,0)),\"\")","v":"Routine reporting"},{"$f":"IFERROR(INDEX('Cash Forecast_8A import-export'!C$29:C$74,MATCH('Cash Forecast_8A'!B36,'Cash Forecast_8A import-export'!O$29:O$74,0)),\"\")","v":47163.540788967002},129284.52260624657,{"$f":"IFERROR(INDEX('Cash Forecast_8A import-export'!E$29:E$74,MATCH('Cash Forecast_8A'!B36,'Cash Forecast_8A import-export'!O$29:O$74,0)),\"\")","v":48140.325925419304},48140.325925419318,177424.84853166589,null,null,null,null,null,0]
[null,"Int11",{"$f":"IFERROR(INDEX('Cash Forecast_8A import-export'!A$29:A$74,MATCH('Cash Forecast_8A'!B37,'Cash Forecast_8A import-export'!O$29:O$74,0)),\"\")","v":"MDR-TB"},{"$f":"IFERROR(INDEX('Cash Forecast_8A import-export'!B$29:B$74,MATCH('Cash Forecast_8A'!B37,'Cash Forecast_8A import-export'!O$29:O$74,0)),\"\")","v":"Treatment: MDR-TB"},{"$f":"IFERROR(INDEX('Cash Forecast_8A import-export'!C$29:C$74,MATCH('Cash Forecast_8A'!B37,'Cash Forecast_8A import-export'!O$29:O$74,0)),\"\")","v":33641.6852174827},154086.46403455891,{"$f":"IFERROR(INDEX('Cash Forecast_8A import-export'!E$29:E$74,MATCH('Cash Forecast_8A'!B37,'Cash Forecast_8A import-export'!O$29:O$74,0)),\"\")","v":217812.74343154099},217812.74343154076,371899.20746609964,null,null,null,null,null,0]
[null,"Int12",{"$f":"IFERROR(INDEX('Cash Forecast_8A import-export'!A$29:A$74,MATCH('Cash Forecast_8A'!B38,'Cash Forecast_8A import-export'!O$29:O$74,0)),\"\")","v":"TB/HIV"},{"$f":"IFERROR(INDEX('Cash Forecast_8A import-export'!B$29:B$74,MATCH('Cash Forecast_8A'!B38,'Cash Forecast_8A import-export'!O$29:O$74,0)),\"\")","v":"TB/HIV collaborative interventions"},{"$f":"IFERROR(INDEX('Cash Forecast_8A import-export'!C$29:C$74,MATCH('Cash Forecast_8A'!B38,'Cash Forecast_8A import-export'!O$29:O$74,0)),\"\")","v":54092.311189123902},22434.892810204667,{"$f":"IFERROR(INDEX('Cash Forecast_8A import-export'!E$29:E$74,MATCH('Cash Forecast_8A'!B38,'Cash Forecast_8A import-export'!O$29:O$74,0)),\"\")","v":129650.359290726},129650.35929072564,152085.25210093032,null,null,null,null,null,0]
[null,"Int13",{"$f":"IFERROR(INDEX('Cash Forecast_8A import-export'!A$29:A$74,MATCH('Cash Forecast_8A'!B39,'Cash Forecast_8A import-export'!O$29:O$74,0)),\"\")","v":"Program management"},{"$f":"IFERROR(INDEX('Cash Forecast_8A import-export'!B$29:B$74,MATCH('Cash Forecast_8A'!B39,'Cash Forecast_8A import-export'!O$29:O$74,0)),\"\")","v":"Grant management"},{"$f":"IFERROR(INDEX('Cash Forecast_8A import-export'!C$29:C$74,MATCH('Cash Forecast_8A'!B39,'Cash Forecast_8A import-export'!O$29:O$74,0)),\"\")","v":771684.249615715},1373449.4515905224,{"$f":"IFERROR(INDEX('Cash Forecast_8A import-export'!E$29:E$74,MATCH('Cash Forecast_8A'!B39,'Cash Forecast_8A import-export'!O$29:O$74,0)),\"\")","v":870348.09373929701},655625.8128965738,2029075.2644870961,null,null,null,null,null,0]
[null,"Int14",{"$f":"IFERROR(INDEX('Cash Forecast_8A import-export'!A$29:A$74,MATCH('Cash Forecast_8A'!B40,'Cash Forecast_8A import-export'!O$29:O$74,0)),\"\")","v":"Program management"},{"$f":"IFERROR(INDEX('Cash Forecast_8A import-export'!B$29:B$74,MATCH('Cash Forecast_8A'!B40,'Cash Forecast_8A import-export'!O$29:O$74,0)),\"\")","v":"Policy, planning, coordination and management of national disease control programs"},{"$f":"IFERROR(INDEX('Cash Forecast_8A import-export'!C$29:C$74,MATCH('Cash Forecast_8A'!B40,'Cash Forecast_8A import-export'!O$29:O$74,0)),\"\")","v":104815.23784608601},163361.10101669451,{"$f":"IFERROR(INDEX('Cash Forecast_8A import-export'!E$29:E$74,MATCH('Cash Forecast_8A'!B40,'Cash Forecast_8A import-export'!O$29:O$74,0)),\"\")","v":52794.650868550998},52794.650868550954,216155.75188524547,null,null,null,null,null,0]
[null,"Int15",{"$f":"IFERROR(INDEX('Cash Forecast_8A import-export'!A$29:A$74,MATCH('Cash Forecast_8A'!B41,'Cash Forecast_8A import-export'!O$29:O$74,0)),\"\")","v":"PMTCT"},{"$f":"IFERROR(INDEX('Cash Forecast_8A import-export'!B$29:B$74,MATCH('Cash Forecast_8A'!B41,'Cash Forecast_8A import-export'!O$29:O$74,0)),\"\")","v":"Prong 1: Primary prevention of HIV infection among women of childbearing age"},{"$f":"IFERROR(INDEX('Cash Forecast_8A import-export'!C$29:C$74,MATCH('Cash Forecast_8A'!B41,'Cash Forecast_8A import-export'!O$29:O$74,0)),\"\")","v":0},13826.31166347522,{"$f":"IFERROR(INDEX('Cash Forecast_8A import-export'!E$29:E$74,MATCH('Cash Forecast_8A'!B41,'Cash Forecast_8A import-export'!O$29:O$74,0)),\"\")","v":13826.315722405699},13826.31572240569,27652.627385880911,null,null,null,null,null,0]
[null,"Int16",{"$f":"IFERROR(INDEX('Cash Forecast_8A import-export'!A$29:A$74,MATCH('Cash Forecast_8A'!B42,'Cash Forecast_8A import-export'!O$29:O$74,0)),\"\")","v":"PMTCT"},{"$f":"IFERROR(INDEX('Cash Forecast_8A import-export'!B$29:B$74,MATCH('Cash Forecast_8A'!B42,'Cash Forecast_8A import-export'!O$29:O$74,0)),\"\")","v":"Prong 3: Preventing vertical HIV transmission"},{"$f":"IFERROR(INDEX('Cash Forecast_8A import-export'!C$29:C$74,MATCH('Cash Forecast_8A'!B42,'Cash Forecast_8A import-export'!O$29:O$74,0)),\"\")","v":14775.501414542399},316966.36949333688,{"$f":"IFERROR(INDEX('Cash Forecast_8A import-export'!E$29:E$74,MATCH('Cash Forecast_8A'!B42,'Cash Forecast_8A import-export'!O$29:O$74,0)),\"\")","v":176767.48},50992.480000000003,367958.84949333686,null,null,null,null,null,0]
[null,"Int17",{"$f":"IFERROR(INDEX('Cash Forecast_8A import-export'!A$29:A$74,MATCH('Cash Forecast_8A'!B43,'Cash Forecast_8A import-export'!O$29:O$74,0)),\"\")","v":"PMTCT"},{"$f":"IFERROR(INDEX('Cash Forecast_8A import-export'!B$29:B$74,MATCH('Cash Forecast_8A'!B43,'Cash Forecast_8A import-export'!O$29:O$74,0)),\"\")","v":"Prong 4: Treatment, care and support to mothers living with HIV, their children and families"},{"$f":"IFERROR(INDEX('Cash Forecast_8A import-export'!C$29:C$74,MATCH('Cash Forecast_8A'!B43,'Cash Forecast_8A import-export'!O$29:O$74,0)),\"\")","v":2429.65820333278},60388.725055484421,{"$f":"IFERROR(INDEX('Cash Forecast_8A import-export'!E$29:E$74,MATCH('Cash Forecast_8A'!B43,'Cash Forecast_8A import-export'!O$29:O$74,0)),\"\")","v":10994.539442601201},10994.539442601179,71383.264498085598,null,null,null,null,null,0]
[null,"Int18",{"$f":"IFERROR(INDEX('Cash Forecast_8A import-export'!A$29:A$74,MATCH('Cash Forecast_8A'!B44,'Cash Forecast_8A import-export'!O$29:O$74,0)),\"\")","v":"Prevention programs for general population"},{"$f":"IFERROR(INDEX('Cash Forecast_8A import-export'!B$29:B$74,MATCH('Cash Forecast_8A'!B44,'Cash Forecast_8A import-export'!O$29:O$74,0)),\"\")","v":"Other intervention(s) for general population"},{"$f":"IFERROR(INDEX('Cash Forecast_8A import-export'!C$29:C$74,MATCH('Cash Forecast_8A'!B44,'Cash Forecast_8A import-export'!O$29:O$74,0)),\"\")","v":11609.6982732501},188010.28183279446,{"$f":"IFERROR(INDEX('Cash Forecast_8A import-export'!E$29:E$74,MATCH('Cash Forecast_8A'!B44,'Cash Forecast_8A import-export'!O$29:O$74,0)),\"\")","v":217377.14591296599},158823.57671296576,346833.85854576022,null,null,null,null,null,0]
[null,"Int19",{"$f":"IFERROR(INDEX('Cash Forecast_8A import-export'!A$29:A$74,MATCH('Cash Forecast_8A'!B45,'Cash Forecast_8A import-export'!O$29:O$74,0)),\"\")","v":"Comprehensive prevention programs for MSM"},{"$f":"IFERROR(INDEX('Cash Forecast_8A import-export'!B$29:B$74,MATCH('Cash Forecast_8A'!B45,'Cash Forecast_8A import-export'!O$29:O$74,0)),\"\")","v":"Behavioral interventions for MSM"},{"$f":"IFERROR(INDEX('Cash Forecast_8A import-export'!C$29:C$74,MATCH('Cash Forecast_8A'!B45,'Cash Forecast_8A import-export'!O$29:O$74,0)),\"\")","v":1402.7374760641601},3606.5583861074674,{"$f":"IFERROR(INDEX('Cash Forecast_8A import-export'!E$29:E$74,MATCH('Cash Forecast_8A'!B45,'Cash Forecast_8A import-export'!O$29:O$74,0)),\"\")","v":2349.5852724074598},2349.5852724074603,5956.1436585149277,null,null,null,null,null,0]
[null,"Int20",{"$f":"IFERROR(INDEX('Cash Forecast_8A import-export'!A$29:A$74,MATCH('Cash Forecast_8A'!B46,'Cash Forecast_8A import-export'!O$29:O$74,0)),\"\")","v":"Comprehensive prevention programs for MSM"},{"$f":"IFERROR(INDEX('Cash Forecast_8A import-export'!B$29:B$74,MATCH('Cash Forecast_8A'!B46,'Cash Forecast_8A import-export'!O$29:O$74,0)),\"\")","v":"Condoms and lubricant programming for MSM"},{"$f":"IFERROR(INDEX('Cash Forecast_8A import-export'!C$29:C$74,MATCH('Cash Forecast_8A'!B46,'Cash Forecast_8A import-export'!O$29:O$74,0)),\"\")","v":183.52481978506},367.04963957012063,{"$f":"IFERROR(INDEX('Cash Forecast_8A import-export'!E$29:E$74,MATCH('Cash Forecast_8A'!B46,'Cash Forecast_8A import-export'!O$29:O$74,0)),\"\")","v":38745.469109285099},38745.469109285063,39112.518748855182,null,null,null,null,null,0]
[null,"Int21",{"$f":"IFERROR(INDEX('Cash Forecast_8A import-export'!A$29:A$74,MATCH('Cash Forecast_8A'!B47,'Cash Forecast_8A import-export'!O$29:O$74,0)),\"\")","v":"Comprehensive prevention programs for MSM"},{"$f":"IFERROR(INDEX('Cash Forecast_8A import-export'!B$29:B$74,MATCH('Cash Forecast_8A'!B47,'Cash Forecast_8A import-export'!O$29:O$74,0)),\"\")","v":"Other intervention(s) for MSM"},{"$f":"IFERROR(INDEX('Cash Forecast_8A import-export'!C$29:C$74,MATCH('Cash Forecast_8A'!B47,'Cash Forecast_8A import-export'!O$29:O$74,0)),\"\")","v":15504.729687797},25331.385936106988,{"$f":"IFERROR(INDEX('Cash Forecast_8A import-export'!E$29:E$74,MATCH('Cash Forecast_8A'!B47,'Cash Forecast_8A import-export'!O$29:O$74,0)),\"\")","v":7296.5336115725104},7296.5336115725077,32627.919547679496,null,null,null,null,null,0]
[null,"Int22",{"$f":"IFERROR(INDEX('Cash Forecast_8A import-export'!A$29:A$74,MATCH('Cash Forecast_8A'!B48,'Cash Forecast_8A import-export'!O$29:O$74,0)),\"\")","v":"Comprehensive prevention programs for sex workers and their clients"},{"$f":"IFERROR(INDEX('Cash Forecast_8A import-export'!B$29:B$74,MATCH('Cash Forecast_8A'!B48,'Cash Forecast_8A import-export'!O$29:O$74,0)),\"\")","v":"Behavioral interventions for sex workers"},{"$f":"IFERROR(INDEX('Cash Forecast_8A import-export'!C$29:C$74,MATCH('Cash Forecast_8A'!B48,'Cash Forecast_8A import-export'!O$29:O$74,0)),\"\")","v":2443.1011041450802},5906.2261429681257,{"$f":"IFERROR(INDEX('Cash Forecast_8A import-export'!E$29:E$74,MATCH('Cash Forecast_8A'!B48,'Cash Forecast_8A import-export'!O$29:O$74,0)),\"\")","v":3463.1250388230601},3463.1250388230555,9369.3511817911822,null,null,null,null,null,0]
[null,"Int23",{"$f":"IFERROR(INDEX('Cash Forecast_8A import-export'!A$29:A$74,MATCH('Cash Forecast_8A'!B49,'Cash Forecast_8A import-export'!O$29:O$74,0)),\"\")","v":"Comprehensive prevention programs for sex workers and their clients"},{"$f":"IFERROR(INDEX('Cash Forecast_8A import-export'!B$29:B$74,MATCH('Cash Forecast_8A'!B49,'Cash Forecast_8A import-export'!O$29:O$74,0)),\"\")","v":"Condoms and lubricant programming for sex workers"},{"$f":"IFERROR(INDEX('Cash Forecast_8A import-export'!C$29:C$74,MATCH('Cash Forecast_8A'!B49,'Cash Forecast_8A import-export'!O$29:O$74,0)),\"\")","v":666.30030113047405},666.30030113047383,{"$f":"IFERROR(INDEX('Cash Forecast_8A import-export'!E$29:E$74,MATCH('Cash Forecast_8A'!B49,'Cash Forecast_8A import-export'!O$29:O$74,0)),\"\")","v":621986.07159366505},621986.07159366529,622652.3718947958,null,null,null,null,null,0]
[null,"Int24",{"$f":"IFERROR(INDEX('Cash Forecast_8A import-export'!A$29:A$74,MATCH('Cash Forecast_8A'!B50,'Cash Forecast_8A import-export'!O$29:O$74,0)),\"\")","v":"Comprehensive prevention programs for sex workers and their clients"},{"$f":"IFERROR(INDEX('Cash Forecast_8A import-export'!B$29:B$74,MATCH('Cash Forecast_8A'!B50,'Cash Forecast_8A import-export'!O$29:O$74,0)),\"\")","v":"Other intervention(s) for sex workers and their clients"},{"$f":"IFERROR(INDEX('Cash Forecast_8A import-export'!C$29:C$74,MATCH('Cash Forecast_8A'!B50,'Cash Forecast_8A import-export'!O$29:O$74,0)),\"\")","v":14728.743498673601},18671.156439910232,{"$f":"IFERROR(INDEX('Cash Forecast_8A import-export'!E$29:E$74,MATCH('Cash Forecast_8A'!B50,'Cash Forecast_8A import-export'!O$29:O$74,0)),\"\")","v":7364.3717493368104},7364.3717493368149,26035.528189247045,null,null,null,null,null,0]
[null,"Int25",{"$f":"IFERROR(INDEX('Cash Forecast_8A import-export'!A$29:A$74,MATCH('Cash Forecast_8A'!B51,'Cash Forecast_8A import-export'!O$29:O$74,0)),\"\")","v":"Comprehensive prevention programs for people who inject drugs (PWID) and their partners"},{"$f":"IFERROR(INDEX('Cash Forecast_8A import-export'!B$29:B$74,MATCH('Cash Forecast_8A'!B51,'Cash Forecast_8A import-export'!O$29:O$74,0)),\"\")","v":"Other intervention(s) for IDUs and their partners"},{"$f":"IFERROR(INDEX('Cash Forecast_8A import-export'!C$29:C$74,MATCH('Cash Forecast_8A'!B51,'Cash Forecast_8A import-export'!O$29:O$74,0)),\"\")","v":6814.0310795609803},8918.1372936572116,{"$f":"IFERROR(INDEX('Cash Forecast_8A import-export'!E$29:E$74,MATCH('Cash Forecast_8A'!B51,'Cash Forecast_8A import-export'!O$29:O$74,0)),\"\")","v":2104.1062140962299},2104.1062140962331,11022.243507753445,null,null,null,null,null,0]
[null,"Int26",{"$f":"IFERROR(INDEX('Cash Forecast_8A import-export'!A$29:A$74,MATCH('Cash Forecast_8A'!B52,'Cash Forecast_8A import-export'!O$29:O$74,0)),\"\")","v":"Prevention programs for general population"},{"$f":"IFERROR(INDEX('Cash Forecast_8A import-export'!B$29:B$74,MATCH('Cash Forecast_8A'!B52,'Cash Forecast_8A import-export'!O$29:O$74,0)),\"\")","v":"Behavioral interventions as part of programs for general population"},{"$f":"IFERROR(INDEX('Cash Forecast_8A import-export'!C$29:C$74,MATCH('Cash Forecast_8A'!B52,'Cash Forecast_8A import-export'!O$29:O$74,0)),\"\")","v":44132.981207448101},50501.890607083595,{"$f":"IFERROR(INDEX('Cash Forecast_8A import-export'!E$29:E$74,MATCH('Cash Forecast_8A'!B52,'Cash Forecast_8A import-export'!O$29:O$74,0)),\"\")","v":35632.861537596596},35632.861537596626,86134.752144680213,null,null,null,null,null,0]
[null,"Int27",{"$f":"IFERROR(INDEX('Cash Forecast_8A import-export'!A$29:A$74,MATCH('Cash Forecast_8A'!B53,'Cash Forecast_8A import-export'!O$29:O$74,0)),\"\")","v":"Prevention programs for other vulnerable populations"},{"$f":"IFERROR(INDEX('Cash Forecast_8A import-export'!B$29:B$74,MATCH('Cash Forecast_8A'!B53,'Cash Forecast_8A import-export'!O$29:O$74,0)),\"\")","v":"HIV testing services for other vulnerable populations"},{"$f":"IFERROR(INDEX('Cash Forecast_8A import-export'!C$29:C$74,MATCH('Cash Forecast_8A'!B53,'Cash Forecast_8A import-export'!O$29:O$74,0)),\"\")","v":0},28839.82,{"$f":"IFERROR(INDEX('Cash Forecast_8A import-export'!E$29:E$74,MATCH('Cash Forecast_8A'!B53,'Cash Forecast_8A import-export'!O$29:O$74,0)),\"\")","v":1163.05},1163.05,30002.87,null,null,null,null,null,0]
[null,"Int28",{"$f":"IFERROR(INDEX('Cash Forecast_8A import-export'!A$29:A$74,MATCH('Cash Forecast_8A'!B54,'Cash Forecast_8A import-export'!O$29:O$74,0)),\"\")","v":"HIV Testing Services"},{"$f":"IFERROR(INDEX('Cash Forecast_8A import-export'!B$29:B$74,MATCH('Cash Forecast_8A'!B54,'Cash Forecast_8A import-export'!O$29:O$74,0)),\"\")","v":"Differentiated HIV testing services"},{"$f":"IFERROR(INDEX('Cash Forecast_8A import-export'!C$29:C$74,MATCH('Cash Forecast_8A'!B54,'Cash Forecast_8A import-export'!O$29:O$74,0)),\"\")","v":2590.6807761059899},275269.61193835089,{"$f":"IFERROR(INDEX('Cash Forecast_8A import-export'!E$29:E$74,MATCH('Cash Forecast_8A'!B54,'Cash Forecast_8A import-export'!O$29:O$74,0)),\"\")","v":263070.49},10600.84,285870.45193835092,null,null,null,null,null,0]
[null,"Int29",{"$f":"IFERROR(INDEX('Cash Forecast_8A import-export'!A$29:A$74,MATCH('Cash Forecast_8A'!B55,'Cash Forecast_8A import-export'!O$29:O$74,0)),\"\")","v":"RSSH: Integrated service delivery and quality improvement"},{"$f":"IFERROR(INDEX('Cash Forecast_8A import-export'!B$29:B$74,MATCH('Cash Forecast_8A'!B55,'Cash Forecast_8A import-export'!O$29:O$74,0)),\"\")","v":"Laboratory systems for disease prevention, control, treatment and disease surveillance"},{"$f":"IFERROR(INDEX('Cash Forecast_8A import-export'!C$29:C$74,MATCH('Cash Forecast_8A'!B55,'Cash Forecast_8A import-export'!O$29:O$74,0)),\"\")","v":359.45147824143999},674.15579245857987,{"$f":"IFERROR(INDEX('Cash Forecast_8A import-export'!E$29:E$74,MATCH('Cash Forecast_8A'!B55,'Cash Forecast_8A import-export'!O$29:O$74,0)),\"\")","v":19790.41},19790.41,20464.565792458579,null,null,null,null,null,0]
[null,"Int30",{"$f":"IFERROR(INDEX('Cash Forecast_8A import-export'!A$29:A$74,MATCH('Cash Forecast_8A'!B56,'Cash Forecast_8A import-export'!O$29:O$74,0)),\"\")","v":"RSSH: Health management information systems and M&E"},{"$f":"IFERROR(INDEX('Cash Forecast_8A import-export'!B$29:B$74,MATCH('Cash Forecast_8A'!B56,'Cash Forecast_8A import-export'!O$29:O$74,0)),\"\")","v":"Program and data quality"},{"$f":"IFERROR(INDEX('Cash Forecast_8A import-export'!C$29:C$74,MATCH('Cash Forecast_8A'!B56,'Cash Forecast_8A import-export'!O$29:O$74,0)),\"\")","v":84115.059278178902},124080.26713663587,{"$f":"IFERROR(INDEX('Cash Forecast_8A import-export'!E$29:E$74,MATCH('Cash Forecast_8A'!B56,'Cash Forecast_8A import-export'!O$29:O$74,0)),\"\")","v":87023.417796620401},87023.417796620473,211103.68493325636,null,null,null,null,null,0]
[null,"Int31",{"$f":"IFERROR(INDEX('Cash Forecast_8A import-export'!A$29:A$74,MATCH('Cash Forecast_8A'!B57,'Cash Forecast_8A import-export'!O$29:O$74,0)),\"\")","v":"Treatment, care and support"},{"$f":"IFERROR(INDEX('Cash Forecast_8A import-export'!B$29:B$74,MATCH('Cash Forecast_8A'!B57,'Cash Forecast_8A import-export'!O$29:O$74,0)),\"\")","v":"Counseling and psycho-social support"},{"$f":"IFERROR(INDEX('Cash Forecast_8A import-export'!C$29:C$74,MATCH('Cash Forecast_8A'!B57,'Cash Forecast_8A import-export'!O$29:O$74,0)),\"\")","v":511140.51779259299},616235.18914707948,{"$f":"IFERROR(INDEX('Cash Forecast_8A import-export'!E$29:E$74,MATCH('Cash Forecast_8A'!B57,'Cash Forecast_8A import-export'!O$29:O$74,0)),\"\")","v":267070.92054662999},267070.92054662999,883306.10969370953,null,null,null,null,null,0]
[null,"Int32",{"$f":"IFERROR(INDEX('Cash Forecast_8A import-export'!A$29:A$74,MATCH('Cash Forecast_8A'!B58,'Cash Forecast_8A import-export'!O$29:O$74,0)),\"\")","v":"Treatment, care and support"},{"$f":"IFERROR(INDEX('Cash Forecast_8A import-export'!B$29:B$74,MATCH('Cash Forecast_8A'!B58,'Cash Forecast_8A import-export'!O$29:O$74,0)),\"\")","v":"Other intervention(s) for treatment"},{"$f":"IFERROR(INDEX('Cash Forecast_8A import-export'!C$29:C$74,MATCH('Cash Forecast_8A'!B58,'Cash Forecast_8A import-export'!O$29:O$74,0)),\"\")","v":344717.627901642},454447.7322967308,{"$f":"IFERROR(INDEX('Cash Forecast_8A import-export'!E$29:E$74,MATCH('Cash Forecast_8A'!B58,'Cash Forecast_8A import-export'!O$29:O$74,0)),\"\")","v":176314.12011800401},176314.12011800363,630761.85241473443,null,null,null,null,null,0]
[null,"Int33",{"$f":"IFERROR(INDEX('Cash Forecast_8A import-export'!A$29:A$74,MATCH('Cash Forecast_8A'!B59,'Cash Forecast_8A import-export'!O$29:O$74,0)),\"\")","v":"Treatment, care and support"},{"$f":"IFERROR(INDEX('Cash Forecast_8A import-export'!B$29:B$74,MATCH('Cash Forecast_8A'!B59,'Cash Forecast_8A import-export'!O$29:O$74,0)),\"\")","v":"Differentiated ART service delivery"},{"$f":"IFERROR(INDEX('Cash Forecast_8A import-export'!C$29:C$74,MATCH('Cash Forecast_8A'!B59,'Cash Forecast_8A import-export'!O$29:O$74,0)),\"\")","v":184474.30067366801},359000.85474624723,{"$f":"IFERROR(INDEX('Cash Forecast_8A import-export'!E$29:E$74,MATCH('Cash Forecast_8A'!B59,'Cash Forecast_8A import-export'!O$29:O$74,0)),\"\")","v":93771.154905741001},93771.154905740987,452772.00965198822,null,null,null,null,null,0]
[null,"Int34",{"$f":"IFERROR(INDEX('Cash Forecast_8A import-export'!A$29:A$74,MATCH('Cash Forecast_8A'!B60,'Cash Forecast_8A import-export'!O$29:O$74,0)),\"\")","v":"Treatment, care and support"},{"$f":"IFERROR(INDEX('Cash Forecast_8A import-export'!B$29:B$74,MATCH('Cash Forecast_8A'!B60,'Cash Forecast_8A import-export'!O$29:O$74,0)),\"\")","v":"Prevention, diagnosis and treatment of opportunistic infections"},{"$f":"IFERROR(INDEX('Cash Forecast_8A import-export'!C$29:C$74,MATCH('Cash Forecast_8A'!B60,'Cash Forecast_8A import-export'!O$29:O$74,0)),\"\")","v":11078.119217216699},286756.49484017224,{"$f":"IFERROR(INDEX('Cash Forecast_8A import-export'!E$29:E$74,MATCH('Cash Forecast_8A'!B60,'Cash Forecast_8A import-export'!O$29:O$74,0)),\"\")","v":96879.65},9708.1200000000026,296464.61484017223,null,null,null,null,null,0]
[null,"Int35",{"$f":"IFERROR(INDEX('Cash Forecast_8A import-export'!A$29:A$74,MATCH('Cash Forecast_8A'!B61,'Cash Forecast_8A import-export'!O$29:O$74,0)),\"\")","v":"Treatment, care and support"},{"$f":"IFERROR(INDEX('Cash Forecast_8A import-export'!B$29:B$74,MATCH('Cash Forecast_8A'!B61,'Cash Forecast_8A import-export'!O$29:O$74,0)),\"\")","v":"HIV care"},{"$f":"IFERROR(INDEX('Cash Forecast_8A import-export'!C$29:C$74,MATCH('Cash Forecast_8A'!B61,'Cash Forecast_8A import-export'!O$29:O$74,0)),\"\")","v":0},3305612.7895999993,{"$f":"IFERROR(INDEX('Cash Forecast_8A import-export'!E$29:E$74,MATCH('Cash Forecast_8A'!B61,'Cash Forecast_8A import-export'!O$29:O$74,0)),\"\")","v":3031850.71},40846.150400000013,3346458.9399999995,null,null,null,null,null,0]
[null,"Int36",{"$f":"IFERROR(INDEX('Cash Forecast_8A import-export'!A$29:A$74,MATCH('Cash Forecast_8A'!B62,'Cash Forecast_8A import-export'!O$29:O$74,0)),\"\")","v":"Treatment, care and support"},{"$f":"IFERROR(INDEX('Cash Forecast_8A import-export'!B$29:B$74,MATCH('Cash Forecast_8A'!B62,'Cash Forecast_8A import-export'!O$29:O$74,0)),\"\")","v":"Treatment monitoring - Viral load"},{"$f":"IFERROR(INDEX('Cash Forecast_8A import-export'!C$29:C$74,MATCH('Cash Forecast_8A'!B62,'Cash Forecast_8A import-export'!O$29:O$74,0)),\"\")","v":10809.845674919399},492612.15160044457,{"$f":"IFERROR(INDEX('Cash Forecast_8A import-export'!E$29:E$74,MATCH('Cash Forecast_8A'!B62,'Cash Forecast_8A import-export'!O$29:O$74,0)),\"\")","v":591682.92283745995},432097.56283745973,924709.7144379043,null,null,null,null,null,0]
[null,"Int37",{"$f":"IFERROR(INDEX('Cash Forecast_8A import-export'!A$29:A$74,MATCH('Cash Forecast_8A'!B63,'Cash Forecast_8A import-export'!O$29:O$74,0)),\"\")","v":"Treatment, care and support"},{"$f":"IFERROR(INDEX('Cash Forecast_8A import-export'!B$29:B$74,MATCH('Cash Forecast_8A'!B63,'Cash Forecast_8A import-export'!O$29:O$74,0)),\"\")","v":"Treatment monitoring - Drug resistance surveillance"},{"$f":"IFERROR(INDEX('Cash Forecast_8A import-export'!C$29:C$74,MATCH('Cash Forecast_8A'!B63,'Cash Forecast_8A import-export'!O$29:O$74,0)),\"\")","v":0},112119.69370000002,{"$f":"IFERROR(INDEX('Cash Forecast_8A import-export'!E$29:E$74,MATCH('Cash Forecast_8A'!B63,'Cash Forecast_8A import-export'!O$29:O$74,0)),\"\")","v":85041.91},85041.91,197161.60370000004,null,null,null,null,null,0]
[null,"Int38",{"$f":"IFERROR(INDEX('Cash Forecast_8A import-export'!A$29:A$74,MATCH('Cash Forecast_8A'!B64,'Cash Forecast_8A import-export'!O$29:O$74,0)),\"\")","v":"Comprehensive prevention programs for sex workers and their clients"},{"$f":"IFERROR(INDEX('Cash Forecast_8A import-export'!B$29:B$74,MATCH('Cash Forecast_8A'!B64,'Cash Forecast_8A import-export'!O$29:O$74,0)),\"\")","v":"HIV testing services for sex workers"},{"$f":"IFERROR(INDEX('Cash Forecast_8A import-export'!C$29:C$74,MATCH('Cash Forecast_8A'!B64,'Cash Forecast_8A import-export'!O$29:O$74,0)),\"\")","v":183.52481978506},367.52481978506034,{"$f":"IFERROR(INDEX('Cash Forecast_8A import-export'!E$29:E$74,MATCH('Cash Forecast_8A'!B64,'Cash Forecast_8A import-export'!O$29:O$74,0)),\"\")","v":0},null,367.52481978506034,null,null,null,null,null,0]
[null,"Int39",{"$f":"IFERROR(INDEX('Cash Forecast_8A import-export'!A$29:A$74,MATCH('Cash Forecast_8A'!B65,'Cash Forecast_8A import-export'!O$29:O$74,0)),\"\")","v":"Prevention programs for general population"},{"$f":"IFERROR(INDEX('Cash Forecast_8A import-export'!B$29:B$74,MATCH('Cash Forecast_8A'!B65,'Cash Forecast_8A import-export'!O$29:O$74,0)),\"\")","v":"Gender-based violence prevention and treatment programs for general population"},{"$f":"IFERROR(INDEX('Cash Forecast_8A import-export'!C$29:C$74,MATCH('Cash Forecast_8A'!B65,'Cash Forecast_8A import-export'!O$29:O$74,0)),\"\")","v":0},30000,{"$f":"IFERROR(INDEX('Cash Forecast_8A import-export'!E$29:E$74,MATCH('Cash Forecast_8A'!B65,'Cash Forecast_8A import-export'!O$29:O$74,0)),\"\")","v":9039.4740853367603},9039.4740853367603,39039.474085336762,null,null,null,null,null,0]
[null,"Int40",{"$f":"IFERROR(INDEX('Cash Forecast_8A import-export'!A$29:A$74,MATCH('Cash Forecast_8A'!B66,'Cash Forecast_8A import-export'!O$29:O$74,0)),\"\")","v":"MDR-TB"},{"$f":"IFERROR(INDEX('Cash Forecast_8A import-export'!B$29:B$74,MATCH('Cash Forecast_8A'!B66,'Cash Forecast_8A import-export'!O$29:O$74,0)),\"\")","v":"Case detection and diagnosis: MDR-TB"},{"$f":"IFERROR(INDEX('Cash Forecast_8A import-export'!C$29:C$74,MATCH('Cash Forecast_8A'!B66,'Cash Forecast_8A import-export'!O$29:O$74,0)),\"\")","v":0},null,{"$f":"IFERROR(INDEX('Cash Forecast_8A import-export'!E$29:E$74,MATCH('Cash Forecast_8A'!B66,'Cash Forecast_8A import-export'!O$29:O$74,0)),\"\")","v":27789.511472717601},27789.511472717641,27789.511472717641,null,null,null,null,null,0]
[null,"Int41",{"$f":"IFERROR(INDEX('Cash Forecast_8A import-export'!A$29:A$74,MATCH('Cash Forecast_8A'!B67,'Cash Forecast_8A import-export'!O$29:O$74,0)),\"\")","v":"Comprehensive programs for people in prisons and other closed settings"},{"$f":"IFERROR(INDEX('Cash Forecast_8A import-export'!B$29:B$74,MATCH('Cash Forecast_8A'!B67,'Cash Forecast_8A import-export'!O$29:O$74,0)),\"\")","v":"Condoms and lubricant programming for people in prisons and other closed settings"},{"$f":"IFERROR(INDEX('Cash Forecast_8A import-export'!C$29:C$74,MATCH('Cash Forecast_8A'!B67,'Cash Forecast_8A import-export'!O$29:O$74,0)),\"\")","v":0},null,{"$f":"IFERROR(INDEX('Cash Forecast_8A import-export'!E$29:E$74,MATCH('Cash Forecast_8A'!B67,'Cash Forecast_8A import-export'!O$29:O$74,0)),\"\")","v":6058.6886303199999},6058.6886303199999,6058.6886303199999,null,null,null,null,null,0]
[null,"Int42",{"$f":"IFERROR(INDEX('Cash Forecast_8A import-export'!A$29:A$74,MATCH('Cash Forecast_8A'!B68,'Cash Forecast_8A import-export'!O$29:O$74,0)),\"\")","v":"Comprehensive prevention programs for people who inject drugs (PWID) and their partners"},{"$f":"IFERROR(INDEX('Cash Forecast_8A import-export'!B$29:B$74,MATCH('Cash Forecast_8A'!B68,'Cash Forecast_8A import-export'!O$29:O$74,0)),\"\")","v":"Condoms and lubricant programming for PWID"},{"$f":"IFERROR(INDEX('Cash Forecast_8A import-export'!C$29:C$74,MATCH('Cash Forecast_8A'!B68,'Cash Forecast_8A import-export'!O$29:O$74,0)),\"\")","v":0},null,{"$f":"IFERROR(INDEX('Cash Forecast_8A import-export'!E$29:E$74,MATCH('Cash Forecast_8A'!B68,'Cash Forecast_8A import-export'!O$29:O$74,0)),\"\")","v":278.23917061999998},278.23917061999998,278.23917061999998,null,null,null,null,null,0]
[null,"Int43",{"$f":"IFERROR(INDEX('Cash Forecast_8A import-export'!A$29:A$74,MATCH('Cash Forecast_8A'!B69,'Cash Forecast_8A import-export'!O$29:O$74,0)),\"\")","v":"Prevention programs for adolescents and youth, in and out of school"},{"$f":"IFERROR(INDEX('Cash Forecast_8A import-export'!B$29:B$74,MATCH('Cash Forecast_8A'!B69,'Cash Forecast_8A import-export'!O$29:O$74,0)),\"\")","v":"Male and Female condoms for adolescents and youth, in and out of school"},{"$f":"IFERROR(INDEX('Cash Forecast_8A import-export'!C$29:C$74,MATCH('Cash Forecast_8A'!B69,'Cash Forecast_8A import-export'!O$29:O$74,0)),\"\")","v":0},null,{"$f":"IFERROR(INDEX('Cash Forecast_8A import-export'!E$29:E$74,MATCH('Cash Forecast_8A'!B69,'Cash Forecast_8A import-export'!O$29:O$74,0)),\"\")","v":66006.276648359999},66006.276648359984,66006.276648359984,null,null,null,null,null,0]
[null,"Int44",{"$f":"IFERROR(INDEX('Cash Forecast_8A import-export'!A$29:A$74,MATCH('Cash Forecast_8A'!B70,'Cash Forecast_8A import-export'!O$29:O$74,0)),\"\")","v":"Prevention programs for other vulnerable populations"},{"$f":"IFERROR(INDEX('Cash Forecast_8A import-export'!B$29:B$74,MATCH('Cash Forecast_8A'!B70,'Cash Forecast_8A import-export'!O$29:O$74,0)),\"\")","v":"Male and female condoms for other vulnerable populations"},{"$f":"IFERROR(INDEX('Cash Forecast_8A import-export'!C$29:C$74,MATCH('Cash Forecast_8A'!B70,'Cash Forecast_8A import-export'!O$29:O$74,0)),\"\")","v":0},null,{"$f":"IFERROR(INDEX('Cash Forecast_8A import-export'!E$29:E$74,MATCH('Cash Forecast_8A'!B70,'Cash Forecast_8A import-export'!O$29:O$74,0)),\"\")","v":13849.92134264},13849.92134264,13849.92134264,null,null,null,null,null,0]
[null,"Int45",{"$f":"IFERROR(INDEX('Cash Forecast_8A import-export'!A$29:A$74,MATCH('Cash Forecast_8A'!B71,'Cash Forecast_8A import-export'!O$29:O$74,0)),\"\")","v":""},{"$f":"IFERROR(INDEX('Cash Forecast_8A import-export'!B$29:B$74,MATCH('Cash Forecast_8A'!B71,'Cash Forecast_8A import-export'!O$29:O$74,0)),\"\")","v":""},{"$f":"IFERROR(INDEX('Cash Forecast_8A import-export'!C$29:C$74,MATCH('Cash Forecast_8A'!B71,'Cash Forecast_8A import-export'!O$29:O$74,0)),\"\")","v":""},9533.6468086751956,{"$f":"IFERROR(INDEX('Cash Forecast_8A import-export'!E$29:E$74,MATCH('Cash Forecast_8A'!B71,'Cash Forecast_8A import-export'!O$29:O$74,0)),\"\")","v":""},null,9533.6468086751956,null,null,null,null,null,0]
[null,"Int46",{"$f":"IFERROR(INDEX('Cash Forecast_8A import-export'!A$29:A$74,MATCH('Cash Forecast_8A'!B72,'Cash Forecast_8A import-export'!O$29:O$74,0)),\"\")","v":""},{"$f":"IFERROR(INDEX('Cash Forecast_8A import-export'!B$29:B$74,MATCH('Cash Forecast_8A'!B72,'Cash Forecast_8A import-export'!O$29:O$74,0)),\"\")","v":""},{"$f":"IFERROR(INDEX('Cash Forecast_8A import-export'!C$29:C$74,MATCH('Cash Forecast_8A'!B72,'Cash Forecast_8A import-export'!O$29:O$74,0)),\"\")","v":""},null,{"$f":"IFERROR(INDEX('Cash Forecast_8A import-export'!E$29:E$74,MATCH('Cash Forecast_8A'!B72,'Cash Forecast_8A import-export'!O$29:O$74,0)),\"\")","v":""},null,0,null,null,null,null,null,0]
[null,"Int47",{"$f":"IFERROR(INDEX('Cash Forecast_8A import-export'!A$29:A$74,MATCH('Cash Forecast_8A'!B73,'Cash Forecast_8A import-export'!O$29:O$74,0)),\"\")","v":""},{"$f":"IFERROR(INDEX('Cash Forecast_8A import-export'!B$29:B$74,MATCH('Cash Forecast_8A'!B73,'Cash Forecast_8A import-export'!O$29:O$74,0)),\"\")","v":""},{"$f":"IFERROR(INDEX('Cash Forecast_8A import-export'!C$29:C$74,MATCH('Cash Forecast_8A'!B73,'Cash Forecast_8A import-export'!O$29:O$74,0)),\"\")","v":""},null,{"$f":"IFERROR(INDEX('Cash Forecast_8A import-export'!E$29:E$74,MATCH('Cash Forecast_8A'!B73,'Cash Forecast_8A import-export'!O$29:O$74,0)),\"\")","v":""},null,0,null,null,null,null,null,0]
[null,"Int48",{"$f":"IFERROR(INDEX('Cash Forecast_8A import-export'!A$29:A$74,MATCH('Cash Forecast_8A'!B74,'Cash Forecast_8A import-export'!O$29:O$74,0)),\"\")","v":""},{"$f":"IFERROR(INDEX('Cash Forecast_8A import-export'!B$29:B$74,MATCH('Cash Forecast_8A'!B74,'Cash Forecast_8A import-export'!O$29:O$74,0)),\"\")","v":""},{"$f":"IFERROR(INDEX('Cash Forecast_8A import-export'!C$29:C$74,MATCH('Cash Forecast_8A'!B74,'Cash Forecast_8A import-export'!O$29:O$74,0)),\"\")","v":""},null,{"$f":"IFERROR(INDEX('Cash Forecast_8A import-export'!E$29:E$74,MATCH('Cash Forecast_8A'!B74,'Cash Forecast_8A import-export'!O$29:O$74,0)),\"\")","v":""},null,0,null,null,null,null,null,0]
[null,"Int49",{"$f":"IFERROR(INDEX('Cash Forecast_8A import-export'!A$29:A$74,MATCH('Cash Forecast_8A'!B75,'Cash Forecast_8A import-export'!O$29:O$74,0)),\"\")","v":""},{"$f":"IFERROR(INDEX('Cash Forecast_8A import-export'!B$29:B$74,MATCH('Cash Forecast_8A'!B75,'Cash Forecast_8A import-export'!O$29:O$74,0)),\"\")","v":""},{"$f":"IFERROR(INDEX('Cash Forecast_8A import-export'!C$29:C$74,MATCH('Cash Forecast_8A'!B75,'Cash Forecast_8A import-export'!O$29:O$74,0)),\"\")","v":""},null,{"$f":"IFERROR(INDEX('Cash Forecast_8A import-export'!E$29:E$74,MATCH('Cash Forecast_8A'!B75,'Cash Forecast_8A import-export'!O$29:O$74,0)),\"\")","v":""},null,0,null,null,null,null,null,0]
[null,"Int50",{"$f":"IFERROR(INDEX('Cash Forecast_8A import-export'!A$29:A$74,MATCH('Cash Forecast_8A'!B76,'Cash Forecast_8A import-export'!O$29:O$74,0)),\"\")","v":""},{"$f":"IFERROR(INDEX('Cash Forecast_8A import-export'!B$29:B$74,MATCH('Cash Forecast_8A'!B76,'Cash Forecast_8A import-export'!O$29:O$74,0)),\"\")","v":""},{"$f":"IFERROR(INDEX('Cash Forecast_8A import-export'!C$29:C$74,MATCH('Cash Forecast_8A'!B76,'Cash Forecast_8A import-export'!O$29:O$74,0)),\"\")","v":""},null,{"$f":"IFERROR(INDEX('Cash Forecast_8A import-export'!E$29:E$74,MATCH('Cash Forecast_8A'!B76,'Cash Forecast_8A import-export'!O$29:O$74,0)),\"\")","v":""},null,0,null,null,null,null,null,0]
[null,"Int51",{"$f":"IFERROR(INDEX('Cash Forecast_8A import-export'!A$29:A$74,MATCH('Cash Forecast_8A'!B77,'Cash Forecast_8A import-export'!O$29:O$74,0)),\"\")","v":""},{"$f":"IFERROR(INDEX('Cash Forecast_8A import-export'!B$29:B$74,MATCH('Cash Forecast_8A'!B77,'Cash Forecast_8A import-export'!O$29:O$74,0)),\"\")","v":""},{"$f":"IFERROR(INDEX('Cash Forecast_8A import-export'!C$29:C$74,MATCH('Cash Forecast_8A'!B77,'Cash Forecast_8A import-export'!O$29:O$74,0)),\"\")","v":""},null,{"$f":"IFERROR(INDEX('Cash Forecast_8A import-export'!E$29:E$74,MATCH('Cash Forecast_8A'!B77,'Cash Forecast_8A import-export'!O$29:O$74,0)),\"\")","v":""},null,0,null,null,null,null,null,0]
[null,"Int52",{"$f":"IFERROR(INDEX('Cash Forecast_8A import-export'!A$29:A$74,MATCH('Cash Forecast_8A'!B78,'Cash Forecast_8A import-export'!O$29:O$74,0)),\"\")","v":""},{"$f":"IFERROR(INDEX('Cash Forecast_8A import-export'!B$29:B$74,MATCH('Cash Forecast_8A'!B78,'Cash Forecast_8A import-export'!O$29:O$74,0)),\"\")","v":""},{"$f":"IFERROR(INDEX('Cash Forecast_8A import-export'!C$29:C$74,MATCH('Cash Forecast_8A'!B78,'Cash Forecast_8A import-export'!O$29:O$74,0)),\"\")","v":""},null,{"$f":"IFERROR(INDEX('Cash Forecast_8A import-export'!E$29:E$74,MATCH('Cash Forecast_8A'!B78,'Cash Forecast_8A import-export'!O$29:O$74,0)),\"\")","v":""},null,0,null,null,null,null,null,0]
[null,"Int53",{"$f":"IFERROR(INDEX('Cash Forecast_8A import-export'!A$29:A$74,MATCH('Cash Forecast_8A'!B79,'Cash Forecast_8A import-export'!O$29:O$74,0)),\"\")","v":""},{"$f":"IFERROR(INDEX('Cash Forecast_8A import-export'!B$29:B$74,MATCH('Cash Forecast_8A'!B79,'Cash Forecast_8A import-export'!O$29:O$74,0)),\"\")","v":""},{"$f":"IFERROR(INDEX('Cash Forecast_8A import-export'!C$29:C$74,MATCH('Cash Forecast_8A'!B79,'Cash Forecast_8A import-export'!O$29:O$74,0)),\"\")","v":""},null,{"$f":"IFERROR(INDEX('Cash Forecast_8A import-export'!E$29:E$74,MATCH('Cash Forecast_8A'!B79,'Cash Forecast_8A import-export'!O$29:O$74,0)),\"\")","v":""},null,0,null,null,null,null,null,0]
[null,"Int54",{"$f":"IFERROR(INDEX('Cash Forecast_8A import-export'!A$29:A$74,MATCH('Cash Forecast_8A'!B80,'Cash Forecast_8A import-export'!O$29:O$74,0)),\"\")","v":""},{"$f":"IFERROR(INDEX('Cash Forecast_8A import-export'!B$29:B$74,MATCH('Cash Forecast_8A'!B80,'Cash Forecast_8A import-export'!O$29:O$74,0)),\"\")","v":""},{"$f":"IFERROR(INDEX('Cash Forecast_8A import-export'!C$29:C$74,MATCH('Cash Forecast_8A'!B80,'Cash Forecast_8A import-export'!O$29:O$74,0)),\"\")","v":""},null,{"$f":"IFERROR(INDEX('Cash Forecast_8A import-export'!E$29:E$74,MATCH('Cash Forecast_8A'!B80,'Cash Forecast_8A import-export'!O$29:O$74,0)),\"\")","v":""},null,0,null,null,null,null,null,0]
[null,"Int55",{"$f":"IFERROR(INDEX('Cash Forecast_8A import-export'!A$29:A$74,MATCH('Cash Forecast_8A'!B81,'Cash Forecast_8A import-export'!O$29:O$74,0)),\"\")","v":""},{"$f":"IFERROR(INDEX('Cash Forecast_8A import-export'!B$29:B$74,MATCH('Cash Forecast_8A'!B81,'Cash Forecast_8A import-export'!O$29:O$74,0)),\"\")","v":""},{"$f":"IFERROR(INDEX('Cash Forecast_8A import-export'!C$29:C$74,MATCH('Cash Forecast_8A'!B81,'Cash Forecast_8A import-export'!O$29:O$74,0)),\"\")","v":""},null,{"$f":"IFERROR(INDEX('Cash Forecast_8A import-export'!E$29:E$74,MATCH('Cash Forecast_8A'!B81,'Cash Forecast_8A import-export'!O$29:O$74,0)),\"\")","v":""},null,0,null,null,null,null,null,0]
[null,"Int56",{"$f":"IFERROR(INDEX('Cash Forecast_8A import-export'!A$29:A$74,MATCH('Cash Forecast_8A'!B82,'Cash Forecast_8A import-export'!O$29:O$74,0)),\"\")","v":""},{"$f":"IFERROR(INDEX('Cash Forecast_8A import-export'!B$29:B$74,MATCH('Cash Forecast_8A'!B82,'Cash Forecast_8A import-export'!O$29:O$74,0)),\"\")","v":""},{"$f":"IFERROR(INDEX('Cash Forecast_8A import-export'!C$29:C$74,MATCH('Cash Forecast_8A'!B82,'Cash Forecast_8A import-export'!O$29:O$74,0)),\"\")","v":""},null,{"$f":"IFERROR(INDEX('Cash Forecast_8A import-export'!E$29:E$74,MATCH('Cash Forecast_8A'!B82,'Cash Forecast_8A import-export'!O$29:O$74,0)),\"\")","v":""},null,0,null,null,null,null,null,0]
[null,"Int57",{"$f":"IFERROR(INDEX('Cash Forecast_8A import-export'!A$29:A$74,MATCH('Cash Forecast_8A'!B83,'Cash Forecast_8A import-export'!O$29:O$74,0)),\"\")","v":""},{"$f":"IFERROR(INDEX('Cash Forecast_8A import-export'!B$29:B$74,MATCH('Cash Forecast_8A'!B83,'Cash Forecast_8A import-export'!O$29:O$74,0)),\"\")","v":""},{"$f":"IFERROR(INDEX('Cash Forecast_8A import-export'!C$29:C$74,MATCH('Cash Forecast_8A'!B83,'Cash Forecast_8A import-export'!O$29:O$74,0)),\"\")","v":""},null,{"$f":"IFERROR(INDEX('Cash Forecast_8A import-export'!E$29:E$74,MATCH('Cash Forecast_8A'!B83,'Cash Forecast_8A import-export'!O$29:O$74,0)),\"\")","v":""},null,0,null,null,null,null,null,0]
[null,"Int58",{"$f":"IFERROR(INDEX('Cash Forecast_8A import-export'!A$29:A$74,MATCH('Cash Forecast_8A'!B84,'Cash Forecast_8A import-export'!O$29:O$74,0)),\"\")","v":""},{"$f":"IFERROR(INDEX('Cash Forecast_8A import-export'!B$29:B$74,MATCH('Cash Forecast_8A'!B84,'Cash Forecast_8A import-export'!O$29:O$74,0)),\"\")","v":""},{"$f":"IFERROR(INDEX('Cash Forecast_8A import-export'!C$29:C$74,MATCH('Cash Forecast_8A'!B84,'Cash Forecast_8A import-export'!O$29:O$74,0)),\"\")","v":""},null,{"$f":"IFERROR(INDEX('Cash Forecast_8A import-export'!E$29:E$74,MATCH('Cash Forecast_8A'!B84,'Cash Forecast_8A import-export'!O$29:O$74,0)),\"\")","v":""},null,0,null,null,null,null,null,0]
[null,"Int59",{"$f":"IFERROR(INDEX('Cash Forecast_8A import-export'!A$29:A$74,MATCH('Cash Forecast_8A'!B85,'Cash Forecast_8A import-export'!O$29:O$74,0)),\"\")","v":""},{"$f":"IFERROR(INDEX('Cash Forecast_8A import-export'!B$29:B$74,MATCH('Cash Forecast_8A'!B85,'Cash Forecast_8A import-export'!O$29:O$74,0)),\"\")","v":""},{"$f":"IFERROR(INDEX('Cash Forecast_8A import-export'!C$29:C$74,MATCH('Cash Forecast_8A'!B85,'Cash Forecast_8A import-export'!O$29:O$74,0)),\"\")","v":""},null,{"$f":"IFERROR(INDEX('Cash Forecast_8A import-export'!E$29:E$74,MATCH('Cash Forecast_8A'!B85,'Cash Forecast_8A import-export'!O$29:O$74,0)),\"\")","v":""},null,0,null,null,null,null,null,0]
[null,"Int60",{"$f":"IFERROR(INDEX('Cash Forecast_8A import-export'!A$29:A$74,MATCH('Cash Forecast_8A'!B86,'Cash Forecast_8A import-export'!O$29:O$74,0)),\"\")","v":""},{"$f":"IFERROR(INDEX('Cash Forecast_8A import-export'!B$29:B$74,MATCH('Cash Forecast_8A'!B86,'Cash Forecast_8A import-export'!O$29:O$74,0)),\"\")","v":""},{"$f":"IFERROR(INDEX('Cash Forecast_8A import-export'!C$29:C$74,MATCH('Cash Forecast_8A'!B86,'Cash Forecast_8A import-export'!O$29:O$74,0)),\"\")","v":""},null,{"$f":"IFERROR(INDEX('Cash Forecast_8A import-export'!E$29:E$74,MATCH('Cash Forecast_8A'!B86,'Cash Forecast_8A import-export'!O$29:O$74,0)),\"\")","v":""},null,0,null,null,null,null,null,0]
[null,"Int61",{"$f":"IFERROR(INDEX('Cash Forecast_8A import-export'!A$29:A$74,MATCH('Cash Forecast_8A'!B87,'Cash Forecast_8A import-export'!O$29:O$74,0)),\"\")","v":""},{"$f":"IFERROR(INDEX('Cash Forecast_8A import-export'!B$29:B$74,MATCH('Cash Forecast_8A'!B87,'Cash Forecast_8A import-export'!O$29:O$74,0)),\"\")","v":""},{"$f":"IFERROR(INDEX('Cash Forecast_8A import-export'!C$29:C$74,MATCH('Cash Forecast_8A'!B87,'Cash Forecast_8A import-export'!O$29:O$74,0)),\"\")","v":""},null,{"$f":"IFERROR(INDEX('Cash Forecast_8A import-export'!E$29:E$74,MATCH('Cash Forecast_8A'!B87,'Cash Forecast_8A import-export'!O$29:O$74,0)),\"\")","v":""},null,0,null,null,null,null,null,0]
[null,"Int62",{"$f":"IFERROR(INDEX('Cash Forecast_8A import-export'!A$29:A$74,MATCH('Cash Forecast_8A'!B88,'Cash Forecast_8A import-export'!O$29:O$74,0)),\"\")","v":""},{"$f":"IFERROR(INDEX('Cash Forecast_8A import-export'!B$29:B$74,MATCH('Cash Forecast_8A'!B88,'Cash Forecast_8A import-export'!O$29:O$74,0)),\"\")","v":""},{"$f":"IFERROR(INDEX('Cash Forecast_8A import-export'!C$29:C$74,MATCH('Cash Forecast_8A'!B88,'Cash Forecast_8A import-export'!O$29:O$74,0)),\"\")","v":""},null,{"$f":"IFERROR(INDEX('Cash Forecast_8A import-export'!E$29:E$74,MATCH('Cash Forecast_8A'!B88,'Cash Forecast_8A import-export'!O$29:O$74,0)),\"\")","v":""},null,0,null,null,null,null,null,0]
[null,"Int63",{"$f":"IFERROR(INDEX('Cash Forecast_8A import-export'!A$29:A$74,MATCH('Cash Forecast_8A'!B89,'Cash Forecast_8A import-export'!O$29:O$74,0)),\"\")","v":""},{"$f":"IFERROR(INDEX('Cash Forecast_8A import-export'!B$29:B$74,MATCH('Cash Forecast_8A'!B89,'Cash Forecast_8A import-export'!O$29:O$74,0)),\"\")","v":""},{"$f":"IFERROR(INDEX('Cash Forecast_8A import-export'!C$29:C$74,MATCH('Cash Forecast_8A'!B89,'Cash Forecast_8A import-export'!O$29:O$74,0)),\"\")","v":""},null,{"$f":"IFERROR(INDEX('Cash Forecast_8A import-export'!E$29:E$74,MATCH('Cash Forecast_8A'!B89,'Cash Forecast_8A import-export'!O$29:O$74,0)),\"\")","v":""},null,0,null,null,null,null,null,0]
[null,"Int64",{"$f":"IFERROR(INDEX('Cash Forecast_8A import-export'!A$29:A$74,MATCH('Cash Forecast_8A'!B90,'Cash Forecast_8A import-export'!O$29:O$74,0)),\"\")","v":""},{"$f":"IFERROR(INDEX('Cash Forecast_8A import-export'!B$29:B$74,MATCH('Cash Forecast_8A'!B90,'Cash Forecast_8A import-export'!O$29:O$74,0)),\"\")","v":""},{"$f":"IFERROR(INDEX('Cash Forecast_8A import-export'!C$29:C$74,MATCH('Cash Forecast_8A'!B90,'Cash Forecast_8A import-export'!O$29:O$74,0)),\"\")","v":""},null,{"$f":"IFERROR(INDEX('Cash Forecast_8A import-export'!E$29:E$74,MATCH('Cash Forecast_8A'!B90,'Cash Forecast_8A import-export'!O$29:O$74,0)),\"\")","v":""},null,0,null,null,null,null,null,0]
[null,"Int65",{"$f":"IFERROR(INDEX('Cash Forecast_8A import-export'!A$29:A$74,MATCH('Cash Forecast_8A'!B91,'Cash Forecast_8A import-export'!O$29:O$74,0)),\"\")","v":""},{"$f":"IFERROR(INDEX('Cash Forecast_8A import-export'!B$29:B$74,MATCH('Cash Forecast_8A'!B91,'Cash Forecast_8A import-export'!O$29:O$74,0)),\"\")","v":""},{"$f":"IFERROR(INDEX('Cash Forecast_8A import-export'!C$29:C$74,MATCH('Cash Forecast_8A'!B91,'Cash Forecast_8A import-export'!O$29:O$74,0)),\"\")","v":""},null,{"$f":"IFERROR(INDEX('Cash Forecast_8A import-export'!E$29:E$74,MATCH('Cash Forecast_8A'!B91,'Cash Forecast_8A import-export'!O$29:O$74,0)),\"\")","v":""},null,0,null,null,null,null,null,0]
[null,"Int66",{"$f":"IFERROR(INDEX('Cash Forecast_8A import-export'!A$29:A$74,MATCH('Cash Forecast_8A'!B92,'Cash Forecast_8A import-export'!O$29:O$74,0)),\"\")","v":""},{"$f":"IFERROR(INDEX('Cash Forecast_8A import-export'!B$29:B$74,MATCH('Cash Forecast_8A'!B92,'Cash Forecast_8A import-export'!O$29:O$74,0)),\"\")","v":""},{"$f":"IFERROR(INDEX('Cash Forecast_8A import-export'!C$29:C$74,MATCH('Cash Forecast_8A'!B92,'Cash Forecast_8A import-export'!O$29:O$74,0)),\"\")","v":""},null,{"$f":"IFERROR(INDEX('Cash Forecast_8A import-export'!E$29:E$74,MATCH('Cash Forecast_8A'!B92,'Cash Forecast_8A import-export'!O$29:O$74,0)),\"\")","v":""},null,0,null,null,null,null,null,0]
[null,"Int67",{"$f":"IFERROR(INDEX('Cash Forecast_8A import-export'!A$29:A$74,MATCH('Cash Forecast_8A'!B93,'Cash Forecast_8A import-export'!O$29:O$74,0)),\"\")","v":""},{"$f":"IFERROR(INDEX('Cash Forecast_8A import-export'!B$29:B$74,MATCH('Cash Forecast_8A'!B93,'Cash Forecast_8A import-export'!O$29:O$74,0)),\"\")","v":""},{"$f":"IFERROR(INDEX('Cash Forecast_8A import-export'!C$29:C$74,MATCH('Cash Forecast_8A'!B93,'Cash Forecast_8A import-export'!O$29:O$74,0)),\"\")","v":""},null,{"$f":"IFERROR(INDEX('Cash Forecast_8A import-export'!E$29:E$74,MATCH('Cash Forecast_8A'!B93,'Cash Forecast_8A import-export'!O$29:O$74,0)),\"\")","v":""},null,0,null,null,null,null,null,0]
[null,"Int68",{"$f":"IFERROR(INDEX('Cash Forecast_8A import-export'!A$29:A$74,MATCH('Cash Forecast_8A'!B94,'Cash Forecast_8A import-export'!O$29:O$74,0)),\"\")","v":""},{"$f":"IFERROR(INDEX('Cash Forecast_8A import-export'!B$29:B$74,MATCH('Cash Forecast_8A'!B94,'Cash Forecast_8A import-export'!O$29:O$74,0)),\"\")","v":""},{"$f":"IFERROR(INDEX('Cash Forecast_8A import-export'!C$29:C$74,MATCH('Cash Forecast_8A'!B94,'Cash Forecast_8A import-export'!O$29:O$74,0)),\"\")","v":""},null,{"$f":"IFERROR(INDEX('Cash Forecast_8A import-export'!E$29:E$74,MATCH('Cash Forecast_8A'!B94,'Cash Forecast_8A import-export'!O$29:O$74,0)),\"\")","v":""},null,0,null,null,null,null,null,0]
[null,"Int69",{"$f":"IFERROR(INDEX('Cash Forecast_8A import-export'!A$29:A$74,MATCH('Cash Forecast_8A'!B95,'Cash Forecast_8A import-export'!O$29:O$74,0)),\"\")","v":""},{"$f":"IFERROR(INDEX('Cash Forecast_8A import-export'!B$29:B$74,MATCH('Cash Forecast_8A'!B95,'Cash Forecast_8A import-export'!O$29:O$74,0)),\"\")","v":""},{"$f":"IFERROR(INDEX('Cash Forecast_8A import-export'!C$29:C$74,MATCH('Cash Forecast_8A'!B95,'Cash Forecast_8A import-export'!O$29:O$74,0)),\"\")","v":""},null,{"$f":"IFERROR(INDEX('Cash Forecast_8A import-export'!E$29:E$74,MATCH('Cash Forecast_8A'!B95,'Cash Forecast_8A import-export'!O$29:O$74,0)),\"\")","v":""},null,0,null,null,null,null,null,0]
[null,"Int70",{"$f":"IFERROR(INDEX('Cash Forecast_8A import-export'!A$29:A$74,MATCH('Cash Forecast_8A'!B96,'Cash Forecast_8A import-export'!O$29:O$74,0)),\"\")","v":""},{"$f":"IFERROR(INDEX('Cash Forecast_8A import-export'!B$29:B$74,MATCH('Cash Forecast_8A'!B96,'Cash Forecast_8A import-export'!O$29:O$74,0)),\"\")","v":""},{"$f":"IFERROR(INDEX('Cash Forecast_8A import-export'!C$29:C$74,MATCH('Cash Forecast_8A'!B96,'Cash Forecast_8A import-export'!O$29:O$74,0)),\"\")","v":""},null,{"$f":"IFERROR(INDEX('Cash Forecast_8A import-export'!E$29:E$74,MATCH('Cash Forecast_8A'!B96,'Cash Forecast_8A import-export'!O$29:O$74,0)),\"\")","v":""},null,{"$f":"IFERROR(F96+H96,\"\")","v":0},null,null,null,null,null,{"$f":"IFERROR(L96+M96,\"\")","v":0}]
[null,"Int71",{"$f":"IFERROR(INDEX('Cash Forecast_8A import-export'!A$29:A$74,MATCH('Cash Forecast_8A'!B97,'Cash Forecast_8A import-export'!O$29:O$74,0)),\"\")","v":""},{"$f":"IFERROR(INDEX('Cash Forecast_8A import-export'!B$29:B$74,MATCH('Cash Forecast_8A'!B97,'Cash Forecast_8A import-export'!O$29:O$74,0)),\"\")","v":""},{"$f":"IFERROR(INDEX('Cash Forecast_8A import-export'!C$29:C$74,MATCH('Cash Forecast_8A'!B97,'Cash Forecast_8A import-export'!O$29:O$74,0)),\"\")","v":""},null,{"$f":"IFERROR(INDEX('Cash Forecast_8A import-export'!E$29:E$74,MATCH('Cash Forecast_8A'!B97,'Cash Forecast_8A import-export'!O$29:O$74,0)),\"\")","v":""},null,0,null,null,null,null,null,0]
[null,"Int72",{"$f":"IFERROR(INDEX('Cash Forecast_8A import-export'!A$29:A$74,MATCH('Cash Forecast_8A'!B98,'Cash Forecast_8A import-export'!O$29:O$74,0)),\"\")","v":""},{"$f":"IFERROR(INDEX('Cash Forecast_8A import-export'!B$29:B$74,MATCH('Cash Forecast_8A'!B98,'Cash Forecast_8A import-export'!O$29:O$74,0)),\"\")","v":""},{"$f":"IFERROR(INDEX('Cash Forecast_8A import-export'!C$29:C$74,MATCH('Cash Forecast_8A'!B98,'Cash Forecast_8A import-export'!O$29:O$74,0)),\"\")","v":""},null,{"$f":"IFERROR(INDEX('Cash Forecast_8A import-export'!E$29:E$74,MATCH('Cash Forecast_8A'!B98,'Cash Forecast_8A import-export'!O$29:O$74,0)),\"\")","v":""},null,0,null,null,null,null,null,0]
[null,"Int73",{"$f":"IFERROR(INDEX('Cash Forecast_8A import-export'!A$29:A$74,MATCH('Cash Forecast_8A'!B99,'Cash Forecast_8A import-export'!O$29:O$74,0)),\"\")","v":""},{"$f":"IFERROR(INDEX('Cash Forecast_8A import-export'!B$29:B$74,MATCH('Cash Forecast_8A'!B99,'Cash Forecast_8A import-export'!O$29:O$74,0)),\"\")","v":""},{"$f":"IFERROR(INDEX('Cash Forecast_8A import-export'!C$29:C$74,MATCH('Cash Forecast_8A'!B99,'Cash Forecast_8A import-export'!O$29:O$74,0)),\"\")","v":""},null,{"$f":"IFERROR(INDEX('Cash Forecast_8A import-export'!E$29:E$74,MATCH('Cash Forecast_8A'!B99,'Cash Forecast_8A import-export'!O$29:O$74,0)),\"\")","v":""},null,0,null,null,null,null,null,0]
[null,"Int74",{"$f":"IFERROR(INDEX('Cash Forecast_8A import-export'!A$29:A$74,MATCH('Cash Forecast_8A'!B100,'Cash Forecast_8A import-export'!O$29:O$74,0)),\"\")","v":""},{"$f":"IFERROR(INDEX('Cash Forecast_8A import-export'!B$29:B$74,MATCH('Cash Forecast_8A'!B100,'Cash Forecast_8A import-export'!O$29:O$74,0)),\"\")","v":""},{"$f":"IFERROR(INDEX('Cash Forecast_8A import-export'!C$29:C$74,MATCH('Cash Forecast_8A'!B100,'Cash Forecast_8A import-export'!O$29:O$74,0)),\"\")","v":""},null,{"$f":"IFERROR(INDEX('Cash Forecast_8A import-export'!E$29:E$74,MATCH('Cash Forecast_8A'!B100,'Cash Forecast_8A import-export'!O$29:O$74,0)),\"\")","v":""},null,0,null,null,null,null,null,0]
[null,"Int75",{"$f":"IFERROR(INDEX('Cash Forecast_8A import-export'!A$29:A$74,MATCH('Cash Forecast_8A'!B101,'Cash Forecast_8A import-export'!O$29:O$74,0)),\"\")","v":""},{"$f":"IFERROR(INDEX('Cash Forecast_8A import-export'!B$29:B$74,MATCH('Cash Forecast_8A'!B101,'Cash Forecast_8A import-export'!O$29:O$74,0)),\"\")","v":""},{"$f":"IFERROR(INDEX('Cash Forecast_8A import-export'!C$29:C$74,MATCH('Cash Forecast_8A'!B101,'Cash Forecast_8A import-export'!O$29:O$74,0)),\"\")","v":""},null,{"$f":"IFERROR(INDEX('Cash Forecast_8A import-export'!E$29:E$74,MATCH('Cash Forecast_8A'!B101,'Cash Forecast_8A import-export'!O$29:O$74,0)),\"\")","v":""},null,0,null,null,null,null,null,0]
[null,"Int76",{"$f":"IFERROR(INDEX('Cash Forecast_8A import-export'!A$29:A$74,MATCH('Cash Forecast_8A'!B102,'Cash Forecast_8A import-export'!O$29:O$74,0)),\"\")","v":""},{"$f":"IFERROR(INDEX('Cash Forecast_8A import-export'!B$29:B$74,MATCH('Cash Forecast_8A'!B102,'Cash Forecast_8A import-export'!O$29:O$74,0)),\"\")","v":""},{"$f":"IFERROR(INDEX('Cash Forecast_8A import-export'!C$29:C$74,MATCH('Cash Forecast_8A'!B102,'Cash Forecast_8A import-export'!O$29:O$74,0)),\"\")","v":""},null,{"$f":"IFERROR(INDEX('Cash Forecast_8A import-export'!E$29:E$74,MATCH('Cash Forecast_8A'!B102,'Cash Forecast_8A import-export'!O$29:O$74,0)),\"\")","v":""},null,0,null,null,null,null,null,0]
[null,"Int77",{"$f":"IFERROR(INDEX('Cash Forecast_8A import-export'!A$29:A$74,MATCH('Cash Forecast_8A'!B103,'Cash Forecast_8A import-export'!O$29:O$74,0)),\"\")","v":""},{"$f":"IFERROR(INDEX('Cash Forecast_8A import-export'!B$29:B$74,MATCH('Cash Forecast_8A'!B103,'Cash Forecast_8A import-export'!O$29:O$74,0)),\"\")","v":""},{"$f":"IFERROR(INDEX('Cash Forecast_8A import-export'!C$29:C$74,MATCH('Cash Forecast_8A'!B103,'Cash Forecast_8A import-export'!O$29:O$74,0)),\"\")","v":""},null,{"$f":"IFERROR(INDEX('Cash Forecast_8A import-export'!E$29:E$74,MATCH('Cash Forecast_8A'!B103,'Cash Forecast_8A import-export'!O$29:O$74,0)),\"\")","v":""},null,0,null,null,null,null,null,0]
[null,"Int78",{"$f":"IFERROR(INDEX('Cash Forecast_8A import-export'!A$29:A$74,MATCH('Cash Forecast_8A'!B104,'Cash Forecast_8A import-export'!O$29:O$74,0)),\"\")","v":""},{"$f":"IFERROR(INDEX('Cash Forecast_8A import-export'!B$29:B$74,MATCH('Cash Forecast_8A'!B104,'Cash Forecast_8A import-export'!O$29:O$74,0)),\"\")","v":""},{"$f":"IFERROR(INDEX('Cash Forecast_8A import-export'!C$29:C$74,MATCH('Cash Forecast_8A'!B104,'Cash Forecast_8A import-export'!O$29:O$74,0)),\"\")","v":""},null,{"$f":"IFERROR(INDEX('Cash Forecast_8A import-export'!E$29:E$74,MATCH('Cash Forecast_8A'!B104,'Cash Forecast_8A import-export'!O$29:O$74,0)),\"\")","v":""},null,0,null,null,null,null,null,0]
[null,"Int79",{"$f":"IFERROR(INDEX('Cash Forecast_8A import-export'!A$29:A$74,MATCH('Cash Forecast_8A'!B105,'Cash Forecast_8A import-export'!O$29:O$74,0)),\"\")","v":""},{"$f":"IFERROR(INDEX('Cash Forecast_8A import-export'!B$29:B$74,MATCH('Cash Forecast_8A'!B105,'Cash Forecast_8A import-export'!O$29:O$74,0)),\"\")","v":""},{"$f":"IFERROR(INDEX('Cash Forecast_8A import-export'!C$29:C$74,MATCH('Cash Forecast_8A'!B105,'Cash Forecast_8A import-export'!O$29:O$74,0)),\"\")","v":""},null,{"$f":"IFERROR(INDEX('Cash Forecast_8A import-export'!E$29:E$74,MATCH('Cash Forecast_8A'!B105,'Cash Forecast_8A import-export'!O$29:O$74,0)),\"\")","v":""},null,0,null,null,null,null,null,0]
[null,"Int80",{"$f":"IFERROR(INDEX('Cash Forecast_8A import-export'!A$29:A$74,MATCH('Cash Forecast_8A'!B106,'Cash Forecast_8A import-export'!O$29:O$74,0)),\"\")","v":""},{"$f":"IFERROR(INDEX('Cash Forecast_8A import-export'!B$29:B$74,MATCH('Cash Forecast_8A'!B106,'Cash Forecast_8A import-export'!O$29:O$74,0)),\"\")","v":""},{"$f":"IFERROR(INDEX('Cash Forecast_8A import-export'!C$29:C$74,MATCH('Cash Forecast_8A'!B106,'Cash Forecast_8A import-export'!O$29:O$74,0)),\"\")","v":""},null,{"$f":"IFERROR(INDEX('Cash Forecast_8A import-export'!E$29:E$74,MATCH('Cash Forecast_8A'!B106,'Cash Forecast_8A import-export'!O$29:O$74,0)),\"\")","v":""},null,0,null,null,null,null,null,0]
[null,"Int81",{"$f":"IFERROR(INDEX('Cash Forecast_8A import-export'!A$29:A$74,MATCH('Cash Forecast_8A'!B107,'Cash Forecast_8A import-export'!O$29:O$74,0)),\"\")","v":""},{"$f":"IFERROR(INDEX('Cash Forecast_8A import-export'!B$29:B$74,MATCH('Cash Forecast_8A'!B107,'Cash Forecast_8A import-export'!O$29:O$74,0)),\"\")","v":""},{"$f":"IFERROR(INDEX('Cash Forecast_8A import-export'!C$29:C$74,MATCH('Cash Forecast_8A'!B107,'Cash Forecast_8A import-export'!O$29:O$74,0)),\"\")","v":""},null,{"$f":"IFERROR(INDEX('Cash Forecast_8A import-export'!E$29:E$74,MATCH('Cash Forecast_8A'!B107,'Cash Forecast_8A import-export'!O$29:O$74,0)),\"\")","v":""},null,0,null,null,null,null,null,0]
[null,"Int82",{"$f":"IFERROR(INDEX('Cash Forecast_8A import-export'!A$29:A$74,MATCH('Cash Forecast_8A'!B108,'Cash Forecast_8A import-export'!O$29:O$74,0)),\"\")","v":""},{"$f":"IFERROR(INDEX('Cash Forecast_8A import-export'!B$29:B$74,MATCH('Cash Forecast_8A'!B108,'Cash Forecast_8A import-export'!O$29:O$74,0)),\"\")","v":""},{"$f":"IFERROR(INDEX('Cash Forecast_8A import-export'!C$29:C$74,MATCH('Cash Forecast_8A'!B108,'Cash Forecast_8A import-export'!O$29:O$74,0)),\"\")","v":""},null,{"$f":"IFERROR(INDEX('Cash Forecast_8A import-export'!E$29:E$74,MATCH('Cash Forecast_8A'!B108,'Cash Forecast_8A import-export'!O$29:O$74,0)),\"\")","v":""},null,0,null,null,null,null,null,0]
[null,"Int83",{"$f":"IFERROR(INDEX('Cash Forecast_8A import-export'!A$29:A$74,MATCH('Cash Forecast_8A'!B109,'Cash Forecast_8A import-export'!O$29:O$74,0)),\"\")","v":""},{"$f":"IFERROR(INDEX('Cash Forecast_8A import-export'!B$29:B$74,MATCH('Cash Forecast_8A'!B109,'Cash Forecast_8A import-export'!O$29:O$74,0)),\"\")","v":""},{"$f":"IFERROR(INDEX('Cash Forecast_8A import-export'!C$29:C$74,MATCH('Cash Forecast_8A'!B109,'Cash Forecast_8A import-export'!O$29:O$74,0)),\"\")","v":""},null,{"$f":"IFERROR(INDEX('Cash Forecast_8A import-export'!E$29:E$74,MATCH('Cash Forecast_8A'!B109,'Cash Forecast_8A import-export'!O$29:O$74,0)),\"\")","v":""},null,0,null,null,null,null,null,0]
[null,"Int84",{"$f":"IFERROR(INDEX('Cash Forecast_8A import-export'!A$29:A$74,MATCH('Cash Forecast_8A'!B110,'Cash Forecast_8A import-export'!O$29:O$74,0)),\"\")","v":""},{"$f":"IFERROR(INDEX('Cash Forecast_8A import-export'!B$29:B$74,MATCH('Cash Forecast_8A'!B110,'Cash Forecast_8A import-export'!O$29:O$74,0)),\"\")","v":""},{"$f":"IFERROR(INDEX('Cash Forecast_8A import-export'!C$29:C$74,MATCH('Cash Forecast_8A'!B110,'Cash Forecast_8A import-export'!O$29:O$74,0)),\"\")","v":""},null,{"$f":"IFERROR(INDEX('Cash Forecast_8A import-export'!E$29:E$74,MATCH('Cash Forecast_8A'!B110,'Cash Forecast_8A import-export'!O$29:O$74,0)),\"\")","v":""},null,0,null,null,null,null,null,0]
[null,"Int85",{"$f":"IFERROR(INDEX('Cash Forecast_8A import-export'!A$29:A$74,MATCH('Cash Forecast_8A'!B111,'Cash Forecast_8A import-export'!O$29:O$74,0)),\"\")","v":""},{"$f":"IFERROR(INDEX('Cash Forecast_8A import-export'!B$29:B$74,MATCH('Cash Forecast_8A'!B111,'Cash Forecast_8A import-export'!O$29:O$74,0)),\"\")","v":""},{"$f":"IFERROR(INDEX('Cash Forecast_8A import-export'!C$29:C$74,MATCH('Cash Forecast_8A'!B111,'Cash Forecast_8A import-export'!O$29:O$74,0)),\"\")","v":""},null,{"$f":"IFERROR(INDEX('Cash Forecast_8A import-export'!E$29:E$74,MATCH('Cash Forecast_8A'!B111,'Cash Forecast_8A import-export'!O$29:O$74,0)),\"\")","v":""},null,0,null,null,null,null,null,0]
[null,"Int86",{"$f":"IFERROR(INDEX('Cash Forecast_8A import-export'!A$29:A$74,MATCH('Cash Forecast_8A'!B112,'Cash Forecast_8A import-export'!O$29:O$74,0)),\"\")","v":""},{"$f":"IFERROR(INDEX('Cash Forecast_8A import-export'!B$29:B$74,MATCH('Cash Forecast_8A'!B112,'Cash Forecast_8A import-export'!O$29:O$74,0)),\"\")","v":""},{"$f":"IFERROR(INDEX('Cash Forecast_8A import-export'!C$29:C$74,MATCH('Cash Forecast_8A'!B112,'Cash Forecast_8A import-export'!O$29:O$74,0)),\"\")","v":""},null,{"$f":"IFERROR(INDEX('Cash Forecast_8A import-export'!E$29:E$74,MATCH('Cash Forecast_8A'!B112,'Cash Forecast_8A import-export'!O$29:O$74,0)),\"\")","v":""},null,0,null,null,null,null,null,0]
[null,"Int87",{"$f":"IFERROR(INDEX('Cash Forecast_8A import-export'!A$29:A$74,MATCH('Cash Forecast_8A'!B113,'Cash Forecast_8A import-export'!O$29:O$74,0)),\"\")","v":""},{"$f":"IFERROR(INDEX('Cash Forecast_8A import-export'!B$29:B$74,MATCH('Cash Forecast_8A'!B113,'Cash Forecast_8A import-export'!O$29:O$74,0)),\"\")","v":""},{"$f":"IFERROR(INDEX('Cash Forecast_8A import-export'!C$29:C$74,MATCH('Cash Forecast_8A'!B113,'Cash Forecast_8A import-export'!O$29:O$74,0)),\"\")","v":""},null,{"$f":"IFERROR(INDEX('Cash Forecast_8A import-export'!E$29:E$74,MATCH('Cash Forecast_8A'!B113,'Cash Forecast_8A import-export'!O$29:O$74,0)),\"\")","v":""},null,0,null,null,null,null,null,0]
[null,"Int88",{"$f":"IFERROR(INDEX('Cash Forecast_8A import-export'!A$29:A$74,MATCH('Cash Forecast_8A'!B114,'Cash Forecast_8A import-export'!O$29:O$74,0)),\"\")","v":""},{"$f":"IFERROR(INDEX('Cash Forecast_8A import-export'!B$29:B$74,MATCH('Cash Forecast_8A'!B114,'Cash Forecast_8A import-export'!O$29:O$74,0)),\"\")","v":""},{"$f":"IFERROR(INDEX('Cash Forecast_8A import-export'!C$29:C$74,MATCH('Cash Forecast_8A'!B114,'Cash Forecast_8A import-export'!O$29:O$74,0)),\"\")","v":""},null,{"$f":"IFERROR(INDEX('Cash Forecast_8A import-export'!E$29:E$74,MATCH('Cash Forecast_8A'!B114,'Cash Forecast_8A import-export'!O$29:O$74,0)),\"\")","v":""},null,0,null,null,null,null,null,0]
[null,"Int89",{"$f":"IFERROR(INDEX('Cash Forecast_8A import-export'!A$29:A$74,MATCH('Cash Forecast_8A'!B115,'Cash Forecast_8A import-export'!O$29:O$74,0)),\"\")","v":""},{"$f":"IFERROR(INDEX('Cash Forecast_8A import-export'!B$29:B$74,MATCH('Cash Forecast_8A'!B115,'Cash Forecast_8A import-export'!O$29:O$74,0)),\"\")","v":""},{"$f":"IFERROR(INDEX('Cash Forecast_8A import-export'!C$29:C$74,MATCH('Cash Forecast_8A'!B115,'Cash Forecast_8A import-export'!O$29:O$74,0)),\"\")","v":""},null,{"$f":"IFERROR(INDEX('Cash Forecast_8A import-export'!E$29:E$74,MATCH('Cash Forecast_8A'!B115,'Cash Forecast_8A import-export'!O$29:O$74,0)),\"\")","v":""},null,0,null,null,null,null,null,0]
[null,"Int90",{"$f":"IFERROR(INDEX('Cash Forecast_8A import-export'!A$29:A$74,MATCH('Cash Forecast_8A'!B116,'Cash Forecast_8A import-export'!O$29:O$74,0)),\"\")","v":""},{"$f":"IFERROR(INDEX('Cash Forecast_8A import-export'!B$29:B$74,MATCH('Cash Forecast_8A'!B116,'Cash Forecast_8A import-export'!O$29:O$74,0)),\"\")","v":""},{"$f":"IFERROR(INDEX('Cash Forecast_8A import-export'!C$29:C$74,MATCH('Cash Forecast_8A'!B116,'Cash Forecast_8A import-export'!O$29:O$74,0)),\"\")","v":""},null,{"$f":"IFERROR(INDEX('Cash Forecast_8A import-export'!E$29:E$74,MATCH('Cash Forecast_8A'!B116,'Cash Forecast_8A import-export'!O$29:O$74,0)),\"\")","v":""},null,0,null,null,null,null,null,0]
[null,"Int91",{"$f":"IFERROR(INDEX('Cash Forecast_8A import-export'!A$29:A$74,MATCH('Cash Forecast_8A'!B117,'Cash Forecast_8A import-export'!O$29:O$74,0)),\"\")","v":""},{"$f":"IFERROR(INDEX('Cash Forecast_8A import-export'!B$29:B$74,MATCH('Cash Forecast_8A'!B117,'Cash Forecast_8A import-export'!O$29:O$74,0)),\"\")","v":""},{"$f":"IFERROR(INDEX('Cash Forecast_8A import-export'!C$29:C$74,MATCH('Cash Forecast_8A'!B117,'Cash Forecast_8A import-export'!O$29:O$74,0)),\"\")","v":""},null,{"$f":"IFERROR(INDEX('Cash Forecast_8A import-export'!E$29:E$74,MATCH('Cash Forecast_8A'!B117,'Cash Forecast_8A import-export'!O$29:O$74,0)),\"\")","v":""},null,0,null,null,null,null,null,0]
[null,"Int92",{"$f":"IFERROR(INDEX('Cash Forecast_8A import-export'!A$29:A$74,MATCH('Cash Forecast_8A'!B118,'Cash Forecast_8A import-export'!O$29:O$74,0)),\"\")","v":""},{"$f":"IFERROR(INDEX('Cash Forecast_8A import-export'!B$29:B$74,MATCH('Cash Forecast_8A'!B118,'Cash Forecast_8A import-export'!O$29:O$74,0)),\"\")","v":""},{"$f":"IFERROR(INDEX('Cash Forecast_8A import-export'!C$29:C$74,MATCH('Cash Forecast_8A'!B118,'Cash Forecast_8A import-export'!O$29:O$74,0)),\"\")","v":""},null,{"$f":"IFERROR(INDEX('Cash Forecast_8A import-export'!E$29:E$74,MATCH('Cash Forecast_8A'!B118,'Cash Forecast_8A import-export'!O$29:O$74,0)),\"\")","v":""},null,0,null,null,null,null,null,0]
[null,"Int93",{"$f":"IFERROR(INDEX('Cash Forecast_8A import-export'!A$29:A$74,MATCH('Cash Forecast_8A'!B119,'Cash Forecast_8A import-export'!O$29:O$74,0)),\"\")","v":""},{"$f":"IFERROR(INDEX('Cash Forecast_8A import-export'!B$29:B$74,MATCH('Cash Forecast_8A'!B119,'Cash Forecast_8A import-export'!O$29:O$74,0)),\"\")","v":""},{"$f":"IFERROR(INDEX('Cash Forecast_8A import-export'!C$29:C$74,MATCH('Cash Forecast_8A'!B119,'Cash Forecast_8A import-export'!O$29:O$74,0)),\"\")","v":""},null,{"$f":"IFERROR(INDEX('Cash Forecast_8A import-export'!E$29:E$74,MATCH('Cash Forecast_8A'!B119,'Cash Forecast_8A import-export'!O$29:O$74,0)),\"\")","v":""},null,0,null,null,null,null,null,0]
[null,"Int94",{"$f":"IFERROR(INDEX('Cash Forecast_8A import-export'!A$29:A$74,MATCH('Cash Forecast_8A'!B120,'Cash Forecast_8A import-export'!O$29:O$74,0)),\"\")","v":""},{"$f":"IFERROR(INDEX('Cash Forecast_8A import-export'!B$29:B$74,MATCH('Cash Forecast_8A'!B120,'Cash Forecast_8A import-export'!O$29:O$74,0)),\"\")","v":""},{"$f":"IFERROR(INDEX('Cash Forecast_8A import-export'!C$29:C$74,MATCH('Cash Forecast_8A'!B120,'Cash Forecast_8A import-export'!O$29:O$74,0)),\"\")","v":""},null,{"$f":"IFERROR(INDEX('Cash Forecast_8A import-export'!E$29:E$74,MATCH('Cash Forecast_8A'!B120,'Cash Forecast_8A import-export'!O$29:O$74,0)),\"\")","v":""},null,0,null,null,null,null,null,0]
[null,null,null,null,0,null,0,null,{"$f":"IFERROR(F121+H121,\"\")","v":0},null,null,null,null,null,{"$f":"IFERROR(L121+M121,\"\")","v":0},null,null,{"$f":"IFERROR(IF(VLOOKUP(C121,'Reference Records'!$B$13:$D$48,3,FALSE)=0,\"\",VLOOKUP(C121,'Reference Records'!$B$13:$D$48,3,FALSE)),\"\")","v":""}]
[null,null,null,null,0,null,0,null,{"$f":"IFERROR(F122+H122,\"\")","v":0},null,null,null,null,null,{"$f":"IFERROR(L122+M122,\"\")","v":0}]
[null,null,null,null,0,null,0,null,0,null,null,null,null,null,0]
[null,null,null,null,0,null,0,null,0,null,null,null,null,null,0]
[null,null,null,null,0,null,0,null,0,null,null,null,null,null,0]
[null,null,null,null,0,null,0,null,0,null,null,null,null,null,0]
[null,null,null,null,0,null,0,null,0,null,null,null,null,null,0]
[null,null,null,null,0,null,0,null,0,null,null,null,null,null,0]
[null,null,null,null,0,null,0,null,0,null,null,null,null,null,0]
[null,null,null,null,0,null,0,null,0,null,null,null,null,null,0]
[null,null,null,null,0,null,0,null,0,null,null,null,null,null,0]
[null,null,null,null,0,null,0,null,0,null,null,null,null,null,0]
[null,null,null,null,0,null,0,null,0,null,null,null,null,null,0]
[null,null,null,null,0,null,0,null,0,null,null,null,null,null,0]
[null,null,null,null,0,null,0,null,0,null,null,null,null,null,0]
[null,null,null,null,0,null,0,null,0,null,null,null,null,null,0]
[null,null,"Grand Total",null,{"$f":"ROUND(SUM(E27:E136),2)","v":2515332.11},{"$f":"ROUND(SUM(F27:F136),2)","v":9858728.8000000007},{"$f":"ROUND(SUM(G27:G136),2)","v":8103702.7800000003},{"$f":"ROUND(SUM(H27:H136),2)","v":3867513.56},{"$f":"ROUND(SUM(I27:I136),2)","v":13726242.359999999},null,null,{"$f":"ROUND(SUM(L27:L136),2)","v":0},{"$f":"ROUND(SUM(M27:M136),2)","v":0},{"$f":"ROUND(SUM(N27:N120),2)","v":0},{"$f":"ROUND(SUM(O27:O136),2)","v":0}]
[]
[null,null,"Summary Breakdown by Implementing Entity"]
[null,null,{"$f":"VLOOKUP(Translations!B395,Translations!B3:H508,4,0)","v":"Entité de mise en œuvre"},null,{"$f":"E26","v":"Budget pour la période de prévision"},"Montant prévu pour la période de prévision","Budget pour la période additionnelle","Montant prévu pour la période additionnelle","Budget total disponible (période additionnelle comprise)","Commentaires",null,"Local Fund Agent Adjusted Principal Recipient Forecast for the period (not including the Buffer)","Local Fund Agent Adjusted Principal Recipient Forecast for the Buffer Period",null,"Local Fund Agent - Adjusted Forecast (including the buffer)","Comments"]
[null,"IE1",{"$f":"IFERROR(INDEX('Cash Forecast_8A import-export'!A$106:A$111,MATCH('Cash Forecast_8A'!B141,'Cash Forecast_8A import-export'!O$106:O$111,0)),\"\")","v":"Red Cross Burundi"},{"$f":"IFERROR(INDEX('Cash Forecast_8A import-export'!B$106:B$111,MATCH('Cash Forecast_8A'!B141,'Cash Forecast_8A import-export'!O$106:O$111,0)),\"\")","v":0},{"$f":"IFERROR(INDEX('Cash Forecast_8A import-export'!C$106:C$111,MATCH('Cash Forecast_8A'!B141,'Cash Forecast_8A import-export'!O$106:O$111,0)),\"\")","v":982352.73485740297},1165727.0403038464,{"$f":"IFERROR(INDEX('Cash Forecast_8A import-export'!E$106:E$111,MATCH('Cash Forecast_8A'!B141,'Cash Forecast_8A import-export'!O$106:O$111,0)),\"\")","v":540514.72918188199},540514.72918188223,{"$f":"IFERROR(F141+H141,\"\")","v":1706241.7694857286},null,null,null,null,null,{"$f":"IFERROR(L141+M141,\"\")","v":0}]
[null,"IE2",{"$f":"IFERROR(INDEX('Cash Forecast_8A import-export'!A$106:A$111,MATCH('Cash Forecast_8A'!B142,'Cash Forecast_8A import-export'!O$106:O$111,0)),\"\")","v":"PNILT"},{"$f":"IFERROR(INDEX('Cash Forecast_8A import-export'!B$106:B$111,MATCH('Cash Forecast_8A'!B142,'Cash Forecast_8A import-export'!O$106:O$111,0)),\"\")","v":0},{"$f":"IFERROR(INDEX('Cash Forecast_8A import-export'!C$106:C$111,MATCH('Cash Forecast_8A'!B142,'Cash Forecast_8A import-export'!O$106:O$111,0)),\"\")","v":309312.20787668898},622963.37627231842,{"$f":"IFERROR(INDEX('Cash Forecast_8A import-export'!E$106:E$111,MATCH('Cash Forecast_8A'!B142,'Cash Forecast_8A import-export'!O$106:O$111,0)),\"\")","v":203273.88221355801},203273.88221355839,{"$f":"IFERROR(F142+H142,\"\")","v":826237.25848587684},null,null,null,null,null,{"$f":"IFERROR(L142+M142,\"\")","v":0}]
[null,"IE3",{"$f":"IFERROR(INDEX('Cash Forecast_8A import-export'!A$106:A$111,MATCH('Cash Forecast_8A'!B143,'Cash Forecast_8A import-export'!O$106:O$111,0)),\"\")","v":"United Nations Development Programme"},{"$f":"IFERROR(INDEX('Cash Forecast_8A import-export'!B$106:B$111,MATCH('Cash Forecast_8A'!B143,'Cash Forecast_8A import-export'!O$106:O$111,0)),\"\")","v":0},{"$f":"IFERROR(INDEX('Cash Forecast_8A import-export'!C$106:C$111,MATCH('Cash Forecast_8A'!B143,'Cash Forecast_8A import-export'!O$106:O$111,0)),\"\")","v":497331.12837515201},6743966.3795691961,{"$f":"IFERROR(INDEX('Cash Forecast_8A import-export'!E$106:E$111,MATCH('Cash Forecast_8A'!B143,'Cash Forecast_8A import-export'!O$106:O$111,0)),\"\")","v":6963070.3407452302},2726881.1211025058,9470847.5006717015,null,null,null,null,null,0]
[null,"IE4",{"$f":"IFERROR(INDEX('Cash Forecast_8A import-export'!A$106:A$111,MATCH('Cash Forecast_8A'!B144,'Cash Forecast_8A import-export'!O$106:O$111,0)),\"\")","v":"PNLS /IST"},{"$f":"IFERROR(INDEX('Cash Forecast_8A import-export'!B$106:B$111,MATCH('Cash Forecast_8A'!B144,'Cash Forecast_8A import-export'!O$106:O$111,0)),\"\")","v":0},{"$f":"IFERROR(INDEX('Cash Forecast_8A import-export'!C$106:C$111,MATCH('Cash Forecast_8A'!B144,'Cash Forecast_8A import-export'!O$106:O$111,0)),\"\")","v":726336.03464098601},1326072.0046162875,{"$f":"IFERROR(INDEX('Cash Forecast_8A import-export'!E$106:E$111,MATCH('Cash Forecast_8A'!B144,'Cash Forecast_8A import-export'!O$106:O$111,0)),\"\")","v":396843.829655529},396843.82965552877,1722915.8342718163,null,null,null,null,null,0]
[null,"IE5",{"$f":"IFERROR(INDEX('Cash Forecast_8A import-export'!A$106:A$111,MATCH('Cash Forecast_8A'!B145,'Cash Forecast_8A import-export'!O$106:O$111,0)),\"\")","v":""},{"$f":"IFERROR(INDEX('Cash Forecast_8A import-export'!B$106:B$111,MATCH('Cash Forecast_8A'!B145,'Cash Forecast_8A import-export'!O$106:O$111,0)),\"\")","v":""},{"$f":"IFERROR(INDEX('Cash Forecast_8A import-export'!C$106:C$111,MATCH('Cash Forecast_8A'!B145,'Cash Forecast_8A import-export'!O$106:O$111,0)),\"\")","v":""},null,{"$f":"IFERROR(INDEX('Cash Forecast_8A import-export'!E$106:E$111,MATCH('Cash Forecast_8A'!B145,'Cash Forecast_8A import-export'!O$106:O$111,0)),\"\")","v":""},null,0,null,null,null,null,null,0]
[null,"IE6",{"$f":"IFERROR(INDEX('Cash Forecast_8A import-export'!A$106:A$111,MATCH('Cash Forecast_8A'!B146,'Cash Forecast_8A import-export'!O$106:O$111,0)),\"\")","v":""},{"$f":"IFERROR(INDEX('Cash Forecast_8A import-export'!B$106:B$111,MATCH('Cash Forecast_8A'!B146,'Cash Forecast_8A import-export'!O$106:O$111,0)),\"\")","v":""},{"$f":"IFERROR(INDEX('Cash Forecast_8A import-export'!C$106:C$111,MATCH('Cash Forecast_8A'!B146,'Cash Forecast_8A import-export'!O$106:O$111,0)),\"\")","v":""},null,{"$f":"IFERROR(INDEX('Cash Forecast_8A import-export'!E$106:E$111,MATCH('Cash Forecast_8A'!B146,'Cash Forecast_8A import-export'!O$106:O$111,0)),\"\")","v":""},null,0,null,null,null,null,null,0]
[null,"IE7",{"$f":"IFERROR(INDEX('Cash Forecast_8A import-export'!A$106:A$111,MATCH('Cash Forecast_8A'!B147,'Cash Forecast_8A import-export'!O$106:O$111,0)),\"\")","v":""},{"$f":"IFERROR(INDEX('Cash Forecast_8A import-export'!B$106:B$111,MATCH('Cash Forecast_8A'!B147,'Cash Forecast_8A import-export'!O$106:O$111,0)),\"\")","v":""},{"$f":"IFERROR(INDEX('Cash Forecast_8A import-export'!C$106:C$111,MATCH('Cash Forecast_8A'!B147,'Cash Forecast_8A import-export'!O$106:O$111,0)),\"\")","v":""},null,{"$f":"IFERROR(INDEX('Cash Forecast_8A import-export'!E$106:E$111,MATCH('Cash Forecast_8A'!B147,'Cash Forecast_8A import-export'!O$106:O$111,0)),\"\")","v":""},null,0,null,null,null,null,null,0]
[null,"IE8",{"$f":"IFERROR(INDEX('Cash Forecast_8A import-export'!A$106:A$111,MATCH('Cash Forecast_8A'!B148,'Cash Forecast_8A import-export'!O$106:O$111,0)),\"\")","v":""},{"$f":"IFERROR(INDEX('Cash Forecast_8A import-export'!B$106:B$111,MATCH('Cash Forecast_8A'!B148,'Cash Forecast_8A import-export'!O$106:O$111,0)),\"\")","v":""},{"$f":"IFERROR(INDEX('Cash Forecast_8A import-export'!C$106:C$111,MATCH('Cash Forecast_8A'!B148,'Cash Forecast_8A import-export'!O$106:O$111,0)),\"\")","v":""},null,{"$f":"IFERROR(INDEX('Cash Forecast_8A import-export'!E$106:E$111,MATCH('Cash Forecast_8A'!B148,'Cash Forecast_8A import-export'!O$106:O$111,0)),\"\")","v":""},null,0,null,null,null,null,null,0]
[null,"IE9",{"$f":"IFERROR(INDEX('Cash Forecast_8A import-export'!A$106:A$111,MATCH('Cash Forecast_8A'!B149,'Cash Forecast_8A import-export'!O$106:O$111,0)),\"\")","v":""},{"$f":"IFERROR(INDEX('Cash Forecast_8A import-export'!B$106:B$111,MATCH('Cash Forecast_8A'!B149,'Cash Forecast_8A import-export'!O$106:O$111,0)),\"\")","v":""},{"$f":"IFERROR(INDEX('Cash Forecast_8A import-export'!C$106:C$111,MATCH('Cash Forecast_8A'!B149,'Cash Forecast_8A import-export'!O$106:O$111,0)),\"\")","v":""},null,{"$f":"IFERROR(INDEX('Cash Forecast_8A import-export'!E$106:E$111,MATCH('Cash Forecast_8A'!B149,'Cash Forecast_8A import-export'!O$106:O$111,0)),\"\")","v":""},null,0,null,null,null,null,null,0]
[null,"IE10",{"$f":"IFERROR(INDEX('Cash Forecast_8A import-export'!A$106:A$111,MATCH('Cash Forecast_8A'!B150,'Cash Forecast_8A import-export'!O$106:O$111,0)),\"\")","v":""},{"$f":"IFERROR(INDEX('Cash Forecast_8A import-export'!B$106:B$111,MATCH('Cash Forecast_8A'!B150,'Cash Forecast_8A import-export'!O$106:O$111,0)),\"\")","v":""},{"$f":"IFERROR(INDEX('Cash Forecast_8A import-export'!C$106:C$111,MATCH('Cash Forecast_8A'!B150,'Cash Forecast_8A import-export'!O$106:O$111,0)),\"\")","v":""},null,{"$f":"IFERROR(INDEX('Cash Forecast_8A import-export'!E$106:E$111,MATCH('Cash Forecast_8A'!B150,'Cash Forecast_8A import-export'!O$106:O$111,0)),\"\")","v":""},null,0,null,null,null,null,null,0]
[null,"IE11",{"$f":"IFERROR(INDEX('Cash Forecast_8A import-export'!A$106:A$111,MATCH('Cash Forecast_8A'!B151,'Cash Forecast_8A import-export'!O$106:O$111,0)),\"\")","v":""},{"$f":"IFERROR(INDEX('Cash Forecast_8A import-export'!B$106:B$111,MATCH('Cash Forecast_8A'!B151,'Cash Forecast_8A import-export'!O$106:O$111,0)),\"\")","v":""},{"$f":"IFERROR(INDEX('Cash Forecast_8A import-export'!C$106:C$111,MATCH('Cash Forecast_8A'!B151,'Cash Forecast_8A import-export'!O$106:O$111,0)),\"\")","v":""},null,{"$f":"IFERROR(INDEX('Cash Forecast_8A import-export'!E$106:E$111,MATCH('Cash Forecast_8A'!B151,'Cash Forecast_8A import-export'!O$106:O$111,0)),\"\")","v":""},null,0,null,null,null,null,null,0]
[null,"IE12",{"$f":"IFERROR(INDEX('Cash Forecast_8A import-export'!A$106:A$111,MATCH('Cash Forecast_8A'!B152,'Cash Forecast_8A import-export'!O$106:O$111,0)),\"\")","v":""},{"$f":"IFERROR(INDEX('Cash Forecast_8A import-export'!B$106:B$111,MATCH('Cash Forecast_8A'!B152,'Cash Forecast_8A import-export'!O$106:O$111,0)),\"\")","v":""},{"$f":"IFERROR(INDEX('Cash Forecast_8A import-export'!C$106:C$111,MATCH('Cash Forecast_8A'!B152,'Cash Forecast_8A import-export'!O$106:O$111,0)),\"\")","v":""},null,{"$f":"IFERROR(INDEX('Cash Forecast_8A import-export'!E$106:E$111,MATCH('Cash Forecast_8A'!B152,'Cash Forecast_8A import-export'!O$106:O$111,0)),\"\")","v":""},null,0,null,null,null,null,null,0]
[null,"IE13",{"$f":"IFERROR(INDEX('Cash Forecast_8A import-export'!A$106:A$111,MATCH('Cash Forecast_8A'!B153,'Cash Forecast_8A import-export'!O$106:O$111,0)),\"\")","v":""},{"$f":"IFERROR(INDEX('Cash Forecast_8A import-export'!B$106:B$111,MATCH('Cash Forecast_8A'!B153,'Cash Forecast_8A import-export'!O$106:O$111,0)),\"\")","v":""},{"$f":"IFERROR(INDEX('Cash Forecast_8A import-export'!C$106:C$111,MATCH('Cash Forecast_8A'!B153,'Cash Forecast_8A import-export'!O$106:O$111,0)),\"\")","v":""},null,{"$f":"IFERROR(INDEX('Cash Forecast_8A import-export'!E$106:E$111,MATCH('Cash Forecast_8A'!B153,'Cash Forecast_8A import-export'!O$106:O$111,0)),\"\")","v":""},null,0,null,null,null,null,null,0]
[null,"IE14",{"$f":"IFERROR(INDEX('Cash Forecast_8A import-export'!A$106:A$111,MATCH('Cash Forecast_8A'!B154,'Cash Forecast_8A import-export'!O$106:O$111,0)),\"\")","v":""},{"$f":"IFERROR(INDEX('Cash Forecast_8A import-export'!B$106:B$111,MATCH('Cash Forecast_8A'!B154,'Cash Forecast_8A import-export'!O$106:O$111,0)),\"\")","v":""},{"$f":"IFERROR(INDEX('Cash Forecast_8A import-export'!C$106:C$111,MATCH('Cash Forecast_8A'!B154,'Cash Forecast_8A import-export'!O$106:O$111,0)),\"\")","v":""},null,{"$f":"IFERROR(INDEX('Cash Forecast_8A import-export'!E$106:E$111,MATCH('Cash Forecast_8A'!B154,'Cash Forecast_8A import-export'!O$106:O$111,0)),\"\")","v":""},null,0,null,null,null,null,null,0]
[null,"IE15",{"$f":"IFERROR(INDEX('Cash Forecast_8A import-export'!A$106:A$111,MATCH('Cash Forecast_8A'!B155,'Cash Forecast_8A import-export'!O$106:O$111,0)),\"\")","v":""},{"$f":"IFERROR(INDEX('Cash Forecast_8A import-export'!B$106:B$111,MATCH('Cash Forecast_8A'!B155,'Cash Forecast_8A import-export'!O$106:O$111,0)),\"\")","v":""},{"$f":"IFERROR(INDEX('Cash Forecast_8A import-export'!C$106:C$111,MATCH('Cash Forecast_8A'!B155,'Cash Forecast_8A import-export'!O$106:O$111,0)),\"\")","v":""},null,{"$f":"IFERROR(INDEX('Cash Forecast_8A import-export'!E$106:E$111,MATCH('Cash Forecast_8A'!B155,'Cash Forecast_8A import-export'!O$106:O$111,0)),\"\")","v":""},null,0,null,null,null,null,null,0]
[null,"IE16",{"$f":"IFERROR(INDEX('Cash Forecast_8A import-export'!A$106:A$111,MATCH('Cash Forecast_8A'!B156,'Cash Forecast_8A import-export'!O$106:O$111,0)),\"\")","v":""},{"$f":"IFERROR(INDEX('Cash Forecast_8A import-export'!B$106:B$111,MATCH('Cash Forecast_8A'!B156,'Cash Forecast_8A import-export'!O$106:O$111,0)),\"\")","v":""},{"$f":"IFERROR(INDEX('Cash Forecast_8A import-export'!C$106:C$111,MATCH('Cash Forecast_8A'!B156,'Cash Forecast_8A import-export'!O$106:O$111,0)),\"\")","v":""},null,{"$f":"IFERROR(INDEX('Cash Forecast_8A import-export'!E$106:E$111,MATCH('Cash Forecast_8A'!B156,'Cash Forecast_8A import-export'!O$106:O$111,0)),\"\")","v":""},null,0,null,null,null,null,null,0]
[null,"IE17",{"$f":"IFERROR(INDEX('Cash Forecast_8A import-export'!A$106:A$111,MATCH('Cash Forecast_8A'!B157,'Cash Forecast_8A import-export'!O$106:O$111,0)),\"\")","v":""},{"$f":"IFERROR(INDEX('Cash Forecast_8A import-export'!B$106:B$111,MATCH('Cash Forecast_8A'!B157,'Cash Forecast_8A import-export'!O$106:O$111,0)),\"\")","v":""},{"$f":"IFERROR(INDEX('Cash Forecast_8A import-export'!C$106:C$111,MATCH('Cash Forecast_8A'!B157,'Cash Forecast_8A import-export'!O$106:O$111,0)),\"\")","v":""},null,{"$f":"IFERROR(INDEX('Cash Forecast_8A import-export'!E$106:E$111,MATCH('Cash Forecast_8A'!B157,'Cash Forecast_8A import-export'!O$106:O$111,0)),\"\")","v":""},null,0,null,null,null,null,null,0]
[null,"IE18",{"$f":"IFERROR(INDEX('Cash Forecast_8A import-export'!A$106:A$111,MATCH('Cash Forecast_8A'!B158,'Cash Forecast_8A import-export'!O$106:O$111,0)),\"\")","v":""},{"$f":"IFERROR(INDEX('Cash Forecast_8A import-export'!B$106:B$111,MATCH('Cash Forecast_8A'!B158,'Cash Forecast_8A import-export'!O$106:O$111,0)),\"\")","v":""},{"$f":"IFERROR(INDEX('Cash Forecast_8A import-export'!C$106:C$111,MATCH('Cash Forecast_8A'!B158,'Cash Forecast_8A import-export'!O$106:O$111,0)),\"\")","v":""},null,{"$f":"IFERROR(INDEX('Cash Forecast_8A import-export'!E$106:E$111,MATCH('Cash Forecast_8A'!B158,'Cash Forecast_8A import-export'!O$106:O$111,0)),\"\")","v":""},null,0,null,null,null,null,null,0]
[null,"IE19",{"$f":"IFERROR(INDEX('Cash Forecast_8A import-export'!A$106:A$111,MATCH('Cash Forecast_8A'!B159,'Cash Forecast_8A import-export'!O$106:O$111,0)),\"\")","v":""},{"$f":"IFERROR(INDEX('Cash Forecast_8A import-export'!B$106:B$111,MATCH('Cash Forecast_8A'!B159,'Cash Forecast_8A import-export'!O$106:O$111,0)),\"\")","v":""},{"$f":"IFERROR(INDEX('Cash Forecast_8A import-export'!C$106:C$111,MATCH('Cash Forecast_8A'!B159,'Cash Forecast_8A import-export'!O$106:O$111,0)),\"\")","v":""},null,{"$f":"IFERROR(INDEX('Cash Forecast_8A import-export'!E$106:E$111,MATCH('Cash Forecast_8A'!B159,'Cash Forecast_8A import-export'!O$106:O$111,0)),\"\")","v":""},null,0,null,null,null,null,null,0]
[null,"IE20",{"$f":"IFERROR(INDEX('Cash Forecast_8A import-export'!A$106:A$111,MATCH('Cash Forecast_8A'!B160,'Cash Forecast_8A import-export'!O$106:O$111,0)),\"\")","v":""},{"$f":"IFERROR(INDEX('Cash Forecast_8A import-export'!B$106:B$111,MATCH('Cash Forecast_8A'!B160,'Cash Forecast_8A import-export'!O$106:O$111,0)),\"\")","v":""},{"$f":"IFERROR(INDEX('Cash Forecast_8A import-export'!C$106:C$111,MATCH('Cash Forecast_8A'!B160,'Cash Forecast_8A import-export'!O$106:O$111,0)),\"\")","v":""},null,{"$f":"IFERROR(INDEX('Cash Forecast_8A import-export'!E$106:E$111,MATCH('Cash Forecast_8A'!B160,'Cash Forecast_8A import-export'!O$106:O$111,0)),\"\")","v":""},null,0,null,null,null,null,null,0]
[null,"IE21",{"$f":"IFERROR(INDEX('Cash Forecast_8A import-export'!A$106:A$111,MATCH('Cash Forecast_8A'!B161,'Cash Forecast_8A import-export'!O$106:O$111,0)),\"\")","v":""},{"$f":"IFERROR(INDEX('Cash Forecast_8A import-export'!B$106:B$111,MATCH('Cash Forecast_8A'!B161,'Cash Forecast_8A import-export'!O$106:O$111,0)),\"\")","v":""},{"$f":"IFERROR(INDEX('Cash Forecast_8A import-export'!C$106:C$111,MATCH('Cash Forecast_8A'!B161,'Cash Forecast_8A import-export'!O$106:O$111,0)),\"\")","v":""},null,{"$f":"IFERROR(INDEX('Cash Forecast_8A import-export'!E$106:E$111,MATCH('Cash Forecast_8A'!B161,'Cash Forecast_8A import-export'!O$106:O$111,0)),\"\")","v":""},null,0,null,null,null,null,null,0]
[null,"IE22",{"$f":"IFERROR(INDEX('Cash Forecast_8A import-export'!A$106:A$111,MATCH('Cash Forecast_8A'!B162,'Cash Forecast_8A import-export'!O$106:O$111,0)),\"\")","v":""},{"$f":"IFERROR(INDEX('Cash Forecast_8A import-export'!B$106:B$111,MATCH('Cash Forecast_8A'!B162,'Cash Forecast_8A import-export'!O$106:O$111,0)),\"\")","v":""},{"$f":"IFERROR(INDEX('Cash Forecast_8A import-export'!C$106:C$111,MATCH('Cash Forecast_8A'!B162,'Cash Forecast_8A import-export'!O$106:O$111,0)),\"\")","v":""},null,{"$f":"IFERROR(INDEX('Cash Forecast_8A import-export'!E$106:E$111,MATCH('Cash Forecast_8A'!B162,'Cash Forecast_8A import-export'!O$106:O$111,0)),\"\")","v":""},null,0,null,null,null,null,null,0]
[null,"IE23",{"$f":"IFERROR(INDEX('Cash Forecast_8A import-export'!A$106:A$111,MATCH('Cash Forecast_8A'!B163,'Cash Forecast_8A import-export'!O$106:O$111,0)),\"\")","v":""},{"$f":"IFERROR(INDEX('Cash Forecast_8A import-export'!B$106:B$111,MATCH('Cash Forecast_8A'!B163,'Cash Forecast_8A import-export'!O$106:O$111,0)),\"\")","v":""},{"$f":"IFERROR(INDEX('Cash Forecast_8A import-export'!C$106:C$111,MATCH('Cash Forecast_8A'!B163,'Cash Forecast_8A import-export'!O$106:O$111,0)),\"\")","v":""},null,{"$f":"IFERROR(INDEX('Cash Forecast_8A import-export'!E$106:E$111,MATCH('Cash Forecast_8A'!B163,'Cash Forecast_8A import-export'!O$106:O$111,0)),\"\")","v":""},null,0,null,null,null,null,null,0]
[null,"IE24",{"$f":"IFERROR(INDEX('Cash Forecast_8A import-export'!A$106:A$111,MATCH('Cash Forecast_8A'!B164,'Cash Forecast_8A import-export'!O$106:O$111,0)),\"\")","v":""},{"$f":"IFERROR(INDEX('Cash Forecast_8A import-export'!B$106:B$111,MATCH('Cash Forecast_8A'!B164,'Cash Forecast_8A import-export'!O$106:O$111,0)),\"\")","v":""},{"$f":"IFERROR(INDEX('Cash Forecast_8A import-export'!C$106:C$111,MATCH('Cash Forecast_8A'!B164,'Cash Forecast_8A import-export'!O$106:O$111,0)),\"\")","v":""},null,{"$f":"IFERROR(INDEX('Cash Forecast_8A import-export'!E$106:E$111,MATCH('Cash Forecast_8A'!B164,'Cash Forecast_8A import-export'!O$106:O$111,0)),\"\")","v":""},null,0,null,null,null,null,null,0]
[null,"IE25",{"$f":"IFERROR(INDEX('Cash Forecast_8A import-export'!A$106:A$111,MATCH('Cash Forecast_8A'!B165,'Cash Forecast_8A import-export'!O$106:O$111,0)),\"\")","v":""},{"$f":"IFERROR(INDEX('Cash Forecast_8A import-export'!B$106:B$111,MATCH('Cash Forecast_8A'!B165,'Cash Forecast_8A import-export'!O$106:O$111,0)),\"\")","v":""},{"$f":"IFERROR(INDEX('Cash Forecast_8A import-export'!C$106:C$111,MATCH('Cash Forecast_8A'!B165,'Cash Forecast_8A import-export'!O$106:O$111,0)),\"\")","v":""},null,{"$f":"IFERROR(INDEX('Cash Forecast_8A import-export'!E$106:E$111,MATCH('Cash Forecast_8A'!B165,'Cash Forecast_8A import-export'!O$106:O$111,0)),\"\")","v":""},null,0,null,null,null,null,null,0]
[null,"IE26",{"$f":"IFERROR(INDEX('Cash Forecast_8A import-export'!A$106:A$111,MATCH('Cash Forecast_8A'!B166,'Cash Forecast_8A import-export'!O$106:O$111,0)),\"\")","v":""},{"$f":"IFERROR(INDEX('Cash Forecast_8A import-export'!B$106:B$111,MATCH('Cash Forecast_8A'!B166,'Cash Forecast_8A import-export'!O$106:O$111,0)),\"\")","v":""},{"$f":"IFERROR(INDEX('Cash Forecast_8A import-export'!C$106:C$111,MATCH('Cash Forecast_8A'!B166,'Cash Forecast_8A import-export'!O$106:O$111,0)),\"\")","v":""},null,{"$f":"IFERROR(INDEX('Cash Forecast_8A import-export'!E$106:E$111,MATCH('Cash Forecast_8A'!B166,'Cash Forecast_8A import-export'!O$106:O$111,0)),\"\")","v":""},null,0,null,null,null,null,null,0]
[null,"IE27",{"$f":"IFERROR(INDEX('Cash Forecast_8A import-export'!A$106:A$111,MATCH('Cash Forecast_8A'!B167,'Cash Forecast_8A import-export'!O$106:O$111,0)),\"\")","v":""},{"$f":"IFERROR(INDEX('Cash Forecast_8A import-export'!B$106:B$111,MATCH('Cash Forecast_8A'!B167,'Cash Forecast_8A import-export'!O$106:O$111,0)),\"\")","v":""},{"$f":"IFERROR(INDEX('Cash Forecast_8A import-export'!C$106:C$111,MATCH('Cash Forecast_8A'!B167,'Cash Forecast_8A import-export'!O$106:O$111,0)),\"\")","v":""},null,{"$f":"IFERROR(INDEX('Cash Forecast_8A import-export'!E$106:E$111,MATCH('Cash Forecast_8A'!B167,'Cash Forecast_8A import-export'!O$106:O$111,0)),\"\")","v":""},null,0,null,null,null,null,null,0]
[null,"IE28",{"$f":"IFERROR(INDEX('Cash Forecast_8A import-export'!A$106:A$111,MATCH('Cash Forecast_8A'!B168,'Cash Forecast_8A import-export'!O$106:O$111,0)),\"\")","v":""},{"$f":"IFERROR(INDEX('Cash Forecast_8A import-export'!B$106:B$111,MATCH('Cash Forecast_8A'!B168,'Cash Forecast_8A import-export'!O$106:O$111,0)),\"\")","v":""},{"$f":"IFERROR(INDEX('Cash Forecast_8A import-export'!C$106:C$111,MATCH('Cash Forecast_8A'!B168,'Cash Forecast_8A import-export'!O$106:O$111,0)),\"\")","v":""},null,{"$f":"IFERROR(INDEX('Cash Forecast_8A import-export'!E$106:E$111,MATCH('Cash Forecast_8A'!B168,'Cash Forecast_8A import-export'!O$106:O$111,0)),\"\")","v":""},null,0,null,null,null,null,null,0]
[null,"IE29",{"$f":"IFERROR(INDEX('Cash Forecast_8A import-export'!A$106:A$111,MATCH('Cash Forecast_8A'!B169,'Cash Forecast_8A import-export'!O$106:O$111,0)),\"\")","v":""},{"$f":"IFERROR(INDEX('Cash Forecast_8A import-export'!B$106:B$111,MATCH('Cash Forecast_8A'!B169,'Cash Forecast_8A import-export'!O$106:O$111,0)),\"\")","v":""},{"$f":"IFERROR(INDEX('Cash Forecast_8A import-export'!C$106:C$111,MATCH('Cash Forecast_8A'!B169,'Cash Forecast_8A import-export'!O$106:O$111,0)),\"\")","v":""},null,{"$f":"IFERROR(INDEX('Cash Forecast_8A import-export'!E$106:E$111,MATCH('Cash Forecast_8A'!B169,'Cash Forecast_8A import-export'!O$106:O$111,0)),\"\")","v":""},null,0,null,null,null,null,null,0]
[null,"IE30",{"$f":"IFERROR(INDEX('Cash Forecast_8A import-export'!A$106:A$111,MATCH('Cash Forecast_8A'!B170,'Cash Forecast_8A import-export'!O$106:O$111,0)),\"\")","v":""},{"$f":"IFERROR(INDEX('Cash Forecast_8A import-export'!B$106:B$111,MATCH('Cash Forecast_8A'!B170,'Cash Forecast_8A import-export'!O$106:O$111,0)),\"\")","v":""},{"$f":"IFERROR(INDEX('Cash Forecast_8A import-export'!C$106:C$111,MATCH('Cash Forecast_8A'!B170,'Cash Forecast_8A import-export'!O$106:O$111,0)),\"\")","v":""},null,{"$f":"IFERROR(INDEX('Cash Forecast_8A import-export'!E$106:E$111,MATCH('Cash Forecast_8A'!B170,'Cash Forecast_8A import-export'!O$106:O$111,0)),\"\")","v":""},null,0,null,null,null,null,null,0]
[null,"IE31",{"$f":"IFERROR(INDEX('Cash Forecast_8A import-export'!A$106:A$111,MATCH('Cash Forecast_8A'!B171,'Cash Forecast_8A import-export'!O$106:O$111,0)),\"\")","v":""},{"$f":"IFERROR(INDEX('Cash Forecast_8A import-export'!B$106:B$111,MATCH('Cash Forecast_8A'!B171,'Cash Forecast_8A import-export'!O$106:O$111,0)),\"\")","v":""},{"$f":"IFERROR(INDEX('Cash Forecast_8A import-export'!C$106:C$111,MATCH('Cash Forecast_8A'!B171,'Cash Forecast_8A import-export'!O$106:O$111,0)),\"\")","v":""},null,{"$f":"IFERROR(INDEX('Cash Forecast_8A import-export'!E$106:E$111,MATCH('Cash Forecast_8A'!B171,'Cash Forecast_8A import-export'!O$106:O$111,0)),\"\")","v":""},null,0,null,null,null,null,null,0]
[null,"IE32",{"$f":"IFERROR(INDEX('Cash Forecast_8A import-export'!A$106:A$111,MATCH('Cash Forecast_8A'!B172,'Cash Forecast_8A import-export'!O$106:O$111,0)),\"\")","v":""},{"$f":"IFERROR(INDEX('Cash Forecast_8A import-export'!B$106:B$111,MATCH('Cash Forecast_8A'!B172,'Cash Forecast_8A import-export'!O$106:O$111,0)),\"\")","v":""},{"$f":"IFERROR(INDEX('Cash Forecast_8A import-export'!C$106:C$111,MATCH('Cash Forecast_8A'!B172,'Cash Forecast_8A import-export'!O$106:O$111,0)),\"\")","v":""},null,{"$f":"IFERROR(INDEX('Cash Forecast_8A import-export'!E$106:E$111,MATCH('Cash Forecast_8A'!B172,'Cash Forecast_8A import-export'!O$106:O$111,0)),\"\")","v":""},null,0,null,null,null,null,null,0]
[null,"IE33",{"$f":"IFERROR(INDEX('Cash Forecast_8A import-export'!A$106:A$111,MATCH('Cash Forecast_8A'!B173,'Cash Forecast_8A import-export'!O$106:O$111,0)),\"\")","v":""},{"$f":"IFERROR(INDEX('Cash Forecast_8A import-export'!B$106:B$111,MATCH('Cash Forecast_8A'!B173,'Cash Forecast_8A import-export'!O$106:O$111,0)),\"\")","v":""},{"$f":"IFERROR(INDEX('Cash Forecast_8A import-export'!C$106:C$111,MATCH('Cash Forecast_8A'!B173,'Cash Forecast_8A import-export'!O$106:O$111,0)),\"\")","v":""},null,{"$f":"IFERROR(INDEX('Cash Forecast_8A import-export'!E$106:E$111,MATCH('Cash Forecast_8A'!B173,'Cash Forecast_8A import-export'!O$106:O$111,0)),\"\")","v":""},null,0,null,null,null,null,null,0]
[null,"IE34",{"$f":"IFERROR(INDEX('Cash Forecast_8A import-export'!A$106:A$111,MATCH('Cash Forecast_8A'!B174,'Cash Forecast_8A import-export'!O$106:O$111,0)),\"\")","v":""},{"$f":"IFERROR(INDEX('Cash Forecast_8A import-export'!B$106:B$111,MATCH('Cash Forecast_8A'!B174,'Cash Forecast_8A import-export'!O$106:O$111,0)),\"\")","v":""},{"$f":"IFERROR(INDEX('Cash Forecast_8A import-export'!C$106:C$111,MATCH('Cash Forecast_8A'!B174,'Cash Forecast_8A import-export'!O$106:O$111,0)),\"\")","v":""},null,{"$f":"IFERROR(INDEX('Cash Forecast_8A import-export'!E$106:E$111,MATCH('Cash Forecast_8A'!B174,'Cash Forecast_8A import-export'!O$106:O$111,0)),\"\")","v":""},null,0,null,null,null,null,null,0]
[null,"IE35",{"$f":"IFERROR(INDEX('Cash Forecast_8A import-export'!A$106:A$111,MATCH('Cash Forecast_8A'!B175,'Cash Forecast_8A import-export'!O$106:O$111,0)),\"\")","v":""},{"$f":"IFERROR(INDEX('Cash Forecast_8A import-export'!B$106:B$111,MATCH('Cash Forecast_8A'!B175,'Cash Forecast_8A import-export'!O$106:O$111,0)),\"\")","v":""},{"$f":"IFERROR(INDEX('Cash Forecast_8A import-export'!C$106:C$111,MATCH('Cash Forecast_8A'!B175,'Cash Forecast_8A import-export'!O$106:O$111,0)),\"\")","v":""},null,{"$f":"IFERROR(INDEX('Cash Forecast_8A import-export'!E$106:E$111,MATCH('Cash Forecast_8A'!B175,'Cash Forecast_8A import-export'!O$106:O$111,0)),\"\")","v":""},null,0,null,null,null,null,null,0]
[null,"IE36",{"$f":"IFERROR(INDEX('Cash Forecast_8A import-export'!A$106:A$111,MATCH('Cash Forecast_8A'!B176,'Cash Forecast_8A import-export'!O$106:O$111,0)),\"\")","v":""},{"$f":"IFERROR(INDEX('Cash Forecast_8A import-export'!B$106:B$111,MATCH('Cash Forecast_8A'!B176,'Cash Forecast_8A import-export'!O$106:O$111,0)),\"\")","v":""},{"$f":"IFERROR(INDEX('Cash Forecast_8A import-export'!C$106:C$111,MATCH('Cash Forecast_8A'!B176,'Cash Forecast_8A import-export'!O$106:O$111,0)),\"\")","v":""},null,{"$f":"IFERROR(INDEX('Cash Forecast_8A import-export'!E$106:E$111,MATCH('Cash Forecast_8A'!B176,'Cash Forecast_8A import-export'!O$106:O$111,0)),\"\")","v":""},null,0,null,null,null,null,null,0]
[null,"IE37",{"$f":"IFERROR(INDEX('Cash Forecast_8A import-export'!A$106:A$111,MATCH('Cash Forecast_8A'!B177,'Cash Forecast_8A import-export'!O$106:O$111,0)),\"\")","v":""},{"$f":"IFERROR(INDEX('Cash Forecast_8A import-export'!B$106:B$111,MATCH('Cash Forecast_8A'!B177,'Cash Forecast_8A import-export'!O$106:O$111,0)),\"\")","v":""},{"$f":"IFERROR(INDEX('Cash Forecast_8A import-export'!C$106:C$111,MATCH('Cash Forecast_8A'!B177,'Cash Forecast_8A import-export'!O$106:O$111,0)),\"\")","v":""},null,{"$f":"IFERROR(INDEX('Cash Forecast_8A import-export'!E$106:E$111,MATCH('Cash Forecast_8A'!B177,'Cash Forecast_8A import-export'!O$106:O$111,0)),\"\")","v":""},null,0,null,null,null,null,null,0]
[null,"IE38",{"$f":"IFERROR(INDEX('Cash Forecast_8A import-export'!A$106:A$111,MATCH('Cash Forecast_8A'!B178,'Cash Forecast_8A import-export'!O$106:O$111,0)),\"\")","v":""},{"$f":"IFERROR(INDEX('Cash Forecast_8A import-export'!B$106:B$111,MATCH('Cash Forecast_8A'!B178,'Cash Forecast_8A import-export'!O$106:O$111,0)),\"\")","v":""},{"$f":"IFERROR(INDEX('Cash Forecast_8A import-export'!C$106:C$111,MATCH('Cash Forecast_8A'!B178,'Cash Forecast_8A import-export'!O$106:O$111,0)),\"\")","v":""},null,{"$f":"IFERROR(INDEX('Cash Forecast_8A import-export'!E$106:E$111,MATCH('Cash Forecast_8A'!B178,'Cash Forecast_8A import-export'!O$106:O$111,0)),\"\")","v":""},null,0,null,null,null,null,null,0]
[null,"IE39",{"$f":"IFERROR(INDEX('Cash Forecast_8A import-export'!A$106:A$111,MATCH('Cash Forecast_8A'!B179,'Cash Forecast_8A import-export'!O$106:O$111,0)),\"\")","v":""},{"$f":"IFERROR(INDEX('Cash Forecast_8A import-export'!B$106:B$111,MATCH('Cash Forecast_8A'!B179,'Cash Forecast_8A import-export'!O$106:O$111,0)),\"\")","v":""},{"$f":"IFERROR(INDEX('Cash Forecast_8A import-export'!C$106:C$111,MATCH('Cash Forecast_8A'!B179,'Cash Forecast_8A import-export'!O$106:O$111,0)),\"\")","v":""},null,{"$f":"IFERROR(INDEX('Cash Forecast_8A import-export'!E$106:E$111,MATCH('Cash Forecast_8A'!B179,'Cash Forecast_8A import-export'!O$106:O$111,0)),\"\")","v":""},null,0,null,null,null,null,null,0]
[null,"IE40",{"$f":"IFERROR(INDEX('Cash Forecast_8A import-export'!A$106:A$111,MATCH('Cash Forecast_8A'!B180,'Cash Forecast_8A import-export'!O$106:O$111,0)),\"\")","v":""},{"$f":"IFERROR(INDEX('Cash Forecast_8A import-export'!B$106:B$111,MATCH('Cash Forecast_8A'!B180,'Cash Forecast_8A import-export'!O$106:O$111,0)),\"\")","v":""},{"$f":"IFERROR(INDEX('Cash Forecast_8A import-export'!C$106:C$111,MATCH('Cash Forecast_8A'!B180,'Cash Forecast_8A import-export'!O$106:O$111,0)),\"\")","v":""},null,{"$f":"IFERROR(INDEX('Cash Forecast_8A import-export'!E$106:E$111,MATCH('Cash Forecast_8A'!B180,'Cash Forecast_8A import-export'!O$106:O$111,0)),\"\")","v":""},null,0,null,null,null,null,null,0]
[null,"IE41",{"$f":"IFERROR(INDEX('Cash Forecast_8A import-export'!A$106:A$111,MATCH('Cash Forecast_8A'!B181,'Cash Forecast_8A import-export'!O$106:O$111,0)),\"\")","v":""},{"$f":"IFERROR(INDEX('Cash Forecast_8A import-export'!B$106:B$111,MATCH('Cash Forecast_8A'!B181,'Cash Forecast_8A import-export'!O$106:O$111,0)),\"\")","v":""},{"$f":"IFERROR(INDEX('Cash Forecast_8A import-export'!C$106:C$111,MATCH('Cash Forecast_8A'!B181,'Cash Forecast_8A import-export'!O$106:O$111,0)),\"\")","v":""},null,{"$f":"IFERROR(INDEX('Cash Forecast_8A import-export'!E$106:E$111,MATCH('Cash Forecast_8A'!B181,'Cash Forecast_8A import-export'!O$106:O$111,0)),\"\")","v":""},null,0,null,null,null,null,null,0]
[null,"IE42",{"$f":"IFERROR(INDEX('Cash Forecast_8A import-export'!A$106:A$111,MATCH('Cash Forecast_8A'!B182,'Cash Forecast_8A import-export'!O$106:O$111,0)),\"\")","v":""},{"$f":"IFERROR(INDEX('Cash Forecast_8A import-export'!B$106:B$111,MATCH('Cash Forecast_8A'!B182,'Cash Forecast_8A import-export'!O$106:O$111,0)),\"\")","v":""},{"$f":"IFERROR(INDEX('Cash Forecast_8A import-export'!C$106:C$111,MATCH('Cash Forecast_8A'!B182,'Cash Forecast_8A import-export'!O$106:O$111,0)),\"\")","v":""},null,{"$f":"IFERROR(INDEX('Cash Forecast_8A import-export'!E$106:E$111,MATCH('Cash Forecast_8A'!B182,'Cash Forecast_8A import-export'!O$106:O$111,0)),\"\")","v":""},null,0,null,null,null,null,null,0]
[null,"IE43",{"$f":"IFERROR(INDEX('Cash Forecast_8A import-export'!A$106:A$111,MATCH('Cash Forecast_8A'!B183,'Cash Forecast_8A import-export'!O$106:O$111,0)),\"\")","v":""},{"$f":"IFERROR(INDEX('Cash Forecast_8A import-export'!B$106:B$111,MATCH('Cash Forecast_8A'!B183,'Cash Forecast_8A import-export'!O$106:O$111,0)),\"\")","v":""},{"$f":"IFERROR(INDEX('Cash Forecast_8A import-export'!C$106:C$111,MATCH('Cash Forecast_8A'!B183,'Cash Forecast_8A import-export'!O$106:O$111,0)),\"\")","v":""},null,{"$f":"IFERROR(INDEX('Cash Forecast_8A import-export'!E$106:E$111,MATCH('Cash Forecast_8A'!B183,'Cash Forecast_8A import-export'!O$106:O$111,0)),\"\")","v":""},null,0,null,null,null,null,null,0]
[null,"IE44",{"$f":"IFERROR(INDEX('Cash Forecast_8A import-export'!A$106:A$111,MATCH('Cash Forecast_8A'!B184,'Cash Forecast_8A import-export'!O$106:O$111,0)),\"\")","v":""},{"$f":"IFERROR(INDEX('Cash Forecast_8A import-export'!B$106:B$111,MATCH('Cash Forecast_8A'!B184,'Cash Forecast_8A import-export'!O$106:O$111,0)),\"\")","v":""},{"$f":"IFERROR(INDEX('Cash Forecast_8A import-export'!C$106:C$111,MATCH('Cash Forecast_8A'!B184,'Cash Forecast_8A import-export'!O$106:O$111,0)),\"\")","v":""},null,{"$f":"IFERROR(INDEX('Cash Forecast_8A import-export'!E$106:E$111,MATCH('Cash Forecast_8A'!B184,'Cash Forecast_8A import-export'!O$106:O$111,0)),\"\")","v":""},null,0,null,null,null,null,null,0]
[null,"IE45",{"$f":"IFERROR(INDEX('Cash Forecast_8A import-export'!A$106:A$111,MATCH('Cash Forecast_8A'!B185,'Cash Forecast_8A import-export'!O$106:O$111,0)),\"\")","v":""},{"$f":"IFERROR(INDEX('Cash Forecast_8A import-export'!B$106:B$111,MATCH('Cash Forecast_8A'!B185,'Cash Forecast_8A import-export'!O$106:O$111,0)),\"\")","v":""},{"$f":"IFERROR(INDEX('Cash Forecast_8A import-export'!C$106:C$111,MATCH('Cash Forecast_8A'!B185,'Cash Forecast_8A import-export'!O$106:O$111,0)),\"\")","v":""},null,{"$f":"IFERROR(INDEX('Cash Forecast_8A import-export'!E$106:E$111,MATCH('Cash Forecast_8A'!B185,'Cash Forecast_8A import-export'!O$106:O$111,0)),\"\")","v":""},null,0,null,null,null,null,null,0]
[null,"IE46",{"$f":"IFERROR(INDEX('Cash Forecast_8A import-export'!A$106:A$111,MATCH('Cash Forecast_8A'!B186,'Cash Forecast_8A import-export'!O$106:O$111,0)),\"\")","v":""},{"$f":"IFERROR(INDEX('Cash Forecast_8A import-export'!B$106:B$111,MATCH('Cash Forecast_8A'!B186,'Cash Forecast_8A import-export'!O$106:O$111,0)),\"\")","v":""},{"$f":"IFERROR(INDEX('Cash Forecast_8A import-export'!C$106:C$111,MATCH('Cash Forecast_8A'!B186,'Cash Forecast_8A import-export'!O$106:O$111,0)),\"\")","v":""},null,{"$f":"IFERROR(INDEX('Cash Forecast_8A import-export'!E$106:E$111,MATCH('Cash Forecast_8A'!B186,'Cash Forecast_8A import-export'!O$106:O$111,0)),\"\")","v":""},null,0,null,null,null,null,null,0]
[null,"IE47",{"$f":"IFERROR(INDEX('Cash Forecast_8A import-export'!A$106:A$111,MATCH('Cash Forecast_8A'!B187,'Cash Forecast_8A import-export'!O$106:O$111,0)),\"\")","v":""},{"$f":"IFERROR(INDEX('Cash Forecast_8A import-export'!B$106:B$111,MATCH('Cash Forecast_8A'!B187,'Cash Forecast_8A import-export'!O$106:O$111,0)),\"\")","v":""},{"$f":"IFERROR(INDEX('Cash Forecast_8A import-export'!C$106:C$111,MATCH('Cash Forecast_8A'!B187,'Cash Forecast_8A import-export'!O$106:O$111,0)),\"\")","v":""},null,{"$f":"IFERROR(INDEX('Cash Forecast_8A import-export'!E$106:E$111,MATCH('Cash Forecast_8A'!B187,'Cash Forecast_8A import-export'!O$106:O$111,0)),\"\")","v":""},null,0,null,null,null,null,null,0]
[null,"IE48",{"$f":"IFERROR(INDEX('Cash Forecast_8A import-export'!A$106:A$111,MATCH('Cash Forecast_8A'!B188,'Cash Forecast_8A import-export'!O$106:O$111,0)),\"\")","v":""},{"$f":"IFERROR(INDEX('Cash Forecast_8A import-export'!B$106:B$111,MATCH('Cash Forecast_8A'!B188,'Cash Forecast_8A import-export'!O$106:O$111,0)),\"\")","v":""},{"$f":"IFERROR(INDEX('Cash Forecast_8A import-export'!C$106:C$111,MATCH('Cash Forecast_8A'!B188,'Cash Forecast_8A import-export'!O$106:O$111,0)),\"\")","v":""},null,{"$f":"IFERROR(INDEX('Cash Forecast_8A import-export'!E$106:E$111,MATCH('Cash Forecast_8A'!B188,'Cash Forecast_8A import-export'!O$106:O$111,0)),\"\")","v":""},null,0,null,null,null,null,null,0]
[null,"IE49",{"$f":"IFERROR(INDEX('Cash Forecast_8A import-export'!A$106:A$111,MATCH('Cash Forecast_8A'!B189,'Cash Forecast_8A import-export'!O$106:O$111,0)),\"\")","v":""},{"$f":"IFERROR(INDEX('Cash Forecast_8A import-export'!B$106:B$111,MATCH('Cash Forecast_8A'!B189,'Cash Forecast_8A import-export'!O$106:O$111,0)),\"\")","v":""},{"$f":"IFERROR(INDEX('Cash Forecast_8A import-export'!C$106:C$111,MATCH('Cash Forecast_8A'!B189,'Cash Forecast_8A import-export'!O$106:O$111,0)),\"\")","v":""},null,{"$f":"IFERROR(INDEX('Cash Forecast_8A import-export'!E$106:E$111,MATCH('Cash Forecast_8A'!B189,'Cash Forecast_8A import-export'!O$106:O$111,0)),\"\")","v":""},null,0,null,null,null,null,null,0]
[null,"IE50",{"$f":"IFERROR(INDEX('Cash Forecast_8A import-export'!A$106:A$111,MATCH('Cash Forecast_8A'!B190,'Cash Forecast_8A import-export'!O$106:O$111,0)),\"\")","v":""},{"$f":"IFERROR(INDEX('Cash Forecast_8A import-export'!B$106:B$111,MATCH('Cash Forecast_8A'!B190,'Cash Forecast_8A import-export'!O$106:O$111,0)),\"\")","v":""},{"$f":"IFERROR(INDEX('Cash Forecast_8A import-export'!C$106:C$111,MATCH('Cash Forecast_8A'!B190,'Cash Forecast_8A import-export'!O$106:O$111,0)),\"\")","v":""},null,{"$f":"IFERROR(INDEX('Cash Forecast_8A import-export'!E$106:E$111,MATCH('Cash Forecast_8A'!B190,'Cash Forecast_8A import-export'!O$106:O$111,0)),\"\")","v":""},null,0,null,null,null,null,null,0]
[null,null,"Grand Total",null,{"$f":"ROUND(SUM(E141:E190),2)","v":2515332.11},{"$f":"ROUND(SUM(F141:F190),2)","v":9858728.8000000007},{"$f":"ROUND(SUM(G141:G190),2)","v":8103702.7800000003},{"$f":"ROUND(SUM(H141:H190),2)","v":3867513.56},{"$f":"ROUND(SUM(I141:I190),2)","v":13726242.359999999},null,null,{"$f":"ROUND(SUM(L141:L190),2)","v":0},{"$f":"ROUND(SUM(M141:M190),2)","v":0},{"$f":"ROUND(SUM(N140:N141),2)","v":0},{"$f":"ROUND(SUM(O141:O190),2)","v":0}]
[]
[null,null,"Validation of Grand Total ",null,{"$f":"IF(AND(ROUND(E22,0)=ROUND(E137,0),ROUND(E137,0)=ROUND(E191,0)),\"OK\",\"WARNING - Sum of the three tables not matching\")","v":"OK"},{"$f":"IF(AND(ROUND(F22,0)=ROUND(F137,0),ROUND(F137,0)=ROUND(F191,0)),\"OK\",\"WARNING - Sum of the three tables not matching\")","v":"OK"},{"$f":"IF(AND(ROUND(G22,0)=ROUND(G137,0),ROUND(G137,0)=ROUND(G191,0)),\"OK\",\"WARNING - Sum of the three tables not matching\")","v":"OK"},{"$f":"IF(AND(ROUND(H22,0)=ROUND(H137,0),ROUND(H137,0)=ROUND(H191,0)),\"OK\",\"WARNING - Sum of the three tables not matching\")","v":"OK"},{"$f":"IF(AND(ROUND(I22,0)=ROUND(I137,0),ROUND(I137,0)=ROUND(I191,0)),\"OK\",\"WARNING - Sum of the three tables not matching\")","v":"OK"},null,null,{"$f":"IF(AND(ROUND(L22,0)=ROUND(L137,0),ROUND(L137,0)=ROUND(L191,0)),\"OK\",\"WARNING - Sum of the three tables not matching\")","v":"OK"},{"$f":"IF(AND(ROUND(M22,0)=ROUND(M137,0),ROUND(M137,0)=ROUND(M191,0)),\"OK\",\"WARNING - Sum of the three tables not matching\")","v":"OK"},{"$f":"IF(AND(ROUND(N22,0)=ROUND(N137,0),ROUND(N137,0)=ROUND(N191,0)),\"OK\",\"WARNING - Sum of the three tables not matching\")","v":"OK"},{"$f":"IF(AND(ROUND(O22,0)=ROUND(O137,0),ROUND(O137,0)=ROUND(O191,0)),\"OK\",\"WARNING - Sum of the three tables not matching\")","v":"OK"}]
[]
[]
[]
[]
[null,null,"Summary Breakdown by Quarter"]
[null,null,null,"Calendar Period ",{"$f":"'Cash Forecast_8A import-export'!C120","v":"01/Jul/2018-30/Sep/2018"},{"$f":"'Cash Forecast_8A import-export'!D120","v":"01/Oct/2018-31/Dec/2018"},{"$f":"'Cash Forecast_8A import-export'!E120","v":""},{"$f":"'Cash Forecast_8A import-export'!F120","v":""},"Total",{"$f":"'Cash Forecast_8A import-export'!H120","v":"01/Jan/2019-31/Mar/2019"},{"$f":"'Cash Forecast_8A import-export'!I120","v":""},"Total"]
[null,null,null,"Approved Budget",{"$f":"INDEX('Cash Forecast_8A import-export'!C$121:C$124,MATCH('Cash Forecast_8A'!$D200,'Cash Forecast_8A import-export'!$B$121:$B$124,0))","v":0},{"$f":"INDEX('Cash Forecast_8A import-export'!D$121:D$124,MATCH('Cash Forecast_8A'!$D200,'Cash Forecast_8A import-export'!$B$121:$B$124,0))","v":0},{"$f":"INDEX('Cash Forecast_8A import-export'!E$121:E$124,MATCH('Cash Forecast_8A'!$D200,'Cash Forecast_8A import-export'!$B$121:$B$124,0))","v":0},{"$f":"INDEX('Cash Forecast_8A import-export'!F$121:F$124,MATCH('Cash Forecast_8A'!$D200,'Cash Forecast_8A import-export'!$B$121:$B$124,0))","v":0},{"$f":"SUM(E200:H200)","v":0},{"$f":"INDEX('Cash Forecast_8A import-export'!H$121:H$124,MATCH('Cash Forecast_8A'!$D200,'Cash Forecast_8A import-export'!$B$121:$B$124,0))","v":0},{"$f":"INDEX('Cash Forecast_8A import-export'!I$121:I$124,MATCH('Cash Forecast_8A'!$D200,'Cash Forecast_8A import-export'!$B$121:$B$124,0))","v":0},{"$f":"SUM(J200:K200)","v":0},{"$f":"I200+L200","v":0},"[Record ID]"]
[null,null,"Principal Recipient","Forecasted Direct Disbursement",null,null,null,null,{"$f":"SUM(E201:H201)","v":0},null,null,{"$f":"SUM(J201:K201)","v":0},0]
[null,null,null,"Forecasted Disbursement to Principal Recipient",5976309.2615138507,3882419.5392477978,null,null,{"$f":"SUM(E202:H202)","v":9858728.8007616475},3867513.5621534758,null,{"$f":"SUM(J202:K202)","v":3867513.5621534758},13726242.362915123]
[null,null,null,"PPM/eMP (Wambo.org) forecasted Amount",null,null,null,null,{"$f":"SUM(E203:H203)","v":0},null,null,{"$f":"SUM(J203:K203)","v":0},0,"[Record ID]"]
[null,null,null,"Total",{"$f":"ROUND(SUM(E201:E203),2)","v":5976309.2599999998},{"$f":"ROUND(SUM(F201:F203),2)","v":3882419.54},{"$f":"ROUND(SUM(G201:G203),2)","v":0},{"$f":"ROUND(SUM(H201:H203),2)","v":0},{"$f":"ROUND(SUM(E204:H204),2)","v":9858728.8000000007},{"$f":"ROUND(SUM(J201:J203),2)","v":3867513.56},{"$f":"ROUND(SUM(K201:K203),2)","v":0},{"$f":"ROUND(SUM(J204:K204),2)","v":3867513.56},13726242.360000001]
[null,null,"Local Fund Agent","Forecasted Direct Disbursement",null,null,null,null,{"$f":"SUM(E205:H205)","v":0},null,null,{"$f":"SUM(J205:K205)","v":0},0,"Record ID"]
[null,null,null,"Forecasted Disbursement to Principal Recipient",null,null,null,null,{"$f":"SUM(E206:H206)","v":0},null,null,{"$f":"SUM(J206:K206)","v":0},0]
[null,null,null,"PPM/eMP (Wambo.org) forecasted Amount",null,null,null,null,{"$f":"SUM(E207:H207)","v":0},null,null,{"$f":"SUM(J207:K207)","v":0},0,"[Record ID]"]
[null,null,null,"Total",{"$f":"ROUND(SUM(E205:E207),2)","v":0},{"$f":"ROUND(SUM(F205:F207),2)","v":0},{"$f":"ROUND(SUM(G205:G207),2)","v":0},{"$f":"ROUND(SUM(H205:H207),2)","v":0},{"$f":"ROUND(SUM(E208:H208),2)","v":0},{"$f":"ROUND(SUM(J205:J207),2)","v":0},{"$f":"ROUND(SUM(K205:K207),2)","v":0},{"$f":"ROUND(SUM(J208:K208),2)","v":0},0]
[]
[]
[null,null,"Validation of Principal Recipient Grand Total ",null,null,null,null,null,{"$f":"IF(AND(ROUND(F22,0)=ROUND(F137,0),ROUND(F137,0)=ROUND(F191,0),ROUND(F191,0)=ROUND(I204,0)),\"OK\",\"WARNING - Sum of the three tables not matching\")","v":"OK"},null,null,{"$f":"IF(AND(ROUND(H22,0)=ROUND(H137,0),ROUND(H137,0)=ROUND(H191,0),ROUND(H191,0)=ROUND(L204,0)),\"OK\",\"WARNING - Sum of the three tables not matching\")","v":"OK"}]
[]
[null,null,"Validation of Local Fund Agent Grand Total ",null,null,null,null,null,{"$f":"IF(AND(ROUND(L22,0)=ROUND(L137,0),ROUND(L137,0)=ROUND(L191,0),ROUND(L191,0)=ROUND(I208,0)),\"OK\",\"WARNING - Sum of the three tables not matching\")","v":"OK"},null,null,{"$f":"IF(AND(ROUND(M22,0)=ROUND(M137,0),ROUND(M137,0)=ROUND(M191,0),ROUND(M191,0)=ROUND(L208,0)),\"OK\",\"WARNING - Sum of the three tables not matching\")","v":"OK"}]
[]
[]
[]
[]
[]
[]
[null,null,null,null,"Cash Forecast '!E53+'Cash Forecast '!D53+'Cash Forecast '!C53-B14-B15-B16+D23+D24,D13)))"]

{"sheet":"Cash Forecast_8A import-export","index":35,"n_rows":218,"n_cols":18,"rows_kept":218,"cut":false,"hidden":true,"merged":[[135,0,136,0],[0,0,0,8],[2,2,2,5],[3,2,3,5],[3,10,3,12],[128,0,129,0]]}
[]
[]
["Section 8A: The Global Fund  Forecast Template"]
[null,null,null,null,null,null,null,null,null,null,"Has the LFA Verified the Principal Recipient Forecast?",null,null,"Select"]
[]
["Summary Breakdown by Cost Grouping"]
[null,null,null,null,null,null,null,null,null,null,"[LFA Cumulative Expenditures]"]
["Costing Dimension (Cost Grouping)",null,"Budget for Forecast Period","Principal Recipient Forecast for the period (not including the Buffer)","Budget for the Buffer Period","Principal Recipient Forecast for the Buffer Period","Total Principal Recipient Forecast (including Buffer)","Comments",-1,"Local Fund Agent Adjusted Principal Recipient Forecast for the period (not including the Buffer)","Local Fund Agent Adjusted Principal Recipient Forecast for the Buffer Period",null,"Local Fund Agent - Adjusted Forecast (including the buffer)","Comments",null,"Record ID","Cost Grouping Number","Cost Grouping Number"]
["[Costing Dimension (Cost Grouping)]",null,"[Budget for Forecast Period]",{"$f":"IFERROR(INDEX('Cash Forecast_8A'!F$9:F$21,MATCH('Cash Forecast_8A import-export'!O9,'Cash Forecast_8A'!B$9:B$21,0)),\"\")","v":""},"[Budget for the Buffer Period]",{"$f":"IFERROR(INDEX('Cash Forecast_8A'!H$9:H$21,MATCH('Cash Forecast_8A import-export'!O9,'Cash Forecast_8A'!B$9:B$21,0)),\"\")","v":""},{"$f":"IFERROR(D9+F9,\"\")","v":""},{"$f":"IFERROR(INDEX('Cash Forecast_8A'!J$9:J$21,MATCH('Cash Forecast_8A import-export'!O9,'Cash Forecast_8A'!B$9:B$21,0)),\"\")","v":""},{"$f":"I8+1","v":0},{"$f":"IFERROR(INDEX('Cash Forecast_8A'!L$9:L$21,MATCH('Cash Forecast_8A import-export'!O9,'Cash Forecast_8A'!B$9:B$21,0)),\"\")","v":""},{"$f":"IFERROR(INDEX('Cash Forecast_8A'!M$9:M$21,MATCH('Cash Forecast_8A import-export'!O9,'Cash Forecast_8A'!B$9:B$21,0)),\"\")","v":""},null,{"$f":"IFERROR(J9+K9,\"\")","v":""},{"$f":"IFERROR(INDEX('Cash Forecast_8A'!N$9:N$21,MATCH('Cash Forecast_8A import-export'!O9,'Cash Forecast_8A'!B$9:B$21,0)),\"\")","v":""},{"$f":"\"Costgrp\"&I9","v":"Costgrp0"},"[Record ID]","[Cost Grouping Number]","[Cost Grouping Number]"]
["1. Human Resources (HR)",null,1284943.66494199,{"$f":"IFERROR(INDEX('Cash Forecast_8A'!F$9:F$21,MATCH('Cash Forecast_8A import-export'!O10,'Cash Forecast_8A'!B$9:B$21,0)),\"\")","v":1495702.0537583863},665957.08770932001,{"$f":"IFERROR(INDEX('Cash Forecast_8A'!H$9:H$21,MATCH('Cash Forecast_8A import-export'!O10,'Cash Forecast_8A'!B$9:B$21,0)),\"\")","v":683718.82708259695},{"$f":"IFERROR(D10+F10,\"\")","v":2179420.8808409832},{"$f":"IFERROR(INDEX('Cash Forecast_8A'!J$9:J$21,MATCH('Cash Forecast_8A import-export'!O10,'Cash Forecast_8A'!B$9:B$21,0)),\"\")","v":"Cet écart s'explique par :\n* les engagements de la période de forecast de USD  171,095.92 ;\n* les activités reportées sur la période de forecasting pour USD 39,662.46 ;\n* les dépassements de dépenses sur la période de buffer pour USD 17,761.74"},{"$f":"I9+1","v":1},{"$f":"IFERROR(INDEX('Cash Forecast_8A'!L$9:L$21,MATCH('Cash Forecast_8A import-export'!O10,'Cash Forecast_8A'!B$9:B$21,0)),\"\")","v":0},{"$f":"IFERROR(INDEX('Cash Forecast_8A'!M$9:M$21,MATCH('Cash Forecast_8A import-export'!O10,'Cash Forecast_8A'!B$9:B$21,0)),\"\")","v":0},null,{"$f":"IFERROR(J10+K10,\"\")","v":0},{"$f":"IFERROR(INDEX('Cash Forecast_8A'!N$9:N$21,MATCH('Cash Forecast_8A import-export'!O10,'Cash Forecast_8A'!B$9:B$21,0)),\"\")","v":0},{"$f":"\"Costgrp\"&I10","v":"Costgrp1"},"a3y36000002ILH5AAO",1,1]
["2. Travel related costs (TRC)",null,493962.25068239,{"$f":"IFERROR(INDEX('Cash Forecast_8A'!F$9:F$21,MATCH('Cash Forecast_8A import-export'!O11,'Cash Forecast_8A'!B$9:B$21,0)),\"\")","v":951239.10685838864},259698.718005784,{"$f":"IFERROR(INDEX('Cash Forecast_8A'!H$9:H$21,MATCH('Cash Forecast_8A import-export'!O11,'Cash Forecast_8A'!B$9:B$21,0)),\"\")","v":259698.7180057838},1210937.8248641724,{"$f":"IFERROR(INDEX('Cash Forecast_8A'!J$9:J$21,MATCH('Cash Forecast_8A import-export'!O11,'Cash Forecast_8A'!B$9:B$21,0)),\"\")","v":"On note une augmentation de USD 457,276.85 s'expliquant par :\n* les engagements de la période de forecast de USD 211,457.72\n* les activités reportées sur la période de forecasting pour USD 207,624.04 ;\n* les dépassements de dépenses sur la période de forecast pour USD 79,454.45;\n* les activités annulées de la période de forecast pour USD -28,348.94;\n* les activités déjà payées sur la période antérieure de USD -12,910.42"},2,{"$f":"IFERROR(INDEX('Cash Forecast_8A'!L$9:L$21,MATCH('Cash Forecast_8A import-export'!O11,'Cash Forecast_8A'!B$9:B$21,0)),\"\")","v":0},{"$f":"IFERROR(INDEX('Cash Forecast_8A'!M$9:M$21,MATCH('Cash Forecast_8A import-export'!O11,'Cash Forecast_8A'!B$9:B$21,0)),\"\")","v":0},null,0,{"$f":"IFERROR(INDEX('Cash Forecast_8A'!N$9:N$21,MATCH('Cash Forecast_8A import-export'!O11,'Cash Forecast_8A'!B$9:B$21,0)),\"\")","v":0},"Costgrp2","a3y36000002ILGjAAO",2,2]
["3. External Professional services (EPS)",null,35890,{"$f":"IFERROR(INDEX('Cash Forecast_8A'!F$9:F$21,MATCH('Cash Forecast_8A import-export'!O12,'Cash Forecast_8A'!B$9:B$21,0)),\"\")","v":120874.32127027695},35050.662292315203,{"$f":"IFERROR(INDEX('Cash Forecast_8A'!H$9:H$21,MATCH('Cash Forecast_8A import-export'!O12,'Cash Forecast_8A'!B$9:B$21,0)),\"\")","v":35050.66229231521},155924.98356259216,{"$f":"IFERROR(INDEX('Cash Forecast_8A'!J$9:J$21,MATCH('Cash Forecast_8A import-export'!O12,'Cash Forecast_8A'!B$9:B$21,0)),\"\")","v":"On note une augmentation de USD 84,984.32 s'expliquant par les activités reportées sur la période de forecast"},3,{"$f":"IFERROR(INDEX('Cash Forecast_8A'!L$9:L$21,MATCH('Cash Forecast_8A import-export'!O12,'Cash Forecast_8A'!B$9:B$21,0)),\"\")","v":0},{"$f":"IFERROR(INDEX('Cash Forecast_8A'!M$9:M$21,MATCH('Cash Forecast_8A import-export'!O12,'Cash Forecast_8A'!B$9:B$21,0)),\"\")","v":0},null,0,{"$f":"IFERROR(INDEX('Cash Forecast_8A'!N$9:N$21,MATCH('Cash Forecast_8A import-export'!O12,'Cash Forecast_8A'!B$9:B$21,0)),\"\")","v":0},"Costgrp3","a3y36000002ILGyAAO",3,3]
["4. Health Products - Pharmaceutical Products (HPPP)",null,0,{"$f":"IFERROR(INDEX('Cash Forecast_8A'!F$9:F$21,MATCH('Cash Forecast_8A import-export'!O13,'Cash Forecast_8A'!B$9:B$21,0)),\"\")","v":3556434.44},2974342.34,{"$f":"IFERROR(INDEX('Cash Forecast_8A'!H$9:H$21,MATCH('Cash Forecast_8A import-export'!O13,'Cash Forecast_8A'!B$9:B$21,0)),\"\")","v":417.72000000000116},3556852.16,{"$f":"IFERROR(INDEX('Cash Forecast_8A'!J$9:J$21,MATCH('Cash Forecast_8A import-export'!O13,'Cash Forecast_8A'!B$9:B$21,0)),\"\")","v":"On note une augmentation de USD 582,509.82 qui s'explique par\n* les engagements  de USD 1,091,861.06 sur la période de forecast;\n* les activités reportées sur la période de forecast pour 144,830.41;\n* les activités anticipées (avancées) de USD 2,273,657.97 sur la période de forecast;\n* les dépassements de dépenses prévus pour USD 46,085 sur la période de forecast;\n* les dépassements de dépenses prévus pour USD 105,000 sur la période de buffer;\n* les activités annulées sur la période de buffer pour USD -2,273,657.97;\n* les activités de la période de buffer antérieurement payées pour USD -805,266.65\n"},4,{"$f":"IFERROR(INDEX('Cash Forecast_8A'!L$9:L$21,MATCH('Cash Forecast_8A import-export'!O13,'Cash Forecast_8A'!B$9:B$21,0)),\"\")","v":0},{"$f":"IFERROR(INDEX('Cash Forecast_8A'!M$9:M$21,MATCH('Cash Forecast_8A import-export'!O13,'Cash Forecast_8A'!B$9:B$21,0)),\"\")","v":0},null,0,{"$f":"IFERROR(INDEX('Cash Forecast_8A'!N$9:N$21,MATCH('Cash Forecast_8A import-export'!O13,'Cash Forecast_8A'!B$9:B$21,0)),\"\")","v":0},"Costgrp4","a3y36000002ILGtAAO",4,4]
["5. Health Products - Non-Pharmaceuticals (HPNP)",null,0,{"$f":"IFERROR(INDEX('Cash Forecast_8A'!F$9:F$21,MATCH('Cash Forecast_8A import-export'!O14,'Cash Forecast_8A'!B$9:B$21,0)),\"\")","v":1222982.7266666666},1776043.32388854,{"$f":"IFERROR(INDEX('Cash Forecast_8A'!H$9:H$21,MATCH('Cash Forecast_8A import-export'!O14,'Cash Forecast_8A'!B$9:B$21,0)),\"\")","v":1216439.8572218732},2439422.58388854,{"$f":"IFERROR(INDEX('Cash Forecast_8A'!J$9:J$21,MATCH('Cash Forecast_8A import-export'!O14,'Cash Forecast_8A'!B$9:B$21,0)),\"\")","v":"Cette augmentation de USD 663,379.26 s'explique par:\n* les engagements de la période de forecast pour USD 294,607.7;\n* les activités reportées pour USD 367,935.88 sur la période de forecast;\n *les activités anticipées (avancées) de USD 559,603.47 sur la période de forecast;\n* les dépassements de dépenses prévus pour USD 835.68 sur la période de forecast;\n* les activités annulées de USD -559,603.47 sur la période de "},5,{"$f":"IFERROR(INDEX('Cash Forecast_8A'!L$9:L$21,MATCH('Cash Forecast_8A import-export'!O14,'Cash Forecast_8A'!B$9:B$21,0)),\"\")","v":0},{"$f":"IFERROR(INDEX('Cash Forecast_8A'!M$9:M$21,MATCH('Cash Forecast_8A import-export'!O14,'Cash Forecast_8A'!B$9:B$21,0)),\"\")","v":0},null,0,{"$f":"IFERROR(INDEX('Cash Forecast_8A'!N$9:N$21,MATCH('Cash Forecast_8A import-export'!O14,'Cash Forecast_8A'!B$9:B$21,0)),\"\")","v":0},"Costgrp5","a3y36000002ILGmAAO",5,5]
["6. Health Products - Equipment (HPE)",null,0,{"$f":"IFERROR(INDEX('Cash Forecast_8A'!F$9:F$21,MATCH('Cash Forecast_8A import-export'!O15,'Cash Forecast_8A'!B$9:B$21,0)),\"\")","v":285547.82},215899.36,{"$f":"IFERROR(INDEX('Cash Forecast_8A'!H$9:H$21,MATCH('Cash Forecast_8A import-export'!O15,'Cash Forecast_8A'!B$9:B$21,0)),\"\")","v":215899.36000000002},501447.18000000005,{"$f":"IFERROR(INDEX('Cash Forecast_8A'!J$9:J$21,MATCH('Cash Forecast_8A import-export'!O15,'Cash Forecast_8A'!B$9:B$21,0)),\"\")","v":"Augmentation de USD 285,547.82 s'expliquant par :\n*  les engagements de la période de forecast pour USD 155,688;\n* les activités reportées pour USD 129,859.82 sur la période de forecast;"},6,{"$f":"IFERROR(INDEX('Cash Forecast_8A'!L$9:L$21,MATCH('Cash Forecast_8A import-export'!O15,'Cash Forecast_8A'!B$9:B$21,0)),\"\")","v":0},{"$f":"IFERROR(INDEX('Cash Forecast_8A'!M$9:M$21,MATCH('Cash Forecast_8A import-export'!O15,'Cash Forecast_8A'!B$9:B$21,0)),\"\")","v":0},null,0,{"$f":"IFERROR(INDEX('Cash Forecast_8A'!N$9:N$21,MATCH('Cash Forecast_8A import-export'!O15,'Cash Forecast_8A'!B$9:B$21,0)),\"\")","v":0},"Costgrp6","a3y36000002ILGoAAO",6,6]
["7. Procurement and Supply-Chain Management costs (PSM)",null,0,{"$f":"IFERROR(INDEX('Cash Forecast_8A'!F$9:F$21,MATCH('Cash Forecast_8A import-export'!O16,'Cash Forecast_8A'!B$9:B$21,0)),\"\")","v":678463.80741333333},1323652.3730860001,{"$f":"IFERROR(INDEX('Cash Forecast_8A'!H$9:H$21,MATCH('Cash Forecast_8A import-export'!O16,'Cash Forecast_8A'!B$9:B$21,0)),\"\")","v":835713.52095266688},1514177.3283660002,{"$f":"IFERROR(INDEX('Cash Forecast_8A'!J$9:J$21,MATCH('Cash Forecast_8A import-export'!O16,'Cash Forecast_8A'!B$9:B$21,0)),\"\")","v":"Augmentation du budget approuvé de USD 190524.96:\n* des engagements de USD 49,447.36 \n* des activités reportées de 118,009.28\n* les activités anticipées (avancées) de USD 487,938.85 sur la période de forecast;\n* les dépassements de dépenses prévus pour USD 23,068.32 sur la période de forecast;\n* les activités annulées de USD -487,938.85 sur la période de buffer"},7,{"$f":"IFERROR(INDEX('Cash Forecast_8A'!L$9:L$21,MATCH('Cash Forecast_8A import-export'!O16,'Cash Forecast_8A'!B$9:B$21,0)),\"\")","v":0},{"$f":"IFERROR(INDEX('Cash Forecast_8A'!M$9:M$21,MATCH('Cash Forecast_8A import-export'!O16,'Cash Forecast_8A'!B$9:B$21,0)),\"\")","v":0},null,0,{"$f":"IFERROR(INDEX('Cash Forecast_8A'!N$9:N$21,MATCH('Cash Forecast_8A import-export'!O16,'Cash Forecast_8A'!B$9:B$21,0)),\"\")","v":0},"Costgrp7","a3y36000002ILGlAAO",7,7]
["8. Infrastructure (INF)",null,0,{"$f":"IFERROR(INDEX('Cash Forecast_8A'!F$9:F$21,MATCH('Cash Forecast_8A import-export'!O17,'Cash Forecast_8A'!B$9:B$21,0)),\"\")","v":6170.5667634466363},0,{"$f":"IFERROR(INDEX('Cash Forecast_8A'!H$9:H$21,MATCH('Cash Forecast_8A import-export'!O17,'Cash Forecast_8A'!B$9:B$21,0)),\"\")","v":0},6170.5667634466363,{"$f":"IFERROR(INDEX('Cash Forecast_8A'!J$9:J$21,MATCH('Cash Forecast_8A import-export'!O17,'Cash Forecast_8A'!B$9:B$21,0)),\"\")","v":"Augmentation de USD 6,170.57 représentant les engagements "},8,{"$f":"IFERROR(INDEX('Cash Forecast_8A'!L$9:L$21,MATCH('Cash Forecast_8A import-export'!O17,'Cash Forecast_8A'!B$9:B$21,0)),\"\")","v":0},{"$f":"IFERROR(INDEX('Cash Forecast_8A'!M$9:M$21,MATCH('Cash Forecast_8A import-export'!O17,'Cash Forecast_8A'!B$9:B$21,0)),\"\")","v":0},null,0,{"$f":"IFERROR(INDEX('Cash Forecast_8A'!N$9:N$21,MATCH('Cash Forecast_8A import-export'!O17,'Cash Forecast_8A'!B$9:B$21,0)),\"\")","v":0},"Costgrp8","a3y36000002ILHbAAO",8,8]
["9. Non-health equipment (NHP)",null,3575.3220998673601,{"$f":"IFERROR(INDEX('Cash Forecast_8A'!F$9:F$21,MATCH('Cash Forecast_8A import-export'!O18,'Cash Forecast_8A'!B$9:B$21,0)),\"\")","v":100994.29702891079},17401.775037166299,{"$f":"IFERROR(INDEX('Cash Forecast_8A'!H$9:H$21,MATCH('Cash Forecast_8A import-export'!O18,'Cash Forecast_8A'!B$9:B$21,0)),\"\")","v":17401.77503716631},118396.0720660771,{"$f":"IFERROR(INDEX('Cash Forecast_8A'!J$9:J$21,MATCH('Cash Forecast_8A import-export'!O18,'Cash Forecast_8A'!B$9:B$21,0)),\"\")","v":"Augmentation de USD 97,418.97 résultant :\n* des engagements de la période de forecast pour USD 89,611.91\n* les activités reportées de la période de forecasting pour USD 7,807.06"},9,{"$f":"IFERROR(INDEX('Cash Forecast_8A'!L$9:L$21,MATCH('Cash Forecast_8A import-export'!O18,'Cash Forecast_8A'!B$9:B$21,0)),\"\")","v":0},{"$f":"IFERROR(INDEX('Cash Forecast_8A'!M$9:M$21,MATCH('Cash Forecast_8A import-export'!O18,'Cash Forecast_8A'!B$9:B$21,0)),\"\")","v":0},null,0,{"$f":"IFERROR(INDEX('Cash Forecast_8A'!N$9:N$21,MATCH('Cash Forecast_8A import-export'!O18,'Cash Forecast_8A'!B$9:B$21,0)),\"\")","v":0},"Costgrp9","a3y36000002ILH2AAO",9,9]
["10. Communication Material and Publications (CMP)",null,25609.193626554901,{"$f":"IFERROR(INDEX('Cash Forecast_8A'!F$9:F$21,MATCH('Cash Forecast_8A import-export'!O19,'Cash Forecast_8A'!B$9:B$21,0)),\"\")","v":39539.634551808856},39749.080791203698,{"$f":"IFERROR(INDEX('Cash Forecast_8A'!H$9:H$21,MATCH('Cash Forecast_8A import-export'!O19,'Cash Forecast_8A'!B$9:B$21,0)),\"\")","v":39749.080791203691},79288.715343012547,{"$f":"IFERROR(INDEX('Cash Forecast_8A'!J$9:J$21,MATCH('Cash Forecast_8A import-export'!O19,'Cash Forecast_8A'!B$9:B$21,0)),\"\")","v":"Augmentation de USD 13930.44 résultant des engagements de la période de forecast\n"},10,{"$f":"IFERROR(INDEX('Cash Forecast_8A'!L$9:L$21,MATCH('Cash Forecast_8A import-export'!O19,'Cash Forecast_8A'!B$9:B$21,0)),\"\")","v":0},{"$f":"IFERROR(INDEX('Cash Forecast_8A'!M$9:M$21,MATCH('Cash Forecast_8A import-export'!O19,'Cash Forecast_8A'!B$9:B$21,0)),\"\")","v":0},null,0,{"$f":"IFERROR(INDEX('Cash Forecast_8A'!N$9:N$21,MATCH('Cash Forecast_8A import-export'!O19,'Cash Forecast_8A'!B$9:B$21,0)),\"\")","v":0},"Costgrp10","a3y36000002ILGgAAO",10,10]
["11. Programme Administration costs (PA)",null,303679.66676762002,{"$f":"IFERROR(INDEX('Cash Forecast_8A'!F$9:F$21,MATCH('Cash Forecast_8A import-export'!O20,'Cash Forecast_8A'!B$9:B$21,0)),\"\")","v":839443.80345884268},599911.39508892701,{"$f":"IFERROR(INDEX('Cash Forecast_8A'!H$9:H$21,MATCH('Cash Forecast_8A import-export'!O20,'Cash Forecast_8A'!B$9:B$21,0)),\"\")","v":367427.37487292755},1206871.1783317702,{"$f":"IFERROR(INDEX('Cash Forecast_8A'!J$9:J$21,MATCH('Cash Forecast_8A import-export'!O20,'Cash Forecast_8A'!B$9:B$21,0)),\"\")","v":"Augmentation de USD 303,280.11 résultant de :\n* des engagements de USD 177,277.10 pour la période de forecast;\n* les activités reportées 113,541.77 sur la période de forecast;\n*  les activités anticipées (avancées) de USD 232,484.02 sur la période de forecast;\n* des économies de USD -1,984.43 sur la période de buffer\n* les dépassements de dépenses prévus pour USD 15,349.40 sur la période de forecast;\n* des activités antérieurement payées pour USD 903.73\n* les activités annulées de USD -232,484.02 sur la période de buffer"},11,{"$f":"IFERROR(INDEX('Cash Forecast_8A'!L$9:L$21,MATCH('Cash Forecast_8A import-export'!O20,'Cash Forecast_8A'!B$9:B$21,0)),\"\")","v":0},{"$f":"IFERROR(INDEX('Cash Forecast_8A'!M$9:M$21,MATCH('Cash Forecast_8A import-export'!O20,'Cash Forecast_8A'!B$9:B$21,0)),\"\")","v":0},null,0,{"$f":"IFERROR(INDEX('Cash Forecast_8A'!N$9:N$21,MATCH('Cash Forecast_8A import-export'!O20,'Cash Forecast_8A'!B$9:B$21,0)),\"\")","v":0},"Costgrp11","a3y36000002ILGuAAO",11,11]
["12. Living support to client/ target population (LSCTP)",null,367672.00763181201,{"$f":"IFERROR(INDEX('Cash Forecast_8A'!F$9:F$21,MATCH('Cash Forecast_8A import-export'!O21,'Cash Forecast_8A'!B$9:B$21,0)),\"\")","v":561336.22299158666},195996.665896942,{"$f":"IFERROR(INDEX('Cash Forecast_8A'!H$9:H$21,MATCH('Cash Forecast_8A import-export'!O21,'Cash Forecast_8A'!B$9:B$21,0)),\"\")","v":195996.66589694191},757332.88888852857,{"$f":"IFERROR(INDEX('Cash Forecast_8A'!J$9:J$21,MATCH('Cash Forecast_8A import-export'!O21,'Cash Forecast_8A'!B$9:B$21,0)),\"\")","v":"Augmentation de USD 193664.21 par rapport au budget approuvé résultant :\n* des enagements de USD 3,328.37 (période forecast);\n* des activitées reportées sur la période forecast de USD 190,335.84"},12,{"$f":"IFERROR(INDEX('Cash Forecast_8A'!L$9:L$21,MATCH('Cash Forecast_8A import-export'!O21,'Cash Forecast_8A'!B$9:B$21,0)),\"\")","v":0},{"$f":"IFERROR(INDEX('Cash Forecast_8A'!M$9:M$21,MATCH('Cash Forecast_8A import-export'!O21,'Cash Forecast_8A'!B$9:B$21,0)),\"\")","v":0},null,0,{"$f":"IFERROR(INDEX('Cash Forecast_8A'!N$9:N$21,MATCH('Cash Forecast_8A import-export'!O21,'Cash Forecast_8A'!B$9:B$21,0)),\"\")","v":0},"Costgrp12","a3y36000002ILGnAAO",12,12]
["13. Payment for Results",null,0,{"$f":"IFERROR(INDEX('Cash Forecast_8A'!F$9:F$21,MATCH('Cash Forecast_8A import-export'!O22,'Cash Forecast_8A'!B$9:B$21,0)),\"\")","v":0},0,{"$f":"IFERROR(INDEX('Cash Forecast_8A'!H$9:H$21,MATCH('Cash Forecast_8A import-export'!O22,'Cash Forecast_8A'!B$9:B$21,0)),\"\")","v":" "},"",{"$f":"IFERROR(INDEX('Cash Forecast_8A'!J$9:J$21,MATCH('Cash Forecast_8A import-export'!O22,'Cash Forecast_8A'!B$9:B$21,0)),\"\")","v":0},13,{"$f":"IFERROR(INDEX('Cash Forecast_8A'!L$9:L$21,MATCH('Cash Forecast_8A import-export'!O22,'Cash Forecast_8A'!B$9:B$21,0)),\"\")","v":0},{"$f":"IFERROR(INDEX('Cash Forecast_8A'!M$9:M$21,MATCH('Cash Forecast_8A import-export'!O22,'Cash Forecast_8A'!B$9:B$21,0)),\"\")","v":0},null,0,{"$f":"IFERROR(INDEX('Cash Forecast_8A'!N$9:N$21,MATCH('Cash Forecast_8A import-export'!O22,'Cash Forecast_8A'!B$9:B$21,0)),\"\")","v":0},"Costgrp13","a3y36000002ILHcAAO",13,13]
[]
["Grand Total",null,{"$f":"ROUND(SUM(C9:C23),2)","v":2515332.11},{"$f":"ROUND(SUM(D9:D23),2)","v":9858728.8000000007},{"$f":"ROUND(SUM(E9:E23),2)","v":8103702.7800000003},{"$f":"ROUND(SUM(F9:F23),2)","v":3867513.56},{"$f":"ROUND(SUM(G9:G23),2)","v":13726242.359999999},null,null,{"$f":"ROUND(SUM(J9:J23),2)","v":0},{"$f":"ROUND(SUM(K9:K23),2)","v":0},{"$f":"ROUND(SUM(L9:L23),2)","v":0},{"$f":"ROUND(SUM(M9:M23),2)","v":0}]
[]
[]
["Summary Breakdown by Interventions"]
["Modular Approach - Modules","Modular Approach - Interventions","Budget for Forecast Period","Principal Recipient Forecast for the period (not including the Buffer)","Budget for the Buffer Period","Principal Recipient Forecast for the Buffer Period","Total Principal Recipient Forecast (including Buffer)","Comments",-1,"Local Fund Agent Adjusted Principal Recipient Forecast for the period (not including the Buffer)","Local Fund Agent Adjusted Principal Recipient Forecast for the Buffer Period",null,"Local Fund Agent - Adjusted Forecast (including the buffer)",null,null,"Record ID"]
["[Module]","[Intervention]","[Budget for Forecast Period]",{"$f":"IFERROR(INDEX('Cash Forecast_8A'!F$27:F$120,MATCH('Cash Forecast_8A import-export'!O29,'Cash Forecast_8A'!B$27:B$120,0)),\"\")","v":""},"[Budget for the Buffer Period]",{"$f":"IFERROR(INDEX('Cash Forecast_8A'!H$27:H$120,MATCH('Cash Forecast_8A import-export'!O29,'Cash Forecast_8A'!B$27:B$120,0)),\"\")","v":""},{"$f":"IFERROR(D29+F29,\"\")","v":""},"[PR Comments]",{"$f":"I28+1","v":0},{"$f":"IFERROR(INDEX('Cash Forecast_8A'!L$27:L$120,MATCH('Cash Forecast_8A import-export'!O29,'Cash Forecast_8A'!B$27:B$120,0)),\"\")","v":""},{"$f":"IFERROR(INDEX('Cash Forecast_8A'!M$27:M$120,MATCH('Cash Forecast_8A import-export'!O29,'Cash Forecast_8A'!B$27:B$120,0)),\"\")","v":""},null,{"$f":"IFERROR(J29+K29,\"\")","v":""},null,{"$f":"\"Int\"&I29","v":"Int0"},"[Record ID]"]
["Comprehensive prevention programs for people who inject drugs (PWID) and their partners","Behavioral interventions for PWID",0,{"$f":"IFERROR(INDEX('Cash Forecast_8A'!F$27:F$120,MATCH('Cash Forecast_8A import-export'!O30,'Cash Forecast_8A'!B$27:B$120,0)),\"\")","v":4785.3247002595599},1083.6147002595601,{"$f":"IFERROR(INDEX('Cash Forecast_8A'!H$27:H$120,MATCH('Cash Forecast_8A import-export'!O30,'Cash Forecast_8A'!B$27:B$120,0)),\"\")","v":1083.6147002595599},{"$f":"IFERROR(D30+F30,\"\")","v":5868.9394005191198},null,{"$f":"I29+1","v":1},{"$f":"IFERROR(INDEX('Cash Forecast_8A'!L$27:L$120,MATCH('Cash Forecast_8A import-export'!O30,'Cash Forecast_8A'!B$27:B$120,0)),\"\")","v":0},{"$f":"IFERROR(INDEX('Cash Forecast_8A'!M$27:M$120,MATCH('Cash Forecast_8A import-export'!O30,'Cash Forecast_8A'!B$27:B$120,0)),\"\")","v":0},null,{"$f":"IFERROR(J30+K30,\"\")","v":0},null,{"$f":"\"Int\"&I30","v":"Int1"},"a3y36000002ILGeAAO"]
["TB care and prevention","Case detection and diagnosis",9126.2684666682308,{"$f":"IFERROR(INDEX('Cash Forecast_8A'!F$27:F$120,MATCH('Cash Forecast_8A import-export'!O31,'Cash Forecast_8A'!B$27:B$120,0)),\"\")","v":452779.41660479503},402098.22116464598,{"$f":"IFERROR(INDEX('Cash Forecast_8A'!H$27:H$120,MATCH('Cash Forecast_8A import-export'!O31,'Cash Forecast_8A'!B$27:B$120,0)),\"\")","v":379386.2211646458},832165.63776944089,null,2,{"$f":"IFERROR(INDEX('Cash Forecast_8A'!L$27:L$120,MATCH('Cash Forecast_8A import-export'!O31,'Cash Forecast_8A'!B$27:B$120,0)),\"\")","v":0},{"$f":"IFERROR(INDEX('Cash Forecast_8A'!M$27:M$120,MATCH('Cash Forecast_8A import-export'!O31,'Cash Forecast_8A'!B$27:B$120,0)),\"\")","v":0},null,0,null,"Int2","a3y36000002ILGhAAO"]
["TB care and prevention","Key populations (TB care and prevention) - Others",21973.882562545001,{"$f":"IFERROR(INDEX('Cash Forecast_8A'!F$27:F$120,MATCH('Cash Forecast_8A import-export'!O32,'Cash Forecast_8A'!B$27:B$120,0)),\"\")","v":36242.212998876734},11247.0321882927,{"$f":"IFERROR(INDEX('Cash Forecast_8A'!H$27:H$120,MATCH('Cash Forecast_8A import-export'!O32,'Cash Forecast_8A'!B$27:B$120,0)),\"\")","v":11247.032188292726},47489.245187169457,null,3,{"$f":"IFERROR(INDEX('Cash Forecast_8A'!L$27:L$120,MATCH('Cash Forecast_8A import-export'!O32,'Cash Forecast_8A'!B$27:B$120,0)),\"\")","v":0},{"$f":"IFERROR(INDEX('Cash Forecast_8A'!M$27:M$120,MATCH('Cash Forecast_8A import-export'!O32,'Cash Forecast_8A'!B$27:B$120,0)),\"\")","v":0},null,0,null,"Int3","a3y36000002ILGpAAO"]
["TB care and prevention","Key populations (TB care and prevention) - Prisoners",6043.4606260430601,{"$f":"IFERROR(INDEX('Cash Forecast_8A'!F$27:F$120,MATCH('Cash Forecast_8A import-export'!O33,'Cash Forecast_8A'!B$27:B$120,0)),\"\")","v":6043.4606260430692},3021.73031302153,{"$f":"IFERROR(INDEX('Cash Forecast_8A'!H$27:H$120,MATCH('Cash Forecast_8A import-export'!O33,'Cash Forecast_8A'!B$27:B$120,0)),\"\")","v":3021.7303130215346},9065.1909390646033,null,4,{"$f":"IFERROR(INDEX('Cash Forecast_8A'!L$27:L$120,MATCH('Cash Forecast_8A import-export'!O33,'Cash Forecast_8A'!B$27:B$120,0)),\"\")","v":0},{"$f":"IFERROR(INDEX('Cash Forecast_8A'!M$27:M$120,MATCH('Cash Forecast_8A import-export'!O33,'Cash Forecast_8A'!B$27:B$120,0)),\"\")","v":0},null,0,null,"Int4","a3y36000002ILGqAAO"]
["TB care and prevention","Prevention",0,{"$f":"IFERROR(INDEX('Cash Forecast_8A'!F$27:F$120,MATCH('Cash Forecast_8A import-export'!O34,'Cash Forecast_8A'!B$27:B$120,0)),\"\")","v":0},6342.4190506292398,{"$f":"IFERROR(INDEX('Cash Forecast_8A'!H$27:H$120,MATCH('Cash Forecast_8A import-export'!O34,'Cash Forecast_8A'!B$27:B$120,0)),\"\")","v":6342.4190506292425},6342.4190506292425,null,5,{"$f":"IFERROR(INDEX('Cash Forecast_8A'!L$27:L$120,MATCH('Cash Forecast_8A import-export'!O34,'Cash Forecast_8A'!B$27:B$120,0)),\"\")","v":0},{"$f":"IFERROR(INDEX('Cash Forecast_8A'!M$27:M$120,MATCH('Cash Forecast_8A import-export'!O34,'Cash Forecast_8A'!B$27:B$120,0)),\"\")","v":0},null,0,null,"Int5","a3y36000002ILGrAAO"]
["TB care and prevention","Treatment",4738.86919894728,{"$f":"IFERROR(INDEX('Cash Forecast_8A'!F$27:F$120,MATCH('Cash Forecast_8A import-export'!O35,'Cash Forecast_8A'!B$27:B$120,0)),\"\")","v":367118.65069894725},355483.984599474,{"$f":"IFERROR(INDEX('Cash Forecast_8A'!H$27:H$120,MATCH('Cash Forecast_8A import-export'!O35,'Cash Forecast_8A'!B$27:B$120,0)),\"\")","v":31288.714599473646},398407.36529842089,null,6,{"$f":"IFERROR(INDEX('Cash Forecast_8A'!L$27:L$120,MATCH('Cash Forecast_8A import-export'!O35,'Cash Forecast_8A'!B$27:B$120,0)),\"\")","v":0},{"$f":"IFERROR(INDEX('Cash Forecast_8A'!M$27:M$120,MATCH('Cash Forecast_8A import-export'!O35,'Cash Forecast_8A'!B$27:B$120,0)),\"\")","v":0},null,0,null,"Int6","a3y36000002ILGsAAO"]
["TB care and prevention","Community TB care delivery",0,{"$f":"IFERROR(INDEX('Cash Forecast_8A'!F$27:F$120,MATCH('Cash Forecast_8A import-export'!O36,'Cash Forecast_8A'!B$27:B$120,0)),\"\")","v":13074.654170065129},9983.9559311371104,{"$f":"IFERROR(INDEX('Cash Forecast_8A'!H$27:H$120,MATCH('Cash Forecast_8A import-export'!O36,'Cash Forecast_8A'!B$27:B$120,0)),\"\")","v":9983.9559311371049},23058.610101202234,null,7,{"$f":"IFERROR(INDEX('Cash Forecast_8A'!L$27:L$120,MATCH('Cash Forecast_8A import-export'!O36,'Cash Forecast_8A'!B$27:B$120,0)),\"\")","v":0},{"$f":"IFERROR(INDEX('Cash Forecast_8A'!M$27:M$120,MATCH('Cash Forecast_8A import-export'!O36,'Cash Forecast_8A'!B$27:B$120,0)),\"\")","v":0},null,0,null,"Int7","a3y36000002ILGvAAO"]
["RSSH: Health management information systems and M&E","Analysis, review and transparency",133871.70393133201,{"$f":"IFERROR(INDEX('Cash Forecast_8A'!F$27:F$120,MATCH('Cash Forecast_8A import-export'!O37,'Cash Forecast_8A'!B$27:B$120,0)),\"\")","v":219316.80042775092},21107.177834000799,{"$f":"IFERROR(INDEX('Cash Forecast_8A'!H$27:H$120,MATCH('Cash Forecast_8A import-export'!O37,'Cash Forecast_8A'!B$27:B$120,0)),\"\")","v":21107.17783400082},240423.97826175173,null,8,{"$f":"IFERROR(INDEX('Cash Forecast_8A'!L$27:L$120,MATCH('Cash Forecast_8A import-export'!O37,'Cash Forecast_8A'!B$27:B$120,0)),\"\")","v":0},{"$f":"IFERROR(INDEX('Cash Forecast_8A'!M$27:M$120,MATCH('Cash Forecast_8A import-export'!O37,'Cash Forecast_8A'!B$27:B$120,0)),\"\")","v":0},null,0,null,"Int8","a3y36000002ILGwAAO"]
["RSSH: Health management information systems and M&E","Surveys",64020.761629238899,{"$f":"IFERROR(INDEX('Cash Forecast_8A'!F$27:F$120,MATCH('Cash Forecast_8A import-export'!O38,'Cash Forecast_8A'!B$27:B$120,0)),\"\")","v":128041.52325847777},0,{"$f":"IFERROR(INDEX('Cash Forecast_8A'!H$27:H$120,MATCH('Cash Forecast_8A import-export'!O38,'Cash Forecast_8A'!B$27:B$120,0)),\"\")","v":0},128041.52325847777,null,9,{"$f":"IFERROR(INDEX('Cash Forecast_8A'!L$27:L$120,MATCH('Cash Forecast_8A import-export'!O38,'Cash Forecast_8A'!B$27:B$120,0)),\"\")","v":0},{"$f":"IFERROR(INDEX('Cash Forecast_8A'!M$27:M$120,MATCH('Cash Forecast_8A import-export'!O38,'Cash Forecast_8A'!B$27:B$120,0)),\"\")","v":0},null,0,null,"Int9","a3y36000002ILGzAAO"]
["RSSH: Health management information systems and M&E","Routine reporting",47163.540788967002,{"$f":"IFERROR(INDEX('Cash Forecast_8A'!F$27:F$120,MATCH('Cash Forecast_8A import-export'!O39,'Cash Forecast_8A'!B$27:B$120,0)),\"\")","v":129284.52260624657},48140.325925419304,{"$f":"IFERROR(INDEX('Cash Forecast_8A'!H$27:H$120,MATCH('Cash Forecast_8A import-export'!O39,'Cash Forecast_8A'!B$27:B$120,0)),\"\")","v":48140.325925419318},177424.84853166589,null,10,{"$f":"IFERROR(INDEX('Cash Forecast_8A'!L$27:L$120,MATCH('Cash Forecast_8A import-export'!O39,'Cash Forecast_8A'!B$27:B$120,0)),\"\")","v":0},{"$f":"IFERROR(INDEX('Cash Forecast_8A'!M$27:M$120,MATCH('Cash Forecast_8A import-export'!O39,'Cash Forecast_8A'!B$27:B$120,0)),\"\")","v":0},null,0,null,"Int10","a3y36000002ILH0AAO"]
["MDR-TB","Treatment: MDR-TB",33641.6852174827,{"$f":"IFERROR(INDEX('Cash Forecast_8A'!F$27:F$120,MATCH('Cash Forecast_8A import-export'!O40,'Cash Forecast_8A'!B$27:B$120,0)),\"\")","v":154086.46403455891},217812.74343154099,{"$f":"IFERROR(INDEX('Cash Forecast_8A'!H$27:H$120,MATCH('Cash Forecast_8A import-export'!O40,'Cash Forecast_8A'!B$27:B$120,0)),\"\")","v":217812.74343154076},371899.20746609964,null,11,{"$f":"IFERROR(INDEX('Cash Forecast_8A'!L$27:L$120,MATCH('Cash Forecast_8A import-export'!O40,'Cash Forecast_8A'!B$27:B$120,0)),\"\")","v":0},{"$f":"IFERROR(INDEX('Cash Forecast_8A'!M$27:M$120,MATCH('Cash Forecast_8A import-export'!O40,'Cash Forecast_8A'!B$27:B$120,0)),\"\")","v":0},null,0,null,"Int11","a3y36000002ILH1AAO"]
["TB/HIV","TB/HIV collaborative interventions",54092.311189123902,{"$f":"IFERROR(INDEX('Cash Forecast_8A'!F$27:F$120,MATCH('Cash Forecast_8A import-export'!O41,'Cash Forecast_8A'!B$27:B$120,0)),\"\")","v":22434.892810204667},129650.359290726,{"$f":"IFERROR(INDEX('Cash Forecast_8A'!H$27:H$120,MATCH('Cash Forecast_8A import-export'!O41,'Cash Forecast_8A'!B$27:B$120,0)),\"\")","v":129650.35929072564},152085.25210093032,null,12,{"$f":"IFERROR(INDEX('Cash Forecast_8A'!L$27:L$120,MATCH('Cash Forecast_8A import-export'!O41,'Cash Forecast_8A'!B$27:B$120,0)),\"\")","v":0},{"$f":"IFERROR(INDEX('Cash Forecast_8A'!M$27:M$120,MATCH('Cash Forecast_8A import-export'!O41,'Cash Forecast_8A'!B$27:B$120,0)),\"\")","v":0},null,0,null,"Int12","a3y36000002ILH3AAO"]
["Program management","Grant management",771684.249615715,{"$f":"IFERROR(INDEX('Cash Forecast_8A'!F$27:F$120,MATCH('Cash Forecast_8A import-export'!O42,'Cash Forecast_8A'!B$27:B$120,0)),\"\")","v":1373449.4515905224},870348.09373929701,{"$f":"IFERROR(INDEX('Cash Forecast_8A'!H$27:H$120,MATCH('Cash Forecast_8A import-export'!O42,'Cash Forecast_8A'!B$27:B$120,0)),\"\")","v":655625.8128965738},2029075.2644870961,null,13,{"$f":"IFERROR(INDEX('Cash Forecast_8A'!L$27:L$120,MATCH('Cash Forecast_8A import-export'!O42,'Cash Forecast_8A'!B$27:B$120,0)),\"\")","v":0},{"$f":"IFERROR(INDEX('Cash Forecast_8A'!M$27:M$120,MATCH('Cash Forecast_8A import-export'!O42,'Cash Forecast_8A'!B$27:B$120,0)),\"\")","v":0},null,0,null,"Int13","a3y36000002ILH4AAO"]
["Program management","Policy, planning, coordination and management of national disease control programs",104815.23784608601,{"$f":"IFERROR(INDEX('Cash Forecast_8A'!F$27:F$120,MATCH('Cash Forecast_8A import-export'!O43,'Cash Forecast_8A'!B$27:B$120,0)),\"\")","v":163361.10101669451},52794.650868550998,{"$f":"IFERROR(INDEX('Cash Forecast_8A'!H$27:H$120,MATCH('Cash Forecast_8A import-export'!O43,'Cash Forecast_8A'!B$27:B$120,0)),\"\")","v":52794.650868550954},216155.75188524547,null,14,{"$f":"IFERROR(INDEX('Cash Forecast_8A'!L$27:L$120,MATCH('Cash Forecast_8A import-export'!O43,'Cash Forecast_8A'!B$27:B$120,0)),\"\")","v":0},{"$f":"IFERROR(INDEX('Cash Forecast_8A'!M$27:M$120,MATCH('Cash Forecast_8A import-export'!O43,'Cash Forecast_8A'!B$27:B$120,0)),\"\")","v":0},null,0,null,"Int14","a3y36000002ILH6AAO"]
["PMTCT","Prong 1: Primary prevention of HIV infection among women of childbearing age",0,{"$f":"IFERROR(INDEX('Cash Forecast_8A'!F$27:F$120,MATCH('Cash Forecast_8A import-export'!O44,'Cash Forecast_8A'!B$27:B$120,0)),\"\")","v":13826.31166347522},13826.315722405699,{"$f":"IFERROR(INDEX('Cash Forecast_8A'!H$27:H$120,MATCH('Cash Forecast_8A import-export'!O44,'Cash Forecast_8A'!B$27:B$120,0)),\"\")","v":13826.31572240569},27652.627385880911,null,15,{"$f":"IFERROR(INDEX('Cash Forecast_8A'!L$27:L$120,MATCH('Cash Forecast_8A import-export'!O44,'Cash Forecast_8A'!B$27:B$120,0)),\"\")","v":0},{"$f":"IFERROR(INDEX('Cash Forecast_8A'!M$27:M$120,MATCH('Cash Forecast_8A import-export'!O44,'Cash Forecast_8A'!B$27:B$120,0)),\"\")","v":0},null,0,null,"Int15","a3y36000002ILH7AAO"]
["PMTCT","Prong 3: Preventing vertical HIV transmission",14775.501414542399,{"$f":"IFERROR(INDEX('Cash Forecast_8A'!F$27:F$120,MATCH('Cash Forecast_8A import-export'!O45,'Cash Forecast_8A'!B$27:B$120,0)),\"\")","v":316966.36949333688},176767.48,{"$f":"IFERROR(INDEX('Cash Forecast_8A'!H$27:H$120,MATCH('Cash Forecast_8A import-export'!O45,'Cash Forecast_8A'!B$27:B$120,0)),\"\")","v":50992.480000000003},367958.84949333686,null,16,{"$f":"IFERROR(INDEX('Cash Forecast_8A'!L$27:L$120,MATCH('Cash Forecast_8A import-export'!O45,'Cash Forecast_8A'!B$27:B$120,0)),\"\")","v":0},{"$f":"IFERROR(INDEX('Cash Forecast_8A'!M$27:M$120,MATCH('Cash Forecast_8A import-export'!O45,'Cash Forecast_8A'!B$27:B$120,0)),\"\")","v":0},null,0,null,"Int16","a3y36000002ILH8AAO"]
["PMTCT","Prong 4: Treatment, care and support to mothers living with HIV, their children and families",2429.65820333278,{"$f":"IFERROR(INDEX('Cash Forecast_8A'!F$27:F$120,MATCH('Cash Forecast_8A import-export'!O46,'Cash Forecast_8A'!B$27:B$120,0)),\"\")","v":60388.725055484421},10994.539442601201,{"$f":"IFERROR(INDEX('Cash Forecast_8A'!H$27:H$120,MATCH('Cash Forecast_8A import-export'!O46,'Cash Forecast_8A'!B$27:B$120,0)),\"\")","v":10994.539442601179},71383.264498085598,null,17,{"$f":"IFERROR(INDEX('Cash Forecast_8A'!L$27:L$120,MATCH('Cash Forecast_8A import-export'!O46,'Cash Forecast_8A'!B$27:B$120,0)),\"\")","v":0},{"$f":"IFERROR(INDEX('Cash Forecast_8A'!M$27:M$120,MATCH('Cash Forecast_8A import-export'!O46,'Cash Forecast_8A'!B$27:B$120,0)),\"\")","v":0},null,0,null,"Int17","a3y36000002ILH9AAO"]
["Prevention programs for general population","Other intervention(s) for general population",11609.6982732501,{"$f":"IFERROR(INDEX('Cash Forecast_8A'!F$27:F$120,MATCH('Cash Forecast_8A import-export'!O47,'Cash Forecast_8A'!B$27:B$120,0)),\"\")","v":188010.28183279446},217377.14591296599,{"$f":"IFERROR(INDEX('Cash Forecast_8A'!H$27:H$120,MATCH('Cash Forecast_8A import-export'!O47,'Cash Forecast_8A'!B$27:B$120,0)),\"\")","v":158823.57671296576},346833.85854576022,null,18,{"$f":"IFERROR(INDEX('Cash Forecast_8A'!L$27:L$120,MATCH('Cash Forecast_8A import-export'!O47,'Cash Forecast_8A'!B$27:B$120,0)),\"\")","v":0},{"$f":"IFERROR(INDEX('Cash Forecast_8A'!M$27:M$120,MATCH('Cash Forecast_8A import-export'!O47,'Cash Forecast_8A'!B$27:B$120,0)),\"\")","v":0},null,0,null,"Int18","a3y36000002ILHAAA4"]
["Comprehensive prevention programs for MSM","Behavioral interventions for MSM",1402.7374760641601,{"$f":"IFERROR(INDEX('Cash Forecast_8A'!F$27:F$120,MATCH('Cash Forecast_8A import-export'!O48,'Cash Forecast_8A'!B$27:B$120,0)),\"\")","v":3606.5583861074674},2349.5852724074598,{"$f":"IFERROR(INDEX('Cash Forecast_8A'!H$27:H$120,MATCH('Cash Forecast_8A import-export'!O48,'Cash Forecast_8A'!B$27:B$120,0)),\"\")","v":2349.5852724074603},5956.1436585149277,null,19,{"$f":"IFERROR(INDEX('Cash Forecast_8A'!L$27:L$120,MATCH('Cash Forecast_8A import-export'!O48,'Cash Forecast_8A'!B$27:B$120,0)),\"\")","v":0},{"$f":"IFERROR(INDEX('Cash Forecast_8A'!M$27:M$120,MATCH('Cash Forecast_8A import-export'!O48,'Cash Forecast_8A'!B$27:B$120,0)),\"\")","v":0},null,0,null,"Int19","a3y36000002ILHBAA4"]
["Comprehensive prevention programs for MSM","Condoms and lubricant programming for MSM",183.52481978506,{"$f":"IFERROR(INDEX('Cash Forecast_8A'!F$27:F$120,MATCH('Cash Forecast_8A import-export'!O49,'Cash Forecast_8A'!B$27:B$120,0)),\"\")","v":367.04963957012063},38745.469109285099,{"$f":"IFERROR(INDEX('Cash Forecast_8A'!H$27:H$120,MATCH('Cash Forecast_8A import-export'!O49,'Cash Forecast_8A'!B$27:B$120,0)),\"\")","v":38745.469109285063},39112.518748855182,null,20,{"$f":"IFERROR(INDEX('Cash Forecast_8A'!L$27:L$120,MATCH('Cash Forecast_8A import-export'!O49,'Cash Forecast_8A'!B$27:B$120,0)),\"\")","v":0},{"$f":"IFERROR(INDEX('Cash Forecast_8A'!M$27:M$120,MATCH('Cash Forecast_8A import-export'!O49,'Cash Forecast_8A'!B$27:B$120,0)),\"\")","v":0},null,0,null,"Int20","a3y36000002ILHCAA4"]
["Comprehensive prevention programs for MSM","Other intervention(s) for MSM",15504.729687797,{"$f":"IFERROR(INDEX('Cash Forecast_8A'!F$27:F$120,MATCH('Cash Forecast_8A import-export'!O50,'Cash Forecast_8A'!B$27:B$120,0)),\"\")","v":25331.385936106988},7296.5336115725104,{"$f":"IFERROR(INDEX('Cash Forecast_8A'!H$27:H$120,MATCH('Cash Forecast_8A import-export'!O50,'Cash Forecast_8A'!B$27:B$120,0)),\"\")","v":7296.5336115725077},32627.919547679496,null,21,{"$f":"IFERROR(INDEX('Cash Forecast_8A'!L$27:L$120,MATCH('Cash Forecast_8A import-export'!O50,'Cash Forecast_8A'!B$27:B$120,0)),\"\")","v":0},{"$f":"IFERROR(INDEX('Cash Forecast_8A'!M$27:M$120,MATCH('Cash Forecast_8A import-export'!O50,'Cash Forecast_8A'!B$27:B$120,0)),\"\")","v":0},null,0,null,"Int21","a3y36000002ILHDAA4"]
["Comprehensive prevention programs for sex workers and their clients","Behavioral interventions for sex workers",2443.1011041450802,{"$f":"IFERROR(INDEX('Cash Forecast_8A'!F$27:F$120,MATCH('Cash Forecast_8A import-export'!O51,'Cash Forecast_8A'!B$27:B$120,0)),\"\")","v":5906.2261429681257},3463.1250388230601,{"$f":"IFERROR(INDEX('Cash Forecast_8A'!H$27:H$120,MATCH('Cash Forecast_8A import-export'!O51,'Cash Forecast_8A'!B$27:B$120,0)),\"\")","v":3463.1250388230555},9369.3511817911822,null,22,{"$f":"IFERROR(INDEX('Cash Forecast_8A'!L$27:L$120,MATCH('Cash Forecast_8A import-export'!O51,'Cash Forecast_8A'!B$27:B$120,0)),\"\")","v":0},{"$f":"IFERROR(INDEX('Cash Forecast_8A'!M$27:M$120,MATCH('Cash Forecast_8A import-export'!O51,'Cash Forecast_8A'!B$27:B$120,0)),\"\")","v":0},null,0,null,"Int22","a3y36000002ILHEAA4"]
["Comprehensive prevention programs for sex workers and their clients","Condoms and lubricant programming for sex workers",666.30030113047405,{"$f":"IFERROR(INDEX('Cash Forecast_8A'!F$27:F$120,MATCH('Cash Forecast_8A import-export'!O52,'Cash Forecast_8A'!B$27:B$120,0)),\"\")","v":666.30030113047383},621986.07159366505,{"$f":"IFERROR(INDEX('Cash Forecast_8A'!H$27:H$120,MATCH('Cash Forecast_8A import-export'!O52,'Cash Forecast_8A'!B$27:B$120,0)),\"\")","v":621986.07159366529},622652.3718947958,null,23,{"$f":"IFERROR(INDEX('Cash Forecast_8A'!L$27:L$120,MATCH('Cash Forecast_8A import-export'!O52,'Cash Forecast_8A'!B$27:B$120,0)),\"\")","v":0},{"$f":"IFERROR(INDEX('Cash Forecast_8A'!M$27:M$120,MATCH('Cash Forecast_8A import-export'!O52,'Cash Forecast_8A'!B$27:B$120,0)),\"\")","v":0},null,0,null,"Int23","a3y36000002ILHFAA4"]
["Comprehensive prevention programs for sex workers and their clients","Other intervention(s) for sex workers and their clients",14728.743498673601,{"$f":"IFERROR(INDEX('Cash Forecast_8A'!F$27:F$120,MATCH('Cash Forecast_8A import-export'!O53,'Cash Forecast_8A'!B$27:B$120,0)),\"\")","v":18671.156439910232},7364.3717493368104,{"$f":"IFERROR(INDEX('Cash Forecast_8A'!H$27:H$120,MATCH('Cash Forecast_8A import-export'!O53,'Cash Forecast_8A'!B$27:B$120,0)),\"\")","v":7364.3717493368149},26035.528189247045,null,24,{"$f":"IFERROR(INDEX('Cash Forecast_8A'!L$27:L$120,MATCH('Cash Forecast_8A import-export'!O53,'Cash Forecast_8A'!B$27:B$120,0)),\"\")","v":0},{"$f":"IFERROR(INDEX('Cash Forecast_8A'!M$27:M$120,MATCH('Cash Forecast_8A import-export'!O53,'Cash Forecast_8A'!B$27:B$120,0)),\"\")","v":0},null,0,null,"Int24","a3y36000002ILHGAA4"]
["Comprehensive prevention programs for people who inject drugs (PWID) and their partners","Other intervention(s) for IDUs and their partners",6814.0310795609803,{"$f":"IFERROR(INDEX('Cash Forecast_8A'!F$27:F$120,MATCH('Cash Forecast_8A import-export'!O54,'Cash Forecast_8A'!B$27:B$120,0)),\"\")","v":8918.1372936572116},2104.1062140962299,{"$f":"IFERROR(INDEX('Cash Forecast_8A'!H$27:H$120,MATCH('Cash Forecast_8A import-export'!O54,'Cash Forecast_8A'!B$27:B$120,0)),\"\")","v":2104.1062140962331},11022.243507753445,null,25,{"$f":"IFERROR(INDEX('Cash Forecast_8A'!L$27:L$120,MATCH('Cash Forecast_8A import-export'!O54,'Cash Forecast_8A'!B$27:B$120,0)),\"\")","v":0},{"$f":"IFERROR(INDEX('Cash Forecast_8A'!M$27:M$120,MATCH('Cash Forecast_8A import-export'!O54,'Cash Forecast_8A'!B$27:B$120,0)),\"\")","v":0},null,0,null,"Int25","a3y36000002ILHHAA4"]
["Prevention programs for general population","Behavioral interventions as part of programs for general population",44132.981207448101,{"$f":"IFERROR(INDEX('Cash Forecast_8A'!F$27:F$120,MATCH('Cash Forecast_8A import-export'!O55,'Cash Forecast_8A'!B$27:B$120,0)),\"\")","v":50501.890607083595},35632.861537596596,{"$f":"IFERROR(INDEX('Cash Forecast_8A'!H$27:H$120,MATCH('Cash Forecast_8A import-export'!O55,'Cash Forecast_8A'!B$27:B$120,0)),\"\")","v":35632.861537596626},86134.752144680213,null,26,{"$f":"IFERROR(INDEX('Cash Forecast_8A'!L$27:L$120,MATCH('Cash Forecast_8A import-export'!O55,'Cash Forecast_8A'!B$27:B$120,0)),\"\")","v":0},{"$f":"IFERROR(INDEX('Cash Forecast_8A'!M$27:M$120,MATCH('Cash Forecast_8A import-export'!O55,'Cash Forecast_8A'!B$27:B$120,0)),\"\")","v":0},null,0,null,"Int26","a3y36000002ILHIAA4"]
["Prevention programs for other vulnerable populations","HIV testing services for other vulnerable populations",0,{"$f":"IFERROR(INDEX('Cash Forecast_8A'!F$27:F$120,MATCH('Cash Forecast_8A import-export'!O56,'Cash Forecast_8A'!B$27:B$120,0)),\"\")","v":28839.82},1163.05,{"$f":"IFERROR(INDEX('Cash Forecast_8A'!H$27:H$120,MATCH('Cash Forecast_8A import-export'!O56,'Cash Forecast_8A'!B$27:B$120,0)),\"\")","v":1163.05},30002.87,null,27,{"$f":"IFERROR(INDEX('Cash Forecast_8A'!L$27:L$120,MATCH('Cash Forecast_8A import-export'!O56,'Cash Forecast_8A'!B$27:B$120,0)),\"\")","v":0},{"$f":"IFERROR(INDEX('Cash Forecast_8A'!M$27:M$120,MATCH('Cash Forecast_8A import-export'!O56,'Cash Forecast_8A'!B$27:B$120,0)),\"\")","v":0},null,0,null,"Int27","a3y36000002ILHJAA4"]
["HIV Testing Services","Differentiated HIV testing services",2590.6807761059899,{"$f":"IFERROR(INDEX('Cash Forecast_8A'!F$27:F$120,MATCH('Cash Forecast_8A import-export'!O57,'Cash Forecast_8A'!B$27:B$120,0)),\"\")","v":275269.61193835089},263070.49,{"$f":"IFERROR(INDEX('Cash Forecast_8A'!H$27:H$120,MATCH('Cash Forecast_8A import-export'!O57,'Cash Forecast_8A'!B$27:B$120,0)),\"\")","v":10600.84},285870.45193835092,null,28,{"$f":"IFERROR(INDEX('Cash Forecast_8A'!L$27:L$120,MATCH('Cash Forecast_8A import-export'!O57,'Cash Forecast_8A'!B$27:B$120,0)),\"\")","v":0},{"$f":"IFERROR(INDEX('Cash Forecast_8A'!M$27:M$120,MATCH('Cash Forecast_8A import-export'!O57,'Cash Forecast_8A'!B$27:B$120,0)),\"\")","v":0},null,0,null,"Int28","a3y36000002ILHKAA4"]
["RSSH: Integrated service delivery and quality improvement","Laboratory systems for disease prevention, control, treatment and disease surveillance",359.45147824143999,{"$f":"IFERROR(INDEX('Cash Forecast_8A'!F$27:F$120,MATCH('Cash Forecast_8A import-export'!O58,'Cash Forecast_8A'!B$27:B$120,0)),\"\")","v":674.15579245857987},19790.41,{"$f":"IFERROR(INDEX('Cash Forecast_8A'!H$27:H$120,MATCH('Cash Forecast_8A import-export'!O58,'Cash Forecast_8A'!B$27:B$120,0)),\"\")","v":19790.41},20464.565792458579,null,29,{"$f":"IFERROR(INDEX('Cash Forecast_8A'!L$27:L$120,MATCH('Cash Forecast_8A import-export'!O58,'Cash Forecast_8A'!B$27:B$120,0)),\"\")","v":0},{"$f":"IFERROR(INDEX('Cash Forecast_8A'!M$27:M$120,MATCH('Cash Forecast_8A import-export'!O58,'Cash Forecast_8A'!B$27:B$120,0)),\"\")","v":0},null,0,null,"Int29","a3y36000002ILHLAA4"]
["RSSH: Health management information systems and M&E","Program and data quality",84115.059278178902,{"$f":"IFERROR(INDEX('Cash Forecast_8A'!F$27:F$120,MATCH('Cash Forecast_8A import-export'!O59,'Cash Forecast_8A'!B$27:B$120,0)),\"\")","v":124080.26713663587},87023.417796620401,{"$f":"IFERROR(INDEX('Cash Forecast_8A'!H$27:H$120,MATCH('Cash Forecast_8A import-export'!O59,'Cash Forecast_8A'!B$27:B$120,0)),\"\")","v":87023.417796620473},211103.68493325636,null,30,{"$f":"IFERROR(INDEX('Cash Forecast_8A'!L$27:L$120,MATCH('Cash Forecast_8A import-export'!O59,'Cash Forecast_8A'!B$27:B$120,0)),\"\")","v":0},{"$f":"IFERROR(INDEX('Cash Forecast_8A'!M$27:M$120,MATCH('Cash Forecast_8A import-export'!O59,'Cash Forecast_8A'!B$27:B$120,0)),\"\")","v":0},null,0,null,"Int30","a3y36000002ILHMAA4"]
["Treatment, care and support","Counseling and psycho-social support",511140.51779259299,{"$f":"IFERROR(INDEX('Cash Forecast_8A'!F$27:F$120,MATCH('Cash Forecast_8A import-export'!O60,'Cash Forecast_8A'!B$27:B$120,0)),\"\")","v":616235.18914707948},267070.92054662999,{"$f":"IFERROR(INDEX('Cash Forecast_8A'!H$27:H$120,MATCH('Cash Forecast_8A import-export'!O60,'Cash Forecast_8A'!B$27:B$120,0)),\"\")","v":267070.92054662999},883306.10969370953,null,31,{"$f":"IFERROR(INDEX('Cash Forecast_8A'!L$27:L$120,MATCH('Cash Forecast_8A import-export'!O60,'Cash Forecast_8A'!B$27:B$120,0)),\"\")","v":0},{"$f":"IFERROR(INDEX('Cash Forecast_8A'!M$27:M$120,MATCH('Cash Forecast_8A import-export'!O60,'Cash Forecast_8A'!B$27:B$120,0)),\"\")","v":0},null,0,null,"Int31","a3y36000002ILHNAA4"]
["Treatment, care and support","Other intervention(s) for treatment",344717.627901642,{"$f":"IFERROR(INDEX('Cash Forecast_8A'!F$27:F$120,MATCH('Cash Forecast_8A import-export'!O61,'Cash Forecast_8A'!B$27:B$120,0)),\"\")","v":454447.7322967308},176314.12011800401,{"$f":"IFERROR(INDEX('Cash Forecast_8A'!H$27:H$120,MATCH('Cash Forecast_8A import-export'!O61,'Cash Forecast_8A'!B$27:B$120,0)),\"\")","v":176314.12011800363},630761.85241473443,null,32,{"$f":"IFERROR(INDEX('Cash Forecast_8A'!L$27:L$120,MATCH('Cash Forecast_8A import-export'!O61,'Cash Forecast_8A'!B$27:B$120,0)),\"\")","v":0},{"$f":"IFERROR(INDEX('Cash Forecast_8A'!M$27:M$120,MATCH('Cash Forecast_8A import-export'!O61,'Cash Forecast_8A'!B$27:B$120,0)),\"\")","v":0},null,0,null,"Int32","a3y36000002ILHOAA4"]
["Treatment, care and support","Differentiated ART service delivery",184474.30067366801,{"$f":"IFERROR(INDEX('Cash Forecast_8A'!F$27:F$120,MATCH('Cash Forecast_8A import-export'!O62,'Cash Forecast_8A'!B$27:B$120,0)),\"\")","v":359000.85474624723},93771.154905741001,{"$f":"IFERROR(INDEX('Cash Forecast_8A'!H$27:H$120,MATCH('Cash Forecast_8A import-export'!O62,'Cash Forecast_8A'!B$27:B$120,0)),\"\")","v":93771.154905740987},452772.00965198822,null,33,{"$f":"IFERROR(INDEX('Cash Forecast_8A'!L$27:L$120,MATCH('Cash Forecast_8A import-export'!O62,'Cash Forecast_8A'!B$27:B$120,0)),\"\")","v":0},{"$f":"IFERROR(INDEX('Cash Forecast_8A'!M$27:M$120,MATCH('Cash Forecast_8A import-export'!O62,'Cash Forecast_8A'!B$27:B$120,0)),\"\")","v":0},null,0,null,"Int33","a3y36000002ILHPAA4"]
["Treatment, care and support","Prevention, diagnosis and treatment of opportunistic infections",11078.119217216699,{"$f":"IFERROR(INDEX('Cash Forecast_8A'!F$27:F$120,MATCH('Cash Forecast_8A import-export'!O63,'Cash Forecast_8A'!B$27:B$120,0)),\"\")","v":286756.49484017224},96879.65,{"$f":"IFERROR(INDEX('Cash Forecast_8A'!H$27:H$120,MATCH('Cash Forecast_8A import-export'!O63,'Cash Forecast_8A'!B$27:B$120,0)),\"\")","v":9708.1200000000026},296464.61484017223,null,34,{"$f":"IFERROR(INDEX('Cash Forecast_8A'!L$27:L$120,MATCH('Cash Forecast_8A import-export'!O63,'Cash Forecast_8A'!B$27:B$120,0)),\"\")","v":0},{"$f":"IFERROR(INDEX('Cash Forecast_8A'!M$27:M$120,MATCH('Cash Forecast_8A import-export'!O63,'Cash Forecast_8A'!B$27:B$120,0)),\"\")","v":0},null,0,null,"Int34","a3y36000002ILHQAA4"]
["Treatment, care and support","HIV care",0,{"$f":"IFERROR(INDEX('Cash Forecast_8A'!F$27:F$120,MATCH('Cash Forecast_8A import-export'!O64,'Cash Forecast_8A'!B$27:B$120,0)),\"\")","v":3305612.7895999993},3031850.71,{"$f":"IFERROR(INDEX('Cash Forecast_8A'!H$27:H$120,MATCH('Cash Forecast_8A import-export'!O64,'Cash Forecast_8A'!B$27:B$120,0)),\"\")","v":40846.150400000013},3346458.9399999995,null,35,{"$f":"IFERROR(INDEX('Cash Forecast_8A'!L$27:L$120,MATCH('Cash Forecast_8A import-export'!O64,'Cash Forecast_8A'!B$27:B$120,0)),\"\")","v":0},{"$f":"IFERROR(INDEX('Cash Forecast_8A'!M$27:M$120,MATCH('Cash Forecast_8A import-export'!O64,'Cash Forecast_8A'!B$27:B$120,0)),\"\")","v":0},null,0,null,"Int35","a3y36000002ILHRAA4"]
["Treatment, care and support","Treatment monitoring - Viral load",10809.845674919399,{"$f":"IFERROR(INDEX('Cash Forecast_8A'!F$27:F$120,MATCH('Cash Forecast_8A import-export'!O65,'Cash Forecast_8A'!B$27:B$120,0)),\"\")","v":492612.15160044457},591682.92283745995,{"$f":"IFERROR(INDEX('Cash Forecast_8A'!H$27:H$120,MATCH('Cash Forecast_8A import-export'!O65,'Cash Forecast_8A'!B$27:B$120,0)),\"\")","v":432097.56283745973},924709.7144379043,null,36,{"$f":"IFERROR(INDEX('Cash Forecast_8A'!L$27:L$120,MATCH('Cash Forecast_8A import-export'!O65,'Cash Forecast_8A'!B$27:B$120,0)),\"\")","v":0},{"$f":"IFERROR(INDEX('Cash Forecast_8A'!M$27:M$120,MATCH('Cash Forecast_8A import-export'!O65,'Cash Forecast_8A'!B$27:B$120,0)),\"\")","v":0},null,0,null,"Int36","a3y36000002ILHSAA4"]
["Treatment, care and support","Treatment monitoring - Drug resistance surveillance",0,{"$f":"IFERROR(INDEX('Cash Forecast_8A'!F$27:F$120,MATCH('Cash Forecast_8A import-export'!O66,'Cash Forecast_8A'!B$27:B$120,0)),\"\")","v":112119.69370000002},85041.91,{"$f":"IFERROR(INDEX('Cash Forecast_8A'!H$27:H$120,MATCH('Cash Forecast_8A import-export'!O66,'Cash Forecast_8A'!B$27:B$120,0)),\"\")","v":85041.91},197161.60370000004,null,37,{"$f":"IFERROR(INDEX('Cash Forecast_8A'!L$27:L$120,MATCH('Cash Forecast_8A import-export'!O66,'Cash Forecast_8A'!B$27:B$120,0)),\"\")","v":0},{"$f":"IFERROR(INDEX('Cash Forecast_8A'!M$27:M$120,MATCH('Cash Forecast_8A import-export'!O66,'Cash Forecast_8A'!B$27:B$120,0)),\"\")","v":0},null,0,null,"Int37","a3y36000002ILHTAA4"]
["Comprehensive prevention programs for sex workers and their clients","HIV testing services for sex workers",183.52481978506,{"$f":"IFERROR(INDEX('Cash Forecast_8A'!F$27:F$120,MATCH('Cash Forecast_8A import-export'!O67,'Cash Forecast_8A'!B$27:B$120,0)),\"\")","v":367.52481978506034},0,{"$f":"IFERROR(INDEX('Cash Forecast_8A'!H$27:H$120,MATCH('Cash Forecast_8A import-export'!O67,'Cash Forecast_8A'!B$27:B$120,0)),\"\")","v":0},367.52481978506034,null,38,{"$f":"IFERROR(INDEX('Cash Forecast_8A'!L$27:L$120,MATCH('Cash Forecast_8A import-export'!O67,'Cash Forecast_8A'!B$27:B$120,0)),\"\")","v":0},{"$f":"IFERROR(INDEX('Cash Forecast_8A'!M$27:M$120,MATCH('Cash Forecast_8A import-export'!O67,'Cash Forecast_8A'!B$27:B$120,0)),\"\")","v":0},null,0,null,"Int38","a3y36000002ILHUAA4"]
["Prevention programs for general population","Gender-based violence prevention and treatment programs for general population",0,{"$f":"IFERROR(INDEX('Cash Forecast_8A'!F$27:F$120,MATCH('Cash Forecast_8A import-export'!O68,'Cash Forecast_8A'!B$27:B$120,0)),\"\")","v":30000},9039.4740853367603,{"$f":"IFERROR(INDEX('Cash Forecast_8A'!H$27:H$120,MATCH('Cash Forecast_8A import-export'!O68,'Cash Forecast_8A'!B$27:B$120,0)),\"\")","v":9039.4740853367603},39039.474085336762,null,39,{"$f":"IFERROR(INDEX('Cash Forecast_8A'!L$27:L$120,MATCH('Cash Forecast_8A import-export'!O68,'Cash Forecast_8A'!B$27:B$120,0)),\"\")","v":0},{"$f":"IFERROR(INDEX('Cash Forecast_8A'!M$27:M$120,MATCH('Cash Forecast_8A import-export'!O68,'Cash Forecast_8A'!B$27:B$120,0)),\"\")","v":0},null,0,null,"Int39","a3y36000002ILHVAA4"]
["MDR-TB","Case detection and diagnosis: MDR-TB",0,{"$f":"IFERROR(INDEX('Cash Forecast_8A'!F$27:F$120,MATCH('Cash Forecast_8A import-export'!O69,'Cash Forecast_8A'!B$27:B$120,0)),\"\")","v":0},27789.511472717601,{"$f":"IFERROR(INDEX('Cash Forecast_8A'!H$27:H$120,MATCH('Cash Forecast_8A import-export'!O69,'Cash Forecast_8A'!B$27:B$120,0)),\"\")","v":27789.511472717641},27789.511472717641,null,40,{"$f":"IFERROR(INDEX('Cash Forecast_8A'!L$27:L$120,MATCH('Cash Forecast_8A import-export'!O69,'Cash Forecast_8A'!B$27:B$120,0)),\"\")","v":0},{"$f":"IFERROR(INDEX('Cash Forecast_8A'!M$27:M$120,MATCH('Cash Forecast_8A import-export'!O69,'Cash Forecast_8A'!B$27:B$120,0)),\"\")","v":0},null,0,null,"Int40","a3y36000002ILHWAA4"]
["Comprehensive programs for people in prisons and other closed settings","Condoms and lubricant programming for people in prisons and other closed settings",0,{"$f":"IFERROR(INDEX('Cash Forecast_8A'!F$27:F$120,MATCH('Cash Forecast_8A import-export'!O70,'Cash Forecast_8A'!B$27:B$120,0)),\"\")","v":0},6058.6886303199999,{"$f":"IFERROR(INDEX('Cash Forecast_8A'!H$27:H$120,MATCH('Cash Forecast_8A import-export'!O70,'Cash Forecast_8A'!B$27:B$120,0)),\"\")","v":6058.6886303199999},6058.6886303199999,null,41,{"$f":"IFERROR(INDEX('Cash Forecast_8A'!L$27:L$120,MATCH('Cash Forecast_8A import-export'!O70,'Cash Forecast_8A'!B$27:B$120,0)),\"\")","v":0},{"$f":"IFERROR(INDEX('Cash Forecast_8A'!M$27:M$120,MATCH('Cash Forecast_8A import-export'!O70,'Cash Forecast_8A'!B$27:B$120,0)),\"\")","v":0},null,0,null,"Int41","a3y36000002ILHXAA4"]
["Comprehensive prevention programs for people who inject drugs (PWID) and their partners","Condoms and lubricant programming for PWID",0,{"$f":"IFERROR(INDEX('Cash Forecast_8A'!F$27:F$120,MATCH('Cash Forecast_8A import-export'!O71,'Cash Forecast_8A'!B$27:B$120,0)),\"\")","v":0},278.23917061999998,{"$f":"IFERROR(INDEX('Cash Forecast_8A'!H$27:H$120,MATCH('Cash Forecast_8A import-export'!O71,'Cash Forecast_8A'!B$27:B$120,0)),\"\")","v":278.23917061999998},278.23917061999998,null,42,{"$f":"IFERROR(INDEX('Cash Forecast_8A'!L$27:L$120,MATCH('Cash Forecast_8A import-export'!O71,'Cash Forecast_8A'!B$27:B$120,0)),\"\")","v":0},{"$f":"IFERROR(INDEX('Cash Forecast_8A'!M$27:M$120,MATCH('Cash Forecast_8A import-export'!O71,'Cash Forecast_8A'!B$27:B$120,0)),\"\")","v":0},null,0,null,"Int42","a3y36000002ILHYAA4"]
["Prevention programs for adolescents and youth, in and out of school","Male and Female condoms for adolescents and youth, in and out of school",0,{"$f":"IFERROR(INDEX('Cash Forecast_8A'!F$27:F$120,MATCH('Cash Forecast_8A import-export'!O72,'Cash Forecast_8A'!B$27:B$120,0)),\"\")","v":0},66006.276648359999,{"$f":"IFERROR(INDEX('Cash Forecast_8A'!H$27:H$120,MATCH('Cash Forecast_8A import-export'!O72,'Cash Forecast_8A'!B$27:B$120,0)),\"\")","v":66006.276648359984},66006.276648359984,null,43,{"$f":"IFERROR(INDEX('Cash Forecast_8A'!L$27:L$120,MATCH('Cash Forecast_8A import-export'!O72,'Cash Forecast_8A'!B$27:B$120,0)),\"\")","v":0},{"$f":"IFERROR(INDEX('Cash Forecast_8A'!M$27:M$120,MATCH('Cash Forecast_8A import-export'!O72,'Cash Forecast_8A'!B$27:B$120,0)),\"\")","v":0},null,0,null,"Int43","a3y36000002ILHZAA4"]
["Prevention programs for other vulnerable populations","Male and female condoms for other vulnerable populations",0,{"$f":"IFERROR(INDEX('Cash Forecast_8A'!F$27:F$120,MATCH('Cash Forecast_8A import-export'!O73,'Cash Forecast_8A'!B$27:B$120,0)),\"\")","v":0},13849.92134264,{"$f":"IFERROR(INDEX('Cash Forecast_8A'!H$27:H$120,MATCH('Cash Forecast_8A import-export'!O73,'Cash Forecast_8A'!B$27:B$120,0)),\"\")","v":13849.92134264},13849.92134264,null,44,{"$f":"IFERROR(INDEX('Cash Forecast_8A'!L$27:L$120,MATCH('Cash Forecast_8A import-export'!O73,'Cash Forecast_8A'!B$27:B$120,0)),\"\")","v":0},{"$f":"IFERROR(INDEX('Cash Forecast_8A'!M$27:M$120,MATCH('Cash Forecast_8A import-export'!O73,'Cash Forecast_8A'!B$27:B$120,0)),\"\")","v":0},null,0,null,"Int44","a3y36000002ILHaAAO"]
["Module","Intervention",null,"PR Forecast for the period",null,"PR Forecast for the Buffer Period",null,"PR Comments",-1,"LFA Adjusted Forecast for the period","LFA Adj. Forecast for the Buffer period",null,null,"LFA Comments",null,null,null,"Record ID"]
["[Module]","[Intervention]","[Budget for Forecast Period]",{"$f":"IFERROR(INDEX('Cash Forecast_8A'!F$121:F$136,MATCH('Cash Forecast_8A import-export'!O75,'Cash Forecast_8A'!B$121:B$136,0)),\"\")","v":""},"[Budget for the Buffer Period]",{"$f":"IFERROR(INDEX('Cash Forecast_8A'!H$121:H$136,MATCH('Cash Forecast_8A import-export'!O75,'Cash Forecast_8A'!B$121:B$136,0)),\"\")","v":""},{"$f":"IFERROR(D75+F75,\"\")","v":""},"[PR Comments]",{"$f":"I74+0","v":-1},{"$f":"IFERROR(INDEX('Cash Forecast_8A'!L$121:L$136,MATCH('Cash Forecast_8A import-export'!O75,'Cash Forecast_8A'!B$121:B$136,0)),\"\")","v":""},{"$f":"IFERROR(INDEX('Cash Forecast_8A'!M$121:M$136,MATCH('Cash Forecast_8A import-export'!O75,'Cash Forecast_8A'!B$121:B$136,0)),\"\")","v":""},null,{"$f":"IFERROR(J75+K75,\"\")","v":""},"[LFA Comments]",{"$f":"\"Int\"&I75","v":"Int-1"},{"$f":"IFERROR(IF(VLOOKUP(A75,'Reference Records'!$B$13:$D$48,3,FALSE)=0,\"\",VLOOKUP(A75,'Reference Records'!$B$13:$D$48,3,FALSE)),\"\")","v":""},null,"[Record ID]"]
[null,null,0,{"$f":"IFERROR(INDEX('Cash Forecast_8A'!F$121:F$136,MATCH('Cash Forecast_8A import-export'!O76,'Cash Forecast_8A'!B$121:B$136,0)),\"\")","v":""},0,{"$f":"IFERROR(INDEX('Cash Forecast_8A'!H$121:H$136,MATCH('Cash Forecast_8A import-export'!O76,'Cash Forecast_8A'!B$121:B$136,0)),\"\")","v":""},{"$f":"IFERROR(D76+F76,\"\")","v":""},null,{"$f":"I75+0","v":-1},{"$f":"IFERROR(INDEX('Cash Forecast_8A'!L$121:L$136,MATCH('Cash Forecast_8A import-export'!O76,'Cash Forecast_8A'!B$121:B$136,0)),\"\")","v":""},{"$f":"IFERROR(INDEX('Cash Forecast_8A'!M$121:M$136,MATCH('Cash Forecast_8A import-export'!O76,'Cash Forecast_8A'!B$121:B$136,0)),\"\")","v":""},null,{"$f":"IFERROR(J76+K76,\"\")","v":""},null,{"$f":"\"Int\"&I76","v":"Int-1"},{"$f":"IFERROR(IF(VLOOKUP(A76,'Reference Records'!$B$13:$D$48,3,FALSE)=0,\"\",VLOOKUP(A76,'Reference Records'!$B$13:$D$48,3,FALSE)),\"\")","v":""},null,"a3y36000002ILHdAAO"]
[null,null,0,{"$f":"IFERROR(INDEX('Cash Forecast_8A'!F$121:F$136,MATCH('Cash Forecast_8A import-export'!O77,'Cash Forecast_8A'!B$121:B$136,0)),\"\")","v":""},0,{"$f":"IFERROR(INDEX('Cash Forecast_8A'!H$121:H$136,MATCH('Cash Forecast_8A import-export'!O77,'Cash Forecast_8A'!B$121:B$136,0)),\"\")","v":""},"",null,-1,{"$f":"IFERROR(INDEX('Cash Forecast_8A'!L$121:L$136,MATCH('Cash Forecast_8A import-export'!O77,'Cash Forecast_8A'!B$121:B$136,0)),\"\")","v":""},{"$f":"IFERROR(INDEX('Cash Forecast_8A'!M$121:M$136,MATCH('Cash Forecast_8A import-export'!O77,'Cash Forecast_8A'!B$121:B$136,0)),\"\")","v":""},null,"",null,"Int-1",{"$f":"IFERROR(IF(VLOOKUP(A77,'Reference Records'!$B$13:$D$48,3,FALSE)=0,\"\",VLOOKUP(A77,'Reference Records'!$B$13:$D$48,3,FALSE)),\"\")","v":""},null,"a3y36000002ILHeAAO"]
[null,null,0,{"$f":"IFERROR(INDEX('Cash Forecast_8A'!F$121:F$136,MATCH('Cash Forecast_8A import-export'!O78,'Cash Forecast_8A'!B$121:B$136,0)),\"\")","v":""},0,{"$f":"IFERROR(INDEX('Cash Forecast_8A'!H$121:H$136,MATCH('Cash Forecast_8A import-export'!O78,'Cash Forecast_8A'!B$121:B$136,0)),\"\")","v":""},"",null,-1,{"$f":"IFERROR(INDEX('Cash Forecast_8A'!L$121:L$136,MATCH('Cash Forecast_8A import-export'!O78,'Cash Forecast_8A'!B$121:B$136,0)),\"\")","v":""},{"$f":"IFERROR(INDEX('Cash Forecast_8A'!M$121:M$136,MATCH('Cash Forecast_8A import-export'!O78,'Cash Forecast_8A'!B$121:B$136,0)),\"\")","v":""},null,"",null,"Int-1",{"$f":"IFERROR(IF(VLOOKUP(A78,'Reference Records'!$B$13:$D$48,3,FALSE)=0,\"\",VLOOKUP(A78,'Reference Records'!$B$13:$D$48,3,FALSE)),\"\")","v":""},null,"a3y36000002ILHfAAO"]
[null,null,0,{"$f":"IFERROR(INDEX('Cash Forecast_8A'!F$121:F$136,MATCH('Cash Forecast_8A import-export'!O79,'Cash Forecast_8A'!B$121:B$136,0)),\"\")","v":""},0,{"$f":"IFERROR(INDEX('Cash Forecast_8A'!H$121:H$136,MATCH('Cash Forecast_8A import-export'!O79,'Cash Forecast_8A'!B$121:B$136,0)),\"\")","v":""},"",null,-1,{"$f":"IFERROR(INDEX('Cash Forecast_8A'!L$121:L$136,MATCH('Cash Forecast_8A import-export'!O79,'Cash Forecast_8A'!B$121:B$136,0)),\"\")","v":""},{"$f":"IFERROR(INDEX('Cash Forecast_8A'!M$121:M$136,MATCH('Cash Forecast_8A import-export'!O79,'Cash Forecast_8A'!B$121:B$136,0)),\"\")","v":""},null,"",null,"Int-1",{"$f":"IFERROR(IF(VLOOKUP(A79,'Reference Records'!$B$13:$D$48,3,FALSE)=0,\"\",VLOOKUP(A79,'Reference Records'!$B$13:$D$48,3,FALSE)),\"\")","v":""},null,"a3y36000002ILHgAAO"]
[null,null,0,{"$f":"IFERROR(INDEX('Cash Forecast_8A'!F$121:F$136,MATCH('Cash Forecast_8A import-export'!O80,'Cash Forecast_8A'!B$121:B$136,0)),\"\")","v":""},0,{"$f":"IFERROR(INDEX('Cash Forecast_8A'!H$121:H$136,MATCH('Cash Forecast_8A import-export'!O80,'Cash Forecast_8A'!B$121:B$136,0)),\"\")","v":""},"",null,-1,{"$f":"IFERROR(INDEX('Cash Forecast_8A'!L$121:L$136,MATCH('Cash Forecast_8A import-export'!O80,'Cash Forecast_8A'!B$121:B$136,0)),\"\")","v":""},{"$f":"IFERROR(INDEX('Cash Forecast_8A'!M$121:M$136,MATCH('Cash Forecast_8A import-export'!O80,'Cash Forecast_8A'!B$121:B$136,0)),\"\")","v":""},null,"",null,"Int-1",{"$f":"IFERROR(IF(VLOOKUP(A80,'Reference Records'!$B$13:$D$48,3,FALSE)=0,\"\",VLOOKUP(A80,'Reference Records'!$B$13:$D$48,3,FALSE)),\"\")","v":""},null,"a3y36000002ILHhAAO"]
[null,null,0,{"$f":"IFERROR(INDEX('Cash Forecast_8A'!F$121:F$136,MATCH('Cash Forecast_8A import-export'!O81,'Cash Forecast_8A'!B$121:B$136,0)),\"\")","v":""},0,{"$f":"IFERROR(INDEX('Cash Forecast_8A'!H$121:H$136,MATCH('Cash Forecast_8A import-export'!O81,'Cash Forecast_8A'!B$121:B$136,0)),\"\")","v":""},"",null,-1,{"$f":"IFERROR(INDEX('Cash Forecast_8A'!L$121:L$136,MATCH('Cash Forecast_8A import-export'!O81,'Cash Forecast_8A'!B$121:B$136,0)),\"\")","v":""},{"$f":"IFERROR(INDEX('Cash Forecast_8A'!M$121:M$136,MATCH('Cash Forecast_8A import-export'!O81,'Cash Forecast_8A'!B$121:B$136,0)),\"\")","v":""},null,"",null,"Int-1",{"$f":"IFERROR(IF(VLOOKUP(A81,'Reference Records'!$B$13:$D$48,3,FALSE)=0,\"\",VLOOKUP(A81,'Reference Records'!$B$13:$D$48,3,FALSE)),\"\")","v":""},null,"a3y36000002ILHiAAO"]
[null,null,0,{"$f":"IFERROR(INDEX('Cash Forecast_8A'!F$121:F$136,MATCH('Cash Forecast_8A import-export'!O82,'Cash Forecast_8A'!B$121:B$136,0)),\"\")","v":""},0,{"$f":"IFERROR(INDEX('Cash Forecast_8A'!H$121:H$136,MATCH('Cash Forecast_8A import-export'!O82,'Cash Forecast_8A'!B$121:B$136,0)),\"\")","v":""},"",null,-1,{"$f":"IFERROR(INDEX('Cash Forecast_8A'!L$121:L$136,MATCH('Cash Forecast_8A import-export'!O82,'Cash Forecast_8A'!B$121:B$136,0)),\"\")","v":""},{"$f":"IFERROR(INDEX('Cash Forecast_8A'!M$121:M$136,MATCH('Cash Forecast_8A import-export'!O82,'Cash Forecast_8A'!B$121:B$136,0)),\"\")","v":""},null,"",null,"Int-1",{"$f":"IFERROR(IF(VLOOKUP(A82,'Reference Records'!$B$13:$D$48,3,FALSE)=0,\"\",VLOOKUP(A82,'Reference Records'!$B$13:$D$48,3,FALSE)),\"\")","v":""},null,"a3y36000002ILHjAAO"]
[null,null,0,{"$f":"IFERROR(INDEX('Cash Forecast_8A'!F$121:F$136,MATCH('Cash Forecast_8A import-export'!O83,'Cash Forecast_8A'!B$121:B$136,0)),\"\")","v":""},0,{"$f":"IFERROR(INDEX('Cash Forecast_8A'!H$121:H$136,MATCH('Cash Forecast_8A import-export'!O83,'Cash Forecast_8A'!B$121:B$136,0)),\"\")","v":""},"",null,-1,{"$f":"IFERROR(INDEX('Cash Forecast_8A'!L$121:L$136,MATCH('Cash Forecast_8A import-export'!O83,'Cash Forecast_8A'!B$121:B$136,0)),\"\")","v":""},{"$f":"IFERROR(INDEX('Cash Forecast_8A'!M$121:M$136,MATCH('Cash Forecast_8A import-export'!O83,'Cash Forecast_8A'!B$121:B$136,0)),\"\")","v":""},null,"",null,"Int-1",{"$f":"IFERROR(IF(VLOOKUP(A83,'Reference Records'!$B$13:$D$48,3,FALSE)=0,\"\",VLOOKUP(A83,'Reference Records'!$B$13:$D$48,3,FALSE)),\"\")","v":""},null,"a3y36000002ILHkAAO"]
[null,null,0,{"$f":"IFERROR(INDEX('Cash Forecast_8A'!F$121:F$136,MATCH('Cash Forecast_8A import-export'!O84,'Cash Forecast_8A'!B$121:B$136,0)),\"\")","v":""},0,{"$f":"IFERROR(INDEX('Cash Forecast_8A'!H$121:H$136,MATCH('Cash Forecast_8A import-export'!O84,'Cash Forecast_8A'!B$121:B$136,0)),\"\")","v":""},"",null,-1,{"$f":"IFERROR(INDEX('Cash Forecast_8A'!L$121:L$136,MATCH('Cash Forecast_8A import-export'!O84,'Cash Forecast_8A'!B$121:B$136,0)),\"\")","v":""},{"$f":"IFERROR(INDEX('Cash Forecast_8A'!M$121:M$136,MATCH('Cash Forecast_8A import-export'!O84,'Cash Forecast_8A'!B$121:B$136,0)),\"\")","v":""},null,"",null,"Int-1",{"$f":"IFERROR(IF(VLOOKUP(A84,'Reference Records'!$B$13:$D$48,3,FALSE)=0,\"\",VLOOKUP(A84,'Reference Records'!$B$13:$D$48,3,FALSE)),\"\")","v":""},null,"a3y36000002ILHlAAO"]
[null,null,0,{"$f":"IFERROR(INDEX('Cash Forecast_8A'!F$121:F$136,MATCH('Cash Forecast_8A import-export'!O85,'Cash Forecast_8A'!B$121:B$136,0)),\"\")","v":""},0,{"$f":"IFERROR(INDEX('Cash Forecast_8A'!H$121:H$136,MATCH('Cash Forecast_8A import-export'!O85,'Cash Forecast_8A'!B$121:B$136,0)),\"\")","v":""},"",null,-1,{"$f":"IFERROR(INDEX('Cash Forecast_8A'!L$121:L$136,MATCH('Cash Forecast_8A import-export'!O85,'Cash Forecast_8A'!B$121:B$136,0)),\"\")","v":""},{"$f":"IFERROR(INDEX('Cash Forecast_8A'!M$121:M$136,MATCH('Cash Forecast_8A import-export'!O85,'Cash Forecast_8A'!B$121:B$136,0)),\"\")","v":""},null,"",null,"Int-1",{"$f":"IFERROR(IF(VLOOKUP(A85,'Reference Records'!$B$13:$D$48,3,FALSE)=0,\"\",VLOOKUP(A85,'Reference Records'!$B$13:$D$48,3,FALSE)),\"\")","v":""},null,"a3y36000002ILHmAAO"]
[null,null,0,{"$f":"IFERROR(INDEX('Cash Forecast_8A'!F$121:F$136,MATCH('Cash Forecast_8A import-export'!O86,'Cash Forecast_8A'!B$121:B$136,0)),\"\")","v":""},0,{"$f":"IFERROR(INDEX('Cash Forecast_8A'!H$121:H$136,MATCH('Cash Forecast_8A import-export'!O86,'Cash Forecast_8A'!B$121:B$136,0)),\"\")","v":""},"",null,-1,{"$f":"IFERROR(INDEX('Cash Forecast_8A'!L$121:L$136,MATCH('Cash Forecast_8A import-export'!O86,'Cash Forecast_8A'!B$121:B$136,0)),\"\")","v":""},{"$f":"IFERROR(INDEX('Cash Forecast_8A'!M$121:M$136,MATCH('Cash Forecast_8A import-export'!O86,'Cash Forecast_8A'!B$121:B$136,0)),\"\")","v":""},null,"",null,"Int-1",{"$f":"IFERROR(IF(VLOOKUP(A86,'Reference Records'!$B$13:$D$48,3,FALSE)=0,\"\",VLOOKUP(A86,'Reference Records'!$B$13:$D$48,3,FALSE)),\"\")","v":""},null,"a3y36000002ILHnAAO"]
[null,null,0,{"$f":"IFERROR(INDEX('Cash Forecast_8A'!F$121:F$136,MATCH('Cash Forecast_8A import-export'!O87,'Cash Forecast_8A'!B$121:B$136,0)),\"\")","v":""},0,{"$f":"IFERROR(INDEX('Cash Forecast_8A'!H$121:H$136,MATCH('Cash Forecast_8A import-export'!O87,'Cash Forecast_8A'!B$121:B$136,0)),\"\")","v":""},"",null,-1,{"$f":"IFERROR(INDEX('Cash Forecast_8A'!L$121:L$136,MATCH('Cash Forecast_8A import-export'!O87,'Cash Forecast_8A'!B$121:B$136,0)),\"\")","v":""},{"$f":"IFERROR(INDEX('Cash Forecast_8A'!M$121:M$136,MATCH('Cash Forecast_8A import-export'!O87,'Cash Forecast_8A'!B$121:B$136,0)),\"\")","v":""},null,"",null,"Int-1",{"$f":"IFERROR(IF(VLOOKUP(A87,'Reference Records'!$B$13:$D$48,3,FALSE)=0,\"\",VLOOKUP(A87,'Reference Records'!$B$13:$D$48,3,FALSE)),\"\")","v":""},null,"a3y36000002ILHoAAO"]
[null,null,0,{"$f":"IFERROR(INDEX('Cash Forecast_8A'!F$121:F$136,MATCH('Cash Forecast_8A import-export'!O88,'Cash Forecast_8A'!B$121:B$136,0)),\"\")","v":""},0,{"$f":"IFERROR(INDEX('Cash Forecast_8A'!H$121:H$136,MATCH('Cash Forecast_8A import-export'!O88,'Cash Forecast_8A'!B$121:B$136,0)),\"\")","v":""},"",null,-1,{"$f":"IFERROR(INDEX('Cash Forecast_8A'!L$121:L$136,MATCH('Cash Forecast_8A import-export'!O88,'Cash Forecast_8A'!B$121:B$136,0)),\"\")","v":""},{"$f":"IFERROR(INDEX('Cash Forecast_8A'!M$121:M$136,MATCH('Cash Forecast_8A import-export'!O88,'Cash Forecast_8A'!B$121:B$136,0)),\"\")","v":""},null,"",null,"Int-1",{"$f":"IFERROR(IF(VLOOKUP(A88,'Reference Records'!$B$13:$D$48,3,FALSE)=0,\"\",VLOOKUP(A88,'Reference Records'!$B$13:$D$48,3,FALSE)),\"\")","v":""},null,"a3y36000002ILHpAAO"]
[null,null,0,{"$f":"IFERROR(INDEX('Cash Forecast_8A'!F$121:F$136,MATCH('Cash Forecast_8A import-export'!O89,'Cash Forecast_8A'!B$121:B$136,0)),\"\")","v":""},0,{"$f":"IFERROR(INDEX('Cash Forecast_8A'!H$121:H$136,MATCH('Cash Forecast_8A import-export'!O89,'Cash Forecast_8A'!B$121:B$136,0)),\"\")","v":""},"",null,-1,{"$f":"IFERROR(INDEX('Cash Forecast_8A'!L$121:L$136,MATCH('Cash Forecast_8A import-export'!O89,'Cash Forecast_8A'!B$121:B$136,0)),\"\")","v":""},{"$f":"IFERROR(INDEX('Cash Forecast_8A'!M$121:M$136,MATCH('Cash Forecast_8A import-export'!O89,'Cash Forecast_8A'!B$121:B$136,0)),\"\")","v":""},null,"",null,"Int-1",{"$f":"IFERROR(IF(VLOOKUP(A89,'Reference Records'!$B$13:$D$48,3,FALSE)=0,\"\",VLOOKUP(A89,'Reference Records'!$B$13:$D$48,3,FALSE)),\"\")","v":""},null,"a3y36000002ILHqAAO"]
[null,null,0,{"$f":"IFERROR(INDEX('Cash Forecast_8A'!F$121:F$136,MATCH('Cash Forecast_8A import-export'!O90,'Cash Forecast_8A'!B$121:B$136,0)),\"\")","v":""},0,{"$f":"IFERROR(INDEX('Cash Forecast_8A'!H$121:H$136,MATCH('Cash Forecast_8A import-export'!O90,'Cash Forecast_8A'!B$121:B$136,0)),\"\")","v":""},"",null,-1,{"$f":"IFERROR(INDEX('Cash Forecast_8A'!L$121:L$136,MATCH('Cash Forecast_8A import-export'!O90,'Cash Forecast_8A'!B$121:B$136,0)),\"\")","v":""},{"$f":"IFERROR(INDEX('Cash Forecast_8A'!M$121:M$136,MATCH('Cash Forecast_8A import-export'!O90,'Cash Forecast_8A'!B$121:B$136,0)),\"\")","v":""},null,"",null,"Int-1",{"$f":"IFERROR(IF(VLOOKUP(A90,'Reference Records'!$B$13:$D$48,3,FALSE)=0,\"\",VLOOKUP(A90,'Reference Records'!$B$13:$D$48,3,FALSE)),\"\")","v":""},null,"a3y36000002ILHrAAO"]
[null,null,0,{"$f":"IFERROR(INDEX('Cash Forecast_8A'!F$121:F$136,MATCH('Cash Forecast_8A import-export'!O91,'Cash Forecast_8A'!B$121:B$136,0)),\"\")","v":""},0,{"$f":"IFERROR(INDEX('Cash Forecast_8A'!H$121:H$136,MATCH('Cash Forecast_8A import-export'!O91,'Cash Forecast_8A'!B$121:B$136,0)),\"\")","v":""},"",null,-1,{"$f":"IFERROR(INDEX('Cash Forecast_8A'!L$121:L$136,MATCH('Cash Forecast_8A import-export'!O91,'Cash Forecast_8A'!B$121:B$136,0)),\"\")","v":""},{"$f":"IFERROR(INDEX('Cash Forecast_8A'!M$121:M$136,MATCH('Cash Forecast_8A import-export'!O91,'Cash Forecast_8A'!B$121:B$136,0)),\"\")","v":""},null,"",null,"Int-1",{"$f":"IFERROR(IF(VLOOKUP(A91,'Reference Records'!$B$13:$D$48,3,FALSE)=0,\"\",VLOOKUP(A91,'Reference Records'!$B$13:$D$48,3,FALSE)),\"\")","v":""},null,"a3y36000002ILHsAAO"]
[null,null,0,{"$f":"IFERROR(INDEX('Cash Forecast_8A'!F$121:F$136,MATCH('Cash Forecast_8A import-export'!O92,'Cash Forecast_8A'!B$121:B$136,0)),\"\")","v":""},0,{"$f":"IFERROR(INDEX('Cash Forecast_8A'!H$121:H$136,MATCH('Cash Forecast_8A import-export'!O92,'Cash Forecast_8A'!B$121:B$136,0)),\"\")","v":""},"",null,-1,{"$f":"IFERROR(INDEX('Cash Forecast_8A'!L$121:L$136,MATCH('Cash Forecast_8A import-export'!O92,'Cash Forecast_8A'!B$121:B$136,0)),\"\")","v":""},{"$f":"IFERROR(INDEX('Cash Forecast_8A'!M$121:M$136,MATCH('Cash Forecast_8A import-export'!O92,'Cash Forecast_8A'!B$121:B$136,0)),\"\")","v":""},null,"",null,"Int-1",{"$f":"IFERROR(IF(VLOOKUP(A92,'Reference Records'!$B$13:$D$48,3,FALSE)=0,\"\",VLOOKUP(A92,'Reference Records'!$B$13:$D$48,3,FALSE)),\"\")","v":""},null,"a3y36000002ILHtAAO"]
[null,null,0,{"$f":"IFERROR(INDEX('Cash Forecast_8A'!F$121:F$136,MATCH('Cash Forecast_8A import-export'!O93,'Cash Forecast_8A'!B$121:B$136,0)),\"\")","v":""},0,{"$f":"IFERROR(INDEX('Cash Forecast_8A'!H$121:H$136,MATCH('Cash Forecast_8A import-export'!O93,'Cash Forecast_8A'!B$121:B$136,0)),\"\")","v":""},"",null,-1,{"$f":"IFERROR(INDEX('Cash Forecast_8A'!L$121:L$136,MATCH('Cash Forecast_8A import-export'!O93,'Cash Forecast_8A'!B$121:B$136,0)),\"\")","v":""},{"$f":"IFERROR(INDEX('Cash Forecast_8A'!M$121:M$136,MATCH('Cash Forecast_8A import-export'!O93,'Cash Forecast_8A'!B$121:B$136,0)),\"\")","v":""},null,"",null,"Int-1",{"$f":"IFERROR(IF(VLOOKUP(A93,'Reference Records'!$B$13:$D$48,3,FALSE)=0,\"\",VLOOKUP(A93,'Reference Records'!$B$13:$D$48,3,FALSE)),\"\")","v":""},null,"a3y36000002ILHuAAO"]
[null,null,0,{"$f":"IFERROR(INDEX('Cash Forecast_8A'!F$121:F$136,MATCH('Cash Forecast_8A import-export'!O94,'Cash Forecast_8A'!B$121:B$136,0)),\"\")","v":""},0,{"$f":"IFERROR(INDEX('Cash Forecast_8A'!H$121:H$136,MATCH('Cash Forecast_8A import-export'!O94,'Cash Forecast_8A'!B$121:B$136,0)),\"\")","v":""},"",null,-1,{"$f":"IFERROR(INDEX('Cash Forecast_8A'!L$121:L$136,MATCH('Cash Forecast_8A import-export'!O94,'Cash Forecast_8A'!B$121:B$136,0)),\"\")","v":""},{"$f":"IFERROR(INDEX('Cash Forecast_8A'!M$121:M$136,MATCH('Cash Forecast_8A import-export'!O94,'Cash Forecast_8A'!B$121:B$136,0)),\"\")","v":""},null,"",null,"Int-1",{"$f":"IFERROR(IF(VLOOKUP(A94,'Reference Records'!$B$13:$D$48,3,FALSE)=0,\"\",VLOOKUP(A94,'Reference Records'!$B$13:$D$48,3,FALSE)),\"\")","v":""},null,"a3y36000002ILHvAAO"]
[null,null,0,{"$f":"IFERROR(INDEX('Cash Forecast_8A'!F$121:F$136,MATCH('Cash Forecast_8A import-export'!O95,'Cash Forecast_8A'!B$121:B$136,0)),\"\")","v":""},0,{"$f":"IFERROR(INDEX('Cash Forecast_8A'!H$121:H$136,MATCH('Cash Forecast_8A import-export'!O95,'Cash Forecast_8A'!B$121:B$136,0)),\"\")","v":""},"",null,-1,{"$f":"IFERROR(INDEX('Cash Forecast_8A'!L$121:L$136,MATCH('Cash Forecast_8A import-export'!O95,'Cash Forecast_8A'!B$121:B$136,0)),\"\")","v":""},{"$f":"IFERROR(INDEX('Cash Forecast_8A'!M$121:M$136,MATCH('Cash Forecast_8A import-export'!O95,'Cash Forecast_8A'!B$121:B$136,0)),\"\")","v":""},null,"",null,"Int-1",{"$f":"IFERROR(IF(VLOOKUP(A95,'Reference Records'!$B$13:$D$48,3,FALSE)=0,\"\",VLOOKUP(A95,'Reference Records'!$B$13:$D$48,3,FALSE)),\"\")","v":""},null,"a3y36000002ILHwAAO"]
[null,null,0,{"$f":"IFERROR(INDEX('Cash Forecast_8A'!F$121:F$136,MATCH('Cash Forecast_8A import-export'!O96,'Cash Forecast_8A'!B$121:B$136,0)),\"\")","v":""},0,{"$f":"IFERROR(INDEX('Cash Forecast_8A'!H$121:H$136,MATCH('Cash Forecast_8A import-export'!O96,'Cash Forecast_8A'!B$121:B$136,0)),\"\")","v":""},"",null,-1,{"$f":"IFERROR(INDEX('Cash Forecast_8A'!L$121:L$136,MATCH('Cash Forecast_8A import-export'!O96,'Cash Forecast_8A'!B$121:B$136,0)),\"\")","v":""},{"$f":"IFERROR(INDEX('Cash Forecast_8A'!M$121:M$136,MATCH('Cash Forecast_8A import-export'!O96,'Cash Forecast_8A'!B$121:B$136,0)),\"\")","v":""},null,"",null,"Int-1",{"$f":"IFERROR(IF(VLOOKUP(A96,'Reference Records'!$B$13:$D$48,3,FALSE)=0,\"\",VLOOKUP(A96,'Reference Records'!$B$13:$D$48,3,FALSE)),\"\")","v":""},null,"a3y36000002ILHxAAO"]
[null,null,0,{"$f":"IFERROR(INDEX('Cash Forecast_8A'!F$121:F$136,MATCH('Cash Forecast_8A import-export'!O97,'Cash Forecast_8A'!B$121:B$136,0)),\"\")","v":""},0,{"$f":"IFERROR(INDEX('Cash Forecast_8A'!H$121:H$136,MATCH('Cash Forecast_8A import-export'!O97,'Cash Forecast_8A'!B$121:B$136,0)),\"\")","v":""},"",null,-1,{"$f":"IFERROR(INDEX('Cash Forecast_8A'!L$121:L$136,MATCH('Cash Forecast_8A import-export'!O97,'Cash Forecast_8A'!B$121:B$136,0)),\"\")","v":""},{"$f":"IFERROR(INDEX('Cash Forecast_8A'!M$121:M$136,MATCH('Cash Forecast_8A import-export'!O97,'Cash Forecast_8A'!B$121:B$136,0)),\"\")","v":""},null,"",null,"Int-1",{"$f":"IFERROR(IF(VLOOKUP(A97,'Reference Records'!$B$13:$D$48,3,FALSE)=0,\"\",VLOOKUP(A97,'Reference Records'!$B$13:$D$48,3,FALSE)),\"\")","v":""},null,"a3y36000002ILHyAAO"]
[null,null,0,{"$f":"IFERROR(INDEX('Cash Forecast_8A'!F$121:F$136,MATCH('Cash Forecast_8A import-export'!O98,'Cash Forecast_8A'!B$121:B$136,0)),\"\")","v":""},0,{"$f":"IFERROR(INDEX('Cash Forecast_8A'!H$121:H$136,MATCH('Cash Forecast_8A import-export'!O98,'Cash Forecast_8A'!B$121:B$136,0)),\"\")","v":""},"",null,-1,{"$f":"IFERROR(INDEX('Cash Forecast_8A'!L$121:L$136,MATCH('Cash Forecast_8A import-export'!O98,'Cash Forecast_8A'!B$121:B$136,0)),\"\")","v":""},{"$f":"IFERROR(INDEX('Cash Forecast_8A'!M$121:M$136,MATCH('Cash Forecast_8A import-export'!O98,'Cash Forecast_8A'!B$121:B$136,0)),\"\")","v":""},null,"",null,"Int-1",{"$f":"IFERROR(IF(VLOOKUP(A98,'Reference Records'!$B$13:$D$48,3,FALSE)=0,\"\",VLOOKUP(A98,'Reference Records'!$B$13:$D$48,3,FALSE)),\"\")","v":""},null,"a3y36000002ILHzAAO"]
[null,null,0,{"$f":"IFERROR(INDEX('Cash Forecast_8A'!F$121:F$136,MATCH('Cash Forecast_8A import-export'!O99,'Cash Forecast_8A'!B$121:B$136,0)),\"\")","v":""},0,{"$f":"IFERROR(INDEX('Cash Forecast_8A'!H$121:H$136,MATCH('Cash Forecast_8A import-export'!O99,'Cash Forecast_8A'!B$121:B$136,0)),\"\")","v":""},"",null,-1,{"$f":"IFERROR(INDEX('Cash Forecast_8A'!L$121:L$136,MATCH('Cash Forecast_8A import-export'!O99,'Cash Forecast_8A'!B$121:B$136,0)),\"\")","v":""},{"$f":"IFERROR(INDEX('Cash Forecast_8A'!M$121:M$136,MATCH('Cash Forecast_8A import-export'!O99,'Cash Forecast_8A'!B$121:B$136,0)),\"\")","v":""},null,"",null,"Int-1",{"$f":"IFERROR(IF(VLOOKUP(A99,'Reference Records'!$B$13:$D$48,3,FALSE)=0,\"\",VLOOKUP(A99,'Reference Records'!$B$13:$D$48,3,FALSE)),\"\")","v":""},null,"a3y36000002ILI0AAO"]
[null,null,0,{"$f":"IFERROR(INDEX('Cash Forecast_8A'!F$121:F$136,MATCH('Cash Forecast_8A import-export'!O100,'Cash Forecast_8A'!B$121:B$136,0)),\"\")","v":""},0,{"$f":"IFERROR(INDEX('Cash Forecast_8A'!H$121:H$136,MATCH('Cash Forecast_8A import-export'!O100,'Cash Forecast_8A'!B$121:B$136,0)),\"\")","v":""},"",null,-1,{"$f":"IFERROR(INDEX('Cash Forecast_8A'!L$121:L$136,MATCH('Cash Forecast_8A import-export'!O100,'Cash Forecast_8A'!B$121:B$136,0)),\"\")","v":""},{"$f":"IFERROR(INDEX('Cash Forecast_8A'!M$121:M$136,MATCH('Cash Forecast_8A import-export'!O100,'Cash Forecast_8A'!B$121:B$136,0)),\"\")","v":""},null,"",null,"Int-1",{"$f":"IFERROR(IF(VLOOKUP(A100,'Reference Records'!$B$13:$D$48,3,FALSE)=0,\"\",VLOOKUP(A100,'Reference Records'!$B$13:$D$48,3,FALSE)),\"\")","v":""},null,"a3y36000002ILI1AAO"]
[]
["Grand Total",null,{"$f":"ROUND(SUM(C29:C101),2)","v":2515332.11},{"$f":"ROUND(SUM(D29:D101),2)","v":9849195.1500000004},{"$f":"ROUND(SUM(E29:E101),2)","v":8103702.7800000003},{"$f":"ROUND(SUM(F29:F101),2)","v":3867513.56},{"$f":"ROUND(SUM(G29:G101),2)","v":13716708.720000001},null,null,{"$f":"ROUND(SUM(J29:J101),2)","v":0},{"$f":"ROUND(SUM(K29:K101),2)","v":0},{"$f":"ROUND(SUM(L29:L101),2)","v":0},{"$f":"ROUND(SUM(M29:M101),2)","v":0}]
[]
["Summary Breakdown by Implementing Entity"]
["Implementing Entity",null,"Budget for Forecast Period","PR Forecast for the period","Budget for the Buffer Period","PR Forecast for the Buffer Period","Total Principal Recipient Forecast (including Buffer)","PR Comments",-1,"LFA Adjusted Forecast for the period","LFA Adj. Forecast for the Buffer period",null,"Local Fund Agent - Adjusted Forecast (including the buffer)",null,null,"Record ID"]
["[Implementing Entity]",null,"[Budget for Forecast Period]",{"$f":"IFERROR(INDEX('Cash Forecast_8A'!F$141:F$190,MATCH('Cash Forecast_8A import-export'!O106,'Cash Forecast_8A'!B$141:B$190,0)),\"\")","v":""},"[Budget for the Buffer Period]",{"$f":"IFERROR(INDEX('Cash Forecast_8A'!H$141:H$190,MATCH('Cash Forecast_8A import-export'!O106,'Cash Forecast_8A'!B$141:B$190,0)),\"\")","v":""},{"$f":"IFERROR(D106+F106,\"\")","v":""},"[PR Comments]",{"$f":"I105+1","v":0},{"$f":"IFERROR(INDEX('Cash Forecast_8A'!L$141:L$190,MATCH('Cash Forecast_8A import-export'!O106,'Cash Forecast_8A'!B$141:B$190,0)),\"\")","v":""},{"$f":"IFERROR(INDEX('Cash Forecast_8A'!K$141:K$190,MATCH('Cash Forecast_8A import-export'!O106,'Cash Forecast_8A'!B$141:B$190,0)),\"\")","v":""},null,{"$f":"IFERROR(J106+K106,\"\")","v":""},null,{"$f":"\"IE\"&I106","v":"IE0"},"[Record ID]"]
["Red Cross Burundi",null,982352.73485740297,{"$f":"IFERROR(INDEX('Cash Forecast_8A'!F$141:F$190,MATCH('Cash Forecast_8A import-export'!O107,'Cash Forecast_8A'!B$141:B$190,0)),\"\")","v":1165727.0403038464},540514.72918188199,{"$f":"IFERROR(INDEX('Cash Forecast_8A'!H$141:H$190,MATCH('Cash Forecast_8A import-export'!O107,'Cash Forecast_8A'!B$141:B$190,0)),\"\")","v":540514.72918188223},{"$f":"IFERROR(D107+F107,\"\")","v":1706241.7694857286},null,{"$f":"I106+1","v":1},{"$f":"IFERROR(INDEX('Cash Forecast_8A'!L$141:L$190,MATCH('Cash Forecast_8A import-export'!O107,'Cash Forecast_8A'!B$141:B$190,0)),\"\")","v":0},{"$f":"IFERROR(INDEX('Cash Forecast_8A'!K$141:K$190,MATCH('Cash Forecast_8A import-export'!O107,'Cash Forecast_8A'!B$141:B$190,0)),\"\")","v":0},null,{"$f":"IFERROR(J107+K107,\"\")","v":0},null,{"$f":"\"IE\"&I107","v":"IE1"},"a3y36000002ILGfAAO"]
["PNILT",null,309312.20787668898,{"$f":"IFERROR(INDEX('Cash Forecast_8A'!F$141:F$190,MATCH('Cash Forecast_8A import-export'!O108,'Cash Forecast_8A'!B$141:B$190,0)),\"\")","v":622963.37627231842},203273.88221355801,{"$f":"IFERROR(INDEX('Cash Forecast_8A'!H$141:H$190,MATCH('Cash Forecast_8A import-export'!O108,'Cash Forecast_8A'!B$141:B$190,0)),\"\")","v":203273.88221355839},{"$f":"IFERROR(D108+F108,\"\")","v":826237.25848587684},null,{"$f":"I107+1","v":2},{"$f":"IFERROR(INDEX('Cash Forecast_8A'!L$141:L$190,MATCH('Cash Forecast_8A import-export'!O108,'Cash Forecast_8A'!B$141:B$190,0)),\"\")","v":0},{"$f":"IFERROR(INDEX('Cash Forecast_8A'!K$141:K$190,MATCH('Cash Forecast_8A import-export'!O108,'Cash Forecast_8A'!B$141:B$190,0)),\"\")","v":0},null,{"$f":"IFERROR(J108+K108,\"\")","v":0},null,{"$f":"\"IE\"&I108","v":"IE2"},"a3y36000002ILGiAAO"]
["United Nations Development Programme",null,497331.12837515201,{"$f":"IFERROR(INDEX('Cash Forecast_8A'!F$141:F$190,MATCH('Cash Forecast_8A import-export'!O109,'Cash Forecast_8A'!B$141:B$190,0)),\"\")","v":6743966.3795691961},6963070.3407452302,{"$f":"IFERROR(INDEX('Cash Forecast_8A'!H$141:H$190,MATCH('Cash Forecast_8A import-export'!O109,'Cash Forecast_8A'!B$141:B$190,0)),\"\")","v":2726881.1211025058},{"$f":"IFERROR(D109+F109,\"\")","v":9470847.5006717015},null,{"$f":"I108+1","v":3},{"$f":"IFERROR(INDEX('Cash Forecast_8A'!L$141:L$190,MATCH('Cash Forecast_8A import-export'!O109,'Cash Forecast_8A'!B$141:B$190,0)),\"\")","v":0},{"$f":"IFERROR(INDEX('Cash Forecast_8A'!K$141:K$190,MATCH('Cash Forecast_8A import-export'!O109,'Cash Forecast_8A'!B$141:B$190,0)),\"\")","v":0},null,{"$f":"IFERROR(J109+K109,\"\")","v":0},null,{"$f":"\"IE\"&I109","v":"IE3"},"a3y36000002ILGkAAO"]
["PNLS /IST",null,726336.03464098601,{"$f":"IFERROR(INDEX('Cash Forecast_8A'!F$141:F$190,MATCH('Cash Forecast_8A import-export'!O110,'Cash Forecast_8A'!B$141:B$190,0)),\"\")","v":1326072.0046162875},396843.829655529,{"$f":"IFERROR(INDEX('Cash Forecast_8A'!H$141:H$190,MATCH('Cash Forecast_8A import-export'!O110,'Cash Forecast_8A'!B$141:B$190,0)),\"\")","v":396843.82965552877},{"$f":"IFERROR(D110+F110,\"\")","v":1722915.8342718163},null,{"$f":"I109+1","v":4},{"$f":"IFERROR(INDEX('Cash Forecast_8A'!L$141:L$190,MATCH('Cash Forecast_8A import-export'!O110,'Cash Forecast_8A'!B$141:B$190,0)),\"\")","v":0},{"$f":"IFERROR(INDEX('Cash Forecast_8A'!K$141:K$190,MATCH('Cash Forecast_8A import-export'!O110,'Cash Forecast_8A'!B$141:B$190,0)),\"\")","v":0},null,{"$f":"IFERROR(J110+K110,\"\")","v":0},null,{"$f":"\"IE\"&I110","v":"IE4"},"a3y36000002ILGxAAO"]
[]
["Grand Total",null,{"$f":"ROUND(SUM(C106:C111),2)","v":2515332.11},{"$f":"ROUND(SUM(D106:D111),2)","v":9858728.8000000007},{"$f":"ROUND(SUM(E106:E111),2)","v":8103702.7800000003},{"$f":"ROUND(SUM(F106:F111),2)","v":3867513.56},{"$f":"ROUND(SUM(G106:G111),2)","v":13726242.359999999},null,null,{"$f":"ROUND(SUM(J106:J111),2)","v":0},{"$f":"ROUND(SUM(K106:K111),2)","v":0},{"$f":"ROUND(SUM(L105:L106),2)","v":0},{"$f":"ROUND(SUM(M106:M111),2)","v":0}]
[]
["Validation of Grand Total ",null,{"$f":"IF(AND(ROUND(C24,0)=ROUND(C102,0),ROUND(C102,0)=ROUND(C112,0)),\"OK\",\"WARNING - Sum of the three tables not matching\")","v":"OK"},{"$f":"IF(AND(ROUND(D24,0)=ROUND(D102,0),ROUND(D102,0)=ROUND(D112,0)),\"OK\",\"WARNING - Sum of the three tables not matching\")","v":"WARNING - Sum of the three tables not matching"},{"$f":"IF(AND(ROUND(E24,0)=ROUND(E102,0),ROUND(E102,0)=ROUND(E112,0)),\"OK\",\"WARNING - Sum of the three tables not matching\")","v":"OK"},{"$f":"IF(AND(ROUND(F24,0)=ROUND(F102,0),ROUND(F102,0)=ROUND(F112,0)),\"OK\",\"WARNING - Sum of the three tables not matching\")","v":"OK"},{"$f":"IF(AND(ROUND(G24,0)=ROUND(G102,0),ROUND(G102,0)=ROUND(G112,0)),\"OK\",\"WARNING - Sum of the three tables not matching\")","v":"WARNING - Sum of the three tables not matching"},null,null,{"$f":"IF(AND(ROUND(J24,0)=ROUND(J102,0),ROUND(J102,0)=ROUND(J112,0)),\"OK\",\"WARNING - Sum of the three tables not matching\")","v":"OK"},{"$f":"IF(AND(ROUND(K24,0)=ROUND(K102,0),ROUND(K102,0)=ROUND(K112,0)),\"OK\",\"WARNING - Sum of the three tables not matching\")","v":"OK"},{"$f":"IF(AND(ROUND(L24,0)=ROUND(L102,0),ROUND(L102,0)=ROUND(L112,0)),\"OK\",\"WARNING - Sum of the three tables not matching\")","v":"OK"},{"$f":"IF(AND(ROUND(M24,0)=ROUND(M102,0),ROUND(M102,0)=ROUND(M112,0)),\"OK\",\"WARNING - Sum of the three tables not matching\")","v":"OK"}]
[]
[]
[]
[]
["Summary Breakdown by Quarter"]
[null,"Calendar Period ",{"$f":"IFERROR(VLOOKUP(1,D174:E178,2,0),\"\")","v":"01/Jul/2018-30/Sep/2018"},{"$f":"IFERROR(VLOOKUP(2,D174:E178,2,0),\"\")","v":"01/Oct/2018-31/Dec/2018"},{"$f":"IFERROR(VLOOKUP(3,D174:E178,2,0),\"\")","v":""},{"$f":"IFERROR(VLOOKUP(4,D174:E178,2,0),\"\")","v":""},"Total",{"$f":"IFERROR(VLOOKUP(1,D181:E184,2,0),\"\")","v":"01/Jan/2019-31/Mar/2019"},{"$f":"IFERROR(VLOOKUP(2,D181:E184,2,0),\"\")","v":""},"Total"]
[null,"Quarterly Cash Forecast Name","Forecast Q1","Forecast Q2","Forecast Q3","Forecast Q4",null,"Buffer Q1","Buffer Q2",{"$f":"SUM(H121:I121)","v":0},{"$f":"G121+J121","v":0},"Record ID","Record ID"]
[null,"[Quarterly Cash Forecast Name]","[Forecast Q1]","[Forecast Q2]","[Forecast Q3]","[Forecast Q4]",{"$f":"SUM(C122:F122)","v":0},"[Buffer Q1]","[Buffer Q2]",0,{"$f":"G122+J122","v":0},"[Record ID]","[Record ID]"]
[null,"Approved Budget",0,0,0,0,{"$f":"SUM(C123:F123)","v":0},0,0,0,{"$f":"G123+J123","v":0},null,"a4A36000000qB4rEAE"]
[null,null,null,null,null,null,null,null,null,0,{"$f":"G124+J124","v":0}]
[null,"[Quarterly Cash Forecast Name]",{"$f":"IFERROR(INDEX('Cash Forecast_8A'!E$201:E203,MATCH($B125,'Cash Forecast_8A'!$D$201:$D203,0)),\"\")","v":""},{"$f":"IFERROR(INDEX('Cash Forecast_8A'!F$201:F203,MATCH($B125,'Cash Forecast_8A'!$D$201:$D203,0)),\"\")","v":""},{"$f":"IFERROR(INDEX('Cash Forecast_8A'!G$201:G203,MATCH($B125,'Cash Forecast_8A'!$D$201:$D203,0)),\"\")","v":""},{"$f":"IFERROR(INDEX('Cash Forecast_8A'!H$201:H203,MATCH($B125,'Cash Forecast_8A'!$D$201:$D203,0)),\"\")","v":""},{"$f":"SUM(C125:F125)","v":0},{"$f":"IFERROR(INDEX('Cash Forecast_8A'!J$201:J203,MATCH($B125,'Cash Forecast_8A'!$D$201:$D203,0)),\"\")","v":""},{"$f":"IFERROR(INDEX('Cash Forecast_8A'!K$201:K203,MATCH($B125,'Cash Forecast_8A'!$D$201:$D203,0)),\"\")","v":""},0,null,null,"[Record ID]"]
[null,"Forecasted Disbursement to Principal Recipient",{"$f":"IFERROR(INDEX('Cash Forecast_8A'!E$201:E204,MATCH($B126,'Cash Forecast_8A'!$D$201:$D204,0)),\"\")","v":5976309.2615138507},{"$f":"IFERROR(INDEX('Cash Forecast_8A'!F$201:F204,MATCH($B126,'Cash Forecast_8A'!$D$201:$D204,0)),\"\")","v":3882419.5392477978},{"$f":"IFERROR(INDEX('Cash Forecast_8A'!G$201:G204,MATCH($B126,'Cash Forecast_8A'!$D$201:$D204,0)),\"\")","v":0},{"$f":"IFERROR(INDEX('Cash Forecast_8A'!H$201:H204,MATCH($B126,'Cash Forecast_8A'!$D$201:$D204,0)),\"\")","v":0},{"$f":"SUM(C126:F126)","v":9858728.8007616475},{"$f":"IFERROR(INDEX('Cash Forecast_8A'!J$201:J204,MATCH($B126,'Cash Forecast_8A'!$D$201:$D204,0)),\"\")","v":3867513.5621534758},{"$f":"IFERROR(INDEX('Cash Forecast_8A'!K$201:K204,MATCH($B126,'Cash Forecast_8A'!$D$201:$D204,0)),\"\")","v":0},3867513.5621534758,null,null,"a4A36000000qB4sEAE"]
[null,"Forecasted Direct Disbursement",{"$f":"IFERROR(INDEX('Cash Forecast_8A'!E$201:E205,MATCH($B127,'Cash Forecast_8A'!$D$201:$D205,0)),\"\")","v":0},{"$f":"IFERROR(INDEX('Cash Forecast_8A'!F$201:F205,MATCH($B127,'Cash Forecast_8A'!$D$201:$D205,0)),\"\")","v":0},{"$f":"IFERROR(INDEX('Cash Forecast_8A'!G$201:G205,MATCH($B127,'Cash Forecast_8A'!$D$201:$D205,0)),\"\")","v":0},{"$f":"IFERROR(INDEX('Cash Forecast_8A'!H$201:H205,MATCH($B127,'Cash Forecast_8A'!$D$201:$D205,0)),\"\")","v":0},{"$f":"SUM(C127:F127)","v":0},{"$f":"IFERROR(INDEX('Cash Forecast_8A'!J$201:J205,MATCH($B127,'Cash Forecast_8A'!$D$201:$D205,0)),\"\")","v":0},{"$f":"IFERROR(INDEX('Cash Forecast_8A'!K$201:K205,MATCH($B127,'Cash Forecast_8A'!$D$201:$D205,0)),\"\")","v":0},0,null,null,"a4A36000000qB4tEAE"]
[null,"PPM/eMP (Wambo.org) forecasted Amount",{"$f":"IFERROR(INDEX('Cash Forecast_8A'!E$201:E206,MATCH($B128,'Cash Forecast_8A'!$D$201:$D206,0)),\"\")","v":0},{"$f":"IFERROR(INDEX('Cash Forecast_8A'!F$201:F206,MATCH($B128,'Cash Forecast_8A'!$D$201:$D206,0)),\"\")","v":0},{"$f":"IFERROR(INDEX('Cash Forecast_8A'!G$201:G206,MATCH($B128,'Cash Forecast_8A'!$D$201:$D206,0)),\"\")","v":0},{"$f":"IFERROR(INDEX('Cash Forecast_8A'!H$201:H206,MATCH($B128,'Cash Forecast_8A'!$D$201:$D206,0)),\"\")","v":0},{"$f":"SUM(C128:F128)","v":0},{"$f":"IFERROR(INDEX('Cash Forecast_8A'!J$201:J206,MATCH($B128,'Cash Forecast_8A'!$D$201:$D206,0)),\"\")","v":0},{"$f":"IFERROR(INDEX('Cash Forecast_8A'!K$201:K206,MATCH($B128,'Cash Forecast_8A'!$D$201:$D206,0)),\"\")","v":0},0,null,null,"a4A36000000qB4uEAE"]
["Principal Recipient",null,null,null,null,null,null,null,null,null,null,"[Record ID]"]
[null,"Total",{"$f":"ROUND(SUM(C125:C129),2)","v":5976309.2599999998},{"$f":"ROUND(SUM(D125:D129),2)","v":3882419.54},{"$f":"ROUND(SUM(E125:E129),2)","v":0},{"$f":"ROUND(SUM(F125:F129),2)","v":0},{"$f":"ROUND(SUM(C130:F130),2)","v":9858728.8000000007},{"$f":"ROUND(SUM(H125:H129),2)","v":3867513.56},{"$f":"ROUND(SUM(I125:I129),2)","v":0},{"$f":"ROUND(SUM(H130:I130),2)","v":3867513.56},{"$f":"G130+J130","v":13726242.360000001},null,"Record ID"]
[null,null,"Forecast Q1","Forecast Q2","Forecast Q3","Forecast Q4",null,"Buffer Q1","Buffer Q2",{"$f":"SUM(H131:I131)","v":0},{"$f":"G131+J131","v":0}]
[null,"[Quarterly Cash Forecast Name]",{"$f":"IFERROR(INDEX('Cash Forecast_8A'!E$205:E207,MATCH($B132,'Cash Forecast_8A'!$D$205:$D207,0)),\"\")","v":""},{"$f":"IFERROR(INDEX('Cash Forecast_8A'!F$205:F207,MATCH($B132,'Cash Forecast_8A'!$D$205:$D207,0)),\"\")","v":""},{"$f":"IFERROR(INDEX('Cash Forecast_8A'!G$205:G207,MATCH($B132,'Cash Forecast_8A'!$D$205:$D207,0)),\"\")","v":""},{"$f":"IFERROR(INDEX('Cash Forecast_8A'!H$205:H207,MATCH($B132,'Cash Forecast_8A'!$D$205:$D207,0)),\"\")","v":""},{"$f":"SUM(C132:F132)","v":0},{"$f":"IFERROR(INDEX('Cash Forecast_8A'!J$205:J207,MATCH($B132,'Cash Forecast_8A'!$D$205:$D207,0)),\"\")","v":""},{"$f":"IFERROR(INDEX('Cash Forecast_8A'!K$205:K207,MATCH($B132,'Cash Forecast_8A'!$D$205:$D207,0)),\"\")","v":""},{"$f":"SUM(H132:I132)","v":0},null,"Record ID","[Record ID]"]
[null,"Forecasted Disbursement to Principal Recipient",{"$f":"IFERROR(INDEX('Cash Forecast_8A'!E$205:E208,MATCH($B133,'Cash Forecast_8A'!$D$205:$D208,0)),\"\")","v":0},{"$f":"IFERROR(INDEX('Cash Forecast_8A'!F$205:F208,MATCH($B133,'Cash Forecast_8A'!$D$205:$D208,0)),\"\")","v":0},{"$f":"IFERROR(INDEX('Cash Forecast_8A'!G$205:G208,MATCH($B133,'Cash Forecast_8A'!$D$205:$D208,0)),\"\")","v":0},{"$f":"IFERROR(INDEX('Cash Forecast_8A'!H$205:H208,MATCH($B133,'Cash Forecast_8A'!$D$205:$D208,0)),\"\")","v":0},{"$f":"SUM(C133:F133)","v":0},{"$f":"IFERROR(INDEX('Cash Forecast_8A'!J$205:J208,MATCH($B133,'Cash Forecast_8A'!$D$205:$D208,0)),\"\")","v":0},{"$f":"IFERROR(INDEX('Cash Forecast_8A'!K$205:K208,MATCH($B133,'Cash Forecast_8A'!$D$205:$D208,0)),\"\")","v":0},{"$f":"SUM(H133:I133)","v":0},null,null,"a4A36000000qB4vEAE"]
[null,"Forecasted Direct Disbursement",{"$f":"IFERROR(INDEX('Cash Forecast_8A'!E$205:E209,MATCH($B134,'Cash Forecast_8A'!$D$205:$D209,0)),\"\")","v":0},{"$f":"IFERROR(INDEX('Cash Forecast_8A'!F$205:F209,MATCH($B134,'Cash Forecast_8A'!$D$205:$D209,0)),\"\")","v":0},{"$f":"IFERROR(INDEX('Cash Forecast_8A'!G$205:G209,MATCH($B134,'Cash Forecast_8A'!$D$205:$D209,0)),\"\")","v":0},{"$f":"IFERROR(INDEX('Cash Forecast_8A'!H$205:H209,MATCH($B134,'Cash Forecast_8A'!$D$205:$D209,0)),\"\")","v":0},{"$f":"SUM(C134:F134)","v":0},{"$f":"IFERROR(INDEX('Cash Forecast_8A'!J$205:J209,MATCH($B134,'Cash Forecast_8A'!$D$205:$D209,0)),\"\")","v":0},{"$f":"IFERROR(INDEX('Cash Forecast_8A'!K$205:K209,MATCH($B134,'Cash Forecast_8A'!$D$205:$D209,0)),\"\")","v":0},{"$f":"SUM(H134:I134)","v":0},null,null,"a4A36000000qB4wEAE"]
[null,"PPM/eMP (Wambo.org) forecasted Amount",{"$f":"IFERROR(INDEX('Cash Forecast_8A'!E$205:E210,MATCH($B135,'Cash Forecast_8A'!$D$205:$D210,0)),\"\")","v":0},{"$f":"IFERROR(INDEX('Cash Forecast_8A'!F$205:F210,MATCH($B135,'Cash Forecast_8A'!$D$205:$D210,0)),\"\")","v":0},{"$f":"IFERROR(INDEX('Cash Forecast_8A'!G$205:G210,MATCH($B135,'Cash Forecast_8A'!$D$205:$D210,0)),\"\")","v":0},{"$f":"IFERROR(INDEX('Cash Forecast_8A'!H$205:H210,MATCH($B135,'Cash Forecast_8A'!$D$205:$D210,0)),\"\")","v":0},{"$f":"SUM(C135:F135)","v":0},{"$f":"IFERROR(INDEX('Cash Forecast_8A'!J$205:J210,MATCH($B135,'Cash Forecast_8A'!$D$205:$D210,0)),\"\")","v":0},{"$f":"IFERROR(INDEX('Cash Forecast_8A'!K$205:K210,MATCH($B135,'Cash Forecast_8A'!$D$205:$D210,0)),\"\")","v":0},{"$f":"SUM(H135:I135)","v":0},null,null,"a4A36000000qB4xEAE"]
["Local Fund Agent",null,null,null,null,null,null,null,null,null,null,"[Record ID]"]
[null,"Total",{"$f":"ROUND(SUM(C132:C136),2)","v":0},{"$f":"ROUND(SUM(D132:D136),2)","v":0},{"$f":"ROUND(SUM(E132:E136),2)","v":0},{"$f":"ROUND(SUM(F132:F136),2)","v":0},{"$f":"ROUND(SUM(G132:G136),2)","v":0},{"$f":"ROUND(SUM(H132:H132),2)","v":0},{"$f":"ROUND(SUM(I132:I132),2)","v":0},{"$f":"ROUND(SUM(J132:J136),2)","v":0},{"$f":"ROUND(SUM(K132:K136),2)","v":0}]
[]
[]
["Validation of Principal Recipient Grand Total ",null,null,null,null,null,{"$f":"IF(AND(ROUND(D24,0)=ROUND(D102,0),ROUND(D102,0)=ROUND(D112,0),ROUND(D112,0)=ROUND(G130,0)),\"OK\",\"WARNING - Sum of the three tables not matching\")","v":"WARNING - Sum of the three tables not matching"},null,null,{"$f":"IF(AND(ROUND(F24,0)=ROUND(F102,0),ROUND(F102,0)=ROUND(F112,0),ROUND(F112,0)=ROUND(J130,0)),\"OK\",\"WARNING - Sum of the three tables not matching\")","v":"OK"}]
[]
["Validation of Local Fund Agent Grand Total ",null,null,null,null,null,{"$f":"IF(AND(ROUND(J24,0)=ROUND(J102,0),ROUND(J102,0)=ROUND(J112,0),ROUND(J112,0)=ROUND(G137,0)),\"OK\",\"WARNING - Sum of the three tables not matching\")","v":"OK"},null,null,{"$f":"IF(AND(ROUND(K24,0)=ROUND(K102,0),ROUND(K102,0)=ROUND(K112,0),ROUND(K112,0)=ROUND(J137,0)),\"OK\",\"WARNING - Sum of the three tables not matching\")","v":"OK"}]
[]
[]
[]
[]
[null,null,"Cash Forecast '!E53+'Cash Forecast '!D53+'Cash Forecast '!C53-B14-B15-B16+D23+D24,D13)))"]
[]
[]
[]
[]
[]
[]
[]
[]
[]
[]
[]
[]
[]
[]
["Reporting period"]
[]
[]
[]
["Disbursement Execution Start Date","2018-07-01",{"$f":"IF(B166=\"\",1/1/2000,B166)","v":"2018-07-01"}]
["Disbursement Execution End Date","2018-12-31",{"$f":"IF(B167=\"\",1/1/2000,B167)","v":"2018-12-31"}]
["Disbursement Buffer Start Date","2019-01-01",{"$f":"IF(B168=\"\",1/1/2000,B168)","v":"2019-01-01"}]
["Disbursement Buffer End Date","2019-03-31",{"$f":"IF(B169=\"\",1/1/2000,B169)","v":"2019-03-31"}]
[]
[]
[]
["Time Object -Forecast"]
["Time ID","Start Date","End date",-1,null,"Record ID"]
["[Time ID]","[Start Date]","[End date]",{"$f":"D174+1","v":0},{"$f":"TEXT(B175,\"DD/MMM/YYYY\")&\"-\"&TEXT(C175,\"DD/MMM/YYYY\")","v":"[Start Date]-[End date]"},"[Record ID]"]
["TIME-15784","2018-07-01","2018-09-30",{"$f":"D175+1","v":1},{"$f":"TEXT(B176,\"DD/MMM/YYYY\")&\"-\"&TEXT(C176,\"DD/MMM/YYYY\")","v":"01/Jul/2018-30/Sep/2018"},"a2T36000002j6feEAA"]
["TIME-15785","2018-10-01","2018-12-31",{"$f":"D176+1","v":2},{"$f":"TEXT(B177,\"DD/MMM/YYYY\")&\"-\"&TEXT(C177,\"DD/MMM/YYYY\")","v":"01/Oct/2018-31/Dec/2018"},"a2T36000002j6ffEAA"]
[]
[]
["Time Object - Buffer"]
["Time ID","Start Date","End date",-1,null,"Record ID"]
["[Time ID]","[Start Date]","[End date]",{"$f":"D181+1","v":0},{"$f":"TEXT(B182,\"DD/MMM/YYYY\")&\"-\"&TEXT(C182,\"DD/MMM/YYYY\")","v":"[Start Date]-[End date]"},"[Record ID]"]
["TIME-15786","2019-01-01","2019-03-31",{"$f":"D182+1","v":1},{"$f":"TEXT(B183,\"DD/MMM/YYYY\")&\"-\"&TEXT(C183,\"DD/MMM/YYYY\")","v":"01/Jan/2019-31/Mar/2019"},"a2T36000002j6fgEAA"]
[]
[]
[]
[]
[]
[]
[]
[]
[]
[]
[]
[]
[]
[]
[]
[]
[]
[]
[]
[]
[]
[]
[]
[]
[]
[]
[]
[]
[]
[]
[]
[]
[]
[]
["`"]

{"sheet":"Request and Recommendation_8B","index":36,"n_rows":107,"n_cols":16,"rows_kept":107,"cut":false,"hidden":true,"merged":[[0,0,0,17],[2,4,2,7],[3,4,3,7],[6,0,6,23],[7,15,7,23],[2,0,3,3],[32,0,32,23],[33,15,33,23],[35,1,35,4],[35,7,35,8],[35,15,52,23],[40,11,41,11],[42,11,43,11],[9,1,9,4],[9,7,9,8],[9,15,26,23],[14,11,15,11],[16,11,17,11],[62,4,62,10],[63,4,63,10],[64,4,64,10],[67,4,67,9],[69,4,73,10]]}
["Progress Report with Disbursement Request"]
[]
["Section 8B.  Disbursement Request and Recommendation",null,null,null,{"$f":"CoverSheet!F15","v":"Demande de décaissement  - période de prévision:"},null,null,null,{"$f":"CoverSheet!I15","v":"Date de début :"},{"$f":"CoverSheet!J15","v":"2018-07-01"},{"$f":"CoverSheet!K15","v":"Date de fin :"},{"$f":"CoverSheet!L15","v":"2018-12-31"}]
[null,null,null,null,{"$f":"CoverSheet!F16","v":"Demande de décaissement  - Période additionnelle convenue:"},null,null,null,{"$f":"CoverSheet!I15","v":"Date de début :"},{"$f":"CoverSheet!J16","v":"2019-01-01"},{"$f":"CoverSheet!K15","v":"Date de fin :"},{"$f":"CoverSheet!L16","v":"2019-03-31"}]
[{"$f":"VLOOKUP(Translations!B421,Translations!B3:H508,4,0)","v":"Total forecasted net cash expenditures by the Principal Recipient for the period immediately following the period covered by the Progress Update:"}]
[]
[{"$f":"VLOOKUP(Translations!B422,Translations!B3:H508,4,0)","v":"Principal RECIPIENT"}]
[null,null,null,null,null,null,null,null,null,null,null,null,null,null,null,{"$f":"VLOOKUP(Translations!B423,Translations!B3:H508,4,0)","v":"Explanation of any significant variance between forecasted amounts and amounts as originally budgeted.  Please explain any significant variance (based on your judgment) between the forecasted amounts and the amounts as per approved budgets.  Please specify the main factors and related amounts that are the major drivers of the variance. "}]
[]
[null,{"$f":"VLOOKUP(Translations!B424,Translations!B3:H508,4,0)","v":"Execution Period"},null,null,null,"Total",null,"Buffer Period",null,"Total"]
["Calendar Period",{"$f":"'Cash Forecast_8A'!E199","v":"01/Jul/2018-30/Sep/2018"},{"$f":"'Cash Forecast_8A'!F199","v":"01/Oct/2018-31/Dec/2018"},{"$f":"'Cash Forecast_8A'!G199","v":""},{"$f":"'Cash Forecast_8A'!H199","v":""},null,null,{"$f":"'Cash Forecast_8A'!J199","v":"01/Jan/2019-31/Mar/2019"},{"$f":"'Cash Forecast_8A'!K199","v":""}]
["Approved Budget",{"$f":"B101","v":0},{"$f":"C101","v":0},{"$f":"D101","v":0},{"$f":"E101","v":0},{"$f":"SUM(B12:E12)","v":0},null,{"$f":"G101","v":0},{"$f":"H101","v":0},{"$f":"SUM(H12:I12)","v":0},{"$f":"F12+J12","v":0}]
["Principal Recipient Forecast",{"$f":"'Cash Forecast_8A'!E204","v":5976309.2599999998},{"$f":"'Cash Forecast_8A'!F204","v":3882419.54},{"$f":"'Cash Forecast_8A'!G204","v":0},{"$f":"'Cash Forecast_8A'!H204","v":0},{"$f":"SUM(B13:E13)","v":9858728.8000000007},null,{"$f":"'Cash Forecast_8A'!J204","v":3867513.56},{"$f":"'Cash Forecast_8A'!K204","v":0},{"$f":"SUM(H13:I13)","v":3867513.56},{"$f":"F13+J13","v":13726242.360000001}]
[{"$f":"VLOOKUP(Translations!B431,Translations!B3:H508,4,0)","v":"Solde de trésorerie : fin de la période couverte par le rapport sur les résultats actuels (ligne 5.3 du rapprochement de la trésorerie du récipiendaire principal)."},{"$f":"'PR Cash Reconciliation_2A,B,C,D'!D32","v":0}]
[{"$f":"VLOOKUP(Translations!B432,Translations!B3:H508,4,0)","v":"Fonds en transit pour la période de rapport (décaissements  effectués en faveur du récipiendaire principal). "},null,null,null,null,null,null,null,null,null,null,{"$f":"IF(AND(ROUND(SUM(B15:B16),0)=ROUND('PR Cash Reconciliation_2A,B,C,D'!D38,0)),\"Cash in Transit OK\",\"WARNING - Cash in Transit not matching\")","v":"Cash in Transit OK"}]
[{"$f":"VLOOKUP(Translations!B433,Translations!B3:H508,4,0)","v":"Fonds en transit pour la période de rapport (décaissements effectués a un tiers). "}]
[{"$f":"VLOOKUP(Translations!B434,Translations!B3:H508,4,0)","v":"Fonds en transit après la période de rapport en cours : (décaissements  effectués en faveur du récipiendaire principal)."},null,null,null,null,null,null,null,null,null,null,{"$f":"IF(AND(ROUND(SUM(B17:B18),0)=ROUND('PR Cash Reconciliation_2A,B,C,D'!D39,0)),\"Cash in Transit OK\",\"WARNING - Cash in Transit not matching\")","v":"Cash in Transit OK"}]
[{"$f":"VLOOKUP(Translations!B435,Translations!B3:H508,4,0)","v":"Fonds en transit après la période de rapport en cours » : (décaissements effectués en faveur d’un tiers au nom du récipiendaire principal)."}]
[{"$f":"VLOOKUP(Translations!B436,Translations!B3:H508,4,0)","v":"Demande de décaissement"},{"$f":"IF(B13=0,0,IF(AND(B103-$B$14-$B$15-$B$17<=0,B25+B26<=0),0,IF(AND(B103-$B$14-$B$15-$B$17<=0,B25+B26>0),B25+B26,IF(AND(B13-$B$14-$B$15-$B$17<=B25+B26,B25+B26>0),B25+B26,B103-$B$14-$B$15-$B$17+B25+B26))))","v":5976309.2615138507},{"$f":"IF(C13=0,0,IF(AND(B103+C103-$B$14-$B$15-$B$17<=0,C25+C26<=0),0,IF(AND(B103+C103-$B$14-$B$15-$B$17<=0,C25+C26>0),C25+C26,IF(AND(B13+C13-$B$14-$B$15-$B$17<=C25+C26,C25+C26>0),C25+C26,B103+C103-$B$14-$B$15-$B$17-B24+C25+C26))))","v":3882419.5392477969},{"$f":"IF(D13=0,0,IF(AND(B103+C103+D103-$B$14-$B$15-$B$17<=0,D25+D26<=0),0,IF(AND(B103+C103+D103-$B$14-$B$15-$B$17<=0,D25+D26>0),D25+D26,IF(AND(B13+C13+D13-$B$14-$B$15-$B$17<=D25+D26,D25+D26>0),D25+D26,B103+C103+D103-$B$14-$B$15-$B$17-B24-C24+D25+D26))))","v":0},{"$f":"IF(E13=0,0,IF(AND(B103+C103+D103+E103-$B$14-$B$15-$B$17<=0,E25+E26<=0),0,IF(AND(B103+C103+D103+E103-$B$14-$B$15-$B$17<=0,E25+E26>0),E25+E26,IF(AND(B13+C13+D13+E13-$B$14-$B$15-$B$17<=E25+E26,E25+E26>0),E25+E26,B103+C103+D103+E103-$B$14-$B$15-$B$17-B24-C24-D24+E25+E26))))","v":0},{"$f":"SUM(B19:E20)","v":9858728.8007616475},null,{"$f":"IF(H13=0,0,IF(AND(B103+C103+D103+E103+G103-$B$14-$B$15-$B$17<=0,H25+H26<=0),0,IF(AND(B103+C103+D103+E103+G103-$B$14-$B$15-$B$17<=0,H25+H26>0),H25+H26,IF(AND(B13+C13+D13+E13+H13-$B$14-$B$15-$B$17<=H25+H26,H25+H26>0),H25+H26,B103+C103+D103+E103+G103-$B$14-$B$15-$B$17-B24-C24-D24-E24+H25+H26))))","v":3867513.5621534754},{"$f":"IF(I13=0,0,IF(AND(B103+C103+D103+E103+G103+H103-$B$14-$B$15-$B$17<=0,I25+I26<=0),0,IF(AND(B103+C103+D103+E103+G103+H103-$B$14-$B$15-$B$17<=0,I25+I26>0),I25+I26,IF(AND(B13+C13+D13+E13+H13+I13-$B$14-$B$15-$B$17<=I25+I26,I25+I26>0),I25+I26,B103+C103+D103+E103+G103+H103-$B$14-$B$15-$B$17-B24-C24-D24-E24-H24+I25+I26))))","v":0},{"$f":"SUM(H19:I19)","v":3867513.5621534754},{"$f":"J19+F19","v":13726242.362915123}]
[]
[]
[]
[]
["Forecasted Disbursement to Principal Recipient",{"$f":"IF(B19=0,0,B19-SUM(B25:B26))","v":5976309.2615138507},{"$f":"IF(C19=0,0,C19-SUM(C25:C26))","v":3882419.5392477969},{"$f":"IF(D19=0,0,D19-SUM(D25:D26))","v":0},{"$f":"IF(E19=0,0,E19-SUM(E25:E26))","v":0},{"$f":"SUM(B24:E24)","v":9858728.8007616475},null,{"$f":"H19-SUM(H25:H26)","v":3867513.5621534754},{"$f":"I19-SUM(I25:I26)","v":0},{"$f":"SUM(H24:I24)","v":3867513.5621534754},{"$f":"IF(AND(ROUND(F24+J24,0)=ROUND(F103+I103-B14-B15-B17,0)),\"OK\",\"WARNING - Sum not matching\")","v":"OK"}]
["Forecasted Direct Disbursement",{"$f":"IF('Request and Recommendation_8B'!B102-$B$16-$B$18<=0,0,'Request and Recommendation_8B'!B102-$B$16-$B$18)","v":0},{"$f":"IF(('Request and Recommendation_8B'!C102+'Request and Recommendation_8B'!B102)-$B$16-$B$18<=0,0,('Request and Recommendation_8B'!C102+'Request and Recommendation_8B'!B102)-B25-$B$16-$B$18)","v":0},{"$f":"IF(('Request and Recommendation_8B'!D102+'Request and Recommendation_8B'!C102+'Request and Recommendation_8B'!B102)-$B$16-$B$18<=0,0,('Request and Recommendation_8B'!D102+'Request and Recommendation_8B'!C102+'Request and Recommendation_8B'!B102)-B25-C25-$B$16-$B$18)","v":0},{"$f":"IF(('Request and Recommendation_8B'!E102+'Request and Recommendation_8B'!D102+'Request and Recommendation_8B'!C102+'Request and Recommendation_8B'!B102)-$B$16-$B$18<=0,0,('Request and Recommendation_8B'!E102+'Request and Recommendation_8B'!D102+'Request and Recommendation_8B'!C102+'Request and Recommendation_8B'!B102)-B25-C25-D25-$B$16-$B$18)","v":0},{"$f":"SUM(B25:E25)","v":0},null,{"$f":"IF(('Request and Recommendation_8B'!G102+'Request and Recommendation_8B'!E102+'Request and Recommendation_8B'!D102+'Request and Recommendation_8B'!C102+'Request and Recommendation_8B'!B102)-$B$16-$B$18<=0,0,('Request and Recommendation_8B'!G102+'Request and Recommendation_8B'!E102+'Request and Recommendation_8B'!D102+'Request and Recommendation_8B'!C102+'Request and Recommendation_8B'!B102)-B25-C25-D25-E25-$B$16-$B$18)","v":0},{"$f":"IF(('Request and Recommendation_8B'!H102+'Request and Recommendation_8B'!G102+'Request and Recommendation_8B'!E102+'Request and Recommendation_8B'!D102+'Request and Recommendation_8B'!C102+'Request and Recommendation_8B'!B102)-$B$16-$B$18<=0,0,('Request and Recommendation_8B'!H102+'Request and Recommendation_8B'!G102+'Request and Recommendation_8B'!E102+'Request and Recommendation_8B'!D102+'Request and Recommendation_8B'!C102+'Request and Recommendation_8B'!B102)-B25-C25-D25-E25-H25-$B$16-$B$18)","v":0},{"$f":"SUM(H25:I25)","v":0},{"$f":"IF(AND(ROUND(F25+J25,0)=ROUND(F102+I102-B16-B18,0)),\"OK\",\"WARNING - Sum not matching\")","v":"OK"}]
["PPM/Wambo.org  forecasted disbursement",{"$f":"'Request and Recommendation_8B'!B104","v":0},{"$f":"'Request and Recommendation_8B'!C104","v":0},{"$f":"'Request and Recommendation_8B'!D104","v":0},{"$f":"'Request and Recommendation_8B'!E104","v":0},{"$f":"SUM(B26:E26)","v":0},null,{"$f":"'Request and Recommendation_8B'!G104","v":0},{"$f":"'Request and Recommendation_8B'!H104","v":0},{"$f":"SUM(H26:I26)","v":0},{"$f":"IF(AND(ROUND(F26+J26,0)=ROUND(F104+I104,0)),\"OK\",\"WARNING - Sum not matching\")","v":"OK"}]
["Disbursement Request",{"$f":"SUM(B24:B26)","v":5976309.2615138507},{"$f":"SUM(C24:C26)","v":3882419.5392477969},{"$f":"SUM(D24:D26)","v":0},{"$f":"SUM(E24:E26)","v":0},{"$f":"SUM(F24:F26)","v":9858728.8007616475},null,{"$f":"SUM(H24:H26)","v":3867513.5621534754},{"$f":"SUM(I24:I26)","v":0},{"$f":"SUM(J24:J26)","v":3867513.5621534754},{"$f":"F27+J27","v":13726242.362915123}]
[]
[null,null,null,null,null,null,null,null,null,null,{"$f":"IF(AND(ROUND(K19,0)=ROUND(K27,0)),\"OK\",\"WARNING - Sum not matching\")","v":"OK"}]
[]
[]
[]
["For LFA Use Only"]
[null,null,null,null,null,null,null,null,null,null,null,null,null,null,null,{"$f":"VLOOKUP(Translations!B442,Translations!B3:H508,4,0)","v":"LFA comments on PR's explanation of any significant variance between forecasted amounts and amounts as originally budgeted."}]
[]
[null,"Execution Period",null,null,null,"Total",null,"Buffer Period",null,"Total"]
["Calendar Period",{"$f":"'Cash Forecast_8A'!E199","v":"01/Jul/2018-30/Sep/2018"},{"$f":"'Cash Forecast_8A'!F199","v":"01/Oct/2018-31/Dec/2018"},{"$f":"'Cash Forecast_8A'!G199","v":""},{"$f":"'Cash Forecast_8A'!H199","v":""},null,null,{"$f":"'Cash Forecast_8A'!J199","v":"01/Jan/2019-31/Mar/2019"},{"$f":"'Cash Forecast_8A'!K199","v":""}]
["Approved Budget",{"$f":"B101","v":0},{"$f":"C101","v":0},{"$f":"D101","v":0},{"$f":"E101","v":0},{"$f":"SUM(B38:E38)","v":0},null,{"$f":"G101","v":0},{"$f":"H101","v":0},{"$f":"SUM(H38:I38)","v":0},{"$f":"J38+F38","v":0}]
["Local Fund Agent  Forecast",{"$f":"'Cash Forecast_8A'!E208","v":0},{"$f":"'Cash Forecast_8A'!F208","v":0},{"$f":"'Cash Forecast_8A'!G208","v":0},{"$f":"'Cash Forecast_8A'!H208","v":0},{"$f":"SUM(B39:E39)","v":0},null,{"$f":"'Cash Forecast_8A'!J208","v":0},{"$f":"'Cash Forecast_8A'!K208","v":0},{"$f":"SUM(H39:I39)","v":0},{"$f":"J39+F39","v":0}]
["Cash Balance: End of period covered by Progress Update (Item 5.3 in PRLFA Cash Reconciliation):",{"$f":"'PR Cash Reconciliation_2A,B,C,D'!H32","v":0}]
["Cash in Transit for the reporting period (Disbursements to PR:",null,null,null,null,null,null,null,null,null,null,{"$f":"IF(AND(ROUND(SUM(B41:B42),0)=ROUND('PR Cash Reconciliation_2A,B,C,D'!H38,0)),\"Cash in Transit OK\",\"WARNING - Cash in Transit not matching\")","v":"Cash in Transit OK"}]
["Cash in Transit for the reporting period (Third party disbursements):"]
["Cash in Transit after the current reporting period (Disbursements to PR:",null,null,null,null,null,null,null,null,null,null,{"$f":"IF(AND(ROUND(SUM(B43:B44),0)=ROUND('PR Cash Reconciliation_2A,B,C,D'!H39,0)),\"Cash in Transit OK\",\"WARNING - Cash in Transit not matching\")","v":"Cash in Transit OK"}]
["Cash in Transit after the current reporting period (Third party disbursements) :"]
["Disbursement Request",{"$f":"IF(B39=0,0,IF(AND(B106-$B$40-$B$41-$B$43<=0,B51+B52<=0),0,IF(AND(B106-$B$40-$B$41-$B$43<=0,B51+B52>0),B51+B52,IF(AND(B39-$B$40-$B$41-$B$43<=B51+B52,B51+B52>0),B51+B52,B106-$B$40-$B$41-$B$43+B51+B52))))","v":0},{"$f":"IF(C39=0,0,IF(AND(B106+C106-$B$40-$B$41-$B$43<=0,C51+C52<=0),0,IF(AND(B106+C106-$B$40-$B$41-$B$43<=0,C51+C52>0),C51+C52,IF(AND(B39+C39-$B$40-$B$41-$B$43<=C51+C52,C51+C52>0),C51+C52,B106+C106-$B$40-$B$41-$B$43-B50+C51+C52))))","v":0},{"$f":"IF(D39=0,0,IF(AND(B106+C106+D106-$B$40-$B$41-$B$43<=0,D51+D52<=0),0,IF(AND(B106+C106+D106-$B$40-$B$41-$B$43<=0,D51+D52>0),D51+D52,IF(AND(B39+C39+D39-$B$40-$B$41-$B$43<=D51+D52,D51+D52>0),D51+D52,B106+C106+D106-$B$40-$B$41-$B$43-B50-C50+D51+D52))))","v":0},{"$f":"IF(E39=0,0,IF(AND(B106+C106+D106+E106-$B$40-$B$41-$B$43<=0,E51+E52<=0),0,IF(AND(B106+C106+D106+E106-$B$40-$B$41-$B$43<=0,E51+E52>0),E51+E52,IF(AND(B39+C39+D39+E39-$B$40-$B$41-$B$43<=E51+E52,E51+E52>0),E51+E52,B106+C106+D106+E106-$B$40-$B$41-$B$43-B50-C50-D50+E51+E52))))","v":0},{"$f":"SUM(B45:E45)","v":0},null,{"$f":"IF(H39=0,0,IF(AND(B106+C106+D106+E106+G106-$B$40-$B$41-$B$43<=0,H51+H52<=0),0,IF(AND(B106+C106+D106+E106+G106-$B$40-$B$41-$B$43<=0,H51+H52>0),H51+H52,IF(AND(B39+C39+D39+E39+H39-$B$40-$B$41-$B$43<=H51+H52,H51+H52>0),H51+H52,B106+C106+D106+E106+G106-$B$40-$B$41-$B$43-B50-C50-D50-E50+H51+H52))))","v":0},{"$f":"IF(I39=0,0,IF(AND(B106+C106+D106+E106+G106+H106-$B$40-$B$41-$B$43<=0,I51+I52<=0),0,IF(AND(B106+C106+D106+E106+G106+H106-$B$40-$B$41-$B$43<=0,I51+I52>0),I51+I52,IF(AND(B39+C39+D39+E39+H39+I39-$B$40-$B$41-$B$43<=I51+I52,I51+I52>0),I51+I52,B106+C106+D106+E106+G106+H106-$B$40-$B$41-$B$43-B50-C50-D50-E50-H50+I51+I52))))","v":0},{"$f":"SUM(H45:I45)","v":0},{"$f":"F45+J45","v":0}]
[]
[]
[]
[]
["Forecasted Disbursement to Principal Recipient",{"$f":"B45-SUM(B51:B52)","v":0},{"$f":"C45-SUM(C51:C52)","v":0},{"$f":"D45-SUM(D51:D52)","v":0},{"$f":"E45-SUM(E51:E52)","v":0},{"$f":"SUM(B50:E50)","v":0},null,{"$f":"H45-SUM(H51:H52)","v":0},{"$f":"I45-SUM(I51:I52)","v":0},{"$f":"SUM(H50:I50)","v":0},{"$f":"IF(AND(ROUND(F50+J50,0)=ROUND(F106+I106-B40-B41-B43,0)),\"OK\",\"WARNING - Sum not matching\")","v":"OK"}]
["Forecasted Direct Disbursement",{"$f":"IF('Request and Recommendation_8B'!B105-$B$42-$B$44<=0,0,'Request and Recommendation_8B'!B105-$B$42-$B$44)","v":0},{"$f":"IF('Request and Recommendation_8B'!B105+'Request and Recommendation_8B'!C105-$B$42-$B$44<=0,0,'Request and Recommendation_8B'!B105+'Request and Recommendation_8B'!C105-B51-$B$42-$B$44)","v":0},{"$f":"IF('Request and Recommendation_8B'!B105+'Request and Recommendation_8B'!C105+'Request and Recommendation_8B'!D105-$B$42-$B$44<=0,0,'Request and Recommendation_8B'!B105+'Request and Recommendation_8B'!C105+'Request and Recommendation_8B'!D105-C51-B51-$B$42-$B$44)","v":0},{"$f":"IF('Request and Recommendation_8B'!B105+'Request and Recommendation_8B'!C105+'Request and Recommendation_8B'!D105+'Request and Recommendation_8B'!E105-$B$42-$B$44<=0,0,'Request and Recommendation_8B'!B105+'Request and Recommendation_8B'!C105+'Request and Recommendation_8B'!D105+'Request and Recommendation_8B'!E105-D51-C51-B51-$B$42-$B$44)","v":0},{"$f":"SUM(B51:E51)","v":0},null,{"$f":"IF('Request and Recommendation_8B'!B105+'Request and Recommendation_8B'!C105+'Request and Recommendation_8B'!D105+'Request and Recommendation_8B'!E105+'Request and Recommendation_8B'!G105-$B$42-$B$44<=0,0,'Request and Recommendation_8B'!B105+'Request and Recommendation_8B'!C105+'Request and Recommendation_8B'!D105+'Request and Recommendation_8B'!E105+'Request and Recommendation_8B'!G105-E51-D51-C51-B51-$B$42-$B$44)","v":0},{"$f":"IF(('Request and Recommendation_8B'!B105+'Request and Recommendation_8B'!C105+'Request and Recommendation_8B'!D105+'Request and Recommendation_8B'!E105+'Request and Recommendation_8B'!G105+'Request and Recommendation_8B'!H105)-$B$42-$B$44<=0,0,('Request and Recommendation_8B'!B105+'Request and Recommendation_8B'!C105+'Request and Recommendation_8B'!D105+'Request and Recommendation_8B'!E105+'Request and Recommendation_8B'!H105+'Request and Recommendation_8B'!G105)-B51-C51-D51-E51-H51-$B$42-$B$44)","v":0},{"$f":"SUM(H51:I51)","v":0},{"$f":"IF(AND(ROUND(F51+J51,0)=ROUND(F105+I105-B42-B44,0)),\"OK\",\"WARNING - Sum not matching\")","v":"OK"}]
["PPM/Wambo.org  forecasted disbursement",{"$f":"'Request and Recommendation_8B'!B107","v":0},{"$f":"'Request and Recommendation_8B'!C107","v":0},{"$f":"'Request and Recommendation_8B'!D107","v":0},{"$f":"'Request and Recommendation_8B'!E107","v":0},{"$f":"SUM(B52:E52)","v":0},null,{"$f":"'Request and Recommendation_8B'!G107","v":0},{"$f":"'Request and Recommendation_8B'!H107","v":0},{"$f":"SUM(H52:I52)","v":0},{"$f":"IF(AND(ROUND(F52+J52,0)=ROUND(F107+I107,0)),\"OK\",\"WARNING - Sum not matching\")","v":"OK"}]
["Disbursement Request",{"$f":"SUM(B50:B52)","v":0},{"$f":"SUM(C50:C52)","v":0},{"$f":"SUM(D50:D52)","v":0},{"$f":"SUM(E50:E52)","v":0},{"$f":"SUM(F50:F52)","v":0},null,{"$f":"SUM(H50:H52)","v":0},{"$f":"SUM(I50:I52)","v":0},{"$f":"SUM(J50:J52)","v":0},{"$f":"F53+J53","v":0}]
[]
[null,null,null,null,null,null,null,null,null,null,{"$f":"IF(AND(ROUND(K45,0)=ROUND(K53,0)),\"OK\",\"WARNING - Sum not matching\")","v":"OK"}]
[]
[]
[]
[]
["Exchange Rate"]
[null,"Rates used by the PR","LFA-verified rates",null,"Name of local currency, date and source of the exchange rate, and other comments (if appropriate) "]
[]
["'- used to convert Opening Cash Balance",0,0]
["- used to convert Closing Cash Balance",0,0]
["- used to convert Total PR Cash Outflow for the Progress Update Period",0,0]
[]
[]
[null,null,null,null,"LFA comments on the exchange rates used by the PR"]
[]
[]
[]
[]
[]
[]
[]
[]
[]
[]
[]
[]
[]
[]
[]
[]
[]
[]
[]
[]
[]
[]
[]
[]
[]
[]
[]
[]
[]
[]
[]
[]
["Approved Budget",{"$f":"IFERROR(VLOOKUP($A101,'Cash Forecast_8A'!$D$200:$L$203,2,FALSE),\"\")","v":0},{"$f":"IFERROR(VLOOKUP($A101,'Cash Forecast_8A'!$D$200:$L$203,3,FALSE),\"\")","v":0},{"$f":"IFERROR(VLOOKUP($A101,'Cash Forecast_8A'!$D$200:$L$203,4,FALSE),\"\")","v":0},{"$f":"IFERROR(VLOOKUP($A101,'Cash Forecast_8A'!$D$200:$L$203,5,FALSE),\"\")","v":0},{"$f":"IFERROR(VLOOKUP($A101,'Cash Forecast_8A'!$D$200:$L$203,6,FALSE),\"\")","v":0},{"$f":"IFERROR(VLOOKUP($A101,'Cash Forecast_8A'!$D$200:$L$203,7,FALSE),\"\")","v":0},{"$f":"IFERROR(VLOOKUP($A101,'Cash Forecast_8A'!$D$200:$L$203,8,FALSE),\"\")","v":0},{"$f":"IFERROR(VLOOKUP($A101,'Cash Forecast_8A'!$D$200:$L$203,9,FALSE),\"\")","v":0}]
["Forecasted Direct Disbursement",{"$f":"IFERROR(VLOOKUP($A102,'Cash Forecast_8A'!$D$200:$L$203,2,FALSE),\"\")","v":0},{"$f":"IFERROR(VLOOKUP($A102,'Cash Forecast_8A'!$D$200:$L$203,3,FALSE),\"\")","v":0},{"$f":"IFERROR(VLOOKUP($A102,'Cash Forecast_8A'!$D$200:$L$203,4,FALSE),\"\")","v":0},{"$f":"IFERROR(VLOOKUP($A102,'Cash Forecast_8A'!$D$200:$L$203,5,FALSE),\"\")","v":0},{"$f":"IFERROR(VLOOKUP($A102,'Cash Forecast_8A'!$D$200:$L$203,6,FALSE),\"\")","v":0},{"$f":"IFERROR(VLOOKUP($A102,'Cash Forecast_8A'!$D$200:$L$203,7,FALSE),\"\")","v":0},{"$f":"IFERROR(VLOOKUP($A102,'Cash Forecast_8A'!$D$200:$L$203,8,FALSE),\"\")","v":0},{"$f":"IFERROR(VLOOKUP($A102,'Cash Forecast_8A'!$D$200:$L$203,9,FALSE),\"\")","v":0}]
["Forecasted Disbursement to Principal Recipient",{"$f":"IFERROR(VLOOKUP($A103,'Cash Forecast_8A'!$D$200:$L$203,2,FALSE),\"\")","v":5976309.2615138507},{"$f":"IFERROR(VLOOKUP($A103,'Cash Forecast_8A'!$D$200:$L$203,3,FALSE),\"\")","v":3882419.5392477978},{"$f":"IFERROR(VLOOKUP($A103,'Cash Forecast_8A'!$D$200:$L$203,4,FALSE),\"\")","v":0},{"$f":"IFERROR(VLOOKUP($A103,'Cash Forecast_8A'!$D$200:$L$203,5,FALSE),\"\")","v":0},{"$f":"IFERROR(VLOOKUP($A103,'Cash Forecast_8A'!$D$200:$L$203,6,FALSE),\"\")","v":9858728.8007616475},{"$f":"IFERROR(VLOOKUP($A103,'Cash Forecast_8A'!$D$200:$L$203,7,FALSE),\"\")","v":3867513.5621534758},{"$f":"IFERROR(VLOOKUP($A103,'Cash Forecast_8A'!$D$200:$L$203,8,FALSE),\"\")","v":0},{"$f":"IFERROR(VLOOKUP($A103,'Cash Forecast_8A'!$D$200:$L$203,9,FALSE),\"\")","v":3867513.5621534758}]
["PPM/eMP (Wambo.org) forecasted Amount",{"$f":"IFERROR(VLOOKUP($A104,'Cash Forecast_8A'!$D$200:$L$203,2,FALSE),\"\")","v":0},{"$f":"IFERROR(VLOOKUP($A104,'Cash Forecast_8A'!$D$200:$L$203,3,FALSE),\"\")","v":0},{"$f":"IFERROR(VLOOKUP($A104,'Cash Forecast_8A'!$D$200:$L$203,4,FALSE),\"\")","v":0},{"$f":"IFERROR(VLOOKUP($A104,'Cash Forecast_8A'!$D$200:$L$203,5,FALSE),\"\")","v":0},{"$f":"IFERROR(VLOOKUP($A104,'Cash Forecast_8A'!$D$200:$L$203,6,FALSE),\"\")","v":0},{"$f":"IFERROR(VLOOKUP($A104,'Cash Forecast_8A'!$D$200:$L$203,7,FALSE),\"\")","v":0},{"$f":"IFERROR(VLOOKUP($A104,'Cash Forecast_8A'!$D$200:$L$203,8,FALSE),\"\")","v":0},{"$f":"IFERROR(VLOOKUP($A104,'Cash Forecast_8A'!$D$200:$L$203,9,FALSE),\"\")","v":0}]
["Forecasted Direct Disbursement",{"$f":"IFERROR(VLOOKUP($A104,'Cash Forecast_8A'!$D$205:$L$207,2,FALSE),\"\")","v":0},{"$f":"IFERROR(VLOOKUP($A104,'Cash Forecast_8A'!$D$205:$L$207,3,FALSE),\"\")","v":0},{"$f":"IFERROR(VLOOKUP($A104,'Cash Forecast_8A'!$D$205:$L$207,4,FALSE),\"\")","v":0},{"$f":"IFERROR(VLOOKUP($A104,'Cash Forecast_8A'!$D$205:$L$207,5,FALSE),\"\")","v":0},{"$f":"IFERROR(VLOOKUP($A104,'Cash Forecast_8A'!$D$205:$L$207,6,FALSE),\"\")","v":0},{"$f":"IFERROR(VLOOKUP($A104,'Cash Forecast_8A'!$D$205:$L$207,7,FALSE),\"\")","v":0},{"$f":"IFERROR(VLOOKUP($A104,'Cash Forecast_8A'!$D$205:$L$207,8,FALSE),\"\")","v":0},{"$f":"IFERROR(VLOOKUP($A104,'Cash Forecast_8A'!$D$205:$L$207,9,FALSE),\"\")","v":0}]
["Forecasted Disbursement to Principal Recipient",{"$f":"IFERROR(VLOOKUP($A105,'Cash Forecast_8A'!$D$205:$L$207,2,FALSE),\"\")","v":0},{"$f":"IFERROR(VLOOKUP($A105,'Cash Forecast_8A'!$D$205:$L$207,3,FALSE),\"\")","v":0},{"$f":"IFERROR(VLOOKUP($A105,'Cash Forecast_8A'!$D$205:$L$207,4,FALSE),\"\")","v":0},{"$f":"IFERROR(VLOOKUP($A105,'Cash Forecast_8A'!$D$205:$L$207,5,FALSE),\"\")","v":0},{"$f":"IFERROR(VLOOKUP($A105,'Cash Forecast_8A'!$D$205:$L$207,6,FALSE),\"\")","v":0},{"$f":"IFERROR(VLOOKUP($A105,'Cash Forecast_8A'!$D$205:$L$207,7,FALSE),\"\")","v":0},{"$f":"IFERROR(VLOOKUP($A105,'Cash Forecast_8A'!$D$205:$L$207,8,FALSE),\"\")","v":0},{"$f":"IFERROR(VLOOKUP($A105,'Cash Forecast_8A'!$D$205:$L$207,9,FALSE),\"\")","v":0}]
["PPM/eMP (Wambo.org) forecasted Amount",{"$f":"IFERROR(VLOOKUP($A106,'Cash Forecast_8A'!$D$205:$L$207,2,FALSE),\"\")","v":0},{"$f":"IFERROR(VLOOKUP($A106,'Cash Forecast_8A'!$D$205:$L$207,3,FALSE),\"\")","v":0},{"$f":"IFERROR(VLOOKUP($A106,'Cash Forecast_8A'!$D$205:$L$207,4,FALSE),\"\")","v":0},{"$f":"IFERROR(VLOOKUP($A106,'Cash Forecast_8A'!$D$205:$L$207,5,FALSE),\"\")","v":0},{"$f":"IFERROR(VLOOKUP($A106,'Cash Forecast_8A'!$D$205:$L$207,6,FALSE),\"\")","v":0},{"$f":"IFERROR(VLOOKUP($A106,'Cash Forecast_8A'!$D$205:$L$207,7,FALSE),\"\")","v":0},{"$f":"IFERROR(VLOOKUP($A106,'Cash Forecast_8A'!$D$205:$L$207,8,FALSE),\"\")","v":0},{"$f":"IFERROR(VLOOKUP($A106,'Cash Forecast_8A'!$D$205:$L$207,9,FALSE),\"\")","v":0}]

{"sheet":"Reference Records","index":37,"n_rows":309,"n_cols":12,"rows_kept":309,"cut":false,"hidden":true,"merged":[]}
[]
[]
[]
[null,"Grant Components"]
[null,"Grant Component Name",null,"Component (Name)"]
[null,"[Grant Component Name]",null,"[Component (Name)]"]
[null,"GC-04592",null,"HIV/AIDS"]
[null,"GC-04593",null,"Tuberculosis"]
[]
[]
[null,"Module Data - Component - Indicator Reference"]
[null,"Module","Column1","Module-Coverage-Intervention Reference (Name)","Column2","Column3","Column4","Column5","unique id","unique name list","Record ID"]
[null,"[Name]",null,"[Module-Coverage-Intervention Reference (Name)]",null,null,null,null,{"$f":"IFERROR(INDEX($D$13:$D$48, MATCH(0, COUNTIF($I$12:I12, $D$13:$D$48&\"\") + IF($D$13:$D$48=\"\",1,0), 0)), \"\")","v":"[Module-Coverage-Intervention Reference (Name)]"},{"$f":"IFERROR(IF(INDEX($B$13:$B$48,MATCH(LEFT(I13,255),LEFT($D$13:$D$48,255),0))=0,\"\",INDEX($B$13:$B$48,MATCH(LEFT(I13,255),LEFT($D$13:$D$48,255),0))),\"\")","v":"[Name]"},"[Record ID]"]
[null,"Comprehensive prevention programs for sex workers and their clients",null,"MCI-00002",null,null,null,null,{"$f":"IFERROR(INDEX($D$13:$D$48, MATCH(0, COUNTIF($I$12:I13, $D$13:$D$48&\"\") + IF($D$13:$D$48=\"\",1,0), 0)), \"\")","v":"MCI-00002"},{"$f":"IFERROR(IF(INDEX($B$13:$B$48,MATCH(LEFT(I14,255),LEFT($D$13:$D$48,255),0))=0,\"\",INDEX($B$13:$B$48,MATCH(LEFT(I14,255),LEFT($D$13:$D$48,255),0))),\"\")","v":"Comprehensive prevention programs for sex workers and their clients"},"a3z360000009C1WAAU"]
[null,"Comprehensive prevention programs for people who inject drugs (PWID) and their partners",null,"MCI-00003",null,null,null,null,{"$f":"IFERROR(INDEX($D$13:$D$48, MATCH(0, COUNTIF($I$12:I14, $D$13:$D$48&\"\") + IF($D$13:$D$48=\"\",1,0), 0)), \"\")","v":"MCI-00003"},{"$f":"IFERROR(IF(INDEX($B$13:$B$48,MATCH(LEFT(I15,255),LEFT($D$13:$D$48,255),0))=0,\"\",INDEX($B$13:$B$48,MATCH(LEFT(I15,255),LEFT($D$13:$D$48,255),0))),\"\")","v":"Comprehensive prevention programs for people who inject drugs (PWID) and their partners"},"a3z360000009C1XAAU"]
[null,"Prevention programs for other vulnerable populations",null,"MCI-00004",null,null,null,null,{"$f":"IFERROR(INDEX($D$13:$D$48, MATCH(0, COUNTIF($I$12:I15, $D$13:$D$48&\"\") + IF($D$13:$D$48=\"\",1,0), 0)), \"\")","v":"MCI-00004"},{"$f":"IFERROR(IF(INDEX($B$13:$B$48,MATCH(LEFT(I16,255),LEFT($D$13:$D$48,255),0))=0,\"\",INDEX($B$13:$B$48,MATCH(LEFT(I16,255),LEFT($D$13:$D$48,255),0))),\"\")","v":"Prevention programs for other vulnerable populations"},"a3z360000009C1YAAU"]
[null,"Prevention programs for general population",null,"MCI-00000",null,null,null,null,{"$f":"IFERROR(INDEX($D$13:$D$48, MATCH(0, COUNTIF($I$12:I16, $D$13:$D$48&\"\") + IF($D$13:$D$48=\"\",1,0), 0)), \"\")","v":"MCI-00000"},{"$f":"IFERROR(IF(INDEX($B$13:$B$48,MATCH(LEFT(I17,255),LEFT($D$13:$D$48,255),0))=0,\"\",INDEX($B$13:$B$48,MATCH(LEFT(I17,255),LEFT($D$13:$D$48,255),0))),\"\")","v":"Prevention programs for general population"},"a3z360000009C1UAAU"]
[null,"Prevention programs for adolescents and youth, in and out of school",null,"MCI-00005",null,null,null,null,{"$f":"IFERROR(INDEX($D$13:$D$48, MATCH(0, COUNTIF($I$12:I17, $D$13:$D$48&\"\") + IF($D$13:$D$48=\"\",1,0), 0)), \"\")","v":"MCI-00005"},{"$f":"IFERROR(IF(INDEX($B$13:$B$48,MATCH(LEFT(I18,255),LEFT($D$13:$D$48,255),0))=0,\"\",INDEX($B$13:$B$48,MATCH(LEFT(I18,255),LEFT($D$13:$D$48,255),0))),\"\")","v":"Prevention programs for adolescents and youth, in and out of school"},"a3z360000009C1ZAAU"]
[null,"PMTCT",null,"MCI-00006",null,null,null,null,{"$f":"IFERROR(INDEX($D$13:$D$48, MATCH(0, COUNTIF($I$12:I18, $D$13:$D$48&\"\") + IF($D$13:$D$48=\"\",1,0), 0)), \"\")","v":"MCI-00006"},{"$f":"IFERROR(IF(INDEX($B$13:$B$48,MATCH(LEFT(I19,255),LEFT($D$13:$D$48,255),0))=0,\"\",INDEX($B$13:$B$48,MATCH(LEFT(I19,255),LEFT($D$13:$D$48,255),0))),\"\")","v":"PMTCT"},"a3z360000009C1aAAE"]
[null,"Treatment, care and support",null,"MCI-00007",null,null,null,null,{"$f":"IFERROR(INDEX($D$13:$D$48, MATCH(0, COUNTIF($I$12:I19, $D$13:$D$48&\"\") + IF($D$13:$D$48=\"\",1,0), 0)), \"\")","v":"MCI-00007"},{"$f":"IFERROR(IF(INDEX($B$13:$B$48,MATCH(LEFT(I20,255),LEFT($D$13:$D$48,255),0))=0,\"\",INDEX($B$13:$B$48,MATCH(LEFT(I20,255),LEFT($D$13:$D$48,255),0))),\"\")","v":"Treatment, care and support"},"a3z360000009C1bAAE"]
[null,"TB/HIV",null,"MCI-00009",null,null,null,null,{"$f":"IFERROR(INDEX($D$13:$D$48, MATCH(0, COUNTIF($I$12:I20, $D$13:$D$48&\"\") + IF($D$13:$D$48=\"\",1,0), 0)), \"\")","v":"MCI-00009"},{"$f":"IFERROR(IF(INDEX($B$13:$B$48,MATCH(LEFT(I21,255),LEFT($D$13:$D$48,255),0))=0,\"\",INDEX($B$13:$B$48,MATCH(LEFT(I21,255),LEFT($D$13:$D$48,255),0))),\"\")","v":"TB/HIV"},"a3z360000009C1cAAE"]
[null,"RSSH: Integrated service delivery and quality improvement",null,"MCI-00014",null,null,null,null,{"$f":"IFERROR(INDEX($D$13:$D$48, MATCH(0, COUNTIF($I$12:I21, $D$13:$D$48&\"\") + IF($D$13:$D$48=\"\",1,0), 0)), \"\")","v":"MCI-00014"},{"$f":"IFERROR(IF(INDEX($B$13:$B$48,MATCH(LEFT(I22,255),LEFT($D$13:$D$48,255),0))=0,\"\",INDEX($B$13:$B$48,MATCH(LEFT(I22,255),LEFT($D$13:$D$48,255),0))),\"\")","v":"RSSH: Integrated service delivery and quality improvement"},"a3z360000009C1dAAE"]
[null,"RSSH: Human resources for health (HRH), including community health workers",null,"MCI-00015",null,null,null,null,{"$f":"IFERROR(INDEX($D$13:$D$48, MATCH(0, COUNTIF($I$12:I22, $D$13:$D$48&\"\") + IF($D$13:$D$48=\"\",1,0), 0)), \"\")","v":"MCI-00015"},{"$f":"IFERROR(IF(INDEX($B$13:$B$48,MATCH(LEFT(I23,255),LEFT($D$13:$D$48,255),0))=0,\"\",INDEX($B$13:$B$48,MATCH(LEFT(I23,255),LEFT($D$13:$D$48,255),0))),\"\")","v":"RSSH: Human resources for health (HRH), including community health workers"},"a3z360000009C1eAAE"]
[null,"RSSH: Procurement and supply chain management systems",null,"MCI-00016",null,null,null,null,{"$f":"IFERROR(INDEX($D$13:$D$48, MATCH(0, COUNTIF($I$12:I23, $D$13:$D$48&\"\") + IF($D$13:$D$48=\"\",1,0), 0)), \"\")","v":"MCI-00016"},{"$f":"IFERROR(IF(INDEX($B$13:$B$48,MATCH(LEFT(I24,255),LEFT($D$13:$D$48,255),0))=0,\"\",INDEX($B$13:$B$48,MATCH(LEFT(I24,255),LEFT($D$13:$D$48,255),0))),\"\")","v":"RSSH: Procurement and supply chain management systems"},"a3z360000009C1fAAE"]
[null,"RSSH: Financial management systems",null,"MCI-00019",null,null,null,null,{"$f":"IFERROR(INDEX($D$13:$D$48, MATCH(0, COUNTIF($I$12:I24, $D$13:$D$48&\"\") + IF($D$13:$D$48=\"\",1,0), 0)), \"\")","v":"MCI-00019"},{"$f":"IFERROR(IF(INDEX($B$13:$B$48,MATCH(LEFT(I25,255),LEFT($D$13:$D$48,255),0))=0,\"\",INDEX($B$13:$B$48,MATCH(LEFT(I25,255),LEFT($D$13:$D$48,255),0))),\"\")","v":"RSSH: Financial management systems"},"a3z360000009C1iAAE"]
[null,"RSSH: Community responses and systems",null,"MCI-00021",null,null,null,null,{"$f":"IFERROR(INDEX($D$13:$D$48, MATCH(0, COUNTIF($I$12:I25, $D$13:$D$48&\"\") + IF($D$13:$D$48=\"\",1,0), 0)), \"\")","v":"MCI-00021"},{"$f":"IFERROR(IF(INDEX($B$13:$B$48,MATCH(LEFT(I26,255),LEFT($D$13:$D$48,255),0))=0,\"\",INDEX($B$13:$B$48,MATCH(LEFT(I26,255),LEFT($D$13:$D$48,255),0))),\"\")","v":"RSSH: Community responses and systems"},"a3z360000009C1kAAE"]
[null,"RSSH: Health management information systems and M&E",null,"MCI-00022",null,null,null,null,{"$f":"IFERROR(INDEX($D$13:$D$48, MATCH(0, COUNTIF($I$12:I26, $D$13:$D$48&\"\") + IF($D$13:$D$48=\"\",1,0), 0)), \"\")","v":"MCI-00022"},{"$f":"IFERROR(IF(INDEX($B$13:$B$48,MATCH(LEFT(I27,255),LEFT($D$13:$D$48,255),0))=0,\"\",INDEX($B$13:$B$48,MATCH(LEFT(I27,255),LEFT($D$13:$D$48,255),0))),\"\")","v":"RSSH: Health management information systems and M&E"},"a3z360000009C1lAAE"]
[null,"Program management",null,"MCI-00023",null,null,null,null,{"$f":"IFERROR(INDEX($D$13:$D$48, MATCH(0, COUNTIF($I$12:I27, $D$13:$D$48&\"\") + IF($D$13:$D$48=\"\",1,0), 0)), \"\")","v":"MCI-00023"},{"$f":"IFERROR(IF(INDEX($B$13:$B$48,MATCH(LEFT(I28,255),LEFT($D$13:$D$48,255),0))=0,\"\",INDEX($B$13:$B$48,MATCH(LEFT(I28,255),LEFT($D$13:$D$48,255),0))),\"\")","v":"Program management"},"a3z360000009C1mAAE"]
[null,"Payment for results",null,"MCI-00024",null,null,null,null,{"$f":"IFERROR(INDEX($D$13:$D$48, MATCH(0, COUNTIF($I$12:I28, $D$13:$D$48&\"\") + IF($D$13:$D$48=\"\",1,0), 0)), \"\")","v":"MCI-00024"},{"$f":"IFERROR(IF(INDEX($B$13:$B$48,MATCH(LEFT(I29,255),LEFT($D$13:$D$48,255),0))=0,\"\",INDEX($B$13:$B$48,MATCH(LEFT(I29,255),LEFT($D$13:$D$48,255),0))),\"\")","v":"Payment for results"},"a3z360000009C1nAAE"]
[null,"Comprehensive prevention programs for TGs",null,"MCI-00531",null,null,null,null,{"$f":"IFERROR(INDEX($D$13:$D$48, MATCH(0, COUNTIF($I$12:I29, $D$13:$D$48&\"\") + IF($D$13:$D$48=\"\",1,0), 0)), \"\")","v":"MCI-00531"},{"$f":"IFERROR(IF(INDEX($B$13:$B$48,MATCH(LEFT(I30,255),LEFT($D$13:$D$48,255),0))=0,\"\",INDEX($B$13:$B$48,MATCH(LEFT(I30,255),LEFT($D$13:$D$48,255),0))),\"\")","v":"Comprehensive prevention programs for TGs"},"a3z360000009C1pAAE"]
[null,"Comprehensive programs for people in prisons and other closed settings",null,"MCI-00532",null,null,null,null,{"$f":"IFERROR(INDEX($D$13:$D$48, MATCH(0, COUNTIF($I$12:I30, $D$13:$D$48&\"\") + IF($D$13:$D$48=\"\",1,0), 0)), \"\")","v":"MCI-00532"},{"$f":"IFERROR(IF(INDEX($B$13:$B$48,MATCH(LEFT(I31,255),LEFT($D$13:$D$48,255),0))=0,\"\",INDEX($B$13:$B$48,MATCH(LEFT(I31,255),LEFT($D$13:$D$48,255),0))),\"\")","v":"Comprehensive programs for people in prisons and other closed settings"},"a3z360000009C1qAAE"]
[null,"HIV Testing Services",null,"MCI-00533",null,null,null,null,{"$f":"IFERROR(INDEX($D$13:$D$48, MATCH(0, COUNTIF($I$12:I31, $D$13:$D$48&\"\") + IF($D$13:$D$48=\"\",1,0), 0)), \"\")","v":"MCI-00533"},{"$f":"IFERROR(IF(INDEX($B$13:$B$48,MATCH(LEFT(I32,255),LEFT($D$13:$D$48,255),0))=0,\"\",INDEX($B$13:$B$48,MATCH(LEFT(I32,255),LEFT($D$13:$D$48,255),0))),\"\")","v":"HIV Testing Services"},"a3z360000009C1rAAE"]
[null,"TB care and prevention",null,"MCI-00008",null,null,null,null,{"$f":"IFERROR(INDEX($D$13:$D$48, MATCH(0, COUNTIF($I$12:I32, $D$13:$D$48&\"\") + IF($D$13:$D$48=\"\",1,0), 0)), \"\")","v":"MCI-00008"},{"$f":"IFERROR(IF(INDEX($B$13:$B$48,MATCH(LEFT(I33,255),LEFT($D$13:$D$48,255),0))=0,\"\",INDEX($B$13:$B$48,MATCH(LEFT(I33,255),LEFT($D$13:$D$48,255),0))),\"\")","v":"TB care and prevention"},"a3z360000009C1sAAE"]
[null,"TB/HIV",null,"MCI-00009",null,null,null,null,{"$f":"IFERROR(INDEX($D$13:$D$48, MATCH(0, COUNTIF($I$12:I33, $D$13:$D$48&\"\") + IF($D$13:$D$48=\"\",1,0), 0)), \"\")","v":"MCI-00010"},{"$f":"IFERROR(IF(INDEX($B$13:$B$48,MATCH(LEFT(I34,255),LEFT($D$13:$D$48,255),0))=0,\"\",INDEX($B$13:$B$48,MATCH(LEFT(I34,255),LEFT($D$13:$D$48,255),0))),\"\")","v":"MDR-TB"},"a3z360000009C1tAAE"]
[null,"MDR-TB",null,"MCI-00010",null,null,null,null,{"$f":"IFERROR(INDEX($D$13:$D$48, MATCH(0, COUNTIF($I$12:I34, $D$13:$D$48&\"\") + IF($D$13:$D$48=\"\",1,0), 0)), \"\")","v":"MCI-00534"},{"$f":"IFERROR(IF(INDEX($B$13:$B$48,MATCH(LEFT(I35,255),LEFT($D$13:$D$48,255),0))=0,\"\",INDEX($B$13:$B$48,MATCH(LEFT(I35,255),LEFT($D$13:$D$48,255),0))),\"\")","v":"Comprehensive prevention programs for MSM"},"a3z360000009C1uAAE"]
[null,"RSSH: Integrated service delivery and quality improvement",null,"MCI-00014",null,null,null,null,{"$f":"IFERROR(INDEX($D$13:$D$48, MATCH(0, COUNTIF($I$12:I35, $D$13:$D$48&\"\") + IF($D$13:$D$48=\"\",1,0), 0)), \"\")","v":"MCI-00535"},{"$f":"IFERROR(IF(INDEX($B$13:$B$48,MATCH(LEFT(I36,255),LEFT($D$13:$D$48,255),0))=0,\"\",INDEX($B$13:$B$48,MATCH(LEFT(I36,255),LEFT($D$13:$D$48,255),0))),\"\")","v":"Programs to reduce human rights-related barriers to HIV services"},"a3z360000009C1vAAE"]
[null,"RSSH: Human resources for health (HRH), including community health workers",null,"MCI-00015",null,null,null,null,{"$f":"IFERROR(INDEX($D$13:$D$48, MATCH(0, COUNTIF($I$12:I36, $D$13:$D$48&\"\") + IF($D$13:$D$48=\"\",1,0), 0)), \"\")","v":"MCI-00536"},{"$f":"IFERROR(IF(INDEX($B$13:$B$48,MATCH(LEFT(I37,255),LEFT($D$13:$D$48,255),0))=0,\"\",INDEX($B$13:$B$48,MATCH(LEFT(I37,255),LEFT($D$13:$D$48,255),0))),\"\")","v":"RSSH: National health strategies"},"a3z360000009C1wAAE"]
[null,"RSSH: Procurement and supply chain management systems",null,"MCI-00016",null,null,null,null,{"$f":"IFERROR(INDEX($D$13:$D$48, MATCH(0, COUNTIF($I$12:I37, $D$13:$D$48&\"\") + IF($D$13:$D$48=\"\",1,0), 0)), \"\")","v":""},{"$f":"IFERROR(IF(INDEX($B$13:$B$48,MATCH(LEFT(I38,255),LEFT($D$13:$D$48,255),0))=0,\"\",INDEX($B$13:$B$48,MATCH(LEFT(I38,255),LEFT($D$13:$D$48,255),0))),\"\")","v":""},"a3z360000009C1xAAE"]
[null,"RSSH: Financial management systems",null,"MCI-00019",null,null,null,null,{"$f":"IFERROR(INDEX($D$13:$D$48, MATCH(0, COUNTIF($I$12:I38, $D$13:$D$48&\"\") + IF($D$13:$D$48=\"\",1,0), 0)), \"\")","v":""},{"$f":"IFERROR(IF(INDEX($B$13:$B$48,MATCH(LEFT(I39,255),LEFT($D$13:$D$48,255),0))=0,\"\",INDEX($B$13:$B$48,MATCH(LEFT(I39,255),LEFT($D$13:$D$48,255),0))),\"\")","v":""},"a3z360000009C20AAE"]
[null,"Program management",null,"MCI-00023",null,null,null,null,{"$f":"IFERROR(INDEX($D$13:$D$48, MATCH(0, COUNTIF($I$12:I39, $D$13:$D$48&\"\") + IF($D$13:$D$48=\"\",1,0), 0)), \"\")","v":""},{"$f":"IFERROR(IF(INDEX($B$13:$B$48,MATCH(LEFT(I40,255),LEFT($D$13:$D$48,255),0))=0,\"\",INDEX($B$13:$B$48,MATCH(LEFT(I40,255),LEFT($D$13:$D$48,255),0))),\"\")","v":""},"a3z360000009C23AAE"]
[null,"Payment for results",null,"MCI-00024",null,null,null,null,{"$f":"IFERROR(INDEX($D$13:$D$48, MATCH(0, COUNTIF($I$12:I40, $D$13:$D$48&\"\") + IF($D$13:$D$48=\"\",1,0), 0)), \"\")","v":""},{"$f":"IFERROR(IF(INDEX($B$13:$B$48,MATCH(LEFT(I41,255),LEFT($D$13:$D$48,255),0))=0,\"\",INDEX($B$13:$B$48,MATCH(LEFT(I41,255),LEFT($D$13:$D$48,255),0))),\"\")","v":""},"a3z360000009C24AAE"]
[null,"RSSH: Community responses and systems",null,"MCI-00021",null,null,null,null,{"$f":"IFERROR(INDEX($D$13:$D$48, MATCH(0, COUNTIF($I$12:I41, $D$13:$D$48&\"\") + IF($D$13:$D$48=\"\",1,0), 0)), \"\")","v":""},{"$f":"IFERROR(IF(INDEX($B$13:$B$48,MATCH(LEFT(I42,255),LEFT($D$13:$D$48,255),0))=0,\"\",INDEX($B$13:$B$48,MATCH(LEFT(I42,255),LEFT($D$13:$D$48,255),0))),\"\")","v":""},"a3z360000009C21AAE"]
[null,"RSSH: Health management information systems and M&E",null,"MCI-00022",null,null,null,null,{"$f":"IFERROR(INDEX($D$13:$D$48, MATCH(0, COUNTIF($I$12:I42, $D$13:$D$48&\"\") + IF($D$13:$D$48=\"\",1,0), 0)), \"\")","v":""},{"$f":"IFERROR(IF(INDEX($B$13:$B$48,MATCH(LEFT(I43,255),LEFT($D$13:$D$48,255),0))=0,\"\",INDEX($B$13:$B$48,MATCH(LEFT(I43,255),LEFT($D$13:$D$48,255),0))),\"\")","v":""},"a3z360000009C22AAE"]
[null,"Comprehensive prevention programs for MSM",null,"MCI-00534",null,null,null,null,{"$f":"IFERROR(INDEX($D$13:$D$48, MATCH(0, COUNTIF($I$12:I43, $D$13:$D$48&\"\") + IF($D$13:$D$48=\"\",1,0), 0)), \"\")","v":""},{"$f":"IFERROR(IF(INDEX($B$13:$B$48,MATCH(LEFT(I44,255),LEFT($D$13:$D$48,255),0))=0,\"\",INDEX($B$13:$B$48,MATCH(LEFT(I44,255),LEFT($D$13:$D$48,255),0))),\"\")","v":""},"a3z360000009C49AAE"]
[null,"Programs to reduce human rights-related barriers to HIV services",null,"MCI-00535",null,null,null,null,{"$f":"IFERROR(INDEX($D$13:$D$48, MATCH(0, COUNTIF($I$12:I44, $D$13:$D$48&\"\") + IF($D$13:$D$48=\"\",1,0), 0)), \"\")","v":""},{"$f":"IFERROR(IF(INDEX($B$13:$B$48,MATCH(LEFT(I45,255),LEFT($D$13:$D$48,255),0))=0,\"\",INDEX($B$13:$B$48,MATCH(LEFT(I45,255),LEFT($D$13:$D$48,255),0))),\"\")","v":""},"a3z360000009C4AAAU"]
[null,"RSSH: National health strategies",null,"MCI-00536",null,null,null,null,{"$f":"IFERROR(INDEX($D$13:$D$48, MATCH(0, COUNTIF($I$12:I45, $D$13:$D$48&\"\") + IF($D$13:$D$48=\"\",1,0), 0)), \"\")","v":""},{"$f":"IFERROR(IF(INDEX($B$13:$B$48,MATCH(LEFT(I46,255),LEFT($D$13:$D$48,255),0))=0,\"\",INDEX($B$13:$B$48,MATCH(LEFT(I46,255),LEFT($D$13:$D$48,255),0))),\"\")","v":""},"a3z360000009C4BAAU"]
[null,"RSSH: National health strategies",null,"MCI-00536",null,null,null,null,{"$f":"IFERROR(INDEX($D$13:$D$48, MATCH(0, COUNTIF($I$12:I46, $D$13:$D$48&\"\") + IF($D$13:$D$48=\"\",1,0), 0)), \"\")","v":""},{"$f":"IFERROR(IF(INDEX($B$13:$B$48,MATCH(LEFT(I47,255),LEFT($D$13:$D$48,255),0))=0,\"\",INDEX($B$13:$B$48,MATCH(LEFT(I47,255),LEFT($D$13:$D$48,255),0))),\"\")","v":""},"a3z360000009C4CAAU"]
[]
[]
[]
[]
[null,"Intervention Data - Module-Coverage-Intervention Reference"]
[null,"Module","Column1","Name ID","Name","Column2","Column5","Column6","Column4","Column3","Record ID","Column8"]
[null,"[Module (Name)]",null,"[Name ID]","[Name]",null,null,null,null,null,"[Record ID]"]
[null,"MCI-00000",null,"MCI-00072","Behavioral interventions as part of programs for general population",null,null,null,null,null,"a1O36000001EGGKEA4"]
[null,"MCI-00002",null,"MCI-00087","Behavioral interventions for sex workers",null,null,null,null,null,"a1O36000001EGGZEA4"]
[null,"MCI-00002",null,"MCI-00088","Condoms and lubricant programming for sex workers",null,null,null,null,null,"a1O36000001EGGaEAO"]
[null,"MCI-00002",null,"MCI-00089","HIV testing services for sex workers",null,null,null,null,null,"a1O36000001EGGbEAO"]
[null,"MCI-00002",null,"MCI-00090","Diagnosis and treatment of STIs and other sexual and reproductive health services for sex workers",null,null,null,null,null,"a1O36000001EGGcEAO"]
[null,"MCI-00000",null,"MCI-00078","Orphan and vulnerable children (OVC) package",null,null,null,null,null,"a1O36000001EGGQEA4"]
[null,"MCI-00000",null,"MCI-00079","Gender-based violence prevention and treatment programs for general population",null,null,null,null,null,"a1O36000001EGGREA4"]
[null,"MCI-00000",null,"MCI-00080","Other intervention(s) for general population",null,null,null,null,null,"a1O36000001EGGSEA4"]
[null,"MCI-00000",null,"MCI-00073","Condoms as part of programs for general population",null,null,null,null,null,"a1O36000001EGGLEA4"]
[null,"MCI-00000",null,"MCI-00074","Male circumcision",null,null,null,null,null,"a1O36000001EGGMEA4"]
[null,"MCI-00000",null,"MCI-00076","Diagnosis and treatment of STIs and other sexual health services for general population",null,null,null,null,null,"a1O36000001EGGOEA4"]
[null,"MCI-00002",null,"MCI-00091","Harm reduction interventions for sex workers who inject drugs",null,null,null,null,null,"a1O36000001EGGdEAO"]
[null,"MCI-00002",null,"MCI-00092","Other intervention(s) for sex workers and their clients",null,null,null,null,null,"a1O36000001EGGeEAO"]
[null,"MCI-00003",null,"MCI-00093","Behavioral interventions for PWID",null,null,null,null,null,"a1O36000001EGGfEAO"]
[null,"MCI-00003",null,"MCI-00094","Condoms and lubricant programming for PWID",null,null,null,null,null,"a1O36000001EGGgEAO"]
[null,"MCI-00003",null,"MCI-00095","HIV testing services for PWID",null,null,null,null,null,"a1O36000001EGGhEAO"]
[null,"MCI-00003",null,"MCI-00096","Diagnosis and treatment of STIs and other sexual health services for PWID",null,null,null,null,null,"a1O36000001EGGiEAO"]
[null,"MCI-00003",null,"MCI-00097","Needle and Syringe programs for PWID and their partners",null,null,null,null,null,"a1O36000001EGGjEAO"]
[null,"MCI-00005",null,"MCI-00106","Behavioral change as part of programs for adolescent and youth",null,null,null,null,null,"a1O36000001EGGsEAO"]
[null,"MCI-00005",null,"MCI-00107","Male and Female condoms for adolescents and youth, in and out of school",null,null,null,null,null,"a1O36000001EGGtEAO"]
[null,"MCI-00005",null,"MCI-00108","HIV testing services for adolescents and youth, in and out of school",null,null,null,null,null,"a1O36000001EGGuEAO"]
[null,"MCI-00003",null,"MCI-00098","OST and other drug dependence treatment for PWID",null,null,null,null,null,"a1O36000001EGGkEAO"]
[null,"MCI-00003",null,"MCI-00099","Prevention and management of coinfections and co-morbidities for PWID",null,null,null,null,null,"a1O36000001EGGlEAO"]
[null,"MCI-00003",null,"MCI-00100","Other intervention(s) for IDUs and their partners",null,null,null,null,null,"a1O36000001EGGmEAO"]
[null,"MCI-00004",null,"MCI-00101","Behavioral interventions for other vulnerable populations",null,null,null,null,null,"a1O36000001EGGnEAO"]
[null,"MCI-00005",null,"MCI-00109","Linkages of HIV, RMNCH, and TB programs for adolescents, girls, and young women",null,null,null,null,null,"a1O36000001EGGvEAO"]
[null,"MCI-00005",null,"MCI-00111","Other intervention(s) for adolescent and youth",null,null,null,null,null,"a1O36000001EGGxEAO"]
[null,"MCI-00006",null,"MCI-00112","Prong 1: Primary prevention of HIV infection among women of childbearing age",null,null,null,null,null,"a1O36000001EGGyEAO"]
[null,"MCI-00007",null,"MCI-00121","Prevention, diagnosis and treatment of opportunistic infections",null,null,null,null,null,"a1O36000001EGH7EAO"]
[null,"MCI-00007",null,"MCI-00122","Counseling and psycho-social support",null,null,null,null,null,"a1O36000001EGH8EAO"]
[null,"MCI-00004",null,"MCI-00102","Male and female condoms for other vulnerable populations",null,null,null,null,null,"a1O36000001EGGoEAO"]
[null,"MCI-00004",null,"MCI-00103","HIV testing services for other vulnerable populations",null,null,null,null,null,"a1O36000001EGGpEAO"]
[null,"MCI-00004",null,"MCI-00104","Diagnosis and treatment of STIs and other sexual health services for other vulnerable populations",null,null,null,null,null,"a1O36000001EGGqEAO"]
[null,"MCI-00004",null,"MCI-00105","Other intervention(s) for other vulnerable populations",null,null,null,null,null,"a1O36000001EGGrEAO"]
[null,"MCI-00006",null,"MCI-00113","Prong 2: Preventing unintended pregnancies among women living with HIV",null,null,null,null,null,"a1O36000001EGGzEAO"]
[null,"MCI-00006",null,"MCI-00114","Prong 3: Preventing vertical HIV transmission",null,null,null,null,null,"a1O36000001EGH0EAO"]
[null,"MCI-00006",null,"MCI-00115","Prong 4: Treatment, care and support to mothers living with HIV, their children and families",null,null,null,null,null,"a1O36000001EGH1EAO"]
[null,"MCI-00006",null,"MCI-00116","Other intervention(s) for PMTCT",null,null,null,null,null,"a1O36000001EGH2EAO"]
[null,"MCI-00007",null,"MCI-00125","Other intervention(s) for treatment",null,null,null,null,null,"a1O36000001EGHBEA4"]
[null,"MCI-00008",null,"MCI-00126","Case detection and diagnosis",null,null,null,null,null,"a1O36000001EGHCEA4"]
[null,"MCI-00008",null,"MCI-00127","Treatment",null,null,null,null,null,"a1O36000001EGHDEA4"]
[null,"MCI-00008",null,"MCI-00128","Prevention",null,null,null,null,null,"a1O36000001EGHEEA4"]
[null,"MCI-00008",null,"MCI-00129","Engaging all care providers (TB care and prevention)",null,null,null,null,null,"a1O36000001EGHFEA4"]
[null,"MCI-00010",null,"MCI-00142","Prevention for MDR-TB",null,null,null,null,null,"a1O36000001EGHSEA4"]
[null,"MCI-00010",null,"MCI-00143","Engaging all care providers (MDR-TB)",null,null,null,null,null,"a1O36000001EGHTEA4"]
[null,"MCI-00007",null,"MCI-00117","HIV care",null,null,null,null,null,"a1O36000001EGH3EAO"]
[null,"MCI-00007",null,"MCI-00118","Differentiated ART service delivery",null,null,null,null,null,"a1O36000001EGH4EAO"]
[null,"MCI-00007",null,"MCI-00119","Treatment monitoring - Drug resistance surveillance",null,null,null,null,null,"a1O36000001EGH5EAO"]
[null,"MCI-00007",null,"MCI-00120","Treatment adherence",null,null,null,null,null,"a1O36000001EGH6EAO"]
[null,"MCI-00008",null,"MCI-00130","Community TB care delivery",null,null,null,null,null,"a1O36000001EGHGEA4"]
[null,"MCI-00008",null,"MCI-00131","Key populations (TB care and prevention) - Others",null,null,null,null,null,"a1O36000001EGHHEA4"]
[null,"MCI-00008",null,"MCI-00132","Collaborative activities with other programs and sectors (TB care and prevention)",null,null,null,null,null,"a1O36000001EGHIEA4"]
[null,"MCI-00008",null,"MCI-00133","Other TB care and prevention intervention(s)",null,null,null,null,null,"a1O36000001EGHJEA4"]
[null,"MCI-00010",null,"MCI-00144","Community MDR-TB care delivery",null,null,null,null,null,"a1O36000001EGHUEA4"]
[null,"MCI-00010",null,"MCI-00145","Key populations (MDR-TB) - Others",null,null,null,null,null,"a1O36000001EGHVEA4"]
[null,"MCI-00010",null,"MCI-00146","Collaborative activities with other programs and sectors (MDR-TB)",null,null,null,null,null,"a1O36000001EGHWEA4"]
[null,"MCI-00010",null,"MCI-00147","Other MDR-TB intervention(s)",null,null,null,null,null,"a1O36000001EGHXEA4"]
[null,"MCI-00009",null,"MCI-00134","TB/HIV collaborative interventions",null,null,null,null,null,"a1O36000001EGHKEA4"]
[null,"MCI-00009",null,"MCI-00135","Engaging all care providers (TB/HIV)",null,null,null,null,null,"a1O36000001EGHLEA4"]
[null,"MCI-00009",null,"MCI-00136","Community TB/HIV care delivery",null,null,null,null,null,"a1O36000001EGHMEA4"]
[null,"MCI-00009",null,"MCI-00137","Key populations (TB/HIV) - Others",null,null,null,null,null,"a1O36000001EGHNEA4"]
[null,"MCI-00015",null,"MCI-00177","Other health and community workforce intervention(s)",null,null,null,null,null,"a1O36000001EGI1EAO"]
[null,"MCI-00016",null,"MCI-00178","National costed supply chain master plan, and implementation",null,null,null,null,null,"a1O36000001EGI2EAO"]
[null,"MCI-00016",null,"MCI-00179","Supply chain infrastructure and development of tools",null,null,null,null,null,"a1O36000001EGI3EAO"]
[null,"MCI-00016",null,"MCI-00180","Other procurement supply chain management intervention(s)",null,null,null,null,null,"a1O36000001EGI4EAO"]
[null,"MCI-00009",null,"MCI-00138","Collaborative activities with other programs and sectors (TB/HIV)",null,null,null,null,null,"a1O36000001EGHOEA4"]
[null,"MCI-00009",null,"MCI-00139","Other TB/HIV intervention(s)",null,null,null,null,null,"a1O36000001EGHPEA4"]
[null,"MCI-00010",null,"MCI-00140","Case detection and diagnosis: MDR-TB",null,null,null,null,null,"a1O36000001EGHQEA4"]
[null,"MCI-00010",null,"MCI-00141","Treatment: MDR-TB",null,null,null,null,null,"a1O36000001EGHREA4"]
[null,"MCI-00021",null,"MCI-00195","Community-based monitoring",null,null,null,null,null,"a1O36000001EGIJEA4"]
[null,"MCI-00021",null,"MCI-00196","Community led advocacy",null,null,null,null,null,"a1O36000001EGIKEA4"]
[null,"MCI-00021",null,"MCI-00197","Social mobilization, building community linkages, collaboration and coordination",null,null,null,null,null,"a1O36000001EGILEA4"]
[null,"MCI-00014",null,"MCI-00170","Service organization and facility management",null,null,null,null,null,"a1O36000001EGHuEAO"]
[null,"MCI-00014",null,"MCI-00171","Laboratory systems for disease prevention, control, treatment and disease surveillance",null,null,null,null,null,"a1O36000001EGHvEAO"]
[null,"MCI-00021",null,"MCI-00198","Institutional capacity building, planning and leadership development",null,null,null,null,null,"a1O36000001EGIMEA4"]
[null,"MCI-00021",null,"MCI-00199","Other community responses and systems intervention(s)",null,null,null,null,null,"a1O36000001EGINEA4"]
[null,"MCI-00022",null,"MCI-00200","Routine reporting",null,null,null,null,null,"a1O36000001EGIOEA4"]
[null,"MCI-00022",null,"MCI-00201","Analysis, review and transparency",null,null,null,null,null,"a1O36000001EGIPEA4"]
[null,"MCI-00014",null,"MCI-00172","Improving service delivery infrastructure",null,null,null,null,null,"a1O36000001EGHwEAO"]
[null,"MCI-00014",null,"MCI-00173","Other service delivery intervention(s)",null,null,null,null,null,"a1O36000001EGHxEAO"]
[null,"MCI-00015",null,"MCI-00174","Capacity building for health workers, including those at community level",null,null,null,null,null,"a1O36000001EGHyEAO"]
[null,"MCI-00015",null,"MCI-00175","Retention and scale-up of health workers, including for community health workers",null,null,null,null,null,"a1O36000001EGHzEAO"]
[null,"MCI-00019",null,"MCI-00187","Public financial management (PFM) strengthening",null,null,null,null,null,"a1O36000001EGIBEA4"]
[null,"MCI-00019",null,"MCI-00188","Other financial management intervention(s)",null,null,null,null,null,"a1O36000001EGICEA4"]
[null,"MCI-00022",null,"MCI-00202","Surveys",null,null,null,null,null,"a1O36000001EGIQEA4"]
[null,"MCI-00022",null,"MCI-00203","Administrative and finance data sources",null,null,null,null,null,"a1O36000001EGIREA4"]
[null,"MCI-00022",null,"MCI-00204","Vital registration system",null,null,null,null,null,"a1O36000001EGISEA4"]
[null,"MCI-00022",null,"MCI-00205","Other health information systems and M&E intervention(s)",null,null,null,null,null,"a1O36000001EGITEA4"]
[null,"MCI-00023",null,"MCI-00206","Policy, planning, coordination and management of national disease control programs",null,null,null,null,null,"a1O36000001EGIUEA4"]
[null,"MCI-00023",null,"MCI-00207","Grant management",null,null,null,null,null,"a1O36000001EGIVEA4"]
[null,"MCI-00023",null,"MCI-00209","Other program management intervention(s)",null,null,null,null,null,"a1O36000001EGIXEA4"]
[null,"MCI-00024",null,"MCI-00210","Payment for results",null,null,null,null,null,"a1O36000001EGIYEA4"]
[null,"MCI-00000",null,"MCI-00537","Linkages between HIV programs and RMNCH",null,null,null,null,null,"a1O36000001qZ7yEAE"]
[null,"MCI-00534",null,"MCI-00538","Community empowerment for MSM",null,null,null,null,null,"a1O36000001qZ7zEAE"]
[null,"MCI-00534",null,"MCI-00539","Addressing stigma, discrimination and violence against MSM",null,null,null,null,null,"a1O36000001qZ80EAE"]
[null,"MCI-00534",null,"MCI-00540","Pre-exposure prophylaxis (PrEP) for MSM",null,null,null,null,null,"a1O36000001qZ81EAE"]
[null,"MCI-00534",null,"MCI-00541","Harm reduction interventions for MSM who inject drugs",null,null,null,null,null,"a1O36000001qZ82EAE"]
[null,"MCI-00534",null,"MCI-00542","Interventions for young men who have sex with men",null,null,null,null,null,"a1O36000001qZ83EAE"]
[null,"MCI-00002",null,"MCI-00543","Community empowerment for sex workers",null,null,null,null,null,"a1O36000001qZ84EAE"]
[null,"MCI-00532",null,"MCI-00565","Behavioral interventions for people in prisons and other closed settings",null,null,null,null,null,"a1O36000001qZ8QEAU"]
[null,"MCI-00532",null,"MCI-00566","Condoms and lubricant programming for people in prisons and other closed settings",null,null,null,null,null,"a1O36000001qZ8REAU"]
[null,"MCI-00532",null,"MCI-00567","Pre-exposure prophylaxis (PrEP) for people in prisons and other closed settings",null,null,null,null,null,"a1O36000001qZ8SEAU"]
[null,"MCI-00532",null,"MCI-00568","Harm reduction interventions for people in prisons and other closed settings",null,null,null,null,null,"a1O36000001qZ8TEAU"]
[null,"MCI-00532",null,"MCI-00569","HIV testing services for people in prisons and other closed settings",null,null,null,null,null,"a1O36000001qZ8UEAU"]
[null,"MCI-00532",null,"MCI-00570","Diagnosis and treatment of STIs and other sexual and reproductive health services for people in prisons and other closed settings",null,null,null,null,null,"a1O36000001qZ8VEAU"]
[null,"MCI-00532",null,"MCI-00571","Prevention and management of coinfections and co-morbidities for people in prisons and other closed settings",null,null,null,null,null,"a1O36000001qZ8WEAU"]
[null,"MCI-00532",null,"MCI-00572","Other intervention(s) for people in prisons and other closed settings",null,null,null,null,null,"a1O36000001qZ8XEAU"]
[null,"MCI-00005",null,"MCI-00573","Gender-based violence prevention and treatment programs for adolescents and youth",null,null,null,null,null,"a1O36000001qZ8YEAU"]
[null,"MCI-00005",null,"MCI-00574","Pre-exposure prophylaxis (PrEP) for adolescents and youth",null,null,null,null,null,"a1O36000001qZ8ZEAU"]
[null,"MCI-00002",null,"MCI-00544","Addressing stigma, discrimination and violence against sex workers",null,null,null,null,null,"a1O36000001qZ85EAE"]
[null,"MCI-00002",null,"MCI-00545","Pre-exposure prophylaxis (PrEP) for sex workers",null,null,null,null,null,"a1O36000001qZ86EAE"]
[null,"MCI-00002",null,"MCI-00546","Prevention and management of coinfections and co-morbidities for sex workers",null,null,null,null,null,"a1O36000001qZ87EAE"]
[null,"MCI-00002",null,"MCI-00547","Interventions for young people who sell sex",null,null,null,null,null,"a1O36000001qZ88EAE"]
[null,"MCI-00003",null,"MCI-00548","Community empowerment for PWID",null,null,null,null,null,"a1O36000001qZ89EAE"]
[null,"MCI-00003",null,"MCI-00549","Addressing stigma, discrimination and violence against PWID",null,null,null,null,null,"a1O36000001qZ8AEAU"]
[null,"MCI-00003",null,"MCI-00550","Overdose prevention and management",null,null,null,null,null,"a1O36000001qZ8BEAU"]
[null,"MCI-00003",null,"MCI-00551","Interventions for young people who inject drugs",null,null,null,null,null,"a1O36000001qZ8CEAU"]
[null,"MCI-00531",null,"MCI-00552","Community empowerment for TGs",null,null,null,null,null,"a1O36000001qZ8DEAU"]
[null,"MCI-00531",null,"MCI-00553","Addressing stigma, discrimination and violence against TGs",null,null,null,null,null,"a1O36000001qZ8EEAU"]
[null,"MCI-00531",null,"MCI-00554","Behavioral interventions for TGs",null,null,null,null,null,"a1O36000001qZ8FEAU"]
[null,"MCI-00531",null,"MCI-00555","Condoms and lubricant programming for TGs",null,null,null,null,null,"a1O36000001qZ8GEAU"]
[null,"MCI-00531",null,"MCI-00556","Pre-exposure prophylaxis (PrEP) and other biomedical interventions for TGs",null,null,null,null,null,"a1O36000001qZ8HEAU"]
[null,"MCI-00531",null,"MCI-00557","Harm reduction interventions for TGs with substance use",null,null,null,null,null,"a1O36000001qZ8IEAU"]
[null,"MCI-00005",null,"MCI-00575","Community mobilization and norms change",null,null,null,null,null,"a1O36000001qZ8aEAE"]
[null,"MCI-00005",null,"MCI-00576","Addressing stigma, discrimination and legal barriers to care for adolescents and youth",null,null,null,null,null,"a1O36000001qZ8bEAE"]
[null,"MCI-00005",null,"MCI-00577","Socioeconomic approaches",null,null,null,null,null,"a1O36000001qZ8cEAE"]
[null,"MCI-00005",null,"MCI-00578","Keeping girls in school",null,null,null,null,null,"a1O36000001qZ8dEAE"]
[null,"MCI-00533",null,"MCI-00579","Differentiated HIV testing services",null,null,null,null,null,"a1O36000001qZ8eEAE"]
[null,"MCI-00007",null,"MCI-00580","Treatment monitoring - Viral load",null,null,null,null,null,"a1O36000001qZ8fEAE"]
[null,"MCI-00009",null,"MCI-00581","Key populations (TB/HIV) - Prisoners",null,null,null,null,null,"a1O36000001qZ8gEAE"]
[null,"MCI-00009",null,"MCI-00582","Removing human rights and gender related barriers to TB/HIV collaborative programming",null,null,null,null,null,"a1O36000001qZ8hEAE"]
[null,"MCI-00535",null,"MCI-00583","Stigma and discrimination reduction",null,null,null,null,null,"a1O36000001qZ8iEAE"]
[null,"MCI-00535",null,"MCI-00584","Legal Literacy (“Know Your Rights\")",null,null,null,null,null,"a1O36000001qZ8jEAE"]
[null,"MCI-00535",null,"MCI-00585","Training of health care providers on human rights and medical ethics related to HIV and HIV/TB",null,null,null,null,null,"a1O36000001qZ8kEAE"]
[null,"MCI-00535",null,"MCI-00586","HIV and HIV/TB-related legal services",null,null,null,null,null,"a1O36000001qZ8lEAE"]
[null,"MCI-00535",null,"MCI-00587","Sensitisation of law-makers and law-enforcement agents",null,null,null,null,null,"a1O36000001qZ8mEAE"]
[null,"MCI-00531",null,"MCI-00558","HIV testing services for TGs",null,null,null,null,null,"a1O36000001qZ8JEAU"]
[null,"MCI-00531",null,"MCI-00559","Diagnosis and treatment of STIs and sexual health services for TGs",null,null,null,null,null,"a1O36000001qZ8KEAU"]
[null,"MCI-00531",null,"MCI-00560","Prevention and management of coinfections and co-morbidities for TGs",null,null,null,null,null,"a1O36000001qZ8LEAU"]
[null,"MCI-00531",null,"MCI-00561","Interventions for young transgender people",null,null,null,null,null,"a1O36000001qZ8MEAU"]
[null,"MCI-00531",null,"MCI-00562","Other intervention(s) for TGs",null,null,null,null,null,"a1O36000001qZ8NEAU"]
[null,"MCI-00532",null,"MCI-00563","Community empowerment for people in prisons and other closed settings",null,null,null,null,null,"a1O36000001qZ8OEAU"]
[null,"MCI-00532",null,"MCI-00564","Addressing stigma, discrimination and violence against people in prisons and other closed settings",null,null,null,null,null,"a1O36000001qZ8PEAU"]
[null,"MCI-00535",null,"MCI-00588","Improving laws, regulations and polices relating to HIV and HIV/TB",null,null,null,null,null,"a1O36000001qZ8nEAE"]
[null,"MCI-00535",null,"MCI-00589","Reducing HIV-related gender discrimination, harmful gender norms and violence against women and girls in all their diversity",null,null,null,null,null,"a1O36000001qZ8oEAE"]
[null,"MCI-00008",null,"MCI-00590","Key populations (TB care and prevention) - Prisoners",null,null,null,null,null,"a1O36000001qZ8pEAE"]
[null,"MCI-00008",null,"MCI-00591","Removing human rights and gender related barriers to TB care and prevention",null,null,null,null,null,"a1O36000001qZ8qEAE"]
[null,"MCI-00010",null,"MCI-00592","Key populations (MDR-TB) - Prisoners",null,null,null,null,null,"a1O36000001qZ8rEAE"]
[null,"MCI-00010",null,"MCI-00593","Removing human rights and gender related barriers to MDR-TB",null,null,null,null,null,"a1O36000001qZ8sEAE"]
[null,"MCI-00016",null,"MCI-00598","Procurement strategy",null,null,null,null,null,"a1O36000001qZ8xEAE"]
[null,"MCI-00016",null,"MCI-00599","National product selection, registration and quality monitoring",null,null,null,null,null,"a1O36000001qZ8yEAE"]
[null,"MCI-00022",null,"MCI-00600","Program and data quality",null,null,null,null,null,"a1O36000001qZ8zEAE"]
[null,"MCI-00014",null,"MCI-00601","Supportive policy and programmatic environment",null,null,null,null,null,"a1O36000001qZ90EAE"]
[null,"MCI-00014",null,"MCI-00602","Provider initiated feedback mechanisms",null,null,null,null,null,"a1O36000001qZ91EAE"]
[null,"MCI-00019",null,"MCI-00603","Routine financial management improvement (non-PFM)",null,null,null,null,null,"a1O36000001qZ92EAE"]
[null,"MCI-00535",null,"MCI-00604","Other intervention(s) to reduce human rights-related barriers to HIV services",null,null,null,null,null,"a1O36000001qZ93EAE"]
[null,"MCI-00534",null,"MCI-00605","Behavioral interventions for MSM",null,null,null,null,null,"a1O36000001qZ94EAE"]
[null,"MCI-00534",null,"MCI-00606","Condoms and lubricant programming for MSM",null,null,null,null,null,"a1O36000001qZ95EAE"]
[null,"MCI-00534",null,"MCI-00607","HIV testing services for MSM",null,null,null,null,null,"a1O36000001qZ96EAE"]
[null,"MCI-00534",null,"MCI-00608","Diagnosis and treatment of STIs and other sexual health services for MSM",null,null,null,null,null,"a1O36000001qZ97EAE"]
[null,"MCI-00534",null,"MCI-00609","Prevention and management of coinfections and co-morbidities for MSM",null,null,null,null,null,"a1O36000001qZ98EAE"]
[null,"MCI-00534",null,"MCI-00610","Other intervention(s) for MSM",null,null,null,null,null,"a1O36000001qZ99EAE"]
[null,"MCI-00536",null,"MCI-00611","National health strategies, alignment with disease-specific plans, health sector governance and financing",null,null,null,null,null,"a1O36000001qZ9AEAU"]
[null,"MCI-00536",null,"MCI-00612","Other policy and governance intervention(s)",null,null,null,null,null,"a1O36000001qZ9BEAU"]
[]
[null,"Cost Input"]
[null,"Name","Cost Grouping Number","Cost Input Number","Cost Input Name",null,"Record ID"]
[null,"[Name]","[Cost Grouping Number]","[Cost Input Number]",{"$f":"C222 & \".\" & D222 & \" \" & B222","v":"[Cost Grouping Number].[Cost Input Number] [Name]"},null,"[Record ID]"]
[null,"Performance based suppliments, incentives",1,3,{"$f":"C223 & \".\" & D223 & \" \" & B223","v":"1.3 Performance based suppliments, incentives"},null,"a2C360000007DAQEA2"]
[null,"Other HR Costs",1,4,"1.4 Other HR Costs",null,"a2C360000007DB5EAM"]
[null,"Human Resources (HR)",1,0,"1.0 Human Resources (HR)",null,"a2C360000007DA3EAM"]
[null,"Salaries - program management",1,1,"1.1 Salaries - program management",null,"a2C360000007DA4EAM"]
[null,"Salaries - outreach workers, medical staff and other service providers",1,2,"1.2 Salaries - outreach workers, medical staff and other service providers",null,"a2C360000007DAFEA2"]
[null,"Meeting/Advocacy related per diems/transport/other costs",2,4,"2.4 Meeting/Advocacy related per diems/transport/other costs",null,"a2C360000007DB9EAM"]
[null,"Travel related costs (TRC)",2,0,"2.0 Travel related costs (TRC)",null,"a2C360000007DAbEAM"]
[null,"Training related per diems/transport/other costs",2,1,"2.1 Training related per diems/transport/other costs",null,"a2C360000007DAmEAM"]
[null,"Technical assistance-related per diems/transport/other costs",2,2,"2.2 Technical assistance-related per diems/transport/other costs",null,"a2C360000007DAtEAM"]
[null,"Supervision/surveys/data collection related per diems/transport/other costs",2,3,"2.3 Supervision/surveys/data collection related per diems/transport/other costs",null,"a2C360000007DB3EAM"]
[null,"Other Transportation costs",2,5,"2.5 Other Transportation costs",null,"a2C360000007DB6EAM"]
[null,"Insurance related costs (EPS)",3,5,"3.5 Insurance related costs (EPS)",null,"a2C36000000vIr1EAE"]
[null,"External Professional services (EPS)",3,0,"3.0 External Professional services (EPS)",null,"a2C360000007DBAEA2"]
[null,"Technical Assistance Fees/Consultants",3,1,"3.1 Technical Assistance Fees/Consultants",null,"a2C360000007DA5EAM"]
[null,"Fiscal/Fiduciary Agent fees",3,2,"3.2 Fiscal/Fiduciary Agent fees",null,"a2C360000007DA6EAM"]
[null,"External audit fees",3,3,"3.3 External audit fees",null,"a2C360000007DA7EAM"]
[null,"Other external professional services",3,4,"3.4 Other external professional services",null,"a2C360000007DA8EAM"]
[null,"Other medicines",4,7,"4.7 Other medicines",null,"a2C360000007DAHEA2"]
[null,"Health Products - Pharmaceutical Products (HPPP)",4,0,"4.0 Health Products - Pharmaceutical Products (HPPP)",null,"a2C360000007DA9EAM"]
[null,"Antiretroviral medicines",4,1,"4.1 Antiretroviral medicines",null,"a2C360000007DAAEA2"]
[null,"Anti-tuberculosis medicines",4,2,"4.2 Anti-tuberculosis medicines",null,"a2C360000007DABEA2"]
[null,"Antimalarial medicines",4,3,"4.3 Antimalarial medicines",null,"a2C360000007DACEA2"]
[null,"Opioid substitution medicines",4,4,"4.4 Opioid substitution medicines",null,"a2C360000007DADEA2"]
[null,"Opportunistic infections and STI medicines",4,5,"4.5 Opportunistic infections and STI medicines",null,"a2C360000007DAEEA2"]
[null,"Private Sector subsidies for ACTs (co-payment to 4.3)",4,6,"4.6 Private Sector subsidies for ACTs (co-payment to 4.3)",null,"a2C360000007DAGEA2"]
[null,"Health Products - Non-Pharmaceuticals (HPNP)",5,0,"5.0 Health Products - Non-Pharmaceuticals (HPNP)",null,"a2C360000007DAIEA2"]
[null,"Insecticide-treated Nets (LLINs/ITNs)",5,1,"5.1 Insecticide-treated Nets (LLINs/ITNs)",null,"a2C360000007DAJEA2"]
[null,"Condoms - Male",5,2,"5.2 Condoms - Male",null,"a2C360000007DAKEA2"]
[null,"Condoms - Female",5,3,"5.3 Condoms - Female",null,"a2C360000007DALEA2"]
[null,"Rapid Diagnostic Test",5,4,"5.4 Rapid Diagnostic Test",null,"a2C360000007DAMEA2"]
[null,"Insecticides",5,5,"5.5 Insecticides",null,"a2C360000007DANEA2"]
[null,"Laboratory reagents",5,6,"5.6 Laboratory reagents",null,"a2C360000007DAOEA2"]
[null,"Syringes and needles",5,7,"5.7 Syringes and needles",null,"a2C360000007DAPEA2"]
[null,"Other consumables",5,8,"5.8 Other consumables",null,"a2C360000007DAREA2"]
[null,"Private Sector subsidies for RDTs (co-payment to 5.4)",5,9,"5.9 Private Sector subsidies for RDTs (co-payment to 5.4)",null,"a2C360000007uJgEAI"]
[null,"Health Products - Equipment (HPE)",6,0,"6.0 Health Products - Equipment (HPE)",null,"a2C360000007DASEA2"]
[null,"CD4 analyser/accessories",6,1,"6.1 CD4 analyser/accessories",null,"a2C360000007DATEA2"]
[null,"HIV Viral Load analyser/accessories",6,2,"6.2 HIV Viral Load analyser/accessories",null,"a2C360000007DAUEA2"]
[null,"Microscopes",6,3,"6.3 Microscopes",null,"a2C360000007DAVEA2"]
[null,"TB Molecular Test equipment",6,4,"6.4 TB Molecular Test equipment",null,"a2C360000007DAWEA2"]
[null,"Maintenance and service costs for health equipment",6,5,"6.5 Maintenance and service costs for health equipment",null,"a2C360000007DAXEA2"]
[null,"Other health equipment",6,6,"6.6 Other health equipment",null,"a2C360000007DAYEA2"]
[null,"Procurement and Supply-Chain Management costs (PSM)",7,0,"7.0 Procurement and Supply-Chain Management costs (PSM)",null,"a2C360000007DAZEA2"]
[null,"Procurement agent and handling fees",7,1,"7.1 Procurement agent and handling fees",null,"a2C360000007DAaEAM"]
[null,"Freight and insurance costs (Health products)",7,2,"7.2 Freight and insurance costs (Health products)",null,"a2C360000007DAcEAM"]
[null,"Warehouse and Storage Costs",7,3,"7.3 Warehouse and Storage Costs",null,"a2C360000007DAdEAM"]
[null,"In-country distribution costs",7,4,"7.4 In-country distribution costs",null,"a2C360000007DAeEAM"]
[null,"Quality assurance and quality control costs (QA/QC)",7,5,"7.5 Quality assurance and quality control costs (QA/QC)",null,"a2C360000007DAfEAM"]
[null,"PSM Customs Clearance",7,6,"7.6 PSM Customs Clearance",null,"a2C360000007DAgEAM"]
[null,"Other PSM costs",7,7,"7.7 Other PSM costs",null,"a2C360000007DAhEAM"]
[null,"Infrastructure (INF)",8,0,"8.0 Infrastructure (INF)",null,"a2C360000007DAiEAM"]
[null,"Furniture",8,1,"8.1 Furniture",null,"a2C360000007DAjEAM"]
[null,"Renovation/constructions",8,2,"8.2 Renovation/constructions",null,"a2C360000007DAkEAM"]
[null,"Infrastructure maintenance and other INF costs",8,3,"8.3 Infrastructure maintenance and other INF costs",null,"a2C360000007DAlEAM"]
[null,"Non-health equipment (NHP)",9,0,"9.0 Non-health equipment (NHP)",null,"a2C360000007DAnEAM"]
[null,"IT - Computers, computer equipment, Software and applications",9,1,"9.1 IT - Computers, computer equipment, Software and applications",null,"a2C360000007DAoEAM"]
[null,"Vehicles",9,2,"9.2 Vehicles",null,"a2C360000007DApEAM"]
[null,"Other non-health equipment",9,3,"9.3 Other non-health equipment",null,"a2C360000007DAqEAM"]
[null,"Maintenance and service costs non-health equipment",9,4,"9.4 Maintenance and service costs non-health equipment",null,"a2C360000007DArEAM"]
[null,"Communication Material and Publications (CMP)",10,0,"10.0 Communication Material and Publications (CMP)",null,"a2C360000007D9UEAU"]
[null,"Printed materials (forms, books, guidelines, brochure, leaflets...)",10,1,"10.1 Printed materials (forms, books, guidelines, brochure, leaflets...)",null,"a2C360000007D9VEAU"]
[null,"Television/Radio spots and programmes",10,2,"10.2 Television/Radio spots and programmes",null,"a2C360000007D9WEAU"]
[null,"Promotional Material (t-shirts, mugs, pins...) and other CMP costs",10,3,"10.3 Promotional Material (t-shirts, mugs, pins...) and other CMP costs",null,"a2C360000007D9XEAU"]
[null,"Programme Administration costs (PA)",11,0,"11.0 Programme Administration costs (PA)",null,"a2C360000007DAsEAM"]
[null,"Office related costs",11,1,{"$f":"C287 & \".\" & D287 & \" \" & B287","v":"11.1 Office related costs"},null,"a2C360000007DAuEAM"]
[null,"Unrecoverable taxes and duties",11,2,"11.2 Unrecoverable taxes and duties",null,"a2C360000007DAvEAM"]
[null,"Indirect cost recovery (ICR) - % based",11,3,"11.3 Indirect cost recovery (ICR) - % based",null,"a2C360000007DAwEAM"]
[null,"Other PA costs",11,4,"11.4 Other PA costs",null,"a2C360000007DAxEAM"]
[null,"Living support to client/ target population (LSCTP)",12,0,"12.0 Living support to client/ target population (LSCTP)",null,"a2C360000007DAyEAM"]
[null,"OVC Support (school fees, uniforms, books...)",12,1,"12.1 OVC Support (school fees, uniforms, books...)",null,"a2C360000007DAzEAM"]
[null,"Food and care packages",12,2,"12.2 Food and care packages",null,"a2C360000007DB0EAM"]
[null,"Cash incentives/transfer to patients/beneficiaries/counsellors/mediators",12,3,"12.3 Cash incentives/transfer to patients/beneficiaries/counsellors/mediators",null,"a2C360000007DB1EAM"]
[null,"Micro-loans and micro-grants",12,4,"12.4 Micro-loans and micro-grants",null,"a2C360000007DB2EAM"]
[null,"Other LSCTP costs",12,5,"12.5 Other LSCTP costs",null,"a2C360000007DB4EAM"]
[null,"Payment for Results",13,1,"13.1 Payment for Results",null,"a2C360000007DB8EAM"]
[]
[]
[]
[]
[]
[]
[]
[]
[]
[]
[]
[null,null,null,null,{"$f":"OFFSET(Modulestart,MATCH(O221,Modulecolumn,0)-1,3,COUNTIF(Modulecolumn,O221),1)","v":{"$error":"#N/A"}}]

{"sheet":"PR Authorization_9A","index":38,"n_rows":18,"n_cols":10,"rows_kept":18,"cut":false,"hidden":false,"merged":[[9,0,9,4],[9,5,9,9],[0,0,0,14],[4,0,4,4],[4,5,4,9],[8,0,8,4],[8,5,8,9],[5,5,5,6],[6,5,6,6],[7,5,7,6],[19,0,19,14],[11,0,11,14],[13,0,13,4],[13,5,13,9],[14,5,14,9],[15,5,15,9],[16,5,16,9],[17,5,17,9],[16,0,16,3]]}
[{"$f":"IF(CoverSheet!J12=\"N/A\",\"Progress Report\",\"Progress Report with Disbursement Request\")","v":"Progress Report with Disbursement Request"}]
[{"$f":"VLOOKUP(Translations!B469,Translations!B3:H508,4,0)","v":"Section 9A.  Principal Recipient Authorization"}]
[]
[]
[{"$f":"VLOOKUP(Translations!B470,Translations!B3:H508,4,0)","v":"Nom/numéro de la subvention :"},null,null,null,null,{"$f":"CoverSheet!D10","v":"BDI-C-UNDP"}]
[{"$f":"CoverSheet!F9","v":"Période couverte par le rapport sur les résultats actuels :"},null,null,null,null,{"$f":"CoverSheet!I12","v":"Date de début :"},null,{"$f":"CoverSheet!J9","v":"2018-01-01"},{"$f":"CoverSheet!K12","v":"Date de fin :"},{"$f":"CoverSheet!L9","v":"2018-06-30"}]
[{"$f":"CoverSheet!F15","v":"Demande de décaissement  - période de prévision:"},null,null,null,null,{"$f":"CoverSheet!I12","v":"Date de début :"},null,{"$f":"CoverSheet!J15","v":"2018-07-01"},{"$f":"CoverSheet!K12","v":"Date de fin :"},{"$f":"CoverSheet!L15","v":"2018-12-31"}]
[{"$f":"CoverSheet!F16","v":"Demande de décaissement  - Période additionnelle convenue:"},null,null,null,null,{"$f":"CoverSheet!I12","v":"Date de début :"},null,{"$f":"CoverSheet!J16","v":"2019-01-01"},{"$f":"CoverSheet!K12","v":"Date de fin :"},{"$f":"CoverSheet!L16","v":"2019-03-31"}]
[{"$f":"VLOOKUP(Translations!B480,Translations!B3:H508,4,0)","v":"Monnaie Subvention :"},null,null,null,null,{"$f":"CoverSheet!D14","v":"USD"}]
[{"$f":"VLOOKUP(Translations!B481,Translations!B3:H508,4,0)","v":"Fonds en transit après la période de rapport en cours : (décaissements  effectués en faveur du récipiendaire principal)."},null,null,null,null,1843806]
[]
[{"$f":"VLOOKUP(Translations!B482,Translations!B3:H508,4,0)","v":"Le(la) soussigné(e) déclare : i) que tous les renseignements (programmatiques, financiers et autres) fournis dans le présent rapport sur les résultats actuels/demande de décaissement sont complets et exacts ; ii) que les fonds décaissés conformément à la présente demande seront déposés dans le compte bancaire visé dans les formulaires sur les données de base, et iii) que les fonds décaissés au titre de l'accord de subvention seront utilisés conformément à celui-ci."}]
[]
[{"$f":"VLOOKUP(Translations!B483,Translations!B3:H508,4,0)","v":"Signé au nom du récipiendaire principal :\n(signature du représentant désigné dûment autorisé)"}]
[{"$f":"VLOOKUP(Translations!B484,Translations!B3:H508,4,0)","v":"Nom :"},null,null,null,null,"Alfredo Teixeira"]
[{"$f":"VLOOKUP(Translations!B485,Translations!B3:H508,4,0)","v":"Titre :"},null,null,null,null,"Directeur Pays PNUD Burundi"]
["Date\n(Mandatory field to enter in excel)",null,null,null,null,"2018-08-29"]
["Place",null,null,null,null,"Bujumbura, Burundi"]

{"sheet":"LFA Authorization_9B","index":39,"n_rows":22,"n_cols":11,"rows_kept":22,"cut":false,"hidden":false,"merged":[[10,0,10,4],[10,5,10,9],[19,3,19,5],[0,0,0,14],[5,0,5,4],[5,5,5,9],[9,0,9,4],[9,5,9,9],[6,5,6,6],[7,5,7,6],[8,5,8,6],[23,0,23,14],[12,0,12,14],[13,0,13,14],[14,0,14,14],[15,0,15,14],[17,3,17,5],[18,3,18,5],[17,6,17,8],[18,6,18,8],[19,6,19,8],[21,3,21,5],[21,6,21,8],[20,3,20,9]]}
[{"$f":"IF(CoverSheet!J12=\"N/A\",\"Progress Report\",\"Progress Report with Disbursement Request\")","v":"Progress Report with Disbursement Request"}]
[]
["For LFA Use Only"]
["Section 9B.  LFA Authorization"]
[]
["Grant Name:",null,null,null,null,{"$f":"CoverSheet!D10","v":"BDI-C-UNDP"}]
["Principal Recipient Reporting - Period Covered:",null,null,null,null,{"$f":"CoverSheet!I12","v":"Date de début :"},null,{"$f":"CoverSheet!J9","v":"2018-01-01"},{"$f":"CoverSheet!K12","v":"Date de fin :"},{"$f":"CoverSheet!L9","v":"2018-06-30"}]
["Disbursement Request  - Period Covered:",null,null,null,null,{"$f":"CoverSheet!I12","v":"Date de début :"},null,{"$f":"CoverSheet!J15","v":"2018-07-01"},{"$f":"CoverSheet!K12","v":"Date de fin :"},{"$f":"CoverSheet!L15","v":"2018-12-31"}]
[{"$f":"CoverSheet!F16","v":"Demande de décaissement  - Période additionnelle convenue:"},null,null,null,null,{"$f":"CoverSheet!I12","v":"Date de début :"},null,{"$f":"CoverSheet!J16","v":"2019-01-01"},{"$f":"CoverSheet!K12","v":"Date de fin :"},{"$f":"CoverSheet!L16","v":"2019-03-31"}]
["Currency:",null,null,null,null,{"$f":"CoverSheet!D14","v":"USD"}]
["Disbursement Recommendation Amount:",null,null,null,null,{"$f":"'Request and Recommendation_8B'!K53","v":0}]
["Summary of the LFA's approach used for verification of financial, programmatic and procurement data and Quality Assurance undertaken by the LFA"]
["In this section the LFA should indicate, as applicable, what percentage of expenditures was verified at PR level, if any expenditures were verified at SR level, how many site visits were made, what tender documentation was verified, and any other material parts of verification procedures in line with the verification approach agreed upfront between the LFA and the Global Fund's Secretariat based on country/grant risks.  As a good practice, the verification approach needs to be reviewed jointly by the LFA and the Secretariat annually."]
[]
[]
["The LFA should sign a printed version of the verified PU/DR and send it to the Secretariat as a pdf file by email, or include an electronic signature in the Excel file to be submitted to the Global Fund."]
[]
["Signed on behalf of the LFA:"]
["Name:"]
["Title:"]
["Date\n(Mandatory field to enter in excel)",null,null,null,null,null,null,null,null,null,"Please enter the date in the excel document"]
["Place"]

{"sheet":"Financial Triggers_10","index":40,"n_rows":15,"n_cols":6,"rows_kept":15,"cut":false,"hidden":true,"merged":[[0,0,0,5],[2,0,2,5],[3,2,3,3],[3,4,3,5]]}
["Principal Recipient Reporting"]
[]
["Financial  Triggers for Principal Recipient Reporting"]
[null,null,"Principal Recipient",null,"For LFA Use Only"]
["Item No.","Financial Triggers","Answer","Comments","As verified by LFA","Comments"]
[1,"Cash balance not reconciled to the cash reconciliation and bank account with significant (+/-5%) and unexplained differences"]
[2,"Audit Report overdue"]
[3,"Qualified, adverse or disclaimer of opinion received for the latest audit"]
[4,"Enhanced Financial Report/Annual Financial Report has not been fully completed or does not include all the grant's expenditures for the period"]
[5,"Inadequate explanation of significant variance (+/-10%) between budget and actual expenditures by intervention/Service Delivery Area and/or cost grouping/cost category linked to programmatic results"]
[6,"Critical recommendations by auditors, OIG or the Global Fund on internal controls are not implemented or being addressed by the PR"]
[7,"Presence of major issues identified with respect to the Financial Management and Systems Area"]
[8,"Expenditure vs. Budget (in EFR/AFR) rate below 50% for the prior annual period. "]
[9,"If answer to point 8 is \"yes\", the Annual Cash Forecast has been adjusted to take into consideration the past absorption"]
[10,"Finance related Conditions are not met or are partly met"]

{"sheet":"Free Sheet 1","index":41,"n_rows":0,"n_cols":0,"rows_kept":0,"cut":false,"hidden":false,"merged":[]}

{"sheet":"Free Sheet 2","index":42,"n_rows":0,"n_cols":0,"rows_kept":0,"cut":false,"hidden":false,"merged":[]}

{"sheet":"Free Sheet 3","index":43,"n_rows":0,"n_cols":0,"rows_kept":0,"cut":false,"hidden":false,"merged":[]}

{"sheet":"apttusmetadata","index":44,"n_rows":158,"n_cols":86,"rows_kept":158,"cut":false,"hidden":true,"merged":[]}
["ff921f16-0f78-49d2-a726-af02be12057d","     ",null,null,null,null,null,null,null,null,null,null,null,null,null,null,null,null,null,null,null,null,null,null,"PickListValue","PickListKey","AIM_Implementation_Period__c.AIM_Grant_Currency__c","AIM_Procurement__c.AIM_Expiry_Response_LFA__c","AIM_Procurement__c.AIM_PQR_Response_LFA__c","AIM_Procurement__c.AIM_PQR_Response_PR__c","AIM_Procurement__c.AIM_Stock_Out_Response_LFA__c","AIM_Budget_Variance__c.AIM_Description__c","AIM_Quarterly_Cash_Forecast__c.AIM_Type__c","AIM_Performance__c.AIM_Major_Issues_Identified_LFA__c","AIM_Performance__c.AIM_Overall_Rating_LFA__c","AIM_Performance__c.AIM_Quantitative_Indicator_LFA__c","AIM_Grant_Requirement__c.AIM_Status_LFA__c","AIM_Grant_Requirement__c.Annual_Grant_Reporting__Requirements.AIM_Status_LFA__c","AIM_Grant_Requirement__c.Findings_and_Recomendations.AIM_Status_LFA__c","AIM_Grant_Requirement__c.Grant_Requirements.AIM_Status_LFA__c","AIM_Grant_Requirement__c.Management_Actions.AIM_Status_LFA__c","AIM_Grant_Requirement__c.Master.AIM_Status_LFA__c","AIM_Grant_Requirement__c.AIM_Status_PR__c","AIM_Grant_Requirement__c.Annual_Grant_Reporting__Requirements.AIM_Status_PR__c","AIM_Grant_Requirement__c.Findings_and_Recomendations.AIM_Status_PR__c","AIM_Grant_Requirement__c.Grant_Requirements.AIM_Status_PR__c","AIM_Grant_Requirement__c.Management_Actions.AIM_Status_PR__c","AIM_Grant_Requirement__c.Master.AIM_Status_PR__c","AIM_Findings_and_Recommendations__c.AIM_Actor_Type__c","AIM_Findings_and_Recommendations__c.AIM_Status__c","AIM_Coverage_Indicator__c.AIM_Geographic_Coverage__c","AIM_Coverage_Indicator__c.AIM_Rating_Cumulation_Type__c","AIM_Coverage_Indicator__c.AIM_Year__c","AIM_Coverage_Indicator_Targets_Results__c.AIM_Data_Source_Result_LFA__c","AIM_Coverage_Indicator_Targets_Results__c.AIM_Verification_Method_LFA__c","AIM_Coverage_Indicator_Targets_Results__c.AIM_Due_for_Reporting__c","AIM_Coverage_Indicator_Targets_Results__c.AIM_Data_Source_Result_PR__c","AIM_Coverage_Disaggregation_Result__c.AIM_LFA_Source__c","AIM_Coverage_Disaggregation_Result__c.AIM_Source_PR__c","AIM_Impact_Indicator__c.AIM_Baseline_Year__c","AIM_Impact_Indicator_Targets_Results__c.AIM_Year_of_Target__c","AIM_Impact_Indicator_Targets_Results__c.AIM_Data_Source_Result_LFA__c","AIM_Impact_Indicator_Targets_Results__c.AIM_Data_Source_Result_PR__c","AIM_Impact_Indicator_Targets_Results__c.AIM_Verification_Method_LFA__c","AIM_Impact_Indicator_Targets_Results__c.AIM_Year_of_Result_LFA__c","AIM_Impact_Indicator_Targets_Results__c.AIM_Year_of_Result_PR__c","AIM_Impact_Indicator_Targets_Results__c.AIM_Due_for_Reporting__c","AIM_Impact_Disaggregation__c.AIM_Baseline_Year__c","AIM_Impact_Disagaggregation_Results__c.AIM_Result_Source_PR__c","AIM_Impact_Disagaggregation_Results__c.AIM_Verified_Result_Source_LFA__c","AIM_Outcome_Indicator__c.AIM_Baseline_Year__c","AIM_Outcome_Indicator_Targets_Result__c.AIM_Year_of_Target__c","AIM_Outcome_Indicator_Targets_Result__c.AIM_Data_Source_Result_LFA__c","AIM_Outcome_Indicator_Targets_Result__c.AIM_Data_Source_Result_PR__c","AIM_Outcome_Indicator_Targets_Result__c.AIM_Verification_Method_LFA__c","AIM_Outcome_Indicator_Targets_Result__c.AIM_Year_of_Result_LFA__c","AIM_Outcome_Indicator_Targets_Result__c.AIM_Year_of_Result_PR__c","AIM_Outcome_Indicator_Targets_Result__c.AIM_Due_for_Reporting__c","AIM_Outcome_Disaggregation_Results__c.AIM_Result_Source_PR__c","AIM_Outcome_Disaggregation_Results__c.AIM_Verified_Result_Source_LFA__c","AIM_WPTM_Results__c.AIM_Progress_Status_PR__c","AIM_WPTM_Results__c.AIM_Progress_Status_LFA__c","AIM_Opt_Ins__c.AIM_Tab_Name__c","AIM_Opt_Ins__c.AIM_Type__c","IRT_Mitigating_Action_Details__c.AIM_PR_Status__c","IRT_Mitigating_Action_Details__c.AIM_LFA_Status__c"]
[null,null,null,null,null,null,null,null,null,null,null,null,null,null,null,null,null,null,null,null,null,null,null,null,"Annual Grant Reporting  Requirements","Annual_Grant_Reporting__Requirements","CHF","Yes","Yes","Yes","Yes","PR total expenditures","Approved Budget","Yes","A1","A1","Met","Met","Met","Met","Met","Met","Met","Met","Met","Met","Met","Met","PR","Not Started","National","Y- Cumulative annually","2002","HMIS","Not Verified","Yes","HMIS","HMIS","HMIS","2002","2002","HMIS","HMIS","Not Verified","2002","2002","Yes","2002","HMIS","HMIS","2002","2002","HMIS","HMIS","Not Verified","2002","2002","Yes","HMIS","HMIS","Not Started","Not Started","Impact Outcome Indicators_1A","PR Reporting","In Progress","In Progress"]
[null,null,null,null,null,null,null,null,null,null,null,null,null,null,null,null,null,null,null,null,null,null,null,null,"Findings and Recomendations","Findings_and_Recomendations","EUR","No","No","No","No","Disbursement to SRs","PR","No","A2","A2","Waived","Waived","Waived","Waived","Waived","Waived","Waived","Waived","Waived","Waived","Waived","Waived","SR","In Progress","Subnational","N-Non-cumulative","2003","Patient records","Desk Review","No","Patient records","Patient records","Patient records","2003","2003","Patient records","Patient records","Desk Review","2003","2003","No","2003","Patient records","Patient records","2003","2003","Patient records","Patient records","Desk Review","2003","2003","No","Patient records","Patient records","Started","Started","Disaggregation_1A","Cash Balance","Delayed","Delayed"]
[null,null,null,null,null,null,null,null,null,null,null,null,null,null,null,null,null,null,null,null,null,null,null,null,"Grant Requirements","Grant_Requirements","USD","N/A","N/A","N/A","N/A","Pharmaceutical Products","LFA","N.A.","B1","B1","Not Started","Not Started","Not Started","Not Started","Not Started","Not Started","Not Started","Not Started","Not Started","Not Started","Not Started","Not Started",null,"Rejected",null,"N-Non -cumulative (other)","2004","Training records","Other","TBD","Training records","Training records","Training records","2004","2004","Training records","Training records","Other","2004","2004","TBD","2004","Training records","Training records","2004","2004","Training records","Training records","Other","2004","2004","TBD","Training records","Training records","Advancing","Advancing","Coverage Indicators_1B","Tax Reporting","Not Started","Not Started"]
[null,null,null,null,null,null,null,null,null,null,null,null,null,null,null,null,null,null,null,null,null,null,null,null,"Management Actions","Management_Actions","AFN",null,null,null,null,"Non-Pharmaceutical Products","GF",null,"B2","B2","In Progress","In Progress","In Progress","In Progress","In Progress","In Progress","In Progress","In Progress","In Progress","In Progress","In Progress","In Progress",null,null,null,"N-Non -cumulative (special)","2005","MICS (Multiple Indicator Cluster Survey)",null,null,"MICS (Multiple Indicator Cluster Survey)","MICS (Multiple Indicator Cluster Survey)","MICS (Multiple Indicator Cluster Survey)","2005","2005","MICS (Multiple Indicator Cluster Survey)","MICS (Multiple Indicator Cluster Survey)",null,"2005","2005",null,"2005","MICS (Multiple Indicator Cluster Survey)","MICS (Multiple Indicator Cluster Survey)","2005","2005","MICS (Multiple Indicator Cluster Survey)","MICS (Multiple Indicator Cluster Survey)",null,"2005","2005",null,"MICS (Multiple Indicator Cluster Survey)","MICS (Multiple Indicator Cluster Survey)","Completed","Completed","Disaggregation_1B",null,"Met","Met"]
[null,null,null,null,null,null,null,null,null,null,null,null,null,null,null,null,null,null,null,null,null,null,null,null,"Master","Master","AMD",null,null,null,null,null,"Disb - Final Forecast",null,"C","C",null,null,null,null,null,null,null,null,null,null,null,null,null,null,null,null,"2006","DHS/DHS+ (Demographic and Health Survey)",null,null,"DHS/DHS+ (Demographic and Health Survey)","DHS/DHS+ (Demographic and Health Survey)","DHS/DHS+ (Demographic and Health Survey)","2006","2006","DHS/DHS+ (Demographic and Health Survey)","DHS/DHS+ (Demographic and Health Survey)",null,"2006","2006",null,"2006","DHS/DHS+ (Demographic and Health Survey)","DHS/DHS+ (Demographic and Health Survey)","2006","2006","DHS/DHS+ (Demographic and Health Survey)","DHS/DHS+ (Demographic and Health Survey)",null,"2006","2006",null,"DHS/DHS+ (Demographic and Health Survey)","DHS/DHS+ (Demographic and Health Survey)",null,null,"WPTM_1C"]
[null,null,null,null,null,null,null,null,null,null,null,null,null,null,null,null,null,null,null,null,null,null,null,null,"Annual Grant Reporting  Requirements","Annual_Grant_Reporting__Requirements","AUD",null,null,null,null,null,null,null,null,null,null,null,null,null,null,null,null,null,null,null,null,null,null,null,null,null,"2007","AIS (AIDS Indicator Survey)",null,null,"AIS (AIDS Indicator Survey)","AIS (AIDS Indicator Survey)","AIS (AIDS Indicator Survey)","2007","2007","AIS (AIDS Indicator Survey)","AIS (AIDS Indicator Survey)",null,"2007","2007",null,"2007","AIS (AIDS Indicator Survey)","AIS (AIDS Indicator Survey)","2007","2007","AIS (AIDS Indicator Survey)","AIS (AIDS Indicator Survey)",null,"2007","2007",null,"AIS (AIDS Indicator Survey)","AIS (AIDS Indicator Survey)",null,null,"LFA Expenditure_7B"]
[null,null,null,null,null,null,null,null,null,null,null,null,null,null,null,null,null,null,null,null,null,null,null,null,"Findings and Recomendations","Findings_and_Recomendations","BAM",null,null,null,null,null,null,null,null,null,null,null,null,null,null,null,null,null,null,null,null,null,null,null,null,null,"2008","BSS (Behavioral Surveillance Survey)",null,null,"BSS (Behavioral Surveillance Survey)","BSS (Behavioral Surveillance Survey)","BSS (Behavioral Surveillance Survey)","2008","2008","BSS (Behavioral Surveillance Survey)","BSS (Behavioral Surveillance Survey)",null,"2008","2008",null,"2008","BSS (Behavioral Surveillance Survey)","BSS (Behavioral Surveillance Survey)","2008","2008","BSS (Behavioral Surveillance Survey)","BSS (Behavioral Surveillance Survey)",null,"2008","2008",null,"BSS (Behavioral Surveillance Survey)","BSS (Behavioral Surveillance Survey)",null,null,"Annual Cash Forecast_8A"]
[null,null,null,null,null,null,null,null,null,null,null,null,null,null,null,null,null,null,null,null,null,null,null,null,"Grant Requirements","Grant_Requirements","BDT",null,null,null,null,null,null,null,null,null,null,null,null,null,null,null,null,null,null,null,null,null,null,null,null,null,"2009","Health Facility survey",null,null,"Health Facility survey","Health Facility survey","Health Facility survey","2009","2009","Health Facility survey","Health Facility survey",null,"2009","2009",null,"2009","Health Facility survey","Health Facility survey","2009","2009","Health Facility survey","Health Facility survey",null,"2009","2009",null,"Health Facility survey","Health Facility survey",null,null,"PR Cash Reconciliation_2ABCD"]
[null,null,null,null,null,null,null,null,null,null,null,null,null,null,null,null,null,null,null,null,null,null,null,null,"Management Actions","Management_Actions","BGN",null,null,null,null,null,null,null,null,null,null,null,null,null,null,null,null,null,null,null,null,null,null,null,null,null,"2010","SAMS (Service Availability Mapping Survey)",null,null,"SAMS (Service Availability Mapping Survey)","SAMS (Service Availability Mapping Survey)","SAMS (Service Availability Mapping Survey)","2010","2010","SAMS (Service Availability Mapping Survey)","SAMS (Service Availability Mapping Survey)",null,"2010","2010",null,"2010","SAMS (Service Availability Mapping Survey)","SAMS (Service Availability Mapping Survey)","2010","2010","SAMS (Service Availability Mapping Survey)","SAMS (Service Availability Mapping Survey)",null,"2010","2010",null,"SAMS (Service Availability Mapping Survey)","SAMS (Service Availability Mapping Survey)",null,null,"SR Cash Reconciliation_2E"]
[null,null,null,null,null,null,null,null,null,null,null,null,null,null,null,null,null,null,null,null,null,null,null,null,"Master","Master","BTN",null,null,null,null,null,null,null,null,null,null,null,null,null,null,null,null,null,null,null,null,null,null,null,null,null,"2011","Households survey",null,null,"Households survey","Households survey","Households survey","2011","2011","Households survey","Households survey",null,"2011","2011",null,"2011","Households survey","Households survey","2011","2011","Households survey","Households survey",null,"2011","2011",null,"Households survey","Households survey",null,null,"Budget Variance_2F"]
[null,null,null,null,null,null,null,null,null,null,null,null,null,null,null,null,null,null,null,null,null,null,null,null,null,null,"BYR",null,null,null,null,null,null,null,null,null,null,null,null,null,null,null,null,null,null,null,null,null,null,null,null,null,"2012","Specific surveys and research (specify)",null,null,"Specific surveys and research (specify)","Specific surveys and research (specify)","Specific surveys and research (specify)","2012","2012","Specific surveys and research (specify)","Specific surveys and research (specify)",null,"2012","2012",null,"2012","Specific surveys and research (specify)","Specific surveys and research (specify)","2012","2012","Specific surveys and research (specify)","Specific surveys and research (specify)",null,"2012","2012",null,"Specific surveys and research (specify)","Specific surveys and research (specify)",null,null,"Procurement_3"]
[null,null,null,null,null,null,null,null,null,null,null,null,null,null,null,null,null,null,null,null,null,null,null,null,null,null,"CNY",null,null,null,null,null,null,null,null,null,null,null,null,null,null,null,null,null,null,null,null,null,null,null,null,null,"2013","Reports (specify)",null,null,"Reports (specify)","Reports (specify)","Reports (specify)","2013","2013","Reports (specify)","Reports (specify)",null,"2013","2013",null,"2013","Reports (specify)","Reports (specify)","2013","2013","Reports (specify)","Reports (specify)",null,"2013","2013",null,"Reports (specify)","Reports (specify)",null,null,"Grant Management_4"]
[null,null,null,null,null,null,null,null,null,null,null,null,null,null,null,null,null,null,null,null,null,null,null,null,null,null,"COP",null,null,null,null,null,null,null,null,null,null,null,null,null,null,null,null,null,null,null,null,null,null,null,null,null,"2014","Vital and disease-specific registry",null,null,"Vital and disease-specific registry","Vital and disease-specific registry","Vital and disease-specific registry","2014","2014","Vital and disease-specific registry","Vital and disease-specific registry",null,"2014","2014",null,"2014","Vital and disease-specific registry","Vital and disease-specific registry","2014","2014","Vital and disease-specific registry","Vital and disease-specific registry",null,"2014","2014",null,"Vital and disease-specific registry","Vital and disease-specific registry",null,null,"PR/LFA Evaluation_5"]
[null,null,null,null,null,null,null,null,null,null,null,null,null,null,null,null,null,null,null,null,null,null,null,null,null,null,"DOP",null,null,null,null,null,null,null,null,null,null,null,null,null,null,null,null,null,null,null,null,null,null,null,null,null,"2015","Operational Research",null,null,"Operational Research","Operational Research","Operational Research","2015","2015","Operational Research","Operational Research",null,"2015","2015",null,"2015","Operational Research","Operational Research","2015","2015","Operational Research","Operational Research",null,"2015","2015",null,"Operational Research","Operational Research",null,null,"LFA Findings and Recommendation_6"]
[null,null,null,null,null,null,null,null,null,null,null,null,null,null,null,null,null,null,null,null,null,null,null,null,null,null,"GBP",null,null,null,null,null,null,null,null,null,null,null,null,null,null,null,null,null,null,null,null,null,null,null,null,null,"2016","Health Provider survey",null,null,"Health Provider survey","Health Provider survey","Health Provider survey","2016","2016","Health Provider survey","Health Provider survey",null,"2016","2016",null,"2016","Health Provider survey","Health Provider survey","2016","2016","Health Provider survey","Health Provider survey",null,"2016","2016",null,"Health Provider survey","Health Provider survey",null,null,"PR Expenditure_7A"]
[null,null,null,null,null,null,null,null,null,null,null,null,null,null,null,null,null,null,null,null,null,null,null,null,null,null,"GEL",null,null,null,null,null,null,null,null,null,null,null,null,null,null,null,null,null,null,null,null,null,null,null,null,null,"2017","National Health Account",null,null,"National Health Account","National Health Account","National Health Account","2017","2017","National Health Account","National Health Account",null,"2017","2017",null,"2017","National Health Account","National Health Account","2017","2017","National Health Account","National Health Account",null,"2017","2017",null,"National Health Account","National Health Account",null,null,"Semi-Annual Cash Forecast_8AA"]
[null,null,null,null,null,null,null,null,null,null,null,null,null,null,null,null,null,null,null,null,null,null,null,null,null,null,"GHS",null,null,null,null,null,null,null,null,null,null,null,null,null,null,null,null,null,null,null,null,null,null,null,null,null,"2018","Administrative records",null,null,"Administrative records","Administrative records","Administrative records","2018","2018","Administrative records","Administrative records",null,"2018","2018",null,"2018","Administrative records","Administrative records","2018","2018","Administrative records","Administrative records",null,"2018","2018",null,"Administrative records","Administrative records",null,null,"Request and Recommendation_8B"]
[null,null,null,null,null,null,null,null,null,null,null,null,null,null,null,null,null,null,null,null,null,null,null,null,null,null,"GNF",null,null,null,null,null,null,null,null,null,null,null,null,null,null,null,null,null,null,null,null,null,null,null,null,null,"2019","R&R TB system, quarterly reports",null,null,"R&R TB system, quarterly reports","R&R TB system, quarterly reports","R&R TB system, quarterly reports","2019","2019","R&R TB system, quarterly reports","R&R TB system, quarterly reports",null,"2019","2019",null,"2019","R&R TB system, quarterly reports","R&R TB system, quarterly reports","2019","2019","R&R TB system, quarterly reports","R&R TB system, quarterly reports",null,"2019","2019",null,"R&R TB system, quarterly reports","R&R TB system, quarterly reports",null,null,"PR Authorization_9A"]
[null,null,null,null,null,null,null,null,null,null,null,null,null,null,null,null,null,null,null,null,null,null,null,null,null,null,"GTQ",null,null,null,null,null,null,null,null,null,null,null,null,null,null,null,null,null,null,null,null,null,null,null,null,null,"2020","R&R TB system, yearly management report ",null,null,"R&R TB system, yearly management report ","R&R TB system, yearly management report ","R&R TB system, yearly management report ","2020","2020","R&R TB system, yearly management report ","R&R TB system, yearly management report ",null,"2020","2020",null,"2020","R&R TB system, yearly management report ","R&R TB system, yearly management report ","2020","2020","R&R TB system, yearly management report ","R&R TB system, yearly management report ",null,"2020","2020",null,"R&R TB system, yearly management report ","R&R TB system, yearly management report ",null,null,"LFA Authorization_9B"]
[null,null,null,null,null,null,null,null,null,null,null,null,null,null,null,null,null,null,null,null,null,null,null,null,null,null,"IDR",null,null,null,null,null,null,null,null,null,null,null,null,null,null,null,null,null,null,null,null,null,null,null,null,null,"2021","TB prevalence survey",null,null,"TB prevalence survey","TB prevalence survey","TB prevalence survey","2021","2021","TB prevalence survey","TB prevalence survey",null,"2021","2021",null,"2021","TB prevalence survey","TB prevalence survey","2021","2021","TB prevalence survey","TB prevalence survey",null,"2021","2021",null,"TB prevalence survey","TB prevalence survey",null,null,"Quarterly Cash Info_QFR1"]
[null,null,null,null,null,null,null,null,null,null,null,null,null,null,null,null,null,null,null,null,null,null,null,null,null,null,"ILS",null,null,null,null,null,null,null,null,null,null,null,null,null,null,null,null,null,null,null,null,null,null,null,null,null,"2022","TB patient register",null,null,"TB patient register","TB patient register","TB patient register","2022","2022","TB patient register","TB patient register",null,"2022","2022",null,"2022","TB patient register","TB patient register","2022","2022","TB patient register","TB patient register",null,"2022","2022",null,"TB patient register","TB patient register",null,null,"Tax Reporting_QFR2"]
[null,null,null,null,null,null,null,null,null,null,null,null,null,null,null,null,null,null,null,null,null,null,null,null,null,null,"INR",null,null,null,null,null,null,null,null,null,null,null,null,null,null,null,null,null,null,null,null,null,null,null,null,null,"2023","TB laboratory register",null,null,"TB laboratory register","TB laboratory register","TB laboratory register","2023","2023","TB laboratory register","TB laboratory register",null,"2023","2023",null,"2023","TB laboratory register","TB laboratory register","2023","2023","TB laboratory register","TB laboratory register",null,"2023","2023",null,"TB laboratory register","TB laboratory register",null,null,"Financial Triggers_10"]
[null,null,null,null,null,null,null,null,null,null,null,null,null,null,null,null,null,null,null,null,null,null,null,null,null,null,"JMD",null,null,null,null,null,null,null,null,null,null,null,null,null,null,null,null,null,null,null,null,null,null,null,null,null,"2024","TB treatment card",null,null,"TB treatment card","TB treatment card","TB treatment card","2024","2024","TB treatment card","TB treatment card",null,"2024","2024",null,"2024","TB treatment card","TB treatment card","2024","2024","TB treatment card","TB treatment card",null,"2024","2024",null,"TB treatment card","TB treatment card",null,null,"Cash Forecast_8A"]
[null,null,null,null,null,null,null,null,null,null,null,null,null,null,null,null,null,null,null,null,null,null,null,null,null,null,"JOD",null,null,null,null,null,null,null,null,null,null,null,null,null,null,null,null,null,null,null,null,null,null,null,null,null,"2025","Specify- Reports, Surveys, Questionnaires etc.",null,null,"Specify- Reports, Surveys, Questionnaires etc.","Specify- Reports, Surveys, Questionnaires etc.","Specify- Reports, Surveys, Questionnaires etc.","2025","2025","Specify- Reports, Surveys, Questionnaires etc.","Specify- Reports, Surveys, Questionnaires etc.",null,"2025","2025",null,"2025","Specify- Reports, Surveys, Questionnaires etc.","Specify- Reports, Surveys, Questionnaires etc.","2025","2025","Specify- Reports, Surveys, Questionnaires etc.","Specify- Reports, Surveys, Questionnaires etc.",null,"2025","2025",null,"Specify- Reports, Surveys, Questionnaires etc.","Specify- Reports, Surveys, Questionnaires etc."]
[null,null,null,null,null,null,null,null,null,null,null,null,null,null,null,null,null,null,null,null,null,null,null,null,null,null,"JPY",null,null,null,null,null,null,null,null,null,null,null,null,null,null,null,null,null,null,null,null,null,null,null,null,null,null,"MIS (Malaria Indicator Survey)",null,null,"MIS (Malaria Indicator Survey)","MIS (Malaria Indicator Survey)","MIS (Malaria Indicator Survey)",null,null,"MIS (Malaria Indicator Survey)","MIS (Malaria Indicator Survey)",null,null,null,null,null,"MIS (Malaria Indicator Survey)","MIS (Malaria Indicator Survey)",null,null,"MIS (Malaria Indicator Survey)","MIS (Malaria Indicator Survey)",null,null,null,null,"MIS (Malaria Indicator Survey)","MIS (Malaria Indicator Survey)"]
[null,null,null,null,null,null,null,null,null,null,null,null,null,null,null,null,null,null,null,null,null,null,null,null,null,null,"KES",null,null,null,null,null,null,null,null,null,null,null,null,null,null,null,null,null,null,null,null,null,null,null,null,null,null,"Situation Analysis",null,null,"Situation Analysis","Situation Analysis","Situation Analysis",null,null,"Situation Analysis","Situation Analysis",null,null,null,null,null,"Situation Analysis","Situation Analysis",null,null,"Situation Analysis","Situation Analysis",null,null,null,null,"Situation Analysis","Situation Analysis"]
[null,null,null,null,null,null,null,null,null,null,null,null,null,null,null,null,null,null,null,null,null,null,null,null,null,null,"KZT",null,null,null,null,null,null,null,null,null,null,null,null,null,null,null,null,null,null,null,null,null,null,null,null,null,null,"Key informant survey",null,null,"Key informant survey","Key informant survey","Key informant survey",null,null,"Key informant survey","Key informant survey",null,null,null,null,null,"Key informant survey","Key informant survey",null,null,"Key informant survey","Key informant survey",null,null,null,null,"Key informant survey","Key informant survey"]
[null,null,null,null,null,null,null,null,null,null,null,null,null,null,null,null,null,null,null,null,null,null,null,null,null,null,"MAD",null,null,null,null,null,null,null,null,null,null,null,null,null,null,null,null,null,null,null,null,null,null,null,null,null,null,"Surveillance systems",null,null,"Surveillance systems","Surveillance systems","Surveillance systems",null,null,"Surveillance systems","Surveillance systems",null,null,null,null,null,"Surveillance systems","Surveillance systems",null,null,"Surveillance systems","Surveillance systems",null,null,null,null,"Surveillance systems","Surveillance systems"]
[null,null,null,null,null,null,null,null,null,null,null,null,null,null,null,null,null,null,null,null,null,null,null,null,null,null,"MGA",null,null,null,null,null,null,null,null,null,null,null,null,null,null,null,null,null,null,null,null,null,null,null,null,null,null,"Modelled",null,null,"Modelled","Modelled","Modelled",null,null,"Modelled","Modelled",null,null,null,null,null,"Modelled","Modelled",null,null,"Modelled","Modelled",null,null,null,null,"Modelled","Modelled"]
[null,null,null,null,null,null,null,null,null,null,null,null,null,null,null,null,null,null,null,null,null,null,null,null,null,null,"MKD",null,null,null,null,null,null,null,null,null,null,null,null,null,null,null,null,null,null,null,null,null,null,null,null,null,null,"Other survey, specify",null,null,"Other survey, specify","Other survey, specify","Other survey, specify",null,null,"Other survey, specify","Other survey, specify",null,null,null,null,null,"Other survey, specify","Other survey, specify",null,null,"Other survey, specify","Other survey, specify",null,null,null,null,"Other survey, specify","Other survey, specify"]
[null,null,null,null,null,null,null,null,null,null,null,null,null,null,null,null,null,null,null,null,null,null,null,null,null,null,"MUR",null,null,null,null,null,null,null,null,null,null,null,null,null,null,null,null,null,null,null,null,null,null,null,null,null,null,"IBBS",null,null,"IBBS","IBBS","IBBS",null,null,"IBBS","IBBS",null,null,null,null,null,"IBBS","IBBS",null,null,"IBBS","IBBS",null,null,null,null,"IBBS","IBBS"]
[null,null,null,null,null,null,null,null,null,null,null,null,null,null,null,null,null,null,null,null,null,null,null,null,null,null,"NAD"]
[null,null,null,null,null,null,null,null,null,null,null,null,null,null,null,null,null,null,null,null,null,null,null,null,null,null,"NGN"]
[null,null,null,null,null,null,null,null,null,null,null,null,null,null,null,null,null,null,null,null,null,null,null,null,null,null,"NZD"]
[null,null,null,null,null,null,null,null,null,null,null,null,null,null,null,null,null,null,null,null,null,null,null,null,null,null,"PGK"]
[null,null,null,null,null,null,null,null,null,null,null,null,null,null,null,null,null,null,null,null,null,null,null,null,null,null,"PHP"]
[null,null,null,null,null,null,null,null,null,null,null,null,null,null,null,null,null,null,null,null,null,null,null,null,null,null,"PYG"]
[null,null,null,null,null,null,null,null,null,null,null,null,null,null,null,null,null,null,null,null,null,null,null,null,null,null,"RSD"]
[null,null,null,null,null,null,null,null,null,null,null,null,null,null,null,null,null,null,null,null,null,null,null,null,null,null,"RUB"]
[null,null,null,null,null,null,null,null,null,null,null,null,null,null,null,null,null,null,null,null,null,null,null,null,null,null,"SLL"]
[null,null,null,null,null,null,null,null,null,null,null,null,null,null,null,null,null,null,null,null,null,null,null,null,null,null,"SRD"]
[null,null,null,null,null,null,null,null,null,null,null,null,null,null,null,null,null,null,null,null,null,null,null,null,null,null,"SZL"]
[null,null,null,null,null,null,null,null,null,null,null,null,null,null,null,null,null,null,null,null,null,null,null,null,null,null,"THB"]
[null,null,null,null,null,null,null,null,null,null,null,null,null,null,null,null,null,null,null,null,null,null,null,null,null,null,"TND"]
[null,null,null,null,null,null,null,null,null,null,null,null,null,null,null,null,null,null,null,null,null,null,null,null,null,null,"TZS"]
[null,null,null,null,null,null,null,null,null,null,null,null,null,null,null,null,null,null,null,null,null,null,null,null,null,null,"UAH"]
[null,null,null,null,null,null,null,null,null,null,null,null,null,null,null,null,null,null,null,null,null,null,null,null,null,null,"XAF"]
[null,null,null,null,null,null,null,null,null,null,null,null,null,null,null,null,null,null,null,null,null,null,null,null,null,null,"XOF"]
[null,null,null,null,null,null,null,null,null,null,null,null,null,null,null,null,null,null,null,null,null,null,null,null,null,null,"YER"]
[null,null,null,null,null,null,null,null,null,null,null,null,null,null,null,null,null,null,null,null,null,null,null,null,null,null,"ZAR"]
[null,null,null,null,null,null,null,null,null,null,null,null,null,null,null,null,null,null,null,null,null,null,null,null,null,null,"CAD"]
[null,null,null,null,null,null,null,null,null,null,null,null,null,null,null,null,null,null,null,null,null,null,null,null,null,null,"SEK"]
[null,null,null,null,null,null,null,null,null,null,null,null,null,null,null,null,null,null,null,null,null,null,null,null,null,null,"NOK"]
[null,null,null,null,null,null,null,null,null,null,null,null,null,null,null,null,null,null,null,null,null,null,null,null,null,null,"DKK"]
[null,null,null,null,null,null,null,null,null,null,null,null,null,null,null,null,null,null,null,null,null,null,null,null,null,null,"ISK"]
[null,null,null,null,null,null,null,null,null,null,null,null,null,null,null,null,null,null,null,null,null,null,null,null,null,null,"EGP"]
[null,null,null,null,null,null,null,null,null,null,null,null,null,null,null,null,null,null,null,null,null,null,null,null,null,null,"AED"]
[null,null,null,null,null,null,null,null,null,null,null,null,null,null,null,null,null,null,null,null,null,null,null,null,null,null,"ALL"]
[null,null,null,null,null,null,null,null,null,null,null,null,null,null,null,null,null,null,null,null,null,null,null,null,null,null,"AOA"]
[null,null,null,null,null,null,null,null,null,null,null,null,null,null,null,null,null,null,null,null,null,null,null,null,null,null,"ARS"]
[null,null,null,null,null,null,null,null,null,null,null,null,null,null,null,null,null,null,null,null,null,null,null,null,null,null,"AWG"]
[null,null,null,null,null,null,null,null,null,null,null,null,null,null,null,null,null,null,null,null,null,null,null,null,null,null,"AZN"]
[null,null,null,null,null,null,null,null,null,null,null,null,null,null,null,null,null,null,null,null,null,null,null,null,null,null,"BBD"]
[null,null,null,null,null,null,null,null,null,null,null,null,null,null,null,null,null,null,null,null,null,null,null,null,null,null,"BHD"]
[null,null,null,null,null,null,null,null,null,null,null,null,null,null,null,null,null,null,null,null,null,null,null,null,null,null,"BIF"]
[null,null,null,null,null,null,null,null,null,null,null,null,null,null,null,null,null,null,null,null,null,null,null,null,null,null,"BND"]
[null,null,null,null,null,null,null,null,null,null,null,null,null,null,null,null,null,null,null,null,null,null,null,null,null,null,"BOB"]
[null,null,null,null,null,null,null,null,null,null,null,null,null,null,null,null,null,null,null,null,null,null,null,null,null,null,"BRL"]
[null,null,null,null,null,null,null,null,null,null,null,null,null,null,null,null,null,null,null,null,null,null,null,null,null,null,"BSD"]
[null,null,null,null,null,null,null,null,null,null,null,null,null,null,null,null,null,null,null,null,null,null,null,null,null,null,"BWP"]
[null,null,null,null,null,null,null,null,null,null,null,null,null,null,null,null,null,null,null,null,null,null,null,null,null,null,"BZD"]
[null,null,null,null,null,null,null,null,null,null,null,null,null,null,null,null,null,null,null,null,null,null,null,null,null,null,"CDF"]
[null,null,null,null,null,null,null,null,null,null,null,null,null,null,null,null,null,null,null,null,null,null,null,null,null,null,"CLP"]
[null,null,null,null,null,null,null,null,null,null,null,null,null,null,null,null,null,null,null,null,null,null,null,null,null,null,"CRC"]
[null,null,null,null,null,null,null,null,null,null,null,null,null,null,null,null,null,null,null,null,null,null,null,null,null,null,"CUC"]
[null,null,null,null,null,null,null,null,null,null,null,null,null,null,null,null,null,null,null,null,null,null,null,null,null,null,"CVE"]
[null,null,null,null,null,null,null,null,null,null,null,null,null,null,null,null,null,null,null,null,null,null,null,null,null,null,"CZK"]
[null,null,null,null,null,null,null,null,null,null,null,null,null,null,null,null,null,null,null,null,null,null,null,null,null,null,"DJF"]
[null,null,null,null,null,null,null,null,null,null,null,null,null,null,null,null,null,null,null,null,null,null,null,null,null,null,"DZD"]
[null,null,null,null,null,null,null,null,null,null,null,null,null,null,null,null,null,null,null,null,null,null,null,null,null,null,"EEK"]
[null,null,null,null,null,null,null,null,null,null,null,null,null,null,null,null,null,null,null,null,null,null,null,null,null,null,"ERN"]
[null,null,null,null,null,null,null,null,null,null,null,null,null,null,null,null,null,null,null,null,null,null,null,null,null,null,"ETB"]
[null,null,null,null,null,null,null,null,null,null,null,null,null,null,null,null,null,null,null,null,null,null,null,null,null,null,"FJD"]
[null,null,null,null,null,null,null,null,null,null,null,null,null,null,null,null,null,null,null,null,null,null,null,null,null,null,"FKP"]
[null,null,null,null,null,null,null,null,null,null,null,null,null,null,null,null,null,null,null,null,null,null,null,null,null,null,"GIP"]
[null,null,null,null,null,null,null,null,null,null,null,null,null,null,null,null,null,null,null,null,null,null,null,null,null,null,"GMD"]
[null,null,null,null,null,null,null,null,null,null,null,null,null,null,null,null,null,null,null,null,null,null,null,null,null,null,"GYD"]
[null,null,null,null,null,null,null,null,null,null,null,null,null,null,null,null,null,null,null,null,null,null,null,null,null,null,"HKD"]
[null,null,null,null,null,null,null,null,null,null,null,null,null,null,null,null,null,null,null,null,null,null,null,null,null,null,"HNL"]
[null,null,null,null,null,null,null,null,null,null,null,null,null,null,null,null,null,null,null,null,null,null,null,null,null,null,"HRK"]
[null,null,null,null,null,null,null,null,null,null,null,null,null,null,null,null,null,null,null,null,null,null,null,null,null,null,"HTG"]
[null,null,null,null,null,null,null,null,null,null,null,null,null,null,null,null,null,null,null,null,null,null,null,null,null,null,"HUF"]
[null,null,null,null,null,null,null,null,null,null,null,null,null,null,null,null,null,null,null,null,null,null,null,null,null,null,"IQD"]
[null,null,null,null,null,null,null,null,null,null,null,null,null,null,null,null,null,null,null,null,null,null,null,null,null,null,"IRR"]
[null,null,null,null,null,null,null,null,null,null,null,null,null,null,null,null,null,null,null,null,null,null,null,null,null,null,"KGS"]
[null,null,null,null,null,null,null,null,null,null,null,null,null,null,null,null,null,null,null,null,null,null,null,null,null,null,"KHR"]
[null,null,null,null,null,null,null,null,null,null,null,null,null,null,null,null,null,null,null,null,null,null,null,null,null,null,"KMF"]
[null,null,null,null,null,null,null,null,null,null,null,null,null,null,null,null,null,null,null,null,null,null,null,null,null,null,"KPW"]
[null,null,null,null,null,null,null,null,null,null,null,null,null,null,null,null,null,null,null,null,null,null,null,null,null,null,"KRW"]
[null,null,null,null,null,null,null,null,null,null,null,null,null,null,null,null,null,null,null,null,null,null,null,null,null,null,"KWD"]
[null,null,null,null,null,null,null,null,null,null,null,null,null,null,null,null,null,null,null,null,null,null,null,null,null,null,"KYD"]
[null,null,null,null,null,null,null,null,null,null,null,null,null,null,null,null,null,null,null,null,null,null,null,null,null,null,"LAK"]
[null,null,null,null,null,null,null,null,null,null,null,null,null,null,null,null,null,null,null,null,null,null,null,null,null,null,"LBP"]
[null,null,null,null,null,null,null,null,null,null,null,null,null,null,null,null,null,null,null,null,null,null,null,null,null,null,"LKR"]
[null,null,null,null,null,null,null,null,null,null,null,null,null,null,null,null,null,null,null,null,null,null,null,null,null,null,"LRD"]
[null,null,null,null,null,null,null,null,null,null,null,null,null,null,null,null,null,null,null,null,null,null,null,null,null,null,"LSL"]
[null,null,null,null,null,null,null,null,null,null,null,null,null,null,null,null,null,null,null,null,null,null,null,null,null,null,"LTL"]
[null,null,null,null,null,null,null,null,null,null,null,null,null,null,null,null,null,null,null,null,null,null,null,null,null,null,"LVL"]
[null,null,null,null,null,null,null,null,null,null,null,null,null,null,null,null,null,null,null,null,null,null,null,null,null,null,"LYD"]
[null,null,null,null,null,null,null,null,null,null,null,null,null,null,null,null,null,null,null,null,null,null,null,null,null,null,"MDL"]
[null,null,null,null,null,null,null,null,null,null,null,null,null,null,null,null,null,null,null,null,null,null,null,null,null,null,"MMK"]
[null,null,null,null,null,null,null,null,null,null,null,null,null,null,null,null,null,null,null,null,null,null,null,null,null,null,"MNT"]
[null,null,null,null,null,null,null,null,null,null,null,null,null,null,null,null,null,null,null,null,null,null,null,null,null,null,"MOP"]
[null,null,null,null,null,null,null,null,null,null,null,null,null,null,null,null,null,null,null,null,null,null,null,null,null,null,"MRO"]
[null,null,null,null,null,null,null,null,null,null,null,null,null,null,null,null,null,null,null,null,null,null,null,null,null,null,"MVR"]
[null,null,null,null,null,null,null,null,null,null,null,null,null,null,null,null,null,null,null,null,null,null,null,null,null,null,"MWK"]
[null,null,null,null,null,null,null,null,null,null,null,null,null,null,null,null,null,null,null,null,null,null,null,null,null,null,"MXN"]
[null,null,null,null,null,null,null,null,null,null,null,null,null,null,null,null,null,null,null,null,null,null,null,null,null,null,"MYR"]
[null,null,null,null,null,null,null,null,null,null,null,null,null,null,null,null,null,null,null,null,null,null,null,null,null,null,"NIO"]
[null,null,null,null,null,null,null,null,null,null,null,null,null,null,null,null,null,null,null,null,null,null,null,null,null,null,"NPR"]
[null,null,null,null,null,null,null,null,null,null,null,null,null,null,null,null,null,null,null,null,null,null,null,null,null,null,"OMR"]
[null,null,null,null,null,null,null,null,null,null,null,null,null,null,null,null,null,null,null,null,null,null,null,null,null,null,"PAB"]
[null,null,null,null,null,null,null,null,null,null,null,null,null,null,null,null,null,null,null,null,null,null,null,null,null,null,"PEN"]
[null,null,null,null,null,null,null,null,null,null,null,null,null,null,null,null,null,null,null,null,null,null,null,null,null,null,"PKR"]
[null,null,null,null,null,null,null,null,null,null,null,null,null,null,null,null,null,null,null,null,null,null,null,null,null,null,"PLN"]
[null,null,null,null,null,null,null,null,null,null,null,null,null,null,null,null,null,null,null,null,null,null,null,null,null,null,"QAR"]
[null,null,null,null,null,null,null,null,null,null,null,null,null,null,null,null,null,null,null,null,null,null,null,null,null,null,"RON"]
[null,null,null,null,null,null,null,null,null,null,null,null,null,null,null,null,null,null,null,null,null,null,null,null,null,null,"RWF"]
[null,null,null,null,null,null,null,null,null,null,null,null,null,null,null,null,null,null,null,null,null,null,null,null,null,null,"SAR"]
[null,null,null,null,null,null,null,null,null,null,null,null,null,null,null,null,null,null,null,null,null,null,null,null,null,null,"SBD"]
[null,null,null,null,null,null,null,null,null,null,null,null,null,null,null,null,null,null,null,null,null,null,null,null,null,null,"SCR"]
[null,null,null,null,null,null,null,null,null,null,null,null,null,null,null,null,null,null,null,null,null,null,null,null,null,null,"SDG"]
[null,null,null,null,null,null,null,null,null,null,null,null,null,null,null,null,null,null,null,null,null,null,null,null,null,null,"SGD"]
[null,null,null,null,null,null,null,null,null,null,null,null,null,null,null,null,null,null,null,null,null,null,null,null,null,null,"SHP"]
[null,null,null,null,null,null,null,null,null,null,null,null,null,null,null,null,null,null,null,null,null,null,null,null,null,null,"SKK"]
[null,null,null,null,null,null,null,null,null,null,null,null,null,null,null,null,null,null,null,null,null,null,null,null,null,null,"SOS"]
[null,null,null,null,null,null,null,null,null,null,null,null,null,null,null,null,null,null,null,null,null,null,null,null,null,null,"STD"]
[null,null,null,null,null,null,null,null,null,null,null,null,null,null,null,null,null,null,null,null,null,null,null,null,null,null,"SYP"]
[null,null,null,null,null,null,null,null,null,null,null,null,null,null,null,null,null,null,null,null,null,null,null,null,null,null,"TJS"]
[null,null,null,null,null,null,null,null,null,null,null,null,null,null,null,null,null,null,null,null,null,null,null,null,null,null,"TOP"]
[null,null,null,null,null,null,null,null,null,null,null,null,null,null,null,null,null,null,null,null,null,null,null,null,null,null,"TRY"]
[null,null,null,null,null,null,null,null,null,null,null,null,null,null,null,null,null,null,null,null,null,null,null,null,null,null,"TTD"]
[null,null,null,null,null,null,null,null,null,null,null,null,null,null,null,null,null,null,null,null,null,null,null,null,null,null,"TWD"]
[null,null,null,null,null,null,null,null,null,null,null,null,null,null,null,null,null,null,null,null,null,null,null,null,null,null,"UGX"]
[null,null,null,null,null,null,null,null,null,null,null,null,null,null,null,null,null,null,null,null,null,null,null,null,null,null,"UYU"]
[null,null,null,null,null,null,null,null,null,null,null,null,null,null,null,null,null,null,null,null,null,null,null,null,null,null,"UZS"]
[null,null,null,null,null,null,null,null,null,null,null,null,null,null,null,null,null,null,null,null,null,null,null,null,null,null,"VND"]
[null,null,null,null,null,null,null,null,null,null,null,null,null,null,null,null,null,null,null,null,null,null,null,null,null,null,"VUV"]
[null,null,null,null,null,null,null,null,null,null,null,null,null,null,null,null,null,null,null,null,null,null,null,null,null,null,"WST"]
[null,null,null,null,null,null,null,null,null,null,null,null,null,null,null,null,null,null,null,null,null,null,null,null,null,null,"XCD"]
[null,null,null,null,null,null,null,null,null,null,null,null,null,null,null,null,null,null,null,null,null,null,null,null,null,null,"XPF"]
[null,null,null,null,null,null,null,null,null,null,null,null,null,null,null,null,null,null,null,null,null,null,null,null,null,null,"ZWD"]
[null,null,null,null,null,null,null,null,null,null,null,null,null,null,null,null,null,null,null,null,null,null,null,null,null,null,"MZN"]
[null,null,null,null,null,null,null,null,null,null,null,null,null,null,null,null,null,null,null,null,null,null,null,null,null,null,"TMT"]
[null,null,null,null,null,null,null,null,null,null,null,null,null,null,null,null,null,null,null,null,null,null,null,null,null,null,"VEF"]
[null,null,null,null,null,null,null,null,null,null,null,null,null,null,null,null,null,null,null,null,null,null,null,null,null,null,"ZMW"]
[null,null,null,null,null,null,null,null,null,null,null,null,null,null,null,null,null,null,null,null,null,null,null,null,null,null,"SSP"]